{"text_format":"1","workbook":"xlsx","n_sheets":20,"sheets":["Introduction","1 - Site Details","2 - Applicant Details","3 - Land Summary","WCP 1 - Outline","WCP 2 - Objectives & Threats","WCP 3 - Constraints","WCP 4 - Envt Checks","WCP 5 - Contacts","Species List","4 - Species Breakdown","5 - Composition & ACs","6 - Standard Cost Items","7 - Operational Plan","8 - Infrastructure","9 - Scoring","10 - Grant Values (£)","WCC Summary","Tree Procurement Summary ","Look Up Data"],"not_rendered":{"charts":0,"images":13,"macros":0,"external_links":0,"defined_names":34,"comments":0,"pivot_tables":0},"unopened":[],"bounds":{"document_bytes":16777216,"sheet_cells":100000,"rows_first":2000,"rows_last":500,"rows_between":2000,"halvings":0,"cell_chars":16384,"cell_head_chars":4096},"cells_cut":0,"cells_raw":0,"read":"whole","date_system":"1900"}

{"sheet":"Introduction","index":0,"n_rows":19,"n_cols":6,"rows_kept":19,"cut":false,"hidden":false,"merged":[[20,1,21,5],[8,1,8,2],[8,4,8,5],[15,4,15,5],[1,1,1,5],[3,1,3,5],[6,1,6,5],[4,1,4,5]]}
[]
[null,"England Woodland Creation Offer (EWCO) Application Form"]
[]
[]
[]
[]
[null,"The Application Form is made up of the following tab worksheets:"]
[]
[null,"These tabs form your EWCO Application and are mandatory for completion:",null,null,"These tabs are only required if you do not have an approved Woodland Creation Design Plan (WCDP) through the Woodland Creation Planning Grant (WCPG):"]
[null,"1 - Site Details","Provide basic site requirements and eligibility.",null,"WCP 1 - Outline","Outline the overall vision for your new woodland."]
[null,"2 - Applicant Details","Provide lead applicant, business and agent details.",null,"WCP 2 - Objectives & Threats","Outline your objectives and mitigate any threats."]
[null,"3 - Land Summary","Provide a list of land parcels included in your application.",null,"WCP 3 - Constraints","Indicate any designations or other contraints on the land."]
[null,"4 - Species Breakdown","Provide the species composition for your woodland.",null,"WCP 4 - Envt Checks","Check for any impacts on the wider environment."]
[null,"5 - Composition & ACs","Apply for Additional Contribution payments for public benefits.",null,"WCP 5 - Contacts","List mandatory and other stakeholder consultations."]
[null,"6 - Standard Cost Items","Apply for capital items required for woodland establishment."]
[null,"7 - Operational Plan","Provide your Operational Plan and tree supply details.",null,"These tabs are for reference only and do not form part of your application:"]
[null,"8 - Infrastructure","Apply for payments towards actual costs for infrastructure.",null,"Species List","A reference list of tree species for use in your application."]
[null,"9 - Scoring","Score your application.",null,"WCC Summary","For applicant use if applying for the Woodland Carbon Code."]
[null,"10 - Grant Values (£)","Review your Grant funding and apply a flexible cap if required.",null,"Tree Procurement Summary","A reference list of the total trees applied for per species."]

{"sheet":"1 - Site Details","index":1,"n_rows":30,"n_cols":2,"rows_kept":30,"cut":false,"hidden":false,"merged":[[28,1,28,2],[8,9,8,10],[3,1,3,2],[5,1,5,2],[23,1,23,2],[13,1,13,2],[18,1,18,2]]}
[]
[null,"Section 1 - Site Details"]
[]
[]
[]
[null,"Site Details"]
[null,"EWCO reference (for FC internal use):"]
[null,"Name of property, site or application name:"]
[null,"Central Grid Reference of your proposed woodland:\n(E.g., GR 123 456)"]
[null,"Your occupation of the land:\n(select drop-down)"]
[null,"If other, please enter details:"]
[null,"Your Management Control of the land:\n(select drop-down)"]
[]
[null,"Tenants"]
[null,"Do you have any obligations in your tenancy to carry out environmental management on the land in question? \n(select drop-down)"]
[null,"Was any of the land in your application in a tenancy agreement in the last 12 months?\n(select drop-down)"]
[null,"Was any of the land in this application resumed from a tenant to make this application?\n(select drop-down)"]
[]
[null,"Woodland Creation Planning Grant (WCPG)"]
[null,"Do you have an approved Forestry Commission WCPG?\n(select drop-down)"]
[null,"WCPG reference:"]
[null,"Is this EWCO application based on the final approved WCPG? \n(select drop-down)"]
[]
[null,"Low Sensitivity Land Incentives"]
[]
[null,"Is your proposal within a low sensitivity area for woodland creation?\n(select drop-down)"]
[null,"If eligible, would you like to claim the Low Sensitivity Land Payment (£1,100 per hectare)?\n(select drop-down)"]
[]
[null,"Third-party funding"]
[null,"Will any element of this project be funded by a third-party (i.e. not the beneficiary)?"]

{"sheet":"2 - Applicant Details","index":2,"n_rows":46,"n_cols":4,"rows_kept":46,"cut":false,"hidden":false,"merged":[[43,1,43,3],[44,1,44,3],[45,2,45,3],[3,1,3,4],[10,2,10,4],[5,2,5,3],[6,2,6,3],[39,1,39,3],[38,1,38,3],[40,2,40,3],[41,2,41,3],[25,2,25,4],[26,2,26,4],[34,2,34,4],[35,2,35,4],[36,1,36,4],[11,11,11,12],[8,1,8,4],[9,2,9,4],[24,2,24,4],[16,2,16,4],[17,2,17,4],[20,2,20,4],[18,2,18,4],[19,2,19,4],[22,1,22,4],[23,2,23,4],[11,2,11,4],[12,2,12,4],[13,2,13,4],[14,2,14,4],[15,2,15,4],[27,2,27,4],[28,2,28,4],[29,2,29,4],[31,1,31,4],[33,2,33,4],[32,1,32,4]]}
[]
[null,"Section 2 - Applicant Details"]
[]
[]
[]
[null,"EWCO reference:",{"$f":"IF('1 - Site Details'!C7=\"\",\"\",'1 - Site Details'!C7)","v":""}]
[null,"Site/property name:",{"$f":"IF('1 - Site Details'!C8=\"\",\"\",'1 - Site Details'!C8)","v":""}]
[]
[null,"Lead Applicant"]
[null,"Title:"]
[null,"Forename(s):"]
[null,"Surname:"]
[null,"Landline telephone number:"]
[null,"Mobile telephone number:"]
[null,"Email:"]
[null,"Address:"]
[null,"Town:"]
[null,"County:"]
[null,"Postcode:",null,"Country:"]
[null,"Country:"]
[null,"Preferred method of communication:\n(select drop-down)"]
[]
[null,"Business Details"]
[null,"Organisation:"]
[null,"Position:"]
[null,"Single Business Identifier (SBI):"]
[null,"Company Registration Number:\n(from Companies House)"]
[null,"Charity Number:\n(from Charity Commission)"]
[null,"Business type:\n(select drop-down)"]
[null,"Business size:\n(select drop-down)"]
[]
[null,"Agent"]
[null,"You must complete this section if an agent is authorised to act on behalf of the lead applicant in relation to this application. Agent correspondence in relation to this application will be via the email address stated on the Agent Authority Form. The Lead Applicant is responsible for notifying us of any changes to this arrangement."]
[null,"Is an agent authorised to act on behalf of the lead applicant for this application?\n(select drop-down)"]
[null,"Agent name:"]
[null,"Agent Authority Form:\n(select drop-down)"]
[]
[]
[null,"Engagement & monitoring"]
[null,"Please let us know how you heard about EWCO:"]
[null,"How did you hear about us:\n(select drop-down)"]
[null,"If other, please specify:"]
[]
[null,"Agent communication preferences"]
[null,"Complete this section if there is an authorised agent for this application."]
[null,"Agent - Applicant communication preferences:\n(select drop-down)"]

{"sheet":"3 - Land Summary","index":3,"n_rows":120,"n_cols":24,"rows_kept":120,"cut":false,"hidden":false,"merged":[[5,1,5,4],[6,1,6,4],[7,1,7,4],[8,1,8,4],[9,1,9,8],[17,12,17,13],[17,14,17,17],[17,10,17,11],[17,2,17,6],[11,3,11,6],[13,3,13,6],[11,8,11,9],[13,8,13,9]]}
[]
[null,"Section 3 - Land Summary"]
[]
[]
[]
[]
[]
[]
[]
[]
[]
[null,"EWCO reference:",null,{"$f":"IF('1 - Site Details'!C7=\"\",\"\",'1 - Site Details'!C7)","v":""},null,null,null,null,"Total gross area (ha):",null,{"$f":"ROUND(SUM($D$21:$D$120),2)","v":0}]
[]
[null,"Site/property name:",null,{"$f":"IF('1 - Site Details'!C8=\"\",\"\",'1 - Site Details'!C8)","v":""},null,null,null,null,"Total net area (ha):",null,{"$f":"ROUND(SUM($G$21:$G$120),2)","v":0}]
[]
[]
[null,"A","B","C","D","E","F","G","H","I","J","K","L","M","N","O","P","Q"]
[null,null,"Land Summary",null,null,null,null,null,"Natural Colonisation",null,"Soil Type & Cultivation",null,"Designations",null,"Agri-environment agreements",null,null,null,null,null,null,"Hide","Hide"]
[null,"ID\n\n(auto)","\nCentral grid reference and compartment reference \n(or Parcel ID where applicable)\n\n","\nGross area of compartment\n\n(gross hectares, including open space)","\nCurrent compartment land use\n\n(Please select from \ndropdown)","\nProposed % integral open space","\nProposed net area of woodland creation - excluding open space (ha)\n\n(auto)","\nWill natural colonisation be used as a proposed establishment method in this compartment?\n\n(Please select from dropdown)","\nIf yes, what amount of the net area will this cover? (ha)","\nIf yes, what is the predominant expected colonisation species?\n\n(Please select from dropdown)\n\n(use Species List for reference)","\nSoil Type\n\n(Please select from dropdown)","\nProposed cultivation technique\n\n (Please select from dropdown)","\nDoes this site have a statutory designation?","\nIf yes, what type of designation(s)?\n\n(e.g. National Park, SSSI, SAC, AONB, Scheduled Monument, …)\n\n(if more than one, separate with comma \",\")","\nIs there one or more current grant agreement(s) in this cpt?\n\n(Please select from dropdown)\n\nNote: if yes, your application may still be accepted","\nIf yes, confirm the type(s) of current grant agreement(s) in this cpt?\n\n(e.g. HLS, ELS, CS Mid Tier, …)\n\n(if more than one, separate with comma \",\")","\nIf yes, what is the reference for the current grant agreement(s)?\n\n(if more than one, separate with comma \",\")","\nIf yes, what is the expiry date of the current grant agreement(s)?\n\n(dd/mm/yyyy)\n\n(if more than one, separate with comma \",\")"]
[null,"E.g.","GR 123 456, 1a",5,"Arable",10,4.5,"Yes",1.5,"Native broadleaf","Brown earths","Hand screefing only","Yes","SSSI","Yes","ELS",30000,"2021-05-31",null,null,null,{"$f":"IF(C21=\"\",\"\",MAX(V$19:V19)+1)","v":""},{"$f":"IFERROR(INDEX(C21:C120,MATCH(ROW()-ROW($W$19),V20:V120,0)),\"\")","v":""}]
[null,{"$f":"IF(COUNTA(C21)>0,MAX($B$17:$B20)+1,\"\")","v":""},null,null,null,null,{"$f":"IFERROR(ROUND(IF((D21*(100-F21)/100)=0,\"\",(D21*(100-F21)/100)),2),\"\")","v":""},null,null,null,null,null,null,null,null,null,null,null,null,null,null,{"$f":"IF(C22=\"\",\"\",MAX(V$19:V20)+1)","v":""},"",{"$f":"IFERROR(G21-I21,\"\")","v":""}]
[null,{"$f":"IF(COUNTA(C22)>0,MAX($B$17:$B21)+1,\"\")","v":""},null,null,null,null,{"$f":"IFERROR(ROUND(IF((D22*(100-F22)/100)=0,\"\",(D22*(100-F22)/100)),2),\"\")","v":""},null,null,null,null,null,null,null,null,null,null,null,null,null,null,{"$f":"IF(C23=\"\",\"\",MAX(V$19:V21)+1)","v":""},"",{"$f":"IFERROR(G22-I22,\"\")","v":""}]
[null,{"$f":"IF(COUNTA(C23)>0,MAX($B$17:$B22)+1,\"\")","v":""},null,null,null,null,"",null,null,null,null,null,null,null,null,null,null,null,null,null,null,{"$f":"IF(C24=\"\",\"\",MAX(V$19:V22)+1)","v":""},"",""]
[null,{"$f":"IF(COUNTA(C24)>0,MAX($B$17:$B23)+1,\"\")","v":""},null,null,null,null,"",null,null,null,null,null,null,null,null,null,null,null,null,null,null,{"$f":"IF(C25=\"\",\"\",MAX(V$19:V23)+1)","v":""},"",""]
[null,{"$f":"IF(COUNTA(C25)>0,MAX($B$17:$B24)+1,\"\")","v":""},null,null,null,null,"",null,null,null,null,null,null,null,null,null,null,null,null,null,null,{"$f":"IF(C26=\"\",\"\",MAX(V$19:V24)+1)","v":""},"",""]
[null,{"$f":"IF(COUNTA(C26)>0,MAX($B$17:$B25)+1,\"\")","v":""},null,null,null,null,"",null,null,null,null,null,null,null,null,null,null,null,null,null,null,{"$f":"IF(C27=\"\",\"\",MAX(V$19:V25)+1)","v":""},"",""]
[null,{"$f":"IF(COUNTA(C27)>0,MAX($B$17:$B26)+1,\"\")","v":""},null,null,null,null,"",null,null,null,null,null,null,null,null,null,null,null,null,null,null,{"$f":"IF(C28=\"\",\"\",MAX(V$19:V26)+1)","v":""},"",""]
[null,{"$f":"IF(COUNTA(C28)>0,MAX($B$17:$B27)+1,\"\")","v":""},null,null,null,null,"",null,null,null,null,null,null,null,null,null,null,null,null,null,null,{"$f":"IF(C29=\"\",\"\",MAX(V$19:V27)+1)","v":""},"",""]
[null,{"$f":"IF(COUNTA(C29)>0,MAX($B$17:$B28)+1,\"\")","v":""},null,null,null,null,"",null,null,null,null,null,null,null,null,null,null,null,null,null,null,{"$f":"IF(C30=\"\",\"\",MAX(V$19:V28)+1)","v":""},"",""]
[null,{"$f":"IF(COUNTA(C30)>0,MAX($B$17:$B29)+1,\"\")","v":""},null,null,null,null,"",null,null,null,null,null,null,null,null,null,null,null,null,null,null,{"$f":"IF(C31=\"\",\"\",MAX(V$19:V29)+1)","v":""},"",""]
[null,{"$f":"IF(COUNTA(C31)>0,MAX($B$17:$B30)+1,\"\")","v":""},null,null,null,null,"",null,null,null,null,null,null,null,null,null,null,null,null,null,null,{"$f":"IF(C32=\"\",\"\",MAX(V$19:V30)+1)","v":""},"",""]
[null,{"$f":"IF(COUNTA(C32)>0,MAX($B$17:$B31)+1,\"\")","v":""},null,null,null,null,"",null,null,null,null,null,null,null,null,null,null,null,null,null,null,{"$f":"IF(C33=\"\",\"\",MAX(V$19:V31)+1)","v":""},"",""]
[null,{"$f":"IF(COUNTA(C33)>0,MAX($B$17:$B32)+1,\"\")","v":""},null,null,null,null,"",null,null,null,null,null,null,null,null,null,null,null,null,null,null,{"$f":"IF(C34=\"\",\"\",MAX(V$19:V32)+1)","v":""},"",""]
[null,{"$f":"IF(COUNTA(C34)>0,MAX($B$17:$B33)+1,\"\")","v":""},null,null,null,null,"",null,null,null,null,null,null,null,null,null,null,null,null,null,null,{"$f":"IF(C35=\"\",\"\",MAX(V$19:V33)+1)","v":""},"",""]
[null,{"$f":"IF(COUNTA(C35)>0,MAX($B$17:$B34)+1,\"\")","v":""},null,null,null,null,"",null,null,null,null,null,null,null,null,null,null,null,null,null,null,{"$f":"IF(C36=\"\",\"\",MAX(V$19:V34)+1)","v":""},"",{"$f":"IFERROR(G35-I35,\"\")","v":""}]
[null,{"$f":"IF(COUNTA(C36)>0,MAX($B$17:$B35)+1,\"\")","v":""},null,null,null,null,"",null,null,null,null,null,null,null,null,null,null,null,null,null,null,{"$f":"IF(C37=\"\",\"\",MAX(V$19:V35)+1)","v":""},"",""]
[null,{"$f":"IF(COUNTA(C37)>0,MAX($B$17:$B36)+1,\"\")","v":""},null,null,null,null,"",null,null,null,null,null,null,null,null,null,null,null,null,null,null,{"$f":"IF(C38=\"\",\"\",MAX(V$19:V36)+1)","v":""},"",""]
[null,{"$f":"IF(COUNTA(C38)>0,MAX($B$17:$B37)+1,\"\")","v":""},null,null,null,null,"",null,null,null,null,null,null,null,null,null,null,null,null,null,null,{"$f":"IF(C39=\"\",\"\",MAX(V$19:V37)+1)","v":""},"",""]
[null,{"$f":"IF(COUNTA(C39)>0,MAX($B$17:$B38)+1,\"\")","v":""},null,null,null,null,"",null,null,null,null,null,null,null,null,null,null,null,null,null,null,{"$f":"IF(C40=\"\",\"\",MAX(V$19:V38)+1)","v":""},"",""]
[null,{"$f":"IF(COUNTA(C40)>0,MAX($B$17:$B39)+1,\"\")","v":""},null,null,null,null,"",null,null,null,null,null,null,null,null,null,null,null,null,null,null,{"$f":"IF(C41=\"\",\"\",MAX(V$19:V39)+1)","v":""},"",""]
[null,{"$f":"IF(COUNTA(C41)>0,MAX($B$17:$B40)+1,\"\")","v":""},null,null,null,null,"",null,null,null,null,null,null,null,null,null,null,null,null,null,null,{"$f":"IF(C42=\"\",\"\",MAX(V$19:V40)+1)","v":""},"",""]
[null,{"$f":"IF(COUNTA(C42)>0,MAX($B$17:$B41)+1,\"\")","v":""},null,null,null,null,"",null,null,null,null,null,null,null,null,null,null,null,null,null,null,{"$f":"IF(C43=\"\",\"\",MAX(V$19:V41)+1)","v":""},"",""]
[null,{"$f":"IF(COUNTA(C43)>0,MAX($B$17:$B42)+1,\"\")","v":""},null,null,null,null,"",null,null,null,null,null,null,null,null,null,null,null,null,null,null,{"$f":"IF(C44=\"\",\"\",MAX(V$19:V42)+1)","v":""},"",""]
[null,{"$f":"IF(COUNTA(C44)>0,MAX($B$17:$B43)+1,\"\")","v":""},null,null,null,null,"",null,null,null,null,null,null,null,null,null,null,null,null,null,null,{"$f":"IF(C45=\"\",\"\",MAX(V$19:V43)+1)","v":""},"",""]
[null,{"$f":"IF(COUNTA(C45)>0,MAX($B$17:$B44)+1,\"\")","v":""},null,null,null,null,"",null,null,null,null,null,null,null,null,null,null,null,null,null,null,{"$f":"IF(C46=\"\",\"\",MAX(V$19:V44)+1)","v":""},"",""]
[null,{"$f":"IF(COUNTA(C46)>0,MAX($B$17:$B45)+1,\"\")","v":""},null,null,null,null,"",null,null,null,null,null,null,null,null,null,null,null,null,null,null,{"$f":"IF(C47=\"\",\"\",MAX(V$19:V45)+1)","v":""},"",""]
[null,{"$f":"IF(COUNTA(C47)>0,MAX($B$17:$B46)+1,\"\")","v":""},null,null,null,null,"",null,null,null,null,null,null,null,null,null,null,null,null,null,null,{"$f":"IF(C48=\"\",\"\",MAX(V$19:V46)+1)","v":""},"",""]
[null,{"$f":"IF(COUNTA(C48)>0,MAX($B$17:$B47)+1,\"\")","v":""},null,null,null,null,"",null,null,null,null,null,null,null,null,null,null,null,null,null,null,{"$f":"IF(C49=\"\",\"\",MAX(V$19:V47)+1)","v":""},"",""]
[null,{"$f":"IF(COUNTA(C49)>0,MAX($B$17:$B48)+1,\"\")","v":""},null,null,null,null,"",null,null,null,null,null,null,null,null,null,null,null,null,null,null,{"$f":"IF(C50=\"\",\"\",MAX(V$19:V48)+1)","v":""},"",""]
[null,{"$f":"IF(COUNTA(C50)>0,MAX($B$17:$B49)+1,\"\")","v":""},null,null,null,null,"",null,null,null,null,null,null,null,null,null,null,null,null,null,null,{"$f":"IF(C51=\"\",\"\",MAX(V$19:V49)+1)","v":""},"",""]
[null,{"$f":"IF(COUNTA(C51)>0,MAX($B$17:$B50)+1,\"\")","v":""},null,null,null,null,"",null,null,null,null,null,null,null,null,null,null,null,null,null,null,{"$f":"IF(C52=\"\",\"\",MAX(V$19:V50)+1)","v":""},"",""]
[null,{"$f":"IF(COUNTA(C52)>0,MAX($B$17:$B51)+1,\"\")","v":""},null,null,null,null,"",null,null,null,null,null,null,null,null,null,null,null,null,null,null,{"$f":"IF(C53=\"\",\"\",MAX(V$19:V51)+1)","v":""},{"$f":"IFERROR(INDEX(C53:C152,MATCH(ROW()-ROW($W$19),V52:V152,0)),\"\")","v":""},""]
[null,{"$f":"IF(COUNTA(C53)>0,MAX($B$17:$B52)+1,\"\")","v":""},null,null,null,null,"",null,null,null,null,null,null,null,null,null,null,null,null,null,null,{"$f":"IF(C54=\"\",\"\",MAX(V$19:V52)+1)","v":""},"",""]
[null,{"$f":"IF(COUNTA(C54)>0,MAX($B$17:$B53)+1,\"\")","v":""},null,null,null,null,"",null,null,null,null,null,null,null,null,null,null,null,null,null,null,{"$f":"IF(C55=\"\",\"\",MAX(V$19:V53)+1)","v":""},"",""]
[null,{"$f":"IF(COUNTA(C55)>0,MAX($B$17:$B54)+1,\"\")","v":""},null,null,null,null,"",null,null,null,null,null,null,null,null,null,null,null,null,null,null,{"$f":"IF(C56=\"\",\"\",MAX(V$19:V54)+1)","v":""},"",""]
[null,{"$f":"IF(COUNTA(C56)>0,MAX($B$17:$B55)+1,\"\")","v":""},null,null,null,null,"",null,null,null,null,null,null,null,null,null,null,null,null,null,null,{"$f":"IF(C57=\"\",\"\",MAX(V$19:V55)+1)","v":""},"",""]
[null,{"$f":"IF(COUNTA(C57)>0,MAX($B$17:$B56)+1,\"\")","v":""},null,null,null,null,"",null,null,null,null,null,null,null,null,null,null,null,null,null,null,{"$f":"IF(C58=\"\",\"\",MAX(V$19:V56)+1)","v":""},"",""]
[null,{"$f":"IF(COUNTA(C58)>0,MAX($B$17:$B57)+1,\"\")","v":""},null,null,null,null,"",null,null,null,null,null,null,null,null,null,null,null,null,null,null,{"$f":"IF(C59=\"\",\"\",MAX(V$19:V57)+1)","v":""},"",""]
[null,{"$f":"IF(COUNTA(C59)>0,MAX($B$17:$B58)+1,\"\")","v":""},null,null,null,null,"",null,null,null,null,null,null,null,null,null,null,null,null,null,null,{"$f":"IF(C60=\"\",\"\",MAX(V$19:V58)+1)","v":""},"",""]
[null,{"$f":"IF(COUNTA(C60)>0,MAX($B$17:$B59)+1,\"\")","v":""},null,null,null,null,"",null,null,null,null,null,null,null,null,null,null,null,null,null,null,{"$f":"IF(C61=\"\",\"\",MAX(V$19:V59)+1)","v":""},"",""]
[null,{"$f":"IF(COUNTA(C61)>0,MAX($B$17:$B60)+1,\"\")","v":""},null,null,null,null,"",null,null,null,null,null,null,null,null,null,null,null,null,null,null,{"$f":"IF(C62=\"\",\"\",MAX(V$19:V60)+1)","v":""},"",""]
[null,{"$f":"IF(COUNTA(C62)>0,MAX($B$17:$B61)+1,\"\")","v":""},null,null,null,null,"",null,null,null,null,null,null,null,null,null,null,null,null,null,null,{"$f":"IF(C63=\"\",\"\",MAX(V$19:V61)+1)","v":""},"",""]
[null,{"$f":"IF(COUNTA(C63)>0,MAX($B$17:$B62)+1,\"\")","v":""},null,null,null,null,"",null,null,null,null,null,null,null,null,null,null,null,null,null,null,{"$f":"IF(C64=\"\",\"\",MAX(V$19:V62)+1)","v":""},"",""]
[null,{"$f":"IF(COUNTA(C64)>0,MAX($B$17:$B63)+1,\"\")","v":""},null,null,null,null,"",null,null,null,null,null,null,null,null,null,null,null,null,null,null,{"$f":"IF(C65=\"\",\"\",MAX(V$19:V63)+1)","v":""},"",""]
[null,{"$f":"IF(COUNTA(C65)>0,MAX($B$17:$B64)+1,\"\")","v":""},null,null,null,null,"",null,null,null,null,null,null,null,null,null,null,null,null,null,null,{"$f":"IF(C66=\"\",\"\",MAX(V$19:V64)+1)","v":""},"",""]
[null,{"$f":"IF(COUNTA(C66)>0,MAX($B$17:$B65)+1,\"\")","v":""},null,null,null,null,"",null,null,null,null,null,null,null,null,null,null,null,null,null,null,{"$f":"IF(C67=\"\",\"\",MAX(V$19:V65)+1)","v":""},"",""]
[null,{"$f":"IF(COUNTA(C67)>0,MAX($B$17:$B66)+1,\"\")","v":""},null,null,null,null,"",null,null,null,null,null,null,null,null,null,null,null,null,null,null,{"$f":"IF(C68=\"\",\"\",MAX(V$19:V66)+1)","v":""},"",""]
[null,{"$f":"IF(COUNTA(C68)>0,MAX($B$17:$B67)+1,\"\")","v":""},null,null,null,null,"",null,null,null,null,null,null,null,null,null,null,null,null,null,null,{"$f":"IF(C69=\"\",\"\",MAX(V$19:V67)+1)","v":""},"",""]
[null,{"$f":"IF(COUNTA(C69)>0,MAX($B$17:$B68)+1,\"\")","v":""},null,null,null,null,"",null,null,null,null,null,null,null,null,null,null,null,null,null,null,{"$f":"IF(C70=\"\",\"\",MAX(V$19:V68)+1)","v":""},"",""]
[null,{"$f":"IF(COUNTA(C70)>0,MAX($B$17:$B69)+1,\"\")","v":""},null,null,null,null,"",null,null,null,null,null,null,null,null,null,null,null,null,null,null,{"$f":"IF(C71=\"\",\"\",MAX(V$19:V69)+1)","v":""},"",""]
[null,{"$f":"IF(COUNTA(C71)>0,MAX($B$17:$B70)+1,\"\")","v":""},null,null,null,null,"",null,null,null,null,null,null,null,null,null,null,null,null,null,null,{"$f":"IF(C72=\"\",\"\",MAX(V$19:V70)+1)","v":""},"",""]
[null,{"$f":"IF(COUNTA(C72)>0,MAX($B$17:$B71)+1,\"\")","v":""},null,null,null,null,"",null,null,null,null,null,null,null,null,null,null,null,null,null,null,{"$f":"IF(C73=\"\",\"\",MAX(V$19:V71)+1)","v":""},"",""]
[null,{"$f":"IF(COUNTA(C73)>0,MAX($B$17:$B72)+1,\"\")","v":""},null,null,null,null,"",null,null,null,null,null,null,null,null,null,null,null,null,null,null,{"$f":"IF(C74=\"\",\"\",MAX(V$19:V72)+1)","v":""},"",""]
[null,{"$f":"IF(COUNTA(C74)>0,MAX($B$17:$B73)+1,\"\")","v":""},null,null,null,null,"",null,null,null,null,null,null,null,null,null,null,null,null,null,null,{"$f":"IF(C75=\"\",\"\",MAX(V$19:V73)+1)","v":""},"",""]
[null,{"$f":"IF(COUNTA(C75)>0,MAX($B$17:$B74)+1,\"\")","v":""},null,null,null,null,"",null,null,null,null,null,null,null,null,null,null,null,null,null,null,{"$f":"IF(C76=\"\",\"\",MAX(V$19:V74)+1)","v":""},"",""]
[null,{"$f":"IF(COUNTA(C76)>0,MAX($B$17:$B75)+1,\"\")","v":""},null,null,null,null,"",null,null,null,null,null,null,null,null,null,null,null,null,null,null,{"$f":"IF(C77=\"\",\"\",MAX(V$19:V75)+1)","v":""},"",""]
[null,{"$f":"IF(COUNTA(C77)>0,MAX($B$17:$B76)+1,\"\")","v":""},null,null,null,null,"",null,null,null,null,null,null,null,null,null,null,null,null,null,null,{"$f":"IF(C78=\"\",\"\",MAX(V$19:V76)+1)","v":""},"",""]
[null,{"$f":"IF(COUNTA(C78)>0,MAX($B$17:$B77)+1,\"\")","v":""},null,null,null,null,"",null,null,null,null,null,null,null,null,null,null,null,null,null,null,{"$f":"IF(C79=\"\",\"\",MAX(V$19:V77)+1)","v":""},"",""]
[null,{"$f":"IF(COUNTA(C79)>0,MAX($B$17:$B78)+1,\"\")","v":""},null,null,null,null,"",null,null,null,null,null,null,null,null,null,null,null,null,null,null,{"$f":"IF(C80=\"\",\"\",MAX(V$19:V78)+1)","v":""},"",""]
[null,{"$f":"IF(COUNTA(C80)>0,MAX($B$17:$B79)+1,\"\")","v":""},null,null,null,null,"",null,null,null,null,null,null,null,null,null,null,null,null,null,null,{"$f":"IF(C81=\"\",\"\",MAX(V$19:V79)+1)","v":""},"",""]
[null,{"$f":"IF(COUNTA(C81)>0,MAX($B$17:$B80)+1,\"\")","v":""},null,null,null,null,"",null,null,null,null,null,null,null,null,null,null,null,null,null,null,{"$f":"IF(C82=\"\",\"\",MAX(V$19:V80)+1)","v":""},"",""]
[null,{"$f":"IF(COUNTA(C82)>0,MAX($B$17:$B81)+1,\"\")","v":""},null,null,null,null,"",null,null,null,null,null,null,null,null,null,null,null,null,null,null,{"$f":"IF(C83=\"\",\"\",MAX(V$19:V81)+1)","v":""},"",""]
[null,{"$f":"IF(COUNTA(C83)>0,MAX($B$17:$B82)+1,\"\")","v":""},null,null,null,null,"",null,null,null,null,null,null,null,null,null,null,null,null,null,null,{"$f":"IF(C84=\"\",\"\",MAX(V$19:V82)+1)","v":""},"",""]
[null,{"$f":"IF(COUNTA(C84)>0,MAX($B$17:$B83)+1,\"\")","v":""},null,null,null,null,{"$f":"IFERROR(ROUND(IF((D84*(100-F84)/100)=0,\"\",(D84*(100-F84)/100)),2),\"\")","v":""},null,null,null,null,null,null,null,null,null,null,null,null,null,null,{"$f":"IF(C85=\"\",\"\",MAX(V$19:V83)+1)","v":""},{"$f":"IFERROR(INDEX(C85:C184,MATCH(ROW()-ROW($W$19),V84:V184,0)),\"\")","v":""},""]
[null,{"$f":"IF(COUNTA(C85)>0,MAX($B$17:$B84)+1,\"\")","v":""},null,null,null,null,"",null,null,null,null,null,null,null,null,null,null,null,null,null,null,{"$f":"IF(C86=\"\",\"\",MAX(V$19:V84)+1)","v":""},"",{"$f":"IFERROR(G85-I85,\"\")","v":""}]
[null,{"$f":"IF(COUNTA(C86)>0,MAX($B$17:$B85)+1,\"\")","v":""},null,null,null,null,{"$f":"IFERROR(ROUND(IF((D86*(100-F86)/100)=0,\"\",(D86*(100-F86)/100)),2),\"\")","v":""},null,null,null,null,null,null,null,null,null,null,null,null,null,null,{"$f":"IF(C87=\"\",\"\",MAX(V$19:V85)+1)","v":""},"",""]
[null,{"$f":"IF(COUNTA(C87)>0,MAX($B$17:$B86)+1,\"\")","v":""},null,null,null,null,"",null,null,null,null,null,null,null,null,null,null,null,null,null,null,{"$f":"IF(C88=\"\",\"\",MAX(V$19:V86)+1)","v":""},"",""]
[null,{"$f":"IF(COUNTA(C88)>0,MAX($B$17:$B87)+1,\"\")","v":""},null,null,null,null,"",null,null,null,null,null,null,null,null,null,null,null,null,null,null,{"$f":"IF(C89=\"\",\"\",MAX(V$19:V87)+1)","v":""},"",""]
[null,{"$f":"IF(COUNTA(C89)>0,MAX($B$17:$B88)+1,\"\")","v":""},null,null,null,null,"",null,null,null,null,null,null,null,null,null,null,null,null,null,null,{"$f":"IF(C90=\"\",\"\",MAX(V$19:V88)+1)","v":""},"",""]
[null,{"$f":"IF(COUNTA(C90)>0,MAX($B$17:$B89)+1,\"\")","v":""},null,null,null,null,"",null,null,null,null,null,null,null,null,null,null,null,null,null,null,{"$f":"IF(C91=\"\",\"\",MAX(V$19:V89)+1)","v":""},"",""]
[null,{"$f":"IF(COUNTA(C91)>0,MAX($B$17:$B90)+1,\"\")","v":""},null,null,null,null,"",null,null,null,null,null,null,null,null,null,null,null,null,null,null,{"$f":"IF(C92=\"\",\"\",MAX(V$19:V90)+1)","v":""},"",""]
[null,{"$f":"IF(COUNTA(C92)>0,MAX($B$17:$B91)+1,\"\")","v":""},null,null,null,null,"",null,null,null,null,null,null,null,null,null,null,null,null,null,null,{"$f":"IF(C93=\"\",\"\",MAX(V$19:V91)+1)","v":""},"",""]
[null,{"$f":"IF(COUNTA(C93)>0,MAX($B$17:$B92)+1,\"\")","v":""},null,null,null,null,"",null,null,null,null,null,null,null,null,null,null,null,null,null,null,{"$f":"IF(C94=\"\",\"\",MAX(V$19:V92)+1)","v":""},"",""]
[null,{"$f":"IF(COUNTA(C94)>0,MAX($B$17:$B93)+1,\"\")","v":""},null,null,null,null,"",null,null,null,null,null,null,null,null,null,null,null,null,null,null,{"$f":"IF(C95=\"\",\"\",MAX(V$19:V93)+1)","v":""},"",""]
[null,{"$f":"IF(COUNTA(C95)>0,MAX($B$17:$B94)+1,\"\")","v":""},null,null,null,null,"",null,null,null,null,null,null,null,null,null,null,null,null,null,null,{"$f":"IF(C96=\"\",\"\",MAX(V$19:V94)+1)","v":""},"",""]
[null,{"$f":"IF(COUNTA(C96)>0,MAX($B$17:$B95)+1,\"\")","v":""},null,null,null,null,"",null,null,null,null,null,null,null,null,null,null,null,null,null,null,{"$f":"IF(C97=\"\",\"\",MAX(V$19:V95)+1)","v":""},"",""]
[null,{"$f":"IF(COUNTA(C97)>0,MAX($B$17:$B96)+1,\"\")","v":""},null,null,null,null,"",null,null,null,null,null,null,null,null,null,null,null,null,null,null,{"$f":"IF(C98=\"\",\"\",MAX(V$19:V96)+1)","v":""},"",""]
[null,{"$f":"IF(COUNTA(C98)>0,MAX($B$17:$B97)+1,\"\")","v":""},null,null,null,null,"",null,null,null,null,null,null,null,null,null,null,null,null,null,null,{"$f":"IF(C99=\"\",\"\",MAX(V$19:V97)+1)","v":""},"",""]
[null,{"$f":"IF(COUNTA(C99)>0,MAX($B$17:$B98)+1,\"\")","v":""},null,null,null,null,"",null,null,null,null,null,null,null,null,null,null,null,null,null,null,{"$f":"IF(C100=\"\",\"\",MAX(V$19:V98)+1)","v":""},"",""]
[null,{"$f":"IF(COUNTA(C100)>0,MAX($B$17:$B99)+1,\"\")","v":""},null,null,null,null,"",null,null,null,null,null,null,null,null,null,null,null,null,null,null,{"$f":"IF(C101=\"\",\"\",MAX(V$19:V99)+1)","v":""},"",""]
[null,{"$f":"IF(COUNTA(C101)>0,MAX($B$17:$B100)+1,\"\")","v":""},null,null,null,null,"",null,null,null,null,null,null,null,null,null,null,null,null,null,null,{"$f":"IF(C102=\"\",\"\",MAX(V$19:V100)+1)","v":""},"",""]
[null,{"$f":"IF(COUNTA(C102)>0,MAX($B$17:$B101)+1,\"\")","v":""},null,null,null,null,"",null,null,null,null,null,null,null,null,null,null,null,null,null,null,{"$f":"IF(C103=\"\",\"\",MAX(V$19:V101)+1)","v":""},"",""]
[null,{"$f":"IF(COUNTA(C103)>0,MAX($B$17:$B102)+1,\"\")","v":""},null,null,null,null,"",null,null,null,null,null,null,null,null,null,null,null,null,null,null,{"$f":"IF(C104=\"\",\"\",MAX(V$19:V102)+1)","v":""},"",""]
[null,{"$f":"IF(COUNTA(C104)>0,MAX($B$17:$B103)+1,\"\")","v":""},null,null,null,null,"",null,null,null,null,null,null,null,null,null,null,null,null,null,null,{"$f":"IF(C105=\"\",\"\",MAX(V$19:V103)+1)","v":""},"",""]
[null,{"$f":"IF(COUNTA(C105)>0,MAX($B$17:$B104)+1,\"\")","v":""},null,null,null,null,"",null,null,null,null,null,null,null,null,null,null,null,null,null,null,{"$f":"IF(C106=\"\",\"\",MAX(V$19:V104)+1)","v":""},"",""]
[null,{"$f":"IF(COUNTA(C106)>0,MAX($B$17:$B105)+1,\"\")","v":""},null,null,null,null,"",null,null,null,null,null,null,null,null,null,null,null,null,null,null,{"$f":"IF(C107=\"\",\"\",MAX(V$19:V105)+1)","v":""},"",""]
[null,{"$f":"IF(COUNTA(C107)>0,MAX($B$17:$B106)+1,\"\")","v":""},null,null,null,null,"",null,null,null,null,null,null,null,null,null,null,null,null,null,null,{"$f":"IF(C108=\"\",\"\",MAX(V$19:V106)+1)","v":""},"",""]
[null,{"$f":"IF(COUNTA(C108)>0,MAX($B$17:$B107)+1,\"\")","v":""},null,null,null,null,"",null,null,null,null,null,null,null,null,null,null,null,null,null,null,{"$f":"IF(C109=\"\",\"\",MAX(V$19:V107)+1)","v":""},"",""]
[null,{"$f":"IF(COUNTA(C109)>0,MAX($B$17:$B108)+1,\"\")","v":""},null,null,null,null,"",null,null,null,null,null,null,null,null,null,null,null,null,null,null,{"$f":"IF(C110=\"\",\"\",MAX(V$19:V108)+1)","v":""},"",""]
[null,{"$f":"IF(COUNTA(C110)>0,MAX($B$17:$B109)+1,\"\")","v":""},null,null,null,null,"",null,null,null,null,null,null,null,null,null,null,null,null,null,null,{"$f":"IF(C111=\"\",\"\",MAX(V$19:V109)+1)","v":""},"",""]
[null,{"$f":"IF(COUNTA(C111)>0,MAX($B$17:$B110)+1,\"\")","v":""},null,null,null,null,"",null,null,null,null,null,null,null,null,null,null,null,null,null,null,{"$f":"IF(C112=\"\",\"\",MAX(V$19:V110)+1)","v":""},"",""]
[null,{"$f":"IF(COUNTA(C112)>0,MAX($B$17:$B111)+1,\"\")","v":""},null,null,null,null,"",null,null,null,null,null,null,null,null,null,null,null,null,null,null,{"$f":"IF(C113=\"\",\"\",MAX(V$19:V111)+1)","v":""},"",""]
[null,{"$f":"IF(COUNTA(C113)>0,MAX($B$17:$B112)+1,\"\")","v":""},null,null,null,null,"",null,null,null,null,null,null,null,null,null,null,null,null,null,null,{"$f":"IF(C114=\"\",\"\",MAX(V$19:V112)+1)","v":""},"",""]
[null,{"$f":"IF(COUNTA(C114)>0,MAX($B$17:$B113)+1,\"\")","v":""},null,null,null,null,"",null,null,null,null,null,null,null,null,null,null,null,null,null,null,{"$f":"IF(C115=\"\",\"\",MAX(V$19:V113)+1)","v":""},"",""]
[null,{"$f":"IF(COUNTA(C115)>0,MAX($B$17:$B114)+1,\"\")","v":""},null,null,null,null,"",null,null,null,null,null,null,null,null,null,null,null,null,null,null,{"$f":"IF(C116=\"\",\"\",MAX(V$19:V114)+1)","v":""},"",""]
[null,{"$f":"IF(COUNTA(C116)>0,MAX($B$17:$B115)+1,\"\")","v":""},null,null,null,null,"",null,null,null,null,null,null,null,null,null,null,null,null,null,null,{"$f":"IF(C117=\"\",\"\",MAX(V$19:V115)+1)","v":""},{"$f":"IFERROR(INDEX(C117:C216,MATCH(ROW()-ROW($W$19),V116:V216,0)),\"\")","v":""},""]
[null,{"$f":"IF(COUNTA(C117)>0,MAX($B$17:$B116)+1,\"\")","v":""},null,null,null,null,"",null,null,null,null,null,null,null,null,null,null,null,null,null,null,{"$f":"IF(C118=\"\",\"\",MAX(V$19:V116)+1)","v":""},"",""]
[null,{"$f":"IF(COUNTA(C118)>0,MAX($B$17:$B117)+1,\"\")","v":""},null,null,null,null,"",null,null,null,null,null,null,null,null,null,null,null,null,null,null,{"$f":"IF(C119=\"\",\"\",MAX(V$19:V117)+1)","v":""},"",""]
[null,{"$f":"IF(COUNTA(C119)>0,MAX($B$17:$B118)+1,\"\")","v":""},null,null,null,null,"",null,null,null,null,null,null,null,null,null,null,null,null,null,null,{"$f":"IF(C120=\"\",\"\",MAX(V$19:V118)+1)","v":""},"",""]
[null,{"$f":"IF(COUNTA(C120)>0,MAX($B$17:$B119)+1,\"\")","v":""},null,null,null,null,"",null,null,null,null,null,null,null,null,null,null,null,null,null,null,{"$f":"IF(C121=\"\",\"\",MAX(V$19:V119)+1)","v":""},"",""]

{"sheet":"WCP 1 - Outline","index":4,"n_rows":18,"n_cols":5,"rows_kept":18,"cut":false,"hidden":false,"merged":[[5,1,5,4],[13,3,13,4],[14,3,14,4],[4,1,4,2],[15,4,17,4],[12,1,12,4],[13,1,13,2],[14,1,14,2],[15,1,15,2],[16,1,16,2],[17,1,17,2],[9,2,9,3],[10,2,10,3],[6,1,6,2],[7,1,7,2]]}
[]
[null,"Woodland Creation Plan 1 - Outline"]
[]
[]
[]
[]
[]
[]
[]
[null,"EWCO reference:",{"$f":"IF('1 - Site Details'!C7=\"\",\"\",'1 - Site Details'!C7)","v":""}]
[null,"Site/property name:",{"$f":"IF('1 - Site Details'!C8=\"\",\"\",'1 - Site Details'!C8)","v":""}]
[]
[null,"Outline"]
[null,"What is the long term vision for the new woodland?\nPlease see EWCO priority objectives on tab '9 - Scoring' which should inform your vision.\n"]
[null,"Further notes:\nInclude details of any additional planting that you will be carrying out that is not included in this application and a summary of any capital items required to establish and protect your woodland (see '6 - Standard Cost Items').\n\n"]
[null,"How many hectares of afforestation have been completed (i.e., planted but not necessarily established) on adjacent sites within the past five years?",null,null,"Any EIA afforestation projects completed (i.e., planted but not established) within the last five years that are adjacent to your proposal must be considered by the FC when reviewing your proposal. This may change your proposal area and therefore how the FC processes your application. If in doubt please get in touch with the FC to see whether it should be considered adjacent for the purpose of EIA thresholds."]
[null,"Total gross area of your proposal (ha) including this application and above adjacent projects \n(auto-calculated)",null,{"$f":"SUM('3 - Land Summary'!K12,'WCP 1 - Outline'!D16)","v":0}]
[null,"Do adjacent projects sit within or affect additional sensitive areas not covered by your proposal? \n(select drop-down)"]

{"sheet":"WCP 2 - Objectives & Threats","index":5,"n_rows":14,"n_cols":4,"rows_kept":14,"cut":false,"hidden":false,"merged":[[11,1,11,3],[5,1,5,2]]}
[]
[null,"Woodland Creation Plan 2 - Objectives & Threats "]
[]
[]
[]
[]
[]
[]
[null,"EWCO reference:",{"$f":"IF('1 - Site Details'!C7=\"\",\"\",'1 - Site Details'!C7)","v":""}]
[null,"Site/property name:",{"$f":"IF('1 - Site Details'!C8=\"\",\"\",'1 - Site Details'!C8)","v":""}]
[]
[null,"Objectives & Threats"]
[null,"Woodland Creation Objective","Threat(s) to achieving this objective (if any)","Measures to be undertaken to mitigate threat(s)"]
[null,"E.g., By the end of Year 10 to have created 5 ha of woodland habitat for priority species black grouse along moorland edge.","E.g., Deer browsing","E.g., Deer fencing to be installed around compartment 1, with tree shelters used in compartment 2."]

{"sheet":"WCP 3 - Constraints","index":6,"n_rows":37,"n_cols":8,"rows_kept":37,"cut":false,"hidden":false,"merged":[[36,1,36,3],[37,1,37,3],[36,4,37,4],[34,5,35,6],[36,5,37,6],[32,1,32,3],[32,4,33,4],[32,5,33,6],[34,1,34,3],[35,1,35,3],[34,4,35,4],[29,1,29,3],[28,4,29,4],[28,5,29,6],[30,1,30,3],[30,4,31,4],[30,5,31,6],[28,1,28,3],[25,5,27,6],[24,5,24,6],[6,2,6,4],[7,2,7,4],[9,1,9,6],[10,1,10,6],[25,1,25,3],[26,1,26,3],[27,1,27,3],[25,4,27,4]]}
[]
[null,"Woodland Creation Plan 3 - Constraints"]
[]
[]
[]
[]
[null,"EWCO reference:",{"$f":"IF('1 - Site Details'!C7=\"\",\"\",'1 - Site Details'!C7)","v":""}]
[null,"Site/property name:",{"$f":"IF('1 - Site Details'!C8=\"\",\"\",'1 - Site Details'!C8)","v":""}]
[]
[null,"Designations"]
[null,"Please complete details of any designations on the land in your application using the following table. You should also provide evidence of any advice obtained; for example, from Natural England."]
[null,"\nDesignation\nLand owners are legally obliged to take account of these designations","\nPresent on the land in your application?\n\n\n(select drop-down)","\nAdjacent land, or land that could be affected by your application?\n\n(select drop-down)","\nIf yes, which compartment(s) are affected?\n \n\n(list all if multiple)","\nDesignation Details\n(E.g., name and reference number)","\nMitigation\nHow will you ensure that the designated area(s) is maintained in line with your legal responsibilities \nin connection to your proposal?","Is evidence on the checks you have made included with your application? \n(Select Yes or No from the dropdown)"]
[null,"\nSite of Special Scientific Interest (SSSI), or Proposed SSSI (PSSSI)\n\nAlthough Sites of Special Scientific Interest are mapped,\nproposed SSSIs are not. If your land has been proposed as an SSSI then the land owner will have received communications from Natural England about the proposal. Declare the proposed SSSI here. If you have not received a notification from Natural England then you may assume that the land is not a proposed SSSI. Agents must check with their clients prior to making this assumption.\n"]
[null,"\nNational Park\n"]
[null,"\nThe Norfolk Broads\n\nMapped as a National Park.\n"]
[null,"\nWorld Heritage Site, including their designated buffer zone\n"]
[null,"\nScheduled Monument\n"]
[null,"\nArea of Outstanding Natural Beauty (AONB)\n"]
[null,"\nSpecial Area of Conservation (SAC)\n"]
[null,"\nSpecial Protection Area (SPA)\n"]
[null,"\nRamsar Sites\n"]
[null,"\nNational Nature Reserve\n"]
[null,"\nLocal Nature Reserves and Local Wildlife Sites (including Sites of Importance for Nature Conservation (SINCs), Sites of Nature Conservation Importance (SNCIs) and County Wildlife Sites).\n\nThe forestry EIA regulations list ‘local’ nature reserves\nthat are not designated by local authorities as a ‘sensitive area.’ These are nature reserves that are designated by bodies other than the local authority, such as a National Park Authority or town or parish council. There are fewer nature reserves that are in this category. 'Local Nature Reserves' will be mapped on Forestry Commission’s Land Information Search and DEFRA’S MAGIC Map.\nLocal Wildlife Sites are not currently mapped on LIS. For LWS boundary information, contact your Local Environmental Records Centre.\nIf a search indicates a local nature reserve on your land, check Natural England’s Designated Sites page to see whether its declaring authority is a local authority (such as a borough or county council) or otherwise (e.g. a National Park Authority). If the declaring authority is not a local authority, the local nature reserve will be considered a sensitive area.\n"]
[]
[null,"Other constraints",null,null,"(select drop-down)","Comments"]
[null,"Is the whole of the proposal within a Low Risk area for woodland creation as mapped? (select drop-down)"]
[]
[null,"This information layer is pre-screened for major environmental and land use concerns and confirming this layer is in place will help the FC make its determination. When you run the search, low risk land will appear as a ‘low risk area for woodland creation.’"]
[null,"Have you considered the impact this proposal will have on wild birds, the area and diversity habitat(s) for wild birds?\n(select drop-down)"]
[null,"Please specify the expected impact and how you intend to mitigate this in the comments box."]
[null,"Are you aware of the Good Practice to safeguard European Protected Species (EPS) during forestry operations and the need to obtain a licence if you cannot comply with the Good Practice? \n(select drop-down)"]
[]
[null,"Are you aware of the Good Practice to safeguard badgers during forestry operations and the need to obtain a licence if you cannot comply with the Good Practice?\n(select drop-down)"]
[]
[null,"Is the woodland being created in the catchment of a water body which has a designation (E.g., a Special Area of Conservation)? \n(select drop-down)"]
[null,"If yes, please explain the potential effects this new woodland might have on the designated water body and explain how you will ensure the designated feature(s) is/are maintained."]
[null,"Have you undertaken a wildfire risk assessment and can demonstrate effective control measures to protect new and existing forests, woodlands and other surrounding land uses?\n(select drop-down)"]

{"sheet":"WCP 4 - Envt Checks","index":7,"n_rows":43,"n_cols":9,"rows_kept":43,"cut":false,"hidden":false,"merged":[[8,2,8,4],[9,2,9,4],[33,2,34,2],[33,3,34,3],[33,4,34,4],[13,3,15,3],[13,2,15,2],[13,4,15,4],[28,3,30,3],[28,4,30,4],[26,3,27,3],[26,4,27,4],[17,2,18,2],[17,4,18,4],[17,3,18,3],[23,2,25,2],[21,2,22,2],[31,2,32,2],[26,2,27,2],[28,2,30,2],[17,6,18,6],[17,5,18,5],[21,3,22,3],[21,4,22,4],[21,5,22,5],[23,5,25,5],[31,3,32,3],[31,4,32,4],[23,3,25,3],[23,4,25,4],[42,2,43,2],[37,2,38,2],[42,3,43,3],[42,4,43,4],[42,5,43,5],[37,3,38,3],[37,4,38,4],[37,5,38,5],[40,2,41,2],[40,3,41,3],[40,4,41,4],[13,6,15,6],[13,5,15,5],[33,5,34,5],[28,5,30,5],[42,6,43,6],[37,6,38,6],[40,5,41,5],[40,6,41,6],[31,5,32,5],[21,6,35,6],[26,5,27,5]]}
[]
[null,"Woodland Creation Plan 4 - Environmental Checks"]
[]
[]
[]
[]
[]
[]
[null,"EWCO reference:",{"$f":"IF('1 - Site Details'!C7=\"\",\"\",'1 - Site Details'!C7)","v":""}]
[null,"Site/property name:",{"$f":"IF('1 - Site Details'!C8=\"\",\"\",'1 - Site Details'!C8)","v":""}]
[]
[null,"HABITATS","Check\n(select drop-down)","If yes, which compartment(s) is affected?","Details\n(E.g., habitat feature - \"pond\")","Mitigation\nHow will you ensure that impacts from your proposal on these features are accounted for and mitigated where possible?","Evidence"]
[null,"Have any priority habitats (under section 41 of the Natural Environment and Rural Communities Act 2006) or habitat features been identified within, or which may be affected by, the proposal area?\n\nDefra’s MAGIC map will show whether your site has been mapped as a priority habitat. Go to Habitats and Species > Various Priority Habitat Inventory layers to check.",null,null,null,null,"You must provide evidence of this check by providing a map from Defra's MAGIC service."]
[null,"Have any protected species or species of principal importance, or other species important to the area, been identified within or which may be affected by the proposal area?\n\nYou must contact your Local Environment Record Centre (LERC) for information regarding habitats and species recorded on your land.",null,null,null,null,"You must contact your Local Environment Record Centre (LERC) and provide evidence that you have completed these checks with your application.\n\nPlease complete WCP 5 - Mandatory Contacts."]
[null,"You can use Defra’s MAGIC map and the Forestry Commission Map Browser to check for nearby RSPB reserves and RSPB important bird areas, and priority creation areas for red squirrels:"]
[]
[null,"HISTORIC ENVIRONMENT","Check\n(select drop-down)","If yes, which compartment(s) is affected?","Details \nE.g., National Heritage List number(s), HER record number(s) and name(s), HLC type","Mitigation\nHow will you ensure that impacts from your proposal on the historic environment are \naccounted for and mitigated where possible?","Evidence"]
[null,"Are there any designated heritage assets to consider? \n(E.g. World Heritage Sites and their buffer zones, Scheduled Monuments, Listed Buildings, Conservation Areas, Registered Battlefields or Registered Parks and Gardens)\n\nYou can use Defra's MAGIC map and correspond with the relevant Historic England area team:",null,null,null,null,"For designated heritage assets please provide a map taken from Defra's MAGIC map and correspondence with the relevant Historic England area team."]
[]
[null,"Have any local historic environment records identified features which may be affected by your proposal?\n\nPlease contact your local Historic Environment Record Centre / Archaelogy service.\n",null,null,null,null,"You must contact your Local Authority Historic Environment / Archaeology Service and obtain Historic Environment Record (HER) and Historic Landscape Characterisation (HLC) maps. \n\nIf local HLC data is not available, national HLC available in the ‘Landscape’ section of Defra’s MAGIC map can be used.\n\nPlease complete WCP 5 - Mandatory Contacts."]
[null,"WATER & SOILS","Check\n(select drop-down)","If yes, which compartment(s) is affected?","Details","Mitigation\nHow will you ensure that impacts from your proposal on water are accounted for and mitigated where possible?","Evidence"]
[null,"Have any public or private drinking water supplies been identified within the proposal area, or which may be affected by the project?\n",null,null,null,null,"Please evidence consultation with the Environment Agency or others in WCP 5 - Contacts, where appropriate."]
[]
[null,"Is the proposal in an area identified by the Environment Agency where groundwater are at poor quantitative status?"]
[null,"You can identify poor quantitative status by using the Forestry Commission Browser layer: Data < Targeting and scoring < W4W Less-than-good Quantitative Status\n"]
[]
[null,"Is the proposal in an area identified by the Environment Agency where acidification of surface water is an issue?\n"]
[null,"You can use the Forestry Commission Browser layer: Data < Targeting and scoring < CS Water – Water Quality – Acidification. You should look for areas that are ‘failing to meet good status’ and at ‘risk of failure’. \n"]
[null,"Is the proposal adjacent to a watercourse and/or does it affect flood defence structures or facilities?\n"]
[null,"You can use the Forestry Commission Browser layer: Data < Constraints < Flood Defences and Flood Storage Areas\n"]
[]
[null,"Is your proposal in an area identified by the Environment Agency (EA) as a Nitrate Vulnerable Zone or a Drinking Water Safeguard Zone?\n"]
[]
[null,"Is your proposal on or near an area of peaty soil?\n\nYou can use the Forestry Commission Map Browser to identify peaty soils (in the layer Targeting and scoring < Natural England Peat Map). These are labelled as deep peaty soils, shallow peaty soils and soils with peaty pockets. The peat map does not cover all peaty areas, so you should also conduct a thorough walkover of your site, or a soil survey, particularly where peaty soils are known to be nearby. Make sure you also consider your proposal’s impact on any bog or wetland habitat adjacent to your proposal.\n"]
[]
[null,"Have any other water features been identified within, or which may be affected by your proposal?\n\nYou can conduct a walkover survey to look for water features other than drinking water supplies and watercourses. This may include adits (mine entrances used for drainage), springs, seepage and wetland areas, ponds and lakes.\n",null,null,null,null,null,null,false]
[null,"OPEN ACCESS","Check\n(select drop-down)","If yes, which compartment(s) is affected?","Details\n(Please give the area (ha) in the proposal that is on Open Access land.)","Mitigation\nHow will you ensure that impacts from your proposal on Open Access are accounted for and mitigated where possible?","Evidence"]
[null,"Is the proposal in an area of Open Access land, as defined by the Countryside and Rights of Way Act (CROW)? \n\nYou can use Defra’s MAGIC map layers:\n• Access < Countryside and Rights of Way Act, Section 15 Land (England)\n• Access < Countyside and Rights of Way Act 2000 - Access Layer (England)\n• Access < Registered Common Land (England)",null,null,null,null,"Please evidence any consultation undertaken in WCP 5 - Contacts, where appropriate.",null,false]
[]
[null,"LANDSCAPE","Check\n(select drop-down)","Local Landscape Character Details\nE.g., what is the local landscape character called?","National Landscape Character Details\nE.g., what is the national landscape character called?","Mitigation\nHow will you ensure that impacts from your proposal on landscape character are accounted for and mitigated where possible?","Evidence"]
[null,"Does the local / national landscape character support afforestation in this location?\n\nYou can identify the national character area (NCA) on MAGIC, using the layer Landscape < Landscape Classifications < National Character Areas (England)\nUse the UK Forestry Standard’s guidelines on landscape (UKFS – Landscape, section 6.4) to make sure your proposal design accounts for local landscape characteristics:",null,null,null,null,"Please evidence any consultation undertaken in WCP 5 - Contacts, where appropriate.",null,true]
[]
[null,"From your records check, have any non-statutory Local Geological Sites been identified that may be affected by the proposal? \n\nThese are generally managed by the local environmental records centre (LERC).",null,null,null,null,"Please evidence any consultation undertaken in WCP 5 - Contacts, where appropriate.",null,false]

{"sheet":"WCP 5 - Contacts","index":8,"n_rows":18,"n_cols":10,"rows_kept":18,"cut":false,"hidden":false,"merged":[[6,2,6,3],[5,2,5,3],[10,1,10,2],[11,1,11,2],[12,1,12,2],[9,1,9,7],[8,1,8,7],[15,1,15,7],[16,1,16,7],[10,6,10,7],[11,6,11,7],[12,6,12,7]]}
[]
[null,"Woodland Creation Plan 5 - Contacts"]
[]
[]
[]
[null,"EWCO reference:",{"$f":"IF('1 - Site Details'!C7=\"\",\"\",'1 - Site Details'!C7)","v":""}]
[null,"Site/property name:",{"$f":"IF('1 - Site Details'!C8=\"\",\"\",'1 - Site Details'!C8)","v":""}]
[]
[null,"Mandatory Contacts"]
[]
[null,"Type",null,"Centre/Contact Name","Date contacted","Date feedback received","Evidence (select drop-down)"]
[null,"Local Environment Record Centre (LERC)\n"]
[null,"Historic Environment Record Centre (HERC)\n"]
[]
[]
[null,"Stakeholder Contacts",null,null,null,null,null,null,null,{"$f":"COUNT(B20:B38)","v":0}]
[null,"If no contacts are listed below, you are declaring that, to the best of your knowledge, there are no stakeholder interests in your project."]
[null,"Stakeholder \n(i.e. organisation name, private individual)","Contact Name","Email","Phone","Date Contacted","Date feedback received","Outcome\nNote any feedback and how you will incorporate this in your Woodland Creation Plan"]

{"sheet":"Species List","index":9,"n_rows":106,"n_cols":10,"rows_kept":106,"cut":false,"hidden":false,"merged":[[91,1,91,3],[48,1,48,3],[63,6,63,8],[68,6,68,8],[85,6,87,8],[84,6,84,8],[67,5,67,6],[11,5,11,6],[0,0,0,1],[0,5,0,6],[2,0,2,1],[2,5,2,6],[6,0,6,1],[6,5,6,6],[3,1,3,8],[5,1,5,7],[7,1,7,3],[7,6,7,8],[1,1,1,5],[12,5,12,6],[61,5,61,6],[62,5,62,6],[66,5,66,6],[13,6,13,8]]}
[]
[null,"EWCO Species List"]
[]
[null,"Please use this worksheet as a guide to species names and codes to support your England Woodland Creation Offer (EWCO) Application. This worksheet has been provided for use with the 4 - Species Breakdown tab, when detailing your proposal. This sheet is for information and supplementary to your application - you cannot edit this sheet.\n\nPlease note: Due to tree health issues, funding for the planting of ash (Fraxinus excelsior) or larch (Larix spp) is not available under EWCO. Ash will be permitted through natural colonisation and is listed for reporting purposes, but ash is not eligible for planting. No single species can form more than 70% of the overall planting mix.\n\nAdditionally, controls to safeguard woodland mean that spruce species cannot be planted or funded in the Ips typograhus demarcated area (DMA). For more information, see"]
[]
[null,"Species highlighted orange can be used but will be assessed for suitability by us if included in your application."]
[]
[null,"Native Broadleaf Species List",null,null,null,null,"Native Conifer Species List"]
[null,"Species Name","Scientific Name","Species Code",null,null,"Species Name","Scientific Name","Species Code"]
[null,"Mixed native broadleaves"," ","NBL",1,null,"Juniper","Juniperus communis","JUN",1]
[null,"Field maple","Acer campestre","FDM",1,null,"Yew","Taxus baccata","YEW",1]
[null,"Common alder","Alnus glutinosa","CAR",1]
[null,"Silver birch","Betula pendula","SBI",1]
[null,"Downy birch","Betula pubescens","DBI",1,null,"Non-Native Conifer Species List"]
[null,"Hornbeam","Carpinus betulus","HBM",1,null,"Species Name","Scientific Name","Species Code"]
[null,"Hazel","Corylus avellana","HAZ",1,null,"Mixed conifers"," ","MC",1]
[null,"Midland hawthorn","Crataegus laevigata","MDH",1,null,"Other conifers"," ","XC",1]
[null,"Hawthorn ","Crataegus monogyna","HAW",1,null,"European Silver fir","Abies alba","ESF",1]
[null,"Beech","Fagus sylvatica","BE",1,null,"Red (Pacific Silver) fir","Abies amabilis","PSF",1]
[null,"Ash","Fraxinus excelsior","AH",1,null,"Bornmullers fir","Abies bornmuelleriana","BMF",1]
[null,"Holly ","Ilex aquifolium","HOL",1,null,"Grecian fir","Abies cephalonica","GKF",1]
[null,"Crab apple","Malus sylvestris","CAP",1,null,"Grand fir","Abies grandis","GF",1]
[null,"Native black poplar","Populus nigra subsp. betulifolia","NPO",1,null,"Nordmann fir","Abies nordmanniana","NMF",1]
[null,"Grey poplar","Populus x canescens*","GPO",1,null,"Noble fir","Abies procera","NF",1]
[null,"Aspen","Populus tremula","ASP",1,null,"Other firs (Abies)","Abies spp.","XF",1]
[null,"Wild cherry/gean","Prunus avium","WCH",1,null,"Atlas cedar","Cedrus atlantica","ACR",1]
[null,"Bird cherry","Prunus padus","BCH",1,null,"Cedar of Lebanon","Cedrus libani","LCR",1]
[null,"Blackthorn","Prunus spinosa","SLO",1,null,"Other cedar","Cedrus spp.","XCD",1]
[null,"Pedunculate oak ","Quercus robur","POK",1,null,"Lawsons cypress","Chamaecyparis lawsoniana","LC",1]
[null,"Sessile oak ","Quercus petrea","SOK",1,null,"Japanese cedar","Cryptomeria japonica","JCR",1]
[null,"Purging buckthorn","Rhamnus cathartica","PGB",1,null,"Leyland cypress","Cupressocyparis leylandii","LEC",1]
[null,"White willow","Salix alba","WWI",1,null,"Norway spruce","Picea abies","NS",1]
[null,"Goat willow","Salix caprea","GOW",1,null,"Serbian spruce","Picea omorika","OMS",1]
[null,"Grey willow","Salix cinerea","GRW",1,null,"Oriental spruce","Picea orientalis","ORS",1]
[null,"Crack willow","Salix fragilis","CWI",1,null,"Sitka spruce","Picea sitchensis","SS",1]
[null,"Bay willow","Salix pentandra","BWI",1,null,"Other spruces","Picea spp.","XS",1]
[null,"Elder","Sambucus nigra","ELD",1,null,"Armand's pine","Pinus armandii","PAR",1]
[null,"Rowan","Sorbus aucuparia","ROW",1,null,"Mexican white pine","Pinus ayacahuite","PAY",1]
[null,"Whitebeam","Sorbus aria","WBM",1,null,"Calabrian pine","Pinus brutia","PBR",1]
[null,"Wild service tree","Sorbus torminalis","WST",1,null,"Lodgepole pine","Pinus contorta","LP",1]
[null,"Small-leaved lime","Tilia cordata","SLI",1,null,"Slash pine","Pinus ellottii","PEL",1]
[null,"Common lime","Tilia europaea","CLI",1,null,"Korean pine","Pinus koreana","PKO",1]
[null,"Large-leaved lime","Tilia platyphyllos","LLI",1,null,"Western white pine","Pinus monticola","PMO",1]
[null,"Wych elm","Ulmus glabra","WEM",1,null,"Bishop pine","Pinus muricata","BIP",1]
[null,"Small-leaved elm","Ulmus minor","PEM",1,null,"Corsican pine","Pinus nigra var maritima","CP",1]
[null,"English elm","Ulmus procera","EEM",1,null,"Austrian pine","Pinus nigra var nigra","AUP",1]
[null,null,null,null,null,null,"Macedonian pine","Pinus peuce","MCP",1]
[null,null,null,null,null,null,"Maritime pine","Pinus pinaster","MAP",1]
[null,"Non-Native Broadleaf Species List",null,null,null,null,"Ponderosa pine","Pinus ponderosa","PDP",1]
[null,"Species Name","Scientific Name","Species Code",null,null,"Monterey pine","Pinus radiata","RAP",1]
[null,"Mixed non-native broadleaves"," ","MB",1,null,"Other pines","Pinus spp.","XP",1]
[null,"Other non-native broadleaves"," ","XB",1,null,"Weymouth pine","Pinus strobus","WEP",1]
[null,"Big-leaf maple","Acer macrophyllum","BLM",1,null,"Loblolly pine","Pinus taeda","LOP",1]
[null,"Norway maple","Acer platanoides","NOM",1,null,"Mountain pine","Pinus uncinata","MOP",1]
[null,"Silver maple","Acer saccharinum","ASA",1,null,"Bhutan pine","Pinus wallichiana","PWA",1]
[null,"Italian alder","Alnus cordata","IAR",1,null,"Yunnan pine","Pinus yunnanensis","PYU",1]
[null,"Grey alder","Alnus incana","GAR",1,null,"Douglas fir","Pseudotsuga menziesii","DF",1]
[null,"Red alder","Alnus rubra","RAR",1,null,"Coast redwood","Sequoia sempervirens","RSQ",1]
[null,"Green alder","Alnus viridis","VAR",1,null,"Wellingtonia","Sequoiadendron giganteum","WSQ",1]
[null,"Paper birch","Betula papyrifera","PBI",1,null,"Western red cedar","Thuja plicata","WRC",1]
[null,"Other birches","Betula spp.","XBI",1,null,"Western hemlock","Tsuga heterophylla","WH",1]
[null,"Shagbark hickory","Carya ovata","COV",1]
[null,"Cider gum","Eucalyptus gunnii","CDE",1]
[null,"Shining gum","Eucalyptus nitens","SHE",1,null,"Naturalised Conifer Species List"]
[null,"Other Eucalyptus","Eucalyptus spp.","EUC",1,null,"Species Name","Scientific Name","Species Code"]
[null,"Oriental beech","Fagus orientalis","FOR",1,null,"Scots pine","Pinus sylvestris","SP",1]
[null,"White ash","Fraxinus americana","WAH",1]
[null,"Narrow-leafed ash","Fraxinus angustifolia","NAH",1]
[null,"Red ash","Fraxinus pennsylvanica","FPE",1,null,"Native Woody Shrubs Species List"]
[null,"Black walnut","Juglans nigra","BWA",1,null,"Species Name","Scientific Name","Species Code"]
[null,"Other walnut","Juglans spp.","XWA",1,null,"Other native woody shrubs",null,"WSH",1]
[null,"Tulip tree","Liriodendron tulipifera","TUL",1,null,"Box","Buxus spp.","BOX",1]
[null,"Raoul/Rauli","Nothofagus alpina","RAN",1,null,"Dogwood","Cornus spp.","DOG",1]
[null,"Roble","Nothofagus obliqua","RON",1,null,"Spurge laurel","Daphne laureola","SGL",1]
[null,"Lenga","Nothofagus pumilio","LEN",1,null,"Spindle","Euonymus europaeus","SPI",1]
[null,"Other Nothofagus","Nothofagus spp.","XNO",1,null,"Wild privet","Ligustrum vulgare","WPI",1]
[null,"London plane","Platanus x acerifolia*","LPL",1,null,"Eared willow","Salix aurita","EAW",1]
[null,"Plane spp","Platanus spp.","XPL",1,null,"Purple willow","Salix purpurea","PUW",1]
[null,"White poplar","Populus alba","APO",1,null,"Almond willow","Salix triandra","ALW",1]
[null,"Hybrid poplar","Populus serotina/trichocarpa","WPO",1,null,"Osier","Salix viminalis","OS",1]
[null,"Other poplar spp","Populus spp.","XPO",1,null,"Wayfaring tree","Viburnum lantana","WAY",1]
[null,"White oak","Quercus alba","WOK",1,null,"Guelder rose ","Viburnum opulus","GDR",1]
[null,"Red oak","Quercus rubra","ROK",1]
[null,"Hungarian oak","Quercus frainetto","QFR",1]
[null,"Downy oak","Quercus pubescens","QPU",1,null,"Native 'Small Trees' Species List"]
[null,"Pyrenean oak","Quercus pyrenaica","QPY",1,null,"Tree species that can be used (in addition to the native woody shrubs list above) to make up the 25 - 35% small trees and shrubs requirement for the Nature Recovery Additional Contribution "]
[null,"Other oak","Quercus spp.","XOK",1]
[null,"Other willows","Salix spp.","XWL",1]
[null,"Smooth-leaved elm","Ulmus carpinifolia","SEM",1,null,"Species Name","Scientific Name","Species Code"]
[null,null,null,null,null,null,"Field maple","Acer campestre","FDM"]
[null,null,null,null,null,null,"Hazel","Corylus avellana","HAZ"]
[null,"Naturalised Broadleaf Species List",null,null,null,null,"Midland hawthorn","Crataegus laevigata","MDH"]
[null,null,null,null,null,null,"Hawthorn ","Crataegus monogyna","HAW"]
[null,"Species Name","Scientific Name","Species Code",null,null,"Holly ","Ilex aquifolium","HOL"]
[null,"Sycamore","Acer pseudoplatanus","SY",1,null,"Juniper","Juniperus communis","JUN"]
[null,"Horse chestnut","Aesculus hippocastanum","HCH",1,null,"Crab apple","Malus sylvestris","CAP"]
[null,"Sweet chestnut","Castanea sativa","SC",1,null,"Bird cherry","Prunus padus","BCH"]
[null,"Common walnut","Juglans regia","CWA",1,null,"Blackthorn","Prunus spinosa","SLO"]
[null,"Wild pear","Pyrus communis","WDP",1,null,"Purging buckthorn","Rhamnus cathartica","PGB"]
[null,"Wild plum","Prunus domestica","WPE",1,null,"Goat willow","Salix caprea","GOW"]
[null,"Turkey oak","Quercus cerris","TOK",1,null,"Grey willow","Salix cinerea","GRW"]
[null,"Holm oak","Quercus ilex","HOK",1,null,"Bay willow","Salix pentandra","BWI"]
[null,null,null,null,null,null,"Elder","Sambucus nigra","ELD"]
[null,null,null,null,null,null,"Rowan","Sorbus aucuparia","ROW"]
[null,null,null,null,null,null,"Whitebeam","Sorbus aria","WBM"]
[null,"* Hybridised",null,null,null,null,"Wild service tree","Sorbus torminalis","WST"]

{"sheet":"4 - Species Breakdown","index":10,"n_rows":1028,"n_cols":36,"rows_kept":1028,"cut":false,"hidden":false,"merged":[[20,10,22,12],[20,1,22,2],[20,28,20,29],[21,28,21,29],[13,6,15,6],[13,5,15,5],[13,3,15,3],[13,2,15,2],[20,3,22,3],[20,5,22,6],[19,1,19,12],[5,1,5,2],[9,3,9,6],[10,3,10,6],[16,28,16,29],[15,28,15,29],[6,1,6,2],[13,28,13,29],[14,28,14,29],[13,12,15,12],[13,11,15,11],[9,1,9,2],[10,1,10,2],[13,1,15,1],[17,1,17,12],[13,10,15,10]]}
[]
[null,"Section 4 - Species Breakdown"]
[]
[]
[]
[]
[]
[]
[]
[null,"EWCO reference:",null,{"$f":"IF('1 - Site Details'!C7=\"\",\"\",'1 - Site Details'!C7)","v":""}]
[null,"Property/site name:",null,{"$f":"IF('1 - Site Details'!C8=\"\",\"\",'1 - Site Details'!C8)","v":""}]
[]
[null,"Species Mix",null,null,null,null,null,null,null,null,null,null,null,null,null,null,null,null,null,null,null,null,null,null,null,null,null,null,"Summary"]
[null,"Native Broadleaf Total %","Non-Native Broadleaf Total %","Naturalised Broadleaf Total %",null,"Native Conifer Total %","Non-Native Conifer Total %",null,null,null,"Naturalised Conifer Total %","Native Woody Shrubs Total %","Natural Colonisation Total %",null,null,null,null,null,null,null,null,null,null,null,null,null,null,null,"Total Gross Area (ha)",null,{"$f":"IF('3 - Land Summary'!$K$12=\"\",\"\",'3 - Land Summary'!$K$12)","v":0}]
[null,null,null,null,null,null,null,null,null,null,null,null,null,null,null,null,null,null,null,null,null,null,null,null,null,null,null,null,"Total Net Area (ha)",null,{"$f":"IF('3 - Land Summary'!$K$14=\"\",\"\",'3 - Land Summary'!$K$14)","v":0}]
[null,null,null,null,null,null,null,null,null,null,null,null,null,null,null,null,null,null,null,null,null,null,null,null,null,null,null,null,"Total Open Space (ha)",null,{"$f":"AE14-AE15","v":0}]
[null,{"$f":"IFERROR(((O26)/AE15)*100,0)","v":0},{"$f":"IFERROR(((P26)/AE15)*100,0)","v":0},{"$f":"IFERROR(((Q26)/AE15)*100,0)","v":0},null,{"$f":"IFERROR(((R26)/AE15)*100,0)","v":0},{"$f":"IFERROR(((S26)/AE15)*100,0)","v":0},null,null,null,{"$f":"IFERROR(((T26)/AE15)*100,0)","v":0},{"$f":"IFERROR(((U26)/AE15)*100,0)","v":0},{"$f":"IFERROR((SUM('3 - Land Summary'!I21:I120)/'4 - Species Breakdown'!AE15)*100,\"0.0\")","v":"0.0"},null,null,null,null,null,null,null,null,null,null,null,null,null,null,null,"Total Broadleaf (ha)",null,{"$f":"(SUM(B17:D17)*AE15)/100","v":0}]
[null,"Auto-calculated as a % of the total net area (not as a % of the total number of trees in the proposal)",null,null,null,null,null,null,null,null,null,null,null,null,null,null,null,null,null,null,null,null,null,null,null,null,null,null,"Total Conifer (ha)",null,{"$f":"(SUM(F17:K17)*AE15)/100","v":0}]
[null,null,null,null,null,null,null,null,null,null,null,null,null,null,null,null,null,null,null,null,null,null,null,null,null,null,null,null,"Total Woody Shrubs (ha)",null,{"$f":"(L17*AE15)/100","v":0}]
[null,"Lesser-known species",null,null,null,null,null,null,null,null,null,null,null,null,null,null,null,null,null,null,null,null,null,null,null,null,null,null,"Total Natural Colonisation (ha)",null,{"$f":"(M17*AE15)/100","v":0}]
[null,"Are any lesser-known species included in this application? (auto)",null,{"$f":"IF(COUNTIF(E31:E1028,\"YES\"),\"YES\",\"NO\")","v":"NO"},null,"Please note the proposed species (scientific name preferred) for any 'mixed' or 'other' categories used below:",null,null,null,null,null,null,null,null,null,null,null,null,null,null,null,null,null,null,null,null,null,null,"Total No. Trees planted",null,{"$f":"IFERROR(ROUND(SUM($K$31:$K$1028)+SUM(AF31:AF1028),0),\"\")","v":0}]
[null,null,null,null,null,null,null,null,null,null,null,null,null,null,null,null,null,null,null,null,null,null,null,null,null,null,null,null,"Average Stocking Density",null,{"$f":"IFERROR(AVERAGE(G31:G1033),\"0\")","v":"0"}]
[]
[]
[null,"Planted Woodland Details",null,null,null,null,null,null,null,null,null,null,null,null,null,null,null,null,null,null,null,null,null,null,null,null,null,null,"Supplementary Planting (for natural colonisation)"]
[null,null,null,null,null,null,null,null,null,null,null,null,null,null,{"$f":"SUM(O31:O1028)","v":0},0,0,0,0,0,0]
[null,"A","B","C","HIDDEN","D","E",null,null,null,"F","G","H","I",{"$f":"SUMIF('3 - Land Summary'!J21:J120,\"Native broadleaf\",'3 - Land Summary'!I21:I120)","v":0},{"$f":"SUMIF('3 - Land Summary'!J21:J120,\"Non-native broadleaf\",'3 - Land Summary'!I21:I120)","v":0},{"$f":"SUMIF('3 - Land Summary'!J21:J120,\"Naturalised broadleaf\",'3 - Land Summary'!I21:I120)","v":0},{"$f":"SUMIF('3 - Land Summary'!J21:J120,\"Native conifer\",'3 - Land Summary'!I21:I120)","v":0},{"$f":"SUMIF('3 - Land Summary'!J21:J120,\"Non-native conifer\",'3 - Land Summary'!I21:I120)","v":0},{"$f":"SUMIF('3 - Land Summary'!J21:J120,\"Naturalised conifer\",'3 - Land Summary'!I21:I120)","v":0},null,null,null,null,null,null,null,null,"J","K","L","M","N"]
[null,"Land Details",null,null,null,null,null,null,null,null,null,"Woodland Carbon Code (optional)",null,null,"Hidden","Hidden","Hidden","Hidden",null,null,null,"Hidden",null,null,null,null,null,null,"Land Details",null,null,null,null,null,null,{"$f":"COUNT(B31:B1028)","v":0}]
[null,"\nID\n\n(auto)","\nCentral grid reference and compartment reference\n\n(select drop-down)","\nSpecies \n\n\n(use species codes in the Species List worksheet)\n\n(enter one per row)","Lesser-known species?","\nSpecies % of net  area\n\n(excluding natural colonisation)\n\n(ensure each compartment adds up to 100.0)","\nStocking density of species\n\n(stems per hectare of planted area excl. open space)","\nHidden ","\nHidden","\nHidden","\nNo. of trees of this species in this compartment\n\n(auto-calculated)","\nSpacing\n\n(metres)\n","\nPredicted\n yield class\n","\nManagement\nregime\n\n(Please select from dropdown)","% Native Broadleaf this application","% Non-Native Broadleaf this application","% Naturalised Broadleaf this application","% Native Conifer this application","% Non-Native Conifer this application","% Naturalised Conifer this application","% Woody Shrubs this application","Land parcel look up reference",null,null,null,null,null,null,"\nID\n\n(auto)","\nCentral grid reference and compartment reference\n\n(select drop-down)","\nSpecies \n\n(use species codes in species list)\n\n(enter one per row)","\nNo. of trees of this species in this compartment\n\n(enter total for each species)","\nSpacing\n\n(metres)"]
[null,"E.g.","GR 123 456, 1a","BE",null,100,1600,null,null,null,4800,1.4,8,"Thinned",null,null,null,null,null,null,null,null,null,null,null,null,null,null,"E.g.","GR 123 456, 1a","ELD",100,1.6]
[null,{"$f":"IFERROR(INDEX('3 - Land Summary'!$B$21:$B$120,(MATCH('4 - Species Breakdown'!$V31,'3 - Land Summary'!$C$21:$C$120,0))),\"\")","v":""},null,null,{"$f":"IF(OR(COUNTIF('Look Up Data'!$D$149:$D$203,D31),COUNTIF('Look Up Data'!$D$149:$D$203,AE31)),\"YES\",\"NO\")","v":"NO"},null,null,{"$f":"IFERROR(INDEX('3 - Land Summary'!$G$21:$G$120,(MATCH(C31,'3 - Land Summary'!$C$21:$C$120,0))),\"\")","v":""},{"$f":"IFERROR(INDEX('3 - Land Summary'!$I$21:$I$120,(MATCH(C31,'3 - Land Summary'!$C$21:$C$120,0))),\"\")","v":""},{"$f":"IFERROR(((H31-I31)*F31)/100,\"\")","v":""},{"$f":"IFERROR(ROUND(J31*G31,0),\"\")","v":""},null,null,null,{"$f":"IFERROR(VLOOKUP(D31,'Species List'!$D$10:$E$46,2,FALSE)*J31,\"\")","v":""},{"$f":"IFERROR(VLOOKUP(D31,'Species List'!$D$51:$E$89,2,FALSE)*J31,\"\")","v":""},{"$f":"IFERROR(VLOOKUP(D31,'Species List'!$D$95:$E$102,2,FALSE)*J31,\"\")","v":""},{"$f":"IFERROR(VLOOKUP(D31,'Species List'!$I$10:$J$11,2,FALSE)*J31,\"\")","v":""},{"$f":"IFERROR(VLOOKUP(D31,'Species List'!$I$16:$J$61,2,FALSE)*J31,\"\")","v":""},{"$f":"IFERROR(VLOOKUP(D31,'Species List'!$I$66:$J$66,2,FALSE)*J31,\"\")","v":""},{"$f":"IFERROR(VLOOKUP(D31,'Species List'!$I$71:$J$82,2,FALSE)*J31,\"\")","v":""},{"$f":"C31","v":0},null,null,null,null,null,null,{"$f":"IFERROR(INDEX('3 - Land Summary'!$B$21:$B$120,(MATCH(AD31,'3 - Land Summary'!$C$21:$C$120,0))),\"\")","v":""}]
[null,{"$f":"IFERROR(INDEX('3 - Land Summary'!$B$21:$B$120,(MATCH('4 - Species Breakdown'!$V32,'3 - Land Summary'!$C$21:$C$120,0))),\"\")","v":""},null,null,{"$f":"IF(OR(COUNTIF('Look Up Data'!$D$149:$D$203,D32),COUNTIF('Look Up Data'!$D$149:$D$203,AE32)),\"YES\",\"NO\")","v":"NO"},null,null,{"$f":"IFERROR(INDEX('3 - Land Summary'!$G$21:$G$120,(MATCH(C32,'3 - Land Summary'!$C$21:$C$120,0))),\"\")","v":""},{"$f":"IFERROR(INDEX('3 - Land Summary'!$I$21:$I$120,(MATCH(C32,'3 - Land Summary'!$C$21:$C$120,0))),\"\")","v":""},{"$f":"IFERROR(((H32-I32)*F32)/100,\"\")","v":""},{"$f":"IFERROR(ROUND(J32*G32,0),\"\")","v":""},null,null,null,{"$f":"IFERROR(VLOOKUP(D32,'Species List'!$D$10:$E$46,2,FALSE)*J32,\"\")","v":""},{"$f":"IFERROR(VLOOKUP(D32,'Species List'!$D$51:$E$89,2,FALSE)*J32,\"\")","v":""},{"$f":"IFERROR(VLOOKUP(D32,'Species List'!$D$95:$E$102,2,FALSE)*J32,\"\")","v":""},{"$f":"IFERROR(VLOOKUP(D32,'Species List'!$I$10:$J$11,2,FALSE)*J32,\"\")","v":""},{"$f":"IFERROR(VLOOKUP(D32,'Species List'!$I$16:$J$61,2,FALSE)*J32,\"\")","v":""},{"$f":"IFERROR(VLOOKUP(D32,'Species List'!$I$66:$J$66,2,FALSE)*J32,\"\")","v":""},{"$f":"IFERROR(VLOOKUP(D32,'Species List'!$I$71:$J$82,2,FALSE)*J32,\"\")","v":""},0,null,null,null,null,null,null,{"$f":"IFERROR(INDEX('3 - Land Summary'!$B$21:$B$120,(MATCH(AD32,'3 - Land Summary'!$C$21:$C$120,0))),\"\")","v":""}]
[null,{"$f":"IFERROR(INDEX('3 - Land Summary'!$B$21:$B$120,(MATCH('4 - Species Breakdown'!$V33,'3 - Land Summary'!$C$21:$C$120,0))),\"\")","v":""},null,null,{"$f":"IF(OR(COUNTIF('Look Up Data'!$D$149:$D$203,D33),COUNTIF('Look Up Data'!$D$149:$D$203,AE33)),\"YES\",\"NO\")","v":"NO"},null,null,{"$f":"IFERROR(INDEX('3 - Land Summary'!$G$21:$G$120,(MATCH(C33,'3 - Land Summary'!$C$21:$C$120,0))),\"\")","v":""},{"$f":"IFERROR(INDEX('3 - Land Summary'!$I$21:$I$120,(MATCH(C33,'3 - Land Summary'!$C$21:$C$120,0))),\"\")","v":""},{"$f":"IFERROR(((H33-I33)*F33)/100,\"\")","v":""},"",null,null,null,{"$f":"IFERROR(VLOOKUP(D33,'Species List'!$D$10:$E$46,2,FALSE)*J33,\"\")","v":""},{"$f":"IFERROR(VLOOKUP(D33,'Species List'!$D$51:$E$89,2,FALSE)*J33,\"\")","v":""},{"$f":"IFERROR(VLOOKUP(D33,'Species List'!$D$95:$E$102,2,FALSE)*J33,\"\")","v":""},{"$f":"IFERROR(VLOOKUP(D33,'Species List'!$I$10:$J$11,2,FALSE)*J33,\"\")","v":""},{"$f":"IFERROR(VLOOKUP(D33,'Species List'!$I$16:$J$61,2,FALSE)*J33,\"\")","v":""},{"$f":"IFERROR(VLOOKUP(D33,'Species List'!$I$66:$J$66,2,FALSE)*J33,\"\")","v":""},{"$f":"IFERROR(VLOOKUP(D33,'Species List'!$I$71:$J$82,2,FALSE)*J33,\"\")","v":""},0,null,null,null,null,null,null,{"$f":"IFERROR(INDEX('3 - Land Summary'!$B$21:$B$120,(MATCH(AD33,'3 - Land Summary'!$C$21:$C$120,0))),\"\")","v":""}]
[null,{"$f":"IFERROR(INDEX('3 - Land Summary'!$B$21:$B$120,(MATCH('4 - Species Breakdown'!$V34,'3 - Land Summary'!$C$21:$C$120,0))),\"\")","v":""},null,null,{"$f":"IF(OR(COUNTIF('Look Up Data'!$D$149:$D$203,D34),COUNTIF('Look Up Data'!$D$149:$D$203,AE34)),\"YES\",\"NO\")","v":"NO"},null,null,{"$f":"IFERROR(INDEX('3 - Land Summary'!$G$21:$G$120,(MATCH(C34,'3 - Land Summary'!$C$21:$C$120,0))),\"\")","v":""},{"$f":"IFERROR(INDEX('3 - Land Summary'!$I$21:$I$120,(MATCH(C34,'3 - Land Summary'!$C$21:$C$120,0))),\"\")","v":""},"","",null,null,null,{"$f":"IFERROR(VLOOKUP(D34,'Species List'!$D$10:$E$46,2,FALSE)*J34,\"\")","v":""},{"$f":"IFERROR(VLOOKUP(D34,'Species List'!$D$51:$E$89,2,FALSE)*J34,\"\")","v":""},{"$f":"IFERROR(VLOOKUP(D34,'Species List'!$D$95:$E$102,2,FALSE)*J34,\"\")","v":""},{"$f":"IFERROR(VLOOKUP(D34,'Species List'!$I$10:$J$11,2,FALSE)*J34,\"\")","v":""},{"$f":"IFERROR(VLOOKUP(D34,'Species List'!$I$16:$J$61,2,FALSE)*J34,\"\")","v":""},{"$f":"IFERROR(VLOOKUP(D34,'Species List'!$I$66:$J$66,2,FALSE)*J34,\"\")","v":""},{"$f":"IFERROR(VLOOKUP(D34,'Species List'!$I$71:$J$82,2,FALSE)*J34,\"\")","v":""},0,null,null,null,null,null,null,{"$f":"IFERROR(INDEX('3 - Land Summary'!$B$21:$B$120,(MATCH(AD34,'3 - Land Summary'!$C$21:$C$120,0))),\"\")","v":""}]
[null,{"$f":"IFERROR(INDEX('3 - Land Summary'!$B$21:$B$120,(MATCH('4 - Species Breakdown'!$V35,'3 - Land Summary'!$C$21:$C$120,0))),\"\")","v":""},null,null,{"$f":"IF(OR(COUNTIF('Look Up Data'!$D$149:$D$203,D35),COUNTIF('Look Up Data'!$D$149:$D$203,AE35)),\"YES\",\"NO\")","v":"NO"},null,null,{"$f":"IFERROR(INDEX('3 - Land Summary'!$G$21:$G$120,(MATCH(C35,'3 - Land Summary'!$C$21:$C$120,0))),\"\")","v":""},{"$f":"IFERROR(INDEX('3 - Land Summary'!$I$21:$I$120,(MATCH(C35,'3 - Land Summary'!$C$21:$C$120,0))),\"\")","v":""},"","",null,null,null,{"$f":"IFERROR(VLOOKUP(D35,'Species List'!$D$10:$E$46,2,FALSE)*J35,\"\")","v":""},{"$f":"IFERROR(VLOOKUP(D35,'Species List'!$D$51:$E$89,2,FALSE)*J35,\"\")","v":""},{"$f":"IFERROR(VLOOKUP(D35,'Species List'!$D$95:$E$102,2,FALSE)*J35,\"\")","v":""},{"$f":"IFERROR(VLOOKUP(D35,'Species List'!$I$10:$J$11,2,FALSE)*J35,\"\")","v":""},{"$f":"IFERROR(VLOOKUP(D35,'Species List'!$I$16:$J$61,2,FALSE)*J35,\"\")","v":""},{"$f":"IFERROR(VLOOKUP(D35,'Species List'!$I$66:$J$66,2,FALSE)*J35,\"\")","v":""},{"$f":"IFERROR(VLOOKUP(D35,'Species List'!$I$71:$J$82,2,FALSE)*J35,\"\")","v":""},0,null,null,null,null,null,null,{"$f":"IFERROR(INDEX('3 - Land Summary'!$B$21:$B$120,(MATCH(AD35,'3 - Land Summary'!$C$21:$C$120,0))),\"\")","v":""}]
[null,{"$f":"IFERROR(INDEX('3 - Land Summary'!$B$21:$B$120,(MATCH('4 - Species Breakdown'!$V36,'3 - Land Summary'!$C$21:$C$120,0))),\"\")","v":""},null,null,{"$f":"IF(OR(COUNTIF('Look Up Data'!$D$149:$D$203,D36),COUNTIF('Look Up Data'!$D$149:$D$203,AE36)),\"YES\",\"NO\")","v":"NO"},null,null,{"$f":"IFERROR(INDEX('3 - Land Summary'!$G$21:$G$120,(MATCH(C36,'3 - Land Summary'!$C$21:$C$120,0))),\"\")","v":""},{"$f":"IFERROR(INDEX('3 - Land Summary'!$I$21:$I$120,(MATCH(C36,'3 - Land Summary'!$C$21:$C$120,0))),\"\")","v":""},"","",null,null,null,{"$f":"IFERROR(VLOOKUP(D36,'Species List'!$D$10:$E$46,2,FALSE)*J36,\"\")","v":""},{"$f":"IFERROR(VLOOKUP(D36,'Species List'!$D$51:$E$89,2,FALSE)*J36,\"\")","v":""},{"$f":"IFERROR(VLOOKUP(D36,'Species List'!$D$95:$E$102,2,FALSE)*J36,\"\")","v":""},{"$f":"IFERROR(VLOOKUP(D36,'Species List'!$I$10:$J$11,2,FALSE)*J36,\"\")","v":""},{"$f":"IFERROR(VLOOKUP(D36,'Species List'!$I$16:$J$61,2,FALSE)*J36,\"\")","v":""},{"$f":"IFERROR(VLOOKUP(D36,'Species List'!$I$66:$J$66,2,FALSE)*J36,\"\")","v":""},{"$f":"IFERROR(VLOOKUP(D36,'Species List'!$I$71:$J$82,2,FALSE)*J36,\"\")","v":""},0,null,null,null,null,null,null,{"$f":"IFERROR(INDEX('3 - Land Summary'!$B$21:$B$120,(MATCH(AD36,'3 - Land Summary'!$C$21:$C$120,0))),\"\")","v":""}]
[null,{"$f":"IFERROR(INDEX('3 - Land Summary'!$B$21:$B$120,(MATCH('4 - Species Breakdown'!$V37,'3 - Land Summary'!$C$21:$C$120,0))),\"\")","v":""},null,null,{"$f":"IF(OR(COUNTIF('Look Up Data'!$D$149:$D$203,D37),COUNTIF('Look Up Data'!$D$149:$D$203,AE37)),\"YES\",\"NO\")","v":"NO"},null,null,{"$f":"IFERROR(INDEX('3 - Land Summary'!$G$21:$G$120,(MATCH(C37,'3 - Land Summary'!$C$21:$C$120,0))),\"\")","v":""},{"$f":"IFERROR(INDEX('3 - Land Summary'!$I$21:$I$120,(MATCH(C37,'3 - Land Summary'!$C$21:$C$120,0))),\"\")","v":""},"","",null,null,null,{"$f":"IFERROR(VLOOKUP(D37,'Species List'!$D$10:$E$46,2,FALSE)*J37,\"\")","v":""},{"$f":"IFERROR(VLOOKUP(D37,'Species List'!$D$51:$E$89,2,FALSE)*J37,\"\")","v":""},{"$f":"IFERROR(VLOOKUP(D37,'Species List'!$D$95:$E$102,2,FALSE)*J37,\"\")","v":""},{"$f":"IFERROR(VLOOKUP(D37,'Species List'!$I$10:$J$11,2,FALSE)*J37,\"\")","v":""},{"$f":"IFERROR(VLOOKUP(D37,'Species List'!$I$16:$J$61,2,FALSE)*J37,\"\")","v":""},{"$f":"IFERROR(VLOOKUP(D37,'Species List'!$I$66:$J$66,2,FALSE)*J37,\"\")","v":""},{"$f":"IFERROR(VLOOKUP(D37,'Species List'!$I$71:$J$82,2,FALSE)*J37,\"\")","v":""},0,null,null,null,null,null,null,{"$f":"IFERROR(INDEX('3 - Land Summary'!$B$21:$B$120,(MATCH(AD37,'3 - Land Summary'!$C$21:$C$120,0))),\"\")","v":""}]
[null,{"$f":"IFERROR(INDEX('3 - Land Summary'!$B$21:$B$120,(MATCH('4 - Species Breakdown'!$V38,'3 - Land Summary'!$C$21:$C$120,0))),\"\")","v":""},null,null,{"$f":"IF(OR(COUNTIF('Look Up Data'!$D$149:$D$203,D38),COUNTIF('Look Up Data'!$D$149:$D$203,AE38)),\"YES\",\"NO\")","v":"NO"},null,null,{"$f":"IFERROR(INDEX('3 - Land Summary'!$G$21:$G$120,(MATCH(C38,'3 - Land Summary'!$C$21:$C$120,0))),\"\")","v":""},{"$f":"IFERROR(INDEX('3 - Land Summary'!$I$21:$I$120,(MATCH(C38,'3 - Land Summary'!$C$21:$C$120,0))),\"\")","v":""},"","",null,null,null,{"$f":"IFERROR(VLOOKUP(D38,'Species List'!$D$10:$E$46,2,FALSE)*J38,\"\")","v":""},{"$f":"IFERROR(VLOOKUP(D38,'Species List'!$D$51:$E$89,2,FALSE)*J38,\"\")","v":""},{"$f":"IFERROR(VLOOKUP(D38,'Species List'!$D$95:$E$102,2,FALSE)*J38,\"\")","v":""},{"$f":"IFERROR(VLOOKUP(D38,'Species List'!$I$10:$J$11,2,FALSE)*J38,\"\")","v":""},{"$f":"IFERROR(VLOOKUP(D38,'Species List'!$I$16:$J$61,2,FALSE)*J38,\"\")","v":""},{"$f":"IFERROR(VLOOKUP(D38,'Species List'!$I$66:$J$66,2,FALSE)*J38,\"\")","v":""},{"$f":"IFERROR(VLOOKUP(D38,'Species List'!$I$71:$J$82,2,FALSE)*J38,\"\")","v":""},0,null,null,null,null,null,null,{"$f":"IFERROR(INDEX('3 - Land Summary'!$B$21:$B$120,(MATCH(AD38,'3 - Land Summary'!$C$21:$C$120,0))),\"\")","v":""}]
[null,{"$f":"IFERROR(INDEX('3 - Land Summary'!$B$21:$B$120,(MATCH('4 - Species Breakdown'!$V39,'3 - Land Summary'!$C$21:$C$120,0))),\"\")","v":""},null,null,{"$f":"IF(OR(COUNTIF('Look Up Data'!$D$149:$D$203,D39),COUNTIF('Look Up Data'!$D$149:$D$203,AE39)),\"YES\",\"NO\")","v":"NO"},null,null,{"$f":"IFERROR(INDEX('3 - Land Summary'!$G$21:$G$120,(MATCH(C39,'3 - Land Summary'!$C$21:$C$120,0))),\"\")","v":""},{"$f":"IFERROR(INDEX('3 - Land Summary'!$I$21:$I$120,(MATCH(C39,'3 - Land Summary'!$C$21:$C$120,0))),\"\")","v":""},"","",null,null,null,{"$f":"IFERROR(VLOOKUP(D39,'Species List'!$D$10:$E$46,2,FALSE)*J39,\"\")","v":""},{"$f":"IFERROR(VLOOKUP(D39,'Species List'!$D$51:$E$89,2,FALSE)*J39,\"\")","v":""},{"$f":"IFERROR(VLOOKUP(D39,'Species List'!$D$95:$E$102,2,FALSE)*J39,\"\")","v":""},{"$f":"IFERROR(VLOOKUP(D39,'Species List'!$I$10:$J$11,2,FALSE)*J39,\"\")","v":""},{"$f":"IFERROR(VLOOKUP(D39,'Species List'!$I$16:$J$61,2,FALSE)*J39,\"\")","v":""},{"$f":"IFERROR(VLOOKUP(D39,'Species List'!$I$66:$J$66,2,FALSE)*J39,\"\")","v":""},{"$f":"IFERROR(VLOOKUP(D39,'Species List'!$I$71:$J$82,2,FALSE)*J39,\"\")","v":""},0,null,null,null,null,null,null,{"$f":"IFERROR(INDEX('3 - Land Summary'!$B$21:$B$120,(MATCH(AD39,'3 - Land Summary'!$C$21:$C$120,0))),\"\")","v":""}]
[null,{"$f":"IFERROR(INDEX('3 - Land Summary'!$B$21:$B$120,(MATCH('4 - Species Breakdown'!$V40,'3 - Land Summary'!$C$21:$C$120,0))),\"\")","v":""},null,null,{"$f":"IF(OR(COUNTIF('Look Up Data'!$D$149:$D$203,D40),COUNTIF('Look Up Data'!$D$149:$D$203,AE40)),\"YES\",\"NO\")","v":"NO"},null,null,{"$f":"IFERROR(INDEX('3 - Land Summary'!$G$21:$G$120,(MATCH(C40,'3 - Land Summary'!$C$21:$C$120,0))),\"\")","v":""},{"$f":"IFERROR(INDEX('3 - Land Summary'!$I$21:$I$120,(MATCH(C40,'3 - Land Summary'!$C$21:$C$120,0))),\"\")","v":""},"","",null,null,null,{"$f":"IFERROR(VLOOKUP(D40,'Species List'!$D$10:$E$46,2,FALSE)*J40,\"\")","v":""},{"$f":"IFERROR(VLOOKUP(D40,'Species List'!$D$51:$E$89,2,FALSE)*J40,\"\")","v":""},{"$f":"IFERROR(VLOOKUP(D40,'Species List'!$D$95:$E$102,2,FALSE)*J40,\"\")","v":""},{"$f":"IFERROR(VLOOKUP(D40,'Species List'!$I$10:$J$11,2,FALSE)*J40,\"\")","v":""},{"$f":"IFERROR(VLOOKUP(D40,'Species List'!$I$16:$J$61,2,FALSE)*J40,\"\")","v":""},{"$f":"IFERROR(VLOOKUP(D40,'Species List'!$I$66:$J$66,2,FALSE)*J40,\"\")","v":""},{"$f":"IFERROR(VLOOKUP(D40,'Species List'!$I$71:$J$82,2,FALSE)*J40,\"\")","v":""},0,null,null,null,null,null,null,{"$f":"IFERROR(INDEX('3 - Land Summary'!$B$21:$B$120,(MATCH(AD40,'3 - Land Summary'!$C$21:$C$120,0))),\"\")","v":""}]
[null,{"$f":"IFERROR(INDEX('3 - Land Summary'!$B$21:$B$120,(MATCH('4 - Species Breakdown'!$V41,'3 - Land Summary'!$C$21:$C$120,0))),\"\")","v":""},null,null,{"$f":"IF(OR(COUNTIF('Look Up Data'!$D$149:$D$203,D41),COUNTIF('Look Up Data'!$D$149:$D$203,AE41)),\"YES\",\"NO\")","v":"NO"},null,null,{"$f":"IFERROR(INDEX('3 - Land Summary'!$G$21:$G$120,(MATCH(C41,'3 - Land Summary'!$C$21:$C$120,0))),\"\")","v":""},{"$f":"IFERROR(INDEX('3 - Land Summary'!$I$21:$I$120,(MATCH(C41,'3 - Land Summary'!$C$21:$C$120,0))),\"\")","v":""},"","",null,null,null,{"$f":"IFERROR(VLOOKUP(D41,'Species List'!$D$10:$E$46,2,FALSE)*J41,\"\")","v":""},{"$f":"IFERROR(VLOOKUP(D41,'Species List'!$D$51:$E$89,2,FALSE)*J41,\"\")","v":""},{"$f":"IFERROR(VLOOKUP(D41,'Species List'!$D$95:$E$102,2,FALSE)*J41,\"\")","v":""},{"$f":"IFERROR(VLOOKUP(D41,'Species List'!$I$10:$J$11,2,FALSE)*J41,\"\")","v":""},{"$f":"IFERROR(VLOOKUP(D41,'Species List'!$I$16:$J$61,2,FALSE)*J41,\"\")","v":""},{"$f":"IFERROR(VLOOKUP(D41,'Species List'!$I$66:$J$66,2,FALSE)*J41,\"\")","v":""},{"$f":"IFERROR(VLOOKUP(D41,'Species List'!$I$71:$J$82,2,FALSE)*J41,\"\")","v":""},0,null,null,null,null,null,null,{"$f":"IFERROR(INDEX('3 - Land Summary'!$B$21:$B$120,(MATCH(AD41,'3 - Land Summary'!$C$21:$C$120,0))),\"\")","v":""}]
[null,{"$f":"IFERROR(INDEX('3 - Land Summary'!$B$21:$B$120,(MATCH('4 - Species Breakdown'!$V42,'3 - Land Summary'!$C$21:$C$120,0))),\"\")","v":""},null,null,{"$f":"IF(OR(COUNTIF('Look Up Data'!$D$149:$D$203,D42),COUNTIF('Look Up Data'!$D$149:$D$203,AE42)),\"YES\",\"NO\")","v":"NO"},null,null,{"$f":"IFERROR(INDEX('3 - Land Summary'!$G$21:$G$120,(MATCH(C42,'3 - Land Summary'!$C$21:$C$120,0))),\"\")","v":""},{"$f":"IFERROR(INDEX('3 - Land Summary'!$I$21:$I$120,(MATCH(C42,'3 - Land Summary'!$C$21:$C$120,0))),\"\")","v":""},"","",null,null,null,{"$f":"IFERROR(VLOOKUP(D42,'Species List'!$D$10:$E$46,2,FALSE)*J42,\"\")","v":""},{"$f":"IFERROR(VLOOKUP(D42,'Species List'!$D$51:$E$89,2,FALSE)*J42,\"\")","v":""},{"$f":"IFERROR(VLOOKUP(D42,'Species List'!$D$95:$E$102,2,FALSE)*J42,\"\")","v":""},{"$f":"IFERROR(VLOOKUP(D42,'Species List'!$I$10:$J$11,2,FALSE)*J42,\"\")","v":""},{"$f":"IFERROR(VLOOKUP(D42,'Species List'!$I$16:$J$61,2,FALSE)*J42,\"\")","v":""},{"$f":"IFERROR(VLOOKUP(D42,'Species List'!$I$66:$J$66,2,FALSE)*J42,\"\")","v":""},{"$f":"IFERROR(VLOOKUP(D42,'Species List'!$I$71:$J$82,2,FALSE)*J42,\"\")","v":""},0,null,null,null,null,null,null,{"$f":"IFERROR(INDEX('3 - Land Summary'!$B$21:$B$120,(MATCH(AD42,'3 - Land Summary'!$C$21:$C$120,0))),\"\")","v":""}]
[null,{"$f":"IFERROR(INDEX('3 - Land Summary'!$B$21:$B$120,(MATCH('4 - Species Breakdown'!$V43,'3 - Land Summary'!$C$21:$C$120,0))),\"\")","v":""},null,null,{"$f":"IF(OR(COUNTIF('Look Up Data'!$D$149:$D$203,D43),COUNTIF('Look Up Data'!$D$149:$D$203,AE43)),\"YES\",\"NO\")","v":"NO"},null,null,{"$f":"IFERROR(INDEX('3 - Land Summary'!$G$21:$G$120,(MATCH(C43,'3 - Land Summary'!$C$21:$C$120,0))),\"\")","v":""},{"$f":"IFERROR(INDEX('3 - Land Summary'!$I$21:$I$120,(MATCH(C43,'3 - Land Summary'!$C$21:$C$120,0))),\"\")","v":""},"","",null,null,null,{"$f":"IFERROR(VLOOKUP(D43,'Species List'!$D$10:$E$46,2,FALSE)*J43,\"\")","v":""},{"$f":"IFERROR(VLOOKUP(D43,'Species List'!$D$51:$E$89,2,FALSE)*J43,\"\")","v":""},{"$f":"IFERROR(VLOOKUP(D43,'Species List'!$D$95:$E$102,2,FALSE)*J43,\"\")","v":""},{"$f":"IFERROR(VLOOKUP(D43,'Species List'!$I$10:$J$11,2,FALSE)*J43,\"\")","v":""},{"$f":"IFERROR(VLOOKUP(D43,'Species List'!$I$16:$J$61,2,FALSE)*J43,\"\")","v":""},{"$f":"IFERROR(VLOOKUP(D43,'Species List'!$I$66:$J$66,2,FALSE)*J43,\"\")","v":""},{"$f":"IFERROR(VLOOKUP(D43,'Species List'!$I$71:$J$82,2,FALSE)*J43,\"\")","v":""},0,null,null,null,null,null,null,{"$f":"IFERROR(INDEX('3 - Land Summary'!$B$21:$B$120,(MATCH(AD43,'3 - Land Summary'!$C$21:$C$120,0))),\"\")","v":""}]
[null,{"$f":"IFERROR(INDEX('3 - Land Summary'!$B$21:$B$120,(MATCH('4 - Species Breakdown'!$V44,'3 - Land Summary'!$C$21:$C$120,0))),\"\")","v":""},null,null,{"$f":"IF(OR(COUNTIF('Look Up Data'!$D$149:$D$203,D44),COUNTIF('Look Up Data'!$D$149:$D$203,AE44)),\"YES\",\"NO\")","v":"NO"},null,null,{"$f":"IFERROR(INDEX('3 - Land Summary'!$G$21:$G$120,(MATCH(C44,'3 - Land Summary'!$C$21:$C$120,0))),\"\")","v":""},{"$f":"IFERROR(INDEX('3 - Land Summary'!$I$21:$I$120,(MATCH(C44,'3 - Land Summary'!$C$21:$C$120,0))),\"\")","v":""},"","",null,null,null,{"$f":"IFERROR(VLOOKUP(D44,'Species List'!$D$10:$E$46,2,FALSE)*J44,\"\")","v":""},{"$f":"IFERROR(VLOOKUP(D44,'Species List'!$D$51:$E$89,2,FALSE)*J44,\"\")","v":""},{"$f":"IFERROR(VLOOKUP(D44,'Species List'!$D$95:$E$102,2,FALSE)*J44,\"\")","v":""},{"$f":"IFERROR(VLOOKUP(D44,'Species List'!$I$10:$J$11,2,FALSE)*J44,\"\")","v":""},{"$f":"IFERROR(VLOOKUP(D44,'Species List'!$I$16:$J$61,2,FALSE)*J44,\"\")","v":""},{"$f":"IFERROR(VLOOKUP(D44,'Species List'!$I$66:$J$66,2,FALSE)*J44,\"\")","v":""},{"$f":"IFERROR(VLOOKUP(D44,'Species List'!$I$71:$J$82,2,FALSE)*J44,\"\")","v":""},0,null,null,null,null,null,null,{"$f":"IFERROR(INDEX('3 - Land Summary'!$B$21:$B$120,(MATCH(AD44,'3 - Land Summary'!$C$21:$C$120,0))),\"\")","v":""}]
[null,{"$f":"IFERROR(INDEX('3 - Land Summary'!$B$21:$B$120,(MATCH('4 - Species Breakdown'!$V45,'3 - Land Summary'!$C$21:$C$120,0))),\"\")","v":""},null,null,{"$f":"IF(OR(COUNTIF('Look Up Data'!$D$149:$D$203,D45),COUNTIF('Look Up Data'!$D$149:$D$203,AE45)),\"YES\",\"NO\")","v":"NO"},null,null,{"$f":"IFERROR(INDEX('3 - Land Summary'!$G$21:$G$120,(MATCH(C45,'3 - Land Summary'!$C$21:$C$120,0))),\"\")","v":""},{"$f":"IFERROR(INDEX('3 - Land Summary'!$I$21:$I$120,(MATCH(C45,'3 - Land Summary'!$C$21:$C$120,0))),\"\")","v":""},"","",null,null,null,{"$f":"IFERROR(VLOOKUP(D45,'Species List'!$D$10:$E$46,2,FALSE)*J45,\"\")","v":""},{"$f":"IFERROR(VLOOKUP(D45,'Species List'!$D$51:$E$89,2,FALSE)*J45,\"\")","v":""},{"$f":"IFERROR(VLOOKUP(D45,'Species List'!$D$95:$E$102,2,FALSE)*J45,\"\")","v":""},{"$f":"IFERROR(VLOOKUP(D45,'Species List'!$I$10:$J$11,2,FALSE)*J45,\"\")","v":""},{"$f":"IFERROR(VLOOKUP(D45,'Species List'!$I$16:$J$61,2,FALSE)*J45,\"\")","v":""},{"$f":"IFERROR(VLOOKUP(D45,'Species List'!$I$66:$J$66,2,FALSE)*J45,\"\")","v":""},{"$f":"IFERROR(VLOOKUP(D45,'Species List'!$I$71:$J$82,2,FALSE)*J45,\"\")","v":""},0,null,null,null,null,null,null,{"$f":"IFERROR(INDEX('3 - Land Summary'!$B$21:$B$120,(MATCH(AD45,'3 - Land Summary'!$C$21:$C$120,0))),\"\")","v":""}]
[null,{"$f":"IFERROR(INDEX('3 - Land Summary'!$B$21:$B$120,(MATCH('4 - Species Breakdown'!$V46,'3 - Land Summary'!$C$21:$C$120,0))),\"\")","v":""},null,null,{"$f":"IF(OR(COUNTIF('Look Up Data'!$D$149:$D$203,D46),COUNTIF('Look Up Data'!$D$149:$D$203,AE46)),\"YES\",\"NO\")","v":"NO"},null,null,{"$f":"IFERROR(INDEX('3 - Land Summary'!$G$21:$G$120,(MATCH(C46,'3 - Land Summary'!$C$21:$C$120,0))),\"\")","v":""},{"$f":"IFERROR(INDEX('3 - Land Summary'!$I$21:$I$120,(MATCH(C46,'3 - Land Summary'!$C$21:$C$120,0))),\"\")","v":""},"","",null,null,null,{"$f":"IFERROR(VLOOKUP(D46,'Species List'!$D$10:$E$46,2,FALSE)*J46,\"\")","v":""},{"$f":"IFERROR(VLOOKUP(D46,'Species List'!$D$51:$E$89,2,FALSE)*J46,\"\")","v":""},{"$f":"IFERROR(VLOOKUP(D46,'Species List'!$D$95:$E$102,2,FALSE)*J46,\"\")","v":""},{"$f":"IFERROR(VLOOKUP(D46,'Species List'!$I$10:$J$11,2,FALSE)*J46,\"\")","v":""},{"$f":"IFERROR(VLOOKUP(D46,'Species List'!$I$16:$J$61,2,FALSE)*J46,\"\")","v":""},{"$f":"IFERROR(VLOOKUP(D46,'Species List'!$I$66:$J$66,2,FALSE)*J46,\"\")","v":""},{"$f":"IFERROR(VLOOKUP(D46,'Species List'!$I$71:$J$82,2,FALSE)*J46,\"\")","v":""},0,null,null,null,null,null,null,{"$f":"IFERROR(INDEX('3 - Land Summary'!$B$21:$B$120,(MATCH(AD46,'3 - Land Summary'!$C$21:$C$120,0))),\"\")","v":""}]
[null,{"$f":"IFERROR(INDEX('3 - Land Summary'!$B$21:$B$120,(MATCH('4 - Species Breakdown'!$V47,'3 - Land Summary'!$C$21:$C$120,0))),\"\")","v":""},null,null,{"$f":"IF(OR(COUNTIF('Look Up Data'!$D$149:$D$203,D47),COUNTIF('Look Up Data'!$D$149:$D$203,AE47)),\"YES\",\"NO\")","v":"NO"},null,null,{"$f":"IFERROR(INDEX('3 - Land Summary'!$G$21:$G$120,(MATCH(C47,'3 - Land Summary'!$C$21:$C$120,0))),\"\")","v":""},{"$f":"IFERROR(INDEX('3 - Land Summary'!$I$21:$I$120,(MATCH(C47,'3 - Land Summary'!$C$21:$C$120,0))),\"\")","v":""},"","",null,null,null,{"$f":"IFERROR(VLOOKUP(D47,'Species List'!$D$10:$E$46,2,FALSE)*J47,\"\")","v":""},{"$f":"IFERROR(VLOOKUP(D47,'Species List'!$D$51:$E$89,2,FALSE)*J47,\"\")","v":""},{"$f":"IFERROR(VLOOKUP(D47,'Species List'!$D$95:$E$102,2,FALSE)*J47,\"\")","v":""},{"$f":"IFERROR(VLOOKUP(D47,'Species List'!$I$10:$J$11,2,FALSE)*J47,\"\")","v":""},{"$f":"IFERROR(VLOOKUP(D47,'Species List'!$I$16:$J$61,2,FALSE)*J47,\"\")","v":""},{"$f":"IFERROR(VLOOKUP(D47,'Species List'!$I$66:$J$66,2,FALSE)*J47,\"\")","v":""},{"$f":"IFERROR(VLOOKUP(D47,'Species List'!$I$71:$J$82,2,FALSE)*J47,\"\")","v":""},0,null,null,null,null,null,null,{"$f":"IFERROR(INDEX('3 - Land Summary'!$B$21:$B$120,(MATCH(AD47,'3 - Land Summary'!$C$21:$C$120,0))),\"\")","v":""}]
[null,{"$f":"IFERROR(INDEX('3 - Land Summary'!$B$21:$B$120,(MATCH('4 - Species Breakdown'!$V48,'3 - Land Summary'!$C$21:$C$120,0))),\"\")","v":""},null,null,{"$f":"IF(OR(COUNTIF('Look Up Data'!$D$149:$D$203,D48),COUNTIF('Look Up Data'!$D$149:$D$203,AE48)),\"YES\",\"NO\")","v":"NO"},null,null,{"$f":"IFERROR(INDEX('3 - Land Summary'!$G$21:$G$120,(MATCH(C48,'3 - Land Summary'!$C$21:$C$120,0))),\"\")","v":""},{"$f":"IFERROR(INDEX('3 - Land Summary'!$I$21:$I$120,(MATCH(C48,'3 - Land Summary'!$C$21:$C$120,0))),\"\")","v":""},"","",null,null,null,{"$f":"IFERROR(VLOOKUP(D48,'Species List'!$D$10:$E$46,2,FALSE)*J48,\"\")","v":""},{"$f":"IFERROR(VLOOKUP(D48,'Species List'!$D$51:$E$89,2,FALSE)*J48,\"\")","v":""},{"$f":"IFERROR(VLOOKUP(D48,'Species List'!$D$95:$E$102,2,FALSE)*J48,\"\")","v":""},{"$f":"IFERROR(VLOOKUP(D48,'Species List'!$I$10:$J$11,2,FALSE)*J48,\"\")","v":""},{"$f":"IFERROR(VLOOKUP(D48,'Species List'!$I$16:$J$61,2,FALSE)*J48,\"\")","v":""},{"$f":"IFERROR(VLOOKUP(D48,'Species List'!$I$66:$J$66,2,FALSE)*J48,\"\")","v":""},{"$f":"IFERROR(VLOOKUP(D48,'Species List'!$I$71:$J$82,2,FALSE)*J48,\"\")","v":""},0,null,null,null,null,null,null,{"$f":"IFERROR(INDEX('3 - Land Summary'!$B$21:$B$120,(MATCH(AD48,'3 - Land Summary'!$C$21:$C$120,0))),\"\")","v":""}]
[null,{"$f":"IFERROR(INDEX('3 - Land Summary'!$B$21:$B$120,(MATCH('4 - Species Breakdown'!$V49,'3 - Land Summary'!$C$21:$C$120,0))),\"\")","v":""},null,null,{"$f":"IF(OR(COUNTIF('Look Up Data'!$D$149:$D$203,D49),COUNTIF('Look Up Data'!$D$149:$D$203,AE49)),\"YES\",\"NO\")","v":"NO"},null,null,{"$f":"IFERROR(INDEX('3 - Land Summary'!$G$21:$G$120,(MATCH(C49,'3 - Land Summary'!$C$21:$C$120,0))),\"\")","v":""},{"$f":"IFERROR(INDEX('3 - Land Summary'!$I$21:$I$120,(MATCH(C49,'3 - Land Summary'!$C$21:$C$120,0))),\"\")","v":""},"","",null,null,null,{"$f":"IFERROR(VLOOKUP(D49,'Species List'!$D$10:$E$46,2,FALSE)*J49,\"\")","v":""},{"$f":"IFERROR(VLOOKUP(D49,'Species List'!$D$51:$E$89,2,FALSE)*J49,\"\")","v":""},{"$f":"IFERROR(VLOOKUP(D49,'Species List'!$D$95:$E$102,2,FALSE)*J49,\"\")","v":""},{"$f":"IFERROR(VLOOKUP(D49,'Species List'!$I$10:$J$11,2,FALSE)*J49,\"\")","v":""},{"$f":"IFERROR(VLOOKUP(D49,'Species List'!$I$16:$J$61,2,FALSE)*J49,\"\")","v":""},{"$f":"IFERROR(VLOOKUP(D49,'Species List'!$I$66:$J$66,2,FALSE)*J49,\"\")","v":""},{"$f":"IFERROR(VLOOKUP(D49,'Species List'!$I$71:$J$82,2,FALSE)*J49,\"\")","v":""},0,null,null,null,null,null,null,{"$f":"IFERROR(INDEX('3 - Land Summary'!$B$21:$B$120,(MATCH(AD49,'3 - Land Summary'!$C$21:$C$120,0))),\"\")","v":""}]
[null,{"$f":"IFERROR(INDEX('3 - Land Summary'!$B$21:$B$120,(MATCH('4 - Species Breakdown'!$V50,'3 - Land Summary'!$C$21:$C$120,0))),\"\")","v":""},null,null,{"$f":"IF(OR(COUNTIF('Look Up Data'!$D$149:$D$203,D50),COUNTIF('Look Up Data'!$D$149:$D$203,AE50)),\"YES\",\"NO\")","v":"NO"},null,null,{"$f":"IFERROR(INDEX('3 - Land Summary'!$G$21:$G$120,(MATCH(C50,'3 - Land Summary'!$C$21:$C$120,0))),\"\")","v":""},{"$f":"IFERROR(INDEX('3 - Land Summary'!$I$21:$I$120,(MATCH(C50,'3 - Land Summary'!$C$21:$C$120,0))),\"\")","v":""},"","",null,null,null,{"$f":"IFERROR(VLOOKUP(D50,'Species List'!$D$10:$E$46,2,FALSE)*J50,\"\")","v":""},{"$f":"IFERROR(VLOOKUP(D50,'Species List'!$D$51:$E$89,2,FALSE)*J50,\"\")","v":""},{"$f":"IFERROR(VLOOKUP(D50,'Species List'!$D$95:$E$102,2,FALSE)*J50,\"\")","v":""},{"$f":"IFERROR(VLOOKUP(D50,'Species List'!$I$10:$J$11,2,FALSE)*J50,\"\")","v":""},{"$f":"IFERROR(VLOOKUP(D50,'Species List'!$I$16:$J$61,2,FALSE)*J50,\"\")","v":""},{"$f":"IFERROR(VLOOKUP(D50,'Species List'!$I$66:$J$66,2,FALSE)*J50,\"\")","v":""},{"$f":"IFERROR(VLOOKUP(D50,'Species List'!$I$71:$J$82,2,FALSE)*J50,\"\")","v":""},0,null,null,null,null,null,null,{"$f":"IFERROR(INDEX('3 - Land Summary'!$B$21:$B$120,(MATCH(AD50,'3 - Land Summary'!$C$21:$C$120,0))),\"\")","v":""}]
[null,{"$f":"IFERROR(INDEX('3 - Land Summary'!$B$21:$B$120,(MATCH('4 - Species Breakdown'!$V51,'3 - Land Summary'!$C$21:$C$120,0))),\"\")","v":""},null,null,{"$f":"IF(OR(COUNTIF('Look Up Data'!$D$149:$D$203,D51),COUNTIF('Look Up Data'!$D$149:$D$203,AE51)),\"YES\",\"NO\")","v":"NO"},null,null,{"$f":"IFERROR(INDEX('3 - Land Summary'!$G$21:$G$120,(MATCH(C51,'3 - Land Summary'!$C$21:$C$120,0))),\"\")","v":""},{"$f":"IFERROR(INDEX('3 - Land Summary'!$I$21:$I$120,(MATCH(C51,'3 - Land Summary'!$C$21:$C$120,0))),\"\")","v":""},"","",null,null,null,{"$f":"IFERROR(VLOOKUP(D51,'Species List'!$D$10:$E$46,2,FALSE)*J51,\"\")","v":""},{"$f":"IFERROR(VLOOKUP(D51,'Species List'!$D$51:$E$89,2,FALSE)*J51,\"\")","v":""},{"$f":"IFERROR(VLOOKUP(D51,'Species List'!$D$95:$E$102,2,FALSE)*J51,\"\")","v":""},{"$f":"IFERROR(VLOOKUP(D51,'Species List'!$I$10:$J$11,2,FALSE)*J51,\"\")","v":""},{"$f":"IFERROR(VLOOKUP(D51,'Species List'!$I$16:$J$61,2,FALSE)*J51,\"\")","v":""},{"$f":"IFERROR(VLOOKUP(D51,'Species List'!$I$66:$J$66,2,FALSE)*J51,\"\")","v":""},{"$f":"IFERROR(VLOOKUP(D51,'Species List'!$I$71:$J$82,2,FALSE)*J51,\"\")","v":""},0,null,null,null,null,null,null,{"$f":"IFERROR(INDEX('3 - Land Summary'!$B$21:$B$120,(MATCH(AD51,'3 - Land Summary'!$C$21:$C$120,0))),\"\")","v":""}]
[null,{"$f":"IFERROR(INDEX('3 - Land Summary'!$B$21:$B$120,(MATCH('4 - Species Breakdown'!$V52,'3 - Land Summary'!$C$21:$C$120,0))),\"\")","v":""},null,null,{"$f":"IF(OR(COUNTIF('Look Up Data'!$D$149:$D$203,D52),COUNTIF('Look Up Data'!$D$149:$D$203,AE52)),\"YES\",\"NO\")","v":"NO"},null,null,{"$f":"IFERROR(INDEX('3 - Land Summary'!$G$21:$G$120,(MATCH(C52,'3 - Land Summary'!$C$21:$C$120,0))),\"\")","v":""},{"$f":"IFERROR(INDEX('3 - Land Summary'!$I$21:$I$120,(MATCH(C52,'3 - Land Summary'!$C$21:$C$120,0))),\"\")","v":""},"","",null,null,null,{"$f":"IFERROR(VLOOKUP(D52,'Species List'!$D$10:$E$46,2,FALSE)*J52,\"\")","v":""},{"$f":"IFERROR(VLOOKUP(D52,'Species List'!$D$51:$E$89,2,FALSE)*J52,\"\")","v":""},{"$f":"IFERROR(VLOOKUP(D52,'Species List'!$D$95:$E$102,2,FALSE)*J52,\"\")","v":""},{"$f":"IFERROR(VLOOKUP(D52,'Species List'!$I$10:$J$11,2,FALSE)*J52,\"\")","v":""},{"$f":"IFERROR(VLOOKUP(D52,'Species List'!$I$16:$J$61,2,FALSE)*J52,\"\")","v":""},{"$f":"IFERROR(VLOOKUP(D52,'Species List'!$I$66:$J$66,2,FALSE)*J52,\"\")","v":""},{"$f":"IFERROR(VLOOKUP(D52,'Species List'!$I$71:$J$82,2,FALSE)*J52,\"\")","v":""},0,null,null,null,null,null,null,{"$f":"IFERROR(INDEX('3 - Land Summary'!$B$21:$B$120,(MATCH(AD52,'3 - Land Summary'!$C$21:$C$120,0))),\"\")","v":""}]
[null,{"$f":"IFERROR(INDEX('3 - Land Summary'!$B$21:$B$120,(MATCH('4 - Species Breakdown'!$V53,'3 - Land Summary'!$C$21:$C$120,0))),\"\")","v":""},null,null,{"$f":"IF(OR(COUNTIF('Look Up Data'!$D$149:$D$203,D53),COUNTIF('Look Up Data'!$D$149:$D$203,AE53)),\"YES\",\"NO\")","v":"NO"},null,null,{"$f":"IFERROR(INDEX('3 - Land Summary'!$G$21:$G$120,(MATCH(C53,'3 - Land Summary'!$C$21:$C$120,0))),\"\")","v":""},{"$f":"IFERROR(INDEX('3 - Land Summary'!$I$21:$I$120,(MATCH(C53,'3 - Land Summary'!$C$21:$C$120,0))),\"\")","v":""},"","",null,null,null,{"$f":"IFERROR(VLOOKUP(D53,'Species List'!$D$10:$E$46,2,FALSE)*J53,\"\")","v":""},{"$f":"IFERROR(VLOOKUP(D53,'Species List'!$D$51:$E$89,2,FALSE)*J53,\"\")","v":""},{"$f":"IFERROR(VLOOKUP(D53,'Species List'!$D$95:$E$102,2,FALSE)*J53,\"\")","v":""},{"$f":"IFERROR(VLOOKUP(D53,'Species List'!$I$10:$J$11,2,FALSE)*J53,\"\")","v":""},{"$f":"IFERROR(VLOOKUP(D53,'Species List'!$I$16:$J$61,2,FALSE)*J53,\"\")","v":""},{"$f":"IFERROR(VLOOKUP(D53,'Species List'!$I$66:$J$66,2,FALSE)*J53,\"\")","v":""},{"$f":"IFERROR(VLOOKUP(D53,'Species List'!$I$71:$J$82,2,FALSE)*J53,\"\")","v":""},0,null,null,null,null,null,null,{"$f":"IFERROR(INDEX('3 - Land Summary'!$B$21:$B$120,(MATCH(AD53,'3 - Land Summary'!$C$21:$C$120,0))),\"\")","v":""}]
[null,{"$f":"IFERROR(INDEX('3 - Land Summary'!$B$21:$B$120,(MATCH('4 - Species Breakdown'!$V54,'3 - Land Summary'!$C$21:$C$120,0))),\"\")","v":""},null,null,{"$f":"IF(OR(COUNTIF('Look Up Data'!$D$149:$D$203,D54),COUNTIF('Look Up Data'!$D$149:$D$203,AE54)),\"YES\",\"NO\")","v":"NO"},null,null,{"$f":"IFERROR(INDEX('3 - Land Summary'!$G$21:$G$120,(MATCH(C54,'3 - Land Summary'!$C$21:$C$120,0))),\"\")","v":""},{"$f":"IFERROR(INDEX('3 - Land Summary'!$I$21:$I$120,(MATCH(C54,'3 - Land Summary'!$C$21:$C$120,0))),\"\")","v":""},"","",null,null,null,{"$f":"IFERROR(VLOOKUP(D54,'Species List'!$D$10:$E$46,2,FALSE)*J54,\"\")","v":""},{"$f":"IFERROR(VLOOKUP(D54,'Species List'!$D$51:$E$89,2,FALSE)*J54,\"\")","v":""},{"$f":"IFERROR(VLOOKUP(D54,'Species List'!$D$95:$E$102,2,FALSE)*J54,\"\")","v":""},{"$f":"IFERROR(VLOOKUP(D54,'Species List'!$I$10:$J$11,2,FALSE)*J54,\"\")","v":""},{"$f":"IFERROR(VLOOKUP(D54,'Species List'!$I$16:$J$61,2,FALSE)*J54,\"\")","v":""},{"$f":"IFERROR(VLOOKUP(D54,'Species List'!$I$66:$J$66,2,FALSE)*J54,\"\")","v":""},{"$f":"IFERROR(VLOOKUP(D54,'Species List'!$I$71:$J$82,2,FALSE)*J54,\"\")","v":""},0,null,null,null,null,null,null,{"$f":"IFERROR(INDEX('3 - Land Summary'!$B$21:$B$120,(MATCH(AD54,'3 - Land Summary'!$C$21:$C$120,0))),\"\")","v":""}]
[null,{"$f":"IFERROR(INDEX('3 - Land Summary'!$B$21:$B$120,(MATCH('4 - Species Breakdown'!$V55,'3 - Land Summary'!$C$21:$C$120,0))),\"\")","v":""},null,null,{"$f":"IF(OR(COUNTIF('Look Up Data'!$D$149:$D$203,D55),COUNTIF('Look Up Data'!$D$149:$D$203,AE55)),\"YES\",\"NO\")","v":"NO"},null,null,{"$f":"IFERROR(INDEX('3 - Land Summary'!$G$21:$G$120,(MATCH(C55,'3 - Land Summary'!$C$21:$C$120,0))),\"\")","v":""},{"$f":"IFERROR(INDEX('3 - Land Summary'!$I$21:$I$120,(MATCH(C55,'3 - Land Summary'!$C$21:$C$120,0))),\"\")","v":""},"","",null,null,null,{"$f":"IFERROR(VLOOKUP(D55,'Species List'!$D$10:$E$46,2,FALSE)*J55,\"\")","v":""},{"$f":"IFERROR(VLOOKUP(D55,'Species List'!$D$51:$E$89,2,FALSE)*J55,\"\")","v":""},{"$f":"IFERROR(VLOOKUP(D55,'Species List'!$D$95:$E$102,2,FALSE)*J55,\"\")","v":""},{"$f":"IFERROR(VLOOKUP(D55,'Species List'!$I$10:$J$11,2,FALSE)*J55,\"\")","v":""},{"$f":"IFERROR(VLOOKUP(D55,'Species List'!$I$16:$J$61,2,FALSE)*J55,\"\")","v":""},{"$f":"IFERROR(VLOOKUP(D55,'Species List'!$I$66:$J$66,2,FALSE)*J55,\"\")","v":""},{"$f":"IFERROR(VLOOKUP(D55,'Species List'!$I$71:$J$82,2,FALSE)*J55,\"\")","v":""},0,null,null,null,null,null,null,{"$f":"IFERROR(INDEX('3 - Land Summary'!$B$21:$B$120,(MATCH(AD55,'3 - Land Summary'!$C$21:$C$120,0))),\"\")","v":""}]
[null,{"$f":"IFERROR(INDEX('3 - Land Summary'!$B$21:$B$120,(MATCH('4 - Species Breakdown'!$V56,'3 - Land Summary'!$C$21:$C$120,0))),\"\")","v":""},null,null,{"$f":"IF(OR(COUNTIF('Look Up Data'!$D$149:$D$203,D56),COUNTIF('Look Up Data'!$D$149:$D$203,AE56)),\"YES\",\"NO\")","v":"NO"},null,null,{"$f":"IFERROR(INDEX('3 - Land Summary'!$G$21:$G$120,(MATCH(C56,'3 - Land Summary'!$C$21:$C$120,0))),\"\")","v":""},{"$f":"IFERROR(INDEX('3 - Land Summary'!$I$21:$I$120,(MATCH(C56,'3 - Land Summary'!$C$21:$C$120,0))),\"\")","v":""},"","",null,null,null,{"$f":"IFERROR(VLOOKUP(D56,'Species List'!$D$10:$E$46,2,FALSE)*J56,\"\")","v":""},{"$f":"IFERROR(VLOOKUP(D56,'Species List'!$D$51:$E$89,2,FALSE)*J56,\"\")","v":""},{"$f":"IFERROR(VLOOKUP(D56,'Species List'!$D$95:$E$102,2,FALSE)*J56,\"\")","v":""},{"$f":"IFERROR(VLOOKUP(D56,'Species List'!$I$10:$J$11,2,FALSE)*J56,\"\")","v":""},{"$f":"IFERROR(VLOOKUP(D56,'Species List'!$I$16:$J$61,2,FALSE)*J56,\"\")","v":""},{"$f":"IFERROR(VLOOKUP(D56,'Species List'!$I$66:$J$66,2,FALSE)*J56,\"\")","v":""},{"$f":"IFERROR(VLOOKUP(D56,'Species List'!$I$71:$J$82,2,FALSE)*J56,\"\")","v":""},0,null,null,null,null,null,null,{"$f":"IFERROR(INDEX('3 - Land Summary'!$B$21:$B$120,(MATCH(AD56,'3 - Land Summary'!$C$21:$C$120,0))),\"\")","v":""}]
[null,{"$f":"IFERROR(INDEX('3 - Land Summary'!$B$21:$B$120,(MATCH('4 - Species Breakdown'!$V57,'3 - Land Summary'!$C$21:$C$120,0))),\"\")","v":""},null,null,{"$f":"IF(OR(COUNTIF('Look Up Data'!$D$149:$D$203,D57),COUNTIF('Look Up Data'!$D$149:$D$203,AE57)),\"YES\",\"NO\")","v":"NO"},null,null,{"$f":"IFERROR(INDEX('3 - Land Summary'!$G$21:$G$120,(MATCH(C57,'3 - Land Summary'!$C$21:$C$120,0))),\"\")","v":""},{"$f":"IFERROR(INDEX('3 - Land Summary'!$I$21:$I$120,(MATCH(C57,'3 - Land Summary'!$C$21:$C$120,0))),\"\")","v":""},"","",null,null,null,{"$f":"IFERROR(VLOOKUP(D57,'Species List'!$D$10:$E$46,2,FALSE)*J57,\"\")","v":""},{"$f":"IFERROR(VLOOKUP(D57,'Species List'!$D$51:$E$89,2,FALSE)*J57,\"\")","v":""},{"$f":"IFERROR(VLOOKUP(D57,'Species List'!$D$95:$E$102,2,FALSE)*J57,\"\")","v":""},{"$f":"IFERROR(VLOOKUP(D57,'Species List'!$I$10:$J$11,2,FALSE)*J57,\"\")","v":""},{"$f":"IFERROR(VLOOKUP(D57,'Species List'!$I$16:$J$61,2,FALSE)*J57,\"\")","v":""},{"$f":"IFERROR(VLOOKUP(D57,'Species List'!$I$66:$J$66,2,FALSE)*J57,\"\")","v":""},{"$f":"IFERROR(VLOOKUP(D57,'Species List'!$I$71:$J$82,2,FALSE)*J57,\"\")","v":""},0,null,null,null,null,null,null,{"$f":"IFERROR(INDEX('3 - Land Summary'!$B$21:$B$120,(MATCH(AD57,'3 - Land Summary'!$C$21:$C$120,0))),\"\")","v":""}]
[null,{"$f":"IFERROR(INDEX('3 - Land Summary'!$B$21:$B$120,(MATCH('4 - Species Breakdown'!$V58,'3 - Land Summary'!$C$21:$C$120,0))),\"\")","v":""},null,null,{"$f":"IF(OR(COUNTIF('Look Up Data'!$D$149:$D$203,D58),COUNTIF('Look Up Data'!$D$149:$D$203,AE58)),\"YES\",\"NO\")","v":"NO"},null,null,{"$f":"IFERROR(INDEX('3 - Land Summary'!$G$21:$G$120,(MATCH(C58,'3 - Land Summary'!$C$21:$C$120,0))),\"\")","v":""},{"$f":"IFERROR(INDEX('3 - Land Summary'!$I$21:$I$120,(MATCH(C58,'3 - Land Summary'!$C$21:$C$120,0))),\"\")","v":""},"","",null,null,null,{"$f":"IFERROR(VLOOKUP(D58,'Species List'!$D$10:$E$46,2,FALSE)*J58,\"\")","v":""},{"$f":"IFERROR(VLOOKUP(D58,'Species List'!$D$51:$E$89,2,FALSE)*J58,\"\")","v":""},{"$f":"IFERROR(VLOOKUP(D58,'Species List'!$D$95:$E$102,2,FALSE)*J58,\"\")","v":""},{"$f":"IFERROR(VLOOKUP(D58,'Species List'!$I$10:$J$11,2,FALSE)*J58,\"\")","v":""},{"$f":"IFERROR(VLOOKUP(D58,'Species List'!$I$16:$J$61,2,FALSE)*J58,\"\")","v":""},{"$f":"IFERROR(VLOOKUP(D58,'Species List'!$I$66:$J$66,2,FALSE)*J58,\"\")","v":""},{"$f":"IFERROR(VLOOKUP(D58,'Species List'!$I$71:$J$82,2,FALSE)*J58,\"\")","v":""},0,null,null,null,null,null,null,{"$f":"IFERROR(INDEX('3 - Land Summary'!$B$21:$B$120,(MATCH(AD58,'3 - Land Summary'!$C$21:$C$120,0))),\"\")","v":""}]
[null,{"$f":"IFERROR(INDEX('3 - Land Summary'!$B$21:$B$120,(MATCH('4 - Species Breakdown'!$V59,'3 - Land Summary'!$C$21:$C$120,0))),\"\")","v":""},null,null,{"$f":"IF(OR(COUNTIF('Look Up Data'!$D$149:$D$203,D59),COUNTIF('Look Up Data'!$D$149:$D$203,AE59)),\"YES\",\"NO\")","v":"NO"},null,null,{"$f":"IFERROR(INDEX('3 - Land Summary'!$G$21:$G$120,(MATCH(C59,'3 - Land Summary'!$C$21:$C$120,0))),\"\")","v":""},{"$f":"IFERROR(INDEX('3 - Land Summary'!$I$21:$I$120,(MATCH(C59,'3 - Land Summary'!$C$21:$C$120,0))),\"\")","v":""},"","",null,null,null,{"$f":"IFERROR(VLOOKUP(D59,'Species List'!$D$10:$E$46,2,FALSE)*J59,\"\")","v":""},{"$f":"IFERROR(VLOOKUP(D59,'Species List'!$D$51:$E$89,2,FALSE)*J59,\"\")","v":""},{"$f":"IFERROR(VLOOKUP(D59,'Species List'!$D$95:$E$102,2,FALSE)*J59,\"\")","v":""},{"$f":"IFERROR(VLOOKUP(D59,'Species List'!$I$10:$J$11,2,FALSE)*J59,\"\")","v":""},{"$f":"IFERROR(VLOOKUP(D59,'Species List'!$I$16:$J$61,2,FALSE)*J59,\"\")","v":""},{"$f":"IFERROR(VLOOKUP(D59,'Species List'!$I$66:$J$66,2,FALSE)*J59,\"\")","v":""},{"$f":"IFERROR(VLOOKUP(D59,'Species List'!$I$71:$J$82,2,FALSE)*J59,\"\")","v":""},0,null,null,null,null,null,null,{"$f":"IFERROR(INDEX('3 - Land Summary'!$B$21:$B$120,(MATCH(AD59,'3 - Land Summary'!$C$21:$C$120,0))),\"\")","v":""}]
[null,{"$f":"IFERROR(INDEX('3 - Land Summary'!$B$21:$B$120,(MATCH('4 - Species Breakdown'!$V60,'3 - Land Summary'!$C$21:$C$120,0))),\"\")","v":""},null,null,{"$f":"IF(OR(COUNTIF('Look Up Data'!$D$149:$D$203,D60),COUNTIF('Look Up Data'!$D$149:$D$203,AE60)),\"YES\",\"NO\")","v":"NO"},null,null,{"$f":"IFERROR(INDEX('3 - Land Summary'!$G$21:$G$120,(MATCH(C60,'3 - Land Summary'!$C$21:$C$120,0))),\"\")","v":""},{"$f":"IFERROR(INDEX('3 - Land Summary'!$I$21:$I$120,(MATCH(C60,'3 - Land Summary'!$C$21:$C$120,0))),\"\")","v":""},"","",null,null,null,{"$f":"IFERROR(VLOOKUP(D60,'Species List'!$D$10:$E$46,2,FALSE)*J60,\"\")","v":""},{"$f":"IFERROR(VLOOKUP(D60,'Species List'!$D$51:$E$89,2,FALSE)*J60,\"\")","v":""},{"$f":"IFERROR(VLOOKUP(D60,'Species List'!$D$95:$E$102,2,FALSE)*J60,\"\")","v":""},{"$f":"IFERROR(VLOOKUP(D60,'Species List'!$I$10:$J$11,2,FALSE)*J60,\"\")","v":""},{"$f":"IFERROR(VLOOKUP(D60,'Species List'!$I$16:$J$61,2,FALSE)*J60,\"\")","v":""},{"$f":"IFERROR(VLOOKUP(D60,'Species List'!$I$66:$J$66,2,FALSE)*J60,\"\")","v":""},{"$f":"IFERROR(VLOOKUP(D60,'Species List'!$I$71:$J$82,2,FALSE)*J60,\"\")","v":""},0,null,null,null,null,null,null,{"$f":"IFERROR(INDEX('3 - Land Summary'!$B$21:$B$120,(MATCH(AD60,'3 - Land Summary'!$C$21:$C$120,0))),\"\")","v":""}]
[null,{"$f":"IFERROR(INDEX('3 - Land Summary'!$B$21:$B$120,(MATCH('4 - Species Breakdown'!$V61,'3 - Land Summary'!$C$21:$C$120,0))),\"\")","v":""},null,null,{"$f":"IF(OR(COUNTIF('Look Up Data'!$D$149:$D$203,D61),COUNTIF('Look Up Data'!$D$149:$D$203,AE61)),\"YES\",\"NO\")","v":"NO"},null,null,{"$f":"IFERROR(INDEX('3 - Land Summary'!$G$21:$G$120,(MATCH(C61,'3 - Land Summary'!$C$21:$C$120,0))),\"\")","v":""},{"$f":"IFERROR(INDEX('3 - Land Summary'!$I$21:$I$120,(MATCH(C61,'3 - Land Summary'!$C$21:$C$120,0))),\"\")","v":""},"","",null,null,null,{"$f":"IFERROR(VLOOKUP(D61,'Species List'!$D$10:$E$46,2,FALSE)*J61,\"\")","v":""},{"$f":"IFERROR(VLOOKUP(D61,'Species List'!$D$51:$E$89,2,FALSE)*J61,\"\")","v":""},{"$f":"IFERROR(VLOOKUP(D61,'Species List'!$D$95:$E$102,2,FALSE)*J61,\"\")","v":""},{"$f":"IFERROR(VLOOKUP(D61,'Species List'!$I$10:$J$11,2,FALSE)*J61,\"\")","v":""},{"$f":"IFERROR(VLOOKUP(D61,'Species List'!$I$16:$J$61,2,FALSE)*J61,\"\")","v":""},{"$f":"IFERROR(VLOOKUP(D61,'Species List'!$I$66:$J$66,2,FALSE)*J61,\"\")","v":""},{"$f":"IFERROR(VLOOKUP(D61,'Species List'!$I$71:$J$82,2,FALSE)*J61,\"\")","v":""},0,null,null,null,null,null,null,{"$f":"IFERROR(INDEX('3 - Land Summary'!$B$21:$B$120,(MATCH(AD61,'3 - Land Summary'!$C$21:$C$120,0))),\"\")","v":""}]
[null,{"$f":"IFERROR(INDEX('3 - Land Summary'!$B$21:$B$120,(MATCH('4 - Species Breakdown'!$V62,'3 - Land Summary'!$C$21:$C$120,0))),\"\")","v":""},null,null,{"$f":"IF(OR(COUNTIF('Look Up Data'!$D$149:$D$203,D62),COUNTIF('Look Up Data'!$D$149:$D$203,AE62)),\"YES\",\"NO\")","v":"NO"},null,null,{"$f":"IFERROR(INDEX('3 - Land Summary'!$G$21:$G$120,(MATCH(C62,'3 - Land Summary'!$C$21:$C$120,0))),\"\")","v":""},{"$f":"IFERROR(INDEX('3 - Land Summary'!$I$21:$I$120,(MATCH(C62,'3 - Land Summary'!$C$21:$C$120,0))),\"\")","v":""},"","",null,null,null,{"$f":"IFERROR(VLOOKUP(D62,'Species List'!$D$10:$E$46,2,FALSE)*J62,\"\")","v":""},{"$f":"IFERROR(VLOOKUP(D62,'Species List'!$D$51:$E$89,2,FALSE)*J62,\"\")","v":""},{"$f":"IFERROR(VLOOKUP(D62,'Species List'!$D$95:$E$102,2,FALSE)*J62,\"\")","v":""},{"$f":"IFERROR(VLOOKUP(D62,'Species List'!$I$10:$J$11,2,FALSE)*J62,\"\")","v":""},{"$f":"IFERROR(VLOOKUP(D62,'Species List'!$I$16:$J$61,2,FALSE)*J62,\"\")","v":""},{"$f":"IFERROR(VLOOKUP(D62,'Species List'!$I$66:$J$66,2,FALSE)*J62,\"\")","v":""},{"$f":"IFERROR(VLOOKUP(D62,'Species List'!$I$71:$J$82,2,FALSE)*J62,\"\")","v":""},0,null,null,null,null,null,null,{"$f":"IFERROR(INDEX('3 - Land Summary'!$B$21:$B$120,(MATCH(AD62,'3 - Land Summary'!$C$21:$C$120,0))),\"\")","v":""}]
[null,{"$f":"IFERROR(INDEX('3 - Land Summary'!$B$21:$B$120,(MATCH('4 - Species Breakdown'!$V63,'3 - Land Summary'!$C$21:$C$120,0))),\"\")","v":""},null,null,{"$f":"IF(OR(COUNTIF('Look Up Data'!$D$149:$D$203,D63),COUNTIF('Look Up Data'!$D$149:$D$203,AE63)),\"YES\",\"NO\")","v":"NO"},null,null,{"$f":"IFERROR(INDEX('3 - Land Summary'!$G$21:$G$120,(MATCH(C63,'3 - Land Summary'!$C$21:$C$120,0))),\"\")","v":""},{"$f":"IFERROR(INDEX('3 - Land Summary'!$I$21:$I$120,(MATCH(C63,'3 - Land Summary'!$C$21:$C$120,0))),\"\")","v":""},"","",null,null,null,{"$f":"IFERROR(VLOOKUP(D63,'Species List'!$D$10:$E$46,2,FALSE)*J63,\"\")","v":""},{"$f":"IFERROR(VLOOKUP(D63,'Species List'!$D$51:$E$89,2,FALSE)*J63,\"\")","v":""},{"$f":"IFERROR(VLOOKUP(D63,'Species List'!$D$95:$E$102,2,FALSE)*J63,\"\")","v":""},{"$f":"IFERROR(VLOOKUP(D63,'Species List'!$I$10:$J$11,2,FALSE)*J63,\"\")","v":""},{"$f":"IFERROR(VLOOKUP(D63,'Species List'!$I$16:$J$61,2,FALSE)*J63,\"\")","v":""},{"$f":"IFERROR(VLOOKUP(D63,'Species List'!$I$66:$J$66,2,FALSE)*J63,\"\")","v":""},{"$f":"IFERROR(VLOOKUP(D63,'Species List'!$I$71:$J$82,2,FALSE)*J63,\"\")","v":""},0,null,null,null,null,null,null,{"$f":"IFERROR(INDEX('3 - Land Summary'!$B$21:$B$120,(MATCH(AD63,'3 - Land Summary'!$C$21:$C$120,0))),\"\")","v":""}]
[null,{"$f":"IFERROR(INDEX('3 - Land Summary'!$B$21:$B$120,(MATCH('4 - Species Breakdown'!$V64,'3 - Land Summary'!$C$21:$C$120,0))),\"\")","v":""},null,null,{"$f":"IF(OR(COUNTIF('Look Up Data'!$D$149:$D$203,D64),COUNTIF('Look Up Data'!$D$149:$D$203,AE64)),\"YES\",\"NO\")","v":"NO"},null,null,{"$f":"IFERROR(INDEX('3 - Land Summary'!$G$21:$G$120,(MATCH(C64,'3 - Land Summary'!$C$21:$C$120,0))),\"\")","v":""},{"$f":"IFERROR(INDEX('3 - Land Summary'!$I$21:$I$120,(MATCH(C64,'3 - Land Summary'!$C$21:$C$120,0))),\"\")","v":""},"","",null,null,null,{"$f":"IFERROR(VLOOKUP(D64,'Species List'!$D$10:$E$46,2,FALSE)*J64,\"\")","v":""},{"$f":"IFERROR(VLOOKUP(D64,'Species List'!$D$51:$E$89,2,FALSE)*J64,\"\")","v":""},{"$f":"IFERROR(VLOOKUP(D64,'Species List'!$D$95:$E$102,2,FALSE)*J64,\"\")","v":""},{"$f":"IFERROR(VLOOKUP(D64,'Species List'!$I$10:$J$11,2,FALSE)*J64,\"\")","v":""},{"$f":"IFERROR(VLOOKUP(D64,'Species List'!$I$16:$J$61,2,FALSE)*J64,\"\")","v":""},{"$f":"IFERROR(VLOOKUP(D64,'Species List'!$I$66:$J$66,2,FALSE)*J64,\"\")","v":""},{"$f":"IFERROR(VLOOKUP(D64,'Species List'!$I$71:$J$82,2,FALSE)*J64,\"\")","v":""},0,null,null,null,null,null,null,{"$f":"IFERROR(INDEX('3 - Land Summary'!$B$21:$B$120,(MATCH(AD64,'3 - Land Summary'!$C$21:$C$120,0))),\"\")","v":""}]
[null,{"$f":"IFERROR(INDEX('3 - Land Summary'!$B$21:$B$120,(MATCH('4 - Species Breakdown'!$V65,'3 - Land Summary'!$C$21:$C$120,0))),\"\")","v":""},null,null,{"$f":"IF(OR(COUNTIF('Look Up Data'!$D$149:$D$203,D65),COUNTIF('Look Up Data'!$D$149:$D$203,AE65)),\"YES\",\"NO\")","v":"NO"},null,null,{"$f":"IFERROR(INDEX('3 - Land Summary'!$G$21:$G$120,(MATCH(C65,'3 - Land Summary'!$C$21:$C$120,0))),\"\")","v":""},{"$f":"IFERROR(INDEX('3 - Land Summary'!$I$21:$I$120,(MATCH(C65,'3 - Land Summary'!$C$21:$C$120,0))),\"\")","v":""},"","",null,null,null,{"$f":"IFERROR(VLOOKUP(D65,'Species List'!$D$10:$E$46,2,FALSE)*J65,\"\")","v":""},{"$f":"IFERROR(VLOOKUP(D65,'Species List'!$D$51:$E$89,2,FALSE)*J65,\"\")","v":""},{"$f":"IFERROR(VLOOKUP(D65,'Species List'!$D$95:$E$102,2,FALSE)*J65,\"\")","v":""},{"$f":"IFERROR(VLOOKUP(D65,'Species List'!$I$10:$J$11,2,FALSE)*J65,\"\")","v":""},{"$f":"IFERROR(VLOOKUP(D65,'Species List'!$I$16:$J$61,2,FALSE)*J65,\"\")","v":""},{"$f":"IFERROR(VLOOKUP(D65,'Species List'!$I$66:$J$66,2,FALSE)*J65,\"\")","v":""},{"$f":"IFERROR(VLOOKUP(D65,'Species List'!$I$71:$J$82,2,FALSE)*J65,\"\")","v":""},0,null,null,null,null,null,null,{"$f":"IFERROR(INDEX('3 - Land Summary'!$B$21:$B$120,(MATCH(AD65,'3 - Land Summary'!$C$21:$C$120,0))),\"\")","v":""}]
[null,{"$f":"IFERROR(INDEX('3 - Land Summary'!$B$21:$B$120,(MATCH('4 - Species Breakdown'!$V66,'3 - Land Summary'!$C$21:$C$120,0))),\"\")","v":""},null,null,{"$f":"IF(OR(COUNTIF('Look Up Data'!$D$149:$D$203,D66),COUNTIF('Look Up Data'!$D$149:$D$203,AE66)),\"YES\",\"NO\")","v":"NO"},null,null,{"$f":"IFERROR(INDEX('3 - Land Summary'!$G$21:$G$120,(MATCH(C66,'3 - Land Summary'!$C$21:$C$120,0))),\"\")","v":""},{"$f":"IFERROR(INDEX('3 - Land Summary'!$I$21:$I$120,(MATCH(C66,'3 - Land Summary'!$C$21:$C$120,0))),\"\")","v":""},"","",null,null,null,{"$f":"IFERROR(VLOOKUP(D66,'Species List'!$D$10:$E$46,2,FALSE)*J66,\"\")","v":""},{"$f":"IFERROR(VLOOKUP(D66,'Species List'!$D$51:$E$89,2,FALSE)*J66,\"\")","v":""},{"$f":"IFERROR(VLOOKUP(D66,'Species List'!$D$95:$E$102,2,FALSE)*J66,\"\")","v":""},{"$f":"IFERROR(VLOOKUP(D66,'Species List'!$I$10:$J$11,2,FALSE)*J66,\"\")","v":""},{"$f":"IFERROR(VLOOKUP(D66,'Species List'!$I$16:$J$61,2,FALSE)*J66,\"\")","v":""},{"$f":"IFERROR(VLOOKUP(D66,'Species List'!$I$66:$J$66,2,FALSE)*J66,\"\")","v":""},{"$f":"IFERROR(VLOOKUP(D66,'Species List'!$I$71:$J$82,2,FALSE)*J66,\"\")","v":""},0,null,null,null,null,null,null,{"$f":"IFERROR(INDEX('3 - Land Summary'!$B$21:$B$120,(MATCH(AD66,'3 - Land Summary'!$C$21:$C$120,0))),\"\")","v":""}]
[null,{"$f":"IFERROR(INDEX('3 - Land Summary'!$B$21:$B$120,(MATCH('4 - Species Breakdown'!$V67,'3 - Land Summary'!$C$21:$C$120,0))),\"\")","v":""},null,null,{"$f":"IF(OR(COUNTIF('Look Up Data'!$D$149:$D$203,D67),COUNTIF('Look Up Data'!$D$149:$D$203,AE67)),\"YES\",\"NO\")","v":"NO"},null,null,{"$f":"IFERROR(INDEX('3 - Land Summary'!$G$21:$G$120,(MATCH(C67,'3 - Land Summary'!$C$21:$C$120,0))),\"\")","v":""},{"$f":"IFERROR(INDEX('3 - Land Summary'!$I$21:$I$120,(MATCH(C67,'3 - Land Summary'!$C$21:$C$120,0))),\"\")","v":""},"","",null,null,null,{"$f":"IFERROR(VLOOKUP(D67,'Species List'!$D$10:$E$46,2,FALSE)*J67,\"\")","v":""},{"$f":"IFERROR(VLOOKUP(D67,'Species List'!$D$51:$E$89,2,FALSE)*J67,\"\")","v":""},{"$f":"IFERROR(VLOOKUP(D67,'Species List'!$D$95:$E$102,2,FALSE)*J67,\"\")","v":""},{"$f":"IFERROR(VLOOKUP(D67,'Species List'!$I$10:$J$11,2,FALSE)*J67,\"\")","v":""},{"$f":"IFERROR(VLOOKUP(D67,'Species List'!$I$16:$J$61,2,FALSE)*J67,\"\")","v":""},{"$f":"IFERROR(VLOOKUP(D67,'Species List'!$I$66:$J$66,2,FALSE)*J67,\"\")","v":""},{"$f":"IFERROR(VLOOKUP(D67,'Species List'!$I$71:$J$82,2,FALSE)*J67,\"\")","v":""},0,null,null,null,null,null,null,{"$f":"IFERROR(INDEX('3 - Land Summary'!$B$21:$B$120,(MATCH(AD67,'3 - Land Summary'!$C$21:$C$120,0))),\"\")","v":""}]
[null,{"$f":"IFERROR(INDEX('3 - Land Summary'!$B$21:$B$120,(MATCH('4 - Species Breakdown'!$V68,'3 - Land Summary'!$C$21:$C$120,0))),\"\")","v":""},null,null,{"$f":"IF(OR(COUNTIF('Look Up Data'!$D$149:$D$203,D68),COUNTIF('Look Up Data'!$D$149:$D$203,AE68)),\"YES\",\"NO\")","v":"NO"},null,null,{"$f":"IFERROR(INDEX('3 - Land Summary'!$G$21:$G$120,(MATCH(C68,'3 - Land Summary'!$C$21:$C$120,0))),\"\")","v":""},{"$f":"IFERROR(INDEX('3 - Land Summary'!$I$21:$I$120,(MATCH(C68,'3 - Land Summary'!$C$21:$C$120,0))),\"\")","v":""},"","",null,null,null,{"$f":"IFERROR(VLOOKUP(D68,'Species List'!$D$10:$E$46,2,FALSE)*J68,\"\")","v":""},{"$f":"IFERROR(VLOOKUP(D68,'Species List'!$D$51:$E$89,2,FALSE)*J68,\"\")","v":""},{"$f":"IFERROR(VLOOKUP(D68,'Species List'!$D$95:$E$102,2,FALSE)*J68,\"\")","v":""},{"$f":"IFERROR(VLOOKUP(D68,'Species List'!$I$10:$J$11,2,FALSE)*J68,\"\")","v":""},{"$f":"IFERROR(VLOOKUP(D68,'Species List'!$I$16:$J$61,2,FALSE)*J68,\"\")","v":""},{"$f":"IFERROR(VLOOKUP(D68,'Species List'!$I$66:$J$66,2,FALSE)*J68,\"\")","v":""},{"$f":"IFERROR(VLOOKUP(D68,'Species List'!$I$71:$J$82,2,FALSE)*J68,\"\")","v":""},0,null,null,null,null,null,null,{"$f":"IFERROR(INDEX('3 - Land Summary'!$B$21:$B$120,(MATCH(AD68,'3 - Land Summary'!$C$21:$C$120,0))),\"\")","v":""}]
[null,{"$f":"IFERROR(INDEX('3 - Land Summary'!$B$21:$B$120,(MATCH('4 - Species Breakdown'!$V69,'3 - Land Summary'!$C$21:$C$120,0))),\"\")","v":""},null,null,{"$f":"IF(OR(COUNTIF('Look Up Data'!$D$149:$D$203,D69),COUNTIF('Look Up Data'!$D$149:$D$203,AE69)),\"YES\",\"NO\")","v":"NO"},null,null,{"$f":"IFERROR(INDEX('3 - Land Summary'!$G$21:$G$120,(MATCH(C69,'3 - Land Summary'!$C$21:$C$120,0))),\"\")","v":""},{"$f":"IFERROR(INDEX('3 - Land Summary'!$I$21:$I$120,(MATCH(C69,'3 - Land Summary'!$C$21:$C$120,0))),\"\")","v":""},{"$f":"IFERROR(((H69-I69)*F69)/100,\"\")","v":""},"",null,null,null,{"$f":"IFERROR(VLOOKUP(D69,'Species List'!$D$10:$E$46,2,FALSE)*J69,\"\")","v":""},{"$f":"IFERROR(VLOOKUP(D69,'Species List'!$D$51:$E$89,2,FALSE)*J69,\"\")","v":""},{"$f":"IFERROR(VLOOKUP(D69,'Species List'!$D$95:$E$102,2,FALSE)*J69,\"\")","v":""},{"$f":"IFERROR(VLOOKUP(D69,'Species List'!$I$10:$J$11,2,FALSE)*J69,\"\")","v":""},{"$f":"IFERROR(VLOOKUP(D69,'Species List'!$I$16:$J$61,2,FALSE)*J69,\"\")","v":""},{"$f":"IFERROR(VLOOKUP(D69,'Species List'!$I$66:$J$66,2,FALSE)*J69,\"\")","v":""},{"$f":"IFERROR(VLOOKUP(D69,'Species List'!$I$71:$J$82,2,FALSE)*J69,\"\")","v":""},0,null,null,null,null,null,null,{"$f":"IFERROR(INDEX('3 - Land Summary'!$B$21:$B$120,(MATCH(AD69,'3 - Land Summary'!$C$21:$C$120,0))),\"\")","v":""}]
[null,{"$f":"IFERROR(INDEX('3 - Land Summary'!$B$21:$B$120,(MATCH('4 - Species Breakdown'!$V70,'3 - Land Summary'!$C$21:$C$120,0))),\"\")","v":""},null,null,{"$f":"IF(OR(COUNTIF('Look Up Data'!$D$149:$D$203,D70),COUNTIF('Look Up Data'!$D$149:$D$203,AE70)),\"YES\",\"NO\")","v":"NO"},null,null,{"$f":"IFERROR(INDEX('3 - Land Summary'!$G$21:$G$120,(MATCH(C70,'3 - Land Summary'!$C$21:$C$120,0))),\"\")","v":""},{"$f":"IFERROR(INDEX('3 - Land Summary'!$I$21:$I$120,(MATCH(C70,'3 - Land Summary'!$C$21:$C$120,0))),\"\")","v":""},{"$f":"IFERROR(((H70-I70)*F70)/100,\"\")","v":""},"",null,null,null,{"$f":"IFERROR(VLOOKUP(D70,'Species List'!$D$10:$E$46,2,FALSE)*J70,\"\")","v":""},{"$f":"IFERROR(VLOOKUP(D70,'Species List'!$D$51:$E$89,2,FALSE)*J70,\"\")","v":""},{"$f":"IFERROR(VLOOKUP(D70,'Species List'!$D$95:$E$102,2,FALSE)*J70,\"\")","v":""},{"$f":"IFERROR(VLOOKUP(D70,'Species List'!$I$10:$J$11,2,FALSE)*J70,\"\")","v":""},{"$f":"IFERROR(VLOOKUP(D70,'Species List'!$I$16:$J$61,2,FALSE)*J70,\"\")","v":""},{"$f":"IFERROR(VLOOKUP(D70,'Species List'!$I$66:$J$66,2,FALSE)*J70,\"\")","v":""},{"$f":"IFERROR(VLOOKUP(D70,'Species List'!$I$71:$J$82,2,FALSE)*J70,\"\")","v":""},0,null,null,null,null,null,null,{"$f":"IFERROR(INDEX('3 - Land Summary'!$B$21:$B$120,(MATCH(AD70,'3 - Land Summary'!$C$21:$C$120,0))),\"\")","v":""}]
[null,{"$f":"IFERROR(INDEX('3 - Land Summary'!$B$21:$B$120,(MATCH('4 - Species Breakdown'!$V71,'3 - Land Summary'!$C$21:$C$120,0))),\"\")","v":""},null,null,{"$f":"IF(OR(COUNTIF('Look Up Data'!$D$149:$D$203,D71),COUNTIF('Look Up Data'!$D$149:$D$203,AE71)),\"YES\",\"NO\")","v":"NO"},null,null,{"$f":"IFERROR(INDEX('3 - Land Summary'!$G$21:$G$120,(MATCH(C71,'3 - Land Summary'!$C$21:$C$120,0))),\"\")","v":""},{"$f":"IFERROR(INDEX('3 - Land Summary'!$I$21:$I$120,(MATCH(C71,'3 - Land Summary'!$C$21:$C$120,0))),\"\")","v":""},{"$f":"IFERROR(((H71-I71)*F71)/100,\"\")","v":""},"",null,null,null,{"$f":"IFERROR(VLOOKUP(D71,'Species List'!$D$10:$E$46,2,FALSE)*J71,\"\")","v":""},{"$f":"IFERROR(VLOOKUP(D71,'Species List'!$D$51:$E$89,2,FALSE)*J71,\"\")","v":""},{"$f":"IFERROR(VLOOKUP(D71,'Species List'!$D$95:$E$102,2,FALSE)*J71,\"\")","v":""},{"$f":"IFERROR(VLOOKUP(D71,'Species List'!$I$10:$J$11,2,FALSE)*J71,\"\")","v":""},{"$f":"IFERROR(VLOOKUP(D71,'Species List'!$I$16:$J$61,2,FALSE)*J71,\"\")","v":""},{"$f":"IFERROR(VLOOKUP(D71,'Species List'!$I$66:$J$66,2,FALSE)*J71,\"\")","v":""},{"$f":"IFERROR(VLOOKUP(D71,'Species List'!$I$71:$J$82,2,FALSE)*J71,\"\")","v":""},0,null,null,null,null,null,null,{"$f":"IFERROR(INDEX('3 - Land Summary'!$B$21:$B$120,(MATCH(AD71,'3 - Land Summary'!$C$21:$C$120,0))),\"\")","v":""}]
[null,{"$f":"IFERROR(INDEX('3 - Land Summary'!$B$21:$B$120,(MATCH('4 - Species Breakdown'!$V72,'3 - Land Summary'!$C$21:$C$120,0))),\"\")","v":""},null,null,{"$f":"IF(OR(COUNTIF('Look Up Data'!$D$149:$D$203,D72),COUNTIF('Look Up Data'!$D$149:$D$203,AE72)),\"YES\",\"NO\")","v":"NO"},null,null,{"$f":"IFERROR(INDEX('3 - Land Summary'!$G$21:$G$120,(MATCH(C72,'3 - Land Summary'!$C$21:$C$120,0))),\"\")","v":""},{"$f":"IFERROR(INDEX('3 - Land Summary'!$I$21:$I$120,(MATCH(C72,'3 - Land Summary'!$C$21:$C$120,0))),\"\")","v":""},"","",null,null,null,{"$f":"IFERROR(VLOOKUP(D72,'Species List'!$D$10:$E$46,2,FALSE)*J72,\"\")","v":""},{"$f":"IFERROR(VLOOKUP(D72,'Species List'!$D$51:$E$89,2,FALSE)*J72,\"\")","v":""},{"$f":"IFERROR(VLOOKUP(D72,'Species List'!$D$95:$E$102,2,FALSE)*J72,\"\")","v":""},{"$f":"IFERROR(VLOOKUP(D72,'Species List'!$I$10:$J$11,2,FALSE)*J72,\"\")","v":""},{"$f":"IFERROR(VLOOKUP(D72,'Species List'!$I$16:$J$61,2,FALSE)*J72,\"\")","v":""},{"$f":"IFERROR(VLOOKUP(D72,'Species List'!$I$66:$J$66,2,FALSE)*J72,\"\")","v":""},{"$f":"IFERROR(VLOOKUP(D72,'Species List'!$I$71:$J$82,2,FALSE)*J72,\"\")","v":""},0,null,null,null,null,null,null,{"$f":"IFERROR(INDEX('3 - Land Summary'!$B$21:$B$120,(MATCH(AD72,'3 - Land Summary'!$C$21:$C$120,0))),\"\")","v":""}]
[null,{"$f":"IFERROR(INDEX('3 - Land Summary'!$B$21:$B$120,(MATCH('4 - Species Breakdown'!$V73,'3 - Land Summary'!$C$21:$C$120,0))),\"\")","v":""},null,null,{"$f":"IF(OR(COUNTIF('Look Up Data'!$D$149:$D$203,D73),COUNTIF('Look Up Data'!$D$149:$D$203,AE73)),\"YES\",\"NO\")","v":"NO"},null,null,{"$f":"IFERROR(INDEX('3 - Land Summary'!$G$21:$G$120,(MATCH(C73,'3 - Land Summary'!$C$21:$C$120,0))),\"\")","v":""},{"$f":"IFERROR(INDEX('3 - Land Summary'!$I$21:$I$120,(MATCH(C73,'3 - Land Summary'!$C$21:$C$120,0))),\"\")","v":""},"","",null,null,null,{"$f":"IFERROR(VLOOKUP(D73,'Species List'!$D$10:$E$46,2,FALSE)*J73,\"\")","v":""},{"$f":"IFERROR(VLOOKUP(D73,'Species List'!$D$51:$E$89,2,FALSE)*J73,\"\")","v":""},{"$f":"IFERROR(VLOOKUP(D73,'Species List'!$D$95:$E$102,2,FALSE)*J73,\"\")","v":""},{"$f":"IFERROR(VLOOKUP(D73,'Species List'!$I$10:$J$11,2,FALSE)*J73,\"\")","v":""},{"$f":"IFERROR(VLOOKUP(D73,'Species List'!$I$16:$J$61,2,FALSE)*J73,\"\")","v":""},{"$f":"IFERROR(VLOOKUP(D73,'Species List'!$I$66:$J$66,2,FALSE)*J73,\"\")","v":""},{"$f":"IFERROR(VLOOKUP(D73,'Species List'!$I$71:$J$82,2,FALSE)*J73,\"\")","v":""},0,null,null,null,null,null,null,{"$f":"IFERROR(INDEX('3 - Land Summary'!$B$21:$B$120,(MATCH(AD73,'3 - Land Summary'!$C$21:$C$120,0))),\"\")","v":""}]
[null,{"$f":"IFERROR(INDEX('3 - Land Summary'!$B$21:$B$120,(MATCH('4 - Species Breakdown'!$V74,'3 - Land Summary'!$C$21:$C$120,0))),\"\")","v":""},null,null,{"$f":"IF(OR(COUNTIF('Look Up Data'!$D$149:$D$203,D74),COUNTIF('Look Up Data'!$D$149:$D$203,AE74)),\"YES\",\"NO\")","v":"NO"},null,null,{"$f":"IFERROR(INDEX('3 - Land Summary'!$G$21:$G$120,(MATCH(C74,'3 - Land Summary'!$C$21:$C$120,0))),\"\")","v":""},{"$f":"IFERROR(INDEX('3 - Land Summary'!$I$21:$I$120,(MATCH(C74,'3 - Land Summary'!$C$21:$C$120,0))),\"\")","v":""},"","",null,null,null,{"$f":"IFERROR(VLOOKUP(D74,'Species List'!$D$10:$E$46,2,FALSE)*J74,\"\")","v":""},{"$f":"IFERROR(VLOOKUP(D74,'Species List'!$D$51:$E$89,2,FALSE)*J74,\"\")","v":""},{"$f":"IFERROR(VLOOKUP(D74,'Species List'!$D$95:$E$102,2,FALSE)*J74,\"\")","v":""},{"$f":"IFERROR(VLOOKUP(D74,'Species List'!$I$10:$J$11,2,FALSE)*J74,\"\")","v":""},{"$f":"IFERROR(VLOOKUP(D74,'Species List'!$I$16:$J$61,2,FALSE)*J74,\"\")","v":""},{"$f":"IFERROR(VLOOKUP(D74,'Species List'!$I$66:$J$66,2,FALSE)*J74,\"\")","v":""},{"$f":"IFERROR(VLOOKUP(D74,'Species List'!$I$71:$J$82,2,FALSE)*J74,\"\")","v":""},0,null,null,null,null,null,null,{"$f":"IFERROR(INDEX('3 - Land Summary'!$B$21:$B$120,(MATCH(AD74,'3 - Land Summary'!$C$21:$C$120,0))),\"\")","v":""}]
[null,{"$f":"IFERROR(INDEX('3 - Land Summary'!$B$21:$B$120,(MATCH('4 - Species Breakdown'!$V75,'3 - Land Summary'!$C$21:$C$120,0))),\"\")","v":""},null,null,{"$f":"IF(OR(COUNTIF('Look Up Data'!$D$149:$D$203,D75),COUNTIF('Look Up Data'!$D$149:$D$203,AE75)),\"YES\",\"NO\")","v":"NO"},null,null,{"$f":"IFERROR(INDEX('3 - Land Summary'!$G$21:$G$120,(MATCH(C75,'3 - Land Summary'!$C$21:$C$120,0))),\"\")","v":""},{"$f":"IFERROR(INDEX('3 - Land Summary'!$I$21:$I$120,(MATCH(C75,'3 - Land Summary'!$C$21:$C$120,0))),\"\")","v":""},"","",null,null,null,{"$f":"IFERROR(VLOOKUP(D75,'Species List'!$D$10:$E$46,2,FALSE)*J75,\"\")","v":""},{"$f":"IFERROR(VLOOKUP(D75,'Species List'!$D$51:$E$89,2,FALSE)*J75,\"\")","v":""},{"$f":"IFERROR(VLOOKUP(D75,'Species List'!$D$95:$E$102,2,FALSE)*J75,\"\")","v":""},{"$f":"IFERROR(VLOOKUP(D75,'Species List'!$I$10:$J$11,2,FALSE)*J75,\"\")","v":""},{"$f":"IFERROR(VLOOKUP(D75,'Species List'!$I$16:$J$61,2,FALSE)*J75,\"\")","v":""},{"$f":"IFERROR(VLOOKUP(D75,'Species List'!$I$66:$J$66,2,FALSE)*J75,\"\")","v":""},{"$f":"IFERROR(VLOOKUP(D75,'Species List'!$I$71:$J$82,2,FALSE)*J75,\"\")","v":""},0,null,null,null,null,null,null,{"$f":"IFERROR(INDEX('3 - Land Summary'!$B$21:$B$120,(MATCH(AD75,'3 - Land Summary'!$C$21:$C$120,0))),\"\")","v":""}]
[null,{"$f":"IFERROR(INDEX('3 - Land Summary'!$B$21:$B$120,(MATCH('4 - Species Breakdown'!$V76,'3 - Land Summary'!$C$21:$C$120,0))),\"\")","v":""},null,null,{"$f":"IF(OR(COUNTIF('Look Up Data'!$D$149:$D$203,D76),COUNTIF('Look Up Data'!$D$149:$D$203,AE76)),\"YES\",\"NO\")","v":"NO"},null,null,{"$f":"IFERROR(INDEX('3 - Land Summary'!$G$21:$G$120,(MATCH(C76,'3 - Land Summary'!$C$21:$C$120,0))),\"\")","v":""},{"$f":"IFERROR(INDEX('3 - Land Summary'!$I$21:$I$120,(MATCH(C76,'3 - Land Summary'!$C$21:$C$120,0))),\"\")","v":""},"","",null,null,null,{"$f":"IFERROR(VLOOKUP(D76,'Species List'!$D$10:$E$46,2,FALSE)*J76,\"\")","v":""},{"$f":"IFERROR(VLOOKUP(D76,'Species List'!$D$51:$E$89,2,FALSE)*J76,\"\")","v":""},{"$f":"IFERROR(VLOOKUP(D76,'Species List'!$D$95:$E$102,2,FALSE)*J76,\"\")","v":""},{"$f":"IFERROR(VLOOKUP(D76,'Species List'!$I$10:$J$11,2,FALSE)*J76,\"\")","v":""},{"$f":"IFERROR(VLOOKUP(D76,'Species List'!$I$16:$J$61,2,FALSE)*J76,\"\")","v":""},{"$f":"IFERROR(VLOOKUP(D76,'Species List'!$I$66:$J$66,2,FALSE)*J76,\"\")","v":""},{"$f":"IFERROR(VLOOKUP(D76,'Species List'!$I$71:$J$82,2,FALSE)*J76,\"\")","v":""},0,null,null,null,null,null,null,{"$f":"IFERROR(INDEX('3 - Land Summary'!$B$21:$B$120,(MATCH(AD76,'3 - Land Summary'!$C$21:$C$120,0))),\"\")","v":""}]
[null,{"$f":"IFERROR(INDEX('3 - Land Summary'!$B$21:$B$120,(MATCH('4 - Species Breakdown'!$V77,'3 - Land Summary'!$C$21:$C$120,0))),\"\")","v":""},null,null,{"$f":"IF(OR(COUNTIF('Look Up Data'!$D$149:$D$203,D77),COUNTIF('Look Up Data'!$D$149:$D$203,AE77)),\"YES\",\"NO\")","v":"NO"},null,null,{"$f":"IFERROR(INDEX('3 - Land Summary'!$G$21:$G$120,(MATCH(C77,'3 - Land Summary'!$C$21:$C$120,0))),\"\")","v":""},{"$f":"IFERROR(INDEX('3 - Land Summary'!$I$21:$I$120,(MATCH(C77,'3 - Land Summary'!$C$21:$C$120,0))),\"\")","v":""},"","",null,null,null,{"$f":"IFERROR(VLOOKUP(D77,'Species List'!$D$10:$E$46,2,FALSE)*J77,\"\")","v":""},{"$f":"IFERROR(VLOOKUP(D77,'Species List'!$D$51:$E$89,2,FALSE)*J77,\"\")","v":""},{"$f":"IFERROR(VLOOKUP(D77,'Species List'!$D$95:$E$102,2,FALSE)*J77,\"\")","v":""},{"$f":"IFERROR(VLOOKUP(D77,'Species List'!$I$10:$J$11,2,FALSE)*J77,\"\")","v":""},{"$f":"IFERROR(VLOOKUP(D77,'Species List'!$I$16:$J$61,2,FALSE)*J77,\"\")","v":""},{"$f":"IFERROR(VLOOKUP(D77,'Species List'!$I$66:$J$66,2,FALSE)*J77,\"\")","v":""},{"$f":"IFERROR(VLOOKUP(D77,'Species List'!$I$71:$J$82,2,FALSE)*J77,\"\")","v":""},0,null,null,null,null,null,null,{"$f":"IFERROR(INDEX('3 - Land Summary'!$B$21:$B$120,(MATCH(AD77,'3 - Land Summary'!$C$21:$C$120,0))),\"\")","v":""}]
[null,{"$f":"IFERROR(INDEX('3 - Land Summary'!$B$21:$B$120,(MATCH('4 - Species Breakdown'!$V78,'3 - Land Summary'!$C$21:$C$120,0))),\"\")","v":""},null,null,{"$f":"IF(OR(COUNTIF('Look Up Data'!$D$149:$D$203,D78),COUNTIF('Look Up Data'!$D$149:$D$203,AE78)),\"YES\",\"NO\")","v":"NO"},null,null,{"$f":"IFERROR(INDEX('3 - Land Summary'!$G$21:$G$120,(MATCH(C78,'3 - Land Summary'!$C$21:$C$120,0))),\"\")","v":""},{"$f":"IFERROR(INDEX('3 - Land Summary'!$I$21:$I$120,(MATCH(C78,'3 - Land Summary'!$C$21:$C$120,0))),\"\")","v":""},"","",null,null,null,{"$f":"IFERROR(VLOOKUP(D78,'Species List'!$D$10:$E$46,2,FALSE)*J78,\"\")","v":""},{"$f":"IFERROR(VLOOKUP(D78,'Species List'!$D$51:$E$89,2,FALSE)*J78,\"\")","v":""},{"$f":"IFERROR(VLOOKUP(D78,'Species List'!$D$95:$E$102,2,FALSE)*J78,\"\")","v":""},{"$f":"IFERROR(VLOOKUP(D78,'Species List'!$I$10:$J$11,2,FALSE)*J78,\"\")","v":""},{"$f":"IFERROR(VLOOKUP(D78,'Species List'!$I$16:$J$61,2,FALSE)*J78,\"\")","v":""},{"$f":"IFERROR(VLOOKUP(D78,'Species List'!$I$66:$J$66,2,FALSE)*J78,\"\")","v":""},{"$f":"IFERROR(VLOOKUP(D78,'Species List'!$I$71:$J$82,2,FALSE)*J78,\"\")","v":""},0,null,null,null,null,null,null,{"$f":"IFERROR(INDEX('3 - Land Summary'!$B$21:$B$120,(MATCH(AD78,'3 - Land Summary'!$C$21:$C$120,0))),\"\")","v":""}]
[null,{"$f":"IFERROR(INDEX('3 - Land Summary'!$B$21:$B$120,(MATCH('4 - Species Breakdown'!$V79,'3 - Land Summary'!$C$21:$C$120,0))),\"\")","v":""},null,null,{"$f":"IF(OR(COUNTIF('Look Up Data'!$D$149:$D$203,D79),COUNTIF('Look Up Data'!$D$149:$D$203,AE79)),\"YES\",\"NO\")","v":"NO"},null,null,{"$f":"IFERROR(INDEX('3 - Land Summary'!$G$21:$G$120,(MATCH(C79,'3 - Land Summary'!$C$21:$C$120,0))),\"\")","v":""},{"$f":"IFERROR(INDEX('3 - Land Summary'!$I$21:$I$120,(MATCH(C79,'3 - Land Summary'!$C$21:$C$120,0))),\"\")","v":""},"","",null,null,null,{"$f":"IFERROR(VLOOKUP(D79,'Species List'!$D$10:$E$46,2,FALSE)*J79,\"\")","v":""},{"$f":"IFERROR(VLOOKUP(D79,'Species List'!$D$51:$E$89,2,FALSE)*J79,\"\")","v":""},{"$f":"IFERROR(VLOOKUP(D79,'Species List'!$D$95:$E$102,2,FALSE)*J79,\"\")","v":""},{"$f":"IFERROR(VLOOKUP(D79,'Species List'!$I$10:$J$11,2,FALSE)*J79,\"\")","v":""},{"$f":"IFERROR(VLOOKUP(D79,'Species List'!$I$16:$J$61,2,FALSE)*J79,\"\")","v":""},{"$f":"IFERROR(VLOOKUP(D79,'Species List'!$I$66:$J$66,2,FALSE)*J79,\"\")","v":""},{"$f":"IFERROR(VLOOKUP(D79,'Species List'!$I$71:$J$82,2,FALSE)*J79,\"\")","v":""},0,null,null,null,null,null,null,{"$f":"IFERROR(INDEX('3 - Land Summary'!$B$21:$B$120,(MATCH(AD79,'3 - Land Summary'!$C$21:$C$120,0))),\"\")","v":""}]
[null,{"$f":"IFERROR(INDEX('3 - Land Summary'!$B$21:$B$120,(MATCH('4 - Species Breakdown'!$V80,'3 - Land Summary'!$C$21:$C$120,0))),\"\")","v":""},null,null,{"$f":"IF(OR(COUNTIF('Look Up Data'!$D$149:$D$203,D80),COUNTIF('Look Up Data'!$D$149:$D$203,AE80)),\"YES\",\"NO\")","v":"NO"},null,null,{"$f":"IFERROR(INDEX('3 - Land Summary'!$G$21:$G$120,(MATCH(C80,'3 - Land Summary'!$C$21:$C$120,0))),\"\")","v":""},{"$f":"IFERROR(INDEX('3 - Land Summary'!$I$21:$I$120,(MATCH(C80,'3 - Land Summary'!$C$21:$C$120,0))),\"\")","v":""},"","",null,null,null,{"$f":"IFERROR(VLOOKUP(D80,'Species List'!$D$10:$E$46,2,FALSE)*J80,\"\")","v":""},{"$f":"IFERROR(VLOOKUP(D80,'Species List'!$D$51:$E$89,2,FALSE)*J80,\"\")","v":""},{"$f":"IFERROR(VLOOKUP(D80,'Species List'!$D$95:$E$102,2,FALSE)*J80,\"\")","v":""},{"$f":"IFERROR(VLOOKUP(D80,'Species List'!$I$10:$J$11,2,FALSE)*J80,\"\")","v":""},{"$f":"IFERROR(VLOOKUP(D80,'Species List'!$I$16:$J$61,2,FALSE)*J80,\"\")","v":""},{"$f":"IFERROR(VLOOKUP(D80,'Species List'!$I$66:$J$66,2,FALSE)*J80,\"\")","v":""},{"$f":"IFERROR(VLOOKUP(D80,'Species List'!$I$71:$J$82,2,FALSE)*J80,\"\")","v":""},0,null,null,null,null,null,null,{"$f":"IFERROR(INDEX('3 - Land Summary'!$B$21:$B$120,(MATCH(AD80,'3 - Land Summary'!$C$21:$C$120,0))),\"\")","v":""}]
[null,{"$f":"IFERROR(INDEX('3 - Land Summary'!$B$21:$B$120,(MATCH('4 - Species Breakdown'!$V81,'3 - Land Summary'!$C$21:$C$120,0))),\"\")","v":""},null,null,{"$f":"IF(OR(COUNTIF('Look Up Data'!$D$149:$D$203,D81),COUNTIF('Look Up Data'!$D$149:$D$203,AE81)),\"YES\",\"NO\")","v":"NO"},null,null,{"$f":"IFERROR(INDEX('3 - Land Summary'!$G$21:$G$120,(MATCH(C81,'3 - Land Summary'!$C$21:$C$120,0))),\"\")","v":""},{"$f":"IFERROR(INDEX('3 - Land Summary'!$I$21:$I$120,(MATCH(C81,'3 - Land Summary'!$C$21:$C$120,0))),\"\")","v":""},"","",null,null,null,{"$f":"IFERROR(VLOOKUP(D81,'Species List'!$D$10:$E$46,2,FALSE)*J81,\"\")","v":""},{"$f":"IFERROR(VLOOKUP(D81,'Species List'!$D$51:$E$89,2,FALSE)*J81,\"\")","v":""},{"$f":"IFERROR(VLOOKUP(D81,'Species List'!$D$95:$E$102,2,FALSE)*J81,\"\")","v":""},{"$f":"IFERROR(VLOOKUP(D81,'Species List'!$I$10:$J$11,2,FALSE)*J81,\"\")","v":""},{"$f":"IFERROR(VLOOKUP(D81,'Species List'!$I$16:$J$61,2,FALSE)*J81,\"\")","v":""},{"$f":"IFERROR(VLOOKUP(D81,'Species List'!$I$66:$J$66,2,FALSE)*J81,\"\")","v":""},{"$f":"IFERROR(VLOOKUP(D81,'Species List'!$I$71:$J$82,2,FALSE)*J81,\"\")","v":""},0,null,null,null,null,null,null,{"$f":"IFERROR(INDEX('3 - Land Summary'!$B$21:$B$120,(MATCH(AD81,'3 - Land Summary'!$C$21:$C$120,0))),\"\")","v":""}]
[null,{"$f":"IFERROR(INDEX('3 - Land Summary'!$B$21:$B$120,(MATCH('4 - Species Breakdown'!$V82,'3 - Land Summary'!$C$21:$C$120,0))),\"\")","v":""},null,null,{"$f":"IF(OR(COUNTIF('Look Up Data'!$D$149:$D$203,D82),COUNTIF('Look Up Data'!$D$149:$D$203,AE82)),\"YES\",\"NO\")","v":"NO"},null,null,{"$f":"IFERROR(INDEX('3 - Land Summary'!$G$21:$G$120,(MATCH(C82,'3 - Land Summary'!$C$21:$C$120,0))),\"\")","v":""},{"$f":"IFERROR(INDEX('3 - Land Summary'!$I$21:$I$120,(MATCH(C82,'3 - Land Summary'!$C$21:$C$120,0))),\"\")","v":""},"","",null,null,null,{"$f":"IFERROR(VLOOKUP(D82,'Species List'!$D$10:$E$46,2,FALSE)*J82,\"\")","v":""},{"$f":"IFERROR(VLOOKUP(D82,'Species List'!$D$51:$E$89,2,FALSE)*J82,\"\")","v":""},{"$f":"IFERROR(VLOOKUP(D82,'Species List'!$D$95:$E$102,2,FALSE)*J82,\"\")","v":""},{"$f":"IFERROR(VLOOKUP(D82,'Species List'!$I$10:$J$11,2,FALSE)*J82,\"\")","v":""},{"$f":"IFERROR(VLOOKUP(D82,'Species List'!$I$16:$J$61,2,FALSE)*J82,\"\")","v":""},{"$f":"IFERROR(VLOOKUP(D82,'Species List'!$I$66:$J$66,2,FALSE)*J82,\"\")","v":""},{"$f":"IFERROR(VLOOKUP(D82,'Species List'!$I$71:$J$82,2,FALSE)*J82,\"\")","v":""},0,null,null,null,null,null,null,{"$f":"IFERROR(INDEX('3 - Land Summary'!$B$21:$B$120,(MATCH(AD82,'3 - Land Summary'!$C$21:$C$120,0))),\"\")","v":""}]
[null,{"$f":"IFERROR(INDEX('3 - Land Summary'!$B$21:$B$120,(MATCH('4 - Species Breakdown'!$V83,'3 - Land Summary'!$C$21:$C$120,0))),\"\")","v":""},null,null,{"$f":"IF(OR(COUNTIF('Look Up Data'!$D$149:$D$203,D83),COUNTIF('Look Up Data'!$D$149:$D$203,AE83)),\"YES\",\"NO\")","v":"NO"},null,null,{"$f":"IFERROR(INDEX('3 - Land Summary'!$G$21:$G$120,(MATCH(C83,'3 - Land Summary'!$C$21:$C$120,0))),\"\")","v":""},{"$f":"IFERROR(INDEX('3 - Land Summary'!$I$21:$I$120,(MATCH(C83,'3 - Land Summary'!$C$21:$C$120,0))),\"\")","v":""},"","",null,null,null,{"$f":"IFERROR(VLOOKUP(D83,'Species List'!$D$10:$E$46,2,FALSE)*J83,\"\")","v":""},{"$f":"IFERROR(VLOOKUP(D83,'Species List'!$D$51:$E$89,2,FALSE)*J83,\"\")","v":""},{"$f":"IFERROR(VLOOKUP(D83,'Species List'!$D$95:$E$102,2,FALSE)*J83,\"\")","v":""},{"$f":"IFERROR(VLOOKUP(D83,'Species List'!$I$10:$J$11,2,FALSE)*J83,\"\")","v":""},{"$f":"IFERROR(VLOOKUP(D83,'Species List'!$I$16:$J$61,2,FALSE)*J83,\"\")","v":""},{"$f":"IFERROR(VLOOKUP(D83,'Species List'!$I$66:$J$66,2,FALSE)*J83,\"\")","v":""},{"$f":"IFERROR(VLOOKUP(D83,'Species List'!$I$71:$J$82,2,FALSE)*J83,\"\")","v":""},0,null,null,null,null,null,null,{"$f":"IFERROR(INDEX('3 - Land Summary'!$B$21:$B$120,(MATCH(AD83,'3 - Land Summary'!$C$21:$C$120,0))),\"\")","v":""}]
[null,{"$f":"IFERROR(INDEX('3 - Land Summary'!$B$21:$B$120,(MATCH('4 - Species Breakdown'!$V84,'3 - Land Summary'!$C$21:$C$120,0))),\"\")","v":""},null,null,{"$f":"IF(OR(COUNTIF('Look Up Data'!$D$149:$D$203,D84),COUNTIF('Look Up Data'!$D$149:$D$203,AE84)),\"YES\",\"NO\")","v":"NO"},null,null,{"$f":"IFERROR(INDEX('3 - Land Summary'!$G$21:$G$120,(MATCH(C84,'3 - Land Summary'!$C$21:$C$120,0))),\"\")","v":""},{"$f":"IFERROR(INDEX('3 - Land Summary'!$I$21:$I$120,(MATCH(C84,'3 - Land Summary'!$C$21:$C$120,0))),\"\")","v":""},"","",null,null,null,{"$f":"IFERROR(VLOOKUP(D84,'Species List'!$D$10:$E$46,2,FALSE)*J84,\"\")","v":""},{"$f":"IFERROR(VLOOKUP(D84,'Species List'!$D$51:$E$89,2,FALSE)*J84,\"\")","v":""},{"$f":"IFERROR(VLOOKUP(D84,'Species List'!$D$95:$E$102,2,FALSE)*J84,\"\")","v":""},{"$f":"IFERROR(VLOOKUP(D84,'Species List'!$I$10:$J$11,2,FALSE)*J84,\"\")","v":""},{"$f":"IFERROR(VLOOKUP(D84,'Species List'!$I$16:$J$61,2,FALSE)*J84,\"\")","v":""},{"$f":"IFERROR(VLOOKUP(D84,'Species List'!$I$66:$J$66,2,FALSE)*J84,\"\")","v":""},{"$f":"IFERROR(VLOOKUP(D84,'Species List'!$I$71:$J$82,2,FALSE)*J84,\"\")","v":""},0,null,null,null,null,null,null,{"$f":"IFERROR(INDEX('3 - Land Summary'!$B$21:$B$120,(MATCH(AD84,'3 - Land Summary'!$C$21:$C$120,0))),\"\")","v":""}]
[null,{"$f":"IFERROR(INDEX('3 - Land Summary'!$B$21:$B$120,(MATCH('4 - Species Breakdown'!$V85,'3 - Land Summary'!$C$21:$C$120,0))),\"\")","v":""},null,null,{"$f":"IF(OR(COUNTIF('Look Up Data'!$D$149:$D$203,D85),COUNTIF('Look Up Data'!$D$149:$D$203,AE85)),\"YES\",\"NO\")","v":"NO"},null,null,{"$f":"IFERROR(INDEX('3 - Land Summary'!$G$21:$G$120,(MATCH(C85,'3 - Land Summary'!$C$21:$C$120,0))),\"\")","v":""},{"$f":"IFERROR(INDEX('3 - Land Summary'!$I$21:$I$120,(MATCH(C85,'3 - Land Summary'!$C$21:$C$120,0))),\"\")","v":""},"","",null,null,null,{"$f":"IFERROR(VLOOKUP(D85,'Species List'!$D$10:$E$46,2,FALSE)*J85,\"\")","v":""},{"$f":"IFERROR(VLOOKUP(D85,'Species List'!$D$51:$E$89,2,FALSE)*J85,\"\")","v":""},{"$f":"IFERROR(VLOOKUP(D85,'Species List'!$D$95:$E$102,2,FALSE)*J85,\"\")","v":""},{"$f":"IFERROR(VLOOKUP(D85,'Species List'!$I$10:$J$11,2,FALSE)*J85,\"\")","v":""},{"$f":"IFERROR(VLOOKUP(D85,'Species List'!$I$16:$J$61,2,FALSE)*J85,\"\")","v":""},{"$f":"IFERROR(VLOOKUP(D85,'Species List'!$I$66:$J$66,2,FALSE)*J85,\"\")","v":""},{"$f":"IFERROR(VLOOKUP(D85,'Species List'!$I$71:$J$82,2,FALSE)*J85,\"\")","v":""},0,null,null,null,null,null,null,{"$f":"IFERROR(INDEX('3 - Land Summary'!$B$21:$B$120,(MATCH(AD85,'3 - Land Summary'!$C$21:$C$120,0))),\"\")","v":""}]
[null,{"$f":"IFERROR(INDEX('3 - Land Summary'!$B$21:$B$120,(MATCH('4 - Species Breakdown'!$V86,'3 - Land Summary'!$C$21:$C$120,0))),\"\")","v":""},null,null,{"$f":"IF(OR(COUNTIF('Look Up Data'!$D$149:$D$203,D86),COUNTIF('Look Up Data'!$D$149:$D$203,AE86)),\"YES\",\"NO\")","v":"NO"},null,null,{"$f":"IFERROR(INDEX('3 - Land Summary'!$G$21:$G$120,(MATCH(C86,'3 - Land Summary'!$C$21:$C$120,0))),\"\")","v":""},{"$f":"IFERROR(INDEX('3 - Land Summary'!$I$21:$I$120,(MATCH(C86,'3 - Land Summary'!$C$21:$C$120,0))),\"\")","v":""},"","",null,null,null,{"$f":"IFERROR(VLOOKUP(D86,'Species List'!$D$10:$E$46,2,FALSE)*J86,\"\")","v":""},{"$f":"IFERROR(VLOOKUP(D86,'Species List'!$D$51:$E$89,2,FALSE)*J86,\"\")","v":""},{"$f":"IFERROR(VLOOKUP(D86,'Species List'!$D$95:$E$102,2,FALSE)*J86,\"\")","v":""},{"$f":"IFERROR(VLOOKUP(D86,'Species List'!$I$10:$J$11,2,FALSE)*J86,\"\")","v":""},{"$f":"IFERROR(VLOOKUP(D86,'Species List'!$I$16:$J$61,2,FALSE)*J86,\"\")","v":""},{"$f":"IFERROR(VLOOKUP(D86,'Species List'!$I$66:$J$66,2,FALSE)*J86,\"\")","v":""},{"$f":"IFERROR(VLOOKUP(D86,'Species List'!$I$71:$J$82,2,FALSE)*J86,\"\")","v":""},0,null,null,null,null,null,null,{"$f":"IFERROR(INDEX('3 - Land Summary'!$B$21:$B$120,(MATCH(AD86,'3 - Land Summary'!$C$21:$C$120,0))),\"\")","v":""}]
[null,{"$f":"IFERROR(INDEX('3 - Land Summary'!$B$21:$B$120,(MATCH('4 - Species Breakdown'!$V87,'3 - Land Summary'!$C$21:$C$120,0))),\"\")","v":""},null,null,{"$f":"IF(OR(COUNTIF('Look Up Data'!$D$149:$D$203,D87),COUNTIF('Look Up Data'!$D$149:$D$203,AE87)),\"YES\",\"NO\")","v":"NO"},null,null,{"$f":"IFERROR(INDEX('3 - Land Summary'!$G$21:$G$120,(MATCH(C87,'3 - Land Summary'!$C$21:$C$120,0))),\"\")","v":""},{"$f":"IFERROR(INDEX('3 - Land Summary'!$I$21:$I$120,(MATCH(C87,'3 - Land Summary'!$C$21:$C$120,0))),\"\")","v":""},"","",null,null,null,{"$f":"IFERROR(VLOOKUP(D87,'Species List'!$D$10:$E$46,2,FALSE)*J87,\"\")","v":""},{"$f":"IFERROR(VLOOKUP(D87,'Species List'!$D$51:$E$89,2,FALSE)*J87,\"\")","v":""},{"$f":"IFERROR(VLOOKUP(D87,'Species List'!$D$95:$E$102,2,FALSE)*J87,\"\")","v":""},{"$f":"IFERROR(VLOOKUP(D87,'Species List'!$I$10:$J$11,2,FALSE)*J87,\"\")","v":""},{"$f":"IFERROR(VLOOKUP(D87,'Species List'!$I$16:$J$61,2,FALSE)*J87,\"\")","v":""},{"$f":"IFERROR(VLOOKUP(D87,'Species List'!$I$66:$J$66,2,FALSE)*J87,\"\")","v":""},{"$f":"IFERROR(VLOOKUP(D87,'Species List'!$I$71:$J$82,2,FALSE)*J87,\"\")","v":""},0,null,null,null,null,null,null,{"$f":"IFERROR(INDEX('3 - Land Summary'!$B$21:$B$120,(MATCH(AD87,'3 - Land Summary'!$C$21:$C$120,0))),\"\")","v":""}]
[null,{"$f":"IFERROR(INDEX('3 - Land Summary'!$B$21:$B$120,(MATCH('4 - Species Breakdown'!$V88,'3 - Land Summary'!$C$21:$C$120,0))),\"\")","v":""},null,null,{"$f":"IF(OR(COUNTIF('Look Up Data'!$D$149:$D$203,D88),COUNTIF('Look Up Data'!$D$149:$D$203,AE88)),\"YES\",\"NO\")","v":"NO"},null,null,{"$f":"IFERROR(INDEX('3 - Land Summary'!$G$21:$G$120,(MATCH(C88,'3 - Land Summary'!$C$21:$C$120,0))),\"\")","v":""},{"$f":"IFERROR(INDEX('3 - Land Summary'!$I$21:$I$120,(MATCH(C88,'3 - Land Summary'!$C$21:$C$120,0))),\"\")","v":""},"","",null,null,null,{"$f":"IFERROR(VLOOKUP(D88,'Species List'!$D$10:$E$46,2,FALSE)*J88,\"\")","v":""},{"$f":"IFERROR(VLOOKUP(D88,'Species List'!$D$51:$E$89,2,FALSE)*J88,\"\")","v":""},{"$f":"IFERROR(VLOOKUP(D88,'Species List'!$D$95:$E$102,2,FALSE)*J88,\"\")","v":""},{"$f":"IFERROR(VLOOKUP(D88,'Species List'!$I$10:$J$11,2,FALSE)*J88,\"\")","v":""},{"$f":"IFERROR(VLOOKUP(D88,'Species List'!$I$16:$J$61,2,FALSE)*J88,\"\")","v":""},{"$f":"IFERROR(VLOOKUP(D88,'Species List'!$I$66:$J$66,2,FALSE)*J88,\"\")","v":""},{"$f":"IFERROR(VLOOKUP(D88,'Species List'!$I$71:$J$82,2,FALSE)*J88,\"\")","v":""},0,null,null,null,null,null,null,{"$f":"IFERROR(INDEX('3 - Land Summary'!$B$21:$B$120,(MATCH(AD88,'3 - Land Summary'!$C$21:$C$120,0))),\"\")","v":""}]
[null,{"$f":"IFERROR(INDEX('3 - Land Summary'!$B$21:$B$120,(MATCH('4 - Species Breakdown'!$V89,'3 - Land Summary'!$C$21:$C$120,0))),\"\")","v":""},null,null,{"$f":"IF(OR(COUNTIF('Look Up Data'!$D$149:$D$203,D89),COUNTIF('Look Up Data'!$D$149:$D$203,AE89)),\"YES\",\"NO\")","v":"NO"},null,null,{"$f":"IFERROR(INDEX('3 - Land Summary'!$G$21:$G$120,(MATCH(C89,'3 - Land Summary'!$C$21:$C$120,0))),\"\")","v":""},{"$f":"IFERROR(INDEX('3 - Land Summary'!$I$21:$I$120,(MATCH(C89,'3 - Land Summary'!$C$21:$C$120,0))),\"\")","v":""},"","",null,null,null,{"$f":"IFERROR(VLOOKUP(D89,'Species List'!$D$10:$E$46,2,FALSE)*J89,\"\")","v":""},{"$f":"IFERROR(VLOOKUP(D89,'Species List'!$D$51:$E$89,2,FALSE)*J89,\"\")","v":""},{"$f":"IFERROR(VLOOKUP(D89,'Species List'!$D$95:$E$102,2,FALSE)*J89,\"\")","v":""},{"$f":"IFERROR(VLOOKUP(D89,'Species List'!$I$10:$J$11,2,FALSE)*J89,\"\")","v":""},{"$f":"IFERROR(VLOOKUP(D89,'Species List'!$I$16:$J$61,2,FALSE)*J89,\"\")","v":""},{"$f":"IFERROR(VLOOKUP(D89,'Species List'!$I$66:$J$66,2,FALSE)*J89,\"\")","v":""},{"$f":"IFERROR(VLOOKUP(D89,'Species List'!$I$71:$J$82,2,FALSE)*J89,\"\")","v":""},0,null,null,null,null,null,null,{"$f":"IFERROR(INDEX('3 - Land Summary'!$B$21:$B$120,(MATCH(AD89,'3 - Land Summary'!$C$21:$C$120,0))),\"\")","v":""}]
[null,{"$f":"IFERROR(INDEX('3 - Land Summary'!$B$21:$B$120,(MATCH('4 - Species Breakdown'!$V90,'3 - Land Summary'!$C$21:$C$120,0))),\"\")","v":""},null,null,{"$f":"IF(OR(COUNTIF('Look Up Data'!$D$149:$D$203,D90),COUNTIF('Look Up Data'!$D$149:$D$203,AE90)),\"YES\",\"NO\")","v":"NO"},null,null,{"$f":"IFERROR(INDEX('3 - Land Summary'!$G$21:$G$120,(MATCH(C90,'3 - Land Summary'!$C$21:$C$120,0))),\"\")","v":""},{"$f":"IFERROR(INDEX('3 - Land Summary'!$I$21:$I$120,(MATCH(C90,'3 - Land Summary'!$C$21:$C$120,0))),\"\")","v":""},"","",null,null,null,{"$f":"IFERROR(VLOOKUP(D90,'Species List'!$D$10:$E$46,2,FALSE)*J90,\"\")","v":""},{"$f":"IFERROR(VLOOKUP(D90,'Species List'!$D$51:$E$89,2,FALSE)*J90,\"\")","v":""},{"$f":"IFERROR(VLOOKUP(D90,'Species List'!$D$95:$E$102,2,FALSE)*J90,\"\")","v":""},{"$f":"IFERROR(VLOOKUP(D90,'Species List'!$I$10:$J$11,2,FALSE)*J90,\"\")","v":""},{"$f":"IFERROR(VLOOKUP(D90,'Species List'!$I$16:$J$61,2,FALSE)*J90,\"\")","v":""},{"$f":"IFERROR(VLOOKUP(D90,'Species List'!$I$66:$J$66,2,FALSE)*J90,\"\")","v":""},{"$f":"IFERROR(VLOOKUP(D90,'Species List'!$I$71:$J$82,2,FALSE)*J90,\"\")","v":""},0,null,null,null,null,null,null,{"$f":"IFERROR(INDEX('3 - Land Summary'!$B$21:$B$120,(MATCH(AD90,'3 - Land Summary'!$C$21:$C$120,0))),\"\")","v":""}]
[null,{"$f":"IFERROR(INDEX('3 - Land Summary'!$B$21:$B$120,(MATCH('4 - Species Breakdown'!$V91,'3 - Land Summary'!$C$21:$C$120,0))),\"\")","v":""},null,null,{"$f":"IF(OR(COUNTIF('Look Up Data'!$D$149:$D$203,D91),COUNTIF('Look Up Data'!$D$149:$D$203,AE91)),\"YES\",\"NO\")","v":"NO"},null,null,{"$f":"IFERROR(INDEX('3 - Land Summary'!$G$21:$G$120,(MATCH(C91,'3 - Land Summary'!$C$21:$C$120,0))),\"\")","v":""},{"$f":"IFERROR(INDEX('3 - Land Summary'!$I$21:$I$120,(MATCH(C91,'3 - Land Summary'!$C$21:$C$120,0))),\"\")","v":""},"","",null,null,null,{"$f":"IFERROR(VLOOKUP(D91,'Species List'!$D$10:$E$46,2,FALSE)*J91,\"\")","v":""},{"$f":"IFERROR(VLOOKUP(D91,'Species List'!$D$51:$E$89,2,FALSE)*J91,\"\")","v":""},{"$f":"IFERROR(VLOOKUP(D91,'Species List'!$D$95:$E$102,2,FALSE)*J91,\"\")","v":""},{"$f":"IFERROR(VLOOKUP(D91,'Species List'!$I$10:$J$11,2,FALSE)*J91,\"\")","v":""},{"$f":"IFERROR(VLOOKUP(D91,'Species List'!$I$16:$J$61,2,FALSE)*J91,\"\")","v":""},{"$f":"IFERROR(VLOOKUP(D91,'Species List'!$I$66:$J$66,2,FALSE)*J91,\"\")","v":""},{"$f":"IFERROR(VLOOKUP(D91,'Species List'!$I$71:$J$82,2,FALSE)*J91,\"\")","v":""},0,null,null,null,null,null,null,{"$f":"IFERROR(INDEX('3 - Land Summary'!$B$21:$B$120,(MATCH(AD91,'3 - Land Summary'!$C$21:$C$120,0))),\"\")","v":""}]
[null,{"$f":"IFERROR(INDEX('3 - Land Summary'!$B$21:$B$120,(MATCH('4 - Species Breakdown'!$V92,'3 - Land Summary'!$C$21:$C$120,0))),\"\")","v":""},null,null,{"$f":"IF(OR(COUNTIF('Look Up Data'!$D$149:$D$203,D92),COUNTIF('Look Up Data'!$D$149:$D$203,AE92)),\"YES\",\"NO\")","v":"NO"},null,null,{"$f":"IFERROR(INDEX('3 - Land Summary'!$G$21:$G$120,(MATCH(C92,'3 - Land Summary'!$C$21:$C$120,0))),\"\")","v":""},{"$f":"IFERROR(INDEX('3 - Land Summary'!$I$21:$I$120,(MATCH(C92,'3 - Land Summary'!$C$21:$C$120,0))),\"\")","v":""},"","",null,null,null,{"$f":"IFERROR(VLOOKUP(D92,'Species List'!$D$10:$E$46,2,FALSE)*J92,\"\")","v":""},{"$f":"IFERROR(VLOOKUP(D92,'Species List'!$D$51:$E$89,2,FALSE)*J92,\"\")","v":""},{"$f":"IFERROR(VLOOKUP(D92,'Species List'!$D$95:$E$102,2,FALSE)*J92,\"\")","v":""},{"$f":"IFERROR(VLOOKUP(D92,'Species List'!$I$10:$J$11,2,FALSE)*J92,\"\")","v":""},{"$f":"IFERROR(VLOOKUP(D92,'Species List'!$I$16:$J$61,2,FALSE)*J92,\"\")","v":""},{"$f":"IFERROR(VLOOKUP(D92,'Species List'!$I$66:$J$66,2,FALSE)*J92,\"\")","v":""},{"$f":"IFERROR(VLOOKUP(D92,'Species List'!$I$71:$J$82,2,FALSE)*J92,\"\")","v":""},0,null,null,null,null,null,null,{"$f":"IFERROR(INDEX('3 - Land Summary'!$B$21:$B$120,(MATCH(AD92,'3 - Land Summary'!$C$21:$C$120,0))),\"\")","v":""}]
[null,{"$f":"IFERROR(INDEX('3 - Land Summary'!$B$21:$B$120,(MATCH('4 - Species Breakdown'!$V93,'3 - Land Summary'!$C$21:$C$120,0))),\"\")","v":""},null,null,{"$f":"IF(OR(COUNTIF('Look Up Data'!$D$149:$D$203,D93),COUNTIF('Look Up Data'!$D$149:$D$203,AE93)),\"YES\",\"NO\")","v":"NO"},null,null,{"$f":"IFERROR(INDEX('3 - Land Summary'!$G$21:$G$120,(MATCH(C93,'3 - Land Summary'!$C$21:$C$120,0))),\"\")","v":""},{"$f":"IFERROR(INDEX('3 - Land Summary'!$I$21:$I$120,(MATCH(C93,'3 - Land Summary'!$C$21:$C$120,0))),\"\")","v":""},"","",null,null,null,{"$f":"IFERROR(VLOOKUP(D93,'Species List'!$D$10:$E$46,2,FALSE)*J93,\"\")","v":""},{"$f":"IFERROR(VLOOKUP(D93,'Species List'!$D$51:$E$89,2,FALSE)*J93,\"\")","v":""},{"$f":"IFERROR(VLOOKUP(D93,'Species List'!$D$95:$E$102,2,FALSE)*J93,\"\")","v":""},{"$f":"IFERROR(VLOOKUP(D93,'Species List'!$I$10:$J$11,2,FALSE)*J93,\"\")","v":""},{"$f":"IFERROR(VLOOKUP(D93,'Species List'!$I$16:$J$61,2,FALSE)*J93,\"\")","v":""},{"$f":"IFERROR(VLOOKUP(D93,'Species List'!$I$66:$J$66,2,FALSE)*J93,\"\")","v":""},{"$f":"IFERROR(VLOOKUP(D93,'Species List'!$I$71:$J$82,2,FALSE)*J93,\"\")","v":""},0,null,null,null,null,null,null,{"$f":"IFERROR(INDEX('3 - Land Summary'!$B$21:$B$120,(MATCH(AD93,'3 - Land Summary'!$C$21:$C$120,0))),\"\")","v":""}]
[null,{"$f":"IFERROR(INDEX('3 - Land Summary'!$B$21:$B$120,(MATCH('4 - Species Breakdown'!$V94,'3 - Land Summary'!$C$21:$C$120,0))),\"\")","v":""},null,null,{"$f":"IF(OR(COUNTIF('Look Up Data'!$D$149:$D$203,D94),COUNTIF('Look Up Data'!$D$149:$D$203,AE94)),\"YES\",\"NO\")","v":"NO"},null,null,{"$f":"IFERROR(INDEX('3 - Land Summary'!$G$21:$G$120,(MATCH(C94,'3 - Land Summary'!$C$21:$C$120,0))),\"\")","v":""},{"$f":"IFERROR(INDEX('3 - Land Summary'!$I$21:$I$120,(MATCH(C94,'3 - Land Summary'!$C$21:$C$120,0))),\"\")","v":""},"","",null,null,null,{"$f":"IFERROR(VLOOKUP(D94,'Species List'!$D$10:$E$46,2,FALSE)*J94,\"\")","v":""},{"$f":"IFERROR(VLOOKUP(D94,'Species List'!$D$51:$E$89,2,FALSE)*J94,\"\")","v":""},{"$f":"IFERROR(VLOOKUP(D94,'Species List'!$D$95:$E$102,2,FALSE)*J94,\"\")","v":""},{"$f":"IFERROR(VLOOKUP(D94,'Species List'!$I$10:$J$11,2,FALSE)*J94,\"\")","v":""},{"$f":"IFERROR(VLOOKUP(D94,'Species List'!$I$16:$J$61,2,FALSE)*J94,\"\")","v":""},{"$f":"IFERROR(VLOOKUP(D94,'Species List'!$I$66:$J$66,2,FALSE)*J94,\"\")","v":""},{"$f":"IFERROR(VLOOKUP(D94,'Species List'!$I$71:$J$82,2,FALSE)*J94,\"\")","v":""},0,null,null,null,null,null,null,{"$f":"IFERROR(INDEX('3 - Land Summary'!$B$21:$B$120,(MATCH(AD94,'3 - Land Summary'!$C$21:$C$120,0))),\"\")","v":""}]
[null,{"$f":"IFERROR(INDEX('3 - Land Summary'!$B$21:$B$120,(MATCH('4 - Species Breakdown'!$V95,'3 - Land Summary'!$C$21:$C$120,0))),\"\")","v":""},null,null,{"$f":"IF(OR(COUNTIF('Look Up Data'!$D$149:$D$203,D95),COUNTIF('Look Up Data'!$D$149:$D$203,AE95)),\"YES\",\"NO\")","v":"NO"},null,null,{"$f":"IFERROR(INDEX('3 - Land Summary'!$G$21:$G$120,(MATCH(C95,'3 - Land Summary'!$C$21:$C$120,0))),\"\")","v":""},{"$f":"IFERROR(INDEX('3 - Land Summary'!$I$21:$I$120,(MATCH(C95,'3 - Land Summary'!$C$21:$C$120,0))),\"\")","v":""},{"$f":"IFERROR(((H95-I95)*F95)/100,\"\")","v":""},"",null,null,null,{"$f":"IFERROR(VLOOKUP(D95,'Species List'!$D$10:$E$46,2,FALSE)*J95,\"\")","v":""},{"$f":"IFERROR(VLOOKUP(D95,'Species List'!$D$51:$E$89,2,FALSE)*J95,\"\")","v":""},{"$f":"IFERROR(VLOOKUP(D95,'Species List'!$D$95:$E$102,2,FALSE)*J95,\"\")","v":""},{"$f":"IFERROR(VLOOKUP(D95,'Species List'!$I$10:$J$11,2,FALSE)*J95,\"\")","v":""},{"$f":"IFERROR(VLOOKUP(D95,'Species List'!$I$16:$J$61,2,FALSE)*J95,\"\")","v":""},{"$f":"IFERROR(VLOOKUP(D95,'Species List'!$I$66:$J$66,2,FALSE)*J95,\"\")","v":""},{"$f":"IFERROR(VLOOKUP(D95,'Species List'!$I$71:$J$82,2,FALSE)*J95,\"\")","v":""},{"$f":"C95","v":0},null,null,null,null,null,null,{"$f":"IFERROR(INDEX('3 - Land Summary'!$B$21:$B$120,(MATCH(AD95,'3 - Land Summary'!$C$21:$C$120,0))),\"\")","v":""}]
[null,{"$f":"IFERROR(INDEX('3 - Land Summary'!$B$21:$B$120,(MATCH('4 - Species Breakdown'!$V96,'3 - Land Summary'!$C$21:$C$120,0))),\"\")","v":""},null,null,{"$f":"IF(OR(COUNTIF('Look Up Data'!$D$149:$D$203,D96),COUNTIF('Look Up Data'!$D$149:$D$203,AE96)),\"YES\",\"NO\")","v":"NO"},null,null,{"$f":"IFERROR(INDEX('3 - Land Summary'!$G$21:$G$120,(MATCH(C96,'3 - Land Summary'!$C$21:$C$120,0))),\"\")","v":""},{"$f":"IFERROR(INDEX('3 - Land Summary'!$I$21:$I$120,(MATCH(C96,'3 - Land Summary'!$C$21:$C$120,0))),\"\")","v":""},"",{"$f":"IFERROR(ROUND(J96*G96,0),\"\")","v":""},null,null,null,{"$f":"IFERROR(VLOOKUP(D96,'Species List'!$D$10:$E$46,2,FALSE)*J96,\"\")","v":""},{"$f":"IFERROR(VLOOKUP(D96,'Species List'!$D$51:$E$89,2,FALSE)*J96,\"\")","v":""},{"$f":"IFERROR(VLOOKUP(D96,'Species List'!$D$95:$E$102,2,FALSE)*J96,\"\")","v":""},{"$f":"IFERROR(VLOOKUP(D96,'Species List'!$I$10:$J$11,2,FALSE)*J96,\"\")","v":""},{"$f":"IFERROR(VLOOKUP(D96,'Species List'!$I$16:$J$61,2,FALSE)*J96,\"\")","v":""},{"$f":"IFERROR(VLOOKUP(D96,'Species List'!$I$66:$J$66,2,FALSE)*J96,\"\")","v":""},{"$f":"IFERROR(VLOOKUP(D96,'Species List'!$I$71:$J$82,2,FALSE)*J96,\"\")","v":""},0,null,null,null,null,null,null,{"$f":"IFERROR(INDEX('3 - Land Summary'!$B$21:$B$120,(MATCH(AD96,'3 - Land Summary'!$C$21:$C$120,0))),\"\")","v":""}]
[null,{"$f":"IFERROR(INDEX('3 - Land Summary'!$B$21:$B$120,(MATCH('4 - Species Breakdown'!$V97,'3 - Land Summary'!$C$21:$C$120,0))),\"\")","v":""},null,null,{"$f":"IF(OR(COUNTIF('Look Up Data'!$D$149:$D$203,D97),COUNTIF('Look Up Data'!$D$149:$D$203,AE97)),\"YES\",\"NO\")","v":"NO"},null,null,{"$f":"IFERROR(INDEX('3 - Land Summary'!$G$21:$G$120,(MATCH(C97,'3 - Land Summary'!$C$21:$C$120,0))),\"\")","v":""},{"$f":"IFERROR(INDEX('3 - Land Summary'!$I$21:$I$120,(MATCH(C97,'3 - Land Summary'!$C$21:$C$120,0))),\"\")","v":""},"","",null,null,null,{"$f":"IFERROR(VLOOKUP(D97,'Species List'!$D$10:$E$46,2,FALSE)*J97,\"\")","v":""},{"$f":"IFERROR(VLOOKUP(D97,'Species List'!$D$51:$E$89,2,FALSE)*J97,\"\")","v":""},{"$f":"IFERROR(VLOOKUP(D97,'Species List'!$D$95:$E$102,2,FALSE)*J97,\"\")","v":""},{"$f":"IFERROR(VLOOKUP(D97,'Species List'!$I$10:$J$11,2,FALSE)*J97,\"\")","v":""},{"$f":"IFERROR(VLOOKUP(D97,'Species List'!$I$16:$J$61,2,FALSE)*J97,\"\")","v":""},{"$f":"IFERROR(VLOOKUP(D97,'Species List'!$I$66:$J$66,2,FALSE)*J97,\"\")","v":""},{"$f":"IFERROR(VLOOKUP(D97,'Species List'!$I$71:$J$82,2,FALSE)*J97,\"\")","v":""},0,null,null,null,null,null,null,{"$f":"IFERROR(INDEX('3 - Land Summary'!$B$21:$B$120,(MATCH(AD97,'3 - Land Summary'!$C$21:$C$120,0))),\"\")","v":""}]
[null,{"$f":"IFERROR(INDEX('3 - Land Summary'!$B$21:$B$120,(MATCH('4 - Species Breakdown'!$V98,'3 - Land Summary'!$C$21:$C$120,0))),\"\")","v":""},null,null,{"$f":"IF(OR(COUNTIF('Look Up Data'!$D$149:$D$203,D98),COUNTIF('Look Up Data'!$D$149:$D$203,AE98)),\"YES\",\"NO\")","v":"NO"},null,null,{"$f":"IFERROR(INDEX('3 - Land Summary'!$G$21:$G$120,(MATCH(C98,'3 - Land Summary'!$C$21:$C$120,0))),\"\")","v":""},{"$f":"IFERROR(INDEX('3 - Land Summary'!$I$21:$I$120,(MATCH(C98,'3 - Land Summary'!$C$21:$C$120,0))),\"\")","v":""},"","",null,null,null,{"$f":"IFERROR(VLOOKUP(D98,'Species List'!$D$10:$E$46,2,FALSE)*J98,\"\")","v":""},{"$f":"IFERROR(VLOOKUP(D98,'Species List'!$D$51:$E$89,2,FALSE)*J98,\"\")","v":""},{"$f":"IFERROR(VLOOKUP(D98,'Species List'!$D$95:$E$102,2,FALSE)*J98,\"\")","v":""},{"$f":"IFERROR(VLOOKUP(D98,'Species List'!$I$10:$J$11,2,FALSE)*J98,\"\")","v":""},{"$f":"IFERROR(VLOOKUP(D98,'Species List'!$I$16:$J$61,2,FALSE)*J98,\"\")","v":""},{"$f":"IFERROR(VLOOKUP(D98,'Species List'!$I$66:$J$66,2,FALSE)*J98,\"\")","v":""},{"$f":"IFERROR(VLOOKUP(D98,'Species List'!$I$71:$J$82,2,FALSE)*J98,\"\")","v":""},0,null,null,null,null,null,null,{"$f":"IFERROR(INDEX('3 - Land Summary'!$B$21:$B$120,(MATCH(AD98,'3 - Land Summary'!$C$21:$C$120,0))),\"\")","v":""}]
[null,{"$f":"IFERROR(INDEX('3 - Land Summary'!$B$21:$B$120,(MATCH('4 - Species Breakdown'!$V99,'3 - Land Summary'!$C$21:$C$120,0))),\"\")","v":""},null,null,{"$f":"IF(OR(COUNTIF('Look Up Data'!$D$149:$D$203,D99),COUNTIF('Look Up Data'!$D$149:$D$203,AE99)),\"YES\",\"NO\")","v":"NO"},null,null,{"$f":"IFERROR(INDEX('3 - Land Summary'!$G$21:$G$120,(MATCH(C99,'3 - Land Summary'!$C$21:$C$120,0))),\"\")","v":""},{"$f":"IFERROR(INDEX('3 - Land Summary'!$I$21:$I$120,(MATCH(C99,'3 - Land Summary'!$C$21:$C$120,0))),\"\")","v":""},"","",null,null,null,{"$f":"IFERROR(VLOOKUP(D99,'Species List'!$D$10:$E$46,2,FALSE)*J99,\"\")","v":""},{"$f":"IFERROR(VLOOKUP(D99,'Species List'!$D$51:$E$89,2,FALSE)*J99,\"\")","v":""},{"$f":"IFERROR(VLOOKUP(D99,'Species List'!$D$95:$E$102,2,FALSE)*J99,\"\")","v":""},{"$f":"IFERROR(VLOOKUP(D99,'Species List'!$I$10:$J$11,2,FALSE)*J99,\"\")","v":""},{"$f":"IFERROR(VLOOKUP(D99,'Species List'!$I$16:$J$61,2,FALSE)*J99,\"\")","v":""},{"$f":"IFERROR(VLOOKUP(D99,'Species List'!$I$66:$J$66,2,FALSE)*J99,\"\")","v":""},{"$f":"IFERROR(VLOOKUP(D99,'Species List'!$I$71:$J$82,2,FALSE)*J99,\"\")","v":""},0,null,null,null,null,null,null,{"$f":"IFERROR(INDEX('3 - Land Summary'!$B$21:$B$120,(MATCH(AD99,'3 - Land Summary'!$C$21:$C$120,0))),\"\")","v":""}]
[null,{"$f":"IFERROR(INDEX('3 - Land Summary'!$B$21:$B$120,(MATCH('4 - Species Breakdown'!$V100,'3 - Land Summary'!$C$21:$C$120,0))),\"\")","v":""},null,null,{"$f":"IF(OR(COUNTIF('Look Up Data'!$D$149:$D$203,D100),COUNTIF('Look Up Data'!$D$149:$D$203,AE100)),\"YES\",\"NO\")","v":"NO"},null,null,{"$f":"IFERROR(INDEX('3 - Land Summary'!$G$21:$G$120,(MATCH(C100,'3 - Land Summary'!$C$21:$C$120,0))),\"\")","v":""},{"$f":"IFERROR(INDEX('3 - Land Summary'!$I$21:$I$120,(MATCH(C100,'3 - Land Summary'!$C$21:$C$120,0))),\"\")","v":""},"","",null,null,null,{"$f":"IFERROR(VLOOKUP(D100,'Species List'!$D$10:$E$46,2,FALSE)*J100,\"\")","v":""},{"$f":"IFERROR(VLOOKUP(D100,'Species List'!$D$51:$E$89,2,FALSE)*J100,\"\")","v":""},{"$f":"IFERROR(VLOOKUP(D100,'Species List'!$D$95:$E$102,2,FALSE)*J100,\"\")","v":""},{"$f":"IFERROR(VLOOKUP(D100,'Species List'!$I$10:$J$11,2,FALSE)*J100,\"\")","v":""},{"$f":"IFERROR(VLOOKUP(D100,'Species List'!$I$16:$J$61,2,FALSE)*J100,\"\")","v":""},{"$f":"IFERROR(VLOOKUP(D100,'Species List'!$I$66:$J$66,2,FALSE)*J100,\"\")","v":""},{"$f":"IFERROR(VLOOKUP(D100,'Species List'!$I$71:$J$82,2,FALSE)*J100,\"\")","v":""},0,null,null,null,null,null,null,{"$f":"IFERROR(INDEX('3 - Land Summary'!$B$21:$B$120,(MATCH(AD100,'3 - Land Summary'!$C$21:$C$120,0))),\"\")","v":""}]
[null,{"$f":"IFERROR(INDEX('3 - Land Summary'!$B$21:$B$120,(MATCH('4 - Species Breakdown'!$V101,'3 - Land Summary'!$C$21:$C$120,0))),\"\")","v":""},null,null,{"$f":"IF(OR(COUNTIF('Look Up Data'!$D$149:$D$203,D101),COUNTIF('Look Up Data'!$D$149:$D$203,AE101)),\"YES\",\"NO\")","v":"NO"},null,null,{"$f":"IFERROR(INDEX('3 - Land Summary'!$G$21:$G$120,(MATCH(C101,'3 - Land Summary'!$C$21:$C$120,0))),\"\")","v":""},{"$f":"IFERROR(INDEX('3 - Land Summary'!$I$21:$I$120,(MATCH(C101,'3 - Land Summary'!$C$21:$C$120,0))),\"\")","v":""},"","",null,null,null,{"$f":"IFERROR(VLOOKUP(D101,'Species List'!$D$10:$E$46,2,FALSE)*J101,\"\")","v":""},{"$f":"IFERROR(VLOOKUP(D101,'Species List'!$D$51:$E$89,2,FALSE)*J101,\"\")","v":""},{"$f":"IFERROR(VLOOKUP(D101,'Species List'!$D$95:$E$102,2,FALSE)*J101,\"\")","v":""},{"$f":"IFERROR(VLOOKUP(D101,'Species List'!$I$10:$J$11,2,FALSE)*J101,\"\")","v":""},{"$f":"IFERROR(VLOOKUP(D101,'Species List'!$I$16:$J$61,2,FALSE)*J101,\"\")","v":""},{"$f":"IFERROR(VLOOKUP(D101,'Species List'!$I$66:$J$66,2,FALSE)*J101,\"\")","v":""},{"$f":"IFERROR(VLOOKUP(D101,'Species List'!$I$71:$J$82,2,FALSE)*J101,\"\")","v":""},0,null,null,null,null,null,null,{"$f":"IFERROR(INDEX('3 - Land Summary'!$B$21:$B$120,(MATCH(AD101,'3 - Land Summary'!$C$21:$C$120,0))),\"\")","v":""}]
[null,{"$f":"IFERROR(INDEX('3 - Land Summary'!$B$21:$B$120,(MATCH('4 - Species Breakdown'!$V102,'3 - Land Summary'!$C$21:$C$120,0))),\"\")","v":""},null,null,{"$f":"IF(OR(COUNTIF('Look Up Data'!$D$149:$D$203,D102),COUNTIF('Look Up Data'!$D$149:$D$203,AE102)),\"YES\",\"NO\")","v":"NO"},null,null,{"$f":"IFERROR(INDEX('3 - Land Summary'!$G$21:$G$120,(MATCH(C102,'3 - Land Summary'!$C$21:$C$120,0))),\"\")","v":""},{"$f":"IFERROR(INDEX('3 - Land Summary'!$I$21:$I$120,(MATCH(C102,'3 - Land Summary'!$C$21:$C$120,0))),\"\")","v":""},"","",null,null,null,{"$f":"IFERROR(VLOOKUP(D102,'Species List'!$D$10:$E$46,2,FALSE)*J102,\"\")","v":""},{"$f":"IFERROR(VLOOKUP(D102,'Species List'!$D$51:$E$89,2,FALSE)*J102,\"\")","v":""},{"$f":"IFERROR(VLOOKUP(D102,'Species List'!$D$95:$E$102,2,FALSE)*J102,\"\")","v":""},{"$f":"IFERROR(VLOOKUP(D102,'Species List'!$I$10:$J$11,2,FALSE)*J102,\"\")","v":""},{"$f":"IFERROR(VLOOKUP(D102,'Species List'!$I$16:$J$61,2,FALSE)*J102,\"\")","v":""},{"$f":"IFERROR(VLOOKUP(D102,'Species List'!$I$66:$J$66,2,FALSE)*J102,\"\")","v":""},{"$f":"IFERROR(VLOOKUP(D102,'Species List'!$I$71:$J$82,2,FALSE)*J102,\"\")","v":""},0,null,null,null,null,null,null,{"$f":"IFERROR(INDEX('3 - Land Summary'!$B$21:$B$120,(MATCH(AD102,'3 - Land Summary'!$C$21:$C$120,0))),\"\")","v":""}]
[null,{"$f":"IFERROR(INDEX('3 - Land Summary'!$B$21:$B$120,(MATCH('4 - Species Breakdown'!$V103,'3 - Land Summary'!$C$21:$C$120,0))),\"\")","v":""},null,null,{"$f":"IF(OR(COUNTIF('Look Up Data'!$D$149:$D$203,D103),COUNTIF('Look Up Data'!$D$149:$D$203,AE103)),\"YES\",\"NO\")","v":"NO"},null,null,{"$f":"IFERROR(INDEX('3 - Land Summary'!$G$21:$G$120,(MATCH(C103,'3 - Land Summary'!$C$21:$C$120,0))),\"\")","v":""},{"$f":"IFERROR(INDEX('3 - Land Summary'!$I$21:$I$120,(MATCH(C103,'3 - Land Summary'!$C$21:$C$120,0))),\"\")","v":""},"","",null,null,null,{"$f":"IFERROR(VLOOKUP(D103,'Species List'!$D$10:$E$46,2,FALSE)*J103,\"\")","v":""},{"$f":"IFERROR(VLOOKUP(D103,'Species List'!$D$51:$E$89,2,FALSE)*J103,\"\")","v":""},{"$f":"IFERROR(VLOOKUP(D103,'Species List'!$D$95:$E$102,2,FALSE)*J103,\"\")","v":""},{"$f":"IFERROR(VLOOKUP(D103,'Species List'!$I$10:$J$11,2,FALSE)*J103,\"\")","v":""},{"$f":"IFERROR(VLOOKUP(D103,'Species List'!$I$16:$J$61,2,FALSE)*J103,\"\")","v":""},{"$f":"IFERROR(VLOOKUP(D103,'Species List'!$I$66:$J$66,2,FALSE)*J103,\"\")","v":""},{"$f":"IFERROR(VLOOKUP(D103,'Species List'!$I$71:$J$82,2,FALSE)*J103,\"\")","v":""},0,null,null,null,null,null,null,{"$f":"IFERROR(INDEX('3 - Land Summary'!$B$21:$B$120,(MATCH(AD103,'3 - Land Summary'!$C$21:$C$120,0))),\"\")","v":""}]
[null,{"$f":"IFERROR(INDEX('3 - Land Summary'!$B$21:$B$120,(MATCH('4 - Species Breakdown'!$V104,'3 - Land Summary'!$C$21:$C$120,0))),\"\")","v":""},null,null,{"$f":"IF(OR(COUNTIF('Look Up Data'!$D$149:$D$203,D104),COUNTIF('Look Up Data'!$D$149:$D$203,AE104)),\"YES\",\"NO\")","v":"NO"},null,null,{"$f":"IFERROR(INDEX('3 - Land Summary'!$G$21:$G$120,(MATCH(C104,'3 - Land Summary'!$C$21:$C$120,0))),\"\")","v":""},{"$f":"IFERROR(INDEX('3 - Land Summary'!$I$21:$I$120,(MATCH(C104,'3 - Land Summary'!$C$21:$C$120,0))),\"\")","v":""},"","",null,null,null,{"$f":"IFERROR(VLOOKUP(D104,'Species List'!$D$10:$E$46,2,FALSE)*J104,\"\")","v":""},{"$f":"IFERROR(VLOOKUP(D104,'Species List'!$D$51:$E$89,2,FALSE)*J104,\"\")","v":""},{"$f":"IFERROR(VLOOKUP(D104,'Species List'!$D$95:$E$102,2,FALSE)*J104,\"\")","v":""},{"$f":"IFERROR(VLOOKUP(D104,'Species List'!$I$10:$J$11,2,FALSE)*J104,\"\")","v":""},{"$f":"IFERROR(VLOOKUP(D104,'Species List'!$I$16:$J$61,2,FALSE)*J104,\"\")","v":""},{"$f":"IFERROR(VLOOKUP(D104,'Species List'!$I$66:$J$66,2,FALSE)*J104,\"\")","v":""},{"$f":"IFERROR(VLOOKUP(D104,'Species List'!$I$71:$J$82,2,FALSE)*J104,\"\")","v":""},0,null,null,null,null,null,null,{"$f":"IFERROR(INDEX('3 - Land Summary'!$B$21:$B$120,(MATCH(AD104,'3 - Land Summary'!$C$21:$C$120,0))),\"\")","v":""}]
[null,{"$f":"IFERROR(INDEX('3 - Land Summary'!$B$21:$B$120,(MATCH('4 - Species Breakdown'!$V105,'3 - Land Summary'!$C$21:$C$120,0))),\"\")","v":""},null,null,{"$f":"IF(OR(COUNTIF('Look Up Data'!$D$149:$D$203,D105),COUNTIF('Look Up Data'!$D$149:$D$203,AE105)),\"YES\",\"NO\")","v":"NO"},null,null,{"$f":"IFERROR(INDEX('3 - Land Summary'!$G$21:$G$120,(MATCH(C105,'3 - Land Summary'!$C$21:$C$120,0))),\"\")","v":""},{"$f":"IFERROR(INDEX('3 - Land Summary'!$I$21:$I$120,(MATCH(C105,'3 - Land Summary'!$C$21:$C$120,0))),\"\")","v":""},"","",null,null,null,{"$f":"IFERROR(VLOOKUP(D105,'Species List'!$D$10:$E$46,2,FALSE)*J105,\"\")","v":""},{"$f":"IFERROR(VLOOKUP(D105,'Species List'!$D$51:$E$89,2,FALSE)*J105,\"\")","v":""},{"$f":"IFERROR(VLOOKUP(D105,'Species List'!$D$95:$E$102,2,FALSE)*J105,\"\")","v":""},{"$f":"IFERROR(VLOOKUP(D105,'Species List'!$I$10:$J$11,2,FALSE)*J105,\"\")","v":""},{"$f":"IFERROR(VLOOKUP(D105,'Species List'!$I$16:$J$61,2,FALSE)*J105,\"\")","v":""},{"$f":"IFERROR(VLOOKUP(D105,'Species List'!$I$66:$J$66,2,FALSE)*J105,\"\")","v":""},{"$f":"IFERROR(VLOOKUP(D105,'Species List'!$I$71:$J$82,2,FALSE)*J105,\"\")","v":""},0,null,null,null,null,null,null,{"$f":"IFERROR(INDEX('3 - Land Summary'!$B$21:$B$120,(MATCH(AD105,'3 - Land Summary'!$C$21:$C$120,0))),\"\")","v":""}]
[null,{"$f":"IFERROR(INDEX('3 - Land Summary'!$B$21:$B$120,(MATCH('4 - Species Breakdown'!$V106,'3 - Land Summary'!$C$21:$C$120,0))),\"\")","v":""},null,null,{"$f":"IF(OR(COUNTIF('Look Up Data'!$D$149:$D$203,D106),COUNTIF('Look Up Data'!$D$149:$D$203,AE106)),\"YES\",\"NO\")","v":"NO"},null,null,{"$f":"IFERROR(INDEX('3 - Land Summary'!$G$21:$G$120,(MATCH(C106,'3 - Land Summary'!$C$21:$C$120,0))),\"\")","v":""},{"$f":"IFERROR(INDEX('3 - Land Summary'!$I$21:$I$120,(MATCH(C106,'3 - Land Summary'!$C$21:$C$120,0))),\"\")","v":""},"","",null,null,null,{"$f":"IFERROR(VLOOKUP(D106,'Species List'!$D$10:$E$46,2,FALSE)*J106,\"\")","v":""},{"$f":"IFERROR(VLOOKUP(D106,'Species List'!$D$51:$E$89,2,FALSE)*J106,\"\")","v":""},{"$f":"IFERROR(VLOOKUP(D106,'Species List'!$D$95:$E$102,2,FALSE)*J106,\"\")","v":""},{"$f":"IFERROR(VLOOKUP(D106,'Species List'!$I$10:$J$11,2,FALSE)*J106,\"\")","v":""},{"$f":"IFERROR(VLOOKUP(D106,'Species List'!$I$16:$J$61,2,FALSE)*J106,\"\")","v":""},{"$f":"IFERROR(VLOOKUP(D106,'Species List'!$I$66:$J$66,2,FALSE)*J106,\"\")","v":""},{"$f":"IFERROR(VLOOKUP(D106,'Species List'!$I$71:$J$82,2,FALSE)*J106,\"\")","v":""},0,null,null,null,null,null,null,{"$f":"IFERROR(INDEX('3 - Land Summary'!$B$21:$B$120,(MATCH(AD106,'3 - Land Summary'!$C$21:$C$120,0))),\"\")","v":""}]
[null,{"$f":"IFERROR(INDEX('3 - Land Summary'!$B$21:$B$120,(MATCH('4 - Species Breakdown'!$V107,'3 - Land Summary'!$C$21:$C$120,0))),\"\")","v":""},null,null,{"$f":"IF(OR(COUNTIF('Look Up Data'!$D$149:$D$203,D107),COUNTIF('Look Up Data'!$D$149:$D$203,AE107)),\"YES\",\"NO\")","v":"NO"},null,null,{"$f":"IFERROR(INDEX('3 - Land Summary'!$G$21:$G$120,(MATCH(C107,'3 - Land Summary'!$C$21:$C$120,0))),\"\")","v":""},{"$f":"IFERROR(INDEX('3 - Land Summary'!$I$21:$I$120,(MATCH(C107,'3 - Land Summary'!$C$21:$C$120,0))),\"\")","v":""},"","",null,null,null,{"$f":"IFERROR(VLOOKUP(D107,'Species List'!$D$10:$E$46,2,FALSE)*J107,\"\")","v":""},{"$f":"IFERROR(VLOOKUP(D107,'Species List'!$D$51:$E$89,2,FALSE)*J107,\"\")","v":""},{"$f":"IFERROR(VLOOKUP(D107,'Species List'!$D$95:$E$102,2,FALSE)*J107,\"\")","v":""},{"$f":"IFERROR(VLOOKUP(D107,'Species List'!$I$10:$J$11,2,FALSE)*J107,\"\")","v":""},{"$f":"IFERROR(VLOOKUP(D107,'Species List'!$I$16:$J$61,2,FALSE)*J107,\"\")","v":""},{"$f":"IFERROR(VLOOKUP(D107,'Species List'!$I$66:$J$66,2,FALSE)*J107,\"\")","v":""},{"$f":"IFERROR(VLOOKUP(D107,'Species List'!$I$71:$J$82,2,FALSE)*J107,\"\")","v":""},0,null,null,null,null,null,null,{"$f":"IFERROR(INDEX('3 - Land Summary'!$B$21:$B$120,(MATCH(AD107,'3 - Land Summary'!$C$21:$C$120,0))),\"\")","v":""}]
[null,{"$f":"IFERROR(INDEX('3 - Land Summary'!$B$21:$B$120,(MATCH('4 - Species Breakdown'!$V108,'3 - Land Summary'!$C$21:$C$120,0))),\"\")","v":""},null,null,{"$f":"IF(OR(COUNTIF('Look Up Data'!$D$149:$D$203,D108),COUNTIF('Look Up Data'!$D$149:$D$203,AE108)),\"YES\",\"NO\")","v":"NO"},null,null,{"$f":"IFERROR(INDEX('3 - Land Summary'!$G$21:$G$120,(MATCH(C108,'3 - Land Summary'!$C$21:$C$120,0))),\"\")","v":""},{"$f":"IFERROR(INDEX('3 - Land Summary'!$I$21:$I$120,(MATCH(C108,'3 - Land Summary'!$C$21:$C$120,0))),\"\")","v":""},"","",null,null,null,{"$f":"IFERROR(VLOOKUP(D108,'Species List'!$D$10:$E$46,2,FALSE)*J108,\"\")","v":""},{"$f":"IFERROR(VLOOKUP(D108,'Species List'!$D$51:$E$89,2,FALSE)*J108,\"\")","v":""},{"$f":"IFERROR(VLOOKUP(D108,'Species List'!$D$95:$E$102,2,FALSE)*J108,\"\")","v":""},{"$f":"IFERROR(VLOOKUP(D108,'Species List'!$I$10:$J$11,2,FALSE)*J108,\"\")","v":""},{"$f":"IFERROR(VLOOKUP(D108,'Species List'!$I$16:$J$61,2,FALSE)*J108,\"\")","v":""},{"$f":"IFERROR(VLOOKUP(D108,'Species List'!$I$66:$J$66,2,FALSE)*J108,\"\")","v":""},{"$f":"IFERROR(VLOOKUP(D108,'Species List'!$I$71:$J$82,2,FALSE)*J108,\"\")","v":""},0,null,null,null,null,null,null,{"$f":"IFERROR(INDEX('3 - Land Summary'!$B$21:$B$120,(MATCH(AD108,'3 - Land Summary'!$C$21:$C$120,0))),\"\")","v":""}]
[null,{"$f":"IFERROR(INDEX('3 - Land Summary'!$B$21:$B$120,(MATCH('4 - Species Breakdown'!$V109,'3 - Land Summary'!$C$21:$C$120,0))),\"\")","v":""},null,null,{"$f":"IF(OR(COUNTIF('Look Up Data'!$D$149:$D$203,D109),COUNTIF('Look Up Data'!$D$149:$D$203,AE109)),\"YES\",\"NO\")","v":"NO"},null,null,{"$f":"IFERROR(INDEX('3 - Land Summary'!$G$21:$G$120,(MATCH(C109,'3 - Land Summary'!$C$21:$C$120,0))),\"\")","v":""},{"$f":"IFERROR(INDEX('3 - Land Summary'!$I$21:$I$120,(MATCH(C109,'3 - Land Summary'!$C$21:$C$120,0))),\"\")","v":""},"","",null,null,null,{"$f":"IFERROR(VLOOKUP(D109,'Species List'!$D$10:$E$46,2,FALSE)*J109,\"\")","v":""},{"$f":"IFERROR(VLOOKUP(D109,'Species List'!$D$51:$E$89,2,FALSE)*J109,\"\")","v":""},{"$f":"IFERROR(VLOOKUP(D109,'Species List'!$D$95:$E$102,2,FALSE)*J109,\"\")","v":""},{"$f":"IFERROR(VLOOKUP(D109,'Species List'!$I$10:$J$11,2,FALSE)*J109,\"\")","v":""},{"$f":"IFERROR(VLOOKUP(D109,'Species List'!$I$16:$J$61,2,FALSE)*J109,\"\")","v":""},{"$f":"IFERROR(VLOOKUP(D109,'Species List'!$I$66:$J$66,2,FALSE)*J109,\"\")","v":""},{"$f":"IFERROR(VLOOKUP(D109,'Species List'!$I$71:$J$82,2,FALSE)*J109,\"\")","v":""},0,null,null,null,null,null,null,{"$f":"IFERROR(INDEX('3 - Land Summary'!$B$21:$B$120,(MATCH(AD109,'3 - Land Summary'!$C$21:$C$120,0))),\"\")","v":""}]
[null,{"$f":"IFERROR(INDEX('3 - Land Summary'!$B$21:$B$120,(MATCH('4 - Species Breakdown'!$V110,'3 - Land Summary'!$C$21:$C$120,0))),\"\")","v":""},null,null,{"$f":"IF(OR(COUNTIF('Look Up Data'!$D$149:$D$203,D110),COUNTIF('Look Up Data'!$D$149:$D$203,AE110)),\"YES\",\"NO\")","v":"NO"},null,null,{"$f":"IFERROR(INDEX('3 - Land Summary'!$G$21:$G$120,(MATCH(C110,'3 - Land Summary'!$C$21:$C$120,0))),\"\")","v":""},{"$f":"IFERROR(INDEX('3 - Land Summary'!$I$21:$I$120,(MATCH(C110,'3 - Land Summary'!$C$21:$C$120,0))),\"\")","v":""},"","",null,null,null,{"$f":"IFERROR(VLOOKUP(D110,'Species List'!$D$10:$E$46,2,FALSE)*J110,\"\")","v":""},{"$f":"IFERROR(VLOOKUP(D110,'Species List'!$D$51:$E$89,2,FALSE)*J110,\"\")","v":""},{"$f":"IFERROR(VLOOKUP(D110,'Species List'!$D$95:$E$102,2,FALSE)*J110,\"\")","v":""},{"$f":"IFERROR(VLOOKUP(D110,'Species List'!$I$10:$J$11,2,FALSE)*J110,\"\")","v":""},{"$f":"IFERROR(VLOOKUP(D110,'Species List'!$I$16:$J$61,2,FALSE)*J110,\"\")","v":""},{"$f":"IFERROR(VLOOKUP(D110,'Species List'!$I$66:$J$66,2,FALSE)*J110,\"\")","v":""},{"$f":"IFERROR(VLOOKUP(D110,'Species List'!$I$71:$J$82,2,FALSE)*J110,\"\")","v":""},0,null,null,null,null,null,null,{"$f":"IFERROR(INDEX('3 - Land Summary'!$B$21:$B$120,(MATCH(AD110,'3 - Land Summary'!$C$21:$C$120,0))),\"\")","v":""}]
[null,{"$f":"IFERROR(INDEX('3 - Land Summary'!$B$21:$B$120,(MATCH('4 - Species Breakdown'!$V111,'3 - Land Summary'!$C$21:$C$120,0))),\"\")","v":""},null,null,{"$f":"IF(OR(COUNTIF('Look Up Data'!$D$149:$D$203,D111),COUNTIF('Look Up Data'!$D$149:$D$203,AE111)),\"YES\",\"NO\")","v":"NO"},null,null,{"$f":"IFERROR(INDEX('3 - Land Summary'!$G$21:$G$120,(MATCH(C111,'3 - Land Summary'!$C$21:$C$120,0))),\"\")","v":""},{"$f":"IFERROR(INDEX('3 - Land Summary'!$I$21:$I$120,(MATCH(C111,'3 - Land Summary'!$C$21:$C$120,0))),\"\")","v":""},"","",null,null,null,{"$f":"IFERROR(VLOOKUP(D111,'Species List'!$D$10:$E$46,2,FALSE)*J111,\"\")","v":""},{"$f":"IFERROR(VLOOKUP(D111,'Species List'!$D$51:$E$89,2,FALSE)*J111,\"\")","v":""},{"$f":"IFERROR(VLOOKUP(D111,'Species List'!$D$95:$E$102,2,FALSE)*J111,\"\")","v":""},{"$f":"IFERROR(VLOOKUP(D111,'Species List'!$I$10:$J$11,2,FALSE)*J111,\"\")","v":""},{"$f":"IFERROR(VLOOKUP(D111,'Species List'!$I$16:$J$61,2,FALSE)*J111,\"\")","v":""},{"$f":"IFERROR(VLOOKUP(D111,'Species List'!$I$66:$J$66,2,FALSE)*J111,\"\")","v":""},{"$f":"IFERROR(VLOOKUP(D111,'Species List'!$I$71:$J$82,2,FALSE)*J111,\"\")","v":""},0,null,null,null,null,null,null,{"$f":"IFERROR(INDEX('3 - Land Summary'!$B$21:$B$120,(MATCH(AD111,'3 - Land Summary'!$C$21:$C$120,0))),\"\")","v":""}]
[null,{"$f":"IFERROR(INDEX('3 - Land Summary'!$B$21:$B$120,(MATCH('4 - Species Breakdown'!$V112,'3 - Land Summary'!$C$21:$C$120,0))),\"\")","v":""},null,null,{"$f":"IF(OR(COUNTIF('Look Up Data'!$D$149:$D$203,D112),COUNTIF('Look Up Data'!$D$149:$D$203,AE112)),\"YES\",\"NO\")","v":"NO"},null,null,{"$f":"IFERROR(INDEX('3 - Land Summary'!$G$21:$G$120,(MATCH(C112,'3 - Land Summary'!$C$21:$C$120,0))),\"\")","v":""},{"$f":"IFERROR(INDEX('3 - Land Summary'!$I$21:$I$120,(MATCH(C112,'3 - Land Summary'!$C$21:$C$120,0))),\"\")","v":""},"","",null,null,null,{"$f":"IFERROR(VLOOKUP(D112,'Species List'!$D$10:$E$46,2,FALSE)*J112,\"\")","v":""},{"$f":"IFERROR(VLOOKUP(D112,'Species List'!$D$51:$E$89,2,FALSE)*J112,\"\")","v":""},{"$f":"IFERROR(VLOOKUP(D112,'Species List'!$D$95:$E$102,2,FALSE)*J112,\"\")","v":""},{"$f":"IFERROR(VLOOKUP(D112,'Species List'!$I$10:$J$11,2,FALSE)*J112,\"\")","v":""},{"$f":"IFERROR(VLOOKUP(D112,'Species List'!$I$16:$J$61,2,FALSE)*J112,\"\")","v":""},{"$f":"IFERROR(VLOOKUP(D112,'Species List'!$I$66:$J$66,2,FALSE)*J112,\"\")","v":""},{"$f":"IFERROR(VLOOKUP(D112,'Species List'!$I$71:$J$82,2,FALSE)*J112,\"\")","v":""},0,null,null,null,null,null,null,{"$f":"IFERROR(INDEX('3 - Land Summary'!$B$21:$B$120,(MATCH(AD112,'3 - Land Summary'!$C$21:$C$120,0))),\"\")","v":""}]
[null,{"$f":"IFERROR(INDEX('3 - Land Summary'!$B$21:$B$120,(MATCH('4 - Species Breakdown'!$V113,'3 - Land Summary'!$C$21:$C$120,0))),\"\")","v":""},null,null,{"$f":"IF(OR(COUNTIF('Look Up Data'!$D$149:$D$203,D113),COUNTIF('Look Up Data'!$D$149:$D$203,AE113)),\"YES\",\"NO\")","v":"NO"},null,null,{"$f":"IFERROR(INDEX('3 - Land Summary'!$G$21:$G$120,(MATCH(C113,'3 - Land Summary'!$C$21:$C$120,0))),\"\")","v":""},{"$f":"IFERROR(INDEX('3 - Land Summary'!$I$21:$I$120,(MATCH(C113,'3 - Land Summary'!$C$21:$C$120,0))),\"\")","v":""},"","",null,null,null,{"$f":"IFERROR(VLOOKUP(D113,'Species List'!$D$10:$E$46,2,FALSE)*J113,\"\")","v":""},{"$f":"IFERROR(VLOOKUP(D113,'Species List'!$D$51:$E$89,2,FALSE)*J113,\"\")","v":""},{"$f":"IFERROR(VLOOKUP(D113,'Species List'!$D$95:$E$102,2,FALSE)*J113,\"\")","v":""},{"$f":"IFERROR(VLOOKUP(D113,'Species List'!$I$10:$J$11,2,FALSE)*J113,\"\")","v":""},{"$f":"IFERROR(VLOOKUP(D113,'Species List'!$I$16:$J$61,2,FALSE)*J113,\"\")","v":""},{"$f":"IFERROR(VLOOKUP(D113,'Species List'!$I$66:$J$66,2,FALSE)*J113,\"\")","v":""},{"$f":"IFERROR(VLOOKUP(D113,'Species List'!$I$71:$J$82,2,FALSE)*J113,\"\")","v":""},0,null,null,null,null,null,null,{"$f":"IFERROR(INDEX('3 - Land Summary'!$B$21:$B$120,(MATCH(AD113,'3 - Land Summary'!$C$21:$C$120,0))),\"\")","v":""}]
[null,{"$f":"IFERROR(INDEX('3 - Land Summary'!$B$21:$B$120,(MATCH('4 - Species Breakdown'!$V114,'3 - Land Summary'!$C$21:$C$120,0))),\"\")","v":""},null,null,{"$f":"IF(OR(COUNTIF('Look Up Data'!$D$149:$D$203,D114),COUNTIF('Look Up Data'!$D$149:$D$203,AE114)),\"YES\",\"NO\")","v":"NO"},null,null,{"$f":"IFERROR(INDEX('3 - Land Summary'!$G$21:$G$120,(MATCH(C114,'3 - Land Summary'!$C$21:$C$120,0))),\"\")","v":""},{"$f":"IFERROR(INDEX('3 - Land Summary'!$I$21:$I$120,(MATCH(C114,'3 - Land Summary'!$C$21:$C$120,0))),\"\")","v":""},"","",null,null,null,{"$f":"IFERROR(VLOOKUP(D114,'Species List'!$D$10:$E$46,2,FALSE)*J114,\"\")","v":""},{"$f":"IFERROR(VLOOKUP(D114,'Species List'!$D$51:$E$89,2,FALSE)*J114,\"\")","v":""},{"$f":"IFERROR(VLOOKUP(D114,'Species List'!$D$95:$E$102,2,FALSE)*J114,\"\")","v":""},{"$f":"IFERROR(VLOOKUP(D114,'Species List'!$I$10:$J$11,2,FALSE)*J114,\"\")","v":""},{"$f":"IFERROR(VLOOKUP(D114,'Species List'!$I$16:$J$61,2,FALSE)*J114,\"\")","v":""},{"$f":"IFERROR(VLOOKUP(D114,'Species List'!$I$66:$J$66,2,FALSE)*J114,\"\")","v":""},{"$f":"IFERROR(VLOOKUP(D114,'Species List'!$I$71:$J$82,2,FALSE)*J114,\"\")","v":""},0,null,null,null,null,null,null,{"$f":"IFERROR(INDEX('3 - Land Summary'!$B$21:$B$120,(MATCH(AD114,'3 - Land Summary'!$C$21:$C$120,0))),\"\")","v":""}]
[null,{"$f":"IFERROR(INDEX('3 - Land Summary'!$B$21:$B$120,(MATCH('4 - Species Breakdown'!$V115,'3 - Land Summary'!$C$21:$C$120,0))),\"\")","v":""},null,null,{"$f":"IF(OR(COUNTIF('Look Up Data'!$D$149:$D$203,D115),COUNTIF('Look Up Data'!$D$149:$D$203,AE115)),\"YES\",\"NO\")","v":"NO"},null,null,{"$f":"IFERROR(INDEX('3 - Land Summary'!$G$21:$G$120,(MATCH(C115,'3 - Land Summary'!$C$21:$C$120,0))),\"\")","v":""},{"$f":"IFERROR(INDEX('3 - Land Summary'!$I$21:$I$120,(MATCH(C115,'3 - Land Summary'!$C$21:$C$120,0))),\"\")","v":""},"","",null,null,null,{"$f":"IFERROR(VLOOKUP(D115,'Species List'!$D$10:$E$46,2,FALSE)*J115,\"\")","v":""},{"$f":"IFERROR(VLOOKUP(D115,'Species List'!$D$51:$E$89,2,FALSE)*J115,\"\")","v":""},{"$f":"IFERROR(VLOOKUP(D115,'Species List'!$D$95:$E$102,2,FALSE)*J115,\"\")","v":""},{"$f":"IFERROR(VLOOKUP(D115,'Species List'!$I$10:$J$11,2,FALSE)*J115,\"\")","v":""},{"$f":"IFERROR(VLOOKUP(D115,'Species List'!$I$16:$J$61,2,FALSE)*J115,\"\")","v":""},{"$f":"IFERROR(VLOOKUP(D115,'Species List'!$I$66:$J$66,2,FALSE)*J115,\"\")","v":""},{"$f":"IFERROR(VLOOKUP(D115,'Species List'!$I$71:$J$82,2,FALSE)*J115,\"\")","v":""},0,null,null,null,null,null,null,{"$f":"IFERROR(INDEX('3 - Land Summary'!$B$21:$B$120,(MATCH(AD115,'3 - Land Summary'!$C$21:$C$120,0))),\"\")","v":""}]
[null,{"$f":"IFERROR(INDEX('3 - Land Summary'!$B$21:$B$120,(MATCH('4 - Species Breakdown'!$V116,'3 - Land Summary'!$C$21:$C$120,0))),\"\")","v":""},null,null,{"$f":"IF(OR(COUNTIF('Look Up Data'!$D$149:$D$203,D116),COUNTIF('Look Up Data'!$D$149:$D$203,AE116)),\"YES\",\"NO\")","v":"NO"},null,null,{"$f":"IFERROR(INDEX('3 - Land Summary'!$G$21:$G$120,(MATCH(C116,'3 - Land Summary'!$C$21:$C$120,0))),\"\")","v":""},{"$f":"IFERROR(INDEX('3 - Land Summary'!$I$21:$I$120,(MATCH(C116,'3 - Land Summary'!$C$21:$C$120,0))),\"\")","v":""},"","",null,null,null,{"$f":"IFERROR(VLOOKUP(D116,'Species List'!$D$10:$E$46,2,FALSE)*J116,\"\")","v":""},{"$f":"IFERROR(VLOOKUP(D116,'Species List'!$D$51:$E$89,2,FALSE)*J116,\"\")","v":""},{"$f":"IFERROR(VLOOKUP(D116,'Species List'!$D$95:$E$102,2,FALSE)*J116,\"\")","v":""},{"$f":"IFERROR(VLOOKUP(D116,'Species List'!$I$10:$J$11,2,FALSE)*J116,\"\")","v":""},{"$f":"IFERROR(VLOOKUP(D116,'Species List'!$I$16:$J$61,2,FALSE)*J116,\"\")","v":""},{"$f":"IFERROR(VLOOKUP(D116,'Species List'!$I$66:$J$66,2,FALSE)*J116,\"\")","v":""},{"$f":"IFERROR(VLOOKUP(D116,'Species List'!$I$71:$J$82,2,FALSE)*J116,\"\")","v":""},0,null,null,null,null,null,null,{"$f":"IFERROR(INDEX('3 - Land Summary'!$B$21:$B$120,(MATCH(AD116,'3 - Land Summary'!$C$21:$C$120,0))),\"\")","v":""}]
[null,{"$f":"IFERROR(INDEX('3 - Land Summary'!$B$21:$B$120,(MATCH('4 - Species Breakdown'!$V117,'3 - Land Summary'!$C$21:$C$120,0))),\"\")","v":""},null,null,{"$f":"IF(OR(COUNTIF('Look Up Data'!$D$149:$D$203,D117),COUNTIF('Look Up Data'!$D$149:$D$203,AE117)),\"YES\",\"NO\")","v":"NO"},null,null,{"$f":"IFERROR(INDEX('3 - Land Summary'!$G$21:$G$120,(MATCH(C117,'3 - Land Summary'!$C$21:$C$120,0))),\"\")","v":""},{"$f":"IFERROR(INDEX('3 - Land Summary'!$I$21:$I$120,(MATCH(C117,'3 - Land Summary'!$C$21:$C$120,0))),\"\")","v":""},"","",null,null,null,{"$f":"IFERROR(VLOOKUP(D117,'Species List'!$D$10:$E$46,2,FALSE)*J117,\"\")","v":""},{"$f":"IFERROR(VLOOKUP(D117,'Species List'!$D$51:$E$89,2,FALSE)*J117,\"\")","v":""},{"$f":"IFERROR(VLOOKUP(D117,'Species List'!$D$95:$E$102,2,FALSE)*J117,\"\")","v":""},{"$f":"IFERROR(VLOOKUP(D117,'Species List'!$I$10:$J$11,2,FALSE)*J117,\"\")","v":""},{"$f":"IFERROR(VLOOKUP(D117,'Species List'!$I$16:$J$61,2,FALSE)*J117,\"\")","v":""},{"$f":"IFERROR(VLOOKUP(D117,'Species List'!$I$66:$J$66,2,FALSE)*J117,\"\")","v":""},{"$f":"IFERROR(VLOOKUP(D117,'Species List'!$I$71:$J$82,2,FALSE)*J117,\"\")","v":""},0,null,null,null,null,null,null,{"$f":"IFERROR(INDEX('3 - Land Summary'!$B$21:$B$120,(MATCH(AD117,'3 - Land Summary'!$C$21:$C$120,0))),\"\")","v":""}]
[null,{"$f":"IFERROR(INDEX('3 - Land Summary'!$B$21:$B$120,(MATCH('4 - Species Breakdown'!$V118,'3 - Land Summary'!$C$21:$C$120,0))),\"\")","v":""},null,null,{"$f":"IF(OR(COUNTIF('Look Up Data'!$D$149:$D$203,D118),COUNTIF('Look Up Data'!$D$149:$D$203,AE118)),\"YES\",\"NO\")","v":"NO"},null,null,{"$f":"IFERROR(INDEX('3 - Land Summary'!$G$21:$G$120,(MATCH(C118,'3 - Land Summary'!$C$21:$C$120,0))),\"\")","v":""},{"$f":"IFERROR(INDEX('3 - Land Summary'!$I$21:$I$120,(MATCH(C118,'3 - Land Summary'!$C$21:$C$120,0))),\"\")","v":""},"","",null,null,null,{"$f":"IFERROR(VLOOKUP(D118,'Species List'!$D$10:$E$46,2,FALSE)*J118,\"\")","v":""},{"$f":"IFERROR(VLOOKUP(D118,'Species List'!$D$51:$E$89,2,FALSE)*J118,\"\")","v":""},{"$f":"IFERROR(VLOOKUP(D118,'Species List'!$D$95:$E$102,2,FALSE)*J118,\"\")","v":""},{"$f":"IFERROR(VLOOKUP(D118,'Species List'!$I$10:$J$11,2,FALSE)*J118,\"\")","v":""},{"$f":"IFERROR(VLOOKUP(D118,'Species List'!$I$16:$J$61,2,FALSE)*J118,\"\")","v":""},{"$f":"IFERROR(VLOOKUP(D118,'Species List'!$I$66:$J$66,2,FALSE)*J118,\"\")","v":""},{"$f":"IFERROR(VLOOKUP(D118,'Species List'!$I$71:$J$82,2,FALSE)*J118,\"\")","v":""},0,null,null,null,null,null,null,{"$f":"IFERROR(INDEX('3 - Land Summary'!$B$21:$B$120,(MATCH(AD118,'3 - Land Summary'!$C$21:$C$120,0))),\"\")","v":""}]
[null,{"$f":"IFERROR(INDEX('3 - Land Summary'!$B$21:$B$120,(MATCH('4 - Species Breakdown'!$V119,'3 - Land Summary'!$C$21:$C$120,0))),\"\")","v":""},null,null,{"$f":"IF(OR(COUNTIF('Look Up Data'!$D$149:$D$203,D119),COUNTIF('Look Up Data'!$D$149:$D$203,AE119)),\"YES\",\"NO\")","v":"NO"},null,null,{"$f":"IFERROR(INDEX('3 - Land Summary'!$G$21:$G$120,(MATCH(C119,'3 - Land Summary'!$C$21:$C$120,0))),\"\")","v":""},{"$f":"IFERROR(INDEX('3 - Land Summary'!$I$21:$I$120,(MATCH(C119,'3 - Land Summary'!$C$21:$C$120,0))),\"\")","v":""},"","",null,null,null,{"$f":"IFERROR(VLOOKUP(D119,'Species List'!$D$10:$E$46,2,FALSE)*J119,\"\")","v":""},{"$f":"IFERROR(VLOOKUP(D119,'Species List'!$D$51:$E$89,2,FALSE)*J119,\"\")","v":""},{"$f":"IFERROR(VLOOKUP(D119,'Species List'!$D$95:$E$102,2,FALSE)*J119,\"\")","v":""},{"$f":"IFERROR(VLOOKUP(D119,'Species List'!$I$10:$J$11,2,FALSE)*J119,\"\")","v":""},{"$f":"IFERROR(VLOOKUP(D119,'Species List'!$I$16:$J$61,2,FALSE)*J119,\"\")","v":""},{"$f":"IFERROR(VLOOKUP(D119,'Species List'!$I$66:$J$66,2,FALSE)*J119,\"\")","v":""},{"$f":"IFERROR(VLOOKUP(D119,'Species List'!$I$71:$J$82,2,FALSE)*J119,\"\")","v":""},0,null,null,null,null,null,null,{"$f":"IFERROR(INDEX('3 - Land Summary'!$B$21:$B$120,(MATCH(AD119,'3 - Land Summary'!$C$21:$C$120,0))),\"\")","v":""}]
[null,{"$f":"IFERROR(INDEX('3 - Land Summary'!$B$21:$B$120,(MATCH('4 - Species Breakdown'!$V120,'3 - Land Summary'!$C$21:$C$120,0))),\"\")","v":""},null,null,{"$f":"IF(OR(COUNTIF('Look Up Data'!$D$149:$D$203,D120),COUNTIF('Look Up Data'!$D$149:$D$203,AE120)),\"YES\",\"NO\")","v":"NO"},null,null,{"$f":"IFERROR(INDEX('3 - Land Summary'!$G$21:$G$120,(MATCH(C120,'3 - Land Summary'!$C$21:$C$120,0))),\"\")","v":""},{"$f":"IFERROR(INDEX('3 - Land Summary'!$I$21:$I$120,(MATCH(C120,'3 - Land Summary'!$C$21:$C$120,0))),\"\")","v":""},"","",null,null,null,{"$f":"IFERROR(VLOOKUP(D120,'Species List'!$D$10:$E$46,2,FALSE)*J120,\"\")","v":""},{"$f":"IFERROR(VLOOKUP(D120,'Species List'!$D$51:$E$89,2,FALSE)*J120,\"\")","v":""},{"$f":"IFERROR(VLOOKUP(D120,'Species List'!$D$95:$E$102,2,FALSE)*J120,\"\")","v":""},{"$f":"IFERROR(VLOOKUP(D120,'Species List'!$I$10:$J$11,2,FALSE)*J120,\"\")","v":""},{"$f":"IFERROR(VLOOKUP(D120,'Species List'!$I$16:$J$61,2,FALSE)*J120,\"\")","v":""},{"$f":"IFERROR(VLOOKUP(D120,'Species List'!$I$66:$J$66,2,FALSE)*J120,\"\")","v":""},{"$f":"IFERROR(VLOOKUP(D120,'Species List'!$I$71:$J$82,2,FALSE)*J120,\"\")","v":""},0,null,null,null,null,null,null,{"$f":"IFERROR(INDEX('3 - Land Summary'!$B$21:$B$120,(MATCH(AD120,'3 - Land Summary'!$C$21:$C$120,0))),\"\")","v":""}]
[null,{"$f":"IFERROR(INDEX('3 - Land Summary'!$B$21:$B$120,(MATCH('4 - Species Breakdown'!$V121,'3 - Land Summary'!$C$21:$C$120,0))),\"\")","v":""},null,null,{"$f":"IF(OR(COUNTIF('Look Up Data'!$D$149:$D$203,D121),COUNTIF('Look Up Data'!$D$149:$D$203,AE121)),\"YES\",\"NO\")","v":"NO"},null,null,{"$f":"IFERROR(INDEX('3 - Land Summary'!$G$21:$G$120,(MATCH(C121,'3 - Land Summary'!$C$21:$C$120,0))),\"\")","v":""},{"$f":"IFERROR(INDEX('3 - Land Summary'!$I$21:$I$120,(MATCH(C121,'3 - Land Summary'!$C$21:$C$120,0))),\"\")","v":""},"","",null,null,null,{"$f":"IFERROR(VLOOKUP(D121,'Species List'!$D$10:$E$46,2,FALSE)*J121,\"\")","v":""},{"$f":"IFERROR(VLOOKUP(D121,'Species List'!$D$51:$E$89,2,FALSE)*J121,\"\")","v":""},{"$f":"IFERROR(VLOOKUP(D121,'Species List'!$D$95:$E$102,2,FALSE)*J121,\"\")","v":""},{"$f":"IFERROR(VLOOKUP(D121,'Species List'!$I$10:$J$11,2,FALSE)*J121,\"\")","v":""},{"$f":"IFERROR(VLOOKUP(D121,'Species List'!$I$16:$J$61,2,FALSE)*J121,\"\")","v":""},{"$f":"IFERROR(VLOOKUP(D121,'Species List'!$I$66:$J$66,2,FALSE)*J121,\"\")","v":""},{"$f":"IFERROR(VLOOKUP(D121,'Species List'!$I$71:$J$82,2,FALSE)*J121,\"\")","v":""},0,null,null,null,null,null,null,{"$f":"IFERROR(INDEX('3 - Land Summary'!$B$21:$B$120,(MATCH(AD121,'3 - Land Summary'!$C$21:$C$120,0))),\"\")","v":""}]
[null,{"$f":"IFERROR(INDEX('3 - Land Summary'!$B$21:$B$120,(MATCH('4 - Species Breakdown'!$V122,'3 - Land Summary'!$C$21:$C$120,0))),\"\")","v":""},null,null,{"$f":"IF(OR(COUNTIF('Look Up Data'!$D$149:$D$203,D122),COUNTIF('Look Up Data'!$D$149:$D$203,AE122)),\"YES\",\"NO\")","v":"NO"},null,null,{"$f":"IFERROR(INDEX('3 - Land Summary'!$G$21:$G$120,(MATCH(C122,'3 - Land Summary'!$C$21:$C$120,0))),\"\")","v":""},{"$f":"IFERROR(INDEX('3 - Land Summary'!$I$21:$I$120,(MATCH(C122,'3 - Land Summary'!$C$21:$C$120,0))),\"\")","v":""},"","",null,null,null,{"$f":"IFERROR(VLOOKUP(D122,'Species List'!$D$10:$E$46,2,FALSE)*J122,\"\")","v":""},{"$f":"IFERROR(VLOOKUP(D122,'Species List'!$D$51:$E$89,2,FALSE)*J122,\"\")","v":""},{"$f":"IFERROR(VLOOKUP(D122,'Species List'!$D$95:$E$102,2,FALSE)*J122,\"\")","v":""},{"$f":"IFERROR(VLOOKUP(D122,'Species List'!$I$10:$J$11,2,FALSE)*J122,\"\")","v":""},{"$f":"IFERROR(VLOOKUP(D122,'Species List'!$I$16:$J$61,2,FALSE)*J122,\"\")","v":""},{"$f":"IFERROR(VLOOKUP(D122,'Species List'!$I$66:$J$66,2,FALSE)*J122,\"\")","v":""},{"$f":"IFERROR(VLOOKUP(D122,'Species List'!$I$71:$J$82,2,FALSE)*J122,\"\")","v":""},0,null,null,null,null,null,null,{"$f":"IFERROR(INDEX('3 - Land Summary'!$B$21:$B$120,(MATCH(AD122,'3 - Land Summary'!$C$21:$C$120,0))),\"\")","v":""}]
[null,{"$f":"IFERROR(INDEX('3 - Land Summary'!$B$21:$B$120,(MATCH('4 - Species Breakdown'!$V123,'3 - Land Summary'!$C$21:$C$120,0))),\"\")","v":""},null,null,{"$f":"IF(OR(COUNTIF('Look Up Data'!$D$149:$D$203,D123),COUNTIF('Look Up Data'!$D$149:$D$203,AE123)),\"YES\",\"NO\")","v":"NO"},null,null,{"$f":"IFERROR(INDEX('3 - Land Summary'!$G$21:$G$120,(MATCH(C123,'3 - Land Summary'!$C$21:$C$120,0))),\"\")","v":""},{"$f":"IFERROR(INDEX('3 - Land Summary'!$I$21:$I$120,(MATCH(C123,'3 - Land Summary'!$C$21:$C$120,0))),\"\")","v":""},"","",null,null,null,{"$f":"IFERROR(VLOOKUP(D123,'Species List'!$D$10:$E$46,2,FALSE)*J123,\"\")","v":""},{"$f":"IFERROR(VLOOKUP(D123,'Species List'!$D$51:$E$89,2,FALSE)*J123,\"\")","v":""},{"$f":"IFERROR(VLOOKUP(D123,'Species List'!$D$95:$E$102,2,FALSE)*J123,\"\")","v":""},{"$f":"IFERROR(VLOOKUP(D123,'Species List'!$I$10:$J$11,2,FALSE)*J123,\"\")","v":""},{"$f":"IFERROR(VLOOKUP(D123,'Species List'!$I$16:$J$61,2,FALSE)*J123,\"\")","v":""},{"$f":"IFERROR(VLOOKUP(D123,'Species List'!$I$66:$J$66,2,FALSE)*J123,\"\")","v":""},{"$f":"IFERROR(VLOOKUP(D123,'Species List'!$I$71:$J$82,2,FALSE)*J123,\"\")","v":""},0,null,null,null,null,null,null,{"$f":"IFERROR(INDEX('3 - Land Summary'!$B$21:$B$120,(MATCH(AD123,'3 - Land Summary'!$C$21:$C$120,0))),\"\")","v":""}]
[null,{"$f":"IFERROR(INDEX('3 - Land Summary'!$B$21:$B$120,(MATCH('4 - Species Breakdown'!$V124,'3 - Land Summary'!$C$21:$C$120,0))),\"\")","v":""},null,null,{"$f":"IF(OR(COUNTIF('Look Up Data'!$D$149:$D$203,D124),COUNTIF('Look Up Data'!$D$149:$D$203,AE124)),\"YES\",\"NO\")","v":"NO"},null,null,{"$f":"IFERROR(INDEX('3 - Land Summary'!$G$21:$G$120,(MATCH(C124,'3 - Land Summary'!$C$21:$C$120,0))),\"\")","v":""},{"$f":"IFERROR(INDEX('3 - Land Summary'!$I$21:$I$120,(MATCH(C124,'3 - Land Summary'!$C$21:$C$120,0))),\"\")","v":""},"","",null,null,null,{"$f":"IFERROR(VLOOKUP(D124,'Species List'!$D$10:$E$46,2,FALSE)*J124,\"\")","v":""},{"$f":"IFERROR(VLOOKUP(D124,'Species List'!$D$51:$E$89,2,FALSE)*J124,\"\")","v":""},{"$f":"IFERROR(VLOOKUP(D124,'Species List'!$D$95:$E$102,2,FALSE)*J124,\"\")","v":""},{"$f":"IFERROR(VLOOKUP(D124,'Species List'!$I$10:$J$11,2,FALSE)*J124,\"\")","v":""},{"$f":"IFERROR(VLOOKUP(D124,'Species List'!$I$16:$J$61,2,FALSE)*J124,\"\")","v":""},{"$f":"IFERROR(VLOOKUP(D124,'Species List'!$I$66:$J$66,2,FALSE)*J124,\"\")","v":""},{"$f":"IFERROR(VLOOKUP(D124,'Species List'!$I$71:$J$82,2,FALSE)*J124,\"\")","v":""},0,null,null,null,null,null,null,{"$f":"IFERROR(INDEX('3 - Land Summary'!$B$21:$B$120,(MATCH(AD124,'3 - Land Summary'!$C$21:$C$120,0))),\"\")","v":""}]
[null,{"$f":"IFERROR(INDEX('3 - Land Summary'!$B$21:$B$120,(MATCH('4 - Species Breakdown'!$V125,'3 - Land Summary'!$C$21:$C$120,0))),\"\")","v":""},null,null,{"$f":"IF(OR(COUNTIF('Look Up Data'!$D$149:$D$203,D125),COUNTIF('Look Up Data'!$D$149:$D$203,AE125)),\"YES\",\"NO\")","v":"NO"},null,null,{"$f":"IFERROR(INDEX('3 - Land Summary'!$G$21:$G$120,(MATCH(C125,'3 - Land Summary'!$C$21:$C$120,0))),\"\")","v":""},{"$f":"IFERROR(INDEX('3 - Land Summary'!$I$21:$I$120,(MATCH(C125,'3 - Land Summary'!$C$21:$C$120,0))),\"\")","v":""},"","",null,null,null,{"$f":"IFERROR(VLOOKUP(D125,'Species List'!$D$10:$E$46,2,FALSE)*J125,\"\")","v":""},{"$f":"IFERROR(VLOOKUP(D125,'Species List'!$D$51:$E$89,2,FALSE)*J125,\"\")","v":""},{"$f":"IFERROR(VLOOKUP(D125,'Species List'!$D$95:$E$102,2,FALSE)*J125,\"\")","v":""},{"$f":"IFERROR(VLOOKUP(D125,'Species List'!$I$10:$J$11,2,FALSE)*J125,\"\")","v":""},{"$f":"IFERROR(VLOOKUP(D125,'Species List'!$I$16:$J$61,2,FALSE)*J125,\"\")","v":""},{"$f":"IFERROR(VLOOKUP(D125,'Species List'!$I$66:$J$66,2,FALSE)*J125,\"\")","v":""},{"$f":"IFERROR(VLOOKUP(D125,'Species List'!$I$71:$J$82,2,FALSE)*J125,\"\")","v":""},0,null,null,null,null,null,null,{"$f":"IFERROR(INDEX('3 - Land Summary'!$B$21:$B$120,(MATCH(AD125,'3 - Land Summary'!$C$21:$C$120,0))),\"\")","v":""}]
[null,{"$f":"IFERROR(INDEX('3 - Land Summary'!$B$21:$B$120,(MATCH('4 - Species Breakdown'!$V126,'3 - Land Summary'!$C$21:$C$120,0))),\"\")","v":""},null,null,{"$f":"IF(OR(COUNTIF('Look Up Data'!$D$149:$D$203,D126),COUNTIF('Look Up Data'!$D$149:$D$203,AE126)),\"YES\",\"NO\")","v":"NO"},null,null,{"$f":"IFERROR(INDEX('3 - Land Summary'!$G$21:$G$120,(MATCH(C126,'3 - Land Summary'!$C$21:$C$120,0))),\"\")","v":""},{"$f":"IFERROR(INDEX('3 - Land Summary'!$I$21:$I$120,(MATCH(C126,'3 - Land Summary'!$C$21:$C$120,0))),\"\")","v":""},"","",null,null,null,{"$f":"IFERROR(VLOOKUP(D126,'Species List'!$D$10:$E$46,2,FALSE)*J126,\"\")","v":""},{"$f":"IFERROR(VLOOKUP(D126,'Species List'!$D$51:$E$89,2,FALSE)*J126,\"\")","v":""},{"$f":"IFERROR(VLOOKUP(D126,'Species List'!$D$95:$E$102,2,FALSE)*J126,\"\")","v":""},{"$f":"IFERROR(VLOOKUP(D126,'Species List'!$I$10:$J$11,2,FALSE)*J126,\"\")","v":""},{"$f":"IFERROR(VLOOKUP(D126,'Species List'!$I$16:$J$61,2,FALSE)*J126,\"\")","v":""},{"$f":"IFERROR(VLOOKUP(D126,'Species List'!$I$66:$J$66,2,FALSE)*J126,\"\")","v":""},{"$f":"IFERROR(VLOOKUP(D126,'Species List'!$I$71:$J$82,2,FALSE)*J126,\"\")","v":""},0,null,null,null,null,null,null,{"$f":"IFERROR(INDEX('3 - Land Summary'!$B$21:$B$120,(MATCH(AD126,'3 - Land Summary'!$C$21:$C$120,0))),\"\")","v":""}]
[null,{"$f":"IFERROR(INDEX('3 - Land Summary'!$B$21:$B$120,(MATCH('4 - Species Breakdown'!$V127,'3 - Land Summary'!$C$21:$C$120,0))),\"\")","v":""},null,null,{"$f":"IF(OR(COUNTIF('Look Up Data'!$D$149:$D$203,D127),COUNTIF('Look Up Data'!$D$149:$D$203,AE127)),\"YES\",\"NO\")","v":"NO"},null,null,{"$f":"IFERROR(INDEX('3 - Land Summary'!$G$21:$G$120,(MATCH(C127,'3 - Land Summary'!$C$21:$C$120,0))),\"\")","v":""},{"$f":"IFERROR(INDEX('3 - Land Summary'!$I$21:$I$120,(MATCH(C127,'3 - Land Summary'!$C$21:$C$120,0))),\"\")","v":""},"","",null,null,null,{"$f":"IFERROR(VLOOKUP(D127,'Species List'!$D$10:$E$46,2,FALSE)*J127,\"\")","v":""},{"$f":"IFERROR(VLOOKUP(D127,'Species List'!$D$51:$E$89,2,FALSE)*J127,\"\")","v":""},{"$f":"IFERROR(VLOOKUP(D127,'Species List'!$D$95:$E$102,2,FALSE)*J127,\"\")","v":""},{"$f":"IFERROR(VLOOKUP(D127,'Species List'!$I$10:$J$11,2,FALSE)*J127,\"\")","v":""},{"$f":"IFERROR(VLOOKUP(D127,'Species List'!$I$16:$J$61,2,FALSE)*J127,\"\")","v":""},{"$f":"IFERROR(VLOOKUP(D127,'Species List'!$I$66:$J$66,2,FALSE)*J127,\"\")","v":""},{"$f":"IFERROR(VLOOKUP(D127,'Species List'!$I$71:$J$82,2,FALSE)*J127,\"\")","v":""},0,null,null,null,null,null,null,{"$f":"IFERROR(INDEX('3 - Land Summary'!$B$21:$B$120,(MATCH(AD127,'3 - Land Summary'!$C$21:$C$120,0))),\"\")","v":""}]
[null,{"$f":"IFERROR(INDEX('3 - Land Summary'!$B$21:$B$120,(MATCH('4 - Species Breakdown'!$V128,'3 - Land Summary'!$C$21:$C$120,0))),\"\")","v":""},null,null,{"$f":"IF(OR(COUNTIF('Look Up Data'!$D$149:$D$203,D128),COUNTIF('Look Up Data'!$D$149:$D$203,AE128)),\"YES\",\"NO\")","v":"NO"},null,null,{"$f":"IFERROR(INDEX('3 - Land Summary'!$G$21:$G$120,(MATCH(C128,'3 - Land Summary'!$C$21:$C$120,0))),\"\")","v":""},{"$f":"IFERROR(INDEX('3 - Land Summary'!$I$21:$I$120,(MATCH(C128,'3 - Land Summary'!$C$21:$C$120,0))),\"\")","v":""},"","",null,null,null,{"$f":"IFERROR(VLOOKUP(D128,'Species List'!$D$10:$E$46,2,FALSE)*J128,\"\")","v":""},{"$f":"IFERROR(VLOOKUP(D128,'Species List'!$D$51:$E$89,2,FALSE)*J128,\"\")","v":""},{"$f":"IFERROR(VLOOKUP(D128,'Species List'!$D$95:$E$102,2,FALSE)*J128,\"\")","v":""},{"$f":"IFERROR(VLOOKUP(D128,'Species List'!$I$10:$J$11,2,FALSE)*J128,\"\")","v":""},{"$f":"IFERROR(VLOOKUP(D128,'Species List'!$I$16:$J$61,2,FALSE)*J128,\"\")","v":""},{"$f":"IFERROR(VLOOKUP(D128,'Species List'!$I$66:$J$66,2,FALSE)*J128,\"\")","v":""},{"$f":"IFERROR(VLOOKUP(D128,'Species List'!$I$71:$J$82,2,FALSE)*J128,\"\")","v":""},0,null,null,null,null,null,null,{"$f":"IFERROR(INDEX('3 - Land Summary'!$B$21:$B$120,(MATCH(AD128,'3 - Land Summary'!$C$21:$C$120,0))),\"\")","v":""}]
[null,{"$f":"IFERROR(INDEX('3 - Land Summary'!$B$21:$B$120,(MATCH('4 - Species Breakdown'!$V129,'3 - Land Summary'!$C$21:$C$120,0))),\"\")","v":""},null,null,{"$f":"IF(OR(COUNTIF('Look Up Data'!$D$149:$D$203,D129),COUNTIF('Look Up Data'!$D$149:$D$203,AE129)),\"YES\",\"NO\")","v":"NO"},null,null,{"$f":"IFERROR(INDEX('3 - Land Summary'!$G$21:$G$120,(MATCH(C129,'3 - Land Summary'!$C$21:$C$120,0))),\"\")","v":""},{"$f":"IFERROR(INDEX('3 - Land Summary'!$I$21:$I$120,(MATCH(C129,'3 - Land Summary'!$C$21:$C$120,0))),\"\")","v":""},"","",null,null,null,{"$f":"IFERROR(VLOOKUP(D129,'Species List'!$D$10:$E$46,2,FALSE)*J129,\"\")","v":""},{"$f":"IFERROR(VLOOKUP(D129,'Species List'!$D$51:$E$89,2,FALSE)*J129,\"\")","v":""},{"$f":"IFERROR(VLOOKUP(D129,'Species List'!$D$95:$E$102,2,FALSE)*J129,\"\")","v":""},{"$f":"IFERROR(VLOOKUP(D129,'Species List'!$I$10:$J$11,2,FALSE)*J129,\"\")","v":""},{"$f":"IFERROR(VLOOKUP(D129,'Species List'!$I$16:$J$61,2,FALSE)*J129,\"\")","v":""},{"$f":"IFERROR(VLOOKUP(D129,'Species List'!$I$66:$J$66,2,FALSE)*J129,\"\")","v":""},{"$f":"IFERROR(VLOOKUP(D129,'Species List'!$I$71:$J$82,2,FALSE)*J129,\"\")","v":""},0,null,null,null,null,null,null,{"$f":"IFERROR(INDEX('3 - Land Summary'!$B$21:$B$120,(MATCH(AD129,'3 - Land Summary'!$C$21:$C$120,0))),\"\")","v":""}]
[null,{"$f":"IFERROR(INDEX('3 - Land Summary'!$B$21:$B$120,(MATCH('4 - Species Breakdown'!$V130,'3 - Land Summary'!$C$21:$C$120,0))),\"\")","v":""},null,null,{"$f":"IF(OR(COUNTIF('Look Up Data'!$D$149:$D$203,D130),COUNTIF('Look Up Data'!$D$149:$D$203,AE130)),\"YES\",\"NO\")","v":"NO"},null,null,{"$f":"IFERROR(INDEX('3 - Land Summary'!$G$21:$G$120,(MATCH(C130,'3 - Land Summary'!$C$21:$C$120,0))),\"\")","v":""},{"$f":"IFERROR(INDEX('3 - Land Summary'!$I$21:$I$120,(MATCH(C130,'3 - Land Summary'!$C$21:$C$120,0))),\"\")","v":""},"","",null,null,null,{"$f":"IFERROR(VLOOKUP(D130,'Species List'!$D$10:$E$46,2,FALSE)*J130,\"\")","v":""},{"$f":"IFERROR(VLOOKUP(D130,'Species List'!$D$51:$E$89,2,FALSE)*J130,\"\")","v":""},{"$f":"IFERROR(VLOOKUP(D130,'Species List'!$D$95:$E$102,2,FALSE)*J130,\"\")","v":""},{"$f":"IFERROR(VLOOKUP(D130,'Species List'!$I$10:$J$11,2,FALSE)*J130,\"\")","v":""},{"$f":"IFERROR(VLOOKUP(D130,'Species List'!$I$16:$J$61,2,FALSE)*J130,\"\")","v":""},{"$f":"IFERROR(VLOOKUP(D130,'Species List'!$I$66:$J$66,2,FALSE)*J130,\"\")","v":""},{"$f":"IFERROR(VLOOKUP(D130,'Species List'!$I$71:$J$82,2,FALSE)*J130,\"\")","v":""},0,null,null,null,null,null,null,{"$f":"IFERROR(INDEX('3 - Land Summary'!$B$21:$B$120,(MATCH(AD130,'3 - Land Summary'!$C$21:$C$120,0))),\"\")","v":""}]
[null,{"$f":"IFERROR(INDEX('3 - Land Summary'!$B$21:$B$120,(MATCH('4 - Species Breakdown'!$V131,'3 - Land Summary'!$C$21:$C$120,0))),\"\")","v":""},null,null,{"$f":"IF(OR(COUNTIF('Look Up Data'!$D$149:$D$203,D131),COUNTIF('Look Up Data'!$D$149:$D$203,AE131)),\"YES\",\"NO\")","v":"NO"},null,null,{"$f":"IFERROR(INDEX('3 - Land Summary'!$G$21:$G$120,(MATCH(C131,'3 - Land Summary'!$C$21:$C$120,0))),\"\")","v":""},{"$f":"IFERROR(INDEX('3 - Land Summary'!$I$21:$I$120,(MATCH(C131,'3 - Land Summary'!$C$21:$C$120,0))),\"\")","v":""},"","",null,null,null,{"$f":"IFERROR(VLOOKUP(D131,'Species List'!$D$10:$E$46,2,FALSE)*J131,\"\")","v":""},{"$f":"IFERROR(VLOOKUP(D131,'Species List'!$D$51:$E$89,2,FALSE)*J131,\"\")","v":""},{"$f":"IFERROR(VLOOKUP(D131,'Species List'!$D$95:$E$102,2,FALSE)*J131,\"\")","v":""},{"$f":"IFERROR(VLOOKUP(D131,'Species List'!$I$10:$J$11,2,FALSE)*J131,\"\")","v":""},{"$f":"IFERROR(VLOOKUP(D131,'Species List'!$I$16:$J$61,2,FALSE)*J131,\"\")","v":""},{"$f":"IFERROR(VLOOKUP(D131,'Species List'!$I$66:$J$66,2,FALSE)*J131,\"\")","v":""},{"$f":"IFERROR(VLOOKUP(D131,'Species List'!$I$71:$J$82,2,FALSE)*J131,\"\")","v":""},0,null,null,null,null,null,null,{"$f":"IFERROR(INDEX('3 - Land Summary'!$B$21:$B$120,(MATCH(AD131,'3 - Land Summary'!$C$21:$C$120,0))),\"\")","v":""}]
[null,{"$f":"IFERROR(INDEX('3 - Land Summary'!$B$21:$B$120,(MATCH('4 - Species Breakdown'!$V132,'3 - Land Summary'!$C$21:$C$120,0))),\"\")","v":""},null,null,{"$f":"IF(OR(COUNTIF('Look Up Data'!$D$149:$D$203,D132),COUNTIF('Look Up Data'!$D$149:$D$203,AE132)),\"YES\",\"NO\")","v":"NO"},null,null,{"$f":"IFERROR(INDEX('3 - Land Summary'!$G$21:$G$120,(MATCH(C132,'3 - Land Summary'!$C$21:$C$120,0))),\"\")","v":""},{"$f":"IFERROR(INDEX('3 - Land Summary'!$I$21:$I$120,(MATCH(C132,'3 - Land Summary'!$C$21:$C$120,0))),\"\")","v":""},"","",null,null,null,{"$f":"IFERROR(VLOOKUP(D132,'Species List'!$D$10:$E$46,2,FALSE)*J132,\"\")","v":""},{"$f":"IFERROR(VLOOKUP(D132,'Species List'!$D$51:$E$89,2,FALSE)*J132,\"\")","v":""},{"$f":"IFERROR(VLOOKUP(D132,'Species List'!$D$95:$E$102,2,FALSE)*J132,\"\")","v":""},{"$f":"IFERROR(VLOOKUP(D132,'Species List'!$I$10:$J$11,2,FALSE)*J132,\"\")","v":""},{"$f":"IFERROR(VLOOKUP(D132,'Species List'!$I$16:$J$61,2,FALSE)*J132,\"\")","v":""},{"$f":"IFERROR(VLOOKUP(D132,'Species List'!$I$66:$J$66,2,FALSE)*J132,\"\")","v":""},{"$f":"IFERROR(VLOOKUP(D132,'Species List'!$I$71:$J$82,2,FALSE)*J132,\"\")","v":""},0,null,null,null,null,null,null,{"$f":"IFERROR(INDEX('3 - Land Summary'!$B$21:$B$120,(MATCH(AD132,'3 - Land Summary'!$C$21:$C$120,0))),\"\")","v":""}]
[null,{"$f":"IFERROR(INDEX('3 - Land Summary'!$B$21:$B$120,(MATCH('4 - Species Breakdown'!$V133,'3 - Land Summary'!$C$21:$C$120,0))),\"\")","v":""},null,null,{"$f":"IF(OR(COUNTIF('Look Up Data'!$D$149:$D$203,D133),COUNTIF('Look Up Data'!$D$149:$D$203,AE133)),\"YES\",\"NO\")","v":"NO"},null,null,{"$f":"IFERROR(INDEX('3 - Land Summary'!$G$21:$G$120,(MATCH(C133,'3 - Land Summary'!$C$21:$C$120,0))),\"\")","v":""},{"$f":"IFERROR(INDEX('3 - Land Summary'!$I$21:$I$120,(MATCH(C133,'3 - Land Summary'!$C$21:$C$120,0))),\"\")","v":""},"","",null,null,null,{"$f":"IFERROR(VLOOKUP(D133,'Species List'!$D$10:$E$46,2,FALSE)*J133,\"\")","v":""},{"$f":"IFERROR(VLOOKUP(D133,'Species List'!$D$51:$E$89,2,FALSE)*J133,\"\")","v":""},{"$f":"IFERROR(VLOOKUP(D133,'Species List'!$D$95:$E$102,2,FALSE)*J133,\"\")","v":""},{"$f":"IFERROR(VLOOKUP(D133,'Species List'!$I$10:$J$11,2,FALSE)*J133,\"\")","v":""},{"$f":"IFERROR(VLOOKUP(D133,'Species List'!$I$16:$J$61,2,FALSE)*J133,\"\")","v":""},{"$f":"IFERROR(VLOOKUP(D133,'Species List'!$I$66:$J$66,2,FALSE)*J133,\"\")","v":""},{"$f":"IFERROR(VLOOKUP(D133,'Species List'!$I$71:$J$82,2,FALSE)*J133,\"\")","v":""},0,null,null,null,null,null,null,{"$f":"IFERROR(INDEX('3 - Land Summary'!$B$21:$B$120,(MATCH(AD133,'3 - Land Summary'!$C$21:$C$120,0))),\"\")","v":""}]
[null,{"$f":"IFERROR(INDEX('3 - Land Summary'!$B$21:$B$120,(MATCH('4 - Species Breakdown'!$V134,'3 - Land Summary'!$C$21:$C$120,0))),\"\")","v":""},null,null,{"$f":"IF(OR(COUNTIF('Look Up Data'!$D$149:$D$203,D134),COUNTIF('Look Up Data'!$D$149:$D$203,AE134)),\"YES\",\"NO\")","v":"NO"},null,null,{"$f":"IFERROR(INDEX('3 - Land Summary'!$G$21:$G$120,(MATCH(C134,'3 - Land Summary'!$C$21:$C$120,0))),\"\")","v":""},{"$f":"IFERROR(INDEX('3 - Land Summary'!$I$21:$I$120,(MATCH(C134,'3 - Land Summary'!$C$21:$C$120,0))),\"\")","v":""},"","",null,null,null,{"$f":"IFERROR(VLOOKUP(D134,'Species List'!$D$10:$E$46,2,FALSE)*J134,\"\")","v":""},{"$f":"IFERROR(VLOOKUP(D134,'Species List'!$D$51:$E$89,2,FALSE)*J134,\"\")","v":""},{"$f":"IFERROR(VLOOKUP(D134,'Species List'!$D$95:$E$102,2,FALSE)*J134,\"\")","v":""},{"$f":"IFERROR(VLOOKUP(D134,'Species List'!$I$10:$J$11,2,FALSE)*J134,\"\")","v":""},{"$f":"IFERROR(VLOOKUP(D134,'Species List'!$I$16:$J$61,2,FALSE)*J134,\"\")","v":""},{"$f":"IFERROR(VLOOKUP(D134,'Species List'!$I$66:$J$66,2,FALSE)*J134,\"\")","v":""},{"$f":"IFERROR(VLOOKUP(D134,'Species List'!$I$71:$J$82,2,FALSE)*J134,\"\")","v":""},0,null,null,null,null,null,null,{"$f":"IFERROR(INDEX('3 - Land Summary'!$B$21:$B$120,(MATCH(AD134,'3 - Land Summary'!$C$21:$C$120,0))),\"\")","v":""}]
[null,{"$f":"IFERROR(INDEX('3 - Land Summary'!$B$21:$B$120,(MATCH('4 - Species Breakdown'!$V135,'3 - Land Summary'!$C$21:$C$120,0))),\"\")","v":""},null,null,{"$f":"IF(OR(COUNTIF('Look Up Data'!$D$149:$D$203,D135),COUNTIF('Look Up Data'!$D$149:$D$203,AE135)),\"YES\",\"NO\")","v":"NO"},null,null,{"$f":"IFERROR(INDEX('3 - Land Summary'!$G$21:$G$120,(MATCH(C135,'3 - Land Summary'!$C$21:$C$120,0))),\"\")","v":""},{"$f":"IFERROR(INDEX('3 - Land Summary'!$I$21:$I$120,(MATCH(C135,'3 - Land Summary'!$C$21:$C$120,0))),\"\")","v":""},"","",null,null,null,{"$f":"IFERROR(VLOOKUP(D135,'Species List'!$D$10:$E$46,2,FALSE)*J135,\"\")","v":""},{"$f":"IFERROR(VLOOKUP(D135,'Species List'!$D$51:$E$89,2,FALSE)*J135,\"\")","v":""},{"$f":"IFERROR(VLOOKUP(D135,'Species List'!$D$95:$E$102,2,FALSE)*J135,\"\")","v":""},{"$f":"IFERROR(VLOOKUP(D135,'Species List'!$I$10:$J$11,2,FALSE)*J135,\"\")","v":""},{"$f":"IFERROR(VLOOKUP(D135,'Species List'!$I$16:$J$61,2,FALSE)*J135,\"\")","v":""},{"$f":"IFERROR(VLOOKUP(D135,'Species List'!$I$66:$J$66,2,FALSE)*J135,\"\")","v":""},{"$f":"IFERROR(VLOOKUP(D135,'Species List'!$I$71:$J$82,2,FALSE)*J135,\"\")","v":""},0,null,null,null,null,null,null,{"$f":"IFERROR(INDEX('3 - Land Summary'!$B$21:$B$120,(MATCH(AD135,'3 - Land Summary'!$C$21:$C$120,0))),\"\")","v":""}]
[null,{"$f":"IFERROR(INDEX('3 - Land Summary'!$B$21:$B$120,(MATCH('4 - Species Breakdown'!$V136,'3 - Land Summary'!$C$21:$C$120,0))),\"\")","v":""},null,null,{"$f":"IF(OR(COUNTIF('Look Up Data'!$D$149:$D$203,D136),COUNTIF('Look Up Data'!$D$149:$D$203,AE136)),\"YES\",\"NO\")","v":"NO"},null,null,{"$f":"IFERROR(INDEX('3 - Land Summary'!$G$21:$G$120,(MATCH(C136,'3 - Land Summary'!$C$21:$C$120,0))),\"\")","v":""},{"$f":"IFERROR(INDEX('3 - Land Summary'!$I$21:$I$120,(MATCH(C136,'3 - Land Summary'!$C$21:$C$120,0))),\"\")","v":""},"","",null,null,null,{"$f":"IFERROR(VLOOKUP(D136,'Species List'!$D$10:$E$46,2,FALSE)*J136,\"\")","v":""},{"$f":"IFERROR(VLOOKUP(D136,'Species List'!$D$51:$E$89,2,FALSE)*J136,\"\")","v":""},{"$f":"IFERROR(VLOOKUP(D136,'Species List'!$D$95:$E$102,2,FALSE)*J136,\"\")","v":""},{"$f":"IFERROR(VLOOKUP(D136,'Species List'!$I$10:$J$11,2,FALSE)*J136,\"\")","v":""},{"$f":"IFERROR(VLOOKUP(D136,'Species List'!$I$16:$J$61,2,FALSE)*J136,\"\")","v":""},{"$f":"IFERROR(VLOOKUP(D136,'Species List'!$I$66:$J$66,2,FALSE)*J136,\"\")","v":""},{"$f":"IFERROR(VLOOKUP(D136,'Species List'!$I$71:$J$82,2,FALSE)*J136,\"\")","v":""},0,null,null,null,null,null,null,{"$f":"IFERROR(INDEX('3 - Land Summary'!$B$21:$B$120,(MATCH(AD136,'3 - Land Summary'!$C$21:$C$120,0))),\"\")","v":""}]
[null,{"$f":"IFERROR(INDEX('3 - Land Summary'!$B$21:$B$120,(MATCH('4 - Species Breakdown'!$V137,'3 - Land Summary'!$C$21:$C$120,0))),\"\")","v":""},null,null,{"$f":"IF(OR(COUNTIF('Look Up Data'!$D$149:$D$203,D137),COUNTIF('Look Up Data'!$D$149:$D$203,AE137)),\"YES\",\"NO\")","v":"NO"},null,null,{"$f":"IFERROR(INDEX('3 - Land Summary'!$G$21:$G$120,(MATCH(C137,'3 - Land Summary'!$C$21:$C$120,0))),\"\")","v":""},{"$f":"IFERROR(INDEX('3 - Land Summary'!$I$21:$I$120,(MATCH(C137,'3 - Land Summary'!$C$21:$C$120,0))),\"\")","v":""},"","",null,null,null,{"$f":"IFERROR(VLOOKUP(D137,'Species List'!$D$10:$E$46,2,FALSE)*J137,\"\")","v":""},{"$f":"IFERROR(VLOOKUP(D137,'Species List'!$D$51:$E$89,2,FALSE)*J137,\"\")","v":""},{"$f":"IFERROR(VLOOKUP(D137,'Species List'!$D$95:$E$102,2,FALSE)*J137,\"\")","v":""},{"$f":"IFERROR(VLOOKUP(D137,'Species List'!$I$10:$J$11,2,FALSE)*J137,\"\")","v":""},{"$f":"IFERROR(VLOOKUP(D137,'Species List'!$I$16:$J$61,2,FALSE)*J137,\"\")","v":""},{"$f":"IFERROR(VLOOKUP(D137,'Species List'!$I$66:$J$66,2,FALSE)*J137,\"\")","v":""},{"$f":"IFERROR(VLOOKUP(D137,'Species List'!$I$71:$J$82,2,FALSE)*J137,\"\")","v":""},0,null,null,null,null,null,null,{"$f":"IFERROR(INDEX('3 - Land Summary'!$B$21:$B$120,(MATCH(AD137,'3 - Land Summary'!$C$21:$C$120,0))),\"\")","v":""}]
[null,{"$f":"IFERROR(INDEX('3 - Land Summary'!$B$21:$B$120,(MATCH('4 - Species Breakdown'!$V138,'3 - Land Summary'!$C$21:$C$120,0))),\"\")","v":""},null,null,{"$f":"IF(OR(COUNTIF('Look Up Data'!$D$149:$D$203,D138),COUNTIF('Look Up Data'!$D$149:$D$203,AE138)),\"YES\",\"NO\")","v":"NO"},null,null,{"$f":"IFERROR(INDEX('3 - Land Summary'!$G$21:$G$120,(MATCH(C138,'3 - Land Summary'!$C$21:$C$120,0))),\"\")","v":""},{"$f":"IFERROR(INDEX('3 - Land Summary'!$I$21:$I$120,(MATCH(C138,'3 - Land Summary'!$C$21:$C$120,0))),\"\")","v":""},"","",null,null,null,{"$f":"IFERROR(VLOOKUP(D138,'Species List'!$D$10:$E$46,2,FALSE)*J138,\"\")","v":""},{"$f":"IFERROR(VLOOKUP(D138,'Species List'!$D$51:$E$89,2,FALSE)*J138,\"\")","v":""},{"$f":"IFERROR(VLOOKUP(D138,'Species List'!$D$95:$E$102,2,FALSE)*J138,\"\")","v":""},{"$f":"IFERROR(VLOOKUP(D138,'Species List'!$I$10:$J$11,2,FALSE)*J138,\"\")","v":""},{"$f":"IFERROR(VLOOKUP(D138,'Species List'!$I$16:$J$61,2,FALSE)*J138,\"\")","v":""},{"$f":"IFERROR(VLOOKUP(D138,'Species List'!$I$66:$J$66,2,FALSE)*J138,\"\")","v":""},{"$f":"IFERROR(VLOOKUP(D138,'Species List'!$I$71:$J$82,2,FALSE)*J138,\"\")","v":""},0,null,null,null,null,null,null,{"$f":"IFERROR(INDEX('3 - Land Summary'!$B$21:$B$120,(MATCH(AD138,'3 - Land Summary'!$C$21:$C$120,0))),\"\")","v":""}]
[null,{"$f":"IFERROR(INDEX('3 - Land Summary'!$B$21:$B$120,(MATCH('4 - Species Breakdown'!$V139,'3 - Land Summary'!$C$21:$C$120,0))),\"\")","v":""},null,null,{"$f":"IF(OR(COUNTIF('Look Up Data'!$D$149:$D$203,D139),COUNTIF('Look Up Data'!$D$149:$D$203,AE139)),\"YES\",\"NO\")","v":"NO"},null,null,{"$f":"IFERROR(INDEX('3 - Land Summary'!$G$21:$G$120,(MATCH(C139,'3 - Land Summary'!$C$21:$C$120,0))),\"\")","v":""},{"$f":"IFERROR(INDEX('3 - Land Summary'!$I$21:$I$120,(MATCH(C139,'3 - Land Summary'!$C$21:$C$120,0))),\"\")","v":""},"","",null,null,null,{"$f":"IFERROR(VLOOKUP(D139,'Species List'!$D$10:$E$46,2,FALSE)*J139,\"\")","v":""},{"$f":"IFERROR(VLOOKUP(D139,'Species List'!$D$51:$E$89,2,FALSE)*J139,\"\")","v":""},{"$f":"IFERROR(VLOOKUP(D139,'Species List'!$D$95:$E$102,2,FALSE)*J139,\"\")","v":""},{"$f":"IFERROR(VLOOKUP(D139,'Species List'!$I$10:$J$11,2,FALSE)*J139,\"\")","v":""},{"$f":"IFERROR(VLOOKUP(D139,'Species List'!$I$16:$J$61,2,FALSE)*J139,\"\")","v":""},{"$f":"IFERROR(VLOOKUP(D139,'Species List'!$I$66:$J$66,2,FALSE)*J139,\"\")","v":""},{"$f":"IFERROR(VLOOKUP(D139,'Species List'!$I$71:$J$82,2,FALSE)*J139,\"\")","v":""},0,null,null,null,null,null,null,{"$f":"IFERROR(INDEX('3 - Land Summary'!$B$21:$B$120,(MATCH(AD139,'3 - Land Summary'!$C$21:$C$120,0))),\"\")","v":""}]
[null,{"$f":"IFERROR(INDEX('3 - Land Summary'!$B$21:$B$120,(MATCH('4 - Species Breakdown'!$V140,'3 - Land Summary'!$C$21:$C$120,0))),\"\")","v":""},null,null,{"$f":"IF(OR(COUNTIF('Look Up Data'!$D$149:$D$203,D140),COUNTIF('Look Up Data'!$D$149:$D$203,AE140)),\"YES\",\"NO\")","v":"NO"},null,null,{"$f":"IFERROR(INDEX('3 - Land Summary'!$G$21:$G$120,(MATCH(C140,'3 - Land Summary'!$C$21:$C$120,0))),\"\")","v":""},{"$f":"IFERROR(INDEX('3 - Land Summary'!$I$21:$I$120,(MATCH(C140,'3 - Land Summary'!$C$21:$C$120,0))),\"\")","v":""},"","",null,null,null,{"$f":"IFERROR(VLOOKUP(D140,'Species List'!$D$10:$E$46,2,FALSE)*J140,\"\")","v":""},{"$f":"IFERROR(VLOOKUP(D140,'Species List'!$D$51:$E$89,2,FALSE)*J140,\"\")","v":""},{"$f":"IFERROR(VLOOKUP(D140,'Species List'!$D$95:$E$102,2,FALSE)*J140,\"\")","v":""},{"$f":"IFERROR(VLOOKUP(D140,'Species List'!$I$10:$J$11,2,FALSE)*J140,\"\")","v":""},{"$f":"IFERROR(VLOOKUP(D140,'Species List'!$I$16:$J$61,2,FALSE)*J140,\"\")","v":""},{"$f":"IFERROR(VLOOKUP(D140,'Species List'!$I$66:$J$66,2,FALSE)*J140,\"\")","v":""},{"$f":"IFERROR(VLOOKUP(D140,'Species List'!$I$71:$J$82,2,FALSE)*J140,\"\")","v":""},0,null,null,null,null,null,null,{"$f":"IFERROR(INDEX('3 - Land Summary'!$B$21:$B$120,(MATCH(AD140,'3 - Land Summary'!$C$21:$C$120,0))),\"\")","v":""}]
[null,{"$f":"IFERROR(INDEX('3 - Land Summary'!$B$21:$B$120,(MATCH('4 - Species Breakdown'!$V141,'3 - Land Summary'!$C$21:$C$120,0))),\"\")","v":""},null,null,{"$f":"IF(OR(COUNTIF('Look Up Data'!$D$149:$D$203,D141),COUNTIF('Look Up Data'!$D$149:$D$203,AE141)),\"YES\",\"NO\")","v":"NO"},null,null,{"$f":"IFERROR(INDEX('3 - Land Summary'!$G$21:$G$120,(MATCH(C141,'3 - Land Summary'!$C$21:$C$120,0))),\"\")","v":""},{"$f":"IFERROR(INDEX('3 - Land Summary'!$I$21:$I$120,(MATCH(C141,'3 - Land Summary'!$C$21:$C$120,0))),\"\")","v":""},"","",null,null,null,{"$f":"IFERROR(VLOOKUP(D141,'Species List'!$D$10:$E$46,2,FALSE)*J141,\"\")","v":""},{"$f":"IFERROR(VLOOKUP(D141,'Species List'!$D$51:$E$89,2,FALSE)*J141,\"\")","v":""},{"$f":"IFERROR(VLOOKUP(D141,'Species List'!$D$95:$E$102,2,FALSE)*J141,\"\")","v":""},{"$f":"IFERROR(VLOOKUP(D141,'Species List'!$I$10:$J$11,2,FALSE)*J141,\"\")","v":""},{"$f":"IFERROR(VLOOKUP(D141,'Species List'!$I$16:$J$61,2,FALSE)*J141,\"\")","v":""},{"$f":"IFERROR(VLOOKUP(D141,'Species List'!$I$66:$J$66,2,FALSE)*J141,\"\")","v":""},{"$f":"IFERROR(VLOOKUP(D141,'Species List'!$I$71:$J$82,2,FALSE)*J141,\"\")","v":""},0,null,null,null,null,null,null,{"$f":"IFERROR(INDEX('3 - Land Summary'!$B$21:$B$120,(MATCH(AD141,'3 - Land Summary'!$C$21:$C$120,0))),\"\")","v":""}]
[null,{"$f":"IFERROR(INDEX('3 - Land Summary'!$B$21:$B$120,(MATCH('4 - Species Breakdown'!$V142,'3 - Land Summary'!$C$21:$C$120,0))),\"\")","v":""},null,null,{"$f":"IF(OR(COUNTIF('Look Up Data'!$D$149:$D$203,D142),COUNTIF('Look Up Data'!$D$149:$D$203,AE142)),\"YES\",\"NO\")","v":"NO"},null,null,{"$f":"IFERROR(INDEX('3 - Land Summary'!$G$21:$G$120,(MATCH(C142,'3 - Land Summary'!$C$21:$C$120,0))),\"\")","v":""},{"$f":"IFERROR(INDEX('3 - Land Summary'!$I$21:$I$120,(MATCH(C142,'3 - Land Summary'!$C$21:$C$120,0))),\"\")","v":""},"","",null,null,null,{"$f":"IFERROR(VLOOKUP(D142,'Species List'!$D$10:$E$46,2,FALSE)*J142,\"\")","v":""},{"$f":"IFERROR(VLOOKUP(D142,'Species List'!$D$51:$E$89,2,FALSE)*J142,\"\")","v":""},{"$f":"IFERROR(VLOOKUP(D142,'Species List'!$D$95:$E$102,2,FALSE)*J142,\"\")","v":""},{"$f":"IFERROR(VLOOKUP(D142,'Species List'!$I$10:$J$11,2,FALSE)*J142,\"\")","v":""},{"$f":"IFERROR(VLOOKUP(D142,'Species List'!$I$16:$J$61,2,FALSE)*J142,\"\")","v":""},{"$f":"IFERROR(VLOOKUP(D142,'Species List'!$I$66:$J$66,2,FALSE)*J142,\"\")","v":""},{"$f":"IFERROR(VLOOKUP(D142,'Species List'!$I$71:$J$82,2,FALSE)*J142,\"\")","v":""},0,null,null,null,null,null,null,{"$f":"IFERROR(INDEX('3 - Land Summary'!$B$21:$B$120,(MATCH(AD142,'3 - Land Summary'!$C$21:$C$120,0))),\"\")","v":""}]
[null,{"$f":"IFERROR(INDEX('3 - Land Summary'!$B$21:$B$120,(MATCH('4 - Species Breakdown'!$V143,'3 - Land Summary'!$C$21:$C$120,0))),\"\")","v":""},null,null,{"$f":"IF(OR(COUNTIF('Look Up Data'!$D$149:$D$203,D143),COUNTIF('Look Up Data'!$D$149:$D$203,AE143)),\"YES\",\"NO\")","v":"NO"},null,null,{"$f":"IFERROR(INDEX('3 - Land Summary'!$G$21:$G$120,(MATCH(C143,'3 - Land Summary'!$C$21:$C$120,0))),\"\")","v":""},{"$f":"IFERROR(INDEX('3 - Land Summary'!$I$21:$I$120,(MATCH(C143,'3 - Land Summary'!$C$21:$C$120,0))),\"\")","v":""},"","",null,null,null,{"$f":"IFERROR(VLOOKUP(D143,'Species List'!$D$10:$E$46,2,FALSE)*J143,\"\")","v":""},{"$f":"IFERROR(VLOOKUP(D143,'Species List'!$D$51:$E$89,2,FALSE)*J143,\"\")","v":""},{"$f":"IFERROR(VLOOKUP(D143,'Species List'!$D$95:$E$102,2,FALSE)*J143,\"\")","v":""},{"$f":"IFERROR(VLOOKUP(D143,'Species List'!$I$10:$J$11,2,FALSE)*J143,\"\")","v":""},{"$f":"IFERROR(VLOOKUP(D143,'Species List'!$I$16:$J$61,2,FALSE)*J143,\"\")","v":""},{"$f":"IFERROR(VLOOKUP(D143,'Species List'!$I$66:$J$66,2,FALSE)*J143,\"\")","v":""},{"$f":"IFERROR(VLOOKUP(D143,'Species List'!$I$71:$J$82,2,FALSE)*J143,\"\")","v":""},0,null,null,null,null,null,null,{"$f":"IFERROR(INDEX('3 - Land Summary'!$B$21:$B$120,(MATCH(AD143,'3 - Land Summary'!$C$21:$C$120,0))),\"\")","v":""}]
[null,{"$f":"IFERROR(INDEX('3 - Land Summary'!$B$21:$B$120,(MATCH('4 - Species Breakdown'!$V144,'3 - Land Summary'!$C$21:$C$120,0))),\"\")","v":""},null,null,{"$f":"IF(OR(COUNTIF('Look Up Data'!$D$149:$D$203,D144),COUNTIF('Look Up Data'!$D$149:$D$203,AE144)),\"YES\",\"NO\")","v":"NO"},null,null,{"$f":"IFERROR(INDEX('3 - Land Summary'!$G$21:$G$120,(MATCH(C144,'3 - Land Summary'!$C$21:$C$120,0))),\"\")","v":""},{"$f":"IFERROR(INDEX('3 - Land Summary'!$I$21:$I$120,(MATCH(C144,'3 - Land Summary'!$C$21:$C$120,0))),\"\")","v":""},"","",null,null,null,{"$f":"IFERROR(VLOOKUP(D144,'Species List'!$D$10:$E$46,2,FALSE)*J144,\"\")","v":""},{"$f":"IFERROR(VLOOKUP(D144,'Species List'!$D$51:$E$89,2,FALSE)*J144,\"\")","v":""},{"$f":"IFERROR(VLOOKUP(D144,'Species List'!$D$95:$E$102,2,FALSE)*J144,\"\")","v":""},{"$f":"IFERROR(VLOOKUP(D144,'Species List'!$I$10:$J$11,2,FALSE)*J144,\"\")","v":""},{"$f":"IFERROR(VLOOKUP(D144,'Species List'!$I$16:$J$61,2,FALSE)*J144,\"\")","v":""},{"$f":"IFERROR(VLOOKUP(D144,'Species List'!$I$66:$J$66,2,FALSE)*J144,\"\")","v":""},{"$f":"IFERROR(VLOOKUP(D144,'Species List'!$I$71:$J$82,2,FALSE)*J144,\"\")","v":""},0,null,null,null,null,null,null,{"$f":"IFERROR(INDEX('3 - Land Summary'!$B$21:$B$120,(MATCH(AD144,'3 - Land Summary'!$C$21:$C$120,0))),\"\")","v":""}]
[null,{"$f":"IFERROR(INDEX('3 - Land Summary'!$B$21:$B$120,(MATCH('4 - Species Breakdown'!$V145,'3 - Land Summary'!$C$21:$C$120,0))),\"\")","v":""},null,null,{"$f":"IF(OR(COUNTIF('Look Up Data'!$D$149:$D$203,D145),COUNTIF('Look Up Data'!$D$149:$D$203,AE145)),\"YES\",\"NO\")","v":"NO"},null,null,{"$f":"IFERROR(INDEX('3 - Land Summary'!$G$21:$G$120,(MATCH(C145,'3 - Land Summary'!$C$21:$C$120,0))),\"\")","v":""},{"$f":"IFERROR(INDEX('3 - Land Summary'!$I$21:$I$120,(MATCH(C145,'3 - Land Summary'!$C$21:$C$120,0))),\"\")","v":""},"","",null,null,null,{"$f":"IFERROR(VLOOKUP(D145,'Species List'!$D$10:$E$46,2,FALSE)*J145,\"\")","v":""},{"$f":"IFERROR(VLOOKUP(D145,'Species List'!$D$51:$E$89,2,FALSE)*J145,\"\")","v":""},{"$f":"IFERROR(VLOOKUP(D145,'Species List'!$D$95:$E$102,2,FALSE)*J145,\"\")","v":""},{"$f":"IFERROR(VLOOKUP(D145,'Species List'!$I$10:$J$11,2,FALSE)*J145,\"\")","v":""},{"$f":"IFERROR(VLOOKUP(D145,'Species List'!$I$16:$J$61,2,FALSE)*J145,\"\")","v":""},{"$f":"IFERROR(VLOOKUP(D145,'Species List'!$I$66:$J$66,2,FALSE)*J145,\"\")","v":""},{"$f":"IFERROR(VLOOKUP(D145,'Species List'!$I$71:$J$82,2,FALSE)*J145,\"\")","v":""},0,null,null,null,null,null,null,{"$f":"IFERROR(INDEX('3 - Land Summary'!$B$21:$B$120,(MATCH(AD145,'3 - Land Summary'!$C$21:$C$120,0))),\"\")","v":""}]
[null,{"$f":"IFERROR(INDEX('3 - Land Summary'!$B$21:$B$120,(MATCH('4 - Species Breakdown'!$V146,'3 - Land Summary'!$C$21:$C$120,0))),\"\")","v":""},null,null,{"$f":"IF(OR(COUNTIF('Look Up Data'!$D$149:$D$203,D146),COUNTIF('Look Up Data'!$D$149:$D$203,AE146)),\"YES\",\"NO\")","v":"NO"},null,null,{"$f":"IFERROR(INDEX('3 - Land Summary'!$G$21:$G$120,(MATCH(C146,'3 - Land Summary'!$C$21:$C$120,0))),\"\")","v":""},{"$f":"IFERROR(INDEX('3 - Land Summary'!$I$21:$I$120,(MATCH(C146,'3 - Land Summary'!$C$21:$C$120,0))),\"\")","v":""},"","",null,null,null,{"$f":"IFERROR(VLOOKUP(D146,'Species List'!$D$10:$E$46,2,FALSE)*J146,\"\")","v":""},{"$f":"IFERROR(VLOOKUP(D146,'Species List'!$D$51:$E$89,2,FALSE)*J146,\"\")","v":""},{"$f":"IFERROR(VLOOKUP(D146,'Species List'!$D$95:$E$102,2,FALSE)*J146,\"\")","v":""},{"$f":"IFERROR(VLOOKUP(D146,'Species List'!$I$10:$J$11,2,FALSE)*J146,\"\")","v":""},{"$f":"IFERROR(VLOOKUP(D146,'Species List'!$I$16:$J$61,2,FALSE)*J146,\"\")","v":""},{"$f":"IFERROR(VLOOKUP(D146,'Species List'!$I$66:$J$66,2,FALSE)*J146,\"\")","v":""},{"$f":"IFERROR(VLOOKUP(D146,'Species List'!$I$71:$J$82,2,FALSE)*J146,\"\")","v":""},0,null,null,null,null,null,null,{"$f":"IFERROR(INDEX('3 - Land Summary'!$B$21:$B$120,(MATCH(AD146,'3 - Land Summary'!$C$21:$C$120,0))),\"\")","v":""}]
[null,{"$f":"IFERROR(INDEX('3 - Land Summary'!$B$21:$B$120,(MATCH('4 - Species Breakdown'!$V147,'3 - Land Summary'!$C$21:$C$120,0))),\"\")","v":""},null,null,{"$f":"IF(OR(COUNTIF('Look Up Data'!$D$149:$D$203,D147),COUNTIF('Look Up Data'!$D$149:$D$203,AE147)),\"YES\",\"NO\")","v":"NO"},null,null,{"$f":"IFERROR(INDEX('3 - Land Summary'!$G$21:$G$120,(MATCH(C147,'3 - Land Summary'!$C$21:$C$120,0))),\"\")","v":""},{"$f":"IFERROR(INDEX('3 - Land Summary'!$I$21:$I$120,(MATCH(C147,'3 - Land Summary'!$C$21:$C$120,0))),\"\")","v":""},"","",null,null,null,{"$f":"IFERROR(VLOOKUP(D147,'Species List'!$D$10:$E$46,2,FALSE)*J147,\"\")","v":""},{"$f":"IFERROR(VLOOKUP(D147,'Species List'!$D$51:$E$89,2,FALSE)*J147,\"\")","v":""},{"$f":"IFERROR(VLOOKUP(D147,'Species List'!$D$95:$E$102,2,FALSE)*J147,\"\")","v":""},{"$f":"IFERROR(VLOOKUP(D147,'Species List'!$I$10:$J$11,2,FALSE)*J147,\"\")","v":""},{"$f":"IFERROR(VLOOKUP(D147,'Species List'!$I$16:$J$61,2,FALSE)*J147,\"\")","v":""},{"$f":"IFERROR(VLOOKUP(D147,'Species List'!$I$66:$J$66,2,FALSE)*J147,\"\")","v":""},{"$f":"IFERROR(VLOOKUP(D147,'Species List'!$I$71:$J$82,2,FALSE)*J147,\"\")","v":""},0,null,null,null,null,null,null,{"$f":"IFERROR(INDEX('3 - Land Summary'!$B$21:$B$120,(MATCH(AD147,'3 - Land Summary'!$C$21:$C$120,0))),\"\")","v":""}]
[null,{"$f":"IFERROR(INDEX('3 - Land Summary'!$B$21:$B$120,(MATCH('4 - Species Breakdown'!$V148,'3 - Land Summary'!$C$21:$C$120,0))),\"\")","v":""},null,null,{"$f":"IF(OR(COUNTIF('Look Up Data'!$D$149:$D$203,D148),COUNTIF('Look Up Data'!$D$149:$D$203,AE148)),\"YES\",\"NO\")","v":"NO"},null,null,{"$f":"IFERROR(INDEX('3 - Land Summary'!$G$21:$G$120,(MATCH(C148,'3 - Land Summary'!$C$21:$C$120,0))),\"\")","v":""},{"$f":"IFERROR(INDEX('3 - Land Summary'!$I$21:$I$120,(MATCH(C148,'3 - Land Summary'!$C$21:$C$120,0))),\"\")","v":""},"","",null,null,null,{"$f":"IFERROR(VLOOKUP(D148,'Species List'!$D$10:$E$46,2,FALSE)*J148,\"\")","v":""},{"$f":"IFERROR(VLOOKUP(D148,'Species List'!$D$51:$E$89,2,FALSE)*J148,\"\")","v":""},{"$f":"IFERROR(VLOOKUP(D148,'Species List'!$D$95:$E$102,2,FALSE)*J148,\"\")","v":""},{"$f":"IFERROR(VLOOKUP(D148,'Species List'!$I$10:$J$11,2,FALSE)*J148,\"\")","v":""},{"$f":"IFERROR(VLOOKUP(D148,'Species List'!$I$16:$J$61,2,FALSE)*J148,\"\")","v":""},{"$f":"IFERROR(VLOOKUP(D148,'Species List'!$I$66:$J$66,2,FALSE)*J148,\"\")","v":""},{"$f":"IFERROR(VLOOKUP(D148,'Species List'!$I$71:$J$82,2,FALSE)*J148,\"\")","v":""},0,null,null,null,null,null,null,{"$f":"IFERROR(INDEX('3 - Land Summary'!$B$21:$B$120,(MATCH(AD148,'3 - Land Summary'!$C$21:$C$120,0))),\"\")","v":""}]
[null,{"$f":"IFERROR(INDEX('3 - Land Summary'!$B$21:$B$120,(MATCH('4 - Species Breakdown'!$V149,'3 - Land Summary'!$C$21:$C$120,0))),\"\")","v":""},null,null,{"$f":"IF(OR(COUNTIF('Look Up Data'!$D$149:$D$203,D149),COUNTIF('Look Up Data'!$D$149:$D$203,AE149)),\"YES\",\"NO\")","v":"NO"},null,null,{"$f":"IFERROR(INDEX('3 - Land Summary'!$G$21:$G$120,(MATCH(C149,'3 - Land Summary'!$C$21:$C$120,0))),\"\")","v":""},{"$f":"IFERROR(INDEX('3 - Land Summary'!$I$21:$I$120,(MATCH(C149,'3 - Land Summary'!$C$21:$C$120,0))),\"\")","v":""},"","",null,null,null,{"$f":"IFERROR(VLOOKUP(D149,'Species List'!$D$10:$E$46,2,FALSE)*J149,\"\")","v":""},{"$f":"IFERROR(VLOOKUP(D149,'Species List'!$D$51:$E$89,2,FALSE)*J149,\"\")","v":""},{"$f":"IFERROR(VLOOKUP(D149,'Species List'!$D$95:$E$102,2,FALSE)*J149,\"\")","v":""},{"$f":"IFERROR(VLOOKUP(D149,'Species List'!$I$10:$J$11,2,FALSE)*J149,\"\")","v":""},{"$f":"IFERROR(VLOOKUP(D149,'Species List'!$I$16:$J$61,2,FALSE)*J149,\"\")","v":""},{"$f":"IFERROR(VLOOKUP(D149,'Species List'!$I$66:$J$66,2,FALSE)*J149,\"\")","v":""},{"$f":"IFERROR(VLOOKUP(D149,'Species List'!$I$71:$J$82,2,FALSE)*J149,\"\")","v":""},0,null,null,null,null,null,null,{"$f":"IFERROR(INDEX('3 - Land Summary'!$B$21:$B$120,(MATCH(AD149,'3 - Land Summary'!$C$21:$C$120,0))),\"\")","v":""}]
[null,{"$f":"IFERROR(INDEX('3 - Land Summary'!$B$21:$B$120,(MATCH('4 - Species Breakdown'!$V150,'3 - Land Summary'!$C$21:$C$120,0))),\"\")","v":""},null,null,{"$f":"IF(OR(COUNTIF('Look Up Data'!$D$149:$D$203,D150),COUNTIF('Look Up Data'!$D$149:$D$203,AE150)),\"YES\",\"NO\")","v":"NO"},null,null,{"$f":"IFERROR(INDEX('3 - Land Summary'!$G$21:$G$120,(MATCH(C150,'3 - Land Summary'!$C$21:$C$120,0))),\"\")","v":""},{"$f":"IFERROR(INDEX('3 - Land Summary'!$I$21:$I$120,(MATCH(C150,'3 - Land Summary'!$C$21:$C$120,0))),\"\")","v":""},"","",null,null,null,{"$f":"IFERROR(VLOOKUP(D150,'Species List'!$D$10:$E$46,2,FALSE)*J150,\"\")","v":""},{"$f":"IFERROR(VLOOKUP(D150,'Species List'!$D$51:$E$89,2,FALSE)*J150,\"\")","v":""},{"$f":"IFERROR(VLOOKUP(D150,'Species List'!$D$95:$E$102,2,FALSE)*J150,\"\")","v":""},{"$f":"IFERROR(VLOOKUP(D150,'Species List'!$I$10:$J$11,2,FALSE)*J150,\"\")","v":""},{"$f":"IFERROR(VLOOKUP(D150,'Species List'!$I$16:$J$61,2,FALSE)*J150,\"\")","v":""},{"$f":"IFERROR(VLOOKUP(D150,'Species List'!$I$66:$J$66,2,FALSE)*J150,\"\")","v":""},{"$f":"IFERROR(VLOOKUP(D150,'Species List'!$I$71:$J$82,2,FALSE)*J150,\"\")","v":""},0,null,null,null,null,null,null,{"$f":"IFERROR(INDEX('3 - Land Summary'!$B$21:$B$120,(MATCH(AD150,'3 - Land Summary'!$C$21:$C$120,0))),\"\")","v":""}]
[null,{"$f":"IFERROR(INDEX('3 - Land Summary'!$B$21:$B$120,(MATCH('4 - Species Breakdown'!$V151,'3 - Land Summary'!$C$21:$C$120,0))),\"\")","v":""},null,null,{"$f":"IF(OR(COUNTIF('Look Up Data'!$D$149:$D$203,D151),COUNTIF('Look Up Data'!$D$149:$D$203,AE151)),\"YES\",\"NO\")","v":"NO"},null,null,{"$f":"IFERROR(INDEX('3 - Land Summary'!$G$21:$G$120,(MATCH(C151,'3 - Land Summary'!$C$21:$C$120,0))),\"\")","v":""},{"$f":"IFERROR(INDEX('3 - Land Summary'!$I$21:$I$120,(MATCH(C151,'3 - Land Summary'!$C$21:$C$120,0))),\"\")","v":""},"","",null,null,null,{"$f":"IFERROR(VLOOKUP(D151,'Species List'!$D$10:$E$46,2,FALSE)*J151,\"\")","v":""},{"$f":"IFERROR(VLOOKUP(D151,'Species List'!$D$51:$E$89,2,FALSE)*J151,\"\")","v":""},{"$f":"IFERROR(VLOOKUP(D151,'Species List'!$D$95:$E$102,2,FALSE)*J151,\"\")","v":""},{"$f":"IFERROR(VLOOKUP(D151,'Species List'!$I$10:$J$11,2,FALSE)*J151,\"\")","v":""},{"$f":"IFERROR(VLOOKUP(D151,'Species List'!$I$16:$J$61,2,FALSE)*J151,\"\")","v":""},{"$f":"IFERROR(VLOOKUP(D151,'Species List'!$I$66:$J$66,2,FALSE)*J151,\"\")","v":""},{"$f":"IFERROR(VLOOKUP(D151,'Species List'!$I$71:$J$82,2,FALSE)*J151,\"\")","v":""},0,null,null,null,null,null,null,{"$f":"IFERROR(INDEX('3 - Land Summary'!$B$21:$B$120,(MATCH(AD151,'3 - Land Summary'!$C$21:$C$120,0))),\"\")","v":""}]
[null,{"$f":"IFERROR(INDEX('3 - Land Summary'!$B$21:$B$120,(MATCH('4 - Species Breakdown'!$V152,'3 - Land Summary'!$C$21:$C$120,0))),\"\")","v":""},null,null,{"$f":"IF(OR(COUNTIF('Look Up Data'!$D$149:$D$203,D152),COUNTIF('Look Up Data'!$D$149:$D$203,AE152)),\"YES\",\"NO\")","v":"NO"},null,null,{"$f":"IFERROR(INDEX('3 - Land Summary'!$G$21:$G$120,(MATCH(C152,'3 - Land Summary'!$C$21:$C$120,0))),\"\")","v":""},{"$f":"IFERROR(INDEX('3 - Land Summary'!$I$21:$I$120,(MATCH(C152,'3 - Land Summary'!$C$21:$C$120,0))),\"\")","v":""},"","",null,null,null,{"$f":"IFERROR(VLOOKUP(D152,'Species List'!$D$10:$E$46,2,FALSE)*J152,\"\")","v":""},{"$f":"IFERROR(VLOOKUP(D152,'Species List'!$D$51:$E$89,2,FALSE)*J152,\"\")","v":""},{"$f":"IFERROR(VLOOKUP(D152,'Species List'!$D$95:$E$102,2,FALSE)*J152,\"\")","v":""},{"$f":"IFERROR(VLOOKUP(D152,'Species List'!$I$10:$J$11,2,FALSE)*J152,\"\")","v":""},{"$f":"IFERROR(VLOOKUP(D152,'Species List'!$I$16:$J$61,2,FALSE)*J152,\"\")","v":""},{"$f":"IFERROR(VLOOKUP(D152,'Species List'!$I$66:$J$66,2,FALSE)*J152,\"\")","v":""},{"$f":"IFERROR(VLOOKUP(D152,'Species List'!$I$71:$J$82,2,FALSE)*J152,\"\")","v":""},0,null,null,null,null,null,null,{"$f":"IFERROR(INDEX('3 - Land Summary'!$B$21:$B$120,(MATCH(AD152,'3 - Land Summary'!$C$21:$C$120,0))),\"\")","v":""}]
[null,{"$f":"IFERROR(INDEX('3 - Land Summary'!$B$21:$B$120,(MATCH('4 - Species Breakdown'!$V153,'3 - Land Summary'!$C$21:$C$120,0))),\"\")","v":""},null,null,{"$f":"IF(OR(COUNTIF('Look Up Data'!$D$149:$D$203,D153),COUNTIF('Look Up Data'!$D$149:$D$203,AE153)),\"YES\",\"NO\")","v":"NO"},null,null,{"$f":"IFERROR(INDEX('3 - Land Summary'!$G$21:$G$120,(MATCH(C153,'3 - Land Summary'!$C$21:$C$120,0))),\"\")","v":""},{"$f":"IFERROR(INDEX('3 - Land Summary'!$I$21:$I$120,(MATCH(C153,'3 - Land Summary'!$C$21:$C$120,0))),\"\")","v":""},"","",null,null,null,{"$f":"IFERROR(VLOOKUP(D153,'Species List'!$D$10:$E$46,2,FALSE)*J153,\"\")","v":""},{"$f":"IFERROR(VLOOKUP(D153,'Species List'!$D$51:$E$89,2,FALSE)*J153,\"\")","v":""},{"$f":"IFERROR(VLOOKUP(D153,'Species List'!$D$95:$E$102,2,FALSE)*J153,\"\")","v":""},{"$f":"IFERROR(VLOOKUP(D153,'Species List'!$I$10:$J$11,2,FALSE)*J153,\"\")","v":""},{"$f":"IFERROR(VLOOKUP(D153,'Species List'!$I$16:$J$61,2,FALSE)*J153,\"\")","v":""},{"$f":"IFERROR(VLOOKUP(D153,'Species List'!$I$66:$J$66,2,FALSE)*J153,\"\")","v":""},{"$f":"IFERROR(VLOOKUP(D153,'Species List'!$I$71:$J$82,2,FALSE)*J153,\"\")","v":""},0,null,null,null,null,null,null,{"$f":"IFERROR(INDEX('3 - Land Summary'!$B$21:$B$120,(MATCH(AD153,'3 - Land Summary'!$C$21:$C$120,0))),\"\")","v":""}]
[null,{"$f":"IFERROR(INDEX('3 - Land Summary'!$B$21:$B$120,(MATCH('4 - Species Breakdown'!$V154,'3 - Land Summary'!$C$21:$C$120,0))),\"\")","v":""},null,null,{"$f":"IF(OR(COUNTIF('Look Up Data'!$D$149:$D$203,D154),COUNTIF('Look Up Data'!$D$149:$D$203,AE154)),\"YES\",\"NO\")","v":"NO"},null,null,{"$f":"IFERROR(INDEX('3 - Land Summary'!$G$21:$G$120,(MATCH(C154,'3 - Land Summary'!$C$21:$C$120,0))),\"\")","v":""},{"$f":"IFERROR(INDEX('3 - Land Summary'!$I$21:$I$120,(MATCH(C154,'3 - Land Summary'!$C$21:$C$120,0))),\"\")","v":""},"","",null,null,null,{"$f":"IFERROR(VLOOKUP(D154,'Species List'!$D$10:$E$46,2,FALSE)*J154,\"\")","v":""},{"$f":"IFERROR(VLOOKUP(D154,'Species List'!$D$51:$E$89,2,FALSE)*J154,\"\")","v":""},{"$f":"IFERROR(VLOOKUP(D154,'Species List'!$D$95:$E$102,2,FALSE)*J154,\"\")","v":""},{"$f":"IFERROR(VLOOKUP(D154,'Species List'!$I$10:$J$11,2,FALSE)*J154,\"\")","v":""},{"$f":"IFERROR(VLOOKUP(D154,'Species List'!$I$16:$J$61,2,FALSE)*J154,\"\")","v":""},{"$f":"IFERROR(VLOOKUP(D154,'Species List'!$I$66:$J$66,2,FALSE)*J154,\"\")","v":""},{"$f":"IFERROR(VLOOKUP(D154,'Species List'!$I$71:$J$82,2,FALSE)*J154,\"\")","v":""},0,null,null,null,null,null,null,{"$f":"IFERROR(INDEX('3 - Land Summary'!$B$21:$B$120,(MATCH(AD154,'3 - Land Summary'!$C$21:$C$120,0))),\"\")","v":""}]
[null,{"$f":"IFERROR(INDEX('3 - Land Summary'!$B$21:$B$120,(MATCH('4 - Species Breakdown'!$V155,'3 - Land Summary'!$C$21:$C$120,0))),\"\")","v":""},null,null,{"$f":"IF(OR(COUNTIF('Look Up Data'!$D$149:$D$203,D155),COUNTIF('Look Up Data'!$D$149:$D$203,AE155)),\"YES\",\"NO\")","v":"NO"},null,null,{"$f":"IFERROR(INDEX('3 - Land Summary'!$G$21:$G$120,(MATCH(C155,'3 - Land Summary'!$C$21:$C$120,0))),\"\")","v":""},{"$f":"IFERROR(INDEX('3 - Land Summary'!$I$21:$I$120,(MATCH(C155,'3 - Land Summary'!$C$21:$C$120,0))),\"\")","v":""},"","",null,null,null,{"$f":"IFERROR(VLOOKUP(D155,'Species List'!$D$10:$E$46,2,FALSE)*J155,\"\")","v":""},{"$f":"IFERROR(VLOOKUP(D155,'Species List'!$D$51:$E$89,2,FALSE)*J155,\"\")","v":""},{"$f":"IFERROR(VLOOKUP(D155,'Species List'!$D$95:$E$102,2,FALSE)*J155,\"\")","v":""},{"$f":"IFERROR(VLOOKUP(D155,'Species List'!$I$10:$J$11,2,FALSE)*J155,\"\")","v":""},{"$f":"IFERROR(VLOOKUP(D155,'Species List'!$I$16:$J$61,2,FALSE)*J155,\"\")","v":""},{"$f":"IFERROR(VLOOKUP(D155,'Species List'!$I$66:$J$66,2,FALSE)*J155,\"\")","v":""},{"$f":"IFERROR(VLOOKUP(D155,'Species List'!$I$71:$J$82,2,FALSE)*J155,\"\")","v":""},0,null,null,null,null,null,null,{"$f":"IFERROR(INDEX('3 - Land Summary'!$B$21:$B$120,(MATCH(AD155,'3 - Land Summary'!$C$21:$C$120,0))),\"\")","v":""}]
[null,{"$f":"IFERROR(INDEX('3 - Land Summary'!$B$21:$B$120,(MATCH('4 - Species Breakdown'!$V156,'3 - Land Summary'!$C$21:$C$120,0))),\"\")","v":""},null,null,{"$f":"IF(OR(COUNTIF('Look Up Data'!$D$149:$D$203,D156),COUNTIF('Look Up Data'!$D$149:$D$203,AE156)),\"YES\",\"NO\")","v":"NO"},null,null,{"$f":"IFERROR(INDEX('3 - Land Summary'!$G$21:$G$120,(MATCH(C156,'3 - Land Summary'!$C$21:$C$120,0))),\"\")","v":""},{"$f":"IFERROR(INDEX('3 - Land Summary'!$I$21:$I$120,(MATCH(C156,'3 - Land Summary'!$C$21:$C$120,0))),\"\")","v":""},"","",null,null,null,{"$f":"IFERROR(VLOOKUP(D156,'Species List'!$D$10:$E$46,2,FALSE)*J156,\"\")","v":""},{"$f":"IFERROR(VLOOKUP(D156,'Species List'!$D$51:$E$89,2,FALSE)*J156,\"\")","v":""},{"$f":"IFERROR(VLOOKUP(D156,'Species List'!$D$95:$E$102,2,FALSE)*J156,\"\")","v":""},{"$f":"IFERROR(VLOOKUP(D156,'Species List'!$I$10:$J$11,2,FALSE)*J156,\"\")","v":""},{"$f":"IFERROR(VLOOKUP(D156,'Species List'!$I$16:$J$61,2,FALSE)*J156,\"\")","v":""},{"$f":"IFERROR(VLOOKUP(D156,'Species List'!$I$66:$J$66,2,FALSE)*J156,\"\")","v":""},{"$f":"IFERROR(VLOOKUP(D156,'Species List'!$I$71:$J$82,2,FALSE)*J156,\"\")","v":""},0,null,null,null,null,null,null,{"$f":"IFERROR(INDEX('3 - Land Summary'!$B$21:$B$120,(MATCH(AD156,'3 - Land Summary'!$C$21:$C$120,0))),\"\")","v":""}]
[null,{"$f":"IFERROR(INDEX('3 - Land Summary'!$B$21:$B$120,(MATCH('4 - Species Breakdown'!$V157,'3 - Land Summary'!$C$21:$C$120,0))),\"\")","v":""},null,null,{"$f":"IF(OR(COUNTIF('Look Up Data'!$D$149:$D$203,D157),COUNTIF('Look Up Data'!$D$149:$D$203,AE157)),\"YES\",\"NO\")","v":"NO"},null,null,{"$f":"IFERROR(INDEX('3 - Land Summary'!$G$21:$G$120,(MATCH(C157,'3 - Land Summary'!$C$21:$C$120,0))),\"\")","v":""},{"$f":"IFERROR(INDEX('3 - Land Summary'!$I$21:$I$120,(MATCH(C157,'3 - Land Summary'!$C$21:$C$120,0))),\"\")","v":""},"","",null,null,null,{"$f":"IFERROR(VLOOKUP(D157,'Species List'!$D$10:$E$46,2,FALSE)*J157,\"\")","v":""},{"$f":"IFERROR(VLOOKUP(D157,'Species List'!$D$51:$E$89,2,FALSE)*J157,\"\")","v":""},{"$f":"IFERROR(VLOOKUP(D157,'Species List'!$D$95:$E$102,2,FALSE)*J157,\"\")","v":""},{"$f":"IFERROR(VLOOKUP(D157,'Species List'!$I$10:$J$11,2,FALSE)*J157,\"\")","v":""},{"$f":"IFERROR(VLOOKUP(D157,'Species List'!$I$16:$J$61,2,FALSE)*J157,\"\")","v":""},{"$f":"IFERROR(VLOOKUP(D157,'Species List'!$I$66:$J$66,2,FALSE)*J157,\"\")","v":""},{"$f":"IFERROR(VLOOKUP(D157,'Species List'!$I$71:$J$82,2,FALSE)*J157,\"\")","v":""},0,null,null,null,null,null,null,{"$f":"IFERROR(INDEX('3 - Land Summary'!$B$21:$B$120,(MATCH(AD157,'3 - Land Summary'!$C$21:$C$120,0))),\"\")","v":""}]
[null,{"$f":"IFERROR(INDEX('3 - Land Summary'!$B$21:$B$120,(MATCH('4 - Species Breakdown'!$V158,'3 - Land Summary'!$C$21:$C$120,0))),\"\")","v":""},null,null,{"$f":"IF(OR(COUNTIF('Look Up Data'!$D$149:$D$203,D158),COUNTIF('Look Up Data'!$D$149:$D$203,AE158)),\"YES\",\"NO\")","v":"NO"},null,null,{"$f":"IFERROR(INDEX('3 - Land Summary'!$G$21:$G$120,(MATCH(C158,'3 - Land Summary'!$C$21:$C$120,0))),\"\")","v":""},{"$f":"IFERROR(INDEX('3 - Land Summary'!$I$21:$I$120,(MATCH(C158,'3 - Land Summary'!$C$21:$C$120,0))),\"\")","v":""},"","",null,null,null,{"$f":"IFERROR(VLOOKUP(D158,'Species List'!$D$10:$E$46,2,FALSE)*J158,\"\")","v":""},{"$f":"IFERROR(VLOOKUP(D158,'Species List'!$D$51:$E$89,2,FALSE)*J158,\"\")","v":""},{"$f":"IFERROR(VLOOKUP(D158,'Species List'!$D$95:$E$102,2,FALSE)*J158,\"\")","v":""},{"$f":"IFERROR(VLOOKUP(D158,'Species List'!$I$10:$J$11,2,FALSE)*J158,\"\")","v":""},{"$f":"IFERROR(VLOOKUP(D158,'Species List'!$I$16:$J$61,2,FALSE)*J158,\"\")","v":""},{"$f":"IFERROR(VLOOKUP(D158,'Species List'!$I$66:$J$66,2,FALSE)*J158,\"\")","v":""},{"$f":"IFERROR(VLOOKUP(D158,'Species List'!$I$71:$J$82,2,FALSE)*J158,\"\")","v":""},0,null,null,null,null,null,null,{"$f":"IFERROR(INDEX('3 - Land Summary'!$B$21:$B$120,(MATCH(AD158,'3 - Land Summary'!$C$21:$C$120,0))),\"\")","v":""}]
[null,{"$f":"IFERROR(INDEX('3 - Land Summary'!$B$21:$B$120,(MATCH('4 - Species Breakdown'!$V159,'3 - Land Summary'!$C$21:$C$120,0))),\"\")","v":""},null,null,{"$f":"IF(OR(COUNTIF('Look Up Data'!$D$149:$D$203,D159),COUNTIF('Look Up Data'!$D$149:$D$203,AE159)),\"YES\",\"NO\")","v":"NO"},null,null,{"$f":"IFERROR(INDEX('3 - Land Summary'!$G$21:$G$120,(MATCH(C159,'3 - Land Summary'!$C$21:$C$120,0))),\"\")","v":""},{"$f":"IFERROR(INDEX('3 - Land Summary'!$I$21:$I$120,(MATCH(C159,'3 - Land Summary'!$C$21:$C$120,0))),\"\")","v":""},{"$f":"IFERROR(((H159-I159)*F159)/100,\"\")","v":""},"",null,null,null,{"$f":"IFERROR(VLOOKUP(D159,'Species List'!$D$10:$E$46,2,FALSE)*J159,\"\")","v":""},{"$f":"IFERROR(VLOOKUP(D159,'Species List'!$D$51:$E$89,2,FALSE)*J159,\"\")","v":""},{"$f":"IFERROR(VLOOKUP(D159,'Species List'!$D$95:$E$102,2,FALSE)*J159,\"\")","v":""},{"$f":"IFERROR(VLOOKUP(D159,'Species List'!$I$10:$J$11,2,FALSE)*J159,\"\")","v":""},{"$f":"IFERROR(VLOOKUP(D159,'Species List'!$I$16:$J$61,2,FALSE)*J159,\"\")","v":""},{"$f":"IFERROR(VLOOKUP(D159,'Species List'!$I$66:$J$66,2,FALSE)*J159,\"\")","v":""},{"$f":"IFERROR(VLOOKUP(D159,'Species List'!$I$71:$J$82,2,FALSE)*J159,\"\")","v":""},{"$f":"C159","v":0},null,null,null,null,null,null,{"$f":"IFERROR(INDEX('3 - Land Summary'!$B$21:$B$120,(MATCH(AD159,'3 - Land Summary'!$C$21:$C$120,0))),\"\")","v":""}]
[null,{"$f":"IFERROR(INDEX('3 - Land Summary'!$B$21:$B$120,(MATCH('4 - Species Breakdown'!$V160,'3 - Land Summary'!$C$21:$C$120,0))),\"\")","v":""},null,null,{"$f":"IF(OR(COUNTIF('Look Up Data'!$D$149:$D$203,D160),COUNTIF('Look Up Data'!$D$149:$D$203,AE160)),\"YES\",\"NO\")","v":"NO"},null,null,{"$f":"IFERROR(INDEX('3 - Land Summary'!$G$21:$G$120,(MATCH(C160,'3 - Land Summary'!$C$21:$C$120,0))),\"\")","v":""},{"$f":"IFERROR(INDEX('3 - Land Summary'!$I$21:$I$120,(MATCH(C160,'3 - Land Summary'!$C$21:$C$120,0))),\"\")","v":""},"",{"$f":"IFERROR(ROUND(J160*G160,0),\"\")","v":""},null,null,null,{"$f":"IFERROR(VLOOKUP(D160,'Species List'!$D$10:$E$46,2,FALSE)*J160,\"\")","v":""},{"$f":"IFERROR(VLOOKUP(D160,'Species List'!$D$51:$E$89,2,FALSE)*J160,\"\")","v":""},{"$f":"IFERROR(VLOOKUP(D160,'Species List'!$D$95:$E$102,2,FALSE)*J160,\"\")","v":""},{"$f":"IFERROR(VLOOKUP(D160,'Species List'!$I$10:$J$11,2,FALSE)*J160,\"\")","v":""},{"$f":"IFERROR(VLOOKUP(D160,'Species List'!$I$16:$J$61,2,FALSE)*J160,\"\")","v":""},{"$f":"IFERROR(VLOOKUP(D160,'Species List'!$I$66:$J$66,2,FALSE)*J160,\"\")","v":""},{"$f":"IFERROR(VLOOKUP(D160,'Species List'!$I$71:$J$82,2,FALSE)*J160,\"\")","v":""},0,null,null,null,null,null,null,{"$f":"IFERROR(INDEX('3 - Land Summary'!$B$21:$B$120,(MATCH(AD160,'3 - Land Summary'!$C$21:$C$120,0))),\"\")","v":""}]
[null,{"$f":"IFERROR(INDEX('3 - Land Summary'!$B$21:$B$120,(MATCH('4 - Species Breakdown'!$V161,'3 - Land Summary'!$C$21:$C$120,0))),\"\")","v":""},null,null,{"$f":"IF(OR(COUNTIF('Look Up Data'!$D$149:$D$203,D161),COUNTIF('Look Up Data'!$D$149:$D$203,AE161)),\"YES\",\"NO\")","v":"NO"},null,null,{"$f":"IFERROR(INDEX('3 - Land Summary'!$G$21:$G$120,(MATCH(C161,'3 - Land Summary'!$C$21:$C$120,0))),\"\")","v":""},{"$f":"IFERROR(INDEX('3 - Land Summary'!$I$21:$I$120,(MATCH(C161,'3 - Land Summary'!$C$21:$C$120,0))),\"\")","v":""},"","",null,null,null,{"$f":"IFERROR(VLOOKUP(D161,'Species List'!$D$10:$E$46,2,FALSE)*J161,\"\")","v":""},{"$f":"IFERROR(VLOOKUP(D161,'Species List'!$D$51:$E$89,2,FALSE)*J161,\"\")","v":""},{"$f":"IFERROR(VLOOKUP(D161,'Species List'!$D$95:$E$102,2,FALSE)*J161,\"\")","v":""},{"$f":"IFERROR(VLOOKUP(D161,'Species List'!$I$10:$J$11,2,FALSE)*J161,\"\")","v":""},{"$f":"IFERROR(VLOOKUP(D161,'Species List'!$I$16:$J$61,2,FALSE)*J161,\"\")","v":""},{"$f":"IFERROR(VLOOKUP(D161,'Species List'!$I$66:$J$66,2,FALSE)*J161,\"\")","v":""},{"$f":"IFERROR(VLOOKUP(D161,'Species List'!$I$71:$J$82,2,FALSE)*J161,\"\")","v":""},0,null,null,null,null,null,null,{"$f":"IFERROR(INDEX('3 - Land Summary'!$B$21:$B$120,(MATCH(AD161,'3 - Land Summary'!$C$21:$C$120,0))),\"\")","v":""}]
[null,{"$f":"IFERROR(INDEX('3 - Land Summary'!$B$21:$B$120,(MATCH('4 - Species Breakdown'!$V162,'3 - Land Summary'!$C$21:$C$120,0))),\"\")","v":""},null,null,{"$f":"IF(OR(COUNTIF('Look Up Data'!$D$149:$D$203,D162),COUNTIF('Look Up Data'!$D$149:$D$203,AE162)),\"YES\",\"NO\")","v":"NO"},null,null,{"$f":"IFERROR(INDEX('3 - Land Summary'!$G$21:$G$120,(MATCH(C162,'3 - Land Summary'!$C$21:$C$120,0))),\"\")","v":""},{"$f":"IFERROR(INDEX('3 - Land Summary'!$I$21:$I$120,(MATCH(C162,'3 - Land Summary'!$C$21:$C$120,0))),\"\")","v":""},"","",null,null,null,{"$f":"IFERROR(VLOOKUP(D162,'Species List'!$D$10:$E$46,2,FALSE)*J162,\"\")","v":""},{"$f":"IFERROR(VLOOKUP(D162,'Species List'!$D$51:$E$89,2,FALSE)*J162,\"\")","v":""},{"$f":"IFERROR(VLOOKUP(D162,'Species List'!$D$95:$E$102,2,FALSE)*J162,\"\")","v":""},{"$f":"IFERROR(VLOOKUP(D162,'Species List'!$I$10:$J$11,2,FALSE)*J162,\"\")","v":""},{"$f":"IFERROR(VLOOKUP(D162,'Species List'!$I$16:$J$61,2,FALSE)*J162,\"\")","v":""},{"$f":"IFERROR(VLOOKUP(D162,'Species List'!$I$66:$J$66,2,FALSE)*J162,\"\")","v":""},{"$f":"IFERROR(VLOOKUP(D162,'Species List'!$I$71:$J$82,2,FALSE)*J162,\"\")","v":""},0,null,null,null,null,null,null,{"$f":"IFERROR(INDEX('3 - Land Summary'!$B$21:$B$120,(MATCH(AD162,'3 - Land Summary'!$C$21:$C$120,0))),\"\")","v":""}]
[null,{"$f":"IFERROR(INDEX('3 - Land Summary'!$B$21:$B$120,(MATCH('4 - Species Breakdown'!$V163,'3 - Land Summary'!$C$21:$C$120,0))),\"\")","v":""},null,null,{"$f":"IF(OR(COUNTIF('Look Up Data'!$D$149:$D$203,D163),COUNTIF('Look Up Data'!$D$149:$D$203,AE163)),\"YES\",\"NO\")","v":"NO"},null,null,{"$f":"IFERROR(INDEX('3 - Land Summary'!$G$21:$G$120,(MATCH(C163,'3 - Land Summary'!$C$21:$C$120,0))),\"\")","v":""},{"$f":"IFERROR(INDEX('3 - Land Summary'!$I$21:$I$120,(MATCH(C163,'3 - Land Summary'!$C$21:$C$120,0))),\"\")","v":""},"","",null,null,null,{"$f":"IFERROR(VLOOKUP(D163,'Species List'!$D$10:$E$46,2,FALSE)*J163,\"\")","v":""},{"$f":"IFERROR(VLOOKUP(D163,'Species List'!$D$51:$E$89,2,FALSE)*J163,\"\")","v":""},{"$f":"IFERROR(VLOOKUP(D163,'Species List'!$D$95:$E$102,2,FALSE)*J163,\"\")","v":""},{"$f":"IFERROR(VLOOKUP(D163,'Species List'!$I$10:$J$11,2,FALSE)*J163,\"\")","v":""},{"$f":"IFERROR(VLOOKUP(D163,'Species List'!$I$16:$J$61,2,FALSE)*J163,\"\")","v":""},{"$f":"IFERROR(VLOOKUP(D163,'Species List'!$I$66:$J$66,2,FALSE)*J163,\"\")","v":""},{"$f":"IFERROR(VLOOKUP(D163,'Species List'!$I$71:$J$82,2,FALSE)*J163,\"\")","v":""},0,null,null,null,null,null,null,{"$f":"IFERROR(INDEX('3 - Land Summary'!$B$21:$B$120,(MATCH(AD163,'3 - Land Summary'!$C$21:$C$120,0))),\"\")","v":""}]
[null,{"$f":"IFERROR(INDEX('3 - Land Summary'!$B$21:$B$120,(MATCH('4 - Species Breakdown'!$V164,'3 - Land Summary'!$C$21:$C$120,0))),\"\")","v":""},null,null,{"$f":"IF(OR(COUNTIF('Look Up Data'!$D$149:$D$203,D164),COUNTIF('Look Up Data'!$D$149:$D$203,AE164)),\"YES\",\"NO\")","v":"NO"},null,null,{"$f":"IFERROR(INDEX('3 - Land Summary'!$G$21:$G$120,(MATCH(C164,'3 - Land Summary'!$C$21:$C$120,0))),\"\")","v":""},{"$f":"IFERROR(INDEX('3 - Land Summary'!$I$21:$I$120,(MATCH(C164,'3 - Land Summary'!$C$21:$C$120,0))),\"\")","v":""},"","",null,null,null,{"$f":"IFERROR(VLOOKUP(D164,'Species List'!$D$10:$E$46,2,FALSE)*J164,\"\")","v":""},{"$f":"IFERROR(VLOOKUP(D164,'Species List'!$D$51:$E$89,2,FALSE)*J164,\"\")","v":""},{"$f":"IFERROR(VLOOKUP(D164,'Species List'!$D$95:$E$102,2,FALSE)*J164,\"\")","v":""},{"$f":"IFERROR(VLOOKUP(D164,'Species List'!$I$10:$J$11,2,FALSE)*J164,\"\")","v":""},{"$f":"IFERROR(VLOOKUP(D164,'Species List'!$I$16:$J$61,2,FALSE)*J164,\"\")","v":""},{"$f":"IFERROR(VLOOKUP(D164,'Species List'!$I$66:$J$66,2,FALSE)*J164,\"\")","v":""},{"$f":"IFERROR(VLOOKUP(D164,'Species List'!$I$71:$J$82,2,FALSE)*J164,\"\")","v":""},0,null,null,null,null,null,null,{"$f":"IFERROR(INDEX('3 - Land Summary'!$B$21:$B$120,(MATCH(AD164,'3 - Land Summary'!$C$21:$C$120,0))),\"\")","v":""}]
[null,{"$f":"IFERROR(INDEX('3 - Land Summary'!$B$21:$B$120,(MATCH('4 - Species Breakdown'!$V165,'3 - Land Summary'!$C$21:$C$120,0))),\"\")","v":""},null,null,{"$f":"IF(OR(COUNTIF('Look Up Data'!$D$149:$D$203,D165),COUNTIF('Look Up Data'!$D$149:$D$203,AE165)),\"YES\",\"NO\")","v":"NO"},null,null,{"$f":"IFERROR(INDEX('3 - Land Summary'!$G$21:$G$120,(MATCH(C165,'3 - Land Summary'!$C$21:$C$120,0))),\"\")","v":""},{"$f":"IFERROR(INDEX('3 - Land Summary'!$I$21:$I$120,(MATCH(C165,'3 - Land Summary'!$C$21:$C$120,0))),\"\")","v":""},"","",null,null,null,{"$f":"IFERROR(VLOOKUP(D165,'Species List'!$D$10:$E$46,2,FALSE)*J165,\"\")","v":""},{"$f":"IFERROR(VLOOKUP(D165,'Species List'!$D$51:$E$89,2,FALSE)*J165,\"\")","v":""},{"$f":"IFERROR(VLOOKUP(D165,'Species List'!$D$95:$E$102,2,FALSE)*J165,\"\")","v":""},{"$f":"IFERROR(VLOOKUP(D165,'Species List'!$I$10:$J$11,2,FALSE)*J165,\"\")","v":""},{"$f":"IFERROR(VLOOKUP(D165,'Species List'!$I$16:$J$61,2,FALSE)*J165,\"\")","v":""},{"$f":"IFERROR(VLOOKUP(D165,'Species List'!$I$66:$J$66,2,FALSE)*J165,\"\")","v":""},{"$f":"IFERROR(VLOOKUP(D165,'Species List'!$I$71:$J$82,2,FALSE)*J165,\"\")","v":""},0,null,null,null,null,null,null,{"$f":"IFERROR(INDEX('3 - Land Summary'!$B$21:$B$120,(MATCH(AD165,'3 - Land Summary'!$C$21:$C$120,0))),\"\")","v":""}]
[null,{"$f":"IFERROR(INDEX('3 - Land Summary'!$B$21:$B$120,(MATCH('4 - Species Breakdown'!$V166,'3 - Land Summary'!$C$21:$C$120,0))),\"\")","v":""},null,null,{"$f":"IF(OR(COUNTIF('Look Up Data'!$D$149:$D$203,D166),COUNTIF('Look Up Data'!$D$149:$D$203,AE166)),\"YES\",\"NO\")","v":"NO"},null,null,{"$f":"IFERROR(INDEX('3 - Land Summary'!$G$21:$G$120,(MATCH(C166,'3 - Land Summary'!$C$21:$C$120,0))),\"\")","v":""},{"$f":"IFERROR(INDEX('3 - Land Summary'!$I$21:$I$120,(MATCH(C166,'3 - Land Summary'!$C$21:$C$120,0))),\"\")","v":""},"","",null,null,null,{"$f":"IFERROR(VLOOKUP(D166,'Species List'!$D$10:$E$46,2,FALSE)*J166,\"\")","v":""},{"$f":"IFERROR(VLOOKUP(D166,'Species List'!$D$51:$E$89,2,FALSE)*J166,\"\")","v":""},{"$f":"IFERROR(VLOOKUP(D166,'Species List'!$D$95:$E$102,2,FALSE)*J166,\"\")","v":""},{"$f":"IFERROR(VLOOKUP(D166,'Species List'!$I$10:$J$11,2,FALSE)*J166,\"\")","v":""},{"$f":"IFERROR(VLOOKUP(D166,'Species List'!$I$16:$J$61,2,FALSE)*J166,\"\")","v":""},{"$f":"IFERROR(VLOOKUP(D166,'Species List'!$I$66:$J$66,2,FALSE)*J166,\"\")","v":""},{"$f":"IFERROR(VLOOKUP(D166,'Species List'!$I$71:$J$82,2,FALSE)*J166,\"\")","v":""},0,null,null,null,null,null,null,{"$f":"IFERROR(INDEX('3 - Land Summary'!$B$21:$B$120,(MATCH(AD166,'3 - Land Summary'!$C$21:$C$120,0))),\"\")","v":""}]
[null,{"$f":"IFERROR(INDEX('3 - Land Summary'!$B$21:$B$120,(MATCH('4 - Species Breakdown'!$V167,'3 - Land Summary'!$C$21:$C$120,0))),\"\")","v":""},null,null,{"$f":"IF(OR(COUNTIF('Look Up Data'!$D$149:$D$203,D167),COUNTIF('Look Up Data'!$D$149:$D$203,AE167)),\"YES\",\"NO\")","v":"NO"},null,null,{"$f":"IFERROR(INDEX('3 - Land Summary'!$G$21:$G$120,(MATCH(C167,'3 - Land Summary'!$C$21:$C$120,0))),\"\")","v":""},{"$f":"IFERROR(INDEX('3 - Land Summary'!$I$21:$I$120,(MATCH(C167,'3 - Land Summary'!$C$21:$C$120,0))),\"\")","v":""},"","",null,null,null,{"$f":"IFERROR(VLOOKUP(D167,'Species List'!$D$10:$E$46,2,FALSE)*J167,\"\")","v":""},{"$f":"IFERROR(VLOOKUP(D167,'Species List'!$D$51:$E$89,2,FALSE)*J167,\"\")","v":""},{"$f":"IFERROR(VLOOKUP(D167,'Species List'!$D$95:$E$102,2,FALSE)*J167,\"\")","v":""},{"$f":"IFERROR(VLOOKUP(D167,'Species List'!$I$10:$J$11,2,FALSE)*J167,\"\")","v":""},{"$f":"IFERROR(VLOOKUP(D167,'Species List'!$I$16:$J$61,2,FALSE)*J167,\"\")","v":""},{"$f":"IFERROR(VLOOKUP(D167,'Species List'!$I$66:$J$66,2,FALSE)*J167,\"\")","v":""},{"$f":"IFERROR(VLOOKUP(D167,'Species List'!$I$71:$J$82,2,FALSE)*J167,\"\")","v":""},0,null,null,null,null,null,null,{"$f":"IFERROR(INDEX('3 - Land Summary'!$B$21:$B$120,(MATCH(AD167,'3 - Land Summary'!$C$21:$C$120,0))),\"\")","v":""}]
[null,{"$f":"IFERROR(INDEX('3 - Land Summary'!$B$21:$B$120,(MATCH('4 - Species Breakdown'!$V168,'3 - Land Summary'!$C$21:$C$120,0))),\"\")","v":""},null,null,{"$f":"IF(OR(COUNTIF('Look Up Data'!$D$149:$D$203,D168),COUNTIF('Look Up Data'!$D$149:$D$203,AE168)),\"YES\",\"NO\")","v":"NO"},null,null,{"$f":"IFERROR(INDEX('3 - Land Summary'!$G$21:$G$120,(MATCH(C168,'3 - Land Summary'!$C$21:$C$120,0))),\"\")","v":""},{"$f":"IFERROR(INDEX('3 - Land Summary'!$I$21:$I$120,(MATCH(C168,'3 - Land Summary'!$C$21:$C$120,0))),\"\")","v":""},"","",null,null,null,{"$f":"IFERROR(VLOOKUP(D168,'Species List'!$D$10:$E$46,2,FALSE)*J168,\"\")","v":""},{"$f":"IFERROR(VLOOKUP(D168,'Species List'!$D$51:$E$89,2,FALSE)*J168,\"\")","v":""},{"$f":"IFERROR(VLOOKUP(D168,'Species List'!$D$95:$E$102,2,FALSE)*J168,\"\")","v":""},{"$f":"IFERROR(VLOOKUP(D168,'Species List'!$I$10:$J$11,2,FALSE)*J168,\"\")","v":""},{"$f":"IFERROR(VLOOKUP(D168,'Species List'!$I$16:$J$61,2,FALSE)*J168,\"\")","v":""},{"$f":"IFERROR(VLOOKUP(D168,'Species List'!$I$66:$J$66,2,FALSE)*J168,\"\")","v":""},{"$f":"IFERROR(VLOOKUP(D168,'Species List'!$I$71:$J$82,2,FALSE)*J168,\"\")","v":""},0,null,null,null,null,null,null,{"$f":"IFERROR(INDEX('3 - Land Summary'!$B$21:$B$120,(MATCH(AD168,'3 - Land Summary'!$C$21:$C$120,0))),\"\")","v":""}]
[null,{"$f":"IFERROR(INDEX('3 - Land Summary'!$B$21:$B$120,(MATCH('4 - Species Breakdown'!$V169,'3 - Land Summary'!$C$21:$C$120,0))),\"\")","v":""},null,null,{"$f":"IF(OR(COUNTIF('Look Up Data'!$D$149:$D$203,D169),COUNTIF('Look Up Data'!$D$149:$D$203,AE169)),\"YES\",\"NO\")","v":"NO"},null,null,{"$f":"IFERROR(INDEX('3 - Land Summary'!$G$21:$G$120,(MATCH(C169,'3 - Land Summary'!$C$21:$C$120,0))),\"\")","v":""},{"$f":"IFERROR(INDEX('3 - Land Summary'!$I$21:$I$120,(MATCH(C169,'3 - Land Summary'!$C$21:$C$120,0))),\"\")","v":""},"","",null,null,null,{"$f":"IFERROR(VLOOKUP(D169,'Species List'!$D$10:$E$46,2,FALSE)*J169,\"\")","v":""},{"$f":"IFERROR(VLOOKUP(D169,'Species List'!$D$51:$E$89,2,FALSE)*J169,\"\")","v":""},{"$f":"IFERROR(VLOOKUP(D169,'Species List'!$D$95:$E$102,2,FALSE)*J169,\"\")","v":""},{"$f":"IFERROR(VLOOKUP(D169,'Species List'!$I$10:$J$11,2,FALSE)*J169,\"\")","v":""},{"$f":"IFERROR(VLOOKUP(D169,'Species List'!$I$16:$J$61,2,FALSE)*J169,\"\")","v":""},{"$f":"IFERROR(VLOOKUP(D169,'Species List'!$I$66:$J$66,2,FALSE)*J169,\"\")","v":""},{"$f":"IFERROR(VLOOKUP(D169,'Species List'!$I$71:$J$82,2,FALSE)*J169,\"\")","v":""},0,null,null,null,null,null,null,{"$f":"IFERROR(INDEX('3 - Land Summary'!$B$21:$B$120,(MATCH(AD169,'3 - Land Summary'!$C$21:$C$120,0))),\"\")","v":""}]
[null,{"$f":"IFERROR(INDEX('3 - Land Summary'!$B$21:$B$120,(MATCH('4 - Species Breakdown'!$V170,'3 - Land Summary'!$C$21:$C$120,0))),\"\")","v":""},null,null,{"$f":"IF(OR(COUNTIF('Look Up Data'!$D$149:$D$203,D170),COUNTIF('Look Up Data'!$D$149:$D$203,AE170)),\"YES\",\"NO\")","v":"NO"},null,null,{"$f":"IFERROR(INDEX('3 - Land Summary'!$G$21:$G$120,(MATCH(C170,'3 - Land Summary'!$C$21:$C$120,0))),\"\")","v":""},{"$f":"IFERROR(INDEX('3 - Land Summary'!$I$21:$I$120,(MATCH(C170,'3 - Land Summary'!$C$21:$C$120,0))),\"\")","v":""},"","",null,null,null,{"$f":"IFERROR(VLOOKUP(D170,'Species List'!$D$10:$E$46,2,FALSE)*J170,\"\")","v":""},{"$f":"IFERROR(VLOOKUP(D170,'Species List'!$D$51:$E$89,2,FALSE)*J170,\"\")","v":""},{"$f":"IFERROR(VLOOKUP(D170,'Species List'!$D$95:$E$102,2,FALSE)*J170,\"\")","v":""},{"$f":"IFERROR(VLOOKUP(D170,'Species List'!$I$10:$J$11,2,FALSE)*J170,\"\")","v":""},{"$f":"IFERROR(VLOOKUP(D170,'Species List'!$I$16:$J$61,2,FALSE)*J170,\"\")","v":""},{"$f":"IFERROR(VLOOKUP(D170,'Species List'!$I$66:$J$66,2,FALSE)*J170,\"\")","v":""},{"$f":"IFERROR(VLOOKUP(D170,'Species List'!$I$71:$J$82,2,FALSE)*J170,\"\")","v":""},0,null,null,null,null,null,null,{"$f":"IFERROR(INDEX('3 - Land Summary'!$B$21:$B$120,(MATCH(AD170,'3 - Land Summary'!$C$21:$C$120,0))),\"\")","v":""}]
[null,{"$f":"IFERROR(INDEX('3 - Land Summary'!$B$21:$B$120,(MATCH('4 - Species Breakdown'!$V171,'3 - Land Summary'!$C$21:$C$120,0))),\"\")","v":""},null,null,{"$f":"IF(OR(COUNTIF('Look Up Data'!$D$149:$D$203,D171),COUNTIF('Look Up Data'!$D$149:$D$203,AE171)),\"YES\",\"NO\")","v":"NO"},null,null,{"$f":"IFERROR(INDEX('3 - Land Summary'!$G$21:$G$120,(MATCH(C171,'3 - Land Summary'!$C$21:$C$120,0))),\"\")","v":""},{"$f":"IFERROR(INDEX('3 - Land Summary'!$I$21:$I$120,(MATCH(C171,'3 - Land Summary'!$C$21:$C$120,0))),\"\")","v":""},"","",null,null,null,{"$f":"IFERROR(VLOOKUP(D171,'Species List'!$D$10:$E$46,2,FALSE)*J171,\"\")","v":""},{"$f":"IFERROR(VLOOKUP(D171,'Species List'!$D$51:$E$89,2,FALSE)*J171,\"\")","v":""},{"$f":"IFERROR(VLOOKUP(D171,'Species List'!$D$95:$E$102,2,FALSE)*J171,\"\")","v":""},{"$f":"IFERROR(VLOOKUP(D171,'Species List'!$I$10:$J$11,2,FALSE)*J171,\"\")","v":""},{"$f":"IFERROR(VLOOKUP(D171,'Species List'!$I$16:$J$61,2,FALSE)*J171,\"\")","v":""},{"$f":"IFERROR(VLOOKUP(D171,'Species List'!$I$66:$J$66,2,FALSE)*J171,\"\")","v":""},{"$f":"IFERROR(VLOOKUP(D171,'Species List'!$I$71:$J$82,2,FALSE)*J171,\"\")","v":""},0,null,null,null,null,null,null,{"$f":"IFERROR(INDEX('3 - Land Summary'!$B$21:$B$120,(MATCH(AD171,'3 - Land Summary'!$C$21:$C$120,0))),\"\")","v":""}]
[null,{"$f":"IFERROR(INDEX('3 - Land Summary'!$B$21:$B$120,(MATCH('4 - Species Breakdown'!$V172,'3 - Land Summary'!$C$21:$C$120,0))),\"\")","v":""},null,null,{"$f":"IF(OR(COUNTIF('Look Up Data'!$D$149:$D$203,D172),COUNTIF('Look Up Data'!$D$149:$D$203,AE172)),\"YES\",\"NO\")","v":"NO"},null,null,{"$f":"IFERROR(INDEX('3 - Land Summary'!$G$21:$G$120,(MATCH(C172,'3 - Land Summary'!$C$21:$C$120,0))),\"\")","v":""},{"$f":"IFERROR(INDEX('3 - Land Summary'!$I$21:$I$120,(MATCH(C172,'3 - Land Summary'!$C$21:$C$120,0))),\"\")","v":""},"","",null,null,null,{"$f":"IFERROR(VLOOKUP(D172,'Species List'!$D$10:$E$46,2,FALSE)*J172,\"\")","v":""},{"$f":"IFERROR(VLOOKUP(D172,'Species List'!$D$51:$E$89,2,FALSE)*J172,\"\")","v":""},{"$f":"IFERROR(VLOOKUP(D172,'Species List'!$D$95:$E$102,2,FALSE)*J172,\"\")","v":""},{"$f":"IFERROR(VLOOKUP(D172,'Species List'!$I$10:$J$11,2,FALSE)*J172,\"\")","v":""},{"$f":"IFERROR(VLOOKUP(D172,'Species List'!$I$16:$J$61,2,FALSE)*J172,\"\")","v":""},{"$f":"IFERROR(VLOOKUP(D172,'Species List'!$I$66:$J$66,2,FALSE)*J172,\"\")","v":""},{"$f":"IFERROR(VLOOKUP(D172,'Species List'!$I$71:$J$82,2,FALSE)*J172,\"\")","v":""},0,null,null,null,null,null,null,{"$f":"IFERROR(INDEX('3 - Land Summary'!$B$21:$B$120,(MATCH(AD172,'3 - Land Summary'!$C$21:$C$120,0))),\"\")","v":""}]
[null,{"$f":"IFERROR(INDEX('3 - Land Summary'!$B$21:$B$120,(MATCH('4 - Species Breakdown'!$V173,'3 - Land Summary'!$C$21:$C$120,0))),\"\")","v":""},null,null,{"$f":"IF(OR(COUNTIF('Look Up Data'!$D$149:$D$203,D173),COUNTIF('Look Up Data'!$D$149:$D$203,AE173)),\"YES\",\"NO\")","v":"NO"},null,null,{"$f":"IFERROR(INDEX('3 - Land Summary'!$G$21:$G$120,(MATCH(C173,'3 - Land Summary'!$C$21:$C$120,0))),\"\")","v":""},{"$f":"IFERROR(INDEX('3 - Land Summary'!$I$21:$I$120,(MATCH(C173,'3 - Land Summary'!$C$21:$C$120,0))),\"\")","v":""},"","",null,null,null,{"$f":"IFERROR(VLOOKUP(D173,'Species List'!$D$10:$E$46,2,FALSE)*J173,\"\")","v":""},{"$f":"IFERROR(VLOOKUP(D173,'Species List'!$D$51:$E$89,2,FALSE)*J173,\"\")","v":""},{"$f":"IFERROR(VLOOKUP(D173,'Species List'!$D$95:$E$102,2,FALSE)*J173,\"\")","v":""},{"$f":"IFERROR(VLOOKUP(D173,'Species List'!$I$10:$J$11,2,FALSE)*J173,\"\")","v":""},{"$f":"IFERROR(VLOOKUP(D173,'Species List'!$I$16:$J$61,2,FALSE)*J173,\"\")","v":""},{"$f":"IFERROR(VLOOKUP(D173,'Species List'!$I$66:$J$66,2,FALSE)*J173,\"\")","v":""},{"$f":"IFERROR(VLOOKUP(D173,'Species List'!$I$71:$J$82,2,FALSE)*J173,\"\")","v":""},0,null,null,null,null,null,null,{"$f":"IFERROR(INDEX('3 - Land Summary'!$B$21:$B$120,(MATCH(AD173,'3 - Land Summary'!$C$21:$C$120,0))),\"\")","v":""}]
[null,{"$f":"IFERROR(INDEX('3 - Land Summary'!$B$21:$B$120,(MATCH('4 - Species Breakdown'!$V174,'3 - Land Summary'!$C$21:$C$120,0))),\"\")","v":""},null,null,{"$f":"IF(OR(COUNTIF('Look Up Data'!$D$149:$D$203,D174),COUNTIF('Look Up Data'!$D$149:$D$203,AE174)),\"YES\",\"NO\")","v":"NO"},null,null,{"$f":"IFERROR(INDEX('3 - Land Summary'!$G$21:$G$120,(MATCH(C174,'3 - Land Summary'!$C$21:$C$120,0))),\"\")","v":""},{"$f":"IFERROR(INDEX('3 - Land Summary'!$I$21:$I$120,(MATCH(C174,'3 - Land Summary'!$C$21:$C$120,0))),\"\")","v":""},"","",null,null,null,{"$f":"IFERROR(VLOOKUP(D174,'Species List'!$D$10:$E$46,2,FALSE)*J174,\"\")","v":""},{"$f":"IFERROR(VLOOKUP(D174,'Species List'!$D$51:$E$89,2,FALSE)*J174,\"\")","v":""},{"$f":"IFERROR(VLOOKUP(D174,'Species List'!$D$95:$E$102,2,FALSE)*J174,\"\")","v":""},{"$f":"IFERROR(VLOOKUP(D174,'Species List'!$I$10:$J$11,2,FALSE)*J174,\"\")","v":""},{"$f":"IFERROR(VLOOKUP(D174,'Species List'!$I$16:$J$61,2,FALSE)*J174,\"\")","v":""},{"$f":"IFERROR(VLOOKUP(D174,'Species List'!$I$66:$J$66,2,FALSE)*J174,\"\")","v":""},{"$f":"IFERROR(VLOOKUP(D174,'Species List'!$I$71:$J$82,2,FALSE)*J174,\"\")","v":""},0,null,null,null,null,null,null,{"$f":"IFERROR(INDEX('3 - Land Summary'!$B$21:$B$120,(MATCH(AD174,'3 - Land Summary'!$C$21:$C$120,0))),\"\")","v":""}]
[null,{"$f":"IFERROR(INDEX('3 - Land Summary'!$B$21:$B$120,(MATCH('4 - Species Breakdown'!$V175,'3 - Land Summary'!$C$21:$C$120,0))),\"\")","v":""},null,null,{"$f":"IF(OR(COUNTIF('Look Up Data'!$D$149:$D$203,D175),COUNTIF('Look Up Data'!$D$149:$D$203,AE175)),\"YES\",\"NO\")","v":"NO"},null,null,{"$f":"IFERROR(INDEX('3 - Land Summary'!$G$21:$G$120,(MATCH(C175,'3 - Land Summary'!$C$21:$C$120,0))),\"\")","v":""},{"$f":"IFERROR(INDEX('3 - Land Summary'!$I$21:$I$120,(MATCH(C175,'3 - Land Summary'!$C$21:$C$120,0))),\"\")","v":""},"","",null,null,null,{"$f":"IFERROR(VLOOKUP(D175,'Species List'!$D$10:$E$46,2,FALSE)*J175,\"\")","v":""},{"$f":"IFERROR(VLOOKUP(D175,'Species List'!$D$51:$E$89,2,FALSE)*J175,\"\")","v":""},{"$f":"IFERROR(VLOOKUP(D175,'Species List'!$D$95:$E$102,2,FALSE)*J175,\"\")","v":""},{"$f":"IFERROR(VLOOKUP(D175,'Species List'!$I$10:$J$11,2,FALSE)*J175,\"\")","v":""},{"$f":"IFERROR(VLOOKUP(D175,'Species List'!$I$16:$J$61,2,FALSE)*J175,\"\")","v":""},{"$f":"IFERROR(VLOOKUP(D175,'Species List'!$I$66:$J$66,2,FALSE)*J175,\"\")","v":""},{"$f":"IFERROR(VLOOKUP(D175,'Species List'!$I$71:$J$82,2,FALSE)*J175,\"\")","v":""},0,null,null,null,null,null,null,{"$f":"IFERROR(INDEX('3 - Land Summary'!$B$21:$B$120,(MATCH(AD175,'3 - Land Summary'!$C$21:$C$120,0))),\"\")","v":""}]
[null,{"$f":"IFERROR(INDEX('3 - Land Summary'!$B$21:$B$120,(MATCH('4 - Species Breakdown'!$V176,'3 - Land Summary'!$C$21:$C$120,0))),\"\")","v":""},null,null,{"$f":"IF(OR(COUNTIF('Look Up Data'!$D$149:$D$203,D176),COUNTIF('Look Up Data'!$D$149:$D$203,AE176)),\"YES\",\"NO\")","v":"NO"},null,null,{"$f":"IFERROR(INDEX('3 - Land Summary'!$G$21:$G$120,(MATCH(C176,'3 - Land Summary'!$C$21:$C$120,0))),\"\")","v":""},{"$f":"IFERROR(INDEX('3 - Land Summary'!$I$21:$I$120,(MATCH(C176,'3 - Land Summary'!$C$21:$C$120,0))),\"\")","v":""},"","",null,null,null,{"$f":"IFERROR(VLOOKUP(D176,'Species List'!$D$10:$E$46,2,FALSE)*J176,\"\")","v":""},{"$f":"IFERROR(VLOOKUP(D176,'Species List'!$D$51:$E$89,2,FALSE)*J176,\"\")","v":""},{"$f":"IFERROR(VLOOKUP(D176,'Species List'!$D$95:$E$102,2,FALSE)*J176,\"\")","v":""},{"$f":"IFERROR(VLOOKUP(D176,'Species List'!$I$10:$J$11,2,FALSE)*J176,\"\")","v":""},{"$f":"IFERROR(VLOOKUP(D176,'Species List'!$I$16:$J$61,2,FALSE)*J176,\"\")","v":""},{"$f":"IFERROR(VLOOKUP(D176,'Species List'!$I$66:$J$66,2,FALSE)*J176,\"\")","v":""},{"$f":"IFERROR(VLOOKUP(D176,'Species List'!$I$71:$J$82,2,FALSE)*J176,\"\")","v":""},0,null,null,null,null,null,null,{"$f":"IFERROR(INDEX('3 - Land Summary'!$B$21:$B$120,(MATCH(AD176,'3 - Land Summary'!$C$21:$C$120,0))),\"\")","v":""}]
[null,{"$f":"IFERROR(INDEX('3 - Land Summary'!$B$21:$B$120,(MATCH('4 - Species Breakdown'!$V177,'3 - Land Summary'!$C$21:$C$120,0))),\"\")","v":""},null,null,{"$f":"IF(OR(COUNTIF('Look Up Data'!$D$149:$D$203,D177),COUNTIF('Look Up Data'!$D$149:$D$203,AE177)),\"YES\",\"NO\")","v":"NO"},null,null,{"$f":"IFERROR(INDEX('3 - Land Summary'!$G$21:$G$120,(MATCH(C177,'3 - Land Summary'!$C$21:$C$120,0))),\"\")","v":""},{"$f":"IFERROR(INDEX('3 - Land Summary'!$I$21:$I$120,(MATCH(C177,'3 - Land Summary'!$C$21:$C$120,0))),\"\")","v":""},"","",null,null,null,{"$f":"IFERROR(VLOOKUP(D177,'Species List'!$D$10:$E$46,2,FALSE)*J177,\"\")","v":""},{"$f":"IFERROR(VLOOKUP(D177,'Species List'!$D$51:$E$89,2,FALSE)*J177,\"\")","v":""},{"$f":"IFERROR(VLOOKUP(D177,'Species List'!$D$95:$E$102,2,FALSE)*J177,\"\")","v":""},{"$f":"IFERROR(VLOOKUP(D177,'Species List'!$I$10:$J$11,2,FALSE)*J177,\"\")","v":""},{"$f":"IFERROR(VLOOKUP(D177,'Species List'!$I$16:$J$61,2,FALSE)*J177,\"\")","v":""},{"$f":"IFERROR(VLOOKUP(D177,'Species List'!$I$66:$J$66,2,FALSE)*J177,\"\")","v":""},{"$f":"IFERROR(VLOOKUP(D177,'Species List'!$I$71:$J$82,2,FALSE)*J177,\"\")","v":""},0,null,null,null,null,null,null,{"$f":"IFERROR(INDEX('3 - Land Summary'!$B$21:$B$120,(MATCH(AD177,'3 - Land Summary'!$C$21:$C$120,0))),\"\")","v":""}]
[null,{"$f":"IFERROR(INDEX('3 - Land Summary'!$B$21:$B$120,(MATCH('4 - Species Breakdown'!$V178,'3 - Land Summary'!$C$21:$C$120,0))),\"\")","v":""},null,null,{"$f":"IF(OR(COUNTIF('Look Up Data'!$D$149:$D$203,D178),COUNTIF('Look Up Data'!$D$149:$D$203,AE178)),\"YES\",\"NO\")","v":"NO"},null,null,{"$f":"IFERROR(INDEX('3 - Land Summary'!$G$21:$G$120,(MATCH(C178,'3 - Land Summary'!$C$21:$C$120,0))),\"\")","v":""},{"$f":"IFERROR(INDEX('3 - Land Summary'!$I$21:$I$120,(MATCH(C178,'3 - Land Summary'!$C$21:$C$120,0))),\"\")","v":""},"","",null,null,null,{"$f":"IFERROR(VLOOKUP(D178,'Species List'!$D$10:$E$46,2,FALSE)*J178,\"\")","v":""},{"$f":"IFERROR(VLOOKUP(D178,'Species List'!$D$51:$E$89,2,FALSE)*J178,\"\")","v":""},{"$f":"IFERROR(VLOOKUP(D178,'Species List'!$D$95:$E$102,2,FALSE)*J178,\"\")","v":""},{"$f":"IFERROR(VLOOKUP(D178,'Species List'!$I$10:$J$11,2,FALSE)*J178,\"\")","v":""},{"$f":"IFERROR(VLOOKUP(D178,'Species List'!$I$16:$J$61,2,FALSE)*J178,\"\")","v":""},{"$f":"IFERROR(VLOOKUP(D178,'Species List'!$I$66:$J$66,2,FALSE)*J178,\"\")","v":""},{"$f":"IFERROR(VLOOKUP(D178,'Species List'!$I$71:$J$82,2,FALSE)*J178,\"\")","v":""},0,null,null,null,null,null,null,{"$f":"IFERROR(INDEX('3 - Land Summary'!$B$21:$B$120,(MATCH(AD178,'3 - Land Summary'!$C$21:$C$120,0))),\"\")","v":""}]
[null,{"$f":"IFERROR(INDEX('3 - Land Summary'!$B$21:$B$120,(MATCH('4 - Species Breakdown'!$V179,'3 - Land Summary'!$C$21:$C$120,0))),\"\")","v":""},null,null,{"$f":"IF(OR(COUNTIF('Look Up Data'!$D$149:$D$203,D179),COUNTIF('Look Up Data'!$D$149:$D$203,AE179)),\"YES\",\"NO\")","v":"NO"},null,null,{"$f":"IFERROR(INDEX('3 - Land Summary'!$G$21:$G$120,(MATCH(C179,'3 - Land Summary'!$C$21:$C$120,0))),\"\")","v":""},{"$f":"IFERROR(INDEX('3 - Land Summary'!$I$21:$I$120,(MATCH(C179,'3 - Land Summary'!$C$21:$C$120,0))),\"\")","v":""},"","",null,null,null,{"$f":"IFERROR(VLOOKUP(D179,'Species List'!$D$10:$E$46,2,FALSE)*J179,\"\")","v":""},{"$f":"IFERROR(VLOOKUP(D179,'Species List'!$D$51:$E$89,2,FALSE)*J179,\"\")","v":""},{"$f":"IFERROR(VLOOKUP(D179,'Species List'!$D$95:$E$102,2,FALSE)*J179,\"\")","v":""},{"$f":"IFERROR(VLOOKUP(D179,'Species List'!$I$10:$J$11,2,FALSE)*J179,\"\")","v":""},{"$f":"IFERROR(VLOOKUP(D179,'Species List'!$I$16:$J$61,2,FALSE)*J179,\"\")","v":""},{"$f":"IFERROR(VLOOKUP(D179,'Species List'!$I$66:$J$66,2,FALSE)*J179,\"\")","v":""},{"$f":"IFERROR(VLOOKUP(D179,'Species List'!$I$71:$J$82,2,FALSE)*J179,\"\")","v":""},0,null,null,null,null,null,null,{"$f":"IFERROR(INDEX('3 - Land Summary'!$B$21:$B$120,(MATCH(AD179,'3 - Land Summary'!$C$21:$C$120,0))),\"\")","v":""}]
[null,{"$f":"IFERROR(INDEX('3 - Land Summary'!$B$21:$B$120,(MATCH('4 - Species Breakdown'!$V180,'3 - Land Summary'!$C$21:$C$120,0))),\"\")","v":""},null,null,{"$f":"IF(OR(COUNTIF('Look Up Data'!$D$149:$D$203,D180),COUNTIF('Look Up Data'!$D$149:$D$203,AE180)),\"YES\",\"NO\")","v":"NO"},null,null,{"$f":"IFERROR(INDEX('3 - Land Summary'!$G$21:$G$120,(MATCH(C180,'3 - Land Summary'!$C$21:$C$120,0))),\"\")","v":""},{"$f":"IFERROR(INDEX('3 - Land Summary'!$I$21:$I$120,(MATCH(C180,'3 - Land Summary'!$C$21:$C$120,0))),\"\")","v":""},"","",null,null,null,{"$f":"IFERROR(VLOOKUP(D180,'Species List'!$D$10:$E$46,2,FALSE)*J180,\"\")","v":""},{"$f":"IFERROR(VLOOKUP(D180,'Species List'!$D$51:$E$89,2,FALSE)*J180,\"\")","v":""},{"$f":"IFERROR(VLOOKUP(D180,'Species List'!$D$95:$E$102,2,FALSE)*J180,\"\")","v":""},{"$f":"IFERROR(VLOOKUP(D180,'Species List'!$I$10:$J$11,2,FALSE)*J180,\"\")","v":""},{"$f":"IFERROR(VLOOKUP(D180,'Species List'!$I$16:$J$61,2,FALSE)*J180,\"\")","v":""},{"$f":"IFERROR(VLOOKUP(D180,'Species List'!$I$66:$J$66,2,FALSE)*J180,\"\")","v":""},{"$f":"IFERROR(VLOOKUP(D180,'Species List'!$I$71:$J$82,2,FALSE)*J180,\"\")","v":""},0,null,null,null,null,null,null,{"$f":"IFERROR(INDEX('3 - Land Summary'!$B$21:$B$120,(MATCH(AD180,'3 - Land Summary'!$C$21:$C$120,0))),\"\")","v":""}]
[null,{"$f":"IFERROR(INDEX('3 - Land Summary'!$B$21:$B$120,(MATCH('4 - Species Breakdown'!$V181,'3 - Land Summary'!$C$21:$C$120,0))),\"\")","v":""},null,null,{"$f":"IF(OR(COUNTIF('Look Up Data'!$D$149:$D$203,D181),COUNTIF('Look Up Data'!$D$149:$D$203,AE181)),\"YES\",\"NO\")","v":"NO"},null,null,{"$f":"IFERROR(INDEX('3 - Land Summary'!$G$21:$G$120,(MATCH(C181,'3 - Land Summary'!$C$21:$C$120,0))),\"\")","v":""},{"$f":"IFERROR(INDEX('3 - Land Summary'!$I$21:$I$120,(MATCH(C181,'3 - Land Summary'!$C$21:$C$120,0))),\"\")","v":""},"","",null,null,null,{"$f":"IFERROR(VLOOKUP(D181,'Species List'!$D$10:$E$46,2,FALSE)*J181,\"\")","v":""},{"$f":"IFERROR(VLOOKUP(D181,'Species List'!$D$51:$E$89,2,FALSE)*J181,\"\")","v":""},{"$f":"IFERROR(VLOOKUP(D181,'Species List'!$D$95:$E$102,2,FALSE)*J181,\"\")","v":""},{"$f":"IFERROR(VLOOKUP(D181,'Species List'!$I$10:$J$11,2,FALSE)*J181,\"\")","v":""},{"$f":"IFERROR(VLOOKUP(D181,'Species List'!$I$16:$J$61,2,FALSE)*J181,\"\")","v":""},{"$f":"IFERROR(VLOOKUP(D181,'Species List'!$I$66:$J$66,2,FALSE)*J181,\"\")","v":""},{"$f":"IFERROR(VLOOKUP(D181,'Species List'!$I$71:$J$82,2,FALSE)*J181,\"\")","v":""},0,null,null,null,null,null,null,{"$f":"IFERROR(INDEX('3 - Land Summary'!$B$21:$B$120,(MATCH(AD181,'3 - Land Summary'!$C$21:$C$120,0))),\"\")","v":""}]
[null,{"$f":"IFERROR(INDEX('3 - Land Summary'!$B$21:$B$120,(MATCH('4 - Species Breakdown'!$V182,'3 - Land Summary'!$C$21:$C$120,0))),\"\")","v":""},null,null,{"$f":"IF(OR(COUNTIF('Look Up Data'!$D$149:$D$203,D182),COUNTIF('Look Up Data'!$D$149:$D$203,AE182)),\"YES\",\"NO\")","v":"NO"},null,null,{"$f":"IFERROR(INDEX('3 - Land Summary'!$G$21:$G$120,(MATCH(C182,'3 - Land Summary'!$C$21:$C$120,0))),\"\")","v":""},{"$f":"IFERROR(INDEX('3 - Land Summary'!$I$21:$I$120,(MATCH(C182,'3 - Land Summary'!$C$21:$C$120,0))),\"\")","v":""},"","",null,null,null,{"$f":"IFERROR(VLOOKUP(D182,'Species List'!$D$10:$E$46,2,FALSE)*J182,\"\")","v":""},{"$f":"IFERROR(VLOOKUP(D182,'Species List'!$D$51:$E$89,2,FALSE)*J182,\"\")","v":""},{"$f":"IFERROR(VLOOKUP(D182,'Species List'!$D$95:$E$102,2,FALSE)*J182,\"\")","v":""},{"$f":"IFERROR(VLOOKUP(D182,'Species List'!$I$10:$J$11,2,FALSE)*J182,\"\")","v":""},{"$f":"IFERROR(VLOOKUP(D182,'Species List'!$I$16:$J$61,2,FALSE)*J182,\"\")","v":""},{"$f":"IFERROR(VLOOKUP(D182,'Species List'!$I$66:$J$66,2,FALSE)*J182,\"\")","v":""},{"$f":"IFERROR(VLOOKUP(D182,'Species List'!$I$71:$J$82,2,FALSE)*J182,\"\")","v":""},0,null,null,null,null,null,null,{"$f":"IFERROR(INDEX('3 - Land Summary'!$B$21:$B$120,(MATCH(AD182,'3 - Land Summary'!$C$21:$C$120,0))),\"\")","v":""}]
[null,{"$f":"IFERROR(INDEX('3 - Land Summary'!$B$21:$B$120,(MATCH('4 - Species Breakdown'!$V183,'3 - Land Summary'!$C$21:$C$120,0))),\"\")","v":""},null,null,{"$f":"IF(OR(COUNTIF('Look Up Data'!$D$149:$D$203,D183),COUNTIF('Look Up Data'!$D$149:$D$203,AE183)),\"YES\",\"NO\")","v":"NO"},null,null,{"$f":"IFERROR(INDEX('3 - Land Summary'!$G$21:$G$120,(MATCH(C183,'3 - Land Summary'!$C$21:$C$120,0))),\"\")","v":""},{"$f":"IFERROR(INDEX('3 - Land Summary'!$I$21:$I$120,(MATCH(C183,'3 - Land Summary'!$C$21:$C$120,0))),\"\")","v":""},"","",null,null,null,{"$f":"IFERROR(VLOOKUP(D183,'Species List'!$D$10:$E$46,2,FALSE)*J183,\"\")","v":""},{"$f":"IFERROR(VLOOKUP(D183,'Species List'!$D$51:$E$89,2,FALSE)*J183,\"\")","v":""},{"$f":"IFERROR(VLOOKUP(D183,'Species List'!$D$95:$E$102,2,FALSE)*J183,\"\")","v":""},{"$f":"IFERROR(VLOOKUP(D183,'Species List'!$I$10:$J$11,2,FALSE)*J183,\"\")","v":""},{"$f":"IFERROR(VLOOKUP(D183,'Species List'!$I$16:$J$61,2,FALSE)*J183,\"\")","v":""},{"$f":"IFERROR(VLOOKUP(D183,'Species List'!$I$66:$J$66,2,FALSE)*J183,\"\")","v":""},{"$f":"IFERROR(VLOOKUP(D183,'Species List'!$I$71:$J$82,2,FALSE)*J183,\"\")","v":""},0,null,null,null,null,null,null,{"$f":"IFERROR(INDEX('3 - Land Summary'!$B$21:$B$120,(MATCH(AD183,'3 - Land Summary'!$C$21:$C$120,0))),\"\")","v":""}]
[null,{"$f":"IFERROR(INDEX('3 - Land Summary'!$B$21:$B$120,(MATCH('4 - Species Breakdown'!$V184,'3 - Land Summary'!$C$21:$C$120,0))),\"\")","v":""},null,null,{"$f":"IF(OR(COUNTIF('Look Up Data'!$D$149:$D$203,D184),COUNTIF('Look Up Data'!$D$149:$D$203,AE184)),\"YES\",\"NO\")","v":"NO"},null,null,{"$f":"IFERROR(INDEX('3 - Land Summary'!$G$21:$G$120,(MATCH(C184,'3 - Land Summary'!$C$21:$C$120,0))),\"\")","v":""},{"$f":"IFERROR(INDEX('3 - Land Summary'!$I$21:$I$120,(MATCH(C184,'3 - Land Summary'!$C$21:$C$120,0))),\"\")","v":""},"","",null,null,null,{"$f":"IFERROR(VLOOKUP(D184,'Species List'!$D$10:$E$46,2,FALSE)*J184,\"\")","v":""},{"$f":"IFERROR(VLOOKUP(D184,'Species List'!$D$51:$E$89,2,FALSE)*J184,\"\")","v":""},{"$f":"IFERROR(VLOOKUP(D184,'Species List'!$D$95:$E$102,2,FALSE)*J184,\"\")","v":""},{"$f":"IFERROR(VLOOKUP(D184,'Species List'!$I$10:$J$11,2,FALSE)*J184,\"\")","v":""},{"$f":"IFERROR(VLOOKUP(D184,'Species List'!$I$16:$J$61,2,FALSE)*J184,\"\")","v":""},{"$f":"IFERROR(VLOOKUP(D184,'Species List'!$I$66:$J$66,2,FALSE)*J184,\"\")","v":""},{"$f":"IFERROR(VLOOKUP(D184,'Species List'!$I$71:$J$82,2,FALSE)*J184,\"\")","v":""},0,null,null,null,null,null,null,{"$f":"IFERROR(INDEX('3 - Land Summary'!$B$21:$B$120,(MATCH(AD184,'3 - Land Summary'!$C$21:$C$120,0))),\"\")","v":""}]
[null,{"$f":"IFERROR(INDEX('3 - Land Summary'!$B$21:$B$120,(MATCH('4 - Species Breakdown'!$V185,'3 - Land Summary'!$C$21:$C$120,0))),\"\")","v":""},null,null,{"$f":"IF(OR(COUNTIF('Look Up Data'!$D$149:$D$203,D185),COUNTIF('Look Up Data'!$D$149:$D$203,AE185)),\"YES\",\"NO\")","v":"NO"},null,null,{"$f":"IFERROR(INDEX('3 - Land Summary'!$G$21:$G$120,(MATCH(C185,'3 - Land Summary'!$C$21:$C$120,0))),\"\")","v":""},{"$f":"IFERROR(INDEX('3 - Land Summary'!$I$21:$I$120,(MATCH(C185,'3 - Land Summary'!$C$21:$C$120,0))),\"\")","v":""},"","",null,null,null,{"$f":"IFERROR(VLOOKUP(D185,'Species List'!$D$10:$E$46,2,FALSE)*J185,\"\")","v":""},{"$f":"IFERROR(VLOOKUP(D185,'Species List'!$D$51:$E$89,2,FALSE)*J185,\"\")","v":""},{"$f":"IFERROR(VLOOKUP(D185,'Species List'!$D$95:$E$102,2,FALSE)*J185,\"\")","v":""},{"$f":"IFERROR(VLOOKUP(D185,'Species List'!$I$10:$J$11,2,FALSE)*J185,\"\")","v":""},{"$f":"IFERROR(VLOOKUP(D185,'Species List'!$I$16:$J$61,2,FALSE)*J185,\"\")","v":""},{"$f":"IFERROR(VLOOKUP(D185,'Species List'!$I$66:$J$66,2,FALSE)*J185,\"\")","v":""},{"$f":"IFERROR(VLOOKUP(D185,'Species List'!$I$71:$J$82,2,FALSE)*J185,\"\")","v":""},0,null,null,null,null,null,null,{"$f":"IFERROR(INDEX('3 - Land Summary'!$B$21:$B$120,(MATCH(AD185,'3 - Land Summary'!$C$21:$C$120,0))),\"\")","v":""}]
[null,{"$f":"IFERROR(INDEX('3 - Land Summary'!$B$21:$B$120,(MATCH('4 - Species Breakdown'!$V186,'3 - Land Summary'!$C$21:$C$120,0))),\"\")","v":""},null,null,{"$f":"IF(OR(COUNTIF('Look Up Data'!$D$149:$D$203,D186),COUNTIF('Look Up Data'!$D$149:$D$203,AE186)),\"YES\",\"NO\")","v":"NO"},null,null,{"$f":"IFERROR(INDEX('3 - Land Summary'!$G$21:$G$120,(MATCH(C186,'3 - Land Summary'!$C$21:$C$120,0))),\"\")","v":""},{"$f":"IFERROR(INDEX('3 - Land Summary'!$I$21:$I$120,(MATCH(C186,'3 - Land Summary'!$C$21:$C$120,0))),\"\")","v":""},"","",null,null,null,{"$f":"IFERROR(VLOOKUP(D186,'Species List'!$D$10:$E$46,2,FALSE)*J186,\"\")","v":""},{"$f":"IFERROR(VLOOKUP(D186,'Species List'!$D$51:$E$89,2,FALSE)*J186,\"\")","v":""},{"$f":"IFERROR(VLOOKUP(D186,'Species List'!$D$95:$E$102,2,FALSE)*J186,\"\")","v":""},{"$f":"IFERROR(VLOOKUP(D186,'Species List'!$I$10:$J$11,2,FALSE)*J186,\"\")","v":""},{"$f":"IFERROR(VLOOKUP(D186,'Species List'!$I$16:$J$61,2,FALSE)*J186,\"\")","v":""},{"$f":"IFERROR(VLOOKUP(D186,'Species List'!$I$66:$J$66,2,FALSE)*J186,\"\")","v":""},{"$f":"IFERROR(VLOOKUP(D186,'Species List'!$I$71:$J$82,2,FALSE)*J186,\"\")","v":""},0,null,null,null,null,null,null,{"$f":"IFERROR(INDEX('3 - Land Summary'!$B$21:$B$120,(MATCH(AD186,'3 - Land Summary'!$C$21:$C$120,0))),\"\")","v":""}]
[null,{"$f":"IFERROR(INDEX('3 - Land Summary'!$B$21:$B$120,(MATCH('4 - Species Breakdown'!$V187,'3 - Land Summary'!$C$21:$C$120,0))),\"\")","v":""},null,null,{"$f":"IF(OR(COUNTIF('Look Up Data'!$D$149:$D$203,D187),COUNTIF('Look Up Data'!$D$149:$D$203,AE187)),\"YES\",\"NO\")","v":"NO"},null,null,{"$f":"IFERROR(INDEX('3 - Land Summary'!$G$21:$G$120,(MATCH(C187,'3 - Land Summary'!$C$21:$C$120,0))),\"\")","v":""},{"$f":"IFERROR(INDEX('3 - Land Summary'!$I$21:$I$120,(MATCH(C187,'3 - Land Summary'!$C$21:$C$120,0))),\"\")","v":""},"","",null,null,null,{"$f":"IFERROR(VLOOKUP(D187,'Species List'!$D$10:$E$46,2,FALSE)*J187,\"\")","v":""},{"$f":"IFERROR(VLOOKUP(D187,'Species List'!$D$51:$E$89,2,FALSE)*J187,\"\")","v":""},{"$f":"IFERROR(VLOOKUP(D187,'Species List'!$D$95:$E$102,2,FALSE)*J187,\"\")","v":""},{"$f":"IFERROR(VLOOKUP(D187,'Species List'!$I$10:$J$11,2,FALSE)*J187,\"\")","v":""},{"$f":"IFERROR(VLOOKUP(D187,'Species List'!$I$16:$J$61,2,FALSE)*J187,\"\")","v":""},{"$f":"IFERROR(VLOOKUP(D187,'Species List'!$I$66:$J$66,2,FALSE)*J187,\"\")","v":""},{"$f":"IFERROR(VLOOKUP(D187,'Species List'!$I$71:$J$82,2,FALSE)*J187,\"\")","v":""},0,null,null,null,null,null,null,{"$f":"IFERROR(INDEX('3 - Land Summary'!$B$21:$B$120,(MATCH(AD187,'3 - Land Summary'!$C$21:$C$120,0))),\"\")","v":""}]
[null,{"$f":"IFERROR(INDEX('3 - Land Summary'!$B$21:$B$120,(MATCH('4 - Species Breakdown'!$V188,'3 - Land Summary'!$C$21:$C$120,0))),\"\")","v":""},null,null,{"$f":"IF(OR(COUNTIF('Look Up Data'!$D$149:$D$203,D188),COUNTIF('Look Up Data'!$D$149:$D$203,AE188)),\"YES\",\"NO\")","v":"NO"},null,null,{"$f":"IFERROR(INDEX('3 - Land Summary'!$G$21:$G$120,(MATCH(C188,'3 - Land Summary'!$C$21:$C$120,0))),\"\")","v":""},{"$f":"IFERROR(INDEX('3 - Land Summary'!$I$21:$I$120,(MATCH(C188,'3 - Land Summary'!$C$21:$C$120,0))),\"\")","v":""},"","",null,null,null,{"$f":"IFERROR(VLOOKUP(D188,'Species List'!$D$10:$E$46,2,FALSE)*J188,\"\")","v":""},{"$f":"IFERROR(VLOOKUP(D188,'Species List'!$D$51:$E$89,2,FALSE)*J188,\"\")","v":""},{"$f":"IFERROR(VLOOKUP(D188,'Species List'!$D$95:$E$102,2,FALSE)*J188,\"\")","v":""},{"$f":"IFERROR(VLOOKUP(D188,'Species List'!$I$10:$J$11,2,FALSE)*J188,\"\")","v":""},{"$f":"IFERROR(VLOOKUP(D188,'Species List'!$I$16:$J$61,2,FALSE)*J188,\"\")","v":""},{"$f":"IFERROR(VLOOKUP(D188,'Species List'!$I$66:$J$66,2,FALSE)*J188,\"\")","v":""},{"$f":"IFERROR(VLOOKUP(D188,'Species List'!$I$71:$J$82,2,FALSE)*J188,\"\")","v":""},0,null,null,null,null,null,null,{"$f":"IFERROR(INDEX('3 - Land Summary'!$B$21:$B$120,(MATCH(AD188,'3 - Land Summary'!$C$21:$C$120,0))),\"\")","v":""}]
[null,{"$f":"IFERROR(INDEX('3 - Land Summary'!$B$21:$B$120,(MATCH('4 - Species Breakdown'!$V189,'3 - Land Summary'!$C$21:$C$120,0))),\"\")","v":""},null,null,{"$f":"IF(OR(COUNTIF('Look Up Data'!$D$149:$D$203,D189),COUNTIF('Look Up Data'!$D$149:$D$203,AE189)),\"YES\",\"NO\")","v":"NO"},null,null,{"$f":"IFERROR(INDEX('3 - Land Summary'!$G$21:$G$120,(MATCH(C189,'3 - Land Summary'!$C$21:$C$120,0))),\"\")","v":""},{"$f":"IFERROR(INDEX('3 - Land Summary'!$I$21:$I$120,(MATCH(C189,'3 - Land Summary'!$C$21:$C$120,0))),\"\")","v":""},"","",null,null,null,{"$f":"IFERROR(VLOOKUP(D189,'Species List'!$D$10:$E$46,2,FALSE)*J189,\"\")","v":""},{"$f":"IFERROR(VLOOKUP(D189,'Species List'!$D$51:$E$89,2,FALSE)*J189,\"\")","v":""},{"$f":"IFERROR(VLOOKUP(D189,'Species List'!$D$95:$E$102,2,FALSE)*J189,\"\")","v":""},{"$f":"IFERROR(VLOOKUP(D189,'Species List'!$I$10:$J$11,2,FALSE)*J189,\"\")","v":""},{"$f":"IFERROR(VLOOKUP(D189,'Species List'!$I$16:$J$61,2,FALSE)*J189,\"\")","v":""},{"$f":"IFERROR(VLOOKUP(D189,'Species List'!$I$66:$J$66,2,FALSE)*J189,\"\")","v":""},{"$f":"IFERROR(VLOOKUP(D189,'Species List'!$I$71:$J$82,2,FALSE)*J189,\"\")","v":""},0,null,null,null,null,null,null,{"$f":"IFERROR(INDEX('3 - Land Summary'!$B$21:$B$120,(MATCH(AD189,'3 - Land Summary'!$C$21:$C$120,0))),\"\")","v":""}]
[null,{"$f":"IFERROR(INDEX('3 - Land Summary'!$B$21:$B$120,(MATCH('4 - Species Breakdown'!$V190,'3 - Land Summary'!$C$21:$C$120,0))),\"\")","v":""},null,null,{"$f":"IF(OR(COUNTIF('Look Up Data'!$D$149:$D$203,D190),COUNTIF('Look Up Data'!$D$149:$D$203,AE190)),\"YES\",\"NO\")","v":"NO"},null,null,{"$f":"IFERROR(INDEX('3 - Land Summary'!$G$21:$G$120,(MATCH(C190,'3 - Land Summary'!$C$21:$C$120,0))),\"\")","v":""},{"$f":"IFERROR(INDEX('3 - Land Summary'!$I$21:$I$120,(MATCH(C190,'3 - Land Summary'!$C$21:$C$120,0))),\"\")","v":""},"","",null,null,null,{"$f":"IFERROR(VLOOKUP(D190,'Species List'!$D$10:$E$46,2,FALSE)*J190,\"\")","v":""},{"$f":"IFERROR(VLOOKUP(D190,'Species List'!$D$51:$E$89,2,FALSE)*J190,\"\")","v":""},{"$f":"IFERROR(VLOOKUP(D190,'Species List'!$D$95:$E$102,2,FALSE)*J190,\"\")","v":""},{"$f":"IFERROR(VLOOKUP(D190,'Species List'!$I$10:$J$11,2,FALSE)*J190,\"\")","v":""},{"$f":"IFERROR(VLOOKUP(D190,'Species List'!$I$16:$J$61,2,FALSE)*J190,\"\")","v":""},{"$f":"IFERROR(VLOOKUP(D190,'Species List'!$I$66:$J$66,2,FALSE)*J190,\"\")","v":""},{"$f":"IFERROR(VLOOKUP(D190,'Species List'!$I$71:$J$82,2,FALSE)*J190,\"\")","v":""},0,null,null,null,null,null,null,{"$f":"IFERROR(INDEX('3 - Land Summary'!$B$21:$B$120,(MATCH(AD190,'3 - Land Summary'!$C$21:$C$120,0))),\"\")","v":""}]
[null,{"$f":"IFERROR(INDEX('3 - Land Summary'!$B$21:$B$120,(MATCH('4 - Species Breakdown'!$V191,'3 - Land Summary'!$C$21:$C$120,0))),\"\")","v":""},null,null,{"$f":"IF(OR(COUNTIF('Look Up Data'!$D$149:$D$203,D191),COUNTIF('Look Up Data'!$D$149:$D$203,AE191)),\"YES\",\"NO\")","v":"NO"},null,null,{"$f":"IFERROR(INDEX('3 - Land Summary'!$G$21:$G$120,(MATCH(C191,'3 - Land Summary'!$C$21:$C$120,0))),\"\")","v":""},{"$f":"IFERROR(INDEX('3 - Land Summary'!$I$21:$I$120,(MATCH(C191,'3 - Land Summary'!$C$21:$C$120,0))),\"\")","v":""},"","",null,null,null,{"$f":"IFERROR(VLOOKUP(D191,'Species List'!$D$10:$E$46,2,FALSE)*J191,\"\")","v":""},{"$f":"IFERROR(VLOOKUP(D191,'Species List'!$D$51:$E$89,2,FALSE)*J191,\"\")","v":""},{"$f":"IFERROR(VLOOKUP(D191,'Species List'!$D$95:$E$102,2,FALSE)*J191,\"\")","v":""},{"$f":"IFERROR(VLOOKUP(D191,'Species List'!$I$10:$J$11,2,FALSE)*J191,\"\")","v":""},{"$f":"IFERROR(VLOOKUP(D191,'Species List'!$I$16:$J$61,2,FALSE)*J191,\"\")","v":""},{"$f":"IFERROR(VLOOKUP(D191,'Species List'!$I$66:$J$66,2,FALSE)*J191,\"\")","v":""},{"$f":"IFERROR(VLOOKUP(D191,'Species List'!$I$71:$J$82,2,FALSE)*J191,\"\")","v":""},0,null,null,null,null,null,null,{"$f":"IFERROR(INDEX('3 - Land Summary'!$B$21:$B$120,(MATCH(AD191,'3 - Land Summary'!$C$21:$C$120,0))),\"\")","v":""}]
[null,{"$f":"IFERROR(INDEX('3 - Land Summary'!$B$21:$B$120,(MATCH('4 - Species Breakdown'!$V192,'3 - Land Summary'!$C$21:$C$120,0))),\"\")","v":""},null,null,{"$f":"IF(OR(COUNTIF('Look Up Data'!$D$149:$D$203,D192),COUNTIF('Look Up Data'!$D$149:$D$203,AE192)),\"YES\",\"NO\")","v":"NO"},null,null,{"$f":"IFERROR(INDEX('3 - Land Summary'!$G$21:$G$120,(MATCH(C192,'3 - Land Summary'!$C$21:$C$120,0))),\"\")","v":""},{"$f":"IFERROR(INDEX('3 - Land Summary'!$I$21:$I$120,(MATCH(C192,'3 - Land Summary'!$C$21:$C$120,0))),\"\")","v":""},"","",null,null,null,{"$f":"IFERROR(VLOOKUP(D192,'Species List'!$D$10:$E$46,2,FALSE)*J192,\"\")","v":""},{"$f":"IFERROR(VLOOKUP(D192,'Species List'!$D$51:$E$89,2,FALSE)*J192,\"\")","v":""},{"$f":"IFERROR(VLOOKUP(D192,'Species List'!$D$95:$E$102,2,FALSE)*J192,\"\")","v":""},{"$f":"IFERROR(VLOOKUP(D192,'Species List'!$I$10:$J$11,2,FALSE)*J192,\"\")","v":""},{"$f":"IFERROR(VLOOKUP(D192,'Species List'!$I$16:$J$61,2,FALSE)*J192,\"\")","v":""},{"$f":"IFERROR(VLOOKUP(D192,'Species List'!$I$66:$J$66,2,FALSE)*J192,\"\")","v":""},{"$f":"IFERROR(VLOOKUP(D192,'Species List'!$I$71:$J$82,2,FALSE)*J192,\"\")","v":""},0,null,null,null,null,null,null,{"$f":"IFERROR(INDEX('3 - Land Summary'!$B$21:$B$120,(MATCH(AD192,'3 - Land Summary'!$C$21:$C$120,0))),\"\")","v":""}]
[null,{"$f":"IFERROR(INDEX('3 - Land Summary'!$B$21:$B$120,(MATCH('4 - Species Breakdown'!$V193,'3 - Land Summary'!$C$21:$C$120,0))),\"\")","v":""},null,null,{"$f":"IF(OR(COUNTIF('Look Up Data'!$D$149:$D$203,D193),COUNTIF('Look Up Data'!$D$149:$D$203,AE193)),\"YES\",\"NO\")","v":"NO"},null,null,{"$f":"IFERROR(INDEX('3 - Land Summary'!$G$21:$G$120,(MATCH(C193,'3 - Land Summary'!$C$21:$C$120,0))),\"\")","v":""},{"$f":"IFERROR(INDEX('3 - Land Summary'!$I$21:$I$120,(MATCH(C193,'3 - Land Summary'!$C$21:$C$120,0))),\"\")","v":""},"","",null,null,null,{"$f":"IFERROR(VLOOKUP(D193,'Species List'!$D$10:$E$46,2,FALSE)*J193,\"\")","v":""},{"$f":"IFERROR(VLOOKUP(D193,'Species List'!$D$51:$E$89,2,FALSE)*J193,\"\")","v":""},{"$f":"IFERROR(VLOOKUP(D193,'Species List'!$D$95:$E$102,2,FALSE)*J193,\"\")","v":""},{"$f":"IFERROR(VLOOKUP(D193,'Species List'!$I$10:$J$11,2,FALSE)*J193,\"\")","v":""},{"$f":"IFERROR(VLOOKUP(D193,'Species List'!$I$16:$J$61,2,FALSE)*J193,\"\")","v":""},{"$f":"IFERROR(VLOOKUP(D193,'Species List'!$I$66:$J$66,2,FALSE)*J193,\"\")","v":""},{"$f":"IFERROR(VLOOKUP(D193,'Species List'!$I$71:$J$82,2,FALSE)*J193,\"\")","v":""},0,null,null,null,null,null,null,{"$f":"IFERROR(INDEX('3 - Land Summary'!$B$21:$B$120,(MATCH(AD193,'3 - Land Summary'!$C$21:$C$120,0))),\"\")","v":""}]
[null,{"$f":"IFERROR(INDEX('3 - Land Summary'!$B$21:$B$120,(MATCH('4 - Species Breakdown'!$V194,'3 - Land Summary'!$C$21:$C$120,0))),\"\")","v":""},null,null,{"$f":"IF(OR(COUNTIF('Look Up Data'!$D$149:$D$203,D194),COUNTIF('Look Up Data'!$D$149:$D$203,AE194)),\"YES\",\"NO\")","v":"NO"},null,null,{"$f":"IFERROR(INDEX('3 - Land Summary'!$G$21:$G$120,(MATCH(C194,'3 - Land Summary'!$C$21:$C$120,0))),\"\")","v":""},{"$f":"IFERROR(INDEX('3 - Land Summary'!$I$21:$I$120,(MATCH(C194,'3 - Land Summary'!$C$21:$C$120,0))),\"\")","v":""},"","",null,null,null,{"$f":"IFERROR(VLOOKUP(D194,'Species List'!$D$10:$E$46,2,FALSE)*J194,\"\")","v":""},{"$f":"IFERROR(VLOOKUP(D194,'Species List'!$D$51:$E$89,2,FALSE)*J194,\"\")","v":""},{"$f":"IFERROR(VLOOKUP(D194,'Species List'!$D$95:$E$102,2,FALSE)*J194,\"\")","v":""},{"$f":"IFERROR(VLOOKUP(D194,'Species List'!$I$10:$J$11,2,FALSE)*J194,\"\")","v":""},{"$f":"IFERROR(VLOOKUP(D194,'Species List'!$I$16:$J$61,2,FALSE)*J194,\"\")","v":""},{"$f":"IFERROR(VLOOKUP(D194,'Species List'!$I$66:$J$66,2,FALSE)*J194,\"\")","v":""},{"$f":"IFERROR(VLOOKUP(D194,'Species List'!$I$71:$J$82,2,FALSE)*J194,\"\")","v":""},0,null,null,null,null,null,null,{"$f":"IFERROR(INDEX('3 - Land Summary'!$B$21:$B$120,(MATCH(AD194,'3 - Land Summary'!$C$21:$C$120,0))),\"\")","v":""}]
[null,{"$f":"IFERROR(INDEX('3 - Land Summary'!$B$21:$B$120,(MATCH('4 - Species Breakdown'!$V195,'3 - Land Summary'!$C$21:$C$120,0))),\"\")","v":""},null,null,{"$f":"IF(OR(COUNTIF('Look Up Data'!$D$149:$D$203,D195),COUNTIF('Look Up Data'!$D$149:$D$203,AE195)),\"YES\",\"NO\")","v":"NO"},null,null,{"$f":"IFERROR(INDEX('3 - Land Summary'!$G$21:$G$120,(MATCH(C195,'3 - Land Summary'!$C$21:$C$120,0))),\"\")","v":""},{"$f":"IFERROR(INDEX('3 - Land Summary'!$I$21:$I$120,(MATCH(C195,'3 - Land Summary'!$C$21:$C$120,0))),\"\")","v":""},"","",null,null,null,{"$f":"IFERROR(VLOOKUP(D195,'Species List'!$D$10:$E$46,2,FALSE)*J195,\"\")","v":""},{"$f":"IFERROR(VLOOKUP(D195,'Species List'!$D$51:$E$89,2,FALSE)*J195,\"\")","v":""},{"$f":"IFERROR(VLOOKUP(D195,'Species List'!$D$95:$E$102,2,FALSE)*J195,\"\")","v":""},{"$f":"IFERROR(VLOOKUP(D195,'Species List'!$I$10:$J$11,2,FALSE)*J195,\"\")","v":""},{"$f":"IFERROR(VLOOKUP(D195,'Species List'!$I$16:$J$61,2,FALSE)*J195,\"\")","v":""},{"$f":"IFERROR(VLOOKUP(D195,'Species List'!$I$66:$J$66,2,FALSE)*J195,\"\")","v":""},{"$f":"IFERROR(VLOOKUP(D195,'Species List'!$I$71:$J$82,2,FALSE)*J195,\"\")","v":""},0,null,null,null,null,null,null,{"$f":"IFERROR(INDEX('3 - Land Summary'!$B$21:$B$120,(MATCH(AD195,'3 - Land Summary'!$C$21:$C$120,0))),\"\")","v":""}]
[null,{"$f":"IFERROR(INDEX('3 - Land Summary'!$B$21:$B$120,(MATCH('4 - Species Breakdown'!$V196,'3 - Land Summary'!$C$21:$C$120,0))),\"\")","v":""},null,null,{"$f":"IF(OR(COUNTIF('Look Up Data'!$D$149:$D$203,D196),COUNTIF('Look Up Data'!$D$149:$D$203,AE196)),\"YES\",\"NO\")","v":"NO"},null,null,{"$f":"IFERROR(INDEX('3 - Land Summary'!$G$21:$G$120,(MATCH(C196,'3 - Land Summary'!$C$21:$C$120,0))),\"\")","v":""},{"$f":"IFERROR(INDEX('3 - Land Summary'!$I$21:$I$120,(MATCH(C196,'3 - Land Summary'!$C$21:$C$120,0))),\"\")","v":""},"","",null,null,null,{"$f":"IFERROR(VLOOKUP(D196,'Species List'!$D$10:$E$46,2,FALSE)*J196,\"\")","v":""},{"$f":"IFERROR(VLOOKUP(D196,'Species List'!$D$51:$E$89,2,FALSE)*J196,\"\")","v":""},{"$f":"IFERROR(VLOOKUP(D196,'Species List'!$D$95:$E$102,2,FALSE)*J196,\"\")","v":""},{"$f":"IFERROR(VLOOKUP(D196,'Species List'!$I$10:$J$11,2,FALSE)*J196,\"\")","v":""},{"$f":"IFERROR(VLOOKUP(D196,'Species List'!$I$16:$J$61,2,FALSE)*J196,\"\")","v":""},{"$f":"IFERROR(VLOOKUP(D196,'Species List'!$I$66:$J$66,2,FALSE)*J196,\"\")","v":""},{"$f":"IFERROR(VLOOKUP(D196,'Species List'!$I$71:$J$82,2,FALSE)*J196,\"\")","v":""},0,null,null,null,null,null,null,{"$f":"IFERROR(INDEX('3 - Land Summary'!$B$21:$B$120,(MATCH(AD196,'3 - Land Summary'!$C$21:$C$120,0))),\"\")","v":""}]
[null,{"$f":"IFERROR(INDEX('3 - Land Summary'!$B$21:$B$120,(MATCH('4 - Species Breakdown'!$V197,'3 - Land Summary'!$C$21:$C$120,0))),\"\")","v":""},null,null,{"$f":"IF(OR(COUNTIF('Look Up Data'!$D$149:$D$203,D197),COUNTIF('Look Up Data'!$D$149:$D$203,AE197)),\"YES\",\"NO\")","v":"NO"},null,null,{"$f":"IFERROR(INDEX('3 - Land Summary'!$G$21:$G$120,(MATCH(C197,'3 - Land Summary'!$C$21:$C$120,0))),\"\")","v":""},{"$f":"IFERROR(INDEX('3 - Land Summary'!$I$21:$I$120,(MATCH(C197,'3 - Land Summary'!$C$21:$C$120,0))),\"\")","v":""},"","",null,null,null,{"$f":"IFERROR(VLOOKUP(D197,'Species List'!$D$10:$E$46,2,FALSE)*J197,\"\")","v":""},{"$f":"IFERROR(VLOOKUP(D197,'Species List'!$D$51:$E$89,2,FALSE)*J197,\"\")","v":""},{"$f":"IFERROR(VLOOKUP(D197,'Species List'!$D$95:$E$102,2,FALSE)*J197,\"\")","v":""},{"$f":"IFERROR(VLOOKUP(D197,'Species List'!$I$10:$J$11,2,FALSE)*J197,\"\")","v":""},{"$f":"IFERROR(VLOOKUP(D197,'Species List'!$I$16:$J$61,2,FALSE)*J197,\"\")","v":""},{"$f":"IFERROR(VLOOKUP(D197,'Species List'!$I$66:$J$66,2,FALSE)*J197,\"\")","v":""},{"$f":"IFERROR(VLOOKUP(D197,'Species List'!$I$71:$J$82,2,FALSE)*J197,\"\")","v":""},0,null,null,null,null,null,null,{"$f":"IFERROR(INDEX('3 - Land Summary'!$B$21:$B$120,(MATCH(AD197,'3 - Land Summary'!$C$21:$C$120,0))),\"\")","v":""}]
[null,{"$f":"IFERROR(INDEX('3 - Land Summary'!$B$21:$B$120,(MATCH('4 - Species Breakdown'!$V198,'3 - Land Summary'!$C$21:$C$120,0))),\"\")","v":""},null,null,{"$f":"IF(OR(COUNTIF('Look Up Data'!$D$149:$D$203,D198),COUNTIF('Look Up Data'!$D$149:$D$203,AE198)),\"YES\",\"NO\")","v":"NO"},null,null,{"$f":"IFERROR(INDEX('3 - Land Summary'!$G$21:$G$120,(MATCH(C198,'3 - Land Summary'!$C$21:$C$120,0))),\"\")","v":""},{"$f":"IFERROR(INDEX('3 - Land Summary'!$I$21:$I$120,(MATCH(C198,'3 - Land Summary'!$C$21:$C$120,0))),\"\")","v":""},"","",null,null,null,{"$f":"IFERROR(VLOOKUP(D198,'Species List'!$D$10:$E$46,2,FALSE)*J198,\"\")","v":""},{"$f":"IFERROR(VLOOKUP(D198,'Species List'!$D$51:$E$89,2,FALSE)*J198,\"\")","v":""},{"$f":"IFERROR(VLOOKUP(D198,'Species List'!$D$95:$E$102,2,FALSE)*J198,\"\")","v":""},{"$f":"IFERROR(VLOOKUP(D198,'Species List'!$I$10:$J$11,2,FALSE)*J198,\"\")","v":""},{"$f":"IFERROR(VLOOKUP(D198,'Species List'!$I$16:$J$61,2,FALSE)*J198,\"\")","v":""},{"$f":"IFERROR(VLOOKUP(D198,'Species List'!$I$66:$J$66,2,FALSE)*J198,\"\")","v":""},{"$f":"IFERROR(VLOOKUP(D198,'Species List'!$I$71:$J$82,2,FALSE)*J198,\"\")","v":""},0,null,null,null,null,null,null,{"$f":"IFERROR(INDEX('3 - Land Summary'!$B$21:$B$120,(MATCH(AD198,'3 - Land Summary'!$C$21:$C$120,0))),\"\")","v":""}]
[null,{"$f":"IFERROR(INDEX('3 - Land Summary'!$B$21:$B$120,(MATCH('4 - Species Breakdown'!$V199,'3 - Land Summary'!$C$21:$C$120,0))),\"\")","v":""},null,null,{"$f":"IF(OR(COUNTIF('Look Up Data'!$D$149:$D$203,D199),COUNTIF('Look Up Data'!$D$149:$D$203,AE199)),\"YES\",\"NO\")","v":"NO"},null,null,{"$f":"IFERROR(INDEX('3 - Land Summary'!$G$21:$G$120,(MATCH(C199,'3 - Land Summary'!$C$21:$C$120,0))),\"\")","v":""},{"$f":"IFERROR(INDEX('3 - Land Summary'!$I$21:$I$120,(MATCH(C199,'3 - Land Summary'!$C$21:$C$120,0))),\"\")","v":""},"","",null,null,null,{"$f":"IFERROR(VLOOKUP(D199,'Species List'!$D$10:$E$46,2,FALSE)*J199,\"\")","v":""},{"$f":"IFERROR(VLOOKUP(D199,'Species List'!$D$51:$E$89,2,FALSE)*J199,\"\")","v":""},{"$f":"IFERROR(VLOOKUP(D199,'Species List'!$D$95:$E$102,2,FALSE)*J199,\"\")","v":""},{"$f":"IFERROR(VLOOKUP(D199,'Species List'!$I$10:$J$11,2,FALSE)*J199,\"\")","v":""},{"$f":"IFERROR(VLOOKUP(D199,'Species List'!$I$16:$J$61,2,FALSE)*J199,\"\")","v":""},{"$f":"IFERROR(VLOOKUP(D199,'Species List'!$I$66:$J$66,2,FALSE)*J199,\"\")","v":""},{"$f":"IFERROR(VLOOKUP(D199,'Species List'!$I$71:$J$82,2,FALSE)*J199,\"\")","v":""},0,null,null,null,null,null,null,{"$f":"IFERROR(INDEX('3 - Land Summary'!$B$21:$B$120,(MATCH(AD199,'3 - Land Summary'!$C$21:$C$120,0))),\"\")","v":""}]
[null,{"$f":"IFERROR(INDEX('3 - Land Summary'!$B$21:$B$120,(MATCH('4 - Species Breakdown'!$V200,'3 - Land Summary'!$C$21:$C$120,0))),\"\")","v":""},null,null,{"$f":"IF(OR(COUNTIF('Look Up Data'!$D$149:$D$203,D200),COUNTIF('Look Up Data'!$D$149:$D$203,AE200)),\"YES\",\"NO\")","v":"NO"},null,null,{"$f":"IFERROR(INDEX('3 - Land Summary'!$G$21:$G$120,(MATCH(C200,'3 - Land Summary'!$C$21:$C$120,0))),\"\")","v":""},{"$f":"IFERROR(INDEX('3 - Land Summary'!$I$21:$I$120,(MATCH(C200,'3 - Land Summary'!$C$21:$C$120,0))),\"\")","v":""},"","",null,null,null,{"$f":"IFERROR(VLOOKUP(D200,'Species List'!$D$10:$E$46,2,FALSE)*J200,\"\")","v":""},{"$f":"IFERROR(VLOOKUP(D200,'Species List'!$D$51:$E$89,2,FALSE)*J200,\"\")","v":""},{"$f":"IFERROR(VLOOKUP(D200,'Species List'!$D$95:$E$102,2,FALSE)*J200,\"\")","v":""},{"$f":"IFERROR(VLOOKUP(D200,'Species List'!$I$10:$J$11,2,FALSE)*J200,\"\")","v":""},{"$f":"IFERROR(VLOOKUP(D200,'Species List'!$I$16:$J$61,2,FALSE)*J200,\"\")","v":""},{"$f":"IFERROR(VLOOKUP(D200,'Species List'!$I$66:$J$66,2,FALSE)*J200,\"\")","v":""},{"$f":"IFERROR(VLOOKUP(D200,'Species List'!$I$71:$J$82,2,FALSE)*J200,\"\")","v":""},0,null,null,null,null,null,null,{"$f":"IFERROR(INDEX('3 - Land Summary'!$B$21:$B$120,(MATCH(AD200,'3 - Land Summary'!$C$21:$C$120,0))),\"\")","v":""}]
[null,{"$f":"IFERROR(INDEX('3 - Land Summary'!$B$21:$B$120,(MATCH('4 - Species Breakdown'!$V201,'3 - Land Summary'!$C$21:$C$120,0))),\"\")","v":""},null,null,{"$f":"IF(OR(COUNTIF('Look Up Data'!$D$149:$D$203,D201),COUNTIF('Look Up Data'!$D$149:$D$203,AE201)),\"YES\",\"NO\")","v":"NO"},null,null,{"$f":"IFERROR(INDEX('3 - Land Summary'!$G$21:$G$120,(MATCH(C201,'3 - Land Summary'!$C$21:$C$120,0))),\"\")","v":""},{"$f":"IFERROR(INDEX('3 - Land Summary'!$I$21:$I$120,(MATCH(C201,'3 - Land Summary'!$C$21:$C$120,0))),\"\")","v":""},"","",null,null,null,{"$f":"IFERROR(VLOOKUP(D201,'Species List'!$D$10:$E$46,2,FALSE)*J201,\"\")","v":""},{"$f":"IFERROR(VLOOKUP(D201,'Species List'!$D$51:$E$89,2,FALSE)*J201,\"\")","v":""},{"$f":"IFERROR(VLOOKUP(D201,'Species List'!$D$95:$E$102,2,FALSE)*J201,\"\")","v":""},{"$f":"IFERROR(VLOOKUP(D201,'Species List'!$I$10:$J$11,2,FALSE)*J201,\"\")","v":""},{"$f":"IFERROR(VLOOKUP(D201,'Species List'!$I$16:$J$61,2,FALSE)*J201,\"\")","v":""},{"$f":"IFERROR(VLOOKUP(D201,'Species List'!$I$66:$J$66,2,FALSE)*J201,\"\")","v":""},{"$f":"IFERROR(VLOOKUP(D201,'Species List'!$I$71:$J$82,2,FALSE)*J201,\"\")","v":""},0,null,null,null,null,null,null,{"$f":"IFERROR(INDEX('3 - Land Summary'!$B$21:$B$120,(MATCH(AD201,'3 - Land Summary'!$C$21:$C$120,0))),\"\")","v":""}]
[null,{"$f":"IFERROR(INDEX('3 - Land Summary'!$B$21:$B$120,(MATCH('4 - Species Breakdown'!$V202,'3 - Land Summary'!$C$21:$C$120,0))),\"\")","v":""},null,null,{"$f":"IF(OR(COUNTIF('Look Up Data'!$D$149:$D$203,D202),COUNTIF('Look Up Data'!$D$149:$D$203,AE202)),\"YES\",\"NO\")","v":"NO"},null,null,{"$f":"IFERROR(INDEX('3 - Land Summary'!$G$21:$G$120,(MATCH(C202,'3 - Land Summary'!$C$21:$C$120,0))),\"\")","v":""},{"$f":"IFERROR(INDEX('3 - Land Summary'!$I$21:$I$120,(MATCH(C202,'3 - Land Summary'!$C$21:$C$120,0))),\"\")","v":""},"","",null,null,null,{"$f":"IFERROR(VLOOKUP(D202,'Species List'!$D$10:$E$46,2,FALSE)*J202,\"\")","v":""},{"$f":"IFERROR(VLOOKUP(D202,'Species List'!$D$51:$E$89,2,FALSE)*J202,\"\")","v":""},{"$f":"IFERROR(VLOOKUP(D202,'Species List'!$D$95:$E$102,2,FALSE)*J202,\"\")","v":""},{"$f":"IFERROR(VLOOKUP(D202,'Species List'!$I$10:$J$11,2,FALSE)*J202,\"\")","v":""},{"$f":"IFERROR(VLOOKUP(D202,'Species List'!$I$16:$J$61,2,FALSE)*J202,\"\")","v":""},{"$f":"IFERROR(VLOOKUP(D202,'Species List'!$I$66:$J$66,2,FALSE)*J202,\"\")","v":""},{"$f":"IFERROR(VLOOKUP(D202,'Species List'!$I$71:$J$82,2,FALSE)*J202,\"\")","v":""},0,null,null,null,null,null,null,{"$f":"IFERROR(INDEX('3 - Land Summary'!$B$21:$B$120,(MATCH(AD202,'3 - Land Summary'!$C$21:$C$120,0))),\"\")","v":""}]
[null,{"$f":"IFERROR(INDEX('3 - Land Summary'!$B$21:$B$120,(MATCH('4 - Species Breakdown'!$V203,'3 - Land Summary'!$C$21:$C$120,0))),\"\")","v":""},null,null,{"$f":"IF(OR(COUNTIF('Look Up Data'!$D$149:$D$203,D203),COUNTIF('Look Up Data'!$D$149:$D$203,AE203)),\"YES\",\"NO\")","v":"NO"},null,null,{"$f":"IFERROR(INDEX('3 - Land Summary'!$G$21:$G$120,(MATCH(C203,'3 - Land Summary'!$C$21:$C$120,0))),\"\")","v":""},{"$f":"IFERROR(INDEX('3 - Land Summary'!$I$21:$I$120,(MATCH(C203,'3 - Land Summary'!$C$21:$C$120,0))),\"\")","v":""},"","",null,null,null,{"$f":"IFERROR(VLOOKUP(D203,'Species List'!$D$10:$E$46,2,FALSE)*J203,\"\")","v":""},{"$f":"IFERROR(VLOOKUP(D203,'Species List'!$D$51:$E$89,2,FALSE)*J203,\"\")","v":""},{"$f":"IFERROR(VLOOKUP(D203,'Species List'!$D$95:$E$102,2,FALSE)*J203,\"\")","v":""},{"$f":"IFERROR(VLOOKUP(D203,'Species List'!$I$10:$J$11,2,FALSE)*J203,\"\")","v":""},{"$f":"IFERROR(VLOOKUP(D203,'Species List'!$I$16:$J$61,2,FALSE)*J203,\"\")","v":""},{"$f":"IFERROR(VLOOKUP(D203,'Species List'!$I$66:$J$66,2,FALSE)*J203,\"\")","v":""},{"$f":"IFERROR(VLOOKUP(D203,'Species List'!$I$71:$J$82,2,FALSE)*J203,\"\")","v":""},0,null,null,null,null,null,null,{"$f":"IFERROR(INDEX('3 - Land Summary'!$B$21:$B$120,(MATCH(AD203,'3 - Land Summary'!$C$21:$C$120,0))),\"\")","v":""}]
[null,{"$f":"IFERROR(INDEX('3 - Land Summary'!$B$21:$B$120,(MATCH('4 - Species Breakdown'!$V204,'3 - Land Summary'!$C$21:$C$120,0))),\"\")","v":""},null,null,{"$f":"IF(OR(COUNTIF('Look Up Data'!$D$149:$D$203,D204),COUNTIF('Look Up Data'!$D$149:$D$203,AE204)),\"YES\",\"NO\")","v":"NO"},null,null,{"$f":"IFERROR(INDEX('3 - Land Summary'!$G$21:$G$120,(MATCH(C204,'3 - Land Summary'!$C$21:$C$120,0))),\"\")","v":""},{"$f":"IFERROR(INDEX('3 - Land Summary'!$I$21:$I$120,(MATCH(C204,'3 - Land Summary'!$C$21:$C$120,0))),\"\")","v":""},"","",null,null,null,{"$f":"IFERROR(VLOOKUP(D204,'Species List'!$D$10:$E$46,2,FALSE)*J204,\"\")","v":""},{"$f":"IFERROR(VLOOKUP(D204,'Species List'!$D$51:$E$89,2,FALSE)*J204,\"\")","v":""},{"$f":"IFERROR(VLOOKUP(D204,'Species List'!$D$95:$E$102,2,FALSE)*J204,\"\")","v":""},{"$f":"IFERROR(VLOOKUP(D204,'Species List'!$I$10:$J$11,2,FALSE)*J204,\"\")","v":""},{"$f":"IFERROR(VLOOKUP(D204,'Species List'!$I$16:$J$61,2,FALSE)*J204,\"\")","v":""},{"$f":"IFERROR(VLOOKUP(D204,'Species List'!$I$66:$J$66,2,FALSE)*J204,\"\")","v":""},{"$f":"IFERROR(VLOOKUP(D204,'Species List'!$I$71:$J$82,2,FALSE)*J204,\"\")","v":""},0,null,null,null,null,null,null,{"$f":"IFERROR(INDEX('3 - Land Summary'!$B$21:$B$120,(MATCH(AD204,'3 - Land Summary'!$C$21:$C$120,0))),\"\")","v":""}]
[null,{"$f":"IFERROR(INDEX('3 - Land Summary'!$B$21:$B$120,(MATCH('4 - Species Breakdown'!$V205,'3 - Land Summary'!$C$21:$C$120,0))),\"\")","v":""},null,null,{"$f":"IF(OR(COUNTIF('Look Up Data'!$D$149:$D$203,D205),COUNTIF('Look Up Data'!$D$149:$D$203,AE205)),\"YES\",\"NO\")","v":"NO"},null,null,{"$f":"IFERROR(INDEX('3 - Land Summary'!$G$21:$G$120,(MATCH(C205,'3 - Land Summary'!$C$21:$C$120,0))),\"\")","v":""},{"$f":"IFERROR(INDEX('3 - Land Summary'!$I$21:$I$120,(MATCH(C205,'3 - Land Summary'!$C$21:$C$120,0))),\"\")","v":""},"","",null,null,null,{"$f":"IFERROR(VLOOKUP(D205,'Species List'!$D$10:$E$46,2,FALSE)*J205,\"\")","v":""},{"$f":"IFERROR(VLOOKUP(D205,'Species List'!$D$51:$E$89,2,FALSE)*J205,\"\")","v":""},{"$f":"IFERROR(VLOOKUP(D205,'Species List'!$D$95:$E$102,2,FALSE)*J205,\"\")","v":""},{"$f":"IFERROR(VLOOKUP(D205,'Species List'!$I$10:$J$11,2,FALSE)*J205,\"\")","v":""},{"$f":"IFERROR(VLOOKUP(D205,'Species List'!$I$16:$J$61,2,FALSE)*J205,\"\")","v":""},{"$f":"IFERROR(VLOOKUP(D205,'Species List'!$I$66:$J$66,2,FALSE)*J205,\"\")","v":""},{"$f":"IFERROR(VLOOKUP(D205,'Species List'!$I$71:$J$82,2,FALSE)*J205,\"\")","v":""},0,null,null,null,null,null,null,{"$f":"IFERROR(INDEX('3 - Land Summary'!$B$21:$B$120,(MATCH(AD205,'3 - Land Summary'!$C$21:$C$120,0))),\"\")","v":""}]
[null,{"$f":"IFERROR(INDEX('3 - Land Summary'!$B$21:$B$120,(MATCH('4 - Species Breakdown'!$V206,'3 - Land Summary'!$C$21:$C$120,0))),\"\")","v":""},null,null,{"$f":"IF(OR(COUNTIF('Look Up Data'!$D$149:$D$203,D206),COUNTIF('Look Up Data'!$D$149:$D$203,AE206)),\"YES\",\"NO\")","v":"NO"},null,null,{"$f":"IFERROR(INDEX('3 - Land Summary'!$G$21:$G$120,(MATCH(C206,'3 - Land Summary'!$C$21:$C$120,0))),\"\")","v":""},{"$f":"IFERROR(INDEX('3 - Land Summary'!$I$21:$I$120,(MATCH(C206,'3 - Land Summary'!$C$21:$C$120,0))),\"\")","v":""},"","",null,null,null,{"$f":"IFERROR(VLOOKUP(D206,'Species List'!$D$10:$E$46,2,FALSE)*J206,\"\")","v":""},{"$f":"IFERROR(VLOOKUP(D206,'Species List'!$D$51:$E$89,2,FALSE)*J206,\"\")","v":""},{"$f":"IFERROR(VLOOKUP(D206,'Species List'!$D$95:$E$102,2,FALSE)*J206,\"\")","v":""},{"$f":"IFERROR(VLOOKUP(D206,'Species List'!$I$10:$J$11,2,FALSE)*J206,\"\")","v":""},{"$f":"IFERROR(VLOOKUP(D206,'Species List'!$I$16:$J$61,2,FALSE)*J206,\"\")","v":""},{"$f":"IFERROR(VLOOKUP(D206,'Species List'!$I$66:$J$66,2,FALSE)*J206,\"\")","v":""},{"$f":"IFERROR(VLOOKUP(D206,'Species List'!$I$71:$J$82,2,FALSE)*J206,\"\")","v":""},0,null,null,null,null,null,null,{"$f":"IFERROR(INDEX('3 - Land Summary'!$B$21:$B$120,(MATCH(AD206,'3 - Land Summary'!$C$21:$C$120,0))),\"\")","v":""}]
[null,{"$f":"IFERROR(INDEX('3 - Land Summary'!$B$21:$B$120,(MATCH('4 - Species Breakdown'!$V207,'3 - Land Summary'!$C$21:$C$120,0))),\"\")","v":""},null,null,{"$f":"IF(OR(COUNTIF('Look Up Data'!$D$149:$D$203,D207),COUNTIF('Look Up Data'!$D$149:$D$203,AE207)),\"YES\",\"NO\")","v":"NO"},null,null,{"$f":"IFERROR(INDEX('3 - Land Summary'!$G$21:$G$120,(MATCH(C207,'3 - Land Summary'!$C$21:$C$120,0))),\"\")","v":""},{"$f":"IFERROR(INDEX('3 - Land Summary'!$I$21:$I$120,(MATCH(C207,'3 - Land Summary'!$C$21:$C$120,0))),\"\")","v":""},"","",null,null,null,{"$f":"IFERROR(VLOOKUP(D207,'Species List'!$D$10:$E$46,2,FALSE)*J207,\"\")","v":""},{"$f":"IFERROR(VLOOKUP(D207,'Species List'!$D$51:$E$89,2,FALSE)*J207,\"\")","v":""},{"$f":"IFERROR(VLOOKUP(D207,'Species List'!$D$95:$E$102,2,FALSE)*J207,\"\")","v":""},{"$f":"IFERROR(VLOOKUP(D207,'Species List'!$I$10:$J$11,2,FALSE)*J207,\"\")","v":""},{"$f":"IFERROR(VLOOKUP(D207,'Species List'!$I$16:$J$61,2,FALSE)*J207,\"\")","v":""},{"$f":"IFERROR(VLOOKUP(D207,'Species List'!$I$66:$J$66,2,FALSE)*J207,\"\")","v":""},{"$f":"IFERROR(VLOOKUP(D207,'Species List'!$I$71:$J$82,2,FALSE)*J207,\"\")","v":""},0,null,null,null,null,null,null,{"$f":"IFERROR(INDEX('3 - Land Summary'!$B$21:$B$120,(MATCH(AD207,'3 - Land Summary'!$C$21:$C$120,0))),\"\")","v":""}]
[null,{"$f":"IFERROR(INDEX('3 - Land Summary'!$B$21:$B$120,(MATCH('4 - Species Breakdown'!$V208,'3 - Land Summary'!$C$21:$C$120,0))),\"\")","v":""},null,null,{"$f":"IF(OR(COUNTIF('Look Up Data'!$D$149:$D$203,D208),COUNTIF('Look Up Data'!$D$149:$D$203,AE208)),\"YES\",\"NO\")","v":"NO"},null,null,{"$f":"IFERROR(INDEX('3 - Land Summary'!$G$21:$G$120,(MATCH(C208,'3 - Land Summary'!$C$21:$C$120,0))),\"\")","v":""},{"$f":"IFERROR(INDEX('3 - Land Summary'!$I$21:$I$120,(MATCH(C208,'3 - Land Summary'!$C$21:$C$120,0))),\"\")","v":""},"","",null,null,null,{"$f":"IFERROR(VLOOKUP(D208,'Species List'!$D$10:$E$46,2,FALSE)*J208,\"\")","v":""},{"$f":"IFERROR(VLOOKUP(D208,'Species List'!$D$51:$E$89,2,FALSE)*J208,\"\")","v":""},{"$f":"IFERROR(VLOOKUP(D208,'Species List'!$D$95:$E$102,2,FALSE)*J208,\"\")","v":""},{"$f":"IFERROR(VLOOKUP(D208,'Species List'!$I$10:$J$11,2,FALSE)*J208,\"\")","v":""},{"$f":"IFERROR(VLOOKUP(D208,'Species List'!$I$16:$J$61,2,FALSE)*J208,\"\")","v":""},{"$f":"IFERROR(VLOOKUP(D208,'Species List'!$I$66:$J$66,2,FALSE)*J208,\"\")","v":""},{"$f":"IFERROR(VLOOKUP(D208,'Species List'!$I$71:$J$82,2,FALSE)*J208,\"\")","v":""},0,null,null,null,null,null,null,{"$f":"IFERROR(INDEX('3 - Land Summary'!$B$21:$B$120,(MATCH(AD208,'3 - Land Summary'!$C$21:$C$120,0))),\"\")","v":""}]
[null,{"$f":"IFERROR(INDEX('3 - Land Summary'!$B$21:$B$120,(MATCH('4 - Species Breakdown'!$V209,'3 - Land Summary'!$C$21:$C$120,0))),\"\")","v":""},null,null,{"$f":"IF(OR(COUNTIF('Look Up Data'!$D$149:$D$203,D209),COUNTIF('Look Up Data'!$D$149:$D$203,AE209)),\"YES\",\"NO\")","v":"NO"},null,null,{"$f":"IFERROR(INDEX('3 - Land Summary'!$G$21:$G$120,(MATCH(C209,'3 - Land Summary'!$C$21:$C$120,0))),\"\")","v":""},{"$f":"IFERROR(INDEX('3 - Land Summary'!$I$21:$I$120,(MATCH(C209,'3 - Land Summary'!$C$21:$C$120,0))),\"\")","v":""},"","",null,null,null,{"$f":"IFERROR(VLOOKUP(D209,'Species List'!$D$10:$E$46,2,FALSE)*J209,\"\")","v":""},{"$f":"IFERROR(VLOOKUP(D209,'Species List'!$D$51:$E$89,2,FALSE)*J209,\"\")","v":""},{"$f":"IFERROR(VLOOKUP(D209,'Species List'!$D$95:$E$102,2,FALSE)*J209,\"\")","v":""},{"$f":"IFERROR(VLOOKUP(D209,'Species List'!$I$10:$J$11,2,FALSE)*J209,\"\")","v":""},{"$f":"IFERROR(VLOOKUP(D209,'Species List'!$I$16:$J$61,2,FALSE)*J209,\"\")","v":""},{"$f":"IFERROR(VLOOKUP(D209,'Species List'!$I$66:$J$66,2,FALSE)*J209,\"\")","v":""},{"$f":"IFERROR(VLOOKUP(D209,'Species List'!$I$71:$J$82,2,FALSE)*J209,\"\")","v":""},0,null,null,null,null,null,null,{"$f":"IFERROR(INDEX('3 - Land Summary'!$B$21:$B$120,(MATCH(AD209,'3 - Land Summary'!$C$21:$C$120,0))),\"\")","v":""}]
[null,{"$f":"IFERROR(INDEX('3 - Land Summary'!$B$21:$B$120,(MATCH('4 - Species Breakdown'!$V210,'3 - Land Summary'!$C$21:$C$120,0))),\"\")","v":""},null,null,{"$f":"IF(OR(COUNTIF('Look Up Data'!$D$149:$D$203,D210),COUNTIF('Look Up Data'!$D$149:$D$203,AE210)),\"YES\",\"NO\")","v":"NO"},null,null,{"$f":"IFERROR(INDEX('3 - Land Summary'!$G$21:$G$120,(MATCH(C210,'3 - Land Summary'!$C$21:$C$120,0))),\"\")","v":""},{"$f":"IFERROR(INDEX('3 - Land Summary'!$I$21:$I$120,(MATCH(C210,'3 - Land Summary'!$C$21:$C$120,0))),\"\")","v":""},"","",null,null,null,{"$f":"IFERROR(VLOOKUP(D210,'Species List'!$D$10:$E$46,2,FALSE)*J210,\"\")","v":""},{"$f":"IFERROR(VLOOKUP(D210,'Species List'!$D$51:$E$89,2,FALSE)*J210,\"\")","v":""},{"$f":"IFERROR(VLOOKUP(D210,'Species List'!$D$95:$E$102,2,FALSE)*J210,\"\")","v":""},{"$f":"IFERROR(VLOOKUP(D210,'Species List'!$I$10:$J$11,2,FALSE)*J210,\"\")","v":""},{"$f":"IFERROR(VLOOKUP(D210,'Species List'!$I$16:$J$61,2,FALSE)*J210,\"\")","v":""},{"$f":"IFERROR(VLOOKUP(D210,'Species List'!$I$66:$J$66,2,FALSE)*J210,\"\")","v":""},{"$f":"IFERROR(VLOOKUP(D210,'Species List'!$I$71:$J$82,2,FALSE)*J210,\"\")","v":""},0,null,null,null,null,null,null,{"$f":"IFERROR(INDEX('3 - Land Summary'!$B$21:$B$120,(MATCH(AD210,'3 - Land Summary'!$C$21:$C$120,0))),\"\")","v":""}]
[null,{"$f":"IFERROR(INDEX('3 - Land Summary'!$B$21:$B$120,(MATCH('4 - Species Breakdown'!$V211,'3 - Land Summary'!$C$21:$C$120,0))),\"\")","v":""},null,null,{"$f":"IF(OR(COUNTIF('Look Up Data'!$D$149:$D$203,D211),COUNTIF('Look Up Data'!$D$149:$D$203,AE211)),\"YES\",\"NO\")","v":"NO"},null,null,{"$f":"IFERROR(INDEX('3 - Land Summary'!$G$21:$G$120,(MATCH(C211,'3 - Land Summary'!$C$21:$C$120,0))),\"\")","v":""},{"$f":"IFERROR(INDEX('3 - Land Summary'!$I$21:$I$120,(MATCH(C211,'3 - Land Summary'!$C$21:$C$120,0))),\"\")","v":""},"","",null,null,null,{"$f":"IFERROR(VLOOKUP(D211,'Species List'!$D$10:$E$46,2,FALSE)*J211,\"\")","v":""},{"$f":"IFERROR(VLOOKUP(D211,'Species List'!$D$51:$E$89,2,FALSE)*J211,\"\")","v":""},{"$f":"IFERROR(VLOOKUP(D211,'Species List'!$D$95:$E$102,2,FALSE)*J211,\"\")","v":""},{"$f":"IFERROR(VLOOKUP(D211,'Species List'!$I$10:$J$11,2,FALSE)*J211,\"\")","v":""},{"$f":"IFERROR(VLOOKUP(D211,'Species List'!$I$16:$J$61,2,FALSE)*J211,\"\")","v":""},{"$f":"IFERROR(VLOOKUP(D211,'Species List'!$I$66:$J$66,2,FALSE)*J211,\"\")","v":""},{"$f":"IFERROR(VLOOKUP(D211,'Species List'!$I$71:$J$82,2,FALSE)*J211,\"\")","v":""},0,null,null,null,null,null,null,{"$f":"IFERROR(INDEX('3 - Land Summary'!$B$21:$B$120,(MATCH(AD211,'3 - Land Summary'!$C$21:$C$120,0))),\"\")","v":""}]
[null,{"$f":"IFERROR(INDEX('3 - Land Summary'!$B$21:$B$120,(MATCH('4 - Species Breakdown'!$V212,'3 - Land Summary'!$C$21:$C$120,0))),\"\")","v":""},null,null,{"$f":"IF(OR(COUNTIF('Look Up Data'!$D$149:$D$203,D212),COUNTIF('Look Up Data'!$D$149:$D$203,AE212)),\"YES\",\"NO\")","v":"NO"},null,null,{"$f":"IFERROR(INDEX('3 - Land Summary'!$G$21:$G$120,(MATCH(C212,'3 - Land Summary'!$C$21:$C$120,0))),\"\")","v":""},{"$f":"IFERROR(INDEX('3 - Land Summary'!$I$21:$I$120,(MATCH(C212,'3 - Land Summary'!$C$21:$C$120,0))),\"\")","v":""},"","",null,null,null,{"$f":"IFERROR(VLOOKUP(D212,'Species List'!$D$10:$E$46,2,FALSE)*J212,\"\")","v":""},{"$f":"IFERROR(VLOOKUP(D212,'Species List'!$D$51:$E$89,2,FALSE)*J212,\"\")","v":""},{"$f":"IFERROR(VLOOKUP(D212,'Species List'!$D$95:$E$102,2,FALSE)*J212,\"\")","v":""},{"$f":"IFERROR(VLOOKUP(D212,'Species List'!$I$10:$J$11,2,FALSE)*J212,\"\")","v":""},{"$f":"IFERROR(VLOOKUP(D212,'Species List'!$I$16:$J$61,2,FALSE)*J212,\"\")","v":""},{"$f":"IFERROR(VLOOKUP(D212,'Species List'!$I$66:$J$66,2,FALSE)*J212,\"\")","v":""},{"$f":"IFERROR(VLOOKUP(D212,'Species List'!$I$71:$J$82,2,FALSE)*J212,\"\")","v":""},0,null,null,null,null,null,null,{"$f":"IFERROR(INDEX('3 - Land Summary'!$B$21:$B$120,(MATCH(AD212,'3 - Land Summary'!$C$21:$C$120,0))),\"\")","v":""}]
[null,{"$f":"IFERROR(INDEX('3 - Land Summary'!$B$21:$B$120,(MATCH('4 - Species Breakdown'!$V213,'3 - Land Summary'!$C$21:$C$120,0))),\"\")","v":""},null,null,{"$f":"IF(OR(COUNTIF('Look Up Data'!$D$149:$D$203,D213),COUNTIF('Look Up Data'!$D$149:$D$203,AE213)),\"YES\",\"NO\")","v":"NO"},null,null,{"$f":"IFERROR(INDEX('3 - Land Summary'!$G$21:$G$120,(MATCH(C213,'3 - Land Summary'!$C$21:$C$120,0))),\"\")","v":""},{"$f":"IFERROR(INDEX('3 - Land Summary'!$I$21:$I$120,(MATCH(C213,'3 - Land Summary'!$C$21:$C$120,0))),\"\")","v":""},"","",null,null,null,{"$f":"IFERROR(VLOOKUP(D213,'Species List'!$D$10:$E$46,2,FALSE)*J213,\"\")","v":""},{"$f":"IFERROR(VLOOKUP(D213,'Species List'!$D$51:$E$89,2,FALSE)*J213,\"\")","v":""},{"$f":"IFERROR(VLOOKUP(D213,'Species List'!$D$95:$E$102,2,FALSE)*J213,\"\")","v":""},{"$f":"IFERROR(VLOOKUP(D213,'Species List'!$I$10:$J$11,2,FALSE)*J213,\"\")","v":""},{"$f":"IFERROR(VLOOKUP(D213,'Species List'!$I$16:$J$61,2,FALSE)*J213,\"\")","v":""},{"$f":"IFERROR(VLOOKUP(D213,'Species List'!$I$66:$J$66,2,FALSE)*J213,\"\")","v":""},{"$f":"IFERROR(VLOOKUP(D213,'Species List'!$I$71:$J$82,2,FALSE)*J213,\"\")","v":""},0,null,null,null,null,null,null,{"$f":"IFERROR(INDEX('3 - Land Summary'!$B$21:$B$120,(MATCH(AD213,'3 - Land Summary'!$C$21:$C$120,0))),\"\")","v":""}]
[null,{"$f":"IFERROR(INDEX('3 - Land Summary'!$B$21:$B$120,(MATCH('4 - Species Breakdown'!$V214,'3 - Land Summary'!$C$21:$C$120,0))),\"\")","v":""},null,null,{"$f":"IF(OR(COUNTIF('Look Up Data'!$D$149:$D$203,D214),COUNTIF('Look Up Data'!$D$149:$D$203,AE214)),\"YES\",\"NO\")","v":"NO"},null,null,{"$f":"IFERROR(INDEX('3 - Land Summary'!$G$21:$G$120,(MATCH(C214,'3 - Land Summary'!$C$21:$C$120,0))),\"\")","v":""},{"$f":"IFERROR(INDEX('3 - Land Summary'!$I$21:$I$120,(MATCH(C214,'3 - Land Summary'!$C$21:$C$120,0))),\"\")","v":""},"","",null,null,null,{"$f":"IFERROR(VLOOKUP(D214,'Species List'!$D$10:$E$46,2,FALSE)*J214,\"\")","v":""},{"$f":"IFERROR(VLOOKUP(D214,'Species List'!$D$51:$E$89,2,FALSE)*J214,\"\")","v":""},{"$f":"IFERROR(VLOOKUP(D214,'Species List'!$D$95:$E$102,2,FALSE)*J214,\"\")","v":""},{"$f":"IFERROR(VLOOKUP(D214,'Species List'!$I$10:$J$11,2,FALSE)*J214,\"\")","v":""},{"$f":"IFERROR(VLOOKUP(D214,'Species List'!$I$16:$J$61,2,FALSE)*J214,\"\")","v":""},{"$f":"IFERROR(VLOOKUP(D214,'Species List'!$I$66:$J$66,2,FALSE)*J214,\"\")","v":""},{"$f":"IFERROR(VLOOKUP(D214,'Species List'!$I$71:$J$82,2,FALSE)*J214,\"\")","v":""},0,null,null,null,null,null,null,{"$f":"IFERROR(INDEX('3 - Land Summary'!$B$21:$B$120,(MATCH(AD214,'3 - Land Summary'!$C$21:$C$120,0))),\"\")","v":""}]
[null,{"$f":"IFERROR(INDEX('3 - Land Summary'!$B$21:$B$120,(MATCH('4 - Species Breakdown'!$V215,'3 - Land Summary'!$C$21:$C$120,0))),\"\")","v":""},null,null,{"$f":"IF(OR(COUNTIF('Look Up Data'!$D$149:$D$203,D215),COUNTIF('Look Up Data'!$D$149:$D$203,AE215)),\"YES\",\"NO\")","v":"NO"},null,null,{"$f":"IFERROR(INDEX('3 - Land Summary'!$G$21:$G$120,(MATCH(C215,'3 - Land Summary'!$C$21:$C$120,0))),\"\")","v":""},{"$f":"IFERROR(INDEX('3 - Land Summary'!$I$21:$I$120,(MATCH(C215,'3 - Land Summary'!$C$21:$C$120,0))),\"\")","v":""},"","",null,null,null,{"$f":"IFERROR(VLOOKUP(D215,'Species List'!$D$10:$E$46,2,FALSE)*J215,\"\")","v":""},{"$f":"IFERROR(VLOOKUP(D215,'Species List'!$D$51:$E$89,2,FALSE)*J215,\"\")","v":""},{"$f":"IFERROR(VLOOKUP(D215,'Species List'!$D$95:$E$102,2,FALSE)*J215,\"\")","v":""},{"$f":"IFERROR(VLOOKUP(D215,'Species List'!$I$10:$J$11,2,FALSE)*J215,\"\")","v":""},{"$f":"IFERROR(VLOOKUP(D215,'Species List'!$I$16:$J$61,2,FALSE)*J215,\"\")","v":""},{"$f":"IFERROR(VLOOKUP(D215,'Species List'!$I$66:$J$66,2,FALSE)*J215,\"\")","v":""},{"$f":"IFERROR(VLOOKUP(D215,'Species List'!$I$71:$J$82,2,FALSE)*J215,\"\")","v":""},0,null,null,null,null,null,null,{"$f":"IFERROR(INDEX('3 - Land Summary'!$B$21:$B$120,(MATCH(AD215,'3 - Land Summary'!$C$21:$C$120,0))),\"\")","v":""}]
[null,{"$f":"IFERROR(INDEX('3 - Land Summary'!$B$21:$B$120,(MATCH('4 - Species Breakdown'!$V216,'3 - Land Summary'!$C$21:$C$120,0))),\"\")","v":""},null,null,{"$f":"IF(OR(COUNTIF('Look Up Data'!$D$149:$D$203,D216),COUNTIF('Look Up Data'!$D$149:$D$203,AE216)),\"YES\",\"NO\")","v":"NO"},null,null,{"$f":"IFERROR(INDEX('3 - Land Summary'!$G$21:$G$120,(MATCH(C216,'3 - Land Summary'!$C$21:$C$120,0))),\"\")","v":""},{"$f":"IFERROR(INDEX('3 - Land Summary'!$I$21:$I$120,(MATCH(C216,'3 - Land Summary'!$C$21:$C$120,0))),\"\")","v":""},"","",null,null,null,{"$f":"IFERROR(VLOOKUP(D216,'Species List'!$D$10:$E$46,2,FALSE)*J216,\"\")","v":""},{"$f":"IFERROR(VLOOKUP(D216,'Species List'!$D$51:$E$89,2,FALSE)*J216,\"\")","v":""},{"$f":"IFERROR(VLOOKUP(D216,'Species List'!$D$95:$E$102,2,FALSE)*J216,\"\")","v":""},{"$f":"IFERROR(VLOOKUP(D216,'Species List'!$I$10:$J$11,2,FALSE)*J216,\"\")","v":""},{"$f":"IFERROR(VLOOKUP(D216,'Species List'!$I$16:$J$61,2,FALSE)*J216,\"\")","v":""},{"$f":"IFERROR(VLOOKUP(D216,'Species List'!$I$66:$J$66,2,FALSE)*J216,\"\")","v":""},{"$f":"IFERROR(VLOOKUP(D216,'Species List'!$I$71:$J$82,2,FALSE)*J216,\"\")","v":""},0,null,null,null,null,null,null,{"$f":"IFERROR(INDEX('3 - Land Summary'!$B$21:$B$120,(MATCH(AD216,'3 - Land Summary'!$C$21:$C$120,0))),\"\")","v":""}]
[null,{"$f":"IFERROR(INDEX('3 - Land Summary'!$B$21:$B$120,(MATCH('4 - Species Breakdown'!$V217,'3 - Land Summary'!$C$21:$C$120,0))),\"\")","v":""},null,null,{"$f":"IF(OR(COUNTIF('Look Up Data'!$D$149:$D$203,D217),COUNTIF('Look Up Data'!$D$149:$D$203,AE217)),\"YES\",\"NO\")","v":"NO"},null,null,{"$f":"IFERROR(INDEX('3 - Land Summary'!$G$21:$G$120,(MATCH(C217,'3 - Land Summary'!$C$21:$C$120,0))),\"\")","v":""},{"$f":"IFERROR(INDEX('3 - Land Summary'!$I$21:$I$120,(MATCH(C217,'3 - Land Summary'!$C$21:$C$120,0))),\"\")","v":""},"","",null,null,null,{"$f":"IFERROR(VLOOKUP(D217,'Species List'!$D$10:$E$46,2,FALSE)*J217,\"\")","v":""},{"$f":"IFERROR(VLOOKUP(D217,'Species List'!$D$51:$E$89,2,FALSE)*J217,\"\")","v":""},{"$f":"IFERROR(VLOOKUP(D217,'Species List'!$D$95:$E$102,2,FALSE)*J217,\"\")","v":""},{"$f":"IFERROR(VLOOKUP(D217,'Species List'!$I$10:$J$11,2,FALSE)*J217,\"\")","v":""},{"$f":"IFERROR(VLOOKUP(D217,'Species List'!$I$16:$J$61,2,FALSE)*J217,\"\")","v":""},{"$f":"IFERROR(VLOOKUP(D217,'Species List'!$I$66:$J$66,2,FALSE)*J217,\"\")","v":""},{"$f":"IFERROR(VLOOKUP(D217,'Species List'!$I$71:$J$82,2,FALSE)*J217,\"\")","v":""},0,null,null,null,null,null,null,{"$f":"IFERROR(INDEX('3 - Land Summary'!$B$21:$B$120,(MATCH(AD217,'3 - Land Summary'!$C$21:$C$120,0))),\"\")","v":""}]
[null,{"$f":"IFERROR(INDEX('3 - Land Summary'!$B$21:$B$120,(MATCH('4 - Species Breakdown'!$V218,'3 - Land Summary'!$C$21:$C$120,0))),\"\")","v":""},null,null,{"$f":"IF(OR(COUNTIF('Look Up Data'!$D$149:$D$203,D218),COUNTIF('Look Up Data'!$D$149:$D$203,AE218)),\"YES\",\"NO\")","v":"NO"},null,null,{"$f":"IFERROR(INDEX('3 - Land Summary'!$G$21:$G$120,(MATCH(C218,'3 - Land Summary'!$C$21:$C$120,0))),\"\")","v":""},{"$f":"IFERROR(INDEX('3 - Land Summary'!$I$21:$I$120,(MATCH(C218,'3 - Land Summary'!$C$21:$C$120,0))),\"\")","v":""},"","",null,null,null,{"$f":"IFERROR(VLOOKUP(D218,'Species List'!$D$10:$E$46,2,FALSE)*J218,\"\")","v":""},{"$f":"IFERROR(VLOOKUP(D218,'Species List'!$D$51:$E$89,2,FALSE)*J218,\"\")","v":""},{"$f":"IFERROR(VLOOKUP(D218,'Species List'!$D$95:$E$102,2,FALSE)*J218,\"\")","v":""},{"$f":"IFERROR(VLOOKUP(D218,'Species List'!$I$10:$J$11,2,FALSE)*J218,\"\")","v":""},{"$f":"IFERROR(VLOOKUP(D218,'Species List'!$I$16:$J$61,2,FALSE)*J218,\"\")","v":""},{"$f":"IFERROR(VLOOKUP(D218,'Species List'!$I$66:$J$66,2,FALSE)*J218,\"\")","v":""},{"$f":"IFERROR(VLOOKUP(D218,'Species List'!$I$71:$J$82,2,FALSE)*J218,\"\")","v":""},0,null,null,null,null,null,null,{"$f":"IFERROR(INDEX('3 - Land Summary'!$B$21:$B$120,(MATCH(AD218,'3 - Land Summary'!$C$21:$C$120,0))),\"\")","v":""}]
[null,{"$f":"IFERROR(INDEX('3 - Land Summary'!$B$21:$B$120,(MATCH('4 - Species Breakdown'!$V219,'3 - Land Summary'!$C$21:$C$120,0))),\"\")","v":""},null,null,{"$f":"IF(OR(COUNTIF('Look Up Data'!$D$149:$D$203,D219),COUNTIF('Look Up Data'!$D$149:$D$203,AE219)),\"YES\",\"NO\")","v":"NO"},null,null,{"$f":"IFERROR(INDEX('3 - Land Summary'!$G$21:$G$120,(MATCH(C219,'3 - Land Summary'!$C$21:$C$120,0))),\"\")","v":""},{"$f":"IFERROR(INDEX('3 - Land Summary'!$I$21:$I$120,(MATCH(C219,'3 - Land Summary'!$C$21:$C$120,0))),\"\")","v":""},"","",null,null,null,{"$f":"IFERROR(VLOOKUP(D219,'Species List'!$D$10:$E$46,2,FALSE)*J219,\"\")","v":""},{"$f":"IFERROR(VLOOKUP(D219,'Species List'!$D$51:$E$89,2,FALSE)*J219,\"\")","v":""},{"$f":"IFERROR(VLOOKUP(D219,'Species List'!$D$95:$E$102,2,FALSE)*J219,\"\")","v":""},{"$f":"IFERROR(VLOOKUP(D219,'Species List'!$I$10:$J$11,2,FALSE)*J219,\"\")","v":""},{"$f":"IFERROR(VLOOKUP(D219,'Species List'!$I$16:$J$61,2,FALSE)*J219,\"\")","v":""},{"$f":"IFERROR(VLOOKUP(D219,'Species List'!$I$66:$J$66,2,FALSE)*J219,\"\")","v":""},{"$f":"IFERROR(VLOOKUP(D219,'Species List'!$I$71:$J$82,2,FALSE)*J219,\"\")","v":""},0,null,null,null,null,null,null,{"$f":"IFERROR(INDEX('3 - Land Summary'!$B$21:$B$120,(MATCH(AD219,'3 - Land Summary'!$C$21:$C$120,0))),\"\")","v":""}]
[null,{"$f":"IFERROR(INDEX('3 - Land Summary'!$B$21:$B$120,(MATCH('4 - Species Breakdown'!$V220,'3 - Land Summary'!$C$21:$C$120,0))),\"\")","v":""},null,null,{"$f":"IF(OR(COUNTIF('Look Up Data'!$D$149:$D$203,D220),COUNTIF('Look Up Data'!$D$149:$D$203,AE220)),\"YES\",\"NO\")","v":"NO"},null,null,{"$f":"IFERROR(INDEX('3 - Land Summary'!$G$21:$G$120,(MATCH(C220,'3 - Land Summary'!$C$21:$C$120,0))),\"\")","v":""},{"$f":"IFERROR(INDEX('3 - Land Summary'!$I$21:$I$120,(MATCH(C220,'3 - Land Summary'!$C$21:$C$120,0))),\"\")","v":""},"","",null,null,null,{"$f":"IFERROR(VLOOKUP(D220,'Species List'!$D$10:$E$46,2,FALSE)*J220,\"\")","v":""},{"$f":"IFERROR(VLOOKUP(D220,'Species List'!$D$51:$E$89,2,FALSE)*J220,\"\")","v":""},{"$f":"IFERROR(VLOOKUP(D220,'Species List'!$D$95:$E$102,2,FALSE)*J220,\"\")","v":""},{"$f":"IFERROR(VLOOKUP(D220,'Species List'!$I$10:$J$11,2,FALSE)*J220,\"\")","v":""},{"$f":"IFERROR(VLOOKUP(D220,'Species List'!$I$16:$J$61,2,FALSE)*J220,\"\")","v":""},{"$f":"IFERROR(VLOOKUP(D220,'Species List'!$I$66:$J$66,2,FALSE)*J220,\"\")","v":""},{"$f":"IFERROR(VLOOKUP(D220,'Species List'!$I$71:$J$82,2,FALSE)*J220,\"\")","v":""},0,null,null,null,null,null,null,{"$f":"IFERROR(INDEX('3 - Land Summary'!$B$21:$B$120,(MATCH(AD220,'3 - Land Summary'!$C$21:$C$120,0))),\"\")","v":""}]
[null,{"$f":"IFERROR(INDEX('3 - Land Summary'!$B$21:$B$120,(MATCH('4 - Species Breakdown'!$V221,'3 - Land Summary'!$C$21:$C$120,0))),\"\")","v":""},null,null,{"$f":"IF(OR(COUNTIF('Look Up Data'!$D$149:$D$203,D221),COUNTIF('Look Up Data'!$D$149:$D$203,AE221)),\"YES\",\"NO\")","v":"NO"},null,null,{"$f":"IFERROR(INDEX('3 - Land Summary'!$G$21:$G$120,(MATCH(C221,'3 - Land Summary'!$C$21:$C$120,0))),\"\")","v":""},{"$f":"IFERROR(INDEX('3 - Land Summary'!$I$21:$I$120,(MATCH(C221,'3 - Land Summary'!$C$21:$C$120,0))),\"\")","v":""},"","",null,null,null,{"$f":"IFERROR(VLOOKUP(D221,'Species List'!$D$10:$E$46,2,FALSE)*J221,\"\")","v":""},{"$f":"IFERROR(VLOOKUP(D221,'Species List'!$D$51:$E$89,2,FALSE)*J221,\"\")","v":""},{"$f":"IFERROR(VLOOKUP(D221,'Species List'!$D$95:$E$102,2,FALSE)*J221,\"\")","v":""},{"$f":"IFERROR(VLOOKUP(D221,'Species List'!$I$10:$J$11,2,FALSE)*J221,\"\")","v":""},{"$f":"IFERROR(VLOOKUP(D221,'Species List'!$I$16:$J$61,2,FALSE)*J221,\"\")","v":""},{"$f":"IFERROR(VLOOKUP(D221,'Species List'!$I$66:$J$66,2,FALSE)*J221,\"\")","v":""},{"$f":"IFERROR(VLOOKUP(D221,'Species List'!$I$71:$J$82,2,FALSE)*J221,\"\")","v":""},0,null,null,null,null,null,null,{"$f":"IFERROR(INDEX('3 - Land Summary'!$B$21:$B$120,(MATCH(AD221,'3 - Land Summary'!$C$21:$C$120,0))),\"\")","v":""}]
[null,{"$f":"IFERROR(INDEX('3 - Land Summary'!$B$21:$B$120,(MATCH('4 - Species Breakdown'!$V222,'3 - Land Summary'!$C$21:$C$120,0))),\"\")","v":""},null,null,{"$f":"IF(OR(COUNTIF('Look Up Data'!$D$149:$D$203,D222),COUNTIF('Look Up Data'!$D$149:$D$203,AE222)),\"YES\",\"NO\")","v":"NO"},null,null,{"$f":"IFERROR(INDEX('3 - Land Summary'!$G$21:$G$120,(MATCH(C222,'3 - Land Summary'!$C$21:$C$120,0))),\"\")","v":""},{"$f":"IFERROR(INDEX('3 - Land Summary'!$I$21:$I$120,(MATCH(C222,'3 - Land Summary'!$C$21:$C$120,0))),\"\")","v":""},"","",null,null,null,{"$f":"IFERROR(VLOOKUP(D222,'Species List'!$D$10:$E$46,2,FALSE)*J222,\"\")","v":""},{"$f":"IFERROR(VLOOKUP(D222,'Species List'!$D$51:$E$89,2,FALSE)*J222,\"\")","v":""},{"$f":"IFERROR(VLOOKUP(D222,'Species List'!$D$95:$E$102,2,FALSE)*J222,\"\")","v":""},{"$f":"IFERROR(VLOOKUP(D222,'Species List'!$I$10:$J$11,2,FALSE)*J222,\"\")","v":""},{"$f":"IFERROR(VLOOKUP(D222,'Species List'!$I$16:$J$61,2,FALSE)*J222,\"\")","v":""},{"$f":"IFERROR(VLOOKUP(D222,'Species List'!$I$66:$J$66,2,FALSE)*J222,\"\")","v":""},{"$f":"IFERROR(VLOOKUP(D222,'Species List'!$I$71:$J$82,2,FALSE)*J222,\"\")","v":""},0,null,null,null,null,null,null,{"$f":"IFERROR(INDEX('3 - Land Summary'!$B$21:$B$120,(MATCH(AD222,'3 - Land Summary'!$C$21:$C$120,0))),\"\")","v":""}]
[null,{"$f":"IFERROR(INDEX('3 - Land Summary'!$B$21:$B$120,(MATCH('4 - Species Breakdown'!$V223,'3 - Land Summary'!$C$21:$C$120,0))),\"\")","v":""},null,null,{"$f":"IF(OR(COUNTIF('Look Up Data'!$D$149:$D$203,D223),COUNTIF('Look Up Data'!$D$149:$D$203,AE223)),\"YES\",\"NO\")","v":"NO"},null,null,{"$f":"IFERROR(INDEX('3 - Land Summary'!$G$21:$G$120,(MATCH(C223,'3 - Land Summary'!$C$21:$C$120,0))),\"\")","v":""},{"$f":"IFERROR(INDEX('3 - Land Summary'!$I$21:$I$120,(MATCH(C223,'3 - Land Summary'!$C$21:$C$120,0))),\"\")","v":""},{"$f":"IFERROR(((H223-I223)*F223)/100,\"\")","v":""},"",null,null,null,{"$f":"IFERROR(VLOOKUP(D223,'Species List'!$D$10:$E$46,2,FALSE)*J223,\"\")","v":""},{"$f":"IFERROR(VLOOKUP(D223,'Species List'!$D$51:$E$89,2,FALSE)*J223,\"\")","v":""},{"$f":"IFERROR(VLOOKUP(D223,'Species List'!$D$95:$E$102,2,FALSE)*J223,\"\")","v":""},{"$f":"IFERROR(VLOOKUP(D223,'Species List'!$I$10:$J$11,2,FALSE)*J223,\"\")","v":""},{"$f":"IFERROR(VLOOKUP(D223,'Species List'!$I$16:$J$61,2,FALSE)*J223,\"\")","v":""},{"$f":"IFERROR(VLOOKUP(D223,'Species List'!$I$66:$J$66,2,FALSE)*J223,\"\")","v":""},{"$f":"IFERROR(VLOOKUP(D223,'Species List'!$I$71:$J$82,2,FALSE)*J223,\"\")","v":""},{"$f":"C223","v":0},null,null,null,null,null,null,{"$f":"IFERROR(INDEX('3 - Land Summary'!$B$21:$B$120,(MATCH(AD223,'3 - Land Summary'!$C$21:$C$120,0))),\"\")","v":""}]
[null,{"$f":"IFERROR(INDEX('3 - Land Summary'!$B$21:$B$120,(MATCH('4 - Species Breakdown'!$V224,'3 - Land Summary'!$C$21:$C$120,0))),\"\")","v":""},null,null,{"$f":"IF(OR(COUNTIF('Look Up Data'!$D$149:$D$203,D224),COUNTIF('Look Up Data'!$D$149:$D$203,AE224)),\"YES\",\"NO\")","v":"NO"},null,null,{"$f":"IFERROR(INDEX('3 - Land Summary'!$G$21:$G$120,(MATCH(C224,'3 - Land Summary'!$C$21:$C$120,0))),\"\")","v":""},{"$f":"IFERROR(INDEX('3 - Land Summary'!$I$21:$I$120,(MATCH(C224,'3 - Land Summary'!$C$21:$C$120,0))),\"\")","v":""},"",{"$f":"IFERROR(ROUND(J224*G224,0),\"\")","v":""},null,null,null,{"$f":"IFERROR(VLOOKUP(D224,'Species List'!$D$10:$E$46,2,FALSE)*J224,\"\")","v":""},{"$f":"IFERROR(VLOOKUP(D224,'Species List'!$D$51:$E$89,2,FALSE)*J224,\"\")","v":""},{"$f":"IFERROR(VLOOKUP(D224,'Species List'!$D$95:$E$102,2,FALSE)*J224,\"\")","v":""},{"$f":"IFERROR(VLOOKUP(D224,'Species List'!$I$10:$J$11,2,FALSE)*J224,\"\")","v":""},{"$f":"IFERROR(VLOOKUP(D224,'Species List'!$I$16:$J$61,2,FALSE)*J224,\"\")","v":""},{"$f":"IFERROR(VLOOKUP(D224,'Species List'!$I$66:$J$66,2,FALSE)*J224,\"\")","v":""},{"$f":"IFERROR(VLOOKUP(D224,'Species List'!$I$71:$J$82,2,FALSE)*J224,\"\")","v":""},0,null,null,null,null,null,null,{"$f":"IFERROR(INDEX('3 - Land Summary'!$B$21:$B$120,(MATCH(AD224,'3 - Land Summary'!$C$21:$C$120,0))),\"\")","v":""}]
[null,{"$f":"IFERROR(INDEX('3 - Land Summary'!$B$21:$B$120,(MATCH('4 - Species Breakdown'!$V225,'3 - Land Summary'!$C$21:$C$120,0))),\"\")","v":""},null,null,{"$f":"IF(OR(COUNTIF('Look Up Data'!$D$149:$D$203,D225),COUNTIF('Look Up Data'!$D$149:$D$203,AE225)),\"YES\",\"NO\")","v":"NO"},null,null,{"$f":"IFERROR(INDEX('3 - Land Summary'!$G$21:$G$120,(MATCH(C225,'3 - Land Summary'!$C$21:$C$120,0))),\"\")","v":""},{"$f":"IFERROR(INDEX('3 - Land Summary'!$I$21:$I$120,(MATCH(C225,'3 - Land Summary'!$C$21:$C$120,0))),\"\")","v":""},"","",null,null,null,{"$f":"IFERROR(VLOOKUP(D225,'Species List'!$D$10:$E$46,2,FALSE)*J225,\"\")","v":""},{"$f":"IFERROR(VLOOKUP(D225,'Species List'!$D$51:$E$89,2,FALSE)*J225,\"\")","v":""},{"$f":"IFERROR(VLOOKUP(D225,'Species List'!$D$95:$E$102,2,FALSE)*J225,\"\")","v":""},{"$f":"IFERROR(VLOOKUP(D225,'Species List'!$I$10:$J$11,2,FALSE)*J225,\"\")","v":""},{"$f":"IFERROR(VLOOKUP(D225,'Species List'!$I$16:$J$61,2,FALSE)*J225,\"\")","v":""},{"$f":"IFERROR(VLOOKUP(D225,'Species List'!$I$66:$J$66,2,FALSE)*J225,\"\")","v":""},{"$f":"IFERROR(VLOOKUP(D225,'Species List'!$I$71:$J$82,2,FALSE)*J225,\"\")","v":""},0,null,null,null,null,null,null,{"$f":"IFERROR(INDEX('3 - Land Summary'!$B$21:$B$120,(MATCH(AD225,'3 - Land Summary'!$C$21:$C$120,0))),\"\")","v":""}]
[null,{"$f":"IFERROR(INDEX('3 - Land Summary'!$B$21:$B$120,(MATCH('4 - Species Breakdown'!$V226,'3 - Land Summary'!$C$21:$C$120,0))),\"\")","v":""},null,null,{"$f":"IF(OR(COUNTIF('Look Up Data'!$D$149:$D$203,D226),COUNTIF('Look Up Data'!$D$149:$D$203,AE226)),\"YES\",\"NO\")","v":"NO"},null,null,{"$f":"IFERROR(INDEX('3 - Land Summary'!$G$21:$G$120,(MATCH(C226,'3 - Land Summary'!$C$21:$C$120,0))),\"\")","v":""},{"$f":"IFERROR(INDEX('3 - Land Summary'!$I$21:$I$120,(MATCH(C226,'3 - Land Summary'!$C$21:$C$120,0))),\"\")","v":""},"","",null,null,null,{"$f":"IFERROR(VLOOKUP(D226,'Species List'!$D$10:$E$46,2,FALSE)*J226,\"\")","v":""},{"$f":"IFERROR(VLOOKUP(D226,'Species List'!$D$51:$E$89,2,FALSE)*J226,\"\")","v":""},{"$f":"IFERROR(VLOOKUP(D226,'Species List'!$D$95:$E$102,2,FALSE)*J226,\"\")","v":""},{"$f":"IFERROR(VLOOKUP(D226,'Species List'!$I$10:$J$11,2,FALSE)*J226,\"\")","v":""},{"$f":"IFERROR(VLOOKUP(D226,'Species List'!$I$16:$J$61,2,FALSE)*J226,\"\")","v":""},{"$f":"IFERROR(VLOOKUP(D226,'Species List'!$I$66:$J$66,2,FALSE)*J226,\"\")","v":""},{"$f":"IFERROR(VLOOKUP(D226,'Species List'!$I$71:$J$82,2,FALSE)*J226,\"\")","v":""},0,null,null,null,null,null,null,{"$f":"IFERROR(INDEX('3 - Land Summary'!$B$21:$B$120,(MATCH(AD226,'3 - Land Summary'!$C$21:$C$120,0))),\"\")","v":""}]
[null,{"$f":"IFERROR(INDEX('3 - Land Summary'!$B$21:$B$120,(MATCH('4 - Species Breakdown'!$V227,'3 - Land Summary'!$C$21:$C$120,0))),\"\")","v":""},null,null,{"$f":"IF(OR(COUNTIF('Look Up Data'!$D$149:$D$203,D227),COUNTIF('Look Up Data'!$D$149:$D$203,AE227)),\"YES\",\"NO\")","v":"NO"},null,null,{"$f":"IFERROR(INDEX('3 - Land Summary'!$G$21:$G$120,(MATCH(C227,'3 - Land Summary'!$C$21:$C$120,0))),\"\")","v":""},{"$f":"IFERROR(INDEX('3 - Land Summary'!$I$21:$I$120,(MATCH(C227,'3 - Land Summary'!$C$21:$C$120,0))),\"\")","v":""},"","",null,null,null,{"$f":"IFERROR(VLOOKUP(D227,'Species List'!$D$10:$E$46,2,FALSE)*J227,\"\")","v":""},{"$f":"IFERROR(VLOOKUP(D227,'Species List'!$D$51:$E$89,2,FALSE)*J227,\"\")","v":""},{"$f":"IFERROR(VLOOKUP(D227,'Species List'!$D$95:$E$102,2,FALSE)*J227,\"\")","v":""},{"$f":"IFERROR(VLOOKUP(D227,'Species List'!$I$10:$J$11,2,FALSE)*J227,\"\")","v":""},{"$f":"IFERROR(VLOOKUP(D227,'Species List'!$I$16:$J$61,2,FALSE)*J227,\"\")","v":""},{"$f":"IFERROR(VLOOKUP(D227,'Species List'!$I$66:$J$66,2,FALSE)*J227,\"\")","v":""},{"$f":"IFERROR(VLOOKUP(D227,'Species List'!$I$71:$J$82,2,FALSE)*J227,\"\")","v":""},0,null,null,null,null,null,null,{"$f":"IFERROR(INDEX('3 - Land Summary'!$B$21:$B$120,(MATCH(AD227,'3 - Land Summary'!$C$21:$C$120,0))),\"\")","v":""}]
[null,{"$f":"IFERROR(INDEX('3 - Land Summary'!$B$21:$B$120,(MATCH('4 - Species Breakdown'!$V228,'3 - Land Summary'!$C$21:$C$120,0))),\"\")","v":""},null,null,{"$f":"IF(OR(COUNTIF('Look Up Data'!$D$149:$D$203,D228),COUNTIF('Look Up Data'!$D$149:$D$203,AE228)),\"YES\",\"NO\")","v":"NO"},null,null,{"$f":"IFERROR(INDEX('3 - Land Summary'!$G$21:$G$120,(MATCH(C228,'3 - Land Summary'!$C$21:$C$120,0))),\"\")","v":""},{"$f":"IFERROR(INDEX('3 - Land Summary'!$I$21:$I$120,(MATCH(C228,'3 - Land Summary'!$C$21:$C$120,0))),\"\")","v":""},"","",null,null,null,{"$f":"IFERROR(VLOOKUP(D228,'Species List'!$D$10:$E$46,2,FALSE)*J228,\"\")","v":""},{"$f":"IFERROR(VLOOKUP(D228,'Species List'!$D$51:$E$89,2,FALSE)*J228,\"\")","v":""},{"$f":"IFERROR(VLOOKUP(D228,'Species List'!$D$95:$E$102,2,FALSE)*J228,\"\")","v":""},{"$f":"IFERROR(VLOOKUP(D228,'Species List'!$I$10:$J$11,2,FALSE)*J228,\"\")","v":""},{"$f":"IFERROR(VLOOKUP(D228,'Species List'!$I$16:$J$61,2,FALSE)*J228,\"\")","v":""},{"$f":"IFERROR(VLOOKUP(D228,'Species List'!$I$66:$J$66,2,FALSE)*J228,\"\")","v":""},{"$f":"IFERROR(VLOOKUP(D228,'Species List'!$I$71:$J$82,2,FALSE)*J228,\"\")","v":""},0,null,null,null,null,null,null,{"$f":"IFERROR(INDEX('3 - Land Summary'!$B$21:$B$120,(MATCH(AD228,'3 - Land Summary'!$C$21:$C$120,0))),\"\")","v":""}]
[null,{"$f":"IFERROR(INDEX('3 - Land Summary'!$B$21:$B$120,(MATCH('4 - Species Breakdown'!$V229,'3 - Land Summary'!$C$21:$C$120,0))),\"\")","v":""},null,null,{"$f":"IF(OR(COUNTIF('Look Up Data'!$D$149:$D$203,D229),COUNTIF('Look Up Data'!$D$149:$D$203,AE229)),\"YES\",\"NO\")","v":"NO"},null,null,{"$f":"IFERROR(INDEX('3 - Land Summary'!$G$21:$G$120,(MATCH(C229,'3 - Land Summary'!$C$21:$C$120,0))),\"\")","v":""},{"$f":"IFERROR(INDEX('3 - Land Summary'!$I$21:$I$120,(MATCH(C229,'3 - Land Summary'!$C$21:$C$120,0))),\"\")","v":""},"","",null,null,null,{"$f":"IFERROR(VLOOKUP(D229,'Species List'!$D$10:$E$46,2,FALSE)*J229,\"\")","v":""},{"$f":"IFERROR(VLOOKUP(D229,'Species List'!$D$51:$E$89,2,FALSE)*J229,\"\")","v":""},{"$f":"IFERROR(VLOOKUP(D229,'Species List'!$D$95:$E$102,2,FALSE)*J229,\"\")","v":""},{"$f":"IFERROR(VLOOKUP(D229,'Species List'!$I$10:$J$11,2,FALSE)*J229,\"\")","v":""},{"$f":"IFERROR(VLOOKUP(D229,'Species List'!$I$16:$J$61,2,FALSE)*J229,\"\")","v":""},{"$f":"IFERROR(VLOOKUP(D229,'Species List'!$I$66:$J$66,2,FALSE)*J229,\"\")","v":""},{"$f":"IFERROR(VLOOKUP(D229,'Species List'!$I$71:$J$82,2,FALSE)*J229,\"\")","v":""},0,null,null,null,null,null,null,{"$f":"IFERROR(INDEX('3 - Land Summary'!$B$21:$B$120,(MATCH(AD229,'3 - Land Summary'!$C$21:$C$120,0))),\"\")","v":""}]
[null,{"$f":"IFERROR(INDEX('3 - Land Summary'!$B$21:$B$120,(MATCH('4 - Species Breakdown'!$V230,'3 - Land Summary'!$C$21:$C$120,0))),\"\")","v":""},null,null,{"$f":"IF(OR(COUNTIF('Look Up Data'!$D$149:$D$203,D230),COUNTIF('Look Up Data'!$D$149:$D$203,AE230)),\"YES\",\"NO\")","v":"NO"},null,null,{"$f":"IFERROR(INDEX('3 - Land Summary'!$G$21:$G$120,(MATCH(C230,'3 - Land Summary'!$C$21:$C$120,0))),\"\")","v":""},{"$f":"IFERROR(INDEX('3 - Land Summary'!$I$21:$I$120,(MATCH(C230,'3 - Land Summary'!$C$21:$C$120,0))),\"\")","v":""},"","",null,null,null,{"$f":"IFERROR(VLOOKUP(D230,'Species List'!$D$10:$E$46,2,FALSE)*J230,\"\")","v":""},{"$f":"IFERROR(VLOOKUP(D230,'Species List'!$D$51:$E$89,2,FALSE)*J230,\"\")","v":""},{"$f":"IFERROR(VLOOKUP(D230,'Species List'!$D$95:$E$102,2,FALSE)*J230,\"\")","v":""},{"$f":"IFERROR(VLOOKUP(D230,'Species List'!$I$10:$J$11,2,FALSE)*J230,\"\")","v":""},{"$f":"IFERROR(VLOOKUP(D230,'Species List'!$I$16:$J$61,2,FALSE)*J230,\"\")","v":""},{"$f":"IFERROR(VLOOKUP(D230,'Species List'!$I$66:$J$66,2,FALSE)*J230,\"\")","v":""},{"$f":"IFERROR(VLOOKUP(D230,'Species List'!$I$71:$J$82,2,FALSE)*J230,\"\")","v":""},0,null,null,null,null,null,null,{"$f":"IFERROR(INDEX('3 - Land Summary'!$B$21:$B$120,(MATCH(AD230,'3 - Land Summary'!$C$21:$C$120,0))),\"\")","v":""}]
[null,{"$f":"IFERROR(INDEX('3 - Land Summary'!$B$21:$B$120,(MATCH('4 - Species Breakdown'!$V231,'3 - Land Summary'!$C$21:$C$120,0))),\"\")","v":""},null,null,{"$f":"IF(OR(COUNTIF('Look Up Data'!$D$149:$D$203,D231),COUNTIF('Look Up Data'!$D$149:$D$203,AE231)),\"YES\",\"NO\")","v":"NO"},null,null,{"$f":"IFERROR(INDEX('3 - Land Summary'!$G$21:$G$120,(MATCH(C231,'3 - Land Summary'!$C$21:$C$120,0))),\"\")","v":""},{"$f":"IFERROR(INDEX('3 - Land Summary'!$I$21:$I$120,(MATCH(C231,'3 - Land Summary'!$C$21:$C$120,0))),\"\")","v":""},"","",null,null,null,{"$f":"IFERROR(VLOOKUP(D231,'Species List'!$D$10:$E$46,2,FALSE)*J231,\"\")","v":""},{"$f":"IFERROR(VLOOKUP(D231,'Species List'!$D$51:$E$89,2,FALSE)*J231,\"\")","v":""},{"$f":"IFERROR(VLOOKUP(D231,'Species List'!$D$95:$E$102,2,FALSE)*J231,\"\")","v":""},{"$f":"IFERROR(VLOOKUP(D231,'Species List'!$I$10:$J$11,2,FALSE)*J231,\"\")","v":""},{"$f":"IFERROR(VLOOKUP(D231,'Species List'!$I$16:$J$61,2,FALSE)*J231,\"\")","v":""},{"$f":"IFERROR(VLOOKUP(D231,'Species List'!$I$66:$J$66,2,FALSE)*J231,\"\")","v":""},{"$f":"IFERROR(VLOOKUP(D231,'Species List'!$I$71:$J$82,2,FALSE)*J231,\"\")","v":""},0,null,null,null,null,null,null,{"$f":"IFERROR(INDEX('3 - Land Summary'!$B$21:$B$120,(MATCH(AD231,'3 - Land Summary'!$C$21:$C$120,0))),\"\")","v":""}]
[null,{"$f":"IFERROR(INDEX('3 - Land Summary'!$B$21:$B$120,(MATCH('4 - Species Breakdown'!$V232,'3 - Land Summary'!$C$21:$C$120,0))),\"\")","v":""},null,null,{"$f":"IF(OR(COUNTIF('Look Up Data'!$D$149:$D$203,D232),COUNTIF('Look Up Data'!$D$149:$D$203,AE232)),\"YES\",\"NO\")","v":"NO"},null,null,{"$f":"IFERROR(INDEX('3 - Land Summary'!$G$21:$G$120,(MATCH(C232,'3 - Land Summary'!$C$21:$C$120,0))),\"\")","v":""},{"$f":"IFERROR(INDEX('3 - Land Summary'!$I$21:$I$120,(MATCH(C232,'3 - Land Summary'!$C$21:$C$120,0))),\"\")","v":""},"","",null,null,null,{"$f":"IFERROR(VLOOKUP(D232,'Species List'!$D$10:$E$46,2,FALSE)*J232,\"\")","v":""},{"$f":"IFERROR(VLOOKUP(D232,'Species List'!$D$51:$E$89,2,FALSE)*J232,\"\")","v":""},{"$f":"IFERROR(VLOOKUP(D232,'Species List'!$D$95:$E$102,2,FALSE)*J232,\"\")","v":""},{"$f":"IFERROR(VLOOKUP(D232,'Species List'!$I$10:$J$11,2,FALSE)*J232,\"\")","v":""},{"$f":"IFERROR(VLOOKUP(D232,'Species List'!$I$16:$J$61,2,FALSE)*J232,\"\")","v":""},{"$f":"IFERROR(VLOOKUP(D232,'Species List'!$I$66:$J$66,2,FALSE)*J232,\"\")","v":""},{"$f":"IFERROR(VLOOKUP(D232,'Species List'!$I$71:$J$82,2,FALSE)*J232,\"\")","v":""},0,null,null,null,null,null,null,{"$f":"IFERROR(INDEX('3 - Land Summary'!$B$21:$B$120,(MATCH(AD232,'3 - Land Summary'!$C$21:$C$120,0))),\"\")","v":""}]
[null,{"$f":"IFERROR(INDEX('3 - Land Summary'!$B$21:$B$120,(MATCH('4 - Species Breakdown'!$V233,'3 - Land Summary'!$C$21:$C$120,0))),\"\")","v":""},null,null,{"$f":"IF(OR(COUNTIF('Look Up Data'!$D$149:$D$203,D233),COUNTIF('Look Up Data'!$D$149:$D$203,AE233)),\"YES\",\"NO\")","v":"NO"},null,null,{"$f":"IFERROR(INDEX('3 - Land Summary'!$G$21:$G$120,(MATCH(C233,'3 - Land Summary'!$C$21:$C$120,0))),\"\")","v":""},{"$f":"IFERROR(INDEX('3 - Land Summary'!$I$21:$I$120,(MATCH(C233,'3 - Land Summary'!$C$21:$C$120,0))),\"\")","v":""},"","",null,null,null,{"$f":"IFERROR(VLOOKUP(D233,'Species List'!$D$10:$E$46,2,FALSE)*J233,\"\")","v":""},{"$f":"IFERROR(VLOOKUP(D233,'Species List'!$D$51:$E$89,2,FALSE)*J233,\"\")","v":""},{"$f":"IFERROR(VLOOKUP(D233,'Species List'!$D$95:$E$102,2,FALSE)*J233,\"\")","v":""},{"$f":"IFERROR(VLOOKUP(D233,'Species List'!$I$10:$J$11,2,FALSE)*J233,\"\")","v":""},{"$f":"IFERROR(VLOOKUP(D233,'Species List'!$I$16:$J$61,2,FALSE)*J233,\"\")","v":""},{"$f":"IFERROR(VLOOKUP(D233,'Species List'!$I$66:$J$66,2,FALSE)*J233,\"\")","v":""},{"$f":"IFERROR(VLOOKUP(D233,'Species List'!$I$71:$J$82,2,FALSE)*J233,\"\")","v":""},0,null,null,null,null,null,null,{"$f":"IFERROR(INDEX('3 - Land Summary'!$B$21:$B$120,(MATCH(AD233,'3 - Land Summary'!$C$21:$C$120,0))),\"\")","v":""}]
[null,{"$f":"IFERROR(INDEX('3 - Land Summary'!$B$21:$B$120,(MATCH('4 - Species Breakdown'!$V234,'3 - Land Summary'!$C$21:$C$120,0))),\"\")","v":""},null,null,{"$f":"IF(OR(COUNTIF('Look Up Data'!$D$149:$D$203,D234),COUNTIF('Look Up Data'!$D$149:$D$203,AE234)),\"YES\",\"NO\")","v":"NO"},null,null,{"$f":"IFERROR(INDEX('3 - Land Summary'!$G$21:$G$120,(MATCH(C234,'3 - Land Summary'!$C$21:$C$120,0))),\"\")","v":""},{"$f":"IFERROR(INDEX('3 - Land Summary'!$I$21:$I$120,(MATCH(C234,'3 - Land Summary'!$C$21:$C$120,0))),\"\")","v":""},"","",null,null,null,{"$f":"IFERROR(VLOOKUP(D234,'Species List'!$D$10:$E$46,2,FALSE)*J234,\"\")","v":""},{"$f":"IFERROR(VLOOKUP(D234,'Species List'!$D$51:$E$89,2,FALSE)*J234,\"\")","v":""},{"$f":"IFERROR(VLOOKUP(D234,'Species List'!$D$95:$E$102,2,FALSE)*J234,\"\")","v":""},{"$f":"IFERROR(VLOOKUP(D234,'Species List'!$I$10:$J$11,2,FALSE)*J234,\"\")","v":""},{"$f":"IFERROR(VLOOKUP(D234,'Species List'!$I$16:$J$61,2,FALSE)*J234,\"\")","v":""},{"$f":"IFERROR(VLOOKUP(D234,'Species List'!$I$66:$J$66,2,FALSE)*J234,\"\")","v":""},{"$f":"IFERROR(VLOOKUP(D234,'Species List'!$I$71:$J$82,2,FALSE)*J234,\"\")","v":""},0,null,null,null,null,null,null,{"$f":"IFERROR(INDEX('3 - Land Summary'!$B$21:$B$120,(MATCH(AD234,'3 - Land Summary'!$C$21:$C$120,0))),\"\")","v":""}]
[null,{"$f":"IFERROR(INDEX('3 - Land Summary'!$B$21:$B$120,(MATCH('4 - Species Breakdown'!$V235,'3 - Land Summary'!$C$21:$C$120,0))),\"\")","v":""},null,null,{"$f":"IF(OR(COUNTIF('Look Up Data'!$D$149:$D$203,D235),COUNTIF('Look Up Data'!$D$149:$D$203,AE235)),\"YES\",\"NO\")","v":"NO"},null,null,{"$f":"IFERROR(INDEX('3 - Land Summary'!$G$21:$G$120,(MATCH(C235,'3 - Land Summary'!$C$21:$C$120,0))),\"\")","v":""},{"$f":"IFERROR(INDEX('3 - Land Summary'!$I$21:$I$120,(MATCH(C235,'3 - Land Summary'!$C$21:$C$120,0))),\"\")","v":""},"","",null,null,null,{"$f":"IFERROR(VLOOKUP(D235,'Species List'!$D$10:$E$46,2,FALSE)*J235,\"\")","v":""},{"$f":"IFERROR(VLOOKUP(D235,'Species List'!$D$51:$E$89,2,FALSE)*J235,\"\")","v":""},{"$f":"IFERROR(VLOOKUP(D235,'Species List'!$D$95:$E$102,2,FALSE)*J235,\"\")","v":""},{"$f":"IFERROR(VLOOKUP(D235,'Species List'!$I$10:$J$11,2,FALSE)*J235,\"\")","v":""},{"$f":"IFERROR(VLOOKUP(D235,'Species List'!$I$16:$J$61,2,FALSE)*J235,\"\")","v":""},{"$f":"IFERROR(VLOOKUP(D235,'Species List'!$I$66:$J$66,2,FALSE)*J235,\"\")","v":""},{"$f":"IFERROR(VLOOKUP(D235,'Species List'!$I$71:$J$82,2,FALSE)*J235,\"\")","v":""},0,null,null,null,null,null,null,{"$f":"IFERROR(INDEX('3 - Land Summary'!$B$21:$B$120,(MATCH(AD235,'3 - Land Summary'!$C$21:$C$120,0))),\"\")","v":""}]
[null,{"$f":"IFERROR(INDEX('3 - Land Summary'!$B$21:$B$120,(MATCH('4 - Species Breakdown'!$V236,'3 - Land Summary'!$C$21:$C$120,0))),\"\")","v":""},null,null,{"$f":"IF(OR(COUNTIF('Look Up Data'!$D$149:$D$203,D236),COUNTIF('Look Up Data'!$D$149:$D$203,AE236)),\"YES\",\"NO\")","v":"NO"},null,null,{"$f":"IFERROR(INDEX('3 - Land Summary'!$G$21:$G$120,(MATCH(C236,'3 - Land Summary'!$C$21:$C$120,0))),\"\")","v":""},{"$f":"IFERROR(INDEX('3 - Land Summary'!$I$21:$I$120,(MATCH(C236,'3 - Land Summary'!$C$21:$C$120,0))),\"\")","v":""},"","",null,null,null,{"$f":"IFERROR(VLOOKUP(D236,'Species List'!$D$10:$E$46,2,FALSE)*J236,\"\")","v":""},{"$f":"IFERROR(VLOOKUP(D236,'Species List'!$D$51:$E$89,2,FALSE)*J236,\"\")","v":""},{"$f":"IFERROR(VLOOKUP(D236,'Species List'!$D$95:$E$102,2,FALSE)*J236,\"\")","v":""},{"$f":"IFERROR(VLOOKUP(D236,'Species List'!$I$10:$J$11,2,FALSE)*J236,\"\")","v":""},{"$f":"IFERROR(VLOOKUP(D236,'Species List'!$I$16:$J$61,2,FALSE)*J236,\"\")","v":""},{"$f":"IFERROR(VLOOKUP(D236,'Species List'!$I$66:$J$66,2,FALSE)*J236,\"\")","v":""},{"$f":"IFERROR(VLOOKUP(D236,'Species List'!$I$71:$J$82,2,FALSE)*J236,\"\")","v":""},0,null,null,null,null,null,null,{"$f":"IFERROR(INDEX('3 - Land Summary'!$B$21:$B$120,(MATCH(AD236,'3 - Land Summary'!$C$21:$C$120,0))),\"\")","v":""}]
[null,{"$f":"IFERROR(INDEX('3 - Land Summary'!$B$21:$B$120,(MATCH('4 - Species Breakdown'!$V237,'3 - Land Summary'!$C$21:$C$120,0))),\"\")","v":""},null,null,{"$f":"IF(OR(COUNTIF('Look Up Data'!$D$149:$D$203,D237),COUNTIF('Look Up Data'!$D$149:$D$203,AE237)),\"YES\",\"NO\")","v":"NO"},null,null,{"$f":"IFERROR(INDEX('3 - Land Summary'!$G$21:$G$120,(MATCH(C237,'3 - Land Summary'!$C$21:$C$120,0))),\"\")","v":""},{"$f":"IFERROR(INDEX('3 - Land Summary'!$I$21:$I$120,(MATCH(C237,'3 - Land Summary'!$C$21:$C$120,0))),\"\")","v":""},"","",null,null,null,{"$f":"IFERROR(VLOOKUP(D237,'Species List'!$D$10:$E$46,2,FALSE)*J237,\"\")","v":""},{"$f":"IFERROR(VLOOKUP(D237,'Species List'!$D$51:$E$89,2,FALSE)*J237,\"\")","v":""},{"$f":"IFERROR(VLOOKUP(D237,'Species List'!$D$95:$E$102,2,FALSE)*J237,\"\")","v":""},{"$f":"IFERROR(VLOOKUP(D237,'Species List'!$I$10:$J$11,2,FALSE)*J237,\"\")","v":""},{"$f":"IFERROR(VLOOKUP(D237,'Species List'!$I$16:$J$61,2,FALSE)*J237,\"\")","v":""},{"$f":"IFERROR(VLOOKUP(D237,'Species List'!$I$66:$J$66,2,FALSE)*J237,\"\")","v":""},{"$f":"IFERROR(VLOOKUP(D237,'Species List'!$I$71:$J$82,2,FALSE)*J237,\"\")","v":""},0,null,null,null,null,null,null,{"$f":"IFERROR(INDEX('3 - Land Summary'!$B$21:$B$120,(MATCH(AD237,'3 - Land Summary'!$C$21:$C$120,0))),\"\")","v":""}]
[null,{"$f":"IFERROR(INDEX('3 - Land Summary'!$B$21:$B$120,(MATCH('4 - Species Breakdown'!$V238,'3 - Land Summary'!$C$21:$C$120,0))),\"\")","v":""},null,null,{"$f":"IF(OR(COUNTIF('Look Up Data'!$D$149:$D$203,D238),COUNTIF('Look Up Data'!$D$149:$D$203,AE238)),\"YES\",\"NO\")","v":"NO"},null,null,{"$f":"IFERROR(INDEX('3 - Land Summary'!$G$21:$G$120,(MATCH(C238,'3 - Land Summary'!$C$21:$C$120,0))),\"\")","v":""},{"$f":"IFERROR(INDEX('3 - Land Summary'!$I$21:$I$120,(MATCH(C238,'3 - Land Summary'!$C$21:$C$120,0))),\"\")","v":""},"","",null,null,null,{"$f":"IFERROR(VLOOKUP(D238,'Species List'!$D$10:$E$46,2,FALSE)*J238,\"\")","v":""},{"$f":"IFERROR(VLOOKUP(D238,'Species List'!$D$51:$E$89,2,FALSE)*J238,\"\")","v":""},{"$f":"IFERROR(VLOOKUP(D238,'Species List'!$D$95:$E$102,2,FALSE)*J238,\"\")","v":""},{"$f":"IFERROR(VLOOKUP(D238,'Species List'!$I$10:$J$11,2,FALSE)*J238,\"\")","v":""},{"$f":"IFERROR(VLOOKUP(D238,'Species List'!$I$16:$J$61,2,FALSE)*J238,\"\")","v":""},{"$f":"IFERROR(VLOOKUP(D238,'Species List'!$I$66:$J$66,2,FALSE)*J238,\"\")","v":""},{"$f":"IFERROR(VLOOKUP(D238,'Species List'!$I$71:$J$82,2,FALSE)*J238,\"\")","v":""},0,null,null,null,null,null,null,{"$f":"IFERROR(INDEX('3 - Land Summary'!$B$21:$B$120,(MATCH(AD238,'3 - Land Summary'!$C$21:$C$120,0))),\"\")","v":""}]
[null,{"$f":"IFERROR(INDEX('3 - Land Summary'!$B$21:$B$120,(MATCH('4 - Species Breakdown'!$V239,'3 - Land Summary'!$C$21:$C$120,0))),\"\")","v":""},null,null,{"$f":"IF(OR(COUNTIF('Look Up Data'!$D$149:$D$203,D239),COUNTIF('Look Up Data'!$D$149:$D$203,AE239)),\"YES\",\"NO\")","v":"NO"},null,null,{"$f":"IFERROR(INDEX('3 - Land Summary'!$G$21:$G$120,(MATCH(C239,'3 - Land Summary'!$C$21:$C$120,0))),\"\")","v":""},{"$f":"IFERROR(INDEX('3 - Land Summary'!$I$21:$I$120,(MATCH(C239,'3 - Land Summary'!$C$21:$C$120,0))),\"\")","v":""},"","",null,null,null,{"$f":"IFERROR(VLOOKUP(D239,'Species List'!$D$10:$E$46,2,FALSE)*J239,\"\")","v":""},{"$f":"IFERROR(VLOOKUP(D239,'Species List'!$D$51:$E$89,2,FALSE)*J239,\"\")","v":""},{"$f":"IFERROR(VLOOKUP(D239,'Species List'!$D$95:$E$102,2,FALSE)*J239,\"\")","v":""},{"$f":"IFERROR(VLOOKUP(D239,'Species List'!$I$10:$J$11,2,FALSE)*J239,\"\")","v":""},{"$f":"IFERROR(VLOOKUP(D239,'Species List'!$I$16:$J$61,2,FALSE)*J239,\"\")","v":""},{"$f":"IFERROR(VLOOKUP(D239,'Species List'!$I$66:$J$66,2,FALSE)*J239,\"\")","v":""},{"$f":"IFERROR(VLOOKUP(D239,'Species List'!$I$71:$J$82,2,FALSE)*J239,\"\")","v":""},0,null,null,null,null,null,null,{"$f":"IFERROR(INDEX('3 - Land Summary'!$B$21:$B$120,(MATCH(AD239,'3 - Land Summary'!$C$21:$C$120,0))),\"\")","v":""}]
[null,{"$f":"IFERROR(INDEX('3 - Land Summary'!$B$21:$B$120,(MATCH('4 - Species Breakdown'!$V240,'3 - Land Summary'!$C$21:$C$120,0))),\"\")","v":""},null,null,{"$f":"IF(OR(COUNTIF('Look Up Data'!$D$149:$D$203,D240),COUNTIF('Look Up Data'!$D$149:$D$203,AE240)),\"YES\",\"NO\")","v":"NO"},null,null,{"$f":"IFERROR(INDEX('3 - Land Summary'!$G$21:$G$120,(MATCH(C240,'3 - Land Summary'!$C$21:$C$120,0))),\"\")","v":""},{"$f":"IFERROR(INDEX('3 - Land Summary'!$I$21:$I$120,(MATCH(C240,'3 - Land Summary'!$C$21:$C$120,0))),\"\")","v":""},"","",null,null,null,{"$f":"IFERROR(VLOOKUP(D240,'Species List'!$D$10:$E$46,2,FALSE)*J240,\"\")","v":""},{"$f":"IFERROR(VLOOKUP(D240,'Species List'!$D$51:$E$89,2,FALSE)*J240,\"\")","v":""},{"$f":"IFERROR(VLOOKUP(D240,'Species List'!$D$95:$E$102,2,FALSE)*J240,\"\")","v":""},{"$f":"IFERROR(VLOOKUP(D240,'Species List'!$I$10:$J$11,2,FALSE)*J240,\"\")","v":""},{"$f":"IFERROR(VLOOKUP(D240,'Species List'!$I$16:$J$61,2,FALSE)*J240,\"\")","v":""},{"$f":"IFERROR(VLOOKUP(D240,'Species List'!$I$66:$J$66,2,FALSE)*J240,\"\")","v":""},{"$f":"IFERROR(VLOOKUP(D240,'Species List'!$I$71:$J$82,2,FALSE)*J240,\"\")","v":""},0,null,null,null,null,null,null,{"$f":"IFERROR(INDEX('3 - Land Summary'!$B$21:$B$120,(MATCH(AD240,'3 - Land Summary'!$C$21:$C$120,0))),\"\")","v":""}]
[null,{"$f":"IFERROR(INDEX('3 - Land Summary'!$B$21:$B$120,(MATCH('4 - Species Breakdown'!$V241,'3 - Land Summary'!$C$21:$C$120,0))),\"\")","v":""},null,null,{"$f":"IF(OR(COUNTIF('Look Up Data'!$D$149:$D$203,D241),COUNTIF('Look Up Data'!$D$149:$D$203,AE241)),\"YES\",\"NO\")","v":"NO"},null,null,{"$f":"IFERROR(INDEX('3 - Land Summary'!$G$21:$G$120,(MATCH(C241,'3 - Land Summary'!$C$21:$C$120,0))),\"\")","v":""},{"$f":"IFERROR(INDEX('3 - Land Summary'!$I$21:$I$120,(MATCH(C241,'3 - Land Summary'!$C$21:$C$120,0))),\"\")","v":""},"","",null,null,null,{"$f":"IFERROR(VLOOKUP(D241,'Species List'!$D$10:$E$46,2,FALSE)*J241,\"\")","v":""},{"$f":"IFERROR(VLOOKUP(D241,'Species List'!$D$51:$E$89,2,FALSE)*J241,\"\")","v":""},{"$f":"IFERROR(VLOOKUP(D241,'Species List'!$D$95:$E$102,2,FALSE)*J241,\"\")","v":""},{"$f":"IFERROR(VLOOKUP(D241,'Species List'!$I$10:$J$11,2,FALSE)*J241,\"\")","v":""},{"$f":"IFERROR(VLOOKUP(D241,'Species List'!$I$16:$J$61,2,FALSE)*J241,\"\")","v":""},{"$f":"IFERROR(VLOOKUP(D241,'Species List'!$I$66:$J$66,2,FALSE)*J241,\"\")","v":""},{"$f":"IFERROR(VLOOKUP(D241,'Species List'!$I$71:$J$82,2,FALSE)*J241,\"\")","v":""},0,null,null,null,null,null,null,{"$f":"IFERROR(INDEX('3 - Land Summary'!$B$21:$B$120,(MATCH(AD241,'3 - Land Summary'!$C$21:$C$120,0))),\"\")","v":""}]
[null,{"$f":"IFERROR(INDEX('3 - Land Summary'!$B$21:$B$120,(MATCH('4 - Species Breakdown'!$V242,'3 - Land Summary'!$C$21:$C$120,0))),\"\")","v":""},null,null,{"$f":"IF(OR(COUNTIF('Look Up Data'!$D$149:$D$203,D242),COUNTIF('Look Up Data'!$D$149:$D$203,AE242)),\"YES\",\"NO\")","v":"NO"},null,null,{"$f":"IFERROR(INDEX('3 - Land Summary'!$G$21:$G$120,(MATCH(C242,'3 - Land Summary'!$C$21:$C$120,0))),\"\")","v":""},{"$f":"IFERROR(INDEX('3 - Land Summary'!$I$21:$I$120,(MATCH(C242,'3 - Land Summary'!$C$21:$C$120,0))),\"\")","v":""},"","",null,null,null,{"$f":"IFERROR(VLOOKUP(D242,'Species List'!$D$10:$E$46,2,FALSE)*J242,\"\")","v":""},{"$f":"IFERROR(VLOOKUP(D242,'Species List'!$D$51:$E$89,2,FALSE)*J242,\"\")","v":""},{"$f":"IFERROR(VLOOKUP(D242,'Species List'!$D$95:$E$102,2,FALSE)*J242,\"\")","v":""},{"$f":"IFERROR(VLOOKUP(D242,'Species List'!$I$10:$J$11,2,FALSE)*J242,\"\")","v":""},{"$f":"IFERROR(VLOOKUP(D242,'Species List'!$I$16:$J$61,2,FALSE)*J242,\"\")","v":""},{"$f":"IFERROR(VLOOKUP(D242,'Species List'!$I$66:$J$66,2,FALSE)*J242,\"\")","v":""},{"$f":"IFERROR(VLOOKUP(D242,'Species List'!$I$71:$J$82,2,FALSE)*J242,\"\")","v":""},0,null,null,null,null,null,null,{"$f":"IFERROR(INDEX('3 - Land Summary'!$B$21:$B$120,(MATCH(AD242,'3 - Land Summary'!$C$21:$C$120,0))),\"\")","v":""}]
[null,{"$f":"IFERROR(INDEX('3 - Land Summary'!$B$21:$B$120,(MATCH('4 - Species Breakdown'!$V243,'3 - Land Summary'!$C$21:$C$120,0))),\"\")","v":""},null,null,{"$f":"IF(OR(COUNTIF('Look Up Data'!$D$149:$D$203,D243),COUNTIF('Look Up Data'!$D$149:$D$203,AE243)),\"YES\",\"NO\")","v":"NO"},null,null,{"$f":"IFERROR(INDEX('3 - Land Summary'!$G$21:$G$120,(MATCH(C243,'3 - Land Summary'!$C$21:$C$120,0))),\"\")","v":""},{"$f":"IFERROR(INDEX('3 - Land Summary'!$I$21:$I$120,(MATCH(C243,'3 - Land Summary'!$C$21:$C$120,0))),\"\")","v":""},"","",null,null,null,{"$f":"IFERROR(VLOOKUP(D243,'Species List'!$D$10:$E$46,2,FALSE)*J243,\"\")","v":""},{"$f":"IFERROR(VLOOKUP(D243,'Species List'!$D$51:$E$89,2,FALSE)*J243,\"\")","v":""},{"$f":"IFERROR(VLOOKUP(D243,'Species List'!$D$95:$E$102,2,FALSE)*J243,\"\")","v":""},{"$f":"IFERROR(VLOOKUP(D243,'Species List'!$I$10:$J$11,2,FALSE)*J243,\"\")","v":""},{"$f":"IFERROR(VLOOKUP(D243,'Species List'!$I$16:$J$61,2,FALSE)*J243,\"\")","v":""},{"$f":"IFERROR(VLOOKUP(D243,'Species List'!$I$66:$J$66,2,FALSE)*J243,\"\")","v":""},{"$f":"IFERROR(VLOOKUP(D243,'Species List'!$I$71:$J$82,2,FALSE)*J243,\"\")","v":""},0,null,null,null,null,null,null,{"$f":"IFERROR(INDEX('3 - Land Summary'!$B$21:$B$120,(MATCH(AD243,'3 - Land Summary'!$C$21:$C$120,0))),\"\")","v":""}]
[null,{"$f":"IFERROR(INDEX('3 - Land Summary'!$B$21:$B$120,(MATCH('4 - Species Breakdown'!$V244,'3 - Land Summary'!$C$21:$C$120,0))),\"\")","v":""},null,null,{"$f":"IF(OR(COUNTIF('Look Up Data'!$D$149:$D$203,D244),COUNTIF('Look Up Data'!$D$149:$D$203,AE244)),\"YES\",\"NO\")","v":"NO"},null,null,{"$f":"IFERROR(INDEX('3 - Land Summary'!$G$21:$G$120,(MATCH(C244,'3 - Land Summary'!$C$21:$C$120,0))),\"\")","v":""},{"$f":"IFERROR(INDEX('3 - Land Summary'!$I$21:$I$120,(MATCH(C244,'3 - Land Summary'!$C$21:$C$120,0))),\"\")","v":""},"","",null,null,null,{"$f":"IFERROR(VLOOKUP(D244,'Species List'!$D$10:$E$46,2,FALSE)*J244,\"\")","v":""},{"$f":"IFERROR(VLOOKUP(D244,'Species List'!$D$51:$E$89,2,FALSE)*J244,\"\")","v":""},{"$f":"IFERROR(VLOOKUP(D244,'Species List'!$D$95:$E$102,2,FALSE)*J244,\"\")","v":""},{"$f":"IFERROR(VLOOKUP(D244,'Species List'!$I$10:$J$11,2,FALSE)*J244,\"\")","v":""},{"$f":"IFERROR(VLOOKUP(D244,'Species List'!$I$16:$J$61,2,FALSE)*J244,\"\")","v":""},{"$f":"IFERROR(VLOOKUP(D244,'Species List'!$I$66:$J$66,2,FALSE)*J244,\"\")","v":""},{"$f":"IFERROR(VLOOKUP(D244,'Species List'!$I$71:$J$82,2,FALSE)*J244,\"\")","v":""},0,null,null,null,null,null,null,{"$f":"IFERROR(INDEX('3 - Land Summary'!$B$21:$B$120,(MATCH(AD244,'3 - Land Summary'!$C$21:$C$120,0))),\"\")","v":""}]
[null,{"$f":"IFERROR(INDEX('3 - Land Summary'!$B$21:$B$120,(MATCH('4 - Species Breakdown'!$V245,'3 - Land Summary'!$C$21:$C$120,0))),\"\")","v":""},null,null,{"$f":"IF(OR(COUNTIF('Look Up Data'!$D$149:$D$203,D245),COUNTIF('Look Up Data'!$D$149:$D$203,AE245)),\"YES\",\"NO\")","v":"NO"},null,null,{"$f":"IFERROR(INDEX('3 - Land Summary'!$G$21:$G$120,(MATCH(C245,'3 - Land Summary'!$C$21:$C$120,0))),\"\")","v":""},{"$f":"IFERROR(INDEX('3 - Land Summary'!$I$21:$I$120,(MATCH(C245,'3 - Land Summary'!$C$21:$C$120,0))),\"\")","v":""},"","",null,null,null,{"$f":"IFERROR(VLOOKUP(D245,'Species List'!$D$10:$E$46,2,FALSE)*J245,\"\")","v":""},{"$f":"IFERROR(VLOOKUP(D245,'Species List'!$D$51:$E$89,2,FALSE)*J245,\"\")","v":""},{"$f":"IFERROR(VLOOKUP(D245,'Species List'!$D$95:$E$102,2,FALSE)*J245,\"\")","v":""},{"$f":"IFERROR(VLOOKUP(D245,'Species List'!$I$10:$J$11,2,FALSE)*J245,\"\")","v":""},{"$f":"IFERROR(VLOOKUP(D245,'Species List'!$I$16:$J$61,2,FALSE)*J245,\"\")","v":""},{"$f":"IFERROR(VLOOKUP(D245,'Species List'!$I$66:$J$66,2,FALSE)*J245,\"\")","v":""},{"$f":"IFERROR(VLOOKUP(D245,'Species List'!$I$71:$J$82,2,FALSE)*J245,\"\")","v":""},0,null,null,null,null,null,null,{"$f":"IFERROR(INDEX('3 - Land Summary'!$B$21:$B$120,(MATCH(AD245,'3 - Land Summary'!$C$21:$C$120,0))),\"\")","v":""}]
[null,{"$f":"IFERROR(INDEX('3 - Land Summary'!$B$21:$B$120,(MATCH('4 - Species Breakdown'!$V246,'3 - Land Summary'!$C$21:$C$120,0))),\"\")","v":""},null,null,{"$f":"IF(OR(COUNTIF('Look Up Data'!$D$149:$D$203,D246),COUNTIF('Look Up Data'!$D$149:$D$203,AE246)),\"YES\",\"NO\")","v":"NO"},null,null,{"$f":"IFERROR(INDEX('3 - Land Summary'!$G$21:$G$120,(MATCH(C246,'3 - Land Summary'!$C$21:$C$120,0))),\"\")","v":""},{"$f":"IFERROR(INDEX('3 - Land Summary'!$I$21:$I$120,(MATCH(C246,'3 - Land Summary'!$C$21:$C$120,0))),\"\")","v":""},"","",null,null,null,{"$f":"IFERROR(VLOOKUP(D246,'Species List'!$D$10:$E$46,2,FALSE)*J246,\"\")","v":""},{"$f":"IFERROR(VLOOKUP(D246,'Species List'!$D$51:$E$89,2,FALSE)*J246,\"\")","v":""},{"$f":"IFERROR(VLOOKUP(D246,'Species List'!$D$95:$E$102,2,FALSE)*J246,\"\")","v":""},{"$f":"IFERROR(VLOOKUP(D246,'Species List'!$I$10:$J$11,2,FALSE)*J246,\"\")","v":""},{"$f":"IFERROR(VLOOKUP(D246,'Species List'!$I$16:$J$61,2,FALSE)*J246,\"\")","v":""},{"$f":"IFERROR(VLOOKUP(D246,'Species List'!$I$66:$J$66,2,FALSE)*J246,\"\")","v":""},{"$f":"IFERROR(VLOOKUP(D246,'Species List'!$I$71:$J$82,2,FALSE)*J246,\"\")","v":""},0,null,null,null,null,null,null,{"$f":"IFERROR(INDEX('3 - Land Summary'!$B$21:$B$120,(MATCH(AD246,'3 - Land Summary'!$C$21:$C$120,0))),\"\")","v":""}]
[null,{"$f":"IFERROR(INDEX('3 - Land Summary'!$B$21:$B$120,(MATCH('4 - Species Breakdown'!$V247,'3 - Land Summary'!$C$21:$C$120,0))),\"\")","v":""},null,null,{"$f":"IF(OR(COUNTIF('Look Up Data'!$D$149:$D$203,D247),COUNTIF('Look Up Data'!$D$149:$D$203,AE247)),\"YES\",\"NO\")","v":"NO"},null,null,{"$f":"IFERROR(INDEX('3 - Land Summary'!$G$21:$G$120,(MATCH(C247,'3 - Land Summary'!$C$21:$C$120,0))),\"\")","v":""},{"$f":"IFERROR(INDEX('3 - Land Summary'!$I$21:$I$120,(MATCH(C247,'3 - Land Summary'!$C$21:$C$120,0))),\"\")","v":""},"","",null,null,null,{"$f":"IFERROR(VLOOKUP(D247,'Species List'!$D$10:$E$46,2,FALSE)*J247,\"\")","v":""},{"$f":"IFERROR(VLOOKUP(D247,'Species List'!$D$51:$E$89,2,FALSE)*J247,\"\")","v":""},{"$f":"IFERROR(VLOOKUP(D247,'Species List'!$D$95:$E$102,2,FALSE)*J247,\"\")","v":""},{"$f":"IFERROR(VLOOKUP(D247,'Species List'!$I$10:$J$11,2,FALSE)*J247,\"\")","v":""},{"$f":"IFERROR(VLOOKUP(D247,'Species List'!$I$16:$J$61,2,FALSE)*J247,\"\")","v":""},{"$f":"IFERROR(VLOOKUP(D247,'Species List'!$I$66:$J$66,2,FALSE)*J247,\"\")","v":""},{"$f":"IFERROR(VLOOKUP(D247,'Species List'!$I$71:$J$82,2,FALSE)*J247,\"\")","v":""},0,null,null,null,null,null,null,{"$f":"IFERROR(INDEX('3 - Land Summary'!$B$21:$B$120,(MATCH(AD247,'3 - Land Summary'!$C$21:$C$120,0))),\"\")","v":""}]
[null,{"$f":"IFERROR(INDEX('3 - Land Summary'!$B$21:$B$120,(MATCH('4 - Species Breakdown'!$V248,'3 - Land Summary'!$C$21:$C$120,0))),\"\")","v":""},null,null,{"$f":"IF(OR(COUNTIF('Look Up Data'!$D$149:$D$203,D248),COUNTIF('Look Up Data'!$D$149:$D$203,AE248)),\"YES\",\"NO\")","v":"NO"},null,null,{"$f":"IFERROR(INDEX('3 - Land Summary'!$G$21:$G$120,(MATCH(C248,'3 - Land Summary'!$C$21:$C$120,0))),\"\")","v":""},{"$f":"IFERROR(INDEX('3 - Land Summary'!$I$21:$I$120,(MATCH(C248,'3 - Land Summary'!$C$21:$C$120,0))),\"\")","v":""},"","",null,null,null,{"$f":"IFERROR(VLOOKUP(D248,'Species List'!$D$10:$E$46,2,FALSE)*J248,\"\")","v":""},{"$f":"IFERROR(VLOOKUP(D248,'Species List'!$D$51:$E$89,2,FALSE)*J248,\"\")","v":""},{"$f":"IFERROR(VLOOKUP(D248,'Species List'!$D$95:$E$102,2,FALSE)*J248,\"\")","v":""},{"$f":"IFERROR(VLOOKUP(D248,'Species List'!$I$10:$J$11,2,FALSE)*J248,\"\")","v":""},{"$f":"IFERROR(VLOOKUP(D248,'Species List'!$I$16:$J$61,2,FALSE)*J248,\"\")","v":""},{"$f":"IFERROR(VLOOKUP(D248,'Species List'!$I$66:$J$66,2,FALSE)*J248,\"\")","v":""},{"$f":"IFERROR(VLOOKUP(D248,'Species List'!$I$71:$J$82,2,FALSE)*J248,\"\")","v":""},0,null,null,null,null,null,null,{"$f":"IFERROR(INDEX('3 - Land Summary'!$B$21:$B$120,(MATCH(AD248,'3 - Land Summary'!$C$21:$C$120,0))),\"\")","v":""}]
[null,{"$f":"IFERROR(INDEX('3 - Land Summary'!$B$21:$B$120,(MATCH('4 - Species Breakdown'!$V249,'3 - Land Summary'!$C$21:$C$120,0))),\"\")","v":""},null,null,{"$f":"IF(OR(COUNTIF('Look Up Data'!$D$149:$D$203,D249),COUNTIF('Look Up Data'!$D$149:$D$203,AE249)),\"YES\",\"NO\")","v":"NO"},null,null,{"$f":"IFERROR(INDEX('3 - Land Summary'!$G$21:$G$120,(MATCH(C249,'3 - Land Summary'!$C$21:$C$120,0))),\"\")","v":""},{"$f":"IFERROR(INDEX('3 - Land Summary'!$I$21:$I$120,(MATCH(C249,'3 - Land Summary'!$C$21:$C$120,0))),\"\")","v":""},"","",null,null,null,{"$f":"IFERROR(VLOOKUP(D249,'Species List'!$D$10:$E$46,2,FALSE)*J249,\"\")","v":""},{"$f":"IFERROR(VLOOKUP(D249,'Species List'!$D$51:$E$89,2,FALSE)*J249,\"\")","v":""},{"$f":"IFERROR(VLOOKUP(D249,'Species List'!$D$95:$E$102,2,FALSE)*J249,\"\")","v":""},{"$f":"IFERROR(VLOOKUP(D249,'Species List'!$I$10:$J$11,2,FALSE)*J249,\"\")","v":""},{"$f":"IFERROR(VLOOKUP(D249,'Species List'!$I$16:$J$61,2,FALSE)*J249,\"\")","v":""},{"$f":"IFERROR(VLOOKUP(D249,'Species List'!$I$66:$J$66,2,FALSE)*J249,\"\")","v":""},{"$f":"IFERROR(VLOOKUP(D249,'Species List'!$I$71:$J$82,2,FALSE)*J249,\"\")","v":""},0,null,null,null,null,null,null,{"$f":"IFERROR(INDEX('3 - Land Summary'!$B$21:$B$120,(MATCH(AD249,'3 - Land Summary'!$C$21:$C$120,0))),\"\")","v":""}]
[null,{"$f":"IFERROR(INDEX('3 - Land Summary'!$B$21:$B$120,(MATCH('4 - Species Breakdown'!$V250,'3 - Land Summary'!$C$21:$C$120,0))),\"\")","v":""},null,null,{"$f":"IF(OR(COUNTIF('Look Up Data'!$D$149:$D$203,D250),COUNTIF('Look Up Data'!$D$149:$D$203,AE250)),\"YES\",\"NO\")","v":"NO"},null,null,{"$f":"IFERROR(INDEX('3 - Land Summary'!$G$21:$G$120,(MATCH(C250,'3 - Land Summary'!$C$21:$C$120,0))),\"\")","v":""},{"$f":"IFERROR(INDEX('3 - Land Summary'!$I$21:$I$120,(MATCH(C250,'3 - Land Summary'!$C$21:$C$120,0))),\"\")","v":""},"","",null,null,null,{"$f":"IFERROR(VLOOKUP(D250,'Species List'!$D$10:$E$46,2,FALSE)*J250,\"\")","v":""},{"$f":"IFERROR(VLOOKUP(D250,'Species List'!$D$51:$E$89,2,FALSE)*J250,\"\")","v":""},{"$f":"IFERROR(VLOOKUP(D250,'Species List'!$D$95:$E$102,2,FALSE)*J250,\"\")","v":""},{"$f":"IFERROR(VLOOKUP(D250,'Species List'!$I$10:$J$11,2,FALSE)*J250,\"\")","v":""},{"$f":"IFERROR(VLOOKUP(D250,'Species List'!$I$16:$J$61,2,FALSE)*J250,\"\")","v":""},{"$f":"IFERROR(VLOOKUP(D250,'Species List'!$I$66:$J$66,2,FALSE)*J250,\"\")","v":""},{"$f":"IFERROR(VLOOKUP(D250,'Species List'!$I$71:$J$82,2,FALSE)*J250,\"\")","v":""},0,null,null,null,null,null,null,{"$f":"IFERROR(INDEX('3 - Land Summary'!$B$21:$B$120,(MATCH(AD250,'3 - Land Summary'!$C$21:$C$120,0))),\"\")","v":""}]
[null,{"$f":"IFERROR(INDEX('3 - Land Summary'!$B$21:$B$120,(MATCH('4 - Species Breakdown'!$V251,'3 - Land Summary'!$C$21:$C$120,0))),\"\")","v":""},null,null,{"$f":"IF(OR(COUNTIF('Look Up Data'!$D$149:$D$203,D251),COUNTIF('Look Up Data'!$D$149:$D$203,AE251)),\"YES\",\"NO\")","v":"NO"},null,null,{"$f":"IFERROR(INDEX('3 - Land Summary'!$G$21:$G$120,(MATCH(C251,'3 - Land Summary'!$C$21:$C$120,0))),\"\")","v":""},{"$f":"IFERROR(INDEX('3 - Land Summary'!$I$21:$I$120,(MATCH(C251,'3 - Land Summary'!$C$21:$C$120,0))),\"\")","v":""},"","",null,null,null,{"$f":"IFERROR(VLOOKUP(D251,'Species List'!$D$10:$E$46,2,FALSE)*J251,\"\")","v":""},{"$f":"IFERROR(VLOOKUP(D251,'Species List'!$D$51:$E$89,2,FALSE)*J251,\"\")","v":""},{"$f":"IFERROR(VLOOKUP(D251,'Species List'!$D$95:$E$102,2,FALSE)*J251,\"\")","v":""},{"$f":"IFERROR(VLOOKUP(D251,'Species List'!$I$10:$J$11,2,FALSE)*J251,\"\")","v":""},{"$f":"IFERROR(VLOOKUP(D251,'Species List'!$I$16:$J$61,2,FALSE)*J251,\"\")","v":""},{"$f":"IFERROR(VLOOKUP(D251,'Species List'!$I$66:$J$66,2,FALSE)*J251,\"\")","v":""},{"$f":"IFERROR(VLOOKUP(D251,'Species List'!$I$71:$J$82,2,FALSE)*J251,\"\")","v":""},0,null,null,null,null,null,null,{"$f":"IFERROR(INDEX('3 - Land Summary'!$B$21:$B$120,(MATCH(AD251,'3 - Land Summary'!$C$21:$C$120,0))),\"\")","v":""}]
[null,{"$f":"IFERROR(INDEX('3 - Land Summary'!$B$21:$B$120,(MATCH('4 - Species Breakdown'!$V252,'3 - Land Summary'!$C$21:$C$120,0))),\"\")","v":""},null,null,{"$f":"IF(OR(COUNTIF('Look Up Data'!$D$149:$D$203,D252),COUNTIF('Look Up Data'!$D$149:$D$203,AE252)),\"YES\",\"NO\")","v":"NO"},null,null,{"$f":"IFERROR(INDEX('3 - Land Summary'!$G$21:$G$120,(MATCH(C252,'3 - Land Summary'!$C$21:$C$120,0))),\"\")","v":""},{"$f":"IFERROR(INDEX('3 - Land Summary'!$I$21:$I$120,(MATCH(C252,'3 - Land Summary'!$C$21:$C$120,0))),\"\")","v":""},"","",null,null,null,{"$f":"IFERROR(VLOOKUP(D252,'Species List'!$D$10:$E$46,2,FALSE)*J252,\"\")","v":""},{"$f":"IFERROR(VLOOKUP(D252,'Species List'!$D$51:$E$89,2,FALSE)*J252,\"\")","v":""},{"$f":"IFERROR(VLOOKUP(D252,'Species List'!$D$95:$E$102,2,FALSE)*J252,\"\")","v":""},{"$f":"IFERROR(VLOOKUP(D252,'Species List'!$I$10:$J$11,2,FALSE)*J252,\"\")","v":""},{"$f":"IFERROR(VLOOKUP(D252,'Species List'!$I$16:$J$61,2,FALSE)*J252,\"\")","v":""},{"$f":"IFERROR(VLOOKUP(D252,'Species List'!$I$66:$J$66,2,FALSE)*J252,\"\")","v":""},{"$f":"IFERROR(VLOOKUP(D252,'Species List'!$I$71:$J$82,2,FALSE)*J252,\"\")","v":""},0,null,null,null,null,null,null,{"$f":"IFERROR(INDEX('3 - Land Summary'!$B$21:$B$120,(MATCH(AD252,'3 - Land Summary'!$C$21:$C$120,0))),\"\")","v":""}]
[null,{"$f":"IFERROR(INDEX('3 - Land Summary'!$B$21:$B$120,(MATCH('4 - Species Breakdown'!$V253,'3 - Land Summary'!$C$21:$C$120,0))),\"\")","v":""},null,null,{"$f":"IF(OR(COUNTIF('Look Up Data'!$D$149:$D$203,D253),COUNTIF('Look Up Data'!$D$149:$D$203,AE253)),\"YES\",\"NO\")","v":"NO"},null,null,{"$f":"IFERROR(INDEX('3 - Land Summary'!$G$21:$G$120,(MATCH(C253,'3 - Land Summary'!$C$21:$C$120,0))),\"\")","v":""},{"$f":"IFERROR(INDEX('3 - Land Summary'!$I$21:$I$120,(MATCH(C253,'3 - Land Summary'!$C$21:$C$120,0))),\"\")","v":""},"","",null,null,null,{"$f":"IFERROR(VLOOKUP(D253,'Species List'!$D$10:$E$46,2,FALSE)*J253,\"\")","v":""},{"$f":"IFERROR(VLOOKUP(D253,'Species List'!$D$51:$E$89,2,FALSE)*J253,\"\")","v":""},{"$f":"IFERROR(VLOOKUP(D253,'Species List'!$D$95:$E$102,2,FALSE)*J253,\"\")","v":""},{"$f":"IFERROR(VLOOKUP(D253,'Species List'!$I$10:$J$11,2,FALSE)*J253,\"\")","v":""},{"$f":"IFERROR(VLOOKUP(D253,'Species List'!$I$16:$J$61,2,FALSE)*J253,\"\")","v":""},{"$f":"IFERROR(VLOOKUP(D253,'Species List'!$I$66:$J$66,2,FALSE)*J253,\"\")","v":""},{"$f":"IFERROR(VLOOKUP(D253,'Species List'!$I$71:$J$82,2,FALSE)*J253,\"\")","v":""},0,null,null,null,null,null,null,{"$f":"IFERROR(INDEX('3 - Land Summary'!$B$21:$B$120,(MATCH(AD253,'3 - Land Summary'!$C$21:$C$120,0))),\"\")","v":""}]
[null,{"$f":"IFERROR(INDEX('3 - Land Summary'!$B$21:$B$120,(MATCH('4 - Species Breakdown'!$V254,'3 - Land Summary'!$C$21:$C$120,0))),\"\")","v":""},null,null,{"$f":"IF(OR(COUNTIF('Look Up Data'!$D$149:$D$203,D254),COUNTIF('Look Up Data'!$D$149:$D$203,AE254)),\"YES\",\"NO\")","v":"NO"},null,null,{"$f":"IFERROR(INDEX('3 - Land Summary'!$G$21:$G$120,(MATCH(C254,'3 - Land Summary'!$C$21:$C$120,0))),\"\")","v":""},{"$f":"IFERROR(INDEX('3 - Land Summary'!$I$21:$I$120,(MATCH(C254,'3 - Land Summary'!$C$21:$C$120,0))),\"\")","v":""},"","",null,null,null,{"$f":"IFERROR(VLOOKUP(D254,'Species List'!$D$10:$E$46,2,FALSE)*J254,\"\")","v":""},{"$f":"IFERROR(VLOOKUP(D254,'Species List'!$D$51:$E$89,2,FALSE)*J254,\"\")","v":""},{"$f":"IFERROR(VLOOKUP(D254,'Species List'!$D$95:$E$102,2,FALSE)*J254,\"\")","v":""},{"$f":"IFERROR(VLOOKUP(D254,'Species List'!$I$10:$J$11,2,FALSE)*J254,\"\")","v":""},{"$f":"IFERROR(VLOOKUP(D254,'Species List'!$I$16:$J$61,2,FALSE)*J254,\"\")","v":""},{"$f":"IFERROR(VLOOKUP(D254,'Species List'!$I$66:$J$66,2,FALSE)*J254,\"\")","v":""},{"$f":"IFERROR(VLOOKUP(D254,'Species List'!$I$71:$J$82,2,FALSE)*J254,\"\")","v":""},0,null,null,null,null,null,null,{"$f":"IFERROR(INDEX('3 - Land Summary'!$B$21:$B$120,(MATCH(AD254,'3 - Land Summary'!$C$21:$C$120,0))),\"\")","v":""}]
[null,{"$f":"IFERROR(INDEX('3 - Land Summary'!$B$21:$B$120,(MATCH('4 - Species Breakdown'!$V255,'3 - Land Summary'!$C$21:$C$120,0))),\"\")","v":""},null,null,{"$f":"IF(OR(COUNTIF('Look Up Data'!$D$149:$D$203,D255),COUNTIF('Look Up Data'!$D$149:$D$203,AE255)),\"YES\",\"NO\")","v":"NO"},null,null,{"$f":"IFERROR(INDEX('3 - Land Summary'!$G$21:$G$120,(MATCH(C255,'3 - Land Summary'!$C$21:$C$120,0))),\"\")","v":""},{"$f":"IFERROR(INDEX('3 - Land Summary'!$I$21:$I$120,(MATCH(C255,'3 - Land Summary'!$C$21:$C$120,0))),\"\")","v":""},"","",null,null,null,{"$f":"IFERROR(VLOOKUP(D255,'Species List'!$D$10:$E$46,2,FALSE)*J255,\"\")","v":""},{"$f":"IFERROR(VLOOKUP(D255,'Species List'!$D$51:$E$89,2,FALSE)*J255,\"\")","v":""},{"$f":"IFERROR(VLOOKUP(D255,'Species List'!$D$95:$E$102,2,FALSE)*J255,\"\")","v":""},{"$f":"IFERROR(VLOOKUP(D255,'Species List'!$I$10:$J$11,2,FALSE)*J255,\"\")","v":""},{"$f":"IFERROR(VLOOKUP(D255,'Species List'!$I$16:$J$61,2,FALSE)*J255,\"\")","v":""},{"$f":"IFERROR(VLOOKUP(D255,'Species List'!$I$66:$J$66,2,FALSE)*J255,\"\")","v":""},{"$f":"IFERROR(VLOOKUP(D255,'Species List'!$I$71:$J$82,2,FALSE)*J255,\"\")","v":""},0,null,null,null,null,null,null,{"$f":"IFERROR(INDEX('3 - Land Summary'!$B$21:$B$120,(MATCH(AD255,'3 - Land Summary'!$C$21:$C$120,0))),\"\")","v":""}]
[null,{"$f":"IFERROR(INDEX('3 - Land Summary'!$B$21:$B$120,(MATCH('4 - Species Breakdown'!$V256,'3 - Land Summary'!$C$21:$C$120,0))),\"\")","v":""},null,null,{"$f":"IF(OR(COUNTIF('Look Up Data'!$D$149:$D$203,D256),COUNTIF('Look Up Data'!$D$149:$D$203,AE256)),\"YES\",\"NO\")","v":"NO"},null,null,{"$f":"IFERROR(INDEX('3 - Land Summary'!$G$21:$G$120,(MATCH(C256,'3 - Land Summary'!$C$21:$C$120,0))),\"\")","v":""},{"$f":"IFERROR(INDEX('3 - Land Summary'!$I$21:$I$120,(MATCH(C256,'3 - Land Summary'!$C$21:$C$120,0))),\"\")","v":""},"","",null,null,null,{"$f":"IFERROR(VLOOKUP(D256,'Species List'!$D$10:$E$46,2,FALSE)*J256,\"\")","v":""},{"$f":"IFERROR(VLOOKUP(D256,'Species List'!$D$51:$E$89,2,FALSE)*J256,\"\")","v":""},{"$f":"IFERROR(VLOOKUP(D256,'Species List'!$D$95:$E$102,2,FALSE)*J256,\"\")","v":""},{"$f":"IFERROR(VLOOKUP(D256,'Species List'!$I$10:$J$11,2,FALSE)*J256,\"\")","v":""},{"$f":"IFERROR(VLOOKUP(D256,'Species List'!$I$16:$J$61,2,FALSE)*J256,\"\")","v":""},{"$f":"IFERROR(VLOOKUP(D256,'Species List'!$I$66:$J$66,2,FALSE)*J256,\"\")","v":""},{"$f":"IFERROR(VLOOKUP(D256,'Species List'!$I$71:$J$82,2,FALSE)*J256,\"\")","v":""},0,null,null,null,null,null,null,{"$f":"IFERROR(INDEX('3 - Land Summary'!$B$21:$B$120,(MATCH(AD256,'3 - Land Summary'!$C$21:$C$120,0))),\"\")","v":""}]
[null,{"$f":"IFERROR(INDEX('3 - Land Summary'!$B$21:$B$120,(MATCH('4 - Species Breakdown'!$V257,'3 - Land Summary'!$C$21:$C$120,0))),\"\")","v":""},null,null,{"$f":"IF(OR(COUNTIF('Look Up Data'!$D$149:$D$203,D257),COUNTIF('Look Up Data'!$D$149:$D$203,AE257)),\"YES\",\"NO\")","v":"NO"},null,null,{"$f":"IFERROR(INDEX('3 - Land Summary'!$G$21:$G$120,(MATCH(C257,'3 - Land Summary'!$C$21:$C$120,0))),\"\")","v":""},{"$f":"IFERROR(INDEX('3 - Land Summary'!$I$21:$I$120,(MATCH(C257,'3 - Land Summary'!$C$21:$C$120,0))),\"\")","v":""},"","",null,null,null,{"$f":"IFERROR(VLOOKUP(D257,'Species List'!$D$10:$E$46,2,FALSE)*J257,\"\")","v":""},{"$f":"IFERROR(VLOOKUP(D257,'Species List'!$D$51:$E$89,2,FALSE)*J257,\"\")","v":""},{"$f":"IFERROR(VLOOKUP(D257,'Species List'!$D$95:$E$102,2,FALSE)*J257,\"\")","v":""},{"$f":"IFERROR(VLOOKUP(D257,'Species List'!$I$10:$J$11,2,FALSE)*J257,\"\")","v":""},{"$f":"IFERROR(VLOOKUP(D257,'Species List'!$I$16:$J$61,2,FALSE)*J257,\"\")","v":""},{"$f":"IFERROR(VLOOKUP(D257,'Species List'!$I$66:$J$66,2,FALSE)*J257,\"\")","v":""},{"$f":"IFERROR(VLOOKUP(D257,'Species List'!$I$71:$J$82,2,FALSE)*J257,\"\")","v":""},0,null,null,null,null,null,null,{"$f":"IFERROR(INDEX('3 - Land Summary'!$B$21:$B$120,(MATCH(AD257,'3 - Land Summary'!$C$21:$C$120,0))),\"\")","v":""}]
[null,{"$f":"IFERROR(INDEX('3 - Land Summary'!$B$21:$B$120,(MATCH('4 - Species Breakdown'!$V258,'3 - Land Summary'!$C$21:$C$120,0))),\"\")","v":""},null,null,{"$f":"IF(OR(COUNTIF('Look Up Data'!$D$149:$D$203,D258),COUNTIF('Look Up Data'!$D$149:$D$203,AE258)),\"YES\",\"NO\")","v":"NO"},null,null,{"$f":"IFERROR(INDEX('3 - Land Summary'!$G$21:$G$120,(MATCH(C258,'3 - Land Summary'!$C$21:$C$120,0))),\"\")","v":""},{"$f":"IFERROR(INDEX('3 - Land Summary'!$I$21:$I$120,(MATCH(C258,'3 - Land Summary'!$C$21:$C$120,0))),\"\")","v":""},"","",null,null,null,{"$f":"IFERROR(VLOOKUP(D258,'Species List'!$D$10:$E$46,2,FALSE)*J258,\"\")","v":""},{"$f":"IFERROR(VLOOKUP(D258,'Species List'!$D$51:$E$89,2,FALSE)*J258,\"\")","v":""},{"$f":"IFERROR(VLOOKUP(D258,'Species List'!$D$95:$E$102,2,FALSE)*J258,\"\")","v":""},{"$f":"IFERROR(VLOOKUP(D258,'Species List'!$I$10:$J$11,2,FALSE)*J258,\"\")","v":""},{"$f":"IFERROR(VLOOKUP(D258,'Species List'!$I$16:$J$61,2,FALSE)*J258,\"\")","v":""},{"$f":"IFERROR(VLOOKUP(D258,'Species List'!$I$66:$J$66,2,FALSE)*J258,\"\")","v":""},{"$f":"IFERROR(VLOOKUP(D258,'Species List'!$I$71:$J$82,2,FALSE)*J258,\"\")","v":""},0,null,null,null,null,null,null,{"$f":"IFERROR(INDEX('3 - Land Summary'!$B$21:$B$120,(MATCH(AD258,'3 - Land Summary'!$C$21:$C$120,0))),\"\")","v":""}]
[null,{"$f":"IFERROR(INDEX('3 - Land Summary'!$B$21:$B$120,(MATCH('4 - Species Breakdown'!$V259,'3 - Land Summary'!$C$21:$C$120,0))),\"\")","v":""},null,null,{"$f":"IF(OR(COUNTIF('Look Up Data'!$D$149:$D$203,D259),COUNTIF('Look Up Data'!$D$149:$D$203,AE259)),\"YES\",\"NO\")","v":"NO"},null,null,{"$f":"IFERROR(INDEX('3 - Land Summary'!$G$21:$G$120,(MATCH(C259,'3 - Land Summary'!$C$21:$C$120,0))),\"\")","v":""},{"$f":"IFERROR(INDEX('3 - Land Summary'!$I$21:$I$120,(MATCH(C259,'3 - Land Summary'!$C$21:$C$120,0))),\"\")","v":""},"","",null,null,null,{"$f":"IFERROR(VLOOKUP(D259,'Species List'!$D$10:$E$46,2,FALSE)*J259,\"\")","v":""},{"$f":"IFERROR(VLOOKUP(D259,'Species List'!$D$51:$E$89,2,FALSE)*J259,\"\")","v":""},{"$f":"IFERROR(VLOOKUP(D259,'Species List'!$D$95:$E$102,2,FALSE)*J259,\"\")","v":""},{"$f":"IFERROR(VLOOKUP(D259,'Species List'!$I$10:$J$11,2,FALSE)*J259,\"\")","v":""},{"$f":"IFERROR(VLOOKUP(D259,'Species List'!$I$16:$J$61,2,FALSE)*J259,\"\")","v":""},{"$f":"IFERROR(VLOOKUP(D259,'Species List'!$I$66:$J$66,2,FALSE)*J259,\"\")","v":""},{"$f":"IFERROR(VLOOKUP(D259,'Species List'!$I$71:$J$82,2,FALSE)*J259,\"\")","v":""},0,null,null,null,null,null,null,{"$f":"IFERROR(INDEX('3 - Land Summary'!$B$21:$B$120,(MATCH(AD259,'3 - Land Summary'!$C$21:$C$120,0))),\"\")","v":""}]
[null,{"$f":"IFERROR(INDEX('3 - Land Summary'!$B$21:$B$120,(MATCH('4 - Species Breakdown'!$V260,'3 - Land Summary'!$C$21:$C$120,0))),\"\")","v":""},null,null,{"$f":"IF(OR(COUNTIF('Look Up Data'!$D$149:$D$203,D260),COUNTIF('Look Up Data'!$D$149:$D$203,AE260)),\"YES\",\"NO\")","v":"NO"},null,null,{"$f":"IFERROR(INDEX('3 - Land Summary'!$G$21:$G$120,(MATCH(C260,'3 - Land Summary'!$C$21:$C$120,0))),\"\")","v":""},{"$f":"IFERROR(INDEX('3 - Land Summary'!$I$21:$I$120,(MATCH(C260,'3 - Land Summary'!$C$21:$C$120,0))),\"\")","v":""},"","",null,null,null,{"$f":"IFERROR(VLOOKUP(D260,'Species List'!$D$10:$E$46,2,FALSE)*J260,\"\")","v":""},{"$f":"IFERROR(VLOOKUP(D260,'Species List'!$D$51:$E$89,2,FALSE)*J260,\"\")","v":""},{"$f":"IFERROR(VLOOKUP(D260,'Species List'!$D$95:$E$102,2,FALSE)*J260,\"\")","v":""},{"$f":"IFERROR(VLOOKUP(D260,'Species List'!$I$10:$J$11,2,FALSE)*J260,\"\")","v":""},{"$f":"IFERROR(VLOOKUP(D260,'Species List'!$I$16:$J$61,2,FALSE)*J260,\"\")","v":""},{"$f":"IFERROR(VLOOKUP(D260,'Species List'!$I$66:$J$66,2,FALSE)*J260,\"\")","v":""},{"$f":"IFERROR(VLOOKUP(D260,'Species List'!$I$71:$J$82,2,FALSE)*J260,\"\")","v":""},0,null,null,null,null,null,null,{"$f":"IFERROR(INDEX('3 - Land Summary'!$B$21:$B$120,(MATCH(AD260,'3 - Land Summary'!$C$21:$C$120,0))),\"\")","v":""}]
[null,{"$f":"IFERROR(INDEX('3 - Land Summary'!$B$21:$B$120,(MATCH('4 - Species Breakdown'!$V261,'3 - Land Summary'!$C$21:$C$120,0))),\"\")","v":""},null,null,{"$f":"IF(OR(COUNTIF('Look Up Data'!$D$149:$D$203,D261),COUNTIF('Look Up Data'!$D$149:$D$203,AE261)),\"YES\",\"NO\")","v":"NO"},null,null,{"$f":"IFERROR(INDEX('3 - Land Summary'!$G$21:$G$120,(MATCH(C261,'3 - Land Summary'!$C$21:$C$120,0))),\"\")","v":""},{"$f":"IFERROR(INDEX('3 - Land Summary'!$I$21:$I$120,(MATCH(C261,'3 - Land Summary'!$C$21:$C$120,0))),\"\")","v":""},"","",null,null,null,{"$f":"IFERROR(VLOOKUP(D261,'Species List'!$D$10:$E$46,2,FALSE)*J261,\"\")","v":""},{"$f":"IFERROR(VLOOKUP(D261,'Species List'!$D$51:$E$89,2,FALSE)*J261,\"\")","v":""},{"$f":"IFERROR(VLOOKUP(D261,'Species List'!$D$95:$E$102,2,FALSE)*J261,\"\")","v":""},{"$f":"IFERROR(VLOOKUP(D261,'Species List'!$I$10:$J$11,2,FALSE)*J261,\"\")","v":""},{"$f":"IFERROR(VLOOKUP(D261,'Species List'!$I$16:$J$61,2,FALSE)*J261,\"\")","v":""},{"$f":"IFERROR(VLOOKUP(D261,'Species List'!$I$66:$J$66,2,FALSE)*J261,\"\")","v":""},{"$f":"IFERROR(VLOOKUP(D261,'Species List'!$I$71:$J$82,2,FALSE)*J261,\"\")","v":""},0,null,null,null,null,null,null,{"$f":"IFERROR(INDEX('3 - Land Summary'!$B$21:$B$120,(MATCH(AD261,'3 - Land Summary'!$C$21:$C$120,0))),\"\")","v":""}]
[null,{"$f":"IFERROR(INDEX('3 - Land Summary'!$B$21:$B$120,(MATCH('4 - Species Breakdown'!$V262,'3 - Land Summary'!$C$21:$C$120,0))),\"\")","v":""},null,null,{"$f":"IF(OR(COUNTIF('Look Up Data'!$D$149:$D$203,D262),COUNTIF('Look Up Data'!$D$149:$D$203,AE262)),\"YES\",\"NO\")","v":"NO"},null,null,{"$f":"IFERROR(INDEX('3 - Land Summary'!$G$21:$G$120,(MATCH(C262,'3 - Land Summary'!$C$21:$C$120,0))),\"\")","v":""},{"$f":"IFERROR(INDEX('3 - Land Summary'!$I$21:$I$120,(MATCH(C262,'3 - Land Summary'!$C$21:$C$120,0))),\"\")","v":""},"","",null,null,null,{"$f":"IFERROR(VLOOKUP(D262,'Species List'!$D$10:$E$46,2,FALSE)*J262,\"\")","v":""},{"$f":"IFERROR(VLOOKUP(D262,'Species List'!$D$51:$E$89,2,FALSE)*J262,\"\")","v":""},{"$f":"IFERROR(VLOOKUP(D262,'Species List'!$D$95:$E$102,2,FALSE)*J262,\"\")","v":""},{"$f":"IFERROR(VLOOKUP(D262,'Species List'!$I$10:$J$11,2,FALSE)*J262,\"\")","v":""},{"$f":"IFERROR(VLOOKUP(D262,'Species List'!$I$16:$J$61,2,FALSE)*J262,\"\")","v":""},{"$f":"IFERROR(VLOOKUP(D262,'Species List'!$I$66:$J$66,2,FALSE)*J262,\"\")","v":""},{"$f":"IFERROR(VLOOKUP(D262,'Species List'!$I$71:$J$82,2,FALSE)*J262,\"\")","v":""},0,null,null,null,null,null,null,{"$f":"IFERROR(INDEX('3 - Land Summary'!$B$21:$B$120,(MATCH(AD262,'3 - Land Summary'!$C$21:$C$120,0))),\"\")","v":""}]
[null,{"$f":"IFERROR(INDEX('3 - Land Summary'!$B$21:$B$120,(MATCH('4 - Species Breakdown'!$V263,'3 - Land Summary'!$C$21:$C$120,0))),\"\")","v":""},null,null,{"$f":"IF(OR(COUNTIF('Look Up Data'!$D$149:$D$203,D263),COUNTIF('Look Up Data'!$D$149:$D$203,AE263)),\"YES\",\"NO\")","v":"NO"},null,null,{"$f":"IFERROR(INDEX('3 - Land Summary'!$G$21:$G$120,(MATCH(C263,'3 - Land Summary'!$C$21:$C$120,0))),\"\")","v":""},{"$f":"IFERROR(INDEX('3 - Land Summary'!$I$21:$I$120,(MATCH(C263,'3 - Land Summary'!$C$21:$C$120,0))),\"\")","v":""},"","",null,null,null,{"$f":"IFERROR(VLOOKUP(D263,'Species List'!$D$10:$E$46,2,FALSE)*J263,\"\")","v":""},{"$f":"IFERROR(VLOOKUP(D263,'Species List'!$D$51:$E$89,2,FALSE)*J263,\"\")","v":""},{"$f":"IFERROR(VLOOKUP(D263,'Species List'!$D$95:$E$102,2,FALSE)*J263,\"\")","v":""},{"$f":"IFERROR(VLOOKUP(D263,'Species List'!$I$10:$J$11,2,FALSE)*J263,\"\")","v":""},{"$f":"IFERROR(VLOOKUP(D263,'Species List'!$I$16:$J$61,2,FALSE)*J263,\"\")","v":""},{"$f":"IFERROR(VLOOKUP(D263,'Species List'!$I$66:$J$66,2,FALSE)*J263,\"\")","v":""},{"$f":"IFERROR(VLOOKUP(D263,'Species List'!$I$71:$J$82,2,FALSE)*J263,\"\")","v":""},0,null,null,null,null,null,null,{"$f":"IFERROR(INDEX('3 - Land Summary'!$B$21:$B$120,(MATCH(AD263,'3 - Land Summary'!$C$21:$C$120,0))),\"\")","v":""}]
[null,{"$f":"IFERROR(INDEX('3 - Land Summary'!$B$21:$B$120,(MATCH('4 - Species Breakdown'!$V264,'3 - Land Summary'!$C$21:$C$120,0))),\"\")","v":""},null,null,{"$f":"IF(OR(COUNTIF('Look Up Data'!$D$149:$D$203,D264),COUNTIF('Look Up Data'!$D$149:$D$203,AE264)),\"YES\",\"NO\")","v":"NO"},null,null,{"$f":"IFERROR(INDEX('3 - Land Summary'!$G$21:$G$120,(MATCH(C264,'3 - Land Summary'!$C$21:$C$120,0))),\"\")","v":""},{"$f":"IFERROR(INDEX('3 - Land Summary'!$I$21:$I$120,(MATCH(C264,'3 - Land Summary'!$C$21:$C$120,0))),\"\")","v":""},"","",null,null,null,{"$f":"IFERROR(VLOOKUP(D264,'Species List'!$D$10:$E$46,2,FALSE)*J264,\"\")","v":""},{"$f":"IFERROR(VLOOKUP(D264,'Species List'!$D$51:$E$89,2,FALSE)*J264,\"\")","v":""},{"$f":"IFERROR(VLOOKUP(D264,'Species List'!$D$95:$E$102,2,FALSE)*J264,\"\")","v":""},{"$f":"IFERROR(VLOOKUP(D264,'Species List'!$I$10:$J$11,2,FALSE)*J264,\"\")","v":""},{"$f":"IFERROR(VLOOKUP(D264,'Species List'!$I$16:$J$61,2,FALSE)*J264,\"\")","v":""},{"$f":"IFERROR(VLOOKUP(D264,'Species List'!$I$66:$J$66,2,FALSE)*J264,\"\")","v":""},{"$f":"IFERROR(VLOOKUP(D264,'Species List'!$I$71:$J$82,2,FALSE)*J264,\"\")","v":""},0,null,null,null,null,null,null,{"$f":"IFERROR(INDEX('3 - Land Summary'!$B$21:$B$120,(MATCH(AD264,'3 - Land Summary'!$C$21:$C$120,0))),\"\")","v":""}]
[null,{"$f":"IFERROR(INDEX('3 - Land Summary'!$B$21:$B$120,(MATCH('4 - Species Breakdown'!$V265,'3 - Land Summary'!$C$21:$C$120,0))),\"\")","v":""},null,null,{"$f":"IF(OR(COUNTIF('Look Up Data'!$D$149:$D$203,D265),COUNTIF('Look Up Data'!$D$149:$D$203,AE265)),\"YES\",\"NO\")","v":"NO"},null,null,{"$f":"IFERROR(INDEX('3 - Land Summary'!$G$21:$G$120,(MATCH(C265,'3 - Land Summary'!$C$21:$C$120,0))),\"\")","v":""},{"$f":"IFERROR(INDEX('3 - Land Summary'!$I$21:$I$120,(MATCH(C265,'3 - Land Summary'!$C$21:$C$120,0))),\"\")","v":""},"","",null,null,null,{"$f":"IFERROR(VLOOKUP(D265,'Species List'!$D$10:$E$46,2,FALSE)*J265,\"\")","v":""},{"$f":"IFERROR(VLOOKUP(D265,'Species List'!$D$51:$E$89,2,FALSE)*J265,\"\")","v":""},{"$f":"IFERROR(VLOOKUP(D265,'Species List'!$D$95:$E$102,2,FALSE)*J265,\"\")","v":""},{"$f":"IFERROR(VLOOKUP(D265,'Species List'!$I$10:$J$11,2,FALSE)*J265,\"\")","v":""},{"$f":"IFERROR(VLOOKUP(D265,'Species List'!$I$16:$J$61,2,FALSE)*J265,\"\")","v":""},{"$f":"IFERROR(VLOOKUP(D265,'Species List'!$I$66:$J$66,2,FALSE)*J265,\"\")","v":""},{"$f":"IFERROR(VLOOKUP(D265,'Species List'!$I$71:$J$82,2,FALSE)*J265,\"\")","v":""},0,null,null,null,null,null,null,{"$f":"IFERROR(INDEX('3 - Land Summary'!$B$21:$B$120,(MATCH(AD265,'3 - Land Summary'!$C$21:$C$120,0))),\"\")","v":""}]
[null,{"$f":"IFERROR(INDEX('3 - Land Summary'!$B$21:$B$120,(MATCH('4 - Species Breakdown'!$V266,'3 - Land Summary'!$C$21:$C$120,0))),\"\")","v":""},null,null,{"$f":"IF(OR(COUNTIF('Look Up Data'!$D$149:$D$203,D266),COUNTIF('Look Up Data'!$D$149:$D$203,AE266)),\"YES\",\"NO\")","v":"NO"},null,null,{"$f":"IFERROR(INDEX('3 - Land Summary'!$G$21:$G$120,(MATCH(C266,'3 - Land Summary'!$C$21:$C$120,0))),\"\")","v":""},{"$f":"IFERROR(INDEX('3 - Land Summary'!$I$21:$I$120,(MATCH(C266,'3 - Land Summary'!$C$21:$C$120,0))),\"\")","v":""},"","",null,null,null,{"$f":"IFERROR(VLOOKUP(D266,'Species List'!$D$10:$E$46,2,FALSE)*J266,\"\")","v":""},{"$f":"IFERROR(VLOOKUP(D266,'Species List'!$D$51:$E$89,2,FALSE)*J266,\"\")","v":""},{"$f":"IFERROR(VLOOKUP(D266,'Species List'!$D$95:$E$102,2,FALSE)*J266,\"\")","v":""},{"$f":"IFERROR(VLOOKUP(D266,'Species List'!$I$10:$J$11,2,FALSE)*J266,\"\")","v":""},{"$f":"IFERROR(VLOOKUP(D266,'Species List'!$I$16:$J$61,2,FALSE)*J266,\"\")","v":""},{"$f":"IFERROR(VLOOKUP(D266,'Species List'!$I$66:$J$66,2,FALSE)*J266,\"\")","v":""},{"$f":"IFERROR(VLOOKUP(D266,'Species List'!$I$71:$J$82,2,FALSE)*J266,\"\")","v":""},0,null,null,null,null,null,null,{"$f":"IFERROR(INDEX('3 - Land Summary'!$B$21:$B$120,(MATCH(AD266,'3 - Land Summary'!$C$21:$C$120,0))),\"\")","v":""}]
[null,{"$f":"IFERROR(INDEX('3 - Land Summary'!$B$21:$B$120,(MATCH('4 - Species Breakdown'!$V267,'3 - Land Summary'!$C$21:$C$120,0))),\"\")","v":""},null,null,{"$f":"IF(OR(COUNTIF('Look Up Data'!$D$149:$D$203,D267),COUNTIF('Look Up Data'!$D$149:$D$203,AE267)),\"YES\",\"NO\")","v":"NO"},null,null,{"$f":"IFERROR(INDEX('3 - Land Summary'!$G$21:$G$120,(MATCH(C267,'3 - Land Summary'!$C$21:$C$120,0))),\"\")","v":""},{"$f":"IFERROR(INDEX('3 - Land Summary'!$I$21:$I$120,(MATCH(C267,'3 - Land Summary'!$C$21:$C$120,0))),\"\")","v":""},"","",null,null,null,{"$f":"IFERROR(VLOOKUP(D267,'Species List'!$D$10:$E$46,2,FALSE)*J267,\"\")","v":""},{"$f":"IFERROR(VLOOKUP(D267,'Species List'!$D$51:$E$89,2,FALSE)*J267,\"\")","v":""},{"$f":"IFERROR(VLOOKUP(D267,'Species List'!$D$95:$E$102,2,FALSE)*J267,\"\")","v":""},{"$f":"IFERROR(VLOOKUP(D267,'Species List'!$I$10:$J$11,2,FALSE)*J267,\"\")","v":""},{"$f":"IFERROR(VLOOKUP(D267,'Species List'!$I$16:$J$61,2,FALSE)*J267,\"\")","v":""},{"$f":"IFERROR(VLOOKUP(D267,'Species List'!$I$66:$J$66,2,FALSE)*J267,\"\")","v":""},{"$f":"IFERROR(VLOOKUP(D267,'Species List'!$I$71:$J$82,2,FALSE)*J267,\"\")","v":""},0,null,null,null,null,null,null,{"$f":"IFERROR(INDEX('3 - Land Summary'!$B$21:$B$120,(MATCH(AD267,'3 - Land Summary'!$C$21:$C$120,0))),\"\")","v":""}]
[null,{"$f":"IFERROR(INDEX('3 - Land Summary'!$B$21:$B$120,(MATCH('4 - Species Breakdown'!$V268,'3 - Land Summary'!$C$21:$C$120,0))),\"\")","v":""},null,null,{"$f":"IF(OR(COUNTIF('Look Up Data'!$D$149:$D$203,D268),COUNTIF('Look Up Data'!$D$149:$D$203,AE268)),\"YES\",\"NO\")","v":"NO"},null,null,{"$f":"IFERROR(INDEX('3 - Land Summary'!$G$21:$G$120,(MATCH(C268,'3 - Land Summary'!$C$21:$C$120,0))),\"\")","v":""},{"$f":"IFERROR(INDEX('3 - Land Summary'!$I$21:$I$120,(MATCH(C268,'3 - Land Summary'!$C$21:$C$120,0))),\"\")","v":""},"","",null,null,null,{"$f":"IFERROR(VLOOKUP(D268,'Species List'!$D$10:$E$46,2,FALSE)*J268,\"\")","v":""},{"$f":"IFERROR(VLOOKUP(D268,'Species List'!$D$51:$E$89,2,FALSE)*J268,\"\")","v":""},{"$f":"IFERROR(VLOOKUP(D268,'Species List'!$D$95:$E$102,2,FALSE)*J268,\"\")","v":""},{"$f":"IFERROR(VLOOKUP(D268,'Species List'!$I$10:$J$11,2,FALSE)*J268,\"\")","v":""},{"$f":"IFERROR(VLOOKUP(D268,'Species List'!$I$16:$J$61,2,FALSE)*J268,\"\")","v":""},{"$f":"IFERROR(VLOOKUP(D268,'Species List'!$I$66:$J$66,2,FALSE)*J268,\"\")","v":""},{"$f":"IFERROR(VLOOKUP(D268,'Species List'!$I$71:$J$82,2,FALSE)*J268,\"\")","v":""},0,null,null,null,null,null,null,{"$f":"IFERROR(INDEX('3 - Land Summary'!$B$21:$B$120,(MATCH(AD268,'3 - Land Summary'!$C$21:$C$120,0))),\"\")","v":""}]
[null,{"$f":"IFERROR(INDEX('3 - Land Summary'!$B$21:$B$120,(MATCH('4 - Species Breakdown'!$V269,'3 - Land Summary'!$C$21:$C$120,0))),\"\")","v":""},null,null,{"$f":"IF(OR(COUNTIF('Look Up Data'!$D$149:$D$203,D269),COUNTIF('Look Up Data'!$D$149:$D$203,AE269)),\"YES\",\"NO\")","v":"NO"},null,null,{"$f":"IFERROR(INDEX('3 - Land Summary'!$G$21:$G$120,(MATCH(C269,'3 - Land Summary'!$C$21:$C$120,0))),\"\")","v":""},{"$f":"IFERROR(INDEX('3 - Land Summary'!$I$21:$I$120,(MATCH(C269,'3 - Land Summary'!$C$21:$C$120,0))),\"\")","v":""},"","",null,null,null,{"$f":"IFERROR(VLOOKUP(D269,'Species List'!$D$10:$E$46,2,FALSE)*J269,\"\")","v":""},{"$f":"IFERROR(VLOOKUP(D269,'Species List'!$D$51:$E$89,2,FALSE)*J269,\"\")","v":""},{"$f":"IFERROR(VLOOKUP(D269,'Species List'!$D$95:$E$102,2,FALSE)*J269,\"\")","v":""},{"$f":"IFERROR(VLOOKUP(D269,'Species List'!$I$10:$J$11,2,FALSE)*J269,\"\")","v":""},{"$f":"IFERROR(VLOOKUP(D269,'Species List'!$I$16:$J$61,2,FALSE)*J269,\"\")","v":""},{"$f":"IFERROR(VLOOKUP(D269,'Species List'!$I$66:$J$66,2,FALSE)*J269,\"\")","v":""},{"$f":"IFERROR(VLOOKUP(D269,'Species List'!$I$71:$J$82,2,FALSE)*J269,\"\")","v":""},0,null,null,null,null,null,null,{"$f":"IFERROR(INDEX('3 - Land Summary'!$B$21:$B$120,(MATCH(AD269,'3 - Land Summary'!$C$21:$C$120,0))),\"\")","v":""}]
[null,{"$f":"IFERROR(INDEX('3 - Land Summary'!$B$21:$B$120,(MATCH('4 - Species Breakdown'!$V270,'3 - Land Summary'!$C$21:$C$120,0))),\"\")","v":""},null,null,{"$f":"IF(OR(COUNTIF('Look Up Data'!$D$149:$D$203,D270),COUNTIF('Look Up Data'!$D$149:$D$203,AE270)),\"YES\",\"NO\")","v":"NO"},null,null,{"$f":"IFERROR(INDEX('3 - Land Summary'!$G$21:$G$120,(MATCH(C270,'3 - Land Summary'!$C$21:$C$120,0))),\"\")","v":""},{"$f":"IFERROR(INDEX('3 - Land Summary'!$I$21:$I$120,(MATCH(C270,'3 - Land Summary'!$C$21:$C$120,0))),\"\")","v":""},"","",null,null,null,{"$f":"IFERROR(VLOOKUP(D270,'Species List'!$D$10:$E$46,2,FALSE)*J270,\"\")","v":""},{"$f":"IFERROR(VLOOKUP(D270,'Species List'!$D$51:$E$89,2,FALSE)*J270,\"\")","v":""},{"$f":"IFERROR(VLOOKUP(D270,'Species List'!$D$95:$E$102,2,FALSE)*J270,\"\")","v":""},{"$f":"IFERROR(VLOOKUP(D270,'Species List'!$I$10:$J$11,2,FALSE)*J270,\"\")","v":""},{"$f":"IFERROR(VLOOKUP(D270,'Species List'!$I$16:$J$61,2,FALSE)*J270,\"\")","v":""},{"$f":"IFERROR(VLOOKUP(D270,'Species List'!$I$66:$J$66,2,FALSE)*J270,\"\")","v":""},{"$f":"IFERROR(VLOOKUP(D270,'Species List'!$I$71:$J$82,2,FALSE)*J270,\"\")","v":""},0,null,null,null,null,null,null,{"$f":"IFERROR(INDEX('3 - Land Summary'!$B$21:$B$120,(MATCH(AD270,'3 - Land Summary'!$C$21:$C$120,0))),\"\")","v":""}]
[null,{"$f":"IFERROR(INDEX('3 - Land Summary'!$B$21:$B$120,(MATCH('4 - Species Breakdown'!$V271,'3 - Land Summary'!$C$21:$C$120,0))),\"\")","v":""},null,null,{"$f":"IF(OR(COUNTIF('Look Up Data'!$D$149:$D$203,D271),COUNTIF('Look Up Data'!$D$149:$D$203,AE271)),\"YES\",\"NO\")","v":"NO"},null,null,{"$f":"IFERROR(INDEX('3 - Land Summary'!$G$21:$G$120,(MATCH(C271,'3 - Land Summary'!$C$21:$C$120,0))),\"\")","v":""},{"$f":"IFERROR(INDEX('3 - Land Summary'!$I$21:$I$120,(MATCH(C271,'3 - Land Summary'!$C$21:$C$120,0))),\"\")","v":""},"","",null,null,null,{"$f":"IFERROR(VLOOKUP(D271,'Species List'!$D$10:$E$46,2,FALSE)*J271,\"\")","v":""},{"$f":"IFERROR(VLOOKUP(D271,'Species List'!$D$51:$E$89,2,FALSE)*J271,\"\")","v":""},{"$f":"IFERROR(VLOOKUP(D271,'Species List'!$D$95:$E$102,2,FALSE)*J271,\"\")","v":""},{"$f":"IFERROR(VLOOKUP(D271,'Species List'!$I$10:$J$11,2,FALSE)*J271,\"\")","v":""},{"$f":"IFERROR(VLOOKUP(D271,'Species List'!$I$16:$J$61,2,FALSE)*J271,\"\")","v":""},{"$f":"IFERROR(VLOOKUP(D271,'Species List'!$I$66:$J$66,2,FALSE)*J271,\"\")","v":""},{"$f":"IFERROR(VLOOKUP(D271,'Species List'!$I$71:$J$82,2,FALSE)*J271,\"\")","v":""},0,null,null,null,null,null,null,{"$f":"IFERROR(INDEX('3 - Land Summary'!$B$21:$B$120,(MATCH(AD271,'3 - Land Summary'!$C$21:$C$120,0))),\"\")","v":""}]
[null,{"$f":"IFERROR(INDEX('3 - Land Summary'!$B$21:$B$120,(MATCH('4 - Species Breakdown'!$V272,'3 - Land Summary'!$C$21:$C$120,0))),\"\")","v":""},null,null,{"$f":"IF(OR(COUNTIF('Look Up Data'!$D$149:$D$203,D272),COUNTIF('Look Up Data'!$D$149:$D$203,AE272)),\"YES\",\"NO\")","v":"NO"},null,null,{"$f":"IFERROR(INDEX('3 - Land Summary'!$G$21:$G$120,(MATCH(C272,'3 - Land Summary'!$C$21:$C$120,0))),\"\")","v":""},{"$f":"IFERROR(INDEX('3 - Land Summary'!$I$21:$I$120,(MATCH(C272,'3 - Land Summary'!$C$21:$C$120,0))),\"\")","v":""},"","",null,null,null,{"$f":"IFERROR(VLOOKUP(D272,'Species List'!$D$10:$E$46,2,FALSE)*J272,\"\")","v":""},{"$f":"IFERROR(VLOOKUP(D272,'Species List'!$D$51:$E$89,2,FALSE)*J272,\"\")","v":""},{"$f":"IFERROR(VLOOKUP(D272,'Species List'!$D$95:$E$102,2,FALSE)*J272,\"\")","v":""},{"$f":"IFERROR(VLOOKUP(D272,'Species List'!$I$10:$J$11,2,FALSE)*J272,\"\")","v":""},{"$f":"IFERROR(VLOOKUP(D272,'Species List'!$I$16:$J$61,2,FALSE)*J272,\"\")","v":""},{"$f":"IFERROR(VLOOKUP(D272,'Species List'!$I$66:$J$66,2,FALSE)*J272,\"\")","v":""},{"$f":"IFERROR(VLOOKUP(D272,'Species List'!$I$71:$J$82,2,FALSE)*J272,\"\")","v":""},0,null,null,null,null,null,null,{"$f":"IFERROR(INDEX('3 - Land Summary'!$B$21:$B$120,(MATCH(AD272,'3 - Land Summary'!$C$21:$C$120,0))),\"\")","v":""}]
[null,{"$f":"IFERROR(INDEX('3 - Land Summary'!$B$21:$B$120,(MATCH('4 - Species Breakdown'!$V273,'3 - Land Summary'!$C$21:$C$120,0))),\"\")","v":""},null,null,{"$f":"IF(OR(COUNTIF('Look Up Data'!$D$149:$D$203,D273),COUNTIF('Look Up Data'!$D$149:$D$203,AE273)),\"YES\",\"NO\")","v":"NO"},null,null,{"$f":"IFERROR(INDEX('3 - Land Summary'!$G$21:$G$120,(MATCH(C273,'3 - Land Summary'!$C$21:$C$120,0))),\"\")","v":""},{"$f":"IFERROR(INDEX('3 - Land Summary'!$I$21:$I$120,(MATCH(C273,'3 - Land Summary'!$C$21:$C$120,0))),\"\")","v":""},"","",null,null,null,{"$f":"IFERROR(VLOOKUP(D273,'Species List'!$D$10:$E$46,2,FALSE)*J273,\"\")","v":""},{"$f":"IFERROR(VLOOKUP(D273,'Species List'!$D$51:$E$89,2,FALSE)*J273,\"\")","v":""},{"$f":"IFERROR(VLOOKUP(D273,'Species List'!$D$95:$E$102,2,FALSE)*J273,\"\")","v":""},{"$f":"IFERROR(VLOOKUP(D273,'Species List'!$I$10:$J$11,2,FALSE)*J273,\"\")","v":""},{"$f":"IFERROR(VLOOKUP(D273,'Species List'!$I$16:$J$61,2,FALSE)*J273,\"\")","v":""},{"$f":"IFERROR(VLOOKUP(D273,'Species List'!$I$66:$J$66,2,FALSE)*J273,\"\")","v":""},{"$f":"IFERROR(VLOOKUP(D273,'Species List'!$I$71:$J$82,2,FALSE)*J273,\"\")","v":""},0,null,null,null,null,null,null,{"$f":"IFERROR(INDEX('3 - Land Summary'!$B$21:$B$120,(MATCH(AD273,'3 - Land Summary'!$C$21:$C$120,0))),\"\")","v":""}]
[null,{"$f":"IFERROR(INDEX('3 - Land Summary'!$B$21:$B$120,(MATCH('4 - Species Breakdown'!$V274,'3 - Land Summary'!$C$21:$C$120,0))),\"\")","v":""},null,null,{"$f":"IF(OR(COUNTIF('Look Up Data'!$D$149:$D$203,D274),COUNTIF('Look Up Data'!$D$149:$D$203,AE274)),\"YES\",\"NO\")","v":"NO"},null,null,{"$f":"IFERROR(INDEX('3 - Land Summary'!$G$21:$G$120,(MATCH(C274,'3 - Land Summary'!$C$21:$C$120,0))),\"\")","v":""},{"$f":"IFERROR(INDEX('3 - Land Summary'!$I$21:$I$120,(MATCH(C274,'3 - Land Summary'!$C$21:$C$120,0))),\"\")","v":""},"","",null,null,null,{"$f":"IFERROR(VLOOKUP(D274,'Species List'!$D$10:$E$46,2,FALSE)*J274,\"\")","v":""},{"$f":"IFERROR(VLOOKUP(D274,'Species List'!$D$51:$E$89,2,FALSE)*J274,\"\")","v":""},{"$f":"IFERROR(VLOOKUP(D274,'Species List'!$D$95:$E$102,2,FALSE)*J274,\"\")","v":""},{"$f":"IFERROR(VLOOKUP(D274,'Species List'!$I$10:$J$11,2,FALSE)*J274,\"\")","v":""},{"$f":"IFERROR(VLOOKUP(D274,'Species List'!$I$16:$J$61,2,FALSE)*J274,\"\")","v":""},{"$f":"IFERROR(VLOOKUP(D274,'Species List'!$I$66:$J$66,2,FALSE)*J274,\"\")","v":""},{"$f":"IFERROR(VLOOKUP(D274,'Species List'!$I$71:$J$82,2,FALSE)*J274,\"\")","v":""},0,null,null,null,null,null,null,{"$f":"IFERROR(INDEX('3 - Land Summary'!$B$21:$B$120,(MATCH(AD274,'3 - Land Summary'!$C$21:$C$120,0))),\"\")","v":""}]
[null,{"$f":"IFERROR(INDEX('3 - Land Summary'!$B$21:$B$120,(MATCH('4 - Species Breakdown'!$V275,'3 - Land Summary'!$C$21:$C$120,0))),\"\")","v":""},null,null,{"$f":"IF(OR(COUNTIF('Look Up Data'!$D$149:$D$203,D275),COUNTIF('Look Up Data'!$D$149:$D$203,AE275)),\"YES\",\"NO\")","v":"NO"},null,null,{"$f":"IFERROR(INDEX('3 - Land Summary'!$G$21:$G$120,(MATCH(C275,'3 - Land Summary'!$C$21:$C$120,0))),\"\")","v":""},{"$f":"IFERROR(INDEX('3 - Land Summary'!$I$21:$I$120,(MATCH(C275,'3 - Land Summary'!$C$21:$C$120,0))),\"\")","v":""},"","",null,null,null,{"$f":"IFERROR(VLOOKUP(D275,'Species List'!$D$10:$E$46,2,FALSE)*J275,\"\")","v":""},{"$f":"IFERROR(VLOOKUP(D275,'Species List'!$D$51:$E$89,2,FALSE)*J275,\"\")","v":""},{"$f":"IFERROR(VLOOKUP(D275,'Species List'!$D$95:$E$102,2,FALSE)*J275,\"\")","v":""},{"$f":"IFERROR(VLOOKUP(D275,'Species List'!$I$10:$J$11,2,FALSE)*J275,\"\")","v":""},{"$f":"IFERROR(VLOOKUP(D275,'Species List'!$I$16:$J$61,2,FALSE)*J275,\"\")","v":""},{"$f":"IFERROR(VLOOKUP(D275,'Species List'!$I$66:$J$66,2,FALSE)*J275,\"\")","v":""},{"$f":"IFERROR(VLOOKUP(D275,'Species List'!$I$71:$J$82,2,FALSE)*J275,\"\")","v":""},0,null,null,null,null,null,null,{"$f":"IFERROR(INDEX('3 - Land Summary'!$B$21:$B$120,(MATCH(AD275,'3 - Land Summary'!$C$21:$C$120,0))),\"\")","v":""}]
[null,{"$f":"IFERROR(INDEX('3 - Land Summary'!$B$21:$B$120,(MATCH('4 - Species Breakdown'!$V276,'3 - Land Summary'!$C$21:$C$120,0))),\"\")","v":""},null,null,{"$f":"IF(OR(COUNTIF('Look Up Data'!$D$149:$D$203,D276),COUNTIF('Look Up Data'!$D$149:$D$203,AE276)),\"YES\",\"NO\")","v":"NO"},null,null,{"$f":"IFERROR(INDEX('3 - Land Summary'!$G$21:$G$120,(MATCH(C276,'3 - Land Summary'!$C$21:$C$120,0))),\"\")","v":""},{"$f":"IFERROR(INDEX('3 - Land Summary'!$I$21:$I$120,(MATCH(C276,'3 - Land Summary'!$C$21:$C$120,0))),\"\")","v":""},"","",null,null,null,{"$f":"IFERROR(VLOOKUP(D276,'Species List'!$D$10:$E$46,2,FALSE)*J276,\"\")","v":""},{"$f":"IFERROR(VLOOKUP(D276,'Species List'!$D$51:$E$89,2,FALSE)*J276,\"\")","v":""},{"$f":"IFERROR(VLOOKUP(D276,'Species List'!$D$95:$E$102,2,FALSE)*J276,\"\")","v":""},{"$f":"IFERROR(VLOOKUP(D276,'Species List'!$I$10:$J$11,2,FALSE)*J276,\"\")","v":""},{"$f":"IFERROR(VLOOKUP(D276,'Species List'!$I$16:$J$61,2,FALSE)*J276,\"\")","v":""},{"$f":"IFERROR(VLOOKUP(D276,'Species List'!$I$66:$J$66,2,FALSE)*J276,\"\")","v":""},{"$f":"IFERROR(VLOOKUP(D276,'Species List'!$I$71:$J$82,2,FALSE)*J276,\"\")","v":""},0,null,null,null,null,null,null,{"$f":"IFERROR(INDEX('3 - Land Summary'!$B$21:$B$120,(MATCH(AD276,'3 - Land Summary'!$C$21:$C$120,0))),\"\")","v":""}]
[null,{"$f":"IFERROR(INDEX('3 - Land Summary'!$B$21:$B$120,(MATCH('4 - Species Breakdown'!$V277,'3 - Land Summary'!$C$21:$C$120,0))),\"\")","v":""},null,null,{"$f":"IF(OR(COUNTIF('Look Up Data'!$D$149:$D$203,D277),COUNTIF('Look Up Data'!$D$149:$D$203,AE277)),\"YES\",\"NO\")","v":"NO"},null,null,{"$f":"IFERROR(INDEX('3 - Land Summary'!$G$21:$G$120,(MATCH(C277,'3 - Land Summary'!$C$21:$C$120,0))),\"\")","v":""},{"$f":"IFERROR(INDEX('3 - Land Summary'!$I$21:$I$120,(MATCH(C277,'3 - Land Summary'!$C$21:$C$120,0))),\"\")","v":""},"","",null,null,null,{"$f":"IFERROR(VLOOKUP(D277,'Species List'!$D$10:$E$46,2,FALSE)*J277,\"\")","v":""},{"$f":"IFERROR(VLOOKUP(D277,'Species List'!$D$51:$E$89,2,FALSE)*J277,\"\")","v":""},{"$f":"IFERROR(VLOOKUP(D277,'Species List'!$D$95:$E$102,2,FALSE)*J277,\"\")","v":""},{"$f":"IFERROR(VLOOKUP(D277,'Species List'!$I$10:$J$11,2,FALSE)*J277,\"\")","v":""},{"$f":"IFERROR(VLOOKUP(D277,'Species List'!$I$16:$J$61,2,FALSE)*J277,\"\")","v":""},{"$f":"IFERROR(VLOOKUP(D277,'Species List'!$I$66:$J$66,2,FALSE)*J277,\"\")","v":""},{"$f":"IFERROR(VLOOKUP(D277,'Species List'!$I$71:$J$82,2,FALSE)*J277,\"\")","v":""},0,null,null,null,null,null,null,{"$f":"IFERROR(INDEX('3 - Land Summary'!$B$21:$B$120,(MATCH(AD277,'3 - Land Summary'!$C$21:$C$120,0))),\"\")","v":""}]
[null,{"$f":"IFERROR(INDEX('3 - Land Summary'!$B$21:$B$120,(MATCH('4 - Species Breakdown'!$V278,'3 - Land Summary'!$C$21:$C$120,0))),\"\")","v":""},null,null,{"$f":"IF(OR(COUNTIF('Look Up Data'!$D$149:$D$203,D278),COUNTIF('Look Up Data'!$D$149:$D$203,AE278)),\"YES\",\"NO\")","v":"NO"},null,null,{"$f":"IFERROR(INDEX('3 - Land Summary'!$G$21:$G$120,(MATCH(C278,'3 - Land Summary'!$C$21:$C$120,0))),\"\")","v":""},{"$f":"IFERROR(INDEX('3 - Land Summary'!$I$21:$I$120,(MATCH(C278,'3 - Land Summary'!$C$21:$C$120,0))),\"\")","v":""},"","",null,null,null,{"$f":"IFERROR(VLOOKUP(D278,'Species List'!$D$10:$E$46,2,FALSE)*J278,\"\")","v":""},{"$f":"IFERROR(VLOOKUP(D278,'Species List'!$D$51:$E$89,2,FALSE)*J278,\"\")","v":""},{"$f":"IFERROR(VLOOKUP(D278,'Species List'!$D$95:$E$102,2,FALSE)*J278,\"\")","v":""},{"$f":"IFERROR(VLOOKUP(D278,'Species List'!$I$10:$J$11,2,FALSE)*J278,\"\")","v":""},{"$f":"IFERROR(VLOOKUP(D278,'Species List'!$I$16:$J$61,2,FALSE)*J278,\"\")","v":""},{"$f":"IFERROR(VLOOKUP(D278,'Species List'!$I$66:$J$66,2,FALSE)*J278,\"\")","v":""},{"$f":"IFERROR(VLOOKUP(D278,'Species List'!$I$71:$J$82,2,FALSE)*J278,\"\")","v":""},0,null,null,null,null,null,null,{"$f":"IFERROR(INDEX('3 - Land Summary'!$B$21:$B$120,(MATCH(AD278,'3 - Land Summary'!$C$21:$C$120,0))),\"\")","v":""}]
[null,{"$f":"IFERROR(INDEX('3 - Land Summary'!$B$21:$B$120,(MATCH('4 - Species Breakdown'!$V279,'3 - Land Summary'!$C$21:$C$120,0))),\"\")","v":""},null,null,{"$f":"IF(OR(COUNTIF('Look Up Data'!$D$149:$D$203,D279),COUNTIF('Look Up Data'!$D$149:$D$203,AE279)),\"YES\",\"NO\")","v":"NO"},null,null,{"$f":"IFERROR(INDEX('3 - Land Summary'!$G$21:$G$120,(MATCH(C279,'3 - Land Summary'!$C$21:$C$120,0))),\"\")","v":""},{"$f":"IFERROR(INDEX('3 - Land Summary'!$I$21:$I$120,(MATCH(C279,'3 - Land Summary'!$C$21:$C$120,0))),\"\")","v":""},"","",null,null,null,{"$f":"IFERROR(VLOOKUP(D279,'Species List'!$D$10:$E$46,2,FALSE)*J279,\"\")","v":""},{"$f":"IFERROR(VLOOKUP(D279,'Species List'!$D$51:$E$89,2,FALSE)*J279,\"\")","v":""},{"$f":"IFERROR(VLOOKUP(D279,'Species List'!$D$95:$E$102,2,FALSE)*J279,\"\")","v":""},{"$f":"IFERROR(VLOOKUP(D279,'Species List'!$I$10:$J$11,2,FALSE)*J279,\"\")","v":""},{"$f":"IFERROR(VLOOKUP(D279,'Species List'!$I$16:$J$61,2,FALSE)*J279,\"\")","v":""},{"$f":"IFERROR(VLOOKUP(D279,'Species List'!$I$66:$J$66,2,FALSE)*J279,\"\")","v":""},{"$f":"IFERROR(VLOOKUP(D279,'Species List'!$I$71:$J$82,2,FALSE)*J279,\"\")","v":""},0,null,null,null,null,null,null,{"$f":"IFERROR(INDEX('3 - Land Summary'!$B$21:$B$120,(MATCH(AD279,'3 - Land Summary'!$C$21:$C$120,0))),\"\")","v":""}]
[null,{"$f":"IFERROR(INDEX('3 - Land Summary'!$B$21:$B$120,(MATCH('4 - Species Breakdown'!$V280,'3 - Land Summary'!$C$21:$C$120,0))),\"\")","v":""},null,null,{"$f":"IF(OR(COUNTIF('Look Up Data'!$D$149:$D$203,D280),COUNTIF('Look Up Data'!$D$149:$D$203,AE280)),\"YES\",\"NO\")","v":"NO"},null,null,{"$f":"IFERROR(INDEX('3 - Land Summary'!$G$21:$G$120,(MATCH(C280,'3 - Land Summary'!$C$21:$C$120,0))),\"\")","v":""},{"$f":"IFERROR(INDEX('3 - Land Summary'!$I$21:$I$120,(MATCH(C280,'3 - Land Summary'!$C$21:$C$120,0))),\"\")","v":""},"","",null,null,null,{"$f":"IFERROR(VLOOKUP(D280,'Species List'!$D$10:$E$46,2,FALSE)*J280,\"\")","v":""},{"$f":"IFERROR(VLOOKUP(D280,'Species List'!$D$51:$E$89,2,FALSE)*J280,\"\")","v":""},{"$f":"IFERROR(VLOOKUP(D280,'Species List'!$D$95:$E$102,2,FALSE)*J280,\"\")","v":""},{"$f":"IFERROR(VLOOKUP(D280,'Species List'!$I$10:$J$11,2,FALSE)*J280,\"\")","v":""},{"$f":"IFERROR(VLOOKUP(D280,'Species List'!$I$16:$J$61,2,FALSE)*J280,\"\")","v":""},{"$f":"IFERROR(VLOOKUP(D280,'Species List'!$I$66:$J$66,2,FALSE)*J280,\"\")","v":""},{"$f":"IFERROR(VLOOKUP(D280,'Species List'!$I$71:$J$82,2,FALSE)*J280,\"\")","v":""},0,null,null,null,null,null,null,{"$f":"IFERROR(INDEX('3 - Land Summary'!$B$21:$B$120,(MATCH(AD280,'3 - Land Summary'!$C$21:$C$120,0))),\"\")","v":""}]
[null,{"$f":"IFERROR(INDEX('3 - Land Summary'!$B$21:$B$120,(MATCH('4 - Species Breakdown'!$V281,'3 - Land Summary'!$C$21:$C$120,0))),\"\")","v":""},null,null,{"$f":"IF(OR(COUNTIF('Look Up Data'!$D$149:$D$203,D281),COUNTIF('Look Up Data'!$D$149:$D$203,AE281)),\"YES\",\"NO\")","v":"NO"},null,null,{"$f":"IFERROR(INDEX('3 - Land Summary'!$G$21:$G$120,(MATCH(C281,'3 - Land Summary'!$C$21:$C$120,0))),\"\")","v":""},{"$f":"IFERROR(INDEX('3 - Land Summary'!$I$21:$I$120,(MATCH(C281,'3 - Land Summary'!$C$21:$C$120,0))),\"\")","v":""},"","",null,null,null,{"$f":"IFERROR(VLOOKUP(D281,'Species List'!$D$10:$E$46,2,FALSE)*J281,\"\")","v":""},{"$f":"IFERROR(VLOOKUP(D281,'Species List'!$D$51:$E$89,2,FALSE)*J281,\"\")","v":""},{"$f":"IFERROR(VLOOKUP(D281,'Species List'!$D$95:$E$102,2,FALSE)*J281,\"\")","v":""},{"$f":"IFERROR(VLOOKUP(D281,'Species List'!$I$10:$J$11,2,FALSE)*J281,\"\")","v":""},{"$f":"IFERROR(VLOOKUP(D281,'Species List'!$I$16:$J$61,2,FALSE)*J281,\"\")","v":""},{"$f":"IFERROR(VLOOKUP(D281,'Species List'!$I$66:$J$66,2,FALSE)*J281,\"\")","v":""},{"$f":"IFERROR(VLOOKUP(D281,'Species List'!$I$71:$J$82,2,FALSE)*J281,\"\")","v":""},0,null,null,null,null,null,null,{"$f":"IFERROR(INDEX('3 - Land Summary'!$B$21:$B$120,(MATCH(AD281,'3 - Land Summary'!$C$21:$C$120,0))),\"\")","v":""}]
[null,{"$f":"IFERROR(INDEX('3 - Land Summary'!$B$21:$B$120,(MATCH('4 - Species Breakdown'!$V282,'3 - Land Summary'!$C$21:$C$120,0))),\"\")","v":""},null,null,{"$f":"IF(OR(COUNTIF('Look Up Data'!$D$149:$D$203,D282),COUNTIF('Look Up Data'!$D$149:$D$203,AE282)),\"YES\",\"NO\")","v":"NO"},null,null,{"$f":"IFERROR(INDEX('3 - Land Summary'!$G$21:$G$120,(MATCH(C282,'3 - Land Summary'!$C$21:$C$120,0))),\"\")","v":""},{"$f":"IFERROR(INDEX('3 - Land Summary'!$I$21:$I$120,(MATCH(C282,'3 - Land Summary'!$C$21:$C$120,0))),\"\")","v":""},"","",null,null,null,{"$f":"IFERROR(VLOOKUP(D282,'Species List'!$D$10:$E$46,2,FALSE)*J282,\"\")","v":""},{"$f":"IFERROR(VLOOKUP(D282,'Species List'!$D$51:$E$89,2,FALSE)*J282,\"\")","v":""},{"$f":"IFERROR(VLOOKUP(D282,'Species List'!$D$95:$E$102,2,FALSE)*J282,\"\")","v":""},{"$f":"IFERROR(VLOOKUP(D282,'Species List'!$I$10:$J$11,2,FALSE)*J282,\"\")","v":""},{"$f":"IFERROR(VLOOKUP(D282,'Species List'!$I$16:$J$61,2,FALSE)*J282,\"\")","v":""},{"$f":"IFERROR(VLOOKUP(D282,'Species List'!$I$66:$J$66,2,FALSE)*J282,\"\")","v":""},{"$f":"IFERROR(VLOOKUP(D282,'Species List'!$I$71:$J$82,2,FALSE)*J282,\"\")","v":""},0,null,null,null,null,null,null,{"$f":"IFERROR(INDEX('3 - Land Summary'!$B$21:$B$120,(MATCH(AD282,'3 - Land Summary'!$C$21:$C$120,0))),\"\")","v":""}]
[null,{"$f":"IFERROR(INDEX('3 - Land Summary'!$B$21:$B$120,(MATCH('4 - Species Breakdown'!$V283,'3 - Land Summary'!$C$21:$C$120,0))),\"\")","v":""},null,null,{"$f":"IF(OR(COUNTIF('Look Up Data'!$D$149:$D$203,D283),COUNTIF('Look Up Data'!$D$149:$D$203,AE283)),\"YES\",\"NO\")","v":"NO"},null,null,{"$f":"IFERROR(INDEX('3 - Land Summary'!$G$21:$G$120,(MATCH(C283,'3 - Land Summary'!$C$21:$C$120,0))),\"\")","v":""},{"$f":"IFERROR(INDEX('3 - Land Summary'!$I$21:$I$120,(MATCH(C283,'3 - Land Summary'!$C$21:$C$120,0))),\"\")","v":""},"","",null,null,null,{"$f":"IFERROR(VLOOKUP(D283,'Species List'!$D$10:$E$46,2,FALSE)*J283,\"\")","v":""},{"$f":"IFERROR(VLOOKUP(D283,'Species List'!$D$51:$E$89,2,FALSE)*J283,\"\")","v":""},{"$f":"IFERROR(VLOOKUP(D283,'Species List'!$D$95:$E$102,2,FALSE)*J283,\"\")","v":""},{"$f":"IFERROR(VLOOKUP(D283,'Species List'!$I$10:$J$11,2,FALSE)*J283,\"\")","v":""},{"$f":"IFERROR(VLOOKUP(D283,'Species List'!$I$16:$J$61,2,FALSE)*J283,\"\")","v":""},{"$f":"IFERROR(VLOOKUP(D283,'Species List'!$I$66:$J$66,2,FALSE)*J283,\"\")","v":""},{"$f":"IFERROR(VLOOKUP(D283,'Species List'!$I$71:$J$82,2,FALSE)*J283,\"\")","v":""},0,null,null,null,null,null,null,{"$f":"IFERROR(INDEX('3 - Land Summary'!$B$21:$B$120,(MATCH(AD283,'3 - Land Summary'!$C$21:$C$120,0))),\"\")","v":""}]
[null,{"$f":"IFERROR(INDEX('3 - Land Summary'!$B$21:$B$120,(MATCH('4 - Species Breakdown'!$V284,'3 - Land Summary'!$C$21:$C$120,0))),\"\")","v":""},null,null,{"$f":"IF(OR(COUNTIF('Look Up Data'!$D$149:$D$203,D284),COUNTIF('Look Up Data'!$D$149:$D$203,AE284)),\"YES\",\"NO\")","v":"NO"},null,null,{"$f":"IFERROR(INDEX('3 - Land Summary'!$G$21:$G$120,(MATCH(C284,'3 - Land Summary'!$C$21:$C$120,0))),\"\")","v":""},{"$f":"IFERROR(INDEX('3 - Land Summary'!$I$21:$I$120,(MATCH(C284,'3 - Land Summary'!$C$21:$C$120,0))),\"\")","v":""},"","",null,null,null,{"$f":"IFERROR(VLOOKUP(D284,'Species List'!$D$10:$E$46,2,FALSE)*J284,\"\")","v":""},{"$f":"IFERROR(VLOOKUP(D284,'Species List'!$D$51:$E$89,2,FALSE)*J284,\"\")","v":""},{"$f":"IFERROR(VLOOKUP(D284,'Species List'!$D$95:$E$102,2,FALSE)*J284,\"\")","v":""},{"$f":"IFERROR(VLOOKUP(D284,'Species List'!$I$10:$J$11,2,FALSE)*J284,\"\")","v":""},{"$f":"IFERROR(VLOOKUP(D284,'Species List'!$I$16:$J$61,2,FALSE)*J284,\"\")","v":""},{"$f":"IFERROR(VLOOKUP(D284,'Species List'!$I$66:$J$66,2,FALSE)*J284,\"\")","v":""},{"$f":"IFERROR(VLOOKUP(D284,'Species List'!$I$71:$J$82,2,FALSE)*J284,\"\")","v":""},0,null,null,null,null,null,null,{"$f":"IFERROR(INDEX('3 - Land Summary'!$B$21:$B$120,(MATCH(AD284,'3 - Land Summary'!$C$21:$C$120,0))),\"\")","v":""}]
[null,{"$f":"IFERROR(INDEX('3 - Land Summary'!$B$21:$B$120,(MATCH('4 - Species Breakdown'!$V285,'3 - Land Summary'!$C$21:$C$120,0))),\"\")","v":""},null,null,{"$f":"IF(OR(COUNTIF('Look Up Data'!$D$149:$D$203,D285),COUNTIF('Look Up Data'!$D$149:$D$203,AE285)),\"YES\",\"NO\")","v":"NO"},null,null,{"$f":"IFERROR(INDEX('3 - Land Summary'!$G$21:$G$120,(MATCH(C285,'3 - Land Summary'!$C$21:$C$120,0))),\"\")","v":""},{"$f":"IFERROR(INDEX('3 - Land Summary'!$I$21:$I$120,(MATCH(C285,'3 - Land Summary'!$C$21:$C$120,0))),\"\")","v":""},"","",null,null,null,{"$f":"IFERROR(VLOOKUP(D285,'Species List'!$D$10:$E$46,2,FALSE)*J285,\"\")","v":""},{"$f":"IFERROR(VLOOKUP(D285,'Species List'!$D$51:$E$89,2,FALSE)*J285,\"\")","v":""},{"$f":"IFERROR(VLOOKUP(D285,'Species List'!$D$95:$E$102,2,FALSE)*J285,\"\")","v":""},{"$f":"IFERROR(VLOOKUP(D285,'Species List'!$I$10:$J$11,2,FALSE)*J285,\"\")","v":""},{"$f":"IFERROR(VLOOKUP(D285,'Species List'!$I$16:$J$61,2,FALSE)*J285,\"\")","v":""},{"$f":"IFERROR(VLOOKUP(D285,'Species List'!$I$66:$J$66,2,FALSE)*J285,\"\")","v":""},{"$f":"IFERROR(VLOOKUP(D285,'Species List'!$I$71:$J$82,2,FALSE)*J285,\"\")","v":""},0,null,null,null,null,null,null,{"$f":"IFERROR(INDEX('3 - Land Summary'!$B$21:$B$120,(MATCH(AD285,'3 - Land Summary'!$C$21:$C$120,0))),\"\")","v":""}]
[null,{"$f":"IFERROR(INDEX('3 - Land Summary'!$B$21:$B$120,(MATCH('4 - Species Breakdown'!$V286,'3 - Land Summary'!$C$21:$C$120,0))),\"\")","v":""},null,null,{"$f":"IF(OR(COUNTIF('Look Up Data'!$D$149:$D$203,D286),COUNTIF('Look Up Data'!$D$149:$D$203,AE286)),\"YES\",\"NO\")","v":"NO"},null,null,{"$f":"IFERROR(INDEX('3 - Land Summary'!$G$21:$G$120,(MATCH(C286,'3 - Land Summary'!$C$21:$C$120,0))),\"\")","v":""},{"$f":"IFERROR(INDEX('3 - Land Summary'!$I$21:$I$120,(MATCH(C286,'3 - Land Summary'!$C$21:$C$120,0))),\"\")","v":""},"","",null,null,null,{"$f":"IFERROR(VLOOKUP(D286,'Species List'!$D$10:$E$46,2,FALSE)*J286,\"\")","v":""},{"$f":"IFERROR(VLOOKUP(D286,'Species List'!$D$51:$E$89,2,FALSE)*J286,\"\")","v":""},{"$f":"IFERROR(VLOOKUP(D286,'Species List'!$D$95:$E$102,2,FALSE)*J286,\"\")","v":""},{"$f":"IFERROR(VLOOKUP(D286,'Species List'!$I$10:$J$11,2,FALSE)*J286,\"\")","v":""},{"$f":"IFERROR(VLOOKUP(D286,'Species List'!$I$16:$J$61,2,FALSE)*J286,\"\")","v":""},{"$f":"IFERROR(VLOOKUP(D286,'Species List'!$I$66:$J$66,2,FALSE)*J286,\"\")","v":""},{"$f":"IFERROR(VLOOKUP(D286,'Species List'!$I$71:$J$82,2,FALSE)*J286,\"\")","v":""},0,null,null,null,null,null,null,{"$f":"IFERROR(INDEX('3 - Land Summary'!$B$21:$B$120,(MATCH(AD286,'3 - Land Summary'!$C$21:$C$120,0))),\"\")","v":""}]
[null,{"$f":"IFERROR(INDEX('3 - Land Summary'!$B$21:$B$120,(MATCH('4 - Species Breakdown'!$V287,'3 - Land Summary'!$C$21:$C$120,0))),\"\")","v":""},null,null,{"$f":"IF(OR(COUNTIF('Look Up Data'!$D$149:$D$203,D287),COUNTIF('Look Up Data'!$D$149:$D$203,AE287)),\"YES\",\"NO\")","v":"NO"},null,null,{"$f":"IFERROR(INDEX('3 - Land Summary'!$G$21:$G$120,(MATCH(C287,'3 - Land Summary'!$C$21:$C$120,0))),\"\")","v":""},{"$f":"IFERROR(INDEX('3 - Land Summary'!$I$21:$I$120,(MATCH(C287,'3 - Land Summary'!$C$21:$C$120,0))),\"\")","v":""},{"$f":"IFERROR(((H287-I287)*F287)/100,\"\")","v":""},"",null,null,null,{"$f":"IFERROR(VLOOKUP(D287,'Species List'!$D$10:$E$46,2,FALSE)*J287,\"\")","v":""},{"$f":"IFERROR(VLOOKUP(D287,'Species List'!$D$51:$E$89,2,FALSE)*J287,\"\")","v":""},{"$f":"IFERROR(VLOOKUP(D287,'Species List'!$D$95:$E$102,2,FALSE)*J287,\"\")","v":""},{"$f":"IFERROR(VLOOKUP(D287,'Species List'!$I$10:$J$11,2,FALSE)*J287,\"\")","v":""},{"$f":"IFERROR(VLOOKUP(D287,'Species List'!$I$16:$J$61,2,FALSE)*J287,\"\")","v":""},{"$f":"IFERROR(VLOOKUP(D287,'Species List'!$I$66:$J$66,2,FALSE)*J287,\"\")","v":""},{"$f":"IFERROR(VLOOKUP(D287,'Species List'!$I$71:$J$82,2,FALSE)*J287,\"\")","v":""},{"$f":"C287","v":0},null,null,null,null,null,null,{"$f":"IFERROR(INDEX('3 - Land Summary'!$B$21:$B$120,(MATCH(AD287,'3 - Land Summary'!$C$21:$C$120,0))),\"\")","v":""}]
[null,{"$f":"IFERROR(INDEX('3 - Land Summary'!$B$21:$B$120,(MATCH('4 - Species Breakdown'!$V288,'3 - Land Summary'!$C$21:$C$120,0))),\"\")","v":""},null,null,{"$f":"IF(OR(COUNTIF('Look Up Data'!$D$149:$D$203,D288),COUNTIF('Look Up Data'!$D$149:$D$203,AE288)),\"YES\",\"NO\")","v":"NO"},null,null,{"$f":"IFERROR(INDEX('3 - Land Summary'!$G$21:$G$120,(MATCH(C288,'3 - Land Summary'!$C$21:$C$120,0))),\"\")","v":""},{"$f":"IFERROR(INDEX('3 - Land Summary'!$I$21:$I$120,(MATCH(C288,'3 - Land Summary'!$C$21:$C$120,0))),\"\")","v":""},"",{"$f":"IFERROR(ROUND(J288*G288,0),\"\")","v":""},null,null,null,{"$f":"IFERROR(VLOOKUP(D288,'Species List'!$D$10:$E$46,2,FALSE)*J288,\"\")","v":""},{"$f":"IFERROR(VLOOKUP(D288,'Species List'!$D$51:$E$89,2,FALSE)*J288,\"\")","v":""},{"$f":"IFERROR(VLOOKUP(D288,'Species List'!$D$95:$E$102,2,FALSE)*J288,\"\")","v":""},{"$f":"IFERROR(VLOOKUP(D288,'Species List'!$I$10:$J$11,2,FALSE)*J288,\"\")","v":""},{"$f":"IFERROR(VLOOKUP(D288,'Species List'!$I$16:$J$61,2,FALSE)*J288,\"\")","v":""},{"$f":"IFERROR(VLOOKUP(D288,'Species List'!$I$66:$J$66,2,FALSE)*J288,\"\")","v":""},{"$f":"IFERROR(VLOOKUP(D288,'Species List'!$I$71:$J$82,2,FALSE)*J288,\"\")","v":""},0,null,null,null,null,null,null,{"$f":"IFERROR(INDEX('3 - Land Summary'!$B$21:$B$120,(MATCH(AD288,'3 - Land Summary'!$C$21:$C$120,0))),\"\")","v":""}]
[null,{"$f":"IFERROR(INDEX('3 - Land Summary'!$B$21:$B$120,(MATCH('4 - Species Breakdown'!$V289,'3 - Land Summary'!$C$21:$C$120,0))),\"\")","v":""},null,null,{"$f":"IF(OR(COUNTIF('Look Up Data'!$D$149:$D$203,D289),COUNTIF('Look Up Data'!$D$149:$D$203,AE289)),\"YES\",\"NO\")","v":"NO"},null,null,{"$f":"IFERROR(INDEX('3 - Land Summary'!$G$21:$G$120,(MATCH(C289,'3 - Land Summary'!$C$21:$C$120,0))),\"\")","v":""},{"$f":"IFERROR(INDEX('3 - Land Summary'!$I$21:$I$120,(MATCH(C289,'3 - Land Summary'!$C$21:$C$120,0))),\"\")","v":""},"","",null,null,null,{"$f":"IFERROR(VLOOKUP(D289,'Species List'!$D$10:$E$46,2,FALSE)*J289,\"\")","v":""},{"$f":"IFERROR(VLOOKUP(D289,'Species List'!$D$51:$E$89,2,FALSE)*J289,\"\")","v":""},{"$f":"IFERROR(VLOOKUP(D289,'Species List'!$D$95:$E$102,2,FALSE)*J289,\"\")","v":""},{"$f":"IFERROR(VLOOKUP(D289,'Species List'!$I$10:$J$11,2,FALSE)*J289,\"\")","v":""},{"$f":"IFERROR(VLOOKUP(D289,'Species List'!$I$16:$J$61,2,FALSE)*J289,\"\")","v":""},{"$f":"IFERROR(VLOOKUP(D289,'Species List'!$I$66:$J$66,2,FALSE)*J289,\"\")","v":""},{"$f":"IFERROR(VLOOKUP(D289,'Species List'!$I$71:$J$82,2,FALSE)*J289,\"\")","v":""},0,null,null,null,null,null,null,{"$f":"IFERROR(INDEX('3 - Land Summary'!$B$21:$B$120,(MATCH(AD289,'3 - Land Summary'!$C$21:$C$120,0))),\"\")","v":""}]
[null,{"$f":"IFERROR(INDEX('3 - Land Summary'!$B$21:$B$120,(MATCH('4 - Species Breakdown'!$V290,'3 - Land Summary'!$C$21:$C$120,0))),\"\")","v":""},null,null,{"$f":"IF(OR(COUNTIF('Look Up Data'!$D$149:$D$203,D290),COUNTIF('Look Up Data'!$D$149:$D$203,AE290)),\"YES\",\"NO\")","v":"NO"},null,null,{"$f":"IFERROR(INDEX('3 - Land Summary'!$G$21:$G$120,(MATCH(C290,'3 - Land Summary'!$C$21:$C$120,0))),\"\")","v":""},{"$f":"IFERROR(INDEX('3 - Land Summary'!$I$21:$I$120,(MATCH(C290,'3 - Land Summary'!$C$21:$C$120,0))),\"\")","v":""},"","",null,null,null,{"$f":"IFERROR(VLOOKUP(D290,'Species List'!$D$10:$E$46,2,FALSE)*J290,\"\")","v":""},{"$f":"IFERROR(VLOOKUP(D290,'Species List'!$D$51:$E$89,2,FALSE)*J290,\"\")","v":""},{"$f":"IFERROR(VLOOKUP(D290,'Species List'!$D$95:$E$102,2,FALSE)*J290,\"\")","v":""},{"$f":"IFERROR(VLOOKUP(D290,'Species List'!$I$10:$J$11,2,FALSE)*J290,\"\")","v":""},{"$f":"IFERROR(VLOOKUP(D290,'Species List'!$I$16:$J$61,2,FALSE)*J290,\"\")","v":""},{"$f":"IFERROR(VLOOKUP(D290,'Species List'!$I$66:$J$66,2,FALSE)*J290,\"\")","v":""},{"$f":"IFERROR(VLOOKUP(D290,'Species List'!$I$71:$J$82,2,FALSE)*J290,\"\")","v":""},0,null,null,null,null,null,null,{"$f":"IFERROR(INDEX('3 - Land Summary'!$B$21:$B$120,(MATCH(AD290,'3 - Land Summary'!$C$21:$C$120,0))),\"\")","v":""}]
[null,{"$f":"IFERROR(INDEX('3 - Land Summary'!$B$21:$B$120,(MATCH('4 - Species Breakdown'!$V291,'3 - Land Summary'!$C$21:$C$120,0))),\"\")","v":""},null,null,{"$f":"IF(OR(COUNTIF('Look Up Data'!$D$149:$D$203,D291),COUNTIF('Look Up Data'!$D$149:$D$203,AE291)),\"YES\",\"NO\")","v":"NO"},null,null,{"$f":"IFERROR(INDEX('3 - Land Summary'!$G$21:$G$120,(MATCH(C291,'3 - Land Summary'!$C$21:$C$120,0))),\"\")","v":""},{"$f":"IFERROR(INDEX('3 - Land Summary'!$I$21:$I$120,(MATCH(C291,'3 - Land Summary'!$C$21:$C$120,0))),\"\")","v":""},"","",null,null,null,{"$f":"IFERROR(VLOOKUP(D291,'Species List'!$D$10:$E$46,2,FALSE)*J291,\"\")","v":""},{"$f":"IFERROR(VLOOKUP(D291,'Species List'!$D$51:$E$89,2,FALSE)*J291,\"\")","v":""},{"$f":"IFERROR(VLOOKUP(D291,'Species List'!$D$95:$E$102,2,FALSE)*J291,\"\")","v":""},{"$f":"IFERROR(VLOOKUP(D291,'Species List'!$I$10:$J$11,2,FALSE)*J291,\"\")","v":""},{"$f":"IFERROR(VLOOKUP(D291,'Species List'!$I$16:$J$61,2,FALSE)*J291,\"\")","v":""},{"$f":"IFERROR(VLOOKUP(D291,'Species List'!$I$66:$J$66,2,FALSE)*J291,\"\")","v":""},{"$f":"IFERROR(VLOOKUP(D291,'Species List'!$I$71:$J$82,2,FALSE)*J291,\"\")","v":""},0,null,null,null,null,null,null,{"$f":"IFERROR(INDEX('3 - Land Summary'!$B$21:$B$120,(MATCH(AD291,'3 - Land Summary'!$C$21:$C$120,0))),\"\")","v":""}]
[null,{"$f":"IFERROR(INDEX('3 - Land Summary'!$B$21:$B$120,(MATCH('4 - Species Breakdown'!$V292,'3 - Land Summary'!$C$21:$C$120,0))),\"\")","v":""},null,null,{"$f":"IF(OR(COUNTIF('Look Up Data'!$D$149:$D$203,D292),COUNTIF('Look Up Data'!$D$149:$D$203,AE292)),\"YES\",\"NO\")","v":"NO"},null,null,{"$f":"IFERROR(INDEX('3 - Land Summary'!$G$21:$G$120,(MATCH(C292,'3 - Land Summary'!$C$21:$C$120,0))),\"\")","v":""},{"$f":"IFERROR(INDEX('3 - Land Summary'!$I$21:$I$120,(MATCH(C292,'3 - Land Summary'!$C$21:$C$120,0))),\"\")","v":""},"","",null,null,null,{"$f":"IFERROR(VLOOKUP(D292,'Species List'!$D$10:$E$46,2,FALSE)*J292,\"\")","v":""},{"$f":"IFERROR(VLOOKUP(D292,'Species List'!$D$51:$E$89,2,FALSE)*J292,\"\")","v":""},{"$f":"IFERROR(VLOOKUP(D292,'Species List'!$D$95:$E$102,2,FALSE)*J292,\"\")","v":""},{"$f":"IFERROR(VLOOKUP(D292,'Species List'!$I$10:$J$11,2,FALSE)*J292,\"\")","v":""},{"$f":"IFERROR(VLOOKUP(D292,'Species List'!$I$16:$J$61,2,FALSE)*J292,\"\")","v":""},{"$f":"IFERROR(VLOOKUP(D292,'Species List'!$I$66:$J$66,2,FALSE)*J292,\"\")","v":""},{"$f":"IFERROR(VLOOKUP(D292,'Species List'!$I$71:$J$82,2,FALSE)*J292,\"\")","v":""},0,null,null,null,null,null,null,{"$f":"IFERROR(INDEX('3 - Land Summary'!$B$21:$B$120,(MATCH(AD292,'3 - Land Summary'!$C$21:$C$120,0))),\"\")","v":""}]
[null,{"$f":"IFERROR(INDEX('3 - Land Summary'!$B$21:$B$120,(MATCH('4 - Species Breakdown'!$V293,'3 - Land Summary'!$C$21:$C$120,0))),\"\")","v":""},null,null,{"$f":"IF(OR(COUNTIF('Look Up Data'!$D$149:$D$203,D293),COUNTIF('Look Up Data'!$D$149:$D$203,AE293)),\"YES\",\"NO\")","v":"NO"},null,null,{"$f":"IFERROR(INDEX('3 - Land Summary'!$G$21:$G$120,(MATCH(C293,'3 - Land Summary'!$C$21:$C$120,0))),\"\")","v":""},{"$f":"IFERROR(INDEX('3 - Land Summary'!$I$21:$I$120,(MATCH(C293,'3 - Land Summary'!$C$21:$C$120,0))),\"\")","v":""},"","",null,null,null,{"$f":"IFERROR(VLOOKUP(D293,'Species List'!$D$10:$E$46,2,FALSE)*J293,\"\")","v":""},{"$f":"IFERROR(VLOOKUP(D293,'Species List'!$D$51:$E$89,2,FALSE)*J293,\"\")","v":""},{"$f":"IFERROR(VLOOKUP(D293,'Species List'!$D$95:$E$102,2,FALSE)*J293,\"\")","v":""},{"$f":"IFERROR(VLOOKUP(D293,'Species List'!$I$10:$J$11,2,FALSE)*J293,\"\")","v":""},{"$f":"IFERROR(VLOOKUP(D293,'Species List'!$I$16:$J$61,2,FALSE)*J293,\"\")","v":""},{"$f":"IFERROR(VLOOKUP(D293,'Species List'!$I$66:$J$66,2,FALSE)*J293,\"\")","v":""},{"$f":"IFERROR(VLOOKUP(D293,'Species List'!$I$71:$J$82,2,FALSE)*J293,\"\")","v":""},0,null,null,null,null,null,null,{"$f":"IFERROR(INDEX('3 - Land Summary'!$B$21:$B$120,(MATCH(AD293,'3 - Land Summary'!$C$21:$C$120,0))),\"\")","v":""}]
[null,{"$f":"IFERROR(INDEX('3 - Land Summary'!$B$21:$B$120,(MATCH('4 - Species Breakdown'!$V294,'3 - Land Summary'!$C$21:$C$120,0))),\"\")","v":""},null,null,{"$f":"IF(OR(COUNTIF('Look Up Data'!$D$149:$D$203,D294),COUNTIF('Look Up Data'!$D$149:$D$203,AE294)),\"YES\",\"NO\")","v":"NO"},null,null,{"$f":"IFERROR(INDEX('3 - Land Summary'!$G$21:$G$120,(MATCH(C294,'3 - Land Summary'!$C$21:$C$120,0))),\"\")","v":""},{"$f":"IFERROR(INDEX('3 - Land Summary'!$I$21:$I$120,(MATCH(C294,'3 - Land Summary'!$C$21:$C$120,0))),\"\")","v":""},"","",null,null,null,{"$f":"IFERROR(VLOOKUP(D294,'Species List'!$D$10:$E$46,2,FALSE)*J294,\"\")","v":""},{"$f":"IFERROR(VLOOKUP(D294,'Species List'!$D$51:$E$89,2,FALSE)*J294,\"\")","v":""},{"$f":"IFERROR(VLOOKUP(D294,'Species List'!$D$95:$E$102,2,FALSE)*J294,\"\")","v":""},{"$f":"IFERROR(VLOOKUP(D294,'Species List'!$I$10:$J$11,2,FALSE)*J294,\"\")","v":""},{"$f":"IFERROR(VLOOKUP(D294,'Species List'!$I$16:$J$61,2,FALSE)*J294,\"\")","v":""},{"$f":"IFERROR(VLOOKUP(D294,'Species List'!$I$66:$J$66,2,FALSE)*J294,\"\")","v":""},{"$f":"IFERROR(VLOOKUP(D294,'Species List'!$I$71:$J$82,2,FALSE)*J294,\"\")","v":""},0,null,null,null,null,null,null,{"$f":"IFERROR(INDEX('3 - Land Summary'!$B$21:$B$120,(MATCH(AD294,'3 - Land Summary'!$C$21:$C$120,0))),\"\")","v":""}]
[null,{"$f":"IFERROR(INDEX('3 - Land Summary'!$B$21:$B$120,(MATCH('4 - Species Breakdown'!$V295,'3 - Land Summary'!$C$21:$C$120,0))),\"\")","v":""},null,null,{"$f":"IF(OR(COUNTIF('Look Up Data'!$D$149:$D$203,D295),COUNTIF('Look Up Data'!$D$149:$D$203,AE295)),\"YES\",\"NO\")","v":"NO"},null,null,{"$f":"IFERROR(INDEX('3 - Land Summary'!$G$21:$G$120,(MATCH(C295,'3 - Land Summary'!$C$21:$C$120,0))),\"\")","v":""},{"$f":"IFERROR(INDEX('3 - Land Summary'!$I$21:$I$120,(MATCH(C295,'3 - Land Summary'!$C$21:$C$120,0))),\"\")","v":""},"","",null,null,null,{"$f":"IFERROR(VLOOKUP(D295,'Species List'!$D$10:$E$46,2,FALSE)*J295,\"\")","v":""},{"$f":"IFERROR(VLOOKUP(D295,'Species List'!$D$51:$E$89,2,FALSE)*J295,\"\")","v":""},{"$f":"IFERROR(VLOOKUP(D295,'Species List'!$D$95:$E$102,2,FALSE)*J295,\"\")","v":""},{"$f":"IFERROR(VLOOKUP(D295,'Species List'!$I$10:$J$11,2,FALSE)*J295,\"\")","v":""},{"$f":"IFERROR(VLOOKUP(D295,'Species List'!$I$16:$J$61,2,FALSE)*J295,\"\")","v":""},{"$f":"IFERROR(VLOOKUP(D295,'Species List'!$I$66:$J$66,2,FALSE)*J295,\"\")","v":""},{"$f":"IFERROR(VLOOKUP(D295,'Species List'!$I$71:$J$82,2,FALSE)*J295,\"\")","v":""},0,null,null,null,null,null,null,{"$f":"IFERROR(INDEX('3 - Land Summary'!$B$21:$B$120,(MATCH(AD295,'3 - Land Summary'!$C$21:$C$120,0))),\"\")","v":""}]
[null,{"$f":"IFERROR(INDEX('3 - Land Summary'!$B$21:$B$120,(MATCH('4 - Species Breakdown'!$V296,'3 - Land Summary'!$C$21:$C$120,0))),\"\")","v":""},null,null,{"$f":"IF(OR(COUNTIF('Look Up Data'!$D$149:$D$203,D296),COUNTIF('Look Up Data'!$D$149:$D$203,AE296)),\"YES\",\"NO\")","v":"NO"},null,null,{"$f":"IFERROR(INDEX('3 - Land Summary'!$G$21:$G$120,(MATCH(C296,'3 - Land Summary'!$C$21:$C$120,0))),\"\")","v":""},{"$f":"IFERROR(INDEX('3 - Land Summary'!$I$21:$I$120,(MATCH(C296,'3 - Land Summary'!$C$21:$C$120,0))),\"\")","v":""},"","",null,null,null,{"$f":"IFERROR(VLOOKUP(D296,'Species List'!$D$10:$E$46,2,FALSE)*J296,\"\")","v":""},{"$f":"IFERROR(VLOOKUP(D296,'Species List'!$D$51:$E$89,2,FALSE)*J296,\"\")","v":""},{"$f":"IFERROR(VLOOKUP(D296,'Species List'!$D$95:$E$102,2,FALSE)*J296,\"\")","v":""},{"$f":"IFERROR(VLOOKUP(D296,'Species List'!$I$10:$J$11,2,FALSE)*J296,\"\")","v":""},{"$f":"IFERROR(VLOOKUP(D296,'Species List'!$I$16:$J$61,2,FALSE)*J296,\"\")","v":""},{"$f":"IFERROR(VLOOKUP(D296,'Species List'!$I$66:$J$66,2,FALSE)*J296,\"\")","v":""},{"$f":"IFERROR(VLOOKUP(D296,'Species List'!$I$71:$J$82,2,FALSE)*J296,\"\")","v":""},0,null,null,null,null,null,null,{"$f":"IFERROR(INDEX('3 - Land Summary'!$B$21:$B$120,(MATCH(AD296,'3 - Land Summary'!$C$21:$C$120,0))),\"\")","v":""}]
[null,{"$f":"IFERROR(INDEX('3 - Land Summary'!$B$21:$B$120,(MATCH('4 - Species Breakdown'!$V297,'3 - Land Summary'!$C$21:$C$120,0))),\"\")","v":""},null,null,{"$f":"IF(OR(COUNTIF('Look Up Data'!$D$149:$D$203,D297),COUNTIF('Look Up Data'!$D$149:$D$203,AE297)),\"YES\",\"NO\")","v":"NO"},null,null,{"$f":"IFERROR(INDEX('3 - Land Summary'!$G$21:$G$120,(MATCH(C297,'3 - Land Summary'!$C$21:$C$120,0))),\"\")","v":""},{"$f":"IFERROR(INDEX('3 - Land Summary'!$I$21:$I$120,(MATCH(C297,'3 - Land Summary'!$C$21:$C$120,0))),\"\")","v":""},"","",null,null,null,{"$f":"IFERROR(VLOOKUP(D297,'Species List'!$D$10:$E$46,2,FALSE)*J297,\"\")","v":""},{"$f":"IFERROR(VLOOKUP(D297,'Species List'!$D$51:$E$89,2,FALSE)*J297,\"\")","v":""},{"$f":"IFERROR(VLOOKUP(D297,'Species List'!$D$95:$E$102,2,FALSE)*J297,\"\")","v":""},{"$f":"IFERROR(VLOOKUP(D297,'Species List'!$I$10:$J$11,2,FALSE)*J297,\"\")","v":""},{"$f":"IFERROR(VLOOKUP(D297,'Species List'!$I$16:$J$61,2,FALSE)*J297,\"\")","v":""},{"$f":"IFERROR(VLOOKUP(D297,'Species List'!$I$66:$J$66,2,FALSE)*J297,\"\")","v":""},{"$f":"IFERROR(VLOOKUP(D297,'Species List'!$I$71:$J$82,2,FALSE)*J297,\"\")","v":""},0,null,null,null,null,null,null,{"$f":"IFERROR(INDEX('3 - Land Summary'!$B$21:$B$120,(MATCH(AD297,'3 - Land Summary'!$C$21:$C$120,0))),\"\")","v":""}]
[null,{"$f":"IFERROR(INDEX('3 - Land Summary'!$B$21:$B$120,(MATCH('4 - Species Breakdown'!$V298,'3 - Land Summary'!$C$21:$C$120,0))),\"\")","v":""},null,null,{"$f":"IF(OR(COUNTIF('Look Up Data'!$D$149:$D$203,D298),COUNTIF('Look Up Data'!$D$149:$D$203,AE298)),\"YES\",\"NO\")","v":"NO"},null,null,{"$f":"IFERROR(INDEX('3 - Land Summary'!$G$21:$G$120,(MATCH(C298,'3 - Land Summary'!$C$21:$C$120,0))),\"\")","v":""},{"$f":"IFERROR(INDEX('3 - Land Summary'!$I$21:$I$120,(MATCH(C298,'3 - Land Summary'!$C$21:$C$120,0))),\"\")","v":""},"","",null,null,null,{"$f":"IFERROR(VLOOKUP(D298,'Species List'!$D$10:$E$46,2,FALSE)*J298,\"\")","v":""},{"$f":"IFERROR(VLOOKUP(D298,'Species List'!$D$51:$E$89,2,FALSE)*J298,\"\")","v":""},{"$f":"IFERROR(VLOOKUP(D298,'Species List'!$D$95:$E$102,2,FALSE)*J298,\"\")","v":""},{"$f":"IFERROR(VLOOKUP(D298,'Species List'!$I$10:$J$11,2,FALSE)*J298,\"\")","v":""},{"$f":"IFERROR(VLOOKUP(D298,'Species List'!$I$16:$J$61,2,FALSE)*J298,\"\")","v":""},{"$f":"IFERROR(VLOOKUP(D298,'Species List'!$I$66:$J$66,2,FALSE)*J298,\"\")","v":""},{"$f":"IFERROR(VLOOKUP(D298,'Species List'!$I$71:$J$82,2,FALSE)*J298,\"\")","v":""},0,null,null,null,null,null,null,{"$f":"IFERROR(INDEX('3 - Land Summary'!$B$21:$B$120,(MATCH(AD298,'3 - Land Summary'!$C$21:$C$120,0))),\"\")","v":""}]
[null,{"$f":"IFERROR(INDEX('3 - Land Summary'!$B$21:$B$120,(MATCH('4 - Species Breakdown'!$V299,'3 - Land Summary'!$C$21:$C$120,0))),\"\")","v":""},null,null,{"$f":"IF(OR(COUNTIF('Look Up Data'!$D$149:$D$203,D299),COUNTIF('Look Up Data'!$D$149:$D$203,AE299)),\"YES\",\"NO\")","v":"NO"},null,null,{"$f":"IFERROR(INDEX('3 - Land Summary'!$G$21:$G$120,(MATCH(C299,'3 - Land Summary'!$C$21:$C$120,0))),\"\")","v":""},{"$f":"IFERROR(INDEX('3 - Land Summary'!$I$21:$I$120,(MATCH(C299,'3 - Land Summary'!$C$21:$C$120,0))),\"\")","v":""},"","",null,null,null,{"$f":"IFERROR(VLOOKUP(D299,'Species List'!$D$10:$E$46,2,FALSE)*J299,\"\")","v":""},{"$f":"IFERROR(VLOOKUP(D299,'Species List'!$D$51:$E$89,2,FALSE)*J299,\"\")","v":""},{"$f":"IFERROR(VLOOKUP(D299,'Species List'!$D$95:$E$102,2,FALSE)*J299,\"\")","v":""},{"$f":"IFERROR(VLOOKUP(D299,'Species List'!$I$10:$J$11,2,FALSE)*J299,\"\")","v":""},{"$f":"IFERROR(VLOOKUP(D299,'Species List'!$I$16:$J$61,2,FALSE)*J299,\"\")","v":""},{"$f":"IFERROR(VLOOKUP(D299,'Species List'!$I$66:$J$66,2,FALSE)*J299,\"\")","v":""},{"$f":"IFERROR(VLOOKUP(D299,'Species List'!$I$71:$J$82,2,FALSE)*J299,\"\")","v":""},0,null,null,null,null,null,null,{"$f":"IFERROR(INDEX('3 - Land Summary'!$B$21:$B$120,(MATCH(AD299,'3 - Land Summary'!$C$21:$C$120,0))),\"\")","v":""}]
[null,{"$f":"IFERROR(INDEX('3 - Land Summary'!$B$21:$B$120,(MATCH('4 - Species Breakdown'!$V300,'3 - Land Summary'!$C$21:$C$120,0))),\"\")","v":""},null,null,{"$f":"IF(OR(COUNTIF('Look Up Data'!$D$149:$D$203,D300),COUNTIF('Look Up Data'!$D$149:$D$203,AE300)),\"YES\",\"NO\")","v":"NO"},null,null,{"$f":"IFERROR(INDEX('3 - Land Summary'!$G$21:$G$120,(MATCH(C300,'3 - Land Summary'!$C$21:$C$120,0))),\"\")","v":""},{"$f":"IFERROR(INDEX('3 - Land Summary'!$I$21:$I$120,(MATCH(C300,'3 - Land Summary'!$C$21:$C$120,0))),\"\")","v":""},"","",null,null,null,{"$f":"IFERROR(VLOOKUP(D300,'Species List'!$D$10:$E$46,2,FALSE)*J300,\"\")","v":""},{"$f":"IFERROR(VLOOKUP(D300,'Species List'!$D$51:$E$89,2,FALSE)*J300,\"\")","v":""},{"$f":"IFERROR(VLOOKUP(D300,'Species List'!$D$95:$E$102,2,FALSE)*J300,\"\")","v":""},{"$f":"IFERROR(VLOOKUP(D300,'Species List'!$I$10:$J$11,2,FALSE)*J300,\"\")","v":""},{"$f":"IFERROR(VLOOKUP(D300,'Species List'!$I$16:$J$61,2,FALSE)*J300,\"\")","v":""},{"$f":"IFERROR(VLOOKUP(D300,'Species List'!$I$66:$J$66,2,FALSE)*J300,\"\")","v":""},{"$f":"IFERROR(VLOOKUP(D300,'Species List'!$I$71:$J$82,2,FALSE)*J300,\"\")","v":""},0,null,null,null,null,null,null,{"$f":"IFERROR(INDEX('3 - Land Summary'!$B$21:$B$120,(MATCH(AD300,'3 - Land Summary'!$C$21:$C$120,0))),\"\")","v":""}]
[null,{"$f":"IFERROR(INDEX('3 - Land Summary'!$B$21:$B$120,(MATCH('4 - Species Breakdown'!$V301,'3 - Land Summary'!$C$21:$C$120,0))),\"\")","v":""},null,null,{"$f":"IF(OR(COUNTIF('Look Up Data'!$D$149:$D$203,D301),COUNTIF('Look Up Data'!$D$149:$D$203,AE301)),\"YES\",\"NO\")","v":"NO"},null,null,{"$f":"IFERROR(INDEX('3 - Land Summary'!$G$21:$G$120,(MATCH(C301,'3 - Land Summary'!$C$21:$C$120,0))),\"\")","v":""},{"$f":"IFERROR(INDEX('3 - Land Summary'!$I$21:$I$120,(MATCH(C301,'3 - Land Summary'!$C$21:$C$120,0))),\"\")","v":""},"","",null,null,null,{"$f":"IFERROR(VLOOKUP(D301,'Species List'!$D$10:$E$46,2,FALSE)*J301,\"\")","v":""},{"$f":"IFERROR(VLOOKUP(D301,'Species List'!$D$51:$E$89,2,FALSE)*J301,\"\")","v":""},{"$f":"IFERROR(VLOOKUP(D301,'Species List'!$D$95:$E$102,2,FALSE)*J301,\"\")","v":""},{"$f":"IFERROR(VLOOKUP(D301,'Species List'!$I$10:$J$11,2,FALSE)*J301,\"\")","v":""},{"$f":"IFERROR(VLOOKUP(D301,'Species List'!$I$16:$J$61,2,FALSE)*J301,\"\")","v":""},{"$f":"IFERROR(VLOOKUP(D301,'Species List'!$I$66:$J$66,2,FALSE)*J301,\"\")","v":""},{"$f":"IFERROR(VLOOKUP(D301,'Species List'!$I$71:$J$82,2,FALSE)*J301,\"\")","v":""},0,null,null,null,null,null,null,{"$f":"IFERROR(INDEX('3 - Land Summary'!$B$21:$B$120,(MATCH(AD301,'3 - Land Summary'!$C$21:$C$120,0))),\"\")","v":""}]
[null,{"$f":"IFERROR(INDEX('3 - Land Summary'!$B$21:$B$120,(MATCH('4 - Species Breakdown'!$V302,'3 - Land Summary'!$C$21:$C$120,0))),\"\")","v":""},null,null,{"$f":"IF(OR(COUNTIF('Look Up Data'!$D$149:$D$203,D302),COUNTIF('Look Up Data'!$D$149:$D$203,AE302)),\"YES\",\"NO\")","v":"NO"},null,null,{"$f":"IFERROR(INDEX('3 - Land Summary'!$G$21:$G$120,(MATCH(C302,'3 - Land Summary'!$C$21:$C$120,0))),\"\")","v":""},{"$f":"IFERROR(INDEX('3 - Land Summary'!$I$21:$I$120,(MATCH(C302,'3 - Land Summary'!$C$21:$C$120,0))),\"\")","v":""},"","",null,null,null,{"$f":"IFERROR(VLOOKUP(D302,'Species List'!$D$10:$E$46,2,FALSE)*J302,\"\")","v":""},{"$f":"IFERROR(VLOOKUP(D302,'Species List'!$D$51:$E$89,2,FALSE)*J302,\"\")","v":""},{"$f":"IFERROR(VLOOKUP(D302,'Species List'!$D$95:$E$102,2,FALSE)*J302,\"\")","v":""},{"$f":"IFERROR(VLOOKUP(D302,'Species List'!$I$10:$J$11,2,FALSE)*J302,\"\")","v":""},{"$f":"IFERROR(VLOOKUP(D302,'Species List'!$I$16:$J$61,2,FALSE)*J302,\"\")","v":""},{"$f":"IFERROR(VLOOKUP(D302,'Species List'!$I$66:$J$66,2,FALSE)*J302,\"\")","v":""},{"$f":"IFERROR(VLOOKUP(D302,'Species List'!$I$71:$J$82,2,FALSE)*J302,\"\")","v":""},0,null,null,null,null,null,null,{"$f":"IFERROR(INDEX('3 - Land Summary'!$B$21:$B$120,(MATCH(AD302,'3 - Land Summary'!$C$21:$C$120,0))),\"\")","v":""}]
[null,{"$f":"IFERROR(INDEX('3 - Land Summary'!$B$21:$B$120,(MATCH('4 - Species Breakdown'!$V303,'3 - Land Summary'!$C$21:$C$120,0))),\"\")","v":""},null,null,{"$f":"IF(OR(COUNTIF('Look Up Data'!$D$149:$D$203,D303),COUNTIF('Look Up Data'!$D$149:$D$203,AE303)),\"YES\",\"NO\")","v":"NO"},null,null,{"$f":"IFERROR(INDEX('3 - Land Summary'!$G$21:$G$120,(MATCH(C303,'3 - Land Summary'!$C$21:$C$120,0))),\"\")","v":""},{"$f":"IFERROR(INDEX('3 - Land Summary'!$I$21:$I$120,(MATCH(C303,'3 - Land Summary'!$C$21:$C$120,0))),\"\")","v":""},"","",null,null,null,{"$f":"IFERROR(VLOOKUP(D303,'Species List'!$D$10:$E$46,2,FALSE)*J303,\"\")","v":""},{"$f":"IFERROR(VLOOKUP(D303,'Species List'!$D$51:$E$89,2,FALSE)*J303,\"\")","v":""},{"$f":"IFERROR(VLOOKUP(D303,'Species List'!$D$95:$E$102,2,FALSE)*J303,\"\")","v":""},{"$f":"IFERROR(VLOOKUP(D303,'Species List'!$I$10:$J$11,2,FALSE)*J303,\"\")","v":""},{"$f":"IFERROR(VLOOKUP(D303,'Species List'!$I$16:$J$61,2,FALSE)*J303,\"\")","v":""},{"$f":"IFERROR(VLOOKUP(D303,'Species List'!$I$66:$J$66,2,FALSE)*J303,\"\")","v":""},{"$f":"IFERROR(VLOOKUP(D303,'Species List'!$I$71:$J$82,2,FALSE)*J303,\"\")","v":""},0,null,null,null,null,null,null,{"$f":"IFERROR(INDEX('3 - Land Summary'!$B$21:$B$120,(MATCH(AD303,'3 - Land Summary'!$C$21:$C$120,0))),\"\")","v":""}]
[null,{"$f":"IFERROR(INDEX('3 - Land Summary'!$B$21:$B$120,(MATCH('4 - Species Breakdown'!$V304,'3 - Land Summary'!$C$21:$C$120,0))),\"\")","v":""},null,null,{"$f":"IF(OR(COUNTIF('Look Up Data'!$D$149:$D$203,D304),COUNTIF('Look Up Data'!$D$149:$D$203,AE304)),\"YES\",\"NO\")","v":"NO"},null,null,{"$f":"IFERROR(INDEX('3 - Land Summary'!$G$21:$G$120,(MATCH(C304,'3 - Land Summary'!$C$21:$C$120,0))),\"\")","v":""},{"$f":"IFERROR(INDEX('3 - Land Summary'!$I$21:$I$120,(MATCH(C304,'3 - Land Summary'!$C$21:$C$120,0))),\"\")","v":""},"","",null,null,null,{"$f":"IFERROR(VLOOKUP(D304,'Species List'!$D$10:$E$46,2,FALSE)*J304,\"\")","v":""},{"$f":"IFERROR(VLOOKUP(D304,'Species List'!$D$51:$E$89,2,FALSE)*J304,\"\")","v":""},{"$f":"IFERROR(VLOOKUP(D304,'Species List'!$D$95:$E$102,2,FALSE)*J304,\"\")","v":""},{"$f":"IFERROR(VLOOKUP(D304,'Species List'!$I$10:$J$11,2,FALSE)*J304,\"\")","v":""},{"$f":"IFERROR(VLOOKUP(D304,'Species List'!$I$16:$J$61,2,FALSE)*J304,\"\")","v":""},{"$f":"IFERROR(VLOOKUP(D304,'Species List'!$I$66:$J$66,2,FALSE)*J304,\"\")","v":""},{"$f":"IFERROR(VLOOKUP(D304,'Species List'!$I$71:$J$82,2,FALSE)*J304,\"\")","v":""},0,null,null,null,null,null,null,{"$f":"IFERROR(INDEX('3 - Land Summary'!$B$21:$B$120,(MATCH(AD304,'3 - Land Summary'!$C$21:$C$120,0))),\"\")","v":""}]
[null,{"$f":"IFERROR(INDEX('3 - Land Summary'!$B$21:$B$120,(MATCH('4 - Species Breakdown'!$V305,'3 - Land Summary'!$C$21:$C$120,0))),\"\")","v":""},null,null,{"$f":"IF(OR(COUNTIF('Look Up Data'!$D$149:$D$203,D305),COUNTIF('Look Up Data'!$D$149:$D$203,AE305)),\"YES\",\"NO\")","v":"NO"},null,null,{"$f":"IFERROR(INDEX('3 - Land Summary'!$G$21:$G$120,(MATCH(C305,'3 - Land Summary'!$C$21:$C$120,0))),\"\")","v":""},{"$f":"IFERROR(INDEX('3 - Land Summary'!$I$21:$I$120,(MATCH(C305,'3 - Land Summary'!$C$21:$C$120,0))),\"\")","v":""},"","",null,null,null,{"$f":"IFERROR(VLOOKUP(D305,'Species List'!$D$10:$E$46,2,FALSE)*J305,\"\")","v":""},{"$f":"IFERROR(VLOOKUP(D305,'Species List'!$D$51:$E$89,2,FALSE)*J305,\"\")","v":""},{"$f":"IFERROR(VLOOKUP(D305,'Species List'!$D$95:$E$102,2,FALSE)*J305,\"\")","v":""},{"$f":"IFERROR(VLOOKUP(D305,'Species List'!$I$10:$J$11,2,FALSE)*J305,\"\")","v":""},{"$f":"IFERROR(VLOOKUP(D305,'Species List'!$I$16:$J$61,2,FALSE)*J305,\"\")","v":""},{"$f":"IFERROR(VLOOKUP(D305,'Species List'!$I$66:$J$66,2,FALSE)*J305,\"\")","v":""},{"$f":"IFERROR(VLOOKUP(D305,'Species List'!$I$71:$J$82,2,FALSE)*J305,\"\")","v":""},0,null,null,null,null,null,null,{"$f":"IFERROR(INDEX('3 - Land Summary'!$B$21:$B$120,(MATCH(AD305,'3 - Land Summary'!$C$21:$C$120,0))),\"\")","v":""}]
[null,{"$f":"IFERROR(INDEX('3 - Land Summary'!$B$21:$B$120,(MATCH('4 - Species Breakdown'!$V306,'3 - Land Summary'!$C$21:$C$120,0))),\"\")","v":""},null,null,{"$f":"IF(OR(COUNTIF('Look Up Data'!$D$149:$D$203,D306),COUNTIF('Look Up Data'!$D$149:$D$203,AE306)),\"YES\",\"NO\")","v":"NO"},null,null,{"$f":"IFERROR(INDEX('3 - Land Summary'!$G$21:$G$120,(MATCH(C306,'3 - Land Summary'!$C$21:$C$120,0))),\"\")","v":""},{"$f":"IFERROR(INDEX('3 - Land Summary'!$I$21:$I$120,(MATCH(C306,'3 - Land Summary'!$C$21:$C$120,0))),\"\")","v":""},"","",null,null,null,{"$f":"IFERROR(VLOOKUP(D306,'Species List'!$D$10:$E$46,2,FALSE)*J306,\"\")","v":""},{"$f":"IFERROR(VLOOKUP(D306,'Species List'!$D$51:$E$89,2,FALSE)*J306,\"\")","v":""},{"$f":"IFERROR(VLOOKUP(D306,'Species List'!$D$95:$E$102,2,FALSE)*J306,\"\")","v":""},{"$f":"IFERROR(VLOOKUP(D306,'Species List'!$I$10:$J$11,2,FALSE)*J306,\"\")","v":""},{"$f":"IFERROR(VLOOKUP(D306,'Species List'!$I$16:$J$61,2,FALSE)*J306,\"\")","v":""},{"$f":"IFERROR(VLOOKUP(D306,'Species List'!$I$66:$J$66,2,FALSE)*J306,\"\")","v":""},{"$f":"IFERROR(VLOOKUP(D306,'Species List'!$I$71:$J$82,2,FALSE)*J306,\"\")","v":""},0,null,null,null,null,null,null,{"$f":"IFERROR(INDEX('3 - Land Summary'!$B$21:$B$120,(MATCH(AD306,'3 - Land Summary'!$C$21:$C$120,0))),\"\")","v":""}]
[null,{"$f":"IFERROR(INDEX('3 - Land Summary'!$B$21:$B$120,(MATCH('4 - Species Breakdown'!$V307,'3 - Land Summary'!$C$21:$C$120,0))),\"\")","v":""},null,null,{"$f":"IF(OR(COUNTIF('Look Up Data'!$D$149:$D$203,D307),COUNTIF('Look Up Data'!$D$149:$D$203,AE307)),\"YES\",\"NO\")","v":"NO"},null,null,{"$f":"IFERROR(INDEX('3 - Land Summary'!$G$21:$G$120,(MATCH(C307,'3 - Land Summary'!$C$21:$C$120,0))),\"\")","v":""},{"$f":"IFERROR(INDEX('3 - Land Summary'!$I$21:$I$120,(MATCH(C307,'3 - Land Summary'!$C$21:$C$120,0))),\"\")","v":""},"","",null,null,null,{"$f":"IFERROR(VLOOKUP(D307,'Species List'!$D$10:$E$46,2,FALSE)*J307,\"\")","v":""},{"$f":"IFERROR(VLOOKUP(D307,'Species List'!$D$51:$E$89,2,FALSE)*J307,\"\")","v":""},{"$f":"IFERROR(VLOOKUP(D307,'Species List'!$D$95:$E$102,2,FALSE)*J307,\"\")","v":""},{"$f":"IFERROR(VLOOKUP(D307,'Species List'!$I$10:$J$11,2,FALSE)*J307,\"\")","v":""},{"$f":"IFERROR(VLOOKUP(D307,'Species List'!$I$16:$J$61,2,FALSE)*J307,\"\")","v":""},{"$f":"IFERROR(VLOOKUP(D307,'Species List'!$I$66:$J$66,2,FALSE)*J307,\"\")","v":""},{"$f":"IFERROR(VLOOKUP(D307,'Species List'!$I$71:$J$82,2,FALSE)*J307,\"\")","v":""},0,null,null,null,null,null,null,{"$f":"IFERROR(INDEX('3 - Land Summary'!$B$21:$B$120,(MATCH(AD307,'3 - Land Summary'!$C$21:$C$120,0))),\"\")","v":""}]
[null,{"$f":"IFERROR(INDEX('3 - Land Summary'!$B$21:$B$120,(MATCH('4 - Species Breakdown'!$V308,'3 - Land Summary'!$C$21:$C$120,0))),\"\")","v":""},null,null,{"$f":"IF(OR(COUNTIF('Look Up Data'!$D$149:$D$203,D308),COUNTIF('Look Up Data'!$D$149:$D$203,AE308)),\"YES\",\"NO\")","v":"NO"},null,null,{"$f":"IFERROR(INDEX('3 - Land Summary'!$G$21:$G$120,(MATCH(C308,'3 - Land Summary'!$C$21:$C$120,0))),\"\")","v":""},{"$f":"IFERROR(INDEX('3 - Land Summary'!$I$21:$I$120,(MATCH(C308,'3 - Land Summary'!$C$21:$C$120,0))),\"\")","v":""},"","",null,null,null,{"$f":"IFERROR(VLOOKUP(D308,'Species List'!$D$10:$E$46,2,FALSE)*J308,\"\")","v":""},{"$f":"IFERROR(VLOOKUP(D308,'Species List'!$D$51:$E$89,2,FALSE)*J308,\"\")","v":""},{"$f":"IFERROR(VLOOKUP(D308,'Species List'!$D$95:$E$102,2,FALSE)*J308,\"\")","v":""},{"$f":"IFERROR(VLOOKUP(D308,'Species List'!$I$10:$J$11,2,FALSE)*J308,\"\")","v":""},{"$f":"IFERROR(VLOOKUP(D308,'Species List'!$I$16:$J$61,2,FALSE)*J308,\"\")","v":""},{"$f":"IFERROR(VLOOKUP(D308,'Species List'!$I$66:$J$66,2,FALSE)*J308,\"\")","v":""},{"$f":"IFERROR(VLOOKUP(D308,'Species List'!$I$71:$J$82,2,FALSE)*J308,\"\")","v":""},0,null,null,null,null,null,null,{"$f":"IFERROR(INDEX('3 - Land Summary'!$B$21:$B$120,(MATCH(AD308,'3 - Land Summary'!$C$21:$C$120,0))),\"\")","v":""}]
[null,{"$f":"IFERROR(INDEX('3 - Land Summary'!$B$21:$B$120,(MATCH('4 - Species Breakdown'!$V309,'3 - Land Summary'!$C$21:$C$120,0))),\"\")","v":""},null,null,{"$f":"IF(OR(COUNTIF('Look Up Data'!$D$149:$D$203,D309),COUNTIF('Look Up Data'!$D$149:$D$203,AE309)),\"YES\",\"NO\")","v":"NO"},null,null,{"$f":"IFERROR(INDEX('3 - Land Summary'!$G$21:$G$120,(MATCH(C309,'3 - Land Summary'!$C$21:$C$120,0))),\"\")","v":""},{"$f":"IFERROR(INDEX('3 - Land Summary'!$I$21:$I$120,(MATCH(C309,'3 - Land Summary'!$C$21:$C$120,0))),\"\")","v":""},"","",null,null,null,{"$f":"IFERROR(VLOOKUP(D309,'Species List'!$D$10:$E$46,2,FALSE)*J309,\"\")","v":""},{"$f":"IFERROR(VLOOKUP(D309,'Species List'!$D$51:$E$89,2,FALSE)*J309,\"\")","v":""},{"$f":"IFERROR(VLOOKUP(D309,'Species List'!$D$95:$E$102,2,FALSE)*J309,\"\")","v":""},{"$f":"IFERROR(VLOOKUP(D309,'Species List'!$I$10:$J$11,2,FALSE)*J309,\"\")","v":""},{"$f":"IFERROR(VLOOKUP(D309,'Species List'!$I$16:$J$61,2,FALSE)*J309,\"\")","v":""},{"$f":"IFERROR(VLOOKUP(D309,'Species List'!$I$66:$J$66,2,FALSE)*J309,\"\")","v":""},{"$f":"IFERROR(VLOOKUP(D309,'Species List'!$I$71:$J$82,2,FALSE)*J309,\"\")","v":""},0,null,null,null,null,null,null,{"$f":"IFERROR(INDEX('3 - Land Summary'!$B$21:$B$120,(MATCH(AD309,'3 - Land Summary'!$C$21:$C$120,0))),\"\")","v":""}]
[null,{"$f":"IFERROR(INDEX('3 - Land Summary'!$B$21:$B$120,(MATCH('4 - Species Breakdown'!$V310,'3 - Land Summary'!$C$21:$C$120,0))),\"\")","v":""},null,null,{"$f":"IF(OR(COUNTIF('Look Up Data'!$D$149:$D$203,D310),COUNTIF('Look Up Data'!$D$149:$D$203,AE310)),\"YES\",\"NO\")","v":"NO"},null,null,{"$f":"IFERROR(INDEX('3 - Land Summary'!$G$21:$G$120,(MATCH(C310,'3 - Land Summary'!$C$21:$C$120,0))),\"\")","v":""},{"$f":"IFERROR(INDEX('3 - Land Summary'!$I$21:$I$120,(MATCH(C310,'3 - Land Summary'!$C$21:$C$120,0))),\"\")","v":""},"","",null,null,null,{"$f":"IFERROR(VLOOKUP(D310,'Species List'!$D$10:$E$46,2,FALSE)*J310,\"\")","v":""},{"$f":"IFERROR(VLOOKUP(D310,'Species List'!$D$51:$E$89,2,FALSE)*J310,\"\")","v":""},{"$f":"IFERROR(VLOOKUP(D310,'Species List'!$D$95:$E$102,2,FALSE)*J310,\"\")","v":""},{"$f":"IFERROR(VLOOKUP(D310,'Species List'!$I$10:$J$11,2,FALSE)*J310,\"\")","v":""},{"$f":"IFERROR(VLOOKUP(D310,'Species List'!$I$16:$J$61,2,FALSE)*J310,\"\")","v":""},{"$f":"IFERROR(VLOOKUP(D310,'Species List'!$I$66:$J$66,2,FALSE)*J310,\"\")","v":""},{"$f":"IFERROR(VLOOKUP(D310,'Species List'!$I$71:$J$82,2,FALSE)*J310,\"\")","v":""},0,null,null,null,null,null,null,{"$f":"IFERROR(INDEX('3 - Land Summary'!$B$21:$B$120,(MATCH(AD310,'3 - Land Summary'!$C$21:$C$120,0))),\"\")","v":""}]
[null,{"$f":"IFERROR(INDEX('3 - Land Summary'!$B$21:$B$120,(MATCH('4 - Species Breakdown'!$V311,'3 - Land Summary'!$C$21:$C$120,0))),\"\")","v":""},null,null,{"$f":"IF(OR(COUNTIF('Look Up Data'!$D$149:$D$203,D311),COUNTIF('Look Up Data'!$D$149:$D$203,AE311)),\"YES\",\"NO\")","v":"NO"},null,null,{"$f":"IFERROR(INDEX('3 - Land Summary'!$G$21:$G$120,(MATCH(C311,'3 - Land Summary'!$C$21:$C$120,0))),\"\")","v":""},{"$f":"IFERROR(INDEX('3 - Land Summary'!$I$21:$I$120,(MATCH(C311,'3 - Land Summary'!$C$21:$C$120,0))),\"\")","v":""},"","",null,null,null,{"$f":"IFERROR(VLOOKUP(D311,'Species List'!$D$10:$E$46,2,FALSE)*J311,\"\")","v":""},{"$f":"IFERROR(VLOOKUP(D311,'Species List'!$D$51:$E$89,2,FALSE)*J311,\"\")","v":""},{"$f":"IFERROR(VLOOKUP(D311,'Species List'!$D$95:$E$102,2,FALSE)*J311,\"\")","v":""},{"$f":"IFERROR(VLOOKUP(D311,'Species List'!$I$10:$J$11,2,FALSE)*J311,\"\")","v":""},{"$f":"IFERROR(VLOOKUP(D311,'Species List'!$I$16:$J$61,2,FALSE)*J311,\"\")","v":""},{"$f":"IFERROR(VLOOKUP(D311,'Species List'!$I$66:$J$66,2,FALSE)*J311,\"\")","v":""},{"$f":"IFERROR(VLOOKUP(D311,'Species List'!$I$71:$J$82,2,FALSE)*J311,\"\")","v":""},0,null,null,null,null,null,null,{"$f":"IFERROR(INDEX('3 - Land Summary'!$B$21:$B$120,(MATCH(AD311,'3 - Land Summary'!$C$21:$C$120,0))),\"\")","v":""}]
[null,{"$f":"IFERROR(INDEX('3 - Land Summary'!$B$21:$B$120,(MATCH('4 - Species Breakdown'!$V312,'3 - Land Summary'!$C$21:$C$120,0))),\"\")","v":""},null,null,{"$f":"IF(OR(COUNTIF('Look Up Data'!$D$149:$D$203,D312),COUNTIF('Look Up Data'!$D$149:$D$203,AE312)),\"YES\",\"NO\")","v":"NO"},null,null,{"$f":"IFERROR(INDEX('3 - Land Summary'!$G$21:$G$120,(MATCH(C312,'3 - Land Summary'!$C$21:$C$120,0))),\"\")","v":""},{"$f":"IFERROR(INDEX('3 - Land Summary'!$I$21:$I$120,(MATCH(C312,'3 - Land Summary'!$C$21:$C$120,0))),\"\")","v":""},"","",null,null,null,{"$f":"IFERROR(VLOOKUP(D312,'Species List'!$D$10:$E$46,2,FALSE)*J312,\"\")","v":""},{"$f":"IFERROR(VLOOKUP(D312,'Species List'!$D$51:$E$89,2,FALSE)*J312,\"\")","v":""},{"$f":"IFERROR(VLOOKUP(D312,'Species List'!$D$95:$E$102,2,FALSE)*J312,\"\")","v":""},{"$f":"IFERROR(VLOOKUP(D312,'Species List'!$I$10:$J$11,2,FALSE)*J312,\"\")","v":""},{"$f":"IFERROR(VLOOKUP(D312,'Species List'!$I$16:$J$61,2,FALSE)*J312,\"\")","v":""},{"$f":"IFERROR(VLOOKUP(D312,'Species List'!$I$66:$J$66,2,FALSE)*J312,\"\")","v":""},{"$f":"IFERROR(VLOOKUP(D312,'Species List'!$I$71:$J$82,2,FALSE)*J312,\"\")","v":""},0,null,null,null,null,null,null,{"$f":"IFERROR(INDEX('3 - Land Summary'!$B$21:$B$120,(MATCH(AD312,'3 - Land Summary'!$C$21:$C$120,0))),\"\")","v":""}]
[null,{"$f":"IFERROR(INDEX('3 - Land Summary'!$B$21:$B$120,(MATCH('4 - Species Breakdown'!$V313,'3 - Land Summary'!$C$21:$C$120,0))),\"\")","v":""},null,null,{"$f":"IF(OR(COUNTIF('Look Up Data'!$D$149:$D$203,D313),COUNTIF('Look Up Data'!$D$149:$D$203,AE313)),\"YES\",\"NO\")","v":"NO"},null,null,{"$f":"IFERROR(INDEX('3 - Land Summary'!$G$21:$G$120,(MATCH(C313,'3 - Land Summary'!$C$21:$C$120,0))),\"\")","v":""},{"$f":"IFERROR(INDEX('3 - Land Summary'!$I$21:$I$120,(MATCH(C313,'3 - Land Summary'!$C$21:$C$120,0))),\"\")","v":""},"","",null,null,null,{"$f":"IFERROR(VLOOKUP(D313,'Species List'!$D$10:$E$46,2,FALSE)*J313,\"\")","v":""},{"$f":"IFERROR(VLOOKUP(D313,'Species List'!$D$51:$E$89,2,FALSE)*J313,\"\")","v":""},{"$f":"IFERROR(VLOOKUP(D313,'Species List'!$D$95:$E$102,2,FALSE)*J313,\"\")","v":""},{"$f":"IFERROR(VLOOKUP(D313,'Species List'!$I$10:$J$11,2,FALSE)*J313,\"\")","v":""},{"$f":"IFERROR(VLOOKUP(D313,'Species List'!$I$16:$J$61,2,FALSE)*J313,\"\")","v":""},{"$f":"IFERROR(VLOOKUP(D313,'Species List'!$I$66:$J$66,2,FALSE)*J313,\"\")","v":""},{"$f":"IFERROR(VLOOKUP(D313,'Species List'!$I$71:$J$82,2,FALSE)*J313,\"\")","v":""},0,null,null,null,null,null,null,{"$f":"IFERROR(INDEX('3 - Land Summary'!$B$21:$B$120,(MATCH(AD313,'3 - Land Summary'!$C$21:$C$120,0))),\"\")","v":""}]
[null,{"$f":"IFERROR(INDEX('3 - Land Summary'!$B$21:$B$120,(MATCH('4 - Species Breakdown'!$V314,'3 - Land Summary'!$C$21:$C$120,0))),\"\")","v":""},null,null,{"$f":"IF(OR(COUNTIF('Look Up Data'!$D$149:$D$203,D314),COUNTIF('Look Up Data'!$D$149:$D$203,AE314)),\"YES\",\"NO\")","v":"NO"},null,null,{"$f":"IFERROR(INDEX('3 - Land Summary'!$G$21:$G$120,(MATCH(C314,'3 - Land Summary'!$C$21:$C$120,0))),\"\")","v":""},{"$f":"IFERROR(INDEX('3 - Land Summary'!$I$21:$I$120,(MATCH(C314,'3 - Land Summary'!$C$21:$C$120,0))),\"\")","v":""},"","",null,null,null,{"$f":"IFERROR(VLOOKUP(D314,'Species List'!$D$10:$E$46,2,FALSE)*J314,\"\")","v":""},{"$f":"IFERROR(VLOOKUP(D314,'Species List'!$D$51:$E$89,2,FALSE)*J314,\"\")","v":""},{"$f":"IFERROR(VLOOKUP(D314,'Species List'!$D$95:$E$102,2,FALSE)*J314,\"\")","v":""},{"$f":"IFERROR(VLOOKUP(D314,'Species List'!$I$10:$J$11,2,FALSE)*J314,\"\")","v":""},{"$f":"IFERROR(VLOOKUP(D314,'Species List'!$I$16:$J$61,2,FALSE)*J314,\"\")","v":""},{"$f":"IFERROR(VLOOKUP(D314,'Species List'!$I$66:$J$66,2,FALSE)*J314,\"\")","v":""},{"$f":"IFERROR(VLOOKUP(D314,'Species List'!$I$71:$J$82,2,FALSE)*J314,\"\")","v":""},0,null,null,null,null,null,null,{"$f":"IFERROR(INDEX('3 - Land Summary'!$B$21:$B$120,(MATCH(AD314,'3 - Land Summary'!$C$21:$C$120,0))),\"\")","v":""}]
[null,{"$f":"IFERROR(INDEX('3 - Land Summary'!$B$21:$B$120,(MATCH('4 - Species Breakdown'!$V315,'3 - Land Summary'!$C$21:$C$120,0))),\"\")","v":""},null,null,{"$f":"IF(OR(COUNTIF('Look Up Data'!$D$149:$D$203,D315),COUNTIF('Look Up Data'!$D$149:$D$203,AE315)),\"YES\",\"NO\")","v":"NO"},null,null,{"$f":"IFERROR(INDEX('3 - Land Summary'!$G$21:$G$120,(MATCH(C315,'3 - Land Summary'!$C$21:$C$120,0))),\"\")","v":""},{"$f":"IFERROR(INDEX('3 - Land Summary'!$I$21:$I$120,(MATCH(C315,'3 - Land Summary'!$C$21:$C$120,0))),\"\")","v":""},"","",null,null,null,{"$f":"IFERROR(VLOOKUP(D315,'Species List'!$D$10:$E$46,2,FALSE)*J315,\"\")","v":""},{"$f":"IFERROR(VLOOKUP(D315,'Species List'!$D$51:$E$89,2,FALSE)*J315,\"\")","v":""},{"$f":"IFERROR(VLOOKUP(D315,'Species List'!$D$95:$E$102,2,FALSE)*J315,\"\")","v":""},{"$f":"IFERROR(VLOOKUP(D315,'Species List'!$I$10:$J$11,2,FALSE)*J315,\"\")","v":""},{"$f":"IFERROR(VLOOKUP(D315,'Species List'!$I$16:$J$61,2,FALSE)*J315,\"\")","v":""},{"$f":"IFERROR(VLOOKUP(D315,'Species List'!$I$66:$J$66,2,FALSE)*J315,\"\")","v":""},{"$f":"IFERROR(VLOOKUP(D315,'Species List'!$I$71:$J$82,2,FALSE)*J315,\"\")","v":""},0,null,null,null,null,null,null,{"$f":"IFERROR(INDEX('3 - Land Summary'!$B$21:$B$120,(MATCH(AD315,'3 - Land Summary'!$C$21:$C$120,0))),\"\")","v":""}]
[null,{"$f":"IFERROR(INDEX('3 - Land Summary'!$B$21:$B$120,(MATCH('4 - Species Breakdown'!$V316,'3 - Land Summary'!$C$21:$C$120,0))),\"\")","v":""},null,null,{"$f":"IF(OR(COUNTIF('Look Up Data'!$D$149:$D$203,D316),COUNTIF('Look Up Data'!$D$149:$D$203,AE316)),\"YES\",\"NO\")","v":"NO"},null,null,{"$f":"IFERROR(INDEX('3 - Land Summary'!$G$21:$G$120,(MATCH(C316,'3 - Land Summary'!$C$21:$C$120,0))),\"\")","v":""},{"$f":"IFERROR(INDEX('3 - Land Summary'!$I$21:$I$120,(MATCH(C316,'3 - Land Summary'!$C$21:$C$120,0))),\"\")","v":""},"","",null,null,null,{"$f":"IFERROR(VLOOKUP(D316,'Species List'!$D$10:$E$46,2,FALSE)*J316,\"\")","v":""},{"$f":"IFERROR(VLOOKUP(D316,'Species List'!$D$51:$E$89,2,FALSE)*J316,\"\")","v":""},{"$f":"IFERROR(VLOOKUP(D316,'Species List'!$D$95:$E$102,2,FALSE)*J316,\"\")","v":""},{"$f":"IFERROR(VLOOKUP(D316,'Species List'!$I$10:$J$11,2,FALSE)*J316,\"\")","v":""},{"$f":"IFERROR(VLOOKUP(D316,'Species List'!$I$16:$J$61,2,FALSE)*J316,\"\")","v":""},{"$f":"IFERROR(VLOOKUP(D316,'Species List'!$I$66:$J$66,2,FALSE)*J316,\"\")","v":""},{"$f":"IFERROR(VLOOKUP(D316,'Species List'!$I$71:$J$82,2,FALSE)*J316,\"\")","v":""},0,null,null,null,null,null,null,{"$f":"IFERROR(INDEX('3 - Land Summary'!$B$21:$B$120,(MATCH(AD316,'3 - Land Summary'!$C$21:$C$120,0))),\"\")","v":""}]
[null,{"$f":"IFERROR(INDEX('3 - Land Summary'!$B$21:$B$120,(MATCH('4 - Species Breakdown'!$V317,'3 - Land Summary'!$C$21:$C$120,0))),\"\")","v":""},null,null,{"$f":"IF(OR(COUNTIF('Look Up Data'!$D$149:$D$203,D317),COUNTIF('Look Up Data'!$D$149:$D$203,AE317)),\"YES\",\"NO\")","v":"NO"},null,null,{"$f":"IFERROR(INDEX('3 - Land Summary'!$G$21:$G$120,(MATCH(C317,'3 - Land Summary'!$C$21:$C$120,0))),\"\")","v":""},{"$f":"IFERROR(INDEX('3 - Land Summary'!$I$21:$I$120,(MATCH(C317,'3 - Land Summary'!$C$21:$C$120,0))),\"\")","v":""},"","",null,null,null,{"$f":"IFERROR(VLOOKUP(D317,'Species List'!$D$10:$E$46,2,FALSE)*J317,\"\")","v":""},{"$f":"IFERROR(VLOOKUP(D317,'Species List'!$D$51:$E$89,2,FALSE)*J317,\"\")","v":""},{"$f":"IFERROR(VLOOKUP(D317,'Species List'!$D$95:$E$102,2,FALSE)*J317,\"\")","v":""},{"$f":"IFERROR(VLOOKUP(D317,'Species List'!$I$10:$J$11,2,FALSE)*J317,\"\")","v":""},{"$f":"IFERROR(VLOOKUP(D317,'Species List'!$I$16:$J$61,2,FALSE)*J317,\"\")","v":""},{"$f":"IFERROR(VLOOKUP(D317,'Species List'!$I$66:$J$66,2,FALSE)*J317,\"\")","v":""},{"$f":"IFERROR(VLOOKUP(D317,'Species List'!$I$71:$J$82,2,FALSE)*J317,\"\")","v":""},0,null,null,null,null,null,null,{"$f":"IFERROR(INDEX('3 - Land Summary'!$B$21:$B$120,(MATCH(AD317,'3 - Land Summary'!$C$21:$C$120,0))),\"\")","v":""}]
[null,{"$f":"IFERROR(INDEX('3 - Land Summary'!$B$21:$B$120,(MATCH('4 - Species Breakdown'!$V318,'3 - Land Summary'!$C$21:$C$120,0))),\"\")","v":""},null,null,{"$f":"IF(OR(COUNTIF('Look Up Data'!$D$149:$D$203,D318),COUNTIF('Look Up Data'!$D$149:$D$203,AE318)),\"YES\",\"NO\")","v":"NO"},null,null,{"$f":"IFERROR(INDEX('3 - Land Summary'!$G$21:$G$120,(MATCH(C318,'3 - Land Summary'!$C$21:$C$120,0))),\"\")","v":""},{"$f":"IFERROR(INDEX('3 - Land Summary'!$I$21:$I$120,(MATCH(C318,'3 - Land Summary'!$C$21:$C$120,0))),\"\")","v":""},"","",null,null,null,{"$f":"IFERROR(VLOOKUP(D318,'Species List'!$D$10:$E$46,2,FALSE)*J318,\"\")","v":""},{"$f":"IFERROR(VLOOKUP(D318,'Species List'!$D$51:$E$89,2,FALSE)*J318,\"\")","v":""},{"$f":"IFERROR(VLOOKUP(D318,'Species List'!$D$95:$E$102,2,FALSE)*J318,\"\")","v":""},{"$f":"IFERROR(VLOOKUP(D318,'Species List'!$I$10:$J$11,2,FALSE)*J318,\"\")","v":""},{"$f":"IFERROR(VLOOKUP(D318,'Species List'!$I$16:$J$61,2,FALSE)*J318,\"\")","v":""},{"$f":"IFERROR(VLOOKUP(D318,'Species List'!$I$66:$J$66,2,FALSE)*J318,\"\")","v":""},{"$f":"IFERROR(VLOOKUP(D318,'Species List'!$I$71:$J$82,2,FALSE)*J318,\"\")","v":""},0,null,null,null,null,null,null,{"$f":"IFERROR(INDEX('3 - Land Summary'!$B$21:$B$120,(MATCH(AD318,'3 - Land Summary'!$C$21:$C$120,0))),\"\")","v":""}]
[null,{"$f":"IFERROR(INDEX('3 - Land Summary'!$B$21:$B$120,(MATCH('4 - Species Breakdown'!$V319,'3 - Land Summary'!$C$21:$C$120,0))),\"\")","v":""},null,null,{"$f":"IF(OR(COUNTIF('Look Up Data'!$D$149:$D$203,D319),COUNTIF('Look Up Data'!$D$149:$D$203,AE319)),\"YES\",\"NO\")","v":"NO"},null,null,{"$f":"IFERROR(INDEX('3 - Land Summary'!$G$21:$G$120,(MATCH(C319,'3 - Land Summary'!$C$21:$C$120,0))),\"\")","v":""},{"$f":"IFERROR(INDEX('3 - Land Summary'!$I$21:$I$120,(MATCH(C319,'3 - Land Summary'!$C$21:$C$120,0))),\"\")","v":""},"","",null,null,null,{"$f":"IFERROR(VLOOKUP(D319,'Species List'!$D$10:$E$46,2,FALSE)*J319,\"\")","v":""},{"$f":"IFERROR(VLOOKUP(D319,'Species List'!$D$51:$E$89,2,FALSE)*J319,\"\")","v":""},{"$f":"IFERROR(VLOOKUP(D319,'Species List'!$D$95:$E$102,2,FALSE)*J319,\"\")","v":""},{"$f":"IFERROR(VLOOKUP(D319,'Species List'!$I$10:$J$11,2,FALSE)*J319,\"\")","v":""},{"$f":"IFERROR(VLOOKUP(D319,'Species List'!$I$16:$J$61,2,FALSE)*J319,\"\")","v":""},{"$f":"IFERROR(VLOOKUP(D319,'Species List'!$I$66:$J$66,2,FALSE)*J319,\"\")","v":""},{"$f":"IFERROR(VLOOKUP(D319,'Species List'!$I$71:$J$82,2,FALSE)*J319,\"\")","v":""},0,null,null,null,null,null,null,{"$f":"IFERROR(INDEX('3 - Land Summary'!$B$21:$B$120,(MATCH(AD319,'3 - Land Summary'!$C$21:$C$120,0))),\"\")","v":""}]
[null,{"$f":"IFERROR(INDEX('3 - Land Summary'!$B$21:$B$120,(MATCH('4 - Species Breakdown'!$V320,'3 - Land Summary'!$C$21:$C$120,0))),\"\")","v":""},null,null,{"$f":"IF(OR(COUNTIF('Look Up Data'!$D$149:$D$203,D320),COUNTIF('Look Up Data'!$D$149:$D$203,AE320)),\"YES\",\"NO\")","v":"NO"},null,null,{"$f":"IFERROR(INDEX('3 - Land Summary'!$G$21:$G$120,(MATCH(C320,'3 - Land Summary'!$C$21:$C$120,0))),\"\")","v":""},{"$f":"IFERROR(INDEX('3 - Land Summary'!$I$21:$I$120,(MATCH(C320,'3 - Land Summary'!$C$21:$C$120,0))),\"\")","v":""},"","",null,null,null,{"$f":"IFERROR(VLOOKUP(D320,'Species List'!$D$10:$E$46,2,FALSE)*J320,\"\")","v":""},{"$f":"IFERROR(VLOOKUP(D320,'Species List'!$D$51:$E$89,2,FALSE)*J320,\"\")","v":""},{"$f":"IFERROR(VLOOKUP(D320,'Species List'!$D$95:$E$102,2,FALSE)*J320,\"\")","v":""},{"$f":"IFERROR(VLOOKUP(D320,'Species List'!$I$10:$J$11,2,FALSE)*J320,\"\")","v":""},{"$f":"IFERROR(VLOOKUP(D320,'Species List'!$I$16:$J$61,2,FALSE)*J320,\"\")","v":""},{"$f":"IFERROR(VLOOKUP(D320,'Species List'!$I$66:$J$66,2,FALSE)*J320,\"\")","v":""},{"$f":"IFERROR(VLOOKUP(D320,'Species List'!$I$71:$J$82,2,FALSE)*J320,\"\")","v":""},0,null,null,null,null,null,null,{"$f":"IFERROR(INDEX('3 - Land Summary'!$B$21:$B$120,(MATCH(AD320,'3 - Land Summary'!$C$21:$C$120,0))),\"\")","v":""}]
[null,{"$f":"IFERROR(INDEX('3 - Land Summary'!$B$21:$B$120,(MATCH('4 - Species Breakdown'!$V321,'3 - Land Summary'!$C$21:$C$120,0))),\"\")","v":""},null,null,{"$f":"IF(OR(COUNTIF('Look Up Data'!$D$149:$D$203,D321),COUNTIF('Look Up Data'!$D$149:$D$203,AE321)),\"YES\",\"NO\")","v":"NO"},null,null,{"$f":"IFERROR(INDEX('3 - Land Summary'!$G$21:$G$120,(MATCH(C321,'3 - Land Summary'!$C$21:$C$120,0))),\"\")","v":""},{"$f":"IFERROR(INDEX('3 - Land Summary'!$I$21:$I$120,(MATCH(C321,'3 - Land Summary'!$C$21:$C$120,0))),\"\")","v":""},"","",null,null,null,{"$f":"IFERROR(VLOOKUP(D321,'Species List'!$D$10:$E$46,2,FALSE)*J321,\"\")","v":""},{"$f":"IFERROR(VLOOKUP(D321,'Species List'!$D$51:$E$89,2,FALSE)*J321,\"\")","v":""},{"$f":"IFERROR(VLOOKUP(D321,'Species List'!$D$95:$E$102,2,FALSE)*J321,\"\")","v":""},{"$f":"IFERROR(VLOOKUP(D321,'Species List'!$I$10:$J$11,2,FALSE)*J321,\"\")","v":""},{"$f":"IFERROR(VLOOKUP(D321,'Species List'!$I$16:$J$61,2,FALSE)*J321,\"\")","v":""},{"$f":"IFERROR(VLOOKUP(D321,'Species List'!$I$66:$J$66,2,FALSE)*J321,\"\")","v":""},{"$f":"IFERROR(VLOOKUP(D321,'Species List'!$I$71:$J$82,2,FALSE)*J321,\"\")","v":""},0,null,null,null,null,null,null,{"$f":"IFERROR(INDEX('3 - Land Summary'!$B$21:$B$120,(MATCH(AD321,'3 - Land Summary'!$C$21:$C$120,0))),\"\")","v":""}]
[null,{"$f":"IFERROR(INDEX('3 - Land Summary'!$B$21:$B$120,(MATCH('4 - Species Breakdown'!$V322,'3 - Land Summary'!$C$21:$C$120,0))),\"\")","v":""},null,null,{"$f":"IF(OR(COUNTIF('Look Up Data'!$D$149:$D$203,D322),COUNTIF('Look Up Data'!$D$149:$D$203,AE322)),\"YES\",\"NO\")","v":"NO"},null,null,{"$f":"IFERROR(INDEX('3 - Land Summary'!$G$21:$G$120,(MATCH(C322,'3 - Land Summary'!$C$21:$C$120,0))),\"\")","v":""},{"$f":"IFERROR(INDEX('3 - Land Summary'!$I$21:$I$120,(MATCH(C322,'3 - Land Summary'!$C$21:$C$120,0))),\"\")","v":""},"","",null,null,null,{"$f":"IFERROR(VLOOKUP(D322,'Species List'!$D$10:$E$46,2,FALSE)*J322,\"\")","v":""},{"$f":"IFERROR(VLOOKUP(D322,'Species List'!$D$51:$E$89,2,FALSE)*J322,\"\")","v":""},{"$f":"IFERROR(VLOOKUP(D322,'Species List'!$D$95:$E$102,2,FALSE)*J322,\"\")","v":""},{"$f":"IFERROR(VLOOKUP(D322,'Species List'!$I$10:$J$11,2,FALSE)*J322,\"\")","v":""},{"$f":"IFERROR(VLOOKUP(D322,'Species List'!$I$16:$J$61,2,FALSE)*J322,\"\")","v":""},{"$f":"IFERROR(VLOOKUP(D322,'Species List'!$I$66:$J$66,2,FALSE)*J322,\"\")","v":""},{"$f":"IFERROR(VLOOKUP(D322,'Species List'!$I$71:$J$82,2,FALSE)*J322,\"\")","v":""},0,null,null,null,null,null,null,{"$f":"IFERROR(INDEX('3 - Land Summary'!$B$21:$B$120,(MATCH(AD322,'3 - Land Summary'!$C$21:$C$120,0))),\"\")","v":""}]
[null,{"$f":"IFERROR(INDEX('3 - Land Summary'!$B$21:$B$120,(MATCH('4 - Species Breakdown'!$V323,'3 - Land Summary'!$C$21:$C$120,0))),\"\")","v":""},null,null,{"$f":"IF(OR(COUNTIF('Look Up Data'!$D$149:$D$203,D323),COUNTIF('Look Up Data'!$D$149:$D$203,AE323)),\"YES\",\"NO\")","v":"NO"},null,null,{"$f":"IFERROR(INDEX('3 - Land Summary'!$G$21:$G$120,(MATCH(C323,'3 - Land Summary'!$C$21:$C$120,0))),\"\")","v":""},{"$f":"IFERROR(INDEX('3 - Land Summary'!$I$21:$I$120,(MATCH(C323,'3 - Land Summary'!$C$21:$C$120,0))),\"\")","v":""},"","",null,null,null,{"$f":"IFERROR(VLOOKUP(D323,'Species List'!$D$10:$E$46,2,FALSE)*J323,\"\")","v":""},{"$f":"IFERROR(VLOOKUP(D323,'Species List'!$D$51:$E$89,2,FALSE)*J323,\"\")","v":""},{"$f":"IFERROR(VLOOKUP(D323,'Species List'!$D$95:$E$102,2,FALSE)*J323,\"\")","v":""},{"$f":"IFERROR(VLOOKUP(D323,'Species List'!$I$10:$J$11,2,FALSE)*J323,\"\")","v":""},{"$f":"IFERROR(VLOOKUP(D323,'Species List'!$I$16:$J$61,2,FALSE)*J323,\"\")","v":""},{"$f":"IFERROR(VLOOKUP(D323,'Species List'!$I$66:$J$66,2,FALSE)*J323,\"\")","v":""},{"$f":"IFERROR(VLOOKUP(D323,'Species List'!$I$71:$J$82,2,FALSE)*J323,\"\")","v":""},0,null,null,null,null,null,null,{"$f":"IFERROR(INDEX('3 - Land Summary'!$B$21:$B$120,(MATCH(AD323,'3 - Land Summary'!$C$21:$C$120,0))),\"\")","v":""}]
[null,{"$f":"IFERROR(INDEX('3 - Land Summary'!$B$21:$B$120,(MATCH('4 - Species Breakdown'!$V324,'3 - Land Summary'!$C$21:$C$120,0))),\"\")","v":""},null,null,{"$f":"IF(OR(COUNTIF('Look Up Data'!$D$149:$D$203,D324),COUNTIF('Look Up Data'!$D$149:$D$203,AE324)),\"YES\",\"NO\")","v":"NO"},null,null,{"$f":"IFERROR(INDEX('3 - Land Summary'!$G$21:$G$120,(MATCH(C324,'3 - Land Summary'!$C$21:$C$120,0))),\"\")","v":""},{"$f":"IFERROR(INDEX('3 - Land Summary'!$I$21:$I$120,(MATCH(C324,'3 - Land Summary'!$C$21:$C$120,0))),\"\")","v":""},"","",null,null,null,{"$f":"IFERROR(VLOOKUP(D324,'Species List'!$D$10:$E$46,2,FALSE)*J324,\"\")","v":""},{"$f":"IFERROR(VLOOKUP(D324,'Species List'!$D$51:$E$89,2,FALSE)*J324,\"\")","v":""},{"$f":"IFERROR(VLOOKUP(D324,'Species List'!$D$95:$E$102,2,FALSE)*J324,\"\")","v":""},{"$f":"IFERROR(VLOOKUP(D324,'Species List'!$I$10:$J$11,2,FALSE)*J324,\"\")","v":""},{"$f":"IFERROR(VLOOKUP(D324,'Species List'!$I$16:$J$61,2,FALSE)*J324,\"\")","v":""},{"$f":"IFERROR(VLOOKUP(D324,'Species List'!$I$66:$J$66,2,FALSE)*J324,\"\")","v":""},{"$f":"IFERROR(VLOOKUP(D324,'Species List'!$I$71:$J$82,2,FALSE)*J324,\"\")","v":""},0,null,null,null,null,null,null,{"$f":"IFERROR(INDEX('3 - Land Summary'!$B$21:$B$120,(MATCH(AD324,'3 - Land Summary'!$C$21:$C$120,0))),\"\")","v":""}]
[null,{"$f":"IFERROR(INDEX('3 - Land Summary'!$B$21:$B$120,(MATCH('4 - Species Breakdown'!$V325,'3 - Land Summary'!$C$21:$C$120,0))),\"\")","v":""},null,null,{"$f":"IF(OR(COUNTIF('Look Up Data'!$D$149:$D$203,D325),COUNTIF('Look Up Data'!$D$149:$D$203,AE325)),\"YES\",\"NO\")","v":"NO"},null,null,{"$f":"IFERROR(INDEX('3 - Land Summary'!$G$21:$G$120,(MATCH(C325,'3 - Land Summary'!$C$21:$C$120,0))),\"\")","v":""},{"$f":"IFERROR(INDEX('3 - Land Summary'!$I$21:$I$120,(MATCH(C325,'3 - Land Summary'!$C$21:$C$120,0))),\"\")","v":""},"","",null,null,null,{"$f":"IFERROR(VLOOKUP(D325,'Species List'!$D$10:$E$46,2,FALSE)*J325,\"\")","v":""},{"$f":"IFERROR(VLOOKUP(D325,'Species List'!$D$51:$E$89,2,FALSE)*J325,\"\")","v":""},{"$f":"IFERROR(VLOOKUP(D325,'Species List'!$D$95:$E$102,2,FALSE)*J325,\"\")","v":""},{"$f":"IFERROR(VLOOKUP(D325,'Species List'!$I$10:$J$11,2,FALSE)*J325,\"\")","v":""},{"$f":"IFERROR(VLOOKUP(D325,'Species List'!$I$16:$J$61,2,FALSE)*J325,\"\")","v":""},{"$f":"IFERROR(VLOOKUP(D325,'Species List'!$I$66:$J$66,2,FALSE)*J325,\"\")","v":""},{"$f":"IFERROR(VLOOKUP(D325,'Species List'!$I$71:$J$82,2,FALSE)*J325,\"\")","v":""},0,null,null,null,null,null,null,{"$f":"IFERROR(INDEX('3 - Land Summary'!$B$21:$B$120,(MATCH(AD325,'3 - Land Summary'!$C$21:$C$120,0))),\"\")","v":""}]
[null,{"$f":"IFERROR(INDEX('3 - Land Summary'!$B$21:$B$120,(MATCH('4 - Species Breakdown'!$V326,'3 - Land Summary'!$C$21:$C$120,0))),\"\")","v":""},null,null,{"$f":"IF(OR(COUNTIF('Look Up Data'!$D$149:$D$203,D326),COUNTIF('Look Up Data'!$D$149:$D$203,AE326)),\"YES\",\"NO\")","v":"NO"},null,null,{"$f":"IFERROR(INDEX('3 - Land Summary'!$G$21:$G$120,(MATCH(C326,'3 - Land Summary'!$C$21:$C$120,0))),\"\")","v":""},{"$f":"IFERROR(INDEX('3 - Land Summary'!$I$21:$I$120,(MATCH(C326,'3 - Land Summary'!$C$21:$C$120,0))),\"\")","v":""},"","",null,null,null,{"$f":"IFERROR(VLOOKUP(D326,'Species List'!$D$10:$E$46,2,FALSE)*J326,\"\")","v":""},{"$f":"IFERROR(VLOOKUP(D326,'Species List'!$D$51:$E$89,2,FALSE)*J326,\"\")","v":""},{"$f":"IFERROR(VLOOKUP(D326,'Species List'!$D$95:$E$102,2,FALSE)*J326,\"\")","v":""},{"$f":"IFERROR(VLOOKUP(D326,'Species List'!$I$10:$J$11,2,FALSE)*J326,\"\")","v":""},{"$f":"IFERROR(VLOOKUP(D326,'Species List'!$I$16:$J$61,2,FALSE)*J326,\"\")","v":""},{"$f":"IFERROR(VLOOKUP(D326,'Species List'!$I$66:$J$66,2,FALSE)*J326,\"\")","v":""},{"$f":"IFERROR(VLOOKUP(D326,'Species List'!$I$71:$J$82,2,FALSE)*J326,\"\")","v":""},0,null,null,null,null,null,null,{"$f":"IFERROR(INDEX('3 - Land Summary'!$B$21:$B$120,(MATCH(AD326,'3 - Land Summary'!$C$21:$C$120,0))),\"\")","v":""}]
[null,{"$f":"IFERROR(INDEX('3 - Land Summary'!$B$21:$B$120,(MATCH('4 - Species Breakdown'!$V327,'3 - Land Summary'!$C$21:$C$120,0))),\"\")","v":""},null,null,{"$f":"IF(OR(COUNTIF('Look Up Data'!$D$149:$D$203,D327),COUNTIF('Look Up Data'!$D$149:$D$203,AE327)),\"YES\",\"NO\")","v":"NO"},null,null,{"$f":"IFERROR(INDEX('3 - Land Summary'!$G$21:$G$120,(MATCH(C327,'3 - Land Summary'!$C$21:$C$120,0))),\"\")","v":""},{"$f":"IFERROR(INDEX('3 - Land Summary'!$I$21:$I$120,(MATCH(C327,'3 - Land Summary'!$C$21:$C$120,0))),\"\")","v":""},"","",null,null,null,{"$f":"IFERROR(VLOOKUP(D327,'Species List'!$D$10:$E$46,2,FALSE)*J327,\"\")","v":""},{"$f":"IFERROR(VLOOKUP(D327,'Species List'!$D$51:$E$89,2,FALSE)*J327,\"\")","v":""},{"$f":"IFERROR(VLOOKUP(D327,'Species List'!$D$95:$E$102,2,FALSE)*J327,\"\")","v":""},{"$f":"IFERROR(VLOOKUP(D327,'Species List'!$I$10:$J$11,2,FALSE)*J327,\"\")","v":""},{"$f":"IFERROR(VLOOKUP(D327,'Species List'!$I$16:$J$61,2,FALSE)*J327,\"\")","v":""},{"$f":"IFERROR(VLOOKUP(D327,'Species List'!$I$66:$J$66,2,FALSE)*J327,\"\")","v":""},{"$f":"IFERROR(VLOOKUP(D327,'Species List'!$I$71:$J$82,2,FALSE)*J327,\"\")","v":""},0,null,null,null,null,null,null,{"$f":"IFERROR(INDEX('3 - Land Summary'!$B$21:$B$120,(MATCH(AD327,'3 - Land Summary'!$C$21:$C$120,0))),\"\")","v":""}]
[null,{"$f":"IFERROR(INDEX('3 - Land Summary'!$B$21:$B$120,(MATCH('4 - Species Breakdown'!$V328,'3 - Land Summary'!$C$21:$C$120,0))),\"\")","v":""},null,null,{"$f":"IF(OR(COUNTIF('Look Up Data'!$D$149:$D$203,D328),COUNTIF('Look Up Data'!$D$149:$D$203,AE328)),\"YES\",\"NO\")","v":"NO"},null,null,{"$f":"IFERROR(INDEX('3 - Land Summary'!$G$21:$G$120,(MATCH(C328,'3 - Land Summary'!$C$21:$C$120,0))),\"\")","v":""},{"$f":"IFERROR(INDEX('3 - Land Summary'!$I$21:$I$120,(MATCH(C328,'3 - Land Summary'!$C$21:$C$120,0))),\"\")","v":""},"","",null,null,null,{"$f":"IFERROR(VLOOKUP(D328,'Species List'!$D$10:$E$46,2,FALSE)*J328,\"\")","v":""},{"$f":"IFERROR(VLOOKUP(D328,'Species List'!$D$51:$E$89,2,FALSE)*J328,\"\")","v":""},{"$f":"IFERROR(VLOOKUP(D328,'Species List'!$D$95:$E$102,2,FALSE)*J328,\"\")","v":""},{"$f":"IFERROR(VLOOKUP(D328,'Species List'!$I$10:$J$11,2,FALSE)*J328,\"\")","v":""},{"$f":"IFERROR(VLOOKUP(D328,'Species List'!$I$16:$J$61,2,FALSE)*J328,\"\")","v":""},{"$f":"IFERROR(VLOOKUP(D328,'Species List'!$I$66:$J$66,2,FALSE)*J328,\"\")","v":""},{"$f":"IFERROR(VLOOKUP(D328,'Species List'!$I$71:$J$82,2,FALSE)*J328,\"\")","v":""},0,null,null,null,null,null,null,{"$f":"IFERROR(INDEX('3 - Land Summary'!$B$21:$B$120,(MATCH(AD328,'3 - Land Summary'!$C$21:$C$120,0))),\"\")","v":""}]
[null,{"$f":"IFERROR(INDEX('3 - Land Summary'!$B$21:$B$120,(MATCH('4 - Species Breakdown'!$V329,'3 - Land Summary'!$C$21:$C$120,0))),\"\")","v":""},null,null,{"$f":"IF(OR(COUNTIF('Look Up Data'!$D$149:$D$203,D329),COUNTIF('Look Up Data'!$D$149:$D$203,AE329)),\"YES\",\"NO\")","v":"NO"},null,null,{"$f":"IFERROR(INDEX('3 - Land Summary'!$G$21:$G$120,(MATCH(C329,'3 - Land Summary'!$C$21:$C$120,0))),\"\")","v":""},{"$f":"IFERROR(INDEX('3 - Land Summary'!$I$21:$I$120,(MATCH(C329,'3 - Land Summary'!$C$21:$C$120,0))),\"\")","v":""},"","",null,null,null,{"$f":"IFERROR(VLOOKUP(D329,'Species List'!$D$10:$E$46,2,FALSE)*J329,\"\")","v":""},{"$f":"IFERROR(VLOOKUP(D329,'Species List'!$D$51:$E$89,2,FALSE)*J329,\"\")","v":""},{"$f":"IFERROR(VLOOKUP(D329,'Species List'!$D$95:$E$102,2,FALSE)*J329,\"\")","v":""},{"$f":"IFERROR(VLOOKUP(D329,'Species List'!$I$10:$J$11,2,FALSE)*J329,\"\")","v":""},{"$f":"IFERROR(VLOOKUP(D329,'Species List'!$I$16:$J$61,2,FALSE)*J329,\"\")","v":""},{"$f":"IFERROR(VLOOKUP(D329,'Species List'!$I$66:$J$66,2,FALSE)*J329,\"\")","v":""},{"$f":"IFERROR(VLOOKUP(D329,'Species List'!$I$71:$J$82,2,FALSE)*J329,\"\")","v":""},0,null,null,null,null,null,null,{"$f":"IFERROR(INDEX('3 - Land Summary'!$B$21:$B$120,(MATCH(AD329,'3 - Land Summary'!$C$21:$C$120,0))),\"\")","v":""}]
[null,{"$f":"IFERROR(INDEX('3 - Land Summary'!$B$21:$B$120,(MATCH('4 - Species Breakdown'!$V330,'3 - Land Summary'!$C$21:$C$120,0))),\"\")","v":""},null,null,{"$f":"IF(OR(COUNTIF('Look Up Data'!$D$149:$D$203,D330),COUNTIF('Look Up Data'!$D$149:$D$203,AE330)),\"YES\",\"NO\")","v":"NO"},null,null,{"$f":"IFERROR(INDEX('3 - Land Summary'!$G$21:$G$120,(MATCH(C330,'3 - Land Summary'!$C$21:$C$120,0))),\"\")","v":""},{"$f":"IFERROR(INDEX('3 - Land Summary'!$I$21:$I$120,(MATCH(C330,'3 - Land Summary'!$C$21:$C$120,0))),\"\")","v":""},"","",null,null,null,{"$f":"IFERROR(VLOOKUP(D330,'Species List'!$D$10:$E$46,2,FALSE)*J330,\"\")","v":""},{"$f":"IFERROR(VLOOKUP(D330,'Species List'!$D$51:$E$89,2,FALSE)*J330,\"\")","v":""},{"$f":"IFERROR(VLOOKUP(D330,'Species List'!$D$95:$E$102,2,FALSE)*J330,\"\")","v":""},{"$f":"IFERROR(VLOOKUP(D330,'Species List'!$I$10:$J$11,2,FALSE)*J330,\"\")","v":""},{"$f":"IFERROR(VLOOKUP(D330,'Species List'!$I$16:$J$61,2,FALSE)*J330,\"\")","v":""},{"$f":"IFERROR(VLOOKUP(D330,'Species List'!$I$66:$J$66,2,FALSE)*J330,\"\")","v":""},{"$f":"IFERROR(VLOOKUP(D330,'Species List'!$I$71:$J$82,2,FALSE)*J330,\"\")","v":""},0,null,null,null,null,null,null,{"$f":"IFERROR(INDEX('3 - Land Summary'!$B$21:$B$120,(MATCH(AD330,'3 - Land Summary'!$C$21:$C$120,0))),\"\")","v":""}]
[null,{"$f":"IFERROR(INDEX('3 - Land Summary'!$B$21:$B$120,(MATCH('4 - Species Breakdown'!$V331,'3 - Land Summary'!$C$21:$C$120,0))),\"\")","v":""},null,null,{"$f":"IF(OR(COUNTIF('Look Up Data'!$D$149:$D$203,D331),COUNTIF('Look Up Data'!$D$149:$D$203,AE331)),\"YES\",\"NO\")","v":"NO"},null,null,{"$f":"IFERROR(INDEX('3 - Land Summary'!$G$21:$G$120,(MATCH(C331,'3 - Land Summary'!$C$21:$C$120,0))),\"\")","v":""},{"$f":"IFERROR(INDEX('3 - Land Summary'!$I$21:$I$120,(MATCH(C331,'3 - Land Summary'!$C$21:$C$120,0))),\"\")","v":""},"","",null,null,null,{"$f":"IFERROR(VLOOKUP(D331,'Species List'!$D$10:$E$46,2,FALSE)*J331,\"\")","v":""},{"$f":"IFERROR(VLOOKUP(D331,'Species List'!$D$51:$E$89,2,FALSE)*J331,\"\")","v":""},{"$f":"IFERROR(VLOOKUP(D331,'Species List'!$D$95:$E$102,2,FALSE)*J331,\"\")","v":""},{"$f":"IFERROR(VLOOKUP(D331,'Species List'!$I$10:$J$11,2,FALSE)*J331,\"\")","v":""},{"$f":"IFERROR(VLOOKUP(D331,'Species List'!$I$16:$J$61,2,FALSE)*J331,\"\")","v":""},{"$f":"IFERROR(VLOOKUP(D331,'Species List'!$I$66:$J$66,2,FALSE)*J331,\"\")","v":""},{"$f":"IFERROR(VLOOKUP(D331,'Species List'!$I$71:$J$82,2,FALSE)*J331,\"\")","v":""},0,null,null,null,null,null,null,{"$f":"IFERROR(INDEX('3 - Land Summary'!$B$21:$B$120,(MATCH(AD331,'3 - Land Summary'!$C$21:$C$120,0))),\"\")","v":""}]
[null,{"$f":"IFERROR(INDEX('3 - Land Summary'!$B$21:$B$120,(MATCH('4 - Species Breakdown'!$V332,'3 - Land Summary'!$C$21:$C$120,0))),\"\")","v":""},null,null,{"$f":"IF(OR(COUNTIF('Look Up Data'!$D$149:$D$203,D332),COUNTIF('Look Up Data'!$D$149:$D$203,AE332)),\"YES\",\"NO\")","v":"NO"},null,null,{"$f":"IFERROR(INDEX('3 - Land Summary'!$G$21:$G$120,(MATCH(C332,'3 - Land Summary'!$C$21:$C$120,0))),\"\")","v":""},{"$f":"IFERROR(INDEX('3 - Land Summary'!$I$21:$I$120,(MATCH(C332,'3 - Land Summary'!$C$21:$C$120,0))),\"\")","v":""},"","",null,null,null,{"$f":"IFERROR(VLOOKUP(D332,'Species List'!$D$10:$E$46,2,FALSE)*J332,\"\")","v":""},{"$f":"IFERROR(VLOOKUP(D332,'Species List'!$D$51:$E$89,2,FALSE)*J332,\"\")","v":""},{"$f":"IFERROR(VLOOKUP(D332,'Species List'!$D$95:$E$102,2,FALSE)*J332,\"\")","v":""},{"$f":"IFERROR(VLOOKUP(D332,'Species List'!$I$10:$J$11,2,FALSE)*J332,\"\")","v":""},{"$f":"IFERROR(VLOOKUP(D332,'Species List'!$I$16:$J$61,2,FALSE)*J332,\"\")","v":""},{"$f":"IFERROR(VLOOKUP(D332,'Species List'!$I$66:$J$66,2,FALSE)*J332,\"\")","v":""},{"$f":"IFERROR(VLOOKUP(D332,'Species List'!$I$71:$J$82,2,FALSE)*J332,\"\")","v":""},0,null,null,null,null,null,null,{"$f":"IFERROR(INDEX('3 - Land Summary'!$B$21:$B$120,(MATCH(AD332,'3 - Land Summary'!$C$21:$C$120,0))),\"\")","v":""}]
[null,{"$f":"IFERROR(INDEX('3 - Land Summary'!$B$21:$B$120,(MATCH('4 - Species Breakdown'!$V333,'3 - Land Summary'!$C$21:$C$120,0))),\"\")","v":""},null,null,{"$f":"IF(OR(COUNTIF('Look Up Data'!$D$149:$D$203,D333),COUNTIF('Look Up Data'!$D$149:$D$203,AE333)),\"YES\",\"NO\")","v":"NO"},null,null,{"$f":"IFERROR(INDEX('3 - Land Summary'!$G$21:$G$120,(MATCH(C333,'3 - Land Summary'!$C$21:$C$120,0))),\"\")","v":""},{"$f":"IFERROR(INDEX('3 - Land Summary'!$I$21:$I$120,(MATCH(C333,'3 - Land Summary'!$C$21:$C$120,0))),\"\")","v":""},"","",null,null,null,{"$f":"IFERROR(VLOOKUP(D333,'Species List'!$D$10:$E$46,2,FALSE)*J333,\"\")","v":""},{"$f":"IFERROR(VLOOKUP(D333,'Species List'!$D$51:$E$89,2,FALSE)*J333,\"\")","v":""},{"$f":"IFERROR(VLOOKUP(D333,'Species List'!$D$95:$E$102,2,FALSE)*J333,\"\")","v":""},{"$f":"IFERROR(VLOOKUP(D333,'Species List'!$I$10:$J$11,2,FALSE)*J333,\"\")","v":""},{"$f":"IFERROR(VLOOKUP(D333,'Species List'!$I$16:$J$61,2,FALSE)*J333,\"\")","v":""},{"$f":"IFERROR(VLOOKUP(D333,'Species List'!$I$66:$J$66,2,FALSE)*J333,\"\")","v":""},{"$f":"IFERROR(VLOOKUP(D333,'Species List'!$I$71:$J$82,2,FALSE)*J333,\"\")","v":""},0,null,null,null,null,null,null,{"$f":"IFERROR(INDEX('3 - Land Summary'!$B$21:$B$120,(MATCH(AD333,'3 - Land Summary'!$C$21:$C$120,0))),\"\")","v":""}]
[null,{"$f":"IFERROR(INDEX('3 - Land Summary'!$B$21:$B$120,(MATCH('4 - Species Breakdown'!$V334,'3 - Land Summary'!$C$21:$C$120,0))),\"\")","v":""},null,null,{"$f":"IF(OR(COUNTIF('Look Up Data'!$D$149:$D$203,D334),COUNTIF('Look Up Data'!$D$149:$D$203,AE334)),\"YES\",\"NO\")","v":"NO"},null,null,{"$f":"IFERROR(INDEX('3 - Land Summary'!$G$21:$G$120,(MATCH(C334,'3 - Land Summary'!$C$21:$C$120,0))),\"\")","v":""},{"$f":"IFERROR(INDEX('3 - Land Summary'!$I$21:$I$120,(MATCH(C334,'3 - Land Summary'!$C$21:$C$120,0))),\"\")","v":""},"","",null,null,null,{"$f":"IFERROR(VLOOKUP(D334,'Species List'!$D$10:$E$46,2,FALSE)*J334,\"\")","v":""},{"$f":"IFERROR(VLOOKUP(D334,'Species List'!$D$51:$E$89,2,FALSE)*J334,\"\")","v":""},{"$f":"IFERROR(VLOOKUP(D334,'Species List'!$D$95:$E$102,2,FALSE)*J334,\"\")","v":""},{"$f":"IFERROR(VLOOKUP(D334,'Species List'!$I$10:$J$11,2,FALSE)*J334,\"\")","v":""},{"$f":"IFERROR(VLOOKUP(D334,'Species List'!$I$16:$J$61,2,FALSE)*J334,\"\")","v":""},{"$f":"IFERROR(VLOOKUP(D334,'Species List'!$I$66:$J$66,2,FALSE)*J334,\"\")","v":""},{"$f":"IFERROR(VLOOKUP(D334,'Species List'!$I$71:$J$82,2,FALSE)*J334,\"\")","v":""},0,null,null,null,null,null,null,{"$f":"IFERROR(INDEX('3 - Land Summary'!$B$21:$B$120,(MATCH(AD334,'3 - Land Summary'!$C$21:$C$120,0))),\"\")","v":""}]
[null,{"$f":"IFERROR(INDEX('3 - Land Summary'!$B$21:$B$120,(MATCH('4 - Species Breakdown'!$V335,'3 - Land Summary'!$C$21:$C$120,0))),\"\")","v":""},null,null,{"$f":"IF(OR(COUNTIF('Look Up Data'!$D$149:$D$203,D335),COUNTIF('Look Up Data'!$D$149:$D$203,AE335)),\"YES\",\"NO\")","v":"NO"},null,null,{"$f":"IFERROR(INDEX('3 - Land Summary'!$G$21:$G$120,(MATCH(C335,'3 - Land Summary'!$C$21:$C$120,0))),\"\")","v":""},{"$f":"IFERROR(INDEX('3 - Land Summary'!$I$21:$I$120,(MATCH(C335,'3 - Land Summary'!$C$21:$C$120,0))),\"\")","v":""},"","",null,null,null,{"$f":"IFERROR(VLOOKUP(D335,'Species List'!$D$10:$E$46,2,FALSE)*J335,\"\")","v":""},{"$f":"IFERROR(VLOOKUP(D335,'Species List'!$D$51:$E$89,2,FALSE)*J335,\"\")","v":""},{"$f":"IFERROR(VLOOKUP(D335,'Species List'!$D$95:$E$102,2,FALSE)*J335,\"\")","v":""},{"$f":"IFERROR(VLOOKUP(D335,'Species List'!$I$10:$J$11,2,FALSE)*J335,\"\")","v":""},{"$f":"IFERROR(VLOOKUP(D335,'Species List'!$I$16:$J$61,2,FALSE)*J335,\"\")","v":""},{"$f":"IFERROR(VLOOKUP(D335,'Species List'!$I$66:$J$66,2,FALSE)*J335,\"\")","v":""},{"$f":"IFERROR(VLOOKUP(D335,'Species List'!$I$71:$J$82,2,FALSE)*J335,\"\")","v":""},0,null,null,null,null,null,null,{"$f":"IFERROR(INDEX('3 - Land Summary'!$B$21:$B$120,(MATCH(AD335,'3 - Land Summary'!$C$21:$C$120,0))),\"\")","v":""}]
[null,{"$f":"IFERROR(INDEX('3 - Land Summary'!$B$21:$B$120,(MATCH('4 - Species Breakdown'!$V336,'3 - Land Summary'!$C$21:$C$120,0))),\"\")","v":""},null,null,{"$f":"IF(OR(COUNTIF('Look Up Data'!$D$149:$D$203,D336),COUNTIF('Look Up Data'!$D$149:$D$203,AE336)),\"YES\",\"NO\")","v":"NO"},null,null,{"$f":"IFERROR(INDEX('3 - Land Summary'!$G$21:$G$120,(MATCH(C336,'3 - Land Summary'!$C$21:$C$120,0))),\"\")","v":""},{"$f":"IFERROR(INDEX('3 - Land Summary'!$I$21:$I$120,(MATCH(C336,'3 - Land Summary'!$C$21:$C$120,0))),\"\")","v":""},"","",null,null,null,{"$f":"IFERROR(VLOOKUP(D336,'Species List'!$D$10:$E$46,2,FALSE)*J336,\"\")","v":""},{"$f":"IFERROR(VLOOKUP(D336,'Species List'!$D$51:$E$89,2,FALSE)*J336,\"\")","v":""},{"$f":"IFERROR(VLOOKUP(D336,'Species List'!$D$95:$E$102,2,FALSE)*J336,\"\")","v":""},{"$f":"IFERROR(VLOOKUP(D336,'Species List'!$I$10:$J$11,2,FALSE)*J336,\"\")","v":""},{"$f":"IFERROR(VLOOKUP(D336,'Species List'!$I$16:$J$61,2,FALSE)*J336,\"\")","v":""},{"$f":"IFERROR(VLOOKUP(D336,'Species List'!$I$66:$J$66,2,FALSE)*J336,\"\")","v":""},{"$f":"IFERROR(VLOOKUP(D336,'Species List'!$I$71:$J$82,2,FALSE)*J336,\"\")","v":""},0,null,null,null,null,null,null,{"$f":"IFERROR(INDEX('3 - Land Summary'!$B$21:$B$120,(MATCH(AD336,'3 - Land Summary'!$C$21:$C$120,0))),\"\")","v":""}]
[null,{"$f":"IFERROR(INDEX('3 - Land Summary'!$B$21:$B$120,(MATCH('4 - Species Breakdown'!$V337,'3 - Land Summary'!$C$21:$C$120,0))),\"\")","v":""},null,null,{"$f":"IF(OR(COUNTIF('Look Up Data'!$D$149:$D$203,D337),COUNTIF('Look Up Data'!$D$149:$D$203,AE337)),\"YES\",\"NO\")","v":"NO"},null,null,{"$f":"IFERROR(INDEX('3 - Land Summary'!$G$21:$G$120,(MATCH(C337,'3 - Land Summary'!$C$21:$C$120,0))),\"\")","v":""},{"$f":"IFERROR(INDEX('3 - Land Summary'!$I$21:$I$120,(MATCH(C337,'3 - Land Summary'!$C$21:$C$120,0))),\"\")","v":""},"","",null,null,null,{"$f":"IFERROR(VLOOKUP(D337,'Species List'!$D$10:$E$46,2,FALSE)*J337,\"\")","v":""},{"$f":"IFERROR(VLOOKUP(D337,'Species List'!$D$51:$E$89,2,FALSE)*J337,\"\")","v":""},{"$f":"IFERROR(VLOOKUP(D337,'Species List'!$D$95:$E$102,2,FALSE)*J337,\"\")","v":""},{"$f":"IFERROR(VLOOKUP(D337,'Species List'!$I$10:$J$11,2,FALSE)*J337,\"\")","v":""},{"$f":"IFERROR(VLOOKUP(D337,'Species List'!$I$16:$J$61,2,FALSE)*J337,\"\")","v":""},{"$f":"IFERROR(VLOOKUP(D337,'Species List'!$I$66:$J$66,2,FALSE)*J337,\"\")","v":""},{"$f":"IFERROR(VLOOKUP(D337,'Species List'!$I$71:$J$82,2,FALSE)*J337,\"\")","v":""},0,null,null,null,null,null,null,{"$f":"IFERROR(INDEX('3 - Land Summary'!$B$21:$B$120,(MATCH(AD337,'3 - Land Summary'!$C$21:$C$120,0))),\"\")","v":""}]
[null,{"$f":"IFERROR(INDEX('3 - Land Summary'!$B$21:$B$120,(MATCH('4 - Species Breakdown'!$V338,'3 - Land Summary'!$C$21:$C$120,0))),\"\")","v":""},null,null,{"$f":"IF(OR(COUNTIF('Look Up Data'!$D$149:$D$203,D338),COUNTIF('Look Up Data'!$D$149:$D$203,AE338)),\"YES\",\"NO\")","v":"NO"},null,null,{"$f":"IFERROR(INDEX('3 - Land Summary'!$G$21:$G$120,(MATCH(C338,'3 - Land Summary'!$C$21:$C$120,0))),\"\")","v":""},{"$f":"IFERROR(INDEX('3 - Land Summary'!$I$21:$I$120,(MATCH(C338,'3 - Land Summary'!$C$21:$C$120,0))),\"\")","v":""},"","",null,null,null,{"$f":"IFERROR(VLOOKUP(D338,'Species List'!$D$10:$E$46,2,FALSE)*J338,\"\")","v":""},{"$f":"IFERROR(VLOOKUP(D338,'Species List'!$D$51:$E$89,2,FALSE)*J338,\"\")","v":""},{"$f":"IFERROR(VLOOKUP(D338,'Species List'!$D$95:$E$102,2,FALSE)*J338,\"\")","v":""},{"$f":"IFERROR(VLOOKUP(D338,'Species List'!$I$10:$J$11,2,FALSE)*J338,\"\")","v":""},{"$f":"IFERROR(VLOOKUP(D338,'Species List'!$I$16:$J$61,2,FALSE)*J338,\"\")","v":""},{"$f":"IFERROR(VLOOKUP(D338,'Species List'!$I$66:$J$66,2,FALSE)*J338,\"\")","v":""},{"$f":"IFERROR(VLOOKUP(D338,'Species List'!$I$71:$J$82,2,FALSE)*J338,\"\")","v":""},0,null,null,null,null,null,null,{"$f":"IFERROR(INDEX('3 - Land Summary'!$B$21:$B$120,(MATCH(AD338,'3 - Land Summary'!$C$21:$C$120,0))),\"\")","v":""}]
[null,{"$f":"IFERROR(INDEX('3 - Land Summary'!$B$21:$B$120,(MATCH('4 - Species Breakdown'!$V339,'3 - Land Summary'!$C$21:$C$120,0))),\"\")","v":""},null,null,{"$f":"IF(OR(COUNTIF('Look Up Data'!$D$149:$D$203,D339),COUNTIF('Look Up Data'!$D$149:$D$203,AE339)),\"YES\",\"NO\")","v":"NO"},null,null,{"$f":"IFERROR(INDEX('3 - Land Summary'!$G$21:$G$120,(MATCH(C339,'3 - Land Summary'!$C$21:$C$120,0))),\"\")","v":""},{"$f":"IFERROR(INDEX('3 - Land Summary'!$I$21:$I$120,(MATCH(C339,'3 - Land Summary'!$C$21:$C$120,0))),\"\")","v":""},"","",null,null,null,{"$f":"IFERROR(VLOOKUP(D339,'Species List'!$D$10:$E$46,2,FALSE)*J339,\"\")","v":""},{"$f":"IFERROR(VLOOKUP(D339,'Species List'!$D$51:$E$89,2,FALSE)*J339,\"\")","v":""},{"$f":"IFERROR(VLOOKUP(D339,'Species List'!$D$95:$E$102,2,FALSE)*J339,\"\")","v":""},{"$f":"IFERROR(VLOOKUP(D339,'Species List'!$I$10:$J$11,2,FALSE)*J339,\"\")","v":""},{"$f":"IFERROR(VLOOKUP(D339,'Species List'!$I$16:$J$61,2,FALSE)*J339,\"\")","v":""},{"$f":"IFERROR(VLOOKUP(D339,'Species List'!$I$66:$J$66,2,FALSE)*J339,\"\")","v":""},{"$f":"IFERROR(VLOOKUP(D339,'Species List'!$I$71:$J$82,2,FALSE)*J339,\"\")","v":""},0,null,null,null,null,null,null,{"$f":"IFERROR(INDEX('3 - Land Summary'!$B$21:$B$120,(MATCH(AD339,'3 - Land Summary'!$C$21:$C$120,0))),\"\")","v":""}]
[null,{"$f":"IFERROR(INDEX('3 - Land Summary'!$B$21:$B$120,(MATCH('4 - Species Breakdown'!$V340,'3 - Land Summary'!$C$21:$C$120,0))),\"\")","v":""},null,null,{"$f":"IF(OR(COUNTIF('Look Up Data'!$D$149:$D$203,D340),COUNTIF('Look Up Data'!$D$149:$D$203,AE340)),\"YES\",\"NO\")","v":"NO"},null,null,{"$f":"IFERROR(INDEX('3 - Land Summary'!$G$21:$G$120,(MATCH(C340,'3 - Land Summary'!$C$21:$C$120,0))),\"\")","v":""},{"$f":"IFERROR(INDEX('3 - Land Summary'!$I$21:$I$120,(MATCH(C340,'3 - Land Summary'!$C$21:$C$120,0))),\"\")","v":""},"","",null,null,null,{"$f":"IFERROR(VLOOKUP(D340,'Species List'!$D$10:$E$46,2,FALSE)*J340,\"\")","v":""},{"$f":"IFERROR(VLOOKUP(D340,'Species List'!$D$51:$E$89,2,FALSE)*J340,\"\")","v":""},{"$f":"IFERROR(VLOOKUP(D340,'Species List'!$D$95:$E$102,2,FALSE)*J340,\"\")","v":""},{"$f":"IFERROR(VLOOKUP(D340,'Species List'!$I$10:$J$11,2,FALSE)*J340,\"\")","v":""},{"$f":"IFERROR(VLOOKUP(D340,'Species List'!$I$16:$J$61,2,FALSE)*J340,\"\")","v":""},{"$f":"IFERROR(VLOOKUP(D340,'Species List'!$I$66:$J$66,2,FALSE)*J340,\"\")","v":""},{"$f":"IFERROR(VLOOKUP(D340,'Species List'!$I$71:$J$82,2,FALSE)*J340,\"\")","v":""},0,null,null,null,null,null,null,{"$f":"IFERROR(INDEX('3 - Land Summary'!$B$21:$B$120,(MATCH(AD340,'3 - Land Summary'!$C$21:$C$120,0))),\"\")","v":""}]
[null,{"$f":"IFERROR(INDEX('3 - Land Summary'!$B$21:$B$120,(MATCH('4 - Species Breakdown'!$V341,'3 - Land Summary'!$C$21:$C$120,0))),\"\")","v":""},null,null,{"$f":"IF(OR(COUNTIF('Look Up Data'!$D$149:$D$203,D341),COUNTIF('Look Up Data'!$D$149:$D$203,AE341)),\"YES\",\"NO\")","v":"NO"},null,null,{"$f":"IFERROR(INDEX('3 - Land Summary'!$G$21:$G$120,(MATCH(C341,'3 - Land Summary'!$C$21:$C$120,0))),\"\")","v":""},{"$f":"IFERROR(INDEX('3 - Land Summary'!$I$21:$I$120,(MATCH(C341,'3 - Land Summary'!$C$21:$C$120,0))),\"\")","v":""},"","",null,null,null,{"$f":"IFERROR(VLOOKUP(D341,'Species List'!$D$10:$E$46,2,FALSE)*J341,\"\")","v":""},{"$f":"IFERROR(VLOOKUP(D341,'Species List'!$D$51:$E$89,2,FALSE)*J341,\"\")","v":""},{"$f":"IFERROR(VLOOKUP(D341,'Species List'!$D$95:$E$102,2,FALSE)*J341,\"\")","v":""},{"$f":"IFERROR(VLOOKUP(D341,'Species List'!$I$10:$J$11,2,FALSE)*J341,\"\")","v":""},{"$f":"IFERROR(VLOOKUP(D341,'Species List'!$I$16:$J$61,2,FALSE)*J341,\"\")","v":""},{"$f":"IFERROR(VLOOKUP(D341,'Species List'!$I$66:$J$66,2,FALSE)*J341,\"\")","v":""},{"$f":"IFERROR(VLOOKUP(D341,'Species List'!$I$71:$J$82,2,FALSE)*J341,\"\")","v":""},0,null,null,null,null,null,null,{"$f":"IFERROR(INDEX('3 - Land Summary'!$B$21:$B$120,(MATCH(AD341,'3 - Land Summary'!$C$21:$C$120,0))),\"\")","v":""}]
[null,{"$f":"IFERROR(INDEX('3 - Land Summary'!$B$21:$B$120,(MATCH('4 - Species Breakdown'!$V342,'3 - Land Summary'!$C$21:$C$120,0))),\"\")","v":""},null,null,{"$f":"IF(OR(COUNTIF('Look Up Data'!$D$149:$D$203,D342),COUNTIF('Look Up Data'!$D$149:$D$203,AE342)),\"YES\",\"NO\")","v":"NO"},null,null,{"$f":"IFERROR(INDEX('3 - Land Summary'!$G$21:$G$120,(MATCH(C342,'3 - Land Summary'!$C$21:$C$120,0))),\"\")","v":""},{"$f":"IFERROR(INDEX('3 - Land Summary'!$I$21:$I$120,(MATCH(C342,'3 - Land Summary'!$C$21:$C$120,0))),\"\")","v":""},"","",null,null,null,{"$f":"IFERROR(VLOOKUP(D342,'Species List'!$D$10:$E$46,2,FALSE)*J342,\"\")","v":""},{"$f":"IFERROR(VLOOKUP(D342,'Species List'!$D$51:$E$89,2,FALSE)*J342,\"\")","v":""},{"$f":"IFERROR(VLOOKUP(D342,'Species List'!$D$95:$E$102,2,FALSE)*J342,\"\")","v":""},{"$f":"IFERROR(VLOOKUP(D342,'Species List'!$I$10:$J$11,2,FALSE)*J342,\"\")","v":""},{"$f":"IFERROR(VLOOKUP(D342,'Species List'!$I$16:$J$61,2,FALSE)*J342,\"\")","v":""},{"$f":"IFERROR(VLOOKUP(D342,'Species List'!$I$66:$J$66,2,FALSE)*J342,\"\")","v":""},{"$f":"IFERROR(VLOOKUP(D342,'Species List'!$I$71:$J$82,2,FALSE)*J342,\"\")","v":""},0,null,null,null,null,null,null,{"$f":"IFERROR(INDEX('3 - Land Summary'!$B$21:$B$120,(MATCH(AD342,'3 - Land Summary'!$C$21:$C$120,0))),\"\")","v":""}]
[null,{"$f":"IFERROR(INDEX('3 - Land Summary'!$B$21:$B$120,(MATCH('4 - Species Breakdown'!$V343,'3 - Land Summary'!$C$21:$C$120,0))),\"\")","v":""},null,null,{"$f":"IF(OR(COUNTIF('Look Up Data'!$D$149:$D$203,D343),COUNTIF('Look Up Data'!$D$149:$D$203,AE343)),\"YES\",\"NO\")","v":"NO"},null,null,{"$f":"IFERROR(INDEX('3 - Land Summary'!$G$21:$G$120,(MATCH(C343,'3 - Land Summary'!$C$21:$C$120,0))),\"\")","v":""},{"$f":"IFERROR(INDEX('3 - Land Summary'!$I$21:$I$120,(MATCH(C343,'3 - Land Summary'!$C$21:$C$120,0))),\"\")","v":""},"","",null,null,null,{"$f":"IFERROR(VLOOKUP(D343,'Species List'!$D$10:$E$46,2,FALSE)*J343,\"\")","v":""},{"$f":"IFERROR(VLOOKUP(D343,'Species List'!$D$51:$E$89,2,FALSE)*J343,\"\")","v":""},{"$f":"IFERROR(VLOOKUP(D343,'Species List'!$D$95:$E$102,2,FALSE)*J343,\"\")","v":""},{"$f":"IFERROR(VLOOKUP(D343,'Species List'!$I$10:$J$11,2,FALSE)*J343,\"\")","v":""},{"$f":"IFERROR(VLOOKUP(D343,'Species List'!$I$16:$J$61,2,FALSE)*J343,\"\")","v":""},{"$f":"IFERROR(VLOOKUP(D343,'Species List'!$I$66:$J$66,2,FALSE)*J343,\"\")","v":""},{"$f":"IFERROR(VLOOKUP(D343,'Species List'!$I$71:$J$82,2,FALSE)*J343,\"\")","v":""},0,null,null,null,null,null,null,{"$f":"IFERROR(INDEX('3 - Land Summary'!$B$21:$B$120,(MATCH(AD343,'3 - Land Summary'!$C$21:$C$120,0))),\"\")","v":""}]
[null,{"$f":"IFERROR(INDEX('3 - Land Summary'!$B$21:$B$120,(MATCH('4 - Species Breakdown'!$V344,'3 - Land Summary'!$C$21:$C$120,0))),\"\")","v":""},null,null,{"$f":"IF(OR(COUNTIF('Look Up Data'!$D$149:$D$203,D344),COUNTIF('Look Up Data'!$D$149:$D$203,AE344)),\"YES\",\"NO\")","v":"NO"},null,null,{"$f":"IFERROR(INDEX('3 - Land Summary'!$G$21:$G$120,(MATCH(C344,'3 - Land Summary'!$C$21:$C$120,0))),\"\")","v":""},{"$f":"IFERROR(INDEX('3 - Land Summary'!$I$21:$I$120,(MATCH(C344,'3 - Land Summary'!$C$21:$C$120,0))),\"\")","v":""},"","",null,null,null,{"$f":"IFERROR(VLOOKUP(D344,'Species List'!$D$10:$E$46,2,FALSE)*J344,\"\")","v":""},{"$f":"IFERROR(VLOOKUP(D344,'Species List'!$D$51:$E$89,2,FALSE)*J344,\"\")","v":""},{"$f":"IFERROR(VLOOKUP(D344,'Species List'!$D$95:$E$102,2,FALSE)*J344,\"\")","v":""},{"$f":"IFERROR(VLOOKUP(D344,'Species List'!$I$10:$J$11,2,FALSE)*J344,\"\")","v":""},{"$f":"IFERROR(VLOOKUP(D344,'Species List'!$I$16:$J$61,2,FALSE)*J344,\"\")","v":""},{"$f":"IFERROR(VLOOKUP(D344,'Species List'!$I$66:$J$66,2,FALSE)*J344,\"\")","v":""},{"$f":"IFERROR(VLOOKUP(D344,'Species List'!$I$71:$J$82,2,FALSE)*J344,\"\")","v":""},0,null,null,null,null,null,null,{"$f":"IFERROR(INDEX('3 - Land Summary'!$B$21:$B$120,(MATCH(AD344,'3 - Land Summary'!$C$21:$C$120,0))),\"\")","v":""}]
[null,{"$f":"IFERROR(INDEX('3 - Land Summary'!$B$21:$B$120,(MATCH('4 - Species Breakdown'!$V345,'3 - Land Summary'!$C$21:$C$120,0))),\"\")","v":""},null,null,{"$f":"IF(OR(COUNTIF('Look Up Data'!$D$149:$D$203,D345),COUNTIF('Look Up Data'!$D$149:$D$203,AE345)),\"YES\",\"NO\")","v":"NO"},null,null,{"$f":"IFERROR(INDEX('3 - Land Summary'!$G$21:$G$120,(MATCH(C345,'3 - Land Summary'!$C$21:$C$120,0))),\"\")","v":""},{"$f":"IFERROR(INDEX('3 - Land Summary'!$I$21:$I$120,(MATCH(C345,'3 - Land Summary'!$C$21:$C$120,0))),\"\")","v":""},"","",null,null,null,{"$f":"IFERROR(VLOOKUP(D345,'Species List'!$D$10:$E$46,2,FALSE)*J345,\"\")","v":""},{"$f":"IFERROR(VLOOKUP(D345,'Species List'!$D$51:$E$89,2,FALSE)*J345,\"\")","v":""},{"$f":"IFERROR(VLOOKUP(D345,'Species List'!$D$95:$E$102,2,FALSE)*J345,\"\")","v":""},{"$f":"IFERROR(VLOOKUP(D345,'Species List'!$I$10:$J$11,2,FALSE)*J345,\"\")","v":""},{"$f":"IFERROR(VLOOKUP(D345,'Species List'!$I$16:$J$61,2,FALSE)*J345,\"\")","v":""},{"$f":"IFERROR(VLOOKUP(D345,'Species List'!$I$66:$J$66,2,FALSE)*J345,\"\")","v":""},{"$f":"IFERROR(VLOOKUP(D345,'Species List'!$I$71:$J$82,2,FALSE)*J345,\"\")","v":""},0,null,null,null,null,null,null,{"$f":"IFERROR(INDEX('3 - Land Summary'!$B$21:$B$120,(MATCH(AD345,'3 - Land Summary'!$C$21:$C$120,0))),\"\")","v":""}]
[null,{"$f":"IFERROR(INDEX('3 - Land Summary'!$B$21:$B$120,(MATCH('4 - Species Breakdown'!$V346,'3 - Land Summary'!$C$21:$C$120,0))),\"\")","v":""},null,null,{"$f":"IF(OR(COUNTIF('Look Up Data'!$D$149:$D$203,D346),COUNTIF('Look Up Data'!$D$149:$D$203,AE346)),\"YES\",\"NO\")","v":"NO"},null,null,{"$f":"IFERROR(INDEX('3 - Land Summary'!$G$21:$G$120,(MATCH(C346,'3 - Land Summary'!$C$21:$C$120,0))),\"\")","v":""},{"$f":"IFERROR(INDEX('3 - Land Summary'!$I$21:$I$120,(MATCH(C346,'3 - Land Summary'!$C$21:$C$120,0))),\"\")","v":""},"","",null,null,null,{"$f":"IFERROR(VLOOKUP(D346,'Species List'!$D$10:$E$46,2,FALSE)*J346,\"\")","v":""},{"$f":"IFERROR(VLOOKUP(D346,'Species List'!$D$51:$E$89,2,FALSE)*J346,\"\")","v":""},{"$f":"IFERROR(VLOOKUP(D346,'Species List'!$D$95:$E$102,2,FALSE)*J346,\"\")","v":""},{"$f":"IFERROR(VLOOKUP(D346,'Species List'!$I$10:$J$11,2,FALSE)*J346,\"\")","v":""},{"$f":"IFERROR(VLOOKUP(D346,'Species List'!$I$16:$J$61,2,FALSE)*J346,\"\")","v":""},{"$f":"IFERROR(VLOOKUP(D346,'Species List'!$I$66:$J$66,2,FALSE)*J346,\"\")","v":""},{"$f":"IFERROR(VLOOKUP(D346,'Species List'!$I$71:$J$82,2,FALSE)*J346,\"\")","v":""},0,null,null,null,null,null,null,{"$f":"IFERROR(INDEX('3 - Land Summary'!$B$21:$B$120,(MATCH(AD346,'3 - Land Summary'!$C$21:$C$120,0))),\"\")","v":""}]
[null,{"$f":"IFERROR(INDEX('3 - Land Summary'!$B$21:$B$120,(MATCH('4 - Species Breakdown'!$V347,'3 - Land Summary'!$C$21:$C$120,0))),\"\")","v":""},null,null,{"$f":"IF(OR(COUNTIF('Look Up Data'!$D$149:$D$203,D347),COUNTIF('Look Up Data'!$D$149:$D$203,AE347)),\"YES\",\"NO\")","v":"NO"},null,null,{"$f":"IFERROR(INDEX('3 - Land Summary'!$G$21:$G$120,(MATCH(C347,'3 - Land Summary'!$C$21:$C$120,0))),\"\")","v":""},{"$f":"IFERROR(INDEX('3 - Land Summary'!$I$21:$I$120,(MATCH(C347,'3 - Land Summary'!$C$21:$C$120,0))),\"\")","v":""},"","",null,null,null,{"$f":"IFERROR(VLOOKUP(D347,'Species List'!$D$10:$E$46,2,FALSE)*J347,\"\")","v":""},{"$f":"IFERROR(VLOOKUP(D347,'Species List'!$D$51:$E$89,2,FALSE)*J347,\"\")","v":""},{"$f":"IFERROR(VLOOKUP(D347,'Species List'!$D$95:$E$102,2,FALSE)*J347,\"\")","v":""},{"$f":"IFERROR(VLOOKUP(D347,'Species List'!$I$10:$J$11,2,FALSE)*J347,\"\")","v":""},{"$f":"IFERROR(VLOOKUP(D347,'Species List'!$I$16:$J$61,2,FALSE)*J347,\"\")","v":""},{"$f":"IFERROR(VLOOKUP(D347,'Species List'!$I$66:$J$66,2,FALSE)*J347,\"\")","v":""},{"$f":"IFERROR(VLOOKUP(D347,'Species List'!$I$71:$J$82,2,FALSE)*J347,\"\")","v":""},0,null,null,null,null,null,null,{"$f":"IFERROR(INDEX('3 - Land Summary'!$B$21:$B$120,(MATCH(AD347,'3 - Land Summary'!$C$21:$C$120,0))),\"\")","v":""}]
[null,{"$f":"IFERROR(INDEX('3 - Land Summary'!$B$21:$B$120,(MATCH('4 - Species Breakdown'!$V348,'3 - Land Summary'!$C$21:$C$120,0))),\"\")","v":""},null,null,{"$f":"IF(OR(COUNTIF('Look Up Data'!$D$149:$D$203,D348),COUNTIF('Look Up Data'!$D$149:$D$203,AE348)),\"YES\",\"NO\")","v":"NO"},null,null,{"$f":"IFERROR(INDEX('3 - Land Summary'!$G$21:$G$120,(MATCH(C348,'3 - Land Summary'!$C$21:$C$120,0))),\"\")","v":""},{"$f":"IFERROR(INDEX('3 - Land Summary'!$I$21:$I$120,(MATCH(C348,'3 - Land Summary'!$C$21:$C$120,0))),\"\")","v":""},"","",null,null,null,{"$f":"IFERROR(VLOOKUP(D348,'Species List'!$D$10:$E$46,2,FALSE)*J348,\"\")","v":""},{"$f":"IFERROR(VLOOKUP(D348,'Species List'!$D$51:$E$89,2,FALSE)*J348,\"\")","v":""},{"$f":"IFERROR(VLOOKUP(D348,'Species List'!$D$95:$E$102,2,FALSE)*J348,\"\")","v":""},{"$f":"IFERROR(VLOOKUP(D348,'Species List'!$I$10:$J$11,2,FALSE)*J348,\"\")","v":""},{"$f":"IFERROR(VLOOKUP(D348,'Species List'!$I$16:$J$61,2,FALSE)*J348,\"\")","v":""},{"$f":"IFERROR(VLOOKUP(D348,'Species List'!$I$66:$J$66,2,FALSE)*J348,\"\")","v":""},{"$f":"IFERROR(VLOOKUP(D348,'Species List'!$I$71:$J$82,2,FALSE)*J348,\"\")","v":""},0,null,null,null,null,null,null,{"$f":"IFERROR(INDEX('3 - Land Summary'!$B$21:$B$120,(MATCH(AD348,'3 - Land Summary'!$C$21:$C$120,0))),\"\")","v":""}]
[null,{"$f":"IFERROR(INDEX('3 - Land Summary'!$B$21:$B$120,(MATCH('4 - Species Breakdown'!$V349,'3 - Land Summary'!$C$21:$C$120,0))),\"\")","v":""},null,null,{"$f":"IF(OR(COUNTIF('Look Up Data'!$D$149:$D$203,D349),COUNTIF('Look Up Data'!$D$149:$D$203,AE349)),\"YES\",\"NO\")","v":"NO"},null,null,{"$f":"IFERROR(INDEX('3 - Land Summary'!$G$21:$G$120,(MATCH(C349,'3 - Land Summary'!$C$21:$C$120,0))),\"\")","v":""},{"$f":"IFERROR(INDEX('3 - Land Summary'!$I$21:$I$120,(MATCH(C349,'3 - Land Summary'!$C$21:$C$120,0))),\"\")","v":""},"","",null,null,null,{"$f":"IFERROR(VLOOKUP(D349,'Species List'!$D$10:$E$46,2,FALSE)*J349,\"\")","v":""},{"$f":"IFERROR(VLOOKUP(D349,'Species List'!$D$51:$E$89,2,FALSE)*J349,\"\")","v":""},{"$f":"IFERROR(VLOOKUP(D349,'Species List'!$D$95:$E$102,2,FALSE)*J349,\"\")","v":""},{"$f":"IFERROR(VLOOKUP(D349,'Species List'!$I$10:$J$11,2,FALSE)*J349,\"\")","v":""},{"$f":"IFERROR(VLOOKUP(D349,'Species List'!$I$16:$J$61,2,FALSE)*J349,\"\")","v":""},{"$f":"IFERROR(VLOOKUP(D349,'Species List'!$I$66:$J$66,2,FALSE)*J349,\"\")","v":""},{"$f":"IFERROR(VLOOKUP(D349,'Species List'!$I$71:$J$82,2,FALSE)*J349,\"\")","v":""},0,null,null,null,null,null,null,{"$f":"IFERROR(INDEX('3 - Land Summary'!$B$21:$B$120,(MATCH(AD349,'3 - Land Summary'!$C$21:$C$120,0))),\"\")","v":""}]
[null,{"$f":"IFERROR(INDEX('3 - Land Summary'!$B$21:$B$120,(MATCH('4 - Species Breakdown'!$V350,'3 - Land Summary'!$C$21:$C$120,0))),\"\")","v":""},null,null,{"$f":"IF(OR(COUNTIF('Look Up Data'!$D$149:$D$203,D350),COUNTIF('Look Up Data'!$D$149:$D$203,AE350)),\"YES\",\"NO\")","v":"NO"},null,null,{"$f":"IFERROR(INDEX('3 - Land Summary'!$G$21:$G$120,(MATCH(C350,'3 - Land Summary'!$C$21:$C$120,0))),\"\")","v":""},{"$f":"IFERROR(INDEX('3 - Land Summary'!$I$21:$I$120,(MATCH(C350,'3 - Land Summary'!$C$21:$C$120,0))),\"\")","v":""},"","",null,null,null,{"$f":"IFERROR(VLOOKUP(D350,'Species List'!$D$10:$E$46,2,FALSE)*J350,\"\")","v":""},{"$f":"IFERROR(VLOOKUP(D350,'Species List'!$D$51:$E$89,2,FALSE)*J350,\"\")","v":""},{"$f":"IFERROR(VLOOKUP(D350,'Species List'!$D$95:$E$102,2,FALSE)*J350,\"\")","v":""},{"$f":"IFERROR(VLOOKUP(D350,'Species List'!$I$10:$J$11,2,FALSE)*J350,\"\")","v":""},{"$f":"IFERROR(VLOOKUP(D350,'Species List'!$I$16:$J$61,2,FALSE)*J350,\"\")","v":""},{"$f":"IFERROR(VLOOKUP(D350,'Species List'!$I$66:$J$66,2,FALSE)*J350,\"\")","v":""},{"$f":"IFERROR(VLOOKUP(D350,'Species List'!$I$71:$J$82,2,FALSE)*J350,\"\")","v":""},0,null,null,null,null,null,null,{"$f":"IFERROR(INDEX('3 - Land Summary'!$B$21:$B$120,(MATCH(AD350,'3 - Land Summary'!$C$21:$C$120,0))),\"\")","v":""}]
[null,{"$f":"IFERROR(INDEX('3 - Land Summary'!$B$21:$B$120,(MATCH('4 - Species Breakdown'!$V351,'3 - Land Summary'!$C$21:$C$120,0))),\"\")","v":""},null,null,{"$f":"IF(OR(COUNTIF('Look Up Data'!$D$149:$D$203,D351),COUNTIF('Look Up Data'!$D$149:$D$203,AE351)),\"YES\",\"NO\")","v":"NO"},null,null,{"$f":"IFERROR(INDEX('3 - Land Summary'!$G$21:$G$120,(MATCH(C351,'3 - Land Summary'!$C$21:$C$120,0))),\"\")","v":""},{"$f":"IFERROR(INDEX('3 - Land Summary'!$I$21:$I$120,(MATCH(C351,'3 - Land Summary'!$C$21:$C$120,0))),\"\")","v":""},{"$f":"IFERROR(((H351-I351)*F351)/100,\"\")","v":""},"",null,null,null,{"$f":"IFERROR(VLOOKUP(D351,'Species List'!$D$10:$E$46,2,FALSE)*J351,\"\")","v":""},{"$f":"IFERROR(VLOOKUP(D351,'Species List'!$D$51:$E$89,2,FALSE)*J351,\"\")","v":""},{"$f":"IFERROR(VLOOKUP(D351,'Species List'!$D$95:$E$102,2,FALSE)*J351,\"\")","v":""},{"$f":"IFERROR(VLOOKUP(D351,'Species List'!$I$10:$J$11,2,FALSE)*J351,\"\")","v":""},{"$f":"IFERROR(VLOOKUP(D351,'Species List'!$I$16:$J$61,2,FALSE)*J351,\"\")","v":""},{"$f":"IFERROR(VLOOKUP(D351,'Species List'!$I$66:$J$66,2,FALSE)*J351,\"\")","v":""},{"$f":"IFERROR(VLOOKUP(D351,'Species List'!$I$71:$J$82,2,FALSE)*J351,\"\")","v":""},{"$f":"C351","v":0},null,null,null,null,null,null,{"$f":"IFERROR(INDEX('3 - Land Summary'!$B$21:$B$120,(MATCH(AD351,'3 - Land Summary'!$C$21:$C$120,0))),\"\")","v":""}]
[null,{"$f":"IFERROR(INDEX('3 - Land Summary'!$B$21:$B$120,(MATCH('4 - Species Breakdown'!$V352,'3 - Land Summary'!$C$21:$C$120,0))),\"\")","v":""},null,null,{"$f":"IF(OR(COUNTIF('Look Up Data'!$D$149:$D$203,D352),COUNTIF('Look Up Data'!$D$149:$D$203,AE352)),\"YES\",\"NO\")","v":"NO"},null,null,{"$f":"IFERROR(INDEX('3 - Land Summary'!$G$21:$G$120,(MATCH(C352,'3 - Land Summary'!$C$21:$C$120,0))),\"\")","v":""},{"$f":"IFERROR(INDEX('3 - Land Summary'!$I$21:$I$120,(MATCH(C352,'3 - Land Summary'!$C$21:$C$120,0))),\"\")","v":""},"",{"$f":"IFERROR(ROUND(J352*G352,0),\"\")","v":""},null,null,null,{"$f":"IFERROR(VLOOKUP(D352,'Species List'!$D$10:$E$46,2,FALSE)*J352,\"\")","v":""},{"$f":"IFERROR(VLOOKUP(D352,'Species List'!$D$51:$E$89,2,FALSE)*J352,\"\")","v":""},{"$f":"IFERROR(VLOOKUP(D352,'Species List'!$D$95:$E$102,2,FALSE)*J352,\"\")","v":""},{"$f":"IFERROR(VLOOKUP(D352,'Species List'!$I$10:$J$11,2,FALSE)*J352,\"\")","v":""},{"$f":"IFERROR(VLOOKUP(D352,'Species List'!$I$16:$J$61,2,FALSE)*J352,\"\")","v":""},{"$f":"IFERROR(VLOOKUP(D352,'Species List'!$I$66:$J$66,2,FALSE)*J352,\"\")","v":""},{"$f":"IFERROR(VLOOKUP(D352,'Species List'!$I$71:$J$82,2,FALSE)*J352,\"\")","v":""},0,null,null,null,null,null,null,{"$f":"IFERROR(INDEX('3 - Land Summary'!$B$21:$B$120,(MATCH(AD352,'3 - Land Summary'!$C$21:$C$120,0))),\"\")","v":""}]
[null,{"$f":"IFERROR(INDEX('3 - Land Summary'!$B$21:$B$120,(MATCH('4 - Species Breakdown'!$V353,'3 - Land Summary'!$C$21:$C$120,0))),\"\")","v":""},null,null,{"$f":"IF(OR(COUNTIF('Look Up Data'!$D$149:$D$203,D353),COUNTIF('Look Up Data'!$D$149:$D$203,AE353)),\"YES\",\"NO\")","v":"NO"},null,null,{"$f":"IFERROR(INDEX('3 - Land Summary'!$G$21:$G$120,(MATCH(C353,'3 - Land Summary'!$C$21:$C$120,0))),\"\")","v":""},{"$f":"IFERROR(INDEX('3 - Land Summary'!$I$21:$I$120,(MATCH(C353,'3 - Land Summary'!$C$21:$C$120,0))),\"\")","v":""},"","",null,null,null,{"$f":"IFERROR(VLOOKUP(D353,'Species List'!$D$10:$E$46,2,FALSE)*J353,\"\")","v":""},{"$f":"IFERROR(VLOOKUP(D353,'Species List'!$D$51:$E$89,2,FALSE)*J353,\"\")","v":""},{"$f":"IFERROR(VLOOKUP(D353,'Species List'!$D$95:$E$102,2,FALSE)*J353,\"\")","v":""},{"$f":"IFERROR(VLOOKUP(D353,'Species List'!$I$10:$J$11,2,FALSE)*J353,\"\")","v":""},{"$f":"IFERROR(VLOOKUP(D353,'Species List'!$I$16:$J$61,2,FALSE)*J353,\"\")","v":""},{"$f":"IFERROR(VLOOKUP(D353,'Species List'!$I$66:$J$66,2,FALSE)*J353,\"\")","v":""},{"$f":"IFERROR(VLOOKUP(D353,'Species List'!$I$71:$J$82,2,FALSE)*J353,\"\")","v":""},0,null,null,null,null,null,null,{"$f":"IFERROR(INDEX('3 - Land Summary'!$B$21:$B$120,(MATCH(AD353,'3 - Land Summary'!$C$21:$C$120,0))),\"\")","v":""}]
[null,{"$f":"IFERROR(INDEX('3 - Land Summary'!$B$21:$B$120,(MATCH('4 - Species Breakdown'!$V354,'3 - Land Summary'!$C$21:$C$120,0))),\"\")","v":""},null,null,{"$f":"IF(OR(COUNTIF('Look Up Data'!$D$149:$D$203,D354),COUNTIF('Look Up Data'!$D$149:$D$203,AE354)),\"YES\",\"NO\")","v":"NO"},null,null,{"$f":"IFERROR(INDEX('3 - Land Summary'!$G$21:$G$120,(MATCH(C354,'3 - Land Summary'!$C$21:$C$120,0))),\"\")","v":""},{"$f":"IFERROR(INDEX('3 - Land Summary'!$I$21:$I$120,(MATCH(C354,'3 - Land Summary'!$C$21:$C$120,0))),\"\")","v":""},"","",null,null,null,{"$f":"IFERROR(VLOOKUP(D354,'Species List'!$D$10:$E$46,2,FALSE)*J354,\"\")","v":""},{"$f":"IFERROR(VLOOKUP(D354,'Species List'!$D$51:$E$89,2,FALSE)*J354,\"\")","v":""},{"$f":"IFERROR(VLOOKUP(D354,'Species List'!$D$95:$E$102,2,FALSE)*J354,\"\")","v":""},{"$f":"IFERROR(VLOOKUP(D354,'Species List'!$I$10:$J$11,2,FALSE)*J354,\"\")","v":""},{"$f":"IFERROR(VLOOKUP(D354,'Species List'!$I$16:$J$61,2,FALSE)*J354,\"\")","v":""},{"$f":"IFERROR(VLOOKUP(D354,'Species List'!$I$66:$J$66,2,FALSE)*J354,\"\")","v":""},{"$f":"IFERROR(VLOOKUP(D354,'Species List'!$I$71:$J$82,2,FALSE)*J354,\"\")","v":""},0,null,null,null,null,null,null,{"$f":"IFERROR(INDEX('3 - Land Summary'!$B$21:$B$120,(MATCH(AD354,'3 - Land Summary'!$C$21:$C$120,0))),\"\")","v":""}]
[null,{"$f":"IFERROR(INDEX('3 - Land Summary'!$B$21:$B$120,(MATCH('4 - Species Breakdown'!$V355,'3 - Land Summary'!$C$21:$C$120,0))),\"\")","v":""},null,null,{"$f":"IF(OR(COUNTIF('Look Up Data'!$D$149:$D$203,D355),COUNTIF('Look Up Data'!$D$149:$D$203,AE355)),\"YES\",\"NO\")","v":"NO"},null,null,{"$f":"IFERROR(INDEX('3 - Land Summary'!$G$21:$G$120,(MATCH(C355,'3 - Land Summary'!$C$21:$C$120,0))),\"\")","v":""},{"$f":"IFERROR(INDEX('3 - Land Summary'!$I$21:$I$120,(MATCH(C355,'3 - Land Summary'!$C$21:$C$120,0))),\"\")","v":""},"","",null,null,null,{"$f":"IFERROR(VLOOKUP(D355,'Species List'!$D$10:$E$46,2,FALSE)*J355,\"\")","v":""},{"$f":"IFERROR(VLOOKUP(D355,'Species List'!$D$51:$E$89,2,FALSE)*J355,\"\")","v":""},{"$f":"IFERROR(VLOOKUP(D355,'Species List'!$D$95:$E$102,2,FALSE)*J355,\"\")","v":""},{"$f":"IFERROR(VLOOKUP(D355,'Species List'!$I$10:$J$11,2,FALSE)*J355,\"\")","v":""},{"$f":"IFERROR(VLOOKUP(D355,'Species List'!$I$16:$J$61,2,FALSE)*J355,\"\")","v":""},{"$f":"IFERROR(VLOOKUP(D355,'Species List'!$I$66:$J$66,2,FALSE)*J355,\"\")","v":""},{"$f":"IFERROR(VLOOKUP(D355,'Species List'!$I$71:$J$82,2,FALSE)*J355,\"\")","v":""},0,null,null,null,null,null,null,{"$f":"IFERROR(INDEX('3 - Land Summary'!$B$21:$B$120,(MATCH(AD355,'3 - Land Summary'!$C$21:$C$120,0))),\"\")","v":""}]
[null,{"$f":"IFERROR(INDEX('3 - Land Summary'!$B$21:$B$120,(MATCH('4 - Species Breakdown'!$V356,'3 - Land Summary'!$C$21:$C$120,0))),\"\")","v":""},null,null,{"$f":"IF(OR(COUNTIF('Look Up Data'!$D$149:$D$203,D356),COUNTIF('Look Up Data'!$D$149:$D$203,AE356)),\"YES\",\"NO\")","v":"NO"},null,null,{"$f":"IFERROR(INDEX('3 - Land Summary'!$G$21:$G$120,(MATCH(C356,'3 - Land Summary'!$C$21:$C$120,0))),\"\")","v":""},{"$f":"IFERROR(INDEX('3 - Land Summary'!$I$21:$I$120,(MATCH(C356,'3 - Land Summary'!$C$21:$C$120,0))),\"\")","v":""},"","",null,null,null,{"$f":"IFERROR(VLOOKUP(D356,'Species List'!$D$10:$E$46,2,FALSE)*J356,\"\")","v":""},{"$f":"IFERROR(VLOOKUP(D356,'Species List'!$D$51:$E$89,2,FALSE)*J356,\"\")","v":""},{"$f":"IFERROR(VLOOKUP(D356,'Species List'!$D$95:$E$102,2,FALSE)*J356,\"\")","v":""},{"$f":"IFERROR(VLOOKUP(D356,'Species List'!$I$10:$J$11,2,FALSE)*J356,\"\")","v":""},{"$f":"IFERROR(VLOOKUP(D356,'Species List'!$I$16:$J$61,2,FALSE)*J356,\"\")","v":""},{"$f":"IFERROR(VLOOKUP(D356,'Species List'!$I$66:$J$66,2,FALSE)*J356,\"\")","v":""},{"$f":"IFERROR(VLOOKUP(D356,'Species List'!$I$71:$J$82,2,FALSE)*J356,\"\")","v":""},0,null,null,null,null,null,null,{"$f":"IFERROR(INDEX('3 - Land Summary'!$B$21:$B$120,(MATCH(AD356,'3 - Land Summary'!$C$21:$C$120,0))),\"\")","v":""}]
[null,{"$f":"IFERROR(INDEX('3 - Land Summary'!$B$21:$B$120,(MATCH('4 - Species Breakdown'!$V357,'3 - Land Summary'!$C$21:$C$120,0))),\"\")","v":""},null,null,{"$f":"IF(OR(COUNTIF('Look Up Data'!$D$149:$D$203,D357),COUNTIF('Look Up Data'!$D$149:$D$203,AE357)),\"YES\",\"NO\")","v":"NO"},null,null,{"$f":"IFERROR(INDEX('3 - Land Summary'!$G$21:$G$120,(MATCH(C357,'3 - Land Summary'!$C$21:$C$120,0))),\"\")","v":""},{"$f":"IFERROR(INDEX('3 - Land Summary'!$I$21:$I$120,(MATCH(C357,'3 - Land Summary'!$C$21:$C$120,0))),\"\")","v":""},"","",null,null,null,{"$f":"IFERROR(VLOOKUP(D357,'Species List'!$D$10:$E$46,2,FALSE)*J357,\"\")","v":""},{"$f":"IFERROR(VLOOKUP(D357,'Species List'!$D$51:$E$89,2,FALSE)*J357,\"\")","v":""},{"$f":"IFERROR(VLOOKUP(D357,'Species List'!$D$95:$E$102,2,FALSE)*J357,\"\")","v":""},{"$f":"IFERROR(VLOOKUP(D357,'Species List'!$I$10:$J$11,2,FALSE)*J357,\"\")","v":""},{"$f":"IFERROR(VLOOKUP(D357,'Species List'!$I$16:$J$61,2,FALSE)*J357,\"\")","v":""},{"$f":"IFERROR(VLOOKUP(D357,'Species List'!$I$66:$J$66,2,FALSE)*J357,\"\")","v":""},{"$f":"IFERROR(VLOOKUP(D357,'Species List'!$I$71:$J$82,2,FALSE)*J357,\"\")","v":""},0,null,null,null,null,null,null,{"$f":"IFERROR(INDEX('3 - Land Summary'!$B$21:$B$120,(MATCH(AD357,'3 - Land Summary'!$C$21:$C$120,0))),\"\")","v":""}]
[null,{"$f":"IFERROR(INDEX('3 - Land Summary'!$B$21:$B$120,(MATCH('4 - Species Breakdown'!$V358,'3 - Land Summary'!$C$21:$C$120,0))),\"\")","v":""},null,null,{"$f":"IF(OR(COUNTIF('Look Up Data'!$D$149:$D$203,D358),COUNTIF('Look Up Data'!$D$149:$D$203,AE358)),\"YES\",\"NO\")","v":"NO"},null,null,{"$f":"IFERROR(INDEX('3 - Land Summary'!$G$21:$G$120,(MATCH(C358,'3 - Land Summary'!$C$21:$C$120,0))),\"\")","v":""},{"$f":"IFERROR(INDEX('3 - Land Summary'!$I$21:$I$120,(MATCH(C358,'3 - Land Summary'!$C$21:$C$120,0))),\"\")","v":""},"","",null,null,null,{"$f":"IFERROR(VLOOKUP(D358,'Species List'!$D$10:$E$46,2,FALSE)*J358,\"\")","v":""},{"$f":"IFERROR(VLOOKUP(D358,'Species List'!$D$51:$E$89,2,FALSE)*J358,\"\")","v":""},{"$f":"IFERROR(VLOOKUP(D358,'Species List'!$D$95:$E$102,2,FALSE)*J358,\"\")","v":""},{"$f":"IFERROR(VLOOKUP(D358,'Species List'!$I$10:$J$11,2,FALSE)*J358,\"\")","v":""},{"$f":"IFERROR(VLOOKUP(D358,'Species List'!$I$16:$J$61,2,FALSE)*J358,\"\")","v":""},{"$f":"IFERROR(VLOOKUP(D358,'Species List'!$I$66:$J$66,2,FALSE)*J358,\"\")","v":""},{"$f":"IFERROR(VLOOKUP(D358,'Species List'!$I$71:$J$82,2,FALSE)*J358,\"\")","v":""},0,null,null,null,null,null,null,{"$f":"IFERROR(INDEX('3 - Land Summary'!$B$21:$B$120,(MATCH(AD358,'3 - Land Summary'!$C$21:$C$120,0))),\"\")","v":""}]
[null,{"$f":"IFERROR(INDEX('3 - Land Summary'!$B$21:$B$120,(MATCH('4 - Species Breakdown'!$V359,'3 - Land Summary'!$C$21:$C$120,0))),\"\")","v":""},null,null,{"$f":"IF(OR(COUNTIF('Look Up Data'!$D$149:$D$203,D359),COUNTIF('Look Up Data'!$D$149:$D$203,AE359)),\"YES\",\"NO\")","v":"NO"},null,null,{"$f":"IFERROR(INDEX('3 - Land Summary'!$G$21:$G$120,(MATCH(C359,'3 - Land Summary'!$C$21:$C$120,0))),\"\")","v":""},{"$f":"IFERROR(INDEX('3 - Land Summary'!$I$21:$I$120,(MATCH(C359,'3 - Land Summary'!$C$21:$C$120,0))),\"\")","v":""},"","",null,null,null,{"$f":"IFERROR(VLOOKUP(D359,'Species List'!$D$10:$E$46,2,FALSE)*J359,\"\")","v":""},{"$f":"IFERROR(VLOOKUP(D359,'Species List'!$D$51:$E$89,2,FALSE)*J359,\"\")","v":""},{"$f":"IFERROR(VLOOKUP(D359,'Species List'!$D$95:$E$102,2,FALSE)*J359,\"\")","v":""},{"$f":"IFERROR(VLOOKUP(D359,'Species List'!$I$10:$J$11,2,FALSE)*J359,\"\")","v":""},{"$f":"IFERROR(VLOOKUP(D359,'Species List'!$I$16:$J$61,2,FALSE)*J359,\"\")","v":""},{"$f":"IFERROR(VLOOKUP(D359,'Species List'!$I$66:$J$66,2,FALSE)*J359,\"\")","v":""},{"$f":"IFERROR(VLOOKUP(D359,'Species List'!$I$71:$J$82,2,FALSE)*J359,\"\")","v":""},0,null,null,null,null,null,null,{"$f":"IFERROR(INDEX('3 - Land Summary'!$B$21:$B$120,(MATCH(AD359,'3 - Land Summary'!$C$21:$C$120,0))),\"\")","v":""}]
[null,{"$f":"IFERROR(INDEX('3 - Land Summary'!$B$21:$B$120,(MATCH('4 - Species Breakdown'!$V360,'3 - Land Summary'!$C$21:$C$120,0))),\"\")","v":""},null,null,{"$f":"IF(OR(COUNTIF('Look Up Data'!$D$149:$D$203,D360),COUNTIF('Look Up Data'!$D$149:$D$203,AE360)),\"YES\",\"NO\")","v":"NO"},null,null,{"$f":"IFERROR(INDEX('3 - Land Summary'!$G$21:$G$120,(MATCH(C360,'3 - Land Summary'!$C$21:$C$120,0))),\"\")","v":""},{"$f":"IFERROR(INDEX('3 - Land Summary'!$I$21:$I$120,(MATCH(C360,'3 - Land Summary'!$C$21:$C$120,0))),\"\")","v":""},"","",null,null,null,{"$f":"IFERROR(VLOOKUP(D360,'Species List'!$D$10:$E$46,2,FALSE)*J360,\"\")","v":""},{"$f":"IFERROR(VLOOKUP(D360,'Species List'!$D$51:$E$89,2,FALSE)*J360,\"\")","v":""},{"$f":"IFERROR(VLOOKUP(D360,'Species List'!$D$95:$E$102,2,FALSE)*J360,\"\")","v":""},{"$f":"IFERROR(VLOOKUP(D360,'Species List'!$I$10:$J$11,2,FALSE)*J360,\"\")","v":""},{"$f":"IFERROR(VLOOKUP(D360,'Species List'!$I$16:$J$61,2,FALSE)*J360,\"\")","v":""},{"$f":"IFERROR(VLOOKUP(D360,'Species List'!$I$66:$J$66,2,FALSE)*J360,\"\")","v":""},{"$f":"IFERROR(VLOOKUP(D360,'Species List'!$I$71:$J$82,2,FALSE)*J360,\"\")","v":""},0,null,null,null,null,null,null,{"$f":"IFERROR(INDEX('3 - Land Summary'!$B$21:$B$120,(MATCH(AD360,'3 - Land Summary'!$C$21:$C$120,0))),\"\")","v":""}]
[null,{"$f":"IFERROR(INDEX('3 - Land Summary'!$B$21:$B$120,(MATCH('4 - Species Breakdown'!$V361,'3 - Land Summary'!$C$21:$C$120,0))),\"\")","v":""},null,null,{"$f":"IF(OR(COUNTIF('Look Up Data'!$D$149:$D$203,D361),COUNTIF('Look Up Data'!$D$149:$D$203,AE361)),\"YES\",\"NO\")","v":"NO"},null,null,{"$f":"IFERROR(INDEX('3 - Land Summary'!$G$21:$G$120,(MATCH(C361,'3 - Land Summary'!$C$21:$C$120,0))),\"\")","v":""},{"$f":"IFERROR(INDEX('3 - Land Summary'!$I$21:$I$120,(MATCH(C361,'3 - Land Summary'!$C$21:$C$120,0))),\"\")","v":""},"","",null,null,null,{"$f":"IFERROR(VLOOKUP(D361,'Species List'!$D$10:$E$46,2,FALSE)*J361,\"\")","v":""},{"$f":"IFERROR(VLOOKUP(D361,'Species List'!$D$51:$E$89,2,FALSE)*J361,\"\")","v":""},{"$f":"IFERROR(VLOOKUP(D361,'Species List'!$D$95:$E$102,2,FALSE)*J361,\"\")","v":""},{"$f":"IFERROR(VLOOKUP(D361,'Species List'!$I$10:$J$11,2,FALSE)*J361,\"\")","v":""},{"$f":"IFERROR(VLOOKUP(D361,'Species List'!$I$16:$J$61,2,FALSE)*J361,\"\")","v":""},{"$f":"IFERROR(VLOOKUP(D361,'Species List'!$I$66:$J$66,2,FALSE)*J361,\"\")","v":""},{"$f":"IFERROR(VLOOKUP(D361,'Species List'!$I$71:$J$82,2,FALSE)*J361,\"\")","v":""},0,null,null,null,null,null,null,{"$f":"IFERROR(INDEX('3 - Land Summary'!$B$21:$B$120,(MATCH(AD361,'3 - Land Summary'!$C$21:$C$120,0))),\"\")","v":""}]
[null,{"$f":"IFERROR(INDEX('3 - Land Summary'!$B$21:$B$120,(MATCH('4 - Species Breakdown'!$V362,'3 - Land Summary'!$C$21:$C$120,0))),\"\")","v":""},null,null,{"$f":"IF(OR(COUNTIF('Look Up Data'!$D$149:$D$203,D362),COUNTIF('Look Up Data'!$D$149:$D$203,AE362)),\"YES\",\"NO\")","v":"NO"},null,null,{"$f":"IFERROR(INDEX('3 - Land Summary'!$G$21:$G$120,(MATCH(C362,'3 - Land Summary'!$C$21:$C$120,0))),\"\")","v":""},{"$f":"IFERROR(INDEX('3 - Land Summary'!$I$21:$I$120,(MATCH(C362,'3 - Land Summary'!$C$21:$C$120,0))),\"\")","v":""},"","",null,null,null,{"$f":"IFERROR(VLOOKUP(D362,'Species List'!$D$10:$E$46,2,FALSE)*J362,\"\")","v":""},{"$f":"IFERROR(VLOOKUP(D362,'Species List'!$D$51:$E$89,2,FALSE)*J362,\"\")","v":""},{"$f":"IFERROR(VLOOKUP(D362,'Species List'!$D$95:$E$102,2,FALSE)*J362,\"\")","v":""},{"$f":"IFERROR(VLOOKUP(D362,'Species List'!$I$10:$J$11,2,FALSE)*J362,\"\")","v":""},{"$f":"IFERROR(VLOOKUP(D362,'Species List'!$I$16:$J$61,2,FALSE)*J362,\"\")","v":""},{"$f":"IFERROR(VLOOKUP(D362,'Species List'!$I$66:$J$66,2,FALSE)*J362,\"\")","v":""},{"$f":"IFERROR(VLOOKUP(D362,'Species List'!$I$71:$J$82,2,FALSE)*J362,\"\")","v":""},0,null,null,null,null,null,null,{"$f":"IFERROR(INDEX('3 - Land Summary'!$B$21:$B$120,(MATCH(AD362,'3 - Land Summary'!$C$21:$C$120,0))),\"\")","v":""}]
[null,{"$f":"IFERROR(INDEX('3 - Land Summary'!$B$21:$B$120,(MATCH('4 - Species Breakdown'!$V363,'3 - Land Summary'!$C$21:$C$120,0))),\"\")","v":""},null,null,{"$f":"IF(OR(COUNTIF('Look Up Data'!$D$149:$D$203,D363),COUNTIF('Look Up Data'!$D$149:$D$203,AE363)),\"YES\",\"NO\")","v":"NO"},null,null,{"$f":"IFERROR(INDEX('3 - Land Summary'!$G$21:$G$120,(MATCH(C363,'3 - Land Summary'!$C$21:$C$120,0))),\"\")","v":""},{"$f":"IFERROR(INDEX('3 - Land Summary'!$I$21:$I$120,(MATCH(C363,'3 - Land Summary'!$C$21:$C$120,0))),\"\")","v":""},"","",null,null,null,{"$f":"IFERROR(VLOOKUP(D363,'Species List'!$D$10:$E$46,2,FALSE)*J363,\"\")","v":""},{"$f":"IFERROR(VLOOKUP(D363,'Species List'!$D$51:$E$89,2,FALSE)*J363,\"\")","v":""},{"$f":"IFERROR(VLOOKUP(D363,'Species List'!$D$95:$E$102,2,FALSE)*J363,\"\")","v":""},{"$f":"IFERROR(VLOOKUP(D363,'Species List'!$I$10:$J$11,2,FALSE)*J363,\"\")","v":""},{"$f":"IFERROR(VLOOKUP(D363,'Species List'!$I$16:$J$61,2,FALSE)*J363,\"\")","v":""},{"$f":"IFERROR(VLOOKUP(D363,'Species List'!$I$66:$J$66,2,FALSE)*J363,\"\")","v":""},{"$f":"IFERROR(VLOOKUP(D363,'Species List'!$I$71:$J$82,2,FALSE)*J363,\"\")","v":""},0,null,null,null,null,null,null,{"$f":"IFERROR(INDEX('3 - Land Summary'!$B$21:$B$120,(MATCH(AD363,'3 - Land Summary'!$C$21:$C$120,0))),\"\")","v":""}]
[null,{"$f":"IFERROR(INDEX('3 - Land Summary'!$B$21:$B$120,(MATCH('4 - Species Breakdown'!$V364,'3 - Land Summary'!$C$21:$C$120,0))),\"\")","v":""},null,null,{"$f":"IF(OR(COUNTIF('Look Up Data'!$D$149:$D$203,D364),COUNTIF('Look Up Data'!$D$149:$D$203,AE364)),\"YES\",\"NO\")","v":"NO"},null,null,{"$f":"IFERROR(INDEX('3 - Land Summary'!$G$21:$G$120,(MATCH(C364,'3 - Land Summary'!$C$21:$C$120,0))),\"\")","v":""},{"$f":"IFERROR(INDEX('3 - Land Summary'!$I$21:$I$120,(MATCH(C364,'3 - Land Summary'!$C$21:$C$120,0))),\"\")","v":""},"","",null,null,null,{"$f":"IFERROR(VLOOKUP(D364,'Species List'!$D$10:$E$46,2,FALSE)*J364,\"\")","v":""},{"$f":"IFERROR(VLOOKUP(D364,'Species List'!$D$51:$E$89,2,FALSE)*J364,\"\")","v":""},{"$f":"IFERROR(VLOOKUP(D364,'Species List'!$D$95:$E$102,2,FALSE)*J364,\"\")","v":""},{"$f":"IFERROR(VLOOKUP(D364,'Species List'!$I$10:$J$11,2,FALSE)*J364,\"\")","v":""},{"$f":"IFERROR(VLOOKUP(D364,'Species List'!$I$16:$J$61,2,FALSE)*J364,\"\")","v":""},{"$f":"IFERROR(VLOOKUP(D364,'Species List'!$I$66:$J$66,2,FALSE)*J364,\"\")","v":""},{"$f":"IFERROR(VLOOKUP(D364,'Species List'!$I$71:$J$82,2,FALSE)*J364,\"\")","v":""},0,null,null,null,null,null,null,{"$f":"IFERROR(INDEX('3 - Land Summary'!$B$21:$B$120,(MATCH(AD364,'3 - Land Summary'!$C$21:$C$120,0))),\"\")","v":""}]
[null,{"$f":"IFERROR(INDEX('3 - Land Summary'!$B$21:$B$120,(MATCH('4 - Species Breakdown'!$V365,'3 - Land Summary'!$C$21:$C$120,0))),\"\")","v":""},null,null,{"$f":"IF(OR(COUNTIF('Look Up Data'!$D$149:$D$203,D365),COUNTIF('Look Up Data'!$D$149:$D$203,AE365)),\"YES\",\"NO\")","v":"NO"},null,null,{"$f":"IFERROR(INDEX('3 - Land Summary'!$G$21:$G$120,(MATCH(C365,'3 - Land Summary'!$C$21:$C$120,0))),\"\")","v":""},{"$f":"IFERROR(INDEX('3 - Land Summary'!$I$21:$I$120,(MATCH(C365,'3 - Land Summary'!$C$21:$C$120,0))),\"\")","v":""},"","",null,null,null,{"$f":"IFERROR(VLOOKUP(D365,'Species List'!$D$10:$E$46,2,FALSE)*J365,\"\")","v":""},{"$f":"IFERROR(VLOOKUP(D365,'Species List'!$D$51:$E$89,2,FALSE)*J365,\"\")","v":""},{"$f":"IFERROR(VLOOKUP(D365,'Species List'!$D$95:$E$102,2,FALSE)*J365,\"\")","v":""},{"$f":"IFERROR(VLOOKUP(D365,'Species List'!$I$10:$J$11,2,FALSE)*J365,\"\")","v":""},{"$f":"IFERROR(VLOOKUP(D365,'Species List'!$I$16:$J$61,2,FALSE)*J365,\"\")","v":""},{"$f":"IFERROR(VLOOKUP(D365,'Species List'!$I$66:$J$66,2,FALSE)*J365,\"\")","v":""},{"$f":"IFERROR(VLOOKUP(D365,'Species List'!$I$71:$J$82,2,FALSE)*J365,\"\")","v":""},0,null,null,null,null,null,null,{"$f":"IFERROR(INDEX('3 - Land Summary'!$B$21:$B$120,(MATCH(AD365,'3 - Land Summary'!$C$21:$C$120,0))),\"\")","v":""}]
[null,{"$f":"IFERROR(INDEX('3 - Land Summary'!$B$21:$B$120,(MATCH('4 - Species Breakdown'!$V366,'3 - Land Summary'!$C$21:$C$120,0))),\"\")","v":""},null,null,{"$f":"IF(OR(COUNTIF('Look Up Data'!$D$149:$D$203,D366),COUNTIF('Look Up Data'!$D$149:$D$203,AE366)),\"YES\",\"NO\")","v":"NO"},null,null,{"$f":"IFERROR(INDEX('3 - Land Summary'!$G$21:$G$120,(MATCH(C366,'3 - Land Summary'!$C$21:$C$120,0))),\"\")","v":""},{"$f":"IFERROR(INDEX('3 - Land Summary'!$I$21:$I$120,(MATCH(C366,'3 - Land Summary'!$C$21:$C$120,0))),\"\")","v":""},"","",null,null,null,{"$f":"IFERROR(VLOOKUP(D366,'Species List'!$D$10:$E$46,2,FALSE)*J366,\"\")","v":""},{"$f":"IFERROR(VLOOKUP(D366,'Species List'!$D$51:$E$89,2,FALSE)*J366,\"\")","v":""},{"$f":"IFERROR(VLOOKUP(D366,'Species List'!$D$95:$E$102,2,FALSE)*J366,\"\")","v":""},{"$f":"IFERROR(VLOOKUP(D366,'Species List'!$I$10:$J$11,2,FALSE)*J366,\"\")","v":""},{"$f":"IFERROR(VLOOKUP(D366,'Species List'!$I$16:$J$61,2,FALSE)*J366,\"\")","v":""},{"$f":"IFERROR(VLOOKUP(D366,'Species List'!$I$66:$J$66,2,FALSE)*J366,\"\")","v":""},{"$f":"IFERROR(VLOOKUP(D366,'Species List'!$I$71:$J$82,2,FALSE)*J366,\"\")","v":""},0,null,null,null,null,null,null,{"$f":"IFERROR(INDEX('3 - Land Summary'!$B$21:$B$120,(MATCH(AD366,'3 - Land Summary'!$C$21:$C$120,0))),\"\")","v":""}]
[null,{"$f":"IFERROR(INDEX('3 - Land Summary'!$B$21:$B$120,(MATCH('4 - Species Breakdown'!$V367,'3 - Land Summary'!$C$21:$C$120,0))),\"\")","v":""},null,null,{"$f":"IF(OR(COUNTIF('Look Up Data'!$D$149:$D$203,D367),COUNTIF('Look Up Data'!$D$149:$D$203,AE367)),\"YES\",\"NO\")","v":"NO"},null,null,{"$f":"IFERROR(INDEX('3 - Land Summary'!$G$21:$G$120,(MATCH(C367,'3 - Land Summary'!$C$21:$C$120,0))),\"\")","v":""},{"$f":"IFERROR(INDEX('3 - Land Summary'!$I$21:$I$120,(MATCH(C367,'3 - Land Summary'!$C$21:$C$120,0))),\"\")","v":""},"","",null,null,null,{"$f":"IFERROR(VLOOKUP(D367,'Species List'!$D$10:$E$46,2,FALSE)*J367,\"\")","v":""},{"$f":"IFERROR(VLOOKUP(D367,'Species List'!$D$51:$E$89,2,FALSE)*J367,\"\")","v":""},{"$f":"IFERROR(VLOOKUP(D367,'Species List'!$D$95:$E$102,2,FALSE)*J367,\"\")","v":""},{"$f":"IFERROR(VLOOKUP(D367,'Species List'!$I$10:$J$11,2,FALSE)*J367,\"\")","v":""},{"$f":"IFERROR(VLOOKUP(D367,'Species List'!$I$16:$J$61,2,FALSE)*J367,\"\")","v":""},{"$f":"IFERROR(VLOOKUP(D367,'Species List'!$I$66:$J$66,2,FALSE)*J367,\"\")","v":""},{"$f":"IFERROR(VLOOKUP(D367,'Species List'!$I$71:$J$82,2,FALSE)*J367,\"\")","v":""},0,null,null,null,null,null,null,{"$f":"IFERROR(INDEX('3 - Land Summary'!$B$21:$B$120,(MATCH(AD367,'3 - Land Summary'!$C$21:$C$120,0))),\"\")","v":""}]
[null,{"$f":"IFERROR(INDEX('3 - Land Summary'!$B$21:$B$120,(MATCH('4 - Species Breakdown'!$V368,'3 - Land Summary'!$C$21:$C$120,0))),\"\")","v":""},null,null,{"$f":"IF(OR(COUNTIF('Look Up Data'!$D$149:$D$203,D368),COUNTIF('Look Up Data'!$D$149:$D$203,AE368)),\"YES\",\"NO\")","v":"NO"},null,null,{"$f":"IFERROR(INDEX('3 - Land Summary'!$G$21:$G$120,(MATCH(C368,'3 - Land Summary'!$C$21:$C$120,0))),\"\")","v":""},{"$f":"IFERROR(INDEX('3 - Land Summary'!$I$21:$I$120,(MATCH(C368,'3 - Land Summary'!$C$21:$C$120,0))),\"\")","v":""},"","",null,null,null,{"$f":"IFERROR(VLOOKUP(D368,'Species List'!$D$10:$E$46,2,FALSE)*J368,\"\")","v":""},{"$f":"IFERROR(VLOOKUP(D368,'Species List'!$D$51:$E$89,2,FALSE)*J368,\"\")","v":""},{"$f":"IFERROR(VLOOKUP(D368,'Species List'!$D$95:$E$102,2,FALSE)*J368,\"\")","v":""},{"$f":"IFERROR(VLOOKUP(D368,'Species List'!$I$10:$J$11,2,FALSE)*J368,\"\")","v":""},{"$f":"IFERROR(VLOOKUP(D368,'Species List'!$I$16:$J$61,2,FALSE)*J368,\"\")","v":""},{"$f":"IFERROR(VLOOKUP(D368,'Species List'!$I$66:$J$66,2,FALSE)*J368,\"\")","v":""},{"$f":"IFERROR(VLOOKUP(D368,'Species List'!$I$71:$J$82,2,FALSE)*J368,\"\")","v":""},0,null,null,null,null,null,null,{"$f":"IFERROR(INDEX('3 - Land Summary'!$B$21:$B$120,(MATCH(AD368,'3 - Land Summary'!$C$21:$C$120,0))),\"\")","v":""}]
[null,{"$f":"IFERROR(INDEX('3 - Land Summary'!$B$21:$B$120,(MATCH('4 - Species Breakdown'!$V369,'3 - Land Summary'!$C$21:$C$120,0))),\"\")","v":""},null,null,{"$f":"IF(OR(COUNTIF('Look Up Data'!$D$149:$D$203,D369),COUNTIF('Look Up Data'!$D$149:$D$203,AE369)),\"YES\",\"NO\")","v":"NO"},null,null,{"$f":"IFERROR(INDEX('3 - Land Summary'!$G$21:$G$120,(MATCH(C369,'3 - Land Summary'!$C$21:$C$120,0))),\"\")","v":""},{"$f":"IFERROR(INDEX('3 - Land Summary'!$I$21:$I$120,(MATCH(C369,'3 - Land Summary'!$C$21:$C$120,0))),\"\")","v":""},"","",null,null,null,{"$f":"IFERROR(VLOOKUP(D369,'Species List'!$D$10:$E$46,2,FALSE)*J369,\"\")","v":""},{"$f":"IFERROR(VLOOKUP(D369,'Species List'!$D$51:$E$89,2,FALSE)*J369,\"\")","v":""},{"$f":"IFERROR(VLOOKUP(D369,'Species List'!$D$95:$E$102,2,FALSE)*J369,\"\")","v":""},{"$f":"IFERROR(VLOOKUP(D369,'Species List'!$I$10:$J$11,2,FALSE)*J369,\"\")","v":""},{"$f":"IFERROR(VLOOKUP(D369,'Species List'!$I$16:$J$61,2,FALSE)*J369,\"\")","v":""},{"$f":"IFERROR(VLOOKUP(D369,'Species List'!$I$66:$J$66,2,FALSE)*J369,\"\")","v":""},{"$f":"IFERROR(VLOOKUP(D369,'Species List'!$I$71:$J$82,2,FALSE)*J369,\"\")","v":""},0,null,null,null,null,null,null,{"$f":"IFERROR(INDEX('3 - Land Summary'!$B$21:$B$120,(MATCH(AD369,'3 - Land Summary'!$C$21:$C$120,0))),\"\")","v":""}]
[null,{"$f":"IFERROR(INDEX('3 - Land Summary'!$B$21:$B$120,(MATCH('4 - Species Breakdown'!$V370,'3 - Land Summary'!$C$21:$C$120,0))),\"\")","v":""},null,null,{"$f":"IF(OR(COUNTIF('Look Up Data'!$D$149:$D$203,D370),COUNTIF('Look Up Data'!$D$149:$D$203,AE370)),\"YES\",\"NO\")","v":"NO"},null,null,{"$f":"IFERROR(INDEX('3 - Land Summary'!$G$21:$G$120,(MATCH(C370,'3 - Land Summary'!$C$21:$C$120,0))),\"\")","v":""},{"$f":"IFERROR(INDEX('3 - Land Summary'!$I$21:$I$120,(MATCH(C370,'3 - Land Summary'!$C$21:$C$120,0))),\"\")","v":""},"","",null,null,null,{"$f":"IFERROR(VLOOKUP(D370,'Species List'!$D$10:$E$46,2,FALSE)*J370,\"\")","v":""},{"$f":"IFERROR(VLOOKUP(D370,'Species List'!$D$51:$E$89,2,FALSE)*J370,\"\")","v":""},{"$f":"IFERROR(VLOOKUP(D370,'Species List'!$D$95:$E$102,2,FALSE)*J370,\"\")","v":""},{"$f":"IFERROR(VLOOKUP(D370,'Species List'!$I$10:$J$11,2,FALSE)*J370,\"\")","v":""},{"$f":"IFERROR(VLOOKUP(D370,'Species List'!$I$16:$J$61,2,FALSE)*J370,\"\")","v":""},{"$f":"IFERROR(VLOOKUP(D370,'Species List'!$I$66:$J$66,2,FALSE)*J370,\"\")","v":""},{"$f":"IFERROR(VLOOKUP(D370,'Species List'!$I$71:$J$82,2,FALSE)*J370,\"\")","v":""},0,null,null,null,null,null,null,{"$f":"IFERROR(INDEX('3 - Land Summary'!$B$21:$B$120,(MATCH(AD370,'3 - Land Summary'!$C$21:$C$120,0))),\"\")","v":""}]
[null,{"$f":"IFERROR(INDEX('3 - Land Summary'!$B$21:$B$120,(MATCH('4 - Species Breakdown'!$V371,'3 - Land Summary'!$C$21:$C$120,0))),\"\")","v":""},null,null,{"$f":"IF(OR(COUNTIF('Look Up Data'!$D$149:$D$203,D371),COUNTIF('Look Up Data'!$D$149:$D$203,AE371)),\"YES\",\"NO\")","v":"NO"},null,null,{"$f":"IFERROR(INDEX('3 - Land Summary'!$G$21:$G$120,(MATCH(C371,'3 - Land Summary'!$C$21:$C$120,0))),\"\")","v":""},{"$f":"IFERROR(INDEX('3 - Land Summary'!$I$21:$I$120,(MATCH(C371,'3 - Land Summary'!$C$21:$C$120,0))),\"\")","v":""},"","",null,null,null,{"$f":"IFERROR(VLOOKUP(D371,'Species List'!$D$10:$E$46,2,FALSE)*J371,\"\")","v":""},{"$f":"IFERROR(VLOOKUP(D371,'Species List'!$D$51:$E$89,2,FALSE)*J371,\"\")","v":""},{"$f":"IFERROR(VLOOKUP(D371,'Species List'!$D$95:$E$102,2,FALSE)*J371,\"\")","v":""},{"$f":"IFERROR(VLOOKUP(D371,'Species List'!$I$10:$J$11,2,FALSE)*J371,\"\")","v":""},{"$f":"IFERROR(VLOOKUP(D371,'Species List'!$I$16:$J$61,2,FALSE)*J371,\"\")","v":""},{"$f":"IFERROR(VLOOKUP(D371,'Species List'!$I$66:$J$66,2,FALSE)*J371,\"\")","v":""},{"$f":"IFERROR(VLOOKUP(D371,'Species List'!$I$71:$J$82,2,FALSE)*J371,\"\")","v":""},0,null,null,null,null,null,null,{"$f":"IFERROR(INDEX('3 - Land Summary'!$B$21:$B$120,(MATCH(AD371,'3 - Land Summary'!$C$21:$C$120,0))),\"\")","v":""}]
[null,{"$f":"IFERROR(INDEX('3 - Land Summary'!$B$21:$B$120,(MATCH('4 - Species Breakdown'!$V372,'3 - Land Summary'!$C$21:$C$120,0))),\"\")","v":""},null,null,{"$f":"IF(OR(COUNTIF('Look Up Data'!$D$149:$D$203,D372),COUNTIF('Look Up Data'!$D$149:$D$203,AE372)),\"YES\",\"NO\")","v":"NO"},null,null,{"$f":"IFERROR(INDEX('3 - Land Summary'!$G$21:$G$120,(MATCH(C372,'3 - Land Summary'!$C$21:$C$120,0))),\"\")","v":""},{"$f":"IFERROR(INDEX('3 - Land Summary'!$I$21:$I$120,(MATCH(C372,'3 - Land Summary'!$C$21:$C$120,0))),\"\")","v":""},"","",null,null,null,{"$f":"IFERROR(VLOOKUP(D372,'Species List'!$D$10:$E$46,2,FALSE)*J372,\"\")","v":""},{"$f":"IFERROR(VLOOKUP(D372,'Species List'!$D$51:$E$89,2,FALSE)*J372,\"\")","v":""},{"$f":"IFERROR(VLOOKUP(D372,'Species List'!$D$95:$E$102,2,FALSE)*J372,\"\")","v":""},{"$f":"IFERROR(VLOOKUP(D372,'Species List'!$I$10:$J$11,2,FALSE)*J372,\"\")","v":""},{"$f":"IFERROR(VLOOKUP(D372,'Species List'!$I$16:$J$61,2,FALSE)*J372,\"\")","v":""},{"$f":"IFERROR(VLOOKUP(D372,'Species List'!$I$66:$J$66,2,FALSE)*J372,\"\")","v":""},{"$f":"IFERROR(VLOOKUP(D372,'Species List'!$I$71:$J$82,2,FALSE)*J372,\"\")","v":""},0,null,null,null,null,null,null,{"$f":"IFERROR(INDEX('3 - Land Summary'!$B$21:$B$120,(MATCH(AD372,'3 - Land Summary'!$C$21:$C$120,0))),\"\")","v":""}]
[null,{"$f":"IFERROR(INDEX('3 - Land Summary'!$B$21:$B$120,(MATCH('4 - Species Breakdown'!$V373,'3 - Land Summary'!$C$21:$C$120,0))),\"\")","v":""},null,null,{"$f":"IF(OR(COUNTIF('Look Up Data'!$D$149:$D$203,D373),COUNTIF('Look Up Data'!$D$149:$D$203,AE373)),\"YES\",\"NO\")","v":"NO"},null,null,{"$f":"IFERROR(INDEX('3 - Land Summary'!$G$21:$G$120,(MATCH(C373,'3 - Land Summary'!$C$21:$C$120,0))),\"\")","v":""},{"$f":"IFERROR(INDEX('3 - Land Summary'!$I$21:$I$120,(MATCH(C373,'3 - Land Summary'!$C$21:$C$120,0))),\"\")","v":""},"","",null,null,null,{"$f":"IFERROR(VLOOKUP(D373,'Species List'!$D$10:$E$46,2,FALSE)*J373,\"\")","v":""},{"$f":"IFERROR(VLOOKUP(D373,'Species List'!$D$51:$E$89,2,FALSE)*J373,\"\")","v":""},{"$f":"IFERROR(VLOOKUP(D373,'Species List'!$D$95:$E$102,2,FALSE)*J373,\"\")","v":""},{"$f":"IFERROR(VLOOKUP(D373,'Species List'!$I$10:$J$11,2,FALSE)*J373,\"\")","v":""},{"$f":"IFERROR(VLOOKUP(D373,'Species List'!$I$16:$J$61,2,FALSE)*J373,\"\")","v":""},{"$f":"IFERROR(VLOOKUP(D373,'Species List'!$I$66:$J$66,2,FALSE)*J373,\"\")","v":""},{"$f":"IFERROR(VLOOKUP(D373,'Species List'!$I$71:$J$82,2,FALSE)*J373,\"\")","v":""},0,null,null,null,null,null,null,{"$f":"IFERROR(INDEX('3 - Land Summary'!$B$21:$B$120,(MATCH(AD373,'3 - Land Summary'!$C$21:$C$120,0))),\"\")","v":""}]
[null,{"$f":"IFERROR(INDEX('3 - Land Summary'!$B$21:$B$120,(MATCH('4 - Species Breakdown'!$V374,'3 - Land Summary'!$C$21:$C$120,0))),\"\")","v":""},null,null,{"$f":"IF(OR(COUNTIF('Look Up Data'!$D$149:$D$203,D374),COUNTIF('Look Up Data'!$D$149:$D$203,AE374)),\"YES\",\"NO\")","v":"NO"},null,null,{"$f":"IFERROR(INDEX('3 - Land Summary'!$G$21:$G$120,(MATCH(C374,'3 - Land Summary'!$C$21:$C$120,0))),\"\")","v":""},{"$f":"IFERROR(INDEX('3 - Land Summary'!$I$21:$I$120,(MATCH(C374,'3 - Land Summary'!$C$21:$C$120,0))),\"\")","v":""},"","",null,null,null,{"$f":"IFERROR(VLOOKUP(D374,'Species List'!$D$10:$E$46,2,FALSE)*J374,\"\")","v":""},{"$f":"IFERROR(VLOOKUP(D374,'Species List'!$D$51:$E$89,2,FALSE)*J374,\"\")","v":""},{"$f":"IFERROR(VLOOKUP(D374,'Species List'!$D$95:$E$102,2,FALSE)*J374,\"\")","v":""},{"$f":"IFERROR(VLOOKUP(D374,'Species List'!$I$10:$J$11,2,FALSE)*J374,\"\")","v":""},{"$f":"IFERROR(VLOOKUP(D374,'Species List'!$I$16:$J$61,2,FALSE)*J374,\"\")","v":""},{"$f":"IFERROR(VLOOKUP(D374,'Species List'!$I$66:$J$66,2,FALSE)*J374,\"\")","v":""},{"$f":"IFERROR(VLOOKUP(D374,'Species List'!$I$71:$J$82,2,FALSE)*J374,\"\")","v":""},0,null,null,null,null,null,null,{"$f":"IFERROR(INDEX('3 - Land Summary'!$B$21:$B$120,(MATCH(AD374,'3 - Land Summary'!$C$21:$C$120,0))),\"\")","v":""}]
[null,{"$f":"IFERROR(INDEX('3 - Land Summary'!$B$21:$B$120,(MATCH('4 - Species Breakdown'!$V375,'3 - Land Summary'!$C$21:$C$120,0))),\"\")","v":""},null,null,{"$f":"IF(OR(COUNTIF('Look Up Data'!$D$149:$D$203,D375),COUNTIF('Look Up Data'!$D$149:$D$203,AE375)),\"YES\",\"NO\")","v":"NO"},null,null,{"$f":"IFERROR(INDEX('3 - Land Summary'!$G$21:$G$120,(MATCH(C375,'3 - Land Summary'!$C$21:$C$120,0))),\"\")","v":""},{"$f":"IFERROR(INDEX('3 - Land Summary'!$I$21:$I$120,(MATCH(C375,'3 - Land Summary'!$C$21:$C$120,0))),\"\")","v":""},"","",null,null,null,{"$f":"IFERROR(VLOOKUP(D375,'Species List'!$D$10:$E$46,2,FALSE)*J375,\"\")","v":""},{"$f":"IFERROR(VLOOKUP(D375,'Species List'!$D$51:$E$89,2,FALSE)*J375,\"\")","v":""},{"$f":"IFERROR(VLOOKUP(D375,'Species List'!$D$95:$E$102,2,FALSE)*J375,\"\")","v":""},{"$f":"IFERROR(VLOOKUP(D375,'Species List'!$I$10:$J$11,2,FALSE)*J375,\"\")","v":""},{"$f":"IFERROR(VLOOKUP(D375,'Species List'!$I$16:$J$61,2,FALSE)*J375,\"\")","v":""},{"$f":"IFERROR(VLOOKUP(D375,'Species List'!$I$66:$J$66,2,FALSE)*J375,\"\")","v":""},{"$f":"IFERROR(VLOOKUP(D375,'Species List'!$I$71:$J$82,2,FALSE)*J375,\"\")","v":""},0,null,null,null,null,null,null,{"$f":"IFERROR(INDEX('3 - Land Summary'!$B$21:$B$120,(MATCH(AD375,'3 - Land Summary'!$C$21:$C$120,0))),\"\")","v":""}]
[null,{"$f":"IFERROR(INDEX('3 - Land Summary'!$B$21:$B$120,(MATCH('4 - Species Breakdown'!$V376,'3 - Land Summary'!$C$21:$C$120,0))),\"\")","v":""},null,null,{"$f":"IF(OR(COUNTIF('Look Up Data'!$D$149:$D$203,D376),COUNTIF('Look Up Data'!$D$149:$D$203,AE376)),\"YES\",\"NO\")","v":"NO"},null,null,{"$f":"IFERROR(INDEX('3 - Land Summary'!$G$21:$G$120,(MATCH(C376,'3 - Land Summary'!$C$21:$C$120,0))),\"\")","v":""},{"$f":"IFERROR(INDEX('3 - Land Summary'!$I$21:$I$120,(MATCH(C376,'3 - Land Summary'!$C$21:$C$120,0))),\"\")","v":""},"","",null,null,null,{"$f":"IFERROR(VLOOKUP(D376,'Species List'!$D$10:$E$46,2,FALSE)*J376,\"\")","v":""},{"$f":"IFERROR(VLOOKUP(D376,'Species List'!$D$51:$E$89,2,FALSE)*J376,\"\")","v":""},{"$f":"IFERROR(VLOOKUP(D376,'Species List'!$D$95:$E$102,2,FALSE)*J376,\"\")","v":""},{"$f":"IFERROR(VLOOKUP(D376,'Species List'!$I$10:$J$11,2,FALSE)*J376,\"\")","v":""},{"$f":"IFERROR(VLOOKUP(D376,'Species List'!$I$16:$J$61,2,FALSE)*J376,\"\")","v":""},{"$f":"IFERROR(VLOOKUP(D376,'Species List'!$I$66:$J$66,2,FALSE)*J376,\"\")","v":""},{"$f":"IFERROR(VLOOKUP(D376,'Species List'!$I$71:$J$82,2,FALSE)*J376,\"\")","v":""},0,null,null,null,null,null,null,{"$f":"IFERROR(INDEX('3 - Land Summary'!$B$21:$B$120,(MATCH(AD376,'3 - Land Summary'!$C$21:$C$120,0))),\"\")","v":""}]
[null,{"$f":"IFERROR(INDEX('3 - Land Summary'!$B$21:$B$120,(MATCH('4 - Species Breakdown'!$V377,'3 - Land Summary'!$C$21:$C$120,0))),\"\")","v":""},null,null,{"$f":"IF(OR(COUNTIF('Look Up Data'!$D$149:$D$203,D377),COUNTIF('Look Up Data'!$D$149:$D$203,AE377)),\"YES\",\"NO\")","v":"NO"},null,null,{"$f":"IFERROR(INDEX('3 - Land Summary'!$G$21:$G$120,(MATCH(C377,'3 - Land Summary'!$C$21:$C$120,0))),\"\")","v":""},{"$f":"IFERROR(INDEX('3 - Land Summary'!$I$21:$I$120,(MATCH(C377,'3 - Land Summary'!$C$21:$C$120,0))),\"\")","v":""},"","",null,null,null,{"$f":"IFERROR(VLOOKUP(D377,'Species List'!$D$10:$E$46,2,FALSE)*J377,\"\")","v":""},{"$f":"IFERROR(VLOOKUP(D377,'Species List'!$D$51:$E$89,2,FALSE)*J377,\"\")","v":""},{"$f":"IFERROR(VLOOKUP(D377,'Species List'!$D$95:$E$102,2,FALSE)*J377,\"\")","v":""},{"$f":"IFERROR(VLOOKUP(D377,'Species List'!$I$10:$J$11,2,FALSE)*J377,\"\")","v":""},{"$f":"IFERROR(VLOOKUP(D377,'Species List'!$I$16:$J$61,2,FALSE)*J377,\"\")","v":""},{"$f":"IFERROR(VLOOKUP(D377,'Species List'!$I$66:$J$66,2,FALSE)*J377,\"\")","v":""},{"$f":"IFERROR(VLOOKUP(D377,'Species List'!$I$71:$J$82,2,FALSE)*J377,\"\")","v":""},0,null,null,null,null,null,null,{"$f":"IFERROR(INDEX('3 - Land Summary'!$B$21:$B$120,(MATCH(AD377,'3 - Land Summary'!$C$21:$C$120,0))),\"\")","v":""}]
[null,{"$f":"IFERROR(INDEX('3 - Land Summary'!$B$21:$B$120,(MATCH('4 - Species Breakdown'!$V378,'3 - Land Summary'!$C$21:$C$120,0))),\"\")","v":""},null,null,{"$f":"IF(OR(COUNTIF('Look Up Data'!$D$149:$D$203,D378),COUNTIF('Look Up Data'!$D$149:$D$203,AE378)),\"YES\",\"NO\")","v":"NO"},null,null,{"$f":"IFERROR(INDEX('3 - Land Summary'!$G$21:$G$120,(MATCH(C378,'3 - Land Summary'!$C$21:$C$120,0))),\"\")","v":""},{"$f":"IFERROR(INDEX('3 - Land Summary'!$I$21:$I$120,(MATCH(C378,'3 - Land Summary'!$C$21:$C$120,0))),\"\")","v":""},"","",null,null,null,{"$f":"IFERROR(VLOOKUP(D378,'Species List'!$D$10:$E$46,2,FALSE)*J378,\"\")","v":""},{"$f":"IFERROR(VLOOKUP(D378,'Species List'!$D$51:$E$89,2,FALSE)*J378,\"\")","v":""},{"$f":"IFERROR(VLOOKUP(D378,'Species List'!$D$95:$E$102,2,FALSE)*J378,\"\")","v":""},{"$f":"IFERROR(VLOOKUP(D378,'Species List'!$I$10:$J$11,2,FALSE)*J378,\"\")","v":""},{"$f":"IFERROR(VLOOKUP(D378,'Species List'!$I$16:$J$61,2,FALSE)*J378,\"\")","v":""},{"$f":"IFERROR(VLOOKUP(D378,'Species List'!$I$66:$J$66,2,FALSE)*J378,\"\")","v":""},{"$f":"IFERROR(VLOOKUP(D378,'Species List'!$I$71:$J$82,2,FALSE)*J378,\"\")","v":""},0,null,null,null,null,null,null,{"$f":"IFERROR(INDEX('3 - Land Summary'!$B$21:$B$120,(MATCH(AD378,'3 - Land Summary'!$C$21:$C$120,0))),\"\")","v":""}]
[null,{"$f":"IFERROR(INDEX('3 - Land Summary'!$B$21:$B$120,(MATCH('4 - Species Breakdown'!$V379,'3 - Land Summary'!$C$21:$C$120,0))),\"\")","v":""},null,null,{"$f":"IF(OR(COUNTIF('Look Up Data'!$D$149:$D$203,D379),COUNTIF('Look Up Data'!$D$149:$D$203,AE379)),\"YES\",\"NO\")","v":"NO"},null,null,{"$f":"IFERROR(INDEX('3 - Land Summary'!$G$21:$G$120,(MATCH(C379,'3 - Land Summary'!$C$21:$C$120,0))),\"\")","v":""},{"$f":"IFERROR(INDEX('3 - Land Summary'!$I$21:$I$120,(MATCH(C379,'3 - Land Summary'!$C$21:$C$120,0))),\"\")","v":""},"","",null,null,null,{"$f":"IFERROR(VLOOKUP(D379,'Species List'!$D$10:$E$46,2,FALSE)*J379,\"\")","v":""},{"$f":"IFERROR(VLOOKUP(D379,'Species List'!$D$51:$E$89,2,FALSE)*J379,\"\")","v":""},{"$f":"IFERROR(VLOOKUP(D379,'Species List'!$D$95:$E$102,2,FALSE)*J379,\"\")","v":""},{"$f":"IFERROR(VLOOKUP(D379,'Species List'!$I$10:$J$11,2,FALSE)*J379,\"\")","v":""},{"$f":"IFERROR(VLOOKUP(D379,'Species List'!$I$16:$J$61,2,FALSE)*J379,\"\")","v":""},{"$f":"IFERROR(VLOOKUP(D379,'Species List'!$I$66:$J$66,2,FALSE)*J379,\"\")","v":""},{"$f":"IFERROR(VLOOKUP(D379,'Species List'!$I$71:$J$82,2,FALSE)*J379,\"\")","v":""},0,null,null,null,null,null,null,{"$f":"IFERROR(INDEX('3 - Land Summary'!$B$21:$B$120,(MATCH(AD379,'3 - Land Summary'!$C$21:$C$120,0))),\"\")","v":""}]
[null,{"$f":"IFERROR(INDEX('3 - Land Summary'!$B$21:$B$120,(MATCH('4 - Species Breakdown'!$V380,'3 - Land Summary'!$C$21:$C$120,0))),\"\")","v":""},null,null,{"$f":"IF(OR(COUNTIF('Look Up Data'!$D$149:$D$203,D380),COUNTIF('Look Up Data'!$D$149:$D$203,AE380)),\"YES\",\"NO\")","v":"NO"},null,null,{"$f":"IFERROR(INDEX('3 - Land Summary'!$G$21:$G$120,(MATCH(C380,'3 - Land Summary'!$C$21:$C$120,0))),\"\")","v":""},{"$f":"IFERROR(INDEX('3 - Land Summary'!$I$21:$I$120,(MATCH(C380,'3 - Land Summary'!$C$21:$C$120,0))),\"\")","v":""},"","",null,null,null,{"$f":"IFERROR(VLOOKUP(D380,'Species List'!$D$10:$E$46,2,FALSE)*J380,\"\")","v":""},{"$f":"IFERROR(VLOOKUP(D380,'Species List'!$D$51:$E$89,2,FALSE)*J380,\"\")","v":""},{"$f":"IFERROR(VLOOKUP(D380,'Species List'!$D$95:$E$102,2,FALSE)*J380,\"\")","v":""},{"$f":"IFERROR(VLOOKUP(D380,'Species List'!$I$10:$J$11,2,FALSE)*J380,\"\")","v":""},{"$f":"IFERROR(VLOOKUP(D380,'Species List'!$I$16:$J$61,2,FALSE)*J380,\"\")","v":""},{"$f":"IFERROR(VLOOKUP(D380,'Species List'!$I$66:$J$66,2,FALSE)*J380,\"\")","v":""},{"$f":"IFERROR(VLOOKUP(D380,'Species List'!$I$71:$J$82,2,FALSE)*J380,\"\")","v":""},0,null,null,null,null,null,null,{"$f":"IFERROR(INDEX('3 - Land Summary'!$B$21:$B$120,(MATCH(AD380,'3 - Land Summary'!$C$21:$C$120,0))),\"\")","v":""}]
[null,{"$f":"IFERROR(INDEX('3 - Land Summary'!$B$21:$B$120,(MATCH('4 - Species Breakdown'!$V381,'3 - Land Summary'!$C$21:$C$120,0))),\"\")","v":""},null,null,{"$f":"IF(OR(COUNTIF('Look Up Data'!$D$149:$D$203,D381),COUNTIF('Look Up Data'!$D$149:$D$203,AE381)),\"YES\",\"NO\")","v":"NO"},null,null,{"$f":"IFERROR(INDEX('3 - Land Summary'!$G$21:$G$120,(MATCH(C381,'3 - Land Summary'!$C$21:$C$120,0))),\"\")","v":""},{"$f":"IFERROR(INDEX('3 - Land Summary'!$I$21:$I$120,(MATCH(C381,'3 - Land Summary'!$C$21:$C$120,0))),\"\")","v":""},"","",null,null,null,{"$f":"IFERROR(VLOOKUP(D381,'Species List'!$D$10:$E$46,2,FALSE)*J381,\"\")","v":""},{"$f":"IFERROR(VLOOKUP(D381,'Species List'!$D$51:$E$89,2,FALSE)*J381,\"\")","v":""},{"$f":"IFERROR(VLOOKUP(D381,'Species List'!$D$95:$E$102,2,FALSE)*J381,\"\")","v":""},{"$f":"IFERROR(VLOOKUP(D381,'Species List'!$I$10:$J$11,2,FALSE)*J381,\"\")","v":""},{"$f":"IFERROR(VLOOKUP(D381,'Species List'!$I$16:$J$61,2,FALSE)*J381,\"\")","v":""},{"$f":"IFERROR(VLOOKUP(D381,'Species List'!$I$66:$J$66,2,FALSE)*J381,\"\")","v":""},{"$f":"IFERROR(VLOOKUP(D381,'Species List'!$I$71:$J$82,2,FALSE)*J381,\"\")","v":""},0,null,null,null,null,null,null,{"$f":"IFERROR(INDEX('3 - Land Summary'!$B$21:$B$120,(MATCH(AD381,'3 - Land Summary'!$C$21:$C$120,0))),\"\")","v":""}]
[null,{"$f":"IFERROR(INDEX('3 - Land Summary'!$B$21:$B$120,(MATCH('4 - Species Breakdown'!$V382,'3 - Land Summary'!$C$21:$C$120,0))),\"\")","v":""},null,null,{"$f":"IF(OR(COUNTIF('Look Up Data'!$D$149:$D$203,D382),COUNTIF('Look Up Data'!$D$149:$D$203,AE382)),\"YES\",\"NO\")","v":"NO"},null,null,{"$f":"IFERROR(INDEX('3 - Land Summary'!$G$21:$G$120,(MATCH(C382,'3 - Land Summary'!$C$21:$C$120,0))),\"\")","v":""},{"$f":"IFERROR(INDEX('3 - Land Summary'!$I$21:$I$120,(MATCH(C382,'3 - Land Summary'!$C$21:$C$120,0))),\"\")","v":""},"","",null,null,null,{"$f":"IFERROR(VLOOKUP(D382,'Species List'!$D$10:$E$46,2,FALSE)*J382,\"\")","v":""},{"$f":"IFERROR(VLOOKUP(D382,'Species List'!$D$51:$E$89,2,FALSE)*J382,\"\")","v":""},{"$f":"IFERROR(VLOOKUP(D382,'Species List'!$D$95:$E$102,2,FALSE)*J382,\"\")","v":""},{"$f":"IFERROR(VLOOKUP(D382,'Species List'!$I$10:$J$11,2,FALSE)*J382,\"\")","v":""},{"$f":"IFERROR(VLOOKUP(D382,'Species List'!$I$16:$J$61,2,FALSE)*J382,\"\")","v":""},{"$f":"IFERROR(VLOOKUP(D382,'Species List'!$I$66:$J$66,2,FALSE)*J382,\"\")","v":""},{"$f":"IFERROR(VLOOKUP(D382,'Species List'!$I$71:$J$82,2,FALSE)*J382,\"\")","v":""},0,null,null,null,null,null,null,{"$f":"IFERROR(INDEX('3 - Land Summary'!$B$21:$B$120,(MATCH(AD382,'3 - Land Summary'!$C$21:$C$120,0))),\"\")","v":""}]
[null,{"$f":"IFERROR(INDEX('3 - Land Summary'!$B$21:$B$120,(MATCH('4 - Species Breakdown'!$V383,'3 - Land Summary'!$C$21:$C$120,0))),\"\")","v":""},null,null,{"$f":"IF(OR(COUNTIF('Look Up Data'!$D$149:$D$203,D383),COUNTIF('Look Up Data'!$D$149:$D$203,AE383)),\"YES\",\"NO\")","v":"NO"},null,null,{"$f":"IFERROR(INDEX('3 - Land Summary'!$G$21:$G$120,(MATCH(C383,'3 - Land Summary'!$C$21:$C$120,0))),\"\")","v":""},{"$f":"IFERROR(INDEX('3 - Land Summary'!$I$21:$I$120,(MATCH(C383,'3 - Land Summary'!$C$21:$C$120,0))),\"\")","v":""},"","",null,null,null,{"$f":"IFERROR(VLOOKUP(D383,'Species List'!$D$10:$E$46,2,FALSE)*J383,\"\")","v":""},{"$f":"IFERROR(VLOOKUP(D383,'Species List'!$D$51:$E$89,2,FALSE)*J383,\"\")","v":""},{"$f":"IFERROR(VLOOKUP(D383,'Species List'!$D$95:$E$102,2,FALSE)*J383,\"\")","v":""},{"$f":"IFERROR(VLOOKUP(D383,'Species List'!$I$10:$J$11,2,FALSE)*J383,\"\")","v":""},{"$f":"IFERROR(VLOOKUP(D383,'Species List'!$I$16:$J$61,2,FALSE)*J383,\"\")","v":""},{"$f":"IFERROR(VLOOKUP(D383,'Species List'!$I$66:$J$66,2,FALSE)*J383,\"\")","v":""},{"$f":"IFERROR(VLOOKUP(D383,'Species List'!$I$71:$J$82,2,FALSE)*J383,\"\")","v":""},0,null,null,null,null,null,null,{"$f":"IFERROR(INDEX('3 - Land Summary'!$B$21:$B$120,(MATCH(AD383,'3 - Land Summary'!$C$21:$C$120,0))),\"\")","v":""}]
[null,{"$f":"IFERROR(INDEX('3 - Land Summary'!$B$21:$B$120,(MATCH('4 - Species Breakdown'!$V384,'3 - Land Summary'!$C$21:$C$120,0))),\"\")","v":""},null,null,{"$f":"IF(OR(COUNTIF('Look Up Data'!$D$149:$D$203,D384),COUNTIF('Look Up Data'!$D$149:$D$203,AE384)),\"YES\",\"NO\")","v":"NO"},null,null,{"$f":"IFERROR(INDEX('3 - Land Summary'!$G$21:$G$120,(MATCH(C384,'3 - Land Summary'!$C$21:$C$120,0))),\"\")","v":""},{"$f":"IFERROR(INDEX('3 - Land Summary'!$I$21:$I$120,(MATCH(C384,'3 - Land Summary'!$C$21:$C$120,0))),\"\")","v":""},"","",null,null,null,{"$f":"IFERROR(VLOOKUP(D384,'Species List'!$D$10:$E$46,2,FALSE)*J384,\"\")","v":""},{"$f":"IFERROR(VLOOKUP(D384,'Species List'!$D$51:$E$89,2,FALSE)*J384,\"\")","v":""},{"$f":"IFERROR(VLOOKUP(D384,'Species List'!$D$95:$E$102,2,FALSE)*J384,\"\")","v":""},{"$f":"IFERROR(VLOOKUP(D384,'Species List'!$I$10:$J$11,2,FALSE)*J384,\"\")","v":""},{"$f":"IFERROR(VLOOKUP(D384,'Species List'!$I$16:$J$61,2,FALSE)*J384,\"\")","v":""},{"$f":"IFERROR(VLOOKUP(D384,'Species List'!$I$66:$J$66,2,FALSE)*J384,\"\")","v":""},{"$f":"IFERROR(VLOOKUP(D384,'Species List'!$I$71:$J$82,2,FALSE)*J384,\"\")","v":""},0,null,null,null,null,null,null,{"$f":"IFERROR(INDEX('3 - Land Summary'!$B$21:$B$120,(MATCH(AD384,'3 - Land Summary'!$C$21:$C$120,0))),\"\")","v":""}]
[null,{"$f":"IFERROR(INDEX('3 - Land Summary'!$B$21:$B$120,(MATCH('4 - Species Breakdown'!$V385,'3 - Land Summary'!$C$21:$C$120,0))),\"\")","v":""},null,null,{"$f":"IF(OR(COUNTIF('Look Up Data'!$D$149:$D$203,D385),COUNTIF('Look Up Data'!$D$149:$D$203,AE385)),\"YES\",\"NO\")","v":"NO"},null,null,{"$f":"IFERROR(INDEX('3 - Land Summary'!$G$21:$G$120,(MATCH(C385,'3 - Land Summary'!$C$21:$C$120,0))),\"\")","v":""},{"$f":"IFERROR(INDEX('3 - Land Summary'!$I$21:$I$120,(MATCH(C385,'3 - Land Summary'!$C$21:$C$120,0))),\"\")","v":""},"","",null,null,null,{"$f":"IFERROR(VLOOKUP(D385,'Species List'!$D$10:$E$46,2,FALSE)*J385,\"\")","v":""},{"$f":"IFERROR(VLOOKUP(D385,'Species List'!$D$51:$E$89,2,FALSE)*J385,\"\")","v":""},{"$f":"IFERROR(VLOOKUP(D385,'Species List'!$D$95:$E$102,2,FALSE)*J385,\"\")","v":""},{"$f":"IFERROR(VLOOKUP(D385,'Species List'!$I$10:$J$11,2,FALSE)*J385,\"\")","v":""},{"$f":"IFERROR(VLOOKUP(D385,'Species List'!$I$16:$J$61,2,FALSE)*J385,\"\")","v":""},{"$f":"IFERROR(VLOOKUP(D385,'Species List'!$I$66:$J$66,2,FALSE)*J385,\"\")","v":""},{"$f":"IFERROR(VLOOKUP(D385,'Species List'!$I$71:$J$82,2,FALSE)*J385,\"\")","v":""},0,null,null,null,null,null,null,{"$f":"IFERROR(INDEX('3 - Land Summary'!$B$21:$B$120,(MATCH(AD385,'3 - Land Summary'!$C$21:$C$120,0))),\"\")","v":""}]
[null,{"$f":"IFERROR(INDEX('3 - Land Summary'!$B$21:$B$120,(MATCH('4 - Species Breakdown'!$V386,'3 - Land Summary'!$C$21:$C$120,0))),\"\")","v":""},null,null,{"$f":"IF(OR(COUNTIF('Look Up Data'!$D$149:$D$203,D386),COUNTIF('Look Up Data'!$D$149:$D$203,AE386)),\"YES\",\"NO\")","v":"NO"},null,null,{"$f":"IFERROR(INDEX('3 - Land Summary'!$G$21:$G$120,(MATCH(C386,'3 - Land Summary'!$C$21:$C$120,0))),\"\")","v":""},{"$f":"IFERROR(INDEX('3 - Land Summary'!$I$21:$I$120,(MATCH(C386,'3 - Land Summary'!$C$21:$C$120,0))),\"\")","v":""},"","",null,null,null,{"$f":"IFERROR(VLOOKUP(D386,'Species List'!$D$10:$E$46,2,FALSE)*J386,\"\")","v":""},{"$f":"IFERROR(VLOOKUP(D386,'Species List'!$D$51:$E$89,2,FALSE)*J386,\"\")","v":""},{"$f":"IFERROR(VLOOKUP(D386,'Species List'!$D$95:$E$102,2,FALSE)*J386,\"\")","v":""},{"$f":"IFERROR(VLOOKUP(D386,'Species List'!$I$10:$J$11,2,FALSE)*J386,\"\")","v":""},{"$f":"IFERROR(VLOOKUP(D386,'Species List'!$I$16:$J$61,2,FALSE)*J386,\"\")","v":""},{"$f":"IFERROR(VLOOKUP(D386,'Species List'!$I$66:$J$66,2,FALSE)*J386,\"\")","v":""},{"$f":"IFERROR(VLOOKUP(D386,'Species List'!$I$71:$J$82,2,FALSE)*J386,\"\")","v":""},0,null,null,null,null,null,null,{"$f":"IFERROR(INDEX('3 - Land Summary'!$B$21:$B$120,(MATCH(AD386,'3 - Land Summary'!$C$21:$C$120,0))),\"\")","v":""}]
[null,{"$f":"IFERROR(INDEX('3 - Land Summary'!$B$21:$B$120,(MATCH('4 - Species Breakdown'!$V387,'3 - Land Summary'!$C$21:$C$120,0))),\"\")","v":""},null,null,{"$f":"IF(OR(COUNTIF('Look Up Data'!$D$149:$D$203,D387),COUNTIF('Look Up Data'!$D$149:$D$203,AE387)),\"YES\",\"NO\")","v":"NO"},null,null,{"$f":"IFERROR(INDEX('3 - Land Summary'!$G$21:$G$120,(MATCH(C387,'3 - Land Summary'!$C$21:$C$120,0))),\"\")","v":""},{"$f":"IFERROR(INDEX('3 - Land Summary'!$I$21:$I$120,(MATCH(C387,'3 - Land Summary'!$C$21:$C$120,0))),\"\")","v":""},"","",null,null,null,{"$f":"IFERROR(VLOOKUP(D387,'Species List'!$D$10:$E$46,2,FALSE)*J387,\"\")","v":""},{"$f":"IFERROR(VLOOKUP(D387,'Species List'!$D$51:$E$89,2,FALSE)*J387,\"\")","v":""},{"$f":"IFERROR(VLOOKUP(D387,'Species List'!$D$95:$E$102,2,FALSE)*J387,\"\")","v":""},{"$f":"IFERROR(VLOOKUP(D387,'Species List'!$I$10:$J$11,2,FALSE)*J387,\"\")","v":""},{"$f":"IFERROR(VLOOKUP(D387,'Species List'!$I$16:$J$61,2,FALSE)*J387,\"\")","v":""},{"$f":"IFERROR(VLOOKUP(D387,'Species List'!$I$66:$J$66,2,FALSE)*J387,\"\")","v":""},{"$f":"IFERROR(VLOOKUP(D387,'Species List'!$I$71:$J$82,2,FALSE)*J387,\"\")","v":""},0,null,null,null,null,null,null,{"$f":"IFERROR(INDEX('3 - Land Summary'!$B$21:$B$120,(MATCH(AD387,'3 - Land Summary'!$C$21:$C$120,0))),\"\")","v":""}]
[null,{"$f":"IFERROR(INDEX('3 - Land Summary'!$B$21:$B$120,(MATCH('4 - Species Breakdown'!$V388,'3 - Land Summary'!$C$21:$C$120,0))),\"\")","v":""},null,null,{"$f":"IF(OR(COUNTIF('Look Up Data'!$D$149:$D$203,D388),COUNTIF('Look Up Data'!$D$149:$D$203,AE388)),\"YES\",\"NO\")","v":"NO"},null,null,{"$f":"IFERROR(INDEX('3 - Land Summary'!$G$21:$G$120,(MATCH(C388,'3 - Land Summary'!$C$21:$C$120,0))),\"\")","v":""},{"$f":"IFERROR(INDEX('3 - Land Summary'!$I$21:$I$120,(MATCH(C388,'3 - Land Summary'!$C$21:$C$120,0))),\"\")","v":""},"","",null,null,null,{"$f":"IFERROR(VLOOKUP(D388,'Species List'!$D$10:$E$46,2,FALSE)*J388,\"\")","v":""},{"$f":"IFERROR(VLOOKUP(D388,'Species List'!$D$51:$E$89,2,FALSE)*J388,\"\")","v":""},{"$f":"IFERROR(VLOOKUP(D388,'Species List'!$D$95:$E$102,2,FALSE)*J388,\"\")","v":""},{"$f":"IFERROR(VLOOKUP(D388,'Species List'!$I$10:$J$11,2,FALSE)*J388,\"\")","v":""},{"$f":"IFERROR(VLOOKUP(D388,'Species List'!$I$16:$J$61,2,FALSE)*J388,\"\")","v":""},{"$f":"IFERROR(VLOOKUP(D388,'Species List'!$I$66:$J$66,2,FALSE)*J388,\"\")","v":""},{"$f":"IFERROR(VLOOKUP(D388,'Species List'!$I$71:$J$82,2,FALSE)*J388,\"\")","v":""},0,null,null,null,null,null,null,{"$f":"IFERROR(INDEX('3 - Land Summary'!$B$21:$B$120,(MATCH(AD388,'3 - Land Summary'!$C$21:$C$120,0))),\"\")","v":""}]
[null,{"$f":"IFERROR(INDEX('3 - Land Summary'!$B$21:$B$120,(MATCH('4 - Species Breakdown'!$V389,'3 - Land Summary'!$C$21:$C$120,0))),\"\")","v":""},null,null,{"$f":"IF(OR(COUNTIF('Look Up Data'!$D$149:$D$203,D389),COUNTIF('Look Up Data'!$D$149:$D$203,AE389)),\"YES\",\"NO\")","v":"NO"},null,null,{"$f":"IFERROR(INDEX('3 - Land Summary'!$G$21:$G$120,(MATCH(C389,'3 - Land Summary'!$C$21:$C$120,0))),\"\")","v":""},{"$f":"IFERROR(INDEX('3 - Land Summary'!$I$21:$I$120,(MATCH(C389,'3 - Land Summary'!$C$21:$C$120,0))),\"\")","v":""},"","",null,null,null,{"$f":"IFERROR(VLOOKUP(D389,'Species List'!$D$10:$E$46,2,FALSE)*J389,\"\")","v":""},{"$f":"IFERROR(VLOOKUP(D389,'Species List'!$D$51:$E$89,2,FALSE)*J389,\"\")","v":""},{"$f":"IFERROR(VLOOKUP(D389,'Species List'!$D$95:$E$102,2,FALSE)*J389,\"\")","v":""},{"$f":"IFERROR(VLOOKUP(D389,'Species List'!$I$10:$J$11,2,FALSE)*J389,\"\")","v":""},{"$f":"IFERROR(VLOOKUP(D389,'Species List'!$I$16:$J$61,2,FALSE)*J389,\"\")","v":""},{"$f":"IFERROR(VLOOKUP(D389,'Species List'!$I$66:$J$66,2,FALSE)*J389,\"\")","v":""},{"$f":"IFERROR(VLOOKUP(D389,'Species List'!$I$71:$J$82,2,FALSE)*J389,\"\")","v":""},0,null,null,null,null,null,null,{"$f":"IFERROR(INDEX('3 - Land Summary'!$B$21:$B$120,(MATCH(AD389,'3 - Land Summary'!$C$21:$C$120,0))),\"\")","v":""}]
[null,{"$f":"IFERROR(INDEX('3 - Land Summary'!$B$21:$B$120,(MATCH('4 - Species Breakdown'!$V390,'3 - Land Summary'!$C$21:$C$120,0))),\"\")","v":""},null,null,{"$f":"IF(OR(COUNTIF('Look Up Data'!$D$149:$D$203,D390),COUNTIF('Look Up Data'!$D$149:$D$203,AE390)),\"YES\",\"NO\")","v":"NO"},null,null,{"$f":"IFERROR(INDEX('3 - Land Summary'!$G$21:$G$120,(MATCH(C390,'3 - Land Summary'!$C$21:$C$120,0))),\"\")","v":""},{"$f":"IFERROR(INDEX('3 - Land Summary'!$I$21:$I$120,(MATCH(C390,'3 - Land Summary'!$C$21:$C$120,0))),\"\")","v":""},"","",null,null,null,{"$f":"IFERROR(VLOOKUP(D390,'Species List'!$D$10:$E$46,2,FALSE)*J390,\"\")","v":""},{"$f":"IFERROR(VLOOKUP(D390,'Species List'!$D$51:$E$89,2,FALSE)*J390,\"\")","v":""},{"$f":"IFERROR(VLOOKUP(D390,'Species List'!$D$95:$E$102,2,FALSE)*J390,\"\")","v":""},{"$f":"IFERROR(VLOOKUP(D390,'Species List'!$I$10:$J$11,2,FALSE)*J390,\"\")","v":""},{"$f":"IFERROR(VLOOKUP(D390,'Species List'!$I$16:$J$61,2,FALSE)*J390,\"\")","v":""},{"$f":"IFERROR(VLOOKUP(D390,'Species List'!$I$66:$J$66,2,FALSE)*J390,\"\")","v":""},{"$f":"IFERROR(VLOOKUP(D390,'Species List'!$I$71:$J$82,2,FALSE)*J390,\"\")","v":""},0,null,null,null,null,null,null,{"$f":"IFERROR(INDEX('3 - Land Summary'!$B$21:$B$120,(MATCH(AD390,'3 - Land Summary'!$C$21:$C$120,0))),\"\")","v":""}]
[null,{"$f":"IFERROR(INDEX('3 - Land Summary'!$B$21:$B$120,(MATCH('4 - Species Breakdown'!$V391,'3 - Land Summary'!$C$21:$C$120,0))),\"\")","v":""},null,null,{"$f":"IF(OR(COUNTIF('Look Up Data'!$D$149:$D$203,D391),COUNTIF('Look Up Data'!$D$149:$D$203,AE391)),\"YES\",\"NO\")","v":"NO"},null,null,{"$f":"IFERROR(INDEX('3 - Land Summary'!$G$21:$G$120,(MATCH(C391,'3 - Land Summary'!$C$21:$C$120,0))),\"\")","v":""},{"$f":"IFERROR(INDEX('3 - Land Summary'!$I$21:$I$120,(MATCH(C391,'3 - Land Summary'!$C$21:$C$120,0))),\"\")","v":""},"","",null,null,null,{"$f":"IFERROR(VLOOKUP(D391,'Species List'!$D$10:$E$46,2,FALSE)*J391,\"\")","v":""},{"$f":"IFERROR(VLOOKUP(D391,'Species List'!$D$51:$E$89,2,FALSE)*J391,\"\")","v":""},{"$f":"IFERROR(VLOOKUP(D391,'Species List'!$D$95:$E$102,2,FALSE)*J391,\"\")","v":""},{"$f":"IFERROR(VLOOKUP(D391,'Species List'!$I$10:$J$11,2,FALSE)*J391,\"\")","v":""},{"$f":"IFERROR(VLOOKUP(D391,'Species List'!$I$16:$J$61,2,FALSE)*J391,\"\")","v":""},{"$f":"IFERROR(VLOOKUP(D391,'Species List'!$I$66:$J$66,2,FALSE)*J391,\"\")","v":""},{"$f":"IFERROR(VLOOKUP(D391,'Species List'!$I$71:$J$82,2,FALSE)*J391,\"\")","v":""},0,null,null,null,null,null,null,{"$f":"IFERROR(INDEX('3 - Land Summary'!$B$21:$B$120,(MATCH(AD391,'3 - Land Summary'!$C$21:$C$120,0))),\"\")","v":""}]
[null,{"$f":"IFERROR(INDEX('3 - Land Summary'!$B$21:$B$120,(MATCH('4 - Species Breakdown'!$V392,'3 - Land Summary'!$C$21:$C$120,0))),\"\")","v":""},null,null,{"$f":"IF(OR(COUNTIF('Look Up Data'!$D$149:$D$203,D392),COUNTIF('Look Up Data'!$D$149:$D$203,AE392)),\"YES\",\"NO\")","v":"NO"},null,null,{"$f":"IFERROR(INDEX('3 - Land Summary'!$G$21:$G$120,(MATCH(C392,'3 - Land Summary'!$C$21:$C$120,0))),\"\")","v":""},{"$f":"IFERROR(INDEX('3 - Land Summary'!$I$21:$I$120,(MATCH(C392,'3 - Land Summary'!$C$21:$C$120,0))),\"\")","v":""},"","",null,null,null,{"$f":"IFERROR(VLOOKUP(D392,'Species List'!$D$10:$E$46,2,FALSE)*J392,\"\")","v":""},{"$f":"IFERROR(VLOOKUP(D392,'Species List'!$D$51:$E$89,2,FALSE)*J392,\"\")","v":""},{"$f":"IFERROR(VLOOKUP(D392,'Species List'!$D$95:$E$102,2,FALSE)*J392,\"\")","v":""},{"$f":"IFERROR(VLOOKUP(D392,'Species List'!$I$10:$J$11,2,FALSE)*J392,\"\")","v":""},{"$f":"IFERROR(VLOOKUP(D392,'Species List'!$I$16:$J$61,2,FALSE)*J392,\"\")","v":""},{"$f":"IFERROR(VLOOKUP(D392,'Species List'!$I$66:$J$66,2,FALSE)*J392,\"\")","v":""},{"$f":"IFERROR(VLOOKUP(D392,'Species List'!$I$71:$J$82,2,FALSE)*J392,\"\")","v":""},0,null,null,null,null,null,null,{"$f":"IFERROR(INDEX('3 - Land Summary'!$B$21:$B$120,(MATCH(AD392,'3 - Land Summary'!$C$21:$C$120,0))),\"\")","v":""}]
[null,{"$f":"IFERROR(INDEX('3 - Land Summary'!$B$21:$B$120,(MATCH('4 - Species Breakdown'!$V393,'3 - Land Summary'!$C$21:$C$120,0))),\"\")","v":""},null,null,{"$f":"IF(OR(COUNTIF('Look Up Data'!$D$149:$D$203,D393),COUNTIF('Look Up Data'!$D$149:$D$203,AE393)),\"YES\",\"NO\")","v":"NO"},null,null,{"$f":"IFERROR(INDEX('3 - Land Summary'!$G$21:$G$120,(MATCH(C393,'3 - Land Summary'!$C$21:$C$120,0))),\"\")","v":""},{"$f":"IFERROR(INDEX('3 - Land Summary'!$I$21:$I$120,(MATCH(C393,'3 - Land Summary'!$C$21:$C$120,0))),\"\")","v":""},"","",null,null,null,{"$f":"IFERROR(VLOOKUP(D393,'Species List'!$D$10:$E$46,2,FALSE)*J393,\"\")","v":""},{"$f":"IFERROR(VLOOKUP(D393,'Species List'!$D$51:$E$89,2,FALSE)*J393,\"\")","v":""},{"$f":"IFERROR(VLOOKUP(D393,'Species List'!$D$95:$E$102,2,FALSE)*J393,\"\")","v":""},{"$f":"IFERROR(VLOOKUP(D393,'Species List'!$I$10:$J$11,2,FALSE)*J393,\"\")","v":""},{"$f":"IFERROR(VLOOKUP(D393,'Species List'!$I$16:$J$61,2,FALSE)*J393,\"\")","v":""},{"$f":"IFERROR(VLOOKUP(D393,'Species List'!$I$66:$J$66,2,FALSE)*J393,\"\")","v":""},{"$f":"IFERROR(VLOOKUP(D393,'Species List'!$I$71:$J$82,2,FALSE)*J393,\"\")","v":""},0,null,null,null,null,null,null,{"$f":"IFERROR(INDEX('3 - Land Summary'!$B$21:$B$120,(MATCH(AD393,'3 - Land Summary'!$C$21:$C$120,0))),\"\")","v":""}]
[null,{"$f":"IFERROR(INDEX('3 - Land Summary'!$B$21:$B$120,(MATCH('4 - Species Breakdown'!$V394,'3 - Land Summary'!$C$21:$C$120,0))),\"\")","v":""},null,null,{"$f":"IF(OR(COUNTIF('Look Up Data'!$D$149:$D$203,D394),COUNTIF('Look Up Data'!$D$149:$D$203,AE394)),\"YES\",\"NO\")","v":"NO"},null,null,{"$f":"IFERROR(INDEX('3 - Land Summary'!$G$21:$G$120,(MATCH(C394,'3 - Land Summary'!$C$21:$C$120,0))),\"\")","v":""},{"$f":"IFERROR(INDEX('3 - Land Summary'!$I$21:$I$120,(MATCH(C394,'3 - Land Summary'!$C$21:$C$120,0))),\"\")","v":""},"","",null,null,null,{"$f":"IFERROR(VLOOKUP(D394,'Species List'!$D$10:$E$46,2,FALSE)*J394,\"\")","v":""},{"$f":"IFERROR(VLOOKUP(D394,'Species List'!$D$51:$E$89,2,FALSE)*J394,\"\")","v":""},{"$f":"IFERROR(VLOOKUP(D394,'Species List'!$D$95:$E$102,2,FALSE)*J394,\"\")","v":""},{"$f":"IFERROR(VLOOKUP(D394,'Species List'!$I$10:$J$11,2,FALSE)*J394,\"\")","v":""},{"$f":"IFERROR(VLOOKUP(D394,'Species List'!$I$16:$J$61,2,FALSE)*J394,\"\")","v":""},{"$f":"IFERROR(VLOOKUP(D394,'Species List'!$I$66:$J$66,2,FALSE)*J394,\"\")","v":""},{"$f":"IFERROR(VLOOKUP(D394,'Species List'!$I$71:$J$82,2,FALSE)*J394,\"\")","v":""},0,null,null,null,null,null,null,{"$f":"IFERROR(INDEX('3 - Land Summary'!$B$21:$B$120,(MATCH(AD394,'3 - Land Summary'!$C$21:$C$120,0))),\"\")","v":""}]
[null,{"$f":"IFERROR(INDEX('3 - Land Summary'!$B$21:$B$120,(MATCH('4 - Species Breakdown'!$V395,'3 - Land Summary'!$C$21:$C$120,0))),\"\")","v":""},null,null,{"$f":"IF(OR(COUNTIF('Look Up Data'!$D$149:$D$203,D395),COUNTIF('Look Up Data'!$D$149:$D$203,AE395)),\"YES\",\"NO\")","v":"NO"},null,null,{"$f":"IFERROR(INDEX('3 - Land Summary'!$G$21:$G$120,(MATCH(C395,'3 - Land Summary'!$C$21:$C$120,0))),\"\")","v":""},{"$f":"IFERROR(INDEX('3 - Land Summary'!$I$21:$I$120,(MATCH(C395,'3 - Land Summary'!$C$21:$C$120,0))),\"\")","v":""},"","",null,null,null,{"$f":"IFERROR(VLOOKUP(D395,'Species List'!$D$10:$E$46,2,FALSE)*J395,\"\")","v":""},{"$f":"IFERROR(VLOOKUP(D395,'Species List'!$D$51:$E$89,2,FALSE)*J395,\"\")","v":""},{"$f":"IFERROR(VLOOKUP(D395,'Species List'!$D$95:$E$102,2,FALSE)*J395,\"\")","v":""},{"$f":"IFERROR(VLOOKUP(D395,'Species List'!$I$10:$J$11,2,FALSE)*J395,\"\")","v":""},{"$f":"IFERROR(VLOOKUP(D395,'Species List'!$I$16:$J$61,2,FALSE)*J395,\"\")","v":""},{"$f":"IFERROR(VLOOKUP(D395,'Species List'!$I$66:$J$66,2,FALSE)*J395,\"\")","v":""},{"$f":"IFERROR(VLOOKUP(D395,'Species List'!$I$71:$J$82,2,FALSE)*J395,\"\")","v":""},0,null,null,null,null,null,null,{"$f":"IFERROR(INDEX('3 - Land Summary'!$B$21:$B$120,(MATCH(AD395,'3 - Land Summary'!$C$21:$C$120,0))),\"\")","v":""}]
[null,{"$f":"IFERROR(INDEX('3 - Land Summary'!$B$21:$B$120,(MATCH('4 - Species Breakdown'!$V396,'3 - Land Summary'!$C$21:$C$120,0))),\"\")","v":""},null,null,{"$f":"IF(OR(COUNTIF('Look Up Data'!$D$149:$D$203,D396),COUNTIF('Look Up Data'!$D$149:$D$203,AE396)),\"YES\",\"NO\")","v":"NO"},null,null,{"$f":"IFERROR(INDEX('3 - Land Summary'!$G$21:$G$120,(MATCH(C396,'3 - Land Summary'!$C$21:$C$120,0))),\"\")","v":""},{"$f":"IFERROR(INDEX('3 - Land Summary'!$I$21:$I$120,(MATCH(C396,'3 - Land Summary'!$C$21:$C$120,0))),\"\")","v":""},"","",null,null,null,{"$f":"IFERROR(VLOOKUP(D396,'Species List'!$D$10:$E$46,2,FALSE)*J396,\"\")","v":""},{"$f":"IFERROR(VLOOKUP(D396,'Species List'!$D$51:$E$89,2,FALSE)*J396,\"\")","v":""},{"$f":"IFERROR(VLOOKUP(D396,'Species List'!$D$95:$E$102,2,FALSE)*J396,\"\")","v":""},{"$f":"IFERROR(VLOOKUP(D396,'Species List'!$I$10:$J$11,2,FALSE)*J396,\"\")","v":""},{"$f":"IFERROR(VLOOKUP(D396,'Species List'!$I$16:$J$61,2,FALSE)*J396,\"\")","v":""},{"$f":"IFERROR(VLOOKUP(D396,'Species List'!$I$66:$J$66,2,FALSE)*J396,\"\")","v":""},{"$f":"IFERROR(VLOOKUP(D396,'Species List'!$I$71:$J$82,2,FALSE)*J396,\"\")","v":""},0,null,null,null,null,null,null,{"$f":"IFERROR(INDEX('3 - Land Summary'!$B$21:$B$120,(MATCH(AD396,'3 - Land Summary'!$C$21:$C$120,0))),\"\")","v":""}]
[null,{"$f":"IFERROR(INDEX('3 - Land Summary'!$B$21:$B$120,(MATCH('4 - Species Breakdown'!$V397,'3 - Land Summary'!$C$21:$C$120,0))),\"\")","v":""},null,null,{"$f":"IF(OR(COUNTIF('Look Up Data'!$D$149:$D$203,D397),COUNTIF('Look Up Data'!$D$149:$D$203,AE397)),\"YES\",\"NO\")","v":"NO"},null,null,{"$f":"IFERROR(INDEX('3 - Land Summary'!$G$21:$G$120,(MATCH(C397,'3 - Land Summary'!$C$21:$C$120,0))),\"\")","v":""},{"$f":"IFERROR(INDEX('3 - Land Summary'!$I$21:$I$120,(MATCH(C397,'3 - Land Summary'!$C$21:$C$120,0))),\"\")","v":""},"","",null,null,null,{"$f":"IFERROR(VLOOKUP(D397,'Species List'!$D$10:$E$46,2,FALSE)*J397,\"\")","v":""},{"$f":"IFERROR(VLOOKUP(D397,'Species List'!$D$51:$E$89,2,FALSE)*J397,\"\")","v":""},{"$f":"IFERROR(VLOOKUP(D397,'Species List'!$D$95:$E$102,2,FALSE)*J397,\"\")","v":""},{"$f":"IFERROR(VLOOKUP(D397,'Species List'!$I$10:$J$11,2,FALSE)*J397,\"\")","v":""},{"$f":"IFERROR(VLOOKUP(D397,'Species List'!$I$16:$J$61,2,FALSE)*J397,\"\")","v":""},{"$f":"IFERROR(VLOOKUP(D397,'Species List'!$I$66:$J$66,2,FALSE)*J397,\"\")","v":""},{"$f":"IFERROR(VLOOKUP(D397,'Species List'!$I$71:$J$82,2,FALSE)*J397,\"\")","v":""},0,null,null,null,null,null,null,{"$f":"IFERROR(INDEX('3 - Land Summary'!$B$21:$B$120,(MATCH(AD397,'3 - Land Summary'!$C$21:$C$120,0))),\"\")","v":""}]
[null,{"$f":"IFERROR(INDEX('3 - Land Summary'!$B$21:$B$120,(MATCH('4 - Species Breakdown'!$V398,'3 - Land Summary'!$C$21:$C$120,0))),\"\")","v":""},null,null,{"$f":"IF(OR(COUNTIF('Look Up Data'!$D$149:$D$203,D398),COUNTIF('Look Up Data'!$D$149:$D$203,AE398)),\"YES\",\"NO\")","v":"NO"},null,null,{"$f":"IFERROR(INDEX('3 - Land Summary'!$G$21:$G$120,(MATCH(C398,'3 - Land Summary'!$C$21:$C$120,0))),\"\")","v":""},{"$f":"IFERROR(INDEX('3 - Land Summary'!$I$21:$I$120,(MATCH(C398,'3 - Land Summary'!$C$21:$C$120,0))),\"\")","v":""},"","",null,null,null,{"$f":"IFERROR(VLOOKUP(D398,'Species List'!$D$10:$E$46,2,FALSE)*J398,\"\")","v":""},{"$f":"IFERROR(VLOOKUP(D398,'Species List'!$D$51:$E$89,2,FALSE)*J398,\"\")","v":""},{"$f":"IFERROR(VLOOKUP(D398,'Species List'!$D$95:$E$102,2,FALSE)*J398,\"\")","v":""},{"$f":"IFERROR(VLOOKUP(D398,'Species List'!$I$10:$J$11,2,FALSE)*J398,\"\")","v":""},{"$f":"IFERROR(VLOOKUP(D398,'Species List'!$I$16:$J$61,2,FALSE)*J398,\"\")","v":""},{"$f":"IFERROR(VLOOKUP(D398,'Species List'!$I$66:$J$66,2,FALSE)*J398,\"\")","v":""},{"$f":"IFERROR(VLOOKUP(D398,'Species List'!$I$71:$J$82,2,FALSE)*J398,\"\")","v":""},0,null,null,null,null,null,null,{"$f":"IFERROR(INDEX('3 - Land Summary'!$B$21:$B$120,(MATCH(AD398,'3 - Land Summary'!$C$21:$C$120,0))),\"\")","v":""}]
[null,{"$f":"IFERROR(INDEX('3 - Land Summary'!$B$21:$B$120,(MATCH('4 - Species Breakdown'!$V399,'3 - Land Summary'!$C$21:$C$120,0))),\"\")","v":""},null,null,{"$f":"IF(OR(COUNTIF('Look Up Data'!$D$149:$D$203,D399),COUNTIF('Look Up Data'!$D$149:$D$203,AE399)),\"YES\",\"NO\")","v":"NO"},null,null,{"$f":"IFERROR(INDEX('3 - Land Summary'!$G$21:$G$120,(MATCH(C399,'3 - Land Summary'!$C$21:$C$120,0))),\"\")","v":""},{"$f":"IFERROR(INDEX('3 - Land Summary'!$I$21:$I$120,(MATCH(C399,'3 - Land Summary'!$C$21:$C$120,0))),\"\")","v":""},"","",null,null,null,{"$f":"IFERROR(VLOOKUP(D399,'Species List'!$D$10:$E$46,2,FALSE)*J399,\"\")","v":""},{"$f":"IFERROR(VLOOKUP(D399,'Species List'!$D$51:$E$89,2,FALSE)*J399,\"\")","v":""},{"$f":"IFERROR(VLOOKUP(D399,'Species List'!$D$95:$E$102,2,FALSE)*J399,\"\")","v":""},{"$f":"IFERROR(VLOOKUP(D399,'Species List'!$I$10:$J$11,2,FALSE)*J399,\"\")","v":""},{"$f":"IFERROR(VLOOKUP(D399,'Species List'!$I$16:$J$61,2,FALSE)*J399,\"\")","v":""},{"$f":"IFERROR(VLOOKUP(D399,'Species List'!$I$66:$J$66,2,FALSE)*J399,\"\")","v":""},{"$f":"IFERROR(VLOOKUP(D399,'Species List'!$I$71:$J$82,2,FALSE)*J399,\"\")","v":""},0,null,null,null,null,null,null,{"$f":"IFERROR(INDEX('3 - Land Summary'!$B$21:$B$120,(MATCH(AD399,'3 - Land Summary'!$C$21:$C$120,0))),\"\")","v":""}]
[null,{"$f":"IFERROR(INDEX('3 - Land Summary'!$B$21:$B$120,(MATCH('4 - Species Breakdown'!$V400,'3 - Land Summary'!$C$21:$C$120,0))),\"\")","v":""},null,null,{"$f":"IF(OR(COUNTIF('Look Up Data'!$D$149:$D$203,D400),COUNTIF('Look Up Data'!$D$149:$D$203,AE400)),\"YES\",\"NO\")","v":"NO"},null,null,{"$f":"IFERROR(INDEX('3 - Land Summary'!$G$21:$G$120,(MATCH(C400,'3 - Land Summary'!$C$21:$C$120,0))),\"\")","v":""},{"$f":"IFERROR(INDEX('3 - Land Summary'!$I$21:$I$120,(MATCH(C400,'3 - Land Summary'!$C$21:$C$120,0))),\"\")","v":""},"","",null,null,null,{"$f":"IFERROR(VLOOKUP(D400,'Species List'!$D$10:$E$46,2,FALSE)*J400,\"\")","v":""},{"$f":"IFERROR(VLOOKUP(D400,'Species List'!$D$51:$E$89,2,FALSE)*J400,\"\")","v":""},{"$f":"IFERROR(VLOOKUP(D400,'Species List'!$D$95:$E$102,2,FALSE)*J400,\"\")","v":""},{"$f":"IFERROR(VLOOKUP(D400,'Species List'!$I$10:$J$11,2,FALSE)*J400,\"\")","v":""},{"$f":"IFERROR(VLOOKUP(D400,'Species List'!$I$16:$J$61,2,FALSE)*J400,\"\")","v":""},{"$f":"IFERROR(VLOOKUP(D400,'Species List'!$I$66:$J$66,2,FALSE)*J400,\"\")","v":""},{"$f":"IFERROR(VLOOKUP(D400,'Species List'!$I$71:$J$82,2,FALSE)*J400,\"\")","v":""},0,null,null,null,null,null,null,{"$f":"IFERROR(INDEX('3 - Land Summary'!$B$21:$B$120,(MATCH(AD400,'3 - Land Summary'!$C$21:$C$120,0))),\"\")","v":""}]
[null,{"$f":"IFERROR(INDEX('3 - Land Summary'!$B$21:$B$120,(MATCH('4 - Species Breakdown'!$V401,'3 - Land Summary'!$C$21:$C$120,0))),\"\")","v":""},null,null,{"$f":"IF(OR(COUNTIF('Look Up Data'!$D$149:$D$203,D401),COUNTIF('Look Up Data'!$D$149:$D$203,AE401)),\"YES\",\"NO\")","v":"NO"},null,null,{"$f":"IFERROR(INDEX('3 - Land Summary'!$G$21:$G$120,(MATCH(C401,'3 - Land Summary'!$C$21:$C$120,0))),\"\")","v":""},{"$f":"IFERROR(INDEX('3 - Land Summary'!$I$21:$I$120,(MATCH(C401,'3 - Land Summary'!$C$21:$C$120,0))),\"\")","v":""},"","",null,null,null,{"$f":"IFERROR(VLOOKUP(D401,'Species List'!$D$10:$E$46,2,FALSE)*J401,\"\")","v":""},{"$f":"IFERROR(VLOOKUP(D401,'Species List'!$D$51:$E$89,2,FALSE)*J401,\"\")","v":""},{"$f":"IFERROR(VLOOKUP(D401,'Species List'!$D$95:$E$102,2,FALSE)*J401,\"\")","v":""},{"$f":"IFERROR(VLOOKUP(D401,'Species List'!$I$10:$J$11,2,FALSE)*J401,\"\")","v":""},{"$f":"IFERROR(VLOOKUP(D401,'Species List'!$I$16:$J$61,2,FALSE)*J401,\"\")","v":""},{"$f":"IFERROR(VLOOKUP(D401,'Species List'!$I$66:$J$66,2,FALSE)*J401,\"\")","v":""},{"$f":"IFERROR(VLOOKUP(D401,'Species List'!$I$71:$J$82,2,FALSE)*J401,\"\")","v":""},0,null,null,null,null,null,null,{"$f":"IFERROR(INDEX('3 - Land Summary'!$B$21:$B$120,(MATCH(AD401,'3 - Land Summary'!$C$21:$C$120,0))),\"\")","v":""}]
[null,{"$f":"IFERROR(INDEX('3 - Land Summary'!$B$21:$B$120,(MATCH('4 - Species Breakdown'!$V402,'3 - Land Summary'!$C$21:$C$120,0))),\"\")","v":""},null,null,{"$f":"IF(OR(COUNTIF('Look Up Data'!$D$149:$D$203,D402),COUNTIF('Look Up Data'!$D$149:$D$203,AE402)),\"YES\",\"NO\")","v":"NO"},null,null,{"$f":"IFERROR(INDEX('3 - Land Summary'!$G$21:$G$120,(MATCH(C402,'3 - Land Summary'!$C$21:$C$120,0))),\"\")","v":""},{"$f":"IFERROR(INDEX('3 - Land Summary'!$I$21:$I$120,(MATCH(C402,'3 - Land Summary'!$C$21:$C$120,0))),\"\")","v":""},"","",null,null,null,{"$f":"IFERROR(VLOOKUP(D402,'Species List'!$D$10:$E$46,2,FALSE)*J402,\"\")","v":""},{"$f":"IFERROR(VLOOKUP(D402,'Species List'!$D$51:$E$89,2,FALSE)*J402,\"\")","v":""},{"$f":"IFERROR(VLOOKUP(D402,'Species List'!$D$95:$E$102,2,FALSE)*J402,\"\")","v":""},{"$f":"IFERROR(VLOOKUP(D402,'Species List'!$I$10:$J$11,2,FALSE)*J402,\"\")","v":""},{"$f":"IFERROR(VLOOKUP(D402,'Species List'!$I$16:$J$61,2,FALSE)*J402,\"\")","v":""},{"$f":"IFERROR(VLOOKUP(D402,'Species List'!$I$66:$J$66,2,FALSE)*J402,\"\")","v":""},{"$f":"IFERROR(VLOOKUP(D402,'Species List'!$I$71:$J$82,2,FALSE)*J402,\"\")","v":""},0,null,null,null,null,null,null,{"$f":"IFERROR(INDEX('3 - Land Summary'!$B$21:$B$120,(MATCH(AD402,'3 - Land Summary'!$C$21:$C$120,0))),\"\")","v":""}]
[null,{"$f":"IFERROR(INDEX('3 - Land Summary'!$B$21:$B$120,(MATCH('4 - Species Breakdown'!$V403,'3 - Land Summary'!$C$21:$C$120,0))),\"\")","v":""},null,null,{"$f":"IF(OR(COUNTIF('Look Up Data'!$D$149:$D$203,D403),COUNTIF('Look Up Data'!$D$149:$D$203,AE403)),\"YES\",\"NO\")","v":"NO"},null,null,{"$f":"IFERROR(INDEX('3 - Land Summary'!$G$21:$G$120,(MATCH(C403,'3 - Land Summary'!$C$21:$C$120,0))),\"\")","v":""},{"$f":"IFERROR(INDEX('3 - Land Summary'!$I$21:$I$120,(MATCH(C403,'3 - Land Summary'!$C$21:$C$120,0))),\"\")","v":""},"","",null,null,null,{"$f":"IFERROR(VLOOKUP(D403,'Species List'!$D$10:$E$46,2,FALSE)*J403,\"\")","v":""},{"$f":"IFERROR(VLOOKUP(D403,'Species List'!$D$51:$E$89,2,FALSE)*J403,\"\")","v":""},{"$f":"IFERROR(VLOOKUP(D403,'Species List'!$D$95:$E$102,2,FALSE)*J403,\"\")","v":""},{"$f":"IFERROR(VLOOKUP(D403,'Species List'!$I$10:$J$11,2,FALSE)*J403,\"\")","v":""},{"$f":"IFERROR(VLOOKUP(D403,'Species List'!$I$16:$J$61,2,FALSE)*J403,\"\")","v":""},{"$f":"IFERROR(VLOOKUP(D403,'Species List'!$I$66:$J$66,2,FALSE)*J403,\"\")","v":""},{"$f":"IFERROR(VLOOKUP(D403,'Species List'!$I$71:$J$82,2,FALSE)*J403,\"\")","v":""},0,null,null,null,null,null,null,{"$f":"IFERROR(INDEX('3 - Land Summary'!$B$21:$B$120,(MATCH(AD403,'3 - Land Summary'!$C$21:$C$120,0))),\"\")","v":""}]
[null,{"$f":"IFERROR(INDEX('3 - Land Summary'!$B$21:$B$120,(MATCH('4 - Species Breakdown'!$V404,'3 - Land Summary'!$C$21:$C$120,0))),\"\")","v":""},null,null,{"$f":"IF(OR(COUNTIF('Look Up Data'!$D$149:$D$203,D404),COUNTIF('Look Up Data'!$D$149:$D$203,AE404)),\"YES\",\"NO\")","v":"NO"},null,null,{"$f":"IFERROR(INDEX('3 - Land Summary'!$G$21:$G$120,(MATCH(C404,'3 - Land Summary'!$C$21:$C$120,0))),\"\")","v":""},{"$f":"IFERROR(INDEX('3 - Land Summary'!$I$21:$I$120,(MATCH(C404,'3 - Land Summary'!$C$21:$C$120,0))),\"\")","v":""},"","",null,null,null,{"$f":"IFERROR(VLOOKUP(D404,'Species List'!$D$10:$E$46,2,FALSE)*J404,\"\")","v":""},{"$f":"IFERROR(VLOOKUP(D404,'Species List'!$D$51:$E$89,2,FALSE)*J404,\"\")","v":""},{"$f":"IFERROR(VLOOKUP(D404,'Species List'!$D$95:$E$102,2,FALSE)*J404,\"\")","v":""},{"$f":"IFERROR(VLOOKUP(D404,'Species List'!$I$10:$J$11,2,FALSE)*J404,\"\")","v":""},{"$f":"IFERROR(VLOOKUP(D404,'Species List'!$I$16:$J$61,2,FALSE)*J404,\"\")","v":""},{"$f":"IFERROR(VLOOKUP(D404,'Species List'!$I$66:$J$66,2,FALSE)*J404,\"\")","v":""},{"$f":"IFERROR(VLOOKUP(D404,'Species List'!$I$71:$J$82,2,FALSE)*J404,\"\")","v":""},0,null,null,null,null,null,null,{"$f":"IFERROR(INDEX('3 - Land Summary'!$B$21:$B$120,(MATCH(AD404,'3 - Land Summary'!$C$21:$C$120,0))),\"\")","v":""}]
[null,{"$f":"IFERROR(INDEX('3 - Land Summary'!$B$21:$B$120,(MATCH('4 - Species Breakdown'!$V405,'3 - Land Summary'!$C$21:$C$120,0))),\"\")","v":""},null,null,{"$f":"IF(OR(COUNTIF('Look Up Data'!$D$149:$D$203,D405),COUNTIF('Look Up Data'!$D$149:$D$203,AE405)),\"YES\",\"NO\")","v":"NO"},null,null,{"$f":"IFERROR(INDEX('3 - Land Summary'!$G$21:$G$120,(MATCH(C405,'3 - Land Summary'!$C$21:$C$120,0))),\"\")","v":""},{"$f":"IFERROR(INDEX('3 - Land Summary'!$I$21:$I$120,(MATCH(C405,'3 - Land Summary'!$C$21:$C$120,0))),\"\")","v":""},"","",null,null,null,{"$f":"IFERROR(VLOOKUP(D405,'Species List'!$D$10:$E$46,2,FALSE)*J405,\"\")","v":""},{"$f":"IFERROR(VLOOKUP(D405,'Species List'!$D$51:$E$89,2,FALSE)*J405,\"\")","v":""},{"$f":"IFERROR(VLOOKUP(D405,'Species List'!$D$95:$E$102,2,FALSE)*J405,\"\")","v":""},{"$f":"IFERROR(VLOOKUP(D405,'Species List'!$I$10:$J$11,2,FALSE)*J405,\"\")","v":""},{"$f":"IFERROR(VLOOKUP(D405,'Species List'!$I$16:$J$61,2,FALSE)*J405,\"\")","v":""},{"$f":"IFERROR(VLOOKUP(D405,'Species List'!$I$66:$J$66,2,FALSE)*J405,\"\")","v":""},{"$f":"IFERROR(VLOOKUP(D405,'Species List'!$I$71:$J$82,2,FALSE)*J405,\"\")","v":""},0,null,null,null,null,null,null,{"$f":"IFERROR(INDEX('3 - Land Summary'!$B$21:$B$120,(MATCH(AD405,'3 - Land Summary'!$C$21:$C$120,0))),\"\")","v":""}]
[null,{"$f":"IFERROR(INDEX('3 - Land Summary'!$B$21:$B$120,(MATCH('4 - Species Breakdown'!$V406,'3 - Land Summary'!$C$21:$C$120,0))),\"\")","v":""},null,null,{"$f":"IF(OR(COUNTIF('Look Up Data'!$D$149:$D$203,D406),COUNTIF('Look Up Data'!$D$149:$D$203,AE406)),\"YES\",\"NO\")","v":"NO"},null,null,{"$f":"IFERROR(INDEX('3 - Land Summary'!$G$21:$G$120,(MATCH(C406,'3 - Land Summary'!$C$21:$C$120,0))),\"\")","v":""},{"$f":"IFERROR(INDEX('3 - Land Summary'!$I$21:$I$120,(MATCH(C406,'3 - Land Summary'!$C$21:$C$120,0))),\"\")","v":""},"","",null,null,null,{"$f":"IFERROR(VLOOKUP(D406,'Species List'!$D$10:$E$46,2,FALSE)*J406,\"\")","v":""},{"$f":"IFERROR(VLOOKUP(D406,'Species List'!$D$51:$E$89,2,FALSE)*J406,\"\")","v":""},{"$f":"IFERROR(VLOOKUP(D406,'Species List'!$D$95:$E$102,2,FALSE)*J406,\"\")","v":""},{"$f":"IFERROR(VLOOKUP(D406,'Species List'!$I$10:$J$11,2,FALSE)*J406,\"\")","v":""},{"$f":"IFERROR(VLOOKUP(D406,'Species List'!$I$16:$J$61,2,FALSE)*J406,\"\")","v":""},{"$f":"IFERROR(VLOOKUP(D406,'Species List'!$I$66:$J$66,2,FALSE)*J406,\"\")","v":""},{"$f":"IFERROR(VLOOKUP(D406,'Species List'!$I$71:$J$82,2,FALSE)*J406,\"\")","v":""},0,null,null,null,null,null,null,{"$f":"IFERROR(INDEX('3 - Land Summary'!$B$21:$B$120,(MATCH(AD406,'3 - Land Summary'!$C$21:$C$120,0))),\"\")","v":""}]
[null,{"$f":"IFERROR(INDEX('3 - Land Summary'!$B$21:$B$120,(MATCH('4 - Species Breakdown'!$V407,'3 - Land Summary'!$C$21:$C$120,0))),\"\")","v":""},null,null,{"$f":"IF(OR(COUNTIF('Look Up Data'!$D$149:$D$203,D407),COUNTIF('Look Up Data'!$D$149:$D$203,AE407)),\"YES\",\"NO\")","v":"NO"},null,null,{"$f":"IFERROR(INDEX('3 - Land Summary'!$G$21:$G$120,(MATCH(C407,'3 - Land Summary'!$C$21:$C$120,0))),\"\")","v":""},{"$f":"IFERROR(INDEX('3 - Land Summary'!$I$21:$I$120,(MATCH(C407,'3 - Land Summary'!$C$21:$C$120,0))),\"\")","v":""},"","",null,null,null,{"$f":"IFERROR(VLOOKUP(D407,'Species List'!$D$10:$E$46,2,FALSE)*J407,\"\")","v":""},{"$f":"IFERROR(VLOOKUP(D407,'Species List'!$D$51:$E$89,2,FALSE)*J407,\"\")","v":""},{"$f":"IFERROR(VLOOKUP(D407,'Species List'!$D$95:$E$102,2,FALSE)*J407,\"\")","v":""},{"$f":"IFERROR(VLOOKUP(D407,'Species List'!$I$10:$J$11,2,FALSE)*J407,\"\")","v":""},{"$f":"IFERROR(VLOOKUP(D407,'Species List'!$I$16:$J$61,2,FALSE)*J407,\"\")","v":""},{"$f":"IFERROR(VLOOKUP(D407,'Species List'!$I$66:$J$66,2,FALSE)*J407,\"\")","v":""},{"$f":"IFERROR(VLOOKUP(D407,'Species List'!$I$71:$J$82,2,FALSE)*J407,\"\")","v":""},0,null,null,null,null,null,null,{"$f":"IFERROR(INDEX('3 - Land Summary'!$B$21:$B$120,(MATCH(AD407,'3 - Land Summary'!$C$21:$C$120,0))),\"\")","v":""}]
[null,{"$f":"IFERROR(INDEX('3 - Land Summary'!$B$21:$B$120,(MATCH('4 - Species Breakdown'!$V408,'3 - Land Summary'!$C$21:$C$120,0))),\"\")","v":""},null,null,{"$f":"IF(OR(COUNTIF('Look Up Data'!$D$149:$D$203,D408),COUNTIF('Look Up Data'!$D$149:$D$203,AE408)),\"YES\",\"NO\")","v":"NO"},null,null,{"$f":"IFERROR(INDEX('3 - Land Summary'!$G$21:$G$120,(MATCH(C408,'3 - Land Summary'!$C$21:$C$120,0))),\"\")","v":""},{"$f":"IFERROR(INDEX('3 - Land Summary'!$I$21:$I$120,(MATCH(C408,'3 - Land Summary'!$C$21:$C$120,0))),\"\")","v":""},"","",null,null,null,{"$f":"IFERROR(VLOOKUP(D408,'Species List'!$D$10:$E$46,2,FALSE)*J408,\"\")","v":""},{"$f":"IFERROR(VLOOKUP(D408,'Species List'!$D$51:$E$89,2,FALSE)*J408,\"\")","v":""},{"$f":"IFERROR(VLOOKUP(D408,'Species List'!$D$95:$E$102,2,FALSE)*J408,\"\")","v":""},{"$f":"IFERROR(VLOOKUP(D408,'Species List'!$I$10:$J$11,2,FALSE)*J408,\"\")","v":""},{"$f":"IFERROR(VLOOKUP(D408,'Species List'!$I$16:$J$61,2,FALSE)*J408,\"\")","v":""},{"$f":"IFERROR(VLOOKUP(D408,'Species List'!$I$66:$J$66,2,FALSE)*J408,\"\")","v":""},{"$f":"IFERROR(VLOOKUP(D408,'Species List'!$I$71:$J$82,2,FALSE)*J408,\"\")","v":""},0,null,null,null,null,null,null,{"$f":"IFERROR(INDEX('3 - Land Summary'!$B$21:$B$120,(MATCH(AD408,'3 - Land Summary'!$C$21:$C$120,0))),\"\")","v":""}]
[null,{"$f":"IFERROR(INDEX('3 - Land Summary'!$B$21:$B$120,(MATCH('4 - Species Breakdown'!$V409,'3 - Land Summary'!$C$21:$C$120,0))),\"\")","v":""},null,null,{"$f":"IF(OR(COUNTIF('Look Up Data'!$D$149:$D$203,D409),COUNTIF('Look Up Data'!$D$149:$D$203,AE409)),\"YES\",\"NO\")","v":"NO"},null,null,{"$f":"IFERROR(INDEX('3 - Land Summary'!$G$21:$G$120,(MATCH(C409,'3 - Land Summary'!$C$21:$C$120,0))),\"\")","v":""},{"$f":"IFERROR(INDEX('3 - Land Summary'!$I$21:$I$120,(MATCH(C409,'3 - Land Summary'!$C$21:$C$120,0))),\"\")","v":""},"","",null,null,null,{"$f":"IFERROR(VLOOKUP(D409,'Species List'!$D$10:$E$46,2,FALSE)*J409,\"\")","v":""},{"$f":"IFERROR(VLOOKUP(D409,'Species List'!$D$51:$E$89,2,FALSE)*J409,\"\")","v":""},{"$f":"IFERROR(VLOOKUP(D409,'Species List'!$D$95:$E$102,2,FALSE)*J409,\"\")","v":""},{"$f":"IFERROR(VLOOKUP(D409,'Species List'!$I$10:$J$11,2,FALSE)*J409,\"\")","v":""},{"$f":"IFERROR(VLOOKUP(D409,'Species List'!$I$16:$J$61,2,FALSE)*J409,\"\")","v":""},{"$f":"IFERROR(VLOOKUP(D409,'Species List'!$I$66:$J$66,2,FALSE)*J409,\"\")","v":""},{"$f":"IFERROR(VLOOKUP(D409,'Species List'!$I$71:$J$82,2,FALSE)*J409,\"\")","v":""},0,null,null,null,null,null,null,{"$f":"IFERROR(INDEX('3 - Land Summary'!$B$21:$B$120,(MATCH(AD409,'3 - Land Summary'!$C$21:$C$120,0))),\"\")","v":""}]
[null,{"$f":"IFERROR(INDEX('3 - Land Summary'!$B$21:$B$120,(MATCH('4 - Species Breakdown'!$V410,'3 - Land Summary'!$C$21:$C$120,0))),\"\")","v":""},null,null,{"$f":"IF(OR(COUNTIF('Look Up Data'!$D$149:$D$203,D410),COUNTIF('Look Up Data'!$D$149:$D$203,AE410)),\"YES\",\"NO\")","v":"NO"},null,null,{"$f":"IFERROR(INDEX('3 - Land Summary'!$G$21:$G$120,(MATCH(C410,'3 - Land Summary'!$C$21:$C$120,0))),\"\")","v":""},{"$f":"IFERROR(INDEX('3 - Land Summary'!$I$21:$I$120,(MATCH(C410,'3 - Land Summary'!$C$21:$C$120,0))),\"\")","v":""},"","",null,null,null,{"$f":"IFERROR(VLOOKUP(D410,'Species List'!$D$10:$E$46,2,FALSE)*J410,\"\")","v":""},{"$f":"IFERROR(VLOOKUP(D410,'Species List'!$D$51:$E$89,2,FALSE)*J410,\"\")","v":""},{"$f":"IFERROR(VLOOKUP(D410,'Species List'!$D$95:$E$102,2,FALSE)*J410,\"\")","v":""},{"$f":"IFERROR(VLOOKUP(D410,'Species List'!$I$10:$J$11,2,FALSE)*J410,\"\")","v":""},{"$f":"IFERROR(VLOOKUP(D410,'Species List'!$I$16:$J$61,2,FALSE)*J410,\"\")","v":""},{"$f":"IFERROR(VLOOKUP(D410,'Species List'!$I$66:$J$66,2,FALSE)*J410,\"\")","v":""},{"$f":"IFERROR(VLOOKUP(D410,'Species List'!$I$71:$J$82,2,FALSE)*J410,\"\")","v":""},0,null,null,null,null,null,null,{"$f":"IFERROR(INDEX('3 - Land Summary'!$B$21:$B$120,(MATCH(AD410,'3 - Land Summary'!$C$21:$C$120,0))),\"\")","v":""}]
[null,{"$f":"IFERROR(INDEX('3 - Land Summary'!$B$21:$B$120,(MATCH('4 - Species Breakdown'!$V411,'3 - Land Summary'!$C$21:$C$120,0))),\"\")","v":""},null,null,{"$f":"IF(OR(COUNTIF('Look Up Data'!$D$149:$D$203,D411),COUNTIF('Look Up Data'!$D$149:$D$203,AE411)),\"YES\",\"NO\")","v":"NO"},null,null,{"$f":"IFERROR(INDEX('3 - Land Summary'!$G$21:$G$120,(MATCH(C411,'3 - Land Summary'!$C$21:$C$120,0))),\"\")","v":""},{"$f":"IFERROR(INDEX('3 - Land Summary'!$I$21:$I$120,(MATCH(C411,'3 - Land Summary'!$C$21:$C$120,0))),\"\")","v":""},"","",null,null,null,{"$f":"IFERROR(VLOOKUP(D411,'Species List'!$D$10:$E$46,2,FALSE)*J411,\"\")","v":""},{"$f":"IFERROR(VLOOKUP(D411,'Species List'!$D$51:$E$89,2,FALSE)*J411,\"\")","v":""},{"$f":"IFERROR(VLOOKUP(D411,'Species List'!$D$95:$E$102,2,FALSE)*J411,\"\")","v":""},{"$f":"IFERROR(VLOOKUP(D411,'Species List'!$I$10:$J$11,2,FALSE)*J411,\"\")","v":""},{"$f":"IFERROR(VLOOKUP(D411,'Species List'!$I$16:$J$61,2,FALSE)*J411,\"\")","v":""},{"$f":"IFERROR(VLOOKUP(D411,'Species List'!$I$66:$J$66,2,FALSE)*J411,\"\")","v":""},{"$f":"IFERROR(VLOOKUP(D411,'Species List'!$I$71:$J$82,2,FALSE)*J411,\"\")","v":""},0,null,null,null,null,null,null,{"$f":"IFERROR(INDEX('3 - Land Summary'!$B$21:$B$120,(MATCH(AD411,'3 - Land Summary'!$C$21:$C$120,0))),\"\")","v":""}]
[null,{"$f":"IFERROR(INDEX('3 - Land Summary'!$B$21:$B$120,(MATCH('4 - Species Breakdown'!$V412,'3 - Land Summary'!$C$21:$C$120,0))),\"\")","v":""},null,null,{"$f":"IF(OR(COUNTIF('Look Up Data'!$D$149:$D$203,D412),COUNTIF('Look Up Data'!$D$149:$D$203,AE412)),\"YES\",\"NO\")","v":"NO"},null,null,{"$f":"IFERROR(INDEX('3 - Land Summary'!$G$21:$G$120,(MATCH(C412,'3 - Land Summary'!$C$21:$C$120,0))),\"\")","v":""},{"$f":"IFERROR(INDEX('3 - Land Summary'!$I$21:$I$120,(MATCH(C412,'3 - Land Summary'!$C$21:$C$120,0))),\"\")","v":""},"","",null,null,null,{"$f":"IFERROR(VLOOKUP(D412,'Species List'!$D$10:$E$46,2,FALSE)*J412,\"\")","v":""},{"$f":"IFERROR(VLOOKUP(D412,'Species List'!$D$51:$E$89,2,FALSE)*J412,\"\")","v":""},{"$f":"IFERROR(VLOOKUP(D412,'Species List'!$D$95:$E$102,2,FALSE)*J412,\"\")","v":""},{"$f":"IFERROR(VLOOKUP(D412,'Species List'!$I$10:$J$11,2,FALSE)*J412,\"\")","v":""},{"$f":"IFERROR(VLOOKUP(D412,'Species List'!$I$16:$J$61,2,FALSE)*J412,\"\")","v":""},{"$f":"IFERROR(VLOOKUP(D412,'Species List'!$I$66:$J$66,2,FALSE)*J412,\"\")","v":""},{"$f":"IFERROR(VLOOKUP(D412,'Species List'!$I$71:$J$82,2,FALSE)*J412,\"\")","v":""},0,null,null,null,null,null,null,{"$f":"IFERROR(INDEX('3 - Land Summary'!$B$21:$B$120,(MATCH(AD412,'3 - Land Summary'!$C$21:$C$120,0))),\"\")","v":""}]
[null,{"$f":"IFERROR(INDEX('3 - Land Summary'!$B$21:$B$120,(MATCH('4 - Species Breakdown'!$V413,'3 - Land Summary'!$C$21:$C$120,0))),\"\")","v":""},null,null,{"$f":"IF(OR(COUNTIF('Look Up Data'!$D$149:$D$203,D413),COUNTIF('Look Up Data'!$D$149:$D$203,AE413)),\"YES\",\"NO\")","v":"NO"},null,null,{"$f":"IFERROR(INDEX('3 - Land Summary'!$G$21:$G$120,(MATCH(C413,'3 - Land Summary'!$C$21:$C$120,0))),\"\")","v":""},{"$f":"IFERROR(INDEX('3 - Land Summary'!$I$21:$I$120,(MATCH(C413,'3 - Land Summary'!$C$21:$C$120,0))),\"\")","v":""},"","",null,null,null,{"$f":"IFERROR(VLOOKUP(D413,'Species List'!$D$10:$E$46,2,FALSE)*J413,\"\")","v":""},{"$f":"IFERROR(VLOOKUP(D413,'Species List'!$D$51:$E$89,2,FALSE)*J413,\"\")","v":""},{"$f":"IFERROR(VLOOKUP(D413,'Species List'!$D$95:$E$102,2,FALSE)*J413,\"\")","v":""},{"$f":"IFERROR(VLOOKUP(D413,'Species List'!$I$10:$J$11,2,FALSE)*J413,\"\")","v":""},{"$f":"IFERROR(VLOOKUP(D413,'Species List'!$I$16:$J$61,2,FALSE)*J413,\"\")","v":""},{"$f":"IFERROR(VLOOKUP(D413,'Species List'!$I$66:$J$66,2,FALSE)*J413,\"\")","v":""},{"$f":"IFERROR(VLOOKUP(D413,'Species List'!$I$71:$J$82,2,FALSE)*J413,\"\")","v":""},0,null,null,null,null,null,null,{"$f":"IFERROR(INDEX('3 - Land Summary'!$B$21:$B$120,(MATCH(AD413,'3 - Land Summary'!$C$21:$C$120,0))),\"\")","v":""}]
[null,{"$f":"IFERROR(INDEX('3 - Land Summary'!$B$21:$B$120,(MATCH('4 - Species Breakdown'!$V414,'3 - Land Summary'!$C$21:$C$120,0))),\"\")","v":""},null,null,{"$f":"IF(OR(COUNTIF('Look Up Data'!$D$149:$D$203,D414),COUNTIF('Look Up Data'!$D$149:$D$203,AE414)),\"YES\",\"NO\")","v":"NO"},null,null,{"$f":"IFERROR(INDEX('3 - Land Summary'!$G$21:$G$120,(MATCH(C414,'3 - Land Summary'!$C$21:$C$120,0))),\"\")","v":""},{"$f":"IFERROR(INDEX('3 - Land Summary'!$I$21:$I$120,(MATCH(C414,'3 - Land Summary'!$C$21:$C$120,0))),\"\")","v":""},"","",null,null,null,{"$f":"IFERROR(VLOOKUP(D414,'Species List'!$D$10:$E$46,2,FALSE)*J414,\"\")","v":""},{"$f":"IFERROR(VLOOKUP(D414,'Species List'!$D$51:$E$89,2,FALSE)*J414,\"\")","v":""},{"$f":"IFERROR(VLOOKUP(D414,'Species List'!$D$95:$E$102,2,FALSE)*J414,\"\")","v":""},{"$f":"IFERROR(VLOOKUP(D414,'Species List'!$I$10:$J$11,2,FALSE)*J414,\"\")","v":""},{"$f":"IFERROR(VLOOKUP(D414,'Species List'!$I$16:$J$61,2,FALSE)*J414,\"\")","v":""},{"$f":"IFERROR(VLOOKUP(D414,'Species List'!$I$66:$J$66,2,FALSE)*J414,\"\")","v":""},{"$f":"IFERROR(VLOOKUP(D414,'Species List'!$I$71:$J$82,2,FALSE)*J414,\"\")","v":""},0,null,null,null,null,null,null,{"$f":"IFERROR(INDEX('3 - Land Summary'!$B$21:$B$120,(MATCH(AD414,'3 - Land Summary'!$C$21:$C$120,0))),\"\")","v":""}]
[null,{"$f":"IFERROR(INDEX('3 - Land Summary'!$B$21:$B$120,(MATCH('4 - Species Breakdown'!$V415,'3 - Land Summary'!$C$21:$C$120,0))),\"\")","v":""},null,null,{"$f":"IF(OR(COUNTIF('Look Up Data'!$D$149:$D$203,D415),COUNTIF('Look Up Data'!$D$149:$D$203,AE415)),\"YES\",\"NO\")","v":"NO"},null,null,{"$f":"IFERROR(INDEX('3 - Land Summary'!$G$21:$G$120,(MATCH(C415,'3 - Land Summary'!$C$21:$C$120,0))),\"\")","v":""},{"$f":"IFERROR(INDEX('3 - Land Summary'!$I$21:$I$120,(MATCH(C415,'3 - Land Summary'!$C$21:$C$120,0))),\"\")","v":""},{"$f":"IFERROR(((H415-I415)*F415)/100,\"\")","v":""},"",null,null,null,{"$f":"IFERROR(VLOOKUP(D415,'Species List'!$D$10:$E$46,2,FALSE)*J415,\"\")","v":""},{"$f":"IFERROR(VLOOKUP(D415,'Species List'!$D$51:$E$89,2,FALSE)*J415,\"\")","v":""},{"$f":"IFERROR(VLOOKUP(D415,'Species List'!$D$95:$E$102,2,FALSE)*J415,\"\")","v":""},{"$f":"IFERROR(VLOOKUP(D415,'Species List'!$I$10:$J$11,2,FALSE)*J415,\"\")","v":""},{"$f":"IFERROR(VLOOKUP(D415,'Species List'!$I$16:$J$61,2,FALSE)*J415,\"\")","v":""},{"$f":"IFERROR(VLOOKUP(D415,'Species List'!$I$66:$J$66,2,FALSE)*J415,\"\")","v":""},{"$f":"IFERROR(VLOOKUP(D415,'Species List'!$I$71:$J$82,2,FALSE)*J415,\"\")","v":""},{"$f":"C415","v":0},null,null,null,null,null,null,{"$f":"IFERROR(INDEX('3 - Land Summary'!$B$21:$B$120,(MATCH(AD415,'3 - Land Summary'!$C$21:$C$120,0))),\"\")","v":""}]
[null,{"$f":"IFERROR(INDEX('3 - Land Summary'!$B$21:$B$120,(MATCH('4 - Species Breakdown'!$V416,'3 - Land Summary'!$C$21:$C$120,0))),\"\")","v":""},null,null,{"$f":"IF(OR(COUNTIF('Look Up Data'!$D$149:$D$203,D416),COUNTIF('Look Up Data'!$D$149:$D$203,AE416)),\"YES\",\"NO\")","v":"NO"},null,null,{"$f":"IFERROR(INDEX('3 - Land Summary'!$G$21:$G$120,(MATCH(C416,'3 - Land Summary'!$C$21:$C$120,0))),\"\")","v":""},{"$f":"IFERROR(INDEX('3 - Land Summary'!$I$21:$I$120,(MATCH(C416,'3 - Land Summary'!$C$21:$C$120,0))),\"\")","v":""},"",{"$f":"IFERROR(ROUND(J416*G416,0),\"\")","v":""},null,null,null,{"$f":"IFERROR(VLOOKUP(D416,'Species List'!$D$10:$E$46,2,FALSE)*J416,\"\")","v":""},{"$f":"IFERROR(VLOOKUP(D416,'Species List'!$D$51:$E$89,2,FALSE)*J416,\"\")","v":""},{"$f":"IFERROR(VLOOKUP(D416,'Species List'!$D$95:$E$102,2,FALSE)*J416,\"\")","v":""},{"$f":"IFERROR(VLOOKUP(D416,'Species List'!$I$10:$J$11,2,FALSE)*J416,\"\")","v":""},{"$f":"IFERROR(VLOOKUP(D416,'Species List'!$I$16:$J$61,2,FALSE)*J416,\"\")","v":""},{"$f":"IFERROR(VLOOKUP(D416,'Species List'!$I$66:$J$66,2,FALSE)*J416,\"\")","v":""},{"$f":"IFERROR(VLOOKUP(D416,'Species List'!$I$71:$J$82,2,FALSE)*J416,\"\")","v":""},0,null,null,null,null,null,null,{"$f":"IFERROR(INDEX('3 - Land Summary'!$B$21:$B$120,(MATCH(AD416,'3 - Land Summary'!$C$21:$C$120,0))),\"\")","v":""}]
[null,{"$f":"IFERROR(INDEX('3 - Land Summary'!$B$21:$B$120,(MATCH('4 - Species Breakdown'!$V417,'3 - Land Summary'!$C$21:$C$120,0))),\"\")","v":""},null,null,{"$f":"IF(OR(COUNTIF('Look Up Data'!$D$149:$D$203,D417),COUNTIF('Look Up Data'!$D$149:$D$203,AE417)),\"YES\",\"NO\")","v":"NO"},null,null,{"$f":"IFERROR(INDEX('3 - Land Summary'!$G$21:$G$120,(MATCH(C417,'3 - Land Summary'!$C$21:$C$120,0))),\"\")","v":""},{"$f":"IFERROR(INDEX('3 - Land Summary'!$I$21:$I$120,(MATCH(C417,'3 - Land Summary'!$C$21:$C$120,0))),\"\")","v":""},"","",null,null,null,{"$f":"IFERROR(VLOOKUP(D417,'Species List'!$D$10:$E$46,2,FALSE)*J417,\"\")","v":""},{"$f":"IFERROR(VLOOKUP(D417,'Species List'!$D$51:$E$89,2,FALSE)*J417,\"\")","v":""},{"$f":"IFERROR(VLOOKUP(D417,'Species List'!$D$95:$E$102,2,FALSE)*J417,\"\")","v":""},{"$f":"IFERROR(VLOOKUP(D417,'Species List'!$I$10:$J$11,2,FALSE)*J417,\"\")","v":""},{"$f":"IFERROR(VLOOKUP(D417,'Species List'!$I$16:$J$61,2,FALSE)*J417,\"\")","v":""},{"$f":"IFERROR(VLOOKUP(D417,'Species List'!$I$66:$J$66,2,FALSE)*J417,\"\")","v":""},{"$f":"IFERROR(VLOOKUP(D417,'Species List'!$I$71:$J$82,2,FALSE)*J417,\"\")","v":""},0,null,null,null,null,null,null,{"$f":"IFERROR(INDEX('3 - Land Summary'!$B$21:$B$120,(MATCH(AD417,'3 - Land Summary'!$C$21:$C$120,0))),\"\")","v":""}]
[null,{"$f":"IFERROR(INDEX('3 - Land Summary'!$B$21:$B$120,(MATCH('4 - Species Breakdown'!$V418,'3 - Land Summary'!$C$21:$C$120,0))),\"\")","v":""},null,null,{"$f":"IF(OR(COUNTIF('Look Up Data'!$D$149:$D$203,D418),COUNTIF('Look Up Data'!$D$149:$D$203,AE418)),\"YES\",\"NO\")","v":"NO"},null,null,{"$f":"IFERROR(INDEX('3 - Land Summary'!$G$21:$G$120,(MATCH(C418,'3 - Land Summary'!$C$21:$C$120,0))),\"\")","v":""},{"$f":"IFERROR(INDEX('3 - Land Summary'!$I$21:$I$120,(MATCH(C418,'3 - Land Summary'!$C$21:$C$120,0))),\"\")","v":""},"","",null,null,null,{"$f":"IFERROR(VLOOKUP(D418,'Species List'!$D$10:$E$46,2,FALSE)*J418,\"\")","v":""},{"$f":"IFERROR(VLOOKUP(D418,'Species List'!$D$51:$E$89,2,FALSE)*J418,\"\")","v":""},{"$f":"IFERROR(VLOOKUP(D418,'Species List'!$D$95:$E$102,2,FALSE)*J418,\"\")","v":""},{"$f":"IFERROR(VLOOKUP(D418,'Species List'!$I$10:$J$11,2,FALSE)*J418,\"\")","v":""},{"$f":"IFERROR(VLOOKUP(D418,'Species List'!$I$16:$J$61,2,FALSE)*J418,\"\")","v":""},{"$f":"IFERROR(VLOOKUP(D418,'Species List'!$I$66:$J$66,2,FALSE)*J418,\"\")","v":""},{"$f":"IFERROR(VLOOKUP(D418,'Species List'!$I$71:$J$82,2,FALSE)*J418,\"\")","v":""},0,null,null,null,null,null,null,{"$f":"IFERROR(INDEX('3 - Land Summary'!$B$21:$B$120,(MATCH(AD418,'3 - Land Summary'!$C$21:$C$120,0))),\"\")","v":""}]
[null,{"$f":"IFERROR(INDEX('3 - Land Summary'!$B$21:$B$120,(MATCH('4 - Species Breakdown'!$V419,'3 - Land Summary'!$C$21:$C$120,0))),\"\")","v":""},null,null,{"$f":"IF(OR(COUNTIF('Look Up Data'!$D$149:$D$203,D419),COUNTIF('Look Up Data'!$D$149:$D$203,AE419)),\"YES\",\"NO\")","v":"NO"},null,null,{"$f":"IFERROR(INDEX('3 - Land Summary'!$G$21:$G$120,(MATCH(C419,'3 - Land Summary'!$C$21:$C$120,0))),\"\")","v":""},{"$f":"IFERROR(INDEX('3 - Land Summary'!$I$21:$I$120,(MATCH(C419,'3 - Land Summary'!$C$21:$C$120,0))),\"\")","v":""},"","",null,null,null,{"$f":"IFERROR(VLOOKUP(D419,'Species List'!$D$10:$E$46,2,FALSE)*J419,\"\")","v":""},{"$f":"IFERROR(VLOOKUP(D419,'Species List'!$D$51:$E$89,2,FALSE)*J419,\"\")","v":""},{"$f":"IFERROR(VLOOKUP(D419,'Species List'!$D$95:$E$102,2,FALSE)*J419,\"\")","v":""},{"$f":"IFERROR(VLOOKUP(D419,'Species List'!$I$10:$J$11,2,FALSE)*J419,\"\")","v":""},{"$f":"IFERROR(VLOOKUP(D419,'Species List'!$I$16:$J$61,2,FALSE)*J419,\"\")","v":""},{"$f":"IFERROR(VLOOKUP(D419,'Species List'!$I$66:$J$66,2,FALSE)*J419,\"\")","v":""},{"$f":"IFERROR(VLOOKUP(D419,'Species List'!$I$71:$J$82,2,FALSE)*J419,\"\")","v":""},0,null,null,null,null,null,null,{"$f":"IFERROR(INDEX('3 - Land Summary'!$B$21:$B$120,(MATCH(AD419,'3 - Land Summary'!$C$21:$C$120,0))),\"\")","v":""}]
[null,{"$f":"IFERROR(INDEX('3 - Land Summary'!$B$21:$B$120,(MATCH('4 - Species Breakdown'!$V420,'3 - Land Summary'!$C$21:$C$120,0))),\"\")","v":""},null,null,{"$f":"IF(OR(COUNTIF('Look Up Data'!$D$149:$D$203,D420),COUNTIF('Look Up Data'!$D$149:$D$203,AE420)),\"YES\",\"NO\")","v":"NO"},null,null,{"$f":"IFERROR(INDEX('3 - Land Summary'!$G$21:$G$120,(MATCH(C420,'3 - Land Summary'!$C$21:$C$120,0))),\"\")","v":""},{"$f":"IFERROR(INDEX('3 - Land Summary'!$I$21:$I$120,(MATCH(C420,'3 - Land Summary'!$C$21:$C$120,0))),\"\")","v":""},"","",null,null,null,{"$f":"IFERROR(VLOOKUP(D420,'Species List'!$D$10:$E$46,2,FALSE)*J420,\"\")","v":""},{"$f":"IFERROR(VLOOKUP(D420,'Species List'!$D$51:$E$89,2,FALSE)*J420,\"\")","v":""},{"$f":"IFERROR(VLOOKUP(D420,'Species List'!$D$95:$E$102,2,FALSE)*J420,\"\")","v":""},{"$f":"IFERROR(VLOOKUP(D420,'Species List'!$I$10:$J$11,2,FALSE)*J420,\"\")","v":""},{"$f":"IFERROR(VLOOKUP(D420,'Species List'!$I$16:$J$61,2,FALSE)*J420,\"\")","v":""},{"$f":"IFERROR(VLOOKUP(D420,'Species List'!$I$66:$J$66,2,FALSE)*J420,\"\")","v":""},{"$f":"IFERROR(VLOOKUP(D420,'Species List'!$I$71:$J$82,2,FALSE)*J420,\"\")","v":""},0,null,null,null,null,null,null,{"$f":"IFERROR(INDEX('3 - Land Summary'!$B$21:$B$120,(MATCH(AD420,'3 - Land Summary'!$C$21:$C$120,0))),\"\")","v":""}]
[null,{"$f":"IFERROR(INDEX('3 - Land Summary'!$B$21:$B$120,(MATCH('4 - Species Breakdown'!$V421,'3 - Land Summary'!$C$21:$C$120,0))),\"\")","v":""},null,null,{"$f":"IF(OR(COUNTIF('Look Up Data'!$D$149:$D$203,D421),COUNTIF('Look Up Data'!$D$149:$D$203,AE421)),\"YES\",\"NO\")","v":"NO"},null,null,{"$f":"IFERROR(INDEX('3 - Land Summary'!$G$21:$G$120,(MATCH(C421,'3 - Land Summary'!$C$21:$C$120,0))),\"\")","v":""},{"$f":"IFERROR(INDEX('3 - Land Summary'!$I$21:$I$120,(MATCH(C421,'3 - Land Summary'!$C$21:$C$120,0))),\"\")","v":""},"","",null,null,null,{"$f":"IFERROR(VLOOKUP(D421,'Species List'!$D$10:$E$46,2,FALSE)*J421,\"\")","v":""},{"$f":"IFERROR(VLOOKUP(D421,'Species List'!$D$51:$E$89,2,FALSE)*J421,\"\")","v":""},{"$f":"IFERROR(VLOOKUP(D421,'Species List'!$D$95:$E$102,2,FALSE)*J421,\"\")","v":""},{"$f":"IFERROR(VLOOKUP(D421,'Species List'!$I$10:$J$11,2,FALSE)*J421,\"\")","v":""},{"$f":"IFERROR(VLOOKUP(D421,'Species List'!$I$16:$J$61,2,FALSE)*J421,\"\")","v":""},{"$f":"IFERROR(VLOOKUP(D421,'Species List'!$I$66:$J$66,2,FALSE)*J421,\"\")","v":""},{"$f":"IFERROR(VLOOKUP(D421,'Species List'!$I$71:$J$82,2,FALSE)*J421,\"\")","v":""},0,null,null,null,null,null,null,{"$f":"IFERROR(INDEX('3 - Land Summary'!$B$21:$B$120,(MATCH(AD421,'3 - Land Summary'!$C$21:$C$120,0))),\"\")","v":""}]
[null,{"$f":"IFERROR(INDEX('3 - Land Summary'!$B$21:$B$120,(MATCH('4 - Species Breakdown'!$V422,'3 - Land Summary'!$C$21:$C$120,0))),\"\")","v":""},null,null,{"$f":"IF(OR(COUNTIF('Look Up Data'!$D$149:$D$203,D422),COUNTIF('Look Up Data'!$D$149:$D$203,AE422)),\"YES\",\"NO\")","v":"NO"},null,null,{"$f":"IFERROR(INDEX('3 - Land Summary'!$G$21:$G$120,(MATCH(C422,'3 - Land Summary'!$C$21:$C$120,0))),\"\")","v":""},{"$f":"IFERROR(INDEX('3 - Land Summary'!$I$21:$I$120,(MATCH(C422,'3 - Land Summary'!$C$21:$C$120,0))),\"\")","v":""},"","",null,null,null,{"$f":"IFERROR(VLOOKUP(D422,'Species List'!$D$10:$E$46,2,FALSE)*J422,\"\")","v":""},{"$f":"IFERROR(VLOOKUP(D422,'Species List'!$D$51:$E$89,2,FALSE)*J422,\"\")","v":""},{"$f":"IFERROR(VLOOKUP(D422,'Species List'!$D$95:$E$102,2,FALSE)*J422,\"\")","v":""},{"$f":"IFERROR(VLOOKUP(D422,'Species List'!$I$10:$J$11,2,FALSE)*J422,\"\")","v":""},{"$f":"IFERROR(VLOOKUP(D422,'Species List'!$I$16:$J$61,2,FALSE)*J422,\"\")","v":""},{"$f":"IFERROR(VLOOKUP(D422,'Species List'!$I$66:$J$66,2,FALSE)*J422,\"\")","v":""},{"$f":"IFERROR(VLOOKUP(D422,'Species List'!$I$71:$J$82,2,FALSE)*J422,\"\")","v":""},0,null,null,null,null,null,null,{"$f":"IFERROR(INDEX('3 - Land Summary'!$B$21:$B$120,(MATCH(AD422,'3 - Land Summary'!$C$21:$C$120,0))),\"\")","v":""}]
[null,{"$f":"IFERROR(INDEX('3 - Land Summary'!$B$21:$B$120,(MATCH('4 - Species Breakdown'!$V423,'3 - Land Summary'!$C$21:$C$120,0))),\"\")","v":""},null,null,{"$f":"IF(OR(COUNTIF('Look Up Data'!$D$149:$D$203,D423),COUNTIF('Look Up Data'!$D$149:$D$203,AE423)),\"YES\",\"NO\")","v":"NO"},null,null,{"$f":"IFERROR(INDEX('3 - Land Summary'!$G$21:$G$120,(MATCH(C423,'3 - Land Summary'!$C$21:$C$120,0))),\"\")","v":""},{"$f":"IFERROR(INDEX('3 - Land Summary'!$I$21:$I$120,(MATCH(C423,'3 - Land Summary'!$C$21:$C$120,0))),\"\")","v":""},"","",null,null,null,{"$f":"IFERROR(VLOOKUP(D423,'Species List'!$D$10:$E$46,2,FALSE)*J423,\"\")","v":""},{"$f":"IFERROR(VLOOKUP(D423,'Species List'!$D$51:$E$89,2,FALSE)*J423,\"\")","v":""},{"$f":"IFERROR(VLOOKUP(D423,'Species List'!$D$95:$E$102,2,FALSE)*J423,\"\")","v":""},{"$f":"IFERROR(VLOOKUP(D423,'Species List'!$I$10:$J$11,2,FALSE)*J423,\"\")","v":""},{"$f":"IFERROR(VLOOKUP(D423,'Species List'!$I$16:$J$61,2,FALSE)*J423,\"\")","v":""},{"$f":"IFERROR(VLOOKUP(D423,'Species List'!$I$66:$J$66,2,FALSE)*J423,\"\")","v":""},{"$f":"IFERROR(VLOOKUP(D423,'Species List'!$I$71:$J$82,2,FALSE)*J423,\"\")","v":""},0,null,null,null,null,null,null,{"$f":"IFERROR(INDEX('3 - Land Summary'!$B$21:$B$120,(MATCH(AD423,'3 - Land Summary'!$C$21:$C$120,0))),\"\")","v":""}]
[null,{"$f":"IFERROR(INDEX('3 - Land Summary'!$B$21:$B$120,(MATCH('4 - Species Breakdown'!$V424,'3 - Land Summary'!$C$21:$C$120,0))),\"\")","v":""},null,null,{"$f":"IF(OR(COUNTIF('Look Up Data'!$D$149:$D$203,D424),COUNTIF('Look Up Data'!$D$149:$D$203,AE424)),\"YES\",\"NO\")","v":"NO"},null,null,{"$f":"IFERROR(INDEX('3 - Land Summary'!$G$21:$G$120,(MATCH(C424,'3 - Land Summary'!$C$21:$C$120,0))),\"\")","v":""},{"$f":"IFERROR(INDEX('3 - Land Summary'!$I$21:$I$120,(MATCH(C424,'3 - Land Summary'!$C$21:$C$120,0))),\"\")","v":""},"","",null,null,null,{"$f":"IFERROR(VLOOKUP(D424,'Species List'!$D$10:$E$46,2,FALSE)*J424,\"\")","v":""},{"$f":"IFERROR(VLOOKUP(D424,'Species List'!$D$51:$E$89,2,FALSE)*J424,\"\")","v":""},{"$f":"IFERROR(VLOOKUP(D424,'Species List'!$D$95:$E$102,2,FALSE)*J424,\"\")","v":""},{"$f":"IFERROR(VLOOKUP(D424,'Species List'!$I$10:$J$11,2,FALSE)*J424,\"\")","v":""},{"$f":"IFERROR(VLOOKUP(D424,'Species List'!$I$16:$J$61,2,FALSE)*J424,\"\")","v":""},{"$f":"IFERROR(VLOOKUP(D424,'Species List'!$I$66:$J$66,2,FALSE)*J424,\"\")","v":""},{"$f":"IFERROR(VLOOKUP(D424,'Species List'!$I$71:$J$82,2,FALSE)*J424,\"\")","v":""},0,null,null,null,null,null,null,{"$f":"IFERROR(INDEX('3 - Land Summary'!$B$21:$B$120,(MATCH(AD424,'3 - Land Summary'!$C$21:$C$120,0))),\"\")","v":""}]
[null,{"$f":"IFERROR(INDEX('3 - Land Summary'!$B$21:$B$120,(MATCH('4 - Species Breakdown'!$V425,'3 - Land Summary'!$C$21:$C$120,0))),\"\")","v":""},null,null,{"$f":"IF(OR(COUNTIF('Look Up Data'!$D$149:$D$203,D425),COUNTIF('Look Up Data'!$D$149:$D$203,AE425)),\"YES\",\"NO\")","v":"NO"},null,null,{"$f":"IFERROR(INDEX('3 - Land Summary'!$G$21:$G$120,(MATCH(C425,'3 - Land Summary'!$C$21:$C$120,0))),\"\")","v":""},{"$f":"IFERROR(INDEX('3 - Land Summary'!$I$21:$I$120,(MATCH(C425,'3 - Land Summary'!$C$21:$C$120,0))),\"\")","v":""},"","",null,null,null,{"$f":"IFERROR(VLOOKUP(D425,'Species List'!$D$10:$E$46,2,FALSE)*J425,\"\")","v":""},{"$f":"IFERROR(VLOOKUP(D425,'Species List'!$D$51:$E$89,2,FALSE)*J425,\"\")","v":""},{"$f":"IFERROR(VLOOKUP(D425,'Species List'!$D$95:$E$102,2,FALSE)*J425,\"\")","v":""},{"$f":"IFERROR(VLOOKUP(D425,'Species List'!$I$10:$J$11,2,FALSE)*J425,\"\")","v":""},{"$f":"IFERROR(VLOOKUP(D425,'Species List'!$I$16:$J$61,2,FALSE)*J425,\"\")","v":""},{"$f":"IFERROR(VLOOKUP(D425,'Species List'!$I$66:$J$66,2,FALSE)*J425,\"\")","v":""},{"$f":"IFERROR(VLOOKUP(D425,'Species List'!$I$71:$J$82,2,FALSE)*J425,\"\")","v":""},0,null,null,null,null,null,null,{"$f":"IFERROR(INDEX('3 - Land Summary'!$B$21:$B$120,(MATCH(AD425,'3 - Land Summary'!$C$21:$C$120,0))),\"\")","v":""}]
[null,{"$f":"IFERROR(INDEX('3 - Land Summary'!$B$21:$B$120,(MATCH('4 - Species Breakdown'!$V426,'3 - Land Summary'!$C$21:$C$120,0))),\"\")","v":""},null,null,{"$f":"IF(OR(COUNTIF('Look Up Data'!$D$149:$D$203,D426),COUNTIF('Look Up Data'!$D$149:$D$203,AE426)),\"YES\",\"NO\")","v":"NO"},null,null,{"$f":"IFERROR(INDEX('3 - Land Summary'!$G$21:$G$120,(MATCH(C426,'3 - Land Summary'!$C$21:$C$120,0))),\"\")","v":""},{"$f":"IFERROR(INDEX('3 - Land Summary'!$I$21:$I$120,(MATCH(C426,'3 - Land Summary'!$C$21:$C$120,0))),\"\")","v":""},"","",null,null,null,{"$f":"IFERROR(VLOOKUP(D426,'Species List'!$D$10:$E$46,2,FALSE)*J426,\"\")","v":""},{"$f":"IFERROR(VLOOKUP(D426,'Species List'!$D$51:$E$89,2,FALSE)*J426,\"\")","v":""},{"$f":"IFERROR(VLOOKUP(D426,'Species List'!$D$95:$E$102,2,FALSE)*J426,\"\")","v":""},{"$f":"IFERROR(VLOOKUP(D426,'Species List'!$I$10:$J$11,2,FALSE)*J426,\"\")","v":""},{"$f":"IFERROR(VLOOKUP(D426,'Species List'!$I$16:$J$61,2,FALSE)*J426,\"\")","v":""},{"$f":"IFERROR(VLOOKUP(D426,'Species List'!$I$66:$J$66,2,FALSE)*J426,\"\")","v":""},{"$f":"IFERROR(VLOOKUP(D426,'Species List'!$I$71:$J$82,2,FALSE)*J426,\"\")","v":""},0,null,null,null,null,null,null,{"$f":"IFERROR(INDEX('3 - Land Summary'!$B$21:$B$120,(MATCH(AD426,'3 - Land Summary'!$C$21:$C$120,0))),\"\")","v":""}]
[null,{"$f":"IFERROR(INDEX('3 - Land Summary'!$B$21:$B$120,(MATCH('4 - Species Breakdown'!$V427,'3 - Land Summary'!$C$21:$C$120,0))),\"\")","v":""},null,null,{"$f":"IF(OR(COUNTIF('Look Up Data'!$D$149:$D$203,D427),COUNTIF('Look Up Data'!$D$149:$D$203,AE427)),\"YES\",\"NO\")","v":"NO"},null,null,{"$f":"IFERROR(INDEX('3 - Land Summary'!$G$21:$G$120,(MATCH(C427,'3 - Land Summary'!$C$21:$C$120,0))),\"\")","v":""},{"$f":"IFERROR(INDEX('3 - Land Summary'!$I$21:$I$120,(MATCH(C427,'3 - Land Summary'!$C$21:$C$120,0))),\"\")","v":""},"","",null,null,null,{"$f":"IFERROR(VLOOKUP(D427,'Species List'!$D$10:$E$46,2,FALSE)*J427,\"\")","v":""},{"$f":"IFERROR(VLOOKUP(D427,'Species List'!$D$51:$E$89,2,FALSE)*J427,\"\")","v":""},{"$f":"IFERROR(VLOOKUP(D427,'Species List'!$D$95:$E$102,2,FALSE)*J427,\"\")","v":""},{"$f":"IFERROR(VLOOKUP(D427,'Species List'!$I$10:$J$11,2,FALSE)*J427,\"\")","v":""},{"$f":"IFERROR(VLOOKUP(D427,'Species List'!$I$16:$J$61,2,FALSE)*J427,\"\")","v":""},{"$f":"IFERROR(VLOOKUP(D427,'Species List'!$I$66:$J$66,2,FALSE)*J427,\"\")","v":""},{"$f":"IFERROR(VLOOKUP(D427,'Species List'!$I$71:$J$82,2,FALSE)*J427,\"\")","v":""},0,null,null,null,null,null,null,{"$f":"IFERROR(INDEX('3 - Land Summary'!$B$21:$B$120,(MATCH(AD427,'3 - Land Summary'!$C$21:$C$120,0))),\"\")","v":""}]
[null,{"$f":"IFERROR(INDEX('3 - Land Summary'!$B$21:$B$120,(MATCH('4 - Species Breakdown'!$V428,'3 - Land Summary'!$C$21:$C$120,0))),\"\")","v":""},null,null,{"$f":"IF(OR(COUNTIF('Look Up Data'!$D$149:$D$203,D428),COUNTIF('Look Up Data'!$D$149:$D$203,AE428)),\"YES\",\"NO\")","v":"NO"},null,null,{"$f":"IFERROR(INDEX('3 - Land Summary'!$G$21:$G$120,(MATCH(C428,'3 - Land Summary'!$C$21:$C$120,0))),\"\")","v":""},{"$f":"IFERROR(INDEX('3 - Land Summary'!$I$21:$I$120,(MATCH(C428,'3 - Land Summary'!$C$21:$C$120,0))),\"\")","v":""},"","",null,null,null,{"$f":"IFERROR(VLOOKUP(D428,'Species List'!$D$10:$E$46,2,FALSE)*J428,\"\")","v":""},{"$f":"IFERROR(VLOOKUP(D428,'Species List'!$D$51:$E$89,2,FALSE)*J428,\"\")","v":""},{"$f":"IFERROR(VLOOKUP(D428,'Species List'!$D$95:$E$102,2,FALSE)*J428,\"\")","v":""},{"$f":"IFERROR(VLOOKUP(D428,'Species List'!$I$10:$J$11,2,FALSE)*J428,\"\")","v":""},{"$f":"IFERROR(VLOOKUP(D428,'Species List'!$I$16:$J$61,2,FALSE)*J428,\"\")","v":""},{"$f":"IFERROR(VLOOKUP(D428,'Species List'!$I$66:$J$66,2,FALSE)*J428,\"\")","v":""},{"$f":"IFERROR(VLOOKUP(D428,'Species List'!$I$71:$J$82,2,FALSE)*J428,\"\")","v":""},0,null,null,null,null,null,null,{"$f":"IFERROR(INDEX('3 - Land Summary'!$B$21:$B$120,(MATCH(AD428,'3 - Land Summary'!$C$21:$C$120,0))),\"\")","v":""}]
[null,{"$f":"IFERROR(INDEX('3 - Land Summary'!$B$21:$B$120,(MATCH('4 - Species Breakdown'!$V429,'3 - Land Summary'!$C$21:$C$120,0))),\"\")","v":""},null,null,{"$f":"IF(OR(COUNTIF('Look Up Data'!$D$149:$D$203,D429),COUNTIF('Look Up Data'!$D$149:$D$203,AE429)),\"YES\",\"NO\")","v":"NO"},null,null,{"$f":"IFERROR(INDEX('3 - Land Summary'!$G$21:$G$120,(MATCH(C429,'3 - Land Summary'!$C$21:$C$120,0))),\"\")","v":""},{"$f":"IFERROR(INDEX('3 - Land Summary'!$I$21:$I$120,(MATCH(C429,'3 - Land Summary'!$C$21:$C$120,0))),\"\")","v":""},"","",null,null,null,{"$f":"IFERROR(VLOOKUP(D429,'Species List'!$D$10:$E$46,2,FALSE)*J429,\"\")","v":""},{"$f":"IFERROR(VLOOKUP(D429,'Species List'!$D$51:$E$89,2,FALSE)*J429,\"\")","v":""},{"$f":"IFERROR(VLOOKUP(D429,'Species List'!$D$95:$E$102,2,FALSE)*J429,\"\")","v":""},{"$f":"IFERROR(VLOOKUP(D429,'Species List'!$I$10:$J$11,2,FALSE)*J429,\"\")","v":""},{"$f":"IFERROR(VLOOKUP(D429,'Species List'!$I$16:$J$61,2,FALSE)*J429,\"\")","v":""},{"$f":"IFERROR(VLOOKUP(D429,'Species List'!$I$66:$J$66,2,FALSE)*J429,\"\")","v":""},{"$f":"IFERROR(VLOOKUP(D429,'Species List'!$I$71:$J$82,2,FALSE)*J429,\"\")","v":""},0,null,null,null,null,null,null,{"$f":"IFERROR(INDEX('3 - Land Summary'!$B$21:$B$120,(MATCH(AD429,'3 - Land Summary'!$C$21:$C$120,0))),\"\")","v":""}]
[null,{"$f":"IFERROR(INDEX('3 - Land Summary'!$B$21:$B$120,(MATCH('4 - Species Breakdown'!$V430,'3 - Land Summary'!$C$21:$C$120,0))),\"\")","v":""},null,null,{"$f":"IF(OR(COUNTIF('Look Up Data'!$D$149:$D$203,D430),COUNTIF('Look Up Data'!$D$149:$D$203,AE430)),\"YES\",\"NO\")","v":"NO"},null,null,{"$f":"IFERROR(INDEX('3 - Land Summary'!$G$21:$G$120,(MATCH(C430,'3 - Land Summary'!$C$21:$C$120,0))),\"\")","v":""},{"$f":"IFERROR(INDEX('3 - Land Summary'!$I$21:$I$120,(MATCH(C430,'3 - Land Summary'!$C$21:$C$120,0))),\"\")","v":""},"","",null,null,null,{"$f":"IFERROR(VLOOKUP(D430,'Species List'!$D$10:$E$46,2,FALSE)*J430,\"\")","v":""},{"$f":"IFERROR(VLOOKUP(D430,'Species List'!$D$51:$E$89,2,FALSE)*J430,\"\")","v":""},{"$f":"IFERROR(VLOOKUP(D430,'Species List'!$D$95:$E$102,2,FALSE)*J430,\"\")","v":""},{"$f":"IFERROR(VLOOKUP(D430,'Species List'!$I$10:$J$11,2,FALSE)*J430,\"\")","v":""},{"$f":"IFERROR(VLOOKUP(D430,'Species List'!$I$16:$J$61,2,FALSE)*J430,\"\")","v":""},{"$f":"IFERROR(VLOOKUP(D430,'Species List'!$I$66:$J$66,2,FALSE)*J430,\"\")","v":""},{"$f":"IFERROR(VLOOKUP(D430,'Species List'!$I$71:$J$82,2,FALSE)*J430,\"\")","v":""},0,null,null,null,null,null,null,{"$f":"IFERROR(INDEX('3 - Land Summary'!$B$21:$B$120,(MATCH(AD430,'3 - Land Summary'!$C$21:$C$120,0))),\"\")","v":""}]
[null,{"$f":"IFERROR(INDEX('3 - Land Summary'!$B$21:$B$120,(MATCH('4 - Species Breakdown'!$V431,'3 - Land Summary'!$C$21:$C$120,0))),\"\")","v":""},null,null,{"$f":"IF(OR(COUNTIF('Look Up Data'!$D$149:$D$203,D431),COUNTIF('Look Up Data'!$D$149:$D$203,AE431)),\"YES\",\"NO\")","v":"NO"},null,null,{"$f":"IFERROR(INDEX('3 - Land Summary'!$G$21:$G$120,(MATCH(C431,'3 - Land Summary'!$C$21:$C$120,0))),\"\")","v":""},{"$f":"IFERROR(INDEX('3 - Land Summary'!$I$21:$I$120,(MATCH(C431,'3 - Land Summary'!$C$21:$C$120,0))),\"\")","v":""},"","",null,null,null,{"$f":"IFERROR(VLOOKUP(D431,'Species List'!$D$10:$E$46,2,FALSE)*J431,\"\")","v":""},{"$f":"IFERROR(VLOOKUP(D431,'Species List'!$D$51:$E$89,2,FALSE)*J431,\"\")","v":""},{"$f":"IFERROR(VLOOKUP(D431,'Species List'!$D$95:$E$102,2,FALSE)*J431,\"\")","v":""},{"$f":"IFERROR(VLOOKUP(D431,'Species List'!$I$10:$J$11,2,FALSE)*J431,\"\")","v":""},{"$f":"IFERROR(VLOOKUP(D431,'Species List'!$I$16:$J$61,2,FALSE)*J431,\"\")","v":""},{"$f":"IFERROR(VLOOKUP(D431,'Species List'!$I$66:$J$66,2,FALSE)*J431,\"\")","v":""},{"$f":"IFERROR(VLOOKUP(D431,'Species List'!$I$71:$J$82,2,FALSE)*J431,\"\")","v":""},0,null,null,null,null,null,null,{"$f":"IFERROR(INDEX('3 - Land Summary'!$B$21:$B$120,(MATCH(AD431,'3 - Land Summary'!$C$21:$C$120,0))),\"\")","v":""}]
[null,{"$f":"IFERROR(INDEX('3 - Land Summary'!$B$21:$B$120,(MATCH('4 - Species Breakdown'!$V432,'3 - Land Summary'!$C$21:$C$120,0))),\"\")","v":""},null,null,{"$f":"IF(OR(COUNTIF('Look Up Data'!$D$149:$D$203,D432),COUNTIF('Look Up Data'!$D$149:$D$203,AE432)),\"YES\",\"NO\")","v":"NO"},null,null,{"$f":"IFERROR(INDEX('3 - Land Summary'!$G$21:$G$120,(MATCH(C432,'3 - Land Summary'!$C$21:$C$120,0))),\"\")","v":""},{"$f":"IFERROR(INDEX('3 - Land Summary'!$I$21:$I$120,(MATCH(C432,'3 - Land Summary'!$C$21:$C$120,0))),\"\")","v":""},"","",null,null,null,{"$f":"IFERROR(VLOOKUP(D432,'Species List'!$D$10:$E$46,2,FALSE)*J432,\"\")","v":""},{"$f":"IFERROR(VLOOKUP(D432,'Species List'!$D$51:$E$89,2,FALSE)*J432,\"\")","v":""},{"$f":"IFERROR(VLOOKUP(D432,'Species List'!$D$95:$E$102,2,FALSE)*J432,\"\")","v":""},{"$f":"IFERROR(VLOOKUP(D432,'Species List'!$I$10:$J$11,2,FALSE)*J432,\"\")","v":""},{"$f":"IFERROR(VLOOKUP(D432,'Species List'!$I$16:$J$61,2,FALSE)*J432,\"\")","v":""},{"$f":"IFERROR(VLOOKUP(D432,'Species List'!$I$66:$J$66,2,FALSE)*J432,\"\")","v":""},{"$f":"IFERROR(VLOOKUP(D432,'Species List'!$I$71:$J$82,2,FALSE)*J432,\"\")","v":""},0,null,null,null,null,null,null,{"$f":"IFERROR(INDEX('3 - Land Summary'!$B$21:$B$120,(MATCH(AD432,'3 - Land Summary'!$C$21:$C$120,0))),\"\")","v":""}]
[null,{"$f":"IFERROR(INDEX('3 - Land Summary'!$B$21:$B$120,(MATCH('4 - Species Breakdown'!$V433,'3 - Land Summary'!$C$21:$C$120,0))),\"\")","v":""},null,null,{"$f":"IF(OR(COUNTIF('Look Up Data'!$D$149:$D$203,D433),COUNTIF('Look Up Data'!$D$149:$D$203,AE433)),\"YES\",\"NO\")","v":"NO"},null,null,{"$f":"IFERROR(INDEX('3 - Land Summary'!$G$21:$G$120,(MATCH(C433,'3 - Land Summary'!$C$21:$C$120,0))),\"\")","v":""},{"$f":"IFERROR(INDEX('3 - Land Summary'!$I$21:$I$120,(MATCH(C433,'3 - Land Summary'!$C$21:$C$120,0))),\"\")","v":""},"","",null,null,null,{"$f":"IFERROR(VLOOKUP(D433,'Species List'!$D$10:$E$46,2,FALSE)*J433,\"\")","v":""},{"$f":"IFERROR(VLOOKUP(D433,'Species List'!$D$51:$E$89,2,FALSE)*J433,\"\")","v":""},{"$f":"IFERROR(VLOOKUP(D433,'Species List'!$D$95:$E$102,2,FALSE)*J433,\"\")","v":""},{"$f":"IFERROR(VLOOKUP(D433,'Species List'!$I$10:$J$11,2,FALSE)*J433,\"\")","v":""},{"$f":"IFERROR(VLOOKUP(D433,'Species List'!$I$16:$J$61,2,FALSE)*J433,\"\")","v":""},{"$f":"IFERROR(VLOOKUP(D433,'Species List'!$I$66:$J$66,2,FALSE)*J433,\"\")","v":""},{"$f":"IFERROR(VLOOKUP(D433,'Species List'!$I$71:$J$82,2,FALSE)*J433,\"\")","v":""},0,null,null,null,null,null,null,{"$f":"IFERROR(INDEX('3 - Land Summary'!$B$21:$B$120,(MATCH(AD433,'3 - Land Summary'!$C$21:$C$120,0))),\"\")","v":""}]
[null,{"$f":"IFERROR(INDEX('3 - Land Summary'!$B$21:$B$120,(MATCH('4 - Species Breakdown'!$V434,'3 - Land Summary'!$C$21:$C$120,0))),\"\")","v":""},null,null,{"$f":"IF(OR(COUNTIF('Look Up Data'!$D$149:$D$203,D434),COUNTIF('Look Up Data'!$D$149:$D$203,AE434)),\"YES\",\"NO\")","v":"NO"},null,null,{"$f":"IFERROR(INDEX('3 - Land Summary'!$G$21:$G$120,(MATCH(C434,'3 - Land Summary'!$C$21:$C$120,0))),\"\")","v":""},{"$f":"IFERROR(INDEX('3 - Land Summary'!$I$21:$I$120,(MATCH(C434,'3 - Land Summary'!$C$21:$C$120,0))),\"\")","v":""},"","",null,null,null,{"$f":"IFERROR(VLOOKUP(D434,'Species List'!$D$10:$E$46,2,FALSE)*J434,\"\")","v":""},{"$f":"IFERROR(VLOOKUP(D434,'Species List'!$D$51:$E$89,2,FALSE)*J434,\"\")","v":""},{"$f":"IFERROR(VLOOKUP(D434,'Species List'!$D$95:$E$102,2,FALSE)*J434,\"\")","v":""},{"$f":"IFERROR(VLOOKUP(D434,'Species List'!$I$10:$J$11,2,FALSE)*J434,\"\")","v":""},{"$f":"IFERROR(VLOOKUP(D434,'Species List'!$I$16:$J$61,2,FALSE)*J434,\"\")","v":""},{"$f":"IFERROR(VLOOKUP(D434,'Species List'!$I$66:$J$66,2,FALSE)*J434,\"\")","v":""},{"$f":"IFERROR(VLOOKUP(D434,'Species List'!$I$71:$J$82,2,FALSE)*J434,\"\")","v":""},0,null,null,null,null,null,null,{"$f":"IFERROR(INDEX('3 - Land Summary'!$B$21:$B$120,(MATCH(AD434,'3 - Land Summary'!$C$21:$C$120,0))),\"\")","v":""}]
[null,{"$f":"IFERROR(INDEX('3 - Land Summary'!$B$21:$B$120,(MATCH('4 - Species Breakdown'!$V435,'3 - Land Summary'!$C$21:$C$120,0))),\"\")","v":""},null,null,{"$f":"IF(OR(COUNTIF('Look Up Data'!$D$149:$D$203,D435),COUNTIF('Look Up Data'!$D$149:$D$203,AE435)),\"YES\",\"NO\")","v":"NO"},null,null,{"$f":"IFERROR(INDEX('3 - Land Summary'!$G$21:$G$120,(MATCH(C435,'3 - Land Summary'!$C$21:$C$120,0))),\"\")","v":""},{"$f":"IFERROR(INDEX('3 - Land Summary'!$I$21:$I$120,(MATCH(C435,'3 - Land Summary'!$C$21:$C$120,0))),\"\")","v":""},"","",null,null,null,{"$f":"IFERROR(VLOOKUP(D435,'Species List'!$D$10:$E$46,2,FALSE)*J435,\"\")","v":""},{"$f":"IFERROR(VLOOKUP(D435,'Species List'!$D$51:$E$89,2,FALSE)*J435,\"\")","v":""},{"$f":"IFERROR(VLOOKUP(D435,'Species List'!$D$95:$E$102,2,FALSE)*J435,\"\")","v":""},{"$f":"IFERROR(VLOOKUP(D435,'Species List'!$I$10:$J$11,2,FALSE)*J435,\"\")","v":""},{"$f":"IFERROR(VLOOKUP(D435,'Species List'!$I$16:$J$61,2,FALSE)*J435,\"\")","v":""},{"$f":"IFERROR(VLOOKUP(D435,'Species List'!$I$66:$J$66,2,FALSE)*J435,\"\")","v":""},{"$f":"IFERROR(VLOOKUP(D435,'Species List'!$I$71:$J$82,2,FALSE)*J435,\"\")","v":""},0,null,null,null,null,null,null,{"$f":"IFERROR(INDEX('3 - Land Summary'!$B$21:$B$120,(MATCH(AD435,'3 - Land Summary'!$C$21:$C$120,0))),\"\")","v":""}]
[null,{"$f":"IFERROR(INDEX('3 - Land Summary'!$B$21:$B$120,(MATCH('4 - Species Breakdown'!$V436,'3 - Land Summary'!$C$21:$C$120,0))),\"\")","v":""},null,null,{"$f":"IF(OR(COUNTIF('Look Up Data'!$D$149:$D$203,D436),COUNTIF('Look Up Data'!$D$149:$D$203,AE436)),\"YES\",\"NO\")","v":"NO"},null,null,{"$f":"IFERROR(INDEX('3 - Land Summary'!$G$21:$G$120,(MATCH(C436,'3 - Land Summary'!$C$21:$C$120,0))),\"\")","v":""},{"$f":"IFERROR(INDEX('3 - Land Summary'!$I$21:$I$120,(MATCH(C436,'3 - Land Summary'!$C$21:$C$120,0))),\"\")","v":""},"","",null,null,null,{"$f":"IFERROR(VLOOKUP(D436,'Species List'!$D$10:$E$46,2,FALSE)*J436,\"\")","v":""},{"$f":"IFERROR(VLOOKUP(D436,'Species List'!$D$51:$E$89,2,FALSE)*J436,\"\")","v":""},{"$f":"IFERROR(VLOOKUP(D436,'Species List'!$D$95:$E$102,2,FALSE)*J436,\"\")","v":""},{"$f":"IFERROR(VLOOKUP(D436,'Species List'!$I$10:$J$11,2,FALSE)*J436,\"\")","v":""},{"$f":"IFERROR(VLOOKUP(D436,'Species List'!$I$16:$J$61,2,FALSE)*J436,\"\")","v":""},{"$f":"IFERROR(VLOOKUP(D436,'Species List'!$I$66:$J$66,2,FALSE)*J436,\"\")","v":""},{"$f":"IFERROR(VLOOKUP(D436,'Species List'!$I$71:$J$82,2,FALSE)*J436,\"\")","v":""},0,null,null,null,null,null,null,{"$f":"IFERROR(INDEX('3 - Land Summary'!$B$21:$B$120,(MATCH(AD436,'3 - Land Summary'!$C$21:$C$120,0))),\"\")","v":""}]
[null,{"$f":"IFERROR(INDEX('3 - Land Summary'!$B$21:$B$120,(MATCH('4 - Species Breakdown'!$V437,'3 - Land Summary'!$C$21:$C$120,0))),\"\")","v":""},null,null,{"$f":"IF(OR(COUNTIF('Look Up Data'!$D$149:$D$203,D437),COUNTIF('Look Up Data'!$D$149:$D$203,AE437)),\"YES\",\"NO\")","v":"NO"},null,null,{"$f":"IFERROR(INDEX('3 - Land Summary'!$G$21:$G$120,(MATCH(C437,'3 - Land Summary'!$C$21:$C$120,0))),\"\")","v":""},{"$f":"IFERROR(INDEX('3 - Land Summary'!$I$21:$I$120,(MATCH(C437,'3 - Land Summary'!$C$21:$C$120,0))),\"\")","v":""},"","",null,null,null,{"$f":"IFERROR(VLOOKUP(D437,'Species List'!$D$10:$E$46,2,FALSE)*J437,\"\")","v":""},{"$f":"IFERROR(VLOOKUP(D437,'Species List'!$D$51:$E$89,2,FALSE)*J437,\"\")","v":""},{"$f":"IFERROR(VLOOKUP(D437,'Species List'!$D$95:$E$102,2,FALSE)*J437,\"\")","v":""},{"$f":"IFERROR(VLOOKUP(D437,'Species List'!$I$10:$J$11,2,FALSE)*J437,\"\")","v":""},{"$f":"IFERROR(VLOOKUP(D437,'Species List'!$I$16:$J$61,2,FALSE)*J437,\"\")","v":""},{"$f":"IFERROR(VLOOKUP(D437,'Species List'!$I$66:$J$66,2,FALSE)*J437,\"\")","v":""},{"$f":"IFERROR(VLOOKUP(D437,'Species List'!$I$71:$J$82,2,FALSE)*J437,\"\")","v":""},0,null,null,null,null,null,null,{"$f":"IFERROR(INDEX('3 - Land Summary'!$B$21:$B$120,(MATCH(AD437,'3 - Land Summary'!$C$21:$C$120,0))),\"\")","v":""}]
[null,{"$f":"IFERROR(INDEX('3 - Land Summary'!$B$21:$B$120,(MATCH('4 - Species Breakdown'!$V438,'3 - Land Summary'!$C$21:$C$120,0))),\"\")","v":""},null,null,{"$f":"IF(OR(COUNTIF('Look Up Data'!$D$149:$D$203,D438),COUNTIF('Look Up Data'!$D$149:$D$203,AE438)),\"YES\",\"NO\")","v":"NO"},null,null,{"$f":"IFERROR(INDEX('3 - Land Summary'!$G$21:$G$120,(MATCH(C438,'3 - Land Summary'!$C$21:$C$120,0))),\"\")","v":""},{"$f":"IFERROR(INDEX('3 - Land Summary'!$I$21:$I$120,(MATCH(C438,'3 - Land Summary'!$C$21:$C$120,0))),\"\")","v":""},"","",null,null,null,{"$f":"IFERROR(VLOOKUP(D438,'Species List'!$D$10:$E$46,2,FALSE)*J438,\"\")","v":""},{"$f":"IFERROR(VLOOKUP(D438,'Species List'!$D$51:$E$89,2,FALSE)*J438,\"\")","v":""},{"$f":"IFERROR(VLOOKUP(D438,'Species List'!$D$95:$E$102,2,FALSE)*J438,\"\")","v":""},{"$f":"IFERROR(VLOOKUP(D438,'Species List'!$I$10:$J$11,2,FALSE)*J438,\"\")","v":""},{"$f":"IFERROR(VLOOKUP(D438,'Species List'!$I$16:$J$61,2,FALSE)*J438,\"\")","v":""},{"$f":"IFERROR(VLOOKUP(D438,'Species List'!$I$66:$J$66,2,FALSE)*J438,\"\")","v":""},{"$f":"IFERROR(VLOOKUP(D438,'Species List'!$I$71:$J$82,2,FALSE)*J438,\"\")","v":""},0,null,null,null,null,null,null,{"$f":"IFERROR(INDEX('3 - Land Summary'!$B$21:$B$120,(MATCH(AD438,'3 - Land Summary'!$C$21:$C$120,0))),\"\")","v":""}]
[null,{"$f":"IFERROR(INDEX('3 - Land Summary'!$B$21:$B$120,(MATCH('4 - Species Breakdown'!$V439,'3 - Land Summary'!$C$21:$C$120,0))),\"\")","v":""},null,null,{"$f":"IF(OR(COUNTIF('Look Up Data'!$D$149:$D$203,D439),COUNTIF('Look Up Data'!$D$149:$D$203,AE439)),\"YES\",\"NO\")","v":"NO"},null,null,{"$f":"IFERROR(INDEX('3 - Land Summary'!$G$21:$G$120,(MATCH(C439,'3 - Land Summary'!$C$21:$C$120,0))),\"\")","v":""},{"$f":"IFERROR(INDEX('3 - Land Summary'!$I$21:$I$120,(MATCH(C439,'3 - Land Summary'!$C$21:$C$120,0))),\"\")","v":""},"","",null,null,null,{"$f":"IFERROR(VLOOKUP(D439,'Species List'!$D$10:$E$46,2,FALSE)*J439,\"\")","v":""},{"$f":"IFERROR(VLOOKUP(D439,'Species List'!$D$51:$E$89,2,FALSE)*J439,\"\")","v":""},{"$f":"IFERROR(VLOOKUP(D439,'Species List'!$D$95:$E$102,2,FALSE)*J439,\"\")","v":""},{"$f":"IFERROR(VLOOKUP(D439,'Species List'!$I$10:$J$11,2,FALSE)*J439,\"\")","v":""},{"$f":"IFERROR(VLOOKUP(D439,'Species List'!$I$16:$J$61,2,FALSE)*J439,\"\")","v":""},{"$f":"IFERROR(VLOOKUP(D439,'Species List'!$I$66:$J$66,2,FALSE)*J439,\"\")","v":""},{"$f":"IFERROR(VLOOKUP(D439,'Species List'!$I$71:$J$82,2,FALSE)*J439,\"\")","v":""},0,null,null,null,null,null,null,{"$f":"IFERROR(INDEX('3 - Land Summary'!$B$21:$B$120,(MATCH(AD439,'3 - Land Summary'!$C$21:$C$120,0))),\"\")","v":""}]
[null,{"$f":"IFERROR(INDEX('3 - Land Summary'!$B$21:$B$120,(MATCH('4 - Species Breakdown'!$V440,'3 - Land Summary'!$C$21:$C$120,0))),\"\")","v":""},null,null,{"$f":"IF(OR(COUNTIF('Look Up Data'!$D$149:$D$203,D440),COUNTIF('Look Up Data'!$D$149:$D$203,AE440)),\"YES\",\"NO\")","v":"NO"},null,null,{"$f":"IFERROR(INDEX('3 - Land Summary'!$G$21:$G$120,(MATCH(C440,'3 - Land Summary'!$C$21:$C$120,0))),\"\")","v":""},{"$f":"IFERROR(INDEX('3 - Land Summary'!$I$21:$I$120,(MATCH(C440,'3 - Land Summary'!$C$21:$C$120,0))),\"\")","v":""},"","",null,null,null,{"$f":"IFERROR(VLOOKUP(D440,'Species List'!$D$10:$E$46,2,FALSE)*J440,\"\")","v":""},{"$f":"IFERROR(VLOOKUP(D440,'Species List'!$D$51:$E$89,2,FALSE)*J440,\"\")","v":""},{"$f":"IFERROR(VLOOKUP(D440,'Species List'!$D$95:$E$102,2,FALSE)*J440,\"\")","v":""},{"$f":"IFERROR(VLOOKUP(D440,'Species List'!$I$10:$J$11,2,FALSE)*J440,\"\")","v":""},{"$f":"IFERROR(VLOOKUP(D440,'Species List'!$I$16:$J$61,2,FALSE)*J440,\"\")","v":""},{"$f":"IFERROR(VLOOKUP(D440,'Species List'!$I$66:$J$66,2,FALSE)*J440,\"\")","v":""},{"$f":"IFERROR(VLOOKUP(D440,'Species List'!$I$71:$J$82,2,FALSE)*J440,\"\")","v":""},0,null,null,null,null,null,null,{"$f":"IFERROR(INDEX('3 - Land Summary'!$B$21:$B$120,(MATCH(AD440,'3 - Land Summary'!$C$21:$C$120,0))),\"\")","v":""}]
[null,{"$f":"IFERROR(INDEX('3 - Land Summary'!$B$21:$B$120,(MATCH('4 - Species Breakdown'!$V441,'3 - Land Summary'!$C$21:$C$120,0))),\"\")","v":""},null,null,{"$f":"IF(OR(COUNTIF('Look Up Data'!$D$149:$D$203,D441),COUNTIF('Look Up Data'!$D$149:$D$203,AE441)),\"YES\",\"NO\")","v":"NO"},null,null,{"$f":"IFERROR(INDEX('3 - Land Summary'!$G$21:$G$120,(MATCH(C441,'3 - Land Summary'!$C$21:$C$120,0))),\"\")","v":""},{"$f":"IFERROR(INDEX('3 - Land Summary'!$I$21:$I$120,(MATCH(C441,'3 - Land Summary'!$C$21:$C$120,0))),\"\")","v":""},"","",null,null,null,{"$f":"IFERROR(VLOOKUP(D441,'Species List'!$D$10:$E$46,2,FALSE)*J441,\"\")","v":""},{"$f":"IFERROR(VLOOKUP(D441,'Species List'!$D$51:$E$89,2,FALSE)*J441,\"\")","v":""},{"$f":"IFERROR(VLOOKUP(D441,'Species List'!$D$95:$E$102,2,FALSE)*J441,\"\")","v":""},{"$f":"IFERROR(VLOOKUP(D441,'Species List'!$I$10:$J$11,2,FALSE)*J441,\"\")","v":""},{"$f":"IFERROR(VLOOKUP(D441,'Species List'!$I$16:$J$61,2,FALSE)*J441,\"\")","v":""},{"$f":"IFERROR(VLOOKUP(D441,'Species List'!$I$66:$J$66,2,FALSE)*J441,\"\")","v":""},{"$f":"IFERROR(VLOOKUP(D441,'Species List'!$I$71:$J$82,2,FALSE)*J441,\"\")","v":""},0,null,null,null,null,null,null,{"$f":"IFERROR(INDEX('3 - Land Summary'!$B$21:$B$120,(MATCH(AD441,'3 - Land Summary'!$C$21:$C$120,0))),\"\")","v":""}]
[null,{"$f":"IFERROR(INDEX('3 - Land Summary'!$B$21:$B$120,(MATCH('4 - Species Breakdown'!$V442,'3 - Land Summary'!$C$21:$C$120,0))),\"\")","v":""},null,null,{"$f":"IF(OR(COUNTIF('Look Up Data'!$D$149:$D$203,D442),COUNTIF('Look Up Data'!$D$149:$D$203,AE442)),\"YES\",\"NO\")","v":"NO"},null,null,{"$f":"IFERROR(INDEX('3 - Land Summary'!$G$21:$G$120,(MATCH(C442,'3 - Land Summary'!$C$21:$C$120,0))),\"\")","v":""},{"$f":"IFERROR(INDEX('3 - Land Summary'!$I$21:$I$120,(MATCH(C442,'3 - Land Summary'!$C$21:$C$120,0))),\"\")","v":""},"","",null,null,null,{"$f":"IFERROR(VLOOKUP(D442,'Species List'!$D$10:$E$46,2,FALSE)*J442,\"\")","v":""},{"$f":"IFERROR(VLOOKUP(D442,'Species List'!$D$51:$E$89,2,FALSE)*J442,\"\")","v":""},{"$f":"IFERROR(VLOOKUP(D442,'Species List'!$D$95:$E$102,2,FALSE)*J442,\"\")","v":""},{"$f":"IFERROR(VLOOKUP(D442,'Species List'!$I$10:$J$11,2,FALSE)*J442,\"\")","v":""},{"$f":"IFERROR(VLOOKUP(D442,'Species List'!$I$16:$J$61,2,FALSE)*J442,\"\")","v":""},{"$f":"IFERROR(VLOOKUP(D442,'Species List'!$I$66:$J$66,2,FALSE)*J442,\"\")","v":""},{"$f":"IFERROR(VLOOKUP(D442,'Species List'!$I$71:$J$82,2,FALSE)*J442,\"\")","v":""},0,null,null,null,null,null,null,{"$f":"IFERROR(INDEX('3 - Land Summary'!$B$21:$B$120,(MATCH(AD442,'3 - Land Summary'!$C$21:$C$120,0))),\"\")","v":""}]
[null,{"$f":"IFERROR(INDEX('3 - Land Summary'!$B$21:$B$120,(MATCH('4 - Species Breakdown'!$V443,'3 - Land Summary'!$C$21:$C$120,0))),\"\")","v":""},null,null,{"$f":"IF(OR(COUNTIF('Look Up Data'!$D$149:$D$203,D443),COUNTIF('Look Up Data'!$D$149:$D$203,AE443)),\"YES\",\"NO\")","v":"NO"},null,null,{"$f":"IFERROR(INDEX('3 - Land Summary'!$G$21:$G$120,(MATCH(C443,'3 - Land Summary'!$C$21:$C$120,0))),\"\")","v":""},{"$f":"IFERROR(INDEX('3 - Land Summary'!$I$21:$I$120,(MATCH(C443,'3 - Land Summary'!$C$21:$C$120,0))),\"\")","v":""},"","",null,null,null,{"$f":"IFERROR(VLOOKUP(D443,'Species List'!$D$10:$E$46,2,FALSE)*J443,\"\")","v":""},{"$f":"IFERROR(VLOOKUP(D443,'Species List'!$D$51:$E$89,2,FALSE)*J443,\"\")","v":""},{"$f":"IFERROR(VLOOKUP(D443,'Species List'!$D$95:$E$102,2,FALSE)*J443,\"\")","v":""},{"$f":"IFERROR(VLOOKUP(D443,'Species List'!$I$10:$J$11,2,FALSE)*J443,\"\")","v":""},{"$f":"IFERROR(VLOOKUP(D443,'Species List'!$I$16:$J$61,2,FALSE)*J443,\"\")","v":""},{"$f":"IFERROR(VLOOKUP(D443,'Species List'!$I$66:$J$66,2,FALSE)*J443,\"\")","v":""},{"$f":"IFERROR(VLOOKUP(D443,'Species List'!$I$71:$J$82,2,FALSE)*J443,\"\")","v":""},0,null,null,null,null,null,null,{"$f":"IFERROR(INDEX('3 - Land Summary'!$B$21:$B$120,(MATCH(AD443,'3 - Land Summary'!$C$21:$C$120,0))),\"\")","v":""}]
[null,{"$f":"IFERROR(INDEX('3 - Land Summary'!$B$21:$B$120,(MATCH('4 - Species Breakdown'!$V444,'3 - Land Summary'!$C$21:$C$120,0))),\"\")","v":""},null,null,{"$f":"IF(OR(COUNTIF('Look Up Data'!$D$149:$D$203,D444),COUNTIF('Look Up Data'!$D$149:$D$203,AE444)),\"YES\",\"NO\")","v":"NO"},null,null,{"$f":"IFERROR(INDEX('3 - Land Summary'!$G$21:$G$120,(MATCH(C444,'3 - Land Summary'!$C$21:$C$120,0))),\"\")","v":""},{"$f":"IFERROR(INDEX('3 - Land Summary'!$I$21:$I$120,(MATCH(C444,'3 - Land Summary'!$C$21:$C$120,0))),\"\")","v":""},"","",null,null,null,{"$f":"IFERROR(VLOOKUP(D444,'Species List'!$D$10:$E$46,2,FALSE)*J444,\"\")","v":""},{"$f":"IFERROR(VLOOKUP(D444,'Species List'!$D$51:$E$89,2,FALSE)*J444,\"\")","v":""},{"$f":"IFERROR(VLOOKUP(D444,'Species List'!$D$95:$E$102,2,FALSE)*J444,\"\")","v":""},{"$f":"IFERROR(VLOOKUP(D444,'Species List'!$I$10:$J$11,2,FALSE)*J444,\"\")","v":""},{"$f":"IFERROR(VLOOKUP(D444,'Species List'!$I$16:$J$61,2,FALSE)*J444,\"\")","v":""},{"$f":"IFERROR(VLOOKUP(D444,'Species List'!$I$66:$J$66,2,FALSE)*J444,\"\")","v":""},{"$f":"IFERROR(VLOOKUP(D444,'Species List'!$I$71:$J$82,2,FALSE)*J444,\"\")","v":""},0,null,null,null,null,null,null,{"$f":"IFERROR(INDEX('3 - Land Summary'!$B$21:$B$120,(MATCH(AD444,'3 - Land Summary'!$C$21:$C$120,0))),\"\")","v":""}]
[null,{"$f":"IFERROR(INDEX('3 - Land Summary'!$B$21:$B$120,(MATCH('4 - Species Breakdown'!$V445,'3 - Land Summary'!$C$21:$C$120,0))),\"\")","v":""},null,null,{"$f":"IF(OR(COUNTIF('Look Up Data'!$D$149:$D$203,D445),COUNTIF('Look Up Data'!$D$149:$D$203,AE445)),\"YES\",\"NO\")","v":"NO"},null,null,{"$f":"IFERROR(INDEX('3 - Land Summary'!$G$21:$G$120,(MATCH(C445,'3 - Land Summary'!$C$21:$C$120,0))),\"\")","v":""},{"$f":"IFERROR(INDEX('3 - Land Summary'!$I$21:$I$120,(MATCH(C445,'3 - Land Summary'!$C$21:$C$120,0))),\"\")","v":""},"","",null,null,null,{"$f":"IFERROR(VLOOKUP(D445,'Species List'!$D$10:$E$46,2,FALSE)*J445,\"\")","v":""},{"$f":"IFERROR(VLOOKUP(D445,'Species List'!$D$51:$E$89,2,FALSE)*J445,\"\")","v":""},{"$f":"IFERROR(VLOOKUP(D445,'Species List'!$D$95:$E$102,2,FALSE)*J445,\"\")","v":""},{"$f":"IFERROR(VLOOKUP(D445,'Species List'!$I$10:$J$11,2,FALSE)*J445,\"\")","v":""},{"$f":"IFERROR(VLOOKUP(D445,'Species List'!$I$16:$J$61,2,FALSE)*J445,\"\")","v":""},{"$f":"IFERROR(VLOOKUP(D445,'Species List'!$I$66:$J$66,2,FALSE)*J445,\"\")","v":""},{"$f":"IFERROR(VLOOKUP(D445,'Species List'!$I$71:$J$82,2,FALSE)*J445,\"\")","v":""},0,null,null,null,null,null,null,{"$f":"IFERROR(INDEX('3 - Land Summary'!$B$21:$B$120,(MATCH(AD445,'3 - Land Summary'!$C$21:$C$120,0))),\"\")","v":""}]
[null,{"$f":"IFERROR(INDEX('3 - Land Summary'!$B$21:$B$120,(MATCH('4 - Species Breakdown'!$V446,'3 - Land Summary'!$C$21:$C$120,0))),\"\")","v":""},null,null,{"$f":"IF(OR(COUNTIF('Look Up Data'!$D$149:$D$203,D446),COUNTIF('Look Up Data'!$D$149:$D$203,AE446)),\"YES\",\"NO\")","v":"NO"},null,null,{"$f":"IFERROR(INDEX('3 - Land Summary'!$G$21:$G$120,(MATCH(C446,'3 - Land Summary'!$C$21:$C$120,0))),\"\")","v":""},{"$f":"IFERROR(INDEX('3 - Land Summary'!$I$21:$I$120,(MATCH(C446,'3 - Land Summary'!$C$21:$C$120,0))),\"\")","v":""},"","",null,null,null,{"$f":"IFERROR(VLOOKUP(D446,'Species List'!$D$10:$E$46,2,FALSE)*J446,\"\")","v":""},{"$f":"IFERROR(VLOOKUP(D446,'Species List'!$D$51:$E$89,2,FALSE)*J446,\"\")","v":""},{"$f":"IFERROR(VLOOKUP(D446,'Species List'!$D$95:$E$102,2,FALSE)*J446,\"\")","v":""},{"$f":"IFERROR(VLOOKUP(D446,'Species List'!$I$10:$J$11,2,FALSE)*J446,\"\")","v":""},{"$f":"IFERROR(VLOOKUP(D446,'Species List'!$I$16:$J$61,2,FALSE)*J446,\"\")","v":""},{"$f":"IFERROR(VLOOKUP(D446,'Species List'!$I$66:$J$66,2,FALSE)*J446,\"\")","v":""},{"$f":"IFERROR(VLOOKUP(D446,'Species List'!$I$71:$J$82,2,FALSE)*J446,\"\")","v":""},0,null,null,null,null,null,null,{"$f":"IFERROR(INDEX('3 - Land Summary'!$B$21:$B$120,(MATCH(AD446,'3 - Land Summary'!$C$21:$C$120,0))),\"\")","v":""}]
[null,{"$f":"IFERROR(INDEX('3 - Land Summary'!$B$21:$B$120,(MATCH('4 - Species Breakdown'!$V447,'3 - Land Summary'!$C$21:$C$120,0))),\"\")","v":""},null,null,{"$f":"IF(OR(COUNTIF('Look Up Data'!$D$149:$D$203,D447),COUNTIF('Look Up Data'!$D$149:$D$203,AE447)),\"YES\",\"NO\")","v":"NO"},null,null,{"$f":"IFERROR(INDEX('3 - Land Summary'!$G$21:$G$120,(MATCH(C447,'3 - Land Summary'!$C$21:$C$120,0))),\"\")","v":""},{"$f":"IFERROR(INDEX('3 - Land Summary'!$I$21:$I$120,(MATCH(C447,'3 - Land Summary'!$C$21:$C$120,0))),\"\")","v":""},"","",null,null,null,{"$f":"IFERROR(VLOOKUP(D447,'Species List'!$D$10:$E$46,2,FALSE)*J447,\"\")","v":""},{"$f":"IFERROR(VLOOKUP(D447,'Species List'!$D$51:$E$89,2,FALSE)*J447,\"\")","v":""},{"$f":"IFERROR(VLOOKUP(D447,'Species List'!$D$95:$E$102,2,FALSE)*J447,\"\")","v":""},{"$f":"IFERROR(VLOOKUP(D447,'Species List'!$I$10:$J$11,2,FALSE)*J447,\"\")","v":""},{"$f":"IFERROR(VLOOKUP(D447,'Species List'!$I$16:$J$61,2,FALSE)*J447,\"\")","v":""},{"$f":"IFERROR(VLOOKUP(D447,'Species List'!$I$66:$J$66,2,FALSE)*J447,\"\")","v":""},{"$f":"IFERROR(VLOOKUP(D447,'Species List'!$I$71:$J$82,2,FALSE)*J447,\"\")","v":""},0,null,null,null,null,null,null,{"$f":"IFERROR(INDEX('3 - Land Summary'!$B$21:$B$120,(MATCH(AD447,'3 - Land Summary'!$C$21:$C$120,0))),\"\")","v":""}]
[null,{"$f":"IFERROR(INDEX('3 - Land Summary'!$B$21:$B$120,(MATCH('4 - Species Breakdown'!$V448,'3 - Land Summary'!$C$21:$C$120,0))),\"\")","v":""},null,null,{"$f":"IF(OR(COUNTIF('Look Up Data'!$D$149:$D$203,D448),COUNTIF('Look Up Data'!$D$149:$D$203,AE448)),\"YES\",\"NO\")","v":"NO"},null,null,{"$f":"IFERROR(INDEX('3 - Land Summary'!$G$21:$G$120,(MATCH(C448,'3 - Land Summary'!$C$21:$C$120,0))),\"\")","v":""},{"$f":"IFERROR(INDEX('3 - Land Summary'!$I$21:$I$120,(MATCH(C448,'3 - Land Summary'!$C$21:$C$120,0))),\"\")","v":""},"","",null,null,null,{"$f":"IFERROR(VLOOKUP(D448,'Species List'!$D$10:$E$46,2,FALSE)*J448,\"\")","v":""},{"$f":"IFERROR(VLOOKUP(D448,'Species List'!$D$51:$E$89,2,FALSE)*J448,\"\")","v":""},{"$f":"IFERROR(VLOOKUP(D448,'Species List'!$D$95:$E$102,2,FALSE)*J448,\"\")","v":""},{"$f":"IFERROR(VLOOKUP(D448,'Species List'!$I$10:$J$11,2,FALSE)*J448,\"\")","v":""},{"$f":"IFERROR(VLOOKUP(D448,'Species List'!$I$16:$J$61,2,FALSE)*J448,\"\")","v":""},{"$f":"IFERROR(VLOOKUP(D448,'Species List'!$I$66:$J$66,2,FALSE)*J448,\"\")","v":""},{"$f":"IFERROR(VLOOKUP(D448,'Species List'!$I$71:$J$82,2,FALSE)*J448,\"\")","v":""},0,null,null,null,null,null,null,{"$f":"IFERROR(INDEX('3 - Land Summary'!$B$21:$B$120,(MATCH(AD448,'3 - Land Summary'!$C$21:$C$120,0))),\"\")","v":""}]
[null,{"$f":"IFERROR(INDEX('3 - Land Summary'!$B$21:$B$120,(MATCH('4 - Species Breakdown'!$V449,'3 - Land Summary'!$C$21:$C$120,0))),\"\")","v":""},null,null,{"$f":"IF(OR(COUNTIF('Look Up Data'!$D$149:$D$203,D449),COUNTIF('Look Up Data'!$D$149:$D$203,AE449)),\"YES\",\"NO\")","v":"NO"},null,null,{"$f":"IFERROR(INDEX('3 - Land Summary'!$G$21:$G$120,(MATCH(C449,'3 - Land Summary'!$C$21:$C$120,0))),\"\")","v":""},{"$f":"IFERROR(INDEX('3 - Land Summary'!$I$21:$I$120,(MATCH(C449,'3 - Land Summary'!$C$21:$C$120,0))),\"\")","v":""},"","",null,null,null,{"$f":"IFERROR(VLOOKUP(D449,'Species List'!$D$10:$E$46,2,FALSE)*J449,\"\")","v":""},{"$f":"IFERROR(VLOOKUP(D449,'Species List'!$D$51:$E$89,2,FALSE)*J449,\"\")","v":""},{"$f":"IFERROR(VLOOKUP(D449,'Species List'!$D$95:$E$102,2,FALSE)*J449,\"\")","v":""},{"$f":"IFERROR(VLOOKUP(D449,'Species List'!$I$10:$J$11,2,FALSE)*J449,\"\")","v":""},{"$f":"IFERROR(VLOOKUP(D449,'Species List'!$I$16:$J$61,2,FALSE)*J449,\"\")","v":""},{"$f":"IFERROR(VLOOKUP(D449,'Species List'!$I$66:$J$66,2,FALSE)*J449,\"\")","v":""},{"$f":"IFERROR(VLOOKUP(D449,'Species List'!$I$71:$J$82,2,FALSE)*J449,\"\")","v":""},0,null,null,null,null,null,null,{"$f":"IFERROR(INDEX('3 - Land Summary'!$B$21:$B$120,(MATCH(AD449,'3 - Land Summary'!$C$21:$C$120,0))),\"\")","v":""}]
[null,{"$f":"IFERROR(INDEX('3 - Land Summary'!$B$21:$B$120,(MATCH('4 - Species Breakdown'!$V450,'3 - Land Summary'!$C$21:$C$120,0))),\"\")","v":""},null,null,{"$f":"IF(OR(COUNTIF('Look Up Data'!$D$149:$D$203,D450),COUNTIF('Look Up Data'!$D$149:$D$203,AE450)),\"YES\",\"NO\")","v":"NO"},null,null,{"$f":"IFERROR(INDEX('3 - Land Summary'!$G$21:$G$120,(MATCH(C450,'3 - Land Summary'!$C$21:$C$120,0))),\"\")","v":""},{"$f":"IFERROR(INDEX('3 - Land Summary'!$I$21:$I$120,(MATCH(C450,'3 - Land Summary'!$C$21:$C$120,0))),\"\")","v":""},"","",null,null,null,{"$f":"IFERROR(VLOOKUP(D450,'Species List'!$D$10:$E$46,2,FALSE)*J450,\"\")","v":""},{"$f":"IFERROR(VLOOKUP(D450,'Species List'!$D$51:$E$89,2,FALSE)*J450,\"\")","v":""},{"$f":"IFERROR(VLOOKUP(D450,'Species List'!$D$95:$E$102,2,FALSE)*J450,\"\")","v":""},{"$f":"IFERROR(VLOOKUP(D450,'Species List'!$I$10:$J$11,2,FALSE)*J450,\"\")","v":""},{"$f":"IFERROR(VLOOKUP(D450,'Species List'!$I$16:$J$61,2,FALSE)*J450,\"\")","v":""},{"$f":"IFERROR(VLOOKUP(D450,'Species List'!$I$66:$J$66,2,FALSE)*J450,\"\")","v":""},{"$f":"IFERROR(VLOOKUP(D450,'Species List'!$I$71:$J$82,2,FALSE)*J450,\"\")","v":""},0,null,null,null,null,null,null,{"$f":"IFERROR(INDEX('3 - Land Summary'!$B$21:$B$120,(MATCH(AD450,'3 - Land Summary'!$C$21:$C$120,0))),\"\")","v":""}]
[null,{"$f":"IFERROR(INDEX('3 - Land Summary'!$B$21:$B$120,(MATCH('4 - Species Breakdown'!$V451,'3 - Land Summary'!$C$21:$C$120,0))),\"\")","v":""},null,null,{"$f":"IF(OR(COUNTIF('Look Up Data'!$D$149:$D$203,D451),COUNTIF('Look Up Data'!$D$149:$D$203,AE451)),\"YES\",\"NO\")","v":"NO"},null,null,{"$f":"IFERROR(INDEX('3 - Land Summary'!$G$21:$G$120,(MATCH(C451,'3 - Land Summary'!$C$21:$C$120,0))),\"\")","v":""},{"$f":"IFERROR(INDEX('3 - Land Summary'!$I$21:$I$120,(MATCH(C451,'3 - Land Summary'!$C$21:$C$120,0))),\"\")","v":""},"","",null,null,null,{"$f":"IFERROR(VLOOKUP(D451,'Species List'!$D$10:$E$46,2,FALSE)*J451,\"\")","v":""},{"$f":"IFERROR(VLOOKUP(D451,'Species List'!$D$51:$E$89,2,FALSE)*J451,\"\")","v":""},{"$f":"IFERROR(VLOOKUP(D451,'Species List'!$D$95:$E$102,2,FALSE)*J451,\"\")","v":""},{"$f":"IFERROR(VLOOKUP(D451,'Species List'!$I$10:$J$11,2,FALSE)*J451,\"\")","v":""},{"$f":"IFERROR(VLOOKUP(D451,'Species List'!$I$16:$J$61,2,FALSE)*J451,\"\")","v":""},{"$f":"IFERROR(VLOOKUP(D451,'Species List'!$I$66:$J$66,2,FALSE)*J451,\"\")","v":""},{"$f":"IFERROR(VLOOKUP(D451,'Species List'!$I$71:$J$82,2,FALSE)*J451,\"\")","v":""},0,null,null,null,null,null,null,{"$f":"IFERROR(INDEX('3 - Land Summary'!$B$21:$B$120,(MATCH(AD451,'3 - Land Summary'!$C$21:$C$120,0))),\"\")","v":""}]
[null,{"$f":"IFERROR(INDEX('3 - Land Summary'!$B$21:$B$120,(MATCH('4 - Species Breakdown'!$V452,'3 - Land Summary'!$C$21:$C$120,0))),\"\")","v":""},null,null,{"$f":"IF(OR(COUNTIF('Look Up Data'!$D$149:$D$203,D452),COUNTIF('Look Up Data'!$D$149:$D$203,AE452)),\"YES\",\"NO\")","v":"NO"},null,null,{"$f":"IFERROR(INDEX('3 - Land Summary'!$G$21:$G$120,(MATCH(C452,'3 - Land Summary'!$C$21:$C$120,0))),\"\")","v":""},{"$f":"IFERROR(INDEX('3 - Land Summary'!$I$21:$I$120,(MATCH(C452,'3 - Land Summary'!$C$21:$C$120,0))),\"\")","v":""},"","",null,null,null,{"$f":"IFERROR(VLOOKUP(D452,'Species List'!$D$10:$E$46,2,FALSE)*J452,\"\")","v":""},{"$f":"IFERROR(VLOOKUP(D452,'Species List'!$D$51:$E$89,2,FALSE)*J452,\"\")","v":""},{"$f":"IFERROR(VLOOKUP(D452,'Species List'!$D$95:$E$102,2,FALSE)*J452,\"\")","v":""},{"$f":"IFERROR(VLOOKUP(D452,'Species List'!$I$10:$J$11,2,FALSE)*J452,\"\")","v":""},{"$f":"IFERROR(VLOOKUP(D452,'Species List'!$I$16:$J$61,2,FALSE)*J452,\"\")","v":""},{"$f":"IFERROR(VLOOKUP(D452,'Species List'!$I$66:$J$66,2,FALSE)*J452,\"\")","v":""},{"$f":"IFERROR(VLOOKUP(D452,'Species List'!$I$71:$J$82,2,FALSE)*J452,\"\")","v":""},0,null,null,null,null,null,null,{"$f":"IFERROR(INDEX('3 - Land Summary'!$B$21:$B$120,(MATCH(AD452,'3 - Land Summary'!$C$21:$C$120,0))),\"\")","v":""}]
[null,{"$f":"IFERROR(INDEX('3 - Land Summary'!$B$21:$B$120,(MATCH('4 - Species Breakdown'!$V453,'3 - Land Summary'!$C$21:$C$120,0))),\"\")","v":""},null,null,{"$f":"IF(OR(COUNTIF('Look Up Data'!$D$149:$D$203,D453),COUNTIF('Look Up Data'!$D$149:$D$203,AE453)),\"YES\",\"NO\")","v":"NO"},null,null,{"$f":"IFERROR(INDEX('3 - Land Summary'!$G$21:$G$120,(MATCH(C453,'3 - Land Summary'!$C$21:$C$120,0))),\"\")","v":""},{"$f":"IFERROR(INDEX('3 - Land Summary'!$I$21:$I$120,(MATCH(C453,'3 - Land Summary'!$C$21:$C$120,0))),\"\")","v":""},"","",null,null,null,{"$f":"IFERROR(VLOOKUP(D453,'Species List'!$D$10:$E$46,2,FALSE)*J453,\"\")","v":""},{"$f":"IFERROR(VLOOKUP(D453,'Species List'!$D$51:$E$89,2,FALSE)*J453,\"\")","v":""},{"$f":"IFERROR(VLOOKUP(D453,'Species List'!$D$95:$E$102,2,FALSE)*J453,\"\")","v":""},{"$f":"IFERROR(VLOOKUP(D453,'Species List'!$I$10:$J$11,2,FALSE)*J453,\"\")","v":""},{"$f":"IFERROR(VLOOKUP(D453,'Species List'!$I$16:$J$61,2,FALSE)*J453,\"\")","v":""},{"$f":"IFERROR(VLOOKUP(D453,'Species List'!$I$66:$J$66,2,FALSE)*J453,\"\")","v":""},{"$f":"IFERROR(VLOOKUP(D453,'Species List'!$I$71:$J$82,2,FALSE)*J453,\"\")","v":""},0,null,null,null,null,null,null,{"$f":"IFERROR(INDEX('3 - Land Summary'!$B$21:$B$120,(MATCH(AD453,'3 - Land Summary'!$C$21:$C$120,0))),\"\")","v":""}]
[null,{"$f":"IFERROR(INDEX('3 - Land Summary'!$B$21:$B$120,(MATCH('4 - Species Breakdown'!$V454,'3 - Land Summary'!$C$21:$C$120,0))),\"\")","v":""},null,null,{"$f":"IF(OR(COUNTIF('Look Up Data'!$D$149:$D$203,D454),COUNTIF('Look Up Data'!$D$149:$D$203,AE454)),\"YES\",\"NO\")","v":"NO"},null,null,{"$f":"IFERROR(INDEX('3 - Land Summary'!$G$21:$G$120,(MATCH(C454,'3 - Land Summary'!$C$21:$C$120,0))),\"\")","v":""},{"$f":"IFERROR(INDEX('3 - Land Summary'!$I$21:$I$120,(MATCH(C454,'3 - Land Summary'!$C$21:$C$120,0))),\"\")","v":""},"","",null,null,null,{"$f":"IFERROR(VLOOKUP(D454,'Species List'!$D$10:$E$46,2,FALSE)*J454,\"\")","v":""},{"$f":"IFERROR(VLOOKUP(D454,'Species List'!$D$51:$E$89,2,FALSE)*J454,\"\")","v":""},{"$f":"IFERROR(VLOOKUP(D454,'Species List'!$D$95:$E$102,2,FALSE)*J454,\"\")","v":""},{"$f":"IFERROR(VLOOKUP(D454,'Species List'!$I$10:$J$11,2,FALSE)*J454,\"\")","v":""},{"$f":"IFERROR(VLOOKUP(D454,'Species List'!$I$16:$J$61,2,FALSE)*J454,\"\")","v":""},{"$f":"IFERROR(VLOOKUP(D454,'Species List'!$I$66:$J$66,2,FALSE)*J454,\"\")","v":""},{"$f":"IFERROR(VLOOKUP(D454,'Species List'!$I$71:$J$82,2,FALSE)*J454,\"\")","v":""},0,null,null,null,null,null,null,{"$f":"IFERROR(INDEX('3 - Land Summary'!$B$21:$B$120,(MATCH(AD454,'3 - Land Summary'!$C$21:$C$120,0))),\"\")","v":""}]
[null,{"$f":"IFERROR(INDEX('3 - Land Summary'!$B$21:$B$120,(MATCH('4 - Species Breakdown'!$V455,'3 - Land Summary'!$C$21:$C$120,0))),\"\")","v":""},null,null,{"$f":"IF(OR(COUNTIF('Look Up Data'!$D$149:$D$203,D455),COUNTIF('Look Up Data'!$D$149:$D$203,AE455)),\"YES\",\"NO\")","v":"NO"},null,null,{"$f":"IFERROR(INDEX('3 - Land Summary'!$G$21:$G$120,(MATCH(C455,'3 - Land Summary'!$C$21:$C$120,0))),\"\")","v":""},{"$f":"IFERROR(INDEX('3 - Land Summary'!$I$21:$I$120,(MATCH(C455,'3 - Land Summary'!$C$21:$C$120,0))),\"\")","v":""},"","",null,null,null,{"$f":"IFERROR(VLOOKUP(D455,'Species List'!$D$10:$E$46,2,FALSE)*J455,\"\")","v":""},{"$f":"IFERROR(VLOOKUP(D455,'Species List'!$D$51:$E$89,2,FALSE)*J455,\"\")","v":""},{"$f":"IFERROR(VLOOKUP(D455,'Species List'!$D$95:$E$102,2,FALSE)*J455,\"\")","v":""},{"$f":"IFERROR(VLOOKUP(D455,'Species List'!$I$10:$J$11,2,FALSE)*J455,\"\")","v":""},{"$f":"IFERROR(VLOOKUP(D455,'Species List'!$I$16:$J$61,2,FALSE)*J455,\"\")","v":""},{"$f":"IFERROR(VLOOKUP(D455,'Species List'!$I$66:$J$66,2,FALSE)*J455,\"\")","v":""},{"$f":"IFERROR(VLOOKUP(D455,'Species List'!$I$71:$J$82,2,FALSE)*J455,\"\")","v":""},0,null,null,null,null,null,null,{"$f":"IFERROR(INDEX('3 - Land Summary'!$B$21:$B$120,(MATCH(AD455,'3 - Land Summary'!$C$21:$C$120,0))),\"\")","v":""}]
[null,{"$f":"IFERROR(INDEX('3 - Land Summary'!$B$21:$B$120,(MATCH('4 - Species Breakdown'!$V456,'3 - Land Summary'!$C$21:$C$120,0))),\"\")","v":""},null,null,{"$f":"IF(OR(COUNTIF('Look Up Data'!$D$149:$D$203,D456),COUNTIF('Look Up Data'!$D$149:$D$203,AE456)),\"YES\",\"NO\")","v":"NO"},null,null,{"$f":"IFERROR(INDEX('3 - Land Summary'!$G$21:$G$120,(MATCH(C456,'3 - Land Summary'!$C$21:$C$120,0))),\"\")","v":""},{"$f":"IFERROR(INDEX('3 - Land Summary'!$I$21:$I$120,(MATCH(C456,'3 - Land Summary'!$C$21:$C$120,0))),\"\")","v":""},"","",null,null,null,{"$f":"IFERROR(VLOOKUP(D456,'Species List'!$D$10:$E$46,2,FALSE)*J456,\"\")","v":""},{"$f":"IFERROR(VLOOKUP(D456,'Species List'!$D$51:$E$89,2,FALSE)*J456,\"\")","v":""},{"$f":"IFERROR(VLOOKUP(D456,'Species List'!$D$95:$E$102,2,FALSE)*J456,\"\")","v":""},{"$f":"IFERROR(VLOOKUP(D456,'Species List'!$I$10:$J$11,2,FALSE)*J456,\"\")","v":""},{"$f":"IFERROR(VLOOKUP(D456,'Species List'!$I$16:$J$61,2,FALSE)*J456,\"\")","v":""},{"$f":"IFERROR(VLOOKUP(D456,'Species List'!$I$66:$J$66,2,FALSE)*J456,\"\")","v":""},{"$f":"IFERROR(VLOOKUP(D456,'Species List'!$I$71:$J$82,2,FALSE)*J456,\"\")","v":""},0,null,null,null,null,null,null,{"$f":"IFERROR(INDEX('3 - Land Summary'!$B$21:$B$120,(MATCH(AD456,'3 - Land Summary'!$C$21:$C$120,0))),\"\")","v":""}]
[null,{"$f":"IFERROR(INDEX('3 - Land Summary'!$B$21:$B$120,(MATCH('4 - Species Breakdown'!$V457,'3 - Land Summary'!$C$21:$C$120,0))),\"\")","v":""},null,null,{"$f":"IF(OR(COUNTIF('Look Up Data'!$D$149:$D$203,D457),COUNTIF('Look Up Data'!$D$149:$D$203,AE457)),\"YES\",\"NO\")","v":"NO"},null,null,{"$f":"IFERROR(INDEX('3 - Land Summary'!$G$21:$G$120,(MATCH(C457,'3 - Land Summary'!$C$21:$C$120,0))),\"\")","v":""},{"$f":"IFERROR(INDEX('3 - Land Summary'!$I$21:$I$120,(MATCH(C457,'3 - Land Summary'!$C$21:$C$120,0))),\"\")","v":""},"","",null,null,null,{"$f":"IFERROR(VLOOKUP(D457,'Species List'!$D$10:$E$46,2,FALSE)*J457,\"\")","v":""},{"$f":"IFERROR(VLOOKUP(D457,'Species List'!$D$51:$E$89,2,FALSE)*J457,\"\")","v":""},{"$f":"IFERROR(VLOOKUP(D457,'Species List'!$D$95:$E$102,2,FALSE)*J457,\"\")","v":""},{"$f":"IFERROR(VLOOKUP(D457,'Species List'!$I$10:$J$11,2,FALSE)*J457,\"\")","v":""},{"$f":"IFERROR(VLOOKUP(D457,'Species List'!$I$16:$J$61,2,FALSE)*J457,\"\")","v":""},{"$f":"IFERROR(VLOOKUP(D457,'Species List'!$I$66:$J$66,2,FALSE)*J457,\"\")","v":""},{"$f":"IFERROR(VLOOKUP(D457,'Species List'!$I$71:$J$82,2,FALSE)*J457,\"\")","v":""},0,null,null,null,null,null,null,{"$f":"IFERROR(INDEX('3 - Land Summary'!$B$21:$B$120,(MATCH(AD457,'3 - Land Summary'!$C$21:$C$120,0))),\"\")","v":""}]
[null,{"$f":"IFERROR(INDEX('3 - Land Summary'!$B$21:$B$120,(MATCH('4 - Species Breakdown'!$V458,'3 - Land Summary'!$C$21:$C$120,0))),\"\")","v":""},null,null,{"$f":"IF(OR(COUNTIF('Look Up Data'!$D$149:$D$203,D458),COUNTIF('Look Up Data'!$D$149:$D$203,AE458)),\"YES\",\"NO\")","v":"NO"},null,null,{"$f":"IFERROR(INDEX('3 - Land Summary'!$G$21:$G$120,(MATCH(C458,'3 - Land Summary'!$C$21:$C$120,0))),\"\")","v":""},{"$f":"IFERROR(INDEX('3 - Land Summary'!$I$21:$I$120,(MATCH(C458,'3 - Land Summary'!$C$21:$C$120,0))),\"\")","v":""},"","",null,null,null,{"$f":"IFERROR(VLOOKUP(D458,'Species List'!$D$10:$E$46,2,FALSE)*J458,\"\")","v":""},{"$f":"IFERROR(VLOOKUP(D458,'Species List'!$D$51:$E$89,2,FALSE)*J458,\"\")","v":""},{"$f":"IFERROR(VLOOKUP(D458,'Species List'!$D$95:$E$102,2,FALSE)*J458,\"\")","v":""},{"$f":"IFERROR(VLOOKUP(D458,'Species List'!$I$10:$J$11,2,FALSE)*J458,\"\")","v":""},{"$f":"IFERROR(VLOOKUP(D458,'Species List'!$I$16:$J$61,2,FALSE)*J458,\"\")","v":""},{"$f":"IFERROR(VLOOKUP(D458,'Species List'!$I$66:$J$66,2,FALSE)*J458,\"\")","v":""},{"$f":"IFERROR(VLOOKUP(D458,'Species List'!$I$71:$J$82,2,FALSE)*J458,\"\")","v":""},0,null,null,null,null,null,null,{"$f":"IFERROR(INDEX('3 - Land Summary'!$B$21:$B$120,(MATCH(AD458,'3 - Land Summary'!$C$21:$C$120,0))),\"\")","v":""}]
[null,{"$f":"IFERROR(INDEX('3 - Land Summary'!$B$21:$B$120,(MATCH('4 - Species Breakdown'!$V459,'3 - Land Summary'!$C$21:$C$120,0))),\"\")","v":""},null,null,{"$f":"IF(OR(COUNTIF('Look Up Data'!$D$149:$D$203,D459),COUNTIF('Look Up Data'!$D$149:$D$203,AE459)),\"YES\",\"NO\")","v":"NO"},null,null,{"$f":"IFERROR(INDEX('3 - Land Summary'!$G$21:$G$120,(MATCH(C459,'3 - Land Summary'!$C$21:$C$120,0))),\"\")","v":""},{"$f":"IFERROR(INDEX('3 - Land Summary'!$I$21:$I$120,(MATCH(C459,'3 - Land Summary'!$C$21:$C$120,0))),\"\")","v":""},"","",null,null,null,{"$f":"IFERROR(VLOOKUP(D459,'Species List'!$D$10:$E$46,2,FALSE)*J459,\"\")","v":""},{"$f":"IFERROR(VLOOKUP(D459,'Species List'!$D$51:$E$89,2,FALSE)*J459,\"\")","v":""},{"$f":"IFERROR(VLOOKUP(D459,'Species List'!$D$95:$E$102,2,FALSE)*J459,\"\")","v":""},{"$f":"IFERROR(VLOOKUP(D459,'Species List'!$I$10:$J$11,2,FALSE)*J459,\"\")","v":""},{"$f":"IFERROR(VLOOKUP(D459,'Species List'!$I$16:$J$61,2,FALSE)*J459,\"\")","v":""},{"$f":"IFERROR(VLOOKUP(D459,'Species List'!$I$66:$J$66,2,FALSE)*J459,\"\")","v":""},{"$f":"IFERROR(VLOOKUP(D459,'Species List'!$I$71:$J$82,2,FALSE)*J459,\"\")","v":""},0,null,null,null,null,null,null,{"$f":"IFERROR(INDEX('3 - Land Summary'!$B$21:$B$120,(MATCH(AD459,'3 - Land Summary'!$C$21:$C$120,0))),\"\")","v":""}]
[null,{"$f":"IFERROR(INDEX('3 - Land Summary'!$B$21:$B$120,(MATCH('4 - Species Breakdown'!$V460,'3 - Land Summary'!$C$21:$C$120,0))),\"\")","v":""},null,null,{"$f":"IF(OR(COUNTIF('Look Up Data'!$D$149:$D$203,D460),COUNTIF('Look Up Data'!$D$149:$D$203,AE460)),\"YES\",\"NO\")","v":"NO"},null,null,{"$f":"IFERROR(INDEX('3 - Land Summary'!$G$21:$G$120,(MATCH(C460,'3 - Land Summary'!$C$21:$C$120,0))),\"\")","v":""},{"$f":"IFERROR(INDEX('3 - Land Summary'!$I$21:$I$120,(MATCH(C460,'3 - Land Summary'!$C$21:$C$120,0))),\"\")","v":""},"","",null,null,null,{"$f":"IFERROR(VLOOKUP(D460,'Species List'!$D$10:$E$46,2,FALSE)*J460,\"\")","v":""},{"$f":"IFERROR(VLOOKUP(D460,'Species List'!$D$51:$E$89,2,FALSE)*J460,\"\")","v":""},{"$f":"IFERROR(VLOOKUP(D460,'Species List'!$D$95:$E$102,2,FALSE)*J460,\"\")","v":""},{"$f":"IFERROR(VLOOKUP(D460,'Species List'!$I$10:$J$11,2,FALSE)*J460,\"\")","v":""},{"$f":"IFERROR(VLOOKUP(D460,'Species List'!$I$16:$J$61,2,FALSE)*J460,\"\")","v":""},{"$f":"IFERROR(VLOOKUP(D460,'Species List'!$I$66:$J$66,2,FALSE)*J460,\"\")","v":""},{"$f":"IFERROR(VLOOKUP(D460,'Species List'!$I$71:$J$82,2,FALSE)*J460,\"\")","v":""},0,null,null,null,null,null,null,{"$f":"IFERROR(INDEX('3 - Land Summary'!$B$21:$B$120,(MATCH(AD460,'3 - Land Summary'!$C$21:$C$120,0))),\"\")","v":""}]
[null,{"$f":"IFERROR(INDEX('3 - Land Summary'!$B$21:$B$120,(MATCH('4 - Species Breakdown'!$V461,'3 - Land Summary'!$C$21:$C$120,0))),\"\")","v":""},null,null,{"$f":"IF(OR(COUNTIF('Look Up Data'!$D$149:$D$203,D461),COUNTIF('Look Up Data'!$D$149:$D$203,AE461)),\"YES\",\"NO\")","v":"NO"},null,null,{"$f":"IFERROR(INDEX('3 - Land Summary'!$G$21:$G$120,(MATCH(C461,'3 - Land Summary'!$C$21:$C$120,0))),\"\")","v":""},{"$f":"IFERROR(INDEX('3 - Land Summary'!$I$21:$I$120,(MATCH(C461,'3 - Land Summary'!$C$21:$C$120,0))),\"\")","v":""},"","",null,null,null,{"$f":"IFERROR(VLOOKUP(D461,'Species List'!$D$10:$E$46,2,FALSE)*J461,\"\")","v":""},{"$f":"IFERROR(VLOOKUP(D461,'Species List'!$D$51:$E$89,2,FALSE)*J461,\"\")","v":""},{"$f":"IFERROR(VLOOKUP(D461,'Species List'!$D$95:$E$102,2,FALSE)*J461,\"\")","v":""},{"$f":"IFERROR(VLOOKUP(D461,'Species List'!$I$10:$J$11,2,FALSE)*J461,\"\")","v":""},{"$f":"IFERROR(VLOOKUP(D461,'Species List'!$I$16:$J$61,2,FALSE)*J461,\"\")","v":""},{"$f":"IFERROR(VLOOKUP(D461,'Species List'!$I$66:$J$66,2,FALSE)*J461,\"\")","v":""},{"$f":"IFERROR(VLOOKUP(D461,'Species List'!$I$71:$J$82,2,FALSE)*J461,\"\")","v":""},0,null,null,null,null,null,null,{"$f":"IFERROR(INDEX('3 - Land Summary'!$B$21:$B$120,(MATCH(AD461,'3 - Land Summary'!$C$21:$C$120,0))),\"\")","v":""}]
[null,{"$f":"IFERROR(INDEX('3 - Land Summary'!$B$21:$B$120,(MATCH('4 - Species Breakdown'!$V462,'3 - Land Summary'!$C$21:$C$120,0))),\"\")","v":""},null,null,{"$f":"IF(OR(COUNTIF('Look Up Data'!$D$149:$D$203,D462),COUNTIF('Look Up Data'!$D$149:$D$203,AE462)),\"YES\",\"NO\")","v":"NO"},null,null,{"$f":"IFERROR(INDEX('3 - Land Summary'!$G$21:$G$120,(MATCH(C462,'3 - Land Summary'!$C$21:$C$120,0))),\"\")","v":""},{"$f":"IFERROR(INDEX('3 - Land Summary'!$I$21:$I$120,(MATCH(C462,'3 - Land Summary'!$C$21:$C$120,0))),\"\")","v":""},"","",null,null,null,{"$f":"IFERROR(VLOOKUP(D462,'Species List'!$D$10:$E$46,2,FALSE)*J462,\"\")","v":""},{"$f":"IFERROR(VLOOKUP(D462,'Species List'!$D$51:$E$89,2,FALSE)*J462,\"\")","v":""},{"$f":"IFERROR(VLOOKUP(D462,'Species List'!$D$95:$E$102,2,FALSE)*J462,\"\")","v":""},{"$f":"IFERROR(VLOOKUP(D462,'Species List'!$I$10:$J$11,2,FALSE)*J462,\"\")","v":""},{"$f":"IFERROR(VLOOKUP(D462,'Species List'!$I$16:$J$61,2,FALSE)*J462,\"\")","v":""},{"$f":"IFERROR(VLOOKUP(D462,'Species List'!$I$66:$J$66,2,FALSE)*J462,\"\")","v":""},{"$f":"IFERROR(VLOOKUP(D462,'Species List'!$I$71:$J$82,2,FALSE)*J462,\"\")","v":""},0,null,null,null,null,null,null,{"$f":"IFERROR(INDEX('3 - Land Summary'!$B$21:$B$120,(MATCH(AD462,'3 - Land Summary'!$C$21:$C$120,0))),\"\")","v":""}]
[null,{"$f":"IFERROR(INDEX('3 - Land Summary'!$B$21:$B$120,(MATCH('4 - Species Breakdown'!$V463,'3 - Land Summary'!$C$21:$C$120,0))),\"\")","v":""},null,null,{"$f":"IF(OR(COUNTIF('Look Up Data'!$D$149:$D$203,D463),COUNTIF('Look Up Data'!$D$149:$D$203,AE463)),\"YES\",\"NO\")","v":"NO"},null,null,{"$f":"IFERROR(INDEX('3 - Land Summary'!$G$21:$G$120,(MATCH(C463,'3 - Land Summary'!$C$21:$C$120,0))),\"\")","v":""},{"$f":"IFERROR(INDEX('3 - Land Summary'!$I$21:$I$120,(MATCH(C463,'3 - Land Summary'!$C$21:$C$120,0))),\"\")","v":""},"","",null,null,null,{"$f":"IFERROR(VLOOKUP(D463,'Species List'!$D$10:$E$46,2,FALSE)*J463,\"\")","v":""},{"$f":"IFERROR(VLOOKUP(D463,'Species List'!$D$51:$E$89,2,FALSE)*J463,\"\")","v":""},{"$f":"IFERROR(VLOOKUP(D463,'Species List'!$D$95:$E$102,2,FALSE)*J463,\"\")","v":""},{"$f":"IFERROR(VLOOKUP(D463,'Species List'!$I$10:$J$11,2,FALSE)*J463,\"\")","v":""},{"$f":"IFERROR(VLOOKUP(D463,'Species List'!$I$16:$J$61,2,FALSE)*J463,\"\")","v":""},{"$f":"IFERROR(VLOOKUP(D463,'Species List'!$I$66:$J$66,2,FALSE)*J463,\"\")","v":""},{"$f":"IFERROR(VLOOKUP(D463,'Species List'!$I$71:$J$82,2,FALSE)*J463,\"\")","v":""},0,null,null,null,null,null,null,{"$f":"IFERROR(INDEX('3 - Land Summary'!$B$21:$B$120,(MATCH(AD463,'3 - Land Summary'!$C$21:$C$120,0))),\"\")","v":""}]
[null,{"$f":"IFERROR(INDEX('3 - Land Summary'!$B$21:$B$120,(MATCH('4 - Species Breakdown'!$V464,'3 - Land Summary'!$C$21:$C$120,0))),\"\")","v":""},null,null,{"$f":"IF(OR(COUNTIF('Look Up Data'!$D$149:$D$203,D464),COUNTIF('Look Up Data'!$D$149:$D$203,AE464)),\"YES\",\"NO\")","v":"NO"},null,null,{"$f":"IFERROR(INDEX('3 - Land Summary'!$G$21:$G$120,(MATCH(C464,'3 - Land Summary'!$C$21:$C$120,0))),\"\")","v":""},{"$f":"IFERROR(INDEX('3 - Land Summary'!$I$21:$I$120,(MATCH(C464,'3 - Land Summary'!$C$21:$C$120,0))),\"\")","v":""},"","",null,null,null,{"$f":"IFERROR(VLOOKUP(D464,'Species List'!$D$10:$E$46,2,FALSE)*J464,\"\")","v":""},{"$f":"IFERROR(VLOOKUP(D464,'Species List'!$D$51:$E$89,2,FALSE)*J464,\"\")","v":""},{"$f":"IFERROR(VLOOKUP(D464,'Species List'!$D$95:$E$102,2,FALSE)*J464,\"\")","v":""},{"$f":"IFERROR(VLOOKUP(D464,'Species List'!$I$10:$J$11,2,FALSE)*J464,\"\")","v":""},{"$f":"IFERROR(VLOOKUP(D464,'Species List'!$I$16:$J$61,2,FALSE)*J464,\"\")","v":""},{"$f":"IFERROR(VLOOKUP(D464,'Species List'!$I$66:$J$66,2,FALSE)*J464,\"\")","v":""},{"$f":"IFERROR(VLOOKUP(D464,'Species List'!$I$71:$J$82,2,FALSE)*J464,\"\")","v":""},0,null,null,null,null,null,null,{"$f":"IFERROR(INDEX('3 - Land Summary'!$B$21:$B$120,(MATCH(AD464,'3 - Land Summary'!$C$21:$C$120,0))),\"\")","v":""}]
[null,{"$f":"IFERROR(INDEX('3 - Land Summary'!$B$21:$B$120,(MATCH('4 - Species Breakdown'!$V465,'3 - Land Summary'!$C$21:$C$120,0))),\"\")","v":""},null,null,{"$f":"IF(OR(COUNTIF('Look Up Data'!$D$149:$D$203,D465),COUNTIF('Look Up Data'!$D$149:$D$203,AE465)),\"YES\",\"NO\")","v":"NO"},null,null,{"$f":"IFERROR(INDEX('3 - Land Summary'!$G$21:$G$120,(MATCH(C465,'3 - Land Summary'!$C$21:$C$120,0))),\"\")","v":""},{"$f":"IFERROR(INDEX('3 - Land Summary'!$I$21:$I$120,(MATCH(C465,'3 - Land Summary'!$C$21:$C$120,0))),\"\")","v":""},"","",null,null,null,{"$f":"IFERROR(VLOOKUP(D465,'Species List'!$D$10:$E$46,2,FALSE)*J465,\"\")","v":""},{"$f":"IFERROR(VLOOKUP(D465,'Species List'!$D$51:$E$89,2,FALSE)*J465,\"\")","v":""},{"$f":"IFERROR(VLOOKUP(D465,'Species List'!$D$95:$E$102,2,FALSE)*J465,\"\")","v":""},{"$f":"IFERROR(VLOOKUP(D465,'Species List'!$I$10:$J$11,2,FALSE)*J465,\"\")","v":""},{"$f":"IFERROR(VLOOKUP(D465,'Species List'!$I$16:$J$61,2,FALSE)*J465,\"\")","v":""},{"$f":"IFERROR(VLOOKUP(D465,'Species List'!$I$66:$J$66,2,FALSE)*J465,\"\")","v":""},{"$f":"IFERROR(VLOOKUP(D465,'Species List'!$I$71:$J$82,2,FALSE)*J465,\"\")","v":""},0,null,null,null,null,null,null,{"$f":"IFERROR(INDEX('3 - Land Summary'!$B$21:$B$120,(MATCH(AD465,'3 - Land Summary'!$C$21:$C$120,0))),\"\")","v":""}]
[null,{"$f":"IFERROR(INDEX('3 - Land Summary'!$B$21:$B$120,(MATCH('4 - Species Breakdown'!$V466,'3 - Land Summary'!$C$21:$C$120,0))),\"\")","v":""},null,null,{"$f":"IF(OR(COUNTIF('Look Up Data'!$D$149:$D$203,D466),COUNTIF('Look Up Data'!$D$149:$D$203,AE466)),\"YES\",\"NO\")","v":"NO"},null,null,{"$f":"IFERROR(INDEX('3 - Land Summary'!$G$21:$G$120,(MATCH(C466,'3 - Land Summary'!$C$21:$C$120,0))),\"\")","v":""},{"$f":"IFERROR(INDEX('3 - Land Summary'!$I$21:$I$120,(MATCH(C466,'3 - Land Summary'!$C$21:$C$120,0))),\"\")","v":""},"","",null,null,null,{"$f":"IFERROR(VLOOKUP(D466,'Species List'!$D$10:$E$46,2,FALSE)*J466,\"\")","v":""},{"$f":"IFERROR(VLOOKUP(D466,'Species List'!$D$51:$E$89,2,FALSE)*J466,\"\")","v":""},{"$f":"IFERROR(VLOOKUP(D466,'Species List'!$D$95:$E$102,2,FALSE)*J466,\"\")","v":""},{"$f":"IFERROR(VLOOKUP(D466,'Species List'!$I$10:$J$11,2,FALSE)*J466,\"\")","v":""},{"$f":"IFERROR(VLOOKUP(D466,'Species List'!$I$16:$J$61,2,FALSE)*J466,\"\")","v":""},{"$f":"IFERROR(VLOOKUP(D466,'Species List'!$I$66:$J$66,2,FALSE)*J466,\"\")","v":""},{"$f":"IFERROR(VLOOKUP(D466,'Species List'!$I$71:$J$82,2,FALSE)*J466,\"\")","v":""},0,null,null,null,null,null,null,{"$f":"IFERROR(INDEX('3 - Land Summary'!$B$21:$B$120,(MATCH(AD466,'3 - Land Summary'!$C$21:$C$120,0))),\"\")","v":""}]
[null,{"$f":"IFERROR(INDEX('3 - Land Summary'!$B$21:$B$120,(MATCH('4 - Species Breakdown'!$V467,'3 - Land Summary'!$C$21:$C$120,0))),\"\")","v":""},null,null,{"$f":"IF(OR(COUNTIF('Look Up Data'!$D$149:$D$203,D467),COUNTIF('Look Up Data'!$D$149:$D$203,AE467)),\"YES\",\"NO\")","v":"NO"},null,null,{"$f":"IFERROR(INDEX('3 - Land Summary'!$G$21:$G$120,(MATCH(C467,'3 - Land Summary'!$C$21:$C$120,0))),\"\")","v":""},{"$f":"IFERROR(INDEX('3 - Land Summary'!$I$21:$I$120,(MATCH(C467,'3 - Land Summary'!$C$21:$C$120,0))),\"\")","v":""},"","",null,null,null,{"$f":"IFERROR(VLOOKUP(D467,'Species List'!$D$10:$E$46,2,FALSE)*J467,\"\")","v":""},{"$f":"IFERROR(VLOOKUP(D467,'Species List'!$D$51:$E$89,2,FALSE)*J467,\"\")","v":""},{"$f":"IFERROR(VLOOKUP(D467,'Species List'!$D$95:$E$102,2,FALSE)*J467,\"\")","v":""},{"$f":"IFERROR(VLOOKUP(D467,'Species List'!$I$10:$J$11,2,FALSE)*J467,\"\")","v":""},{"$f":"IFERROR(VLOOKUP(D467,'Species List'!$I$16:$J$61,2,FALSE)*J467,\"\")","v":""},{"$f":"IFERROR(VLOOKUP(D467,'Species List'!$I$66:$J$66,2,FALSE)*J467,\"\")","v":""},{"$f":"IFERROR(VLOOKUP(D467,'Species List'!$I$71:$J$82,2,FALSE)*J467,\"\")","v":""},0,null,null,null,null,null,null,{"$f":"IFERROR(INDEX('3 - Land Summary'!$B$21:$B$120,(MATCH(AD467,'3 - Land Summary'!$C$21:$C$120,0))),\"\")","v":""}]
[null,{"$f":"IFERROR(INDEX('3 - Land Summary'!$B$21:$B$120,(MATCH('4 - Species Breakdown'!$V468,'3 - Land Summary'!$C$21:$C$120,0))),\"\")","v":""},null,null,{"$f":"IF(OR(COUNTIF('Look Up Data'!$D$149:$D$203,D468),COUNTIF('Look Up Data'!$D$149:$D$203,AE468)),\"YES\",\"NO\")","v":"NO"},null,null,{"$f":"IFERROR(INDEX('3 - Land Summary'!$G$21:$G$120,(MATCH(C468,'3 - Land Summary'!$C$21:$C$120,0))),\"\")","v":""},{"$f":"IFERROR(INDEX('3 - Land Summary'!$I$21:$I$120,(MATCH(C468,'3 - Land Summary'!$C$21:$C$120,0))),\"\")","v":""},"","",null,null,null,{"$f":"IFERROR(VLOOKUP(D468,'Species List'!$D$10:$E$46,2,FALSE)*J468,\"\")","v":""},{"$f":"IFERROR(VLOOKUP(D468,'Species List'!$D$51:$E$89,2,FALSE)*J468,\"\")","v":""},{"$f":"IFERROR(VLOOKUP(D468,'Species List'!$D$95:$E$102,2,FALSE)*J468,\"\")","v":""},{"$f":"IFERROR(VLOOKUP(D468,'Species List'!$I$10:$J$11,2,FALSE)*J468,\"\")","v":""},{"$f":"IFERROR(VLOOKUP(D468,'Species List'!$I$16:$J$61,2,FALSE)*J468,\"\")","v":""},{"$f":"IFERROR(VLOOKUP(D468,'Species List'!$I$66:$J$66,2,FALSE)*J468,\"\")","v":""},{"$f":"IFERROR(VLOOKUP(D468,'Species List'!$I$71:$J$82,2,FALSE)*J468,\"\")","v":""},0,null,null,null,null,null,null,{"$f":"IFERROR(INDEX('3 - Land Summary'!$B$21:$B$120,(MATCH(AD468,'3 - Land Summary'!$C$21:$C$120,0))),\"\")","v":""}]
[null,{"$f":"IFERROR(INDEX('3 - Land Summary'!$B$21:$B$120,(MATCH('4 - Species Breakdown'!$V469,'3 - Land Summary'!$C$21:$C$120,0))),\"\")","v":""},null,null,{"$f":"IF(OR(COUNTIF('Look Up Data'!$D$149:$D$203,D469),COUNTIF('Look Up Data'!$D$149:$D$203,AE469)),\"YES\",\"NO\")","v":"NO"},null,null,{"$f":"IFERROR(INDEX('3 - Land Summary'!$G$21:$G$120,(MATCH(C469,'3 - Land Summary'!$C$21:$C$120,0))),\"\")","v":""},{"$f":"IFERROR(INDEX('3 - Land Summary'!$I$21:$I$120,(MATCH(C469,'3 - Land Summary'!$C$21:$C$120,0))),\"\")","v":""},"","",null,null,null,{"$f":"IFERROR(VLOOKUP(D469,'Species List'!$D$10:$E$46,2,FALSE)*J469,\"\")","v":""},{"$f":"IFERROR(VLOOKUP(D469,'Species List'!$D$51:$E$89,2,FALSE)*J469,\"\")","v":""},{"$f":"IFERROR(VLOOKUP(D469,'Species List'!$D$95:$E$102,2,FALSE)*J469,\"\")","v":""},{"$f":"IFERROR(VLOOKUP(D469,'Species List'!$I$10:$J$11,2,FALSE)*J469,\"\")","v":""},{"$f":"IFERROR(VLOOKUP(D469,'Species List'!$I$16:$J$61,2,FALSE)*J469,\"\")","v":""},{"$f":"IFERROR(VLOOKUP(D469,'Species List'!$I$66:$J$66,2,FALSE)*J469,\"\")","v":""},{"$f":"IFERROR(VLOOKUP(D469,'Species List'!$I$71:$J$82,2,FALSE)*J469,\"\")","v":""},0,null,null,null,null,null,null,{"$f":"IFERROR(INDEX('3 - Land Summary'!$B$21:$B$120,(MATCH(AD469,'3 - Land Summary'!$C$21:$C$120,0))),\"\")","v":""}]
[null,{"$f":"IFERROR(INDEX('3 - Land Summary'!$B$21:$B$120,(MATCH('4 - Species Breakdown'!$V470,'3 - Land Summary'!$C$21:$C$120,0))),\"\")","v":""},null,null,{"$f":"IF(OR(COUNTIF('Look Up Data'!$D$149:$D$203,D470),COUNTIF('Look Up Data'!$D$149:$D$203,AE470)),\"YES\",\"NO\")","v":"NO"},null,null,{"$f":"IFERROR(INDEX('3 - Land Summary'!$G$21:$G$120,(MATCH(C470,'3 - Land Summary'!$C$21:$C$120,0))),\"\")","v":""},{"$f":"IFERROR(INDEX('3 - Land Summary'!$I$21:$I$120,(MATCH(C470,'3 - Land Summary'!$C$21:$C$120,0))),\"\")","v":""},"","",null,null,null,{"$f":"IFERROR(VLOOKUP(D470,'Species List'!$D$10:$E$46,2,FALSE)*J470,\"\")","v":""},{"$f":"IFERROR(VLOOKUP(D470,'Species List'!$D$51:$E$89,2,FALSE)*J470,\"\")","v":""},{"$f":"IFERROR(VLOOKUP(D470,'Species List'!$D$95:$E$102,2,FALSE)*J470,\"\")","v":""},{"$f":"IFERROR(VLOOKUP(D470,'Species List'!$I$10:$J$11,2,FALSE)*J470,\"\")","v":""},{"$f":"IFERROR(VLOOKUP(D470,'Species List'!$I$16:$J$61,2,FALSE)*J470,\"\")","v":""},{"$f":"IFERROR(VLOOKUP(D470,'Species List'!$I$66:$J$66,2,FALSE)*J470,\"\")","v":""},{"$f":"IFERROR(VLOOKUP(D470,'Species List'!$I$71:$J$82,2,FALSE)*J470,\"\")","v":""},0,null,null,null,null,null,null,{"$f":"IFERROR(INDEX('3 - Land Summary'!$B$21:$B$120,(MATCH(AD470,'3 - Land Summary'!$C$21:$C$120,0))),\"\")","v":""}]
[null,{"$f":"IFERROR(INDEX('3 - Land Summary'!$B$21:$B$120,(MATCH('4 - Species Breakdown'!$V471,'3 - Land Summary'!$C$21:$C$120,0))),\"\")","v":""},null,null,{"$f":"IF(OR(COUNTIF('Look Up Data'!$D$149:$D$203,D471),COUNTIF('Look Up Data'!$D$149:$D$203,AE471)),\"YES\",\"NO\")","v":"NO"},null,null,{"$f":"IFERROR(INDEX('3 - Land Summary'!$G$21:$G$120,(MATCH(C471,'3 - Land Summary'!$C$21:$C$120,0))),\"\")","v":""},{"$f":"IFERROR(INDEX('3 - Land Summary'!$I$21:$I$120,(MATCH(C471,'3 - Land Summary'!$C$21:$C$120,0))),\"\")","v":""},"","",null,null,null,{"$f":"IFERROR(VLOOKUP(D471,'Species List'!$D$10:$E$46,2,FALSE)*J471,\"\")","v":""},{"$f":"IFERROR(VLOOKUP(D471,'Species List'!$D$51:$E$89,2,FALSE)*J471,\"\")","v":""},{"$f":"IFERROR(VLOOKUP(D471,'Species List'!$D$95:$E$102,2,FALSE)*J471,\"\")","v":""},{"$f":"IFERROR(VLOOKUP(D471,'Species List'!$I$10:$J$11,2,FALSE)*J471,\"\")","v":""},{"$f":"IFERROR(VLOOKUP(D471,'Species List'!$I$16:$J$61,2,FALSE)*J471,\"\")","v":""},{"$f":"IFERROR(VLOOKUP(D471,'Species List'!$I$66:$J$66,2,FALSE)*J471,\"\")","v":""},{"$f":"IFERROR(VLOOKUP(D471,'Species List'!$I$71:$J$82,2,FALSE)*J471,\"\")","v":""},0,null,null,null,null,null,null,{"$f":"IFERROR(INDEX('3 - Land Summary'!$B$21:$B$120,(MATCH(AD471,'3 - Land Summary'!$C$21:$C$120,0))),\"\")","v":""}]
[null,{"$f":"IFERROR(INDEX('3 - Land Summary'!$B$21:$B$120,(MATCH('4 - Species Breakdown'!$V472,'3 - Land Summary'!$C$21:$C$120,0))),\"\")","v":""},null,null,{"$f":"IF(OR(COUNTIF('Look Up Data'!$D$149:$D$203,D472),COUNTIF('Look Up Data'!$D$149:$D$203,AE472)),\"YES\",\"NO\")","v":"NO"},null,null,{"$f":"IFERROR(INDEX('3 - Land Summary'!$G$21:$G$120,(MATCH(C472,'3 - Land Summary'!$C$21:$C$120,0))),\"\")","v":""},{"$f":"IFERROR(INDEX('3 - Land Summary'!$I$21:$I$120,(MATCH(C472,'3 - Land Summary'!$C$21:$C$120,0))),\"\")","v":""},"","",null,null,null,{"$f":"IFERROR(VLOOKUP(D472,'Species List'!$D$10:$E$46,2,FALSE)*J472,\"\")","v":""},{"$f":"IFERROR(VLOOKUP(D472,'Species List'!$D$51:$E$89,2,FALSE)*J472,\"\")","v":""},{"$f":"IFERROR(VLOOKUP(D472,'Species List'!$D$95:$E$102,2,FALSE)*J472,\"\")","v":""},{"$f":"IFERROR(VLOOKUP(D472,'Species List'!$I$10:$J$11,2,FALSE)*J472,\"\")","v":""},{"$f":"IFERROR(VLOOKUP(D472,'Species List'!$I$16:$J$61,2,FALSE)*J472,\"\")","v":""},{"$f":"IFERROR(VLOOKUP(D472,'Species List'!$I$66:$J$66,2,FALSE)*J472,\"\")","v":""},{"$f":"IFERROR(VLOOKUP(D472,'Species List'!$I$71:$J$82,2,FALSE)*J472,\"\")","v":""},0,null,null,null,null,null,null,{"$f":"IFERROR(INDEX('3 - Land Summary'!$B$21:$B$120,(MATCH(AD472,'3 - Land Summary'!$C$21:$C$120,0))),\"\")","v":""}]
[null,{"$f":"IFERROR(INDEX('3 - Land Summary'!$B$21:$B$120,(MATCH('4 - Species Breakdown'!$V473,'3 - Land Summary'!$C$21:$C$120,0))),\"\")","v":""},null,null,{"$f":"IF(OR(COUNTIF('Look Up Data'!$D$149:$D$203,D473),COUNTIF('Look Up Data'!$D$149:$D$203,AE473)),\"YES\",\"NO\")","v":"NO"},null,null,{"$f":"IFERROR(INDEX('3 - Land Summary'!$G$21:$G$120,(MATCH(C473,'3 - Land Summary'!$C$21:$C$120,0))),\"\")","v":""},{"$f":"IFERROR(INDEX('3 - Land Summary'!$I$21:$I$120,(MATCH(C473,'3 - Land Summary'!$C$21:$C$120,0))),\"\")","v":""},"","",null,null,null,{"$f":"IFERROR(VLOOKUP(D473,'Species List'!$D$10:$E$46,2,FALSE)*J473,\"\")","v":""},{"$f":"IFERROR(VLOOKUP(D473,'Species List'!$D$51:$E$89,2,FALSE)*J473,\"\")","v":""},{"$f":"IFERROR(VLOOKUP(D473,'Species List'!$D$95:$E$102,2,FALSE)*J473,\"\")","v":""},{"$f":"IFERROR(VLOOKUP(D473,'Species List'!$I$10:$J$11,2,FALSE)*J473,\"\")","v":""},{"$f":"IFERROR(VLOOKUP(D473,'Species List'!$I$16:$J$61,2,FALSE)*J473,\"\")","v":""},{"$f":"IFERROR(VLOOKUP(D473,'Species List'!$I$66:$J$66,2,FALSE)*J473,\"\")","v":""},{"$f":"IFERROR(VLOOKUP(D473,'Species List'!$I$71:$J$82,2,FALSE)*J473,\"\")","v":""},0,null,null,null,null,null,null,{"$f":"IFERROR(INDEX('3 - Land Summary'!$B$21:$B$120,(MATCH(AD473,'3 - Land Summary'!$C$21:$C$120,0))),\"\")","v":""}]
[null,{"$f":"IFERROR(INDEX('3 - Land Summary'!$B$21:$B$120,(MATCH('4 - Species Breakdown'!$V474,'3 - Land Summary'!$C$21:$C$120,0))),\"\")","v":""},null,null,{"$f":"IF(OR(COUNTIF('Look Up Data'!$D$149:$D$203,D474),COUNTIF('Look Up Data'!$D$149:$D$203,AE474)),\"YES\",\"NO\")","v":"NO"},null,null,{"$f":"IFERROR(INDEX('3 - Land Summary'!$G$21:$G$120,(MATCH(C474,'3 - Land Summary'!$C$21:$C$120,0))),\"\")","v":""},{"$f":"IFERROR(INDEX('3 - Land Summary'!$I$21:$I$120,(MATCH(C474,'3 - Land Summary'!$C$21:$C$120,0))),\"\")","v":""},"","",null,null,null,{"$f":"IFERROR(VLOOKUP(D474,'Species List'!$D$10:$E$46,2,FALSE)*J474,\"\")","v":""},{"$f":"IFERROR(VLOOKUP(D474,'Species List'!$D$51:$E$89,2,FALSE)*J474,\"\")","v":""},{"$f":"IFERROR(VLOOKUP(D474,'Species List'!$D$95:$E$102,2,FALSE)*J474,\"\")","v":""},{"$f":"IFERROR(VLOOKUP(D474,'Species List'!$I$10:$J$11,2,FALSE)*J474,\"\")","v":""},{"$f":"IFERROR(VLOOKUP(D474,'Species List'!$I$16:$J$61,2,FALSE)*J474,\"\")","v":""},{"$f":"IFERROR(VLOOKUP(D474,'Species List'!$I$66:$J$66,2,FALSE)*J474,\"\")","v":""},{"$f":"IFERROR(VLOOKUP(D474,'Species List'!$I$71:$J$82,2,FALSE)*J474,\"\")","v":""},0,null,null,null,null,null,null,{"$f":"IFERROR(INDEX('3 - Land Summary'!$B$21:$B$120,(MATCH(AD474,'3 - Land Summary'!$C$21:$C$120,0))),\"\")","v":""}]
[null,{"$f":"IFERROR(INDEX('3 - Land Summary'!$B$21:$B$120,(MATCH('4 - Species Breakdown'!$V475,'3 - Land Summary'!$C$21:$C$120,0))),\"\")","v":""},null,null,{"$f":"IF(OR(COUNTIF('Look Up Data'!$D$149:$D$203,D475),COUNTIF('Look Up Data'!$D$149:$D$203,AE475)),\"YES\",\"NO\")","v":"NO"},null,null,{"$f":"IFERROR(INDEX('3 - Land Summary'!$G$21:$G$120,(MATCH(C475,'3 - Land Summary'!$C$21:$C$120,0))),\"\")","v":""},{"$f":"IFERROR(INDEX('3 - Land Summary'!$I$21:$I$120,(MATCH(C475,'3 - Land Summary'!$C$21:$C$120,0))),\"\")","v":""},"","",null,null,null,{"$f":"IFERROR(VLOOKUP(D475,'Species List'!$D$10:$E$46,2,FALSE)*J475,\"\")","v":""},{"$f":"IFERROR(VLOOKUP(D475,'Species List'!$D$51:$E$89,2,FALSE)*J475,\"\")","v":""},{"$f":"IFERROR(VLOOKUP(D475,'Species List'!$D$95:$E$102,2,FALSE)*J475,\"\")","v":""},{"$f":"IFERROR(VLOOKUP(D475,'Species List'!$I$10:$J$11,2,FALSE)*J475,\"\")","v":""},{"$f":"IFERROR(VLOOKUP(D475,'Species List'!$I$16:$J$61,2,FALSE)*J475,\"\")","v":""},{"$f":"IFERROR(VLOOKUP(D475,'Species List'!$I$66:$J$66,2,FALSE)*J475,\"\")","v":""},{"$f":"IFERROR(VLOOKUP(D475,'Species List'!$I$71:$J$82,2,FALSE)*J475,\"\")","v":""},0,null,null,null,null,null,null,{"$f":"IFERROR(INDEX('3 - Land Summary'!$B$21:$B$120,(MATCH(AD475,'3 - Land Summary'!$C$21:$C$120,0))),\"\")","v":""}]
[null,{"$f":"IFERROR(INDEX('3 - Land Summary'!$B$21:$B$120,(MATCH('4 - Species Breakdown'!$V476,'3 - Land Summary'!$C$21:$C$120,0))),\"\")","v":""},null,null,{"$f":"IF(OR(COUNTIF('Look Up Data'!$D$149:$D$203,D476),COUNTIF('Look Up Data'!$D$149:$D$203,AE476)),\"YES\",\"NO\")","v":"NO"},null,null,{"$f":"IFERROR(INDEX('3 - Land Summary'!$G$21:$G$120,(MATCH(C476,'3 - Land Summary'!$C$21:$C$120,0))),\"\")","v":""},{"$f":"IFERROR(INDEX('3 - Land Summary'!$I$21:$I$120,(MATCH(C476,'3 - Land Summary'!$C$21:$C$120,0))),\"\")","v":""},"","",null,null,null,{"$f":"IFERROR(VLOOKUP(D476,'Species List'!$D$10:$E$46,2,FALSE)*J476,\"\")","v":""},{"$f":"IFERROR(VLOOKUP(D476,'Species List'!$D$51:$E$89,2,FALSE)*J476,\"\")","v":""},{"$f":"IFERROR(VLOOKUP(D476,'Species List'!$D$95:$E$102,2,FALSE)*J476,\"\")","v":""},{"$f":"IFERROR(VLOOKUP(D476,'Species List'!$I$10:$J$11,2,FALSE)*J476,\"\")","v":""},{"$f":"IFERROR(VLOOKUP(D476,'Species List'!$I$16:$J$61,2,FALSE)*J476,\"\")","v":""},{"$f":"IFERROR(VLOOKUP(D476,'Species List'!$I$66:$J$66,2,FALSE)*J476,\"\")","v":""},{"$f":"IFERROR(VLOOKUP(D476,'Species List'!$I$71:$J$82,2,FALSE)*J476,\"\")","v":""},0,null,null,null,null,null,null,{"$f":"IFERROR(INDEX('3 - Land Summary'!$B$21:$B$120,(MATCH(AD476,'3 - Land Summary'!$C$21:$C$120,0))),\"\")","v":""}]
[null,{"$f":"IFERROR(INDEX('3 - Land Summary'!$B$21:$B$120,(MATCH('4 - Species Breakdown'!$V477,'3 - Land Summary'!$C$21:$C$120,0))),\"\")","v":""},null,null,{"$f":"IF(OR(COUNTIF('Look Up Data'!$D$149:$D$203,D477),COUNTIF('Look Up Data'!$D$149:$D$203,AE477)),\"YES\",\"NO\")","v":"NO"},null,null,{"$f":"IFERROR(INDEX('3 - Land Summary'!$G$21:$G$120,(MATCH(C477,'3 - Land Summary'!$C$21:$C$120,0))),\"\")","v":""},{"$f":"IFERROR(INDEX('3 - Land Summary'!$I$21:$I$120,(MATCH(C477,'3 - Land Summary'!$C$21:$C$120,0))),\"\")","v":""},"","",null,null,null,{"$f":"IFERROR(VLOOKUP(D477,'Species List'!$D$10:$E$46,2,FALSE)*J477,\"\")","v":""},{"$f":"IFERROR(VLOOKUP(D477,'Species List'!$D$51:$E$89,2,FALSE)*J477,\"\")","v":""},{"$f":"IFERROR(VLOOKUP(D477,'Species List'!$D$95:$E$102,2,FALSE)*J477,\"\")","v":""},{"$f":"IFERROR(VLOOKUP(D477,'Species List'!$I$10:$J$11,2,FALSE)*J477,\"\")","v":""},{"$f":"IFERROR(VLOOKUP(D477,'Species List'!$I$16:$J$61,2,FALSE)*J477,\"\")","v":""},{"$f":"IFERROR(VLOOKUP(D477,'Species List'!$I$66:$J$66,2,FALSE)*J477,\"\")","v":""},{"$f":"IFERROR(VLOOKUP(D477,'Species List'!$I$71:$J$82,2,FALSE)*J477,\"\")","v":""},0,null,null,null,null,null,null,{"$f":"IFERROR(INDEX('3 - Land Summary'!$B$21:$B$120,(MATCH(AD477,'3 - Land Summary'!$C$21:$C$120,0))),\"\")","v":""}]
[null,{"$f":"IFERROR(INDEX('3 - Land Summary'!$B$21:$B$120,(MATCH('4 - Species Breakdown'!$V478,'3 - Land Summary'!$C$21:$C$120,0))),\"\")","v":""},null,null,{"$f":"IF(OR(COUNTIF('Look Up Data'!$D$149:$D$203,D478),COUNTIF('Look Up Data'!$D$149:$D$203,AE478)),\"YES\",\"NO\")","v":"NO"},null,null,{"$f":"IFERROR(INDEX('3 - Land Summary'!$G$21:$G$120,(MATCH(C478,'3 - Land Summary'!$C$21:$C$120,0))),\"\")","v":""},{"$f":"IFERROR(INDEX('3 - Land Summary'!$I$21:$I$120,(MATCH(C478,'3 - Land Summary'!$C$21:$C$120,0))),\"\")","v":""},"","",null,null,null,{"$f":"IFERROR(VLOOKUP(D478,'Species List'!$D$10:$E$46,2,FALSE)*J478,\"\")","v":""},{"$f":"IFERROR(VLOOKUP(D478,'Species List'!$D$51:$E$89,2,FALSE)*J478,\"\")","v":""},{"$f":"IFERROR(VLOOKUP(D478,'Species List'!$D$95:$E$102,2,FALSE)*J478,\"\")","v":""},{"$f":"IFERROR(VLOOKUP(D478,'Species List'!$I$10:$J$11,2,FALSE)*J478,\"\")","v":""},{"$f":"IFERROR(VLOOKUP(D478,'Species List'!$I$16:$J$61,2,FALSE)*J478,\"\")","v":""},{"$f":"IFERROR(VLOOKUP(D478,'Species List'!$I$66:$J$66,2,FALSE)*J478,\"\")","v":""},{"$f":"IFERROR(VLOOKUP(D478,'Species List'!$I$71:$J$82,2,FALSE)*J478,\"\")","v":""},0,null,null,null,null,null,null,{"$f":"IFERROR(INDEX('3 - Land Summary'!$B$21:$B$120,(MATCH(AD478,'3 - Land Summary'!$C$21:$C$120,0))),\"\")","v":""}]
[null,{"$f":"IFERROR(INDEX('3 - Land Summary'!$B$21:$B$120,(MATCH('4 - Species Breakdown'!$V479,'3 - Land Summary'!$C$21:$C$120,0))),\"\")","v":""},null,null,{"$f":"IF(OR(COUNTIF('Look Up Data'!$D$149:$D$203,D479),COUNTIF('Look Up Data'!$D$149:$D$203,AE479)),\"YES\",\"NO\")","v":"NO"},null,null,{"$f":"IFERROR(INDEX('3 - Land Summary'!$G$21:$G$120,(MATCH(C479,'3 - Land Summary'!$C$21:$C$120,0))),\"\")","v":""},{"$f":"IFERROR(INDEX('3 - Land Summary'!$I$21:$I$120,(MATCH(C479,'3 - Land Summary'!$C$21:$C$120,0))),\"\")","v":""},{"$f":"IFERROR(((H479-I479)*F479)/100,\"\")","v":""},"",null,null,null,{"$f":"IFERROR(VLOOKUP(D479,'Species List'!$D$10:$E$46,2,FALSE)*J479,\"\")","v":""},{"$f":"IFERROR(VLOOKUP(D479,'Species List'!$D$51:$E$89,2,FALSE)*J479,\"\")","v":""},{"$f":"IFERROR(VLOOKUP(D479,'Species List'!$D$95:$E$102,2,FALSE)*J479,\"\")","v":""},{"$f":"IFERROR(VLOOKUP(D479,'Species List'!$I$10:$J$11,2,FALSE)*J479,\"\")","v":""},{"$f":"IFERROR(VLOOKUP(D479,'Species List'!$I$16:$J$61,2,FALSE)*J479,\"\")","v":""},{"$f":"IFERROR(VLOOKUP(D479,'Species List'!$I$66:$J$66,2,FALSE)*J479,\"\")","v":""},{"$f":"IFERROR(VLOOKUP(D479,'Species List'!$I$71:$J$82,2,FALSE)*J479,\"\")","v":""},{"$f":"C479","v":0},null,null,null,null,null,null,{"$f":"IFERROR(INDEX('3 - Land Summary'!$B$21:$B$120,(MATCH(AD479,'3 - Land Summary'!$C$21:$C$120,0))),\"\")","v":""}]
[null,{"$f":"IFERROR(INDEX('3 - Land Summary'!$B$21:$B$120,(MATCH('4 - Species Breakdown'!$V480,'3 - Land Summary'!$C$21:$C$120,0))),\"\")","v":""},null,null,{"$f":"IF(OR(COUNTIF('Look Up Data'!$D$149:$D$203,D480),COUNTIF('Look Up Data'!$D$149:$D$203,AE480)),\"YES\",\"NO\")","v":"NO"},null,null,{"$f":"IFERROR(INDEX('3 - Land Summary'!$G$21:$G$120,(MATCH(C480,'3 - Land Summary'!$C$21:$C$120,0))),\"\")","v":""},{"$f":"IFERROR(INDEX('3 - Land Summary'!$I$21:$I$120,(MATCH(C480,'3 - Land Summary'!$C$21:$C$120,0))),\"\")","v":""},"",{"$f":"IFERROR(ROUND(J480*G480,0),\"\")","v":""},null,null,null,{"$f":"IFERROR(VLOOKUP(D480,'Species List'!$D$10:$E$46,2,FALSE)*J480,\"\")","v":""},{"$f":"IFERROR(VLOOKUP(D480,'Species List'!$D$51:$E$89,2,FALSE)*J480,\"\")","v":""},{"$f":"IFERROR(VLOOKUP(D480,'Species List'!$D$95:$E$102,2,FALSE)*J480,\"\")","v":""},{"$f":"IFERROR(VLOOKUP(D480,'Species List'!$I$10:$J$11,2,FALSE)*J480,\"\")","v":""},{"$f":"IFERROR(VLOOKUP(D480,'Species List'!$I$16:$J$61,2,FALSE)*J480,\"\")","v":""},{"$f":"IFERROR(VLOOKUP(D480,'Species List'!$I$66:$J$66,2,FALSE)*J480,\"\")","v":""},{"$f":"IFERROR(VLOOKUP(D480,'Species List'!$I$71:$J$82,2,FALSE)*J480,\"\")","v":""},0,null,null,null,null,null,null,{"$f":"IFERROR(INDEX('3 - Land Summary'!$B$21:$B$120,(MATCH(AD480,'3 - Land Summary'!$C$21:$C$120,0))),\"\")","v":""}]
[null,{"$f":"IFERROR(INDEX('3 - Land Summary'!$B$21:$B$120,(MATCH('4 - Species Breakdown'!$V481,'3 - Land Summary'!$C$21:$C$120,0))),\"\")","v":""},null,null,{"$f":"IF(OR(COUNTIF('Look Up Data'!$D$149:$D$203,D481),COUNTIF('Look Up Data'!$D$149:$D$203,AE481)),\"YES\",\"NO\")","v":"NO"},null,null,{"$f":"IFERROR(INDEX('3 - Land Summary'!$G$21:$G$120,(MATCH(C481,'3 - Land Summary'!$C$21:$C$120,0))),\"\")","v":""},{"$f":"IFERROR(INDEX('3 - Land Summary'!$I$21:$I$120,(MATCH(C481,'3 - Land Summary'!$C$21:$C$120,0))),\"\")","v":""},"","",null,null,null,{"$f":"IFERROR(VLOOKUP(D481,'Species List'!$D$10:$E$46,2,FALSE)*J481,\"\")","v":""},{"$f":"IFERROR(VLOOKUP(D481,'Species List'!$D$51:$E$89,2,FALSE)*J481,\"\")","v":""},{"$f":"IFERROR(VLOOKUP(D481,'Species List'!$D$95:$E$102,2,FALSE)*J481,\"\")","v":""},{"$f":"IFERROR(VLOOKUP(D481,'Species List'!$I$10:$J$11,2,FALSE)*J481,\"\")","v":""},{"$f":"IFERROR(VLOOKUP(D481,'Species List'!$I$16:$J$61,2,FALSE)*J481,\"\")","v":""},{"$f":"IFERROR(VLOOKUP(D481,'Species List'!$I$66:$J$66,2,FALSE)*J481,\"\")","v":""},{"$f":"IFERROR(VLOOKUP(D481,'Species List'!$I$71:$J$82,2,FALSE)*J481,\"\")","v":""},0,null,null,null,null,null,null,{"$f":"IFERROR(INDEX('3 - Land Summary'!$B$21:$B$120,(MATCH(AD481,'3 - Land Summary'!$C$21:$C$120,0))),\"\")","v":""}]
[null,{"$f":"IFERROR(INDEX('3 - Land Summary'!$B$21:$B$120,(MATCH('4 - Species Breakdown'!$V482,'3 - Land Summary'!$C$21:$C$120,0))),\"\")","v":""},null,null,{"$f":"IF(OR(COUNTIF('Look Up Data'!$D$149:$D$203,D482),COUNTIF('Look Up Data'!$D$149:$D$203,AE482)),\"YES\",\"NO\")","v":"NO"},null,null,{"$f":"IFERROR(INDEX('3 - Land Summary'!$G$21:$G$120,(MATCH(C482,'3 - Land Summary'!$C$21:$C$120,0))),\"\")","v":""},{"$f":"IFERROR(INDEX('3 - Land Summary'!$I$21:$I$120,(MATCH(C482,'3 - Land Summary'!$C$21:$C$120,0))),\"\")","v":""},"","",null,null,null,{"$f":"IFERROR(VLOOKUP(D482,'Species List'!$D$10:$E$46,2,FALSE)*J482,\"\")","v":""},{"$f":"IFERROR(VLOOKUP(D482,'Species List'!$D$51:$E$89,2,FALSE)*J482,\"\")","v":""},{"$f":"IFERROR(VLOOKUP(D482,'Species List'!$D$95:$E$102,2,FALSE)*J482,\"\")","v":""},{"$f":"IFERROR(VLOOKUP(D482,'Species List'!$I$10:$J$11,2,FALSE)*J482,\"\")","v":""},{"$f":"IFERROR(VLOOKUP(D482,'Species List'!$I$16:$J$61,2,FALSE)*J482,\"\")","v":""},{"$f":"IFERROR(VLOOKUP(D482,'Species List'!$I$66:$J$66,2,FALSE)*J482,\"\")","v":""},{"$f":"IFERROR(VLOOKUP(D482,'Species List'!$I$71:$J$82,2,FALSE)*J482,\"\")","v":""},0,null,null,null,null,null,null,{"$f":"IFERROR(INDEX('3 - Land Summary'!$B$21:$B$120,(MATCH(AD482,'3 - Land Summary'!$C$21:$C$120,0))),\"\")","v":""}]
[null,{"$f":"IFERROR(INDEX('3 - Land Summary'!$B$21:$B$120,(MATCH('4 - Species Breakdown'!$V483,'3 - Land Summary'!$C$21:$C$120,0))),\"\")","v":""},null,null,{"$f":"IF(OR(COUNTIF('Look Up Data'!$D$149:$D$203,D483),COUNTIF('Look Up Data'!$D$149:$D$203,AE483)),\"YES\",\"NO\")","v":"NO"},null,null,{"$f":"IFERROR(INDEX('3 - Land Summary'!$G$21:$G$120,(MATCH(C483,'3 - Land Summary'!$C$21:$C$120,0))),\"\")","v":""},{"$f":"IFERROR(INDEX('3 - Land Summary'!$I$21:$I$120,(MATCH(C483,'3 - Land Summary'!$C$21:$C$120,0))),\"\")","v":""},"","",null,null,null,{"$f":"IFERROR(VLOOKUP(D483,'Species List'!$D$10:$E$46,2,FALSE)*J483,\"\")","v":""},{"$f":"IFERROR(VLOOKUP(D483,'Species List'!$D$51:$E$89,2,FALSE)*J483,\"\")","v":""},{"$f":"IFERROR(VLOOKUP(D483,'Species List'!$D$95:$E$102,2,FALSE)*J483,\"\")","v":""},{"$f":"IFERROR(VLOOKUP(D483,'Species List'!$I$10:$J$11,2,FALSE)*J483,\"\")","v":""},{"$f":"IFERROR(VLOOKUP(D483,'Species List'!$I$16:$J$61,2,FALSE)*J483,\"\")","v":""},{"$f":"IFERROR(VLOOKUP(D483,'Species List'!$I$66:$J$66,2,FALSE)*J483,\"\")","v":""},{"$f":"IFERROR(VLOOKUP(D483,'Species List'!$I$71:$J$82,2,FALSE)*J483,\"\")","v":""},0,null,null,null,null,null,null,{"$f":"IFERROR(INDEX('3 - Land Summary'!$B$21:$B$120,(MATCH(AD483,'3 - Land Summary'!$C$21:$C$120,0))),\"\")","v":""}]
[null,{"$f":"IFERROR(INDEX('3 - Land Summary'!$B$21:$B$120,(MATCH('4 - Species Breakdown'!$V484,'3 - Land Summary'!$C$21:$C$120,0))),\"\")","v":""},null,null,{"$f":"IF(OR(COUNTIF('Look Up Data'!$D$149:$D$203,D484),COUNTIF('Look Up Data'!$D$149:$D$203,AE484)),\"YES\",\"NO\")","v":"NO"},null,null,{"$f":"IFERROR(INDEX('3 - Land Summary'!$G$21:$G$120,(MATCH(C484,'3 - Land Summary'!$C$21:$C$120,0))),\"\")","v":""},{"$f":"IFERROR(INDEX('3 - Land Summary'!$I$21:$I$120,(MATCH(C484,'3 - Land Summary'!$C$21:$C$120,0))),\"\")","v":""},"","",null,null,null,{"$f":"IFERROR(VLOOKUP(D484,'Species List'!$D$10:$E$46,2,FALSE)*J484,\"\")","v":""},{"$f":"IFERROR(VLOOKUP(D484,'Species List'!$D$51:$E$89,2,FALSE)*J484,\"\")","v":""},{"$f":"IFERROR(VLOOKUP(D484,'Species List'!$D$95:$E$102,2,FALSE)*J484,\"\")","v":""},{"$f":"IFERROR(VLOOKUP(D484,'Species List'!$I$10:$J$11,2,FALSE)*J484,\"\")","v":""},{"$f":"IFERROR(VLOOKUP(D484,'Species List'!$I$16:$J$61,2,FALSE)*J484,\"\")","v":""},{"$f":"IFERROR(VLOOKUP(D484,'Species List'!$I$66:$J$66,2,FALSE)*J484,\"\")","v":""},{"$f":"IFERROR(VLOOKUP(D484,'Species List'!$I$71:$J$82,2,FALSE)*J484,\"\")","v":""},0,null,null,null,null,null,null,{"$f":"IFERROR(INDEX('3 - Land Summary'!$B$21:$B$120,(MATCH(AD484,'3 - Land Summary'!$C$21:$C$120,0))),\"\")","v":""}]
[null,{"$f":"IFERROR(INDEX('3 - Land Summary'!$B$21:$B$120,(MATCH('4 - Species Breakdown'!$V485,'3 - Land Summary'!$C$21:$C$120,0))),\"\")","v":""},null,null,{"$f":"IF(OR(COUNTIF('Look Up Data'!$D$149:$D$203,D485),COUNTIF('Look Up Data'!$D$149:$D$203,AE485)),\"YES\",\"NO\")","v":"NO"},null,null,{"$f":"IFERROR(INDEX('3 - Land Summary'!$G$21:$G$120,(MATCH(C485,'3 - Land Summary'!$C$21:$C$120,0))),\"\")","v":""},{"$f":"IFERROR(INDEX('3 - Land Summary'!$I$21:$I$120,(MATCH(C485,'3 - Land Summary'!$C$21:$C$120,0))),\"\")","v":""},"","",null,null,null,{"$f":"IFERROR(VLOOKUP(D485,'Species List'!$D$10:$E$46,2,FALSE)*J485,\"\")","v":""},{"$f":"IFERROR(VLOOKUP(D485,'Species List'!$D$51:$E$89,2,FALSE)*J485,\"\")","v":""},{"$f":"IFERROR(VLOOKUP(D485,'Species List'!$D$95:$E$102,2,FALSE)*J485,\"\")","v":""},{"$f":"IFERROR(VLOOKUP(D485,'Species List'!$I$10:$J$11,2,FALSE)*J485,\"\")","v":""},{"$f":"IFERROR(VLOOKUP(D485,'Species List'!$I$16:$J$61,2,FALSE)*J485,\"\")","v":""},{"$f":"IFERROR(VLOOKUP(D485,'Species List'!$I$66:$J$66,2,FALSE)*J485,\"\")","v":""},{"$f":"IFERROR(VLOOKUP(D485,'Species List'!$I$71:$J$82,2,FALSE)*J485,\"\")","v":""},0,null,null,null,null,null,null,{"$f":"IFERROR(INDEX('3 - Land Summary'!$B$21:$B$120,(MATCH(AD485,'3 - Land Summary'!$C$21:$C$120,0))),\"\")","v":""}]
[null,{"$f":"IFERROR(INDEX('3 - Land Summary'!$B$21:$B$120,(MATCH('4 - Species Breakdown'!$V486,'3 - Land Summary'!$C$21:$C$120,0))),\"\")","v":""},null,null,{"$f":"IF(OR(COUNTIF('Look Up Data'!$D$149:$D$203,D486),COUNTIF('Look Up Data'!$D$149:$D$203,AE486)),\"YES\",\"NO\")","v":"NO"},null,null,{"$f":"IFERROR(INDEX('3 - Land Summary'!$G$21:$G$120,(MATCH(C486,'3 - Land Summary'!$C$21:$C$120,0))),\"\")","v":""},{"$f":"IFERROR(INDEX('3 - Land Summary'!$I$21:$I$120,(MATCH(C486,'3 - Land Summary'!$C$21:$C$120,0))),\"\")","v":""},"","",null,null,null,{"$f":"IFERROR(VLOOKUP(D486,'Species List'!$D$10:$E$46,2,FALSE)*J486,\"\")","v":""},{"$f":"IFERROR(VLOOKUP(D486,'Species List'!$D$51:$E$89,2,FALSE)*J486,\"\")","v":""},{"$f":"IFERROR(VLOOKUP(D486,'Species List'!$D$95:$E$102,2,FALSE)*J486,\"\")","v":""},{"$f":"IFERROR(VLOOKUP(D486,'Species List'!$I$10:$J$11,2,FALSE)*J486,\"\")","v":""},{"$f":"IFERROR(VLOOKUP(D486,'Species List'!$I$16:$J$61,2,FALSE)*J486,\"\")","v":""},{"$f":"IFERROR(VLOOKUP(D486,'Species List'!$I$66:$J$66,2,FALSE)*J486,\"\")","v":""},{"$f":"IFERROR(VLOOKUP(D486,'Species List'!$I$71:$J$82,2,FALSE)*J486,\"\")","v":""},0,null,null,null,null,null,null,{"$f":"IFERROR(INDEX('3 - Land Summary'!$B$21:$B$120,(MATCH(AD486,'3 - Land Summary'!$C$21:$C$120,0))),\"\")","v":""}]
[null,{"$f":"IFERROR(INDEX('3 - Land Summary'!$B$21:$B$120,(MATCH('4 - Species Breakdown'!$V487,'3 - Land Summary'!$C$21:$C$120,0))),\"\")","v":""},null,null,{"$f":"IF(OR(COUNTIF('Look Up Data'!$D$149:$D$203,D487),COUNTIF('Look Up Data'!$D$149:$D$203,AE487)),\"YES\",\"NO\")","v":"NO"},null,null,{"$f":"IFERROR(INDEX('3 - Land Summary'!$G$21:$G$120,(MATCH(C487,'3 - Land Summary'!$C$21:$C$120,0))),\"\")","v":""},{"$f":"IFERROR(INDEX('3 - Land Summary'!$I$21:$I$120,(MATCH(C487,'3 - Land Summary'!$C$21:$C$120,0))),\"\")","v":""},"","",null,null,null,{"$f":"IFERROR(VLOOKUP(D487,'Species List'!$D$10:$E$46,2,FALSE)*J487,\"\")","v":""},{"$f":"IFERROR(VLOOKUP(D487,'Species List'!$D$51:$E$89,2,FALSE)*J487,\"\")","v":""},{"$f":"IFERROR(VLOOKUP(D487,'Species List'!$D$95:$E$102,2,FALSE)*J487,\"\")","v":""},{"$f":"IFERROR(VLOOKUP(D487,'Species List'!$I$10:$J$11,2,FALSE)*J487,\"\")","v":""},{"$f":"IFERROR(VLOOKUP(D487,'Species List'!$I$16:$J$61,2,FALSE)*J487,\"\")","v":""},{"$f":"IFERROR(VLOOKUP(D487,'Species List'!$I$66:$J$66,2,FALSE)*J487,\"\")","v":""},{"$f":"IFERROR(VLOOKUP(D487,'Species List'!$I$71:$J$82,2,FALSE)*J487,\"\")","v":""},0,null,null,null,null,null,null,{"$f":"IFERROR(INDEX('3 - Land Summary'!$B$21:$B$120,(MATCH(AD487,'3 - Land Summary'!$C$21:$C$120,0))),\"\")","v":""}]
[null,{"$f":"IFERROR(INDEX('3 - Land Summary'!$B$21:$B$120,(MATCH('4 - Species Breakdown'!$V488,'3 - Land Summary'!$C$21:$C$120,0))),\"\")","v":""},null,null,{"$f":"IF(OR(COUNTIF('Look Up Data'!$D$149:$D$203,D488),COUNTIF('Look Up Data'!$D$149:$D$203,AE488)),\"YES\",\"NO\")","v":"NO"},null,null,{"$f":"IFERROR(INDEX('3 - Land Summary'!$G$21:$G$120,(MATCH(C488,'3 - Land Summary'!$C$21:$C$120,0))),\"\")","v":""},{"$f":"IFERROR(INDEX('3 - Land Summary'!$I$21:$I$120,(MATCH(C488,'3 - Land Summary'!$C$21:$C$120,0))),\"\")","v":""},"","",null,null,null,{"$f":"IFERROR(VLOOKUP(D488,'Species List'!$D$10:$E$46,2,FALSE)*J488,\"\")","v":""},{"$f":"IFERROR(VLOOKUP(D488,'Species List'!$D$51:$E$89,2,FALSE)*J488,\"\")","v":""},{"$f":"IFERROR(VLOOKUP(D488,'Species List'!$D$95:$E$102,2,FALSE)*J488,\"\")","v":""},{"$f":"IFERROR(VLOOKUP(D488,'Species List'!$I$10:$J$11,2,FALSE)*J488,\"\")","v":""},{"$f":"IFERROR(VLOOKUP(D488,'Species List'!$I$16:$J$61,2,FALSE)*J488,\"\")","v":""},{"$f":"IFERROR(VLOOKUP(D488,'Species List'!$I$66:$J$66,2,FALSE)*J488,\"\")","v":""},{"$f":"IFERROR(VLOOKUP(D488,'Species List'!$I$71:$J$82,2,FALSE)*J488,\"\")","v":""},0,null,null,null,null,null,null,{"$f":"IFERROR(INDEX('3 - Land Summary'!$B$21:$B$120,(MATCH(AD488,'3 - Land Summary'!$C$21:$C$120,0))),\"\")","v":""}]
[null,{"$f":"IFERROR(INDEX('3 - Land Summary'!$B$21:$B$120,(MATCH('4 - Species Breakdown'!$V489,'3 - Land Summary'!$C$21:$C$120,0))),\"\")","v":""},null,null,{"$f":"IF(OR(COUNTIF('Look Up Data'!$D$149:$D$203,D489),COUNTIF('Look Up Data'!$D$149:$D$203,AE489)),\"YES\",\"NO\")","v":"NO"},null,null,{"$f":"IFERROR(INDEX('3 - Land Summary'!$G$21:$G$120,(MATCH(C489,'3 - Land Summary'!$C$21:$C$120,0))),\"\")","v":""},{"$f":"IFERROR(INDEX('3 - Land Summary'!$I$21:$I$120,(MATCH(C489,'3 - Land Summary'!$C$21:$C$120,0))),\"\")","v":""},"","",null,null,null,{"$f":"IFERROR(VLOOKUP(D489,'Species List'!$D$10:$E$46,2,FALSE)*J489,\"\")","v":""},{"$f":"IFERROR(VLOOKUP(D489,'Species List'!$D$51:$E$89,2,FALSE)*J489,\"\")","v":""},{"$f":"IFERROR(VLOOKUP(D489,'Species List'!$D$95:$E$102,2,FALSE)*J489,\"\")","v":""},{"$f":"IFERROR(VLOOKUP(D489,'Species List'!$I$10:$J$11,2,FALSE)*J489,\"\")","v":""},{"$f":"IFERROR(VLOOKUP(D489,'Species List'!$I$16:$J$61,2,FALSE)*J489,\"\")","v":""},{"$f":"IFERROR(VLOOKUP(D489,'Species List'!$I$66:$J$66,2,FALSE)*J489,\"\")","v":""},{"$f":"IFERROR(VLOOKUP(D489,'Species List'!$I$71:$J$82,2,FALSE)*J489,\"\")","v":""},0,null,null,null,null,null,null,{"$f":"IFERROR(INDEX('3 - Land Summary'!$B$21:$B$120,(MATCH(AD489,'3 - Land Summary'!$C$21:$C$120,0))),\"\")","v":""}]
[null,{"$f":"IFERROR(INDEX('3 - Land Summary'!$B$21:$B$120,(MATCH('4 - Species Breakdown'!$V490,'3 - Land Summary'!$C$21:$C$120,0))),\"\")","v":""},null,null,{"$f":"IF(OR(COUNTIF('Look Up Data'!$D$149:$D$203,D490),COUNTIF('Look Up Data'!$D$149:$D$203,AE490)),\"YES\",\"NO\")","v":"NO"},null,null,{"$f":"IFERROR(INDEX('3 - Land Summary'!$G$21:$G$120,(MATCH(C490,'3 - Land Summary'!$C$21:$C$120,0))),\"\")","v":""},{"$f":"IFERROR(INDEX('3 - Land Summary'!$I$21:$I$120,(MATCH(C490,'3 - Land Summary'!$C$21:$C$120,0))),\"\")","v":""},"","",null,null,null,{"$f":"IFERROR(VLOOKUP(D490,'Species List'!$D$10:$E$46,2,FALSE)*J490,\"\")","v":""},{"$f":"IFERROR(VLOOKUP(D490,'Species List'!$D$51:$E$89,2,FALSE)*J490,\"\")","v":""},{"$f":"IFERROR(VLOOKUP(D490,'Species List'!$D$95:$E$102,2,FALSE)*J490,\"\")","v":""},{"$f":"IFERROR(VLOOKUP(D490,'Species List'!$I$10:$J$11,2,FALSE)*J490,\"\")","v":""},{"$f":"IFERROR(VLOOKUP(D490,'Species List'!$I$16:$J$61,2,FALSE)*J490,\"\")","v":""},{"$f":"IFERROR(VLOOKUP(D490,'Species List'!$I$66:$J$66,2,FALSE)*J490,\"\")","v":""},{"$f":"IFERROR(VLOOKUP(D490,'Species List'!$I$71:$J$82,2,FALSE)*J490,\"\")","v":""},0,null,null,null,null,null,null,{"$f":"IFERROR(INDEX('3 - Land Summary'!$B$21:$B$120,(MATCH(AD490,'3 - Land Summary'!$C$21:$C$120,0))),\"\")","v":""}]
[null,{"$f":"IFERROR(INDEX('3 - Land Summary'!$B$21:$B$120,(MATCH('4 - Species Breakdown'!$V491,'3 - Land Summary'!$C$21:$C$120,0))),\"\")","v":""},null,null,{"$f":"IF(OR(COUNTIF('Look Up Data'!$D$149:$D$203,D491),COUNTIF('Look Up Data'!$D$149:$D$203,AE491)),\"YES\",\"NO\")","v":"NO"},null,null,{"$f":"IFERROR(INDEX('3 - Land Summary'!$G$21:$G$120,(MATCH(C491,'3 - Land Summary'!$C$21:$C$120,0))),\"\")","v":""},{"$f":"IFERROR(INDEX('3 - Land Summary'!$I$21:$I$120,(MATCH(C491,'3 - Land Summary'!$C$21:$C$120,0))),\"\")","v":""},"","",null,null,null,{"$f":"IFERROR(VLOOKUP(D491,'Species List'!$D$10:$E$46,2,FALSE)*J491,\"\")","v":""},{"$f":"IFERROR(VLOOKUP(D491,'Species List'!$D$51:$E$89,2,FALSE)*J491,\"\")","v":""},{"$f":"IFERROR(VLOOKUP(D491,'Species List'!$D$95:$E$102,2,FALSE)*J491,\"\")","v":""},{"$f":"IFERROR(VLOOKUP(D491,'Species List'!$I$10:$J$11,2,FALSE)*J491,\"\")","v":""},{"$f":"IFERROR(VLOOKUP(D491,'Species List'!$I$16:$J$61,2,FALSE)*J491,\"\")","v":""},{"$f":"IFERROR(VLOOKUP(D491,'Species List'!$I$66:$J$66,2,FALSE)*J491,\"\")","v":""},{"$f":"IFERROR(VLOOKUP(D491,'Species List'!$I$71:$J$82,2,FALSE)*J491,\"\")","v":""},0,null,null,null,null,null,null,{"$f":"IFERROR(INDEX('3 - Land Summary'!$B$21:$B$120,(MATCH(AD491,'3 - Land Summary'!$C$21:$C$120,0))),\"\")","v":""}]
[null,{"$f":"IFERROR(INDEX('3 - Land Summary'!$B$21:$B$120,(MATCH('4 - Species Breakdown'!$V492,'3 - Land Summary'!$C$21:$C$120,0))),\"\")","v":""},null,null,{"$f":"IF(OR(COUNTIF('Look Up Data'!$D$149:$D$203,D492),COUNTIF('Look Up Data'!$D$149:$D$203,AE492)),\"YES\",\"NO\")","v":"NO"},null,null,{"$f":"IFERROR(INDEX('3 - Land Summary'!$G$21:$G$120,(MATCH(C492,'3 - Land Summary'!$C$21:$C$120,0))),\"\")","v":""},{"$f":"IFERROR(INDEX('3 - Land Summary'!$I$21:$I$120,(MATCH(C492,'3 - Land Summary'!$C$21:$C$120,0))),\"\")","v":""},"","",null,null,null,{"$f":"IFERROR(VLOOKUP(D492,'Species List'!$D$10:$E$46,2,FALSE)*J492,\"\")","v":""},{"$f":"IFERROR(VLOOKUP(D492,'Species List'!$D$51:$E$89,2,FALSE)*J492,\"\")","v":""},{"$f":"IFERROR(VLOOKUP(D492,'Species List'!$D$95:$E$102,2,FALSE)*J492,\"\")","v":""},{"$f":"IFERROR(VLOOKUP(D492,'Species List'!$I$10:$J$11,2,FALSE)*J492,\"\")","v":""},{"$f":"IFERROR(VLOOKUP(D492,'Species List'!$I$16:$J$61,2,FALSE)*J492,\"\")","v":""},{"$f":"IFERROR(VLOOKUP(D492,'Species List'!$I$66:$J$66,2,FALSE)*J492,\"\")","v":""},{"$f":"IFERROR(VLOOKUP(D492,'Species List'!$I$71:$J$82,2,FALSE)*J492,\"\")","v":""},0,null,null,null,null,null,null,{"$f":"IFERROR(INDEX('3 - Land Summary'!$B$21:$B$120,(MATCH(AD492,'3 - Land Summary'!$C$21:$C$120,0))),\"\")","v":""}]
[null,{"$f":"IFERROR(INDEX('3 - Land Summary'!$B$21:$B$120,(MATCH('4 - Species Breakdown'!$V493,'3 - Land Summary'!$C$21:$C$120,0))),\"\")","v":""},null,null,{"$f":"IF(OR(COUNTIF('Look Up Data'!$D$149:$D$203,D493),COUNTIF('Look Up Data'!$D$149:$D$203,AE493)),\"YES\",\"NO\")","v":"NO"},null,null,{"$f":"IFERROR(INDEX('3 - Land Summary'!$G$21:$G$120,(MATCH(C493,'3 - Land Summary'!$C$21:$C$120,0))),\"\")","v":""},{"$f":"IFERROR(INDEX('3 - Land Summary'!$I$21:$I$120,(MATCH(C493,'3 - Land Summary'!$C$21:$C$120,0))),\"\")","v":""},"","",null,null,null,{"$f":"IFERROR(VLOOKUP(D493,'Species List'!$D$10:$E$46,2,FALSE)*J493,\"\")","v":""},{"$f":"IFERROR(VLOOKUP(D493,'Species List'!$D$51:$E$89,2,FALSE)*J493,\"\")","v":""},{"$f":"IFERROR(VLOOKUP(D493,'Species List'!$D$95:$E$102,2,FALSE)*J493,\"\")","v":""},{"$f":"IFERROR(VLOOKUP(D493,'Species List'!$I$10:$J$11,2,FALSE)*J493,\"\")","v":""},{"$f":"IFERROR(VLOOKUP(D493,'Species List'!$I$16:$J$61,2,FALSE)*J493,\"\")","v":""},{"$f":"IFERROR(VLOOKUP(D493,'Species List'!$I$66:$J$66,2,FALSE)*J493,\"\")","v":""},{"$f":"IFERROR(VLOOKUP(D493,'Species List'!$I$71:$J$82,2,FALSE)*J493,\"\")","v":""},0,null,null,null,null,null,null,{"$f":"IFERROR(INDEX('3 - Land Summary'!$B$21:$B$120,(MATCH(AD493,'3 - Land Summary'!$C$21:$C$120,0))),\"\")","v":""}]
[null,{"$f":"IFERROR(INDEX('3 - Land Summary'!$B$21:$B$120,(MATCH('4 - Species Breakdown'!$V494,'3 - Land Summary'!$C$21:$C$120,0))),\"\")","v":""},null,null,{"$f":"IF(OR(COUNTIF('Look Up Data'!$D$149:$D$203,D494),COUNTIF('Look Up Data'!$D$149:$D$203,AE494)),\"YES\",\"NO\")","v":"NO"},null,null,{"$f":"IFERROR(INDEX('3 - Land Summary'!$G$21:$G$120,(MATCH(C494,'3 - Land Summary'!$C$21:$C$120,0))),\"\")","v":""},{"$f":"IFERROR(INDEX('3 - Land Summary'!$I$21:$I$120,(MATCH(C494,'3 - Land Summary'!$C$21:$C$120,0))),\"\")","v":""},"","",null,null,null,{"$f":"IFERROR(VLOOKUP(D494,'Species List'!$D$10:$E$46,2,FALSE)*J494,\"\")","v":""},{"$f":"IFERROR(VLOOKUP(D494,'Species List'!$D$51:$E$89,2,FALSE)*J494,\"\")","v":""},{"$f":"IFERROR(VLOOKUP(D494,'Species List'!$D$95:$E$102,2,FALSE)*J494,\"\")","v":""},{"$f":"IFERROR(VLOOKUP(D494,'Species List'!$I$10:$J$11,2,FALSE)*J494,\"\")","v":""},{"$f":"IFERROR(VLOOKUP(D494,'Species List'!$I$16:$J$61,2,FALSE)*J494,\"\")","v":""},{"$f":"IFERROR(VLOOKUP(D494,'Species List'!$I$66:$J$66,2,FALSE)*J494,\"\")","v":""},{"$f":"IFERROR(VLOOKUP(D494,'Species List'!$I$71:$J$82,2,FALSE)*J494,\"\")","v":""},0,null,null,null,null,null,null,{"$f":"IFERROR(INDEX('3 - Land Summary'!$B$21:$B$120,(MATCH(AD494,'3 - Land Summary'!$C$21:$C$120,0))),\"\")","v":""}]
[null,{"$f":"IFERROR(INDEX('3 - Land Summary'!$B$21:$B$120,(MATCH('4 - Species Breakdown'!$V495,'3 - Land Summary'!$C$21:$C$120,0))),\"\")","v":""},null,null,{"$f":"IF(OR(COUNTIF('Look Up Data'!$D$149:$D$203,D495),COUNTIF('Look Up Data'!$D$149:$D$203,AE495)),\"YES\",\"NO\")","v":"NO"},null,null,{"$f":"IFERROR(INDEX('3 - Land Summary'!$G$21:$G$120,(MATCH(C495,'3 - Land Summary'!$C$21:$C$120,0))),\"\")","v":""},{"$f":"IFERROR(INDEX('3 - Land Summary'!$I$21:$I$120,(MATCH(C495,'3 - Land Summary'!$C$21:$C$120,0))),\"\")","v":""},"","",null,null,null,{"$f":"IFERROR(VLOOKUP(D495,'Species List'!$D$10:$E$46,2,FALSE)*J495,\"\")","v":""},{"$f":"IFERROR(VLOOKUP(D495,'Species List'!$D$51:$E$89,2,FALSE)*J495,\"\")","v":""},{"$f":"IFERROR(VLOOKUP(D495,'Species List'!$D$95:$E$102,2,FALSE)*J495,\"\")","v":""},{"$f":"IFERROR(VLOOKUP(D495,'Species List'!$I$10:$J$11,2,FALSE)*J495,\"\")","v":""},{"$f":"IFERROR(VLOOKUP(D495,'Species List'!$I$16:$J$61,2,FALSE)*J495,\"\")","v":""},{"$f":"IFERROR(VLOOKUP(D495,'Species List'!$I$66:$J$66,2,FALSE)*J495,\"\")","v":""},{"$f":"IFERROR(VLOOKUP(D495,'Species List'!$I$71:$J$82,2,FALSE)*J495,\"\")","v":""},0,null,null,null,null,null,null,{"$f":"IFERROR(INDEX('3 - Land Summary'!$B$21:$B$120,(MATCH(AD495,'3 - Land Summary'!$C$21:$C$120,0))),\"\")","v":""}]
[null,{"$f":"IFERROR(INDEX('3 - Land Summary'!$B$21:$B$120,(MATCH('4 - Species Breakdown'!$V496,'3 - Land Summary'!$C$21:$C$120,0))),\"\")","v":""},null,null,{"$f":"IF(OR(COUNTIF('Look Up Data'!$D$149:$D$203,D496),COUNTIF('Look Up Data'!$D$149:$D$203,AE496)),\"YES\",\"NO\")","v":"NO"},null,null,{"$f":"IFERROR(INDEX('3 - Land Summary'!$G$21:$G$120,(MATCH(C496,'3 - Land Summary'!$C$21:$C$120,0))),\"\")","v":""},{"$f":"IFERROR(INDEX('3 - Land Summary'!$I$21:$I$120,(MATCH(C496,'3 - Land Summary'!$C$21:$C$120,0))),\"\")","v":""},"","",null,null,null,{"$f":"IFERROR(VLOOKUP(D496,'Species List'!$D$10:$E$46,2,FALSE)*J496,\"\")","v":""},{"$f":"IFERROR(VLOOKUP(D496,'Species List'!$D$51:$E$89,2,FALSE)*J496,\"\")","v":""},{"$f":"IFERROR(VLOOKUP(D496,'Species List'!$D$95:$E$102,2,FALSE)*J496,\"\")","v":""},{"$f":"IFERROR(VLOOKUP(D496,'Species List'!$I$10:$J$11,2,FALSE)*J496,\"\")","v":""},{"$f":"IFERROR(VLOOKUP(D496,'Species List'!$I$16:$J$61,2,FALSE)*J496,\"\")","v":""},{"$f":"IFERROR(VLOOKUP(D496,'Species List'!$I$66:$J$66,2,FALSE)*J496,\"\")","v":""},{"$f":"IFERROR(VLOOKUP(D496,'Species List'!$I$71:$J$82,2,FALSE)*J496,\"\")","v":""},0,null,null,null,null,null,null,{"$f":"IFERROR(INDEX('3 - Land Summary'!$B$21:$B$120,(MATCH(AD496,'3 - Land Summary'!$C$21:$C$120,0))),\"\")","v":""}]
[null,{"$f":"IFERROR(INDEX('3 - Land Summary'!$B$21:$B$120,(MATCH('4 - Species Breakdown'!$V497,'3 - Land Summary'!$C$21:$C$120,0))),\"\")","v":""},null,null,{"$f":"IF(OR(COUNTIF('Look Up Data'!$D$149:$D$203,D497),COUNTIF('Look Up Data'!$D$149:$D$203,AE497)),\"YES\",\"NO\")","v":"NO"},null,null,{"$f":"IFERROR(INDEX('3 - Land Summary'!$G$21:$G$120,(MATCH(C497,'3 - Land Summary'!$C$21:$C$120,0))),\"\")","v":""},{"$f":"IFERROR(INDEX('3 - Land Summary'!$I$21:$I$120,(MATCH(C497,'3 - Land Summary'!$C$21:$C$120,0))),\"\")","v":""},"","",null,null,null,{"$f":"IFERROR(VLOOKUP(D497,'Species List'!$D$10:$E$46,2,FALSE)*J497,\"\")","v":""},{"$f":"IFERROR(VLOOKUP(D497,'Species List'!$D$51:$E$89,2,FALSE)*J497,\"\")","v":""},{"$f":"IFERROR(VLOOKUP(D497,'Species List'!$D$95:$E$102,2,FALSE)*J497,\"\")","v":""},{"$f":"IFERROR(VLOOKUP(D497,'Species List'!$I$10:$J$11,2,FALSE)*J497,\"\")","v":""},{"$f":"IFERROR(VLOOKUP(D497,'Species List'!$I$16:$J$61,2,FALSE)*J497,\"\")","v":""},{"$f":"IFERROR(VLOOKUP(D497,'Species List'!$I$66:$J$66,2,FALSE)*J497,\"\")","v":""},{"$f":"IFERROR(VLOOKUP(D497,'Species List'!$I$71:$J$82,2,FALSE)*J497,\"\")","v":""},0,null,null,null,null,null,null,{"$f":"IFERROR(INDEX('3 - Land Summary'!$B$21:$B$120,(MATCH(AD497,'3 - Land Summary'!$C$21:$C$120,0))),\"\")","v":""}]
[null,{"$f":"IFERROR(INDEX('3 - Land Summary'!$B$21:$B$120,(MATCH('4 - Species Breakdown'!$V498,'3 - Land Summary'!$C$21:$C$120,0))),\"\")","v":""},null,null,{"$f":"IF(OR(COUNTIF('Look Up Data'!$D$149:$D$203,D498),COUNTIF('Look Up Data'!$D$149:$D$203,AE498)),\"YES\",\"NO\")","v":"NO"},null,null,{"$f":"IFERROR(INDEX('3 - Land Summary'!$G$21:$G$120,(MATCH(C498,'3 - Land Summary'!$C$21:$C$120,0))),\"\")","v":""},{"$f":"IFERROR(INDEX('3 - Land Summary'!$I$21:$I$120,(MATCH(C498,'3 - Land Summary'!$C$21:$C$120,0))),\"\")","v":""},"","",null,null,null,{"$f":"IFERROR(VLOOKUP(D498,'Species List'!$D$10:$E$46,2,FALSE)*J498,\"\")","v":""},{"$f":"IFERROR(VLOOKUP(D498,'Species List'!$D$51:$E$89,2,FALSE)*J498,\"\")","v":""},{"$f":"IFERROR(VLOOKUP(D498,'Species List'!$D$95:$E$102,2,FALSE)*J498,\"\")","v":""},{"$f":"IFERROR(VLOOKUP(D498,'Species List'!$I$10:$J$11,2,FALSE)*J498,\"\")","v":""},{"$f":"IFERROR(VLOOKUP(D498,'Species List'!$I$16:$J$61,2,FALSE)*J498,\"\")","v":""},{"$f":"IFERROR(VLOOKUP(D498,'Species List'!$I$66:$J$66,2,FALSE)*J498,\"\")","v":""},{"$f":"IFERROR(VLOOKUP(D498,'Species List'!$I$71:$J$82,2,FALSE)*J498,\"\")","v":""},0,null,null,null,null,null,null,{"$f":"IFERROR(INDEX('3 - Land Summary'!$B$21:$B$120,(MATCH(AD498,'3 - Land Summary'!$C$21:$C$120,0))),\"\")","v":""}]
[null,{"$f":"IFERROR(INDEX('3 - Land Summary'!$B$21:$B$120,(MATCH('4 - Species Breakdown'!$V499,'3 - Land Summary'!$C$21:$C$120,0))),\"\")","v":""},null,null,{"$f":"IF(OR(COUNTIF('Look Up Data'!$D$149:$D$203,D499),COUNTIF('Look Up Data'!$D$149:$D$203,AE499)),\"YES\",\"NO\")","v":"NO"},null,null,{"$f":"IFERROR(INDEX('3 - Land Summary'!$G$21:$G$120,(MATCH(C499,'3 - Land Summary'!$C$21:$C$120,0))),\"\")","v":""},{"$f":"IFERROR(INDEX('3 - Land Summary'!$I$21:$I$120,(MATCH(C499,'3 - Land Summary'!$C$21:$C$120,0))),\"\")","v":""},"","",null,null,null,{"$f":"IFERROR(VLOOKUP(D499,'Species List'!$D$10:$E$46,2,FALSE)*J499,\"\")","v":""},{"$f":"IFERROR(VLOOKUP(D499,'Species List'!$D$51:$E$89,2,FALSE)*J499,\"\")","v":""},{"$f":"IFERROR(VLOOKUP(D499,'Species List'!$D$95:$E$102,2,FALSE)*J499,\"\")","v":""},{"$f":"IFERROR(VLOOKUP(D499,'Species List'!$I$10:$J$11,2,FALSE)*J499,\"\")","v":""},{"$f":"IFERROR(VLOOKUP(D499,'Species List'!$I$16:$J$61,2,FALSE)*J499,\"\")","v":""},{"$f":"IFERROR(VLOOKUP(D499,'Species List'!$I$66:$J$66,2,FALSE)*J499,\"\")","v":""},{"$f":"IFERROR(VLOOKUP(D499,'Species List'!$I$71:$J$82,2,FALSE)*J499,\"\")","v":""},0,null,null,null,null,null,null,{"$f":"IFERROR(INDEX('3 - Land Summary'!$B$21:$B$120,(MATCH(AD499,'3 - Land Summary'!$C$21:$C$120,0))),\"\")","v":""}]
[null,{"$f":"IFERROR(INDEX('3 - Land Summary'!$B$21:$B$120,(MATCH('4 - Species Breakdown'!$V500,'3 - Land Summary'!$C$21:$C$120,0))),\"\")","v":""},null,null,{"$f":"IF(OR(COUNTIF('Look Up Data'!$D$149:$D$203,D500),COUNTIF('Look Up Data'!$D$149:$D$203,AE500)),\"YES\",\"NO\")","v":"NO"},null,null,{"$f":"IFERROR(INDEX('3 - Land Summary'!$G$21:$G$120,(MATCH(C500,'3 - Land Summary'!$C$21:$C$120,0))),\"\")","v":""},{"$f":"IFERROR(INDEX('3 - Land Summary'!$I$21:$I$120,(MATCH(C500,'3 - Land Summary'!$C$21:$C$120,0))),\"\")","v":""},"","",null,null,null,{"$f":"IFERROR(VLOOKUP(D500,'Species List'!$D$10:$E$46,2,FALSE)*J500,\"\")","v":""},{"$f":"IFERROR(VLOOKUP(D500,'Species List'!$D$51:$E$89,2,FALSE)*J500,\"\")","v":""},{"$f":"IFERROR(VLOOKUP(D500,'Species List'!$D$95:$E$102,2,FALSE)*J500,\"\")","v":""},{"$f":"IFERROR(VLOOKUP(D500,'Species List'!$I$10:$J$11,2,FALSE)*J500,\"\")","v":""},{"$f":"IFERROR(VLOOKUP(D500,'Species List'!$I$16:$J$61,2,FALSE)*J500,\"\")","v":""},{"$f":"IFERROR(VLOOKUP(D500,'Species List'!$I$66:$J$66,2,FALSE)*J500,\"\")","v":""},{"$f":"IFERROR(VLOOKUP(D500,'Species List'!$I$71:$J$82,2,FALSE)*J500,\"\")","v":""},0,null,null,null,null,null,null,{"$f":"IFERROR(INDEX('3 - Land Summary'!$B$21:$B$120,(MATCH(AD500,'3 - Land Summary'!$C$21:$C$120,0))),\"\")","v":""}]
[null,{"$f":"IFERROR(INDEX('3 - Land Summary'!$B$21:$B$120,(MATCH('4 - Species Breakdown'!$V501,'3 - Land Summary'!$C$21:$C$120,0))),\"\")","v":""},null,null,{"$f":"IF(OR(COUNTIF('Look Up Data'!$D$149:$D$203,D501),COUNTIF('Look Up Data'!$D$149:$D$203,AE501)),\"YES\",\"NO\")","v":"NO"},null,null,{"$f":"IFERROR(INDEX('3 - Land Summary'!$G$21:$G$120,(MATCH(C501,'3 - Land Summary'!$C$21:$C$120,0))),\"\")","v":""},{"$f":"IFERROR(INDEX('3 - Land Summary'!$I$21:$I$120,(MATCH(C501,'3 - Land Summary'!$C$21:$C$120,0))),\"\")","v":""},"","",null,null,null,{"$f":"IFERROR(VLOOKUP(D501,'Species List'!$D$10:$E$46,2,FALSE)*J501,\"\")","v":""},{"$f":"IFERROR(VLOOKUP(D501,'Species List'!$D$51:$E$89,2,FALSE)*J501,\"\")","v":""},{"$f":"IFERROR(VLOOKUP(D501,'Species List'!$D$95:$E$102,2,FALSE)*J501,\"\")","v":""},{"$f":"IFERROR(VLOOKUP(D501,'Species List'!$I$10:$J$11,2,FALSE)*J501,\"\")","v":""},{"$f":"IFERROR(VLOOKUP(D501,'Species List'!$I$16:$J$61,2,FALSE)*J501,\"\")","v":""},{"$f":"IFERROR(VLOOKUP(D501,'Species List'!$I$66:$J$66,2,FALSE)*J501,\"\")","v":""},{"$f":"IFERROR(VLOOKUP(D501,'Species List'!$I$71:$J$82,2,FALSE)*J501,\"\")","v":""},0,null,null,null,null,null,null,{"$f":"IFERROR(INDEX('3 - Land Summary'!$B$21:$B$120,(MATCH(AD501,'3 - Land Summary'!$C$21:$C$120,0))),\"\")","v":""}]
[null,{"$f":"IFERROR(INDEX('3 - Land Summary'!$B$21:$B$120,(MATCH('4 - Species Breakdown'!$V502,'3 - Land Summary'!$C$21:$C$120,0))),\"\")","v":""},null,null,{"$f":"IF(OR(COUNTIF('Look Up Data'!$D$149:$D$203,D502),COUNTIF('Look Up Data'!$D$149:$D$203,AE502)),\"YES\",\"NO\")","v":"NO"},null,null,{"$f":"IFERROR(INDEX('3 - Land Summary'!$G$21:$G$120,(MATCH(C502,'3 - Land Summary'!$C$21:$C$120,0))),\"\")","v":""},{"$f":"IFERROR(INDEX('3 - Land Summary'!$I$21:$I$120,(MATCH(C502,'3 - Land Summary'!$C$21:$C$120,0))),\"\")","v":""},"","",null,null,null,{"$f":"IFERROR(VLOOKUP(D502,'Species List'!$D$10:$E$46,2,FALSE)*J502,\"\")","v":""},{"$f":"IFERROR(VLOOKUP(D502,'Species List'!$D$51:$E$89,2,FALSE)*J502,\"\")","v":""},{"$f":"IFERROR(VLOOKUP(D502,'Species List'!$D$95:$E$102,2,FALSE)*J502,\"\")","v":""},{"$f":"IFERROR(VLOOKUP(D502,'Species List'!$I$10:$J$11,2,FALSE)*J502,\"\")","v":""},{"$f":"IFERROR(VLOOKUP(D502,'Species List'!$I$16:$J$61,2,FALSE)*J502,\"\")","v":""},{"$f":"IFERROR(VLOOKUP(D502,'Species List'!$I$66:$J$66,2,FALSE)*J502,\"\")","v":""},{"$f":"IFERROR(VLOOKUP(D502,'Species List'!$I$71:$J$82,2,FALSE)*J502,\"\")","v":""},0,null,null,null,null,null,null,{"$f":"IFERROR(INDEX('3 - Land Summary'!$B$21:$B$120,(MATCH(AD502,'3 - Land Summary'!$C$21:$C$120,0))),\"\")","v":""}]
[null,{"$f":"IFERROR(INDEX('3 - Land Summary'!$B$21:$B$120,(MATCH('4 - Species Breakdown'!$V503,'3 - Land Summary'!$C$21:$C$120,0))),\"\")","v":""},null,null,{"$f":"IF(OR(COUNTIF('Look Up Data'!$D$149:$D$203,D503),COUNTIF('Look Up Data'!$D$149:$D$203,AE503)),\"YES\",\"NO\")","v":"NO"},null,null,{"$f":"IFERROR(INDEX('3 - Land Summary'!$G$21:$G$120,(MATCH(C503,'3 - Land Summary'!$C$21:$C$120,0))),\"\")","v":""},{"$f":"IFERROR(INDEX('3 - Land Summary'!$I$21:$I$120,(MATCH(C503,'3 - Land Summary'!$C$21:$C$120,0))),\"\")","v":""},"","",null,null,null,{"$f":"IFERROR(VLOOKUP(D503,'Species List'!$D$10:$E$46,2,FALSE)*J503,\"\")","v":""},{"$f":"IFERROR(VLOOKUP(D503,'Species List'!$D$51:$E$89,2,FALSE)*J503,\"\")","v":""},{"$f":"IFERROR(VLOOKUP(D503,'Species List'!$D$95:$E$102,2,FALSE)*J503,\"\")","v":""},{"$f":"IFERROR(VLOOKUP(D503,'Species List'!$I$10:$J$11,2,FALSE)*J503,\"\")","v":""},{"$f":"IFERROR(VLOOKUP(D503,'Species List'!$I$16:$J$61,2,FALSE)*J503,\"\")","v":""},{"$f":"IFERROR(VLOOKUP(D503,'Species List'!$I$66:$J$66,2,FALSE)*J503,\"\")","v":""},{"$f":"IFERROR(VLOOKUP(D503,'Species List'!$I$71:$J$82,2,FALSE)*J503,\"\")","v":""},0,null,null,null,null,null,null,{"$f":"IFERROR(INDEX('3 - Land Summary'!$B$21:$B$120,(MATCH(AD503,'3 - Land Summary'!$C$21:$C$120,0))),\"\")","v":""}]
[null,{"$f":"IFERROR(INDEX('3 - Land Summary'!$B$21:$B$120,(MATCH('4 - Species Breakdown'!$V504,'3 - Land Summary'!$C$21:$C$120,0))),\"\")","v":""},null,null,{"$f":"IF(OR(COUNTIF('Look Up Data'!$D$149:$D$203,D504),COUNTIF('Look Up Data'!$D$149:$D$203,AE504)),\"YES\",\"NO\")","v":"NO"},null,null,{"$f":"IFERROR(INDEX('3 - Land Summary'!$G$21:$G$120,(MATCH(C504,'3 - Land Summary'!$C$21:$C$120,0))),\"\")","v":""},{"$f":"IFERROR(INDEX('3 - Land Summary'!$I$21:$I$120,(MATCH(C504,'3 - Land Summary'!$C$21:$C$120,0))),\"\")","v":""},"","",null,null,null,{"$f":"IFERROR(VLOOKUP(D504,'Species List'!$D$10:$E$46,2,FALSE)*J504,\"\")","v":""},{"$f":"IFERROR(VLOOKUP(D504,'Species List'!$D$51:$E$89,2,FALSE)*J504,\"\")","v":""},{"$f":"IFERROR(VLOOKUP(D504,'Species List'!$D$95:$E$102,2,FALSE)*J504,\"\")","v":""},{"$f":"IFERROR(VLOOKUP(D504,'Species List'!$I$10:$J$11,2,FALSE)*J504,\"\")","v":""},{"$f":"IFERROR(VLOOKUP(D504,'Species List'!$I$16:$J$61,2,FALSE)*J504,\"\")","v":""},{"$f":"IFERROR(VLOOKUP(D504,'Species List'!$I$66:$J$66,2,FALSE)*J504,\"\")","v":""},{"$f":"IFERROR(VLOOKUP(D504,'Species List'!$I$71:$J$82,2,FALSE)*J504,\"\")","v":""},0,null,null,null,null,null,null,{"$f":"IFERROR(INDEX('3 - Land Summary'!$B$21:$B$120,(MATCH(AD504,'3 - Land Summary'!$C$21:$C$120,0))),\"\")","v":""}]
[null,{"$f":"IFERROR(INDEX('3 - Land Summary'!$B$21:$B$120,(MATCH('4 - Species Breakdown'!$V505,'3 - Land Summary'!$C$21:$C$120,0))),\"\")","v":""},null,null,{"$f":"IF(OR(COUNTIF('Look Up Data'!$D$149:$D$203,D505),COUNTIF('Look Up Data'!$D$149:$D$203,AE505)),\"YES\",\"NO\")","v":"NO"},null,null,{"$f":"IFERROR(INDEX('3 - Land Summary'!$G$21:$G$120,(MATCH(C505,'3 - Land Summary'!$C$21:$C$120,0))),\"\")","v":""},{"$f":"IFERROR(INDEX('3 - Land Summary'!$I$21:$I$120,(MATCH(C505,'3 - Land Summary'!$C$21:$C$120,0))),\"\")","v":""},"","",null,null,null,{"$f":"IFERROR(VLOOKUP(D505,'Species List'!$D$10:$E$46,2,FALSE)*J505,\"\")","v":""},{"$f":"IFERROR(VLOOKUP(D505,'Species List'!$D$51:$E$89,2,FALSE)*J505,\"\")","v":""},{"$f":"IFERROR(VLOOKUP(D505,'Species List'!$D$95:$E$102,2,FALSE)*J505,\"\")","v":""},{"$f":"IFERROR(VLOOKUP(D505,'Species List'!$I$10:$J$11,2,FALSE)*J505,\"\")","v":""},{"$f":"IFERROR(VLOOKUP(D505,'Species List'!$I$16:$J$61,2,FALSE)*J505,\"\")","v":""},{"$f":"IFERROR(VLOOKUP(D505,'Species List'!$I$66:$J$66,2,FALSE)*J505,\"\")","v":""},{"$f":"IFERROR(VLOOKUP(D505,'Species List'!$I$71:$J$82,2,FALSE)*J505,\"\")","v":""},0,null,null,null,null,null,null,{"$f":"IFERROR(INDEX('3 - Land Summary'!$B$21:$B$120,(MATCH(AD505,'3 - Land Summary'!$C$21:$C$120,0))),\"\")","v":""}]
[null,{"$f":"IFERROR(INDEX('3 - Land Summary'!$B$21:$B$120,(MATCH('4 - Species Breakdown'!$V506,'3 - Land Summary'!$C$21:$C$120,0))),\"\")","v":""},null,null,{"$f":"IF(OR(COUNTIF('Look Up Data'!$D$149:$D$203,D506),COUNTIF('Look Up Data'!$D$149:$D$203,AE506)),\"YES\",\"NO\")","v":"NO"},null,null,{"$f":"IFERROR(INDEX('3 - Land Summary'!$G$21:$G$120,(MATCH(C506,'3 - Land Summary'!$C$21:$C$120,0))),\"\")","v":""},{"$f":"IFERROR(INDEX('3 - Land Summary'!$I$21:$I$120,(MATCH(C506,'3 - Land Summary'!$C$21:$C$120,0))),\"\")","v":""},"","",null,null,null,{"$f":"IFERROR(VLOOKUP(D506,'Species List'!$D$10:$E$46,2,FALSE)*J506,\"\")","v":""},{"$f":"IFERROR(VLOOKUP(D506,'Species List'!$D$51:$E$89,2,FALSE)*J506,\"\")","v":""},{"$f":"IFERROR(VLOOKUP(D506,'Species List'!$D$95:$E$102,2,FALSE)*J506,\"\")","v":""},{"$f":"IFERROR(VLOOKUP(D506,'Species List'!$I$10:$J$11,2,FALSE)*J506,\"\")","v":""},{"$f":"IFERROR(VLOOKUP(D506,'Species List'!$I$16:$J$61,2,FALSE)*J506,\"\")","v":""},{"$f":"IFERROR(VLOOKUP(D506,'Species List'!$I$66:$J$66,2,FALSE)*J506,\"\")","v":""},{"$f":"IFERROR(VLOOKUP(D506,'Species List'!$I$71:$J$82,2,FALSE)*J506,\"\")","v":""},0,null,null,null,null,null,null,{"$f":"IFERROR(INDEX('3 - Land Summary'!$B$21:$B$120,(MATCH(AD506,'3 - Land Summary'!$C$21:$C$120,0))),\"\")","v":""}]
[null,{"$f":"IFERROR(INDEX('3 - Land Summary'!$B$21:$B$120,(MATCH('4 - Species Breakdown'!$V507,'3 - Land Summary'!$C$21:$C$120,0))),\"\")","v":""},null,null,{"$f":"IF(OR(COUNTIF('Look Up Data'!$D$149:$D$203,D507),COUNTIF('Look Up Data'!$D$149:$D$203,AE507)),\"YES\",\"NO\")","v":"NO"},null,null,{"$f":"IFERROR(INDEX('3 - Land Summary'!$G$21:$G$120,(MATCH(C507,'3 - Land Summary'!$C$21:$C$120,0))),\"\")","v":""},{"$f":"IFERROR(INDEX('3 - Land Summary'!$I$21:$I$120,(MATCH(C507,'3 - Land Summary'!$C$21:$C$120,0))),\"\")","v":""},"","",null,null,null,{"$f":"IFERROR(VLOOKUP(D507,'Species List'!$D$10:$E$46,2,FALSE)*J507,\"\")","v":""},{"$f":"IFERROR(VLOOKUP(D507,'Species List'!$D$51:$E$89,2,FALSE)*J507,\"\")","v":""},{"$f":"IFERROR(VLOOKUP(D507,'Species List'!$D$95:$E$102,2,FALSE)*J507,\"\")","v":""},{"$f":"IFERROR(VLOOKUP(D507,'Species List'!$I$10:$J$11,2,FALSE)*J507,\"\")","v":""},{"$f":"IFERROR(VLOOKUP(D507,'Species List'!$I$16:$J$61,2,FALSE)*J507,\"\")","v":""},{"$f":"IFERROR(VLOOKUP(D507,'Species List'!$I$66:$J$66,2,FALSE)*J507,\"\")","v":""},{"$f":"IFERROR(VLOOKUP(D507,'Species List'!$I$71:$J$82,2,FALSE)*J507,\"\")","v":""},0,null,null,null,null,null,null,{"$f":"IFERROR(INDEX('3 - Land Summary'!$B$21:$B$120,(MATCH(AD507,'3 - Land Summary'!$C$21:$C$120,0))),\"\")","v":""}]
[null,{"$f":"IFERROR(INDEX('3 - Land Summary'!$B$21:$B$120,(MATCH('4 - Species Breakdown'!$V508,'3 - Land Summary'!$C$21:$C$120,0))),\"\")","v":""},null,null,{"$f":"IF(OR(COUNTIF('Look Up Data'!$D$149:$D$203,D508),COUNTIF('Look Up Data'!$D$149:$D$203,AE508)),\"YES\",\"NO\")","v":"NO"},null,null,{"$f":"IFERROR(INDEX('3 - Land Summary'!$G$21:$G$120,(MATCH(C508,'3 - Land Summary'!$C$21:$C$120,0))),\"\")","v":""},{"$f":"IFERROR(INDEX('3 - Land Summary'!$I$21:$I$120,(MATCH(C508,'3 - Land Summary'!$C$21:$C$120,0))),\"\")","v":""},"","",null,null,null,{"$f":"IFERROR(VLOOKUP(D508,'Species List'!$D$10:$E$46,2,FALSE)*J508,\"\")","v":""},{"$f":"IFERROR(VLOOKUP(D508,'Species List'!$D$51:$E$89,2,FALSE)*J508,\"\")","v":""},{"$f":"IFERROR(VLOOKUP(D508,'Species List'!$D$95:$E$102,2,FALSE)*J508,\"\")","v":""},{"$f":"IFERROR(VLOOKUP(D508,'Species List'!$I$10:$J$11,2,FALSE)*J508,\"\")","v":""},{"$f":"IFERROR(VLOOKUP(D508,'Species List'!$I$16:$J$61,2,FALSE)*J508,\"\")","v":""},{"$f":"IFERROR(VLOOKUP(D508,'Species List'!$I$66:$J$66,2,FALSE)*J508,\"\")","v":""},{"$f":"IFERROR(VLOOKUP(D508,'Species List'!$I$71:$J$82,2,FALSE)*J508,\"\")","v":""},0,null,null,null,null,null,null,{"$f":"IFERROR(INDEX('3 - Land Summary'!$B$21:$B$120,(MATCH(AD508,'3 - Land Summary'!$C$21:$C$120,0))),\"\")","v":""}]
[null,{"$f":"IFERROR(INDEX('3 - Land Summary'!$B$21:$B$120,(MATCH('4 - Species Breakdown'!$V509,'3 - Land Summary'!$C$21:$C$120,0))),\"\")","v":""},null,null,{"$f":"IF(OR(COUNTIF('Look Up Data'!$D$149:$D$203,D509),COUNTIF('Look Up Data'!$D$149:$D$203,AE509)),\"YES\",\"NO\")","v":"NO"},null,null,{"$f":"IFERROR(INDEX('3 - Land Summary'!$G$21:$G$120,(MATCH(C509,'3 - Land Summary'!$C$21:$C$120,0))),\"\")","v":""},{"$f":"IFERROR(INDEX('3 - Land Summary'!$I$21:$I$120,(MATCH(C509,'3 - Land Summary'!$C$21:$C$120,0))),\"\")","v":""},"","",null,null,null,{"$f":"IFERROR(VLOOKUP(D509,'Species List'!$D$10:$E$46,2,FALSE)*J509,\"\")","v":""},{"$f":"IFERROR(VLOOKUP(D509,'Species List'!$D$51:$E$89,2,FALSE)*J509,\"\")","v":""},{"$f":"IFERROR(VLOOKUP(D509,'Species List'!$D$95:$E$102,2,FALSE)*J509,\"\")","v":""},{"$f":"IFERROR(VLOOKUP(D509,'Species List'!$I$10:$J$11,2,FALSE)*J509,\"\")","v":""},{"$f":"IFERROR(VLOOKUP(D509,'Species List'!$I$16:$J$61,2,FALSE)*J509,\"\")","v":""},{"$f":"IFERROR(VLOOKUP(D509,'Species List'!$I$66:$J$66,2,FALSE)*J509,\"\")","v":""},{"$f":"IFERROR(VLOOKUP(D509,'Species List'!$I$71:$J$82,2,FALSE)*J509,\"\")","v":""},0,null,null,null,null,null,null,{"$f":"IFERROR(INDEX('3 - Land Summary'!$B$21:$B$120,(MATCH(AD509,'3 - Land Summary'!$C$21:$C$120,0))),\"\")","v":""}]
[null,{"$f":"IFERROR(INDEX('3 - Land Summary'!$B$21:$B$120,(MATCH('4 - Species Breakdown'!$V510,'3 - Land Summary'!$C$21:$C$120,0))),\"\")","v":""},null,null,{"$f":"IF(OR(COUNTIF('Look Up Data'!$D$149:$D$203,D510),COUNTIF('Look Up Data'!$D$149:$D$203,AE510)),\"YES\",\"NO\")","v":"NO"},null,null,{"$f":"IFERROR(INDEX('3 - Land Summary'!$G$21:$G$120,(MATCH(C510,'3 - Land Summary'!$C$21:$C$120,0))),\"\")","v":""},{"$f":"IFERROR(INDEX('3 - Land Summary'!$I$21:$I$120,(MATCH(C510,'3 - Land Summary'!$C$21:$C$120,0))),\"\")","v":""},"","",null,null,null,{"$f":"IFERROR(VLOOKUP(D510,'Species List'!$D$10:$E$46,2,FALSE)*J510,\"\")","v":""},{"$f":"IFERROR(VLOOKUP(D510,'Species List'!$D$51:$E$89,2,FALSE)*J510,\"\")","v":""},{"$f":"IFERROR(VLOOKUP(D510,'Species List'!$D$95:$E$102,2,FALSE)*J510,\"\")","v":""},{"$f":"IFERROR(VLOOKUP(D510,'Species List'!$I$10:$J$11,2,FALSE)*J510,\"\")","v":""},{"$f":"IFERROR(VLOOKUP(D510,'Species List'!$I$16:$J$61,2,FALSE)*J510,\"\")","v":""},{"$f":"IFERROR(VLOOKUP(D510,'Species List'!$I$66:$J$66,2,FALSE)*J510,\"\")","v":""},{"$f":"IFERROR(VLOOKUP(D510,'Species List'!$I$71:$J$82,2,FALSE)*J510,\"\")","v":""},0,null,null,null,null,null,null,{"$f":"IFERROR(INDEX('3 - Land Summary'!$B$21:$B$120,(MATCH(AD510,'3 - Land Summary'!$C$21:$C$120,0))),\"\")","v":""}]
[null,{"$f":"IFERROR(INDEX('3 - Land Summary'!$B$21:$B$120,(MATCH('4 - Species Breakdown'!$V511,'3 - Land Summary'!$C$21:$C$120,0))),\"\")","v":""},null,null,{"$f":"IF(OR(COUNTIF('Look Up Data'!$D$149:$D$203,D511),COUNTIF('Look Up Data'!$D$149:$D$203,AE511)),\"YES\",\"NO\")","v":"NO"},null,null,{"$f":"IFERROR(INDEX('3 - Land Summary'!$G$21:$G$120,(MATCH(C511,'3 - Land Summary'!$C$21:$C$120,0))),\"\")","v":""},{"$f":"IFERROR(INDEX('3 - Land Summary'!$I$21:$I$120,(MATCH(C511,'3 - Land Summary'!$C$21:$C$120,0))),\"\")","v":""},"","",null,null,null,{"$f":"IFERROR(VLOOKUP(D511,'Species List'!$D$10:$E$46,2,FALSE)*J511,\"\")","v":""},{"$f":"IFERROR(VLOOKUP(D511,'Species List'!$D$51:$E$89,2,FALSE)*J511,\"\")","v":""},{"$f":"IFERROR(VLOOKUP(D511,'Species List'!$D$95:$E$102,2,FALSE)*J511,\"\")","v":""},{"$f":"IFERROR(VLOOKUP(D511,'Species List'!$I$10:$J$11,2,FALSE)*J511,\"\")","v":""},{"$f":"IFERROR(VLOOKUP(D511,'Species List'!$I$16:$J$61,2,FALSE)*J511,\"\")","v":""},{"$f":"IFERROR(VLOOKUP(D511,'Species List'!$I$66:$J$66,2,FALSE)*J511,\"\")","v":""},{"$f":"IFERROR(VLOOKUP(D511,'Species List'!$I$71:$J$82,2,FALSE)*J511,\"\")","v":""},0,null,null,null,null,null,null,{"$f":"IFERROR(INDEX('3 - Land Summary'!$B$21:$B$120,(MATCH(AD511,'3 - Land Summary'!$C$21:$C$120,0))),\"\")","v":""}]
[null,{"$f":"IFERROR(INDEX('3 - Land Summary'!$B$21:$B$120,(MATCH('4 - Species Breakdown'!$V512,'3 - Land Summary'!$C$21:$C$120,0))),\"\")","v":""},null,null,{"$f":"IF(OR(COUNTIF('Look Up Data'!$D$149:$D$203,D512),COUNTIF('Look Up Data'!$D$149:$D$203,AE512)),\"YES\",\"NO\")","v":"NO"},null,null,{"$f":"IFERROR(INDEX('3 - Land Summary'!$G$21:$G$120,(MATCH(C512,'3 - Land Summary'!$C$21:$C$120,0))),\"\")","v":""},{"$f":"IFERROR(INDEX('3 - Land Summary'!$I$21:$I$120,(MATCH(C512,'3 - Land Summary'!$C$21:$C$120,0))),\"\")","v":""},"","",null,null,null,{"$f":"IFERROR(VLOOKUP(D512,'Species List'!$D$10:$E$46,2,FALSE)*J512,\"\")","v":""},{"$f":"IFERROR(VLOOKUP(D512,'Species List'!$D$51:$E$89,2,FALSE)*J512,\"\")","v":""},{"$f":"IFERROR(VLOOKUP(D512,'Species List'!$D$95:$E$102,2,FALSE)*J512,\"\")","v":""},{"$f":"IFERROR(VLOOKUP(D512,'Species List'!$I$10:$J$11,2,FALSE)*J512,\"\")","v":""},{"$f":"IFERROR(VLOOKUP(D512,'Species List'!$I$16:$J$61,2,FALSE)*J512,\"\")","v":""},{"$f":"IFERROR(VLOOKUP(D512,'Species List'!$I$66:$J$66,2,FALSE)*J512,\"\")","v":""},{"$f":"IFERROR(VLOOKUP(D512,'Species List'!$I$71:$J$82,2,FALSE)*J512,\"\")","v":""},0,null,null,null,null,null,null,{"$f":"IFERROR(INDEX('3 - Land Summary'!$B$21:$B$120,(MATCH(AD512,'3 - Land Summary'!$C$21:$C$120,0))),\"\")","v":""}]
[null,{"$f":"IFERROR(INDEX('3 - Land Summary'!$B$21:$B$120,(MATCH('4 - Species Breakdown'!$V513,'3 - Land Summary'!$C$21:$C$120,0))),\"\")","v":""},null,null,{"$f":"IF(OR(COUNTIF('Look Up Data'!$D$149:$D$203,D513),COUNTIF('Look Up Data'!$D$149:$D$203,AE513)),\"YES\",\"NO\")","v":"NO"},null,null,{"$f":"IFERROR(INDEX('3 - Land Summary'!$G$21:$G$120,(MATCH(C513,'3 - Land Summary'!$C$21:$C$120,0))),\"\")","v":""},{"$f":"IFERROR(INDEX('3 - Land Summary'!$I$21:$I$120,(MATCH(C513,'3 - Land Summary'!$C$21:$C$120,0))),\"\")","v":""},"","",null,null,null,{"$f":"IFERROR(VLOOKUP(D513,'Species List'!$D$10:$E$46,2,FALSE)*J513,\"\")","v":""},{"$f":"IFERROR(VLOOKUP(D513,'Species List'!$D$51:$E$89,2,FALSE)*J513,\"\")","v":""},{"$f":"IFERROR(VLOOKUP(D513,'Species List'!$D$95:$E$102,2,FALSE)*J513,\"\")","v":""},{"$f":"IFERROR(VLOOKUP(D513,'Species List'!$I$10:$J$11,2,FALSE)*J513,\"\")","v":""},{"$f":"IFERROR(VLOOKUP(D513,'Species List'!$I$16:$J$61,2,FALSE)*J513,\"\")","v":""},{"$f":"IFERROR(VLOOKUP(D513,'Species List'!$I$66:$J$66,2,FALSE)*J513,\"\")","v":""},{"$f":"IFERROR(VLOOKUP(D513,'Species List'!$I$71:$J$82,2,FALSE)*J513,\"\")","v":""},0,null,null,null,null,null,null,{"$f":"IFERROR(INDEX('3 - Land Summary'!$B$21:$B$120,(MATCH(AD513,'3 - Land Summary'!$C$21:$C$120,0))),\"\")","v":""}]
[null,{"$f":"IFERROR(INDEX('3 - Land Summary'!$B$21:$B$120,(MATCH('4 - Species Breakdown'!$V514,'3 - Land Summary'!$C$21:$C$120,0))),\"\")","v":""},null,null,{"$f":"IF(OR(COUNTIF('Look Up Data'!$D$149:$D$203,D514),COUNTIF('Look Up Data'!$D$149:$D$203,AE514)),\"YES\",\"NO\")","v":"NO"},null,null,{"$f":"IFERROR(INDEX('3 - Land Summary'!$G$21:$G$120,(MATCH(C514,'3 - Land Summary'!$C$21:$C$120,0))),\"\")","v":""},{"$f":"IFERROR(INDEX('3 - Land Summary'!$I$21:$I$120,(MATCH(C514,'3 - Land Summary'!$C$21:$C$120,0))),\"\")","v":""},"","",null,null,null,{"$f":"IFERROR(VLOOKUP(D514,'Species List'!$D$10:$E$46,2,FALSE)*J514,\"\")","v":""},{"$f":"IFERROR(VLOOKUP(D514,'Species List'!$D$51:$E$89,2,FALSE)*J514,\"\")","v":""},{"$f":"IFERROR(VLOOKUP(D514,'Species List'!$D$95:$E$102,2,FALSE)*J514,\"\")","v":""},{"$f":"IFERROR(VLOOKUP(D514,'Species List'!$I$10:$J$11,2,FALSE)*J514,\"\")","v":""},{"$f":"IFERROR(VLOOKUP(D514,'Species List'!$I$16:$J$61,2,FALSE)*J514,\"\")","v":""},{"$f":"IFERROR(VLOOKUP(D514,'Species List'!$I$66:$J$66,2,FALSE)*J514,\"\")","v":""},{"$f":"IFERROR(VLOOKUP(D514,'Species List'!$I$71:$J$82,2,FALSE)*J514,\"\")","v":""},0,null,null,null,null,null,null,{"$f":"IFERROR(INDEX('3 - Land Summary'!$B$21:$B$120,(MATCH(AD514,'3 - Land Summary'!$C$21:$C$120,0))),\"\")","v":""}]
[null,{"$f":"IFERROR(INDEX('3 - Land Summary'!$B$21:$B$120,(MATCH('4 - Species Breakdown'!$V515,'3 - Land Summary'!$C$21:$C$120,0))),\"\")","v":""},null,null,{"$f":"IF(OR(COUNTIF('Look Up Data'!$D$149:$D$203,D515),COUNTIF('Look Up Data'!$D$149:$D$203,AE515)),\"YES\",\"NO\")","v":"NO"},null,null,{"$f":"IFERROR(INDEX('3 - Land Summary'!$G$21:$G$120,(MATCH(C515,'3 - Land Summary'!$C$21:$C$120,0))),\"\")","v":""},{"$f":"IFERROR(INDEX('3 - Land Summary'!$I$21:$I$120,(MATCH(C515,'3 - Land Summary'!$C$21:$C$120,0))),\"\")","v":""},"","",null,null,null,{"$f":"IFERROR(VLOOKUP(D515,'Species List'!$D$10:$E$46,2,FALSE)*J515,\"\")","v":""},{"$f":"IFERROR(VLOOKUP(D515,'Species List'!$D$51:$E$89,2,FALSE)*J515,\"\")","v":""},{"$f":"IFERROR(VLOOKUP(D515,'Species List'!$D$95:$E$102,2,FALSE)*J515,\"\")","v":""},{"$f":"IFERROR(VLOOKUP(D515,'Species List'!$I$10:$J$11,2,FALSE)*J515,\"\")","v":""},{"$f":"IFERROR(VLOOKUP(D515,'Species List'!$I$16:$J$61,2,FALSE)*J515,\"\")","v":""},{"$f":"IFERROR(VLOOKUP(D515,'Species List'!$I$66:$J$66,2,FALSE)*J515,\"\")","v":""},{"$f":"IFERROR(VLOOKUP(D515,'Species List'!$I$71:$J$82,2,FALSE)*J515,\"\")","v":""},0,null,null,null,null,null,null,{"$f":"IFERROR(INDEX('3 - Land Summary'!$B$21:$B$120,(MATCH(AD515,'3 - Land Summary'!$C$21:$C$120,0))),\"\")","v":""}]
[null,{"$f":"IFERROR(INDEX('3 - Land Summary'!$B$21:$B$120,(MATCH('4 - Species Breakdown'!$V516,'3 - Land Summary'!$C$21:$C$120,0))),\"\")","v":""},null,null,{"$f":"IF(OR(COUNTIF('Look Up Data'!$D$149:$D$203,D516),COUNTIF('Look Up Data'!$D$149:$D$203,AE516)),\"YES\",\"NO\")","v":"NO"},null,null,{"$f":"IFERROR(INDEX('3 - Land Summary'!$G$21:$G$120,(MATCH(C516,'3 - Land Summary'!$C$21:$C$120,0))),\"\")","v":""},{"$f":"IFERROR(INDEX('3 - Land Summary'!$I$21:$I$120,(MATCH(C516,'3 - Land Summary'!$C$21:$C$120,0))),\"\")","v":""},"","",null,null,null,{"$f":"IFERROR(VLOOKUP(D516,'Species List'!$D$10:$E$46,2,FALSE)*J516,\"\")","v":""},{"$f":"IFERROR(VLOOKUP(D516,'Species List'!$D$51:$E$89,2,FALSE)*J516,\"\")","v":""},{"$f":"IFERROR(VLOOKUP(D516,'Species List'!$D$95:$E$102,2,FALSE)*J516,\"\")","v":""},{"$f":"IFERROR(VLOOKUP(D516,'Species List'!$I$10:$J$11,2,FALSE)*J516,\"\")","v":""},{"$f":"IFERROR(VLOOKUP(D516,'Species List'!$I$16:$J$61,2,FALSE)*J516,\"\")","v":""},{"$f":"IFERROR(VLOOKUP(D516,'Species List'!$I$66:$J$66,2,FALSE)*J516,\"\")","v":""},{"$f":"IFERROR(VLOOKUP(D516,'Species List'!$I$71:$J$82,2,FALSE)*J516,\"\")","v":""},0,null,null,null,null,null,null,{"$f":"IFERROR(INDEX('3 - Land Summary'!$B$21:$B$120,(MATCH(AD516,'3 - Land Summary'!$C$21:$C$120,0))),\"\")","v":""}]
[null,{"$f":"IFERROR(INDEX('3 - Land Summary'!$B$21:$B$120,(MATCH('4 - Species Breakdown'!$V517,'3 - Land Summary'!$C$21:$C$120,0))),\"\")","v":""},null,null,{"$f":"IF(OR(COUNTIF('Look Up Data'!$D$149:$D$203,D517),COUNTIF('Look Up Data'!$D$149:$D$203,AE517)),\"YES\",\"NO\")","v":"NO"},null,null,{"$f":"IFERROR(INDEX('3 - Land Summary'!$G$21:$G$120,(MATCH(C517,'3 - Land Summary'!$C$21:$C$120,0))),\"\")","v":""},{"$f":"IFERROR(INDEX('3 - Land Summary'!$I$21:$I$120,(MATCH(C517,'3 - Land Summary'!$C$21:$C$120,0))),\"\")","v":""},"","",null,null,null,{"$f":"IFERROR(VLOOKUP(D517,'Species List'!$D$10:$E$46,2,FALSE)*J517,\"\")","v":""},{"$f":"IFERROR(VLOOKUP(D517,'Species List'!$D$51:$E$89,2,FALSE)*J517,\"\")","v":""},{"$f":"IFERROR(VLOOKUP(D517,'Species List'!$D$95:$E$102,2,FALSE)*J517,\"\")","v":""},{"$f":"IFERROR(VLOOKUP(D517,'Species List'!$I$10:$J$11,2,FALSE)*J517,\"\")","v":""},{"$f":"IFERROR(VLOOKUP(D517,'Species List'!$I$16:$J$61,2,FALSE)*J517,\"\")","v":""},{"$f":"IFERROR(VLOOKUP(D517,'Species List'!$I$66:$J$66,2,FALSE)*J517,\"\")","v":""},{"$f":"IFERROR(VLOOKUP(D517,'Species List'!$I$71:$J$82,2,FALSE)*J517,\"\")","v":""},0,null,null,null,null,null,null,{"$f":"IFERROR(INDEX('3 - Land Summary'!$B$21:$B$120,(MATCH(AD517,'3 - Land Summary'!$C$21:$C$120,0))),\"\")","v":""}]
[null,{"$f":"IFERROR(INDEX('3 - Land Summary'!$B$21:$B$120,(MATCH('4 - Species Breakdown'!$V518,'3 - Land Summary'!$C$21:$C$120,0))),\"\")","v":""},null,null,{"$f":"IF(OR(COUNTIF('Look Up Data'!$D$149:$D$203,D518),COUNTIF('Look Up Data'!$D$149:$D$203,AE518)),\"YES\",\"NO\")","v":"NO"},null,null,{"$f":"IFERROR(INDEX('3 - Land Summary'!$G$21:$G$120,(MATCH(C518,'3 - Land Summary'!$C$21:$C$120,0))),\"\")","v":""},{"$f":"IFERROR(INDEX('3 - Land Summary'!$I$21:$I$120,(MATCH(C518,'3 - Land Summary'!$C$21:$C$120,0))),\"\")","v":""},"","",null,null,null,{"$f":"IFERROR(VLOOKUP(D518,'Species List'!$D$10:$E$46,2,FALSE)*J518,\"\")","v":""},{"$f":"IFERROR(VLOOKUP(D518,'Species List'!$D$51:$E$89,2,FALSE)*J518,\"\")","v":""},{"$f":"IFERROR(VLOOKUP(D518,'Species List'!$D$95:$E$102,2,FALSE)*J518,\"\")","v":""},{"$f":"IFERROR(VLOOKUP(D518,'Species List'!$I$10:$J$11,2,FALSE)*J518,\"\")","v":""},{"$f":"IFERROR(VLOOKUP(D518,'Species List'!$I$16:$J$61,2,FALSE)*J518,\"\")","v":""},{"$f":"IFERROR(VLOOKUP(D518,'Species List'!$I$66:$J$66,2,FALSE)*J518,\"\")","v":""},{"$f":"IFERROR(VLOOKUP(D518,'Species List'!$I$71:$J$82,2,FALSE)*J518,\"\")","v":""},0,null,null,null,null,null,null,{"$f":"IFERROR(INDEX('3 - Land Summary'!$B$21:$B$120,(MATCH(AD518,'3 - Land Summary'!$C$21:$C$120,0))),\"\")","v":""}]
[null,{"$f":"IFERROR(INDEX('3 - Land Summary'!$B$21:$B$120,(MATCH('4 - Species Breakdown'!$V519,'3 - Land Summary'!$C$21:$C$120,0))),\"\")","v":""},null,null,{"$f":"IF(OR(COUNTIF('Look Up Data'!$D$149:$D$203,D519),COUNTIF('Look Up Data'!$D$149:$D$203,AE519)),\"YES\",\"NO\")","v":"NO"},null,null,{"$f":"IFERROR(INDEX('3 - Land Summary'!$G$21:$G$120,(MATCH(C519,'3 - Land Summary'!$C$21:$C$120,0))),\"\")","v":""},{"$f":"IFERROR(INDEX('3 - Land Summary'!$I$21:$I$120,(MATCH(C519,'3 - Land Summary'!$C$21:$C$120,0))),\"\")","v":""},"","",null,null,null,{"$f":"IFERROR(VLOOKUP(D519,'Species List'!$D$10:$E$46,2,FALSE)*J519,\"\")","v":""},{"$f":"IFERROR(VLOOKUP(D519,'Species List'!$D$51:$E$89,2,FALSE)*J519,\"\")","v":""},{"$f":"IFERROR(VLOOKUP(D519,'Species List'!$D$95:$E$102,2,FALSE)*J519,\"\")","v":""},{"$f":"IFERROR(VLOOKUP(D519,'Species List'!$I$10:$J$11,2,FALSE)*J519,\"\")","v":""},{"$f":"IFERROR(VLOOKUP(D519,'Species List'!$I$16:$J$61,2,FALSE)*J519,\"\")","v":""},{"$f":"IFERROR(VLOOKUP(D519,'Species List'!$I$66:$J$66,2,FALSE)*J519,\"\")","v":""},{"$f":"IFERROR(VLOOKUP(D519,'Species List'!$I$71:$J$82,2,FALSE)*J519,\"\")","v":""},0,null,null,null,null,null,null,{"$f":"IFERROR(INDEX('3 - Land Summary'!$B$21:$B$120,(MATCH(AD519,'3 - Land Summary'!$C$21:$C$120,0))),\"\")","v":""}]
[null,{"$f":"IFERROR(INDEX('3 - Land Summary'!$B$21:$B$120,(MATCH('4 - Species Breakdown'!$V520,'3 - Land Summary'!$C$21:$C$120,0))),\"\")","v":""},null,null,{"$f":"IF(OR(COUNTIF('Look Up Data'!$D$149:$D$203,D520),COUNTIF('Look Up Data'!$D$149:$D$203,AE520)),\"YES\",\"NO\")","v":"NO"},null,null,{"$f":"IFERROR(INDEX('3 - Land Summary'!$G$21:$G$120,(MATCH(C520,'3 - Land Summary'!$C$21:$C$120,0))),\"\")","v":""},{"$f":"IFERROR(INDEX('3 - Land Summary'!$I$21:$I$120,(MATCH(C520,'3 - Land Summary'!$C$21:$C$120,0))),\"\")","v":""},"","",null,null,null,{"$f":"IFERROR(VLOOKUP(D520,'Species List'!$D$10:$E$46,2,FALSE)*J520,\"\")","v":""},{"$f":"IFERROR(VLOOKUP(D520,'Species List'!$D$51:$E$89,2,FALSE)*J520,\"\")","v":""},{"$f":"IFERROR(VLOOKUP(D520,'Species List'!$D$95:$E$102,2,FALSE)*J520,\"\")","v":""},{"$f":"IFERROR(VLOOKUP(D520,'Species List'!$I$10:$J$11,2,FALSE)*J520,\"\")","v":""},{"$f":"IFERROR(VLOOKUP(D520,'Species List'!$I$16:$J$61,2,FALSE)*J520,\"\")","v":""},{"$f":"IFERROR(VLOOKUP(D520,'Species List'!$I$66:$J$66,2,FALSE)*J520,\"\")","v":""},{"$f":"IFERROR(VLOOKUP(D520,'Species List'!$I$71:$J$82,2,FALSE)*J520,\"\")","v":""},0,null,null,null,null,null,null,{"$f":"IFERROR(INDEX('3 - Land Summary'!$B$21:$B$120,(MATCH(AD520,'3 - Land Summary'!$C$21:$C$120,0))),\"\")","v":""}]
[null,{"$f":"IFERROR(INDEX('3 - Land Summary'!$B$21:$B$120,(MATCH('4 - Species Breakdown'!$V521,'3 - Land Summary'!$C$21:$C$120,0))),\"\")","v":""},null,null,{"$f":"IF(OR(COUNTIF('Look Up Data'!$D$149:$D$203,D521),COUNTIF('Look Up Data'!$D$149:$D$203,AE521)),\"YES\",\"NO\")","v":"NO"},null,null,{"$f":"IFERROR(INDEX('3 - Land Summary'!$G$21:$G$120,(MATCH(C521,'3 - Land Summary'!$C$21:$C$120,0))),\"\")","v":""},{"$f":"IFERROR(INDEX('3 - Land Summary'!$I$21:$I$120,(MATCH(C521,'3 - Land Summary'!$C$21:$C$120,0))),\"\")","v":""},"","",null,null,null,{"$f":"IFERROR(VLOOKUP(D521,'Species List'!$D$10:$E$46,2,FALSE)*J521,\"\")","v":""},{"$f":"IFERROR(VLOOKUP(D521,'Species List'!$D$51:$E$89,2,FALSE)*J521,\"\")","v":""},{"$f":"IFERROR(VLOOKUP(D521,'Species List'!$D$95:$E$102,2,FALSE)*J521,\"\")","v":""},{"$f":"IFERROR(VLOOKUP(D521,'Species List'!$I$10:$J$11,2,FALSE)*J521,\"\")","v":""},{"$f":"IFERROR(VLOOKUP(D521,'Species List'!$I$16:$J$61,2,FALSE)*J521,\"\")","v":""},{"$f":"IFERROR(VLOOKUP(D521,'Species List'!$I$66:$J$66,2,FALSE)*J521,\"\")","v":""},{"$f":"IFERROR(VLOOKUP(D521,'Species List'!$I$71:$J$82,2,FALSE)*J521,\"\")","v":""},0,null,null,null,null,null,null,{"$f":"IFERROR(INDEX('3 - Land Summary'!$B$21:$B$120,(MATCH(AD521,'3 - Land Summary'!$C$21:$C$120,0))),\"\")","v":""}]
[null,{"$f":"IFERROR(INDEX('3 - Land Summary'!$B$21:$B$120,(MATCH('4 - Species Breakdown'!$V522,'3 - Land Summary'!$C$21:$C$120,0))),\"\")","v":""},null,null,{"$f":"IF(OR(COUNTIF('Look Up Data'!$D$149:$D$203,D522),COUNTIF('Look Up Data'!$D$149:$D$203,AE522)),\"YES\",\"NO\")","v":"NO"},null,null,{"$f":"IFERROR(INDEX('3 - Land Summary'!$G$21:$G$120,(MATCH(C522,'3 - Land Summary'!$C$21:$C$120,0))),\"\")","v":""},{"$f":"IFERROR(INDEX('3 - Land Summary'!$I$21:$I$120,(MATCH(C522,'3 - Land Summary'!$C$21:$C$120,0))),\"\")","v":""},"","",null,null,null,{"$f":"IFERROR(VLOOKUP(D522,'Species List'!$D$10:$E$46,2,FALSE)*J522,\"\")","v":""},{"$f":"IFERROR(VLOOKUP(D522,'Species List'!$D$51:$E$89,2,FALSE)*J522,\"\")","v":""},{"$f":"IFERROR(VLOOKUP(D522,'Species List'!$D$95:$E$102,2,FALSE)*J522,\"\")","v":""},{"$f":"IFERROR(VLOOKUP(D522,'Species List'!$I$10:$J$11,2,FALSE)*J522,\"\")","v":""},{"$f":"IFERROR(VLOOKUP(D522,'Species List'!$I$16:$J$61,2,FALSE)*J522,\"\")","v":""},{"$f":"IFERROR(VLOOKUP(D522,'Species List'!$I$66:$J$66,2,FALSE)*J522,\"\")","v":""},{"$f":"IFERROR(VLOOKUP(D522,'Species List'!$I$71:$J$82,2,FALSE)*J522,\"\")","v":""},0,null,null,null,null,null,null,{"$f":"IFERROR(INDEX('3 - Land Summary'!$B$21:$B$120,(MATCH(AD522,'3 - Land Summary'!$C$21:$C$120,0))),\"\")","v":""}]
[null,{"$f":"IFERROR(INDEX('3 - Land Summary'!$B$21:$B$120,(MATCH('4 - Species Breakdown'!$V523,'3 - Land Summary'!$C$21:$C$120,0))),\"\")","v":""},null,null,{"$f":"IF(OR(COUNTIF('Look Up Data'!$D$149:$D$203,D523),COUNTIF('Look Up Data'!$D$149:$D$203,AE523)),\"YES\",\"NO\")","v":"NO"},null,null,{"$f":"IFERROR(INDEX('3 - Land Summary'!$G$21:$G$120,(MATCH(C523,'3 - Land Summary'!$C$21:$C$120,0))),\"\")","v":""},{"$f":"IFERROR(INDEX('3 - Land Summary'!$I$21:$I$120,(MATCH(C523,'3 - Land Summary'!$C$21:$C$120,0))),\"\")","v":""},"","",null,null,null,{"$f":"IFERROR(VLOOKUP(D523,'Species List'!$D$10:$E$46,2,FALSE)*J523,\"\")","v":""},{"$f":"IFERROR(VLOOKUP(D523,'Species List'!$D$51:$E$89,2,FALSE)*J523,\"\")","v":""},{"$f":"IFERROR(VLOOKUP(D523,'Species List'!$D$95:$E$102,2,FALSE)*J523,\"\")","v":""},{"$f":"IFERROR(VLOOKUP(D523,'Species List'!$I$10:$J$11,2,FALSE)*J523,\"\")","v":""},{"$f":"IFERROR(VLOOKUP(D523,'Species List'!$I$16:$J$61,2,FALSE)*J523,\"\")","v":""},{"$f":"IFERROR(VLOOKUP(D523,'Species List'!$I$66:$J$66,2,FALSE)*J523,\"\")","v":""},{"$f":"IFERROR(VLOOKUP(D523,'Species List'!$I$71:$J$82,2,FALSE)*J523,\"\")","v":""},0,null,null,null,null,null,null,{"$f":"IFERROR(INDEX('3 - Land Summary'!$B$21:$B$120,(MATCH(AD523,'3 - Land Summary'!$C$21:$C$120,0))),\"\")","v":""}]
[null,{"$f":"IFERROR(INDEX('3 - Land Summary'!$B$21:$B$120,(MATCH('4 - Species Breakdown'!$V524,'3 - Land Summary'!$C$21:$C$120,0))),\"\")","v":""},null,null,{"$f":"IF(OR(COUNTIF('Look Up Data'!$D$149:$D$203,D524),COUNTIF('Look Up Data'!$D$149:$D$203,AE524)),\"YES\",\"NO\")","v":"NO"},null,null,{"$f":"IFERROR(INDEX('3 - Land Summary'!$G$21:$G$120,(MATCH(C524,'3 - Land Summary'!$C$21:$C$120,0))),\"\")","v":""},{"$f":"IFERROR(INDEX('3 - Land Summary'!$I$21:$I$120,(MATCH(C524,'3 - Land Summary'!$C$21:$C$120,0))),\"\")","v":""},"","",null,null,null,{"$f":"IFERROR(VLOOKUP(D524,'Species List'!$D$10:$E$46,2,FALSE)*J524,\"\")","v":""},{"$f":"IFERROR(VLOOKUP(D524,'Species List'!$D$51:$E$89,2,FALSE)*J524,\"\")","v":""},{"$f":"IFERROR(VLOOKUP(D524,'Species List'!$D$95:$E$102,2,FALSE)*J524,\"\")","v":""},{"$f":"IFERROR(VLOOKUP(D524,'Species List'!$I$10:$J$11,2,FALSE)*J524,\"\")","v":""},{"$f":"IFERROR(VLOOKUP(D524,'Species List'!$I$16:$J$61,2,FALSE)*J524,\"\")","v":""},{"$f":"IFERROR(VLOOKUP(D524,'Species List'!$I$66:$J$66,2,FALSE)*J524,\"\")","v":""},{"$f":"IFERROR(VLOOKUP(D524,'Species List'!$I$71:$J$82,2,FALSE)*J524,\"\")","v":""},0,null,null,null,null,null,null,{"$f":"IFERROR(INDEX('3 - Land Summary'!$B$21:$B$120,(MATCH(AD524,'3 - Land Summary'!$C$21:$C$120,0))),\"\")","v":""}]
[null,{"$f":"IFERROR(INDEX('3 - Land Summary'!$B$21:$B$120,(MATCH('4 - Species Breakdown'!$V525,'3 - Land Summary'!$C$21:$C$120,0))),\"\")","v":""},null,null,{"$f":"IF(OR(COUNTIF('Look Up Data'!$D$149:$D$203,D525),COUNTIF('Look Up Data'!$D$149:$D$203,AE525)),\"YES\",\"NO\")","v":"NO"},null,null,{"$f":"IFERROR(INDEX('3 - Land Summary'!$G$21:$G$120,(MATCH(C525,'3 - Land Summary'!$C$21:$C$120,0))),\"\")","v":""},{"$f":"IFERROR(INDEX('3 - Land Summary'!$I$21:$I$120,(MATCH(C525,'3 - Land Summary'!$C$21:$C$120,0))),\"\")","v":""},"","",null,null,null,{"$f":"IFERROR(VLOOKUP(D525,'Species List'!$D$10:$E$46,2,FALSE)*J525,\"\")","v":""},{"$f":"IFERROR(VLOOKUP(D525,'Species List'!$D$51:$E$89,2,FALSE)*J525,\"\")","v":""},{"$f":"IFERROR(VLOOKUP(D525,'Species List'!$D$95:$E$102,2,FALSE)*J525,\"\")","v":""},{"$f":"IFERROR(VLOOKUP(D525,'Species List'!$I$10:$J$11,2,FALSE)*J525,\"\")","v":""},{"$f":"IFERROR(VLOOKUP(D525,'Species List'!$I$16:$J$61,2,FALSE)*J525,\"\")","v":""},{"$f":"IFERROR(VLOOKUP(D525,'Species List'!$I$66:$J$66,2,FALSE)*J525,\"\")","v":""},{"$f":"IFERROR(VLOOKUP(D525,'Species List'!$I$71:$J$82,2,FALSE)*J525,\"\")","v":""},0,null,null,null,null,null,null,{"$f":"IFERROR(INDEX('3 - Land Summary'!$B$21:$B$120,(MATCH(AD525,'3 - Land Summary'!$C$21:$C$120,0))),\"\")","v":""}]
[null,{"$f":"IFERROR(INDEX('3 - Land Summary'!$B$21:$B$120,(MATCH('4 - Species Breakdown'!$V526,'3 - Land Summary'!$C$21:$C$120,0))),\"\")","v":""},null,null,{"$f":"IF(OR(COUNTIF('Look Up Data'!$D$149:$D$203,D526),COUNTIF('Look Up Data'!$D$149:$D$203,AE526)),\"YES\",\"NO\")","v":"NO"},null,null,{"$f":"IFERROR(INDEX('3 - Land Summary'!$G$21:$G$120,(MATCH(C526,'3 - Land Summary'!$C$21:$C$120,0))),\"\")","v":""},{"$f":"IFERROR(INDEX('3 - Land Summary'!$I$21:$I$120,(MATCH(C526,'3 - Land Summary'!$C$21:$C$120,0))),\"\")","v":""},"","",null,null,null,{"$f":"IFERROR(VLOOKUP(D526,'Species List'!$D$10:$E$46,2,FALSE)*J526,\"\")","v":""},{"$f":"IFERROR(VLOOKUP(D526,'Species List'!$D$51:$E$89,2,FALSE)*J526,\"\")","v":""},{"$f":"IFERROR(VLOOKUP(D526,'Species List'!$D$95:$E$102,2,FALSE)*J526,\"\")","v":""},{"$f":"IFERROR(VLOOKUP(D526,'Species List'!$I$10:$J$11,2,FALSE)*J526,\"\")","v":""},{"$f":"IFERROR(VLOOKUP(D526,'Species List'!$I$16:$J$61,2,FALSE)*J526,\"\")","v":""},{"$f":"IFERROR(VLOOKUP(D526,'Species List'!$I$66:$J$66,2,FALSE)*J526,\"\")","v":""},{"$f":"IFERROR(VLOOKUP(D526,'Species List'!$I$71:$J$82,2,FALSE)*J526,\"\")","v":""},0,null,null,null,null,null,null,{"$f":"IFERROR(INDEX('3 - Land Summary'!$B$21:$B$120,(MATCH(AD526,'3 - Land Summary'!$C$21:$C$120,0))),\"\")","v":""}]
[null,{"$f":"IFERROR(INDEX('3 - Land Summary'!$B$21:$B$120,(MATCH('4 - Species Breakdown'!$V527,'3 - Land Summary'!$C$21:$C$120,0))),\"\")","v":""},null,null,{"$f":"IF(OR(COUNTIF('Look Up Data'!$D$149:$D$203,D527),COUNTIF('Look Up Data'!$D$149:$D$203,AE527)),\"YES\",\"NO\")","v":"NO"},null,null,{"$f":"IFERROR(INDEX('3 - Land Summary'!$G$21:$G$120,(MATCH(C527,'3 - Land Summary'!$C$21:$C$120,0))),\"\")","v":""},{"$f":"IFERROR(INDEX('3 - Land Summary'!$I$21:$I$120,(MATCH(C527,'3 - Land Summary'!$C$21:$C$120,0))),\"\")","v":""},"","",null,null,null,{"$f":"IFERROR(VLOOKUP(D527,'Species List'!$D$10:$E$46,2,FALSE)*J527,\"\")","v":""},{"$f":"IFERROR(VLOOKUP(D527,'Species List'!$D$51:$E$89,2,FALSE)*J527,\"\")","v":""},{"$f":"IFERROR(VLOOKUP(D527,'Species List'!$D$95:$E$102,2,FALSE)*J527,\"\")","v":""},{"$f":"IFERROR(VLOOKUP(D527,'Species List'!$I$10:$J$11,2,FALSE)*J527,\"\")","v":""},{"$f":"IFERROR(VLOOKUP(D527,'Species List'!$I$16:$J$61,2,FALSE)*J527,\"\")","v":""},{"$f":"IFERROR(VLOOKUP(D527,'Species List'!$I$66:$J$66,2,FALSE)*J527,\"\")","v":""},{"$f":"IFERROR(VLOOKUP(D527,'Species List'!$I$71:$J$82,2,FALSE)*J527,\"\")","v":""},0,null,null,null,null,null,null,{"$f":"IFERROR(INDEX('3 - Land Summary'!$B$21:$B$120,(MATCH(AD527,'3 - Land Summary'!$C$21:$C$120,0))),\"\")","v":""}]
[null,{"$f":"IFERROR(INDEX('3 - Land Summary'!$B$21:$B$120,(MATCH('4 - Species Breakdown'!$V528,'3 - Land Summary'!$C$21:$C$120,0))),\"\")","v":""},null,null,{"$f":"IF(OR(COUNTIF('Look Up Data'!$D$149:$D$203,D528),COUNTIF('Look Up Data'!$D$149:$D$203,AE528)),\"YES\",\"NO\")","v":"NO"},null,null,{"$f":"IFERROR(INDEX('3 - Land Summary'!$G$21:$G$120,(MATCH(C528,'3 - Land Summary'!$C$21:$C$120,0))),\"\")","v":""},{"$f":"IFERROR(INDEX('3 - Land Summary'!$I$21:$I$120,(MATCH(C528,'3 - Land Summary'!$C$21:$C$120,0))),\"\")","v":""},"","",null,null,null,{"$f":"IFERROR(VLOOKUP(D528,'Species List'!$D$10:$E$46,2,FALSE)*J528,\"\")","v":""},{"$f":"IFERROR(VLOOKUP(D528,'Species List'!$D$51:$E$89,2,FALSE)*J528,\"\")","v":""},{"$f":"IFERROR(VLOOKUP(D528,'Species List'!$D$95:$E$102,2,FALSE)*J528,\"\")","v":""},{"$f":"IFERROR(VLOOKUP(D528,'Species List'!$I$10:$J$11,2,FALSE)*J528,\"\")","v":""},{"$f":"IFERROR(VLOOKUP(D528,'Species List'!$I$16:$J$61,2,FALSE)*J528,\"\")","v":""},{"$f":"IFERROR(VLOOKUP(D528,'Species List'!$I$66:$J$66,2,FALSE)*J528,\"\")","v":""},{"$f":"IFERROR(VLOOKUP(D528,'Species List'!$I$71:$J$82,2,FALSE)*J528,\"\")","v":""},0,null,null,null,null,null,null,{"$f":"IFERROR(INDEX('3 - Land Summary'!$B$21:$B$120,(MATCH(AD528,'3 - Land Summary'!$C$21:$C$120,0))),\"\")","v":""}]
[null,{"$f":"IFERROR(INDEX('3 - Land Summary'!$B$21:$B$120,(MATCH('4 - Species Breakdown'!$V529,'3 - Land Summary'!$C$21:$C$120,0))),\"\")","v":""},null,null,{"$f":"IF(OR(COUNTIF('Look Up Data'!$D$149:$D$203,D529),COUNTIF('Look Up Data'!$D$149:$D$203,AE529)),\"YES\",\"NO\")","v":"NO"},null,null,{"$f":"IFERROR(INDEX('3 - Land Summary'!$G$21:$G$120,(MATCH(C529,'3 - Land Summary'!$C$21:$C$120,0))),\"\")","v":""},{"$f":"IFERROR(INDEX('3 - Land Summary'!$I$21:$I$120,(MATCH(C529,'3 - Land Summary'!$C$21:$C$120,0))),\"\")","v":""},"","",null,null,null,{"$f":"IFERROR(VLOOKUP(D529,'Species List'!$D$10:$E$46,2,FALSE)*J529,\"\")","v":""},{"$f":"IFERROR(VLOOKUP(D529,'Species List'!$D$51:$E$89,2,FALSE)*J529,\"\")","v":""},{"$f":"IFERROR(VLOOKUP(D529,'Species List'!$D$95:$E$102,2,FALSE)*J529,\"\")","v":""},{"$f":"IFERROR(VLOOKUP(D529,'Species List'!$I$10:$J$11,2,FALSE)*J529,\"\")","v":""},{"$f":"IFERROR(VLOOKUP(D529,'Species List'!$I$16:$J$61,2,FALSE)*J529,\"\")","v":""},{"$f":"IFERROR(VLOOKUP(D529,'Species List'!$I$66:$J$66,2,FALSE)*J529,\"\")","v":""},{"$f":"IFERROR(VLOOKUP(D529,'Species List'!$I$71:$J$82,2,FALSE)*J529,\"\")","v":""},0,null,null,null,null,null,null,{"$f":"IFERROR(INDEX('3 - Land Summary'!$B$21:$B$120,(MATCH(AD529,'3 - Land Summary'!$C$21:$C$120,0))),\"\")","v":""}]
[null,{"$f":"IFERROR(INDEX('3 - Land Summary'!$B$21:$B$120,(MATCH('4 - Species Breakdown'!$V530,'3 - Land Summary'!$C$21:$C$120,0))),\"\")","v":""},null,null,{"$f":"IF(OR(COUNTIF('Look Up Data'!$D$149:$D$203,D530),COUNTIF('Look Up Data'!$D$149:$D$203,AE530)),\"YES\",\"NO\")","v":"NO"},null,null,{"$f":"IFERROR(INDEX('3 - Land Summary'!$G$21:$G$120,(MATCH(C530,'3 - Land Summary'!$C$21:$C$120,0))),\"\")","v":""},{"$f":"IFERROR(INDEX('3 - Land Summary'!$I$21:$I$120,(MATCH(C530,'3 - Land Summary'!$C$21:$C$120,0))),\"\")","v":""},"","",null,null,null,{"$f":"IFERROR(VLOOKUP(D530,'Species List'!$D$10:$E$46,2,FALSE)*J530,\"\")","v":""},{"$f":"IFERROR(VLOOKUP(D530,'Species List'!$D$51:$E$89,2,FALSE)*J530,\"\")","v":""},{"$f":"IFERROR(VLOOKUP(D530,'Species List'!$D$95:$E$102,2,FALSE)*J530,\"\")","v":""},{"$f":"IFERROR(VLOOKUP(D530,'Species List'!$I$10:$J$11,2,FALSE)*J530,\"\")","v":""},{"$f":"IFERROR(VLOOKUP(D530,'Species List'!$I$16:$J$61,2,FALSE)*J530,\"\")","v":""},{"$f":"IFERROR(VLOOKUP(D530,'Species List'!$I$66:$J$66,2,FALSE)*J530,\"\")","v":""},{"$f":"IFERROR(VLOOKUP(D530,'Species List'!$I$71:$J$82,2,FALSE)*J530,\"\")","v":""},0,null,null,null,null,null,null,{"$f":"IFERROR(INDEX('3 - Land Summary'!$B$21:$B$120,(MATCH(AD530,'3 - Land Summary'!$C$21:$C$120,0))),\"\")","v":""}]
[null,{"$f":"IFERROR(INDEX('3 - Land Summary'!$B$21:$B$120,(MATCH('4 - Species Breakdown'!$V531,'3 - Land Summary'!$C$21:$C$120,0))),\"\")","v":""},null,null,{"$f":"IF(OR(COUNTIF('Look Up Data'!$D$149:$D$203,D531),COUNTIF('Look Up Data'!$D$149:$D$203,AE531)),\"YES\",\"NO\")","v":"NO"},null,null,{"$f":"IFERROR(INDEX('3 - Land Summary'!$G$21:$G$120,(MATCH(C531,'3 - Land Summary'!$C$21:$C$120,0))),\"\")","v":""},{"$f":"IFERROR(INDEX('3 - Land Summary'!$I$21:$I$120,(MATCH(C531,'3 - Land Summary'!$C$21:$C$120,0))),\"\")","v":""},"","",null,null,null,{"$f":"IFERROR(VLOOKUP(D531,'Species List'!$D$10:$E$46,2,FALSE)*J531,\"\")","v":""},{"$f":"IFERROR(VLOOKUP(D531,'Species List'!$D$51:$E$89,2,FALSE)*J531,\"\")","v":""},{"$f":"IFERROR(VLOOKUP(D531,'Species List'!$D$95:$E$102,2,FALSE)*J531,\"\")","v":""},{"$f":"IFERROR(VLOOKUP(D531,'Species List'!$I$10:$J$11,2,FALSE)*J531,\"\")","v":""},{"$f":"IFERROR(VLOOKUP(D531,'Species List'!$I$16:$J$61,2,FALSE)*J531,\"\")","v":""},{"$f":"IFERROR(VLOOKUP(D531,'Species List'!$I$66:$J$66,2,FALSE)*J531,\"\")","v":""},{"$f":"IFERROR(VLOOKUP(D531,'Species List'!$I$71:$J$82,2,FALSE)*J531,\"\")","v":""},0,null,null,null,null,null,null,{"$f":"IFERROR(INDEX('3 - Land Summary'!$B$21:$B$120,(MATCH(AD531,'3 - Land Summary'!$C$21:$C$120,0))),\"\")","v":""}]
[null,{"$f":"IFERROR(INDEX('3 - Land Summary'!$B$21:$B$120,(MATCH('4 - Species Breakdown'!$V532,'3 - Land Summary'!$C$21:$C$120,0))),\"\")","v":""},null,null,{"$f":"IF(OR(COUNTIF('Look Up Data'!$D$149:$D$203,D532),COUNTIF('Look Up Data'!$D$149:$D$203,AE532)),\"YES\",\"NO\")","v":"NO"},null,null,{"$f":"IFERROR(INDEX('3 - Land Summary'!$G$21:$G$120,(MATCH(C532,'3 - Land Summary'!$C$21:$C$120,0))),\"\")","v":""},{"$f":"IFERROR(INDEX('3 - Land Summary'!$I$21:$I$120,(MATCH(C532,'3 - Land Summary'!$C$21:$C$120,0))),\"\")","v":""},"","",null,null,null,{"$f":"IFERROR(VLOOKUP(D532,'Species List'!$D$10:$E$46,2,FALSE)*J532,\"\")","v":""},{"$f":"IFERROR(VLOOKUP(D532,'Species List'!$D$51:$E$89,2,FALSE)*J532,\"\")","v":""},{"$f":"IFERROR(VLOOKUP(D532,'Species List'!$D$95:$E$102,2,FALSE)*J532,\"\")","v":""},{"$f":"IFERROR(VLOOKUP(D532,'Species List'!$I$10:$J$11,2,FALSE)*J532,\"\")","v":""},{"$f":"IFERROR(VLOOKUP(D532,'Species List'!$I$16:$J$61,2,FALSE)*J532,\"\")","v":""},{"$f":"IFERROR(VLOOKUP(D532,'Species List'!$I$66:$J$66,2,FALSE)*J532,\"\")","v":""},{"$f":"IFERROR(VLOOKUP(D532,'Species List'!$I$71:$J$82,2,FALSE)*J532,\"\")","v":""},0,null,null,null,null,null,null,{"$f":"IFERROR(INDEX('3 - Land Summary'!$B$21:$B$120,(MATCH(AD532,'3 - Land Summary'!$C$21:$C$120,0))),\"\")","v":""}]
[null,{"$f":"IFERROR(INDEX('3 - Land Summary'!$B$21:$B$120,(MATCH('4 - Species Breakdown'!$V533,'3 - Land Summary'!$C$21:$C$120,0))),\"\")","v":""},null,null,{"$f":"IF(OR(COUNTIF('Look Up Data'!$D$149:$D$203,D533),COUNTIF('Look Up Data'!$D$149:$D$203,AE533)),\"YES\",\"NO\")","v":"NO"},null,null,{"$f":"IFERROR(INDEX('3 - Land Summary'!$G$21:$G$120,(MATCH(C533,'3 - Land Summary'!$C$21:$C$120,0))),\"\")","v":""},{"$f":"IFERROR(INDEX('3 - Land Summary'!$I$21:$I$120,(MATCH(C533,'3 - Land Summary'!$C$21:$C$120,0))),\"\")","v":""},"","",null,null,null,{"$f":"IFERROR(VLOOKUP(D533,'Species List'!$D$10:$E$46,2,FALSE)*J533,\"\")","v":""},{"$f":"IFERROR(VLOOKUP(D533,'Species List'!$D$51:$E$89,2,FALSE)*J533,\"\")","v":""},{"$f":"IFERROR(VLOOKUP(D533,'Species List'!$D$95:$E$102,2,FALSE)*J533,\"\")","v":""},{"$f":"IFERROR(VLOOKUP(D533,'Species List'!$I$10:$J$11,2,FALSE)*J533,\"\")","v":""},{"$f":"IFERROR(VLOOKUP(D533,'Species List'!$I$16:$J$61,2,FALSE)*J533,\"\")","v":""},{"$f":"IFERROR(VLOOKUP(D533,'Species List'!$I$66:$J$66,2,FALSE)*J533,\"\")","v":""},{"$f":"IFERROR(VLOOKUP(D533,'Species List'!$I$71:$J$82,2,FALSE)*J533,\"\")","v":""},0,null,null,null,null,null,null,{"$f":"IFERROR(INDEX('3 - Land Summary'!$B$21:$B$120,(MATCH(AD533,'3 - Land Summary'!$C$21:$C$120,0))),\"\")","v":""}]
[null,{"$f":"IFERROR(INDEX('3 - Land Summary'!$B$21:$B$120,(MATCH('4 - Species Breakdown'!$V534,'3 - Land Summary'!$C$21:$C$120,0))),\"\")","v":""},null,null,{"$f":"IF(OR(COUNTIF('Look Up Data'!$D$149:$D$203,D534),COUNTIF('Look Up Data'!$D$149:$D$203,AE534)),\"YES\",\"NO\")","v":"NO"},null,null,{"$f":"IFERROR(INDEX('3 - Land Summary'!$G$21:$G$120,(MATCH(C534,'3 - Land Summary'!$C$21:$C$120,0))),\"\")","v":""},{"$f":"IFERROR(INDEX('3 - Land Summary'!$I$21:$I$120,(MATCH(C534,'3 - Land Summary'!$C$21:$C$120,0))),\"\")","v":""},"","",null,null,null,{"$f":"IFERROR(VLOOKUP(D534,'Species List'!$D$10:$E$46,2,FALSE)*J534,\"\")","v":""},{"$f":"IFERROR(VLOOKUP(D534,'Species List'!$D$51:$E$89,2,FALSE)*J534,\"\")","v":""},{"$f":"IFERROR(VLOOKUP(D534,'Species List'!$D$95:$E$102,2,FALSE)*J534,\"\")","v":""},{"$f":"IFERROR(VLOOKUP(D534,'Species List'!$I$10:$J$11,2,FALSE)*J534,\"\")","v":""},{"$f":"IFERROR(VLOOKUP(D534,'Species List'!$I$16:$J$61,2,FALSE)*J534,\"\")","v":""},{"$f":"IFERROR(VLOOKUP(D534,'Species List'!$I$66:$J$66,2,FALSE)*J534,\"\")","v":""},{"$f":"IFERROR(VLOOKUP(D534,'Species List'!$I$71:$J$82,2,FALSE)*J534,\"\")","v":""},0,null,null,null,null,null,null,{"$f":"IFERROR(INDEX('3 - Land Summary'!$B$21:$B$120,(MATCH(AD534,'3 - Land Summary'!$C$21:$C$120,0))),\"\")","v":""}]
[null,{"$f":"IFERROR(INDEX('3 - Land Summary'!$B$21:$B$120,(MATCH('4 - Species Breakdown'!$V535,'3 - Land Summary'!$C$21:$C$120,0))),\"\")","v":""},null,null,{"$f":"IF(OR(COUNTIF('Look Up Data'!$D$149:$D$203,D535),COUNTIF('Look Up Data'!$D$149:$D$203,AE535)),\"YES\",\"NO\")","v":"NO"},null,null,{"$f":"IFERROR(INDEX('3 - Land Summary'!$G$21:$G$120,(MATCH(C535,'3 - Land Summary'!$C$21:$C$120,0))),\"\")","v":""},{"$f":"IFERROR(INDEX('3 - Land Summary'!$I$21:$I$120,(MATCH(C535,'3 - Land Summary'!$C$21:$C$120,0))),\"\")","v":""},"","",null,null,null,{"$f":"IFERROR(VLOOKUP(D535,'Species List'!$D$10:$E$46,2,FALSE)*J535,\"\")","v":""},{"$f":"IFERROR(VLOOKUP(D535,'Species List'!$D$51:$E$89,2,FALSE)*J535,\"\")","v":""},{"$f":"IFERROR(VLOOKUP(D535,'Species List'!$D$95:$E$102,2,FALSE)*J535,\"\")","v":""},{"$f":"IFERROR(VLOOKUP(D535,'Species List'!$I$10:$J$11,2,FALSE)*J535,\"\")","v":""},{"$f":"IFERROR(VLOOKUP(D535,'Species List'!$I$16:$J$61,2,FALSE)*J535,\"\")","v":""},{"$f":"IFERROR(VLOOKUP(D535,'Species List'!$I$66:$J$66,2,FALSE)*J535,\"\")","v":""},{"$f":"IFERROR(VLOOKUP(D535,'Species List'!$I$71:$J$82,2,FALSE)*J535,\"\")","v":""},0,null,null,null,null,null,null,{"$f":"IFERROR(INDEX('3 - Land Summary'!$B$21:$B$120,(MATCH(AD535,'3 - Land Summary'!$C$21:$C$120,0))),\"\")","v":""}]
[null,{"$f":"IFERROR(INDEX('3 - Land Summary'!$B$21:$B$120,(MATCH('4 - Species Breakdown'!$V536,'3 - Land Summary'!$C$21:$C$120,0))),\"\")","v":""},null,null,{"$f":"IF(OR(COUNTIF('Look Up Data'!$D$149:$D$203,D536),COUNTIF('Look Up Data'!$D$149:$D$203,AE536)),\"YES\",\"NO\")","v":"NO"},null,null,{"$f":"IFERROR(INDEX('3 - Land Summary'!$G$21:$G$120,(MATCH(C536,'3 - Land Summary'!$C$21:$C$120,0))),\"\")","v":""},{"$f":"IFERROR(INDEX('3 - Land Summary'!$I$21:$I$120,(MATCH(C536,'3 - Land Summary'!$C$21:$C$120,0))),\"\")","v":""},"","",null,null,null,{"$f":"IFERROR(VLOOKUP(D536,'Species List'!$D$10:$E$46,2,FALSE)*J536,\"\")","v":""},{"$f":"IFERROR(VLOOKUP(D536,'Species List'!$D$51:$E$89,2,FALSE)*J536,\"\")","v":""},{"$f":"IFERROR(VLOOKUP(D536,'Species List'!$D$95:$E$102,2,FALSE)*J536,\"\")","v":""},{"$f":"IFERROR(VLOOKUP(D536,'Species List'!$I$10:$J$11,2,FALSE)*J536,\"\")","v":""},{"$f":"IFERROR(VLOOKUP(D536,'Species List'!$I$16:$J$61,2,FALSE)*J536,\"\")","v":""},{"$f":"IFERROR(VLOOKUP(D536,'Species List'!$I$66:$J$66,2,FALSE)*J536,\"\")","v":""},{"$f":"IFERROR(VLOOKUP(D536,'Species List'!$I$71:$J$82,2,FALSE)*J536,\"\")","v":""},0,null,null,null,null,null,null,{"$f":"IFERROR(INDEX('3 - Land Summary'!$B$21:$B$120,(MATCH(AD536,'3 - Land Summary'!$C$21:$C$120,0))),\"\")","v":""}]
[null,{"$f":"IFERROR(INDEX('3 - Land Summary'!$B$21:$B$120,(MATCH('4 - Species Breakdown'!$V537,'3 - Land Summary'!$C$21:$C$120,0))),\"\")","v":""},null,null,{"$f":"IF(OR(COUNTIF('Look Up Data'!$D$149:$D$203,D537),COUNTIF('Look Up Data'!$D$149:$D$203,AE537)),\"YES\",\"NO\")","v":"NO"},null,null,{"$f":"IFERROR(INDEX('3 - Land Summary'!$G$21:$G$120,(MATCH(C537,'3 - Land Summary'!$C$21:$C$120,0))),\"\")","v":""},{"$f":"IFERROR(INDEX('3 - Land Summary'!$I$21:$I$120,(MATCH(C537,'3 - Land Summary'!$C$21:$C$120,0))),\"\")","v":""},"","",null,null,null,{"$f":"IFERROR(VLOOKUP(D537,'Species List'!$D$10:$E$46,2,FALSE)*J537,\"\")","v":""},{"$f":"IFERROR(VLOOKUP(D537,'Species List'!$D$51:$E$89,2,FALSE)*J537,\"\")","v":""},{"$f":"IFERROR(VLOOKUP(D537,'Species List'!$D$95:$E$102,2,FALSE)*J537,\"\")","v":""},{"$f":"IFERROR(VLOOKUP(D537,'Species List'!$I$10:$J$11,2,FALSE)*J537,\"\")","v":""},{"$f":"IFERROR(VLOOKUP(D537,'Species List'!$I$16:$J$61,2,FALSE)*J537,\"\")","v":""},{"$f":"IFERROR(VLOOKUP(D537,'Species List'!$I$66:$J$66,2,FALSE)*J537,\"\")","v":""},{"$f":"IFERROR(VLOOKUP(D537,'Species List'!$I$71:$J$82,2,FALSE)*J537,\"\")","v":""},0,null,null,null,null,null,null,{"$f":"IFERROR(INDEX('3 - Land Summary'!$B$21:$B$120,(MATCH(AD537,'3 - Land Summary'!$C$21:$C$120,0))),\"\")","v":""}]
[null,{"$f":"IFERROR(INDEX('3 - Land Summary'!$B$21:$B$120,(MATCH('4 - Species Breakdown'!$V538,'3 - Land Summary'!$C$21:$C$120,0))),\"\")","v":""},null,null,{"$f":"IF(OR(COUNTIF('Look Up Data'!$D$149:$D$203,D538),COUNTIF('Look Up Data'!$D$149:$D$203,AE538)),\"YES\",\"NO\")","v":"NO"},null,null,{"$f":"IFERROR(INDEX('3 - Land Summary'!$G$21:$G$120,(MATCH(C538,'3 - Land Summary'!$C$21:$C$120,0))),\"\")","v":""},{"$f":"IFERROR(INDEX('3 - Land Summary'!$I$21:$I$120,(MATCH(C538,'3 - Land Summary'!$C$21:$C$120,0))),\"\")","v":""},"","",null,null,null,{"$f":"IFERROR(VLOOKUP(D538,'Species List'!$D$10:$E$46,2,FALSE)*J538,\"\")","v":""},{"$f":"IFERROR(VLOOKUP(D538,'Species List'!$D$51:$E$89,2,FALSE)*J538,\"\")","v":""},{"$f":"IFERROR(VLOOKUP(D538,'Species List'!$D$95:$E$102,2,FALSE)*J538,\"\")","v":""},{"$f":"IFERROR(VLOOKUP(D538,'Species List'!$I$10:$J$11,2,FALSE)*J538,\"\")","v":""},{"$f":"IFERROR(VLOOKUP(D538,'Species List'!$I$16:$J$61,2,FALSE)*J538,\"\")","v":""},{"$f":"IFERROR(VLOOKUP(D538,'Species List'!$I$66:$J$66,2,FALSE)*J538,\"\")","v":""},{"$f":"IFERROR(VLOOKUP(D538,'Species List'!$I$71:$J$82,2,FALSE)*J538,\"\")","v":""},0,null,null,null,null,null,null,{"$f":"IFERROR(INDEX('3 - Land Summary'!$B$21:$B$120,(MATCH(AD538,'3 - Land Summary'!$C$21:$C$120,0))),\"\")","v":""}]
[null,{"$f":"IFERROR(INDEX('3 - Land Summary'!$B$21:$B$120,(MATCH('4 - Species Breakdown'!$V539,'3 - Land Summary'!$C$21:$C$120,0))),\"\")","v":""},null,null,{"$f":"IF(OR(COUNTIF('Look Up Data'!$D$149:$D$203,D539),COUNTIF('Look Up Data'!$D$149:$D$203,AE539)),\"YES\",\"NO\")","v":"NO"},null,null,{"$f":"IFERROR(INDEX('3 - Land Summary'!$G$21:$G$120,(MATCH(C539,'3 - Land Summary'!$C$21:$C$120,0))),\"\")","v":""},{"$f":"IFERROR(INDEX('3 - Land Summary'!$I$21:$I$120,(MATCH(C539,'3 - Land Summary'!$C$21:$C$120,0))),\"\")","v":""},"","",null,null,null,{"$f":"IFERROR(VLOOKUP(D539,'Species List'!$D$10:$E$46,2,FALSE)*J539,\"\")","v":""},{"$f":"IFERROR(VLOOKUP(D539,'Species List'!$D$51:$E$89,2,FALSE)*J539,\"\")","v":""},{"$f":"IFERROR(VLOOKUP(D539,'Species List'!$D$95:$E$102,2,FALSE)*J539,\"\")","v":""},{"$f":"IFERROR(VLOOKUP(D539,'Species List'!$I$10:$J$11,2,FALSE)*J539,\"\")","v":""},{"$f":"IFERROR(VLOOKUP(D539,'Species List'!$I$16:$J$61,2,FALSE)*J539,\"\")","v":""},{"$f":"IFERROR(VLOOKUP(D539,'Species List'!$I$66:$J$66,2,FALSE)*J539,\"\")","v":""},{"$f":"IFERROR(VLOOKUP(D539,'Species List'!$I$71:$J$82,2,FALSE)*J539,\"\")","v":""},0,null,null,null,null,null,null,{"$f":"IFERROR(INDEX('3 - Land Summary'!$B$21:$B$120,(MATCH(AD539,'3 - Land Summary'!$C$21:$C$120,0))),\"\")","v":""}]
[null,{"$f":"IFERROR(INDEX('3 - Land Summary'!$B$21:$B$120,(MATCH('4 - Species Breakdown'!$V540,'3 - Land Summary'!$C$21:$C$120,0))),\"\")","v":""},null,null,{"$f":"IF(OR(COUNTIF('Look Up Data'!$D$149:$D$203,D540),COUNTIF('Look Up Data'!$D$149:$D$203,AE540)),\"YES\",\"NO\")","v":"NO"},null,null,{"$f":"IFERROR(INDEX('3 - Land Summary'!$G$21:$G$120,(MATCH(C540,'3 - Land Summary'!$C$21:$C$120,0))),\"\")","v":""},{"$f":"IFERROR(INDEX('3 - Land Summary'!$I$21:$I$120,(MATCH(C540,'3 - Land Summary'!$C$21:$C$120,0))),\"\")","v":""},"","",null,null,null,{"$f":"IFERROR(VLOOKUP(D540,'Species List'!$D$10:$E$46,2,FALSE)*J540,\"\")","v":""},{"$f":"IFERROR(VLOOKUP(D540,'Species List'!$D$51:$E$89,2,FALSE)*J540,\"\")","v":""},{"$f":"IFERROR(VLOOKUP(D540,'Species List'!$D$95:$E$102,2,FALSE)*J540,\"\")","v":""},{"$f":"IFERROR(VLOOKUP(D540,'Species List'!$I$10:$J$11,2,FALSE)*J540,\"\")","v":""},{"$f":"IFERROR(VLOOKUP(D540,'Species List'!$I$16:$J$61,2,FALSE)*J540,\"\")","v":""},{"$f":"IFERROR(VLOOKUP(D540,'Species List'!$I$66:$J$66,2,FALSE)*J540,\"\")","v":""},{"$f":"IFERROR(VLOOKUP(D540,'Species List'!$I$71:$J$82,2,FALSE)*J540,\"\")","v":""},0,null,null,null,null,null,null,{"$f":"IFERROR(INDEX('3 - Land Summary'!$B$21:$B$120,(MATCH(AD540,'3 - Land Summary'!$C$21:$C$120,0))),\"\")","v":""}]
[null,{"$f":"IFERROR(INDEX('3 - Land Summary'!$B$21:$B$120,(MATCH('4 - Species Breakdown'!$V541,'3 - Land Summary'!$C$21:$C$120,0))),\"\")","v":""},null,null,{"$f":"IF(OR(COUNTIF('Look Up Data'!$D$149:$D$203,D541),COUNTIF('Look Up Data'!$D$149:$D$203,AE541)),\"YES\",\"NO\")","v":"NO"},null,null,{"$f":"IFERROR(INDEX('3 - Land Summary'!$G$21:$G$120,(MATCH(C541,'3 - Land Summary'!$C$21:$C$120,0))),\"\")","v":""},{"$f":"IFERROR(INDEX('3 - Land Summary'!$I$21:$I$120,(MATCH(C541,'3 - Land Summary'!$C$21:$C$120,0))),\"\")","v":""},"","",null,null,null,{"$f":"IFERROR(VLOOKUP(D541,'Species List'!$D$10:$E$46,2,FALSE)*J541,\"\")","v":""},{"$f":"IFERROR(VLOOKUP(D541,'Species List'!$D$51:$E$89,2,FALSE)*J541,\"\")","v":""},{"$f":"IFERROR(VLOOKUP(D541,'Species List'!$D$95:$E$102,2,FALSE)*J541,\"\")","v":""},{"$f":"IFERROR(VLOOKUP(D541,'Species List'!$I$10:$J$11,2,FALSE)*J541,\"\")","v":""},{"$f":"IFERROR(VLOOKUP(D541,'Species List'!$I$16:$J$61,2,FALSE)*J541,\"\")","v":""},{"$f":"IFERROR(VLOOKUP(D541,'Species List'!$I$66:$J$66,2,FALSE)*J541,\"\")","v":""},{"$f":"IFERROR(VLOOKUP(D541,'Species List'!$I$71:$J$82,2,FALSE)*J541,\"\")","v":""},0,null,null,null,null,null,null,{"$f":"IFERROR(INDEX('3 - Land Summary'!$B$21:$B$120,(MATCH(AD541,'3 - Land Summary'!$C$21:$C$120,0))),\"\")","v":""}]
[null,{"$f":"IFERROR(INDEX('3 - Land Summary'!$B$21:$B$120,(MATCH('4 - Species Breakdown'!$V542,'3 - Land Summary'!$C$21:$C$120,0))),\"\")","v":""},null,null,{"$f":"IF(OR(COUNTIF('Look Up Data'!$D$149:$D$203,D542),COUNTIF('Look Up Data'!$D$149:$D$203,AE542)),\"YES\",\"NO\")","v":"NO"},null,null,{"$f":"IFERROR(INDEX('3 - Land Summary'!$G$21:$G$120,(MATCH(C542,'3 - Land Summary'!$C$21:$C$120,0))),\"\")","v":""},{"$f":"IFERROR(INDEX('3 - Land Summary'!$I$21:$I$120,(MATCH(C542,'3 - Land Summary'!$C$21:$C$120,0))),\"\")","v":""},"","",null,null,null,{"$f":"IFERROR(VLOOKUP(D542,'Species List'!$D$10:$E$46,2,FALSE)*J542,\"\")","v":""},{"$f":"IFERROR(VLOOKUP(D542,'Species List'!$D$51:$E$89,2,FALSE)*J542,\"\")","v":""},{"$f":"IFERROR(VLOOKUP(D542,'Species List'!$D$95:$E$102,2,FALSE)*J542,\"\")","v":""},{"$f":"IFERROR(VLOOKUP(D542,'Species List'!$I$10:$J$11,2,FALSE)*J542,\"\")","v":""},{"$f":"IFERROR(VLOOKUP(D542,'Species List'!$I$16:$J$61,2,FALSE)*J542,\"\")","v":""},{"$f":"IFERROR(VLOOKUP(D542,'Species List'!$I$66:$J$66,2,FALSE)*J542,\"\")","v":""},{"$f":"IFERROR(VLOOKUP(D542,'Species List'!$I$71:$J$82,2,FALSE)*J542,\"\")","v":""},0,null,null,null,null,null,null,{"$f":"IFERROR(INDEX('3 - Land Summary'!$B$21:$B$120,(MATCH(AD542,'3 - Land Summary'!$C$21:$C$120,0))),\"\")","v":""}]
[null,{"$f":"IFERROR(INDEX('3 - Land Summary'!$B$21:$B$120,(MATCH('4 - Species Breakdown'!$V543,'3 - Land Summary'!$C$21:$C$120,0))),\"\")","v":""},null,null,{"$f":"IF(OR(COUNTIF('Look Up Data'!$D$149:$D$203,D543),COUNTIF('Look Up Data'!$D$149:$D$203,AE543)),\"YES\",\"NO\")","v":"NO"},null,null,{"$f":"IFERROR(INDEX('3 - Land Summary'!$G$21:$G$120,(MATCH(C543,'3 - Land Summary'!$C$21:$C$120,0))),\"\")","v":""},{"$f":"IFERROR(INDEX('3 - Land Summary'!$I$21:$I$120,(MATCH(C543,'3 - Land Summary'!$C$21:$C$120,0))),\"\")","v":""},{"$f":"IFERROR(((H543-I543)*F543)/100,\"\")","v":""},"",null,null,null,{"$f":"IFERROR(VLOOKUP(D543,'Species List'!$D$10:$E$46,2,FALSE)*J543,\"\")","v":""},{"$f":"IFERROR(VLOOKUP(D543,'Species List'!$D$51:$E$89,2,FALSE)*J543,\"\")","v":""},{"$f":"IFERROR(VLOOKUP(D543,'Species List'!$D$95:$E$102,2,FALSE)*J543,\"\")","v":""},{"$f":"IFERROR(VLOOKUP(D543,'Species List'!$I$10:$J$11,2,FALSE)*J543,\"\")","v":""},{"$f":"IFERROR(VLOOKUP(D543,'Species List'!$I$16:$J$61,2,FALSE)*J543,\"\")","v":""},{"$f":"IFERROR(VLOOKUP(D543,'Species List'!$I$66:$J$66,2,FALSE)*J543,\"\")","v":""},{"$f":"IFERROR(VLOOKUP(D543,'Species List'!$I$71:$J$82,2,FALSE)*J543,\"\")","v":""},{"$f":"C543","v":0},null,null,null,null,null,null,{"$f":"IFERROR(INDEX('3 - Land Summary'!$B$21:$B$120,(MATCH(AD543,'3 - Land Summary'!$C$21:$C$120,0))),\"\")","v":""}]
[null,{"$f":"IFERROR(INDEX('3 - Land Summary'!$B$21:$B$120,(MATCH('4 - Species Breakdown'!$V544,'3 - Land Summary'!$C$21:$C$120,0))),\"\")","v":""},null,null,{"$f":"IF(OR(COUNTIF('Look Up Data'!$D$149:$D$203,D544),COUNTIF('Look Up Data'!$D$149:$D$203,AE544)),\"YES\",\"NO\")","v":"NO"},null,null,{"$f":"IFERROR(INDEX('3 - Land Summary'!$G$21:$G$120,(MATCH(C544,'3 - Land Summary'!$C$21:$C$120,0))),\"\")","v":""},{"$f":"IFERROR(INDEX('3 - Land Summary'!$I$21:$I$120,(MATCH(C544,'3 - Land Summary'!$C$21:$C$120,0))),\"\")","v":""},"",{"$f":"IFERROR(ROUND(J544*G544,0),\"\")","v":""},null,null,null,{"$f":"IFERROR(VLOOKUP(D544,'Species List'!$D$10:$E$46,2,FALSE)*J544,\"\")","v":""},{"$f":"IFERROR(VLOOKUP(D544,'Species List'!$D$51:$E$89,2,FALSE)*J544,\"\")","v":""},{"$f":"IFERROR(VLOOKUP(D544,'Species List'!$D$95:$E$102,2,FALSE)*J544,\"\")","v":""},{"$f":"IFERROR(VLOOKUP(D544,'Species List'!$I$10:$J$11,2,FALSE)*J544,\"\")","v":""},{"$f":"IFERROR(VLOOKUP(D544,'Species List'!$I$16:$J$61,2,FALSE)*J544,\"\")","v":""},{"$f":"IFERROR(VLOOKUP(D544,'Species List'!$I$66:$J$66,2,FALSE)*J544,\"\")","v":""},{"$f":"IFERROR(VLOOKUP(D544,'Species List'!$I$71:$J$82,2,FALSE)*J544,\"\")","v":""},0,null,null,null,null,null,null,{"$f":"IFERROR(INDEX('3 - Land Summary'!$B$21:$B$120,(MATCH(AD544,'3 - Land Summary'!$C$21:$C$120,0))),\"\")","v":""}]
[null,{"$f":"IFERROR(INDEX('3 - Land Summary'!$B$21:$B$120,(MATCH('4 - Species Breakdown'!$V545,'3 - Land Summary'!$C$21:$C$120,0))),\"\")","v":""},null,null,{"$f":"IF(OR(COUNTIF('Look Up Data'!$D$149:$D$203,D545),COUNTIF('Look Up Data'!$D$149:$D$203,AE545)),\"YES\",\"NO\")","v":"NO"},null,null,{"$f":"IFERROR(INDEX('3 - Land Summary'!$G$21:$G$120,(MATCH(C545,'3 - Land Summary'!$C$21:$C$120,0))),\"\")","v":""},{"$f":"IFERROR(INDEX('3 - Land Summary'!$I$21:$I$120,(MATCH(C545,'3 - Land Summary'!$C$21:$C$120,0))),\"\")","v":""},"","",null,null,null,{"$f":"IFERROR(VLOOKUP(D545,'Species List'!$D$10:$E$46,2,FALSE)*J545,\"\")","v":""},{"$f":"IFERROR(VLOOKUP(D545,'Species List'!$D$51:$E$89,2,FALSE)*J545,\"\")","v":""},{"$f":"IFERROR(VLOOKUP(D545,'Species List'!$D$95:$E$102,2,FALSE)*J545,\"\")","v":""},{"$f":"IFERROR(VLOOKUP(D545,'Species List'!$I$10:$J$11,2,FALSE)*J545,\"\")","v":""},{"$f":"IFERROR(VLOOKUP(D545,'Species List'!$I$16:$J$61,2,FALSE)*J545,\"\")","v":""},{"$f":"IFERROR(VLOOKUP(D545,'Species List'!$I$66:$J$66,2,FALSE)*J545,\"\")","v":""},{"$f":"IFERROR(VLOOKUP(D545,'Species List'!$I$71:$J$82,2,FALSE)*J545,\"\")","v":""},0,null,null,null,null,null,null,{"$f":"IFERROR(INDEX('3 - Land Summary'!$B$21:$B$120,(MATCH(AD545,'3 - Land Summary'!$C$21:$C$120,0))),\"\")","v":""}]
[null,{"$f":"IFERROR(INDEX('3 - Land Summary'!$B$21:$B$120,(MATCH('4 - Species Breakdown'!$V546,'3 - Land Summary'!$C$21:$C$120,0))),\"\")","v":""},null,null,{"$f":"IF(OR(COUNTIF('Look Up Data'!$D$149:$D$203,D546),COUNTIF('Look Up Data'!$D$149:$D$203,AE546)),\"YES\",\"NO\")","v":"NO"},null,null,{"$f":"IFERROR(INDEX('3 - Land Summary'!$G$21:$G$120,(MATCH(C546,'3 - Land Summary'!$C$21:$C$120,0))),\"\")","v":""},{"$f":"IFERROR(INDEX('3 - Land Summary'!$I$21:$I$120,(MATCH(C546,'3 - Land Summary'!$C$21:$C$120,0))),\"\")","v":""},"","",null,null,null,{"$f":"IFERROR(VLOOKUP(D546,'Species List'!$D$10:$E$46,2,FALSE)*J546,\"\")","v":""},{"$f":"IFERROR(VLOOKUP(D546,'Species List'!$D$51:$E$89,2,FALSE)*J546,\"\")","v":""},{"$f":"IFERROR(VLOOKUP(D546,'Species List'!$D$95:$E$102,2,FALSE)*J546,\"\")","v":""},{"$f":"IFERROR(VLOOKUP(D546,'Species List'!$I$10:$J$11,2,FALSE)*J546,\"\")","v":""},{"$f":"IFERROR(VLOOKUP(D546,'Species List'!$I$16:$J$61,2,FALSE)*J546,\"\")","v":""},{"$f":"IFERROR(VLOOKUP(D546,'Species List'!$I$66:$J$66,2,FALSE)*J546,\"\")","v":""},{"$f":"IFERROR(VLOOKUP(D546,'Species List'!$I$71:$J$82,2,FALSE)*J546,\"\")","v":""},0,null,null,null,null,null,null,{"$f":"IFERROR(INDEX('3 - Land Summary'!$B$21:$B$120,(MATCH(AD546,'3 - Land Summary'!$C$21:$C$120,0))),\"\")","v":""}]
[null,{"$f":"IFERROR(INDEX('3 - Land Summary'!$B$21:$B$120,(MATCH('4 - Species Breakdown'!$V547,'3 - Land Summary'!$C$21:$C$120,0))),\"\")","v":""},null,null,{"$f":"IF(OR(COUNTIF('Look Up Data'!$D$149:$D$203,D547),COUNTIF('Look Up Data'!$D$149:$D$203,AE547)),\"YES\",\"NO\")","v":"NO"},null,null,{"$f":"IFERROR(INDEX('3 - Land Summary'!$G$21:$G$120,(MATCH(C547,'3 - Land Summary'!$C$21:$C$120,0))),\"\")","v":""},{"$f":"IFERROR(INDEX('3 - Land Summary'!$I$21:$I$120,(MATCH(C547,'3 - Land Summary'!$C$21:$C$120,0))),\"\")","v":""},"","",null,null,null,{"$f":"IFERROR(VLOOKUP(D547,'Species List'!$D$10:$E$46,2,FALSE)*J547,\"\")","v":""},{"$f":"IFERROR(VLOOKUP(D547,'Species List'!$D$51:$E$89,2,FALSE)*J547,\"\")","v":""},{"$f":"IFERROR(VLOOKUP(D547,'Species List'!$D$95:$E$102,2,FALSE)*J547,\"\")","v":""},{"$f":"IFERROR(VLOOKUP(D547,'Species List'!$I$10:$J$11,2,FALSE)*J547,\"\")","v":""},{"$f":"IFERROR(VLOOKUP(D547,'Species List'!$I$16:$J$61,2,FALSE)*J547,\"\")","v":""},{"$f":"IFERROR(VLOOKUP(D547,'Species List'!$I$66:$J$66,2,FALSE)*J547,\"\")","v":""},{"$f":"IFERROR(VLOOKUP(D547,'Species List'!$I$71:$J$82,2,FALSE)*J547,\"\")","v":""},0,null,null,null,null,null,null,{"$f":"IFERROR(INDEX('3 - Land Summary'!$B$21:$B$120,(MATCH(AD547,'3 - Land Summary'!$C$21:$C$120,0))),\"\")","v":""}]
[null,{"$f":"IFERROR(INDEX('3 - Land Summary'!$B$21:$B$120,(MATCH('4 - Species Breakdown'!$V548,'3 - Land Summary'!$C$21:$C$120,0))),\"\")","v":""},null,null,{"$f":"IF(OR(COUNTIF('Look Up Data'!$D$149:$D$203,D548),COUNTIF('Look Up Data'!$D$149:$D$203,AE548)),\"YES\",\"NO\")","v":"NO"},null,null,{"$f":"IFERROR(INDEX('3 - Land Summary'!$G$21:$G$120,(MATCH(C548,'3 - Land Summary'!$C$21:$C$120,0))),\"\")","v":""},{"$f":"IFERROR(INDEX('3 - Land Summary'!$I$21:$I$120,(MATCH(C548,'3 - Land Summary'!$C$21:$C$120,0))),\"\")","v":""},"","",null,null,null,{"$f":"IFERROR(VLOOKUP(D548,'Species List'!$D$10:$E$46,2,FALSE)*J548,\"\")","v":""},{"$f":"IFERROR(VLOOKUP(D548,'Species List'!$D$51:$E$89,2,FALSE)*J548,\"\")","v":""},{"$f":"IFERROR(VLOOKUP(D548,'Species List'!$D$95:$E$102,2,FALSE)*J548,\"\")","v":""},{"$f":"IFERROR(VLOOKUP(D548,'Species List'!$I$10:$J$11,2,FALSE)*J548,\"\")","v":""},{"$f":"IFERROR(VLOOKUP(D548,'Species List'!$I$16:$J$61,2,FALSE)*J548,\"\")","v":""},{"$f":"IFERROR(VLOOKUP(D548,'Species List'!$I$66:$J$66,2,FALSE)*J548,\"\")","v":""},{"$f":"IFERROR(VLOOKUP(D548,'Species List'!$I$71:$J$82,2,FALSE)*J548,\"\")","v":""},0,null,null,null,null,null,null,{"$f":"IFERROR(INDEX('3 - Land Summary'!$B$21:$B$120,(MATCH(AD548,'3 - Land Summary'!$C$21:$C$120,0))),\"\")","v":""}]
[null,{"$f":"IFERROR(INDEX('3 - Land Summary'!$B$21:$B$120,(MATCH('4 - Species Breakdown'!$V549,'3 - Land Summary'!$C$21:$C$120,0))),\"\")","v":""},null,null,{"$f":"IF(OR(COUNTIF('Look Up Data'!$D$149:$D$203,D549),COUNTIF('Look Up Data'!$D$149:$D$203,AE549)),\"YES\",\"NO\")","v":"NO"},null,null,{"$f":"IFERROR(INDEX('3 - Land Summary'!$G$21:$G$120,(MATCH(C549,'3 - Land Summary'!$C$21:$C$120,0))),\"\")","v":""},{"$f":"IFERROR(INDEX('3 - Land Summary'!$I$21:$I$120,(MATCH(C549,'3 - Land Summary'!$C$21:$C$120,0))),\"\")","v":""},"","",null,null,null,{"$f":"IFERROR(VLOOKUP(D549,'Species List'!$D$10:$E$46,2,FALSE)*J549,\"\")","v":""},{"$f":"IFERROR(VLOOKUP(D549,'Species List'!$D$51:$E$89,2,FALSE)*J549,\"\")","v":""},{"$f":"IFERROR(VLOOKUP(D549,'Species List'!$D$95:$E$102,2,FALSE)*J549,\"\")","v":""},{"$f":"IFERROR(VLOOKUP(D549,'Species List'!$I$10:$J$11,2,FALSE)*J549,\"\")","v":""},{"$f":"IFERROR(VLOOKUP(D549,'Species List'!$I$16:$J$61,2,FALSE)*J549,\"\")","v":""},{"$f":"IFERROR(VLOOKUP(D549,'Species List'!$I$66:$J$66,2,FALSE)*J549,\"\")","v":""},{"$f":"IFERROR(VLOOKUP(D549,'Species List'!$I$71:$J$82,2,FALSE)*J549,\"\")","v":""},0,null,null,null,null,null,null,{"$f":"IFERROR(INDEX('3 - Land Summary'!$B$21:$B$120,(MATCH(AD549,'3 - Land Summary'!$C$21:$C$120,0))),\"\")","v":""}]
[null,{"$f":"IFERROR(INDEX('3 - Land Summary'!$B$21:$B$120,(MATCH('4 - Species Breakdown'!$V550,'3 - Land Summary'!$C$21:$C$120,0))),\"\")","v":""},null,null,{"$f":"IF(OR(COUNTIF('Look Up Data'!$D$149:$D$203,D550),COUNTIF('Look Up Data'!$D$149:$D$203,AE550)),\"YES\",\"NO\")","v":"NO"},null,null,{"$f":"IFERROR(INDEX('3 - Land Summary'!$G$21:$G$120,(MATCH(C550,'3 - Land Summary'!$C$21:$C$120,0))),\"\")","v":""},{"$f":"IFERROR(INDEX('3 - Land Summary'!$I$21:$I$120,(MATCH(C550,'3 - Land Summary'!$C$21:$C$120,0))),\"\")","v":""},"","",null,null,null,{"$f":"IFERROR(VLOOKUP(D550,'Species List'!$D$10:$E$46,2,FALSE)*J550,\"\")","v":""},{"$f":"IFERROR(VLOOKUP(D550,'Species List'!$D$51:$E$89,2,FALSE)*J550,\"\")","v":""},{"$f":"IFERROR(VLOOKUP(D550,'Species List'!$D$95:$E$102,2,FALSE)*J550,\"\")","v":""},{"$f":"IFERROR(VLOOKUP(D550,'Species List'!$I$10:$J$11,2,FALSE)*J550,\"\")","v":""},{"$f":"IFERROR(VLOOKUP(D550,'Species List'!$I$16:$J$61,2,FALSE)*J550,\"\")","v":""},{"$f":"IFERROR(VLOOKUP(D550,'Species List'!$I$66:$J$66,2,FALSE)*J550,\"\")","v":""},{"$f":"IFERROR(VLOOKUP(D550,'Species List'!$I$71:$J$82,2,FALSE)*J550,\"\")","v":""},0,null,null,null,null,null,null,{"$f":"IFERROR(INDEX('3 - Land Summary'!$B$21:$B$120,(MATCH(AD550,'3 - Land Summary'!$C$21:$C$120,0))),\"\")","v":""}]
[null,{"$f":"IFERROR(INDEX('3 - Land Summary'!$B$21:$B$120,(MATCH('4 - Species Breakdown'!$V551,'3 - Land Summary'!$C$21:$C$120,0))),\"\")","v":""},null,null,{"$f":"IF(OR(COUNTIF('Look Up Data'!$D$149:$D$203,D551),COUNTIF('Look Up Data'!$D$149:$D$203,AE551)),\"YES\",\"NO\")","v":"NO"},null,null,{"$f":"IFERROR(INDEX('3 - Land Summary'!$G$21:$G$120,(MATCH(C551,'3 - Land Summary'!$C$21:$C$120,0))),\"\")","v":""},{"$f":"IFERROR(INDEX('3 - Land Summary'!$I$21:$I$120,(MATCH(C551,'3 - Land Summary'!$C$21:$C$120,0))),\"\")","v":""},"","",null,null,null,{"$f":"IFERROR(VLOOKUP(D551,'Species List'!$D$10:$E$46,2,FALSE)*J551,\"\")","v":""},{"$f":"IFERROR(VLOOKUP(D551,'Species List'!$D$51:$E$89,2,FALSE)*J551,\"\")","v":""},{"$f":"IFERROR(VLOOKUP(D551,'Species List'!$D$95:$E$102,2,FALSE)*J551,\"\")","v":""},{"$f":"IFERROR(VLOOKUP(D551,'Species List'!$I$10:$J$11,2,FALSE)*J551,\"\")","v":""},{"$f":"IFERROR(VLOOKUP(D551,'Species List'!$I$16:$J$61,2,FALSE)*J551,\"\")","v":""},{"$f":"IFERROR(VLOOKUP(D551,'Species List'!$I$66:$J$66,2,FALSE)*J551,\"\")","v":""},{"$f":"IFERROR(VLOOKUP(D551,'Species List'!$I$71:$J$82,2,FALSE)*J551,\"\")","v":""},0,null,null,null,null,null,null,{"$f":"IFERROR(INDEX('3 - Land Summary'!$B$21:$B$120,(MATCH(AD551,'3 - Land Summary'!$C$21:$C$120,0))),\"\")","v":""}]
[null,{"$f":"IFERROR(INDEX('3 - Land Summary'!$B$21:$B$120,(MATCH('4 - Species Breakdown'!$V552,'3 - Land Summary'!$C$21:$C$120,0))),\"\")","v":""},null,null,{"$f":"IF(OR(COUNTIF('Look Up Data'!$D$149:$D$203,D552),COUNTIF('Look Up Data'!$D$149:$D$203,AE552)),\"YES\",\"NO\")","v":"NO"},null,null,{"$f":"IFERROR(INDEX('3 - Land Summary'!$G$21:$G$120,(MATCH(C552,'3 - Land Summary'!$C$21:$C$120,0))),\"\")","v":""},{"$f":"IFERROR(INDEX('3 - Land Summary'!$I$21:$I$120,(MATCH(C552,'3 - Land Summary'!$C$21:$C$120,0))),\"\")","v":""},"","",null,null,null,{"$f":"IFERROR(VLOOKUP(D552,'Species List'!$D$10:$E$46,2,FALSE)*J552,\"\")","v":""},{"$f":"IFERROR(VLOOKUP(D552,'Species List'!$D$51:$E$89,2,FALSE)*J552,\"\")","v":""},{"$f":"IFERROR(VLOOKUP(D552,'Species List'!$D$95:$E$102,2,FALSE)*J552,\"\")","v":""},{"$f":"IFERROR(VLOOKUP(D552,'Species List'!$I$10:$J$11,2,FALSE)*J552,\"\")","v":""},{"$f":"IFERROR(VLOOKUP(D552,'Species List'!$I$16:$J$61,2,FALSE)*J552,\"\")","v":""},{"$f":"IFERROR(VLOOKUP(D552,'Species List'!$I$66:$J$66,2,FALSE)*J552,\"\")","v":""},{"$f":"IFERROR(VLOOKUP(D552,'Species List'!$I$71:$J$82,2,FALSE)*J552,\"\")","v":""},0,null,null,null,null,null,null,{"$f":"IFERROR(INDEX('3 - Land Summary'!$B$21:$B$120,(MATCH(AD552,'3 - Land Summary'!$C$21:$C$120,0))),\"\")","v":""}]
[null,{"$f":"IFERROR(INDEX('3 - Land Summary'!$B$21:$B$120,(MATCH('4 - Species Breakdown'!$V553,'3 - Land Summary'!$C$21:$C$120,0))),\"\")","v":""},null,null,{"$f":"IF(OR(COUNTIF('Look Up Data'!$D$149:$D$203,D553),COUNTIF('Look Up Data'!$D$149:$D$203,AE553)),\"YES\",\"NO\")","v":"NO"},null,null,{"$f":"IFERROR(INDEX('3 - Land Summary'!$G$21:$G$120,(MATCH(C553,'3 - Land Summary'!$C$21:$C$120,0))),\"\")","v":""},{"$f":"IFERROR(INDEX('3 - Land Summary'!$I$21:$I$120,(MATCH(C553,'3 - Land Summary'!$C$21:$C$120,0))),\"\")","v":""},"","",null,null,null,{"$f":"IFERROR(VLOOKUP(D553,'Species List'!$D$10:$E$46,2,FALSE)*J553,\"\")","v":""},{"$f":"IFERROR(VLOOKUP(D553,'Species List'!$D$51:$E$89,2,FALSE)*J553,\"\")","v":""},{"$f":"IFERROR(VLOOKUP(D553,'Species List'!$D$95:$E$102,2,FALSE)*J553,\"\")","v":""},{"$f":"IFERROR(VLOOKUP(D553,'Species List'!$I$10:$J$11,2,FALSE)*J553,\"\")","v":""},{"$f":"IFERROR(VLOOKUP(D553,'Species List'!$I$16:$J$61,2,FALSE)*J553,\"\")","v":""},{"$f":"IFERROR(VLOOKUP(D553,'Species List'!$I$66:$J$66,2,FALSE)*J553,\"\")","v":""},{"$f":"IFERROR(VLOOKUP(D553,'Species List'!$I$71:$J$82,2,FALSE)*J553,\"\")","v":""},0,null,null,null,null,null,null,{"$f":"IFERROR(INDEX('3 - Land Summary'!$B$21:$B$120,(MATCH(AD553,'3 - Land Summary'!$C$21:$C$120,0))),\"\")","v":""}]
[null,{"$f":"IFERROR(INDEX('3 - Land Summary'!$B$21:$B$120,(MATCH('4 - Species Breakdown'!$V554,'3 - Land Summary'!$C$21:$C$120,0))),\"\")","v":""},null,null,{"$f":"IF(OR(COUNTIF('Look Up Data'!$D$149:$D$203,D554),COUNTIF('Look Up Data'!$D$149:$D$203,AE554)),\"YES\",\"NO\")","v":"NO"},null,null,{"$f":"IFERROR(INDEX('3 - Land Summary'!$G$21:$G$120,(MATCH(C554,'3 - Land Summary'!$C$21:$C$120,0))),\"\")","v":""},{"$f":"IFERROR(INDEX('3 - Land Summary'!$I$21:$I$120,(MATCH(C554,'3 - Land Summary'!$C$21:$C$120,0))),\"\")","v":""},"","",null,null,null,{"$f":"IFERROR(VLOOKUP(D554,'Species List'!$D$10:$E$46,2,FALSE)*J554,\"\")","v":""},{"$f":"IFERROR(VLOOKUP(D554,'Species List'!$D$51:$E$89,2,FALSE)*J554,\"\")","v":""},{"$f":"IFERROR(VLOOKUP(D554,'Species List'!$D$95:$E$102,2,FALSE)*J554,\"\")","v":""},{"$f":"IFERROR(VLOOKUP(D554,'Species List'!$I$10:$J$11,2,FALSE)*J554,\"\")","v":""},{"$f":"IFERROR(VLOOKUP(D554,'Species List'!$I$16:$J$61,2,FALSE)*J554,\"\")","v":""},{"$f":"IFERROR(VLOOKUP(D554,'Species List'!$I$66:$J$66,2,FALSE)*J554,\"\")","v":""},{"$f":"IFERROR(VLOOKUP(D554,'Species List'!$I$71:$J$82,2,FALSE)*J554,\"\")","v":""},0,null,null,null,null,null,null,{"$f":"IFERROR(INDEX('3 - Land Summary'!$B$21:$B$120,(MATCH(AD554,'3 - Land Summary'!$C$21:$C$120,0))),\"\")","v":""}]
[null,{"$f":"IFERROR(INDEX('3 - Land Summary'!$B$21:$B$120,(MATCH('4 - Species Breakdown'!$V555,'3 - Land Summary'!$C$21:$C$120,0))),\"\")","v":""},null,null,{"$f":"IF(OR(COUNTIF('Look Up Data'!$D$149:$D$203,D555),COUNTIF('Look Up Data'!$D$149:$D$203,AE555)),\"YES\",\"NO\")","v":"NO"},null,null,{"$f":"IFERROR(INDEX('3 - Land Summary'!$G$21:$G$120,(MATCH(C555,'3 - Land Summary'!$C$21:$C$120,0))),\"\")","v":""},{"$f":"IFERROR(INDEX('3 - Land Summary'!$I$21:$I$120,(MATCH(C555,'3 - Land Summary'!$C$21:$C$120,0))),\"\")","v":""},"","",null,null,null,{"$f":"IFERROR(VLOOKUP(D555,'Species List'!$D$10:$E$46,2,FALSE)*J555,\"\")","v":""},{"$f":"IFERROR(VLOOKUP(D555,'Species List'!$D$51:$E$89,2,FALSE)*J555,\"\")","v":""},{"$f":"IFERROR(VLOOKUP(D555,'Species List'!$D$95:$E$102,2,FALSE)*J555,\"\")","v":""},{"$f":"IFERROR(VLOOKUP(D555,'Species List'!$I$10:$J$11,2,FALSE)*J555,\"\")","v":""},{"$f":"IFERROR(VLOOKUP(D555,'Species List'!$I$16:$J$61,2,FALSE)*J555,\"\")","v":""},{"$f":"IFERROR(VLOOKUP(D555,'Species List'!$I$66:$J$66,2,FALSE)*J555,\"\")","v":""},{"$f":"IFERROR(VLOOKUP(D555,'Species List'!$I$71:$J$82,2,FALSE)*J555,\"\")","v":""},0,null,null,null,null,null,null,{"$f":"IFERROR(INDEX('3 - Land Summary'!$B$21:$B$120,(MATCH(AD555,'3 - Land Summary'!$C$21:$C$120,0))),\"\")","v":""}]
[null,{"$f":"IFERROR(INDEX('3 - Land Summary'!$B$21:$B$120,(MATCH('4 - Species Breakdown'!$V556,'3 - Land Summary'!$C$21:$C$120,0))),\"\")","v":""},null,null,{"$f":"IF(OR(COUNTIF('Look Up Data'!$D$149:$D$203,D556),COUNTIF('Look Up Data'!$D$149:$D$203,AE556)),\"YES\",\"NO\")","v":"NO"},null,null,{"$f":"IFERROR(INDEX('3 - Land Summary'!$G$21:$G$120,(MATCH(C556,'3 - Land Summary'!$C$21:$C$120,0))),\"\")","v":""},{"$f":"IFERROR(INDEX('3 - Land Summary'!$I$21:$I$120,(MATCH(C556,'3 - Land Summary'!$C$21:$C$120,0))),\"\")","v":""},"","",null,null,null,{"$f":"IFERROR(VLOOKUP(D556,'Species List'!$D$10:$E$46,2,FALSE)*J556,\"\")","v":""},{"$f":"IFERROR(VLOOKUP(D556,'Species List'!$D$51:$E$89,2,FALSE)*J556,\"\")","v":""},{"$f":"IFERROR(VLOOKUP(D556,'Species List'!$D$95:$E$102,2,FALSE)*J556,\"\")","v":""},{"$f":"IFERROR(VLOOKUP(D556,'Species List'!$I$10:$J$11,2,FALSE)*J556,\"\")","v":""},{"$f":"IFERROR(VLOOKUP(D556,'Species List'!$I$16:$J$61,2,FALSE)*J556,\"\")","v":""},{"$f":"IFERROR(VLOOKUP(D556,'Species List'!$I$66:$J$66,2,FALSE)*J556,\"\")","v":""},{"$f":"IFERROR(VLOOKUP(D556,'Species List'!$I$71:$J$82,2,FALSE)*J556,\"\")","v":""},0,null,null,null,null,null,null,{"$f":"IFERROR(INDEX('3 - Land Summary'!$B$21:$B$120,(MATCH(AD556,'3 - Land Summary'!$C$21:$C$120,0))),\"\")","v":""}]
[null,{"$f":"IFERROR(INDEX('3 - Land Summary'!$B$21:$B$120,(MATCH('4 - Species Breakdown'!$V557,'3 - Land Summary'!$C$21:$C$120,0))),\"\")","v":""},null,null,{"$f":"IF(OR(COUNTIF('Look Up Data'!$D$149:$D$203,D557),COUNTIF('Look Up Data'!$D$149:$D$203,AE557)),\"YES\",\"NO\")","v":"NO"},null,null,{"$f":"IFERROR(INDEX('3 - Land Summary'!$G$21:$G$120,(MATCH(C557,'3 - Land Summary'!$C$21:$C$120,0))),\"\")","v":""},{"$f":"IFERROR(INDEX('3 - Land Summary'!$I$21:$I$120,(MATCH(C557,'3 - Land Summary'!$C$21:$C$120,0))),\"\")","v":""},"","",null,null,null,{"$f":"IFERROR(VLOOKUP(D557,'Species List'!$D$10:$E$46,2,FALSE)*J557,\"\")","v":""},{"$f":"IFERROR(VLOOKUP(D557,'Species List'!$D$51:$E$89,2,FALSE)*J557,\"\")","v":""},{"$f":"IFERROR(VLOOKUP(D557,'Species List'!$D$95:$E$102,2,FALSE)*J557,\"\")","v":""},{"$f":"IFERROR(VLOOKUP(D557,'Species List'!$I$10:$J$11,2,FALSE)*J557,\"\")","v":""},{"$f":"IFERROR(VLOOKUP(D557,'Species List'!$I$16:$J$61,2,FALSE)*J557,\"\")","v":""},{"$f":"IFERROR(VLOOKUP(D557,'Species List'!$I$66:$J$66,2,FALSE)*J557,\"\")","v":""},{"$f":"IFERROR(VLOOKUP(D557,'Species List'!$I$71:$J$82,2,FALSE)*J557,\"\")","v":""},0,null,null,null,null,null,null,{"$f":"IFERROR(INDEX('3 - Land Summary'!$B$21:$B$120,(MATCH(AD557,'3 - Land Summary'!$C$21:$C$120,0))),\"\")","v":""}]
[null,{"$f":"IFERROR(INDEX('3 - Land Summary'!$B$21:$B$120,(MATCH('4 - Species Breakdown'!$V558,'3 - Land Summary'!$C$21:$C$120,0))),\"\")","v":""},null,null,{"$f":"IF(OR(COUNTIF('Look Up Data'!$D$149:$D$203,D558),COUNTIF('Look Up Data'!$D$149:$D$203,AE558)),\"YES\",\"NO\")","v":"NO"},null,null,{"$f":"IFERROR(INDEX('3 - Land Summary'!$G$21:$G$120,(MATCH(C558,'3 - Land Summary'!$C$21:$C$120,0))),\"\")","v":""},{"$f":"IFERROR(INDEX('3 - Land Summary'!$I$21:$I$120,(MATCH(C558,'3 - Land Summary'!$C$21:$C$120,0))),\"\")","v":""},"","",null,null,null,{"$f":"IFERROR(VLOOKUP(D558,'Species List'!$D$10:$E$46,2,FALSE)*J558,\"\")","v":""},{"$f":"IFERROR(VLOOKUP(D558,'Species List'!$D$51:$E$89,2,FALSE)*J558,\"\")","v":""},{"$f":"IFERROR(VLOOKUP(D558,'Species List'!$D$95:$E$102,2,FALSE)*J558,\"\")","v":""},{"$f":"IFERROR(VLOOKUP(D558,'Species List'!$I$10:$J$11,2,FALSE)*J558,\"\")","v":""},{"$f":"IFERROR(VLOOKUP(D558,'Species List'!$I$16:$J$61,2,FALSE)*J558,\"\")","v":""},{"$f":"IFERROR(VLOOKUP(D558,'Species List'!$I$66:$J$66,2,FALSE)*J558,\"\")","v":""},{"$f":"IFERROR(VLOOKUP(D558,'Species List'!$I$71:$J$82,2,FALSE)*J558,\"\")","v":""},0,null,null,null,null,null,null,{"$f":"IFERROR(INDEX('3 - Land Summary'!$B$21:$B$120,(MATCH(AD558,'3 - Land Summary'!$C$21:$C$120,0))),\"\")","v":""}]
[null,{"$f":"IFERROR(INDEX('3 - Land Summary'!$B$21:$B$120,(MATCH('4 - Species Breakdown'!$V559,'3 - Land Summary'!$C$21:$C$120,0))),\"\")","v":""},null,null,{"$f":"IF(OR(COUNTIF('Look Up Data'!$D$149:$D$203,D559),COUNTIF('Look Up Data'!$D$149:$D$203,AE559)),\"YES\",\"NO\")","v":"NO"},null,null,{"$f":"IFERROR(INDEX('3 - Land Summary'!$G$21:$G$120,(MATCH(C559,'3 - Land Summary'!$C$21:$C$120,0))),\"\")","v":""},{"$f":"IFERROR(INDEX('3 - Land Summary'!$I$21:$I$120,(MATCH(C559,'3 - Land Summary'!$C$21:$C$120,0))),\"\")","v":""},"","",null,null,null,{"$f":"IFERROR(VLOOKUP(D559,'Species List'!$D$10:$E$46,2,FALSE)*J559,\"\")","v":""},{"$f":"IFERROR(VLOOKUP(D559,'Species List'!$D$51:$E$89,2,FALSE)*J559,\"\")","v":""},{"$f":"IFERROR(VLOOKUP(D559,'Species List'!$D$95:$E$102,2,FALSE)*J559,\"\")","v":""},{"$f":"IFERROR(VLOOKUP(D559,'Species List'!$I$10:$J$11,2,FALSE)*J559,\"\")","v":""},{"$f":"IFERROR(VLOOKUP(D559,'Species List'!$I$16:$J$61,2,FALSE)*J559,\"\")","v":""},{"$f":"IFERROR(VLOOKUP(D559,'Species List'!$I$66:$J$66,2,FALSE)*J559,\"\")","v":""},{"$f":"IFERROR(VLOOKUP(D559,'Species List'!$I$71:$J$82,2,FALSE)*J559,\"\")","v":""},0,null,null,null,null,null,null,{"$f":"IFERROR(INDEX('3 - Land Summary'!$B$21:$B$120,(MATCH(AD559,'3 - Land Summary'!$C$21:$C$120,0))),\"\")","v":""}]
[null,{"$f":"IFERROR(INDEX('3 - Land Summary'!$B$21:$B$120,(MATCH('4 - Species Breakdown'!$V560,'3 - Land Summary'!$C$21:$C$120,0))),\"\")","v":""},null,null,{"$f":"IF(OR(COUNTIF('Look Up Data'!$D$149:$D$203,D560),COUNTIF('Look Up Data'!$D$149:$D$203,AE560)),\"YES\",\"NO\")","v":"NO"},null,null,{"$f":"IFERROR(INDEX('3 - Land Summary'!$G$21:$G$120,(MATCH(C560,'3 - Land Summary'!$C$21:$C$120,0))),\"\")","v":""},{"$f":"IFERROR(INDEX('3 - Land Summary'!$I$21:$I$120,(MATCH(C560,'3 - Land Summary'!$C$21:$C$120,0))),\"\")","v":""},"","",null,null,null,{"$f":"IFERROR(VLOOKUP(D560,'Species List'!$D$10:$E$46,2,FALSE)*J560,\"\")","v":""},{"$f":"IFERROR(VLOOKUP(D560,'Species List'!$D$51:$E$89,2,FALSE)*J560,\"\")","v":""},{"$f":"IFERROR(VLOOKUP(D560,'Species List'!$D$95:$E$102,2,FALSE)*J560,\"\")","v":""},{"$f":"IFERROR(VLOOKUP(D560,'Species List'!$I$10:$J$11,2,FALSE)*J560,\"\")","v":""},{"$f":"IFERROR(VLOOKUP(D560,'Species List'!$I$16:$J$61,2,FALSE)*J560,\"\")","v":""},{"$f":"IFERROR(VLOOKUP(D560,'Species List'!$I$66:$J$66,2,FALSE)*J560,\"\")","v":""},{"$f":"IFERROR(VLOOKUP(D560,'Species List'!$I$71:$J$82,2,FALSE)*J560,\"\")","v":""},0,null,null,null,null,null,null,{"$f":"IFERROR(INDEX('3 - Land Summary'!$B$21:$B$120,(MATCH(AD560,'3 - Land Summary'!$C$21:$C$120,0))),\"\")","v":""}]
[null,{"$f":"IFERROR(INDEX('3 - Land Summary'!$B$21:$B$120,(MATCH('4 - Species Breakdown'!$V561,'3 - Land Summary'!$C$21:$C$120,0))),\"\")","v":""},null,null,{"$f":"IF(OR(COUNTIF('Look Up Data'!$D$149:$D$203,D561),COUNTIF('Look Up Data'!$D$149:$D$203,AE561)),\"YES\",\"NO\")","v":"NO"},null,null,{"$f":"IFERROR(INDEX('3 - Land Summary'!$G$21:$G$120,(MATCH(C561,'3 - Land Summary'!$C$21:$C$120,0))),\"\")","v":""},{"$f":"IFERROR(INDEX('3 - Land Summary'!$I$21:$I$120,(MATCH(C561,'3 - Land Summary'!$C$21:$C$120,0))),\"\")","v":""},"","",null,null,null,{"$f":"IFERROR(VLOOKUP(D561,'Species List'!$D$10:$E$46,2,FALSE)*J561,\"\")","v":""},{"$f":"IFERROR(VLOOKUP(D561,'Species List'!$D$51:$E$89,2,FALSE)*J561,\"\")","v":""},{"$f":"IFERROR(VLOOKUP(D561,'Species List'!$D$95:$E$102,2,FALSE)*J561,\"\")","v":""},{"$f":"IFERROR(VLOOKUP(D561,'Species List'!$I$10:$J$11,2,FALSE)*J561,\"\")","v":""},{"$f":"IFERROR(VLOOKUP(D561,'Species List'!$I$16:$J$61,2,FALSE)*J561,\"\")","v":""},{"$f":"IFERROR(VLOOKUP(D561,'Species List'!$I$66:$J$66,2,FALSE)*J561,\"\")","v":""},{"$f":"IFERROR(VLOOKUP(D561,'Species List'!$I$71:$J$82,2,FALSE)*J561,\"\")","v":""},0,null,null,null,null,null,null,{"$f":"IFERROR(INDEX('3 - Land Summary'!$B$21:$B$120,(MATCH(AD561,'3 - Land Summary'!$C$21:$C$120,0))),\"\")","v":""}]
[null,{"$f":"IFERROR(INDEX('3 - Land Summary'!$B$21:$B$120,(MATCH('4 - Species Breakdown'!$V562,'3 - Land Summary'!$C$21:$C$120,0))),\"\")","v":""},null,null,{"$f":"IF(OR(COUNTIF('Look Up Data'!$D$149:$D$203,D562),COUNTIF('Look Up Data'!$D$149:$D$203,AE562)),\"YES\",\"NO\")","v":"NO"},null,null,{"$f":"IFERROR(INDEX('3 - Land Summary'!$G$21:$G$120,(MATCH(C562,'3 - Land Summary'!$C$21:$C$120,0))),\"\")","v":""},{"$f":"IFERROR(INDEX('3 - Land Summary'!$I$21:$I$120,(MATCH(C562,'3 - Land Summary'!$C$21:$C$120,0))),\"\")","v":""},"","",null,null,null,{"$f":"IFERROR(VLOOKUP(D562,'Species List'!$D$10:$E$46,2,FALSE)*J562,\"\")","v":""},{"$f":"IFERROR(VLOOKUP(D562,'Species List'!$D$51:$E$89,2,FALSE)*J562,\"\")","v":""},{"$f":"IFERROR(VLOOKUP(D562,'Species List'!$D$95:$E$102,2,FALSE)*J562,\"\")","v":""},{"$f":"IFERROR(VLOOKUP(D562,'Species List'!$I$10:$J$11,2,FALSE)*J562,\"\")","v":""},{"$f":"IFERROR(VLOOKUP(D562,'Species List'!$I$16:$J$61,2,FALSE)*J562,\"\")","v":""},{"$f":"IFERROR(VLOOKUP(D562,'Species List'!$I$66:$J$66,2,FALSE)*J562,\"\")","v":""},{"$f":"IFERROR(VLOOKUP(D562,'Species List'!$I$71:$J$82,2,FALSE)*J562,\"\")","v":""},0,null,null,null,null,null,null,{"$f":"IFERROR(INDEX('3 - Land Summary'!$B$21:$B$120,(MATCH(AD562,'3 - Land Summary'!$C$21:$C$120,0))),\"\")","v":""}]
[null,{"$f":"IFERROR(INDEX('3 - Land Summary'!$B$21:$B$120,(MATCH('4 - Species Breakdown'!$V563,'3 - Land Summary'!$C$21:$C$120,0))),\"\")","v":""},null,null,{"$f":"IF(OR(COUNTIF('Look Up Data'!$D$149:$D$203,D563),COUNTIF('Look Up Data'!$D$149:$D$203,AE563)),\"YES\",\"NO\")","v":"NO"},null,null,{"$f":"IFERROR(INDEX('3 - Land Summary'!$G$21:$G$120,(MATCH(C563,'3 - Land Summary'!$C$21:$C$120,0))),\"\")","v":""},{"$f":"IFERROR(INDEX('3 - Land Summary'!$I$21:$I$120,(MATCH(C563,'3 - Land Summary'!$C$21:$C$120,0))),\"\")","v":""},"","",null,null,null,{"$f":"IFERROR(VLOOKUP(D563,'Species List'!$D$10:$E$46,2,FALSE)*J563,\"\")","v":""},{"$f":"IFERROR(VLOOKUP(D563,'Species List'!$D$51:$E$89,2,FALSE)*J563,\"\")","v":""},{"$f":"IFERROR(VLOOKUP(D563,'Species List'!$D$95:$E$102,2,FALSE)*J563,\"\")","v":""},{"$f":"IFERROR(VLOOKUP(D563,'Species List'!$I$10:$J$11,2,FALSE)*J563,\"\")","v":""},{"$f":"IFERROR(VLOOKUP(D563,'Species List'!$I$16:$J$61,2,FALSE)*J563,\"\")","v":""},{"$f":"IFERROR(VLOOKUP(D563,'Species List'!$I$66:$J$66,2,FALSE)*J563,\"\")","v":""},{"$f":"IFERROR(VLOOKUP(D563,'Species List'!$I$71:$J$82,2,FALSE)*J563,\"\")","v":""},0,null,null,null,null,null,null,{"$f":"IFERROR(INDEX('3 - Land Summary'!$B$21:$B$120,(MATCH(AD563,'3 - Land Summary'!$C$21:$C$120,0))),\"\")","v":""}]
[null,{"$f":"IFERROR(INDEX('3 - Land Summary'!$B$21:$B$120,(MATCH('4 - Species Breakdown'!$V564,'3 - Land Summary'!$C$21:$C$120,0))),\"\")","v":""},null,null,{"$f":"IF(OR(COUNTIF('Look Up Data'!$D$149:$D$203,D564),COUNTIF('Look Up Data'!$D$149:$D$203,AE564)),\"YES\",\"NO\")","v":"NO"},null,null,{"$f":"IFERROR(INDEX('3 - Land Summary'!$G$21:$G$120,(MATCH(C564,'3 - Land Summary'!$C$21:$C$120,0))),\"\")","v":""},{"$f":"IFERROR(INDEX('3 - Land Summary'!$I$21:$I$120,(MATCH(C564,'3 - Land Summary'!$C$21:$C$120,0))),\"\")","v":""},"","",null,null,null,{"$f":"IFERROR(VLOOKUP(D564,'Species List'!$D$10:$E$46,2,FALSE)*J564,\"\")","v":""},{"$f":"IFERROR(VLOOKUP(D564,'Species List'!$D$51:$E$89,2,FALSE)*J564,\"\")","v":""},{"$f":"IFERROR(VLOOKUP(D564,'Species List'!$D$95:$E$102,2,FALSE)*J564,\"\")","v":""},{"$f":"IFERROR(VLOOKUP(D564,'Species List'!$I$10:$J$11,2,FALSE)*J564,\"\")","v":""},{"$f":"IFERROR(VLOOKUP(D564,'Species List'!$I$16:$J$61,2,FALSE)*J564,\"\")","v":""},{"$f":"IFERROR(VLOOKUP(D564,'Species List'!$I$66:$J$66,2,FALSE)*J564,\"\")","v":""},{"$f":"IFERROR(VLOOKUP(D564,'Species List'!$I$71:$J$82,2,FALSE)*J564,\"\")","v":""},0,null,null,null,null,null,null,{"$f":"IFERROR(INDEX('3 - Land Summary'!$B$21:$B$120,(MATCH(AD564,'3 - Land Summary'!$C$21:$C$120,0))),\"\")","v":""}]
[null,{"$f":"IFERROR(INDEX('3 - Land Summary'!$B$21:$B$120,(MATCH('4 - Species Breakdown'!$V565,'3 - Land Summary'!$C$21:$C$120,0))),\"\")","v":""},null,null,{"$f":"IF(OR(COUNTIF('Look Up Data'!$D$149:$D$203,D565),COUNTIF('Look Up Data'!$D$149:$D$203,AE565)),\"YES\",\"NO\")","v":"NO"},null,null,{"$f":"IFERROR(INDEX('3 - Land Summary'!$G$21:$G$120,(MATCH(C565,'3 - Land Summary'!$C$21:$C$120,0))),\"\")","v":""},{"$f":"IFERROR(INDEX('3 - Land Summary'!$I$21:$I$120,(MATCH(C565,'3 - Land Summary'!$C$21:$C$120,0))),\"\")","v":""},"","",null,null,null,{"$f":"IFERROR(VLOOKUP(D565,'Species List'!$D$10:$E$46,2,FALSE)*J565,\"\")","v":""},{"$f":"IFERROR(VLOOKUP(D565,'Species List'!$D$51:$E$89,2,FALSE)*J565,\"\")","v":""},{"$f":"IFERROR(VLOOKUP(D565,'Species List'!$D$95:$E$102,2,FALSE)*J565,\"\")","v":""},{"$f":"IFERROR(VLOOKUP(D565,'Species List'!$I$10:$J$11,2,FALSE)*J565,\"\")","v":""},{"$f":"IFERROR(VLOOKUP(D565,'Species List'!$I$16:$J$61,2,FALSE)*J565,\"\")","v":""},{"$f":"IFERROR(VLOOKUP(D565,'Species List'!$I$66:$J$66,2,FALSE)*J565,\"\")","v":""},{"$f":"IFERROR(VLOOKUP(D565,'Species List'!$I$71:$J$82,2,FALSE)*J565,\"\")","v":""},0,null,null,null,null,null,null,{"$f":"IFERROR(INDEX('3 - Land Summary'!$B$21:$B$120,(MATCH(AD565,'3 - Land Summary'!$C$21:$C$120,0))),\"\")","v":""}]
[null,{"$f":"IFERROR(INDEX('3 - Land Summary'!$B$21:$B$120,(MATCH('4 - Species Breakdown'!$V566,'3 - Land Summary'!$C$21:$C$120,0))),\"\")","v":""},null,null,{"$f":"IF(OR(COUNTIF('Look Up Data'!$D$149:$D$203,D566),COUNTIF('Look Up Data'!$D$149:$D$203,AE566)),\"YES\",\"NO\")","v":"NO"},null,null,{"$f":"IFERROR(INDEX('3 - Land Summary'!$G$21:$G$120,(MATCH(C566,'3 - Land Summary'!$C$21:$C$120,0))),\"\")","v":""},{"$f":"IFERROR(INDEX('3 - Land Summary'!$I$21:$I$120,(MATCH(C566,'3 - Land Summary'!$C$21:$C$120,0))),\"\")","v":""},"","",null,null,null,{"$f":"IFERROR(VLOOKUP(D566,'Species List'!$D$10:$E$46,2,FALSE)*J566,\"\")","v":""},{"$f":"IFERROR(VLOOKUP(D566,'Species List'!$D$51:$E$89,2,FALSE)*J566,\"\")","v":""},{"$f":"IFERROR(VLOOKUP(D566,'Species List'!$D$95:$E$102,2,FALSE)*J566,\"\")","v":""},{"$f":"IFERROR(VLOOKUP(D566,'Species List'!$I$10:$J$11,2,FALSE)*J566,\"\")","v":""},{"$f":"IFERROR(VLOOKUP(D566,'Species List'!$I$16:$J$61,2,FALSE)*J566,\"\")","v":""},{"$f":"IFERROR(VLOOKUP(D566,'Species List'!$I$66:$J$66,2,FALSE)*J566,\"\")","v":""},{"$f":"IFERROR(VLOOKUP(D566,'Species List'!$I$71:$J$82,2,FALSE)*J566,\"\")","v":""},0,null,null,null,null,null,null,{"$f":"IFERROR(INDEX('3 - Land Summary'!$B$21:$B$120,(MATCH(AD566,'3 - Land Summary'!$C$21:$C$120,0))),\"\")","v":""}]
[null,{"$f":"IFERROR(INDEX('3 - Land Summary'!$B$21:$B$120,(MATCH('4 - Species Breakdown'!$V567,'3 - Land Summary'!$C$21:$C$120,0))),\"\")","v":""},null,null,{"$f":"IF(OR(COUNTIF('Look Up Data'!$D$149:$D$203,D567),COUNTIF('Look Up Data'!$D$149:$D$203,AE567)),\"YES\",\"NO\")","v":"NO"},null,null,{"$f":"IFERROR(INDEX('3 - Land Summary'!$G$21:$G$120,(MATCH(C567,'3 - Land Summary'!$C$21:$C$120,0))),\"\")","v":""},{"$f":"IFERROR(INDEX('3 - Land Summary'!$I$21:$I$120,(MATCH(C567,'3 - Land Summary'!$C$21:$C$120,0))),\"\")","v":""},"","",null,null,null,{"$f":"IFERROR(VLOOKUP(D567,'Species List'!$D$10:$E$46,2,FALSE)*J567,\"\")","v":""},{"$f":"IFERROR(VLOOKUP(D567,'Species List'!$D$51:$E$89,2,FALSE)*J567,\"\")","v":""},{"$f":"IFERROR(VLOOKUP(D567,'Species List'!$D$95:$E$102,2,FALSE)*J567,\"\")","v":""},{"$f":"IFERROR(VLOOKUP(D567,'Species List'!$I$10:$J$11,2,FALSE)*J567,\"\")","v":""},{"$f":"IFERROR(VLOOKUP(D567,'Species List'!$I$16:$J$61,2,FALSE)*J567,\"\")","v":""},{"$f":"IFERROR(VLOOKUP(D567,'Species List'!$I$66:$J$66,2,FALSE)*J567,\"\")","v":""},{"$f":"IFERROR(VLOOKUP(D567,'Species List'!$I$71:$J$82,2,FALSE)*J567,\"\")","v":""},0,null,null,null,null,null,null,{"$f":"IFERROR(INDEX('3 - Land Summary'!$B$21:$B$120,(MATCH(AD567,'3 - Land Summary'!$C$21:$C$120,0))),\"\")","v":""}]
[null,{"$f":"IFERROR(INDEX('3 - Land Summary'!$B$21:$B$120,(MATCH('4 - Species Breakdown'!$V568,'3 - Land Summary'!$C$21:$C$120,0))),\"\")","v":""},null,null,{"$f":"IF(OR(COUNTIF('Look Up Data'!$D$149:$D$203,D568),COUNTIF('Look Up Data'!$D$149:$D$203,AE568)),\"YES\",\"NO\")","v":"NO"},null,null,{"$f":"IFERROR(INDEX('3 - Land Summary'!$G$21:$G$120,(MATCH(C568,'3 - Land Summary'!$C$21:$C$120,0))),\"\")","v":""},{"$f":"IFERROR(INDEX('3 - Land Summary'!$I$21:$I$120,(MATCH(C568,'3 - Land Summary'!$C$21:$C$120,0))),\"\")","v":""},"","",null,null,null,{"$f":"IFERROR(VLOOKUP(D568,'Species List'!$D$10:$E$46,2,FALSE)*J568,\"\")","v":""},{"$f":"IFERROR(VLOOKUP(D568,'Species List'!$D$51:$E$89,2,FALSE)*J568,\"\")","v":""},{"$f":"IFERROR(VLOOKUP(D568,'Species List'!$D$95:$E$102,2,FALSE)*J568,\"\")","v":""},{"$f":"IFERROR(VLOOKUP(D568,'Species List'!$I$10:$J$11,2,FALSE)*J568,\"\")","v":""},{"$f":"IFERROR(VLOOKUP(D568,'Species List'!$I$16:$J$61,2,FALSE)*J568,\"\")","v":""},{"$f":"IFERROR(VLOOKUP(D568,'Species List'!$I$66:$J$66,2,FALSE)*J568,\"\")","v":""},{"$f":"IFERROR(VLOOKUP(D568,'Species List'!$I$71:$J$82,2,FALSE)*J568,\"\")","v":""},0,null,null,null,null,null,null,{"$f":"IFERROR(INDEX('3 - Land Summary'!$B$21:$B$120,(MATCH(AD568,'3 - Land Summary'!$C$21:$C$120,0))),\"\")","v":""}]
[null,{"$f":"IFERROR(INDEX('3 - Land Summary'!$B$21:$B$120,(MATCH('4 - Species Breakdown'!$V569,'3 - Land Summary'!$C$21:$C$120,0))),\"\")","v":""},null,null,{"$f":"IF(OR(COUNTIF('Look Up Data'!$D$149:$D$203,D569),COUNTIF('Look Up Data'!$D$149:$D$203,AE569)),\"YES\",\"NO\")","v":"NO"},null,null,{"$f":"IFERROR(INDEX('3 - Land Summary'!$G$21:$G$120,(MATCH(C569,'3 - Land Summary'!$C$21:$C$120,0))),\"\")","v":""},{"$f":"IFERROR(INDEX('3 - Land Summary'!$I$21:$I$120,(MATCH(C569,'3 - Land Summary'!$C$21:$C$120,0))),\"\")","v":""},"","",null,null,null,{"$f":"IFERROR(VLOOKUP(D569,'Species List'!$D$10:$E$46,2,FALSE)*J569,\"\")","v":""},{"$f":"IFERROR(VLOOKUP(D569,'Species List'!$D$51:$E$89,2,FALSE)*J569,\"\")","v":""},{"$f":"IFERROR(VLOOKUP(D569,'Species List'!$D$95:$E$102,2,FALSE)*J569,\"\")","v":""},{"$f":"IFERROR(VLOOKUP(D569,'Species List'!$I$10:$J$11,2,FALSE)*J569,\"\")","v":""},{"$f":"IFERROR(VLOOKUP(D569,'Species List'!$I$16:$J$61,2,FALSE)*J569,\"\")","v":""},{"$f":"IFERROR(VLOOKUP(D569,'Species List'!$I$66:$J$66,2,FALSE)*J569,\"\")","v":""},{"$f":"IFERROR(VLOOKUP(D569,'Species List'!$I$71:$J$82,2,FALSE)*J569,\"\")","v":""},0,null,null,null,null,null,null,{"$f":"IFERROR(INDEX('3 - Land Summary'!$B$21:$B$120,(MATCH(AD569,'3 - Land Summary'!$C$21:$C$120,0))),\"\")","v":""}]
[null,{"$f":"IFERROR(INDEX('3 - Land Summary'!$B$21:$B$120,(MATCH('4 - Species Breakdown'!$V570,'3 - Land Summary'!$C$21:$C$120,0))),\"\")","v":""},null,null,{"$f":"IF(OR(COUNTIF('Look Up Data'!$D$149:$D$203,D570),COUNTIF('Look Up Data'!$D$149:$D$203,AE570)),\"YES\",\"NO\")","v":"NO"},null,null,{"$f":"IFERROR(INDEX('3 - Land Summary'!$G$21:$G$120,(MATCH(C570,'3 - Land Summary'!$C$21:$C$120,0))),\"\")","v":""},{"$f":"IFERROR(INDEX('3 - Land Summary'!$I$21:$I$120,(MATCH(C570,'3 - Land Summary'!$C$21:$C$120,0))),\"\")","v":""},"","",null,null,null,{"$f":"IFERROR(VLOOKUP(D570,'Species List'!$D$10:$E$46,2,FALSE)*J570,\"\")","v":""},{"$f":"IFERROR(VLOOKUP(D570,'Species List'!$D$51:$E$89,2,FALSE)*J570,\"\")","v":""},{"$f":"IFERROR(VLOOKUP(D570,'Species List'!$D$95:$E$102,2,FALSE)*J570,\"\")","v":""},{"$f":"IFERROR(VLOOKUP(D570,'Species List'!$I$10:$J$11,2,FALSE)*J570,\"\")","v":""},{"$f":"IFERROR(VLOOKUP(D570,'Species List'!$I$16:$J$61,2,FALSE)*J570,\"\")","v":""},{"$f":"IFERROR(VLOOKUP(D570,'Species List'!$I$66:$J$66,2,FALSE)*J570,\"\")","v":""},{"$f":"IFERROR(VLOOKUP(D570,'Species List'!$I$71:$J$82,2,FALSE)*J570,\"\")","v":""},0,null,null,null,null,null,null,{"$f":"IFERROR(INDEX('3 - Land Summary'!$B$21:$B$120,(MATCH(AD570,'3 - Land Summary'!$C$21:$C$120,0))),\"\")","v":""}]
[null,{"$f":"IFERROR(INDEX('3 - Land Summary'!$B$21:$B$120,(MATCH('4 - Species Breakdown'!$V571,'3 - Land Summary'!$C$21:$C$120,0))),\"\")","v":""},null,null,{"$f":"IF(OR(COUNTIF('Look Up Data'!$D$149:$D$203,D571),COUNTIF('Look Up Data'!$D$149:$D$203,AE571)),\"YES\",\"NO\")","v":"NO"},null,null,{"$f":"IFERROR(INDEX('3 - Land Summary'!$G$21:$G$120,(MATCH(C571,'3 - Land Summary'!$C$21:$C$120,0))),\"\")","v":""},{"$f":"IFERROR(INDEX('3 - Land Summary'!$I$21:$I$120,(MATCH(C571,'3 - Land Summary'!$C$21:$C$120,0))),\"\")","v":""},"","",null,null,null,{"$f":"IFERROR(VLOOKUP(D571,'Species List'!$D$10:$E$46,2,FALSE)*J571,\"\")","v":""},{"$f":"IFERROR(VLOOKUP(D571,'Species List'!$D$51:$E$89,2,FALSE)*J571,\"\")","v":""},{"$f":"IFERROR(VLOOKUP(D571,'Species List'!$D$95:$E$102,2,FALSE)*J571,\"\")","v":""},{"$f":"IFERROR(VLOOKUP(D571,'Species List'!$I$10:$J$11,2,FALSE)*J571,\"\")","v":""},{"$f":"IFERROR(VLOOKUP(D571,'Species List'!$I$16:$J$61,2,FALSE)*J571,\"\")","v":""},{"$f":"IFERROR(VLOOKUP(D571,'Species List'!$I$66:$J$66,2,FALSE)*J571,\"\")","v":""},{"$f":"IFERROR(VLOOKUP(D571,'Species List'!$I$71:$J$82,2,FALSE)*J571,\"\")","v":""},0,null,null,null,null,null,null,{"$f":"IFERROR(INDEX('3 - Land Summary'!$B$21:$B$120,(MATCH(AD571,'3 - Land Summary'!$C$21:$C$120,0))),\"\")","v":""}]
[null,{"$f":"IFERROR(INDEX('3 - Land Summary'!$B$21:$B$120,(MATCH('4 - Species Breakdown'!$V572,'3 - Land Summary'!$C$21:$C$120,0))),\"\")","v":""},null,null,{"$f":"IF(OR(COUNTIF('Look Up Data'!$D$149:$D$203,D572),COUNTIF('Look Up Data'!$D$149:$D$203,AE572)),\"YES\",\"NO\")","v":"NO"},null,null,{"$f":"IFERROR(INDEX('3 - Land Summary'!$G$21:$G$120,(MATCH(C572,'3 - Land Summary'!$C$21:$C$120,0))),\"\")","v":""},{"$f":"IFERROR(INDEX('3 - Land Summary'!$I$21:$I$120,(MATCH(C572,'3 - Land Summary'!$C$21:$C$120,0))),\"\")","v":""},"","",null,null,null,{"$f":"IFERROR(VLOOKUP(D572,'Species List'!$D$10:$E$46,2,FALSE)*J572,\"\")","v":""},{"$f":"IFERROR(VLOOKUP(D572,'Species List'!$D$51:$E$89,2,FALSE)*J572,\"\")","v":""},{"$f":"IFERROR(VLOOKUP(D572,'Species List'!$D$95:$E$102,2,FALSE)*J572,\"\")","v":""},{"$f":"IFERROR(VLOOKUP(D572,'Species List'!$I$10:$J$11,2,FALSE)*J572,\"\")","v":""},{"$f":"IFERROR(VLOOKUP(D572,'Species List'!$I$16:$J$61,2,FALSE)*J572,\"\")","v":""},{"$f":"IFERROR(VLOOKUP(D572,'Species List'!$I$66:$J$66,2,FALSE)*J572,\"\")","v":""},{"$f":"IFERROR(VLOOKUP(D572,'Species List'!$I$71:$J$82,2,FALSE)*J572,\"\")","v":""},0,null,null,null,null,null,null,{"$f":"IFERROR(INDEX('3 - Land Summary'!$B$21:$B$120,(MATCH(AD572,'3 - Land Summary'!$C$21:$C$120,0))),\"\")","v":""}]
[null,{"$f":"IFERROR(INDEX('3 - Land Summary'!$B$21:$B$120,(MATCH('4 - Species Breakdown'!$V573,'3 - Land Summary'!$C$21:$C$120,0))),\"\")","v":""},null,null,{"$f":"IF(OR(COUNTIF('Look Up Data'!$D$149:$D$203,D573),COUNTIF('Look Up Data'!$D$149:$D$203,AE573)),\"YES\",\"NO\")","v":"NO"},null,null,{"$f":"IFERROR(INDEX('3 - Land Summary'!$G$21:$G$120,(MATCH(C573,'3 - Land Summary'!$C$21:$C$120,0))),\"\")","v":""},{"$f":"IFERROR(INDEX('3 - Land Summary'!$I$21:$I$120,(MATCH(C573,'3 - Land Summary'!$C$21:$C$120,0))),\"\")","v":""},"","",null,null,null,{"$f":"IFERROR(VLOOKUP(D573,'Species List'!$D$10:$E$46,2,FALSE)*J573,\"\")","v":""},{"$f":"IFERROR(VLOOKUP(D573,'Species List'!$D$51:$E$89,2,FALSE)*J573,\"\")","v":""},{"$f":"IFERROR(VLOOKUP(D573,'Species List'!$D$95:$E$102,2,FALSE)*J573,\"\")","v":""},{"$f":"IFERROR(VLOOKUP(D573,'Species List'!$I$10:$J$11,2,FALSE)*J573,\"\")","v":""},{"$f":"IFERROR(VLOOKUP(D573,'Species List'!$I$16:$J$61,2,FALSE)*J573,\"\")","v":""},{"$f":"IFERROR(VLOOKUP(D573,'Species List'!$I$66:$J$66,2,FALSE)*J573,\"\")","v":""},{"$f":"IFERROR(VLOOKUP(D573,'Species List'!$I$71:$J$82,2,FALSE)*J573,\"\")","v":""},0,null,null,null,null,null,null,{"$f":"IFERROR(INDEX('3 - Land Summary'!$B$21:$B$120,(MATCH(AD573,'3 - Land Summary'!$C$21:$C$120,0))),\"\")","v":""}]
[null,{"$f":"IFERROR(INDEX('3 - Land Summary'!$B$21:$B$120,(MATCH('4 - Species Breakdown'!$V574,'3 - Land Summary'!$C$21:$C$120,0))),\"\")","v":""},null,null,{"$f":"IF(OR(COUNTIF('Look Up Data'!$D$149:$D$203,D574),COUNTIF('Look Up Data'!$D$149:$D$203,AE574)),\"YES\",\"NO\")","v":"NO"},null,null,{"$f":"IFERROR(INDEX('3 - Land Summary'!$G$21:$G$120,(MATCH(C574,'3 - Land Summary'!$C$21:$C$120,0))),\"\")","v":""},{"$f":"IFERROR(INDEX('3 - Land Summary'!$I$21:$I$120,(MATCH(C574,'3 - Land Summary'!$C$21:$C$120,0))),\"\")","v":""},"","",null,null,null,{"$f":"IFERROR(VLOOKUP(D574,'Species List'!$D$10:$E$46,2,FALSE)*J574,\"\")","v":""},{"$f":"IFERROR(VLOOKUP(D574,'Species List'!$D$51:$E$89,2,FALSE)*J574,\"\")","v":""},{"$f":"IFERROR(VLOOKUP(D574,'Species List'!$D$95:$E$102,2,FALSE)*J574,\"\")","v":""},{"$f":"IFERROR(VLOOKUP(D574,'Species List'!$I$10:$J$11,2,FALSE)*J574,\"\")","v":""},{"$f":"IFERROR(VLOOKUP(D574,'Species List'!$I$16:$J$61,2,FALSE)*J574,\"\")","v":""},{"$f":"IFERROR(VLOOKUP(D574,'Species List'!$I$66:$J$66,2,FALSE)*J574,\"\")","v":""},{"$f":"IFERROR(VLOOKUP(D574,'Species List'!$I$71:$J$82,2,FALSE)*J574,\"\")","v":""},0,null,null,null,null,null,null,{"$f":"IFERROR(INDEX('3 - Land Summary'!$B$21:$B$120,(MATCH(AD574,'3 - Land Summary'!$C$21:$C$120,0))),\"\")","v":""}]
[null,{"$f":"IFERROR(INDEX('3 - Land Summary'!$B$21:$B$120,(MATCH('4 - Species Breakdown'!$V575,'3 - Land Summary'!$C$21:$C$120,0))),\"\")","v":""},null,null,{"$f":"IF(OR(COUNTIF('Look Up Data'!$D$149:$D$203,D575),COUNTIF('Look Up Data'!$D$149:$D$203,AE575)),\"YES\",\"NO\")","v":"NO"},null,null,{"$f":"IFERROR(INDEX('3 - Land Summary'!$G$21:$G$120,(MATCH(C575,'3 - Land Summary'!$C$21:$C$120,0))),\"\")","v":""},{"$f":"IFERROR(INDEX('3 - Land Summary'!$I$21:$I$120,(MATCH(C575,'3 - Land Summary'!$C$21:$C$120,0))),\"\")","v":""},"","",null,null,null,{"$f":"IFERROR(VLOOKUP(D575,'Species List'!$D$10:$E$46,2,FALSE)*J575,\"\")","v":""},{"$f":"IFERROR(VLOOKUP(D575,'Species List'!$D$51:$E$89,2,FALSE)*J575,\"\")","v":""},{"$f":"IFERROR(VLOOKUP(D575,'Species List'!$D$95:$E$102,2,FALSE)*J575,\"\")","v":""},{"$f":"IFERROR(VLOOKUP(D575,'Species List'!$I$10:$J$11,2,FALSE)*J575,\"\")","v":""},{"$f":"IFERROR(VLOOKUP(D575,'Species List'!$I$16:$J$61,2,FALSE)*J575,\"\")","v":""},{"$f":"IFERROR(VLOOKUP(D575,'Species List'!$I$66:$J$66,2,FALSE)*J575,\"\")","v":""},{"$f":"IFERROR(VLOOKUP(D575,'Species List'!$I$71:$J$82,2,FALSE)*J575,\"\")","v":""},0,null,null,null,null,null,null,{"$f":"IFERROR(INDEX('3 - Land Summary'!$B$21:$B$120,(MATCH(AD575,'3 - Land Summary'!$C$21:$C$120,0))),\"\")","v":""}]
[null,{"$f":"IFERROR(INDEX('3 - Land Summary'!$B$21:$B$120,(MATCH('4 - Species Breakdown'!$V576,'3 - Land Summary'!$C$21:$C$120,0))),\"\")","v":""},null,null,{"$f":"IF(OR(COUNTIF('Look Up Data'!$D$149:$D$203,D576),COUNTIF('Look Up Data'!$D$149:$D$203,AE576)),\"YES\",\"NO\")","v":"NO"},null,null,{"$f":"IFERROR(INDEX('3 - Land Summary'!$G$21:$G$120,(MATCH(C576,'3 - Land Summary'!$C$21:$C$120,0))),\"\")","v":""},{"$f":"IFERROR(INDEX('3 - Land Summary'!$I$21:$I$120,(MATCH(C576,'3 - Land Summary'!$C$21:$C$120,0))),\"\")","v":""},"","",null,null,null,{"$f":"IFERROR(VLOOKUP(D576,'Species List'!$D$10:$E$46,2,FALSE)*J576,\"\")","v":""},{"$f":"IFERROR(VLOOKUP(D576,'Species List'!$D$51:$E$89,2,FALSE)*J576,\"\")","v":""},{"$f":"IFERROR(VLOOKUP(D576,'Species List'!$D$95:$E$102,2,FALSE)*J576,\"\")","v":""},{"$f":"IFERROR(VLOOKUP(D576,'Species List'!$I$10:$J$11,2,FALSE)*J576,\"\")","v":""},{"$f":"IFERROR(VLOOKUP(D576,'Species List'!$I$16:$J$61,2,FALSE)*J576,\"\")","v":""},{"$f":"IFERROR(VLOOKUP(D576,'Species List'!$I$66:$J$66,2,FALSE)*J576,\"\")","v":""},{"$f":"IFERROR(VLOOKUP(D576,'Species List'!$I$71:$J$82,2,FALSE)*J576,\"\")","v":""},0,null,null,null,null,null,null,{"$f":"IFERROR(INDEX('3 - Land Summary'!$B$21:$B$120,(MATCH(AD576,'3 - Land Summary'!$C$21:$C$120,0))),\"\")","v":""}]
[null,{"$f":"IFERROR(INDEX('3 - Land Summary'!$B$21:$B$120,(MATCH('4 - Species Breakdown'!$V577,'3 - Land Summary'!$C$21:$C$120,0))),\"\")","v":""},null,null,{"$f":"IF(OR(COUNTIF('Look Up Data'!$D$149:$D$203,D577),COUNTIF('Look Up Data'!$D$149:$D$203,AE577)),\"YES\",\"NO\")","v":"NO"},null,null,{"$f":"IFERROR(INDEX('3 - Land Summary'!$G$21:$G$120,(MATCH(C577,'3 - Land Summary'!$C$21:$C$120,0))),\"\")","v":""},{"$f":"IFERROR(INDEX('3 - Land Summary'!$I$21:$I$120,(MATCH(C577,'3 - Land Summary'!$C$21:$C$120,0))),\"\")","v":""},"","",null,null,null,{"$f":"IFERROR(VLOOKUP(D577,'Species List'!$D$10:$E$46,2,FALSE)*J577,\"\")","v":""},{"$f":"IFERROR(VLOOKUP(D577,'Species List'!$D$51:$E$89,2,FALSE)*J577,\"\")","v":""},{"$f":"IFERROR(VLOOKUP(D577,'Species List'!$D$95:$E$102,2,FALSE)*J577,\"\")","v":""},{"$f":"IFERROR(VLOOKUP(D577,'Species List'!$I$10:$J$11,2,FALSE)*J577,\"\")","v":""},{"$f":"IFERROR(VLOOKUP(D577,'Species List'!$I$16:$J$61,2,FALSE)*J577,\"\")","v":""},{"$f":"IFERROR(VLOOKUP(D577,'Species List'!$I$66:$J$66,2,FALSE)*J577,\"\")","v":""},{"$f":"IFERROR(VLOOKUP(D577,'Species List'!$I$71:$J$82,2,FALSE)*J577,\"\")","v":""},0,null,null,null,null,null,null,{"$f":"IFERROR(INDEX('3 - Land Summary'!$B$21:$B$120,(MATCH(AD577,'3 - Land Summary'!$C$21:$C$120,0))),\"\")","v":""}]
[null,{"$f":"IFERROR(INDEX('3 - Land Summary'!$B$21:$B$120,(MATCH('4 - Species Breakdown'!$V578,'3 - Land Summary'!$C$21:$C$120,0))),\"\")","v":""},null,null,{"$f":"IF(OR(COUNTIF('Look Up Data'!$D$149:$D$203,D578),COUNTIF('Look Up Data'!$D$149:$D$203,AE578)),\"YES\",\"NO\")","v":"NO"},null,null,{"$f":"IFERROR(INDEX('3 - Land Summary'!$G$21:$G$120,(MATCH(C578,'3 - Land Summary'!$C$21:$C$120,0))),\"\")","v":""},{"$f":"IFERROR(INDEX('3 - Land Summary'!$I$21:$I$120,(MATCH(C578,'3 - Land Summary'!$C$21:$C$120,0))),\"\")","v":""},"","",null,null,null,{"$f":"IFERROR(VLOOKUP(D578,'Species List'!$D$10:$E$46,2,FALSE)*J578,\"\")","v":""},{"$f":"IFERROR(VLOOKUP(D578,'Species List'!$D$51:$E$89,2,FALSE)*J578,\"\")","v":""},{"$f":"IFERROR(VLOOKUP(D578,'Species List'!$D$95:$E$102,2,FALSE)*J578,\"\")","v":""},{"$f":"IFERROR(VLOOKUP(D578,'Species List'!$I$10:$J$11,2,FALSE)*J578,\"\")","v":""},{"$f":"IFERROR(VLOOKUP(D578,'Species List'!$I$16:$J$61,2,FALSE)*J578,\"\")","v":""},{"$f":"IFERROR(VLOOKUP(D578,'Species List'!$I$66:$J$66,2,FALSE)*J578,\"\")","v":""},{"$f":"IFERROR(VLOOKUP(D578,'Species List'!$I$71:$J$82,2,FALSE)*J578,\"\")","v":""},0,null,null,null,null,null,null,{"$f":"IFERROR(INDEX('3 - Land Summary'!$B$21:$B$120,(MATCH(AD578,'3 - Land Summary'!$C$21:$C$120,0))),\"\")","v":""}]
[null,{"$f":"IFERROR(INDEX('3 - Land Summary'!$B$21:$B$120,(MATCH('4 - Species Breakdown'!$V579,'3 - Land Summary'!$C$21:$C$120,0))),\"\")","v":""},null,null,{"$f":"IF(OR(COUNTIF('Look Up Data'!$D$149:$D$203,D579),COUNTIF('Look Up Data'!$D$149:$D$203,AE579)),\"YES\",\"NO\")","v":"NO"},null,null,{"$f":"IFERROR(INDEX('3 - Land Summary'!$G$21:$G$120,(MATCH(C579,'3 - Land Summary'!$C$21:$C$120,0))),\"\")","v":""},{"$f":"IFERROR(INDEX('3 - Land Summary'!$I$21:$I$120,(MATCH(C579,'3 - Land Summary'!$C$21:$C$120,0))),\"\")","v":""},"","",null,null,null,{"$f":"IFERROR(VLOOKUP(D579,'Species List'!$D$10:$E$46,2,FALSE)*J579,\"\")","v":""},{"$f":"IFERROR(VLOOKUP(D579,'Species List'!$D$51:$E$89,2,FALSE)*J579,\"\")","v":""},{"$f":"IFERROR(VLOOKUP(D579,'Species List'!$D$95:$E$102,2,FALSE)*J579,\"\")","v":""},{"$f":"IFERROR(VLOOKUP(D579,'Species List'!$I$10:$J$11,2,FALSE)*J579,\"\")","v":""},{"$f":"IFERROR(VLOOKUP(D579,'Species List'!$I$16:$J$61,2,FALSE)*J579,\"\")","v":""},{"$f":"IFERROR(VLOOKUP(D579,'Species List'!$I$66:$J$66,2,FALSE)*J579,\"\")","v":""},{"$f":"IFERROR(VLOOKUP(D579,'Species List'!$I$71:$J$82,2,FALSE)*J579,\"\")","v":""},0,null,null,null,null,null,null,{"$f":"IFERROR(INDEX('3 - Land Summary'!$B$21:$B$120,(MATCH(AD579,'3 - Land Summary'!$C$21:$C$120,0))),\"\")","v":""}]
[null,{"$f":"IFERROR(INDEX('3 - Land Summary'!$B$21:$B$120,(MATCH('4 - Species Breakdown'!$V580,'3 - Land Summary'!$C$21:$C$120,0))),\"\")","v":""},null,null,{"$f":"IF(OR(COUNTIF('Look Up Data'!$D$149:$D$203,D580),COUNTIF('Look Up Data'!$D$149:$D$203,AE580)),\"YES\",\"NO\")","v":"NO"},null,null,{"$f":"IFERROR(INDEX('3 - Land Summary'!$G$21:$G$120,(MATCH(C580,'3 - Land Summary'!$C$21:$C$120,0))),\"\")","v":""},{"$f":"IFERROR(INDEX('3 - Land Summary'!$I$21:$I$120,(MATCH(C580,'3 - Land Summary'!$C$21:$C$120,0))),\"\")","v":""},"","",null,null,null,{"$f":"IFERROR(VLOOKUP(D580,'Species List'!$D$10:$E$46,2,FALSE)*J580,\"\")","v":""},{"$f":"IFERROR(VLOOKUP(D580,'Species List'!$D$51:$E$89,2,FALSE)*J580,\"\")","v":""},{"$f":"IFERROR(VLOOKUP(D580,'Species List'!$D$95:$E$102,2,FALSE)*J580,\"\")","v":""},{"$f":"IFERROR(VLOOKUP(D580,'Species List'!$I$10:$J$11,2,FALSE)*J580,\"\")","v":""},{"$f":"IFERROR(VLOOKUP(D580,'Species List'!$I$16:$J$61,2,FALSE)*J580,\"\")","v":""},{"$f":"IFERROR(VLOOKUP(D580,'Species List'!$I$66:$J$66,2,FALSE)*J580,\"\")","v":""},{"$f":"IFERROR(VLOOKUP(D580,'Species List'!$I$71:$J$82,2,FALSE)*J580,\"\")","v":""},0,null,null,null,null,null,null,{"$f":"IFERROR(INDEX('3 - Land Summary'!$B$21:$B$120,(MATCH(AD580,'3 - Land Summary'!$C$21:$C$120,0))),\"\")","v":""}]
[null,{"$f":"IFERROR(INDEX('3 - Land Summary'!$B$21:$B$120,(MATCH('4 - Species Breakdown'!$V581,'3 - Land Summary'!$C$21:$C$120,0))),\"\")","v":""},null,null,{"$f":"IF(OR(COUNTIF('Look Up Data'!$D$149:$D$203,D581),COUNTIF('Look Up Data'!$D$149:$D$203,AE581)),\"YES\",\"NO\")","v":"NO"},null,null,{"$f":"IFERROR(INDEX('3 - Land Summary'!$G$21:$G$120,(MATCH(C581,'3 - Land Summary'!$C$21:$C$120,0))),\"\")","v":""},{"$f":"IFERROR(INDEX('3 - Land Summary'!$I$21:$I$120,(MATCH(C581,'3 - Land Summary'!$C$21:$C$120,0))),\"\")","v":""},"","",null,null,null,{"$f":"IFERROR(VLOOKUP(D581,'Species List'!$D$10:$E$46,2,FALSE)*J581,\"\")","v":""},{"$f":"IFERROR(VLOOKUP(D581,'Species List'!$D$51:$E$89,2,FALSE)*J581,\"\")","v":""},{"$f":"IFERROR(VLOOKUP(D581,'Species List'!$D$95:$E$102,2,FALSE)*J581,\"\")","v":""},{"$f":"IFERROR(VLOOKUP(D581,'Species List'!$I$10:$J$11,2,FALSE)*J581,\"\")","v":""},{"$f":"IFERROR(VLOOKUP(D581,'Species List'!$I$16:$J$61,2,FALSE)*J581,\"\")","v":""},{"$f":"IFERROR(VLOOKUP(D581,'Species List'!$I$66:$J$66,2,FALSE)*J581,\"\")","v":""},{"$f":"IFERROR(VLOOKUP(D581,'Species List'!$I$71:$J$82,2,FALSE)*J581,\"\")","v":""},0,null,null,null,null,null,null,{"$f":"IFERROR(INDEX('3 - Land Summary'!$B$21:$B$120,(MATCH(AD581,'3 - Land Summary'!$C$21:$C$120,0))),\"\")","v":""}]
[null,{"$f":"IFERROR(INDEX('3 - Land Summary'!$B$21:$B$120,(MATCH('4 - Species Breakdown'!$V582,'3 - Land Summary'!$C$21:$C$120,0))),\"\")","v":""},null,null,{"$f":"IF(OR(COUNTIF('Look Up Data'!$D$149:$D$203,D582),COUNTIF('Look Up Data'!$D$149:$D$203,AE582)),\"YES\",\"NO\")","v":"NO"},null,null,{"$f":"IFERROR(INDEX('3 - Land Summary'!$G$21:$G$120,(MATCH(C582,'3 - Land Summary'!$C$21:$C$120,0))),\"\")","v":""},{"$f":"IFERROR(INDEX('3 - Land Summary'!$I$21:$I$120,(MATCH(C582,'3 - Land Summary'!$C$21:$C$120,0))),\"\")","v":""},"","",null,null,null,{"$f":"IFERROR(VLOOKUP(D582,'Species List'!$D$10:$E$46,2,FALSE)*J582,\"\")","v":""},{"$f":"IFERROR(VLOOKUP(D582,'Species List'!$D$51:$E$89,2,FALSE)*J582,\"\")","v":""},{"$f":"IFERROR(VLOOKUP(D582,'Species List'!$D$95:$E$102,2,FALSE)*J582,\"\")","v":""},{"$f":"IFERROR(VLOOKUP(D582,'Species List'!$I$10:$J$11,2,FALSE)*J582,\"\")","v":""},{"$f":"IFERROR(VLOOKUP(D582,'Species List'!$I$16:$J$61,2,FALSE)*J582,\"\")","v":""},{"$f":"IFERROR(VLOOKUP(D582,'Species List'!$I$66:$J$66,2,FALSE)*J582,\"\")","v":""},{"$f":"IFERROR(VLOOKUP(D582,'Species List'!$I$71:$J$82,2,FALSE)*J582,\"\")","v":""},0,null,null,null,null,null,null,{"$f":"IFERROR(INDEX('3 - Land Summary'!$B$21:$B$120,(MATCH(AD582,'3 - Land Summary'!$C$21:$C$120,0))),\"\")","v":""}]
[null,{"$f":"IFERROR(INDEX('3 - Land Summary'!$B$21:$B$120,(MATCH('4 - Species Breakdown'!$V583,'3 - Land Summary'!$C$21:$C$120,0))),\"\")","v":""},null,null,{"$f":"IF(OR(COUNTIF('Look Up Data'!$D$149:$D$203,D583),COUNTIF('Look Up Data'!$D$149:$D$203,AE583)),\"YES\",\"NO\")","v":"NO"},null,null,{"$f":"IFERROR(INDEX('3 - Land Summary'!$G$21:$G$120,(MATCH(C583,'3 - Land Summary'!$C$21:$C$120,0))),\"\")","v":""},{"$f":"IFERROR(INDEX('3 - Land Summary'!$I$21:$I$120,(MATCH(C583,'3 - Land Summary'!$C$21:$C$120,0))),\"\")","v":""},"","",null,null,null,{"$f":"IFERROR(VLOOKUP(D583,'Species List'!$D$10:$E$46,2,FALSE)*J583,\"\")","v":""},{"$f":"IFERROR(VLOOKUP(D583,'Species List'!$D$51:$E$89,2,FALSE)*J583,\"\")","v":""},{"$f":"IFERROR(VLOOKUP(D583,'Species List'!$D$95:$E$102,2,FALSE)*J583,\"\")","v":""},{"$f":"IFERROR(VLOOKUP(D583,'Species List'!$I$10:$J$11,2,FALSE)*J583,\"\")","v":""},{"$f":"IFERROR(VLOOKUP(D583,'Species List'!$I$16:$J$61,2,FALSE)*J583,\"\")","v":""},{"$f":"IFERROR(VLOOKUP(D583,'Species List'!$I$66:$J$66,2,FALSE)*J583,\"\")","v":""},{"$f":"IFERROR(VLOOKUP(D583,'Species List'!$I$71:$J$82,2,FALSE)*J583,\"\")","v":""},0,null,null,null,null,null,null,{"$f":"IFERROR(INDEX('3 - Land Summary'!$B$21:$B$120,(MATCH(AD583,'3 - Land Summary'!$C$21:$C$120,0))),\"\")","v":""}]
[null,{"$f":"IFERROR(INDEX('3 - Land Summary'!$B$21:$B$120,(MATCH('4 - Species Breakdown'!$V584,'3 - Land Summary'!$C$21:$C$120,0))),\"\")","v":""},null,null,{"$f":"IF(OR(COUNTIF('Look Up Data'!$D$149:$D$203,D584),COUNTIF('Look Up Data'!$D$149:$D$203,AE584)),\"YES\",\"NO\")","v":"NO"},null,null,{"$f":"IFERROR(INDEX('3 - Land Summary'!$G$21:$G$120,(MATCH(C584,'3 - Land Summary'!$C$21:$C$120,0))),\"\")","v":""},{"$f":"IFERROR(INDEX('3 - Land Summary'!$I$21:$I$120,(MATCH(C584,'3 - Land Summary'!$C$21:$C$120,0))),\"\")","v":""},"","",null,null,null,{"$f":"IFERROR(VLOOKUP(D584,'Species List'!$D$10:$E$46,2,FALSE)*J584,\"\")","v":""},{"$f":"IFERROR(VLOOKUP(D584,'Species List'!$D$51:$E$89,2,FALSE)*J584,\"\")","v":""},{"$f":"IFERROR(VLOOKUP(D584,'Species List'!$D$95:$E$102,2,FALSE)*J584,\"\")","v":""},{"$f":"IFERROR(VLOOKUP(D584,'Species List'!$I$10:$J$11,2,FALSE)*J584,\"\")","v":""},{"$f":"IFERROR(VLOOKUP(D584,'Species List'!$I$16:$J$61,2,FALSE)*J584,\"\")","v":""},{"$f":"IFERROR(VLOOKUP(D584,'Species List'!$I$66:$J$66,2,FALSE)*J584,\"\")","v":""},{"$f":"IFERROR(VLOOKUP(D584,'Species List'!$I$71:$J$82,2,FALSE)*J584,\"\")","v":""},0,null,null,null,null,null,null,{"$f":"IFERROR(INDEX('3 - Land Summary'!$B$21:$B$120,(MATCH(AD584,'3 - Land Summary'!$C$21:$C$120,0))),\"\")","v":""}]
[null,{"$f":"IFERROR(INDEX('3 - Land Summary'!$B$21:$B$120,(MATCH('4 - Species Breakdown'!$V585,'3 - Land Summary'!$C$21:$C$120,0))),\"\")","v":""},null,null,{"$f":"IF(OR(COUNTIF('Look Up Data'!$D$149:$D$203,D585),COUNTIF('Look Up Data'!$D$149:$D$203,AE585)),\"YES\",\"NO\")","v":"NO"},null,null,{"$f":"IFERROR(INDEX('3 - Land Summary'!$G$21:$G$120,(MATCH(C585,'3 - Land Summary'!$C$21:$C$120,0))),\"\")","v":""},{"$f":"IFERROR(INDEX('3 - Land Summary'!$I$21:$I$120,(MATCH(C585,'3 - Land Summary'!$C$21:$C$120,0))),\"\")","v":""},"","",null,null,null,{"$f":"IFERROR(VLOOKUP(D585,'Species List'!$D$10:$E$46,2,FALSE)*J585,\"\")","v":""},{"$f":"IFERROR(VLOOKUP(D585,'Species List'!$D$51:$E$89,2,FALSE)*J585,\"\")","v":""},{"$f":"IFERROR(VLOOKUP(D585,'Species List'!$D$95:$E$102,2,FALSE)*J585,\"\")","v":""},{"$f":"IFERROR(VLOOKUP(D585,'Species List'!$I$10:$J$11,2,FALSE)*J585,\"\")","v":""},{"$f":"IFERROR(VLOOKUP(D585,'Species List'!$I$16:$J$61,2,FALSE)*J585,\"\")","v":""},{"$f":"IFERROR(VLOOKUP(D585,'Species List'!$I$66:$J$66,2,FALSE)*J585,\"\")","v":""},{"$f":"IFERROR(VLOOKUP(D585,'Species List'!$I$71:$J$82,2,FALSE)*J585,\"\")","v":""},0,null,null,null,null,null,null,{"$f":"IFERROR(INDEX('3 - Land Summary'!$B$21:$B$120,(MATCH(AD585,'3 - Land Summary'!$C$21:$C$120,0))),\"\")","v":""}]
[null,{"$f":"IFERROR(INDEX('3 - Land Summary'!$B$21:$B$120,(MATCH('4 - Species Breakdown'!$V586,'3 - Land Summary'!$C$21:$C$120,0))),\"\")","v":""},null,null,{"$f":"IF(OR(COUNTIF('Look Up Data'!$D$149:$D$203,D586),COUNTIF('Look Up Data'!$D$149:$D$203,AE586)),\"YES\",\"NO\")","v":"NO"},null,null,{"$f":"IFERROR(INDEX('3 - Land Summary'!$G$21:$G$120,(MATCH(C586,'3 - Land Summary'!$C$21:$C$120,0))),\"\")","v":""},{"$f":"IFERROR(INDEX('3 - Land Summary'!$I$21:$I$120,(MATCH(C586,'3 - Land Summary'!$C$21:$C$120,0))),\"\")","v":""},"","",null,null,null,{"$f":"IFERROR(VLOOKUP(D586,'Species List'!$D$10:$E$46,2,FALSE)*J586,\"\")","v":""},{"$f":"IFERROR(VLOOKUP(D586,'Species List'!$D$51:$E$89,2,FALSE)*J586,\"\")","v":""},{"$f":"IFERROR(VLOOKUP(D586,'Species List'!$D$95:$E$102,2,FALSE)*J586,\"\")","v":""},{"$f":"IFERROR(VLOOKUP(D586,'Species List'!$I$10:$J$11,2,FALSE)*J586,\"\")","v":""},{"$f":"IFERROR(VLOOKUP(D586,'Species List'!$I$16:$J$61,2,FALSE)*J586,\"\")","v":""},{"$f":"IFERROR(VLOOKUP(D586,'Species List'!$I$66:$J$66,2,FALSE)*J586,\"\")","v":""},{"$f":"IFERROR(VLOOKUP(D586,'Species List'!$I$71:$J$82,2,FALSE)*J586,\"\")","v":""},0,null,null,null,null,null,null,{"$f":"IFERROR(INDEX('3 - Land Summary'!$B$21:$B$120,(MATCH(AD586,'3 - Land Summary'!$C$21:$C$120,0))),\"\")","v":""}]
[null,{"$f":"IFERROR(INDEX('3 - Land Summary'!$B$21:$B$120,(MATCH('4 - Species Breakdown'!$V587,'3 - Land Summary'!$C$21:$C$120,0))),\"\")","v":""},null,null,{"$f":"IF(OR(COUNTIF('Look Up Data'!$D$149:$D$203,D587),COUNTIF('Look Up Data'!$D$149:$D$203,AE587)),\"YES\",\"NO\")","v":"NO"},null,null,{"$f":"IFERROR(INDEX('3 - Land Summary'!$G$21:$G$120,(MATCH(C587,'3 - Land Summary'!$C$21:$C$120,0))),\"\")","v":""},{"$f":"IFERROR(INDEX('3 - Land Summary'!$I$21:$I$120,(MATCH(C587,'3 - Land Summary'!$C$21:$C$120,0))),\"\")","v":""},"","",null,null,null,{"$f":"IFERROR(VLOOKUP(D587,'Species List'!$D$10:$E$46,2,FALSE)*J587,\"\")","v":""},{"$f":"IFERROR(VLOOKUP(D587,'Species List'!$D$51:$E$89,2,FALSE)*J587,\"\")","v":""},{"$f":"IFERROR(VLOOKUP(D587,'Species List'!$D$95:$E$102,2,FALSE)*J587,\"\")","v":""},{"$f":"IFERROR(VLOOKUP(D587,'Species List'!$I$10:$J$11,2,FALSE)*J587,\"\")","v":""},{"$f":"IFERROR(VLOOKUP(D587,'Species List'!$I$16:$J$61,2,FALSE)*J587,\"\")","v":""},{"$f":"IFERROR(VLOOKUP(D587,'Species List'!$I$66:$J$66,2,FALSE)*J587,\"\")","v":""},{"$f":"IFERROR(VLOOKUP(D587,'Species List'!$I$71:$J$82,2,FALSE)*J587,\"\")","v":""},0,null,null,null,null,null,null,{"$f":"IFERROR(INDEX('3 - Land Summary'!$B$21:$B$120,(MATCH(AD587,'3 - Land Summary'!$C$21:$C$120,0))),\"\")","v":""}]
[null,{"$f":"IFERROR(INDEX('3 - Land Summary'!$B$21:$B$120,(MATCH('4 - Species Breakdown'!$V588,'3 - Land Summary'!$C$21:$C$120,0))),\"\")","v":""},null,null,{"$f":"IF(OR(COUNTIF('Look Up Data'!$D$149:$D$203,D588),COUNTIF('Look Up Data'!$D$149:$D$203,AE588)),\"YES\",\"NO\")","v":"NO"},null,null,{"$f":"IFERROR(INDEX('3 - Land Summary'!$G$21:$G$120,(MATCH(C588,'3 - Land Summary'!$C$21:$C$120,0))),\"\")","v":""},{"$f":"IFERROR(INDEX('3 - Land Summary'!$I$21:$I$120,(MATCH(C588,'3 - Land Summary'!$C$21:$C$120,0))),\"\")","v":""},"","",null,null,null,{"$f":"IFERROR(VLOOKUP(D588,'Species List'!$D$10:$E$46,2,FALSE)*J588,\"\")","v":""},{"$f":"IFERROR(VLOOKUP(D588,'Species List'!$D$51:$E$89,2,FALSE)*J588,\"\")","v":""},{"$f":"IFERROR(VLOOKUP(D588,'Species List'!$D$95:$E$102,2,FALSE)*J588,\"\")","v":""},{"$f":"IFERROR(VLOOKUP(D588,'Species List'!$I$10:$J$11,2,FALSE)*J588,\"\")","v":""},{"$f":"IFERROR(VLOOKUP(D588,'Species List'!$I$16:$J$61,2,FALSE)*J588,\"\")","v":""},{"$f":"IFERROR(VLOOKUP(D588,'Species List'!$I$66:$J$66,2,FALSE)*J588,\"\")","v":""},{"$f":"IFERROR(VLOOKUP(D588,'Species List'!$I$71:$J$82,2,FALSE)*J588,\"\")","v":""},0,null,null,null,null,null,null,{"$f":"IFERROR(INDEX('3 - Land Summary'!$B$21:$B$120,(MATCH(AD588,'3 - Land Summary'!$C$21:$C$120,0))),\"\")","v":""}]
[null,{"$f":"IFERROR(INDEX('3 - Land Summary'!$B$21:$B$120,(MATCH('4 - Species Breakdown'!$V589,'3 - Land Summary'!$C$21:$C$120,0))),\"\")","v":""},null,null,{"$f":"IF(OR(COUNTIF('Look Up Data'!$D$149:$D$203,D589),COUNTIF('Look Up Data'!$D$149:$D$203,AE589)),\"YES\",\"NO\")","v":"NO"},null,null,{"$f":"IFERROR(INDEX('3 - Land Summary'!$G$21:$G$120,(MATCH(C589,'3 - Land Summary'!$C$21:$C$120,0))),\"\")","v":""},{"$f":"IFERROR(INDEX('3 - Land Summary'!$I$21:$I$120,(MATCH(C589,'3 - Land Summary'!$C$21:$C$120,0))),\"\")","v":""},"","",null,null,null,{"$f":"IFERROR(VLOOKUP(D589,'Species List'!$D$10:$E$46,2,FALSE)*J589,\"\")","v":""},{"$f":"IFERROR(VLOOKUP(D589,'Species List'!$D$51:$E$89,2,FALSE)*J589,\"\")","v":""},{"$f":"IFERROR(VLOOKUP(D589,'Species List'!$D$95:$E$102,2,FALSE)*J589,\"\")","v":""},{"$f":"IFERROR(VLOOKUP(D589,'Species List'!$I$10:$J$11,2,FALSE)*J589,\"\")","v":""},{"$f":"IFERROR(VLOOKUP(D589,'Species List'!$I$16:$J$61,2,FALSE)*J589,\"\")","v":""},{"$f":"IFERROR(VLOOKUP(D589,'Species List'!$I$66:$J$66,2,FALSE)*J589,\"\")","v":""},{"$f":"IFERROR(VLOOKUP(D589,'Species List'!$I$71:$J$82,2,FALSE)*J589,\"\")","v":""},0,null,null,null,null,null,null,{"$f":"IFERROR(INDEX('3 - Land Summary'!$B$21:$B$120,(MATCH(AD589,'3 - Land Summary'!$C$21:$C$120,0))),\"\")","v":""}]
[null,{"$f":"IFERROR(INDEX('3 - Land Summary'!$B$21:$B$120,(MATCH('4 - Species Breakdown'!$V590,'3 - Land Summary'!$C$21:$C$120,0))),\"\")","v":""},null,null,{"$f":"IF(OR(COUNTIF('Look Up Data'!$D$149:$D$203,D590),COUNTIF('Look Up Data'!$D$149:$D$203,AE590)),\"YES\",\"NO\")","v":"NO"},null,null,{"$f":"IFERROR(INDEX('3 - Land Summary'!$G$21:$G$120,(MATCH(C590,'3 - Land Summary'!$C$21:$C$120,0))),\"\")","v":""},{"$f":"IFERROR(INDEX('3 - Land Summary'!$I$21:$I$120,(MATCH(C590,'3 - Land Summary'!$C$21:$C$120,0))),\"\")","v":""},"","",null,null,null,{"$f":"IFERROR(VLOOKUP(D590,'Species List'!$D$10:$E$46,2,FALSE)*J590,\"\")","v":""},{"$f":"IFERROR(VLOOKUP(D590,'Species List'!$D$51:$E$89,2,FALSE)*J590,\"\")","v":""},{"$f":"IFERROR(VLOOKUP(D590,'Species List'!$D$95:$E$102,2,FALSE)*J590,\"\")","v":""},{"$f":"IFERROR(VLOOKUP(D590,'Species List'!$I$10:$J$11,2,FALSE)*J590,\"\")","v":""},{"$f":"IFERROR(VLOOKUP(D590,'Species List'!$I$16:$J$61,2,FALSE)*J590,\"\")","v":""},{"$f":"IFERROR(VLOOKUP(D590,'Species List'!$I$66:$J$66,2,FALSE)*J590,\"\")","v":""},{"$f":"IFERROR(VLOOKUP(D590,'Species List'!$I$71:$J$82,2,FALSE)*J590,\"\")","v":""},0,null,null,null,null,null,null,{"$f":"IFERROR(INDEX('3 - Land Summary'!$B$21:$B$120,(MATCH(AD590,'3 - Land Summary'!$C$21:$C$120,0))),\"\")","v":""}]
[null,{"$f":"IFERROR(INDEX('3 - Land Summary'!$B$21:$B$120,(MATCH('4 - Species Breakdown'!$V591,'3 - Land Summary'!$C$21:$C$120,0))),\"\")","v":""},null,null,{"$f":"IF(OR(COUNTIF('Look Up Data'!$D$149:$D$203,D591),COUNTIF('Look Up Data'!$D$149:$D$203,AE591)),\"YES\",\"NO\")","v":"NO"},null,null,{"$f":"IFERROR(INDEX('3 - Land Summary'!$G$21:$G$120,(MATCH(C591,'3 - Land Summary'!$C$21:$C$120,0))),\"\")","v":""},{"$f":"IFERROR(INDEX('3 - Land Summary'!$I$21:$I$120,(MATCH(C591,'3 - Land Summary'!$C$21:$C$120,0))),\"\")","v":""},"","",null,null,null,{"$f":"IFERROR(VLOOKUP(D591,'Species List'!$D$10:$E$46,2,FALSE)*J591,\"\")","v":""},{"$f":"IFERROR(VLOOKUP(D591,'Species List'!$D$51:$E$89,2,FALSE)*J591,\"\")","v":""},{"$f":"IFERROR(VLOOKUP(D591,'Species List'!$D$95:$E$102,2,FALSE)*J591,\"\")","v":""},{"$f":"IFERROR(VLOOKUP(D591,'Species List'!$I$10:$J$11,2,FALSE)*J591,\"\")","v":""},{"$f":"IFERROR(VLOOKUP(D591,'Species List'!$I$16:$J$61,2,FALSE)*J591,\"\")","v":""},{"$f":"IFERROR(VLOOKUP(D591,'Species List'!$I$66:$J$66,2,FALSE)*J591,\"\")","v":""},{"$f":"IFERROR(VLOOKUP(D591,'Species List'!$I$71:$J$82,2,FALSE)*J591,\"\")","v":""},0,null,null,null,null,null,null,{"$f":"IFERROR(INDEX('3 - Land Summary'!$B$21:$B$120,(MATCH(AD591,'3 - Land Summary'!$C$21:$C$120,0))),\"\")","v":""}]
[null,{"$f":"IFERROR(INDEX('3 - Land Summary'!$B$21:$B$120,(MATCH('4 - Species Breakdown'!$V592,'3 - Land Summary'!$C$21:$C$120,0))),\"\")","v":""},null,null,{"$f":"IF(OR(COUNTIF('Look Up Data'!$D$149:$D$203,D592),COUNTIF('Look Up Data'!$D$149:$D$203,AE592)),\"YES\",\"NO\")","v":"NO"},null,null,{"$f":"IFERROR(INDEX('3 - Land Summary'!$G$21:$G$120,(MATCH(C592,'3 - Land Summary'!$C$21:$C$120,0))),\"\")","v":""},{"$f":"IFERROR(INDEX('3 - Land Summary'!$I$21:$I$120,(MATCH(C592,'3 - Land Summary'!$C$21:$C$120,0))),\"\")","v":""},"","",null,null,null,{"$f":"IFERROR(VLOOKUP(D592,'Species List'!$D$10:$E$46,2,FALSE)*J592,\"\")","v":""},{"$f":"IFERROR(VLOOKUP(D592,'Species List'!$D$51:$E$89,2,FALSE)*J592,\"\")","v":""},{"$f":"IFERROR(VLOOKUP(D592,'Species List'!$D$95:$E$102,2,FALSE)*J592,\"\")","v":""},{"$f":"IFERROR(VLOOKUP(D592,'Species List'!$I$10:$J$11,2,FALSE)*J592,\"\")","v":""},{"$f":"IFERROR(VLOOKUP(D592,'Species List'!$I$16:$J$61,2,FALSE)*J592,\"\")","v":""},{"$f":"IFERROR(VLOOKUP(D592,'Species List'!$I$66:$J$66,2,FALSE)*J592,\"\")","v":""},{"$f":"IFERROR(VLOOKUP(D592,'Species List'!$I$71:$J$82,2,FALSE)*J592,\"\")","v":""},0,null,null,null,null,null,null,{"$f":"IFERROR(INDEX('3 - Land Summary'!$B$21:$B$120,(MATCH(AD592,'3 - Land Summary'!$C$21:$C$120,0))),\"\")","v":""}]
[null,{"$f":"IFERROR(INDEX('3 - Land Summary'!$B$21:$B$120,(MATCH('4 - Species Breakdown'!$V593,'3 - Land Summary'!$C$21:$C$120,0))),\"\")","v":""},null,null,{"$f":"IF(OR(COUNTIF('Look Up Data'!$D$149:$D$203,D593),COUNTIF('Look Up Data'!$D$149:$D$203,AE593)),\"YES\",\"NO\")","v":"NO"},null,null,{"$f":"IFERROR(INDEX('3 - Land Summary'!$G$21:$G$120,(MATCH(C593,'3 - Land Summary'!$C$21:$C$120,0))),\"\")","v":""},{"$f":"IFERROR(INDEX('3 - Land Summary'!$I$21:$I$120,(MATCH(C593,'3 - Land Summary'!$C$21:$C$120,0))),\"\")","v":""},"","",null,null,null,{"$f":"IFERROR(VLOOKUP(D593,'Species List'!$D$10:$E$46,2,FALSE)*J593,\"\")","v":""},{"$f":"IFERROR(VLOOKUP(D593,'Species List'!$D$51:$E$89,2,FALSE)*J593,\"\")","v":""},{"$f":"IFERROR(VLOOKUP(D593,'Species List'!$D$95:$E$102,2,FALSE)*J593,\"\")","v":""},{"$f":"IFERROR(VLOOKUP(D593,'Species List'!$I$10:$J$11,2,FALSE)*J593,\"\")","v":""},{"$f":"IFERROR(VLOOKUP(D593,'Species List'!$I$16:$J$61,2,FALSE)*J593,\"\")","v":""},{"$f":"IFERROR(VLOOKUP(D593,'Species List'!$I$66:$J$66,2,FALSE)*J593,\"\")","v":""},{"$f":"IFERROR(VLOOKUP(D593,'Species List'!$I$71:$J$82,2,FALSE)*J593,\"\")","v":""},0,null,null,null,null,null,null,{"$f":"IFERROR(INDEX('3 - Land Summary'!$B$21:$B$120,(MATCH(AD593,'3 - Land Summary'!$C$21:$C$120,0))),\"\")","v":""}]
[null,{"$f":"IFERROR(INDEX('3 - Land Summary'!$B$21:$B$120,(MATCH('4 - Species Breakdown'!$V594,'3 - Land Summary'!$C$21:$C$120,0))),\"\")","v":""},null,null,{"$f":"IF(OR(COUNTIF('Look Up Data'!$D$149:$D$203,D594),COUNTIF('Look Up Data'!$D$149:$D$203,AE594)),\"YES\",\"NO\")","v":"NO"},null,null,{"$f":"IFERROR(INDEX('3 - Land Summary'!$G$21:$G$120,(MATCH(C594,'3 - Land Summary'!$C$21:$C$120,0))),\"\")","v":""},{"$f":"IFERROR(INDEX('3 - Land Summary'!$I$21:$I$120,(MATCH(C594,'3 - Land Summary'!$C$21:$C$120,0))),\"\")","v":""},"","",null,null,null,{"$f":"IFERROR(VLOOKUP(D594,'Species List'!$D$10:$E$46,2,FALSE)*J594,\"\")","v":""},{"$f":"IFERROR(VLOOKUP(D594,'Species List'!$D$51:$E$89,2,FALSE)*J594,\"\")","v":""},{"$f":"IFERROR(VLOOKUP(D594,'Species List'!$D$95:$E$102,2,FALSE)*J594,\"\")","v":""},{"$f":"IFERROR(VLOOKUP(D594,'Species List'!$I$10:$J$11,2,FALSE)*J594,\"\")","v":""},{"$f":"IFERROR(VLOOKUP(D594,'Species List'!$I$16:$J$61,2,FALSE)*J594,\"\")","v":""},{"$f":"IFERROR(VLOOKUP(D594,'Species List'!$I$66:$J$66,2,FALSE)*J594,\"\")","v":""},{"$f":"IFERROR(VLOOKUP(D594,'Species List'!$I$71:$J$82,2,FALSE)*J594,\"\")","v":""},0,null,null,null,null,null,null,{"$f":"IFERROR(INDEX('3 - Land Summary'!$B$21:$B$120,(MATCH(AD594,'3 - Land Summary'!$C$21:$C$120,0))),\"\")","v":""}]
[null,{"$f":"IFERROR(INDEX('3 - Land Summary'!$B$21:$B$120,(MATCH('4 - Species Breakdown'!$V595,'3 - Land Summary'!$C$21:$C$120,0))),\"\")","v":""},null,null,{"$f":"IF(OR(COUNTIF('Look Up Data'!$D$149:$D$203,D595),COUNTIF('Look Up Data'!$D$149:$D$203,AE595)),\"YES\",\"NO\")","v":"NO"},null,null,{"$f":"IFERROR(INDEX('3 - Land Summary'!$G$21:$G$120,(MATCH(C595,'3 - Land Summary'!$C$21:$C$120,0))),\"\")","v":""},{"$f":"IFERROR(INDEX('3 - Land Summary'!$I$21:$I$120,(MATCH(C595,'3 - Land Summary'!$C$21:$C$120,0))),\"\")","v":""},"","",null,null,null,{"$f":"IFERROR(VLOOKUP(D595,'Species List'!$D$10:$E$46,2,FALSE)*J595,\"\")","v":""},{"$f":"IFERROR(VLOOKUP(D595,'Species List'!$D$51:$E$89,2,FALSE)*J595,\"\")","v":""},{"$f":"IFERROR(VLOOKUP(D595,'Species List'!$D$95:$E$102,2,FALSE)*J595,\"\")","v":""},{"$f":"IFERROR(VLOOKUP(D595,'Species List'!$I$10:$J$11,2,FALSE)*J595,\"\")","v":""},{"$f":"IFERROR(VLOOKUP(D595,'Species List'!$I$16:$J$61,2,FALSE)*J595,\"\")","v":""},{"$f":"IFERROR(VLOOKUP(D595,'Species List'!$I$66:$J$66,2,FALSE)*J595,\"\")","v":""},{"$f":"IFERROR(VLOOKUP(D595,'Species List'!$I$71:$J$82,2,FALSE)*J595,\"\")","v":""},0,null,null,null,null,null,null,{"$f":"IFERROR(INDEX('3 - Land Summary'!$B$21:$B$120,(MATCH(AD595,'3 - Land Summary'!$C$21:$C$120,0))),\"\")","v":""}]
[null,{"$f":"IFERROR(INDEX('3 - Land Summary'!$B$21:$B$120,(MATCH('4 - Species Breakdown'!$V596,'3 - Land Summary'!$C$21:$C$120,0))),\"\")","v":""},null,null,{"$f":"IF(OR(COUNTIF('Look Up Data'!$D$149:$D$203,D596),COUNTIF('Look Up Data'!$D$149:$D$203,AE596)),\"YES\",\"NO\")","v":"NO"},null,null,{"$f":"IFERROR(INDEX('3 - Land Summary'!$G$21:$G$120,(MATCH(C596,'3 - Land Summary'!$C$21:$C$120,0))),\"\")","v":""},{"$f":"IFERROR(INDEX('3 - Land Summary'!$I$21:$I$120,(MATCH(C596,'3 - Land Summary'!$C$21:$C$120,0))),\"\")","v":""},"","",null,null,null,{"$f":"IFERROR(VLOOKUP(D596,'Species List'!$D$10:$E$46,2,FALSE)*J596,\"\")","v":""},{"$f":"IFERROR(VLOOKUP(D596,'Species List'!$D$51:$E$89,2,FALSE)*J596,\"\")","v":""},{"$f":"IFERROR(VLOOKUP(D596,'Species List'!$D$95:$E$102,2,FALSE)*J596,\"\")","v":""},{"$f":"IFERROR(VLOOKUP(D596,'Species List'!$I$10:$J$11,2,FALSE)*J596,\"\")","v":""},{"$f":"IFERROR(VLOOKUP(D596,'Species List'!$I$16:$J$61,2,FALSE)*J596,\"\")","v":""},{"$f":"IFERROR(VLOOKUP(D596,'Species List'!$I$66:$J$66,2,FALSE)*J596,\"\")","v":""},{"$f":"IFERROR(VLOOKUP(D596,'Species List'!$I$71:$J$82,2,FALSE)*J596,\"\")","v":""},0,null,null,null,null,null,null,{"$f":"IFERROR(INDEX('3 - Land Summary'!$B$21:$B$120,(MATCH(AD596,'3 - Land Summary'!$C$21:$C$120,0))),\"\")","v":""}]
[null,{"$f":"IFERROR(INDEX('3 - Land Summary'!$B$21:$B$120,(MATCH('4 - Species Breakdown'!$V597,'3 - Land Summary'!$C$21:$C$120,0))),\"\")","v":""},null,null,{"$f":"IF(OR(COUNTIF('Look Up Data'!$D$149:$D$203,D597),COUNTIF('Look Up Data'!$D$149:$D$203,AE597)),\"YES\",\"NO\")","v":"NO"},null,null,{"$f":"IFERROR(INDEX('3 - Land Summary'!$G$21:$G$120,(MATCH(C597,'3 - Land Summary'!$C$21:$C$120,0))),\"\")","v":""},{"$f":"IFERROR(INDEX('3 - Land Summary'!$I$21:$I$120,(MATCH(C597,'3 - Land Summary'!$C$21:$C$120,0))),\"\")","v":""},"","",null,null,null,{"$f":"IFERROR(VLOOKUP(D597,'Species List'!$D$10:$E$46,2,FALSE)*J597,\"\")","v":""},{"$f":"IFERROR(VLOOKUP(D597,'Species List'!$D$51:$E$89,2,FALSE)*J597,\"\")","v":""},{"$f":"IFERROR(VLOOKUP(D597,'Species List'!$D$95:$E$102,2,FALSE)*J597,\"\")","v":""},{"$f":"IFERROR(VLOOKUP(D597,'Species List'!$I$10:$J$11,2,FALSE)*J597,\"\")","v":""},{"$f":"IFERROR(VLOOKUP(D597,'Species List'!$I$16:$J$61,2,FALSE)*J597,\"\")","v":""},{"$f":"IFERROR(VLOOKUP(D597,'Species List'!$I$66:$J$66,2,FALSE)*J597,\"\")","v":""},{"$f":"IFERROR(VLOOKUP(D597,'Species List'!$I$71:$J$82,2,FALSE)*J597,\"\")","v":""},0,null,null,null,null,null,null,{"$f":"IFERROR(INDEX('3 - Land Summary'!$B$21:$B$120,(MATCH(AD597,'3 - Land Summary'!$C$21:$C$120,0))),\"\")","v":""}]
[null,{"$f":"IFERROR(INDEX('3 - Land Summary'!$B$21:$B$120,(MATCH('4 - Species Breakdown'!$V598,'3 - Land Summary'!$C$21:$C$120,0))),\"\")","v":""},null,null,{"$f":"IF(OR(COUNTIF('Look Up Data'!$D$149:$D$203,D598),COUNTIF('Look Up Data'!$D$149:$D$203,AE598)),\"YES\",\"NO\")","v":"NO"},null,null,{"$f":"IFERROR(INDEX('3 - Land Summary'!$G$21:$G$120,(MATCH(C598,'3 - Land Summary'!$C$21:$C$120,0))),\"\")","v":""},{"$f":"IFERROR(INDEX('3 - Land Summary'!$I$21:$I$120,(MATCH(C598,'3 - Land Summary'!$C$21:$C$120,0))),\"\")","v":""},"","",null,null,null,{"$f":"IFERROR(VLOOKUP(D598,'Species List'!$D$10:$E$46,2,FALSE)*J598,\"\")","v":""},{"$f":"IFERROR(VLOOKUP(D598,'Species List'!$D$51:$E$89,2,FALSE)*J598,\"\")","v":""},{"$f":"IFERROR(VLOOKUP(D598,'Species List'!$D$95:$E$102,2,FALSE)*J598,\"\")","v":""},{"$f":"IFERROR(VLOOKUP(D598,'Species List'!$I$10:$J$11,2,FALSE)*J598,\"\")","v":""},{"$f":"IFERROR(VLOOKUP(D598,'Species List'!$I$16:$J$61,2,FALSE)*J598,\"\")","v":""},{"$f":"IFERROR(VLOOKUP(D598,'Species List'!$I$66:$J$66,2,FALSE)*J598,\"\")","v":""},{"$f":"IFERROR(VLOOKUP(D598,'Species List'!$I$71:$J$82,2,FALSE)*J598,\"\")","v":""},0,null,null,null,null,null,null,{"$f":"IFERROR(INDEX('3 - Land Summary'!$B$21:$B$120,(MATCH(AD598,'3 - Land Summary'!$C$21:$C$120,0))),\"\")","v":""}]
[null,{"$f":"IFERROR(INDEX('3 - Land Summary'!$B$21:$B$120,(MATCH('4 - Species Breakdown'!$V599,'3 - Land Summary'!$C$21:$C$120,0))),\"\")","v":""},null,null,{"$f":"IF(OR(COUNTIF('Look Up Data'!$D$149:$D$203,D599),COUNTIF('Look Up Data'!$D$149:$D$203,AE599)),\"YES\",\"NO\")","v":"NO"},null,null,{"$f":"IFERROR(INDEX('3 - Land Summary'!$G$21:$G$120,(MATCH(C599,'3 - Land Summary'!$C$21:$C$120,0))),\"\")","v":""},{"$f":"IFERROR(INDEX('3 - Land Summary'!$I$21:$I$120,(MATCH(C599,'3 - Land Summary'!$C$21:$C$120,0))),\"\")","v":""},"","",null,null,null,{"$f":"IFERROR(VLOOKUP(D599,'Species List'!$D$10:$E$46,2,FALSE)*J599,\"\")","v":""},{"$f":"IFERROR(VLOOKUP(D599,'Species List'!$D$51:$E$89,2,FALSE)*J599,\"\")","v":""},{"$f":"IFERROR(VLOOKUP(D599,'Species List'!$D$95:$E$102,2,FALSE)*J599,\"\")","v":""},{"$f":"IFERROR(VLOOKUP(D599,'Species List'!$I$10:$J$11,2,FALSE)*J599,\"\")","v":""},{"$f":"IFERROR(VLOOKUP(D599,'Species List'!$I$16:$J$61,2,FALSE)*J599,\"\")","v":""},{"$f":"IFERROR(VLOOKUP(D599,'Species List'!$I$66:$J$66,2,FALSE)*J599,\"\")","v":""},{"$f":"IFERROR(VLOOKUP(D599,'Species List'!$I$71:$J$82,2,FALSE)*J599,\"\")","v":""},0,null,null,null,null,null,null,{"$f":"IFERROR(INDEX('3 - Land Summary'!$B$21:$B$120,(MATCH(AD599,'3 - Land Summary'!$C$21:$C$120,0))),\"\")","v":""}]
[null,{"$f":"IFERROR(INDEX('3 - Land Summary'!$B$21:$B$120,(MATCH('4 - Species Breakdown'!$V600,'3 - Land Summary'!$C$21:$C$120,0))),\"\")","v":""},null,null,{"$f":"IF(OR(COUNTIF('Look Up Data'!$D$149:$D$203,D600),COUNTIF('Look Up Data'!$D$149:$D$203,AE600)),\"YES\",\"NO\")","v":"NO"},null,null,{"$f":"IFERROR(INDEX('3 - Land Summary'!$G$21:$G$120,(MATCH(C600,'3 - Land Summary'!$C$21:$C$120,0))),\"\")","v":""},{"$f":"IFERROR(INDEX('3 - Land Summary'!$I$21:$I$120,(MATCH(C600,'3 - Land Summary'!$C$21:$C$120,0))),\"\")","v":""},"","",null,null,null,{"$f":"IFERROR(VLOOKUP(D600,'Species List'!$D$10:$E$46,2,FALSE)*J600,\"\")","v":""},{"$f":"IFERROR(VLOOKUP(D600,'Species List'!$D$51:$E$89,2,FALSE)*J600,\"\")","v":""},{"$f":"IFERROR(VLOOKUP(D600,'Species List'!$D$95:$E$102,2,FALSE)*J600,\"\")","v":""},{"$f":"IFERROR(VLOOKUP(D600,'Species List'!$I$10:$J$11,2,FALSE)*J600,\"\")","v":""},{"$f":"IFERROR(VLOOKUP(D600,'Species List'!$I$16:$J$61,2,FALSE)*J600,\"\")","v":""},{"$f":"IFERROR(VLOOKUP(D600,'Species List'!$I$66:$J$66,2,FALSE)*J600,\"\")","v":""},{"$f":"IFERROR(VLOOKUP(D600,'Species List'!$I$71:$J$82,2,FALSE)*J600,\"\")","v":""},0,null,null,null,null,null,null,{"$f":"IFERROR(INDEX('3 - Land Summary'!$B$21:$B$120,(MATCH(AD600,'3 - Land Summary'!$C$21:$C$120,0))),\"\")","v":""}]
[null,{"$f":"IFERROR(INDEX('3 - Land Summary'!$B$21:$B$120,(MATCH('4 - Species Breakdown'!$V601,'3 - Land Summary'!$C$21:$C$120,0))),\"\")","v":""},null,null,{"$f":"IF(OR(COUNTIF('Look Up Data'!$D$149:$D$203,D601),COUNTIF('Look Up Data'!$D$149:$D$203,AE601)),\"YES\",\"NO\")","v":"NO"},null,null,{"$f":"IFERROR(INDEX('3 - Land Summary'!$G$21:$G$120,(MATCH(C601,'3 - Land Summary'!$C$21:$C$120,0))),\"\")","v":""},{"$f":"IFERROR(INDEX('3 - Land Summary'!$I$21:$I$120,(MATCH(C601,'3 - Land Summary'!$C$21:$C$120,0))),\"\")","v":""},"","",null,null,null,{"$f":"IFERROR(VLOOKUP(D601,'Species List'!$D$10:$E$46,2,FALSE)*J601,\"\")","v":""},{"$f":"IFERROR(VLOOKUP(D601,'Species List'!$D$51:$E$89,2,FALSE)*J601,\"\")","v":""},{"$f":"IFERROR(VLOOKUP(D601,'Species List'!$D$95:$E$102,2,FALSE)*J601,\"\")","v":""},{"$f":"IFERROR(VLOOKUP(D601,'Species List'!$I$10:$J$11,2,FALSE)*J601,\"\")","v":""},{"$f":"IFERROR(VLOOKUP(D601,'Species List'!$I$16:$J$61,2,FALSE)*J601,\"\")","v":""},{"$f":"IFERROR(VLOOKUP(D601,'Species List'!$I$66:$J$66,2,FALSE)*J601,\"\")","v":""},{"$f":"IFERROR(VLOOKUP(D601,'Species List'!$I$71:$J$82,2,FALSE)*J601,\"\")","v":""},0,null,null,null,null,null,null,{"$f":"IFERROR(INDEX('3 - Land Summary'!$B$21:$B$120,(MATCH(AD601,'3 - Land Summary'!$C$21:$C$120,0))),\"\")","v":""}]
[null,{"$f":"IFERROR(INDEX('3 - Land Summary'!$B$21:$B$120,(MATCH('4 - Species Breakdown'!$V602,'3 - Land Summary'!$C$21:$C$120,0))),\"\")","v":""},null,null,{"$f":"IF(OR(COUNTIF('Look Up Data'!$D$149:$D$203,D602),COUNTIF('Look Up Data'!$D$149:$D$203,AE602)),\"YES\",\"NO\")","v":"NO"},null,null,{"$f":"IFERROR(INDEX('3 - Land Summary'!$G$21:$G$120,(MATCH(C602,'3 - Land Summary'!$C$21:$C$120,0))),\"\")","v":""},{"$f":"IFERROR(INDEX('3 - Land Summary'!$I$21:$I$120,(MATCH(C602,'3 - Land Summary'!$C$21:$C$120,0))),\"\")","v":""},"","",null,null,null,{"$f":"IFERROR(VLOOKUP(D602,'Species List'!$D$10:$E$46,2,FALSE)*J602,\"\")","v":""},{"$f":"IFERROR(VLOOKUP(D602,'Species List'!$D$51:$E$89,2,FALSE)*J602,\"\")","v":""},{"$f":"IFERROR(VLOOKUP(D602,'Species List'!$D$95:$E$102,2,FALSE)*J602,\"\")","v":""},{"$f":"IFERROR(VLOOKUP(D602,'Species List'!$I$10:$J$11,2,FALSE)*J602,\"\")","v":""},{"$f":"IFERROR(VLOOKUP(D602,'Species List'!$I$16:$J$61,2,FALSE)*J602,\"\")","v":""},{"$f":"IFERROR(VLOOKUP(D602,'Species List'!$I$66:$J$66,2,FALSE)*J602,\"\")","v":""},{"$f":"IFERROR(VLOOKUP(D602,'Species List'!$I$71:$J$82,2,FALSE)*J602,\"\")","v":""},0,null,null,null,null,null,null,{"$f":"IFERROR(INDEX('3 - Land Summary'!$B$21:$B$120,(MATCH(AD602,'3 - Land Summary'!$C$21:$C$120,0))),\"\")","v":""}]
[null,{"$f":"IFERROR(INDEX('3 - Land Summary'!$B$21:$B$120,(MATCH('4 - Species Breakdown'!$V603,'3 - Land Summary'!$C$21:$C$120,0))),\"\")","v":""},null,null,{"$f":"IF(OR(COUNTIF('Look Up Data'!$D$149:$D$203,D603),COUNTIF('Look Up Data'!$D$149:$D$203,AE603)),\"YES\",\"NO\")","v":"NO"},null,null,{"$f":"IFERROR(INDEX('3 - Land Summary'!$G$21:$G$120,(MATCH(C603,'3 - Land Summary'!$C$21:$C$120,0))),\"\")","v":""},{"$f":"IFERROR(INDEX('3 - Land Summary'!$I$21:$I$120,(MATCH(C603,'3 - Land Summary'!$C$21:$C$120,0))),\"\")","v":""},"","",null,null,null,{"$f":"IFERROR(VLOOKUP(D603,'Species List'!$D$10:$E$46,2,FALSE)*J603,\"\")","v":""},{"$f":"IFERROR(VLOOKUP(D603,'Species List'!$D$51:$E$89,2,FALSE)*J603,\"\")","v":""},{"$f":"IFERROR(VLOOKUP(D603,'Species List'!$D$95:$E$102,2,FALSE)*J603,\"\")","v":""},{"$f":"IFERROR(VLOOKUP(D603,'Species List'!$I$10:$J$11,2,FALSE)*J603,\"\")","v":""},{"$f":"IFERROR(VLOOKUP(D603,'Species List'!$I$16:$J$61,2,FALSE)*J603,\"\")","v":""},{"$f":"IFERROR(VLOOKUP(D603,'Species List'!$I$66:$J$66,2,FALSE)*J603,\"\")","v":""},{"$f":"IFERROR(VLOOKUP(D603,'Species List'!$I$71:$J$82,2,FALSE)*J603,\"\")","v":""},0,null,null,null,null,null,null,{"$f":"IFERROR(INDEX('3 - Land Summary'!$B$21:$B$120,(MATCH(AD603,'3 - Land Summary'!$C$21:$C$120,0))),\"\")","v":""}]
[null,{"$f":"IFERROR(INDEX('3 - Land Summary'!$B$21:$B$120,(MATCH('4 - Species Breakdown'!$V604,'3 - Land Summary'!$C$21:$C$120,0))),\"\")","v":""},null,null,{"$f":"IF(OR(COUNTIF('Look Up Data'!$D$149:$D$203,D604),COUNTIF('Look Up Data'!$D$149:$D$203,AE604)),\"YES\",\"NO\")","v":"NO"},null,null,{"$f":"IFERROR(INDEX('3 - Land Summary'!$G$21:$G$120,(MATCH(C604,'3 - Land Summary'!$C$21:$C$120,0))),\"\")","v":""},{"$f":"IFERROR(INDEX('3 - Land Summary'!$I$21:$I$120,(MATCH(C604,'3 - Land Summary'!$C$21:$C$120,0))),\"\")","v":""},"","",null,null,null,{"$f":"IFERROR(VLOOKUP(D604,'Species List'!$D$10:$E$46,2,FALSE)*J604,\"\")","v":""},{"$f":"IFERROR(VLOOKUP(D604,'Species List'!$D$51:$E$89,2,FALSE)*J604,\"\")","v":""},{"$f":"IFERROR(VLOOKUP(D604,'Species List'!$D$95:$E$102,2,FALSE)*J604,\"\")","v":""},{"$f":"IFERROR(VLOOKUP(D604,'Species List'!$I$10:$J$11,2,FALSE)*J604,\"\")","v":""},{"$f":"IFERROR(VLOOKUP(D604,'Species List'!$I$16:$J$61,2,FALSE)*J604,\"\")","v":""},{"$f":"IFERROR(VLOOKUP(D604,'Species List'!$I$66:$J$66,2,FALSE)*J604,\"\")","v":""},{"$f":"IFERROR(VLOOKUP(D604,'Species List'!$I$71:$J$82,2,FALSE)*J604,\"\")","v":""},0,null,null,null,null,null,null,{"$f":"IFERROR(INDEX('3 - Land Summary'!$B$21:$B$120,(MATCH(AD604,'3 - Land Summary'!$C$21:$C$120,0))),\"\")","v":""}]
[null,{"$f":"IFERROR(INDEX('3 - Land Summary'!$B$21:$B$120,(MATCH('4 - Species Breakdown'!$V605,'3 - Land Summary'!$C$21:$C$120,0))),\"\")","v":""},null,null,{"$f":"IF(OR(COUNTIF('Look Up Data'!$D$149:$D$203,D605),COUNTIF('Look Up Data'!$D$149:$D$203,AE605)),\"YES\",\"NO\")","v":"NO"},null,null,{"$f":"IFERROR(INDEX('3 - Land Summary'!$G$21:$G$120,(MATCH(C605,'3 - Land Summary'!$C$21:$C$120,0))),\"\")","v":""},{"$f":"IFERROR(INDEX('3 - Land Summary'!$I$21:$I$120,(MATCH(C605,'3 - Land Summary'!$C$21:$C$120,0))),\"\")","v":""},"","",null,null,null,{"$f":"IFERROR(VLOOKUP(D605,'Species List'!$D$10:$E$46,2,FALSE)*J605,\"\")","v":""},{"$f":"IFERROR(VLOOKUP(D605,'Species List'!$D$51:$E$89,2,FALSE)*J605,\"\")","v":""},{"$f":"IFERROR(VLOOKUP(D605,'Species List'!$D$95:$E$102,2,FALSE)*J605,\"\")","v":""},{"$f":"IFERROR(VLOOKUP(D605,'Species List'!$I$10:$J$11,2,FALSE)*J605,\"\")","v":""},{"$f":"IFERROR(VLOOKUP(D605,'Species List'!$I$16:$J$61,2,FALSE)*J605,\"\")","v":""},{"$f":"IFERROR(VLOOKUP(D605,'Species List'!$I$66:$J$66,2,FALSE)*J605,\"\")","v":""},{"$f":"IFERROR(VLOOKUP(D605,'Species List'!$I$71:$J$82,2,FALSE)*J605,\"\")","v":""},0,null,null,null,null,null,null,{"$f":"IFERROR(INDEX('3 - Land Summary'!$B$21:$B$120,(MATCH(AD605,'3 - Land Summary'!$C$21:$C$120,0))),\"\")","v":""}]
[null,{"$f":"IFERROR(INDEX('3 - Land Summary'!$B$21:$B$120,(MATCH('4 - Species Breakdown'!$V606,'3 - Land Summary'!$C$21:$C$120,0))),\"\")","v":""},null,null,{"$f":"IF(OR(COUNTIF('Look Up Data'!$D$149:$D$203,D606),COUNTIF('Look Up Data'!$D$149:$D$203,AE606)),\"YES\",\"NO\")","v":"NO"},null,null,{"$f":"IFERROR(INDEX('3 - Land Summary'!$G$21:$G$120,(MATCH(C606,'3 - Land Summary'!$C$21:$C$120,0))),\"\")","v":""},{"$f":"IFERROR(INDEX('3 - Land Summary'!$I$21:$I$120,(MATCH(C606,'3 - Land Summary'!$C$21:$C$120,0))),\"\")","v":""},"","",null,null,null,{"$f":"IFERROR(VLOOKUP(D606,'Species List'!$D$10:$E$46,2,FALSE)*J606,\"\")","v":""},{"$f":"IFERROR(VLOOKUP(D606,'Species List'!$D$51:$E$89,2,FALSE)*J606,\"\")","v":""},{"$f":"IFERROR(VLOOKUP(D606,'Species List'!$D$95:$E$102,2,FALSE)*J606,\"\")","v":""},{"$f":"IFERROR(VLOOKUP(D606,'Species List'!$I$10:$J$11,2,FALSE)*J606,\"\")","v":""},{"$f":"IFERROR(VLOOKUP(D606,'Species List'!$I$16:$J$61,2,FALSE)*J606,\"\")","v":""},{"$f":"IFERROR(VLOOKUP(D606,'Species List'!$I$66:$J$66,2,FALSE)*J606,\"\")","v":""},{"$f":"IFERROR(VLOOKUP(D606,'Species List'!$I$71:$J$82,2,FALSE)*J606,\"\")","v":""},0,null,null,null,null,null,null,{"$f":"IFERROR(INDEX('3 - Land Summary'!$B$21:$B$120,(MATCH(AD606,'3 - Land Summary'!$C$21:$C$120,0))),\"\")","v":""}]
[null,{"$f":"IFERROR(INDEX('3 - Land Summary'!$B$21:$B$120,(MATCH('4 - Species Breakdown'!$V607,'3 - Land Summary'!$C$21:$C$120,0))),\"\")","v":""},null,null,{"$f":"IF(OR(COUNTIF('Look Up Data'!$D$149:$D$203,D607),COUNTIF('Look Up Data'!$D$149:$D$203,AE607)),\"YES\",\"NO\")","v":"NO"},null,null,{"$f":"IFERROR(INDEX('3 - Land Summary'!$G$21:$G$120,(MATCH(C607,'3 - Land Summary'!$C$21:$C$120,0))),\"\")","v":""},{"$f":"IFERROR(INDEX('3 - Land Summary'!$I$21:$I$120,(MATCH(C607,'3 - Land Summary'!$C$21:$C$120,0))),\"\")","v":""},{"$f":"IFERROR(((H607-I607)*F607)/100,\"\")","v":""},"",null,null,null,{"$f":"IFERROR(VLOOKUP(D607,'Species List'!$D$10:$E$46,2,FALSE)*J607,\"\")","v":""},{"$f":"IFERROR(VLOOKUP(D607,'Species List'!$D$51:$E$89,2,FALSE)*J607,\"\")","v":""},{"$f":"IFERROR(VLOOKUP(D607,'Species List'!$D$95:$E$102,2,FALSE)*J607,\"\")","v":""},{"$f":"IFERROR(VLOOKUP(D607,'Species List'!$I$10:$J$11,2,FALSE)*J607,\"\")","v":""},{"$f":"IFERROR(VLOOKUP(D607,'Species List'!$I$16:$J$61,2,FALSE)*J607,\"\")","v":""},{"$f":"IFERROR(VLOOKUP(D607,'Species List'!$I$66:$J$66,2,FALSE)*J607,\"\")","v":""},{"$f":"IFERROR(VLOOKUP(D607,'Species List'!$I$71:$J$82,2,FALSE)*J607,\"\")","v":""},{"$f":"C607","v":0},null,null,null,null,null,null,{"$f":"IFERROR(INDEX('3 - Land Summary'!$B$21:$B$120,(MATCH(AD607,'3 - Land Summary'!$C$21:$C$120,0))),\"\")","v":""}]
[null,{"$f":"IFERROR(INDEX('3 - Land Summary'!$B$21:$B$120,(MATCH('4 - Species Breakdown'!$V608,'3 - Land Summary'!$C$21:$C$120,0))),\"\")","v":""},null,null,{"$f":"IF(OR(COUNTIF('Look Up Data'!$D$149:$D$203,D608),COUNTIF('Look Up Data'!$D$149:$D$203,AE608)),\"YES\",\"NO\")","v":"NO"},null,null,{"$f":"IFERROR(INDEX('3 - Land Summary'!$G$21:$G$120,(MATCH(C608,'3 - Land Summary'!$C$21:$C$120,0))),\"\")","v":""},{"$f":"IFERROR(INDEX('3 - Land Summary'!$I$21:$I$120,(MATCH(C608,'3 - Land Summary'!$C$21:$C$120,0))),\"\")","v":""},"",{"$f":"IFERROR(ROUND(J608*G608,0),\"\")","v":""},null,null,null,{"$f":"IFERROR(VLOOKUP(D608,'Species List'!$D$10:$E$46,2,FALSE)*J608,\"\")","v":""},{"$f":"IFERROR(VLOOKUP(D608,'Species List'!$D$51:$E$89,2,FALSE)*J608,\"\")","v":""},{"$f":"IFERROR(VLOOKUP(D608,'Species List'!$D$95:$E$102,2,FALSE)*J608,\"\")","v":""},{"$f":"IFERROR(VLOOKUP(D608,'Species List'!$I$10:$J$11,2,FALSE)*J608,\"\")","v":""},{"$f":"IFERROR(VLOOKUP(D608,'Species List'!$I$16:$J$61,2,FALSE)*J608,\"\")","v":""},{"$f":"IFERROR(VLOOKUP(D608,'Species List'!$I$66:$J$66,2,FALSE)*J608,\"\")","v":""},{"$f":"IFERROR(VLOOKUP(D608,'Species List'!$I$71:$J$82,2,FALSE)*J608,\"\")","v":""},0,null,null,null,null,null,null,{"$f":"IFERROR(INDEX('3 - Land Summary'!$B$21:$B$120,(MATCH(AD608,'3 - Land Summary'!$C$21:$C$120,0))),\"\")","v":""}]
[null,{"$f":"IFERROR(INDEX('3 - Land Summary'!$B$21:$B$120,(MATCH('4 - Species Breakdown'!$V609,'3 - Land Summary'!$C$21:$C$120,0))),\"\")","v":""},null,null,{"$f":"IF(OR(COUNTIF('Look Up Data'!$D$149:$D$203,D609),COUNTIF('Look Up Data'!$D$149:$D$203,AE609)),\"YES\",\"NO\")","v":"NO"},null,null,{"$f":"IFERROR(INDEX('3 - Land Summary'!$G$21:$G$120,(MATCH(C609,'3 - Land Summary'!$C$21:$C$120,0))),\"\")","v":""},{"$f":"IFERROR(INDEX('3 - Land Summary'!$I$21:$I$120,(MATCH(C609,'3 - Land Summary'!$C$21:$C$120,0))),\"\")","v":""},"","",null,null,null,{"$f":"IFERROR(VLOOKUP(D609,'Species List'!$D$10:$E$46,2,FALSE)*J609,\"\")","v":""},{"$f":"IFERROR(VLOOKUP(D609,'Species List'!$D$51:$E$89,2,FALSE)*J609,\"\")","v":""},{"$f":"IFERROR(VLOOKUP(D609,'Species List'!$D$95:$E$102,2,FALSE)*J609,\"\")","v":""},{"$f":"IFERROR(VLOOKUP(D609,'Species List'!$I$10:$J$11,2,FALSE)*J609,\"\")","v":""},{"$f":"IFERROR(VLOOKUP(D609,'Species List'!$I$16:$J$61,2,FALSE)*J609,\"\")","v":""},{"$f":"IFERROR(VLOOKUP(D609,'Species List'!$I$66:$J$66,2,FALSE)*J609,\"\")","v":""},{"$f":"IFERROR(VLOOKUP(D609,'Species List'!$I$71:$J$82,2,FALSE)*J609,\"\")","v":""},0,null,null,null,null,null,null,{"$f":"IFERROR(INDEX('3 - Land Summary'!$B$21:$B$120,(MATCH(AD609,'3 - Land Summary'!$C$21:$C$120,0))),\"\")","v":""}]
[null,{"$f":"IFERROR(INDEX('3 - Land Summary'!$B$21:$B$120,(MATCH('4 - Species Breakdown'!$V610,'3 - Land Summary'!$C$21:$C$120,0))),\"\")","v":""},null,null,{"$f":"IF(OR(COUNTIF('Look Up Data'!$D$149:$D$203,D610),COUNTIF('Look Up Data'!$D$149:$D$203,AE610)),\"YES\",\"NO\")","v":"NO"},null,null,{"$f":"IFERROR(INDEX('3 - Land Summary'!$G$21:$G$120,(MATCH(C610,'3 - Land Summary'!$C$21:$C$120,0))),\"\")","v":""},{"$f":"IFERROR(INDEX('3 - Land Summary'!$I$21:$I$120,(MATCH(C610,'3 - Land Summary'!$C$21:$C$120,0))),\"\")","v":""},"","",null,null,null,{"$f":"IFERROR(VLOOKUP(D610,'Species List'!$D$10:$E$46,2,FALSE)*J610,\"\")","v":""},{"$f":"IFERROR(VLOOKUP(D610,'Species List'!$D$51:$E$89,2,FALSE)*J610,\"\")","v":""},{"$f":"IFERROR(VLOOKUP(D610,'Species List'!$D$95:$E$102,2,FALSE)*J610,\"\")","v":""},{"$f":"IFERROR(VLOOKUP(D610,'Species List'!$I$10:$J$11,2,FALSE)*J610,\"\")","v":""},{"$f":"IFERROR(VLOOKUP(D610,'Species List'!$I$16:$J$61,2,FALSE)*J610,\"\")","v":""},{"$f":"IFERROR(VLOOKUP(D610,'Species List'!$I$66:$J$66,2,FALSE)*J610,\"\")","v":""},{"$f":"IFERROR(VLOOKUP(D610,'Species List'!$I$71:$J$82,2,FALSE)*J610,\"\")","v":""},0,null,null,null,null,null,null,{"$f":"IFERROR(INDEX('3 - Land Summary'!$B$21:$B$120,(MATCH(AD610,'3 - Land Summary'!$C$21:$C$120,0))),\"\")","v":""}]
[null,{"$f":"IFERROR(INDEX('3 - Land Summary'!$B$21:$B$120,(MATCH('4 - Species Breakdown'!$V611,'3 - Land Summary'!$C$21:$C$120,0))),\"\")","v":""},null,null,{"$f":"IF(OR(COUNTIF('Look Up Data'!$D$149:$D$203,D611),COUNTIF('Look Up Data'!$D$149:$D$203,AE611)),\"YES\",\"NO\")","v":"NO"},null,null,{"$f":"IFERROR(INDEX('3 - Land Summary'!$G$21:$G$120,(MATCH(C611,'3 - Land Summary'!$C$21:$C$120,0))),\"\")","v":""},{"$f":"IFERROR(INDEX('3 - Land Summary'!$I$21:$I$120,(MATCH(C611,'3 - Land Summary'!$C$21:$C$120,0))),\"\")","v":""},"","",null,null,null,{"$f":"IFERROR(VLOOKUP(D611,'Species List'!$D$10:$E$46,2,FALSE)*J611,\"\")","v":""},{"$f":"IFERROR(VLOOKUP(D611,'Species List'!$D$51:$E$89,2,FALSE)*J611,\"\")","v":""},{"$f":"IFERROR(VLOOKUP(D611,'Species List'!$D$95:$E$102,2,FALSE)*J611,\"\")","v":""},{"$f":"IFERROR(VLOOKUP(D611,'Species List'!$I$10:$J$11,2,FALSE)*J611,\"\")","v":""},{"$f":"IFERROR(VLOOKUP(D611,'Species List'!$I$16:$J$61,2,FALSE)*J611,\"\")","v":""},{"$f":"IFERROR(VLOOKUP(D611,'Species List'!$I$66:$J$66,2,FALSE)*J611,\"\")","v":""},{"$f":"IFERROR(VLOOKUP(D611,'Species List'!$I$71:$J$82,2,FALSE)*J611,\"\")","v":""},0,null,null,null,null,null,null,{"$f":"IFERROR(INDEX('3 - Land Summary'!$B$21:$B$120,(MATCH(AD611,'3 - Land Summary'!$C$21:$C$120,0))),\"\")","v":""}]
[null,{"$f":"IFERROR(INDEX('3 - Land Summary'!$B$21:$B$120,(MATCH('4 - Species Breakdown'!$V612,'3 - Land Summary'!$C$21:$C$120,0))),\"\")","v":""},null,null,{"$f":"IF(OR(COUNTIF('Look Up Data'!$D$149:$D$203,D612),COUNTIF('Look Up Data'!$D$149:$D$203,AE612)),\"YES\",\"NO\")","v":"NO"},null,null,{"$f":"IFERROR(INDEX('3 - Land Summary'!$G$21:$G$120,(MATCH(C612,'3 - Land Summary'!$C$21:$C$120,0))),\"\")","v":""},{"$f":"IFERROR(INDEX('3 - Land Summary'!$I$21:$I$120,(MATCH(C612,'3 - Land Summary'!$C$21:$C$120,0))),\"\")","v":""},"","",null,null,null,{"$f":"IFERROR(VLOOKUP(D612,'Species List'!$D$10:$E$46,2,FALSE)*J612,\"\")","v":""},{"$f":"IFERROR(VLOOKUP(D612,'Species List'!$D$51:$E$89,2,FALSE)*J612,\"\")","v":""},{"$f":"IFERROR(VLOOKUP(D612,'Species List'!$D$95:$E$102,2,FALSE)*J612,\"\")","v":""},{"$f":"IFERROR(VLOOKUP(D612,'Species List'!$I$10:$J$11,2,FALSE)*J612,\"\")","v":""},{"$f":"IFERROR(VLOOKUP(D612,'Species List'!$I$16:$J$61,2,FALSE)*J612,\"\")","v":""},{"$f":"IFERROR(VLOOKUP(D612,'Species List'!$I$66:$J$66,2,FALSE)*J612,\"\")","v":""},{"$f":"IFERROR(VLOOKUP(D612,'Species List'!$I$71:$J$82,2,FALSE)*J612,\"\")","v":""},0,null,null,null,null,null,null,{"$f":"IFERROR(INDEX('3 - Land Summary'!$B$21:$B$120,(MATCH(AD612,'3 - Land Summary'!$C$21:$C$120,0))),\"\")","v":""}]
[null,{"$f":"IFERROR(INDEX('3 - Land Summary'!$B$21:$B$120,(MATCH('4 - Species Breakdown'!$V613,'3 - Land Summary'!$C$21:$C$120,0))),\"\")","v":""},null,null,{"$f":"IF(OR(COUNTIF('Look Up Data'!$D$149:$D$203,D613),COUNTIF('Look Up Data'!$D$149:$D$203,AE613)),\"YES\",\"NO\")","v":"NO"},null,null,{"$f":"IFERROR(INDEX('3 - Land Summary'!$G$21:$G$120,(MATCH(C613,'3 - Land Summary'!$C$21:$C$120,0))),\"\")","v":""},{"$f":"IFERROR(INDEX('3 - Land Summary'!$I$21:$I$120,(MATCH(C613,'3 - Land Summary'!$C$21:$C$120,0))),\"\")","v":""},"","",null,null,null,{"$f":"IFERROR(VLOOKUP(D613,'Species List'!$D$10:$E$46,2,FALSE)*J613,\"\")","v":""},{"$f":"IFERROR(VLOOKUP(D613,'Species List'!$D$51:$E$89,2,FALSE)*J613,\"\")","v":""},{"$f":"IFERROR(VLOOKUP(D613,'Species List'!$D$95:$E$102,2,FALSE)*J613,\"\")","v":""},{"$f":"IFERROR(VLOOKUP(D613,'Species List'!$I$10:$J$11,2,FALSE)*J613,\"\")","v":""},{"$f":"IFERROR(VLOOKUP(D613,'Species List'!$I$16:$J$61,2,FALSE)*J613,\"\")","v":""},{"$f":"IFERROR(VLOOKUP(D613,'Species List'!$I$66:$J$66,2,FALSE)*J613,\"\")","v":""},{"$f":"IFERROR(VLOOKUP(D613,'Species List'!$I$71:$J$82,2,FALSE)*J613,\"\")","v":""},0,null,null,null,null,null,null,{"$f":"IFERROR(INDEX('3 - Land Summary'!$B$21:$B$120,(MATCH(AD613,'3 - Land Summary'!$C$21:$C$120,0))),\"\")","v":""}]
[null,{"$f":"IFERROR(INDEX('3 - Land Summary'!$B$21:$B$120,(MATCH('4 - Species Breakdown'!$V614,'3 - Land Summary'!$C$21:$C$120,0))),\"\")","v":""},null,null,{"$f":"IF(OR(COUNTIF('Look Up Data'!$D$149:$D$203,D614),COUNTIF('Look Up Data'!$D$149:$D$203,AE614)),\"YES\",\"NO\")","v":"NO"},null,null,{"$f":"IFERROR(INDEX('3 - Land Summary'!$G$21:$G$120,(MATCH(C614,'3 - Land Summary'!$C$21:$C$120,0))),\"\")","v":""},{"$f":"IFERROR(INDEX('3 - Land Summary'!$I$21:$I$120,(MATCH(C614,'3 - Land Summary'!$C$21:$C$120,0))),\"\")","v":""},"","",null,null,null,{"$f":"IFERROR(VLOOKUP(D614,'Species List'!$D$10:$E$46,2,FALSE)*J614,\"\")","v":""},{"$f":"IFERROR(VLOOKUP(D614,'Species List'!$D$51:$E$89,2,FALSE)*J614,\"\")","v":""},{"$f":"IFERROR(VLOOKUP(D614,'Species List'!$D$95:$E$102,2,FALSE)*J614,\"\")","v":""},{"$f":"IFERROR(VLOOKUP(D614,'Species List'!$I$10:$J$11,2,FALSE)*J614,\"\")","v":""},{"$f":"IFERROR(VLOOKUP(D614,'Species List'!$I$16:$J$61,2,FALSE)*J614,\"\")","v":""},{"$f":"IFERROR(VLOOKUP(D614,'Species List'!$I$66:$J$66,2,FALSE)*J614,\"\")","v":""},{"$f":"IFERROR(VLOOKUP(D614,'Species List'!$I$71:$J$82,2,FALSE)*J614,\"\")","v":""},0,null,null,null,null,null,null,{"$f":"IFERROR(INDEX('3 - Land Summary'!$B$21:$B$120,(MATCH(AD614,'3 - Land Summary'!$C$21:$C$120,0))),\"\")","v":""}]
[null,{"$f":"IFERROR(INDEX('3 - Land Summary'!$B$21:$B$120,(MATCH('4 - Species Breakdown'!$V615,'3 - Land Summary'!$C$21:$C$120,0))),\"\")","v":""},null,null,{"$f":"IF(OR(COUNTIF('Look Up Data'!$D$149:$D$203,D615),COUNTIF('Look Up Data'!$D$149:$D$203,AE615)),\"YES\",\"NO\")","v":"NO"},null,null,{"$f":"IFERROR(INDEX('3 - Land Summary'!$G$21:$G$120,(MATCH(C615,'3 - Land Summary'!$C$21:$C$120,0))),\"\")","v":""},{"$f":"IFERROR(INDEX('3 - Land Summary'!$I$21:$I$120,(MATCH(C615,'3 - Land Summary'!$C$21:$C$120,0))),\"\")","v":""},"","",null,null,null,{"$f":"IFERROR(VLOOKUP(D615,'Species List'!$D$10:$E$46,2,FALSE)*J615,\"\")","v":""},{"$f":"IFERROR(VLOOKUP(D615,'Species List'!$D$51:$E$89,2,FALSE)*J615,\"\")","v":""},{"$f":"IFERROR(VLOOKUP(D615,'Species List'!$D$95:$E$102,2,FALSE)*J615,\"\")","v":""},{"$f":"IFERROR(VLOOKUP(D615,'Species List'!$I$10:$J$11,2,FALSE)*J615,\"\")","v":""},{"$f":"IFERROR(VLOOKUP(D615,'Species List'!$I$16:$J$61,2,FALSE)*J615,\"\")","v":""},{"$f":"IFERROR(VLOOKUP(D615,'Species List'!$I$66:$J$66,2,FALSE)*J615,\"\")","v":""},{"$f":"IFERROR(VLOOKUP(D615,'Species List'!$I$71:$J$82,2,FALSE)*J615,\"\")","v":""},0,null,null,null,null,null,null,{"$f":"IFERROR(INDEX('3 - Land Summary'!$B$21:$B$120,(MATCH(AD615,'3 - Land Summary'!$C$21:$C$120,0))),\"\")","v":""}]
[null,{"$f":"IFERROR(INDEX('3 - Land Summary'!$B$21:$B$120,(MATCH('4 - Species Breakdown'!$V616,'3 - Land Summary'!$C$21:$C$120,0))),\"\")","v":""},null,null,{"$f":"IF(OR(COUNTIF('Look Up Data'!$D$149:$D$203,D616),COUNTIF('Look Up Data'!$D$149:$D$203,AE616)),\"YES\",\"NO\")","v":"NO"},null,null,{"$f":"IFERROR(INDEX('3 - Land Summary'!$G$21:$G$120,(MATCH(C616,'3 - Land Summary'!$C$21:$C$120,0))),\"\")","v":""},{"$f":"IFERROR(INDEX('3 - Land Summary'!$I$21:$I$120,(MATCH(C616,'3 - Land Summary'!$C$21:$C$120,0))),\"\")","v":""},"","",null,null,null,{"$f":"IFERROR(VLOOKUP(D616,'Species List'!$D$10:$E$46,2,FALSE)*J616,\"\")","v":""},{"$f":"IFERROR(VLOOKUP(D616,'Species List'!$D$51:$E$89,2,FALSE)*J616,\"\")","v":""},{"$f":"IFERROR(VLOOKUP(D616,'Species List'!$D$95:$E$102,2,FALSE)*J616,\"\")","v":""},{"$f":"IFERROR(VLOOKUP(D616,'Species List'!$I$10:$J$11,2,FALSE)*J616,\"\")","v":""},{"$f":"IFERROR(VLOOKUP(D616,'Species List'!$I$16:$J$61,2,FALSE)*J616,\"\")","v":""},{"$f":"IFERROR(VLOOKUP(D616,'Species List'!$I$66:$J$66,2,FALSE)*J616,\"\")","v":""},{"$f":"IFERROR(VLOOKUP(D616,'Species List'!$I$71:$J$82,2,FALSE)*J616,\"\")","v":""},0,null,null,null,null,null,null,{"$f":"IFERROR(INDEX('3 - Land Summary'!$B$21:$B$120,(MATCH(AD616,'3 - Land Summary'!$C$21:$C$120,0))),\"\")","v":""}]
[null,{"$f":"IFERROR(INDEX('3 - Land Summary'!$B$21:$B$120,(MATCH('4 - Species Breakdown'!$V617,'3 - Land Summary'!$C$21:$C$120,0))),\"\")","v":""},null,null,{"$f":"IF(OR(COUNTIF('Look Up Data'!$D$149:$D$203,D617),COUNTIF('Look Up Data'!$D$149:$D$203,AE617)),\"YES\",\"NO\")","v":"NO"},null,null,{"$f":"IFERROR(INDEX('3 - Land Summary'!$G$21:$G$120,(MATCH(C617,'3 - Land Summary'!$C$21:$C$120,0))),\"\")","v":""},{"$f":"IFERROR(INDEX('3 - Land Summary'!$I$21:$I$120,(MATCH(C617,'3 - Land Summary'!$C$21:$C$120,0))),\"\")","v":""},"","",null,null,null,{"$f":"IFERROR(VLOOKUP(D617,'Species List'!$D$10:$E$46,2,FALSE)*J617,\"\")","v":""},{"$f":"IFERROR(VLOOKUP(D617,'Species List'!$D$51:$E$89,2,FALSE)*J617,\"\")","v":""},{"$f":"IFERROR(VLOOKUP(D617,'Species List'!$D$95:$E$102,2,FALSE)*J617,\"\")","v":""},{"$f":"IFERROR(VLOOKUP(D617,'Species List'!$I$10:$J$11,2,FALSE)*J617,\"\")","v":""},{"$f":"IFERROR(VLOOKUP(D617,'Species List'!$I$16:$J$61,2,FALSE)*J617,\"\")","v":""},{"$f":"IFERROR(VLOOKUP(D617,'Species List'!$I$66:$J$66,2,FALSE)*J617,\"\")","v":""},{"$f":"IFERROR(VLOOKUP(D617,'Species List'!$I$71:$J$82,2,FALSE)*J617,\"\")","v":""},0,null,null,null,null,null,null,{"$f":"IFERROR(INDEX('3 - Land Summary'!$B$21:$B$120,(MATCH(AD617,'3 - Land Summary'!$C$21:$C$120,0))),\"\")","v":""}]
[null,{"$f":"IFERROR(INDEX('3 - Land Summary'!$B$21:$B$120,(MATCH('4 - Species Breakdown'!$V618,'3 - Land Summary'!$C$21:$C$120,0))),\"\")","v":""},null,null,{"$f":"IF(OR(COUNTIF('Look Up Data'!$D$149:$D$203,D618),COUNTIF('Look Up Data'!$D$149:$D$203,AE618)),\"YES\",\"NO\")","v":"NO"},null,null,{"$f":"IFERROR(INDEX('3 - Land Summary'!$G$21:$G$120,(MATCH(C618,'3 - Land Summary'!$C$21:$C$120,0))),\"\")","v":""},{"$f":"IFERROR(INDEX('3 - Land Summary'!$I$21:$I$120,(MATCH(C618,'3 - Land Summary'!$C$21:$C$120,0))),\"\")","v":""},"","",null,null,null,{"$f":"IFERROR(VLOOKUP(D618,'Species List'!$D$10:$E$46,2,FALSE)*J618,\"\")","v":""},{"$f":"IFERROR(VLOOKUP(D618,'Species List'!$D$51:$E$89,2,FALSE)*J618,\"\")","v":""},{"$f":"IFERROR(VLOOKUP(D618,'Species List'!$D$95:$E$102,2,FALSE)*J618,\"\")","v":""},{"$f":"IFERROR(VLOOKUP(D618,'Species List'!$I$10:$J$11,2,FALSE)*J618,\"\")","v":""},{"$f":"IFERROR(VLOOKUP(D618,'Species List'!$I$16:$J$61,2,FALSE)*J618,\"\")","v":""},{"$f":"IFERROR(VLOOKUP(D618,'Species List'!$I$66:$J$66,2,FALSE)*J618,\"\")","v":""},{"$f":"IFERROR(VLOOKUP(D618,'Species List'!$I$71:$J$82,2,FALSE)*J618,\"\")","v":""},0,null,null,null,null,null,null,{"$f":"IFERROR(INDEX('3 - Land Summary'!$B$21:$B$120,(MATCH(AD618,'3 - Land Summary'!$C$21:$C$120,0))),\"\")","v":""}]
[null,{"$f":"IFERROR(INDEX('3 - Land Summary'!$B$21:$B$120,(MATCH('4 - Species Breakdown'!$V619,'3 - Land Summary'!$C$21:$C$120,0))),\"\")","v":""},null,null,{"$f":"IF(OR(COUNTIF('Look Up Data'!$D$149:$D$203,D619),COUNTIF('Look Up Data'!$D$149:$D$203,AE619)),\"YES\",\"NO\")","v":"NO"},null,null,{"$f":"IFERROR(INDEX('3 - Land Summary'!$G$21:$G$120,(MATCH(C619,'3 - Land Summary'!$C$21:$C$120,0))),\"\")","v":""},{"$f":"IFERROR(INDEX('3 - Land Summary'!$I$21:$I$120,(MATCH(C619,'3 - Land Summary'!$C$21:$C$120,0))),\"\")","v":""},"","",null,null,null,{"$f":"IFERROR(VLOOKUP(D619,'Species List'!$D$10:$E$46,2,FALSE)*J619,\"\")","v":""},{"$f":"IFERROR(VLOOKUP(D619,'Species List'!$D$51:$E$89,2,FALSE)*J619,\"\")","v":""},{"$f":"IFERROR(VLOOKUP(D619,'Species List'!$D$95:$E$102,2,FALSE)*J619,\"\")","v":""},{"$f":"IFERROR(VLOOKUP(D619,'Species List'!$I$10:$J$11,2,FALSE)*J619,\"\")","v":""},{"$f":"IFERROR(VLOOKUP(D619,'Species List'!$I$16:$J$61,2,FALSE)*J619,\"\")","v":""},{"$f":"IFERROR(VLOOKUP(D619,'Species List'!$I$66:$J$66,2,FALSE)*J619,\"\")","v":""},{"$f":"IFERROR(VLOOKUP(D619,'Species List'!$I$71:$J$82,2,FALSE)*J619,\"\")","v":""},0,null,null,null,null,null,null,{"$f":"IFERROR(INDEX('3 - Land Summary'!$B$21:$B$120,(MATCH(AD619,'3 - Land Summary'!$C$21:$C$120,0))),\"\")","v":""}]
[null,{"$f":"IFERROR(INDEX('3 - Land Summary'!$B$21:$B$120,(MATCH('4 - Species Breakdown'!$V620,'3 - Land Summary'!$C$21:$C$120,0))),\"\")","v":""},null,null,{"$f":"IF(OR(COUNTIF('Look Up Data'!$D$149:$D$203,D620),COUNTIF('Look Up Data'!$D$149:$D$203,AE620)),\"YES\",\"NO\")","v":"NO"},null,null,{"$f":"IFERROR(INDEX('3 - Land Summary'!$G$21:$G$120,(MATCH(C620,'3 - Land Summary'!$C$21:$C$120,0))),\"\")","v":""},{"$f":"IFERROR(INDEX('3 - Land Summary'!$I$21:$I$120,(MATCH(C620,'3 - Land Summary'!$C$21:$C$120,0))),\"\")","v":""},"","",null,null,null,{"$f":"IFERROR(VLOOKUP(D620,'Species List'!$D$10:$E$46,2,FALSE)*J620,\"\")","v":""},{"$f":"IFERROR(VLOOKUP(D620,'Species List'!$D$51:$E$89,2,FALSE)*J620,\"\")","v":""},{"$f":"IFERROR(VLOOKUP(D620,'Species List'!$D$95:$E$102,2,FALSE)*J620,\"\")","v":""},{"$f":"IFERROR(VLOOKUP(D620,'Species List'!$I$10:$J$11,2,FALSE)*J620,\"\")","v":""},{"$f":"IFERROR(VLOOKUP(D620,'Species List'!$I$16:$J$61,2,FALSE)*J620,\"\")","v":""},{"$f":"IFERROR(VLOOKUP(D620,'Species List'!$I$66:$J$66,2,FALSE)*J620,\"\")","v":""},{"$f":"IFERROR(VLOOKUP(D620,'Species List'!$I$71:$J$82,2,FALSE)*J620,\"\")","v":""},0,null,null,null,null,null,null,{"$f":"IFERROR(INDEX('3 - Land Summary'!$B$21:$B$120,(MATCH(AD620,'3 - Land Summary'!$C$21:$C$120,0))),\"\")","v":""}]
[null,{"$f":"IFERROR(INDEX('3 - Land Summary'!$B$21:$B$120,(MATCH('4 - Species Breakdown'!$V621,'3 - Land Summary'!$C$21:$C$120,0))),\"\")","v":""},null,null,{"$f":"IF(OR(COUNTIF('Look Up Data'!$D$149:$D$203,D621),COUNTIF('Look Up Data'!$D$149:$D$203,AE621)),\"YES\",\"NO\")","v":"NO"},null,null,{"$f":"IFERROR(INDEX('3 - Land Summary'!$G$21:$G$120,(MATCH(C621,'3 - Land Summary'!$C$21:$C$120,0))),\"\")","v":""},{"$f":"IFERROR(INDEX('3 - Land Summary'!$I$21:$I$120,(MATCH(C621,'3 - Land Summary'!$C$21:$C$120,0))),\"\")","v":""},"","",null,null,null,{"$f":"IFERROR(VLOOKUP(D621,'Species List'!$D$10:$E$46,2,FALSE)*J621,\"\")","v":""},{"$f":"IFERROR(VLOOKUP(D621,'Species List'!$D$51:$E$89,2,FALSE)*J621,\"\")","v":""},{"$f":"IFERROR(VLOOKUP(D621,'Species List'!$D$95:$E$102,2,FALSE)*J621,\"\")","v":""},{"$f":"IFERROR(VLOOKUP(D621,'Species List'!$I$10:$J$11,2,FALSE)*J621,\"\")","v":""},{"$f":"IFERROR(VLOOKUP(D621,'Species List'!$I$16:$J$61,2,FALSE)*J621,\"\")","v":""},{"$f":"IFERROR(VLOOKUP(D621,'Species List'!$I$66:$J$66,2,FALSE)*J621,\"\")","v":""},{"$f":"IFERROR(VLOOKUP(D621,'Species List'!$I$71:$J$82,2,FALSE)*J621,\"\")","v":""},0,null,null,null,null,null,null,{"$f":"IFERROR(INDEX('3 - Land Summary'!$B$21:$B$120,(MATCH(AD621,'3 - Land Summary'!$C$21:$C$120,0))),\"\")","v":""}]
[null,{"$f":"IFERROR(INDEX('3 - Land Summary'!$B$21:$B$120,(MATCH('4 - Species Breakdown'!$V622,'3 - Land Summary'!$C$21:$C$120,0))),\"\")","v":""},null,null,{"$f":"IF(OR(COUNTIF('Look Up Data'!$D$149:$D$203,D622),COUNTIF('Look Up Data'!$D$149:$D$203,AE622)),\"YES\",\"NO\")","v":"NO"},null,null,{"$f":"IFERROR(INDEX('3 - Land Summary'!$G$21:$G$120,(MATCH(C622,'3 - Land Summary'!$C$21:$C$120,0))),\"\")","v":""},{"$f":"IFERROR(INDEX('3 - Land Summary'!$I$21:$I$120,(MATCH(C622,'3 - Land Summary'!$C$21:$C$120,0))),\"\")","v":""},"","",null,null,null,{"$f":"IFERROR(VLOOKUP(D622,'Species List'!$D$10:$E$46,2,FALSE)*J622,\"\")","v":""},{"$f":"IFERROR(VLOOKUP(D622,'Species List'!$D$51:$E$89,2,FALSE)*J622,\"\")","v":""},{"$f":"IFERROR(VLOOKUP(D622,'Species List'!$D$95:$E$102,2,FALSE)*J622,\"\")","v":""},{"$f":"IFERROR(VLOOKUP(D622,'Species List'!$I$10:$J$11,2,FALSE)*J622,\"\")","v":""},{"$f":"IFERROR(VLOOKUP(D622,'Species List'!$I$16:$J$61,2,FALSE)*J622,\"\")","v":""},{"$f":"IFERROR(VLOOKUP(D622,'Species List'!$I$66:$J$66,2,FALSE)*J622,\"\")","v":""},{"$f":"IFERROR(VLOOKUP(D622,'Species List'!$I$71:$J$82,2,FALSE)*J622,\"\")","v":""},0,null,null,null,null,null,null,{"$f":"IFERROR(INDEX('3 - Land Summary'!$B$21:$B$120,(MATCH(AD622,'3 - Land Summary'!$C$21:$C$120,0))),\"\")","v":""}]
[null,{"$f":"IFERROR(INDEX('3 - Land Summary'!$B$21:$B$120,(MATCH('4 - Species Breakdown'!$V623,'3 - Land Summary'!$C$21:$C$120,0))),\"\")","v":""},null,null,{"$f":"IF(OR(COUNTIF('Look Up Data'!$D$149:$D$203,D623),COUNTIF('Look Up Data'!$D$149:$D$203,AE623)),\"YES\",\"NO\")","v":"NO"},null,null,{"$f":"IFERROR(INDEX('3 - Land Summary'!$G$21:$G$120,(MATCH(C623,'3 - Land Summary'!$C$21:$C$120,0))),\"\")","v":""},{"$f":"IFERROR(INDEX('3 - Land Summary'!$I$21:$I$120,(MATCH(C623,'3 - Land Summary'!$C$21:$C$120,0))),\"\")","v":""},"","",null,null,null,{"$f":"IFERROR(VLOOKUP(D623,'Species List'!$D$10:$E$46,2,FALSE)*J623,\"\")","v":""},{"$f":"IFERROR(VLOOKUP(D623,'Species List'!$D$51:$E$89,2,FALSE)*J623,\"\")","v":""},{"$f":"IFERROR(VLOOKUP(D623,'Species List'!$D$95:$E$102,2,FALSE)*J623,\"\")","v":""},{"$f":"IFERROR(VLOOKUP(D623,'Species List'!$I$10:$J$11,2,FALSE)*J623,\"\")","v":""},{"$f":"IFERROR(VLOOKUP(D623,'Species List'!$I$16:$J$61,2,FALSE)*J623,\"\")","v":""},{"$f":"IFERROR(VLOOKUP(D623,'Species List'!$I$66:$J$66,2,FALSE)*J623,\"\")","v":""},{"$f":"IFERROR(VLOOKUP(D623,'Species List'!$I$71:$J$82,2,FALSE)*J623,\"\")","v":""},0,null,null,null,null,null,null,{"$f":"IFERROR(INDEX('3 - Land Summary'!$B$21:$B$120,(MATCH(AD623,'3 - Land Summary'!$C$21:$C$120,0))),\"\")","v":""}]
[null,{"$f":"IFERROR(INDEX('3 - Land Summary'!$B$21:$B$120,(MATCH('4 - Species Breakdown'!$V624,'3 - Land Summary'!$C$21:$C$120,0))),\"\")","v":""},null,null,{"$f":"IF(OR(COUNTIF('Look Up Data'!$D$149:$D$203,D624),COUNTIF('Look Up Data'!$D$149:$D$203,AE624)),\"YES\",\"NO\")","v":"NO"},null,null,{"$f":"IFERROR(INDEX('3 - Land Summary'!$G$21:$G$120,(MATCH(C624,'3 - Land Summary'!$C$21:$C$120,0))),\"\")","v":""},{"$f":"IFERROR(INDEX('3 - Land Summary'!$I$21:$I$120,(MATCH(C624,'3 - Land Summary'!$C$21:$C$120,0))),\"\")","v":""},"","",null,null,null,{"$f":"IFERROR(VLOOKUP(D624,'Species List'!$D$10:$E$46,2,FALSE)*J624,\"\")","v":""},{"$f":"IFERROR(VLOOKUP(D624,'Species List'!$D$51:$E$89,2,FALSE)*J624,\"\")","v":""},{"$f":"IFERROR(VLOOKUP(D624,'Species List'!$D$95:$E$102,2,FALSE)*J624,\"\")","v":""},{"$f":"IFERROR(VLOOKUP(D624,'Species List'!$I$10:$J$11,2,FALSE)*J624,\"\")","v":""},{"$f":"IFERROR(VLOOKUP(D624,'Species List'!$I$16:$J$61,2,FALSE)*J624,\"\")","v":""},{"$f":"IFERROR(VLOOKUP(D624,'Species List'!$I$66:$J$66,2,FALSE)*J624,\"\")","v":""},{"$f":"IFERROR(VLOOKUP(D624,'Species List'!$I$71:$J$82,2,FALSE)*J624,\"\")","v":""},0,null,null,null,null,null,null,{"$f":"IFERROR(INDEX('3 - Land Summary'!$B$21:$B$120,(MATCH(AD624,'3 - Land Summary'!$C$21:$C$120,0))),\"\")","v":""}]
[null,{"$f":"IFERROR(INDEX('3 - Land Summary'!$B$21:$B$120,(MATCH('4 - Species Breakdown'!$V625,'3 - Land Summary'!$C$21:$C$120,0))),\"\")","v":""},null,null,{"$f":"IF(OR(COUNTIF('Look Up Data'!$D$149:$D$203,D625),COUNTIF('Look Up Data'!$D$149:$D$203,AE625)),\"YES\",\"NO\")","v":"NO"},null,null,{"$f":"IFERROR(INDEX('3 - Land Summary'!$G$21:$G$120,(MATCH(C625,'3 - Land Summary'!$C$21:$C$120,0))),\"\")","v":""},{"$f":"IFERROR(INDEX('3 - Land Summary'!$I$21:$I$120,(MATCH(C625,'3 - Land Summary'!$C$21:$C$120,0))),\"\")","v":""},"","",null,null,null,{"$f":"IFERROR(VLOOKUP(D625,'Species List'!$D$10:$E$46,2,FALSE)*J625,\"\")","v":""},{"$f":"IFERROR(VLOOKUP(D625,'Species List'!$D$51:$E$89,2,FALSE)*J625,\"\")","v":""},{"$f":"IFERROR(VLOOKUP(D625,'Species List'!$D$95:$E$102,2,FALSE)*J625,\"\")","v":""},{"$f":"IFERROR(VLOOKUP(D625,'Species List'!$I$10:$J$11,2,FALSE)*J625,\"\")","v":""},{"$f":"IFERROR(VLOOKUP(D625,'Species List'!$I$16:$J$61,2,FALSE)*J625,\"\")","v":""},{"$f":"IFERROR(VLOOKUP(D625,'Species List'!$I$66:$J$66,2,FALSE)*J625,\"\")","v":""},{"$f":"IFERROR(VLOOKUP(D625,'Species List'!$I$71:$J$82,2,FALSE)*J625,\"\")","v":""},0,null,null,null,null,null,null,{"$f":"IFERROR(INDEX('3 - Land Summary'!$B$21:$B$120,(MATCH(AD625,'3 - Land Summary'!$C$21:$C$120,0))),\"\")","v":""}]
[null,{"$f":"IFERROR(INDEX('3 - Land Summary'!$B$21:$B$120,(MATCH('4 - Species Breakdown'!$V626,'3 - Land Summary'!$C$21:$C$120,0))),\"\")","v":""},null,null,{"$f":"IF(OR(COUNTIF('Look Up Data'!$D$149:$D$203,D626),COUNTIF('Look Up Data'!$D$149:$D$203,AE626)),\"YES\",\"NO\")","v":"NO"},null,null,{"$f":"IFERROR(INDEX('3 - Land Summary'!$G$21:$G$120,(MATCH(C626,'3 - Land Summary'!$C$21:$C$120,0))),\"\")","v":""},{"$f":"IFERROR(INDEX('3 - Land Summary'!$I$21:$I$120,(MATCH(C626,'3 - Land Summary'!$C$21:$C$120,0))),\"\")","v":""},"","",null,null,null,{"$f":"IFERROR(VLOOKUP(D626,'Species List'!$D$10:$E$46,2,FALSE)*J626,\"\")","v":""},{"$f":"IFERROR(VLOOKUP(D626,'Species List'!$D$51:$E$89,2,FALSE)*J626,\"\")","v":""},{"$f":"IFERROR(VLOOKUP(D626,'Species List'!$D$95:$E$102,2,FALSE)*J626,\"\")","v":""},{"$f":"IFERROR(VLOOKUP(D626,'Species List'!$I$10:$J$11,2,FALSE)*J626,\"\")","v":""},{"$f":"IFERROR(VLOOKUP(D626,'Species List'!$I$16:$J$61,2,FALSE)*J626,\"\")","v":""},{"$f":"IFERROR(VLOOKUP(D626,'Species List'!$I$66:$J$66,2,FALSE)*J626,\"\")","v":""},{"$f":"IFERROR(VLOOKUP(D626,'Species List'!$I$71:$J$82,2,FALSE)*J626,\"\")","v":""},0,null,null,null,null,null,null,{"$f":"IFERROR(INDEX('3 - Land Summary'!$B$21:$B$120,(MATCH(AD626,'3 - Land Summary'!$C$21:$C$120,0))),\"\")","v":""}]
[null,{"$f":"IFERROR(INDEX('3 - Land Summary'!$B$21:$B$120,(MATCH('4 - Species Breakdown'!$V627,'3 - Land Summary'!$C$21:$C$120,0))),\"\")","v":""},null,null,{"$f":"IF(OR(COUNTIF('Look Up Data'!$D$149:$D$203,D627),COUNTIF('Look Up Data'!$D$149:$D$203,AE627)),\"YES\",\"NO\")","v":"NO"},null,null,{"$f":"IFERROR(INDEX('3 - Land Summary'!$G$21:$G$120,(MATCH(C627,'3 - Land Summary'!$C$21:$C$120,0))),\"\")","v":""},{"$f":"IFERROR(INDEX('3 - Land Summary'!$I$21:$I$120,(MATCH(C627,'3 - Land Summary'!$C$21:$C$120,0))),\"\")","v":""},"","",null,null,null,{"$f":"IFERROR(VLOOKUP(D627,'Species List'!$D$10:$E$46,2,FALSE)*J627,\"\")","v":""},{"$f":"IFERROR(VLOOKUP(D627,'Species List'!$D$51:$E$89,2,FALSE)*J627,\"\")","v":""},{"$f":"IFERROR(VLOOKUP(D627,'Species List'!$D$95:$E$102,2,FALSE)*J627,\"\")","v":""},{"$f":"IFERROR(VLOOKUP(D627,'Species List'!$I$10:$J$11,2,FALSE)*J627,\"\")","v":""},{"$f":"IFERROR(VLOOKUP(D627,'Species List'!$I$16:$J$61,2,FALSE)*J627,\"\")","v":""},{"$f":"IFERROR(VLOOKUP(D627,'Species List'!$I$66:$J$66,2,FALSE)*J627,\"\")","v":""},{"$f":"IFERROR(VLOOKUP(D627,'Species List'!$I$71:$J$82,2,FALSE)*J627,\"\")","v":""},0,null,null,null,null,null,null,{"$f":"IFERROR(INDEX('3 - Land Summary'!$B$21:$B$120,(MATCH(AD627,'3 - Land Summary'!$C$21:$C$120,0))),\"\")","v":""}]
[null,{"$f":"IFERROR(INDEX('3 - Land Summary'!$B$21:$B$120,(MATCH('4 - Species Breakdown'!$V628,'3 - Land Summary'!$C$21:$C$120,0))),\"\")","v":""},null,null,{"$f":"IF(OR(COUNTIF('Look Up Data'!$D$149:$D$203,D628),COUNTIF('Look Up Data'!$D$149:$D$203,AE628)),\"YES\",\"NO\")","v":"NO"},null,null,{"$f":"IFERROR(INDEX('3 - Land Summary'!$G$21:$G$120,(MATCH(C628,'3 - Land Summary'!$C$21:$C$120,0))),\"\")","v":""},{"$f":"IFERROR(INDEX('3 - Land Summary'!$I$21:$I$120,(MATCH(C628,'3 - Land Summary'!$C$21:$C$120,0))),\"\")","v":""},"","",null,null,null,{"$f":"IFERROR(VLOOKUP(D628,'Species List'!$D$10:$E$46,2,FALSE)*J628,\"\")","v":""},{"$f":"IFERROR(VLOOKUP(D628,'Species List'!$D$51:$E$89,2,FALSE)*J628,\"\")","v":""},{"$f":"IFERROR(VLOOKUP(D628,'Species List'!$D$95:$E$102,2,FALSE)*J628,\"\")","v":""},{"$f":"IFERROR(VLOOKUP(D628,'Species List'!$I$10:$J$11,2,FALSE)*J628,\"\")","v":""},{"$f":"IFERROR(VLOOKUP(D628,'Species List'!$I$16:$J$61,2,FALSE)*J628,\"\")","v":""},{"$f":"IFERROR(VLOOKUP(D628,'Species List'!$I$66:$J$66,2,FALSE)*J628,\"\")","v":""},{"$f":"IFERROR(VLOOKUP(D628,'Species List'!$I$71:$J$82,2,FALSE)*J628,\"\")","v":""},0,null,null,null,null,null,null,{"$f":"IFERROR(INDEX('3 - Land Summary'!$B$21:$B$120,(MATCH(AD628,'3 - Land Summary'!$C$21:$C$120,0))),\"\")","v":""}]
[null,{"$f":"IFERROR(INDEX('3 - Land Summary'!$B$21:$B$120,(MATCH('4 - Species Breakdown'!$V629,'3 - Land Summary'!$C$21:$C$120,0))),\"\")","v":""},null,null,{"$f":"IF(OR(COUNTIF('Look Up Data'!$D$149:$D$203,D629),COUNTIF('Look Up Data'!$D$149:$D$203,AE629)),\"YES\",\"NO\")","v":"NO"},null,null,{"$f":"IFERROR(INDEX('3 - Land Summary'!$G$21:$G$120,(MATCH(C629,'3 - Land Summary'!$C$21:$C$120,0))),\"\")","v":""},{"$f":"IFERROR(INDEX('3 - Land Summary'!$I$21:$I$120,(MATCH(C629,'3 - Land Summary'!$C$21:$C$120,0))),\"\")","v":""},"","",null,null,null,{"$f":"IFERROR(VLOOKUP(D629,'Species List'!$D$10:$E$46,2,FALSE)*J629,\"\")","v":""},{"$f":"IFERROR(VLOOKUP(D629,'Species List'!$D$51:$E$89,2,FALSE)*J629,\"\")","v":""},{"$f":"IFERROR(VLOOKUP(D629,'Species List'!$D$95:$E$102,2,FALSE)*J629,\"\")","v":""},{"$f":"IFERROR(VLOOKUP(D629,'Species List'!$I$10:$J$11,2,FALSE)*J629,\"\")","v":""},{"$f":"IFERROR(VLOOKUP(D629,'Species List'!$I$16:$J$61,2,FALSE)*J629,\"\")","v":""},{"$f":"IFERROR(VLOOKUP(D629,'Species List'!$I$66:$J$66,2,FALSE)*J629,\"\")","v":""},{"$f":"IFERROR(VLOOKUP(D629,'Species List'!$I$71:$J$82,2,FALSE)*J629,\"\")","v":""},0,null,null,null,null,null,null,{"$f":"IFERROR(INDEX('3 - Land Summary'!$B$21:$B$120,(MATCH(AD629,'3 - Land Summary'!$C$21:$C$120,0))),\"\")","v":""}]
[null,{"$f":"IFERROR(INDEX('3 - Land Summary'!$B$21:$B$120,(MATCH('4 - Species Breakdown'!$V630,'3 - Land Summary'!$C$21:$C$120,0))),\"\")","v":""},null,null,{"$f":"IF(OR(COUNTIF('Look Up Data'!$D$149:$D$203,D630),COUNTIF('Look Up Data'!$D$149:$D$203,AE630)),\"YES\",\"NO\")","v":"NO"},null,null,{"$f":"IFERROR(INDEX('3 - Land Summary'!$G$21:$G$120,(MATCH(C630,'3 - Land Summary'!$C$21:$C$120,0))),\"\")","v":""},{"$f":"IFERROR(INDEX('3 - Land Summary'!$I$21:$I$120,(MATCH(C630,'3 - Land Summary'!$C$21:$C$120,0))),\"\")","v":""},"","",null,null,null,{"$f":"IFERROR(VLOOKUP(D630,'Species List'!$D$10:$E$46,2,FALSE)*J630,\"\")","v":""},{"$f":"IFERROR(VLOOKUP(D630,'Species List'!$D$51:$E$89,2,FALSE)*J630,\"\")","v":""},{"$f":"IFERROR(VLOOKUP(D630,'Species List'!$D$95:$E$102,2,FALSE)*J630,\"\")","v":""},{"$f":"IFERROR(VLOOKUP(D630,'Species List'!$I$10:$J$11,2,FALSE)*J630,\"\")","v":""},{"$f":"IFERROR(VLOOKUP(D630,'Species List'!$I$16:$J$61,2,FALSE)*J630,\"\")","v":""},{"$f":"IFERROR(VLOOKUP(D630,'Species List'!$I$66:$J$66,2,FALSE)*J630,\"\")","v":""},{"$f":"IFERROR(VLOOKUP(D630,'Species List'!$I$71:$J$82,2,FALSE)*J630,\"\")","v":""},0,null,null,null,null,null,null,{"$f":"IFERROR(INDEX('3 - Land Summary'!$B$21:$B$120,(MATCH(AD630,'3 - Land Summary'!$C$21:$C$120,0))),\"\")","v":""}]
[null,{"$f":"IFERROR(INDEX('3 - Land Summary'!$B$21:$B$120,(MATCH('4 - Species Breakdown'!$V631,'3 - Land Summary'!$C$21:$C$120,0))),\"\")","v":""},null,null,{"$f":"IF(OR(COUNTIF('Look Up Data'!$D$149:$D$203,D631),COUNTIF('Look Up Data'!$D$149:$D$203,AE631)),\"YES\",\"NO\")","v":"NO"},null,null,{"$f":"IFERROR(INDEX('3 - Land Summary'!$G$21:$G$120,(MATCH(C631,'3 - Land Summary'!$C$21:$C$120,0))),\"\")","v":""},{"$f":"IFERROR(INDEX('3 - Land Summary'!$I$21:$I$120,(MATCH(C631,'3 - Land Summary'!$C$21:$C$120,0))),\"\")","v":""},"","",null,null,null,{"$f":"IFERROR(VLOOKUP(D631,'Species List'!$D$10:$E$46,2,FALSE)*J631,\"\")","v":""},{"$f":"IFERROR(VLOOKUP(D631,'Species List'!$D$51:$E$89,2,FALSE)*J631,\"\")","v":""},{"$f":"IFERROR(VLOOKUP(D631,'Species List'!$D$95:$E$102,2,FALSE)*J631,\"\")","v":""},{"$f":"IFERROR(VLOOKUP(D631,'Species List'!$I$10:$J$11,2,FALSE)*J631,\"\")","v":""},{"$f":"IFERROR(VLOOKUP(D631,'Species List'!$I$16:$J$61,2,FALSE)*J631,\"\")","v":""},{"$f":"IFERROR(VLOOKUP(D631,'Species List'!$I$66:$J$66,2,FALSE)*J631,\"\")","v":""},{"$f":"IFERROR(VLOOKUP(D631,'Species List'!$I$71:$J$82,2,FALSE)*J631,\"\")","v":""},0,null,null,null,null,null,null,{"$f":"IFERROR(INDEX('3 - Land Summary'!$B$21:$B$120,(MATCH(AD631,'3 - Land Summary'!$C$21:$C$120,0))),\"\")","v":""}]
[null,{"$f":"IFERROR(INDEX('3 - Land Summary'!$B$21:$B$120,(MATCH('4 - Species Breakdown'!$V632,'3 - Land Summary'!$C$21:$C$120,0))),\"\")","v":""},null,null,{"$f":"IF(OR(COUNTIF('Look Up Data'!$D$149:$D$203,D632),COUNTIF('Look Up Data'!$D$149:$D$203,AE632)),\"YES\",\"NO\")","v":"NO"},null,null,{"$f":"IFERROR(INDEX('3 - Land Summary'!$G$21:$G$120,(MATCH(C632,'3 - Land Summary'!$C$21:$C$120,0))),\"\")","v":""},{"$f":"IFERROR(INDEX('3 - Land Summary'!$I$21:$I$120,(MATCH(C632,'3 - Land Summary'!$C$21:$C$120,0))),\"\")","v":""},"","",null,null,null,{"$f":"IFERROR(VLOOKUP(D632,'Species List'!$D$10:$E$46,2,FALSE)*J632,\"\")","v":""},{"$f":"IFERROR(VLOOKUP(D632,'Species List'!$D$51:$E$89,2,FALSE)*J632,\"\")","v":""},{"$f":"IFERROR(VLOOKUP(D632,'Species List'!$D$95:$E$102,2,FALSE)*J632,\"\")","v":""},{"$f":"IFERROR(VLOOKUP(D632,'Species List'!$I$10:$J$11,2,FALSE)*J632,\"\")","v":""},{"$f":"IFERROR(VLOOKUP(D632,'Species List'!$I$16:$J$61,2,FALSE)*J632,\"\")","v":""},{"$f":"IFERROR(VLOOKUP(D632,'Species List'!$I$66:$J$66,2,FALSE)*J632,\"\")","v":""},{"$f":"IFERROR(VLOOKUP(D632,'Species List'!$I$71:$J$82,2,FALSE)*J632,\"\")","v":""},0,null,null,null,null,null,null,{"$f":"IFERROR(INDEX('3 - Land Summary'!$B$21:$B$120,(MATCH(AD632,'3 - Land Summary'!$C$21:$C$120,0))),\"\")","v":""}]
[null,{"$f":"IFERROR(INDEX('3 - Land Summary'!$B$21:$B$120,(MATCH('4 - Species Breakdown'!$V633,'3 - Land Summary'!$C$21:$C$120,0))),\"\")","v":""},null,null,{"$f":"IF(OR(COUNTIF('Look Up Data'!$D$149:$D$203,D633),COUNTIF('Look Up Data'!$D$149:$D$203,AE633)),\"YES\",\"NO\")","v":"NO"},null,null,{"$f":"IFERROR(INDEX('3 - Land Summary'!$G$21:$G$120,(MATCH(C633,'3 - Land Summary'!$C$21:$C$120,0))),\"\")","v":""},{"$f":"IFERROR(INDEX('3 - Land Summary'!$I$21:$I$120,(MATCH(C633,'3 - Land Summary'!$C$21:$C$120,0))),\"\")","v":""},"","",null,null,null,{"$f":"IFERROR(VLOOKUP(D633,'Species List'!$D$10:$E$46,2,FALSE)*J633,\"\")","v":""},{"$f":"IFERROR(VLOOKUP(D633,'Species List'!$D$51:$E$89,2,FALSE)*J633,\"\")","v":""},{"$f":"IFERROR(VLOOKUP(D633,'Species List'!$D$95:$E$102,2,FALSE)*J633,\"\")","v":""},{"$f":"IFERROR(VLOOKUP(D633,'Species List'!$I$10:$J$11,2,FALSE)*J633,\"\")","v":""},{"$f":"IFERROR(VLOOKUP(D633,'Species List'!$I$16:$J$61,2,FALSE)*J633,\"\")","v":""},{"$f":"IFERROR(VLOOKUP(D633,'Species List'!$I$66:$J$66,2,FALSE)*J633,\"\")","v":""},{"$f":"IFERROR(VLOOKUP(D633,'Species List'!$I$71:$J$82,2,FALSE)*J633,\"\")","v":""},0,null,null,null,null,null,null,{"$f":"IFERROR(INDEX('3 - Land Summary'!$B$21:$B$120,(MATCH(AD633,'3 - Land Summary'!$C$21:$C$120,0))),\"\")","v":""}]
[null,{"$f":"IFERROR(INDEX('3 - Land Summary'!$B$21:$B$120,(MATCH('4 - Species Breakdown'!$V634,'3 - Land Summary'!$C$21:$C$120,0))),\"\")","v":""},null,null,{"$f":"IF(OR(COUNTIF('Look Up Data'!$D$149:$D$203,D634),COUNTIF('Look Up Data'!$D$149:$D$203,AE634)),\"YES\",\"NO\")","v":"NO"},null,null,{"$f":"IFERROR(INDEX('3 - Land Summary'!$G$21:$G$120,(MATCH(C634,'3 - Land Summary'!$C$21:$C$120,0))),\"\")","v":""},{"$f":"IFERROR(INDEX('3 - Land Summary'!$I$21:$I$120,(MATCH(C634,'3 - Land Summary'!$C$21:$C$120,0))),\"\")","v":""},"","",null,null,null,{"$f":"IFERROR(VLOOKUP(D634,'Species List'!$D$10:$E$46,2,FALSE)*J634,\"\")","v":""},{"$f":"IFERROR(VLOOKUP(D634,'Species List'!$D$51:$E$89,2,FALSE)*J634,\"\")","v":""},{"$f":"IFERROR(VLOOKUP(D634,'Species List'!$D$95:$E$102,2,FALSE)*J634,\"\")","v":""},{"$f":"IFERROR(VLOOKUP(D634,'Species List'!$I$10:$J$11,2,FALSE)*J634,\"\")","v":""},{"$f":"IFERROR(VLOOKUP(D634,'Species List'!$I$16:$J$61,2,FALSE)*J634,\"\")","v":""},{"$f":"IFERROR(VLOOKUP(D634,'Species List'!$I$66:$J$66,2,FALSE)*J634,\"\")","v":""},{"$f":"IFERROR(VLOOKUP(D634,'Species List'!$I$71:$J$82,2,FALSE)*J634,\"\")","v":""},0,null,null,null,null,null,null,{"$f":"IFERROR(INDEX('3 - Land Summary'!$B$21:$B$120,(MATCH(AD634,'3 - Land Summary'!$C$21:$C$120,0))),\"\")","v":""}]
[null,{"$f":"IFERROR(INDEX('3 - Land Summary'!$B$21:$B$120,(MATCH('4 - Species Breakdown'!$V635,'3 - Land Summary'!$C$21:$C$120,0))),\"\")","v":""},null,null,{"$f":"IF(OR(COUNTIF('Look Up Data'!$D$149:$D$203,D635),COUNTIF('Look Up Data'!$D$149:$D$203,AE635)),\"YES\",\"NO\")","v":"NO"},null,null,{"$f":"IFERROR(INDEX('3 - Land Summary'!$G$21:$G$120,(MATCH(C635,'3 - Land Summary'!$C$21:$C$120,0))),\"\")","v":""},{"$f":"IFERROR(INDEX('3 - Land Summary'!$I$21:$I$120,(MATCH(C635,'3 - Land Summary'!$C$21:$C$120,0))),\"\")","v":""},"","",null,null,null,{"$f":"IFERROR(VLOOKUP(D635,'Species List'!$D$10:$E$46,2,FALSE)*J635,\"\")","v":""},{"$f":"IFERROR(VLOOKUP(D635,'Species List'!$D$51:$E$89,2,FALSE)*J635,\"\")","v":""},{"$f":"IFERROR(VLOOKUP(D635,'Species List'!$D$95:$E$102,2,FALSE)*J635,\"\")","v":""},{"$f":"IFERROR(VLOOKUP(D635,'Species List'!$I$10:$J$11,2,FALSE)*J635,\"\")","v":""},{"$f":"IFERROR(VLOOKUP(D635,'Species List'!$I$16:$J$61,2,FALSE)*J635,\"\")","v":""},{"$f":"IFERROR(VLOOKUP(D635,'Species List'!$I$66:$J$66,2,FALSE)*J635,\"\")","v":""},{"$f":"IFERROR(VLOOKUP(D635,'Species List'!$I$71:$J$82,2,FALSE)*J635,\"\")","v":""},0,null,null,null,null,null,null,{"$f":"IFERROR(INDEX('3 - Land Summary'!$B$21:$B$120,(MATCH(AD635,'3 - Land Summary'!$C$21:$C$120,0))),\"\")","v":""}]
[null,{"$f":"IFERROR(INDEX('3 - Land Summary'!$B$21:$B$120,(MATCH('4 - Species Breakdown'!$V636,'3 - Land Summary'!$C$21:$C$120,0))),\"\")","v":""},null,null,{"$f":"IF(OR(COUNTIF('Look Up Data'!$D$149:$D$203,D636),COUNTIF('Look Up Data'!$D$149:$D$203,AE636)),\"YES\",\"NO\")","v":"NO"},null,null,{"$f":"IFERROR(INDEX('3 - Land Summary'!$G$21:$G$120,(MATCH(C636,'3 - Land Summary'!$C$21:$C$120,0))),\"\")","v":""},{"$f":"IFERROR(INDEX('3 - Land Summary'!$I$21:$I$120,(MATCH(C636,'3 - Land Summary'!$C$21:$C$120,0))),\"\")","v":""},"","",null,null,null,{"$f":"IFERROR(VLOOKUP(D636,'Species List'!$D$10:$E$46,2,FALSE)*J636,\"\")","v":""},{"$f":"IFERROR(VLOOKUP(D636,'Species List'!$D$51:$E$89,2,FALSE)*J636,\"\")","v":""},{"$f":"IFERROR(VLOOKUP(D636,'Species List'!$D$95:$E$102,2,FALSE)*J636,\"\")","v":""},{"$f":"IFERROR(VLOOKUP(D636,'Species List'!$I$10:$J$11,2,FALSE)*J636,\"\")","v":""},{"$f":"IFERROR(VLOOKUP(D636,'Species List'!$I$16:$J$61,2,FALSE)*J636,\"\")","v":""},{"$f":"IFERROR(VLOOKUP(D636,'Species List'!$I$66:$J$66,2,FALSE)*J636,\"\")","v":""},{"$f":"IFERROR(VLOOKUP(D636,'Species List'!$I$71:$J$82,2,FALSE)*J636,\"\")","v":""},0,null,null,null,null,null,null,{"$f":"IFERROR(INDEX('3 - Land Summary'!$B$21:$B$120,(MATCH(AD636,'3 - Land Summary'!$C$21:$C$120,0))),\"\")","v":""}]
[null,{"$f":"IFERROR(INDEX('3 - Land Summary'!$B$21:$B$120,(MATCH('4 - Species Breakdown'!$V637,'3 - Land Summary'!$C$21:$C$120,0))),\"\")","v":""},null,null,{"$f":"IF(OR(COUNTIF('Look Up Data'!$D$149:$D$203,D637),COUNTIF('Look Up Data'!$D$149:$D$203,AE637)),\"YES\",\"NO\")","v":"NO"},null,null,{"$f":"IFERROR(INDEX('3 - Land Summary'!$G$21:$G$120,(MATCH(C637,'3 - Land Summary'!$C$21:$C$120,0))),\"\")","v":""},{"$f":"IFERROR(INDEX('3 - Land Summary'!$I$21:$I$120,(MATCH(C637,'3 - Land Summary'!$C$21:$C$120,0))),\"\")","v":""},"","",null,null,null,{"$f":"IFERROR(VLOOKUP(D637,'Species List'!$D$10:$E$46,2,FALSE)*J637,\"\")","v":""},{"$f":"IFERROR(VLOOKUP(D637,'Species List'!$D$51:$E$89,2,FALSE)*J637,\"\")","v":""},{"$f":"IFERROR(VLOOKUP(D637,'Species List'!$D$95:$E$102,2,FALSE)*J637,\"\")","v":""},{"$f":"IFERROR(VLOOKUP(D637,'Species List'!$I$10:$J$11,2,FALSE)*J637,\"\")","v":""},{"$f":"IFERROR(VLOOKUP(D637,'Species List'!$I$16:$J$61,2,FALSE)*J637,\"\")","v":""},{"$f":"IFERROR(VLOOKUP(D637,'Species List'!$I$66:$J$66,2,FALSE)*J637,\"\")","v":""},{"$f":"IFERROR(VLOOKUP(D637,'Species List'!$I$71:$J$82,2,FALSE)*J637,\"\")","v":""},0,null,null,null,null,null,null,{"$f":"IFERROR(INDEX('3 - Land Summary'!$B$21:$B$120,(MATCH(AD637,'3 - Land Summary'!$C$21:$C$120,0))),\"\")","v":""}]
[null,{"$f":"IFERROR(INDEX('3 - Land Summary'!$B$21:$B$120,(MATCH('4 - Species Breakdown'!$V638,'3 - Land Summary'!$C$21:$C$120,0))),\"\")","v":""},null,null,{"$f":"IF(OR(COUNTIF('Look Up Data'!$D$149:$D$203,D638),COUNTIF('Look Up Data'!$D$149:$D$203,AE638)),\"YES\",\"NO\")","v":"NO"},null,null,{"$f":"IFERROR(INDEX('3 - Land Summary'!$G$21:$G$120,(MATCH(C638,'3 - Land Summary'!$C$21:$C$120,0))),\"\")","v":""},{"$f":"IFERROR(INDEX('3 - Land Summary'!$I$21:$I$120,(MATCH(C638,'3 - Land Summary'!$C$21:$C$120,0))),\"\")","v":""},"","",null,null,null,{"$f":"IFERROR(VLOOKUP(D638,'Species List'!$D$10:$E$46,2,FALSE)*J638,\"\")","v":""},{"$f":"IFERROR(VLOOKUP(D638,'Species List'!$D$51:$E$89,2,FALSE)*J638,\"\")","v":""},{"$f":"IFERROR(VLOOKUP(D638,'Species List'!$D$95:$E$102,2,FALSE)*J638,\"\")","v":""},{"$f":"IFERROR(VLOOKUP(D638,'Species List'!$I$10:$J$11,2,FALSE)*J638,\"\")","v":""},{"$f":"IFERROR(VLOOKUP(D638,'Species List'!$I$16:$J$61,2,FALSE)*J638,\"\")","v":""},{"$f":"IFERROR(VLOOKUP(D638,'Species List'!$I$66:$J$66,2,FALSE)*J638,\"\")","v":""},{"$f":"IFERROR(VLOOKUP(D638,'Species List'!$I$71:$J$82,2,FALSE)*J638,\"\")","v":""},0,null,null,null,null,null,null,{"$f":"IFERROR(INDEX('3 - Land Summary'!$B$21:$B$120,(MATCH(AD638,'3 - Land Summary'!$C$21:$C$120,0))),\"\")","v":""}]
[null,{"$f":"IFERROR(INDEX('3 - Land Summary'!$B$21:$B$120,(MATCH('4 - Species Breakdown'!$V639,'3 - Land Summary'!$C$21:$C$120,0))),\"\")","v":""},null,null,{"$f":"IF(OR(COUNTIF('Look Up Data'!$D$149:$D$203,D639),COUNTIF('Look Up Data'!$D$149:$D$203,AE639)),\"YES\",\"NO\")","v":"NO"},null,null,{"$f":"IFERROR(INDEX('3 - Land Summary'!$G$21:$G$120,(MATCH(C639,'3 - Land Summary'!$C$21:$C$120,0))),\"\")","v":""},{"$f":"IFERROR(INDEX('3 - Land Summary'!$I$21:$I$120,(MATCH(C639,'3 - Land Summary'!$C$21:$C$120,0))),\"\")","v":""},"","",null,null,null,{"$f":"IFERROR(VLOOKUP(D639,'Species List'!$D$10:$E$46,2,FALSE)*J639,\"\")","v":""},{"$f":"IFERROR(VLOOKUP(D639,'Species List'!$D$51:$E$89,2,FALSE)*J639,\"\")","v":""},{"$f":"IFERROR(VLOOKUP(D639,'Species List'!$D$95:$E$102,2,FALSE)*J639,\"\")","v":""},{"$f":"IFERROR(VLOOKUP(D639,'Species List'!$I$10:$J$11,2,FALSE)*J639,\"\")","v":""},{"$f":"IFERROR(VLOOKUP(D639,'Species List'!$I$16:$J$61,2,FALSE)*J639,\"\")","v":""},{"$f":"IFERROR(VLOOKUP(D639,'Species List'!$I$66:$J$66,2,FALSE)*J639,\"\")","v":""},{"$f":"IFERROR(VLOOKUP(D639,'Species List'!$I$71:$J$82,2,FALSE)*J639,\"\")","v":""},0,null,null,null,null,null,null,{"$f":"IFERROR(INDEX('3 - Land Summary'!$B$21:$B$120,(MATCH(AD639,'3 - Land Summary'!$C$21:$C$120,0))),\"\")","v":""}]
[null,{"$f":"IFERROR(INDEX('3 - Land Summary'!$B$21:$B$120,(MATCH('4 - Species Breakdown'!$V640,'3 - Land Summary'!$C$21:$C$120,0))),\"\")","v":""},null,null,{"$f":"IF(OR(COUNTIF('Look Up Data'!$D$149:$D$203,D640),COUNTIF('Look Up Data'!$D$149:$D$203,AE640)),\"YES\",\"NO\")","v":"NO"},null,null,{"$f":"IFERROR(INDEX('3 - Land Summary'!$G$21:$G$120,(MATCH(C640,'3 - Land Summary'!$C$21:$C$120,0))),\"\")","v":""},{"$f":"IFERROR(INDEX('3 - Land Summary'!$I$21:$I$120,(MATCH(C640,'3 - Land Summary'!$C$21:$C$120,0))),\"\")","v":""},"","",null,null,null,{"$f":"IFERROR(VLOOKUP(D640,'Species List'!$D$10:$E$46,2,FALSE)*J640,\"\")","v":""},{"$f":"IFERROR(VLOOKUP(D640,'Species List'!$D$51:$E$89,2,FALSE)*J640,\"\")","v":""},{"$f":"IFERROR(VLOOKUP(D640,'Species List'!$D$95:$E$102,2,FALSE)*J640,\"\")","v":""},{"$f":"IFERROR(VLOOKUP(D640,'Species List'!$I$10:$J$11,2,FALSE)*J640,\"\")","v":""},{"$f":"IFERROR(VLOOKUP(D640,'Species List'!$I$16:$J$61,2,FALSE)*J640,\"\")","v":""},{"$f":"IFERROR(VLOOKUP(D640,'Species List'!$I$66:$J$66,2,FALSE)*J640,\"\")","v":""},{"$f":"IFERROR(VLOOKUP(D640,'Species List'!$I$71:$J$82,2,FALSE)*J640,\"\")","v":""},0,null,null,null,null,null,null,{"$f":"IFERROR(INDEX('3 - Land Summary'!$B$21:$B$120,(MATCH(AD640,'3 - Land Summary'!$C$21:$C$120,0))),\"\")","v":""}]
[null,{"$f":"IFERROR(INDEX('3 - Land Summary'!$B$21:$B$120,(MATCH('4 - Species Breakdown'!$V641,'3 - Land Summary'!$C$21:$C$120,0))),\"\")","v":""},null,null,{"$f":"IF(OR(COUNTIF('Look Up Data'!$D$149:$D$203,D641),COUNTIF('Look Up Data'!$D$149:$D$203,AE641)),\"YES\",\"NO\")","v":"NO"},null,null,{"$f":"IFERROR(INDEX('3 - Land Summary'!$G$21:$G$120,(MATCH(C641,'3 - Land Summary'!$C$21:$C$120,0))),\"\")","v":""},{"$f":"IFERROR(INDEX('3 - Land Summary'!$I$21:$I$120,(MATCH(C641,'3 - Land Summary'!$C$21:$C$120,0))),\"\")","v":""},"","",null,null,null,{"$f":"IFERROR(VLOOKUP(D641,'Species List'!$D$10:$E$46,2,FALSE)*J641,\"\")","v":""},{"$f":"IFERROR(VLOOKUP(D641,'Species List'!$D$51:$E$89,2,FALSE)*J641,\"\")","v":""},{"$f":"IFERROR(VLOOKUP(D641,'Species List'!$D$95:$E$102,2,FALSE)*J641,\"\")","v":""},{"$f":"IFERROR(VLOOKUP(D641,'Species List'!$I$10:$J$11,2,FALSE)*J641,\"\")","v":""},{"$f":"IFERROR(VLOOKUP(D641,'Species List'!$I$16:$J$61,2,FALSE)*J641,\"\")","v":""},{"$f":"IFERROR(VLOOKUP(D641,'Species List'!$I$66:$J$66,2,FALSE)*J641,\"\")","v":""},{"$f":"IFERROR(VLOOKUP(D641,'Species List'!$I$71:$J$82,2,FALSE)*J641,\"\")","v":""},0,null,null,null,null,null,null,{"$f":"IFERROR(INDEX('3 - Land Summary'!$B$21:$B$120,(MATCH(AD641,'3 - Land Summary'!$C$21:$C$120,0))),\"\")","v":""}]
[null,{"$f":"IFERROR(INDEX('3 - Land Summary'!$B$21:$B$120,(MATCH('4 - Species Breakdown'!$V642,'3 - Land Summary'!$C$21:$C$120,0))),\"\")","v":""},null,null,{"$f":"IF(OR(COUNTIF('Look Up Data'!$D$149:$D$203,D642),COUNTIF('Look Up Data'!$D$149:$D$203,AE642)),\"YES\",\"NO\")","v":"NO"},null,null,{"$f":"IFERROR(INDEX('3 - Land Summary'!$G$21:$G$120,(MATCH(C642,'3 - Land Summary'!$C$21:$C$120,0))),\"\")","v":""},{"$f":"IFERROR(INDEX('3 - Land Summary'!$I$21:$I$120,(MATCH(C642,'3 - Land Summary'!$C$21:$C$120,0))),\"\")","v":""},"","",null,null,null,{"$f":"IFERROR(VLOOKUP(D642,'Species List'!$D$10:$E$46,2,FALSE)*J642,\"\")","v":""},{"$f":"IFERROR(VLOOKUP(D642,'Species List'!$D$51:$E$89,2,FALSE)*J642,\"\")","v":""},{"$f":"IFERROR(VLOOKUP(D642,'Species List'!$D$95:$E$102,2,FALSE)*J642,\"\")","v":""},{"$f":"IFERROR(VLOOKUP(D642,'Species List'!$I$10:$J$11,2,FALSE)*J642,\"\")","v":""},{"$f":"IFERROR(VLOOKUP(D642,'Species List'!$I$16:$J$61,2,FALSE)*J642,\"\")","v":""},{"$f":"IFERROR(VLOOKUP(D642,'Species List'!$I$66:$J$66,2,FALSE)*J642,\"\")","v":""},{"$f":"IFERROR(VLOOKUP(D642,'Species List'!$I$71:$J$82,2,FALSE)*J642,\"\")","v":""},0,null,null,null,null,null,null,{"$f":"IFERROR(INDEX('3 - Land Summary'!$B$21:$B$120,(MATCH(AD642,'3 - Land Summary'!$C$21:$C$120,0))),\"\")","v":""}]
[null,{"$f":"IFERROR(INDEX('3 - Land Summary'!$B$21:$B$120,(MATCH('4 - Species Breakdown'!$V643,'3 - Land Summary'!$C$21:$C$120,0))),\"\")","v":""},null,null,{"$f":"IF(OR(COUNTIF('Look Up Data'!$D$149:$D$203,D643),COUNTIF('Look Up Data'!$D$149:$D$203,AE643)),\"YES\",\"NO\")","v":"NO"},null,null,{"$f":"IFERROR(INDEX('3 - Land Summary'!$G$21:$G$120,(MATCH(C643,'3 - Land Summary'!$C$21:$C$120,0))),\"\")","v":""},{"$f":"IFERROR(INDEX('3 - Land Summary'!$I$21:$I$120,(MATCH(C643,'3 - Land Summary'!$C$21:$C$120,0))),\"\")","v":""},"","",null,null,null,{"$f":"IFERROR(VLOOKUP(D643,'Species List'!$D$10:$E$46,2,FALSE)*J643,\"\")","v":""},{"$f":"IFERROR(VLOOKUP(D643,'Species List'!$D$51:$E$89,2,FALSE)*J643,\"\")","v":""},{"$f":"IFERROR(VLOOKUP(D643,'Species List'!$D$95:$E$102,2,FALSE)*J643,\"\")","v":""},{"$f":"IFERROR(VLOOKUP(D643,'Species List'!$I$10:$J$11,2,FALSE)*J643,\"\")","v":""},{"$f":"IFERROR(VLOOKUP(D643,'Species List'!$I$16:$J$61,2,FALSE)*J643,\"\")","v":""},{"$f":"IFERROR(VLOOKUP(D643,'Species List'!$I$66:$J$66,2,FALSE)*J643,\"\")","v":""},{"$f":"IFERROR(VLOOKUP(D643,'Species List'!$I$71:$J$82,2,FALSE)*J643,\"\")","v":""},0,null,null,null,null,null,null,{"$f":"IFERROR(INDEX('3 - Land Summary'!$B$21:$B$120,(MATCH(AD643,'3 - Land Summary'!$C$21:$C$120,0))),\"\")","v":""}]
[null,{"$f":"IFERROR(INDEX('3 - Land Summary'!$B$21:$B$120,(MATCH('4 - Species Breakdown'!$V644,'3 - Land Summary'!$C$21:$C$120,0))),\"\")","v":""},null,null,{"$f":"IF(OR(COUNTIF('Look Up Data'!$D$149:$D$203,D644),COUNTIF('Look Up Data'!$D$149:$D$203,AE644)),\"YES\",\"NO\")","v":"NO"},null,null,{"$f":"IFERROR(INDEX('3 - Land Summary'!$G$21:$G$120,(MATCH(C644,'3 - Land Summary'!$C$21:$C$120,0))),\"\")","v":""},{"$f":"IFERROR(INDEX('3 - Land Summary'!$I$21:$I$120,(MATCH(C644,'3 - Land Summary'!$C$21:$C$120,0))),\"\")","v":""},"","",null,null,null,{"$f":"IFERROR(VLOOKUP(D644,'Species List'!$D$10:$E$46,2,FALSE)*J644,\"\")","v":""},{"$f":"IFERROR(VLOOKUP(D644,'Species List'!$D$51:$E$89,2,FALSE)*J644,\"\")","v":""},{"$f":"IFERROR(VLOOKUP(D644,'Species List'!$D$95:$E$102,2,FALSE)*J644,\"\")","v":""},{"$f":"IFERROR(VLOOKUP(D644,'Species List'!$I$10:$J$11,2,FALSE)*J644,\"\")","v":""},{"$f":"IFERROR(VLOOKUP(D644,'Species List'!$I$16:$J$61,2,FALSE)*J644,\"\")","v":""},{"$f":"IFERROR(VLOOKUP(D644,'Species List'!$I$66:$J$66,2,FALSE)*J644,\"\")","v":""},{"$f":"IFERROR(VLOOKUP(D644,'Species List'!$I$71:$J$82,2,FALSE)*J644,\"\")","v":""},0,null,null,null,null,null,null,{"$f":"IFERROR(INDEX('3 - Land Summary'!$B$21:$B$120,(MATCH(AD644,'3 - Land Summary'!$C$21:$C$120,0))),\"\")","v":""}]
[null,{"$f":"IFERROR(INDEX('3 - Land Summary'!$B$21:$B$120,(MATCH('4 - Species Breakdown'!$V645,'3 - Land Summary'!$C$21:$C$120,0))),\"\")","v":""},null,null,{"$f":"IF(OR(COUNTIF('Look Up Data'!$D$149:$D$203,D645),COUNTIF('Look Up Data'!$D$149:$D$203,AE645)),\"YES\",\"NO\")","v":"NO"},null,null,{"$f":"IFERROR(INDEX('3 - Land Summary'!$G$21:$G$120,(MATCH(C645,'3 - Land Summary'!$C$21:$C$120,0))),\"\")","v":""},{"$f":"IFERROR(INDEX('3 - Land Summary'!$I$21:$I$120,(MATCH(C645,'3 - Land Summary'!$C$21:$C$120,0))),\"\")","v":""},"","",null,null,null,{"$f":"IFERROR(VLOOKUP(D645,'Species List'!$D$10:$E$46,2,FALSE)*J645,\"\")","v":""},{"$f":"IFERROR(VLOOKUP(D645,'Species List'!$D$51:$E$89,2,FALSE)*J645,\"\")","v":""},{"$f":"IFERROR(VLOOKUP(D645,'Species List'!$D$95:$E$102,2,FALSE)*J645,\"\")","v":""},{"$f":"IFERROR(VLOOKUP(D645,'Species List'!$I$10:$J$11,2,FALSE)*J645,\"\")","v":""},{"$f":"IFERROR(VLOOKUP(D645,'Species List'!$I$16:$J$61,2,FALSE)*J645,\"\")","v":""},{"$f":"IFERROR(VLOOKUP(D645,'Species List'!$I$66:$J$66,2,FALSE)*J645,\"\")","v":""},{"$f":"IFERROR(VLOOKUP(D645,'Species List'!$I$71:$J$82,2,FALSE)*J645,\"\")","v":""},0,null,null,null,null,null,null,{"$f":"IFERROR(INDEX('3 - Land Summary'!$B$21:$B$120,(MATCH(AD645,'3 - Land Summary'!$C$21:$C$120,0))),\"\")","v":""}]
[null,{"$f":"IFERROR(INDEX('3 - Land Summary'!$B$21:$B$120,(MATCH('4 - Species Breakdown'!$V646,'3 - Land Summary'!$C$21:$C$120,0))),\"\")","v":""},null,null,{"$f":"IF(OR(COUNTIF('Look Up Data'!$D$149:$D$203,D646),COUNTIF('Look Up Data'!$D$149:$D$203,AE646)),\"YES\",\"NO\")","v":"NO"},null,null,{"$f":"IFERROR(INDEX('3 - Land Summary'!$G$21:$G$120,(MATCH(C646,'3 - Land Summary'!$C$21:$C$120,0))),\"\")","v":""},{"$f":"IFERROR(INDEX('3 - Land Summary'!$I$21:$I$120,(MATCH(C646,'3 - Land Summary'!$C$21:$C$120,0))),\"\")","v":""},"","",null,null,null,{"$f":"IFERROR(VLOOKUP(D646,'Species List'!$D$10:$E$46,2,FALSE)*J646,\"\")","v":""},{"$f":"IFERROR(VLOOKUP(D646,'Species List'!$D$51:$E$89,2,FALSE)*J646,\"\")","v":""},{"$f":"IFERROR(VLOOKUP(D646,'Species List'!$D$95:$E$102,2,FALSE)*J646,\"\")","v":""},{"$f":"IFERROR(VLOOKUP(D646,'Species List'!$I$10:$J$11,2,FALSE)*J646,\"\")","v":""},{"$f":"IFERROR(VLOOKUP(D646,'Species List'!$I$16:$J$61,2,FALSE)*J646,\"\")","v":""},{"$f":"IFERROR(VLOOKUP(D646,'Species List'!$I$66:$J$66,2,FALSE)*J646,\"\")","v":""},{"$f":"IFERROR(VLOOKUP(D646,'Species List'!$I$71:$J$82,2,FALSE)*J646,\"\")","v":""},0,null,null,null,null,null,null,{"$f":"IFERROR(INDEX('3 - Land Summary'!$B$21:$B$120,(MATCH(AD646,'3 - Land Summary'!$C$21:$C$120,0))),\"\")","v":""}]
[null,{"$f":"IFERROR(INDEX('3 - Land Summary'!$B$21:$B$120,(MATCH('4 - Species Breakdown'!$V647,'3 - Land Summary'!$C$21:$C$120,0))),\"\")","v":""},null,null,{"$f":"IF(OR(COUNTIF('Look Up Data'!$D$149:$D$203,D647),COUNTIF('Look Up Data'!$D$149:$D$203,AE647)),\"YES\",\"NO\")","v":"NO"},null,null,{"$f":"IFERROR(INDEX('3 - Land Summary'!$G$21:$G$120,(MATCH(C647,'3 - Land Summary'!$C$21:$C$120,0))),\"\")","v":""},{"$f":"IFERROR(INDEX('3 - Land Summary'!$I$21:$I$120,(MATCH(C647,'3 - Land Summary'!$C$21:$C$120,0))),\"\")","v":""},"","",null,null,null,{"$f":"IFERROR(VLOOKUP(D647,'Species List'!$D$10:$E$46,2,FALSE)*J647,\"\")","v":""},{"$f":"IFERROR(VLOOKUP(D647,'Species List'!$D$51:$E$89,2,FALSE)*J647,\"\")","v":""},{"$f":"IFERROR(VLOOKUP(D647,'Species List'!$D$95:$E$102,2,FALSE)*J647,\"\")","v":""},{"$f":"IFERROR(VLOOKUP(D647,'Species List'!$I$10:$J$11,2,FALSE)*J647,\"\")","v":""},{"$f":"IFERROR(VLOOKUP(D647,'Species List'!$I$16:$J$61,2,FALSE)*J647,\"\")","v":""},{"$f":"IFERROR(VLOOKUP(D647,'Species List'!$I$66:$J$66,2,FALSE)*J647,\"\")","v":""},{"$f":"IFERROR(VLOOKUP(D647,'Species List'!$I$71:$J$82,2,FALSE)*J647,\"\")","v":""},0,null,null,null,null,null,null,{"$f":"IFERROR(INDEX('3 - Land Summary'!$B$21:$B$120,(MATCH(AD647,'3 - Land Summary'!$C$21:$C$120,0))),\"\")","v":""}]
[null,{"$f":"IFERROR(INDEX('3 - Land Summary'!$B$21:$B$120,(MATCH('4 - Species Breakdown'!$V648,'3 - Land Summary'!$C$21:$C$120,0))),\"\")","v":""},null,null,{"$f":"IF(OR(COUNTIF('Look Up Data'!$D$149:$D$203,D648),COUNTIF('Look Up Data'!$D$149:$D$203,AE648)),\"YES\",\"NO\")","v":"NO"},null,null,{"$f":"IFERROR(INDEX('3 - Land Summary'!$G$21:$G$120,(MATCH(C648,'3 - Land Summary'!$C$21:$C$120,0))),\"\")","v":""},{"$f":"IFERROR(INDEX('3 - Land Summary'!$I$21:$I$120,(MATCH(C648,'3 - Land Summary'!$C$21:$C$120,0))),\"\")","v":""},"","",null,null,null,{"$f":"IFERROR(VLOOKUP(D648,'Species List'!$D$10:$E$46,2,FALSE)*J648,\"\")","v":""},{"$f":"IFERROR(VLOOKUP(D648,'Species List'!$D$51:$E$89,2,FALSE)*J648,\"\")","v":""},{"$f":"IFERROR(VLOOKUP(D648,'Species List'!$D$95:$E$102,2,FALSE)*J648,\"\")","v":""},{"$f":"IFERROR(VLOOKUP(D648,'Species List'!$I$10:$J$11,2,FALSE)*J648,\"\")","v":""},{"$f":"IFERROR(VLOOKUP(D648,'Species List'!$I$16:$J$61,2,FALSE)*J648,\"\")","v":""},{"$f":"IFERROR(VLOOKUP(D648,'Species List'!$I$66:$J$66,2,FALSE)*J648,\"\")","v":""},{"$f":"IFERROR(VLOOKUP(D648,'Species List'!$I$71:$J$82,2,FALSE)*J648,\"\")","v":""},0,null,null,null,null,null,null,{"$f":"IFERROR(INDEX('3 - Land Summary'!$B$21:$B$120,(MATCH(AD648,'3 - Land Summary'!$C$21:$C$120,0))),\"\")","v":""}]
[null,{"$f":"IFERROR(INDEX('3 - Land Summary'!$B$21:$B$120,(MATCH('4 - Species Breakdown'!$V649,'3 - Land Summary'!$C$21:$C$120,0))),\"\")","v":""},null,null,{"$f":"IF(OR(COUNTIF('Look Up Data'!$D$149:$D$203,D649),COUNTIF('Look Up Data'!$D$149:$D$203,AE649)),\"YES\",\"NO\")","v":"NO"},null,null,{"$f":"IFERROR(INDEX('3 - Land Summary'!$G$21:$G$120,(MATCH(C649,'3 - Land Summary'!$C$21:$C$120,0))),\"\")","v":""},{"$f":"IFERROR(INDEX('3 - Land Summary'!$I$21:$I$120,(MATCH(C649,'3 - Land Summary'!$C$21:$C$120,0))),\"\")","v":""},"","",null,null,null,{"$f":"IFERROR(VLOOKUP(D649,'Species List'!$D$10:$E$46,2,FALSE)*J649,\"\")","v":""},{"$f":"IFERROR(VLOOKUP(D649,'Species List'!$D$51:$E$89,2,FALSE)*J649,\"\")","v":""},{"$f":"IFERROR(VLOOKUP(D649,'Species List'!$D$95:$E$102,2,FALSE)*J649,\"\")","v":""},{"$f":"IFERROR(VLOOKUP(D649,'Species List'!$I$10:$J$11,2,FALSE)*J649,\"\")","v":""},{"$f":"IFERROR(VLOOKUP(D649,'Species List'!$I$16:$J$61,2,FALSE)*J649,\"\")","v":""},{"$f":"IFERROR(VLOOKUP(D649,'Species List'!$I$66:$J$66,2,FALSE)*J649,\"\")","v":""},{"$f":"IFERROR(VLOOKUP(D649,'Species List'!$I$71:$J$82,2,FALSE)*J649,\"\")","v":""},0,null,null,null,null,null,null,{"$f":"IFERROR(INDEX('3 - Land Summary'!$B$21:$B$120,(MATCH(AD649,'3 - Land Summary'!$C$21:$C$120,0))),\"\")","v":""}]
[null,{"$f":"IFERROR(INDEX('3 - Land Summary'!$B$21:$B$120,(MATCH('4 - Species Breakdown'!$V650,'3 - Land Summary'!$C$21:$C$120,0))),\"\")","v":""},null,null,{"$f":"IF(OR(COUNTIF('Look Up Data'!$D$149:$D$203,D650),COUNTIF('Look Up Data'!$D$149:$D$203,AE650)),\"YES\",\"NO\")","v":"NO"},null,null,{"$f":"IFERROR(INDEX('3 - Land Summary'!$G$21:$G$120,(MATCH(C650,'3 - Land Summary'!$C$21:$C$120,0))),\"\")","v":""},{"$f":"IFERROR(INDEX('3 - Land Summary'!$I$21:$I$120,(MATCH(C650,'3 - Land Summary'!$C$21:$C$120,0))),\"\")","v":""},"","",null,null,null,{"$f":"IFERROR(VLOOKUP(D650,'Species List'!$D$10:$E$46,2,FALSE)*J650,\"\")","v":""},{"$f":"IFERROR(VLOOKUP(D650,'Species List'!$D$51:$E$89,2,FALSE)*J650,\"\")","v":""},{"$f":"IFERROR(VLOOKUP(D650,'Species List'!$D$95:$E$102,2,FALSE)*J650,\"\")","v":""},{"$f":"IFERROR(VLOOKUP(D650,'Species List'!$I$10:$J$11,2,FALSE)*J650,\"\")","v":""},{"$f":"IFERROR(VLOOKUP(D650,'Species List'!$I$16:$J$61,2,FALSE)*J650,\"\")","v":""},{"$f":"IFERROR(VLOOKUP(D650,'Species List'!$I$66:$J$66,2,FALSE)*J650,\"\")","v":""},{"$f":"IFERROR(VLOOKUP(D650,'Species List'!$I$71:$J$82,2,FALSE)*J650,\"\")","v":""},0,null,null,null,null,null,null,{"$f":"IFERROR(INDEX('3 - Land Summary'!$B$21:$B$120,(MATCH(AD650,'3 - Land Summary'!$C$21:$C$120,0))),\"\")","v":""}]
[null,{"$f":"IFERROR(INDEX('3 - Land Summary'!$B$21:$B$120,(MATCH('4 - Species Breakdown'!$V651,'3 - Land Summary'!$C$21:$C$120,0))),\"\")","v":""},null,null,{"$f":"IF(OR(COUNTIF('Look Up Data'!$D$149:$D$203,D651),COUNTIF('Look Up Data'!$D$149:$D$203,AE651)),\"YES\",\"NO\")","v":"NO"},null,null,{"$f":"IFERROR(INDEX('3 - Land Summary'!$G$21:$G$120,(MATCH(C651,'3 - Land Summary'!$C$21:$C$120,0))),\"\")","v":""},{"$f":"IFERROR(INDEX('3 - Land Summary'!$I$21:$I$120,(MATCH(C651,'3 - Land Summary'!$C$21:$C$120,0))),\"\")","v":""},"","",null,null,null,{"$f":"IFERROR(VLOOKUP(D651,'Species List'!$D$10:$E$46,2,FALSE)*J651,\"\")","v":""},{"$f":"IFERROR(VLOOKUP(D651,'Species List'!$D$51:$E$89,2,FALSE)*J651,\"\")","v":""},{"$f":"IFERROR(VLOOKUP(D651,'Species List'!$D$95:$E$102,2,FALSE)*J651,\"\")","v":""},{"$f":"IFERROR(VLOOKUP(D651,'Species List'!$I$10:$J$11,2,FALSE)*J651,\"\")","v":""},{"$f":"IFERROR(VLOOKUP(D651,'Species List'!$I$16:$J$61,2,FALSE)*J651,\"\")","v":""},{"$f":"IFERROR(VLOOKUP(D651,'Species List'!$I$66:$J$66,2,FALSE)*J651,\"\")","v":""},{"$f":"IFERROR(VLOOKUP(D651,'Species List'!$I$71:$J$82,2,FALSE)*J651,\"\")","v":""},0,null,null,null,null,null,null,{"$f":"IFERROR(INDEX('3 - Land Summary'!$B$21:$B$120,(MATCH(AD651,'3 - Land Summary'!$C$21:$C$120,0))),\"\")","v":""}]
[null,{"$f":"IFERROR(INDEX('3 - Land Summary'!$B$21:$B$120,(MATCH('4 - Species Breakdown'!$V652,'3 - Land Summary'!$C$21:$C$120,0))),\"\")","v":""},null,null,{"$f":"IF(OR(COUNTIF('Look Up Data'!$D$149:$D$203,D652),COUNTIF('Look Up Data'!$D$149:$D$203,AE652)),\"YES\",\"NO\")","v":"NO"},null,null,{"$f":"IFERROR(INDEX('3 - Land Summary'!$G$21:$G$120,(MATCH(C652,'3 - Land Summary'!$C$21:$C$120,0))),\"\")","v":""},{"$f":"IFERROR(INDEX('3 - Land Summary'!$I$21:$I$120,(MATCH(C652,'3 - Land Summary'!$C$21:$C$120,0))),\"\")","v":""},"","",null,null,null,{"$f":"IFERROR(VLOOKUP(D652,'Species List'!$D$10:$E$46,2,FALSE)*J652,\"\")","v":""},{"$f":"IFERROR(VLOOKUP(D652,'Species List'!$D$51:$E$89,2,FALSE)*J652,\"\")","v":""},{"$f":"IFERROR(VLOOKUP(D652,'Species List'!$D$95:$E$102,2,FALSE)*J652,\"\")","v":""},{"$f":"IFERROR(VLOOKUP(D652,'Species List'!$I$10:$J$11,2,FALSE)*J652,\"\")","v":""},{"$f":"IFERROR(VLOOKUP(D652,'Species List'!$I$16:$J$61,2,FALSE)*J652,\"\")","v":""},{"$f":"IFERROR(VLOOKUP(D652,'Species List'!$I$66:$J$66,2,FALSE)*J652,\"\")","v":""},{"$f":"IFERROR(VLOOKUP(D652,'Species List'!$I$71:$J$82,2,FALSE)*J652,\"\")","v":""},0,null,null,null,null,null,null,{"$f":"IFERROR(INDEX('3 - Land Summary'!$B$21:$B$120,(MATCH(AD652,'3 - Land Summary'!$C$21:$C$120,0))),\"\")","v":""}]
[null,{"$f":"IFERROR(INDEX('3 - Land Summary'!$B$21:$B$120,(MATCH('4 - Species Breakdown'!$V653,'3 - Land Summary'!$C$21:$C$120,0))),\"\")","v":""},null,null,{"$f":"IF(OR(COUNTIF('Look Up Data'!$D$149:$D$203,D653),COUNTIF('Look Up Data'!$D$149:$D$203,AE653)),\"YES\",\"NO\")","v":"NO"},null,null,{"$f":"IFERROR(INDEX('3 - Land Summary'!$G$21:$G$120,(MATCH(C653,'3 - Land Summary'!$C$21:$C$120,0))),\"\")","v":""},{"$f":"IFERROR(INDEX('3 - Land Summary'!$I$21:$I$120,(MATCH(C653,'3 - Land Summary'!$C$21:$C$120,0))),\"\")","v":""},"","",null,null,null,{"$f":"IFERROR(VLOOKUP(D653,'Species List'!$D$10:$E$46,2,FALSE)*J653,\"\")","v":""},{"$f":"IFERROR(VLOOKUP(D653,'Species List'!$D$51:$E$89,2,FALSE)*J653,\"\")","v":""},{"$f":"IFERROR(VLOOKUP(D653,'Species List'!$D$95:$E$102,2,FALSE)*J653,\"\")","v":""},{"$f":"IFERROR(VLOOKUP(D653,'Species List'!$I$10:$J$11,2,FALSE)*J653,\"\")","v":""},{"$f":"IFERROR(VLOOKUP(D653,'Species List'!$I$16:$J$61,2,FALSE)*J653,\"\")","v":""},{"$f":"IFERROR(VLOOKUP(D653,'Species List'!$I$66:$J$66,2,FALSE)*J653,\"\")","v":""},{"$f":"IFERROR(VLOOKUP(D653,'Species List'!$I$71:$J$82,2,FALSE)*J653,\"\")","v":""},0,null,null,null,null,null,null,{"$f":"IFERROR(INDEX('3 - Land Summary'!$B$21:$B$120,(MATCH(AD653,'3 - Land Summary'!$C$21:$C$120,0))),\"\")","v":""}]
[null,{"$f":"IFERROR(INDEX('3 - Land Summary'!$B$21:$B$120,(MATCH('4 - Species Breakdown'!$V654,'3 - Land Summary'!$C$21:$C$120,0))),\"\")","v":""},null,null,{"$f":"IF(OR(COUNTIF('Look Up Data'!$D$149:$D$203,D654),COUNTIF('Look Up Data'!$D$149:$D$203,AE654)),\"YES\",\"NO\")","v":"NO"},null,null,{"$f":"IFERROR(INDEX('3 - Land Summary'!$G$21:$G$120,(MATCH(C654,'3 - Land Summary'!$C$21:$C$120,0))),\"\")","v":""},{"$f":"IFERROR(INDEX('3 - Land Summary'!$I$21:$I$120,(MATCH(C654,'3 - Land Summary'!$C$21:$C$120,0))),\"\")","v":""},"","",null,null,null,{"$f":"IFERROR(VLOOKUP(D654,'Species List'!$D$10:$E$46,2,FALSE)*J654,\"\")","v":""},{"$f":"IFERROR(VLOOKUP(D654,'Species List'!$D$51:$E$89,2,FALSE)*J654,\"\")","v":""},{"$f":"IFERROR(VLOOKUP(D654,'Species List'!$D$95:$E$102,2,FALSE)*J654,\"\")","v":""},{"$f":"IFERROR(VLOOKUP(D654,'Species List'!$I$10:$J$11,2,FALSE)*J654,\"\")","v":""},{"$f":"IFERROR(VLOOKUP(D654,'Species List'!$I$16:$J$61,2,FALSE)*J654,\"\")","v":""},{"$f":"IFERROR(VLOOKUP(D654,'Species List'!$I$66:$J$66,2,FALSE)*J654,\"\")","v":""},{"$f":"IFERROR(VLOOKUP(D654,'Species List'!$I$71:$J$82,2,FALSE)*J654,\"\")","v":""},0,null,null,null,null,null,null,{"$f":"IFERROR(INDEX('3 - Land Summary'!$B$21:$B$120,(MATCH(AD654,'3 - Land Summary'!$C$21:$C$120,0))),\"\")","v":""}]
[null,{"$f":"IFERROR(INDEX('3 - Land Summary'!$B$21:$B$120,(MATCH('4 - Species Breakdown'!$V655,'3 - Land Summary'!$C$21:$C$120,0))),\"\")","v":""},null,null,{"$f":"IF(OR(COUNTIF('Look Up Data'!$D$149:$D$203,D655),COUNTIF('Look Up Data'!$D$149:$D$203,AE655)),\"YES\",\"NO\")","v":"NO"},null,null,{"$f":"IFERROR(INDEX('3 - Land Summary'!$G$21:$G$120,(MATCH(C655,'3 - Land Summary'!$C$21:$C$120,0))),\"\")","v":""},{"$f":"IFERROR(INDEX('3 - Land Summary'!$I$21:$I$120,(MATCH(C655,'3 - Land Summary'!$C$21:$C$120,0))),\"\")","v":""},"","",null,null,null,{"$f":"IFERROR(VLOOKUP(D655,'Species List'!$D$10:$E$46,2,FALSE)*J655,\"\")","v":""},{"$f":"IFERROR(VLOOKUP(D655,'Species List'!$D$51:$E$89,2,FALSE)*J655,\"\")","v":""},{"$f":"IFERROR(VLOOKUP(D655,'Species List'!$D$95:$E$102,2,FALSE)*J655,\"\")","v":""},{"$f":"IFERROR(VLOOKUP(D655,'Species List'!$I$10:$J$11,2,FALSE)*J655,\"\")","v":""},{"$f":"IFERROR(VLOOKUP(D655,'Species List'!$I$16:$J$61,2,FALSE)*J655,\"\")","v":""},{"$f":"IFERROR(VLOOKUP(D655,'Species List'!$I$66:$J$66,2,FALSE)*J655,\"\")","v":""},{"$f":"IFERROR(VLOOKUP(D655,'Species List'!$I$71:$J$82,2,FALSE)*J655,\"\")","v":""},0,null,null,null,null,null,null,{"$f":"IFERROR(INDEX('3 - Land Summary'!$B$21:$B$120,(MATCH(AD655,'3 - Land Summary'!$C$21:$C$120,0))),\"\")","v":""}]
[null,{"$f":"IFERROR(INDEX('3 - Land Summary'!$B$21:$B$120,(MATCH('4 - Species Breakdown'!$V656,'3 - Land Summary'!$C$21:$C$120,0))),\"\")","v":""},null,null,{"$f":"IF(OR(COUNTIF('Look Up Data'!$D$149:$D$203,D656),COUNTIF('Look Up Data'!$D$149:$D$203,AE656)),\"YES\",\"NO\")","v":"NO"},null,null,{"$f":"IFERROR(INDEX('3 - Land Summary'!$G$21:$G$120,(MATCH(C656,'3 - Land Summary'!$C$21:$C$120,0))),\"\")","v":""},{"$f":"IFERROR(INDEX('3 - Land Summary'!$I$21:$I$120,(MATCH(C656,'3 - Land Summary'!$C$21:$C$120,0))),\"\")","v":""},"","",null,null,null,{"$f":"IFERROR(VLOOKUP(D656,'Species List'!$D$10:$E$46,2,FALSE)*J656,\"\")","v":""},{"$f":"IFERROR(VLOOKUP(D656,'Species List'!$D$51:$E$89,2,FALSE)*J656,\"\")","v":""},{"$f":"IFERROR(VLOOKUP(D656,'Species List'!$D$95:$E$102,2,FALSE)*J656,\"\")","v":""},{"$f":"IFERROR(VLOOKUP(D656,'Species List'!$I$10:$J$11,2,FALSE)*J656,\"\")","v":""},{"$f":"IFERROR(VLOOKUP(D656,'Species List'!$I$16:$J$61,2,FALSE)*J656,\"\")","v":""},{"$f":"IFERROR(VLOOKUP(D656,'Species List'!$I$66:$J$66,2,FALSE)*J656,\"\")","v":""},{"$f":"IFERROR(VLOOKUP(D656,'Species List'!$I$71:$J$82,2,FALSE)*J656,\"\")","v":""},0,null,null,null,null,null,null,{"$f":"IFERROR(INDEX('3 - Land Summary'!$B$21:$B$120,(MATCH(AD656,'3 - Land Summary'!$C$21:$C$120,0))),\"\")","v":""}]
[null,{"$f":"IFERROR(INDEX('3 - Land Summary'!$B$21:$B$120,(MATCH('4 - Species Breakdown'!$V657,'3 - Land Summary'!$C$21:$C$120,0))),\"\")","v":""},null,null,{"$f":"IF(OR(COUNTIF('Look Up Data'!$D$149:$D$203,D657),COUNTIF('Look Up Data'!$D$149:$D$203,AE657)),\"YES\",\"NO\")","v":"NO"},null,null,{"$f":"IFERROR(INDEX('3 - Land Summary'!$G$21:$G$120,(MATCH(C657,'3 - Land Summary'!$C$21:$C$120,0))),\"\")","v":""},{"$f":"IFERROR(INDEX('3 - Land Summary'!$I$21:$I$120,(MATCH(C657,'3 - Land Summary'!$C$21:$C$120,0))),\"\")","v":""},"","",null,null,null,{"$f":"IFERROR(VLOOKUP(D657,'Species List'!$D$10:$E$46,2,FALSE)*J657,\"\")","v":""},{"$f":"IFERROR(VLOOKUP(D657,'Species List'!$D$51:$E$89,2,FALSE)*J657,\"\")","v":""},{"$f":"IFERROR(VLOOKUP(D657,'Species List'!$D$95:$E$102,2,FALSE)*J657,\"\")","v":""},{"$f":"IFERROR(VLOOKUP(D657,'Species List'!$I$10:$J$11,2,FALSE)*J657,\"\")","v":""},{"$f":"IFERROR(VLOOKUP(D657,'Species List'!$I$16:$J$61,2,FALSE)*J657,\"\")","v":""},{"$f":"IFERROR(VLOOKUP(D657,'Species List'!$I$66:$J$66,2,FALSE)*J657,\"\")","v":""},{"$f":"IFERROR(VLOOKUP(D657,'Species List'!$I$71:$J$82,2,FALSE)*J657,\"\")","v":""},0,null,null,null,null,null,null,{"$f":"IFERROR(INDEX('3 - Land Summary'!$B$21:$B$120,(MATCH(AD657,'3 - Land Summary'!$C$21:$C$120,0))),\"\")","v":""}]
[null,{"$f":"IFERROR(INDEX('3 - Land Summary'!$B$21:$B$120,(MATCH('4 - Species Breakdown'!$V658,'3 - Land Summary'!$C$21:$C$120,0))),\"\")","v":""},null,null,{"$f":"IF(OR(COUNTIF('Look Up Data'!$D$149:$D$203,D658),COUNTIF('Look Up Data'!$D$149:$D$203,AE658)),\"YES\",\"NO\")","v":"NO"},null,null,{"$f":"IFERROR(INDEX('3 - Land Summary'!$G$21:$G$120,(MATCH(C658,'3 - Land Summary'!$C$21:$C$120,0))),\"\")","v":""},{"$f":"IFERROR(INDEX('3 - Land Summary'!$I$21:$I$120,(MATCH(C658,'3 - Land Summary'!$C$21:$C$120,0))),\"\")","v":""},"","",null,null,null,{"$f":"IFERROR(VLOOKUP(D658,'Species List'!$D$10:$E$46,2,FALSE)*J658,\"\")","v":""},{"$f":"IFERROR(VLOOKUP(D658,'Species List'!$D$51:$E$89,2,FALSE)*J658,\"\")","v":""},{"$f":"IFERROR(VLOOKUP(D658,'Species List'!$D$95:$E$102,2,FALSE)*J658,\"\")","v":""},{"$f":"IFERROR(VLOOKUP(D658,'Species List'!$I$10:$J$11,2,FALSE)*J658,\"\")","v":""},{"$f":"IFERROR(VLOOKUP(D658,'Species List'!$I$16:$J$61,2,FALSE)*J658,\"\")","v":""},{"$f":"IFERROR(VLOOKUP(D658,'Species List'!$I$66:$J$66,2,FALSE)*J658,\"\")","v":""},{"$f":"IFERROR(VLOOKUP(D658,'Species List'!$I$71:$J$82,2,FALSE)*J658,\"\")","v":""},0,null,null,null,null,null,null,{"$f":"IFERROR(INDEX('3 - Land Summary'!$B$21:$B$120,(MATCH(AD658,'3 - Land Summary'!$C$21:$C$120,0))),\"\")","v":""}]
[null,{"$f":"IFERROR(INDEX('3 - Land Summary'!$B$21:$B$120,(MATCH('4 - Species Breakdown'!$V659,'3 - Land Summary'!$C$21:$C$120,0))),\"\")","v":""},null,null,{"$f":"IF(OR(COUNTIF('Look Up Data'!$D$149:$D$203,D659),COUNTIF('Look Up Data'!$D$149:$D$203,AE659)),\"YES\",\"NO\")","v":"NO"},null,null,{"$f":"IFERROR(INDEX('3 - Land Summary'!$G$21:$G$120,(MATCH(C659,'3 - Land Summary'!$C$21:$C$120,0))),\"\")","v":""},{"$f":"IFERROR(INDEX('3 - Land Summary'!$I$21:$I$120,(MATCH(C659,'3 - Land Summary'!$C$21:$C$120,0))),\"\")","v":""},"","",null,null,null,{"$f":"IFERROR(VLOOKUP(D659,'Species List'!$D$10:$E$46,2,FALSE)*J659,\"\")","v":""},{"$f":"IFERROR(VLOOKUP(D659,'Species List'!$D$51:$E$89,2,FALSE)*J659,\"\")","v":""},{"$f":"IFERROR(VLOOKUP(D659,'Species List'!$D$95:$E$102,2,FALSE)*J659,\"\")","v":""},{"$f":"IFERROR(VLOOKUP(D659,'Species List'!$I$10:$J$11,2,FALSE)*J659,\"\")","v":""},{"$f":"IFERROR(VLOOKUP(D659,'Species List'!$I$16:$J$61,2,FALSE)*J659,\"\")","v":""},{"$f":"IFERROR(VLOOKUP(D659,'Species List'!$I$66:$J$66,2,FALSE)*J659,\"\")","v":""},{"$f":"IFERROR(VLOOKUP(D659,'Species List'!$I$71:$J$82,2,FALSE)*J659,\"\")","v":""},0,null,null,null,null,null,null,{"$f":"IFERROR(INDEX('3 - Land Summary'!$B$21:$B$120,(MATCH(AD659,'3 - Land Summary'!$C$21:$C$120,0))),\"\")","v":""}]
[null,{"$f":"IFERROR(INDEX('3 - Land Summary'!$B$21:$B$120,(MATCH('4 - Species Breakdown'!$V660,'3 - Land Summary'!$C$21:$C$120,0))),\"\")","v":""},null,null,{"$f":"IF(OR(COUNTIF('Look Up Data'!$D$149:$D$203,D660),COUNTIF('Look Up Data'!$D$149:$D$203,AE660)),\"YES\",\"NO\")","v":"NO"},null,null,{"$f":"IFERROR(INDEX('3 - Land Summary'!$G$21:$G$120,(MATCH(C660,'3 - Land Summary'!$C$21:$C$120,0))),\"\")","v":""},{"$f":"IFERROR(INDEX('3 - Land Summary'!$I$21:$I$120,(MATCH(C660,'3 - Land Summary'!$C$21:$C$120,0))),\"\")","v":""},"","",null,null,null,{"$f":"IFERROR(VLOOKUP(D660,'Species List'!$D$10:$E$46,2,FALSE)*J660,\"\")","v":""},{"$f":"IFERROR(VLOOKUP(D660,'Species List'!$D$51:$E$89,2,FALSE)*J660,\"\")","v":""},{"$f":"IFERROR(VLOOKUP(D660,'Species List'!$D$95:$E$102,2,FALSE)*J660,\"\")","v":""},{"$f":"IFERROR(VLOOKUP(D660,'Species List'!$I$10:$J$11,2,FALSE)*J660,\"\")","v":""},{"$f":"IFERROR(VLOOKUP(D660,'Species List'!$I$16:$J$61,2,FALSE)*J660,\"\")","v":""},{"$f":"IFERROR(VLOOKUP(D660,'Species List'!$I$66:$J$66,2,FALSE)*J660,\"\")","v":""},{"$f":"IFERROR(VLOOKUP(D660,'Species List'!$I$71:$J$82,2,FALSE)*J660,\"\")","v":""},0,null,null,null,null,null,null,{"$f":"IFERROR(INDEX('3 - Land Summary'!$B$21:$B$120,(MATCH(AD660,'3 - Land Summary'!$C$21:$C$120,0))),\"\")","v":""}]
[null,{"$f":"IFERROR(INDEX('3 - Land Summary'!$B$21:$B$120,(MATCH('4 - Species Breakdown'!$V661,'3 - Land Summary'!$C$21:$C$120,0))),\"\")","v":""},null,null,{"$f":"IF(OR(COUNTIF('Look Up Data'!$D$149:$D$203,D661),COUNTIF('Look Up Data'!$D$149:$D$203,AE661)),\"YES\",\"NO\")","v":"NO"},null,null,{"$f":"IFERROR(INDEX('3 - Land Summary'!$G$21:$G$120,(MATCH(C661,'3 - Land Summary'!$C$21:$C$120,0))),\"\")","v":""},{"$f":"IFERROR(INDEX('3 - Land Summary'!$I$21:$I$120,(MATCH(C661,'3 - Land Summary'!$C$21:$C$120,0))),\"\")","v":""},"","",null,null,null,{"$f":"IFERROR(VLOOKUP(D661,'Species List'!$D$10:$E$46,2,FALSE)*J661,\"\")","v":""},{"$f":"IFERROR(VLOOKUP(D661,'Species List'!$D$51:$E$89,2,FALSE)*J661,\"\")","v":""},{"$f":"IFERROR(VLOOKUP(D661,'Species List'!$D$95:$E$102,2,FALSE)*J661,\"\")","v":""},{"$f":"IFERROR(VLOOKUP(D661,'Species List'!$I$10:$J$11,2,FALSE)*J661,\"\")","v":""},{"$f":"IFERROR(VLOOKUP(D661,'Species List'!$I$16:$J$61,2,FALSE)*J661,\"\")","v":""},{"$f":"IFERROR(VLOOKUP(D661,'Species List'!$I$66:$J$66,2,FALSE)*J661,\"\")","v":""},{"$f":"IFERROR(VLOOKUP(D661,'Species List'!$I$71:$J$82,2,FALSE)*J661,\"\")","v":""},0,null,null,null,null,null,null,{"$f":"IFERROR(INDEX('3 - Land Summary'!$B$21:$B$120,(MATCH(AD661,'3 - Land Summary'!$C$21:$C$120,0))),\"\")","v":""}]
[null,{"$f":"IFERROR(INDEX('3 - Land Summary'!$B$21:$B$120,(MATCH('4 - Species Breakdown'!$V662,'3 - Land Summary'!$C$21:$C$120,0))),\"\")","v":""},null,null,{"$f":"IF(OR(COUNTIF('Look Up Data'!$D$149:$D$203,D662),COUNTIF('Look Up Data'!$D$149:$D$203,AE662)),\"YES\",\"NO\")","v":"NO"},null,null,{"$f":"IFERROR(INDEX('3 - Land Summary'!$G$21:$G$120,(MATCH(C662,'3 - Land Summary'!$C$21:$C$120,0))),\"\")","v":""},{"$f":"IFERROR(INDEX('3 - Land Summary'!$I$21:$I$120,(MATCH(C662,'3 - Land Summary'!$C$21:$C$120,0))),\"\")","v":""},"","",null,null,null,{"$f":"IFERROR(VLOOKUP(D662,'Species List'!$D$10:$E$46,2,FALSE)*J662,\"\")","v":""},{"$f":"IFERROR(VLOOKUP(D662,'Species List'!$D$51:$E$89,2,FALSE)*J662,\"\")","v":""},{"$f":"IFERROR(VLOOKUP(D662,'Species List'!$D$95:$E$102,2,FALSE)*J662,\"\")","v":""},{"$f":"IFERROR(VLOOKUP(D662,'Species List'!$I$10:$J$11,2,FALSE)*J662,\"\")","v":""},{"$f":"IFERROR(VLOOKUP(D662,'Species List'!$I$16:$J$61,2,FALSE)*J662,\"\")","v":""},{"$f":"IFERROR(VLOOKUP(D662,'Species List'!$I$66:$J$66,2,FALSE)*J662,\"\")","v":""},{"$f":"IFERROR(VLOOKUP(D662,'Species List'!$I$71:$J$82,2,FALSE)*J662,\"\")","v":""},0,null,null,null,null,null,null,{"$f":"IFERROR(INDEX('3 - Land Summary'!$B$21:$B$120,(MATCH(AD662,'3 - Land Summary'!$C$21:$C$120,0))),\"\")","v":""}]
[null,{"$f":"IFERROR(INDEX('3 - Land Summary'!$B$21:$B$120,(MATCH('4 - Species Breakdown'!$V663,'3 - Land Summary'!$C$21:$C$120,0))),\"\")","v":""},null,null,{"$f":"IF(OR(COUNTIF('Look Up Data'!$D$149:$D$203,D663),COUNTIF('Look Up Data'!$D$149:$D$203,AE663)),\"YES\",\"NO\")","v":"NO"},null,null,{"$f":"IFERROR(INDEX('3 - Land Summary'!$G$21:$G$120,(MATCH(C663,'3 - Land Summary'!$C$21:$C$120,0))),\"\")","v":""},{"$f":"IFERROR(INDEX('3 - Land Summary'!$I$21:$I$120,(MATCH(C663,'3 - Land Summary'!$C$21:$C$120,0))),\"\")","v":""},"","",null,null,null,{"$f":"IFERROR(VLOOKUP(D663,'Species List'!$D$10:$E$46,2,FALSE)*J663,\"\")","v":""},{"$f":"IFERROR(VLOOKUP(D663,'Species List'!$D$51:$E$89,2,FALSE)*J663,\"\")","v":""},{"$f":"IFERROR(VLOOKUP(D663,'Species List'!$D$95:$E$102,2,FALSE)*J663,\"\")","v":""},{"$f":"IFERROR(VLOOKUP(D663,'Species List'!$I$10:$J$11,2,FALSE)*J663,\"\")","v":""},{"$f":"IFERROR(VLOOKUP(D663,'Species List'!$I$16:$J$61,2,FALSE)*J663,\"\")","v":""},{"$f":"IFERROR(VLOOKUP(D663,'Species List'!$I$66:$J$66,2,FALSE)*J663,\"\")","v":""},{"$f":"IFERROR(VLOOKUP(D663,'Species List'!$I$71:$J$82,2,FALSE)*J663,\"\")","v":""},0,null,null,null,null,null,null,{"$f":"IFERROR(INDEX('3 - Land Summary'!$B$21:$B$120,(MATCH(AD663,'3 - Land Summary'!$C$21:$C$120,0))),\"\")","v":""}]
[null,{"$f":"IFERROR(INDEX('3 - Land Summary'!$B$21:$B$120,(MATCH('4 - Species Breakdown'!$V664,'3 - Land Summary'!$C$21:$C$120,0))),\"\")","v":""},null,null,{"$f":"IF(OR(COUNTIF('Look Up Data'!$D$149:$D$203,D664),COUNTIF('Look Up Data'!$D$149:$D$203,AE664)),\"YES\",\"NO\")","v":"NO"},null,null,{"$f":"IFERROR(INDEX('3 - Land Summary'!$G$21:$G$120,(MATCH(C664,'3 - Land Summary'!$C$21:$C$120,0))),\"\")","v":""},{"$f":"IFERROR(INDEX('3 - Land Summary'!$I$21:$I$120,(MATCH(C664,'3 - Land Summary'!$C$21:$C$120,0))),\"\")","v":""},"","",null,null,null,{"$f":"IFERROR(VLOOKUP(D664,'Species List'!$D$10:$E$46,2,FALSE)*J664,\"\")","v":""},{"$f":"IFERROR(VLOOKUP(D664,'Species List'!$D$51:$E$89,2,FALSE)*J664,\"\")","v":""},{"$f":"IFERROR(VLOOKUP(D664,'Species List'!$D$95:$E$102,2,FALSE)*J664,\"\")","v":""},{"$f":"IFERROR(VLOOKUP(D664,'Species List'!$I$10:$J$11,2,FALSE)*J664,\"\")","v":""},{"$f":"IFERROR(VLOOKUP(D664,'Species List'!$I$16:$J$61,2,FALSE)*J664,\"\")","v":""},{"$f":"IFERROR(VLOOKUP(D664,'Species List'!$I$66:$J$66,2,FALSE)*J664,\"\")","v":""},{"$f":"IFERROR(VLOOKUP(D664,'Species List'!$I$71:$J$82,2,FALSE)*J664,\"\")","v":""},0,null,null,null,null,null,null,{"$f":"IFERROR(INDEX('3 - Land Summary'!$B$21:$B$120,(MATCH(AD664,'3 - Land Summary'!$C$21:$C$120,0))),\"\")","v":""}]
[null,{"$f":"IFERROR(INDEX('3 - Land Summary'!$B$21:$B$120,(MATCH('4 - Species Breakdown'!$V665,'3 - Land Summary'!$C$21:$C$120,0))),\"\")","v":""},null,null,{"$f":"IF(OR(COUNTIF('Look Up Data'!$D$149:$D$203,D665),COUNTIF('Look Up Data'!$D$149:$D$203,AE665)),\"YES\",\"NO\")","v":"NO"},null,null,{"$f":"IFERROR(INDEX('3 - Land Summary'!$G$21:$G$120,(MATCH(C665,'3 - Land Summary'!$C$21:$C$120,0))),\"\")","v":""},{"$f":"IFERROR(INDEX('3 - Land Summary'!$I$21:$I$120,(MATCH(C665,'3 - Land Summary'!$C$21:$C$120,0))),\"\")","v":""},"","",null,null,null,{"$f":"IFERROR(VLOOKUP(D665,'Species List'!$D$10:$E$46,2,FALSE)*J665,\"\")","v":""},{"$f":"IFERROR(VLOOKUP(D665,'Species List'!$D$51:$E$89,2,FALSE)*J665,\"\")","v":""},{"$f":"IFERROR(VLOOKUP(D665,'Species List'!$D$95:$E$102,2,FALSE)*J665,\"\")","v":""},{"$f":"IFERROR(VLOOKUP(D665,'Species List'!$I$10:$J$11,2,FALSE)*J665,\"\")","v":""},{"$f":"IFERROR(VLOOKUP(D665,'Species List'!$I$16:$J$61,2,FALSE)*J665,\"\")","v":""},{"$f":"IFERROR(VLOOKUP(D665,'Species List'!$I$66:$J$66,2,FALSE)*J665,\"\")","v":""},{"$f":"IFERROR(VLOOKUP(D665,'Species List'!$I$71:$J$82,2,FALSE)*J665,\"\")","v":""},0,null,null,null,null,null,null,{"$f":"IFERROR(INDEX('3 - Land Summary'!$B$21:$B$120,(MATCH(AD665,'3 - Land Summary'!$C$21:$C$120,0))),\"\")","v":""}]
[null,{"$f":"IFERROR(INDEX('3 - Land Summary'!$B$21:$B$120,(MATCH('4 - Species Breakdown'!$V666,'3 - Land Summary'!$C$21:$C$120,0))),\"\")","v":""},null,null,{"$f":"IF(OR(COUNTIF('Look Up Data'!$D$149:$D$203,D666),COUNTIF('Look Up Data'!$D$149:$D$203,AE666)),\"YES\",\"NO\")","v":"NO"},null,null,{"$f":"IFERROR(INDEX('3 - Land Summary'!$G$21:$G$120,(MATCH(C666,'3 - Land Summary'!$C$21:$C$120,0))),\"\")","v":""},{"$f":"IFERROR(INDEX('3 - Land Summary'!$I$21:$I$120,(MATCH(C666,'3 - Land Summary'!$C$21:$C$120,0))),\"\")","v":""},"","",null,null,null,{"$f":"IFERROR(VLOOKUP(D666,'Species List'!$D$10:$E$46,2,FALSE)*J666,\"\")","v":""},{"$f":"IFERROR(VLOOKUP(D666,'Species List'!$D$51:$E$89,2,FALSE)*J666,\"\")","v":""},{"$f":"IFERROR(VLOOKUP(D666,'Species List'!$D$95:$E$102,2,FALSE)*J666,\"\")","v":""},{"$f":"IFERROR(VLOOKUP(D666,'Species List'!$I$10:$J$11,2,FALSE)*J666,\"\")","v":""},{"$f":"IFERROR(VLOOKUP(D666,'Species List'!$I$16:$J$61,2,FALSE)*J666,\"\")","v":""},{"$f":"IFERROR(VLOOKUP(D666,'Species List'!$I$66:$J$66,2,FALSE)*J666,\"\")","v":""},{"$f":"IFERROR(VLOOKUP(D666,'Species List'!$I$71:$J$82,2,FALSE)*J666,\"\")","v":""},0,null,null,null,null,null,null,{"$f":"IFERROR(INDEX('3 - Land Summary'!$B$21:$B$120,(MATCH(AD666,'3 - Land Summary'!$C$21:$C$120,0))),\"\")","v":""}]
[null,{"$f":"IFERROR(INDEX('3 - Land Summary'!$B$21:$B$120,(MATCH('4 - Species Breakdown'!$V667,'3 - Land Summary'!$C$21:$C$120,0))),\"\")","v":""},null,null,{"$f":"IF(OR(COUNTIF('Look Up Data'!$D$149:$D$203,D667),COUNTIF('Look Up Data'!$D$149:$D$203,AE667)),\"YES\",\"NO\")","v":"NO"},null,null,{"$f":"IFERROR(INDEX('3 - Land Summary'!$G$21:$G$120,(MATCH(C667,'3 - Land Summary'!$C$21:$C$120,0))),\"\")","v":""},{"$f":"IFERROR(INDEX('3 - Land Summary'!$I$21:$I$120,(MATCH(C667,'3 - Land Summary'!$C$21:$C$120,0))),\"\")","v":""},"","",null,null,null,{"$f":"IFERROR(VLOOKUP(D667,'Species List'!$D$10:$E$46,2,FALSE)*J667,\"\")","v":""},{"$f":"IFERROR(VLOOKUP(D667,'Species List'!$D$51:$E$89,2,FALSE)*J667,\"\")","v":""},{"$f":"IFERROR(VLOOKUP(D667,'Species List'!$D$95:$E$102,2,FALSE)*J667,\"\")","v":""},{"$f":"IFERROR(VLOOKUP(D667,'Species List'!$I$10:$J$11,2,FALSE)*J667,\"\")","v":""},{"$f":"IFERROR(VLOOKUP(D667,'Species List'!$I$16:$J$61,2,FALSE)*J667,\"\")","v":""},{"$f":"IFERROR(VLOOKUP(D667,'Species List'!$I$66:$J$66,2,FALSE)*J667,\"\")","v":""},{"$f":"IFERROR(VLOOKUP(D667,'Species List'!$I$71:$J$82,2,FALSE)*J667,\"\")","v":""},0,null,null,null,null,null,null,{"$f":"IFERROR(INDEX('3 - Land Summary'!$B$21:$B$120,(MATCH(AD667,'3 - Land Summary'!$C$21:$C$120,0))),\"\")","v":""}]
[null,{"$f":"IFERROR(INDEX('3 - Land Summary'!$B$21:$B$120,(MATCH('4 - Species Breakdown'!$V668,'3 - Land Summary'!$C$21:$C$120,0))),\"\")","v":""},null,null,{"$f":"IF(OR(COUNTIF('Look Up Data'!$D$149:$D$203,D668),COUNTIF('Look Up Data'!$D$149:$D$203,AE668)),\"YES\",\"NO\")","v":"NO"},null,null,{"$f":"IFERROR(INDEX('3 - Land Summary'!$G$21:$G$120,(MATCH(C668,'3 - Land Summary'!$C$21:$C$120,0))),\"\")","v":""},{"$f":"IFERROR(INDEX('3 - Land Summary'!$I$21:$I$120,(MATCH(C668,'3 - Land Summary'!$C$21:$C$120,0))),\"\")","v":""},"","",null,null,null,{"$f":"IFERROR(VLOOKUP(D668,'Species List'!$D$10:$E$46,2,FALSE)*J668,\"\")","v":""},{"$f":"IFERROR(VLOOKUP(D668,'Species List'!$D$51:$E$89,2,FALSE)*J668,\"\")","v":""},{"$f":"IFERROR(VLOOKUP(D668,'Species List'!$D$95:$E$102,2,FALSE)*J668,\"\")","v":""},{"$f":"IFERROR(VLOOKUP(D668,'Species List'!$I$10:$J$11,2,FALSE)*J668,\"\")","v":""},{"$f":"IFERROR(VLOOKUP(D668,'Species List'!$I$16:$J$61,2,FALSE)*J668,\"\")","v":""},{"$f":"IFERROR(VLOOKUP(D668,'Species List'!$I$66:$J$66,2,FALSE)*J668,\"\")","v":""},{"$f":"IFERROR(VLOOKUP(D668,'Species List'!$I$71:$J$82,2,FALSE)*J668,\"\")","v":""},0,null,null,null,null,null,null,{"$f":"IFERROR(INDEX('3 - Land Summary'!$B$21:$B$120,(MATCH(AD668,'3 - Land Summary'!$C$21:$C$120,0))),\"\")","v":""}]
[null,{"$f":"IFERROR(INDEX('3 - Land Summary'!$B$21:$B$120,(MATCH('4 - Species Breakdown'!$V669,'3 - Land Summary'!$C$21:$C$120,0))),\"\")","v":""},null,null,{"$f":"IF(OR(COUNTIF('Look Up Data'!$D$149:$D$203,D669),COUNTIF('Look Up Data'!$D$149:$D$203,AE669)),\"YES\",\"NO\")","v":"NO"},null,null,{"$f":"IFERROR(INDEX('3 - Land Summary'!$G$21:$G$120,(MATCH(C669,'3 - Land Summary'!$C$21:$C$120,0))),\"\")","v":""},{"$f":"IFERROR(INDEX('3 - Land Summary'!$I$21:$I$120,(MATCH(C669,'3 - Land Summary'!$C$21:$C$120,0))),\"\")","v":""},"","",null,null,null,{"$f":"IFERROR(VLOOKUP(D669,'Species List'!$D$10:$E$46,2,FALSE)*J669,\"\")","v":""},{"$f":"IFERROR(VLOOKUP(D669,'Species List'!$D$51:$E$89,2,FALSE)*J669,\"\")","v":""},{"$f":"IFERROR(VLOOKUP(D669,'Species List'!$D$95:$E$102,2,FALSE)*J669,\"\")","v":""},{"$f":"IFERROR(VLOOKUP(D669,'Species List'!$I$10:$J$11,2,FALSE)*J669,\"\")","v":""},{"$f":"IFERROR(VLOOKUP(D669,'Species List'!$I$16:$J$61,2,FALSE)*J669,\"\")","v":""},{"$f":"IFERROR(VLOOKUP(D669,'Species List'!$I$66:$J$66,2,FALSE)*J669,\"\")","v":""},{"$f":"IFERROR(VLOOKUP(D669,'Species List'!$I$71:$J$82,2,FALSE)*J669,\"\")","v":""},0,null,null,null,null,null,null,{"$f":"IFERROR(INDEX('3 - Land Summary'!$B$21:$B$120,(MATCH(AD669,'3 - Land Summary'!$C$21:$C$120,0))),\"\")","v":""}]
[null,{"$f":"IFERROR(INDEX('3 - Land Summary'!$B$21:$B$120,(MATCH('4 - Species Breakdown'!$V670,'3 - Land Summary'!$C$21:$C$120,0))),\"\")","v":""},null,null,{"$f":"IF(OR(COUNTIF('Look Up Data'!$D$149:$D$203,D670),COUNTIF('Look Up Data'!$D$149:$D$203,AE670)),\"YES\",\"NO\")","v":"NO"},null,null,{"$f":"IFERROR(INDEX('3 - Land Summary'!$G$21:$G$120,(MATCH(C670,'3 - Land Summary'!$C$21:$C$120,0))),\"\")","v":""},{"$f":"IFERROR(INDEX('3 - Land Summary'!$I$21:$I$120,(MATCH(C670,'3 - Land Summary'!$C$21:$C$120,0))),\"\")","v":""},"","",null,null,null,{"$f":"IFERROR(VLOOKUP(D670,'Species List'!$D$10:$E$46,2,FALSE)*J670,\"\")","v":""},{"$f":"IFERROR(VLOOKUP(D670,'Species List'!$D$51:$E$89,2,FALSE)*J670,\"\")","v":""},{"$f":"IFERROR(VLOOKUP(D670,'Species List'!$D$95:$E$102,2,FALSE)*J670,\"\")","v":""},{"$f":"IFERROR(VLOOKUP(D670,'Species List'!$I$10:$J$11,2,FALSE)*J670,\"\")","v":""},{"$f":"IFERROR(VLOOKUP(D670,'Species List'!$I$16:$J$61,2,FALSE)*J670,\"\")","v":""},{"$f":"IFERROR(VLOOKUP(D670,'Species List'!$I$66:$J$66,2,FALSE)*J670,\"\")","v":""},{"$f":"IFERROR(VLOOKUP(D670,'Species List'!$I$71:$J$82,2,FALSE)*J670,\"\")","v":""},0,null,null,null,null,null,null,{"$f":"IFERROR(INDEX('3 - Land Summary'!$B$21:$B$120,(MATCH(AD670,'3 - Land Summary'!$C$21:$C$120,0))),\"\")","v":""}]
[null,{"$f":"IFERROR(INDEX('3 - Land Summary'!$B$21:$B$120,(MATCH('4 - Species Breakdown'!$V671,'3 - Land Summary'!$C$21:$C$120,0))),\"\")","v":""},null,null,{"$f":"IF(OR(COUNTIF('Look Up Data'!$D$149:$D$203,D671),COUNTIF('Look Up Data'!$D$149:$D$203,AE671)),\"YES\",\"NO\")","v":"NO"},null,null,{"$f":"IFERROR(INDEX('3 - Land Summary'!$G$21:$G$120,(MATCH(C671,'3 - Land Summary'!$C$21:$C$120,0))),\"\")","v":""},{"$f":"IFERROR(INDEX('3 - Land Summary'!$I$21:$I$120,(MATCH(C671,'3 - Land Summary'!$C$21:$C$120,0))),\"\")","v":""},{"$f":"IFERROR(((H671-I671)*F671)/100,\"\")","v":""},"",null,null,null,{"$f":"IFERROR(VLOOKUP(D671,'Species List'!$D$10:$E$46,2,FALSE)*J671,\"\")","v":""},{"$f":"IFERROR(VLOOKUP(D671,'Species List'!$D$51:$E$89,2,FALSE)*J671,\"\")","v":""},{"$f":"IFERROR(VLOOKUP(D671,'Species List'!$D$95:$E$102,2,FALSE)*J671,\"\")","v":""},{"$f":"IFERROR(VLOOKUP(D671,'Species List'!$I$10:$J$11,2,FALSE)*J671,\"\")","v":""},{"$f":"IFERROR(VLOOKUP(D671,'Species List'!$I$16:$J$61,2,FALSE)*J671,\"\")","v":""},{"$f":"IFERROR(VLOOKUP(D671,'Species List'!$I$66:$J$66,2,FALSE)*J671,\"\")","v":""},{"$f":"IFERROR(VLOOKUP(D671,'Species List'!$I$71:$J$82,2,FALSE)*J671,\"\")","v":""},{"$f":"C671","v":0},null,null,null,null,null,null,{"$f":"IFERROR(INDEX('3 - Land Summary'!$B$21:$B$120,(MATCH(AD671,'3 - Land Summary'!$C$21:$C$120,0))),\"\")","v":""}]
[null,{"$f":"IFERROR(INDEX('3 - Land Summary'!$B$21:$B$120,(MATCH('4 - Species Breakdown'!$V672,'3 - Land Summary'!$C$21:$C$120,0))),\"\")","v":""},null,null,{"$f":"IF(OR(COUNTIF('Look Up Data'!$D$149:$D$203,D672),COUNTIF('Look Up Data'!$D$149:$D$203,AE672)),\"YES\",\"NO\")","v":"NO"},null,null,{"$f":"IFERROR(INDEX('3 - Land Summary'!$G$21:$G$120,(MATCH(C672,'3 - Land Summary'!$C$21:$C$120,0))),\"\")","v":""},{"$f":"IFERROR(INDEX('3 - Land Summary'!$I$21:$I$120,(MATCH(C672,'3 - Land Summary'!$C$21:$C$120,0))),\"\")","v":""},"",{"$f":"IFERROR(ROUND(J672*G672,0),\"\")","v":""},null,null,null,{"$f":"IFERROR(VLOOKUP(D672,'Species List'!$D$10:$E$46,2,FALSE)*J672,\"\")","v":""},{"$f":"IFERROR(VLOOKUP(D672,'Species List'!$D$51:$E$89,2,FALSE)*J672,\"\")","v":""},{"$f":"IFERROR(VLOOKUP(D672,'Species List'!$D$95:$E$102,2,FALSE)*J672,\"\")","v":""},{"$f":"IFERROR(VLOOKUP(D672,'Species List'!$I$10:$J$11,2,FALSE)*J672,\"\")","v":""},{"$f":"IFERROR(VLOOKUP(D672,'Species List'!$I$16:$J$61,2,FALSE)*J672,\"\")","v":""},{"$f":"IFERROR(VLOOKUP(D672,'Species List'!$I$66:$J$66,2,FALSE)*J672,\"\")","v":""},{"$f":"IFERROR(VLOOKUP(D672,'Species List'!$I$71:$J$82,2,FALSE)*J672,\"\")","v":""},0,null,null,null,null,null,null,{"$f":"IFERROR(INDEX('3 - Land Summary'!$B$21:$B$120,(MATCH(AD672,'3 - Land Summary'!$C$21:$C$120,0))),\"\")","v":""}]
[null,{"$f":"IFERROR(INDEX('3 - Land Summary'!$B$21:$B$120,(MATCH('4 - Species Breakdown'!$V673,'3 - Land Summary'!$C$21:$C$120,0))),\"\")","v":""},null,null,{"$f":"IF(OR(COUNTIF('Look Up Data'!$D$149:$D$203,D673),COUNTIF('Look Up Data'!$D$149:$D$203,AE673)),\"YES\",\"NO\")","v":"NO"},null,null,{"$f":"IFERROR(INDEX('3 - Land Summary'!$G$21:$G$120,(MATCH(C673,'3 - Land Summary'!$C$21:$C$120,0))),\"\")","v":""},{"$f":"IFERROR(INDEX('3 - Land Summary'!$I$21:$I$120,(MATCH(C673,'3 - Land Summary'!$C$21:$C$120,0))),\"\")","v":""},"","",null,null,null,{"$f":"IFERROR(VLOOKUP(D673,'Species List'!$D$10:$E$46,2,FALSE)*J673,\"\")","v":""},{"$f":"IFERROR(VLOOKUP(D673,'Species List'!$D$51:$E$89,2,FALSE)*J673,\"\")","v":""},{"$f":"IFERROR(VLOOKUP(D673,'Species List'!$D$95:$E$102,2,FALSE)*J673,\"\")","v":""},{"$f":"IFERROR(VLOOKUP(D673,'Species List'!$I$10:$J$11,2,FALSE)*J673,\"\")","v":""},{"$f":"IFERROR(VLOOKUP(D673,'Species List'!$I$16:$J$61,2,FALSE)*J673,\"\")","v":""},{"$f":"IFERROR(VLOOKUP(D673,'Species List'!$I$66:$J$66,2,FALSE)*J673,\"\")","v":""},{"$f":"IFERROR(VLOOKUP(D673,'Species List'!$I$71:$J$82,2,FALSE)*J673,\"\")","v":""},0,null,null,null,null,null,null,{"$f":"IFERROR(INDEX('3 - Land Summary'!$B$21:$B$120,(MATCH(AD673,'3 - Land Summary'!$C$21:$C$120,0))),\"\")","v":""}]
[null,{"$f":"IFERROR(INDEX('3 - Land Summary'!$B$21:$B$120,(MATCH('4 - Species Breakdown'!$V674,'3 - Land Summary'!$C$21:$C$120,0))),\"\")","v":""},null,null,{"$f":"IF(OR(COUNTIF('Look Up Data'!$D$149:$D$203,D674),COUNTIF('Look Up Data'!$D$149:$D$203,AE674)),\"YES\",\"NO\")","v":"NO"},null,null,{"$f":"IFERROR(INDEX('3 - Land Summary'!$G$21:$G$120,(MATCH(C674,'3 - Land Summary'!$C$21:$C$120,0))),\"\")","v":""},{"$f":"IFERROR(INDEX('3 - Land Summary'!$I$21:$I$120,(MATCH(C674,'3 - Land Summary'!$C$21:$C$120,0))),\"\")","v":""},"","",null,null,null,{"$f":"IFERROR(VLOOKUP(D674,'Species List'!$D$10:$E$46,2,FALSE)*J674,\"\")","v":""},{"$f":"IFERROR(VLOOKUP(D674,'Species List'!$D$51:$E$89,2,FALSE)*J674,\"\")","v":""},{"$f":"IFERROR(VLOOKUP(D674,'Species List'!$D$95:$E$102,2,FALSE)*J674,\"\")","v":""},{"$f":"IFERROR(VLOOKUP(D674,'Species List'!$I$10:$J$11,2,FALSE)*J674,\"\")","v":""},{"$f":"IFERROR(VLOOKUP(D674,'Species List'!$I$16:$J$61,2,FALSE)*J674,\"\")","v":""},{"$f":"IFERROR(VLOOKUP(D674,'Species List'!$I$66:$J$66,2,FALSE)*J674,\"\")","v":""},{"$f":"IFERROR(VLOOKUP(D674,'Species List'!$I$71:$J$82,2,FALSE)*J674,\"\")","v":""},0,null,null,null,null,null,null,{"$f":"IFERROR(INDEX('3 - Land Summary'!$B$21:$B$120,(MATCH(AD674,'3 - Land Summary'!$C$21:$C$120,0))),\"\")","v":""}]
[null,{"$f":"IFERROR(INDEX('3 - Land Summary'!$B$21:$B$120,(MATCH('4 - Species Breakdown'!$V675,'3 - Land Summary'!$C$21:$C$120,0))),\"\")","v":""},null,null,{"$f":"IF(OR(COUNTIF('Look Up Data'!$D$149:$D$203,D675),COUNTIF('Look Up Data'!$D$149:$D$203,AE675)),\"YES\",\"NO\")","v":"NO"},null,null,{"$f":"IFERROR(INDEX('3 - Land Summary'!$G$21:$G$120,(MATCH(C675,'3 - Land Summary'!$C$21:$C$120,0))),\"\")","v":""},{"$f":"IFERROR(INDEX('3 - Land Summary'!$I$21:$I$120,(MATCH(C675,'3 - Land Summary'!$C$21:$C$120,0))),\"\")","v":""},"","",null,null,null,{"$f":"IFERROR(VLOOKUP(D675,'Species List'!$D$10:$E$46,2,FALSE)*J675,\"\")","v":""},{"$f":"IFERROR(VLOOKUP(D675,'Species List'!$D$51:$E$89,2,FALSE)*J675,\"\")","v":""},{"$f":"IFERROR(VLOOKUP(D675,'Species List'!$D$95:$E$102,2,FALSE)*J675,\"\")","v":""},{"$f":"IFERROR(VLOOKUP(D675,'Species List'!$I$10:$J$11,2,FALSE)*J675,\"\")","v":""},{"$f":"IFERROR(VLOOKUP(D675,'Species List'!$I$16:$J$61,2,FALSE)*J675,\"\")","v":""},{"$f":"IFERROR(VLOOKUP(D675,'Species List'!$I$66:$J$66,2,FALSE)*J675,\"\")","v":""},{"$f":"IFERROR(VLOOKUP(D675,'Species List'!$I$71:$J$82,2,FALSE)*J675,\"\")","v":""},0,null,null,null,null,null,null,{"$f":"IFERROR(INDEX('3 - Land Summary'!$B$21:$B$120,(MATCH(AD675,'3 - Land Summary'!$C$21:$C$120,0))),\"\")","v":""}]
[null,{"$f":"IFERROR(INDEX('3 - Land Summary'!$B$21:$B$120,(MATCH('4 - Species Breakdown'!$V676,'3 - Land Summary'!$C$21:$C$120,0))),\"\")","v":""},null,null,{"$f":"IF(OR(COUNTIF('Look Up Data'!$D$149:$D$203,D676),COUNTIF('Look Up Data'!$D$149:$D$203,AE676)),\"YES\",\"NO\")","v":"NO"},null,null,{"$f":"IFERROR(INDEX('3 - Land Summary'!$G$21:$G$120,(MATCH(C676,'3 - Land Summary'!$C$21:$C$120,0))),\"\")","v":""},{"$f":"IFERROR(INDEX('3 - Land Summary'!$I$21:$I$120,(MATCH(C676,'3 - Land Summary'!$C$21:$C$120,0))),\"\")","v":""},"","",null,null,null,{"$f":"IFERROR(VLOOKUP(D676,'Species List'!$D$10:$E$46,2,FALSE)*J676,\"\")","v":""},{"$f":"IFERROR(VLOOKUP(D676,'Species List'!$D$51:$E$89,2,FALSE)*J676,\"\")","v":""},{"$f":"IFERROR(VLOOKUP(D676,'Species List'!$D$95:$E$102,2,FALSE)*J676,\"\")","v":""},{"$f":"IFERROR(VLOOKUP(D676,'Species List'!$I$10:$J$11,2,FALSE)*J676,\"\")","v":""},{"$f":"IFERROR(VLOOKUP(D676,'Species List'!$I$16:$J$61,2,FALSE)*J676,\"\")","v":""},{"$f":"IFERROR(VLOOKUP(D676,'Species List'!$I$66:$J$66,2,FALSE)*J676,\"\")","v":""},{"$f":"IFERROR(VLOOKUP(D676,'Species List'!$I$71:$J$82,2,FALSE)*J676,\"\")","v":""},0,null,null,null,null,null,null,{"$f":"IFERROR(INDEX('3 - Land Summary'!$B$21:$B$120,(MATCH(AD676,'3 - Land Summary'!$C$21:$C$120,0))),\"\")","v":""}]
[null,{"$f":"IFERROR(INDEX('3 - Land Summary'!$B$21:$B$120,(MATCH('4 - Species Breakdown'!$V677,'3 - Land Summary'!$C$21:$C$120,0))),\"\")","v":""},null,null,{"$f":"IF(OR(COUNTIF('Look Up Data'!$D$149:$D$203,D677),COUNTIF('Look Up Data'!$D$149:$D$203,AE677)),\"YES\",\"NO\")","v":"NO"},null,null,{"$f":"IFERROR(INDEX('3 - Land Summary'!$G$21:$G$120,(MATCH(C677,'3 - Land Summary'!$C$21:$C$120,0))),\"\")","v":""},{"$f":"IFERROR(INDEX('3 - Land Summary'!$I$21:$I$120,(MATCH(C677,'3 - Land Summary'!$C$21:$C$120,0))),\"\")","v":""},"","",null,null,null,{"$f":"IFERROR(VLOOKUP(D677,'Species List'!$D$10:$E$46,2,FALSE)*J677,\"\")","v":""},{"$f":"IFERROR(VLOOKUP(D677,'Species List'!$D$51:$E$89,2,FALSE)*J677,\"\")","v":""},{"$f":"IFERROR(VLOOKUP(D677,'Species List'!$D$95:$E$102,2,FALSE)*J677,\"\")","v":""},{"$f":"IFERROR(VLOOKUP(D677,'Species List'!$I$10:$J$11,2,FALSE)*J677,\"\")","v":""},{"$f":"IFERROR(VLOOKUP(D677,'Species List'!$I$16:$J$61,2,FALSE)*J677,\"\")","v":""},{"$f":"IFERROR(VLOOKUP(D677,'Species List'!$I$66:$J$66,2,FALSE)*J677,\"\")","v":""},{"$f":"IFERROR(VLOOKUP(D677,'Species List'!$I$71:$J$82,2,FALSE)*J677,\"\")","v":""},0,null,null,null,null,null,null,{"$f":"IFERROR(INDEX('3 - Land Summary'!$B$21:$B$120,(MATCH(AD677,'3 - Land Summary'!$C$21:$C$120,0))),\"\")","v":""}]
[null,{"$f":"IFERROR(INDEX('3 - Land Summary'!$B$21:$B$120,(MATCH('4 - Species Breakdown'!$V678,'3 - Land Summary'!$C$21:$C$120,0))),\"\")","v":""},null,null,{"$f":"IF(OR(COUNTIF('Look Up Data'!$D$149:$D$203,D678),COUNTIF('Look Up Data'!$D$149:$D$203,AE678)),\"YES\",\"NO\")","v":"NO"},null,null,{"$f":"IFERROR(INDEX('3 - Land Summary'!$G$21:$G$120,(MATCH(C678,'3 - Land Summary'!$C$21:$C$120,0))),\"\")","v":""},{"$f":"IFERROR(INDEX('3 - Land Summary'!$I$21:$I$120,(MATCH(C678,'3 - Land Summary'!$C$21:$C$120,0))),\"\")","v":""},"","",null,null,null,{"$f":"IFERROR(VLOOKUP(D678,'Species List'!$D$10:$E$46,2,FALSE)*J678,\"\")","v":""},{"$f":"IFERROR(VLOOKUP(D678,'Species List'!$D$51:$E$89,2,FALSE)*J678,\"\")","v":""},{"$f":"IFERROR(VLOOKUP(D678,'Species List'!$D$95:$E$102,2,FALSE)*J678,\"\")","v":""},{"$f":"IFERROR(VLOOKUP(D678,'Species List'!$I$10:$J$11,2,FALSE)*J678,\"\")","v":""},{"$f":"IFERROR(VLOOKUP(D678,'Species List'!$I$16:$J$61,2,FALSE)*J678,\"\")","v":""},{"$f":"IFERROR(VLOOKUP(D678,'Species List'!$I$66:$J$66,2,FALSE)*J678,\"\")","v":""},{"$f":"IFERROR(VLOOKUP(D678,'Species List'!$I$71:$J$82,2,FALSE)*J678,\"\")","v":""},0,null,null,null,null,null,null,{"$f":"IFERROR(INDEX('3 - Land Summary'!$B$21:$B$120,(MATCH(AD678,'3 - Land Summary'!$C$21:$C$120,0))),\"\")","v":""}]
[null,{"$f":"IFERROR(INDEX('3 - Land Summary'!$B$21:$B$120,(MATCH('4 - Species Breakdown'!$V679,'3 - Land Summary'!$C$21:$C$120,0))),\"\")","v":""},null,null,{"$f":"IF(OR(COUNTIF('Look Up Data'!$D$149:$D$203,D679),COUNTIF('Look Up Data'!$D$149:$D$203,AE679)),\"YES\",\"NO\")","v":"NO"},null,null,{"$f":"IFERROR(INDEX('3 - Land Summary'!$G$21:$G$120,(MATCH(C679,'3 - Land Summary'!$C$21:$C$120,0))),\"\")","v":""},{"$f":"IFERROR(INDEX('3 - Land Summary'!$I$21:$I$120,(MATCH(C679,'3 - Land Summary'!$C$21:$C$120,0))),\"\")","v":""},"","",null,null,null,{"$f":"IFERROR(VLOOKUP(D679,'Species List'!$D$10:$E$46,2,FALSE)*J679,\"\")","v":""},{"$f":"IFERROR(VLOOKUP(D679,'Species List'!$D$51:$E$89,2,FALSE)*J679,\"\")","v":""},{"$f":"IFERROR(VLOOKUP(D679,'Species List'!$D$95:$E$102,2,FALSE)*J679,\"\")","v":""},{"$f":"IFERROR(VLOOKUP(D679,'Species List'!$I$10:$J$11,2,FALSE)*J679,\"\")","v":""},{"$f":"IFERROR(VLOOKUP(D679,'Species List'!$I$16:$J$61,2,FALSE)*J679,\"\")","v":""},{"$f":"IFERROR(VLOOKUP(D679,'Species List'!$I$66:$J$66,2,FALSE)*J679,\"\")","v":""},{"$f":"IFERROR(VLOOKUP(D679,'Species List'!$I$71:$J$82,2,FALSE)*J679,\"\")","v":""},0,null,null,null,null,null,null,{"$f":"IFERROR(INDEX('3 - Land Summary'!$B$21:$B$120,(MATCH(AD679,'3 - Land Summary'!$C$21:$C$120,0))),\"\")","v":""}]
[null,{"$f":"IFERROR(INDEX('3 - Land Summary'!$B$21:$B$120,(MATCH('4 - Species Breakdown'!$V680,'3 - Land Summary'!$C$21:$C$120,0))),\"\")","v":""},null,null,{"$f":"IF(OR(COUNTIF('Look Up Data'!$D$149:$D$203,D680),COUNTIF('Look Up Data'!$D$149:$D$203,AE680)),\"YES\",\"NO\")","v":"NO"},null,null,{"$f":"IFERROR(INDEX('3 - Land Summary'!$G$21:$G$120,(MATCH(C680,'3 - Land Summary'!$C$21:$C$120,0))),\"\")","v":""},{"$f":"IFERROR(INDEX('3 - Land Summary'!$I$21:$I$120,(MATCH(C680,'3 - Land Summary'!$C$21:$C$120,0))),\"\")","v":""},"","",null,null,null,{"$f":"IFERROR(VLOOKUP(D680,'Species List'!$D$10:$E$46,2,FALSE)*J680,\"\")","v":""},{"$f":"IFERROR(VLOOKUP(D680,'Species List'!$D$51:$E$89,2,FALSE)*J680,\"\")","v":""},{"$f":"IFERROR(VLOOKUP(D680,'Species List'!$D$95:$E$102,2,FALSE)*J680,\"\")","v":""},{"$f":"IFERROR(VLOOKUP(D680,'Species List'!$I$10:$J$11,2,FALSE)*J680,\"\")","v":""},{"$f":"IFERROR(VLOOKUP(D680,'Species List'!$I$16:$J$61,2,FALSE)*J680,\"\")","v":""},{"$f":"IFERROR(VLOOKUP(D680,'Species List'!$I$66:$J$66,2,FALSE)*J680,\"\")","v":""},{"$f":"IFERROR(VLOOKUP(D680,'Species List'!$I$71:$J$82,2,FALSE)*J680,\"\")","v":""},0,null,null,null,null,null,null,{"$f":"IFERROR(INDEX('3 - Land Summary'!$B$21:$B$120,(MATCH(AD680,'3 - Land Summary'!$C$21:$C$120,0))),\"\")","v":""}]
[null,{"$f":"IFERROR(INDEX('3 - Land Summary'!$B$21:$B$120,(MATCH('4 - Species Breakdown'!$V681,'3 - Land Summary'!$C$21:$C$120,0))),\"\")","v":""},null,null,{"$f":"IF(OR(COUNTIF('Look Up Data'!$D$149:$D$203,D681),COUNTIF('Look Up Data'!$D$149:$D$203,AE681)),\"YES\",\"NO\")","v":"NO"},null,null,{"$f":"IFERROR(INDEX('3 - Land Summary'!$G$21:$G$120,(MATCH(C681,'3 - Land Summary'!$C$21:$C$120,0))),\"\")","v":""},{"$f":"IFERROR(INDEX('3 - Land Summary'!$I$21:$I$120,(MATCH(C681,'3 - Land Summary'!$C$21:$C$120,0))),\"\")","v":""},"","",null,null,null,{"$f":"IFERROR(VLOOKUP(D681,'Species List'!$D$10:$E$46,2,FALSE)*J681,\"\")","v":""},{"$f":"IFERROR(VLOOKUP(D681,'Species List'!$D$51:$E$89,2,FALSE)*J681,\"\")","v":""},{"$f":"IFERROR(VLOOKUP(D681,'Species List'!$D$95:$E$102,2,FALSE)*J681,\"\")","v":""},{"$f":"IFERROR(VLOOKUP(D681,'Species List'!$I$10:$J$11,2,FALSE)*J681,\"\")","v":""},{"$f":"IFERROR(VLOOKUP(D681,'Species List'!$I$16:$J$61,2,FALSE)*J681,\"\")","v":""},{"$f":"IFERROR(VLOOKUP(D681,'Species List'!$I$66:$J$66,2,FALSE)*J681,\"\")","v":""},{"$f":"IFERROR(VLOOKUP(D681,'Species List'!$I$71:$J$82,2,FALSE)*J681,\"\")","v":""},0,null,null,null,null,null,null,{"$f":"IFERROR(INDEX('3 - Land Summary'!$B$21:$B$120,(MATCH(AD681,'3 - Land Summary'!$C$21:$C$120,0))),\"\")","v":""}]
[null,{"$f":"IFERROR(INDEX('3 - Land Summary'!$B$21:$B$120,(MATCH('4 - Species Breakdown'!$V682,'3 - Land Summary'!$C$21:$C$120,0))),\"\")","v":""},null,null,{"$f":"IF(OR(COUNTIF('Look Up Data'!$D$149:$D$203,D682),COUNTIF('Look Up Data'!$D$149:$D$203,AE682)),\"YES\",\"NO\")","v":"NO"},null,null,{"$f":"IFERROR(INDEX('3 - Land Summary'!$G$21:$G$120,(MATCH(C682,'3 - Land Summary'!$C$21:$C$120,0))),\"\")","v":""},{"$f":"IFERROR(INDEX('3 - Land Summary'!$I$21:$I$120,(MATCH(C682,'3 - Land Summary'!$C$21:$C$120,0))),\"\")","v":""},"","",null,null,null,{"$f":"IFERROR(VLOOKUP(D682,'Species List'!$D$10:$E$46,2,FALSE)*J682,\"\")","v":""},{"$f":"IFERROR(VLOOKUP(D682,'Species List'!$D$51:$E$89,2,FALSE)*J682,\"\")","v":""},{"$f":"IFERROR(VLOOKUP(D682,'Species List'!$D$95:$E$102,2,FALSE)*J682,\"\")","v":""},{"$f":"IFERROR(VLOOKUP(D682,'Species List'!$I$10:$J$11,2,FALSE)*J682,\"\")","v":""},{"$f":"IFERROR(VLOOKUP(D682,'Species List'!$I$16:$J$61,2,FALSE)*J682,\"\")","v":""},{"$f":"IFERROR(VLOOKUP(D682,'Species List'!$I$66:$J$66,2,FALSE)*J682,\"\")","v":""},{"$f":"IFERROR(VLOOKUP(D682,'Species List'!$I$71:$J$82,2,FALSE)*J682,\"\")","v":""},0,null,null,null,null,null,null,{"$f":"IFERROR(INDEX('3 - Land Summary'!$B$21:$B$120,(MATCH(AD682,'3 - Land Summary'!$C$21:$C$120,0))),\"\")","v":""}]
[null,{"$f":"IFERROR(INDEX('3 - Land Summary'!$B$21:$B$120,(MATCH('4 - Species Breakdown'!$V683,'3 - Land Summary'!$C$21:$C$120,0))),\"\")","v":""},null,null,{"$f":"IF(OR(COUNTIF('Look Up Data'!$D$149:$D$203,D683),COUNTIF('Look Up Data'!$D$149:$D$203,AE683)),\"YES\",\"NO\")","v":"NO"},null,null,{"$f":"IFERROR(INDEX('3 - Land Summary'!$G$21:$G$120,(MATCH(C683,'3 - Land Summary'!$C$21:$C$120,0))),\"\")","v":""},{"$f":"IFERROR(INDEX('3 - Land Summary'!$I$21:$I$120,(MATCH(C683,'3 - Land Summary'!$C$21:$C$120,0))),\"\")","v":""},"","",null,null,null,{"$f":"IFERROR(VLOOKUP(D683,'Species List'!$D$10:$E$46,2,FALSE)*J683,\"\")","v":""},{"$f":"IFERROR(VLOOKUP(D683,'Species List'!$D$51:$E$89,2,FALSE)*J683,\"\")","v":""},{"$f":"IFERROR(VLOOKUP(D683,'Species List'!$D$95:$E$102,2,FALSE)*J683,\"\")","v":""},{"$f":"IFERROR(VLOOKUP(D683,'Species List'!$I$10:$J$11,2,FALSE)*J683,\"\")","v":""},{"$f":"IFERROR(VLOOKUP(D683,'Species List'!$I$16:$J$61,2,FALSE)*J683,\"\")","v":""},{"$f":"IFERROR(VLOOKUP(D683,'Species List'!$I$66:$J$66,2,FALSE)*J683,\"\")","v":""},{"$f":"IFERROR(VLOOKUP(D683,'Species List'!$I$71:$J$82,2,FALSE)*J683,\"\")","v":""},0,null,null,null,null,null,null,{"$f":"IFERROR(INDEX('3 - Land Summary'!$B$21:$B$120,(MATCH(AD683,'3 - Land Summary'!$C$21:$C$120,0))),\"\")","v":""}]
[null,{"$f":"IFERROR(INDEX('3 - Land Summary'!$B$21:$B$120,(MATCH('4 - Species Breakdown'!$V684,'3 - Land Summary'!$C$21:$C$120,0))),\"\")","v":""},null,null,{"$f":"IF(OR(COUNTIF('Look Up Data'!$D$149:$D$203,D684),COUNTIF('Look Up Data'!$D$149:$D$203,AE684)),\"YES\",\"NO\")","v":"NO"},null,null,{"$f":"IFERROR(INDEX('3 - Land Summary'!$G$21:$G$120,(MATCH(C684,'3 - Land Summary'!$C$21:$C$120,0))),\"\")","v":""},{"$f":"IFERROR(INDEX('3 - Land Summary'!$I$21:$I$120,(MATCH(C684,'3 - Land Summary'!$C$21:$C$120,0))),\"\")","v":""},"","",null,null,null,{"$f":"IFERROR(VLOOKUP(D684,'Species List'!$D$10:$E$46,2,FALSE)*J684,\"\")","v":""},{"$f":"IFERROR(VLOOKUP(D684,'Species List'!$D$51:$E$89,2,FALSE)*J684,\"\")","v":""},{"$f":"IFERROR(VLOOKUP(D684,'Species List'!$D$95:$E$102,2,FALSE)*J684,\"\")","v":""},{"$f":"IFERROR(VLOOKUP(D684,'Species List'!$I$10:$J$11,2,FALSE)*J684,\"\")","v":""},{"$f":"IFERROR(VLOOKUP(D684,'Species List'!$I$16:$J$61,2,FALSE)*J684,\"\")","v":""},{"$f":"IFERROR(VLOOKUP(D684,'Species List'!$I$66:$J$66,2,FALSE)*J684,\"\")","v":""},{"$f":"IFERROR(VLOOKUP(D684,'Species List'!$I$71:$J$82,2,FALSE)*J684,\"\")","v":""},0,null,null,null,null,null,null,{"$f":"IFERROR(INDEX('3 - Land Summary'!$B$21:$B$120,(MATCH(AD684,'3 - Land Summary'!$C$21:$C$120,0))),\"\")","v":""}]
[null,{"$f":"IFERROR(INDEX('3 - Land Summary'!$B$21:$B$120,(MATCH('4 - Species Breakdown'!$V685,'3 - Land Summary'!$C$21:$C$120,0))),\"\")","v":""},null,null,{"$f":"IF(OR(COUNTIF('Look Up Data'!$D$149:$D$203,D685),COUNTIF('Look Up Data'!$D$149:$D$203,AE685)),\"YES\",\"NO\")","v":"NO"},null,null,{"$f":"IFERROR(INDEX('3 - Land Summary'!$G$21:$G$120,(MATCH(C685,'3 - Land Summary'!$C$21:$C$120,0))),\"\")","v":""},{"$f":"IFERROR(INDEX('3 - Land Summary'!$I$21:$I$120,(MATCH(C685,'3 - Land Summary'!$C$21:$C$120,0))),\"\")","v":""},"","",null,null,null,{"$f":"IFERROR(VLOOKUP(D685,'Species List'!$D$10:$E$46,2,FALSE)*J685,\"\")","v":""},{"$f":"IFERROR(VLOOKUP(D685,'Species List'!$D$51:$E$89,2,FALSE)*J685,\"\")","v":""},{"$f":"IFERROR(VLOOKUP(D685,'Species List'!$D$95:$E$102,2,FALSE)*J685,\"\")","v":""},{"$f":"IFERROR(VLOOKUP(D685,'Species List'!$I$10:$J$11,2,FALSE)*J685,\"\")","v":""},{"$f":"IFERROR(VLOOKUP(D685,'Species List'!$I$16:$J$61,2,FALSE)*J685,\"\")","v":""},{"$f":"IFERROR(VLOOKUP(D685,'Species List'!$I$66:$J$66,2,FALSE)*J685,\"\")","v":""},{"$f":"IFERROR(VLOOKUP(D685,'Species List'!$I$71:$J$82,2,FALSE)*J685,\"\")","v":""},0,null,null,null,null,null,null,{"$f":"IFERROR(INDEX('3 - Land Summary'!$B$21:$B$120,(MATCH(AD685,'3 - Land Summary'!$C$21:$C$120,0))),\"\")","v":""}]
[null,{"$f":"IFERROR(INDEX('3 - Land Summary'!$B$21:$B$120,(MATCH('4 - Species Breakdown'!$V686,'3 - Land Summary'!$C$21:$C$120,0))),\"\")","v":""},null,null,{"$f":"IF(OR(COUNTIF('Look Up Data'!$D$149:$D$203,D686),COUNTIF('Look Up Data'!$D$149:$D$203,AE686)),\"YES\",\"NO\")","v":"NO"},null,null,{"$f":"IFERROR(INDEX('3 - Land Summary'!$G$21:$G$120,(MATCH(C686,'3 - Land Summary'!$C$21:$C$120,0))),\"\")","v":""},{"$f":"IFERROR(INDEX('3 - Land Summary'!$I$21:$I$120,(MATCH(C686,'3 - Land Summary'!$C$21:$C$120,0))),\"\")","v":""},"","",null,null,null,{"$f":"IFERROR(VLOOKUP(D686,'Species List'!$D$10:$E$46,2,FALSE)*J686,\"\")","v":""},{"$f":"IFERROR(VLOOKUP(D686,'Species List'!$D$51:$E$89,2,FALSE)*J686,\"\")","v":""},{"$f":"IFERROR(VLOOKUP(D686,'Species List'!$D$95:$E$102,2,FALSE)*J686,\"\")","v":""},{"$f":"IFERROR(VLOOKUP(D686,'Species List'!$I$10:$J$11,2,FALSE)*J686,\"\")","v":""},{"$f":"IFERROR(VLOOKUP(D686,'Species List'!$I$16:$J$61,2,FALSE)*J686,\"\")","v":""},{"$f":"IFERROR(VLOOKUP(D686,'Species List'!$I$66:$J$66,2,FALSE)*J686,\"\")","v":""},{"$f":"IFERROR(VLOOKUP(D686,'Species List'!$I$71:$J$82,2,FALSE)*J686,\"\")","v":""},0,null,null,null,null,null,null,{"$f":"IFERROR(INDEX('3 - Land Summary'!$B$21:$B$120,(MATCH(AD686,'3 - Land Summary'!$C$21:$C$120,0))),\"\")","v":""}]
[null,{"$f":"IFERROR(INDEX('3 - Land Summary'!$B$21:$B$120,(MATCH('4 - Species Breakdown'!$V687,'3 - Land Summary'!$C$21:$C$120,0))),\"\")","v":""},null,null,{"$f":"IF(OR(COUNTIF('Look Up Data'!$D$149:$D$203,D687),COUNTIF('Look Up Data'!$D$149:$D$203,AE687)),\"YES\",\"NO\")","v":"NO"},null,null,{"$f":"IFERROR(INDEX('3 - Land Summary'!$G$21:$G$120,(MATCH(C687,'3 - Land Summary'!$C$21:$C$120,0))),\"\")","v":""},{"$f":"IFERROR(INDEX('3 - Land Summary'!$I$21:$I$120,(MATCH(C687,'3 - Land Summary'!$C$21:$C$120,0))),\"\")","v":""},"","",null,null,null,{"$f":"IFERROR(VLOOKUP(D687,'Species List'!$D$10:$E$46,2,FALSE)*J687,\"\")","v":""},{"$f":"IFERROR(VLOOKUP(D687,'Species List'!$D$51:$E$89,2,FALSE)*J687,\"\")","v":""},{"$f":"IFERROR(VLOOKUP(D687,'Species List'!$D$95:$E$102,2,FALSE)*J687,\"\")","v":""},{"$f":"IFERROR(VLOOKUP(D687,'Species List'!$I$10:$J$11,2,FALSE)*J687,\"\")","v":""},{"$f":"IFERROR(VLOOKUP(D687,'Species List'!$I$16:$J$61,2,FALSE)*J687,\"\")","v":""},{"$f":"IFERROR(VLOOKUP(D687,'Species List'!$I$66:$J$66,2,FALSE)*J687,\"\")","v":""},{"$f":"IFERROR(VLOOKUP(D687,'Species List'!$I$71:$J$82,2,FALSE)*J687,\"\")","v":""},0,null,null,null,null,null,null,{"$f":"IFERROR(INDEX('3 - Land Summary'!$B$21:$B$120,(MATCH(AD687,'3 - Land Summary'!$C$21:$C$120,0))),\"\")","v":""}]
[null,{"$f":"IFERROR(INDEX('3 - Land Summary'!$B$21:$B$120,(MATCH('4 - Species Breakdown'!$V688,'3 - Land Summary'!$C$21:$C$120,0))),\"\")","v":""},null,null,{"$f":"IF(OR(COUNTIF('Look Up Data'!$D$149:$D$203,D688),COUNTIF('Look Up Data'!$D$149:$D$203,AE688)),\"YES\",\"NO\")","v":"NO"},null,null,{"$f":"IFERROR(INDEX('3 - Land Summary'!$G$21:$G$120,(MATCH(C688,'3 - Land Summary'!$C$21:$C$120,0))),\"\")","v":""},{"$f":"IFERROR(INDEX('3 - Land Summary'!$I$21:$I$120,(MATCH(C688,'3 - Land Summary'!$C$21:$C$120,0))),\"\")","v":""},"","",null,null,null,{"$f":"IFERROR(VLOOKUP(D688,'Species List'!$D$10:$E$46,2,FALSE)*J688,\"\")","v":""},{"$f":"IFERROR(VLOOKUP(D688,'Species List'!$D$51:$E$89,2,FALSE)*J688,\"\")","v":""},{"$f":"IFERROR(VLOOKUP(D688,'Species List'!$D$95:$E$102,2,FALSE)*J688,\"\")","v":""},{"$f":"IFERROR(VLOOKUP(D688,'Species List'!$I$10:$J$11,2,FALSE)*J688,\"\")","v":""},{"$f":"IFERROR(VLOOKUP(D688,'Species List'!$I$16:$J$61,2,FALSE)*J688,\"\")","v":""},{"$f":"IFERROR(VLOOKUP(D688,'Species List'!$I$66:$J$66,2,FALSE)*J688,\"\")","v":""},{"$f":"IFERROR(VLOOKUP(D688,'Species List'!$I$71:$J$82,2,FALSE)*J688,\"\")","v":""},0,null,null,null,null,null,null,{"$f":"IFERROR(INDEX('3 - Land Summary'!$B$21:$B$120,(MATCH(AD688,'3 - Land Summary'!$C$21:$C$120,0))),\"\")","v":""}]
[null,{"$f":"IFERROR(INDEX('3 - Land Summary'!$B$21:$B$120,(MATCH('4 - Species Breakdown'!$V689,'3 - Land Summary'!$C$21:$C$120,0))),\"\")","v":""},null,null,{"$f":"IF(OR(COUNTIF('Look Up Data'!$D$149:$D$203,D689),COUNTIF('Look Up Data'!$D$149:$D$203,AE689)),\"YES\",\"NO\")","v":"NO"},null,null,{"$f":"IFERROR(INDEX('3 - Land Summary'!$G$21:$G$120,(MATCH(C689,'3 - Land Summary'!$C$21:$C$120,0))),\"\")","v":""},{"$f":"IFERROR(INDEX('3 - Land Summary'!$I$21:$I$120,(MATCH(C689,'3 - Land Summary'!$C$21:$C$120,0))),\"\")","v":""},"","",null,null,null,{"$f":"IFERROR(VLOOKUP(D689,'Species List'!$D$10:$E$46,2,FALSE)*J689,\"\")","v":""},{"$f":"IFERROR(VLOOKUP(D689,'Species List'!$D$51:$E$89,2,FALSE)*J689,\"\")","v":""},{"$f":"IFERROR(VLOOKUP(D689,'Species List'!$D$95:$E$102,2,FALSE)*J689,\"\")","v":""},{"$f":"IFERROR(VLOOKUP(D689,'Species List'!$I$10:$J$11,2,FALSE)*J689,\"\")","v":""},{"$f":"IFERROR(VLOOKUP(D689,'Species List'!$I$16:$J$61,2,FALSE)*J689,\"\")","v":""},{"$f":"IFERROR(VLOOKUP(D689,'Species List'!$I$66:$J$66,2,FALSE)*J689,\"\")","v":""},{"$f":"IFERROR(VLOOKUP(D689,'Species List'!$I$71:$J$82,2,FALSE)*J689,\"\")","v":""},0,null,null,null,null,null,null,{"$f":"IFERROR(INDEX('3 - Land Summary'!$B$21:$B$120,(MATCH(AD689,'3 - Land Summary'!$C$21:$C$120,0))),\"\")","v":""}]
[null,{"$f":"IFERROR(INDEX('3 - Land Summary'!$B$21:$B$120,(MATCH('4 - Species Breakdown'!$V690,'3 - Land Summary'!$C$21:$C$120,0))),\"\")","v":""},null,null,{"$f":"IF(OR(COUNTIF('Look Up Data'!$D$149:$D$203,D690),COUNTIF('Look Up Data'!$D$149:$D$203,AE690)),\"YES\",\"NO\")","v":"NO"},null,null,{"$f":"IFERROR(INDEX('3 - Land Summary'!$G$21:$G$120,(MATCH(C690,'3 - Land Summary'!$C$21:$C$120,0))),\"\")","v":""},{"$f":"IFERROR(INDEX('3 - Land Summary'!$I$21:$I$120,(MATCH(C690,'3 - Land Summary'!$C$21:$C$120,0))),\"\")","v":""},"","",null,null,null,{"$f":"IFERROR(VLOOKUP(D690,'Species List'!$D$10:$E$46,2,FALSE)*J690,\"\")","v":""},{"$f":"IFERROR(VLOOKUP(D690,'Species List'!$D$51:$E$89,2,FALSE)*J690,\"\")","v":""},{"$f":"IFERROR(VLOOKUP(D690,'Species List'!$D$95:$E$102,2,FALSE)*J690,\"\")","v":""},{"$f":"IFERROR(VLOOKUP(D690,'Species List'!$I$10:$J$11,2,FALSE)*J690,\"\")","v":""},{"$f":"IFERROR(VLOOKUP(D690,'Species List'!$I$16:$J$61,2,FALSE)*J690,\"\")","v":""},{"$f":"IFERROR(VLOOKUP(D690,'Species List'!$I$66:$J$66,2,FALSE)*J690,\"\")","v":""},{"$f":"IFERROR(VLOOKUP(D690,'Species List'!$I$71:$J$82,2,FALSE)*J690,\"\")","v":""},0,null,null,null,null,null,null,{"$f":"IFERROR(INDEX('3 - Land Summary'!$B$21:$B$120,(MATCH(AD690,'3 - Land Summary'!$C$21:$C$120,0))),\"\")","v":""}]
[null,{"$f":"IFERROR(INDEX('3 - Land Summary'!$B$21:$B$120,(MATCH('4 - Species Breakdown'!$V691,'3 - Land Summary'!$C$21:$C$120,0))),\"\")","v":""},null,null,{"$f":"IF(OR(COUNTIF('Look Up Data'!$D$149:$D$203,D691),COUNTIF('Look Up Data'!$D$149:$D$203,AE691)),\"YES\",\"NO\")","v":"NO"},null,null,{"$f":"IFERROR(INDEX('3 - Land Summary'!$G$21:$G$120,(MATCH(C691,'3 - Land Summary'!$C$21:$C$120,0))),\"\")","v":""},{"$f":"IFERROR(INDEX('3 - Land Summary'!$I$21:$I$120,(MATCH(C691,'3 - Land Summary'!$C$21:$C$120,0))),\"\")","v":""},"","",null,null,null,{"$f":"IFERROR(VLOOKUP(D691,'Species List'!$D$10:$E$46,2,FALSE)*J691,\"\")","v":""},{"$f":"IFERROR(VLOOKUP(D691,'Species List'!$D$51:$E$89,2,FALSE)*J691,\"\")","v":""},{"$f":"IFERROR(VLOOKUP(D691,'Species List'!$D$95:$E$102,2,FALSE)*J691,\"\")","v":""},{"$f":"IFERROR(VLOOKUP(D691,'Species List'!$I$10:$J$11,2,FALSE)*J691,\"\")","v":""},{"$f":"IFERROR(VLOOKUP(D691,'Species List'!$I$16:$J$61,2,FALSE)*J691,\"\")","v":""},{"$f":"IFERROR(VLOOKUP(D691,'Species List'!$I$66:$J$66,2,FALSE)*J691,\"\")","v":""},{"$f":"IFERROR(VLOOKUP(D691,'Species List'!$I$71:$J$82,2,FALSE)*J691,\"\")","v":""},0,null,null,null,null,null,null,{"$f":"IFERROR(INDEX('3 - Land Summary'!$B$21:$B$120,(MATCH(AD691,'3 - Land Summary'!$C$21:$C$120,0))),\"\")","v":""}]
[null,{"$f":"IFERROR(INDEX('3 - Land Summary'!$B$21:$B$120,(MATCH('4 - Species Breakdown'!$V692,'3 - Land Summary'!$C$21:$C$120,0))),\"\")","v":""},null,null,{"$f":"IF(OR(COUNTIF('Look Up Data'!$D$149:$D$203,D692),COUNTIF('Look Up Data'!$D$149:$D$203,AE692)),\"YES\",\"NO\")","v":"NO"},null,null,{"$f":"IFERROR(INDEX('3 - Land Summary'!$G$21:$G$120,(MATCH(C692,'3 - Land Summary'!$C$21:$C$120,0))),\"\")","v":""},{"$f":"IFERROR(INDEX('3 - Land Summary'!$I$21:$I$120,(MATCH(C692,'3 - Land Summary'!$C$21:$C$120,0))),\"\")","v":""},"","",null,null,null,{"$f":"IFERROR(VLOOKUP(D692,'Species List'!$D$10:$E$46,2,FALSE)*J692,\"\")","v":""},{"$f":"IFERROR(VLOOKUP(D692,'Species List'!$D$51:$E$89,2,FALSE)*J692,\"\")","v":""},{"$f":"IFERROR(VLOOKUP(D692,'Species List'!$D$95:$E$102,2,FALSE)*J692,\"\")","v":""},{"$f":"IFERROR(VLOOKUP(D692,'Species List'!$I$10:$J$11,2,FALSE)*J692,\"\")","v":""},{"$f":"IFERROR(VLOOKUP(D692,'Species List'!$I$16:$J$61,2,FALSE)*J692,\"\")","v":""},{"$f":"IFERROR(VLOOKUP(D692,'Species List'!$I$66:$J$66,2,FALSE)*J692,\"\")","v":""},{"$f":"IFERROR(VLOOKUP(D692,'Species List'!$I$71:$J$82,2,FALSE)*J692,\"\")","v":""},0,null,null,null,null,null,null,{"$f":"IFERROR(INDEX('3 - Land Summary'!$B$21:$B$120,(MATCH(AD692,'3 - Land Summary'!$C$21:$C$120,0))),\"\")","v":""}]
[null,{"$f":"IFERROR(INDEX('3 - Land Summary'!$B$21:$B$120,(MATCH('4 - Species Breakdown'!$V693,'3 - Land Summary'!$C$21:$C$120,0))),\"\")","v":""},null,null,{"$f":"IF(OR(COUNTIF('Look Up Data'!$D$149:$D$203,D693),COUNTIF('Look Up Data'!$D$149:$D$203,AE693)),\"YES\",\"NO\")","v":"NO"},null,null,{"$f":"IFERROR(INDEX('3 - Land Summary'!$G$21:$G$120,(MATCH(C693,'3 - Land Summary'!$C$21:$C$120,0))),\"\")","v":""},{"$f":"IFERROR(INDEX('3 - Land Summary'!$I$21:$I$120,(MATCH(C693,'3 - Land Summary'!$C$21:$C$120,0))),\"\")","v":""},"","",null,null,null,{"$f":"IFERROR(VLOOKUP(D693,'Species List'!$D$10:$E$46,2,FALSE)*J693,\"\")","v":""},{"$f":"IFERROR(VLOOKUP(D693,'Species List'!$D$51:$E$89,2,FALSE)*J693,\"\")","v":""},{"$f":"IFERROR(VLOOKUP(D693,'Species List'!$D$95:$E$102,2,FALSE)*J693,\"\")","v":""},{"$f":"IFERROR(VLOOKUP(D693,'Species List'!$I$10:$J$11,2,FALSE)*J693,\"\")","v":""},{"$f":"IFERROR(VLOOKUP(D693,'Species List'!$I$16:$J$61,2,FALSE)*J693,\"\")","v":""},{"$f":"IFERROR(VLOOKUP(D693,'Species List'!$I$66:$J$66,2,FALSE)*J693,\"\")","v":""},{"$f":"IFERROR(VLOOKUP(D693,'Species List'!$I$71:$J$82,2,FALSE)*J693,\"\")","v":""},0,null,null,null,null,null,null,{"$f":"IFERROR(INDEX('3 - Land Summary'!$B$21:$B$120,(MATCH(AD693,'3 - Land Summary'!$C$21:$C$120,0))),\"\")","v":""}]
[null,{"$f":"IFERROR(INDEX('3 - Land Summary'!$B$21:$B$120,(MATCH('4 - Species Breakdown'!$V694,'3 - Land Summary'!$C$21:$C$120,0))),\"\")","v":""},null,null,{"$f":"IF(OR(COUNTIF('Look Up Data'!$D$149:$D$203,D694),COUNTIF('Look Up Data'!$D$149:$D$203,AE694)),\"YES\",\"NO\")","v":"NO"},null,null,{"$f":"IFERROR(INDEX('3 - Land Summary'!$G$21:$G$120,(MATCH(C694,'3 - Land Summary'!$C$21:$C$120,0))),\"\")","v":""},{"$f":"IFERROR(INDEX('3 - Land Summary'!$I$21:$I$120,(MATCH(C694,'3 - Land Summary'!$C$21:$C$120,0))),\"\")","v":""},"","",null,null,null,{"$f":"IFERROR(VLOOKUP(D694,'Species List'!$D$10:$E$46,2,FALSE)*J694,\"\")","v":""},{"$f":"IFERROR(VLOOKUP(D694,'Species List'!$D$51:$E$89,2,FALSE)*J694,\"\")","v":""},{"$f":"IFERROR(VLOOKUP(D694,'Species List'!$D$95:$E$102,2,FALSE)*J694,\"\")","v":""},{"$f":"IFERROR(VLOOKUP(D694,'Species List'!$I$10:$J$11,2,FALSE)*J694,\"\")","v":""},{"$f":"IFERROR(VLOOKUP(D694,'Species List'!$I$16:$J$61,2,FALSE)*J694,\"\")","v":""},{"$f":"IFERROR(VLOOKUP(D694,'Species List'!$I$66:$J$66,2,FALSE)*J694,\"\")","v":""},{"$f":"IFERROR(VLOOKUP(D694,'Species List'!$I$71:$J$82,2,FALSE)*J694,\"\")","v":""},0,null,null,null,null,null,null,{"$f":"IFERROR(INDEX('3 - Land Summary'!$B$21:$B$120,(MATCH(AD694,'3 - Land Summary'!$C$21:$C$120,0))),\"\")","v":""}]
[null,{"$f":"IFERROR(INDEX('3 - Land Summary'!$B$21:$B$120,(MATCH('4 - Species Breakdown'!$V695,'3 - Land Summary'!$C$21:$C$120,0))),\"\")","v":""},null,null,{"$f":"IF(OR(COUNTIF('Look Up Data'!$D$149:$D$203,D695),COUNTIF('Look Up Data'!$D$149:$D$203,AE695)),\"YES\",\"NO\")","v":"NO"},null,null,{"$f":"IFERROR(INDEX('3 - Land Summary'!$G$21:$G$120,(MATCH(C695,'3 - Land Summary'!$C$21:$C$120,0))),\"\")","v":""},{"$f":"IFERROR(INDEX('3 - Land Summary'!$I$21:$I$120,(MATCH(C695,'3 - Land Summary'!$C$21:$C$120,0))),\"\")","v":""},"","",null,null,null,{"$f":"IFERROR(VLOOKUP(D695,'Species List'!$D$10:$E$46,2,FALSE)*J695,\"\")","v":""},{"$f":"IFERROR(VLOOKUP(D695,'Species List'!$D$51:$E$89,2,FALSE)*J695,\"\")","v":""},{"$f":"IFERROR(VLOOKUP(D695,'Species List'!$D$95:$E$102,2,FALSE)*J695,\"\")","v":""},{"$f":"IFERROR(VLOOKUP(D695,'Species List'!$I$10:$J$11,2,FALSE)*J695,\"\")","v":""},{"$f":"IFERROR(VLOOKUP(D695,'Species List'!$I$16:$J$61,2,FALSE)*J695,\"\")","v":""},{"$f":"IFERROR(VLOOKUP(D695,'Species List'!$I$66:$J$66,2,FALSE)*J695,\"\")","v":""},{"$f":"IFERROR(VLOOKUP(D695,'Species List'!$I$71:$J$82,2,FALSE)*J695,\"\")","v":""},0,null,null,null,null,null,null,{"$f":"IFERROR(INDEX('3 - Land Summary'!$B$21:$B$120,(MATCH(AD695,'3 - Land Summary'!$C$21:$C$120,0))),\"\")","v":""}]
[null,{"$f":"IFERROR(INDEX('3 - Land Summary'!$B$21:$B$120,(MATCH('4 - Species Breakdown'!$V696,'3 - Land Summary'!$C$21:$C$120,0))),\"\")","v":""},null,null,{"$f":"IF(OR(COUNTIF('Look Up Data'!$D$149:$D$203,D696),COUNTIF('Look Up Data'!$D$149:$D$203,AE696)),\"YES\",\"NO\")","v":"NO"},null,null,{"$f":"IFERROR(INDEX('3 - Land Summary'!$G$21:$G$120,(MATCH(C696,'3 - Land Summary'!$C$21:$C$120,0))),\"\")","v":""},{"$f":"IFERROR(INDEX('3 - Land Summary'!$I$21:$I$120,(MATCH(C696,'3 - Land Summary'!$C$21:$C$120,0))),\"\")","v":""},"","",null,null,null,{"$f":"IFERROR(VLOOKUP(D696,'Species List'!$D$10:$E$46,2,FALSE)*J696,\"\")","v":""},{"$f":"IFERROR(VLOOKUP(D696,'Species List'!$D$51:$E$89,2,FALSE)*J696,\"\")","v":""},{"$f":"IFERROR(VLOOKUP(D696,'Species List'!$D$95:$E$102,2,FALSE)*J696,\"\")","v":""},{"$f":"IFERROR(VLOOKUP(D696,'Species List'!$I$10:$J$11,2,FALSE)*J696,\"\")","v":""},{"$f":"IFERROR(VLOOKUP(D696,'Species List'!$I$16:$J$61,2,FALSE)*J696,\"\")","v":""},{"$f":"IFERROR(VLOOKUP(D696,'Species List'!$I$66:$J$66,2,FALSE)*J696,\"\")","v":""},{"$f":"IFERROR(VLOOKUP(D696,'Species List'!$I$71:$J$82,2,FALSE)*J696,\"\")","v":""},0,null,null,null,null,null,null,{"$f":"IFERROR(INDEX('3 - Land Summary'!$B$21:$B$120,(MATCH(AD696,'3 - Land Summary'!$C$21:$C$120,0))),\"\")","v":""}]
[null,{"$f":"IFERROR(INDEX('3 - Land Summary'!$B$21:$B$120,(MATCH('4 - Species Breakdown'!$V697,'3 - Land Summary'!$C$21:$C$120,0))),\"\")","v":""},null,null,{"$f":"IF(OR(COUNTIF('Look Up Data'!$D$149:$D$203,D697),COUNTIF('Look Up Data'!$D$149:$D$203,AE697)),\"YES\",\"NO\")","v":"NO"},null,null,{"$f":"IFERROR(INDEX('3 - Land Summary'!$G$21:$G$120,(MATCH(C697,'3 - Land Summary'!$C$21:$C$120,0))),\"\")","v":""},{"$f":"IFERROR(INDEX('3 - Land Summary'!$I$21:$I$120,(MATCH(C697,'3 - Land Summary'!$C$21:$C$120,0))),\"\")","v":""},"","",null,null,null,{"$f":"IFERROR(VLOOKUP(D697,'Species List'!$D$10:$E$46,2,FALSE)*J697,\"\")","v":""},{"$f":"IFERROR(VLOOKUP(D697,'Species List'!$D$51:$E$89,2,FALSE)*J697,\"\")","v":""},{"$f":"IFERROR(VLOOKUP(D697,'Species List'!$D$95:$E$102,2,FALSE)*J697,\"\")","v":""},{"$f":"IFERROR(VLOOKUP(D697,'Species List'!$I$10:$J$11,2,FALSE)*J697,\"\")","v":""},{"$f":"IFERROR(VLOOKUP(D697,'Species List'!$I$16:$J$61,2,FALSE)*J697,\"\")","v":""},{"$f":"IFERROR(VLOOKUP(D697,'Species List'!$I$66:$J$66,2,FALSE)*J697,\"\")","v":""},{"$f":"IFERROR(VLOOKUP(D697,'Species List'!$I$71:$J$82,2,FALSE)*J697,\"\")","v":""},0,null,null,null,null,null,null,{"$f":"IFERROR(INDEX('3 - Land Summary'!$B$21:$B$120,(MATCH(AD697,'3 - Land Summary'!$C$21:$C$120,0))),\"\")","v":""}]
[null,{"$f":"IFERROR(INDEX('3 - Land Summary'!$B$21:$B$120,(MATCH('4 - Species Breakdown'!$V698,'3 - Land Summary'!$C$21:$C$120,0))),\"\")","v":""},null,null,{"$f":"IF(OR(COUNTIF('Look Up Data'!$D$149:$D$203,D698),COUNTIF('Look Up Data'!$D$149:$D$203,AE698)),\"YES\",\"NO\")","v":"NO"},null,null,{"$f":"IFERROR(INDEX('3 - Land Summary'!$G$21:$G$120,(MATCH(C698,'3 - Land Summary'!$C$21:$C$120,0))),\"\")","v":""},{"$f":"IFERROR(INDEX('3 - Land Summary'!$I$21:$I$120,(MATCH(C698,'3 - Land Summary'!$C$21:$C$120,0))),\"\")","v":""},"","",null,null,null,{"$f":"IFERROR(VLOOKUP(D698,'Species List'!$D$10:$E$46,2,FALSE)*J698,\"\")","v":""},{"$f":"IFERROR(VLOOKUP(D698,'Species List'!$D$51:$E$89,2,FALSE)*J698,\"\")","v":""},{"$f":"IFERROR(VLOOKUP(D698,'Species List'!$D$95:$E$102,2,FALSE)*J698,\"\")","v":""},{"$f":"IFERROR(VLOOKUP(D698,'Species List'!$I$10:$J$11,2,FALSE)*J698,\"\")","v":""},{"$f":"IFERROR(VLOOKUP(D698,'Species List'!$I$16:$J$61,2,FALSE)*J698,\"\")","v":""},{"$f":"IFERROR(VLOOKUP(D698,'Species List'!$I$66:$J$66,2,FALSE)*J698,\"\")","v":""},{"$f":"IFERROR(VLOOKUP(D698,'Species List'!$I$71:$J$82,2,FALSE)*J698,\"\")","v":""},0,null,null,null,null,null,null,{"$f":"IFERROR(INDEX('3 - Land Summary'!$B$21:$B$120,(MATCH(AD698,'3 - Land Summary'!$C$21:$C$120,0))),\"\")","v":""}]
[null,{"$f":"IFERROR(INDEX('3 - Land Summary'!$B$21:$B$120,(MATCH('4 - Species Breakdown'!$V699,'3 - Land Summary'!$C$21:$C$120,0))),\"\")","v":""},null,null,{"$f":"IF(OR(COUNTIF('Look Up Data'!$D$149:$D$203,D699),COUNTIF('Look Up Data'!$D$149:$D$203,AE699)),\"YES\",\"NO\")","v":"NO"},null,null,{"$f":"IFERROR(INDEX('3 - Land Summary'!$G$21:$G$120,(MATCH(C699,'3 - Land Summary'!$C$21:$C$120,0))),\"\")","v":""},{"$f":"IFERROR(INDEX('3 - Land Summary'!$I$21:$I$120,(MATCH(C699,'3 - Land Summary'!$C$21:$C$120,0))),\"\")","v":""},"","",null,null,null,{"$f":"IFERROR(VLOOKUP(D699,'Species List'!$D$10:$E$46,2,FALSE)*J699,\"\")","v":""},{"$f":"IFERROR(VLOOKUP(D699,'Species List'!$D$51:$E$89,2,FALSE)*J699,\"\")","v":""},{"$f":"IFERROR(VLOOKUP(D699,'Species List'!$D$95:$E$102,2,FALSE)*J699,\"\")","v":""},{"$f":"IFERROR(VLOOKUP(D699,'Species List'!$I$10:$J$11,2,FALSE)*J699,\"\")","v":""},{"$f":"IFERROR(VLOOKUP(D699,'Species List'!$I$16:$J$61,2,FALSE)*J699,\"\")","v":""},{"$f":"IFERROR(VLOOKUP(D699,'Species List'!$I$66:$J$66,2,FALSE)*J699,\"\")","v":""},{"$f":"IFERROR(VLOOKUP(D699,'Species List'!$I$71:$J$82,2,FALSE)*J699,\"\")","v":""},0,null,null,null,null,null,null,{"$f":"IFERROR(INDEX('3 - Land Summary'!$B$21:$B$120,(MATCH(AD699,'3 - Land Summary'!$C$21:$C$120,0))),\"\")","v":""}]
[null,{"$f":"IFERROR(INDEX('3 - Land Summary'!$B$21:$B$120,(MATCH('4 - Species Breakdown'!$V700,'3 - Land Summary'!$C$21:$C$120,0))),\"\")","v":""},null,null,{"$f":"IF(OR(COUNTIF('Look Up Data'!$D$149:$D$203,D700),COUNTIF('Look Up Data'!$D$149:$D$203,AE700)),\"YES\",\"NO\")","v":"NO"},null,null,{"$f":"IFERROR(INDEX('3 - Land Summary'!$G$21:$G$120,(MATCH(C700,'3 - Land Summary'!$C$21:$C$120,0))),\"\")","v":""},{"$f":"IFERROR(INDEX('3 - Land Summary'!$I$21:$I$120,(MATCH(C700,'3 - Land Summary'!$C$21:$C$120,0))),\"\")","v":""},"","",null,null,null,{"$f":"IFERROR(VLOOKUP(D700,'Species List'!$D$10:$E$46,2,FALSE)*J700,\"\")","v":""},{"$f":"IFERROR(VLOOKUP(D700,'Species List'!$D$51:$E$89,2,FALSE)*J700,\"\")","v":""},{"$f":"IFERROR(VLOOKUP(D700,'Species List'!$D$95:$E$102,2,FALSE)*J700,\"\")","v":""},{"$f":"IFERROR(VLOOKUP(D700,'Species List'!$I$10:$J$11,2,FALSE)*J700,\"\")","v":""},{"$f":"IFERROR(VLOOKUP(D700,'Species List'!$I$16:$J$61,2,FALSE)*J700,\"\")","v":""},{"$f":"IFERROR(VLOOKUP(D700,'Species List'!$I$66:$J$66,2,FALSE)*J700,\"\")","v":""},{"$f":"IFERROR(VLOOKUP(D700,'Species List'!$I$71:$J$82,2,FALSE)*J700,\"\")","v":""},0,null,null,null,null,null,null,{"$f":"IFERROR(INDEX('3 - Land Summary'!$B$21:$B$120,(MATCH(AD700,'3 - Land Summary'!$C$21:$C$120,0))),\"\")","v":""}]
[null,{"$f":"IFERROR(INDEX('3 - Land Summary'!$B$21:$B$120,(MATCH('4 - Species Breakdown'!$V701,'3 - Land Summary'!$C$21:$C$120,0))),\"\")","v":""},null,null,{"$f":"IF(OR(COUNTIF('Look Up Data'!$D$149:$D$203,D701),COUNTIF('Look Up Data'!$D$149:$D$203,AE701)),\"YES\",\"NO\")","v":"NO"},null,null,{"$f":"IFERROR(INDEX('3 - Land Summary'!$G$21:$G$120,(MATCH(C701,'3 - Land Summary'!$C$21:$C$120,0))),\"\")","v":""},{"$f":"IFERROR(INDEX('3 - Land Summary'!$I$21:$I$120,(MATCH(C701,'3 - Land Summary'!$C$21:$C$120,0))),\"\")","v":""},"","",null,null,null,{"$f":"IFERROR(VLOOKUP(D701,'Species List'!$D$10:$E$46,2,FALSE)*J701,\"\")","v":""},{"$f":"IFERROR(VLOOKUP(D701,'Species List'!$D$51:$E$89,2,FALSE)*J701,\"\")","v":""},{"$f":"IFERROR(VLOOKUP(D701,'Species List'!$D$95:$E$102,2,FALSE)*J701,\"\")","v":""},{"$f":"IFERROR(VLOOKUP(D701,'Species List'!$I$10:$J$11,2,FALSE)*J701,\"\")","v":""},{"$f":"IFERROR(VLOOKUP(D701,'Species List'!$I$16:$J$61,2,FALSE)*J701,\"\")","v":""},{"$f":"IFERROR(VLOOKUP(D701,'Species List'!$I$66:$J$66,2,FALSE)*J701,\"\")","v":""},{"$f":"IFERROR(VLOOKUP(D701,'Species List'!$I$71:$J$82,2,FALSE)*J701,\"\")","v":""},0,null,null,null,null,null,null,{"$f":"IFERROR(INDEX('3 - Land Summary'!$B$21:$B$120,(MATCH(AD701,'3 - Land Summary'!$C$21:$C$120,0))),\"\")","v":""}]
[null,{"$f":"IFERROR(INDEX('3 - Land Summary'!$B$21:$B$120,(MATCH('4 - Species Breakdown'!$V702,'3 - Land Summary'!$C$21:$C$120,0))),\"\")","v":""},null,null,{"$f":"IF(OR(COUNTIF('Look Up Data'!$D$149:$D$203,D702),COUNTIF('Look Up Data'!$D$149:$D$203,AE702)),\"YES\",\"NO\")","v":"NO"},null,null,{"$f":"IFERROR(INDEX('3 - Land Summary'!$G$21:$G$120,(MATCH(C702,'3 - Land Summary'!$C$21:$C$120,0))),\"\")","v":""},{"$f":"IFERROR(INDEX('3 - Land Summary'!$I$21:$I$120,(MATCH(C702,'3 - Land Summary'!$C$21:$C$120,0))),\"\")","v":""},"","",null,null,null,{"$f":"IFERROR(VLOOKUP(D702,'Species List'!$D$10:$E$46,2,FALSE)*J702,\"\")","v":""},{"$f":"IFERROR(VLOOKUP(D702,'Species List'!$D$51:$E$89,2,FALSE)*J702,\"\")","v":""},{"$f":"IFERROR(VLOOKUP(D702,'Species List'!$D$95:$E$102,2,FALSE)*J702,\"\")","v":""},{"$f":"IFERROR(VLOOKUP(D702,'Species List'!$I$10:$J$11,2,FALSE)*J702,\"\")","v":""},{"$f":"IFERROR(VLOOKUP(D702,'Species List'!$I$16:$J$61,2,FALSE)*J702,\"\")","v":""},{"$f":"IFERROR(VLOOKUP(D702,'Species List'!$I$66:$J$66,2,FALSE)*J702,\"\")","v":""},{"$f":"IFERROR(VLOOKUP(D702,'Species List'!$I$71:$J$82,2,FALSE)*J702,\"\")","v":""},0,null,null,null,null,null,null,{"$f":"IFERROR(INDEX('3 - Land Summary'!$B$21:$B$120,(MATCH(AD702,'3 - Land Summary'!$C$21:$C$120,0))),\"\")","v":""}]
[null,{"$f":"IFERROR(INDEX('3 - Land Summary'!$B$21:$B$120,(MATCH('4 - Species Breakdown'!$V703,'3 - Land Summary'!$C$21:$C$120,0))),\"\")","v":""},null,null,{"$f":"IF(OR(COUNTIF('Look Up Data'!$D$149:$D$203,D703),COUNTIF('Look Up Data'!$D$149:$D$203,AE703)),\"YES\",\"NO\")","v":"NO"},null,null,{"$f":"IFERROR(INDEX('3 - Land Summary'!$G$21:$G$120,(MATCH(C703,'3 - Land Summary'!$C$21:$C$120,0))),\"\")","v":""},{"$f":"IFERROR(INDEX('3 - Land Summary'!$I$21:$I$120,(MATCH(C703,'3 - Land Summary'!$C$21:$C$120,0))),\"\")","v":""},"","",null,null,null,{"$f":"IFERROR(VLOOKUP(D703,'Species List'!$D$10:$E$46,2,FALSE)*J703,\"\")","v":""},{"$f":"IFERROR(VLOOKUP(D703,'Species List'!$D$51:$E$89,2,FALSE)*J703,\"\")","v":""},{"$f":"IFERROR(VLOOKUP(D703,'Species List'!$D$95:$E$102,2,FALSE)*J703,\"\")","v":""},{"$f":"IFERROR(VLOOKUP(D703,'Species List'!$I$10:$J$11,2,FALSE)*J703,\"\")","v":""},{"$f":"IFERROR(VLOOKUP(D703,'Species List'!$I$16:$J$61,2,FALSE)*J703,\"\")","v":""},{"$f":"IFERROR(VLOOKUP(D703,'Species List'!$I$66:$J$66,2,FALSE)*J703,\"\")","v":""},{"$f":"IFERROR(VLOOKUP(D703,'Species List'!$I$71:$J$82,2,FALSE)*J703,\"\")","v":""},0,null,null,null,null,null,null,{"$f":"IFERROR(INDEX('3 - Land Summary'!$B$21:$B$120,(MATCH(AD703,'3 - Land Summary'!$C$21:$C$120,0))),\"\")","v":""}]
[null,{"$f":"IFERROR(INDEX('3 - Land Summary'!$B$21:$B$120,(MATCH('4 - Species Breakdown'!$V704,'3 - Land Summary'!$C$21:$C$120,0))),\"\")","v":""},null,null,{"$f":"IF(OR(COUNTIF('Look Up Data'!$D$149:$D$203,D704),COUNTIF('Look Up Data'!$D$149:$D$203,AE704)),\"YES\",\"NO\")","v":"NO"},null,null,{"$f":"IFERROR(INDEX('3 - Land Summary'!$G$21:$G$120,(MATCH(C704,'3 - Land Summary'!$C$21:$C$120,0))),\"\")","v":""},{"$f":"IFERROR(INDEX('3 - Land Summary'!$I$21:$I$120,(MATCH(C704,'3 - Land Summary'!$C$21:$C$120,0))),\"\")","v":""},"","",null,null,null,{"$f":"IFERROR(VLOOKUP(D704,'Species List'!$D$10:$E$46,2,FALSE)*J704,\"\")","v":""},{"$f":"IFERROR(VLOOKUP(D704,'Species List'!$D$51:$E$89,2,FALSE)*J704,\"\")","v":""},{"$f":"IFERROR(VLOOKUP(D704,'Species List'!$D$95:$E$102,2,FALSE)*J704,\"\")","v":""},{"$f":"IFERROR(VLOOKUP(D704,'Species List'!$I$10:$J$11,2,FALSE)*J704,\"\")","v":""},{"$f":"IFERROR(VLOOKUP(D704,'Species List'!$I$16:$J$61,2,FALSE)*J704,\"\")","v":""},{"$f":"IFERROR(VLOOKUP(D704,'Species List'!$I$66:$J$66,2,FALSE)*J704,\"\")","v":""},{"$f":"IFERROR(VLOOKUP(D704,'Species List'!$I$71:$J$82,2,FALSE)*J704,\"\")","v":""},0,null,null,null,null,null,null,{"$f":"IFERROR(INDEX('3 - Land Summary'!$B$21:$B$120,(MATCH(AD704,'3 - Land Summary'!$C$21:$C$120,0))),\"\")","v":""}]
[null,{"$f":"IFERROR(INDEX('3 - Land Summary'!$B$21:$B$120,(MATCH('4 - Species Breakdown'!$V705,'3 - Land Summary'!$C$21:$C$120,0))),\"\")","v":""},null,null,{"$f":"IF(OR(COUNTIF('Look Up Data'!$D$149:$D$203,D705),COUNTIF('Look Up Data'!$D$149:$D$203,AE705)),\"YES\",\"NO\")","v":"NO"},null,null,{"$f":"IFERROR(INDEX('3 - Land Summary'!$G$21:$G$120,(MATCH(C705,'3 - Land Summary'!$C$21:$C$120,0))),\"\")","v":""},{"$f":"IFERROR(INDEX('3 - Land Summary'!$I$21:$I$120,(MATCH(C705,'3 - Land Summary'!$C$21:$C$120,0))),\"\")","v":""},"","",null,null,null,{"$f":"IFERROR(VLOOKUP(D705,'Species List'!$D$10:$E$46,2,FALSE)*J705,\"\")","v":""},{"$f":"IFERROR(VLOOKUP(D705,'Species List'!$D$51:$E$89,2,FALSE)*J705,\"\")","v":""},{"$f":"IFERROR(VLOOKUP(D705,'Species List'!$D$95:$E$102,2,FALSE)*J705,\"\")","v":""},{"$f":"IFERROR(VLOOKUP(D705,'Species List'!$I$10:$J$11,2,FALSE)*J705,\"\")","v":""},{"$f":"IFERROR(VLOOKUP(D705,'Species List'!$I$16:$J$61,2,FALSE)*J705,\"\")","v":""},{"$f":"IFERROR(VLOOKUP(D705,'Species List'!$I$66:$J$66,2,FALSE)*J705,\"\")","v":""},{"$f":"IFERROR(VLOOKUP(D705,'Species List'!$I$71:$J$82,2,FALSE)*J705,\"\")","v":""},0,null,null,null,null,null,null,{"$f":"IFERROR(INDEX('3 - Land Summary'!$B$21:$B$120,(MATCH(AD705,'3 - Land Summary'!$C$21:$C$120,0))),\"\")","v":""}]
[null,{"$f":"IFERROR(INDEX('3 - Land Summary'!$B$21:$B$120,(MATCH('4 - Species Breakdown'!$V706,'3 - Land Summary'!$C$21:$C$120,0))),\"\")","v":""},null,null,{"$f":"IF(OR(COUNTIF('Look Up Data'!$D$149:$D$203,D706),COUNTIF('Look Up Data'!$D$149:$D$203,AE706)),\"YES\",\"NO\")","v":"NO"},null,null,{"$f":"IFERROR(INDEX('3 - Land Summary'!$G$21:$G$120,(MATCH(C706,'3 - Land Summary'!$C$21:$C$120,0))),\"\")","v":""},{"$f":"IFERROR(INDEX('3 - Land Summary'!$I$21:$I$120,(MATCH(C706,'3 - Land Summary'!$C$21:$C$120,0))),\"\")","v":""},"","",null,null,null,{"$f":"IFERROR(VLOOKUP(D706,'Species List'!$D$10:$E$46,2,FALSE)*J706,\"\")","v":""},{"$f":"IFERROR(VLOOKUP(D706,'Species List'!$D$51:$E$89,2,FALSE)*J706,\"\")","v":""},{"$f":"IFERROR(VLOOKUP(D706,'Species List'!$D$95:$E$102,2,FALSE)*J706,\"\")","v":""},{"$f":"IFERROR(VLOOKUP(D706,'Species List'!$I$10:$J$11,2,FALSE)*J706,\"\")","v":""},{"$f":"IFERROR(VLOOKUP(D706,'Species List'!$I$16:$J$61,2,FALSE)*J706,\"\")","v":""},{"$f":"IFERROR(VLOOKUP(D706,'Species List'!$I$66:$J$66,2,FALSE)*J706,\"\")","v":""},{"$f":"IFERROR(VLOOKUP(D706,'Species List'!$I$71:$J$82,2,FALSE)*J706,\"\")","v":""},0,null,null,null,null,null,null,{"$f":"IFERROR(INDEX('3 - Land Summary'!$B$21:$B$120,(MATCH(AD706,'3 - Land Summary'!$C$21:$C$120,0))),\"\")","v":""}]
[null,{"$f":"IFERROR(INDEX('3 - Land Summary'!$B$21:$B$120,(MATCH('4 - Species Breakdown'!$V707,'3 - Land Summary'!$C$21:$C$120,0))),\"\")","v":""},null,null,{"$f":"IF(OR(COUNTIF('Look Up Data'!$D$149:$D$203,D707),COUNTIF('Look Up Data'!$D$149:$D$203,AE707)),\"YES\",\"NO\")","v":"NO"},null,null,{"$f":"IFERROR(INDEX('3 - Land Summary'!$G$21:$G$120,(MATCH(C707,'3 - Land Summary'!$C$21:$C$120,0))),\"\")","v":""},{"$f":"IFERROR(INDEX('3 - Land Summary'!$I$21:$I$120,(MATCH(C707,'3 - Land Summary'!$C$21:$C$120,0))),\"\")","v":""},"","",null,null,null,{"$f":"IFERROR(VLOOKUP(D707,'Species List'!$D$10:$E$46,2,FALSE)*J707,\"\")","v":""},{"$f":"IFERROR(VLOOKUP(D707,'Species List'!$D$51:$E$89,2,FALSE)*J707,\"\")","v":""},{"$f":"IFERROR(VLOOKUP(D707,'Species List'!$D$95:$E$102,2,FALSE)*J707,\"\")","v":""},{"$f":"IFERROR(VLOOKUP(D707,'Species List'!$I$10:$J$11,2,FALSE)*J707,\"\")","v":""},{"$f":"IFERROR(VLOOKUP(D707,'Species List'!$I$16:$J$61,2,FALSE)*J707,\"\")","v":""},{"$f":"IFERROR(VLOOKUP(D707,'Species List'!$I$66:$J$66,2,FALSE)*J707,\"\")","v":""},{"$f":"IFERROR(VLOOKUP(D707,'Species List'!$I$71:$J$82,2,FALSE)*J707,\"\")","v":""},0,null,null,null,null,null,null,{"$f":"IFERROR(INDEX('3 - Land Summary'!$B$21:$B$120,(MATCH(AD707,'3 - Land Summary'!$C$21:$C$120,0))),\"\")","v":""}]
[null,{"$f":"IFERROR(INDEX('3 - Land Summary'!$B$21:$B$120,(MATCH('4 - Species Breakdown'!$V708,'3 - Land Summary'!$C$21:$C$120,0))),\"\")","v":""},null,null,{"$f":"IF(OR(COUNTIF('Look Up Data'!$D$149:$D$203,D708),COUNTIF('Look Up Data'!$D$149:$D$203,AE708)),\"YES\",\"NO\")","v":"NO"},null,null,{"$f":"IFERROR(INDEX('3 - Land Summary'!$G$21:$G$120,(MATCH(C708,'3 - Land Summary'!$C$21:$C$120,0))),\"\")","v":""},{"$f":"IFERROR(INDEX('3 - Land Summary'!$I$21:$I$120,(MATCH(C708,'3 - Land Summary'!$C$21:$C$120,0))),\"\")","v":""},"","",null,null,null,{"$f":"IFERROR(VLOOKUP(D708,'Species List'!$D$10:$E$46,2,FALSE)*J708,\"\")","v":""},{"$f":"IFERROR(VLOOKUP(D708,'Species List'!$D$51:$E$89,2,FALSE)*J708,\"\")","v":""},{"$f":"IFERROR(VLOOKUP(D708,'Species List'!$D$95:$E$102,2,FALSE)*J708,\"\")","v":""},{"$f":"IFERROR(VLOOKUP(D708,'Species List'!$I$10:$J$11,2,FALSE)*J708,\"\")","v":""},{"$f":"IFERROR(VLOOKUP(D708,'Species List'!$I$16:$J$61,2,FALSE)*J708,\"\")","v":""},{"$f":"IFERROR(VLOOKUP(D708,'Species List'!$I$66:$J$66,2,FALSE)*J708,\"\")","v":""},{"$f":"IFERROR(VLOOKUP(D708,'Species List'!$I$71:$J$82,2,FALSE)*J708,\"\")","v":""},0,null,null,null,null,null,null,{"$f":"IFERROR(INDEX('3 - Land Summary'!$B$21:$B$120,(MATCH(AD708,'3 - Land Summary'!$C$21:$C$120,0))),\"\")","v":""}]
[null,{"$f":"IFERROR(INDEX('3 - Land Summary'!$B$21:$B$120,(MATCH('4 - Species Breakdown'!$V709,'3 - Land Summary'!$C$21:$C$120,0))),\"\")","v":""},null,null,{"$f":"IF(OR(COUNTIF('Look Up Data'!$D$149:$D$203,D709),COUNTIF('Look Up Data'!$D$149:$D$203,AE709)),\"YES\",\"NO\")","v":"NO"},null,null,{"$f":"IFERROR(INDEX('3 - Land Summary'!$G$21:$G$120,(MATCH(C709,'3 - Land Summary'!$C$21:$C$120,0))),\"\")","v":""},{"$f":"IFERROR(INDEX('3 - Land Summary'!$I$21:$I$120,(MATCH(C709,'3 - Land Summary'!$C$21:$C$120,0))),\"\")","v":""},"","",null,null,null,{"$f":"IFERROR(VLOOKUP(D709,'Species List'!$D$10:$E$46,2,FALSE)*J709,\"\")","v":""},{"$f":"IFERROR(VLOOKUP(D709,'Species List'!$D$51:$E$89,2,FALSE)*J709,\"\")","v":""},{"$f":"IFERROR(VLOOKUP(D709,'Species List'!$D$95:$E$102,2,FALSE)*J709,\"\")","v":""},{"$f":"IFERROR(VLOOKUP(D709,'Species List'!$I$10:$J$11,2,FALSE)*J709,\"\")","v":""},{"$f":"IFERROR(VLOOKUP(D709,'Species List'!$I$16:$J$61,2,FALSE)*J709,\"\")","v":""},{"$f":"IFERROR(VLOOKUP(D709,'Species List'!$I$66:$J$66,2,FALSE)*J709,\"\")","v":""},{"$f":"IFERROR(VLOOKUP(D709,'Species List'!$I$71:$J$82,2,FALSE)*J709,\"\")","v":""},0,null,null,null,null,null,null,{"$f":"IFERROR(INDEX('3 - Land Summary'!$B$21:$B$120,(MATCH(AD709,'3 - Land Summary'!$C$21:$C$120,0))),\"\")","v":""}]
[null,{"$f":"IFERROR(INDEX('3 - Land Summary'!$B$21:$B$120,(MATCH('4 - Species Breakdown'!$V710,'3 - Land Summary'!$C$21:$C$120,0))),\"\")","v":""},null,null,{"$f":"IF(OR(COUNTIF('Look Up Data'!$D$149:$D$203,D710),COUNTIF('Look Up Data'!$D$149:$D$203,AE710)),\"YES\",\"NO\")","v":"NO"},null,null,{"$f":"IFERROR(INDEX('3 - Land Summary'!$G$21:$G$120,(MATCH(C710,'3 - Land Summary'!$C$21:$C$120,0))),\"\")","v":""},{"$f":"IFERROR(INDEX('3 - Land Summary'!$I$21:$I$120,(MATCH(C710,'3 - Land Summary'!$C$21:$C$120,0))),\"\")","v":""},"","",null,null,null,{"$f":"IFERROR(VLOOKUP(D710,'Species List'!$D$10:$E$46,2,FALSE)*J710,\"\")","v":""},{"$f":"IFERROR(VLOOKUP(D710,'Species List'!$D$51:$E$89,2,FALSE)*J710,\"\")","v":""},{"$f":"IFERROR(VLOOKUP(D710,'Species List'!$D$95:$E$102,2,FALSE)*J710,\"\")","v":""},{"$f":"IFERROR(VLOOKUP(D710,'Species List'!$I$10:$J$11,2,FALSE)*J710,\"\")","v":""},{"$f":"IFERROR(VLOOKUP(D710,'Species List'!$I$16:$J$61,2,FALSE)*J710,\"\")","v":""},{"$f":"IFERROR(VLOOKUP(D710,'Species List'!$I$66:$J$66,2,FALSE)*J710,\"\")","v":""},{"$f":"IFERROR(VLOOKUP(D710,'Species List'!$I$71:$J$82,2,FALSE)*J710,\"\")","v":""},0,null,null,null,null,null,null,{"$f":"IFERROR(INDEX('3 - Land Summary'!$B$21:$B$120,(MATCH(AD710,'3 - Land Summary'!$C$21:$C$120,0))),\"\")","v":""}]
[null,{"$f":"IFERROR(INDEX('3 - Land Summary'!$B$21:$B$120,(MATCH('4 - Species Breakdown'!$V711,'3 - Land Summary'!$C$21:$C$120,0))),\"\")","v":""},null,null,{"$f":"IF(OR(COUNTIF('Look Up Data'!$D$149:$D$203,D711),COUNTIF('Look Up Data'!$D$149:$D$203,AE711)),\"YES\",\"NO\")","v":"NO"},null,null,{"$f":"IFERROR(INDEX('3 - Land Summary'!$G$21:$G$120,(MATCH(C711,'3 - Land Summary'!$C$21:$C$120,0))),\"\")","v":""},{"$f":"IFERROR(INDEX('3 - Land Summary'!$I$21:$I$120,(MATCH(C711,'3 - Land Summary'!$C$21:$C$120,0))),\"\")","v":""},"","",null,null,null,{"$f":"IFERROR(VLOOKUP(D711,'Species List'!$D$10:$E$46,2,FALSE)*J711,\"\")","v":""},{"$f":"IFERROR(VLOOKUP(D711,'Species List'!$D$51:$E$89,2,FALSE)*J711,\"\")","v":""},{"$f":"IFERROR(VLOOKUP(D711,'Species List'!$D$95:$E$102,2,FALSE)*J711,\"\")","v":""},{"$f":"IFERROR(VLOOKUP(D711,'Species List'!$I$10:$J$11,2,FALSE)*J711,\"\")","v":""},{"$f":"IFERROR(VLOOKUP(D711,'Species List'!$I$16:$J$61,2,FALSE)*J711,\"\")","v":""},{"$f":"IFERROR(VLOOKUP(D711,'Species List'!$I$66:$J$66,2,FALSE)*J711,\"\")","v":""},{"$f":"IFERROR(VLOOKUP(D711,'Species List'!$I$71:$J$82,2,FALSE)*J711,\"\")","v":""},0,null,null,null,null,null,null,{"$f":"IFERROR(INDEX('3 - Land Summary'!$B$21:$B$120,(MATCH(AD711,'3 - Land Summary'!$C$21:$C$120,0))),\"\")","v":""}]
[null,{"$f":"IFERROR(INDEX('3 - Land Summary'!$B$21:$B$120,(MATCH('4 - Species Breakdown'!$V712,'3 - Land Summary'!$C$21:$C$120,0))),\"\")","v":""},null,null,{"$f":"IF(OR(COUNTIF('Look Up Data'!$D$149:$D$203,D712),COUNTIF('Look Up Data'!$D$149:$D$203,AE712)),\"YES\",\"NO\")","v":"NO"},null,null,{"$f":"IFERROR(INDEX('3 - Land Summary'!$G$21:$G$120,(MATCH(C712,'3 - Land Summary'!$C$21:$C$120,0))),\"\")","v":""},{"$f":"IFERROR(INDEX('3 - Land Summary'!$I$21:$I$120,(MATCH(C712,'3 - Land Summary'!$C$21:$C$120,0))),\"\")","v":""},"","",null,null,null,{"$f":"IFERROR(VLOOKUP(D712,'Species List'!$D$10:$E$46,2,FALSE)*J712,\"\")","v":""},{"$f":"IFERROR(VLOOKUP(D712,'Species List'!$D$51:$E$89,2,FALSE)*J712,\"\")","v":""},{"$f":"IFERROR(VLOOKUP(D712,'Species List'!$D$95:$E$102,2,FALSE)*J712,\"\")","v":""},{"$f":"IFERROR(VLOOKUP(D712,'Species List'!$I$10:$J$11,2,FALSE)*J712,\"\")","v":""},{"$f":"IFERROR(VLOOKUP(D712,'Species List'!$I$16:$J$61,2,FALSE)*J712,\"\")","v":""},{"$f":"IFERROR(VLOOKUP(D712,'Species List'!$I$66:$J$66,2,FALSE)*J712,\"\")","v":""},{"$f":"IFERROR(VLOOKUP(D712,'Species List'!$I$71:$J$82,2,FALSE)*J712,\"\")","v":""},0,null,null,null,null,null,null,{"$f":"IFERROR(INDEX('3 - Land Summary'!$B$21:$B$120,(MATCH(AD712,'3 - Land Summary'!$C$21:$C$120,0))),\"\")","v":""}]
[null,{"$f":"IFERROR(INDEX('3 - Land Summary'!$B$21:$B$120,(MATCH('4 - Species Breakdown'!$V713,'3 - Land Summary'!$C$21:$C$120,0))),\"\")","v":""},null,null,{"$f":"IF(OR(COUNTIF('Look Up Data'!$D$149:$D$203,D713),COUNTIF('Look Up Data'!$D$149:$D$203,AE713)),\"YES\",\"NO\")","v":"NO"},null,null,{"$f":"IFERROR(INDEX('3 - Land Summary'!$G$21:$G$120,(MATCH(C713,'3 - Land Summary'!$C$21:$C$120,0))),\"\")","v":""},{"$f":"IFERROR(INDEX('3 - Land Summary'!$I$21:$I$120,(MATCH(C713,'3 - Land Summary'!$C$21:$C$120,0))),\"\")","v":""},"","",null,null,null,{"$f":"IFERROR(VLOOKUP(D713,'Species List'!$D$10:$E$46,2,FALSE)*J713,\"\")","v":""},{"$f":"IFERROR(VLOOKUP(D713,'Species List'!$D$51:$E$89,2,FALSE)*J713,\"\")","v":""},{"$f":"IFERROR(VLOOKUP(D713,'Species List'!$D$95:$E$102,2,FALSE)*J713,\"\")","v":""},{"$f":"IFERROR(VLOOKUP(D713,'Species List'!$I$10:$J$11,2,FALSE)*J713,\"\")","v":""},{"$f":"IFERROR(VLOOKUP(D713,'Species List'!$I$16:$J$61,2,FALSE)*J713,\"\")","v":""},{"$f":"IFERROR(VLOOKUP(D713,'Species List'!$I$66:$J$66,2,FALSE)*J713,\"\")","v":""},{"$f":"IFERROR(VLOOKUP(D713,'Species List'!$I$71:$J$82,2,FALSE)*J713,\"\")","v":""},0,null,null,null,null,null,null,{"$f":"IFERROR(INDEX('3 - Land Summary'!$B$21:$B$120,(MATCH(AD713,'3 - Land Summary'!$C$21:$C$120,0))),\"\")","v":""}]
[null,{"$f":"IFERROR(INDEX('3 - Land Summary'!$B$21:$B$120,(MATCH('4 - Species Breakdown'!$V714,'3 - Land Summary'!$C$21:$C$120,0))),\"\")","v":""},null,null,{"$f":"IF(OR(COUNTIF('Look Up Data'!$D$149:$D$203,D714),COUNTIF('Look Up Data'!$D$149:$D$203,AE714)),\"YES\",\"NO\")","v":"NO"},null,null,{"$f":"IFERROR(INDEX('3 - Land Summary'!$G$21:$G$120,(MATCH(C714,'3 - Land Summary'!$C$21:$C$120,0))),\"\")","v":""},{"$f":"IFERROR(INDEX('3 - Land Summary'!$I$21:$I$120,(MATCH(C714,'3 - Land Summary'!$C$21:$C$120,0))),\"\")","v":""},"","",null,null,null,{"$f":"IFERROR(VLOOKUP(D714,'Species List'!$D$10:$E$46,2,FALSE)*J714,\"\")","v":""},{"$f":"IFERROR(VLOOKUP(D714,'Species List'!$D$51:$E$89,2,FALSE)*J714,\"\")","v":""},{"$f":"IFERROR(VLOOKUP(D714,'Species List'!$D$95:$E$102,2,FALSE)*J714,\"\")","v":""},{"$f":"IFERROR(VLOOKUP(D714,'Species List'!$I$10:$J$11,2,FALSE)*J714,\"\")","v":""},{"$f":"IFERROR(VLOOKUP(D714,'Species List'!$I$16:$J$61,2,FALSE)*J714,\"\")","v":""},{"$f":"IFERROR(VLOOKUP(D714,'Species List'!$I$66:$J$66,2,FALSE)*J714,\"\")","v":""},{"$f":"IFERROR(VLOOKUP(D714,'Species List'!$I$71:$J$82,2,FALSE)*J714,\"\")","v":""},0,null,null,null,null,null,null,{"$f":"IFERROR(INDEX('3 - Land Summary'!$B$21:$B$120,(MATCH(AD714,'3 - Land Summary'!$C$21:$C$120,0))),\"\")","v":""}]
[null,{"$f":"IFERROR(INDEX('3 - Land Summary'!$B$21:$B$120,(MATCH('4 - Species Breakdown'!$V715,'3 - Land Summary'!$C$21:$C$120,0))),\"\")","v":""},null,null,{"$f":"IF(OR(COUNTIF('Look Up Data'!$D$149:$D$203,D715),COUNTIF('Look Up Data'!$D$149:$D$203,AE715)),\"YES\",\"NO\")","v":"NO"},null,null,{"$f":"IFERROR(INDEX('3 - Land Summary'!$G$21:$G$120,(MATCH(C715,'3 - Land Summary'!$C$21:$C$120,0))),\"\")","v":""},{"$f":"IFERROR(INDEX('3 - Land Summary'!$I$21:$I$120,(MATCH(C715,'3 - Land Summary'!$C$21:$C$120,0))),\"\")","v":""},"","",null,null,null,{"$f":"IFERROR(VLOOKUP(D715,'Species List'!$D$10:$E$46,2,FALSE)*J715,\"\")","v":""},{"$f":"IFERROR(VLOOKUP(D715,'Species List'!$D$51:$E$89,2,FALSE)*J715,\"\")","v":""},{"$f":"IFERROR(VLOOKUP(D715,'Species List'!$D$95:$E$102,2,FALSE)*J715,\"\")","v":""},{"$f":"IFERROR(VLOOKUP(D715,'Species List'!$I$10:$J$11,2,FALSE)*J715,\"\")","v":""},{"$f":"IFERROR(VLOOKUP(D715,'Species List'!$I$16:$J$61,2,FALSE)*J715,\"\")","v":""},{"$f":"IFERROR(VLOOKUP(D715,'Species List'!$I$66:$J$66,2,FALSE)*J715,\"\")","v":""},{"$f":"IFERROR(VLOOKUP(D715,'Species List'!$I$71:$J$82,2,FALSE)*J715,\"\")","v":""},0,null,null,null,null,null,null,{"$f":"IFERROR(INDEX('3 - Land Summary'!$B$21:$B$120,(MATCH(AD715,'3 - Land Summary'!$C$21:$C$120,0))),\"\")","v":""}]
[null,{"$f":"IFERROR(INDEX('3 - Land Summary'!$B$21:$B$120,(MATCH('4 - Species Breakdown'!$V716,'3 - Land Summary'!$C$21:$C$120,0))),\"\")","v":""},null,null,{"$f":"IF(OR(COUNTIF('Look Up Data'!$D$149:$D$203,D716),COUNTIF('Look Up Data'!$D$149:$D$203,AE716)),\"YES\",\"NO\")","v":"NO"},null,null,{"$f":"IFERROR(INDEX('3 - Land Summary'!$G$21:$G$120,(MATCH(C716,'3 - Land Summary'!$C$21:$C$120,0))),\"\")","v":""},{"$f":"IFERROR(INDEX('3 - Land Summary'!$I$21:$I$120,(MATCH(C716,'3 - Land Summary'!$C$21:$C$120,0))),\"\")","v":""},"","",null,null,null,{"$f":"IFERROR(VLOOKUP(D716,'Species List'!$D$10:$E$46,2,FALSE)*J716,\"\")","v":""},{"$f":"IFERROR(VLOOKUP(D716,'Species List'!$D$51:$E$89,2,FALSE)*J716,\"\")","v":""},{"$f":"IFERROR(VLOOKUP(D716,'Species List'!$D$95:$E$102,2,FALSE)*J716,\"\")","v":""},{"$f":"IFERROR(VLOOKUP(D716,'Species List'!$I$10:$J$11,2,FALSE)*J716,\"\")","v":""},{"$f":"IFERROR(VLOOKUP(D716,'Species List'!$I$16:$J$61,2,FALSE)*J716,\"\")","v":""},{"$f":"IFERROR(VLOOKUP(D716,'Species List'!$I$66:$J$66,2,FALSE)*J716,\"\")","v":""},{"$f":"IFERROR(VLOOKUP(D716,'Species List'!$I$71:$J$82,2,FALSE)*J716,\"\")","v":""},0,null,null,null,null,null,null,{"$f":"IFERROR(INDEX('3 - Land Summary'!$B$21:$B$120,(MATCH(AD716,'3 - Land Summary'!$C$21:$C$120,0))),\"\")","v":""}]
[null,{"$f":"IFERROR(INDEX('3 - Land Summary'!$B$21:$B$120,(MATCH('4 - Species Breakdown'!$V717,'3 - Land Summary'!$C$21:$C$120,0))),\"\")","v":""},null,null,{"$f":"IF(OR(COUNTIF('Look Up Data'!$D$149:$D$203,D717),COUNTIF('Look Up Data'!$D$149:$D$203,AE717)),\"YES\",\"NO\")","v":"NO"},null,null,{"$f":"IFERROR(INDEX('3 - Land Summary'!$G$21:$G$120,(MATCH(C717,'3 - Land Summary'!$C$21:$C$120,0))),\"\")","v":""},{"$f":"IFERROR(INDEX('3 - Land Summary'!$I$21:$I$120,(MATCH(C717,'3 - Land Summary'!$C$21:$C$120,0))),\"\")","v":""},"","",null,null,null,{"$f":"IFERROR(VLOOKUP(D717,'Species List'!$D$10:$E$46,2,FALSE)*J717,\"\")","v":""},{"$f":"IFERROR(VLOOKUP(D717,'Species List'!$D$51:$E$89,2,FALSE)*J717,\"\")","v":""},{"$f":"IFERROR(VLOOKUP(D717,'Species List'!$D$95:$E$102,2,FALSE)*J717,\"\")","v":""},{"$f":"IFERROR(VLOOKUP(D717,'Species List'!$I$10:$J$11,2,FALSE)*J717,\"\")","v":""},{"$f":"IFERROR(VLOOKUP(D717,'Species List'!$I$16:$J$61,2,FALSE)*J717,\"\")","v":""},{"$f":"IFERROR(VLOOKUP(D717,'Species List'!$I$66:$J$66,2,FALSE)*J717,\"\")","v":""},{"$f":"IFERROR(VLOOKUP(D717,'Species List'!$I$71:$J$82,2,FALSE)*J717,\"\")","v":""},0,null,null,null,null,null,null,{"$f":"IFERROR(INDEX('3 - Land Summary'!$B$21:$B$120,(MATCH(AD717,'3 - Land Summary'!$C$21:$C$120,0))),\"\")","v":""}]
[null,{"$f":"IFERROR(INDEX('3 - Land Summary'!$B$21:$B$120,(MATCH('4 - Species Breakdown'!$V718,'3 - Land Summary'!$C$21:$C$120,0))),\"\")","v":""},null,null,{"$f":"IF(OR(COUNTIF('Look Up Data'!$D$149:$D$203,D718),COUNTIF('Look Up Data'!$D$149:$D$203,AE718)),\"YES\",\"NO\")","v":"NO"},null,null,{"$f":"IFERROR(INDEX('3 - Land Summary'!$G$21:$G$120,(MATCH(C718,'3 - Land Summary'!$C$21:$C$120,0))),\"\")","v":""},{"$f":"IFERROR(INDEX('3 - Land Summary'!$I$21:$I$120,(MATCH(C718,'3 - Land Summary'!$C$21:$C$120,0))),\"\")","v":""},"","",null,null,null,{"$f":"IFERROR(VLOOKUP(D718,'Species List'!$D$10:$E$46,2,FALSE)*J718,\"\")","v":""},{"$f":"IFERROR(VLOOKUP(D718,'Species List'!$D$51:$E$89,2,FALSE)*J718,\"\")","v":""},{"$f":"IFERROR(VLOOKUP(D718,'Species List'!$D$95:$E$102,2,FALSE)*J718,\"\")","v":""},{"$f":"IFERROR(VLOOKUP(D718,'Species List'!$I$10:$J$11,2,FALSE)*J718,\"\")","v":""},{"$f":"IFERROR(VLOOKUP(D718,'Species List'!$I$16:$J$61,2,FALSE)*J718,\"\")","v":""},{"$f":"IFERROR(VLOOKUP(D718,'Species List'!$I$66:$J$66,2,FALSE)*J718,\"\")","v":""},{"$f":"IFERROR(VLOOKUP(D718,'Species List'!$I$71:$J$82,2,FALSE)*J718,\"\")","v":""},0,null,null,null,null,null,null,{"$f":"IFERROR(INDEX('3 - Land Summary'!$B$21:$B$120,(MATCH(AD718,'3 - Land Summary'!$C$21:$C$120,0))),\"\")","v":""}]
[null,{"$f":"IFERROR(INDEX('3 - Land Summary'!$B$21:$B$120,(MATCH('4 - Species Breakdown'!$V719,'3 - Land Summary'!$C$21:$C$120,0))),\"\")","v":""},null,null,{"$f":"IF(OR(COUNTIF('Look Up Data'!$D$149:$D$203,D719),COUNTIF('Look Up Data'!$D$149:$D$203,AE719)),\"YES\",\"NO\")","v":"NO"},null,null,{"$f":"IFERROR(INDEX('3 - Land Summary'!$G$21:$G$120,(MATCH(C719,'3 - Land Summary'!$C$21:$C$120,0))),\"\")","v":""},{"$f":"IFERROR(INDEX('3 - Land Summary'!$I$21:$I$120,(MATCH(C719,'3 - Land Summary'!$C$21:$C$120,0))),\"\")","v":""},"","",null,null,null,{"$f":"IFERROR(VLOOKUP(D719,'Species List'!$D$10:$E$46,2,FALSE)*J719,\"\")","v":""},{"$f":"IFERROR(VLOOKUP(D719,'Species List'!$D$51:$E$89,2,FALSE)*J719,\"\")","v":""},{"$f":"IFERROR(VLOOKUP(D719,'Species List'!$D$95:$E$102,2,FALSE)*J719,\"\")","v":""},{"$f":"IFERROR(VLOOKUP(D719,'Species List'!$I$10:$J$11,2,FALSE)*J719,\"\")","v":""},{"$f":"IFERROR(VLOOKUP(D719,'Species List'!$I$16:$J$61,2,FALSE)*J719,\"\")","v":""},{"$f":"IFERROR(VLOOKUP(D719,'Species List'!$I$66:$J$66,2,FALSE)*J719,\"\")","v":""},{"$f":"IFERROR(VLOOKUP(D719,'Species List'!$I$71:$J$82,2,FALSE)*J719,\"\")","v":""},0,null,null,null,null,null,null,{"$f":"IFERROR(INDEX('3 - Land Summary'!$B$21:$B$120,(MATCH(AD719,'3 - Land Summary'!$C$21:$C$120,0))),\"\")","v":""}]
[null,{"$f":"IFERROR(INDEX('3 - Land Summary'!$B$21:$B$120,(MATCH('4 - Species Breakdown'!$V720,'3 - Land Summary'!$C$21:$C$120,0))),\"\")","v":""},null,null,{"$f":"IF(OR(COUNTIF('Look Up Data'!$D$149:$D$203,D720),COUNTIF('Look Up Data'!$D$149:$D$203,AE720)),\"YES\",\"NO\")","v":"NO"},null,null,{"$f":"IFERROR(INDEX('3 - Land Summary'!$G$21:$G$120,(MATCH(C720,'3 - Land Summary'!$C$21:$C$120,0))),\"\")","v":""},{"$f":"IFERROR(INDEX('3 - Land Summary'!$I$21:$I$120,(MATCH(C720,'3 - Land Summary'!$C$21:$C$120,0))),\"\")","v":""},"","",null,null,null,{"$f":"IFERROR(VLOOKUP(D720,'Species List'!$D$10:$E$46,2,FALSE)*J720,\"\")","v":""},{"$f":"IFERROR(VLOOKUP(D720,'Species List'!$D$51:$E$89,2,FALSE)*J720,\"\")","v":""},{"$f":"IFERROR(VLOOKUP(D720,'Species List'!$D$95:$E$102,2,FALSE)*J720,\"\")","v":""},{"$f":"IFERROR(VLOOKUP(D720,'Species List'!$I$10:$J$11,2,FALSE)*J720,\"\")","v":""},{"$f":"IFERROR(VLOOKUP(D720,'Species List'!$I$16:$J$61,2,FALSE)*J720,\"\")","v":""},{"$f":"IFERROR(VLOOKUP(D720,'Species List'!$I$66:$J$66,2,FALSE)*J720,\"\")","v":""},{"$f":"IFERROR(VLOOKUP(D720,'Species List'!$I$71:$J$82,2,FALSE)*J720,\"\")","v":""},0,null,null,null,null,null,null,{"$f":"IFERROR(INDEX('3 - Land Summary'!$B$21:$B$120,(MATCH(AD720,'3 - Land Summary'!$C$21:$C$120,0))),\"\")","v":""}]
[null,{"$f":"IFERROR(INDEX('3 - Land Summary'!$B$21:$B$120,(MATCH('4 - Species Breakdown'!$V721,'3 - Land Summary'!$C$21:$C$120,0))),\"\")","v":""},null,null,{"$f":"IF(OR(COUNTIF('Look Up Data'!$D$149:$D$203,D721),COUNTIF('Look Up Data'!$D$149:$D$203,AE721)),\"YES\",\"NO\")","v":"NO"},null,null,{"$f":"IFERROR(INDEX('3 - Land Summary'!$G$21:$G$120,(MATCH(C721,'3 - Land Summary'!$C$21:$C$120,0))),\"\")","v":""},{"$f":"IFERROR(INDEX('3 - Land Summary'!$I$21:$I$120,(MATCH(C721,'3 - Land Summary'!$C$21:$C$120,0))),\"\")","v":""},"","",null,null,null,{"$f":"IFERROR(VLOOKUP(D721,'Species List'!$D$10:$E$46,2,FALSE)*J721,\"\")","v":""},{"$f":"IFERROR(VLOOKUP(D721,'Species List'!$D$51:$E$89,2,FALSE)*J721,\"\")","v":""},{"$f":"IFERROR(VLOOKUP(D721,'Species List'!$D$95:$E$102,2,FALSE)*J721,\"\")","v":""},{"$f":"IFERROR(VLOOKUP(D721,'Species List'!$I$10:$J$11,2,FALSE)*J721,\"\")","v":""},{"$f":"IFERROR(VLOOKUP(D721,'Species List'!$I$16:$J$61,2,FALSE)*J721,\"\")","v":""},{"$f":"IFERROR(VLOOKUP(D721,'Species List'!$I$66:$J$66,2,FALSE)*J721,\"\")","v":""},{"$f":"IFERROR(VLOOKUP(D721,'Species List'!$I$71:$J$82,2,FALSE)*J721,\"\")","v":""},0,null,null,null,null,null,null,{"$f":"IFERROR(INDEX('3 - Land Summary'!$B$21:$B$120,(MATCH(AD721,'3 - Land Summary'!$C$21:$C$120,0))),\"\")","v":""}]
[null,{"$f":"IFERROR(INDEX('3 - Land Summary'!$B$21:$B$120,(MATCH('4 - Species Breakdown'!$V722,'3 - Land Summary'!$C$21:$C$120,0))),\"\")","v":""},null,null,{"$f":"IF(OR(COUNTIF('Look Up Data'!$D$149:$D$203,D722),COUNTIF('Look Up Data'!$D$149:$D$203,AE722)),\"YES\",\"NO\")","v":"NO"},null,null,{"$f":"IFERROR(INDEX('3 - Land Summary'!$G$21:$G$120,(MATCH(C722,'3 - Land Summary'!$C$21:$C$120,0))),\"\")","v":""},{"$f":"IFERROR(INDEX('3 - Land Summary'!$I$21:$I$120,(MATCH(C722,'3 - Land Summary'!$C$21:$C$120,0))),\"\")","v":""},"","",null,null,null,{"$f":"IFERROR(VLOOKUP(D722,'Species List'!$D$10:$E$46,2,FALSE)*J722,\"\")","v":""},{"$f":"IFERROR(VLOOKUP(D722,'Species List'!$D$51:$E$89,2,FALSE)*J722,\"\")","v":""},{"$f":"IFERROR(VLOOKUP(D722,'Species List'!$D$95:$E$102,2,FALSE)*J722,\"\")","v":""},{"$f":"IFERROR(VLOOKUP(D722,'Species List'!$I$10:$J$11,2,FALSE)*J722,\"\")","v":""},{"$f":"IFERROR(VLOOKUP(D722,'Species List'!$I$16:$J$61,2,FALSE)*J722,\"\")","v":""},{"$f":"IFERROR(VLOOKUP(D722,'Species List'!$I$66:$J$66,2,FALSE)*J722,\"\")","v":""},{"$f":"IFERROR(VLOOKUP(D722,'Species List'!$I$71:$J$82,2,FALSE)*J722,\"\")","v":""},0,null,null,null,null,null,null,{"$f":"IFERROR(INDEX('3 - Land Summary'!$B$21:$B$120,(MATCH(AD722,'3 - Land Summary'!$C$21:$C$120,0))),\"\")","v":""}]
[null,{"$f":"IFERROR(INDEX('3 - Land Summary'!$B$21:$B$120,(MATCH('4 - Species Breakdown'!$V723,'3 - Land Summary'!$C$21:$C$120,0))),\"\")","v":""},null,null,{"$f":"IF(OR(COUNTIF('Look Up Data'!$D$149:$D$203,D723),COUNTIF('Look Up Data'!$D$149:$D$203,AE723)),\"YES\",\"NO\")","v":"NO"},null,null,{"$f":"IFERROR(INDEX('3 - Land Summary'!$G$21:$G$120,(MATCH(C723,'3 - Land Summary'!$C$21:$C$120,0))),\"\")","v":""},{"$f":"IFERROR(INDEX('3 - Land Summary'!$I$21:$I$120,(MATCH(C723,'3 - Land Summary'!$C$21:$C$120,0))),\"\")","v":""},"","",null,null,null,{"$f":"IFERROR(VLOOKUP(D723,'Species List'!$D$10:$E$46,2,FALSE)*J723,\"\")","v":""},{"$f":"IFERROR(VLOOKUP(D723,'Species List'!$D$51:$E$89,2,FALSE)*J723,\"\")","v":""},{"$f":"IFERROR(VLOOKUP(D723,'Species List'!$D$95:$E$102,2,FALSE)*J723,\"\")","v":""},{"$f":"IFERROR(VLOOKUP(D723,'Species List'!$I$10:$J$11,2,FALSE)*J723,\"\")","v":""},{"$f":"IFERROR(VLOOKUP(D723,'Species List'!$I$16:$J$61,2,FALSE)*J723,\"\")","v":""},{"$f":"IFERROR(VLOOKUP(D723,'Species List'!$I$66:$J$66,2,FALSE)*J723,\"\")","v":""},{"$f":"IFERROR(VLOOKUP(D723,'Species List'!$I$71:$J$82,2,FALSE)*J723,\"\")","v":""},0,null,null,null,null,null,null,{"$f":"IFERROR(INDEX('3 - Land Summary'!$B$21:$B$120,(MATCH(AD723,'3 - Land Summary'!$C$21:$C$120,0))),\"\")","v":""}]
[null,{"$f":"IFERROR(INDEX('3 - Land Summary'!$B$21:$B$120,(MATCH('4 - Species Breakdown'!$V724,'3 - Land Summary'!$C$21:$C$120,0))),\"\")","v":""},null,null,{"$f":"IF(OR(COUNTIF('Look Up Data'!$D$149:$D$203,D724),COUNTIF('Look Up Data'!$D$149:$D$203,AE724)),\"YES\",\"NO\")","v":"NO"},null,null,{"$f":"IFERROR(INDEX('3 - Land Summary'!$G$21:$G$120,(MATCH(C724,'3 - Land Summary'!$C$21:$C$120,0))),\"\")","v":""},{"$f":"IFERROR(INDEX('3 - Land Summary'!$I$21:$I$120,(MATCH(C724,'3 - Land Summary'!$C$21:$C$120,0))),\"\")","v":""},"","",null,null,null,{"$f":"IFERROR(VLOOKUP(D724,'Species List'!$D$10:$E$46,2,FALSE)*J724,\"\")","v":""},{"$f":"IFERROR(VLOOKUP(D724,'Species List'!$D$51:$E$89,2,FALSE)*J724,\"\")","v":""},{"$f":"IFERROR(VLOOKUP(D724,'Species List'!$D$95:$E$102,2,FALSE)*J724,\"\")","v":""},{"$f":"IFERROR(VLOOKUP(D724,'Species List'!$I$10:$J$11,2,FALSE)*J724,\"\")","v":""},{"$f":"IFERROR(VLOOKUP(D724,'Species List'!$I$16:$J$61,2,FALSE)*J724,\"\")","v":""},{"$f":"IFERROR(VLOOKUP(D724,'Species List'!$I$66:$J$66,2,FALSE)*J724,\"\")","v":""},{"$f":"IFERROR(VLOOKUP(D724,'Species List'!$I$71:$J$82,2,FALSE)*J724,\"\")","v":""},0,null,null,null,null,null,null,{"$f":"IFERROR(INDEX('3 - Land Summary'!$B$21:$B$120,(MATCH(AD724,'3 - Land Summary'!$C$21:$C$120,0))),\"\")","v":""}]
[null,{"$f":"IFERROR(INDEX('3 - Land Summary'!$B$21:$B$120,(MATCH('4 - Species Breakdown'!$V725,'3 - Land Summary'!$C$21:$C$120,0))),\"\")","v":""},null,null,{"$f":"IF(OR(COUNTIF('Look Up Data'!$D$149:$D$203,D725),COUNTIF('Look Up Data'!$D$149:$D$203,AE725)),\"YES\",\"NO\")","v":"NO"},null,null,{"$f":"IFERROR(INDEX('3 - Land Summary'!$G$21:$G$120,(MATCH(C725,'3 - Land Summary'!$C$21:$C$120,0))),\"\")","v":""},{"$f":"IFERROR(INDEX('3 - Land Summary'!$I$21:$I$120,(MATCH(C725,'3 - Land Summary'!$C$21:$C$120,0))),\"\")","v":""},"","",null,null,null,{"$f":"IFERROR(VLOOKUP(D725,'Species List'!$D$10:$E$46,2,FALSE)*J725,\"\")","v":""},{"$f":"IFERROR(VLOOKUP(D725,'Species List'!$D$51:$E$89,2,FALSE)*J725,\"\")","v":""},{"$f":"IFERROR(VLOOKUP(D725,'Species List'!$D$95:$E$102,2,FALSE)*J725,\"\")","v":""},{"$f":"IFERROR(VLOOKUP(D725,'Species List'!$I$10:$J$11,2,FALSE)*J725,\"\")","v":""},{"$f":"IFERROR(VLOOKUP(D725,'Species List'!$I$16:$J$61,2,FALSE)*J725,\"\")","v":""},{"$f":"IFERROR(VLOOKUP(D725,'Species List'!$I$66:$J$66,2,FALSE)*J725,\"\")","v":""},{"$f":"IFERROR(VLOOKUP(D725,'Species List'!$I$71:$J$82,2,FALSE)*J725,\"\")","v":""},0,null,null,null,null,null,null,{"$f":"IFERROR(INDEX('3 - Land Summary'!$B$21:$B$120,(MATCH(AD725,'3 - Land Summary'!$C$21:$C$120,0))),\"\")","v":""}]
[null,{"$f":"IFERROR(INDEX('3 - Land Summary'!$B$21:$B$120,(MATCH('4 - Species Breakdown'!$V726,'3 - Land Summary'!$C$21:$C$120,0))),\"\")","v":""},null,null,{"$f":"IF(OR(COUNTIF('Look Up Data'!$D$149:$D$203,D726),COUNTIF('Look Up Data'!$D$149:$D$203,AE726)),\"YES\",\"NO\")","v":"NO"},null,null,{"$f":"IFERROR(INDEX('3 - Land Summary'!$G$21:$G$120,(MATCH(C726,'3 - Land Summary'!$C$21:$C$120,0))),\"\")","v":""},{"$f":"IFERROR(INDEX('3 - Land Summary'!$I$21:$I$120,(MATCH(C726,'3 - Land Summary'!$C$21:$C$120,0))),\"\")","v":""},"","",null,null,null,{"$f":"IFERROR(VLOOKUP(D726,'Species List'!$D$10:$E$46,2,FALSE)*J726,\"\")","v":""},{"$f":"IFERROR(VLOOKUP(D726,'Species List'!$D$51:$E$89,2,FALSE)*J726,\"\")","v":""},{"$f":"IFERROR(VLOOKUP(D726,'Species List'!$D$95:$E$102,2,FALSE)*J726,\"\")","v":""},{"$f":"IFERROR(VLOOKUP(D726,'Species List'!$I$10:$J$11,2,FALSE)*J726,\"\")","v":""},{"$f":"IFERROR(VLOOKUP(D726,'Species List'!$I$16:$J$61,2,FALSE)*J726,\"\")","v":""},{"$f":"IFERROR(VLOOKUP(D726,'Species List'!$I$66:$J$66,2,FALSE)*J726,\"\")","v":""},{"$f":"IFERROR(VLOOKUP(D726,'Species List'!$I$71:$J$82,2,FALSE)*J726,\"\")","v":""},0,null,null,null,null,null,null,{"$f":"IFERROR(INDEX('3 - Land Summary'!$B$21:$B$120,(MATCH(AD726,'3 - Land Summary'!$C$21:$C$120,0))),\"\")","v":""}]
[null,{"$f":"IFERROR(INDEX('3 - Land Summary'!$B$21:$B$120,(MATCH('4 - Species Breakdown'!$V727,'3 - Land Summary'!$C$21:$C$120,0))),\"\")","v":""},null,null,{"$f":"IF(OR(COUNTIF('Look Up Data'!$D$149:$D$203,D727),COUNTIF('Look Up Data'!$D$149:$D$203,AE727)),\"YES\",\"NO\")","v":"NO"},null,null,{"$f":"IFERROR(INDEX('3 - Land Summary'!$G$21:$G$120,(MATCH(C727,'3 - Land Summary'!$C$21:$C$120,0))),\"\")","v":""},{"$f":"IFERROR(INDEX('3 - Land Summary'!$I$21:$I$120,(MATCH(C727,'3 - Land Summary'!$C$21:$C$120,0))),\"\")","v":""},"","",null,null,null,{"$f":"IFERROR(VLOOKUP(D727,'Species List'!$D$10:$E$46,2,FALSE)*J727,\"\")","v":""},{"$f":"IFERROR(VLOOKUP(D727,'Species List'!$D$51:$E$89,2,FALSE)*J727,\"\")","v":""},{"$f":"IFERROR(VLOOKUP(D727,'Species List'!$D$95:$E$102,2,FALSE)*J727,\"\")","v":""},{"$f":"IFERROR(VLOOKUP(D727,'Species List'!$I$10:$J$11,2,FALSE)*J727,\"\")","v":""},{"$f":"IFERROR(VLOOKUP(D727,'Species List'!$I$16:$J$61,2,FALSE)*J727,\"\")","v":""},{"$f":"IFERROR(VLOOKUP(D727,'Species List'!$I$66:$J$66,2,FALSE)*J727,\"\")","v":""},{"$f":"IFERROR(VLOOKUP(D727,'Species List'!$I$71:$J$82,2,FALSE)*J727,\"\")","v":""},0,null,null,null,null,null,null,{"$f":"IFERROR(INDEX('3 - Land Summary'!$B$21:$B$120,(MATCH(AD727,'3 - Land Summary'!$C$21:$C$120,0))),\"\")","v":""}]
[null,{"$f":"IFERROR(INDEX('3 - Land Summary'!$B$21:$B$120,(MATCH('4 - Species Breakdown'!$V728,'3 - Land Summary'!$C$21:$C$120,0))),\"\")","v":""},null,null,{"$f":"IF(OR(COUNTIF('Look Up Data'!$D$149:$D$203,D728),COUNTIF('Look Up Data'!$D$149:$D$203,AE728)),\"YES\",\"NO\")","v":"NO"},null,null,{"$f":"IFERROR(INDEX('3 - Land Summary'!$G$21:$G$120,(MATCH(C728,'3 - Land Summary'!$C$21:$C$120,0))),\"\")","v":""},{"$f":"IFERROR(INDEX('3 - Land Summary'!$I$21:$I$120,(MATCH(C728,'3 - Land Summary'!$C$21:$C$120,0))),\"\")","v":""},"","",null,null,null,{"$f":"IFERROR(VLOOKUP(D728,'Species List'!$D$10:$E$46,2,FALSE)*J728,\"\")","v":""},{"$f":"IFERROR(VLOOKUP(D728,'Species List'!$D$51:$E$89,2,FALSE)*J728,\"\")","v":""},{"$f":"IFERROR(VLOOKUP(D728,'Species List'!$D$95:$E$102,2,FALSE)*J728,\"\")","v":""},{"$f":"IFERROR(VLOOKUP(D728,'Species List'!$I$10:$J$11,2,FALSE)*J728,\"\")","v":""},{"$f":"IFERROR(VLOOKUP(D728,'Species List'!$I$16:$J$61,2,FALSE)*J728,\"\")","v":""},{"$f":"IFERROR(VLOOKUP(D728,'Species List'!$I$66:$J$66,2,FALSE)*J728,\"\")","v":""},{"$f":"IFERROR(VLOOKUP(D728,'Species List'!$I$71:$J$82,2,FALSE)*J728,\"\")","v":""},0,null,null,null,null,null,null,{"$f":"IFERROR(INDEX('3 - Land Summary'!$B$21:$B$120,(MATCH(AD728,'3 - Land Summary'!$C$21:$C$120,0))),\"\")","v":""}]
[null,{"$f":"IFERROR(INDEX('3 - Land Summary'!$B$21:$B$120,(MATCH('4 - Species Breakdown'!$V729,'3 - Land Summary'!$C$21:$C$120,0))),\"\")","v":""},null,null,{"$f":"IF(OR(COUNTIF('Look Up Data'!$D$149:$D$203,D729),COUNTIF('Look Up Data'!$D$149:$D$203,AE729)),\"YES\",\"NO\")","v":"NO"},null,null,{"$f":"IFERROR(INDEX('3 - Land Summary'!$G$21:$G$120,(MATCH(C729,'3 - Land Summary'!$C$21:$C$120,0))),\"\")","v":""},{"$f":"IFERROR(INDEX('3 - Land Summary'!$I$21:$I$120,(MATCH(C729,'3 - Land Summary'!$C$21:$C$120,0))),\"\")","v":""},"","",null,null,null,{"$f":"IFERROR(VLOOKUP(D729,'Species List'!$D$10:$E$46,2,FALSE)*J729,\"\")","v":""},{"$f":"IFERROR(VLOOKUP(D729,'Species List'!$D$51:$E$89,2,FALSE)*J729,\"\")","v":""},{"$f":"IFERROR(VLOOKUP(D729,'Species List'!$D$95:$E$102,2,FALSE)*J729,\"\")","v":""},{"$f":"IFERROR(VLOOKUP(D729,'Species List'!$I$10:$J$11,2,FALSE)*J729,\"\")","v":""},{"$f":"IFERROR(VLOOKUP(D729,'Species List'!$I$16:$J$61,2,FALSE)*J729,\"\")","v":""},{"$f":"IFERROR(VLOOKUP(D729,'Species List'!$I$66:$J$66,2,FALSE)*J729,\"\")","v":""},{"$f":"IFERROR(VLOOKUP(D729,'Species List'!$I$71:$J$82,2,FALSE)*J729,\"\")","v":""},0,null,null,null,null,null,null,{"$f":"IFERROR(INDEX('3 - Land Summary'!$B$21:$B$120,(MATCH(AD729,'3 - Land Summary'!$C$21:$C$120,0))),\"\")","v":""}]
[null,{"$f":"IFERROR(INDEX('3 - Land Summary'!$B$21:$B$120,(MATCH('4 - Species Breakdown'!$V730,'3 - Land Summary'!$C$21:$C$120,0))),\"\")","v":""},null,null,{"$f":"IF(OR(COUNTIF('Look Up Data'!$D$149:$D$203,D730),COUNTIF('Look Up Data'!$D$149:$D$203,AE730)),\"YES\",\"NO\")","v":"NO"},null,null,{"$f":"IFERROR(INDEX('3 - Land Summary'!$G$21:$G$120,(MATCH(C730,'3 - Land Summary'!$C$21:$C$120,0))),\"\")","v":""},{"$f":"IFERROR(INDEX('3 - Land Summary'!$I$21:$I$120,(MATCH(C730,'3 - Land Summary'!$C$21:$C$120,0))),\"\")","v":""},"","",null,null,null,{"$f":"IFERROR(VLOOKUP(D730,'Species List'!$D$10:$E$46,2,FALSE)*J730,\"\")","v":""},{"$f":"IFERROR(VLOOKUP(D730,'Species List'!$D$51:$E$89,2,FALSE)*J730,\"\")","v":""},{"$f":"IFERROR(VLOOKUP(D730,'Species List'!$D$95:$E$102,2,FALSE)*J730,\"\")","v":""},{"$f":"IFERROR(VLOOKUP(D730,'Species List'!$I$10:$J$11,2,FALSE)*J730,\"\")","v":""},{"$f":"IFERROR(VLOOKUP(D730,'Species List'!$I$16:$J$61,2,FALSE)*J730,\"\")","v":""},{"$f":"IFERROR(VLOOKUP(D730,'Species List'!$I$66:$J$66,2,FALSE)*J730,\"\")","v":""},{"$f":"IFERROR(VLOOKUP(D730,'Species List'!$I$71:$J$82,2,FALSE)*J730,\"\")","v":""},0,null,null,null,null,null,null,{"$f":"IFERROR(INDEX('3 - Land Summary'!$B$21:$B$120,(MATCH(AD730,'3 - Land Summary'!$C$21:$C$120,0))),\"\")","v":""}]
[null,{"$f":"IFERROR(INDEX('3 - Land Summary'!$B$21:$B$120,(MATCH('4 - Species Breakdown'!$V731,'3 - Land Summary'!$C$21:$C$120,0))),\"\")","v":""},null,null,{"$f":"IF(OR(COUNTIF('Look Up Data'!$D$149:$D$203,D731),COUNTIF('Look Up Data'!$D$149:$D$203,AE731)),\"YES\",\"NO\")","v":"NO"},null,null,{"$f":"IFERROR(INDEX('3 - Land Summary'!$G$21:$G$120,(MATCH(C731,'3 - Land Summary'!$C$21:$C$120,0))),\"\")","v":""},{"$f":"IFERROR(INDEX('3 - Land Summary'!$I$21:$I$120,(MATCH(C731,'3 - Land Summary'!$C$21:$C$120,0))),\"\")","v":""},"","",null,null,null,{"$f":"IFERROR(VLOOKUP(D731,'Species List'!$D$10:$E$46,2,FALSE)*J731,\"\")","v":""},{"$f":"IFERROR(VLOOKUP(D731,'Species List'!$D$51:$E$89,2,FALSE)*J731,\"\")","v":""},{"$f":"IFERROR(VLOOKUP(D731,'Species List'!$D$95:$E$102,2,FALSE)*J731,\"\")","v":""},{"$f":"IFERROR(VLOOKUP(D731,'Species List'!$I$10:$J$11,2,FALSE)*J731,\"\")","v":""},{"$f":"IFERROR(VLOOKUP(D731,'Species List'!$I$16:$J$61,2,FALSE)*J731,\"\")","v":""},{"$f":"IFERROR(VLOOKUP(D731,'Species List'!$I$66:$J$66,2,FALSE)*J731,\"\")","v":""},{"$f":"IFERROR(VLOOKUP(D731,'Species List'!$I$71:$J$82,2,FALSE)*J731,\"\")","v":""},0,null,null,null,null,null,null,{"$f":"IFERROR(INDEX('3 - Land Summary'!$B$21:$B$120,(MATCH(AD731,'3 - Land Summary'!$C$21:$C$120,0))),\"\")","v":""}]
[null,{"$f":"IFERROR(INDEX('3 - Land Summary'!$B$21:$B$120,(MATCH('4 - Species Breakdown'!$V732,'3 - Land Summary'!$C$21:$C$120,0))),\"\")","v":""},null,null,{"$f":"IF(OR(COUNTIF('Look Up Data'!$D$149:$D$203,D732),COUNTIF('Look Up Data'!$D$149:$D$203,AE732)),\"YES\",\"NO\")","v":"NO"},null,null,{"$f":"IFERROR(INDEX('3 - Land Summary'!$G$21:$G$120,(MATCH(C732,'3 - Land Summary'!$C$21:$C$120,0))),\"\")","v":""},{"$f":"IFERROR(INDEX('3 - Land Summary'!$I$21:$I$120,(MATCH(C732,'3 - Land Summary'!$C$21:$C$120,0))),\"\")","v":""},"","",null,null,null,{"$f":"IFERROR(VLOOKUP(D732,'Species List'!$D$10:$E$46,2,FALSE)*J732,\"\")","v":""},{"$f":"IFERROR(VLOOKUP(D732,'Species List'!$D$51:$E$89,2,FALSE)*J732,\"\")","v":""},{"$f":"IFERROR(VLOOKUP(D732,'Species List'!$D$95:$E$102,2,FALSE)*J732,\"\")","v":""},{"$f":"IFERROR(VLOOKUP(D732,'Species List'!$I$10:$J$11,2,FALSE)*J732,\"\")","v":""},{"$f":"IFERROR(VLOOKUP(D732,'Species List'!$I$16:$J$61,2,FALSE)*J732,\"\")","v":""},{"$f":"IFERROR(VLOOKUP(D732,'Species List'!$I$66:$J$66,2,FALSE)*J732,\"\")","v":""},{"$f":"IFERROR(VLOOKUP(D732,'Species List'!$I$71:$J$82,2,FALSE)*J732,\"\")","v":""},0,null,null,null,null,null,null,{"$f":"IFERROR(INDEX('3 - Land Summary'!$B$21:$B$120,(MATCH(AD732,'3 - Land Summary'!$C$21:$C$120,0))),\"\")","v":""}]
[null,{"$f":"IFERROR(INDEX('3 - Land Summary'!$B$21:$B$120,(MATCH('4 - Species Breakdown'!$V733,'3 - Land Summary'!$C$21:$C$120,0))),\"\")","v":""},null,null,{"$f":"IF(OR(COUNTIF('Look Up Data'!$D$149:$D$203,D733),COUNTIF('Look Up Data'!$D$149:$D$203,AE733)),\"YES\",\"NO\")","v":"NO"},null,null,{"$f":"IFERROR(INDEX('3 - Land Summary'!$G$21:$G$120,(MATCH(C733,'3 - Land Summary'!$C$21:$C$120,0))),\"\")","v":""},{"$f":"IFERROR(INDEX('3 - Land Summary'!$I$21:$I$120,(MATCH(C733,'3 - Land Summary'!$C$21:$C$120,0))),\"\")","v":""},"","",null,null,null,{"$f":"IFERROR(VLOOKUP(D733,'Species List'!$D$10:$E$46,2,FALSE)*J733,\"\")","v":""},{"$f":"IFERROR(VLOOKUP(D733,'Species List'!$D$51:$E$89,2,FALSE)*J733,\"\")","v":""},{"$f":"IFERROR(VLOOKUP(D733,'Species List'!$D$95:$E$102,2,FALSE)*J733,\"\")","v":""},{"$f":"IFERROR(VLOOKUP(D733,'Species List'!$I$10:$J$11,2,FALSE)*J733,\"\")","v":""},{"$f":"IFERROR(VLOOKUP(D733,'Species List'!$I$16:$J$61,2,FALSE)*J733,\"\")","v":""},{"$f":"IFERROR(VLOOKUP(D733,'Species List'!$I$66:$J$66,2,FALSE)*J733,\"\")","v":""},{"$f":"IFERROR(VLOOKUP(D733,'Species List'!$I$71:$J$82,2,FALSE)*J733,\"\")","v":""},0,null,null,null,null,null,null,{"$f":"IFERROR(INDEX('3 - Land Summary'!$B$21:$B$120,(MATCH(AD733,'3 - Land Summary'!$C$21:$C$120,0))),\"\")","v":""}]
[null,{"$f":"IFERROR(INDEX('3 - Land Summary'!$B$21:$B$120,(MATCH('4 - Species Breakdown'!$V734,'3 - Land Summary'!$C$21:$C$120,0))),\"\")","v":""},null,null,{"$f":"IF(OR(COUNTIF('Look Up Data'!$D$149:$D$203,D734),COUNTIF('Look Up Data'!$D$149:$D$203,AE734)),\"YES\",\"NO\")","v":"NO"},null,null,{"$f":"IFERROR(INDEX('3 - Land Summary'!$G$21:$G$120,(MATCH(C734,'3 - Land Summary'!$C$21:$C$120,0))),\"\")","v":""},{"$f":"IFERROR(INDEX('3 - Land Summary'!$I$21:$I$120,(MATCH(C734,'3 - Land Summary'!$C$21:$C$120,0))),\"\")","v":""},"","",null,null,null,{"$f":"IFERROR(VLOOKUP(D734,'Species List'!$D$10:$E$46,2,FALSE)*J734,\"\")","v":""},{"$f":"IFERROR(VLOOKUP(D734,'Species List'!$D$51:$E$89,2,FALSE)*J734,\"\")","v":""},{"$f":"IFERROR(VLOOKUP(D734,'Species List'!$D$95:$E$102,2,FALSE)*J734,\"\")","v":""},{"$f":"IFERROR(VLOOKUP(D734,'Species List'!$I$10:$J$11,2,FALSE)*J734,\"\")","v":""},{"$f":"IFERROR(VLOOKUP(D734,'Species List'!$I$16:$J$61,2,FALSE)*J734,\"\")","v":""},{"$f":"IFERROR(VLOOKUP(D734,'Species List'!$I$66:$J$66,2,FALSE)*J734,\"\")","v":""},{"$f":"IFERROR(VLOOKUP(D734,'Species List'!$I$71:$J$82,2,FALSE)*J734,\"\")","v":""},0,null,null,null,null,null,null,{"$f":"IFERROR(INDEX('3 - Land Summary'!$B$21:$B$120,(MATCH(AD734,'3 - Land Summary'!$C$21:$C$120,0))),\"\")","v":""}]
[null,{"$f":"IFERROR(INDEX('3 - Land Summary'!$B$21:$B$120,(MATCH('4 - Species Breakdown'!$V735,'3 - Land Summary'!$C$21:$C$120,0))),\"\")","v":""},null,null,{"$f":"IF(OR(COUNTIF('Look Up Data'!$D$149:$D$203,D735),COUNTIF('Look Up Data'!$D$149:$D$203,AE735)),\"YES\",\"NO\")","v":"NO"},null,null,{"$f":"IFERROR(INDEX('3 - Land Summary'!$G$21:$G$120,(MATCH(C735,'3 - Land Summary'!$C$21:$C$120,0))),\"\")","v":""},{"$f":"IFERROR(INDEX('3 - Land Summary'!$I$21:$I$120,(MATCH(C735,'3 - Land Summary'!$C$21:$C$120,0))),\"\")","v":""},{"$f":"IFERROR(((H735-I735)*F735)/100,\"\")","v":""},"",null,null,null,{"$f":"IFERROR(VLOOKUP(D735,'Species List'!$D$10:$E$46,2,FALSE)*J735,\"\")","v":""},{"$f":"IFERROR(VLOOKUP(D735,'Species List'!$D$51:$E$89,2,FALSE)*J735,\"\")","v":""},{"$f":"IFERROR(VLOOKUP(D735,'Species List'!$D$95:$E$102,2,FALSE)*J735,\"\")","v":""},{"$f":"IFERROR(VLOOKUP(D735,'Species List'!$I$10:$J$11,2,FALSE)*J735,\"\")","v":""},{"$f":"IFERROR(VLOOKUP(D735,'Species List'!$I$16:$J$61,2,FALSE)*J735,\"\")","v":""},{"$f":"IFERROR(VLOOKUP(D735,'Species List'!$I$66:$J$66,2,FALSE)*J735,\"\")","v":""},{"$f":"IFERROR(VLOOKUP(D735,'Species List'!$I$71:$J$82,2,FALSE)*J735,\"\")","v":""},{"$f":"C735","v":0},null,null,null,null,null,null,{"$f":"IFERROR(INDEX('3 - Land Summary'!$B$21:$B$120,(MATCH(AD735,'3 - Land Summary'!$C$21:$C$120,0))),\"\")","v":""}]
[null,{"$f":"IFERROR(INDEX('3 - Land Summary'!$B$21:$B$120,(MATCH('4 - Species Breakdown'!$V736,'3 - Land Summary'!$C$21:$C$120,0))),\"\")","v":""},null,null,{"$f":"IF(OR(COUNTIF('Look Up Data'!$D$149:$D$203,D736),COUNTIF('Look Up Data'!$D$149:$D$203,AE736)),\"YES\",\"NO\")","v":"NO"},null,null,{"$f":"IFERROR(INDEX('3 - Land Summary'!$G$21:$G$120,(MATCH(C736,'3 - Land Summary'!$C$21:$C$120,0))),\"\")","v":""},{"$f":"IFERROR(INDEX('3 - Land Summary'!$I$21:$I$120,(MATCH(C736,'3 - Land Summary'!$C$21:$C$120,0))),\"\")","v":""},"",{"$f":"IFERROR(ROUND(J736*G736,0),\"\")","v":""},null,null,null,{"$f":"IFERROR(VLOOKUP(D736,'Species List'!$D$10:$E$46,2,FALSE)*J736,\"\")","v":""},{"$f":"IFERROR(VLOOKUP(D736,'Species List'!$D$51:$E$89,2,FALSE)*J736,\"\")","v":""},{"$f":"IFERROR(VLOOKUP(D736,'Species List'!$D$95:$E$102,2,FALSE)*J736,\"\")","v":""},{"$f":"IFERROR(VLOOKUP(D736,'Species List'!$I$10:$J$11,2,FALSE)*J736,\"\")","v":""},{"$f":"IFERROR(VLOOKUP(D736,'Species List'!$I$16:$J$61,2,FALSE)*J736,\"\")","v":""},{"$f":"IFERROR(VLOOKUP(D736,'Species List'!$I$66:$J$66,2,FALSE)*J736,\"\")","v":""},{"$f":"IFERROR(VLOOKUP(D736,'Species List'!$I$71:$J$82,2,FALSE)*J736,\"\")","v":""},0,null,null,null,null,null,null,{"$f":"IFERROR(INDEX('3 - Land Summary'!$B$21:$B$120,(MATCH(AD736,'3 - Land Summary'!$C$21:$C$120,0))),\"\")","v":""}]
[null,{"$f":"IFERROR(INDEX('3 - Land Summary'!$B$21:$B$120,(MATCH('4 - Species Breakdown'!$V737,'3 - Land Summary'!$C$21:$C$120,0))),\"\")","v":""},null,null,{"$f":"IF(OR(COUNTIF('Look Up Data'!$D$149:$D$203,D737),COUNTIF('Look Up Data'!$D$149:$D$203,AE737)),\"YES\",\"NO\")","v":"NO"},null,null,{"$f":"IFERROR(INDEX('3 - Land Summary'!$G$21:$G$120,(MATCH(C737,'3 - Land Summary'!$C$21:$C$120,0))),\"\")","v":""},{"$f":"IFERROR(INDEX('3 - Land Summary'!$I$21:$I$120,(MATCH(C737,'3 - Land Summary'!$C$21:$C$120,0))),\"\")","v":""},"","",null,null,null,{"$f":"IFERROR(VLOOKUP(D737,'Species List'!$D$10:$E$46,2,FALSE)*J737,\"\")","v":""},{"$f":"IFERROR(VLOOKUP(D737,'Species List'!$D$51:$E$89,2,FALSE)*J737,\"\")","v":""},{"$f":"IFERROR(VLOOKUP(D737,'Species List'!$D$95:$E$102,2,FALSE)*J737,\"\")","v":""},{"$f":"IFERROR(VLOOKUP(D737,'Species List'!$I$10:$J$11,2,FALSE)*J737,\"\")","v":""},{"$f":"IFERROR(VLOOKUP(D737,'Species List'!$I$16:$J$61,2,FALSE)*J737,\"\")","v":""},{"$f":"IFERROR(VLOOKUP(D737,'Species List'!$I$66:$J$66,2,FALSE)*J737,\"\")","v":""},{"$f":"IFERROR(VLOOKUP(D737,'Species List'!$I$71:$J$82,2,FALSE)*J737,\"\")","v":""},0,null,null,null,null,null,null,{"$f":"IFERROR(INDEX('3 - Land Summary'!$B$21:$B$120,(MATCH(AD737,'3 - Land Summary'!$C$21:$C$120,0))),\"\")","v":""}]
[null,{"$f":"IFERROR(INDEX('3 - Land Summary'!$B$21:$B$120,(MATCH('4 - Species Breakdown'!$V738,'3 - Land Summary'!$C$21:$C$120,0))),\"\")","v":""},null,null,{"$f":"IF(OR(COUNTIF('Look Up Data'!$D$149:$D$203,D738),COUNTIF('Look Up Data'!$D$149:$D$203,AE738)),\"YES\",\"NO\")","v":"NO"},null,null,{"$f":"IFERROR(INDEX('3 - Land Summary'!$G$21:$G$120,(MATCH(C738,'3 - Land Summary'!$C$21:$C$120,0))),\"\")","v":""},{"$f":"IFERROR(INDEX('3 - Land Summary'!$I$21:$I$120,(MATCH(C738,'3 - Land Summary'!$C$21:$C$120,0))),\"\")","v":""},"","",null,null,null,{"$f":"IFERROR(VLOOKUP(D738,'Species List'!$D$10:$E$46,2,FALSE)*J738,\"\")","v":""},{"$f":"IFERROR(VLOOKUP(D738,'Species List'!$D$51:$E$89,2,FALSE)*J738,\"\")","v":""},{"$f":"IFERROR(VLOOKUP(D738,'Species List'!$D$95:$E$102,2,FALSE)*J738,\"\")","v":""},{"$f":"IFERROR(VLOOKUP(D738,'Species List'!$I$10:$J$11,2,FALSE)*J738,\"\")","v":""},{"$f":"IFERROR(VLOOKUP(D738,'Species List'!$I$16:$J$61,2,FALSE)*J738,\"\")","v":""},{"$f":"IFERROR(VLOOKUP(D738,'Species List'!$I$66:$J$66,2,FALSE)*J738,\"\")","v":""},{"$f":"IFERROR(VLOOKUP(D738,'Species List'!$I$71:$J$82,2,FALSE)*J738,\"\")","v":""},0,null,null,null,null,null,null,{"$f":"IFERROR(INDEX('3 - Land Summary'!$B$21:$B$120,(MATCH(AD738,'3 - Land Summary'!$C$21:$C$120,0))),\"\")","v":""}]
[null,{"$f":"IFERROR(INDEX('3 - Land Summary'!$B$21:$B$120,(MATCH('4 - Species Breakdown'!$V739,'3 - Land Summary'!$C$21:$C$120,0))),\"\")","v":""},null,null,{"$f":"IF(OR(COUNTIF('Look Up Data'!$D$149:$D$203,D739),COUNTIF('Look Up Data'!$D$149:$D$203,AE739)),\"YES\",\"NO\")","v":"NO"},null,null,{"$f":"IFERROR(INDEX('3 - Land Summary'!$G$21:$G$120,(MATCH(C739,'3 - Land Summary'!$C$21:$C$120,0))),\"\")","v":""},{"$f":"IFERROR(INDEX('3 - Land Summary'!$I$21:$I$120,(MATCH(C739,'3 - Land Summary'!$C$21:$C$120,0))),\"\")","v":""},"","",null,null,null,{"$f":"IFERROR(VLOOKUP(D739,'Species List'!$D$10:$E$46,2,FALSE)*J739,\"\")","v":""},{"$f":"IFERROR(VLOOKUP(D739,'Species List'!$D$51:$E$89,2,FALSE)*J739,\"\")","v":""},{"$f":"IFERROR(VLOOKUP(D739,'Species List'!$D$95:$E$102,2,FALSE)*J739,\"\")","v":""},{"$f":"IFERROR(VLOOKUP(D739,'Species List'!$I$10:$J$11,2,FALSE)*J739,\"\")","v":""},{"$f":"IFERROR(VLOOKUP(D739,'Species List'!$I$16:$J$61,2,FALSE)*J739,\"\")","v":""},{"$f":"IFERROR(VLOOKUP(D739,'Species List'!$I$66:$J$66,2,FALSE)*J739,\"\")","v":""},{"$f":"IFERROR(VLOOKUP(D739,'Species List'!$I$71:$J$82,2,FALSE)*J739,\"\")","v":""},0,null,null,null,null,null,null,{"$f":"IFERROR(INDEX('3 - Land Summary'!$B$21:$B$120,(MATCH(AD739,'3 - Land Summary'!$C$21:$C$120,0))),\"\")","v":""}]
[null,{"$f":"IFERROR(INDEX('3 - Land Summary'!$B$21:$B$120,(MATCH('4 - Species Breakdown'!$V740,'3 - Land Summary'!$C$21:$C$120,0))),\"\")","v":""},null,null,{"$f":"IF(OR(COUNTIF('Look Up Data'!$D$149:$D$203,D740),COUNTIF('Look Up Data'!$D$149:$D$203,AE740)),\"YES\",\"NO\")","v":"NO"},null,null,{"$f":"IFERROR(INDEX('3 - Land Summary'!$G$21:$G$120,(MATCH(C740,'3 - Land Summary'!$C$21:$C$120,0))),\"\")","v":""},{"$f":"IFERROR(INDEX('3 - Land Summary'!$I$21:$I$120,(MATCH(C740,'3 - Land Summary'!$C$21:$C$120,0))),\"\")","v":""},"","",null,null,null,{"$f":"IFERROR(VLOOKUP(D740,'Species List'!$D$10:$E$46,2,FALSE)*J740,\"\")","v":""},{"$f":"IFERROR(VLOOKUP(D740,'Species List'!$D$51:$E$89,2,FALSE)*J740,\"\")","v":""},{"$f":"IFERROR(VLOOKUP(D740,'Species List'!$D$95:$E$102,2,FALSE)*J740,\"\")","v":""},{"$f":"IFERROR(VLOOKUP(D740,'Species List'!$I$10:$J$11,2,FALSE)*J740,\"\")","v":""},{"$f":"IFERROR(VLOOKUP(D740,'Species List'!$I$16:$J$61,2,FALSE)*J740,\"\")","v":""},{"$f":"IFERROR(VLOOKUP(D740,'Species List'!$I$66:$J$66,2,FALSE)*J740,\"\")","v":""},{"$f":"IFERROR(VLOOKUP(D740,'Species List'!$I$71:$J$82,2,FALSE)*J740,\"\")","v":""},0,null,null,null,null,null,null,{"$f":"IFERROR(INDEX('3 - Land Summary'!$B$21:$B$120,(MATCH(AD740,'3 - Land Summary'!$C$21:$C$120,0))),\"\")","v":""}]
[null,{"$f":"IFERROR(INDEX('3 - Land Summary'!$B$21:$B$120,(MATCH('4 - Species Breakdown'!$V741,'3 - Land Summary'!$C$21:$C$120,0))),\"\")","v":""},null,null,{"$f":"IF(OR(COUNTIF('Look Up Data'!$D$149:$D$203,D741),COUNTIF('Look Up Data'!$D$149:$D$203,AE741)),\"YES\",\"NO\")","v":"NO"},null,null,{"$f":"IFERROR(INDEX('3 - Land Summary'!$G$21:$G$120,(MATCH(C741,'3 - Land Summary'!$C$21:$C$120,0))),\"\")","v":""},{"$f":"IFERROR(INDEX('3 - Land Summary'!$I$21:$I$120,(MATCH(C741,'3 - Land Summary'!$C$21:$C$120,0))),\"\")","v":""},"","",null,null,null,{"$f":"IFERROR(VLOOKUP(D741,'Species List'!$D$10:$E$46,2,FALSE)*J741,\"\")","v":""},{"$f":"IFERROR(VLOOKUP(D741,'Species List'!$D$51:$E$89,2,FALSE)*J741,\"\")","v":""},{"$f":"IFERROR(VLOOKUP(D741,'Species List'!$D$95:$E$102,2,FALSE)*J741,\"\")","v":""},{"$f":"IFERROR(VLOOKUP(D741,'Species List'!$I$10:$J$11,2,FALSE)*J741,\"\")","v":""},{"$f":"IFERROR(VLOOKUP(D741,'Species List'!$I$16:$J$61,2,FALSE)*J741,\"\")","v":""},{"$f":"IFERROR(VLOOKUP(D741,'Species List'!$I$66:$J$66,2,FALSE)*J741,\"\")","v":""},{"$f":"IFERROR(VLOOKUP(D741,'Species List'!$I$71:$J$82,2,FALSE)*J741,\"\")","v":""},0,null,null,null,null,null,null,{"$f":"IFERROR(INDEX('3 - Land Summary'!$B$21:$B$120,(MATCH(AD741,'3 - Land Summary'!$C$21:$C$120,0))),\"\")","v":""}]
[null,{"$f":"IFERROR(INDEX('3 - Land Summary'!$B$21:$B$120,(MATCH('4 - Species Breakdown'!$V742,'3 - Land Summary'!$C$21:$C$120,0))),\"\")","v":""},null,null,{"$f":"IF(OR(COUNTIF('Look Up Data'!$D$149:$D$203,D742),COUNTIF('Look Up Data'!$D$149:$D$203,AE742)),\"YES\",\"NO\")","v":"NO"},null,null,{"$f":"IFERROR(INDEX('3 - Land Summary'!$G$21:$G$120,(MATCH(C742,'3 - Land Summary'!$C$21:$C$120,0))),\"\")","v":""},{"$f":"IFERROR(INDEX('3 - Land Summary'!$I$21:$I$120,(MATCH(C742,'3 - Land Summary'!$C$21:$C$120,0))),\"\")","v":""},"","",null,null,null,{"$f":"IFERROR(VLOOKUP(D742,'Species List'!$D$10:$E$46,2,FALSE)*J742,\"\")","v":""},{"$f":"IFERROR(VLOOKUP(D742,'Species List'!$D$51:$E$89,2,FALSE)*J742,\"\")","v":""},{"$f":"IFERROR(VLOOKUP(D742,'Species List'!$D$95:$E$102,2,FALSE)*J742,\"\")","v":""},{"$f":"IFERROR(VLOOKUP(D742,'Species List'!$I$10:$J$11,2,FALSE)*J742,\"\")","v":""},{"$f":"IFERROR(VLOOKUP(D742,'Species List'!$I$16:$J$61,2,FALSE)*J742,\"\")","v":""},{"$f":"IFERROR(VLOOKUP(D742,'Species List'!$I$66:$J$66,2,FALSE)*J742,\"\")","v":""},{"$f":"IFERROR(VLOOKUP(D742,'Species List'!$I$71:$J$82,2,FALSE)*J742,\"\")","v":""},0,null,null,null,null,null,null,{"$f":"IFERROR(INDEX('3 - Land Summary'!$B$21:$B$120,(MATCH(AD742,'3 - Land Summary'!$C$21:$C$120,0))),\"\")","v":""}]
[null,{"$f":"IFERROR(INDEX('3 - Land Summary'!$B$21:$B$120,(MATCH('4 - Species Breakdown'!$V743,'3 - Land Summary'!$C$21:$C$120,0))),\"\")","v":""},null,null,{"$f":"IF(OR(COUNTIF('Look Up Data'!$D$149:$D$203,D743),COUNTIF('Look Up Data'!$D$149:$D$203,AE743)),\"YES\",\"NO\")","v":"NO"},null,null,{"$f":"IFERROR(INDEX('3 - Land Summary'!$G$21:$G$120,(MATCH(C743,'3 - Land Summary'!$C$21:$C$120,0))),\"\")","v":""},{"$f":"IFERROR(INDEX('3 - Land Summary'!$I$21:$I$120,(MATCH(C743,'3 - Land Summary'!$C$21:$C$120,0))),\"\")","v":""},"","",null,null,null,{"$f":"IFERROR(VLOOKUP(D743,'Species List'!$D$10:$E$46,2,FALSE)*J743,\"\")","v":""},{"$f":"IFERROR(VLOOKUP(D743,'Species List'!$D$51:$E$89,2,FALSE)*J743,\"\")","v":""},{"$f":"IFERROR(VLOOKUP(D743,'Species List'!$D$95:$E$102,2,FALSE)*J743,\"\")","v":""},{"$f":"IFERROR(VLOOKUP(D743,'Species List'!$I$10:$J$11,2,FALSE)*J743,\"\")","v":""},{"$f":"IFERROR(VLOOKUP(D743,'Species List'!$I$16:$J$61,2,FALSE)*J743,\"\")","v":""},{"$f":"IFERROR(VLOOKUP(D743,'Species List'!$I$66:$J$66,2,FALSE)*J743,\"\")","v":""},{"$f":"IFERROR(VLOOKUP(D743,'Species List'!$I$71:$J$82,2,FALSE)*J743,\"\")","v":""},0,null,null,null,null,null,null,{"$f":"IFERROR(INDEX('3 - Land Summary'!$B$21:$B$120,(MATCH(AD743,'3 - Land Summary'!$C$21:$C$120,0))),\"\")","v":""}]
[null,{"$f":"IFERROR(INDEX('3 - Land Summary'!$B$21:$B$120,(MATCH('4 - Species Breakdown'!$V744,'3 - Land Summary'!$C$21:$C$120,0))),\"\")","v":""},null,null,{"$f":"IF(OR(COUNTIF('Look Up Data'!$D$149:$D$203,D744),COUNTIF('Look Up Data'!$D$149:$D$203,AE744)),\"YES\",\"NO\")","v":"NO"},null,null,{"$f":"IFERROR(INDEX('3 - Land Summary'!$G$21:$G$120,(MATCH(C744,'3 - Land Summary'!$C$21:$C$120,0))),\"\")","v":""},{"$f":"IFERROR(INDEX('3 - Land Summary'!$I$21:$I$120,(MATCH(C744,'3 - Land Summary'!$C$21:$C$120,0))),\"\")","v":""},"","",null,null,null,{"$f":"IFERROR(VLOOKUP(D744,'Species List'!$D$10:$E$46,2,FALSE)*J744,\"\")","v":""},{"$f":"IFERROR(VLOOKUP(D744,'Species List'!$D$51:$E$89,2,FALSE)*J744,\"\")","v":""},{"$f":"IFERROR(VLOOKUP(D744,'Species List'!$D$95:$E$102,2,FALSE)*J744,\"\")","v":""},{"$f":"IFERROR(VLOOKUP(D744,'Species List'!$I$10:$J$11,2,FALSE)*J744,\"\")","v":""},{"$f":"IFERROR(VLOOKUP(D744,'Species List'!$I$16:$J$61,2,FALSE)*J744,\"\")","v":""},{"$f":"IFERROR(VLOOKUP(D744,'Species List'!$I$66:$J$66,2,FALSE)*J744,\"\")","v":""},{"$f":"IFERROR(VLOOKUP(D744,'Species List'!$I$71:$J$82,2,FALSE)*J744,\"\")","v":""},0,null,null,null,null,null,null,{"$f":"IFERROR(INDEX('3 - Land Summary'!$B$21:$B$120,(MATCH(AD744,'3 - Land Summary'!$C$21:$C$120,0))),\"\")","v":""}]
[null,{"$f":"IFERROR(INDEX('3 - Land Summary'!$B$21:$B$120,(MATCH('4 - Species Breakdown'!$V745,'3 - Land Summary'!$C$21:$C$120,0))),\"\")","v":""},null,null,{"$f":"IF(OR(COUNTIF('Look Up Data'!$D$149:$D$203,D745),COUNTIF('Look Up Data'!$D$149:$D$203,AE745)),\"YES\",\"NO\")","v":"NO"},null,null,{"$f":"IFERROR(INDEX('3 - Land Summary'!$G$21:$G$120,(MATCH(C745,'3 - Land Summary'!$C$21:$C$120,0))),\"\")","v":""},{"$f":"IFERROR(INDEX('3 - Land Summary'!$I$21:$I$120,(MATCH(C745,'3 - Land Summary'!$C$21:$C$120,0))),\"\")","v":""},"","",null,null,null,{"$f":"IFERROR(VLOOKUP(D745,'Species List'!$D$10:$E$46,2,FALSE)*J745,\"\")","v":""},{"$f":"IFERROR(VLOOKUP(D745,'Species List'!$D$51:$E$89,2,FALSE)*J745,\"\")","v":""},{"$f":"IFERROR(VLOOKUP(D745,'Species List'!$D$95:$E$102,2,FALSE)*J745,\"\")","v":""},{"$f":"IFERROR(VLOOKUP(D745,'Species List'!$I$10:$J$11,2,FALSE)*J745,\"\")","v":""},{"$f":"IFERROR(VLOOKUP(D745,'Species List'!$I$16:$J$61,2,FALSE)*J745,\"\")","v":""},{"$f":"IFERROR(VLOOKUP(D745,'Species List'!$I$66:$J$66,2,FALSE)*J745,\"\")","v":""},{"$f":"IFERROR(VLOOKUP(D745,'Species List'!$I$71:$J$82,2,FALSE)*J745,\"\")","v":""},0,null,null,null,null,null,null,{"$f":"IFERROR(INDEX('3 - Land Summary'!$B$21:$B$120,(MATCH(AD745,'3 - Land Summary'!$C$21:$C$120,0))),\"\")","v":""}]
[null,{"$f":"IFERROR(INDEX('3 - Land Summary'!$B$21:$B$120,(MATCH('4 - Species Breakdown'!$V746,'3 - Land Summary'!$C$21:$C$120,0))),\"\")","v":""},null,null,{"$f":"IF(OR(COUNTIF('Look Up Data'!$D$149:$D$203,D746),COUNTIF('Look Up Data'!$D$149:$D$203,AE746)),\"YES\",\"NO\")","v":"NO"},null,null,{"$f":"IFERROR(INDEX('3 - Land Summary'!$G$21:$G$120,(MATCH(C746,'3 - Land Summary'!$C$21:$C$120,0))),\"\")","v":""},{"$f":"IFERROR(INDEX('3 - Land Summary'!$I$21:$I$120,(MATCH(C746,'3 - Land Summary'!$C$21:$C$120,0))),\"\")","v":""},"","",null,null,null,{"$f":"IFERROR(VLOOKUP(D746,'Species List'!$D$10:$E$46,2,FALSE)*J746,\"\")","v":""},{"$f":"IFERROR(VLOOKUP(D746,'Species List'!$D$51:$E$89,2,FALSE)*J746,\"\")","v":""},{"$f":"IFERROR(VLOOKUP(D746,'Species List'!$D$95:$E$102,2,FALSE)*J746,\"\")","v":""},{"$f":"IFERROR(VLOOKUP(D746,'Species List'!$I$10:$J$11,2,FALSE)*J746,\"\")","v":""},{"$f":"IFERROR(VLOOKUP(D746,'Species List'!$I$16:$J$61,2,FALSE)*J746,\"\")","v":""},{"$f":"IFERROR(VLOOKUP(D746,'Species List'!$I$66:$J$66,2,FALSE)*J746,\"\")","v":""},{"$f":"IFERROR(VLOOKUP(D746,'Species List'!$I$71:$J$82,2,FALSE)*J746,\"\")","v":""},0,null,null,null,null,null,null,{"$f":"IFERROR(INDEX('3 - Land Summary'!$B$21:$B$120,(MATCH(AD746,'3 - Land Summary'!$C$21:$C$120,0))),\"\")","v":""}]
[null,{"$f":"IFERROR(INDEX('3 - Land Summary'!$B$21:$B$120,(MATCH('4 - Species Breakdown'!$V747,'3 - Land Summary'!$C$21:$C$120,0))),\"\")","v":""},null,null,{"$f":"IF(OR(COUNTIF('Look Up Data'!$D$149:$D$203,D747),COUNTIF('Look Up Data'!$D$149:$D$203,AE747)),\"YES\",\"NO\")","v":"NO"},null,null,{"$f":"IFERROR(INDEX('3 - Land Summary'!$G$21:$G$120,(MATCH(C747,'3 - Land Summary'!$C$21:$C$120,0))),\"\")","v":""},{"$f":"IFERROR(INDEX('3 - Land Summary'!$I$21:$I$120,(MATCH(C747,'3 - Land Summary'!$C$21:$C$120,0))),\"\")","v":""},"","",null,null,null,{"$f":"IFERROR(VLOOKUP(D747,'Species List'!$D$10:$E$46,2,FALSE)*J747,\"\")","v":""},{"$f":"IFERROR(VLOOKUP(D747,'Species List'!$D$51:$E$89,2,FALSE)*J747,\"\")","v":""},{"$f":"IFERROR(VLOOKUP(D747,'Species List'!$D$95:$E$102,2,FALSE)*J747,\"\")","v":""},{"$f":"IFERROR(VLOOKUP(D747,'Species List'!$I$10:$J$11,2,FALSE)*J747,\"\")","v":""},{"$f":"IFERROR(VLOOKUP(D747,'Species List'!$I$16:$J$61,2,FALSE)*J747,\"\")","v":""},{"$f":"IFERROR(VLOOKUP(D747,'Species List'!$I$66:$J$66,2,FALSE)*J747,\"\")","v":""},{"$f":"IFERROR(VLOOKUP(D747,'Species List'!$I$71:$J$82,2,FALSE)*J747,\"\")","v":""},0,null,null,null,null,null,null,{"$f":"IFERROR(INDEX('3 - Land Summary'!$B$21:$B$120,(MATCH(AD747,'3 - Land Summary'!$C$21:$C$120,0))),\"\")","v":""}]
[null,{"$f":"IFERROR(INDEX('3 - Land Summary'!$B$21:$B$120,(MATCH('4 - Species Breakdown'!$V748,'3 - Land Summary'!$C$21:$C$120,0))),\"\")","v":""},null,null,{"$f":"IF(OR(COUNTIF('Look Up Data'!$D$149:$D$203,D748),COUNTIF('Look Up Data'!$D$149:$D$203,AE748)),\"YES\",\"NO\")","v":"NO"},null,null,{"$f":"IFERROR(INDEX('3 - Land Summary'!$G$21:$G$120,(MATCH(C748,'3 - Land Summary'!$C$21:$C$120,0))),\"\")","v":""},{"$f":"IFERROR(INDEX('3 - Land Summary'!$I$21:$I$120,(MATCH(C748,'3 - Land Summary'!$C$21:$C$120,0))),\"\")","v":""},"","",null,null,null,{"$f":"IFERROR(VLOOKUP(D748,'Species List'!$D$10:$E$46,2,FALSE)*J748,\"\")","v":""},{"$f":"IFERROR(VLOOKUP(D748,'Species List'!$D$51:$E$89,2,FALSE)*J748,\"\")","v":""},{"$f":"IFERROR(VLOOKUP(D748,'Species List'!$D$95:$E$102,2,FALSE)*J748,\"\")","v":""},{"$f":"IFERROR(VLOOKUP(D748,'Species List'!$I$10:$J$11,2,FALSE)*J748,\"\")","v":""},{"$f":"IFERROR(VLOOKUP(D748,'Species List'!$I$16:$J$61,2,FALSE)*J748,\"\")","v":""},{"$f":"IFERROR(VLOOKUP(D748,'Species List'!$I$66:$J$66,2,FALSE)*J748,\"\")","v":""},{"$f":"IFERROR(VLOOKUP(D748,'Species List'!$I$71:$J$82,2,FALSE)*J748,\"\")","v":""},0,null,null,null,null,null,null,{"$f":"IFERROR(INDEX('3 - Land Summary'!$B$21:$B$120,(MATCH(AD748,'3 - Land Summary'!$C$21:$C$120,0))),\"\")","v":""}]
[null,{"$f":"IFERROR(INDEX('3 - Land Summary'!$B$21:$B$120,(MATCH('4 - Species Breakdown'!$V749,'3 - Land Summary'!$C$21:$C$120,0))),\"\")","v":""},null,null,{"$f":"IF(OR(COUNTIF('Look Up Data'!$D$149:$D$203,D749),COUNTIF('Look Up Data'!$D$149:$D$203,AE749)),\"YES\",\"NO\")","v":"NO"},null,null,{"$f":"IFERROR(INDEX('3 - Land Summary'!$G$21:$G$120,(MATCH(C749,'3 - Land Summary'!$C$21:$C$120,0))),\"\")","v":""},{"$f":"IFERROR(INDEX('3 - Land Summary'!$I$21:$I$120,(MATCH(C749,'3 - Land Summary'!$C$21:$C$120,0))),\"\")","v":""},"","",null,null,null,{"$f":"IFERROR(VLOOKUP(D749,'Species List'!$D$10:$E$46,2,FALSE)*J749,\"\")","v":""},{"$f":"IFERROR(VLOOKUP(D749,'Species List'!$D$51:$E$89,2,FALSE)*J749,\"\")","v":""},{"$f":"IFERROR(VLOOKUP(D749,'Species List'!$D$95:$E$102,2,FALSE)*J749,\"\")","v":""},{"$f":"IFERROR(VLOOKUP(D749,'Species List'!$I$10:$J$11,2,FALSE)*J749,\"\")","v":""},{"$f":"IFERROR(VLOOKUP(D749,'Species List'!$I$16:$J$61,2,FALSE)*J749,\"\")","v":""},{"$f":"IFERROR(VLOOKUP(D749,'Species List'!$I$66:$J$66,2,FALSE)*J749,\"\")","v":""},{"$f":"IFERROR(VLOOKUP(D749,'Species List'!$I$71:$J$82,2,FALSE)*J749,\"\")","v":""},0,null,null,null,null,null,null,{"$f":"IFERROR(INDEX('3 - Land Summary'!$B$21:$B$120,(MATCH(AD749,'3 - Land Summary'!$C$21:$C$120,0))),\"\")","v":""}]
[null,{"$f":"IFERROR(INDEX('3 - Land Summary'!$B$21:$B$120,(MATCH('4 - Species Breakdown'!$V750,'3 - Land Summary'!$C$21:$C$120,0))),\"\")","v":""},null,null,{"$f":"IF(OR(COUNTIF('Look Up Data'!$D$149:$D$203,D750),COUNTIF('Look Up Data'!$D$149:$D$203,AE750)),\"YES\",\"NO\")","v":"NO"},null,null,{"$f":"IFERROR(INDEX('3 - Land Summary'!$G$21:$G$120,(MATCH(C750,'3 - Land Summary'!$C$21:$C$120,0))),\"\")","v":""},{"$f":"IFERROR(INDEX('3 - Land Summary'!$I$21:$I$120,(MATCH(C750,'3 - Land Summary'!$C$21:$C$120,0))),\"\")","v":""},"","",null,null,null,{"$f":"IFERROR(VLOOKUP(D750,'Species List'!$D$10:$E$46,2,FALSE)*J750,\"\")","v":""},{"$f":"IFERROR(VLOOKUP(D750,'Species List'!$D$51:$E$89,2,FALSE)*J750,\"\")","v":""},{"$f":"IFERROR(VLOOKUP(D750,'Species List'!$D$95:$E$102,2,FALSE)*J750,\"\")","v":""},{"$f":"IFERROR(VLOOKUP(D750,'Species List'!$I$10:$J$11,2,FALSE)*J750,\"\")","v":""},{"$f":"IFERROR(VLOOKUP(D750,'Species List'!$I$16:$J$61,2,FALSE)*J750,\"\")","v":""},{"$f":"IFERROR(VLOOKUP(D750,'Species List'!$I$66:$J$66,2,FALSE)*J750,\"\")","v":""},{"$f":"IFERROR(VLOOKUP(D750,'Species List'!$I$71:$J$82,2,FALSE)*J750,\"\")","v":""},0,null,null,null,null,null,null,{"$f":"IFERROR(INDEX('3 - Land Summary'!$B$21:$B$120,(MATCH(AD750,'3 - Land Summary'!$C$21:$C$120,0))),\"\")","v":""}]
[null,{"$f":"IFERROR(INDEX('3 - Land Summary'!$B$21:$B$120,(MATCH('4 - Species Breakdown'!$V751,'3 - Land Summary'!$C$21:$C$120,0))),\"\")","v":""},null,null,{"$f":"IF(OR(COUNTIF('Look Up Data'!$D$149:$D$203,D751),COUNTIF('Look Up Data'!$D$149:$D$203,AE751)),\"YES\",\"NO\")","v":"NO"},null,null,{"$f":"IFERROR(INDEX('3 - Land Summary'!$G$21:$G$120,(MATCH(C751,'3 - Land Summary'!$C$21:$C$120,0))),\"\")","v":""},{"$f":"IFERROR(INDEX('3 - Land Summary'!$I$21:$I$120,(MATCH(C751,'3 - Land Summary'!$C$21:$C$120,0))),\"\")","v":""},"","",null,null,null,{"$f":"IFERROR(VLOOKUP(D751,'Species List'!$D$10:$E$46,2,FALSE)*J751,\"\")","v":""},{"$f":"IFERROR(VLOOKUP(D751,'Species List'!$D$51:$E$89,2,FALSE)*J751,\"\")","v":""},{"$f":"IFERROR(VLOOKUP(D751,'Species List'!$D$95:$E$102,2,FALSE)*J751,\"\")","v":""},{"$f":"IFERROR(VLOOKUP(D751,'Species List'!$I$10:$J$11,2,FALSE)*J751,\"\")","v":""},{"$f":"IFERROR(VLOOKUP(D751,'Species List'!$I$16:$J$61,2,FALSE)*J751,\"\")","v":""},{"$f":"IFERROR(VLOOKUP(D751,'Species List'!$I$66:$J$66,2,FALSE)*J751,\"\")","v":""},{"$f":"IFERROR(VLOOKUP(D751,'Species List'!$I$71:$J$82,2,FALSE)*J751,\"\")","v":""},0,null,null,null,null,null,null,{"$f":"IFERROR(INDEX('3 - Land Summary'!$B$21:$B$120,(MATCH(AD751,'3 - Land Summary'!$C$21:$C$120,0))),\"\")","v":""}]
[null,{"$f":"IFERROR(INDEX('3 - Land Summary'!$B$21:$B$120,(MATCH('4 - Species Breakdown'!$V752,'3 - Land Summary'!$C$21:$C$120,0))),\"\")","v":""},null,null,{"$f":"IF(OR(COUNTIF('Look Up Data'!$D$149:$D$203,D752),COUNTIF('Look Up Data'!$D$149:$D$203,AE752)),\"YES\",\"NO\")","v":"NO"},null,null,{"$f":"IFERROR(INDEX('3 - Land Summary'!$G$21:$G$120,(MATCH(C752,'3 - Land Summary'!$C$21:$C$120,0))),\"\")","v":""},{"$f":"IFERROR(INDEX('3 - Land Summary'!$I$21:$I$120,(MATCH(C752,'3 - Land Summary'!$C$21:$C$120,0))),\"\")","v":""},"","",null,null,null,{"$f":"IFERROR(VLOOKUP(D752,'Species List'!$D$10:$E$46,2,FALSE)*J752,\"\")","v":""},{"$f":"IFERROR(VLOOKUP(D752,'Species List'!$D$51:$E$89,2,FALSE)*J752,\"\")","v":""},{"$f":"IFERROR(VLOOKUP(D752,'Species List'!$D$95:$E$102,2,FALSE)*J752,\"\")","v":""},{"$f":"IFERROR(VLOOKUP(D752,'Species List'!$I$10:$J$11,2,FALSE)*J752,\"\")","v":""},{"$f":"IFERROR(VLOOKUP(D752,'Species List'!$I$16:$J$61,2,FALSE)*J752,\"\")","v":""},{"$f":"IFERROR(VLOOKUP(D752,'Species List'!$I$66:$J$66,2,FALSE)*J752,\"\")","v":""},{"$f":"IFERROR(VLOOKUP(D752,'Species List'!$I$71:$J$82,2,FALSE)*J752,\"\")","v":""},0,null,null,null,null,null,null,{"$f":"IFERROR(INDEX('3 - Land Summary'!$B$21:$B$120,(MATCH(AD752,'3 - Land Summary'!$C$21:$C$120,0))),\"\")","v":""}]
[null,{"$f":"IFERROR(INDEX('3 - Land Summary'!$B$21:$B$120,(MATCH('4 - Species Breakdown'!$V753,'3 - Land Summary'!$C$21:$C$120,0))),\"\")","v":""},null,null,{"$f":"IF(OR(COUNTIF('Look Up Data'!$D$149:$D$203,D753),COUNTIF('Look Up Data'!$D$149:$D$203,AE753)),\"YES\",\"NO\")","v":"NO"},null,null,{"$f":"IFERROR(INDEX('3 - Land Summary'!$G$21:$G$120,(MATCH(C753,'3 - Land Summary'!$C$21:$C$120,0))),\"\")","v":""},{"$f":"IFERROR(INDEX('3 - Land Summary'!$I$21:$I$120,(MATCH(C753,'3 - Land Summary'!$C$21:$C$120,0))),\"\")","v":""},"","",null,null,null,{"$f":"IFERROR(VLOOKUP(D753,'Species List'!$D$10:$E$46,2,FALSE)*J753,\"\")","v":""},{"$f":"IFERROR(VLOOKUP(D753,'Species List'!$D$51:$E$89,2,FALSE)*J753,\"\")","v":""},{"$f":"IFERROR(VLOOKUP(D753,'Species List'!$D$95:$E$102,2,FALSE)*J753,\"\")","v":""},{"$f":"IFERROR(VLOOKUP(D753,'Species List'!$I$10:$J$11,2,FALSE)*J753,\"\")","v":""},{"$f":"IFERROR(VLOOKUP(D753,'Species List'!$I$16:$J$61,2,FALSE)*J753,\"\")","v":""},{"$f":"IFERROR(VLOOKUP(D753,'Species List'!$I$66:$J$66,2,FALSE)*J753,\"\")","v":""},{"$f":"IFERROR(VLOOKUP(D753,'Species List'!$I$71:$J$82,2,FALSE)*J753,\"\")","v":""},0,null,null,null,null,null,null,{"$f":"IFERROR(INDEX('3 - Land Summary'!$B$21:$B$120,(MATCH(AD753,'3 - Land Summary'!$C$21:$C$120,0))),\"\")","v":""}]
[null,{"$f":"IFERROR(INDEX('3 - Land Summary'!$B$21:$B$120,(MATCH('4 - Species Breakdown'!$V754,'3 - Land Summary'!$C$21:$C$120,0))),\"\")","v":""},null,null,{"$f":"IF(OR(COUNTIF('Look Up Data'!$D$149:$D$203,D754),COUNTIF('Look Up Data'!$D$149:$D$203,AE754)),\"YES\",\"NO\")","v":"NO"},null,null,{"$f":"IFERROR(INDEX('3 - Land Summary'!$G$21:$G$120,(MATCH(C754,'3 - Land Summary'!$C$21:$C$120,0))),\"\")","v":""},{"$f":"IFERROR(INDEX('3 - Land Summary'!$I$21:$I$120,(MATCH(C754,'3 - Land Summary'!$C$21:$C$120,0))),\"\")","v":""},"","",null,null,null,{"$f":"IFERROR(VLOOKUP(D754,'Species List'!$D$10:$E$46,2,FALSE)*J754,\"\")","v":""},{"$f":"IFERROR(VLOOKUP(D754,'Species List'!$D$51:$E$89,2,FALSE)*J754,\"\")","v":""},{"$f":"IFERROR(VLOOKUP(D754,'Species List'!$D$95:$E$102,2,FALSE)*J754,\"\")","v":""},{"$f":"IFERROR(VLOOKUP(D754,'Species List'!$I$10:$J$11,2,FALSE)*J754,\"\")","v":""},{"$f":"IFERROR(VLOOKUP(D754,'Species List'!$I$16:$J$61,2,FALSE)*J754,\"\")","v":""},{"$f":"IFERROR(VLOOKUP(D754,'Species List'!$I$66:$J$66,2,FALSE)*J754,\"\")","v":""},{"$f":"IFERROR(VLOOKUP(D754,'Species List'!$I$71:$J$82,2,FALSE)*J754,\"\")","v":""},0,null,null,null,null,null,null,{"$f":"IFERROR(INDEX('3 - Land Summary'!$B$21:$B$120,(MATCH(AD754,'3 - Land Summary'!$C$21:$C$120,0))),\"\")","v":""}]
[null,{"$f":"IFERROR(INDEX('3 - Land Summary'!$B$21:$B$120,(MATCH('4 - Species Breakdown'!$V755,'3 - Land Summary'!$C$21:$C$120,0))),\"\")","v":""},null,null,{"$f":"IF(OR(COUNTIF('Look Up Data'!$D$149:$D$203,D755),COUNTIF('Look Up Data'!$D$149:$D$203,AE755)),\"YES\",\"NO\")","v":"NO"},null,null,{"$f":"IFERROR(INDEX('3 - Land Summary'!$G$21:$G$120,(MATCH(C755,'3 - Land Summary'!$C$21:$C$120,0))),\"\")","v":""},{"$f":"IFERROR(INDEX('3 - Land Summary'!$I$21:$I$120,(MATCH(C755,'3 - Land Summary'!$C$21:$C$120,0))),\"\")","v":""},"","",null,null,null,{"$f":"IFERROR(VLOOKUP(D755,'Species List'!$D$10:$E$46,2,FALSE)*J755,\"\")","v":""},{"$f":"IFERROR(VLOOKUP(D755,'Species List'!$D$51:$E$89,2,FALSE)*J755,\"\")","v":""},{"$f":"IFERROR(VLOOKUP(D755,'Species List'!$D$95:$E$102,2,FALSE)*J755,\"\")","v":""},{"$f":"IFERROR(VLOOKUP(D755,'Species List'!$I$10:$J$11,2,FALSE)*J755,\"\")","v":""},{"$f":"IFERROR(VLOOKUP(D755,'Species List'!$I$16:$J$61,2,FALSE)*J755,\"\")","v":""},{"$f":"IFERROR(VLOOKUP(D755,'Species List'!$I$66:$J$66,2,FALSE)*J755,\"\")","v":""},{"$f":"IFERROR(VLOOKUP(D755,'Species List'!$I$71:$J$82,2,FALSE)*J755,\"\")","v":""},0,null,null,null,null,null,null,{"$f":"IFERROR(INDEX('3 - Land Summary'!$B$21:$B$120,(MATCH(AD755,'3 - Land Summary'!$C$21:$C$120,0))),\"\")","v":""}]
[null,{"$f":"IFERROR(INDEX('3 - Land Summary'!$B$21:$B$120,(MATCH('4 - Species Breakdown'!$V756,'3 - Land Summary'!$C$21:$C$120,0))),\"\")","v":""},null,null,{"$f":"IF(OR(COUNTIF('Look Up Data'!$D$149:$D$203,D756),COUNTIF('Look Up Data'!$D$149:$D$203,AE756)),\"YES\",\"NO\")","v":"NO"},null,null,{"$f":"IFERROR(INDEX('3 - Land Summary'!$G$21:$G$120,(MATCH(C756,'3 - Land Summary'!$C$21:$C$120,0))),\"\")","v":""},{"$f":"IFERROR(INDEX('3 - Land Summary'!$I$21:$I$120,(MATCH(C756,'3 - Land Summary'!$C$21:$C$120,0))),\"\")","v":""},"","",null,null,null,{"$f":"IFERROR(VLOOKUP(D756,'Species List'!$D$10:$E$46,2,FALSE)*J756,\"\")","v":""},{"$f":"IFERROR(VLOOKUP(D756,'Species List'!$D$51:$E$89,2,FALSE)*J756,\"\")","v":""},{"$f":"IFERROR(VLOOKUP(D756,'Species List'!$D$95:$E$102,2,FALSE)*J756,\"\")","v":""},{"$f":"IFERROR(VLOOKUP(D756,'Species List'!$I$10:$J$11,2,FALSE)*J756,\"\")","v":""},{"$f":"IFERROR(VLOOKUP(D756,'Species List'!$I$16:$J$61,2,FALSE)*J756,\"\")","v":""},{"$f":"IFERROR(VLOOKUP(D756,'Species List'!$I$66:$J$66,2,FALSE)*J756,\"\")","v":""},{"$f":"IFERROR(VLOOKUP(D756,'Species List'!$I$71:$J$82,2,FALSE)*J756,\"\")","v":""},0,null,null,null,null,null,null,{"$f":"IFERROR(INDEX('3 - Land Summary'!$B$21:$B$120,(MATCH(AD756,'3 - Land Summary'!$C$21:$C$120,0))),\"\")","v":""}]
[null,{"$f":"IFERROR(INDEX('3 - Land Summary'!$B$21:$B$120,(MATCH('4 - Species Breakdown'!$V757,'3 - Land Summary'!$C$21:$C$120,0))),\"\")","v":""},null,null,{"$f":"IF(OR(COUNTIF('Look Up Data'!$D$149:$D$203,D757),COUNTIF('Look Up Data'!$D$149:$D$203,AE757)),\"YES\",\"NO\")","v":"NO"},null,null,{"$f":"IFERROR(INDEX('3 - Land Summary'!$G$21:$G$120,(MATCH(C757,'3 - Land Summary'!$C$21:$C$120,0))),\"\")","v":""},{"$f":"IFERROR(INDEX('3 - Land Summary'!$I$21:$I$120,(MATCH(C757,'3 - Land Summary'!$C$21:$C$120,0))),\"\")","v":""},"","",null,null,null,{"$f":"IFERROR(VLOOKUP(D757,'Species List'!$D$10:$E$46,2,FALSE)*J757,\"\")","v":""},{"$f":"IFERROR(VLOOKUP(D757,'Species List'!$D$51:$E$89,2,FALSE)*J757,\"\")","v":""},{"$f":"IFERROR(VLOOKUP(D757,'Species List'!$D$95:$E$102,2,FALSE)*J757,\"\")","v":""},{"$f":"IFERROR(VLOOKUP(D757,'Species List'!$I$10:$J$11,2,FALSE)*J757,\"\")","v":""},{"$f":"IFERROR(VLOOKUP(D757,'Species List'!$I$16:$J$61,2,FALSE)*J757,\"\")","v":""},{"$f":"IFERROR(VLOOKUP(D757,'Species List'!$I$66:$J$66,2,FALSE)*J757,\"\")","v":""},{"$f":"IFERROR(VLOOKUP(D757,'Species List'!$I$71:$J$82,2,FALSE)*J757,\"\")","v":""},0,null,null,null,null,null,null,{"$f":"IFERROR(INDEX('3 - Land Summary'!$B$21:$B$120,(MATCH(AD757,'3 - Land Summary'!$C$21:$C$120,0))),\"\")","v":""}]
[null,{"$f":"IFERROR(INDEX('3 - Land Summary'!$B$21:$B$120,(MATCH('4 - Species Breakdown'!$V758,'3 - Land Summary'!$C$21:$C$120,0))),\"\")","v":""},null,null,{"$f":"IF(OR(COUNTIF('Look Up Data'!$D$149:$D$203,D758),COUNTIF('Look Up Data'!$D$149:$D$203,AE758)),\"YES\",\"NO\")","v":"NO"},null,null,{"$f":"IFERROR(INDEX('3 - Land Summary'!$G$21:$G$120,(MATCH(C758,'3 - Land Summary'!$C$21:$C$120,0))),\"\")","v":""},{"$f":"IFERROR(INDEX('3 - Land Summary'!$I$21:$I$120,(MATCH(C758,'3 - Land Summary'!$C$21:$C$120,0))),\"\")","v":""},"","",null,null,null,{"$f":"IFERROR(VLOOKUP(D758,'Species List'!$D$10:$E$46,2,FALSE)*J758,\"\")","v":""},{"$f":"IFERROR(VLOOKUP(D758,'Species List'!$D$51:$E$89,2,FALSE)*J758,\"\")","v":""},{"$f":"IFERROR(VLOOKUP(D758,'Species List'!$D$95:$E$102,2,FALSE)*J758,\"\")","v":""},{"$f":"IFERROR(VLOOKUP(D758,'Species List'!$I$10:$J$11,2,FALSE)*J758,\"\")","v":""},{"$f":"IFERROR(VLOOKUP(D758,'Species List'!$I$16:$J$61,2,FALSE)*J758,\"\")","v":""},{"$f":"IFERROR(VLOOKUP(D758,'Species List'!$I$66:$J$66,2,FALSE)*J758,\"\")","v":""},{"$f":"IFERROR(VLOOKUP(D758,'Species List'!$I$71:$J$82,2,FALSE)*J758,\"\")","v":""},0,null,null,null,null,null,null,{"$f":"IFERROR(INDEX('3 - Land Summary'!$B$21:$B$120,(MATCH(AD758,'3 - Land Summary'!$C$21:$C$120,0))),\"\")","v":""}]
[null,{"$f":"IFERROR(INDEX('3 - Land Summary'!$B$21:$B$120,(MATCH('4 - Species Breakdown'!$V759,'3 - Land Summary'!$C$21:$C$120,0))),\"\")","v":""},null,null,{"$f":"IF(OR(COUNTIF('Look Up Data'!$D$149:$D$203,D759),COUNTIF('Look Up Data'!$D$149:$D$203,AE759)),\"YES\",\"NO\")","v":"NO"},null,null,{"$f":"IFERROR(INDEX('3 - Land Summary'!$G$21:$G$120,(MATCH(C759,'3 - Land Summary'!$C$21:$C$120,0))),\"\")","v":""},{"$f":"IFERROR(INDEX('3 - Land Summary'!$I$21:$I$120,(MATCH(C759,'3 - Land Summary'!$C$21:$C$120,0))),\"\")","v":""},"","",null,null,null,{"$f":"IFERROR(VLOOKUP(D759,'Species List'!$D$10:$E$46,2,FALSE)*J759,\"\")","v":""},{"$f":"IFERROR(VLOOKUP(D759,'Species List'!$D$51:$E$89,2,FALSE)*J759,\"\")","v":""},{"$f":"IFERROR(VLOOKUP(D759,'Species List'!$D$95:$E$102,2,FALSE)*J759,\"\")","v":""},{"$f":"IFERROR(VLOOKUP(D759,'Species List'!$I$10:$J$11,2,FALSE)*J759,\"\")","v":""},{"$f":"IFERROR(VLOOKUP(D759,'Species List'!$I$16:$J$61,2,FALSE)*J759,\"\")","v":""},{"$f":"IFERROR(VLOOKUP(D759,'Species List'!$I$66:$J$66,2,FALSE)*J759,\"\")","v":""},{"$f":"IFERROR(VLOOKUP(D759,'Species List'!$I$71:$J$82,2,FALSE)*J759,\"\")","v":""},0,null,null,null,null,null,null,{"$f":"IFERROR(INDEX('3 - Land Summary'!$B$21:$B$120,(MATCH(AD759,'3 - Land Summary'!$C$21:$C$120,0))),\"\")","v":""}]
[null,{"$f":"IFERROR(INDEX('3 - Land Summary'!$B$21:$B$120,(MATCH('4 - Species Breakdown'!$V760,'3 - Land Summary'!$C$21:$C$120,0))),\"\")","v":""},null,null,{"$f":"IF(OR(COUNTIF('Look Up Data'!$D$149:$D$203,D760),COUNTIF('Look Up Data'!$D$149:$D$203,AE760)),\"YES\",\"NO\")","v":"NO"},null,null,{"$f":"IFERROR(INDEX('3 - Land Summary'!$G$21:$G$120,(MATCH(C760,'3 - Land Summary'!$C$21:$C$120,0))),\"\")","v":""},{"$f":"IFERROR(INDEX('3 - Land Summary'!$I$21:$I$120,(MATCH(C760,'3 - Land Summary'!$C$21:$C$120,0))),\"\")","v":""},"","",null,null,null,{"$f":"IFERROR(VLOOKUP(D760,'Species List'!$D$10:$E$46,2,FALSE)*J760,\"\")","v":""},{"$f":"IFERROR(VLOOKUP(D760,'Species List'!$D$51:$E$89,2,FALSE)*J760,\"\")","v":""},{"$f":"IFERROR(VLOOKUP(D760,'Species List'!$D$95:$E$102,2,FALSE)*J760,\"\")","v":""},{"$f":"IFERROR(VLOOKUP(D760,'Species List'!$I$10:$J$11,2,FALSE)*J760,\"\")","v":""},{"$f":"IFERROR(VLOOKUP(D760,'Species List'!$I$16:$J$61,2,FALSE)*J760,\"\")","v":""},{"$f":"IFERROR(VLOOKUP(D760,'Species List'!$I$66:$J$66,2,FALSE)*J760,\"\")","v":""},{"$f":"IFERROR(VLOOKUP(D760,'Species List'!$I$71:$J$82,2,FALSE)*J760,\"\")","v":""},0,null,null,null,null,null,null,{"$f":"IFERROR(INDEX('3 - Land Summary'!$B$21:$B$120,(MATCH(AD760,'3 - Land Summary'!$C$21:$C$120,0))),\"\")","v":""}]
[null,{"$f":"IFERROR(INDEX('3 - Land Summary'!$B$21:$B$120,(MATCH('4 - Species Breakdown'!$V761,'3 - Land Summary'!$C$21:$C$120,0))),\"\")","v":""},null,null,{"$f":"IF(OR(COUNTIF('Look Up Data'!$D$149:$D$203,D761),COUNTIF('Look Up Data'!$D$149:$D$203,AE761)),\"YES\",\"NO\")","v":"NO"},null,null,{"$f":"IFERROR(INDEX('3 - Land Summary'!$G$21:$G$120,(MATCH(C761,'3 - Land Summary'!$C$21:$C$120,0))),\"\")","v":""},{"$f":"IFERROR(INDEX('3 - Land Summary'!$I$21:$I$120,(MATCH(C761,'3 - Land Summary'!$C$21:$C$120,0))),\"\")","v":""},"","",null,null,null,{"$f":"IFERROR(VLOOKUP(D761,'Species List'!$D$10:$E$46,2,FALSE)*J761,\"\")","v":""},{"$f":"IFERROR(VLOOKUP(D761,'Species List'!$D$51:$E$89,2,FALSE)*J761,\"\")","v":""},{"$f":"IFERROR(VLOOKUP(D761,'Species List'!$D$95:$E$102,2,FALSE)*J761,\"\")","v":""},{"$f":"IFERROR(VLOOKUP(D761,'Species List'!$I$10:$J$11,2,FALSE)*J761,\"\")","v":""},{"$f":"IFERROR(VLOOKUP(D761,'Species List'!$I$16:$J$61,2,FALSE)*J761,\"\")","v":""},{"$f":"IFERROR(VLOOKUP(D761,'Species List'!$I$66:$J$66,2,FALSE)*J761,\"\")","v":""},{"$f":"IFERROR(VLOOKUP(D761,'Species List'!$I$71:$J$82,2,FALSE)*J761,\"\")","v":""},0,null,null,null,null,null,null,{"$f":"IFERROR(INDEX('3 - Land Summary'!$B$21:$B$120,(MATCH(AD761,'3 - Land Summary'!$C$21:$C$120,0))),\"\")","v":""}]
[null,{"$f":"IFERROR(INDEX('3 - Land Summary'!$B$21:$B$120,(MATCH('4 - Species Breakdown'!$V762,'3 - Land Summary'!$C$21:$C$120,0))),\"\")","v":""},null,null,{"$f":"IF(OR(COUNTIF('Look Up Data'!$D$149:$D$203,D762),COUNTIF('Look Up Data'!$D$149:$D$203,AE762)),\"YES\",\"NO\")","v":"NO"},null,null,{"$f":"IFERROR(INDEX('3 - Land Summary'!$G$21:$G$120,(MATCH(C762,'3 - Land Summary'!$C$21:$C$120,0))),\"\")","v":""},{"$f":"IFERROR(INDEX('3 - Land Summary'!$I$21:$I$120,(MATCH(C762,'3 - Land Summary'!$C$21:$C$120,0))),\"\")","v":""},"","",null,null,null,{"$f":"IFERROR(VLOOKUP(D762,'Species List'!$D$10:$E$46,2,FALSE)*J762,\"\")","v":""},{"$f":"IFERROR(VLOOKUP(D762,'Species List'!$D$51:$E$89,2,FALSE)*J762,\"\")","v":""},{"$f":"IFERROR(VLOOKUP(D762,'Species List'!$D$95:$E$102,2,FALSE)*J762,\"\")","v":""},{"$f":"IFERROR(VLOOKUP(D762,'Species List'!$I$10:$J$11,2,FALSE)*J762,\"\")","v":""},{"$f":"IFERROR(VLOOKUP(D762,'Species List'!$I$16:$J$61,2,FALSE)*J762,\"\")","v":""},{"$f":"IFERROR(VLOOKUP(D762,'Species List'!$I$66:$J$66,2,FALSE)*J762,\"\")","v":""},{"$f":"IFERROR(VLOOKUP(D762,'Species List'!$I$71:$J$82,2,FALSE)*J762,\"\")","v":""},0,null,null,null,null,null,null,{"$f":"IFERROR(INDEX('3 - Land Summary'!$B$21:$B$120,(MATCH(AD762,'3 - Land Summary'!$C$21:$C$120,0))),\"\")","v":""}]
[null,{"$f":"IFERROR(INDEX('3 - Land Summary'!$B$21:$B$120,(MATCH('4 - Species Breakdown'!$V763,'3 - Land Summary'!$C$21:$C$120,0))),\"\")","v":""},null,null,{"$f":"IF(OR(COUNTIF('Look Up Data'!$D$149:$D$203,D763),COUNTIF('Look Up Data'!$D$149:$D$203,AE763)),\"YES\",\"NO\")","v":"NO"},null,null,{"$f":"IFERROR(INDEX('3 - Land Summary'!$G$21:$G$120,(MATCH(C763,'3 - Land Summary'!$C$21:$C$120,0))),\"\")","v":""},{"$f":"IFERROR(INDEX('3 - Land Summary'!$I$21:$I$120,(MATCH(C763,'3 - Land Summary'!$C$21:$C$120,0))),\"\")","v":""},"","",null,null,null,{"$f":"IFERROR(VLOOKUP(D763,'Species List'!$D$10:$E$46,2,FALSE)*J763,\"\")","v":""},{"$f":"IFERROR(VLOOKUP(D763,'Species List'!$D$51:$E$89,2,FALSE)*J763,\"\")","v":""},{"$f":"IFERROR(VLOOKUP(D763,'Species List'!$D$95:$E$102,2,FALSE)*J763,\"\")","v":""},{"$f":"IFERROR(VLOOKUP(D763,'Species List'!$I$10:$J$11,2,FALSE)*J763,\"\")","v":""},{"$f":"IFERROR(VLOOKUP(D763,'Species List'!$I$16:$J$61,2,FALSE)*J763,\"\")","v":""},{"$f":"IFERROR(VLOOKUP(D763,'Species List'!$I$66:$J$66,2,FALSE)*J763,\"\")","v":""},{"$f":"IFERROR(VLOOKUP(D763,'Species List'!$I$71:$J$82,2,FALSE)*J763,\"\")","v":""},0,null,null,null,null,null,null,{"$f":"IFERROR(INDEX('3 - Land Summary'!$B$21:$B$120,(MATCH(AD763,'3 - Land Summary'!$C$21:$C$120,0))),\"\")","v":""}]
[null,{"$f":"IFERROR(INDEX('3 - Land Summary'!$B$21:$B$120,(MATCH('4 - Species Breakdown'!$V764,'3 - Land Summary'!$C$21:$C$120,0))),\"\")","v":""},null,null,{"$f":"IF(OR(COUNTIF('Look Up Data'!$D$149:$D$203,D764),COUNTIF('Look Up Data'!$D$149:$D$203,AE764)),\"YES\",\"NO\")","v":"NO"},null,null,{"$f":"IFERROR(INDEX('3 - Land Summary'!$G$21:$G$120,(MATCH(C764,'3 - Land Summary'!$C$21:$C$120,0))),\"\")","v":""},{"$f":"IFERROR(INDEX('3 - Land Summary'!$I$21:$I$120,(MATCH(C764,'3 - Land Summary'!$C$21:$C$120,0))),\"\")","v":""},"","",null,null,null,{"$f":"IFERROR(VLOOKUP(D764,'Species List'!$D$10:$E$46,2,FALSE)*J764,\"\")","v":""},{"$f":"IFERROR(VLOOKUP(D764,'Species List'!$D$51:$E$89,2,FALSE)*J764,\"\")","v":""},{"$f":"IFERROR(VLOOKUP(D764,'Species List'!$D$95:$E$102,2,FALSE)*J764,\"\")","v":""},{"$f":"IFERROR(VLOOKUP(D764,'Species List'!$I$10:$J$11,2,FALSE)*J764,\"\")","v":""},{"$f":"IFERROR(VLOOKUP(D764,'Species List'!$I$16:$J$61,2,FALSE)*J764,\"\")","v":""},{"$f":"IFERROR(VLOOKUP(D764,'Species List'!$I$66:$J$66,2,FALSE)*J764,\"\")","v":""},{"$f":"IFERROR(VLOOKUP(D764,'Species List'!$I$71:$J$82,2,FALSE)*J764,\"\")","v":""},0,null,null,null,null,null,null,{"$f":"IFERROR(INDEX('3 - Land Summary'!$B$21:$B$120,(MATCH(AD764,'3 - Land Summary'!$C$21:$C$120,0))),\"\")","v":""}]
[null,{"$f":"IFERROR(INDEX('3 - Land Summary'!$B$21:$B$120,(MATCH('4 - Species Breakdown'!$V765,'3 - Land Summary'!$C$21:$C$120,0))),\"\")","v":""},null,null,{"$f":"IF(OR(COUNTIF('Look Up Data'!$D$149:$D$203,D765),COUNTIF('Look Up Data'!$D$149:$D$203,AE765)),\"YES\",\"NO\")","v":"NO"},null,null,{"$f":"IFERROR(INDEX('3 - Land Summary'!$G$21:$G$120,(MATCH(C765,'3 - Land Summary'!$C$21:$C$120,0))),\"\")","v":""},{"$f":"IFERROR(INDEX('3 - Land Summary'!$I$21:$I$120,(MATCH(C765,'3 - Land Summary'!$C$21:$C$120,0))),\"\")","v":""},"","",null,null,null,{"$f":"IFERROR(VLOOKUP(D765,'Species List'!$D$10:$E$46,2,FALSE)*J765,\"\")","v":""},{"$f":"IFERROR(VLOOKUP(D765,'Species List'!$D$51:$E$89,2,FALSE)*J765,\"\")","v":""},{"$f":"IFERROR(VLOOKUP(D765,'Species List'!$D$95:$E$102,2,FALSE)*J765,\"\")","v":""},{"$f":"IFERROR(VLOOKUP(D765,'Species List'!$I$10:$J$11,2,FALSE)*J765,\"\")","v":""},{"$f":"IFERROR(VLOOKUP(D765,'Species List'!$I$16:$J$61,2,FALSE)*J765,\"\")","v":""},{"$f":"IFERROR(VLOOKUP(D765,'Species List'!$I$66:$J$66,2,FALSE)*J765,\"\")","v":""},{"$f":"IFERROR(VLOOKUP(D765,'Species List'!$I$71:$J$82,2,FALSE)*J765,\"\")","v":""},0,null,null,null,null,null,null,{"$f":"IFERROR(INDEX('3 - Land Summary'!$B$21:$B$120,(MATCH(AD765,'3 - Land Summary'!$C$21:$C$120,0))),\"\")","v":""}]
[null,{"$f":"IFERROR(INDEX('3 - Land Summary'!$B$21:$B$120,(MATCH('4 - Species Breakdown'!$V766,'3 - Land Summary'!$C$21:$C$120,0))),\"\")","v":""},null,null,{"$f":"IF(OR(COUNTIF('Look Up Data'!$D$149:$D$203,D766),COUNTIF('Look Up Data'!$D$149:$D$203,AE766)),\"YES\",\"NO\")","v":"NO"},null,null,{"$f":"IFERROR(INDEX('3 - Land Summary'!$G$21:$G$120,(MATCH(C766,'3 - Land Summary'!$C$21:$C$120,0))),\"\")","v":""},{"$f":"IFERROR(INDEX('3 - Land Summary'!$I$21:$I$120,(MATCH(C766,'3 - Land Summary'!$C$21:$C$120,0))),\"\")","v":""},"","",null,null,null,{"$f":"IFERROR(VLOOKUP(D766,'Species List'!$D$10:$E$46,2,FALSE)*J766,\"\")","v":""},{"$f":"IFERROR(VLOOKUP(D766,'Species List'!$D$51:$E$89,2,FALSE)*J766,\"\")","v":""},{"$f":"IFERROR(VLOOKUP(D766,'Species List'!$D$95:$E$102,2,FALSE)*J766,\"\")","v":""},{"$f":"IFERROR(VLOOKUP(D766,'Species List'!$I$10:$J$11,2,FALSE)*J766,\"\")","v":""},{"$f":"IFERROR(VLOOKUP(D766,'Species List'!$I$16:$J$61,2,FALSE)*J766,\"\")","v":""},{"$f":"IFERROR(VLOOKUP(D766,'Species List'!$I$66:$J$66,2,FALSE)*J766,\"\")","v":""},{"$f":"IFERROR(VLOOKUP(D766,'Species List'!$I$71:$J$82,2,FALSE)*J766,\"\")","v":""},0,null,null,null,null,null,null,{"$f":"IFERROR(INDEX('3 - Land Summary'!$B$21:$B$120,(MATCH(AD766,'3 - Land Summary'!$C$21:$C$120,0))),\"\")","v":""}]
[null,{"$f":"IFERROR(INDEX('3 - Land Summary'!$B$21:$B$120,(MATCH('4 - Species Breakdown'!$V767,'3 - Land Summary'!$C$21:$C$120,0))),\"\")","v":""},null,null,{"$f":"IF(OR(COUNTIF('Look Up Data'!$D$149:$D$203,D767),COUNTIF('Look Up Data'!$D$149:$D$203,AE767)),\"YES\",\"NO\")","v":"NO"},null,null,{"$f":"IFERROR(INDEX('3 - Land Summary'!$G$21:$G$120,(MATCH(C767,'3 - Land Summary'!$C$21:$C$120,0))),\"\")","v":""},{"$f":"IFERROR(INDEX('3 - Land Summary'!$I$21:$I$120,(MATCH(C767,'3 - Land Summary'!$C$21:$C$120,0))),\"\")","v":""},"","",null,null,null,{"$f":"IFERROR(VLOOKUP(D767,'Species List'!$D$10:$E$46,2,FALSE)*J767,\"\")","v":""},{"$f":"IFERROR(VLOOKUP(D767,'Species List'!$D$51:$E$89,2,FALSE)*J767,\"\")","v":""},{"$f":"IFERROR(VLOOKUP(D767,'Species List'!$D$95:$E$102,2,FALSE)*J767,\"\")","v":""},{"$f":"IFERROR(VLOOKUP(D767,'Species List'!$I$10:$J$11,2,FALSE)*J767,\"\")","v":""},{"$f":"IFERROR(VLOOKUP(D767,'Species List'!$I$16:$J$61,2,FALSE)*J767,\"\")","v":""},{"$f":"IFERROR(VLOOKUP(D767,'Species List'!$I$66:$J$66,2,FALSE)*J767,\"\")","v":""},{"$f":"IFERROR(VLOOKUP(D767,'Species List'!$I$71:$J$82,2,FALSE)*J767,\"\")","v":""},0,null,null,null,null,null,null,{"$f":"IFERROR(INDEX('3 - Land Summary'!$B$21:$B$120,(MATCH(AD767,'3 - Land Summary'!$C$21:$C$120,0))),\"\")","v":""}]
[null,{"$f":"IFERROR(INDEX('3 - Land Summary'!$B$21:$B$120,(MATCH('4 - Species Breakdown'!$V768,'3 - Land Summary'!$C$21:$C$120,0))),\"\")","v":""},null,null,{"$f":"IF(OR(COUNTIF('Look Up Data'!$D$149:$D$203,D768),COUNTIF('Look Up Data'!$D$149:$D$203,AE768)),\"YES\",\"NO\")","v":"NO"},null,null,{"$f":"IFERROR(INDEX('3 - Land Summary'!$G$21:$G$120,(MATCH(C768,'3 - Land Summary'!$C$21:$C$120,0))),\"\")","v":""},{"$f":"IFERROR(INDEX('3 - Land Summary'!$I$21:$I$120,(MATCH(C768,'3 - Land Summary'!$C$21:$C$120,0))),\"\")","v":""},"","",null,null,null,{"$f":"IFERROR(VLOOKUP(D768,'Species List'!$D$10:$E$46,2,FALSE)*J768,\"\")","v":""},{"$f":"IFERROR(VLOOKUP(D768,'Species List'!$D$51:$E$89,2,FALSE)*J768,\"\")","v":""},{"$f":"IFERROR(VLOOKUP(D768,'Species List'!$D$95:$E$102,2,FALSE)*J768,\"\")","v":""},{"$f":"IFERROR(VLOOKUP(D768,'Species List'!$I$10:$J$11,2,FALSE)*J768,\"\")","v":""},{"$f":"IFERROR(VLOOKUP(D768,'Species List'!$I$16:$J$61,2,FALSE)*J768,\"\")","v":""},{"$f":"IFERROR(VLOOKUP(D768,'Species List'!$I$66:$J$66,2,FALSE)*J768,\"\")","v":""},{"$f":"IFERROR(VLOOKUP(D768,'Species List'!$I$71:$J$82,2,FALSE)*J768,\"\")","v":""},0,null,null,null,null,null,null,{"$f":"IFERROR(INDEX('3 - Land Summary'!$B$21:$B$120,(MATCH(AD768,'3 - Land Summary'!$C$21:$C$120,0))),\"\")","v":""}]
[null,{"$f":"IFERROR(INDEX('3 - Land Summary'!$B$21:$B$120,(MATCH('4 - Species Breakdown'!$V769,'3 - Land Summary'!$C$21:$C$120,0))),\"\")","v":""},null,null,{"$f":"IF(OR(COUNTIF('Look Up Data'!$D$149:$D$203,D769),COUNTIF('Look Up Data'!$D$149:$D$203,AE769)),\"YES\",\"NO\")","v":"NO"},null,null,{"$f":"IFERROR(INDEX('3 - Land Summary'!$G$21:$G$120,(MATCH(C769,'3 - Land Summary'!$C$21:$C$120,0))),\"\")","v":""},{"$f":"IFERROR(INDEX('3 - Land Summary'!$I$21:$I$120,(MATCH(C769,'3 - Land Summary'!$C$21:$C$120,0))),\"\")","v":""},"","",null,null,null,{"$f":"IFERROR(VLOOKUP(D769,'Species List'!$D$10:$E$46,2,FALSE)*J769,\"\")","v":""},{"$f":"IFERROR(VLOOKUP(D769,'Species List'!$D$51:$E$89,2,FALSE)*J769,\"\")","v":""},{"$f":"IFERROR(VLOOKUP(D769,'Species List'!$D$95:$E$102,2,FALSE)*J769,\"\")","v":""},{"$f":"IFERROR(VLOOKUP(D769,'Species List'!$I$10:$J$11,2,FALSE)*J769,\"\")","v":""},{"$f":"IFERROR(VLOOKUP(D769,'Species List'!$I$16:$J$61,2,FALSE)*J769,\"\")","v":""},{"$f":"IFERROR(VLOOKUP(D769,'Species List'!$I$66:$J$66,2,FALSE)*J769,\"\")","v":""},{"$f":"IFERROR(VLOOKUP(D769,'Species List'!$I$71:$J$82,2,FALSE)*J769,\"\")","v":""},0,null,null,null,null,null,null,{"$f":"IFERROR(INDEX('3 - Land Summary'!$B$21:$B$120,(MATCH(AD769,'3 - Land Summary'!$C$21:$C$120,0))),\"\")","v":""}]
[null,{"$f":"IFERROR(INDEX('3 - Land Summary'!$B$21:$B$120,(MATCH('4 - Species Breakdown'!$V770,'3 - Land Summary'!$C$21:$C$120,0))),\"\")","v":""},null,null,{"$f":"IF(OR(COUNTIF('Look Up Data'!$D$149:$D$203,D770),COUNTIF('Look Up Data'!$D$149:$D$203,AE770)),\"YES\",\"NO\")","v":"NO"},null,null,{"$f":"IFERROR(INDEX('3 - Land Summary'!$G$21:$G$120,(MATCH(C770,'3 - Land Summary'!$C$21:$C$120,0))),\"\")","v":""},{"$f":"IFERROR(INDEX('3 - Land Summary'!$I$21:$I$120,(MATCH(C770,'3 - Land Summary'!$C$21:$C$120,0))),\"\")","v":""},"","",null,null,null,{"$f":"IFERROR(VLOOKUP(D770,'Species List'!$D$10:$E$46,2,FALSE)*J770,\"\")","v":""},{"$f":"IFERROR(VLOOKUP(D770,'Species List'!$D$51:$E$89,2,FALSE)*J770,\"\")","v":""},{"$f":"IFERROR(VLOOKUP(D770,'Species List'!$D$95:$E$102,2,FALSE)*J770,\"\")","v":""},{"$f":"IFERROR(VLOOKUP(D770,'Species List'!$I$10:$J$11,2,FALSE)*J770,\"\")","v":""},{"$f":"IFERROR(VLOOKUP(D770,'Species List'!$I$16:$J$61,2,FALSE)*J770,\"\")","v":""},{"$f":"IFERROR(VLOOKUP(D770,'Species List'!$I$66:$J$66,2,FALSE)*J770,\"\")","v":""},{"$f":"IFERROR(VLOOKUP(D770,'Species List'!$I$71:$J$82,2,FALSE)*J770,\"\")","v":""},0,null,null,null,null,null,null,{"$f":"IFERROR(INDEX('3 - Land Summary'!$B$21:$B$120,(MATCH(AD770,'3 - Land Summary'!$C$21:$C$120,0))),\"\")","v":""}]
[null,{"$f":"IFERROR(INDEX('3 - Land Summary'!$B$21:$B$120,(MATCH('4 - Species Breakdown'!$V771,'3 - Land Summary'!$C$21:$C$120,0))),\"\")","v":""},null,null,{"$f":"IF(OR(COUNTIF('Look Up Data'!$D$149:$D$203,D771),COUNTIF('Look Up Data'!$D$149:$D$203,AE771)),\"YES\",\"NO\")","v":"NO"},null,null,{"$f":"IFERROR(INDEX('3 - Land Summary'!$G$21:$G$120,(MATCH(C771,'3 - Land Summary'!$C$21:$C$120,0))),\"\")","v":""},{"$f":"IFERROR(INDEX('3 - Land Summary'!$I$21:$I$120,(MATCH(C771,'3 - Land Summary'!$C$21:$C$120,0))),\"\")","v":""},"","",null,null,null,{"$f":"IFERROR(VLOOKUP(D771,'Species List'!$D$10:$E$46,2,FALSE)*J771,\"\")","v":""},{"$f":"IFERROR(VLOOKUP(D771,'Species List'!$D$51:$E$89,2,FALSE)*J771,\"\")","v":""},{"$f":"IFERROR(VLOOKUP(D771,'Species List'!$D$95:$E$102,2,FALSE)*J771,\"\")","v":""},{"$f":"IFERROR(VLOOKUP(D771,'Species List'!$I$10:$J$11,2,FALSE)*J771,\"\")","v":""},{"$f":"IFERROR(VLOOKUP(D771,'Species List'!$I$16:$J$61,2,FALSE)*J771,\"\")","v":""},{"$f":"IFERROR(VLOOKUP(D771,'Species List'!$I$66:$J$66,2,FALSE)*J771,\"\")","v":""},{"$f":"IFERROR(VLOOKUP(D771,'Species List'!$I$71:$J$82,2,FALSE)*J771,\"\")","v":""},0,null,null,null,null,null,null,{"$f":"IFERROR(INDEX('3 - Land Summary'!$B$21:$B$120,(MATCH(AD771,'3 - Land Summary'!$C$21:$C$120,0))),\"\")","v":""}]
[null,{"$f":"IFERROR(INDEX('3 - Land Summary'!$B$21:$B$120,(MATCH('4 - Species Breakdown'!$V772,'3 - Land Summary'!$C$21:$C$120,0))),\"\")","v":""},null,null,{"$f":"IF(OR(COUNTIF('Look Up Data'!$D$149:$D$203,D772),COUNTIF('Look Up Data'!$D$149:$D$203,AE772)),\"YES\",\"NO\")","v":"NO"},null,null,{"$f":"IFERROR(INDEX('3 - Land Summary'!$G$21:$G$120,(MATCH(C772,'3 - Land Summary'!$C$21:$C$120,0))),\"\")","v":""},{"$f":"IFERROR(INDEX('3 - Land Summary'!$I$21:$I$120,(MATCH(C772,'3 - Land Summary'!$C$21:$C$120,0))),\"\")","v":""},"","",null,null,null,{"$f":"IFERROR(VLOOKUP(D772,'Species List'!$D$10:$E$46,2,FALSE)*J772,\"\")","v":""},{"$f":"IFERROR(VLOOKUP(D772,'Species List'!$D$51:$E$89,2,FALSE)*J772,\"\")","v":""},{"$f":"IFERROR(VLOOKUP(D772,'Species List'!$D$95:$E$102,2,FALSE)*J772,\"\")","v":""},{"$f":"IFERROR(VLOOKUP(D772,'Species List'!$I$10:$J$11,2,FALSE)*J772,\"\")","v":""},{"$f":"IFERROR(VLOOKUP(D772,'Species List'!$I$16:$J$61,2,FALSE)*J772,\"\")","v":""},{"$f":"IFERROR(VLOOKUP(D772,'Species List'!$I$66:$J$66,2,FALSE)*J772,\"\")","v":""},{"$f":"IFERROR(VLOOKUP(D772,'Species List'!$I$71:$J$82,2,FALSE)*J772,\"\")","v":""},0,null,null,null,null,null,null,{"$f":"IFERROR(INDEX('3 - Land Summary'!$B$21:$B$120,(MATCH(AD772,'3 - Land Summary'!$C$21:$C$120,0))),\"\")","v":""}]
[null,{"$f":"IFERROR(INDEX('3 - Land Summary'!$B$21:$B$120,(MATCH('4 - Species Breakdown'!$V773,'3 - Land Summary'!$C$21:$C$120,0))),\"\")","v":""},null,null,{"$f":"IF(OR(COUNTIF('Look Up Data'!$D$149:$D$203,D773),COUNTIF('Look Up Data'!$D$149:$D$203,AE773)),\"YES\",\"NO\")","v":"NO"},null,null,{"$f":"IFERROR(INDEX('3 - Land Summary'!$G$21:$G$120,(MATCH(C773,'3 - Land Summary'!$C$21:$C$120,0))),\"\")","v":""},{"$f":"IFERROR(INDEX('3 - Land Summary'!$I$21:$I$120,(MATCH(C773,'3 - Land Summary'!$C$21:$C$120,0))),\"\")","v":""},"","",null,null,null,{"$f":"IFERROR(VLOOKUP(D773,'Species List'!$D$10:$E$46,2,FALSE)*J773,\"\")","v":""},{"$f":"IFERROR(VLOOKUP(D773,'Species List'!$D$51:$E$89,2,FALSE)*J773,\"\")","v":""},{"$f":"IFERROR(VLOOKUP(D773,'Species List'!$D$95:$E$102,2,FALSE)*J773,\"\")","v":""},{"$f":"IFERROR(VLOOKUP(D773,'Species List'!$I$10:$J$11,2,FALSE)*J773,\"\")","v":""},{"$f":"IFERROR(VLOOKUP(D773,'Species List'!$I$16:$J$61,2,FALSE)*J773,\"\")","v":""},{"$f":"IFERROR(VLOOKUP(D773,'Species List'!$I$66:$J$66,2,FALSE)*J773,\"\")","v":""},{"$f":"IFERROR(VLOOKUP(D773,'Species List'!$I$71:$J$82,2,FALSE)*J773,\"\")","v":""},0,null,null,null,null,null,null,{"$f":"IFERROR(INDEX('3 - Land Summary'!$B$21:$B$120,(MATCH(AD773,'3 - Land Summary'!$C$21:$C$120,0))),\"\")","v":""}]
[null,{"$f":"IFERROR(INDEX('3 - Land Summary'!$B$21:$B$120,(MATCH('4 - Species Breakdown'!$V774,'3 - Land Summary'!$C$21:$C$120,0))),\"\")","v":""},null,null,{"$f":"IF(OR(COUNTIF('Look Up Data'!$D$149:$D$203,D774),COUNTIF('Look Up Data'!$D$149:$D$203,AE774)),\"YES\",\"NO\")","v":"NO"},null,null,{"$f":"IFERROR(INDEX('3 - Land Summary'!$G$21:$G$120,(MATCH(C774,'3 - Land Summary'!$C$21:$C$120,0))),\"\")","v":""},{"$f":"IFERROR(INDEX('3 - Land Summary'!$I$21:$I$120,(MATCH(C774,'3 - Land Summary'!$C$21:$C$120,0))),\"\")","v":""},"","",null,null,null,{"$f":"IFERROR(VLOOKUP(D774,'Species List'!$D$10:$E$46,2,FALSE)*J774,\"\")","v":""},{"$f":"IFERROR(VLOOKUP(D774,'Species List'!$D$51:$E$89,2,FALSE)*J774,\"\")","v":""},{"$f":"IFERROR(VLOOKUP(D774,'Species List'!$D$95:$E$102,2,FALSE)*J774,\"\")","v":""},{"$f":"IFERROR(VLOOKUP(D774,'Species List'!$I$10:$J$11,2,FALSE)*J774,\"\")","v":""},{"$f":"IFERROR(VLOOKUP(D774,'Species List'!$I$16:$J$61,2,FALSE)*J774,\"\")","v":""},{"$f":"IFERROR(VLOOKUP(D774,'Species List'!$I$66:$J$66,2,FALSE)*J774,\"\")","v":""},{"$f":"IFERROR(VLOOKUP(D774,'Species List'!$I$71:$J$82,2,FALSE)*J774,\"\")","v":""},0,null,null,null,null,null,null,{"$f":"IFERROR(INDEX('3 - Land Summary'!$B$21:$B$120,(MATCH(AD774,'3 - Land Summary'!$C$21:$C$120,0))),\"\")","v":""}]
[null,{"$f":"IFERROR(INDEX('3 - Land Summary'!$B$21:$B$120,(MATCH('4 - Species Breakdown'!$V775,'3 - Land Summary'!$C$21:$C$120,0))),\"\")","v":""},null,null,{"$f":"IF(OR(COUNTIF('Look Up Data'!$D$149:$D$203,D775),COUNTIF('Look Up Data'!$D$149:$D$203,AE775)),\"YES\",\"NO\")","v":"NO"},null,null,{"$f":"IFERROR(INDEX('3 - Land Summary'!$G$21:$G$120,(MATCH(C775,'3 - Land Summary'!$C$21:$C$120,0))),\"\")","v":""},{"$f":"IFERROR(INDEX('3 - Land Summary'!$I$21:$I$120,(MATCH(C775,'3 - Land Summary'!$C$21:$C$120,0))),\"\")","v":""},"","",null,null,null,{"$f":"IFERROR(VLOOKUP(D775,'Species List'!$D$10:$E$46,2,FALSE)*J775,\"\")","v":""},{"$f":"IFERROR(VLOOKUP(D775,'Species List'!$D$51:$E$89,2,FALSE)*J775,\"\")","v":""},{"$f":"IFERROR(VLOOKUP(D775,'Species List'!$D$95:$E$102,2,FALSE)*J775,\"\")","v":""},{"$f":"IFERROR(VLOOKUP(D775,'Species List'!$I$10:$J$11,2,FALSE)*J775,\"\")","v":""},{"$f":"IFERROR(VLOOKUP(D775,'Species List'!$I$16:$J$61,2,FALSE)*J775,\"\")","v":""},{"$f":"IFERROR(VLOOKUP(D775,'Species List'!$I$66:$J$66,2,FALSE)*J775,\"\")","v":""},{"$f":"IFERROR(VLOOKUP(D775,'Species List'!$I$71:$J$82,2,FALSE)*J775,\"\")","v":""},0,null,null,null,null,null,null,{"$f":"IFERROR(INDEX('3 - Land Summary'!$B$21:$B$120,(MATCH(AD775,'3 - Land Summary'!$C$21:$C$120,0))),\"\")","v":""}]
[null,{"$f":"IFERROR(INDEX('3 - Land Summary'!$B$21:$B$120,(MATCH('4 - Species Breakdown'!$V776,'3 - Land Summary'!$C$21:$C$120,0))),\"\")","v":""},null,null,{"$f":"IF(OR(COUNTIF('Look Up Data'!$D$149:$D$203,D776),COUNTIF('Look Up Data'!$D$149:$D$203,AE776)),\"YES\",\"NO\")","v":"NO"},null,null,{"$f":"IFERROR(INDEX('3 - Land Summary'!$G$21:$G$120,(MATCH(C776,'3 - Land Summary'!$C$21:$C$120,0))),\"\")","v":""},{"$f":"IFERROR(INDEX('3 - Land Summary'!$I$21:$I$120,(MATCH(C776,'3 - Land Summary'!$C$21:$C$120,0))),\"\")","v":""},"","",null,null,null,{"$f":"IFERROR(VLOOKUP(D776,'Species List'!$D$10:$E$46,2,FALSE)*J776,\"\")","v":""},{"$f":"IFERROR(VLOOKUP(D776,'Species List'!$D$51:$E$89,2,FALSE)*J776,\"\")","v":""},{"$f":"IFERROR(VLOOKUP(D776,'Species List'!$D$95:$E$102,2,FALSE)*J776,\"\")","v":""},{"$f":"IFERROR(VLOOKUP(D776,'Species List'!$I$10:$J$11,2,FALSE)*J776,\"\")","v":""},{"$f":"IFERROR(VLOOKUP(D776,'Species List'!$I$16:$J$61,2,FALSE)*J776,\"\")","v":""},{"$f":"IFERROR(VLOOKUP(D776,'Species List'!$I$66:$J$66,2,FALSE)*J776,\"\")","v":""},{"$f":"IFERROR(VLOOKUP(D776,'Species List'!$I$71:$J$82,2,FALSE)*J776,\"\")","v":""},0,null,null,null,null,null,null,{"$f":"IFERROR(INDEX('3 - Land Summary'!$B$21:$B$120,(MATCH(AD776,'3 - Land Summary'!$C$21:$C$120,0))),\"\")","v":""}]
[null,{"$f":"IFERROR(INDEX('3 - Land Summary'!$B$21:$B$120,(MATCH('4 - Species Breakdown'!$V777,'3 - Land Summary'!$C$21:$C$120,0))),\"\")","v":""},null,null,{"$f":"IF(OR(COUNTIF('Look Up Data'!$D$149:$D$203,D777),COUNTIF('Look Up Data'!$D$149:$D$203,AE777)),\"YES\",\"NO\")","v":"NO"},null,null,{"$f":"IFERROR(INDEX('3 - Land Summary'!$G$21:$G$120,(MATCH(C777,'3 - Land Summary'!$C$21:$C$120,0))),\"\")","v":""},{"$f":"IFERROR(INDEX('3 - Land Summary'!$I$21:$I$120,(MATCH(C777,'3 - Land Summary'!$C$21:$C$120,0))),\"\")","v":""},"","",null,null,null,{"$f":"IFERROR(VLOOKUP(D777,'Species List'!$D$10:$E$46,2,FALSE)*J777,\"\")","v":""},{"$f":"IFERROR(VLOOKUP(D777,'Species List'!$D$51:$E$89,2,FALSE)*J777,\"\")","v":""},{"$f":"IFERROR(VLOOKUP(D777,'Species List'!$D$95:$E$102,2,FALSE)*J777,\"\")","v":""},{"$f":"IFERROR(VLOOKUP(D777,'Species List'!$I$10:$J$11,2,FALSE)*J777,\"\")","v":""},{"$f":"IFERROR(VLOOKUP(D777,'Species List'!$I$16:$J$61,2,FALSE)*J777,\"\")","v":""},{"$f":"IFERROR(VLOOKUP(D777,'Species List'!$I$66:$J$66,2,FALSE)*J777,\"\")","v":""},{"$f":"IFERROR(VLOOKUP(D777,'Species List'!$I$71:$J$82,2,FALSE)*J777,\"\")","v":""},0,null,null,null,null,null,null,{"$f":"IFERROR(INDEX('3 - Land Summary'!$B$21:$B$120,(MATCH(AD777,'3 - Land Summary'!$C$21:$C$120,0))),\"\")","v":""}]
[null,{"$f":"IFERROR(INDEX('3 - Land Summary'!$B$21:$B$120,(MATCH('4 - Species Breakdown'!$V778,'3 - Land Summary'!$C$21:$C$120,0))),\"\")","v":""},null,null,{"$f":"IF(OR(COUNTIF('Look Up Data'!$D$149:$D$203,D778),COUNTIF('Look Up Data'!$D$149:$D$203,AE778)),\"YES\",\"NO\")","v":"NO"},null,null,{"$f":"IFERROR(INDEX('3 - Land Summary'!$G$21:$G$120,(MATCH(C778,'3 - Land Summary'!$C$21:$C$120,0))),\"\")","v":""},{"$f":"IFERROR(INDEX('3 - Land Summary'!$I$21:$I$120,(MATCH(C778,'3 - Land Summary'!$C$21:$C$120,0))),\"\")","v":""},"","",null,null,null,{"$f":"IFERROR(VLOOKUP(D778,'Species List'!$D$10:$E$46,2,FALSE)*J778,\"\")","v":""},{"$f":"IFERROR(VLOOKUP(D778,'Species List'!$D$51:$E$89,2,FALSE)*J778,\"\")","v":""},{"$f":"IFERROR(VLOOKUP(D778,'Species List'!$D$95:$E$102,2,FALSE)*J778,\"\")","v":""},{"$f":"IFERROR(VLOOKUP(D778,'Species List'!$I$10:$J$11,2,FALSE)*J778,\"\")","v":""},{"$f":"IFERROR(VLOOKUP(D778,'Species List'!$I$16:$J$61,2,FALSE)*J778,\"\")","v":""},{"$f":"IFERROR(VLOOKUP(D778,'Species List'!$I$66:$J$66,2,FALSE)*J778,\"\")","v":""},{"$f":"IFERROR(VLOOKUP(D778,'Species List'!$I$71:$J$82,2,FALSE)*J778,\"\")","v":""},0,null,null,null,null,null,null,{"$f":"IFERROR(INDEX('3 - Land Summary'!$B$21:$B$120,(MATCH(AD778,'3 - Land Summary'!$C$21:$C$120,0))),\"\")","v":""}]
[null,{"$f":"IFERROR(INDEX('3 - Land Summary'!$B$21:$B$120,(MATCH('4 - Species Breakdown'!$V779,'3 - Land Summary'!$C$21:$C$120,0))),\"\")","v":""},null,null,{"$f":"IF(OR(COUNTIF('Look Up Data'!$D$149:$D$203,D779),COUNTIF('Look Up Data'!$D$149:$D$203,AE779)),\"YES\",\"NO\")","v":"NO"},null,null,{"$f":"IFERROR(INDEX('3 - Land Summary'!$G$21:$G$120,(MATCH(C779,'3 - Land Summary'!$C$21:$C$120,0))),\"\")","v":""},{"$f":"IFERROR(INDEX('3 - Land Summary'!$I$21:$I$120,(MATCH(C779,'3 - Land Summary'!$C$21:$C$120,0))),\"\")","v":""},"","",null,null,null,{"$f":"IFERROR(VLOOKUP(D779,'Species List'!$D$10:$E$46,2,FALSE)*J779,\"\")","v":""},{"$f":"IFERROR(VLOOKUP(D779,'Species List'!$D$51:$E$89,2,FALSE)*J779,\"\")","v":""},{"$f":"IFERROR(VLOOKUP(D779,'Species List'!$D$95:$E$102,2,FALSE)*J779,\"\")","v":""},{"$f":"IFERROR(VLOOKUP(D779,'Species List'!$I$10:$J$11,2,FALSE)*J779,\"\")","v":""},{"$f":"IFERROR(VLOOKUP(D779,'Species List'!$I$16:$J$61,2,FALSE)*J779,\"\")","v":""},{"$f":"IFERROR(VLOOKUP(D779,'Species List'!$I$66:$J$66,2,FALSE)*J779,\"\")","v":""},{"$f":"IFERROR(VLOOKUP(D779,'Species List'!$I$71:$J$82,2,FALSE)*J779,\"\")","v":""},0,null,null,null,null,null,null,{"$f":"IFERROR(INDEX('3 - Land Summary'!$B$21:$B$120,(MATCH(AD779,'3 - Land Summary'!$C$21:$C$120,0))),\"\")","v":""}]
[null,{"$f":"IFERROR(INDEX('3 - Land Summary'!$B$21:$B$120,(MATCH('4 - Species Breakdown'!$V780,'3 - Land Summary'!$C$21:$C$120,0))),\"\")","v":""},null,null,{"$f":"IF(OR(COUNTIF('Look Up Data'!$D$149:$D$203,D780),COUNTIF('Look Up Data'!$D$149:$D$203,AE780)),\"YES\",\"NO\")","v":"NO"},null,null,{"$f":"IFERROR(INDEX('3 - Land Summary'!$G$21:$G$120,(MATCH(C780,'3 - Land Summary'!$C$21:$C$120,0))),\"\")","v":""},{"$f":"IFERROR(INDEX('3 - Land Summary'!$I$21:$I$120,(MATCH(C780,'3 - Land Summary'!$C$21:$C$120,0))),\"\")","v":""},"","",null,null,null,{"$f":"IFERROR(VLOOKUP(D780,'Species List'!$D$10:$E$46,2,FALSE)*J780,\"\")","v":""},{"$f":"IFERROR(VLOOKUP(D780,'Species List'!$D$51:$E$89,2,FALSE)*J780,\"\")","v":""},{"$f":"IFERROR(VLOOKUP(D780,'Species List'!$D$95:$E$102,2,FALSE)*J780,\"\")","v":""},{"$f":"IFERROR(VLOOKUP(D780,'Species List'!$I$10:$J$11,2,FALSE)*J780,\"\")","v":""},{"$f":"IFERROR(VLOOKUP(D780,'Species List'!$I$16:$J$61,2,FALSE)*J780,\"\")","v":""},{"$f":"IFERROR(VLOOKUP(D780,'Species List'!$I$66:$J$66,2,FALSE)*J780,\"\")","v":""},{"$f":"IFERROR(VLOOKUP(D780,'Species List'!$I$71:$J$82,2,FALSE)*J780,\"\")","v":""},0,null,null,null,null,null,null,{"$f":"IFERROR(INDEX('3 - Land Summary'!$B$21:$B$120,(MATCH(AD780,'3 - Land Summary'!$C$21:$C$120,0))),\"\")","v":""}]
[null,{"$f":"IFERROR(INDEX('3 - Land Summary'!$B$21:$B$120,(MATCH('4 - Species Breakdown'!$V781,'3 - Land Summary'!$C$21:$C$120,0))),\"\")","v":""},null,null,{"$f":"IF(OR(COUNTIF('Look Up Data'!$D$149:$D$203,D781),COUNTIF('Look Up Data'!$D$149:$D$203,AE781)),\"YES\",\"NO\")","v":"NO"},null,null,{"$f":"IFERROR(INDEX('3 - Land Summary'!$G$21:$G$120,(MATCH(C781,'3 - Land Summary'!$C$21:$C$120,0))),\"\")","v":""},{"$f":"IFERROR(INDEX('3 - Land Summary'!$I$21:$I$120,(MATCH(C781,'3 - Land Summary'!$C$21:$C$120,0))),\"\")","v":""},"","",null,null,null,{"$f":"IFERROR(VLOOKUP(D781,'Species List'!$D$10:$E$46,2,FALSE)*J781,\"\")","v":""},{"$f":"IFERROR(VLOOKUP(D781,'Species List'!$D$51:$E$89,2,FALSE)*J781,\"\")","v":""},{"$f":"IFERROR(VLOOKUP(D781,'Species List'!$D$95:$E$102,2,FALSE)*J781,\"\")","v":""},{"$f":"IFERROR(VLOOKUP(D781,'Species List'!$I$10:$J$11,2,FALSE)*J781,\"\")","v":""},{"$f":"IFERROR(VLOOKUP(D781,'Species List'!$I$16:$J$61,2,FALSE)*J781,\"\")","v":""},{"$f":"IFERROR(VLOOKUP(D781,'Species List'!$I$66:$J$66,2,FALSE)*J781,\"\")","v":""},{"$f":"IFERROR(VLOOKUP(D781,'Species List'!$I$71:$J$82,2,FALSE)*J781,\"\")","v":""},0,null,null,null,null,null,null,{"$f":"IFERROR(INDEX('3 - Land Summary'!$B$21:$B$120,(MATCH(AD781,'3 - Land Summary'!$C$21:$C$120,0))),\"\")","v":""}]
[null,{"$f":"IFERROR(INDEX('3 - Land Summary'!$B$21:$B$120,(MATCH('4 - Species Breakdown'!$V782,'3 - Land Summary'!$C$21:$C$120,0))),\"\")","v":""},null,null,{"$f":"IF(OR(COUNTIF('Look Up Data'!$D$149:$D$203,D782),COUNTIF('Look Up Data'!$D$149:$D$203,AE782)),\"YES\",\"NO\")","v":"NO"},null,null,{"$f":"IFERROR(INDEX('3 - Land Summary'!$G$21:$G$120,(MATCH(C782,'3 - Land Summary'!$C$21:$C$120,0))),\"\")","v":""},{"$f":"IFERROR(INDEX('3 - Land Summary'!$I$21:$I$120,(MATCH(C782,'3 - Land Summary'!$C$21:$C$120,0))),\"\")","v":""},"","",null,null,null,{"$f":"IFERROR(VLOOKUP(D782,'Species List'!$D$10:$E$46,2,FALSE)*J782,\"\")","v":""},{"$f":"IFERROR(VLOOKUP(D782,'Species List'!$D$51:$E$89,2,FALSE)*J782,\"\")","v":""},{"$f":"IFERROR(VLOOKUP(D782,'Species List'!$D$95:$E$102,2,FALSE)*J782,\"\")","v":""},{"$f":"IFERROR(VLOOKUP(D782,'Species List'!$I$10:$J$11,2,FALSE)*J782,\"\")","v":""},{"$f":"IFERROR(VLOOKUP(D782,'Species List'!$I$16:$J$61,2,FALSE)*J782,\"\")","v":""},{"$f":"IFERROR(VLOOKUP(D782,'Species List'!$I$66:$J$66,2,FALSE)*J782,\"\")","v":""},{"$f":"IFERROR(VLOOKUP(D782,'Species List'!$I$71:$J$82,2,FALSE)*J782,\"\")","v":""},0,null,null,null,null,null,null,{"$f":"IFERROR(INDEX('3 - Land Summary'!$B$21:$B$120,(MATCH(AD782,'3 - Land Summary'!$C$21:$C$120,0))),\"\")","v":""}]
[null,{"$f":"IFERROR(INDEX('3 - Land Summary'!$B$21:$B$120,(MATCH('4 - Species Breakdown'!$V783,'3 - Land Summary'!$C$21:$C$120,0))),\"\")","v":""},null,null,{"$f":"IF(OR(COUNTIF('Look Up Data'!$D$149:$D$203,D783),COUNTIF('Look Up Data'!$D$149:$D$203,AE783)),\"YES\",\"NO\")","v":"NO"},null,null,{"$f":"IFERROR(INDEX('3 - Land Summary'!$G$21:$G$120,(MATCH(C783,'3 - Land Summary'!$C$21:$C$120,0))),\"\")","v":""},{"$f":"IFERROR(INDEX('3 - Land Summary'!$I$21:$I$120,(MATCH(C783,'3 - Land Summary'!$C$21:$C$120,0))),\"\")","v":""},"","",null,null,null,{"$f":"IFERROR(VLOOKUP(D783,'Species List'!$D$10:$E$46,2,FALSE)*J783,\"\")","v":""},{"$f":"IFERROR(VLOOKUP(D783,'Species List'!$D$51:$E$89,2,FALSE)*J783,\"\")","v":""},{"$f":"IFERROR(VLOOKUP(D783,'Species List'!$D$95:$E$102,2,FALSE)*J783,\"\")","v":""},{"$f":"IFERROR(VLOOKUP(D783,'Species List'!$I$10:$J$11,2,FALSE)*J783,\"\")","v":""},{"$f":"IFERROR(VLOOKUP(D783,'Species List'!$I$16:$J$61,2,FALSE)*J783,\"\")","v":""},{"$f":"IFERROR(VLOOKUP(D783,'Species List'!$I$66:$J$66,2,FALSE)*J783,\"\")","v":""},{"$f":"IFERROR(VLOOKUP(D783,'Species List'!$I$71:$J$82,2,FALSE)*J783,\"\")","v":""},0,null,null,null,null,null,null,{"$f":"IFERROR(INDEX('3 - Land Summary'!$B$21:$B$120,(MATCH(AD783,'3 - Land Summary'!$C$21:$C$120,0))),\"\")","v":""}]
[null,{"$f":"IFERROR(INDEX('3 - Land Summary'!$B$21:$B$120,(MATCH('4 - Species Breakdown'!$V784,'3 - Land Summary'!$C$21:$C$120,0))),\"\")","v":""},null,null,{"$f":"IF(OR(COUNTIF('Look Up Data'!$D$149:$D$203,D784),COUNTIF('Look Up Data'!$D$149:$D$203,AE784)),\"YES\",\"NO\")","v":"NO"},null,null,{"$f":"IFERROR(INDEX('3 - Land Summary'!$G$21:$G$120,(MATCH(C784,'3 - Land Summary'!$C$21:$C$120,0))),\"\")","v":""},{"$f":"IFERROR(INDEX('3 - Land Summary'!$I$21:$I$120,(MATCH(C784,'3 - Land Summary'!$C$21:$C$120,0))),\"\")","v":""},"","",null,null,null,{"$f":"IFERROR(VLOOKUP(D784,'Species List'!$D$10:$E$46,2,FALSE)*J784,\"\")","v":""},{"$f":"IFERROR(VLOOKUP(D784,'Species List'!$D$51:$E$89,2,FALSE)*J784,\"\")","v":""},{"$f":"IFERROR(VLOOKUP(D784,'Species List'!$D$95:$E$102,2,FALSE)*J784,\"\")","v":""},{"$f":"IFERROR(VLOOKUP(D784,'Species List'!$I$10:$J$11,2,FALSE)*J784,\"\")","v":""},{"$f":"IFERROR(VLOOKUP(D784,'Species List'!$I$16:$J$61,2,FALSE)*J784,\"\")","v":""},{"$f":"IFERROR(VLOOKUP(D784,'Species List'!$I$66:$J$66,2,FALSE)*J784,\"\")","v":""},{"$f":"IFERROR(VLOOKUP(D784,'Species List'!$I$71:$J$82,2,FALSE)*J784,\"\")","v":""},0,null,null,null,null,null,null,{"$f":"IFERROR(INDEX('3 - Land Summary'!$B$21:$B$120,(MATCH(AD784,'3 - Land Summary'!$C$21:$C$120,0))),\"\")","v":""}]
[null,{"$f":"IFERROR(INDEX('3 - Land Summary'!$B$21:$B$120,(MATCH('4 - Species Breakdown'!$V785,'3 - Land Summary'!$C$21:$C$120,0))),\"\")","v":""},null,null,{"$f":"IF(OR(COUNTIF('Look Up Data'!$D$149:$D$203,D785),COUNTIF('Look Up Data'!$D$149:$D$203,AE785)),\"YES\",\"NO\")","v":"NO"},null,null,{"$f":"IFERROR(INDEX('3 - Land Summary'!$G$21:$G$120,(MATCH(C785,'3 - Land Summary'!$C$21:$C$120,0))),\"\")","v":""},{"$f":"IFERROR(INDEX('3 - Land Summary'!$I$21:$I$120,(MATCH(C785,'3 - Land Summary'!$C$21:$C$120,0))),\"\")","v":""},"","",null,null,null,{"$f":"IFERROR(VLOOKUP(D785,'Species List'!$D$10:$E$46,2,FALSE)*J785,\"\")","v":""},{"$f":"IFERROR(VLOOKUP(D785,'Species List'!$D$51:$E$89,2,FALSE)*J785,\"\")","v":""},{"$f":"IFERROR(VLOOKUP(D785,'Species List'!$D$95:$E$102,2,FALSE)*J785,\"\")","v":""},{"$f":"IFERROR(VLOOKUP(D785,'Species List'!$I$10:$J$11,2,FALSE)*J785,\"\")","v":""},{"$f":"IFERROR(VLOOKUP(D785,'Species List'!$I$16:$J$61,2,FALSE)*J785,\"\")","v":""},{"$f":"IFERROR(VLOOKUP(D785,'Species List'!$I$66:$J$66,2,FALSE)*J785,\"\")","v":""},{"$f":"IFERROR(VLOOKUP(D785,'Species List'!$I$71:$J$82,2,FALSE)*J785,\"\")","v":""},0,null,null,null,null,null,null,{"$f":"IFERROR(INDEX('3 - Land Summary'!$B$21:$B$120,(MATCH(AD785,'3 - Land Summary'!$C$21:$C$120,0))),\"\")","v":""}]
[null,{"$f":"IFERROR(INDEX('3 - Land Summary'!$B$21:$B$120,(MATCH('4 - Species Breakdown'!$V786,'3 - Land Summary'!$C$21:$C$120,0))),\"\")","v":""},null,null,{"$f":"IF(OR(COUNTIF('Look Up Data'!$D$149:$D$203,D786),COUNTIF('Look Up Data'!$D$149:$D$203,AE786)),\"YES\",\"NO\")","v":"NO"},null,null,{"$f":"IFERROR(INDEX('3 - Land Summary'!$G$21:$G$120,(MATCH(C786,'3 - Land Summary'!$C$21:$C$120,0))),\"\")","v":""},{"$f":"IFERROR(INDEX('3 - Land Summary'!$I$21:$I$120,(MATCH(C786,'3 - Land Summary'!$C$21:$C$120,0))),\"\")","v":""},"","",null,null,null,{"$f":"IFERROR(VLOOKUP(D786,'Species List'!$D$10:$E$46,2,FALSE)*J786,\"\")","v":""},{"$f":"IFERROR(VLOOKUP(D786,'Species List'!$D$51:$E$89,2,FALSE)*J786,\"\")","v":""},{"$f":"IFERROR(VLOOKUP(D786,'Species List'!$D$95:$E$102,2,FALSE)*J786,\"\")","v":""},{"$f":"IFERROR(VLOOKUP(D786,'Species List'!$I$10:$J$11,2,FALSE)*J786,\"\")","v":""},{"$f":"IFERROR(VLOOKUP(D786,'Species List'!$I$16:$J$61,2,FALSE)*J786,\"\")","v":""},{"$f":"IFERROR(VLOOKUP(D786,'Species List'!$I$66:$J$66,2,FALSE)*J786,\"\")","v":""},{"$f":"IFERROR(VLOOKUP(D786,'Species List'!$I$71:$J$82,2,FALSE)*J786,\"\")","v":""},0,null,null,null,null,null,null,{"$f":"IFERROR(INDEX('3 - Land Summary'!$B$21:$B$120,(MATCH(AD786,'3 - Land Summary'!$C$21:$C$120,0))),\"\")","v":""}]
[null,{"$f":"IFERROR(INDEX('3 - Land Summary'!$B$21:$B$120,(MATCH('4 - Species Breakdown'!$V787,'3 - Land Summary'!$C$21:$C$120,0))),\"\")","v":""},null,null,{"$f":"IF(OR(COUNTIF('Look Up Data'!$D$149:$D$203,D787),COUNTIF('Look Up Data'!$D$149:$D$203,AE787)),\"YES\",\"NO\")","v":"NO"},null,null,{"$f":"IFERROR(INDEX('3 - Land Summary'!$G$21:$G$120,(MATCH(C787,'3 - Land Summary'!$C$21:$C$120,0))),\"\")","v":""},{"$f":"IFERROR(INDEX('3 - Land Summary'!$I$21:$I$120,(MATCH(C787,'3 - Land Summary'!$C$21:$C$120,0))),\"\")","v":""},"","",null,null,null,{"$f":"IFERROR(VLOOKUP(D787,'Species List'!$D$10:$E$46,2,FALSE)*J787,\"\")","v":""},{"$f":"IFERROR(VLOOKUP(D787,'Species List'!$D$51:$E$89,2,FALSE)*J787,\"\")","v":""},{"$f":"IFERROR(VLOOKUP(D787,'Species List'!$D$95:$E$102,2,FALSE)*J787,\"\")","v":""},{"$f":"IFERROR(VLOOKUP(D787,'Species List'!$I$10:$J$11,2,FALSE)*J787,\"\")","v":""},{"$f":"IFERROR(VLOOKUP(D787,'Species List'!$I$16:$J$61,2,FALSE)*J787,\"\")","v":""},{"$f":"IFERROR(VLOOKUP(D787,'Species List'!$I$66:$J$66,2,FALSE)*J787,\"\")","v":""},{"$f":"IFERROR(VLOOKUP(D787,'Species List'!$I$71:$J$82,2,FALSE)*J787,\"\")","v":""},0,null,null,null,null,null,null,{"$f":"IFERROR(INDEX('3 - Land Summary'!$B$21:$B$120,(MATCH(AD787,'3 - Land Summary'!$C$21:$C$120,0))),\"\")","v":""}]
[null,{"$f":"IFERROR(INDEX('3 - Land Summary'!$B$21:$B$120,(MATCH('4 - Species Breakdown'!$V788,'3 - Land Summary'!$C$21:$C$120,0))),\"\")","v":""},null,null,{"$f":"IF(OR(COUNTIF('Look Up Data'!$D$149:$D$203,D788),COUNTIF('Look Up Data'!$D$149:$D$203,AE788)),\"YES\",\"NO\")","v":"NO"},null,null,{"$f":"IFERROR(INDEX('3 - Land Summary'!$G$21:$G$120,(MATCH(C788,'3 - Land Summary'!$C$21:$C$120,0))),\"\")","v":""},{"$f":"IFERROR(INDEX('3 - Land Summary'!$I$21:$I$120,(MATCH(C788,'3 - Land Summary'!$C$21:$C$120,0))),\"\")","v":""},"","",null,null,null,{"$f":"IFERROR(VLOOKUP(D788,'Species List'!$D$10:$E$46,2,FALSE)*J788,\"\")","v":""},{"$f":"IFERROR(VLOOKUP(D788,'Species List'!$D$51:$E$89,2,FALSE)*J788,\"\")","v":""},{"$f":"IFERROR(VLOOKUP(D788,'Species List'!$D$95:$E$102,2,FALSE)*J788,\"\")","v":""},{"$f":"IFERROR(VLOOKUP(D788,'Species List'!$I$10:$J$11,2,FALSE)*J788,\"\")","v":""},{"$f":"IFERROR(VLOOKUP(D788,'Species List'!$I$16:$J$61,2,FALSE)*J788,\"\")","v":""},{"$f":"IFERROR(VLOOKUP(D788,'Species List'!$I$66:$J$66,2,FALSE)*J788,\"\")","v":""},{"$f":"IFERROR(VLOOKUP(D788,'Species List'!$I$71:$J$82,2,FALSE)*J788,\"\")","v":""},0,null,null,null,null,null,null,{"$f":"IFERROR(INDEX('3 - Land Summary'!$B$21:$B$120,(MATCH(AD788,'3 - Land Summary'!$C$21:$C$120,0))),\"\")","v":""}]
[null,{"$f":"IFERROR(INDEX('3 - Land Summary'!$B$21:$B$120,(MATCH('4 - Species Breakdown'!$V789,'3 - Land Summary'!$C$21:$C$120,0))),\"\")","v":""},null,null,{"$f":"IF(OR(COUNTIF('Look Up Data'!$D$149:$D$203,D789),COUNTIF('Look Up Data'!$D$149:$D$203,AE789)),\"YES\",\"NO\")","v":"NO"},null,null,{"$f":"IFERROR(INDEX('3 - Land Summary'!$G$21:$G$120,(MATCH(C789,'3 - Land Summary'!$C$21:$C$120,0))),\"\")","v":""},{"$f":"IFERROR(INDEX('3 - Land Summary'!$I$21:$I$120,(MATCH(C789,'3 - Land Summary'!$C$21:$C$120,0))),\"\")","v":""},"","",null,null,null,{"$f":"IFERROR(VLOOKUP(D789,'Species List'!$D$10:$E$46,2,FALSE)*J789,\"\")","v":""},{"$f":"IFERROR(VLOOKUP(D789,'Species List'!$D$51:$E$89,2,FALSE)*J789,\"\")","v":""},{"$f":"IFERROR(VLOOKUP(D789,'Species List'!$D$95:$E$102,2,FALSE)*J789,\"\")","v":""},{"$f":"IFERROR(VLOOKUP(D789,'Species List'!$I$10:$J$11,2,FALSE)*J789,\"\")","v":""},{"$f":"IFERROR(VLOOKUP(D789,'Species List'!$I$16:$J$61,2,FALSE)*J789,\"\")","v":""},{"$f":"IFERROR(VLOOKUP(D789,'Species List'!$I$66:$J$66,2,FALSE)*J789,\"\")","v":""},{"$f":"IFERROR(VLOOKUP(D789,'Species List'!$I$71:$J$82,2,FALSE)*J789,\"\")","v":""},0,null,null,null,null,null,null,{"$f":"IFERROR(INDEX('3 - Land Summary'!$B$21:$B$120,(MATCH(AD789,'3 - Land Summary'!$C$21:$C$120,0))),\"\")","v":""}]
[null,{"$f":"IFERROR(INDEX('3 - Land Summary'!$B$21:$B$120,(MATCH('4 - Species Breakdown'!$V790,'3 - Land Summary'!$C$21:$C$120,0))),\"\")","v":""},null,null,{"$f":"IF(OR(COUNTIF('Look Up Data'!$D$149:$D$203,D790),COUNTIF('Look Up Data'!$D$149:$D$203,AE790)),\"YES\",\"NO\")","v":"NO"},null,null,{"$f":"IFERROR(INDEX('3 - Land Summary'!$G$21:$G$120,(MATCH(C790,'3 - Land Summary'!$C$21:$C$120,0))),\"\")","v":""},{"$f":"IFERROR(INDEX('3 - Land Summary'!$I$21:$I$120,(MATCH(C790,'3 - Land Summary'!$C$21:$C$120,0))),\"\")","v":""},"","",null,null,null,{"$f":"IFERROR(VLOOKUP(D790,'Species List'!$D$10:$E$46,2,FALSE)*J790,\"\")","v":""},{"$f":"IFERROR(VLOOKUP(D790,'Species List'!$D$51:$E$89,2,FALSE)*J790,\"\")","v":""},{"$f":"IFERROR(VLOOKUP(D790,'Species List'!$D$95:$E$102,2,FALSE)*J790,\"\")","v":""},{"$f":"IFERROR(VLOOKUP(D790,'Species List'!$I$10:$J$11,2,FALSE)*J790,\"\")","v":""},{"$f":"IFERROR(VLOOKUP(D790,'Species List'!$I$16:$J$61,2,FALSE)*J790,\"\")","v":""},{"$f":"IFERROR(VLOOKUP(D790,'Species List'!$I$66:$J$66,2,FALSE)*J790,\"\")","v":""},{"$f":"IFERROR(VLOOKUP(D790,'Species List'!$I$71:$J$82,2,FALSE)*J790,\"\")","v":""},0,null,null,null,null,null,null,{"$f":"IFERROR(INDEX('3 - Land Summary'!$B$21:$B$120,(MATCH(AD790,'3 - Land Summary'!$C$21:$C$120,0))),\"\")","v":""}]
[null,{"$f":"IFERROR(INDEX('3 - Land Summary'!$B$21:$B$120,(MATCH('4 - Species Breakdown'!$V791,'3 - Land Summary'!$C$21:$C$120,0))),\"\")","v":""},null,null,{"$f":"IF(OR(COUNTIF('Look Up Data'!$D$149:$D$203,D791),COUNTIF('Look Up Data'!$D$149:$D$203,AE791)),\"YES\",\"NO\")","v":"NO"},null,null,{"$f":"IFERROR(INDEX('3 - Land Summary'!$G$21:$G$120,(MATCH(C791,'3 - Land Summary'!$C$21:$C$120,0))),\"\")","v":""},{"$f":"IFERROR(INDEX('3 - Land Summary'!$I$21:$I$120,(MATCH(C791,'3 - Land Summary'!$C$21:$C$120,0))),\"\")","v":""},"","",null,null,null,{"$f":"IFERROR(VLOOKUP(D791,'Species List'!$D$10:$E$46,2,FALSE)*J791,\"\")","v":""},{"$f":"IFERROR(VLOOKUP(D791,'Species List'!$D$51:$E$89,2,FALSE)*J791,\"\")","v":""},{"$f":"IFERROR(VLOOKUP(D791,'Species List'!$D$95:$E$102,2,FALSE)*J791,\"\")","v":""},{"$f":"IFERROR(VLOOKUP(D791,'Species List'!$I$10:$J$11,2,FALSE)*J791,\"\")","v":""},{"$f":"IFERROR(VLOOKUP(D791,'Species List'!$I$16:$J$61,2,FALSE)*J791,\"\")","v":""},{"$f":"IFERROR(VLOOKUP(D791,'Species List'!$I$66:$J$66,2,FALSE)*J791,\"\")","v":""},{"$f":"IFERROR(VLOOKUP(D791,'Species List'!$I$71:$J$82,2,FALSE)*J791,\"\")","v":""},0,null,null,null,null,null,null,{"$f":"IFERROR(INDEX('3 - Land Summary'!$B$21:$B$120,(MATCH(AD791,'3 - Land Summary'!$C$21:$C$120,0))),\"\")","v":""}]
[null,{"$f":"IFERROR(INDEX('3 - Land Summary'!$B$21:$B$120,(MATCH('4 - Species Breakdown'!$V792,'3 - Land Summary'!$C$21:$C$120,0))),\"\")","v":""},null,null,{"$f":"IF(OR(COUNTIF('Look Up Data'!$D$149:$D$203,D792),COUNTIF('Look Up Data'!$D$149:$D$203,AE792)),\"YES\",\"NO\")","v":"NO"},null,null,{"$f":"IFERROR(INDEX('3 - Land Summary'!$G$21:$G$120,(MATCH(C792,'3 - Land Summary'!$C$21:$C$120,0))),\"\")","v":""},{"$f":"IFERROR(INDEX('3 - Land Summary'!$I$21:$I$120,(MATCH(C792,'3 - Land Summary'!$C$21:$C$120,0))),\"\")","v":""},"","",null,null,null,{"$f":"IFERROR(VLOOKUP(D792,'Species List'!$D$10:$E$46,2,FALSE)*J792,\"\")","v":""},{"$f":"IFERROR(VLOOKUP(D792,'Species List'!$D$51:$E$89,2,FALSE)*J792,\"\")","v":""},{"$f":"IFERROR(VLOOKUP(D792,'Species List'!$D$95:$E$102,2,FALSE)*J792,\"\")","v":""},{"$f":"IFERROR(VLOOKUP(D792,'Species List'!$I$10:$J$11,2,FALSE)*J792,\"\")","v":""},{"$f":"IFERROR(VLOOKUP(D792,'Species List'!$I$16:$J$61,2,FALSE)*J792,\"\")","v":""},{"$f":"IFERROR(VLOOKUP(D792,'Species List'!$I$66:$J$66,2,FALSE)*J792,\"\")","v":""},{"$f":"IFERROR(VLOOKUP(D792,'Species List'!$I$71:$J$82,2,FALSE)*J792,\"\")","v":""},0,null,null,null,null,null,null,{"$f":"IFERROR(INDEX('3 - Land Summary'!$B$21:$B$120,(MATCH(AD792,'3 - Land Summary'!$C$21:$C$120,0))),\"\")","v":""}]
[null,{"$f":"IFERROR(INDEX('3 - Land Summary'!$B$21:$B$120,(MATCH('4 - Species Breakdown'!$V793,'3 - Land Summary'!$C$21:$C$120,0))),\"\")","v":""},null,null,{"$f":"IF(OR(COUNTIF('Look Up Data'!$D$149:$D$203,D793),COUNTIF('Look Up Data'!$D$149:$D$203,AE793)),\"YES\",\"NO\")","v":"NO"},null,null,{"$f":"IFERROR(INDEX('3 - Land Summary'!$G$21:$G$120,(MATCH(C793,'3 - Land Summary'!$C$21:$C$120,0))),\"\")","v":""},{"$f":"IFERROR(INDEX('3 - Land Summary'!$I$21:$I$120,(MATCH(C793,'3 - Land Summary'!$C$21:$C$120,0))),\"\")","v":""},"","",null,null,null,{"$f":"IFERROR(VLOOKUP(D793,'Species List'!$D$10:$E$46,2,FALSE)*J793,\"\")","v":""},{"$f":"IFERROR(VLOOKUP(D793,'Species List'!$D$51:$E$89,2,FALSE)*J793,\"\")","v":""},{"$f":"IFERROR(VLOOKUP(D793,'Species List'!$D$95:$E$102,2,FALSE)*J793,\"\")","v":""},{"$f":"IFERROR(VLOOKUP(D793,'Species List'!$I$10:$J$11,2,FALSE)*J793,\"\")","v":""},{"$f":"IFERROR(VLOOKUP(D793,'Species List'!$I$16:$J$61,2,FALSE)*J793,\"\")","v":""},{"$f":"IFERROR(VLOOKUP(D793,'Species List'!$I$66:$J$66,2,FALSE)*J793,\"\")","v":""},{"$f":"IFERROR(VLOOKUP(D793,'Species List'!$I$71:$J$82,2,FALSE)*J793,\"\")","v":""},0,null,null,null,null,null,null,{"$f":"IFERROR(INDEX('3 - Land Summary'!$B$21:$B$120,(MATCH(AD793,'3 - Land Summary'!$C$21:$C$120,0))),\"\")","v":""}]
[null,{"$f":"IFERROR(INDEX('3 - Land Summary'!$B$21:$B$120,(MATCH('4 - Species Breakdown'!$V794,'3 - Land Summary'!$C$21:$C$120,0))),\"\")","v":""},null,null,{"$f":"IF(OR(COUNTIF('Look Up Data'!$D$149:$D$203,D794),COUNTIF('Look Up Data'!$D$149:$D$203,AE794)),\"YES\",\"NO\")","v":"NO"},null,null,{"$f":"IFERROR(INDEX('3 - Land Summary'!$G$21:$G$120,(MATCH(C794,'3 - Land Summary'!$C$21:$C$120,0))),\"\")","v":""},{"$f":"IFERROR(INDEX('3 - Land Summary'!$I$21:$I$120,(MATCH(C794,'3 - Land Summary'!$C$21:$C$120,0))),\"\")","v":""},"","",null,null,null,{"$f":"IFERROR(VLOOKUP(D794,'Species List'!$D$10:$E$46,2,FALSE)*J794,\"\")","v":""},{"$f":"IFERROR(VLOOKUP(D794,'Species List'!$D$51:$E$89,2,FALSE)*J794,\"\")","v":""},{"$f":"IFERROR(VLOOKUP(D794,'Species List'!$D$95:$E$102,2,FALSE)*J794,\"\")","v":""},{"$f":"IFERROR(VLOOKUP(D794,'Species List'!$I$10:$J$11,2,FALSE)*J794,\"\")","v":""},{"$f":"IFERROR(VLOOKUP(D794,'Species List'!$I$16:$J$61,2,FALSE)*J794,\"\")","v":""},{"$f":"IFERROR(VLOOKUP(D794,'Species List'!$I$66:$J$66,2,FALSE)*J794,\"\")","v":""},{"$f":"IFERROR(VLOOKUP(D794,'Species List'!$I$71:$J$82,2,FALSE)*J794,\"\")","v":""},0,null,null,null,null,null,null,{"$f":"IFERROR(INDEX('3 - Land Summary'!$B$21:$B$120,(MATCH(AD794,'3 - Land Summary'!$C$21:$C$120,0))),\"\")","v":""}]
[null,{"$f":"IFERROR(INDEX('3 - Land Summary'!$B$21:$B$120,(MATCH('4 - Species Breakdown'!$V795,'3 - Land Summary'!$C$21:$C$120,0))),\"\")","v":""},null,null,{"$f":"IF(OR(COUNTIF('Look Up Data'!$D$149:$D$203,D795),COUNTIF('Look Up Data'!$D$149:$D$203,AE795)),\"YES\",\"NO\")","v":"NO"},null,null,{"$f":"IFERROR(INDEX('3 - Land Summary'!$G$21:$G$120,(MATCH(C795,'3 - Land Summary'!$C$21:$C$120,0))),\"\")","v":""},{"$f":"IFERROR(INDEX('3 - Land Summary'!$I$21:$I$120,(MATCH(C795,'3 - Land Summary'!$C$21:$C$120,0))),\"\")","v":""},"","",null,null,null,{"$f":"IFERROR(VLOOKUP(D795,'Species List'!$D$10:$E$46,2,FALSE)*J795,\"\")","v":""},{"$f":"IFERROR(VLOOKUP(D795,'Species List'!$D$51:$E$89,2,FALSE)*J795,\"\")","v":""},{"$f":"IFERROR(VLOOKUP(D795,'Species List'!$D$95:$E$102,2,FALSE)*J795,\"\")","v":""},{"$f":"IFERROR(VLOOKUP(D795,'Species List'!$I$10:$J$11,2,FALSE)*J795,\"\")","v":""},{"$f":"IFERROR(VLOOKUP(D795,'Species List'!$I$16:$J$61,2,FALSE)*J795,\"\")","v":""},{"$f":"IFERROR(VLOOKUP(D795,'Species List'!$I$66:$J$66,2,FALSE)*J795,\"\")","v":""},{"$f":"IFERROR(VLOOKUP(D795,'Species List'!$I$71:$J$82,2,FALSE)*J795,\"\")","v":""},0,null,null,null,null,null,null,{"$f":"IFERROR(INDEX('3 - Land Summary'!$B$21:$B$120,(MATCH(AD795,'3 - Land Summary'!$C$21:$C$120,0))),\"\")","v":""}]
[null,{"$f":"IFERROR(INDEX('3 - Land Summary'!$B$21:$B$120,(MATCH('4 - Species Breakdown'!$V796,'3 - Land Summary'!$C$21:$C$120,0))),\"\")","v":""},null,null,{"$f":"IF(OR(COUNTIF('Look Up Data'!$D$149:$D$203,D796),COUNTIF('Look Up Data'!$D$149:$D$203,AE796)),\"YES\",\"NO\")","v":"NO"},null,null,{"$f":"IFERROR(INDEX('3 - Land Summary'!$G$21:$G$120,(MATCH(C796,'3 - Land Summary'!$C$21:$C$120,0))),\"\")","v":""},{"$f":"IFERROR(INDEX('3 - Land Summary'!$I$21:$I$120,(MATCH(C796,'3 - Land Summary'!$C$21:$C$120,0))),\"\")","v":""},"","",null,null,null,{"$f":"IFERROR(VLOOKUP(D796,'Species List'!$D$10:$E$46,2,FALSE)*J796,\"\")","v":""},{"$f":"IFERROR(VLOOKUP(D796,'Species List'!$D$51:$E$89,2,FALSE)*J796,\"\")","v":""},{"$f":"IFERROR(VLOOKUP(D796,'Species List'!$D$95:$E$102,2,FALSE)*J796,\"\")","v":""},{"$f":"IFERROR(VLOOKUP(D796,'Species List'!$I$10:$J$11,2,FALSE)*J796,\"\")","v":""},{"$f":"IFERROR(VLOOKUP(D796,'Species List'!$I$16:$J$61,2,FALSE)*J796,\"\")","v":""},{"$f":"IFERROR(VLOOKUP(D796,'Species List'!$I$66:$J$66,2,FALSE)*J796,\"\")","v":""},{"$f":"IFERROR(VLOOKUP(D796,'Species List'!$I$71:$J$82,2,FALSE)*J796,\"\")","v":""},0,null,null,null,null,null,null,{"$f":"IFERROR(INDEX('3 - Land Summary'!$B$21:$B$120,(MATCH(AD796,'3 - Land Summary'!$C$21:$C$120,0))),\"\")","v":""}]
[null,{"$f":"IFERROR(INDEX('3 - Land Summary'!$B$21:$B$120,(MATCH('4 - Species Breakdown'!$V797,'3 - Land Summary'!$C$21:$C$120,0))),\"\")","v":""},null,null,{"$f":"IF(OR(COUNTIF('Look Up Data'!$D$149:$D$203,D797),COUNTIF('Look Up Data'!$D$149:$D$203,AE797)),\"YES\",\"NO\")","v":"NO"},null,null,{"$f":"IFERROR(INDEX('3 - Land Summary'!$G$21:$G$120,(MATCH(C797,'3 - Land Summary'!$C$21:$C$120,0))),\"\")","v":""},{"$f":"IFERROR(INDEX('3 - Land Summary'!$I$21:$I$120,(MATCH(C797,'3 - Land Summary'!$C$21:$C$120,0))),\"\")","v":""},"","",null,null,null,{"$f":"IFERROR(VLOOKUP(D797,'Species List'!$D$10:$E$46,2,FALSE)*J797,\"\")","v":""},{"$f":"IFERROR(VLOOKUP(D797,'Species List'!$D$51:$E$89,2,FALSE)*J797,\"\")","v":""},{"$f":"IFERROR(VLOOKUP(D797,'Species List'!$D$95:$E$102,2,FALSE)*J797,\"\")","v":""},{"$f":"IFERROR(VLOOKUP(D797,'Species List'!$I$10:$J$11,2,FALSE)*J797,\"\")","v":""},{"$f":"IFERROR(VLOOKUP(D797,'Species List'!$I$16:$J$61,2,FALSE)*J797,\"\")","v":""},{"$f":"IFERROR(VLOOKUP(D797,'Species List'!$I$66:$J$66,2,FALSE)*J797,\"\")","v":""},{"$f":"IFERROR(VLOOKUP(D797,'Species List'!$I$71:$J$82,2,FALSE)*J797,\"\")","v":""},0,null,null,null,null,null,null,{"$f":"IFERROR(INDEX('3 - Land Summary'!$B$21:$B$120,(MATCH(AD797,'3 - Land Summary'!$C$21:$C$120,0))),\"\")","v":""}]
[null,{"$f":"IFERROR(INDEX('3 - Land Summary'!$B$21:$B$120,(MATCH('4 - Species Breakdown'!$V798,'3 - Land Summary'!$C$21:$C$120,0))),\"\")","v":""},null,null,{"$f":"IF(OR(COUNTIF('Look Up Data'!$D$149:$D$203,D798),COUNTIF('Look Up Data'!$D$149:$D$203,AE798)),\"YES\",\"NO\")","v":"NO"},null,null,{"$f":"IFERROR(INDEX('3 - Land Summary'!$G$21:$G$120,(MATCH(C798,'3 - Land Summary'!$C$21:$C$120,0))),\"\")","v":""},{"$f":"IFERROR(INDEX('3 - Land Summary'!$I$21:$I$120,(MATCH(C798,'3 - Land Summary'!$C$21:$C$120,0))),\"\")","v":""},"","",null,null,null,{"$f":"IFERROR(VLOOKUP(D798,'Species List'!$D$10:$E$46,2,FALSE)*J798,\"\")","v":""},{"$f":"IFERROR(VLOOKUP(D798,'Species List'!$D$51:$E$89,2,FALSE)*J798,\"\")","v":""},{"$f":"IFERROR(VLOOKUP(D798,'Species List'!$D$95:$E$102,2,FALSE)*J798,\"\")","v":""},{"$f":"IFERROR(VLOOKUP(D798,'Species List'!$I$10:$J$11,2,FALSE)*J798,\"\")","v":""},{"$f":"IFERROR(VLOOKUP(D798,'Species List'!$I$16:$J$61,2,FALSE)*J798,\"\")","v":""},{"$f":"IFERROR(VLOOKUP(D798,'Species List'!$I$66:$J$66,2,FALSE)*J798,\"\")","v":""},{"$f":"IFERROR(VLOOKUP(D798,'Species List'!$I$71:$J$82,2,FALSE)*J798,\"\")","v":""},0,null,null,null,null,null,null,{"$f":"IFERROR(INDEX('3 - Land Summary'!$B$21:$B$120,(MATCH(AD798,'3 - Land Summary'!$C$21:$C$120,0))),\"\")","v":""}]
[null,{"$f":"IFERROR(INDEX('3 - Land Summary'!$B$21:$B$120,(MATCH('4 - Species Breakdown'!$V799,'3 - Land Summary'!$C$21:$C$120,0))),\"\")","v":""},null,null,{"$f":"IF(OR(COUNTIF('Look Up Data'!$D$149:$D$203,D799),COUNTIF('Look Up Data'!$D$149:$D$203,AE799)),\"YES\",\"NO\")","v":"NO"},null,null,{"$f":"IFERROR(INDEX('3 - Land Summary'!$G$21:$G$120,(MATCH(C799,'3 - Land Summary'!$C$21:$C$120,0))),\"\")","v":""},{"$f":"IFERROR(INDEX('3 - Land Summary'!$I$21:$I$120,(MATCH(C799,'3 - Land Summary'!$C$21:$C$120,0))),\"\")","v":""},{"$f":"IFERROR(((H799-I799)*F799)/100,\"\")","v":""},"",null,null,null,{"$f":"IFERROR(VLOOKUP(D799,'Species List'!$D$10:$E$46,2,FALSE)*J799,\"\")","v":""},{"$f":"IFERROR(VLOOKUP(D799,'Species List'!$D$51:$E$89,2,FALSE)*J799,\"\")","v":""},{"$f":"IFERROR(VLOOKUP(D799,'Species List'!$D$95:$E$102,2,FALSE)*J799,\"\")","v":""},{"$f":"IFERROR(VLOOKUP(D799,'Species List'!$I$10:$J$11,2,FALSE)*J799,\"\")","v":""},{"$f":"IFERROR(VLOOKUP(D799,'Species List'!$I$16:$J$61,2,FALSE)*J799,\"\")","v":""},{"$f":"IFERROR(VLOOKUP(D799,'Species List'!$I$66:$J$66,2,FALSE)*J799,\"\")","v":""},{"$f":"IFERROR(VLOOKUP(D799,'Species List'!$I$71:$J$82,2,FALSE)*J799,\"\")","v":""},{"$f":"C799","v":0},null,null,null,null,null,null,{"$f":"IFERROR(INDEX('3 - Land Summary'!$B$21:$B$120,(MATCH(AD799,'3 - Land Summary'!$C$21:$C$120,0))),\"\")","v":""}]
[null,{"$f":"IFERROR(INDEX('3 - Land Summary'!$B$21:$B$120,(MATCH('4 - Species Breakdown'!$V800,'3 - Land Summary'!$C$21:$C$120,0))),\"\")","v":""},null,null,{"$f":"IF(OR(COUNTIF('Look Up Data'!$D$149:$D$203,D800),COUNTIF('Look Up Data'!$D$149:$D$203,AE800)),\"YES\",\"NO\")","v":"NO"},null,null,{"$f":"IFERROR(INDEX('3 - Land Summary'!$G$21:$G$120,(MATCH(C800,'3 - Land Summary'!$C$21:$C$120,0))),\"\")","v":""},{"$f":"IFERROR(INDEX('3 - Land Summary'!$I$21:$I$120,(MATCH(C800,'3 - Land Summary'!$C$21:$C$120,0))),\"\")","v":""},"",{"$f":"IFERROR(ROUND(J800*G800,0),\"\")","v":""},null,null,null,{"$f":"IFERROR(VLOOKUP(D800,'Species List'!$D$10:$E$46,2,FALSE)*J800,\"\")","v":""},{"$f":"IFERROR(VLOOKUP(D800,'Species List'!$D$51:$E$89,2,FALSE)*J800,\"\")","v":""},{"$f":"IFERROR(VLOOKUP(D800,'Species List'!$D$95:$E$102,2,FALSE)*J800,\"\")","v":""},{"$f":"IFERROR(VLOOKUP(D800,'Species List'!$I$10:$J$11,2,FALSE)*J800,\"\")","v":""},{"$f":"IFERROR(VLOOKUP(D800,'Species List'!$I$16:$J$61,2,FALSE)*J800,\"\")","v":""},{"$f":"IFERROR(VLOOKUP(D800,'Species List'!$I$66:$J$66,2,FALSE)*J800,\"\")","v":""},{"$f":"IFERROR(VLOOKUP(D800,'Species List'!$I$71:$J$82,2,FALSE)*J800,\"\")","v":""},0,null,null,null,null,null,null,{"$f":"IFERROR(INDEX('3 - Land Summary'!$B$21:$B$120,(MATCH(AD800,'3 - Land Summary'!$C$21:$C$120,0))),\"\")","v":""}]
[null,{"$f":"IFERROR(INDEX('3 - Land Summary'!$B$21:$B$120,(MATCH('4 - Species Breakdown'!$V801,'3 - Land Summary'!$C$21:$C$120,0))),\"\")","v":""},null,null,{"$f":"IF(OR(COUNTIF('Look Up Data'!$D$149:$D$203,D801),COUNTIF('Look Up Data'!$D$149:$D$203,AE801)),\"YES\",\"NO\")","v":"NO"},null,null,{"$f":"IFERROR(INDEX('3 - Land Summary'!$G$21:$G$120,(MATCH(C801,'3 - Land Summary'!$C$21:$C$120,0))),\"\")","v":""},{"$f":"IFERROR(INDEX('3 - Land Summary'!$I$21:$I$120,(MATCH(C801,'3 - Land Summary'!$C$21:$C$120,0))),\"\")","v":""},"","",null,null,null,{"$f":"IFERROR(VLOOKUP(D801,'Species List'!$D$10:$E$46,2,FALSE)*J801,\"\")","v":""},{"$f":"IFERROR(VLOOKUP(D801,'Species List'!$D$51:$E$89,2,FALSE)*J801,\"\")","v":""},{"$f":"IFERROR(VLOOKUP(D801,'Species List'!$D$95:$E$102,2,FALSE)*J801,\"\")","v":""},{"$f":"IFERROR(VLOOKUP(D801,'Species List'!$I$10:$J$11,2,FALSE)*J801,\"\")","v":""},{"$f":"IFERROR(VLOOKUP(D801,'Species List'!$I$16:$J$61,2,FALSE)*J801,\"\")","v":""},{"$f":"IFERROR(VLOOKUP(D801,'Species List'!$I$66:$J$66,2,FALSE)*J801,\"\")","v":""},{"$f":"IFERROR(VLOOKUP(D801,'Species List'!$I$71:$J$82,2,FALSE)*J801,\"\")","v":""},0,null,null,null,null,null,null,{"$f":"IFERROR(INDEX('3 - Land Summary'!$B$21:$B$120,(MATCH(AD801,'3 - Land Summary'!$C$21:$C$120,0))),\"\")","v":""}]
[null,{"$f":"IFERROR(INDEX('3 - Land Summary'!$B$21:$B$120,(MATCH('4 - Species Breakdown'!$V802,'3 - Land Summary'!$C$21:$C$120,0))),\"\")","v":""},null,null,{"$f":"IF(OR(COUNTIF('Look Up Data'!$D$149:$D$203,D802),COUNTIF('Look Up Data'!$D$149:$D$203,AE802)),\"YES\",\"NO\")","v":"NO"},null,null,{"$f":"IFERROR(INDEX('3 - Land Summary'!$G$21:$G$120,(MATCH(C802,'3 - Land Summary'!$C$21:$C$120,0))),\"\")","v":""},{"$f":"IFERROR(INDEX('3 - Land Summary'!$I$21:$I$120,(MATCH(C802,'3 - Land Summary'!$C$21:$C$120,0))),\"\")","v":""},"","",null,null,null,{"$f":"IFERROR(VLOOKUP(D802,'Species List'!$D$10:$E$46,2,FALSE)*J802,\"\")","v":""},{"$f":"IFERROR(VLOOKUP(D802,'Species List'!$D$51:$E$89,2,FALSE)*J802,\"\")","v":""},{"$f":"IFERROR(VLOOKUP(D802,'Species List'!$D$95:$E$102,2,FALSE)*J802,\"\")","v":""},{"$f":"IFERROR(VLOOKUP(D802,'Species List'!$I$10:$J$11,2,FALSE)*J802,\"\")","v":""},{"$f":"IFERROR(VLOOKUP(D802,'Species List'!$I$16:$J$61,2,FALSE)*J802,\"\")","v":""},{"$f":"IFERROR(VLOOKUP(D802,'Species List'!$I$66:$J$66,2,FALSE)*J802,\"\")","v":""},{"$f":"IFERROR(VLOOKUP(D802,'Species List'!$I$71:$J$82,2,FALSE)*J802,\"\")","v":""},0,null,null,null,null,null,null,{"$f":"IFERROR(INDEX('3 - Land Summary'!$B$21:$B$120,(MATCH(AD802,'3 - Land Summary'!$C$21:$C$120,0))),\"\")","v":""}]
[null,{"$f":"IFERROR(INDEX('3 - Land Summary'!$B$21:$B$120,(MATCH('4 - Species Breakdown'!$V803,'3 - Land Summary'!$C$21:$C$120,0))),\"\")","v":""},null,null,{"$f":"IF(OR(COUNTIF('Look Up Data'!$D$149:$D$203,D803),COUNTIF('Look Up Data'!$D$149:$D$203,AE803)),\"YES\",\"NO\")","v":"NO"},null,null,{"$f":"IFERROR(INDEX('3 - Land Summary'!$G$21:$G$120,(MATCH(C803,'3 - Land Summary'!$C$21:$C$120,0))),\"\")","v":""},{"$f":"IFERROR(INDEX('3 - Land Summary'!$I$21:$I$120,(MATCH(C803,'3 - Land Summary'!$C$21:$C$120,0))),\"\")","v":""},"","",null,null,null,{"$f":"IFERROR(VLOOKUP(D803,'Species List'!$D$10:$E$46,2,FALSE)*J803,\"\")","v":""},{"$f":"IFERROR(VLOOKUP(D803,'Species List'!$D$51:$E$89,2,FALSE)*J803,\"\")","v":""},{"$f":"IFERROR(VLOOKUP(D803,'Species List'!$D$95:$E$102,2,FALSE)*J803,\"\")","v":""},{"$f":"IFERROR(VLOOKUP(D803,'Species List'!$I$10:$J$11,2,FALSE)*J803,\"\")","v":""},{"$f":"IFERROR(VLOOKUP(D803,'Species List'!$I$16:$J$61,2,FALSE)*J803,\"\")","v":""},{"$f":"IFERROR(VLOOKUP(D803,'Species List'!$I$66:$J$66,2,FALSE)*J803,\"\")","v":""},{"$f":"IFERROR(VLOOKUP(D803,'Species List'!$I$71:$J$82,2,FALSE)*J803,\"\")","v":""},0,null,null,null,null,null,null,{"$f":"IFERROR(INDEX('3 - Land Summary'!$B$21:$B$120,(MATCH(AD803,'3 - Land Summary'!$C$21:$C$120,0))),\"\")","v":""}]
[null,{"$f":"IFERROR(INDEX('3 - Land Summary'!$B$21:$B$120,(MATCH('4 - Species Breakdown'!$V804,'3 - Land Summary'!$C$21:$C$120,0))),\"\")","v":""},null,null,{"$f":"IF(OR(COUNTIF('Look Up Data'!$D$149:$D$203,D804),COUNTIF('Look Up Data'!$D$149:$D$203,AE804)),\"YES\",\"NO\")","v":"NO"},null,null,{"$f":"IFERROR(INDEX('3 - Land Summary'!$G$21:$G$120,(MATCH(C804,'3 - Land Summary'!$C$21:$C$120,0))),\"\")","v":""},{"$f":"IFERROR(INDEX('3 - Land Summary'!$I$21:$I$120,(MATCH(C804,'3 - Land Summary'!$C$21:$C$120,0))),\"\")","v":""},"","",null,null,null,{"$f":"IFERROR(VLOOKUP(D804,'Species List'!$D$10:$E$46,2,FALSE)*J804,\"\")","v":""},{"$f":"IFERROR(VLOOKUP(D804,'Species List'!$D$51:$E$89,2,FALSE)*J804,\"\")","v":""},{"$f":"IFERROR(VLOOKUP(D804,'Species List'!$D$95:$E$102,2,FALSE)*J804,\"\")","v":""},{"$f":"IFERROR(VLOOKUP(D804,'Species List'!$I$10:$J$11,2,FALSE)*J804,\"\")","v":""},{"$f":"IFERROR(VLOOKUP(D804,'Species List'!$I$16:$J$61,2,FALSE)*J804,\"\")","v":""},{"$f":"IFERROR(VLOOKUP(D804,'Species List'!$I$66:$J$66,2,FALSE)*J804,\"\")","v":""},{"$f":"IFERROR(VLOOKUP(D804,'Species List'!$I$71:$J$82,2,FALSE)*J804,\"\")","v":""},0,null,null,null,null,null,null,{"$f":"IFERROR(INDEX('3 - Land Summary'!$B$21:$B$120,(MATCH(AD804,'3 - Land Summary'!$C$21:$C$120,0))),\"\")","v":""}]
[null,{"$f":"IFERROR(INDEX('3 - Land Summary'!$B$21:$B$120,(MATCH('4 - Species Breakdown'!$V805,'3 - Land Summary'!$C$21:$C$120,0))),\"\")","v":""},null,null,{"$f":"IF(OR(COUNTIF('Look Up Data'!$D$149:$D$203,D805),COUNTIF('Look Up Data'!$D$149:$D$203,AE805)),\"YES\",\"NO\")","v":"NO"},null,null,{"$f":"IFERROR(INDEX('3 - Land Summary'!$G$21:$G$120,(MATCH(C805,'3 - Land Summary'!$C$21:$C$120,0))),\"\")","v":""},{"$f":"IFERROR(INDEX('3 - Land Summary'!$I$21:$I$120,(MATCH(C805,'3 - Land Summary'!$C$21:$C$120,0))),\"\")","v":""},"","",null,null,null,{"$f":"IFERROR(VLOOKUP(D805,'Species List'!$D$10:$E$46,2,FALSE)*J805,\"\")","v":""},{"$f":"IFERROR(VLOOKUP(D805,'Species List'!$D$51:$E$89,2,FALSE)*J805,\"\")","v":""},{"$f":"IFERROR(VLOOKUP(D805,'Species List'!$D$95:$E$102,2,FALSE)*J805,\"\")","v":""},{"$f":"IFERROR(VLOOKUP(D805,'Species List'!$I$10:$J$11,2,FALSE)*J805,\"\")","v":""},{"$f":"IFERROR(VLOOKUP(D805,'Species List'!$I$16:$J$61,2,FALSE)*J805,\"\")","v":""},{"$f":"IFERROR(VLOOKUP(D805,'Species List'!$I$66:$J$66,2,FALSE)*J805,\"\")","v":""},{"$f":"IFERROR(VLOOKUP(D805,'Species List'!$I$71:$J$82,2,FALSE)*J805,\"\")","v":""},0,null,null,null,null,null,null,{"$f":"IFERROR(INDEX('3 - Land Summary'!$B$21:$B$120,(MATCH(AD805,'3 - Land Summary'!$C$21:$C$120,0))),\"\")","v":""}]
[null,{"$f":"IFERROR(INDEX('3 - Land Summary'!$B$21:$B$120,(MATCH('4 - Species Breakdown'!$V806,'3 - Land Summary'!$C$21:$C$120,0))),\"\")","v":""},null,null,{"$f":"IF(OR(COUNTIF('Look Up Data'!$D$149:$D$203,D806),COUNTIF('Look Up Data'!$D$149:$D$203,AE806)),\"YES\",\"NO\")","v":"NO"},null,null,{"$f":"IFERROR(INDEX('3 - Land Summary'!$G$21:$G$120,(MATCH(C806,'3 - Land Summary'!$C$21:$C$120,0))),\"\")","v":""},{"$f":"IFERROR(INDEX('3 - Land Summary'!$I$21:$I$120,(MATCH(C806,'3 - Land Summary'!$C$21:$C$120,0))),\"\")","v":""},"","",null,null,null,{"$f":"IFERROR(VLOOKUP(D806,'Species List'!$D$10:$E$46,2,FALSE)*J806,\"\")","v":""},{"$f":"IFERROR(VLOOKUP(D806,'Species List'!$D$51:$E$89,2,FALSE)*J806,\"\")","v":""},{"$f":"IFERROR(VLOOKUP(D806,'Species List'!$D$95:$E$102,2,FALSE)*J806,\"\")","v":""},{"$f":"IFERROR(VLOOKUP(D806,'Species List'!$I$10:$J$11,2,FALSE)*J806,\"\")","v":""},{"$f":"IFERROR(VLOOKUP(D806,'Species List'!$I$16:$J$61,2,FALSE)*J806,\"\")","v":""},{"$f":"IFERROR(VLOOKUP(D806,'Species List'!$I$66:$J$66,2,FALSE)*J806,\"\")","v":""},{"$f":"IFERROR(VLOOKUP(D806,'Species List'!$I$71:$J$82,2,FALSE)*J806,\"\")","v":""},0,null,null,null,null,null,null,{"$f":"IFERROR(INDEX('3 - Land Summary'!$B$21:$B$120,(MATCH(AD806,'3 - Land Summary'!$C$21:$C$120,0))),\"\")","v":""}]
[null,{"$f":"IFERROR(INDEX('3 - Land Summary'!$B$21:$B$120,(MATCH('4 - Species Breakdown'!$V807,'3 - Land Summary'!$C$21:$C$120,0))),\"\")","v":""},null,null,{"$f":"IF(OR(COUNTIF('Look Up Data'!$D$149:$D$203,D807),COUNTIF('Look Up Data'!$D$149:$D$203,AE807)),\"YES\",\"NO\")","v":"NO"},null,null,{"$f":"IFERROR(INDEX('3 - Land Summary'!$G$21:$G$120,(MATCH(C807,'3 - Land Summary'!$C$21:$C$120,0))),\"\")","v":""},{"$f":"IFERROR(INDEX('3 - Land Summary'!$I$21:$I$120,(MATCH(C807,'3 - Land Summary'!$C$21:$C$120,0))),\"\")","v":""},"","",null,null,null,{"$f":"IFERROR(VLOOKUP(D807,'Species List'!$D$10:$E$46,2,FALSE)*J807,\"\")","v":""},{"$f":"IFERROR(VLOOKUP(D807,'Species List'!$D$51:$E$89,2,FALSE)*J807,\"\")","v":""},{"$f":"IFERROR(VLOOKUP(D807,'Species List'!$D$95:$E$102,2,FALSE)*J807,\"\")","v":""},{"$f":"IFERROR(VLOOKUP(D807,'Species List'!$I$10:$J$11,2,FALSE)*J807,\"\")","v":""},{"$f":"IFERROR(VLOOKUP(D807,'Species List'!$I$16:$J$61,2,FALSE)*J807,\"\")","v":""},{"$f":"IFERROR(VLOOKUP(D807,'Species List'!$I$66:$J$66,2,FALSE)*J807,\"\")","v":""},{"$f":"IFERROR(VLOOKUP(D807,'Species List'!$I$71:$J$82,2,FALSE)*J807,\"\")","v":""},0,null,null,null,null,null,null,{"$f":"IFERROR(INDEX('3 - Land Summary'!$B$21:$B$120,(MATCH(AD807,'3 - Land Summary'!$C$21:$C$120,0))),\"\")","v":""}]
[null,{"$f":"IFERROR(INDEX('3 - Land Summary'!$B$21:$B$120,(MATCH('4 - Species Breakdown'!$V808,'3 - Land Summary'!$C$21:$C$120,0))),\"\")","v":""},null,null,{"$f":"IF(OR(COUNTIF('Look Up Data'!$D$149:$D$203,D808),COUNTIF('Look Up Data'!$D$149:$D$203,AE808)),\"YES\",\"NO\")","v":"NO"},null,null,{"$f":"IFERROR(INDEX('3 - Land Summary'!$G$21:$G$120,(MATCH(C808,'3 - Land Summary'!$C$21:$C$120,0))),\"\")","v":""},{"$f":"IFERROR(INDEX('3 - Land Summary'!$I$21:$I$120,(MATCH(C808,'3 - Land Summary'!$C$21:$C$120,0))),\"\")","v":""},"","",null,null,null,{"$f":"IFERROR(VLOOKUP(D808,'Species List'!$D$10:$E$46,2,FALSE)*J808,\"\")","v":""},{"$f":"IFERROR(VLOOKUP(D808,'Species List'!$D$51:$E$89,2,FALSE)*J808,\"\")","v":""},{"$f":"IFERROR(VLOOKUP(D808,'Species List'!$D$95:$E$102,2,FALSE)*J808,\"\")","v":""},{"$f":"IFERROR(VLOOKUP(D808,'Species List'!$I$10:$J$11,2,FALSE)*J808,\"\")","v":""},{"$f":"IFERROR(VLOOKUP(D808,'Species List'!$I$16:$J$61,2,FALSE)*J808,\"\")","v":""},{"$f":"IFERROR(VLOOKUP(D808,'Species List'!$I$66:$J$66,2,FALSE)*J808,\"\")","v":""},{"$f":"IFERROR(VLOOKUP(D808,'Species List'!$I$71:$J$82,2,FALSE)*J808,\"\")","v":""},0,null,null,null,null,null,null,{"$f":"IFERROR(INDEX('3 - Land Summary'!$B$21:$B$120,(MATCH(AD808,'3 - Land Summary'!$C$21:$C$120,0))),\"\")","v":""}]
[null,{"$f":"IFERROR(INDEX('3 - Land Summary'!$B$21:$B$120,(MATCH('4 - Species Breakdown'!$V809,'3 - Land Summary'!$C$21:$C$120,0))),\"\")","v":""},null,null,{"$f":"IF(OR(COUNTIF('Look Up Data'!$D$149:$D$203,D809),COUNTIF('Look Up Data'!$D$149:$D$203,AE809)),\"YES\",\"NO\")","v":"NO"},null,null,{"$f":"IFERROR(INDEX('3 - Land Summary'!$G$21:$G$120,(MATCH(C809,'3 - Land Summary'!$C$21:$C$120,0))),\"\")","v":""},{"$f":"IFERROR(INDEX('3 - Land Summary'!$I$21:$I$120,(MATCH(C809,'3 - Land Summary'!$C$21:$C$120,0))),\"\")","v":""},"","",null,null,null,{"$f":"IFERROR(VLOOKUP(D809,'Species List'!$D$10:$E$46,2,FALSE)*J809,\"\")","v":""},{"$f":"IFERROR(VLOOKUP(D809,'Species List'!$D$51:$E$89,2,FALSE)*J809,\"\")","v":""},{"$f":"IFERROR(VLOOKUP(D809,'Species List'!$D$95:$E$102,2,FALSE)*J809,\"\")","v":""},{"$f":"IFERROR(VLOOKUP(D809,'Species List'!$I$10:$J$11,2,FALSE)*J809,\"\")","v":""},{"$f":"IFERROR(VLOOKUP(D809,'Species List'!$I$16:$J$61,2,FALSE)*J809,\"\")","v":""},{"$f":"IFERROR(VLOOKUP(D809,'Species List'!$I$66:$J$66,2,FALSE)*J809,\"\")","v":""},{"$f":"IFERROR(VLOOKUP(D809,'Species List'!$I$71:$J$82,2,FALSE)*J809,\"\")","v":""},0,null,null,null,null,null,null,{"$f":"IFERROR(INDEX('3 - Land Summary'!$B$21:$B$120,(MATCH(AD809,'3 - Land Summary'!$C$21:$C$120,0))),\"\")","v":""}]
[null,{"$f":"IFERROR(INDEX('3 - Land Summary'!$B$21:$B$120,(MATCH('4 - Species Breakdown'!$V810,'3 - Land Summary'!$C$21:$C$120,0))),\"\")","v":""},null,null,{"$f":"IF(OR(COUNTIF('Look Up Data'!$D$149:$D$203,D810),COUNTIF('Look Up Data'!$D$149:$D$203,AE810)),\"YES\",\"NO\")","v":"NO"},null,null,{"$f":"IFERROR(INDEX('3 - Land Summary'!$G$21:$G$120,(MATCH(C810,'3 - Land Summary'!$C$21:$C$120,0))),\"\")","v":""},{"$f":"IFERROR(INDEX('3 - Land Summary'!$I$21:$I$120,(MATCH(C810,'3 - Land Summary'!$C$21:$C$120,0))),\"\")","v":""},"","",null,null,null,{"$f":"IFERROR(VLOOKUP(D810,'Species List'!$D$10:$E$46,2,FALSE)*J810,\"\")","v":""},{"$f":"IFERROR(VLOOKUP(D810,'Species List'!$D$51:$E$89,2,FALSE)*J810,\"\")","v":""},{"$f":"IFERROR(VLOOKUP(D810,'Species List'!$D$95:$E$102,2,FALSE)*J810,\"\")","v":""},{"$f":"IFERROR(VLOOKUP(D810,'Species List'!$I$10:$J$11,2,FALSE)*J810,\"\")","v":""},{"$f":"IFERROR(VLOOKUP(D810,'Species List'!$I$16:$J$61,2,FALSE)*J810,\"\")","v":""},{"$f":"IFERROR(VLOOKUP(D810,'Species List'!$I$66:$J$66,2,FALSE)*J810,\"\")","v":""},{"$f":"IFERROR(VLOOKUP(D810,'Species List'!$I$71:$J$82,2,FALSE)*J810,\"\")","v":""},0,null,null,null,null,null,null,{"$f":"IFERROR(INDEX('3 - Land Summary'!$B$21:$B$120,(MATCH(AD810,'3 - Land Summary'!$C$21:$C$120,0))),\"\")","v":""}]
[null,{"$f":"IFERROR(INDEX('3 - Land Summary'!$B$21:$B$120,(MATCH('4 - Species Breakdown'!$V811,'3 - Land Summary'!$C$21:$C$120,0))),\"\")","v":""},null,null,{"$f":"IF(OR(COUNTIF('Look Up Data'!$D$149:$D$203,D811),COUNTIF('Look Up Data'!$D$149:$D$203,AE811)),\"YES\",\"NO\")","v":"NO"},null,null,{"$f":"IFERROR(INDEX('3 - Land Summary'!$G$21:$G$120,(MATCH(C811,'3 - Land Summary'!$C$21:$C$120,0))),\"\")","v":""},{"$f":"IFERROR(INDEX('3 - Land Summary'!$I$21:$I$120,(MATCH(C811,'3 - Land Summary'!$C$21:$C$120,0))),\"\")","v":""},"","",null,null,null,{"$f":"IFERROR(VLOOKUP(D811,'Species List'!$D$10:$E$46,2,FALSE)*J811,\"\")","v":""},{"$f":"IFERROR(VLOOKUP(D811,'Species List'!$D$51:$E$89,2,FALSE)*J811,\"\")","v":""},{"$f":"IFERROR(VLOOKUP(D811,'Species List'!$D$95:$E$102,2,FALSE)*J811,\"\")","v":""},{"$f":"IFERROR(VLOOKUP(D811,'Species List'!$I$10:$J$11,2,FALSE)*J811,\"\")","v":""},{"$f":"IFERROR(VLOOKUP(D811,'Species List'!$I$16:$J$61,2,FALSE)*J811,\"\")","v":""},{"$f":"IFERROR(VLOOKUP(D811,'Species List'!$I$66:$J$66,2,FALSE)*J811,\"\")","v":""},{"$f":"IFERROR(VLOOKUP(D811,'Species List'!$I$71:$J$82,2,FALSE)*J811,\"\")","v":""},0,null,null,null,null,null,null,{"$f":"IFERROR(INDEX('3 - Land Summary'!$B$21:$B$120,(MATCH(AD811,'3 - Land Summary'!$C$21:$C$120,0))),\"\")","v":""}]
[null,{"$f":"IFERROR(INDEX('3 - Land Summary'!$B$21:$B$120,(MATCH('4 - Species Breakdown'!$V812,'3 - Land Summary'!$C$21:$C$120,0))),\"\")","v":""},null,null,{"$f":"IF(OR(COUNTIF('Look Up Data'!$D$149:$D$203,D812),COUNTIF('Look Up Data'!$D$149:$D$203,AE812)),\"YES\",\"NO\")","v":"NO"},null,null,{"$f":"IFERROR(INDEX('3 - Land Summary'!$G$21:$G$120,(MATCH(C812,'3 - Land Summary'!$C$21:$C$120,0))),\"\")","v":""},{"$f":"IFERROR(INDEX('3 - Land Summary'!$I$21:$I$120,(MATCH(C812,'3 - Land Summary'!$C$21:$C$120,0))),\"\")","v":""},"","",null,null,null,{"$f":"IFERROR(VLOOKUP(D812,'Species List'!$D$10:$E$46,2,FALSE)*J812,\"\")","v":""},{"$f":"IFERROR(VLOOKUP(D812,'Species List'!$D$51:$E$89,2,FALSE)*J812,\"\")","v":""},{"$f":"IFERROR(VLOOKUP(D812,'Species List'!$D$95:$E$102,2,FALSE)*J812,\"\")","v":""},{"$f":"IFERROR(VLOOKUP(D812,'Species List'!$I$10:$J$11,2,FALSE)*J812,\"\")","v":""},{"$f":"IFERROR(VLOOKUP(D812,'Species List'!$I$16:$J$61,2,FALSE)*J812,\"\")","v":""},{"$f":"IFERROR(VLOOKUP(D812,'Species List'!$I$66:$J$66,2,FALSE)*J812,\"\")","v":""},{"$f":"IFERROR(VLOOKUP(D812,'Species List'!$I$71:$J$82,2,FALSE)*J812,\"\")","v":""},0,null,null,null,null,null,null,{"$f":"IFERROR(INDEX('3 - Land Summary'!$B$21:$B$120,(MATCH(AD812,'3 - Land Summary'!$C$21:$C$120,0))),\"\")","v":""}]
[null,{"$f":"IFERROR(INDEX('3 - Land Summary'!$B$21:$B$120,(MATCH('4 - Species Breakdown'!$V813,'3 - Land Summary'!$C$21:$C$120,0))),\"\")","v":""},null,null,{"$f":"IF(OR(COUNTIF('Look Up Data'!$D$149:$D$203,D813),COUNTIF('Look Up Data'!$D$149:$D$203,AE813)),\"YES\",\"NO\")","v":"NO"},null,null,{"$f":"IFERROR(INDEX('3 - Land Summary'!$G$21:$G$120,(MATCH(C813,'3 - Land Summary'!$C$21:$C$120,0))),\"\")","v":""},{"$f":"IFERROR(INDEX('3 - Land Summary'!$I$21:$I$120,(MATCH(C813,'3 - Land Summary'!$C$21:$C$120,0))),\"\")","v":""},"","",null,null,null,{"$f":"IFERROR(VLOOKUP(D813,'Species List'!$D$10:$E$46,2,FALSE)*J813,\"\")","v":""},{"$f":"IFERROR(VLOOKUP(D813,'Species List'!$D$51:$E$89,2,FALSE)*J813,\"\")","v":""},{"$f":"IFERROR(VLOOKUP(D813,'Species List'!$D$95:$E$102,2,FALSE)*J813,\"\")","v":""},{"$f":"IFERROR(VLOOKUP(D813,'Species List'!$I$10:$J$11,2,FALSE)*J813,\"\")","v":""},{"$f":"IFERROR(VLOOKUP(D813,'Species List'!$I$16:$J$61,2,FALSE)*J813,\"\")","v":""},{"$f":"IFERROR(VLOOKUP(D813,'Species List'!$I$66:$J$66,2,FALSE)*J813,\"\")","v":""},{"$f":"IFERROR(VLOOKUP(D813,'Species List'!$I$71:$J$82,2,FALSE)*J813,\"\")","v":""},0,null,null,null,null,null,null,{"$f":"IFERROR(INDEX('3 - Land Summary'!$B$21:$B$120,(MATCH(AD813,'3 - Land Summary'!$C$21:$C$120,0))),\"\")","v":""}]
[null,{"$f":"IFERROR(INDEX('3 - Land Summary'!$B$21:$B$120,(MATCH('4 - Species Breakdown'!$V814,'3 - Land Summary'!$C$21:$C$120,0))),\"\")","v":""},null,null,{"$f":"IF(OR(COUNTIF('Look Up Data'!$D$149:$D$203,D814),COUNTIF('Look Up Data'!$D$149:$D$203,AE814)),\"YES\",\"NO\")","v":"NO"},null,null,{"$f":"IFERROR(INDEX('3 - Land Summary'!$G$21:$G$120,(MATCH(C814,'3 - Land Summary'!$C$21:$C$120,0))),\"\")","v":""},{"$f":"IFERROR(INDEX('3 - Land Summary'!$I$21:$I$120,(MATCH(C814,'3 - Land Summary'!$C$21:$C$120,0))),\"\")","v":""},"","",null,null,null,{"$f":"IFERROR(VLOOKUP(D814,'Species List'!$D$10:$E$46,2,FALSE)*J814,\"\")","v":""},{"$f":"IFERROR(VLOOKUP(D814,'Species List'!$D$51:$E$89,2,FALSE)*J814,\"\")","v":""},{"$f":"IFERROR(VLOOKUP(D814,'Species List'!$D$95:$E$102,2,FALSE)*J814,\"\")","v":""},{"$f":"IFERROR(VLOOKUP(D814,'Species List'!$I$10:$J$11,2,FALSE)*J814,\"\")","v":""},{"$f":"IFERROR(VLOOKUP(D814,'Species List'!$I$16:$J$61,2,FALSE)*J814,\"\")","v":""},{"$f":"IFERROR(VLOOKUP(D814,'Species List'!$I$66:$J$66,2,FALSE)*J814,\"\")","v":""},{"$f":"IFERROR(VLOOKUP(D814,'Species List'!$I$71:$J$82,2,FALSE)*J814,\"\")","v":""},0,null,null,null,null,null,null,{"$f":"IFERROR(INDEX('3 - Land Summary'!$B$21:$B$120,(MATCH(AD814,'3 - Land Summary'!$C$21:$C$120,0))),\"\")","v":""}]
[null,{"$f":"IFERROR(INDEX('3 - Land Summary'!$B$21:$B$120,(MATCH('4 - Species Breakdown'!$V815,'3 - Land Summary'!$C$21:$C$120,0))),\"\")","v":""},null,null,{"$f":"IF(OR(COUNTIF('Look Up Data'!$D$149:$D$203,D815),COUNTIF('Look Up Data'!$D$149:$D$203,AE815)),\"YES\",\"NO\")","v":"NO"},null,null,{"$f":"IFERROR(INDEX('3 - Land Summary'!$G$21:$G$120,(MATCH(C815,'3 - Land Summary'!$C$21:$C$120,0))),\"\")","v":""},{"$f":"IFERROR(INDEX('3 - Land Summary'!$I$21:$I$120,(MATCH(C815,'3 - Land Summary'!$C$21:$C$120,0))),\"\")","v":""},"","",null,null,null,{"$f":"IFERROR(VLOOKUP(D815,'Species List'!$D$10:$E$46,2,FALSE)*J815,\"\")","v":""},{"$f":"IFERROR(VLOOKUP(D815,'Species List'!$D$51:$E$89,2,FALSE)*J815,\"\")","v":""},{"$f":"IFERROR(VLOOKUP(D815,'Species List'!$D$95:$E$102,2,FALSE)*J815,\"\")","v":""},{"$f":"IFERROR(VLOOKUP(D815,'Species List'!$I$10:$J$11,2,FALSE)*J815,\"\")","v":""},{"$f":"IFERROR(VLOOKUP(D815,'Species List'!$I$16:$J$61,2,FALSE)*J815,\"\")","v":""},{"$f":"IFERROR(VLOOKUP(D815,'Species List'!$I$66:$J$66,2,FALSE)*J815,\"\")","v":""},{"$f":"IFERROR(VLOOKUP(D815,'Species List'!$I$71:$J$82,2,FALSE)*J815,\"\")","v":""},0,null,null,null,null,null,null,{"$f":"IFERROR(INDEX('3 - Land Summary'!$B$21:$B$120,(MATCH(AD815,'3 - Land Summary'!$C$21:$C$120,0))),\"\")","v":""}]
[null,{"$f":"IFERROR(INDEX('3 - Land Summary'!$B$21:$B$120,(MATCH('4 - Species Breakdown'!$V816,'3 - Land Summary'!$C$21:$C$120,0))),\"\")","v":""},null,null,{"$f":"IF(OR(COUNTIF('Look Up Data'!$D$149:$D$203,D816),COUNTIF('Look Up Data'!$D$149:$D$203,AE816)),\"YES\",\"NO\")","v":"NO"},null,null,{"$f":"IFERROR(INDEX('3 - Land Summary'!$G$21:$G$120,(MATCH(C816,'3 - Land Summary'!$C$21:$C$120,0))),\"\")","v":""},{"$f":"IFERROR(INDEX('3 - Land Summary'!$I$21:$I$120,(MATCH(C816,'3 - Land Summary'!$C$21:$C$120,0))),\"\")","v":""},"","",null,null,null,{"$f":"IFERROR(VLOOKUP(D816,'Species List'!$D$10:$E$46,2,FALSE)*J816,\"\")","v":""},{"$f":"IFERROR(VLOOKUP(D816,'Species List'!$D$51:$E$89,2,FALSE)*J816,\"\")","v":""},{"$f":"IFERROR(VLOOKUP(D816,'Species List'!$D$95:$E$102,2,FALSE)*J816,\"\")","v":""},{"$f":"IFERROR(VLOOKUP(D816,'Species List'!$I$10:$J$11,2,FALSE)*J816,\"\")","v":""},{"$f":"IFERROR(VLOOKUP(D816,'Species List'!$I$16:$J$61,2,FALSE)*J816,\"\")","v":""},{"$f":"IFERROR(VLOOKUP(D816,'Species List'!$I$66:$J$66,2,FALSE)*J816,\"\")","v":""},{"$f":"IFERROR(VLOOKUP(D816,'Species List'!$I$71:$J$82,2,FALSE)*J816,\"\")","v":""},0,null,null,null,null,null,null,{"$f":"IFERROR(INDEX('3 - Land Summary'!$B$21:$B$120,(MATCH(AD816,'3 - Land Summary'!$C$21:$C$120,0))),\"\")","v":""}]
[null,{"$f":"IFERROR(INDEX('3 - Land Summary'!$B$21:$B$120,(MATCH('4 - Species Breakdown'!$V817,'3 - Land Summary'!$C$21:$C$120,0))),\"\")","v":""},null,null,{"$f":"IF(OR(COUNTIF('Look Up Data'!$D$149:$D$203,D817),COUNTIF('Look Up Data'!$D$149:$D$203,AE817)),\"YES\",\"NO\")","v":"NO"},null,null,{"$f":"IFERROR(INDEX('3 - Land Summary'!$G$21:$G$120,(MATCH(C817,'3 - Land Summary'!$C$21:$C$120,0))),\"\")","v":""},{"$f":"IFERROR(INDEX('3 - Land Summary'!$I$21:$I$120,(MATCH(C817,'3 - Land Summary'!$C$21:$C$120,0))),\"\")","v":""},"","",null,null,null,{"$f":"IFERROR(VLOOKUP(D817,'Species List'!$D$10:$E$46,2,FALSE)*J817,\"\")","v":""},{"$f":"IFERROR(VLOOKUP(D817,'Species List'!$D$51:$E$89,2,FALSE)*J817,\"\")","v":""},{"$f":"IFERROR(VLOOKUP(D817,'Species List'!$D$95:$E$102,2,FALSE)*J817,\"\")","v":""},{"$f":"IFERROR(VLOOKUP(D817,'Species List'!$I$10:$J$11,2,FALSE)*J817,\"\")","v":""},{"$f":"IFERROR(VLOOKUP(D817,'Species List'!$I$16:$J$61,2,FALSE)*J817,\"\")","v":""},{"$f":"IFERROR(VLOOKUP(D817,'Species List'!$I$66:$J$66,2,FALSE)*J817,\"\")","v":""},{"$f":"IFERROR(VLOOKUP(D817,'Species List'!$I$71:$J$82,2,FALSE)*J817,\"\")","v":""},0,null,null,null,null,null,null,{"$f":"IFERROR(INDEX('3 - Land Summary'!$B$21:$B$120,(MATCH(AD817,'3 - Land Summary'!$C$21:$C$120,0))),\"\")","v":""}]
[null,{"$f":"IFERROR(INDEX('3 - Land Summary'!$B$21:$B$120,(MATCH('4 - Species Breakdown'!$V818,'3 - Land Summary'!$C$21:$C$120,0))),\"\")","v":""},null,null,{"$f":"IF(OR(COUNTIF('Look Up Data'!$D$149:$D$203,D818),COUNTIF('Look Up Data'!$D$149:$D$203,AE818)),\"YES\",\"NO\")","v":"NO"},null,null,{"$f":"IFERROR(INDEX('3 - Land Summary'!$G$21:$G$120,(MATCH(C818,'3 - Land Summary'!$C$21:$C$120,0))),\"\")","v":""},{"$f":"IFERROR(INDEX('3 - Land Summary'!$I$21:$I$120,(MATCH(C818,'3 - Land Summary'!$C$21:$C$120,0))),\"\")","v":""},"","",null,null,null,{"$f":"IFERROR(VLOOKUP(D818,'Species List'!$D$10:$E$46,2,FALSE)*J818,\"\")","v":""},{"$f":"IFERROR(VLOOKUP(D818,'Species List'!$D$51:$E$89,2,FALSE)*J818,\"\")","v":""},{"$f":"IFERROR(VLOOKUP(D818,'Species List'!$D$95:$E$102,2,FALSE)*J818,\"\")","v":""},{"$f":"IFERROR(VLOOKUP(D818,'Species List'!$I$10:$J$11,2,FALSE)*J818,\"\")","v":""},{"$f":"IFERROR(VLOOKUP(D818,'Species List'!$I$16:$J$61,2,FALSE)*J818,\"\")","v":""},{"$f":"IFERROR(VLOOKUP(D818,'Species List'!$I$66:$J$66,2,FALSE)*J818,\"\")","v":""},{"$f":"IFERROR(VLOOKUP(D818,'Species List'!$I$71:$J$82,2,FALSE)*J818,\"\")","v":""},0,null,null,null,null,null,null,{"$f":"IFERROR(INDEX('3 - Land Summary'!$B$21:$B$120,(MATCH(AD818,'3 - Land Summary'!$C$21:$C$120,0))),\"\")","v":""}]
[null,{"$f":"IFERROR(INDEX('3 - Land Summary'!$B$21:$B$120,(MATCH('4 - Species Breakdown'!$V819,'3 - Land Summary'!$C$21:$C$120,0))),\"\")","v":""},null,null,{"$f":"IF(OR(COUNTIF('Look Up Data'!$D$149:$D$203,D819),COUNTIF('Look Up Data'!$D$149:$D$203,AE819)),\"YES\",\"NO\")","v":"NO"},null,null,{"$f":"IFERROR(INDEX('3 - Land Summary'!$G$21:$G$120,(MATCH(C819,'3 - Land Summary'!$C$21:$C$120,0))),\"\")","v":""},{"$f":"IFERROR(INDEX('3 - Land Summary'!$I$21:$I$120,(MATCH(C819,'3 - Land Summary'!$C$21:$C$120,0))),\"\")","v":""},"","",null,null,null,{"$f":"IFERROR(VLOOKUP(D819,'Species List'!$D$10:$E$46,2,FALSE)*J819,\"\")","v":""},{"$f":"IFERROR(VLOOKUP(D819,'Species List'!$D$51:$E$89,2,FALSE)*J819,\"\")","v":""},{"$f":"IFERROR(VLOOKUP(D819,'Species List'!$D$95:$E$102,2,FALSE)*J819,\"\")","v":""},{"$f":"IFERROR(VLOOKUP(D819,'Species List'!$I$10:$J$11,2,FALSE)*J819,\"\")","v":""},{"$f":"IFERROR(VLOOKUP(D819,'Species List'!$I$16:$J$61,2,FALSE)*J819,\"\")","v":""},{"$f":"IFERROR(VLOOKUP(D819,'Species List'!$I$66:$J$66,2,FALSE)*J819,\"\")","v":""},{"$f":"IFERROR(VLOOKUP(D819,'Species List'!$I$71:$J$82,2,FALSE)*J819,\"\")","v":""},0,null,null,null,null,null,null,{"$f":"IFERROR(INDEX('3 - Land Summary'!$B$21:$B$120,(MATCH(AD819,'3 - Land Summary'!$C$21:$C$120,0))),\"\")","v":""}]
[null,{"$f":"IFERROR(INDEX('3 - Land Summary'!$B$21:$B$120,(MATCH('4 - Species Breakdown'!$V820,'3 - Land Summary'!$C$21:$C$120,0))),\"\")","v":""},null,null,{"$f":"IF(OR(COUNTIF('Look Up Data'!$D$149:$D$203,D820),COUNTIF('Look Up Data'!$D$149:$D$203,AE820)),\"YES\",\"NO\")","v":"NO"},null,null,{"$f":"IFERROR(INDEX('3 - Land Summary'!$G$21:$G$120,(MATCH(C820,'3 - Land Summary'!$C$21:$C$120,0))),\"\")","v":""},{"$f":"IFERROR(INDEX('3 - Land Summary'!$I$21:$I$120,(MATCH(C820,'3 - Land Summary'!$C$21:$C$120,0))),\"\")","v":""},"","",null,null,null,{"$f":"IFERROR(VLOOKUP(D820,'Species List'!$D$10:$E$46,2,FALSE)*J820,\"\")","v":""},{"$f":"IFERROR(VLOOKUP(D820,'Species List'!$D$51:$E$89,2,FALSE)*J820,\"\")","v":""},{"$f":"IFERROR(VLOOKUP(D820,'Species List'!$D$95:$E$102,2,FALSE)*J820,\"\")","v":""},{"$f":"IFERROR(VLOOKUP(D820,'Species List'!$I$10:$J$11,2,FALSE)*J820,\"\")","v":""},{"$f":"IFERROR(VLOOKUP(D820,'Species List'!$I$16:$J$61,2,FALSE)*J820,\"\")","v":""},{"$f":"IFERROR(VLOOKUP(D820,'Species List'!$I$66:$J$66,2,FALSE)*J820,\"\")","v":""},{"$f":"IFERROR(VLOOKUP(D820,'Species List'!$I$71:$J$82,2,FALSE)*J820,\"\")","v":""},0,null,null,null,null,null,null,{"$f":"IFERROR(INDEX('3 - Land Summary'!$B$21:$B$120,(MATCH(AD820,'3 - Land Summary'!$C$21:$C$120,0))),\"\")","v":""}]
[null,{"$f":"IFERROR(INDEX('3 - Land Summary'!$B$21:$B$120,(MATCH('4 - Species Breakdown'!$V821,'3 - Land Summary'!$C$21:$C$120,0))),\"\")","v":""},null,null,{"$f":"IF(OR(COUNTIF('Look Up Data'!$D$149:$D$203,D821),COUNTIF('Look Up Data'!$D$149:$D$203,AE821)),\"YES\",\"NO\")","v":"NO"},null,null,{"$f":"IFERROR(INDEX('3 - Land Summary'!$G$21:$G$120,(MATCH(C821,'3 - Land Summary'!$C$21:$C$120,0))),\"\")","v":""},{"$f":"IFERROR(INDEX('3 - Land Summary'!$I$21:$I$120,(MATCH(C821,'3 - Land Summary'!$C$21:$C$120,0))),\"\")","v":""},"","",null,null,null,{"$f":"IFERROR(VLOOKUP(D821,'Species List'!$D$10:$E$46,2,FALSE)*J821,\"\")","v":""},{"$f":"IFERROR(VLOOKUP(D821,'Species List'!$D$51:$E$89,2,FALSE)*J821,\"\")","v":""},{"$f":"IFERROR(VLOOKUP(D821,'Species List'!$D$95:$E$102,2,FALSE)*J821,\"\")","v":""},{"$f":"IFERROR(VLOOKUP(D821,'Species List'!$I$10:$J$11,2,FALSE)*J821,\"\")","v":""},{"$f":"IFERROR(VLOOKUP(D821,'Species List'!$I$16:$J$61,2,FALSE)*J821,\"\")","v":""},{"$f":"IFERROR(VLOOKUP(D821,'Species List'!$I$66:$J$66,2,FALSE)*J821,\"\")","v":""},{"$f":"IFERROR(VLOOKUP(D821,'Species List'!$I$71:$J$82,2,FALSE)*J821,\"\")","v":""},0,null,null,null,null,null,null,{"$f":"IFERROR(INDEX('3 - Land Summary'!$B$21:$B$120,(MATCH(AD821,'3 - Land Summary'!$C$21:$C$120,0))),\"\")","v":""}]
[null,{"$f":"IFERROR(INDEX('3 - Land Summary'!$B$21:$B$120,(MATCH('4 - Species Breakdown'!$V822,'3 - Land Summary'!$C$21:$C$120,0))),\"\")","v":""},null,null,{"$f":"IF(OR(COUNTIF('Look Up Data'!$D$149:$D$203,D822),COUNTIF('Look Up Data'!$D$149:$D$203,AE822)),\"YES\",\"NO\")","v":"NO"},null,null,{"$f":"IFERROR(INDEX('3 - Land Summary'!$G$21:$G$120,(MATCH(C822,'3 - Land Summary'!$C$21:$C$120,0))),\"\")","v":""},{"$f":"IFERROR(INDEX('3 - Land Summary'!$I$21:$I$120,(MATCH(C822,'3 - Land Summary'!$C$21:$C$120,0))),\"\")","v":""},"","",null,null,null,{"$f":"IFERROR(VLOOKUP(D822,'Species List'!$D$10:$E$46,2,FALSE)*J822,\"\")","v":""},{"$f":"IFERROR(VLOOKUP(D822,'Species List'!$D$51:$E$89,2,FALSE)*J822,\"\")","v":""},{"$f":"IFERROR(VLOOKUP(D822,'Species List'!$D$95:$E$102,2,FALSE)*J822,\"\")","v":""},{"$f":"IFERROR(VLOOKUP(D822,'Species List'!$I$10:$J$11,2,FALSE)*J822,\"\")","v":""},{"$f":"IFERROR(VLOOKUP(D822,'Species List'!$I$16:$J$61,2,FALSE)*J822,\"\")","v":""},{"$f":"IFERROR(VLOOKUP(D822,'Species List'!$I$66:$J$66,2,FALSE)*J822,\"\")","v":""},{"$f":"IFERROR(VLOOKUP(D822,'Species List'!$I$71:$J$82,2,FALSE)*J822,\"\")","v":""},0,null,null,null,null,null,null,{"$f":"IFERROR(INDEX('3 - Land Summary'!$B$21:$B$120,(MATCH(AD822,'3 - Land Summary'!$C$21:$C$120,0))),\"\")","v":""}]
[null,{"$f":"IFERROR(INDEX('3 - Land Summary'!$B$21:$B$120,(MATCH('4 - Species Breakdown'!$V823,'3 - Land Summary'!$C$21:$C$120,0))),\"\")","v":""},null,null,{"$f":"IF(OR(COUNTIF('Look Up Data'!$D$149:$D$203,D823),COUNTIF('Look Up Data'!$D$149:$D$203,AE823)),\"YES\",\"NO\")","v":"NO"},null,null,{"$f":"IFERROR(INDEX('3 - Land Summary'!$G$21:$G$120,(MATCH(C823,'3 - Land Summary'!$C$21:$C$120,0))),\"\")","v":""},{"$f":"IFERROR(INDEX('3 - Land Summary'!$I$21:$I$120,(MATCH(C823,'3 - Land Summary'!$C$21:$C$120,0))),\"\")","v":""},"","",null,null,null,{"$f":"IFERROR(VLOOKUP(D823,'Species List'!$D$10:$E$46,2,FALSE)*J823,\"\")","v":""},{"$f":"IFERROR(VLOOKUP(D823,'Species List'!$D$51:$E$89,2,FALSE)*J823,\"\")","v":""},{"$f":"IFERROR(VLOOKUP(D823,'Species List'!$D$95:$E$102,2,FALSE)*J823,\"\")","v":""},{"$f":"IFERROR(VLOOKUP(D823,'Species List'!$I$10:$J$11,2,FALSE)*J823,\"\")","v":""},{"$f":"IFERROR(VLOOKUP(D823,'Species List'!$I$16:$J$61,2,FALSE)*J823,\"\")","v":""},{"$f":"IFERROR(VLOOKUP(D823,'Species List'!$I$66:$J$66,2,FALSE)*J823,\"\")","v":""},{"$f":"IFERROR(VLOOKUP(D823,'Species List'!$I$71:$J$82,2,FALSE)*J823,\"\")","v":""},0,null,null,null,null,null,null,{"$f":"IFERROR(INDEX('3 - Land Summary'!$B$21:$B$120,(MATCH(AD823,'3 - Land Summary'!$C$21:$C$120,0))),\"\")","v":""}]
[null,{"$f":"IFERROR(INDEX('3 - Land Summary'!$B$21:$B$120,(MATCH('4 - Species Breakdown'!$V824,'3 - Land Summary'!$C$21:$C$120,0))),\"\")","v":""},null,null,{"$f":"IF(OR(COUNTIF('Look Up Data'!$D$149:$D$203,D824),COUNTIF('Look Up Data'!$D$149:$D$203,AE824)),\"YES\",\"NO\")","v":"NO"},null,null,{"$f":"IFERROR(INDEX('3 - Land Summary'!$G$21:$G$120,(MATCH(C824,'3 - Land Summary'!$C$21:$C$120,0))),\"\")","v":""},{"$f":"IFERROR(INDEX('3 - Land Summary'!$I$21:$I$120,(MATCH(C824,'3 - Land Summary'!$C$21:$C$120,0))),\"\")","v":""},"","",null,null,null,{"$f":"IFERROR(VLOOKUP(D824,'Species List'!$D$10:$E$46,2,FALSE)*J824,\"\")","v":""},{"$f":"IFERROR(VLOOKUP(D824,'Species List'!$D$51:$E$89,2,FALSE)*J824,\"\")","v":""},{"$f":"IFERROR(VLOOKUP(D824,'Species List'!$D$95:$E$102,2,FALSE)*J824,\"\")","v":""},{"$f":"IFERROR(VLOOKUP(D824,'Species List'!$I$10:$J$11,2,FALSE)*J824,\"\")","v":""},{"$f":"IFERROR(VLOOKUP(D824,'Species List'!$I$16:$J$61,2,FALSE)*J824,\"\")","v":""},{"$f":"IFERROR(VLOOKUP(D824,'Species List'!$I$66:$J$66,2,FALSE)*J824,\"\")","v":""},{"$f":"IFERROR(VLOOKUP(D824,'Species List'!$I$71:$J$82,2,FALSE)*J824,\"\")","v":""},0,null,null,null,null,null,null,{"$f":"IFERROR(INDEX('3 - Land Summary'!$B$21:$B$120,(MATCH(AD824,'3 - Land Summary'!$C$21:$C$120,0))),\"\")","v":""}]
[null,{"$f":"IFERROR(INDEX('3 - Land Summary'!$B$21:$B$120,(MATCH('4 - Species Breakdown'!$V825,'3 - Land Summary'!$C$21:$C$120,0))),\"\")","v":""},null,null,{"$f":"IF(OR(COUNTIF('Look Up Data'!$D$149:$D$203,D825),COUNTIF('Look Up Data'!$D$149:$D$203,AE825)),\"YES\",\"NO\")","v":"NO"},null,null,{"$f":"IFERROR(INDEX('3 - Land Summary'!$G$21:$G$120,(MATCH(C825,'3 - Land Summary'!$C$21:$C$120,0))),\"\")","v":""},{"$f":"IFERROR(INDEX('3 - Land Summary'!$I$21:$I$120,(MATCH(C825,'3 - Land Summary'!$C$21:$C$120,0))),\"\")","v":""},"","",null,null,null,{"$f":"IFERROR(VLOOKUP(D825,'Species List'!$D$10:$E$46,2,FALSE)*J825,\"\")","v":""},{"$f":"IFERROR(VLOOKUP(D825,'Species List'!$D$51:$E$89,2,FALSE)*J825,\"\")","v":""},{"$f":"IFERROR(VLOOKUP(D825,'Species List'!$D$95:$E$102,2,FALSE)*J825,\"\")","v":""},{"$f":"IFERROR(VLOOKUP(D825,'Species List'!$I$10:$J$11,2,FALSE)*J825,\"\")","v":""},{"$f":"IFERROR(VLOOKUP(D825,'Species List'!$I$16:$J$61,2,FALSE)*J825,\"\")","v":""},{"$f":"IFERROR(VLOOKUP(D825,'Species List'!$I$66:$J$66,2,FALSE)*J825,\"\")","v":""},{"$f":"IFERROR(VLOOKUP(D825,'Species List'!$I$71:$J$82,2,FALSE)*J825,\"\")","v":""},0,null,null,null,null,null,null,{"$f":"IFERROR(INDEX('3 - Land Summary'!$B$21:$B$120,(MATCH(AD825,'3 - Land Summary'!$C$21:$C$120,0))),\"\")","v":""}]
[null,{"$f":"IFERROR(INDEX('3 - Land Summary'!$B$21:$B$120,(MATCH('4 - Species Breakdown'!$V826,'3 - Land Summary'!$C$21:$C$120,0))),\"\")","v":""},null,null,{"$f":"IF(OR(COUNTIF('Look Up Data'!$D$149:$D$203,D826),COUNTIF('Look Up Data'!$D$149:$D$203,AE826)),\"YES\",\"NO\")","v":"NO"},null,null,{"$f":"IFERROR(INDEX('3 - Land Summary'!$G$21:$G$120,(MATCH(C826,'3 - Land Summary'!$C$21:$C$120,0))),\"\")","v":""},{"$f":"IFERROR(INDEX('3 - Land Summary'!$I$21:$I$120,(MATCH(C826,'3 - Land Summary'!$C$21:$C$120,0))),\"\")","v":""},"","",null,null,null,{"$f":"IFERROR(VLOOKUP(D826,'Species List'!$D$10:$E$46,2,FALSE)*J826,\"\")","v":""},{"$f":"IFERROR(VLOOKUP(D826,'Species List'!$D$51:$E$89,2,FALSE)*J826,\"\")","v":""},{"$f":"IFERROR(VLOOKUP(D826,'Species List'!$D$95:$E$102,2,FALSE)*J826,\"\")","v":""},{"$f":"IFERROR(VLOOKUP(D826,'Species List'!$I$10:$J$11,2,FALSE)*J826,\"\")","v":""},{"$f":"IFERROR(VLOOKUP(D826,'Species List'!$I$16:$J$61,2,FALSE)*J826,\"\")","v":""},{"$f":"IFERROR(VLOOKUP(D826,'Species List'!$I$66:$J$66,2,FALSE)*J826,\"\")","v":""},{"$f":"IFERROR(VLOOKUP(D826,'Species List'!$I$71:$J$82,2,FALSE)*J826,\"\")","v":""},0,null,null,null,null,null,null,{"$f":"IFERROR(INDEX('3 - Land Summary'!$B$21:$B$120,(MATCH(AD826,'3 - Land Summary'!$C$21:$C$120,0))),\"\")","v":""}]
[null,{"$f":"IFERROR(INDEX('3 - Land Summary'!$B$21:$B$120,(MATCH('4 - Species Breakdown'!$V827,'3 - Land Summary'!$C$21:$C$120,0))),\"\")","v":""},null,null,{"$f":"IF(OR(COUNTIF('Look Up Data'!$D$149:$D$203,D827),COUNTIF('Look Up Data'!$D$149:$D$203,AE827)),\"YES\",\"NO\")","v":"NO"},null,null,{"$f":"IFERROR(INDEX('3 - Land Summary'!$G$21:$G$120,(MATCH(C827,'3 - Land Summary'!$C$21:$C$120,0))),\"\")","v":""},{"$f":"IFERROR(INDEX('3 - Land Summary'!$I$21:$I$120,(MATCH(C827,'3 - Land Summary'!$C$21:$C$120,0))),\"\")","v":""},"","",null,null,null,{"$f":"IFERROR(VLOOKUP(D827,'Species List'!$D$10:$E$46,2,FALSE)*J827,\"\")","v":""},{"$f":"IFERROR(VLOOKUP(D827,'Species List'!$D$51:$E$89,2,FALSE)*J827,\"\")","v":""},{"$f":"IFERROR(VLOOKUP(D827,'Species List'!$D$95:$E$102,2,FALSE)*J827,\"\")","v":""},{"$f":"IFERROR(VLOOKUP(D827,'Species List'!$I$10:$J$11,2,FALSE)*J827,\"\")","v":""},{"$f":"IFERROR(VLOOKUP(D827,'Species List'!$I$16:$J$61,2,FALSE)*J827,\"\")","v":""},{"$f":"IFERROR(VLOOKUP(D827,'Species List'!$I$66:$J$66,2,FALSE)*J827,\"\")","v":""},{"$f":"IFERROR(VLOOKUP(D827,'Species List'!$I$71:$J$82,2,FALSE)*J827,\"\")","v":""},0,null,null,null,null,null,null,{"$f":"IFERROR(INDEX('3 - Land Summary'!$B$21:$B$120,(MATCH(AD827,'3 - Land Summary'!$C$21:$C$120,0))),\"\")","v":""}]
[null,{"$f":"IFERROR(INDEX('3 - Land Summary'!$B$21:$B$120,(MATCH('4 - Species Breakdown'!$V828,'3 - Land Summary'!$C$21:$C$120,0))),\"\")","v":""},null,null,{"$f":"IF(OR(COUNTIF('Look Up Data'!$D$149:$D$203,D828),COUNTIF('Look Up Data'!$D$149:$D$203,AE828)),\"YES\",\"NO\")","v":"NO"},null,null,{"$f":"IFERROR(INDEX('3 - Land Summary'!$G$21:$G$120,(MATCH(C828,'3 - Land Summary'!$C$21:$C$120,0))),\"\")","v":""},{"$f":"IFERROR(INDEX('3 - Land Summary'!$I$21:$I$120,(MATCH(C828,'3 - Land Summary'!$C$21:$C$120,0))),\"\")","v":""},"","",null,null,null,{"$f":"IFERROR(VLOOKUP(D828,'Species List'!$D$10:$E$46,2,FALSE)*J828,\"\")","v":""},{"$f":"IFERROR(VLOOKUP(D828,'Species List'!$D$51:$E$89,2,FALSE)*J828,\"\")","v":""},{"$f":"IFERROR(VLOOKUP(D828,'Species List'!$D$95:$E$102,2,FALSE)*J828,\"\")","v":""},{"$f":"IFERROR(VLOOKUP(D828,'Species List'!$I$10:$J$11,2,FALSE)*J828,\"\")","v":""},{"$f":"IFERROR(VLOOKUP(D828,'Species List'!$I$16:$J$61,2,FALSE)*J828,\"\")","v":""},{"$f":"IFERROR(VLOOKUP(D828,'Species List'!$I$66:$J$66,2,FALSE)*J828,\"\")","v":""},{"$f":"IFERROR(VLOOKUP(D828,'Species List'!$I$71:$J$82,2,FALSE)*J828,\"\")","v":""},0,null,null,null,null,null,null,{"$f":"IFERROR(INDEX('3 - Land Summary'!$B$21:$B$120,(MATCH(AD828,'3 - Land Summary'!$C$21:$C$120,0))),\"\")","v":""}]
[null,{"$f":"IFERROR(INDEX('3 - Land Summary'!$B$21:$B$120,(MATCH('4 - Species Breakdown'!$V829,'3 - Land Summary'!$C$21:$C$120,0))),\"\")","v":""},null,null,{"$f":"IF(OR(COUNTIF('Look Up Data'!$D$149:$D$203,D829),COUNTIF('Look Up Data'!$D$149:$D$203,AE829)),\"YES\",\"NO\")","v":"NO"},null,null,{"$f":"IFERROR(INDEX('3 - Land Summary'!$G$21:$G$120,(MATCH(C829,'3 - Land Summary'!$C$21:$C$120,0))),\"\")","v":""},{"$f":"IFERROR(INDEX('3 - Land Summary'!$I$21:$I$120,(MATCH(C829,'3 - Land Summary'!$C$21:$C$120,0))),\"\")","v":""},"","",null,null,null,{"$f":"IFERROR(VLOOKUP(D829,'Species List'!$D$10:$E$46,2,FALSE)*J829,\"\")","v":""},{"$f":"IFERROR(VLOOKUP(D829,'Species List'!$D$51:$E$89,2,FALSE)*J829,\"\")","v":""},{"$f":"IFERROR(VLOOKUP(D829,'Species List'!$D$95:$E$102,2,FALSE)*J829,\"\")","v":""},{"$f":"IFERROR(VLOOKUP(D829,'Species List'!$I$10:$J$11,2,FALSE)*J829,\"\")","v":""},{"$f":"IFERROR(VLOOKUP(D829,'Species List'!$I$16:$J$61,2,FALSE)*J829,\"\")","v":""},{"$f":"IFERROR(VLOOKUP(D829,'Species List'!$I$66:$J$66,2,FALSE)*J829,\"\")","v":""},{"$f":"IFERROR(VLOOKUP(D829,'Species List'!$I$71:$J$82,2,FALSE)*J829,\"\")","v":""},0,null,null,null,null,null,null,{"$f":"IFERROR(INDEX('3 - Land Summary'!$B$21:$B$120,(MATCH(AD829,'3 - Land Summary'!$C$21:$C$120,0))),\"\")","v":""}]
[null,{"$f":"IFERROR(INDEX('3 - Land Summary'!$B$21:$B$120,(MATCH('4 - Species Breakdown'!$V830,'3 - Land Summary'!$C$21:$C$120,0))),\"\")","v":""},null,null,{"$f":"IF(OR(COUNTIF('Look Up Data'!$D$149:$D$203,D830),COUNTIF('Look Up Data'!$D$149:$D$203,AE830)),\"YES\",\"NO\")","v":"NO"},null,null,{"$f":"IFERROR(INDEX('3 - Land Summary'!$G$21:$G$120,(MATCH(C830,'3 - Land Summary'!$C$21:$C$120,0))),\"\")","v":""},{"$f":"IFERROR(INDEX('3 - Land Summary'!$I$21:$I$120,(MATCH(C830,'3 - Land Summary'!$C$21:$C$120,0))),\"\")","v":""},"","",null,null,null,{"$f":"IFERROR(VLOOKUP(D830,'Species List'!$D$10:$E$46,2,FALSE)*J830,\"\")","v":""},{"$f":"IFERROR(VLOOKUP(D830,'Species List'!$D$51:$E$89,2,FALSE)*J830,\"\")","v":""},{"$f":"IFERROR(VLOOKUP(D830,'Species List'!$D$95:$E$102,2,FALSE)*J830,\"\")","v":""},{"$f":"IFERROR(VLOOKUP(D830,'Species List'!$I$10:$J$11,2,FALSE)*J830,\"\")","v":""},{"$f":"IFERROR(VLOOKUP(D830,'Species List'!$I$16:$J$61,2,FALSE)*J830,\"\")","v":""},{"$f":"IFERROR(VLOOKUP(D830,'Species List'!$I$66:$J$66,2,FALSE)*J830,\"\")","v":""},{"$f":"IFERROR(VLOOKUP(D830,'Species List'!$I$71:$J$82,2,FALSE)*J830,\"\")","v":""},0,null,null,null,null,null,null,{"$f":"IFERROR(INDEX('3 - Land Summary'!$B$21:$B$120,(MATCH(AD830,'3 - Land Summary'!$C$21:$C$120,0))),\"\")","v":""}]
[null,{"$f":"IFERROR(INDEX('3 - Land Summary'!$B$21:$B$120,(MATCH('4 - Species Breakdown'!$V831,'3 - Land Summary'!$C$21:$C$120,0))),\"\")","v":""},null,null,{"$f":"IF(OR(COUNTIF('Look Up Data'!$D$149:$D$203,D831),COUNTIF('Look Up Data'!$D$149:$D$203,AE831)),\"YES\",\"NO\")","v":"NO"},null,null,{"$f":"IFERROR(INDEX('3 - Land Summary'!$G$21:$G$120,(MATCH(C831,'3 - Land Summary'!$C$21:$C$120,0))),\"\")","v":""},{"$f":"IFERROR(INDEX('3 - Land Summary'!$I$21:$I$120,(MATCH(C831,'3 - Land Summary'!$C$21:$C$120,0))),\"\")","v":""},"","",null,null,null,{"$f":"IFERROR(VLOOKUP(D831,'Species List'!$D$10:$E$46,2,FALSE)*J831,\"\")","v":""},{"$f":"IFERROR(VLOOKUP(D831,'Species List'!$D$51:$E$89,2,FALSE)*J831,\"\")","v":""},{"$f":"IFERROR(VLOOKUP(D831,'Species List'!$D$95:$E$102,2,FALSE)*J831,\"\")","v":""},{"$f":"IFERROR(VLOOKUP(D831,'Species List'!$I$10:$J$11,2,FALSE)*J831,\"\")","v":""},{"$f":"IFERROR(VLOOKUP(D831,'Species List'!$I$16:$J$61,2,FALSE)*J831,\"\")","v":""},{"$f":"IFERROR(VLOOKUP(D831,'Species List'!$I$66:$J$66,2,FALSE)*J831,\"\")","v":""},{"$f":"IFERROR(VLOOKUP(D831,'Species List'!$I$71:$J$82,2,FALSE)*J831,\"\")","v":""},0,null,null,null,null,null,null,{"$f":"IFERROR(INDEX('3 - Land Summary'!$B$21:$B$120,(MATCH(AD831,'3 - Land Summary'!$C$21:$C$120,0))),\"\")","v":""}]
[null,{"$f":"IFERROR(INDEX('3 - Land Summary'!$B$21:$B$120,(MATCH('4 - Species Breakdown'!$V832,'3 - Land Summary'!$C$21:$C$120,0))),\"\")","v":""},null,null,{"$f":"IF(OR(COUNTIF('Look Up Data'!$D$149:$D$203,D832),COUNTIF('Look Up Data'!$D$149:$D$203,AE832)),\"YES\",\"NO\")","v":"NO"},null,null,{"$f":"IFERROR(INDEX('3 - Land Summary'!$G$21:$G$120,(MATCH(C832,'3 - Land Summary'!$C$21:$C$120,0))),\"\")","v":""},{"$f":"IFERROR(INDEX('3 - Land Summary'!$I$21:$I$120,(MATCH(C832,'3 - Land Summary'!$C$21:$C$120,0))),\"\")","v":""},"","",null,null,null,{"$f":"IFERROR(VLOOKUP(D832,'Species List'!$D$10:$E$46,2,FALSE)*J832,\"\")","v":""},{"$f":"IFERROR(VLOOKUP(D832,'Species List'!$D$51:$E$89,2,FALSE)*J832,\"\")","v":""},{"$f":"IFERROR(VLOOKUP(D832,'Species List'!$D$95:$E$102,2,FALSE)*J832,\"\")","v":""},{"$f":"IFERROR(VLOOKUP(D832,'Species List'!$I$10:$J$11,2,FALSE)*J832,\"\")","v":""},{"$f":"IFERROR(VLOOKUP(D832,'Species List'!$I$16:$J$61,2,FALSE)*J832,\"\")","v":""},{"$f":"IFERROR(VLOOKUP(D832,'Species List'!$I$66:$J$66,2,FALSE)*J832,\"\")","v":""},{"$f":"IFERROR(VLOOKUP(D832,'Species List'!$I$71:$J$82,2,FALSE)*J832,\"\")","v":""},0,null,null,null,null,null,null,{"$f":"IFERROR(INDEX('3 - Land Summary'!$B$21:$B$120,(MATCH(AD832,'3 - Land Summary'!$C$21:$C$120,0))),\"\")","v":""}]
[null,{"$f":"IFERROR(INDEX('3 - Land Summary'!$B$21:$B$120,(MATCH('4 - Species Breakdown'!$V833,'3 - Land Summary'!$C$21:$C$120,0))),\"\")","v":""},null,null,{"$f":"IF(OR(COUNTIF('Look Up Data'!$D$149:$D$203,D833),COUNTIF('Look Up Data'!$D$149:$D$203,AE833)),\"YES\",\"NO\")","v":"NO"},null,null,{"$f":"IFERROR(INDEX('3 - Land Summary'!$G$21:$G$120,(MATCH(C833,'3 - Land Summary'!$C$21:$C$120,0))),\"\")","v":""},{"$f":"IFERROR(INDEX('3 - Land Summary'!$I$21:$I$120,(MATCH(C833,'3 - Land Summary'!$C$21:$C$120,0))),\"\")","v":""},"","",null,null,null,{"$f":"IFERROR(VLOOKUP(D833,'Species List'!$D$10:$E$46,2,FALSE)*J833,\"\")","v":""},{"$f":"IFERROR(VLOOKUP(D833,'Species List'!$D$51:$E$89,2,FALSE)*J833,\"\")","v":""},{"$f":"IFERROR(VLOOKUP(D833,'Species List'!$D$95:$E$102,2,FALSE)*J833,\"\")","v":""},{"$f":"IFERROR(VLOOKUP(D833,'Species List'!$I$10:$J$11,2,FALSE)*J833,\"\")","v":""},{"$f":"IFERROR(VLOOKUP(D833,'Species List'!$I$16:$J$61,2,FALSE)*J833,\"\")","v":""},{"$f":"IFERROR(VLOOKUP(D833,'Species List'!$I$66:$J$66,2,FALSE)*J833,\"\")","v":""},{"$f":"IFERROR(VLOOKUP(D833,'Species List'!$I$71:$J$82,2,FALSE)*J833,\"\")","v":""},0,null,null,null,null,null,null,{"$f":"IFERROR(INDEX('3 - Land Summary'!$B$21:$B$120,(MATCH(AD833,'3 - Land Summary'!$C$21:$C$120,0))),\"\")","v":""}]
[null,{"$f":"IFERROR(INDEX('3 - Land Summary'!$B$21:$B$120,(MATCH('4 - Species Breakdown'!$V834,'3 - Land Summary'!$C$21:$C$120,0))),\"\")","v":""},null,null,{"$f":"IF(OR(COUNTIF('Look Up Data'!$D$149:$D$203,D834),COUNTIF('Look Up Data'!$D$149:$D$203,AE834)),\"YES\",\"NO\")","v":"NO"},null,null,{"$f":"IFERROR(INDEX('3 - Land Summary'!$G$21:$G$120,(MATCH(C834,'3 - Land Summary'!$C$21:$C$120,0))),\"\")","v":""},{"$f":"IFERROR(INDEX('3 - Land Summary'!$I$21:$I$120,(MATCH(C834,'3 - Land Summary'!$C$21:$C$120,0))),\"\")","v":""},"","",null,null,null,{"$f":"IFERROR(VLOOKUP(D834,'Species List'!$D$10:$E$46,2,FALSE)*J834,\"\")","v":""},{"$f":"IFERROR(VLOOKUP(D834,'Species List'!$D$51:$E$89,2,FALSE)*J834,\"\")","v":""},{"$f":"IFERROR(VLOOKUP(D834,'Species List'!$D$95:$E$102,2,FALSE)*J834,\"\")","v":""},{"$f":"IFERROR(VLOOKUP(D834,'Species List'!$I$10:$J$11,2,FALSE)*J834,\"\")","v":""},{"$f":"IFERROR(VLOOKUP(D834,'Species List'!$I$16:$J$61,2,FALSE)*J834,\"\")","v":""},{"$f":"IFERROR(VLOOKUP(D834,'Species List'!$I$66:$J$66,2,FALSE)*J834,\"\")","v":""},{"$f":"IFERROR(VLOOKUP(D834,'Species List'!$I$71:$J$82,2,FALSE)*J834,\"\")","v":""},0,null,null,null,null,null,null,{"$f":"IFERROR(INDEX('3 - Land Summary'!$B$21:$B$120,(MATCH(AD834,'3 - Land Summary'!$C$21:$C$120,0))),\"\")","v":""}]
[null,{"$f":"IFERROR(INDEX('3 - Land Summary'!$B$21:$B$120,(MATCH('4 - Species Breakdown'!$V835,'3 - Land Summary'!$C$21:$C$120,0))),\"\")","v":""},null,null,{"$f":"IF(OR(COUNTIF('Look Up Data'!$D$149:$D$203,D835),COUNTIF('Look Up Data'!$D$149:$D$203,AE835)),\"YES\",\"NO\")","v":"NO"},null,null,{"$f":"IFERROR(INDEX('3 - Land Summary'!$G$21:$G$120,(MATCH(C835,'3 - Land Summary'!$C$21:$C$120,0))),\"\")","v":""},{"$f":"IFERROR(INDEX('3 - Land Summary'!$I$21:$I$120,(MATCH(C835,'3 - Land Summary'!$C$21:$C$120,0))),\"\")","v":""},"","",null,null,null,{"$f":"IFERROR(VLOOKUP(D835,'Species List'!$D$10:$E$46,2,FALSE)*J835,\"\")","v":""},{"$f":"IFERROR(VLOOKUP(D835,'Species List'!$D$51:$E$89,2,FALSE)*J835,\"\")","v":""},{"$f":"IFERROR(VLOOKUP(D835,'Species List'!$D$95:$E$102,2,FALSE)*J835,\"\")","v":""},{"$f":"IFERROR(VLOOKUP(D835,'Species List'!$I$10:$J$11,2,FALSE)*J835,\"\")","v":""},{"$f":"IFERROR(VLOOKUP(D835,'Species List'!$I$16:$J$61,2,FALSE)*J835,\"\")","v":""},{"$f":"IFERROR(VLOOKUP(D835,'Species List'!$I$66:$J$66,2,FALSE)*J835,\"\")","v":""},{"$f":"IFERROR(VLOOKUP(D835,'Species List'!$I$71:$J$82,2,FALSE)*J835,\"\")","v":""},0,null,null,null,null,null,null,{"$f":"IFERROR(INDEX('3 - Land Summary'!$B$21:$B$120,(MATCH(AD835,'3 - Land Summary'!$C$21:$C$120,0))),\"\")","v":""}]
[null,{"$f":"IFERROR(INDEX('3 - Land Summary'!$B$21:$B$120,(MATCH('4 - Species Breakdown'!$V836,'3 - Land Summary'!$C$21:$C$120,0))),\"\")","v":""},null,null,{"$f":"IF(OR(COUNTIF('Look Up Data'!$D$149:$D$203,D836),COUNTIF('Look Up Data'!$D$149:$D$203,AE836)),\"YES\",\"NO\")","v":"NO"},null,null,{"$f":"IFERROR(INDEX('3 - Land Summary'!$G$21:$G$120,(MATCH(C836,'3 - Land Summary'!$C$21:$C$120,0))),\"\")","v":""},{"$f":"IFERROR(INDEX('3 - Land Summary'!$I$21:$I$120,(MATCH(C836,'3 - Land Summary'!$C$21:$C$120,0))),\"\")","v":""},"","",null,null,null,{"$f":"IFERROR(VLOOKUP(D836,'Species List'!$D$10:$E$46,2,FALSE)*J836,\"\")","v":""},{"$f":"IFERROR(VLOOKUP(D836,'Species List'!$D$51:$E$89,2,FALSE)*J836,\"\")","v":""},{"$f":"IFERROR(VLOOKUP(D836,'Species List'!$D$95:$E$102,2,FALSE)*J836,\"\")","v":""},{"$f":"IFERROR(VLOOKUP(D836,'Species List'!$I$10:$J$11,2,FALSE)*J836,\"\")","v":""},{"$f":"IFERROR(VLOOKUP(D836,'Species List'!$I$16:$J$61,2,FALSE)*J836,\"\")","v":""},{"$f":"IFERROR(VLOOKUP(D836,'Species List'!$I$66:$J$66,2,FALSE)*J836,\"\")","v":""},{"$f":"IFERROR(VLOOKUP(D836,'Species List'!$I$71:$J$82,2,FALSE)*J836,\"\")","v":""},0,null,null,null,null,null,null,{"$f":"IFERROR(INDEX('3 - Land Summary'!$B$21:$B$120,(MATCH(AD836,'3 - Land Summary'!$C$21:$C$120,0))),\"\")","v":""}]
[null,{"$f":"IFERROR(INDEX('3 - Land Summary'!$B$21:$B$120,(MATCH('4 - Species Breakdown'!$V837,'3 - Land Summary'!$C$21:$C$120,0))),\"\")","v":""},null,null,{"$f":"IF(OR(COUNTIF('Look Up Data'!$D$149:$D$203,D837),COUNTIF('Look Up Data'!$D$149:$D$203,AE837)),\"YES\",\"NO\")","v":"NO"},null,null,{"$f":"IFERROR(INDEX('3 - Land Summary'!$G$21:$G$120,(MATCH(C837,'3 - Land Summary'!$C$21:$C$120,0))),\"\")","v":""},{"$f":"IFERROR(INDEX('3 - Land Summary'!$I$21:$I$120,(MATCH(C837,'3 - Land Summary'!$C$21:$C$120,0))),\"\")","v":""},"","",null,null,null,{"$f":"IFERROR(VLOOKUP(D837,'Species List'!$D$10:$E$46,2,FALSE)*J837,\"\")","v":""},{"$f":"IFERROR(VLOOKUP(D837,'Species List'!$D$51:$E$89,2,FALSE)*J837,\"\")","v":""},{"$f":"IFERROR(VLOOKUP(D837,'Species List'!$D$95:$E$102,2,FALSE)*J837,\"\")","v":""},{"$f":"IFERROR(VLOOKUP(D837,'Species List'!$I$10:$J$11,2,FALSE)*J837,\"\")","v":""},{"$f":"IFERROR(VLOOKUP(D837,'Species List'!$I$16:$J$61,2,FALSE)*J837,\"\")","v":""},{"$f":"IFERROR(VLOOKUP(D837,'Species List'!$I$66:$J$66,2,FALSE)*J837,\"\")","v":""},{"$f":"IFERROR(VLOOKUP(D837,'Species List'!$I$71:$J$82,2,FALSE)*J837,\"\")","v":""},0,null,null,null,null,null,null,{"$f":"IFERROR(INDEX('3 - Land Summary'!$B$21:$B$120,(MATCH(AD837,'3 - Land Summary'!$C$21:$C$120,0))),\"\")","v":""}]
[null,{"$f":"IFERROR(INDEX('3 - Land Summary'!$B$21:$B$120,(MATCH('4 - Species Breakdown'!$V838,'3 - Land Summary'!$C$21:$C$120,0))),\"\")","v":""},null,null,{"$f":"IF(OR(COUNTIF('Look Up Data'!$D$149:$D$203,D838),COUNTIF('Look Up Data'!$D$149:$D$203,AE838)),\"YES\",\"NO\")","v":"NO"},null,null,{"$f":"IFERROR(INDEX('3 - Land Summary'!$G$21:$G$120,(MATCH(C838,'3 - Land Summary'!$C$21:$C$120,0))),\"\")","v":""},{"$f":"IFERROR(INDEX('3 - Land Summary'!$I$21:$I$120,(MATCH(C838,'3 - Land Summary'!$C$21:$C$120,0))),\"\")","v":""},"","",null,null,null,{"$f":"IFERROR(VLOOKUP(D838,'Species List'!$D$10:$E$46,2,FALSE)*J838,\"\")","v":""},{"$f":"IFERROR(VLOOKUP(D838,'Species List'!$D$51:$E$89,2,FALSE)*J838,\"\")","v":""},{"$f":"IFERROR(VLOOKUP(D838,'Species List'!$D$95:$E$102,2,FALSE)*J838,\"\")","v":""},{"$f":"IFERROR(VLOOKUP(D838,'Species List'!$I$10:$J$11,2,FALSE)*J838,\"\")","v":""},{"$f":"IFERROR(VLOOKUP(D838,'Species List'!$I$16:$J$61,2,FALSE)*J838,\"\")","v":""},{"$f":"IFERROR(VLOOKUP(D838,'Species List'!$I$66:$J$66,2,FALSE)*J838,\"\")","v":""},{"$f":"IFERROR(VLOOKUP(D838,'Species List'!$I$71:$J$82,2,FALSE)*J838,\"\")","v":""},0,null,null,null,null,null,null,{"$f":"IFERROR(INDEX('3 - Land Summary'!$B$21:$B$120,(MATCH(AD838,'3 - Land Summary'!$C$21:$C$120,0))),\"\")","v":""}]
[null,{"$f":"IFERROR(INDEX('3 - Land Summary'!$B$21:$B$120,(MATCH('4 - Species Breakdown'!$V839,'3 - Land Summary'!$C$21:$C$120,0))),\"\")","v":""},null,null,{"$f":"IF(OR(COUNTIF('Look Up Data'!$D$149:$D$203,D839),COUNTIF('Look Up Data'!$D$149:$D$203,AE839)),\"YES\",\"NO\")","v":"NO"},null,null,{"$f":"IFERROR(INDEX('3 - Land Summary'!$G$21:$G$120,(MATCH(C839,'3 - Land Summary'!$C$21:$C$120,0))),\"\")","v":""},{"$f":"IFERROR(INDEX('3 - Land Summary'!$I$21:$I$120,(MATCH(C839,'3 - Land Summary'!$C$21:$C$120,0))),\"\")","v":""},"","",null,null,null,{"$f":"IFERROR(VLOOKUP(D839,'Species List'!$D$10:$E$46,2,FALSE)*J839,\"\")","v":""},{"$f":"IFERROR(VLOOKUP(D839,'Species List'!$D$51:$E$89,2,FALSE)*J839,\"\")","v":""},{"$f":"IFERROR(VLOOKUP(D839,'Species List'!$D$95:$E$102,2,FALSE)*J839,\"\")","v":""},{"$f":"IFERROR(VLOOKUP(D839,'Species List'!$I$10:$J$11,2,FALSE)*J839,\"\")","v":""},{"$f":"IFERROR(VLOOKUP(D839,'Species List'!$I$16:$J$61,2,FALSE)*J839,\"\")","v":""},{"$f":"IFERROR(VLOOKUP(D839,'Species List'!$I$66:$J$66,2,FALSE)*J839,\"\")","v":""},{"$f":"IFERROR(VLOOKUP(D839,'Species List'!$I$71:$J$82,2,FALSE)*J839,\"\")","v":""},0,null,null,null,null,null,null,{"$f":"IFERROR(INDEX('3 - Land Summary'!$B$21:$B$120,(MATCH(AD839,'3 - Land Summary'!$C$21:$C$120,0))),\"\")","v":""}]
[null,{"$f":"IFERROR(INDEX('3 - Land Summary'!$B$21:$B$120,(MATCH('4 - Species Breakdown'!$V840,'3 - Land Summary'!$C$21:$C$120,0))),\"\")","v":""},null,null,{"$f":"IF(OR(COUNTIF('Look Up Data'!$D$149:$D$203,D840),COUNTIF('Look Up Data'!$D$149:$D$203,AE840)),\"YES\",\"NO\")","v":"NO"},null,null,{"$f":"IFERROR(INDEX('3 - Land Summary'!$G$21:$G$120,(MATCH(C840,'3 - Land Summary'!$C$21:$C$120,0))),\"\")","v":""},{"$f":"IFERROR(INDEX('3 - Land Summary'!$I$21:$I$120,(MATCH(C840,'3 - Land Summary'!$C$21:$C$120,0))),\"\")","v":""},"","",null,null,null,{"$f":"IFERROR(VLOOKUP(D840,'Species List'!$D$10:$E$46,2,FALSE)*J840,\"\")","v":""},{"$f":"IFERROR(VLOOKUP(D840,'Species List'!$D$51:$E$89,2,FALSE)*J840,\"\")","v":""},{"$f":"IFERROR(VLOOKUP(D840,'Species List'!$D$95:$E$102,2,FALSE)*J840,\"\")","v":""},{"$f":"IFERROR(VLOOKUP(D840,'Species List'!$I$10:$J$11,2,FALSE)*J840,\"\")","v":""},{"$f":"IFERROR(VLOOKUP(D840,'Species List'!$I$16:$J$61,2,FALSE)*J840,\"\")","v":""},{"$f":"IFERROR(VLOOKUP(D840,'Species List'!$I$66:$J$66,2,FALSE)*J840,\"\")","v":""},{"$f":"IFERROR(VLOOKUP(D840,'Species List'!$I$71:$J$82,2,FALSE)*J840,\"\")","v":""},0,null,null,null,null,null,null,{"$f":"IFERROR(INDEX('3 - Land Summary'!$B$21:$B$120,(MATCH(AD840,'3 - Land Summary'!$C$21:$C$120,0))),\"\")","v":""}]
[null,{"$f":"IFERROR(INDEX('3 - Land Summary'!$B$21:$B$120,(MATCH('4 - Species Breakdown'!$V841,'3 - Land Summary'!$C$21:$C$120,0))),\"\")","v":""},null,null,{"$f":"IF(OR(COUNTIF('Look Up Data'!$D$149:$D$203,D841),COUNTIF('Look Up Data'!$D$149:$D$203,AE841)),\"YES\",\"NO\")","v":"NO"},null,null,{"$f":"IFERROR(INDEX('3 - Land Summary'!$G$21:$G$120,(MATCH(C841,'3 - Land Summary'!$C$21:$C$120,0))),\"\")","v":""},{"$f":"IFERROR(INDEX('3 - Land Summary'!$I$21:$I$120,(MATCH(C841,'3 - Land Summary'!$C$21:$C$120,0))),\"\")","v":""},"","",null,null,null,{"$f":"IFERROR(VLOOKUP(D841,'Species List'!$D$10:$E$46,2,FALSE)*J841,\"\")","v":""},{"$f":"IFERROR(VLOOKUP(D841,'Species List'!$D$51:$E$89,2,FALSE)*J841,\"\")","v":""},{"$f":"IFERROR(VLOOKUP(D841,'Species List'!$D$95:$E$102,2,FALSE)*J841,\"\")","v":""},{"$f":"IFERROR(VLOOKUP(D841,'Species List'!$I$10:$J$11,2,FALSE)*J841,\"\")","v":""},{"$f":"IFERROR(VLOOKUP(D841,'Species List'!$I$16:$J$61,2,FALSE)*J841,\"\")","v":""},{"$f":"IFERROR(VLOOKUP(D841,'Species List'!$I$66:$J$66,2,FALSE)*J841,\"\")","v":""},{"$f":"IFERROR(VLOOKUP(D841,'Species List'!$I$71:$J$82,2,FALSE)*J841,\"\")","v":""},0,null,null,null,null,null,null,{"$f":"IFERROR(INDEX('3 - Land Summary'!$B$21:$B$120,(MATCH(AD841,'3 - Land Summary'!$C$21:$C$120,0))),\"\")","v":""}]
[null,{"$f":"IFERROR(INDEX('3 - Land Summary'!$B$21:$B$120,(MATCH('4 - Species Breakdown'!$V842,'3 - Land Summary'!$C$21:$C$120,0))),\"\")","v":""},null,null,{"$f":"IF(OR(COUNTIF('Look Up Data'!$D$149:$D$203,D842),COUNTIF('Look Up Data'!$D$149:$D$203,AE842)),\"YES\",\"NO\")","v":"NO"},null,null,{"$f":"IFERROR(INDEX('3 - Land Summary'!$G$21:$G$120,(MATCH(C842,'3 - Land Summary'!$C$21:$C$120,0))),\"\")","v":""},{"$f":"IFERROR(INDEX('3 - Land Summary'!$I$21:$I$120,(MATCH(C842,'3 - Land Summary'!$C$21:$C$120,0))),\"\")","v":""},"","",null,null,null,{"$f":"IFERROR(VLOOKUP(D842,'Species List'!$D$10:$E$46,2,FALSE)*J842,\"\")","v":""},{"$f":"IFERROR(VLOOKUP(D842,'Species List'!$D$51:$E$89,2,FALSE)*J842,\"\")","v":""},{"$f":"IFERROR(VLOOKUP(D842,'Species List'!$D$95:$E$102,2,FALSE)*J842,\"\")","v":""},{"$f":"IFERROR(VLOOKUP(D842,'Species List'!$I$10:$J$11,2,FALSE)*J842,\"\")","v":""},{"$f":"IFERROR(VLOOKUP(D842,'Species List'!$I$16:$J$61,2,FALSE)*J842,\"\")","v":""},{"$f":"IFERROR(VLOOKUP(D842,'Species List'!$I$66:$J$66,2,FALSE)*J842,\"\")","v":""},{"$f":"IFERROR(VLOOKUP(D842,'Species List'!$I$71:$J$82,2,FALSE)*J842,\"\")","v":""},0,null,null,null,null,null,null,{"$f":"IFERROR(INDEX('3 - Land Summary'!$B$21:$B$120,(MATCH(AD842,'3 - Land Summary'!$C$21:$C$120,0))),\"\")","v":""}]
[null,{"$f":"IFERROR(INDEX('3 - Land Summary'!$B$21:$B$120,(MATCH('4 - Species Breakdown'!$V843,'3 - Land Summary'!$C$21:$C$120,0))),\"\")","v":""},null,null,{"$f":"IF(OR(COUNTIF('Look Up Data'!$D$149:$D$203,D843),COUNTIF('Look Up Data'!$D$149:$D$203,AE843)),\"YES\",\"NO\")","v":"NO"},null,null,{"$f":"IFERROR(INDEX('3 - Land Summary'!$G$21:$G$120,(MATCH(C843,'3 - Land Summary'!$C$21:$C$120,0))),\"\")","v":""},{"$f":"IFERROR(INDEX('3 - Land Summary'!$I$21:$I$120,(MATCH(C843,'3 - Land Summary'!$C$21:$C$120,0))),\"\")","v":""},"","",null,null,null,{"$f":"IFERROR(VLOOKUP(D843,'Species List'!$D$10:$E$46,2,FALSE)*J843,\"\")","v":""},{"$f":"IFERROR(VLOOKUP(D843,'Species List'!$D$51:$E$89,2,FALSE)*J843,\"\")","v":""},{"$f":"IFERROR(VLOOKUP(D843,'Species List'!$D$95:$E$102,2,FALSE)*J843,\"\")","v":""},{"$f":"IFERROR(VLOOKUP(D843,'Species List'!$I$10:$J$11,2,FALSE)*J843,\"\")","v":""},{"$f":"IFERROR(VLOOKUP(D843,'Species List'!$I$16:$J$61,2,FALSE)*J843,\"\")","v":""},{"$f":"IFERROR(VLOOKUP(D843,'Species List'!$I$66:$J$66,2,FALSE)*J843,\"\")","v":""},{"$f":"IFERROR(VLOOKUP(D843,'Species List'!$I$71:$J$82,2,FALSE)*J843,\"\")","v":""},0,null,null,null,null,null,null,{"$f":"IFERROR(INDEX('3 - Land Summary'!$B$21:$B$120,(MATCH(AD843,'3 - Land Summary'!$C$21:$C$120,0))),\"\")","v":""}]
[null,{"$f":"IFERROR(INDEX('3 - Land Summary'!$B$21:$B$120,(MATCH('4 - Species Breakdown'!$V844,'3 - Land Summary'!$C$21:$C$120,0))),\"\")","v":""},null,null,{"$f":"IF(OR(COUNTIF('Look Up Data'!$D$149:$D$203,D844),COUNTIF('Look Up Data'!$D$149:$D$203,AE844)),\"YES\",\"NO\")","v":"NO"},null,null,{"$f":"IFERROR(INDEX('3 - Land Summary'!$G$21:$G$120,(MATCH(C844,'3 - Land Summary'!$C$21:$C$120,0))),\"\")","v":""},{"$f":"IFERROR(INDEX('3 - Land Summary'!$I$21:$I$120,(MATCH(C844,'3 - Land Summary'!$C$21:$C$120,0))),\"\")","v":""},"","",null,null,null,{"$f":"IFERROR(VLOOKUP(D844,'Species List'!$D$10:$E$46,2,FALSE)*J844,\"\")","v":""},{"$f":"IFERROR(VLOOKUP(D844,'Species List'!$D$51:$E$89,2,FALSE)*J844,\"\")","v":""},{"$f":"IFERROR(VLOOKUP(D844,'Species List'!$D$95:$E$102,2,FALSE)*J844,\"\")","v":""},{"$f":"IFERROR(VLOOKUP(D844,'Species List'!$I$10:$J$11,2,FALSE)*J844,\"\")","v":""},{"$f":"IFERROR(VLOOKUP(D844,'Species List'!$I$16:$J$61,2,FALSE)*J844,\"\")","v":""},{"$f":"IFERROR(VLOOKUP(D844,'Species List'!$I$66:$J$66,2,FALSE)*J844,\"\")","v":""},{"$f":"IFERROR(VLOOKUP(D844,'Species List'!$I$71:$J$82,2,FALSE)*J844,\"\")","v":""},0,null,null,null,null,null,null,{"$f":"IFERROR(INDEX('3 - Land Summary'!$B$21:$B$120,(MATCH(AD844,'3 - Land Summary'!$C$21:$C$120,0))),\"\")","v":""}]
[null,{"$f":"IFERROR(INDEX('3 - Land Summary'!$B$21:$B$120,(MATCH('4 - Species Breakdown'!$V845,'3 - Land Summary'!$C$21:$C$120,0))),\"\")","v":""},null,null,{"$f":"IF(OR(COUNTIF('Look Up Data'!$D$149:$D$203,D845),COUNTIF('Look Up Data'!$D$149:$D$203,AE845)),\"YES\",\"NO\")","v":"NO"},null,null,{"$f":"IFERROR(INDEX('3 - Land Summary'!$G$21:$G$120,(MATCH(C845,'3 - Land Summary'!$C$21:$C$120,0))),\"\")","v":""},{"$f":"IFERROR(INDEX('3 - Land Summary'!$I$21:$I$120,(MATCH(C845,'3 - Land Summary'!$C$21:$C$120,0))),\"\")","v":""},"","",null,null,null,{"$f":"IFERROR(VLOOKUP(D845,'Species List'!$D$10:$E$46,2,FALSE)*J845,\"\")","v":""},{"$f":"IFERROR(VLOOKUP(D845,'Species List'!$D$51:$E$89,2,FALSE)*J845,\"\")","v":""},{"$f":"IFERROR(VLOOKUP(D845,'Species List'!$D$95:$E$102,2,FALSE)*J845,\"\")","v":""},{"$f":"IFERROR(VLOOKUP(D845,'Species List'!$I$10:$J$11,2,FALSE)*J845,\"\")","v":""},{"$f":"IFERROR(VLOOKUP(D845,'Species List'!$I$16:$J$61,2,FALSE)*J845,\"\")","v":""},{"$f":"IFERROR(VLOOKUP(D845,'Species List'!$I$66:$J$66,2,FALSE)*J845,\"\")","v":""},{"$f":"IFERROR(VLOOKUP(D845,'Species List'!$I$71:$J$82,2,FALSE)*J845,\"\")","v":""},0,null,null,null,null,null,null,{"$f":"IFERROR(INDEX('3 - Land Summary'!$B$21:$B$120,(MATCH(AD845,'3 - Land Summary'!$C$21:$C$120,0))),\"\")","v":""}]
[null,{"$f":"IFERROR(INDEX('3 - Land Summary'!$B$21:$B$120,(MATCH('4 - Species Breakdown'!$V846,'3 - Land Summary'!$C$21:$C$120,0))),\"\")","v":""},null,null,{"$f":"IF(OR(COUNTIF('Look Up Data'!$D$149:$D$203,D846),COUNTIF('Look Up Data'!$D$149:$D$203,AE846)),\"YES\",\"NO\")","v":"NO"},null,null,{"$f":"IFERROR(INDEX('3 - Land Summary'!$G$21:$G$120,(MATCH(C846,'3 - Land Summary'!$C$21:$C$120,0))),\"\")","v":""},{"$f":"IFERROR(INDEX('3 - Land Summary'!$I$21:$I$120,(MATCH(C846,'3 - Land Summary'!$C$21:$C$120,0))),\"\")","v":""},"","",null,null,null,{"$f":"IFERROR(VLOOKUP(D846,'Species List'!$D$10:$E$46,2,FALSE)*J846,\"\")","v":""},{"$f":"IFERROR(VLOOKUP(D846,'Species List'!$D$51:$E$89,2,FALSE)*J846,\"\")","v":""},{"$f":"IFERROR(VLOOKUP(D846,'Species List'!$D$95:$E$102,2,FALSE)*J846,\"\")","v":""},{"$f":"IFERROR(VLOOKUP(D846,'Species List'!$I$10:$J$11,2,FALSE)*J846,\"\")","v":""},{"$f":"IFERROR(VLOOKUP(D846,'Species List'!$I$16:$J$61,2,FALSE)*J846,\"\")","v":""},{"$f":"IFERROR(VLOOKUP(D846,'Species List'!$I$66:$J$66,2,FALSE)*J846,\"\")","v":""},{"$f":"IFERROR(VLOOKUP(D846,'Species List'!$I$71:$J$82,2,FALSE)*J846,\"\")","v":""},0,null,null,null,null,null,null,{"$f":"IFERROR(INDEX('3 - Land Summary'!$B$21:$B$120,(MATCH(AD846,'3 - Land Summary'!$C$21:$C$120,0))),\"\")","v":""}]
[null,{"$f":"IFERROR(INDEX('3 - Land Summary'!$B$21:$B$120,(MATCH('4 - Species Breakdown'!$V847,'3 - Land Summary'!$C$21:$C$120,0))),\"\")","v":""},null,null,{"$f":"IF(OR(COUNTIF('Look Up Data'!$D$149:$D$203,D847),COUNTIF('Look Up Data'!$D$149:$D$203,AE847)),\"YES\",\"NO\")","v":"NO"},null,null,{"$f":"IFERROR(INDEX('3 - Land Summary'!$G$21:$G$120,(MATCH(C847,'3 - Land Summary'!$C$21:$C$120,0))),\"\")","v":""},{"$f":"IFERROR(INDEX('3 - Land Summary'!$I$21:$I$120,(MATCH(C847,'3 - Land Summary'!$C$21:$C$120,0))),\"\")","v":""},"","",null,null,null,{"$f":"IFERROR(VLOOKUP(D847,'Species List'!$D$10:$E$46,2,FALSE)*J847,\"\")","v":""},{"$f":"IFERROR(VLOOKUP(D847,'Species List'!$D$51:$E$89,2,FALSE)*J847,\"\")","v":""},{"$f":"IFERROR(VLOOKUP(D847,'Species List'!$D$95:$E$102,2,FALSE)*J847,\"\")","v":""},{"$f":"IFERROR(VLOOKUP(D847,'Species List'!$I$10:$J$11,2,FALSE)*J847,\"\")","v":""},{"$f":"IFERROR(VLOOKUP(D847,'Species List'!$I$16:$J$61,2,FALSE)*J847,\"\")","v":""},{"$f":"IFERROR(VLOOKUP(D847,'Species List'!$I$66:$J$66,2,FALSE)*J847,\"\")","v":""},{"$f":"IFERROR(VLOOKUP(D847,'Species List'!$I$71:$J$82,2,FALSE)*J847,\"\")","v":""},0,null,null,null,null,null,null,{"$f":"IFERROR(INDEX('3 - Land Summary'!$B$21:$B$120,(MATCH(AD847,'3 - Land Summary'!$C$21:$C$120,0))),\"\")","v":""}]
[null,{"$f":"IFERROR(INDEX('3 - Land Summary'!$B$21:$B$120,(MATCH('4 - Species Breakdown'!$V848,'3 - Land Summary'!$C$21:$C$120,0))),\"\")","v":""},null,null,{"$f":"IF(OR(COUNTIF('Look Up Data'!$D$149:$D$203,D848),COUNTIF('Look Up Data'!$D$149:$D$203,AE848)),\"YES\",\"NO\")","v":"NO"},null,null,{"$f":"IFERROR(INDEX('3 - Land Summary'!$G$21:$G$120,(MATCH(C848,'3 - Land Summary'!$C$21:$C$120,0))),\"\")","v":""},{"$f":"IFERROR(INDEX('3 - Land Summary'!$I$21:$I$120,(MATCH(C848,'3 - Land Summary'!$C$21:$C$120,0))),\"\")","v":""},"","",null,null,null,{"$f":"IFERROR(VLOOKUP(D848,'Species List'!$D$10:$E$46,2,FALSE)*J848,\"\")","v":""},{"$f":"IFERROR(VLOOKUP(D848,'Species List'!$D$51:$E$89,2,FALSE)*J848,\"\")","v":""},{"$f":"IFERROR(VLOOKUP(D848,'Species List'!$D$95:$E$102,2,FALSE)*J848,\"\")","v":""},{"$f":"IFERROR(VLOOKUP(D848,'Species List'!$I$10:$J$11,2,FALSE)*J848,\"\")","v":""},{"$f":"IFERROR(VLOOKUP(D848,'Species List'!$I$16:$J$61,2,FALSE)*J848,\"\")","v":""},{"$f":"IFERROR(VLOOKUP(D848,'Species List'!$I$66:$J$66,2,FALSE)*J848,\"\")","v":""},{"$f":"IFERROR(VLOOKUP(D848,'Species List'!$I$71:$J$82,2,FALSE)*J848,\"\")","v":""},0,null,null,null,null,null,null,{"$f":"IFERROR(INDEX('3 - Land Summary'!$B$21:$B$120,(MATCH(AD848,'3 - Land Summary'!$C$21:$C$120,0))),\"\")","v":""}]
[null,{"$f":"IFERROR(INDEX('3 - Land Summary'!$B$21:$B$120,(MATCH('4 - Species Breakdown'!$V849,'3 - Land Summary'!$C$21:$C$120,0))),\"\")","v":""},null,null,{"$f":"IF(OR(COUNTIF('Look Up Data'!$D$149:$D$203,D849),COUNTIF('Look Up Data'!$D$149:$D$203,AE849)),\"YES\",\"NO\")","v":"NO"},null,null,{"$f":"IFERROR(INDEX('3 - Land Summary'!$G$21:$G$120,(MATCH(C849,'3 - Land Summary'!$C$21:$C$120,0))),\"\")","v":""},{"$f":"IFERROR(INDEX('3 - Land Summary'!$I$21:$I$120,(MATCH(C849,'3 - Land Summary'!$C$21:$C$120,0))),\"\")","v":""},"","",null,null,null,{"$f":"IFERROR(VLOOKUP(D849,'Species List'!$D$10:$E$46,2,FALSE)*J849,\"\")","v":""},{"$f":"IFERROR(VLOOKUP(D849,'Species List'!$D$51:$E$89,2,FALSE)*J849,\"\")","v":""},{"$f":"IFERROR(VLOOKUP(D849,'Species List'!$D$95:$E$102,2,FALSE)*J849,\"\")","v":""},{"$f":"IFERROR(VLOOKUP(D849,'Species List'!$I$10:$J$11,2,FALSE)*J849,\"\")","v":""},{"$f":"IFERROR(VLOOKUP(D849,'Species List'!$I$16:$J$61,2,FALSE)*J849,\"\")","v":""},{"$f":"IFERROR(VLOOKUP(D849,'Species List'!$I$66:$J$66,2,FALSE)*J849,\"\")","v":""},{"$f":"IFERROR(VLOOKUP(D849,'Species List'!$I$71:$J$82,2,FALSE)*J849,\"\")","v":""},0,null,null,null,null,null,null,{"$f":"IFERROR(INDEX('3 - Land Summary'!$B$21:$B$120,(MATCH(AD849,'3 - Land Summary'!$C$21:$C$120,0))),\"\")","v":""}]
[null,{"$f":"IFERROR(INDEX('3 - Land Summary'!$B$21:$B$120,(MATCH('4 - Species Breakdown'!$V850,'3 - Land Summary'!$C$21:$C$120,0))),\"\")","v":""},null,null,{"$f":"IF(OR(COUNTIF('Look Up Data'!$D$149:$D$203,D850),COUNTIF('Look Up Data'!$D$149:$D$203,AE850)),\"YES\",\"NO\")","v":"NO"},null,null,{"$f":"IFERROR(INDEX('3 - Land Summary'!$G$21:$G$120,(MATCH(C850,'3 - Land Summary'!$C$21:$C$120,0))),\"\")","v":""},{"$f":"IFERROR(INDEX('3 - Land Summary'!$I$21:$I$120,(MATCH(C850,'3 - Land Summary'!$C$21:$C$120,0))),\"\")","v":""},"","",null,null,null,{"$f":"IFERROR(VLOOKUP(D850,'Species List'!$D$10:$E$46,2,FALSE)*J850,\"\")","v":""},{"$f":"IFERROR(VLOOKUP(D850,'Species List'!$D$51:$E$89,2,FALSE)*J850,\"\")","v":""},{"$f":"IFERROR(VLOOKUP(D850,'Species List'!$D$95:$E$102,2,FALSE)*J850,\"\")","v":""},{"$f":"IFERROR(VLOOKUP(D850,'Species List'!$I$10:$J$11,2,FALSE)*J850,\"\")","v":""},{"$f":"IFERROR(VLOOKUP(D850,'Species List'!$I$16:$J$61,2,FALSE)*J850,\"\")","v":""},{"$f":"IFERROR(VLOOKUP(D850,'Species List'!$I$66:$J$66,2,FALSE)*J850,\"\")","v":""},{"$f":"IFERROR(VLOOKUP(D850,'Species List'!$I$71:$J$82,2,FALSE)*J850,\"\")","v":""},0,null,null,null,null,null,null,{"$f":"IFERROR(INDEX('3 - Land Summary'!$B$21:$B$120,(MATCH(AD850,'3 - Land Summary'!$C$21:$C$120,0))),\"\")","v":""}]
[null,{"$f":"IFERROR(INDEX('3 - Land Summary'!$B$21:$B$120,(MATCH('4 - Species Breakdown'!$V851,'3 - Land Summary'!$C$21:$C$120,0))),\"\")","v":""},null,null,{"$f":"IF(OR(COUNTIF('Look Up Data'!$D$149:$D$203,D851),COUNTIF('Look Up Data'!$D$149:$D$203,AE851)),\"YES\",\"NO\")","v":"NO"},null,null,{"$f":"IFERROR(INDEX('3 - Land Summary'!$G$21:$G$120,(MATCH(C851,'3 - Land Summary'!$C$21:$C$120,0))),\"\")","v":""},{"$f":"IFERROR(INDEX('3 - Land Summary'!$I$21:$I$120,(MATCH(C851,'3 - Land Summary'!$C$21:$C$120,0))),\"\")","v":""},"","",null,null,null,{"$f":"IFERROR(VLOOKUP(D851,'Species List'!$D$10:$E$46,2,FALSE)*J851,\"\")","v":""},{"$f":"IFERROR(VLOOKUP(D851,'Species List'!$D$51:$E$89,2,FALSE)*J851,\"\")","v":""},{"$f":"IFERROR(VLOOKUP(D851,'Species List'!$D$95:$E$102,2,FALSE)*J851,\"\")","v":""},{"$f":"IFERROR(VLOOKUP(D851,'Species List'!$I$10:$J$11,2,FALSE)*J851,\"\")","v":""},{"$f":"IFERROR(VLOOKUP(D851,'Species List'!$I$16:$J$61,2,FALSE)*J851,\"\")","v":""},{"$f":"IFERROR(VLOOKUP(D851,'Species List'!$I$66:$J$66,2,FALSE)*J851,\"\")","v":""},{"$f":"IFERROR(VLOOKUP(D851,'Species List'!$I$71:$J$82,2,FALSE)*J851,\"\")","v":""},0,null,null,null,null,null,null,{"$f":"IFERROR(INDEX('3 - Land Summary'!$B$21:$B$120,(MATCH(AD851,'3 - Land Summary'!$C$21:$C$120,0))),\"\")","v":""}]
[null,{"$f":"IFERROR(INDEX('3 - Land Summary'!$B$21:$B$120,(MATCH('4 - Species Breakdown'!$V852,'3 - Land Summary'!$C$21:$C$120,0))),\"\")","v":""},null,null,{"$f":"IF(OR(COUNTIF('Look Up Data'!$D$149:$D$203,D852),COUNTIF('Look Up Data'!$D$149:$D$203,AE852)),\"YES\",\"NO\")","v":"NO"},null,null,{"$f":"IFERROR(INDEX('3 - Land Summary'!$G$21:$G$120,(MATCH(C852,'3 - Land Summary'!$C$21:$C$120,0))),\"\")","v":""},{"$f":"IFERROR(INDEX('3 - Land Summary'!$I$21:$I$120,(MATCH(C852,'3 - Land Summary'!$C$21:$C$120,0))),\"\")","v":""},"","",null,null,null,{"$f":"IFERROR(VLOOKUP(D852,'Species List'!$D$10:$E$46,2,FALSE)*J852,\"\")","v":""},{"$f":"IFERROR(VLOOKUP(D852,'Species List'!$D$51:$E$89,2,FALSE)*J852,\"\")","v":""},{"$f":"IFERROR(VLOOKUP(D852,'Species List'!$D$95:$E$102,2,FALSE)*J852,\"\")","v":""},{"$f":"IFERROR(VLOOKUP(D852,'Species List'!$I$10:$J$11,2,FALSE)*J852,\"\")","v":""},{"$f":"IFERROR(VLOOKUP(D852,'Species List'!$I$16:$J$61,2,FALSE)*J852,\"\")","v":""},{"$f":"IFERROR(VLOOKUP(D852,'Species List'!$I$66:$J$66,2,FALSE)*J852,\"\")","v":""},{"$f":"IFERROR(VLOOKUP(D852,'Species List'!$I$71:$J$82,2,FALSE)*J852,\"\")","v":""},0,null,null,null,null,null,null,{"$f":"IFERROR(INDEX('3 - Land Summary'!$B$21:$B$120,(MATCH(AD852,'3 - Land Summary'!$C$21:$C$120,0))),\"\")","v":""}]
[null,{"$f":"IFERROR(INDEX('3 - Land Summary'!$B$21:$B$120,(MATCH('4 - Species Breakdown'!$V853,'3 - Land Summary'!$C$21:$C$120,0))),\"\")","v":""},null,null,{"$f":"IF(OR(COUNTIF('Look Up Data'!$D$149:$D$203,D853),COUNTIF('Look Up Data'!$D$149:$D$203,AE853)),\"YES\",\"NO\")","v":"NO"},null,null,{"$f":"IFERROR(INDEX('3 - Land Summary'!$G$21:$G$120,(MATCH(C853,'3 - Land Summary'!$C$21:$C$120,0))),\"\")","v":""},{"$f":"IFERROR(INDEX('3 - Land Summary'!$I$21:$I$120,(MATCH(C853,'3 - Land Summary'!$C$21:$C$120,0))),\"\")","v":""},"","",null,null,null,{"$f":"IFERROR(VLOOKUP(D853,'Species List'!$D$10:$E$46,2,FALSE)*J853,\"\")","v":""},{"$f":"IFERROR(VLOOKUP(D853,'Species List'!$D$51:$E$89,2,FALSE)*J853,\"\")","v":""},{"$f":"IFERROR(VLOOKUP(D853,'Species List'!$D$95:$E$102,2,FALSE)*J853,\"\")","v":""},{"$f":"IFERROR(VLOOKUP(D853,'Species List'!$I$10:$J$11,2,FALSE)*J853,\"\")","v":""},{"$f":"IFERROR(VLOOKUP(D853,'Species List'!$I$16:$J$61,2,FALSE)*J853,\"\")","v":""},{"$f":"IFERROR(VLOOKUP(D853,'Species List'!$I$66:$J$66,2,FALSE)*J853,\"\")","v":""},{"$f":"IFERROR(VLOOKUP(D853,'Species List'!$I$71:$J$82,2,FALSE)*J853,\"\")","v":""},0,null,null,null,null,null,null,{"$f":"IFERROR(INDEX('3 - Land Summary'!$B$21:$B$120,(MATCH(AD853,'3 - Land Summary'!$C$21:$C$120,0))),\"\")","v":""}]
[null,{"$f":"IFERROR(INDEX('3 - Land Summary'!$B$21:$B$120,(MATCH('4 - Species Breakdown'!$V854,'3 - Land Summary'!$C$21:$C$120,0))),\"\")","v":""},null,null,{"$f":"IF(OR(COUNTIF('Look Up Data'!$D$149:$D$203,D854),COUNTIF('Look Up Data'!$D$149:$D$203,AE854)),\"YES\",\"NO\")","v":"NO"},null,null,{"$f":"IFERROR(INDEX('3 - Land Summary'!$G$21:$G$120,(MATCH(C854,'3 - Land Summary'!$C$21:$C$120,0))),\"\")","v":""},{"$f":"IFERROR(INDEX('3 - Land Summary'!$I$21:$I$120,(MATCH(C854,'3 - Land Summary'!$C$21:$C$120,0))),\"\")","v":""},"","",null,null,null,{"$f":"IFERROR(VLOOKUP(D854,'Species List'!$D$10:$E$46,2,FALSE)*J854,\"\")","v":""},{"$f":"IFERROR(VLOOKUP(D854,'Species List'!$D$51:$E$89,2,FALSE)*J854,\"\")","v":""},{"$f":"IFERROR(VLOOKUP(D854,'Species List'!$D$95:$E$102,2,FALSE)*J854,\"\")","v":""},{"$f":"IFERROR(VLOOKUP(D854,'Species List'!$I$10:$J$11,2,FALSE)*J854,\"\")","v":""},{"$f":"IFERROR(VLOOKUP(D854,'Species List'!$I$16:$J$61,2,FALSE)*J854,\"\")","v":""},{"$f":"IFERROR(VLOOKUP(D854,'Species List'!$I$66:$J$66,2,FALSE)*J854,\"\")","v":""},{"$f":"IFERROR(VLOOKUP(D854,'Species List'!$I$71:$J$82,2,FALSE)*J854,\"\")","v":""},0,null,null,null,null,null,null,{"$f":"IFERROR(INDEX('3 - Land Summary'!$B$21:$B$120,(MATCH(AD854,'3 - Land Summary'!$C$21:$C$120,0))),\"\")","v":""}]
[null,{"$f":"IFERROR(INDEX('3 - Land Summary'!$B$21:$B$120,(MATCH('4 - Species Breakdown'!$V855,'3 - Land Summary'!$C$21:$C$120,0))),\"\")","v":""},null,null,{"$f":"IF(OR(COUNTIF('Look Up Data'!$D$149:$D$203,D855),COUNTIF('Look Up Data'!$D$149:$D$203,AE855)),\"YES\",\"NO\")","v":"NO"},null,null,{"$f":"IFERROR(INDEX('3 - Land Summary'!$G$21:$G$120,(MATCH(C855,'3 - Land Summary'!$C$21:$C$120,0))),\"\")","v":""},{"$f":"IFERROR(INDEX('3 - Land Summary'!$I$21:$I$120,(MATCH(C855,'3 - Land Summary'!$C$21:$C$120,0))),\"\")","v":""},"","",null,null,null,{"$f":"IFERROR(VLOOKUP(D855,'Species List'!$D$10:$E$46,2,FALSE)*J855,\"\")","v":""},{"$f":"IFERROR(VLOOKUP(D855,'Species List'!$D$51:$E$89,2,FALSE)*J855,\"\")","v":""},{"$f":"IFERROR(VLOOKUP(D855,'Species List'!$D$95:$E$102,2,FALSE)*J855,\"\")","v":""},{"$f":"IFERROR(VLOOKUP(D855,'Species List'!$I$10:$J$11,2,FALSE)*J855,\"\")","v":""},{"$f":"IFERROR(VLOOKUP(D855,'Species List'!$I$16:$J$61,2,FALSE)*J855,\"\")","v":""},{"$f":"IFERROR(VLOOKUP(D855,'Species List'!$I$66:$J$66,2,FALSE)*J855,\"\")","v":""},{"$f":"IFERROR(VLOOKUP(D855,'Species List'!$I$71:$J$82,2,FALSE)*J855,\"\")","v":""},0,null,null,null,null,null,null,{"$f":"IFERROR(INDEX('3 - Land Summary'!$B$21:$B$120,(MATCH(AD855,'3 - Land Summary'!$C$21:$C$120,0))),\"\")","v":""}]
[null,{"$f":"IFERROR(INDEX('3 - Land Summary'!$B$21:$B$120,(MATCH('4 - Species Breakdown'!$V856,'3 - Land Summary'!$C$21:$C$120,0))),\"\")","v":""},null,null,{"$f":"IF(OR(COUNTIF('Look Up Data'!$D$149:$D$203,D856),COUNTIF('Look Up Data'!$D$149:$D$203,AE856)),\"YES\",\"NO\")","v":"NO"},null,null,{"$f":"IFERROR(INDEX('3 - Land Summary'!$G$21:$G$120,(MATCH(C856,'3 - Land Summary'!$C$21:$C$120,0))),\"\")","v":""},{"$f":"IFERROR(INDEX('3 - Land Summary'!$I$21:$I$120,(MATCH(C856,'3 - Land Summary'!$C$21:$C$120,0))),\"\")","v":""},"","",null,null,null,{"$f":"IFERROR(VLOOKUP(D856,'Species List'!$D$10:$E$46,2,FALSE)*J856,\"\")","v":""},{"$f":"IFERROR(VLOOKUP(D856,'Species List'!$D$51:$E$89,2,FALSE)*J856,\"\")","v":""},{"$f":"IFERROR(VLOOKUP(D856,'Species List'!$D$95:$E$102,2,FALSE)*J856,\"\")","v":""},{"$f":"IFERROR(VLOOKUP(D856,'Species List'!$I$10:$J$11,2,FALSE)*J856,\"\")","v":""},{"$f":"IFERROR(VLOOKUP(D856,'Species List'!$I$16:$J$61,2,FALSE)*J856,\"\")","v":""},{"$f":"IFERROR(VLOOKUP(D856,'Species List'!$I$66:$J$66,2,FALSE)*J856,\"\")","v":""},{"$f":"IFERROR(VLOOKUP(D856,'Species List'!$I$71:$J$82,2,FALSE)*J856,\"\")","v":""},0,null,null,null,null,null,null,{"$f":"IFERROR(INDEX('3 - Land Summary'!$B$21:$B$120,(MATCH(AD856,'3 - Land Summary'!$C$21:$C$120,0))),\"\")","v":""}]
[null,{"$f":"IFERROR(INDEX('3 - Land Summary'!$B$21:$B$120,(MATCH('4 - Species Breakdown'!$V857,'3 - Land Summary'!$C$21:$C$120,0))),\"\")","v":""},null,null,{"$f":"IF(OR(COUNTIF('Look Up Data'!$D$149:$D$203,D857),COUNTIF('Look Up Data'!$D$149:$D$203,AE857)),\"YES\",\"NO\")","v":"NO"},null,null,{"$f":"IFERROR(INDEX('3 - Land Summary'!$G$21:$G$120,(MATCH(C857,'3 - Land Summary'!$C$21:$C$120,0))),\"\")","v":""},{"$f":"IFERROR(INDEX('3 - Land Summary'!$I$21:$I$120,(MATCH(C857,'3 - Land Summary'!$C$21:$C$120,0))),\"\")","v":""},"","",null,null,null,{"$f":"IFERROR(VLOOKUP(D857,'Species List'!$D$10:$E$46,2,FALSE)*J857,\"\")","v":""},{"$f":"IFERROR(VLOOKUP(D857,'Species List'!$D$51:$E$89,2,FALSE)*J857,\"\")","v":""},{"$f":"IFERROR(VLOOKUP(D857,'Species List'!$D$95:$E$102,2,FALSE)*J857,\"\")","v":""},{"$f":"IFERROR(VLOOKUP(D857,'Species List'!$I$10:$J$11,2,FALSE)*J857,\"\")","v":""},{"$f":"IFERROR(VLOOKUP(D857,'Species List'!$I$16:$J$61,2,FALSE)*J857,\"\")","v":""},{"$f":"IFERROR(VLOOKUP(D857,'Species List'!$I$66:$J$66,2,FALSE)*J857,\"\")","v":""},{"$f":"IFERROR(VLOOKUP(D857,'Species List'!$I$71:$J$82,2,FALSE)*J857,\"\")","v":""},0,null,null,null,null,null,null,{"$f":"IFERROR(INDEX('3 - Land Summary'!$B$21:$B$120,(MATCH(AD857,'3 - Land Summary'!$C$21:$C$120,0))),\"\")","v":""}]
[null,{"$f":"IFERROR(INDEX('3 - Land Summary'!$B$21:$B$120,(MATCH('4 - Species Breakdown'!$V858,'3 - Land Summary'!$C$21:$C$120,0))),\"\")","v":""},null,null,{"$f":"IF(OR(COUNTIF('Look Up Data'!$D$149:$D$203,D858),COUNTIF('Look Up Data'!$D$149:$D$203,AE858)),\"YES\",\"NO\")","v":"NO"},null,null,{"$f":"IFERROR(INDEX('3 - Land Summary'!$G$21:$G$120,(MATCH(C858,'3 - Land Summary'!$C$21:$C$120,0))),\"\")","v":""},{"$f":"IFERROR(INDEX('3 - Land Summary'!$I$21:$I$120,(MATCH(C858,'3 - Land Summary'!$C$21:$C$120,0))),\"\")","v":""},"","",null,null,null,{"$f":"IFERROR(VLOOKUP(D858,'Species List'!$D$10:$E$46,2,FALSE)*J858,\"\")","v":""},{"$f":"IFERROR(VLOOKUP(D858,'Species List'!$D$51:$E$89,2,FALSE)*J858,\"\")","v":""},{"$f":"IFERROR(VLOOKUP(D858,'Species List'!$D$95:$E$102,2,FALSE)*J858,\"\")","v":""},{"$f":"IFERROR(VLOOKUP(D858,'Species List'!$I$10:$J$11,2,FALSE)*J858,\"\")","v":""},{"$f":"IFERROR(VLOOKUP(D858,'Species List'!$I$16:$J$61,2,FALSE)*J858,\"\")","v":""},{"$f":"IFERROR(VLOOKUP(D858,'Species List'!$I$66:$J$66,2,FALSE)*J858,\"\")","v":""},{"$f":"IFERROR(VLOOKUP(D858,'Species List'!$I$71:$J$82,2,FALSE)*J858,\"\")","v":""},0,null,null,null,null,null,null,{"$f":"IFERROR(INDEX('3 - Land Summary'!$B$21:$B$120,(MATCH(AD858,'3 - Land Summary'!$C$21:$C$120,0))),\"\")","v":""}]
[null,{"$f":"IFERROR(INDEX('3 - Land Summary'!$B$21:$B$120,(MATCH('4 - Species Breakdown'!$V859,'3 - Land Summary'!$C$21:$C$120,0))),\"\")","v":""},null,null,{"$f":"IF(OR(COUNTIF('Look Up Data'!$D$149:$D$203,D859),COUNTIF('Look Up Data'!$D$149:$D$203,AE859)),\"YES\",\"NO\")","v":"NO"},null,null,{"$f":"IFERROR(INDEX('3 - Land Summary'!$G$21:$G$120,(MATCH(C859,'3 - Land Summary'!$C$21:$C$120,0))),\"\")","v":""},{"$f":"IFERROR(INDEX('3 - Land Summary'!$I$21:$I$120,(MATCH(C859,'3 - Land Summary'!$C$21:$C$120,0))),\"\")","v":""},"","",null,null,null,{"$f":"IFERROR(VLOOKUP(D859,'Species List'!$D$10:$E$46,2,FALSE)*J859,\"\")","v":""},{"$f":"IFERROR(VLOOKUP(D859,'Species List'!$D$51:$E$89,2,FALSE)*J859,\"\")","v":""},{"$f":"IFERROR(VLOOKUP(D859,'Species List'!$D$95:$E$102,2,FALSE)*J859,\"\")","v":""},{"$f":"IFERROR(VLOOKUP(D859,'Species List'!$I$10:$J$11,2,FALSE)*J859,\"\")","v":""},{"$f":"IFERROR(VLOOKUP(D859,'Species List'!$I$16:$J$61,2,FALSE)*J859,\"\")","v":""},{"$f":"IFERROR(VLOOKUP(D859,'Species List'!$I$66:$J$66,2,FALSE)*J859,\"\")","v":""},{"$f":"IFERROR(VLOOKUP(D859,'Species List'!$I$71:$J$82,2,FALSE)*J859,\"\")","v":""},0,null,null,null,null,null,null,{"$f":"IFERROR(INDEX('3 - Land Summary'!$B$21:$B$120,(MATCH(AD859,'3 - Land Summary'!$C$21:$C$120,0))),\"\")","v":""}]
[null,{"$f":"IFERROR(INDEX('3 - Land Summary'!$B$21:$B$120,(MATCH('4 - Species Breakdown'!$V860,'3 - Land Summary'!$C$21:$C$120,0))),\"\")","v":""},null,null,{"$f":"IF(OR(COUNTIF('Look Up Data'!$D$149:$D$203,D860),COUNTIF('Look Up Data'!$D$149:$D$203,AE860)),\"YES\",\"NO\")","v":"NO"},null,null,{"$f":"IFERROR(INDEX('3 - Land Summary'!$G$21:$G$120,(MATCH(C860,'3 - Land Summary'!$C$21:$C$120,0))),\"\")","v":""},{"$f":"IFERROR(INDEX('3 - Land Summary'!$I$21:$I$120,(MATCH(C860,'3 - Land Summary'!$C$21:$C$120,0))),\"\")","v":""},"","",null,null,null,{"$f":"IFERROR(VLOOKUP(D860,'Species List'!$D$10:$E$46,2,FALSE)*J860,\"\")","v":""},{"$f":"IFERROR(VLOOKUP(D860,'Species List'!$D$51:$E$89,2,FALSE)*J860,\"\")","v":""},{"$f":"IFERROR(VLOOKUP(D860,'Species List'!$D$95:$E$102,2,FALSE)*J860,\"\")","v":""},{"$f":"IFERROR(VLOOKUP(D860,'Species List'!$I$10:$J$11,2,FALSE)*J860,\"\")","v":""},{"$f":"IFERROR(VLOOKUP(D860,'Species List'!$I$16:$J$61,2,FALSE)*J860,\"\")","v":""},{"$f":"IFERROR(VLOOKUP(D860,'Species List'!$I$66:$J$66,2,FALSE)*J860,\"\")","v":""},{"$f":"IFERROR(VLOOKUP(D860,'Species List'!$I$71:$J$82,2,FALSE)*J860,\"\")","v":""},0,null,null,null,null,null,null,{"$f":"IFERROR(INDEX('3 - Land Summary'!$B$21:$B$120,(MATCH(AD860,'3 - Land Summary'!$C$21:$C$120,0))),\"\")","v":""}]
[null,{"$f":"IFERROR(INDEX('3 - Land Summary'!$B$21:$B$120,(MATCH('4 - Species Breakdown'!$V861,'3 - Land Summary'!$C$21:$C$120,0))),\"\")","v":""},null,null,{"$f":"IF(OR(COUNTIF('Look Up Data'!$D$149:$D$203,D861),COUNTIF('Look Up Data'!$D$149:$D$203,AE861)),\"YES\",\"NO\")","v":"NO"},null,null,{"$f":"IFERROR(INDEX('3 - Land Summary'!$G$21:$G$120,(MATCH(C861,'3 - Land Summary'!$C$21:$C$120,0))),\"\")","v":""},{"$f":"IFERROR(INDEX('3 - Land Summary'!$I$21:$I$120,(MATCH(C861,'3 - Land Summary'!$C$21:$C$120,0))),\"\")","v":""},"","",null,null,null,{"$f":"IFERROR(VLOOKUP(D861,'Species List'!$D$10:$E$46,2,FALSE)*J861,\"\")","v":""},{"$f":"IFERROR(VLOOKUP(D861,'Species List'!$D$51:$E$89,2,FALSE)*J861,\"\")","v":""},{"$f":"IFERROR(VLOOKUP(D861,'Species List'!$D$95:$E$102,2,FALSE)*J861,\"\")","v":""},{"$f":"IFERROR(VLOOKUP(D861,'Species List'!$I$10:$J$11,2,FALSE)*J861,\"\")","v":""},{"$f":"IFERROR(VLOOKUP(D861,'Species List'!$I$16:$J$61,2,FALSE)*J861,\"\")","v":""},{"$f":"IFERROR(VLOOKUP(D861,'Species List'!$I$66:$J$66,2,FALSE)*J861,\"\")","v":""},{"$f":"IFERROR(VLOOKUP(D861,'Species List'!$I$71:$J$82,2,FALSE)*J861,\"\")","v":""},0,null,null,null,null,null,null,{"$f":"IFERROR(INDEX('3 - Land Summary'!$B$21:$B$120,(MATCH(AD861,'3 - Land Summary'!$C$21:$C$120,0))),\"\")","v":""}]
[null,{"$f":"IFERROR(INDEX('3 - Land Summary'!$B$21:$B$120,(MATCH('4 - Species Breakdown'!$V862,'3 - Land Summary'!$C$21:$C$120,0))),\"\")","v":""},null,null,{"$f":"IF(OR(COUNTIF('Look Up Data'!$D$149:$D$203,D862),COUNTIF('Look Up Data'!$D$149:$D$203,AE862)),\"YES\",\"NO\")","v":"NO"},null,null,{"$f":"IFERROR(INDEX('3 - Land Summary'!$G$21:$G$120,(MATCH(C862,'3 - Land Summary'!$C$21:$C$120,0))),\"\")","v":""},{"$f":"IFERROR(INDEX('3 - Land Summary'!$I$21:$I$120,(MATCH(C862,'3 - Land Summary'!$C$21:$C$120,0))),\"\")","v":""},"","",null,null,null,{"$f":"IFERROR(VLOOKUP(D862,'Species List'!$D$10:$E$46,2,FALSE)*J862,\"\")","v":""},{"$f":"IFERROR(VLOOKUP(D862,'Species List'!$D$51:$E$89,2,FALSE)*J862,\"\")","v":""},{"$f":"IFERROR(VLOOKUP(D862,'Species List'!$D$95:$E$102,2,FALSE)*J862,\"\")","v":""},{"$f":"IFERROR(VLOOKUP(D862,'Species List'!$I$10:$J$11,2,FALSE)*J862,\"\")","v":""},{"$f":"IFERROR(VLOOKUP(D862,'Species List'!$I$16:$J$61,2,FALSE)*J862,\"\")","v":""},{"$f":"IFERROR(VLOOKUP(D862,'Species List'!$I$66:$J$66,2,FALSE)*J862,\"\")","v":""},{"$f":"IFERROR(VLOOKUP(D862,'Species List'!$I$71:$J$82,2,FALSE)*J862,\"\")","v":""},0,null,null,null,null,null,null,{"$f":"IFERROR(INDEX('3 - Land Summary'!$B$21:$B$120,(MATCH(AD862,'3 - Land Summary'!$C$21:$C$120,0))),\"\")","v":""}]
[null,{"$f":"IFERROR(INDEX('3 - Land Summary'!$B$21:$B$120,(MATCH('4 - Species Breakdown'!$V863,'3 - Land Summary'!$C$21:$C$120,0))),\"\")","v":""},null,null,{"$f":"IF(OR(COUNTIF('Look Up Data'!$D$149:$D$203,D863),COUNTIF('Look Up Data'!$D$149:$D$203,AE863)),\"YES\",\"NO\")","v":"NO"},null,null,{"$f":"IFERROR(INDEX('3 - Land Summary'!$G$21:$G$120,(MATCH(C863,'3 - Land Summary'!$C$21:$C$120,0))),\"\")","v":""},{"$f":"IFERROR(INDEX('3 - Land Summary'!$I$21:$I$120,(MATCH(C863,'3 - Land Summary'!$C$21:$C$120,0))),\"\")","v":""},{"$f":"IFERROR(((H863-I863)*F863)/100,\"\")","v":""},"",null,null,null,{"$f":"IFERROR(VLOOKUP(D863,'Species List'!$D$10:$E$46,2,FALSE)*J863,\"\")","v":""},{"$f":"IFERROR(VLOOKUP(D863,'Species List'!$D$51:$E$89,2,FALSE)*J863,\"\")","v":""},{"$f":"IFERROR(VLOOKUP(D863,'Species List'!$D$95:$E$102,2,FALSE)*J863,\"\")","v":""},{"$f":"IFERROR(VLOOKUP(D863,'Species List'!$I$10:$J$11,2,FALSE)*J863,\"\")","v":""},{"$f":"IFERROR(VLOOKUP(D863,'Species List'!$I$16:$J$61,2,FALSE)*J863,\"\")","v":""},{"$f":"IFERROR(VLOOKUP(D863,'Species List'!$I$66:$J$66,2,FALSE)*J863,\"\")","v":""},{"$f":"IFERROR(VLOOKUP(D863,'Species List'!$I$71:$J$82,2,FALSE)*J863,\"\")","v":""},{"$f":"C863","v":0},null,null,null,null,null,null,{"$f":"IFERROR(INDEX('3 - Land Summary'!$B$21:$B$120,(MATCH(AD863,'3 - Land Summary'!$C$21:$C$120,0))),\"\")","v":""}]
[null,{"$f":"IFERROR(INDEX('3 - Land Summary'!$B$21:$B$120,(MATCH('4 - Species Breakdown'!$V864,'3 - Land Summary'!$C$21:$C$120,0))),\"\")","v":""},null,null,{"$f":"IF(OR(COUNTIF('Look Up Data'!$D$149:$D$203,D864),COUNTIF('Look Up Data'!$D$149:$D$203,AE864)),\"YES\",\"NO\")","v":"NO"},null,null,{"$f":"IFERROR(INDEX('3 - Land Summary'!$G$21:$G$120,(MATCH(C864,'3 - Land Summary'!$C$21:$C$120,0))),\"\")","v":""},{"$f":"IFERROR(INDEX('3 - Land Summary'!$I$21:$I$120,(MATCH(C864,'3 - Land Summary'!$C$21:$C$120,0))),\"\")","v":""},"",{"$f":"IFERROR(ROUND(J864*G864,0),\"\")","v":""},null,null,null,{"$f":"IFERROR(VLOOKUP(D864,'Species List'!$D$10:$E$46,2,FALSE)*J864,\"\")","v":""},{"$f":"IFERROR(VLOOKUP(D864,'Species List'!$D$51:$E$89,2,FALSE)*J864,\"\")","v":""},{"$f":"IFERROR(VLOOKUP(D864,'Species List'!$D$95:$E$102,2,FALSE)*J864,\"\")","v":""},{"$f":"IFERROR(VLOOKUP(D864,'Species List'!$I$10:$J$11,2,FALSE)*J864,\"\")","v":""},{"$f":"IFERROR(VLOOKUP(D864,'Species List'!$I$16:$J$61,2,FALSE)*J864,\"\")","v":""},{"$f":"IFERROR(VLOOKUP(D864,'Species List'!$I$66:$J$66,2,FALSE)*J864,\"\")","v":""},{"$f":"IFERROR(VLOOKUP(D864,'Species List'!$I$71:$J$82,2,FALSE)*J864,\"\")","v":""},0,null,null,null,null,null,null,{"$f":"IFERROR(INDEX('3 - Land Summary'!$B$21:$B$120,(MATCH(AD864,'3 - Land Summary'!$C$21:$C$120,0))),\"\")","v":""}]
[null,{"$f":"IFERROR(INDEX('3 - Land Summary'!$B$21:$B$120,(MATCH('4 - Species Breakdown'!$V865,'3 - Land Summary'!$C$21:$C$120,0))),\"\")","v":""},null,null,{"$f":"IF(OR(COUNTIF('Look Up Data'!$D$149:$D$203,D865),COUNTIF('Look Up Data'!$D$149:$D$203,AE865)),\"YES\",\"NO\")","v":"NO"},null,null,{"$f":"IFERROR(INDEX('3 - Land Summary'!$G$21:$G$120,(MATCH(C865,'3 - Land Summary'!$C$21:$C$120,0))),\"\")","v":""},{"$f":"IFERROR(INDEX('3 - Land Summary'!$I$21:$I$120,(MATCH(C865,'3 - Land Summary'!$C$21:$C$120,0))),\"\")","v":""},"","",null,null,null,{"$f":"IFERROR(VLOOKUP(D865,'Species List'!$D$10:$E$46,2,FALSE)*J865,\"\")","v":""},{"$f":"IFERROR(VLOOKUP(D865,'Species List'!$D$51:$E$89,2,FALSE)*J865,\"\")","v":""},{"$f":"IFERROR(VLOOKUP(D865,'Species List'!$D$95:$E$102,2,FALSE)*J865,\"\")","v":""},{"$f":"IFERROR(VLOOKUP(D865,'Species List'!$I$10:$J$11,2,FALSE)*J865,\"\")","v":""},{"$f":"IFERROR(VLOOKUP(D865,'Species List'!$I$16:$J$61,2,FALSE)*J865,\"\")","v":""},{"$f":"IFERROR(VLOOKUP(D865,'Species List'!$I$66:$J$66,2,FALSE)*J865,\"\")","v":""},{"$f":"IFERROR(VLOOKUP(D865,'Species List'!$I$71:$J$82,2,FALSE)*J865,\"\")","v":""},0,null,null,null,null,null,null,{"$f":"IFERROR(INDEX('3 - Land Summary'!$B$21:$B$120,(MATCH(AD865,'3 - Land Summary'!$C$21:$C$120,0))),\"\")","v":""}]
[null,{"$f":"IFERROR(INDEX('3 - Land Summary'!$B$21:$B$120,(MATCH('4 - Species Breakdown'!$V866,'3 - Land Summary'!$C$21:$C$120,0))),\"\")","v":""},null,null,{"$f":"IF(OR(COUNTIF('Look Up Data'!$D$149:$D$203,D866),COUNTIF('Look Up Data'!$D$149:$D$203,AE866)),\"YES\",\"NO\")","v":"NO"},null,null,{"$f":"IFERROR(INDEX('3 - Land Summary'!$G$21:$G$120,(MATCH(C866,'3 - Land Summary'!$C$21:$C$120,0))),\"\")","v":""},{"$f":"IFERROR(INDEX('3 - Land Summary'!$I$21:$I$120,(MATCH(C866,'3 - Land Summary'!$C$21:$C$120,0))),\"\")","v":""},"","",null,null,null,{"$f":"IFERROR(VLOOKUP(D866,'Species List'!$D$10:$E$46,2,FALSE)*J866,\"\")","v":""},{"$f":"IFERROR(VLOOKUP(D866,'Species List'!$D$51:$E$89,2,FALSE)*J866,\"\")","v":""},{"$f":"IFERROR(VLOOKUP(D866,'Species List'!$D$95:$E$102,2,FALSE)*J866,\"\")","v":""},{"$f":"IFERROR(VLOOKUP(D866,'Species List'!$I$10:$J$11,2,FALSE)*J866,\"\")","v":""},{"$f":"IFERROR(VLOOKUP(D866,'Species List'!$I$16:$J$61,2,FALSE)*J866,\"\")","v":""},{"$f":"IFERROR(VLOOKUP(D866,'Species List'!$I$66:$J$66,2,FALSE)*J866,\"\")","v":""},{"$f":"IFERROR(VLOOKUP(D866,'Species List'!$I$71:$J$82,2,FALSE)*J866,\"\")","v":""},0,null,null,null,null,null,null,{"$f":"IFERROR(INDEX('3 - Land Summary'!$B$21:$B$120,(MATCH(AD866,'3 - Land Summary'!$C$21:$C$120,0))),\"\")","v":""}]
[null,{"$f":"IFERROR(INDEX('3 - Land Summary'!$B$21:$B$120,(MATCH('4 - Species Breakdown'!$V867,'3 - Land Summary'!$C$21:$C$120,0))),\"\")","v":""},null,null,{"$f":"IF(OR(COUNTIF('Look Up Data'!$D$149:$D$203,D867),COUNTIF('Look Up Data'!$D$149:$D$203,AE867)),\"YES\",\"NO\")","v":"NO"},null,null,{"$f":"IFERROR(INDEX('3 - Land Summary'!$G$21:$G$120,(MATCH(C867,'3 - Land Summary'!$C$21:$C$120,0))),\"\")","v":""},{"$f":"IFERROR(INDEX('3 - Land Summary'!$I$21:$I$120,(MATCH(C867,'3 - Land Summary'!$C$21:$C$120,0))),\"\")","v":""},"","",null,null,null,{"$f":"IFERROR(VLOOKUP(D867,'Species List'!$D$10:$E$46,2,FALSE)*J867,\"\")","v":""},{"$f":"IFERROR(VLOOKUP(D867,'Species List'!$D$51:$E$89,2,FALSE)*J867,\"\")","v":""},{"$f":"IFERROR(VLOOKUP(D867,'Species List'!$D$95:$E$102,2,FALSE)*J867,\"\")","v":""},{"$f":"IFERROR(VLOOKUP(D867,'Species List'!$I$10:$J$11,2,FALSE)*J867,\"\")","v":""},{"$f":"IFERROR(VLOOKUP(D867,'Species List'!$I$16:$J$61,2,FALSE)*J867,\"\")","v":""},{"$f":"IFERROR(VLOOKUP(D867,'Species List'!$I$66:$J$66,2,FALSE)*J867,\"\")","v":""},{"$f":"IFERROR(VLOOKUP(D867,'Species List'!$I$71:$J$82,2,FALSE)*J867,\"\")","v":""},0,null,null,null,null,null,null,{"$f":"IFERROR(INDEX('3 - Land Summary'!$B$21:$B$120,(MATCH(AD867,'3 - Land Summary'!$C$21:$C$120,0))),\"\")","v":""}]
[null,{"$f":"IFERROR(INDEX('3 - Land Summary'!$B$21:$B$120,(MATCH('4 - Species Breakdown'!$V868,'3 - Land Summary'!$C$21:$C$120,0))),\"\")","v":""},null,null,{"$f":"IF(OR(COUNTIF('Look Up Data'!$D$149:$D$203,D868),COUNTIF('Look Up Data'!$D$149:$D$203,AE868)),\"YES\",\"NO\")","v":"NO"},null,null,{"$f":"IFERROR(INDEX('3 - Land Summary'!$G$21:$G$120,(MATCH(C868,'3 - Land Summary'!$C$21:$C$120,0))),\"\")","v":""},{"$f":"IFERROR(INDEX('3 - Land Summary'!$I$21:$I$120,(MATCH(C868,'3 - Land Summary'!$C$21:$C$120,0))),\"\")","v":""},"","",null,null,null,{"$f":"IFERROR(VLOOKUP(D868,'Species List'!$D$10:$E$46,2,FALSE)*J868,\"\")","v":""},{"$f":"IFERROR(VLOOKUP(D868,'Species List'!$D$51:$E$89,2,FALSE)*J868,\"\")","v":""},{"$f":"IFERROR(VLOOKUP(D868,'Species List'!$D$95:$E$102,2,FALSE)*J868,\"\")","v":""},{"$f":"IFERROR(VLOOKUP(D868,'Species List'!$I$10:$J$11,2,FALSE)*J868,\"\")","v":""},{"$f":"IFERROR(VLOOKUP(D868,'Species List'!$I$16:$J$61,2,FALSE)*J868,\"\")","v":""},{"$f":"IFERROR(VLOOKUP(D868,'Species List'!$I$66:$J$66,2,FALSE)*J868,\"\")","v":""},{"$f":"IFERROR(VLOOKUP(D868,'Species List'!$I$71:$J$82,2,FALSE)*J868,\"\")","v":""},0,null,null,null,null,null,null,{"$f":"IFERROR(INDEX('3 - Land Summary'!$B$21:$B$120,(MATCH(AD868,'3 - Land Summary'!$C$21:$C$120,0))),\"\")","v":""}]
[null,{"$f":"IFERROR(INDEX('3 - Land Summary'!$B$21:$B$120,(MATCH('4 - Species Breakdown'!$V869,'3 - Land Summary'!$C$21:$C$120,0))),\"\")","v":""},null,null,{"$f":"IF(OR(COUNTIF('Look Up Data'!$D$149:$D$203,D869),COUNTIF('Look Up Data'!$D$149:$D$203,AE869)),\"YES\",\"NO\")","v":"NO"},null,null,{"$f":"IFERROR(INDEX('3 - Land Summary'!$G$21:$G$120,(MATCH(C869,'3 - Land Summary'!$C$21:$C$120,0))),\"\")","v":""},{"$f":"IFERROR(INDEX('3 - Land Summary'!$I$21:$I$120,(MATCH(C869,'3 - Land Summary'!$C$21:$C$120,0))),\"\")","v":""},"","",null,null,null,{"$f":"IFERROR(VLOOKUP(D869,'Species List'!$D$10:$E$46,2,FALSE)*J869,\"\")","v":""},{"$f":"IFERROR(VLOOKUP(D869,'Species List'!$D$51:$E$89,2,FALSE)*J869,\"\")","v":""},{"$f":"IFERROR(VLOOKUP(D869,'Species List'!$D$95:$E$102,2,FALSE)*J869,\"\")","v":""},{"$f":"IFERROR(VLOOKUP(D869,'Species List'!$I$10:$J$11,2,FALSE)*J869,\"\")","v":""},{"$f":"IFERROR(VLOOKUP(D869,'Species List'!$I$16:$J$61,2,FALSE)*J869,\"\")","v":""},{"$f":"IFERROR(VLOOKUP(D869,'Species List'!$I$66:$J$66,2,FALSE)*J869,\"\")","v":""},{"$f":"IFERROR(VLOOKUP(D869,'Species List'!$I$71:$J$82,2,FALSE)*J869,\"\")","v":""},0,null,null,null,null,null,null,{"$f":"IFERROR(INDEX('3 - Land Summary'!$B$21:$B$120,(MATCH(AD869,'3 - Land Summary'!$C$21:$C$120,0))),\"\")","v":""}]
[null,{"$f":"IFERROR(INDEX('3 - Land Summary'!$B$21:$B$120,(MATCH('4 - Species Breakdown'!$V870,'3 - Land Summary'!$C$21:$C$120,0))),\"\")","v":""},null,null,{"$f":"IF(OR(COUNTIF('Look Up Data'!$D$149:$D$203,D870),COUNTIF('Look Up Data'!$D$149:$D$203,AE870)),\"YES\",\"NO\")","v":"NO"},null,null,{"$f":"IFERROR(INDEX('3 - Land Summary'!$G$21:$G$120,(MATCH(C870,'3 - Land Summary'!$C$21:$C$120,0))),\"\")","v":""},{"$f":"IFERROR(INDEX('3 - Land Summary'!$I$21:$I$120,(MATCH(C870,'3 - Land Summary'!$C$21:$C$120,0))),\"\")","v":""},"","",null,null,null,{"$f":"IFERROR(VLOOKUP(D870,'Species List'!$D$10:$E$46,2,FALSE)*J870,\"\")","v":""},{"$f":"IFERROR(VLOOKUP(D870,'Species List'!$D$51:$E$89,2,FALSE)*J870,\"\")","v":""},{"$f":"IFERROR(VLOOKUP(D870,'Species List'!$D$95:$E$102,2,FALSE)*J870,\"\")","v":""},{"$f":"IFERROR(VLOOKUP(D870,'Species List'!$I$10:$J$11,2,FALSE)*J870,\"\")","v":""},{"$f":"IFERROR(VLOOKUP(D870,'Species List'!$I$16:$J$61,2,FALSE)*J870,\"\")","v":""},{"$f":"IFERROR(VLOOKUP(D870,'Species List'!$I$66:$J$66,2,FALSE)*J870,\"\")","v":""},{"$f":"IFERROR(VLOOKUP(D870,'Species List'!$I$71:$J$82,2,FALSE)*J870,\"\")","v":""},0,null,null,null,null,null,null,{"$f":"IFERROR(INDEX('3 - Land Summary'!$B$21:$B$120,(MATCH(AD870,'3 - Land Summary'!$C$21:$C$120,0))),\"\")","v":""}]
[null,{"$f":"IFERROR(INDEX('3 - Land Summary'!$B$21:$B$120,(MATCH('4 - Species Breakdown'!$V871,'3 - Land Summary'!$C$21:$C$120,0))),\"\")","v":""},null,null,{"$f":"IF(OR(COUNTIF('Look Up Data'!$D$149:$D$203,D871),COUNTIF('Look Up Data'!$D$149:$D$203,AE871)),\"YES\",\"NO\")","v":"NO"},null,null,{"$f":"IFERROR(INDEX('3 - Land Summary'!$G$21:$G$120,(MATCH(C871,'3 - Land Summary'!$C$21:$C$120,0))),\"\")","v":""},{"$f":"IFERROR(INDEX('3 - Land Summary'!$I$21:$I$120,(MATCH(C871,'3 - Land Summary'!$C$21:$C$120,0))),\"\")","v":""},"","",null,null,null,{"$f":"IFERROR(VLOOKUP(D871,'Species List'!$D$10:$E$46,2,FALSE)*J871,\"\")","v":""},{"$f":"IFERROR(VLOOKUP(D871,'Species List'!$D$51:$E$89,2,FALSE)*J871,\"\")","v":""},{"$f":"IFERROR(VLOOKUP(D871,'Species List'!$D$95:$E$102,2,FALSE)*J871,\"\")","v":""},{"$f":"IFERROR(VLOOKUP(D871,'Species List'!$I$10:$J$11,2,FALSE)*J871,\"\")","v":""},{"$f":"IFERROR(VLOOKUP(D871,'Species List'!$I$16:$J$61,2,FALSE)*J871,\"\")","v":""},{"$f":"IFERROR(VLOOKUP(D871,'Species List'!$I$66:$J$66,2,FALSE)*J871,\"\")","v":""},{"$f":"IFERROR(VLOOKUP(D871,'Species List'!$I$71:$J$82,2,FALSE)*J871,\"\")","v":""},0,null,null,null,null,null,null,{"$f":"IFERROR(INDEX('3 - Land Summary'!$B$21:$B$120,(MATCH(AD871,'3 - Land Summary'!$C$21:$C$120,0))),\"\")","v":""}]
[null,{"$f":"IFERROR(INDEX('3 - Land Summary'!$B$21:$B$120,(MATCH('4 - Species Breakdown'!$V872,'3 - Land Summary'!$C$21:$C$120,0))),\"\")","v":""},null,null,{"$f":"IF(OR(COUNTIF('Look Up Data'!$D$149:$D$203,D872),COUNTIF('Look Up Data'!$D$149:$D$203,AE872)),\"YES\",\"NO\")","v":"NO"},null,null,{"$f":"IFERROR(INDEX('3 - Land Summary'!$G$21:$G$120,(MATCH(C872,'3 - Land Summary'!$C$21:$C$120,0))),\"\")","v":""},{"$f":"IFERROR(INDEX('3 - Land Summary'!$I$21:$I$120,(MATCH(C872,'3 - Land Summary'!$C$21:$C$120,0))),\"\")","v":""},"","",null,null,null,{"$f":"IFERROR(VLOOKUP(D872,'Species List'!$D$10:$E$46,2,FALSE)*J872,\"\")","v":""},{"$f":"IFERROR(VLOOKUP(D872,'Species List'!$D$51:$E$89,2,FALSE)*J872,\"\")","v":""},{"$f":"IFERROR(VLOOKUP(D872,'Species List'!$D$95:$E$102,2,FALSE)*J872,\"\")","v":""},{"$f":"IFERROR(VLOOKUP(D872,'Species List'!$I$10:$J$11,2,FALSE)*J872,\"\")","v":""},{"$f":"IFERROR(VLOOKUP(D872,'Species List'!$I$16:$J$61,2,FALSE)*J872,\"\")","v":""},{"$f":"IFERROR(VLOOKUP(D872,'Species List'!$I$66:$J$66,2,FALSE)*J872,\"\")","v":""},{"$f":"IFERROR(VLOOKUP(D872,'Species List'!$I$71:$J$82,2,FALSE)*J872,\"\")","v":""},0,null,null,null,null,null,null,{"$f":"IFERROR(INDEX('3 - Land Summary'!$B$21:$B$120,(MATCH(AD872,'3 - Land Summary'!$C$21:$C$120,0))),\"\")","v":""}]
[null,{"$f":"IFERROR(INDEX('3 - Land Summary'!$B$21:$B$120,(MATCH('4 - Species Breakdown'!$V873,'3 - Land Summary'!$C$21:$C$120,0))),\"\")","v":""},null,null,{"$f":"IF(OR(COUNTIF('Look Up Data'!$D$149:$D$203,D873),COUNTIF('Look Up Data'!$D$149:$D$203,AE873)),\"YES\",\"NO\")","v":"NO"},null,null,{"$f":"IFERROR(INDEX('3 - Land Summary'!$G$21:$G$120,(MATCH(C873,'3 - Land Summary'!$C$21:$C$120,0))),\"\")","v":""},{"$f":"IFERROR(INDEX('3 - Land Summary'!$I$21:$I$120,(MATCH(C873,'3 - Land Summary'!$C$21:$C$120,0))),\"\")","v":""},"","",null,null,null,{"$f":"IFERROR(VLOOKUP(D873,'Species List'!$D$10:$E$46,2,FALSE)*J873,\"\")","v":""},{"$f":"IFERROR(VLOOKUP(D873,'Species List'!$D$51:$E$89,2,FALSE)*J873,\"\")","v":""},{"$f":"IFERROR(VLOOKUP(D873,'Species List'!$D$95:$E$102,2,FALSE)*J873,\"\")","v":""},{"$f":"IFERROR(VLOOKUP(D873,'Species List'!$I$10:$J$11,2,FALSE)*J873,\"\")","v":""},{"$f":"IFERROR(VLOOKUP(D873,'Species List'!$I$16:$J$61,2,FALSE)*J873,\"\")","v":""},{"$f":"IFERROR(VLOOKUP(D873,'Species List'!$I$66:$J$66,2,FALSE)*J873,\"\")","v":""},{"$f":"IFERROR(VLOOKUP(D873,'Species List'!$I$71:$J$82,2,FALSE)*J873,\"\")","v":""},0,null,null,null,null,null,null,{"$f":"IFERROR(INDEX('3 - Land Summary'!$B$21:$B$120,(MATCH(AD873,'3 - Land Summary'!$C$21:$C$120,0))),\"\")","v":""}]
[null,{"$f":"IFERROR(INDEX('3 - Land Summary'!$B$21:$B$120,(MATCH('4 - Species Breakdown'!$V874,'3 - Land Summary'!$C$21:$C$120,0))),\"\")","v":""},null,null,{"$f":"IF(OR(COUNTIF('Look Up Data'!$D$149:$D$203,D874),COUNTIF('Look Up Data'!$D$149:$D$203,AE874)),\"YES\",\"NO\")","v":"NO"},null,null,{"$f":"IFERROR(INDEX('3 - Land Summary'!$G$21:$G$120,(MATCH(C874,'3 - Land Summary'!$C$21:$C$120,0))),\"\")","v":""},{"$f":"IFERROR(INDEX('3 - Land Summary'!$I$21:$I$120,(MATCH(C874,'3 - Land Summary'!$C$21:$C$120,0))),\"\")","v":""},"","",null,null,null,{"$f":"IFERROR(VLOOKUP(D874,'Species List'!$D$10:$E$46,2,FALSE)*J874,\"\")","v":""},{"$f":"IFERROR(VLOOKUP(D874,'Species List'!$D$51:$E$89,2,FALSE)*J874,\"\")","v":""},{"$f":"IFERROR(VLOOKUP(D874,'Species List'!$D$95:$E$102,2,FALSE)*J874,\"\")","v":""},{"$f":"IFERROR(VLOOKUP(D874,'Species List'!$I$10:$J$11,2,FALSE)*J874,\"\")","v":""},{"$f":"IFERROR(VLOOKUP(D874,'Species List'!$I$16:$J$61,2,FALSE)*J874,\"\")","v":""},{"$f":"IFERROR(VLOOKUP(D874,'Species List'!$I$66:$J$66,2,FALSE)*J874,\"\")","v":""},{"$f":"IFERROR(VLOOKUP(D874,'Species List'!$I$71:$J$82,2,FALSE)*J874,\"\")","v":""},0,null,null,null,null,null,null,{"$f":"IFERROR(INDEX('3 - Land Summary'!$B$21:$B$120,(MATCH(AD874,'3 - Land Summary'!$C$21:$C$120,0))),\"\")","v":""}]
[null,{"$f":"IFERROR(INDEX('3 - Land Summary'!$B$21:$B$120,(MATCH('4 - Species Breakdown'!$V875,'3 - Land Summary'!$C$21:$C$120,0))),\"\")","v":""},null,null,{"$f":"IF(OR(COUNTIF('Look Up Data'!$D$149:$D$203,D875),COUNTIF('Look Up Data'!$D$149:$D$203,AE875)),\"YES\",\"NO\")","v":"NO"},null,null,{"$f":"IFERROR(INDEX('3 - Land Summary'!$G$21:$G$120,(MATCH(C875,'3 - Land Summary'!$C$21:$C$120,0))),\"\")","v":""},{"$f":"IFERROR(INDEX('3 - Land Summary'!$I$21:$I$120,(MATCH(C875,'3 - Land Summary'!$C$21:$C$120,0))),\"\")","v":""},"","",null,null,null,{"$f":"IFERROR(VLOOKUP(D875,'Species List'!$D$10:$E$46,2,FALSE)*J875,\"\")","v":""},{"$f":"IFERROR(VLOOKUP(D875,'Species List'!$D$51:$E$89,2,FALSE)*J875,\"\")","v":""},{"$f":"IFERROR(VLOOKUP(D875,'Species List'!$D$95:$E$102,2,FALSE)*J875,\"\")","v":""},{"$f":"IFERROR(VLOOKUP(D875,'Species List'!$I$10:$J$11,2,FALSE)*J875,\"\")","v":""},{"$f":"IFERROR(VLOOKUP(D875,'Species List'!$I$16:$J$61,2,FALSE)*J875,\"\")","v":""},{"$f":"IFERROR(VLOOKUP(D875,'Species List'!$I$66:$J$66,2,FALSE)*J875,\"\")","v":""},{"$f":"IFERROR(VLOOKUP(D875,'Species List'!$I$71:$J$82,2,FALSE)*J875,\"\")","v":""},0,null,null,null,null,null,null,{"$f":"IFERROR(INDEX('3 - Land Summary'!$B$21:$B$120,(MATCH(AD875,'3 - Land Summary'!$C$21:$C$120,0))),\"\")","v":""}]
[null,{"$f":"IFERROR(INDEX('3 - Land Summary'!$B$21:$B$120,(MATCH('4 - Species Breakdown'!$V876,'3 - Land Summary'!$C$21:$C$120,0))),\"\")","v":""},null,null,{"$f":"IF(OR(COUNTIF('Look Up Data'!$D$149:$D$203,D876),COUNTIF('Look Up Data'!$D$149:$D$203,AE876)),\"YES\",\"NO\")","v":"NO"},null,null,{"$f":"IFERROR(INDEX('3 - Land Summary'!$G$21:$G$120,(MATCH(C876,'3 - Land Summary'!$C$21:$C$120,0))),\"\")","v":""},{"$f":"IFERROR(INDEX('3 - Land Summary'!$I$21:$I$120,(MATCH(C876,'3 - Land Summary'!$C$21:$C$120,0))),\"\")","v":""},"","",null,null,null,{"$f":"IFERROR(VLOOKUP(D876,'Species List'!$D$10:$E$46,2,FALSE)*J876,\"\")","v":""},{"$f":"IFERROR(VLOOKUP(D876,'Species List'!$D$51:$E$89,2,FALSE)*J876,\"\")","v":""},{"$f":"IFERROR(VLOOKUP(D876,'Species List'!$D$95:$E$102,2,FALSE)*J876,\"\")","v":""},{"$f":"IFERROR(VLOOKUP(D876,'Species List'!$I$10:$J$11,2,FALSE)*J876,\"\")","v":""},{"$f":"IFERROR(VLOOKUP(D876,'Species List'!$I$16:$J$61,2,FALSE)*J876,\"\")","v":""},{"$f":"IFERROR(VLOOKUP(D876,'Species List'!$I$66:$J$66,2,FALSE)*J876,\"\")","v":""},{"$f":"IFERROR(VLOOKUP(D876,'Species List'!$I$71:$J$82,2,FALSE)*J876,\"\")","v":""},0,null,null,null,null,null,null,{"$f":"IFERROR(INDEX('3 - Land Summary'!$B$21:$B$120,(MATCH(AD876,'3 - Land Summary'!$C$21:$C$120,0))),\"\")","v":""}]
[null,{"$f":"IFERROR(INDEX('3 - Land Summary'!$B$21:$B$120,(MATCH('4 - Species Breakdown'!$V877,'3 - Land Summary'!$C$21:$C$120,0))),\"\")","v":""},null,null,{"$f":"IF(OR(COUNTIF('Look Up Data'!$D$149:$D$203,D877),COUNTIF('Look Up Data'!$D$149:$D$203,AE877)),\"YES\",\"NO\")","v":"NO"},null,null,{"$f":"IFERROR(INDEX('3 - Land Summary'!$G$21:$G$120,(MATCH(C877,'3 - Land Summary'!$C$21:$C$120,0))),\"\")","v":""},{"$f":"IFERROR(INDEX('3 - Land Summary'!$I$21:$I$120,(MATCH(C877,'3 - Land Summary'!$C$21:$C$120,0))),\"\")","v":""},"","",null,null,null,{"$f":"IFERROR(VLOOKUP(D877,'Species List'!$D$10:$E$46,2,FALSE)*J877,\"\")","v":""},{"$f":"IFERROR(VLOOKUP(D877,'Species List'!$D$51:$E$89,2,FALSE)*J877,\"\")","v":""},{"$f":"IFERROR(VLOOKUP(D877,'Species List'!$D$95:$E$102,2,FALSE)*J877,\"\")","v":""},{"$f":"IFERROR(VLOOKUP(D877,'Species List'!$I$10:$J$11,2,FALSE)*J877,\"\")","v":""},{"$f":"IFERROR(VLOOKUP(D877,'Species List'!$I$16:$J$61,2,FALSE)*J877,\"\")","v":""},{"$f":"IFERROR(VLOOKUP(D877,'Species List'!$I$66:$J$66,2,FALSE)*J877,\"\")","v":""},{"$f":"IFERROR(VLOOKUP(D877,'Species List'!$I$71:$J$82,2,FALSE)*J877,\"\")","v":""},0,null,null,null,null,null,null,{"$f":"IFERROR(INDEX('3 - Land Summary'!$B$21:$B$120,(MATCH(AD877,'3 - Land Summary'!$C$21:$C$120,0))),\"\")","v":""}]
[null,{"$f":"IFERROR(INDEX('3 - Land Summary'!$B$21:$B$120,(MATCH('4 - Species Breakdown'!$V878,'3 - Land Summary'!$C$21:$C$120,0))),\"\")","v":""},null,null,{"$f":"IF(OR(COUNTIF('Look Up Data'!$D$149:$D$203,D878),COUNTIF('Look Up Data'!$D$149:$D$203,AE878)),\"YES\",\"NO\")","v":"NO"},null,null,{"$f":"IFERROR(INDEX('3 - Land Summary'!$G$21:$G$120,(MATCH(C878,'3 - Land Summary'!$C$21:$C$120,0))),\"\")","v":""},{"$f":"IFERROR(INDEX('3 - Land Summary'!$I$21:$I$120,(MATCH(C878,'3 - Land Summary'!$C$21:$C$120,0))),\"\")","v":""},"","",null,null,null,{"$f":"IFERROR(VLOOKUP(D878,'Species List'!$D$10:$E$46,2,FALSE)*J878,\"\")","v":""},{"$f":"IFERROR(VLOOKUP(D878,'Species List'!$D$51:$E$89,2,FALSE)*J878,\"\")","v":""},{"$f":"IFERROR(VLOOKUP(D878,'Species List'!$D$95:$E$102,2,FALSE)*J878,\"\")","v":""},{"$f":"IFERROR(VLOOKUP(D878,'Species List'!$I$10:$J$11,2,FALSE)*J878,\"\")","v":""},{"$f":"IFERROR(VLOOKUP(D878,'Species List'!$I$16:$J$61,2,FALSE)*J878,\"\")","v":""},{"$f":"IFERROR(VLOOKUP(D878,'Species List'!$I$66:$J$66,2,FALSE)*J878,\"\")","v":""},{"$f":"IFERROR(VLOOKUP(D878,'Species List'!$I$71:$J$82,2,FALSE)*J878,\"\")","v":""},0,null,null,null,null,null,null,{"$f":"IFERROR(INDEX('3 - Land Summary'!$B$21:$B$120,(MATCH(AD878,'3 - Land Summary'!$C$21:$C$120,0))),\"\")","v":""}]
[null,{"$f":"IFERROR(INDEX('3 - Land Summary'!$B$21:$B$120,(MATCH('4 - Species Breakdown'!$V879,'3 - Land Summary'!$C$21:$C$120,0))),\"\")","v":""},null,null,{"$f":"IF(OR(COUNTIF('Look Up Data'!$D$149:$D$203,D879),COUNTIF('Look Up Data'!$D$149:$D$203,AE879)),\"YES\",\"NO\")","v":"NO"},null,null,{"$f":"IFERROR(INDEX('3 - Land Summary'!$G$21:$G$120,(MATCH(C879,'3 - Land Summary'!$C$21:$C$120,0))),\"\")","v":""},{"$f":"IFERROR(INDEX('3 - Land Summary'!$I$21:$I$120,(MATCH(C879,'3 - Land Summary'!$C$21:$C$120,0))),\"\")","v":""},"","",null,null,null,{"$f":"IFERROR(VLOOKUP(D879,'Species List'!$D$10:$E$46,2,FALSE)*J879,\"\")","v":""},{"$f":"IFERROR(VLOOKUP(D879,'Species List'!$D$51:$E$89,2,FALSE)*J879,\"\")","v":""},{"$f":"IFERROR(VLOOKUP(D879,'Species List'!$D$95:$E$102,2,FALSE)*J879,\"\")","v":""},{"$f":"IFERROR(VLOOKUP(D879,'Species List'!$I$10:$J$11,2,FALSE)*J879,\"\")","v":""},{"$f":"IFERROR(VLOOKUP(D879,'Species List'!$I$16:$J$61,2,FALSE)*J879,\"\")","v":""},{"$f":"IFERROR(VLOOKUP(D879,'Species List'!$I$66:$J$66,2,FALSE)*J879,\"\")","v":""},{"$f":"IFERROR(VLOOKUP(D879,'Species List'!$I$71:$J$82,2,FALSE)*J879,\"\")","v":""},0,null,null,null,null,null,null,{"$f":"IFERROR(INDEX('3 - Land Summary'!$B$21:$B$120,(MATCH(AD879,'3 - Land Summary'!$C$21:$C$120,0))),\"\")","v":""}]
[null,{"$f":"IFERROR(INDEX('3 - Land Summary'!$B$21:$B$120,(MATCH('4 - Species Breakdown'!$V880,'3 - Land Summary'!$C$21:$C$120,0))),\"\")","v":""},null,null,{"$f":"IF(OR(COUNTIF('Look Up Data'!$D$149:$D$203,D880),COUNTIF('Look Up Data'!$D$149:$D$203,AE880)),\"YES\",\"NO\")","v":"NO"},null,null,{"$f":"IFERROR(INDEX('3 - Land Summary'!$G$21:$G$120,(MATCH(C880,'3 - Land Summary'!$C$21:$C$120,0))),\"\")","v":""},{"$f":"IFERROR(INDEX('3 - Land Summary'!$I$21:$I$120,(MATCH(C880,'3 - Land Summary'!$C$21:$C$120,0))),\"\")","v":""},"","",null,null,null,{"$f":"IFERROR(VLOOKUP(D880,'Species List'!$D$10:$E$46,2,FALSE)*J880,\"\")","v":""},{"$f":"IFERROR(VLOOKUP(D880,'Species List'!$D$51:$E$89,2,FALSE)*J880,\"\")","v":""},{"$f":"IFERROR(VLOOKUP(D880,'Species List'!$D$95:$E$102,2,FALSE)*J880,\"\")","v":""},{"$f":"IFERROR(VLOOKUP(D880,'Species List'!$I$10:$J$11,2,FALSE)*J880,\"\")","v":""},{"$f":"IFERROR(VLOOKUP(D880,'Species List'!$I$16:$J$61,2,FALSE)*J880,\"\")","v":""},{"$f":"IFERROR(VLOOKUP(D880,'Species List'!$I$66:$J$66,2,FALSE)*J880,\"\")","v":""},{"$f":"IFERROR(VLOOKUP(D880,'Species List'!$I$71:$J$82,2,FALSE)*J880,\"\")","v":""},0,null,null,null,null,null,null,{"$f":"IFERROR(INDEX('3 - Land Summary'!$B$21:$B$120,(MATCH(AD880,'3 - Land Summary'!$C$21:$C$120,0))),\"\")","v":""}]
[null,{"$f":"IFERROR(INDEX('3 - Land Summary'!$B$21:$B$120,(MATCH('4 - Species Breakdown'!$V881,'3 - Land Summary'!$C$21:$C$120,0))),\"\")","v":""},null,null,{"$f":"IF(OR(COUNTIF('Look Up Data'!$D$149:$D$203,D881),COUNTIF('Look Up Data'!$D$149:$D$203,AE881)),\"YES\",\"NO\")","v":"NO"},null,null,{"$f":"IFERROR(INDEX('3 - Land Summary'!$G$21:$G$120,(MATCH(C881,'3 - Land Summary'!$C$21:$C$120,0))),\"\")","v":""},{"$f":"IFERROR(INDEX('3 - Land Summary'!$I$21:$I$120,(MATCH(C881,'3 - Land Summary'!$C$21:$C$120,0))),\"\")","v":""},"","",null,null,null,{"$f":"IFERROR(VLOOKUP(D881,'Species List'!$D$10:$E$46,2,FALSE)*J881,\"\")","v":""},{"$f":"IFERROR(VLOOKUP(D881,'Species List'!$D$51:$E$89,2,FALSE)*J881,\"\")","v":""},{"$f":"IFERROR(VLOOKUP(D881,'Species List'!$D$95:$E$102,2,FALSE)*J881,\"\")","v":""},{"$f":"IFERROR(VLOOKUP(D881,'Species List'!$I$10:$J$11,2,FALSE)*J881,\"\")","v":""},{"$f":"IFERROR(VLOOKUP(D881,'Species List'!$I$16:$J$61,2,FALSE)*J881,\"\")","v":""},{"$f":"IFERROR(VLOOKUP(D881,'Species List'!$I$66:$J$66,2,FALSE)*J881,\"\")","v":""},{"$f":"IFERROR(VLOOKUP(D881,'Species List'!$I$71:$J$82,2,FALSE)*J881,\"\")","v":""},0,null,null,null,null,null,null,{"$f":"IFERROR(INDEX('3 - Land Summary'!$B$21:$B$120,(MATCH(AD881,'3 - Land Summary'!$C$21:$C$120,0))),\"\")","v":""}]
[null,{"$f":"IFERROR(INDEX('3 - Land Summary'!$B$21:$B$120,(MATCH('4 - Species Breakdown'!$V882,'3 - Land Summary'!$C$21:$C$120,0))),\"\")","v":""},null,null,{"$f":"IF(OR(COUNTIF('Look Up Data'!$D$149:$D$203,D882),COUNTIF('Look Up Data'!$D$149:$D$203,AE882)),\"YES\",\"NO\")","v":"NO"},null,null,{"$f":"IFERROR(INDEX('3 - Land Summary'!$G$21:$G$120,(MATCH(C882,'3 - Land Summary'!$C$21:$C$120,0))),\"\")","v":""},{"$f":"IFERROR(INDEX('3 - Land Summary'!$I$21:$I$120,(MATCH(C882,'3 - Land Summary'!$C$21:$C$120,0))),\"\")","v":""},"","",null,null,null,{"$f":"IFERROR(VLOOKUP(D882,'Species List'!$D$10:$E$46,2,FALSE)*J882,\"\")","v":""},{"$f":"IFERROR(VLOOKUP(D882,'Species List'!$D$51:$E$89,2,FALSE)*J882,\"\")","v":""},{"$f":"IFERROR(VLOOKUP(D882,'Species List'!$D$95:$E$102,2,FALSE)*J882,\"\")","v":""},{"$f":"IFERROR(VLOOKUP(D882,'Species List'!$I$10:$J$11,2,FALSE)*J882,\"\")","v":""},{"$f":"IFERROR(VLOOKUP(D882,'Species List'!$I$16:$J$61,2,FALSE)*J882,\"\")","v":""},{"$f":"IFERROR(VLOOKUP(D882,'Species List'!$I$66:$J$66,2,FALSE)*J882,\"\")","v":""},{"$f":"IFERROR(VLOOKUP(D882,'Species List'!$I$71:$J$82,2,FALSE)*J882,\"\")","v":""},0,null,null,null,null,null,null,{"$f":"IFERROR(INDEX('3 - Land Summary'!$B$21:$B$120,(MATCH(AD882,'3 - Land Summary'!$C$21:$C$120,0))),\"\")","v":""}]
[null,{"$f":"IFERROR(INDEX('3 - Land Summary'!$B$21:$B$120,(MATCH('4 - Species Breakdown'!$V883,'3 - Land Summary'!$C$21:$C$120,0))),\"\")","v":""},null,null,{"$f":"IF(OR(COUNTIF('Look Up Data'!$D$149:$D$203,D883),COUNTIF('Look Up Data'!$D$149:$D$203,AE883)),\"YES\",\"NO\")","v":"NO"},null,null,{"$f":"IFERROR(INDEX('3 - Land Summary'!$G$21:$G$120,(MATCH(C883,'3 - Land Summary'!$C$21:$C$120,0))),\"\")","v":""},{"$f":"IFERROR(INDEX('3 - Land Summary'!$I$21:$I$120,(MATCH(C883,'3 - Land Summary'!$C$21:$C$120,0))),\"\")","v":""},"","",null,null,null,{"$f":"IFERROR(VLOOKUP(D883,'Species List'!$D$10:$E$46,2,FALSE)*J883,\"\")","v":""},{"$f":"IFERROR(VLOOKUP(D883,'Species List'!$D$51:$E$89,2,FALSE)*J883,\"\")","v":""},{"$f":"IFERROR(VLOOKUP(D883,'Species List'!$D$95:$E$102,2,FALSE)*J883,\"\")","v":""},{"$f":"IFERROR(VLOOKUP(D883,'Species List'!$I$10:$J$11,2,FALSE)*J883,\"\")","v":""},{"$f":"IFERROR(VLOOKUP(D883,'Species List'!$I$16:$J$61,2,FALSE)*J883,\"\")","v":""},{"$f":"IFERROR(VLOOKUP(D883,'Species List'!$I$66:$J$66,2,FALSE)*J883,\"\")","v":""},{"$f":"IFERROR(VLOOKUP(D883,'Species List'!$I$71:$J$82,2,FALSE)*J883,\"\")","v":""},0,null,null,null,null,null,null,{"$f":"IFERROR(INDEX('3 - Land Summary'!$B$21:$B$120,(MATCH(AD883,'3 - Land Summary'!$C$21:$C$120,0))),\"\")","v":""}]
[null,{"$f":"IFERROR(INDEX('3 - Land Summary'!$B$21:$B$120,(MATCH('4 - Species Breakdown'!$V884,'3 - Land Summary'!$C$21:$C$120,0))),\"\")","v":""},null,null,{"$f":"IF(OR(COUNTIF('Look Up Data'!$D$149:$D$203,D884),COUNTIF('Look Up Data'!$D$149:$D$203,AE884)),\"YES\",\"NO\")","v":"NO"},null,null,{"$f":"IFERROR(INDEX('3 - Land Summary'!$G$21:$G$120,(MATCH(C884,'3 - Land Summary'!$C$21:$C$120,0))),\"\")","v":""},{"$f":"IFERROR(INDEX('3 - Land Summary'!$I$21:$I$120,(MATCH(C884,'3 - Land Summary'!$C$21:$C$120,0))),\"\")","v":""},"","",null,null,null,{"$f":"IFERROR(VLOOKUP(D884,'Species List'!$D$10:$E$46,2,FALSE)*J884,\"\")","v":""},{"$f":"IFERROR(VLOOKUP(D884,'Species List'!$D$51:$E$89,2,FALSE)*J884,\"\")","v":""},{"$f":"IFERROR(VLOOKUP(D884,'Species List'!$D$95:$E$102,2,FALSE)*J884,\"\")","v":""},{"$f":"IFERROR(VLOOKUP(D884,'Species List'!$I$10:$J$11,2,FALSE)*J884,\"\")","v":""},{"$f":"IFERROR(VLOOKUP(D884,'Species List'!$I$16:$J$61,2,FALSE)*J884,\"\")","v":""},{"$f":"IFERROR(VLOOKUP(D884,'Species List'!$I$66:$J$66,2,FALSE)*J884,\"\")","v":""},{"$f":"IFERROR(VLOOKUP(D884,'Species List'!$I$71:$J$82,2,FALSE)*J884,\"\")","v":""},0,null,null,null,null,null,null,{"$f":"IFERROR(INDEX('3 - Land Summary'!$B$21:$B$120,(MATCH(AD884,'3 - Land Summary'!$C$21:$C$120,0))),\"\")","v":""}]
[null,{"$f":"IFERROR(INDEX('3 - Land Summary'!$B$21:$B$120,(MATCH('4 - Species Breakdown'!$V885,'3 - Land Summary'!$C$21:$C$120,0))),\"\")","v":""},null,null,{"$f":"IF(OR(COUNTIF('Look Up Data'!$D$149:$D$203,D885),COUNTIF('Look Up Data'!$D$149:$D$203,AE885)),\"YES\",\"NO\")","v":"NO"},null,null,{"$f":"IFERROR(INDEX('3 - Land Summary'!$G$21:$G$120,(MATCH(C885,'3 - Land Summary'!$C$21:$C$120,0))),\"\")","v":""},{"$f":"IFERROR(INDEX('3 - Land Summary'!$I$21:$I$120,(MATCH(C885,'3 - Land Summary'!$C$21:$C$120,0))),\"\")","v":""},"","",null,null,null,{"$f":"IFERROR(VLOOKUP(D885,'Species List'!$D$10:$E$46,2,FALSE)*J885,\"\")","v":""},{"$f":"IFERROR(VLOOKUP(D885,'Species List'!$D$51:$E$89,2,FALSE)*J885,\"\")","v":""},{"$f":"IFERROR(VLOOKUP(D885,'Species List'!$D$95:$E$102,2,FALSE)*J885,\"\")","v":""},{"$f":"IFERROR(VLOOKUP(D885,'Species List'!$I$10:$J$11,2,FALSE)*J885,\"\")","v":""},{"$f":"IFERROR(VLOOKUP(D885,'Species List'!$I$16:$J$61,2,FALSE)*J885,\"\")","v":""},{"$f":"IFERROR(VLOOKUP(D885,'Species List'!$I$66:$J$66,2,FALSE)*J885,\"\")","v":""},{"$f":"IFERROR(VLOOKUP(D885,'Species List'!$I$71:$J$82,2,FALSE)*J885,\"\")","v":""},0,null,null,null,null,null,null,{"$f":"IFERROR(INDEX('3 - Land Summary'!$B$21:$B$120,(MATCH(AD885,'3 - Land Summary'!$C$21:$C$120,0))),\"\")","v":""}]
[null,{"$f":"IFERROR(INDEX('3 - Land Summary'!$B$21:$B$120,(MATCH('4 - Species Breakdown'!$V886,'3 - Land Summary'!$C$21:$C$120,0))),\"\")","v":""},null,null,{"$f":"IF(OR(COUNTIF('Look Up Data'!$D$149:$D$203,D886),COUNTIF('Look Up Data'!$D$149:$D$203,AE886)),\"YES\",\"NO\")","v":"NO"},null,null,{"$f":"IFERROR(INDEX('3 - Land Summary'!$G$21:$G$120,(MATCH(C886,'3 - Land Summary'!$C$21:$C$120,0))),\"\")","v":""},{"$f":"IFERROR(INDEX('3 - Land Summary'!$I$21:$I$120,(MATCH(C886,'3 - Land Summary'!$C$21:$C$120,0))),\"\")","v":""},"","",null,null,null,{"$f":"IFERROR(VLOOKUP(D886,'Species List'!$D$10:$E$46,2,FALSE)*J886,\"\")","v":""},{"$f":"IFERROR(VLOOKUP(D886,'Species List'!$D$51:$E$89,2,FALSE)*J886,\"\")","v":""},{"$f":"IFERROR(VLOOKUP(D886,'Species List'!$D$95:$E$102,2,FALSE)*J886,\"\")","v":""},{"$f":"IFERROR(VLOOKUP(D886,'Species List'!$I$10:$J$11,2,FALSE)*J886,\"\")","v":""},{"$f":"IFERROR(VLOOKUP(D886,'Species List'!$I$16:$J$61,2,FALSE)*J886,\"\")","v":""},{"$f":"IFERROR(VLOOKUP(D886,'Species List'!$I$66:$J$66,2,FALSE)*J886,\"\")","v":""},{"$f":"IFERROR(VLOOKUP(D886,'Species List'!$I$71:$J$82,2,FALSE)*J886,\"\")","v":""},0,null,null,null,null,null,null,{"$f":"IFERROR(INDEX('3 - Land Summary'!$B$21:$B$120,(MATCH(AD886,'3 - Land Summary'!$C$21:$C$120,0))),\"\")","v":""}]
[null,{"$f":"IFERROR(INDEX('3 - Land Summary'!$B$21:$B$120,(MATCH('4 - Species Breakdown'!$V887,'3 - Land Summary'!$C$21:$C$120,0))),\"\")","v":""},null,null,{"$f":"IF(OR(COUNTIF('Look Up Data'!$D$149:$D$203,D887),COUNTIF('Look Up Data'!$D$149:$D$203,AE887)),\"YES\",\"NO\")","v":"NO"},null,null,{"$f":"IFERROR(INDEX('3 - Land Summary'!$G$21:$G$120,(MATCH(C887,'3 - Land Summary'!$C$21:$C$120,0))),\"\")","v":""},{"$f":"IFERROR(INDEX('3 - Land Summary'!$I$21:$I$120,(MATCH(C887,'3 - Land Summary'!$C$21:$C$120,0))),\"\")","v":""},"","",null,null,null,{"$f":"IFERROR(VLOOKUP(D887,'Species List'!$D$10:$E$46,2,FALSE)*J887,\"\")","v":""},{"$f":"IFERROR(VLOOKUP(D887,'Species List'!$D$51:$E$89,2,FALSE)*J887,\"\")","v":""},{"$f":"IFERROR(VLOOKUP(D887,'Species List'!$D$95:$E$102,2,FALSE)*J887,\"\")","v":""},{"$f":"IFERROR(VLOOKUP(D887,'Species List'!$I$10:$J$11,2,FALSE)*J887,\"\")","v":""},{"$f":"IFERROR(VLOOKUP(D887,'Species List'!$I$16:$J$61,2,FALSE)*J887,\"\")","v":""},{"$f":"IFERROR(VLOOKUP(D887,'Species List'!$I$66:$J$66,2,FALSE)*J887,\"\")","v":""},{"$f":"IFERROR(VLOOKUP(D887,'Species List'!$I$71:$J$82,2,FALSE)*J887,\"\")","v":""},0,null,null,null,null,null,null,{"$f":"IFERROR(INDEX('3 - Land Summary'!$B$21:$B$120,(MATCH(AD887,'3 - Land Summary'!$C$21:$C$120,0))),\"\")","v":""}]
[null,{"$f":"IFERROR(INDEX('3 - Land Summary'!$B$21:$B$120,(MATCH('4 - Species Breakdown'!$V888,'3 - Land Summary'!$C$21:$C$120,0))),\"\")","v":""},null,null,{"$f":"IF(OR(COUNTIF('Look Up Data'!$D$149:$D$203,D888),COUNTIF('Look Up Data'!$D$149:$D$203,AE888)),\"YES\",\"NO\")","v":"NO"},null,null,{"$f":"IFERROR(INDEX('3 - Land Summary'!$G$21:$G$120,(MATCH(C888,'3 - Land Summary'!$C$21:$C$120,0))),\"\")","v":""},{"$f":"IFERROR(INDEX('3 - Land Summary'!$I$21:$I$120,(MATCH(C888,'3 - Land Summary'!$C$21:$C$120,0))),\"\")","v":""},"","",null,null,null,{"$f":"IFERROR(VLOOKUP(D888,'Species List'!$D$10:$E$46,2,FALSE)*J888,\"\")","v":""},{"$f":"IFERROR(VLOOKUP(D888,'Species List'!$D$51:$E$89,2,FALSE)*J888,\"\")","v":""},{"$f":"IFERROR(VLOOKUP(D888,'Species List'!$D$95:$E$102,2,FALSE)*J888,\"\")","v":""},{"$f":"IFERROR(VLOOKUP(D888,'Species List'!$I$10:$J$11,2,FALSE)*J888,\"\")","v":""},{"$f":"IFERROR(VLOOKUP(D888,'Species List'!$I$16:$J$61,2,FALSE)*J888,\"\")","v":""},{"$f":"IFERROR(VLOOKUP(D888,'Species List'!$I$66:$J$66,2,FALSE)*J888,\"\")","v":""},{"$f":"IFERROR(VLOOKUP(D888,'Species List'!$I$71:$J$82,2,FALSE)*J888,\"\")","v":""},0,null,null,null,null,null,null,{"$f":"IFERROR(INDEX('3 - Land Summary'!$B$21:$B$120,(MATCH(AD888,'3 - Land Summary'!$C$21:$C$120,0))),\"\")","v":""}]
[null,{"$f":"IFERROR(INDEX('3 - Land Summary'!$B$21:$B$120,(MATCH('4 - Species Breakdown'!$V889,'3 - Land Summary'!$C$21:$C$120,0))),\"\")","v":""},null,null,{"$f":"IF(OR(COUNTIF('Look Up Data'!$D$149:$D$203,D889),COUNTIF('Look Up Data'!$D$149:$D$203,AE889)),\"YES\",\"NO\")","v":"NO"},null,null,{"$f":"IFERROR(INDEX('3 - Land Summary'!$G$21:$G$120,(MATCH(C889,'3 - Land Summary'!$C$21:$C$120,0))),\"\")","v":""},{"$f":"IFERROR(INDEX('3 - Land Summary'!$I$21:$I$120,(MATCH(C889,'3 - Land Summary'!$C$21:$C$120,0))),\"\")","v":""},"","",null,null,null,{"$f":"IFERROR(VLOOKUP(D889,'Species List'!$D$10:$E$46,2,FALSE)*J889,\"\")","v":""},{"$f":"IFERROR(VLOOKUP(D889,'Species List'!$D$51:$E$89,2,FALSE)*J889,\"\")","v":""},{"$f":"IFERROR(VLOOKUP(D889,'Species List'!$D$95:$E$102,2,FALSE)*J889,\"\")","v":""},{"$f":"IFERROR(VLOOKUP(D889,'Species List'!$I$10:$J$11,2,FALSE)*J889,\"\")","v":""},{"$f":"IFERROR(VLOOKUP(D889,'Species List'!$I$16:$J$61,2,FALSE)*J889,\"\")","v":""},{"$f":"IFERROR(VLOOKUP(D889,'Species List'!$I$66:$J$66,2,FALSE)*J889,\"\")","v":""},{"$f":"IFERROR(VLOOKUP(D889,'Species List'!$I$71:$J$82,2,FALSE)*J889,\"\")","v":""},0,null,null,null,null,null,null,{"$f":"IFERROR(INDEX('3 - Land Summary'!$B$21:$B$120,(MATCH(AD889,'3 - Land Summary'!$C$21:$C$120,0))),\"\")","v":""}]
[null,{"$f":"IFERROR(INDEX('3 - Land Summary'!$B$21:$B$120,(MATCH('4 - Species Breakdown'!$V890,'3 - Land Summary'!$C$21:$C$120,0))),\"\")","v":""},null,null,{"$f":"IF(OR(COUNTIF('Look Up Data'!$D$149:$D$203,D890),COUNTIF('Look Up Data'!$D$149:$D$203,AE890)),\"YES\",\"NO\")","v":"NO"},null,null,{"$f":"IFERROR(INDEX('3 - Land Summary'!$G$21:$G$120,(MATCH(C890,'3 - Land Summary'!$C$21:$C$120,0))),\"\")","v":""},{"$f":"IFERROR(INDEX('3 - Land Summary'!$I$21:$I$120,(MATCH(C890,'3 - Land Summary'!$C$21:$C$120,0))),\"\")","v":""},"","",null,null,null,{"$f":"IFERROR(VLOOKUP(D890,'Species List'!$D$10:$E$46,2,FALSE)*J890,\"\")","v":""},{"$f":"IFERROR(VLOOKUP(D890,'Species List'!$D$51:$E$89,2,FALSE)*J890,\"\")","v":""},{"$f":"IFERROR(VLOOKUP(D890,'Species List'!$D$95:$E$102,2,FALSE)*J890,\"\")","v":""},{"$f":"IFERROR(VLOOKUP(D890,'Species List'!$I$10:$J$11,2,FALSE)*J890,\"\")","v":""},{"$f":"IFERROR(VLOOKUP(D890,'Species List'!$I$16:$J$61,2,FALSE)*J890,\"\")","v":""},{"$f":"IFERROR(VLOOKUP(D890,'Species List'!$I$66:$J$66,2,FALSE)*J890,\"\")","v":""},{"$f":"IFERROR(VLOOKUP(D890,'Species List'!$I$71:$J$82,2,FALSE)*J890,\"\")","v":""},0,null,null,null,null,null,null,{"$f":"IFERROR(INDEX('3 - Land Summary'!$B$21:$B$120,(MATCH(AD890,'3 - Land Summary'!$C$21:$C$120,0))),\"\")","v":""}]
[null,{"$f":"IFERROR(INDEX('3 - Land Summary'!$B$21:$B$120,(MATCH('4 - Species Breakdown'!$V891,'3 - Land Summary'!$C$21:$C$120,0))),\"\")","v":""},null,null,{"$f":"IF(OR(COUNTIF('Look Up Data'!$D$149:$D$203,D891),COUNTIF('Look Up Data'!$D$149:$D$203,AE891)),\"YES\",\"NO\")","v":"NO"},null,null,{"$f":"IFERROR(INDEX('3 - Land Summary'!$G$21:$G$120,(MATCH(C891,'3 - Land Summary'!$C$21:$C$120,0))),\"\")","v":""},{"$f":"IFERROR(INDEX('3 - Land Summary'!$I$21:$I$120,(MATCH(C891,'3 - Land Summary'!$C$21:$C$120,0))),\"\")","v":""},"","",null,null,null,{"$f":"IFERROR(VLOOKUP(D891,'Species List'!$D$10:$E$46,2,FALSE)*J891,\"\")","v":""},{"$f":"IFERROR(VLOOKUP(D891,'Species List'!$D$51:$E$89,2,FALSE)*J891,\"\")","v":""},{"$f":"IFERROR(VLOOKUP(D891,'Species List'!$D$95:$E$102,2,FALSE)*J891,\"\")","v":""},{"$f":"IFERROR(VLOOKUP(D891,'Species List'!$I$10:$J$11,2,FALSE)*J891,\"\")","v":""},{"$f":"IFERROR(VLOOKUP(D891,'Species List'!$I$16:$J$61,2,FALSE)*J891,\"\")","v":""},{"$f":"IFERROR(VLOOKUP(D891,'Species List'!$I$66:$J$66,2,FALSE)*J891,\"\")","v":""},{"$f":"IFERROR(VLOOKUP(D891,'Species List'!$I$71:$J$82,2,FALSE)*J891,\"\")","v":""},0,null,null,null,null,null,null,{"$f":"IFERROR(INDEX('3 - Land Summary'!$B$21:$B$120,(MATCH(AD891,'3 - Land Summary'!$C$21:$C$120,0))),\"\")","v":""}]
[null,{"$f":"IFERROR(INDEX('3 - Land Summary'!$B$21:$B$120,(MATCH('4 - Species Breakdown'!$V892,'3 - Land Summary'!$C$21:$C$120,0))),\"\")","v":""},null,null,{"$f":"IF(OR(COUNTIF('Look Up Data'!$D$149:$D$203,D892),COUNTIF('Look Up Data'!$D$149:$D$203,AE892)),\"YES\",\"NO\")","v":"NO"},null,null,{"$f":"IFERROR(INDEX('3 - Land Summary'!$G$21:$G$120,(MATCH(C892,'3 - Land Summary'!$C$21:$C$120,0))),\"\")","v":""},{"$f":"IFERROR(INDEX('3 - Land Summary'!$I$21:$I$120,(MATCH(C892,'3 - Land Summary'!$C$21:$C$120,0))),\"\")","v":""},"","",null,null,null,{"$f":"IFERROR(VLOOKUP(D892,'Species List'!$D$10:$E$46,2,FALSE)*J892,\"\")","v":""},{"$f":"IFERROR(VLOOKUP(D892,'Species List'!$D$51:$E$89,2,FALSE)*J892,\"\")","v":""},{"$f":"IFERROR(VLOOKUP(D892,'Species List'!$D$95:$E$102,2,FALSE)*J892,\"\")","v":""},{"$f":"IFERROR(VLOOKUP(D892,'Species List'!$I$10:$J$11,2,FALSE)*J892,\"\")","v":""},{"$f":"IFERROR(VLOOKUP(D892,'Species List'!$I$16:$J$61,2,FALSE)*J892,\"\")","v":""},{"$f":"IFERROR(VLOOKUP(D892,'Species List'!$I$66:$J$66,2,FALSE)*J892,\"\")","v":""},{"$f":"IFERROR(VLOOKUP(D892,'Species List'!$I$71:$J$82,2,FALSE)*J892,\"\")","v":""},0,null,null,null,null,null,null,{"$f":"IFERROR(INDEX('3 - Land Summary'!$B$21:$B$120,(MATCH(AD892,'3 - Land Summary'!$C$21:$C$120,0))),\"\")","v":""}]
[null,{"$f":"IFERROR(INDEX('3 - Land Summary'!$B$21:$B$120,(MATCH('4 - Species Breakdown'!$V893,'3 - Land Summary'!$C$21:$C$120,0))),\"\")","v":""},null,null,{"$f":"IF(OR(COUNTIF('Look Up Data'!$D$149:$D$203,D893),COUNTIF('Look Up Data'!$D$149:$D$203,AE893)),\"YES\",\"NO\")","v":"NO"},null,null,{"$f":"IFERROR(INDEX('3 - Land Summary'!$G$21:$G$120,(MATCH(C893,'3 - Land Summary'!$C$21:$C$120,0))),\"\")","v":""},{"$f":"IFERROR(INDEX('3 - Land Summary'!$I$21:$I$120,(MATCH(C893,'3 - Land Summary'!$C$21:$C$120,0))),\"\")","v":""},"","",null,null,null,{"$f":"IFERROR(VLOOKUP(D893,'Species List'!$D$10:$E$46,2,FALSE)*J893,\"\")","v":""},{"$f":"IFERROR(VLOOKUP(D893,'Species List'!$D$51:$E$89,2,FALSE)*J893,\"\")","v":""},{"$f":"IFERROR(VLOOKUP(D893,'Species List'!$D$95:$E$102,2,FALSE)*J893,\"\")","v":""},{"$f":"IFERROR(VLOOKUP(D893,'Species List'!$I$10:$J$11,2,FALSE)*J893,\"\")","v":""},{"$f":"IFERROR(VLOOKUP(D893,'Species List'!$I$16:$J$61,2,FALSE)*J893,\"\")","v":""},{"$f":"IFERROR(VLOOKUP(D893,'Species List'!$I$66:$J$66,2,FALSE)*J893,\"\")","v":""},{"$f":"IFERROR(VLOOKUP(D893,'Species List'!$I$71:$J$82,2,FALSE)*J893,\"\")","v":""},0,null,null,null,null,null,null,{"$f":"IFERROR(INDEX('3 - Land Summary'!$B$21:$B$120,(MATCH(AD893,'3 - Land Summary'!$C$21:$C$120,0))),\"\")","v":""}]
[null,{"$f":"IFERROR(INDEX('3 - Land Summary'!$B$21:$B$120,(MATCH('4 - Species Breakdown'!$V894,'3 - Land Summary'!$C$21:$C$120,0))),\"\")","v":""},null,null,{"$f":"IF(OR(COUNTIF('Look Up Data'!$D$149:$D$203,D894),COUNTIF('Look Up Data'!$D$149:$D$203,AE894)),\"YES\",\"NO\")","v":"NO"},null,null,{"$f":"IFERROR(INDEX('3 - Land Summary'!$G$21:$G$120,(MATCH(C894,'3 - Land Summary'!$C$21:$C$120,0))),\"\")","v":""},{"$f":"IFERROR(INDEX('3 - Land Summary'!$I$21:$I$120,(MATCH(C894,'3 - Land Summary'!$C$21:$C$120,0))),\"\")","v":""},"","",null,null,null,{"$f":"IFERROR(VLOOKUP(D894,'Species List'!$D$10:$E$46,2,FALSE)*J894,\"\")","v":""},{"$f":"IFERROR(VLOOKUP(D894,'Species List'!$D$51:$E$89,2,FALSE)*J894,\"\")","v":""},{"$f":"IFERROR(VLOOKUP(D894,'Species List'!$D$95:$E$102,2,FALSE)*J894,\"\")","v":""},{"$f":"IFERROR(VLOOKUP(D894,'Species List'!$I$10:$J$11,2,FALSE)*J894,\"\")","v":""},{"$f":"IFERROR(VLOOKUP(D894,'Species List'!$I$16:$J$61,2,FALSE)*J894,\"\")","v":""},{"$f":"IFERROR(VLOOKUP(D894,'Species List'!$I$66:$J$66,2,FALSE)*J894,\"\")","v":""},{"$f":"IFERROR(VLOOKUP(D894,'Species List'!$I$71:$J$82,2,FALSE)*J894,\"\")","v":""},0,null,null,null,null,null,null,{"$f":"IFERROR(INDEX('3 - Land Summary'!$B$21:$B$120,(MATCH(AD894,'3 - Land Summary'!$C$21:$C$120,0))),\"\")","v":""}]
[null,{"$f":"IFERROR(INDEX('3 - Land Summary'!$B$21:$B$120,(MATCH('4 - Species Breakdown'!$V895,'3 - Land Summary'!$C$21:$C$120,0))),\"\")","v":""},null,null,{"$f":"IF(OR(COUNTIF('Look Up Data'!$D$149:$D$203,D895),COUNTIF('Look Up Data'!$D$149:$D$203,AE895)),\"YES\",\"NO\")","v":"NO"},null,null,{"$f":"IFERROR(INDEX('3 - Land Summary'!$G$21:$G$120,(MATCH(C895,'3 - Land Summary'!$C$21:$C$120,0))),\"\")","v":""},{"$f":"IFERROR(INDEX('3 - Land Summary'!$I$21:$I$120,(MATCH(C895,'3 - Land Summary'!$C$21:$C$120,0))),\"\")","v":""},"","",null,null,null,{"$f":"IFERROR(VLOOKUP(D895,'Species List'!$D$10:$E$46,2,FALSE)*J895,\"\")","v":""},{"$f":"IFERROR(VLOOKUP(D895,'Species List'!$D$51:$E$89,2,FALSE)*J895,\"\")","v":""},{"$f":"IFERROR(VLOOKUP(D895,'Species List'!$D$95:$E$102,2,FALSE)*J895,\"\")","v":""},{"$f":"IFERROR(VLOOKUP(D895,'Species List'!$I$10:$J$11,2,FALSE)*J895,\"\")","v":""},{"$f":"IFERROR(VLOOKUP(D895,'Species List'!$I$16:$J$61,2,FALSE)*J895,\"\")","v":""},{"$f":"IFERROR(VLOOKUP(D895,'Species List'!$I$66:$J$66,2,FALSE)*J895,\"\")","v":""},{"$f":"IFERROR(VLOOKUP(D895,'Species List'!$I$71:$J$82,2,FALSE)*J895,\"\")","v":""},0,null,null,null,null,null,null,{"$f":"IFERROR(INDEX('3 - Land Summary'!$B$21:$B$120,(MATCH(AD895,'3 - Land Summary'!$C$21:$C$120,0))),\"\")","v":""}]
[null,{"$f":"IFERROR(INDEX('3 - Land Summary'!$B$21:$B$120,(MATCH('4 - Species Breakdown'!$V896,'3 - Land Summary'!$C$21:$C$120,0))),\"\")","v":""},null,null,{"$f":"IF(OR(COUNTIF('Look Up Data'!$D$149:$D$203,D896),COUNTIF('Look Up Data'!$D$149:$D$203,AE896)),\"YES\",\"NO\")","v":"NO"},null,null,{"$f":"IFERROR(INDEX('3 - Land Summary'!$G$21:$G$120,(MATCH(C896,'3 - Land Summary'!$C$21:$C$120,0))),\"\")","v":""},{"$f":"IFERROR(INDEX('3 - Land Summary'!$I$21:$I$120,(MATCH(C896,'3 - Land Summary'!$C$21:$C$120,0))),\"\")","v":""},"","",null,null,null,{"$f":"IFERROR(VLOOKUP(D896,'Species List'!$D$10:$E$46,2,FALSE)*J896,\"\")","v":""},{"$f":"IFERROR(VLOOKUP(D896,'Species List'!$D$51:$E$89,2,FALSE)*J896,\"\")","v":""},{"$f":"IFERROR(VLOOKUP(D896,'Species List'!$D$95:$E$102,2,FALSE)*J896,\"\")","v":""},{"$f":"IFERROR(VLOOKUP(D896,'Species List'!$I$10:$J$11,2,FALSE)*J896,\"\")","v":""},{"$f":"IFERROR(VLOOKUP(D896,'Species List'!$I$16:$J$61,2,FALSE)*J896,\"\")","v":""},{"$f":"IFERROR(VLOOKUP(D896,'Species List'!$I$66:$J$66,2,FALSE)*J896,\"\")","v":""},{"$f":"IFERROR(VLOOKUP(D896,'Species List'!$I$71:$J$82,2,FALSE)*J896,\"\")","v":""},0,null,null,null,null,null,null,{"$f":"IFERROR(INDEX('3 - Land Summary'!$B$21:$B$120,(MATCH(AD896,'3 - Land Summary'!$C$21:$C$120,0))),\"\")","v":""}]
[null,{"$f":"IFERROR(INDEX('3 - Land Summary'!$B$21:$B$120,(MATCH('4 - Species Breakdown'!$V897,'3 - Land Summary'!$C$21:$C$120,0))),\"\")","v":""},null,null,{"$f":"IF(OR(COUNTIF('Look Up Data'!$D$149:$D$203,D897),COUNTIF('Look Up Data'!$D$149:$D$203,AE897)),\"YES\",\"NO\")","v":"NO"},null,null,{"$f":"IFERROR(INDEX('3 - Land Summary'!$G$21:$G$120,(MATCH(C897,'3 - Land Summary'!$C$21:$C$120,0))),\"\")","v":""},{"$f":"IFERROR(INDEX('3 - Land Summary'!$I$21:$I$120,(MATCH(C897,'3 - Land Summary'!$C$21:$C$120,0))),\"\")","v":""},"","",null,null,null,{"$f":"IFERROR(VLOOKUP(D897,'Species List'!$D$10:$E$46,2,FALSE)*J897,\"\")","v":""},{"$f":"IFERROR(VLOOKUP(D897,'Species List'!$D$51:$E$89,2,FALSE)*J897,\"\")","v":""},{"$f":"IFERROR(VLOOKUP(D897,'Species List'!$D$95:$E$102,2,FALSE)*J897,\"\")","v":""},{"$f":"IFERROR(VLOOKUP(D897,'Species List'!$I$10:$J$11,2,FALSE)*J897,\"\")","v":""},{"$f":"IFERROR(VLOOKUP(D897,'Species List'!$I$16:$J$61,2,FALSE)*J897,\"\")","v":""},{"$f":"IFERROR(VLOOKUP(D897,'Species List'!$I$66:$J$66,2,FALSE)*J897,\"\")","v":""},{"$f":"IFERROR(VLOOKUP(D897,'Species List'!$I$71:$J$82,2,FALSE)*J897,\"\")","v":""},0,null,null,null,null,null,null,{"$f":"IFERROR(INDEX('3 - Land Summary'!$B$21:$B$120,(MATCH(AD897,'3 - Land Summary'!$C$21:$C$120,0))),\"\")","v":""}]
[null,{"$f":"IFERROR(INDEX('3 - Land Summary'!$B$21:$B$120,(MATCH('4 - Species Breakdown'!$V898,'3 - Land Summary'!$C$21:$C$120,0))),\"\")","v":""},null,null,{"$f":"IF(OR(COUNTIF('Look Up Data'!$D$149:$D$203,D898),COUNTIF('Look Up Data'!$D$149:$D$203,AE898)),\"YES\",\"NO\")","v":"NO"},null,null,{"$f":"IFERROR(INDEX('3 - Land Summary'!$G$21:$G$120,(MATCH(C898,'3 - Land Summary'!$C$21:$C$120,0))),\"\")","v":""},{"$f":"IFERROR(INDEX('3 - Land Summary'!$I$21:$I$120,(MATCH(C898,'3 - Land Summary'!$C$21:$C$120,0))),\"\")","v":""},"","",null,null,null,{"$f":"IFERROR(VLOOKUP(D898,'Species List'!$D$10:$E$46,2,FALSE)*J898,\"\")","v":""},{"$f":"IFERROR(VLOOKUP(D898,'Species List'!$D$51:$E$89,2,FALSE)*J898,\"\")","v":""},{"$f":"IFERROR(VLOOKUP(D898,'Species List'!$D$95:$E$102,2,FALSE)*J898,\"\")","v":""},{"$f":"IFERROR(VLOOKUP(D898,'Species List'!$I$10:$J$11,2,FALSE)*J898,\"\")","v":""},{"$f":"IFERROR(VLOOKUP(D898,'Species List'!$I$16:$J$61,2,FALSE)*J898,\"\")","v":""},{"$f":"IFERROR(VLOOKUP(D898,'Species List'!$I$66:$J$66,2,FALSE)*J898,\"\")","v":""},{"$f":"IFERROR(VLOOKUP(D898,'Species List'!$I$71:$J$82,2,FALSE)*J898,\"\")","v":""},0,null,null,null,null,null,null,{"$f":"IFERROR(INDEX('3 - Land Summary'!$B$21:$B$120,(MATCH(AD898,'3 - Land Summary'!$C$21:$C$120,0))),\"\")","v":""}]
[null,{"$f":"IFERROR(INDEX('3 - Land Summary'!$B$21:$B$120,(MATCH('4 - Species Breakdown'!$V899,'3 - Land Summary'!$C$21:$C$120,0))),\"\")","v":""},null,null,{"$f":"IF(OR(COUNTIF('Look Up Data'!$D$149:$D$203,D899),COUNTIF('Look Up Data'!$D$149:$D$203,AE899)),\"YES\",\"NO\")","v":"NO"},null,null,{"$f":"IFERROR(INDEX('3 - Land Summary'!$G$21:$G$120,(MATCH(C899,'3 - Land Summary'!$C$21:$C$120,0))),\"\")","v":""},{"$f":"IFERROR(INDEX('3 - Land Summary'!$I$21:$I$120,(MATCH(C899,'3 - Land Summary'!$C$21:$C$120,0))),\"\")","v":""},"","",null,null,null,{"$f":"IFERROR(VLOOKUP(D899,'Species List'!$D$10:$E$46,2,FALSE)*J899,\"\")","v":""},{"$f":"IFERROR(VLOOKUP(D899,'Species List'!$D$51:$E$89,2,FALSE)*J899,\"\")","v":""},{"$f":"IFERROR(VLOOKUP(D899,'Species List'!$D$95:$E$102,2,FALSE)*J899,\"\")","v":""},{"$f":"IFERROR(VLOOKUP(D899,'Species List'!$I$10:$J$11,2,FALSE)*J899,\"\")","v":""},{"$f":"IFERROR(VLOOKUP(D899,'Species List'!$I$16:$J$61,2,FALSE)*J899,\"\")","v":""},{"$f":"IFERROR(VLOOKUP(D899,'Species List'!$I$66:$J$66,2,FALSE)*J899,\"\")","v":""},{"$f":"IFERROR(VLOOKUP(D899,'Species List'!$I$71:$J$82,2,FALSE)*J899,\"\")","v":""},0,null,null,null,null,null,null,{"$f":"IFERROR(INDEX('3 - Land Summary'!$B$21:$B$120,(MATCH(AD899,'3 - Land Summary'!$C$21:$C$120,0))),\"\")","v":""}]
[null,{"$f":"IFERROR(INDEX('3 - Land Summary'!$B$21:$B$120,(MATCH('4 - Species Breakdown'!$V900,'3 - Land Summary'!$C$21:$C$120,0))),\"\")","v":""},null,null,{"$f":"IF(OR(COUNTIF('Look Up Data'!$D$149:$D$203,D900),COUNTIF('Look Up Data'!$D$149:$D$203,AE900)),\"YES\",\"NO\")","v":"NO"},null,null,{"$f":"IFERROR(INDEX('3 - Land Summary'!$G$21:$G$120,(MATCH(C900,'3 - Land Summary'!$C$21:$C$120,0))),\"\")","v":""},{"$f":"IFERROR(INDEX('3 - Land Summary'!$I$21:$I$120,(MATCH(C900,'3 - Land Summary'!$C$21:$C$120,0))),\"\")","v":""},"","",null,null,null,{"$f":"IFERROR(VLOOKUP(D900,'Species List'!$D$10:$E$46,2,FALSE)*J900,\"\")","v":""},{"$f":"IFERROR(VLOOKUP(D900,'Species List'!$D$51:$E$89,2,FALSE)*J900,\"\")","v":""},{"$f":"IFERROR(VLOOKUP(D900,'Species List'!$D$95:$E$102,2,FALSE)*J900,\"\")","v":""},{"$f":"IFERROR(VLOOKUP(D900,'Species List'!$I$10:$J$11,2,FALSE)*J900,\"\")","v":""},{"$f":"IFERROR(VLOOKUP(D900,'Species List'!$I$16:$J$61,2,FALSE)*J900,\"\")","v":""},{"$f":"IFERROR(VLOOKUP(D900,'Species List'!$I$66:$J$66,2,FALSE)*J900,\"\")","v":""},{"$f":"IFERROR(VLOOKUP(D900,'Species List'!$I$71:$J$82,2,FALSE)*J900,\"\")","v":""},0,null,null,null,null,null,null,{"$f":"IFERROR(INDEX('3 - Land Summary'!$B$21:$B$120,(MATCH(AD900,'3 - Land Summary'!$C$21:$C$120,0))),\"\")","v":""}]
[null,{"$f":"IFERROR(INDEX('3 - Land Summary'!$B$21:$B$120,(MATCH('4 - Species Breakdown'!$V901,'3 - Land Summary'!$C$21:$C$120,0))),\"\")","v":""},null,null,{"$f":"IF(OR(COUNTIF('Look Up Data'!$D$149:$D$203,D901),COUNTIF('Look Up Data'!$D$149:$D$203,AE901)),\"YES\",\"NO\")","v":"NO"},null,null,{"$f":"IFERROR(INDEX('3 - Land Summary'!$G$21:$G$120,(MATCH(C901,'3 - Land Summary'!$C$21:$C$120,0))),\"\")","v":""},{"$f":"IFERROR(INDEX('3 - Land Summary'!$I$21:$I$120,(MATCH(C901,'3 - Land Summary'!$C$21:$C$120,0))),\"\")","v":""},"","",null,null,null,{"$f":"IFERROR(VLOOKUP(D901,'Species List'!$D$10:$E$46,2,FALSE)*J901,\"\")","v":""},{"$f":"IFERROR(VLOOKUP(D901,'Species List'!$D$51:$E$89,2,FALSE)*J901,\"\")","v":""},{"$f":"IFERROR(VLOOKUP(D901,'Species List'!$D$95:$E$102,2,FALSE)*J901,\"\")","v":""},{"$f":"IFERROR(VLOOKUP(D901,'Species List'!$I$10:$J$11,2,FALSE)*J901,\"\")","v":""},{"$f":"IFERROR(VLOOKUP(D901,'Species List'!$I$16:$J$61,2,FALSE)*J901,\"\")","v":""},{"$f":"IFERROR(VLOOKUP(D901,'Species List'!$I$66:$J$66,2,FALSE)*J901,\"\")","v":""},{"$f":"IFERROR(VLOOKUP(D901,'Species List'!$I$71:$J$82,2,FALSE)*J901,\"\")","v":""},0,null,null,null,null,null,null,{"$f":"IFERROR(INDEX('3 - Land Summary'!$B$21:$B$120,(MATCH(AD901,'3 - Land Summary'!$C$21:$C$120,0))),\"\")","v":""}]
[null,{"$f":"IFERROR(INDEX('3 - Land Summary'!$B$21:$B$120,(MATCH('4 - Species Breakdown'!$V902,'3 - Land Summary'!$C$21:$C$120,0))),\"\")","v":""},null,null,{"$f":"IF(OR(COUNTIF('Look Up Data'!$D$149:$D$203,D902),COUNTIF('Look Up Data'!$D$149:$D$203,AE902)),\"YES\",\"NO\")","v":"NO"},null,null,{"$f":"IFERROR(INDEX('3 - Land Summary'!$G$21:$G$120,(MATCH(C902,'3 - Land Summary'!$C$21:$C$120,0))),\"\")","v":""},{"$f":"IFERROR(INDEX('3 - Land Summary'!$I$21:$I$120,(MATCH(C902,'3 - Land Summary'!$C$21:$C$120,0))),\"\")","v":""},"","",null,null,null,{"$f":"IFERROR(VLOOKUP(D902,'Species List'!$D$10:$E$46,2,FALSE)*J902,\"\")","v":""},{"$f":"IFERROR(VLOOKUP(D902,'Species List'!$D$51:$E$89,2,FALSE)*J902,\"\")","v":""},{"$f":"IFERROR(VLOOKUP(D902,'Species List'!$D$95:$E$102,2,FALSE)*J902,\"\")","v":""},{"$f":"IFERROR(VLOOKUP(D902,'Species List'!$I$10:$J$11,2,FALSE)*J902,\"\")","v":""},{"$f":"IFERROR(VLOOKUP(D902,'Species List'!$I$16:$J$61,2,FALSE)*J902,\"\")","v":""},{"$f":"IFERROR(VLOOKUP(D902,'Species List'!$I$66:$J$66,2,FALSE)*J902,\"\")","v":""},{"$f":"IFERROR(VLOOKUP(D902,'Species List'!$I$71:$J$82,2,FALSE)*J902,\"\")","v":""},0,null,null,null,null,null,null,{"$f":"IFERROR(INDEX('3 - Land Summary'!$B$21:$B$120,(MATCH(AD902,'3 - Land Summary'!$C$21:$C$120,0))),\"\")","v":""}]
[null,{"$f":"IFERROR(INDEX('3 - Land Summary'!$B$21:$B$120,(MATCH('4 - Species Breakdown'!$V903,'3 - Land Summary'!$C$21:$C$120,0))),\"\")","v":""},null,null,{"$f":"IF(OR(COUNTIF('Look Up Data'!$D$149:$D$203,D903),COUNTIF('Look Up Data'!$D$149:$D$203,AE903)),\"YES\",\"NO\")","v":"NO"},null,null,{"$f":"IFERROR(INDEX('3 - Land Summary'!$G$21:$G$120,(MATCH(C903,'3 - Land Summary'!$C$21:$C$120,0))),\"\")","v":""},{"$f":"IFERROR(INDEX('3 - Land Summary'!$I$21:$I$120,(MATCH(C903,'3 - Land Summary'!$C$21:$C$120,0))),\"\")","v":""},"","",null,null,null,{"$f":"IFERROR(VLOOKUP(D903,'Species List'!$D$10:$E$46,2,FALSE)*J903,\"\")","v":""},{"$f":"IFERROR(VLOOKUP(D903,'Species List'!$D$51:$E$89,2,FALSE)*J903,\"\")","v":""},{"$f":"IFERROR(VLOOKUP(D903,'Species List'!$D$95:$E$102,2,FALSE)*J903,\"\")","v":""},{"$f":"IFERROR(VLOOKUP(D903,'Species List'!$I$10:$J$11,2,FALSE)*J903,\"\")","v":""},{"$f":"IFERROR(VLOOKUP(D903,'Species List'!$I$16:$J$61,2,FALSE)*J903,\"\")","v":""},{"$f":"IFERROR(VLOOKUP(D903,'Species List'!$I$66:$J$66,2,FALSE)*J903,\"\")","v":""},{"$f":"IFERROR(VLOOKUP(D903,'Species List'!$I$71:$J$82,2,FALSE)*J903,\"\")","v":""},0,null,null,null,null,null,null,{"$f":"IFERROR(INDEX('3 - Land Summary'!$B$21:$B$120,(MATCH(AD903,'3 - Land Summary'!$C$21:$C$120,0))),\"\")","v":""}]
[null,{"$f":"IFERROR(INDEX('3 - Land Summary'!$B$21:$B$120,(MATCH('4 - Species Breakdown'!$V904,'3 - Land Summary'!$C$21:$C$120,0))),\"\")","v":""},null,null,{"$f":"IF(OR(COUNTIF('Look Up Data'!$D$149:$D$203,D904),COUNTIF('Look Up Data'!$D$149:$D$203,AE904)),\"YES\",\"NO\")","v":"NO"},null,null,{"$f":"IFERROR(INDEX('3 - Land Summary'!$G$21:$G$120,(MATCH(C904,'3 - Land Summary'!$C$21:$C$120,0))),\"\")","v":""},{"$f":"IFERROR(INDEX('3 - Land Summary'!$I$21:$I$120,(MATCH(C904,'3 - Land Summary'!$C$21:$C$120,0))),\"\")","v":""},"","",null,null,null,{"$f":"IFERROR(VLOOKUP(D904,'Species List'!$D$10:$E$46,2,FALSE)*J904,\"\")","v":""},{"$f":"IFERROR(VLOOKUP(D904,'Species List'!$D$51:$E$89,2,FALSE)*J904,\"\")","v":""},{"$f":"IFERROR(VLOOKUP(D904,'Species List'!$D$95:$E$102,2,FALSE)*J904,\"\")","v":""},{"$f":"IFERROR(VLOOKUP(D904,'Species List'!$I$10:$J$11,2,FALSE)*J904,\"\")","v":""},{"$f":"IFERROR(VLOOKUP(D904,'Species List'!$I$16:$J$61,2,FALSE)*J904,\"\")","v":""},{"$f":"IFERROR(VLOOKUP(D904,'Species List'!$I$66:$J$66,2,FALSE)*J904,\"\")","v":""},{"$f":"IFERROR(VLOOKUP(D904,'Species List'!$I$71:$J$82,2,FALSE)*J904,\"\")","v":""},0,null,null,null,null,null,null,{"$f":"IFERROR(INDEX('3 - Land Summary'!$B$21:$B$120,(MATCH(AD904,'3 - Land Summary'!$C$21:$C$120,0))),\"\")","v":""}]
[null,{"$f":"IFERROR(INDEX('3 - Land Summary'!$B$21:$B$120,(MATCH('4 - Species Breakdown'!$V905,'3 - Land Summary'!$C$21:$C$120,0))),\"\")","v":""},null,null,{"$f":"IF(OR(COUNTIF('Look Up Data'!$D$149:$D$203,D905),COUNTIF('Look Up Data'!$D$149:$D$203,AE905)),\"YES\",\"NO\")","v":"NO"},null,null,{"$f":"IFERROR(INDEX('3 - Land Summary'!$G$21:$G$120,(MATCH(C905,'3 - Land Summary'!$C$21:$C$120,0))),\"\")","v":""},{"$f":"IFERROR(INDEX('3 - Land Summary'!$I$21:$I$120,(MATCH(C905,'3 - Land Summary'!$C$21:$C$120,0))),\"\")","v":""},"","",null,null,null,{"$f":"IFERROR(VLOOKUP(D905,'Species List'!$D$10:$E$46,2,FALSE)*J905,\"\")","v":""},{"$f":"IFERROR(VLOOKUP(D905,'Species List'!$D$51:$E$89,2,FALSE)*J905,\"\")","v":""},{"$f":"IFERROR(VLOOKUP(D905,'Species List'!$D$95:$E$102,2,FALSE)*J905,\"\")","v":""},{"$f":"IFERROR(VLOOKUP(D905,'Species List'!$I$10:$J$11,2,FALSE)*J905,\"\")","v":""},{"$f":"IFERROR(VLOOKUP(D905,'Species List'!$I$16:$J$61,2,FALSE)*J905,\"\")","v":""},{"$f":"IFERROR(VLOOKUP(D905,'Species List'!$I$66:$J$66,2,FALSE)*J905,\"\")","v":""},{"$f":"IFERROR(VLOOKUP(D905,'Species List'!$I$71:$J$82,2,FALSE)*J905,\"\")","v":""},0,null,null,null,null,null,null,{"$f":"IFERROR(INDEX('3 - Land Summary'!$B$21:$B$120,(MATCH(AD905,'3 - Land Summary'!$C$21:$C$120,0))),\"\")","v":""}]
[null,{"$f":"IFERROR(INDEX('3 - Land Summary'!$B$21:$B$120,(MATCH('4 - Species Breakdown'!$V906,'3 - Land Summary'!$C$21:$C$120,0))),\"\")","v":""},null,null,{"$f":"IF(OR(COUNTIF('Look Up Data'!$D$149:$D$203,D906),COUNTIF('Look Up Data'!$D$149:$D$203,AE906)),\"YES\",\"NO\")","v":"NO"},null,null,{"$f":"IFERROR(INDEX('3 - Land Summary'!$G$21:$G$120,(MATCH(C906,'3 - Land Summary'!$C$21:$C$120,0))),\"\")","v":""},{"$f":"IFERROR(INDEX('3 - Land Summary'!$I$21:$I$120,(MATCH(C906,'3 - Land Summary'!$C$21:$C$120,0))),\"\")","v":""},"","",null,null,null,{"$f":"IFERROR(VLOOKUP(D906,'Species List'!$D$10:$E$46,2,FALSE)*J906,\"\")","v":""},{"$f":"IFERROR(VLOOKUP(D906,'Species List'!$D$51:$E$89,2,FALSE)*J906,\"\")","v":""},{"$f":"IFERROR(VLOOKUP(D906,'Species List'!$D$95:$E$102,2,FALSE)*J906,\"\")","v":""},{"$f":"IFERROR(VLOOKUP(D906,'Species List'!$I$10:$J$11,2,FALSE)*J906,\"\")","v":""},{"$f":"IFERROR(VLOOKUP(D906,'Species List'!$I$16:$J$61,2,FALSE)*J906,\"\")","v":""},{"$f":"IFERROR(VLOOKUP(D906,'Species List'!$I$66:$J$66,2,FALSE)*J906,\"\")","v":""},{"$f":"IFERROR(VLOOKUP(D906,'Species List'!$I$71:$J$82,2,FALSE)*J906,\"\")","v":""},0,null,null,null,null,null,null,{"$f":"IFERROR(INDEX('3 - Land Summary'!$B$21:$B$120,(MATCH(AD906,'3 - Land Summary'!$C$21:$C$120,0))),\"\")","v":""}]
[null,{"$f":"IFERROR(INDEX('3 - Land Summary'!$B$21:$B$120,(MATCH('4 - Species Breakdown'!$V907,'3 - Land Summary'!$C$21:$C$120,0))),\"\")","v":""},null,null,{"$f":"IF(OR(COUNTIF('Look Up Data'!$D$149:$D$203,D907),COUNTIF('Look Up Data'!$D$149:$D$203,AE907)),\"YES\",\"NO\")","v":"NO"},null,null,{"$f":"IFERROR(INDEX('3 - Land Summary'!$G$21:$G$120,(MATCH(C907,'3 - Land Summary'!$C$21:$C$120,0))),\"\")","v":""},{"$f":"IFERROR(INDEX('3 - Land Summary'!$I$21:$I$120,(MATCH(C907,'3 - Land Summary'!$C$21:$C$120,0))),\"\")","v":""},"","",null,null,null,{"$f":"IFERROR(VLOOKUP(D907,'Species List'!$D$10:$E$46,2,FALSE)*J907,\"\")","v":""},{"$f":"IFERROR(VLOOKUP(D907,'Species List'!$D$51:$E$89,2,FALSE)*J907,\"\")","v":""},{"$f":"IFERROR(VLOOKUP(D907,'Species List'!$D$95:$E$102,2,FALSE)*J907,\"\")","v":""},{"$f":"IFERROR(VLOOKUP(D907,'Species List'!$I$10:$J$11,2,FALSE)*J907,\"\")","v":""},{"$f":"IFERROR(VLOOKUP(D907,'Species List'!$I$16:$J$61,2,FALSE)*J907,\"\")","v":""},{"$f":"IFERROR(VLOOKUP(D907,'Species List'!$I$66:$J$66,2,FALSE)*J907,\"\")","v":""},{"$f":"IFERROR(VLOOKUP(D907,'Species List'!$I$71:$J$82,2,FALSE)*J907,\"\")","v":""},0,null,null,null,null,null,null,{"$f":"IFERROR(INDEX('3 - Land Summary'!$B$21:$B$120,(MATCH(AD907,'3 - Land Summary'!$C$21:$C$120,0))),\"\")","v":""}]
[null,{"$f":"IFERROR(INDEX('3 - Land Summary'!$B$21:$B$120,(MATCH('4 - Species Breakdown'!$V908,'3 - Land Summary'!$C$21:$C$120,0))),\"\")","v":""},null,null,{"$f":"IF(OR(COUNTIF('Look Up Data'!$D$149:$D$203,D908),COUNTIF('Look Up Data'!$D$149:$D$203,AE908)),\"YES\",\"NO\")","v":"NO"},null,null,{"$f":"IFERROR(INDEX('3 - Land Summary'!$G$21:$G$120,(MATCH(C908,'3 - Land Summary'!$C$21:$C$120,0))),\"\")","v":""},{"$f":"IFERROR(INDEX('3 - Land Summary'!$I$21:$I$120,(MATCH(C908,'3 - Land Summary'!$C$21:$C$120,0))),\"\")","v":""},"","",null,null,null,{"$f":"IFERROR(VLOOKUP(D908,'Species List'!$D$10:$E$46,2,FALSE)*J908,\"\")","v":""},{"$f":"IFERROR(VLOOKUP(D908,'Species List'!$D$51:$E$89,2,FALSE)*J908,\"\")","v":""},{"$f":"IFERROR(VLOOKUP(D908,'Species List'!$D$95:$E$102,2,FALSE)*J908,\"\")","v":""},{"$f":"IFERROR(VLOOKUP(D908,'Species List'!$I$10:$J$11,2,FALSE)*J908,\"\")","v":""},{"$f":"IFERROR(VLOOKUP(D908,'Species List'!$I$16:$J$61,2,FALSE)*J908,\"\")","v":""},{"$f":"IFERROR(VLOOKUP(D908,'Species List'!$I$66:$J$66,2,FALSE)*J908,\"\")","v":""},{"$f":"IFERROR(VLOOKUP(D908,'Species List'!$I$71:$J$82,2,FALSE)*J908,\"\")","v":""},0,null,null,null,null,null,null,{"$f":"IFERROR(INDEX('3 - Land Summary'!$B$21:$B$120,(MATCH(AD908,'3 - Land Summary'!$C$21:$C$120,0))),\"\")","v":""}]
[null,{"$f":"IFERROR(INDEX('3 - Land Summary'!$B$21:$B$120,(MATCH('4 - Species Breakdown'!$V909,'3 - Land Summary'!$C$21:$C$120,0))),\"\")","v":""},null,null,{"$f":"IF(OR(COUNTIF('Look Up Data'!$D$149:$D$203,D909),COUNTIF('Look Up Data'!$D$149:$D$203,AE909)),\"YES\",\"NO\")","v":"NO"},null,null,{"$f":"IFERROR(INDEX('3 - Land Summary'!$G$21:$G$120,(MATCH(C909,'3 - Land Summary'!$C$21:$C$120,0))),\"\")","v":""},{"$f":"IFERROR(INDEX('3 - Land Summary'!$I$21:$I$120,(MATCH(C909,'3 - Land Summary'!$C$21:$C$120,0))),\"\")","v":""},"","",null,null,null,{"$f":"IFERROR(VLOOKUP(D909,'Species List'!$D$10:$E$46,2,FALSE)*J909,\"\")","v":""},{"$f":"IFERROR(VLOOKUP(D909,'Species List'!$D$51:$E$89,2,FALSE)*J909,\"\")","v":""},{"$f":"IFERROR(VLOOKUP(D909,'Species List'!$D$95:$E$102,2,FALSE)*J909,\"\")","v":""},{"$f":"IFERROR(VLOOKUP(D909,'Species List'!$I$10:$J$11,2,FALSE)*J909,\"\")","v":""},{"$f":"IFERROR(VLOOKUP(D909,'Species List'!$I$16:$J$61,2,FALSE)*J909,\"\")","v":""},{"$f":"IFERROR(VLOOKUP(D909,'Species List'!$I$66:$J$66,2,FALSE)*J909,\"\")","v":""},{"$f":"IFERROR(VLOOKUP(D909,'Species List'!$I$71:$J$82,2,FALSE)*J909,\"\")","v":""},0,null,null,null,null,null,null,{"$f":"IFERROR(INDEX('3 - Land Summary'!$B$21:$B$120,(MATCH(AD909,'3 - Land Summary'!$C$21:$C$120,0))),\"\")","v":""}]
[null,{"$f":"IFERROR(INDEX('3 - Land Summary'!$B$21:$B$120,(MATCH('4 - Species Breakdown'!$V910,'3 - Land Summary'!$C$21:$C$120,0))),\"\")","v":""},null,null,{"$f":"IF(OR(COUNTIF('Look Up Data'!$D$149:$D$203,D910),COUNTIF('Look Up Data'!$D$149:$D$203,AE910)),\"YES\",\"NO\")","v":"NO"},null,null,{"$f":"IFERROR(INDEX('3 - Land Summary'!$G$21:$G$120,(MATCH(C910,'3 - Land Summary'!$C$21:$C$120,0))),\"\")","v":""},{"$f":"IFERROR(INDEX('3 - Land Summary'!$I$21:$I$120,(MATCH(C910,'3 - Land Summary'!$C$21:$C$120,0))),\"\")","v":""},"","",null,null,null,{"$f":"IFERROR(VLOOKUP(D910,'Species List'!$D$10:$E$46,2,FALSE)*J910,\"\")","v":""},{"$f":"IFERROR(VLOOKUP(D910,'Species List'!$D$51:$E$89,2,FALSE)*J910,\"\")","v":""},{"$f":"IFERROR(VLOOKUP(D910,'Species List'!$D$95:$E$102,2,FALSE)*J910,\"\")","v":""},{"$f":"IFERROR(VLOOKUP(D910,'Species List'!$I$10:$J$11,2,FALSE)*J910,\"\")","v":""},{"$f":"IFERROR(VLOOKUP(D910,'Species List'!$I$16:$J$61,2,FALSE)*J910,\"\")","v":""},{"$f":"IFERROR(VLOOKUP(D910,'Species List'!$I$66:$J$66,2,FALSE)*J910,\"\")","v":""},{"$f":"IFERROR(VLOOKUP(D910,'Species List'!$I$71:$J$82,2,FALSE)*J910,\"\")","v":""},0,null,null,null,null,null,null,{"$f":"IFERROR(INDEX('3 - Land Summary'!$B$21:$B$120,(MATCH(AD910,'3 - Land Summary'!$C$21:$C$120,0))),\"\")","v":""}]
[null,{"$f":"IFERROR(INDEX('3 - Land Summary'!$B$21:$B$120,(MATCH('4 - Species Breakdown'!$V911,'3 - Land Summary'!$C$21:$C$120,0))),\"\")","v":""},null,null,{"$f":"IF(OR(COUNTIF('Look Up Data'!$D$149:$D$203,D911),COUNTIF('Look Up Data'!$D$149:$D$203,AE911)),\"YES\",\"NO\")","v":"NO"},null,null,{"$f":"IFERROR(INDEX('3 - Land Summary'!$G$21:$G$120,(MATCH(C911,'3 - Land Summary'!$C$21:$C$120,0))),\"\")","v":""},{"$f":"IFERROR(INDEX('3 - Land Summary'!$I$21:$I$120,(MATCH(C911,'3 - Land Summary'!$C$21:$C$120,0))),\"\")","v":""},"","",null,null,null,{"$f":"IFERROR(VLOOKUP(D911,'Species List'!$D$10:$E$46,2,FALSE)*J911,\"\")","v":""},{"$f":"IFERROR(VLOOKUP(D911,'Species List'!$D$51:$E$89,2,FALSE)*J911,\"\")","v":""},{"$f":"IFERROR(VLOOKUP(D911,'Species List'!$D$95:$E$102,2,FALSE)*J911,\"\")","v":""},{"$f":"IFERROR(VLOOKUP(D911,'Species List'!$I$10:$J$11,2,FALSE)*J911,\"\")","v":""},{"$f":"IFERROR(VLOOKUP(D911,'Species List'!$I$16:$J$61,2,FALSE)*J911,\"\")","v":""},{"$f":"IFERROR(VLOOKUP(D911,'Species List'!$I$66:$J$66,2,FALSE)*J911,\"\")","v":""},{"$f":"IFERROR(VLOOKUP(D911,'Species List'!$I$71:$J$82,2,FALSE)*J911,\"\")","v":""},0,null,null,null,null,null,null,{"$f":"IFERROR(INDEX('3 - Land Summary'!$B$21:$B$120,(MATCH(AD911,'3 - Land Summary'!$C$21:$C$120,0))),\"\")","v":""}]
[null,{"$f":"IFERROR(INDEX('3 - Land Summary'!$B$21:$B$120,(MATCH('4 - Species Breakdown'!$V912,'3 - Land Summary'!$C$21:$C$120,0))),\"\")","v":""},null,null,{"$f":"IF(OR(COUNTIF('Look Up Data'!$D$149:$D$203,D912),COUNTIF('Look Up Data'!$D$149:$D$203,AE912)),\"YES\",\"NO\")","v":"NO"},null,null,{"$f":"IFERROR(INDEX('3 - Land Summary'!$G$21:$G$120,(MATCH(C912,'3 - Land Summary'!$C$21:$C$120,0))),\"\")","v":""},{"$f":"IFERROR(INDEX('3 - Land Summary'!$I$21:$I$120,(MATCH(C912,'3 - Land Summary'!$C$21:$C$120,0))),\"\")","v":""},"","",null,null,null,{"$f":"IFERROR(VLOOKUP(D912,'Species List'!$D$10:$E$46,2,FALSE)*J912,\"\")","v":""},{"$f":"IFERROR(VLOOKUP(D912,'Species List'!$D$51:$E$89,2,FALSE)*J912,\"\")","v":""},{"$f":"IFERROR(VLOOKUP(D912,'Species List'!$D$95:$E$102,2,FALSE)*J912,\"\")","v":""},{"$f":"IFERROR(VLOOKUP(D912,'Species List'!$I$10:$J$11,2,FALSE)*J912,\"\")","v":""},{"$f":"IFERROR(VLOOKUP(D912,'Species List'!$I$16:$J$61,2,FALSE)*J912,\"\")","v":""},{"$f":"IFERROR(VLOOKUP(D912,'Species List'!$I$66:$J$66,2,FALSE)*J912,\"\")","v":""},{"$f":"IFERROR(VLOOKUP(D912,'Species List'!$I$71:$J$82,2,FALSE)*J912,\"\")","v":""},0,null,null,null,null,null,null,{"$f":"IFERROR(INDEX('3 - Land Summary'!$B$21:$B$120,(MATCH(AD912,'3 - Land Summary'!$C$21:$C$120,0))),\"\")","v":""}]
[null,{"$f":"IFERROR(INDEX('3 - Land Summary'!$B$21:$B$120,(MATCH('4 - Species Breakdown'!$V913,'3 - Land Summary'!$C$21:$C$120,0))),\"\")","v":""},null,null,{"$f":"IF(OR(COUNTIF('Look Up Data'!$D$149:$D$203,D913),COUNTIF('Look Up Data'!$D$149:$D$203,AE913)),\"YES\",\"NO\")","v":"NO"},null,null,{"$f":"IFERROR(INDEX('3 - Land Summary'!$G$21:$G$120,(MATCH(C913,'3 - Land Summary'!$C$21:$C$120,0))),\"\")","v":""},{"$f":"IFERROR(INDEX('3 - Land Summary'!$I$21:$I$120,(MATCH(C913,'3 - Land Summary'!$C$21:$C$120,0))),\"\")","v":""},"","",null,null,null,{"$f":"IFERROR(VLOOKUP(D913,'Species List'!$D$10:$E$46,2,FALSE)*J913,\"\")","v":""},{"$f":"IFERROR(VLOOKUP(D913,'Species List'!$D$51:$E$89,2,FALSE)*J913,\"\")","v":""},{"$f":"IFERROR(VLOOKUP(D913,'Species List'!$D$95:$E$102,2,FALSE)*J913,\"\")","v":""},{"$f":"IFERROR(VLOOKUP(D913,'Species List'!$I$10:$J$11,2,FALSE)*J913,\"\")","v":""},{"$f":"IFERROR(VLOOKUP(D913,'Species List'!$I$16:$J$61,2,FALSE)*J913,\"\")","v":""},{"$f":"IFERROR(VLOOKUP(D913,'Species List'!$I$66:$J$66,2,FALSE)*J913,\"\")","v":""},{"$f":"IFERROR(VLOOKUP(D913,'Species List'!$I$71:$J$82,2,FALSE)*J913,\"\")","v":""},0,null,null,null,null,null,null,{"$f":"IFERROR(INDEX('3 - Land Summary'!$B$21:$B$120,(MATCH(AD913,'3 - Land Summary'!$C$21:$C$120,0))),\"\")","v":""}]
[null,{"$f":"IFERROR(INDEX('3 - Land Summary'!$B$21:$B$120,(MATCH('4 - Species Breakdown'!$V914,'3 - Land Summary'!$C$21:$C$120,0))),\"\")","v":""},null,null,{"$f":"IF(OR(COUNTIF('Look Up Data'!$D$149:$D$203,D914),COUNTIF('Look Up Data'!$D$149:$D$203,AE914)),\"YES\",\"NO\")","v":"NO"},null,null,{"$f":"IFERROR(INDEX('3 - Land Summary'!$G$21:$G$120,(MATCH(C914,'3 - Land Summary'!$C$21:$C$120,0))),\"\")","v":""},{"$f":"IFERROR(INDEX('3 - Land Summary'!$I$21:$I$120,(MATCH(C914,'3 - Land Summary'!$C$21:$C$120,0))),\"\")","v":""},"","",null,null,null,{"$f":"IFERROR(VLOOKUP(D914,'Species List'!$D$10:$E$46,2,FALSE)*J914,\"\")","v":""},{"$f":"IFERROR(VLOOKUP(D914,'Species List'!$D$51:$E$89,2,FALSE)*J914,\"\")","v":""},{"$f":"IFERROR(VLOOKUP(D914,'Species List'!$D$95:$E$102,2,FALSE)*J914,\"\")","v":""},{"$f":"IFERROR(VLOOKUP(D914,'Species List'!$I$10:$J$11,2,FALSE)*J914,\"\")","v":""},{"$f":"IFERROR(VLOOKUP(D914,'Species List'!$I$16:$J$61,2,FALSE)*J914,\"\")","v":""},{"$f":"IFERROR(VLOOKUP(D914,'Species List'!$I$66:$J$66,2,FALSE)*J914,\"\")","v":""},{"$f":"IFERROR(VLOOKUP(D914,'Species List'!$I$71:$J$82,2,FALSE)*J914,\"\")","v":""},0,null,null,null,null,null,null,{"$f":"IFERROR(INDEX('3 - Land Summary'!$B$21:$B$120,(MATCH(AD914,'3 - Land Summary'!$C$21:$C$120,0))),\"\")","v":""}]
[null,{"$f":"IFERROR(INDEX('3 - Land Summary'!$B$21:$B$120,(MATCH('4 - Species Breakdown'!$V915,'3 - Land Summary'!$C$21:$C$120,0))),\"\")","v":""},null,null,{"$f":"IF(OR(COUNTIF('Look Up Data'!$D$149:$D$203,D915),COUNTIF('Look Up Data'!$D$149:$D$203,AE915)),\"YES\",\"NO\")","v":"NO"},null,null,{"$f":"IFERROR(INDEX('3 - Land Summary'!$G$21:$G$120,(MATCH(C915,'3 - Land Summary'!$C$21:$C$120,0))),\"\")","v":""},{"$f":"IFERROR(INDEX('3 - Land Summary'!$I$21:$I$120,(MATCH(C915,'3 - Land Summary'!$C$21:$C$120,0))),\"\")","v":""},"","",null,null,null,{"$f":"IFERROR(VLOOKUP(D915,'Species List'!$D$10:$E$46,2,FALSE)*J915,\"\")","v":""},{"$f":"IFERROR(VLOOKUP(D915,'Species List'!$D$51:$E$89,2,FALSE)*J915,\"\")","v":""},{"$f":"IFERROR(VLOOKUP(D915,'Species List'!$D$95:$E$102,2,FALSE)*J915,\"\")","v":""},{"$f":"IFERROR(VLOOKUP(D915,'Species List'!$I$10:$J$11,2,FALSE)*J915,\"\")","v":""},{"$f":"IFERROR(VLOOKUP(D915,'Species List'!$I$16:$J$61,2,FALSE)*J915,\"\")","v":""},{"$f":"IFERROR(VLOOKUP(D915,'Species List'!$I$66:$J$66,2,FALSE)*J915,\"\")","v":""},{"$f":"IFERROR(VLOOKUP(D915,'Species List'!$I$71:$J$82,2,FALSE)*J915,\"\")","v":""},0,null,null,null,null,null,null,{"$f":"IFERROR(INDEX('3 - Land Summary'!$B$21:$B$120,(MATCH(AD915,'3 - Land Summary'!$C$21:$C$120,0))),\"\")","v":""}]
[null,{"$f":"IFERROR(INDEX('3 - Land Summary'!$B$21:$B$120,(MATCH('4 - Species Breakdown'!$V916,'3 - Land Summary'!$C$21:$C$120,0))),\"\")","v":""},null,null,{"$f":"IF(OR(COUNTIF('Look Up Data'!$D$149:$D$203,D916),COUNTIF('Look Up Data'!$D$149:$D$203,AE916)),\"YES\",\"NO\")","v":"NO"},null,null,{"$f":"IFERROR(INDEX('3 - Land Summary'!$G$21:$G$120,(MATCH(C916,'3 - Land Summary'!$C$21:$C$120,0))),\"\")","v":""},{"$f":"IFERROR(INDEX('3 - Land Summary'!$I$21:$I$120,(MATCH(C916,'3 - Land Summary'!$C$21:$C$120,0))),\"\")","v":""},"","",null,null,null,{"$f":"IFERROR(VLOOKUP(D916,'Species List'!$D$10:$E$46,2,FALSE)*J916,\"\")","v":""},{"$f":"IFERROR(VLOOKUP(D916,'Species List'!$D$51:$E$89,2,FALSE)*J916,\"\")","v":""},{"$f":"IFERROR(VLOOKUP(D916,'Species List'!$D$95:$E$102,2,FALSE)*J916,\"\")","v":""},{"$f":"IFERROR(VLOOKUP(D916,'Species List'!$I$10:$J$11,2,FALSE)*J916,\"\")","v":""},{"$f":"IFERROR(VLOOKUP(D916,'Species List'!$I$16:$J$61,2,FALSE)*J916,\"\")","v":""},{"$f":"IFERROR(VLOOKUP(D916,'Species List'!$I$66:$J$66,2,FALSE)*J916,\"\")","v":""},{"$f":"IFERROR(VLOOKUP(D916,'Species List'!$I$71:$J$82,2,FALSE)*J916,\"\")","v":""},0,null,null,null,null,null,null,{"$f":"IFERROR(INDEX('3 - Land Summary'!$B$21:$B$120,(MATCH(AD916,'3 - Land Summary'!$C$21:$C$120,0))),\"\")","v":""}]
[null,{"$f":"IFERROR(INDEX('3 - Land Summary'!$B$21:$B$120,(MATCH('4 - Species Breakdown'!$V917,'3 - Land Summary'!$C$21:$C$120,0))),\"\")","v":""},null,null,{"$f":"IF(OR(COUNTIF('Look Up Data'!$D$149:$D$203,D917),COUNTIF('Look Up Data'!$D$149:$D$203,AE917)),\"YES\",\"NO\")","v":"NO"},null,null,{"$f":"IFERROR(INDEX('3 - Land Summary'!$G$21:$G$120,(MATCH(C917,'3 - Land Summary'!$C$21:$C$120,0))),\"\")","v":""},{"$f":"IFERROR(INDEX('3 - Land Summary'!$I$21:$I$120,(MATCH(C917,'3 - Land Summary'!$C$21:$C$120,0))),\"\")","v":""},"","",null,null,null,{"$f":"IFERROR(VLOOKUP(D917,'Species List'!$D$10:$E$46,2,FALSE)*J917,\"\")","v":""},{"$f":"IFERROR(VLOOKUP(D917,'Species List'!$D$51:$E$89,2,FALSE)*J917,\"\")","v":""},{"$f":"IFERROR(VLOOKUP(D917,'Species List'!$D$95:$E$102,2,FALSE)*J917,\"\")","v":""},{"$f":"IFERROR(VLOOKUP(D917,'Species List'!$I$10:$J$11,2,FALSE)*J917,\"\")","v":""},{"$f":"IFERROR(VLOOKUP(D917,'Species List'!$I$16:$J$61,2,FALSE)*J917,\"\")","v":""},{"$f":"IFERROR(VLOOKUP(D917,'Species List'!$I$66:$J$66,2,FALSE)*J917,\"\")","v":""},{"$f":"IFERROR(VLOOKUP(D917,'Species List'!$I$71:$J$82,2,FALSE)*J917,\"\")","v":""},0,null,null,null,null,null,null,{"$f":"IFERROR(INDEX('3 - Land Summary'!$B$21:$B$120,(MATCH(AD917,'3 - Land Summary'!$C$21:$C$120,0))),\"\")","v":""}]
[null,{"$f":"IFERROR(INDEX('3 - Land Summary'!$B$21:$B$120,(MATCH('4 - Species Breakdown'!$V918,'3 - Land Summary'!$C$21:$C$120,0))),\"\")","v":""},null,null,{"$f":"IF(OR(COUNTIF('Look Up Data'!$D$149:$D$203,D918),COUNTIF('Look Up Data'!$D$149:$D$203,AE918)),\"YES\",\"NO\")","v":"NO"},null,null,{"$f":"IFERROR(INDEX('3 - Land Summary'!$G$21:$G$120,(MATCH(C918,'3 - Land Summary'!$C$21:$C$120,0))),\"\")","v":""},{"$f":"IFERROR(INDEX('3 - Land Summary'!$I$21:$I$120,(MATCH(C918,'3 - Land Summary'!$C$21:$C$120,0))),\"\")","v":""},"","",null,null,null,{"$f":"IFERROR(VLOOKUP(D918,'Species List'!$D$10:$E$46,2,FALSE)*J918,\"\")","v":""},{"$f":"IFERROR(VLOOKUP(D918,'Species List'!$D$51:$E$89,2,FALSE)*J918,\"\")","v":""},{"$f":"IFERROR(VLOOKUP(D918,'Species List'!$D$95:$E$102,2,FALSE)*J918,\"\")","v":""},{"$f":"IFERROR(VLOOKUP(D918,'Species List'!$I$10:$J$11,2,FALSE)*J918,\"\")","v":""},{"$f":"IFERROR(VLOOKUP(D918,'Species List'!$I$16:$J$61,2,FALSE)*J918,\"\")","v":""},{"$f":"IFERROR(VLOOKUP(D918,'Species List'!$I$66:$J$66,2,FALSE)*J918,\"\")","v":""},{"$f":"IFERROR(VLOOKUP(D918,'Species List'!$I$71:$J$82,2,FALSE)*J918,\"\")","v":""},0,null,null,null,null,null,null,{"$f":"IFERROR(INDEX('3 - Land Summary'!$B$21:$B$120,(MATCH(AD918,'3 - Land Summary'!$C$21:$C$120,0))),\"\")","v":""}]
[null,{"$f":"IFERROR(INDEX('3 - Land Summary'!$B$21:$B$120,(MATCH('4 - Species Breakdown'!$V919,'3 - Land Summary'!$C$21:$C$120,0))),\"\")","v":""},null,null,{"$f":"IF(OR(COUNTIF('Look Up Data'!$D$149:$D$203,D919),COUNTIF('Look Up Data'!$D$149:$D$203,AE919)),\"YES\",\"NO\")","v":"NO"},null,null,{"$f":"IFERROR(INDEX('3 - Land Summary'!$G$21:$G$120,(MATCH(C919,'3 - Land Summary'!$C$21:$C$120,0))),\"\")","v":""},{"$f":"IFERROR(INDEX('3 - Land Summary'!$I$21:$I$120,(MATCH(C919,'3 - Land Summary'!$C$21:$C$120,0))),\"\")","v":""},"","",null,null,null,{"$f":"IFERROR(VLOOKUP(D919,'Species List'!$D$10:$E$46,2,FALSE)*J919,\"\")","v":""},{"$f":"IFERROR(VLOOKUP(D919,'Species List'!$D$51:$E$89,2,FALSE)*J919,\"\")","v":""},{"$f":"IFERROR(VLOOKUP(D919,'Species List'!$D$95:$E$102,2,FALSE)*J919,\"\")","v":""},{"$f":"IFERROR(VLOOKUP(D919,'Species List'!$I$10:$J$11,2,FALSE)*J919,\"\")","v":""},{"$f":"IFERROR(VLOOKUP(D919,'Species List'!$I$16:$J$61,2,FALSE)*J919,\"\")","v":""},{"$f":"IFERROR(VLOOKUP(D919,'Species List'!$I$66:$J$66,2,FALSE)*J919,\"\")","v":""},{"$f":"IFERROR(VLOOKUP(D919,'Species List'!$I$71:$J$82,2,FALSE)*J919,\"\")","v":""},0,null,null,null,null,null,null,{"$f":"IFERROR(INDEX('3 - Land Summary'!$B$21:$B$120,(MATCH(AD919,'3 - Land Summary'!$C$21:$C$120,0))),\"\")","v":""}]
[null,{"$f":"IFERROR(INDEX('3 - Land Summary'!$B$21:$B$120,(MATCH('4 - Species Breakdown'!$V920,'3 - Land Summary'!$C$21:$C$120,0))),\"\")","v":""},null,null,{"$f":"IF(OR(COUNTIF('Look Up Data'!$D$149:$D$203,D920),COUNTIF('Look Up Data'!$D$149:$D$203,AE920)),\"YES\",\"NO\")","v":"NO"},null,null,{"$f":"IFERROR(INDEX('3 - Land Summary'!$G$21:$G$120,(MATCH(C920,'3 - Land Summary'!$C$21:$C$120,0))),\"\")","v":""},{"$f":"IFERROR(INDEX('3 - Land Summary'!$I$21:$I$120,(MATCH(C920,'3 - Land Summary'!$C$21:$C$120,0))),\"\")","v":""},"","",null,null,null,{"$f":"IFERROR(VLOOKUP(D920,'Species List'!$D$10:$E$46,2,FALSE)*J920,\"\")","v":""},{"$f":"IFERROR(VLOOKUP(D920,'Species List'!$D$51:$E$89,2,FALSE)*J920,\"\")","v":""},{"$f":"IFERROR(VLOOKUP(D920,'Species List'!$D$95:$E$102,2,FALSE)*J920,\"\")","v":""},{"$f":"IFERROR(VLOOKUP(D920,'Species List'!$I$10:$J$11,2,FALSE)*J920,\"\")","v":""},{"$f":"IFERROR(VLOOKUP(D920,'Species List'!$I$16:$J$61,2,FALSE)*J920,\"\")","v":""},{"$f":"IFERROR(VLOOKUP(D920,'Species List'!$I$66:$J$66,2,FALSE)*J920,\"\")","v":""},{"$f":"IFERROR(VLOOKUP(D920,'Species List'!$I$71:$J$82,2,FALSE)*J920,\"\")","v":""},0,null,null,null,null,null,null,{"$f":"IFERROR(INDEX('3 - Land Summary'!$B$21:$B$120,(MATCH(AD920,'3 - Land Summary'!$C$21:$C$120,0))),\"\")","v":""}]
[null,{"$f":"IFERROR(INDEX('3 - Land Summary'!$B$21:$B$120,(MATCH('4 - Species Breakdown'!$V921,'3 - Land Summary'!$C$21:$C$120,0))),\"\")","v":""},null,null,{"$f":"IF(OR(COUNTIF('Look Up Data'!$D$149:$D$203,D921),COUNTIF('Look Up Data'!$D$149:$D$203,AE921)),\"YES\",\"NO\")","v":"NO"},null,null,{"$f":"IFERROR(INDEX('3 - Land Summary'!$G$21:$G$120,(MATCH(C921,'3 - Land Summary'!$C$21:$C$120,0))),\"\")","v":""},{"$f":"IFERROR(INDEX('3 - Land Summary'!$I$21:$I$120,(MATCH(C921,'3 - Land Summary'!$C$21:$C$120,0))),\"\")","v":""},"","",null,null,null,{"$f":"IFERROR(VLOOKUP(D921,'Species List'!$D$10:$E$46,2,FALSE)*J921,\"\")","v":""},{"$f":"IFERROR(VLOOKUP(D921,'Species List'!$D$51:$E$89,2,FALSE)*J921,\"\")","v":""},{"$f":"IFERROR(VLOOKUP(D921,'Species List'!$D$95:$E$102,2,FALSE)*J921,\"\")","v":""},{"$f":"IFERROR(VLOOKUP(D921,'Species List'!$I$10:$J$11,2,FALSE)*J921,\"\")","v":""},{"$f":"IFERROR(VLOOKUP(D921,'Species List'!$I$16:$J$61,2,FALSE)*J921,\"\")","v":""},{"$f":"IFERROR(VLOOKUP(D921,'Species List'!$I$66:$J$66,2,FALSE)*J921,\"\")","v":""},{"$f":"IFERROR(VLOOKUP(D921,'Species List'!$I$71:$J$82,2,FALSE)*J921,\"\")","v":""},0,null,null,null,null,null,null,{"$f":"IFERROR(INDEX('3 - Land Summary'!$B$21:$B$120,(MATCH(AD921,'3 - Land Summary'!$C$21:$C$120,0))),\"\")","v":""}]
[null,{"$f":"IFERROR(INDEX('3 - Land Summary'!$B$21:$B$120,(MATCH('4 - Species Breakdown'!$V922,'3 - Land Summary'!$C$21:$C$120,0))),\"\")","v":""},null,null,{"$f":"IF(OR(COUNTIF('Look Up Data'!$D$149:$D$203,D922),COUNTIF('Look Up Data'!$D$149:$D$203,AE922)),\"YES\",\"NO\")","v":"NO"},null,null,{"$f":"IFERROR(INDEX('3 - Land Summary'!$G$21:$G$120,(MATCH(C922,'3 - Land Summary'!$C$21:$C$120,0))),\"\")","v":""},{"$f":"IFERROR(INDEX('3 - Land Summary'!$I$21:$I$120,(MATCH(C922,'3 - Land Summary'!$C$21:$C$120,0))),\"\")","v":""},"","",null,null,null,{"$f":"IFERROR(VLOOKUP(D922,'Species List'!$D$10:$E$46,2,FALSE)*J922,\"\")","v":""},{"$f":"IFERROR(VLOOKUP(D922,'Species List'!$D$51:$E$89,2,FALSE)*J922,\"\")","v":""},{"$f":"IFERROR(VLOOKUP(D922,'Species List'!$D$95:$E$102,2,FALSE)*J922,\"\")","v":""},{"$f":"IFERROR(VLOOKUP(D922,'Species List'!$I$10:$J$11,2,FALSE)*J922,\"\")","v":""},{"$f":"IFERROR(VLOOKUP(D922,'Species List'!$I$16:$J$61,2,FALSE)*J922,\"\")","v":""},{"$f":"IFERROR(VLOOKUP(D922,'Species List'!$I$66:$J$66,2,FALSE)*J922,\"\")","v":""},{"$f":"IFERROR(VLOOKUP(D922,'Species List'!$I$71:$J$82,2,FALSE)*J922,\"\")","v":""},0,null,null,null,null,null,null,{"$f":"IFERROR(INDEX('3 - Land Summary'!$B$21:$B$120,(MATCH(AD922,'3 - Land Summary'!$C$21:$C$120,0))),\"\")","v":""}]
[null,{"$f":"IFERROR(INDEX('3 - Land Summary'!$B$21:$B$120,(MATCH('4 - Species Breakdown'!$V923,'3 - Land Summary'!$C$21:$C$120,0))),\"\")","v":""},null,null,{"$f":"IF(OR(COUNTIF('Look Up Data'!$D$149:$D$203,D923),COUNTIF('Look Up Data'!$D$149:$D$203,AE923)),\"YES\",\"NO\")","v":"NO"},null,null,{"$f":"IFERROR(INDEX('3 - Land Summary'!$G$21:$G$120,(MATCH(C923,'3 - Land Summary'!$C$21:$C$120,0))),\"\")","v":""},{"$f":"IFERROR(INDEX('3 - Land Summary'!$I$21:$I$120,(MATCH(C923,'3 - Land Summary'!$C$21:$C$120,0))),\"\")","v":""},"","",null,null,null,{"$f":"IFERROR(VLOOKUP(D923,'Species List'!$D$10:$E$46,2,FALSE)*J923,\"\")","v":""},{"$f":"IFERROR(VLOOKUP(D923,'Species List'!$D$51:$E$89,2,FALSE)*J923,\"\")","v":""},{"$f":"IFERROR(VLOOKUP(D923,'Species List'!$D$95:$E$102,2,FALSE)*J923,\"\")","v":""},{"$f":"IFERROR(VLOOKUP(D923,'Species List'!$I$10:$J$11,2,FALSE)*J923,\"\")","v":""},{"$f":"IFERROR(VLOOKUP(D923,'Species List'!$I$16:$J$61,2,FALSE)*J923,\"\")","v":""},{"$f":"IFERROR(VLOOKUP(D923,'Species List'!$I$66:$J$66,2,FALSE)*J923,\"\")","v":""},{"$f":"IFERROR(VLOOKUP(D923,'Species List'!$I$71:$J$82,2,FALSE)*J923,\"\")","v":""},0,null,null,null,null,null,null,{"$f":"IFERROR(INDEX('3 - Land Summary'!$B$21:$B$120,(MATCH(AD923,'3 - Land Summary'!$C$21:$C$120,0))),\"\")","v":""}]
[null,{"$f":"IFERROR(INDEX('3 - Land Summary'!$B$21:$B$120,(MATCH('4 - Species Breakdown'!$V924,'3 - Land Summary'!$C$21:$C$120,0))),\"\")","v":""},null,null,{"$f":"IF(OR(COUNTIF('Look Up Data'!$D$149:$D$203,D924),COUNTIF('Look Up Data'!$D$149:$D$203,AE924)),\"YES\",\"NO\")","v":"NO"},null,null,{"$f":"IFERROR(INDEX('3 - Land Summary'!$G$21:$G$120,(MATCH(C924,'3 - Land Summary'!$C$21:$C$120,0))),\"\")","v":""},{"$f":"IFERROR(INDEX('3 - Land Summary'!$I$21:$I$120,(MATCH(C924,'3 - Land Summary'!$C$21:$C$120,0))),\"\")","v":""},"","",null,null,null,{"$f":"IFERROR(VLOOKUP(D924,'Species List'!$D$10:$E$46,2,FALSE)*J924,\"\")","v":""},{"$f":"IFERROR(VLOOKUP(D924,'Species List'!$D$51:$E$89,2,FALSE)*J924,\"\")","v":""},{"$f":"IFERROR(VLOOKUP(D924,'Species List'!$D$95:$E$102,2,FALSE)*J924,\"\")","v":""},{"$f":"IFERROR(VLOOKUP(D924,'Species List'!$I$10:$J$11,2,FALSE)*J924,\"\")","v":""},{"$f":"IFERROR(VLOOKUP(D924,'Species List'!$I$16:$J$61,2,FALSE)*J924,\"\")","v":""},{"$f":"IFERROR(VLOOKUP(D924,'Species List'!$I$66:$J$66,2,FALSE)*J924,\"\")","v":""},{"$f":"IFERROR(VLOOKUP(D924,'Species List'!$I$71:$J$82,2,FALSE)*J924,\"\")","v":""},0,null,null,null,null,null,null,{"$f":"IFERROR(INDEX('3 - Land Summary'!$B$21:$B$120,(MATCH(AD924,'3 - Land Summary'!$C$21:$C$120,0))),\"\")","v":""}]
[null,{"$f":"IFERROR(INDEX('3 - Land Summary'!$B$21:$B$120,(MATCH('4 - Species Breakdown'!$V925,'3 - Land Summary'!$C$21:$C$120,0))),\"\")","v":""},null,null,{"$f":"IF(OR(COUNTIF('Look Up Data'!$D$149:$D$203,D925),COUNTIF('Look Up Data'!$D$149:$D$203,AE925)),\"YES\",\"NO\")","v":"NO"},null,null,{"$f":"IFERROR(INDEX('3 - Land Summary'!$G$21:$G$120,(MATCH(C925,'3 - Land Summary'!$C$21:$C$120,0))),\"\")","v":""},{"$f":"IFERROR(INDEX('3 - Land Summary'!$I$21:$I$120,(MATCH(C925,'3 - Land Summary'!$C$21:$C$120,0))),\"\")","v":""},"","",null,null,null,{"$f":"IFERROR(VLOOKUP(D925,'Species List'!$D$10:$E$46,2,FALSE)*J925,\"\")","v":""},{"$f":"IFERROR(VLOOKUP(D925,'Species List'!$D$51:$E$89,2,FALSE)*J925,\"\")","v":""},{"$f":"IFERROR(VLOOKUP(D925,'Species List'!$D$95:$E$102,2,FALSE)*J925,\"\")","v":""},{"$f":"IFERROR(VLOOKUP(D925,'Species List'!$I$10:$J$11,2,FALSE)*J925,\"\")","v":""},{"$f":"IFERROR(VLOOKUP(D925,'Species List'!$I$16:$J$61,2,FALSE)*J925,\"\")","v":""},{"$f":"IFERROR(VLOOKUP(D925,'Species List'!$I$66:$J$66,2,FALSE)*J925,\"\")","v":""},{"$f":"IFERROR(VLOOKUP(D925,'Species List'!$I$71:$J$82,2,FALSE)*J925,\"\")","v":""},0,null,null,null,null,null,null,{"$f":"IFERROR(INDEX('3 - Land Summary'!$B$21:$B$120,(MATCH(AD925,'3 - Land Summary'!$C$21:$C$120,0))),\"\")","v":""}]
[null,{"$f":"IFERROR(INDEX('3 - Land Summary'!$B$21:$B$120,(MATCH('4 - Species Breakdown'!$V926,'3 - Land Summary'!$C$21:$C$120,0))),\"\")","v":""},null,null,{"$f":"IF(OR(COUNTIF('Look Up Data'!$D$149:$D$203,D926),COUNTIF('Look Up Data'!$D$149:$D$203,AE926)),\"YES\",\"NO\")","v":"NO"},null,null,{"$f":"IFERROR(INDEX('3 - Land Summary'!$G$21:$G$120,(MATCH(C926,'3 - Land Summary'!$C$21:$C$120,0))),\"\")","v":""},{"$f":"IFERROR(INDEX('3 - Land Summary'!$I$21:$I$120,(MATCH(C926,'3 - Land Summary'!$C$21:$C$120,0))),\"\")","v":""},"","",null,null,null,{"$f":"IFERROR(VLOOKUP(D926,'Species List'!$D$10:$E$46,2,FALSE)*J926,\"\")","v":""},{"$f":"IFERROR(VLOOKUP(D926,'Species List'!$D$51:$E$89,2,FALSE)*J926,\"\")","v":""},{"$f":"IFERROR(VLOOKUP(D926,'Species List'!$D$95:$E$102,2,FALSE)*J926,\"\")","v":""},{"$f":"IFERROR(VLOOKUP(D926,'Species List'!$I$10:$J$11,2,FALSE)*J926,\"\")","v":""},{"$f":"IFERROR(VLOOKUP(D926,'Species List'!$I$16:$J$61,2,FALSE)*J926,\"\")","v":""},{"$f":"IFERROR(VLOOKUP(D926,'Species List'!$I$66:$J$66,2,FALSE)*J926,\"\")","v":""},{"$f":"IFERROR(VLOOKUP(D926,'Species List'!$I$71:$J$82,2,FALSE)*J926,\"\")","v":""},0,null,null,null,null,null,null,{"$f":"IFERROR(INDEX('3 - Land Summary'!$B$21:$B$120,(MATCH(AD926,'3 - Land Summary'!$C$21:$C$120,0))),\"\")","v":""}]
[null,{"$f":"IFERROR(INDEX('3 - Land Summary'!$B$21:$B$120,(MATCH('4 - Species Breakdown'!$V927,'3 - Land Summary'!$C$21:$C$120,0))),\"\")","v":""},null,null,{"$f":"IF(OR(COUNTIF('Look Up Data'!$D$149:$D$203,D927),COUNTIF('Look Up Data'!$D$149:$D$203,AE927)),\"YES\",\"NO\")","v":"NO"},null,null,{"$f":"IFERROR(INDEX('3 - Land Summary'!$G$21:$G$120,(MATCH(C927,'3 - Land Summary'!$C$21:$C$120,0))),\"\")","v":""},{"$f":"IFERROR(INDEX('3 - Land Summary'!$I$21:$I$120,(MATCH(C927,'3 - Land Summary'!$C$21:$C$120,0))),\"\")","v":""},{"$f":"IFERROR(((H927-I927)*F927)/100,\"\")","v":""},"",null,null,null,{"$f":"IFERROR(VLOOKUP(D927,'Species List'!$D$10:$E$46,2,FALSE)*J927,\"\")","v":""},{"$f":"IFERROR(VLOOKUP(D927,'Species List'!$D$51:$E$89,2,FALSE)*J927,\"\")","v":""},{"$f":"IFERROR(VLOOKUP(D927,'Species List'!$D$95:$E$102,2,FALSE)*J927,\"\")","v":""},{"$f":"IFERROR(VLOOKUP(D927,'Species List'!$I$10:$J$11,2,FALSE)*J927,\"\")","v":""},{"$f":"IFERROR(VLOOKUP(D927,'Species List'!$I$16:$J$61,2,FALSE)*J927,\"\")","v":""},{"$f":"IFERROR(VLOOKUP(D927,'Species List'!$I$66:$J$66,2,FALSE)*J927,\"\")","v":""},{"$f":"IFERROR(VLOOKUP(D927,'Species List'!$I$71:$J$82,2,FALSE)*J927,\"\")","v":""},{"$f":"C927","v":0},null,null,null,null,null,null,{"$f":"IFERROR(INDEX('3 - Land Summary'!$B$21:$B$120,(MATCH(AD927,'3 - Land Summary'!$C$21:$C$120,0))),\"\")","v":""}]
[null,{"$f":"IFERROR(INDEX('3 - Land Summary'!$B$21:$B$120,(MATCH('4 - Species Breakdown'!$V928,'3 - Land Summary'!$C$21:$C$120,0))),\"\")","v":""},null,null,{"$f":"IF(OR(COUNTIF('Look Up Data'!$D$149:$D$203,D928),COUNTIF('Look Up Data'!$D$149:$D$203,AE928)),\"YES\",\"NO\")","v":"NO"},null,null,{"$f":"IFERROR(INDEX('3 - Land Summary'!$G$21:$G$120,(MATCH(C928,'3 - Land Summary'!$C$21:$C$120,0))),\"\")","v":""},{"$f":"IFERROR(INDEX('3 - Land Summary'!$I$21:$I$120,(MATCH(C928,'3 - Land Summary'!$C$21:$C$120,0))),\"\")","v":""},"",{"$f":"IFERROR(ROUND(J928*G928,0),\"\")","v":""},null,null,null,{"$f":"IFERROR(VLOOKUP(D928,'Species List'!$D$10:$E$46,2,FALSE)*J928,\"\")","v":""},{"$f":"IFERROR(VLOOKUP(D928,'Species List'!$D$51:$E$89,2,FALSE)*J928,\"\")","v":""},{"$f":"IFERROR(VLOOKUP(D928,'Species List'!$D$95:$E$102,2,FALSE)*J928,\"\")","v":""},{"$f":"IFERROR(VLOOKUP(D928,'Species List'!$I$10:$J$11,2,FALSE)*J928,\"\")","v":""},{"$f":"IFERROR(VLOOKUP(D928,'Species List'!$I$16:$J$61,2,FALSE)*J928,\"\")","v":""},{"$f":"IFERROR(VLOOKUP(D928,'Species List'!$I$66:$J$66,2,FALSE)*J928,\"\")","v":""},{"$f":"IFERROR(VLOOKUP(D928,'Species List'!$I$71:$J$82,2,FALSE)*J928,\"\")","v":""},0,null,null,null,null,null,null,{"$f":"IFERROR(INDEX('3 - Land Summary'!$B$21:$B$120,(MATCH(AD928,'3 - Land Summary'!$C$21:$C$120,0))),\"\")","v":""}]
[null,{"$f":"IFERROR(INDEX('3 - Land Summary'!$B$21:$B$120,(MATCH('4 - Species Breakdown'!$V929,'3 - Land Summary'!$C$21:$C$120,0))),\"\")","v":""},null,null,{"$f":"IF(OR(COUNTIF('Look Up Data'!$D$149:$D$203,D929),COUNTIF('Look Up Data'!$D$149:$D$203,AE929)),\"YES\",\"NO\")","v":"NO"},null,null,{"$f":"IFERROR(INDEX('3 - Land Summary'!$G$21:$G$120,(MATCH(C929,'3 - Land Summary'!$C$21:$C$120,0))),\"\")","v":""},{"$f":"IFERROR(INDEX('3 - Land Summary'!$I$21:$I$120,(MATCH(C929,'3 - Land Summary'!$C$21:$C$120,0))),\"\")","v":""},"","",null,null,null,{"$f":"IFERROR(VLOOKUP(D929,'Species List'!$D$10:$E$46,2,FALSE)*J929,\"\")","v":""},{"$f":"IFERROR(VLOOKUP(D929,'Species List'!$D$51:$E$89,2,FALSE)*J929,\"\")","v":""},{"$f":"IFERROR(VLOOKUP(D929,'Species List'!$D$95:$E$102,2,FALSE)*J929,\"\")","v":""},{"$f":"IFERROR(VLOOKUP(D929,'Species List'!$I$10:$J$11,2,FALSE)*J929,\"\")","v":""},{"$f":"IFERROR(VLOOKUP(D929,'Species List'!$I$16:$J$61,2,FALSE)*J929,\"\")","v":""},{"$f":"IFERROR(VLOOKUP(D929,'Species List'!$I$66:$J$66,2,FALSE)*J929,\"\")","v":""},{"$f":"IFERROR(VLOOKUP(D929,'Species List'!$I$71:$J$82,2,FALSE)*J929,\"\")","v":""},0,null,null,null,null,null,null,{"$f":"IFERROR(INDEX('3 - Land Summary'!$B$21:$B$120,(MATCH(AD929,'3 - Land Summary'!$C$21:$C$120,0))),\"\")","v":""}]
[null,{"$f":"IFERROR(INDEX('3 - Land Summary'!$B$21:$B$120,(MATCH('4 - Species Breakdown'!$V930,'3 - Land Summary'!$C$21:$C$120,0))),\"\")","v":""},null,null,{"$f":"IF(OR(COUNTIF('Look Up Data'!$D$149:$D$203,D930),COUNTIF('Look Up Data'!$D$149:$D$203,AE930)),\"YES\",\"NO\")","v":"NO"},null,null,{"$f":"IFERROR(INDEX('3 - Land Summary'!$G$21:$G$120,(MATCH(C930,'3 - Land Summary'!$C$21:$C$120,0))),\"\")","v":""},{"$f":"IFERROR(INDEX('3 - Land Summary'!$I$21:$I$120,(MATCH(C930,'3 - Land Summary'!$C$21:$C$120,0))),\"\")","v":""},"","",null,null,null,{"$f":"IFERROR(VLOOKUP(D930,'Species List'!$D$10:$E$46,2,FALSE)*J930,\"\")","v":""},{"$f":"IFERROR(VLOOKUP(D930,'Species List'!$D$51:$E$89,2,FALSE)*J930,\"\")","v":""},{"$f":"IFERROR(VLOOKUP(D930,'Species List'!$D$95:$E$102,2,FALSE)*J930,\"\")","v":""},{"$f":"IFERROR(VLOOKUP(D930,'Species List'!$I$10:$J$11,2,FALSE)*J930,\"\")","v":""},{"$f":"IFERROR(VLOOKUP(D930,'Species List'!$I$16:$J$61,2,FALSE)*J930,\"\")","v":""},{"$f":"IFERROR(VLOOKUP(D930,'Species List'!$I$66:$J$66,2,FALSE)*J930,\"\")","v":""},{"$f":"IFERROR(VLOOKUP(D930,'Species List'!$I$71:$J$82,2,FALSE)*J930,\"\")","v":""},0,null,null,null,null,null,null,{"$f":"IFERROR(INDEX('3 - Land Summary'!$B$21:$B$120,(MATCH(AD930,'3 - Land Summary'!$C$21:$C$120,0))),\"\")","v":""}]
[null,{"$f":"IFERROR(INDEX('3 - Land Summary'!$B$21:$B$120,(MATCH('4 - Species Breakdown'!$V931,'3 - Land Summary'!$C$21:$C$120,0))),\"\")","v":""},null,null,{"$f":"IF(OR(COUNTIF('Look Up Data'!$D$149:$D$203,D931),COUNTIF('Look Up Data'!$D$149:$D$203,AE931)),\"YES\",\"NO\")","v":"NO"},null,null,{"$f":"IFERROR(INDEX('3 - Land Summary'!$G$21:$G$120,(MATCH(C931,'3 - Land Summary'!$C$21:$C$120,0))),\"\")","v":""},{"$f":"IFERROR(INDEX('3 - Land Summary'!$I$21:$I$120,(MATCH(C931,'3 - Land Summary'!$C$21:$C$120,0))),\"\")","v":""},"","",null,null,null,{"$f":"IFERROR(VLOOKUP(D931,'Species List'!$D$10:$E$46,2,FALSE)*J931,\"\")","v":""},{"$f":"IFERROR(VLOOKUP(D931,'Species List'!$D$51:$E$89,2,FALSE)*J931,\"\")","v":""},{"$f":"IFERROR(VLOOKUP(D931,'Species List'!$D$95:$E$102,2,FALSE)*J931,\"\")","v":""},{"$f":"IFERROR(VLOOKUP(D931,'Species List'!$I$10:$J$11,2,FALSE)*J931,\"\")","v":""},{"$f":"IFERROR(VLOOKUP(D931,'Species List'!$I$16:$J$61,2,FALSE)*J931,\"\")","v":""},{"$f":"IFERROR(VLOOKUP(D931,'Species List'!$I$66:$J$66,2,FALSE)*J931,\"\")","v":""},{"$f":"IFERROR(VLOOKUP(D931,'Species List'!$I$71:$J$82,2,FALSE)*J931,\"\")","v":""},0,null,null,null,null,null,null,{"$f":"IFERROR(INDEX('3 - Land Summary'!$B$21:$B$120,(MATCH(AD931,'3 - Land Summary'!$C$21:$C$120,0))),\"\")","v":""}]
[null,{"$f":"IFERROR(INDEX('3 - Land Summary'!$B$21:$B$120,(MATCH('4 - Species Breakdown'!$V932,'3 - Land Summary'!$C$21:$C$120,0))),\"\")","v":""},null,null,{"$f":"IF(OR(COUNTIF('Look Up Data'!$D$149:$D$203,D932),COUNTIF('Look Up Data'!$D$149:$D$203,AE932)),\"YES\",\"NO\")","v":"NO"},null,null,{"$f":"IFERROR(INDEX('3 - Land Summary'!$G$21:$G$120,(MATCH(C932,'3 - Land Summary'!$C$21:$C$120,0))),\"\")","v":""},{"$f":"IFERROR(INDEX('3 - Land Summary'!$I$21:$I$120,(MATCH(C932,'3 - Land Summary'!$C$21:$C$120,0))),\"\")","v":""},"","",null,null,null,{"$f":"IFERROR(VLOOKUP(D932,'Species List'!$D$10:$E$46,2,FALSE)*J932,\"\")","v":""},{"$f":"IFERROR(VLOOKUP(D932,'Species List'!$D$51:$E$89,2,FALSE)*J932,\"\")","v":""},{"$f":"IFERROR(VLOOKUP(D932,'Species List'!$D$95:$E$102,2,FALSE)*J932,\"\")","v":""},{"$f":"IFERROR(VLOOKUP(D932,'Species List'!$I$10:$J$11,2,FALSE)*J932,\"\")","v":""},{"$f":"IFERROR(VLOOKUP(D932,'Species List'!$I$16:$J$61,2,FALSE)*J932,\"\")","v":""},{"$f":"IFERROR(VLOOKUP(D932,'Species List'!$I$66:$J$66,2,FALSE)*J932,\"\")","v":""},{"$f":"IFERROR(VLOOKUP(D932,'Species List'!$I$71:$J$82,2,FALSE)*J932,\"\")","v":""},0,null,null,null,null,null,null,{"$f":"IFERROR(INDEX('3 - Land Summary'!$B$21:$B$120,(MATCH(AD932,'3 - Land Summary'!$C$21:$C$120,0))),\"\")","v":""}]
[null,{"$f":"IFERROR(INDEX('3 - Land Summary'!$B$21:$B$120,(MATCH('4 - Species Breakdown'!$V933,'3 - Land Summary'!$C$21:$C$120,0))),\"\")","v":""},null,null,{"$f":"IF(OR(COUNTIF('Look Up Data'!$D$149:$D$203,D933),COUNTIF('Look Up Data'!$D$149:$D$203,AE933)),\"YES\",\"NO\")","v":"NO"},null,null,{"$f":"IFERROR(INDEX('3 - Land Summary'!$G$21:$G$120,(MATCH(C933,'3 - Land Summary'!$C$21:$C$120,0))),\"\")","v":""},{"$f":"IFERROR(INDEX('3 - Land Summary'!$I$21:$I$120,(MATCH(C933,'3 - Land Summary'!$C$21:$C$120,0))),\"\")","v":""},"","",null,null,null,{"$f":"IFERROR(VLOOKUP(D933,'Species List'!$D$10:$E$46,2,FALSE)*J933,\"\")","v":""},{"$f":"IFERROR(VLOOKUP(D933,'Species List'!$D$51:$E$89,2,FALSE)*J933,\"\")","v":""},{"$f":"IFERROR(VLOOKUP(D933,'Species List'!$D$95:$E$102,2,FALSE)*J933,\"\")","v":""},{"$f":"IFERROR(VLOOKUP(D933,'Species List'!$I$10:$J$11,2,FALSE)*J933,\"\")","v":""},{"$f":"IFERROR(VLOOKUP(D933,'Species List'!$I$16:$J$61,2,FALSE)*J933,\"\")","v":""},{"$f":"IFERROR(VLOOKUP(D933,'Species List'!$I$66:$J$66,2,FALSE)*J933,\"\")","v":""},{"$f":"IFERROR(VLOOKUP(D933,'Species List'!$I$71:$J$82,2,FALSE)*J933,\"\")","v":""},0,null,null,null,null,null,null,{"$f":"IFERROR(INDEX('3 - Land Summary'!$B$21:$B$120,(MATCH(AD933,'3 - Land Summary'!$C$21:$C$120,0))),\"\")","v":""}]
[null,{"$f":"IFERROR(INDEX('3 - Land Summary'!$B$21:$B$120,(MATCH('4 - Species Breakdown'!$V934,'3 - Land Summary'!$C$21:$C$120,0))),\"\")","v":""},null,null,{"$f":"IF(OR(COUNTIF('Look Up Data'!$D$149:$D$203,D934),COUNTIF('Look Up Data'!$D$149:$D$203,AE934)),\"YES\",\"NO\")","v":"NO"},null,null,{"$f":"IFERROR(INDEX('3 - Land Summary'!$G$21:$G$120,(MATCH(C934,'3 - Land Summary'!$C$21:$C$120,0))),\"\")","v":""},{"$f":"IFERROR(INDEX('3 - Land Summary'!$I$21:$I$120,(MATCH(C934,'3 - Land Summary'!$C$21:$C$120,0))),\"\")","v":""},"","",null,null,null,{"$f":"IFERROR(VLOOKUP(D934,'Species List'!$D$10:$E$46,2,FALSE)*J934,\"\")","v":""},{"$f":"IFERROR(VLOOKUP(D934,'Species List'!$D$51:$E$89,2,FALSE)*J934,\"\")","v":""},{"$f":"IFERROR(VLOOKUP(D934,'Species List'!$D$95:$E$102,2,FALSE)*J934,\"\")","v":""},{"$f":"IFERROR(VLOOKUP(D934,'Species List'!$I$10:$J$11,2,FALSE)*J934,\"\")","v":""},{"$f":"IFERROR(VLOOKUP(D934,'Species List'!$I$16:$J$61,2,FALSE)*J934,\"\")","v":""},{"$f":"IFERROR(VLOOKUP(D934,'Species List'!$I$66:$J$66,2,FALSE)*J934,\"\")","v":""},{"$f":"IFERROR(VLOOKUP(D934,'Species List'!$I$71:$J$82,2,FALSE)*J934,\"\")","v":""},0,null,null,null,null,null,null,{"$f":"IFERROR(INDEX('3 - Land Summary'!$B$21:$B$120,(MATCH(AD934,'3 - Land Summary'!$C$21:$C$120,0))),\"\")","v":""}]
[null,{"$f":"IFERROR(INDEX('3 - Land Summary'!$B$21:$B$120,(MATCH('4 - Species Breakdown'!$V935,'3 - Land Summary'!$C$21:$C$120,0))),\"\")","v":""},null,null,{"$f":"IF(OR(COUNTIF('Look Up Data'!$D$149:$D$203,D935),COUNTIF('Look Up Data'!$D$149:$D$203,AE935)),\"YES\",\"NO\")","v":"NO"},null,null,{"$f":"IFERROR(INDEX('3 - Land Summary'!$G$21:$G$120,(MATCH(C935,'3 - Land Summary'!$C$21:$C$120,0))),\"\")","v":""},{"$f":"IFERROR(INDEX('3 - Land Summary'!$I$21:$I$120,(MATCH(C935,'3 - Land Summary'!$C$21:$C$120,0))),\"\")","v":""},"","",null,null,null,{"$f":"IFERROR(VLOOKUP(D935,'Species List'!$D$10:$E$46,2,FALSE)*J935,\"\")","v":""},{"$f":"IFERROR(VLOOKUP(D935,'Species List'!$D$51:$E$89,2,FALSE)*J935,\"\")","v":""},{"$f":"IFERROR(VLOOKUP(D935,'Species List'!$D$95:$E$102,2,FALSE)*J935,\"\")","v":""},{"$f":"IFERROR(VLOOKUP(D935,'Species List'!$I$10:$J$11,2,FALSE)*J935,\"\")","v":""},{"$f":"IFERROR(VLOOKUP(D935,'Species List'!$I$16:$J$61,2,FALSE)*J935,\"\")","v":""},{"$f":"IFERROR(VLOOKUP(D935,'Species List'!$I$66:$J$66,2,FALSE)*J935,\"\")","v":""},{"$f":"IFERROR(VLOOKUP(D935,'Species List'!$I$71:$J$82,2,FALSE)*J935,\"\")","v":""},0,null,null,null,null,null,null,{"$f":"IFERROR(INDEX('3 - Land Summary'!$B$21:$B$120,(MATCH(AD935,'3 - Land Summary'!$C$21:$C$120,0))),\"\")","v":""}]
[null,{"$f":"IFERROR(INDEX('3 - Land Summary'!$B$21:$B$120,(MATCH('4 - Species Breakdown'!$V936,'3 - Land Summary'!$C$21:$C$120,0))),\"\")","v":""},null,null,{"$f":"IF(OR(COUNTIF('Look Up Data'!$D$149:$D$203,D936),COUNTIF('Look Up Data'!$D$149:$D$203,AE936)),\"YES\",\"NO\")","v":"NO"},null,null,{"$f":"IFERROR(INDEX('3 - Land Summary'!$G$21:$G$120,(MATCH(C936,'3 - Land Summary'!$C$21:$C$120,0))),\"\")","v":""},{"$f":"IFERROR(INDEX('3 - Land Summary'!$I$21:$I$120,(MATCH(C936,'3 - Land Summary'!$C$21:$C$120,0))),\"\")","v":""},"","",null,null,null,{"$f":"IFERROR(VLOOKUP(D936,'Species List'!$D$10:$E$46,2,FALSE)*J936,\"\")","v":""},{"$f":"IFERROR(VLOOKUP(D936,'Species List'!$D$51:$E$89,2,FALSE)*J936,\"\")","v":""},{"$f":"IFERROR(VLOOKUP(D936,'Species List'!$D$95:$E$102,2,FALSE)*J936,\"\")","v":""},{"$f":"IFERROR(VLOOKUP(D936,'Species List'!$I$10:$J$11,2,FALSE)*J936,\"\")","v":""},{"$f":"IFERROR(VLOOKUP(D936,'Species List'!$I$16:$J$61,2,FALSE)*J936,\"\")","v":""},{"$f":"IFERROR(VLOOKUP(D936,'Species List'!$I$66:$J$66,2,FALSE)*J936,\"\")","v":""},{"$f":"IFERROR(VLOOKUP(D936,'Species List'!$I$71:$J$82,2,FALSE)*J936,\"\")","v":""},0,null,null,null,null,null,null,{"$f":"IFERROR(INDEX('3 - Land Summary'!$B$21:$B$120,(MATCH(AD936,'3 - Land Summary'!$C$21:$C$120,0))),\"\")","v":""}]
[null,{"$f":"IFERROR(INDEX('3 - Land Summary'!$B$21:$B$120,(MATCH('4 - Species Breakdown'!$V937,'3 - Land Summary'!$C$21:$C$120,0))),\"\")","v":""},null,null,{"$f":"IF(OR(COUNTIF('Look Up Data'!$D$149:$D$203,D937),COUNTIF('Look Up Data'!$D$149:$D$203,AE937)),\"YES\",\"NO\")","v":"NO"},null,null,{"$f":"IFERROR(INDEX('3 - Land Summary'!$G$21:$G$120,(MATCH(C937,'3 - Land Summary'!$C$21:$C$120,0))),\"\")","v":""},{"$f":"IFERROR(INDEX('3 - Land Summary'!$I$21:$I$120,(MATCH(C937,'3 - Land Summary'!$C$21:$C$120,0))),\"\")","v":""},"","",null,null,null,{"$f":"IFERROR(VLOOKUP(D937,'Species List'!$D$10:$E$46,2,FALSE)*J937,\"\")","v":""},{"$f":"IFERROR(VLOOKUP(D937,'Species List'!$D$51:$E$89,2,FALSE)*J937,\"\")","v":""},{"$f":"IFERROR(VLOOKUP(D937,'Species List'!$D$95:$E$102,2,FALSE)*J937,\"\")","v":""},{"$f":"IFERROR(VLOOKUP(D937,'Species List'!$I$10:$J$11,2,FALSE)*J937,\"\")","v":""},{"$f":"IFERROR(VLOOKUP(D937,'Species List'!$I$16:$J$61,2,FALSE)*J937,\"\")","v":""},{"$f":"IFERROR(VLOOKUP(D937,'Species List'!$I$66:$J$66,2,FALSE)*J937,\"\")","v":""},{"$f":"IFERROR(VLOOKUP(D937,'Species List'!$I$71:$J$82,2,FALSE)*J937,\"\")","v":""},0,null,null,null,null,null,null,{"$f":"IFERROR(INDEX('3 - Land Summary'!$B$21:$B$120,(MATCH(AD937,'3 - Land Summary'!$C$21:$C$120,0))),\"\")","v":""}]
[null,{"$f":"IFERROR(INDEX('3 - Land Summary'!$B$21:$B$120,(MATCH('4 - Species Breakdown'!$V938,'3 - Land Summary'!$C$21:$C$120,0))),\"\")","v":""},null,null,{"$f":"IF(OR(COUNTIF('Look Up Data'!$D$149:$D$203,D938),COUNTIF('Look Up Data'!$D$149:$D$203,AE938)),\"YES\",\"NO\")","v":"NO"},null,null,{"$f":"IFERROR(INDEX('3 - Land Summary'!$G$21:$G$120,(MATCH(C938,'3 - Land Summary'!$C$21:$C$120,0))),\"\")","v":""},{"$f":"IFERROR(INDEX('3 - Land Summary'!$I$21:$I$120,(MATCH(C938,'3 - Land Summary'!$C$21:$C$120,0))),\"\")","v":""},"","",null,null,null,{"$f":"IFERROR(VLOOKUP(D938,'Species List'!$D$10:$E$46,2,FALSE)*J938,\"\")","v":""},{"$f":"IFERROR(VLOOKUP(D938,'Species List'!$D$51:$E$89,2,FALSE)*J938,\"\")","v":""},{"$f":"IFERROR(VLOOKUP(D938,'Species List'!$D$95:$E$102,2,FALSE)*J938,\"\")","v":""},{"$f":"IFERROR(VLOOKUP(D938,'Species List'!$I$10:$J$11,2,FALSE)*J938,\"\")","v":""},{"$f":"IFERROR(VLOOKUP(D938,'Species List'!$I$16:$J$61,2,FALSE)*J938,\"\")","v":""},{"$f":"IFERROR(VLOOKUP(D938,'Species List'!$I$66:$J$66,2,FALSE)*J938,\"\")","v":""},{"$f":"IFERROR(VLOOKUP(D938,'Species List'!$I$71:$J$82,2,FALSE)*J938,\"\")","v":""},0,null,null,null,null,null,null,{"$f":"IFERROR(INDEX('3 - Land Summary'!$B$21:$B$120,(MATCH(AD938,'3 - Land Summary'!$C$21:$C$120,0))),\"\")","v":""}]
[null,{"$f":"IFERROR(INDEX('3 - Land Summary'!$B$21:$B$120,(MATCH('4 - Species Breakdown'!$V939,'3 - Land Summary'!$C$21:$C$120,0))),\"\")","v":""},null,null,{"$f":"IF(OR(COUNTIF('Look Up Data'!$D$149:$D$203,D939),COUNTIF('Look Up Data'!$D$149:$D$203,AE939)),\"YES\",\"NO\")","v":"NO"},null,null,{"$f":"IFERROR(INDEX('3 - Land Summary'!$G$21:$G$120,(MATCH(C939,'3 - Land Summary'!$C$21:$C$120,0))),\"\")","v":""},{"$f":"IFERROR(INDEX('3 - Land Summary'!$I$21:$I$120,(MATCH(C939,'3 - Land Summary'!$C$21:$C$120,0))),\"\")","v":""},"","",null,null,null,{"$f":"IFERROR(VLOOKUP(D939,'Species List'!$D$10:$E$46,2,FALSE)*J939,\"\")","v":""},{"$f":"IFERROR(VLOOKUP(D939,'Species List'!$D$51:$E$89,2,FALSE)*J939,\"\")","v":""},{"$f":"IFERROR(VLOOKUP(D939,'Species List'!$D$95:$E$102,2,FALSE)*J939,\"\")","v":""},{"$f":"IFERROR(VLOOKUP(D939,'Species List'!$I$10:$J$11,2,FALSE)*J939,\"\")","v":""},{"$f":"IFERROR(VLOOKUP(D939,'Species List'!$I$16:$J$61,2,FALSE)*J939,\"\")","v":""},{"$f":"IFERROR(VLOOKUP(D939,'Species List'!$I$66:$J$66,2,FALSE)*J939,\"\")","v":""},{"$f":"IFERROR(VLOOKUP(D939,'Species List'!$I$71:$J$82,2,FALSE)*J939,\"\")","v":""},0,null,null,null,null,null,null,{"$f":"IFERROR(INDEX('3 - Land Summary'!$B$21:$B$120,(MATCH(AD939,'3 - Land Summary'!$C$21:$C$120,0))),\"\")","v":""}]
[null,{"$f":"IFERROR(INDEX('3 - Land Summary'!$B$21:$B$120,(MATCH('4 - Species Breakdown'!$V940,'3 - Land Summary'!$C$21:$C$120,0))),\"\")","v":""},null,null,{"$f":"IF(OR(COUNTIF('Look Up Data'!$D$149:$D$203,D940),COUNTIF('Look Up Data'!$D$149:$D$203,AE940)),\"YES\",\"NO\")","v":"NO"},null,null,{"$f":"IFERROR(INDEX('3 - Land Summary'!$G$21:$G$120,(MATCH(C940,'3 - Land Summary'!$C$21:$C$120,0))),\"\")","v":""},{"$f":"IFERROR(INDEX('3 - Land Summary'!$I$21:$I$120,(MATCH(C940,'3 - Land Summary'!$C$21:$C$120,0))),\"\")","v":""},"","",null,null,null,{"$f":"IFERROR(VLOOKUP(D940,'Species List'!$D$10:$E$46,2,FALSE)*J940,\"\")","v":""},{"$f":"IFERROR(VLOOKUP(D940,'Species List'!$D$51:$E$89,2,FALSE)*J940,\"\")","v":""},{"$f":"IFERROR(VLOOKUP(D940,'Species List'!$D$95:$E$102,2,FALSE)*J940,\"\")","v":""},{"$f":"IFERROR(VLOOKUP(D940,'Species List'!$I$10:$J$11,2,FALSE)*J940,\"\")","v":""},{"$f":"IFERROR(VLOOKUP(D940,'Species List'!$I$16:$J$61,2,FALSE)*J940,\"\")","v":""},{"$f":"IFERROR(VLOOKUP(D940,'Species List'!$I$66:$J$66,2,FALSE)*J940,\"\")","v":""},{"$f":"IFERROR(VLOOKUP(D940,'Species List'!$I$71:$J$82,2,FALSE)*J940,\"\")","v":""},0,null,null,null,null,null,null,{"$f":"IFERROR(INDEX('3 - Land Summary'!$B$21:$B$120,(MATCH(AD940,'3 - Land Summary'!$C$21:$C$120,0))),\"\")","v":""}]
[null,{"$f":"IFERROR(INDEX('3 - Land Summary'!$B$21:$B$120,(MATCH('4 - Species Breakdown'!$V941,'3 - Land Summary'!$C$21:$C$120,0))),\"\")","v":""},null,null,{"$f":"IF(OR(COUNTIF('Look Up Data'!$D$149:$D$203,D941),COUNTIF('Look Up Data'!$D$149:$D$203,AE941)),\"YES\",\"NO\")","v":"NO"},null,null,{"$f":"IFERROR(INDEX('3 - Land Summary'!$G$21:$G$120,(MATCH(C941,'3 - Land Summary'!$C$21:$C$120,0))),\"\")","v":""},{"$f":"IFERROR(INDEX('3 - Land Summary'!$I$21:$I$120,(MATCH(C941,'3 - Land Summary'!$C$21:$C$120,0))),\"\")","v":""},"","",null,null,null,{"$f":"IFERROR(VLOOKUP(D941,'Species List'!$D$10:$E$46,2,FALSE)*J941,\"\")","v":""},{"$f":"IFERROR(VLOOKUP(D941,'Species List'!$D$51:$E$89,2,FALSE)*J941,\"\")","v":""},{"$f":"IFERROR(VLOOKUP(D941,'Species List'!$D$95:$E$102,2,FALSE)*J941,\"\")","v":""},{"$f":"IFERROR(VLOOKUP(D941,'Species List'!$I$10:$J$11,2,FALSE)*J941,\"\")","v":""},{"$f":"IFERROR(VLOOKUP(D941,'Species List'!$I$16:$J$61,2,FALSE)*J941,\"\")","v":""},{"$f":"IFERROR(VLOOKUP(D941,'Species List'!$I$66:$J$66,2,FALSE)*J941,\"\")","v":""},{"$f":"IFERROR(VLOOKUP(D941,'Species List'!$I$71:$J$82,2,FALSE)*J941,\"\")","v":""},0,null,null,null,null,null,null,{"$f":"IFERROR(INDEX('3 - Land Summary'!$B$21:$B$120,(MATCH(AD941,'3 - Land Summary'!$C$21:$C$120,0))),\"\")","v":""}]
[null,{"$f":"IFERROR(INDEX('3 - Land Summary'!$B$21:$B$120,(MATCH('4 - Species Breakdown'!$V942,'3 - Land Summary'!$C$21:$C$120,0))),\"\")","v":""},null,null,{"$f":"IF(OR(COUNTIF('Look Up Data'!$D$149:$D$203,D942),COUNTIF('Look Up Data'!$D$149:$D$203,AE942)),\"YES\",\"NO\")","v":"NO"},null,null,{"$f":"IFERROR(INDEX('3 - Land Summary'!$G$21:$G$120,(MATCH(C942,'3 - Land Summary'!$C$21:$C$120,0))),\"\")","v":""},{"$f":"IFERROR(INDEX('3 - Land Summary'!$I$21:$I$120,(MATCH(C942,'3 - Land Summary'!$C$21:$C$120,0))),\"\")","v":""},"","",null,null,null,{"$f":"IFERROR(VLOOKUP(D942,'Species List'!$D$10:$E$46,2,FALSE)*J942,\"\")","v":""},{"$f":"IFERROR(VLOOKUP(D942,'Species List'!$D$51:$E$89,2,FALSE)*J942,\"\")","v":""},{"$f":"IFERROR(VLOOKUP(D942,'Species List'!$D$95:$E$102,2,FALSE)*J942,\"\")","v":""},{"$f":"IFERROR(VLOOKUP(D942,'Species List'!$I$10:$J$11,2,FALSE)*J942,\"\")","v":""},{"$f":"IFERROR(VLOOKUP(D942,'Species List'!$I$16:$J$61,2,FALSE)*J942,\"\")","v":""},{"$f":"IFERROR(VLOOKUP(D942,'Species List'!$I$66:$J$66,2,FALSE)*J942,\"\")","v":""},{"$f":"IFERROR(VLOOKUP(D942,'Species List'!$I$71:$J$82,2,FALSE)*J942,\"\")","v":""},0,null,null,null,null,null,null,{"$f":"IFERROR(INDEX('3 - Land Summary'!$B$21:$B$120,(MATCH(AD942,'3 - Land Summary'!$C$21:$C$120,0))),\"\")","v":""}]
[null,{"$f":"IFERROR(INDEX('3 - Land Summary'!$B$21:$B$120,(MATCH('4 - Species Breakdown'!$V943,'3 - Land Summary'!$C$21:$C$120,0))),\"\")","v":""},null,null,{"$f":"IF(OR(COUNTIF('Look Up Data'!$D$149:$D$203,D943),COUNTIF('Look Up Data'!$D$149:$D$203,AE943)),\"YES\",\"NO\")","v":"NO"},null,null,{"$f":"IFERROR(INDEX('3 - Land Summary'!$G$21:$G$120,(MATCH(C943,'3 - Land Summary'!$C$21:$C$120,0))),\"\")","v":""},{"$f":"IFERROR(INDEX('3 - Land Summary'!$I$21:$I$120,(MATCH(C943,'3 - Land Summary'!$C$21:$C$120,0))),\"\")","v":""},"","",null,null,null,{"$f":"IFERROR(VLOOKUP(D943,'Species List'!$D$10:$E$46,2,FALSE)*J943,\"\")","v":""},{"$f":"IFERROR(VLOOKUP(D943,'Species List'!$D$51:$E$89,2,FALSE)*J943,\"\")","v":""},{"$f":"IFERROR(VLOOKUP(D943,'Species List'!$D$95:$E$102,2,FALSE)*J943,\"\")","v":""},{"$f":"IFERROR(VLOOKUP(D943,'Species List'!$I$10:$J$11,2,FALSE)*J943,\"\")","v":""},{"$f":"IFERROR(VLOOKUP(D943,'Species List'!$I$16:$J$61,2,FALSE)*J943,\"\")","v":""},{"$f":"IFERROR(VLOOKUP(D943,'Species List'!$I$66:$J$66,2,FALSE)*J943,\"\")","v":""},{"$f":"IFERROR(VLOOKUP(D943,'Species List'!$I$71:$J$82,2,FALSE)*J943,\"\")","v":""},0,null,null,null,null,null,null,{"$f":"IFERROR(INDEX('3 - Land Summary'!$B$21:$B$120,(MATCH(AD943,'3 - Land Summary'!$C$21:$C$120,0))),\"\")","v":""}]
[null,{"$f":"IFERROR(INDEX('3 - Land Summary'!$B$21:$B$120,(MATCH('4 - Species Breakdown'!$V944,'3 - Land Summary'!$C$21:$C$120,0))),\"\")","v":""},null,null,{"$f":"IF(OR(COUNTIF('Look Up Data'!$D$149:$D$203,D944),COUNTIF('Look Up Data'!$D$149:$D$203,AE944)),\"YES\",\"NO\")","v":"NO"},null,null,{"$f":"IFERROR(INDEX('3 - Land Summary'!$G$21:$G$120,(MATCH(C944,'3 - Land Summary'!$C$21:$C$120,0))),\"\")","v":""},{"$f":"IFERROR(INDEX('3 - Land Summary'!$I$21:$I$120,(MATCH(C944,'3 - Land Summary'!$C$21:$C$120,0))),\"\")","v":""},"","",null,null,null,{"$f":"IFERROR(VLOOKUP(D944,'Species List'!$D$10:$E$46,2,FALSE)*J944,\"\")","v":""},{"$f":"IFERROR(VLOOKUP(D944,'Species List'!$D$51:$E$89,2,FALSE)*J944,\"\")","v":""},{"$f":"IFERROR(VLOOKUP(D944,'Species List'!$D$95:$E$102,2,FALSE)*J944,\"\")","v":""},{"$f":"IFERROR(VLOOKUP(D944,'Species List'!$I$10:$J$11,2,FALSE)*J944,\"\")","v":""},{"$f":"IFERROR(VLOOKUP(D944,'Species List'!$I$16:$J$61,2,FALSE)*J944,\"\")","v":""},{"$f":"IFERROR(VLOOKUP(D944,'Species List'!$I$66:$J$66,2,FALSE)*J944,\"\")","v":""},{"$f":"IFERROR(VLOOKUP(D944,'Species List'!$I$71:$J$82,2,FALSE)*J944,\"\")","v":""},0,null,null,null,null,null,null,{"$f":"IFERROR(INDEX('3 - Land Summary'!$B$21:$B$120,(MATCH(AD944,'3 - Land Summary'!$C$21:$C$120,0))),\"\")","v":""}]
[null,{"$f":"IFERROR(INDEX('3 - Land Summary'!$B$21:$B$120,(MATCH('4 - Species Breakdown'!$V945,'3 - Land Summary'!$C$21:$C$120,0))),\"\")","v":""},null,null,{"$f":"IF(OR(COUNTIF('Look Up Data'!$D$149:$D$203,D945),COUNTIF('Look Up Data'!$D$149:$D$203,AE945)),\"YES\",\"NO\")","v":"NO"},null,null,{"$f":"IFERROR(INDEX('3 - Land Summary'!$G$21:$G$120,(MATCH(C945,'3 - Land Summary'!$C$21:$C$120,0))),\"\")","v":""},{"$f":"IFERROR(INDEX('3 - Land Summary'!$I$21:$I$120,(MATCH(C945,'3 - Land Summary'!$C$21:$C$120,0))),\"\")","v":""},"","",null,null,null,{"$f":"IFERROR(VLOOKUP(D945,'Species List'!$D$10:$E$46,2,FALSE)*J945,\"\")","v":""},{"$f":"IFERROR(VLOOKUP(D945,'Species List'!$D$51:$E$89,2,FALSE)*J945,\"\")","v":""},{"$f":"IFERROR(VLOOKUP(D945,'Species List'!$D$95:$E$102,2,FALSE)*J945,\"\")","v":""},{"$f":"IFERROR(VLOOKUP(D945,'Species List'!$I$10:$J$11,2,FALSE)*J945,\"\")","v":""},{"$f":"IFERROR(VLOOKUP(D945,'Species List'!$I$16:$J$61,2,FALSE)*J945,\"\")","v":""},{"$f":"IFERROR(VLOOKUP(D945,'Species List'!$I$66:$J$66,2,FALSE)*J945,\"\")","v":""},{"$f":"IFERROR(VLOOKUP(D945,'Species List'!$I$71:$J$82,2,FALSE)*J945,\"\")","v":""},0,null,null,null,null,null,null,{"$f":"IFERROR(INDEX('3 - Land Summary'!$B$21:$B$120,(MATCH(AD945,'3 - Land Summary'!$C$21:$C$120,0))),\"\")","v":""}]
[null,{"$f":"IFERROR(INDEX('3 - Land Summary'!$B$21:$B$120,(MATCH('4 - Species Breakdown'!$V946,'3 - Land Summary'!$C$21:$C$120,0))),\"\")","v":""},null,null,{"$f":"IF(OR(COUNTIF('Look Up Data'!$D$149:$D$203,D946),COUNTIF('Look Up Data'!$D$149:$D$203,AE946)),\"YES\",\"NO\")","v":"NO"},null,null,{"$f":"IFERROR(INDEX('3 - Land Summary'!$G$21:$G$120,(MATCH(C946,'3 - Land Summary'!$C$21:$C$120,0))),\"\")","v":""},{"$f":"IFERROR(INDEX('3 - Land Summary'!$I$21:$I$120,(MATCH(C946,'3 - Land Summary'!$C$21:$C$120,0))),\"\")","v":""},"","",null,null,null,{"$f":"IFERROR(VLOOKUP(D946,'Species List'!$D$10:$E$46,2,FALSE)*J946,\"\")","v":""},{"$f":"IFERROR(VLOOKUP(D946,'Species List'!$D$51:$E$89,2,FALSE)*J946,\"\")","v":""},{"$f":"IFERROR(VLOOKUP(D946,'Species List'!$D$95:$E$102,2,FALSE)*J946,\"\")","v":""},{"$f":"IFERROR(VLOOKUP(D946,'Species List'!$I$10:$J$11,2,FALSE)*J946,\"\")","v":""},{"$f":"IFERROR(VLOOKUP(D946,'Species List'!$I$16:$J$61,2,FALSE)*J946,\"\")","v":""},{"$f":"IFERROR(VLOOKUP(D946,'Species List'!$I$66:$J$66,2,FALSE)*J946,\"\")","v":""},{"$f":"IFERROR(VLOOKUP(D946,'Species List'!$I$71:$J$82,2,FALSE)*J946,\"\")","v":""},0,null,null,null,null,null,null,{"$f":"IFERROR(INDEX('3 - Land Summary'!$B$21:$B$120,(MATCH(AD946,'3 - Land Summary'!$C$21:$C$120,0))),\"\")","v":""}]
[null,{"$f":"IFERROR(INDEX('3 - Land Summary'!$B$21:$B$120,(MATCH('4 - Species Breakdown'!$V947,'3 - Land Summary'!$C$21:$C$120,0))),\"\")","v":""},null,null,{"$f":"IF(OR(COUNTIF('Look Up Data'!$D$149:$D$203,D947),COUNTIF('Look Up Data'!$D$149:$D$203,AE947)),\"YES\",\"NO\")","v":"NO"},null,null,{"$f":"IFERROR(INDEX('3 - Land Summary'!$G$21:$G$120,(MATCH(C947,'3 - Land Summary'!$C$21:$C$120,0))),\"\")","v":""},{"$f":"IFERROR(INDEX('3 - Land Summary'!$I$21:$I$120,(MATCH(C947,'3 - Land Summary'!$C$21:$C$120,0))),\"\")","v":""},"","",null,null,null,{"$f":"IFERROR(VLOOKUP(D947,'Species List'!$D$10:$E$46,2,FALSE)*J947,\"\")","v":""},{"$f":"IFERROR(VLOOKUP(D947,'Species List'!$D$51:$E$89,2,FALSE)*J947,\"\")","v":""},{"$f":"IFERROR(VLOOKUP(D947,'Species List'!$D$95:$E$102,2,FALSE)*J947,\"\")","v":""},{"$f":"IFERROR(VLOOKUP(D947,'Species List'!$I$10:$J$11,2,FALSE)*J947,\"\")","v":""},{"$f":"IFERROR(VLOOKUP(D947,'Species List'!$I$16:$J$61,2,FALSE)*J947,\"\")","v":""},{"$f":"IFERROR(VLOOKUP(D947,'Species List'!$I$66:$J$66,2,FALSE)*J947,\"\")","v":""},{"$f":"IFERROR(VLOOKUP(D947,'Species List'!$I$71:$J$82,2,FALSE)*J947,\"\")","v":""},0,null,null,null,null,null,null,{"$f":"IFERROR(INDEX('3 - Land Summary'!$B$21:$B$120,(MATCH(AD947,'3 - Land Summary'!$C$21:$C$120,0))),\"\")","v":""}]
[null,{"$f":"IFERROR(INDEX('3 - Land Summary'!$B$21:$B$120,(MATCH('4 - Species Breakdown'!$V948,'3 - Land Summary'!$C$21:$C$120,0))),\"\")","v":""},null,null,{"$f":"IF(OR(COUNTIF('Look Up Data'!$D$149:$D$203,D948),COUNTIF('Look Up Data'!$D$149:$D$203,AE948)),\"YES\",\"NO\")","v":"NO"},null,null,{"$f":"IFERROR(INDEX('3 - Land Summary'!$G$21:$G$120,(MATCH(C948,'3 - Land Summary'!$C$21:$C$120,0))),\"\")","v":""},{"$f":"IFERROR(INDEX('3 - Land Summary'!$I$21:$I$120,(MATCH(C948,'3 - Land Summary'!$C$21:$C$120,0))),\"\")","v":""},"","",null,null,null,{"$f":"IFERROR(VLOOKUP(D948,'Species List'!$D$10:$E$46,2,FALSE)*J948,\"\")","v":""},{"$f":"IFERROR(VLOOKUP(D948,'Species List'!$D$51:$E$89,2,FALSE)*J948,\"\")","v":""},{"$f":"IFERROR(VLOOKUP(D948,'Species List'!$D$95:$E$102,2,FALSE)*J948,\"\")","v":""},{"$f":"IFERROR(VLOOKUP(D948,'Species List'!$I$10:$J$11,2,FALSE)*J948,\"\")","v":""},{"$f":"IFERROR(VLOOKUP(D948,'Species List'!$I$16:$J$61,2,FALSE)*J948,\"\")","v":""},{"$f":"IFERROR(VLOOKUP(D948,'Species List'!$I$66:$J$66,2,FALSE)*J948,\"\")","v":""},{"$f":"IFERROR(VLOOKUP(D948,'Species List'!$I$71:$J$82,2,FALSE)*J948,\"\")","v":""},0,null,null,null,null,null,null,{"$f":"IFERROR(INDEX('3 - Land Summary'!$B$21:$B$120,(MATCH(AD948,'3 - Land Summary'!$C$21:$C$120,0))),\"\")","v":""}]
[null,{"$f":"IFERROR(INDEX('3 - Land Summary'!$B$21:$B$120,(MATCH('4 - Species Breakdown'!$V949,'3 - Land Summary'!$C$21:$C$120,0))),\"\")","v":""},null,null,{"$f":"IF(OR(COUNTIF('Look Up Data'!$D$149:$D$203,D949),COUNTIF('Look Up Data'!$D$149:$D$203,AE949)),\"YES\",\"NO\")","v":"NO"},null,null,{"$f":"IFERROR(INDEX('3 - Land Summary'!$G$21:$G$120,(MATCH(C949,'3 - Land Summary'!$C$21:$C$120,0))),\"\")","v":""},{"$f":"IFERROR(INDEX('3 - Land Summary'!$I$21:$I$120,(MATCH(C949,'3 - Land Summary'!$C$21:$C$120,0))),\"\")","v":""},"","",null,null,null,{"$f":"IFERROR(VLOOKUP(D949,'Species List'!$D$10:$E$46,2,FALSE)*J949,\"\")","v":""},{"$f":"IFERROR(VLOOKUP(D949,'Species List'!$D$51:$E$89,2,FALSE)*J949,\"\")","v":""},{"$f":"IFERROR(VLOOKUP(D949,'Species List'!$D$95:$E$102,2,FALSE)*J949,\"\")","v":""},{"$f":"IFERROR(VLOOKUP(D949,'Species List'!$I$10:$J$11,2,FALSE)*J949,\"\")","v":""},{"$f":"IFERROR(VLOOKUP(D949,'Species List'!$I$16:$J$61,2,FALSE)*J949,\"\")","v":""},{"$f":"IFERROR(VLOOKUP(D949,'Species List'!$I$66:$J$66,2,FALSE)*J949,\"\")","v":""},{"$f":"IFERROR(VLOOKUP(D949,'Species List'!$I$71:$J$82,2,FALSE)*J949,\"\")","v":""},0,null,null,null,null,null,null,{"$f":"IFERROR(INDEX('3 - Land Summary'!$B$21:$B$120,(MATCH(AD949,'3 - Land Summary'!$C$21:$C$120,0))),\"\")","v":""}]
[null,{"$f":"IFERROR(INDEX('3 - Land Summary'!$B$21:$B$120,(MATCH('4 - Species Breakdown'!$V950,'3 - Land Summary'!$C$21:$C$120,0))),\"\")","v":""},null,null,{"$f":"IF(OR(COUNTIF('Look Up Data'!$D$149:$D$203,D950),COUNTIF('Look Up Data'!$D$149:$D$203,AE950)),\"YES\",\"NO\")","v":"NO"},null,null,{"$f":"IFERROR(INDEX('3 - Land Summary'!$G$21:$G$120,(MATCH(C950,'3 - Land Summary'!$C$21:$C$120,0))),\"\")","v":""},{"$f":"IFERROR(INDEX('3 - Land Summary'!$I$21:$I$120,(MATCH(C950,'3 - Land Summary'!$C$21:$C$120,0))),\"\")","v":""},"","",null,null,null,{"$f":"IFERROR(VLOOKUP(D950,'Species List'!$D$10:$E$46,2,FALSE)*J950,\"\")","v":""},{"$f":"IFERROR(VLOOKUP(D950,'Species List'!$D$51:$E$89,2,FALSE)*J950,\"\")","v":""},{"$f":"IFERROR(VLOOKUP(D950,'Species List'!$D$95:$E$102,2,FALSE)*J950,\"\")","v":""},{"$f":"IFERROR(VLOOKUP(D950,'Species List'!$I$10:$J$11,2,FALSE)*J950,\"\")","v":""},{"$f":"IFERROR(VLOOKUP(D950,'Species List'!$I$16:$J$61,2,FALSE)*J950,\"\")","v":""},{"$f":"IFERROR(VLOOKUP(D950,'Species List'!$I$66:$J$66,2,FALSE)*J950,\"\")","v":""},{"$f":"IFERROR(VLOOKUP(D950,'Species List'!$I$71:$J$82,2,FALSE)*J950,\"\")","v":""},0,null,null,null,null,null,null,{"$f":"IFERROR(INDEX('3 - Land Summary'!$B$21:$B$120,(MATCH(AD950,'3 - Land Summary'!$C$21:$C$120,0))),\"\")","v":""}]
[null,{"$f":"IFERROR(INDEX('3 - Land Summary'!$B$21:$B$120,(MATCH('4 - Species Breakdown'!$V951,'3 - Land Summary'!$C$21:$C$120,0))),\"\")","v":""},null,null,{"$f":"IF(OR(COUNTIF('Look Up Data'!$D$149:$D$203,D951),COUNTIF('Look Up Data'!$D$149:$D$203,AE951)),\"YES\",\"NO\")","v":"NO"},null,null,{"$f":"IFERROR(INDEX('3 - Land Summary'!$G$21:$G$120,(MATCH(C951,'3 - Land Summary'!$C$21:$C$120,0))),\"\")","v":""},{"$f":"IFERROR(INDEX('3 - Land Summary'!$I$21:$I$120,(MATCH(C951,'3 - Land Summary'!$C$21:$C$120,0))),\"\")","v":""},"","",null,null,null,{"$f":"IFERROR(VLOOKUP(D951,'Species List'!$D$10:$E$46,2,FALSE)*J951,\"\")","v":""},{"$f":"IFERROR(VLOOKUP(D951,'Species List'!$D$51:$E$89,2,FALSE)*J951,\"\")","v":""},{"$f":"IFERROR(VLOOKUP(D951,'Species List'!$D$95:$E$102,2,FALSE)*J951,\"\")","v":""},{"$f":"IFERROR(VLOOKUP(D951,'Species List'!$I$10:$J$11,2,FALSE)*J951,\"\")","v":""},{"$f":"IFERROR(VLOOKUP(D951,'Species List'!$I$16:$J$61,2,FALSE)*J951,\"\")","v":""},{"$f":"IFERROR(VLOOKUP(D951,'Species List'!$I$66:$J$66,2,FALSE)*J951,\"\")","v":""},{"$f":"IFERROR(VLOOKUP(D951,'Species List'!$I$71:$J$82,2,FALSE)*J951,\"\")","v":""},0,null,null,null,null,null,null,{"$f":"IFERROR(INDEX('3 - Land Summary'!$B$21:$B$120,(MATCH(AD951,'3 - Land Summary'!$C$21:$C$120,0))),\"\")","v":""}]
[null,{"$f":"IFERROR(INDEX('3 - Land Summary'!$B$21:$B$120,(MATCH('4 - Species Breakdown'!$V952,'3 - Land Summary'!$C$21:$C$120,0))),\"\")","v":""},null,null,{"$f":"IF(OR(COUNTIF('Look Up Data'!$D$149:$D$203,D952),COUNTIF('Look Up Data'!$D$149:$D$203,AE952)),\"YES\",\"NO\")","v":"NO"},null,null,{"$f":"IFERROR(INDEX('3 - Land Summary'!$G$21:$G$120,(MATCH(C952,'3 - Land Summary'!$C$21:$C$120,0))),\"\")","v":""},{"$f":"IFERROR(INDEX('3 - Land Summary'!$I$21:$I$120,(MATCH(C952,'3 - Land Summary'!$C$21:$C$120,0))),\"\")","v":""},"","",null,null,null,{"$f":"IFERROR(VLOOKUP(D952,'Species List'!$D$10:$E$46,2,FALSE)*J952,\"\")","v":""},{"$f":"IFERROR(VLOOKUP(D952,'Species List'!$D$51:$E$89,2,FALSE)*J952,\"\")","v":""},{"$f":"IFERROR(VLOOKUP(D952,'Species List'!$D$95:$E$102,2,FALSE)*J952,\"\")","v":""},{"$f":"IFERROR(VLOOKUP(D952,'Species List'!$I$10:$J$11,2,FALSE)*J952,\"\")","v":""},{"$f":"IFERROR(VLOOKUP(D952,'Species List'!$I$16:$J$61,2,FALSE)*J952,\"\")","v":""},{"$f":"IFERROR(VLOOKUP(D952,'Species List'!$I$66:$J$66,2,FALSE)*J952,\"\")","v":""},{"$f":"IFERROR(VLOOKUP(D952,'Species List'!$I$71:$J$82,2,FALSE)*J952,\"\")","v":""},0,null,null,null,null,null,null,{"$f":"IFERROR(INDEX('3 - Land Summary'!$B$21:$B$120,(MATCH(AD952,'3 - Land Summary'!$C$21:$C$120,0))),\"\")","v":""}]
[null,{"$f":"IFERROR(INDEX('3 - Land Summary'!$B$21:$B$120,(MATCH('4 - Species Breakdown'!$V953,'3 - Land Summary'!$C$21:$C$120,0))),\"\")","v":""},null,null,{"$f":"IF(OR(COUNTIF('Look Up Data'!$D$149:$D$203,D953),COUNTIF('Look Up Data'!$D$149:$D$203,AE953)),\"YES\",\"NO\")","v":"NO"},null,null,{"$f":"IFERROR(INDEX('3 - Land Summary'!$G$21:$G$120,(MATCH(C953,'3 - Land Summary'!$C$21:$C$120,0))),\"\")","v":""},{"$f":"IFERROR(INDEX('3 - Land Summary'!$I$21:$I$120,(MATCH(C953,'3 - Land Summary'!$C$21:$C$120,0))),\"\")","v":""},"","",null,null,null,{"$f":"IFERROR(VLOOKUP(D953,'Species List'!$D$10:$E$46,2,FALSE)*J953,\"\")","v":""},{"$f":"IFERROR(VLOOKUP(D953,'Species List'!$D$51:$E$89,2,FALSE)*J953,\"\")","v":""},{"$f":"IFERROR(VLOOKUP(D953,'Species List'!$D$95:$E$102,2,FALSE)*J953,\"\")","v":""},{"$f":"IFERROR(VLOOKUP(D953,'Species List'!$I$10:$J$11,2,FALSE)*J953,\"\")","v":""},{"$f":"IFERROR(VLOOKUP(D953,'Species List'!$I$16:$J$61,2,FALSE)*J953,\"\")","v":""},{"$f":"IFERROR(VLOOKUP(D953,'Species List'!$I$66:$J$66,2,FALSE)*J953,\"\")","v":""},{"$f":"IFERROR(VLOOKUP(D953,'Species List'!$I$71:$J$82,2,FALSE)*J953,\"\")","v":""},0,null,null,null,null,null,null,{"$f":"IFERROR(INDEX('3 - Land Summary'!$B$21:$B$120,(MATCH(AD953,'3 - Land Summary'!$C$21:$C$120,0))),\"\")","v":""}]
[null,{"$f":"IFERROR(INDEX('3 - Land Summary'!$B$21:$B$120,(MATCH('4 - Species Breakdown'!$V954,'3 - Land Summary'!$C$21:$C$120,0))),\"\")","v":""},null,null,{"$f":"IF(OR(COUNTIF('Look Up Data'!$D$149:$D$203,D954),COUNTIF('Look Up Data'!$D$149:$D$203,AE954)),\"YES\",\"NO\")","v":"NO"},null,null,{"$f":"IFERROR(INDEX('3 - Land Summary'!$G$21:$G$120,(MATCH(C954,'3 - Land Summary'!$C$21:$C$120,0))),\"\")","v":""},{"$f":"IFERROR(INDEX('3 - Land Summary'!$I$21:$I$120,(MATCH(C954,'3 - Land Summary'!$C$21:$C$120,0))),\"\")","v":""},"","",null,null,null,{"$f":"IFERROR(VLOOKUP(D954,'Species List'!$D$10:$E$46,2,FALSE)*J954,\"\")","v":""},{"$f":"IFERROR(VLOOKUP(D954,'Species List'!$D$51:$E$89,2,FALSE)*J954,\"\")","v":""},{"$f":"IFERROR(VLOOKUP(D954,'Species List'!$D$95:$E$102,2,FALSE)*J954,\"\")","v":""},{"$f":"IFERROR(VLOOKUP(D954,'Species List'!$I$10:$J$11,2,FALSE)*J954,\"\")","v":""},{"$f":"IFERROR(VLOOKUP(D954,'Species List'!$I$16:$J$61,2,FALSE)*J954,\"\")","v":""},{"$f":"IFERROR(VLOOKUP(D954,'Species List'!$I$66:$J$66,2,FALSE)*J954,\"\")","v":""},{"$f":"IFERROR(VLOOKUP(D954,'Species List'!$I$71:$J$82,2,FALSE)*J954,\"\")","v":""},0,null,null,null,null,null,null,{"$f":"IFERROR(INDEX('3 - Land Summary'!$B$21:$B$120,(MATCH(AD954,'3 - Land Summary'!$C$21:$C$120,0))),\"\")","v":""}]
[null,{"$f":"IFERROR(INDEX('3 - Land Summary'!$B$21:$B$120,(MATCH('4 - Species Breakdown'!$V955,'3 - Land Summary'!$C$21:$C$120,0))),\"\")","v":""},null,null,{"$f":"IF(OR(COUNTIF('Look Up Data'!$D$149:$D$203,D955),COUNTIF('Look Up Data'!$D$149:$D$203,AE955)),\"YES\",\"NO\")","v":"NO"},null,null,{"$f":"IFERROR(INDEX('3 - Land Summary'!$G$21:$G$120,(MATCH(C955,'3 - Land Summary'!$C$21:$C$120,0))),\"\")","v":""},{"$f":"IFERROR(INDEX('3 - Land Summary'!$I$21:$I$120,(MATCH(C955,'3 - Land Summary'!$C$21:$C$120,0))),\"\")","v":""},"","",null,null,null,{"$f":"IFERROR(VLOOKUP(D955,'Species List'!$D$10:$E$46,2,FALSE)*J955,\"\")","v":""},{"$f":"IFERROR(VLOOKUP(D955,'Species List'!$D$51:$E$89,2,FALSE)*J955,\"\")","v":""},{"$f":"IFERROR(VLOOKUP(D955,'Species List'!$D$95:$E$102,2,FALSE)*J955,\"\")","v":""},{"$f":"IFERROR(VLOOKUP(D955,'Species List'!$I$10:$J$11,2,FALSE)*J955,\"\")","v":""},{"$f":"IFERROR(VLOOKUP(D955,'Species List'!$I$16:$J$61,2,FALSE)*J955,\"\")","v":""},{"$f":"IFERROR(VLOOKUP(D955,'Species List'!$I$66:$J$66,2,FALSE)*J955,\"\")","v":""},{"$f":"IFERROR(VLOOKUP(D955,'Species List'!$I$71:$J$82,2,FALSE)*J955,\"\")","v":""},0,null,null,null,null,null,null,{"$f":"IFERROR(INDEX('3 - Land Summary'!$B$21:$B$120,(MATCH(AD955,'3 - Land Summary'!$C$21:$C$120,0))),\"\")","v":""}]
[null,{"$f":"IFERROR(INDEX('3 - Land Summary'!$B$21:$B$120,(MATCH('4 - Species Breakdown'!$V956,'3 - Land Summary'!$C$21:$C$120,0))),\"\")","v":""},null,null,{"$f":"IF(OR(COUNTIF('Look Up Data'!$D$149:$D$203,D956),COUNTIF('Look Up Data'!$D$149:$D$203,AE956)),\"YES\",\"NO\")","v":"NO"},null,null,{"$f":"IFERROR(INDEX('3 - Land Summary'!$G$21:$G$120,(MATCH(C956,'3 - Land Summary'!$C$21:$C$120,0))),\"\")","v":""},{"$f":"IFERROR(INDEX('3 - Land Summary'!$I$21:$I$120,(MATCH(C956,'3 - Land Summary'!$C$21:$C$120,0))),\"\")","v":""},"","",null,null,null,{"$f":"IFERROR(VLOOKUP(D956,'Species List'!$D$10:$E$46,2,FALSE)*J956,\"\")","v":""},{"$f":"IFERROR(VLOOKUP(D956,'Species List'!$D$51:$E$89,2,FALSE)*J956,\"\")","v":""},{"$f":"IFERROR(VLOOKUP(D956,'Species List'!$D$95:$E$102,2,FALSE)*J956,\"\")","v":""},{"$f":"IFERROR(VLOOKUP(D956,'Species List'!$I$10:$J$11,2,FALSE)*J956,\"\")","v":""},{"$f":"IFERROR(VLOOKUP(D956,'Species List'!$I$16:$J$61,2,FALSE)*J956,\"\")","v":""},{"$f":"IFERROR(VLOOKUP(D956,'Species List'!$I$66:$J$66,2,FALSE)*J956,\"\")","v":""},{"$f":"IFERROR(VLOOKUP(D956,'Species List'!$I$71:$J$82,2,FALSE)*J956,\"\")","v":""},0,null,null,null,null,null,null,{"$f":"IFERROR(INDEX('3 - Land Summary'!$B$21:$B$120,(MATCH(AD956,'3 - Land Summary'!$C$21:$C$120,0))),\"\")","v":""}]
[null,{"$f":"IFERROR(INDEX('3 - Land Summary'!$B$21:$B$120,(MATCH('4 - Species Breakdown'!$V957,'3 - Land Summary'!$C$21:$C$120,0))),\"\")","v":""},null,null,{"$f":"IF(OR(COUNTIF('Look Up Data'!$D$149:$D$203,D957),COUNTIF('Look Up Data'!$D$149:$D$203,AE957)),\"YES\",\"NO\")","v":"NO"},null,null,{"$f":"IFERROR(INDEX('3 - Land Summary'!$G$21:$G$120,(MATCH(C957,'3 - Land Summary'!$C$21:$C$120,0))),\"\")","v":""},{"$f":"IFERROR(INDEX('3 - Land Summary'!$I$21:$I$120,(MATCH(C957,'3 - Land Summary'!$C$21:$C$120,0))),\"\")","v":""},"","",null,null,null,{"$f":"IFERROR(VLOOKUP(D957,'Species List'!$D$10:$E$46,2,FALSE)*J957,\"\")","v":""},{"$f":"IFERROR(VLOOKUP(D957,'Species List'!$D$51:$E$89,2,FALSE)*J957,\"\")","v":""},{"$f":"IFERROR(VLOOKUP(D957,'Species List'!$D$95:$E$102,2,FALSE)*J957,\"\")","v":""},{"$f":"IFERROR(VLOOKUP(D957,'Species List'!$I$10:$J$11,2,FALSE)*J957,\"\")","v":""},{"$f":"IFERROR(VLOOKUP(D957,'Species List'!$I$16:$J$61,2,FALSE)*J957,\"\")","v":""},{"$f":"IFERROR(VLOOKUP(D957,'Species List'!$I$66:$J$66,2,FALSE)*J957,\"\")","v":""},{"$f":"IFERROR(VLOOKUP(D957,'Species List'!$I$71:$J$82,2,FALSE)*J957,\"\")","v":""},0,null,null,null,null,null,null,{"$f":"IFERROR(INDEX('3 - Land Summary'!$B$21:$B$120,(MATCH(AD957,'3 - Land Summary'!$C$21:$C$120,0))),\"\")","v":""}]
[null,{"$f":"IFERROR(INDEX('3 - Land Summary'!$B$21:$B$120,(MATCH('4 - Species Breakdown'!$V958,'3 - Land Summary'!$C$21:$C$120,0))),\"\")","v":""},null,null,{"$f":"IF(OR(COUNTIF('Look Up Data'!$D$149:$D$203,D958),COUNTIF('Look Up Data'!$D$149:$D$203,AE958)),\"YES\",\"NO\")","v":"NO"},null,null,{"$f":"IFERROR(INDEX('3 - Land Summary'!$G$21:$G$120,(MATCH(C958,'3 - Land Summary'!$C$21:$C$120,0))),\"\")","v":""},{"$f":"IFERROR(INDEX('3 - Land Summary'!$I$21:$I$120,(MATCH(C958,'3 - Land Summary'!$C$21:$C$120,0))),\"\")","v":""},"","",null,null,null,{"$f":"IFERROR(VLOOKUP(D958,'Species List'!$D$10:$E$46,2,FALSE)*J958,\"\")","v":""},{"$f":"IFERROR(VLOOKUP(D958,'Species List'!$D$51:$E$89,2,FALSE)*J958,\"\")","v":""},{"$f":"IFERROR(VLOOKUP(D958,'Species List'!$D$95:$E$102,2,FALSE)*J958,\"\")","v":""},{"$f":"IFERROR(VLOOKUP(D958,'Species List'!$I$10:$J$11,2,FALSE)*J958,\"\")","v":""},{"$f":"IFERROR(VLOOKUP(D958,'Species List'!$I$16:$J$61,2,FALSE)*J958,\"\")","v":""},{"$f":"IFERROR(VLOOKUP(D958,'Species List'!$I$66:$J$66,2,FALSE)*J958,\"\")","v":""},{"$f":"IFERROR(VLOOKUP(D958,'Species List'!$I$71:$J$82,2,FALSE)*J958,\"\")","v":""},0,null,null,null,null,null,null,{"$f":"IFERROR(INDEX('3 - Land Summary'!$B$21:$B$120,(MATCH(AD958,'3 - Land Summary'!$C$21:$C$120,0))),\"\")","v":""}]
[null,{"$f":"IFERROR(INDEX('3 - Land Summary'!$B$21:$B$120,(MATCH('4 - Species Breakdown'!$V959,'3 - Land Summary'!$C$21:$C$120,0))),\"\")","v":""},null,null,{"$f":"IF(OR(COUNTIF('Look Up Data'!$D$149:$D$203,D959),COUNTIF('Look Up Data'!$D$149:$D$203,AE959)),\"YES\",\"NO\")","v":"NO"},null,null,{"$f":"IFERROR(INDEX('3 - Land Summary'!$G$21:$G$120,(MATCH(C959,'3 - Land Summary'!$C$21:$C$120,0))),\"\")","v":""},{"$f":"IFERROR(INDEX('3 - Land Summary'!$I$21:$I$120,(MATCH(C959,'3 - Land Summary'!$C$21:$C$120,0))),\"\")","v":""},"","",null,null,null,{"$f":"IFERROR(VLOOKUP(D959,'Species List'!$D$10:$E$46,2,FALSE)*J959,\"\")","v":""},{"$f":"IFERROR(VLOOKUP(D959,'Species List'!$D$51:$E$89,2,FALSE)*J959,\"\")","v":""},{"$f":"IFERROR(VLOOKUP(D959,'Species List'!$D$95:$E$102,2,FALSE)*J959,\"\")","v":""},{"$f":"IFERROR(VLOOKUP(D959,'Species List'!$I$10:$J$11,2,FALSE)*J959,\"\")","v":""},{"$f":"IFERROR(VLOOKUP(D959,'Species List'!$I$16:$J$61,2,FALSE)*J959,\"\")","v":""},{"$f":"IFERROR(VLOOKUP(D959,'Species List'!$I$66:$J$66,2,FALSE)*J959,\"\")","v":""},{"$f":"IFERROR(VLOOKUP(D959,'Species List'!$I$71:$J$82,2,FALSE)*J959,\"\")","v":""},0,null,null,null,null,null,null,{"$f":"IFERROR(INDEX('3 - Land Summary'!$B$21:$B$120,(MATCH(AD959,'3 - Land Summary'!$C$21:$C$120,0))),\"\")","v":""}]
[null,{"$f":"IFERROR(INDEX('3 - Land Summary'!$B$21:$B$120,(MATCH('4 - Species Breakdown'!$V960,'3 - Land Summary'!$C$21:$C$120,0))),\"\")","v":""},null,null,{"$f":"IF(OR(COUNTIF('Look Up Data'!$D$149:$D$203,D960),COUNTIF('Look Up Data'!$D$149:$D$203,AE960)),\"YES\",\"NO\")","v":"NO"},null,null,{"$f":"IFERROR(INDEX('3 - Land Summary'!$G$21:$G$120,(MATCH(C960,'3 - Land Summary'!$C$21:$C$120,0))),\"\")","v":""},{"$f":"IFERROR(INDEX('3 - Land Summary'!$I$21:$I$120,(MATCH(C960,'3 - Land Summary'!$C$21:$C$120,0))),\"\")","v":""},"","",null,null,null,{"$f":"IFERROR(VLOOKUP(D960,'Species List'!$D$10:$E$46,2,FALSE)*J960,\"\")","v":""},{"$f":"IFERROR(VLOOKUP(D960,'Species List'!$D$51:$E$89,2,FALSE)*J960,\"\")","v":""},{"$f":"IFERROR(VLOOKUP(D960,'Species List'!$D$95:$E$102,2,FALSE)*J960,\"\")","v":""},{"$f":"IFERROR(VLOOKUP(D960,'Species List'!$I$10:$J$11,2,FALSE)*J960,\"\")","v":""},{"$f":"IFERROR(VLOOKUP(D960,'Species List'!$I$16:$J$61,2,FALSE)*J960,\"\")","v":""},{"$f":"IFERROR(VLOOKUP(D960,'Species List'!$I$66:$J$66,2,FALSE)*J960,\"\")","v":""},{"$f":"IFERROR(VLOOKUP(D960,'Species List'!$I$71:$J$82,2,FALSE)*J960,\"\")","v":""},0,null,null,null,null,null,null,{"$f":"IFERROR(INDEX('3 - Land Summary'!$B$21:$B$120,(MATCH(AD960,'3 - Land Summary'!$C$21:$C$120,0))),\"\")","v":""}]
[null,{"$f":"IFERROR(INDEX('3 - Land Summary'!$B$21:$B$120,(MATCH('4 - Species Breakdown'!$V961,'3 - Land Summary'!$C$21:$C$120,0))),\"\")","v":""},null,null,{"$f":"IF(OR(COUNTIF('Look Up Data'!$D$149:$D$203,D961),COUNTIF('Look Up Data'!$D$149:$D$203,AE961)),\"YES\",\"NO\")","v":"NO"},null,null,{"$f":"IFERROR(INDEX('3 - Land Summary'!$G$21:$G$120,(MATCH(C961,'3 - Land Summary'!$C$21:$C$120,0))),\"\")","v":""},{"$f":"IFERROR(INDEX('3 - Land Summary'!$I$21:$I$120,(MATCH(C961,'3 - Land Summary'!$C$21:$C$120,0))),\"\")","v":""},"","",null,null,null,{"$f":"IFERROR(VLOOKUP(D961,'Species List'!$D$10:$E$46,2,FALSE)*J961,\"\")","v":""},{"$f":"IFERROR(VLOOKUP(D961,'Species List'!$D$51:$E$89,2,FALSE)*J961,\"\")","v":""},{"$f":"IFERROR(VLOOKUP(D961,'Species List'!$D$95:$E$102,2,FALSE)*J961,\"\")","v":""},{"$f":"IFERROR(VLOOKUP(D961,'Species List'!$I$10:$J$11,2,FALSE)*J961,\"\")","v":""},{"$f":"IFERROR(VLOOKUP(D961,'Species List'!$I$16:$J$61,2,FALSE)*J961,\"\")","v":""},{"$f":"IFERROR(VLOOKUP(D961,'Species List'!$I$66:$J$66,2,FALSE)*J961,\"\")","v":""},{"$f":"IFERROR(VLOOKUP(D961,'Species List'!$I$71:$J$82,2,FALSE)*J961,\"\")","v":""},0,null,null,null,null,null,null,{"$f":"IFERROR(INDEX('3 - Land Summary'!$B$21:$B$120,(MATCH(AD961,'3 - Land Summary'!$C$21:$C$120,0))),\"\")","v":""}]
[null,{"$f":"IFERROR(INDEX('3 - Land Summary'!$B$21:$B$120,(MATCH('4 - Species Breakdown'!$V962,'3 - Land Summary'!$C$21:$C$120,0))),\"\")","v":""},null,null,{"$f":"IF(OR(COUNTIF('Look Up Data'!$D$149:$D$203,D962),COUNTIF('Look Up Data'!$D$149:$D$203,AE962)),\"YES\",\"NO\")","v":"NO"},null,null,{"$f":"IFERROR(INDEX('3 - Land Summary'!$G$21:$G$120,(MATCH(C962,'3 - Land Summary'!$C$21:$C$120,0))),\"\")","v":""},{"$f":"IFERROR(INDEX('3 - Land Summary'!$I$21:$I$120,(MATCH(C962,'3 - Land Summary'!$C$21:$C$120,0))),\"\")","v":""},"","",null,null,null,{"$f":"IFERROR(VLOOKUP(D962,'Species List'!$D$10:$E$46,2,FALSE)*J962,\"\")","v":""},{"$f":"IFERROR(VLOOKUP(D962,'Species List'!$D$51:$E$89,2,FALSE)*J962,\"\")","v":""},{"$f":"IFERROR(VLOOKUP(D962,'Species List'!$D$95:$E$102,2,FALSE)*J962,\"\")","v":""},{"$f":"IFERROR(VLOOKUP(D962,'Species List'!$I$10:$J$11,2,FALSE)*J962,\"\")","v":""},{"$f":"IFERROR(VLOOKUP(D962,'Species List'!$I$16:$J$61,2,FALSE)*J962,\"\")","v":""},{"$f":"IFERROR(VLOOKUP(D962,'Species List'!$I$66:$J$66,2,FALSE)*J962,\"\")","v":""},{"$f":"IFERROR(VLOOKUP(D962,'Species List'!$I$71:$J$82,2,FALSE)*J962,\"\")","v":""},0,null,null,null,null,null,null,{"$f":"IFERROR(INDEX('3 - Land Summary'!$B$21:$B$120,(MATCH(AD962,'3 - Land Summary'!$C$21:$C$120,0))),\"\")","v":""}]
[null,{"$f":"IFERROR(INDEX('3 - Land Summary'!$B$21:$B$120,(MATCH('4 - Species Breakdown'!$V963,'3 - Land Summary'!$C$21:$C$120,0))),\"\")","v":""},null,null,{"$f":"IF(OR(COUNTIF('Look Up Data'!$D$149:$D$203,D963),COUNTIF('Look Up Data'!$D$149:$D$203,AE963)),\"YES\",\"NO\")","v":"NO"},null,null,{"$f":"IFERROR(INDEX('3 - Land Summary'!$G$21:$G$120,(MATCH(C963,'3 - Land Summary'!$C$21:$C$120,0))),\"\")","v":""},{"$f":"IFERROR(INDEX('3 - Land Summary'!$I$21:$I$120,(MATCH(C963,'3 - Land Summary'!$C$21:$C$120,0))),\"\")","v":""},"","",null,null,null,{"$f":"IFERROR(VLOOKUP(D963,'Species List'!$D$10:$E$46,2,FALSE)*J963,\"\")","v":""},{"$f":"IFERROR(VLOOKUP(D963,'Species List'!$D$51:$E$89,2,FALSE)*J963,\"\")","v":""},{"$f":"IFERROR(VLOOKUP(D963,'Species List'!$D$95:$E$102,2,FALSE)*J963,\"\")","v":""},{"$f":"IFERROR(VLOOKUP(D963,'Species List'!$I$10:$J$11,2,FALSE)*J963,\"\")","v":""},{"$f":"IFERROR(VLOOKUP(D963,'Species List'!$I$16:$J$61,2,FALSE)*J963,\"\")","v":""},{"$f":"IFERROR(VLOOKUP(D963,'Species List'!$I$66:$J$66,2,FALSE)*J963,\"\")","v":""},{"$f":"IFERROR(VLOOKUP(D963,'Species List'!$I$71:$J$82,2,FALSE)*J963,\"\")","v":""},0,null,null,null,null,null,null,{"$f":"IFERROR(INDEX('3 - Land Summary'!$B$21:$B$120,(MATCH(AD963,'3 - Land Summary'!$C$21:$C$120,0))),\"\")","v":""}]
[null,{"$f":"IFERROR(INDEX('3 - Land Summary'!$B$21:$B$120,(MATCH('4 - Species Breakdown'!$V964,'3 - Land Summary'!$C$21:$C$120,0))),\"\")","v":""},null,null,{"$f":"IF(OR(COUNTIF('Look Up Data'!$D$149:$D$203,D964),COUNTIF('Look Up Data'!$D$149:$D$203,AE964)),\"YES\",\"NO\")","v":"NO"},null,null,{"$f":"IFERROR(INDEX('3 - Land Summary'!$G$21:$G$120,(MATCH(C964,'3 - Land Summary'!$C$21:$C$120,0))),\"\")","v":""},{"$f":"IFERROR(INDEX('3 - Land Summary'!$I$21:$I$120,(MATCH(C964,'3 - Land Summary'!$C$21:$C$120,0))),\"\")","v":""},"","",null,null,null,{"$f":"IFERROR(VLOOKUP(D964,'Species List'!$D$10:$E$46,2,FALSE)*J964,\"\")","v":""},{"$f":"IFERROR(VLOOKUP(D964,'Species List'!$D$51:$E$89,2,FALSE)*J964,\"\")","v":""},{"$f":"IFERROR(VLOOKUP(D964,'Species List'!$D$95:$E$102,2,FALSE)*J964,\"\")","v":""},{"$f":"IFERROR(VLOOKUP(D964,'Species List'!$I$10:$J$11,2,FALSE)*J964,\"\")","v":""},{"$f":"IFERROR(VLOOKUP(D964,'Species List'!$I$16:$J$61,2,FALSE)*J964,\"\")","v":""},{"$f":"IFERROR(VLOOKUP(D964,'Species List'!$I$66:$J$66,2,FALSE)*J964,\"\")","v":""},{"$f":"IFERROR(VLOOKUP(D964,'Species List'!$I$71:$J$82,2,FALSE)*J964,\"\")","v":""},0,null,null,null,null,null,null,{"$f":"IFERROR(INDEX('3 - Land Summary'!$B$21:$B$120,(MATCH(AD964,'3 - Land Summary'!$C$21:$C$120,0))),\"\")","v":""}]
[null,{"$f":"IFERROR(INDEX('3 - Land Summary'!$B$21:$B$120,(MATCH('4 - Species Breakdown'!$V965,'3 - Land Summary'!$C$21:$C$120,0))),\"\")","v":""},null,null,{"$f":"IF(OR(COUNTIF('Look Up Data'!$D$149:$D$203,D965),COUNTIF('Look Up Data'!$D$149:$D$203,AE965)),\"YES\",\"NO\")","v":"NO"},null,null,{"$f":"IFERROR(INDEX('3 - Land Summary'!$G$21:$G$120,(MATCH(C965,'3 - Land Summary'!$C$21:$C$120,0))),\"\")","v":""},{"$f":"IFERROR(INDEX('3 - Land Summary'!$I$21:$I$120,(MATCH(C965,'3 - Land Summary'!$C$21:$C$120,0))),\"\")","v":""},"","",null,null,null,{"$f":"IFERROR(VLOOKUP(D965,'Species List'!$D$10:$E$46,2,FALSE)*J965,\"\")","v":""},{"$f":"IFERROR(VLOOKUP(D965,'Species List'!$D$51:$E$89,2,FALSE)*J965,\"\")","v":""},{"$f":"IFERROR(VLOOKUP(D965,'Species List'!$D$95:$E$102,2,FALSE)*J965,\"\")","v":""},{"$f":"IFERROR(VLOOKUP(D965,'Species List'!$I$10:$J$11,2,FALSE)*J965,\"\")","v":""},{"$f":"IFERROR(VLOOKUP(D965,'Species List'!$I$16:$J$61,2,FALSE)*J965,\"\")","v":""},{"$f":"IFERROR(VLOOKUP(D965,'Species List'!$I$66:$J$66,2,FALSE)*J965,\"\")","v":""},{"$f":"IFERROR(VLOOKUP(D965,'Species List'!$I$71:$J$82,2,FALSE)*J965,\"\")","v":""},0,null,null,null,null,null,null,{"$f":"IFERROR(INDEX('3 - Land Summary'!$B$21:$B$120,(MATCH(AD965,'3 - Land Summary'!$C$21:$C$120,0))),\"\")","v":""}]
[null,{"$f":"IFERROR(INDEX('3 - Land Summary'!$B$21:$B$120,(MATCH('4 - Species Breakdown'!$V966,'3 - Land Summary'!$C$21:$C$120,0))),\"\")","v":""},null,null,{"$f":"IF(OR(COUNTIF('Look Up Data'!$D$149:$D$203,D966),COUNTIF('Look Up Data'!$D$149:$D$203,AE966)),\"YES\",\"NO\")","v":"NO"},null,null,{"$f":"IFERROR(INDEX('3 - Land Summary'!$G$21:$G$120,(MATCH(C966,'3 - Land Summary'!$C$21:$C$120,0))),\"\")","v":""},{"$f":"IFERROR(INDEX('3 - Land Summary'!$I$21:$I$120,(MATCH(C966,'3 - Land Summary'!$C$21:$C$120,0))),\"\")","v":""},"","",null,null,null,{"$f":"IFERROR(VLOOKUP(D966,'Species List'!$D$10:$E$46,2,FALSE)*J966,\"\")","v":""},{"$f":"IFERROR(VLOOKUP(D966,'Species List'!$D$51:$E$89,2,FALSE)*J966,\"\")","v":""},{"$f":"IFERROR(VLOOKUP(D966,'Species List'!$D$95:$E$102,2,FALSE)*J966,\"\")","v":""},{"$f":"IFERROR(VLOOKUP(D966,'Species List'!$I$10:$J$11,2,FALSE)*J966,\"\")","v":""},{"$f":"IFERROR(VLOOKUP(D966,'Species List'!$I$16:$J$61,2,FALSE)*J966,\"\")","v":""},{"$f":"IFERROR(VLOOKUP(D966,'Species List'!$I$66:$J$66,2,FALSE)*J966,\"\")","v":""},{"$f":"IFERROR(VLOOKUP(D966,'Species List'!$I$71:$J$82,2,FALSE)*J966,\"\")","v":""},0,null,null,null,null,null,null,{"$f":"IFERROR(INDEX('3 - Land Summary'!$B$21:$B$120,(MATCH(AD966,'3 - Land Summary'!$C$21:$C$120,0))),\"\")","v":""}]
[null,{"$f":"IFERROR(INDEX('3 - Land Summary'!$B$21:$B$120,(MATCH('4 - Species Breakdown'!$V967,'3 - Land Summary'!$C$21:$C$120,0))),\"\")","v":""},null,null,{"$f":"IF(OR(COUNTIF('Look Up Data'!$D$149:$D$203,D967),COUNTIF('Look Up Data'!$D$149:$D$203,AE967)),\"YES\",\"NO\")","v":"NO"},null,null,{"$f":"IFERROR(INDEX('3 - Land Summary'!$G$21:$G$120,(MATCH(C967,'3 - Land Summary'!$C$21:$C$120,0))),\"\")","v":""},{"$f":"IFERROR(INDEX('3 - Land Summary'!$I$21:$I$120,(MATCH(C967,'3 - Land Summary'!$C$21:$C$120,0))),\"\")","v":""},"","",null,null,null,{"$f":"IFERROR(VLOOKUP(D967,'Species List'!$D$10:$E$46,2,FALSE)*J967,\"\")","v":""},{"$f":"IFERROR(VLOOKUP(D967,'Species List'!$D$51:$E$89,2,FALSE)*J967,\"\")","v":""},{"$f":"IFERROR(VLOOKUP(D967,'Species List'!$D$95:$E$102,2,FALSE)*J967,\"\")","v":""},{"$f":"IFERROR(VLOOKUP(D967,'Species List'!$I$10:$J$11,2,FALSE)*J967,\"\")","v":""},{"$f":"IFERROR(VLOOKUP(D967,'Species List'!$I$16:$J$61,2,FALSE)*J967,\"\")","v":""},{"$f":"IFERROR(VLOOKUP(D967,'Species List'!$I$66:$J$66,2,FALSE)*J967,\"\")","v":""},{"$f":"IFERROR(VLOOKUP(D967,'Species List'!$I$71:$J$82,2,FALSE)*J967,\"\")","v":""},0,null,null,null,null,null,null,{"$f":"IFERROR(INDEX('3 - Land Summary'!$B$21:$B$120,(MATCH(AD967,'3 - Land Summary'!$C$21:$C$120,0))),\"\")","v":""}]
[null,{"$f":"IFERROR(INDEX('3 - Land Summary'!$B$21:$B$120,(MATCH('4 - Species Breakdown'!$V968,'3 - Land Summary'!$C$21:$C$120,0))),\"\")","v":""},null,null,{"$f":"IF(OR(COUNTIF('Look Up Data'!$D$149:$D$203,D968),COUNTIF('Look Up Data'!$D$149:$D$203,AE968)),\"YES\",\"NO\")","v":"NO"},null,null,{"$f":"IFERROR(INDEX('3 - Land Summary'!$G$21:$G$120,(MATCH(C968,'3 - Land Summary'!$C$21:$C$120,0))),\"\")","v":""},{"$f":"IFERROR(INDEX('3 - Land Summary'!$I$21:$I$120,(MATCH(C968,'3 - Land Summary'!$C$21:$C$120,0))),\"\")","v":""},"","",null,null,null,{"$f":"IFERROR(VLOOKUP(D968,'Species List'!$D$10:$E$46,2,FALSE)*J968,\"\")","v":""},{"$f":"IFERROR(VLOOKUP(D968,'Species List'!$D$51:$E$89,2,FALSE)*J968,\"\")","v":""},{"$f":"IFERROR(VLOOKUP(D968,'Species List'!$D$95:$E$102,2,FALSE)*J968,\"\")","v":""},{"$f":"IFERROR(VLOOKUP(D968,'Species List'!$I$10:$J$11,2,FALSE)*J968,\"\")","v":""},{"$f":"IFERROR(VLOOKUP(D968,'Species List'!$I$16:$J$61,2,FALSE)*J968,\"\")","v":""},{"$f":"IFERROR(VLOOKUP(D968,'Species List'!$I$66:$J$66,2,FALSE)*J968,\"\")","v":""},{"$f":"IFERROR(VLOOKUP(D968,'Species List'!$I$71:$J$82,2,FALSE)*J968,\"\")","v":""},0,null,null,null,null,null,null,{"$f":"IFERROR(INDEX('3 - Land Summary'!$B$21:$B$120,(MATCH(AD968,'3 - Land Summary'!$C$21:$C$120,0))),\"\")","v":""}]
[null,{"$f":"IFERROR(INDEX('3 - Land Summary'!$B$21:$B$120,(MATCH('4 - Species Breakdown'!$V969,'3 - Land Summary'!$C$21:$C$120,0))),\"\")","v":""},null,null,{"$f":"IF(OR(COUNTIF('Look Up Data'!$D$149:$D$203,D969),COUNTIF('Look Up Data'!$D$149:$D$203,AE969)),\"YES\",\"NO\")","v":"NO"},null,null,{"$f":"IFERROR(INDEX('3 - Land Summary'!$G$21:$G$120,(MATCH(C969,'3 - Land Summary'!$C$21:$C$120,0))),\"\")","v":""},{"$f":"IFERROR(INDEX('3 - Land Summary'!$I$21:$I$120,(MATCH(C969,'3 - Land Summary'!$C$21:$C$120,0))),\"\")","v":""},"","",null,null,null,{"$f":"IFERROR(VLOOKUP(D969,'Species List'!$D$10:$E$46,2,FALSE)*J969,\"\")","v":""},{"$f":"IFERROR(VLOOKUP(D969,'Species List'!$D$51:$E$89,2,FALSE)*J969,\"\")","v":""},{"$f":"IFERROR(VLOOKUP(D969,'Species List'!$D$95:$E$102,2,FALSE)*J969,\"\")","v":""},{"$f":"IFERROR(VLOOKUP(D969,'Species List'!$I$10:$J$11,2,FALSE)*J969,\"\")","v":""},{"$f":"IFERROR(VLOOKUP(D969,'Species List'!$I$16:$J$61,2,FALSE)*J969,\"\")","v":""},{"$f":"IFERROR(VLOOKUP(D969,'Species List'!$I$66:$J$66,2,FALSE)*J969,\"\")","v":""},{"$f":"IFERROR(VLOOKUP(D969,'Species List'!$I$71:$J$82,2,FALSE)*J969,\"\")","v":""},0,null,null,null,null,null,null,{"$f":"IFERROR(INDEX('3 - Land Summary'!$B$21:$B$120,(MATCH(AD969,'3 - Land Summary'!$C$21:$C$120,0))),\"\")","v":""}]
[null,{"$f":"IFERROR(INDEX('3 - Land Summary'!$B$21:$B$120,(MATCH('4 - Species Breakdown'!$V970,'3 - Land Summary'!$C$21:$C$120,0))),\"\")","v":""},null,null,{"$f":"IF(OR(COUNTIF('Look Up Data'!$D$149:$D$203,D970),COUNTIF('Look Up Data'!$D$149:$D$203,AE970)),\"YES\",\"NO\")","v":"NO"},null,null,{"$f":"IFERROR(INDEX('3 - Land Summary'!$G$21:$G$120,(MATCH(C970,'3 - Land Summary'!$C$21:$C$120,0))),\"\")","v":""},{"$f":"IFERROR(INDEX('3 - Land Summary'!$I$21:$I$120,(MATCH(C970,'3 - Land Summary'!$C$21:$C$120,0))),\"\")","v":""},"","",null,null,null,{"$f":"IFERROR(VLOOKUP(D970,'Species List'!$D$10:$E$46,2,FALSE)*J970,\"\")","v":""},{"$f":"IFERROR(VLOOKUP(D970,'Species List'!$D$51:$E$89,2,FALSE)*J970,\"\")","v":""},{"$f":"IFERROR(VLOOKUP(D970,'Species List'!$D$95:$E$102,2,FALSE)*J970,\"\")","v":""},{"$f":"IFERROR(VLOOKUP(D970,'Species List'!$I$10:$J$11,2,FALSE)*J970,\"\")","v":""},{"$f":"IFERROR(VLOOKUP(D970,'Species List'!$I$16:$J$61,2,FALSE)*J970,\"\")","v":""},{"$f":"IFERROR(VLOOKUP(D970,'Species List'!$I$66:$J$66,2,FALSE)*J970,\"\")","v":""},{"$f":"IFERROR(VLOOKUP(D970,'Species List'!$I$71:$J$82,2,FALSE)*J970,\"\")","v":""},0,null,null,null,null,null,null,{"$f":"IFERROR(INDEX('3 - Land Summary'!$B$21:$B$120,(MATCH(AD970,'3 - Land Summary'!$C$21:$C$120,0))),\"\")","v":""}]
[null,{"$f":"IFERROR(INDEX('3 - Land Summary'!$B$21:$B$120,(MATCH('4 - Species Breakdown'!$V971,'3 - Land Summary'!$C$21:$C$120,0))),\"\")","v":""},null,null,{"$f":"IF(OR(COUNTIF('Look Up Data'!$D$149:$D$203,D971),COUNTIF('Look Up Data'!$D$149:$D$203,AE971)),\"YES\",\"NO\")","v":"NO"},null,null,{"$f":"IFERROR(INDEX('3 - Land Summary'!$G$21:$G$120,(MATCH(C971,'3 - Land Summary'!$C$21:$C$120,0))),\"\")","v":""},{"$f":"IFERROR(INDEX('3 - Land Summary'!$I$21:$I$120,(MATCH(C971,'3 - Land Summary'!$C$21:$C$120,0))),\"\")","v":""},"","",null,null,null,{"$f":"IFERROR(VLOOKUP(D971,'Species List'!$D$10:$E$46,2,FALSE)*J971,\"\")","v":""},{"$f":"IFERROR(VLOOKUP(D971,'Species List'!$D$51:$E$89,2,FALSE)*J971,\"\")","v":""},{"$f":"IFERROR(VLOOKUP(D971,'Species List'!$D$95:$E$102,2,FALSE)*J971,\"\")","v":""},{"$f":"IFERROR(VLOOKUP(D971,'Species List'!$I$10:$J$11,2,FALSE)*J971,\"\")","v":""},{"$f":"IFERROR(VLOOKUP(D971,'Species List'!$I$16:$J$61,2,FALSE)*J971,\"\")","v":""},{"$f":"IFERROR(VLOOKUP(D971,'Species List'!$I$66:$J$66,2,FALSE)*J971,\"\")","v":""},{"$f":"IFERROR(VLOOKUP(D971,'Species List'!$I$71:$J$82,2,FALSE)*J971,\"\")","v":""},0,null,null,null,null,null,null,{"$f":"IFERROR(INDEX('3 - Land Summary'!$B$21:$B$120,(MATCH(AD971,'3 - Land Summary'!$C$21:$C$120,0))),\"\")","v":""}]
[null,{"$f":"IFERROR(INDEX('3 - Land Summary'!$B$21:$B$120,(MATCH('4 - Species Breakdown'!$V972,'3 - Land Summary'!$C$21:$C$120,0))),\"\")","v":""},null,null,{"$f":"IF(OR(COUNTIF('Look Up Data'!$D$149:$D$203,D972),COUNTIF('Look Up Data'!$D$149:$D$203,AE972)),\"YES\",\"NO\")","v":"NO"},null,null,{"$f":"IFERROR(INDEX('3 - Land Summary'!$G$21:$G$120,(MATCH(C972,'3 - Land Summary'!$C$21:$C$120,0))),\"\")","v":""},{"$f":"IFERROR(INDEX('3 - Land Summary'!$I$21:$I$120,(MATCH(C972,'3 - Land Summary'!$C$21:$C$120,0))),\"\")","v":""},"","",null,null,null,{"$f":"IFERROR(VLOOKUP(D972,'Species List'!$D$10:$E$46,2,FALSE)*J972,\"\")","v":""},{"$f":"IFERROR(VLOOKUP(D972,'Species List'!$D$51:$E$89,2,FALSE)*J972,\"\")","v":""},{"$f":"IFERROR(VLOOKUP(D972,'Species List'!$D$95:$E$102,2,FALSE)*J972,\"\")","v":""},{"$f":"IFERROR(VLOOKUP(D972,'Species List'!$I$10:$J$11,2,FALSE)*J972,\"\")","v":""},{"$f":"IFERROR(VLOOKUP(D972,'Species List'!$I$16:$J$61,2,FALSE)*J972,\"\")","v":""},{"$f":"IFERROR(VLOOKUP(D972,'Species List'!$I$66:$J$66,2,FALSE)*J972,\"\")","v":""},{"$f":"IFERROR(VLOOKUP(D972,'Species List'!$I$71:$J$82,2,FALSE)*J972,\"\")","v":""},0,null,null,null,null,null,null,{"$f":"IFERROR(INDEX('3 - Land Summary'!$B$21:$B$120,(MATCH(AD972,'3 - Land Summary'!$C$21:$C$120,0))),\"\")","v":""}]
[null,{"$f":"IFERROR(INDEX('3 - Land Summary'!$B$21:$B$120,(MATCH('4 - Species Breakdown'!$V973,'3 - Land Summary'!$C$21:$C$120,0))),\"\")","v":""},null,null,{"$f":"IF(OR(COUNTIF('Look Up Data'!$D$149:$D$203,D973),COUNTIF('Look Up Data'!$D$149:$D$203,AE973)),\"YES\",\"NO\")","v":"NO"},null,null,{"$f":"IFERROR(INDEX('3 - Land Summary'!$G$21:$G$120,(MATCH(C973,'3 - Land Summary'!$C$21:$C$120,0))),\"\")","v":""},{"$f":"IFERROR(INDEX('3 - Land Summary'!$I$21:$I$120,(MATCH(C973,'3 - Land Summary'!$C$21:$C$120,0))),\"\")","v":""},"","",null,null,null,{"$f":"IFERROR(VLOOKUP(D973,'Species List'!$D$10:$E$46,2,FALSE)*J973,\"\")","v":""},{"$f":"IFERROR(VLOOKUP(D973,'Species List'!$D$51:$E$89,2,FALSE)*J973,\"\")","v":""},{"$f":"IFERROR(VLOOKUP(D973,'Species List'!$D$95:$E$102,2,FALSE)*J973,\"\")","v":""},{"$f":"IFERROR(VLOOKUP(D973,'Species List'!$I$10:$J$11,2,FALSE)*J973,\"\")","v":""},{"$f":"IFERROR(VLOOKUP(D973,'Species List'!$I$16:$J$61,2,FALSE)*J973,\"\")","v":""},{"$f":"IFERROR(VLOOKUP(D973,'Species List'!$I$66:$J$66,2,FALSE)*J973,\"\")","v":""},{"$f":"IFERROR(VLOOKUP(D973,'Species List'!$I$71:$J$82,2,FALSE)*J973,\"\")","v":""},0,null,null,null,null,null,null,{"$f":"IFERROR(INDEX('3 - Land Summary'!$B$21:$B$120,(MATCH(AD973,'3 - Land Summary'!$C$21:$C$120,0))),\"\")","v":""}]
[null,{"$f":"IFERROR(INDEX('3 - Land Summary'!$B$21:$B$120,(MATCH('4 - Species Breakdown'!$V974,'3 - Land Summary'!$C$21:$C$120,0))),\"\")","v":""},null,null,{"$f":"IF(OR(COUNTIF('Look Up Data'!$D$149:$D$203,D974),COUNTIF('Look Up Data'!$D$149:$D$203,AE974)),\"YES\",\"NO\")","v":"NO"},null,null,{"$f":"IFERROR(INDEX('3 - Land Summary'!$G$21:$G$120,(MATCH(C974,'3 - Land Summary'!$C$21:$C$120,0))),\"\")","v":""},{"$f":"IFERROR(INDEX('3 - Land Summary'!$I$21:$I$120,(MATCH(C974,'3 - Land Summary'!$C$21:$C$120,0))),\"\")","v":""},"","",null,null,null,{"$f":"IFERROR(VLOOKUP(D974,'Species List'!$D$10:$E$46,2,FALSE)*J974,\"\")","v":""},{"$f":"IFERROR(VLOOKUP(D974,'Species List'!$D$51:$E$89,2,FALSE)*J974,\"\")","v":""},{"$f":"IFERROR(VLOOKUP(D974,'Species List'!$D$95:$E$102,2,FALSE)*J974,\"\")","v":""},{"$f":"IFERROR(VLOOKUP(D974,'Species List'!$I$10:$J$11,2,FALSE)*J974,\"\")","v":""},{"$f":"IFERROR(VLOOKUP(D974,'Species List'!$I$16:$J$61,2,FALSE)*J974,\"\")","v":""},{"$f":"IFERROR(VLOOKUP(D974,'Species List'!$I$66:$J$66,2,FALSE)*J974,\"\")","v":""},{"$f":"IFERROR(VLOOKUP(D974,'Species List'!$I$71:$J$82,2,FALSE)*J974,\"\")","v":""},0,null,null,null,null,null,null,{"$f":"IFERROR(INDEX('3 - Land Summary'!$B$21:$B$120,(MATCH(AD974,'3 - Land Summary'!$C$21:$C$120,0))),\"\")","v":""}]
[null,{"$f":"IFERROR(INDEX('3 - Land Summary'!$B$21:$B$120,(MATCH('4 - Species Breakdown'!$V975,'3 - Land Summary'!$C$21:$C$120,0))),\"\")","v":""},null,null,{"$f":"IF(OR(COUNTIF('Look Up Data'!$D$149:$D$203,D975),COUNTIF('Look Up Data'!$D$149:$D$203,AE975)),\"YES\",\"NO\")","v":"NO"},null,null,{"$f":"IFERROR(INDEX('3 - Land Summary'!$G$21:$G$120,(MATCH(C975,'3 - Land Summary'!$C$21:$C$120,0))),\"\")","v":""},{"$f":"IFERROR(INDEX('3 - Land Summary'!$I$21:$I$120,(MATCH(C975,'3 - Land Summary'!$C$21:$C$120,0))),\"\")","v":""},"","",null,null,null,{"$f":"IFERROR(VLOOKUP(D975,'Species List'!$D$10:$E$46,2,FALSE)*J975,\"\")","v":""},{"$f":"IFERROR(VLOOKUP(D975,'Species List'!$D$51:$E$89,2,FALSE)*J975,\"\")","v":""},{"$f":"IFERROR(VLOOKUP(D975,'Species List'!$D$95:$E$102,2,FALSE)*J975,\"\")","v":""},{"$f":"IFERROR(VLOOKUP(D975,'Species List'!$I$10:$J$11,2,FALSE)*J975,\"\")","v":""},{"$f":"IFERROR(VLOOKUP(D975,'Species List'!$I$16:$J$61,2,FALSE)*J975,\"\")","v":""},{"$f":"IFERROR(VLOOKUP(D975,'Species List'!$I$66:$J$66,2,FALSE)*J975,\"\")","v":""},{"$f":"IFERROR(VLOOKUP(D975,'Species List'!$I$71:$J$82,2,FALSE)*J975,\"\")","v":""},0,null,null,null,null,null,null,{"$f":"IFERROR(INDEX('3 - Land Summary'!$B$21:$B$120,(MATCH(AD975,'3 - Land Summary'!$C$21:$C$120,0))),\"\")","v":""}]
[null,{"$f":"IFERROR(INDEX('3 - Land Summary'!$B$21:$B$120,(MATCH('4 - Species Breakdown'!$V976,'3 - Land Summary'!$C$21:$C$120,0))),\"\")","v":""},null,null,{"$f":"IF(OR(COUNTIF('Look Up Data'!$D$149:$D$203,D976),COUNTIF('Look Up Data'!$D$149:$D$203,AE976)),\"YES\",\"NO\")","v":"NO"},null,null,{"$f":"IFERROR(INDEX('3 - Land Summary'!$G$21:$G$120,(MATCH(C976,'3 - Land Summary'!$C$21:$C$120,0))),\"\")","v":""},{"$f":"IFERROR(INDEX('3 - Land Summary'!$I$21:$I$120,(MATCH(C976,'3 - Land Summary'!$C$21:$C$120,0))),\"\")","v":""},"","",null,null,null,{"$f":"IFERROR(VLOOKUP(D976,'Species List'!$D$10:$E$46,2,FALSE)*J976,\"\")","v":""},{"$f":"IFERROR(VLOOKUP(D976,'Species List'!$D$51:$E$89,2,FALSE)*J976,\"\")","v":""},{"$f":"IFERROR(VLOOKUP(D976,'Species List'!$D$95:$E$102,2,FALSE)*J976,\"\")","v":""},{"$f":"IFERROR(VLOOKUP(D976,'Species List'!$I$10:$J$11,2,FALSE)*J976,\"\")","v":""},{"$f":"IFERROR(VLOOKUP(D976,'Species List'!$I$16:$J$61,2,FALSE)*J976,\"\")","v":""},{"$f":"IFERROR(VLOOKUP(D976,'Species List'!$I$66:$J$66,2,FALSE)*J976,\"\")","v":""},{"$f":"IFERROR(VLOOKUP(D976,'Species List'!$I$71:$J$82,2,FALSE)*J976,\"\")","v":""},0,null,null,null,null,null,null,{"$f":"IFERROR(INDEX('3 - Land Summary'!$B$21:$B$120,(MATCH(AD976,'3 - Land Summary'!$C$21:$C$120,0))),\"\")","v":""}]
[null,{"$f":"IFERROR(INDEX('3 - Land Summary'!$B$21:$B$120,(MATCH('4 - Species Breakdown'!$V977,'3 - Land Summary'!$C$21:$C$120,0))),\"\")","v":""},null,null,{"$f":"IF(OR(COUNTIF('Look Up Data'!$D$149:$D$203,D977),COUNTIF('Look Up Data'!$D$149:$D$203,AE977)),\"YES\",\"NO\")","v":"NO"},null,null,{"$f":"IFERROR(INDEX('3 - Land Summary'!$G$21:$G$120,(MATCH(C977,'3 - Land Summary'!$C$21:$C$120,0))),\"\")","v":""},{"$f":"IFERROR(INDEX('3 - Land Summary'!$I$21:$I$120,(MATCH(C977,'3 - Land Summary'!$C$21:$C$120,0))),\"\")","v":""},"","",null,null,null,{"$f":"IFERROR(VLOOKUP(D977,'Species List'!$D$10:$E$46,2,FALSE)*J977,\"\")","v":""},{"$f":"IFERROR(VLOOKUP(D977,'Species List'!$D$51:$E$89,2,FALSE)*J977,\"\")","v":""},{"$f":"IFERROR(VLOOKUP(D977,'Species List'!$D$95:$E$102,2,FALSE)*J977,\"\")","v":""},{"$f":"IFERROR(VLOOKUP(D977,'Species List'!$I$10:$J$11,2,FALSE)*J977,\"\")","v":""},{"$f":"IFERROR(VLOOKUP(D977,'Species List'!$I$16:$J$61,2,FALSE)*J977,\"\")","v":""},{"$f":"IFERROR(VLOOKUP(D977,'Species List'!$I$66:$J$66,2,FALSE)*J977,\"\")","v":""},{"$f":"IFERROR(VLOOKUP(D977,'Species List'!$I$71:$J$82,2,FALSE)*J977,\"\")","v":""},0,null,null,null,null,null,null,{"$f":"IFERROR(INDEX('3 - Land Summary'!$B$21:$B$120,(MATCH(AD977,'3 - Land Summary'!$C$21:$C$120,0))),\"\")","v":""}]
[null,{"$f":"IFERROR(INDEX('3 - Land Summary'!$B$21:$B$120,(MATCH('4 - Species Breakdown'!$V978,'3 - Land Summary'!$C$21:$C$120,0))),\"\")","v":""},null,null,{"$f":"IF(OR(COUNTIF('Look Up Data'!$D$149:$D$203,D978),COUNTIF('Look Up Data'!$D$149:$D$203,AE978)),\"YES\",\"NO\")","v":"NO"},null,null,{"$f":"IFERROR(INDEX('3 - Land Summary'!$G$21:$G$120,(MATCH(C978,'3 - Land Summary'!$C$21:$C$120,0))),\"\")","v":""},{"$f":"IFERROR(INDEX('3 - Land Summary'!$I$21:$I$120,(MATCH(C978,'3 - Land Summary'!$C$21:$C$120,0))),\"\")","v":""},"","",null,null,null,{"$f":"IFERROR(VLOOKUP(D978,'Species List'!$D$10:$E$46,2,FALSE)*J978,\"\")","v":""},{"$f":"IFERROR(VLOOKUP(D978,'Species List'!$D$51:$E$89,2,FALSE)*J978,\"\")","v":""},{"$f":"IFERROR(VLOOKUP(D978,'Species List'!$D$95:$E$102,2,FALSE)*J978,\"\")","v":""},{"$f":"IFERROR(VLOOKUP(D978,'Species List'!$I$10:$J$11,2,FALSE)*J978,\"\")","v":""},{"$f":"IFERROR(VLOOKUP(D978,'Species List'!$I$16:$J$61,2,FALSE)*J978,\"\")","v":""},{"$f":"IFERROR(VLOOKUP(D978,'Species List'!$I$66:$J$66,2,FALSE)*J978,\"\")","v":""},{"$f":"IFERROR(VLOOKUP(D978,'Species List'!$I$71:$J$82,2,FALSE)*J978,\"\")","v":""},0,null,null,null,null,null,null,{"$f":"IFERROR(INDEX('3 - Land Summary'!$B$21:$B$120,(MATCH(AD978,'3 - Land Summary'!$C$21:$C$120,0))),\"\")","v":""}]
[null,{"$f":"IFERROR(INDEX('3 - Land Summary'!$B$21:$B$120,(MATCH('4 - Species Breakdown'!$V979,'3 - Land Summary'!$C$21:$C$120,0))),\"\")","v":""},null,null,{"$f":"IF(OR(COUNTIF('Look Up Data'!$D$149:$D$203,D979),COUNTIF('Look Up Data'!$D$149:$D$203,AE979)),\"YES\",\"NO\")","v":"NO"},null,null,{"$f":"IFERROR(INDEX('3 - Land Summary'!$G$21:$G$120,(MATCH(C979,'3 - Land Summary'!$C$21:$C$120,0))),\"\")","v":""},{"$f":"IFERROR(INDEX('3 - Land Summary'!$I$21:$I$120,(MATCH(C979,'3 - Land Summary'!$C$21:$C$120,0))),\"\")","v":""},"","",null,null,null,{"$f":"IFERROR(VLOOKUP(D979,'Species List'!$D$10:$E$46,2,FALSE)*J979,\"\")","v":""},{"$f":"IFERROR(VLOOKUP(D979,'Species List'!$D$51:$E$89,2,FALSE)*J979,\"\")","v":""},{"$f":"IFERROR(VLOOKUP(D979,'Species List'!$D$95:$E$102,2,FALSE)*J979,\"\")","v":""},{"$f":"IFERROR(VLOOKUP(D979,'Species List'!$I$10:$J$11,2,FALSE)*J979,\"\")","v":""},{"$f":"IFERROR(VLOOKUP(D979,'Species List'!$I$16:$J$61,2,FALSE)*J979,\"\")","v":""},{"$f":"IFERROR(VLOOKUP(D979,'Species List'!$I$66:$J$66,2,FALSE)*J979,\"\")","v":""},{"$f":"IFERROR(VLOOKUP(D979,'Species List'!$I$71:$J$82,2,FALSE)*J979,\"\")","v":""},0,null,null,null,null,null,null,{"$f":"IFERROR(INDEX('3 - Land Summary'!$B$21:$B$120,(MATCH(AD979,'3 - Land Summary'!$C$21:$C$120,0))),\"\")","v":""}]
[null,{"$f":"IFERROR(INDEX('3 - Land Summary'!$B$21:$B$120,(MATCH('4 - Species Breakdown'!$V980,'3 - Land Summary'!$C$21:$C$120,0))),\"\")","v":""},null,null,{"$f":"IF(OR(COUNTIF('Look Up Data'!$D$149:$D$203,D980),COUNTIF('Look Up Data'!$D$149:$D$203,AE980)),\"YES\",\"NO\")","v":"NO"},null,null,{"$f":"IFERROR(INDEX('3 - Land Summary'!$G$21:$G$120,(MATCH(C980,'3 - Land Summary'!$C$21:$C$120,0))),\"\")","v":""},{"$f":"IFERROR(INDEX('3 - Land Summary'!$I$21:$I$120,(MATCH(C980,'3 - Land Summary'!$C$21:$C$120,0))),\"\")","v":""},"","",null,null,null,{"$f":"IFERROR(VLOOKUP(D980,'Species List'!$D$10:$E$46,2,FALSE)*J980,\"\")","v":""},{"$f":"IFERROR(VLOOKUP(D980,'Species List'!$D$51:$E$89,2,FALSE)*J980,\"\")","v":""},{"$f":"IFERROR(VLOOKUP(D980,'Species List'!$D$95:$E$102,2,FALSE)*J980,\"\")","v":""},{"$f":"IFERROR(VLOOKUP(D980,'Species List'!$I$10:$J$11,2,FALSE)*J980,\"\")","v":""},{"$f":"IFERROR(VLOOKUP(D980,'Species List'!$I$16:$J$61,2,FALSE)*J980,\"\")","v":""},{"$f":"IFERROR(VLOOKUP(D980,'Species List'!$I$66:$J$66,2,FALSE)*J980,\"\")","v":""},{"$f":"IFERROR(VLOOKUP(D980,'Species List'!$I$71:$J$82,2,FALSE)*J980,\"\")","v":""},0,null,null,null,null,null,null,{"$f":"IFERROR(INDEX('3 - Land Summary'!$B$21:$B$120,(MATCH(AD980,'3 - Land Summary'!$C$21:$C$120,0))),\"\")","v":""}]
[null,{"$f":"IFERROR(INDEX('3 - Land Summary'!$B$21:$B$120,(MATCH('4 - Species Breakdown'!$V981,'3 - Land Summary'!$C$21:$C$120,0))),\"\")","v":""},null,null,{"$f":"IF(OR(COUNTIF('Look Up Data'!$D$149:$D$203,D981),COUNTIF('Look Up Data'!$D$149:$D$203,AE981)),\"YES\",\"NO\")","v":"NO"},null,null,{"$f":"IFERROR(INDEX('3 - Land Summary'!$G$21:$G$120,(MATCH(C981,'3 - Land Summary'!$C$21:$C$120,0))),\"\")","v":""},{"$f":"IFERROR(INDEX('3 - Land Summary'!$I$21:$I$120,(MATCH(C981,'3 - Land Summary'!$C$21:$C$120,0))),\"\")","v":""},"","",null,null,null,{"$f":"IFERROR(VLOOKUP(D981,'Species List'!$D$10:$E$46,2,FALSE)*J981,\"\")","v":""},{"$f":"IFERROR(VLOOKUP(D981,'Species List'!$D$51:$E$89,2,FALSE)*J981,\"\")","v":""},{"$f":"IFERROR(VLOOKUP(D981,'Species List'!$D$95:$E$102,2,FALSE)*J981,\"\")","v":""},{"$f":"IFERROR(VLOOKUP(D981,'Species List'!$I$10:$J$11,2,FALSE)*J981,\"\")","v":""},{"$f":"IFERROR(VLOOKUP(D981,'Species List'!$I$16:$J$61,2,FALSE)*J981,\"\")","v":""},{"$f":"IFERROR(VLOOKUP(D981,'Species List'!$I$66:$J$66,2,FALSE)*J981,\"\")","v":""},{"$f":"IFERROR(VLOOKUP(D981,'Species List'!$I$71:$J$82,2,FALSE)*J981,\"\")","v":""},0,null,null,null,null,null,null,{"$f":"IFERROR(INDEX('3 - Land Summary'!$B$21:$B$120,(MATCH(AD981,'3 - Land Summary'!$C$21:$C$120,0))),\"\")","v":""}]
[null,{"$f":"IFERROR(INDEX('3 - Land Summary'!$B$21:$B$120,(MATCH('4 - Species Breakdown'!$V982,'3 - Land Summary'!$C$21:$C$120,0))),\"\")","v":""},null,null,{"$f":"IF(OR(COUNTIF('Look Up Data'!$D$149:$D$203,D982),COUNTIF('Look Up Data'!$D$149:$D$203,AE982)),\"YES\",\"NO\")","v":"NO"},null,null,{"$f":"IFERROR(INDEX('3 - Land Summary'!$G$21:$G$120,(MATCH(C982,'3 - Land Summary'!$C$21:$C$120,0))),\"\")","v":""},{"$f":"IFERROR(INDEX('3 - Land Summary'!$I$21:$I$120,(MATCH(C982,'3 - Land Summary'!$C$21:$C$120,0))),\"\")","v":""},"","",null,null,null,{"$f":"IFERROR(VLOOKUP(D982,'Species List'!$D$10:$E$46,2,FALSE)*J982,\"\")","v":""},{"$f":"IFERROR(VLOOKUP(D982,'Species List'!$D$51:$E$89,2,FALSE)*J982,\"\")","v":""},{"$f":"IFERROR(VLOOKUP(D982,'Species List'!$D$95:$E$102,2,FALSE)*J982,\"\")","v":""},{"$f":"IFERROR(VLOOKUP(D982,'Species List'!$I$10:$J$11,2,FALSE)*J982,\"\")","v":""},{"$f":"IFERROR(VLOOKUP(D982,'Species List'!$I$16:$J$61,2,FALSE)*J982,\"\")","v":""},{"$f":"IFERROR(VLOOKUP(D982,'Species List'!$I$66:$J$66,2,FALSE)*J982,\"\")","v":""},{"$f":"IFERROR(VLOOKUP(D982,'Species List'!$I$71:$J$82,2,FALSE)*J982,\"\")","v":""},0,null,null,null,null,null,null,{"$f":"IFERROR(INDEX('3 - Land Summary'!$B$21:$B$120,(MATCH(AD982,'3 - Land Summary'!$C$21:$C$120,0))),\"\")","v":""}]
[null,{"$f":"IFERROR(INDEX('3 - Land Summary'!$B$21:$B$120,(MATCH('4 - Species Breakdown'!$V983,'3 - Land Summary'!$C$21:$C$120,0))),\"\")","v":""},null,null,{"$f":"IF(OR(COUNTIF('Look Up Data'!$D$149:$D$203,D983),COUNTIF('Look Up Data'!$D$149:$D$203,AE983)),\"YES\",\"NO\")","v":"NO"},null,null,{"$f":"IFERROR(INDEX('3 - Land Summary'!$G$21:$G$120,(MATCH(C983,'3 - Land Summary'!$C$21:$C$120,0))),\"\")","v":""},{"$f":"IFERROR(INDEX('3 - Land Summary'!$I$21:$I$120,(MATCH(C983,'3 - Land Summary'!$C$21:$C$120,0))),\"\")","v":""},"","",null,null,null,{"$f":"IFERROR(VLOOKUP(D983,'Species List'!$D$10:$E$46,2,FALSE)*J983,\"\")","v":""},{"$f":"IFERROR(VLOOKUP(D983,'Species List'!$D$51:$E$89,2,FALSE)*J983,\"\")","v":""},{"$f":"IFERROR(VLOOKUP(D983,'Species List'!$D$95:$E$102,2,FALSE)*J983,\"\")","v":""},{"$f":"IFERROR(VLOOKUP(D983,'Species List'!$I$10:$J$11,2,FALSE)*J983,\"\")","v":""},{"$f":"IFERROR(VLOOKUP(D983,'Species List'!$I$16:$J$61,2,FALSE)*J983,\"\")","v":""},{"$f":"IFERROR(VLOOKUP(D983,'Species List'!$I$66:$J$66,2,FALSE)*J983,\"\")","v":""},{"$f":"IFERROR(VLOOKUP(D983,'Species List'!$I$71:$J$82,2,FALSE)*J983,\"\")","v":""},0,null,null,null,null,null,null,{"$f":"IFERROR(INDEX('3 - Land Summary'!$B$21:$B$120,(MATCH(AD983,'3 - Land Summary'!$C$21:$C$120,0))),\"\")","v":""}]
[null,{"$f":"IFERROR(INDEX('3 - Land Summary'!$B$21:$B$120,(MATCH('4 - Species Breakdown'!$V984,'3 - Land Summary'!$C$21:$C$120,0))),\"\")","v":""},null,null,{"$f":"IF(OR(COUNTIF('Look Up Data'!$D$149:$D$203,D984),COUNTIF('Look Up Data'!$D$149:$D$203,AE984)),\"YES\",\"NO\")","v":"NO"},null,null,{"$f":"IFERROR(INDEX('3 - Land Summary'!$G$21:$G$120,(MATCH(C984,'3 - Land Summary'!$C$21:$C$120,0))),\"\")","v":""},{"$f":"IFERROR(INDEX('3 - Land Summary'!$I$21:$I$120,(MATCH(C984,'3 - Land Summary'!$C$21:$C$120,0))),\"\")","v":""},"","",null,null,null,{"$f":"IFERROR(VLOOKUP(D984,'Species List'!$D$10:$E$46,2,FALSE)*J984,\"\")","v":""},{"$f":"IFERROR(VLOOKUP(D984,'Species List'!$D$51:$E$89,2,FALSE)*J984,\"\")","v":""},{"$f":"IFERROR(VLOOKUP(D984,'Species List'!$D$95:$E$102,2,FALSE)*J984,\"\")","v":""},{"$f":"IFERROR(VLOOKUP(D984,'Species List'!$I$10:$J$11,2,FALSE)*J984,\"\")","v":""},{"$f":"IFERROR(VLOOKUP(D984,'Species List'!$I$16:$J$61,2,FALSE)*J984,\"\")","v":""},{"$f":"IFERROR(VLOOKUP(D984,'Species List'!$I$66:$J$66,2,FALSE)*J984,\"\")","v":""},{"$f":"IFERROR(VLOOKUP(D984,'Species List'!$I$71:$J$82,2,FALSE)*J984,\"\")","v":""},0,null,null,null,null,null,null,{"$f":"IFERROR(INDEX('3 - Land Summary'!$B$21:$B$120,(MATCH(AD984,'3 - Land Summary'!$C$21:$C$120,0))),\"\")","v":""}]
[null,{"$f":"IFERROR(INDEX('3 - Land Summary'!$B$21:$B$120,(MATCH('4 - Species Breakdown'!$V985,'3 - Land Summary'!$C$21:$C$120,0))),\"\")","v":""},null,null,{"$f":"IF(OR(COUNTIF('Look Up Data'!$D$149:$D$203,D985),COUNTIF('Look Up Data'!$D$149:$D$203,AE985)),\"YES\",\"NO\")","v":"NO"},null,null,{"$f":"IFERROR(INDEX('3 - Land Summary'!$G$21:$G$120,(MATCH(C985,'3 - Land Summary'!$C$21:$C$120,0))),\"\")","v":""},{"$f":"IFERROR(INDEX('3 - Land Summary'!$I$21:$I$120,(MATCH(C985,'3 - Land Summary'!$C$21:$C$120,0))),\"\")","v":""},"","",null,null,null,{"$f":"IFERROR(VLOOKUP(D985,'Species List'!$D$10:$E$46,2,FALSE)*J985,\"\")","v":""},{"$f":"IFERROR(VLOOKUP(D985,'Species List'!$D$51:$E$89,2,FALSE)*J985,\"\")","v":""},{"$f":"IFERROR(VLOOKUP(D985,'Species List'!$D$95:$E$102,2,FALSE)*J985,\"\")","v":""},{"$f":"IFERROR(VLOOKUP(D985,'Species List'!$I$10:$J$11,2,FALSE)*J985,\"\")","v":""},{"$f":"IFERROR(VLOOKUP(D985,'Species List'!$I$16:$J$61,2,FALSE)*J985,\"\")","v":""},{"$f":"IFERROR(VLOOKUP(D985,'Species List'!$I$66:$J$66,2,FALSE)*J985,\"\")","v":""},{"$f":"IFERROR(VLOOKUP(D985,'Species List'!$I$71:$J$82,2,FALSE)*J985,\"\")","v":""},0,null,null,null,null,null,null,{"$f":"IFERROR(INDEX('3 - Land Summary'!$B$21:$B$120,(MATCH(AD985,'3 - Land Summary'!$C$21:$C$120,0))),\"\")","v":""}]
[null,{"$f":"IFERROR(INDEX('3 - Land Summary'!$B$21:$B$120,(MATCH('4 - Species Breakdown'!$V986,'3 - Land Summary'!$C$21:$C$120,0))),\"\")","v":""},null,null,{"$f":"IF(OR(COUNTIF('Look Up Data'!$D$149:$D$203,D986),COUNTIF('Look Up Data'!$D$149:$D$203,AE986)),\"YES\",\"NO\")","v":"NO"},null,null,{"$f":"IFERROR(INDEX('3 - Land Summary'!$G$21:$G$120,(MATCH(C986,'3 - Land Summary'!$C$21:$C$120,0))),\"\")","v":""},{"$f":"IFERROR(INDEX('3 - Land Summary'!$I$21:$I$120,(MATCH(C986,'3 - Land Summary'!$C$21:$C$120,0))),\"\")","v":""},"","",null,null,null,{"$f":"IFERROR(VLOOKUP(D986,'Species List'!$D$10:$E$46,2,FALSE)*J986,\"\")","v":""},{"$f":"IFERROR(VLOOKUP(D986,'Species List'!$D$51:$E$89,2,FALSE)*J986,\"\")","v":""},{"$f":"IFERROR(VLOOKUP(D986,'Species List'!$D$95:$E$102,2,FALSE)*J986,\"\")","v":""},{"$f":"IFERROR(VLOOKUP(D986,'Species List'!$I$10:$J$11,2,FALSE)*J986,\"\")","v":""},{"$f":"IFERROR(VLOOKUP(D986,'Species List'!$I$16:$J$61,2,FALSE)*J986,\"\")","v":""},{"$f":"IFERROR(VLOOKUP(D986,'Species List'!$I$66:$J$66,2,FALSE)*J986,\"\")","v":""},{"$f":"IFERROR(VLOOKUP(D986,'Species List'!$I$71:$J$82,2,FALSE)*J986,\"\")","v":""},0,null,null,null,null,null,null,{"$f":"IFERROR(INDEX('3 - Land Summary'!$B$21:$B$120,(MATCH(AD986,'3 - Land Summary'!$C$21:$C$120,0))),\"\")","v":""}]
[null,{"$f":"IFERROR(INDEX('3 - Land Summary'!$B$21:$B$120,(MATCH('4 - Species Breakdown'!$V987,'3 - Land Summary'!$C$21:$C$120,0))),\"\")","v":""},null,null,{"$f":"IF(OR(COUNTIF('Look Up Data'!$D$149:$D$203,D987),COUNTIF('Look Up Data'!$D$149:$D$203,AE987)),\"YES\",\"NO\")","v":"NO"},null,null,{"$f":"IFERROR(INDEX('3 - Land Summary'!$G$21:$G$120,(MATCH(C987,'3 - Land Summary'!$C$21:$C$120,0))),\"\")","v":""},{"$f":"IFERROR(INDEX('3 - Land Summary'!$I$21:$I$120,(MATCH(C987,'3 - Land Summary'!$C$21:$C$120,0))),\"\")","v":""},"","",null,null,null,{"$f":"IFERROR(VLOOKUP(D987,'Species List'!$D$10:$E$46,2,FALSE)*J987,\"\")","v":""},{"$f":"IFERROR(VLOOKUP(D987,'Species List'!$D$51:$E$89,2,FALSE)*J987,\"\")","v":""},{"$f":"IFERROR(VLOOKUP(D987,'Species List'!$D$95:$E$102,2,FALSE)*J987,\"\")","v":""},{"$f":"IFERROR(VLOOKUP(D987,'Species List'!$I$10:$J$11,2,FALSE)*J987,\"\")","v":""},{"$f":"IFERROR(VLOOKUP(D987,'Species List'!$I$16:$J$61,2,FALSE)*J987,\"\")","v":""},{"$f":"IFERROR(VLOOKUP(D987,'Species List'!$I$66:$J$66,2,FALSE)*J987,\"\")","v":""},{"$f":"IFERROR(VLOOKUP(D987,'Species List'!$I$71:$J$82,2,FALSE)*J987,\"\")","v":""},0,null,null,null,null,null,null,{"$f":"IFERROR(INDEX('3 - Land Summary'!$B$21:$B$120,(MATCH(AD987,'3 - Land Summary'!$C$21:$C$120,0))),\"\")","v":""}]
[null,{"$f":"IFERROR(INDEX('3 - Land Summary'!$B$21:$B$120,(MATCH('4 - Species Breakdown'!$V988,'3 - Land Summary'!$C$21:$C$120,0))),\"\")","v":""},null,null,{"$f":"IF(OR(COUNTIF('Look Up Data'!$D$149:$D$203,D988),COUNTIF('Look Up Data'!$D$149:$D$203,AE988)),\"YES\",\"NO\")","v":"NO"},null,null,{"$f":"IFERROR(INDEX('3 - Land Summary'!$G$21:$G$120,(MATCH(C988,'3 - Land Summary'!$C$21:$C$120,0))),\"\")","v":""},{"$f":"IFERROR(INDEX('3 - Land Summary'!$I$21:$I$120,(MATCH(C988,'3 - Land Summary'!$C$21:$C$120,0))),\"\")","v":""},"","",null,null,null,{"$f":"IFERROR(VLOOKUP(D988,'Species List'!$D$10:$E$46,2,FALSE)*J988,\"\")","v":""},{"$f":"IFERROR(VLOOKUP(D988,'Species List'!$D$51:$E$89,2,FALSE)*J988,\"\")","v":""},{"$f":"IFERROR(VLOOKUP(D988,'Species List'!$D$95:$E$102,2,FALSE)*J988,\"\")","v":""},{"$f":"IFERROR(VLOOKUP(D988,'Species List'!$I$10:$J$11,2,FALSE)*J988,\"\")","v":""},{"$f":"IFERROR(VLOOKUP(D988,'Species List'!$I$16:$J$61,2,FALSE)*J988,\"\")","v":""},{"$f":"IFERROR(VLOOKUP(D988,'Species List'!$I$66:$J$66,2,FALSE)*J988,\"\")","v":""},{"$f":"IFERROR(VLOOKUP(D988,'Species List'!$I$71:$J$82,2,FALSE)*J988,\"\")","v":""},0,null,null,null,null,null,null,{"$f":"IFERROR(INDEX('3 - Land Summary'!$B$21:$B$120,(MATCH(AD988,'3 - Land Summary'!$C$21:$C$120,0))),\"\")","v":""}]
[null,{"$f":"IFERROR(INDEX('3 - Land Summary'!$B$21:$B$120,(MATCH('4 - Species Breakdown'!$V989,'3 - Land Summary'!$C$21:$C$120,0))),\"\")","v":""},null,null,{"$f":"IF(OR(COUNTIF('Look Up Data'!$D$149:$D$203,D989),COUNTIF('Look Up Data'!$D$149:$D$203,AE989)),\"YES\",\"NO\")","v":"NO"},null,null,{"$f":"IFERROR(INDEX('3 - Land Summary'!$G$21:$G$120,(MATCH(C989,'3 - Land Summary'!$C$21:$C$120,0))),\"\")","v":""},{"$f":"IFERROR(INDEX('3 - Land Summary'!$I$21:$I$120,(MATCH(C989,'3 - Land Summary'!$C$21:$C$120,0))),\"\")","v":""},"","",null,null,null,{"$f":"IFERROR(VLOOKUP(D989,'Species List'!$D$10:$E$46,2,FALSE)*J989,\"\")","v":""},{"$f":"IFERROR(VLOOKUP(D989,'Species List'!$D$51:$E$89,2,FALSE)*J989,\"\")","v":""},{"$f":"IFERROR(VLOOKUP(D989,'Species List'!$D$95:$E$102,2,FALSE)*J989,\"\")","v":""},{"$f":"IFERROR(VLOOKUP(D989,'Species List'!$I$10:$J$11,2,FALSE)*J989,\"\")","v":""},{"$f":"IFERROR(VLOOKUP(D989,'Species List'!$I$16:$J$61,2,FALSE)*J989,\"\")","v":""},{"$f":"IFERROR(VLOOKUP(D989,'Species List'!$I$66:$J$66,2,FALSE)*J989,\"\")","v":""},{"$f":"IFERROR(VLOOKUP(D989,'Species List'!$I$71:$J$82,2,FALSE)*J989,\"\")","v":""},0,null,null,null,null,null,null,{"$f":"IFERROR(INDEX('3 - Land Summary'!$B$21:$B$120,(MATCH(AD989,'3 - Land Summary'!$C$21:$C$120,0))),\"\")","v":""}]
[null,{"$f":"IFERROR(INDEX('3 - Land Summary'!$B$21:$B$120,(MATCH('4 - Species Breakdown'!$V990,'3 - Land Summary'!$C$21:$C$120,0))),\"\")","v":""},null,null,{"$f":"IF(OR(COUNTIF('Look Up Data'!$D$149:$D$203,D990),COUNTIF('Look Up Data'!$D$149:$D$203,AE990)),\"YES\",\"NO\")","v":"NO"},null,null,{"$f":"IFERROR(INDEX('3 - Land Summary'!$G$21:$G$120,(MATCH(C990,'3 - Land Summary'!$C$21:$C$120,0))),\"\")","v":""},{"$f":"IFERROR(INDEX('3 - Land Summary'!$I$21:$I$120,(MATCH(C990,'3 - Land Summary'!$C$21:$C$120,0))),\"\")","v":""},"","",null,null,null,{"$f":"IFERROR(VLOOKUP(D990,'Species List'!$D$10:$E$46,2,FALSE)*J990,\"\")","v":""},{"$f":"IFERROR(VLOOKUP(D990,'Species List'!$D$51:$E$89,2,FALSE)*J990,\"\")","v":""},{"$f":"IFERROR(VLOOKUP(D990,'Species List'!$D$95:$E$102,2,FALSE)*J990,\"\")","v":""},{"$f":"IFERROR(VLOOKUP(D990,'Species List'!$I$10:$J$11,2,FALSE)*J990,\"\")","v":""},{"$f":"IFERROR(VLOOKUP(D990,'Species List'!$I$16:$J$61,2,FALSE)*J990,\"\")","v":""},{"$f":"IFERROR(VLOOKUP(D990,'Species List'!$I$66:$J$66,2,FALSE)*J990,\"\")","v":""},{"$f":"IFERROR(VLOOKUP(D990,'Species List'!$I$71:$J$82,2,FALSE)*J990,\"\")","v":""},0,null,null,null,null,null,null,{"$f":"IFERROR(INDEX('3 - Land Summary'!$B$21:$B$120,(MATCH(AD990,'3 - Land Summary'!$C$21:$C$120,0))),\"\")","v":""}]
[null,{"$f":"IFERROR(INDEX('3 - Land Summary'!$B$21:$B$120,(MATCH('4 - Species Breakdown'!$V991,'3 - Land Summary'!$C$21:$C$120,0))),\"\")","v":""},null,null,{"$f":"IF(OR(COUNTIF('Look Up Data'!$D$149:$D$203,D991),COUNTIF('Look Up Data'!$D$149:$D$203,AE991)),\"YES\",\"NO\")","v":"NO"},null,null,{"$f":"IFERROR(INDEX('3 - Land Summary'!$G$21:$G$120,(MATCH(C991,'3 - Land Summary'!$C$21:$C$120,0))),\"\")","v":""},{"$f":"IFERROR(INDEX('3 - Land Summary'!$I$21:$I$120,(MATCH(C991,'3 - Land Summary'!$C$21:$C$120,0))),\"\")","v":""},{"$f":"IFERROR(((H991-I991)*F991)/100,\"\")","v":""},"",null,null,null,{"$f":"IFERROR(VLOOKUP(D991,'Species List'!$D$10:$E$46,2,FALSE)*J991,\"\")","v":""},{"$f":"IFERROR(VLOOKUP(D991,'Species List'!$D$51:$E$89,2,FALSE)*J991,\"\")","v":""},{"$f":"IFERROR(VLOOKUP(D991,'Species List'!$D$95:$E$102,2,FALSE)*J991,\"\")","v":""},{"$f":"IFERROR(VLOOKUP(D991,'Species List'!$I$10:$J$11,2,FALSE)*J991,\"\")","v":""},{"$f":"IFERROR(VLOOKUP(D991,'Species List'!$I$16:$J$61,2,FALSE)*J991,\"\")","v":""},{"$f":"IFERROR(VLOOKUP(D991,'Species List'!$I$66:$J$66,2,FALSE)*J991,\"\")","v":""},{"$f":"IFERROR(VLOOKUP(D991,'Species List'!$I$71:$J$82,2,FALSE)*J991,\"\")","v":""},{"$f":"C991","v":0},null,null,null,null,null,null,{"$f":"IFERROR(INDEX('3 - Land Summary'!$B$21:$B$120,(MATCH(AD991,'3 - Land Summary'!$C$21:$C$120,0))),\"\")","v":""}]
[null,{"$f":"IFERROR(INDEX('3 - Land Summary'!$B$21:$B$120,(MATCH('4 - Species Breakdown'!$V992,'3 - Land Summary'!$C$21:$C$120,0))),\"\")","v":""},null,null,{"$f":"IF(OR(COUNTIF('Look Up Data'!$D$149:$D$203,D992),COUNTIF('Look Up Data'!$D$149:$D$203,AE992)),\"YES\",\"NO\")","v":"NO"},null,null,{"$f":"IFERROR(INDEX('3 - Land Summary'!$G$21:$G$120,(MATCH(C992,'3 - Land Summary'!$C$21:$C$120,0))),\"\")","v":""},{"$f":"IFERROR(INDEX('3 - Land Summary'!$I$21:$I$120,(MATCH(C992,'3 - Land Summary'!$C$21:$C$120,0))),\"\")","v":""},"",{"$f":"IFERROR(ROUND(J992*G992,0),\"\")","v":""},null,null,null,{"$f":"IFERROR(VLOOKUP(D992,'Species List'!$D$10:$E$46,2,FALSE)*J992,\"\")","v":""},{"$f":"IFERROR(VLOOKUP(D992,'Species List'!$D$51:$E$89,2,FALSE)*J992,\"\")","v":""},{"$f":"IFERROR(VLOOKUP(D992,'Species List'!$D$95:$E$102,2,FALSE)*J992,\"\")","v":""},{"$f":"IFERROR(VLOOKUP(D992,'Species List'!$I$10:$J$11,2,FALSE)*J992,\"\")","v":""},{"$f":"IFERROR(VLOOKUP(D992,'Species List'!$I$16:$J$61,2,FALSE)*J992,\"\")","v":""},{"$f":"IFERROR(VLOOKUP(D992,'Species List'!$I$66:$J$66,2,FALSE)*J992,\"\")","v":""},{"$f":"IFERROR(VLOOKUP(D992,'Species List'!$I$71:$J$82,2,FALSE)*J992,\"\")","v":""},0,null,null,null,null,null,null,{"$f":"IFERROR(INDEX('3 - Land Summary'!$B$21:$B$120,(MATCH(AD992,'3 - Land Summary'!$C$21:$C$120,0))),\"\")","v":""}]
[null,{"$f":"IFERROR(INDEX('3 - Land Summary'!$B$21:$B$120,(MATCH('4 - Species Breakdown'!$V993,'3 - Land Summary'!$C$21:$C$120,0))),\"\")","v":""},null,null,{"$f":"IF(OR(COUNTIF('Look Up Data'!$D$149:$D$203,D993),COUNTIF('Look Up Data'!$D$149:$D$203,AE993)),\"YES\",\"NO\")","v":"NO"},null,null,{"$f":"IFERROR(INDEX('3 - Land Summary'!$G$21:$G$120,(MATCH(C993,'3 - Land Summary'!$C$21:$C$120,0))),\"\")","v":""},{"$f":"IFERROR(INDEX('3 - Land Summary'!$I$21:$I$120,(MATCH(C993,'3 - Land Summary'!$C$21:$C$120,0))),\"\")","v":""},"","",null,null,null,{"$f":"IFERROR(VLOOKUP(D993,'Species List'!$D$10:$E$46,2,FALSE)*J993,\"\")","v":""},{"$f":"IFERROR(VLOOKUP(D993,'Species List'!$D$51:$E$89,2,FALSE)*J993,\"\")","v":""},{"$f":"IFERROR(VLOOKUP(D993,'Species List'!$D$95:$E$102,2,FALSE)*J993,\"\")","v":""},{"$f":"IFERROR(VLOOKUP(D993,'Species List'!$I$10:$J$11,2,FALSE)*J993,\"\")","v":""},{"$f":"IFERROR(VLOOKUP(D993,'Species List'!$I$16:$J$61,2,FALSE)*J993,\"\")","v":""},{"$f":"IFERROR(VLOOKUP(D993,'Species List'!$I$66:$J$66,2,FALSE)*J993,\"\")","v":""},{"$f":"IFERROR(VLOOKUP(D993,'Species List'!$I$71:$J$82,2,FALSE)*J993,\"\")","v":""},0,null,null,null,null,null,null,{"$f":"IFERROR(INDEX('3 - Land Summary'!$B$21:$B$120,(MATCH(AD993,'3 - Land Summary'!$C$21:$C$120,0))),\"\")","v":""}]
[null,{"$f":"IFERROR(INDEX('3 - Land Summary'!$B$21:$B$120,(MATCH('4 - Species Breakdown'!$V994,'3 - Land Summary'!$C$21:$C$120,0))),\"\")","v":""},null,null,{"$f":"IF(OR(COUNTIF('Look Up Data'!$D$149:$D$203,D994),COUNTIF('Look Up Data'!$D$149:$D$203,AE994)),\"YES\",\"NO\")","v":"NO"},null,null,{"$f":"IFERROR(INDEX('3 - Land Summary'!$G$21:$G$120,(MATCH(C994,'3 - Land Summary'!$C$21:$C$120,0))),\"\")","v":""},{"$f":"IFERROR(INDEX('3 - Land Summary'!$I$21:$I$120,(MATCH(C994,'3 - Land Summary'!$C$21:$C$120,0))),\"\")","v":""},"","",null,null,null,{"$f":"IFERROR(VLOOKUP(D994,'Species List'!$D$10:$E$46,2,FALSE)*J994,\"\")","v":""},{"$f":"IFERROR(VLOOKUP(D994,'Species List'!$D$51:$E$89,2,FALSE)*J994,\"\")","v":""},{"$f":"IFERROR(VLOOKUP(D994,'Species List'!$D$95:$E$102,2,FALSE)*J994,\"\")","v":""},{"$f":"IFERROR(VLOOKUP(D994,'Species List'!$I$10:$J$11,2,FALSE)*J994,\"\")","v":""},{"$f":"IFERROR(VLOOKUP(D994,'Species List'!$I$16:$J$61,2,FALSE)*J994,\"\")","v":""},{"$f":"IFERROR(VLOOKUP(D994,'Species List'!$I$66:$J$66,2,FALSE)*J994,\"\")","v":""},{"$f":"IFERROR(VLOOKUP(D994,'Species List'!$I$71:$J$82,2,FALSE)*J994,\"\")","v":""},0,null,null,null,null,null,null,{"$f":"IFERROR(INDEX('3 - Land Summary'!$B$21:$B$120,(MATCH(AD994,'3 - Land Summary'!$C$21:$C$120,0))),\"\")","v":""}]
[null,{"$f":"IFERROR(INDEX('3 - Land Summary'!$B$21:$B$120,(MATCH('4 - Species Breakdown'!$V995,'3 - Land Summary'!$C$21:$C$120,0))),\"\")","v":""},null,null,{"$f":"IF(OR(COUNTIF('Look Up Data'!$D$149:$D$203,D995),COUNTIF('Look Up Data'!$D$149:$D$203,AE995)),\"YES\",\"NO\")","v":"NO"},null,null,{"$f":"IFERROR(INDEX('3 - Land Summary'!$G$21:$G$120,(MATCH(C995,'3 - Land Summary'!$C$21:$C$120,0))),\"\")","v":""},{"$f":"IFERROR(INDEX('3 - Land Summary'!$I$21:$I$120,(MATCH(C995,'3 - Land Summary'!$C$21:$C$120,0))),\"\")","v":""},"","",null,null,null,{"$f":"IFERROR(VLOOKUP(D995,'Species List'!$D$10:$E$46,2,FALSE)*J995,\"\")","v":""},{"$f":"IFERROR(VLOOKUP(D995,'Species List'!$D$51:$E$89,2,FALSE)*J995,\"\")","v":""},{"$f":"IFERROR(VLOOKUP(D995,'Species List'!$D$95:$E$102,2,FALSE)*J995,\"\")","v":""},{"$f":"IFERROR(VLOOKUP(D995,'Species List'!$I$10:$J$11,2,FALSE)*J995,\"\")","v":""},{"$f":"IFERROR(VLOOKUP(D995,'Species List'!$I$16:$J$61,2,FALSE)*J995,\"\")","v":""},{"$f":"IFERROR(VLOOKUP(D995,'Species List'!$I$66:$J$66,2,FALSE)*J995,\"\")","v":""},{"$f":"IFERROR(VLOOKUP(D995,'Species List'!$I$71:$J$82,2,FALSE)*J995,\"\")","v":""},0,null,null,null,null,null,null,{"$f":"IFERROR(INDEX('3 - Land Summary'!$B$21:$B$120,(MATCH(AD995,'3 - Land Summary'!$C$21:$C$120,0))),\"\")","v":""}]
[null,{"$f":"IFERROR(INDEX('3 - Land Summary'!$B$21:$B$120,(MATCH('4 - Species Breakdown'!$V996,'3 - Land Summary'!$C$21:$C$120,0))),\"\")","v":""},null,null,{"$f":"IF(OR(COUNTIF('Look Up Data'!$D$149:$D$203,D996),COUNTIF('Look Up Data'!$D$149:$D$203,AE996)),\"YES\",\"NO\")","v":"NO"},null,null,{"$f":"IFERROR(INDEX('3 - Land Summary'!$G$21:$G$120,(MATCH(C996,'3 - Land Summary'!$C$21:$C$120,0))),\"\")","v":""},{"$f":"IFERROR(INDEX('3 - Land Summary'!$I$21:$I$120,(MATCH(C996,'3 - Land Summary'!$C$21:$C$120,0))),\"\")","v":""},"","",null,null,null,{"$f":"IFERROR(VLOOKUP(D996,'Species List'!$D$10:$E$46,2,FALSE)*J996,\"\")","v":""},{"$f":"IFERROR(VLOOKUP(D996,'Species List'!$D$51:$E$89,2,FALSE)*J996,\"\")","v":""},{"$f":"IFERROR(VLOOKUP(D996,'Species List'!$D$95:$E$102,2,FALSE)*J996,\"\")","v":""},{"$f":"IFERROR(VLOOKUP(D996,'Species List'!$I$10:$J$11,2,FALSE)*J996,\"\")","v":""},{"$f":"IFERROR(VLOOKUP(D996,'Species List'!$I$16:$J$61,2,FALSE)*J996,\"\")","v":""},{"$f":"IFERROR(VLOOKUP(D996,'Species List'!$I$66:$J$66,2,FALSE)*J996,\"\")","v":""},{"$f":"IFERROR(VLOOKUP(D996,'Species List'!$I$71:$J$82,2,FALSE)*J996,\"\")","v":""},0,null,null,null,null,null,null,{"$f":"IFERROR(INDEX('3 - Land Summary'!$B$21:$B$120,(MATCH(AD996,'3 - Land Summary'!$C$21:$C$120,0))),\"\")","v":""}]
[null,{"$f":"IFERROR(INDEX('3 - Land Summary'!$B$21:$B$120,(MATCH('4 - Species Breakdown'!$V997,'3 - Land Summary'!$C$21:$C$120,0))),\"\")","v":""},null,null,{"$f":"IF(OR(COUNTIF('Look Up Data'!$D$149:$D$203,D997),COUNTIF('Look Up Data'!$D$149:$D$203,AE997)),\"YES\",\"NO\")","v":"NO"},null,null,{"$f":"IFERROR(INDEX('3 - Land Summary'!$G$21:$G$120,(MATCH(C997,'3 - Land Summary'!$C$21:$C$120,0))),\"\")","v":""},{"$f":"IFERROR(INDEX('3 - Land Summary'!$I$21:$I$120,(MATCH(C997,'3 - Land Summary'!$C$21:$C$120,0))),\"\")","v":""},"","",null,null,null,{"$f":"IFERROR(VLOOKUP(D997,'Species List'!$D$10:$E$46,2,FALSE)*J997,\"\")","v":""},{"$f":"IFERROR(VLOOKUP(D997,'Species List'!$D$51:$E$89,2,FALSE)*J997,\"\")","v":""},{"$f":"IFERROR(VLOOKUP(D997,'Species List'!$D$95:$E$102,2,FALSE)*J997,\"\")","v":""},{"$f":"IFERROR(VLOOKUP(D997,'Species List'!$I$10:$J$11,2,FALSE)*J997,\"\")","v":""},{"$f":"IFERROR(VLOOKUP(D997,'Species List'!$I$16:$J$61,2,FALSE)*J997,\"\")","v":""},{"$f":"IFERROR(VLOOKUP(D997,'Species List'!$I$66:$J$66,2,FALSE)*J997,\"\")","v":""},{"$f":"IFERROR(VLOOKUP(D997,'Species List'!$I$71:$J$82,2,FALSE)*J997,\"\")","v":""},0,null,null,null,null,null,null,{"$f":"IFERROR(INDEX('3 - Land Summary'!$B$21:$B$120,(MATCH(AD997,'3 - Land Summary'!$C$21:$C$120,0))),\"\")","v":""}]
[null,{"$f":"IFERROR(INDEX('3 - Land Summary'!$B$21:$B$120,(MATCH('4 - Species Breakdown'!$V998,'3 - Land Summary'!$C$21:$C$120,0))),\"\")","v":""},null,null,{"$f":"IF(OR(COUNTIF('Look Up Data'!$D$149:$D$203,D998),COUNTIF('Look Up Data'!$D$149:$D$203,AE998)),\"YES\",\"NO\")","v":"NO"},null,null,{"$f":"IFERROR(INDEX('3 - Land Summary'!$G$21:$G$120,(MATCH(C998,'3 - Land Summary'!$C$21:$C$120,0))),\"\")","v":""},{"$f":"IFERROR(INDEX('3 - Land Summary'!$I$21:$I$120,(MATCH(C998,'3 - Land Summary'!$C$21:$C$120,0))),\"\")","v":""},"","",null,null,null,{"$f":"IFERROR(VLOOKUP(D998,'Species List'!$D$10:$E$46,2,FALSE)*J998,\"\")","v":""},{"$f":"IFERROR(VLOOKUP(D998,'Species List'!$D$51:$E$89,2,FALSE)*J998,\"\")","v":""},{"$f":"IFERROR(VLOOKUP(D998,'Species List'!$D$95:$E$102,2,FALSE)*J998,\"\")","v":""},{"$f":"IFERROR(VLOOKUP(D998,'Species List'!$I$10:$J$11,2,FALSE)*J998,\"\")","v":""},{"$f":"IFERROR(VLOOKUP(D998,'Species List'!$I$16:$J$61,2,FALSE)*J998,\"\")","v":""},{"$f":"IFERROR(VLOOKUP(D998,'Species List'!$I$66:$J$66,2,FALSE)*J998,\"\")","v":""},{"$f":"IFERROR(VLOOKUP(D998,'Species List'!$I$71:$J$82,2,FALSE)*J998,\"\")","v":""},0,null,null,null,null,null,null,{"$f":"IFERROR(INDEX('3 - Land Summary'!$B$21:$B$120,(MATCH(AD998,'3 - Land Summary'!$C$21:$C$120,0))),\"\")","v":""}]
[null,{"$f":"IFERROR(INDEX('3 - Land Summary'!$B$21:$B$120,(MATCH('4 - Species Breakdown'!$V999,'3 - Land Summary'!$C$21:$C$120,0))),\"\")","v":""},null,null,{"$f":"IF(OR(COUNTIF('Look Up Data'!$D$149:$D$203,D999),COUNTIF('Look Up Data'!$D$149:$D$203,AE999)),\"YES\",\"NO\")","v":"NO"},null,null,{"$f":"IFERROR(INDEX('3 - Land Summary'!$G$21:$G$120,(MATCH(C999,'3 - Land Summary'!$C$21:$C$120,0))),\"\")","v":""},{"$f":"IFERROR(INDEX('3 - Land Summary'!$I$21:$I$120,(MATCH(C999,'3 - Land Summary'!$C$21:$C$120,0))),\"\")","v":""},"","",null,null,null,{"$f":"IFERROR(VLOOKUP(D999,'Species List'!$D$10:$E$46,2,FALSE)*J999,\"\")","v":""},{"$f":"IFERROR(VLOOKUP(D999,'Species List'!$D$51:$E$89,2,FALSE)*J999,\"\")","v":""},{"$f":"IFERROR(VLOOKUP(D999,'Species List'!$D$95:$E$102,2,FALSE)*J999,\"\")","v":""},{"$f":"IFERROR(VLOOKUP(D999,'Species List'!$I$10:$J$11,2,FALSE)*J999,\"\")","v":""},{"$f":"IFERROR(VLOOKUP(D999,'Species List'!$I$16:$J$61,2,FALSE)*J999,\"\")","v":""},{"$f":"IFERROR(VLOOKUP(D999,'Species List'!$I$66:$J$66,2,FALSE)*J999,\"\")","v":""},{"$f":"IFERROR(VLOOKUP(D999,'Species List'!$I$71:$J$82,2,FALSE)*J999,\"\")","v":""},0,null,null,null,null,null,null,{"$f":"IFERROR(INDEX('3 - Land Summary'!$B$21:$B$120,(MATCH(AD999,'3 - Land Summary'!$C$21:$C$120,0))),\"\")","v":""}]
[null,{"$f":"IFERROR(INDEX('3 - Land Summary'!$B$21:$B$120,(MATCH('4 - Species Breakdown'!$V1000,'3 - Land Summary'!$C$21:$C$120,0))),\"\")","v":""},null,null,{"$f":"IF(OR(COUNTIF('Look Up Data'!$D$149:$D$203,D1000),COUNTIF('Look Up Data'!$D$149:$D$203,AE1000)),\"YES\",\"NO\")","v":"NO"},null,null,{"$f":"IFERROR(INDEX('3 - Land Summary'!$G$21:$G$120,(MATCH(C1000,'3 - Land Summary'!$C$21:$C$120,0))),\"\")","v":""},{"$f":"IFERROR(INDEX('3 - Land Summary'!$I$21:$I$120,(MATCH(C1000,'3 - Land Summary'!$C$21:$C$120,0))),\"\")","v":""},"","",null,null,null,{"$f":"IFERROR(VLOOKUP(D1000,'Species List'!$D$10:$E$46,2,FALSE)*J1000,\"\")","v":""},{"$f":"IFERROR(VLOOKUP(D1000,'Species List'!$D$51:$E$89,2,FALSE)*J1000,\"\")","v":""},{"$f":"IFERROR(VLOOKUP(D1000,'Species List'!$D$95:$E$102,2,FALSE)*J1000,\"\")","v":""},{"$f":"IFERROR(VLOOKUP(D1000,'Species List'!$I$10:$J$11,2,FALSE)*J1000,\"\")","v":""},{"$f":"IFERROR(VLOOKUP(D1000,'Species List'!$I$16:$J$61,2,FALSE)*J1000,\"\")","v":""},{"$f":"IFERROR(VLOOKUP(D1000,'Species List'!$I$66:$J$66,2,FALSE)*J1000,\"\")","v":""},{"$f":"IFERROR(VLOOKUP(D1000,'Species List'!$I$71:$J$82,2,FALSE)*J1000,\"\")","v":""},0,null,null,null,null,null,null,{"$f":"IFERROR(INDEX('3 - Land Summary'!$B$21:$B$120,(MATCH(AD1000,'3 - Land Summary'!$C$21:$C$120,0))),\"\")","v":""}]
[null,{"$f":"IFERROR(INDEX('3 - Land Summary'!$B$21:$B$120,(MATCH('4 - Species Breakdown'!$V1001,'3 - Land Summary'!$C$21:$C$120,0))),\"\")","v":""},null,null,{"$f":"IF(OR(COUNTIF('Look Up Data'!$D$149:$D$203,D1001),COUNTIF('Look Up Data'!$D$149:$D$203,AE1001)),\"YES\",\"NO\")","v":"NO"},null,null,{"$f":"IFERROR(INDEX('3 - Land Summary'!$G$21:$G$120,(MATCH(C1001,'3 - Land Summary'!$C$21:$C$120,0))),\"\")","v":""},{"$f":"IFERROR(INDEX('3 - Land Summary'!$I$21:$I$120,(MATCH(C1001,'3 - Land Summary'!$C$21:$C$120,0))),\"\")","v":""},"","",null,null,null,{"$f":"IFERROR(VLOOKUP(D1001,'Species List'!$D$10:$E$46,2,FALSE)*J1001,\"\")","v":""},{"$f":"IFERROR(VLOOKUP(D1001,'Species List'!$D$51:$E$89,2,FALSE)*J1001,\"\")","v":""},{"$f":"IFERROR(VLOOKUP(D1001,'Species List'!$D$95:$E$102,2,FALSE)*J1001,\"\")","v":""},{"$f":"IFERROR(VLOOKUP(D1001,'Species List'!$I$10:$J$11,2,FALSE)*J1001,\"\")","v":""},{"$f":"IFERROR(VLOOKUP(D1001,'Species List'!$I$16:$J$61,2,FALSE)*J1001,\"\")","v":""},{"$f":"IFERROR(VLOOKUP(D1001,'Species List'!$I$66:$J$66,2,FALSE)*J1001,\"\")","v":""},{"$f":"IFERROR(VLOOKUP(D1001,'Species List'!$I$71:$J$82,2,FALSE)*J1001,\"\")","v":""},0,null,null,null,null,null,null,{"$f":"IFERROR(INDEX('3 - Land Summary'!$B$21:$B$120,(MATCH(AD1001,'3 - Land Summary'!$C$21:$C$120,0))),\"\")","v":""}]
[null,{"$f":"IFERROR(INDEX('3 - Land Summary'!$B$21:$B$120,(MATCH('4 - Species Breakdown'!$V1002,'3 - Land Summary'!$C$21:$C$120,0))),\"\")","v":""},null,null,{"$f":"IF(OR(COUNTIF('Look Up Data'!$D$149:$D$203,D1002),COUNTIF('Look Up Data'!$D$149:$D$203,AE1002)),\"YES\",\"NO\")","v":"NO"},null,null,{"$f":"IFERROR(INDEX('3 - Land Summary'!$G$21:$G$120,(MATCH(C1002,'3 - Land Summary'!$C$21:$C$120,0))),\"\")","v":""},{"$f":"IFERROR(INDEX('3 - Land Summary'!$I$21:$I$120,(MATCH(C1002,'3 - Land Summary'!$C$21:$C$120,0))),\"\")","v":""},"","",null,null,null,{"$f":"IFERROR(VLOOKUP(D1002,'Species List'!$D$10:$E$46,2,FALSE)*J1002,\"\")","v":""},{"$f":"IFERROR(VLOOKUP(D1002,'Species List'!$D$51:$E$89,2,FALSE)*J1002,\"\")","v":""},{"$f":"IFERROR(VLOOKUP(D1002,'Species List'!$D$95:$E$102,2,FALSE)*J1002,\"\")","v":""},{"$f":"IFERROR(VLOOKUP(D1002,'Species List'!$I$10:$J$11,2,FALSE)*J1002,\"\")","v":""},{"$f":"IFERROR(VLOOKUP(D1002,'Species List'!$I$16:$J$61,2,FALSE)*J1002,\"\")","v":""},{"$f":"IFERROR(VLOOKUP(D1002,'Species List'!$I$66:$J$66,2,FALSE)*J1002,\"\")","v":""},{"$f":"IFERROR(VLOOKUP(D1002,'Species List'!$I$71:$J$82,2,FALSE)*J1002,\"\")","v":""},0,null,null,null,null,null,null,{"$f":"IFERROR(INDEX('3 - Land Summary'!$B$21:$B$120,(MATCH(AD1002,'3 - Land Summary'!$C$21:$C$120,0))),\"\")","v":""}]
[null,{"$f":"IFERROR(INDEX('3 - Land Summary'!$B$21:$B$120,(MATCH('4 - Species Breakdown'!$V1003,'3 - Land Summary'!$C$21:$C$120,0))),\"\")","v":""},null,null,{"$f":"IF(OR(COUNTIF('Look Up Data'!$D$149:$D$203,D1003),COUNTIF('Look Up Data'!$D$149:$D$203,AE1003)),\"YES\",\"NO\")","v":"NO"},null,null,{"$f":"IFERROR(INDEX('3 - Land Summary'!$G$21:$G$120,(MATCH(C1003,'3 - Land Summary'!$C$21:$C$120,0))),\"\")","v":""},{"$f":"IFERROR(INDEX('3 - Land Summary'!$I$21:$I$120,(MATCH(C1003,'3 - Land Summary'!$C$21:$C$120,0))),\"\")","v":""},"","",null,null,null,{"$f":"IFERROR(VLOOKUP(D1003,'Species List'!$D$10:$E$46,2,FALSE)*J1003,\"\")","v":""},{"$f":"IFERROR(VLOOKUP(D1003,'Species List'!$D$51:$E$89,2,FALSE)*J1003,\"\")","v":""},{"$f":"IFERROR(VLOOKUP(D1003,'Species List'!$D$95:$E$102,2,FALSE)*J1003,\"\")","v":""},{"$f":"IFERROR(VLOOKUP(D1003,'Species List'!$I$10:$J$11,2,FALSE)*J1003,\"\")","v":""},{"$f":"IFERROR(VLOOKUP(D1003,'Species List'!$I$16:$J$61,2,FALSE)*J1003,\"\")","v":""},{"$f":"IFERROR(VLOOKUP(D1003,'Species List'!$I$66:$J$66,2,FALSE)*J1003,\"\")","v":""},{"$f":"IFERROR(VLOOKUP(D1003,'Species List'!$I$71:$J$82,2,FALSE)*J1003,\"\")","v":""},0,null,null,null,null,null,null,{"$f":"IFERROR(INDEX('3 - Land Summary'!$B$21:$B$120,(MATCH(AD1003,'3 - Land Summary'!$C$21:$C$120,0))),\"\")","v":""}]
[null,{"$f":"IFERROR(INDEX('3 - Land Summary'!$B$21:$B$120,(MATCH('4 - Species Breakdown'!$V1004,'3 - Land Summary'!$C$21:$C$120,0))),\"\")","v":""},null,null,{"$f":"IF(OR(COUNTIF('Look Up Data'!$D$149:$D$203,D1004),COUNTIF('Look Up Data'!$D$149:$D$203,AE1004)),\"YES\",\"NO\")","v":"NO"},null,null,{"$f":"IFERROR(INDEX('3 - Land Summary'!$G$21:$G$120,(MATCH(C1004,'3 - Land Summary'!$C$21:$C$120,0))),\"\")","v":""},{"$f":"IFERROR(INDEX('3 - Land Summary'!$I$21:$I$120,(MATCH(C1004,'3 - Land Summary'!$C$21:$C$120,0))),\"\")","v":""},"","",null,null,null,{"$f":"IFERROR(VLOOKUP(D1004,'Species List'!$D$10:$E$46,2,FALSE)*J1004,\"\")","v":""},{"$f":"IFERROR(VLOOKUP(D1004,'Species List'!$D$51:$E$89,2,FALSE)*J1004,\"\")","v":""},{"$f":"IFERROR(VLOOKUP(D1004,'Species List'!$D$95:$E$102,2,FALSE)*J1004,\"\")","v":""},{"$f":"IFERROR(VLOOKUP(D1004,'Species List'!$I$10:$J$11,2,FALSE)*J1004,\"\")","v":""},{"$f":"IFERROR(VLOOKUP(D1004,'Species List'!$I$16:$J$61,2,FALSE)*J1004,\"\")","v":""},{"$f":"IFERROR(VLOOKUP(D1004,'Species List'!$I$66:$J$66,2,FALSE)*J1004,\"\")","v":""},{"$f":"IFERROR(VLOOKUP(D1004,'Species List'!$I$71:$J$82,2,FALSE)*J1004,\"\")","v":""},0,null,null,null,null,null,null,{"$f":"IFERROR(INDEX('3 - Land Summary'!$B$21:$B$120,(MATCH(AD1004,'3 - Land Summary'!$C$21:$C$120,0))),\"\")","v":""}]
[null,{"$f":"IFERROR(INDEX('3 - Land Summary'!$B$21:$B$120,(MATCH('4 - Species Breakdown'!$V1005,'3 - Land Summary'!$C$21:$C$120,0))),\"\")","v":""},null,null,{"$f":"IF(OR(COUNTIF('Look Up Data'!$D$149:$D$203,D1005),COUNTIF('Look Up Data'!$D$149:$D$203,AE1005)),\"YES\",\"NO\")","v":"NO"},null,null,{"$f":"IFERROR(INDEX('3 - Land Summary'!$G$21:$G$120,(MATCH(C1005,'3 - Land Summary'!$C$21:$C$120,0))),\"\")","v":""},{"$f":"IFERROR(INDEX('3 - Land Summary'!$I$21:$I$120,(MATCH(C1005,'3 - Land Summary'!$C$21:$C$120,0))),\"\")","v":""},"","",null,null,null,{"$f":"IFERROR(VLOOKUP(D1005,'Species List'!$D$10:$E$46,2,FALSE)*J1005,\"\")","v":""},{"$f":"IFERROR(VLOOKUP(D1005,'Species List'!$D$51:$E$89,2,FALSE)*J1005,\"\")","v":""},{"$f":"IFERROR(VLOOKUP(D1005,'Species List'!$D$95:$E$102,2,FALSE)*J1005,\"\")","v":""},{"$f":"IFERROR(VLOOKUP(D1005,'Species List'!$I$10:$J$11,2,FALSE)*J1005,\"\")","v":""},{"$f":"IFERROR(VLOOKUP(D1005,'Species List'!$I$16:$J$61,2,FALSE)*J1005,\"\")","v":""},{"$f":"IFERROR(VLOOKUP(D1005,'Species List'!$I$66:$J$66,2,FALSE)*J1005,\"\")","v":""},{"$f":"IFERROR(VLOOKUP(D1005,'Species List'!$I$71:$J$82,2,FALSE)*J1005,\"\")","v":""},0,null,null,null,null,null,null,{"$f":"IFERROR(INDEX('3 - Land Summary'!$B$21:$B$120,(MATCH(AD1005,'3 - Land Summary'!$C$21:$C$120,0))),\"\")","v":""}]
[null,{"$f":"IFERROR(INDEX('3 - Land Summary'!$B$21:$B$120,(MATCH('4 - Species Breakdown'!$V1006,'3 - Land Summary'!$C$21:$C$120,0))),\"\")","v":""},null,null,{"$f":"IF(OR(COUNTIF('Look Up Data'!$D$149:$D$203,D1006),COUNTIF('Look Up Data'!$D$149:$D$203,AE1006)),\"YES\",\"NO\")","v":"NO"},null,null,{"$f":"IFERROR(INDEX('3 - Land Summary'!$G$21:$G$120,(MATCH(C1006,'3 - Land Summary'!$C$21:$C$120,0))),\"\")","v":""},{"$f":"IFERROR(INDEX('3 - Land Summary'!$I$21:$I$120,(MATCH(C1006,'3 - Land Summary'!$C$21:$C$120,0))),\"\")","v":""},"","",null,null,null,{"$f":"IFERROR(VLOOKUP(D1006,'Species List'!$D$10:$E$46,2,FALSE)*J1006,\"\")","v":""},{"$f":"IFERROR(VLOOKUP(D1006,'Species List'!$D$51:$E$89,2,FALSE)*J1006,\"\")","v":""},{"$f":"IFERROR(VLOOKUP(D1006,'Species List'!$D$95:$E$102,2,FALSE)*J1006,\"\")","v":""},{"$f":"IFERROR(VLOOKUP(D1006,'Species List'!$I$10:$J$11,2,FALSE)*J1006,\"\")","v":""},{"$f":"IFERROR(VLOOKUP(D1006,'Species List'!$I$16:$J$61,2,FALSE)*J1006,\"\")","v":""},{"$f":"IFERROR(VLOOKUP(D1006,'Species List'!$I$66:$J$66,2,FALSE)*J1006,\"\")","v":""},{"$f":"IFERROR(VLOOKUP(D1006,'Species List'!$I$71:$J$82,2,FALSE)*J1006,\"\")","v":""},0,null,null,null,null,null,null,{"$f":"IFERROR(INDEX('3 - Land Summary'!$B$21:$B$120,(MATCH(AD1006,'3 - Land Summary'!$C$21:$C$120,0))),\"\")","v":""}]
[null,{"$f":"IFERROR(INDEX('3 - Land Summary'!$B$21:$B$120,(MATCH('4 - Species Breakdown'!$V1007,'3 - Land Summary'!$C$21:$C$120,0))),\"\")","v":""},null,null,{"$f":"IF(OR(COUNTIF('Look Up Data'!$D$149:$D$203,D1007),COUNTIF('Look Up Data'!$D$149:$D$203,AE1007)),\"YES\",\"NO\")","v":"NO"},null,null,{"$f":"IFERROR(INDEX('3 - Land Summary'!$G$21:$G$120,(MATCH(C1007,'3 - Land Summary'!$C$21:$C$120,0))),\"\")","v":""},{"$f":"IFERROR(INDEX('3 - Land Summary'!$I$21:$I$120,(MATCH(C1007,'3 - Land Summary'!$C$21:$C$120,0))),\"\")","v":""},"","",null,null,null,{"$f":"IFERROR(VLOOKUP(D1007,'Species List'!$D$10:$E$46,2,FALSE)*J1007,\"\")","v":""},{"$f":"IFERROR(VLOOKUP(D1007,'Species List'!$D$51:$E$89,2,FALSE)*J1007,\"\")","v":""},{"$f":"IFERROR(VLOOKUP(D1007,'Species List'!$D$95:$E$102,2,FALSE)*J1007,\"\")","v":""},{"$f":"IFERROR(VLOOKUP(D1007,'Species List'!$I$10:$J$11,2,FALSE)*J1007,\"\")","v":""},{"$f":"IFERROR(VLOOKUP(D1007,'Species List'!$I$16:$J$61,2,FALSE)*J1007,\"\")","v":""},{"$f":"IFERROR(VLOOKUP(D1007,'Species List'!$I$66:$J$66,2,FALSE)*J1007,\"\")","v":""},{"$f":"IFERROR(VLOOKUP(D1007,'Species List'!$I$71:$J$82,2,FALSE)*J1007,\"\")","v":""},0,null,null,null,null,null,null,{"$f":"IFERROR(INDEX('3 - Land Summary'!$B$21:$B$120,(MATCH(AD1007,'3 - Land Summary'!$C$21:$C$120,0))),\"\")","v":""}]
[null,{"$f":"IFERROR(INDEX('3 - Land Summary'!$B$21:$B$120,(MATCH('4 - Species Breakdown'!$V1008,'3 - Land Summary'!$C$21:$C$120,0))),\"\")","v":""},null,null,{"$f":"IF(OR(COUNTIF('Look Up Data'!$D$149:$D$203,D1008),COUNTIF('Look Up Data'!$D$149:$D$203,AE1008)),\"YES\",\"NO\")","v":"NO"},null,null,{"$f":"IFERROR(INDEX('3 - Land Summary'!$G$21:$G$120,(MATCH(C1008,'3 - Land Summary'!$C$21:$C$120,0))),\"\")","v":""},{"$f":"IFERROR(INDEX('3 - Land Summary'!$I$21:$I$120,(MATCH(C1008,'3 - Land Summary'!$C$21:$C$120,0))),\"\")","v":""},"","",null,null,null,{"$f":"IFERROR(VLOOKUP(D1008,'Species List'!$D$10:$E$46,2,FALSE)*J1008,\"\")","v":""},{"$f":"IFERROR(VLOOKUP(D1008,'Species List'!$D$51:$E$89,2,FALSE)*J1008,\"\")","v":""},{"$f":"IFERROR(VLOOKUP(D1008,'Species List'!$D$95:$E$102,2,FALSE)*J1008,\"\")","v":""},{"$f":"IFERROR(VLOOKUP(D1008,'Species List'!$I$10:$J$11,2,FALSE)*J1008,\"\")","v":""},{"$f":"IFERROR(VLOOKUP(D1008,'Species List'!$I$16:$J$61,2,FALSE)*J1008,\"\")","v":""},{"$f":"IFERROR(VLOOKUP(D1008,'Species List'!$I$66:$J$66,2,FALSE)*J1008,\"\")","v":""},{"$f":"IFERROR(VLOOKUP(D1008,'Species List'!$I$71:$J$82,2,FALSE)*J1008,\"\")","v":""},0,null,null,null,null,null,null,{"$f":"IFERROR(INDEX('3 - Land Summary'!$B$21:$B$120,(MATCH(AD1008,'3 - Land Summary'!$C$21:$C$120,0))),\"\")","v":""}]
[null,{"$f":"IFERROR(INDEX('3 - Land Summary'!$B$21:$B$120,(MATCH('4 - Species Breakdown'!$V1009,'3 - Land Summary'!$C$21:$C$120,0))),\"\")","v":""},null,null,{"$f":"IF(OR(COUNTIF('Look Up Data'!$D$149:$D$203,D1009),COUNTIF('Look Up Data'!$D$149:$D$203,AE1009)),\"YES\",\"NO\")","v":"NO"},null,null,{"$f":"IFERROR(INDEX('3 - Land Summary'!$G$21:$G$120,(MATCH(C1009,'3 - Land Summary'!$C$21:$C$120,0))),\"\")","v":""},{"$f":"IFERROR(INDEX('3 - Land Summary'!$I$21:$I$120,(MATCH(C1009,'3 - Land Summary'!$C$21:$C$120,0))),\"\")","v":""},"","",null,null,null,{"$f":"IFERROR(VLOOKUP(D1009,'Species List'!$D$10:$E$46,2,FALSE)*J1009,\"\")","v":""},{"$f":"IFERROR(VLOOKUP(D1009,'Species List'!$D$51:$E$89,2,FALSE)*J1009,\"\")","v":""},{"$f":"IFERROR(VLOOKUP(D1009,'Species List'!$D$95:$E$102,2,FALSE)*J1009,\"\")","v":""},{"$f":"IFERROR(VLOOKUP(D1009,'Species List'!$I$10:$J$11,2,FALSE)*J1009,\"\")","v":""},{"$f":"IFERROR(VLOOKUP(D1009,'Species List'!$I$16:$J$61,2,FALSE)*J1009,\"\")","v":""},{"$f":"IFERROR(VLOOKUP(D1009,'Species List'!$I$66:$J$66,2,FALSE)*J1009,\"\")","v":""},{"$f":"IFERROR(VLOOKUP(D1009,'Species List'!$I$71:$J$82,2,FALSE)*J1009,\"\")","v":""},0,null,null,null,null,null,null,{"$f":"IFERROR(INDEX('3 - Land Summary'!$B$21:$B$120,(MATCH(AD1009,'3 - Land Summary'!$C$21:$C$120,0))),\"\")","v":""}]
[null,{"$f":"IFERROR(INDEX('3 - Land Summary'!$B$21:$B$120,(MATCH('4 - Species Breakdown'!$V1010,'3 - Land Summary'!$C$21:$C$120,0))),\"\")","v":""},null,null,{"$f":"IF(OR(COUNTIF('Look Up Data'!$D$149:$D$203,D1010),COUNTIF('Look Up Data'!$D$149:$D$203,AE1010)),\"YES\",\"NO\")","v":"NO"},null,null,{"$f":"IFERROR(INDEX('3 - Land Summary'!$G$21:$G$120,(MATCH(C1010,'3 - Land Summary'!$C$21:$C$120,0))),\"\")","v":""},{"$f":"IFERROR(INDEX('3 - Land Summary'!$I$21:$I$120,(MATCH(C1010,'3 - Land Summary'!$C$21:$C$120,0))),\"\")","v":""},"","",null,null,null,{"$f":"IFERROR(VLOOKUP(D1010,'Species List'!$D$10:$E$46,2,FALSE)*J1010,\"\")","v":""},{"$f":"IFERROR(VLOOKUP(D1010,'Species List'!$D$51:$E$89,2,FALSE)*J1010,\"\")","v":""},{"$f":"IFERROR(VLOOKUP(D1010,'Species List'!$D$95:$E$102,2,FALSE)*J1010,\"\")","v":""},{"$f":"IFERROR(VLOOKUP(D1010,'Species List'!$I$10:$J$11,2,FALSE)*J1010,\"\")","v":""},{"$f":"IFERROR(VLOOKUP(D1010,'Species List'!$I$16:$J$61,2,FALSE)*J1010,\"\")","v":""},{"$f":"IFERROR(VLOOKUP(D1010,'Species List'!$I$66:$J$66,2,FALSE)*J1010,\"\")","v":""},{"$f":"IFERROR(VLOOKUP(D1010,'Species List'!$I$71:$J$82,2,FALSE)*J1010,\"\")","v":""},0,null,null,null,null,null,null,{"$f":"IFERROR(INDEX('3 - Land Summary'!$B$21:$B$120,(MATCH(AD1010,'3 - Land Summary'!$C$21:$C$120,0))),\"\")","v":""}]
[null,{"$f":"IFERROR(INDEX('3 - Land Summary'!$B$21:$B$120,(MATCH('4 - Species Breakdown'!$V1011,'3 - Land Summary'!$C$21:$C$120,0))),\"\")","v":""},null,null,{"$f":"IF(OR(COUNTIF('Look Up Data'!$D$149:$D$203,D1011),COUNTIF('Look Up Data'!$D$149:$D$203,AE1011)),\"YES\",\"NO\")","v":"NO"},null,null,{"$f":"IFERROR(INDEX('3 - Land Summary'!$G$21:$G$120,(MATCH(C1011,'3 - Land Summary'!$C$21:$C$120,0))),\"\")","v":""},{"$f":"IFERROR(INDEX('3 - Land Summary'!$I$21:$I$120,(MATCH(C1011,'3 - Land Summary'!$C$21:$C$120,0))),\"\")","v":""},"","",null,null,null,{"$f":"IFERROR(VLOOKUP(D1011,'Species List'!$D$10:$E$46,2,FALSE)*J1011,\"\")","v":""},{"$f":"IFERROR(VLOOKUP(D1011,'Species List'!$D$51:$E$89,2,FALSE)*J1011,\"\")","v":""},{"$f":"IFERROR(VLOOKUP(D1011,'Species List'!$D$95:$E$102,2,FALSE)*J1011,\"\")","v":""},{"$f":"IFERROR(VLOOKUP(D1011,'Species List'!$I$10:$J$11,2,FALSE)*J1011,\"\")","v":""},{"$f":"IFERROR(VLOOKUP(D1011,'Species List'!$I$16:$J$61,2,FALSE)*J1011,\"\")","v":""},{"$f":"IFERROR(VLOOKUP(D1011,'Species List'!$I$66:$J$66,2,FALSE)*J1011,\"\")","v":""},{"$f":"IFERROR(VLOOKUP(D1011,'Species List'!$I$71:$J$82,2,FALSE)*J1011,\"\")","v":""},0,null,null,null,null,null,null,{"$f":"IFERROR(INDEX('3 - Land Summary'!$B$21:$B$120,(MATCH(AD1011,'3 - Land Summary'!$C$21:$C$120,0))),\"\")","v":""}]
[null,{"$f":"IFERROR(INDEX('3 - Land Summary'!$B$21:$B$120,(MATCH('4 - Species Breakdown'!$V1012,'3 - Land Summary'!$C$21:$C$120,0))),\"\")","v":""},null,null,{"$f":"IF(OR(COUNTIF('Look Up Data'!$D$149:$D$203,D1012),COUNTIF('Look Up Data'!$D$149:$D$203,AE1012)),\"YES\",\"NO\")","v":"NO"},null,null,{"$f":"IFERROR(INDEX('3 - Land Summary'!$G$21:$G$120,(MATCH(C1012,'3 - Land Summary'!$C$21:$C$120,0))),\"\")","v":""},{"$f":"IFERROR(INDEX('3 - Land Summary'!$I$21:$I$120,(MATCH(C1012,'3 - Land Summary'!$C$21:$C$120,0))),\"\")","v":""},"","",null,null,null,{"$f":"IFERROR(VLOOKUP(D1012,'Species List'!$D$10:$E$46,2,FALSE)*J1012,\"\")","v":""},{"$f":"IFERROR(VLOOKUP(D1012,'Species List'!$D$51:$E$89,2,FALSE)*J1012,\"\")","v":""},{"$f":"IFERROR(VLOOKUP(D1012,'Species List'!$D$95:$E$102,2,FALSE)*J1012,\"\")","v":""},{"$f":"IFERROR(VLOOKUP(D1012,'Species List'!$I$10:$J$11,2,FALSE)*J1012,\"\")","v":""},{"$f":"IFERROR(VLOOKUP(D1012,'Species List'!$I$16:$J$61,2,FALSE)*J1012,\"\")","v":""},{"$f":"IFERROR(VLOOKUP(D1012,'Species List'!$I$66:$J$66,2,FALSE)*J1012,\"\")","v":""},{"$f":"IFERROR(VLOOKUP(D1012,'Species List'!$I$71:$J$82,2,FALSE)*J1012,\"\")","v":""},0,null,null,null,null,null,null,{"$f":"IFERROR(INDEX('3 - Land Summary'!$B$21:$B$120,(MATCH(AD1012,'3 - Land Summary'!$C$21:$C$120,0))),\"\")","v":""}]
[null,{"$f":"IFERROR(INDEX('3 - Land Summary'!$B$21:$B$120,(MATCH('4 - Species Breakdown'!$V1013,'3 - Land Summary'!$C$21:$C$120,0))),\"\")","v":""},null,null,{"$f":"IF(OR(COUNTIF('Look Up Data'!$D$149:$D$203,D1013),COUNTIF('Look Up Data'!$D$149:$D$203,AE1013)),\"YES\",\"NO\")","v":"NO"},null,null,{"$f":"IFERROR(INDEX('3 - Land Summary'!$G$21:$G$120,(MATCH(C1013,'3 - Land Summary'!$C$21:$C$120,0))),\"\")","v":""},{"$f":"IFERROR(INDEX('3 - Land Summary'!$I$21:$I$120,(MATCH(C1013,'3 - Land Summary'!$C$21:$C$120,0))),\"\")","v":""},"","",null,null,null,{"$f":"IFERROR(VLOOKUP(D1013,'Species List'!$D$10:$E$46,2,FALSE)*J1013,\"\")","v":""},{"$f":"IFERROR(VLOOKUP(D1013,'Species List'!$D$51:$E$89,2,FALSE)*J1013,\"\")","v":""},{"$f":"IFERROR(VLOOKUP(D1013,'Species List'!$D$95:$E$102,2,FALSE)*J1013,\"\")","v":""},{"$f":"IFERROR(VLOOKUP(D1013,'Species List'!$I$10:$J$11,2,FALSE)*J1013,\"\")","v":""},{"$f":"IFERROR(VLOOKUP(D1013,'Species List'!$I$16:$J$61,2,FALSE)*J1013,\"\")","v":""},{"$f":"IFERROR(VLOOKUP(D1013,'Species List'!$I$66:$J$66,2,FALSE)*J1013,\"\")","v":""},{"$f":"IFERROR(VLOOKUP(D1013,'Species List'!$I$71:$J$82,2,FALSE)*J1013,\"\")","v":""},0,null,null,null,null,null,null,{"$f":"IFERROR(INDEX('3 - Land Summary'!$B$21:$B$120,(MATCH(AD1013,'3 - Land Summary'!$C$21:$C$120,0))),\"\")","v":""}]
[null,{"$f":"IFERROR(INDEX('3 - Land Summary'!$B$21:$B$120,(MATCH('4 - Species Breakdown'!$V1014,'3 - Land Summary'!$C$21:$C$120,0))),\"\")","v":""},null,null,{"$f":"IF(OR(COUNTIF('Look Up Data'!$D$149:$D$203,D1014),COUNTIF('Look Up Data'!$D$149:$D$203,AE1014)),\"YES\",\"NO\")","v":"NO"},null,null,{"$f":"IFERROR(INDEX('3 - Land Summary'!$G$21:$G$120,(MATCH(C1014,'3 - Land Summary'!$C$21:$C$120,0))),\"\")","v":""},{"$f":"IFERROR(INDEX('3 - Land Summary'!$I$21:$I$120,(MATCH(C1014,'3 - Land Summary'!$C$21:$C$120,0))),\"\")","v":""},"","",null,null,null,{"$f":"IFERROR(VLOOKUP(D1014,'Species List'!$D$10:$E$46,2,FALSE)*J1014,\"\")","v":""},{"$f":"IFERROR(VLOOKUP(D1014,'Species List'!$D$51:$E$89,2,FALSE)*J1014,\"\")","v":""},{"$f":"IFERROR(VLOOKUP(D1014,'Species List'!$D$95:$E$102,2,FALSE)*J1014,\"\")","v":""},{"$f":"IFERROR(VLOOKUP(D1014,'Species List'!$I$10:$J$11,2,FALSE)*J1014,\"\")","v":""},{"$f":"IFERROR(VLOOKUP(D1014,'Species List'!$I$16:$J$61,2,FALSE)*J1014,\"\")","v":""},{"$f":"IFERROR(VLOOKUP(D1014,'Species List'!$I$66:$J$66,2,FALSE)*J1014,\"\")","v":""},{"$f":"IFERROR(VLOOKUP(D1014,'Species List'!$I$71:$J$82,2,FALSE)*J1014,\"\")","v":""},0,null,null,null,null,null,null,{"$f":"IFERROR(INDEX('3 - Land Summary'!$B$21:$B$120,(MATCH(AD1014,'3 - Land Summary'!$C$21:$C$120,0))),\"\")","v":""}]
[null,{"$f":"IFERROR(INDEX('3 - Land Summary'!$B$21:$B$120,(MATCH('4 - Species Breakdown'!$V1015,'3 - Land Summary'!$C$21:$C$120,0))),\"\")","v":""},null,null,{"$f":"IF(OR(COUNTIF('Look Up Data'!$D$149:$D$203,D1015),COUNTIF('Look Up Data'!$D$149:$D$203,AE1015)),\"YES\",\"NO\")","v":"NO"},null,null,{"$f":"IFERROR(INDEX('3 - Land Summary'!$G$21:$G$120,(MATCH(C1015,'3 - Land Summary'!$C$21:$C$120,0))),\"\")","v":""},{"$f":"IFERROR(INDEX('3 - Land Summary'!$I$21:$I$120,(MATCH(C1015,'3 - Land Summary'!$C$21:$C$120,0))),\"\")","v":""},"","",null,null,null,{"$f":"IFERROR(VLOOKUP(D1015,'Species List'!$D$10:$E$46,2,FALSE)*J1015,\"\")","v":""},{"$f":"IFERROR(VLOOKUP(D1015,'Species List'!$D$51:$E$89,2,FALSE)*J1015,\"\")","v":""},{"$f":"IFERROR(VLOOKUP(D1015,'Species List'!$D$95:$E$102,2,FALSE)*J1015,\"\")","v":""},{"$f":"IFERROR(VLOOKUP(D1015,'Species List'!$I$10:$J$11,2,FALSE)*J1015,\"\")","v":""},{"$f":"IFERROR(VLOOKUP(D1015,'Species List'!$I$16:$J$61,2,FALSE)*J1015,\"\")","v":""},{"$f":"IFERROR(VLOOKUP(D1015,'Species List'!$I$66:$J$66,2,FALSE)*J1015,\"\")","v":""},{"$f":"IFERROR(VLOOKUP(D1015,'Species List'!$I$71:$J$82,2,FALSE)*J1015,\"\")","v":""},0,null,null,null,null,null,null,{"$f":"IFERROR(INDEX('3 - Land Summary'!$B$21:$B$120,(MATCH(AD1015,'3 - Land Summary'!$C$21:$C$120,0))),\"\")","v":""}]
[null,{"$f":"IFERROR(INDEX('3 - Land Summary'!$B$21:$B$120,(MATCH('4 - Species Breakdown'!$V1016,'3 - Land Summary'!$C$21:$C$120,0))),\"\")","v":""},null,null,{"$f":"IF(OR(COUNTIF('Look Up Data'!$D$149:$D$203,D1016),COUNTIF('Look Up Data'!$D$149:$D$203,AE1016)),\"YES\",\"NO\")","v":"NO"},null,null,{"$f":"IFERROR(INDEX('3 - Land Summary'!$G$21:$G$120,(MATCH(C1016,'3 - Land Summary'!$C$21:$C$120,0))),\"\")","v":""},{"$f":"IFERROR(INDEX('3 - Land Summary'!$I$21:$I$120,(MATCH(C1016,'3 - Land Summary'!$C$21:$C$120,0))),\"\")","v":""},"","",null,null,null,{"$f":"IFERROR(VLOOKUP(D1016,'Species List'!$D$10:$E$46,2,FALSE)*J1016,\"\")","v":""},{"$f":"IFERROR(VLOOKUP(D1016,'Species List'!$D$51:$E$89,2,FALSE)*J1016,\"\")","v":""},{"$f":"IFERROR(VLOOKUP(D1016,'Species List'!$D$95:$E$102,2,FALSE)*J1016,\"\")","v":""},{"$f":"IFERROR(VLOOKUP(D1016,'Species List'!$I$10:$J$11,2,FALSE)*J1016,\"\")","v":""},{"$f":"IFERROR(VLOOKUP(D1016,'Species List'!$I$16:$J$61,2,FALSE)*J1016,\"\")","v":""},{"$f":"IFERROR(VLOOKUP(D1016,'Species List'!$I$66:$J$66,2,FALSE)*J1016,\"\")","v":""},{"$f":"IFERROR(VLOOKUP(D1016,'Species List'!$I$71:$J$82,2,FALSE)*J1016,\"\")","v":""},0,null,null,null,null,null,null,{"$f":"IFERROR(INDEX('3 - Land Summary'!$B$21:$B$120,(MATCH(AD1016,'3 - Land Summary'!$C$21:$C$120,0))),\"\")","v":""}]
[null,{"$f":"IFERROR(INDEX('3 - Land Summary'!$B$21:$B$120,(MATCH('4 - Species Breakdown'!$V1017,'3 - Land Summary'!$C$21:$C$120,0))),\"\")","v":""},null,null,{"$f":"IF(OR(COUNTIF('Look Up Data'!$D$149:$D$203,D1017),COUNTIF('Look Up Data'!$D$149:$D$203,AE1017)),\"YES\",\"NO\")","v":"NO"},null,null,{"$f":"IFERROR(INDEX('3 - Land Summary'!$G$21:$G$120,(MATCH(C1017,'3 - Land Summary'!$C$21:$C$120,0))),\"\")","v":""},{"$f":"IFERROR(INDEX('3 - Land Summary'!$I$21:$I$120,(MATCH(C1017,'3 - Land Summary'!$C$21:$C$120,0))),\"\")","v":""},"","",null,null,null,{"$f":"IFERROR(VLOOKUP(D1017,'Species List'!$D$10:$E$46,2,FALSE)*J1017,\"\")","v":""},{"$f":"IFERROR(VLOOKUP(D1017,'Species List'!$D$51:$E$89,2,FALSE)*J1017,\"\")","v":""},{"$f":"IFERROR(VLOOKUP(D1017,'Species List'!$D$95:$E$102,2,FALSE)*J1017,\"\")","v":""},{"$f":"IFERROR(VLOOKUP(D1017,'Species List'!$I$10:$J$11,2,FALSE)*J1017,\"\")","v":""},{"$f":"IFERROR(VLOOKUP(D1017,'Species List'!$I$16:$J$61,2,FALSE)*J1017,\"\")","v":""},{"$f":"IFERROR(VLOOKUP(D1017,'Species List'!$I$66:$J$66,2,FALSE)*J1017,\"\")","v":""},{"$f":"IFERROR(VLOOKUP(D1017,'Species List'!$I$71:$J$82,2,FALSE)*J1017,\"\")","v":""},0,null,null,null,null,null,null,{"$f":"IFERROR(INDEX('3 - Land Summary'!$B$21:$B$120,(MATCH(AD1017,'3 - Land Summary'!$C$21:$C$120,0))),\"\")","v":""}]
[null,{"$f":"IFERROR(INDEX('3 - Land Summary'!$B$21:$B$120,(MATCH('4 - Species Breakdown'!$V1018,'3 - Land Summary'!$C$21:$C$120,0))),\"\")","v":""},null,null,{"$f":"IF(OR(COUNTIF('Look Up Data'!$D$149:$D$203,D1018),COUNTIF('Look Up Data'!$D$149:$D$203,AE1018)),\"YES\",\"NO\")","v":"NO"},null,null,{"$f":"IFERROR(INDEX('3 - Land Summary'!$G$21:$G$120,(MATCH(C1018,'3 - Land Summary'!$C$21:$C$120,0))),\"\")","v":""},{"$f":"IFERROR(INDEX('3 - Land Summary'!$I$21:$I$120,(MATCH(C1018,'3 - Land Summary'!$C$21:$C$120,0))),\"\")","v":""},"","",null,null,null,{"$f":"IFERROR(VLOOKUP(D1018,'Species List'!$D$10:$E$46,2,FALSE)*J1018,\"\")","v":""},{"$f":"IFERROR(VLOOKUP(D1018,'Species List'!$D$51:$E$89,2,FALSE)*J1018,\"\")","v":""},{"$f":"IFERROR(VLOOKUP(D1018,'Species List'!$D$95:$E$102,2,FALSE)*J1018,\"\")","v":""},{"$f":"IFERROR(VLOOKUP(D1018,'Species List'!$I$10:$J$11,2,FALSE)*J1018,\"\")","v":""},{"$f":"IFERROR(VLOOKUP(D1018,'Species List'!$I$16:$J$61,2,FALSE)*J1018,\"\")","v":""},{"$f":"IFERROR(VLOOKUP(D1018,'Species List'!$I$66:$J$66,2,FALSE)*J1018,\"\")","v":""},{"$f":"IFERROR(VLOOKUP(D1018,'Species List'!$I$71:$J$82,2,FALSE)*J1018,\"\")","v":""},0,null,null,null,null,null,null,{"$f":"IFERROR(INDEX('3 - Land Summary'!$B$21:$B$120,(MATCH(AD1018,'3 - Land Summary'!$C$21:$C$120,0))),\"\")","v":""}]
[null,{"$f":"IFERROR(INDEX('3 - Land Summary'!$B$21:$B$120,(MATCH('4 - Species Breakdown'!$V1019,'3 - Land Summary'!$C$21:$C$120,0))),\"\")","v":""},null,null,{"$f":"IF(OR(COUNTIF('Look Up Data'!$D$149:$D$203,D1019),COUNTIF('Look Up Data'!$D$149:$D$203,AE1019)),\"YES\",\"NO\")","v":"NO"},null,null,{"$f":"IFERROR(INDEX('3 - Land Summary'!$G$21:$G$120,(MATCH(C1019,'3 - Land Summary'!$C$21:$C$120,0))),\"\")","v":""},{"$f":"IFERROR(INDEX('3 - Land Summary'!$I$21:$I$120,(MATCH(C1019,'3 - Land Summary'!$C$21:$C$120,0))),\"\")","v":""},"","",null,null,null,{"$f":"IFERROR(VLOOKUP(D1019,'Species List'!$D$10:$E$46,2,FALSE)*J1019,\"\")","v":""},{"$f":"IFERROR(VLOOKUP(D1019,'Species List'!$D$51:$E$89,2,FALSE)*J1019,\"\")","v":""},{"$f":"IFERROR(VLOOKUP(D1019,'Species List'!$D$95:$E$102,2,FALSE)*J1019,\"\")","v":""},{"$f":"IFERROR(VLOOKUP(D1019,'Species List'!$I$10:$J$11,2,FALSE)*J1019,\"\")","v":""},{"$f":"IFERROR(VLOOKUP(D1019,'Species List'!$I$16:$J$61,2,FALSE)*J1019,\"\")","v":""},{"$f":"IFERROR(VLOOKUP(D1019,'Species List'!$I$66:$J$66,2,FALSE)*J1019,\"\")","v":""},{"$f":"IFERROR(VLOOKUP(D1019,'Species List'!$I$71:$J$82,2,FALSE)*J1019,\"\")","v":""},0,null,null,null,null,null,null,{"$f":"IFERROR(INDEX('3 - Land Summary'!$B$21:$B$120,(MATCH(AD1019,'3 - Land Summary'!$C$21:$C$120,0))),\"\")","v":""}]
[null,{"$f":"IFERROR(INDEX('3 - Land Summary'!$B$21:$B$120,(MATCH('4 - Species Breakdown'!$V1020,'3 - Land Summary'!$C$21:$C$120,0))),\"\")","v":""},null,null,{"$f":"IF(OR(COUNTIF('Look Up Data'!$D$149:$D$203,D1020),COUNTIF('Look Up Data'!$D$149:$D$203,AE1020)),\"YES\",\"NO\")","v":"NO"},null,null,{"$f":"IFERROR(INDEX('3 - Land Summary'!$G$21:$G$120,(MATCH(C1020,'3 - Land Summary'!$C$21:$C$120,0))),\"\")","v":""},{"$f":"IFERROR(INDEX('3 - Land Summary'!$I$21:$I$120,(MATCH(C1020,'3 - Land Summary'!$C$21:$C$120,0))),\"\")","v":""},"","",null,null,null,{"$f":"IFERROR(VLOOKUP(D1020,'Species List'!$D$10:$E$46,2,FALSE)*J1020,\"\")","v":""},{"$f":"IFERROR(VLOOKUP(D1020,'Species List'!$D$51:$E$89,2,FALSE)*J1020,\"\")","v":""},{"$f":"IFERROR(VLOOKUP(D1020,'Species List'!$D$95:$E$102,2,FALSE)*J1020,\"\")","v":""},{"$f":"IFERROR(VLOOKUP(D1020,'Species List'!$I$10:$J$11,2,FALSE)*J1020,\"\")","v":""},{"$f":"IFERROR(VLOOKUP(D1020,'Species List'!$I$16:$J$61,2,FALSE)*J1020,\"\")","v":""},{"$f":"IFERROR(VLOOKUP(D1020,'Species List'!$I$66:$J$66,2,FALSE)*J1020,\"\")","v":""},{"$f":"IFERROR(VLOOKUP(D1020,'Species List'!$I$71:$J$82,2,FALSE)*J1020,\"\")","v":""},0,null,null,null,null,null,null,{"$f":"IFERROR(INDEX('3 - Land Summary'!$B$21:$B$120,(MATCH(AD1020,'3 - Land Summary'!$C$21:$C$120,0))),\"\")","v":""}]
[null,{"$f":"IFERROR(INDEX('3 - Land Summary'!$B$21:$B$120,(MATCH('4 - Species Breakdown'!$V1021,'3 - Land Summary'!$C$21:$C$120,0))),\"\")","v":""},null,null,{"$f":"IF(OR(COUNTIF('Look Up Data'!$D$149:$D$203,D1021),COUNTIF('Look Up Data'!$D$149:$D$203,AE1021)),\"YES\",\"NO\")","v":"NO"},null,null,{"$f":"IFERROR(INDEX('3 - Land Summary'!$G$21:$G$120,(MATCH(C1021,'3 - Land Summary'!$C$21:$C$120,0))),\"\")","v":""},{"$f":"IFERROR(INDEX('3 - Land Summary'!$I$21:$I$120,(MATCH(C1021,'3 - Land Summary'!$C$21:$C$120,0))),\"\")","v":""},"","",null,null,null,{"$f":"IFERROR(VLOOKUP(D1021,'Species List'!$D$10:$E$46,2,FALSE)*J1021,\"\")","v":""},{"$f":"IFERROR(VLOOKUP(D1021,'Species List'!$D$51:$E$89,2,FALSE)*J1021,\"\")","v":""},{"$f":"IFERROR(VLOOKUP(D1021,'Species List'!$D$95:$E$102,2,FALSE)*J1021,\"\")","v":""},{"$f":"IFERROR(VLOOKUP(D1021,'Species List'!$I$10:$J$11,2,FALSE)*J1021,\"\")","v":""},{"$f":"IFERROR(VLOOKUP(D1021,'Species List'!$I$16:$J$61,2,FALSE)*J1021,\"\")","v":""},{"$f":"IFERROR(VLOOKUP(D1021,'Species List'!$I$66:$J$66,2,FALSE)*J1021,\"\")","v":""},{"$f":"IFERROR(VLOOKUP(D1021,'Species List'!$I$71:$J$82,2,FALSE)*J1021,\"\")","v":""},0,null,null,null,null,null,null,{"$f":"IFERROR(INDEX('3 - Land Summary'!$B$21:$B$120,(MATCH(AD1021,'3 - Land Summary'!$C$21:$C$120,0))),\"\")","v":""}]
[null,{"$f":"IFERROR(INDEX('3 - Land Summary'!$B$21:$B$120,(MATCH('4 - Species Breakdown'!$V1022,'3 - Land Summary'!$C$21:$C$120,0))),\"\")","v":""},null,null,{"$f":"IF(OR(COUNTIF('Look Up Data'!$D$149:$D$203,D1022),COUNTIF('Look Up Data'!$D$149:$D$203,AE1022)),\"YES\",\"NO\")","v":"NO"},null,null,{"$f":"IFERROR(INDEX('3 - Land Summary'!$G$21:$G$120,(MATCH(C1022,'3 - Land Summary'!$C$21:$C$120,0))),\"\")","v":""},{"$f":"IFERROR(INDEX('3 - Land Summary'!$I$21:$I$120,(MATCH(C1022,'3 - Land Summary'!$C$21:$C$120,0))),\"\")","v":""},"","",null,null,null,{"$f":"IFERROR(VLOOKUP(D1022,'Species List'!$D$10:$E$46,2,FALSE)*J1022,\"\")","v":""},{"$f":"IFERROR(VLOOKUP(D1022,'Species List'!$D$51:$E$89,2,FALSE)*J1022,\"\")","v":""},{"$f":"IFERROR(VLOOKUP(D1022,'Species List'!$D$95:$E$102,2,FALSE)*J1022,\"\")","v":""},{"$f":"IFERROR(VLOOKUP(D1022,'Species List'!$I$10:$J$11,2,FALSE)*J1022,\"\")","v":""},{"$f":"IFERROR(VLOOKUP(D1022,'Species List'!$I$16:$J$61,2,FALSE)*J1022,\"\")","v":""},{"$f":"IFERROR(VLOOKUP(D1022,'Species List'!$I$66:$J$66,2,FALSE)*J1022,\"\")","v":""},{"$f":"IFERROR(VLOOKUP(D1022,'Species List'!$I$71:$J$82,2,FALSE)*J1022,\"\")","v":""},0,null,null,null,null,null,null,{"$f":"IFERROR(INDEX('3 - Land Summary'!$B$21:$B$120,(MATCH(AD1022,'3 - Land Summary'!$C$21:$C$120,0))),\"\")","v":""}]
[null,{"$f":"IFERROR(INDEX('3 - Land Summary'!$B$21:$B$120,(MATCH('4 - Species Breakdown'!$V1023,'3 - Land Summary'!$C$21:$C$120,0))),\"\")","v":""},null,null,{"$f":"IF(OR(COUNTIF('Look Up Data'!$D$149:$D$203,D1023),COUNTIF('Look Up Data'!$D$149:$D$203,AE1023)),\"YES\",\"NO\")","v":"NO"},null,null,{"$f":"IFERROR(INDEX('3 - Land Summary'!$G$21:$G$120,(MATCH(C1023,'3 - Land Summary'!$C$21:$C$120,0))),\"\")","v":""},{"$f":"IFERROR(INDEX('3 - Land Summary'!$I$21:$I$120,(MATCH(C1023,'3 - Land Summary'!$C$21:$C$120,0))),\"\")","v":""},"","",null,null,null,{"$f":"IFERROR(VLOOKUP(D1023,'Species List'!$D$10:$E$46,2,FALSE)*J1023,\"\")","v":""},{"$f":"IFERROR(VLOOKUP(D1023,'Species List'!$D$51:$E$89,2,FALSE)*J1023,\"\")","v":""},{"$f":"IFERROR(VLOOKUP(D1023,'Species List'!$D$95:$E$102,2,FALSE)*J1023,\"\")","v":""},{"$f":"IFERROR(VLOOKUP(D1023,'Species List'!$I$10:$J$11,2,FALSE)*J1023,\"\")","v":""},{"$f":"IFERROR(VLOOKUP(D1023,'Species List'!$I$16:$J$61,2,FALSE)*J1023,\"\")","v":""},{"$f":"IFERROR(VLOOKUP(D1023,'Species List'!$I$66:$J$66,2,FALSE)*J1023,\"\")","v":""},{"$f":"IFERROR(VLOOKUP(D1023,'Species List'!$I$71:$J$82,2,FALSE)*J1023,\"\")","v":""},0,null,null,null,null,null,null,{"$f":"IFERROR(INDEX('3 - Land Summary'!$B$21:$B$120,(MATCH(AD1023,'3 - Land Summary'!$C$21:$C$120,0))),\"\")","v":""}]
[null,{"$f":"IFERROR(INDEX('3 - Land Summary'!$B$21:$B$120,(MATCH('4 - Species Breakdown'!$V1024,'3 - Land Summary'!$C$21:$C$120,0))),\"\")","v":""},null,null,{"$f":"IF(OR(COUNTIF('Look Up Data'!$D$149:$D$203,D1024),COUNTIF('Look Up Data'!$D$149:$D$203,AE1024)),\"YES\",\"NO\")","v":"NO"},null,null,{"$f":"IFERROR(INDEX('3 - Land Summary'!$G$21:$G$120,(MATCH(C1024,'3 - Land Summary'!$C$21:$C$120,0))),\"\")","v":""},{"$f":"IFERROR(INDEX('3 - Land Summary'!$I$21:$I$120,(MATCH(C1024,'3 - Land Summary'!$C$21:$C$120,0))),\"\")","v":""},"","",null,null,null,{"$f":"IFERROR(VLOOKUP(D1024,'Species List'!$D$10:$E$46,2,FALSE)*J1024,\"\")","v":""},{"$f":"IFERROR(VLOOKUP(D1024,'Species List'!$D$51:$E$89,2,FALSE)*J1024,\"\")","v":""},{"$f":"IFERROR(VLOOKUP(D1024,'Species List'!$D$95:$E$102,2,FALSE)*J1024,\"\")","v":""},{"$f":"IFERROR(VLOOKUP(D1024,'Species List'!$I$10:$J$11,2,FALSE)*J1024,\"\")","v":""},{"$f":"IFERROR(VLOOKUP(D1024,'Species List'!$I$16:$J$61,2,FALSE)*J1024,\"\")","v":""},{"$f":"IFERROR(VLOOKUP(D1024,'Species List'!$I$66:$J$66,2,FALSE)*J1024,\"\")","v":""},{"$f":"IFERROR(VLOOKUP(D1024,'Species List'!$I$71:$J$82,2,FALSE)*J1024,\"\")","v":""},0,null,null,null,null,null,null,{"$f":"IFERROR(INDEX('3 - Land Summary'!$B$21:$B$120,(MATCH(AD1024,'3 - Land Summary'!$C$21:$C$120,0))),\"\")","v":""}]
[null,{"$f":"IFERROR(INDEX('3 - Land Summary'!$B$21:$B$120,(MATCH('4 - Species Breakdown'!$V1025,'3 - Land Summary'!$C$21:$C$120,0))),\"\")","v":""},null,null,{"$f":"IF(OR(COUNTIF('Look Up Data'!$D$149:$D$203,D1025),COUNTIF('Look Up Data'!$D$149:$D$203,AE1025)),\"YES\",\"NO\")","v":"NO"},null,null,{"$f":"IFERROR(INDEX('3 - Land Summary'!$G$21:$G$120,(MATCH(C1025,'3 - Land Summary'!$C$21:$C$120,0))),\"\")","v":""},{"$f":"IFERROR(INDEX('3 - Land Summary'!$I$21:$I$120,(MATCH(C1025,'3 - Land Summary'!$C$21:$C$120,0))),\"\")","v":""},"","",null,null,null,{"$f":"IFERROR(VLOOKUP(D1025,'Species List'!$D$10:$E$46,2,FALSE)*J1025,\"\")","v":""},{"$f":"IFERROR(VLOOKUP(D1025,'Species List'!$D$51:$E$89,2,FALSE)*J1025,\"\")","v":""},{"$f":"IFERROR(VLOOKUP(D1025,'Species List'!$D$95:$E$102,2,FALSE)*J1025,\"\")","v":""},{"$f":"IFERROR(VLOOKUP(D1025,'Species List'!$I$10:$J$11,2,FALSE)*J1025,\"\")","v":""},{"$f":"IFERROR(VLOOKUP(D1025,'Species List'!$I$16:$J$61,2,FALSE)*J1025,\"\")","v":""},{"$f":"IFERROR(VLOOKUP(D1025,'Species List'!$I$66:$J$66,2,FALSE)*J1025,\"\")","v":""},{"$f":"IFERROR(VLOOKUP(D1025,'Species List'!$I$71:$J$82,2,FALSE)*J1025,\"\")","v":""},0,null,null,null,null,null,null,{"$f":"IFERROR(INDEX('3 - Land Summary'!$B$21:$B$120,(MATCH(AD1025,'3 - Land Summary'!$C$21:$C$120,0))),\"\")","v":""}]
[null,{"$f":"IFERROR(INDEX('3 - Land Summary'!$B$21:$B$120,(MATCH('4 - Species Breakdown'!$V1026,'3 - Land Summary'!$C$21:$C$120,0))),\"\")","v":""},null,null,{"$f":"IF(OR(COUNTIF('Look Up Data'!$D$149:$D$203,D1026),COUNTIF('Look Up Data'!$D$149:$D$203,AE1026)),\"YES\",\"NO\")","v":"NO"},null,null,{"$f":"IFERROR(INDEX('3 - Land Summary'!$G$21:$G$120,(MATCH(C1026,'3 - Land Summary'!$C$21:$C$120,0))),\"\")","v":""},{"$f":"IFERROR(INDEX('3 - Land Summary'!$I$21:$I$120,(MATCH(C1026,'3 - Land Summary'!$C$21:$C$120,0))),\"\")","v":""},"","",null,null,null,{"$f":"IFERROR(VLOOKUP(D1026,'Species List'!$D$10:$E$46,2,FALSE)*J1026,\"\")","v":""},{"$f":"IFERROR(VLOOKUP(D1026,'Species List'!$D$51:$E$89,2,FALSE)*J1026,\"\")","v":""},{"$f":"IFERROR(VLOOKUP(D1026,'Species List'!$D$95:$E$102,2,FALSE)*J1026,\"\")","v":""},{"$f":"IFERROR(VLOOKUP(D1026,'Species List'!$I$10:$J$11,2,FALSE)*J1026,\"\")","v":""},{"$f":"IFERROR(VLOOKUP(D1026,'Species List'!$I$16:$J$61,2,FALSE)*J1026,\"\")","v":""},{"$f":"IFERROR(VLOOKUP(D1026,'Species List'!$I$66:$J$66,2,FALSE)*J1026,\"\")","v":""},{"$f":"IFERROR(VLOOKUP(D1026,'Species List'!$I$71:$J$82,2,FALSE)*J1026,\"\")","v":""},0,null,null,null,null,null,null,{"$f":"IFERROR(INDEX('3 - Land Summary'!$B$21:$B$120,(MATCH(AD1026,'3 - Land Summary'!$C$21:$C$120,0))),\"\")","v":""}]
[null,{"$f":"IFERROR(INDEX('3 - Land Summary'!$B$21:$B$120,(MATCH('4 - Species Breakdown'!$V1027,'3 - Land Summary'!$C$21:$C$120,0))),\"\")","v":""},null,null,{"$f":"IF(OR(COUNTIF('Look Up Data'!$D$149:$D$203,D1027),COUNTIF('Look Up Data'!$D$149:$D$203,AE1027)),\"YES\",\"NO\")","v":"NO"},null,null,{"$f":"IFERROR(INDEX('3 - Land Summary'!$G$21:$G$120,(MATCH(C1027,'3 - Land Summary'!$C$21:$C$120,0))),\"\")","v":""},{"$f":"IFERROR(INDEX('3 - Land Summary'!$I$21:$I$120,(MATCH(C1027,'3 - Land Summary'!$C$21:$C$120,0))),\"\")","v":""},"","",null,null,null,{"$f":"IFERROR(VLOOKUP(D1027,'Species List'!$D$10:$E$46,2,FALSE)*J1027,\"\")","v":""},{"$f":"IFERROR(VLOOKUP(D1027,'Species List'!$D$51:$E$89,2,FALSE)*J1027,\"\")","v":""},{"$f":"IFERROR(VLOOKUP(D1027,'Species List'!$D$95:$E$102,2,FALSE)*J1027,\"\")","v":""},{"$f":"IFERROR(VLOOKUP(D1027,'Species List'!$I$10:$J$11,2,FALSE)*J1027,\"\")","v":""},{"$f":"IFERROR(VLOOKUP(D1027,'Species List'!$I$16:$J$61,2,FALSE)*J1027,\"\")","v":""},{"$f":"IFERROR(VLOOKUP(D1027,'Species List'!$I$66:$J$66,2,FALSE)*J1027,\"\")","v":""},{"$f":"IFERROR(VLOOKUP(D1027,'Species List'!$I$71:$J$82,2,FALSE)*J1027,\"\")","v":""},0,null,null,null,null,null,null,{"$f":"IFERROR(INDEX('3 - Land Summary'!$B$21:$B$120,(MATCH(AD1027,'3 - Land Summary'!$C$21:$C$120,0))),\"\")","v":""}]
[null,{"$f":"IFERROR(INDEX('3 - Land Summary'!$B$21:$B$120,(MATCH('4 - Species Breakdown'!$V1028,'3 - Land Summary'!$C$21:$C$120,0))),\"\")","v":""},null,null,{"$f":"IF(OR(COUNTIF('Look Up Data'!$D$149:$D$203,D1028),COUNTIF('Look Up Data'!$D$149:$D$203,AE1028)),\"YES\",\"NO\")","v":"NO"},null,null,{"$f":"IFERROR(INDEX('3 - Land Summary'!$G$21:$G$120,(MATCH(C1028,'3 - Land Summary'!$C$21:$C$120,0))),\"\")","v":""},{"$f":"IFERROR(INDEX('3 - Land Summary'!$I$21:$I$120,(MATCH(C1028,'3 - Land Summary'!$C$21:$C$120,0))),\"\")","v":""},"","",null,null,null,{"$f":"IFERROR(VLOOKUP(D1028,'Species List'!$D$10:$E$46,2,FALSE)*J1028,\"\")","v":""},{"$f":"IFERROR(VLOOKUP(D1028,'Species List'!$D$51:$E$89,2,FALSE)*J1028,\"\")","v":""},{"$f":"IFERROR(VLOOKUP(D1028,'Species List'!$D$95:$E$102,2,FALSE)*J1028,\"\")","v":""},{"$f":"IFERROR(VLOOKUP(D1028,'Species List'!$I$10:$J$11,2,FALSE)*J1028,\"\")","v":""},{"$f":"IFERROR(VLOOKUP(D1028,'Species List'!$I$16:$J$61,2,FALSE)*J1028,\"\")","v":""},{"$f":"IFERROR(VLOOKUP(D1028,'Species List'!$I$66:$J$66,2,FALSE)*J1028,\"\")","v":""},{"$f":"IFERROR(VLOOKUP(D1028,'Species List'!$I$71:$J$82,2,FALSE)*J1028,\"\")","v":""},0,null,null,null,null,null,null,{"$f":"IFERROR(INDEX('3 - Land Summary'!$B$21:$B$120,(MATCH(AD1028,'3 - Land Summary'!$C$21:$C$120,0))),\"\")","v":""}]

{"sheet":"5 - Composition & ACs","index":11,"n_rows":118,"n_cols":26,"rows_kept":118,"cut":false,"hidden":false,"merged":[[8,1,8,2],[9,1,9,2],[13,1,15,1],[13,2,15,2],[13,3,15,3],[9,3,9,6],[8,3,8,6],[13,11,15,11],[13,12,15,12],[12,1,12,12],[12,13,12,20],[13,23,15,23],[14,13,14,20],[13,4,15,4],[13,5,15,5],[13,6,15,6],[13,7,15,7],[13,8,15,8],[13,9,15,9],[13,10,15,10]]}
[]
[null,"Section 5 - Composition & Additional Contributions"]
[]
[]
[]
[]
[]
[]
[null,"EWCO reference:",null,{"$f":"IF('1 - Site Details'!C7=\"\",\"\",'1 - Site Details'!C7)","v":""},null,null,null,null,null,null,null,null,null,null,null,null,null,null,null,"Total gross area (ha)",{"$f":"IF('3 - Land Summary'!$K$12=\"\",\"\",'3 - Land Summary'!$K$12)","v":0}]
[null,"Property/site name:",null,{"$f":"IF('1 - Site Details'!C8=\"\",\"\",'1 - Site Details'!C8)","v":""},null,null,null,null,null,null,null,null,null,null,null,null,null,null,null,"Total net area (ha)",{"$f":"IF('3 - Land Summary'!K14=\"\",\"\",'3 - Land Summary'!K14)","v":0}]
[]
[null,"A","B","C","D","E","F","G","H","I","J","K","L","M","N","O","P","Q","R","S","T","U (hidden)","V (hidden)","U"]
[null,"Compartment Summary \n(auto-fill)",null,null,null,null,null,null,null,null,null,null,null,"Additional Contributions \n(enter gross area for all eligible compartments, even if payment will not be claimed)",null,null,null,null,null,null,null,null,null,"Targeting \n(enter gross area)"]
[null,"\nID\n","\nCentral grid reference and compartment reference\n","\nGross area (ha)\n","\n% Internal open space\n","\nNet area of woodland creation - excluding open space (ha)\n\n","\nNet area using natural colonisation as an establishment method (ha)\n","\nNo. of trees in this compartment\n\n(excl supplementary planting)","\nAll species in this compartment\n\n(excl supplementary planting)","\nSpecies % of net area\n\n\n(excl natural colonisation)","\nStocking density\n\n\n(stems per hectare of planted area excl open space)","\nNo. of supplementary planting trees in this compartment","\nSupplementary planting species","\nNature Recovery \n- Premium\n\n(ha)","\nNature Recovery \n- Higher\n\n(ha)","\nNature Recovery \n- Lower\n\n(ha)","\nWater Quality \n\n\n\n(ha)","\nFlood Risk Management\n\n\n(ha)","\nRiparian Buffers\n\n\n\n(ha)","\nSocial - Close to settlements\n\n\n(ha)\n","\nSocial  - Recreational Access\n\n(ha)","\nFuture AC placeholder\n\n\n(ha)","\nFuture AC placeholder\n\n\n(ha)","\nAir Quality - Ammonia Capture for SSSIs \n(ha)"]
[null,null,null,null,null,null,null,null,null,null,null,null,null,"Would you like to claim Grant payments for this Additional Contribution?\n(select drop-down)"]
[]
[null,"E.g.","GR 123 456, 1",2,20,1.6,null,2704,"SP|POK|SY|CAR|NBL","10|30|10|30|20","2500|1600|1600|1600|1600",null,null,2,0,0,2,2,0,0,0,0,0,0]
[null,{"$f":"IF('3 - Land Summary'!B21=0,\"\",'3 - Land Summary'!B21)","v":""},{"$f":"IF('3 - Land Summary'!C21=0,\" \",'3 - Land Summary'!C21)","v":" "},{"$f":"IF('3 - Land Summary'!D21=0,\"\",'3 - Land Summary'!D21)","v":""},{"$f":"IF('3 - Land Summary'!F21=0,\"\",'3 - Land Summary'!F21)","v":""},{"$f":"IF('3 - Land Summary'!G21=0,\"\",'3 - Land Summary'!G21)","v":""},{"$f":"IF('3 - Land Summary'!I21=0,\"\",'3 - Land Summary'!I21)","v":""},{"$f":"IF((SUMIF('4 - Species Breakdown'!$C$31:$C$1028,'3 - Land Summary'!C21,'4 - Species Breakdown'!$K$31:$K$1028))=0,\"\",SUMIF('4 - Species Breakdown'!$C$31:$C$1028,'3 - Land Summary'!C21,'4 - Species Breakdown'!$K$31:$K$1028))","v":""},{"$f":"_xlfn.TEXTJOIN(\"|\",TRUE,IF('4 - Species Breakdown'!$C$31:$C$1028=C18,'4 - Species Breakdown'!$D$31:$D$1028,\"\"))","v":""},{"$f":"_xlfn.TEXTJOIN(\"|\",TRUE,IF('4 - Species Breakdown'!$C$31:$C$1028=C18,'4 - Species Breakdown'!$F$31:$F$1028,\"\"))","v":""},{"$f":"_xlfn.TEXTJOIN(\"|\",TRUE,IF('4 - Species Breakdown'!$C$31:$C$1028=C18,'4 - Species Breakdown'!$G$31:$G$1028,\"\"))","v":""},{"$f":"IF((SUMIF('4 - Species Breakdown'!$AD$31:$AD$1028,'5 - Composition & ACs'!C18,'4 - Species Breakdown'!$AF$31:$AF$1028))=0,\"\",SUMIF('4 - Species Breakdown'!$AD$31:$AD$1028,'5 - Composition & ACs'!C18,'4 - Species Breakdown'!$AF$31:$AF$1028))","v":""},{"$f":"_xlfn.TEXTJOIN(\"|\",TRUE,IF('4 - Species Breakdown'!$AD$31:$AD$1028=C18,'4 - Species Breakdown'!$AE$31:$AE$1028,\"\"))","v":""},null,null,null,null,null,null,null,null,null,null,null,null,{"$f":"COUNT(B18:B117)","v":0}]
[null,{"$f":"IF('3 - Land Summary'!B22=0,\"\",'3 - Land Summary'!B22)","v":""},{"$f":"IF('3 - Land Summary'!C22=0,\" \",'3 - Land Summary'!C22)","v":" "},{"$f":"IF('3 - Land Summary'!D22=0,\"\",'3 - Land Summary'!D22)","v":""},{"$f":"IF('3 - Land Summary'!F22=0,\"\",'3 - Land Summary'!F22)","v":""},{"$f":"IF('3 - Land Summary'!G22=0,\"\",'3 - Land Summary'!G22)","v":""},{"$f":"IF('3 - Land Summary'!I22=0,\"\",'3 - Land Summary'!I22)","v":""},{"$f":"IF((SUMIF('4 - Species Breakdown'!$C$31:$C$1028,'3 - Land Summary'!C22,'4 - Species Breakdown'!$K$31:$K$1028))=0,\"\",SUMIF('4 - Species Breakdown'!$C$31:$C$1028,'3 - Land Summary'!C22,'4 - Species Breakdown'!$K$31:$K$1028))","v":""},{"$f":"_xlfn.TEXTJOIN(\"|\",TRUE,IF('4 - Species Breakdown'!$C$31:$C$1028=C19,'4 - Species Breakdown'!$D$31:$D$1028,\"\"))","v":""},{"$f":"_xlfn.TEXTJOIN(\"|\",TRUE,IF('4 - Species Breakdown'!$C$31:$C$1028=C19,'4 - Species Breakdown'!$F$31:$F$1028,\"\"))","v":""},{"$f":"_xlfn.TEXTJOIN(\"|\",TRUE,IF('4 - Species Breakdown'!$C$31:$C$1028=C19,'4 - Species Breakdown'!$G$31:$G$1028,\"\"))","v":""},{"$f":"IF((SUMIF('4 - Species Breakdown'!$AD$31:$AD$1028,'5 - Composition & ACs'!C19,'4 - Species Breakdown'!$AF$31:$AF$1028))=0,\"\",SUMIF('4 - Species Breakdown'!$AD$31:$AD$1028,'5 - Composition & ACs'!C19,'4 - Species Breakdown'!$AF$31:$AF$1028))","v":""},{"$f":"_xlfn.TEXTJOIN(\"|\",TRUE,IF('4 - Species Breakdown'!$AD$31:$AD$1028=C19,'4 - Species Breakdown'!$AE$31:$AE$1028,\"\"))","v":""}]
[null,{"$f":"IF('3 - Land Summary'!B23=0,\"\",'3 - Land Summary'!B23)","v":""},{"$f":"IF('3 - Land Summary'!C23=0,\" \",'3 - Land Summary'!C23)","v":" "},{"$f":"IF('3 - Land Summary'!D23=0,\"\",'3 - Land Summary'!D23)","v":""},{"$f":"IF('3 - Land Summary'!F23=0,\"\",'3 - Land Summary'!F23)","v":""},{"$f":"IF('3 - Land Summary'!G23=0,\"\",'3 - Land Summary'!G23)","v":""},{"$f":"IF('3 - Land Summary'!I23=0,\"\",'3 - Land Summary'!I23)","v":""},{"$f":"IF((SUMIF('4 - Species Breakdown'!$C$31:$C$1028,'3 - Land Summary'!C23,'4 - Species Breakdown'!$K$31:$K$1028))=0,\"\",SUMIF('4 - Species Breakdown'!$C$31:$C$1028,'3 - Land Summary'!C23,'4 - Species Breakdown'!$K$31:$K$1028))","v":""},{"$f":"_xlfn.TEXTJOIN(\"|\",TRUE,IF('4 - Species Breakdown'!$C$31:$C$1028=C20,'4 - Species Breakdown'!$D$31:$D$1028,\"\"))","v":""},{"$f":"_xlfn.TEXTJOIN(\"|\",TRUE,IF('4 - Species Breakdown'!$C$31:$C$1028=C20,'4 - Species Breakdown'!$F$31:$F$1028,\"\"))","v":""},{"$f":"_xlfn.TEXTJOIN(\"|\",TRUE,IF('4 - Species Breakdown'!$C$31:$C$1028=C20,'4 - Species Breakdown'!$G$31:$G$1028,\"\"))","v":""},{"$f":"IF((SUMIF('4 - Species Breakdown'!$AD$31:$AD$1028,'5 - Composition & ACs'!C20,'4 - Species Breakdown'!$AF$31:$AF$1028))=0,\"\",SUMIF('4 - Species Breakdown'!$AD$31:$AD$1028,'5 - Composition & ACs'!C20,'4 - Species Breakdown'!$AF$31:$AF$1028))","v":""},{"$f":"_xlfn.TEXTJOIN(\"|\",TRUE,IF('4 - Species Breakdown'!$AD$31:$AD$1028=C20,'4 - Species Breakdown'!$AE$31:$AE$1028,\"\"))","v":""}]
[null,{"$f":"IF('3 - Land Summary'!B24=0,\"\",'3 - Land Summary'!B24)","v":""},{"$f":"IF('3 - Land Summary'!C24=0,\" \",'3 - Land Summary'!C24)","v":" "},{"$f":"IF('3 - Land Summary'!D24=0,\"\",'3 - Land Summary'!D24)","v":""},{"$f":"IF('3 - Land Summary'!F24=0,\"\",'3 - Land Summary'!F24)","v":""},{"$f":"IF('3 - Land Summary'!G24=0,\"\",'3 - Land Summary'!G24)","v":""},{"$f":"IF('3 - Land Summary'!I24=0,\"\",'3 - Land Summary'!I24)","v":""},{"$f":"IF((SUMIF('4 - Species Breakdown'!$C$31:$C$1028,'3 - Land Summary'!C24,'4 - Species Breakdown'!$K$31:$K$1028))=0,\"\",SUMIF('4 - Species Breakdown'!$C$31:$C$1028,'3 - Land Summary'!C24,'4 - Species Breakdown'!$K$31:$K$1028))","v":""},{"$f":"_xlfn.TEXTJOIN(\"|\",TRUE,IF('4 - Species Breakdown'!$C$31:$C$1028=C21,'4 - Species Breakdown'!$D$31:$D$1028,\"\"))","v":""},{"$f":"_xlfn.TEXTJOIN(\"|\",TRUE,IF('4 - Species Breakdown'!$C$31:$C$1028=C21,'4 - Species Breakdown'!$F$31:$F$1028,\"\"))","v":""},{"$f":"_xlfn.TEXTJOIN(\"|\",TRUE,IF('4 - Species Breakdown'!$C$31:$C$1028=C21,'4 - Species Breakdown'!$G$31:$G$1028,\"\"))","v":""},{"$f":"IF((SUMIF('4 - Species Breakdown'!$AD$31:$AD$1028,'5 - Composition & ACs'!C21,'4 - Species Breakdown'!$AF$31:$AF$1028))=0,\"\",SUMIF('4 - Species Breakdown'!$AD$31:$AD$1028,'5 - Composition & ACs'!C21,'4 - Species Breakdown'!$AF$31:$AF$1028))","v":""},{"$f":"_xlfn.TEXTJOIN(\"|\",TRUE,IF('4 - Species Breakdown'!$AD$31:$AD$1028=C21,'4 - Species Breakdown'!$AE$31:$AE$1028,\"\"))","v":""}]
[null,{"$f":"IF('3 - Land Summary'!B25=0,\"\",'3 - Land Summary'!B25)","v":""},{"$f":"IF('3 - Land Summary'!C25=0,\" \",'3 - Land Summary'!C25)","v":" "},{"$f":"IF('3 - Land Summary'!D25=0,\"\",'3 - Land Summary'!D25)","v":""},{"$f":"IF('3 - Land Summary'!F25=0,\"\",'3 - Land Summary'!F25)","v":""},{"$f":"IF('3 - Land Summary'!G25=0,\"\",'3 - Land Summary'!G25)","v":""},{"$f":"IF('3 - Land Summary'!I25=0,\"\",'3 - Land Summary'!I25)","v":""},{"$f":"IF((SUMIF('4 - Species Breakdown'!$C$31:$C$1028,'3 - Land Summary'!C25,'4 - Species Breakdown'!$K$31:$K$1028))=0,\"\",SUMIF('4 - Species Breakdown'!$C$31:$C$1028,'3 - Land Summary'!C25,'4 - Species Breakdown'!$K$31:$K$1028))","v":""},{"$f":"_xlfn.TEXTJOIN(\"|\",TRUE,IF('4 - Species Breakdown'!$C$31:$C$1028=C22,'4 - Species Breakdown'!$D$31:$D$1028,\"\"))","v":""},{"$f":"_xlfn.TEXTJOIN(\"|\",TRUE,IF('4 - Species Breakdown'!$C$31:$C$1028=C22,'4 - Species Breakdown'!$F$31:$F$1028,\"\"))","v":""},{"$f":"_xlfn.TEXTJOIN(\"|\",TRUE,IF('4 - Species Breakdown'!$C$31:$C$1028=C22,'4 - Species Breakdown'!$G$31:$G$1028,\"\"))","v":""},{"$f":"IF((SUMIF('4 - Species Breakdown'!$AD$31:$AD$1028,'5 - Composition & ACs'!C22,'4 - Species Breakdown'!$AF$31:$AF$1028))=0,\"\",SUMIF('4 - Species Breakdown'!$AD$31:$AD$1028,'5 - Composition & ACs'!C22,'4 - Species Breakdown'!$AF$31:$AF$1028))","v":""},{"$f":"_xlfn.TEXTJOIN(\"|\",TRUE,IF('4 - Species Breakdown'!$AD$31:$AD$1028=C22,'4 - Species Breakdown'!$AE$31:$AE$1028,\"\"))","v":""}]
[null,{"$f":"IF('3 - Land Summary'!B26=0,\"\",'3 - Land Summary'!B26)","v":""},{"$f":"IF('3 - Land Summary'!C26=0,\" \",'3 - Land Summary'!C26)","v":" "},{"$f":"IF('3 - Land Summary'!D26=0,\"\",'3 - Land Summary'!D26)","v":""},{"$f":"IF('3 - Land Summary'!F26=0,\"\",'3 - Land Summary'!F26)","v":""},{"$f":"IF('3 - Land Summary'!G26=0,\"\",'3 - Land Summary'!G26)","v":""},{"$f":"IF('3 - Land Summary'!I26=0,\"\",'3 - Land Summary'!I26)","v":""},{"$f":"IF((SUMIF('4 - Species Breakdown'!$C$31:$C$1028,'3 - Land Summary'!C26,'4 - Species Breakdown'!$K$31:$K$1028))=0,\"\",SUMIF('4 - Species Breakdown'!$C$31:$C$1028,'3 - Land Summary'!C26,'4 - Species Breakdown'!$K$31:$K$1028))","v":""},{"$f":"_xlfn.TEXTJOIN(\"|\",TRUE,IF('4 - Species Breakdown'!$C$31:$C$1028=C23,'4 - Species Breakdown'!$D$31:$D$1028,\"\"))","v":""},{"$f":"_xlfn.TEXTJOIN(\"|\",TRUE,IF('4 - Species Breakdown'!$C$31:$C$1028=C23,'4 - Species Breakdown'!$F$31:$F$1028,\"\"))","v":""},{"$f":"_xlfn.TEXTJOIN(\"|\",TRUE,IF('4 - Species Breakdown'!$C$31:$C$1028=C23,'4 - Species Breakdown'!$G$31:$G$1028,\"\"))","v":""},{"$f":"IF((SUMIF('4 - Species Breakdown'!$AD$31:$AD$1028,'5 - Composition & ACs'!C23,'4 - Species Breakdown'!$AF$31:$AF$1028))=0,\"\",SUMIF('4 - Species Breakdown'!$AD$31:$AD$1028,'5 - Composition & ACs'!C23,'4 - Species Breakdown'!$AF$31:$AF$1028))","v":""},{"$f":"_xlfn.TEXTJOIN(\"|\",TRUE,IF('4 - Species Breakdown'!$AD$31:$AD$1028=C23,'4 - Species Breakdown'!$AE$31:$AE$1028,\"\"))","v":""}]
[null,{"$f":"IF('3 - Land Summary'!B27=0,\"\",'3 - Land Summary'!B27)","v":""},{"$f":"IF('3 - Land Summary'!C27=0,\" \",'3 - Land Summary'!C27)","v":" "},{"$f":"IF('3 - Land Summary'!D27=0,\"\",'3 - Land Summary'!D27)","v":""},{"$f":"IF('3 - Land Summary'!F27=0,\"\",'3 - Land Summary'!F27)","v":""},{"$f":"IF('3 - Land Summary'!G27=0,\"\",'3 - Land Summary'!G27)","v":""},{"$f":"IF('3 - Land Summary'!I27=0,\"\",'3 - Land Summary'!I27)","v":""},{"$f":"IF((SUMIF('4 - Species Breakdown'!$C$31:$C$1028,'3 - Land Summary'!C27,'4 - Species Breakdown'!$K$31:$K$1028))=0,\"\",SUMIF('4 - Species Breakdown'!$C$31:$C$1028,'3 - Land Summary'!C27,'4 - Species Breakdown'!$K$31:$K$1028))","v":""},{"$f":"_xlfn.TEXTJOIN(\"|\",TRUE,IF('4 - Species Breakdown'!$C$31:$C$1028=C24,'4 - Species Breakdown'!$D$31:$D$1028,\"\"))","v":""},{"$f":"_xlfn.TEXTJOIN(\"|\",TRUE,IF('4 - Species Breakdown'!$C$31:$C$1028=C24,'4 - Species Breakdown'!$F$31:$F$1028,\"\"))","v":""},{"$f":"_xlfn.TEXTJOIN(\"|\",TRUE,IF('4 - Species Breakdown'!$C$31:$C$1028=C24,'4 - Species Breakdown'!$G$31:$G$1028,\"\"))","v":""},{"$f":"IF((SUMIF('4 - Species Breakdown'!$AD$31:$AD$1028,'5 - Composition & ACs'!C24,'4 - Species Breakdown'!$AF$31:$AF$1028))=0,\"\",SUMIF('4 - Species Breakdown'!$AD$31:$AD$1028,'5 - Composition & ACs'!C24,'4 - Species Breakdown'!$AF$31:$AF$1028))","v":""},{"$f":"_xlfn.TEXTJOIN(\"|\",TRUE,IF('4 - Species Breakdown'!$AD$31:$AD$1028=C24,'4 - Species Breakdown'!$AE$31:$AE$1028,\"\"))","v":""}]
[null,{"$f":"IF('3 - Land Summary'!B28=0,\"\",'3 - Land Summary'!B28)","v":""},{"$f":"IF('3 - Land Summary'!C28=0,\" \",'3 - Land Summary'!C28)","v":" "},{"$f":"IF('3 - Land Summary'!D28=0,\"\",'3 - Land Summary'!D28)","v":""},{"$f":"IF('3 - Land Summary'!F28=0,\"\",'3 - Land Summary'!F28)","v":""},{"$f":"IF('3 - Land Summary'!G28=0,\"\",'3 - Land Summary'!G28)","v":""},{"$f":"IF('3 - Land Summary'!I28=0,\"\",'3 - Land Summary'!I28)","v":""},{"$f":"IF((SUMIF('4 - Species Breakdown'!$C$31:$C$1028,'3 - Land Summary'!C28,'4 - Species Breakdown'!$K$31:$K$1028))=0,\"\",SUMIF('4 - Species Breakdown'!$C$31:$C$1028,'3 - Land Summary'!C28,'4 - Species Breakdown'!$K$31:$K$1028))","v":""},{"$f":"_xlfn.TEXTJOIN(\"|\",TRUE,IF('4 - Species Breakdown'!$C$31:$C$1028=C25,'4 - Species Breakdown'!$D$31:$D$1028,\"\"))","v":""},{"$f":"_xlfn.TEXTJOIN(\"|\",TRUE,IF('4 - Species Breakdown'!$C$31:$C$1028=C25,'4 - Species Breakdown'!$F$31:$F$1028,\"\"))","v":""},{"$f":"_xlfn.TEXTJOIN(\"|\",TRUE,IF('4 - Species Breakdown'!$C$31:$C$1028=C25,'4 - Species Breakdown'!$G$31:$G$1028,\"\"))","v":""},{"$f":"IF((SUMIF('4 - Species Breakdown'!$AD$31:$AD$1028,'5 - Composition & ACs'!C25,'4 - Species Breakdown'!$AF$31:$AF$1028))=0,\"\",SUMIF('4 - Species Breakdown'!$AD$31:$AD$1028,'5 - Composition & ACs'!C25,'4 - Species Breakdown'!$AF$31:$AF$1028))","v":""},{"$f":"_xlfn.TEXTJOIN(\"|\",TRUE,IF('4 - Species Breakdown'!$AD$31:$AD$1028=C25,'4 - Species Breakdown'!$AE$31:$AE$1028,\"\"))","v":""}]
[null,{"$f":"IF('3 - Land Summary'!B29=0,\"\",'3 - Land Summary'!B29)","v":""},{"$f":"IF('3 - Land Summary'!C29=0,\" \",'3 - Land Summary'!C29)","v":" "},{"$f":"IF('3 - Land Summary'!D29=0,\"\",'3 - Land Summary'!D29)","v":""},{"$f":"IF('3 - Land Summary'!F29=0,\"\",'3 - Land Summary'!F29)","v":""},{"$f":"IF('3 - Land Summary'!G29=0,\"\",'3 - Land Summary'!G29)","v":""},{"$f":"IF('3 - Land Summary'!I29=0,\"\",'3 - Land Summary'!I29)","v":""},{"$f":"IF((SUMIF('4 - Species Breakdown'!$C$31:$C$1028,'3 - Land Summary'!C29,'4 - Species Breakdown'!$K$31:$K$1028))=0,\"\",SUMIF('4 - Species Breakdown'!$C$31:$C$1028,'3 - Land Summary'!C29,'4 - Species Breakdown'!$K$31:$K$1028))","v":""},{"$f":"_xlfn.TEXTJOIN(\"|\",TRUE,IF('4 - Species Breakdown'!$C$31:$C$1028=C26,'4 - Species Breakdown'!$D$31:$D$1028,\"\"))","v":""},{"$f":"_xlfn.TEXTJOIN(\"|\",TRUE,IF('4 - Species Breakdown'!$C$31:$C$1028=C26,'4 - Species Breakdown'!$F$31:$F$1028,\"\"))","v":""},{"$f":"_xlfn.TEXTJOIN(\"|\",TRUE,IF('4 - Species Breakdown'!$C$31:$C$1028=C26,'4 - Species Breakdown'!$G$31:$G$1028,\"\"))","v":""},{"$f":"IF((SUMIF('4 - Species Breakdown'!$AD$31:$AD$1028,'5 - Composition & ACs'!C26,'4 - Species Breakdown'!$AF$31:$AF$1028))=0,\"\",SUMIF('4 - Species Breakdown'!$AD$31:$AD$1028,'5 - Composition & ACs'!C26,'4 - Species Breakdown'!$AF$31:$AF$1028))","v":""},{"$f":"_xlfn.TEXTJOIN(\"|\",TRUE,IF('4 - Species Breakdown'!$AD$31:$AD$1028=C26,'4 - Species Breakdown'!$AE$31:$AE$1028,\"\"))","v":""}]
[null,{"$f":"IF('3 - Land Summary'!B30=0,\"\",'3 - Land Summary'!B30)","v":""},{"$f":"IF('3 - Land Summary'!C30=0,\" \",'3 - Land Summary'!C30)","v":" "},{"$f":"IF('3 - Land Summary'!D30=0,\"\",'3 - Land Summary'!D30)","v":""},{"$f":"IF('3 - Land Summary'!F30=0,\"\",'3 - Land Summary'!F30)","v":""},{"$f":"IF('3 - Land Summary'!G30=0,\"\",'3 - Land Summary'!G30)","v":""},{"$f":"IF('3 - Land Summary'!I30=0,\"\",'3 - Land Summary'!I30)","v":""},{"$f":"IF((SUMIF('4 - Species Breakdown'!$C$31:$C$1028,'3 - Land Summary'!C30,'4 - Species Breakdown'!$K$31:$K$1028))=0,\"\",SUMIF('4 - Species Breakdown'!$C$31:$C$1028,'3 - Land Summary'!C30,'4 - Species Breakdown'!$K$31:$K$1028))","v":""},{"$f":"_xlfn.TEXTJOIN(\"|\",TRUE,IF('4 - Species Breakdown'!$C$31:$C$1028=C27,'4 - Species Breakdown'!$D$31:$D$1028,\"\"))","v":""},{"$f":"_xlfn.TEXTJOIN(\"|\",TRUE,IF('4 - Species Breakdown'!$C$31:$C$1028=C27,'4 - Species Breakdown'!$F$31:$F$1028,\"\"))","v":""},{"$f":"_xlfn.TEXTJOIN(\"|\",TRUE,IF('4 - Species Breakdown'!$C$31:$C$1028=C27,'4 - Species Breakdown'!$G$31:$G$1028,\"\"))","v":""},{"$f":"IF((SUMIF('4 - Species Breakdown'!$AD$31:$AD$1028,'5 - Composition & ACs'!C27,'4 - Species Breakdown'!$AF$31:$AF$1028))=0,\"\",SUMIF('4 - Species Breakdown'!$AD$31:$AD$1028,'5 - Composition & ACs'!C27,'4 - Species Breakdown'!$AF$31:$AF$1028))","v":""},{"$f":"_xlfn.TEXTJOIN(\"|\",TRUE,IF('4 - Species Breakdown'!$AD$31:$AD$1028=C27,'4 - Species Breakdown'!$AE$31:$AE$1028,\"\"))","v":""}]
[null,{"$f":"IF('3 - Land Summary'!B31=0,\"\",'3 - Land Summary'!B31)","v":""},{"$f":"IF('3 - Land Summary'!C31=0,\" \",'3 - Land Summary'!C31)","v":" "},{"$f":"IF('3 - Land Summary'!D31=0,\"\",'3 - Land Summary'!D31)","v":""},{"$f":"IF('3 - Land Summary'!F31=0,\"\",'3 - Land Summary'!F31)","v":""},{"$f":"IF('3 - Land Summary'!G31=0,\"\",'3 - Land Summary'!G31)","v":""},{"$f":"IF('3 - Land Summary'!I31=0,\"\",'3 - Land Summary'!I31)","v":""},{"$f":"IF((SUMIF('4 - Species Breakdown'!$C$31:$C$1028,'3 - Land Summary'!C31,'4 - Species Breakdown'!$K$31:$K$1028))=0,\"\",SUMIF('4 - Species Breakdown'!$C$31:$C$1028,'3 - Land Summary'!C31,'4 - Species Breakdown'!$K$31:$K$1028))","v":""},{"$f":"_xlfn.TEXTJOIN(\"|\",TRUE,IF('4 - Species Breakdown'!$C$31:$C$1028=C28,'4 - Species Breakdown'!$D$31:$D$1028,\"\"))","v":""},{"$f":"_xlfn.TEXTJOIN(\"|\",TRUE,IF('4 - Species Breakdown'!$C$31:$C$1028=C28,'4 - Species Breakdown'!$F$31:$F$1028,\"\"))","v":""},{"$f":"_xlfn.TEXTJOIN(\"|\",TRUE,IF('4 - Species Breakdown'!$C$31:$C$1028=C28,'4 - Species Breakdown'!$G$31:$G$1028,\"\"))","v":""},{"$f":"IF((SUMIF('4 - Species Breakdown'!$AD$31:$AD$1028,'5 - Composition & ACs'!C28,'4 - Species Breakdown'!$AF$31:$AF$1028))=0,\"\",SUMIF('4 - Species Breakdown'!$AD$31:$AD$1028,'5 - Composition & ACs'!C28,'4 - Species Breakdown'!$AF$31:$AF$1028))","v":""},{"$f":"_xlfn.TEXTJOIN(\"|\",TRUE,IF('4 - Species Breakdown'!$AD$31:$AD$1028=C28,'4 - Species Breakdown'!$AE$31:$AE$1028,\"\"))","v":""}]
[null,{"$f":"IF('3 - Land Summary'!B32=0,\"\",'3 - Land Summary'!B32)","v":""},{"$f":"IF('3 - Land Summary'!C32=0,\" \",'3 - Land Summary'!C32)","v":" "},{"$f":"IF('3 - Land Summary'!D32=0,\"\",'3 - Land Summary'!D32)","v":""},{"$f":"IF('3 - Land Summary'!F32=0,\"\",'3 - Land Summary'!F32)","v":""},{"$f":"IF('3 - Land Summary'!G32=0,\"\",'3 - Land Summary'!G32)","v":""},{"$f":"IF('3 - Land Summary'!I32=0,\"\",'3 - Land Summary'!I32)","v":""},{"$f":"IF((SUMIF('4 - Species Breakdown'!$C$31:$C$1028,'3 - Land Summary'!C32,'4 - Species Breakdown'!$K$31:$K$1028))=0,\"\",SUMIF('4 - Species Breakdown'!$C$31:$C$1028,'3 - Land Summary'!C32,'4 - Species Breakdown'!$K$31:$K$1028))","v":""},{"$f":"_xlfn.TEXTJOIN(\"|\",TRUE,IF('4 - Species Breakdown'!$C$31:$C$1028=C29,'4 - Species Breakdown'!$D$31:$D$1028,\"\"))","v":""},{"$f":"_xlfn.TEXTJOIN(\"|\",TRUE,IF('4 - Species Breakdown'!$C$31:$C$1028=C29,'4 - Species Breakdown'!$F$31:$F$1028,\"\"))","v":""},{"$f":"_xlfn.TEXTJOIN(\"|\",TRUE,IF('4 - Species Breakdown'!$C$31:$C$1028=C29,'4 - Species Breakdown'!$G$31:$G$1028,\"\"))","v":""},{"$f":"IF((SUMIF('4 - Species Breakdown'!$AD$31:$AD$1028,'5 - Composition & ACs'!C29,'4 - Species Breakdown'!$AF$31:$AF$1028))=0,\"\",SUMIF('4 - Species Breakdown'!$AD$31:$AD$1028,'5 - Composition & ACs'!C29,'4 - Species Breakdown'!$AF$31:$AF$1028))","v":""},{"$f":"_xlfn.TEXTJOIN(\"|\",TRUE,IF('4 - Species Breakdown'!$AD$31:$AD$1028=C29,'4 - Species Breakdown'!$AE$31:$AE$1028,\"\"))","v":""}]
[null,{"$f":"IF('3 - Land Summary'!B33=0,\"\",'3 - Land Summary'!B33)","v":""},{"$f":"IF('3 - Land Summary'!C33=0,\" \",'3 - Land Summary'!C33)","v":" "},{"$f":"IF('3 - Land Summary'!D33=0,\"\",'3 - Land Summary'!D33)","v":""},{"$f":"IF('3 - Land Summary'!F33=0,\"\",'3 - Land Summary'!F33)","v":""},{"$f":"IF('3 - Land Summary'!G33=0,\"\",'3 - Land Summary'!G33)","v":""},{"$f":"IF('3 - Land Summary'!I33=0,\"\",'3 - Land Summary'!I33)","v":""},{"$f":"IF((SUMIF('4 - Species Breakdown'!$C$31:$C$1028,'3 - Land Summary'!C33,'4 - Species Breakdown'!$K$31:$K$1028))=0,\"\",SUMIF('4 - Species Breakdown'!$C$31:$C$1028,'3 - Land Summary'!C33,'4 - Species Breakdown'!$K$31:$K$1028))","v":""},{"$f":"_xlfn.TEXTJOIN(\"|\",TRUE,IF('4 - Species Breakdown'!$C$31:$C$1028=C30,'4 - Species Breakdown'!$D$31:$D$1028,\"\"))","v":""},{"$f":"_xlfn.TEXTJOIN(\"|\",TRUE,IF('4 - Species Breakdown'!$C$31:$C$1028=C30,'4 - Species Breakdown'!$F$31:$F$1028,\"\"))","v":""},{"$f":"_xlfn.TEXTJOIN(\"|\",TRUE,IF('4 - Species Breakdown'!$C$31:$C$1028=C30,'4 - Species Breakdown'!$G$31:$G$1028,\"\"))","v":""},{"$f":"IF((SUMIF('4 - Species Breakdown'!$AD$31:$AD$1028,'5 - Composition & ACs'!C30,'4 - Species Breakdown'!$AF$31:$AF$1028))=0,\"\",SUMIF('4 - Species Breakdown'!$AD$31:$AD$1028,'5 - Composition & ACs'!C30,'4 - Species Breakdown'!$AF$31:$AF$1028))","v":""},{"$f":"_xlfn.TEXTJOIN(\"|\",TRUE,IF('4 - Species Breakdown'!$AD$31:$AD$1028=C30,'4 - Species Breakdown'!$AE$31:$AE$1028,\"\"))","v":""}]
[null,{"$f":"IF('3 - Land Summary'!B34=0,\"\",'3 - Land Summary'!B34)","v":""},{"$f":"IF('3 - Land Summary'!C34=0,\" \",'3 - Land Summary'!C34)","v":" "},{"$f":"IF('3 - Land Summary'!D34=0,\"\",'3 - Land Summary'!D34)","v":""},{"$f":"IF('3 - Land Summary'!F34=0,\"\",'3 - Land Summary'!F34)","v":""},{"$f":"IF('3 - Land Summary'!G34=0,\"\",'3 - Land Summary'!G34)","v":""},{"$f":"IF('3 - Land Summary'!I34=0,\"\",'3 - Land Summary'!I34)","v":""},{"$f":"IF((SUMIF('4 - Species Breakdown'!$C$31:$C$1028,'3 - Land Summary'!C34,'4 - Species Breakdown'!$K$31:$K$1028))=0,\"\",SUMIF('4 - Species Breakdown'!$C$31:$C$1028,'3 - Land Summary'!C34,'4 - Species Breakdown'!$K$31:$K$1028))","v":""},{"$f":"_xlfn.TEXTJOIN(\"|\",TRUE,IF('4 - Species Breakdown'!$C$31:$C$1028=C31,'4 - Species Breakdown'!$D$31:$D$1028,\"\"))","v":""},{"$f":"_xlfn.TEXTJOIN(\"|\",TRUE,IF('4 - Species Breakdown'!$C$31:$C$1028=C31,'4 - Species Breakdown'!$F$31:$F$1028,\"\"))","v":""},{"$f":"_xlfn.TEXTJOIN(\"|\",TRUE,IF('4 - Species Breakdown'!$C$31:$C$1028=C31,'4 - Species Breakdown'!$G$31:$G$1028,\"\"))","v":""},{"$f":"IF((SUMIF('4 - Species Breakdown'!$AD$31:$AD$1028,'5 - Composition & ACs'!C31,'4 - Species Breakdown'!$AF$31:$AF$1028))=0,\"\",SUMIF('4 - Species Breakdown'!$AD$31:$AD$1028,'5 - Composition & ACs'!C31,'4 - Species Breakdown'!$AF$31:$AF$1028))","v":""},{"$f":"_xlfn.TEXTJOIN(\"|\",TRUE,IF('4 - Species Breakdown'!$AD$31:$AD$1028=C31,'4 - Species Breakdown'!$AE$31:$AE$1028,\"\"))","v":""}]
[null,{"$f":"IF('3 - Land Summary'!B35=0,\"\",'3 - Land Summary'!B35)","v":""},{"$f":"IF('3 - Land Summary'!C35=0,\" \",'3 - Land Summary'!C35)","v":" "},{"$f":"IF('3 - Land Summary'!D35=0,\"\",'3 - Land Summary'!D35)","v":""},{"$f":"IF('3 - Land Summary'!F35=0,\"\",'3 - Land Summary'!F35)","v":""},{"$f":"IF('3 - Land Summary'!G35=0,\"\",'3 - Land Summary'!G35)","v":""},{"$f":"IF('3 - Land Summary'!I35=0,\"\",'3 - Land Summary'!I35)","v":""},{"$f":"IF((SUMIF('4 - Species Breakdown'!$C$31:$C$1028,'3 - Land Summary'!C35,'4 - Species Breakdown'!$K$31:$K$1028))=0,\"\",SUMIF('4 - Species Breakdown'!$C$31:$C$1028,'3 - Land Summary'!C35,'4 - Species Breakdown'!$K$31:$K$1028))","v":""},{"$f":"_xlfn.TEXTJOIN(\"|\",TRUE,IF('4 - Species Breakdown'!$C$31:$C$1028=C32,'4 - Species Breakdown'!$D$31:$D$1028,\"\"))","v":""},{"$f":"_xlfn.TEXTJOIN(\"|\",TRUE,IF('4 - Species Breakdown'!$C$31:$C$1028=C32,'4 - Species Breakdown'!$F$31:$F$1028,\"\"))","v":""},{"$f":"_xlfn.TEXTJOIN(\"|\",TRUE,IF('4 - Species Breakdown'!$C$31:$C$1028=C32,'4 - Species Breakdown'!$G$31:$G$1028,\"\"))","v":""},{"$f":"IF((SUMIF('4 - Species Breakdown'!$AD$31:$AD$1028,'5 - Composition & ACs'!C32,'4 - Species Breakdown'!$AF$31:$AF$1028))=0,\"\",SUMIF('4 - Species Breakdown'!$AD$31:$AD$1028,'5 - Composition & ACs'!C32,'4 - Species Breakdown'!$AF$31:$AF$1028))","v":""},{"$f":"_xlfn.TEXTJOIN(\"|\",TRUE,IF('4 - Species Breakdown'!$AD$31:$AD$1028=C32,'4 - Species Breakdown'!$AE$31:$AE$1028,\"\"))","v":""}]
[null,{"$f":"IF('3 - Land Summary'!B36=0,\"\",'3 - Land Summary'!B36)","v":""},{"$f":"IF('3 - Land Summary'!C36=0,\" \",'3 - Land Summary'!C36)","v":" "},{"$f":"IF('3 - Land Summary'!D36=0,\"\",'3 - Land Summary'!D36)","v":""},{"$f":"IF('3 - Land Summary'!F36=0,\"\",'3 - Land Summary'!F36)","v":""},{"$f":"IF('3 - Land Summary'!G36=0,\"\",'3 - Land Summary'!G36)","v":""},{"$f":"IF('3 - Land Summary'!I36=0,\"\",'3 - Land Summary'!I36)","v":""},{"$f":"IF((SUMIF('4 - Species Breakdown'!$C$31:$C$1028,'3 - Land Summary'!C36,'4 - Species Breakdown'!$K$31:$K$1028))=0,\"\",SUMIF('4 - Species Breakdown'!$C$31:$C$1028,'3 - Land Summary'!C36,'4 - Species Breakdown'!$K$31:$K$1028))","v":""},{"$f":"_xlfn.TEXTJOIN(\"|\",TRUE,IF('4 - Species Breakdown'!$C$31:$C$1028=C33,'4 - Species Breakdown'!$D$31:$D$1028,\"\"))","v":""},{"$f":"_xlfn.TEXTJOIN(\"|\",TRUE,IF('4 - Species Breakdown'!$C$31:$C$1028=C33,'4 - Species Breakdown'!$F$31:$F$1028,\"\"))","v":""},{"$f":"_xlfn.TEXTJOIN(\"|\",TRUE,IF('4 - Species Breakdown'!$C$31:$C$1028=C33,'4 - Species Breakdown'!$G$31:$G$1028,\"\"))","v":""},{"$f":"IF((SUMIF('4 - Species Breakdown'!$AD$31:$AD$1028,'5 - Composition & ACs'!C33,'4 - Species Breakdown'!$AF$31:$AF$1028))=0,\"\",SUMIF('4 - Species Breakdown'!$AD$31:$AD$1028,'5 - Composition & ACs'!C33,'4 - Species Breakdown'!$AF$31:$AF$1028))","v":""},{"$f":"_xlfn.TEXTJOIN(\"|\",TRUE,IF('4 - Species Breakdown'!$AD$31:$AD$1028=C33,'4 - Species Breakdown'!$AE$31:$AE$1028,\"\"))","v":""}]
[null,{"$f":"IF('3 - Land Summary'!B37=0,\"\",'3 - Land Summary'!B37)","v":""},{"$f":"IF('3 - Land Summary'!C37=0,\" \",'3 - Land Summary'!C37)","v":" "},{"$f":"IF('3 - Land Summary'!D37=0,\"\",'3 - Land Summary'!D37)","v":""},{"$f":"IF('3 - Land Summary'!F37=0,\"\",'3 - Land Summary'!F37)","v":""},{"$f":"IF('3 - Land Summary'!G37=0,\"\",'3 - Land Summary'!G37)","v":""},{"$f":"IF('3 - Land Summary'!I37=0,\"\",'3 - Land Summary'!I37)","v":""},{"$f":"IF((SUMIF('4 - Species Breakdown'!$C$31:$C$1028,'3 - Land Summary'!C37,'4 - Species Breakdown'!$K$31:$K$1028))=0,\"\",SUMIF('4 - Species Breakdown'!$C$31:$C$1028,'3 - Land Summary'!C37,'4 - Species Breakdown'!$K$31:$K$1028))","v":""},{"$f":"_xlfn.TEXTJOIN(\"|\",TRUE,IF('4 - Species Breakdown'!$C$31:$C$1028=C34,'4 - Species Breakdown'!$D$31:$D$1028,\"\"))","v":""},{"$f":"_xlfn.TEXTJOIN(\"|\",TRUE,IF('4 - Species Breakdown'!$C$31:$C$1028=C34,'4 - Species Breakdown'!$F$31:$F$1028,\"\"))","v":""},{"$f":"_xlfn.TEXTJOIN(\"|\",TRUE,IF('4 - Species Breakdown'!$C$31:$C$1028=C34,'4 - Species Breakdown'!$G$31:$G$1028,\"\"))","v":""},{"$f":"IF((SUMIF('4 - Species Breakdown'!$AD$31:$AD$1028,'5 - Composition & ACs'!C34,'4 - Species Breakdown'!$AF$31:$AF$1028))=0,\"\",SUMIF('4 - Species Breakdown'!$AD$31:$AD$1028,'5 - Composition & ACs'!C34,'4 - Species Breakdown'!$AF$31:$AF$1028))","v":""},{"$f":"_xlfn.TEXTJOIN(\"|\",TRUE,IF('4 - Species Breakdown'!$AD$31:$AD$1028=C34,'4 - Species Breakdown'!$AE$31:$AE$1028,\"\"))","v":""}]
[null,{"$f":"IF('3 - Land Summary'!B38=0,\"\",'3 - Land Summary'!B38)","v":""},{"$f":"IF('3 - Land Summary'!C38=0,\" \",'3 - Land Summary'!C38)","v":" "},{"$f":"IF('3 - Land Summary'!D38=0,\"\",'3 - Land Summary'!D38)","v":""},{"$f":"IF('3 - Land Summary'!F38=0,\"\",'3 - Land Summary'!F38)","v":""},{"$f":"IF('3 - Land Summary'!G38=0,\"\",'3 - Land Summary'!G38)","v":""},{"$f":"IF('3 - Land Summary'!I38=0,\"\",'3 - Land Summary'!I38)","v":""},{"$f":"IF((SUMIF('4 - Species Breakdown'!$C$31:$C$1028,'3 - Land Summary'!C38,'4 - Species Breakdown'!$K$31:$K$1028))=0,\"\",SUMIF('4 - Species Breakdown'!$C$31:$C$1028,'3 - Land Summary'!C38,'4 - Species Breakdown'!$K$31:$K$1028))","v":""},{"$f":"_xlfn.TEXTJOIN(\"|\",TRUE,IF('4 - Species Breakdown'!$C$31:$C$1028=C35,'4 - Species Breakdown'!$D$31:$D$1028,\"\"))","v":""},{"$f":"_xlfn.TEXTJOIN(\"|\",TRUE,IF('4 - Species Breakdown'!$C$31:$C$1028=C35,'4 - Species Breakdown'!$F$31:$F$1028,\"\"))","v":""},{"$f":"_xlfn.TEXTJOIN(\"|\",TRUE,IF('4 - Species Breakdown'!$C$31:$C$1028=C35,'4 - Species Breakdown'!$G$31:$G$1028,\"\"))","v":""},{"$f":"IF((SUMIF('4 - Species Breakdown'!$AD$31:$AD$1028,'5 - Composition & ACs'!C35,'4 - Species Breakdown'!$AF$31:$AF$1028))=0,\"\",SUMIF('4 - Species Breakdown'!$AD$31:$AD$1028,'5 - Composition & ACs'!C35,'4 - Species Breakdown'!$AF$31:$AF$1028))","v":""},{"$f":"_xlfn.TEXTJOIN(\"|\",TRUE,IF('4 - Species Breakdown'!$AD$31:$AD$1028=C35,'4 - Species Breakdown'!$AE$31:$AE$1028,\"\"))","v":""}]
[null,{"$f":"IF('3 - Land Summary'!B39=0,\"\",'3 - Land Summary'!B39)","v":""},{"$f":"IF('3 - Land Summary'!C39=0,\" \",'3 - Land Summary'!C39)","v":" "},{"$f":"IF('3 - Land Summary'!D39=0,\"\",'3 - Land Summary'!D39)","v":""},{"$f":"IF('3 - Land Summary'!F39=0,\"\",'3 - Land Summary'!F39)","v":""},{"$f":"IF('3 - Land Summary'!G39=0,\"\",'3 - Land Summary'!G39)","v":""},{"$f":"IF('3 - Land Summary'!I39=0,\"\",'3 - Land Summary'!I39)","v":""},{"$f":"IF((SUMIF('4 - Species Breakdown'!$C$31:$C$1028,'3 - Land Summary'!C39,'4 - Species Breakdown'!$K$31:$K$1028))=0,\"\",SUMIF('4 - Species Breakdown'!$C$31:$C$1028,'3 - Land Summary'!C39,'4 - Species Breakdown'!$K$31:$K$1028))","v":""},{"$f":"_xlfn.TEXTJOIN(\"|\",TRUE,IF('4 - Species Breakdown'!$C$31:$C$1028=C36,'4 - Species Breakdown'!$D$31:$D$1028,\"\"))","v":""},{"$f":"_xlfn.TEXTJOIN(\"|\",TRUE,IF('4 - Species Breakdown'!$C$31:$C$1028=C36,'4 - Species Breakdown'!$F$31:$F$1028,\"\"))","v":""},{"$f":"_xlfn.TEXTJOIN(\"|\",TRUE,IF('4 - Species Breakdown'!$C$31:$C$1028=C36,'4 - Species Breakdown'!$G$31:$G$1028,\"\"))","v":""},{"$f":"IF((SUMIF('4 - Species Breakdown'!$AD$31:$AD$1028,'5 - Composition & ACs'!C36,'4 - Species Breakdown'!$AF$31:$AF$1028))=0,\"\",SUMIF('4 - Species Breakdown'!$AD$31:$AD$1028,'5 - Composition & ACs'!C36,'4 - Species Breakdown'!$AF$31:$AF$1028))","v":""},{"$f":"_xlfn.TEXTJOIN(\"|\",TRUE,IF('4 - Species Breakdown'!$AD$31:$AD$1028=C36,'4 - Species Breakdown'!$AE$31:$AE$1028,\"\"))","v":""}]
[null,{"$f":"IF('3 - Land Summary'!B40=0,\"\",'3 - Land Summary'!B40)","v":""},{"$f":"IF('3 - Land Summary'!C40=0,\" \",'3 - Land Summary'!C40)","v":" "},{"$f":"IF('3 - Land Summary'!D40=0,\"\",'3 - Land Summary'!D40)","v":""},{"$f":"IF('3 - Land Summary'!F40=0,\"\",'3 - Land Summary'!F40)","v":""},{"$f":"IF('3 - Land Summary'!G40=0,\"\",'3 - Land Summary'!G40)","v":""},{"$f":"IF('3 - Land Summary'!I40=0,\"\",'3 - Land Summary'!I40)","v":""},{"$f":"IF((SUMIF('4 - Species Breakdown'!$C$31:$C$1028,'3 - Land Summary'!C40,'4 - Species Breakdown'!$K$31:$K$1028))=0,\"\",SUMIF('4 - Species Breakdown'!$C$31:$C$1028,'3 - Land Summary'!C40,'4 - Species Breakdown'!$K$31:$K$1028))","v":""},{"$f":"_xlfn.TEXTJOIN(\"|\",TRUE,IF('4 - Species Breakdown'!$C$31:$C$1028=C37,'4 - Species Breakdown'!$D$31:$D$1028,\"\"))","v":""},{"$f":"_xlfn.TEXTJOIN(\"|\",TRUE,IF('4 - Species Breakdown'!$C$31:$C$1028=C37,'4 - Species Breakdown'!$F$31:$F$1028,\"\"))","v":""},{"$f":"_xlfn.TEXTJOIN(\"|\",TRUE,IF('4 - Species Breakdown'!$C$31:$C$1028=C37,'4 - Species Breakdown'!$G$31:$G$1028,\"\"))","v":""},{"$f":"IF((SUMIF('4 - Species Breakdown'!$AD$31:$AD$1028,'5 - Composition & ACs'!C37,'4 - Species Breakdown'!$AF$31:$AF$1028))=0,\"\",SUMIF('4 - Species Breakdown'!$AD$31:$AD$1028,'5 - Composition & ACs'!C37,'4 - Species Breakdown'!$AF$31:$AF$1028))","v":""},{"$f":"_xlfn.TEXTJOIN(\"|\",TRUE,IF('4 - Species Breakdown'!$AD$31:$AD$1028=C37,'4 - Species Breakdown'!$AE$31:$AE$1028,\"\"))","v":""}]
[null,{"$f":"IF('3 - Land Summary'!B41=0,\"\",'3 - Land Summary'!B41)","v":""},{"$f":"IF('3 - Land Summary'!C41=0,\" \",'3 - Land Summary'!C41)","v":" "},{"$f":"IF('3 - Land Summary'!D41=0,\"\",'3 - Land Summary'!D41)","v":""},{"$f":"IF('3 - Land Summary'!F41=0,\"\",'3 - Land Summary'!F41)","v":""},{"$f":"IF('3 - Land Summary'!G41=0,\"\",'3 - Land Summary'!G41)","v":""},{"$f":"IF('3 - Land Summary'!I41=0,\"\",'3 - Land Summary'!I41)","v":""},{"$f":"IF((SUMIF('4 - Species Breakdown'!$C$31:$C$1028,'3 - Land Summary'!C41,'4 - Species Breakdown'!$K$31:$K$1028))=0,\"\",SUMIF('4 - Species Breakdown'!$C$31:$C$1028,'3 - Land Summary'!C41,'4 - Species Breakdown'!$K$31:$K$1028))","v":""},{"$f":"_xlfn.TEXTJOIN(\"|\",TRUE,IF('4 - Species Breakdown'!$C$31:$C$1028=C38,'4 - Species Breakdown'!$D$31:$D$1028,\"\"))","v":""},{"$f":"_xlfn.TEXTJOIN(\"|\",TRUE,IF('4 - Species Breakdown'!$C$31:$C$1028=C38,'4 - Species Breakdown'!$F$31:$F$1028,\"\"))","v":""},{"$f":"_xlfn.TEXTJOIN(\"|\",TRUE,IF('4 - Species Breakdown'!$C$31:$C$1028=C38,'4 - Species Breakdown'!$G$31:$G$1028,\"\"))","v":""},{"$f":"IF((SUMIF('4 - Species Breakdown'!$AD$31:$AD$1028,'5 - Composition & ACs'!C38,'4 - Species Breakdown'!$AF$31:$AF$1028))=0,\"\",SUMIF('4 - Species Breakdown'!$AD$31:$AD$1028,'5 - Composition & ACs'!C38,'4 - Species Breakdown'!$AF$31:$AF$1028))","v":""},{"$f":"_xlfn.TEXTJOIN(\"|\",TRUE,IF('4 - Species Breakdown'!$AD$31:$AD$1028=C38,'4 - Species Breakdown'!$AE$31:$AE$1028,\"\"))","v":""}]
[null,{"$f":"IF('3 - Land Summary'!B42=0,\"\",'3 - Land Summary'!B42)","v":""},{"$f":"IF('3 - Land Summary'!C42=0,\" \",'3 - Land Summary'!C42)","v":" "},{"$f":"IF('3 - Land Summary'!D42=0,\"\",'3 - Land Summary'!D42)","v":""},{"$f":"IF('3 - Land Summary'!F42=0,\"\",'3 - Land Summary'!F42)","v":""},{"$f":"IF('3 - Land Summary'!G42=0,\"\",'3 - Land Summary'!G42)","v":""},{"$f":"IF('3 - Land Summary'!I42=0,\"\",'3 - Land Summary'!I42)","v":""},{"$f":"IF((SUMIF('4 - Species Breakdown'!$C$31:$C$1028,'3 - Land Summary'!C42,'4 - Species Breakdown'!$K$31:$K$1028))=0,\"\",SUMIF('4 - Species Breakdown'!$C$31:$C$1028,'3 - Land Summary'!C42,'4 - Species Breakdown'!$K$31:$K$1028))","v":""},{"$f":"_xlfn.TEXTJOIN(\"|\",TRUE,IF('4 - Species Breakdown'!$C$31:$C$1028=C39,'4 - Species Breakdown'!$D$31:$D$1028,\"\"))","v":""},{"$f":"_xlfn.TEXTJOIN(\"|\",TRUE,IF('4 - Species Breakdown'!$C$31:$C$1028=C39,'4 - Species Breakdown'!$F$31:$F$1028,\"\"))","v":""},{"$f":"_xlfn.TEXTJOIN(\"|\",TRUE,IF('4 - Species Breakdown'!$C$31:$C$1028=C39,'4 - Species Breakdown'!$G$31:$G$1028,\"\"))","v":""},{"$f":"IF((SUMIF('4 - Species Breakdown'!$AD$31:$AD$1028,'5 - Composition & ACs'!C39,'4 - Species Breakdown'!$AF$31:$AF$1028))=0,\"\",SUMIF('4 - Species Breakdown'!$AD$31:$AD$1028,'5 - Composition & ACs'!C39,'4 - Species Breakdown'!$AF$31:$AF$1028))","v":""},{"$f":"_xlfn.TEXTJOIN(\"|\",TRUE,IF('4 - Species Breakdown'!$AD$31:$AD$1028=C39,'4 - Species Breakdown'!$AE$31:$AE$1028,\"\"))","v":""}]
[null,{"$f":"IF('3 - Land Summary'!B43=0,\"\",'3 - Land Summary'!B43)","v":""},{"$f":"IF('3 - Land Summary'!C43=0,\" \",'3 - Land Summary'!C43)","v":" "},{"$f":"IF('3 - Land Summary'!D43=0,\"\",'3 - Land Summary'!D43)","v":""},{"$f":"IF('3 - Land Summary'!F43=0,\"\",'3 - Land Summary'!F43)","v":""},{"$f":"IF('3 - Land Summary'!G43=0,\"\",'3 - Land Summary'!G43)","v":""},{"$f":"IF('3 - Land Summary'!I43=0,\"\",'3 - Land Summary'!I43)","v":""},{"$f":"IF((SUMIF('4 - Species Breakdown'!$C$31:$C$1028,'3 - Land Summary'!C43,'4 - Species Breakdown'!$K$31:$K$1028))=0,\"\",SUMIF('4 - Species Breakdown'!$C$31:$C$1028,'3 - Land Summary'!C43,'4 - Species Breakdown'!$K$31:$K$1028))","v":""},{"$f":"_xlfn.TEXTJOIN(\"|\",TRUE,IF('4 - Species Breakdown'!$C$31:$C$1028=C40,'4 - Species Breakdown'!$D$31:$D$1028,\"\"))","v":""},{"$f":"_xlfn.TEXTJOIN(\"|\",TRUE,IF('4 - Species Breakdown'!$C$31:$C$1028=C40,'4 - Species Breakdown'!$F$31:$F$1028,\"\"))","v":""},{"$f":"_xlfn.TEXTJOIN(\"|\",TRUE,IF('4 - Species Breakdown'!$C$31:$C$1028=C40,'4 - Species Breakdown'!$G$31:$G$1028,\"\"))","v":""},{"$f":"IF((SUMIF('4 - Species Breakdown'!$AD$31:$AD$1028,'5 - Composition & ACs'!C40,'4 - Species Breakdown'!$AF$31:$AF$1028))=0,\"\",SUMIF('4 - Species Breakdown'!$AD$31:$AD$1028,'5 - Composition & ACs'!C40,'4 - Species Breakdown'!$AF$31:$AF$1028))","v":""},{"$f":"_xlfn.TEXTJOIN(\"|\",TRUE,IF('4 - Species Breakdown'!$AD$31:$AD$1028=C40,'4 - Species Breakdown'!$AE$31:$AE$1028,\"\"))","v":""}]
[null,{"$f":"IF('3 - Land Summary'!B44=0,\"\",'3 - Land Summary'!B44)","v":""},{"$f":"IF('3 - Land Summary'!C44=0,\" \",'3 - Land Summary'!C44)","v":" "},{"$f":"IF('3 - Land Summary'!D44=0,\"\",'3 - Land Summary'!D44)","v":""},{"$f":"IF('3 - Land Summary'!F44=0,\"\",'3 - Land Summary'!F44)","v":""},{"$f":"IF('3 - Land Summary'!G44=0,\"\",'3 - Land Summary'!G44)","v":""},{"$f":"IF('3 - Land Summary'!I44=0,\"\",'3 - Land Summary'!I44)","v":""},{"$f":"IF((SUMIF('4 - Species Breakdown'!$C$31:$C$1028,'3 - Land Summary'!C44,'4 - Species Breakdown'!$K$31:$K$1028))=0,\"\",SUMIF('4 - Species Breakdown'!$C$31:$C$1028,'3 - Land Summary'!C44,'4 - Species Breakdown'!$K$31:$K$1028))","v":""},{"$f":"_xlfn.TEXTJOIN(\"|\",TRUE,IF('4 - Species Breakdown'!$C$31:$C$1028=C41,'4 - Species Breakdown'!$D$31:$D$1028,\"\"))","v":""},{"$f":"_xlfn.TEXTJOIN(\"|\",TRUE,IF('4 - Species Breakdown'!$C$31:$C$1028=C41,'4 - Species Breakdown'!$F$31:$F$1028,\"\"))","v":""},{"$f":"_xlfn.TEXTJOIN(\"|\",TRUE,IF('4 - Species Breakdown'!$C$31:$C$1028=C41,'4 - Species Breakdown'!$G$31:$G$1028,\"\"))","v":""},{"$f":"IF((SUMIF('4 - Species Breakdown'!$AD$31:$AD$1028,'5 - Composition & ACs'!C41,'4 - Species Breakdown'!$AF$31:$AF$1028))=0,\"\",SUMIF('4 - Species Breakdown'!$AD$31:$AD$1028,'5 - Composition & ACs'!C41,'4 - Species Breakdown'!$AF$31:$AF$1028))","v":""},{"$f":"_xlfn.TEXTJOIN(\"|\",TRUE,IF('4 - Species Breakdown'!$AD$31:$AD$1028=C41,'4 - Species Breakdown'!$AE$31:$AE$1028,\"\"))","v":""}]
[null,{"$f":"IF('3 - Land Summary'!B45=0,\"\",'3 - Land Summary'!B45)","v":""},{"$f":"IF('3 - Land Summary'!C45=0,\" \",'3 - Land Summary'!C45)","v":" "},{"$f":"IF('3 - Land Summary'!D45=0,\"\",'3 - Land Summary'!D45)","v":""},{"$f":"IF('3 - Land Summary'!F45=0,\"\",'3 - Land Summary'!F45)","v":""},{"$f":"IF('3 - Land Summary'!G45=0,\"\",'3 - Land Summary'!G45)","v":""},{"$f":"IF('3 - Land Summary'!I45=0,\"\",'3 - Land Summary'!I45)","v":""},{"$f":"IF((SUMIF('4 - Species Breakdown'!$C$31:$C$1028,'3 - Land Summary'!C45,'4 - Species Breakdown'!$K$31:$K$1028))=0,\"\",SUMIF('4 - Species Breakdown'!$C$31:$C$1028,'3 - Land Summary'!C45,'4 - Species Breakdown'!$K$31:$K$1028))","v":""},{"$f":"_xlfn.TEXTJOIN(\"|\",TRUE,IF('4 - Species Breakdown'!$C$31:$C$1028=C42,'4 - Species Breakdown'!$D$31:$D$1028,\"\"))","v":""},{"$f":"_xlfn.TEXTJOIN(\"|\",TRUE,IF('4 - Species Breakdown'!$C$31:$C$1028=C42,'4 - Species Breakdown'!$F$31:$F$1028,\"\"))","v":""},{"$f":"_xlfn.TEXTJOIN(\"|\",TRUE,IF('4 - Species Breakdown'!$C$31:$C$1028=C42,'4 - Species Breakdown'!$G$31:$G$1028,\"\"))","v":""},{"$f":"IF((SUMIF('4 - Species Breakdown'!$AD$31:$AD$1028,'5 - Composition & ACs'!C42,'4 - Species Breakdown'!$AF$31:$AF$1028))=0,\"\",SUMIF('4 - Species Breakdown'!$AD$31:$AD$1028,'5 - Composition & ACs'!C42,'4 - Species Breakdown'!$AF$31:$AF$1028))","v":""},{"$f":"_xlfn.TEXTJOIN(\"|\",TRUE,IF('4 - Species Breakdown'!$AD$31:$AD$1028=C42,'4 - Species Breakdown'!$AE$31:$AE$1028,\"\"))","v":""}]
[null,{"$f":"IF('3 - Land Summary'!B46=0,\"\",'3 - Land Summary'!B46)","v":""},{"$f":"IF('3 - Land Summary'!C46=0,\" \",'3 - Land Summary'!C46)","v":" "},{"$f":"IF('3 - Land Summary'!D46=0,\"\",'3 - Land Summary'!D46)","v":""},{"$f":"IF('3 - Land Summary'!F46=0,\"\",'3 - Land Summary'!F46)","v":""},{"$f":"IF('3 - Land Summary'!G46=0,\"\",'3 - Land Summary'!G46)","v":""},{"$f":"IF('3 - Land Summary'!I46=0,\"\",'3 - Land Summary'!I46)","v":""},{"$f":"IF((SUMIF('4 - Species Breakdown'!$C$31:$C$1028,'3 - Land Summary'!C46,'4 - Species Breakdown'!$K$31:$K$1028))=0,\"\",SUMIF('4 - Species Breakdown'!$C$31:$C$1028,'3 - Land Summary'!C46,'4 - Species Breakdown'!$K$31:$K$1028))","v":""},{"$f":"_xlfn.TEXTJOIN(\"|\",TRUE,IF('4 - Species Breakdown'!$C$31:$C$1028=C43,'4 - Species Breakdown'!$D$31:$D$1028,\"\"))","v":""},{"$f":"_xlfn.TEXTJOIN(\"|\",TRUE,IF('4 - Species Breakdown'!$C$31:$C$1028=C43,'4 - Species Breakdown'!$F$31:$F$1028,\"\"))","v":""},{"$f":"_xlfn.TEXTJOIN(\"|\",TRUE,IF('4 - Species Breakdown'!$C$31:$C$1028=C43,'4 - Species Breakdown'!$G$31:$G$1028,\"\"))","v":""},{"$f":"IF((SUMIF('4 - Species Breakdown'!$AD$31:$AD$1028,'5 - Composition & ACs'!C43,'4 - Species Breakdown'!$AF$31:$AF$1028))=0,\"\",SUMIF('4 - Species Breakdown'!$AD$31:$AD$1028,'5 - Composition & ACs'!C43,'4 - Species Breakdown'!$AF$31:$AF$1028))","v":""},{"$f":"_xlfn.TEXTJOIN(\"|\",TRUE,IF('4 - Species Breakdown'!$AD$31:$AD$1028=C43,'4 - Species Breakdown'!$AE$31:$AE$1028,\"\"))","v":""}]
[null,{"$f":"IF('3 - Land Summary'!B47=0,\"\",'3 - Land Summary'!B47)","v":""},{"$f":"IF('3 - Land Summary'!C47=0,\" \",'3 - Land Summary'!C47)","v":" "},{"$f":"IF('3 - Land Summary'!D47=0,\"\",'3 - Land Summary'!D47)","v":""},{"$f":"IF('3 - Land Summary'!F47=0,\"\",'3 - Land Summary'!F47)","v":""},{"$f":"IF('3 - Land Summary'!G47=0,\"\",'3 - Land Summary'!G47)","v":""},{"$f":"IF('3 - Land Summary'!I47=0,\"\",'3 - Land Summary'!I47)","v":""},{"$f":"IF((SUMIF('4 - Species Breakdown'!$C$31:$C$1028,'3 - Land Summary'!C47,'4 - Species Breakdown'!$K$31:$K$1028))=0,\"\",SUMIF('4 - Species Breakdown'!$C$31:$C$1028,'3 - Land Summary'!C47,'4 - Species Breakdown'!$K$31:$K$1028))","v":""},{"$f":"_xlfn.TEXTJOIN(\"|\",TRUE,IF('4 - Species Breakdown'!$C$31:$C$1028=C44,'4 - Species Breakdown'!$D$31:$D$1028,\"\"))","v":""},{"$f":"_xlfn.TEXTJOIN(\"|\",TRUE,IF('4 - Species Breakdown'!$C$31:$C$1028=C44,'4 - Species Breakdown'!$F$31:$F$1028,\"\"))","v":""},{"$f":"_xlfn.TEXTJOIN(\"|\",TRUE,IF('4 - Species Breakdown'!$C$31:$C$1028=C44,'4 - Species Breakdown'!$G$31:$G$1028,\"\"))","v":""},{"$f":"IF((SUMIF('4 - Species Breakdown'!$AD$31:$AD$1028,'5 - Composition & ACs'!C44,'4 - Species Breakdown'!$AF$31:$AF$1028))=0,\"\",SUMIF('4 - Species Breakdown'!$AD$31:$AD$1028,'5 - Composition & ACs'!C44,'4 - Species Breakdown'!$AF$31:$AF$1028))","v":""},{"$f":"_xlfn.TEXTJOIN(\"|\",TRUE,IF('4 - Species Breakdown'!$AD$31:$AD$1028=C44,'4 - Species Breakdown'!$AE$31:$AE$1028,\"\"))","v":""}]
[null,{"$f":"IF('3 - Land Summary'!B48=0,\"\",'3 - Land Summary'!B48)","v":""},{"$f":"IF('3 - Land Summary'!C48=0,\" \",'3 - Land Summary'!C48)","v":" "},{"$f":"IF('3 - Land Summary'!D48=0,\"\",'3 - Land Summary'!D48)","v":""},{"$f":"IF('3 - Land Summary'!F48=0,\"\",'3 - Land Summary'!F48)","v":""},{"$f":"IF('3 - Land Summary'!G48=0,\"\",'3 - Land Summary'!G48)","v":""},{"$f":"IF('3 - Land Summary'!I48=0,\"\",'3 - Land Summary'!I48)","v":""},{"$f":"IF((SUMIF('4 - Species Breakdown'!$C$31:$C$1028,'3 - Land Summary'!C48,'4 - Species Breakdown'!$K$31:$K$1028))=0,\"\",SUMIF('4 - Species Breakdown'!$C$31:$C$1028,'3 - Land Summary'!C48,'4 - Species Breakdown'!$K$31:$K$1028))","v":""},{"$f":"_xlfn.TEXTJOIN(\"|\",TRUE,IF('4 - Species Breakdown'!$C$31:$C$1028=C45,'4 - Species Breakdown'!$D$31:$D$1028,\"\"))","v":""},{"$f":"_xlfn.TEXTJOIN(\"|\",TRUE,IF('4 - Species Breakdown'!$C$31:$C$1028=C45,'4 - Species Breakdown'!$F$31:$F$1028,\"\"))","v":""},{"$f":"_xlfn.TEXTJOIN(\"|\",TRUE,IF('4 - Species Breakdown'!$C$31:$C$1028=C45,'4 - Species Breakdown'!$G$31:$G$1028,\"\"))","v":""},{"$f":"IF((SUMIF('4 - Species Breakdown'!$AD$31:$AD$1028,'5 - Composition & ACs'!C45,'4 - Species Breakdown'!$AF$31:$AF$1028))=0,\"\",SUMIF('4 - Species Breakdown'!$AD$31:$AD$1028,'5 - Composition & ACs'!C45,'4 - Species Breakdown'!$AF$31:$AF$1028))","v":""},{"$f":"_xlfn.TEXTJOIN(\"|\",TRUE,IF('4 - Species Breakdown'!$AD$31:$AD$1028=C45,'4 - Species Breakdown'!$AE$31:$AE$1028,\"\"))","v":""}]
[null,{"$f":"IF('3 - Land Summary'!B49=0,\"\",'3 - Land Summary'!B49)","v":""},{"$f":"IF('3 - Land Summary'!C49=0,\" \",'3 - Land Summary'!C49)","v":" "},{"$f":"IF('3 - Land Summary'!D49=0,\"\",'3 - Land Summary'!D49)","v":""},{"$f":"IF('3 - Land Summary'!F49=0,\"\",'3 - Land Summary'!F49)","v":""},{"$f":"IF('3 - Land Summary'!G49=0,\"\",'3 - Land Summary'!G49)","v":""},{"$f":"IF('3 - Land Summary'!I49=0,\"\",'3 - Land Summary'!I49)","v":""},{"$f":"IF((SUMIF('4 - Species Breakdown'!$C$31:$C$1028,'3 - Land Summary'!C49,'4 - Species Breakdown'!$K$31:$K$1028))=0,\"\",SUMIF('4 - Species Breakdown'!$C$31:$C$1028,'3 - Land Summary'!C49,'4 - Species Breakdown'!$K$31:$K$1028))","v":""},{"$f":"_xlfn.TEXTJOIN(\"|\",TRUE,IF('4 - Species Breakdown'!$C$31:$C$1028=C46,'4 - Species Breakdown'!$D$31:$D$1028,\"\"))","v":""},{"$f":"_xlfn.TEXTJOIN(\"|\",TRUE,IF('4 - Species Breakdown'!$C$31:$C$1028=C46,'4 - Species Breakdown'!$F$31:$F$1028,\"\"))","v":""},{"$f":"_xlfn.TEXTJOIN(\"|\",TRUE,IF('4 - Species Breakdown'!$C$31:$C$1028=C46,'4 - Species Breakdown'!$G$31:$G$1028,\"\"))","v":""},{"$f":"IF((SUMIF('4 - Species Breakdown'!$AD$31:$AD$1028,'5 - Composition & ACs'!C46,'4 - Species Breakdown'!$AF$31:$AF$1028))=0,\"\",SUMIF('4 - Species Breakdown'!$AD$31:$AD$1028,'5 - Composition & ACs'!C46,'4 - Species Breakdown'!$AF$31:$AF$1028))","v":""},{"$f":"_xlfn.TEXTJOIN(\"|\",TRUE,IF('4 - Species Breakdown'!$AD$31:$AD$1028=C46,'4 - Species Breakdown'!$AE$31:$AE$1028,\"\"))","v":""}]
[null,{"$f":"IF('3 - Land Summary'!B50=0,\"\",'3 - Land Summary'!B50)","v":""},{"$f":"IF('3 - Land Summary'!C50=0,\" \",'3 - Land Summary'!C50)","v":" "},{"$f":"IF('3 - Land Summary'!D50=0,\"\",'3 - Land Summary'!D50)","v":""},{"$f":"IF('3 - Land Summary'!F50=0,\"\",'3 - Land Summary'!F50)","v":""},{"$f":"IF('3 - Land Summary'!G50=0,\"\",'3 - Land Summary'!G50)","v":""},{"$f":"IF('3 - Land Summary'!I50=0,\"\",'3 - Land Summary'!I50)","v":""},{"$f":"IF((SUMIF('4 - Species Breakdown'!$C$31:$C$1028,'3 - Land Summary'!C50,'4 - Species Breakdown'!$K$31:$K$1028))=0,\"\",SUMIF('4 - Species Breakdown'!$C$31:$C$1028,'3 - Land Summary'!C50,'4 - Species Breakdown'!$K$31:$K$1028))","v":""},{"$f":"_xlfn.TEXTJOIN(\"|\",TRUE,IF('4 - Species Breakdown'!$C$31:$C$1028=C47,'4 - Species Breakdown'!$D$31:$D$1028,\"\"))","v":""},{"$f":"_xlfn.TEXTJOIN(\"|\",TRUE,IF('4 - Species Breakdown'!$C$31:$C$1028=C47,'4 - Species Breakdown'!$F$31:$F$1028,\"\"))","v":""},{"$f":"_xlfn.TEXTJOIN(\"|\",TRUE,IF('4 - Species Breakdown'!$C$31:$C$1028=C47,'4 - Species Breakdown'!$G$31:$G$1028,\"\"))","v":""},{"$f":"IF((SUMIF('4 - Species Breakdown'!$AD$31:$AD$1028,'5 - Composition & ACs'!C47,'4 - Species Breakdown'!$AF$31:$AF$1028))=0,\"\",SUMIF('4 - Species Breakdown'!$AD$31:$AD$1028,'5 - Composition & ACs'!C47,'4 - Species Breakdown'!$AF$31:$AF$1028))","v":""},{"$f":"_xlfn.TEXTJOIN(\"|\",TRUE,IF('4 - Species Breakdown'!$AD$31:$AD$1028=C47,'4 - Species Breakdown'!$AE$31:$AE$1028,\"\"))","v":""}]
[null,{"$f":"IF('3 - Land Summary'!B51=0,\"\",'3 - Land Summary'!B51)","v":""},{"$f":"IF('3 - Land Summary'!C51=0,\" \",'3 - Land Summary'!C51)","v":" "},{"$f":"IF('3 - Land Summary'!D51=0,\"\",'3 - Land Summary'!D51)","v":""},{"$f":"IF('3 - Land Summary'!F51=0,\"\",'3 - Land Summary'!F51)","v":""},{"$f":"IF('3 - Land Summary'!G51=0,\"\",'3 - Land Summary'!G51)","v":""},{"$f":"IF('3 - Land Summary'!I51=0,\"\",'3 - Land Summary'!I51)","v":""},{"$f":"IF((SUMIF('4 - Species Breakdown'!$C$31:$C$1028,'3 - Land Summary'!C51,'4 - Species Breakdown'!$K$31:$K$1028))=0,\"\",SUMIF('4 - Species Breakdown'!$C$31:$C$1028,'3 - Land Summary'!C51,'4 - Species Breakdown'!$K$31:$K$1028))","v":""},{"$f":"_xlfn.TEXTJOIN(\"|\",TRUE,IF('4 - Species Breakdown'!$C$31:$C$1028=C48,'4 - Species Breakdown'!$D$31:$D$1028,\"\"))","v":""},{"$f":"_xlfn.TEXTJOIN(\"|\",TRUE,IF('4 - Species Breakdown'!$C$31:$C$1028=C48,'4 - Species Breakdown'!$F$31:$F$1028,\"\"))","v":""},{"$f":"_xlfn.TEXTJOIN(\"|\",TRUE,IF('4 - Species Breakdown'!$C$31:$C$1028=C48,'4 - Species Breakdown'!$G$31:$G$1028,\"\"))","v":""},{"$f":"IF((SUMIF('4 - Species Breakdown'!$AD$31:$AD$1028,'5 - Composition & ACs'!C48,'4 - Species Breakdown'!$AF$31:$AF$1028))=0,\"\",SUMIF('4 - Species Breakdown'!$AD$31:$AD$1028,'5 - Composition & ACs'!C48,'4 - Species Breakdown'!$AF$31:$AF$1028))","v":""},{"$f":"_xlfn.TEXTJOIN(\"|\",TRUE,IF('4 - Species Breakdown'!$AD$31:$AD$1028=C48,'4 - Species Breakdown'!$AE$31:$AE$1028,\"\"))","v":""}]
[null,{"$f":"IF('3 - Land Summary'!B52=0,\"\",'3 - Land Summary'!B52)","v":""},{"$f":"IF('3 - Land Summary'!C52=0,\" \",'3 - Land Summary'!C52)","v":" "},{"$f":"IF('3 - Land Summary'!D52=0,\"\",'3 - Land Summary'!D52)","v":""},{"$f":"IF('3 - Land Summary'!F52=0,\"\",'3 - Land Summary'!F52)","v":""},{"$f":"IF('3 - Land Summary'!G52=0,\"\",'3 - Land Summary'!G52)","v":""},{"$f":"IF('3 - Land Summary'!I52=0,\"\",'3 - Land Summary'!I52)","v":""},{"$f":"IF((SUMIF('4 - Species Breakdown'!$C$31:$C$1028,'3 - Land Summary'!C52,'4 - Species Breakdown'!$K$31:$K$1028))=0,\"\",SUMIF('4 - Species Breakdown'!$C$31:$C$1028,'3 - Land Summary'!C52,'4 - Species Breakdown'!$K$31:$K$1028))","v":""},{"$f":"_xlfn.TEXTJOIN(\"|\",TRUE,IF('4 - Species Breakdown'!$C$31:$C$1028=C49,'4 - Species Breakdown'!$D$31:$D$1028,\"\"))","v":""},{"$f":"_xlfn.TEXTJOIN(\"|\",TRUE,IF('4 - Species Breakdown'!$C$31:$C$1028=C49,'4 - Species Breakdown'!$F$31:$F$1028,\"\"))","v":""},{"$f":"_xlfn.TEXTJOIN(\"|\",TRUE,IF('4 - Species Breakdown'!$C$31:$C$1028=C49,'4 - Species Breakdown'!$G$31:$G$1028,\"\"))","v":""},{"$f":"IF((SUMIF('4 - Species Breakdown'!$AD$31:$AD$1028,'5 - Composition & ACs'!C49,'4 - Species Breakdown'!$AF$31:$AF$1028))=0,\"\",SUMIF('4 - Species Breakdown'!$AD$31:$AD$1028,'5 - Composition & ACs'!C49,'4 - Species Breakdown'!$AF$31:$AF$1028))","v":""},{"$f":"_xlfn.TEXTJOIN(\"|\",TRUE,IF('4 - Species Breakdown'!$AD$31:$AD$1028=C49,'4 - Species Breakdown'!$AE$31:$AE$1028,\"\"))","v":""}]
[null,{"$f":"IF('3 - Land Summary'!B53=0,\"\",'3 - Land Summary'!B53)","v":""},{"$f":"IF('3 - Land Summary'!C53=0,\" \",'3 - Land Summary'!C53)","v":" "},{"$f":"IF('3 - Land Summary'!D53=0,\"\",'3 - Land Summary'!D53)","v":""},{"$f":"IF('3 - Land Summary'!F53=0,\"\",'3 - Land Summary'!F53)","v":""},{"$f":"IF('3 - Land Summary'!G53=0,\"\",'3 - Land Summary'!G53)","v":""},{"$f":"IF('3 - Land Summary'!I53=0,\"\",'3 - Land Summary'!I53)","v":""},{"$f":"IF((SUMIF('4 - Species Breakdown'!$C$31:$C$1028,'3 - Land Summary'!C53,'4 - Species Breakdown'!$K$31:$K$1028))=0,\"\",SUMIF('4 - Species Breakdown'!$C$31:$C$1028,'3 - Land Summary'!C53,'4 - Species Breakdown'!$K$31:$K$1028))","v":""},{"$f":"_xlfn.TEXTJOIN(\"|\",TRUE,IF('4 - Species Breakdown'!$C$31:$C$1028=C50,'4 - Species Breakdown'!$D$31:$D$1028,\"\"))","v":""},{"$f":"_xlfn.TEXTJOIN(\"|\",TRUE,IF('4 - Species Breakdown'!$C$31:$C$1028=C50,'4 - Species Breakdown'!$F$31:$F$1028,\"\"))","v":""},{"$f":"_xlfn.TEXTJOIN(\"|\",TRUE,IF('4 - Species Breakdown'!$C$31:$C$1028=C50,'4 - Species Breakdown'!$G$31:$G$1028,\"\"))","v":""},{"$f":"IF((SUMIF('4 - Species Breakdown'!$AD$31:$AD$1028,'5 - Composition & ACs'!C50,'4 - Species Breakdown'!$AF$31:$AF$1028))=0,\"\",SUMIF('4 - Species Breakdown'!$AD$31:$AD$1028,'5 - Composition & ACs'!C50,'4 - Species Breakdown'!$AF$31:$AF$1028))","v":""},{"$f":"_xlfn.TEXTJOIN(\"|\",TRUE,IF('4 - Species Breakdown'!$AD$31:$AD$1028=C50,'4 - Species Breakdown'!$AE$31:$AE$1028,\"\"))","v":""}]
[null,{"$f":"IF('3 - Land Summary'!B54=0,\"\",'3 - Land Summary'!B54)","v":""},{"$f":"IF('3 - Land Summary'!C54=0,\" \",'3 - Land Summary'!C54)","v":" "},{"$f":"IF('3 - Land Summary'!D54=0,\"\",'3 - Land Summary'!D54)","v":""},{"$f":"IF('3 - Land Summary'!F54=0,\"\",'3 - Land Summary'!F54)","v":""},{"$f":"IF('3 - Land Summary'!G54=0,\"\",'3 - Land Summary'!G54)","v":""},{"$f":"IF('3 - Land Summary'!I54=0,\"\",'3 - Land Summary'!I54)","v":""},{"$f":"IF((SUMIF('4 - Species Breakdown'!$C$31:$C$1028,'3 - Land Summary'!C54,'4 - Species Breakdown'!$K$31:$K$1028))=0,\"\",SUMIF('4 - Species Breakdown'!$C$31:$C$1028,'3 - Land Summary'!C54,'4 - Species Breakdown'!$K$31:$K$1028))","v":""},{"$f":"_xlfn.TEXTJOIN(\"|\",TRUE,IF('4 - Species Breakdown'!$C$31:$C$1028=C51,'4 - Species Breakdown'!$D$31:$D$1028,\"\"))","v":""},{"$f":"_xlfn.TEXTJOIN(\"|\",TRUE,IF('4 - Species Breakdown'!$C$31:$C$1028=C51,'4 - Species Breakdown'!$F$31:$F$1028,\"\"))","v":""},{"$f":"_xlfn.TEXTJOIN(\"|\",TRUE,IF('4 - Species Breakdown'!$C$31:$C$1028=C51,'4 - Species Breakdown'!$G$31:$G$1028,\"\"))","v":""},{"$f":"IF((SUMIF('4 - Species Breakdown'!$AD$31:$AD$1028,'5 - Composition & ACs'!C51,'4 - Species Breakdown'!$AF$31:$AF$1028))=0,\"\",SUMIF('4 - Species Breakdown'!$AD$31:$AD$1028,'5 - Composition & ACs'!C51,'4 - Species Breakdown'!$AF$31:$AF$1028))","v":""},{"$f":"_xlfn.TEXTJOIN(\"|\",TRUE,IF('4 - Species Breakdown'!$AD$31:$AD$1028=C51,'4 - Species Breakdown'!$AE$31:$AE$1028,\"\"))","v":""}]
[null,{"$f":"IF('3 - Land Summary'!B55=0,\"\",'3 - Land Summary'!B55)","v":""},{"$f":"IF('3 - Land Summary'!C55=0,\" \",'3 - Land Summary'!C55)","v":" "},{"$f":"IF('3 - Land Summary'!D55=0,\"\",'3 - Land Summary'!D55)","v":""},{"$f":"IF('3 - Land Summary'!F55=0,\"\",'3 - Land Summary'!F55)","v":""},{"$f":"IF('3 - Land Summary'!G55=0,\"\",'3 - Land Summary'!G55)","v":""},{"$f":"IF('3 - Land Summary'!I55=0,\"\",'3 - Land Summary'!I55)","v":""},{"$f":"IF((SUMIF('4 - Species Breakdown'!$C$31:$C$1028,'3 - Land Summary'!C55,'4 - Species Breakdown'!$K$31:$K$1028))=0,\"\",SUMIF('4 - Species Breakdown'!$C$31:$C$1028,'3 - Land Summary'!C55,'4 - Species Breakdown'!$K$31:$K$1028))","v":""},{"$f":"_xlfn.TEXTJOIN(\"|\",TRUE,IF('4 - Species Breakdown'!$C$31:$C$1028=C52,'4 - Species Breakdown'!$D$31:$D$1028,\"\"))","v":""},{"$f":"_xlfn.TEXTJOIN(\"|\",TRUE,IF('4 - Species Breakdown'!$C$31:$C$1028=C52,'4 - Species Breakdown'!$F$31:$F$1028,\"\"))","v":""},{"$f":"_xlfn.TEXTJOIN(\"|\",TRUE,IF('4 - Species Breakdown'!$C$31:$C$1028=C52,'4 - Species Breakdown'!$G$31:$G$1028,\"\"))","v":""},{"$f":"IF((SUMIF('4 - Species Breakdown'!$AD$31:$AD$1028,'5 - Composition & ACs'!C52,'4 - Species Breakdown'!$AF$31:$AF$1028))=0,\"\",SUMIF('4 - Species Breakdown'!$AD$31:$AD$1028,'5 - Composition & ACs'!C52,'4 - Species Breakdown'!$AF$31:$AF$1028))","v":""},{"$f":"_xlfn.TEXTJOIN(\"|\",TRUE,IF('4 - Species Breakdown'!$AD$31:$AD$1028=C52,'4 - Species Breakdown'!$AE$31:$AE$1028,\"\"))","v":""}]
[null,{"$f":"IF('3 - Land Summary'!B56=0,\"\",'3 - Land Summary'!B56)","v":""},{"$f":"IF('3 - Land Summary'!C56=0,\" \",'3 - Land Summary'!C56)","v":" "},{"$f":"IF('3 - Land Summary'!D56=0,\"\",'3 - Land Summary'!D56)","v":""},{"$f":"IF('3 - Land Summary'!F56=0,\"\",'3 - Land Summary'!F56)","v":""},{"$f":"IF('3 - Land Summary'!G56=0,\"\",'3 - Land Summary'!G56)","v":""},{"$f":"IF('3 - Land Summary'!I56=0,\"\",'3 - Land Summary'!I56)","v":""},{"$f":"IF((SUMIF('4 - Species Breakdown'!$C$31:$C$1028,'3 - Land Summary'!C56,'4 - Species Breakdown'!$K$31:$K$1028))=0,\"\",SUMIF('4 - Species Breakdown'!$C$31:$C$1028,'3 - Land Summary'!C56,'4 - Species Breakdown'!$K$31:$K$1028))","v":""},{"$f":"_xlfn.TEXTJOIN(\"|\",TRUE,IF('4 - Species Breakdown'!$C$31:$C$1028=C53,'4 - Species Breakdown'!$D$31:$D$1028,\"\"))","v":""},{"$f":"_xlfn.TEXTJOIN(\"|\",TRUE,IF('4 - Species Breakdown'!$C$31:$C$1028=C53,'4 - Species Breakdown'!$F$31:$F$1028,\"\"))","v":""},{"$f":"_xlfn.TEXTJOIN(\"|\",TRUE,IF('4 - Species Breakdown'!$C$31:$C$1028=C53,'4 - Species Breakdown'!$G$31:$G$1028,\"\"))","v":""},{"$f":"IF((SUMIF('4 - Species Breakdown'!$AD$31:$AD$1028,'5 - Composition & ACs'!C53,'4 - Species Breakdown'!$AF$31:$AF$1028))=0,\"\",SUMIF('4 - Species Breakdown'!$AD$31:$AD$1028,'5 - Composition & ACs'!C53,'4 - Species Breakdown'!$AF$31:$AF$1028))","v":""},{"$f":"_xlfn.TEXTJOIN(\"|\",TRUE,IF('4 - Species Breakdown'!$AD$31:$AD$1028=C53,'4 - Species Breakdown'!$AE$31:$AE$1028,\"\"))","v":""}]
[null,{"$f":"IF('3 - Land Summary'!B57=0,\"\",'3 - Land Summary'!B57)","v":""},{"$f":"IF('3 - Land Summary'!C57=0,\" \",'3 - Land Summary'!C57)","v":" "},{"$f":"IF('3 - Land Summary'!D57=0,\"\",'3 - Land Summary'!D57)","v":""},{"$f":"IF('3 - Land Summary'!F57=0,\"\",'3 - Land Summary'!F57)","v":""},{"$f":"IF('3 - Land Summary'!G57=0,\"\",'3 - Land Summary'!G57)","v":""},{"$f":"IF('3 - Land Summary'!I57=0,\"\",'3 - Land Summary'!I57)","v":""},{"$f":"IF((SUMIF('4 - Species Breakdown'!$C$31:$C$1028,'3 - Land Summary'!C57,'4 - Species Breakdown'!$K$31:$K$1028))=0,\"\",SUMIF('4 - Species Breakdown'!$C$31:$C$1028,'3 - Land Summary'!C57,'4 - Species Breakdown'!$K$31:$K$1028))","v":""},{"$f":"_xlfn.TEXTJOIN(\"|\",TRUE,IF('4 - Species Breakdown'!$C$31:$C$1028=C54,'4 - Species Breakdown'!$D$31:$D$1028,\"\"))","v":""},{"$f":"_xlfn.TEXTJOIN(\"|\",TRUE,IF('4 - Species Breakdown'!$C$31:$C$1028=C54,'4 - Species Breakdown'!$F$31:$F$1028,\"\"))","v":""},{"$f":"_xlfn.TEXTJOIN(\"|\",TRUE,IF('4 - Species Breakdown'!$C$31:$C$1028=C54,'4 - Species Breakdown'!$G$31:$G$1028,\"\"))","v":""},{"$f":"IF((SUMIF('4 - Species Breakdown'!$AD$31:$AD$1028,'5 - Composition & ACs'!C54,'4 - Species Breakdown'!$AF$31:$AF$1028))=0,\"\",SUMIF('4 - Species Breakdown'!$AD$31:$AD$1028,'5 - Composition & ACs'!C54,'4 - Species Breakdown'!$AF$31:$AF$1028))","v":""},{"$f":"_xlfn.TEXTJOIN(\"|\",TRUE,IF('4 - Species Breakdown'!$AD$31:$AD$1028=C54,'4 - Species Breakdown'!$AE$31:$AE$1028,\"\"))","v":""}]
[null,{"$f":"IF('3 - Land Summary'!B58=0,\"\",'3 - Land Summary'!B58)","v":""},{"$f":"IF('3 - Land Summary'!C58=0,\" \",'3 - Land Summary'!C58)","v":" "},{"$f":"IF('3 - Land Summary'!D58=0,\"\",'3 - Land Summary'!D58)","v":""},{"$f":"IF('3 - Land Summary'!F58=0,\"\",'3 - Land Summary'!F58)","v":""},{"$f":"IF('3 - Land Summary'!G58=0,\"\",'3 - Land Summary'!G58)","v":""},{"$f":"IF('3 - Land Summary'!I58=0,\"\",'3 - Land Summary'!I58)","v":""},{"$f":"IF((SUMIF('4 - Species Breakdown'!$C$31:$C$1028,'3 - Land Summary'!C58,'4 - Species Breakdown'!$K$31:$K$1028))=0,\"\",SUMIF('4 - Species Breakdown'!$C$31:$C$1028,'3 - Land Summary'!C58,'4 - Species Breakdown'!$K$31:$K$1028))","v":""},{"$f":"_xlfn.TEXTJOIN(\"|\",TRUE,IF('4 - Species Breakdown'!$C$31:$C$1028=C55,'4 - Species Breakdown'!$D$31:$D$1028,\"\"))","v":""},{"$f":"_xlfn.TEXTJOIN(\"|\",TRUE,IF('4 - Species Breakdown'!$C$31:$C$1028=C55,'4 - Species Breakdown'!$F$31:$F$1028,\"\"))","v":""},{"$f":"_xlfn.TEXTJOIN(\"|\",TRUE,IF('4 - Species Breakdown'!$C$31:$C$1028=C55,'4 - Species Breakdown'!$G$31:$G$1028,\"\"))","v":""},{"$f":"IF((SUMIF('4 - Species Breakdown'!$AD$31:$AD$1028,'5 - Composition & ACs'!C55,'4 - Species Breakdown'!$AF$31:$AF$1028))=0,\"\",SUMIF('4 - Species Breakdown'!$AD$31:$AD$1028,'5 - Composition & ACs'!C55,'4 - Species Breakdown'!$AF$31:$AF$1028))","v":""},{"$f":"_xlfn.TEXTJOIN(\"|\",TRUE,IF('4 - Species Breakdown'!$AD$31:$AD$1028=C55,'4 - Species Breakdown'!$AE$31:$AE$1028,\"\"))","v":""}]
[null,{"$f":"IF('3 - Land Summary'!B59=0,\"\",'3 - Land Summary'!B59)","v":""},{"$f":"IF('3 - Land Summary'!C59=0,\" \",'3 - Land Summary'!C59)","v":" "},{"$f":"IF('3 - Land Summary'!D59=0,\"\",'3 - Land Summary'!D59)","v":""},{"$f":"IF('3 - Land Summary'!F59=0,\"\",'3 - Land Summary'!F59)","v":""},{"$f":"IF('3 - Land Summary'!G59=0,\"\",'3 - Land Summary'!G59)","v":""},{"$f":"IF('3 - Land Summary'!I59=0,\"\",'3 - Land Summary'!I59)","v":""},{"$f":"IF((SUMIF('4 - Species Breakdown'!$C$31:$C$1028,'3 - Land Summary'!C59,'4 - Species Breakdown'!$K$31:$K$1028))=0,\"\",SUMIF('4 - Species Breakdown'!$C$31:$C$1028,'3 - Land Summary'!C59,'4 - Species Breakdown'!$K$31:$K$1028))","v":""},{"$f":"_xlfn.TEXTJOIN(\"|\",TRUE,IF('4 - Species Breakdown'!$C$31:$C$1028=C56,'4 - Species Breakdown'!$D$31:$D$1028,\"\"))","v":""},{"$f":"_xlfn.TEXTJOIN(\"|\",TRUE,IF('4 - Species Breakdown'!$C$31:$C$1028=C56,'4 - Species Breakdown'!$F$31:$F$1028,\"\"))","v":""},{"$f":"_xlfn.TEXTJOIN(\"|\",TRUE,IF('4 - Species Breakdown'!$C$31:$C$1028=C56,'4 - Species Breakdown'!$G$31:$G$1028,\"\"))","v":""},{"$f":"IF((SUMIF('4 - Species Breakdown'!$AD$31:$AD$1028,'5 - Composition & ACs'!C56,'4 - Species Breakdown'!$AF$31:$AF$1028))=0,\"\",SUMIF('4 - Species Breakdown'!$AD$31:$AD$1028,'5 - Composition & ACs'!C56,'4 - Species Breakdown'!$AF$31:$AF$1028))","v":""},{"$f":"_xlfn.TEXTJOIN(\"|\",TRUE,IF('4 - Species Breakdown'!$AD$31:$AD$1028=C56,'4 - Species Breakdown'!$AE$31:$AE$1028,\"\"))","v":""}]
[null,{"$f":"IF('3 - Land Summary'!B60=0,\"\",'3 - Land Summary'!B60)","v":""},{"$f":"IF('3 - Land Summary'!C60=0,\" \",'3 - Land Summary'!C60)","v":" "},{"$f":"IF('3 - Land Summary'!D60=0,\"\",'3 - Land Summary'!D60)","v":""},{"$f":"IF('3 - Land Summary'!F60=0,\"\",'3 - Land Summary'!F60)","v":""},{"$f":"IF('3 - Land Summary'!G60=0,\"\",'3 - Land Summary'!G60)","v":""},{"$f":"IF('3 - Land Summary'!I60=0,\"\",'3 - Land Summary'!I60)","v":""},{"$f":"IF((SUMIF('4 - Species Breakdown'!$C$31:$C$1028,'3 - Land Summary'!C60,'4 - Species Breakdown'!$K$31:$K$1028))=0,\"\",SUMIF('4 - Species Breakdown'!$C$31:$C$1028,'3 - Land Summary'!C60,'4 - Species Breakdown'!$K$31:$K$1028))","v":""},{"$f":"_xlfn.TEXTJOIN(\"|\",TRUE,IF('4 - Species Breakdown'!$C$31:$C$1028=C57,'4 - Species Breakdown'!$D$31:$D$1028,\"\"))","v":""},{"$f":"_xlfn.TEXTJOIN(\"|\",TRUE,IF('4 - Species Breakdown'!$C$31:$C$1028=C57,'4 - Species Breakdown'!$F$31:$F$1028,\"\"))","v":""},{"$f":"_xlfn.TEXTJOIN(\"|\",TRUE,IF('4 - Species Breakdown'!$C$31:$C$1028=C57,'4 - Species Breakdown'!$G$31:$G$1028,\"\"))","v":""},{"$f":"IF((SUMIF('4 - Species Breakdown'!$AD$31:$AD$1028,'5 - Composition & ACs'!C57,'4 - Species Breakdown'!$AF$31:$AF$1028))=0,\"\",SUMIF('4 - Species Breakdown'!$AD$31:$AD$1028,'5 - Composition & ACs'!C57,'4 - Species Breakdown'!$AF$31:$AF$1028))","v":""},{"$f":"_xlfn.TEXTJOIN(\"|\",TRUE,IF('4 - Species Breakdown'!$AD$31:$AD$1028=C57,'4 - Species Breakdown'!$AE$31:$AE$1028,\"\"))","v":""}]
[null,{"$f":"IF('3 - Land Summary'!B61=0,\"\",'3 - Land Summary'!B61)","v":""},{"$f":"IF('3 - Land Summary'!C61=0,\" \",'3 - Land Summary'!C61)","v":" "},{"$f":"IF('3 - Land Summary'!D61=0,\"\",'3 - Land Summary'!D61)","v":""},{"$f":"IF('3 - Land Summary'!F61=0,\"\",'3 - Land Summary'!F61)","v":""},{"$f":"IF('3 - Land Summary'!G61=0,\"\",'3 - Land Summary'!G61)","v":""},{"$f":"IF('3 - Land Summary'!I61=0,\"\",'3 - Land Summary'!I61)","v":""},{"$f":"IF((SUMIF('4 - Species Breakdown'!$C$31:$C$1028,'3 - Land Summary'!C61,'4 - Species Breakdown'!$K$31:$K$1028))=0,\"\",SUMIF('4 - Species Breakdown'!$C$31:$C$1028,'3 - Land Summary'!C61,'4 - Species Breakdown'!$K$31:$K$1028))","v":""},{"$f":"_xlfn.TEXTJOIN(\"|\",TRUE,IF('4 - Species Breakdown'!$C$31:$C$1028=C58,'4 - Species Breakdown'!$D$31:$D$1028,\"\"))","v":""},{"$f":"_xlfn.TEXTJOIN(\"|\",TRUE,IF('4 - Species Breakdown'!$C$31:$C$1028=C58,'4 - Species Breakdown'!$F$31:$F$1028,\"\"))","v":""},{"$f":"_xlfn.TEXTJOIN(\"|\",TRUE,IF('4 - Species Breakdown'!$C$31:$C$1028=C58,'4 - Species Breakdown'!$G$31:$G$1028,\"\"))","v":""},{"$f":"IF((SUMIF('4 - Species Breakdown'!$AD$31:$AD$1028,'5 - Composition & ACs'!C58,'4 - Species Breakdown'!$AF$31:$AF$1028))=0,\"\",SUMIF('4 - Species Breakdown'!$AD$31:$AD$1028,'5 - Composition & ACs'!C58,'4 - Species Breakdown'!$AF$31:$AF$1028))","v":""},{"$f":"_xlfn.TEXTJOIN(\"|\",TRUE,IF('4 - Species Breakdown'!$AD$31:$AD$1028=C58,'4 - Species Breakdown'!$AE$31:$AE$1028,\"\"))","v":""}]
[null,{"$f":"IF('3 - Land Summary'!B62=0,\"\",'3 - Land Summary'!B62)","v":""},{"$f":"IF('3 - Land Summary'!C62=0,\" \",'3 - Land Summary'!C62)","v":" "},{"$f":"IF('3 - Land Summary'!D62=0,\"\",'3 - Land Summary'!D62)","v":""},{"$f":"IF('3 - Land Summary'!F62=0,\"\",'3 - Land Summary'!F62)","v":""},{"$f":"IF('3 - Land Summary'!G62=0,\"\",'3 - Land Summary'!G62)","v":""},{"$f":"IF('3 - Land Summary'!I62=0,\"\",'3 - Land Summary'!I62)","v":""},{"$f":"IF((SUMIF('4 - Species Breakdown'!$C$31:$C$1028,'3 - Land Summary'!C62,'4 - Species Breakdown'!$K$31:$K$1028))=0,\"\",SUMIF('4 - Species Breakdown'!$C$31:$C$1028,'3 - Land Summary'!C62,'4 - Species Breakdown'!$K$31:$K$1028))","v":""},{"$f":"_xlfn.TEXTJOIN(\"|\",TRUE,IF('4 - Species Breakdown'!$C$31:$C$1028=C59,'4 - Species Breakdown'!$D$31:$D$1028,\"\"))","v":""},{"$f":"_xlfn.TEXTJOIN(\"|\",TRUE,IF('4 - Species Breakdown'!$C$31:$C$1028=C59,'4 - Species Breakdown'!$F$31:$F$1028,\"\"))","v":""},{"$f":"_xlfn.TEXTJOIN(\"|\",TRUE,IF('4 - Species Breakdown'!$C$31:$C$1028=C59,'4 - Species Breakdown'!$G$31:$G$1028,\"\"))","v":""},{"$f":"IF((SUMIF('4 - Species Breakdown'!$AD$31:$AD$1028,'5 - Composition & ACs'!C59,'4 - Species Breakdown'!$AF$31:$AF$1028))=0,\"\",SUMIF('4 - Species Breakdown'!$AD$31:$AD$1028,'5 - Composition & ACs'!C59,'4 - Species Breakdown'!$AF$31:$AF$1028))","v":""},{"$f":"_xlfn.TEXTJOIN(\"|\",TRUE,IF('4 - Species Breakdown'!$AD$31:$AD$1028=C59,'4 - Species Breakdown'!$AE$31:$AE$1028,\"\"))","v":""}]
[null,{"$f":"IF('3 - Land Summary'!B63=0,\"\",'3 - Land Summary'!B63)","v":""},{"$f":"IF('3 - Land Summary'!C63=0,\" \",'3 - Land Summary'!C63)","v":" "},{"$f":"IF('3 - Land Summary'!D63=0,\"\",'3 - Land Summary'!D63)","v":""},{"$f":"IF('3 - Land Summary'!F63=0,\"\",'3 - Land Summary'!F63)","v":""},{"$f":"IF('3 - Land Summary'!G63=0,\"\",'3 - Land Summary'!G63)","v":""},{"$f":"IF('3 - Land Summary'!I63=0,\"\",'3 - Land Summary'!I63)","v":""},{"$f":"IF((SUMIF('4 - Species Breakdown'!$C$31:$C$1028,'3 - Land Summary'!C63,'4 - Species Breakdown'!$K$31:$K$1028))=0,\"\",SUMIF('4 - Species Breakdown'!$C$31:$C$1028,'3 - Land Summary'!C63,'4 - Species Breakdown'!$K$31:$K$1028))","v":""},{"$f":"_xlfn.TEXTJOIN(\"|\",TRUE,IF('4 - Species Breakdown'!$C$31:$C$1028=C60,'4 - Species Breakdown'!$D$31:$D$1028,\"\"))","v":""},{"$f":"_xlfn.TEXTJOIN(\"|\",TRUE,IF('4 - Species Breakdown'!$C$31:$C$1028=C60,'4 - Species Breakdown'!$F$31:$F$1028,\"\"))","v":""},{"$f":"_xlfn.TEXTJOIN(\"|\",TRUE,IF('4 - Species Breakdown'!$C$31:$C$1028=C60,'4 - Species Breakdown'!$G$31:$G$1028,\"\"))","v":""},{"$f":"IF((SUMIF('4 - Species Breakdown'!$AD$31:$AD$1028,'5 - Composition & ACs'!C60,'4 - Species Breakdown'!$AF$31:$AF$1028))=0,\"\",SUMIF('4 - Species Breakdown'!$AD$31:$AD$1028,'5 - Composition & ACs'!C60,'4 - Species Breakdown'!$AF$31:$AF$1028))","v":""},{"$f":"_xlfn.TEXTJOIN(\"|\",TRUE,IF('4 - Species Breakdown'!$AD$31:$AD$1028=C60,'4 - Species Breakdown'!$AE$31:$AE$1028,\"\"))","v":""}]
[null,{"$f":"IF('3 - Land Summary'!B64=0,\"\",'3 - Land Summary'!B64)","v":""},{"$f":"IF('3 - Land Summary'!C64=0,\" \",'3 - Land Summary'!C64)","v":" "},{"$f":"IF('3 - Land Summary'!D64=0,\"\",'3 - Land Summary'!D64)","v":""},{"$f":"IF('3 - Land Summary'!F64=0,\"\",'3 - Land Summary'!F64)","v":""},{"$f":"IF('3 - Land Summary'!G64=0,\"\",'3 - Land Summary'!G64)","v":""},{"$f":"IF('3 - Land Summary'!I64=0,\"\",'3 - Land Summary'!I64)","v":""},{"$f":"IF((SUMIF('4 - Species Breakdown'!$C$31:$C$1028,'3 - Land Summary'!C64,'4 - Species Breakdown'!$K$31:$K$1028))=0,\"\",SUMIF('4 - Species Breakdown'!$C$31:$C$1028,'3 - Land Summary'!C64,'4 - Species Breakdown'!$K$31:$K$1028))","v":""},{"$f":"_xlfn.TEXTJOIN(\"|\",TRUE,IF('4 - Species Breakdown'!$C$31:$C$1028=C61,'4 - Species Breakdown'!$D$31:$D$1028,\"\"))","v":""},{"$f":"_xlfn.TEXTJOIN(\"|\",TRUE,IF('4 - Species Breakdown'!$C$31:$C$1028=C61,'4 - Species Breakdown'!$F$31:$F$1028,\"\"))","v":""},{"$f":"_xlfn.TEXTJOIN(\"|\",TRUE,IF('4 - Species Breakdown'!$C$31:$C$1028=C61,'4 - Species Breakdown'!$G$31:$G$1028,\"\"))","v":""},{"$f":"IF((SUMIF('4 - Species Breakdown'!$AD$31:$AD$1028,'5 - Composition & ACs'!C61,'4 - Species Breakdown'!$AF$31:$AF$1028))=0,\"\",SUMIF('4 - Species Breakdown'!$AD$31:$AD$1028,'5 - Composition & ACs'!C61,'4 - Species Breakdown'!$AF$31:$AF$1028))","v":""},{"$f":"_xlfn.TEXTJOIN(\"|\",TRUE,IF('4 - Species Breakdown'!$AD$31:$AD$1028=C61,'4 - Species Breakdown'!$AE$31:$AE$1028,\"\"))","v":""}]
[null,{"$f":"IF('3 - Land Summary'!B65=0,\"\",'3 - Land Summary'!B65)","v":""},{"$f":"IF('3 - Land Summary'!C65=0,\" \",'3 - Land Summary'!C65)","v":" "},{"$f":"IF('3 - Land Summary'!D65=0,\"\",'3 - Land Summary'!D65)","v":""},{"$f":"IF('3 - Land Summary'!F65=0,\"\",'3 - Land Summary'!F65)","v":""},{"$f":"IF('3 - Land Summary'!G65=0,\"\",'3 - Land Summary'!G65)","v":""},{"$f":"IF('3 - Land Summary'!I65=0,\"\",'3 - Land Summary'!I65)","v":""},{"$f":"IF((SUMIF('4 - Species Breakdown'!$C$31:$C$1028,'3 - Land Summary'!C65,'4 - Species Breakdown'!$K$31:$K$1028))=0,\"\",SUMIF('4 - Species Breakdown'!$C$31:$C$1028,'3 - Land Summary'!C65,'4 - Species Breakdown'!$K$31:$K$1028))","v":""},{"$f":"_xlfn.TEXTJOIN(\"|\",TRUE,IF('4 - Species Breakdown'!$C$31:$C$1028=C62,'4 - Species Breakdown'!$D$31:$D$1028,\"\"))","v":""},{"$f":"_xlfn.TEXTJOIN(\"|\",TRUE,IF('4 - Species Breakdown'!$C$31:$C$1028=C62,'4 - Species Breakdown'!$F$31:$F$1028,\"\"))","v":""},{"$f":"_xlfn.TEXTJOIN(\"|\",TRUE,IF('4 - Species Breakdown'!$C$31:$C$1028=C62,'4 - Species Breakdown'!$G$31:$G$1028,\"\"))","v":""},{"$f":"IF((SUMIF('4 - Species Breakdown'!$AD$31:$AD$1028,'5 - Composition & ACs'!C62,'4 - Species Breakdown'!$AF$31:$AF$1028))=0,\"\",SUMIF('4 - Species Breakdown'!$AD$31:$AD$1028,'5 - Composition & ACs'!C62,'4 - Species Breakdown'!$AF$31:$AF$1028))","v":""},{"$f":"_xlfn.TEXTJOIN(\"|\",TRUE,IF('4 - Species Breakdown'!$AD$31:$AD$1028=C62,'4 - Species Breakdown'!$AE$31:$AE$1028,\"\"))","v":""}]
[null,{"$f":"IF('3 - Land Summary'!B66=0,\"\",'3 - Land Summary'!B66)","v":""},{"$f":"IF('3 - Land Summary'!C66=0,\" \",'3 - Land Summary'!C66)","v":" "},{"$f":"IF('3 - Land Summary'!D66=0,\"\",'3 - Land Summary'!D66)","v":""},{"$f":"IF('3 - Land Summary'!F66=0,\"\",'3 - Land Summary'!F66)","v":""},{"$f":"IF('3 - Land Summary'!G66=0,\"\",'3 - Land Summary'!G66)","v":""},{"$f":"IF('3 - Land Summary'!I66=0,\"\",'3 - Land Summary'!I66)","v":""},{"$f":"IF((SUMIF('4 - Species Breakdown'!$C$31:$C$1028,'3 - Land Summary'!C66,'4 - Species Breakdown'!$K$31:$K$1028))=0,\"\",SUMIF('4 - Species Breakdown'!$C$31:$C$1028,'3 - Land Summary'!C66,'4 - Species Breakdown'!$K$31:$K$1028))","v":""},{"$f":"_xlfn.TEXTJOIN(\"|\",TRUE,IF('4 - Species Breakdown'!$C$31:$C$1028=C63,'4 - Species Breakdown'!$D$31:$D$1028,\"\"))","v":""},{"$f":"_xlfn.TEXTJOIN(\"|\",TRUE,IF('4 - Species Breakdown'!$C$31:$C$1028=C63,'4 - Species Breakdown'!$F$31:$F$1028,\"\"))","v":""},{"$f":"_xlfn.TEXTJOIN(\"|\",TRUE,IF('4 - Species Breakdown'!$C$31:$C$1028=C63,'4 - Species Breakdown'!$G$31:$G$1028,\"\"))","v":""},{"$f":"IF((SUMIF('4 - Species Breakdown'!$AD$31:$AD$1028,'5 - Composition & ACs'!C63,'4 - Species Breakdown'!$AF$31:$AF$1028))=0,\"\",SUMIF('4 - Species Breakdown'!$AD$31:$AD$1028,'5 - Composition & ACs'!C63,'4 - Species Breakdown'!$AF$31:$AF$1028))","v":""},{"$f":"_xlfn.TEXTJOIN(\"|\",TRUE,IF('4 - Species Breakdown'!$AD$31:$AD$1028=C63,'4 - Species Breakdown'!$AE$31:$AE$1028,\"\"))","v":""}]
[null,{"$f":"IF('3 - Land Summary'!B67=0,\"\",'3 - Land Summary'!B67)","v":""},{"$f":"IF('3 - Land Summary'!C67=0,\" \",'3 - Land Summary'!C67)","v":" "},{"$f":"IF('3 - Land Summary'!D67=0,\"\",'3 - Land Summary'!D67)","v":""},{"$f":"IF('3 - Land Summary'!F67=0,\"\",'3 - Land Summary'!F67)","v":""},{"$f":"IF('3 - Land Summary'!G67=0,\"\",'3 - Land Summary'!G67)","v":""},{"$f":"IF('3 - Land Summary'!I67=0,\"\",'3 - Land Summary'!I67)","v":""},{"$f":"IF((SUMIF('4 - Species Breakdown'!$C$31:$C$1028,'3 - Land Summary'!C67,'4 - Species Breakdown'!$K$31:$K$1028))=0,\"\",SUMIF('4 - Species Breakdown'!$C$31:$C$1028,'3 - Land Summary'!C67,'4 - Species Breakdown'!$K$31:$K$1028))","v":""},{"$f":"_xlfn.TEXTJOIN(\"|\",TRUE,IF('4 - Species Breakdown'!$C$31:$C$1028=C64,'4 - Species Breakdown'!$D$31:$D$1028,\"\"))","v":""},{"$f":"_xlfn.TEXTJOIN(\"|\",TRUE,IF('4 - Species Breakdown'!$C$31:$C$1028=C64,'4 - Species Breakdown'!$F$31:$F$1028,\"\"))","v":""},{"$f":"_xlfn.TEXTJOIN(\"|\",TRUE,IF('4 - Species Breakdown'!$C$31:$C$1028=C64,'4 - Species Breakdown'!$G$31:$G$1028,\"\"))","v":""},{"$f":"IF((SUMIF('4 - Species Breakdown'!$AD$31:$AD$1028,'5 - Composition & ACs'!C64,'4 - Species Breakdown'!$AF$31:$AF$1028))=0,\"\",SUMIF('4 - Species Breakdown'!$AD$31:$AD$1028,'5 - Composition & ACs'!C64,'4 - Species Breakdown'!$AF$31:$AF$1028))","v":""},{"$f":"_xlfn.TEXTJOIN(\"|\",TRUE,IF('4 - Species Breakdown'!$AD$31:$AD$1028=C64,'4 - Species Breakdown'!$AE$31:$AE$1028,\"\"))","v":""}]
[null,{"$f":"IF('3 - Land Summary'!B68=0,\"\",'3 - Land Summary'!B68)","v":""},{"$f":"IF('3 - Land Summary'!C68=0,\" \",'3 - Land Summary'!C68)","v":" "},{"$f":"IF('3 - Land Summary'!D68=0,\"\",'3 - Land Summary'!D68)","v":""},{"$f":"IF('3 - Land Summary'!F68=0,\"\",'3 - Land Summary'!F68)","v":""},{"$f":"IF('3 - Land Summary'!G68=0,\"\",'3 - Land Summary'!G68)","v":""},{"$f":"IF('3 - Land Summary'!I68=0,\"\",'3 - Land Summary'!I68)","v":""},{"$f":"IF((SUMIF('4 - Species Breakdown'!$C$31:$C$1028,'3 - Land Summary'!C68,'4 - Species Breakdown'!$K$31:$K$1028))=0,\"\",SUMIF('4 - Species Breakdown'!$C$31:$C$1028,'3 - Land Summary'!C68,'4 - Species Breakdown'!$K$31:$K$1028))","v":""},{"$f":"_xlfn.TEXTJOIN(\"|\",TRUE,IF('4 - Species Breakdown'!$C$31:$C$1028=C65,'4 - Species Breakdown'!$D$31:$D$1028,\"\"))","v":""},{"$f":"_xlfn.TEXTJOIN(\"|\",TRUE,IF('4 - Species Breakdown'!$C$31:$C$1028=C65,'4 - Species Breakdown'!$F$31:$F$1028,\"\"))","v":""},{"$f":"_xlfn.TEXTJOIN(\"|\",TRUE,IF('4 - Species Breakdown'!$C$31:$C$1028=C65,'4 - Species Breakdown'!$G$31:$G$1028,\"\"))","v":""},{"$f":"IF((SUMIF('4 - Species Breakdown'!$AD$31:$AD$1028,'5 - Composition & ACs'!C65,'4 - Species Breakdown'!$AF$31:$AF$1028))=0,\"\",SUMIF('4 - Species Breakdown'!$AD$31:$AD$1028,'5 - Composition & ACs'!C65,'4 - Species Breakdown'!$AF$31:$AF$1028))","v":""},{"$f":"_xlfn.TEXTJOIN(\"|\",TRUE,IF('4 - Species Breakdown'!$AD$31:$AD$1028=C65,'4 - Species Breakdown'!$AE$31:$AE$1028,\"\"))","v":""}]
[null,{"$f":"IF('3 - Land Summary'!B69=0,\"\",'3 - Land Summary'!B69)","v":""},{"$f":"IF('3 - Land Summary'!C69=0,\" \",'3 - Land Summary'!C69)","v":" "},{"$f":"IF('3 - Land Summary'!D69=0,\"\",'3 - Land Summary'!D69)","v":""},{"$f":"IF('3 - Land Summary'!F69=0,\"\",'3 - Land Summary'!F69)","v":""},{"$f":"IF('3 - Land Summary'!G69=0,\"\",'3 - Land Summary'!G69)","v":""},{"$f":"IF('3 - Land Summary'!I69=0,\"\",'3 - Land Summary'!I69)","v":""},{"$f":"IF((SUMIF('4 - Species Breakdown'!$C$31:$C$1028,'3 - Land Summary'!C69,'4 - Species Breakdown'!$K$31:$K$1028))=0,\"\",SUMIF('4 - Species Breakdown'!$C$31:$C$1028,'3 - Land Summary'!C69,'4 - Species Breakdown'!$K$31:$K$1028))","v":""},{"$f":"_xlfn.TEXTJOIN(\"|\",TRUE,IF('4 - Species Breakdown'!$C$31:$C$1028=C66,'4 - Species Breakdown'!$D$31:$D$1028,\"\"))","v":""},{"$f":"_xlfn.TEXTJOIN(\"|\",TRUE,IF('4 - Species Breakdown'!$C$31:$C$1028=C66,'4 - Species Breakdown'!$F$31:$F$1028,\"\"))","v":""},{"$f":"_xlfn.TEXTJOIN(\"|\",TRUE,IF('4 - Species Breakdown'!$C$31:$C$1028=C66,'4 - Species Breakdown'!$G$31:$G$1028,\"\"))","v":""},{"$f":"IF((SUMIF('4 - Species Breakdown'!$AD$31:$AD$1028,'5 - Composition & ACs'!C66,'4 - Species Breakdown'!$AF$31:$AF$1028))=0,\"\",SUMIF('4 - Species Breakdown'!$AD$31:$AD$1028,'5 - Composition & ACs'!C66,'4 - Species Breakdown'!$AF$31:$AF$1028))","v":""},{"$f":"_xlfn.TEXTJOIN(\"|\",TRUE,IF('4 - Species Breakdown'!$AD$31:$AD$1028=C66,'4 - Species Breakdown'!$AE$31:$AE$1028,\"\"))","v":""}]
[null,{"$f":"IF('3 - Land Summary'!B70=0,\"\",'3 - Land Summary'!B70)","v":""},{"$f":"IF('3 - Land Summary'!C70=0,\" \",'3 - Land Summary'!C70)","v":" "},{"$f":"IF('3 - Land Summary'!D70=0,\"\",'3 - Land Summary'!D70)","v":""},{"$f":"IF('3 - Land Summary'!F70=0,\"\",'3 - Land Summary'!F70)","v":""},{"$f":"IF('3 - Land Summary'!G70=0,\"\",'3 - Land Summary'!G70)","v":""},{"$f":"IF('3 - Land Summary'!I70=0,\"\",'3 - Land Summary'!I70)","v":""},{"$f":"IF((SUMIF('4 - Species Breakdown'!$C$31:$C$1028,'3 - Land Summary'!C70,'4 - Species Breakdown'!$K$31:$K$1028))=0,\"\",SUMIF('4 - Species Breakdown'!$C$31:$C$1028,'3 - Land Summary'!C70,'4 - Species Breakdown'!$K$31:$K$1028))","v":""},{"$f":"_xlfn.TEXTJOIN(\"|\",TRUE,IF('4 - Species Breakdown'!$C$31:$C$1028=C67,'4 - Species Breakdown'!$D$31:$D$1028,\"\"))","v":""},{"$f":"_xlfn.TEXTJOIN(\"|\",TRUE,IF('4 - Species Breakdown'!$C$31:$C$1028=C67,'4 - Species Breakdown'!$F$31:$F$1028,\"\"))","v":""},{"$f":"_xlfn.TEXTJOIN(\"|\",TRUE,IF('4 - Species Breakdown'!$C$31:$C$1028=C67,'4 - Species Breakdown'!$G$31:$G$1028,\"\"))","v":""},{"$f":"IF((SUMIF('4 - Species Breakdown'!$AD$31:$AD$1028,'5 - Composition & ACs'!C67,'4 - Species Breakdown'!$AF$31:$AF$1028))=0,\"\",SUMIF('4 - Species Breakdown'!$AD$31:$AD$1028,'5 - Composition & ACs'!C67,'4 - Species Breakdown'!$AF$31:$AF$1028))","v":""},{"$f":"_xlfn.TEXTJOIN(\"|\",TRUE,IF('4 - Species Breakdown'!$AD$31:$AD$1028=C67,'4 - Species Breakdown'!$AE$31:$AE$1028,\"\"))","v":""}]
[null,{"$f":"IF('3 - Land Summary'!B71=0,\"\",'3 - Land Summary'!B71)","v":""},{"$f":"IF('3 - Land Summary'!C71=0,\" \",'3 - Land Summary'!C71)","v":" "},{"$f":"IF('3 - Land Summary'!D71=0,\"\",'3 - Land Summary'!D71)","v":""},{"$f":"IF('3 - Land Summary'!F71=0,\"\",'3 - Land Summary'!F71)","v":""},{"$f":"IF('3 - Land Summary'!G71=0,\"\",'3 - Land Summary'!G71)","v":""},{"$f":"IF('3 - Land Summary'!I71=0,\"\",'3 - Land Summary'!I71)","v":""},{"$f":"IF((SUMIF('4 - Species Breakdown'!$C$31:$C$1028,'3 - Land Summary'!C71,'4 - Species Breakdown'!$K$31:$K$1028))=0,\"\",SUMIF('4 - Species Breakdown'!$C$31:$C$1028,'3 - Land Summary'!C71,'4 - Species Breakdown'!$K$31:$K$1028))","v":""},{"$f":"_xlfn.TEXTJOIN(\"|\",TRUE,IF('4 - Species Breakdown'!$C$31:$C$1028=C68,'4 - Species Breakdown'!$D$31:$D$1028,\"\"))","v":""},{"$f":"_xlfn.TEXTJOIN(\"|\",TRUE,IF('4 - Species Breakdown'!$C$31:$C$1028=C68,'4 - Species Breakdown'!$F$31:$F$1028,\"\"))","v":""},{"$f":"_xlfn.TEXTJOIN(\"|\",TRUE,IF('4 - Species Breakdown'!$C$31:$C$1028=C68,'4 - Species Breakdown'!$G$31:$G$1028,\"\"))","v":""},{"$f":"IF((SUMIF('4 - Species Breakdown'!$AD$31:$AD$1028,'5 - Composition & ACs'!C68,'4 - Species Breakdown'!$AF$31:$AF$1028))=0,\"\",SUMIF('4 - Species Breakdown'!$AD$31:$AD$1028,'5 - Composition & ACs'!C68,'4 - Species Breakdown'!$AF$31:$AF$1028))","v":""},{"$f":"_xlfn.TEXTJOIN(\"|\",TRUE,IF('4 - Species Breakdown'!$AD$31:$AD$1028=C68,'4 - Species Breakdown'!$AE$31:$AE$1028,\"\"))","v":""}]
[null,{"$f":"IF('3 - Land Summary'!B72=0,\"\",'3 - Land Summary'!B72)","v":""},{"$f":"IF('3 - Land Summary'!C72=0,\" \",'3 - Land Summary'!C72)","v":" "},{"$f":"IF('3 - Land Summary'!D72=0,\"\",'3 - Land Summary'!D72)","v":""},{"$f":"IF('3 - Land Summary'!F72=0,\"\",'3 - Land Summary'!F72)","v":""},{"$f":"IF('3 - Land Summary'!G72=0,\"\",'3 - Land Summary'!G72)","v":""},{"$f":"IF('3 - Land Summary'!I72=0,\"\",'3 - Land Summary'!I72)","v":""},{"$f":"IF((SUMIF('4 - Species Breakdown'!$C$31:$C$1028,'3 - Land Summary'!C72,'4 - Species Breakdown'!$K$31:$K$1028))=0,\"\",SUMIF('4 - Species Breakdown'!$C$31:$C$1028,'3 - Land Summary'!C72,'4 - Species Breakdown'!$K$31:$K$1028))","v":""},{"$f":"_xlfn.TEXTJOIN(\"|\",TRUE,IF('4 - Species Breakdown'!$C$31:$C$1028=C69,'4 - Species Breakdown'!$D$31:$D$1028,\"\"))","v":""},{"$f":"_xlfn.TEXTJOIN(\"|\",TRUE,IF('4 - Species Breakdown'!$C$31:$C$1028=C69,'4 - Species Breakdown'!$F$31:$F$1028,\"\"))","v":""},{"$f":"_xlfn.TEXTJOIN(\"|\",TRUE,IF('4 - Species Breakdown'!$C$31:$C$1028=C69,'4 - Species Breakdown'!$G$31:$G$1028,\"\"))","v":""},{"$f":"IF((SUMIF('4 - Species Breakdown'!$AD$31:$AD$1028,'5 - Composition & ACs'!C69,'4 - Species Breakdown'!$AF$31:$AF$1028))=0,\"\",SUMIF('4 - Species Breakdown'!$AD$31:$AD$1028,'5 - Composition & ACs'!C69,'4 - Species Breakdown'!$AF$31:$AF$1028))","v":""},{"$f":"_xlfn.TEXTJOIN(\"|\",TRUE,IF('4 - Species Breakdown'!$AD$31:$AD$1028=C69,'4 - Species Breakdown'!$AE$31:$AE$1028,\"\"))","v":""}]
[null,{"$f":"IF('3 - Land Summary'!B73=0,\"\",'3 - Land Summary'!B73)","v":""},{"$f":"IF('3 - Land Summary'!C73=0,\" \",'3 - Land Summary'!C73)","v":" "},{"$f":"IF('3 - Land Summary'!D73=0,\"\",'3 - Land Summary'!D73)","v":""},{"$f":"IF('3 - Land Summary'!F73=0,\"\",'3 - Land Summary'!F73)","v":""},{"$f":"IF('3 - Land Summary'!G73=0,\"\",'3 - Land Summary'!G73)","v":""},{"$f":"IF('3 - Land Summary'!I73=0,\"\",'3 - Land Summary'!I73)","v":""},{"$f":"IF((SUMIF('4 - Species Breakdown'!$C$31:$C$1028,'3 - Land Summary'!C73,'4 - Species Breakdown'!$K$31:$K$1028))=0,\"\",SUMIF('4 - Species Breakdown'!$C$31:$C$1028,'3 - Land Summary'!C73,'4 - Species Breakdown'!$K$31:$K$1028))","v":""},{"$f":"_xlfn.TEXTJOIN(\"|\",TRUE,IF('4 - Species Breakdown'!$C$31:$C$1028=C70,'4 - Species Breakdown'!$D$31:$D$1028,\"\"))","v":""},{"$f":"_xlfn.TEXTJOIN(\"|\",TRUE,IF('4 - Species Breakdown'!$C$31:$C$1028=C70,'4 - Species Breakdown'!$F$31:$F$1028,\"\"))","v":""},{"$f":"_xlfn.TEXTJOIN(\"|\",TRUE,IF('4 - Species Breakdown'!$C$31:$C$1028=C70,'4 - Species Breakdown'!$G$31:$G$1028,\"\"))","v":""},{"$f":"IF((SUMIF('4 - Species Breakdown'!$AD$31:$AD$1028,'5 - Composition & ACs'!C70,'4 - Species Breakdown'!$AF$31:$AF$1028))=0,\"\",SUMIF('4 - Species Breakdown'!$AD$31:$AD$1028,'5 - Composition & ACs'!C70,'4 - Species Breakdown'!$AF$31:$AF$1028))","v":""},{"$f":"_xlfn.TEXTJOIN(\"|\",TRUE,IF('4 - Species Breakdown'!$AD$31:$AD$1028=C70,'4 - Species Breakdown'!$AE$31:$AE$1028,\"\"))","v":""}]
[null,{"$f":"IF('3 - Land Summary'!B74=0,\"\",'3 - Land Summary'!B74)","v":""},{"$f":"IF('3 - Land Summary'!C74=0,\" \",'3 - Land Summary'!C74)","v":" "},{"$f":"IF('3 - Land Summary'!D74=0,\"\",'3 - Land Summary'!D74)","v":""},{"$f":"IF('3 - Land Summary'!F74=0,\"\",'3 - Land Summary'!F74)","v":""},{"$f":"IF('3 - Land Summary'!G74=0,\"\",'3 - Land Summary'!G74)","v":""},{"$f":"IF('3 - Land Summary'!I74=0,\"\",'3 - Land Summary'!I74)","v":""},{"$f":"IF((SUMIF('4 - Species Breakdown'!$C$31:$C$1028,'3 - Land Summary'!C74,'4 - Species Breakdown'!$K$31:$K$1028))=0,\"\",SUMIF('4 - Species Breakdown'!$C$31:$C$1028,'3 - Land Summary'!C74,'4 - Species Breakdown'!$K$31:$K$1028))","v":""},{"$f":"_xlfn.TEXTJOIN(\"|\",TRUE,IF('4 - Species Breakdown'!$C$31:$C$1028=C71,'4 - Species Breakdown'!$D$31:$D$1028,\"\"))","v":""},{"$f":"_xlfn.TEXTJOIN(\"|\",TRUE,IF('4 - Species Breakdown'!$C$31:$C$1028=C71,'4 - Species Breakdown'!$F$31:$F$1028,\"\"))","v":""},{"$f":"_xlfn.TEXTJOIN(\"|\",TRUE,IF('4 - Species Breakdown'!$C$31:$C$1028=C71,'4 - Species Breakdown'!$G$31:$G$1028,\"\"))","v":""},{"$f":"IF((SUMIF('4 - Species Breakdown'!$AD$31:$AD$1028,'5 - Composition & ACs'!C71,'4 - Species Breakdown'!$AF$31:$AF$1028))=0,\"\",SUMIF('4 - Species Breakdown'!$AD$31:$AD$1028,'5 - Composition & ACs'!C71,'4 - Species Breakdown'!$AF$31:$AF$1028))","v":""},{"$f":"_xlfn.TEXTJOIN(\"|\",TRUE,IF('4 - Species Breakdown'!$AD$31:$AD$1028=C71,'4 - Species Breakdown'!$AE$31:$AE$1028,\"\"))","v":""}]
[null,{"$f":"IF('3 - Land Summary'!B75=0,\"\",'3 - Land Summary'!B75)","v":""},{"$f":"IF('3 - Land Summary'!C75=0,\" \",'3 - Land Summary'!C75)","v":" "},{"$f":"IF('3 - Land Summary'!D75=0,\"\",'3 - Land Summary'!D75)","v":""},{"$f":"IF('3 - Land Summary'!F75=0,\"\",'3 - Land Summary'!F75)","v":""},{"$f":"IF('3 - Land Summary'!G75=0,\"\",'3 - Land Summary'!G75)","v":""},{"$f":"IF('3 - Land Summary'!I75=0,\"\",'3 - Land Summary'!I75)","v":""},{"$f":"IF((SUMIF('4 - Species Breakdown'!$C$31:$C$1028,'3 - Land Summary'!C75,'4 - Species Breakdown'!$K$31:$K$1028))=0,\"\",SUMIF('4 - Species Breakdown'!$C$31:$C$1028,'3 - Land Summary'!C75,'4 - Species Breakdown'!$K$31:$K$1028))","v":""},{"$f":"_xlfn.TEXTJOIN(\"|\",TRUE,IF('4 - Species Breakdown'!$C$31:$C$1028=C72,'4 - Species Breakdown'!$D$31:$D$1028,\"\"))","v":""},{"$f":"_xlfn.TEXTJOIN(\"|\",TRUE,IF('4 - Species Breakdown'!$C$31:$C$1028=C72,'4 - Species Breakdown'!$F$31:$F$1028,\"\"))","v":""},{"$f":"_xlfn.TEXTJOIN(\"|\",TRUE,IF('4 - Species Breakdown'!$C$31:$C$1028=C72,'4 - Species Breakdown'!$G$31:$G$1028,\"\"))","v":""},{"$f":"IF((SUMIF('4 - Species Breakdown'!$AD$31:$AD$1028,'5 - Composition & ACs'!C72,'4 - Species Breakdown'!$AF$31:$AF$1028))=0,\"\",SUMIF('4 - Species Breakdown'!$AD$31:$AD$1028,'5 - Composition & ACs'!C72,'4 - Species Breakdown'!$AF$31:$AF$1028))","v":""},{"$f":"_xlfn.TEXTJOIN(\"|\",TRUE,IF('4 - Species Breakdown'!$AD$31:$AD$1028=C72,'4 - Species Breakdown'!$AE$31:$AE$1028,\"\"))","v":""}]
[null,{"$f":"IF('3 - Land Summary'!B76=0,\"\",'3 - Land Summary'!B76)","v":""},{"$f":"IF('3 - Land Summary'!C76=0,\" \",'3 - Land Summary'!C76)","v":" "},{"$f":"IF('3 - Land Summary'!D76=0,\"\",'3 - Land Summary'!D76)","v":""},{"$f":"IF('3 - Land Summary'!F76=0,\"\",'3 - Land Summary'!F76)","v":""},{"$f":"IF('3 - Land Summary'!G76=0,\"\",'3 - Land Summary'!G76)","v":""},{"$f":"IF('3 - Land Summary'!I76=0,\"\",'3 - Land Summary'!I76)","v":""},{"$f":"IF((SUMIF('4 - Species Breakdown'!$C$31:$C$1028,'3 - Land Summary'!C76,'4 - Species Breakdown'!$K$31:$K$1028))=0,\"\",SUMIF('4 - Species Breakdown'!$C$31:$C$1028,'3 - Land Summary'!C76,'4 - Species Breakdown'!$K$31:$K$1028))","v":""},{"$f":"_xlfn.TEXTJOIN(\"|\",TRUE,IF('4 - Species Breakdown'!$C$31:$C$1028=C73,'4 - Species Breakdown'!$D$31:$D$1028,\"\"))","v":""},{"$f":"_xlfn.TEXTJOIN(\"|\",TRUE,IF('4 - Species Breakdown'!$C$31:$C$1028=C73,'4 - Species Breakdown'!$F$31:$F$1028,\"\"))","v":""},{"$f":"_xlfn.TEXTJOIN(\"|\",TRUE,IF('4 - Species Breakdown'!$C$31:$C$1028=C73,'4 - Species Breakdown'!$G$31:$G$1028,\"\"))","v":""},{"$f":"IF((SUMIF('4 - Species Breakdown'!$AD$31:$AD$1028,'5 - Composition & ACs'!C73,'4 - Species Breakdown'!$AF$31:$AF$1028))=0,\"\",SUMIF('4 - Species Breakdown'!$AD$31:$AD$1028,'5 - Composition & ACs'!C73,'4 - Species Breakdown'!$AF$31:$AF$1028))","v":""},{"$f":"_xlfn.TEXTJOIN(\"|\",TRUE,IF('4 - Species Breakdown'!$AD$31:$AD$1028=C73,'4 - Species Breakdown'!$AE$31:$AE$1028,\"\"))","v":""}]
[null,{"$f":"IF('3 - Land Summary'!B77=0,\"\",'3 - Land Summary'!B77)","v":""},{"$f":"IF('3 - Land Summary'!C77=0,\" \",'3 - Land Summary'!C77)","v":" "},{"$f":"IF('3 - Land Summary'!D77=0,\"\",'3 - Land Summary'!D77)","v":""},{"$f":"IF('3 - Land Summary'!F77=0,\"\",'3 - Land Summary'!F77)","v":""},{"$f":"IF('3 - Land Summary'!G77=0,\"\",'3 - Land Summary'!G77)","v":""},{"$f":"IF('3 - Land Summary'!I77=0,\"\",'3 - Land Summary'!I77)","v":""},{"$f":"IF((SUMIF('4 - Species Breakdown'!$C$31:$C$1028,'3 - Land Summary'!C77,'4 - Species Breakdown'!$K$31:$K$1028))=0,\"\",SUMIF('4 - Species Breakdown'!$C$31:$C$1028,'3 - Land Summary'!C77,'4 - Species Breakdown'!$K$31:$K$1028))","v":""},{"$f":"_xlfn.TEXTJOIN(\"|\",TRUE,IF('4 - Species Breakdown'!$C$31:$C$1028=C74,'4 - Species Breakdown'!$D$31:$D$1028,\"\"))","v":""},{"$f":"_xlfn.TEXTJOIN(\"|\",TRUE,IF('4 - Species Breakdown'!$C$31:$C$1028=C74,'4 - Species Breakdown'!$F$31:$F$1028,\"\"))","v":""},{"$f":"_xlfn.TEXTJOIN(\"|\",TRUE,IF('4 - Species Breakdown'!$C$31:$C$1028=C74,'4 - Species Breakdown'!$G$31:$G$1028,\"\"))","v":""},{"$f":"IF((SUMIF('4 - Species Breakdown'!$AD$31:$AD$1028,'5 - Composition & ACs'!C74,'4 - Species Breakdown'!$AF$31:$AF$1028))=0,\"\",SUMIF('4 - Species Breakdown'!$AD$31:$AD$1028,'5 - Composition & ACs'!C74,'4 - Species Breakdown'!$AF$31:$AF$1028))","v":""},{"$f":"_xlfn.TEXTJOIN(\"|\",TRUE,IF('4 - Species Breakdown'!$AD$31:$AD$1028=C74,'4 - Species Breakdown'!$AE$31:$AE$1028,\"\"))","v":""}]
[null,{"$f":"IF('3 - Land Summary'!B78=0,\"\",'3 - Land Summary'!B78)","v":""},{"$f":"IF('3 - Land Summary'!C78=0,\" \",'3 - Land Summary'!C78)","v":" "},{"$f":"IF('3 - Land Summary'!D78=0,\"\",'3 - Land Summary'!D78)","v":""},{"$f":"IF('3 - Land Summary'!F78=0,\"\",'3 - Land Summary'!F78)","v":""},{"$f":"IF('3 - Land Summary'!G78=0,\"\",'3 - Land Summary'!G78)","v":""},{"$f":"IF('3 - Land Summary'!I78=0,\"\",'3 - Land Summary'!I78)","v":""},{"$f":"IF((SUMIF('4 - Species Breakdown'!$C$31:$C$1028,'3 - Land Summary'!C78,'4 - Species Breakdown'!$K$31:$K$1028))=0,\"\",SUMIF('4 - Species Breakdown'!$C$31:$C$1028,'3 - Land Summary'!C78,'4 - Species Breakdown'!$K$31:$K$1028))","v":""},{"$f":"_xlfn.TEXTJOIN(\"|\",TRUE,IF('4 - Species Breakdown'!$C$31:$C$1028=C75,'4 - Species Breakdown'!$D$31:$D$1028,\"\"))","v":""},{"$f":"_xlfn.TEXTJOIN(\"|\",TRUE,IF('4 - Species Breakdown'!$C$31:$C$1028=C75,'4 - Species Breakdown'!$F$31:$F$1028,\"\"))","v":""},{"$f":"_xlfn.TEXTJOIN(\"|\",TRUE,IF('4 - Species Breakdown'!$C$31:$C$1028=C75,'4 - Species Breakdown'!$G$31:$G$1028,\"\"))","v":""},{"$f":"IF((SUMIF('4 - Species Breakdown'!$AD$31:$AD$1028,'5 - Composition & ACs'!C75,'4 - Species Breakdown'!$AF$31:$AF$1028))=0,\"\",SUMIF('4 - Species Breakdown'!$AD$31:$AD$1028,'5 - Composition & ACs'!C75,'4 - Species Breakdown'!$AF$31:$AF$1028))","v":""},{"$f":"_xlfn.TEXTJOIN(\"|\",TRUE,IF('4 - Species Breakdown'!$AD$31:$AD$1028=C75,'4 - Species Breakdown'!$AE$31:$AE$1028,\"\"))","v":""}]
[null,{"$f":"IF('3 - Land Summary'!B79=0,\"\",'3 - Land Summary'!B79)","v":""},{"$f":"IF('3 - Land Summary'!C79=0,\" \",'3 - Land Summary'!C79)","v":" "},{"$f":"IF('3 - Land Summary'!D79=0,\"\",'3 - Land Summary'!D79)","v":""},{"$f":"IF('3 - Land Summary'!F79=0,\"\",'3 - Land Summary'!F79)","v":""},{"$f":"IF('3 - Land Summary'!G79=0,\"\",'3 - Land Summary'!G79)","v":""},{"$f":"IF('3 - Land Summary'!I79=0,\"\",'3 - Land Summary'!I79)","v":""},{"$f":"IF((SUMIF('4 - Species Breakdown'!$C$31:$C$1028,'3 - Land Summary'!C79,'4 - Species Breakdown'!$K$31:$K$1028))=0,\"\",SUMIF('4 - Species Breakdown'!$C$31:$C$1028,'3 - Land Summary'!C79,'4 - Species Breakdown'!$K$31:$K$1028))","v":""},{"$f":"_xlfn.TEXTJOIN(\"|\",TRUE,IF('4 - Species Breakdown'!$C$31:$C$1028=C76,'4 - Species Breakdown'!$D$31:$D$1028,\"\"))","v":""},{"$f":"_xlfn.TEXTJOIN(\"|\",TRUE,IF('4 - Species Breakdown'!$C$31:$C$1028=C76,'4 - Species Breakdown'!$F$31:$F$1028,\"\"))","v":""},{"$f":"_xlfn.TEXTJOIN(\"|\",TRUE,IF('4 - Species Breakdown'!$C$31:$C$1028=C76,'4 - Species Breakdown'!$G$31:$G$1028,\"\"))","v":""},{"$f":"IF((SUMIF('4 - Species Breakdown'!$AD$31:$AD$1028,'5 - Composition & ACs'!C76,'4 - Species Breakdown'!$AF$31:$AF$1028))=0,\"\",SUMIF('4 - Species Breakdown'!$AD$31:$AD$1028,'5 - Composition & ACs'!C76,'4 - Species Breakdown'!$AF$31:$AF$1028))","v":""},{"$f":"_xlfn.TEXTJOIN(\"|\",TRUE,IF('4 - Species Breakdown'!$AD$31:$AD$1028=C76,'4 - Species Breakdown'!$AE$31:$AE$1028,\"\"))","v":""}]
[null,{"$f":"IF('3 - Land Summary'!B80=0,\"\",'3 - Land Summary'!B80)","v":""},{"$f":"IF('3 - Land Summary'!C80=0,\" \",'3 - Land Summary'!C80)","v":" "},{"$f":"IF('3 - Land Summary'!D80=0,\"\",'3 - Land Summary'!D80)","v":""},{"$f":"IF('3 - Land Summary'!F80=0,\"\",'3 - Land Summary'!F80)","v":""},{"$f":"IF('3 - Land Summary'!G80=0,\"\",'3 - Land Summary'!G80)","v":""},{"$f":"IF('3 - Land Summary'!I80=0,\"\",'3 - Land Summary'!I80)","v":""},{"$f":"IF((SUMIF('4 - Species Breakdown'!$C$31:$C$1028,'3 - Land Summary'!C80,'4 - Species Breakdown'!$K$31:$K$1028))=0,\"\",SUMIF('4 - Species Breakdown'!$C$31:$C$1028,'3 - Land Summary'!C80,'4 - Species Breakdown'!$K$31:$K$1028))","v":""},{"$f":"_xlfn.TEXTJOIN(\"|\",TRUE,IF('4 - Species Breakdown'!$C$31:$C$1028=C77,'4 - Species Breakdown'!$D$31:$D$1028,\"\"))","v":""},{"$f":"_xlfn.TEXTJOIN(\"|\",TRUE,IF('4 - Species Breakdown'!$C$31:$C$1028=C77,'4 - Species Breakdown'!$F$31:$F$1028,\"\"))","v":""},{"$f":"_xlfn.TEXTJOIN(\"|\",TRUE,IF('4 - Species Breakdown'!$C$31:$C$1028=C77,'4 - Species Breakdown'!$G$31:$G$1028,\"\"))","v":""},{"$f":"IF((SUMIF('4 - Species Breakdown'!$AD$31:$AD$1028,'5 - Composition & ACs'!C77,'4 - Species Breakdown'!$AF$31:$AF$1028))=0,\"\",SUMIF('4 - Species Breakdown'!$AD$31:$AD$1028,'5 - Composition & ACs'!C77,'4 - Species Breakdown'!$AF$31:$AF$1028))","v":""},{"$f":"_xlfn.TEXTJOIN(\"|\",TRUE,IF('4 - Species Breakdown'!$AD$31:$AD$1028=C77,'4 - Species Breakdown'!$AE$31:$AE$1028,\"\"))","v":""}]
[null,{"$f":"IF('3 - Land Summary'!B81=0,\"\",'3 - Land Summary'!B81)","v":""},{"$f":"IF('3 - Land Summary'!C81=0,\" \",'3 - Land Summary'!C81)","v":" "},{"$f":"IF('3 - Land Summary'!D81=0,\"\",'3 - Land Summary'!D81)","v":""},{"$f":"IF('3 - Land Summary'!F81=0,\"\",'3 - Land Summary'!F81)","v":""},{"$f":"IF('3 - Land Summary'!G81=0,\"\",'3 - Land Summary'!G81)","v":""},{"$f":"IF('3 - Land Summary'!I81=0,\"\",'3 - Land Summary'!I81)","v":""},{"$f":"IF((SUMIF('4 - Species Breakdown'!$C$31:$C$1028,'3 - Land Summary'!C81,'4 - Species Breakdown'!$K$31:$K$1028))=0,\"\",SUMIF('4 - Species Breakdown'!$C$31:$C$1028,'3 - Land Summary'!C81,'4 - Species Breakdown'!$K$31:$K$1028))","v":""},{"$f":"_xlfn.TEXTJOIN(\"|\",TRUE,IF('4 - Species Breakdown'!$C$31:$C$1028=C78,'4 - Species Breakdown'!$D$31:$D$1028,\"\"))","v":""},{"$f":"_xlfn.TEXTJOIN(\"|\",TRUE,IF('4 - Species Breakdown'!$C$31:$C$1028=C78,'4 - Species Breakdown'!$F$31:$F$1028,\"\"))","v":""},{"$f":"_xlfn.TEXTJOIN(\"|\",TRUE,IF('4 - Species Breakdown'!$C$31:$C$1028=C78,'4 - Species Breakdown'!$G$31:$G$1028,\"\"))","v":""},{"$f":"IF((SUMIF('4 - Species Breakdown'!$AD$31:$AD$1028,'5 - Composition & ACs'!C78,'4 - Species Breakdown'!$AF$31:$AF$1028))=0,\"\",SUMIF('4 - Species Breakdown'!$AD$31:$AD$1028,'5 - Composition & ACs'!C78,'4 - Species Breakdown'!$AF$31:$AF$1028))","v":""},{"$f":"_xlfn.TEXTJOIN(\"|\",TRUE,IF('4 - Species Breakdown'!$AD$31:$AD$1028=C78,'4 - Species Breakdown'!$AE$31:$AE$1028,\"\"))","v":""}]
[null,{"$f":"IF('3 - Land Summary'!B82=0,\"\",'3 - Land Summary'!B82)","v":""},{"$f":"IF('3 - Land Summary'!C82=0,\" \",'3 - Land Summary'!C82)","v":" "},{"$f":"IF('3 - Land Summary'!D82=0,\"\",'3 - Land Summary'!D82)","v":""},{"$f":"IF('3 - Land Summary'!F82=0,\"\",'3 - Land Summary'!F82)","v":""},{"$f":"IF('3 - Land Summary'!G82=0,\"\",'3 - Land Summary'!G82)","v":""},{"$f":"IF('3 - Land Summary'!I82=0,\"\",'3 - Land Summary'!I82)","v":""},{"$f":"IF((SUMIF('4 - Species Breakdown'!$C$31:$C$1028,'3 - Land Summary'!C82,'4 - Species Breakdown'!$K$31:$K$1028))=0,\"\",SUMIF('4 - Species Breakdown'!$C$31:$C$1028,'3 - Land Summary'!C82,'4 - Species Breakdown'!$K$31:$K$1028))","v":""},{"$f":"_xlfn.TEXTJOIN(\"|\",TRUE,IF('4 - Species Breakdown'!$C$31:$C$1028=C79,'4 - Species Breakdown'!$D$31:$D$1028,\"\"))","v":""},{"$f":"_xlfn.TEXTJOIN(\"|\",TRUE,IF('4 - Species Breakdown'!$C$31:$C$1028=C79,'4 - Species Breakdown'!$F$31:$F$1028,\"\"))","v":""},{"$f":"_xlfn.TEXTJOIN(\"|\",TRUE,IF('4 - Species Breakdown'!$C$31:$C$1028=C79,'4 - Species Breakdown'!$G$31:$G$1028,\"\"))","v":""},{"$f":"IF((SUMIF('4 - Species Breakdown'!$AD$31:$AD$1028,'5 - Composition & ACs'!C79,'4 - Species Breakdown'!$AF$31:$AF$1028))=0,\"\",SUMIF('4 - Species Breakdown'!$AD$31:$AD$1028,'5 - Composition & ACs'!C79,'4 - Species Breakdown'!$AF$31:$AF$1028))","v":""},{"$f":"_xlfn.TEXTJOIN(\"|\",TRUE,IF('4 - Species Breakdown'!$AD$31:$AD$1028=C79,'4 - Species Breakdown'!$AE$31:$AE$1028,\"\"))","v":""}]
[null,{"$f":"IF('3 - Land Summary'!B83=0,\"\",'3 - Land Summary'!B83)","v":""},{"$f":"IF('3 - Land Summary'!C83=0,\" \",'3 - Land Summary'!C83)","v":" "},{"$f":"IF('3 - Land Summary'!D83=0,\"\",'3 - Land Summary'!D83)","v":""},{"$f":"IF('3 - Land Summary'!F83=0,\"\",'3 - Land Summary'!F83)","v":""},{"$f":"IF('3 - Land Summary'!G83=0,\"\",'3 - Land Summary'!G83)","v":""},{"$f":"IF('3 - Land Summary'!I83=0,\"\",'3 - Land Summary'!I83)","v":""},{"$f":"IF((SUMIF('4 - Species Breakdown'!$C$31:$C$1028,'3 - Land Summary'!C83,'4 - Species Breakdown'!$K$31:$K$1028))=0,\"\",SUMIF('4 - Species Breakdown'!$C$31:$C$1028,'3 - Land Summary'!C83,'4 - Species Breakdown'!$K$31:$K$1028))","v":""},{"$f":"_xlfn.TEXTJOIN(\"|\",TRUE,IF('4 - Species Breakdown'!$C$31:$C$1028=C80,'4 - Species Breakdown'!$D$31:$D$1028,\"\"))","v":""},{"$f":"_xlfn.TEXTJOIN(\"|\",TRUE,IF('4 - Species Breakdown'!$C$31:$C$1028=C80,'4 - Species Breakdown'!$F$31:$F$1028,\"\"))","v":""},{"$f":"_xlfn.TEXTJOIN(\"|\",TRUE,IF('4 - Species Breakdown'!$C$31:$C$1028=C80,'4 - Species Breakdown'!$G$31:$G$1028,\"\"))","v":""},{"$f":"IF((SUMIF('4 - Species Breakdown'!$AD$31:$AD$1028,'5 - Composition & ACs'!C80,'4 - Species Breakdown'!$AF$31:$AF$1028))=0,\"\",SUMIF('4 - Species Breakdown'!$AD$31:$AD$1028,'5 - Composition & ACs'!C80,'4 - Species Breakdown'!$AF$31:$AF$1028))","v":""},{"$f":"_xlfn.TEXTJOIN(\"|\",TRUE,IF('4 - Species Breakdown'!$AD$31:$AD$1028=C80,'4 - Species Breakdown'!$AE$31:$AE$1028,\"\"))","v":""}]
[null,{"$f":"IF('3 - Land Summary'!B84=0,\"\",'3 - Land Summary'!B84)","v":""},{"$f":"IF('3 - Land Summary'!C84=0,\" \",'3 - Land Summary'!C84)","v":" "},{"$f":"IF('3 - Land Summary'!D84=0,\"\",'3 - Land Summary'!D84)","v":""},{"$f":"IF('3 - Land Summary'!F84=0,\"\",'3 - Land Summary'!F84)","v":""},{"$f":"IF('3 - Land Summary'!G84=0,\"\",'3 - Land Summary'!G84)","v":""},{"$f":"IF('3 - Land Summary'!I84=0,\"\",'3 - Land Summary'!I84)","v":""},{"$f":"IF((SUMIF('4 - Species Breakdown'!$C$31:$C$1028,'3 - Land Summary'!C84,'4 - Species Breakdown'!$K$31:$K$1028))=0,\"\",SUMIF('4 - Species Breakdown'!$C$31:$C$1028,'3 - Land Summary'!C84,'4 - Species Breakdown'!$K$31:$K$1028))","v":""},{"$f":"_xlfn.TEXTJOIN(\"|\",TRUE,IF('4 - Species Breakdown'!$C$31:$C$1028=C81,'4 - Species Breakdown'!$D$31:$D$1028,\"\"))","v":""},{"$f":"_xlfn.TEXTJOIN(\"|\",TRUE,IF('4 - Species Breakdown'!$C$31:$C$1028=C81,'4 - Species Breakdown'!$F$31:$F$1028,\"\"))","v":""},{"$f":"_xlfn.TEXTJOIN(\"|\",TRUE,IF('4 - Species Breakdown'!$C$31:$C$1028=C81,'4 - Species Breakdown'!$G$31:$G$1028,\"\"))","v":""},{"$f":"IF((SUMIF('4 - Species Breakdown'!$AD$31:$AD$1028,'5 - Composition & ACs'!C81,'4 - Species Breakdown'!$AF$31:$AF$1028))=0,\"\",SUMIF('4 - Species Breakdown'!$AD$31:$AD$1028,'5 - Composition & ACs'!C81,'4 - Species Breakdown'!$AF$31:$AF$1028))","v":""},{"$f":"_xlfn.TEXTJOIN(\"|\",TRUE,IF('4 - Species Breakdown'!$AD$31:$AD$1028=C81,'4 - Species Breakdown'!$AE$31:$AE$1028,\"\"))","v":""}]
[null,{"$f":"IF('3 - Land Summary'!B85=0,\"\",'3 - Land Summary'!B85)","v":""},{"$f":"IF('3 - Land Summary'!C85=0,\" \",'3 - Land Summary'!C85)","v":" "},{"$f":"IF('3 - Land Summary'!D85=0,\"\",'3 - Land Summary'!D85)","v":""},{"$f":"IF('3 - Land Summary'!F85=0,\"\",'3 - Land Summary'!F85)","v":""},{"$f":"IF('3 - Land Summary'!G85=0,\"\",'3 - Land Summary'!G85)","v":""},{"$f":"IF('3 - Land Summary'!I85=0,\"\",'3 - Land Summary'!I85)","v":""},{"$f":"IF((SUMIF('4 - Species Breakdown'!$C$31:$C$1028,'3 - Land Summary'!C85,'4 - Species Breakdown'!$K$31:$K$1028))=0,\"\",SUMIF('4 - Species Breakdown'!$C$31:$C$1028,'3 - Land Summary'!C85,'4 - Species Breakdown'!$K$31:$K$1028))","v":""},{"$f":"_xlfn.TEXTJOIN(\"|\",TRUE,IF('4 - Species Breakdown'!$C$31:$C$1028=C82,'4 - Species Breakdown'!$D$31:$D$1028,\"\"))","v":""},{"$f":"_xlfn.TEXTJOIN(\"|\",TRUE,IF('4 - Species Breakdown'!$C$31:$C$1028=C82,'4 - Species Breakdown'!$F$31:$F$1028,\"\"))","v":""},{"$f":"_xlfn.TEXTJOIN(\"|\",TRUE,IF('4 - Species Breakdown'!$C$31:$C$1028=C82,'4 - Species Breakdown'!$G$31:$G$1028,\"\"))","v":""},{"$f":"IF((SUMIF('4 - Species Breakdown'!$AD$31:$AD$1028,'5 - Composition & ACs'!C82,'4 - Species Breakdown'!$AF$31:$AF$1028))=0,\"\",SUMIF('4 - Species Breakdown'!$AD$31:$AD$1028,'5 - Composition & ACs'!C82,'4 - Species Breakdown'!$AF$31:$AF$1028))","v":""},{"$f":"_xlfn.TEXTJOIN(\"|\",TRUE,IF('4 - Species Breakdown'!$AD$31:$AD$1028=C82,'4 - Species Breakdown'!$AE$31:$AE$1028,\"\"))","v":""}]
[null,{"$f":"IF('3 - Land Summary'!B86=0,\"\",'3 - Land Summary'!B86)","v":""},{"$f":"IF('3 - Land Summary'!C86=0,\" \",'3 - Land Summary'!C86)","v":" "},{"$f":"IF('3 - Land Summary'!D86=0,\"\",'3 - Land Summary'!D86)","v":""},{"$f":"IF('3 - Land Summary'!F86=0,\"\",'3 - Land Summary'!F86)","v":""},{"$f":"IF('3 - Land Summary'!G86=0,\"\",'3 - Land Summary'!G86)","v":""},{"$f":"IF('3 - Land Summary'!I86=0,\"\",'3 - Land Summary'!I86)","v":""},{"$f":"IF((SUMIF('4 - Species Breakdown'!$C$31:$C$1028,'3 - Land Summary'!C86,'4 - Species Breakdown'!$K$31:$K$1028))=0,\"\",SUMIF('4 - Species Breakdown'!$C$31:$C$1028,'3 - Land Summary'!C86,'4 - Species Breakdown'!$K$31:$K$1028))","v":""},{"$f":"_xlfn.TEXTJOIN(\"|\",TRUE,IF('4 - Species Breakdown'!$C$31:$C$1028=C83,'4 - Species Breakdown'!$D$31:$D$1028,\"\"))","v":""},{"$f":"_xlfn.TEXTJOIN(\"|\",TRUE,IF('4 - Species Breakdown'!$C$31:$C$1028=C83,'4 - Species Breakdown'!$F$31:$F$1028,\"\"))","v":""},{"$f":"_xlfn.TEXTJOIN(\"|\",TRUE,IF('4 - Species Breakdown'!$C$31:$C$1028=C83,'4 - Species Breakdown'!$G$31:$G$1028,\"\"))","v":""},{"$f":"IF((SUMIF('4 - Species Breakdown'!$AD$31:$AD$1028,'5 - Composition & ACs'!C83,'4 - Species Breakdown'!$AF$31:$AF$1028))=0,\"\",SUMIF('4 - Species Breakdown'!$AD$31:$AD$1028,'5 - Composition & ACs'!C83,'4 - Species Breakdown'!$AF$31:$AF$1028))","v":""},{"$f":"_xlfn.TEXTJOIN(\"|\",TRUE,IF('4 - Species Breakdown'!$AD$31:$AD$1028=C83,'4 - Species Breakdown'!$AE$31:$AE$1028,\"\"))","v":""}]
[null,{"$f":"IF('3 - Land Summary'!B87=0,\"\",'3 - Land Summary'!B87)","v":""},{"$f":"IF('3 - Land Summary'!C87=0,\" \",'3 - Land Summary'!C87)","v":" "},{"$f":"IF('3 - Land Summary'!D87=0,\"\",'3 - Land Summary'!D87)","v":""},{"$f":"IF('3 - Land Summary'!F87=0,\"\",'3 - Land Summary'!F87)","v":""},{"$f":"IF('3 - Land Summary'!G87=0,\"\",'3 - Land Summary'!G87)","v":""},{"$f":"IF('3 - Land Summary'!I87=0,\"\",'3 - Land Summary'!I87)","v":""},{"$f":"IF((SUMIF('4 - Species Breakdown'!$C$31:$C$1028,'3 - Land Summary'!C87,'4 - Species Breakdown'!$K$31:$K$1028))=0,\"\",SUMIF('4 - Species Breakdown'!$C$31:$C$1028,'3 - Land Summary'!C87,'4 - Species Breakdown'!$K$31:$K$1028))","v":""},{"$f":"_xlfn.TEXTJOIN(\"|\",TRUE,IF('4 - Species Breakdown'!$C$31:$C$1028=C84,'4 - Species Breakdown'!$D$31:$D$1028,\"\"))","v":""},{"$f":"_xlfn.TEXTJOIN(\"|\",TRUE,IF('4 - Species Breakdown'!$C$31:$C$1028=C84,'4 - Species Breakdown'!$F$31:$F$1028,\"\"))","v":""},{"$f":"_xlfn.TEXTJOIN(\"|\",TRUE,IF('4 - Species Breakdown'!$C$31:$C$1028=C84,'4 - Species Breakdown'!$G$31:$G$1028,\"\"))","v":""},{"$f":"IF((SUMIF('4 - Species Breakdown'!$AD$31:$AD$1028,'5 - Composition & ACs'!C84,'4 - Species Breakdown'!$AF$31:$AF$1028))=0,\"\",SUMIF('4 - Species Breakdown'!$AD$31:$AD$1028,'5 - Composition & ACs'!C84,'4 - Species Breakdown'!$AF$31:$AF$1028))","v":""},{"$f":"_xlfn.TEXTJOIN(\"|\",TRUE,IF('4 - Species Breakdown'!$AD$31:$AD$1028=C84,'4 - Species Breakdown'!$AE$31:$AE$1028,\"\"))","v":""}]
[null,{"$f":"IF('3 - Land Summary'!B88=0,\"\",'3 - Land Summary'!B88)","v":""},{"$f":"IF('3 - Land Summary'!C88=0,\" \",'3 - Land Summary'!C88)","v":" "},{"$f":"IF('3 - Land Summary'!D88=0,\"\",'3 - Land Summary'!D88)","v":""},{"$f":"IF('3 - Land Summary'!F88=0,\"\",'3 - Land Summary'!F88)","v":""},{"$f":"IF('3 - Land Summary'!G88=0,\"\",'3 - Land Summary'!G88)","v":""},{"$f":"IF('3 - Land Summary'!I88=0,\"\",'3 - Land Summary'!I88)","v":""},{"$f":"IF((SUMIF('4 - Species Breakdown'!$C$31:$C$1028,'3 - Land Summary'!C88,'4 - Species Breakdown'!$K$31:$K$1028))=0,\"\",SUMIF('4 - Species Breakdown'!$C$31:$C$1028,'3 - Land Summary'!C88,'4 - Species Breakdown'!$K$31:$K$1028))","v":""},{"$f":"_xlfn.TEXTJOIN(\"|\",TRUE,IF('4 - Species Breakdown'!$C$31:$C$1028=C85,'4 - Species Breakdown'!$D$31:$D$1028,\"\"))","v":""},{"$f":"_xlfn.TEXTJOIN(\"|\",TRUE,IF('4 - Species Breakdown'!$C$31:$C$1028=C85,'4 - Species Breakdown'!$F$31:$F$1028,\"\"))","v":""},{"$f":"_xlfn.TEXTJOIN(\"|\",TRUE,IF('4 - Species Breakdown'!$C$31:$C$1028=C85,'4 - Species Breakdown'!$G$31:$G$1028,\"\"))","v":""},{"$f":"IF((SUMIF('4 - Species Breakdown'!$AD$31:$AD$1028,'5 - Composition & ACs'!C85,'4 - Species Breakdown'!$AF$31:$AF$1028))=0,\"\",SUMIF('4 - Species Breakdown'!$AD$31:$AD$1028,'5 - Composition & ACs'!C85,'4 - Species Breakdown'!$AF$31:$AF$1028))","v":""},{"$f":"_xlfn.TEXTJOIN(\"|\",TRUE,IF('4 - Species Breakdown'!$AD$31:$AD$1028=C85,'4 - Species Breakdown'!$AE$31:$AE$1028,\"\"))","v":""}]
[null,{"$f":"IF('3 - Land Summary'!B89=0,\"\",'3 - Land Summary'!B89)","v":""},{"$f":"IF('3 - Land Summary'!C89=0,\" \",'3 - Land Summary'!C89)","v":" "},{"$f":"IF('3 - Land Summary'!D89=0,\"\",'3 - Land Summary'!D89)","v":""},{"$f":"IF('3 - Land Summary'!F89=0,\"\",'3 - Land Summary'!F89)","v":""},{"$f":"IF('3 - Land Summary'!G89=0,\"\",'3 - Land Summary'!G89)","v":""},{"$f":"IF('3 - Land Summary'!I89=0,\"\",'3 - Land Summary'!I89)","v":""},{"$f":"IF((SUMIF('4 - Species Breakdown'!$C$31:$C$1028,'3 - Land Summary'!C89,'4 - Species Breakdown'!$K$31:$K$1028))=0,\"\",SUMIF('4 - Species Breakdown'!$C$31:$C$1028,'3 - Land Summary'!C89,'4 - Species Breakdown'!$K$31:$K$1028))","v":""},{"$f":"_xlfn.TEXTJOIN(\"|\",TRUE,IF('4 - Species Breakdown'!$C$31:$C$1028=C86,'4 - Species Breakdown'!$D$31:$D$1028,\"\"))","v":""},{"$f":"_xlfn.TEXTJOIN(\"|\",TRUE,IF('4 - Species Breakdown'!$C$31:$C$1028=C86,'4 - Species Breakdown'!$F$31:$F$1028,\"\"))","v":""},{"$f":"_xlfn.TEXTJOIN(\"|\",TRUE,IF('4 - Species Breakdown'!$C$31:$C$1028=C86,'4 - Species Breakdown'!$G$31:$G$1028,\"\"))","v":""},{"$f":"IF((SUMIF('4 - Species Breakdown'!$AD$31:$AD$1028,'5 - Composition & ACs'!C86,'4 - Species Breakdown'!$AF$31:$AF$1028))=0,\"\",SUMIF('4 - Species Breakdown'!$AD$31:$AD$1028,'5 - Composition & ACs'!C86,'4 - Species Breakdown'!$AF$31:$AF$1028))","v":""},{"$f":"_xlfn.TEXTJOIN(\"|\",TRUE,IF('4 - Species Breakdown'!$AD$31:$AD$1028=C86,'4 - Species Breakdown'!$AE$31:$AE$1028,\"\"))","v":""}]
[null,{"$f":"IF('3 - Land Summary'!B90=0,\"\",'3 - Land Summary'!B90)","v":""},{"$f":"IF('3 - Land Summary'!C90=0,\" \",'3 - Land Summary'!C90)","v":" "},{"$f":"IF('3 - Land Summary'!D90=0,\"\",'3 - Land Summary'!D90)","v":""},{"$f":"IF('3 - Land Summary'!F90=0,\"\",'3 - Land Summary'!F90)","v":""},{"$f":"IF('3 - Land Summary'!G90=0,\"\",'3 - Land Summary'!G90)","v":""},{"$f":"IF('3 - Land Summary'!I90=0,\"\",'3 - Land Summary'!I90)","v":""},{"$f":"IF((SUMIF('4 - Species Breakdown'!$C$31:$C$1028,'3 - Land Summary'!C90,'4 - Species Breakdown'!$K$31:$K$1028))=0,\"\",SUMIF('4 - Species Breakdown'!$C$31:$C$1028,'3 - Land Summary'!C90,'4 - Species Breakdown'!$K$31:$K$1028))","v":""},{"$f":"_xlfn.TEXTJOIN(\"|\",TRUE,IF('4 - Species Breakdown'!$C$31:$C$1028=C87,'4 - Species Breakdown'!$D$31:$D$1028,\"\"))","v":""},{"$f":"_xlfn.TEXTJOIN(\"|\",TRUE,IF('4 - Species Breakdown'!$C$31:$C$1028=C87,'4 - Species Breakdown'!$F$31:$F$1028,\"\"))","v":""},{"$f":"_xlfn.TEXTJOIN(\"|\",TRUE,IF('4 - Species Breakdown'!$C$31:$C$1028=C87,'4 - Species Breakdown'!$G$31:$G$1028,\"\"))","v":""},{"$f":"IF((SUMIF('4 - Species Breakdown'!$AD$31:$AD$1028,'5 - Composition & ACs'!C87,'4 - Species Breakdown'!$AF$31:$AF$1028))=0,\"\",SUMIF('4 - Species Breakdown'!$AD$31:$AD$1028,'5 - Composition & ACs'!C87,'4 - Species Breakdown'!$AF$31:$AF$1028))","v":""},{"$f":"_xlfn.TEXTJOIN(\"|\",TRUE,IF('4 - Species Breakdown'!$AD$31:$AD$1028=C87,'4 - Species Breakdown'!$AE$31:$AE$1028,\"\"))","v":""}]
[null,{"$f":"IF('3 - Land Summary'!B91=0,\"\",'3 - Land Summary'!B91)","v":""},{"$f":"IF('3 - Land Summary'!C91=0,\" \",'3 - Land Summary'!C91)","v":" "},{"$f":"IF('3 - Land Summary'!D91=0,\"\",'3 - Land Summary'!D91)","v":""},{"$f":"IF('3 - Land Summary'!F91=0,\"\",'3 - Land Summary'!F91)","v":""},{"$f":"IF('3 - Land Summary'!G91=0,\"\",'3 - Land Summary'!G91)","v":""},{"$f":"IF('3 - Land Summary'!I91=0,\"\",'3 - Land Summary'!I91)","v":""},{"$f":"IF((SUMIF('4 - Species Breakdown'!$C$31:$C$1028,'3 - Land Summary'!C91,'4 - Species Breakdown'!$K$31:$K$1028))=0,\"\",SUMIF('4 - Species Breakdown'!$C$31:$C$1028,'3 - Land Summary'!C91,'4 - Species Breakdown'!$K$31:$K$1028))","v":""},{"$f":"_xlfn.TEXTJOIN(\"|\",TRUE,IF('4 - Species Breakdown'!$C$31:$C$1028=C88,'4 - Species Breakdown'!$D$31:$D$1028,\"\"))","v":""},{"$f":"_xlfn.TEXTJOIN(\"|\",TRUE,IF('4 - Species Breakdown'!$C$31:$C$1028=C88,'4 - Species Breakdown'!$F$31:$F$1028,\"\"))","v":""},{"$f":"_xlfn.TEXTJOIN(\"|\",TRUE,IF('4 - Species Breakdown'!$C$31:$C$1028=C88,'4 - Species Breakdown'!$G$31:$G$1028,\"\"))","v":""},{"$f":"IF((SUMIF('4 - Species Breakdown'!$AD$31:$AD$1028,'5 - Composition & ACs'!C88,'4 - Species Breakdown'!$AF$31:$AF$1028))=0,\"\",SUMIF('4 - Species Breakdown'!$AD$31:$AD$1028,'5 - Composition & ACs'!C88,'4 - Species Breakdown'!$AF$31:$AF$1028))","v":""},{"$f":"_xlfn.TEXTJOIN(\"|\",TRUE,IF('4 - Species Breakdown'!$AD$31:$AD$1028=C88,'4 - Species Breakdown'!$AE$31:$AE$1028,\"\"))","v":""}]
[null,{"$f":"IF('3 - Land Summary'!B92=0,\"\",'3 - Land Summary'!B92)","v":""},{"$f":"IF('3 - Land Summary'!C92=0,\" \",'3 - Land Summary'!C92)","v":" "},{"$f":"IF('3 - Land Summary'!D92=0,\"\",'3 - Land Summary'!D92)","v":""},{"$f":"IF('3 - Land Summary'!F92=0,\"\",'3 - Land Summary'!F92)","v":""},{"$f":"IF('3 - Land Summary'!G92=0,\"\",'3 - Land Summary'!G92)","v":""},{"$f":"IF('3 - Land Summary'!I92=0,\"\",'3 - Land Summary'!I92)","v":""},{"$f":"IF((SUMIF('4 - Species Breakdown'!$C$31:$C$1028,'3 - Land Summary'!C92,'4 - Species Breakdown'!$K$31:$K$1028))=0,\"\",SUMIF('4 - Species Breakdown'!$C$31:$C$1028,'3 - Land Summary'!C92,'4 - Species Breakdown'!$K$31:$K$1028))","v":""},{"$f":"_xlfn.TEXTJOIN(\"|\",TRUE,IF('4 - Species Breakdown'!$C$31:$C$1028=C89,'4 - Species Breakdown'!$D$31:$D$1028,\"\"))","v":""},{"$f":"_xlfn.TEXTJOIN(\"|\",TRUE,IF('4 - Species Breakdown'!$C$31:$C$1028=C89,'4 - Species Breakdown'!$F$31:$F$1028,\"\"))","v":""},{"$f":"_xlfn.TEXTJOIN(\"|\",TRUE,IF('4 - Species Breakdown'!$C$31:$C$1028=C89,'4 - Species Breakdown'!$G$31:$G$1028,\"\"))","v":""},{"$f":"IF((SUMIF('4 - Species Breakdown'!$AD$31:$AD$1028,'5 - Composition & ACs'!C89,'4 - Species Breakdown'!$AF$31:$AF$1028))=0,\"\",SUMIF('4 - Species Breakdown'!$AD$31:$AD$1028,'5 - Composition & ACs'!C89,'4 - Species Breakdown'!$AF$31:$AF$1028))","v":""},{"$f":"_xlfn.TEXTJOIN(\"|\",TRUE,IF('4 - Species Breakdown'!$AD$31:$AD$1028=C89,'4 - Species Breakdown'!$AE$31:$AE$1028,\"\"))","v":""}]
[null,{"$f":"IF('3 - Land Summary'!B93=0,\"\",'3 - Land Summary'!B93)","v":""},{"$f":"IF('3 - Land Summary'!C93=0,\" \",'3 - Land Summary'!C93)","v":" "},{"$f":"IF('3 - Land Summary'!D93=0,\"\",'3 - Land Summary'!D93)","v":""},{"$f":"IF('3 - Land Summary'!F93=0,\"\",'3 - Land Summary'!F93)","v":""},{"$f":"IF('3 - Land Summary'!G93=0,\"\",'3 - Land Summary'!G93)","v":""},{"$f":"IF('3 - Land Summary'!I93=0,\"\",'3 - Land Summary'!I93)","v":""},{"$f":"IF((SUMIF('4 - Species Breakdown'!$C$31:$C$1028,'3 - Land Summary'!C93,'4 - Species Breakdown'!$K$31:$K$1028))=0,\"\",SUMIF('4 - Species Breakdown'!$C$31:$C$1028,'3 - Land Summary'!C93,'4 - Species Breakdown'!$K$31:$K$1028))","v":""},{"$f":"_xlfn.TEXTJOIN(\"|\",TRUE,IF('4 - Species Breakdown'!$C$31:$C$1028=C90,'4 - Species Breakdown'!$D$31:$D$1028,\"\"))","v":""},{"$f":"_xlfn.TEXTJOIN(\"|\",TRUE,IF('4 - Species Breakdown'!$C$31:$C$1028=C90,'4 - Species Breakdown'!$F$31:$F$1028,\"\"))","v":""},{"$f":"_xlfn.TEXTJOIN(\"|\",TRUE,IF('4 - Species Breakdown'!$C$31:$C$1028=C90,'4 - Species Breakdown'!$G$31:$G$1028,\"\"))","v":""},{"$f":"IF((SUMIF('4 - Species Breakdown'!$AD$31:$AD$1028,'5 - Composition & ACs'!C90,'4 - Species Breakdown'!$AF$31:$AF$1028))=0,\"\",SUMIF('4 - Species Breakdown'!$AD$31:$AD$1028,'5 - Composition & ACs'!C90,'4 - Species Breakdown'!$AF$31:$AF$1028))","v":""},{"$f":"_xlfn.TEXTJOIN(\"|\",TRUE,IF('4 - Species Breakdown'!$AD$31:$AD$1028=C90,'4 - Species Breakdown'!$AE$31:$AE$1028,\"\"))","v":""}]
[null,{"$f":"IF('3 - Land Summary'!B94=0,\"\",'3 - Land Summary'!B94)","v":""},{"$f":"IF('3 - Land Summary'!C94=0,\" \",'3 - Land Summary'!C94)","v":" "},{"$f":"IF('3 - Land Summary'!D94=0,\"\",'3 - Land Summary'!D94)","v":""},{"$f":"IF('3 - Land Summary'!F94=0,\"\",'3 - Land Summary'!F94)","v":""},{"$f":"IF('3 - Land Summary'!G94=0,\"\",'3 - Land Summary'!G94)","v":""},{"$f":"IF('3 - Land Summary'!I94=0,\"\",'3 - Land Summary'!I94)","v":""},{"$f":"IF((SUMIF('4 - Species Breakdown'!$C$31:$C$1028,'3 - Land Summary'!C94,'4 - Species Breakdown'!$K$31:$K$1028))=0,\"\",SUMIF('4 - Species Breakdown'!$C$31:$C$1028,'3 - Land Summary'!C94,'4 - Species Breakdown'!$K$31:$K$1028))","v":""},{"$f":"_xlfn.TEXTJOIN(\"|\",TRUE,IF('4 - Species Breakdown'!$C$31:$C$1028=C91,'4 - Species Breakdown'!$D$31:$D$1028,\"\"))","v":""},{"$f":"_xlfn.TEXTJOIN(\"|\",TRUE,IF('4 - Species Breakdown'!$C$31:$C$1028=C91,'4 - Species Breakdown'!$F$31:$F$1028,\"\"))","v":""},{"$f":"_xlfn.TEXTJOIN(\"|\",TRUE,IF('4 - Species Breakdown'!$C$31:$C$1028=C91,'4 - Species Breakdown'!$G$31:$G$1028,\"\"))","v":""},{"$f":"IF((SUMIF('4 - Species Breakdown'!$AD$31:$AD$1028,'5 - Composition & ACs'!C91,'4 - Species Breakdown'!$AF$31:$AF$1028))=0,\"\",SUMIF('4 - Species Breakdown'!$AD$31:$AD$1028,'5 - Composition & ACs'!C91,'4 - Species Breakdown'!$AF$31:$AF$1028))","v":""},{"$f":"_xlfn.TEXTJOIN(\"|\",TRUE,IF('4 - Species Breakdown'!$AD$31:$AD$1028=C91,'4 - Species Breakdown'!$AE$31:$AE$1028,\"\"))","v":""}]
[null,{"$f":"IF('3 - Land Summary'!B95=0,\"\",'3 - Land Summary'!B95)","v":""},{"$f":"IF('3 - Land Summary'!C95=0,\" \",'3 - Land Summary'!C95)","v":" "},{"$f":"IF('3 - Land Summary'!D95=0,\"\",'3 - Land Summary'!D95)","v":""},{"$f":"IF('3 - Land Summary'!F95=0,\"\",'3 - Land Summary'!F95)","v":""},{"$f":"IF('3 - Land Summary'!G95=0,\"\",'3 - Land Summary'!G95)","v":""},{"$f":"IF('3 - Land Summary'!I95=0,\"\",'3 - Land Summary'!I95)","v":""},{"$f":"IF((SUMIF('4 - Species Breakdown'!$C$31:$C$1028,'3 - Land Summary'!C95,'4 - Species Breakdown'!$K$31:$K$1028))=0,\"\",SUMIF('4 - Species Breakdown'!$C$31:$C$1028,'3 - Land Summary'!C95,'4 - Species Breakdown'!$K$31:$K$1028))","v":""},{"$f":"_xlfn.TEXTJOIN(\"|\",TRUE,IF('4 - Species Breakdown'!$C$31:$C$1028=C92,'4 - Species Breakdown'!$D$31:$D$1028,\"\"))","v":""},{"$f":"_xlfn.TEXTJOIN(\"|\",TRUE,IF('4 - Species Breakdown'!$C$31:$C$1028=C92,'4 - Species Breakdown'!$F$31:$F$1028,\"\"))","v":""},{"$f":"_xlfn.TEXTJOIN(\"|\",TRUE,IF('4 - Species Breakdown'!$C$31:$C$1028=C92,'4 - Species Breakdown'!$G$31:$G$1028,\"\"))","v":""},{"$f":"IF((SUMIF('4 - Species Breakdown'!$AD$31:$AD$1028,'5 - Composition & ACs'!C92,'4 - Species Breakdown'!$AF$31:$AF$1028))=0,\"\",SUMIF('4 - Species Breakdown'!$AD$31:$AD$1028,'5 - Composition & ACs'!C92,'4 - Species Breakdown'!$AF$31:$AF$1028))","v":""},{"$f":"_xlfn.TEXTJOIN(\"|\",TRUE,IF('4 - Species Breakdown'!$AD$31:$AD$1028=C92,'4 - Species Breakdown'!$AE$31:$AE$1028,\"\"))","v":""}]
[null,{"$f":"IF('3 - Land Summary'!B96=0,\"\",'3 - Land Summary'!B96)","v":""},{"$f":"IF('3 - Land Summary'!C96=0,\" \",'3 - Land Summary'!C96)","v":" "},{"$f":"IF('3 - Land Summary'!D96=0,\"\",'3 - Land Summary'!D96)","v":""},{"$f":"IF('3 - Land Summary'!F96=0,\"\",'3 - Land Summary'!F96)","v":""},{"$f":"IF('3 - Land Summary'!G96=0,\"\",'3 - Land Summary'!G96)","v":""},{"$f":"IF('3 - Land Summary'!I96=0,\"\",'3 - Land Summary'!I96)","v":""},{"$f":"IF((SUMIF('4 - Species Breakdown'!$C$31:$C$1028,'3 - Land Summary'!C96,'4 - Species Breakdown'!$K$31:$K$1028))=0,\"\",SUMIF('4 - Species Breakdown'!$C$31:$C$1028,'3 - Land Summary'!C96,'4 - Species Breakdown'!$K$31:$K$1028))","v":""},{"$f":"_xlfn.TEXTJOIN(\"|\",TRUE,IF('4 - Species Breakdown'!$C$31:$C$1028=C93,'4 - Species Breakdown'!$D$31:$D$1028,\"\"))","v":""},{"$f":"_xlfn.TEXTJOIN(\"|\",TRUE,IF('4 - Species Breakdown'!$C$31:$C$1028=C93,'4 - Species Breakdown'!$F$31:$F$1028,\"\"))","v":""},{"$f":"_xlfn.TEXTJOIN(\"|\",TRUE,IF('4 - Species Breakdown'!$C$31:$C$1028=C93,'4 - Species Breakdown'!$G$31:$G$1028,\"\"))","v":""},{"$f":"IF((SUMIF('4 - Species Breakdown'!$AD$31:$AD$1028,'5 - Composition & ACs'!C93,'4 - Species Breakdown'!$AF$31:$AF$1028))=0,\"\",SUMIF('4 - Species Breakdown'!$AD$31:$AD$1028,'5 - Composition & ACs'!C93,'4 - Species Breakdown'!$AF$31:$AF$1028))","v":""},{"$f":"_xlfn.TEXTJOIN(\"|\",TRUE,IF('4 - Species Breakdown'!$AD$31:$AD$1028=C93,'4 - Species Breakdown'!$AE$31:$AE$1028,\"\"))","v":""}]
[null,{"$f":"IF('3 - Land Summary'!B97=0,\"\",'3 - Land Summary'!B97)","v":""},{"$f":"IF('3 - Land Summary'!C97=0,\" \",'3 - Land Summary'!C97)","v":" "},{"$f":"IF('3 - Land Summary'!D97=0,\"\",'3 - Land Summary'!D97)","v":""},{"$f":"IF('3 - Land Summary'!F97=0,\"\",'3 - Land Summary'!F97)","v":""},{"$f":"IF('3 - Land Summary'!G97=0,\"\",'3 - Land Summary'!G97)","v":""},{"$f":"IF('3 - Land Summary'!I97=0,\"\",'3 - Land Summary'!I97)","v":""},{"$f":"IF((SUMIF('4 - Species Breakdown'!$C$31:$C$1028,'3 - Land Summary'!C97,'4 - Species Breakdown'!$K$31:$K$1028))=0,\"\",SUMIF('4 - Species Breakdown'!$C$31:$C$1028,'3 - Land Summary'!C97,'4 - Species Breakdown'!$K$31:$K$1028))","v":""},{"$f":"_xlfn.TEXTJOIN(\"|\",TRUE,IF('4 - Species Breakdown'!$C$31:$C$1028=C94,'4 - Species Breakdown'!$D$31:$D$1028,\"\"))","v":""},{"$f":"_xlfn.TEXTJOIN(\"|\",TRUE,IF('4 - Species Breakdown'!$C$31:$C$1028=C94,'4 - Species Breakdown'!$F$31:$F$1028,\"\"))","v":""},{"$f":"_xlfn.TEXTJOIN(\"|\",TRUE,IF('4 - Species Breakdown'!$C$31:$C$1028=C94,'4 - Species Breakdown'!$G$31:$G$1028,\"\"))","v":""},{"$f":"IF((SUMIF('4 - Species Breakdown'!$AD$31:$AD$1028,'5 - Composition & ACs'!C94,'4 - Species Breakdown'!$AF$31:$AF$1028))=0,\"\",SUMIF('4 - Species Breakdown'!$AD$31:$AD$1028,'5 - Composition & ACs'!C94,'4 - Species Breakdown'!$AF$31:$AF$1028))","v":""},{"$f":"_xlfn.TEXTJOIN(\"|\",TRUE,IF('4 - Species Breakdown'!$AD$31:$AD$1028=C94,'4 - Species Breakdown'!$AE$31:$AE$1028,\"\"))","v":""}]
[null,{"$f":"IF('3 - Land Summary'!B98=0,\"\",'3 - Land Summary'!B98)","v":""},{"$f":"IF('3 - Land Summary'!C98=0,\" \",'3 - Land Summary'!C98)","v":" "},{"$f":"IF('3 - Land Summary'!D98=0,\"\",'3 - Land Summary'!D98)","v":""},{"$f":"IF('3 - Land Summary'!F98=0,\"\",'3 - Land Summary'!F98)","v":""},{"$f":"IF('3 - Land Summary'!G98=0,\"\",'3 - Land Summary'!G98)","v":""},{"$f":"IF('3 - Land Summary'!I98=0,\"\",'3 - Land Summary'!I98)","v":""},{"$f":"IF((SUMIF('4 - Species Breakdown'!$C$31:$C$1028,'3 - Land Summary'!C98,'4 - Species Breakdown'!$K$31:$K$1028))=0,\"\",SUMIF('4 - Species Breakdown'!$C$31:$C$1028,'3 - Land Summary'!C98,'4 - Species Breakdown'!$K$31:$K$1028))","v":""},{"$f":"_xlfn.TEXTJOIN(\"|\",TRUE,IF('4 - Species Breakdown'!$C$31:$C$1028=C95,'4 - Species Breakdown'!$D$31:$D$1028,\"\"))","v":""},{"$f":"_xlfn.TEXTJOIN(\"|\",TRUE,IF('4 - Species Breakdown'!$C$31:$C$1028=C95,'4 - Species Breakdown'!$F$31:$F$1028,\"\"))","v":""},{"$f":"_xlfn.TEXTJOIN(\"|\",TRUE,IF('4 - Species Breakdown'!$C$31:$C$1028=C95,'4 - Species Breakdown'!$G$31:$G$1028,\"\"))","v":""},{"$f":"IF((SUMIF('4 - Species Breakdown'!$AD$31:$AD$1028,'5 - Composition & ACs'!C95,'4 - Species Breakdown'!$AF$31:$AF$1028))=0,\"\",SUMIF('4 - Species Breakdown'!$AD$31:$AD$1028,'5 - Composition & ACs'!C95,'4 - Species Breakdown'!$AF$31:$AF$1028))","v":""},{"$f":"_xlfn.TEXTJOIN(\"|\",TRUE,IF('4 - Species Breakdown'!$AD$31:$AD$1028=C95,'4 - Species Breakdown'!$AE$31:$AE$1028,\"\"))","v":""}]
[null,{"$f":"IF('3 - Land Summary'!B99=0,\"\",'3 - Land Summary'!B99)","v":""},{"$f":"IF('3 - Land Summary'!C99=0,\" \",'3 - Land Summary'!C99)","v":" "},{"$f":"IF('3 - Land Summary'!D99=0,\"\",'3 - Land Summary'!D99)","v":""},{"$f":"IF('3 - Land Summary'!F99=0,\"\",'3 - Land Summary'!F99)","v":""},{"$f":"IF('3 - Land Summary'!G99=0,\"\",'3 - Land Summary'!G99)","v":""},{"$f":"IF('3 - Land Summary'!I99=0,\"\",'3 - Land Summary'!I99)","v":""},{"$f":"IF((SUMIF('4 - Species Breakdown'!$C$31:$C$1028,'3 - Land Summary'!C99,'4 - Species Breakdown'!$K$31:$K$1028))=0,\"\",SUMIF('4 - Species Breakdown'!$C$31:$C$1028,'3 - Land Summary'!C99,'4 - Species Breakdown'!$K$31:$K$1028))","v":""},{"$f":"_xlfn.TEXTJOIN(\"|\",TRUE,IF('4 - Species Breakdown'!$C$31:$C$1028=C96,'4 - Species Breakdown'!$D$31:$D$1028,\"\"))","v":""},{"$f":"_xlfn.TEXTJOIN(\"|\",TRUE,IF('4 - Species Breakdown'!$C$31:$C$1028=C96,'4 - Species Breakdown'!$F$31:$F$1028,\"\"))","v":""},{"$f":"_xlfn.TEXTJOIN(\"|\",TRUE,IF('4 - Species Breakdown'!$C$31:$C$1028=C96,'4 - Species Breakdown'!$G$31:$G$1028,\"\"))","v":""},{"$f":"IF((SUMIF('4 - Species Breakdown'!$AD$31:$AD$1028,'5 - Composition & ACs'!C96,'4 - Species Breakdown'!$AF$31:$AF$1028))=0,\"\",SUMIF('4 - Species Breakdown'!$AD$31:$AD$1028,'5 - Composition & ACs'!C96,'4 - Species Breakdown'!$AF$31:$AF$1028))","v":""},{"$f":"_xlfn.TEXTJOIN(\"|\",TRUE,IF('4 - Species Breakdown'!$AD$31:$AD$1028=C96,'4 - Species Breakdown'!$AE$31:$AE$1028,\"\"))","v":""}]
[null,{"$f":"IF('3 - Land Summary'!B100=0,\"\",'3 - Land Summary'!B100)","v":""},{"$f":"IF('3 - Land Summary'!C100=0,\" \",'3 - Land Summary'!C100)","v":" "},{"$f":"IF('3 - Land Summary'!D100=0,\"\",'3 - Land Summary'!D100)","v":""},{"$f":"IF('3 - Land Summary'!F100=0,\"\",'3 - Land Summary'!F100)","v":""},{"$f":"IF('3 - Land Summary'!G100=0,\"\",'3 - Land Summary'!G100)","v":""},{"$f":"IF('3 - Land Summary'!I100=0,\"\",'3 - Land Summary'!I100)","v":""},{"$f":"IF((SUMIF('4 - Species Breakdown'!$C$31:$C$1028,'3 - Land Summary'!C100,'4 - Species Breakdown'!$K$31:$K$1028))=0,\"\",SUMIF('4 - Species Breakdown'!$C$31:$C$1028,'3 - Land Summary'!C100,'4 - Species Breakdown'!$K$31:$K$1028))","v":""},{"$f":"_xlfn.TEXTJOIN(\"|\",TRUE,IF('4 - Species Breakdown'!$C$31:$C$1028=C97,'4 - Species Breakdown'!$D$31:$D$1028,\"\"))","v":""},{"$f":"_xlfn.TEXTJOIN(\"|\",TRUE,IF('4 - Species Breakdown'!$C$31:$C$1028=C97,'4 - Species Breakdown'!$F$31:$F$1028,\"\"))","v":""},{"$f":"_xlfn.TEXTJOIN(\"|\",TRUE,IF('4 - Species Breakdown'!$C$31:$C$1028=C97,'4 - Species Breakdown'!$G$31:$G$1028,\"\"))","v":""},{"$f":"IF((SUMIF('4 - Species Breakdown'!$AD$31:$AD$1028,'5 - Composition & ACs'!C97,'4 - Species Breakdown'!$AF$31:$AF$1028))=0,\"\",SUMIF('4 - Species Breakdown'!$AD$31:$AD$1028,'5 - Composition & ACs'!C97,'4 - Species Breakdown'!$AF$31:$AF$1028))","v":""},{"$f":"_xlfn.TEXTJOIN(\"|\",TRUE,IF('4 - Species Breakdown'!$AD$31:$AD$1028=C97,'4 - Species Breakdown'!$AE$31:$AE$1028,\"\"))","v":""}]
[null,{"$f":"IF('3 - Land Summary'!B101=0,\"\",'3 - Land Summary'!B101)","v":""},{"$f":"IF('3 - Land Summary'!C101=0,\" \",'3 - Land Summary'!C101)","v":" "},{"$f":"IF('3 - Land Summary'!D101=0,\"\",'3 - Land Summary'!D101)","v":""},{"$f":"IF('3 - Land Summary'!F101=0,\"\",'3 - Land Summary'!F101)","v":""},{"$f":"IF('3 - Land Summary'!G101=0,\"\",'3 - Land Summary'!G101)","v":""},{"$f":"IF('3 - Land Summary'!I101=0,\"\",'3 - Land Summary'!I101)","v":""},{"$f":"IF((SUMIF('4 - Species Breakdown'!$C$31:$C$1028,'3 - Land Summary'!C101,'4 - Species Breakdown'!$K$31:$K$1028))=0,\"\",SUMIF('4 - Species Breakdown'!$C$31:$C$1028,'3 - Land Summary'!C101,'4 - Species Breakdown'!$K$31:$K$1028))","v":""},{"$f":"_xlfn.TEXTJOIN(\"|\",TRUE,IF('4 - Species Breakdown'!$C$31:$C$1028=C98,'4 - Species Breakdown'!$D$31:$D$1028,\"\"))","v":""},{"$f":"_xlfn.TEXTJOIN(\"|\",TRUE,IF('4 - Species Breakdown'!$C$31:$C$1028=C98,'4 - Species Breakdown'!$F$31:$F$1028,\"\"))","v":""},{"$f":"_xlfn.TEXTJOIN(\"|\",TRUE,IF('4 - Species Breakdown'!$C$31:$C$1028=C98,'4 - Species Breakdown'!$G$31:$G$1028,\"\"))","v":""},{"$f":"IF((SUMIF('4 - Species Breakdown'!$AD$31:$AD$1028,'5 - Composition & ACs'!C98,'4 - Species Breakdown'!$AF$31:$AF$1028))=0,\"\",SUMIF('4 - Species Breakdown'!$AD$31:$AD$1028,'5 - Composition & ACs'!C98,'4 - Species Breakdown'!$AF$31:$AF$1028))","v":""},{"$f":"_xlfn.TEXTJOIN(\"|\",TRUE,IF('4 - Species Breakdown'!$AD$31:$AD$1028=C98,'4 - Species Breakdown'!$AE$31:$AE$1028,\"\"))","v":""}]
[null,{"$f":"IF('3 - Land Summary'!B102=0,\"\",'3 - Land Summary'!B102)","v":""},{"$f":"IF('3 - Land Summary'!C102=0,\" \",'3 - Land Summary'!C102)","v":" "},{"$f":"IF('3 - Land Summary'!D102=0,\"\",'3 - Land Summary'!D102)","v":""},{"$f":"IF('3 - Land Summary'!F102=0,\"\",'3 - Land Summary'!F102)","v":""},{"$f":"IF('3 - Land Summary'!G102=0,\"\",'3 - Land Summary'!G102)","v":""},{"$f":"IF('3 - Land Summary'!I102=0,\"\",'3 - Land Summary'!I102)","v":""},{"$f":"IF((SUMIF('4 - Species Breakdown'!$C$31:$C$1028,'3 - Land Summary'!C102,'4 - Species Breakdown'!$K$31:$K$1028))=0,\"\",SUMIF('4 - Species Breakdown'!$C$31:$C$1028,'3 - Land Summary'!C102,'4 - Species Breakdown'!$K$31:$K$1028))","v":""},{"$f":"_xlfn.TEXTJOIN(\"|\",TRUE,IF('4 - Species Breakdown'!$C$31:$C$1028=C99,'4 - Species Breakdown'!$D$31:$D$1028,\"\"))","v":""},{"$f":"_xlfn.TEXTJOIN(\"|\",TRUE,IF('4 - Species Breakdown'!$C$31:$C$1028=C99,'4 - Species Breakdown'!$F$31:$F$1028,\"\"))","v":""},{"$f":"_xlfn.TEXTJOIN(\"|\",TRUE,IF('4 - Species Breakdown'!$C$31:$C$1028=C99,'4 - Species Breakdown'!$G$31:$G$1028,\"\"))","v":""},{"$f":"IF((SUMIF('4 - Species Breakdown'!$AD$31:$AD$1028,'5 - Composition & ACs'!C99,'4 - Species Breakdown'!$AF$31:$AF$1028))=0,\"\",SUMIF('4 - Species Breakdown'!$AD$31:$AD$1028,'5 - Composition & ACs'!C99,'4 - Species Breakdown'!$AF$31:$AF$1028))","v":""},{"$f":"_xlfn.TEXTJOIN(\"|\",TRUE,IF('4 - Species Breakdown'!$AD$31:$AD$1028=C99,'4 - Species Breakdown'!$AE$31:$AE$1028,\"\"))","v":""}]
[null,{"$f":"IF('3 - Land Summary'!B103=0,\"\",'3 - Land Summary'!B103)","v":""},{"$f":"IF('3 - Land Summary'!C103=0,\" \",'3 - Land Summary'!C103)","v":" "},{"$f":"IF('3 - Land Summary'!D103=0,\"\",'3 - Land Summary'!D103)","v":""},{"$f":"IF('3 - Land Summary'!F103=0,\"\",'3 - Land Summary'!F103)","v":""},{"$f":"IF('3 - Land Summary'!G103=0,\"\",'3 - Land Summary'!G103)","v":""},{"$f":"IF('3 - Land Summary'!I103=0,\"\",'3 - Land Summary'!I103)","v":""},{"$f":"IF((SUMIF('4 - Species Breakdown'!$C$31:$C$1028,'3 - Land Summary'!C103,'4 - Species Breakdown'!$K$31:$K$1028))=0,\"\",SUMIF('4 - Species Breakdown'!$C$31:$C$1028,'3 - Land Summary'!C103,'4 - Species Breakdown'!$K$31:$K$1028))","v":""},{"$f":"_xlfn.TEXTJOIN(\"|\",TRUE,IF('4 - Species Breakdown'!$C$31:$C$1028=C100,'4 - Species Breakdown'!$D$31:$D$1028,\"\"))","v":""},{"$f":"_xlfn.TEXTJOIN(\"|\",TRUE,IF('4 - Species Breakdown'!$C$31:$C$1028=C100,'4 - Species Breakdown'!$F$31:$F$1028,\"\"))","v":""},{"$f":"_xlfn.TEXTJOIN(\"|\",TRUE,IF('4 - Species Breakdown'!$C$31:$C$1028=C100,'4 - Species Breakdown'!$G$31:$G$1028,\"\"))","v":""},{"$f":"IF((SUMIF('4 - Species Breakdown'!$AD$31:$AD$1028,'5 - Composition & ACs'!C100,'4 - Species Breakdown'!$AF$31:$AF$1028))=0,\"\",SUMIF('4 - Species Breakdown'!$AD$31:$AD$1028,'5 - Composition & ACs'!C100,'4 - Species Breakdown'!$AF$31:$AF$1028))","v":""},{"$f":"_xlfn.TEXTJOIN(\"|\",TRUE,IF('4 - Species Breakdown'!$AD$31:$AD$1028=C100,'4 - Species Breakdown'!$AE$31:$AE$1028,\"\"))","v":""}]
[null,{"$f":"IF('3 - Land Summary'!B104=0,\"\",'3 - Land Summary'!B104)","v":""},{"$f":"IF('3 - Land Summary'!C104=0,\" \",'3 - Land Summary'!C104)","v":" "},{"$f":"IF('3 - Land Summary'!D104=0,\"\",'3 - Land Summary'!D104)","v":""},{"$f":"IF('3 - Land Summary'!F104=0,\"\",'3 - Land Summary'!F104)","v":""},{"$f":"IF('3 - Land Summary'!G104=0,\"\",'3 - Land Summary'!G104)","v":""},{"$f":"IF('3 - Land Summary'!I104=0,\"\",'3 - Land Summary'!I104)","v":""},{"$f":"IF((SUMIF('4 - Species Breakdown'!$C$31:$C$1028,'3 - Land Summary'!C104,'4 - Species Breakdown'!$K$31:$K$1028))=0,\"\",SUMIF('4 - Species Breakdown'!$C$31:$C$1028,'3 - Land Summary'!C104,'4 - Species Breakdown'!$K$31:$K$1028))","v":""},{"$f":"_xlfn.TEXTJOIN(\"|\",TRUE,IF('4 - Species Breakdown'!$C$31:$C$1028=C101,'4 - Species Breakdown'!$D$31:$D$1028,\"\"))","v":""},{"$f":"_xlfn.TEXTJOIN(\"|\",TRUE,IF('4 - Species Breakdown'!$C$31:$C$1028=C101,'4 - Species Breakdown'!$F$31:$F$1028,\"\"))","v":""},{"$f":"_xlfn.TEXTJOIN(\"|\",TRUE,IF('4 - Species Breakdown'!$C$31:$C$1028=C101,'4 - Species Breakdown'!$G$31:$G$1028,\"\"))","v":""},{"$f":"IF((SUMIF('4 - Species Breakdown'!$AD$31:$AD$1028,'5 - Composition & ACs'!C101,'4 - Species Breakdown'!$AF$31:$AF$1028))=0,\"\",SUMIF('4 - Species Breakdown'!$AD$31:$AD$1028,'5 - Composition & ACs'!C101,'4 - Species Breakdown'!$AF$31:$AF$1028))","v":""},{"$f":"_xlfn.TEXTJOIN(\"|\",TRUE,IF('4 - Species Breakdown'!$AD$31:$AD$1028=C101,'4 - Species Breakdown'!$AE$31:$AE$1028,\"\"))","v":""}]
[null,{"$f":"IF('3 - Land Summary'!B105=0,\"\",'3 - Land Summary'!B105)","v":""},{"$f":"IF('3 - Land Summary'!C105=0,\" \",'3 - Land Summary'!C105)","v":" "},{"$f":"IF('3 - Land Summary'!D105=0,\"\",'3 - Land Summary'!D105)","v":""},{"$f":"IF('3 - Land Summary'!F105=0,\"\",'3 - Land Summary'!F105)","v":""},{"$f":"IF('3 - Land Summary'!G105=0,\"\",'3 - Land Summary'!G105)","v":""},{"$f":"IF('3 - Land Summary'!I105=0,\"\",'3 - Land Summary'!I105)","v":""},{"$f":"IF((SUMIF('4 - Species Breakdown'!$C$31:$C$1028,'3 - Land Summary'!C105,'4 - Species Breakdown'!$K$31:$K$1028))=0,\"\",SUMIF('4 - Species Breakdown'!$C$31:$C$1028,'3 - Land Summary'!C105,'4 - Species Breakdown'!$K$31:$K$1028))","v":""},{"$f":"_xlfn.TEXTJOIN(\"|\",TRUE,IF('4 - Species Breakdown'!$C$31:$C$1028=C102,'4 - Species Breakdown'!$D$31:$D$1028,\"\"))","v":""},{"$f":"_xlfn.TEXTJOIN(\"|\",TRUE,IF('4 - Species Breakdown'!$C$31:$C$1028=C102,'4 - Species Breakdown'!$F$31:$F$1028,\"\"))","v":""},{"$f":"_xlfn.TEXTJOIN(\"|\",TRUE,IF('4 - Species Breakdown'!$C$31:$C$1028=C102,'4 - Species Breakdown'!$G$31:$G$1028,\"\"))","v":""},{"$f":"IF((SUMIF('4 - Species Breakdown'!$AD$31:$AD$1028,'5 - Composition & ACs'!C102,'4 - Species Breakdown'!$AF$31:$AF$1028))=0,\"\",SUMIF('4 - Species Breakdown'!$AD$31:$AD$1028,'5 - Composition & ACs'!C102,'4 - Species Breakdown'!$AF$31:$AF$1028))","v":""},{"$f":"_xlfn.TEXTJOIN(\"|\",TRUE,IF('4 - Species Breakdown'!$AD$31:$AD$1028=C102,'4 - Species Breakdown'!$AE$31:$AE$1028,\"\"))","v":""}]
[null,{"$f":"IF('3 - Land Summary'!B106=0,\"\",'3 - Land Summary'!B106)","v":""},{"$f":"IF('3 - Land Summary'!C106=0,\" \",'3 - Land Summary'!C106)","v":" "},{"$f":"IF('3 - Land Summary'!D106=0,\"\",'3 - Land Summary'!D106)","v":""},{"$f":"IF('3 - Land Summary'!F106=0,\"\",'3 - Land Summary'!F106)","v":""},{"$f":"IF('3 - Land Summary'!G106=0,\"\",'3 - Land Summary'!G106)","v":""},{"$f":"IF('3 - Land Summary'!I106=0,\"\",'3 - Land Summary'!I106)","v":""},{"$f":"IF((SUMIF('4 - Species Breakdown'!$C$31:$C$1028,'3 - Land Summary'!C106,'4 - Species Breakdown'!$K$31:$K$1028))=0,\"\",SUMIF('4 - Species Breakdown'!$C$31:$C$1028,'3 - Land Summary'!C106,'4 - Species Breakdown'!$K$31:$K$1028))","v":""},{"$f":"_xlfn.TEXTJOIN(\"|\",TRUE,IF('4 - Species Breakdown'!$C$31:$C$1028=C103,'4 - Species Breakdown'!$D$31:$D$1028,\"\"))","v":""},{"$f":"_xlfn.TEXTJOIN(\"|\",TRUE,IF('4 - Species Breakdown'!$C$31:$C$1028=C103,'4 - Species Breakdown'!$F$31:$F$1028,\"\"))","v":""},{"$f":"_xlfn.TEXTJOIN(\"|\",TRUE,IF('4 - Species Breakdown'!$C$31:$C$1028=C103,'4 - Species Breakdown'!$G$31:$G$1028,\"\"))","v":""},{"$f":"IF((SUMIF('4 - Species Breakdown'!$AD$31:$AD$1028,'5 - Composition & ACs'!C103,'4 - Species Breakdown'!$AF$31:$AF$1028))=0,\"\",SUMIF('4 - Species Breakdown'!$AD$31:$AD$1028,'5 - Composition & ACs'!C103,'4 - Species Breakdown'!$AF$31:$AF$1028))","v":""},{"$f":"_xlfn.TEXTJOIN(\"|\",TRUE,IF('4 - Species Breakdown'!$AD$31:$AD$1028=C103,'4 - Species Breakdown'!$AE$31:$AE$1028,\"\"))","v":""}]
[null,{"$f":"IF('3 - Land Summary'!B107=0,\"\",'3 - Land Summary'!B107)","v":""},{"$f":"IF('3 - Land Summary'!C107=0,\" \",'3 - Land Summary'!C107)","v":" "},{"$f":"IF('3 - Land Summary'!D107=0,\"\",'3 - Land Summary'!D107)","v":""},{"$f":"IF('3 - Land Summary'!F107=0,\"\",'3 - Land Summary'!F107)","v":""},{"$f":"IF('3 - Land Summary'!G107=0,\"\",'3 - Land Summary'!G107)","v":""},{"$f":"IF('3 - Land Summary'!I107=0,\"\",'3 - Land Summary'!I107)","v":""},{"$f":"IF((SUMIF('4 - Species Breakdown'!$C$31:$C$1028,'3 - Land Summary'!C107,'4 - Species Breakdown'!$K$31:$K$1028))=0,\"\",SUMIF('4 - Species Breakdown'!$C$31:$C$1028,'3 - Land Summary'!C107,'4 - Species Breakdown'!$K$31:$K$1028))","v":""},{"$f":"_xlfn.TEXTJOIN(\"|\",TRUE,IF('4 - Species Breakdown'!$C$31:$C$1028=C104,'4 - Species Breakdown'!$D$31:$D$1028,\"\"))","v":""},{"$f":"_xlfn.TEXTJOIN(\"|\",TRUE,IF('4 - Species Breakdown'!$C$31:$C$1028=C104,'4 - Species Breakdown'!$F$31:$F$1028,\"\"))","v":""},{"$f":"_xlfn.TEXTJOIN(\"|\",TRUE,IF('4 - Species Breakdown'!$C$31:$C$1028=C104,'4 - Species Breakdown'!$G$31:$G$1028,\"\"))","v":""},{"$f":"IF((SUMIF('4 - Species Breakdown'!$AD$31:$AD$1028,'5 - Composition & ACs'!C104,'4 - Species Breakdown'!$AF$31:$AF$1028))=0,\"\",SUMIF('4 - Species Breakdown'!$AD$31:$AD$1028,'5 - Composition & ACs'!C104,'4 - Species Breakdown'!$AF$31:$AF$1028))","v":""},{"$f":"_xlfn.TEXTJOIN(\"|\",TRUE,IF('4 - Species Breakdown'!$AD$31:$AD$1028=C104,'4 - Species Breakdown'!$AE$31:$AE$1028,\"\"))","v":""}]
[null,{"$f":"IF('3 - Land Summary'!B108=0,\"\",'3 - Land Summary'!B108)","v":""},{"$f":"IF('3 - Land Summary'!C108=0,\" \",'3 - Land Summary'!C108)","v":" "},{"$f":"IF('3 - Land Summary'!D108=0,\"\",'3 - Land Summary'!D108)","v":""},{"$f":"IF('3 - Land Summary'!F108=0,\"\",'3 - Land Summary'!F108)","v":""},{"$f":"IF('3 - Land Summary'!G108=0,\"\",'3 - Land Summary'!G108)","v":""},{"$f":"IF('3 - Land Summary'!I108=0,\"\",'3 - Land Summary'!I108)","v":""},{"$f":"IF((SUMIF('4 - Species Breakdown'!$C$31:$C$1028,'3 - Land Summary'!C108,'4 - Species Breakdown'!$K$31:$K$1028))=0,\"\",SUMIF('4 - Species Breakdown'!$C$31:$C$1028,'3 - Land Summary'!C108,'4 - Species Breakdown'!$K$31:$K$1028))","v":""},{"$f":"_xlfn.TEXTJOIN(\"|\",TRUE,IF('4 - Species Breakdown'!$C$31:$C$1028=C105,'4 - Species Breakdown'!$D$31:$D$1028,\"\"))","v":""},{"$f":"_xlfn.TEXTJOIN(\"|\",TRUE,IF('4 - Species Breakdown'!$C$31:$C$1028=C105,'4 - Species Breakdown'!$F$31:$F$1028,\"\"))","v":""},{"$f":"_xlfn.TEXTJOIN(\"|\",TRUE,IF('4 - Species Breakdown'!$C$31:$C$1028=C105,'4 - Species Breakdown'!$G$31:$G$1028,\"\"))","v":""},{"$f":"IF((SUMIF('4 - Species Breakdown'!$AD$31:$AD$1028,'5 - Composition & ACs'!C105,'4 - Species Breakdown'!$AF$31:$AF$1028))=0,\"\",SUMIF('4 - Species Breakdown'!$AD$31:$AD$1028,'5 - Composition & ACs'!C105,'4 - Species Breakdown'!$AF$31:$AF$1028))","v":""},{"$f":"_xlfn.TEXTJOIN(\"|\",TRUE,IF('4 - Species Breakdown'!$AD$31:$AD$1028=C105,'4 - Species Breakdown'!$AE$31:$AE$1028,\"\"))","v":""}]
[null,{"$f":"IF('3 - Land Summary'!B109=0,\"\",'3 - Land Summary'!B109)","v":""},{"$f":"IF('3 - Land Summary'!C109=0,\" \",'3 - Land Summary'!C109)","v":" "},{"$f":"IF('3 - Land Summary'!D109=0,\"\",'3 - Land Summary'!D109)","v":""},{"$f":"IF('3 - Land Summary'!F109=0,\"\",'3 - Land Summary'!F109)","v":""},{"$f":"IF('3 - Land Summary'!G109=0,\"\",'3 - Land Summary'!G109)","v":""},{"$f":"IF('3 - Land Summary'!I109=0,\"\",'3 - Land Summary'!I109)","v":""},{"$f":"IF((SUMIF('4 - Species Breakdown'!$C$31:$C$1028,'3 - Land Summary'!C109,'4 - Species Breakdown'!$K$31:$K$1028))=0,\"\",SUMIF('4 - Species Breakdown'!$C$31:$C$1028,'3 - Land Summary'!C109,'4 - Species Breakdown'!$K$31:$K$1028))","v":""},{"$f":"_xlfn.TEXTJOIN(\"|\",TRUE,IF('4 - Species Breakdown'!$C$31:$C$1028=C106,'4 - Species Breakdown'!$D$31:$D$1028,\"\"))","v":""},{"$f":"_xlfn.TEXTJOIN(\"|\",TRUE,IF('4 - Species Breakdown'!$C$31:$C$1028=C106,'4 - Species Breakdown'!$F$31:$F$1028,\"\"))","v":""},{"$f":"_xlfn.TEXTJOIN(\"|\",TRUE,IF('4 - Species Breakdown'!$C$31:$C$1028=C106,'4 - Species Breakdown'!$G$31:$G$1028,\"\"))","v":""},{"$f":"IF((SUMIF('4 - Species Breakdown'!$AD$31:$AD$1028,'5 - Composition & ACs'!C106,'4 - Species Breakdown'!$AF$31:$AF$1028))=0,\"\",SUMIF('4 - Species Breakdown'!$AD$31:$AD$1028,'5 - Composition & ACs'!C106,'4 - Species Breakdown'!$AF$31:$AF$1028))","v":""},{"$f":"_xlfn.TEXTJOIN(\"|\",TRUE,IF('4 - Species Breakdown'!$AD$31:$AD$1028=C106,'4 - Species Breakdown'!$AE$31:$AE$1028,\"\"))","v":""}]
[null,{"$f":"IF('3 - Land Summary'!B110=0,\"\",'3 - Land Summary'!B110)","v":""},{"$f":"IF('3 - Land Summary'!C110=0,\" \",'3 - Land Summary'!C110)","v":" "},{"$f":"IF('3 - Land Summary'!D110=0,\"\",'3 - Land Summary'!D110)","v":""},{"$f":"IF('3 - Land Summary'!F110=0,\"\",'3 - Land Summary'!F110)","v":""},{"$f":"IF('3 - Land Summary'!G110=0,\"\",'3 - Land Summary'!G110)","v":""},{"$f":"IF('3 - Land Summary'!I110=0,\"\",'3 - Land Summary'!I110)","v":""},{"$f":"IF((SUMIF('4 - Species Breakdown'!$C$31:$C$1028,'3 - Land Summary'!C110,'4 - Species Breakdown'!$K$31:$K$1028))=0,\"\",SUMIF('4 - Species Breakdown'!$C$31:$C$1028,'3 - Land Summary'!C110,'4 - Species Breakdown'!$K$31:$K$1028))","v":""},{"$f":"_xlfn.TEXTJOIN(\"|\",TRUE,IF('4 - Species Breakdown'!$C$31:$C$1028=C107,'4 - Species Breakdown'!$D$31:$D$1028,\"\"))","v":""},{"$f":"_xlfn.TEXTJOIN(\"|\",TRUE,IF('4 - Species Breakdown'!$C$31:$C$1028=C107,'4 - Species Breakdown'!$F$31:$F$1028,\"\"))","v":""},{"$f":"_xlfn.TEXTJOIN(\"|\",TRUE,IF('4 - Species Breakdown'!$C$31:$C$1028=C107,'4 - Species Breakdown'!$G$31:$G$1028,\"\"))","v":""},{"$f":"IF((SUMIF('4 - Species Breakdown'!$AD$31:$AD$1028,'5 - Composition & ACs'!C107,'4 - Species Breakdown'!$AF$31:$AF$1028))=0,\"\",SUMIF('4 - Species Breakdown'!$AD$31:$AD$1028,'5 - Composition & ACs'!C107,'4 - Species Breakdown'!$AF$31:$AF$1028))","v":""},{"$f":"_xlfn.TEXTJOIN(\"|\",TRUE,IF('4 - Species Breakdown'!$AD$31:$AD$1028=C107,'4 - Species Breakdown'!$AE$31:$AE$1028,\"\"))","v":""}]
[null,{"$f":"IF('3 - Land Summary'!B111=0,\"\",'3 - Land Summary'!B111)","v":""},{"$f":"IF('3 - Land Summary'!C111=0,\" \",'3 - Land Summary'!C111)","v":" "},{"$f":"IF('3 - Land Summary'!D111=0,\"\",'3 - Land Summary'!D111)","v":""},{"$f":"IF('3 - Land Summary'!F111=0,\"\",'3 - Land Summary'!F111)","v":""},{"$f":"IF('3 - Land Summary'!G111=0,\"\",'3 - Land Summary'!G111)","v":""},{"$f":"IF('3 - Land Summary'!I111=0,\"\",'3 - Land Summary'!I111)","v":""},{"$f":"IF((SUMIF('4 - Species Breakdown'!$C$31:$C$1028,'3 - Land Summary'!C111,'4 - Species Breakdown'!$K$31:$K$1028))=0,\"\",SUMIF('4 - Species Breakdown'!$C$31:$C$1028,'3 - Land Summary'!C111,'4 - Species Breakdown'!$K$31:$K$1028))","v":""},{"$f":"_xlfn.TEXTJOIN(\"|\",TRUE,IF('4 - Species Breakdown'!$C$31:$C$1028=C108,'4 - Species Breakdown'!$D$31:$D$1028,\"\"))","v":""},{"$f":"_xlfn.TEXTJOIN(\"|\",TRUE,IF('4 - Species Breakdown'!$C$31:$C$1028=C108,'4 - Species Breakdown'!$F$31:$F$1028,\"\"))","v":""},{"$f":"_xlfn.TEXTJOIN(\"|\",TRUE,IF('4 - Species Breakdown'!$C$31:$C$1028=C108,'4 - Species Breakdown'!$G$31:$G$1028,\"\"))","v":""},{"$f":"IF((SUMIF('4 - Species Breakdown'!$AD$31:$AD$1028,'5 - Composition & ACs'!C108,'4 - Species Breakdown'!$AF$31:$AF$1028))=0,\"\",SUMIF('4 - Species Breakdown'!$AD$31:$AD$1028,'5 - Composition & ACs'!C108,'4 - Species Breakdown'!$AF$31:$AF$1028))","v":""},{"$f":"_xlfn.TEXTJOIN(\"|\",TRUE,IF('4 - Species Breakdown'!$AD$31:$AD$1028=C108,'4 - Species Breakdown'!$AE$31:$AE$1028,\"\"))","v":""}]
[null,{"$f":"IF('3 - Land Summary'!B112=0,\"\",'3 - Land Summary'!B112)","v":""},{"$f":"IF('3 - Land Summary'!C112=0,\" \",'3 - Land Summary'!C112)","v":" "},{"$f":"IF('3 - Land Summary'!D112=0,\"\",'3 - Land Summary'!D112)","v":""},{"$f":"IF('3 - Land Summary'!F112=0,\"\",'3 - Land Summary'!F112)","v":""},{"$f":"IF('3 - Land Summary'!G112=0,\"\",'3 - Land Summary'!G112)","v":""},{"$f":"IF('3 - Land Summary'!I112=0,\"\",'3 - Land Summary'!I112)","v":""},{"$f":"IF((SUMIF('4 - Species Breakdown'!$C$31:$C$1028,'3 - Land Summary'!C112,'4 - Species Breakdown'!$K$31:$K$1028))=0,\"\",SUMIF('4 - Species Breakdown'!$C$31:$C$1028,'3 - Land Summary'!C112,'4 - Species Breakdown'!$K$31:$K$1028))","v":""},{"$f":"_xlfn.TEXTJOIN(\"|\",TRUE,IF('4 - Species Breakdown'!$C$31:$C$1028=C109,'4 - Species Breakdown'!$D$31:$D$1028,\"\"))","v":""},{"$f":"_xlfn.TEXTJOIN(\"|\",TRUE,IF('4 - Species Breakdown'!$C$31:$C$1028=C109,'4 - Species Breakdown'!$F$31:$F$1028,\"\"))","v":""},{"$f":"_xlfn.TEXTJOIN(\"|\",TRUE,IF('4 - Species Breakdown'!$C$31:$C$1028=C109,'4 - Species Breakdown'!$G$31:$G$1028,\"\"))","v":""},{"$f":"IF((SUMIF('4 - Species Breakdown'!$AD$31:$AD$1028,'5 - Composition & ACs'!C109,'4 - Species Breakdown'!$AF$31:$AF$1028))=0,\"\",SUMIF('4 - Species Breakdown'!$AD$31:$AD$1028,'5 - Composition & ACs'!C109,'4 - Species Breakdown'!$AF$31:$AF$1028))","v":""},{"$f":"_xlfn.TEXTJOIN(\"|\",TRUE,IF('4 - Species Breakdown'!$AD$31:$AD$1028=C109,'4 - Species Breakdown'!$AE$31:$AE$1028,\"\"))","v":""}]
[null,{"$f":"IF('3 - Land Summary'!B113=0,\"\",'3 - Land Summary'!B113)","v":""},{"$f":"IF('3 - Land Summary'!C113=0,\" \",'3 - Land Summary'!C113)","v":" "},{"$f":"IF('3 - Land Summary'!D113=0,\"\",'3 - Land Summary'!D113)","v":""},{"$f":"IF('3 - Land Summary'!F113=0,\"\",'3 - Land Summary'!F113)","v":""},{"$f":"IF('3 - Land Summary'!G113=0,\"\",'3 - Land Summary'!G113)","v":""},{"$f":"IF('3 - Land Summary'!I113=0,\"\",'3 - Land Summary'!I113)","v":""},{"$f":"IF((SUMIF('4 - Species Breakdown'!$C$31:$C$1028,'3 - Land Summary'!C113,'4 - Species Breakdown'!$K$31:$K$1028))=0,\"\",SUMIF('4 - Species Breakdown'!$C$31:$C$1028,'3 - Land Summary'!C113,'4 - Species Breakdown'!$K$31:$K$1028))","v":""},{"$f":"_xlfn.TEXTJOIN(\"|\",TRUE,IF('4 - Species Breakdown'!$C$31:$C$1028=C110,'4 - Species Breakdown'!$D$31:$D$1028,\"\"))","v":""},{"$f":"_xlfn.TEXTJOIN(\"|\",TRUE,IF('4 - Species Breakdown'!$C$31:$C$1028=C110,'4 - Species Breakdown'!$F$31:$F$1028,\"\"))","v":""},{"$f":"_xlfn.TEXTJOIN(\"|\",TRUE,IF('4 - Species Breakdown'!$C$31:$C$1028=C110,'4 - Species Breakdown'!$G$31:$G$1028,\"\"))","v":""},{"$f":"IF((SUMIF('4 - Species Breakdown'!$AD$31:$AD$1028,'5 - Composition & ACs'!C110,'4 - Species Breakdown'!$AF$31:$AF$1028))=0,\"\",SUMIF('4 - Species Breakdown'!$AD$31:$AD$1028,'5 - Composition & ACs'!C110,'4 - Species Breakdown'!$AF$31:$AF$1028))","v":""},{"$f":"_xlfn.TEXTJOIN(\"|\",TRUE,IF('4 - Species Breakdown'!$AD$31:$AD$1028=C110,'4 - Species Breakdown'!$AE$31:$AE$1028,\"\"))","v":""}]
[null,{"$f":"IF('3 - Land Summary'!B114=0,\"\",'3 - Land Summary'!B114)","v":""},{"$f":"IF('3 - Land Summary'!C114=0,\" \",'3 - Land Summary'!C114)","v":" "},{"$f":"IF('3 - Land Summary'!D114=0,\"\",'3 - Land Summary'!D114)","v":""},{"$f":"IF('3 - Land Summary'!F114=0,\"\",'3 - Land Summary'!F114)","v":""},{"$f":"IF('3 - Land Summary'!G114=0,\"\",'3 - Land Summary'!G114)","v":""},{"$f":"IF('3 - Land Summary'!I114=0,\"\",'3 - Land Summary'!I114)","v":""},{"$f":"IF((SUMIF('4 - Species Breakdown'!$C$31:$C$1028,'3 - Land Summary'!C114,'4 - Species Breakdown'!$K$31:$K$1028))=0,\"\",SUMIF('4 - Species Breakdown'!$C$31:$C$1028,'3 - Land Summary'!C114,'4 - Species Breakdown'!$K$31:$K$1028))","v":""},{"$f":"_xlfn.TEXTJOIN(\"|\",TRUE,IF('4 - Species Breakdown'!$C$31:$C$1028=C111,'4 - Species Breakdown'!$D$31:$D$1028,\"\"))","v":""},{"$f":"_xlfn.TEXTJOIN(\"|\",TRUE,IF('4 - Species Breakdown'!$C$31:$C$1028=C111,'4 - Species Breakdown'!$F$31:$F$1028,\"\"))","v":""},{"$f":"_xlfn.TEXTJOIN(\"|\",TRUE,IF('4 - Species Breakdown'!$C$31:$C$1028=C111,'4 - Species Breakdown'!$G$31:$G$1028,\"\"))","v":""},{"$f":"IF((SUMIF('4 - Species Breakdown'!$AD$31:$AD$1028,'5 - Composition & ACs'!C111,'4 - Species Breakdown'!$AF$31:$AF$1028))=0,\"\",SUMIF('4 - Species Breakdown'!$AD$31:$AD$1028,'5 - Composition & ACs'!C111,'4 - Species Breakdown'!$AF$31:$AF$1028))","v":""},{"$f":"_xlfn.TEXTJOIN(\"|\",TRUE,IF('4 - Species Breakdown'!$AD$31:$AD$1028=C111,'4 - Species Breakdown'!$AE$31:$AE$1028,\"\"))","v":""}]
[null,{"$f":"IF('3 - Land Summary'!B115=0,\"\",'3 - Land Summary'!B115)","v":""},{"$f":"IF('3 - Land Summary'!C115=0,\" \",'3 - Land Summary'!C115)","v":" "},{"$f":"IF('3 - Land Summary'!D115=0,\"\",'3 - Land Summary'!D115)","v":""},{"$f":"IF('3 - Land Summary'!F115=0,\"\",'3 - Land Summary'!F115)","v":""},{"$f":"IF('3 - Land Summary'!G115=0,\"\",'3 - Land Summary'!G115)","v":""},{"$f":"IF('3 - Land Summary'!I115=0,\"\",'3 - Land Summary'!I115)","v":""},{"$f":"IF((SUMIF('4 - Species Breakdown'!$C$31:$C$1028,'3 - Land Summary'!C115,'4 - Species Breakdown'!$K$31:$K$1028))=0,\"\",SUMIF('4 - Species Breakdown'!$C$31:$C$1028,'3 - Land Summary'!C115,'4 - Species Breakdown'!$K$31:$K$1028))","v":""},{"$f":"_xlfn.TEXTJOIN(\"|\",TRUE,IF('4 - Species Breakdown'!$C$31:$C$1028=C112,'4 - Species Breakdown'!$D$31:$D$1028,\"\"))","v":""},{"$f":"_xlfn.TEXTJOIN(\"|\",TRUE,IF('4 - Species Breakdown'!$C$31:$C$1028=C112,'4 - Species Breakdown'!$F$31:$F$1028,\"\"))","v":""},{"$f":"_xlfn.TEXTJOIN(\"|\",TRUE,IF('4 - Species Breakdown'!$C$31:$C$1028=C112,'4 - Species Breakdown'!$G$31:$G$1028,\"\"))","v":""},{"$f":"IF((SUMIF('4 - Species Breakdown'!$AD$31:$AD$1028,'5 - Composition & ACs'!C112,'4 - Species Breakdown'!$AF$31:$AF$1028))=0,\"\",SUMIF('4 - Species Breakdown'!$AD$31:$AD$1028,'5 - Composition & ACs'!C112,'4 - Species Breakdown'!$AF$31:$AF$1028))","v":""},{"$f":"_xlfn.TEXTJOIN(\"|\",TRUE,IF('4 - Species Breakdown'!$AD$31:$AD$1028=C112,'4 - Species Breakdown'!$AE$31:$AE$1028,\"\"))","v":""}]
[null,{"$f":"IF('3 - Land Summary'!B116=0,\"\",'3 - Land Summary'!B116)","v":""},{"$f":"IF('3 - Land Summary'!C116=0,\" \",'3 - Land Summary'!C116)","v":" "},{"$f":"IF('3 - Land Summary'!D116=0,\"\",'3 - Land Summary'!D116)","v":""},{"$f":"IF('3 - Land Summary'!F116=0,\"\",'3 - Land Summary'!F116)","v":""},{"$f":"IF('3 - Land Summary'!G116=0,\"\",'3 - Land Summary'!G116)","v":""},{"$f":"IF('3 - Land Summary'!I116=0,\"\",'3 - Land Summary'!I116)","v":""},{"$f":"IF((SUMIF('4 - Species Breakdown'!$C$31:$C$1028,'3 - Land Summary'!C116,'4 - Species Breakdown'!$K$31:$K$1028))=0,\"\",SUMIF('4 - Species Breakdown'!$C$31:$C$1028,'3 - Land Summary'!C116,'4 - Species Breakdown'!$K$31:$K$1028))","v":""},{"$f":"_xlfn.TEXTJOIN(\"|\",TRUE,IF('4 - Species Breakdown'!$C$31:$C$1028=C113,'4 - Species Breakdown'!$D$31:$D$1028,\"\"))","v":""},{"$f":"_xlfn.TEXTJOIN(\"|\",TRUE,IF('4 - Species Breakdown'!$C$31:$C$1028=C113,'4 - Species Breakdown'!$F$31:$F$1028,\"\"))","v":""},{"$f":"_xlfn.TEXTJOIN(\"|\",TRUE,IF('4 - Species Breakdown'!$C$31:$C$1028=C113,'4 - Species Breakdown'!$G$31:$G$1028,\"\"))","v":""},{"$f":"IF((SUMIF('4 - Species Breakdown'!$AD$31:$AD$1028,'5 - Composition & ACs'!C113,'4 - Species Breakdown'!$AF$31:$AF$1028))=0,\"\",SUMIF('4 - Species Breakdown'!$AD$31:$AD$1028,'5 - Composition & ACs'!C113,'4 - Species Breakdown'!$AF$31:$AF$1028))","v":""},{"$f":"_xlfn.TEXTJOIN(\"|\",TRUE,IF('4 - Species Breakdown'!$AD$31:$AD$1028=C113,'4 - Species Breakdown'!$AE$31:$AE$1028,\"\"))","v":""}]
[null,{"$f":"IF('3 - Land Summary'!B117=0,\"\",'3 - Land Summary'!B117)","v":""},{"$f":"IF('3 - Land Summary'!C117=0,\" \",'3 - Land Summary'!C117)","v":" "},{"$f":"IF('3 - Land Summary'!D117=0,\"\",'3 - Land Summary'!D117)","v":""},{"$f":"IF('3 - Land Summary'!F117=0,\"\",'3 - Land Summary'!F117)","v":""},{"$f":"IF('3 - Land Summary'!G117=0,\"\",'3 - Land Summary'!G117)","v":""},{"$f":"IF('3 - Land Summary'!I117=0,\"\",'3 - Land Summary'!I117)","v":""},{"$f":"IF((SUMIF('4 - Species Breakdown'!$C$31:$C$1028,'3 - Land Summary'!C117,'4 - Species Breakdown'!$K$31:$K$1028))=0,\"\",SUMIF('4 - Species Breakdown'!$C$31:$C$1028,'3 - Land Summary'!C117,'4 - Species Breakdown'!$K$31:$K$1028))","v":""},{"$f":"_xlfn.TEXTJOIN(\"|\",TRUE,IF('4 - Species Breakdown'!$C$31:$C$1028=C114,'4 - Species Breakdown'!$D$31:$D$1028,\"\"))","v":""},{"$f":"_xlfn.TEXTJOIN(\"|\",TRUE,IF('4 - Species Breakdown'!$C$31:$C$1028=C114,'4 - Species Breakdown'!$F$31:$F$1028,\"\"))","v":""},{"$f":"_xlfn.TEXTJOIN(\"|\",TRUE,IF('4 - Species Breakdown'!$C$31:$C$1028=C114,'4 - Species Breakdown'!$G$31:$G$1028,\"\"))","v":""},{"$f":"IF((SUMIF('4 - Species Breakdown'!$AD$31:$AD$1028,'5 - Composition & ACs'!C114,'4 - Species Breakdown'!$AF$31:$AF$1028))=0,\"\",SUMIF('4 - Species Breakdown'!$AD$31:$AD$1028,'5 - Composition & ACs'!C114,'4 - Species Breakdown'!$AF$31:$AF$1028))","v":""},{"$f":"_xlfn.TEXTJOIN(\"|\",TRUE,IF('4 - Species Breakdown'!$AD$31:$AD$1028=C114,'4 - Species Breakdown'!$AE$31:$AE$1028,\"\"))","v":""}]
[null,{"$f":"IF('3 - Land Summary'!B118=0,\"\",'3 - Land Summary'!B118)","v":""},{"$f":"IF('3 - Land Summary'!C118=0,\" \",'3 - Land Summary'!C118)","v":" "},{"$f":"IF('3 - Land Summary'!D118=0,\"\",'3 - Land Summary'!D118)","v":""},{"$f":"IF('3 - Land Summary'!F118=0,\"\",'3 - Land Summary'!F118)","v":""},{"$f":"IF('3 - Land Summary'!G118=0,\"\",'3 - Land Summary'!G118)","v":""},{"$f":"IF('3 - Land Summary'!I118=0,\"\",'3 - Land Summary'!I118)","v":""},{"$f":"IF((SUMIF('4 - Species Breakdown'!$C$31:$C$1028,'3 - Land Summary'!C118,'4 - Species Breakdown'!$K$31:$K$1028))=0,\"\",SUMIF('4 - Species Breakdown'!$C$31:$C$1028,'3 - Land Summary'!C118,'4 - Species Breakdown'!$K$31:$K$1028))","v":""},{"$f":"_xlfn.TEXTJOIN(\"|\",TRUE,IF('4 - Species Breakdown'!$C$31:$C$1028=C115,'4 - Species Breakdown'!$D$31:$D$1028,\"\"))","v":""},{"$f":"_xlfn.TEXTJOIN(\"|\",TRUE,IF('4 - Species Breakdown'!$C$31:$C$1028=C115,'4 - Species Breakdown'!$F$31:$F$1028,\"\"))","v":""},{"$f":"_xlfn.TEXTJOIN(\"|\",TRUE,IF('4 - Species Breakdown'!$C$31:$C$1028=C115,'4 - Species Breakdown'!$G$31:$G$1028,\"\"))","v":""},{"$f":"IF((SUMIF('4 - Species Breakdown'!$AD$31:$AD$1028,'5 - Composition & ACs'!C115,'4 - Species Breakdown'!$AF$31:$AF$1028))=0,\"\",SUMIF('4 - Species Breakdown'!$AD$31:$AD$1028,'5 - Composition & ACs'!C115,'4 - Species Breakdown'!$AF$31:$AF$1028))","v":""},{"$f":"_xlfn.TEXTJOIN(\"|\",TRUE,IF('4 - Species Breakdown'!$AD$31:$AD$1028=C115,'4 - Species Breakdown'!$AE$31:$AE$1028,\"\"))","v":""}]
[null,{"$f":"IF('3 - Land Summary'!B119=0,\"\",'3 - Land Summary'!B119)","v":""},{"$f":"IF('3 - Land Summary'!C119=0,\" \",'3 - Land Summary'!C119)","v":" "},{"$f":"IF('3 - Land Summary'!D119=0,\"\",'3 - Land Summary'!D119)","v":""},{"$f":"IF('3 - Land Summary'!F119=0,\"\",'3 - Land Summary'!F119)","v":""},{"$f":"IF('3 - Land Summary'!G119=0,\"\",'3 - Land Summary'!G119)","v":""},{"$f":"IF('3 - Land Summary'!I119=0,\"\",'3 - Land Summary'!I119)","v":""},{"$f":"IF((SUMIF('4 - Species Breakdown'!$C$31:$C$1028,'3 - Land Summary'!C119,'4 - Species Breakdown'!$K$31:$K$1028))=0,\"\",SUMIF('4 - Species Breakdown'!$C$31:$C$1028,'3 - Land Summary'!C119,'4 - Species Breakdown'!$K$31:$K$1028))","v":""},{"$f":"_xlfn.TEXTJOIN(\"|\",TRUE,IF('4 - Species Breakdown'!$C$31:$C$1028=C116,'4 - Species Breakdown'!$D$31:$D$1028,\"\"))","v":""},{"$f":"_xlfn.TEXTJOIN(\"|\",TRUE,IF('4 - Species Breakdown'!$C$31:$C$1028=C116,'4 - Species Breakdown'!$F$31:$F$1028,\"\"))","v":""},{"$f":"_xlfn.TEXTJOIN(\"|\",TRUE,IF('4 - Species Breakdown'!$C$31:$C$1028=C116,'4 - Species Breakdown'!$G$31:$G$1028,\"\"))","v":""},{"$f":"IF((SUMIF('4 - Species Breakdown'!$AD$31:$AD$1028,'5 - Composition & ACs'!C116,'4 - Species Breakdown'!$AF$31:$AF$1028))=0,\"\",SUMIF('4 - Species Breakdown'!$AD$31:$AD$1028,'5 - Composition & ACs'!C116,'4 - Species Breakdown'!$AF$31:$AF$1028))","v":""},{"$f":"_xlfn.TEXTJOIN(\"|\",TRUE,IF('4 - Species Breakdown'!$AD$31:$AD$1028=C116,'4 - Species Breakdown'!$AE$31:$AE$1028,\"\"))","v":""}]
[null,{"$f":"IF('3 - Land Summary'!B120=0,\"\",'3 - Land Summary'!B120)","v":""},{"$f":"IF('3 - Land Summary'!C120=0,\" \",'3 - Land Summary'!C120)","v":" "},{"$f":"IF('3 - Land Summary'!D120=0,\"\",'3 - Land Summary'!D120)","v":""},{"$f":"IF('3 - Land Summary'!F120=0,\"\",'3 - Land Summary'!F120)","v":""},{"$f":"IF('3 - Land Summary'!G120=0,\"\",'3 - Land Summary'!G120)","v":""},{"$f":"IF('3 - Land Summary'!I120=0,\"\",'3 - Land Summary'!I120)","v":""},{"$f":"IF((SUMIF('4 - Species Breakdown'!$C$31:$C$1028,'3 - Land Summary'!C120,'4 - Species Breakdown'!$K$31:$K$1028))=0,\"\",SUMIF('4 - Species Breakdown'!$C$31:$C$1028,'3 - Land Summary'!C120,'4 - Species Breakdown'!$K$31:$K$1028))","v":""},{"$f":"_xlfn.TEXTJOIN(\"|\",TRUE,IF('4 - Species Breakdown'!$C$31:$C$1028=C117,'4 - Species Breakdown'!$D$31:$D$1028,\"\"))","v":""},{"$f":"_xlfn.TEXTJOIN(\"|\",TRUE,IF('4 - Species Breakdown'!$C$31:$C$1028=C117,'4 - Species Breakdown'!$F$31:$F$1028,\"\"))","v":""},{"$f":"_xlfn.TEXTJOIN(\"|\",TRUE,IF('4 - Species Breakdown'!$C$31:$C$1028=C117,'4 - Species Breakdown'!$G$31:$G$1028,\"\"))","v":""},{"$f":"IF((SUMIF('4 - Species Breakdown'!$AD$31:$AD$1028,'5 - Composition & ACs'!C117,'4 - Species Breakdown'!$AF$31:$AF$1028))=0,\"\",SUMIF('4 - Species Breakdown'!$AD$31:$AD$1028,'5 - Composition & ACs'!C117,'4 - Species Breakdown'!$AF$31:$AF$1028))","v":""},{"$f":"_xlfn.TEXTJOIN(\"|\",TRUE,IF('4 - Species Breakdown'!$AD$31:$AD$1028=C117,'4 - Species Breakdown'!$AE$31:$AE$1028,\"\"))","v":""}]
[null,null,null,null,null,null,null,null,null,null,null,null,"HIDDEN TOTAL",{"$f":"SUM(N18:N117)","v":0},{"$f":"SUM(O18:O117)","v":0},0,0,0,0,0,0,0,0,0]

{"sheet":"6 - Standard Cost Items","index":12,"n_rows":52,"n_cols":9,"rows_kept":52,"cut":false,"hidden":false,"merged":[[13,1,18,1],[19,1,35,1],[36,1,40,1],[16,2,16,3],[29,2,29,3],[25,2,25,3],[23,2,23,3],[24,2,24,3],[26,2,26,3],[27,2,27,3],[28,2,28,3],[39,2,39,3],[18,2,18,3],[19,2,19,3],[20,2,20,3],[21,2,21,3],[49,1,51,1],[38,2,38,3],[48,2,48,3],[41,1,43,1],[44,1,48,1],[51,2,51,3],[3,1,3,8],[14,2,14,3],[35,2,35,3],[36,2,36,3],[37,2,37,3],[30,2,30,3],[31,2,31,3],[32,2,32,3],[33,2,33,3],[34,2,34,3],[11,2,11,3],[12,2,12,3],[13,2,13,3],[6,2,6,3],[7,2,7,3],[15,2,15,3],[6,5,6,6],[7,5,7,6],[8,5,8,6],[9,5,9,6],[50,2,50,3],[41,2,41,3],[42,2,42,3],[40,2,40,3],[43,2,43,3],[49,2,49,3],[45,2,45,3],[44,2,44,3],[46,2,46,3],[47,2,47,3],[17,2,17,3],[22,2,22,3]]}
[]
[null,"Section 6 - Standard Cost Items"]
[]
[]
[]
[]
[null,"EWCO reference:",{"$f":"IF('1 - Site Details'!C7=\"\",\"\",'1 - Site Details'!C7)","v":""},null,null,"Total gross area (ha)",null,{"$f":"ROUND(IF('3 - Land Summary'!$K$12=\"\",\"\",'3 - Land Summary'!$K$12),2)","v":0}]
[null,"Property/site name:",{"$f":"IF('1 - Site Details'!C8=\"\",\"\",'1 - Site Details'!C8)","v":""},null,null,"Total net area (ha)",null,{"$f":"ROUND(IF('3 - Land Summary'!$K$14=\"\",\"\",'3 - Land Summary'!$K$14),2)","v":0}]
[null,null,null,null,null,"Total cost of capital items:",null,{"$f":"IFERROR(SUM(H14:H52),0)","v":0}]
[null,null,null,null,null,"Average cost per hectare (excl. leaky woody dams):",null,{"$f":"IFERROR(SUM(H14:H49,H52)/H7,0)","v":0}]
[]
[null,"A","B",null,"C","D","E","F","G"]
[null,"CATEGORY","STANDARD COST ITEM",null,"Price","Unit","Quantity\n(enter value)","Cost\n(auto)","Compartment(s) where this item is used \n(enter reference(s), separate with comma \",\" if multiple)"]
[null,"PLANTING","Supply and plant tree",null,1.72,"/tree",{"$f":"('4 - Species Breakdown'!$AE$21)","v":0},{"$f":"IFERROR(E14*G14,\"\")","v":0}]
[null,null,"Supply and plant tree (EPREC)",null,1.72,"/tree",null,{"$f":"IFERROR(E15*G15,\"\")","v":0}]
[null,null,"Supplement for use of individual tree shelter",null,2.4300000000000002,"/each",null,0]
[null,null,"Supplement for use of individual tree wrap",null,1.23,"/each",null,0]
[null,null,"Ground preparation (scarification for natural colonisation)",null,121.85,"/ha",null,0]
[null,null,"Mulch mats",null,1.79,"/each",null,0]
[null,"BOUNDARY MANAGEMENT","Stone wall top wiring",null,5.54,"/m",null,0]
[null,null,"Dry stone wall repair",null,31.91,"/m",null,0]
[null,null,"Post and wire fencing",null,7.92,"/m",null,0]
[null,null,"Sheep netting",null,9.34,"/m",null,0]
[null,null,"Deer fencing",null,10.27,"/m",null,0]
[null,null,"Rabbit netting supplement",null,5.65,"/m",null,0]
[null,null,"Temporary electric fencing",null,6.38,"/m",null,0]
[null,null,"Difficult site fencing supplement (eligible for stock and deer)",null,3.98,"/m",null,0]
[null,null,"Strike markers",null,0.93,"/m",null,0]
[null,null,"Badger gate",null,61.81,"/gate",null,0]
[null,null,"Badger tube",null,58.49,"/tube",null,0]
[null,null,"Metal field gate",null,340,"/gate",null,0]
[null,null,"Wooden field gate",null,612,"/gate",null,0]
[null,null,"Vehicle deer gate",null,749.63,"/gate",null,0]
[null,null,"Pedestrian gate, bridle gate or kissing gate",null,447.6,"/gate",null,0]
[null,null,"Pedestrian deer gate",null,475.44,"/gate",null,0]
[null,null,"Water gate",null,532.79999999999995,"/gate",null,0]
[null,"DEER MANAGEMENT","Deer exclosure plots",null,212.56,"/each",null,0]
[null,null,"Deer high seat (lean-to)",null,265,"/each",null,0]
[null,null,"Deer high seat supplement (free-standing)",null,180,"/each",null,0]
[null,null,"Shooting mounds 3m wide x 2m high",null,250,"/each",null,0]
[null,null,"Deer repellent",null,0.27,"/tree",null,0]
[null,"VEGETATION MANAGEMENT","Chemical bracken control",null,270.89999999999998,"/ha",null,0]
[null,null,"Mechanical bracken control",null,190.9,"/ha",null,0]
[null,null,"Bracken control supplement for follow up treatment",null,191.25,"/ha",null,0]
[null,"PROVISION OF DRINKING WATER FOR STOCK","Hard base for livestock drinkers",null,179.15,"/each",null,0]
[null,null,"Pasture pump and associated pipework",null,295.89999999999998,"/each",null,0]
[null,null,"Ram pump and associated pipework",null,1861,"/each",null,0]
[null,null,"Livestock trough",null,152.91999999999999,"/each",null,0]
[null,null,"Pipework associated with livestock troughs",null,3.31,"/m",null,0]
[null,"FLOOD MANAGEMENT","Small leaky woody dam (1 to 2.99 metres)",null,461.39,"/each",null,0]
[null,null,"Large leaky woody dam (3 to 5 metres)",null,764.42,"/each",null,0]
[null,null,"Culvert",null,376.23,"/each",null,{"$f":"IFERROR(E52*G52,\"\")","v":0}]

{"sheet":"7 - Operational Plan","index":13,"n_rows":42,"n_cols":7,"rows_kept":42,"cut":false,"hidden":false,"merged":[[16,6,16,9],[17,6,17,9],[41,4,42,9],[37,4,37,9],[38,4,39,9],[31,4,32,9],[27,4,27,9],[28,4,29,9],[33,4,33,9],[30,4,30,9],[34,4,36,9],[14,6,14,9],[41,3,42,3],[40,4,40,9],[15,1,15,2],[16,1,16,2],[17,1,17,2],[24,2,26,2],[24,3,26,3],[22,1,22,9],[18,3,19,4],[18,1,19,2],[23,4,23,9],[24,4,26,9],[15,3,15,4],[16,3,16,4],[17,3,17,4],[1,1,1,5],[41,2,42,2],[38,3,39,3],[34,2,36,2],[34,3,36,3],[31,2,32,2],[38,2,39,2],[31,3,32,3],[28,2,29,2],[28,3,29,3],[10,2,10,4],[11,2,11,4],[13,1,13,4],[14,1,14,4],[3,1,3,8],[13,6,13,9]]}
[]
[null,"Section 7 - Operational Plan"]
[]
[]
[]
[]
[]
[]
[]
[]
[null,"EWCO reference:",{"$f":"IF('1 - Site Details'!C7=\"\",\"\",'1 - Site Details'!C7)","v":""}]
[null,"Property/site name:",{"$f":"IF('1 - Site Details'!C8=\"\",\"\",'1 - Site Details'!C8)","v":""}]
[]
[null,"Tree supply and biosecurity",null,null,null,null,"Planting season"]
[null,"You are not obliged to purchase from the supplier you list here but failure to adhere to the procurement requirement may result in a reduction in the payment of your claim. Trees not purchased from a commercial supplier may be excepted, please submit an Exception Request Form. ",null,null,null,null,"The planting season runs October-March but varies depending on geographical location. \nYou must complete all capital work within the Grant Funding Period (see Section 7 of the How the England Woodland Creation works gov.uk page )."]
[null,"I have confirmed adequate stock will be available from a UK nursery:\n(select drop-down)",null,null,null,null,"Anticipated planting year(s):\n(select drop-down)"]
[null,"Name and postcode of the nursery contacted:\n(enter details)",null,null,null,null,"Claim year"]
[null,"Is this a commercial nursery?\n(select drop-down)",null,null,null,null,"All work must be completed before you claim for it. You can make multiple claims but you must submit your final claim within three months of your End of Capital Funding Date."]
[null,"If yes, select which applies:\n(select drop-down)",null,null,null,null,"Anticipated claim year(s):\n(select drop-down)"]
[]
[]
[]
[null,"Operational Plan"]
[null,"PHYSICAL PROTECTION","(select drop-down)","Felling Licence required?\n(select drop-down)","Outline of physical protection requirements"]
[null,"Does your proposal require physical protection?\nIf so, please describe the type (fencing: stock, deer etc., tree shelters, spirals). What mammals are there likely to be there in the next 5 - 15 years? \n\nIf fencing, is any preparatory work needed, such as felling branches or trees from the fence line (and, if so, is a Felling Licence required)? Can machinery do the work if fence lines are adjusted? \n\nIf using tree shelters or spirals, what is your plan for their removal and recycling/disposal?\n\nFor best practice guidelines, please refer to the links below:"]
[]
[]
[null,"ACCESS","(select drop-down)","Planning permission or GPDO required?\n(select drop-down)","Outline of access requirements"]
[null,"Are you going to build a new entrance, hardstanding for vehicles, or any type of hard track that needs either planning permission or a General Permitted Development Order (GPDO)?\nOn a very large scheme, you should not underestimate the amount of potential vehicles on site, low-loaders, lorries delivering fencing materials, etc.\n\nFor best practice guidelines, please refer to the link below:"]
[]
[null,"CULTIVATION","(select drop-down)","Area (ha)","Outline of cultivation methodology and mitigation\nHow will you ensure impacts from your proposal are\n accounted for and mitigated where possible?"]
[null,"Do you need to cultivate? \nYou should consider whether you could simply use herbicide instead. If you do need to cultivate, what are you going to do to minimise soil disturbance, potential run-off, etc.? Please describe the type of operation (scarification, mounding etc., layout of cultivation lines, etc.).\n\nFor best practice guidelines, please refer to the link below:"]
[]
[null,"HERBICIDE/INSECTICIDE (Chemicals)","(select drop-down)","Area (ha)","Outline of use of chemicals and mitigation\nHow will you ensure impacts from your proposal are \naccounted for and mitigated where possible?"]
[null,"Do you need to apply any chemicals at all, particularly if the ground has been cultivated?\nIf so, what are you going to do - type of herbicide spraying, spot, band etc. Pre-dipped trees for insecticide or spray when in the ground? Chemical storage sites - water protection etc.\n\nFor best practice guidelines, please refer to the following links below:"]
[]
[]
[null,"FERTILISER APPLICATION","(select drop-down)","Area (ha)","Outline use of fertilisers and mitigation\nHow will you ensure impacts from your proposal are \naccounted for and mitigated where possible?"]
[null,"Do you need to apply fertiliser?\nIf so, how are you going to plan the operations, chemical storage sites, etc.?\n\nFor best practice guidelines, please refer to the link below:"]
[]
[null,"DRAINAGE","(select drop-down)",null,"Outline of operational requirements"]
[null,"Does your proposal require drainage? \nIf so, please describe the type (mole drains or open), location (are you trying to drain water off the site or stop water entering it?), any buffering strips, etc.\n\nFor best practice guidelines, please refer to the link below:"]

{"sheet":"8 - Infrastructure","index":14,"n_rows":76,"n_cols":7,"rows_kept":76,"cut":false,"hidden":false,"merged":[[74,3,74,4],[75,3,76,5],[51,2,51,3],[52,2,52,3],[53,2,53,3],[54,2,54,3],[55,2,55,3],[63,1,63,2],[63,3,63,5],[64,1,64,2],[64,3,64,5],[66,1,66,5],[67,1,67,5],[57,1,57,3],[61,1,61,2],[62,1,62,2],[62,3,62,5],[56,2,56,3],[48,1,48,5],[68,1,69,1],[36,1,36,5],[37,1,38,1],[43,3,43,4],[44,3,45,5],[61,3,61,5],[59,1,59,5],[60,1,60,5],[49,1,49,5],[19,1,19,4],[20,1,20,4],[21,1,21,4],[31,1,31,2],[29,1,29,5],[31,3,31,5],[24,1,24,4],[25,1,25,4],[26,1,26,3],[28,1,28,5],[30,1,30,2],[30,3,30,5],[22,1,22,4],[23,1,23,4],[1,1,1,4],[3,1,3,5],[14,1,14,5],[18,1,18,5],[9,1,9,3],[11,1,11,2],[13,1,13,5],[15,2,15,5],[17,1,17,5],[10,1,10,2],[33,1,33,2],[33,3,33,5],[35,1,35,5],[32,1,32,2],[32,3,32,5]]}
[]
[null,"Section 8 - Infrastructure"]
[]
[]
[]
[]
[null,"EWCO reference:",{"$f":"IF('1 - Site Details'!C7=\"\",\"\",'1 - Site Details'!C7)","v":""}]
[null,"Property/site name:",{"$f":"IF('1 - Site Details'!C8=\"\",\"\",'1 - Site Details'!C8)","v":""}]
[]
[null,"Payments towards actual costs for infrastructure"]
[null,"Are you applying for Woodland Infrastructure?\n(select drop-down)"]
[null,"Are you applying for Recreational Infrastructure?\n(select drop-down)"]
[]
[null,"VAT"]
[null,"Only complete this section if you are applying for payments towards actual costs for woodland or recreational infrastructure."]
[null,"Are you VAT registered?\n(select drop-down)"]
[]
[null,"Woodland Infrastructure"]
[null,"Only complete this section if you are applying for payments towards actual costs for woodland infrastructure."]
[null,"Proposed infrastructure and building specification",null,null,null,"Approximate Size (m)"]
[]
[]
[]
[]
[]
[]
[null,null,null,null,"Total:",{"$f":"IFERROR(SUM(F21:F26),\"\")","v":0}]
[]
[null,"Woodland Infrastructure details"]
[null,"Please submit a detailed specification (including maps and technical drawings) of the proposed works with your application."]
[null,"Rationale for applying for this infrastructure:\nHow will this benefit your overall woodland creation plan?"]
[null,"Will your work require permitted development?"]
[null,"Has permitted development been granted by the local authority?"]
[null,"Does your work require planning permission?"]
[]
[null,"Woodland Infrastructure quotations"]
[null,"If your works exceed £5,000, you must provide three quotes to complete the infrastructure works you are applying for. For works under £5,000, one quote is sufficient."]
[null,"Agent Fees","Agent Name","Cost","VAT","TOTAL (auto)"]
[null,null,null,null,null,{"$f":"IF(D39>0,SUM(D39,E39),\"\")","v":""}]
[null,"Contractor Fees","Contractor Name","Cost","VAT","TOTAL (auto)","Hidden"]
[null,"Quotation 1\n",null,null,null,{"$f":"IF(D41>0,SUM(D41,E41),\"\")","v":""},{"$f":"IF($C$16='Look Up Data'!$H$8,SUM($F$39,$F$41),SUM($D$39,$D$41))","v":0}]
[null,"Quotation 2\n",null,null,null,{"$f":"IF(D42>0,SUM(D42,E42),\"\")","v":""},{"$f":"IF($C$16='Look Up Data'!$H$8,SUM($F$39,$F$42),SUM($D$39,$D$42))","v":0}]
[null,"Quotation 3\n",null,null,null,"",{"$f":"IF($C$16='Look Up Data'!$H$8,SUM($F$39,$F$43),SUM($D$39,$D$43))","v":0}]
[null,"Select Quotation:",null,"Total actual costs of infrastructure, including VAT and agents fees (where applicable):",null,{"$f":"IFERROR(IF(C44=\"Quotation 1\",G41,IF(C44=\"Quotation 2\",G42,IF(C44=\"Quotation 3\",G43,0))),0)","v":0}]
[null,null,null,"Total grant payment towards these costs will be outlined in '10 - Grant Values (£)' "]
[]
[]
[]
[null,"Recreational Infrastructure"]
[null,"Only complete this section if you are applying for payments towards actual costs for recreational infrastructure."]
[null,"Compartment","Proposed infrastructure item",null,"Quantity","Cost (each)"]
[]
[]
[]
[]
[]
[]
[null,null,null,null,"Total:",{"$f":"IFERROR(SUM((E52*F52),(E53*F53),(E54*F54),(E55*F55),(E56*F56),(E57*F57)),\"\")","v":0}]
[]
[null,"Recreational infrastructure details"]
[null,"Please submit a detailed specification (including maps and technical drawings) of the proposed works with your application."]
[null,"Rationale for applying for this infrastructure:\nHow will this benefit your overall woodland creation plan?"]
[null,"Will your work require permitted development?"]
[null,"Has permitted development been granted by the local authority?"]
[null,"Does your work require planning permission?"]
[]
[null,"Recreational infrastructure quotations"]
[null,"If your works exceed £5,000, you must provide three quotes to complete the infrastructure works you are applying for. For works under £5,000, one quote is sufficient."]
[null,"Agent Fees","Agent Name","Cost","VAT","TOTAL (auto)"]
[null,null,null,null,null,{"$f":"IF(D70>0,SUM(D70,E70),\"\")","v":""}]
[null,"Contractor Fees","Contractor Name","Cost","VAT","TOTAL (auto)","Hidden"]
[null,"Quotation 1\n",null,null,null,{"$f":"IF(D72>0,SUM(D72,E72),\"\")","v":""},{"$f":"IF(C16='Look Up Data'!H8,SUM($F$70,$F$72),SUM($D$70,$D$72))","v":0}]
[null,"Quotation 2\n",null,null,null,{"$f":"IF(D73>0,SUM(D73,E73),\"\")","v":""},{"$f":"IF(C16='Look Up Data'!H8,SUM($F$70,$F$73),SUM($D$70,$D$73))","v":0}]
[null,"Quotation 3\n",null,null,null,{"$f":"IF(D74>0,SUM(D74,E74),\"\")","v":""},{"$f":"IF(C16='Look Up Data'!H8,SUM($F$70,$F$74),SUM($D$70,$D$74))","v":0}]
[null,"Select quotation:",null,"Total actual costs of infrastructure, including VAT and agents fees (where applicable):",null,{"$f":"IFERROR(IF(C75=\"Quotation 1\",G72,IF(C75=\"Quotation 2\",G73,IF(C75=\"Quotation 3\",G74,0))),0)","v":0}]
[null,null,null,"Total grant payment towards these costs will be outlined in '10 - Grant Values (£)' "]

{"sheet":"9 - Scoring","index":15,"n_rows":45,"n_cols":7,"rows_kept":45,"cut":false,"hidden":false,"merged":[[21,5,22,5],[21,6,22,6],[21,4,22,4],[21,1,21,3],[22,1,22,3],[20,1,20,4],[18,5,19,5],[13,1,13,6],[18,6,19,6],[19,1,19,3],[18,4,19,4],[17,1,17,4],[14,1,14,4],[40,1,40,2],[41,1,41,2],[42,1,42,2],[38,1,39,2],[32,1,34,2],[35,1,37,2],[30,1,30,6],[31,1,31,3],[7,1,7,2],[8,1,8,2],[15,1,15,3],[16,1,16,3],[18,1,18,3],[10,1,10,2],[11,1,11,2],[7,3,7,4],[8,3,8,4],[24,1,24,3],[26,1,26,3],[27,1,27,3],[25,1,25,4],[23,1,23,4]]}
[]
[null,"Section 9 - Scoring"]
[]
[]
[]
[]
[]
[null,"EWCO reference:",null,{"$f":"IF('1 - Site Details'!C7=\"\",\"\",'1 - Site Details'!C7)","v":""}]
[null,"Property/site name:",null,{"$f":"IF('1 - Site Details'!C8=\"\",\"\",'1 - Site Details'!C8)","v":""}]
[]
[null,"Total gross area (ha)",null,{"$f":"'3 - Land Summary'!K12","v":0}]
[null,"Total Points",null,{"$f":"IFERROR(G29+G45,0)","v":0}]
[]
[null,"Project level"]
[null,"Woodland Resilience",null,null,null,"(select drop-down)","Score (auto)"]
[null,"Planting proposals under 10 hectares in area includes at least three different species (each at least 5% of the planting mixture), or; planting proposals 10 hectares or greater in area include at least five different species (each at least 5% of the planting mixture).",null,null,5,null,{"$f":"IF(F16=\"YES\",5,0)","v":0}]
[null,"The planting proposal does not have more than 50% of a single species.",null,null,5,null,{"$f":"IF(F17=\"YES\",5,0)","v":0}]
[null,"Climate Change and Carbon Storage",null,null,null,"(select drop-down)","Score (auto)"]
[null,"The planting proposal has at least 80% of the planted area from tree species that are expected to be able to cope with future site conditions as the climate changes. This can be demonstrated using Forest Research's Ecological Site Classification (ESC) input with local soils information. Selected species should achieve an ESC assessment of ‘suitable’ or ‘very suitable’ under future climate scenarios (2050 High). Alternatively, local knowledge of likely yield class can be used to inform this assessment in agreement with the FC Woodland Officer, including for species that are not modelled by ESC. ",null,null,5,null,{"$f":"IF(F19=\"YES\",5,0)","v":0}]
[]
[null,"Low Sensitivity Land Incentives",null,null,null,"(select drop-down)","Score (auto)"]
[null,"The planting proposal is within a low sensitivity area for woodland creation. This can be demonstrated using the ‘England Woodland Creation Low Sensitivity Map version 4.0’ layer on the Land Information Search (LIS). At least 90% of the proposal falls within the low sensitivity area and the only sensitivity outside is the land’s agricultural grade.",null,null,5,null,{"$f":"IF(F22=\"YES\",5,0)","v":0}]
[]
[null,"Supporting Private Finance",null,null,null,"(select drop-down)","Score (auto)"]
[null,"The planting proposal will be part funded with private finance for ecosystem services, i.e. the application foregoes one or more eligible supplements for public benefits.",null,null,25,null,{"$f":"IF(F25=\"YES\",25,0)","v":0}]
[null,"Delivering at Appropriate Scales",null,null,null,null,"Score (auto)"]
[null,"Gross area between 5 hectares and 15 hectares.",null,null,5,null,{"$f":"IF(AND($D$11>4.99,$D$11<15),5,0)","v":0}]
[null,"Gross area greater than 15 hectares.",null,null,10,null,{"$f":"IF(AND($D$11>=15),10,0)","v":0}]
[null,null,null,null,null,"Total",{"$f":"SUM(G16:G28)","v":0}]
[]
[null,"Compartment level"]
[null,"Objective",null,null,"Points per ha","Area (auto)","Score (auto)"]
[null,"Nature Recovery",null,"Nature Recovery - Premium",40,{"$f":"'5 - Composition & ACs'!N$118","v":0},{"$f":"F33*E33","v":0}]
[null,null,null,"Nature Recovery - Higher",35,{"$f":"'5 - Composition & ACs'!O$118","v":0},{"$f":"F34*E34","v":0}]
[null,null,null,"Nature Recovery - Lower",15,{"$f":"'5 - Composition & ACs'!P$118","v":0},{"$f":"F35*E35","v":0}]
[null,"Water",null,"Water Quality",5,{"$f":"'5 - Composition & ACs'!Q$118","v":0},0]
[null,null,null,"Flood Risk Management",10,{"$f":"'5 - Composition & ACs'!R$118","v":0},0]
[null,null,null,"Riparian Buffers",30,{"$f":"'5 - Composition & ACs'!S$118","v":0},0]
[null,"Social/Recreational",null,"Social - Close to settlements",5,{"$f":"'5 - Composition & ACs'!T$118","v":0},0]
[null,null,null,"Social - Recreational Access",45,{"$f":"'5 - Composition & ACs'!U$118","v":0},0]
[null,"Future AC placeholder",null,"Future AC placeholder (hidden)",null,{"$f":"'5 - Composition & ACs'!V$118","v":0},{"$f":"F41*E41","v":0}]
[null,"Future AC placeholder",null,"Future AC placeholder (hidden)",null,{"$f":"'5 - Composition & ACs'!W$118","v":0},{"$f":"F42*E42","v":0}]
[null,"Air Quality",null,"Ammonia capture to safeguard SSSIs",5,{"$f":"'5 - Composition & ACs'!X$118","v":0},{"$f":"F43*E43","v":0}]
[null,null,null,null,null,"Total",{"$f":"SUM(G33:G43)","v":0}]
[null,null,null,null,null,"Average per hectare",{"$f":"IFERROR(ROUND((G44/D11),0),0)","v":0}]

{"sheet":"10 - Grant Values (£)","index":16,"n_rows":76,"n_cols":7,"rows_kept":76,"cut":false,"hidden":false,"merged":[[1,1,1,6],[6,2,6,4],[7,2,7,4],[18,1,18,7],[3,1,3,7],[77,1,77,3],[21,3,21,5],[21,6,21,7],[19,1,19,7],[22,1,22,7],[20,1,20,7],[23,1,23,7],[24,3,24,5],[24,6,24,7],[51,3,51,4],[58,2,58,3],[52,3,52,4],[27,1,27,2],[53,1,53,4],[50,1,50,5]]}
[]
[null,"Section 10 - Grant Values (£) "]
[]
[]
[]
[]
[null,"EWCO reference:",{"$f":"IF('1 - Site Details'!C7=\"\",\"\",'1 - Site Details'!C7)","v":""}]
[null,"Property/site name:",{"$f":"IF('1 - Site Details'!C8=\"\",\"\",'1 - Site Details'!C8)","v":""}]
[]
[null,"Grant Values (£) Summary"]
[null,"Total Standard Cost Items",{"$f":"C32","v":0}]
[null,"Total Low Sensitivity Land Payment",{"$f":"D36","v":0}]
[null,"Total Additional Contributions",{"$f":"D49","v":0}]
[null,"Total Actual Cost Items",{"$f":"SUM(F52:F53)","v":0}]
[null,"Total Annual Maintenance payments",{"$f":"D76","v":0}]
[null,"Total Grant (excluding Maintenance)",{"$f":"SUM(C11:C14)","v":0}]
[null,"Total Grant (including Maintenance)",{"$f":"SUM(C11:C15)","v":0}]
[]
[null,"Standard Cost Payment Cap"]
[null,"Fixed Grant Cap"]
[]
[null,"Has the fixed Grant cap on Standard Costs been exceeded?\n(If yes, the Grant will be capped at £10,200 per hectare)",{"$f":"IF($G$22>'Look Up Data'!$J$7,\"YES\",\"NO\")","v":"NO"},"Average cost of Standard Cost Items per gross hectare (before cap is applied)",null,null,{"$f":"'6 - Standard Cost Items'!$H$10","v":0}]
[null,"Flexible Grant Cap - optional"]
[]
[null,"Would you like to apply a flexible Grant cap on Standard Costs? (Select drop-down)",null,"Flexible Grant cap per (gross) hectare\n(Enter a value between £2,500 - £10,200)"]
[null,"Value including voluntary cap",{"$f":"IF(OR(ISBLANK(G25),C25=\"NO\",G25>G22),G22,G25)","v":0},"Value including standard cap",null,{"$f":"IFERROR(IF(C22=\"NO\",\"\",'Look Up Data'!J7),\"\")","v":""}]
[]
[null,"Standard Cost Summary"]
[null,"Average Grant for Standard Cost Items per gross hectare that applies",{"$f":"IF(C26<F26,C26,F26)","v":0}]
[null,"Total Grant for Standard Cost Items within cap",{"$f":"IF(C26<F26,C26*'3 - Land Summary'!K12,F26*'3 - Land Summary'!K12)","v":0}]
[null,"Total Grant for Standard Cost Items excluded from cap",{"$f":"SUM('6 - Standard Cost Items'!$H$50:$H$51)","v":0}]
[null,"Total Grant for Standard Cost Items",{"$f":"SUM(C30:C31)","v":0}]
[]
[null,"Low sensitivity land incentives","Total Area (ha)","Total (£)"]
[null,{"$f":"\"Low Sensitivity Land Payment (£\"&'Look Up Data'!$K$9&\" per hectare)\"","v":"Low Sensitivity Land Payment (£1100 per hectare)"},{"$f":"SUMIFS('3 - Land Summary'!$K$12,'1 - Site Details'!$C$26,\"YES\",'1 - Site Details'!$C$27,\"YES\")","v":0},{"$f":"'Look Up Data'!K9*C35","v":0}]
[null,"Total low sensitivity land incentives",{"$f":"C35","v":0},{"$f":"D35","v":0}]
[]
[null,"Additional Contributions","Total Area (ha)","Total (£)"]
[null,{"$f":"\"Nature Recovery Premium (£\"&'Look Up Data'!$K$11&\" per hectare)\"","v":"Nature Recovery Premium (£3300 per hectare)"},{"$f":"ROUND(SUMIF('5 - Composition & ACs'!$N$16,\"YES\",'5 - Composition & ACs'!$N$118),2)","v":0},{"$f":"$C39*'Look Up Data'!$K11","v":0}]
[null,{"$f":"\"Nature Recovery Higher (£\"&'Look Up Data'!$K$12&\" per hectare)\"","v":"Nature Recovery Higher (£2800 per hectare)"},{"$f":"ROUND(SUMIF('5 - Composition & ACs'!$O$16,\"YES\",'5 - Composition & ACs'!$O$118),2)","v":0},{"$f":"$C40*'Look Up Data'!$K12","v":0}]
[null,{"$f":"\"Nature Recovery Lower (£\"&'Look Up Data'!$K$13&\" per hectare)\"","v":"Nature Recovery Lower (£1100 per hectare)"},{"$f":"ROUND(SUMIF('5 - Composition & ACs'!$P$16,\"YES\",'5 - Composition & ACs'!$P$118),2)","v":0},{"$f":"$C41*'Look Up Data'!$K13","v":0}]
[null,{"$f":"\"Water Quality (£\"&'Look Up Data'!$K$14&\" per hectare)\"","v":"Water Quality (£500 per hectare)"},{"$f":"ROUND(SUMIF('5 - Composition & ACs'!$Q$16,\"YES\",'5 - Composition & ACs'!$Q$118),2)","v":0},{"$f":"$C42*'Look Up Data'!$K14","v":0}]
[null,{"$f":"\"Flood Risk Management (£\"&'Look Up Data'!$K$15&\" per hectare)\"","v":"Flood Risk Management (£1000 per hectare)"},{"$f":"ROUND(SUMIF('5 - Composition & ACs'!$R$16,\"YES\",'5 - Composition & ACs'!$R$118),2)","v":0},{"$f":"$C43*'Look Up Data'!$K15","v":0}]
[null,{"$f":"\"Riparian Buffers (£\"&'Look Up Data'!$K$16&\" per hectare)\"","v":"Riparian Buffers (£2500 per hectare)"},{"$f":"ROUND(SUMIF('5 - Composition & ACs'!$S$16,\"YES\",'5 - Composition & ACs'!$S$118),2)","v":0},{"$f":"$C44*'Look Up Data'!$K16","v":0}]
[null,{"$f":"\"Close to settlements (£\"&'Look Up Data'!K17&\" per hectare)\"","v":"Close to settlements (£600 per hectare)"},{"$f":"ROUND(SUMIF('5 - Composition & ACs'!$T$16,\"YES\",'5 - Composition & ACs'!$T$118),2)","v":0},{"$f":"$C45*'Look Up Data'!$K17","v":0}]
[null,{"$f":"\"Recreational Access (£\"&'Look Up Data'!$K$18&\" per hectare)\"","v":"Recreational Access (£3700 per hectare)"},{"$f":"ROUND(SUMIF('5 - Composition & ACs'!$U$16,\"YES\",'5 - Composition & ACs'!$U$118),2)","v":0},{"$f":"$C46*'Look Up Data'!$K18","v":0}]
[null,{"$f":"\"Future AC placeholder (£\"&'Look Up Data'!$K$20&\" per hectare)\"","v":"Future AC placeholder (£0 per hectare)"},{"$f":"ROUND(SUMIF('5 - Composition & ACs'!$V$16,\"YES\",'5 - Composition & ACs'!$U$118),2)","v":0},{"$f":"$C47*'Look Up Data'!$K19","v":0},"Hidden"]
[null,{"$f":"\"Future AC placeholder (£\"&'Look Up Data'!$K$20&\" per hectare)\"","v":"Future AC placeholder (£0 per hectare)"},{"$f":"ROUND(SUMIF('5 - Composition & ACs'!$W$16,\"YES\",'5 - Composition & ACs'!$W$118),2)","v":0},{"$f":"$C48*'Look Up Data'!$K20","v":0},"Hidden"]
[null,"Total Additional Contributions",{"$f":"SUM(C39:C48)","v":0},{"$f":"SUM(D39:D48)","v":0}]
[]
[null,"Payments towards actual costs for infrastructure"]
[null,"Total actual costs of woodland infrastructure\n(including VAT and agents fees where applicable)",{"$f":"'8 - Infrastructure'!F44","v":0},"Payment: 40% actual costs capped at 10% of the total capital cost of your proposal.",null,{"$f":"IF((C52*0.4)>((C32+C52+C53)*0.1),((C32+C52+C53)*0.1),(C52*0.4))","v":0}]
[null,"Total actual costs of recreational infrastructure\n(including VAT and agents fees where applicable)",{"$f":"'8 - Infrastructure'!F75","v":0},"Payment: 100% actual costs capped at 10% of the total capital cost of your proposal.",null,{"$f":"IF(C53>((C32+C53+C52)*0.1),((C32+C53+C52)*0.1),C53)","v":0}]
[null,"Total payments towards actual costs for infrastructure",null,null,null,{"$f":"SUM(F52:F53)","v":0}]
[]
[null,"Annual Maintenance"]
[]
[]
[null,"Would you like to opt out of annual Maintenance payments?\n(Select drop-down)"]
[null,"Year","Area","Value"]
[null,1,{"$f":"IF($C$59='Look Up Data'!$J$22,0,ROUND('3 - Land Summary'!$K$12,2))","v":0},{"$f":"C61*'Look Up Data'!$J$25","v":0}]
[null,2,{"$f":"IF($C$59='Look Up Data'!$J$22,0,ROUND('3 - Land Summary'!$K$12,2))","v":0},{"$f":"C62*'Look Up Data'!$J$25","v":0}]
[null,3,{"$f":"IF($C$59='Look Up Data'!$J$22,0,ROUND('3 - Land Summary'!$K$12,2))","v":0},{"$f":"C63*'Look Up Data'!$J$25","v":0}]
[null,4,{"$f":"IF($C$59='Look Up Data'!$J$22,0,ROUND('3 - Land Summary'!$K$12,2))","v":0},{"$f":"C64*'Look Up Data'!$J$25","v":0}]
[null,5,{"$f":"IF($C$59='Look Up Data'!$J$22,0,ROUND('3 - Land Summary'!$K$12,2))","v":0},{"$f":"C65*'Look Up Data'!$J$25","v":0}]
[null,6,{"$f":"IF($C$59='Look Up Data'!$J$22,0,ROUND('3 - Land Summary'!$K$12,2))","v":0},{"$f":"C66*'Look Up Data'!$J$25","v":0}]
[null,7,{"$f":"IF($C$59='Look Up Data'!$J$22,0,ROUND('3 - Land Summary'!$K$12,2))","v":0},{"$f":"C67*'Look Up Data'!$J$25","v":0}]
[null,8,{"$f":"IF($C$59='Look Up Data'!$J$22,0,ROUND('3 - Land Summary'!$K$12,2))","v":0},{"$f":"C68*'Look Up Data'!$J$25","v":0}]
[null,9,{"$f":"IF($C$59='Look Up Data'!$J$22,0,ROUND('3 - Land Summary'!$K$12,2))","v":0},{"$f":"C69*'Look Up Data'!$J$25","v":0}]
[null,10,{"$f":"IF($C$59='Look Up Data'!$J$22,0,ROUND('3 - Land Summary'!$K$12,2))","v":0},{"$f":"C70*'Look Up Data'!$J$25","v":0}]
[null,11,{"$f":"IF($C$59='Look Up Data'!$J$22,0,ROUND('3 - Land Summary'!$K$12,2))","v":0},{"$f":"C71*'Look Up Data'!$J$25","v":0}]
[null,12,{"$f":"IF($C$59='Look Up Data'!$J$22,0,ROUND('3 - Land Summary'!$K$12,2))","v":0},{"$f":"C72*'Look Up Data'!$J$25","v":0}]
[null,13,{"$f":"IF($C$59='Look Up Data'!$J$22,0,ROUND('3 - Land Summary'!$K$12,2))","v":0},{"$f":"C73*'Look Up Data'!$J$25","v":0}]
[null,14,{"$f":"IF($C$59='Look Up Data'!$J$22,0,ROUND('3 - Land Summary'!$K$12,2))","v":0},{"$f":"C74*'Look Up Data'!$J$25","v":0}]
[null,15,{"$f":"IF($C$59='Look Up Data'!$J$22,0,ROUND('3 - Land Summary'!$K$12,2))","v":0},{"$f":"C75*'Look Up Data'!$J$25","v":0}]
[null,null,"Total",{"$f":"SUM(D61:D75)","v":0}]

{"sheet":"WCC Summary","index":17,"n_rows":1021,"n_cols":16384,"rows_kept":1021,"cut":false,"hidden":false,"merged":[[6,1,6,3],[35,11,35,13],[36,11,36,13],[37,11,37,13],[38,11,38,13],[8,1,8,2],[21,1,21,7],[21,9,21,14],[49,11,49,13],[8,3,8,5],[9,3,9,5],[26,11,26,13],[27,11,27,13],[28,11,28,13],[18,1,18,2],[22,11,22,13],[23,11,23,13],[24,11,24,13],[25,11,25,13],[51,11,51,13],[44,11,44,13],[45,11,45,13],[46,11,46,13],[47,11,47,13],[48,11,48,13],[39,11,39,13],[40,11,40,13],[41,11,41,13],[42,11,42,13],[43,11,43,13],[50,11,50,13],[69,11,69,13],[29,11,29,13],[30,11,30,13],[31,11,31,13],[32,11,32,13],[33,11,33,13],[64,11,64,13],[65,11,65,13],[66,11,66,13],[67,11,67,13],[68,11,68,13],[59,11,59,13],[60,11,60,13],[61,11,61,13],[62,11,62,13],[63,11,63,13],[54,11,54,13],[55,11,55,13],[56,11,56,13],[57,11,57,13],[58,11,58,13],[52,11,52,13],[53,11,53,13],[34,11,34,13],[74,11,74,13],[75,11,75,13],[76,11,76,13],[77,11,77,13],[78,11,78,13],[70,11,70,13],[71,11,71,13],[72,11,72,13],[73,11,73,13],[84,11,84,13],[85,11,85,13],[86,11,86,13],[87,11,87,13],[88,11,88,13],[79,11,79,13],[80,11,80,13],[81,11,81,13],[82,11,82,13],[83,11,83,13],[103,11,103,13],[94,11,94,13],[95,11,95,13],[96,11,96,13],[97,11,97,13],[98,11,98,13],[89,11,89,13],[90,11,90,13],[91,11,91,13],[92,11,92,13],[93,11,93,13],[4,1,4,3],[119,11,119,13],[120,11,120,13],[121,11,121,13],[122,11,122,13],[114,11,114,13],[115,11,115,13],[116,11,116,13],[117,11,117,13],[118,11,118,13],[109,11,109,13],[110,11,110,13],[111,11,111,13],[112,11,112,13],[113,11,113,13],[104,11,104,13],[105,11,105,13],[106,11,106,13],[107,11,107,13],[108,11,108,13],[99,11,99,13],[100,11,100,13],[101,11,101,13],[102,11,102,13]]}
[]
[null,"Woodland Carbon Code Summary"]
[]
[]
[]
[]
[]
[null,null,null,null,null,null,null,null,null,null,null,null,null,null,null,null,null,null,null,null,null,null,null,null,null,null,null,null,null,null,null,null,null,null,null,null,null,null,null,null,null,null,null,null,null,null,null,null,null,null,null,null,null,null,null,null,null,null,null,null,null,null,null,null,null,null,null,null,null,null,null,null,null,null,null,null,null,null,null,null,null,null,null,null,null,null,null,null,null,null,null,null,null,null,null,null,null,null,null,null,null,null,null,null,null,null,null,null,null,null,null,null,null,null,null,null,null,null,null,null,null,null,null,null,null,null,null,null,null,null,null,null,null,null,null,null,null,null,null,null,null,null,null,null,null,null,null,null,null,null,null,null,null,null,null,null,null,null,null,null,null,null,null,null,null,null,null,null,null,null,null,null,null,null,null,null,null,null,null,null,null,null,null,null,null,null,null,null,null,null,null,null,null,null,null,null,null,null,null,null,null,null,null,null,null,null,null,null,null,null,null,null,null,null,null,null,null,null,null,null,null,null,null,null,null,null,null,null,null,null,null,null,null,null,null,null,null,null,null,null,null,null,null,null,null,null,null,null,null,null,null,null,null,null,null,null,null,null,null,null,null,null,null,null,null,null,null,null,null,null,null,null,null,null,null,null,null,null,null,null,null,null,null,null,null,null,null,null,null,null,null,null,null,null,null,null,null,null,null,null,null,null,null,null,null,null,null,null,null,null,null,null,null,null,null,null,null,null,null,null,null,null,null,null,null,null,null,null,null,null,null,null,null,null,null,null,null,null,null,null,null,null,null,null,null,null,null,null,null,null,null,null,null,null,null,null,null,null,null,null,null,null,null,null,null,null,null,null,null,null,null,null,null,null,null,null,null,null,null,null,null,null,null,null,null,null,null,null,null,null,null,null,null,null,null,null,null,null,null,null,null,null,null,null,null,null,null,null,null,null,null,null,null,null,null,null,null,null,null,null,null,null,null,null,null,null,null,null,null,null,null,null,null,null,null,null,null,null,null,null,null,null,null,null,null,null,null,null,null,null,null,null,null,null,null,null,null,null,null,null,null,null,null,null,null,null,null,null,null,null,null,null,null,null,null,null,null,null,null,null,null,null,null,null,null,null,null,null,null,null,null,null,null,null,null,null,null,null,null,null,null,null,null,null,null,null,null,null,null,null,null,null,null,null,null,null,null,null,null,null,null,null,null,null,null,null,null,null,null,null,null,null,null,null,null,null,null,null,null,null,null,null,null,null,null,null,null,null,null,null,null,null,null,null,null,null,null,null,null,null,null,null,null,null,null,null,null,null,null,null,null,null,null,null,null,null,null,null,null,null,null,null,null,null,null,null,null,null,null,null,null,null,null,null,null,null,null,null,null,null,null,null,null,null,null,null,null,null,null,null,null,null,null,null,null,null,null,null,null,null,null,null,null,null,null,null,null,null,null,null,null,null,null,null,null,null,null,null,null,null,null,null,null,null,null,null,null,null,null,null,null,null,null,null,null,null,null,null,null,null,null,null,null,null,null,null,null,null,null,null,null,null,null,null,null,null,null,null,null,null,null,null,null,null,null,null,null,null,null,null,null,null,null,null,null,null,null,null,null,null,null,null,null,null,null,null,null,null,null,null,null,null,null,null,null,null,null,null,null,null,null,null,null,null,null,null,null,null,null,null,null,null,null,null,null,null,null,null,null,null,null,null,null,null,null,null,null,null,null,null,null,null,null,null,null,null,null,null,null,null,null,null,null,null,null,null,null,null,null,null,null,null,null,null,null,null,null,null,null,null,null,null,null,null,null,null,null,null,null,null,null,null,null,null,null,null,null,null,null,null,null,null,null,null,null,null,null,null,null,null,null,null,null,null,null,null,null,null,null,null,null,null,null,null,null,null,null,null,null,null,null,null,null,null,null,null,null,null,null,null,null,null,null,null,null,null,null,null,null,null,null,null,null,null,null,null,null,null,null,null,null,null,null,null,null,null,null,null,null,null,null,null,null,null,null,null,null,null,null,null,null,null,null,null,null,null,null,null,null,null,null,null,null,null,null,null,null,null,null,null,null,null,null,null,null,null,null,null,null,null,null,null,null,null,null,null,null,null,null,null,null,null,null,null,null,null,null,null,null,null,null,null,null,null,null,null,null,null,null,null,null,null,null,null,null,null,null,null,null,null,null,null,null,null,null,null,null,null,null,null,null,null,null,null,null,null,null,null,null,null,null,null,null,null,null,null,null,null,null,null,null,null,null,null,null,null,null,null,null,null,null,null,null,null,null,null,null,null,null,null,null,null,null,null,null,null,null,null,null,null,null,null,null,null,null,null,null,null,null,null,null,null,null,null,null,null,null,null,null,null,null,null,null,null,null,null,null,null,null,null,null,null,null,null,null,null,null,null,null,null,null,null,null,null,null,null,null,null,null,null,null,null,null,null,null,null,null,null,null,null,null,null,null,null,null,null,null,null,null,null,null,null,null,null,null,null,null,null,null,null,null,null,null,null,null,null,null,null,null,null,null,null,null,null,null,null,null,null,null,null,null,null,null,null,null,null,null,null,null,null,null,null,null,null,null,null,null,null,null,null,null,null,null,null,null,null,null,null,null,null,null,null,null,null,null,null,null,null,null,null,null,null,null,null,null,null,null,null,null,null,null,null,null,null,null,null,null,null,null,null,null,null,null,null,null,null,null,null,null,null,null,null,null,null,null,null,null,null,null,null,null,null,null,null,null,null,null,null,null,null,null,null,null,null,null,null,null,null,null,null,null,null,null,null,null,null,null,null,null,null,null,null,null,null,null,null,null,null,null,null,null,null,null,null,null,null,null,null,null,null,null,null,null,null,null,null,null,null,null,null,null,null,null,null,null,null,null,null,null,null,null,null,null,null,null,null,null,null,null,null,null,null,null,null,null,null,null,null,null,null,null,null,null,null,null,null,null,null,null,null,null,null,null,null,null,null,null,null,null,null,null,null,null,null,null,null,null,null,null,null,null,null,null,null,null,null,null,null,null,null,null,null,null,null,null,null,null,null,null,null,null,null,null,null,null,null,null,null,null,null,null,null,null,null,null,null,null,null,null,null,null,null,null,null,null,null,null,null,null,null,null,null,null,null,null,null,null,null,null,null,null,null,null,null,null,null,null,null,null,null,null,null,null,null,null,null,null,null,null,null,null,null,null,null,null,null,null,null,null,null,null,null,null,null,null,null,null,null,null,null,null,null,null,null,null,null,null,null,null,null,null,null,null,null,null,null,null,null,null,null,null,null,null,null,null,null,null,null,null,null,null,null,null,null,null,null,null,null,null,null,null,null,null,null,null,null,null,null,null,null,null,null,null,null,null,null,null,null,null,null,null,null,null,null,null,null,null,null,null,null,null,null,null,null,null,null,null,null,null,null,null,null,null,null,null,null,null,null,null,null,null,null,null,null,null,null,null,null,null,null,null,null,null,null,null,null,null,null,null,null,null,null,null,null,null,null,null,null,null,null,null,null,null,null,null,null,null,null,null,null,null,null,null,null,null,null,null,null,null,null,null,null,null,null,null,null,null,null,null,null,null,null,null,null,null,null,null,null,null,null,null,null,null,null,null,null,null,null,null,null,null,null,null,null,null,null,null,null,null,null,null,null,null,null,null,null,null,null,null,null,null,null,null,null,null,null,null,null,null,null,null,null,null,null,null,null,null,null,null,null,null,null,null,null,null,null,null,null,null,null,null,null,null,null,null,null,null,null,null,null,null,null,null,null,null,null,null,null,null,null,null,null,null,null,null,null,null,null,null,null,null,null,null,null,null,null,null,null,null,null,null,null,null,null,null,null,null,null,null,null,null,null,null,null,null,null,null,null,null,null,null,null,null,null,null,null,null,null,null,null,null,null,null,null,null,null,null,null,null,null,null,null,null,null,null,null,null,null,null,null,null,null,null,null,null,null,null,null,null,null,null,null,null,null,null,null,null,null,null,null,null,null,null,null,null,null,null,null,null,null,null,null,null,null,null,null,null,null,null,null,null,null,null,null,null,null,null,null,null,null,null,null,null,null,null,null,null,null,null,null,null,null,null,null,null,null,null,null,null,null,null,null,null,null,null,null,null,null,null,null,null,null,null,null,null,null,null,null,null,null,null,null,null,null,null,null,null,null,null,null,null,null,null,null,null,null,null,null,null,null,null,null,null,null,null,null,null,null,null,null,null,null,null,null,null,null,null,null,null,null,null,null,null,null,null,null,null,null,null,null,null,null,null,null,null,null,null,null,null,null,null,null,null,null,null,null,null,null,null,null,null,null,null,null,null,null,null,null,null,null,null,null,null,null,null,null,null,null,null,null,null,null,null,null,null,null,null,null,null,null,null,null,null,null,null,null,null,null,null,null,null,null,null,null,null,null,null,null,null,null,null,null,null,null,null,null,null,null,null,null,null,null,null,null,null,null,null,null,null,null,null,null,null,null,null,null,null,null,null,null,null,null,null,null,null,null,null,null,null,null,null,null,null,null,null,null,null,null,null,null,null,null,null,null,null,null,null,null,null,null,null,null,null,null,null,null,null,null,null,null,null,null,null,null,null,null,null,null,null,null,null,null,null,null,null,null,null,null,null,null,null,null,null,null,null,null,null,null,null,null,null,null,null,null,null,null,null,null,null,null,null,null,null,null,null,null,null,null,null,null,null,null,null,null,null,null,null,null,null,null,null,null,null,null,null,null,null,null,null,null,null,null,null,null,null,null,null,null,null,null,null,null,null,null,null,null,null,null,null,null,null,null,null,null,null,null,null,null,null,null,null,null,null,null,null,null,null,null,null,null,null,null,null,null,null,null,null,null,null,null,null,null,null,null,null,null,null,null,null,null,null,null,null,null,null,null,null,null,null,null,null,null,null,null,null,null,null,null,null,null,null,null,null,null,null,null,null,null,null,null,null,null,null,null,null,null,null,null,null,null,null,null,null,null,null,null,null,null,null,null,null,null,null,null,null,null,null,null,null,null,null,null,null,null,null,null,null,null,null,null,null,null,null,null,null,null,null,null,null,null,null,null,null,null,null,null,null,null,null,null,null,null,null,null,null,null,null,null,null,null,null,null,null,null,null,null,null,null,null,null,null,null,null,null,null,null,null,null,null,null,null,null,null,null,null,null,null,null,null,null,null,null,null,null,null,null,null,null,null,null,null,null,null,null,null,null,null,null,null,null,null,null,null,null,null,null,null,null,null,null,null,null,null,null,null,null,null,null,null,null,null,null,null,null,null,null,null,null,null,null,null,null,null,null,null,null,null,null,null,null,null,null,null,null,null,null,null,null,null,null,null,null,null,null,null,null,null,null,null,null,null,null,null,null,null,null,null,null,null,null,null,null,null,null,null,null,null,null,null,null,null,null,null,null,null,null,null,null,null,null,null,null,null,null,null,null,null,null,null,null,null,null,null,null,null,null,null,null,null,null,null,null,null,null,null,null,null,null,null,null,null,null,null,null,null,null,null,null,null,null,null,null,null,null,null,null,null,null,null,null,null,null,null,null,null,null,null,null,null,null,null,null,null,null,null,null,null,null,null,null,null,null,null,null,null,null,null,null,null,null,null,null,null,null,null,null,null,null,null,null,null,null,null,null,null,null,null,null,null,null,null,null,null,null,null,null,null,null,null,null,null,null,null,null,null,null,null,null,null,null,null,null,null,null,null,null,null,null,null,null,null,null,null,null,null,null,null,null,null,null,null,null,null,null,null,null,null,null,null,null,null,null,null,null,null,null,null,null,null,null,null,null,null,null,null,null,null,null,null,null,null,null,null,null,null,null,null,null,null,null,null,null,null,null,null,null,null,null,null,null,null,null,null,null,null,null,null,null,null,null,null,null,null,null,null,null,null,null,null,null,null,null,null,null,null,null,null,null,null,null,null,null,null,null,null,null,null,null,null,null,null,null,null,null,null,null,null,null,null,null,null,null,null,null,null,null,null,null,null,null,null,null,null,null,null,null,null,null,null,null,null,null,null,null,null,null,null,null,null,null,null,null,null,null,null,null,null,null,null,null,null,null,null,null,null,null,null,null,null,null,null,null,null,null,null,null,null,null,null,null,null,null,null,null,null,null,null,null,null,null,null,null,null,null,null,null,null,null,null,null,null,null,null,null,null,null,null,null,null,null,null,null,null,null,null,null,null,null,null,null,null,null,null,null,null,null,null,null,null,null,null,null,null,null,null,null,null,null,null,null,null,null,null,null,null,null,null,null,null,null,null,null,null,null,null,null,null,null,null,null,null,null,null,null,null,null,null,null,null,null,null,null,null,null,null,null,null,null,null,null,null,null,null,null,null,null,null,null,null,null,null,null,null,null,null,null,null,null,null,null,null,null,null,null,null,null,null,null,null,null,null,null,null,null,null,null,null,null,null,null,null,null,null,null,null,null,null,null,null,null,null,null,null,null,null,null,null,null,null,null,null,null,null,null,null,null,null,null,null,null,null,null,null,null,null,null,null,null,null,null,null,null,null,null,null,null,null,null,null,null,null,null,null,null,null,null,null,null,null,null,null,null,null,null,null,null,null,null,null,null,null,null,null,null,null,null,null,null,null,null,null,null,null,null,null,null,null,null,null,null,null,null,null,null,null,null,null,null,null,null,null,null,null,null,null,null,null,null,null,null,null,null,null,null,null,null,null,null,null,null,null,null,null,null,null,null,null,null,null,null,null,null,null,null,null,null,null,null,null,null,null,null,null,null,null,null,null,null,null,null,null,null,null,null,null,null,null,null,null,null,null,null,null,null,null,null,null,null,null,null,null,null,null,null,null,null,null,null,null,null,null,null,null,null,null,null,null,null,null,null,null,null,null,null,null,null,null,null,null,null,null,null,null,null,null,null,null,null,null,null,null,null,null,null,null,null,null,null,null,null,null,null,null,null,null,null,null,null,null,null,null,null,null,null,null,null,null,null,null,null,null,null,null,null,null,null,null,null,null,null,null,null,null,null,null,null,null,null,null,null,null,null,null,null,null,null,null,null,null,null,null,null,null,null,null,null,null,null,null,null,null,null,null,null,null,null,null,null,null,null,null,null,null,null,null,null,null,null,null,null,null,null,null,null,null,null,null,null,null,null,null,null,null,null,null,null,null,null,null,null,null,null,null,null,null,null,null,null,null,null,null,null,null,null,null,null,null,null,null,null,null,null,null,null,null,null,null,null,null,null,null,null,null,null,null,null,null,null,null,null,null,null,null,null,null,null,null,null,null,null,null,null,null,null,null,null,null,null,null,null,null,null,null,null,null,null,null,null,null,null,null,null,null,null,null,null,null,null,null,null,null,null,null,null,null,null,null,null,null,null,null,null,null,null,null,null,null,null,null,null,null,null,null,null,null,null,null,null,null,null,null,null,null,null,null,null,null,null,null,null,null,null,null,null,null,null,null,null,null,null,null,null,null,null,null,null,null,null,null,null,null,null,null,null,null,null,null,null,null,null,null,null,null,null,null,null,null,null,null,null,null,null,null,null,null,null,null,null,null,null,null,null,null,null,null,null,null,null,null,null,null,null,null,null,null,null,null,null,null,null,null,null,null,null,null,null,null,null,null,null,null,null,null,null,null,null,null,null,null,null,null,null,null,null,null,null,null,null,null,null,null,null,null,null,null,null,null,null,null,null,null,null,null,null,null,null,null,null,null,null,null,null,null,null,null,null,null,null,null,null,null,null,null,null,null,null,null,null,null,null,null,null,null,null,null,null,null,null,null,null,null,null,null,null,null,null,null,null,null,null,null,null,null,null,null,null,null,null,null,null,null,null,null,null,null,null,null,null,null,null,null,null,null,null,null,null,null,null,null,null,null,null,null,null,null,null,null,null,null,null,null,null,null,null,null,null,null,null,null,null,null,null,null,null,null,null,null,null,null,null,null,null,null,null,null,null,null,null,null,null,null,null,null,null,null,null,null,null,null,null,null,null,null,null,null,null,null,null,null,null,null,null,null,null,null,null,null,null,null,null,null,null,null,null,null,null,null,null,null,null,null,null,null,null,null,null,null,null,null,null,null,null,null,null,null,null,null,null,null,null,null,null,null,null,null,null,null,null,null,null,null,null,null,null,null,null,null,null,null,null,null,null,null,null,null,null,null,null,null,null,null,null,null,null,null,null,null,null,null,null,null,null,null,null,null,null,null,null,null,null,null,null,null,null,null,null,null,null,null,null,null,null,null,null,null,null,null,null,null,null,null,null,null,null,null,null,null,null,null,null,null,null,null,null,null,null,null,null,null,null,null,null,null,null,null,null,null,null,null,null,null,null,null,null,null,null,null,null,null,null,null,null,null,null,null,null,null,null,null,null,null,null,null,null,null,null,null,null,null,null,null,null,null,null,null,null,null,null,null,null,null,null,null,null,null,null,null,null,null,null,null,null,null,null,null,null,null,null,null,null,null,null,null,null,null,null,null,null,null,null,null,null,null,null,null,null,null,null,null,null,null,null,null,null,null,null,null,null,null,null,null,null,null,null,null,null,null,null,null,null,null,null,null,null,null,null,null,null,null,null,null,null,null,null,null,null,null,null,null,null,null,null,null,null,null,null,null,null,null,null,null,null,null,null,null,null,null,null,null,null,null,null,null,null,null,null,null,null,null,null,null,null,null,null,null,null,null,null,null,null,null,null,null,null,null,null,null,null,null,null,null,null,null,null,null,null,null,null,null,null,null,null,null,null,null,null,null,null,null,null,null,null,null,null,null,null,null,null,null,null,null,null,null,null,null,null,null,null,null,null,null,null,null,null,null,null,null,null,null,null,null,null,null,null,null,null,null,null,null,null,null,null,null,null,null,null,null,null,null,null,null,null,null,null,null,null,null,null,null,null,null,null,null,null,null,null,null,null,null,null,null,null,null,null,null,null,null,null,null,null,null,null,null,null,null,null,null,null,null,null,null,null,null,null,null,null,null,null,null,null,null,null,null,null,null,null,null,null,null,null,null,null,null,null,null,null,null,null,null,null,null,null,null,null,null,null,null,null,null,null,null,null,null,null,null,null,null,null,null,null,null,null,null,null,null,null,null,null,null,null,null,null,null,null,null,null,null,null,null,null,null,null,null,null,null,null,null,null,null,null,null,null,null,null,null,null,null,null,null,null,null,null,null,null,null,null,null,null,null,null,null,null,null,null,null,null,null,null,null,null,null,null,null,null,null,null,null,null,null,null,null,null,null,null,null,null,null,null,null,null,null,null,null,null,null,null,null,null,null,null,null,null,null,null,null,null,null,null,null,null,null,null,null,null,null,null,null,null,null,null,null,null,null,null,null,null,null,null,null,null,null,null,null,null,null,null,null,null,null,null,null,null,null,null,null,null,null,null,null,null,null,null,null,null,null,null,null,null,null,null,null,null,null,null,null,null,null,null,null,null,null,null,null,null,null,null,null,null,null,null,null,null,null,null,null,null,null,null,null,null,null,null,null,null,null,null,null,null,null,null,null,null,null,null,null,null,null,null,null,null,null,null,null,null,null,null,null,null,null,null,null,null,null,null,null,null,null,null,null,null,null,null,null,null,null,null,null,null,null,null,null,null,null,null,null,null,null,null,null,null,null,null,null,null,null,null,null,null,null,null,null,null,null,null,null,null,null,null,null,null,null,null,null,null,null,null,null,null,null,null,null,null,null,null,null,null,null,null,null,null,null,null,null,null,null,null,null,null,null,null,null,null,null,null,null,null,null,null,null,null,null,null,null,null,null,null,null,null,null,null,null,null,null,null,null,null,null,null,null,null,null,null,null,null,null,null,null,null,null,null,null,null,null,null,null,null,null,null,null,null,null,null,null,null,null,null,null,null,null,null,null,null,null,null,null,null,null,null,null,null,null,null,null,null,null,null,null,null,null,null,null,null,null,null,null,null,null,null,null,null,null,null,null,null,null,null,null,null,null,null,null,null,null,null,null,null,null,null,null,null,null,null,null,null,null,null,null,null,null,null,null,null,null,null,null,null,null,null,null,null,null,null,null,null,null,null,null,null,null,null,null,null,null,null,null,null,null,null,null,null,null,null,null,null,null,null,null,null,null,null,null,null,null,null,null,null,null,null,null,null,null,null,null,null,null,null,null,null,null,null,null,null,null,null,null,null,null,null,null,null,null,null,null,null,null,null,null,null,null,null,null,null,null,null,null,null,null,null,null,null,null,null,null,null,null,null,null,null,null,null,null,null,null,null,null,null,null,null,null,null,null,null,null,null,null,null,null,null,null,null,null,null,null,null,null,null,null,null,null,null,null,null,null,null,null,null,null,null,null,null,null,null,null,null,null,null,null,null,null,null,null,null,null,null,null,null,null,null,null,null,null,null,null,null,null,null,null,null,null,null,null,null,null,null,null,null,null,null,null,null,null,null,null,null,null,null,null,null,null,null,null,null,null,null,null,null,null,null,null,null,null,null,null,null,null,null,null,null,null,null,null,null,null,null,null,null,null,null,null,null,null,null,null,null,null,null,null,null,null,null,null,null,null,null,null,null,null,null,null,null,null,null,null,null,null,null,null,null,null,null,null,null,null,null,null,null,null,null,null,null,null,null,null,null,null,null,null,null,null,null,null,null,null,null,null,null,null,null,null,null,null,null,null,null,null,null,null,null,null,null,null,null,null,null,null,null,null,null,null,null,null,null,null,null,null,null,null,null,null,null,null,null,null,null,null,null,null,null,null,null,null,null,null,null,null,null,null,null,null,null,null,null,null,null,null,null,null,null,null,null,null,null,null,null,null,null,null,null,null,null,null,null,null,null,null,null,null,null,null,null,null,null,null,null,null,null,null,null,null,null,null,null,null,null,null,null,null,null,null,null,null,null,null,null,null,null,null,null,null,null,null,null,null,null,null,null,null,null,null,null,null,null,null,null,null,null,null,null,null,null,null,null,null,null,null,null,null,null,null,null,null,null,null,null,null,null,null,null,null,null,null,null,null,null,null,null,null,null,null,null,null,null,null,null,null,null,null,null,null,null,null,null,null,null,null,null,null,null,null,null,null,null,null,null,null,null,null,null,null,null,null,null,null,null,null,null,null,null,null,null,null,null,null,null,null,null,null,null,null,null,null,null,null,null,null,null,null,null,null,null,null,null,null,null,null,null,null,null,null,null,null,null,null,null,null,null,null,null,null,null,null,null,null,null,null,null,null,null,null,null,null,null,null,null,null,null,null,null,null,null,null,null,null,null,null,null,null,null,null,null,null,null,null,null,null,null,null,null,null,null,null,null,null,null,null,null,null,null,null,null,null,null,null,null,null,null,null,null,null,null,null,null,null,null,null,null,null,null,null,null,null,null,null,null,null,null,null,null,null,null,null,null,null,null,null,null,null,null,null,null,null,null,null,null,null,null,null,null,null,null,null,null,null,null,null,null,null,null,null,null,null,null,null,null,null,null,null,null,null,null,null,null,null,null,null,null,null,null,null,null,null,null,null,null,null,null,null,null,null,null,null,null,null,null,null,null,null,null,null,null,null,null,null,null,null,null,null,null,null,null,null,null,null,null,null,null,null,null,null,null,null,null,null,null,null,null,null,null,null,null,null,null,null,null,null,null,null,null,null,null,null,null,null,null,null,null,null,null,null,null,null,null,null,null,null,null,null,null,null,null,null,null,null,null,null,null,null,null,null,null,null,null,null,null,null,null,null,null,null,null,null,null,null,null,null,null,null,null,null,null,null,null,null,null,null,null,null,null,null,null,null,null,null,null,null,null,null,null,null,null,null,null,null,null,null,null,null,null,null,null,null,null,null,null,null,null,null,null,null,null,null,null,null,null,null,null,null,null,null,null,null,null,null,null,null,null,null,null,null,null,null,null,null,null,null,null,null,null,null,null,null,null,null,null,null,null,null,null,null,null,null,null,null,null,null,null,null,null,null,null,null,null,null,null,null,null,null,null,null,null,null,null,null,null,null,null,null,null,null,null,null,null,null,null,null,null,null,null,null,null,null,null,null,null,null,null,null,null,null,null,null,null,null,null,null,null,null,null,null,null,null,null,null,null,null,null,null,null,null,null,null,null,null,null,null,null,null,null,null,null,null,null,null,null,null,null,null,null,null,null,null,null,null,null,null,null,null,null,null,null,null,null,null,null,null,null,null,null,null,null,null,null,null,null,null,null,null,null,null,null,null,null,null,null,null,null,null,null,null,null,null,null,null,null,null,null,null,null,null,null,null,null,null,null,null,null,null,null,null,null,null,null,null,null,null,null,null,null,null,null,null,null,null,null,null,null,null,null,null,null,null,null,null,null,null,null,null,null,null,null,null,null,null,null,null,null,null,null,null,null,null,null,null,null,null,null,null,null,null,null,null,null,null,null,null,null,null,null,null,null,null,null,null,null,null,null,null,null,null,null,null,null,null,null,null,null,null,null,null,null,null,null,null,null,null,null,null,null,null,null,null,null,null,null,null,null,null,null,null,null,null,null,null,null,null,null,null,null,null,null,null,null,null,null,null,null,null,null,null,null,null,null,null,null,null,null,null,null,null,null,null,null,null,null,null,null,null,null,null,null,null,null,null,null,null,null,null,null,null,null,null,null,null,null,null,null,null,null,null,null,null,null,null,null,null,null,null,null,null,null,null,null,null,null,null,null,null,null,null,null,null,null,null,null,null,null,null,null,null,null,null,null,null,null,null,null,null,null,null,null,null,null,null,null,null,null,null,null,null,null,null,null,null,null,null,null,null,null,null,null,null,null,null,null,null,null,null,null,null,null,null,null,null,null,null,null,null,null,null,null,null,null,null,null,null,null,null,null,null,null,null,null,null,null,null,null,null,null,null,null,null,null,null,null,null,null,null,null,null,null,null,null,null,null,null,null,null,null,null,null,null,null,null,null,null,null,null,null,null,null,null,null,null,null,null,null,null,null,null,null,null,null,null,null,null,null,null,null,null,null,null,null,null,null,null,null,null,null,null,null,null,null,null,null,null,null,null,null,null,null,null,null,null,null,null,null,null,null,null,null,null,null,null,null,null,null,null,null,null,null,null,null,null,null,null,null,null,null,null,null,null,null,null,null,null,null,null,null,null,null,null,null,null,null,null,null,null,null,null,null,null,null,null,null,null,null,null,null,null,null,null,null,null,null,null,null,null,null,null,null,null,null,null,null,null,null,null,null,null,null,null,null,null,null,null,null,null,null,null,null,null,null,null,null,null,null,null,null,null,null,null,null,null,null,null,null,null,null,null,null,null,null,null,null,null,null,null,null,null,null,null,null,null,null,null,null,null,null,null,null,null,null,null,null,null,null,null,null,null,null,null,null,null,null,null,null,null,null,null,null,null,null,null,null,null,null,null,null,null,null,null,null,null,null,null,null,null,null,null,null,null,null,null,null,null,null,null,null,null,null,null,null,null,null,null,null,null,null,null,null,null,null,null,null,null,null,null,null,null,null,null,null,null,null,null,null,null,null,null,null,null,null,null,null,null,null,null,null,null,null,null,null,null,null,null,null,null,null,null,null,null,null,null,null,null,null,null,null,null,null,null,null,null,null,null,null,null,null,null,null,null,null,null,null,null,null,null,null,null,null,null,null,null,null,null,null,null,null,null,null,null,null,null,null,null,null,null,null,null,null,null,null,null,null,null,null,null,null,null,null,null,null,null,null,null,null,null,null,null,null,null,null,null,null,null,null,null,null,null,null,null,null,null,null,null,null,null,null,null,null,null,null,null,null,null,null,null,null,null,null,null,null,null,null,null,null,null,null,null,null,null,null,null,null,null,null,null,null,null,null,null,null,null,null,null,null,null,null,null,null,null,null,null,null,null,null,null,null,null,null,null,null,null,null,null,null,null,null,null,null,null,null,null,null,null,null,null,null,null,null,null,null,null,null,null,null,null,null,null,null,null,null,null,null,null,null,null,null,null,null,null,null,null,null,null,null,null,null,null,null,null,null,null,null,null,null,null,null,null,null,null,null,null,null,null,null,null,null,null,null,null,null,null,null,null,null,null,null,null,null,null,null,null,null,null,null,null,null,null,null,null,null,null,null,null,null,null,null,null,null,null,null,null,null,null,null,null,null,null,null,null,null,null,null,null,null,null,null,null,null,null,null,null,null,null,null,null,null,null,null,null,null,null,null,null,null,null,null,null,null,null,null,null,null,null,null,null,null,null,null,null,null,null,null,null,null,null,null,null,null,null,null,null,null,null,null,null,null,null,null,null,null,null,null,null,null,null,null,null,null,null,null,null,null,null,null,null,null,null,null,null,null,null,null,null,null,null,null,null,null,null,null,null,null,null,null,null,null,null,null,null,null,null,null,null,null,null,null,null,null,null,null,null,null,null,null,null,null,null,null,null,null,null,null,null,null,null,null,null,null,null,null,null,null,null,null,null,null,null,null,null,null,null,null,null,null,null,null,null,null,null,null,null,null,null,null,null,null,null,null,null,null,null,null,null,null,null,null,null,null,null,null,null,null,null,null,null,null,null,null,null,null,null,null,null,null,null,null,null,null,null,null,null,null,null,null,null,null,null,null,null,null,null,null,null,null,null,null,null,null,null,null,null,null,null,null,null,null,null,null,null,null,null,null,null,null,null,null,null,null,null,null,null,null,null,null,null,null,null,null,null,null,null,null,null,null,null,null,null,null,null,null,null,null,null,null,null,null,null,null,null,null,null,null,null,null,null,null,null,null,null,null,null,null,null,null,null,null,null,null,null,null,null,null,null,null,null,null,null,null,null,null,null,null,null,null,null,null,null,null,null,null,null,null,null,null,null,null,null,null,null,null,null,null,null,null,null,null,null,null,null,null,null,null,null,null,null,null,null,null,null,null,null,null,null,null,null,null,null,null,null,null,null,null,null,null,null,null,null,null,null,null,null,null,null,null,null,null,null,null,null,null,null,null,null,null,null,null,null,null,null,null,null,null,null,null,null,null,null,null,null,null,null,null,null,null,null,null,null,null,null,null,null,null,null,null,null,null,null,null,null,null,null,null,null,null,null,null,null,null,null,null,null,null,null,null,null,null,null,null,null,null,null,null,null,null,null,null,null,null,null,null,null,null,null,null,null,null,null,null,null,null,null,null,null,null,null,null,null,null,null,null,null,null,null,null,null,null,null,null,null,null,null,null,null,null,null,null,null,null,null,null,null,null,null,null,null,null,null,null,null,null,null,null,null,null,null,null,null,null,null,null,null,null,null,null,null,null,null,null,null,null,null,null,null,null,null,null,null,null,null,null,null,null,null,null,null,null,null,null,null,null,null,null,null,null,null,null,null,null,null,null,null,null,null,null,null,null,null,null,null,null,null,null,null,null,null,null,null,null,null,null,null,null,null,null,null,null,null,null,null,null,null,null,null,null,null,null,null,null,null,null,null,null,null,null,null,null,null,null,null,null,null,null,null,null,null,null,null,null,null,null,null,null,null,null,null,null,null,null,null,null,null,null,null,null,null,null,null,null,null,null,null,null,null,null,null,null,null,null,null,null,null,null,null,null,null,null,null,null,null,null,null,null,null,null,null,null,null,null,null,null,null,null,null,null,null,null,null,null,null,null,null,null,null,null,null,null,null,null,null,null,null,null,null,null,null,null,null,null,null,null,null,null,null,null,null,null,null,null,null,null,null,null,null,null,null,null,null,null,null,null,null,null,null,null,null,null,null,null,null,null,null,null,null,null,null,null,null,null,null,null,null,null,null,null,null,null,null,null,null,null,null,null,null,null,null,null,null,null,null,null,null,null,null,null,null,null,null,null,null,null,null,null,null,null,null,null,null,null,null,null,null,null,null,null,null,null,null,null,null,null,null,null,null,null,null,null,null,null,null,null,null,null,null,null,null,null,null,null,null,null,null,null,null,null,null,null,null,null,null,null,null,null,null,null,null,null,null,null,null,null,null,null,null,null,null,null,null,null,null,null,null,null,null,null,null,null,null,null,null,null,null,null,null,null,null,null,null,null,null,null,null,null,null,null,null,null,null,null,null,null,null,null,null,null,null,null,null,null,null,null,null,null,null,null,null,null,null,null,null,null,null,null,null,null,null,null,null,null,null,null,null,null,null,null,null,null,null,null,null,null,null,null,null,null,null,null,null,null,null,null,null,null,null,null,null,null,null,null,null,null,null,null,null,null,null,null,null,null,null,null,null,null,null,null,null,null,null,null,null,null,null,null,null,null,null,null,null,null,null,null,null,null,null,null,null,null,null,null,null,null,null,null,null,null,null,null,null,null,null,null,null,null,null,null,null,null,null,null,null,null,null,null,null,null,null,null,null,null,null,null,null,null,null,null,null,null,null,null,null,null,null,null,null,null,null,null,null,null,null,null,null,null,null,null,null,null,null,null,null,null,null,null,null,null,null,null,null,null,null,null,null,null,null,null,null,null,null,null,null,null,null,null,null,null,null,null,null,null,null,null,null,null,null,null,null,null,null,null,null,null,null,null,null,null,null,null,null,null,null,null,null,null,null,null,null,null,null,null,null,null,null,null,null,null,null,null,null,null,null,null,null,null,null,null,null,null,null,null,null,null,null,null,null,null,null,null,null,null,null,null,null,null,null,null,null,null,null,null,null,null,null,null,null,null,null,null,null,null,null,null,null,null,null,null,null,null,null,null,null,null,null,null,null,null,null,null,null,null,null,null,null,null,null,null,null,null,null,null,null,null,null,null,null,null,null,null,null,null,null,null,null,null,null,null,null,null,null,null,null,null,null,null,null,null,null,null,null,null,null,null,null,null,null,null,null,null,null,null,null,null,null,null,null,null,null,null,null,null,null,null,null,null,null,null,null,null,null,null,null,null,null,null,null,null,null,null,null,null,null,null,null,null,null,null,null,null,null,null,null,null,null,null,null,null,null,null,null,null,null,null,null,null,null,null,null,null,null,null,null,null,null,null,null,null,null,null,null,null,null,null,null,null,null,null,null,null,null,null,null,null,null,null,null,null,null,null,null,null,null,null,null,null,null,null,null,null,null,null,null,null,null,null,null,null,null,null,null,null,null,null,null,null,null,null,null,null,null,null,null,null,null,null,null,null,null,null,null,null,null,null,null,null,null,null,null,null,null,null,null,null,null,null,null,null,null,null,null,null,null,null,null,null,null,null,null,null,null,null,null,null,null,null,null,null,null,null,null,null,null,null,null,null,null,null,null,null,null,null,null,null,null,null,null,null,null,null,null,null,null,null,null,null,null,null,null,null,null,null,null,null,null,null,null,null,null,null,null,null,null,null,null,null,null,null,null,null,null,null,null,null,null,null,null,null,null,null,null,null,null,null,null,null,null,null,null,null,null,null,null,null,null,null,null,null,null,null,null,null,null,null,null,null,null,null,null,null,null,null,null,null,null,null,null,null,null,null,null,null,null,null,null,null,null,null,null,null,null,null,null,null,null,null,null,null,null,null,null,null,null,null,null,null,null,null,null,null,null,null,null,null,null,null,null,null,null,null,null,null,null,null,null,null,null,null,null,null,null,null,null,null,null,null,null,null,null,null,null,null,null,null,null,null,null,null,null,null,null,null,null,null,null,null,null,null,null,null,null,null,null,null,null,null,null,null,null,null,null,null,null,null,null,null,null,null,null,null,null,null,null,null,null,null,null,null,null,null,null,null,null,null,null,null,null,null,null,null,null,null,null,null,null,null,null,null,null,null,null,null,null,null,null,null,null,null,null,null,null,null,null,null,null,null,null,null,null,null,null,null,null,null,null,null,null,null,null,null,null,null,null,null,null,null,null,null,null,null,null,null,null,null,null,null,null,null,null,null,null,null,null,null,null,null,null,null,null,null,null,null,null,null,null,null,null,null,null,null,null,null,null,null,null,null,null,null,null,null,null,null,null,null,null,null,null,null,null,null,null,null,null,null,null,null,null,null,null,null,null,null,null,null,null,null,null,null,null,null,null,null,null,null,null,null,null,null,null,null,null,null,null,null,null,null,null,null,null,null,null,null,null,null,null,null,null,null,null,null,null,null,null,null,null,null,null,null,null,null,null,null,null,null,null,null,null,null,null,null,null,null,null,null,null,null,null,null,null,null,null,null,null,null,null,null,null,null,null,null,null,null,null,null,null,null,null,null,null,null,null,null,null,null,null,null,null,null,null,null,null,null,null,null,null,null,null,null,null,null,null,null,null,null,null,null,null,null,null,null,null,null,null,null,null,null,null,null,null,null,null,null,null,null,null,null,null,null,null,null,null,null,null,null,null,null,null,null,null,null,null,null,null,null,null,null,null,null,null,null,null,null,null,null,null,null,null,null,null,null,null,null,null,null,null,null,null,null,null,null,null,null,null,null,null,null,null,null,null,null,null,null,null,null,null,null,null,null,null,null,null,null,null,null,null,null,null,null,null,null,null,null,null,null,null,null,null,null,null,null,null,null,null,null,null,null,null,null,null,null,null,null,null,null,null,null,null,null,null,null,null,null,null,null,null,null,null,null,null,null,null,null,null,null,null,null,null,null,null,null,null,null,null,null,null,null,null,null,null,null,null,null,null,null,null,null,null,null,null,null,null,null,null,null,null,null,null,null,null,null,null,null,null,null,null,null,null,null,null,null,null,null,null,null,null,null,null,null,null,null,null,null,null,null,null,null,null,null,null,null,null,null,null,null,null,null,null,null,null,null,null,null,null,null,null,null,null,null,null,null,null,null,null,null,null,null,null,null,null,null,null,null,null,null,null,null,null,null,null,null,null,null,null,null,null,null,null,null,null,null,null,null,null,null,null,null,null,null,null,null,null,null,null,null,null,null,null,null,null,null,null,null,null,null,null,null,null,null,null,null,null,null,null,null,null,null,null,null,null,null,null,null,null,null,null,null,null,null,null,null,null,null,null,null,null,null,null,null,null,null,null,null,null,null,null,null,null,null,null,null,null,null,null,null,null,null,null,null,null,null,null,null,null,null,null,null,null,null,null,null,null,null,null,null,null,null,null,null,null,null,null,null,null,null,null,null,null,null,null,null,null,null,null,null,null,null,null,null,null,null,null,null,null,null,null,null,null,null,null,null,null,null,null,null,null,null,null,null,null,null,null,null,null,null,null,null,null,null,null,null,null,null,null,null,null,null,null,null,null,null,null,null,null,null,null,null,null,null,null,null,null,null,null,null,null,null,null,null,null,null,null,null,null,null,null,null,null,null,null,null,null,null,null,null,null,null,null,null,null,null,null,null,null,null,null,null,null,null,null,null,null,null,null,null,null,null,null,null,null,null,null,null,null,null,null,null,null,null,null,null,null,null,null,null,null,null,null,null,null,null,null,null,null,null,null,null,null,null,null,null,null,null,null,null,null,null,null,null,null,null,null,null,null,null,null,null,null,null,null,null,null,null,null,null,null,null,null,null,null,null,null,null,null,null,null,null,null,null,null,null,null,null,null,null,null,null,null,null,null,null,null,null,null,null,null,null,null,null,null,null,null,null,null,null,null,null,null,null,null,null,null,null,null,null,null,null,null,null,null,null,null,null,null,null,null,null,null,null,null,null,null,null,null,null,null,null,null,null,null,null,null,null,null,null,null,null,null,null,null,null,null,null,null,null,null,null,null,null,null,null,null,null,null,null,null,null,null,null,null,null,null,null,null,null,null,null,null,null,null,null,null,null,null,null,null,null,null,null,null,null,null,null,null,null,null,null,null,null,null,null,null,null,null,null,null,null,null,null,null,null,null,null,null,null,null,null,null,null,null,null,null,null,null,null,null,null,null,null,null,null,null,null,null,null,null,null,null,null,null,null,null,null,null,null,null,null,null,null,null,null,null,null,null,null,null,null,null,null,null,null,null,null,null,null,null,null,null,null,null,null,null,null,null,null,null,null,null,null,null,null,null,null,null,null,null,null,null,null,null,null,null,null,null,null,null,null,null,null,null,null,null,null,null,null,null,null,null,null,null,null,null,null,null,null,null,null,null,null,null,null,null,null,null,null,null,null,null,null,null,null,null,null,null,null,null,null,null,null,null,null,null,null,null,null,null,null,null,null,null,null,null,null,null,null,null,null,null,null,null,null,null,null,null,null,null,null,null,null,null,null,null,null,null,null,null,null,null,null,null,null,null,null,null,null,null,null,null,null,null,null,null,null,null,null,null,null,null,null,null,null,null,null,null,null,null,null,null,null,null,null,null,null,null,null,null,null,null,null,null,null,null,null,null,null,null,null,null,null,null,null,null,null,null,null,null,null,null,null,null,null,null,null,null,null,null,null,null,null,null,null,null,null,null,null,null,null,null,null,null,null,null,null,null,null,null,null,null,null,null,null,null,null,null,null,null,null,null,null,null,null,null,null,null,null,null,null,null,null,null,null,null,null,null,null,null,null,null,null,null,null,null,null,null,null,null,null,null,null,null,null,null,null,null,null,null,null,null,null,null,null,null,null,null,null,null,null,null,null,null,null,null,null,null,null,null,null,null,null,null,null,null,null,null,null,null,null,null,null,null,null,null,null,null,null,null,null,null,null,null,null,null,null,null,null,null,null,null,null,null,null,null,null,null,null,null,null,null,null,null,null,null,null,null,null,null,null,null,null,null,null,null,null,null,null,null,null,null,null,null,null,null,null,null,null,null,null,null,null,null,null,null,null,null,null,null,null,null,null,null,null,null,null,null,null,null,null,null,null,null,null,null,null,null,null,null,null,null,null,null,null,null,null,null,null,null,null,null,null,null,null,null,null,null,null,null,null,null,null,null,null,null,null,null,null,null,null,null,null,null,null,null,null,null,null,null,null,null,null,null,null,null,null,null,null,null,null,null,null,null,null,null,null,null,null,null,null,null,null,null,null,null,null,null,null,null,null,null,null,null,null,null,null,null,null,null,null,null,null,null,null,null,null,null,null,null,null,null,null,null,null,null,null,null,null,null,null,null,null,null,null,null,null,null,null,null,null,null,null,null,null,null,null,null,null,null,null,null,null,null,null,null,null,null,null,null,null,null,null,null,null,null,null,null,null,null,null,null,null,null,null,null,null,null,null,null,null,null,null,null,null,null,null,null,null,null,null,null,null,null,null,null,null,null,null,null,null,null,null,null,null,null,null,null,null,null,null,null,null,null,null,null,null,null,null,null,null,null,null,null,null,null,null,null,null,null,null,null,null,null,null,null,null,null,null,null,null,null,null,null,null,null,null,null,null,null,null,null,null,null,null,null,null,null,null,null,null,null,null,null,null,null,null,null,null,null,null,null,null,null,null,null,null,null,null,null,null,null,null,null,null,null,null,null,null,null,null,null,null,null,null,null,null,null,null,null,null,null,null,null,null,null,null,null,null,null,null,null,null,null,null,null,null,null,null,null,null,null,null,null,null,null,null,null,null,null,null,null,null,null,null,null,null,null,null,null,null,null,null,null,null,null,null,null,null,null,null,null,null,null,null,null,null,null,null,null,null,null,null,null,null,null,null,null,null,null,null,null,null,null,null,null,null,null,null,null,null,null,null,null,null,null,null,null,null,null,null,null,null,null,null,null,null,null,null,null,null,null,null,null,null,null,null,null,null,null,null,null,null,null,null,null,null,null,null,null,null,null,null,null,null,null,null,null,null,null,null,null,null,null,null,null,null,null,null,null,null,null,null,null,null,null,null,null,null,null,null,null,null,null,null,null,null,null,null,null,null,null,null,null,null,null,null,null,null,null,null,null,null,null,null,null,null,null,null,null,null,null,null,null,null,null,null,null,null,null,null,null,null,null,null,null,null,null,null,null,null,null,null,null,null,null,null,null,null,null,null,null,null,null,null,null,null,null,null,null,null,null,null,null,null,null,null,null,null,null,null,null,null,null,null,null,null,null,null,null,null,null,null,null,null,null,null,null,null,null,null,null,null,null,null,null,null,null,null,null,null,null,null,null,null,null,null,null,null,null,null,null,null,null,null,null,null,null,null,null,null,null,null,null,null,null,null,null,null,null,null,null,null,null,null,null,null,null,null,null,null,null,null,null,null,null,null,null,null,null,null,null,null,null,null,null,null,null,null,null,null,null,null,null,null,null,null,null,null,null,null,null,null,null,null,null,null,null,null,null,null,null,null,null,null,null,null,null,null,null,null,null,null,null,null,null,null,null,null,null,null,null,null,null,null,null,null,null,null,null,null,null,null,null,null,null,null,null,null,null,null,null,null,null,null,null,null,null,null,null,null,null,null,null,null,null,null,null,null,null,null,null,null,null,null,null,null,null,null,null,null,null,null,null,null,null,null,null,null,null,null,null,null,null,null,null,null,null,null,null,null,null,null,null,null,null,null,null,null,null,null,null,null,null,null,null,null,null,null,null,null,null,null,null,null,null,null,null,null,null,null,null,null,null,null,null,null,null,null,null,null,null,null,null,null,null,null,null,null,null,null,null,null,null,null,null,null,null,null,null,null,null,null,null,null,null,null,null,null,null,null,null,null,null,null,null,null,null,null,null,null,null,null,null,null,null,null,null,null,null,null,null,null,null,null,null,null,null,null,null,null,null,null,null,null,null,null,null,null,null,null,null,null,null,null,null,null,null,null,null,null,null,null,null,null,null,null,null,null,null,null,null,null,null,null,null,null,null,null,null,null,null,null,null,null,null,null,null,null,null,null,null,null,null,null,null,null,null,null,null,null,null,null,null,null,null,null,null,null,null,null,null,null,null,null,null,null,null,null,null,null,null,null,null,null,null,null,null,null,null,null,null,null,null,null,null,null,null,null,null,null,null,null,null,null,null,null,null,null,null,null,null,null,null,null,null,null,null,null,null,null,null,null,null,null,null,null,null,null,null,null,null,null,null,null,null,null,null,null,null,null,null,null,null,null,null,null,null,null,null,null,null,null,null,null,null,null,null,null,null,null,null,null,null,null,null,null,null,null,null,null,null,null,null,null,null,null,null,null,null,null,null,null,null,null,null,null,null,null,null,null,null,null,null,null,null,null,null,null,null,null,null,null,null,null,null,null,null,null,null,null,null,null,null,null,null,null,null,null,null,null,null,null,null,null,null,null,null,null,null,null,null,null,null,null,null,null,null,null,null,null,null,null,null,null,null,null,null,null,null,null,null,null,null,null,null,null,null,null,null,null,null,null,null,null,null,null,null,null,null,null,null,null,null,null,null,null,null,null,null,null,null,null,null,null,null,null,null,null,null,null,null,null,null,null,null,null,null,null,null,null,null,null,null,null,null,null,null,null,null,null,null,null,null,null,null,null,null,null,null,null,null,null,null,null,null,null,null,null,null,null,null,null,null,null,null,null,null,null,null,null,null,null,null,null,null,null,null,null,null,null,null,null,null,null,null,null,null,null,null,null,null,null,null,null,null,null,null,null,null,null,null,null,null,null,null,null,null,null,null,null,null,null,null,null,null,null,null,null,null,null,null,null,null,null,null,null,null,null,null,null,null,null,null,null,null,null,null,null,null,null,null,null,null,null,null,null,null,null,null,null,null,null,null,null,null,null,null,null,null,null,null,null,null,null,null,null,null,null,null,null,null,null,null,null,null,null,null,null,null,null,null,null,null,null,null,null,null,null,null,null,null,null,null,null,null,null,null,null,null,null,null,null,null,null,null,null,null,null,null,null,null,null,null,null,null,null,null,null,null,null,null,null,null,null,null,null,null,null,null,null,null,null,null,null,null,null,null,null,null,null,null,null,null,null,null,null,null,null,null,null,null,null,null,null,null,null,null,null,null,null,null,null,null,null,null,null,null,null,null,null,null,null,null,null,null,null,null,null,null,null,null,null,null,null,null,null,null,null,null,null,null,null,null,null,null,null,null,null,null,null,null,null,null,null,null,null,null,null,null,null,null,null,null,null,null,null,null,null,null,null,null,null,null,null,null,null,null,null,null,null,null,null,null,null,null,null,null,null,null,null,null,null,null,null,null,null,null,null,null,null,null,null,null,null,null,null,null,null,null,null,null,null,null,null,null,null,null,null,null,null,null,null,null,null,null,null,null,null,null,null,null,null,null,null,null,null,null,null,null,null,null,null,null,null,null,null,null,null,null,null,null,null,null,null,null,null,null,null,null,null,null,null,null,null,null,null,null,null,null,null,null,null,null,null,null,null,null,null,null,null,null,null,null,null,null,null,null,null,null,null,null,null,null,null,null,null,null,null,null,null,null,null,null,null,null,null,null,null,null,null,null,null,null,null,null,null,null,null,null,null,null,null,null,null,null,null,null,null,null,null,null,null,null,null,null,null,null,null,null,null,null,null,null,null,null,null,null,null,null,null,null,null,null,null,null,null,null,null,null,null,null,null,null,null,null,null,null,null,null,null,null,null,null,null,null,null,null,null,null,null,null,null,null,null,null,null,null,null,null,null,null,null,null,null,null,null,null,null,null,null,null,null,null,null,null,null,null,null,null,null,null,null,null,null,null,null,null,null,null,null,null,null,null,null,null,null,null,null,null,null,null,null,null,null,null,null,null,null,null,null,null,null,null,null,null,null,null,null,null,null,null,null,null,null,null,null,null,null,null,null,null,null,null,null,null,null,null,null,null,null,null,null,null,null,null,null,null,null,null,null,null,null,null,null,null,null,null,null,null,null,null,null,null,null,null,null,null,null,null,null,null,null,null,null,null,null,null,null,null,null,null,null,null,null,null,null,null,null,null,null,null,null,null,null,null,null,null,null,null,null,null,null,null,null,null,null,null,null,null,null,null,null,null,null,null,null,null,null,null,null,null,null,null,null,null,null,null,null,null,null,null,null,null,null,null,null,null,null,null,null,null,null,null,null,null,null,null,null,null,null,null,null,null,null,null,null,null,null,null,null,null,null,null,null,null,null,null,null,null,null,null,null,null,null,null,null,null,null,null,null,null,null,null,null,null,null,null,null,null,null,null,null,null,null,null,null,null,null,null,null,null,null,null,null,null,null,null,null,null,null,null,null,null,null,null,null,null,null,null,null,null,null,null,null,null,null,null,null,null,null,null,null,null,null,null,null,null,null,null,null,null,null,null,null,null,null,null,null,null,null,null,null,null,null,null,null,null,null,null,null,null,null,null,null,null,null,null,null,null,null,null,null,null,null,null,null,null,null,null,null,null,null,null,null,null,null,null,null,null,null,null,null,null,null,null,null,null,null,null,null,null,null,null,null,null,null,null,null,null,null,null,null,null,null,null,null,null,null,null,null,null,null,null,null,null,null,null,null,null,null,null,null,null,null,null,null,null,null,null,null,null,null,null,null,null,null,null,null,null,null,null,null,null,null,null,null,null,null,null,null,null,null,null,null,null,null,null,null,null,null,null,null,null,null,null,null,null,null,null,null,null,null,null,null,null,null,null,null,null,null,null,null,null,null,null,null,null,null,null,null,null,null,null,null,null,null,null,null,null,null,null,null,null,null,null,null,null,null,null,null,null,null,null,null,null,null,null,null,null,null,null,null,null,null,null,null,null,null,null,null,null,null,null,null,null,null,null,null,null,null,null,null,null,null,null,null,null,null,null,null,null,null,null,null,null,null,null,null,null,null,null,null,null,null,null,null,null,null,null,null,null,null,null,null,null,null,null,null,null,null,null,null,null,null,null,null,null,null,null,null,null,null,null,null,null,null,null,null,null,null,null,null,null,null,null,null,null,null,null,null,null,null,null,null,null,null,null,null,null,null,null,null,null,null,null,null,null,null,null,null,null,null,null,null,null,null,null,null,null,null,null,null,null,null,null,null,null,null,null,null,null,null,null,null,null,null,null,null,null,null,null,null,null,null,null,null,null,null,null,null,null,null,null,null,null,null,null,null,null,null,null,null,null,null,null,null,null,null,null,null,null,null,null,null,null,null,null,null,null,null,null,null,null,null,null,null,null,null,null,null,null,null,null,null,null,null,null,null,null,null,null,null,null,null,null,null,null,null,null,null,null,null,null,null,null,null,null,null,null,null,null,null,null,null,null,null,null,null,null,null,null,null,null,null,null,null,null,null,null,null,null,null,null,null,null,null,null,null,null,null,null,null,null,null,null,null,null,null,null,null,null,null,null,null,null,null,null,null,null,null,null,null,null,null,null,null,null,null,null,null,null,null,null,null,null,null,null,null,null,null,null,null,null,null,null,null,null,null,null,null,null,null,null,null,null,null,null,null,null,null,null,null,null,null,null,null,null,null,null,null,null,null,null,null,null,null,null,null,null,null,null,null,null,null,null,null,null,null,null,null,null,null,null,null,null,null,null,null,null,null,null,null,null,null,null,null,null,null,null,null,null,null,null,null,null,null,null,null,null,null,null,null,null,null,null,null,null,null,null,null,null,null,null,null,null,null,null,null,null,null,null,null,null,null,null,null,null,null,null,null,null,null,null,null,null,null,null,null,null,null,null,null,null,null,null,null,null,null,null,null,null,null,null,null,null,null,null,null,null,null,null,null,null,null,null,null,null,null,null,null,null,null,null,null,null,null,null,null,null,null,null,null,null,null,null,null,null,null,null,null,null,null,null,null,null,null,null,null,null,null,null,null,null,null,null,null,null,null,null,null,null,null,null,null,null,null,null,null,null,null,null,null,null,null,null,null,null,null,null,null,null,null,null,null,null,null,null,null,null,null,null,null,null,null,null,null,null,null,null,null,null,null,null,null,null,null,null,null,null,null,null,null,null,null,null,null,null,null,null,null,null,null,null,null,null,null,null,null,null,null,null,null,null,null,null,null,null,null,null,null,null,null,null,null,null,null,null,null,null,null,null,null,null,null,null,null,null,null,null,null,null,null,null,null,null,null,null,null,null,null,null,null,null,null,null,null,null,null,null,null,null,null,null,null,null,null,null,null,null,null,null,null,null,null,null,null,null,null,null,null,null,null,null,null,null,null,null,null,null,null,null,null,null,null,null,null,null,null,null,null,null,null,null,null,null,null,null,null,null,null,null,null,null,null,null,null,null,null,null,null,null,null,null,null,null,null,null,null,null,null,null,null,null,null,null,null,null,null,null,null,null,null,null,null,null,null,null,null,null,null,null,null,null,null,null,null,null,null,null,null,null,null,null,null,null,null,null,null,null,null,null,null,null,null,null,null,null,null,null,null,null,null,null,null,null,null,null,null,null,null,null,null,null,null,null,null,null,null,null,null,null,null,null,null,null,null,null,null,null,null,null,null,null,null,null,null,null,null,null,null,null,null,null,null,null,null,null,null,null,null,null,null,null,null,null,null,null,null,null,null,null,null,null,null,null,null,null,null,null,null,null,null,null,null,null,null,null,null,null,null,null,null,null,null,null,null,null,null,null,null,null,null,null,null,null,null,null,null,null,null,null,null,null,null,null,null,null,null,null,null,null,null,null,null,null,null,null,null,null,null,null,null,null,null,null,null,null,null,null,null,null,null,null,null,null,null,null,null,null,null,null,null,null,null,null,null,null,null,null,null,null,null,null,null,null,null,null,null,null,null,null,null,null,null,null,null,null,null,null,null,null,null,null,null,null,null,null,null,null,null,null,null,null,null,null,null,null,null,null,null,null,null,null,null,null,null,null,null,null,null,null,null,null,null,null,null,null,null,null,null,null,null,null,null,null,null,null,null,null,null,null,null,null,null,null,null,null,null,null,null,null,null,null,null,null,null,null,null,null,null,null,null,null,null,null,null,null,null,null,null,null,null,null,null,null,null,null,null,null,null,null,null,null,null,null,null,null,null,null,null,null,null,null,null,null,null,null,null,null,null,null,null,null,null,null,null,null,null,null,null,null,null,null,null,null,null,null,null,null,null,null,null,null,null,null,null,null,null,null,null,null,null,null,null,null,null,null,null,null,null,null,null,null,null,null,null,null,null,null,null,null,null,null,null,null,null,null,null,null,null,null,null,null,null,null,null,null,null,null,null,null,null,null,null,null,null,null,null,null,null,null,null,null,null,null,null,null,null,null,null,null,null,null,null,null,null,null,null,null,null,null,null,null,null,null,null,null,null,null,null,null,null,null,null,null,null,null,null,null,null,null,null,null,null,null,null,null,null,null,null,null,null,null,null,null,null,null,null,null,null,null,null,null,null,null,null,null,null,null,null,null,null,null,null,null,null,null,null,null,null,null,null,null,null,null,null,null,null,null,null,null,null,null,null,null,null,null,null,null,null,null,null,null,null,null,null,null,null,null,null,null,null,null,null,null,null,null,null,null,null,null,null,null,null,null,null,null,null,null,null,null,null,null,null,null,null,null,null,null,null,null,null,null,null,null,null,null,null,null,null,null,null,null,null,null,null,null,null,null,null,null,null,null,null,null,null,null,null,null,null,null,null,null,null,null,null,null,null,null,null,null,null,null,null,null,null,null,null,null,null,null,null,null,null,null,null,null,null,null,null,null,null,null,null,null,null,null,null,null,null,null,null,null,null,null,null,null,null,null,null,null,null,null,null,null,null,null,null,null,null,null,null,null,null,null,null,null,null,null,null,null,null,null,null,null,null,null,null,null,null,null,null,null,null,null,null,null,null,null,null,null,null,null,null,null,null,null,null,null,null,null,null,null,null,null,null,null,null,null,null,null,null,null,null,null,null,null,null,null,null,null,null,null,null,null,null,null,null,null,null,null,null,null,null,null,null,null,null,null,null,null,null,null,null,null,null,null,null,null,null,null,null,null,null,null,null,null,null,null,null,null,null,null,null,null,null,null,null,null,null,null,null,null,null,null,null,null,null,null,null,null,null,null,null,null,null,null,null,null,null,null,null,null,null,null,null,null,null,null,null,null,null,null,null,null,null,null,null,null,null,null,null,null,null,null,null,null,null,null,null,null,null,null,null,null,null,null,null,null,null,null,null,null,null,null,null,null,null,null,null,null,null,null,null,null,null,null,null,null,null,null,null,null,null,null,null,null,null,null,null,null,null,null,null,null,null,null,null,null,null,null,null,null,null,null,null,null,null,null,null,null,null,null,null,null,null,null,null,null,null,null,null,null,null,null,null,null,null,null,null,null,null,null,null,null,null,null,null,null,null,null,null,null,null,null,null,null,null,null,null,null,null,null,null,null,null,null,null,null,null,null,null,null,null,null,null,null,null,null,null,null,null,null,null,null,null,null,null,null,null,null,null,null,null,null,null,null,null,null,null,null,null,null,null,null,null,null,null,null,null,null,null,null,null,null,null,null,null,null,null,null,null,null,null,null,null,null,null,null,null,null,null,null,null,null,null,null,null,null,null,null,null,null,null,null,null,null,null,null,null,null,null,null,null,null,null,null,null,null,null,null,null,null,null,null,null,null,null,null,null,null,null,null,null,null,null,null,null,null,null,null,null,null,null,null,null,null,null,null,null,null,null,null,null,null,null,null,null,null,null,null,null,null,null,null,null,null,null,null,null,null,null,null,null,null,null,null,null,null,null,null,null,null,null,null,null,null,null,null,null,null,null,null,null,null,null,null,null,null,null,null,null,null,null,null,null,null,null,null,null,null,null,null,null,null,null,null,null,null,null,null,null,null,null,null,null,null,null,null,null,null,null,null,null,null,null,null,null,null,null,null,null,null,null,null,null,null,null,null,null,null,null,null,null,null,null,null,null,null,null,null,null,null,null,null,null,null,null,null,null,null,null,null,null,null,null,null,null,null,null,null,null,null,null,null,null,null,null,null,null,null,null,null,null,null,null,null,null,null,null,null,null,null,null,null,null,null,null,null,null,null,null,null,null,null,null,null,null,null,null,null,null,null,null,null,null,null,null,null,null,null,null,null,null,null,null,null,null,null,null,null,null,null,null,null,null,null,null,null,null,null,null,null,null,null,null,null,null,null,null,null,null,null,null,null,null,null,null,null,null,null,null,null,null,null,null,null,null,null,null,null,null,null,null,null,null,null,null,null,null,null,null,null,null,null,null,null,null,null,null,null,null,null,null,null,null,null,null,null,null,null,null,null,null,null,null,null,null,null,null,null,null,null,null,null,null,null,null,null,null,null,null,null,null,null,null,null,null,null,null,null,null,null,null,null,null,null,null,null,null,null,null,null,null,null,null,null,null,null,null,null,null,null,null,null,null,null,null,null,null,null,null,null,null,null,null,null,null,null,null,null,null,null,null,null,null,null,null,null,null,null,null,null,null,null,null,null,null,null,null,null,null,null,null,null,null,null,null,null,null,null,null,null,null,null,null,null,null,null,null,null,null,null,null,null,null,null,null,null,null,null,null,null,null,null,null,null,null,null,null,null,null,null,null,null,null,null,null,null,null,null,null,null,null,null,null,null,null,null,null,null,null,null,null,null,null,null,null,null,null,null,null,null,null,null,null,null,null,null,null,null,null,null,null,null,null,null,null,null,null,null,null,null,null,null,null,null,null,null,null,null,null,null,null,null,null,null,null,null,null,null,null,null,null,null,null,null,null,null,null,null,null,null,null,null,null,null,null,null,null,null,null,null,null,null,null,null,null,null,null,null,null,null,null,null,null,null,null,null,null,null,null,null,null,null,null,null,null,null,null,null,null,null,null,null,null,null,null,null,null,null,null,null,null,null,null,null,null,null,null,null,null,null,null,null,null,null,null,null,null,null,null,null,null,null,null,null,null,null,null,null,null,null,null,null,null,null,null,null,null,null,null,null,null,null,null,null,null,null,null,null,null,null,null,null,null,null,null,null,null,null,null,null,null,null,null,null,null,null,null,null,null,null,null,null,null,null,null,null,null,null,null,null,null,null,null,null,null,null,null,null,null,null,null,null,null,null,null,null,null,null,null,null,null,null,null,null,null,null,null,null,null,null,null,null,null,null,null,null,null,null,null,null,null,null,null,null,null,null,null,null,null,null,null,null,null,null,null,null,null,null,null,null,null,null,null,null,null,null,null,null,null,null,null,null,null,null,null,null,null,null,null,null,null,null,null,null,null,null,null,null,null,null,null,null,null,null,null,null,null,null,null,null,null,null,null,null,null,null,null,null,null,null,null,null,null,null,null,null,null,null,null,null,null,null,null,null,null,null,null,null,null,null,null,null,null,null,null,null,null,null,null,null,null,null,null,null,null,null,null,null,null,null,null,null,null,null,null,null,null,null,null,null,null,null,null,null,null,null,null,null,null,null,null,null,null,null,null,null,null,null,null,null,null,null,null,null,null,null,null,null,null,null,null,null,null,null,null,null,null,null,null,null,null,null,null,null,null,null,null,null,null,null,null,null,null,null,null,null,null,null,null,null,null,null,null,null,null,null,null,null,null,null,null,null,null,null,null,null,null,null,null,null,null,null,null,null,null,null,null,null,null,null,null,null,null,null,null,null,null,null,null,null,null,null,null,null,null,null,null,null,null,null,null,null,null,null,null,null,null,null,null,null,null,null,null,null,null,null,null,null,null,null,null,null,null,null,null,null,null,null,null,null,null,null,null,null,null,null,null,null,null,null,null,null,null,null,null,null,null,null,null,null,null,null,null,null,null,null,null,null,null,null,null,null,null,null,null,null,null,null,null,null,null,null,null,null,null,null,null,null,null,null,null,null,null,null,null,null,null,null,null,null,null,null,null,null,null,null,null,null,null,null,null,null,null,null,null,null,null,null,null,null,null,null,null,null,null,null,null,null,null,null,null,null,null,null,null,null,null,null,null,null,null,null,null,null,null,null,null,null,null,null,null,null,null,null,null,null,null,null,null,null,null,null,null,null,null,null,null,null,null,null,null,null,null,null,null,null,null,null,null,null,null,null,null,null,null,null,null,null,null,null,null,null,null,null,null,null,null,null,null,null,null,null,null,null,null,null,null,null,null,null,null,null,null,null,null,null,null,null,null,null,null,null,null,null,null,null,null,null,null,null,null,null,null,null,null,null,null,null,null,null,null,null,null,null,null,null,null,null,null,null,null,null,null,null,null,null,null,null,null,null,null,null,null,null,null,null,null,null,null,null,null,null,null,null,null,null,null,null,null,null,null,null,null,null,null,null,null,null,null,null,null,null,null,null,null,null,null,null,null,null,null,null,null,null,null,null,null,null,null,null,null,null,null,null,null,null,null,null,null,null,null,null,null,null,null,null,null,null,null,null,null,null,null,null,null,null,null,null,null,null,null,null,null,null,null,null,null,null,null,null,null,null,null,null,null,null,null,null,null,null,null,null,null,null,null,null,null,null,null,null,null,null,null,null,null,null,null,null,null,null,null,null,null,null,null,null,null,null,null,null,null,null,null,null,null,null,null,null,null,null,null,null,null,null,null,null,null,null,null,null,null,null,null,null,null,null,null,null,null,null,null,null,null,null,null,null,null,null,null,null,null,null,null,null,null,null,null,null,null,null,null,null,null,null,null,null,null,null,null,null,null,null,null,null,null,null,null,null,null,null,null,null,null,null,null,null,null,null,null,null,null,null,null,null,null,null,null,null,null,null,null,null,null,null,null,null,null,null,null,null,null,null,null,null,null,null,null,null,null,null,null,null,null,null,null,null,null,null,null,null,null,null,null,null,null,null,null,null,null,null,null,null,null,null,null,null,null,null,null,null,null,null,null,null,null,null,null,null,null,null,null,null,null,null,null,null,null,null,null,null,null,null,null,null,null,null,null,null,null,null,null,null,null,null,null,null,null,null,null,null,null,null,null,null,null,null,null,null,null,null,null,null,null,null,null,null,null,null,null,null,null,null,null,null,null,null,null,null,null,null,null,null,null,null,null,null,null,null,null,null,null,null,null,null,null,null,null,null,null,null,null,null,null,null,null,null,null,null,null,null,null,null,null,null,null,null,null,null,null,null,null,null,null,null,null,null,null,null,null,null,null,null,null,null,null,null,null,null,null,null,null,null,null,null,null,null,null,null,null,null,null,null,null,null,null,null,null,null,null,null,null,null,null,null,null,null,null,null,null,null,null,null,null,null,null,null,null,null,null,null,null,null,null,null,null,null,null,null,null,null,null,null,null,null,null,null,null,null,null,null,null,null,null,null,null,null,null,null,null,null,null,null,null,null,null,null,null,null,null,null,null,null,null,null,null,null,null,null,null,null,null,null,null,null,null,null,null,null,null,null,null,null,null,null,null,null,null,null,null,null,null,null,null,null,null,null,null,null,null,null,null,null,null,null,null,null,null,null,null,null,null,null,null,null,null,null,null,null,null,null,null,null,null,null,null,null,null,null,null,null,null,null,null,null,null,null,null,null,null,null,null,null,null,null,null,null,null,null,null,null,null,null,null,null,null,null,null,null,null,null,null,null,null,null,null,null,null,null,null,null,null,null,null,null,null,null,null,null,null,null,null,null,null,null,null,null,null,null,null,null,null,null,null,null,null,null,null,null,null,null,null,null,null,null,null,null,null,null,null,null,null,null,null,null,null,null,null,null,null,null,null,null,null,null,null,null,null,null,null,null,null,null,null,null,null,null,null,null,null,null,null,null,null,null,null,null,null,null,null,null,null,null,null,null,null,null,null,null,null,null,null,null,null,null,null,null,null,null,null,null,null,null,null,null,null,null,null,null,null,null,null,null,null,null,null,null,null,null,null,null,null,null,null,null,null,null,null,null,null,null,null,null,null,null,null,null,null,null,null,null,null,null,null,null,null,null,null,null,null,null,null,null,null,null,null,null,null,null,null,null,null,null,null,null,null,null,null,null,null,null,null,null,null,null,null,null,null,null,null,null,null,null,null,null,null,null,null,null,null,null,null,null,null,null,null,null,null,null,null,null,null,null,null,null,null,null,null,null,null,null,null,null,null,null,null,null,null,null,null,null,null,null,null,null,null,null,null,null,null,null,null,null,null,null,null,null,null,null,null,null,null,null,null,null,null,null,null,null,null,null,null,null,null,null,null,null,null,null,null,null,null,null,null,null,null,null,null,null,null,null,null,null,null,null,null,null,null,null,null,null,null,null,null,null,null,null,null,null,null,null,null,null,null,null,null,null,null,null,null,null,null,null,null,null,null,null,null,null,null,null,null,null,null,null,null,null,null,null,null,null,null,null,null,null,null,null,null,null,null,null,null,null,null,null,null,null,null,null,null,null,null,null,null,null,null,null,null,null,null,null,null,null,null,null,null,null,null,null,null,null,null,null,null,null,null,null,null,null,null,null,null,null,null,null,null,null,null,null,null,null,null,null,null,null,null,null,null,null,null,null,null,null,null,null,null,null,null,null,null,null,null,null,null,null,null,null,null,null,null,null,null,null,null,null,null,null,null,null,null,null,null,null,null,null,null,null,null,null,null,null,null,null,null,null,null,null,null,null,null,null,null,null,null,null,null,null,null,null,null,null,null,null,null,null,null,null,null,null,null,null,null,null,null,null,null,null,null,null,null,null,null,null,null,null,null,null,null,null,null,null,null,null,null,null,null,null,null,null,null,null,null,null,null,null,null,null,null,null,null,null,null,null,null,null,null,null,null,null,null,null,null,null,null,null,null,null,null,null,null,null,null,null,null,null,null,null,null,null,null,null,null,null,null,null,null,null,null,null,null,null,null,null,null,null,null,null,null,null,null,null,null,null,null,null,null,null,null,null,null,null,null,null,null,null,null,null,null,null,null,null,null,null,null,null,null,null,null,null,null,null,null,null,null,null,null,null,null,null,null,null,null,null,null,null,null,null,null,null,null,null,null,null,null,null,null,null,null,null,null,null,null,null,null,null,null,null,null,null,null,null,null,null,null,null,null,null,null,null,null,null,null,null,null,null,null,null,null,null,null,null,null,null,null,null,null,null,null,null,null,null,null,null,null,null,null,null,null,null,null,null,null,null,null,null,null,null,null,null,null,null,null,null,null,null,null,null,null,null,null,null,null,null,null,null,null,null,null,null,null,null,null,null,null,null,null,null,null,null,null,null,null,null,null,null,null,null,null,null,null,null,null,null,null,null,null,null,null,null,null,null,null,null,null,null,null,null,null,null,null,null,null,null,null,null,null,null,null,null,null,null,null,null,null,null,null,null,null,null,null,null,null,null,null,null,null,null,null,null,null,null,null,null,null,null,null,null,null,null,null,null,null,null,null,null,null,null,null,null,null,null,null,null,null,null,null,null,null,null,null,null,null,null,null,null,null,null,null,null,null,null,null,null,null,null,null,null,null,null,null,null,null,null,null,null,null,null,null,null,null,null,null,null,null,null,null,null,null,null,null,null,null,null,null,null,null,null,null,null,null,null,null,null,null,null,null,null,null,null,null,null,null,null,null,null,null,null,null,null,null,null,null,null,null,null,null,null,null,null,null,null,null,null,null,null,null,null,null,null,null,null,null,null,null,null,null,null,null,null,null,null,null,null,null,null,null,null,null,null,null,null,null,null,null,null,null,null,null,null,null,null,null,null,null,null,null,null,null,null,null,null,null,null,null,null,null,null,null,null,null,null,null,null,null,null,null,null,null,null,null,null,null,null,null,null,null,null,null,null,null,null,null,null,null,null,null,null,null,null,null,null,null,null,null,null,null,null,null,null,null,null,null,null,null,null,null,null,null,null,null,null,null,null,null,null,null,null,null,null,null,null,null,null,null,null,null,null,null,null,null,null,null,null,null,null,null,null,null,null,null,null,null,null,null,null,null,null,null,null,null,null,null,null,null,null,null,null,null,null,null,null,null,null,null,null,null,null,null,null,null,null,null,null,null,null,null,null,null,null,null,null,null,null,null,null,null,null,null,null,null,null,null,null,null,null,null,null,null,null,null,null,null,null,null,null,null,null,null,null,null,null,null,null,null,null,null,null,null,null,null,null,null,null,null,null,null,null,null,null,null,null,null,null,null,null,null,null,null,null,null,null,null,null,null,null,null,null,null,null,null,null,null,null,null,null,null,null,null,null,null,null,null,null,null,null,null,null,null,null,null,null,null,null,null,null,null,null,null,null,null,null,null,null,null,null,null,null,null,null,null,null,null,null,null,null,null,null,null,null,null,null,null,null,null,null,null,null,null,null,null,null,null,null,null,null,null,null,null,null,null,null,null,null,null,null,null,null,null,null,null,null,null,null,null,null,null,null,null,null,null,null,null,null,null,null,null,null,null,null,null,null,null,null,null,null,null,null,null,null,null,null,null,null,null,null,null,null,null,null,null,null,null,null,null,null,null,null,null,null,null,null,null,null,null,null,null,null,null,null,null,null,null,null,null,null,null,null,null,null,null,null,null,null,null,null,null,null,null,null,null,null,null,null,null,null,null,null,null,null,null,null,null,null,null,null,null,null,null,null,null,null,null,null,null,null,null,null,null,null,null,null,null,null,null,null,null,null,null,null,null,null,null,null,null,null,null,null,null,null,null,null,null,null,null,null,null,null,null,null,null,null,null,null,null,null,null,null,null,null,null,null,null,null,null,null,null,null,null,null,null,null,null,null,null,null,null,null,null,null,null,null,null,null,null,null,null,null,null,null,null,null,null,null,null,null,null,null,null,null,null,null,null,null,null,null,null,null,null,null,null,null,null,null,null,null,null,null,null,null,null,null,null,null,null,null,null,null,null,null,null,null,null,null,null,null,null,null,null,null,null,null,null,null,null,null,null,null,null,null,null,null,null,null,null,null,null,null,null,null,null,null,null,null,null,null,null,null,null,null,null,null,null,null,null,null,null,null,null,null,null,null,null,null,null,null,null,null,null,null,null,null,null,null,null,null,null,null,null,null,null,null,null,null,null,null,null,null,null,null,null,null,null,null,null,null,null,null,null,null,null,null,null,null,null,null,null,null,null,null,null,null,null,null,null,null,null,null,null,null,null,null,null,null,null,null,null,null,null,null,null,null,null,null,null,null,null,null,null,null,null,null,null,null,null,null,null,null,null,null,null,null,null,null,null,null,null,null,null,null,null,null,null,null,null,null,null,null,null,null,null,null,null,null,null,null,null,null,null,null,null,null,null,null,null,null,null,null,null,null,null,null,null,null,null,null,null,null,null,null,null,null,null,null,null,null,null,null,null,null,null,null,null,null,null,null,null,null,null,null,null,null,null,null,null,null,null,null,null,null,null,null,null,null,null,null,null,null,null,null,null,null,null,null,null,null,null,null,null,null,null,null,null,null,null,null,null,null,null,null,null,null,null,null,null,null,null,null,null,null,null,null,null,null,null,null,null,null,null,null,null,null,null,null,null,null,null,null,null,null,null,null,null,null,null,null,null,null,null,null,null,null,null,null,null,null,null,null,null,null,null,null,null,null,null,null,null,null,null,null,null,null,null,null,null,null,null,null,null,null,null,null,null,null,null,null,null,null,null,null,null,null,null,null,null,null,null,null,null,null,null,null,null,null,null,null,null,null,null,null,null,null,null,null,null,null,null,null,null,null,null,null,null,null,null,null,null,null,null,null,null,null,null,null,null,null,null,null,null,null,null,null,null,null,null,null,null,null,null,null,null,null,null,null,null,null,null,null,{"$f":"COUNT(B24:B1021)","v":0}]
[null,"EWCO reference:",null,{"$f":"IF('1 - Site Details'!C7=\"\",\"\",'1 - Site Details'!C7)","v":""}]
[null,"Property/site name:",null,{"$f":"IF('1 - Site Details'!C8=\"\",\"\",'1 - Site Details'!C8)","v":""}]
[]
[null,"Table 1"]
[null,"Emissions from establishment","Spacing (m)","Area (ha)"]
[null,"Seedlings",{"$f":"IFERROR(AVERAGE('4 - Species Breakdown'!L31:L1028),\"\")","v":""},{"$f":"IFERROR(SUM('3 - Land Summary'!G21:G120)-SUM('3 - Land Summary'!I21:I120),\"\")","v":0}]
[null,"Ground Preparation (Fuel)",null,{"$f":"SUMIF('3 - Land Summary'!L21:L120,\"Hand turfing, inverted, hinge & trench mounding, patch scarification\",'3 - Land Summary'!X21:X120)+SUMIF('3 - Land Summary'!L21:L120,\"Shallow/rotary (<30cm) plough, Disc/line scarification\",'3 - Land Summary'!X21:X120)+SUMIF('3 - Land Summary'!L21:L120,\"Deep (>30cm) plough, with or without line\",'3 - Land Summary'!X21:X120)+SUMIF('3 - Land Summary'!L21:L120,\"Agricultural ploughing\",'3 - Land Summary'!X21:X120)","v":0}]
[null,"Tree Shelters "]
[null,"Fencing",null,null,null,null,null,null,null,null,null,null,null,null,null,null,{"$f":"COUNT(B24:B1021)","v":0}]
[null,"Herbicide",null,{"$f":"IFERROR('7 - Operational Plan'!D35,\"\")","v":0}]
[null,"Road Building",null,"km"]
[null,"Roads",null,{"$f":"IFERROR(('8 - Infrastructure'!F27)/1000,\"\")","v":0}]
[]
[null,"Table 2",null,null,null,null,null,null,null,"Table 3"]
[null,"Sectn No:","Actual Species","Actual Spacing (m)","Yield Class","Management Regime","% of Area if mixture ","Area (ha) ",null,"Previous Land use","Soil Type","Disturbance/ Site Preparation",null,null,"Area (ha)"]
[null,{"$f":"IF('4 - Species Breakdown'!B31=0,\"\",'4 - Species Breakdown'!B31)","v":""},{"$f":"IF('4 - Species Breakdown'!D31=0,\"\",'4 - Species Breakdown'!D31)","v":""},{"$f":"IF('4 - Species Breakdown'!L31=0,\"\",'4 - Species Breakdown'!L31)","v":""},{"$f":"IF('4 - Species Breakdown'!M31=0,\"\",'4 - Species Breakdown'!M31)","v":""},{"$f":"IF('4 - Species Breakdown'!N31=0,\"\",'4 - Species Breakdown'!N31)","v":""},{"$f":"IFERROR(('4 - Species Breakdown'!J31/'WCC Summary'!$D$14)*100,\"\")","v":""},{"$f":"IF('4 - Species Breakdown'!J31=0,\"\",'4 - Species Breakdown'!J31)","v":""},null,{"$f":"IFERROR(VLOOKUP('3 - Land Summary'!E21,'Look Up Data'!$Q$5:$R$10,2,FALSE),\"\")","v":""},{"$f":"IFERROR(VLOOKUP('3 - Land Summary'!K21,'Look Up Data'!$Q$12:$R$18,2,FALSE),\"\")","v":""},{"$f":"IFERROR(VLOOKUP('3 - Land Summary'!L21,'Look Up Data'!$Q$20:$R$25,2,FALSE),\"\")","v":""},null,null,{"$f":"IFERROR(('3 - Land Summary'!G21-'3 - Land Summary'!I21),\"\")","v":""}]
[null,{"$f":"IF('4 - Species Breakdown'!B32=0,\"\",'4 - Species Breakdown'!B32)","v":""},{"$f":"IF('4 - Species Breakdown'!D32=0,\"\",'4 - Species Breakdown'!D32)","v":""},{"$f":"IF('4 - Species Breakdown'!L32=0,\"\",'4 - Species Breakdown'!L32)","v":""},{"$f":"IF('4 - Species Breakdown'!M32=0,\"\",'4 - Species Breakdown'!M32)","v":""},{"$f":"IF('4 - Species Breakdown'!N32=0,\"\",'4 - Species Breakdown'!N32)","v":""},{"$f":"IFERROR(('4 - Species Breakdown'!J32/'WCC Summary'!$D$14)*100,\"\")","v":""},{"$f":"IF('4 - Species Breakdown'!J32=0,\"\",'4 - Species Breakdown'!J32)","v":""},null,{"$f":"IFERROR(VLOOKUP('3 - Land Summary'!E22,'Look Up Data'!$Q$5:$R$10,2,FALSE),\"\")","v":""},{"$f":"IFERROR(VLOOKUP('3 - Land Summary'!K22,'Look Up Data'!$Q$12:$R$18,2,FALSE),\"\")","v":""},{"$f":"IFERROR(VLOOKUP('3 - Land Summary'!L22,'Look Up Data'!$Q$20:$R$25,2,FALSE),\"\")","v":""},null,null,{"$f":"IFERROR(('3 - Land Summary'!G22-'3 - Land Summary'!I22),\"\")","v":""}]
[null,{"$f":"IF('4 - Species Breakdown'!B33=0,\"\",'4 - Species Breakdown'!B33)","v":""},{"$f":"IF('4 - Species Breakdown'!D33=0,\"\",'4 - Species Breakdown'!D33)","v":""},{"$f":"IF('4 - Species Breakdown'!L33=0,\"\",'4 - Species Breakdown'!L33)","v":""},{"$f":"IF('4 - Species Breakdown'!M33=0,\"\",'4 - Species Breakdown'!M33)","v":""},{"$f":"IF('4 - Species Breakdown'!N33=0,\"\",'4 - Species Breakdown'!N33)","v":""},{"$f":"IFERROR(('4 - Species Breakdown'!J33/'WCC Summary'!$D$14)*100,\"\")","v":""},{"$f":"IF('4 - Species Breakdown'!J33=0,\"\",'4 - Species Breakdown'!J33)","v":""},null,{"$f":"IFERROR(VLOOKUP('3 - Land Summary'!E23,'Look Up Data'!$Q$5:$R$10,2,FALSE),\"\")","v":""},{"$f":"IFERROR(VLOOKUP('3 - Land Summary'!K23,'Look Up Data'!$Q$12:$R$18,2,FALSE),\"\")","v":""},{"$f":"IFERROR(VLOOKUP('3 - Land Summary'!L23,'Look Up Data'!$Q$20:$R$25,2,FALSE),\"\")","v":""},null,null,{"$f":"IFERROR(('3 - Land Summary'!G23-'3 - Land Summary'!I23),\"\")","v":""}]
[null,{"$f":"IF('4 - Species Breakdown'!B34=0,\"\",'4 - Species Breakdown'!B34)","v":""},{"$f":"IF('4 - Species Breakdown'!D34=0,\"\",'4 - Species Breakdown'!D34)","v":""},{"$f":"IF('4 - Species Breakdown'!L34=0,\"\",'4 - Species Breakdown'!L34)","v":""},{"$f":"IF('4 - Species Breakdown'!M34=0,\"\",'4 - Species Breakdown'!M34)","v":""},{"$f":"IF('4 - Species Breakdown'!N34=0,\"\",'4 - Species Breakdown'!N34)","v":""},{"$f":"IFERROR(('4 - Species Breakdown'!J34/'WCC Summary'!$D$14)*100,\"\")","v":""},{"$f":"IF('4 - Species Breakdown'!J34=0,\"\",'4 - Species Breakdown'!J34)","v":""},null,{"$f":"IFERROR(VLOOKUP('3 - Land Summary'!E24,'Look Up Data'!$Q$5:$R$10,2,FALSE),\"\")","v":""},{"$f":"IFERROR(VLOOKUP('3 - Land Summary'!K24,'Look Up Data'!$Q$12:$R$18,2,FALSE),\"\")","v":""},{"$f":"IFERROR(VLOOKUP('3 - Land Summary'!L24,'Look Up Data'!$Q$20:$R$25,2,FALSE),\"\")","v":""},null,null,{"$f":"IFERROR(('3 - Land Summary'!G24-'3 - Land Summary'!I24),\"\")","v":""}]
[null,{"$f":"IF('4 - Species Breakdown'!B35=0,\"\",'4 - Species Breakdown'!B35)","v":""},{"$f":"IF('4 - Species Breakdown'!D35=0,\"\",'4 - Species Breakdown'!D35)","v":""},{"$f":"IF('4 - Species Breakdown'!L35=0,\"\",'4 - Species Breakdown'!L35)","v":""},{"$f":"IF('4 - Species Breakdown'!M35=0,\"\",'4 - Species Breakdown'!M35)","v":""},{"$f":"IF('4 - Species Breakdown'!N35=0,\"\",'4 - Species Breakdown'!N35)","v":""},{"$f":"IFERROR(('4 - Species Breakdown'!J35/'WCC Summary'!$D$14)*100,\"\")","v":""},{"$f":"IF('4 - Species Breakdown'!J35=0,\"\",'4 - Species Breakdown'!J35)","v":""},null,{"$f":"IFERROR(VLOOKUP('3 - Land Summary'!E25,'Look Up Data'!$Q$5:$R$10,2,FALSE),\"\")","v":""},{"$f":"IFERROR(VLOOKUP('3 - Land Summary'!K25,'Look Up Data'!$Q$12:$R$18,2,FALSE),\"\")","v":""},{"$f":"IFERROR(VLOOKUP('3 - Land Summary'!L25,'Look Up Data'!$Q$20:$R$25,2,FALSE),\"\")","v":""},null,null,{"$f":"IFERROR(('3 - Land Summary'!G25-'3 - Land Summary'!I25),\"\")","v":""}]
[null,{"$f":"IF('4 - Species Breakdown'!B36=0,\"\",'4 - Species Breakdown'!B36)","v":""},{"$f":"IF('4 - Species Breakdown'!D36=0,\"\",'4 - Species Breakdown'!D36)","v":""},{"$f":"IF('4 - Species Breakdown'!L36=0,\"\",'4 - Species Breakdown'!L36)","v":""},{"$f":"IF('4 - Species Breakdown'!M36=0,\"\",'4 - Species Breakdown'!M36)","v":""},{"$f":"IF('4 - Species Breakdown'!N36=0,\"\",'4 - Species Breakdown'!N36)","v":""},{"$f":"IFERROR(('4 - Species Breakdown'!J36/'WCC Summary'!$D$14)*100,\"\")","v":""},{"$f":"IF('4 - Species Breakdown'!J36=0,\"\",'4 - Species Breakdown'!J36)","v":""},null,{"$f":"IFERROR(VLOOKUP('3 - Land Summary'!E26,'Look Up Data'!$Q$5:$R$10,2,FALSE),\"\")","v":""},{"$f":"IFERROR(VLOOKUP('3 - Land Summary'!K26,'Look Up Data'!$Q$12:$R$18,2,FALSE),\"\")","v":""},{"$f":"IFERROR(VLOOKUP('3 - Land Summary'!L26,'Look Up Data'!$Q$20:$R$25,2,FALSE),\"\")","v":""},null,null,{"$f":"IFERROR(('3 - Land Summary'!G26-'3 - Land Summary'!I26),\"\")","v":""}]
[null,{"$f":"IF('4 - Species Breakdown'!B37=0,\"\",'4 - Species Breakdown'!B37)","v":""},{"$f":"IF('4 - Species Breakdown'!D37=0,\"\",'4 - Species Breakdown'!D37)","v":""},{"$f":"IF('4 - Species Breakdown'!L37=0,\"\",'4 - Species Breakdown'!L37)","v":""},{"$f":"IF('4 - Species Breakdown'!M37=0,\"\",'4 - Species Breakdown'!M37)","v":""},{"$f":"IF('4 - Species Breakdown'!N37=0,\"\",'4 - Species Breakdown'!N37)","v":""},{"$f":"IFERROR(('4 - Species Breakdown'!J37/'WCC Summary'!$D$14)*100,\"\")","v":""},{"$f":"IF('4 - Species Breakdown'!J37=0,\"\",'4 - Species Breakdown'!J37)","v":""},null,{"$f":"IFERROR(VLOOKUP('3 - Land Summary'!E27,'Look Up Data'!$Q$5:$R$10,2,FALSE),\"\")","v":""},{"$f":"IFERROR(VLOOKUP('3 - Land Summary'!K27,'Look Up Data'!$Q$12:$R$18,2,FALSE),\"\")","v":""},{"$f":"IFERROR(VLOOKUP('3 - Land Summary'!L27,'Look Up Data'!$Q$20:$R$25,2,FALSE),\"\")","v":""},null,null,{"$f":"IFERROR(('3 - Land Summary'!G27-'3 - Land Summary'!I27),\"\")","v":""}]
[null,{"$f":"IF('4 - Species Breakdown'!B38=0,\"\",'4 - Species Breakdown'!B38)","v":""},{"$f":"IF('4 - Species Breakdown'!D38=0,\"\",'4 - Species Breakdown'!D38)","v":""},{"$f":"IF('4 - Species Breakdown'!L38=0,\"\",'4 - Species Breakdown'!L38)","v":""},{"$f":"IF('4 - Species Breakdown'!M38=0,\"\",'4 - Species Breakdown'!M38)","v":""},{"$f":"IF('4 - Species Breakdown'!N38=0,\"\",'4 - Species Breakdown'!N38)","v":""},{"$f":"IFERROR(('4 - Species Breakdown'!J38/'WCC Summary'!$D$14)*100,\"\")","v":""},{"$f":"IF('4 - Species Breakdown'!J38=0,\"\",'4 - Species Breakdown'!J38)","v":""},null,{"$f":"IFERROR(VLOOKUP('3 - Land Summary'!E28,'Look Up Data'!$Q$5:$R$10,2,FALSE),\"\")","v":""},{"$f":"IFERROR(VLOOKUP('3 - Land Summary'!K28,'Look Up Data'!$Q$12:$R$18,2,FALSE),\"\")","v":""},{"$f":"IFERROR(VLOOKUP('3 - Land Summary'!L28,'Look Up Data'!$Q$20:$R$25,2,FALSE),\"\")","v":""},null,null,{"$f":"IFERROR(('3 - Land Summary'!G28-'3 - Land Summary'!I28),\"\")","v":""}]
[null,{"$f":"IF('4 - Species Breakdown'!B39=0,\"\",'4 - Species Breakdown'!B39)","v":""},{"$f":"IF('4 - Species Breakdown'!D39=0,\"\",'4 - Species Breakdown'!D39)","v":""},{"$f":"IF('4 - Species Breakdown'!L39=0,\"\",'4 - Species Breakdown'!L39)","v":""},{"$f":"IF('4 - Species Breakdown'!M39=0,\"\",'4 - Species Breakdown'!M39)","v":""},{"$f":"IF('4 - Species Breakdown'!N39=0,\"\",'4 - Species Breakdown'!N39)","v":""},{"$f":"IFERROR(('4 - Species Breakdown'!J39/'WCC Summary'!$D$14)*100,\"\")","v":""},{"$f":"IF('4 - Species Breakdown'!J39=0,\"\",'4 - Species Breakdown'!J39)","v":""},null,{"$f":"IFERROR(VLOOKUP('3 - Land Summary'!E29,'Look Up Data'!$Q$5:$R$10,2,FALSE),\"\")","v":""},{"$f":"IFERROR(VLOOKUP('3 - Land Summary'!K29,'Look Up Data'!$Q$12:$R$18,2,FALSE),\"\")","v":""},{"$f":"IFERROR(VLOOKUP('3 - Land Summary'!L29,'Look Up Data'!$Q$20:$R$25,2,FALSE),\"\")","v":""},null,null,{"$f":"IFERROR(('3 - Land Summary'!G29-'3 - Land Summary'!I29),\"\")","v":""}]
[null,{"$f":"IF('4 - Species Breakdown'!B40=0,\"\",'4 - Species Breakdown'!B40)","v":""},{"$f":"IF('4 - Species Breakdown'!D40=0,\"\",'4 - Species Breakdown'!D40)","v":""},{"$f":"IF('4 - Species Breakdown'!L40=0,\"\",'4 - Species Breakdown'!L40)","v":""},{"$f":"IF('4 - Species Breakdown'!M40=0,\"\",'4 - Species Breakdown'!M40)","v":""},{"$f":"IF('4 - Species Breakdown'!N40=0,\"\",'4 - Species Breakdown'!N40)","v":""},{"$f":"IFERROR(('4 - Species Breakdown'!J40/'WCC Summary'!$D$14)*100,\"\")","v":""},{"$f":"IF('4 - Species Breakdown'!J40=0,\"\",'4 - Species Breakdown'!J40)","v":""},null,{"$f":"IFERROR(VLOOKUP('3 - Land Summary'!E30,'Look Up Data'!$Q$5:$R$10,2,FALSE),\"\")","v":""},{"$f":"IFERROR(VLOOKUP('3 - Land Summary'!K30,'Look Up Data'!$Q$12:$R$18,2,FALSE),\"\")","v":""},{"$f":"IFERROR(VLOOKUP('3 - Land Summary'!L30,'Look Up Data'!$Q$20:$R$25,2,FALSE),\"\")","v":""},null,null,{"$f":"IFERROR(('3 - Land Summary'!G30-'3 - Land Summary'!I30),\"\")","v":""}]
[null,{"$f":"IF('4 - Species Breakdown'!B41=0,\"\",'4 - Species Breakdown'!B41)","v":""},{"$f":"IF('4 - Species Breakdown'!D41=0,\"\",'4 - Species Breakdown'!D41)","v":""},{"$f":"IF('4 - Species Breakdown'!L41=0,\"\",'4 - Species Breakdown'!L41)","v":""},{"$f":"IF('4 - Species Breakdown'!M41=0,\"\",'4 - Species Breakdown'!M41)","v":""},{"$f":"IF('4 - Species Breakdown'!N41=0,\"\",'4 - Species Breakdown'!N41)","v":""},{"$f":"IFERROR(('4 - Species Breakdown'!J41/'WCC Summary'!$D$14)*100,\"\")","v":""},{"$f":"IF('4 - Species Breakdown'!J41=0,\"\",'4 - Species Breakdown'!J41)","v":""},null,{"$f":"IFERROR(VLOOKUP('3 - Land Summary'!E31,'Look Up Data'!$Q$5:$R$10,2,FALSE),\"\")","v":""},{"$f":"IFERROR(VLOOKUP('3 - Land Summary'!K31,'Look Up Data'!$Q$12:$R$18,2,FALSE),\"\")","v":""},{"$f":"IFERROR(VLOOKUP('3 - Land Summary'!L31,'Look Up Data'!$Q$20:$R$25,2,FALSE),\"\")","v":""},null,null,{"$f":"IFERROR(('3 - Land Summary'!G31-'3 - Land Summary'!I31),\"\")","v":""}]
[null,{"$f":"IF('4 - Species Breakdown'!B42=0,\"\",'4 - Species Breakdown'!B42)","v":""},{"$f":"IF('4 - Species Breakdown'!D42=0,\"\",'4 - Species Breakdown'!D42)","v":""},{"$f":"IF('4 - Species Breakdown'!L42=0,\"\",'4 - Species Breakdown'!L42)","v":""},{"$f":"IF('4 - Species Breakdown'!M42=0,\"\",'4 - Species Breakdown'!M42)","v":""},{"$f":"IF('4 - Species Breakdown'!N42=0,\"\",'4 - Species Breakdown'!N42)","v":""},{"$f":"IFERROR(('4 - Species Breakdown'!J42/'WCC Summary'!$D$14)*100,\"\")","v":""},{"$f":"IF('4 - Species Breakdown'!J42=0,\"\",'4 - Species Breakdown'!J42)","v":""},null,{"$f":"IFERROR(VLOOKUP('3 - Land Summary'!E32,'Look Up Data'!$Q$5:$R$10,2,FALSE),\"\")","v":""},{"$f":"IFERROR(VLOOKUP('3 - Land Summary'!K32,'Look Up Data'!$Q$12:$R$18,2,FALSE),\"\")","v":""},{"$f":"IFERROR(VLOOKUP('3 - Land Summary'!L32,'Look Up Data'!$Q$20:$R$25,2,FALSE),\"\")","v":""},null,null,{"$f":"IFERROR(('3 - Land Summary'!G32-'3 - Land Summary'!I32),\"\")","v":""}]
[null,{"$f":"IF('4 - Species Breakdown'!B43=0,\"\",'4 - Species Breakdown'!B43)","v":""},{"$f":"IF('4 - Species Breakdown'!D43=0,\"\",'4 - Species Breakdown'!D43)","v":""},{"$f":"IF('4 - Species Breakdown'!L43=0,\"\",'4 - Species Breakdown'!L43)","v":""},{"$f":"IF('4 - Species Breakdown'!M43=0,\"\",'4 - Species Breakdown'!M43)","v":""},{"$f":"IF('4 - Species Breakdown'!N43=0,\"\",'4 - Species Breakdown'!N43)","v":""},{"$f":"IFERROR(('4 - Species Breakdown'!J43/'WCC Summary'!$D$14)*100,\"\")","v":""},{"$f":"IF('4 - Species Breakdown'!J43=0,\"\",'4 - Species Breakdown'!J43)","v":""},null,{"$f":"IFERROR(VLOOKUP('3 - Land Summary'!E33,'Look Up Data'!$Q$5:$R$10,2,FALSE),\"\")","v":""},{"$f":"IFERROR(VLOOKUP('3 - Land Summary'!K33,'Look Up Data'!$Q$12:$R$18,2,FALSE),\"\")","v":""},{"$f":"IFERROR(VLOOKUP('3 - Land Summary'!L33,'Look Up Data'!$Q$20:$R$25,2,FALSE),\"\")","v":""},null,null,{"$f":"IFERROR(('3 - Land Summary'!G33-'3 - Land Summary'!I33),\"\")","v":""}]
[null,{"$f":"IF('4 - Species Breakdown'!B44=0,\"\",'4 - Species Breakdown'!B44)","v":""},{"$f":"IF('4 - Species Breakdown'!D44=0,\"\",'4 - Species Breakdown'!D44)","v":""},{"$f":"IF('4 - Species Breakdown'!L44=0,\"\",'4 - Species Breakdown'!L44)","v":""},{"$f":"IF('4 - Species Breakdown'!M44=0,\"\",'4 - Species Breakdown'!M44)","v":""},{"$f":"IF('4 - Species Breakdown'!N44=0,\"\",'4 - Species Breakdown'!N44)","v":""},{"$f":"IFERROR(('4 - Species Breakdown'!J44/'WCC Summary'!$D$14)*100,\"\")","v":""},{"$f":"IF('4 - Species Breakdown'!J44=0,\"\",'4 - Species Breakdown'!J44)","v":""},null,{"$f":"IFERROR(VLOOKUP('3 - Land Summary'!E34,'Look Up Data'!$Q$5:$R$10,2,FALSE),\"\")","v":""},{"$f":"IFERROR(VLOOKUP('3 - Land Summary'!K34,'Look Up Data'!$Q$12:$R$18,2,FALSE),\"\")","v":""},{"$f":"IFERROR(VLOOKUP('3 - Land Summary'!L34,'Look Up Data'!$Q$20:$R$25,2,FALSE),\"\")","v":""},null,null,{"$f":"IFERROR(('3 - Land Summary'!G34-'3 - Land Summary'!I34),\"\")","v":""}]
[null,{"$f":"IF('4 - Species Breakdown'!B45=0,\"\",'4 - Species Breakdown'!B45)","v":""},{"$f":"IF('4 - Species Breakdown'!D45=0,\"\",'4 - Species Breakdown'!D45)","v":""},{"$f":"IF('4 - Species Breakdown'!L45=0,\"\",'4 - Species Breakdown'!L45)","v":""},{"$f":"IF('4 - Species Breakdown'!M45=0,\"\",'4 - Species Breakdown'!M45)","v":""},{"$f":"IF('4 - Species Breakdown'!N45=0,\"\",'4 - Species Breakdown'!N45)","v":""},{"$f":"IFERROR(('4 - Species Breakdown'!J45/'WCC Summary'!$D$14)*100,\"\")","v":""},{"$f":"IF('4 - Species Breakdown'!J45=0,\"\",'4 - Species Breakdown'!J45)","v":""},null,{"$f":"IFERROR(VLOOKUP('3 - Land Summary'!E35,'Look Up Data'!$Q$5:$R$10,2,FALSE),\"\")","v":""},{"$f":"IFERROR(VLOOKUP('3 - Land Summary'!K35,'Look Up Data'!$Q$12:$R$18,2,FALSE),\"\")","v":""},{"$f":"IFERROR(VLOOKUP('3 - Land Summary'!L35,'Look Up Data'!$Q$20:$R$25,2,FALSE),\"\")","v":""},null,null,{"$f":"IFERROR(('3 - Land Summary'!G35-'3 - Land Summary'!I35),\"\")","v":""}]
[null,{"$f":"IF('4 - Species Breakdown'!B46=0,\"\",'4 - Species Breakdown'!B46)","v":""},{"$f":"IF('4 - Species Breakdown'!D46=0,\"\",'4 - Species Breakdown'!D46)","v":""},{"$f":"IF('4 - Species Breakdown'!L46=0,\"\",'4 - Species Breakdown'!L46)","v":""},{"$f":"IF('4 - Species Breakdown'!M46=0,\"\",'4 - Species Breakdown'!M46)","v":""},{"$f":"IF('4 - Species Breakdown'!N46=0,\"\",'4 - Species Breakdown'!N46)","v":""},{"$f":"IFERROR(('4 - Species Breakdown'!J46/'WCC Summary'!$D$14)*100,\"\")","v":""},{"$f":"IF('4 - Species Breakdown'!J46=0,\"\",'4 - Species Breakdown'!J46)","v":""},null,{"$f":"IFERROR(VLOOKUP('3 - Land Summary'!E36,'Look Up Data'!$Q$5:$R$10,2,FALSE),\"\")","v":""},{"$f":"IFERROR(VLOOKUP('3 - Land Summary'!K36,'Look Up Data'!$Q$12:$R$18,2,FALSE),\"\")","v":""},{"$f":"IFERROR(VLOOKUP('3 - Land Summary'!L36,'Look Up Data'!$Q$20:$R$25,2,FALSE),\"\")","v":""},null,null,{"$f":"IFERROR(('3 - Land Summary'!G36-'3 - Land Summary'!I36),\"\")","v":""}]
[null,{"$f":"IF('4 - Species Breakdown'!B47=0,\"\",'4 - Species Breakdown'!B47)","v":""},{"$f":"IF('4 - Species Breakdown'!D47=0,\"\",'4 - Species Breakdown'!D47)","v":""},{"$f":"IF('4 - Species Breakdown'!L47=0,\"\",'4 - Species Breakdown'!L47)","v":""},{"$f":"IF('4 - Species Breakdown'!M47=0,\"\",'4 - Species Breakdown'!M47)","v":""},{"$f":"IF('4 - Species Breakdown'!N47=0,\"\",'4 - Species Breakdown'!N47)","v":""},{"$f":"IFERROR(('4 - Species Breakdown'!J47/'WCC Summary'!$D$14)*100,\"\")","v":""},{"$f":"IF('4 - Species Breakdown'!J47=0,\"\",'4 - Species Breakdown'!J47)","v":""},null,{"$f":"IFERROR(VLOOKUP('3 - Land Summary'!E37,'Look Up Data'!$Q$5:$R$10,2,FALSE),\"\")","v":""},{"$f":"IFERROR(VLOOKUP('3 - Land Summary'!K37,'Look Up Data'!$Q$12:$R$18,2,FALSE),\"\")","v":""},{"$f":"IFERROR(VLOOKUP('3 - Land Summary'!L37,'Look Up Data'!$Q$20:$R$25,2,FALSE),\"\")","v":""},null,null,{"$f":"IFERROR(('3 - Land Summary'!G37-'3 - Land Summary'!I37),\"\")","v":""}]
[null,{"$f":"IF('4 - Species Breakdown'!B48=0,\"\",'4 - Species Breakdown'!B48)","v":""},{"$f":"IF('4 - Species Breakdown'!D48=0,\"\",'4 - Species Breakdown'!D48)","v":""},{"$f":"IF('4 - Species Breakdown'!L48=0,\"\",'4 - Species Breakdown'!L48)","v":""},{"$f":"IF('4 - Species Breakdown'!M48=0,\"\",'4 - Species Breakdown'!M48)","v":""},{"$f":"IF('4 - Species Breakdown'!N48=0,\"\",'4 - Species Breakdown'!N48)","v":""},{"$f":"IFERROR(('4 - Species Breakdown'!J48/'WCC Summary'!$D$14)*100,\"\")","v":""},{"$f":"IF('4 - Species Breakdown'!J48=0,\"\",'4 - Species Breakdown'!J48)","v":""},null,{"$f":"IFERROR(VLOOKUP('3 - Land Summary'!E38,'Look Up Data'!$Q$5:$R$10,2,FALSE),\"\")","v":""},{"$f":"IFERROR(VLOOKUP('3 - Land Summary'!K38,'Look Up Data'!$Q$12:$R$18,2,FALSE),\"\")","v":""},{"$f":"IFERROR(VLOOKUP('3 - Land Summary'!L38,'Look Up Data'!$Q$20:$R$25,2,FALSE),\"\")","v":""},null,null,{"$f":"IFERROR(('3 - Land Summary'!G38-'3 - Land Summary'!I38),\"\")","v":""}]
[null,{"$f":"IF('4 - Species Breakdown'!B49=0,\"\",'4 - Species Breakdown'!B49)","v":""},{"$f":"IF('4 - Species Breakdown'!D49=0,\"\",'4 - Species Breakdown'!D49)","v":""},{"$f":"IF('4 - Species Breakdown'!L49=0,\"\",'4 - Species Breakdown'!L49)","v":""},{"$f":"IF('4 - Species Breakdown'!M49=0,\"\",'4 - Species Breakdown'!M49)","v":""},{"$f":"IF('4 - Species Breakdown'!N49=0,\"\",'4 - Species Breakdown'!N49)","v":""},{"$f":"IFERROR(('4 - Species Breakdown'!J49/'WCC Summary'!$D$14)*100,\"\")","v":""},{"$f":"IF('4 - Species Breakdown'!J49=0,\"\",'4 - Species Breakdown'!J49)","v":""},null,{"$f":"IFERROR(VLOOKUP('3 - Land Summary'!E39,'Look Up Data'!$Q$5:$R$10,2,FALSE),\"\")","v":""},{"$f":"IFERROR(VLOOKUP('3 - Land Summary'!K39,'Look Up Data'!$Q$12:$R$18,2,FALSE),\"\")","v":""},{"$f":"IFERROR(VLOOKUP('3 - Land Summary'!L39,'Look Up Data'!$Q$20:$R$25,2,FALSE),\"\")","v":""},null,null,{"$f":"IFERROR(('3 - Land Summary'!G39-'3 - Land Summary'!I39),\"\")","v":""}]
[null,{"$f":"IF('4 - Species Breakdown'!B50=0,\"\",'4 - Species Breakdown'!B50)","v":""},{"$f":"IF('4 - Species Breakdown'!D50=0,\"\",'4 - Species Breakdown'!D50)","v":""},{"$f":"IF('4 - Species Breakdown'!L50=0,\"\",'4 - Species Breakdown'!L50)","v":""},{"$f":"IF('4 - Species Breakdown'!M50=0,\"\",'4 - Species Breakdown'!M50)","v":""},{"$f":"IF('4 - Species Breakdown'!N50=0,\"\",'4 - Species Breakdown'!N50)","v":""},{"$f":"IFERROR(('4 - Species Breakdown'!J50/'WCC Summary'!$D$14)*100,\"\")","v":""},{"$f":"IF('4 - Species Breakdown'!J50=0,\"\",'4 - Species Breakdown'!J50)","v":""},null,{"$f":"IFERROR(VLOOKUP('3 - Land Summary'!E40,'Look Up Data'!$Q$5:$R$10,2,FALSE),\"\")","v":""},{"$f":"IFERROR(VLOOKUP('3 - Land Summary'!K40,'Look Up Data'!$Q$12:$R$18,2,FALSE),\"\")","v":""},{"$f":"IFERROR(VLOOKUP('3 - Land Summary'!L40,'Look Up Data'!$Q$20:$R$25,2,FALSE),\"\")","v":""},null,null,{"$f":"IFERROR(('3 - Land Summary'!G40-'3 - Land Summary'!I40),\"\")","v":""}]
[null,{"$f":"IF('4 - Species Breakdown'!B51=0,\"\",'4 - Species Breakdown'!B51)","v":""},{"$f":"IF('4 - Species Breakdown'!D51=0,\"\",'4 - Species Breakdown'!D51)","v":""},{"$f":"IF('4 - Species Breakdown'!L51=0,\"\",'4 - Species Breakdown'!L51)","v":""},{"$f":"IF('4 - Species Breakdown'!M51=0,\"\",'4 - Species Breakdown'!M51)","v":""},{"$f":"IF('4 - Species Breakdown'!N51=0,\"\",'4 - Species Breakdown'!N51)","v":""},{"$f":"IFERROR(('4 - Species Breakdown'!J51/'WCC Summary'!$D$14)*100,\"\")","v":""},{"$f":"IF('4 - Species Breakdown'!J51=0,\"\",'4 - Species Breakdown'!J51)","v":""},null,{"$f":"IFERROR(VLOOKUP('3 - Land Summary'!E41,'Look Up Data'!$Q$5:$R$10,2,FALSE),\"\")","v":""},{"$f":"IFERROR(VLOOKUP('3 - Land Summary'!K41,'Look Up Data'!$Q$12:$R$18,2,FALSE),\"\")","v":""},{"$f":"IFERROR(VLOOKUP('3 - Land Summary'!L41,'Look Up Data'!$Q$20:$R$25,2,FALSE),\"\")","v":""},null,null,{"$f":"IFERROR(('3 - Land Summary'!G41-'3 - Land Summary'!I41),\"\")","v":""}]
[null,{"$f":"IF('4 - Species Breakdown'!B52=0,\"\",'4 - Species Breakdown'!B52)","v":""},{"$f":"IF('4 - Species Breakdown'!D52=0,\"\",'4 - Species Breakdown'!D52)","v":""},{"$f":"IF('4 - Species Breakdown'!L52=0,\"\",'4 - Species Breakdown'!L52)","v":""},{"$f":"IF('4 - Species Breakdown'!M52=0,\"\",'4 - Species Breakdown'!M52)","v":""},{"$f":"IF('4 - Species Breakdown'!N52=0,\"\",'4 - Species Breakdown'!N52)","v":""},{"$f":"IFERROR(('4 - Species Breakdown'!J52/'WCC Summary'!$D$14)*100,\"\")","v":""},{"$f":"IF('4 - Species Breakdown'!J52=0,\"\",'4 - Species Breakdown'!J52)","v":""},null,{"$f":"IFERROR(VLOOKUP('3 - Land Summary'!E42,'Look Up Data'!$Q$5:$R$10,2,FALSE),\"\")","v":""},{"$f":"IFERROR(VLOOKUP('3 - Land Summary'!K42,'Look Up Data'!$Q$12:$R$18,2,FALSE),\"\")","v":""},{"$f":"IFERROR(VLOOKUP('3 - Land Summary'!L42,'Look Up Data'!$Q$20:$R$25,2,FALSE),\"\")","v":""},null,null,{"$f":"IFERROR(('3 - Land Summary'!G42-'3 - Land Summary'!I42),\"\")","v":""}]
[null,{"$f":"IF('4 - Species Breakdown'!B53=0,\"\",'4 - Species Breakdown'!B53)","v":""},{"$f":"IF('4 - Species Breakdown'!D53=0,\"\",'4 - Species Breakdown'!D53)","v":""},{"$f":"IF('4 - Species Breakdown'!L53=0,\"\",'4 - Species Breakdown'!L53)","v":""},{"$f":"IF('4 - Species Breakdown'!M53=0,\"\",'4 - Species Breakdown'!M53)","v":""},{"$f":"IF('4 - Species Breakdown'!N53=0,\"\",'4 - Species Breakdown'!N53)","v":""},{"$f":"IFERROR(('4 - Species Breakdown'!J53/'WCC Summary'!$D$14)*100,\"\")","v":""},{"$f":"IF('4 - Species Breakdown'!J53=0,\"\",'4 - Species Breakdown'!J53)","v":""},null,{"$f":"IFERROR(VLOOKUP('3 - Land Summary'!E43,'Look Up Data'!$Q$5:$R$10,2,FALSE),\"\")","v":""},{"$f":"IFERROR(VLOOKUP('3 - Land Summary'!K43,'Look Up Data'!$Q$12:$R$18,2,FALSE),\"\")","v":""},{"$f":"IFERROR(VLOOKUP('3 - Land Summary'!L43,'Look Up Data'!$Q$20:$R$25,2,FALSE),\"\")","v":""},null,null,{"$f":"IFERROR(('3 - Land Summary'!G43-'3 - Land Summary'!I43),\"\")","v":""}]
[null,{"$f":"IF('4 - Species Breakdown'!B54=0,\"\",'4 - Species Breakdown'!B54)","v":""},{"$f":"IF('4 - Species Breakdown'!D54=0,\"\",'4 - Species Breakdown'!D54)","v":""},{"$f":"IF('4 - Species Breakdown'!L54=0,\"\",'4 - Species Breakdown'!L54)","v":""},{"$f":"IF('4 - Species Breakdown'!M54=0,\"\",'4 - Species Breakdown'!M54)","v":""},{"$f":"IF('4 - Species Breakdown'!N54=0,\"\",'4 - Species Breakdown'!N54)","v":""},{"$f":"IFERROR(('4 - Species Breakdown'!J54/'WCC Summary'!$D$14)*100,\"\")","v":""},{"$f":"IF('4 - Species Breakdown'!J54=0,\"\",'4 - Species Breakdown'!J54)","v":""},null,{"$f":"IFERROR(VLOOKUP('3 - Land Summary'!E44,'Look Up Data'!$Q$5:$R$10,2,FALSE),\"\")","v":""},{"$f":"IFERROR(VLOOKUP('3 - Land Summary'!K44,'Look Up Data'!$Q$12:$R$18,2,FALSE),\"\")","v":""},{"$f":"IFERROR(VLOOKUP('3 - Land Summary'!L44,'Look Up Data'!$Q$20:$R$25,2,FALSE),\"\")","v":""},null,null,{"$f":"IFERROR(('3 - Land Summary'!G44-'3 - Land Summary'!I44),\"\")","v":""}]
[null,{"$f":"IF('4 - Species Breakdown'!B55=0,\"\",'4 - Species Breakdown'!B55)","v":""},{"$f":"IF('4 - Species Breakdown'!D55=0,\"\",'4 - Species Breakdown'!D55)","v":""},{"$f":"IF('4 - Species Breakdown'!L55=0,\"\",'4 - Species Breakdown'!L55)","v":""},{"$f":"IF('4 - Species Breakdown'!M55=0,\"\",'4 - Species Breakdown'!M55)","v":""},{"$f":"IF('4 - Species Breakdown'!N55=0,\"\",'4 - Species Breakdown'!N55)","v":""},{"$f":"IFERROR(('4 - Species Breakdown'!J55/'WCC Summary'!$D$14)*100,\"\")","v":""},{"$f":"IF('4 - Species Breakdown'!J55=0,\"\",'4 - Species Breakdown'!J55)","v":""},null,{"$f":"IFERROR(VLOOKUP('3 - Land Summary'!E45,'Look Up Data'!$Q$5:$R$10,2,FALSE),\"\")","v":""},{"$f":"IFERROR(VLOOKUP('3 - Land Summary'!K45,'Look Up Data'!$Q$12:$R$18,2,FALSE),\"\")","v":""},{"$f":"IFERROR(VLOOKUP('3 - Land Summary'!L45,'Look Up Data'!$Q$20:$R$25,2,FALSE),\"\")","v":""},null,null,{"$f":"IFERROR(('3 - Land Summary'!G45-'3 - Land Summary'!I45),\"\")","v":""}]
[null,{"$f":"IF('4 - Species Breakdown'!B56=0,\"\",'4 - Species Breakdown'!B56)","v":""},{"$f":"IF('4 - Species Breakdown'!D56=0,\"\",'4 - Species Breakdown'!D56)","v":""},{"$f":"IF('4 - Species Breakdown'!L56=0,\"\",'4 - Species Breakdown'!L56)","v":""},{"$f":"IF('4 - Species Breakdown'!M56=0,\"\",'4 - Species Breakdown'!M56)","v":""},{"$f":"IF('4 - Species Breakdown'!N56=0,\"\",'4 - Species Breakdown'!N56)","v":""},{"$f":"IFERROR(('4 - Species Breakdown'!J56/'WCC Summary'!$D$14)*100,\"\")","v":""},{"$f":"IF('4 - Species Breakdown'!J56=0,\"\",'4 - Species Breakdown'!J56)","v":""},null,{"$f":"IFERROR(VLOOKUP('3 - Land Summary'!E46,'Look Up Data'!$Q$5:$R$10,2,FALSE),\"\")","v":""},{"$f":"IFERROR(VLOOKUP('3 - Land Summary'!K46,'Look Up Data'!$Q$12:$R$18,2,FALSE),\"\")","v":""},{"$f":"IFERROR(VLOOKUP('3 - Land Summary'!L46,'Look Up Data'!$Q$20:$R$25,2,FALSE),\"\")","v":""},null,null,{"$f":"IFERROR(('3 - Land Summary'!G46-'3 - Land Summary'!I46),\"\")","v":""}]
[null,{"$f":"IF('4 - Species Breakdown'!B57=0,\"\",'4 - Species Breakdown'!B57)","v":""},{"$f":"IF('4 - Species Breakdown'!D57=0,\"\",'4 - Species Breakdown'!D57)","v":""},{"$f":"IF('4 - Species Breakdown'!L57=0,\"\",'4 - Species Breakdown'!L57)","v":""},{"$f":"IF('4 - Species Breakdown'!M57=0,\"\",'4 - Species Breakdown'!M57)","v":""},{"$f":"IF('4 - Species Breakdown'!N57=0,\"\",'4 - Species Breakdown'!N57)","v":""},{"$f":"IFERROR(('4 - Species Breakdown'!J57/'WCC Summary'!$D$14)*100,\"\")","v":""},{"$f":"IF('4 - Species Breakdown'!J57=0,\"\",'4 - Species Breakdown'!J57)","v":""},null,{"$f":"IFERROR(VLOOKUP('3 - Land Summary'!E47,'Look Up Data'!$Q$5:$R$10,2,FALSE),\"\")","v":""},{"$f":"IFERROR(VLOOKUP('3 - Land Summary'!K47,'Look Up Data'!$Q$12:$R$18,2,FALSE),\"\")","v":""},{"$f":"IFERROR(VLOOKUP('3 - Land Summary'!L47,'Look Up Data'!$Q$20:$R$25,2,FALSE),\"\")","v":""},null,null,{"$f":"IFERROR(('3 - Land Summary'!G47-'3 - Land Summary'!I47),\"\")","v":""}]
[null,{"$f":"IF('4 - Species Breakdown'!B58=0,\"\",'4 - Species Breakdown'!B58)","v":""},{"$f":"IF('4 - Species Breakdown'!D58=0,\"\",'4 - Species Breakdown'!D58)","v":""},{"$f":"IF('4 - Species Breakdown'!L58=0,\"\",'4 - Species Breakdown'!L58)","v":""},{"$f":"IF('4 - Species Breakdown'!M58=0,\"\",'4 - Species Breakdown'!M58)","v":""},{"$f":"IF('4 - Species Breakdown'!N58=0,\"\",'4 - Species Breakdown'!N58)","v":""},{"$f":"IFERROR(('4 - Species Breakdown'!J58/'WCC Summary'!$D$14)*100,\"\")","v":""},{"$f":"IF('4 - Species Breakdown'!J58=0,\"\",'4 - Species Breakdown'!J58)","v":""},null,{"$f":"IFERROR(VLOOKUP('3 - Land Summary'!E48,'Look Up Data'!$Q$5:$R$10,2,FALSE),\"\")","v":""},{"$f":"IFERROR(VLOOKUP('3 - Land Summary'!K48,'Look Up Data'!$Q$12:$R$18,2,FALSE),\"\")","v":""},{"$f":"IFERROR(VLOOKUP('3 - Land Summary'!L48,'Look Up Data'!$Q$20:$R$25,2,FALSE),\"\")","v":""},null,null,{"$f":"IFERROR(('3 - Land Summary'!G48-'3 - Land Summary'!I48),\"\")","v":""}]
[null,{"$f":"IF('4 - Species Breakdown'!B59=0,\"\",'4 - Species Breakdown'!B59)","v":""},{"$f":"IF('4 - Species Breakdown'!D59=0,\"\",'4 - Species Breakdown'!D59)","v":""},{"$f":"IF('4 - Species Breakdown'!L59=0,\"\",'4 - Species Breakdown'!L59)","v":""},{"$f":"IF('4 - Species Breakdown'!M59=0,\"\",'4 - Species Breakdown'!M59)","v":""},{"$f":"IF('4 - Species Breakdown'!N59=0,\"\",'4 - Species Breakdown'!N59)","v":""},{"$f":"IFERROR(('4 - Species Breakdown'!J59/'WCC Summary'!$D$14)*100,\"\")","v":""},{"$f":"IF('4 - Species Breakdown'!J59=0,\"\",'4 - Species Breakdown'!J59)","v":""},null,{"$f":"IFERROR(VLOOKUP('3 - Land Summary'!E49,'Look Up Data'!$Q$5:$R$10,2,FALSE),\"\")","v":""},{"$f":"IFERROR(VLOOKUP('3 - Land Summary'!K49,'Look Up Data'!$Q$12:$R$18,2,FALSE),\"\")","v":""},{"$f":"IFERROR(VLOOKUP('3 - Land Summary'!L49,'Look Up Data'!$Q$20:$R$25,2,FALSE),\"\")","v":""},null,null,{"$f":"IFERROR(('3 - Land Summary'!G49-'3 - Land Summary'!I49),\"\")","v":""}]
[null,{"$f":"IF('4 - Species Breakdown'!B60=0,\"\",'4 - Species Breakdown'!B60)","v":""},{"$f":"IF('4 - Species Breakdown'!D60=0,\"\",'4 - Species Breakdown'!D60)","v":""},{"$f":"IF('4 - Species Breakdown'!L60=0,\"\",'4 - Species Breakdown'!L60)","v":""},{"$f":"IF('4 - Species Breakdown'!M60=0,\"\",'4 - Species Breakdown'!M60)","v":""},{"$f":"IF('4 - Species Breakdown'!N60=0,\"\",'4 - Species Breakdown'!N60)","v":""},{"$f":"IFERROR(('4 - Species Breakdown'!J60/'WCC Summary'!$D$14)*100,\"\")","v":""},{"$f":"IF('4 - Species Breakdown'!J60=0,\"\",'4 - Species Breakdown'!J60)","v":""},null,{"$f":"IFERROR(VLOOKUP('3 - Land Summary'!E50,'Look Up Data'!$Q$5:$R$10,2,FALSE),\"\")","v":""},{"$f":"IFERROR(VLOOKUP('3 - Land Summary'!K50,'Look Up Data'!$Q$12:$R$18,2,FALSE),\"\")","v":""},{"$f":"IFERROR(VLOOKUP('3 - Land Summary'!L50,'Look Up Data'!$Q$20:$R$25,2,FALSE),\"\")","v":""},null,null,{"$f":"IFERROR(('3 - Land Summary'!G50-'3 - Land Summary'!I50),\"\")","v":""}]
[null,{"$f":"IF('4 - Species Breakdown'!B61=0,\"\",'4 - Species Breakdown'!B61)","v":""},{"$f":"IF('4 - Species Breakdown'!D61=0,\"\",'4 - Species Breakdown'!D61)","v":""},{"$f":"IF('4 - Species Breakdown'!L61=0,\"\",'4 - Species Breakdown'!L61)","v":""},{"$f":"IF('4 - Species Breakdown'!M61=0,\"\",'4 - Species Breakdown'!M61)","v":""},{"$f":"IF('4 - Species Breakdown'!N61=0,\"\",'4 - Species Breakdown'!N61)","v":""},{"$f":"IFERROR(('4 - Species Breakdown'!J61/'WCC Summary'!$D$14)*100,\"\")","v":""},{"$f":"IF('4 - Species Breakdown'!J61=0,\"\",'4 - Species Breakdown'!J61)","v":""},null,{"$f":"IFERROR(VLOOKUP('3 - Land Summary'!E51,'Look Up Data'!$Q$5:$R$10,2,FALSE),\"\")","v":""},{"$f":"IFERROR(VLOOKUP('3 - Land Summary'!K51,'Look Up Data'!$Q$12:$R$18,2,FALSE),\"\")","v":""},{"$f":"IFERROR(VLOOKUP('3 - Land Summary'!L51,'Look Up Data'!$Q$20:$R$25,2,FALSE),\"\")","v":""},null,null,{"$f":"IFERROR(('3 - Land Summary'!G51-'3 - Land Summary'!I51),\"\")","v":""}]
[null,{"$f":"IF('4 - Species Breakdown'!B62=0,\"\",'4 - Species Breakdown'!B62)","v":""},{"$f":"IF('4 - Species Breakdown'!D62=0,\"\",'4 - Species Breakdown'!D62)","v":""},{"$f":"IF('4 - Species Breakdown'!L62=0,\"\",'4 - Species Breakdown'!L62)","v":""},{"$f":"IF('4 - Species Breakdown'!M62=0,\"\",'4 - Species Breakdown'!M62)","v":""},{"$f":"IF('4 - Species Breakdown'!N62=0,\"\",'4 - Species Breakdown'!N62)","v":""},{"$f":"IFERROR(('4 - Species Breakdown'!J62/'WCC Summary'!$D$14)*100,\"\")","v":""},{"$f":"IF('4 - Species Breakdown'!J62=0,\"\",'4 - Species Breakdown'!J62)","v":""},null,{"$f":"IFERROR(VLOOKUP('3 - Land Summary'!E52,'Look Up Data'!$Q$5:$R$10,2,FALSE),\"\")","v":""},{"$f":"IFERROR(VLOOKUP('3 - Land Summary'!K52,'Look Up Data'!$Q$12:$R$18,2,FALSE),\"\")","v":""},{"$f":"IFERROR(VLOOKUP('3 - Land Summary'!L52,'Look Up Data'!$Q$20:$R$25,2,FALSE),\"\")","v":""},null,null,{"$f":"IFERROR(('3 - Land Summary'!G52-'3 - Land Summary'!I52),\"\")","v":""}]
[null,{"$f":"IF('4 - Species Breakdown'!B63=0,\"\",'4 - Species Breakdown'!B63)","v":""},{"$f":"IF('4 - Species Breakdown'!D63=0,\"\",'4 - Species Breakdown'!D63)","v":""},{"$f":"IF('4 - Species Breakdown'!L63=0,\"\",'4 - Species Breakdown'!L63)","v":""},{"$f":"IF('4 - Species Breakdown'!M63=0,\"\",'4 - Species Breakdown'!M63)","v":""},{"$f":"IF('4 - Species Breakdown'!N63=0,\"\",'4 - Species Breakdown'!N63)","v":""},{"$f":"IFERROR(('4 - Species Breakdown'!J63/'WCC Summary'!$D$14)*100,\"\")","v":""},{"$f":"IF('4 - Species Breakdown'!J63=0,\"\",'4 - Species Breakdown'!J63)","v":""},null,{"$f":"IFERROR(VLOOKUP('3 - Land Summary'!E53,'Look Up Data'!$Q$5:$R$10,2,FALSE),\"\")","v":""},{"$f":"IFERROR(VLOOKUP('3 - Land Summary'!K53,'Look Up Data'!$Q$12:$R$18,2,FALSE),\"\")","v":""},{"$f":"IFERROR(VLOOKUP('3 - Land Summary'!L53,'Look Up Data'!$Q$20:$R$25,2,FALSE),\"\")","v":""},null,null,{"$f":"IFERROR(('3 - Land Summary'!G53-'3 - Land Summary'!I53),\"\")","v":""}]
[null,{"$f":"IF('4 - Species Breakdown'!B64=0,\"\",'4 - Species Breakdown'!B64)","v":""},{"$f":"IF('4 - Species Breakdown'!D64=0,\"\",'4 - Species Breakdown'!D64)","v":""},{"$f":"IF('4 - Species Breakdown'!L64=0,\"\",'4 - Species Breakdown'!L64)","v":""},{"$f":"IF('4 - Species Breakdown'!M64=0,\"\",'4 - Species Breakdown'!M64)","v":""},{"$f":"IF('4 - Species Breakdown'!N64=0,\"\",'4 - Species Breakdown'!N64)","v":""},{"$f":"IFERROR(('4 - Species Breakdown'!J64/'WCC Summary'!$D$14)*100,\"\")","v":""},{"$f":"IF('4 - Species Breakdown'!J64=0,\"\",'4 - Species Breakdown'!J64)","v":""},null,{"$f":"IFERROR(VLOOKUP('3 - Land Summary'!E54,'Look Up Data'!$Q$5:$R$10,2,FALSE),\"\")","v":""},{"$f":"IFERROR(VLOOKUP('3 - Land Summary'!K54,'Look Up Data'!$Q$12:$R$18,2,FALSE),\"\")","v":""},{"$f":"IFERROR(VLOOKUP('3 - Land Summary'!L54,'Look Up Data'!$Q$20:$R$25,2,FALSE),\"\")","v":""},null,null,{"$f":"IFERROR(('3 - Land Summary'!G54-'3 - Land Summary'!I54),\"\")","v":""}]
[null,{"$f":"IF('4 - Species Breakdown'!B65=0,\"\",'4 - Species Breakdown'!B65)","v":""},{"$f":"IF('4 - Species Breakdown'!D65=0,\"\",'4 - Species Breakdown'!D65)","v":""},{"$f":"IF('4 - Species Breakdown'!L65=0,\"\",'4 - Species Breakdown'!L65)","v":""},{"$f":"IF('4 - Species Breakdown'!M65=0,\"\",'4 - Species Breakdown'!M65)","v":""},{"$f":"IF('4 - Species Breakdown'!N65=0,\"\",'4 - Species Breakdown'!N65)","v":""},{"$f":"IFERROR(('4 - Species Breakdown'!J65/'WCC Summary'!$D$14)*100,\"\")","v":""},{"$f":"IF('4 - Species Breakdown'!J65=0,\"\",'4 - Species Breakdown'!J65)","v":""},null,{"$f":"IFERROR(VLOOKUP('3 - Land Summary'!E55,'Look Up Data'!$Q$5:$R$10,2,FALSE),\"\")","v":""},{"$f":"IFERROR(VLOOKUP('3 - Land Summary'!K55,'Look Up Data'!$Q$12:$R$18,2,FALSE),\"\")","v":""},{"$f":"IFERROR(VLOOKUP('3 - Land Summary'!L55,'Look Up Data'!$Q$20:$R$25,2,FALSE),\"\")","v":""},null,null,{"$f":"IFERROR(('3 - Land Summary'!G55-'3 - Land Summary'!I55),\"\")","v":""}]
[null,{"$f":"IF('4 - Species Breakdown'!B66=0,\"\",'4 - Species Breakdown'!B66)","v":""},{"$f":"IF('4 - Species Breakdown'!D66=0,\"\",'4 - Species Breakdown'!D66)","v":""},{"$f":"IF('4 - Species Breakdown'!L66=0,\"\",'4 - Species Breakdown'!L66)","v":""},{"$f":"IF('4 - Species Breakdown'!M66=0,\"\",'4 - Species Breakdown'!M66)","v":""},{"$f":"IF('4 - Species Breakdown'!N66=0,\"\",'4 - Species Breakdown'!N66)","v":""},{"$f":"IFERROR(('4 - Species Breakdown'!J66/'WCC Summary'!$D$14)*100,\"\")","v":""},{"$f":"IF('4 - Species Breakdown'!J66=0,\"\",'4 - Species Breakdown'!J66)","v":""},null,{"$f":"IFERROR(VLOOKUP('3 - Land Summary'!E56,'Look Up Data'!$Q$5:$R$10,2,FALSE),\"\")","v":""},{"$f":"IFERROR(VLOOKUP('3 - Land Summary'!K56,'Look Up Data'!$Q$12:$R$18,2,FALSE),\"\")","v":""},{"$f":"IFERROR(VLOOKUP('3 - Land Summary'!L56,'Look Up Data'!$Q$20:$R$25,2,FALSE),\"\")","v":""},null,null,{"$f":"IFERROR(('3 - Land Summary'!G56-'3 - Land Summary'!I56),\"\")","v":""}]
[null,{"$f":"IF('4 - Species Breakdown'!B67=0,\"\",'4 - Species Breakdown'!B67)","v":""},{"$f":"IF('4 - Species Breakdown'!D67=0,\"\",'4 - Species Breakdown'!D67)","v":""},{"$f":"IF('4 - Species Breakdown'!L67=0,\"\",'4 - Species Breakdown'!L67)","v":""},{"$f":"IF('4 - Species Breakdown'!M67=0,\"\",'4 - Species Breakdown'!M67)","v":""},{"$f":"IF('4 - Species Breakdown'!N67=0,\"\",'4 - Species Breakdown'!N67)","v":""},{"$f":"IFERROR(('4 - Species Breakdown'!J67/'WCC Summary'!$D$14)*100,\"\")","v":""},{"$f":"IF('4 - Species Breakdown'!J67=0,\"\",'4 - Species Breakdown'!J67)","v":""},null,{"$f":"IFERROR(VLOOKUP('3 - Land Summary'!E57,'Look Up Data'!$Q$5:$R$10,2,FALSE),\"\")","v":""},{"$f":"IFERROR(VLOOKUP('3 - Land Summary'!K57,'Look Up Data'!$Q$12:$R$18,2,FALSE),\"\")","v":""},{"$f":"IFERROR(VLOOKUP('3 - Land Summary'!L57,'Look Up Data'!$Q$20:$R$25,2,FALSE),\"\")","v":""},null,null,{"$f":"IFERROR(('3 - Land Summary'!G57-'3 - Land Summary'!I57),\"\")","v":""}]
[null,{"$f":"IF('4 - Species Breakdown'!B68=0,\"\",'4 - Species Breakdown'!B68)","v":""},{"$f":"IF('4 - Species Breakdown'!D68=0,\"\",'4 - Species Breakdown'!D68)","v":""},{"$f":"IF('4 - Species Breakdown'!L68=0,\"\",'4 - Species Breakdown'!L68)","v":""},{"$f":"IF('4 - Species Breakdown'!M68=0,\"\",'4 - Species Breakdown'!M68)","v":""},{"$f":"IF('4 - Species Breakdown'!N68=0,\"\",'4 - Species Breakdown'!N68)","v":""},{"$f":"IFERROR(('4 - Species Breakdown'!J68/'WCC Summary'!$D$14)*100,\"\")","v":""},{"$f":"IF('4 - Species Breakdown'!J68=0,\"\",'4 - Species Breakdown'!J68)","v":""},null,{"$f":"IFERROR(VLOOKUP('3 - Land Summary'!E58,'Look Up Data'!$Q$5:$R$10,2,FALSE),\"\")","v":""},{"$f":"IFERROR(VLOOKUP('3 - Land Summary'!K58,'Look Up Data'!$Q$12:$R$18,2,FALSE),\"\")","v":""},{"$f":"IFERROR(VLOOKUP('3 - Land Summary'!L58,'Look Up Data'!$Q$20:$R$25,2,FALSE),\"\")","v":""},null,null,{"$f":"IFERROR(('3 - Land Summary'!G58-'3 - Land Summary'!I58),\"\")","v":""}]
[null,{"$f":"IF('4 - Species Breakdown'!B69=0,\"\",'4 - Species Breakdown'!B69)","v":""},{"$f":"IF('4 - Species Breakdown'!D69=0,\"\",'4 - Species Breakdown'!D69)","v":""},{"$f":"IF('4 - Species Breakdown'!L69=0,\"\",'4 - Species Breakdown'!L69)","v":""},{"$f":"IF('4 - Species Breakdown'!M69=0,\"\",'4 - Species Breakdown'!M69)","v":""},{"$f":"IF('4 - Species Breakdown'!N69=0,\"\",'4 - Species Breakdown'!N69)","v":""},{"$f":"IFERROR(('4 - Species Breakdown'!J69/'WCC Summary'!$D$14)*100,\"\")","v":""},{"$f":"IF('4 - Species Breakdown'!J69=0,\"\",'4 - Species Breakdown'!J69)","v":""},null,{"$f":"IFERROR(VLOOKUP('3 - Land Summary'!E59,'Look Up Data'!$Q$5:$R$10,2,FALSE),\"\")","v":""},{"$f":"IFERROR(VLOOKUP('3 - Land Summary'!K59,'Look Up Data'!$Q$12:$R$18,2,FALSE),\"\")","v":""},{"$f":"IFERROR(VLOOKUP('3 - Land Summary'!L59,'Look Up Data'!$Q$20:$R$25,2,FALSE),\"\")","v":""},null,null,{"$f":"IFERROR(('3 - Land Summary'!G59-'3 - Land Summary'!I59),\"\")","v":""}]
[null,{"$f":"IF('4 - Species Breakdown'!B70=0,\"\",'4 - Species Breakdown'!B70)","v":""},{"$f":"IF('4 - Species Breakdown'!D70=0,\"\",'4 - Species Breakdown'!D70)","v":""},{"$f":"IF('4 - Species Breakdown'!L70=0,\"\",'4 - Species Breakdown'!L70)","v":""},{"$f":"IF('4 - Species Breakdown'!M70=0,\"\",'4 - Species Breakdown'!M70)","v":""},{"$f":"IF('4 - Species Breakdown'!N70=0,\"\",'4 - Species Breakdown'!N70)","v":""},{"$f":"IFERROR(('4 - Species Breakdown'!J70/'WCC Summary'!$D$14)*100,\"\")","v":""},{"$f":"IF('4 - Species Breakdown'!J70=0,\"\",'4 - Species Breakdown'!J70)","v":""},null,{"$f":"IFERROR(VLOOKUP('3 - Land Summary'!E60,'Look Up Data'!$Q$5:$R$10,2,FALSE),\"\")","v":""},{"$f":"IFERROR(VLOOKUP('3 - Land Summary'!K60,'Look Up Data'!$Q$12:$R$18,2,FALSE),\"\")","v":""},{"$f":"IFERROR(VLOOKUP('3 - Land Summary'!L60,'Look Up Data'!$Q$20:$R$25,2,FALSE),\"\")","v":""},null,null,{"$f":"IFERROR(('3 - Land Summary'!G60-'3 - Land Summary'!I60),\"\")","v":""}]
[null,{"$f":"IF('4 - Species Breakdown'!B71=0,\"\",'4 - Species Breakdown'!B71)","v":""},{"$f":"IF('4 - Species Breakdown'!D71=0,\"\",'4 - Species Breakdown'!D71)","v":""},{"$f":"IF('4 - Species Breakdown'!L71=0,\"\",'4 - Species Breakdown'!L71)","v":""},{"$f":"IF('4 - Species Breakdown'!M71=0,\"\",'4 - Species Breakdown'!M71)","v":""},{"$f":"IF('4 - Species Breakdown'!N71=0,\"\",'4 - Species Breakdown'!N71)","v":""},{"$f":"IFERROR(('4 - Species Breakdown'!J71/'WCC Summary'!$D$14)*100,\"\")","v":""},{"$f":"IF('4 - Species Breakdown'!J71=0,\"\",'4 - Species Breakdown'!J71)","v":""},null,{"$f":"IFERROR(VLOOKUP('3 - Land Summary'!E61,'Look Up Data'!$Q$5:$R$10,2,FALSE),\"\")","v":""},{"$f":"IFERROR(VLOOKUP('3 - Land Summary'!K61,'Look Up Data'!$Q$12:$R$18,2,FALSE),\"\")","v":""},{"$f":"IFERROR(VLOOKUP('3 - Land Summary'!L61,'Look Up Data'!$Q$20:$R$25,2,FALSE),\"\")","v":""},null,null,{"$f":"IFERROR(('3 - Land Summary'!G61-'3 - Land Summary'!I61),\"\")","v":""}]
[null,{"$f":"IF('4 - Species Breakdown'!B72=0,\"\",'4 - Species Breakdown'!B72)","v":""},{"$f":"IF('4 - Species Breakdown'!D72=0,\"\",'4 - Species Breakdown'!D72)","v":""},{"$f":"IF('4 - Species Breakdown'!L72=0,\"\",'4 - Species Breakdown'!L72)","v":""},{"$f":"IF('4 - Species Breakdown'!M72=0,\"\",'4 - Species Breakdown'!M72)","v":""},{"$f":"IF('4 - Species Breakdown'!N72=0,\"\",'4 - Species Breakdown'!N72)","v":""},{"$f":"IFERROR(('4 - Species Breakdown'!J72/'WCC Summary'!$D$14)*100,\"\")","v":""},{"$f":"IF('4 - Species Breakdown'!J72=0,\"\",'4 - Species Breakdown'!J72)","v":""},null,{"$f":"IFERROR(VLOOKUP('3 - Land Summary'!E62,'Look Up Data'!$Q$5:$R$10,2,FALSE),\"\")","v":""},{"$f":"IFERROR(VLOOKUP('3 - Land Summary'!K62,'Look Up Data'!$Q$12:$R$18,2,FALSE),\"\")","v":""},{"$f":"IFERROR(VLOOKUP('3 - Land Summary'!L62,'Look Up Data'!$Q$20:$R$25,2,FALSE),\"\")","v":""},null,null,{"$f":"IFERROR(('3 - Land Summary'!G62-'3 - Land Summary'!I62),\"\")","v":""}]
[null,{"$f":"IF('4 - Species Breakdown'!B73=0,\"\",'4 - Species Breakdown'!B73)","v":""},{"$f":"IF('4 - Species Breakdown'!D73=0,\"\",'4 - Species Breakdown'!D73)","v":""},{"$f":"IF('4 - Species Breakdown'!L73=0,\"\",'4 - Species Breakdown'!L73)","v":""},{"$f":"IF('4 - Species Breakdown'!M73=0,\"\",'4 - Species Breakdown'!M73)","v":""},{"$f":"IF('4 - Species Breakdown'!N73=0,\"\",'4 - Species Breakdown'!N73)","v":""},{"$f":"IFERROR(('4 - Species Breakdown'!J73/'WCC Summary'!$D$14)*100,\"\")","v":""},{"$f":"IF('4 - Species Breakdown'!J73=0,\"\",'4 - Species Breakdown'!J73)","v":""},null,{"$f":"IFERROR(VLOOKUP('3 - Land Summary'!E63,'Look Up Data'!$Q$5:$R$10,2,FALSE),\"\")","v":""},{"$f":"IFERROR(VLOOKUP('3 - Land Summary'!K63,'Look Up Data'!$Q$12:$R$18,2,FALSE),\"\")","v":""},{"$f":"IFERROR(VLOOKUP('3 - Land Summary'!L63,'Look Up Data'!$Q$20:$R$25,2,FALSE),\"\")","v":""},null,null,{"$f":"IFERROR(('3 - Land Summary'!G63-'3 - Land Summary'!I63),\"\")","v":""}]
[null,{"$f":"IF('4 - Species Breakdown'!B74=0,\"\",'4 - Species Breakdown'!B74)","v":""},{"$f":"IF('4 - Species Breakdown'!D74=0,\"\",'4 - Species Breakdown'!D74)","v":""},{"$f":"IF('4 - Species Breakdown'!L74=0,\"\",'4 - Species Breakdown'!L74)","v":""},{"$f":"IF('4 - Species Breakdown'!M74=0,\"\",'4 - Species Breakdown'!M74)","v":""},{"$f":"IF('4 - Species Breakdown'!N74=0,\"\",'4 - Species Breakdown'!N74)","v":""},{"$f":"IFERROR(('4 - Species Breakdown'!J74/'WCC Summary'!$D$14)*100,\"\")","v":""},{"$f":"IF('4 - Species Breakdown'!J74=0,\"\",'4 - Species Breakdown'!J74)","v":""},null,{"$f":"IFERROR(VLOOKUP('3 - Land Summary'!E64,'Look Up Data'!$Q$5:$R$10,2,FALSE),\"\")","v":""},{"$f":"IFERROR(VLOOKUP('3 - Land Summary'!K64,'Look Up Data'!$Q$12:$R$18,2,FALSE),\"\")","v":""},{"$f":"IFERROR(VLOOKUP('3 - Land Summary'!L64,'Look Up Data'!$Q$20:$R$25,2,FALSE),\"\")","v":""},null,null,{"$f":"IFERROR(('3 - Land Summary'!G64-'3 - Land Summary'!I64),\"\")","v":""}]
[null,{"$f":"IF('4 - Species Breakdown'!B75=0,\"\",'4 - Species Breakdown'!B75)","v":""},{"$f":"IF('4 - Species Breakdown'!D75=0,\"\",'4 - Species Breakdown'!D75)","v":""},{"$f":"IF('4 - Species Breakdown'!L75=0,\"\",'4 - Species Breakdown'!L75)","v":""},{"$f":"IF('4 - Species Breakdown'!M75=0,\"\",'4 - Species Breakdown'!M75)","v":""},{"$f":"IF('4 - Species Breakdown'!N75=0,\"\",'4 - Species Breakdown'!N75)","v":""},{"$f":"IFERROR(('4 - Species Breakdown'!J75/'WCC Summary'!$D$14)*100,\"\")","v":""},{"$f":"IF('4 - Species Breakdown'!J75=0,\"\",'4 - Species Breakdown'!J75)","v":""},null,{"$f":"IFERROR(VLOOKUP('3 - Land Summary'!E65,'Look Up Data'!$Q$5:$R$10,2,FALSE),\"\")","v":""},{"$f":"IFERROR(VLOOKUP('3 - Land Summary'!K65,'Look Up Data'!$Q$12:$R$18,2,FALSE),\"\")","v":""},{"$f":"IFERROR(VLOOKUP('3 - Land Summary'!L65,'Look Up Data'!$Q$20:$R$25,2,FALSE),\"\")","v":""},null,null,{"$f":"IFERROR(('3 - Land Summary'!G65-'3 - Land Summary'!I65),\"\")","v":""}]
[null,{"$f":"IF('4 - Species Breakdown'!B76=0,\"\",'4 - Species Breakdown'!B76)","v":""},{"$f":"IF('4 - Species Breakdown'!D76=0,\"\",'4 - Species Breakdown'!D76)","v":""},{"$f":"IF('4 - Species Breakdown'!L76=0,\"\",'4 - Species Breakdown'!L76)","v":""},{"$f":"IF('4 - Species Breakdown'!M76=0,\"\",'4 - Species Breakdown'!M76)","v":""},{"$f":"IF('4 - Species Breakdown'!N76=0,\"\",'4 - Species Breakdown'!N76)","v":""},{"$f":"IFERROR(('4 - Species Breakdown'!J76/'WCC Summary'!$D$14)*100,\"\")","v":""},{"$f":"IF('4 - Species Breakdown'!J76=0,\"\",'4 - Species Breakdown'!J76)","v":""},null,{"$f":"IFERROR(VLOOKUP('3 - Land Summary'!E66,'Look Up Data'!$Q$5:$R$10,2,FALSE),\"\")","v":""},{"$f":"IFERROR(VLOOKUP('3 - Land Summary'!K66,'Look Up Data'!$Q$12:$R$18,2,FALSE),\"\")","v":""},{"$f":"IFERROR(VLOOKUP('3 - Land Summary'!L66,'Look Up Data'!$Q$20:$R$25,2,FALSE),\"\")","v":""},null,null,{"$f":"IFERROR(('3 - Land Summary'!G66-'3 - Land Summary'!I66),\"\")","v":""}]
[null,{"$f":"IF('4 - Species Breakdown'!B77=0,\"\",'4 - Species Breakdown'!B77)","v":""},{"$f":"IF('4 - Species Breakdown'!D77=0,\"\",'4 - Species Breakdown'!D77)","v":""},{"$f":"IF('4 - Species Breakdown'!L77=0,\"\",'4 - Species Breakdown'!L77)","v":""},{"$f":"IF('4 - Species Breakdown'!M77=0,\"\",'4 - Species Breakdown'!M77)","v":""},{"$f":"IF('4 - Species Breakdown'!N77=0,\"\",'4 - Species Breakdown'!N77)","v":""},{"$f":"IFERROR(('4 - Species Breakdown'!J77/'WCC Summary'!$D$14)*100,\"\")","v":""},{"$f":"IF('4 - Species Breakdown'!J77=0,\"\",'4 - Species Breakdown'!J77)","v":""},null,{"$f":"IFERROR(VLOOKUP('3 - Land Summary'!E67,'Look Up Data'!$Q$5:$R$10,2,FALSE),\"\")","v":""},{"$f":"IFERROR(VLOOKUP('3 - Land Summary'!K67,'Look Up Data'!$Q$12:$R$18,2,FALSE),\"\")","v":""},{"$f":"IFERROR(VLOOKUP('3 - Land Summary'!L67,'Look Up Data'!$Q$20:$R$25,2,FALSE),\"\")","v":""},null,null,{"$f":"IFERROR(('3 - Land Summary'!G67-'3 - Land Summary'!I67),\"\")","v":""}]
[null,{"$f":"IF('4 - Species Breakdown'!B78=0,\"\",'4 - Species Breakdown'!B78)","v":""},{"$f":"IF('4 - Species Breakdown'!D78=0,\"\",'4 - Species Breakdown'!D78)","v":""},{"$f":"IF('4 - Species Breakdown'!L78=0,\"\",'4 - Species Breakdown'!L78)","v":""},{"$f":"IF('4 - Species Breakdown'!M78=0,\"\",'4 - Species Breakdown'!M78)","v":""},{"$f":"IF('4 - Species Breakdown'!N78=0,\"\",'4 - Species Breakdown'!N78)","v":""},{"$f":"IFERROR(('4 - Species Breakdown'!J78/'WCC Summary'!$D$14)*100,\"\")","v":""},{"$f":"IF('4 - Species Breakdown'!J78=0,\"\",'4 - Species Breakdown'!J78)","v":""},null,{"$f":"IFERROR(VLOOKUP('3 - Land Summary'!E68,'Look Up Data'!$Q$5:$R$10,2,FALSE),\"\")","v":""},{"$f":"IFERROR(VLOOKUP('3 - Land Summary'!K68,'Look Up Data'!$Q$12:$R$18,2,FALSE),\"\")","v":""},{"$f":"IFERROR(VLOOKUP('3 - Land Summary'!L68,'Look Up Data'!$Q$20:$R$25,2,FALSE),\"\")","v":""},null,null,{"$f":"IFERROR(('3 - Land Summary'!G68-'3 - Land Summary'!I68),\"\")","v":""}]
[null,{"$f":"IF('4 - Species Breakdown'!B79=0,\"\",'4 - Species Breakdown'!B79)","v":""},{"$f":"IF('4 - Species Breakdown'!D79=0,\"\",'4 - Species Breakdown'!D79)","v":""},{"$f":"IF('4 - Species Breakdown'!L79=0,\"\",'4 - Species Breakdown'!L79)","v":""},{"$f":"IF('4 - Species Breakdown'!M79=0,\"\",'4 - Species Breakdown'!M79)","v":""},{"$f":"IF('4 - Species Breakdown'!N79=0,\"\",'4 - Species Breakdown'!N79)","v":""},{"$f":"IFERROR(('4 - Species Breakdown'!J79/'WCC Summary'!$D$14)*100,\"\")","v":""},{"$f":"IF('4 - Species Breakdown'!J79=0,\"\",'4 - Species Breakdown'!J79)","v":""},null,{"$f":"IFERROR(VLOOKUP('3 - Land Summary'!E69,'Look Up Data'!$Q$5:$R$10,2,FALSE),\"\")","v":""},{"$f":"IFERROR(VLOOKUP('3 - Land Summary'!K69,'Look Up Data'!$Q$12:$R$18,2,FALSE),\"\")","v":""},{"$f":"IFERROR(VLOOKUP('3 - Land Summary'!L69,'Look Up Data'!$Q$20:$R$25,2,FALSE),\"\")","v":""},null,null,{"$f":"IFERROR(('3 - Land Summary'!G69-'3 - Land Summary'!I69),\"\")","v":""}]
[null,{"$f":"IF('4 - Species Breakdown'!B80=0,\"\",'4 - Species Breakdown'!B80)","v":""},{"$f":"IF('4 - Species Breakdown'!D80=0,\"\",'4 - Species Breakdown'!D80)","v":""},{"$f":"IF('4 - Species Breakdown'!L80=0,\"\",'4 - Species Breakdown'!L80)","v":""},{"$f":"IF('4 - Species Breakdown'!M80=0,\"\",'4 - Species Breakdown'!M80)","v":""},{"$f":"IF('4 - Species Breakdown'!N80=0,\"\",'4 - Species Breakdown'!N80)","v":""},{"$f":"IFERROR(('4 - Species Breakdown'!J80/'WCC Summary'!$D$14)*100,\"\")","v":""},{"$f":"IF('4 - Species Breakdown'!J80=0,\"\",'4 - Species Breakdown'!J80)","v":""},null,{"$f":"IFERROR(VLOOKUP('3 - Land Summary'!E70,'Look Up Data'!$Q$5:$R$10,2,FALSE),\"\")","v":""},{"$f":"IFERROR(VLOOKUP('3 - Land Summary'!K70,'Look Up Data'!$Q$12:$R$18,2,FALSE),\"\")","v":""},{"$f":"IFERROR(VLOOKUP('3 - Land Summary'!L70,'Look Up Data'!$Q$20:$R$25,2,FALSE),\"\")","v":""},null,null,{"$f":"IFERROR(('3 - Land Summary'!G70-'3 - Land Summary'!I70),\"\")","v":""}]
[null,{"$f":"IF('4 - Species Breakdown'!B81=0,\"\",'4 - Species Breakdown'!B81)","v":""},{"$f":"IF('4 - Species Breakdown'!D81=0,\"\",'4 - Species Breakdown'!D81)","v":""},{"$f":"IF('4 - Species Breakdown'!L81=0,\"\",'4 - Species Breakdown'!L81)","v":""},{"$f":"IF('4 - Species Breakdown'!M81=0,\"\",'4 - Species Breakdown'!M81)","v":""},{"$f":"IF('4 - Species Breakdown'!N81=0,\"\",'4 - Species Breakdown'!N81)","v":""},{"$f":"IFERROR(('4 - Species Breakdown'!J81/'WCC Summary'!$D$14)*100,\"\")","v":""},{"$f":"IF('4 - Species Breakdown'!J81=0,\"\",'4 - Species Breakdown'!J81)","v":""},null,{"$f":"IFERROR(VLOOKUP('3 - Land Summary'!E71,'Look Up Data'!$Q$5:$R$10,2,FALSE),\"\")","v":""},{"$f":"IFERROR(VLOOKUP('3 - Land Summary'!K71,'Look Up Data'!$Q$12:$R$18,2,FALSE),\"\")","v":""},{"$f":"IFERROR(VLOOKUP('3 - Land Summary'!L71,'Look Up Data'!$Q$20:$R$25,2,FALSE),\"\")","v":""},null,null,{"$f":"IFERROR(('3 - Land Summary'!G71-'3 - Land Summary'!I71),\"\")","v":""}]
[null,{"$f":"IF('4 - Species Breakdown'!B82=0,\"\",'4 - Species Breakdown'!B82)","v":""},{"$f":"IF('4 - Species Breakdown'!D82=0,\"\",'4 - Species Breakdown'!D82)","v":""},{"$f":"IF('4 - Species Breakdown'!L82=0,\"\",'4 - Species Breakdown'!L82)","v":""},{"$f":"IF('4 - Species Breakdown'!M82=0,\"\",'4 - Species Breakdown'!M82)","v":""},{"$f":"IF('4 - Species Breakdown'!N82=0,\"\",'4 - Species Breakdown'!N82)","v":""},{"$f":"IFERROR(('4 - Species Breakdown'!J82/'WCC Summary'!$D$14)*100,\"\")","v":""},{"$f":"IF('4 - Species Breakdown'!J82=0,\"\",'4 - Species Breakdown'!J82)","v":""},null,{"$f":"IFERROR(VLOOKUP('3 - Land Summary'!E72,'Look Up Data'!$Q$5:$R$10,2,FALSE),\"\")","v":""},{"$f":"IFERROR(VLOOKUP('3 - Land Summary'!K72,'Look Up Data'!$Q$12:$R$18,2,FALSE),\"\")","v":""},{"$f":"IFERROR(VLOOKUP('3 - Land Summary'!L72,'Look Up Data'!$Q$20:$R$25,2,FALSE),\"\")","v":""},null,null,{"$f":"IFERROR(('3 - Land Summary'!G72-'3 - Land Summary'!I72),\"\")","v":""}]
[null,{"$f":"IF('4 - Species Breakdown'!B83=0,\"\",'4 - Species Breakdown'!B83)","v":""},{"$f":"IF('4 - Species Breakdown'!D83=0,\"\",'4 - Species Breakdown'!D83)","v":""},{"$f":"IF('4 - Species Breakdown'!L83=0,\"\",'4 - Species Breakdown'!L83)","v":""},{"$f":"IF('4 - Species Breakdown'!M83=0,\"\",'4 - Species Breakdown'!M83)","v":""},{"$f":"IF('4 - Species Breakdown'!N83=0,\"\",'4 - Species Breakdown'!N83)","v":""},{"$f":"IFERROR(('4 - Species Breakdown'!J83/'WCC Summary'!$D$14)*100,\"\")","v":""},{"$f":"IF('4 - Species Breakdown'!J83=0,\"\",'4 - Species Breakdown'!J83)","v":""},null,{"$f":"IFERROR(VLOOKUP('3 - Land Summary'!E73,'Look Up Data'!$Q$5:$R$10,2,FALSE),\"\")","v":""},{"$f":"IFERROR(VLOOKUP('3 - Land Summary'!K73,'Look Up Data'!$Q$12:$R$18,2,FALSE),\"\")","v":""},{"$f":"IFERROR(VLOOKUP('3 - Land Summary'!L73,'Look Up Data'!$Q$20:$R$25,2,FALSE),\"\")","v":""},null,null,{"$f":"IFERROR(('3 - Land Summary'!G73-'3 - Land Summary'!I73),\"\")","v":""}]
[null,{"$f":"IF('4 - Species Breakdown'!B84=0,\"\",'4 - Species Breakdown'!B84)","v":""},{"$f":"IF('4 - Species Breakdown'!D84=0,\"\",'4 - Species Breakdown'!D84)","v":""},{"$f":"IF('4 - Species Breakdown'!L84=0,\"\",'4 - Species Breakdown'!L84)","v":""},{"$f":"IF('4 - Species Breakdown'!M84=0,\"\",'4 - Species Breakdown'!M84)","v":""},{"$f":"IF('4 - Species Breakdown'!N84=0,\"\",'4 - Species Breakdown'!N84)","v":""},{"$f":"IFERROR(('4 - Species Breakdown'!J84/'WCC Summary'!$D$14)*100,\"\")","v":""},{"$f":"IF('4 - Species Breakdown'!J84=0,\"\",'4 - Species Breakdown'!J84)","v":""},null,{"$f":"IFERROR(VLOOKUP('3 - Land Summary'!E74,'Look Up Data'!$Q$5:$R$10,2,FALSE),\"\")","v":""},{"$f":"IFERROR(VLOOKUP('3 - Land Summary'!K74,'Look Up Data'!$Q$12:$R$18,2,FALSE),\"\")","v":""},{"$f":"IFERROR(VLOOKUP('3 - Land Summary'!L74,'Look Up Data'!$Q$20:$R$25,2,FALSE),\"\")","v":""},null,null,{"$f":"IFERROR(('3 - Land Summary'!G74-'3 - Land Summary'!I74),\"\")","v":""}]
[null,{"$f":"IF('4 - Species Breakdown'!B85=0,\"\",'4 - Species Breakdown'!B85)","v":""},{"$f":"IF('4 - Species Breakdown'!D85=0,\"\",'4 - Species Breakdown'!D85)","v":""},{"$f":"IF('4 - Species Breakdown'!L85=0,\"\",'4 - Species Breakdown'!L85)","v":""},{"$f":"IF('4 - Species Breakdown'!M85=0,\"\",'4 - Species Breakdown'!M85)","v":""},{"$f":"IF('4 - Species Breakdown'!N85=0,\"\",'4 - Species Breakdown'!N85)","v":""},{"$f":"IFERROR(('4 - Species Breakdown'!J85/'WCC Summary'!$D$14)*100,\"\")","v":""},{"$f":"IF('4 - Species Breakdown'!J85=0,\"\",'4 - Species Breakdown'!J85)","v":""},null,{"$f":"IFERROR(VLOOKUP('3 - Land Summary'!E75,'Look Up Data'!$Q$5:$R$10,2,FALSE),\"\")","v":""},{"$f":"IFERROR(VLOOKUP('3 - Land Summary'!K75,'Look Up Data'!$Q$12:$R$18,2,FALSE),\"\")","v":""},{"$f":"IFERROR(VLOOKUP('3 - Land Summary'!L75,'Look Up Data'!$Q$20:$R$25,2,FALSE),\"\")","v":""},null,null,{"$f":"IFERROR(('3 - Land Summary'!G75-'3 - Land Summary'!I75),\"\")","v":""}]
[null,{"$f":"IF('4 - Species Breakdown'!B86=0,\"\",'4 - Species Breakdown'!B86)","v":""},{"$f":"IF('4 - Species Breakdown'!D86=0,\"\",'4 - Species Breakdown'!D86)","v":""},{"$f":"IF('4 - Species Breakdown'!L86=0,\"\",'4 - Species Breakdown'!L86)","v":""},{"$f":"IF('4 - Species Breakdown'!M86=0,\"\",'4 - Species Breakdown'!M86)","v":""},{"$f":"IF('4 - Species Breakdown'!N86=0,\"\",'4 - Species Breakdown'!N86)","v":""},{"$f":"IFERROR(('4 - Species Breakdown'!J86/'WCC Summary'!$D$14)*100,\"\")","v":""},{"$f":"IF('4 - Species Breakdown'!J86=0,\"\",'4 - Species Breakdown'!J86)","v":""},null,{"$f":"IFERROR(VLOOKUP('3 - Land Summary'!E76,'Look Up Data'!$Q$5:$R$10,2,FALSE),\"\")","v":""},{"$f":"IFERROR(VLOOKUP('3 - Land Summary'!K76,'Look Up Data'!$Q$12:$R$18,2,FALSE),\"\")","v":""},{"$f":"IFERROR(VLOOKUP('3 - Land Summary'!L76,'Look Up Data'!$Q$20:$R$25,2,FALSE),\"\")","v":""},null,null,{"$f":"IFERROR(('3 - Land Summary'!G76-'3 - Land Summary'!I76),\"\")","v":""}]
[null,{"$f":"IF('4 - Species Breakdown'!B87=0,\"\",'4 - Species Breakdown'!B87)","v":""},{"$f":"IF('4 - Species Breakdown'!D87=0,\"\",'4 - Species Breakdown'!D87)","v":""},{"$f":"IF('4 - Species Breakdown'!L87=0,\"\",'4 - Species Breakdown'!L87)","v":""},{"$f":"IF('4 - Species Breakdown'!M87=0,\"\",'4 - Species Breakdown'!M87)","v":""},{"$f":"IF('4 - Species Breakdown'!N87=0,\"\",'4 - Species Breakdown'!N87)","v":""},{"$f":"IFERROR(('4 - Species Breakdown'!J87/'WCC Summary'!$D$14)*100,\"\")","v":""},{"$f":"IF('4 - Species Breakdown'!J87=0,\"\",'4 - Species Breakdown'!J87)","v":""},null,{"$f":"IFERROR(VLOOKUP('3 - Land Summary'!E77,'Look Up Data'!$Q$5:$R$10,2,FALSE),\"\")","v":""},{"$f":"IFERROR(VLOOKUP('3 - Land Summary'!K77,'Look Up Data'!$Q$12:$R$18,2,FALSE),\"\")","v":""},{"$f":"IFERROR(VLOOKUP('3 - Land Summary'!L77,'Look Up Data'!$Q$20:$R$25,2,FALSE),\"\")","v":""},null,null,{"$f":"IFERROR(('3 - Land Summary'!G77-'3 - Land Summary'!I77),\"\")","v":""}]
[null,{"$f":"IF('4 - Species Breakdown'!B88=0,\"\",'4 - Species Breakdown'!B88)","v":""},{"$f":"IF('4 - Species Breakdown'!D88=0,\"\",'4 - Species Breakdown'!D88)","v":""},{"$f":"IF('4 - Species Breakdown'!L88=0,\"\",'4 - Species Breakdown'!L88)","v":""},{"$f":"IF('4 - Species Breakdown'!M88=0,\"\",'4 - Species Breakdown'!M88)","v":""},{"$f":"IF('4 - Species Breakdown'!N88=0,\"\",'4 - Species Breakdown'!N88)","v":""},{"$f":"IFERROR(('4 - Species Breakdown'!J88/'WCC Summary'!$D$14)*100,\"\")","v":""},{"$f":"IF('4 - Species Breakdown'!J88=0,\"\",'4 - Species Breakdown'!J88)","v":""},null,{"$f":"IFERROR(VLOOKUP('3 - Land Summary'!E78,'Look Up Data'!$Q$5:$R$10,2,FALSE),\"\")","v":""},{"$f":"IFERROR(VLOOKUP('3 - Land Summary'!K78,'Look Up Data'!$Q$12:$R$18,2,FALSE),\"\")","v":""},{"$f":"IFERROR(VLOOKUP('3 - Land Summary'!L78,'Look Up Data'!$Q$20:$R$25,2,FALSE),\"\")","v":""},null,null,{"$f":"IFERROR(('3 - Land Summary'!G78-'3 - Land Summary'!I78),\"\")","v":""}]
[null,{"$f":"IF('4 - Species Breakdown'!B89=0,\"\",'4 - Species Breakdown'!B89)","v":""},{"$f":"IF('4 - Species Breakdown'!D89=0,\"\",'4 - Species Breakdown'!D89)","v":""},{"$f":"IF('4 - Species Breakdown'!L89=0,\"\",'4 - Species Breakdown'!L89)","v":""},{"$f":"IF('4 - Species Breakdown'!M89=0,\"\",'4 - Species Breakdown'!M89)","v":""},{"$f":"IF('4 - Species Breakdown'!N89=0,\"\",'4 - Species Breakdown'!N89)","v":""},{"$f":"IFERROR(('4 - Species Breakdown'!J89/'WCC Summary'!$D$14)*100,\"\")","v":""},{"$f":"IF('4 - Species Breakdown'!J89=0,\"\",'4 - Species Breakdown'!J89)","v":""},null,{"$f":"IFERROR(VLOOKUP('3 - Land Summary'!E79,'Look Up Data'!$Q$5:$R$10,2,FALSE),\"\")","v":""},{"$f":"IFERROR(VLOOKUP('3 - Land Summary'!K79,'Look Up Data'!$Q$12:$R$18,2,FALSE),\"\")","v":""},{"$f":"IFERROR(VLOOKUP('3 - Land Summary'!L79,'Look Up Data'!$Q$20:$R$25,2,FALSE),\"\")","v":""},null,null,{"$f":"IFERROR(('3 - Land Summary'!G79-'3 - Land Summary'!I79),\"\")","v":""}]
[null,{"$f":"IF('4 - Species Breakdown'!B90=0,\"\",'4 - Species Breakdown'!B90)","v":""},{"$f":"IF('4 - Species Breakdown'!D90=0,\"\",'4 - Species Breakdown'!D90)","v":""},{"$f":"IF('4 - Species Breakdown'!L90=0,\"\",'4 - Species Breakdown'!L90)","v":""},{"$f":"IF('4 - Species Breakdown'!M90=0,\"\",'4 - Species Breakdown'!M90)","v":""},{"$f":"IF('4 - Species Breakdown'!N90=0,\"\",'4 - Species Breakdown'!N90)","v":""},{"$f":"IFERROR(('4 - Species Breakdown'!J90/'WCC Summary'!$D$14)*100,\"\")","v":""},{"$f":"IF('4 - Species Breakdown'!J90=0,\"\",'4 - Species Breakdown'!J90)","v":""},null,{"$f":"IFERROR(VLOOKUP('3 - Land Summary'!E80,'Look Up Data'!$Q$5:$R$10,2,FALSE),\"\")","v":""},{"$f":"IFERROR(VLOOKUP('3 - Land Summary'!K80,'Look Up Data'!$Q$12:$R$18,2,FALSE),\"\")","v":""},{"$f":"IFERROR(VLOOKUP('3 - Land Summary'!L80,'Look Up Data'!$Q$20:$R$25,2,FALSE),\"\")","v":""},null,null,{"$f":"IFERROR(('3 - Land Summary'!G80-'3 - Land Summary'!I80),\"\")","v":""}]
[null,{"$f":"IF('4 - Species Breakdown'!B91=0,\"\",'4 - Species Breakdown'!B91)","v":""},{"$f":"IF('4 - Species Breakdown'!D91=0,\"\",'4 - Species Breakdown'!D91)","v":""},{"$f":"IF('4 - Species Breakdown'!L91=0,\"\",'4 - Species Breakdown'!L91)","v":""},{"$f":"IF('4 - Species Breakdown'!M91=0,\"\",'4 - Species Breakdown'!M91)","v":""},{"$f":"IF('4 - Species Breakdown'!N91=0,\"\",'4 - Species Breakdown'!N91)","v":""},{"$f":"IFERROR(('4 - Species Breakdown'!J91/'WCC Summary'!$D$14)*100,\"\")","v":""},{"$f":"IF('4 - Species Breakdown'!J91=0,\"\",'4 - Species Breakdown'!J91)","v":""},null,{"$f":"IFERROR(VLOOKUP('3 - Land Summary'!E81,'Look Up Data'!$Q$5:$R$10,2,FALSE),\"\")","v":""},{"$f":"IFERROR(VLOOKUP('3 - Land Summary'!K81,'Look Up Data'!$Q$12:$R$18,2,FALSE),\"\")","v":""},{"$f":"IFERROR(VLOOKUP('3 - Land Summary'!L81,'Look Up Data'!$Q$20:$R$25,2,FALSE),\"\")","v":""},null,null,{"$f":"IFERROR(('3 - Land Summary'!G81-'3 - Land Summary'!I81),\"\")","v":""}]
[null,{"$f":"IF('4 - Species Breakdown'!B92=0,\"\",'4 - Species Breakdown'!B92)","v":""},{"$f":"IF('4 - Species Breakdown'!D92=0,\"\",'4 - Species Breakdown'!D92)","v":""},{"$f":"IF('4 - Species Breakdown'!L92=0,\"\",'4 - Species Breakdown'!L92)","v":""},{"$f":"IF('4 - Species Breakdown'!M92=0,\"\",'4 - Species Breakdown'!M92)","v":""},{"$f":"IF('4 - Species Breakdown'!N92=0,\"\",'4 - Species Breakdown'!N92)","v":""},{"$f":"IFERROR(('4 - Species Breakdown'!J92/'WCC Summary'!$D$14)*100,\"\")","v":""},{"$f":"IF('4 - Species Breakdown'!J92=0,\"\",'4 - Species Breakdown'!J92)","v":""},null,{"$f":"IFERROR(VLOOKUP('3 - Land Summary'!E82,'Look Up Data'!$Q$5:$R$10,2,FALSE),\"\")","v":""},{"$f":"IFERROR(VLOOKUP('3 - Land Summary'!K82,'Look Up Data'!$Q$12:$R$18,2,FALSE),\"\")","v":""},{"$f":"IFERROR(VLOOKUP('3 - Land Summary'!L82,'Look Up Data'!$Q$20:$R$25,2,FALSE),\"\")","v":""},null,null,{"$f":"IFERROR(('3 - Land Summary'!G82-'3 - Land Summary'!I82),\"\")","v":""}]
[null,{"$f":"IF('4 - Species Breakdown'!B93=0,\"\",'4 - Species Breakdown'!B93)","v":""},{"$f":"IF('4 - Species Breakdown'!D93=0,\"\",'4 - Species Breakdown'!D93)","v":""},{"$f":"IF('4 - Species Breakdown'!L93=0,\"\",'4 - Species Breakdown'!L93)","v":""},{"$f":"IF('4 - Species Breakdown'!M93=0,\"\",'4 - Species Breakdown'!M93)","v":""},{"$f":"IF('4 - Species Breakdown'!N93=0,\"\",'4 - Species Breakdown'!N93)","v":""},{"$f":"IFERROR(('4 - Species Breakdown'!J93/'WCC Summary'!$D$14)*100,\"\")","v":""},{"$f":"IF('4 - Species Breakdown'!J93=0,\"\",'4 - Species Breakdown'!J93)","v":""},null,{"$f":"IFERROR(VLOOKUP('3 - Land Summary'!E83,'Look Up Data'!$Q$5:$R$10,2,FALSE),\"\")","v":""},{"$f":"IFERROR(VLOOKUP('3 - Land Summary'!K83,'Look Up Data'!$Q$12:$R$18,2,FALSE),\"\")","v":""},{"$f":"IFERROR(VLOOKUP('3 - Land Summary'!L83,'Look Up Data'!$Q$20:$R$25,2,FALSE),\"\")","v":""},null,null,{"$f":"IFERROR(('3 - Land Summary'!G83-'3 - Land Summary'!I83),\"\")","v":""}]
[null,{"$f":"IF('4 - Species Breakdown'!B94=0,\"\",'4 - Species Breakdown'!B94)","v":""},{"$f":"IF('4 - Species Breakdown'!D94=0,\"\",'4 - Species Breakdown'!D94)","v":""},{"$f":"IF('4 - Species Breakdown'!L94=0,\"\",'4 - Species Breakdown'!L94)","v":""},{"$f":"IF('4 - Species Breakdown'!M94=0,\"\",'4 - Species Breakdown'!M94)","v":""},{"$f":"IF('4 - Species Breakdown'!N94=0,\"\",'4 - Species Breakdown'!N94)","v":""},{"$f":"IFERROR(('4 - Species Breakdown'!J94/'WCC Summary'!$D$14)*100,\"\")","v":""},{"$f":"IF('4 - Species Breakdown'!J94=0,\"\",'4 - Species Breakdown'!J94)","v":""},null,{"$f":"IFERROR(VLOOKUP('3 - Land Summary'!E84,'Look Up Data'!$Q$5:$R$10,2,FALSE),\"\")","v":""},{"$f":"IFERROR(VLOOKUP('3 - Land Summary'!K84,'Look Up Data'!$Q$12:$R$18,2,FALSE),\"\")","v":""},{"$f":"IFERROR(VLOOKUP('3 - Land Summary'!L84,'Look Up Data'!$Q$20:$R$25,2,FALSE),\"\")","v":""},null,null,{"$f":"IFERROR(('3 - Land Summary'!G84-'3 - Land Summary'!I84),\"\")","v":""}]
[null,{"$f":"IF('4 - Species Breakdown'!B95=0,\"\",'4 - Species Breakdown'!B95)","v":""},{"$f":"IF('4 - Species Breakdown'!D95=0,\"\",'4 - Species Breakdown'!D95)","v":""},{"$f":"IF('4 - Species Breakdown'!L95=0,\"\",'4 - Species Breakdown'!L95)","v":""},{"$f":"IF('4 - Species Breakdown'!M95=0,\"\",'4 - Species Breakdown'!M95)","v":""},{"$f":"IF('4 - Species Breakdown'!N95=0,\"\",'4 - Species Breakdown'!N95)","v":""},{"$f":"IFERROR(('4 - Species Breakdown'!J95/'WCC Summary'!$D$14)*100,\"\")","v":""},{"$f":"IF('4 - Species Breakdown'!J95=0,\"\",'4 - Species Breakdown'!J95)","v":""},null,{"$f":"IFERROR(VLOOKUP('3 - Land Summary'!E85,'Look Up Data'!$Q$5:$R$10,2,FALSE),\"\")","v":""},{"$f":"IFERROR(VLOOKUP('3 - Land Summary'!K85,'Look Up Data'!$Q$12:$R$18,2,FALSE),\"\")","v":""},{"$f":"IFERROR(VLOOKUP('3 - Land Summary'!L85,'Look Up Data'!$Q$20:$R$25,2,FALSE),\"\")","v":""},null,null,{"$f":"IFERROR(('3 - Land Summary'!G85-'3 - Land Summary'!I85),\"\")","v":""}]
[null,{"$f":"IF('4 - Species Breakdown'!B96=0,\"\",'4 - Species Breakdown'!B96)","v":""},{"$f":"IF('4 - Species Breakdown'!D96=0,\"\",'4 - Species Breakdown'!D96)","v":""},{"$f":"IF('4 - Species Breakdown'!L96=0,\"\",'4 - Species Breakdown'!L96)","v":""},{"$f":"IF('4 - Species Breakdown'!M96=0,\"\",'4 - Species Breakdown'!M96)","v":""},{"$f":"IF('4 - Species Breakdown'!N96=0,\"\",'4 - Species Breakdown'!N96)","v":""},{"$f":"IFERROR(('4 - Species Breakdown'!J96/'WCC Summary'!$D$14)*100,\"\")","v":""},{"$f":"IF('4 - Species Breakdown'!J96=0,\"\",'4 - Species Breakdown'!J96)","v":""},null,{"$f":"IFERROR(VLOOKUP('3 - Land Summary'!E86,'Look Up Data'!$Q$5:$R$10,2,FALSE),\"\")","v":""},{"$f":"IFERROR(VLOOKUP('3 - Land Summary'!K86,'Look Up Data'!$Q$12:$R$18,2,FALSE),\"\")","v":""},{"$f":"IFERROR(VLOOKUP('3 - Land Summary'!L86,'Look Up Data'!$Q$20:$R$25,2,FALSE),\"\")","v":""},null,null,{"$f":"IFERROR(('3 - Land Summary'!G86-'3 - Land Summary'!I86),\"\")","v":""}]
[null,{"$f":"IF('4 - Species Breakdown'!B97=0,\"\",'4 - Species Breakdown'!B97)","v":""},{"$f":"IF('4 - Species Breakdown'!D97=0,\"\",'4 - Species Breakdown'!D97)","v":""},{"$f":"IF('4 - Species Breakdown'!L97=0,\"\",'4 - Species Breakdown'!L97)","v":""},{"$f":"IF('4 - Species Breakdown'!M97=0,\"\",'4 - Species Breakdown'!M97)","v":""},{"$f":"IF('4 - Species Breakdown'!N97=0,\"\",'4 - Species Breakdown'!N97)","v":""},{"$f":"IFERROR(('4 - Species Breakdown'!J97/'WCC Summary'!$D$14)*100,\"\")","v":""},{"$f":"IF('4 - Species Breakdown'!J97=0,\"\",'4 - Species Breakdown'!J97)","v":""},null,{"$f":"IFERROR(VLOOKUP('3 - Land Summary'!E87,'Look Up Data'!$Q$5:$R$10,2,FALSE),\"\")","v":""},{"$f":"IFERROR(VLOOKUP('3 - Land Summary'!K87,'Look Up Data'!$Q$12:$R$18,2,FALSE),\"\")","v":""},{"$f":"IFERROR(VLOOKUP('3 - Land Summary'!L87,'Look Up Data'!$Q$20:$R$25,2,FALSE),\"\")","v":""},null,null,{"$f":"IFERROR(('3 - Land Summary'!G87-'3 - Land Summary'!I87),\"\")","v":""}]
[null,{"$f":"IF('4 - Species Breakdown'!B98=0,\"\",'4 - Species Breakdown'!B98)","v":""},{"$f":"IF('4 - Species Breakdown'!D98=0,\"\",'4 - Species Breakdown'!D98)","v":""},{"$f":"IF('4 - Species Breakdown'!L98=0,\"\",'4 - Species Breakdown'!L98)","v":""},{"$f":"IF('4 - Species Breakdown'!M98=0,\"\",'4 - Species Breakdown'!M98)","v":""},{"$f":"IF('4 - Species Breakdown'!N98=0,\"\",'4 - Species Breakdown'!N98)","v":""},{"$f":"IFERROR(('4 - Species Breakdown'!J98/'WCC Summary'!$D$14)*100,\"\")","v":""},{"$f":"IF('4 - Species Breakdown'!J98=0,\"\",'4 - Species Breakdown'!J98)","v":""},null,{"$f":"IFERROR(VLOOKUP('3 - Land Summary'!E88,'Look Up Data'!$Q$5:$R$10,2,FALSE),\"\")","v":""},{"$f":"IFERROR(VLOOKUP('3 - Land Summary'!K88,'Look Up Data'!$Q$12:$R$18,2,FALSE),\"\")","v":""},{"$f":"IFERROR(VLOOKUP('3 - Land Summary'!L88,'Look Up Data'!$Q$20:$R$25,2,FALSE),\"\")","v":""},null,null,{"$f":"IFERROR(('3 - Land Summary'!G88-'3 - Land Summary'!I88),\"\")","v":""}]
[null,{"$f":"IF('4 - Species Breakdown'!B99=0,\"\",'4 - Species Breakdown'!B99)","v":""},{"$f":"IF('4 - Species Breakdown'!D99=0,\"\",'4 - Species Breakdown'!D99)","v":""},{"$f":"IF('4 - Species Breakdown'!L99=0,\"\",'4 - Species Breakdown'!L99)","v":""},{"$f":"IF('4 - Species Breakdown'!M99=0,\"\",'4 - Species Breakdown'!M99)","v":""},{"$f":"IF('4 - Species Breakdown'!N99=0,\"\",'4 - Species Breakdown'!N99)","v":""},{"$f":"IFERROR(('4 - Species Breakdown'!J99/'WCC Summary'!$D$14)*100,\"\")","v":""},{"$f":"IF('4 - Species Breakdown'!J99=0,\"\",'4 - Species Breakdown'!J99)","v":""},null,{"$f":"IFERROR(VLOOKUP('3 - Land Summary'!E89,'Look Up Data'!$Q$5:$R$10,2,FALSE),\"\")","v":""},{"$f":"IFERROR(VLOOKUP('3 - Land Summary'!K89,'Look Up Data'!$Q$12:$R$18,2,FALSE),\"\")","v":""},{"$f":"IFERROR(VLOOKUP('3 - Land Summary'!L89,'Look Up Data'!$Q$20:$R$25,2,FALSE),\"\")","v":""},null,null,{"$f":"IFERROR(('3 - Land Summary'!G89-'3 - Land Summary'!I89),\"\")","v":""}]
[null,{"$f":"IF('4 - Species Breakdown'!B100=0,\"\",'4 - Species Breakdown'!B100)","v":""},{"$f":"IF('4 - Species Breakdown'!D100=0,\"\",'4 - Species Breakdown'!D100)","v":""},{"$f":"IF('4 - Species Breakdown'!L100=0,\"\",'4 - Species Breakdown'!L100)","v":""},{"$f":"IF('4 - Species Breakdown'!M100=0,\"\",'4 - Species Breakdown'!M100)","v":""},{"$f":"IF('4 - Species Breakdown'!N100=0,\"\",'4 - Species Breakdown'!N100)","v":""},{"$f":"IFERROR(('4 - Species Breakdown'!J100/'WCC Summary'!$D$14)*100,\"\")","v":""},{"$f":"IF('4 - Species Breakdown'!J100=0,\"\",'4 - Species Breakdown'!J100)","v":""},null,{"$f":"IFERROR(VLOOKUP('3 - Land Summary'!E90,'Look Up Data'!$Q$5:$R$10,2,FALSE),\"\")","v":""},{"$f":"IFERROR(VLOOKUP('3 - Land Summary'!K90,'Look Up Data'!$Q$12:$R$18,2,FALSE),\"\")","v":""},{"$f":"IFERROR(VLOOKUP('3 - Land Summary'!L90,'Look Up Data'!$Q$20:$R$25,2,FALSE),\"\")","v":""},null,null,{"$f":"IFERROR(('3 - Land Summary'!G90-'3 - Land Summary'!I90),\"\")","v":""}]
[null,{"$f":"IF('4 - Species Breakdown'!B101=0,\"\",'4 - Species Breakdown'!B101)","v":""},{"$f":"IF('4 - Species Breakdown'!D101=0,\"\",'4 - Species Breakdown'!D101)","v":""},{"$f":"IF('4 - Species Breakdown'!L101=0,\"\",'4 - Species Breakdown'!L101)","v":""},{"$f":"IF('4 - Species Breakdown'!M101=0,\"\",'4 - Species Breakdown'!M101)","v":""},{"$f":"IF('4 - Species Breakdown'!N101=0,\"\",'4 - Species Breakdown'!N101)","v":""},{"$f":"IFERROR(('4 - Species Breakdown'!J101/'WCC Summary'!$D$14)*100,\"\")","v":""},{"$f":"IF('4 - Species Breakdown'!J101=0,\"\",'4 - Species Breakdown'!J101)","v":""},null,{"$f":"IFERROR(VLOOKUP('3 - Land Summary'!E91,'Look Up Data'!$Q$5:$R$10,2,FALSE),\"\")","v":""},{"$f":"IFERROR(VLOOKUP('3 - Land Summary'!K91,'Look Up Data'!$Q$12:$R$18,2,FALSE),\"\")","v":""},{"$f":"IFERROR(VLOOKUP('3 - Land Summary'!L91,'Look Up Data'!$Q$20:$R$25,2,FALSE),\"\")","v":""},null,null,{"$f":"IFERROR(('3 - Land Summary'!G91-'3 - Land Summary'!I91),\"\")","v":""}]
[null,{"$f":"IF('4 - Species Breakdown'!B102=0,\"\",'4 - Species Breakdown'!B102)","v":""},{"$f":"IF('4 - Species Breakdown'!D102=0,\"\",'4 - Species Breakdown'!D102)","v":""},{"$f":"IF('4 - Species Breakdown'!L102=0,\"\",'4 - Species Breakdown'!L102)","v":""},{"$f":"IF('4 - Species Breakdown'!M102=0,\"\",'4 - Species Breakdown'!M102)","v":""},{"$f":"IF('4 - Species Breakdown'!N102=0,\"\",'4 - Species Breakdown'!N102)","v":""},{"$f":"IFERROR(('4 - Species Breakdown'!J102/'WCC Summary'!$D$14)*100,\"\")","v":""},{"$f":"IF('4 - Species Breakdown'!J102=0,\"\",'4 - Species Breakdown'!J102)","v":""},null,{"$f":"IFERROR(VLOOKUP('3 - Land Summary'!E92,'Look Up Data'!$Q$5:$R$10,2,FALSE),\"\")","v":""},{"$f":"IFERROR(VLOOKUP('3 - Land Summary'!K92,'Look Up Data'!$Q$12:$R$18,2,FALSE),\"\")","v":""},{"$f":"IFERROR(VLOOKUP('3 - Land Summary'!L92,'Look Up Data'!$Q$20:$R$25,2,FALSE),\"\")","v":""},null,null,{"$f":"IFERROR(('3 - Land Summary'!G92-'3 - Land Summary'!I92),\"\")","v":""}]
[null,{"$f":"IF('4 - Species Breakdown'!B103=0,\"\",'4 - Species Breakdown'!B103)","v":""},{"$f":"IF('4 - Species Breakdown'!D103=0,\"\",'4 - Species Breakdown'!D103)","v":""},{"$f":"IF('4 - Species Breakdown'!L103=0,\"\",'4 - Species Breakdown'!L103)","v":""},{"$f":"IF('4 - Species Breakdown'!M103=0,\"\",'4 - Species Breakdown'!M103)","v":""},{"$f":"IF('4 - Species Breakdown'!N103=0,\"\",'4 - Species Breakdown'!N103)","v":""},{"$f":"IFERROR(('4 - Species Breakdown'!J103/'WCC Summary'!$D$14)*100,\"\")","v":""},{"$f":"IF('4 - Species Breakdown'!J103=0,\"\",'4 - Species Breakdown'!J103)","v":""},null,{"$f":"IFERROR(VLOOKUP('3 - Land Summary'!E93,'Look Up Data'!$Q$5:$R$10,2,FALSE),\"\")","v":""},{"$f":"IFERROR(VLOOKUP('3 - Land Summary'!K93,'Look Up Data'!$Q$12:$R$18,2,FALSE),\"\")","v":""},{"$f":"IFERROR(VLOOKUP('3 - Land Summary'!L93,'Look Up Data'!$Q$20:$R$25,2,FALSE),\"\")","v":""},null,null,{"$f":"IFERROR(('3 - Land Summary'!G93-'3 - Land Summary'!I93),\"\")","v":""}]
[null,{"$f":"IF('4 - Species Breakdown'!B104=0,\"\",'4 - Species Breakdown'!B104)","v":""},{"$f":"IF('4 - Species Breakdown'!D104=0,\"\",'4 - Species Breakdown'!D104)","v":""},{"$f":"IF('4 - Species Breakdown'!L104=0,\"\",'4 - Species Breakdown'!L104)","v":""},{"$f":"IF('4 - Species Breakdown'!M104=0,\"\",'4 - Species Breakdown'!M104)","v":""},{"$f":"IF('4 - Species Breakdown'!N104=0,\"\",'4 - Species Breakdown'!N104)","v":""},{"$f":"IFERROR(('4 - Species Breakdown'!J104/'WCC Summary'!$D$14)*100,\"\")","v":""},{"$f":"IF('4 - Species Breakdown'!J104=0,\"\",'4 - Species Breakdown'!J104)","v":""},null,{"$f":"IFERROR(VLOOKUP('3 - Land Summary'!E94,'Look Up Data'!$Q$5:$R$10,2,FALSE),\"\")","v":""},{"$f":"IFERROR(VLOOKUP('3 - Land Summary'!K94,'Look Up Data'!$Q$12:$R$18,2,FALSE),\"\")","v":""},{"$f":"IFERROR(VLOOKUP('3 - Land Summary'!L94,'Look Up Data'!$Q$20:$R$25,2,FALSE),\"\")","v":""},null,null,{"$f":"IFERROR(('3 - Land Summary'!G94-'3 - Land Summary'!I94),\"\")","v":""}]
[null,{"$f":"IF('4 - Species Breakdown'!B105=0,\"\",'4 - Species Breakdown'!B105)","v":""},{"$f":"IF('4 - Species Breakdown'!D105=0,\"\",'4 - Species Breakdown'!D105)","v":""},{"$f":"IF('4 - Species Breakdown'!L105=0,\"\",'4 - Species Breakdown'!L105)","v":""},{"$f":"IF('4 - Species Breakdown'!M105=0,\"\",'4 - Species Breakdown'!M105)","v":""},{"$f":"IF('4 - Species Breakdown'!N105=0,\"\",'4 - Species Breakdown'!N105)","v":""},{"$f":"IFERROR(('4 - Species Breakdown'!J105/'WCC Summary'!$D$14)*100,\"\")","v":""},{"$f":"IF('4 - Species Breakdown'!J105=0,\"\",'4 - Species Breakdown'!J105)","v":""},null,{"$f":"IFERROR(VLOOKUP('3 - Land Summary'!E95,'Look Up Data'!$Q$5:$R$10,2,FALSE),\"\")","v":""},{"$f":"IFERROR(VLOOKUP('3 - Land Summary'!K95,'Look Up Data'!$Q$12:$R$18,2,FALSE),\"\")","v":""},{"$f":"IFERROR(VLOOKUP('3 - Land Summary'!L95,'Look Up Data'!$Q$20:$R$25,2,FALSE),\"\")","v":""},null,null,{"$f":"IFERROR(('3 - Land Summary'!G95-'3 - Land Summary'!I95),\"\")","v":""}]
[null,{"$f":"IF('4 - Species Breakdown'!B106=0,\"\",'4 - Species Breakdown'!B106)","v":""},{"$f":"IF('4 - Species Breakdown'!D106=0,\"\",'4 - Species Breakdown'!D106)","v":""},{"$f":"IF('4 - Species Breakdown'!L106=0,\"\",'4 - Species Breakdown'!L106)","v":""},{"$f":"IF('4 - Species Breakdown'!M106=0,\"\",'4 - Species Breakdown'!M106)","v":""},{"$f":"IF('4 - Species Breakdown'!N106=0,\"\",'4 - Species Breakdown'!N106)","v":""},{"$f":"IFERROR(('4 - Species Breakdown'!J106/'WCC Summary'!$D$14)*100,\"\")","v":""},{"$f":"IF('4 - Species Breakdown'!J106=0,\"\",'4 - Species Breakdown'!J106)","v":""},null,{"$f":"IFERROR(VLOOKUP('3 - Land Summary'!E96,'Look Up Data'!$Q$5:$R$10,2,FALSE),\"\")","v":""},{"$f":"IFERROR(VLOOKUP('3 - Land Summary'!K96,'Look Up Data'!$Q$12:$R$18,2,FALSE),\"\")","v":""},{"$f":"IFERROR(VLOOKUP('3 - Land Summary'!L96,'Look Up Data'!$Q$20:$R$25,2,FALSE),\"\")","v":""},null,null,{"$f":"IFERROR(('3 - Land Summary'!G96-'3 - Land Summary'!I96),\"\")","v":""}]
[null,{"$f":"IF('4 - Species Breakdown'!B107=0,\"\",'4 - Species Breakdown'!B107)","v":""},{"$f":"IF('4 - Species Breakdown'!D107=0,\"\",'4 - Species Breakdown'!D107)","v":""},{"$f":"IF('4 - Species Breakdown'!L107=0,\"\",'4 - Species Breakdown'!L107)","v":""},{"$f":"IF('4 - Species Breakdown'!M107=0,\"\",'4 - Species Breakdown'!M107)","v":""},{"$f":"IF('4 - Species Breakdown'!N107=0,\"\",'4 - Species Breakdown'!N107)","v":""},{"$f":"IFERROR(('4 - Species Breakdown'!J107/'WCC Summary'!$D$14)*100,\"\")","v":""},{"$f":"IF('4 - Species Breakdown'!J107=0,\"\",'4 - Species Breakdown'!J107)","v":""},null,{"$f":"IFERROR(VLOOKUP('3 - Land Summary'!E97,'Look Up Data'!$Q$5:$R$10,2,FALSE),\"\")","v":""},{"$f":"IFERROR(VLOOKUP('3 - Land Summary'!K97,'Look Up Data'!$Q$12:$R$18,2,FALSE),\"\")","v":""},{"$f":"IFERROR(VLOOKUP('3 - Land Summary'!L97,'Look Up Data'!$Q$20:$R$25,2,FALSE),\"\")","v":""},null,null,{"$f":"IFERROR(('3 - Land Summary'!G97-'3 - Land Summary'!I97),\"\")","v":""}]
[null,{"$f":"IF('4 - Species Breakdown'!B108=0,\"\",'4 - Species Breakdown'!B108)","v":""},{"$f":"IF('4 - Species Breakdown'!D108=0,\"\",'4 - Species Breakdown'!D108)","v":""},{"$f":"IF('4 - Species Breakdown'!L108=0,\"\",'4 - Species Breakdown'!L108)","v":""},{"$f":"IF('4 - Species Breakdown'!M108=0,\"\",'4 - Species Breakdown'!M108)","v":""},{"$f":"IF('4 - Species Breakdown'!N108=0,\"\",'4 - Species Breakdown'!N108)","v":""},{"$f":"IFERROR(('4 - Species Breakdown'!J108/'WCC Summary'!$D$14)*100,\"\")","v":""},{"$f":"IF('4 - Species Breakdown'!J108=0,\"\",'4 - Species Breakdown'!J108)","v":""},null,{"$f":"IFERROR(VLOOKUP('3 - Land Summary'!E98,'Look Up Data'!$Q$5:$R$10,2,FALSE),\"\")","v":""},{"$f":"IFERROR(VLOOKUP('3 - Land Summary'!K98,'Look Up Data'!$Q$12:$R$18,2,FALSE),\"\")","v":""},{"$f":"IFERROR(VLOOKUP('3 - Land Summary'!L98,'Look Up Data'!$Q$20:$R$25,2,FALSE),\"\")","v":""},null,null,{"$f":"IFERROR(('3 - Land Summary'!G98-'3 - Land Summary'!I98),\"\")","v":""}]
[null,{"$f":"IF('4 - Species Breakdown'!B109=0,\"\",'4 - Species Breakdown'!B109)","v":""},{"$f":"IF('4 - Species Breakdown'!D109=0,\"\",'4 - Species Breakdown'!D109)","v":""},{"$f":"IF('4 - Species Breakdown'!L109=0,\"\",'4 - Species Breakdown'!L109)","v":""},{"$f":"IF('4 - Species Breakdown'!M109=0,\"\",'4 - Species Breakdown'!M109)","v":""},{"$f":"IF('4 - Species Breakdown'!N109=0,\"\",'4 - Species Breakdown'!N109)","v":""},{"$f":"IFERROR(('4 - Species Breakdown'!J109/'WCC Summary'!$D$14)*100,\"\")","v":""},{"$f":"IF('4 - Species Breakdown'!J109=0,\"\",'4 - Species Breakdown'!J109)","v":""},null,{"$f":"IFERROR(VLOOKUP('3 - Land Summary'!E99,'Look Up Data'!$Q$5:$R$10,2,FALSE),\"\")","v":""},{"$f":"IFERROR(VLOOKUP('3 - Land Summary'!K99,'Look Up Data'!$Q$12:$R$18,2,FALSE),\"\")","v":""},{"$f":"IFERROR(VLOOKUP('3 - Land Summary'!L99,'Look Up Data'!$Q$20:$R$25,2,FALSE),\"\")","v":""},null,null,{"$f":"IFERROR(('3 - Land Summary'!G99-'3 - Land Summary'!I99),\"\")","v":""}]
[null,{"$f":"IF('4 - Species Breakdown'!B110=0,\"\",'4 - Species Breakdown'!B110)","v":""},{"$f":"IF('4 - Species Breakdown'!D110=0,\"\",'4 - Species Breakdown'!D110)","v":""},{"$f":"IF('4 - Species Breakdown'!L110=0,\"\",'4 - Species Breakdown'!L110)","v":""},{"$f":"IF('4 - Species Breakdown'!M110=0,\"\",'4 - Species Breakdown'!M110)","v":""},{"$f":"IF('4 - Species Breakdown'!N110=0,\"\",'4 - Species Breakdown'!N110)","v":""},{"$f":"IFERROR(('4 - Species Breakdown'!J110/'WCC Summary'!$D$14)*100,\"\")","v":""},{"$f":"IF('4 - Species Breakdown'!J110=0,\"\",'4 - Species Breakdown'!J110)","v":""},null,{"$f":"IFERROR(VLOOKUP('3 - Land Summary'!E100,'Look Up Data'!$Q$5:$R$10,2,FALSE),\"\")","v":""},{"$f":"IFERROR(VLOOKUP('3 - Land Summary'!K100,'Look Up Data'!$Q$12:$R$18,2,FALSE),\"\")","v":""},{"$f":"IFERROR(VLOOKUP('3 - Land Summary'!L100,'Look Up Data'!$Q$20:$R$25,2,FALSE),\"\")","v":""},null,null,{"$f":"IFERROR(('3 - Land Summary'!G100-'3 - Land Summary'!I100),\"\")","v":""}]
[null,{"$f":"IF('4 - Species Breakdown'!B111=0,\"\",'4 - Species Breakdown'!B111)","v":""},{"$f":"IF('4 - Species Breakdown'!D111=0,\"\",'4 - Species Breakdown'!D111)","v":""},{"$f":"IF('4 - Species Breakdown'!L111=0,\"\",'4 - Species Breakdown'!L111)","v":""},{"$f":"IF('4 - Species Breakdown'!M111=0,\"\",'4 - Species Breakdown'!M111)","v":""},{"$f":"IF('4 - Species Breakdown'!N111=0,\"\",'4 - Species Breakdown'!N111)","v":""},{"$f":"IFERROR(('4 - Species Breakdown'!J111/'WCC Summary'!$D$14)*100,\"\")","v":""},{"$f":"IF('4 - Species Breakdown'!J111=0,\"\",'4 - Species Breakdown'!J111)","v":""},null,{"$f":"IFERROR(VLOOKUP('3 - Land Summary'!E101,'Look Up Data'!$Q$5:$R$10,2,FALSE),\"\")","v":""},{"$f":"IFERROR(VLOOKUP('3 - Land Summary'!K101,'Look Up Data'!$Q$12:$R$18,2,FALSE),\"\")","v":""},{"$f":"IFERROR(VLOOKUP('3 - Land Summary'!L101,'Look Up Data'!$Q$20:$R$25,2,FALSE),\"\")","v":""},null,null,{"$f":"IFERROR(('3 - Land Summary'!G101-'3 - Land Summary'!I101),\"\")","v":""}]
[null,{"$f":"IF('4 - Species Breakdown'!B112=0,\"\",'4 - Species Breakdown'!B112)","v":""},{"$f":"IF('4 - Species Breakdown'!D112=0,\"\",'4 - Species Breakdown'!D112)","v":""},{"$f":"IF('4 - Species Breakdown'!L112=0,\"\",'4 - Species Breakdown'!L112)","v":""},{"$f":"IF('4 - Species Breakdown'!M112=0,\"\",'4 - Species Breakdown'!M112)","v":""},{"$f":"IF('4 - Species Breakdown'!N112=0,\"\",'4 - Species Breakdown'!N112)","v":""},{"$f":"IFERROR(('4 - Species Breakdown'!J112/'WCC Summary'!$D$14)*100,\"\")","v":""},{"$f":"IF('4 - Species Breakdown'!J112=0,\"\",'4 - Species Breakdown'!J112)","v":""},null,{"$f":"IFERROR(VLOOKUP('3 - Land Summary'!E102,'Look Up Data'!$Q$5:$R$10,2,FALSE),\"\")","v":""},{"$f":"IFERROR(VLOOKUP('3 - Land Summary'!K102,'Look Up Data'!$Q$12:$R$18,2,FALSE),\"\")","v":""},{"$f":"IFERROR(VLOOKUP('3 - Land Summary'!L102,'Look Up Data'!$Q$20:$R$25,2,FALSE),\"\")","v":""},null,null,{"$f":"IFERROR(('3 - Land Summary'!G102-'3 - Land Summary'!I102),\"\")","v":""}]
[null,{"$f":"IF('4 - Species Breakdown'!B113=0,\"\",'4 - Species Breakdown'!B113)","v":""},{"$f":"IF('4 - Species Breakdown'!D113=0,\"\",'4 - Species Breakdown'!D113)","v":""},{"$f":"IF('4 - Species Breakdown'!L113=0,\"\",'4 - Species Breakdown'!L113)","v":""},{"$f":"IF('4 - Species Breakdown'!M113=0,\"\",'4 - Species Breakdown'!M113)","v":""},{"$f":"IF('4 - Species Breakdown'!N113=0,\"\",'4 - Species Breakdown'!N113)","v":""},{"$f":"IFERROR(('4 - Species Breakdown'!J113/'WCC Summary'!$D$14)*100,\"\")","v":""},{"$f":"IF('4 - Species Breakdown'!J113=0,\"\",'4 - Species Breakdown'!J113)","v":""},null,{"$f":"IFERROR(VLOOKUP('3 - Land Summary'!E103,'Look Up Data'!$Q$5:$R$10,2,FALSE),\"\")","v":""},{"$f":"IFERROR(VLOOKUP('3 - Land Summary'!K103,'Look Up Data'!$Q$12:$R$18,2,FALSE),\"\")","v":""},{"$f":"IFERROR(VLOOKUP('3 - Land Summary'!L103,'Look Up Data'!$Q$20:$R$25,2,FALSE),\"\")","v":""},null,null,{"$f":"IFERROR(('3 - Land Summary'!G103-'3 - Land Summary'!I103),\"\")","v":""}]
[null,{"$f":"IF('4 - Species Breakdown'!B114=0,\"\",'4 - Species Breakdown'!B114)","v":""},{"$f":"IF('4 - Species Breakdown'!D114=0,\"\",'4 - Species Breakdown'!D114)","v":""},{"$f":"IF('4 - Species Breakdown'!L114=0,\"\",'4 - Species Breakdown'!L114)","v":""},{"$f":"IF('4 - Species Breakdown'!M114=0,\"\",'4 - Species Breakdown'!M114)","v":""},{"$f":"IF('4 - Species Breakdown'!N114=0,\"\",'4 - Species Breakdown'!N114)","v":""},{"$f":"IFERROR(('4 - Species Breakdown'!J114/'WCC Summary'!$D$14)*100,\"\")","v":""},{"$f":"IF('4 - Species Breakdown'!J114=0,\"\",'4 - Species Breakdown'!J114)","v":""},null,{"$f":"IFERROR(VLOOKUP('3 - Land Summary'!E104,'Look Up Data'!$Q$5:$R$10,2,FALSE),\"\")","v":""},{"$f":"IFERROR(VLOOKUP('3 - Land Summary'!K104,'Look Up Data'!$Q$12:$R$18,2,FALSE),\"\")","v":""},{"$f":"IFERROR(VLOOKUP('3 - Land Summary'!L104,'Look Up Data'!$Q$20:$R$25,2,FALSE),\"\")","v":""},null,null,{"$f":"IFERROR(('3 - Land Summary'!G104-'3 - Land Summary'!I104),\"\")","v":""}]
[null,{"$f":"IF('4 - Species Breakdown'!B115=0,\"\",'4 - Species Breakdown'!B115)","v":""},{"$f":"IF('4 - Species Breakdown'!D115=0,\"\",'4 - Species Breakdown'!D115)","v":""},{"$f":"IF('4 - Species Breakdown'!L115=0,\"\",'4 - Species Breakdown'!L115)","v":""},{"$f":"IF('4 - Species Breakdown'!M115=0,\"\",'4 - Species Breakdown'!M115)","v":""},{"$f":"IF('4 - Species Breakdown'!N115=0,\"\",'4 - Species Breakdown'!N115)","v":""},{"$f":"IFERROR(('4 - Species Breakdown'!J115/'WCC Summary'!$D$14)*100,\"\")","v":""},{"$f":"IF('4 - Species Breakdown'!J115=0,\"\",'4 - Species Breakdown'!J115)","v":""},null,{"$f":"IFERROR(VLOOKUP('3 - Land Summary'!E105,'Look Up Data'!$Q$5:$R$10,2,FALSE),\"\")","v":""},{"$f":"IFERROR(VLOOKUP('3 - Land Summary'!K105,'Look Up Data'!$Q$12:$R$18,2,FALSE),\"\")","v":""},{"$f":"IFERROR(VLOOKUP('3 - Land Summary'!L105,'Look Up Data'!$Q$20:$R$25,2,FALSE),\"\")","v":""},null,null,{"$f":"IFERROR(('3 - Land Summary'!G105-'3 - Land Summary'!I105),\"\")","v":""}]
[null,{"$f":"IF('4 - Species Breakdown'!B116=0,\"\",'4 - Species Breakdown'!B116)","v":""},{"$f":"IF('4 - Species Breakdown'!D116=0,\"\",'4 - Species Breakdown'!D116)","v":""},{"$f":"IF('4 - Species Breakdown'!L116=0,\"\",'4 - Species Breakdown'!L116)","v":""},{"$f":"IF('4 - Species Breakdown'!M116=0,\"\",'4 - Species Breakdown'!M116)","v":""},{"$f":"IF('4 - Species Breakdown'!N116=0,\"\",'4 - Species Breakdown'!N116)","v":""},{"$f":"IFERROR(('4 - Species Breakdown'!J116/'WCC Summary'!$D$14)*100,\"\")","v":""},{"$f":"IF('4 - Species Breakdown'!J116=0,\"\",'4 - Species Breakdown'!J116)","v":""},null,{"$f":"IFERROR(VLOOKUP('3 - Land Summary'!E106,'Look Up Data'!$Q$5:$R$10,2,FALSE),\"\")","v":""},{"$f":"IFERROR(VLOOKUP('3 - Land Summary'!K106,'Look Up Data'!$Q$12:$R$18,2,FALSE),\"\")","v":""},{"$f":"IFERROR(VLOOKUP('3 - Land Summary'!L106,'Look Up Data'!$Q$20:$R$25,2,FALSE),\"\")","v":""},null,null,{"$f":"IFERROR(('3 - Land Summary'!G106-'3 - Land Summary'!I106),\"\")","v":""}]
[null,{"$f":"IF('4 - Species Breakdown'!B117=0,\"\",'4 - Species Breakdown'!B117)","v":""},{"$f":"IF('4 - Species Breakdown'!D117=0,\"\",'4 - Species Breakdown'!D117)","v":""},{"$f":"IF('4 - Species Breakdown'!L117=0,\"\",'4 - Species Breakdown'!L117)","v":""},{"$f":"IF('4 - Species Breakdown'!M117=0,\"\",'4 - Species Breakdown'!M117)","v":""},{"$f":"IF('4 - Species Breakdown'!N117=0,\"\",'4 - Species Breakdown'!N117)","v":""},{"$f":"IFERROR(('4 - Species Breakdown'!J117/'WCC Summary'!$D$14)*100,\"\")","v":""},{"$f":"IF('4 - Species Breakdown'!J117=0,\"\",'4 - Species Breakdown'!J117)","v":""},null,{"$f":"IFERROR(VLOOKUP('3 - Land Summary'!E107,'Look Up Data'!$Q$5:$R$10,2,FALSE),\"\")","v":""},{"$f":"IFERROR(VLOOKUP('3 - Land Summary'!K107,'Look Up Data'!$Q$12:$R$18,2,FALSE),\"\")","v":""},{"$f":"IFERROR(VLOOKUP('3 - Land Summary'!L107,'Look Up Data'!$Q$20:$R$25,2,FALSE),\"\")","v":""},null,null,{"$f":"IFERROR(('3 - Land Summary'!G107-'3 - Land Summary'!I107),\"\")","v":""}]
[null,{"$f":"IF('4 - Species Breakdown'!B118=0,\"\",'4 - Species Breakdown'!B118)","v":""},{"$f":"IF('4 - Species Breakdown'!D118=0,\"\",'4 - Species Breakdown'!D118)","v":""},{"$f":"IF('4 - Species Breakdown'!L118=0,\"\",'4 - Species Breakdown'!L118)","v":""},{"$f":"IF('4 - Species Breakdown'!M118=0,\"\",'4 - Species Breakdown'!M118)","v":""},{"$f":"IF('4 - Species Breakdown'!N118=0,\"\",'4 - Species Breakdown'!N118)","v":""},{"$f":"IFERROR(('4 - Species Breakdown'!J118/'WCC Summary'!$D$14)*100,\"\")","v":""},{"$f":"IF('4 - Species Breakdown'!J118=0,\"\",'4 - Species Breakdown'!J118)","v":""},null,{"$f":"IFERROR(VLOOKUP('3 - Land Summary'!E108,'Look Up Data'!$Q$5:$R$10,2,FALSE),\"\")","v":""},{"$f":"IFERROR(VLOOKUP('3 - Land Summary'!K108,'Look Up Data'!$Q$12:$R$18,2,FALSE),\"\")","v":""},{"$f":"IFERROR(VLOOKUP('3 - Land Summary'!L108,'Look Up Data'!$Q$20:$R$25,2,FALSE),\"\")","v":""},null,null,{"$f":"IFERROR(('3 - Land Summary'!G108-'3 - Land Summary'!I108),\"\")","v":""}]
[null,{"$f":"IF('4 - Species Breakdown'!B119=0,\"\",'4 - Species Breakdown'!B119)","v":""},{"$f":"IF('4 - Species Breakdown'!D119=0,\"\",'4 - Species Breakdown'!D119)","v":""},{"$f":"IF('4 - Species Breakdown'!L119=0,\"\",'4 - Species Breakdown'!L119)","v":""},{"$f":"IF('4 - Species Breakdown'!M119=0,\"\",'4 - Species Breakdown'!M119)","v":""},{"$f":"IF('4 - Species Breakdown'!N119=0,\"\",'4 - Species Breakdown'!N119)","v":""},{"$f":"IFERROR(('4 - Species Breakdown'!J119/'WCC Summary'!$D$14)*100,\"\")","v":""},{"$f":"IF('4 - Species Breakdown'!J119=0,\"\",'4 - Species Breakdown'!J119)","v":""},null,{"$f":"IFERROR(VLOOKUP('3 - Land Summary'!E109,'Look Up Data'!$Q$5:$R$10,2,FALSE),\"\")","v":""},{"$f":"IFERROR(VLOOKUP('3 - Land Summary'!K109,'Look Up Data'!$Q$12:$R$18,2,FALSE),\"\")","v":""},{"$f":"IFERROR(VLOOKUP('3 - Land Summary'!L109,'Look Up Data'!$Q$20:$R$25,2,FALSE),\"\")","v":""},null,null,{"$f":"IFERROR(('3 - Land Summary'!G109-'3 - Land Summary'!I109),\"\")","v":""}]
[null,{"$f":"IF('4 - Species Breakdown'!B120=0,\"\",'4 - Species Breakdown'!B120)","v":""},{"$f":"IF('4 - Species Breakdown'!D120=0,\"\",'4 - Species Breakdown'!D120)","v":""},{"$f":"IF('4 - Species Breakdown'!L120=0,\"\",'4 - Species Breakdown'!L120)","v":""},{"$f":"IF('4 - Species Breakdown'!M120=0,\"\",'4 - Species Breakdown'!M120)","v":""},{"$f":"IF('4 - Species Breakdown'!N120=0,\"\",'4 - Species Breakdown'!N120)","v":""},{"$f":"IFERROR(('4 - Species Breakdown'!J120/'WCC Summary'!$D$14)*100,\"\")","v":""},{"$f":"IF('4 - Species Breakdown'!J120=0,\"\",'4 - Species Breakdown'!J120)","v":""},null,{"$f":"IFERROR(VLOOKUP('3 - Land Summary'!E110,'Look Up Data'!$Q$5:$R$10,2,FALSE),\"\")","v":""},{"$f":"IFERROR(VLOOKUP('3 - Land Summary'!K110,'Look Up Data'!$Q$12:$R$18,2,FALSE),\"\")","v":""},{"$f":"IFERROR(VLOOKUP('3 - Land Summary'!L110,'Look Up Data'!$Q$20:$R$25,2,FALSE),\"\")","v":""},null,null,{"$f":"IFERROR(('3 - Land Summary'!G110-'3 - Land Summary'!I110),\"\")","v":""}]
[null,{"$f":"IF('4 - Species Breakdown'!B121=0,\"\",'4 - Species Breakdown'!B121)","v":""},{"$f":"IF('4 - Species Breakdown'!D121=0,\"\",'4 - Species Breakdown'!D121)","v":""},{"$f":"IF('4 - Species Breakdown'!L121=0,\"\",'4 - Species Breakdown'!L121)","v":""},{"$f":"IF('4 - Species Breakdown'!M121=0,\"\",'4 - Species Breakdown'!M121)","v":""},{"$f":"IF('4 - Species Breakdown'!N121=0,\"\",'4 - Species Breakdown'!N121)","v":""},{"$f":"IFERROR(('4 - Species Breakdown'!J121/'WCC Summary'!$D$14)*100,\"\")","v":""},{"$f":"IF('4 - Species Breakdown'!J121=0,\"\",'4 - Species Breakdown'!J121)","v":""},null,{"$f":"IFERROR(VLOOKUP('3 - Land Summary'!E111,'Look Up Data'!$Q$5:$R$10,2,FALSE),\"\")","v":""},{"$f":"IFERROR(VLOOKUP('3 - Land Summary'!K111,'Look Up Data'!$Q$12:$R$18,2,FALSE),\"\")","v":""},{"$f":"IFERROR(VLOOKUP('3 - Land Summary'!L111,'Look Up Data'!$Q$20:$R$25,2,FALSE),\"\")","v":""},null,null,{"$f":"IFERROR(('3 - Land Summary'!G111-'3 - Land Summary'!I111),\"\")","v":""}]
[null,{"$f":"IF('4 - Species Breakdown'!B122=0,\"\",'4 - Species Breakdown'!B122)","v":""},{"$f":"IF('4 - Species Breakdown'!D122=0,\"\",'4 - Species Breakdown'!D122)","v":""},{"$f":"IF('4 - Species Breakdown'!L122=0,\"\",'4 - Species Breakdown'!L122)","v":""},{"$f":"IF('4 - Species Breakdown'!M122=0,\"\",'4 - Species Breakdown'!M122)","v":""},{"$f":"IF('4 - Species Breakdown'!N122=0,\"\",'4 - Species Breakdown'!N122)","v":""},{"$f":"IFERROR(('4 - Species Breakdown'!J122/'WCC Summary'!$D$14)*100,\"\")","v":""},{"$f":"IF('4 - Species Breakdown'!J122=0,\"\",'4 - Species Breakdown'!J122)","v":""},null,{"$f":"IFERROR(VLOOKUP('3 - Land Summary'!E112,'Look Up Data'!$Q$5:$R$10,2,FALSE),\"\")","v":""},{"$f":"IFERROR(VLOOKUP('3 - Land Summary'!K112,'Look Up Data'!$Q$12:$R$18,2,FALSE),\"\")","v":""},{"$f":"IFERROR(VLOOKUP('3 - Land Summary'!L112,'Look Up Data'!$Q$20:$R$25,2,FALSE),\"\")","v":""},null,null,{"$f":"IFERROR(('3 - Land Summary'!G112-'3 - Land Summary'!I112),\"\")","v":""}]
[null,{"$f":"IF('4 - Species Breakdown'!B123=0,\"\",'4 - Species Breakdown'!B123)","v":""},{"$f":"IF('4 - Species Breakdown'!D123=0,\"\",'4 - Species Breakdown'!D123)","v":""},{"$f":"IF('4 - Species Breakdown'!L123=0,\"\",'4 - Species Breakdown'!L123)","v":""},{"$f":"IF('4 - Species Breakdown'!M123=0,\"\",'4 - Species Breakdown'!M123)","v":""},{"$f":"IF('4 - Species Breakdown'!N123=0,\"\",'4 - Species Breakdown'!N123)","v":""},{"$f":"IFERROR(('4 - Species Breakdown'!J123/'WCC Summary'!$D$14)*100,\"\")","v":""},{"$f":"IF('4 - Species Breakdown'!J123=0,\"\",'4 - Species Breakdown'!J123)","v":""},null,{"$f":"IFERROR(VLOOKUP('3 - Land Summary'!E113,'Look Up Data'!$Q$5:$R$10,2,FALSE),\"\")","v":""},{"$f":"IFERROR(VLOOKUP('3 - Land Summary'!K113,'Look Up Data'!$Q$12:$R$18,2,FALSE),\"\")","v":""},{"$f":"IFERROR(VLOOKUP('3 - Land Summary'!L113,'Look Up Data'!$Q$20:$R$25,2,FALSE),\"\")","v":""},null,null,{"$f":"IFERROR(('3 - Land Summary'!G113-'3 - Land Summary'!I113),\"\")","v":""}]
[null,{"$f":"IF('4 - Species Breakdown'!B124=0,\"\",'4 - Species Breakdown'!B124)","v":""},{"$f":"IF('4 - Species Breakdown'!D124=0,\"\",'4 - Species Breakdown'!D124)","v":""},{"$f":"IF('4 - Species Breakdown'!L124=0,\"\",'4 - Species Breakdown'!L124)","v":""},{"$f":"IF('4 - Species Breakdown'!M124=0,\"\",'4 - Species Breakdown'!M124)","v":""},{"$f":"IF('4 - Species Breakdown'!N124=0,\"\",'4 - Species Breakdown'!N124)","v":""},{"$f":"IFERROR(('4 - Species Breakdown'!J124/'WCC Summary'!$D$14)*100,\"\")","v":""},{"$f":"IF('4 - Species Breakdown'!J124=0,\"\",'4 - Species Breakdown'!J124)","v":""},null,{"$f":"IFERROR(VLOOKUP('3 - Land Summary'!E114,'Look Up Data'!$Q$5:$R$10,2,FALSE),\"\")","v":""},{"$f":"IFERROR(VLOOKUP('3 - Land Summary'!K114,'Look Up Data'!$Q$12:$R$18,2,FALSE),\"\")","v":""},{"$f":"IFERROR(VLOOKUP('3 - Land Summary'!L114,'Look Up Data'!$Q$20:$R$25,2,FALSE),\"\")","v":""},null,null,{"$f":"IFERROR(('3 - Land Summary'!G114-'3 - Land Summary'!I114),\"\")","v":""}]
[null,{"$f":"IF('4 - Species Breakdown'!B125=0,\"\",'4 - Species Breakdown'!B125)","v":""},{"$f":"IF('4 - Species Breakdown'!D125=0,\"\",'4 - Species Breakdown'!D125)","v":""},{"$f":"IF('4 - Species Breakdown'!L125=0,\"\",'4 - Species Breakdown'!L125)","v":""},{"$f":"IF('4 - Species Breakdown'!M125=0,\"\",'4 - Species Breakdown'!M125)","v":""},{"$f":"IF('4 - Species Breakdown'!N125=0,\"\",'4 - Species Breakdown'!N125)","v":""},{"$f":"IFERROR(('4 - Species Breakdown'!J125/'WCC Summary'!$D$14)*100,\"\")","v":""},{"$f":"IF('4 - Species Breakdown'!J125=0,\"\",'4 - Species Breakdown'!J125)","v":""},null,{"$f":"IFERROR(VLOOKUP('3 - Land Summary'!E115,'Look Up Data'!$Q$5:$R$10,2,FALSE),\"\")","v":""},{"$f":"IFERROR(VLOOKUP('3 - Land Summary'!K115,'Look Up Data'!$Q$12:$R$18,2,FALSE),\"\")","v":""},{"$f":"IFERROR(VLOOKUP('3 - Land Summary'!L115,'Look Up Data'!$Q$20:$R$25,2,FALSE),\"\")","v":""},null,null,{"$f":"IFERROR(('3 - Land Summary'!G115-'3 - Land Summary'!I115),\"\")","v":""}]
[null,{"$f":"IF('4 - Species Breakdown'!B126=0,\"\",'4 - Species Breakdown'!B126)","v":""},{"$f":"IF('4 - Species Breakdown'!D126=0,\"\",'4 - Species Breakdown'!D126)","v":""},{"$f":"IF('4 - Species Breakdown'!L126=0,\"\",'4 - Species Breakdown'!L126)","v":""},{"$f":"IF('4 - Species Breakdown'!M126=0,\"\",'4 - Species Breakdown'!M126)","v":""},{"$f":"IF('4 - Species Breakdown'!N126=0,\"\",'4 - Species Breakdown'!N126)","v":""},{"$f":"IFERROR(('4 - Species Breakdown'!J126/'WCC Summary'!$D$14)*100,\"\")","v":""},{"$f":"IF('4 - Species Breakdown'!J126=0,\"\",'4 - Species Breakdown'!J126)","v":""},null,{"$f":"IFERROR(VLOOKUP('3 - Land Summary'!E116,'Look Up Data'!$Q$5:$R$10,2,FALSE),\"\")","v":""},{"$f":"IFERROR(VLOOKUP('3 - Land Summary'!K116,'Look Up Data'!$Q$12:$R$18,2,FALSE),\"\")","v":""},{"$f":"IFERROR(VLOOKUP('3 - Land Summary'!L116,'Look Up Data'!$Q$20:$R$25,2,FALSE),\"\")","v":""},null,null,{"$f":"IFERROR(('3 - Land Summary'!G116-'3 - Land Summary'!I116),\"\")","v":""}]
[null,{"$f":"IF('4 - Species Breakdown'!B127=0,\"\",'4 - Species Breakdown'!B127)","v":""},{"$f":"IF('4 - Species Breakdown'!D127=0,\"\",'4 - Species Breakdown'!D127)","v":""},{"$f":"IF('4 - Species Breakdown'!L127=0,\"\",'4 - Species Breakdown'!L127)","v":""},{"$f":"IF('4 - Species Breakdown'!M127=0,\"\",'4 - Species Breakdown'!M127)","v":""},{"$f":"IF('4 - Species Breakdown'!N127=0,\"\",'4 - Species Breakdown'!N127)","v":""},{"$f":"IFERROR(('4 - Species Breakdown'!J127/'WCC Summary'!$D$14)*100,\"\")","v":""},{"$f":"IF('4 - Species Breakdown'!J127=0,\"\",'4 - Species Breakdown'!J127)","v":""},null,{"$f":"IFERROR(VLOOKUP('3 - Land Summary'!E117,'Look Up Data'!$Q$5:$R$10,2,FALSE),\"\")","v":""},{"$f":"IFERROR(VLOOKUP('3 - Land Summary'!K117,'Look Up Data'!$Q$12:$R$18,2,FALSE),\"\")","v":""},{"$f":"IFERROR(VLOOKUP('3 - Land Summary'!L117,'Look Up Data'!$Q$20:$R$25,2,FALSE),\"\")","v":""},null,null,{"$f":"IFERROR(('3 - Land Summary'!G117-'3 - Land Summary'!I117),\"\")","v":""}]
[null,{"$f":"IF('4 - Species Breakdown'!B128=0,\"\",'4 - Species Breakdown'!B128)","v":""},{"$f":"IF('4 - Species Breakdown'!D128=0,\"\",'4 - Species Breakdown'!D128)","v":""},{"$f":"IF('4 - Species Breakdown'!L128=0,\"\",'4 - Species Breakdown'!L128)","v":""},{"$f":"IF('4 - Species Breakdown'!M128=0,\"\",'4 - Species Breakdown'!M128)","v":""},{"$f":"IF('4 - Species Breakdown'!N128=0,\"\",'4 - Species Breakdown'!N128)","v":""},{"$f":"IFERROR(('4 - Species Breakdown'!J128/'WCC Summary'!$D$14)*100,\"\")","v":""},{"$f":"IF('4 - Species Breakdown'!J128=0,\"\",'4 - Species Breakdown'!J128)","v":""},null,{"$f":"IFERROR(VLOOKUP('3 - Land Summary'!E118,'Look Up Data'!$Q$5:$R$10,2,FALSE),\"\")","v":""},{"$f":"IFERROR(VLOOKUP('3 - Land Summary'!K118,'Look Up Data'!$Q$12:$R$18,2,FALSE),\"\")","v":""},{"$f":"IFERROR(VLOOKUP('3 - Land Summary'!L118,'Look Up Data'!$Q$20:$R$25,2,FALSE),\"\")","v":""},null,null,{"$f":"IFERROR(('3 - Land Summary'!G118-'3 - Land Summary'!I118),\"\")","v":""}]
[null,{"$f":"IF('4 - Species Breakdown'!B129=0,\"\",'4 - Species Breakdown'!B129)","v":""},{"$f":"IF('4 - Species Breakdown'!D129=0,\"\",'4 - Species Breakdown'!D129)","v":""},{"$f":"IF('4 - Species Breakdown'!L129=0,\"\",'4 - Species Breakdown'!L129)","v":""},{"$f":"IF('4 - Species Breakdown'!M129=0,\"\",'4 - Species Breakdown'!M129)","v":""},{"$f":"IF('4 - Species Breakdown'!N129=0,\"\",'4 - Species Breakdown'!N129)","v":""},{"$f":"IFERROR(('4 - Species Breakdown'!J129/'WCC Summary'!$D$14)*100,\"\")","v":""},{"$f":"IF('4 - Species Breakdown'!J129=0,\"\",'4 - Species Breakdown'!J129)","v":""},null,{"$f":"IFERROR(VLOOKUP('3 - Land Summary'!E119,'Look Up Data'!$Q$5:$R$10,2,FALSE),\"\")","v":""},{"$f":"IFERROR(VLOOKUP('3 - Land Summary'!K119,'Look Up Data'!$Q$12:$R$18,2,FALSE),\"\")","v":""},{"$f":"IFERROR(VLOOKUP('3 - Land Summary'!L119,'Look Up Data'!$Q$20:$R$25,2,FALSE),\"\")","v":""},null,null,{"$f":"IFERROR(('3 - Land Summary'!G119-'3 - Land Summary'!I119),\"\")","v":""}]
[null,{"$f":"IF('4 - Species Breakdown'!B130=0,\"\",'4 - Species Breakdown'!B130)","v":""},{"$f":"IF('4 - Species Breakdown'!D130=0,\"\",'4 - Species Breakdown'!D130)","v":""},{"$f":"IF('4 - Species Breakdown'!L130=0,\"\",'4 - Species Breakdown'!L130)","v":""},{"$f":"IF('4 - Species Breakdown'!M130=0,\"\",'4 - Species Breakdown'!M130)","v":""},{"$f":"IF('4 - Species Breakdown'!N130=0,\"\",'4 - Species Breakdown'!N130)","v":""},{"$f":"IFERROR(('4 - Species Breakdown'!J130/'WCC Summary'!$D$14)*100,\"\")","v":""},{"$f":"IF('4 - Species Breakdown'!J130=0,\"\",'4 - Species Breakdown'!J130)","v":""},null,{"$f":"IFERROR(VLOOKUP('3 - Land Summary'!E120,'Look Up Data'!$Q$5:$R$10,2,FALSE),\"\")","v":""},{"$f":"IFERROR(VLOOKUP('3 - Land Summary'!K120,'Look Up Data'!$Q$12:$R$18,2,FALSE),\"\")","v":""},{"$f":"IFERROR(VLOOKUP('3 - Land Summary'!L120,'Look Up Data'!$Q$20:$R$25,2,FALSE),\"\")","v":""},null,null,{"$f":"IFERROR(('3 - Land Summary'!G120-'3 - Land Summary'!I120),\"\")","v":""}]
[null,{"$f":"IF('4 - Species Breakdown'!B131=0,\"\",'4 - Species Breakdown'!B131)","v":""},{"$f":"IF('4 - Species Breakdown'!D131=0,\"\",'4 - Species Breakdown'!D131)","v":""},{"$f":"IF('4 - Species Breakdown'!L131=0,\"\",'4 - Species Breakdown'!L131)","v":""},{"$f":"IF('4 - Species Breakdown'!M131=0,\"\",'4 - Species Breakdown'!M131)","v":""},{"$f":"IF('4 - Species Breakdown'!N131=0,\"\",'4 - Species Breakdown'!N131)","v":""},{"$f":"IFERROR(('4 - Species Breakdown'!J131/'WCC Summary'!$D$14)*100,\"\")","v":""},{"$f":"IF('4 - Species Breakdown'!J131=0,\"\",'4 - Species Breakdown'!J131)","v":""}]
[null,{"$f":"IF('4 - Species Breakdown'!B132=0,\"\",'4 - Species Breakdown'!B132)","v":""},{"$f":"IF('4 - Species Breakdown'!D132=0,\"\",'4 - Species Breakdown'!D132)","v":""},{"$f":"IF('4 - Species Breakdown'!L132=0,\"\",'4 - Species Breakdown'!L132)","v":""},{"$f":"IF('4 - Species Breakdown'!M132=0,\"\",'4 - Species Breakdown'!M132)","v":""},{"$f":"IF('4 - Species Breakdown'!N132=0,\"\",'4 - Species Breakdown'!N132)","v":""},{"$f":"IFERROR(('4 - Species Breakdown'!J132/'WCC Summary'!$D$14)*100,\"\")","v":""},{"$f":"IF('4 - Species Breakdown'!J132=0,\"\",'4 - Species Breakdown'!J132)","v":""}]
[null,{"$f":"IF('4 - Species Breakdown'!B133=0,\"\",'4 - Species Breakdown'!B133)","v":""},{"$f":"IF('4 - Species Breakdown'!D133=0,\"\",'4 - Species Breakdown'!D133)","v":""},{"$f":"IF('4 - Species Breakdown'!L133=0,\"\",'4 - Species Breakdown'!L133)","v":""},{"$f":"IF('4 - Species Breakdown'!M133=0,\"\",'4 - Species Breakdown'!M133)","v":""},{"$f":"IF('4 - Species Breakdown'!N133=0,\"\",'4 - Species Breakdown'!N133)","v":""},{"$f":"IFERROR(('4 - Species Breakdown'!J133/'WCC Summary'!$D$14)*100,\"\")","v":""},{"$f":"IF('4 - Species Breakdown'!J133=0,\"\",'4 - Species Breakdown'!J133)","v":""}]
[null,{"$f":"IF('4 - Species Breakdown'!B134=0,\"\",'4 - Species Breakdown'!B134)","v":""},{"$f":"IF('4 - Species Breakdown'!D134=0,\"\",'4 - Species Breakdown'!D134)","v":""},{"$f":"IF('4 - Species Breakdown'!L134=0,\"\",'4 - Species Breakdown'!L134)","v":""},{"$f":"IF('4 - Species Breakdown'!M134=0,\"\",'4 - Species Breakdown'!M134)","v":""},{"$f":"IF('4 - Species Breakdown'!N134=0,\"\",'4 - Species Breakdown'!N134)","v":""},{"$f":"IFERROR(('4 - Species Breakdown'!J134/'WCC Summary'!$D$14)*100,\"\")","v":""},{"$f":"IF('4 - Species Breakdown'!J134=0,\"\",'4 - Species Breakdown'!J134)","v":""}]
[null,{"$f":"IF('4 - Species Breakdown'!B135=0,\"\",'4 - Species Breakdown'!B135)","v":""},{"$f":"IF('4 - Species Breakdown'!D135=0,\"\",'4 - Species Breakdown'!D135)","v":""},{"$f":"IF('4 - Species Breakdown'!L135=0,\"\",'4 - Species Breakdown'!L135)","v":""},{"$f":"IF('4 - Species Breakdown'!M135=0,\"\",'4 - Species Breakdown'!M135)","v":""},{"$f":"IF('4 - Species Breakdown'!N135=0,\"\",'4 - Species Breakdown'!N135)","v":""},{"$f":"IFERROR(('4 - Species Breakdown'!J135/'WCC Summary'!$D$14)*100,\"\")","v":""},{"$f":"IF('4 - Species Breakdown'!J135=0,\"\",'4 - Species Breakdown'!J135)","v":""}]
[null,{"$f":"IF('4 - Species Breakdown'!B136=0,\"\",'4 - Species Breakdown'!B136)","v":""},{"$f":"IF('4 - Species Breakdown'!D136=0,\"\",'4 - Species Breakdown'!D136)","v":""},{"$f":"IF('4 - Species Breakdown'!L136=0,\"\",'4 - Species Breakdown'!L136)","v":""},{"$f":"IF('4 - Species Breakdown'!M136=0,\"\",'4 - Species Breakdown'!M136)","v":""},{"$f":"IF('4 - Species Breakdown'!N136=0,\"\",'4 - Species Breakdown'!N136)","v":""},{"$f":"IFERROR(('4 - Species Breakdown'!J136/'WCC Summary'!$D$14)*100,\"\")","v":""},{"$f":"IF('4 - Species Breakdown'!J136=0,\"\",'4 - Species Breakdown'!J136)","v":""}]
[null,{"$f":"IF('4 - Species Breakdown'!B137=0,\"\",'4 - Species Breakdown'!B137)","v":""},{"$f":"IF('4 - Species Breakdown'!D137=0,\"\",'4 - Species Breakdown'!D137)","v":""},{"$f":"IF('4 - Species Breakdown'!L137=0,\"\",'4 - Species Breakdown'!L137)","v":""},{"$f":"IF('4 - Species Breakdown'!M137=0,\"\",'4 - Species Breakdown'!M137)","v":""},{"$f":"IF('4 - Species Breakdown'!N137=0,\"\",'4 - Species Breakdown'!N137)","v":""},{"$f":"IFERROR(('4 - Species Breakdown'!J137/'WCC Summary'!$D$14)*100,\"\")","v":""},{"$f":"IF('4 - Species Breakdown'!J137=0,\"\",'4 - Species Breakdown'!J137)","v":""}]
[null,{"$f":"IF('4 - Species Breakdown'!B138=0,\"\",'4 - Species Breakdown'!B138)","v":""},{"$f":"IF('4 - Species Breakdown'!D138=0,\"\",'4 - Species Breakdown'!D138)","v":""},{"$f":"IF('4 - Species Breakdown'!L138=0,\"\",'4 - Species Breakdown'!L138)","v":""},{"$f":"IF('4 - Species Breakdown'!M138=0,\"\",'4 - Species Breakdown'!M138)","v":""},{"$f":"IF('4 - Species Breakdown'!N138=0,\"\",'4 - Species Breakdown'!N138)","v":""},{"$f":"IFERROR(('4 - Species Breakdown'!J138/'WCC Summary'!$D$14)*100,\"\")","v":""},{"$f":"IF('4 - Species Breakdown'!J138=0,\"\",'4 - Species Breakdown'!J138)","v":""}]
[null,{"$f":"IF('4 - Species Breakdown'!B139=0,\"\",'4 - Species Breakdown'!B139)","v":""},{"$f":"IF('4 - Species Breakdown'!D139=0,\"\",'4 - Species Breakdown'!D139)","v":""},{"$f":"IF('4 - Species Breakdown'!L139=0,\"\",'4 - Species Breakdown'!L139)","v":""},{"$f":"IF('4 - Species Breakdown'!M139=0,\"\",'4 - Species Breakdown'!M139)","v":""},{"$f":"IF('4 - Species Breakdown'!N139=0,\"\",'4 - Species Breakdown'!N139)","v":""},{"$f":"IFERROR(('4 - Species Breakdown'!J139/'WCC Summary'!$D$14)*100,\"\")","v":""},{"$f":"IF('4 - Species Breakdown'!J139=0,\"\",'4 - Species Breakdown'!J139)","v":""}]
[null,{"$f":"IF('4 - Species Breakdown'!B140=0,\"\",'4 - Species Breakdown'!B140)","v":""},{"$f":"IF('4 - Species Breakdown'!D140=0,\"\",'4 - Species Breakdown'!D140)","v":""},{"$f":"IF('4 - Species Breakdown'!L140=0,\"\",'4 - Species Breakdown'!L140)","v":""},{"$f":"IF('4 - Species Breakdown'!M140=0,\"\",'4 - Species Breakdown'!M140)","v":""},{"$f":"IF('4 - Species Breakdown'!N140=0,\"\",'4 - Species Breakdown'!N140)","v":""},{"$f":"IFERROR(('4 - Species Breakdown'!J140/'WCC Summary'!$D$14)*100,\"\")","v":""},{"$f":"IF('4 - Species Breakdown'!J140=0,\"\",'4 - Species Breakdown'!J140)","v":""}]
[null,{"$f":"IF('4 - Species Breakdown'!B141=0,\"\",'4 - Species Breakdown'!B141)","v":""},{"$f":"IF('4 - Species Breakdown'!D141=0,\"\",'4 - Species Breakdown'!D141)","v":""},{"$f":"IF('4 - Species Breakdown'!L141=0,\"\",'4 - Species Breakdown'!L141)","v":""},{"$f":"IF('4 - Species Breakdown'!M141=0,\"\",'4 - Species Breakdown'!M141)","v":""},{"$f":"IF('4 - Species Breakdown'!N141=0,\"\",'4 - Species Breakdown'!N141)","v":""},{"$f":"IFERROR(('4 - Species Breakdown'!J141/'WCC Summary'!$D$14)*100,\"\")","v":""},{"$f":"IF('4 - Species Breakdown'!J141=0,\"\",'4 - Species Breakdown'!J141)","v":""}]
[null,{"$f":"IF('4 - Species Breakdown'!B142=0,\"\",'4 - Species Breakdown'!B142)","v":""},{"$f":"IF('4 - Species Breakdown'!D142=0,\"\",'4 - Species Breakdown'!D142)","v":""},{"$f":"IF('4 - Species Breakdown'!L142=0,\"\",'4 - Species Breakdown'!L142)","v":""},{"$f":"IF('4 - Species Breakdown'!M142=0,\"\",'4 - Species Breakdown'!M142)","v":""},{"$f":"IF('4 - Species Breakdown'!N142=0,\"\",'4 - Species Breakdown'!N142)","v":""},{"$f":"IFERROR(('4 - Species Breakdown'!J142/'WCC Summary'!$D$14)*100,\"\")","v":""},{"$f":"IF('4 - Species Breakdown'!J142=0,\"\",'4 - Species Breakdown'!J142)","v":""}]
[null,{"$f":"IF('4 - Species Breakdown'!B143=0,\"\",'4 - Species Breakdown'!B143)","v":""},{"$f":"IF('4 - Species Breakdown'!D143=0,\"\",'4 - Species Breakdown'!D143)","v":""},{"$f":"IF('4 - Species Breakdown'!L143=0,\"\",'4 - Species Breakdown'!L143)","v":""},{"$f":"IF('4 - Species Breakdown'!M143=0,\"\",'4 - Species Breakdown'!M143)","v":""},{"$f":"IF('4 - Species Breakdown'!N143=0,\"\",'4 - Species Breakdown'!N143)","v":""},{"$f":"IFERROR(('4 - Species Breakdown'!J143/'WCC Summary'!$D$14)*100,\"\")","v":""},{"$f":"IF('4 - Species Breakdown'!J143=0,\"\",'4 - Species Breakdown'!J143)","v":""}]
[null,{"$f":"IF('4 - Species Breakdown'!B144=0,\"\",'4 - Species Breakdown'!B144)","v":""},{"$f":"IF('4 - Species Breakdown'!D144=0,\"\",'4 - Species Breakdown'!D144)","v":""},{"$f":"IF('4 - Species Breakdown'!L144=0,\"\",'4 - Species Breakdown'!L144)","v":""},{"$f":"IF('4 - Species Breakdown'!M144=0,\"\",'4 - Species Breakdown'!M144)","v":""},{"$f":"IF('4 - Species Breakdown'!N144=0,\"\",'4 - Species Breakdown'!N144)","v":""},{"$f":"IFERROR(('4 - Species Breakdown'!J144/'WCC Summary'!$D$14)*100,\"\")","v":""},{"$f":"IF('4 - Species Breakdown'!J144=0,\"\",'4 - Species Breakdown'!J144)","v":""}]
[null,{"$f":"IF('4 - Species Breakdown'!B145=0,\"\",'4 - Species Breakdown'!B145)","v":""},{"$f":"IF('4 - Species Breakdown'!D145=0,\"\",'4 - Species Breakdown'!D145)","v":""},{"$f":"IF('4 - Species Breakdown'!L145=0,\"\",'4 - Species Breakdown'!L145)","v":""},{"$f":"IF('4 - Species Breakdown'!M145=0,\"\",'4 - Species Breakdown'!M145)","v":""},{"$f":"IF('4 - Species Breakdown'!N145=0,\"\",'4 - Species Breakdown'!N145)","v":""},{"$f":"IFERROR(('4 - Species Breakdown'!J145/'WCC Summary'!$D$14)*100,\"\")","v":""},{"$f":"IF('4 - Species Breakdown'!J145=0,\"\",'4 - Species Breakdown'!J145)","v":""}]
[null,{"$f":"IF('4 - Species Breakdown'!B146=0,\"\",'4 - Species Breakdown'!B146)","v":""},{"$f":"IF('4 - Species Breakdown'!D146=0,\"\",'4 - Species Breakdown'!D146)","v":""},{"$f":"IF('4 - Species Breakdown'!L146=0,\"\",'4 - Species Breakdown'!L146)","v":""},{"$f":"IF('4 - Species Breakdown'!M146=0,\"\",'4 - Species Breakdown'!M146)","v":""},{"$f":"IF('4 - Species Breakdown'!N146=0,\"\",'4 - Species Breakdown'!N146)","v":""},{"$f":"IFERROR(('4 - Species Breakdown'!J146/'WCC Summary'!$D$14)*100,\"\")","v":""},{"$f":"IF('4 - Species Breakdown'!J146=0,\"\",'4 - Species Breakdown'!J146)","v":""}]
[null,{"$f":"IF('4 - Species Breakdown'!B147=0,\"\",'4 - Species Breakdown'!B147)","v":""},{"$f":"IF('4 - Species Breakdown'!D147=0,\"\",'4 - Species Breakdown'!D147)","v":""},{"$f":"IF('4 - Species Breakdown'!L147=0,\"\",'4 - Species Breakdown'!L147)","v":""},{"$f":"IF('4 - Species Breakdown'!M147=0,\"\",'4 - Species Breakdown'!M147)","v":""},{"$f":"IF('4 - Species Breakdown'!N147=0,\"\",'4 - Species Breakdown'!N147)","v":""},{"$f":"IFERROR(('4 - Species Breakdown'!J147/'WCC Summary'!$D$14)*100,\"\")","v":""},{"$f":"IF('4 - Species Breakdown'!J147=0,\"\",'4 - Species Breakdown'!J147)","v":""}]
[null,{"$f":"IF('4 - Species Breakdown'!B148=0,\"\",'4 - Species Breakdown'!B148)","v":""},{"$f":"IF('4 - Species Breakdown'!D148=0,\"\",'4 - Species Breakdown'!D148)","v":""},{"$f":"IF('4 - Species Breakdown'!L148=0,\"\",'4 - Species Breakdown'!L148)","v":""},{"$f":"IF('4 - Species Breakdown'!M148=0,\"\",'4 - Species Breakdown'!M148)","v":""},{"$f":"IF('4 - Species Breakdown'!N148=0,\"\",'4 - Species Breakdown'!N148)","v":""},{"$f":"IFERROR(('4 - Species Breakdown'!J148/'WCC Summary'!$D$14)*100,\"\")","v":""},{"$f":"IF('4 - Species Breakdown'!J148=0,\"\",'4 - Species Breakdown'!J148)","v":""}]
[null,{"$f":"IF('4 - Species Breakdown'!B149=0,\"\",'4 - Species Breakdown'!B149)","v":""},{"$f":"IF('4 - Species Breakdown'!D149=0,\"\",'4 - Species Breakdown'!D149)","v":""},{"$f":"IF('4 - Species Breakdown'!L149=0,\"\",'4 - Species Breakdown'!L149)","v":""},{"$f":"IF('4 - Species Breakdown'!M149=0,\"\",'4 - Species Breakdown'!M149)","v":""},{"$f":"IF('4 - Species Breakdown'!N149=0,\"\",'4 - Species Breakdown'!N149)","v":""},{"$f":"IFERROR(('4 - Species Breakdown'!J149/'WCC Summary'!$D$14)*100,\"\")","v":""},{"$f":"IF('4 - Species Breakdown'!J149=0,\"\",'4 - Species Breakdown'!J149)","v":""}]
[null,{"$f":"IF('4 - Species Breakdown'!B150=0,\"\",'4 - Species Breakdown'!B150)","v":""},{"$f":"IF('4 - Species Breakdown'!D150=0,\"\",'4 - Species Breakdown'!D150)","v":""},{"$f":"IF('4 - Species Breakdown'!L150=0,\"\",'4 - Species Breakdown'!L150)","v":""},{"$f":"IF('4 - Species Breakdown'!M150=0,\"\",'4 - Species Breakdown'!M150)","v":""},{"$f":"IF('4 - Species Breakdown'!N150=0,\"\",'4 - Species Breakdown'!N150)","v":""},{"$f":"IFERROR(('4 - Species Breakdown'!J150/'WCC Summary'!$D$14)*100,\"\")","v":""},{"$f":"IF('4 - Species Breakdown'!J150=0,\"\",'4 - Species Breakdown'!J150)","v":""}]
[null,{"$f":"IF('4 - Species Breakdown'!B151=0,\"\",'4 - Species Breakdown'!B151)","v":""},{"$f":"IF('4 - Species Breakdown'!D151=0,\"\",'4 - Species Breakdown'!D151)","v":""},{"$f":"IF('4 - Species Breakdown'!L151=0,\"\",'4 - Species Breakdown'!L151)","v":""},{"$f":"IF('4 - Species Breakdown'!M151=0,\"\",'4 - Species Breakdown'!M151)","v":""},{"$f":"IF('4 - Species Breakdown'!N151=0,\"\",'4 - Species Breakdown'!N151)","v":""},{"$f":"IFERROR(('4 - Species Breakdown'!J151/'WCC Summary'!$D$14)*100,\"\")","v":""},{"$f":"IF('4 - Species Breakdown'!J151=0,\"\",'4 - Species Breakdown'!J151)","v":""}]
[null,{"$f":"IF('4 - Species Breakdown'!B152=0,\"\",'4 - Species Breakdown'!B152)","v":""},{"$f":"IF('4 - Species Breakdown'!D152=0,\"\",'4 - Species Breakdown'!D152)","v":""},{"$f":"IF('4 - Species Breakdown'!L152=0,\"\",'4 - Species Breakdown'!L152)","v":""},{"$f":"IF('4 - Species Breakdown'!M152=0,\"\",'4 - Species Breakdown'!M152)","v":""},{"$f":"IF('4 - Species Breakdown'!N152=0,\"\",'4 - Species Breakdown'!N152)","v":""},{"$f":"IFERROR(('4 - Species Breakdown'!J152/'WCC Summary'!$D$14)*100,\"\")","v":""},{"$f":"IF('4 - Species Breakdown'!J152=0,\"\",'4 - Species Breakdown'!J152)","v":""}]
[null,{"$f":"IF('4 - Species Breakdown'!B153=0,\"\",'4 - Species Breakdown'!B153)","v":""},{"$f":"IF('4 - Species Breakdown'!D153=0,\"\",'4 - Species Breakdown'!D153)","v":""},{"$f":"IF('4 - Species Breakdown'!L153=0,\"\",'4 - Species Breakdown'!L153)","v":""},{"$f":"IF('4 - Species Breakdown'!M153=0,\"\",'4 - Species Breakdown'!M153)","v":""},{"$f":"IF('4 - Species Breakdown'!N153=0,\"\",'4 - Species Breakdown'!N153)","v":""},{"$f":"IFERROR(('4 - Species Breakdown'!J153/'WCC Summary'!$D$14)*100,\"\")","v":""},{"$f":"IF('4 - Species Breakdown'!J153=0,\"\",'4 - Species Breakdown'!J153)","v":""}]
[null,{"$f":"IF('4 - Species Breakdown'!B154=0,\"\",'4 - Species Breakdown'!B154)","v":""},{"$f":"IF('4 - Species Breakdown'!D154=0,\"\",'4 - Species Breakdown'!D154)","v":""},{"$f":"IF('4 - Species Breakdown'!L154=0,\"\",'4 - Species Breakdown'!L154)","v":""},{"$f":"IF('4 - Species Breakdown'!M154=0,\"\",'4 - Species Breakdown'!M154)","v":""},{"$f":"IF('4 - Species Breakdown'!N154=0,\"\",'4 - Species Breakdown'!N154)","v":""},{"$f":"IFERROR(('4 - Species Breakdown'!J154/'WCC Summary'!$D$14)*100,\"\")","v":""},{"$f":"IF('4 - Species Breakdown'!J154=0,\"\",'4 - Species Breakdown'!J154)","v":""}]
[null,{"$f":"IF('4 - Species Breakdown'!B155=0,\"\",'4 - Species Breakdown'!B155)","v":""},{"$f":"IF('4 - Species Breakdown'!D155=0,\"\",'4 - Species Breakdown'!D155)","v":""},{"$f":"IF('4 - Species Breakdown'!L155=0,\"\",'4 - Species Breakdown'!L155)","v":""},{"$f":"IF('4 - Species Breakdown'!M155=0,\"\",'4 - Species Breakdown'!M155)","v":""},{"$f":"IF('4 - Species Breakdown'!N155=0,\"\",'4 - Species Breakdown'!N155)","v":""},{"$f":"IFERROR(('4 - Species Breakdown'!J155/'WCC Summary'!$D$14)*100,\"\")","v":""},{"$f":"IF('4 - Species Breakdown'!J155=0,\"\",'4 - Species Breakdown'!J155)","v":""}]
[null,{"$f":"IF('4 - Species Breakdown'!B156=0,\"\",'4 - Species Breakdown'!B156)","v":""},{"$f":"IF('4 - Species Breakdown'!D156=0,\"\",'4 - Species Breakdown'!D156)","v":""},{"$f":"IF('4 - Species Breakdown'!L156=0,\"\",'4 - Species Breakdown'!L156)","v":""},{"$f":"IF('4 - Species Breakdown'!M156=0,\"\",'4 - Species Breakdown'!M156)","v":""},{"$f":"IF('4 - Species Breakdown'!N156=0,\"\",'4 - Species Breakdown'!N156)","v":""},{"$f":"IFERROR(('4 - Species Breakdown'!J156/'WCC Summary'!$D$14)*100,\"\")","v":""},{"$f":"IF('4 - Species Breakdown'!J156=0,\"\",'4 - Species Breakdown'!J156)","v":""}]
[null,{"$f":"IF('4 - Species Breakdown'!B157=0,\"\",'4 - Species Breakdown'!B157)","v":""},{"$f":"IF('4 - Species Breakdown'!D157=0,\"\",'4 - Species Breakdown'!D157)","v":""},{"$f":"IF('4 - Species Breakdown'!L157=0,\"\",'4 - Species Breakdown'!L157)","v":""},{"$f":"IF('4 - Species Breakdown'!M157=0,\"\",'4 - Species Breakdown'!M157)","v":""},{"$f":"IF('4 - Species Breakdown'!N157=0,\"\",'4 - Species Breakdown'!N157)","v":""},{"$f":"IFERROR(('4 - Species Breakdown'!J157/'WCC Summary'!$D$14)*100,\"\")","v":""},{"$f":"IF('4 - Species Breakdown'!J157=0,\"\",'4 - Species Breakdown'!J157)","v":""}]
[null,{"$f":"IF('4 - Species Breakdown'!B158=0,\"\",'4 - Species Breakdown'!B158)","v":""},{"$f":"IF('4 - Species Breakdown'!D158=0,\"\",'4 - Species Breakdown'!D158)","v":""},{"$f":"IF('4 - Species Breakdown'!L158=0,\"\",'4 - Species Breakdown'!L158)","v":""},{"$f":"IF('4 - Species Breakdown'!M158=0,\"\",'4 - Species Breakdown'!M158)","v":""},{"$f":"IF('4 - Species Breakdown'!N158=0,\"\",'4 - Species Breakdown'!N158)","v":""},{"$f":"IFERROR(('4 - Species Breakdown'!J158/'WCC Summary'!$D$14)*100,\"\")","v":""},{"$f":"IF('4 - Species Breakdown'!J158=0,\"\",'4 - Species Breakdown'!J158)","v":""}]
[null,{"$f":"IF('4 - Species Breakdown'!B159=0,\"\",'4 - Species Breakdown'!B159)","v":""},{"$f":"IF('4 - Species Breakdown'!D159=0,\"\",'4 - Species Breakdown'!D159)","v":""},{"$f":"IF('4 - Species Breakdown'!L159=0,\"\",'4 - Species Breakdown'!L159)","v":""},{"$f":"IF('4 - Species Breakdown'!M159=0,\"\",'4 - Species Breakdown'!M159)","v":""},{"$f":"IF('4 - Species Breakdown'!N159=0,\"\",'4 - Species Breakdown'!N159)","v":""},{"$f":"IFERROR(('4 - Species Breakdown'!J159/'WCC Summary'!$D$14)*100,\"\")","v":""},{"$f":"IF('4 - Species Breakdown'!J159=0,\"\",'4 - Species Breakdown'!J159)","v":""}]
[null,{"$f":"IF('4 - Species Breakdown'!B160=0,\"\",'4 - Species Breakdown'!B160)","v":""},{"$f":"IF('4 - Species Breakdown'!D160=0,\"\",'4 - Species Breakdown'!D160)","v":""},{"$f":"IF('4 - Species Breakdown'!L160=0,\"\",'4 - Species Breakdown'!L160)","v":""},{"$f":"IF('4 - Species Breakdown'!M160=0,\"\",'4 - Species Breakdown'!M160)","v":""},{"$f":"IF('4 - Species Breakdown'!N160=0,\"\",'4 - Species Breakdown'!N160)","v":""},{"$f":"IFERROR(('4 - Species Breakdown'!J160/'WCC Summary'!$D$14)*100,\"\")","v":""},{"$f":"IF('4 - Species Breakdown'!J160=0,\"\",'4 - Species Breakdown'!J160)","v":""}]
[null,{"$f":"IF('4 - Species Breakdown'!B161=0,\"\",'4 - Species Breakdown'!B161)","v":""},{"$f":"IF('4 - Species Breakdown'!D161=0,\"\",'4 - Species Breakdown'!D161)","v":""},{"$f":"IF('4 - Species Breakdown'!L161=0,\"\",'4 - Species Breakdown'!L161)","v":""},{"$f":"IF('4 - Species Breakdown'!M161=0,\"\",'4 - Species Breakdown'!M161)","v":""},{"$f":"IF('4 - Species Breakdown'!N161=0,\"\",'4 - Species Breakdown'!N161)","v":""},{"$f":"IFERROR(('4 - Species Breakdown'!J161/'WCC Summary'!$D$14)*100,\"\")","v":""},{"$f":"IF('4 - Species Breakdown'!J161=0,\"\",'4 - Species Breakdown'!J161)","v":""}]
[null,{"$f":"IF('4 - Species Breakdown'!B162=0,\"\",'4 - Species Breakdown'!B162)","v":""},{"$f":"IF('4 - Species Breakdown'!D162=0,\"\",'4 - Species Breakdown'!D162)","v":""},{"$f":"IF('4 - Species Breakdown'!L162=0,\"\",'4 - Species Breakdown'!L162)","v":""},{"$f":"IF('4 - Species Breakdown'!M162=0,\"\",'4 - Species Breakdown'!M162)","v":""},{"$f":"IF('4 - Species Breakdown'!N162=0,\"\",'4 - Species Breakdown'!N162)","v":""},{"$f":"IFERROR(('4 - Species Breakdown'!J162/'WCC Summary'!$D$14)*100,\"\")","v":""},{"$f":"IF('4 - Species Breakdown'!J162=0,\"\",'4 - Species Breakdown'!J162)","v":""}]
[null,{"$f":"IF('4 - Species Breakdown'!B163=0,\"\",'4 - Species Breakdown'!B163)","v":""},{"$f":"IF('4 - Species Breakdown'!D163=0,\"\",'4 - Species Breakdown'!D163)","v":""},{"$f":"IF('4 - Species Breakdown'!L163=0,\"\",'4 - Species Breakdown'!L163)","v":""},{"$f":"IF('4 - Species Breakdown'!M163=0,\"\",'4 - Species Breakdown'!M163)","v":""},{"$f":"IF('4 - Species Breakdown'!N163=0,\"\",'4 - Species Breakdown'!N163)","v":""},{"$f":"IFERROR(('4 - Species Breakdown'!J163/'WCC Summary'!$D$14)*100,\"\")","v":""},{"$f":"IF('4 - Species Breakdown'!J163=0,\"\",'4 - Species Breakdown'!J163)","v":""}]
[null,{"$f":"IF('4 - Species Breakdown'!B164=0,\"\",'4 - Species Breakdown'!B164)","v":""},{"$f":"IF('4 - Species Breakdown'!D164=0,\"\",'4 - Species Breakdown'!D164)","v":""},{"$f":"IF('4 - Species Breakdown'!L164=0,\"\",'4 - Species Breakdown'!L164)","v":""},{"$f":"IF('4 - Species Breakdown'!M164=0,\"\",'4 - Species Breakdown'!M164)","v":""},{"$f":"IF('4 - Species Breakdown'!N164=0,\"\",'4 - Species Breakdown'!N164)","v":""},{"$f":"IFERROR(('4 - Species Breakdown'!J164/'WCC Summary'!$D$14)*100,\"\")","v":""},{"$f":"IF('4 - Species Breakdown'!J164=0,\"\",'4 - Species Breakdown'!J164)","v":""}]
[null,{"$f":"IF('4 - Species Breakdown'!B165=0,\"\",'4 - Species Breakdown'!B165)","v":""},{"$f":"IF('4 - Species Breakdown'!D165=0,\"\",'4 - Species Breakdown'!D165)","v":""},{"$f":"IF('4 - Species Breakdown'!L165=0,\"\",'4 - Species Breakdown'!L165)","v":""},{"$f":"IF('4 - Species Breakdown'!M165=0,\"\",'4 - Species Breakdown'!M165)","v":""},{"$f":"IF('4 - Species Breakdown'!N165=0,\"\",'4 - Species Breakdown'!N165)","v":""},{"$f":"IFERROR(('4 - Species Breakdown'!J165/'WCC Summary'!$D$14)*100,\"\")","v":""},{"$f":"IF('4 - Species Breakdown'!J165=0,\"\",'4 - Species Breakdown'!J165)","v":""}]
[null,{"$f":"IF('4 - Species Breakdown'!B166=0,\"\",'4 - Species Breakdown'!B166)","v":""},{"$f":"IF('4 - Species Breakdown'!D166=0,\"\",'4 - Species Breakdown'!D166)","v":""},{"$f":"IF('4 - Species Breakdown'!L166=0,\"\",'4 - Species Breakdown'!L166)","v":""},{"$f":"IF('4 - Species Breakdown'!M166=0,\"\",'4 - Species Breakdown'!M166)","v":""},{"$f":"IF('4 - Species Breakdown'!N166=0,\"\",'4 - Species Breakdown'!N166)","v":""},{"$f":"IFERROR(('4 - Species Breakdown'!J166/'WCC Summary'!$D$14)*100,\"\")","v":""},{"$f":"IF('4 - Species Breakdown'!J166=0,\"\",'4 - Species Breakdown'!J166)","v":""}]
[null,{"$f":"IF('4 - Species Breakdown'!B167=0,\"\",'4 - Species Breakdown'!B167)","v":""},{"$f":"IF('4 - Species Breakdown'!D167=0,\"\",'4 - Species Breakdown'!D167)","v":""},{"$f":"IF('4 - Species Breakdown'!L167=0,\"\",'4 - Species Breakdown'!L167)","v":""},{"$f":"IF('4 - Species Breakdown'!M167=0,\"\",'4 - Species Breakdown'!M167)","v":""},{"$f":"IF('4 - Species Breakdown'!N167=0,\"\",'4 - Species Breakdown'!N167)","v":""},{"$f":"IFERROR(('4 - Species Breakdown'!J167/'WCC Summary'!$D$14)*100,\"\")","v":""},{"$f":"IF('4 - Species Breakdown'!J167=0,\"\",'4 - Species Breakdown'!J167)","v":""}]
[null,{"$f":"IF('4 - Species Breakdown'!B168=0,\"\",'4 - Species Breakdown'!B168)","v":""},{"$f":"IF('4 - Species Breakdown'!D168=0,\"\",'4 - Species Breakdown'!D168)","v":""},{"$f":"IF('4 - Species Breakdown'!L168=0,\"\",'4 - Species Breakdown'!L168)","v":""},{"$f":"IF('4 - Species Breakdown'!M168=0,\"\",'4 - Species Breakdown'!M168)","v":""},{"$f":"IF('4 - Species Breakdown'!N168=0,\"\",'4 - Species Breakdown'!N168)","v":""},{"$f":"IFERROR(('4 - Species Breakdown'!J168/'WCC Summary'!$D$14)*100,\"\")","v":""},{"$f":"IF('4 - Species Breakdown'!J168=0,\"\",'4 - Species Breakdown'!J168)","v":""}]
[null,{"$f":"IF('4 - Species Breakdown'!B169=0,\"\",'4 - Species Breakdown'!B169)","v":""},{"$f":"IF('4 - Species Breakdown'!D169=0,\"\",'4 - Species Breakdown'!D169)","v":""},{"$f":"IF('4 - Species Breakdown'!L169=0,\"\",'4 - Species Breakdown'!L169)","v":""},{"$f":"IF('4 - Species Breakdown'!M169=0,\"\",'4 - Species Breakdown'!M169)","v":""},{"$f":"IF('4 - Species Breakdown'!N169=0,\"\",'4 - Species Breakdown'!N169)","v":""},{"$f":"IFERROR(('4 - Species Breakdown'!J169/'WCC Summary'!$D$14)*100,\"\")","v":""},{"$f":"IF('4 - Species Breakdown'!J169=0,\"\",'4 - Species Breakdown'!J169)","v":""}]
[null,{"$f":"IF('4 - Species Breakdown'!B170=0,\"\",'4 - Species Breakdown'!B170)","v":""},{"$f":"IF('4 - Species Breakdown'!D170=0,\"\",'4 - Species Breakdown'!D170)","v":""},{"$f":"IF('4 - Species Breakdown'!L170=0,\"\",'4 - Species Breakdown'!L170)","v":""},{"$f":"IF('4 - Species Breakdown'!M170=0,\"\",'4 - Species Breakdown'!M170)","v":""},{"$f":"IF('4 - Species Breakdown'!N170=0,\"\",'4 - Species Breakdown'!N170)","v":""},{"$f":"IFERROR(('4 - Species Breakdown'!J170/'WCC Summary'!$D$14)*100,\"\")","v":""},{"$f":"IF('4 - Species Breakdown'!J170=0,\"\",'4 - Species Breakdown'!J170)","v":""}]
[null,{"$f":"IF('4 - Species Breakdown'!B171=0,\"\",'4 - Species Breakdown'!B171)","v":""},{"$f":"IF('4 - Species Breakdown'!D171=0,\"\",'4 - Species Breakdown'!D171)","v":""},{"$f":"IF('4 - Species Breakdown'!L171=0,\"\",'4 - Species Breakdown'!L171)","v":""},{"$f":"IF('4 - Species Breakdown'!M171=0,\"\",'4 - Species Breakdown'!M171)","v":""},{"$f":"IF('4 - Species Breakdown'!N171=0,\"\",'4 - Species Breakdown'!N171)","v":""},{"$f":"IFERROR(('4 - Species Breakdown'!J171/'WCC Summary'!$D$14)*100,\"\")","v":""},{"$f":"IF('4 - Species Breakdown'!J171=0,\"\",'4 - Species Breakdown'!J171)","v":""}]
[null,{"$f":"IF('4 - Species Breakdown'!B172=0,\"\",'4 - Species Breakdown'!B172)","v":""},{"$f":"IF('4 - Species Breakdown'!D172=0,\"\",'4 - Species Breakdown'!D172)","v":""},{"$f":"IF('4 - Species Breakdown'!L172=0,\"\",'4 - Species Breakdown'!L172)","v":""},{"$f":"IF('4 - Species Breakdown'!M172=0,\"\",'4 - Species Breakdown'!M172)","v":""},{"$f":"IF('4 - Species Breakdown'!N172=0,\"\",'4 - Species Breakdown'!N172)","v":""},{"$f":"IFERROR(('4 - Species Breakdown'!J172/'WCC Summary'!$D$14)*100,\"\")","v":""},{"$f":"IF('4 - Species Breakdown'!J172=0,\"\",'4 - Species Breakdown'!J172)","v":""}]
[null,{"$f":"IF('4 - Species Breakdown'!B173=0,\"\",'4 - Species Breakdown'!B173)","v":""},{"$f":"IF('4 - Species Breakdown'!D173=0,\"\",'4 - Species Breakdown'!D173)","v":""},{"$f":"IF('4 - Species Breakdown'!L173=0,\"\",'4 - Species Breakdown'!L173)","v":""},{"$f":"IF('4 - Species Breakdown'!M173=0,\"\",'4 - Species Breakdown'!M173)","v":""},{"$f":"IF('4 - Species Breakdown'!N173=0,\"\",'4 - Species Breakdown'!N173)","v":""},{"$f":"IFERROR(('4 - Species Breakdown'!J173/'WCC Summary'!$D$14)*100,\"\")","v":""},{"$f":"IF('4 - Species Breakdown'!J173=0,\"\",'4 - Species Breakdown'!J173)","v":""}]
[null,{"$f":"IF('4 - Species Breakdown'!B174=0,\"\",'4 - Species Breakdown'!B174)","v":""},{"$f":"IF('4 - Species Breakdown'!D174=0,\"\",'4 - Species Breakdown'!D174)","v":""},{"$f":"IF('4 - Species Breakdown'!L174=0,\"\",'4 - Species Breakdown'!L174)","v":""},{"$f":"IF('4 - Species Breakdown'!M174=0,\"\",'4 - Species Breakdown'!M174)","v":""},{"$f":"IF('4 - Species Breakdown'!N174=0,\"\",'4 - Species Breakdown'!N174)","v":""},{"$f":"IFERROR(('4 - Species Breakdown'!J174/'WCC Summary'!$D$14)*100,\"\")","v":""},{"$f":"IF('4 - Species Breakdown'!J174=0,\"\",'4 - Species Breakdown'!J174)","v":""}]
[null,{"$f":"IF('4 - Species Breakdown'!B175=0,\"\",'4 - Species Breakdown'!B175)","v":""},{"$f":"IF('4 - Species Breakdown'!D175=0,\"\",'4 - Species Breakdown'!D175)","v":""},{"$f":"IF('4 - Species Breakdown'!L175=0,\"\",'4 - Species Breakdown'!L175)","v":""},{"$f":"IF('4 - Species Breakdown'!M175=0,\"\",'4 - Species Breakdown'!M175)","v":""},{"$f":"IF('4 - Species Breakdown'!N175=0,\"\",'4 - Species Breakdown'!N175)","v":""},{"$f":"IFERROR(('4 - Species Breakdown'!J175/'WCC Summary'!$D$14)*100,\"\")","v":""},{"$f":"IF('4 - Species Breakdown'!J175=0,\"\",'4 - Species Breakdown'!J175)","v":""}]
[null,{"$f":"IF('4 - Species Breakdown'!B176=0,\"\",'4 - Species Breakdown'!B176)","v":""},{"$f":"IF('4 - Species Breakdown'!D176=0,\"\",'4 - Species Breakdown'!D176)","v":""},{"$f":"IF('4 - Species Breakdown'!L176=0,\"\",'4 - Species Breakdown'!L176)","v":""},{"$f":"IF('4 - Species Breakdown'!M176=0,\"\",'4 - Species Breakdown'!M176)","v":""},{"$f":"IF('4 - Species Breakdown'!N176=0,\"\",'4 - Species Breakdown'!N176)","v":""},{"$f":"IFERROR(('4 - Species Breakdown'!J176/'WCC Summary'!$D$14)*100,\"\")","v":""},{"$f":"IF('4 - Species Breakdown'!J176=0,\"\",'4 - Species Breakdown'!J176)","v":""}]
[null,{"$f":"IF('4 - Species Breakdown'!B177=0,\"\",'4 - Species Breakdown'!B177)","v":""},{"$f":"IF('4 - Species Breakdown'!D177=0,\"\",'4 - Species Breakdown'!D177)","v":""},{"$f":"IF('4 - Species Breakdown'!L177=0,\"\",'4 - Species Breakdown'!L177)","v":""},{"$f":"IF('4 - Species Breakdown'!M177=0,\"\",'4 - Species Breakdown'!M177)","v":""},{"$f":"IF('4 - Species Breakdown'!N177=0,\"\",'4 - Species Breakdown'!N177)","v":""},{"$f":"IFERROR(('4 - Species Breakdown'!J177/'WCC Summary'!$D$14)*100,\"\")","v":""},{"$f":"IF('4 - Species Breakdown'!J177=0,\"\",'4 - Species Breakdown'!J177)","v":""}]
[null,{"$f":"IF('4 - Species Breakdown'!B178=0,\"\",'4 - Species Breakdown'!B178)","v":""},{"$f":"IF('4 - Species Breakdown'!D178=0,\"\",'4 - Species Breakdown'!D178)","v":""},{"$f":"IF('4 - Species Breakdown'!L178=0,\"\",'4 - Species Breakdown'!L178)","v":""},{"$f":"IF('4 - Species Breakdown'!M178=0,\"\",'4 - Species Breakdown'!M178)","v":""},{"$f":"IF('4 - Species Breakdown'!N178=0,\"\",'4 - Species Breakdown'!N178)","v":""},{"$f":"IFERROR(('4 - Species Breakdown'!J178/'WCC Summary'!$D$14)*100,\"\")","v":""},{"$f":"IF('4 - Species Breakdown'!J178=0,\"\",'4 - Species Breakdown'!J178)","v":""}]
[null,{"$f":"IF('4 - Species Breakdown'!B179=0,\"\",'4 - Species Breakdown'!B179)","v":""},{"$f":"IF('4 - Species Breakdown'!D179=0,\"\",'4 - Species Breakdown'!D179)","v":""},{"$f":"IF('4 - Species Breakdown'!L179=0,\"\",'4 - Species Breakdown'!L179)","v":""},{"$f":"IF('4 - Species Breakdown'!M179=0,\"\",'4 - Species Breakdown'!M179)","v":""},{"$f":"IF('4 - Species Breakdown'!N179=0,\"\",'4 - Species Breakdown'!N179)","v":""},{"$f":"IFERROR(('4 - Species Breakdown'!J179/'WCC Summary'!$D$14)*100,\"\")","v":""},{"$f":"IF('4 - Species Breakdown'!J179=0,\"\",'4 - Species Breakdown'!J179)","v":""}]
[null,{"$f":"IF('4 - Species Breakdown'!B180=0,\"\",'4 - Species Breakdown'!B180)","v":""},{"$f":"IF('4 - Species Breakdown'!D180=0,\"\",'4 - Species Breakdown'!D180)","v":""},{"$f":"IF('4 - Species Breakdown'!L180=0,\"\",'4 - Species Breakdown'!L180)","v":""},{"$f":"IF('4 - Species Breakdown'!M180=0,\"\",'4 - Species Breakdown'!M180)","v":""},{"$f":"IF('4 - Species Breakdown'!N180=0,\"\",'4 - Species Breakdown'!N180)","v":""},{"$f":"IFERROR(('4 - Species Breakdown'!J180/'WCC Summary'!$D$14)*100,\"\")","v":""},{"$f":"IF('4 - Species Breakdown'!J180=0,\"\",'4 - Species Breakdown'!J180)","v":""}]
[null,{"$f":"IF('4 - Species Breakdown'!B181=0,\"\",'4 - Species Breakdown'!B181)","v":""},{"$f":"IF('4 - Species Breakdown'!D181=0,\"\",'4 - Species Breakdown'!D181)","v":""},{"$f":"IF('4 - Species Breakdown'!L181=0,\"\",'4 - Species Breakdown'!L181)","v":""},{"$f":"IF('4 - Species Breakdown'!M181=0,\"\",'4 - Species Breakdown'!M181)","v":""},{"$f":"IF('4 - Species Breakdown'!N181=0,\"\",'4 - Species Breakdown'!N181)","v":""},{"$f":"IFERROR(('4 - Species Breakdown'!J181/'WCC Summary'!$D$14)*100,\"\")","v":""},{"$f":"IF('4 - Species Breakdown'!J181=0,\"\",'4 - Species Breakdown'!J181)","v":""}]
[null,{"$f":"IF('4 - Species Breakdown'!B182=0,\"\",'4 - Species Breakdown'!B182)","v":""},{"$f":"IF('4 - Species Breakdown'!D182=0,\"\",'4 - Species Breakdown'!D182)","v":""},{"$f":"IF('4 - Species Breakdown'!L182=0,\"\",'4 - Species Breakdown'!L182)","v":""},{"$f":"IF('4 - Species Breakdown'!M182=0,\"\",'4 - Species Breakdown'!M182)","v":""},{"$f":"IF('4 - Species Breakdown'!N182=0,\"\",'4 - Species Breakdown'!N182)","v":""},{"$f":"IFERROR(('4 - Species Breakdown'!J182/'WCC Summary'!$D$14)*100,\"\")","v":""},{"$f":"IF('4 - Species Breakdown'!J182=0,\"\",'4 - Species Breakdown'!J182)","v":""}]
[null,{"$f":"IF('4 - Species Breakdown'!B183=0,\"\",'4 - Species Breakdown'!B183)","v":""},{"$f":"IF('4 - Species Breakdown'!D183=0,\"\",'4 - Species Breakdown'!D183)","v":""},{"$f":"IF('4 - Species Breakdown'!L183=0,\"\",'4 - Species Breakdown'!L183)","v":""},{"$f":"IF('4 - Species Breakdown'!M183=0,\"\",'4 - Species Breakdown'!M183)","v":""},{"$f":"IF('4 - Species Breakdown'!N183=0,\"\",'4 - Species Breakdown'!N183)","v":""},{"$f":"IFERROR(('4 - Species Breakdown'!J183/'WCC Summary'!$D$14)*100,\"\")","v":""},{"$f":"IF('4 - Species Breakdown'!J183=0,\"\",'4 - Species Breakdown'!J183)","v":""}]
[null,{"$f":"IF('4 - Species Breakdown'!B184=0,\"\",'4 - Species Breakdown'!B184)","v":""},{"$f":"IF('4 - Species Breakdown'!D184=0,\"\",'4 - Species Breakdown'!D184)","v":""},{"$f":"IF('4 - Species Breakdown'!L184=0,\"\",'4 - Species Breakdown'!L184)","v":""},{"$f":"IF('4 - Species Breakdown'!M184=0,\"\",'4 - Species Breakdown'!M184)","v":""},{"$f":"IF('4 - Species Breakdown'!N184=0,\"\",'4 - Species Breakdown'!N184)","v":""},{"$f":"IFERROR(('4 - Species Breakdown'!J184/'WCC Summary'!$D$14)*100,\"\")","v":""},{"$f":"IF('4 - Species Breakdown'!J184=0,\"\",'4 - Species Breakdown'!J184)","v":""}]
[null,{"$f":"IF('4 - Species Breakdown'!B185=0,\"\",'4 - Species Breakdown'!B185)","v":""},{"$f":"IF('4 - Species Breakdown'!D185=0,\"\",'4 - Species Breakdown'!D185)","v":""},{"$f":"IF('4 - Species Breakdown'!L185=0,\"\",'4 - Species Breakdown'!L185)","v":""},{"$f":"IF('4 - Species Breakdown'!M185=0,\"\",'4 - Species Breakdown'!M185)","v":""},{"$f":"IF('4 - Species Breakdown'!N185=0,\"\",'4 - Species Breakdown'!N185)","v":""},{"$f":"IFERROR(('4 - Species Breakdown'!J185/'WCC Summary'!$D$14)*100,\"\")","v":""},{"$f":"IF('4 - Species Breakdown'!J185=0,\"\",'4 - Species Breakdown'!J185)","v":""}]
[null,{"$f":"IF('4 - Species Breakdown'!B186=0,\"\",'4 - Species Breakdown'!B186)","v":""},{"$f":"IF('4 - Species Breakdown'!D186=0,\"\",'4 - Species Breakdown'!D186)","v":""},{"$f":"IF('4 - Species Breakdown'!L186=0,\"\",'4 - Species Breakdown'!L186)","v":""},{"$f":"IF('4 - Species Breakdown'!M186=0,\"\",'4 - Species Breakdown'!M186)","v":""},{"$f":"IF('4 - Species Breakdown'!N186=0,\"\",'4 - Species Breakdown'!N186)","v":""},{"$f":"IFERROR(('4 - Species Breakdown'!J186/'WCC Summary'!$D$14)*100,\"\")","v":""},{"$f":"IF('4 - Species Breakdown'!J186=0,\"\",'4 - Species Breakdown'!J186)","v":""}]
[null,{"$f":"IF('4 - Species Breakdown'!B187=0,\"\",'4 - Species Breakdown'!B187)","v":""},{"$f":"IF('4 - Species Breakdown'!D187=0,\"\",'4 - Species Breakdown'!D187)","v":""},{"$f":"IF('4 - Species Breakdown'!L187=0,\"\",'4 - Species Breakdown'!L187)","v":""},{"$f":"IF('4 - Species Breakdown'!M187=0,\"\",'4 - Species Breakdown'!M187)","v":""},{"$f":"IF('4 - Species Breakdown'!N187=0,\"\",'4 - Species Breakdown'!N187)","v":""},{"$f":"IFERROR(('4 - Species Breakdown'!J187/'WCC Summary'!$D$14)*100,\"\")","v":""},{"$f":"IF('4 - Species Breakdown'!J187=0,\"\",'4 - Species Breakdown'!J187)","v":""}]
[null,{"$f":"IF('4 - Species Breakdown'!B188=0,\"\",'4 - Species Breakdown'!B188)","v":""},{"$f":"IF('4 - Species Breakdown'!D188=0,\"\",'4 - Species Breakdown'!D188)","v":""},{"$f":"IF('4 - Species Breakdown'!L188=0,\"\",'4 - Species Breakdown'!L188)","v":""},{"$f":"IF('4 - Species Breakdown'!M188=0,\"\",'4 - Species Breakdown'!M188)","v":""},{"$f":"IF('4 - Species Breakdown'!N188=0,\"\",'4 - Species Breakdown'!N188)","v":""},{"$f":"IFERROR(('4 - Species Breakdown'!J188/'WCC Summary'!$D$14)*100,\"\")","v":""},{"$f":"IF('4 - Species Breakdown'!J188=0,\"\",'4 - Species Breakdown'!J188)","v":""}]
[null,{"$f":"IF('4 - Species Breakdown'!B189=0,\"\",'4 - Species Breakdown'!B189)","v":""},{"$f":"IF('4 - Species Breakdown'!D189=0,\"\",'4 - Species Breakdown'!D189)","v":""},{"$f":"IF('4 - Species Breakdown'!L189=0,\"\",'4 - Species Breakdown'!L189)","v":""},{"$f":"IF('4 - Species Breakdown'!M189=0,\"\",'4 - Species Breakdown'!M189)","v":""},{"$f":"IF('4 - Species Breakdown'!N189=0,\"\",'4 - Species Breakdown'!N189)","v":""},{"$f":"IFERROR(('4 - Species Breakdown'!J189/'WCC Summary'!$D$14)*100,\"\")","v":""},{"$f":"IF('4 - Species Breakdown'!J189=0,\"\",'4 - Species Breakdown'!J189)","v":""}]
[null,{"$f":"IF('4 - Species Breakdown'!B190=0,\"\",'4 - Species Breakdown'!B190)","v":""},{"$f":"IF('4 - Species Breakdown'!D190=0,\"\",'4 - Species Breakdown'!D190)","v":""},{"$f":"IF('4 - Species Breakdown'!L190=0,\"\",'4 - Species Breakdown'!L190)","v":""},{"$f":"IF('4 - Species Breakdown'!M190=0,\"\",'4 - Species Breakdown'!M190)","v":""},{"$f":"IF('4 - Species Breakdown'!N190=0,\"\",'4 - Species Breakdown'!N190)","v":""},{"$f":"IFERROR(('4 - Species Breakdown'!J190/'WCC Summary'!$D$14)*100,\"\")","v":""},{"$f":"IF('4 - Species Breakdown'!J190=0,\"\",'4 - Species Breakdown'!J190)","v":""}]
[null,{"$f":"IF('4 - Species Breakdown'!B191=0,\"\",'4 - Species Breakdown'!B191)","v":""},{"$f":"IF('4 - Species Breakdown'!D191=0,\"\",'4 - Species Breakdown'!D191)","v":""},{"$f":"IF('4 - Species Breakdown'!L191=0,\"\",'4 - Species Breakdown'!L191)","v":""},{"$f":"IF('4 - Species Breakdown'!M191=0,\"\",'4 - Species Breakdown'!M191)","v":""},{"$f":"IF('4 - Species Breakdown'!N191=0,\"\",'4 - Species Breakdown'!N191)","v":""},{"$f":"IFERROR(('4 - Species Breakdown'!J191/'WCC Summary'!$D$14)*100,\"\")","v":""},{"$f":"IF('4 - Species Breakdown'!J191=0,\"\",'4 - Species Breakdown'!J191)","v":""}]
[null,{"$f":"IF('4 - Species Breakdown'!B192=0,\"\",'4 - Species Breakdown'!B192)","v":""},{"$f":"IF('4 - Species Breakdown'!D192=0,\"\",'4 - Species Breakdown'!D192)","v":""},{"$f":"IF('4 - Species Breakdown'!L192=0,\"\",'4 - Species Breakdown'!L192)","v":""},{"$f":"IF('4 - Species Breakdown'!M192=0,\"\",'4 - Species Breakdown'!M192)","v":""},{"$f":"IF('4 - Species Breakdown'!N192=0,\"\",'4 - Species Breakdown'!N192)","v":""},{"$f":"IFERROR(('4 - Species Breakdown'!J192/'WCC Summary'!$D$14)*100,\"\")","v":""},{"$f":"IF('4 - Species Breakdown'!J192=0,\"\",'4 - Species Breakdown'!J192)","v":""}]
[null,{"$f":"IF('4 - Species Breakdown'!B193=0,\"\",'4 - Species Breakdown'!B193)","v":""},{"$f":"IF('4 - Species Breakdown'!D193=0,\"\",'4 - Species Breakdown'!D193)","v":""},{"$f":"IF('4 - Species Breakdown'!L193=0,\"\",'4 - Species Breakdown'!L193)","v":""},{"$f":"IF('4 - Species Breakdown'!M193=0,\"\",'4 - Species Breakdown'!M193)","v":""},{"$f":"IF('4 - Species Breakdown'!N193=0,\"\",'4 - Species Breakdown'!N193)","v":""},{"$f":"IFERROR(('4 - Species Breakdown'!J193/'WCC Summary'!$D$14)*100,\"\")","v":""},{"$f":"IF('4 - Species Breakdown'!J193=0,\"\",'4 - Species Breakdown'!J193)","v":""}]
[null,{"$f":"IF('4 - Species Breakdown'!B194=0,\"\",'4 - Species Breakdown'!B194)","v":""},{"$f":"IF('4 - Species Breakdown'!D194=0,\"\",'4 - Species Breakdown'!D194)","v":""},{"$f":"IF('4 - Species Breakdown'!L194=0,\"\",'4 - Species Breakdown'!L194)","v":""},{"$f":"IF('4 - Species Breakdown'!M194=0,\"\",'4 - Species Breakdown'!M194)","v":""},{"$f":"IF('4 - Species Breakdown'!N194=0,\"\",'4 - Species Breakdown'!N194)","v":""},{"$f":"IFERROR(('4 - Species Breakdown'!J194/'WCC Summary'!$D$14)*100,\"\")","v":""},{"$f":"IF('4 - Species Breakdown'!J194=0,\"\",'4 - Species Breakdown'!J194)","v":""}]
[null,{"$f":"IF('4 - Species Breakdown'!B195=0,\"\",'4 - Species Breakdown'!B195)","v":""},{"$f":"IF('4 - Species Breakdown'!D195=0,\"\",'4 - Species Breakdown'!D195)","v":""},{"$f":"IF('4 - Species Breakdown'!L195=0,\"\",'4 - Species Breakdown'!L195)","v":""},{"$f":"IF('4 - Species Breakdown'!M195=0,\"\",'4 - Species Breakdown'!M195)","v":""},{"$f":"IF('4 - Species Breakdown'!N195=0,\"\",'4 - Species Breakdown'!N195)","v":""},{"$f":"IFERROR(('4 - Species Breakdown'!J195/'WCC Summary'!$D$14)*100,\"\")","v":""},{"$f":"IF('4 - Species Breakdown'!J195=0,\"\",'4 - Species Breakdown'!J195)","v":""}]
[null,{"$f":"IF('4 - Species Breakdown'!B196=0,\"\",'4 - Species Breakdown'!B196)","v":""},{"$f":"IF('4 - Species Breakdown'!D196=0,\"\",'4 - Species Breakdown'!D196)","v":""},{"$f":"IF('4 - Species Breakdown'!L196=0,\"\",'4 - Species Breakdown'!L196)","v":""},{"$f":"IF('4 - Species Breakdown'!M196=0,\"\",'4 - Species Breakdown'!M196)","v":""},{"$f":"IF('4 - Species Breakdown'!N196=0,\"\",'4 - Species Breakdown'!N196)","v":""},{"$f":"IFERROR(('4 - Species Breakdown'!J196/'WCC Summary'!$D$14)*100,\"\")","v":""},{"$f":"IF('4 - Species Breakdown'!J196=0,\"\",'4 - Species Breakdown'!J196)","v":""}]
[null,{"$f":"IF('4 - Species Breakdown'!B197=0,\"\",'4 - Species Breakdown'!B197)","v":""},{"$f":"IF('4 - Species Breakdown'!D197=0,\"\",'4 - Species Breakdown'!D197)","v":""},{"$f":"IF('4 - Species Breakdown'!L197=0,\"\",'4 - Species Breakdown'!L197)","v":""},{"$f":"IF('4 - Species Breakdown'!M197=0,\"\",'4 - Species Breakdown'!M197)","v":""},{"$f":"IF('4 - Species Breakdown'!N197=0,\"\",'4 - Species Breakdown'!N197)","v":""},{"$f":"IFERROR(('4 - Species Breakdown'!J197/'WCC Summary'!$D$14)*100,\"\")","v":""},{"$f":"IF('4 - Species Breakdown'!J197=0,\"\",'4 - Species Breakdown'!J197)","v":""}]
[null,{"$f":"IF('4 - Species Breakdown'!B198=0,\"\",'4 - Species Breakdown'!B198)","v":""},{"$f":"IF('4 - Species Breakdown'!D198=0,\"\",'4 - Species Breakdown'!D198)","v":""},{"$f":"IF('4 - Species Breakdown'!L198=0,\"\",'4 - Species Breakdown'!L198)","v":""},{"$f":"IF('4 - Species Breakdown'!M198=0,\"\",'4 - Species Breakdown'!M198)","v":""},{"$f":"IF('4 - Species Breakdown'!N198=0,\"\",'4 - Species Breakdown'!N198)","v":""},{"$f":"IFERROR(('4 - Species Breakdown'!J198/'WCC Summary'!$D$14)*100,\"\")","v":""},{"$f":"IF('4 - Species Breakdown'!J198=0,\"\",'4 - Species Breakdown'!J198)","v":""}]
[null,{"$f":"IF('4 - Species Breakdown'!B199=0,\"\",'4 - Species Breakdown'!B199)","v":""},{"$f":"IF('4 - Species Breakdown'!D199=0,\"\",'4 - Species Breakdown'!D199)","v":""},{"$f":"IF('4 - Species Breakdown'!L199=0,\"\",'4 - Species Breakdown'!L199)","v":""},{"$f":"IF('4 - Species Breakdown'!M199=0,\"\",'4 - Species Breakdown'!M199)","v":""},{"$f":"IF('4 - Species Breakdown'!N199=0,\"\",'4 - Species Breakdown'!N199)","v":""},{"$f":"IFERROR(('4 - Species Breakdown'!J199/'WCC Summary'!$D$14)*100,\"\")","v":""},{"$f":"IF('4 - Species Breakdown'!J199=0,\"\",'4 - Species Breakdown'!J199)","v":""}]
[null,{"$f":"IF('4 - Species Breakdown'!B200=0,\"\",'4 - Species Breakdown'!B200)","v":""},{"$f":"IF('4 - Species Breakdown'!D200=0,\"\",'4 - Species Breakdown'!D200)","v":""},{"$f":"IF('4 - Species Breakdown'!L200=0,\"\",'4 - Species Breakdown'!L200)","v":""},{"$f":"IF('4 - Species Breakdown'!M200=0,\"\",'4 - Species Breakdown'!M200)","v":""},{"$f":"IF('4 - Species Breakdown'!N200=0,\"\",'4 - Species Breakdown'!N200)","v":""},{"$f":"IFERROR(('4 - Species Breakdown'!J200/'WCC Summary'!$D$14)*100,\"\")","v":""},{"$f":"IF('4 - Species Breakdown'!J200=0,\"\",'4 - Species Breakdown'!J200)","v":""}]
[null,{"$f":"IF('4 - Species Breakdown'!B201=0,\"\",'4 - Species Breakdown'!B201)","v":""},{"$f":"IF('4 - Species Breakdown'!D201=0,\"\",'4 - Species Breakdown'!D201)","v":""},{"$f":"IF('4 - Species Breakdown'!L201=0,\"\",'4 - Species Breakdown'!L201)","v":""},{"$f":"IF('4 - Species Breakdown'!M201=0,\"\",'4 - Species Breakdown'!M201)","v":""},{"$f":"IF('4 - Species Breakdown'!N201=0,\"\",'4 - Species Breakdown'!N201)","v":""},{"$f":"IFERROR(('4 - Species Breakdown'!J201/'WCC Summary'!$D$14)*100,\"\")","v":""},{"$f":"IF('4 - Species Breakdown'!J201=0,\"\",'4 - Species Breakdown'!J201)","v":""}]
[null,{"$f":"IF('4 - Species Breakdown'!B202=0,\"\",'4 - Species Breakdown'!B202)","v":""},{"$f":"IF('4 - Species Breakdown'!D202=0,\"\",'4 - Species Breakdown'!D202)","v":""},{"$f":"IF('4 - Species Breakdown'!L202=0,\"\",'4 - Species Breakdown'!L202)","v":""},{"$f":"IF('4 - Species Breakdown'!M202=0,\"\",'4 - Species Breakdown'!M202)","v":""},{"$f":"IF('4 - Species Breakdown'!N202=0,\"\",'4 - Species Breakdown'!N202)","v":""},{"$f":"IFERROR(('4 - Species Breakdown'!J202/'WCC Summary'!$D$14)*100,\"\")","v":""},{"$f":"IF('4 - Species Breakdown'!J202=0,\"\",'4 - Species Breakdown'!J202)","v":""}]
[null,{"$f":"IF('4 - Species Breakdown'!B203=0,\"\",'4 - Species Breakdown'!B203)","v":""},{"$f":"IF('4 - Species Breakdown'!D203=0,\"\",'4 - Species Breakdown'!D203)","v":""},{"$f":"IF('4 - Species Breakdown'!L203=0,\"\",'4 - Species Breakdown'!L203)","v":""},{"$f":"IF('4 - Species Breakdown'!M203=0,\"\",'4 - Species Breakdown'!M203)","v":""},{"$f":"IF('4 - Species Breakdown'!N203=0,\"\",'4 - Species Breakdown'!N203)","v":""},{"$f":"IFERROR(('4 - Species Breakdown'!J203/'WCC Summary'!$D$14)*100,\"\")","v":""},{"$f":"IF('4 - Species Breakdown'!J203=0,\"\",'4 - Species Breakdown'!J203)","v":""}]
[null,{"$f":"IF('4 - Species Breakdown'!B204=0,\"\",'4 - Species Breakdown'!B204)","v":""},{"$f":"IF('4 - Species Breakdown'!D204=0,\"\",'4 - Species Breakdown'!D204)","v":""},{"$f":"IF('4 - Species Breakdown'!L204=0,\"\",'4 - Species Breakdown'!L204)","v":""},{"$f":"IF('4 - Species Breakdown'!M204=0,\"\",'4 - Species Breakdown'!M204)","v":""},{"$f":"IF('4 - Species Breakdown'!N204=0,\"\",'4 - Species Breakdown'!N204)","v":""},{"$f":"IFERROR(('4 - Species Breakdown'!J204/'WCC Summary'!$D$14)*100,\"\")","v":""},{"$f":"IF('4 - Species Breakdown'!J204=0,\"\",'4 - Species Breakdown'!J204)","v":""}]
[null,{"$f":"IF('4 - Species Breakdown'!B205=0,\"\",'4 - Species Breakdown'!B205)","v":""},{"$f":"IF('4 - Species Breakdown'!D205=0,\"\",'4 - Species Breakdown'!D205)","v":""},{"$f":"IF('4 - Species Breakdown'!L205=0,\"\",'4 - Species Breakdown'!L205)","v":""},{"$f":"IF('4 - Species Breakdown'!M205=0,\"\",'4 - Species Breakdown'!M205)","v":""},{"$f":"IF('4 - Species Breakdown'!N205=0,\"\",'4 - Species Breakdown'!N205)","v":""},{"$f":"IFERROR(('4 - Species Breakdown'!J205/'WCC Summary'!$D$14)*100,\"\")","v":""},{"$f":"IF('4 - Species Breakdown'!J205=0,\"\",'4 - Species Breakdown'!J205)","v":""}]
[null,{"$f":"IF('4 - Species Breakdown'!B206=0,\"\",'4 - Species Breakdown'!B206)","v":""},{"$f":"IF('4 - Species Breakdown'!D206=0,\"\",'4 - Species Breakdown'!D206)","v":""},{"$f":"IF('4 - Species Breakdown'!L206=0,\"\",'4 - Species Breakdown'!L206)","v":""},{"$f":"IF('4 - Species Breakdown'!M206=0,\"\",'4 - Species Breakdown'!M206)","v":""},{"$f":"IF('4 - Species Breakdown'!N206=0,\"\",'4 - Species Breakdown'!N206)","v":""},{"$f":"IFERROR(('4 - Species Breakdown'!J206/'WCC Summary'!$D$14)*100,\"\")","v":""},{"$f":"IF('4 - Species Breakdown'!J206=0,\"\",'4 - Species Breakdown'!J206)","v":""}]
[null,{"$f":"IF('4 - Species Breakdown'!B207=0,\"\",'4 - Species Breakdown'!B207)","v":""},{"$f":"IF('4 - Species Breakdown'!D207=0,\"\",'4 - Species Breakdown'!D207)","v":""},{"$f":"IF('4 - Species Breakdown'!L207=0,\"\",'4 - Species Breakdown'!L207)","v":""},{"$f":"IF('4 - Species Breakdown'!M207=0,\"\",'4 - Species Breakdown'!M207)","v":""},{"$f":"IF('4 - Species Breakdown'!N207=0,\"\",'4 - Species Breakdown'!N207)","v":""},{"$f":"IFERROR(('4 - Species Breakdown'!J207/'WCC Summary'!$D$14)*100,\"\")","v":""},{"$f":"IF('4 - Species Breakdown'!J207=0,\"\",'4 - Species Breakdown'!J207)","v":""}]
[null,{"$f":"IF('4 - Species Breakdown'!B208=0,\"\",'4 - Species Breakdown'!B208)","v":""},{"$f":"IF('4 - Species Breakdown'!D208=0,\"\",'4 - Species Breakdown'!D208)","v":""},{"$f":"IF('4 - Species Breakdown'!L208=0,\"\",'4 - Species Breakdown'!L208)","v":""},{"$f":"IF('4 - Species Breakdown'!M208=0,\"\",'4 - Species Breakdown'!M208)","v":""},{"$f":"IF('4 - Species Breakdown'!N208=0,\"\",'4 - Species Breakdown'!N208)","v":""},{"$f":"IFERROR(('4 - Species Breakdown'!J208/'WCC Summary'!$D$14)*100,\"\")","v":""},{"$f":"IF('4 - Species Breakdown'!J208=0,\"\",'4 - Species Breakdown'!J208)","v":""}]
[null,{"$f":"IF('4 - Species Breakdown'!B209=0,\"\",'4 - Species Breakdown'!B209)","v":""},{"$f":"IF('4 - Species Breakdown'!D209=0,\"\",'4 - Species Breakdown'!D209)","v":""},{"$f":"IF('4 - Species Breakdown'!L209=0,\"\",'4 - Species Breakdown'!L209)","v":""},{"$f":"IF('4 - Species Breakdown'!M209=0,\"\",'4 - Species Breakdown'!M209)","v":""},{"$f":"IF('4 - Species Breakdown'!N209=0,\"\",'4 - Species Breakdown'!N209)","v":""},{"$f":"IFERROR(('4 - Species Breakdown'!J209/'WCC Summary'!$D$14)*100,\"\")","v":""},{"$f":"IF('4 - Species Breakdown'!J209=0,\"\",'4 - Species Breakdown'!J209)","v":""}]
[null,{"$f":"IF('4 - Species Breakdown'!B210=0,\"\",'4 - Species Breakdown'!B210)","v":""},{"$f":"IF('4 - Species Breakdown'!D210=0,\"\",'4 - Species Breakdown'!D210)","v":""},{"$f":"IF('4 - Species Breakdown'!L210=0,\"\",'4 - Species Breakdown'!L210)","v":""},{"$f":"IF('4 - Species Breakdown'!M210=0,\"\",'4 - Species Breakdown'!M210)","v":""},{"$f":"IF('4 - Species Breakdown'!N210=0,\"\",'4 - Species Breakdown'!N210)","v":""},{"$f":"IFERROR(('4 - Species Breakdown'!J210/'WCC Summary'!$D$14)*100,\"\")","v":""},{"$f":"IF('4 - Species Breakdown'!J210=0,\"\",'4 - Species Breakdown'!J210)","v":""}]
[null,{"$f":"IF('4 - Species Breakdown'!B211=0,\"\",'4 - Species Breakdown'!B211)","v":""},{"$f":"IF('4 - Species Breakdown'!D211=0,\"\",'4 - Species Breakdown'!D211)","v":""},{"$f":"IF('4 - Species Breakdown'!L211=0,\"\",'4 - Species Breakdown'!L211)","v":""},{"$f":"IF('4 - Species Breakdown'!M211=0,\"\",'4 - Species Breakdown'!M211)","v":""},{"$f":"IF('4 - Species Breakdown'!N211=0,\"\",'4 - Species Breakdown'!N211)","v":""},{"$f":"IFERROR(('4 - Species Breakdown'!J211/'WCC Summary'!$D$14)*100,\"\")","v":""},{"$f":"IF('4 - Species Breakdown'!J211=0,\"\",'4 - Species Breakdown'!J211)","v":""}]
[null,{"$f":"IF('4 - Species Breakdown'!B212=0,\"\",'4 - Species Breakdown'!B212)","v":""},{"$f":"IF('4 - Species Breakdown'!D212=0,\"\",'4 - Species Breakdown'!D212)","v":""},{"$f":"IF('4 - Species Breakdown'!L212=0,\"\",'4 - Species Breakdown'!L212)","v":""},{"$f":"IF('4 - Species Breakdown'!M212=0,\"\",'4 - Species Breakdown'!M212)","v":""},{"$f":"IF('4 - Species Breakdown'!N212=0,\"\",'4 - Species Breakdown'!N212)","v":""},{"$f":"IFERROR(('4 - Species Breakdown'!J212/'WCC Summary'!$D$14)*100,\"\")","v":""},{"$f":"IF('4 - Species Breakdown'!J212=0,\"\",'4 - Species Breakdown'!J212)","v":""}]
[null,{"$f":"IF('4 - Species Breakdown'!B213=0,\"\",'4 - Species Breakdown'!B213)","v":""},{"$f":"IF('4 - Species Breakdown'!D213=0,\"\",'4 - Species Breakdown'!D213)","v":""},{"$f":"IF('4 - Species Breakdown'!L213=0,\"\",'4 - Species Breakdown'!L213)","v":""},{"$f":"IF('4 - Species Breakdown'!M213=0,\"\",'4 - Species Breakdown'!M213)","v":""},{"$f":"IF('4 - Species Breakdown'!N213=0,\"\",'4 - Species Breakdown'!N213)","v":""},{"$f":"IFERROR(('4 - Species Breakdown'!J213/'WCC Summary'!$D$14)*100,\"\")","v":""},{"$f":"IF('4 - Species Breakdown'!J213=0,\"\",'4 - Species Breakdown'!J213)","v":""}]
[null,{"$f":"IF('4 - Species Breakdown'!B214=0,\"\",'4 - Species Breakdown'!B214)","v":""},{"$f":"IF('4 - Species Breakdown'!D214=0,\"\",'4 - Species Breakdown'!D214)","v":""},{"$f":"IF('4 - Species Breakdown'!L214=0,\"\",'4 - Species Breakdown'!L214)","v":""},{"$f":"IF('4 - Species Breakdown'!M214=0,\"\",'4 - Species Breakdown'!M214)","v":""},{"$f":"IF('4 - Species Breakdown'!N214=0,\"\",'4 - Species Breakdown'!N214)","v":""},{"$f":"IFERROR(('4 - Species Breakdown'!J214/'WCC Summary'!$D$14)*100,\"\")","v":""},{"$f":"IF('4 - Species Breakdown'!J214=0,\"\",'4 - Species Breakdown'!J214)","v":""}]
[null,{"$f":"IF('4 - Species Breakdown'!B215=0,\"\",'4 - Species Breakdown'!B215)","v":""},{"$f":"IF('4 - Species Breakdown'!D215=0,\"\",'4 - Species Breakdown'!D215)","v":""},{"$f":"IF('4 - Species Breakdown'!L215=0,\"\",'4 - Species Breakdown'!L215)","v":""},{"$f":"IF('4 - Species Breakdown'!M215=0,\"\",'4 - Species Breakdown'!M215)","v":""},{"$f":"IF('4 - Species Breakdown'!N215=0,\"\",'4 - Species Breakdown'!N215)","v":""},{"$f":"IFERROR(('4 - Species Breakdown'!J215/'WCC Summary'!$D$14)*100,\"\")","v":""},{"$f":"IF('4 - Species Breakdown'!J215=0,\"\",'4 - Species Breakdown'!J215)","v":""}]
[null,{"$f":"IF('4 - Species Breakdown'!B216=0,\"\",'4 - Species Breakdown'!B216)","v":""},{"$f":"IF('4 - Species Breakdown'!D216=0,\"\",'4 - Species Breakdown'!D216)","v":""},{"$f":"IF('4 - Species Breakdown'!L216=0,\"\",'4 - Species Breakdown'!L216)","v":""},{"$f":"IF('4 - Species Breakdown'!M216=0,\"\",'4 - Species Breakdown'!M216)","v":""},{"$f":"IF('4 - Species Breakdown'!N216=0,\"\",'4 - Species Breakdown'!N216)","v":""},{"$f":"IFERROR(('4 - Species Breakdown'!J216/'WCC Summary'!$D$14)*100,\"\")","v":""},{"$f":"IF('4 - Species Breakdown'!J216=0,\"\",'4 - Species Breakdown'!J216)","v":""}]
[null,{"$f":"IF('4 - Species Breakdown'!B217=0,\"\",'4 - Species Breakdown'!B217)","v":""},{"$f":"IF('4 - Species Breakdown'!D217=0,\"\",'4 - Species Breakdown'!D217)","v":""},{"$f":"IF('4 - Species Breakdown'!L217=0,\"\",'4 - Species Breakdown'!L217)","v":""},{"$f":"IF('4 - Species Breakdown'!M217=0,\"\",'4 - Species Breakdown'!M217)","v":""},{"$f":"IF('4 - Species Breakdown'!N217=0,\"\",'4 - Species Breakdown'!N217)","v":""},{"$f":"IFERROR(('4 - Species Breakdown'!J217/'WCC Summary'!$D$14)*100,\"\")","v":""},{"$f":"IF('4 - Species Breakdown'!J217=0,\"\",'4 - Species Breakdown'!J217)","v":""}]
[null,{"$f":"IF('4 - Species Breakdown'!B218=0,\"\",'4 - Species Breakdown'!B218)","v":""},{"$f":"IF('4 - Species Breakdown'!D218=0,\"\",'4 - Species Breakdown'!D218)","v":""},{"$f":"IF('4 - Species Breakdown'!L218=0,\"\",'4 - Species Breakdown'!L218)","v":""},{"$f":"IF('4 - Species Breakdown'!M218=0,\"\",'4 - Species Breakdown'!M218)","v":""},{"$f":"IF('4 - Species Breakdown'!N218=0,\"\",'4 - Species Breakdown'!N218)","v":""},{"$f":"IFERROR(('4 - Species Breakdown'!J218/'WCC Summary'!$D$14)*100,\"\")","v":""},{"$f":"IF('4 - Species Breakdown'!J218=0,\"\",'4 - Species Breakdown'!J218)","v":""}]
[null,{"$f":"IF('4 - Species Breakdown'!B219=0,\"\",'4 - Species Breakdown'!B219)","v":""},{"$f":"IF('4 - Species Breakdown'!D219=0,\"\",'4 - Species Breakdown'!D219)","v":""},{"$f":"IF('4 - Species Breakdown'!L219=0,\"\",'4 - Species Breakdown'!L219)","v":""},{"$f":"IF('4 - Species Breakdown'!M219=0,\"\",'4 - Species Breakdown'!M219)","v":""},{"$f":"IF('4 - Species Breakdown'!N219=0,\"\",'4 - Species Breakdown'!N219)","v":""},{"$f":"IFERROR(('4 - Species Breakdown'!J219/'WCC Summary'!$D$14)*100,\"\")","v":""},{"$f":"IF('4 - Species Breakdown'!J219=0,\"\",'4 - Species Breakdown'!J219)","v":""}]
[null,{"$f":"IF('4 - Species Breakdown'!B220=0,\"\",'4 - Species Breakdown'!B220)","v":""},{"$f":"IF('4 - Species Breakdown'!D220=0,\"\",'4 - Species Breakdown'!D220)","v":""},{"$f":"IF('4 - Species Breakdown'!L220=0,\"\",'4 - Species Breakdown'!L220)","v":""},{"$f":"IF('4 - Species Breakdown'!M220=0,\"\",'4 - Species Breakdown'!M220)","v":""},{"$f":"IF('4 - Species Breakdown'!N220=0,\"\",'4 - Species Breakdown'!N220)","v":""},{"$f":"IFERROR(('4 - Species Breakdown'!J220/'WCC Summary'!$D$14)*100,\"\")","v":""},{"$f":"IF('4 - Species Breakdown'!J220=0,\"\",'4 - Species Breakdown'!J220)","v":""}]
[null,{"$f":"IF('4 - Species Breakdown'!B221=0,\"\",'4 - Species Breakdown'!B221)","v":""},{"$f":"IF('4 - Species Breakdown'!D221=0,\"\",'4 - Species Breakdown'!D221)","v":""},{"$f":"IF('4 - Species Breakdown'!L221=0,\"\",'4 - Species Breakdown'!L221)","v":""},{"$f":"IF('4 - Species Breakdown'!M221=0,\"\",'4 - Species Breakdown'!M221)","v":""},{"$f":"IF('4 - Species Breakdown'!N221=0,\"\",'4 - Species Breakdown'!N221)","v":""},{"$f":"IFERROR(('4 - Species Breakdown'!J221/'WCC Summary'!$D$14)*100,\"\")","v":""},{"$f":"IF('4 - Species Breakdown'!J221=0,\"\",'4 - Species Breakdown'!J221)","v":""}]
[null,{"$f":"IF('4 - Species Breakdown'!B222=0,\"\",'4 - Species Breakdown'!B222)","v":""},{"$f":"IF('4 - Species Breakdown'!D222=0,\"\",'4 - Species Breakdown'!D222)","v":""},{"$f":"IF('4 - Species Breakdown'!L222=0,\"\",'4 - Species Breakdown'!L222)","v":""},{"$f":"IF('4 - Species Breakdown'!M222=0,\"\",'4 - Species Breakdown'!M222)","v":""},{"$f":"IF('4 - Species Breakdown'!N222=0,\"\",'4 - Species Breakdown'!N222)","v":""},{"$f":"IFERROR(('4 - Species Breakdown'!J222/'WCC Summary'!$D$14)*100,\"\")","v":""},{"$f":"IF('4 - Species Breakdown'!J222=0,\"\",'4 - Species Breakdown'!J222)","v":""}]
[null,{"$f":"IF('4 - Species Breakdown'!B223=0,\"\",'4 - Species Breakdown'!B223)","v":""},{"$f":"IF('4 - Species Breakdown'!D223=0,\"\",'4 - Species Breakdown'!D223)","v":""},{"$f":"IF('4 - Species Breakdown'!L223=0,\"\",'4 - Species Breakdown'!L223)","v":""},{"$f":"IF('4 - Species Breakdown'!M223=0,\"\",'4 - Species Breakdown'!M223)","v":""},{"$f":"IF('4 - Species Breakdown'!N223=0,\"\",'4 - Species Breakdown'!N223)","v":""},{"$f":"IFERROR(('4 - Species Breakdown'!J223/'WCC Summary'!$D$14)*100,\"\")","v":""},{"$f":"IF('4 - Species Breakdown'!J223=0,\"\",'4 - Species Breakdown'!J223)","v":""}]
[null,{"$f":"IF('4 - Species Breakdown'!B224=0,\"\",'4 - Species Breakdown'!B224)","v":""},{"$f":"IF('4 - Species Breakdown'!D224=0,\"\",'4 - Species Breakdown'!D224)","v":""},{"$f":"IF('4 - Species Breakdown'!L224=0,\"\",'4 - Species Breakdown'!L224)","v":""},{"$f":"IF('4 - Species Breakdown'!M224=0,\"\",'4 - Species Breakdown'!M224)","v":""},{"$f":"IF('4 - Species Breakdown'!N224=0,\"\",'4 - Species Breakdown'!N224)","v":""},{"$f":"IFERROR(('4 - Species Breakdown'!J224/'WCC Summary'!$D$14)*100,\"\")","v":""},{"$f":"IF('4 - Species Breakdown'!J224=0,\"\",'4 - Species Breakdown'!J224)","v":""}]
[null,{"$f":"IF('4 - Species Breakdown'!B225=0,\"\",'4 - Species Breakdown'!B225)","v":""},{"$f":"IF('4 - Species Breakdown'!D225=0,\"\",'4 - Species Breakdown'!D225)","v":""},{"$f":"IF('4 - Species Breakdown'!L225=0,\"\",'4 - Species Breakdown'!L225)","v":""},{"$f":"IF('4 - Species Breakdown'!M225=0,\"\",'4 - Species Breakdown'!M225)","v":""},{"$f":"IF('4 - Species Breakdown'!N225=0,\"\",'4 - Species Breakdown'!N225)","v":""},{"$f":"IFERROR(('4 - Species Breakdown'!J225/'WCC Summary'!$D$14)*100,\"\")","v":""},{"$f":"IF('4 - Species Breakdown'!J225=0,\"\",'4 - Species Breakdown'!J225)","v":""}]
[null,{"$f":"IF('4 - Species Breakdown'!B226=0,\"\",'4 - Species Breakdown'!B226)","v":""},{"$f":"IF('4 - Species Breakdown'!D226=0,\"\",'4 - Species Breakdown'!D226)","v":""},{"$f":"IF('4 - Species Breakdown'!L226=0,\"\",'4 - Species Breakdown'!L226)","v":""},{"$f":"IF('4 - Species Breakdown'!M226=0,\"\",'4 - Species Breakdown'!M226)","v":""},{"$f":"IF('4 - Species Breakdown'!N226=0,\"\",'4 - Species Breakdown'!N226)","v":""},{"$f":"IFERROR(('4 - Species Breakdown'!J226/'WCC Summary'!$D$14)*100,\"\")","v":""},{"$f":"IF('4 - Species Breakdown'!J226=0,\"\",'4 - Species Breakdown'!J226)","v":""}]
[null,{"$f":"IF('4 - Species Breakdown'!B227=0,\"\",'4 - Species Breakdown'!B227)","v":""},{"$f":"IF('4 - Species Breakdown'!D227=0,\"\",'4 - Species Breakdown'!D227)","v":""},{"$f":"IF('4 - Species Breakdown'!L227=0,\"\",'4 - Species Breakdown'!L227)","v":""},{"$f":"IF('4 - Species Breakdown'!M227=0,\"\",'4 - Species Breakdown'!M227)","v":""},{"$f":"IF('4 - Species Breakdown'!N227=0,\"\",'4 - Species Breakdown'!N227)","v":""},{"$f":"IFERROR(('4 - Species Breakdown'!J227/'WCC Summary'!$D$14)*100,\"\")","v":""},{"$f":"IF('4 - Species Breakdown'!J227=0,\"\",'4 - Species Breakdown'!J227)","v":""}]
[null,{"$f":"IF('4 - Species Breakdown'!B228=0,\"\",'4 - Species Breakdown'!B228)","v":""},{"$f":"IF('4 - Species Breakdown'!D228=0,\"\",'4 - Species Breakdown'!D228)","v":""},{"$f":"IF('4 - Species Breakdown'!L228=0,\"\",'4 - Species Breakdown'!L228)","v":""},{"$f":"IF('4 - Species Breakdown'!M228=0,\"\",'4 - Species Breakdown'!M228)","v":""},{"$f":"IF('4 - Species Breakdown'!N228=0,\"\",'4 - Species Breakdown'!N228)","v":""},{"$f":"IFERROR(('4 - Species Breakdown'!J228/'WCC Summary'!$D$14)*100,\"\")","v":""},{"$f":"IF('4 - Species Breakdown'!J228=0,\"\",'4 - Species Breakdown'!J228)","v":""}]
[null,{"$f":"IF('4 - Species Breakdown'!B229=0,\"\",'4 - Species Breakdown'!B229)","v":""},{"$f":"IF('4 - Species Breakdown'!D229=0,\"\",'4 - Species Breakdown'!D229)","v":""},{"$f":"IF('4 - Species Breakdown'!L229=0,\"\",'4 - Species Breakdown'!L229)","v":""},{"$f":"IF('4 - Species Breakdown'!M229=0,\"\",'4 - Species Breakdown'!M229)","v":""},{"$f":"IF('4 - Species Breakdown'!N229=0,\"\",'4 - Species Breakdown'!N229)","v":""},{"$f":"IFERROR(('4 - Species Breakdown'!J229/'WCC Summary'!$D$14)*100,\"\")","v":""},{"$f":"IF('4 - Species Breakdown'!J229=0,\"\",'4 - Species Breakdown'!J229)","v":""}]
[null,{"$f":"IF('4 - Species Breakdown'!B230=0,\"\",'4 - Species Breakdown'!B230)","v":""},{"$f":"IF('4 - Species Breakdown'!D230=0,\"\",'4 - Species Breakdown'!D230)","v":""},{"$f":"IF('4 - Species Breakdown'!L230=0,\"\",'4 - Species Breakdown'!L230)","v":""},{"$f":"IF('4 - Species Breakdown'!M230=0,\"\",'4 - Species Breakdown'!M230)","v":""},{"$f":"IF('4 - Species Breakdown'!N230=0,\"\",'4 - Species Breakdown'!N230)","v":""},{"$f":"IFERROR(('4 - Species Breakdown'!J230/'WCC Summary'!$D$14)*100,\"\")","v":""},{"$f":"IF('4 - Species Breakdown'!J230=0,\"\",'4 - Species Breakdown'!J230)","v":""}]
[null,{"$f":"IF('4 - Species Breakdown'!B231=0,\"\",'4 - Species Breakdown'!B231)","v":""},{"$f":"IF('4 - Species Breakdown'!D231=0,\"\",'4 - Species Breakdown'!D231)","v":""},{"$f":"IF('4 - Species Breakdown'!L231=0,\"\",'4 - Species Breakdown'!L231)","v":""},{"$f":"IF('4 - Species Breakdown'!M231=0,\"\",'4 - Species Breakdown'!M231)","v":""},{"$f":"IF('4 - Species Breakdown'!N231=0,\"\",'4 - Species Breakdown'!N231)","v":""},{"$f":"IFERROR(('4 - Species Breakdown'!J231/'WCC Summary'!$D$14)*100,\"\")","v":""},{"$f":"IF('4 - Species Breakdown'!J231=0,\"\",'4 - Species Breakdown'!J231)","v":""}]
[null,{"$f":"IF('4 - Species Breakdown'!B232=0,\"\",'4 - Species Breakdown'!B232)","v":""},{"$f":"IF('4 - Species Breakdown'!D232=0,\"\",'4 - Species Breakdown'!D232)","v":""},{"$f":"IF('4 - Species Breakdown'!L232=0,\"\",'4 - Species Breakdown'!L232)","v":""},{"$f":"IF('4 - Species Breakdown'!M232=0,\"\",'4 - Species Breakdown'!M232)","v":""},{"$f":"IF('4 - Species Breakdown'!N232=0,\"\",'4 - Species Breakdown'!N232)","v":""},{"$f":"IFERROR(('4 - Species Breakdown'!J232/'WCC Summary'!$D$14)*100,\"\")","v":""},{"$f":"IF('4 - Species Breakdown'!J232=0,\"\",'4 - Species Breakdown'!J232)","v":""}]
[null,{"$f":"IF('4 - Species Breakdown'!B233=0,\"\",'4 - Species Breakdown'!B233)","v":""},{"$f":"IF('4 - Species Breakdown'!D233=0,\"\",'4 - Species Breakdown'!D233)","v":""},{"$f":"IF('4 - Species Breakdown'!L233=0,\"\",'4 - Species Breakdown'!L233)","v":""},{"$f":"IF('4 - Species Breakdown'!M233=0,\"\",'4 - Species Breakdown'!M233)","v":""},{"$f":"IF('4 - Species Breakdown'!N233=0,\"\",'4 - Species Breakdown'!N233)","v":""},{"$f":"IFERROR(('4 - Species Breakdown'!J233/'WCC Summary'!$D$14)*100,\"\")","v":""},{"$f":"IF('4 - Species Breakdown'!J233=0,\"\",'4 - Species Breakdown'!J233)","v":""}]
[null,{"$f":"IF('4 - Species Breakdown'!B234=0,\"\",'4 - Species Breakdown'!B234)","v":""},{"$f":"IF('4 - Species Breakdown'!D234=0,\"\",'4 - Species Breakdown'!D234)","v":""},{"$f":"IF('4 - Species Breakdown'!L234=0,\"\",'4 - Species Breakdown'!L234)","v":""},{"$f":"IF('4 - Species Breakdown'!M234=0,\"\",'4 - Species Breakdown'!M234)","v":""},{"$f":"IF('4 - Species Breakdown'!N234=0,\"\",'4 - Species Breakdown'!N234)","v":""},{"$f":"IFERROR(('4 - Species Breakdown'!J234/'WCC Summary'!$D$14)*100,\"\")","v":""},{"$f":"IF('4 - Species Breakdown'!J234=0,\"\",'4 - Species Breakdown'!J234)","v":""}]
[null,{"$f":"IF('4 - Species Breakdown'!B235=0,\"\",'4 - Species Breakdown'!B235)","v":""},{"$f":"IF('4 - Species Breakdown'!D235=0,\"\",'4 - Species Breakdown'!D235)","v":""},{"$f":"IF('4 - Species Breakdown'!L235=0,\"\",'4 - Species Breakdown'!L235)","v":""},{"$f":"IF('4 - Species Breakdown'!M235=0,\"\",'4 - Species Breakdown'!M235)","v":""},{"$f":"IF('4 - Species Breakdown'!N235=0,\"\",'4 - Species Breakdown'!N235)","v":""},{"$f":"IFERROR(('4 - Species Breakdown'!J235/'WCC Summary'!$D$14)*100,\"\")","v":""},{"$f":"IF('4 - Species Breakdown'!J235=0,\"\",'4 - Species Breakdown'!J235)","v":""}]
[null,{"$f":"IF('4 - Species Breakdown'!B236=0,\"\",'4 - Species Breakdown'!B236)","v":""},{"$f":"IF('4 - Species Breakdown'!D236=0,\"\",'4 - Species Breakdown'!D236)","v":""},{"$f":"IF('4 - Species Breakdown'!L236=0,\"\",'4 - Species Breakdown'!L236)","v":""},{"$f":"IF('4 - Species Breakdown'!M236=0,\"\",'4 - Species Breakdown'!M236)","v":""},{"$f":"IF('4 - Species Breakdown'!N236=0,\"\",'4 - Species Breakdown'!N236)","v":""},{"$f":"IFERROR(('4 - Species Breakdown'!J236/'WCC Summary'!$D$14)*100,\"\")","v":""},{"$f":"IF('4 - Species Breakdown'!J236=0,\"\",'4 - Species Breakdown'!J236)","v":""}]
[null,{"$f":"IF('4 - Species Breakdown'!B237=0,\"\",'4 - Species Breakdown'!B237)","v":""},{"$f":"IF('4 - Species Breakdown'!D237=0,\"\",'4 - Species Breakdown'!D237)","v":""},{"$f":"IF('4 - Species Breakdown'!L237=0,\"\",'4 - Species Breakdown'!L237)","v":""},{"$f":"IF('4 - Species Breakdown'!M237=0,\"\",'4 - Species Breakdown'!M237)","v":""},{"$f":"IF('4 - Species Breakdown'!N237=0,\"\",'4 - Species Breakdown'!N237)","v":""},{"$f":"IFERROR(('4 - Species Breakdown'!J237/'WCC Summary'!$D$14)*100,\"\")","v":""},{"$f":"IF('4 - Species Breakdown'!J237=0,\"\",'4 - Species Breakdown'!J237)","v":""}]
[null,{"$f":"IF('4 - Species Breakdown'!B238=0,\"\",'4 - Species Breakdown'!B238)","v":""},{"$f":"IF('4 - Species Breakdown'!D238=0,\"\",'4 - Species Breakdown'!D238)","v":""},{"$f":"IF('4 - Species Breakdown'!L238=0,\"\",'4 - Species Breakdown'!L238)","v":""},{"$f":"IF('4 - Species Breakdown'!M238=0,\"\",'4 - Species Breakdown'!M238)","v":""},{"$f":"IF('4 - Species Breakdown'!N238=0,\"\",'4 - Species Breakdown'!N238)","v":""},{"$f":"IFERROR(('4 - Species Breakdown'!J238/'WCC Summary'!$D$14)*100,\"\")","v":""},{"$f":"IF('4 - Species Breakdown'!J238=0,\"\",'4 - Species Breakdown'!J238)","v":""}]
[null,{"$f":"IF('4 - Species Breakdown'!B239=0,\"\",'4 - Species Breakdown'!B239)","v":""},{"$f":"IF('4 - Species Breakdown'!D239=0,\"\",'4 - Species Breakdown'!D239)","v":""},{"$f":"IF('4 - Species Breakdown'!L239=0,\"\",'4 - Species Breakdown'!L239)","v":""},{"$f":"IF('4 - Species Breakdown'!M239=0,\"\",'4 - Species Breakdown'!M239)","v":""},{"$f":"IF('4 - Species Breakdown'!N239=0,\"\",'4 - Species Breakdown'!N239)","v":""},{"$f":"IFERROR(('4 - Species Breakdown'!J239/'WCC Summary'!$D$14)*100,\"\")","v":""},{"$f":"IF('4 - Species Breakdown'!J239=0,\"\",'4 - Species Breakdown'!J239)","v":""}]
[null,{"$f":"IF('4 - Species Breakdown'!B240=0,\"\",'4 - Species Breakdown'!B240)","v":""},{"$f":"IF('4 - Species Breakdown'!D240=0,\"\",'4 - Species Breakdown'!D240)","v":""},{"$f":"IF('4 - Species Breakdown'!L240=0,\"\",'4 - Species Breakdown'!L240)","v":""},{"$f":"IF('4 - Species Breakdown'!M240=0,\"\",'4 - Species Breakdown'!M240)","v":""},{"$f":"IF('4 - Species Breakdown'!N240=0,\"\",'4 - Species Breakdown'!N240)","v":""},{"$f":"IFERROR(('4 - Species Breakdown'!J240/'WCC Summary'!$D$14)*100,\"\")","v":""},{"$f":"IF('4 - Species Breakdown'!J240=0,\"\",'4 - Species Breakdown'!J240)","v":""}]
[null,{"$f":"IF('4 - Species Breakdown'!B241=0,\"\",'4 - Species Breakdown'!B241)","v":""},{"$f":"IF('4 - Species Breakdown'!D241=0,\"\",'4 - Species Breakdown'!D241)","v":""},{"$f":"IF('4 - Species Breakdown'!L241=0,\"\",'4 - Species Breakdown'!L241)","v":""},{"$f":"IF('4 - Species Breakdown'!M241=0,\"\",'4 - Species Breakdown'!M241)","v":""},{"$f":"IF('4 - Species Breakdown'!N241=0,\"\",'4 - Species Breakdown'!N241)","v":""},{"$f":"IFERROR(('4 - Species Breakdown'!J241/'WCC Summary'!$D$14)*100,\"\")","v":""},{"$f":"IF('4 - Species Breakdown'!J241=0,\"\",'4 - Species Breakdown'!J241)","v":""}]
[null,{"$f":"IF('4 - Species Breakdown'!B242=0,\"\",'4 - Species Breakdown'!B242)","v":""},{"$f":"IF('4 - Species Breakdown'!D242=0,\"\",'4 - Species Breakdown'!D242)","v":""},{"$f":"IF('4 - Species Breakdown'!L242=0,\"\",'4 - Species Breakdown'!L242)","v":""},{"$f":"IF('4 - Species Breakdown'!M242=0,\"\",'4 - Species Breakdown'!M242)","v":""},{"$f":"IF('4 - Species Breakdown'!N242=0,\"\",'4 - Species Breakdown'!N242)","v":""},{"$f":"IFERROR(('4 - Species Breakdown'!J242/'WCC Summary'!$D$14)*100,\"\")","v":""},{"$f":"IF('4 - Species Breakdown'!J242=0,\"\",'4 - Species Breakdown'!J242)","v":""}]
[null,{"$f":"IF('4 - Species Breakdown'!B243=0,\"\",'4 - Species Breakdown'!B243)","v":""},{"$f":"IF('4 - Species Breakdown'!D243=0,\"\",'4 - Species Breakdown'!D243)","v":""},{"$f":"IF('4 - Species Breakdown'!L243=0,\"\",'4 - Species Breakdown'!L243)","v":""},{"$f":"IF('4 - Species Breakdown'!M243=0,\"\",'4 - Species Breakdown'!M243)","v":""},{"$f":"IF('4 - Species Breakdown'!N243=0,\"\",'4 - Species Breakdown'!N243)","v":""},{"$f":"IFERROR(('4 - Species Breakdown'!J243/'WCC Summary'!$D$14)*100,\"\")","v":""},{"$f":"IF('4 - Species Breakdown'!J243=0,\"\",'4 - Species Breakdown'!J243)","v":""}]
[null,{"$f":"IF('4 - Species Breakdown'!B244=0,\"\",'4 - Species Breakdown'!B244)","v":""},{"$f":"IF('4 - Species Breakdown'!D244=0,\"\",'4 - Species Breakdown'!D244)","v":""},{"$f":"IF('4 - Species Breakdown'!L244=0,\"\",'4 - Species Breakdown'!L244)","v":""},{"$f":"IF('4 - Species Breakdown'!M244=0,\"\",'4 - Species Breakdown'!M244)","v":""},{"$f":"IF('4 - Species Breakdown'!N244=0,\"\",'4 - Species Breakdown'!N244)","v":""},{"$f":"IFERROR(('4 - Species Breakdown'!J244/'WCC Summary'!$D$14)*100,\"\")","v":""},{"$f":"IF('4 - Species Breakdown'!J244=0,\"\",'4 - Species Breakdown'!J244)","v":""}]
[null,{"$f":"IF('4 - Species Breakdown'!B245=0,\"\",'4 - Species Breakdown'!B245)","v":""},{"$f":"IF('4 - Species Breakdown'!D245=0,\"\",'4 - Species Breakdown'!D245)","v":""},{"$f":"IF('4 - Species Breakdown'!L245=0,\"\",'4 - Species Breakdown'!L245)","v":""},{"$f":"IF('4 - Species Breakdown'!M245=0,\"\",'4 - Species Breakdown'!M245)","v":""},{"$f":"IF('4 - Species Breakdown'!N245=0,\"\",'4 - Species Breakdown'!N245)","v":""},{"$f":"IFERROR(('4 - Species Breakdown'!J245/'WCC Summary'!$D$14)*100,\"\")","v":""},{"$f":"IF('4 - Species Breakdown'!J245=0,\"\",'4 - Species Breakdown'!J245)","v":""}]
[null,{"$f":"IF('4 - Species Breakdown'!B246=0,\"\",'4 - Species Breakdown'!B246)","v":""},{"$f":"IF('4 - Species Breakdown'!D246=0,\"\",'4 - Species Breakdown'!D246)","v":""},{"$f":"IF('4 - Species Breakdown'!L246=0,\"\",'4 - Species Breakdown'!L246)","v":""},{"$f":"IF('4 - Species Breakdown'!M246=0,\"\",'4 - Species Breakdown'!M246)","v":""},{"$f":"IF('4 - Species Breakdown'!N246=0,\"\",'4 - Species Breakdown'!N246)","v":""},{"$f":"IFERROR(('4 - Species Breakdown'!J246/'WCC Summary'!$D$14)*100,\"\")","v":""},{"$f":"IF('4 - Species Breakdown'!J246=0,\"\",'4 - Species Breakdown'!J246)","v":""}]
[null,{"$f":"IF('4 - Species Breakdown'!B247=0,\"\",'4 - Species Breakdown'!B247)","v":""},{"$f":"IF('4 - Species Breakdown'!D247=0,\"\",'4 - Species Breakdown'!D247)","v":""},{"$f":"IF('4 - Species Breakdown'!L247=0,\"\",'4 - Species Breakdown'!L247)","v":""},{"$f":"IF('4 - Species Breakdown'!M247=0,\"\",'4 - Species Breakdown'!M247)","v":""},{"$f":"IF('4 - Species Breakdown'!N247=0,\"\",'4 - Species Breakdown'!N247)","v":""},{"$f":"IFERROR(('4 - Species Breakdown'!J247/'WCC Summary'!$D$14)*100,\"\")","v":""},{"$f":"IF('4 - Species Breakdown'!J247=0,\"\",'4 - Species Breakdown'!J247)","v":""}]
[null,{"$f":"IF('4 - Species Breakdown'!B248=0,\"\",'4 - Species Breakdown'!B248)","v":""},{"$f":"IF('4 - Species Breakdown'!D248=0,\"\",'4 - Species Breakdown'!D248)","v":""},{"$f":"IF('4 - Species Breakdown'!L248=0,\"\",'4 - Species Breakdown'!L248)","v":""},{"$f":"IF('4 - Species Breakdown'!M248=0,\"\",'4 - Species Breakdown'!M248)","v":""},{"$f":"IF('4 - Species Breakdown'!N248=0,\"\",'4 - Species Breakdown'!N248)","v":""},{"$f":"IFERROR(('4 - Species Breakdown'!J248/'WCC Summary'!$D$14)*100,\"\")","v":""},{"$f":"IF('4 - Species Breakdown'!J248=0,\"\",'4 - Species Breakdown'!J248)","v":""}]
[null,{"$f":"IF('4 - Species Breakdown'!B249=0,\"\",'4 - Species Breakdown'!B249)","v":""},{"$f":"IF('4 - Species Breakdown'!D249=0,\"\",'4 - Species Breakdown'!D249)","v":""},{"$f":"IF('4 - Species Breakdown'!L249=0,\"\",'4 - Species Breakdown'!L249)","v":""},{"$f":"IF('4 - Species Breakdown'!M249=0,\"\",'4 - Species Breakdown'!M249)","v":""},{"$f":"IF('4 - Species Breakdown'!N249=0,\"\",'4 - Species Breakdown'!N249)","v":""},{"$f":"IFERROR(('4 - Species Breakdown'!J249/'WCC Summary'!$D$14)*100,\"\")","v":""},{"$f":"IF('4 - Species Breakdown'!J249=0,\"\",'4 - Species Breakdown'!J249)","v":""}]
[null,{"$f":"IF('4 - Species Breakdown'!B250=0,\"\",'4 - Species Breakdown'!B250)","v":""},{"$f":"IF('4 - Species Breakdown'!D250=0,\"\",'4 - Species Breakdown'!D250)","v":""},{"$f":"IF('4 - Species Breakdown'!L250=0,\"\",'4 - Species Breakdown'!L250)","v":""},{"$f":"IF('4 - Species Breakdown'!M250=0,\"\",'4 - Species Breakdown'!M250)","v":""},{"$f":"IF('4 - Species Breakdown'!N250=0,\"\",'4 - Species Breakdown'!N250)","v":""},{"$f":"IFERROR(('4 - Species Breakdown'!J250/'WCC Summary'!$D$14)*100,\"\")","v":""},{"$f":"IF('4 - Species Breakdown'!J250=0,\"\",'4 - Species Breakdown'!J250)","v":""}]
[null,{"$f":"IF('4 - Species Breakdown'!B251=0,\"\",'4 - Species Breakdown'!B251)","v":""},{"$f":"IF('4 - Species Breakdown'!D251=0,\"\",'4 - Species Breakdown'!D251)","v":""},{"$f":"IF('4 - Species Breakdown'!L251=0,\"\",'4 - Species Breakdown'!L251)","v":""},{"$f":"IF('4 - Species Breakdown'!M251=0,\"\",'4 - Species Breakdown'!M251)","v":""},{"$f":"IF('4 - Species Breakdown'!N251=0,\"\",'4 - Species Breakdown'!N251)","v":""},{"$f":"IFERROR(('4 - Species Breakdown'!J251/'WCC Summary'!$D$14)*100,\"\")","v":""},{"$f":"IF('4 - Species Breakdown'!J251=0,\"\",'4 - Species Breakdown'!J251)","v":""}]
[null,{"$f":"IF('4 - Species Breakdown'!B252=0,\"\",'4 - Species Breakdown'!B252)","v":""},{"$f":"IF('4 - Species Breakdown'!D252=0,\"\",'4 - Species Breakdown'!D252)","v":""},{"$f":"IF('4 - Species Breakdown'!L252=0,\"\",'4 - Species Breakdown'!L252)","v":""},{"$f":"IF('4 - Species Breakdown'!M252=0,\"\",'4 - Species Breakdown'!M252)","v":""},{"$f":"IF('4 - Species Breakdown'!N252=0,\"\",'4 - Species Breakdown'!N252)","v":""},{"$f":"IFERROR(('4 - Species Breakdown'!J252/'WCC Summary'!$D$14)*100,\"\")","v":""},{"$f":"IF('4 - Species Breakdown'!J252=0,\"\",'4 - Species Breakdown'!J252)","v":""}]
[null,{"$f":"IF('4 - Species Breakdown'!B253=0,\"\",'4 - Species Breakdown'!B253)","v":""},{"$f":"IF('4 - Species Breakdown'!D253=0,\"\",'4 - Species Breakdown'!D253)","v":""},{"$f":"IF('4 - Species Breakdown'!L253=0,\"\",'4 - Species Breakdown'!L253)","v":""},{"$f":"IF('4 - Species Breakdown'!M253=0,\"\",'4 - Species Breakdown'!M253)","v":""},{"$f":"IF('4 - Species Breakdown'!N253=0,\"\",'4 - Species Breakdown'!N253)","v":""},{"$f":"IFERROR(('4 - Species Breakdown'!J253/'WCC Summary'!$D$14)*100,\"\")","v":""},{"$f":"IF('4 - Species Breakdown'!J253=0,\"\",'4 - Species Breakdown'!J253)","v":""}]
[null,{"$f":"IF('4 - Species Breakdown'!B254=0,\"\",'4 - Species Breakdown'!B254)","v":""},{"$f":"IF('4 - Species Breakdown'!D254=0,\"\",'4 - Species Breakdown'!D254)","v":""},{"$f":"IF('4 - Species Breakdown'!L254=0,\"\",'4 - Species Breakdown'!L254)","v":""},{"$f":"IF('4 - Species Breakdown'!M254=0,\"\",'4 - Species Breakdown'!M254)","v":""},{"$f":"IF('4 - Species Breakdown'!N254=0,\"\",'4 - Species Breakdown'!N254)","v":""},{"$f":"IFERROR(('4 - Species Breakdown'!J254/'WCC Summary'!$D$14)*100,\"\")","v":""},{"$f":"IF('4 - Species Breakdown'!J254=0,\"\",'4 - Species Breakdown'!J254)","v":""}]
[null,{"$f":"IF('4 - Species Breakdown'!B255=0,\"\",'4 - Species Breakdown'!B255)","v":""},{"$f":"IF('4 - Species Breakdown'!D255=0,\"\",'4 - Species Breakdown'!D255)","v":""},{"$f":"IF('4 - Species Breakdown'!L255=0,\"\",'4 - Species Breakdown'!L255)","v":""},{"$f":"IF('4 - Species Breakdown'!M255=0,\"\",'4 - Species Breakdown'!M255)","v":""},{"$f":"IF('4 - Species Breakdown'!N255=0,\"\",'4 - Species Breakdown'!N255)","v":""},{"$f":"IFERROR(('4 - Species Breakdown'!J255/'WCC Summary'!$D$14)*100,\"\")","v":""},{"$f":"IF('4 - Species Breakdown'!J255=0,\"\",'4 - Species Breakdown'!J255)","v":""}]
[null,{"$f":"IF('4 - Species Breakdown'!B256=0,\"\",'4 - Species Breakdown'!B256)","v":""},{"$f":"IF('4 - Species Breakdown'!D256=0,\"\",'4 - Species Breakdown'!D256)","v":""},{"$f":"IF('4 - Species Breakdown'!L256=0,\"\",'4 - Species Breakdown'!L256)","v":""},{"$f":"IF('4 - Species Breakdown'!M256=0,\"\",'4 - Species Breakdown'!M256)","v":""},{"$f":"IF('4 - Species Breakdown'!N256=0,\"\",'4 - Species Breakdown'!N256)","v":""},{"$f":"IFERROR(('4 - Species Breakdown'!J256/'WCC Summary'!$D$14)*100,\"\")","v":""},{"$f":"IF('4 - Species Breakdown'!J256=0,\"\",'4 - Species Breakdown'!J256)","v":""}]
[null,{"$f":"IF('4 - Species Breakdown'!B257=0,\"\",'4 - Species Breakdown'!B257)","v":""},{"$f":"IF('4 - Species Breakdown'!D257=0,\"\",'4 - Species Breakdown'!D257)","v":""},{"$f":"IF('4 - Species Breakdown'!L257=0,\"\",'4 - Species Breakdown'!L257)","v":""},{"$f":"IF('4 - Species Breakdown'!M257=0,\"\",'4 - Species Breakdown'!M257)","v":""},{"$f":"IF('4 - Species Breakdown'!N257=0,\"\",'4 - Species Breakdown'!N257)","v":""},{"$f":"IFERROR(('4 - Species Breakdown'!J257/'WCC Summary'!$D$14)*100,\"\")","v":""},{"$f":"IF('4 - Species Breakdown'!J257=0,\"\",'4 - Species Breakdown'!J257)","v":""}]
[null,{"$f":"IF('4 - Species Breakdown'!B258=0,\"\",'4 - Species Breakdown'!B258)","v":""},{"$f":"IF('4 - Species Breakdown'!D258=0,\"\",'4 - Species Breakdown'!D258)","v":""},{"$f":"IF('4 - Species Breakdown'!L258=0,\"\",'4 - Species Breakdown'!L258)","v":""},{"$f":"IF('4 - Species Breakdown'!M258=0,\"\",'4 - Species Breakdown'!M258)","v":""},{"$f":"IF('4 - Species Breakdown'!N258=0,\"\",'4 - Species Breakdown'!N258)","v":""},{"$f":"IFERROR(('4 - Species Breakdown'!J258/'WCC Summary'!$D$14)*100,\"\")","v":""},{"$f":"IF('4 - Species Breakdown'!J258=0,\"\",'4 - Species Breakdown'!J258)","v":""}]
[null,{"$f":"IF('4 - Species Breakdown'!B259=0,\"\",'4 - Species Breakdown'!B259)","v":""},{"$f":"IF('4 - Species Breakdown'!D259=0,\"\",'4 - Species Breakdown'!D259)","v":""},{"$f":"IF('4 - Species Breakdown'!L259=0,\"\",'4 - Species Breakdown'!L259)","v":""},{"$f":"IF('4 - Species Breakdown'!M259=0,\"\",'4 - Species Breakdown'!M259)","v":""},{"$f":"IF('4 - Species Breakdown'!N259=0,\"\",'4 - Species Breakdown'!N259)","v":""},{"$f":"IFERROR(('4 - Species Breakdown'!J259/'WCC Summary'!$D$14)*100,\"\")","v":""},{"$f":"IF('4 - Species Breakdown'!J259=0,\"\",'4 - Species Breakdown'!J259)","v":""}]
[null,{"$f":"IF('4 - Species Breakdown'!B260=0,\"\",'4 - Species Breakdown'!B260)","v":""},{"$f":"IF('4 - Species Breakdown'!D260=0,\"\",'4 - Species Breakdown'!D260)","v":""},{"$f":"IF('4 - Species Breakdown'!L260=0,\"\",'4 - Species Breakdown'!L260)","v":""},{"$f":"IF('4 - Species Breakdown'!M260=0,\"\",'4 - Species Breakdown'!M260)","v":""},{"$f":"IF('4 - Species Breakdown'!N260=0,\"\",'4 - Species Breakdown'!N260)","v":""},{"$f":"IFERROR(('4 - Species Breakdown'!J260/'WCC Summary'!$D$14)*100,\"\")","v":""},{"$f":"IF('4 - Species Breakdown'!J260=0,\"\",'4 - Species Breakdown'!J260)","v":""}]
[null,{"$f":"IF('4 - Species Breakdown'!B261=0,\"\",'4 - Species Breakdown'!B261)","v":""},{"$f":"IF('4 - Species Breakdown'!D261=0,\"\",'4 - Species Breakdown'!D261)","v":""},{"$f":"IF('4 - Species Breakdown'!L261=0,\"\",'4 - Species Breakdown'!L261)","v":""},{"$f":"IF('4 - Species Breakdown'!M261=0,\"\",'4 - Species Breakdown'!M261)","v":""},{"$f":"IF('4 - Species Breakdown'!N261=0,\"\",'4 - Species Breakdown'!N261)","v":""},{"$f":"IFERROR(('4 - Species Breakdown'!J261/'WCC Summary'!$D$14)*100,\"\")","v":""},{"$f":"IF('4 - Species Breakdown'!J261=0,\"\",'4 - Species Breakdown'!J261)","v":""}]
[null,{"$f":"IF('4 - Species Breakdown'!B262=0,\"\",'4 - Species Breakdown'!B262)","v":""},{"$f":"IF('4 - Species Breakdown'!D262=0,\"\",'4 - Species Breakdown'!D262)","v":""},{"$f":"IF('4 - Species Breakdown'!L262=0,\"\",'4 - Species Breakdown'!L262)","v":""},{"$f":"IF('4 - Species Breakdown'!M262=0,\"\",'4 - Species Breakdown'!M262)","v":""},{"$f":"IF('4 - Species Breakdown'!N262=0,\"\",'4 - Species Breakdown'!N262)","v":""},{"$f":"IFERROR(('4 - Species Breakdown'!J262/'WCC Summary'!$D$14)*100,\"\")","v":""},{"$f":"IF('4 - Species Breakdown'!J262=0,\"\",'4 - Species Breakdown'!J262)","v":""}]
[null,{"$f":"IF('4 - Species Breakdown'!B263=0,\"\",'4 - Species Breakdown'!B263)","v":""},{"$f":"IF('4 - Species Breakdown'!D263=0,\"\",'4 - Species Breakdown'!D263)","v":""},{"$f":"IF('4 - Species Breakdown'!L263=0,\"\",'4 - Species Breakdown'!L263)","v":""},{"$f":"IF('4 - Species Breakdown'!M263=0,\"\",'4 - Species Breakdown'!M263)","v":""},{"$f":"IF('4 - Species Breakdown'!N263=0,\"\",'4 - Species Breakdown'!N263)","v":""},{"$f":"IFERROR(('4 - Species Breakdown'!J263/'WCC Summary'!$D$14)*100,\"\")","v":""},{"$f":"IF('4 - Species Breakdown'!J263=0,\"\",'4 - Species Breakdown'!J263)","v":""}]
[null,{"$f":"IF('4 - Species Breakdown'!B264=0,\"\",'4 - Species Breakdown'!B264)","v":""},{"$f":"IF('4 - Species Breakdown'!D264=0,\"\",'4 - Species Breakdown'!D264)","v":""},{"$f":"IF('4 - Species Breakdown'!L264=0,\"\",'4 - Species Breakdown'!L264)","v":""},{"$f":"IF('4 - Species Breakdown'!M264=0,\"\",'4 - Species Breakdown'!M264)","v":""},{"$f":"IF('4 - Species Breakdown'!N264=0,\"\",'4 - Species Breakdown'!N264)","v":""},{"$f":"IFERROR(('4 - Species Breakdown'!J264/'WCC Summary'!$D$14)*100,\"\")","v":""},{"$f":"IF('4 - Species Breakdown'!J264=0,\"\",'4 - Species Breakdown'!J264)","v":""}]
[null,{"$f":"IF('4 - Species Breakdown'!B265=0,\"\",'4 - Species Breakdown'!B265)","v":""},{"$f":"IF('4 - Species Breakdown'!D265=0,\"\",'4 - Species Breakdown'!D265)","v":""},{"$f":"IF('4 - Species Breakdown'!L265=0,\"\",'4 - Species Breakdown'!L265)","v":""},{"$f":"IF('4 - Species Breakdown'!M265=0,\"\",'4 - Species Breakdown'!M265)","v":""},{"$f":"IF('4 - Species Breakdown'!N265=0,\"\",'4 - Species Breakdown'!N265)","v":""},{"$f":"IFERROR(('4 - Species Breakdown'!J265/'WCC Summary'!$D$14)*100,\"\")","v":""},{"$f":"IF('4 - Species Breakdown'!J265=0,\"\",'4 - Species Breakdown'!J265)","v":""}]
[null,{"$f":"IF('4 - Species Breakdown'!B266=0,\"\",'4 - Species Breakdown'!B266)","v":""},{"$f":"IF('4 - Species Breakdown'!D266=0,\"\",'4 - Species Breakdown'!D266)","v":""},{"$f":"IF('4 - Species Breakdown'!L266=0,\"\",'4 - Species Breakdown'!L266)","v":""},{"$f":"IF('4 - Species Breakdown'!M266=0,\"\",'4 - Species Breakdown'!M266)","v":""},{"$f":"IF('4 - Species Breakdown'!N266=0,\"\",'4 - Species Breakdown'!N266)","v":""},{"$f":"IFERROR(('4 - Species Breakdown'!J266/'WCC Summary'!$D$14)*100,\"\")","v":""},{"$f":"IF('4 - Species Breakdown'!J266=0,\"\",'4 - Species Breakdown'!J266)","v":""}]
[null,{"$f":"IF('4 - Species Breakdown'!B267=0,\"\",'4 - Species Breakdown'!B267)","v":""},{"$f":"IF('4 - Species Breakdown'!D267=0,\"\",'4 - Species Breakdown'!D267)","v":""},{"$f":"IF('4 - Species Breakdown'!L267=0,\"\",'4 - Species Breakdown'!L267)","v":""},{"$f":"IF('4 - Species Breakdown'!M267=0,\"\",'4 - Species Breakdown'!M267)","v":""},{"$f":"IF('4 - Species Breakdown'!N267=0,\"\",'4 - Species Breakdown'!N267)","v":""},{"$f":"IFERROR(('4 - Species Breakdown'!J267/'WCC Summary'!$D$14)*100,\"\")","v":""},{"$f":"IF('4 - Species Breakdown'!J267=0,\"\",'4 - Species Breakdown'!J267)","v":""}]
[null,{"$f":"IF('4 - Species Breakdown'!B268=0,\"\",'4 - Species Breakdown'!B268)","v":""},{"$f":"IF('4 - Species Breakdown'!D268=0,\"\",'4 - Species Breakdown'!D268)","v":""},{"$f":"IF('4 - Species Breakdown'!L268=0,\"\",'4 - Species Breakdown'!L268)","v":""},{"$f":"IF('4 - Species Breakdown'!M268=0,\"\",'4 - Species Breakdown'!M268)","v":""},{"$f":"IF('4 - Species Breakdown'!N268=0,\"\",'4 - Species Breakdown'!N268)","v":""},{"$f":"IFERROR(('4 - Species Breakdown'!J268/'WCC Summary'!$D$14)*100,\"\")","v":""},{"$f":"IF('4 - Species Breakdown'!J268=0,\"\",'4 - Species Breakdown'!J268)","v":""}]
[null,{"$f":"IF('4 - Species Breakdown'!B269=0,\"\",'4 - Species Breakdown'!B269)","v":""},{"$f":"IF('4 - Species Breakdown'!D269=0,\"\",'4 - Species Breakdown'!D269)","v":""},{"$f":"IF('4 - Species Breakdown'!L269=0,\"\",'4 - Species Breakdown'!L269)","v":""},{"$f":"IF('4 - Species Breakdown'!M269=0,\"\",'4 - Species Breakdown'!M269)","v":""},{"$f":"IF('4 - Species Breakdown'!N269=0,\"\",'4 - Species Breakdown'!N269)","v":""},{"$f":"IFERROR(('4 - Species Breakdown'!J269/'WCC Summary'!$D$14)*100,\"\")","v":""},{"$f":"IF('4 - Species Breakdown'!J269=0,\"\",'4 - Species Breakdown'!J269)","v":""}]
[null,{"$f":"IF('4 - Species Breakdown'!B270=0,\"\",'4 - Species Breakdown'!B270)","v":""},{"$f":"IF('4 - Species Breakdown'!D270=0,\"\",'4 - Species Breakdown'!D270)","v":""},{"$f":"IF('4 - Species Breakdown'!L270=0,\"\",'4 - Species Breakdown'!L270)","v":""},{"$f":"IF('4 - Species Breakdown'!M270=0,\"\",'4 - Species Breakdown'!M270)","v":""},{"$f":"IF('4 - Species Breakdown'!N270=0,\"\",'4 - Species Breakdown'!N270)","v":""},{"$f":"IFERROR(('4 - Species Breakdown'!J270/'WCC Summary'!$D$14)*100,\"\")","v":""},{"$f":"IF('4 - Species Breakdown'!J270=0,\"\",'4 - Species Breakdown'!J270)","v":""}]
[null,{"$f":"IF('4 - Species Breakdown'!B271=0,\"\",'4 - Species Breakdown'!B271)","v":""},{"$f":"IF('4 - Species Breakdown'!D271=0,\"\",'4 - Species Breakdown'!D271)","v":""},{"$f":"IF('4 - Species Breakdown'!L271=0,\"\",'4 - Species Breakdown'!L271)","v":""},{"$f":"IF('4 - Species Breakdown'!M271=0,\"\",'4 - Species Breakdown'!M271)","v":""},{"$f":"IF('4 - Species Breakdown'!N271=0,\"\",'4 - Species Breakdown'!N271)","v":""},{"$f":"IFERROR(('4 - Species Breakdown'!J271/'WCC Summary'!$D$14)*100,\"\")","v":""},{"$f":"IF('4 - Species Breakdown'!J271=0,\"\",'4 - Species Breakdown'!J271)","v":""}]
[null,{"$f":"IF('4 - Species Breakdown'!B272=0,\"\",'4 - Species Breakdown'!B272)","v":""},{"$f":"IF('4 - Species Breakdown'!D272=0,\"\",'4 - Species Breakdown'!D272)","v":""},{"$f":"IF('4 - Species Breakdown'!L272=0,\"\",'4 - Species Breakdown'!L272)","v":""},{"$f":"IF('4 - Species Breakdown'!M272=0,\"\",'4 - Species Breakdown'!M272)","v":""},{"$f":"IF('4 - Species Breakdown'!N272=0,\"\",'4 - Species Breakdown'!N272)","v":""},{"$f":"IFERROR(('4 - Species Breakdown'!J272/'WCC Summary'!$D$14)*100,\"\")","v":""},{"$f":"IF('4 - Species Breakdown'!J272=0,\"\",'4 - Species Breakdown'!J272)","v":""}]
[null,{"$f":"IF('4 - Species Breakdown'!B273=0,\"\",'4 - Species Breakdown'!B273)","v":""},{"$f":"IF('4 - Species Breakdown'!D273=0,\"\",'4 - Species Breakdown'!D273)","v":""},{"$f":"IF('4 - Species Breakdown'!L273=0,\"\",'4 - Species Breakdown'!L273)","v":""},{"$f":"IF('4 - Species Breakdown'!M273=0,\"\",'4 - Species Breakdown'!M273)","v":""},{"$f":"IF('4 - Species Breakdown'!N273=0,\"\",'4 - Species Breakdown'!N273)","v":""},{"$f":"IFERROR(('4 - Species Breakdown'!J273/'WCC Summary'!$D$14)*100,\"\")","v":""},{"$f":"IF('4 - Species Breakdown'!J273=0,\"\",'4 - Species Breakdown'!J273)","v":""}]
[null,{"$f":"IF('4 - Species Breakdown'!B274=0,\"\",'4 - Species Breakdown'!B274)","v":""},{"$f":"IF('4 - Species Breakdown'!D274=0,\"\",'4 - Species Breakdown'!D274)","v":""},{"$f":"IF('4 - Species Breakdown'!L274=0,\"\",'4 - Species Breakdown'!L274)","v":""},{"$f":"IF('4 - Species Breakdown'!M274=0,\"\",'4 - Species Breakdown'!M274)","v":""},{"$f":"IF('4 - Species Breakdown'!N274=0,\"\",'4 - Species Breakdown'!N274)","v":""},{"$f":"IFERROR(('4 - Species Breakdown'!J274/'WCC Summary'!$D$14)*100,\"\")","v":""},{"$f":"IF('4 - Species Breakdown'!J274=0,\"\",'4 - Species Breakdown'!J274)","v":""}]
[null,{"$f":"IF('4 - Species Breakdown'!B275=0,\"\",'4 - Species Breakdown'!B275)","v":""},{"$f":"IF('4 - Species Breakdown'!D275=0,\"\",'4 - Species Breakdown'!D275)","v":""},{"$f":"IF('4 - Species Breakdown'!L275=0,\"\",'4 - Species Breakdown'!L275)","v":""},{"$f":"IF('4 - Species Breakdown'!M275=0,\"\",'4 - Species Breakdown'!M275)","v":""},{"$f":"IF('4 - Species Breakdown'!N275=0,\"\",'4 - Species Breakdown'!N275)","v":""},{"$f":"IFERROR(('4 - Species Breakdown'!J275/'WCC Summary'!$D$14)*100,\"\")","v":""},{"$f":"IF('4 - Species Breakdown'!J275=0,\"\",'4 - Species Breakdown'!J275)","v":""}]
[null,{"$f":"IF('4 - Species Breakdown'!B276=0,\"\",'4 - Species Breakdown'!B276)","v":""},{"$f":"IF('4 - Species Breakdown'!D276=0,\"\",'4 - Species Breakdown'!D276)","v":""},{"$f":"IF('4 - Species Breakdown'!L276=0,\"\",'4 - Species Breakdown'!L276)","v":""},{"$f":"IF('4 - Species Breakdown'!M276=0,\"\",'4 - Species Breakdown'!M276)","v":""},{"$f":"IF('4 - Species Breakdown'!N276=0,\"\",'4 - Species Breakdown'!N276)","v":""},{"$f":"IFERROR(('4 - Species Breakdown'!J276/'WCC Summary'!$D$14)*100,\"\")","v":""},{"$f":"IF('4 - Species Breakdown'!J276=0,\"\",'4 - Species Breakdown'!J276)","v":""}]
[null,{"$f":"IF('4 - Species Breakdown'!B277=0,\"\",'4 - Species Breakdown'!B277)","v":""},{"$f":"IF('4 - Species Breakdown'!D277=0,\"\",'4 - Species Breakdown'!D277)","v":""},{"$f":"IF('4 - Species Breakdown'!L277=0,\"\",'4 - Species Breakdown'!L277)","v":""},{"$f":"IF('4 - Species Breakdown'!M277=0,\"\",'4 - Species Breakdown'!M277)","v":""},{"$f":"IF('4 - Species Breakdown'!N277=0,\"\",'4 - Species Breakdown'!N277)","v":""},{"$f":"IFERROR(('4 - Species Breakdown'!J277/'WCC Summary'!$D$14)*100,\"\")","v":""},{"$f":"IF('4 - Species Breakdown'!J277=0,\"\",'4 - Species Breakdown'!J277)","v":""}]
[null,{"$f":"IF('4 - Species Breakdown'!B278=0,\"\",'4 - Species Breakdown'!B278)","v":""},{"$f":"IF('4 - Species Breakdown'!D278=0,\"\",'4 - Species Breakdown'!D278)","v":""},{"$f":"IF('4 - Species Breakdown'!L278=0,\"\",'4 - Species Breakdown'!L278)","v":""},{"$f":"IF('4 - Species Breakdown'!M278=0,\"\",'4 - Species Breakdown'!M278)","v":""},{"$f":"IF('4 - Species Breakdown'!N278=0,\"\",'4 - Species Breakdown'!N278)","v":""},{"$f":"IFERROR(('4 - Species Breakdown'!J278/'WCC Summary'!$D$14)*100,\"\")","v":""},{"$f":"IF('4 - Species Breakdown'!J278=0,\"\",'4 - Species Breakdown'!J278)","v":""}]
[null,{"$f":"IF('4 - Species Breakdown'!B279=0,\"\",'4 - Species Breakdown'!B279)","v":""},{"$f":"IF('4 - Species Breakdown'!D279=0,\"\",'4 - Species Breakdown'!D279)","v":""},{"$f":"IF('4 - Species Breakdown'!L279=0,\"\",'4 - Species Breakdown'!L279)","v":""},{"$f":"IF('4 - Species Breakdown'!M279=0,\"\",'4 - Species Breakdown'!M279)","v":""},{"$f":"IF('4 - Species Breakdown'!N279=0,\"\",'4 - Species Breakdown'!N279)","v":""},{"$f":"IFERROR(('4 - Species Breakdown'!J279/'WCC Summary'!$D$14)*100,\"\")","v":""},{"$f":"IF('4 - Species Breakdown'!J279=0,\"\",'4 - Species Breakdown'!J279)","v":""}]
[null,{"$f":"IF('4 - Species Breakdown'!B280=0,\"\",'4 - Species Breakdown'!B280)","v":""},{"$f":"IF('4 - Species Breakdown'!D280=0,\"\",'4 - Species Breakdown'!D280)","v":""},{"$f":"IF('4 - Species Breakdown'!L280=0,\"\",'4 - Species Breakdown'!L280)","v":""},{"$f":"IF('4 - Species Breakdown'!M280=0,\"\",'4 - Species Breakdown'!M280)","v":""},{"$f":"IF('4 - Species Breakdown'!N280=0,\"\",'4 - Species Breakdown'!N280)","v":""},{"$f":"IFERROR(('4 - Species Breakdown'!J280/'WCC Summary'!$D$14)*100,\"\")","v":""},{"$f":"IF('4 - Species Breakdown'!J280=0,\"\",'4 - Species Breakdown'!J280)","v":""}]
[null,{"$f":"IF('4 - Species Breakdown'!B281=0,\"\",'4 - Species Breakdown'!B281)","v":""},{"$f":"IF('4 - Species Breakdown'!D281=0,\"\",'4 - Species Breakdown'!D281)","v":""},{"$f":"IF('4 - Species Breakdown'!L281=0,\"\",'4 - Species Breakdown'!L281)","v":""},{"$f":"IF('4 - Species Breakdown'!M281=0,\"\",'4 - Species Breakdown'!M281)","v":""},{"$f":"IF('4 - Species Breakdown'!N281=0,\"\",'4 - Species Breakdown'!N281)","v":""},{"$f":"IFERROR(('4 - Species Breakdown'!J281/'WCC Summary'!$D$14)*100,\"\")","v":""},{"$f":"IF('4 - Species Breakdown'!J281=0,\"\",'4 - Species Breakdown'!J281)","v":""}]
[null,{"$f":"IF('4 - Species Breakdown'!B282=0,\"\",'4 - Species Breakdown'!B282)","v":""},{"$f":"IF('4 - Species Breakdown'!D282=0,\"\",'4 - Species Breakdown'!D282)","v":""},{"$f":"IF('4 - Species Breakdown'!L282=0,\"\",'4 - Species Breakdown'!L282)","v":""},{"$f":"IF('4 - Species Breakdown'!M282=0,\"\",'4 - Species Breakdown'!M282)","v":""},{"$f":"IF('4 - Species Breakdown'!N282=0,\"\",'4 - Species Breakdown'!N282)","v":""},{"$f":"IFERROR(('4 - Species Breakdown'!J282/'WCC Summary'!$D$14)*100,\"\")","v":""},{"$f":"IF('4 - Species Breakdown'!J282=0,\"\",'4 - Species Breakdown'!J282)","v":""}]
[null,{"$f":"IF('4 - Species Breakdown'!B283=0,\"\",'4 - Species Breakdown'!B283)","v":""},{"$f":"IF('4 - Species Breakdown'!D283=0,\"\",'4 - Species Breakdown'!D283)","v":""},{"$f":"IF('4 - Species Breakdown'!L283=0,\"\",'4 - Species Breakdown'!L283)","v":""},{"$f":"IF('4 - Species Breakdown'!M283=0,\"\",'4 - Species Breakdown'!M283)","v":""},{"$f":"IF('4 - Species Breakdown'!N283=0,\"\",'4 - Species Breakdown'!N283)","v":""},{"$f":"IFERROR(('4 - Species Breakdown'!J283/'WCC Summary'!$D$14)*100,\"\")","v":""},{"$f":"IF('4 - Species Breakdown'!J283=0,\"\",'4 - Species Breakdown'!J283)","v":""}]
[null,{"$f":"IF('4 - Species Breakdown'!B284=0,\"\",'4 - Species Breakdown'!B284)","v":""},{"$f":"IF('4 - Species Breakdown'!D284=0,\"\",'4 - Species Breakdown'!D284)","v":""},{"$f":"IF('4 - Species Breakdown'!L284=0,\"\",'4 - Species Breakdown'!L284)","v":""},{"$f":"IF('4 - Species Breakdown'!M284=0,\"\",'4 - Species Breakdown'!M284)","v":""},{"$f":"IF('4 - Species Breakdown'!N284=0,\"\",'4 - Species Breakdown'!N284)","v":""},{"$f":"IFERROR(('4 - Species Breakdown'!J284/'WCC Summary'!$D$14)*100,\"\")","v":""},{"$f":"IF('4 - Species Breakdown'!J284=0,\"\",'4 - Species Breakdown'!J284)","v":""}]
[null,{"$f":"IF('4 - Species Breakdown'!B285=0,\"\",'4 - Species Breakdown'!B285)","v":""},{"$f":"IF('4 - Species Breakdown'!D285=0,\"\",'4 - Species Breakdown'!D285)","v":""},{"$f":"IF('4 - Species Breakdown'!L285=0,\"\",'4 - Species Breakdown'!L285)","v":""},{"$f":"IF('4 - Species Breakdown'!M285=0,\"\",'4 - Species Breakdown'!M285)","v":""},{"$f":"IF('4 - Species Breakdown'!N285=0,\"\",'4 - Species Breakdown'!N285)","v":""},{"$f":"IFERROR(('4 - Species Breakdown'!J285/'WCC Summary'!$D$14)*100,\"\")","v":""},{"$f":"IF('4 - Species Breakdown'!J285=0,\"\",'4 - Species Breakdown'!J285)","v":""}]
[null,{"$f":"IF('4 - Species Breakdown'!B286=0,\"\",'4 - Species Breakdown'!B286)","v":""},{"$f":"IF('4 - Species Breakdown'!D286=0,\"\",'4 - Species Breakdown'!D286)","v":""},{"$f":"IF('4 - Species Breakdown'!L286=0,\"\",'4 - Species Breakdown'!L286)","v":""},{"$f":"IF('4 - Species Breakdown'!M286=0,\"\",'4 - Species Breakdown'!M286)","v":""},{"$f":"IF('4 - Species Breakdown'!N286=0,\"\",'4 - Species Breakdown'!N286)","v":""},{"$f":"IFERROR(('4 - Species Breakdown'!J286/'WCC Summary'!$D$14)*100,\"\")","v":""},{"$f":"IF('4 - Species Breakdown'!J286=0,\"\",'4 - Species Breakdown'!J286)","v":""}]
[null,{"$f":"IF('4 - Species Breakdown'!B287=0,\"\",'4 - Species Breakdown'!B287)","v":""},{"$f":"IF('4 - Species Breakdown'!D287=0,\"\",'4 - Species Breakdown'!D287)","v":""},{"$f":"IF('4 - Species Breakdown'!L287=0,\"\",'4 - Species Breakdown'!L287)","v":""},{"$f":"IF('4 - Species Breakdown'!M287=0,\"\",'4 - Species Breakdown'!M287)","v":""},{"$f":"IF('4 - Species Breakdown'!N287=0,\"\",'4 - Species Breakdown'!N287)","v":""},{"$f":"IFERROR(('4 - Species Breakdown'!J287/'WCC Summary'!$D$14)*100,\"\")","v":""},{"$f":"IF('4 - Species Breakdown'!J287=0,\"\",'4 - Species Breakdown'!J287)","v":""}]
[null,{"$f":"IF('4 - Species Breakdown'!B288=0,\"\",'4 - Species Breakdown'!B288)","v":""},{"$f":"IF('4 - Species Breakdown'!D288=0,\"\",'4 - Species Breakdown'!D288)","v":""},{"$f":"IF('4 - Species Breakdown'!L288=0,\"\",'4 - Species Breakdown'!L288)","v":""},{"$f":"IF('4 - Species Breakdown'!M288=0,\"\",'4 - Species Breakdown'!M288)","v":""},{"$f":"IF('4 - Species Breakdown'!N288=0,\"\",'4 - Species Breakdown'!N288)","v":""},{"$f":"IFERROR(('4 - Species Breakdown'!J288/'WCC Summary'!$D$14)*100,\"\")","v":""},{"$f":"IF('4 - Species Breakdown'!J288=0,\"\",'4 - Species Breakdown'!J288)","v":""}]
[null,{"$f":"IF('4 - Species Breakdown'!B289=0,\"\",'4 - Species Breakdown'!B289)","v":""},{"$f":"IF('4 - Species Breakdown'!D289=0,\"\",'4 - Species Breakdown'!D289)","v":""},{"$f":"IF('4 - Species Breakdown'!L289=0,\"\",'4 - Species Breakdown'!L289)","v":""},{"$f":"IF('4 - Species Breakdown'!M289=0,\"\",'4 - Species Breakdown'!M289)","v":""},{"$f":"IF('4 - Species Breakdown'!N289=0,\"\",'4 - Species Breakdown'!N289)","v":""},{"$f":"IFERROR(('4 - Species Breakdown'!J289/'WCC Summary'!$D$14)*100,\"\")","v":""},{"$f":"IF('4 - Species Breakdown'!J289=0,\"\",'4 - Species Breakdown'!J289)","v":""}]
[null,{"$f":"IF('4 - Species Breakdown'!B290=0,\"\",'4 - Species Breakdown'!B290)","v":""},{"$f":"IF('4 - Species Breakdown'!D290=0,\"\",'4 - Species Breakdown'!D290)","v":""},{"$f":"IF('4 - Species Breakdown'!L290=0,\"\",'4 - Species Breakdown'!L290)","v":""},{"$f":"IF('4 - Species Breakdown'!M290=0,\"\",'4 - Species Breakdown'!M290)","v":""},{"$f":"IF('4 - Species Breakdown'!N290=0,\"\",'4 - Species Breakdown'!N290)","v":""},{"$f":"IFERROR(('4 - Species Breakdown'!J290/'WCC Summary'!$D$14)*100,\"\")","v":""},{"$f":"IF('4 - Species Breakdown'!J290=0,\"\",'4 - Species Breakdown'!J290)","v":""}]
[null,{"$f":"IF('4 - Species Breakdown'!B291=0,\"\",'4 - Species Breakdown'!B291)","v":""},{"$f":"IF('4 - Species Breakdown'!D291=0,\"\",'4 - Species Breakdown'!D291)","v":""},{"$f":"IF('4 - Species Breakdown'!L291=0,\"\",'4 - Species Breakdown'!L291)","v":""},{"$f":"IF('4 - Species Breakdown'!M291=0,\"\",'4 - Species Breakdown'!M291)","v":""},{"$f":"IF('4 - Species Breakdown'!N291=0,\"\",'4 - Species Breakdown'!N291)","v":""},{"$f":"IFERROR(('4 - Species Breakdown'!J291/'WCC Summary'!$D$14)*100,\"\")","v":""},{"$f":"IF('4 - Species Breakdown'!J291=0,\"\",'4 - Species Breakdown'!J291)","v":""}]
[null,{"$f":"IF('4 - Species Breakdown'!B292=0,\"\",'4 - Species Breakdown'!B292)","v":""},{"$f":"IF('4 - Species Breakdown'!D292=0,\"\",'4 - Species Breakdown'!D292)","v":""},{"$f":"IF('4 - Species Breakdown'!L292=0,\"\",'4 - Species Breakdown'!L292)","v":""},{"$f":"IF('4 - Species Breakdown'!M292=0,\"\",'4 - Species Breakdown'!M292)","v":""},{"$f":"IF('4 - Species Breakdown'!N292=0,\"\",'4 - Species Breakdown'!N292)","v":""},{"$f":"IFERROR(('4 - Species Breakdown'!J292/'WCC Summary'!$D$14)*100,\"\")","v":""},{"$f":"IF('4 - Species Breakdown'!J292=0,\"\",'4 - Species Breakdown'!J292)","v":""}]
[null,{"$f":"IF('4 - Species Breakdown'!B293=0,\"\",'4 - Species Breakdown'!B293)","v":""},{"$f":"IF('4 - Species Breakdown'!D293=0,\"\",'4 - Species Breakdown'!D293)","v":""},{"$f":"IF('4 - Species Breakdown'!L293=0,\"\",'4 - Species Breakdown'!L293)","v":""},{"$f":"IF('4 - Species Breakdown'!M293=0,\"\",'4 - Species Breakdown'!M293)","v":""},{"$f":"IF('4 - Species Breakdown'!N293=0,\"\",'4 - Species Breakdown'!N293)","v":""},{"$f":"IFERROR(('4 - Species Breakdown'!J293/'WCC Summary'!$D$14)*100,\"\")","v":""},{"$f":"IF('4 - Species Breakdown'!J293=0,\"\",'4 - Species Breakdown'!J293)","v":""}]
[null,{"$f":"IF('4 - Species Breakdown'!B294=0,\"\",'4 - Species Breakdown'!B294)","v":""},{"$f":"IF('4 - Species Breakdown'!D294=0,\"\",'4 - Species Breakdown'!D294)","v":""},{"$f":"IF('4 - Species Breakdown'!L294=0,\"\",'4 - Species Breakdown'!L294)","v":""},{"$f":"IF('4 - Species Breakdown'!M294=0,\"\",'4 - Species Breakdown'!M294)","v":""},{"$f":"IF('4 - Species Breakdown'!N294=0,\"\",'4 - Species Breakdown'!N294)","v":""},{"$f":"IFERROR(('4 - Species Breakdown'!J294/'WCC Summary'!$D$14)*100,\"\")","v":""},{"$f":"IF('4 - Species Breakdown'!J294=0,\"\",'4 - Species Breakdown'!J294)","v":""}]
[null,{"$f":"IF('4 - Species Breakdown'!B295=0,\"\",'4 - Species Breakdown'!B295)","v":""},{"$f":"IF('4 - Species Breakdown'!D295=0,\"\",'4 - Species Breakdown'!D295)","v":""},{"$f":"IF('4 - Species Breakdown'!L295=0,\"\",'4 - Species Breakdown'!L295)","v":""},{"$f":"IF('4 - Species Breakdown'!M295=0,\"\",'4 - Species Breakdown'!M295)","v":""},{"$f":"IF('4 - Species Breakdown'!N295=0,\"\",'4 - Species Breakdown'!N295)","v":""},{"$f":"IFERROR(('4 - Species Breakdown'!J295/'WCC Summary'!$D$14)*100,\"\")","v":""},{"$f":"IF('4 - Species Breakdown'!J295=0,\"\",'4 - Species Breakdown'!J295)","v":""}]
[null,{"$f":"IF('4 - Species Breakdown'!B296=0,\"\",'4 - Species Breakdown'!B296)","v":""},{"$f":"IF('4 - Species Breakdown'!D296=0,\"\",'4 - Species Breakdown'!D296)","v":""},{"$f":"IF('4 - Species Breakdown'!L296=0,\"\",'4 - Species Breakdown'!L296)","v":""},{"$f":"IF('4 - Species Breakdown'!M296=0,\"\",'4 - Species Breakdown'!M296)","v":""},{"$f":"IF('4 - Species Breakdown'!N296=0,\"\",'4 - Species Breakdown'!N296)","v":""},{"$f":"IFERROR(('4 - Species Breakdown'!J296/'WCC Summary'!$D$14)*100,\"\")","v":""},{"$f":"IF('4 - Species Breakdown'!J296=0,\"\",'4 - Species Breakdown'!J296)","v":""}]
[null,{"$f":"IF('4 - Species Breakdown'!B297=0,\"\",'4 - Species Breakdown'!B297)","v":""},{"$f":"IF('4 - Species Breakdown'!D297=0,\"\",'4 - Species Breakdown'!D297)","v":""},{"$f":"IF('4 - Species Breakdown'!L297=0,\"\",'4 - Species Breakdown'!L297)","v":""},{"$f":"IF('4 - Species Breakdown'!M297=0,\"\",'4 - Species Breakdown'!M297)","v":""},{"$f":"IF('4 - Species Breakdown'!N297=0,\"\",'4 - Species Breakdown'!N297)","v":""},{"$f":"IFERROR(('4 - Species Breakdown'!J297/'WCC Summary'!$D$14)*100,\"\")","v":""},{"$f":"IF('4 - Species Breakdown'!J297=0,\"\",'4 - Species Breakdown'!J297)","v":""}]
[null,{"$f":"IF('4 - Species Breakdown'!B298=0,\"\",'4 - Species Breakdown'!B298)","v":""},{"$f":"IF('4 - Species Breakdown'!D298=0,\"\",'4 - Species Breakdown'!D298)","v":""},{"$f":"IF('4 - Species Breakdown'!L298=0,\"\",'4 - Species Breakdown'!L298)","v":""},{"$f":"IF('4 - Species Breakdown'!M298=0,\"\",'4 - Species Breakdown'!M298)","v":""},{"$f":"IF('4 - Species Breakdown'!N298=0,\"\",'4 - Species Breakdown'!N298)","v":""},{"$f":"IFERROR(('4 - Species Breakdown'!J298/'WCC Summary'!$D$14)*100,\"\")","v":""},{"$f":"IF('4 - Species Breakdown'!J298=0,\"\",'4 - Species Breakdown'!J298)","v":""}]
[null,{"$f":"IF('4 - Species Breakdown'!B299=0,\"\",'4 - Species Breakdown'!B299)","v":""},{"$f":"IF('4 - Species Breakdown'!D299=0,\"\",'4 - Species Breakdown'!D299)","v":""},{"$f":"IF('4 - Species Breakdown'!L299=0,\"\",'4 - Species Breakdown'!L299)","v":""},{"$f":"IF('4 - Species Breakdown'!M299=0,\"\",'4 - Species Breakdown'!M299)","v":""},{"$f":"IF('4 - Species Breakdown'!N299=0,\"\",'4 - Species Breakdown'!N299)","v":""},{"$f":"IFERROR(('4 - Species Breakdown'!J299/'WCC Summary'!$D$14)*100,\"\")","v":""},{"$f":"IF('4 - Species Breakdown'!J299=0,\"\",'4 - Species Breakdown'!J299)","v":""}]
[null,{"$f":"IF('4 - Species Breakdown'!B300=0,\"\",'4 - Species Breakdown'!B300)","v":""},{"$f":"IF('4 - Species Breakdown'!D300=0,\"\",'4 - Species Breakdown'!D300)","v":""},{"$f":"IF('4 - Species Breakdown'!L300=0,\"\",'4 - Species Breakdown'!L300)","v":""},{"$f":"IF('4 - Species Breakdown'!M300=0,\"\",'4 - Species Breakdown'!M300)","v":""},{"$f":"IF('4 - Species Breakdown'!N300=0,\"\",'4 - Species Breakdown'!N300)","v":""},{"$f":"IFERROR(('4 - Species Breakdown'!J300/'WCC Summary'!$D$14)*100,\"\")","v":""},{"$f":"IF('4 - Species Breakdown'!J300=0,\"\",'4 - Species Breakdown'!J300)","v":""}]
[null,{"$f":"IF('4 - Species Breakdown'!B301=0,\"\",'4 - Species Breakdown'!B301)","v":""},{"$f":"IF('4 - Species Breakdown'!D301=0,\"\",'4 - Species Breakdown'!D301)","v":""},{"$f":"IF('4 - Species Breakdown'!L301=0,\"\",'4 - Species Breakdown'!L301)","v":""},{"$f":"IF('4 - Species Breakdown'!M301=0,\"\",'4 - Species Breakdown'!M301)","v":""},{"$f":"IF('4 - Species Breakdown'!N301=0,\"\",'4 - Species Breakdown'!N301)","v":""},{"$f":"IFERROR(('4 - Species Breakdown'!J301/'WCC Summary'!$D$14)*100,\"\")","v":""},{"$f":"IF('4 - Species Breakdown'!J301=0,\"\",'4 - Species Breakdown'!J301)","v":""}]
[null,{"$f":"IF('4 - Species Breakdown'!B302=0,\"\",'4 - Species Breakdown'!B302)","v":""},{"$f":"IF('4 - Species Breakdown'!D302=0,\"\",'4 - Species Breakdown'!D302)","v":""},{"$f":"IF('4 - Species Breakdown'!L302=0,\"\",'4 - Species Breakdown'!L302)","v":""},{"$f":"IF('4 - Species Breakdown'!M302=0,\"\",'4 - Species Breakdown'!M302)","v":""},{"$f":"IF('4 - Species Breakdown'!N302=0,\"\",'4 - Species Breakdown'!N302)","v":""},{"$f":"IFERROR(('4 - Species Breakdown'!J302/'WCC Summary'!$D$14)*100,\"\")","v":""},{"$f":"IF('4 - Species Breakdown'!J302=0,\"\",'4 - Species Breakdown'!J302)","v":""}]
[null,{"$f":"IF('4 - Species Breakdown'!B303=0,\"\",'4 - Species Breakdown'!B303)","v":""},{"$f":"IF('4 - Species Breakdown'!D303=0,\"\",'4 - Species Breakdown'!D303)","v":""},{"$f":"IF('4 - Species Breakdown'!L303=0,\"\",'4 - Species Breakdown'!L303)","v":""},{"$f":"IF('4 - Species Breakdown'!M303=0,\"\",'4 - Species Breakdown'!M303)","v":""},{"$f":"IF('4 - Species Breakdown'!N303=0,\"\",'4 - Species Breakdown'!N303)","v":""},{"$f":"IFERROR(('4 - Species Breakdown'!J303/'WCC Summary'!$D$14)*100,\"\")","v":""},{"$f":"IF('4 - Species Breakdown'!J303=0,\"\",'4 - Species Breakdown'!J303)","v":""}]
[null,{"$f":"IF('4 - Species Breakdown'!B304=0,\"\",'4 - Species Breakdown'!B304)","v":""},{"$f":"IF('4 - Species Breakdown'!D304=0,\"\",'4 - Species Breakdown'!D304)","v":""},{"$f":"IF('4 - Species Breakdown'!L304=0,\"\",'4 - Species Breakdown'!L304)","v":""},{"$f":"IF('4 - Species Breakdown'!M304=0,\"\",'4 - Species Breakdown'!M304)","v":""},{"$f":"IF('4 - Species Breakdown'!N304=0,\"\",'4 - Species Breakdown'!N304)","v":""},{"$f":"IFERROR(('4 - Species Breakdown'!J304/'WCC Summary'!$D$14)*100,\"\")","v":""},{"$f":"IF('4 - Species Breakdown'!J304=0,\"\",'4 - Species Breakdown'!J304)","v":""}]
[null,{"$f":"IF('4 - Species Breakdown'!B305=0,\"\",'4 - Species Breakdown'!B305)","v":""},{"$f":"IF('4 - Species Breakdown'!D305=0,\"\",'4 - Species Breakdown'!D305)","v":""},{"$f":"IF('4 - Species Breakdown'!L305=0,\"\",'4 - Species Breakdown'!L305)","v":""},{"$f":"IF('4 - Species Breakdown'!M305=0,\"\",'4 - Species Breakdown'!M305)","v":""},{"$f":"IF('4 - Species Breakdown'!N305=0,\"\",'4 - Species Breakdown'!N305)","v":""},{"$f":"IFERROR(('4 - Species Breakdown'!J305/'WCC Summary'!$D$14)*100,\"\")","v":""},{"$f":"IF('4 - Species Breakdown'!J305=0,\"\",'4 - Species Breakdown'!J305)","v":""}]
[null,{"$f":"IF('4 - Species Breakdown'!B306=0,\"\",'4 - Species Breakdown'!B306)","v":""},{"$f":"IF('4 - Species Breakdown'!D306=0,\"\",'4 - Species Breakdown'!D306)","v":""},{"$f":"IF('4 - Species Breakdown'!L306=0,\"\",'4 - Species Breakdown'!L306)","v":""},{"$f":"IF('4 - Species Breakdown'!M306=0,\"\",'4 - Species Breakdown'!M306)","v":""},{"$f":"IF('4 - Species Breakdown'!N306=0,\"\",'4 - Species Breakdown'!N306)","v":""},{"$f":"IFERROR(('4 - Species Breakdown'!J306/'WCC Summary'!$D$14)*100,\"\")","v":""},{"$f":"IF('4 - Species Breakdown'!J306=0,\"\",'4 - Species Breakdown'!J306)","v":""}]
[null,{"$f":"IF('4 - Species Breakdown'!B307=0,\"\",'4 - Species Breakdown'!B307)","v":""},{"$f":"IF('4 - Species Breakdown'!D307=0,\"\",'4 - Species Breakdown'!D307)","v":""},{"$f":"IF('4 - Species Breakdown'!L307=0,\"\",'4 - Species Breakdown'!L307)","v":""},{"$f":"IF('4 - Species Breakdown'!M307=0,\"\",'4 - Species Breakdown'!M307)","v":""},{"$f":"IF('4 - Species Breakdown'!N307=0,\"\",'4 - Species Breakdown'!N307)","v":""},{"$f":"IFERROR(('4 - Species Breakdown'!J307/'WCC Summary'!$D$14)*100,\"\")","v":""},{"$f":"IF('4 - Species Breakdown'!J307=0,\"\",'4 - Species Breakdown'!J307)","v":""}]
[null,{"$f":"IF('4 - Species Breakdown'!B308=0,\"\",'4 - Species Breakdown'!B308)","v":""},{"$f":"IF('4 - Species Breakdown'!D308=0,\"\",'4 - Species Breakdown'!D308)","v":""},{"$f":"IF('4 - Species Breakdown'!L308=0,\"\",'4 - Species Breakdown'!L308)","v":""},{"$f":"IF('4 - Species Breakdown'!M308=0,\"\",'4 - Species Breakdown'!M308)","v":""},{"$f":"IF('4 - Species Breakdown'!N308=0,\"\",'4 - Species Breakdown'!N308)","v":""},{"$f":"IFERROR(('4 - Species Breakdown'!J308/'WCC Summary'!$D$14)*100,\"\")","v":""},{"$f":"IF('4 - Species Breakdown'!J308=0,\"\",'4 - Species Breakdown'!J308)","v":""}]
[null,{"$f":"IF('4 - Species Breakdown'!B309=0,\"\",'4 - Species Breakdown'!B309)","v":""},{"$f":"IF('4 - Species Breakdown'!D309=0,\"\",'4 - Species Breakdown'!D309)","v":""},{"$f":"IF('4 - Species Breakdown'!L309=0,\"\",'4 - Species Breakdown'!L309)","v":""},{"$f":"IF('4 - Species Breakdown'!M309=0,\"\",'4 - Species Breakdown'!M309)","v":""},{"$f":"IF('4 - Species Breakdown'!N309=0,\"\",'4 - Species Breakdown'!N309)","v":""},{"$f":"IFERROR(('4 - Species Breakdown'!J309/'WCC Summary'!$D$14)*100,\"\")","v":""},{"$f":"IF('4 - Species Breakdown'!J309=0,\"\",'4 - Species Breakdown'!J309)","v":""}]
[null,{"$f":"IF('4 - Species Breakdown'!B310=0,\"\",'4 - Species Breakdown'!B310)","v":""},{"$f":"IF('4 - Species Breakdown'!D310=0,\"\",'4 - Species Breakdown'!D310)","v":""},{"$f":"IF('4 - Species Breakdown'!L310=0,\"\",'4 - Species Breakdown'!L310)","v":""},{"$f":"IF('4 - Species Breakdown'!M310=0,\"\",'4 - Species Breakdown'!M310)","v":""},{"$f":"IF('4 - Species Breakdown'!N310=0,\"\",'4 - Species Breakdown'!N310)","v":""},{"$f":"IFERROR(('4 - Species Breakdown'!J310/'WCC Summary'!$D$14)*100,\"\")","v":""},{"$f":"IF('4 - Species Breakdown'!J310=0,\"\",'4 - Species Breakdown'!J310)","v":""}]
[null,{"$f":"IF('4 - Species Breakdown'!B311=0,\"\",'4 - Species Breakdown'!B311)","v":""},{"$f":"IF('4 - Species Breakdown'!D311=0,\"\",'4 - Species Breakdown'!D311)","v":""},{"$f":"IF('4 - Species Breakdown'!L311=0,\"\",'4 - Species Breakdown'!L311)","v":""},{"$f":"IF('4 - Species Breakdown'!M311=0,\"\",'4 - Species Breakdown'!M311)","v":""},{"$f":"IF('4 - Species Breakdown'!N311=0,\"\",'4 - Species Breakdown'!N311)","v":""},{"$f":"IFERROR(('4 - Species Breakdown'!J311/'WCC Summary'!$D$14)*100,\"\")","v":""},{"$f":"IF('4 - Species Breakdown'!J311=0,\"\",'4 - Species Breakdown'!J311)","v":""}]
[null,{"$f":"IF('4 - Species Breakdown'!B312=0,\"\",'4 - Species Breakdown'!B312)","v":""},{"$f":"IF('4 - Species Breakdown'!D312=0,\"\",'4 - Species Breakdown'!D312)","v":""},{"$f":"IF('4 - Species Breakdown'!L312=0,\"\",'4 - Species Breakdown'!L312)","v":""},{"$f":"IF('4 - Species Breakdown'!M312=0,\"\",'4 - Species Breakdown'!M312)","v":""},{"$f":"IF('4 - Species Breakdown'!N312=0,\"\",'4 - Species Breakdown'!N312)","v":""},{"$f":"IFERROR(('4 - Species Breakdown'!J312/'WCC Summary'!$D$14)*100,\"\")","v":""},{"$f":"IF('4 - Species Breakdown'!J312=0,\"\",'4 - Species Breakdown'!J312)","v":""}]
[null,{"$f":"IF('4 - Species Breakdown'!B313=0,\"\",'4 - Species Breakdown'!B313)","v":""},{"$f":"IF('4 - Species Breakdown'!D313=0,\"\",'4 - Species Breakdown'!D313)","v":""},{"$f":"IF('4 - Species Breakdown'!L313=0,\"\",'4 - Species Breakdown'!L313)","v":""},{"$f":"IF('4 - Species Breakdown'!M313=0,\"\",'4 - Species Breakdown'!M313)","v":""},{"$f":"IF('4 - Species Breakdown'!N313=0,\"\",'4 - Species Breakdown'!N313)","v":""},{"$f":"IFERROR(('4 - Species Breakdown'!J313/'WCC Summary'!$D$14)*100,\"\")","v":""},{"$f":"IF('4 - Species Breakdown'!J313=0,\"\",'4 - Species Breakdown'!J313)","v":""}]
[null,{"$f":"IF('4 - Species Breakdown'!B314=0,\"\",'4 - Species Breakdown'!B314)","v":""},{"$f":"IF('4 - Species Breakdown'!D314=0,\"\",'4 - Species Breakdown'!D314)","v":""},{"$f":"IF('4 - Species Breakdown'!L314=0,\"\",'4 - Species Breakdown'!L314)","v":""},{"$f":"IF('4 - Species Breakdown'!M314=0,\"\",'4 - Species Breakdown'!M314)","v":""},{"$f":"IF('4 - Species Breakdown'!N314=0,\"\",'4 - Species Breakdown'!N314)","v":""},{"$f":"IFERROR(('4 - Species Breakdown'!J314/'WCC Summary'!$D$14)*100,\"\")","v":""},{"$f":"IF('4 - Species Breakdown'!J314=0,\"\",'4 - Species Breakdown'!J314)","v":""}]
[null,{"$f":"IF('4 - Species Breakdown'!B315=0,\"\",'4 - Species Breakdown'!B315)","v":""},{"$f":"IF('4 - Species Breakdown'!D315=0,\"\",'4 - Species Breakdown'!D315)","v":""},{"$f":"IF('4 - Species Breakdown'!L315=0,\"\",'4 - Species Breakdown'!L315)","v":""},{"$f":"IF('4 - Species Breakdown'!M315=0,\"\",'4 - Species Breakdown'!M315)","v":""},{"$f":"IF('4 - Species Breakdown'!N315=0,\"\",'4 - Species Breakdown'!N315)","v":""},{"$f":"IFERROR(('4 - Species Breakdown'!J315/'WCC Summary'!$D$14)*100,\"\")","v":""},{"$f":"IF('4 - Species Breakdown'!J315=0,\"\",'4 - Species Breakdown'!J315)","v":""}]
[null,{"$f":"IF('4 - Species Breakdown'!B316=0,\"\",'4 - Species Breakdown'!B316)","v":""},{"$f":"IF('4 - Species Breakdown'!D316=0,\"\",'4 - Species Breakdown'!D316)","v":""},{"$f":"IF('4 - Species Breakdown'!L316=0,\"\",'4 - Species Breakdown'!L316)","v":""},{"$f":"IF('4 - Species Breakdown'!M316=0,\"\",'4 - Species Breakdown'!M316)","v":""},{"$f":"IF('4 - Species Breakdown'!N316=0,\"\",'4 - Species Breakdown'!N316)","v":""},{"$f":"IFERROR(('4 - Species Breakdown'!J316/'WCC Summary'!$D$14)*100,\"\")","v":""},{"$f":"IF('4 - Species Breakdown'!J316=0,\"\",'4 - Species Breakdown'!J316)","v":""}]
[null,{"$f":"IF('4 - Species Breakdown'!B317=0,\"\",'4 - Species Breakdown'!B317)","v":""},{"$f":"IF('4 - Species Breakdown'!D317=0,\"\",'4 - Species Breakdown'!D317)","v":""},{"$f":"IF('4 - Species Breakdown'!L317=0,\"\",'4 - Species Breakdown'!L317)","v":""},{"$f":"IF('4 - Species Breakdown'!M317=0,\"\",'4 - Species Breakdown'!M317)","v":""},{"$f":"IF('4 - Species Breakdown'!N317=0,\"\",'4 - Species Breakdown'!N317)","v":""},{"$f":"IFERROR(('4 - Species Breakdown'!J317/'WCC Summary'!$D$14)*100,\"\")","v":""},{"$f":"IF('4 - Species Breakdown'!J317=0,\"\",'4 - Species Breakdown'!J317)","v":""}]
[null,{"$f":"IF('4 - Species Breakdown'!B318=0,\"\",'4 - Species Breakdown'!B318)","v":""},{"$f":"IF('4 - Species Breakdown'!D318=0,\"\",'4 - Species Breakdown'!D318)","v":""},{"$f":"IF('4 - Species Breakdown'!L318=0,\"\",'4 - Species Breakdown'!L318)","v":""},{"$f":"IF('4 - Species Breakdown'!M318=0,\"\",'4 - Species Breakdown'!M318)","v":""},{"$f":"IF('4 - Species Breakdown'!N318=0,\"\",'4 - Species Breakdown'!N318)","v":""},{"$f":"IFERROR(('4 - Species Breakdown'!J318/'WCC Summary'!$D$14)*100,\"\")","v":""},{"$f":"IF('4 - Species Breakdown'!J318=0,\"\",'4 - Species Breakdown'!J318)","v":""}]
[null,{"$f":"IF('4 - Species Breakdown'!B319=0,\"\",'4 - Species Breakdown'!B319)","v":""},{"$f":"IF('4 - Species Breakdown'!D319=0,\"\",'4 - Species Breakdown'!D319)","v":""},{"$f":"IF('4 - Species Breakdown'!L319=0,\"\",'4 - Species Breakdown'!L319)","v":""},{"$f":"IF('4 - Species Breakdown'!M319=0,\"\",'4 - Species Breakdown'!M319)","v":""},{"$f":"IF('4 - Species Breakdown'!N319=0,\"\",'4 - Species Breakdown'!N319)","v":""},{"$f":"IFERROR(('4 - Species Breakdown'!J319/'WCC Summary'!$D$14)*100,\"\")","v":""},{"$f":"IF('4 - Species Breakdown'!J319=0,\"\",'4 - Species Breakdown'!J319)","v":""}]
[null,{"$f":"IF('4 - Species Breakdown'!B320=0,\"\",'4 - Species Breakdown'!B320)","v":""},{"$f":"IF('4 - Species Breakdown'!D320=0,\"\",'4 - Species Breakdown'!D320)","v":""},{"$f":"IF('4 - Species Breakdown'!L320=0,\"\",'4 - Species Breakdown'!L320)","v":""},{"$f":"IF('4 - Species Breakdown'!M320=0,\"\",'4 - Species Breakdown'!M320)","v":""},{"$f":"IF('4 - Species Breakdown'!N320=0,\"\",'4 - Species Breakdown'!N320)","v":""},{"$f":"IFERROR(('4 - Species Breakdown'!J320/'WCC Summary'!$D$14)*100,\"\")","v":""},{"$f":"IF('4 - Species Breakdown'!J320=0,\"\",'4 - Species Breakdown'!J320)","v":""}]
[null,{"$f":"IF('4 - Species Breakdown'!B321=0,\"\",'4 - Species Breakdown'!B321)","v":""},{"$f":"IF('4 - Species Breakdown'!D321=0,\"\",'4 - Species Breakdown'!D321)","v":""},{"$f":"IF('4 - Species Breakdown'!L321=0,\"\",'4 - Species Breakdown'!L321)","v":""},{"$f":"IF('4 - Species Breakdown'!M321=0,\"\",'4 - Species Breakdown'!M321)","v":""},{"$f":"IF('4 - Species Breakdown'!N321=0,\"\",'4 - Species Breakdown'!N321)","v":""},{"$f":"IFERROR(('4 - Species Breakdown'!J321/'WCC Summary'!$D$14)*100,\"\")","v":""},{"$f":"IF('4 - Species Breakdown'!J321=0,\"\",'4 - Species Breakdown'!J321)","v":""}]
[null,{"$f":"IF('4 - Species Breakdown'!B322=0,\"\",'4 - Species Breakdown'!B322)","v":""},{"$f":"IF('4 - Species Breakdown'!D322=0,\"\",'4 - Species Breakdown'!D322)","v":""},{"$f":"IF('4 - Species Breakdown'!L322=0,\"\",'4 - Species Breakdown'!L322)","v":""},{"$f":"IF('4 - Species Breakdown'!M322=0,\"\",'4 - Species Breakdown'!M322)","v":""},{"$f":"IF('4 - Species Breakdown'!N322=0,\"\",'4 - Species Breakdown'!N322)","v":""},{"$f":"IFERROR(('4 - Species Breakdown'!J322/'WCC Summary'!$D$14)*100,\"\")","v":""},{"$f":"IF('4 - Species Breakdown'!J322=0,\"\",'4 - Species Breakdown'!J322)","v":""}]
[null,{"$f":"IF('4 - Species Breakdown'!B323=0,\"\",'4 - Species Breakdown'!B323)","v":""},{"$f":"IF('4 - Species Breakdown'!D323=0,\"\",'4 - Species Breakdown'!D323)","v":""},{"$f":"IF('4 - Species Breakdown'!L323=0,\"\",'4 - Species Breakdown'!L323)","v":""},{"$f":"IF('4 - Species Breakdown'!M323=0,\"\",'4 - Species Breakdown'!M323)","v":""},{"$f":"IF('4 - Species Breakdown'!N323=0,\"\",'4 - Species Breakdown'!N323)","v":""},{"$f":"IFERROR(('4 - Species Breakdown'!J323/'WCC Summary'!$D$14)*100,\"\")","v":""},{"$f":"IF('4 - Species Breakdown'!J323=0,\"\",'4 - Species Breakdown'!J323)","v":""}]
[null,{"$f":"IF('4 - Species Breakdown'!B324=0,\"\",'4 - Species Breakdown'!B324)","v":""},{"$f":"IF('4 - Species Breakdown'!D324=0,\"\",'4 - Species Breakdown'!D324)","v":""},{"$f":"IF('4 - Species Breakdown'!L324=0,\"\",'4 - Species Breakdown'!L324)","v":""},{"$f":"IF('4 - Species Breakdown'!M324=0,\"\",'4 - Species Breakdown'!M324)","v":""},{"$f":"IF('4 - Species Breakdown'!N324=0,\"\",'4 - Species Breakdown'!N324)","v":""},{"$f":"IFERROR(('4 - Species Breakdown'!J324/'WCC Summary'!$D$14)*100,\"\")","v":""},{"$f":"IF('4 - Species Breakdown'!J324=0,\"\",'4 - Species Breakdown'!J324)","v":""}]
[null,{"$f":"IF('4 - Species Breakdown'!B325=0,\"\",'4 - Species Breakdown'!B325)","v":""},{"$f":"IF('4 - Species Breakdown'!D325=0,\"\",'4 - Species Breakdown'!D325)","v":""},{"$f":"IF('4 - Species Breakdown'!L325=0,\"\",'4 - Species Breakdown'!L325)","v":""},{"$f":"IF('4 - Species Breakdown'!M325=0,\"\",'4 - Species Breakdown'!M325)","v":""},{"$f":"IF('4 - Species Breakdown'!N325=0,\"\",'4 - Species Breakdown'!N325)","v":""},{"$f":"IFERROR(('4 - Species Breakdown'!J325/'WCC Summary'!$D$14)*100,\"\")","v":""},{"$f":"IF('4 - Species Breakdown'!J325=0,\"\",'4 - Species Breakdown'!J325)","v":""}]
[null,{"$f":"IF('4 - Species Breakdown'!B326=0,\"\",'4 - Species Breakdown'!B326)","v":""},{"$f":"IF('4 - Species Breakdown'!D326=0,\"\",'4 - Species Breakdown'!D326)","v":""},{"$f":"IF('4 - Species Breakdown'!L326=0,\"\",'4 - Species Breakdown'!L326)","v":""},{"$f":"IF('4 - Species Breakdown'!M326=0,\"\",'4 - Species Breakdown'!M326)","v":""},{"$f":"IF('4 - Species Breakdown'!N326=0,\"\",'4 - Species Breakdown'!N326)","v":""},{"$f":"IFERROR(('4 - Species Breakdown'!J326/'WCC Summary'!$D$14)*100,\"\")","v":""},{"$f":"IF('4 - Species Breakdown'!J326=0,\"\",'4 - Species Breakdown'!J326)","v":""}]
[null,{"$f":"IF('4 - Species Breakdown'!B327=0,\"\",'4 - Species Breakdown'!B327)","v":""},{"$f":"IF('4 - Species Breakdown'!D327=0,\"\",'4 - Species Breakdown'!D327)","v":""},{"$f":"IF('4 - Species Breakdown'!L327=0,\"\",'4 - Species Breakdown'!L327)","v":""},{"$f":"IF('4 - Species Breakdown'!M327=0,\"\",'4 - Species Breakdown'!M327)","v":""},{"$f":"IF('4 - Species Breakdown'!N327=0,\"\",'4 - Species Breakdown'!N327)","v":""},{"$f":"IFERROR(('4 - Species Breakdown'!J327/'WCC Summary'!$D$14)*100,\"\")","v":""},{"$f":"IF('4 - Species Breakdown'!J327=0,\"\",'4 - Species Breakdown'!J327)","v":""}]
[null,{"$f":"IF('4 - Species Breakdown'!B328=0,\"\",'4 - Species Breakdown'!B328)","v":""},{"$f":"IF('4 - Species Breakdown'!D328=0,\"\",'4 - Species Breakdown'!D328)","v":""},{"$f":"IF('4 - Species Breakdown'!L328=0,\"\",'4 - Species Breakdown'!L328)","v":""},{"$f":"IF('4 - Species Breakdown'!M328=0,\"\",'4 - Species Breakdown'!M328)","v":""},{"$f":"IF('4 - Species Breakdown'!N328=0,\"\",'4 - Species Breakdown'!N328)","v":""},{"$f":"IFERROR(('4 - Species Breakdown'!J328/'WCC Summary'!$D$14)*100,\"\")","v":""},{"$f":"IF('4 - Species Breakdown'!J328=0,\"\",'4 - Species Breakdown'!J328)","v":""}]
[null,{"$f":"IF('4 - Species Breakdown'!B329=0,\"\",'4 - Species Breakdown'!B329)","v":""},{"$f":"IF('4 - Species Breakdown'!D329=0,\"\",'4 - Species Breakdown'!D329)","v":""},{"$f":"IF('4 - Species Breakdown'!L329=0,\"\",'4 - Species Breakdown'!L329)","v":""},{"$f":"IF('4 - Species Breakdown'!M329=0,\"\",'4 - Species Breakdown'!M329)","v":""},{"$f":"IF('4 - Species Breakdown'!N329=0,\"\",'4 - Species Breakdown'!N329)","v":""},{"$f":"IFERROR(('4 - Species Breakdown'!J329/'WCC Summary'!$D$14)*100,\"\")","v":""},{"$f":"IF('4 - Species Breakdown'!J329=0,\"\",'4 - Species Breakdown'!J329)","v":""}]
[null,{"$f":"IF('4 - Species Breakdown'!B330=0,\"\",'4 - Species Breakdown'!B330)","v":""},{"$f":"IF('4 - Species Breakdown'!D330=0,\"\",'4 - Species Breakdown'!D330)","v":""},{"$f":"IF('4 - Species Breakdown'!L330=0,\"\",'4 - Species Breakdown'!L330)","v":""},{"$f":"IF('4 - Species Breakdown'!M330=0,\"\",'4 - Species Breakdown'!M330)","v":""},{"$f":"IF('4 - Species Breakdown'!N330=0,\"\",'4 - Species Breakdown'!N330)","v":""},{"$f":"IFERROR(('4 - Species Breakdown'!J330/'WCC Summary'!$D$14)*100,\"\")","v":""},{"$f":"IF('4 - Species Breakdown'!J330=0,\"\",'4 - Species Breakdown'!J330)","v":""}]
[null,{"$f":"IF('4 - Species Breakdown'!B331=0,\"\",'4 - Species Breakdown'!B331)","v":""},{"$f":"IF('4 - Species Breakdown'!D331=0,\"\",'4 - Species Breakdown'!D331)","v":""},{"$f":"IF('4 - Species Breakdown'!L331=0,\"\",'4 - Species Breakdown'!L331)","v":""},{"$f":"IF('4 - Species Breakdown'!M331=0,\"\",'4 - Species Breakdown'!M331)","v":""},{"$f":"IF('4 - Species Breakdown'!N331=0,\"\",'4 - Species Breakdown'!N331)","v":""},{"$f":"IFERROR(('4 - Species Breakdown'!J331/'WCC Summary'!$D$14)*100,\"\")","v":""},{"$f":"IF('4 - Species Breakdown'!J331=0,\"\",'4 - Species Breakdown'!J331)","v":""}]
[null,{"$f":"IF('4 - Species Breakdown'!B332=0,\"\",'4 - Species Breakdown'!B332)","v":""},{"$f":"IF('4 - Species Breakdown'!D332=0,\"\",'4 - Species Breakdown'!D332)","v":""},{"$f":"IF('4 - Species Breakdown'!L332=0,\"\",'4 - Species Breakdown'!L332)","v":""},{"$f":"IF('4 - Species Breakdown'!M332=0,\"\",'4 - Species Breakdown'!M332)","v":""},{"$f":"IF('4 - Species Breakdown'!N332=0,\"\",'4 - Species Breakdown'!N332)","v":""},{"$f":"IFERROR(('4 - Species Breakdown'!J332/'WCC Summary'!$D$14)*100,\"\")","v":""},{"$f":"IF('4 - Species Breakdown'!J332=0,\"\",'4 - Species Breakdown'!J332)","v":""}]
[null,{"$f":"IF('4 - Species Breakdown'!B333=0,\"\",'4 - Species Breakdown'!B333)","v":""},{"$f":"IF('4 - Species Breakdown'!D333=0,\"\",'4 - Species Breakdown'!D333)","v":""},{"$f":"IF('4 - Species Breakdown'!L333=0,\"\",'4 - Species Breakdown'!L333)","v":""},{"$f":"IF('4 - Species Breakdown'!M333=0,\"\",'4 - Species Breakdown'!M333)","v":""},{"$f":"IF('4 - Species Breakdown'!N333=0,\"\",'4 - Species Breakdown'!N333)","v":""},{"$f":"IFERROR(('4 - Species Breakdown'!J333/'WCC Summary'!$D$14)*100,\"\")","v":""},{"$f":"IF('4 - Species Breakdown'!J333=0,\"\",'4 - Species Breakdown'!J333)","v":""}]
[null,{"$f":"IF('4 - Species Breakdown'!B334=0,\"\",'4 - Species Breakdown'!B334)","v":""},{"$f":"IF('4 - Species Breakdown'!D334=0,\"\",'4 - Species Breakdown'!D334)","v":""},{"$f":"IF('4 - Species Breakdown'!L334=0,\"\",'4 - Species Breakdown'!L334)","v":""},{"$f":"IF('4 - Species Breakdown'!M334=0,\"\",'4 - Species Breakdown'!M334)","v":""},{"$f":"IF('4 - Species Breakdown'!N334=0,\"\",'4 - Species Breakdown'!N334)","v":""},{"$f":"IFERROR(('4 - Species Breakdown'!J334/'WCC Summary'!$D$14)*100,\"\")","v":""},{"$f":"IF('4 - Species Breakdown'!J334=0,\"\",'4 - Species Breakdown'!J334)","v":""}]
[null,{"$f":"IF('4 - Species Breakdown'!B335=0,\"\",'4 - Species Breakdown'!B335)","v":""},{"$f":"IF('4 - Species Breakdown'!D335=0,\"\",'4 - Species Breakdown'!D335)","v":""},{"$f":"IF('4 - Species Breakdown'!L335=0,\"\",'4 - Species Breakdown'!L335)","v":""},{"$f":"IF('4 - Species Breakdown'!M335=0,\"\",'4 - Species Breakdown'!M335)","v":""},{"$f":"IF('4 - Species Breakdown'!N335=0,\"\",'4 - Species Breakdown'!N335)","v":""},{"$f":"IFERROR(('4 - Species Breakdown'!J335/'WCC Summary'!$D$14)*100,\"\")","v":""},{"$f":"IF('4 - Species Breakdown'!J335=0,\"\",'4 - Species Breakdown'!J335)","v":""}]
[null,{"$f":"IF('4 - Species Breakdown'!B336=0,\"\",'4 - Species Breakdown'!B336)","v":""},{"$f":"IF('4 - Species Breakdown'!D336=0,\"\",'4 - Species Breakdown'!D336)","v":""},{"$f":"IF('4 - Species Breakdown'!L336=0,\"\",'4 - Species Breakdown'!L336)","v":""},{"$f":"IF('4 - Species Breakdown'!M336=0,\"\",'4 - Species Breakdown'!M336)","v":""},{"$f":"IF('4 - Species Breakdown'!N336=0,\"\",'4 - Species Breakdown'!N336)","v":""},{"$f":"IFERROR(('4 - Species Breakdown'!J336/'WCC Summary'!$D$14)*100,\"\")","v":""},{"$f":"IF('4 - Species Breakdown'!J336=0,\"\",'4 - Species Breakdown'!J336)","v":""}]
[null,{"$f":"IF('4 - Species Breakdown'!B337=0,\"\",'4 - Species Breakdown'!B337)","v":""},{"$f":"IF('4 - Species Breakdown'!D337=0,\"\",'4 - Species Breakdown'!D337)","v":""},{"$f":"IF('4 - Species Breakdown'!L337=0,\"\",'4 - Species Breakdown'!L337)","v":""},{"$f":"IF('4 - Species Breakdown'!M337=0,\"\",'4 - Species Breakdown'!M337)","v":""},{"$f":"IF('4 - Species Breakdown'!N337=0,\"\",'4 - Species Breakdown'!N337)","v":""},{"$f":"IFERROR(('4 - Species Breakdown'!J337/'WCC Summary'!$D$14)*100,\"\")","v":""},{"$f":"IF('4 - Species Breakdown'!J337=0,\"\",'4 - Species Breakdown'!J337)","v":""}]
[null,{"$f":"IF('4 - Species Breakdown'!B338=0,\"\",'4 - Species Breakdown'!B338)","v":""},{"$f":"IF('4 - Species Breakdown'!D338=0,\"\",'4 - Species Breakdown'!D338)","v":""},{"$f":"IF('4 - Species Breakdown'!L338=0,\"\",'4 - Species Breakdown'!L338)","v":""},{"$f":"IF('4 - Species Breakdown'!M338=0,\"\",'4 - Species Breakdown'!M338)","v":""},{"$f":"IF('4 - Species Breakdown'!N338=0,\"\",'4 - Species Breakdown'!N338)","v":""},{"$f":"IFERROR(('4 - Species Breakdown'!J338/'WCC Summary'!$D$14)*100,\"\")","v":""},{"$f":"IF('4 - Species Breakdown'!J338=0,\"\",'4 - Species Breakdown'!J338)","v":""}]
[null,{"$f":"IF('4 - Species Breakdown'!B339=0,\"\",'4 - Species Breakdown'!B339)","v":""},{"$f":"IF('4 - Species Breakdown'!D339=0,\"\",'4 - Species Breakdown'!D339)","v":""},{"$f":"IF('4 - Species Breakdown'!L339=0,\"\",'4 - Species Breakdown'!L339)","v":""},{"$f":"IF('4 - Species Breakdown'!M339=0,\"\",'4 - Species Breakdown'!M339)","v":""},{"$f":"IF('4 - Species Breakdown'!N339=0,\"\",'4 - Species Breakdown'!N339)","v":""},{"$f":"IFERROR(('4 - Species Breakdown'!J339/'WCC Summary'!$D$14)*100,\"\")","v":""},{"$f":"IF('4 - Species Breakdown'!J339=0,\"\",'4 - Species Breakdown'!J339)","v":""}]
[null,{"$f":"IF('4 - Species Breakdown'!B340=0,\"\",'4 - Species Breakdown'!B340)","v":""},{"$f":"IF('4 - Species Breakdown'!D340=0,\"\",'4 - Species Breakdown'!D340)","v":""},{"$f":"IF('4 - Species Breakdown'!L340=0,\"\",'4 - Species Breakdown'!L340)","v":""},{"$f":"IF('4 - Species Breakdown'!M340=0,\"\",'4 - Species Breakdown'!M340)","v":""},{"$f":"IF('4 - Species Breakdown'!N340=0,\"\",'4 - Species Breakdown'!N340)","v":""},{"$f":"IFERROR(('4 - Species Breakdown'!J340/'WCC Summary'!$D$14)*100,\"\")","v":""},{"$f":"IF('4 - Species Breakdown'!J340=0,\"\",'4 - Species Breakdown'!J340)","v":""}]
[null,{"$f":"IF('4 - Species Breakdown'!B341=0,\"\",'4 - Species Breakdown'!B341)","v":""},{"$f":"IF('4 - Species Breakdown'!D341=0,\"\",'4 - Species Breakdown'!D341)","v":""},{"$f":"IF('4 - Species Breakdown'!L341=0,\"\",'4 - Species Breakdown'!L341)","v":""},{"$f":"IF('4 - Species Breakdown'!M341=0,\"\",'4 - Species Breakdown'!M341)","v":""},{"$f":"IF('4 - Species Breakdown'!N341=0,\"\",'4 - Species Breakdown'!N341)","v":""},{"$f":"IFERROR(('4 - Species Breakdown'!J341/'WCC Summary'!$D$14)*100,\"\")","v":""},{"$f":"IF('4 - Species Breakdown'!J341=0,\"\",'4 - Species Breakdown'!J341)","v":""}]
[null,{"$f":"IF('4 - Species Breakdown'!B342=0,\"\",'4 - Species Breakdown'!B342)","v":""},{"$f":"IF('4 - Species Breakdown'!D342=0,\"\",'4 - Species Breakdown'!D342)","v":""},{"$f":"IF('4 - Species Breakdown'!L342=0,\"\",'4 - Species Breakdown'!L342)","v":""},{"$f":"IF('4 - Species Breakdown'!M342=0,\"\",'4 - Species Breakdown'!M342)","v":""},{"$f":"IF('4 - Species Breakdown'!N342=0,\"\",'4 - Species Breakdown'!N342)","v":""},{"$f":"IFERROR(('4 - Species Breakdown'!J342/'WCC Summary'!$D$14)*100,\"\")","v":""},{"$f":"IF('4 - Species Breakdown'!J342=0,\"\",'4 - Species Breakdown'!J342)","v":""}]
[null,{"$f":"IF('4 - Species Breakdown'!B343=0,\"\",'4 - Species Breakdown'!B343)","v":""},{"$f":"IF('4 - Species Breakdown'!D343=0,\"\",'4 - Species Breakdown'!D343)","v":""},{"$f":"IF('4 - Species Breakdown'!L343=0,\"\",'4 - Species Breakdown'!L343)","v":""},{"$f":"IF('4 - Species Breakdown'!M343=0,\"\",'4 - Species Breakdown'!M343)","v":""},{"$f":"IF('4 - Species Breakdown'!N343=0,\"\",'4 - Species Breakdown'!N343)","v":""},{"$f":"IFERROR(('4 - Species Breakdown'!J343/'WCC Summary'!$D$14)*100,\"\")","v":""},{"$f":"IF('4 - Species Breakdown'!J343=0,\"\",'4 - Species Breakdown'!J343)","v":""}]
[null,{"$f":"IF('4 - Species Breakdown'!B344=0,\"\",'4 - Species Breakdown'!B344)","v":""},{"$f":"IF('4 - Species Breakdown'!D344=0,\"\",'4 - Species Breakdown'!D344)","v":""},{"$f":"IF('4 - Species Breakdown'!L344=0,\"\",'4 - Species Breakdown'!L344)","v":""},{"$f":"IF('4 - Species Breakdown'!M344=0,\"\",'4 - Species Breakdown'!M344)","v":""},{"$f":"IF('4 - Species Breakdown'!N344=0,\"\",'4 - Species Breakdown'!N344)","v":""},{"$f":"IFERROR(('4 - Species Breakdown'!J344/'WCC Summary'!$D$14)*100,\"\")","v":""},{"$f":"IF('4 - Species Breakdown'!J344=0,\"\",'4 - Species Breakdown'!J344)","v":""}]
[null,{"$f":"IF('4 - Species Breakdown'!B345=0,\"\",'4 - Species Breakdown'!B345)","v":""},{"$f":"IF('4 - Species Breakdown'!D345=0,\"\",'4 - Species Breakdown'!D345)","v":""},{"$f":"IF('4 - Species Breakdown'!L345=0,\"\",'4 - Species Breakdown'!L345)","v":""},{"$f":"IF('4 - Species Breakdown'!M345=0,\"\",'4 - Species Breakdown'!M345)","v":""},{"$f":"IF('4 - Species Breakdown'!N345=0,\"\",'4 - Species Breakdown'!N345)","v":""},{"$f":"IFERROR(('4 - Species Breakdown'!J345/'WCC Summary'!$D$14)*100,\"\")","v":""},{"$f":"IF('4 - Species Breakdown'!J345=0,\"\",'4 - Species Breakdown'!J345)","v":""}]
[null,{"$f":"IF('4 - Species Breakdown'!B346=0,\"\",'4 - Species Breakdown'!B346)","v":""},{"$f":"IF('4 - Species Breakdown'!D346=0,\"\",'4 - Species Breakdown'!D346)","v":""},{"$f":"IF('4 - Species Breakdown'!L346=0,\"\",'4 - Species Breakdown'!L346)","v":""},{"$f":"IF('4 - Species Breakdown'!M346=0,\"\",'4 - Species Breakdown'!M346)","v":""},{"$f":"IF('4 - Species Breakdown'!N346=0,\"\",'4 - Species Breakdown'!N346)","v":""},{"$f":"IFERROR(('4 - Species Breakdown'!J346/'WCC Summary'!$D$14)*100,\"\")","v":""},{"$f":"IF('4 - Species Breakdown'!J346=0,\"\",'4 - Species Breakdown'!J346)","v":""}]
[null,{"$f":"IF('4 - Species Breakdown'!B347=0,\"\",'4 - Species Breakdown'!B347)","v":""},{"$f":"IF('4 - Species Breakdown'!D347=0,\"\",'4 - Species Breakdown'!D347)","v":""},{"$f":"IF('4 - Species Breakdown'!L347=0,\"\",'4 - Species Breakdown'!L347)","v":""},{"$f":"IF('4 - Species Breakdown'!M347=0,\"\",'4 - Species Breakdown'!M347)","v":""},{"$f":"IF('4 - Species Breakdown'!N347=0,\"\",'4 - Species Breakdown'!N347)","v":""},{"$f":"IFERROR(('4 - Species Breakdown'!J347/'WCC Summary'!$D$14)*100,\"\")","v":""},{"$f":"IF('4 - Species Breakdown'!J347=0,\"\",'4 - Species Breakdown'!J347)","v":""}]
[null,{"$f":"IF('4 - Species Breakdown'!B348=0,\"\",'4 - Species Breakdown'!B348)","v":""},{"$f":"IF('4 - Species Breakdown'!D348=0,\"\",'4 - Species Breakdown'!D348)","v":""},{"$f":"IF('4 - Species Breakdown'!L348=0,\"\",'4 - Species Breakdown'!L348)","v":""},{"$f":"IF('4 - Species Breakdown'!M348=0,\"\",'4 - Species Breakdown'!M348)","v":""},{"$f":"IF('4 - Species Breakdown'!N348=0,\"\",'4 - Species Breakdown'!N348)","v":""},{"$f":"IFERROR(('4 - Species Breakdown'!J348/'WCC Summary'!$D$14)*100,\"\")","v":""},{"$f":"IF('4 - Species Breakdown'!J348=0,\"\",'4 - Species Breakdown'!J348)","v":""}]
[null,{"$f":"IF('4 - Species Breakdown'!B349=0,\"\",'4 - Species Breakdown'!B349)","v":""},{"$f":"IF('4 - Species Breakdown'!D349=0,\"\",'4 - Species Breakdown'!D349)","v":""},{"$f":"IF('4 - Species Breakdown'!L349=0,\"\",'4 - Species Breakdown'!L349)","v":""},{"$f":"IF('4 - Species Breakdown'!M349=0,\"\",'4 - Species Breakdown'!M349)","v":""},{"$f":"IF('4 - Species Breakdown'!N349=0,\"\",'4 - Species Breakdown'!N349)","v":""},{"$f":"IFERROR(('4 - Species Breakdown'!J349/'WCC Summary'!$D$14)*100,\"\")","v":""},{"$f":"IF('4 - Species Breakdown'!J349=0,\"\",'4 - Species Breakdown'!J349)","v":""}]
[null,{"$f":"IF('4 - Species Breakdown'!B350=0,\"\",'4 - Species Breakdown'!B350)","v":""},{"$f":"IF('4 - Species Breakdown'!D350=0,\"\",'4 - Species Breakdown'!D350)","v":""},{"$f":"IF('4 - Species Breakdown'!L350=0,\"\",'4 - Species Breakdown'!L350)","v":""},{"$f":"IF('4 - Species Breakdown'!M350=0,\"\",'4 - Species Breakdown'!M350)","v":""},{"$f":"IF('4 - Species Breakdown'!N350=0,\"\",'4 - Species Breakdown'!N350)","v":""},{"$f":"IFERROR(('4 - Species Breakdown'!J350/'WCC Summary'!$D$14)*100,\"\")","v":""},{"$f":"IF('4 - Species Breakdown'!J350=0,\"\",'4 - Species Breakdown'!J350)","v":""}]
[null,{"$f":"IF('4 - Species Breakdown'!B351=0,\"\",'4 - Species Breakdown'!B351)","v":""},{"$f":"IF('4 - Species Breakdown'!D351=0,\"\",'4 - Species Breakdown'!D351)","v":""},{"$f":"IF('4 - Species Breakdown'!L351=0,\"\",'4 - Species Breakdown'!L351)","v":""},{"$f":"IF('4 - Species Breakdown'!M351=0,\"\",'4 - Species Breakdown'!M351)","v":""},{"$f":"IF('4 - Species Breakdown'!N351=0,\"\",'4 - Species Breakdown'!N351)","v":""},{"$f":"IFERROR(('4 - Species Breakdown'!J351/'WCC Summary'!$D$14)*100,\"\")","v":""},{"$f":"IF('4 - Species Breakdown'!J351=0,\"\",'4 - Species Breakdown'!J351)","v":""}]
[null,{"$f":"IF('4 - Species Breakdown'!B352=0,\"\",'4 - Species Breakdown'!B352)","v":""},{"$f":"IF('4 - Species Breakdown'!D352=0,\"\",'4 - Species Breakdown'!D352)","v":""},{"$f":"IF('4 - Species Breakdown'!L352=0,\"\",'4 - Species Breakdown'!L352)","v":""},{"$f":"IF('4 - Species Breakdown'!M352=0,\"\",'4 - Species Breakdown'!M352)","v":""},{"$f":"IF('4 - Species Breakdown'!N352=0,\"\",'4 - Species Breakdown'!N352)","v":""},{"$f":"IFERROR(('4 - Species Breakdown'!J352/'WCC Summary'!$D$14)*100,\"\")","v":""},{"$f":"IF('4 - Species Breakdown'!J352=0,\"\",'4 - Species Breakdown'!J352)","v":""}]
[null,{"$f":"IF('4 - Species Breakdown'!B353=0,\"\",'4 - Species Breakdown'!B353)","v":""},{"$f":"IF('4 - Species Breakdown'!D353=0,\"\",'4 - Species Breakdown'!D353)","v":""},{"$f":"IF('4 - Species Breakdown'!L353=0,\"\",'4 - Species Breakdown'!L353)","v":""},{"$f":"IF('4 - Species Breakdown'!M353=0,\"\",'4 - Species Breakdown'!M353)","v":""},{"$f":"IF('4 - Species Breakdown'!N353=0,\"\",'4 - Species Breakdown'!N353)","v":""},{"$f":"IFERROR(('4 - Species Breakdown'!J353/'WCC Summary'!$D$14)*100,\"\")","v":""},{"$f":"IF('4 - Species Breakdown'!J353=0,\"\",'4 - Species Breakdown'!J353)","v":""}]
[null,{"$f":"IF('4 - Species Breakdown'!B354=0,\"\",'4 - Species Breakdown'!B354)","v":""},{"$f":"IF('4 - Species Breakdown'!D354=0,\"\",'4 - Species Breakdown'!D354)","v":""},{"$f":"IF('4 - Species Breakdown'!L354=0,\"\",'4 - Species Breakdown'!L354)","v":""},{"$f":"IF('4 - Species Breakdown'!M354=0,\"\",'4 - Species Breakdown'!M354)","v":""},{"$f":"IF('4 - Species Breakdown'!N354=0,\"\",'4 - Species Breakdown'!N354)","v":""},{"$f":"IFERROR(('4 - Species Breakdown'!J354/'WCC Summary'!$D$14)*100,\"\")","v":""},{"$f":"IF('4 - Species Breakdown'!J354=0,\"\",'4 - Species Breakdown'!J354)","v":""}]
[null,{"$f":"IF('4 - Species Breakdown'!B355=0,\"\",'4 - Species Breakdown'!B355)","v":""},{"$f":"IF('4 - Species Breakdown'!D355=0,\"\",'4 - Species Breakdown'!D355)","v":""},{"$f":"IF('4 - Species Breakdown'!L355=0,\"\",'4 - Species Breakdown'!L355)","v":""},{"$f":"IF('4 - Species Breakdown'!M355=0,\"\",'4 - Species Breakdown'!M355)","v":""},{"$f":"IF('4 - Species Breakdown'!N355=0,\"\",'4 - Species Breakdown'!N355)","v":""},{"$f":"IFERROR(('4 - Species Breakdown'!J355/'WCC Summary'!$D$14)*100,\"\")","v":""},{"$f":"IF('4 - Species Breakdown'!J355=0,\"\",'4 - Species Breakdown'!J355)","v":""}]
[null,{"$f":"IF('4 - Species Breakdown'!B356=0,\"\",'4 - Species Breakdown'!B356)","v":""},{"$f":"IF('4 - Species Breakdown'!D356=0,\"\",'4 - Species Breakdown'!D356)","v":""},{"$f":"IF('4 - Species Breakdown'!L356=0,\"\",'4 - Species Breakdown'!L356)","v":""},{"$f":"IF('4 - Species Breakdown'!M356=0,\"\",'4 - Species Breakdown'!M356)","v":""},{"$f":"IF('4 - Species Breakdown'!N356=0,\"\",'4 - Species Breakdown'!N356)","v":""},{"$f":"IFERROR(('4 - Species Breakdown'!J356/'WCC Summary'!$D$14)*100,\"\")","v":""},{"$f":"IF('4 - Species Breakdown'!J356=0,\"\",'4 - Species Breakdown'!J356)","v":""}]
[null,{"$f":"IF('4 - Species Breakdown'!B357=0,\"\",'4 - Species Breakdown'!B357)","v":""},{"$f":"IF('4 - Species Breakdown'!D357=0,\"\",'4 - Species Breakdown'!D357)","v":""},{"$f":"IF('4 - Species Breakdown'!L357=0,\"\",'4 - Species Breakdown'!L357)","v":""},{"$f":"IF('4 - Species Breakdown'!M357=0,\"\",'4 - Species Breakdown'!M357)","v":""},{"$f":"IF('4 - Species Breakdown'!N357=0,\"\",'4 - Species Breakdown'!N357)","v":""},{"$f":"IFERROR(('4 - Species Breakdown'!J357/'WCC Summary'!$D$14)*100,\"\")","v":""},{"$f":"IF('4 - Species Breakdown'!J357=0,\"\",'4 - Species Breakdown'!J357)","v":""}]
[null,{"$f":"IF('4 - Species Breakdown'!B358=0,\"\",'4 - Species Breakdown'!B358)","v":""},{"$f":"IF('4 - Species Breakdown'!D358=0,\"\",'4 - Species Breakdown'!D358)","v":""},{"$f":"IF('4 - Species Breakdown'!L358=0,\"\",'4 - Species Breakdown'!L358)","v":""},{"$f":"IF('4 - Species Breakdown'!M358=0,\"\",'4 - Species Breakdown'!M358)","v":""},{"$f":"IF('4 - Species Breakdown'!N358=0,\"\",'4 - Species Breakdown'!N358)","v":""},{"$f":"IFERROR(('4 - Species Breakdown'!J358/'WCC Summary'!$D$14)*100,\"\")","v":""},{"$f":"IF('4 - Species Breakdown'!J358=0,\"\",'4 - Species Breakdown'!J358)","v":""}]
[null,{"$f":"IF('4 - Species Breakdown'!B359=0,\"\",'4 - Species Breakdown'!B359)","v":""},{"$f":"IF('4 - Species Breakdown'!D359=0,\"\",'4 - Species Breakdown'!D359)","v":""},{"$f":"IF('4 - Species Breakdown'!L359=0,\"\",'4 - Species Breakdown'!L359)","v":""},{"$f":"IF('4 - Species Breakdown'!M359=0,\"\",'4 - Species Breakdown'!M359)","v":""},{"$f":"IF('4 - Species Breakdown'!N359=0,\"\",'4 - Species Breakdown'!N359)","v":""},{"$f":"IFERROR(('4 - Species Breakdown'!J359/'WCC Summary'!$D$14)*100,\"\")","v":""},{"$f":"IF('4 - Species Breakdown'!J359=0,\"\",'4 - Species Breakdown'!J359)","v":""}]
[null,{"$f":"IF('4 - Species Breakdown'!B360=0,\"\",'4 - Species Breakdown'!B360)","v":""},{"$f":"IF('4 - Species Breakdown'!D360=0,\"\",'4 - Species Breakdown'!D360)","v":""},{"$f":"IF('4 - Species Breakdown'!L360=0,\"\",'4 - Species Breakdown'!L360)","v":""},{"$f":"IF('4 - Species Breakdown'!M360=0,\"\",'4 - Species Breakdown'!M360)","v":""},{"$f":"IF('4 - Species Breakdown'!N360=0,\"\",'4 - Species Breakdown'!N360)","v":""},{"$f":"IFERROR(('4 - Species Breakdown'!J360/'WCC Summary'!$D$14)*100,\"\")","v":""},{"$f":"IF('4 - Species Breakdown'!J360=0,\"\",'4 - Species Breakdown'!J360)","v":""}]
[null,{"$f":"IF('4 - Species Breakdown'!B361=0,\"\",'4 - Species Breakdown'!B361)","v":""},{"$f":"IF('4 - Species Breakdown'!D361=0,\"\",'4 - Species Breakdown'!D361)","v":""},{"$f":"IF('4 - Species Breakdown'!L361=0,\"\",'4 - Species Breakdown'!L361)","v":""},{"$f":"IF('4 - Species Breakdown'!M361=0,\"\",'4 - Species Breakdown'!M361)","v":""},{"$f":"IF('4 - Species Breakdown'!N361=0,\"\",'4 - Species Breakdown'!N361)","v":""},{"$f":"IFERROR(('4 - Species Breakdown'!J361/'WCC Summary'!$D$14)*100,\"\")","v":""},{"$f":"IF('4 - Species Breakdown'!J361=0,\"\",'4 - Species Breakdown'!J361)","v":""}]
[null,{"$f":"IF('4 - Species Breakdown'!B362=0,\"\",'4 - Species Breakdown'!B362)","v":""},{"$f":"IF('4 - Species Breakdown'!D362=0,\"\",'4 - Species Breakdown'!D362)","v":""},{"$f":"IF('4 - Species Breakdown'!L362=0,\"\",'4 - Species Breakdown'!L362)","v":""},{"$f":"IF('4 - Species Breakdown'!M362=0,\"\",'4 - Species Breakdown'!M362)","v":""},{"$f":"IF('4 - Species Breakdown'!N362=0,\"\",'4 - Species Breakdown'!N362)","v":""},{"$f":"IFERROR(('4 - Species Breakdown'!J362/'WCC Summary'!$D$14)*100,\"\")","v":""},{"$f":"IF('4 - Species Breakdown'!J362=0,\"\",'4 - Species Breakdown'!J362)","v":""}]
[null,{"$f":"IF('4 - Species Breakdown'!B363=0,\"\",'4 - Species Breakdown'!B363)","v":""},{"$f":"IF('4 - Species Breakdown'!D363=0,\"\",'4 - Species Breakdown'!D363)","v":""},{"$f":"IF('4 - Species Breakdown'!L363=0,\"\",'4 - Species Breakdown'!L363)","v":""},{"$f":"IF('4 - Species Breakdown'!M363=0,\"\",'4 - Species Breakdown'!M363)","v":""},{"$f":"IF('4 - Species Breakdown'!N363=0,\"\",'4 - Species Breakdown'!N363)","v":""},{"$f":"IFERROR(('4 - Species Breakdown'!J363/'WCC Summary'!$D$14)*100,\"\")","v":""},{"$f":"IF('4 - Species Breakdown'!J363=0,\"\",'4 - Species Breakdown'!J363)","v":""}]
[null,{"$f":"IF('4 - Species Breakdown'!B364=0,\"\",'4 - Species Breakdown'!B364)","v":""},{"$f":"IF('4 - Species Breakdown'!D364=0,\"\",'4 - Species Breakdown'!D364)","v":""},{"$f":"IF('4 - Species Breakdown'!L364=0,\"\",'4 - Species Breakdown'!L364)","v":""},{"$f":"IF('4 - Species Breakdown'!M364=0,\"\",'4 - Species Breakdown'!M364)","v":""},{"$f":"IF('4 - Species Breakdown'!N364=0,\"\",'4 - Species Breakdown'!N364)","v":""},{"$f":"IFERROR(('4 - Species Breakdown'!J364/'WCC Summary'!$D$14)*100,\"\")","v":""},{"$f":"IF('4 - Species Breakdown'!J364=0,\"\",'4 - Species Breakdown'!J364)","v":""}]
[null,{"$f":"IF('4 - Species Breakdown'!B365=0,\"\",'4 - Species Breakdown'!B365)","v":""},{"$f":"IF('4 - Species Breakdown'!D365=0,\"\",'4 - Species Breakdown'!D365)","v":""},{"$f":"IF('4 - Species Breakdown'!L365=0,\"\",'4 - Species Breakdown'!L365)","v":""},{"$f":"IF('4 - Species Breakdown'!M365=0,\"\",'4 - Species Breakdown'!M365)","v":""},{"$f":"IF('4 - Species Breakdown'!N365=0,\"\",'4 - Species Breakdown'!N365)","v":""},{"$f":"IFERROR(('4 - Species Breakdown'!J365/'WCC Summary'!$D$14)*100,\"\")","v":""},{"$f":"IF('4 - Species Breakdown'!J365=0,\"\",'4 - Species Breakdown'!J365)","v":""}]
[null,{"$f":"IF('4 - Species Breakdown'!B366=0,\"\",'4 - Species Breakdown'!B366)","v":""},{"$f":"IF('4 - Species Breakdown'!D366=0,\"\",'4 - Species Breakdown'!D366)","v":""},{"$f":"IF('4 - Species Breakdown'!L366=0,\"\",'4 - Species Breakdown'!L366)","v":""},{"$f":"IF('4 - Species Breakdown'!M366=0,\"\",'4 - Species Breakdown'!M366)","v":""},{"$f":"IF('4 - Species Breakdown'!N366=0,\"\",'4 - Species Breakdown'!N366)","v":""},{"$f":"IFERROR(('4 - Species Breakdown'!J366/'WCC Summary'!$D$14)*100,\"\")","v":""},{"$f":"IF('4 - Species Breakdown'!J366=0,\"\",'4 - Species Breakdown'!J366)","v":""}]
[null,{"$f":"IF('4 - Species Breakdown'!B367=0,\"\",'4 - Species Breakdown'!B367)","v":""},{"$f":"IF('4 - Species Breakdown'!D367=0,\"\",'4 - Species Breakdown'!D367)","v":""},{"$f":"IF('4 - Species Breakdown'!L367=0,\"\",'4 - Species Breakdown'!L367)","v":""},{"$f":"IF('4 - Species Breakdown'!M367=0,\"\",'4 - Species Breakdown'!M367)","v":""},{"$f":"IF('4 - Species Breakdown'!N367=0,\"\",'4 - Species Breakdown'!N367)","v":""},{"$f":"IFERROR(('4 - Species Breakdown'!J367/'WCC Summary'!$D$14)*100,\"\")","v":""},{"$f":"IF('4 - Species Breakdown'!J367=0,\"\",'4 - Species Breakdown'!J367)","v":""}]
[null,{"$f":"IF('4 - Species Breakdown'!B368=0,\"\",'4 - Species Breakdown'!B368)","v":""},{"$f":"IF('4 - Species Breakdown'!D368=0,\"\",'4 - Species Breakdown'!D368)","v":""},{"$f":"IF('4 - Species Breakdown'!L368=0,\"\",'4 - Species Breakdown'!L368)","v":""},{"$f":"IF('4 - Species Breakdown'!M368=0,\"\",'4 - Species Breakdown'!M368)","v":""},{"$f":"IF('4 - Species Breakdown'!N368=0,\"\",'4 - Species Breakdown'!N368)","v":""},{"$f":"IFERROR(('4 - Species Breakdown'!J368/'WCC Summary'!$D$14)*100,\"\")","v":""},{"$f":"IF('4 - Species Breakdown'!J368=0,\"\",'4 - Species Breakdown'!J368)","v":""}]
[null,{"$f":"IF('4 - Species Breakdown'!B369=0,\"\",'4 - Species Breakdown'!B369)","v":""},{"$f":"IF('4 - Species Breakdown'!D369=0,\"\",'4 - Species Breakdown'!D369)","v":""},{"$f":"IF('4 - Species Breakdown'!L369=0,\"\",'4 - Species Breakdown'!L369)","v":""},{"$f":"IF('4 - Species Breakdown'!M369=0,\"\",'4 - Species Breakdown'!M369)","v":""},{"$f":"IF('4 - Species Breakdown'!N369=0,\"\",'4 - Species Breakdown'!N369)","v":""},{"$f":"IFERROR(('4 - Species Breakdown'!J369/'WCC Summary'!$D$14)*100,\"\")","v":""},{"$f":"IF('4 - Species Breakdown'!J369=0,\"\",'4 - Species Breakdown'!J369)","v":""}]
[null,{"$f":"IF('4 - Species Breakdown'!B370=0,\"\",'4 - Species Breakdown'!B370)","v":""},{"$f":"IF('4 - Species Breakdown'!D370=0,\"\",'4 - Species Breakdown'!D370)","v":""},{"$f":"IF('4 - Species Breakdown'!L370=0,\"\",'4 - Species Breakdown'!L370)","v":""},{"$f":"IF('4 - Species Breakdown'!M370=0,\"\",'4 - Species Breakdown'!M370)","v":""},{"$f":"IF('4 - Species Breakdown'!N370=0,\"\",'4 - Species Breakdown'!N370)","v":""},{"$f":"IFERROR(('4 - Species Breakdown'!J370/'WCC Summary'!$D$14)*100,\"\")","v":""},{"$f":"IF('4 - Species Breakdown'!J370=0,\"\",'4 - Species Breakdown'!J370)","v":""}]
[null,{"$f":"IF('4 - Species Breakdown'!B371=0,\"\",'4 - Species Breakdown'!B371)","v":""},{"$f":"IF('4 - Species Breakdown'!D371=0,\"\",'4 - Species Breakdown'!D371)","v":""},{"$f":"IF('4 - Species Breakdown'!L371=0,\"\",'4 - Species Breakdown'!L371)","v":""},{"$f":"IF('4 - Species Breakdown'!M371=0,\"\",'4 - Species Breakdown'!M371)","v":""},{"$f":"IF('4 - Species Breakdown'!N371=0,\"\",'4 - Species Breakdown'!N371)","v":""},{"$f":"IFERROR(('4 - Species Breakdown'!J371/'WCC Summary'!$D$14)*100,\"\")","v":""},{"$f":"IF('4 - Species Breakdown'!J371=0,\"\",'4 - Species Breakdown'!J371)","v":""}]
[null,{"$f":"IF('4 - Species Breakdown'!B372=0,\"\",'4 - Species Breakdown'!B372)","v":""},{"$f":"IF('4 - Species Breakdown'!D372=0,\"\",'4 - Species Breakdown'!D372)","v":""},{"$f":"IF('4 - Species Breakdown'!L372=0,\"\",'4 - Species Breakdown'!L372)","v":""},{"$f":"IF('4 - Species Breakdown'!M372=0,\"\",'4 - Species Breakdown'!M372)","v":""},{"$f":"IF('4 - Species Breakdown'!N372=0,\"\",'4 - Species Breakdown'!N372)","v":""},{"$f":"IFERROR(('4 - Species Breakdown'!J372/'WCC Summary'!$D$14)*100,\"\")","v":""},{"$f":"IF('4 - Species Breakdown'!J372=0,\"\",'4 - Species Breakdown'!J372)","v":""}]
[null,{"$f":"IF('4 - Species Breakdown'!B373=0,\"\",'4 - Species Breakdown'!B373)","v":""},{"$f":"IF('4 - Species Breakdown'!D373=0,\"\",'4 - Species Breakdown'!D373)","v":""},{"$f":"IF('4 - Species Breakdown'!L373=0,\"\",'4 - Species Breakdown'!L373)","v":""},{"$f":"IF('4 - Species Breakdown'!M373=0,\"\",'4 - Species Breakdown'!M373)","v":""},{"$f":"IF('4 - Species Breakdown'!N373=0,\"\",'4 - Species Breakdown'!N373)","v":""},{"$f":"IFERROR(('4 - Species Breakdown'!J373/'WCC Summary'!$D$14)*100,\"\")","v":""},{"$f":"IF('4 - Species Breakdown'!J373=0,\"\",'4 - Species Breakdown'!J373)","v":""}]
[null,{"$f":"IF('4 - Species Breakdown'!B374=0,\"\",'4 - Species Breakdown'!B374)","v":""},{"$f":"IF('4 - Species Breakdown'!D374=0,\"\",'4 - Species Breakdown'!D374)","v":""},{"$f":"IF('4 - Species Breakdown'!L374=0,\"\",'4 - Species Breakdown'!L374)","v":""},{"$f":"IF('4 - Species Breakdown'!M374=0,\"\",'4 - Species Breakdown'!M374)","v":""},{"$f":"IF('4 - Species Breakdown'!N374=0,\"\",'4 - Species Breakdown'!N374)","v":""},{"$f":"IFERROR(('4 - Species Breakdown'!J374/'WCC Summary'!$D$14)*100,\"\")","v":""},{"$f":"IF('4 - Species Breakdown'!J374=0,\"\",'4 - Species Breakdown'!J374)","v":""}]
[null,{"$f":"IF('4 - Species Breakdown'!B375=0,\"\",'4 - Species Breakdown'!B375)","v":""},{"$f":"IF('4 - Species Breakdown'!D375=0,\"\",'4 - Species Breakdown'!D375)","v":""},{"$f":"IF('4 - Species Breakdown'!L375=0,\"\",'4 - Species Breakdown'!L375)","v":""},{"$f":"IF('4 - Species Breakdown'!M375=0,\"\",'4 - Species Breakdown'!M375)","v":""},{"$f":"IF('4 - Species Breakdown'!N375=0,\"\",'4 - Species Breakdown'!N375)","v":""},{"$f":"IFERROR(('4 - Species Breakdown'!J375/'WCC Summary'!$D$14)*100,\"\")","v":""},{"$f":"IF('4 - Species Breakdown'!J375=0,\"\",'4 - Species Breakdown'!J375)","v":""}]
[null,{"$f":"IF('4 - Species Breakdown'!B376=0,\"\",'4 - Species Breakdown'!B376)","v":""},{"$f":"IF('4 - Species Breakdown'!D376=0,\"\",'4 - Species Breakdown'!D376)","v":""},{"$f":"IF('4 - Species Breakdown'!L376=0,\"\",'4 - Species Breakdown'!L376)","v":""},{"$f":"IF('4 - Species Breakdown'!M376=0,\"\",'4 - Species Breakdown'!M376)","v":""},{"$f":"IF('4 - Species Breakdown'!N376=0,\"\",'4 - Species Breakdown'!N376)","v":""},{"$f":"IFERROR(('4 - Species Breakdown'!J376/'WCC Summary'!$D$14)*100,\"\")","v":""},{"$f":"IF('4 - Species Breakdown'!J376=0,\"\",'4 - Species Breakdown'!J376)","v":""}]
[null,{"$f":"IF('4 - Species Breakdown'!B377=0,\"\",'4 - Species Breakdown'!B377)","v":""},{"$f":"IF('4 - Species Breakdown'!D377=0,\"\",'4 - Species Breakdown'!D377)","v":""},{"$f":"IF('4 - Species Breakdown'!L377=0,\"\",'4 - Species Breakdown'!L377)","v":""},{"$f":"IF('4 - Species Breakdown'!M377=0,\"\",'4 - Species Breakdown'!M377)","v":""},{"$f":"IF('4 - Species Breakdown'!N377=0,\"\",'4 - Species Breakdown'!N377)","v":""},{"$f":"IFERROR(('4 - Species Breakdown'!J377/'WCC Summary'!$D$14)*100,\"\")","v":""},{"$f":"IF('4 - Species Breakdown'!J377=0,\"\",'4 - Species Breakdown'!J377)","v":""}]
[null,{"$f":"IF('4 - Species Breakdown'!B378=0,\"\",'4 - Species Breakdown'!B378)","v":""},{"$f":"IF('4 - Species Breakdown'!D378=0,\"\",'4 - Species Breakdown'!D378)","v":""},{"$f":"IF('4 - Species Breakdown'!L378=0,\"\",'4 - Species Breakdown'!L378)","v":""},{"$f":"IF('4 - Species Breakdown'!M378=0,\"\",'4 - Species Breakdown'!M378)","v":""},{"$f":"IF('4 - Species Breakdown'!N378=0,\"\",'4 - Species Breakdown'!N378)","v":""},{"$f":"IFERROR(('4 - Species Breakdown'!J378/'WCC Summary'!$D$14)*100,\"\")","v":""},{"$f":"IF('4 - Species Breakdown'!J378=0,\"\",'4 - Species Breakdown'!J378)","v":""}]
[null,{"$f":"IF('4 - Species Breakdown'!B379=0,\"\",'4 - Species Breakdown'!B379)","v":""},{"$f":"IF('4 - Species Breakdown'!D379=0,\"\",'4 - Species Breakdown'!D379)","v":""},{"$f":"IF('4 - Species Breakdown'!L379=0,\"\",'4 - Species Breakdown'!L379)","v":""},{"$f":"IF('4 - Species Breakdown'!M379=0,\"\",'4 - Species Breakdown'!M379)","v":""},{"$f":"IF('4 - Species Breakdown'!N379=0,\"\",'4 - Species Breakdown'!N379)","v":""},{"$f":"IFERROR(('4 - Species Breakdown'!J379/'WCC Summary'!$D$14)*100,\"\")","v":""},{"$f":"IF('4 - Species Breakdown'!J379=0,\"\",'4 - Species Breakdown'!J379)","v":""}]
[null,{"$f":"IF('4 - Species Breakdown'!B380=0,\"\",'4 - Species Breakdown'!B380)","v":""},{"$f":"IF('4 - Species Breakdown'!D380=0,\"\",'4 - Species Breakdown'!D380)","v":""},{"$f":"IF('4 - Species Breakdown'!L380=0,\"\",'4 - Species Breakdown'!L380)","v":""},{"$f":"IF('4 - Species Breakdown'!M380=0,\"\",'4 - Species Breakdown'!M380)","v":""},{"$f":"IF('4 - Species Breakdown'!N380=0,\"\",'4 - Species Breakdown'!N380)","v":""},{"$f":"IFERROR(('4 - Species Breakdown'!J380/'WCC Summary'!$D$14)*100,\"\")","v":""},{"$f":"IF('4 - Species Breakdown'!J380=0,\"\",'4 - Species Breakdown'!J380)","v":""}]
[null,{"$f":"IF('4 - Species Breakdown'!B381=0,\"\",'4 - Species Breakdown'!B381)","v":""},{"$f":"IF('4 - Species Breakdown'!D381=0,\"\",'4 - Species Breakdown'!D381)","v":""},{"$f":"IF('4 - Species Breakdown'!L381=0,\"\",'4 - Species Breakdown'!L381)","v":""},{"$f":"IF('4 - Species Breakdown'!M381=0,\"\",'4 - Species Breakdown'!M381)","v":""},{"$f":"IF('4 - Species Breakdown'!N381=0,\"\",'4 - Species Breakdown'!N381)","v":""},{"$f":"IFERROR(('4 - Species Breakdown'!J381/'WCC Summary'!$D$14)*100,\"\")","v":""},{"$f":"IF('4 - Species Breakdown'!J381=0,\"\",'4 - Species Breakdown'!J381)","v":""}]
[null,{"$f":"IF('4 - Species Breakdown'!B382=0,\"\",'4 - Species Breakdown'!B382)","v":""},{"$f":"IF('4 - Species Breakdown'!D382=0,\"\",'4 - Species Breakdown'!D382)","v":""},{"$f":"IF('4 - Species Breakdown'!L382=0,\"\",'4 - Species Breakdown'!L382)","v":""},{"$f":"IF('4 - Species Breakdown'!M382=0,\"\",'4 - Species Breakdown'!M382)","v":""},{"$f":"IF('4 - Species Breakdown'!N382=0,\"\",'4 - Species Breakdown'!N382)","v":""},{"$f":"IFERROR(('4 - Species Breakdown'!J382/'WCC Summary'!$D$14)*100,\"\")","v":""},{"$f":"IF('4 - Species Breakdown'!J382=0,\"\",'4 - Species Breakdown'!J382)","v":""}]
[null,{"$f":"IF('4 - Species Breakdown'!B383=0,\"\",'4 - Species Breakdown'!B383)","v":""},{"$f":"IF('4 - Species Breakdown'!D383=0,\"\",'4 - Species Breakdown'!D383)","v":""},{"$f":"IF('4 - Species Breakdown'!L383=0,\"\",'4 - Species Breakdown'!L383)","v":""},{"$f":"IF('4 - Species Breakdown'!M383=0,\"\",'4 - Species Breakdown'!M383)","v":""},{"$f":"IF('4 - Species Breakdown'!N383=0,\"\",'4 - Species Breakdown'!N383)","v":""},{"$f":"IFERROR(('4 - Species Breakdown'!J383/'WCC Summary'!$D$14)*100,\"\")","v":""},{"$f":"IF('4 - Species Breakdown'!J383=0,\"\",'4 - Species Breakdown'!J383)","v":""}]
[null,{"$f":"IF('4 - Species Breakdown'!B384=0,\"\",'4 - Species Breakdown'!B384)","v":""},{"$f":"IF('4 - Species Breakdown'!D384=0,\"\",'4 - Species Breakdown'!D384)","v":""},{"$f":"IF('4 - Species Breakdown'!L384=0,\"\",'4 - Species Breakdown'!L384)","v":""},{"$f":"IF('4 - Species Breakdown'!M384=0,\"\",'4 - Species Breakdown'!M384)","v":""},{"$f":"IF('4 - Species Breakdown'!N384=0,\"\",'4 - Species Breakdown'!N384)","v":""},{"$f":"IFERROR(('4 - Species Breakdown'!J384/'WCC Summary'!$D$14)*100,\"\")","v":""},{"$f":"IF('4 - Species Breakdown'!J384=0,\"\",'4 - Species Breakdown'!J384)","v":""}]
[null,{"$f":"IF('4 - Species Breakdown'!B385=0,\"\",'4 - Species Breakdown'!B385)","v":""},{"$f":"IF('4 - Species Breakdown'!D385=0,\"\",'4 - Species Breakdown'!D385)","v":""},{"$f":"IF('4 - Species Breakdown'!L385=0,\"\",'4 - Species Breakdown'!L385)","v":""},{"$f":"IF('4 - Species Breakdown'!M385=0,\"\",'4 - Species Breakdown'!M385)","v":""},{"$f":"IF('4 - Species Breakdown'!N385=0,\"\",'4 - Species Breakdown'!N385)","v":""},{"$f":"IFERROR(('4 - Species Breakdown'!J385/'WCC Summary'!$D$14)*100,\"\")","v":""},{"$f":"IF('4 - Species Breakdown'!J385=0,\"\",'4 - Species Breakdown'!J385)","v":""}]
[null,{"$f":"IF('4 - Species Breakdown'!B386=0,\"\",'4 - Species Breakdown'!B386)","v":""},{"$f":"IF('4 - Species Breakdown'!D386=0,\"\",'4 - Species Breakdown'!D386)","v":""},{"$f":"IF('4 - Species Breakdown'!L386=0,\"\",'4 - Species Breakdown'!L386)","v":""},{"$f":"IF('4 - Species Breakdown'!M386=0,\"\",'4 - Species Breakdown'!M386)","v":""},{"$f":"IF('4 - Species Breakdown'!N386=0,\"\",'4 - Species Breakdown'!N386)","v":""},{"$f":"IFERROR(('4 - Species Breakdown'!J386/'WCC Summary'!$D$14)*100,\"\")","v":""},{"$f":"IF('4 - Species Breakdown'!J386=0,\"\",'4 - Species Breakdown'!J386)","v":""}]
[null,{"$f":"IF('4 - Species Breakdown'!B387=0,\"\",'4 - Species Breakdown'!B387)","v":""},{"$f":"IF('4 - Species Breakdown'!D387=0,\"\",'4 - Species Breakdown'!D387)","v":""},{"$f":"IF('4 - Species Breakdown'!L387=0,\"\",'4 - Species Breakdown'!L387)","v":""},{"$f":"IF('4 - Species Breakdown'!M387=0,\"\",'4 - Species Breakdown'!M387)","v":""},{"$f":"IF('4 - Species Breakdown'!N387=0,\"\",'4 - Species Breakdown'!N387)","v":""},{"$f":"IFERROR(('4 - Species Breakdown'!J387/'WCC Summary'!$D$14)*100,\"\")","v":""},{"$f":"IF('4 - Species Breakdown'!J387=0,\"\",'4 - Species Breakdown'!J387)","v":""}]
[null,{"$f":"IF('4 - Species Breakdown'!B388=0,\"\",'4 - Species Breakdown'!B388)","v":""},{"$f":"IF('4 - Species Breakdown'!D388=0,\"\",'4 - Species Breakdown'!D388)","v":""},{"$f":"IF('4 - Species Breakdown'!L388=0,\"\",'4 - Species Breakdown'!L388)","v":""},{"$f":"IF('4 - Species Breakdown'!M388=0,\"\",'4 - Species Breakdown'!M388)","v":""},{"$f":"IF('4 - Species Breakdown'!N388=0,\"\",'4 - Species Breakdown'!N388)","v":""},{"$f":"IFERROR(('4 - Species Breakdown'!J388/'WCC Summary'!$D$14)*100,\"\")","v":""},{"$f":"IF('4 - Species Breakdown'!J388=0,\"\",'4 - Species Breakdown'!J388)","v":""}]
[null,{"$f":"IF('4 - Species Breakdown'!B389=0,\"\",'4 - Species Breakdown'!B389)","v":""},{"$f":"IF('4 - Species Breakdown'!D389=0,\"\",'4 - Species Breakdown'!D389)","v":""},{"$f":"IF('4 - Species Breakdown'!L389=0,\"\",'4 - Species Breakdown'!L389)","v":""},{"$f":"IF('4 - Species Breakdown'!M389=0,\"\",'4 - Species Breakdown'!M389)","v":""},{"$f":"IF('4 - Species Breakdown'!N389=0,\"\",'4 - Species Breakdown'!N389)","v":""},{"$f":"IFERROR(('4 - Species Breakdown'!J389/'WCC Summary'!$D$14)*100,\"\")","v":""},{"$f":"IF('4 - Species Breakdown'!J389=0,\"\",'4 - Species Breakdown'!J389)","v":""}]
[null,{"$f":"IF('4 - Species Breakdown'!B390=0,\"\",'4 - Species Breakdown'!B390)","v":""},{"$f":"IF('4 - Species Breakdown'!D390=0,\"\",'4 - Species Breakdown'!D390)","v":""},{"$f":"IF('4 - Species Breakdown'!L390=0,\"\",'4 - Species Breakdown'!L390)","v":""},{"$f":"IF('4 - Species Breakdown'!M390=0,\"\",'4 - Species Breakdown'!M390)","v":""},{"$f":"IF('4 - Species Breakdown'!N390=0,\"\",'4 - Species Breakdown'!N390)","v":""},{"$f":"IFERROR(('4 - Species Breakdown'!J390/'WCC Summary'!$D$14)*100,\"\")","v":""},{"$f":"IF('4 - Species Breakdown'!J390=0,\"\",'4 - Species Breakdown'!J390)","v":""}]
[null,{"$f":"IF('4 - Species Breakdown'!B391=0,\"\",'4 - Species Breakdown'!B391)","v":""},{"$f":"IF('4 - Species Breakdown'!D391=0,\"\",'4 - Species Breakdown'!D391)","v":""},{"$f":"IF('4 - Species Breakdown'!L391=0,\"\",'4 - Species Breakdown'!L391)","v":""},{"$f":"IF('4 - Species Breakdown'!M391=0,\"\",'4 - Species Breakdown'!M391)","v":""},{"$f":"IF('4 - Species Breakdown'!N391=0,\"\",'4 - Species Breakdown'!N391)","v":""},{"$f":"IFERROR(('4 - Species Breakdown'!J391/'WCC Summary'!$D$14)*100,\"\")","v":""},{"$f":"IF('4 - Species Breakdown'!J391=0,\"\",'4 - Species Breakdown'!J391)","v":""}]
[null,{"$f":"IF('4 - Species Breakdown'!B392=0,\"\",'4 - Species Breakdown'!B392)","v":""},{"$f":"IF('4 - Species Breakdown'!D392=0,\"\",'4 - Species Breakdown'!D392)","v":""},{"$f":"IF('4 - Species Breakdown'!L392=0,\"\",'4 - Species Breakdown'!L392)","v":""},{"$f":"IF('4 - Species Breakdown'!M392=0,\"\",'4 - Species Breakdown'!M392)","v":""},{"$f":"IF('4 - Species Breakdown'!N392=0,\"\",'4 - Species Breakdown'!N392)","v":""},{"$f":"IFERROR(('4 - Species Breakdown'!J392/'WCC Summary'!$D$14)*100,\"\")","v":""},{"$f":"IF('4 - Species Breakdown'!J392=0,\"\",'4 - Species Breakdown'!J392)","v":""}]
[null,{"$f":"IF('4 - Species Breakdown'!B393=0,\"\",'4 - Species Breakdown'!B393)","v":""},{"$f":"IF('4 - Species Breakdown'!D393=0,\"\",'4 - Species Breakdown'!D393)","v":""},{"$f":"IF('4 - Species Breakdown'!L393=0,\"\",'4 - Species Breakdown'!L393)","v":""},{"$f":"IF('4 - Species Breakdown'!M393=0,\"\",'4 - Species Breakdown'!M393)","v":""},{"$f":"IF('4 - Species Breakdown'!N393=0,\"\",'4 - Species Breakdown'!N393)","v":""},{"$f":"IFERROR(('4 - Species Breakdown'!J393/'WCC Summary'!$D$14)*100,\"\")","v":""},{"$f":"IF('4 - Species Breakdown'!J393=0,\"\",'4 - Species Breakdown'!J393)","v":""}]
[null,{"$f":"IF('4 - Species Breakdown'!B394=0,\"\",'4 - Species Breakdown'!B394)","v":""},{"$f":"IF('4 - Species Breakdown'!D394=0,\"\",'4 - Species Breakdown'!D394)","v":""},{"$f":"IF('4 - Species Breakdown'!L394=0,\"\",'4 - Species Breakdown'!L394)","v":""},{"$f":"IF('4 - Species Breakdown'!M394=0,\"\",'4 - Species Breakdown'!M394)","v":""},{"$f":"IF('4 - Species Breakdown'!N394=0,\"\",'4 - Species Breakdown'!N394)","v":""},{"$f":"IFERROR(('4 - Species Breakdown'!J394/'WCC Summary'!$D$14)*100,\"\")","v":""},{"$f":"IF('4 - Species Breakdown'!J394=0,\"\",'4 - Species Breakdown'!J394)","v":""}]
[null,{"$f":"IF('4 - Species Breakdown'!B395=0,\"\",'4 - Species Breakdown'!B395)","v":""},{"$f":"IF('4 - Species Breakdown'!D395=0,\"\",'4 - Species Breakdown'!D395)","v":""},{"$f":"IF('4 - Species Breakdown'!L395=0,\"\",'4 - Species Breakdown'!L395)","v":""},{"$f":"IF('4 - Species Breakdown'!M395=0,\"\",'4 - Species Breakdown'!M395)","v":""},{"$f":"IF('4 - Species Breakdown'!N395=0,\"\",'4 - Species Breakdown'!N395)","v":""},{"$f":"IFERROR(('4 - Species Breakdown'!J395/'WCC Summary'!$D$14)*100,\"\")","v":""},{"$f":"IF('4 - Species Breakdown'!J395=0,\"\",'4 - Species Breakdown'!J395)","v":""}]
[null,{"$f":"IF('4 - Species Breakdown'!B396=0,\"\",'4 - Species Breakdown'!B396)","v":""},{"$f":"IF('4 - Species Breakdown'!D396=0,\"\",'4 - Species Breakdown'!D396)","v":""},{"$f":"IF('4 - Species Breakdown'!L396=0,\"\",'4 - Species Breakdown'!L396)","v":""},{"$f":"IF('4 - Species Breakdown'!M396=0,\"\",'4 - Species Breakdown'!M396)","v":""},{"$f":"IF('4 - Species Breakdown'!N396=0,\"\",'4 - Species Breakdown'!N396)","v":""},{"$f":"IFERROR(('4 - Species Breakdown'!J396/'WCC Summary'!$D$14)*100,\"\")","v":""},{"$f":"IF('4 - Species Breakdown'!J396=0,\"\",'4 - Species Breakdown'!J396)","v":""}]
[null,{"$f":"IF('4 - Species Breakdown'!B397=0,\"\",'4 - Species Breakdown'!B397)","v":""},{"$f":"IF('4 - Species Breakdown'!D397=0,\"\",'4 - Species Breakdown'!D397)","v":""},{"$f":"IF('4 - Species Breakdown'!L397=0,\"\",'4 - Species Breakdown'!L397)","v":""},{"$f":"IF('4 - Species Breakdown'!M397=0,\"\",'4 - Species Breakdown'!M397)","v":""},{"$f":"IF('4 - Species Breakdown'!N397=0,\"\",'4 - Species Breakdown'!N397)","v":""},{"$f":"IFERROR(('4 - Species Breakdown'!J397/'WCC Summary'!$D$14)*100,\"\")","v":""},{"$f":"IF('4 - Species Breakdown'!J397=0,\"\",'4 - Species Breakdown'!J397)","v":""}]
[null,{"$f":"IF('4 - Species Breakdown'!B398=0,\"\",'4 - Species Breakdown'!B398)","v":""},{"$f":"IF('4 - Species Breakdown'!D398=0,\"\",'4 - Species Breakdown'!D398)","v":""},{"$f":"IF('4 - Species Breakdown'!L398=0,\"\",'4 - Species Breakdown'!L398)","v":""},{"$f":"IF('4 - Species Breakdown'!M398=0,\"\",'4 - Species Breakdown'!M398)","v":""},{"$f":"IF('4 - Species Breakdown'!N398=0,\"\",'4 - Species Breakdown'!N398)","v":""},{"$f":"IFERROR(('4 - Species Breakdown'!J398/'WCC Summary'!$D$14)*100,\"\")","v":""},{"$f":"IF('4 - Species Breakdown'!J398=0,\"\",'4 - Species Breakdown'!J398)","v":""}]
[null,{"$f":"IF('4 - Species Breakdown'!B399=0,\"\",'4 - Species Breakdown'!B399)","v":""},{"$f":"IF('4 - Species Breakdown'!D399=0,\"\",'4 - Species Breakdown'!D399)","v":""},{"$f":"IF('4 - Species Breakdown'!L399=0,\"\",'4 - Species Breakdown'!L399)","v":""},{"$f":"IF('4 - Species Breakdown'!M399=0,\"\",'4 - Species Breakdown'!M399)","v":""},{"$f":"IF('4 - Species Breakdown'!N399=0,\"\",'4 - Species Breakdown'!N399)","v":""},{"$f":"IFERROR(('4 - Species Breakdown'!J399/'WCC Summary'!$D$14)*100,\"\")","v":""},{"$f":"IF('4 - Species Breakdown'!J399=0,\"\",'4 - Species Breakdown'!J399)","v":""}]
[null,{"$f":"IF('4 - Species Breakdown'!B400=0,\"\",'4 - Species Breakdown'!B400)","v":""},{"$f":"IF('4 - Species Breakdown'!D400=0,\"\",'4 - Species Breakdown'!D400)","v":""},{"$f":"IF('4 - Species Breakdown'!L400=0,\"\",'4 - Species Breakdown'!L400)","v":""},{"$f":"IF('4 - Species Breakdown'!M400=0,\"\",'4 - Species Breakdown'!M400)","v":""},{"$f":"IF('4 - Species Breakdown'!N400=0,\"\",'4 - Species Breakdown'!N400)","v":""},{"$f":"IFERROR(('4 - Species Breakdown'!J400/'WCC Summary'!$D$14)*100,\"\")","v":""},{"$f":"IF('4 - Species Breakdown'!J400=0,\"\",'4 - Species Breakdown'!J400)","v":""}]
[null,{"$f":"IF('4 - Species Breakdown'!B401=0,\"\",'4 - Species Breakdown'!B401)","v":""},{"$f":"IF('4 - Species Breakdown'!D401=0,\"\",'4 - Species Breakdown'!D401)","v":""},{"$f":"IF('4 - Species Breakdown'!L401=0,\"\",'4 - Species Breakdown'!L401)","v":""},{"$f":"IF('4 - Species Breakdown'!M401=0,\"\",'4 - Species Breakdown'!M401)","v":""},{"$f":"IF('4 - Species Breakdown'!N401=0,\"\",'4 - Species Breakdown'!N401)","v":""},{"$f":"IFERROR(('4 - Species Breakdown'!J401/'WCC Summary'!$D$14)*100,\"\")","v":""},{"$f":"IF('4 - Species Breakdown'!J401=0,\"\",'4 - Species Breakdown'!J401)","v":""}]
[null,{"$f":"IF('4 - Species Breakdown'!B402=0,\"\",'4 - Species Breakdown'!B402)","v":""},{"$f":"IF('4 - Species Breakdown'!D402=0,\"\",'4 - Species Breakdown'!D402)","v":""},{"$f":"IF('4 - Species Breakdown'!L402=0,\"\",'4 - Species Breakdown'!L402)","v":""},{"$f":"IF('4 - Species Breakdown'!M402=0,\"\",'4 - Species Breakdown'!M402)","v":""},{"$f":"IF('4 - Species Breakdown'!N402=0,\"\",'4 - Species Breakdown'!N402)","v":""},{"$f":"IFERROR(('4 - Species Breakdown'!J402/'WCC Summary'!$D$14)*100,\"\")","v":""},{"$f":"IF('4 - Species Breakdown'!J402=0,\"\",'4 - Species Breakdown'!J402)","v":""}]
[null,{"$f":"IF('4 - Species Breakdown'!B403=0,\"\",'4 - Species Breakdown'!B403)","v":""},{"$f":"IF('4 - Species Breakdown'!D403=0,\"\",'4 - Species Breakdown'!D403)","v":""},{"$f":"IF('4 - Species Breakdown'!L403=0,\"\",'4 - Species Breakdown'!L403)","v":""},{"$f":"IF('4 - Species Breakdown'!M403=0,\"\",'4 - Species Breakdown'!M403)","v":""},{"$f":"IF('4 - Species Breakdown'!N403=0,\"\",'4 - Species Breakdown'!N403)","v":""},{"$f":"IFERROR(('4 - Species Breakdown'!J403/'WCC Summary'!$D$14)*100,\"\")","v":""},{"$f":"IF('4 - Species Breakdown'!J403=0,\"\",'4 - Species Breakdown'!J403)","v":""}]
[null,{"$f":"IF('4 - Species Breakdown'!B404=0,\"\",'4 - Species Breakdown'!B404)","v":""},{"$f":"IF('4 - Species Breakdown'!D404=0,\"\",'4 - Species Breakdown'!D404)","v":""},{"$f":"IF('4 - Species Breakdown'!L404=0,\"\",'4 - Species Breakdown'!L404)","v":""},{"$f":"IF('4 - Species Breakdown'!M404=0,\"\",'4 - Species Breakdown'!M404)","v":""},{"$f":"IF('4 - Species Breakdown'!N404=0,\"\",'4 - Species Breakdown'!N404)","v":""},{"$f":"IFERROR(('4 - Species Breakdown'!J404/'WCC Summary'!$D$14)*100,\"\")","v":""},{"$f":"IF('4 - Species Breakdown'!J404=0,\"\",'4 - Species Breakdown'!J404)","v":""}]
[null,{"$f":"IF('4 - Species Breakdown'!B405=0,\"\",'4 - Species Breakdown'!B405)","v":""},{"$f":"IF('4 - Species Breakdown'!D405=0,\"\",'4 - Species Breakdown'!D405)","v":""},{"$f":"IF('4 - Species Breakdown'!L405=0,\"\",'4 - Species Breakdown'!L405)","v":""},{"$f":"IF('4 - Species Breakdown'!M405=0,\"\",'4 - Species Breakdown'!M405)","v":""},{"$f":"IF('4 - Species Breakdown'!N405=0,\"\",'4 - Species Breakdown'!N405)","v":""},{"$f":"IFERROR(('4 - Species Breakdown'!J405/'WCC Summary'!$D$14)*100,\"\")","v":""},{"$f":"IF('4 - Species Breakdown'!J405=0,\"\",'4 - Species Breakdown'!J405)","v":""}]
[null,{"$f":"IF('4 - Species Breakdown'!B406=0,\"\",'4 - Species Breakdown'!B406)","v":""},{"$f":"IF('4 - Species Breakdown'!D406=0,\"\",'4 - Species Breakdown'!D406)","v":""},{"$f":"IF('4 - Species Breakdown'!L406=0,\"\",'4 - Species Breakdown'!L406)","v":""},{"$f":"IF('4 - Species Breakdown'!M406=0,\"\",'4 - Species Breakdown'!M406)","v":""},{"$f":"IF('4 - Species Breakdown'!N406=0,\"\",'4 - Species Breakdown'!N406)","v":""},{"$f":"IFERROR(('4 - Species Breakdown'!J406/'WCC Summary'!$D$14)*100,\"\")","v":""},{"$f":"IF('4 - Species Breakdown'!J406=0,\"\",'4 - Species Breakdown'!J406)","v":""}]
[null,{"$f":"IF('4 - Species Breakdown'!B407=0,\"\",'4 - Species Breakdown'!B407)","v":""},{"$f":"IF('4 - Species Breakdown'!D407=0,\"\",'4 - Species Breakdown'!D407)","v":""},{"$f":"IF('4 - Species Breakdown'!L407=0,\"\",'4 - Species Breakdown'!L407)","v":""},{"$f":"IF('4 - Species Breakdown'!M407=0,\"\",'4 - Species Breakdown'!M407)","v":""},{"$f":"IF('4 - Species Breakdown'!N407=0,\"\",'4 - Species Breakdown'!N407)","v":""},{"$f":"IFERROR(('4 - Species Breakdown'!J407/'WCC Summary'!$D$14)*100,\"\")","v":""},{"$f":"IF('4 - Species Breakdown'!J407=0,\"\",'4 - Species Breakdown'!J407)","v":""}]
[null,{"$f":"IF('4 - Species Breakdown'!B408=0,\"\",'4 - Species Breakdown'!B408)","v":""},{"$f":"IF('4 - Species Breakdown'!D408=0,\"\",'4 - Species Breakdown'!D408)","v":""},{"$f":"IF('4 - Species Breakdown'!L408=0,\"\",'4 - Species Breakdown'!L408)","v":""},{"$f":"IF('4 - Species Breakdown'!M408=0,\"\",'4 - Species Breakdown'!M408)","v":""},{"$f":"IF('4 - Species Breakdown'!N408=0,\"\",'4 - Species Breakdown'!N408)","v":""},{"$f":"IFERROR(('4 - Species Breakdown'!J408/'WCC Summary'!$D$14)*100,\"\")","v":""},{"$f":"IF('4 - Species Breakdown'!J408=0,\"\",'4 - Species Breakdown'!J408)","v":""}]
[null,{"$f":"IF('4 - Species Breakdown'!B409=0,\"\",'4 - Species Breakdown'!B409)","v":""},{"$f":"IF('4 - Species Breakdown'!D409=0,\"\",'4 - Species Breakdown'!D409)","v":""},{"$f":"IF('4 - Species Breakdown'!L409=0,\"\",'4 - Species Breakdown'!L409)","v":""},{"$f":"IF('4 - Species Breakdown'!M409=0,\"\",'4 - Species Breakdown'!M409)","v":""},{"$f":"IF('4 - Species Breakdown'!N409=0,\"\",'4 - Species Breakdown'!N409)","v":""},{"$f":"IFERROR(('4 - Species Breakdown'!J409/'WCC Summary'!$D$14)*100,\"\")","v":""},{"$f":"IF('4 - Species Breakdown'!J409=0,\"\",'4 - Species Breakdown'!J409)","v":""}]
[null,{"$f":"IF('4 - Species Breakdown'!B410=0,\"\",'4 - Species Breakdown'!B410)","v":""},{"$f":"IF('4 - Species Breakdown'!D410=0,\"\",'4 - Species Breakdown'!D410)","v":""},{"$f":"IF('4 - Species Breakdown'!L410=0,\"\",'4 - Species Breakdown'!L410)","v":""},{"$f":"IF('4 - Species Breakdown'!M410=0,\"\",'4 - Species Breakdown'!M410)","v":""},{"$f":"IF('4 - Species Breakdown'!N410=0,\"\",'4 - Species Breakdown'!N410)","v":""},{"$f":"IFERROR(('4 - Species Breakdown'!J410/'WCC Summary'!$D$14)*100,\"\")","v":""},{"$f":"IF('4 - Species Breakdown'!J410=0,\"\",'4 - Species Breakdown'!J410)","v":""}]
[null,{"$f":"IF('4 - Species Breakdown'!B411=0,\"\",'4 - Species Breakdown'!B411)","v":""},{"$f":"IF('4 - Species Breakdown'!D411=0,\"\",'4 - Species Breakdown'!D411)","v":""},{"$f":"IF('4 - Species Breakdown'!L411=0,\"\",'4 - Species Breakdown'!L411)","v":""},{"$f":"IF('4 - Species Breakdown'!M411=0,\"\",'4 - Species Breakdown'!M411)","v":""},{"$f":"IF('4 - Species Breakdown'!N411=0,\"\",'4 - Species Breakdown'!N411)","v":""},{"$f":"IFERROR(('4 - Species Breakdown'!J411/'WCC Summary'!$D$14)*100,\"\")","v":""},{"$f":"IF('4 - Species Breakdown'!J411=0,\"\",'4 - Species Breakdown'!J411)","v":""}]
[null,{"$f":"IF('4 - Species Breakdown'!B412=0,\"\",'4 - Species Breakdown'!B412)","v":""},{"$f":"IF('4 - Species Breakdown'!D412=0,\"\",'4 - Species Breakdown'!D412)","v":""},{"$f":"IF('4 - Species Breakdown'!L412=0,\"\",'4 - Species Breakdown'!L412)","v":""},{"$f":"IF('4 - Species Breakdown'!M412=0,\"\",'4 - Species Breakdown'!M412)","v":""},{"$f":"IF('4 - Species Breakdown'!N412=0,\"\",'4 - Species Breakdown'!N412)","v":""},{"$f":"IFERROR(('4 - Species Breakdown'!J412/'WCC Summary'!$D$14)*100,\"\")","v":""},{"$f":"IF('4 - Species Breakdown'!J412=0,\"\",'4 - Species Breakdown'!J412)","v":""}]
[null,{"$f":"IF('4 - Species Breakdown'!B413=0,\"\",'4 - Species Breakdown'!B413)","v":""},{"$f":"IF('4 - Species Breakdown'!D413=0,\"\",'4 - Species Breakdown'!D413)","v":""},{"$f":"IF('4 - Species Breakdown'!L413=0,\"\",'4 - Species Breakdown'!L413)","v":""},{"$f":"IF('4 - Species Breakdown'!M413=0,\"\",'4 - Species Breakdown'!M413)","v":""},{"$f":"IF('4 - Species Breakdown'!N413=0,\"\",'4 - Species Breakdown'!N413)","v":""},{"$f":"IFERROR(('4 - Species Breakdown'!J413/'WCC Summary'!$D$14)*100,\"\")","v":""},{"$f":"IF('4 - Species Breakdown'!J413=0,\"\",'4 - Species Breakdown'!J413)","v":""}]
[null,{"$f":"IF('4 - Species Breakdown'!B414=0,\"\",'4 - Species Breakdown'!B414)","v":""},{"$f":"IF('4 - Species Breakdown'!D414=0,\"\",'4 - Species Breakdown'!D414)","v":""},{"$f":"IF('4 - Species Breakdown'!L414=0,\"\",'4 - Species Breakdown'!L414)","v":""},{"$f":"IF('4 - Species Breakdown'!M414=0,\"\",'4 - Species Breakdown'!M414)","v":""},{"$f":"IF('4 - Species Breakdown'!N414=0,\"\",'4 - Species Breakdown'!N414)","v":""},{"$f":"IFERROR(('4 - Species Breakdown'!J414/'WCC Summary'!$D$14)*100,\"\")","v":""},{"$f":"IF('4 - Species Breakdown'!J414=0,\"\",'4 - Species Breakdown'!J414)","v":""}]
[null,{"$f":"IF('4 - Species Breakdown'!B415=0,\"\",'4 - Species Breakdown'!B415)","v":""},{"$f":"IF('4 - Species Breakdown'!D415=0,\"\",'4 - Species Breakdown'!D415)","v":""},{"$f":"IF('4 - Species Breakdown'!L415=0,\"\",'4 - Species Breakdown'!L415)","v":""},{"$f":"IF('4 - Species Breakdown'!M415=0,\"\",'4 - Species Breakdown'!M415)","v":""},{"$f":"IF('4 - Species Breakdown'!N415=0,\"\",'4 - Species Breakdown'!N415)","v":""},{"$f":"IFERROR(('4 - Species Breakdown'!J415/'WCC Summary'!$D$14)*100,\"\")","v":""},{"$f":"IF('4 - Species Breakdown'!J415=0,\"\",'4 - Species Breakdown'!J415)","v":""}]
[null,{"$f":"IF('4 - Species Breakdown'!B416=0,\"\",'4 - Species Breakdown'!B416)","v":""},{"$f":"IF('4 - Species Breakdown'!D416=0,\"\",'4 - Species Breakdown'!D416)","v":""},{"$f":"IF('4 - Species Breakdown'!L416=0,\"\",'4 - Species Breakdown'!L416)","v":""},{"$f":"IF('4 - Species Breakdown'!M416=0,\"\",'4 - Species Breakdown'!M416)","v":""},{"$f":"IF('4 - Species Breakdown'!N416=0,\"\",'4 - Species Breakdown'!N416)","v":""},{"$f":"IFERROR(('4 - Species Breakdown'!J416/'WCC Summary'!$D$14)*100,\"\")","v":""},{"$f":"IF('4 - Species Breakdown'!J416=0,\"\",'4 - Species Breakdown'!J416)","v":""}]
[null,{"$f":"IF('4 - Species Breakdown'!B417=0,\"\",'4 - Species Breakdown'!B417)","v":""},{"$f":"IF('4 - Species Breakdown'!D417=0,\"\",'4 - Species Breakdown'!D417)","v":""},{"$f":"IF('4 - Species Breakdown'!L417=0,\"\",'4 - Species Breakdown'!L417)","v":""},{"$f":"IF('4 - Species Breakdown'!M417=0,\"\",'4 - Species Breakdown'!M417)","v":""},{"$f":"IF('4 - Species Breakdown'!N417=0,\"\",'4 - Species Breakdown'!N417)","v":""},{"$f":"IFERROR(('4 - Species Breakdown'!J417/'WCC Summary'!$D$14)*100,\"\")","v":""},{"$f":"IF('4 - Species Breakdown'!J417=0,\"\",'4 - Species Breakdown'!J417)","v":""}]
[null,{"$f":"IF('4 - Species Breakdown'!B418=0,\"\",'4 - Species Breakdown'!B418)","v":""},{"$f":"IF('4 - Species Breakdown'!D418=0,\"\",'4 - Species Breakdown'!D418)","v":""},{"$f":"IF('4 - Species Breakdown'!L418=0,\"\",'4 - Species Breakdown'!L418)","v":""},{"$f":"IF('4 - Species Breakdown'!M418=0,\"\",'4 - Species Breakdown'!M418)","v":""},{"$f":"IF('4 - Species Breakdown'!N418=0,\"\",'4 - Species Breakdown'!N418)","v":""},{"$f":"IFERROR(('4 - Species Breakdown'!J418/'WCC Summary'!$D$14)*100,\"\")","v":""},{"$f":"IF('4 - Species Breakdown'!J418=0,\"\",'4 - Species Breakdown'!J418)","v":""}]
[null,{"$f":"IF('4 - Species Breakdown'!B419=0,\"\",'4 - Species Breakdown'!B419)","v":""},{"$f":"IF('4 - Species Breakdown'!D419=0,\"\",'4 - Species Breakdown'!D419)","v":""},{"$f":"IF('4 - Species Breakdown'!L419=0,\"\",'4 - Species Breakdown'!L419)","v":""},{"$f":"IF('4 - Species Breakdown'!M419=0,\"\",'4 - Species Breakdown'!M419)","v":""},{"$f":"IF('4 - Species Breakdown'!N419=0,\"\",'4 - Species Breakdown'!N419)","v":""},{"$f":"IFERROR(('4 - Species Breakdown'!J419/'WCC Summary'!$D$14)*100,\"\")","v":""},{"$f":"IF('4 - Species Breakdown'!J419=0,\"\",'4 - Species Breakdown'!J419)","v":""}]
[null,{"$f":"IF('4 - Species Breakdown'!B420=0,\"\",'4 - Species Breakdown'!B420)","v":""},{"$f":"IF('4 - Species Breakdown'!D420=0,\"\",'4 - Species Breakdown'!D420)","v":""},{"$f":"IF('4 - Species Breakdown'!L420=0,\"\",'4 - Species Breakdown'!L420)","v":""},{"$f":"IF('4 - Species Breakdown'!M420=0,\"\",'4 - Species Breakdown'!M420)","v":""},{"$f":"IF('4 - Species Breakdown'!N420=0,\"\",'4 - Species Breakdown'!N420)","v":""},{"$f":"IFERROR(('4 - Species Breakdown'!J420/'WCC Summary'!$D$14)*100,\"\")","v":""},{"$f":"IF('4 - Species Breakdown'!J420=0,\"\",'4 - Species Breakdown'!J420)","v":""}]
[null,{"$f":"IF('4 - Species Breakdown'!B421=0,\"\",'4 - Species Breakdown'!B421)","v":""},{"$f":"IF('4 - Species Breakdown'!D421=0,\"\",'4 - Species Breakdown'!D421)","v":""},{"$f":"IF('4 - Species Breakdown'!L421=0,\"\",'4 - Species Breakdown'!L421)","v":""},{"$f":"IF('4 - Species Breakdown'!M421=0,\"\",'4 - Species Breakdown'!M421)","v":""},{"$f":"IF('4 - Species Breakdown'!N421=0,\"\",'4 - Species Breakdown'!N421)","v":""},{"$f":"IFERROR(('4 - Species Breakdown'!J421/'WCC Summary'!$D$14)*100,\"\")","v":""},{"$f":"IF('4 - Species Breakdown'!J421=0,\"\",'4 - Species Breakdown'!J421)","v":""}]
[null,{"$f":"IF('4 - Species Breakdown'!B422=0,\"\",'4 - Species Breakdown'!B422)","v":""},{"$f":"IF('4 - Species Breakdown'!D422=0,\"\",'4 - Species Breakdown'!D422)","v":""},{"$f":"IF('4 - Species Breakdown'!L422=0,\"\",'4 - Species Breakdown'!L422)","v":""},{"$f":"IF('4 - Species Breakdown'!M422=0,\"\",'4 - Species Breakdown'!M422)","v":""},{"$f":"IF('4 - Species Breakdown'!N422=0,\"\",'4 - Species Breakdown'!N422)","v":""},{"$f":"IFERROR(('4 - Species Breakdown'!J422/'WCC Summary'!$D$14)*100,\"\")","v":""},{"$f":"IF('4 - Species Breakdown'!J422=0,\"\",'4 - Species Breakdown'!J422)","v":""}]
[null,{"$f":"IF('4 - Species Breakdown'!B423=0,\"\",'4 - Species Breakdown'!B423)","v":""},{"$f":"IF('4 - Species Breakdown'!D423=0,\"\",'4 - Species Breakdown'!D423)","v":""},{"$f":"IF('4 - Species Breakdown'!L423=0,\"\",'4 - Species Breakdown'!L423)","v":""},{"$f":"IF('4 - Species Breakdown'!M423=0,\"\",'4 - Species Breakdown'!M423)","v":""},{"$f":"IF('4 - Species Breakdown'!N423=0,\"\",'4 - Species Breakdown'!N423)","v":""},{"$f":"IFERROR(('4 - Species Breakdown'!J423/'WCC Summary'!$D$14)*100,\"\")","v":""},{"$f":"IF('4 - Species Breakdown'!J423=0,\"\",'4 - Species Breakdown'!J423)","v":""}]
[null,{"$f":"IF('4 - Species Breakdown'!B424=0,\"\",'4 - Species Breakdown'!B424)","v":""},{"$f":"IF('4 - Species Breakdown'!D424=0,\"\",'4 - Species Breakdown'!D424)","v":""},{"$f":"IF('4 - Species Breakdown'!L424=0,\"\",'4 - Species Breakdown'!L424)","v":""},{"$f":"IF('4 - Species Breakdown'!M424=0,\"\",'4 - Species Breakdown'!M424)","v":""},{"$f":"IF('4 - Species Breakdown'!N424=0,\"\",'4 - Species Breakdown'!N424)","v":""},{"$f":"IFERROR(('4 - Species Breakdown'!J424/'WCC Summary'!$D$14)*100,\"\")","v":""},{"$f":"IF('4 - Species Breakdown'!J424=0,\"\",'4 - Species Breakdown'!J424)","v":""}]
[null,{"$f":"IF('4 - Species Breakdown'!B425=0,\"\",'4 - Species Breakdown'!B425)","v":""},{"$f":"IF('4 - Species Breakdown'!D425=0,\"\",'4 - Species Breakdown'!D425)","v":""},{"$f":"IF('4 - Species Breakdown'!L425=0,\"\",'4 - Species Breakdown'!L425)","v":""},{"$f":"IF('4 - Species Breakdown'!M425=0,\"\",'4 - Species Breakdown'!M425)","v":""},{"$f":"IF('4 - Species Breakdown'!N425=0,\"\",'4 - Species Breakdown'!N425)","v":""},{"$f":"IFERROR(('4 - Species Breakdown'!J425/'WCC Summary'!$D$14)*100,\"\")","v":""},{"$f":"IF('4 - Species Breakdown'!J425=0,\"\",'4 - Species Breakdown'!J425)","v":""}]
[null,{"$f":"IF('4 - Species Breakdown'!B426=0,\"\",'4 - Species Breakdown'!B426)","v":""},{"$f":"IF('4 - Species Breakdown'!D426=0,\"\",'4 - Species Breakdown'!D426)","v":""},{"$f":"IF('4 - Species Breakdown'!L426=0,\"\",'4 - Species Breakdown'!L426)","v":""},{"$f":"IF('4 - Species Breakdown'!M426=0,\"\",'4 - Species Breakdown'!M426)","v":""},{"$f":"IF('4 - Species Breakdown'!N426=0,\"\",'4 - Species Breakdown'!N426)","v":""},{"$f":"IFERROR(('4 - Species Breakdown'!J426/'WCC Summary'!$D$14)*100,\"\")","v":""},{"$f":"IF('4 - Species Breakdown'!J426=0,\"\",'4 - Species Breakdown'!J426)","v":""}]
[null,{"$f":"IF('4 - Species Breakdown'!B427=0,\"\",'4 - Species Breakdown'!B427)","v":""},{"$f":"IF('4 - Species Breakdown'!D427=0,\"\",'4 - Species Breakdown'!D427)","v":""},{"$f":"IF('4 - Species Breakdown'!L427=0,\"\",'4 - Species Breakdown'!L427)","v":""},{"$f":"IF('4 - Species Breakdown'!M427=0,\"\",'4 - Species Breakdown'!M427)","v":""},{"$f":"IF('4 - Species Breakdown'!N427=0,\"\",'4 - Species Breakdown'!N427)","v":""},{"$f":"IFERROR(('4 - Species Breakdown'!J427/'WCC Summary'!$D$14)*100,\"\")","v":""},{"$f":"IF('4 - Species Breakdown'!J427=0,\"\",'4 - Species Breakdown'!J427)","v":""}]
[null,{"$f":"IF('4 - Species Breakdown'!B428=0,\"\",'4 - Species Breakdown'!B428)","v":""},{"$f":"IF('4 - Species Breakdown'!D428=0,\"\",'4 - Species Breakdown'!D428)","v":""},{"$f":"IF('4 - Species Breakdown'!L428=0,\"\",'4 - Species Breakdown'!L428)","v":""},{"$f":"IF('4 - Species Breakdown'!M428=0,\"\",'4 - Species Breakdown'!M428)","v":""},{"$f":"IF('4 - Species Breakdown'!N428=0,\"\",'4 - Species Breakdown'!N428)","v":""},{"$f":"IFERROR(('4 - Species Breakdown'!J428/'WCC Summary'!$D$14)*100,\"\")","v":""},{"$f":"IF('4 - Species Breakdown'!J428=0,\"\",'4 - Species Breakdown'!J428)","v":""}]
[null,{"$f":"IF('4 - Species Breakdown'!B429=0,\"\",'4 - Species Breakdown'!B429)","v":""},{"$f":"IF('4 - Species Breakdown'!D429=0,\"\",'4 - Species Breakdown'!D429)","v":""},{"$f":"IF('4 - Species Breakdown'!L429=0,\"\",'4 - Species Breakdown'!L429)","v":""},{"$f":"IF('4 - Species Breakdown'!M429=0,\"\",'4 - Species Breakdown'!M429)","v":""},{"$f":"IF('4 - Species Breakdown'!N429=0,\"\",'4 - Species Breakdown'!N429)","v":""},{"$f":"IFERROR(('4 - Species Breakdown'!J429/'WCC Summary'!$D$14)*100,\"\")","v":""},{"$f":"IF('4 - Species Breakdown'!J429=0,\"\",'4 - Species Breakdown'!J429)","v":""}]
[null,{"$f":"IF('4 - Species Breakdown'!B430=0,\"\",'4 - Species Breakdown'!B430)","v":""},{"$f":"IF('4 - Species Breakdown'!D430=0,\"\",'4 - Species Breakdown'!D430)","v":""},{"$f":"IF('4 - Species Breakdown'!L430=0,\"\",'4 - Species Breakdown'!L430)","v":""},{"$f":"IF('4 - Species Breakdown'!M430=0,\"\",'4 - Species Breakdown'!M430)","v":""},{"$f":"IF('4 - Species Breakdown'!N430=0,\"\",'4 - Species Breakdown'!N430)","v":""},{"$f":"IFERROR(('4 - Species Breakdown'!J430/'WCC Summary'!$D$14)*100,\"\")","v":""},{"$f":"IF('4 - Species Breakdown'!J430=0,\"\",'4 - Species Breakdown'!J430)","v":""}]
[null,{"$f":"IF('4 - Species Breakdown'!B431=0,\"\",'4 - Species Breakdown'!B431)","v":""},{"$f":"IF('4 - Species Breakdown'!D431=0,\"\",'4 - Species Breakdown'!D431)","v":""},{"$f":"IF('4 - Species Breakdown'!L431=0,\"\",'4 - Species Breakdown'!L431)","v":""},{"$f":"IF('4 - Species Breakdown'!M431=0,\"\",'4 - Species Breakdown'!M431)","v":""},{"$f":"IF('4 - Species Breakdown'!N431=0,\"\",'4 - Species Breakdown'!N431)","v":""},{"$f":"IFERROR(('4 - Species Breakdown'!J431/'WCC Summary'!$D$14)*100,\"\")","v":""},{"$f":"IF('4 - Species Breakdown'!J431=0,\"\",'4 - Species Breakdown'!J431)","v":""}]
[null,{"$f":"IF('4 - Species Breakdown'!B432=0,\"\",'4 - Species Breakdown'!B432)","v":""},{"$f":"IF('4 - Species Breakdown'!D432=0,\"\",'4 - Species Breakdown'!D432)","v":""},{"$f":"IF('4 - Species Breakdown'!L432=0,\"\",'4 - Species Breakdown'!L432)","v":""},{"$f":"IF('4 - Species Breakdown'!M432=0,\"\",'4 - Species Breakdown'!M432)","v":""},{"$f":"IF('4 - Species Breakdown'!N432=0,\"\",'4 - Species Breakdown'!N432)","v":""},{"$f":"IFERROR(('4 - Species Breakdown'!J432/'WCC Summary'!$D$14)*100,\"\")","v":""},{"$f":"IF('4 - Species Breakdown'!J432=0,\"\",'4 - Species Breakdown'!J432)","v":""}]
[null,{"$f":"IF('4 - Species Breakdown'!B433=0,\"\",'4 - Species Breakdown'!B433)","v":""},{"$f":"IF('4 - Species Breakdown'!D433=0,\"\",'4 - Species Breakdown'!D433)","v":""},{"$f":"IF('4 - Species Breakdown'!L433=0,\"\",'4 - Species Breakdown'!L433)","v":""},{"$f":"IF('4 - Species Breakdown'!M433=0,\"\",'4 - Species Breakdown'!M433)","v":""},{"$f":"IF('4 - Species Breakdown'!N433=0,\"\",'4 - Species Breakdown'!N433)","v":""},{"$f":"IFERROR(('4 - Species Breakdown'!J433/'WCC Summary'!$D$14)*100,\"\")","v":""},{"$f":"IF('4 - Species Breakdown'!J433=0,\"\",'4 - Species Breakdown'!J433)","v":""}]
[null,{"$f":"IF('4 - Species Breakdown'!B434=0,\"\",'4 - Species Breakdown'!B434)","v":""},{"$f":"IF('4 - Species Breakdown'!D434=0,\"\",'4 - Species Breakdown'!D434)","v":""},{"$f":"IF('4 - Species Breakdown'!L434=0,\"\",'4 - Species Breakdown'!L434)","v":""},{"$f":"IF('4 - Species Breakdown'!M434=0,\"\",'4 - Species Breakdown'!M434)","v":""},{"$f":"IF('4 - Species Breakdown'!N434=0,\"\",'4 - Species Breakdown'!N434)","v":""},{"$f":"IFERROR(('4 - Species Breakdown'!J434/'WCC Summary'!$D$14)*100,\"\")","v":""},{"$f":"IF('4 - Species Breakdown'!J434=0,\"\",'4 - Species Breakdown'!J434)","v":""}]
[null,{"$f":"IF('4 - Species Breakdown'!B435=0,\"\",'4 - Species Breakdown'!B435)","v":""},{"$f":"IF('4 - Species Breakdown'!D435=0,\"\",'4 - Species Breakdown'!D435)","v":""},{"$f":"IF('4 - Species Breakdown'!L435=0,\"\",'4 - Species Breakdown'!L435)","v":""},{"$f":"IF('4 - Species Breakdown'!M435=0,\"\",'4 - Species Breakdown'!M435)","v":""},{"$f":"IF('4 - Species Breakdown'!N435=0,\"\",'4 - Species Breakdown'!N435)","v":""},{"$f":"IFERROR(('4 - Species Breakdown'!J435/'WCC Summary'!$D$14)*100,\"\")","v":""},{"$f":"IF('4 - Species Breakdown'!J435=0,\"\",'4 - Species Breakdown'!J435)","v":""}]
[null,{"$f":"IF('4 - Species Breakdown'!B436=0,\"\",'4 - Species Breakdown'!B436)","v":""},{"$f":"IF('4 - Species Breakdown'!D436=0,\"\",'4 - Species Breakdown'!D436)","v":""},{"$f":"IF('4 - Species Breakdown'!L436=0,\"\",'4 - Species Breakdown'!L436)","v":""},{"$f":"IF('4 - Species Breakdown'!M436=0,\"\",'4 - Species Breakdown'!M436)","v":""},{"$f":"IF('4 - Species Breakdown'!N436=0,\"\",'4 - Species Breakdown'!N436)","v":""},{"$f":"IFERROR(('4 - Species Breakdown'!J436/'WCC Summary'!$D$14)*100,\"\")","v":""},{"$f":"IF('4 - Species Breakdown'!J436=0,\"\",'4 - Species Breakdown'!J436)","v":""}]
[null,{"$f":"IF('4 - Species Breakdown'!B437=0,\"\",'4 - Species Breakdown'!B437)","v":""},{"$f":"IF('4 - Species Breakdown'!D437=0,\"\",'4 - Species Breakdown'!D437)","v":""},{"$f":"IF('4 - Species Breakdown'!L437=0,\"\",'4 - Species Breakdown'!L437)","v":""},{"$f":"IF('4 - Species Breakdown'!M437=0,\"\",'4 - Species Breakdown'!M437)","v":""},{"$f":"IF('4 - Species Breakdown'!N437=0,\"\",'4 - Species Breakdown'!N437)","v":""},{"$f":"IFERROR(('4 - Species Breakdown'!J437/'WCC Summary'!$D$14)*100,\"\")","v":""},{"$f":"IF('4 - Species Breakdown'!J437=0,\"\",'4 - Species Breakdown'!J437)","v":""}]
[null,{"$f":"IF('4 - Species Breakdown'!B438=0,\"\",'4 - Species Breakdown'!B438)","v":""},{"$f":"IF('4 - Species Breakdown'!D438=0,\"\",'4 - Species Breakdown'!D438)","v":""},{"$f":"IF('4 - Species Breakdown'!L438=0,\"\",'4 - Species Breakdown'!L438)","v":""},{"$f":"IF('4 - Species Breakdown'!M438=0,\"\",'4 - Species Breakdown'!M438)","v":""},{"$f":"IF('4 - Species Breakdown'!N438=0,\"\",'4 - Species Breakdown'!N438)","v":""},{"$f":"IFERROR(('4 - Species Breakdown'!J438/'WCC Summary'!$D$14)*100,\"\")","v":""},{"$f":"IF('4 - Species Breakdown'!J438=0,\"\",'4 - Species Breakdown'!J438)","v":""}]
[null,{"$f":"IF('4 - Species Breakdown'!B439=0,\"\",'4 - Species Breakdown'!B439)","v":""},{"$f":"IF('4 - Species Breakdown'!D439=0,\"\",'4 - Species Breakdown'!D439)","v":""},{"$f":"IF('4 - Species Breakdown'!L439=0,\"\",'4 - Species Breakdown'!L439)","v":""},{"$f":"IF('4 - Species Breakdown'!M439=0,\"\",'4 - Species Breakdown'!M439)","v":""},{"$f":"IF('4 - Species Breakdown'!N439=0,\"\",'4 - Species Breakdown'!N439)","v":""},{"$f":"IFERROR(('4 - Species Breakdown'!J439/'WCC Summary'!$D$14)*100,\"\")","v":""},{"$f":"IF('4 - Species Breakdown'!J439=0,\"\",'4 - Species Breakdown'!J439)","v":""}]
[null,{"$f":"IF('4 - Species Breakdown'!B440=0,\"\",'4 - Species Breakdown'!B440)","v":""},{"$f":"IF('4 - Species Breakdown'!D440=0,\"\",'4 - Species Breakdown'!D440)","v":""},{"$f":"IF('4 - Species Breakdown'!L440=0,\"\",'4 - Species Breakdown'!L440)","v":""},{"$f":"IF('4 - Species Breakdown'!M440=0,\"\",'4 - Species Breakdown'!M440)","v":""},{"$f":"IF('4 - Species Breakdown'!N440=0,\"\",'4 - Species Breakdown'!N440)","v":""},{"$f":"IFERROR(('4 - Species Breakdown'!J440/'WCC Summary'!$D$14)*100,\"\")","v":""},{"$f":"IF('4 - Species Breakdown'!J440=0,\"\",'4 - Species Breakdown'!J440)","v":""}]
[null,{"$f":"IF('4 - Species Breakdown'!B441=0,\"\",'4 - Species Breakdown'!B441)","v":""},{"$f":"IF('4 - Species Breakdown'!D441=0,\"\",'4 - Species Breakdown'!D441)","v":""},{"$f":"IF('4 - Species Breakdown'!L441=0,\"\",'4 - Species Breakdown'!L441)","v":""},{"$f":"IF('4 - Species Breakdown'!M441=0,\"\",'4 - Species Breakdown'!M441)","v":""},{"$f":"IF('4 - Species Breakdown'!N441=0,\"\",'4 - Species Breakdown'!N441)","v":""},{"$f":"IFERROR(('4 - Species Breakdown'!J441/'WCC Summary'!$D$14)*100,\"\")","v":""},{"$f":"IF('4 - Species Breakdown'!J441=0,\"\",'4 - Species Breakdown'!J441)","v":""}]
[null,{"$f":"IF('4 - Species Breakdown'!B442=0,\"\",'4 - Species Breakdown'!B442)","v":""},{"$f":"IF('4 - Species Breakdown'!D442=0,\"\",'4 - Species Breakdown'!D442)","v":""},{"$f":"IF('4 - Species Breakdown'!L442=0,\"\",'4 - Species Breakdown'!L442)","v":""},{"$f":"IF('4 - Species Breakdown'!M442=0,\"\",'4 - Species Breakdown'!M442)","v":""},{"$f":"IF('4 - Species Breakdown'!N442=0,\"\",'4 - Species Breakdown'!N442)","v":""},{"$f":"IFERROR(('4 - Species Breakdown'!J442/'WCC Summary'!$D$14)*100,\"\")","v":""},{"$f":"IF('4 - Species Breakdown'!J442=0,\"\",'4 - Species Breakdown'!J442)","v":""}]
[null,{"$f":"IF('4 - Species Breakdown'!B443=0,\"\",'4 - Species Breakdown'!B443)","v":""},{"$f":"IF('4 - Species Breakdown'!D443=0,\"\",'4 - Species Breakdown'!D443)","v":""},{"$f":"IF('4 - Species Breakdown'!L443=0,\"\",'4 - Species Breakdown'!L443)","v":""},{"$f":"IF('4 - Species Breakdown'!M443=0,\"\",'4 - Species Breakdown'!M443)","v":""},{"$f":"IF('4 - Species Breakdown'!N443=0,\"\",'4 - Species Breakdown'!N443)","v":""},{"$f":"IFERROR(('4 - Species Breakdown'!J443/'WCC Summary'!$D$14)*100,\"\")","v":""},{"$f":"IF('4 - Species Breakdown'!J443=0,\"\",'4 - Species Breakdown'!J443)","v":""}]
[null,{"$f":"IF('4 - Species Breakdown'!B444=0,\"\",'4 - Species Breakdown'!B444)","v":""},{"$f":"IF('4 - Species Breakdown'!D444=0,\"\",'4 - Species Breakdown'!D444)","v":""},{"$f":"IF('4 - Species Breakdown'!L444=0,\"\",'4 - Species Breakdown'!L444)","v":""},{"$f":"IF('4 - Species Breakdown'!M444=0,\"\",'4 - Species Breakdown'!M444)","v":""},{"$f":"IF('4 - Species Breakdown'!N444=0,\"\",'4 - Species Breakdown'!N444)","v":""},{"$f":"IFERROR(('4 - Species Breakdown'!J444/'WCC Summary'!$D$14)*100,\"\")","v":""},{"$f":"IF('4 - Species Breakdown'!J444=0,\"\",'4 - Species Breakdown'!J444)","v":""}]
[null,{"$f":"IF('4 - Species Breakdown'!B445=0,\"\",'4 - Species Breakdown'!B445)","v":""},{"$f":"IF('4 - Species Breakdown'!D445=0,\"\",'4 - Species Breakdown'!D445)","v":""},{"$f":"IF('4 - Species Breakdown'!L445=0,\"\",'4 - Species Breakdown'!L445)","v":""},{"$f":"IF('4 - Species Breakdown'!M445=0,\"\",'4 - Species Breakdown'!M445)","v":""},{"$f":"IF('4 - Species Breakdown'!N445=0,\"\",'4 - Species Breakdown'!N445)","v":""},{"$f":"IFERROR(('4 - Species Breakdown'!J445/'WCC Summary'!$D$14)*100,\"\")","v":""},{"$f":"IF('4 - Species Breakdown'!J445=0,\"\",'4 - Species Breakdown'!J445)","v":""}]
[null,{"$f":"IF('4 - Species Breakdown'!B446=0,\"\",'4 - Species Breakdown'!B446)","v":""},{"$f":"IF('4 - Species Breakdown'!D446=0,\"\",'4 - Species Breakdown'!D446)","v":""},{"$f":"IF('4 - Species Breakdown'!L446=0,\"\",'4 - Species Breakdown'!L446)","v":""},{"$f":"IF('4 - Species Breakdown'!M446=0,\"\",'4 - Species Breakdown'!M446)","v":""},{"$f":"IF('4 - Species Breakdown'!N446=0,\"\",'4 - Species Breakdown'!N446)","v":""},{"$f":"IFERROR(('4 - Species Breakdown'!J446/'WCC Summary'!$D$14)*100,\"\")","v":""},{"$f":"IF('4 - Species Breakdown'!J446=0,\"\",'4 - Species Breakdown'!J446)","v":""}]
[null,{"$f":"IF('4 - Species Breakdown'!B447=0,\"\",'4 - Species Breakdown'!B447)","v":""},{"$f":"IF('4 - Species Breakdown'!D447=0,\"\",'4 - Species Breakdown'!D447)","v":""},{"$f":"IF('4 - Species Breakdown'!L447=0,\"\",'4 - Species Breakdown'!L447)","v":""},{"$f":"IF('4 - Species Breakdown'!M447=0,\"\",'4 - Species Breakdown'!M447)","v":""},{"$f":"IF('4 - Species Breakdown'!N447=0,\"\",'4 - Species Breakdown'!N447)","v":""},{"$f":"IFERROR(('4 - Species Breakdown'!J447/'WCC Summary'!$D$14)*100,\"\")","v":""},{"$f":"IF('4 - Species Breakdown'!J447=0,\"\",'4 - Species Breakdown'!J447)","v":""}]
[null,{"$f":"IF('4 - Species Breakdown'!B448=0,\"\",'4 - Species Breakdown'!B448)","v":""},{"$f":"IF('4 - Species Breakdown'!D448=0,\"\",'4 - Species Breakdown'!D448)","v":""},{"$f":"IF('4 - Species Breakdown'!L448=0,\"\",'4 - Species Breakdown'!L448)","v":""},{"$f":"IF('4 - Species Breakdown'!M448=0,\"\",'4 - Species Breakdown'!M448)","v":""},{"$f":"IF('4 - Species Breakdown'!N448=0,\"\",'4 - Species Breakdown'!N448)","v":""},{"$f":"IFERROR(('4 - Species Breakdown'!J448/'WCC Summary'!$D$14)*100,\"\")","v":""},{"$f":"IF('4 - Species Breakdown'!J448=0,\"\",'4 - Species Breakdown'!J448)","v":""}]
[null,{"$f":"IF('4 - Species Breakdown'!B449=0,\"\",'4 - Species Breakdown'!B449)","v":""},{"$f":"IF('4 - Species Breakdown'!D449=0,\"\",'4 - Species Breakdown'!D449)","v":""},{"$f":"IF('4 - Species Breakdown'!L449=0,\"\",'4 - Species Breakdown'!L449)","v":""},{"$f":"IF('4 - Species Breakdown'!M449=0,\"\",'4 - Species Breakdown'!M449)","v":""},{"$f":"IF('4 - Species Breakdown'!N449=0,\"\",'4 - Species Breakdown'!N449)","v":""},{"$f":"IFERROR(('4 - Species Breakdown'!J449/'WCC Summary'!$D$14)*100,\"\")","v":""},{"$f":"IF('4 - Species Breakdown'!J449=0,\"\",'4 - Species Breakdown'!J449)","v":""}]
[null,{"$f":"IF('4 - Species Breakdown'!B450=0,\"\",'4 - Species Breakdown'!B450)","v":""},{"$f":"IF('4 - Species Breakdown'!D450=0,\"\",'4 - Species Breakdown'!D450)","v":""},{"$f":"IF('4 - Species Breakdown'!L450=0,\"\",'4 - Species Breakdown'!L450)","v":""},{"$f":"IF('4 - Species Breakdown'!M450=0,\"\",'4 - Species Breakdown'!M450)","v":""},{"$f":"IF('4 - Species Breakdown'!N450=0,\"\",'4 - Species Breakdown'!N450)","v":""},{"$f":"IFERROR(('4 - Species Breakdown'!J450/'WCC Summary'!$D$14)*100,\"\")","v":""},{"$f":"IF('4 - Species Breakdown'!J450=0,\"\",'4 - Species Breakdown'!J450)","v":""}]
[null,{"$f":"IF('4 - Species Breakdown'!B451=0,\"\",'4 - Species Breakdown'!B451)","v":""},{"$f":"IF('4 - Species Breakdown'!D451=0,\"\",'4 - Species Breakdown'!D451)","v":""},{"$f":"IF('4 - Species Breakdown'!L451=0,\"\",'4 - Species Breakdown'!L451)","v":""},{"$f":"IF('4 - Species Breakdown'!M451=0,\"\",'4 - Species Breakdown'!M451)","v":""},{"$f":"IF('4 - Species Breakdown'!N451=0,\"\",'4 - Species Breakdown'!N451)","v":""},{"$f":"IFERROR(('4 - Species Breakdown'!J451/'WCC Summary'!$D$14)*100,\"\")","v":""},{"$f":"IF('4 - Species Breakdown'!J451=0,\"\",'4 - Species Breakdown'!J451)","v":""}]
[null,{"$f":"IF('4 - Species Breakdown'!B452=0,\"\",'4 - Species Breakdown'!B452)","v":""},{"$f":"IF('4 - Species Breakdown'!D452=0,\"\",'4 - Species Breakdown'!D452)","v":""},{"$f":"IF('4 - Species Breakdown'!L452=0,\"\",'4 - Species Breakdown'!L452)","v":""},{"$f":"IF('4 - Species Breakdown'!M452=0,\"\",'4 - Species Breakdown'!M452)","v":""},{"$f":"IF('4 - Species Breakdown'!N452=0,\"\",'4 - Species Breakdown'!N452)","v":""},{"$f":"IFERROR(('4 - Species Breakdown'!J452/'WCC Summary'!$D$14)*100,\"\")","v":""},{"$f":"IF('4 - Species Breakdown'!J452=0,\"\",'4 - Species Breakdown'!J452)","v":""}]
[null,{"$f":"IF('4 - Species Breakdown'!B453=0,\"\",'4 - Species Breakdown'!B453)","v":""},{"$f":"IF('4 - Species Breakdown'!D453=0,\"\",'4 - Species Breakdown'!D453)","v":""},{"$f":"IF('4 - Species Breakdown'!L453=0,\"\",'4 - Species Breakdown'!L453)","v":""},{"$f":"IF('4 - Species Breakdown'!M453=0,\"\",'4 - Species Breakdown'!M453)","v":""},{"$f":"IF('4 - Species Breakdown'!N453=0,\"\",'4 - Species Breakdown'!N453)","v":""},{"$f":"IFERROR(('4 - Species Breakdown'!J453/'WCC Summary'!$D$14)*100,\"\")","v":""},{"$f":"IF('4 - Species Breakdown'!J453=0,\"\",'4 - Species Breakdown'!J453)","v":""}]
[null,{"$f":"IF('4 - Species Breakdown'!B454=0,\"\",'4 - Species Breakdown'!B454)","v":""},{"$f":"IF('4 - Species Breakdown'!D454=0,\"\",'4 - Species Breakdown'!D454)","v":""},{"$f":"IF('4 - Species Breakdown'!L454=0,\"\",'4 - Species Breakdown'!L454)","v":""},{"$f":"IF('4 - Species Breakdown'!M454=0,\"\",'4 - Species Breakdown'!M454)","v":""},{"$f":"IF('4 - Species Breakdown'!N454=0,\"\",'4 - Species Breakdown'!N454)","v":""},{"$f":"IFERROR(('4 - Species Breakdown'!J454/'WCC Summary'!$D$14)*100,\"\")","v":""},{"$f":"IF('4 - Species Breakdown'!J454=0,\"\",'4 - Species Breakdown'!J454)","v":""}]
[null,{"$f":"IF('4 - Species Breakdown'!B455=0,\"\",'4 - Species Breakdown'!B455)","v":""},{"$f":"IF('4 - Species Breakdown'!D455=0,\"\",'4 - Species Breakdown'!D455)","v":""},{"$f":"IF('4 - Species Breakdown'!L455=0,\"\",'4 - Species Breakdown'!L455)","v":""},{"$f":"IF('4 - Species Breakdown'!M455=0,\"\",'4 - Species Breakdown'!M455)","v":""},{"$f":"IF('4 - Species Breakdown'!N455=0,\"\",'4 - Species Breakdown'!N455)","v":""},{"$f":"IFERROR(('4 - Species Breakdown'!J455/'WCC Summary'!$D$14)*100,\"\")","v":""},{"$f":"IF('4 - Species Breakdown'!J455=0,\"\",'4 - Species Breakdown'!J455)","v":""}]
[null,{"$f":"IF('4 - Species Breakdown'!B456=0,\"\",'4 - Species Breakdown'!B456)","v":""},{"$f":"IF('4 - Species Breakdown'!D456=0,\"\",'4 - Species Breakdown'!D456)","v":""},{"$f":"IF('4 - Species Breakdown'!L456=0,\"\",'4 - Species Breakdown'!L456)","v":""},{"$f":"IF('4 - Species Breakdown'!M456=0,\"\",'4 - Species Breakdown'!M456)","v":""},{"$f":"IF('4 - Species Breakdown'!N456=0,\"\",'4 - Species Breakdown'!N456)","v":""},{"$f":"IFERROR(('4 - Species Breakdown'!J456/'WCC Summary'!$D$14)*100,\"\")","v":""},{"$f":"IF('4 - Species Breakdown'!J456=0,\"\",'4 - Species Breakdown'!J456)","v":""}]
[null,{"$f":"IF('4 - Species Breakdown'!B457=0,\"\",'4 - Species Breakdown'!B457)","v":""},{"$f":"IF('4 - Species Breakdown'!D457=0,\"\",'4 - Species Breakdown'!D457)","v":""},{"$f":"IF('4 - Species Breakdown'!L457=0,\"\",'4 - Species Breakdown'!L457)","v":""},{"$f":"IF('4 - Species Breakdown'!M457=0,\"\",'4 - Species Breakdown'!M457)","v":""},{"$f":"IF('4 - Species Breakdown'!N457=0,\"\",'4 - Species Breakdown'!N457)","v":""},{"$f":"IFERROR(('4 - Species Breakdown'!J457/'WCC Summary'!$D$14)*100,\"\")","v":""},{"$f":"IF('4 - Species Breakdown'!J457=0,\"\",'4 - Species Breakdown'!J457)","v":""}]
[null,{"$f":"IF('4 - Species Breakdown'!B458=0,\"\",'4 - Species Breakdown'!B458)","v":""},{"$f":"IF('4 - Species Breakdown'!D458=0,\"\",'4 - Species Breakdown'!D458)","v":""},{"$f":"IF('4 - Species Breakdown'!L458=0,\"\",'4 - Species Breakdown'!L458)","v":""},{"$f":"IF('4 - Species Breakdown'!M458=0,\"\",'4 - Species Breakdown'!M458)","v":""},{"$f":"IF('4 - Species Breakdown'!N458=0,\"\",'4 - Species Breakdown'!N458)","v":""},{"$f":"IFERROR(('4 - Species Breakdown'!J458/'WCC Summary'!$D$14)*100,\"\")","v":""},{"$f":"IF('4 - Species Breakdown'!J458=0,\"\",'4 - Species Breakdown'!J458)","v":""}]
[null,{"$f":"IF('4 - Species Breakdown'!B459=0,\"\",'4 - Species Breakdown'!B459)","v":""},{"$f":"IF('4 - Species Breakdown'!D459=0,\"\",'4 - Species Breakdown'!D459)","v":""},{"$f":"IF('4 - Species Breakdown'!L459=0,\"\",'4 - Species Breakdown'!L459)","v":""},{"$f":"IF('4 - Species Breakdown'!M459=0,\"\",'4 - Species Breakdown'!M459)","v":""},{"$f":"IF('4 - Species Breakdown'!N459=0,\"\",'4 - Species Breakdown'!N459)","v":""},{"$f":"IFERROR(('4 - Species Breakdown'!J459/'WCC Summary'!$D$14)*100,\"\")","v":""},{"$f":"IF('4 - Species Breakdown'!J459=0,\"\",'4 - Species Breakdown'!J459)","v":""}]
[null,{"$f":"IF('4 - Species Breakdown'!B460=0,\"\",'4 - Species Breakdown'!B460)","v":""},{"$f":"IF('4 - Species Breakdown'!D460=0,\"\",'4 - Species Breakdown'!D460)","v":""},{"$f":"IF('4 - Species Breakdown'!L460=0,\"\",'4 - Species Breakdown'!L460)","v":""},{"$f":"IF('4 - Species Breakdown'!M460=0,\"\",'4 - Species Breakdown'!M460)","v":""},{"$f":"IF('4 - Species Breakdown'!N460=0,\"\",'4 - Species Breakdown'!N460)","v":""},{"$f":"IFERROR(('4 - Species Breakdown'!J460/'WCC Summary'!$D$14)*100,\"\")","v":""},{"$f":"IF('4 - Species Breakdown'!J460=0,\"\",'4 - Species Breakdown'!J460)","v":""}]
[null,{"$f":"IF('4 - Species Breakdown'!B461=0,\"\",'4 - Species Breakdown'!B461)","v":""},{"$f":"IF('4 - Species Breakdown'!D461=0,\"\",'4 - Species Breakdown'!D461)","v":""},{"$f":"IF('4 - Species Breakdown'!L461=0,\"\",'4 - Species Breakdown'!L461)","v":""},{"$f":"IF('4 - Species Breakdown'!M461=0,\"\",'4 - Species Breakdown'!M461)","v":""},{"$f":"IF('4 - Species Breakdown'!N461=0,\"\",'4 - Species Breakdown'!N461)","v":""},{"$f":"IFERROR(('4 - Species Breakdown'!J461/'WCC Summary'!$D$14)*100,\"\")","v":""},{"$f":"IF('4 - Species Breakdown'!J461=0,\"\",'4 - Species Breakdown'!J461)","v":""}]
[null,{"$f":"IF('4 - Species Breakdown'!B462=0,\"\",'4 - Species Breakdown'!B462)","v":""},{"$f":"IF('4 - Species Breakdown'!D462=0,\"\",'4 - Species Breakdown'!D462)","v":""},{"$f":"IF('4 - Species Breakdown'!L462=0,\"\",'4 - Species Breakdown'!L462)","v":""},{"$f":"IF('4 - Species Breakdown'!M462=0,\"\",'4 - Species Breakdown'!M462)","v":""},{"$f":"IF('4 - Species Breakdown'!N462=0,\"\",'4 - Species Breakdown'!N462)","v":""},{"$f":"IFERROR(('4 - Species Breakdown'!J462/'WCC Summary'!$D$14)*100,\"\")","v":""},{"$f":"IF('4 - Species Breakdown'!J462=0,\"\",'4 - Species Breakdown'!J462)","v":""}]
[null,{"$f":"IF('4 - Species Breakdown'!B463=0,\"\",'4 - Species Breakdown'!B463)","v":""},{"$f":"IF('4 - Species Breakdown'!D463=0,\"\",'4 - Species Breakdown'!D463)","v":""},{"$f":"IF('4 - Species Breakdown'!L463=0,\"\",'4 - Species Breakdown'!L463)","v":""},{"$f":"IF('4 - Species Breakdown'!M463=0,\"\",'4 - Species Breakdown'!M463)","v":""},{"$f":"IF('4 - Species Breakdown'!N463=0,\"\",'4 - Species Breakdown'!N463)","v":""},{"$f":"IFERROR(('4 - Species Breakdown'!J463/'WCC Summary'!$D$14)*100,\"\")","v":""},{"$f":"IF('4 - Species Breakdown'!J463=0,\"\",'4 - Species Breakdown'!J463)","v":""}]
[null,{"$f":"IF('4 - Species Breakdown'!B464=0,\"\",'4 - Species Breakdown'!B464)","v":""},{"$f":"IF('4 - Species Breakdown'!D464=0,\"\",'4 - Species Breakdown'!D464)","v":""},{"$f":"IF('4 - Species Breakdown'!L464=0,\"\",'4 - Species Breakdown'!L464)","v":""},{"$f":"IF('4 - Species Breakdown'!M464=0,\"\",'4 - Species Breakdown'!M464)","v":""},{"$f":"IF('4 - Species Breakdown'!N464=0,\"\",'4 - Species Breakdown'!N464)","v":""},{"$f":"IFERROR(('4 - Species Breakdown'!J464/'WCC Summary'!$D$14)*100,\"\")","v":""},{"$f":"IF('4 - Species Breakdown'!J464=0,\"\",'4 - Species Breakdown'!J464)","v":""}]
[null,{"$f":"IF('4 - Species Breakdown'!B465=0,\"\",'4 - Species Breakdown'!B465)","v":""},{"$f":"IF('4 - Species Breakdown'!D465=0,\"\",'4 - Species Breakdown'!D465)","v":""},{"$f":"IF('4 - Species Breakdown'!L465=0,\"\",'4 - Species Breakdown'!L465)","v":""},{"$f":"IF('4 - Species Breakdown'!M465=0,\"\",'4 - Species Breakdown'!M465)","v":""},{"$f":"IF('4 - Species Breakdown'!N465=0,\"\",'4 - Species Breakdown'!N465)","v":""},{"$f":"IFERROR(('4 - Species Breakdown'!J465/'WCC Summary'!$D$14)*100,\"\")","v":""},{"$f":"IF('4 - Species Breakdown'!J465=0,\"\",'4 - Species Breakdown'!J465)","v":""}]
[null,{"$f":"IF('4 - Species Breakdown'!B466=0,\"\",'4 - Species Breakdown'!B466)","v":""},{"$f":"IF('4 - Species Breakdown'!D466=0,\"\",'4 - Species Breakdown'!D466)","v":""},{"$f":"IF('4 - Species Breakdown'!L466=0,\"\",'4 - Species Breakdown'!L466)","v":""},{"$f":"IF('4 - Species Breakdown'!M466=0,\"\",'4 - Species Breakdown'!M466)","v":""},{"$f":"IF('4 - Species Breakdown'!N466=0,\"\",'4 - Species Breakdown'!N466)","v":""},{"$f":"IFERROR(('4 - Species Breakdown'!J466/'WCC Summary'!$D$14)*100,\"\")","v":""},{"$f":"IF('4 - Species Breakdown'!J466=0,\"\",'4 - Species Breakdown'!J466)","v":""}]
[null,{"$f":"IF('4 - Species Breakdown'!B467=0,\"\",'4 - Species Breakdown'!B467)","v":""},{"$f":"IF('4 - Species Breakdown'!D467=0,\"\",'4 - Species Breakdown'!D467)","v":""},{"$f":"IF('4 - Species Breakdown'!L467=0,\"\",'4 - Species Breakdown'!L467)","v":""},{"$f":"IF('4 - Species Breakdown'!M467=0,\"\",'4 - Species Breakdown'!M467)","v":""},{"$f":"IF('4 - Species Breakdown'!N467=0,\"\",'4 - Species Breakdown'!N467)","v":""},{"$f":"IFERROR(('4 - Species Breakdown'!J467/'WCC Summary'!$D$14)*100,\"\")","v":""},{"$f":"IF('4 - Species Breakdown'!J467=0,\"\",'4 - Species Breakdown'!J467)","v":""}]
[null,{"$f":"IF('4 - Species Breakdown'!B468=0,\"\",'4 - Species Breakdown'!B468)","v":""},{"$f":"IF('4 - Species Breakdown'!D468=0,\"\",'4 - Species Breakdown'!D468)","v":""},{"$f":"IF('4 - Species Breakdown'!L468=0,\"\",'4 - Species Breakdown'!L468)","v":""},{"$f":"IF('4 - Species Breakdown'!M468=0,\"\",'4 - Species Breakdown'!M468)","v":""},{"$f":"IF('4 - Species Breakdown'!N468=0,\"\",'4 - Species Breakdown'!N468)","v":""},{"$f":"IFERROR(('4 - Species Breakdown'!J468/'WCC Summary'!$D$14)*100,\"\")","v":""},{"$f":"IF('4 - Species Breakdown'!J468=0,\"\",'4 - Species Breakdown'!J468)","v":""}]
[null,{"$f":"IF('4 - Species Breakdown'!B469=0,\"\",'4 - Species Breakdown'!B469)","v":""},{"$f":"IF('4 - Species Breakdown'!D469=0,\"\",'4 - Species Breakdown'!D469)","v":""},{"$f":"IF('4 - Species Breakdown'!L469=0,\"\",'4 - Species Breakdown'!L469)","v":""},{"$f":"IF('4 - Species Breakdown'!M469=0,\"\",'4 - Species Breakdown'!M469)","v":""},{"$f":"IF('4 - Species Breakdown'!N469=0,\"\",'4 - Species Breakdown'!N469)","v":""},{"$f":"IFERROR(('4 - Species Breakdown'!J469/'WCC Summary'!$D$14)*100,\"\")","v":""},{"$f":"IF('4 - Species Breakdown'!J469=0,\"\",'4 - Species Breakdown'!J469)","v":""}]
[null,{"$f":"IF('4 - Species Breakdown'!B470=0,\"\",'4 - Species Breakdown'!B470)","v":""},{"$f":"IF('4 - Species Breakdown'!D470=0,\"\",'4 - Species Breakdown'!D470)","v":""},{"$f":"IF('4 - Species Breakdown'!L470=0,\"\",'4 - Species Breakdown'!L470)","v":""},{"$f":"IF('4 - Species Breakdown'!M470=0,\"\",'4 - Species Breakdown'!M470)","v":""},{"$f":"IF('4 - Species Breakdown'!N470=0,\"\",'4 - Species Breakdown'!N470)","v":""},{"$f":"IFERROR(('4 - Species Breakdown'!J470/'WCC Summary'!$D$14)*100,\"\")","v":""},{"$f":"IF('4 - Species Breakdown'!J470=0,\"\",'4 - Species Breakdown'!J470)","v":""}]
[null,{"$f":"IF('4 - Species Breakdown'!B471=0,\"\",'4 - Species Breakdown'!B471)","v":""},{"$f":"IF('4 - Species Breakdown'!D471=0,\"\",'4 - Species Breakdown'!D471)","v":""},{"$f":"IF('4 - Species Breakdown'!L471=0,\"\",'4 - Species Breakdown'!L471)","v":""},{"$f":"IF('4 - Species Breakdown'!M471=0,\"\",'4 - Species Breakdown'!M471)","v":""},{"$f":"IF('4 - Species Breakdown'!N471=0,\"\",'4 - Species Breakdown'!N471)","v":""},{"$f":"IFERROR(('4 - Species Breakdown'!J471/'WCC Summary'!$D$14)*100,\"\")","v":""},{"$f":"IF('4 - Species Breakdown'!J471=0,\"\",'4 - Species Breakdown'!J471)","v":""}]
[null,{"$f":"IF('4 - Species Breakdown'!B472=0,\"\",'4 - Species Breakdown'!B472)","v":""},{"$f":"IF('4 - Species Breakdown'!D472=0,\"\",'4 - Species Breakdown'!D472)","v":""},{"$f":"IF('4 - Species Breakdown'!L472=0,\"\",'4 - Species Breakdown'!L472)","v":""},{"$f":"IF('4 - Species Breakdown'!M472=0,\"\",'4 - Species Breakdown'!M472)","v":""},{"$f":"IF('4 - Species Breakdown'!N472=0,\"\",'4 - Species Breakdown'!N472)","v":""},{"$f":"IFERROR(('4 - Species Breakdown'!J472/'WCC Summary'!$D$14)*100,\"\")","v":""},{"$f":"IF('4 - Species Breakdown'!J472=0,\"\",'4 - Species Breakdown'!J472)","v":""}]
[null,{"$f":"IF('4 - Species Breakdown'!B473=0,\"\",'4 - Species Breakdown'!B473)","v":""},{"$f":"IF('4 - Species Breakdown'!D473=0,\"\",'4 - Species Breakdown'!D473)","v":""},{"$f":"IF('4 - Species Breakdown'!L473=0,\"\",'4 - Species Breakdown'!L473)","v":""},{"$f":"IF('4 - Species Breakdown'!M473=0,\"\",'4 - Species Breakdown'!M473)","v":""},{"$f":"IF('4 - Species Breakdown'!N473=0,\"\",'4 - Species Breakdown'!N473)","v":""},{"$f":"IFERROR(('4 - Species Breakdown'!J473/'WCC Summary'!$D$14)*100,\"\")","v":""},{"$f":"IF('4 - Species Breakdown'!J473=0,\"\",'4 - Species Breakdown'!J473)","v":""}]
[null,{"$f":"IF('4 - Species Breakdown'!B474=0,\"\",'4 - Species Breakdown'!B474)","v":""},{"$f":"IF('4 - Species Breakdown'!D474=0,\"\",'4 - Species Breakdown'!D474)","v":""},{"$f":"IF('4 - Species Breakdown'!L474=0,\"\",'4 - Species Breakdown'!L474)","v":""},{"$f":"IF('4 - Species Breakdown'!M474=0,\"\",'4 - Species Breakdown'!M474)","v":""},{"$f":"IF('4 - Species Breakdown'!N474=0,\"\",'4 - Species Breakdown'!N474)","v":""},{"$f":"IFERROR(('4 - Species Breakdown'!J474/'WCC Summary'!$D$14)*100,\"\")","v":""},{"$f":"IF('4 - Species Breakdown'!J474=0,\"\",'4 - Species Breakdown'!J474)","v":""}]
[null,{"$f":"IF('4 - Species Breakdown'!B475=0,\"\",'4 - Species Breakdown'!B475)","v":""},{"$f":"IF('4 - Species Breakdown'!D475=0,\"\",'4 - Species Breakdown'!D475)","v":""},{"$f":"IF('4 - Species Breakdown'!L475=0,\"\",'4 - Species Breakdown'!L475)","v":""},{"$f":"IF('4 - Species Breakdown'!M475=0,\"\",'4 - Species Breakdown'!M475)","v":""},{"$f":"IF('4 - Species Breakdown'!N475=0,\"\",'4 - Species Breakdown'!N475)","v":""},{"$f":"IFERROR(('4 - Species Breakdown'!J475/'WCC Summary'!$D$14)*100,\"\")","v":""},{"$f":"IF('4 - Species Breakdown'!J475=0,\"\",'4 - Species Breakdown'!J475)","v":""}]
[null,{"$f":"IF('4 - Species Breakdown'!B476=0,\"\",'4 - Species Breakdown'!B476)","v":""},{"$f":"IF('4 - Species Breakdown'!D476=0,\"\",'4 - Species Breakdown'!D476)","v":""},{"$f":"IF('4 - Species Breakdown'!L476=0,\"\",'4 - Species Breakdown'!L476)","v":""},{"$f":"IF('4 - Species Breakdown'!M476=0,\"\",'4 - Species Breakdown'!M476)","v":""},{"$f":"IF('4 - Species Breakdown'!N476=0,\"\",'4 - Species Breakdown'!N476)","v":""},{"$f":"IFERROR(('4 - Species Breakdown'!J476/'WCC Summary'!$D$14)*100,\"\")","v":""},{"$f":"IF('4 - Species Breakdown'!J476=0,\"\",'4 - Species Breakdown'!J476)","v":""}]
[null,{"$f":"IF('4 - Species Breakdown'!B477=0,\"\",'4 - Species Breakdown'!B477)","v":""},{"$f":"IF('4 - Species Breakdown'!D477=0,\"\",'4 - Species Breakdown'!D477)","v":""},{"$f":"IF('4 - Species Breakdown'!L477=0,\"\",'4 - Species Breakdown'!L477)","v":""},{"$f":"IF('4 - Species Breakdown'!M477=0,\"\",'4 - Species Breakdown'!M477)","v":""},{"$f":"IF('4 - Species Breakdown'!N477=0,\"\",'4 - Species Breakdown'!N477)","v":""},{"$f":"IFERROR(('4 - Species Breakdown'!J477/'WCC Summary'!$D$14)*100,\"\")","v":""},{"$f":"IF('4 - Species Breakdown'!J477=0,\"\",'4 - Species Breakdown'!J477)","v":""}]
[null,{"$f":"IF('4 - Species Breakdown'!B478=0,\"\",'4 - Species Breakdown'!B478)","v":""},{"$f":"IF('4 - Species Breakdown'!D478=0,\"\",'4 - Species Breakdown'!D478)","v":""},{"$f":"IF('4 - Species Breakdown'!L478=0,\"\",'4 - Species Breakdown'!L478)","v":""},{"$f":"IF('4 - Species Breakdown'!M478=0,\"\",'4 - Species Breakdown'!M478)","v":""},{"$f":"IF('4 - Species Breakdown'!N478=0,\"\",'4 - Species Breakdown'!N478)","v":""},{"$f":"IFERROR(('4 - Species Breakdown'!J478/'WCC Summary'!$D$14)*100,\"\")","v":""},{"$f":"IF('4 - Species Breakdown'!J478=0,\"\",'4 - Species Breakdown'!J478)","v":""}]
[null,{"$f":"IF('4 - Species Breakdown'!B479=0,\"\",'4 - Species Breakdown'!B479)","v":""},{"$f":"IF('4 - Species Breakdown'!D479=0,\"\",'4 - Species Breakdown'!D479)","v":""},{"$f":"IF('4 - Species Breakdown'!L479=0,\"\",'4 - Species Breakdown'!L479)","v":""},{"$f":"IF('4 - Species Breakdown'!M479=0,\"\",'4 - Species Breakdown'!M479)","v":""},{"$f":"IF('4 - Species Breakdown'!N479=0,\"\",'4 - Species Breakdown'!N479)","v":""},{"$f":"IFERROR(('4 - Species Breakdown'!J479/'WCC Summary'!$D$14)*100,\"\")","v":""},{"$f":"IF('4 - Species Breakdown'!J479=0,\"\",'4 - Species Breakdown'!J479)","v":""}]
[null,{"$f":"IF('4 - Species Breakdown'!B480=0,\"\",'4 - Species Breakdown'!B480)","v":""},{"$f":"IF('4 - Species Breakdown'!D480=0,\"\",'4 - Species Breakdown'!D480)","v":""},{"$f":"IF('4 - Species Breakdown'!L480=0,\"\",'4 - Species Breakdown'!L480)","v":""},{"$f":"IF('4 - Species Breakdown'!M480=0,\"\",'4 - Species Breakdown'!M480)","v":""},{"$f":"IF('4 - Species Breakdown'!N480=0,\"\",'4 - Species Breakdown'!N480)","v":""},{"$f":"IFERROR(('4 - Species Breakdown'!J480/'WCC Summary'!$D$14)*100,\"\")","v":""},{"$f":"IF('4 - Species Breakdown'!J480=0,\"\",'4 - Species Breakdown'!J480)","v":""}]
[null,{"$f":"IF('4 - Species Breakdown'!B481=0,\"\",'4 - Species Breakdown'!B481)","v":""},{"$f":"IF('4 - Species Breakdown'!D481=0,\"\",'4 - Species Breakdown'!D481)","v":""},{"$f":"IF('4 - Species Breakdown'!L481=0,\"\",'4 - Species Breakdown'!L481)","v":""},{"$f":"IF('4 - Species Breakdown'!M481=0,\"\",'4 - Species Breakdown'!M481)","v":""},{"$f":"IF('4 - Species Breakdown'!N481=0,\"\",'4 - Species Breakdown'!N481)","v":""},{"$f":"IFERROR(('4 - Species Breakdown'!J481/'WCC Summary'!$D$14)*100,\"\")","v":""},{"$f":"IF('4 - Species Breakdown'!J481=0,\"\",'4 - Species Breakdown'!J481)","v":""}]
[null,{"$f":"IF('4 - Species Breakdown'!B482=0,\"\",'4 - Species Breakdown'!B482)","v":""},{"$f":"IF('4 - Species Breakdown'!D482=0,\"\",'4 - Species Breakdown'!D482)","v":""},{"$f":"IF('4 - Species Breakdown'!L482=0,\"\",'4 - Species Breakdown'!L482)","v":""},{"$f":"IF('4 - Species Breakdown'!M482=0,\"\",'4 - Species Breakdown'!M482)","v":""},{"$f":"IF('4 - Species Breakdown'!N482=0,\"\",'4 - Species Breakdown'!N482)","v":""},{"$f":"IFERROR(('4 - Species Breakdown'!J482/'WCC Summary'!$D$14)*100,\"\")","v":""},{"$f":"IF('4 - Species Breakdown'!J482=0,\"\",'4 - Species Breakdown'!J482)","v":""}]
[null,{"$f":"IF('4 - Species Breakdown'!B483=0,\"\",'4 - Species Breakdown'!B483)","v":""},{"$f":"IF('4 - Species Breakdown'!D483=0,\"\",'4 - Species Breakdown'!D483)","v":""},{"$f":"IF('4 - Species Breakdown'!L483=0,\"\",'4 - Species Breakdown'!L483)","v":""},{"$f":"IF('4 - Species Breakdown'!M483=0,\"\",'4 - Species Breakdown'!M483)","v":""},{"$f":"IF('4 - Species Breakdown'!N483=0,\"\",'4 - Species Breakdown'!N483)","v":""},{"$f":"IFERROR(('4 - Species Breakdown'!J483/'WCC Summary'!$D$14)*100,\"\")","v":""},{"$f":"IF('4 - Species Breakdown'!J483=0,\"\",'4 - Species Breakdown'!J483)","v":""}]
[null,{"$f":"IF('4 - Species Breakdown'!B484=0,\"\",'4 - Species Breakdown'!B484)","v":""},{"$f":"IF('4 - Species Breakdown'!D484=0,\"\",'4 - Species Breakdown'!D484)","v":""},{"$f":"IF('4 - Species Breakdown'!L484=0,\"\",'4 - Species Breakdown'!L484)","v":""},{"$f":"IF('4 - Species Breakdown'!M484=0,\"\",'4 - Species Breakdown'!M484)","v":""},{"$f":"IF('4 - Species Breakdown'!N484=0,\"\",'4 - Species Breakdown'!N484)","v":""},{"$f":"IFERROR(('4 - Species Breakdown'!J484/'WCC Summary'!$D$14)*100,\"\")","v":""},{"$f":"IF('4 - Species Breakdown'!J484=0,\"\",'4 - Species Breakdown'!J484)","v":""}]
[null,{"$f":"IF('4 - Species Breakdown'!B485=0,\"\",'4 - Species Breakdown'!B485)","v":""},{"$f":"IF('4 - Species Breakdown'!D485=0,\"\",'4 - Species Breakdown'!D485)","v":""},{"$f":"IF('4 - Species Breakdown'!L485=0,\"\",'4 - Species Breakdown'!L485)","v":""},{"$f":"IF('4 - Species Breakdown'!M485=0,\"\",'4 - Species Breakdown'!M485)","v":""},{"$f":"IF('4 - Species Breakdown'!N485=0,\"\",'4 - Species Breakdown'!N485)","v":""},{"$f":"IFERROR(('4 - Species Breakdown'!J485/'WCC Summary'!$D$14)*100,\"\")","v":""},{"$f":"IF('4 - Species Breakdown'!J485=0,\"\",'4 - Species Breakdown'!J485)","v":""}]
[null,{"$f":"IF('4 - Species Breakdown'!B486=0,\"\",'4 - Species Breakdown'!B486)","v":""},{"$f":"IF('4 - Species Breakdown'!D486=0,\"\",'4 - Species Breakdown'!D486)","v":""},{"$f":"IF('4 - Species Breakdown'!L486=0,\"\",'4 - Species Breakdown'!L486)","v":""},{"$f":"IF('4 - Species Breakdown'!M486=0,\"\",'4 - Species Breakdown'!M486)","v":""},{"$f":"IF('4 - Species Breakdown'!N486=0,\"\",'4 - Species Breakdown'!N486)","v":""},{"$f":"IFERROR(('4 - Species Breakdown'!J486/'WCC Summary'!$D$14)*100,\"\")","v":""},{"$f":"IF('4 - Species Breakdown'!J486=0,\"\",'4 - Species Breakdown'!J486)","v":""}]
[null,{"$f":"IF('4 - Species Breakdown'!B487=0,\"\",'4 - Species Breakdown'!B487)","v":""},{"$f":"IF('4 - Species Breakdown'!D487=0,\"\",'4 - Species Breakdown'!D487)","v":""},{"$f":"IF('4 - Species Breakdown'!L487=0,\"\",'4 - Species Breakdown'!L487)","v":""},{"$f":"IF('4 - Species Breakdown'!M487=0,\"\",'4 - Species Breakdown'!M487)","v":""},{"$f":"IF('4 - Species Breakdown'!N487=0,\"\",'4 - Species Breakdown'!N487)","v":""},{"$f":"IFERROR(('4 - Species Breakdown'!J487/'WCC Summary'!$D$14)*100,\"\")","v":""},{"$f":"IF('4 - Species Breakdown'!J487=0,\"\",'4 - Species Breakdown'!J487)","v":""}]
[null,{"$f":"IF('4 - Species Breakdown'!B488=0,\"\",'4 - Species Breakdown'!B488)","v":""},{"$f":"IF('4 - Species Breakdown'!D488=0,\"\",'4 - Species Breakdown'!D488)","v":""},{"$f":"IF('4 - Species Breakdown'!L488=0,\"\",'4 - Species Breakdown'!L488)","v":""},{"$f":"IF('4 - Species Breakdown'!M488=0,\"\",'4 - Species Breakdown'!M488)","v":""},{"$f":"IF('4 - Species Breakdown'!N488=0,\"\",'4 - Species Breakdown'!N488)","v":""},{"$f":"IFERROR(('4 - Species Breakdown'!J488/'WCC Summary'!$D$14)*100,\"\")","v":""},{"$f":"IF('4 - Species Breakdown'!J488=0,\"\",'4 - Species Breakdown'!J488)","v":""}]
[null,{"$f":"IF('4 - Species Breakdown'!B489=0,\"\",'4 - Species Breakdown'!B489)","v":""},{"$f":"IF('4 - Species Breakdown'!D489=0,\"\",'4 - Species Breakdown'!D489)","v":""},{"$f":"IF('4 - Species Breakdown'!L489=0,\"\",'4 - Species Breakdown'!L489)","v":""},{"$f":"IF('4 - Species Breakdown'!M489=0,\"\",'4 - Species Breakdown'!M489)","v":""},{"$f":"IF('4 - Species Breakdown'!N489=0,\"\",'4 - Species Breakdown'!N489)","v":""},{"$f":"IFERROR(('4 - Species Breakdown'!J489/'WCC Summary'!$D$14)*100,\"\")","v":""},{"$f":"IF('4 - Species Breakdown'!J489=0,\"\",'4 - Species Breakdown'!J489)","v":""}]
[null,{"$f":"IF('4 - Species Breakdown'!B490=0,\"\",'4 - Species Breakdown'!B490)","v":""},{"$f":"IF('4 - Species Breakdown'!D490=0,\"\",'4 - Species Breakdown'!D490)","v":""},{"$f":"IF('4 - Species Breakdown'!L490=0,\"\",'4 - Species Breakdown'!L490)","v":""},{"$f":"IF('4 - Species Breakdown'!M490=0,\"\",'4 - Species Breakdown'!M490)","v":""},{"$f":"IF('4 - Species Breakdown'!N490=0,\"\",'4 - Species Breakdown'!N490)","v":""},{"$f":"IFERROR(('4 - Species Breakdown'!J490/'WCC Summary'!$D$14)*100,\"\")","v":""},{"$f":"IF('4 - Species Breakdown'!J490=0,\"\",'4 - Species Breakdown'!J490)","v":""}]
[null,{"$f":"IF('4 - Species Breakdown'!B491=0,\"\",'4 - Species Breakdown'!B491)","v":""},{"$f":"IF('4 - Species Breakdown'!D491=0,\"\",'4 - Species Breakdown'!D491)","v":""},{"$f":"IF('4 - Species Breakdown'!L491=0,\"\",'4 - Species Breakdown'!L491)","v":""},{"$f":"IF('4 - Species Breakdown'!M491=0,\"\",'4 - Species Breakdown'!M491)","v":""},{"$f":"IF('4 - Species Breakdown'!N491=0,\"\",'4 - Species Breakdown'!N491)","v":""},{"$f":"IFERROR(('4 - Species Breakdown'!J491/'WCC Summary'!$D$14)*100,\"\")","v":""},{"$f":"IF('4 - Species Breakdown'!J491=0,\"\",'4 - Species Breakdown'!J491)","v":""}]
[null,{"$f":"IF('4 - Species Breakdown'!B492=0,\"\",'4 - Species Breakdown'!B492)","v":""},{"$f":"IF('4 - Species Breakdown'!D492=0,\"\",'4 - Species Breakdown'!D492)","v":""},{"$f":"IF('4 - Species Breakdown'!L492=0,\"\",'4 - Species Breakdown'!L492)","v":""},{"$f":"IF('4 - Species Breakdown'!M492=0,\"\",'4 - Species Breakdown'!M492)","v":""},{"$f":"IF('4 - Species Breakdown'!N492=0,\"\",'4 - Species Breakdown'!N492)","v":""},{"$f":"IFERROR(('4 - Species Breakdown'!J492/'WCC Summary'!$D$14)*100,\"\")","v":""},{"$f":"IF('4 - Species Breakdown'!J492=0,\"\",'4 - Species Breakdown'!J492)","v":""}]
[null,{"$f":"IF('4 - Species Breakdown'!B493=0,\"\",'4 - Species Breakdown'!B493)","v":""},{"$f":"IF('4 - Species Breakdown'!D493=0,\"\",'4 - Species Breakdown'!D493)","v":""},{"$f":"IF('4 - Species Breakdown'!L493=0,\"\",'4 - Species Breakdown'!L493)","v":""},{"$f":"IF('4 - Species Breakdown'!M493=0,\"\",'4 - Species Breakdown'!M493)","v":""},{"$f":"IF('4 - Species Breakdown'!N493=0,\"\",'4 - Species Breakdown'!N493)","v":""},{"$f":"IFERROR(('4 - Species Breakdown'!J493/'WCC Summary'!$D$14)*100,\"\")","v":""},{"$f":"IF('4 - Species Breakdown'!J493=0,\"\",'4 - Species Breakdown'!J493)","v":""}]
[null,{"$f":"IF('4 - Species Breakdown'!B494=0,\"\",'4 - Species Breakdown'!B494)","v":""},{"$f":"IF('4 - Species Breakdown'!D494=0,\"\",'4 - Species Breakdown'!D494)","v":""},{"$f":"IF('4 - Species Breakdown'!L494=0,\"\",'4 - Species Breakdown'!L494)","v":""},{"$f":"IF('4 - Species Breakdown'!M494=0,\"\",'4 - Species Breakdown'!M494)","v":""},{"$f":"IF('4 - Species Breakdown'!N494=0,\"\",'4 - Species Breakdown'!N494)","v":""},{"$f":"IFERROR(('4 - Species Breakdown'!J494/'WCC Summary'!$D$14)*100,\"\")","v":""},{"$f":"IF('4 - Species Breakdown'!J494=0,\"\",'4 - Species Breakdown'!J494)","v":""}]
[null,{"$f":"IF('4 - Species Breakdown'!B495=0,\"\",'4 - Species Breakdown'!B495)","v":""},{"$f":"IF('4 - Species Breakdown'!D495=0,\"\",'4 - Species Breakdown'!D495)","v":""},{"$f":"IF('4 - Species Breakdown'!L495=0,\"\",'4 - Species Breakdown'!L495)","v":""},{"$f":"IF('4 - Species Breakdown'!M495=0,\"\",'4 - Species Breakdown'!M495)","v":""},{"$f":"IF('4 - Species Breakdown'!N495=0,\"\",'4 - Species Breakdown'!N495)","v":""},{"$f":"IFERROR(('4 - Species Breakdown'!J495/'WCC Summary'!$D$14)*100,\"\")","v":""},{"$f":"IF('4 - Species Breakdown'!J495=0,\"\",'4 - Species Breakdown'!J495)","v":""}]
[null,{"$f":"IF('4 - Species Breakdown'!B496=0,\"\",'4 - Species Breakdown'!B496)","v":""},{"$f":"IF('4 - Species Breakdown'!D496=0,\"\",'4 - Species Breakdown'!D496)","v":""},{"$f":"IF('4 - Species Breakdown'!L496=0,\"\",'4 - Species Breakdown'!L496)","v":""},{"$f":"IF('4 - Species Breakdown'!M496=0,\"\",'4 - Species Breakdown'!M496)","v":""},{"$f":"IF('4 - Species Breakdown'!N496=0,\"\",'4 - Species Breakdown'!N496)","v":""},{"$f":"IFERROR(('4 - Species Breakdown'!J496/'WCC Summary'!$D$14)*100,\"\")","v":""},{"$f":"IF('4 - Species Breakdown'!J496=0,\"\",'4 - Species Breakdown'!J496)","v":""}]
[null,{"$f":"IF('4 - Species Breakdown'!B497=0,\"\",'4 - Species Breakdown'!B497)","v":""},{"$f":"IF('4 - Species Breakdown'!D497=0,\"\",'4 - Species Breakdown'!D497)","v":""},{"$f":"IF('4 - Species Breakdown'!L497=0,\"\",'4 - Species Breakdown'!L497)","v":""},{"$f":"IF('4 - Species Breakdown'!M497=0,\"\",'4 - Species Breakdown'!M497)","v":""},{"$f":"IF('4 - Species Breakdown'!N497=0,\"\",'4 - Species Breakdown'!N497)","v":""},{"$f":"IFERROR(('4 - Species Breakdown'!J497/'WCC Summary'!$D$14)*100,\"\")","v":""},{"$f":"IF('4 - Species Breakdown'!J497=0,\"\",'4 - Species Breakdown'!J497)","v":""}]
[null,{"$f":"IF('4 - Species Breakdown'!B498=0,\"\",'4 - Species Breakdown'!B498)","v":""},{"$f":"IF('4 - Species Breakdown'!D498=0,\"\",'4 - Species Breakdown'!D498)","v":""},{"$f":"IF('4 - Species Breakdown'!L498=0,\"\",'4 - Species Breakdown'!L498)","v":""},{"$f":"IF('4 - Species Breakdown'!M498=0,\"\",'4 - Species Breakdown'!M498)","v":""},{"$f":"IF('4 - Species Breakdown'!N498=0,\"\",'4 - Species Breakdown'!N498)","v":""},{"$f":"IFERROR(('4 - Species Breakdown'!J498/'WCC Summary'!$D$14)*100,\"\")","v":""},{"$f":"IF('4 - Species Breakdown'!J498=0,\"\",'4 - Species Breakdown'!J498)","v":""}]
[null,{"$f":"IF('4 - Species Breakdown'!B499=0,\"\",'4 - Species Breakdown'!B499)","v":""},{"$f":"IF('4 - Species Breakdown'!D499=0,\"\",'4 - Species Breakdown'!D499)","v":""},{"$f":"IF('4 - Species Breakdown'!L499=0,\"\",'4 - Species Breakdown'!L499)","v":""},{"$f":"IF('4 - Species Breakdown'!M499=0,\"\",'4 - Species Breakdown'!M499)","v":""},{"$f":"IF('4 - Species Breakdown'!N499=0,\"\",'4 - Species Breakdown'!N499)","v":""},{"$f":"IFERROR(('4 - Species Breakdown'!J499/'WCC Summary'!$D$14)*100,\"\")","v":""},{"$f":"IF('4 - Species Breakdown'!J499=0,\"\",'4 - Species Breakdown'!J499)","v":""}]
[null,{"$f":"IF('4 - Species Breakdown'!B500=0,\"\",'4 - Species Breakdown'!B500)","v":""},{"$f":"IF('4 - Species Breakdown'!D500=0,\"\",'4 - Species Breakdown'!D500)","v":""},{"$f":"IF('4 - Species Breakdown'!L500=0,\"\",'4 - Species Breakdown'!L500)","v":""},{"$f":"IF('4 - Species Breakdown'!M500=0,\"\",'4 - Species Breakdown'!M500)","v":""},{"$f":"IF('4 - Species Breakdown'!N500=0,\"\",'4 - Species Breakdown'!N500)","v":""},{"$f":"IFERROR(('4 - Species Breakdown'!J500/'WCC Summary'!$D$14)*100,\"\")","v":""},{"$f":"IF('4 - Species Breakdown'!J500=0,\"\",'4 - Species Breakdown'!J500)","v":""}]
[null,{"$f":"IF('4 - Species Breakdown'!B501=0,\"\",'4 - Species Breakdown'!B501)","v":""},{"$f":"IF('4 - Species Breakdown'!D501=0,\"\",'4 - Species Breakdown'!D501)","v":""},{"$f":"IF('4 - Species Breakdown'!L501=0,\"\",'4 - Species Breakdown'!L501)","v":""},{"$f":"IF('4 - Species Breakdown'!M501=0,\"\",'4 - Species Breakdown'!M501)","v":""},{"$f":"IF('4 - Species Breakdown'!N501=0,\"\",'4 - Species Breakdown'!N501)","v":""},{"$f":"IFERROR(('4 - Species Breakdown'!J501/'WCC Summary'!$D$14)*100,\"\")","v":""},{"$f":"IF('4 - Species Breakdown'!J501=0,\"\",'4 - Species Breakdown'!J501)","v":""}]
[null,{"$f":"IF('4 - Species Breakdown'!B502=0,\"\",'4 - Species Breakdown'!B502)","v":""},{"$f":"IF('4 - Species Breakdown'!D502=0,\"\",'4 - Species Breakdown'!D502)","v":""},{"$f":"IF('4 - Species Breakdown'!L502=0,\"\",'4 - Species Breakdown'!L502)","v":""},{"$f":"IF('4 - Species Breakdown'!M502=0,\"\",'4 - Species Breakdown'!M502)","v":""},{"$f":"IF('4 - Species Breakdown'!N502=0,\"\",'4 - Species Breakdown'!N502)","v":""},{"$f":"IFERROR(('4 - Species Breakdown'!J502/'WCC Summary'!$D$14)*100,\"\")","v":""},{"$f":"IF('4 - Species Breakdown'!J502=0,\"\",'4 - Species Breakdown'!J502)","v":""}]
[null,{"$f":"IF('4 - Species Breakdown'!B503=0,\"\",'4 - Species Breakdown'!B503)","v":""},{"$f":"IF('4 - Species Breakdown'!D503=0,\"\",'4 - Species Breakdown'!D503)","v":""},{"$f":"IF('4 - Species Breakdown'!L503=0,\"\",'4 - Species Breakdown'!L503)","v":""},{"$f":"IF('4 - Species Breakdown'!M503=0,\"\",'4 - Species Breakdown'!M503)","v":""},{"$f":"IF('4 - Species Breakdown'!N503=0,\"\",'4 - Species Breakdown'!N503)","v":""},{"$f":"IFERROR(('4 - Species Breakdown'!J503/'WCC Summary'!$D$14)*100,\"\")","v":""},{"$f":"IF('4 - Species Breakdown'!J503=0,\"\",'4 - Species Breakdown'!J503)","v":""}]
[null,{"$f":"IF('4 - Species Breakdown'!B504=0,\"\",'4 - Species Breakdown'!B504)","v":""},{"$f":"IF('4 - Species Breakdown'!D504=0,\"\",'4 - Species Breakdown'!D504)","v":""},{"$f":"IF('4 - Species Breakdown'!L504=0,\"\",'4 - Species Breakdown'!L504)","v":""},{"$f":"IF('4 - Species Breakdown'!M504=0,\"\",'4 - Species Breakdown'!M504)","v":""},{"$f":"IF('4 - Species Breakdown'!N504=0,\"\",'4 - Species Breakdown'!N504)","v":""},{"$f":"IFERROR(('4 - Species Breakdown'!J504/'WCC Summary'!$D$14)*100,\"\")","v":""},{"$f":"IF('4 - Species Breakdown'!J504=0,\"\",'4 - Species Breakdown'!J504)","v":""}]
[null,{"$f":"IF('4 - Species Breakdown'!B505=0,\"\",'4 - Species Breakdown'!B505)","v":""},{"$f":"IF('4 - Species Breakdown'!D505=0,\"\",'4 - Species Breakdown'!D505)","v":""},{"$f":"IF('4 - Species Breakdown'!L505=0,\"\",'4 - Species Breakdown'!L505)","v":""},{"$f":"IF('4 - Species Breakdown'!M505=0,\"\",'4 - Species Breakdown'!M505)","v":""},{"$f":"IF('4 - Species Breakdown'!N505=0,\"\",'4 - Species Breakdown'!N505)","v":""},{"$f":"IFERROR(('4 - Species Breakdown'!J505/'WCC Summary'!$D$14)*100,\"\")","v":""},{"$f":"IF('4 - Species Breakdown'!J505=0,\"\",'4 - Species Breakdown'!J505)","v":""}]
[null,{"$f":"IF('4 - Species Breakdown'!B506=0,\"\",'4 - Species Breakdown'!B506)","v":""},{"$f":"IF('4 - Species Breakdown'!D506=0,\"\",'4 - Species Breakdown'!D506)","v":""},{"$f":"IF('4 - Species Breakdown'!L506=0,\"\",'4 - Species Breakdown'!L506)","v":""},{"$f":"IF('4 - Species Breakdown'!M506=0,\"\",'4 - Species Breakdown'!M506)","v":""},{"$f":"IF('4 - Species Breakdown'!N506=0,\"\",'4 - Species Breakdown'!N506)","v":""},{"$f":"IFERROR(('4 - Species Breakdown'!J506/'WCC Summary'!$D$14)*100,\"\")","v":""},{"$f":"IF('4 - Species Breakdown'!J506=0,\"\",'4 - Species Breakdown'!J506)","v":""}]
[null,{"$f":"IF('4 - Species Breakdown'!B507=0,\"\",'4 - Species Breakdown'!B507)","v":""},{"$f":"IF('4 - Species Breakdown'!D507=0,\"\",'4 - Species Breakdown'!D507)","v":""},{"$f":"IF('4 - Species Breakdown'!L507=0,\"\",'4 - Species Breakdown'!L507)","v":""},{"$f":"IF('4 - Species Breakdown'!M507=0,\"\",'4 - Species Breakdown'!M507)","v":""},{"$f":"IF('4 - Species Breakdown'!N507=0,\"\",'4 - Species Breakdown'!N507)","v":""},{"$f":"IFERROR(('4 - Species Breakdown'!J507/'WCC Summary'!$D$14)*100,\"\")","v":""},{"$f":"IF('4 - Species Breakdown'!J507=0,\"\",'4 - Species Breakdown'!J507)","v":""}]
[null,{"$f":"IF('4 - Species Breakdown'!B508=0,\"\",'4 - Species Breakdown'!B508)","v":""},{"$f":"IF('4 - Species Breakdown'!D508=0,\"\",'4 - Species Breakdown'!D508)","v":""},{"$f":"IF('4 - Species Breakdown'!L508=0,\"\",'4 - Species Breakdown'!L508)","v":""},{"$f":"IF('4 - Species Breakdown'!M508=0,\"\",'4 - Species Breakdown'!M508)","v":""},{"$f":"IF('4 - Species Breakdown'!N508=0,\"\",'4 - Species Breakdown'!N508)","v":""},{"$f":"IFERROR(('4 - Species Breakdown'!J508/'WCC Summary'!$D$14)*100,\"\")","v":""},{"$f":"IF('4 - Species Breakdown'!J508=0,\"\",'4 - Species Breakdown'!J508)","v":""}]
[null,{"$f":"IF('4 - Species Breakdown'!B509=0,\"\",'4 - Species Breakdown'!B509)","v":""},{"$f":"IF('4 - Species Breakdown'!D509=0,\"\",'4 - Species Breakdown'!D509)","v":""},{"$f":"IF('4 - Species Breakdown'!L509=0,\"\",'4 - Species Breakdown'!L509)","v":""},{"$f":"IF('4 - Species Breakdown'!M509=0,\"\",'4 - Species Breakdown'!M509)","v":""},{"$f":"IF('4 - Species Breakdown'!N509=0,\"\",'4 - Species Breakdown'!N509)","v":""},{"$f":"IFERROR(('4 - Species Breakdown'!J509/'WCC Summary'!$D$14)*100,\"\")","v":""},{"$f":"IF('4 - Species Breakdown'!J509=0,\"\",'4 - Species Breakdown'!J509)","v":""}]
[null,{"$f":"IF('4 - Species Breakdown'!B510=0,\"\",'4 - Species Breakdown'!B510)","v":""},{"$f":"IF('4 - Species Breakdown'!D510=0,\"\",'4 - Species Breakdown'!D510)","v":""},{"$f":"IF('4 - Species Breakdown'!L510=0,\"\",'4 - Species Breakdown'!L510)","v":""},{"$f":"IF('4 - Species Breakdown'!M510=0,\"\",'4 - Species Breakdown'!M510)","v":""},{"$f":"IF('4 - Species Breakdown'!N510=0,\"\",'4 - Species Breakdown'!N510)","v":""},{"$f":"IFERROR(('4 - Species Breakdown'!J510/'WCC Summary'!$D$14)*100,\"\")","v":""},{"$f":"IF('4 - Species Breakdown'!J510=0,\"\",'4 - Species Breakdown'!J510)","v":""}]
[null,{"$f":"IF('4 - Species Breakdown'!B511=0,\"\",'4 - Species Breakdown'!B511)","v":""},{"$f":"IF('4 - Species Breakdown'!D511=0,\"\",'4 - Species Breakdown'!D511)","v":""},{"$f":"IF('4 - Species Breakdown'!L511=0,\"\",'4 - Species Breakdown'!L511)","v":""},{"$f":"IF('4 - Species Breakdown'!M511=0,\"\",'4 - Species Breakdown'!M511)","v":""},{"$f":"IF('4 - Species Breakdown'!N511=0,\"\",'4 - Species Breakdown'!N511)","v":""},{"$f":"IFERROR(('4 - Species Breakdown'!J511/'WCC Summary'!$D$14)*100,\"\")","v":""},{"$f":"IF('4 - Species Breakdown'!J511=0,\"\",'4 - Species Breakdown'!J511)","v":""}]
[null,{"$f":"IF('4 - Species Breakdown'!B512=0,\"\",'4 - Species Breakdown'!B512)","v":""},{"$f":"IF('4 - Species Breakdown'!D512=0,\"\",'4 - Species Breakdown'!D512)","v":""},{"$f":"IF('4 - Species Breakdown'!L512=0,\"\",'4 - Species Breakdown'!L512)","v":""},{"$f":"IF('4 - Species Breakdown'!M512=0,\"\",'4 - Species Breakdown'!M512)","v":""},{"$f":"IF('4 - Species Breakdown'!N512=0,\"\",'4 - Species Breakdown'!N512)","v":""},{"$f":"IFERROR(('4 - Species Breakdown'!J512/'WCC Summary'!$D$14)*100,\"\")","v":""},{"$f":"IF('4 - Species Breakdown'!J512=0,\"\",'4 - Species Breakdown'!J512)","v":""}]
[null,{"$f":"IF('4 - Species Breakdown'!B513=0,\"\",'4 - Species Breakdown'!B513)","v":""},{"$f":"IF('4 - Species Breakdown'!D513=0,\"\",'4 - Species Breakdown'!D513)","v":""},{"$f":"IF('4 - Species Breakdown'!L513=0,\"\",'4 - Species Breakdown'!L513)","v":""},{"$f":"IF('4 - Species Breakdown'!M513=0,\"\",'4 - Species Breakdown'!M513)","v":""},{"$f":"IF('4 - Species Breakdown'!N513=0,\"\",'4 - Species Breakdown'!N513)","v":""},{"$f":"IFERROR(('4 - Species Breakdown'!J513/'WCC Summary'!$D$14)*100,\"\")","v":""},{"$f":"IF('4 - Species Breakdown'!J513=0,\"\",'4 - Species Breakdown'!J513)","v":""}]
[null,{"$f":"IF('4 - Species Breakdown'!B514=0,\"\",'4 - Species Breakdown'!B514)","v":""},{"$f":"IF('4 - Species Breakdown'!D514=0,\"\",'4 - Species Breakdown'!D514)","v":""},{"$f":"IF('4 - Species Breakdown'!L514=0,\"\",'4 - Species Breakdown'!L514)","v":""},{"$f":"IF('4 - Species Breakdown'!M514=0,\"\",'4 - Species Breakdown'!M514)","v":""},{"$f":"IF('4 - Species Breakdown'!N514=0,\"\",'4 - Species Breakdown'!N514)","v":""},{"$f":"IFERROR(('4 - Species Breakdown'!J514/'WCC Summary'!$D$14)*100,\"\")","v":""},{"$f":"IF('4 - Species Breakdown'!J514=0,\"\",'4 - Species Breakdown'!J514)","v":""}]
[null,{"$f":"IF('4 - Species Breakdown'!B515=0,\"\",'4 - Species Breakdown'!B515)","v":""},{"$f":"IF('4 - Species Breakdown'!D515=0,\"\",'4 - Species Breakdown'!D515)","v":""},{"$f":"IF('4 - Species Breakdown'!L515=0,\"\",'4 - Species Breakdown'!L515)","v":""},{"$f":"IF('4 - Species Breakdown'!M515=0,\"\",'4 - Species Breakdown'!M515)","v":""},{"$f":"IF('4 - Species Breakdown'!N515=0,\"\",'4 - Species Breakdown'!N515)","v":""},{"$f":"IFERROR(('4 - Species Breakdown'!J515/'WCC Summary'!$D$14)*100,\"\")","v":""},{"$f":"IF('4 - Species Breakdown'!J515=0,\"\",'4 - Species Breakdown'!J515)","v":""}]
[null,{"$f":"IF('4 - Species Breakdown'!B516=0,\"\",'4 - Species Breakdown'!B516)","v":""},{"$f":"IF('4 - Species Breakdown'!D516=0,\"\",'4 - Species Breakdown'!D516)","v":""},{"$f":"IF('4 - Species Breakdown'!L516=0,\"\",'4 - Species Breakdown'!L516)","v":""},{"$f":"IF('4 - Species Breakdown'!M516=0,\"\",'4 - Species Breakdown'!M516)","v":""},{"$f":"IF('4 - Species Breakdown'!N516=0,\"\",'4 - Species Breakdown'!N516)","v":""},{"$f":"IFERROR(('4 - Species Breakdown'!J516/'WCC Summary'!$D$14)*100,\"\")","v":""},{"$f":"IF('4 - Species Breakdown'!J516=0,\"\",'4 - Species Breakdown'!J516)","v":""}]
[null,{"$f":"IF('4 - Species Breakdown'!B517=0,\"\",'4 - Species Breakdown'!B517)","v":""},{"$f":"IF('4 - Species Breakdown'!D517=0,\"\",'4 - Species Breakdown'!D517)","v":""},{"$f":"IF('4 - Species Breakdown'!L517=0,\"\",'4 - Species Breakdown'!L517)","v":""},{"$f":"IF('4 - Species Breakdown'!M517=0,\"\",'4 - Species Breakdown'!M517)","v":""},{"$f":"IF('4 - Species Breakdown'!N517=0,\"\",'4 - Species Breakdown'!N517)","v":""},{"$f":"IFERROR(('4 - Species Breakdown'!J517/'WCC Summary'!$D$14)*100,\"\")","v":""},{"$f":"IF('4 - Species Breakdown'!J517=0,\"\",'4 - Species Breakdown'!J517)","v":""}]
[null,{"$f":"IF('4 - Species Breakdown'!B518=0,\"\",'4 - Species Breakdown'!B518)","v":""},{"$f":"IF('4 - Species Breakdown'!D518=0,\"\",'4 - Species Breakdown'!D518)","v":""},{"$f":"IF('4 - Species Breakdown'!L518=0,\"\",'4 - Species Breakdown'!L518)","v":""},{"$f":"IF('4 - Species Breakdown'!M518=0,\"\",'4 - Species Breakdown'!M518)","v":""},{"$f":"IF('4 - Species Breakdown'!N518=0,\"\",'4 - Species Breakdown'!N518)","v":""},{"$f":"IFERROR(('4 - Species Breakdown'!J518/'WCC Summary'!$D$14)*100,\"\")","v":""},{"$f":"IF('4 - Species Breakdown'!J518=0,\"\",'4 - Species Breakdown'!J518)","v":""}]
[null,{"$f":"IF('4 - Species Breakdown'!B519=0,\"\",'4 - Species Breakdown'!B519)","v":""},{"$f":"IF('4 - Species Breakdown'!D519=0,\"\",'4 - Species Breakdown'!D519)","v":""},{"$f":"IF('4 - Species Breakdown'!L519=0,\"\",'4 - Species Breakdown'!L519)","v":""},{"$f":"IF('4 - Species Breakdown'!M519=0,\"\",'4 - Species Breakdown'!M519)","v":""},{"$f":"IF('4 - Species Breakdown'!N519=0,\"\",'4 - Species Breakdown'!N519)","v":""},{"$f":"IFERROR(('4 - Species Breakdown'!J519/'WCC Summary'!$D$14)*100,\"\")","v":""},{"$f":"IF('4 - Species Breakdown'!J519=0,\"\",'4 - Species Breakdown'!J519)","v":""}]
[null,{"$f":"IF('4 - Species Breakdown'!B520=0,\"\",'4 - Species Breakdown'!B520)","v":""},{"$f":"IF('4 - Species Breakdown'!D520=0,\"\",'4 - Species Breakdown'!D520)","v":""},{"$f":"IF('4 - Species Breakdown'!L520=0,\"\",'4 - Species Breakdown'!L520)","v":""},{"$f":"IF('4 - Species Breakdown'!M520=0,\"\",'4 - Species Breakdown'!M520)","v":""},{"$f":"IF('4 - Species Breakdown'!N520=0,\"\",'4 - Species Breakdown'!N520)","v":""},{"$f":"IFERROR(('4 - Species Breakdown'!J520/'WCC Summary'!$D$14)*100,\"\")","v":""},{"$f":"IF('4 - Species Breakdown'!J520=0,\"\",'4 - Species Breakdown'!J520)","v":""}]
[null,{"$f":"IF('4 - Species Breakdown'!B521=0,\"\",'4 - Species Breakdown'!B521)","v":""},{"$f":"IF('4 - Species Breakdown'!D521=0,\"\",'4 - Species Breakdown'!D521)","v":""},{"$f":"IF('4 - Species Breakdown'!L521=0,\"\",'4 - Species Breakdown'!L521)","v":""},{"$f":"IF('4 - Species Breakdown'!M521=0,\"\",'4 - Species Breakdown'!M521)","v":""},{"$f":"IF('4 - Species Breakdown'!N521=0,\"\",'4 - Species Breakdown'!N521)","v":""},{"$f":"IFERROR(('4 - Species Breakdown'!J521/'WCC Summary'!$D$14)*100,\"\")","v":""},{"$f":"IF('4 - Species Breakdown'!J521=0,\"\",'4 - Species Breakdown'!J521)","v":""}]
[null,{"$f":"IF('4 - Species Breakdown'!B522=0,\"\",'4 - Species Breakdown'!B522)","v":""},{"$f":"IF('4 - Species Breakdown'!D522=0,\"\",'4 - Species Breakdown'!D522)","v":""},{"$f":"IF('4 - Species Breakdown'!L522=0,\"\",'4 - Species Breakdown'!L522)","v":""},{"$f":"IF('4 - Species Breakdown'!M522=0,\"\",'4 - Species Breakdown'!M522)","v":""},{"$f":"IF('4 - Species Breakdown'!N522=0,\"\",'4 - Species Breakdown'!N522)","v":""},{"$f":"IFERROR(('4 - Species Breakdown'!J522/'WCC Summary'!$D$14)*100,\"\")","v":""},{"$f":"IF('4 - Species Breakdown'!J522=0,\"\",'4 - Species Breakdown'!J522)","v":""}]
[null,{"$f":"IF('4 - Species Breakdown'!B523=0,\"\",'4 - Species Breakdown'!B523)","v":""},{"$f":"IF('4 - Species Breakdown'!D523=0,\"\",'4 - Species Breakdown'!D523)","v":""},{"$f":"IF('4 - Species Breakdown'!L523=0,\"\",'4 - Species Breakdown'!L523)","v":""},{"$f":"IF('4 - Species Breakdown'!M523=0,\"\",'4 - Species Breakdown'!M523)","v":""},{"$f":"IF('4 - Species Breakdown'!N523=0,\"\",'4 - Species Breakdown'!N523)","v":""},{"$f":"IFERROR(('4 - Species Breakdown'!J523/'WCC Summary'!$D$14)*100,\"\")","v":""},{"$f":"IF('4 - Species Breakdown'!J523=0,\"\",'4 - Species Breakdown'!J523)","v":""}]
[null,{"$f":"IF('4 - Species Breakdown'!B524=0,\"\",'4 - Species Breakdown'!B524)","v":""},{"$f":"IF('4 - Species Breakdown'!D524=0,\"\",'4 - Species Breakdown'!D524)","v":""},{"$f":"IF('4 - Species Breakdown'!L524=0,\"\",'4 - Species Breakdown'!L524)","v":""},{"$f":"IF('4 - Species Breakdown'!M524=0,\"\",'4 - Species Breakdown'!M524)","v":""},{"$f":"IF('4 - Species Breakdown'!N524=0,\"\",'4 - Species Breakdown'!N524)","v":""},{"$f":"IFERROR(('4 - Species Breakdown'!J524/'WCC Summary'!$D$14)*100,\"\")","v":""},{"$f":"IF('4 - Species Breakdown'!J524=0,\"\",'4 - Species Breakdown'!J524)","v":""}]
[null,{"$f":"IF('4 - Species Breakdown'!B525=0,\"\",'4 - Species Breakdown'!B525)","v":""},{"$f":"IF('4 - Species Breakdown'!D525=0,\"\",'4 - Species Breakdown'!D525)","v":""},{"$f":"IF('4 - Species Breakdown'!L525=0,\"\",'4 - Species Breakdown'!L525)","v":""},{"$f":"IF('4 - Species Breakdown'!M525=0,\"\",'4 - Species Breakdown'!M525)","v":""},{"$f":"IF('4 - Species Breakdown'!N525=0,\"\",'4 - Species Breakdown'!N525)","v":""},{"$f":"IFERROR(('4 - Species Breakdown'!J525/'WCC Summary'!$D$14)*100,\"\")","v":""},{"$f":"IF('4 - Species Breakdown'!J525=0,\"\",'4 - Species Breakdown'!J525)","v":""}]
[null,{"$f":"IF('4 - Species Breakdown'!B526=0,\"\",'4 - Species Breakdown'!B526)","v":""},{"$f":"IF('4 - Species Breakdown'!D526=0,\"\",'4 - Species Breakdown'!D526)","v":""},{"$f":"IF('4 - Species Breakdown'!L526=0,\"\",'4 - Species Breakdown'!L526)","v":""},{"$f":"IF('4 - Species Breakdown'!M526=0,\"\",'4 - Species Breakdown'!M526)","v":""},{"$f":"IF('4 - Species Breakdown'!N526=0,\"\",'4 - Species Breakdown'!N526)","v":""},{"$f":"IFERROR(('4 - Species Breakdown'!J526/'WCC Summary'!$D$14)*100,\"\")","v":""},{"$f":"IF('4 - Species Breakdown'!J526=0,\"\",'4 - Species Breakdown'!J526)","v":""}]
[null,{"$f":"IF('4 - Species Breakdown'!B527=0,\"\",'4 - Species Breakdown'!B527)","v":""},{"$f":"IF('4 - Species Breakdown'!D527=0,\"\",'4 - Species Breakdown'!D527)","v":""},{"$f":"IF('4 - Species Breakdown'!L527=0,\"\",'4 - Species Breakdown'!L527)","v":""},{"$f":"IF('4 - Species Breakdown'!M527=0,\"\",'4 - Species Breakdown'!M527)","v":""},{"$f":"IF('4 - Species Breakdown'!N527=0,\"\",'4 - Species Breakdown'!N527)","v":""},{"$f":"IFERROR(('4 - Species Breakdown'!J527/'WCC Summary'!$D$14)*100,\"\")","v":""},{"$f":"IF('4 - Species Breakdown'!J527=0,\"\",'4 - Species Breakdown'!J527)","v":""}]
[null,{"$f":"IF('4 - Species Breakdown'!B528=0,\"\",'4 - Species Breakdown'!B528)","v":""},{"$f":"IF('4 - Species Breakdown'!D528=0,\"\",'4 - Species Breakdown'!D528)","v":""},{"$f":"IF('4 - Species Breakdown'!L528=0,\"\",'4 - Species Breakdown'!L528)","v":""},{"$f":"IF('4 - Species Breakdown'!M528=0,\"\",'4 - Species Breakdown'!M528)","v":""},{"$f":"IF('4 - Species Breakdown'!N528=0,\"\",'4 - Species Breakdown'!N528)","v":""},{"$f":"IFERROR(('4 - Species Breakdown'!J528/'WCC Summary'!$D$14)*100,\"\")","v":""},{"$f":"IF('4 - Species Breakdown'!J528=0,\"\",'4 - Species Breakdown'!J528)","v":""}]
[null,{"$f":"IF('4 - Species Breakdown'!B529=0,\"\",'4 - Species Breakdown'!B529)","v":""},{"$f":"IF('4 - Species Breakdown'!D529=0,\"\",'4 - Species Breakdown'!D529)","v":""},{"$f":"IF('4 - Species Breakdown'!L529=0,\"\",'4 - Species Breakdown'!L529)","v":""},{"$f":"IF('4 - Species Breakdown'!M529=0,\"\",'4 - Species Breakdown'!M529)","v":""},{"$f":"IF('4 - Species Breakdown'!N529=0,\"\",'4 - Species Breakdown'!N529)","v":""},{"$f":"IFERROR(('4 - Species Breakdown'!J529/'WCC Summary'!$D$14)*100,\"\")","v":""},{"$f":"IF('4 - Species Breakdown'!J529=0,\"\",'4 - Species Breakdown'!J529)","v":""}]
[null,{"$f":"IF('4 - Species Breakdown'!B530=0,\"\",'4 - Species Breakdown'!B530)","v":""},{"$f":"IF('4 - Species Breakdown'!D530=0,\"\",'4 - Species Breakdown'!D530)","v":""},{"$f":"IF('4 - Species Breakdown'!L530=0,\"\",'4 - Species Breakdown'!L530)","v":""},{"$f":"IF('4 - Species Breakdown'!M530=0,\"\",'4 - Species Breakdown'!M530)","v":""},{"$f":"IF('4 - Species Breakdown'!N530=0,\"\",'4 - Species Breakdown'!N530)","v":""},{"$f":"IFERROR(('4 - Species Breakdown'!J530/'WCC Summary'!$D$14)*100,\"\")","v":""},{"$f":"IF('4 - Species Breakdown'!J530=0,\"\",'4 - Species Breakdown'!J530)","v":""}]
[null,{"$f":"IF('4 - Species Breakdown'!B531=0,\"\",'4 - Species Breakdown'!B531)","v":""},{"$f":"IF('4 - Species Breakdown'!D531=0,\"\",'4 - Species Breakdown'!D531)","v":""},{"$f":"IF('4 - Species Breakdown'!L531=0,\"\",'4 - Species Breakdown'!L531)","v":""},{"$f":"IF('4 - Species Breakdown'!M531=0,\"\",'4 - Species Breakdown'!M531)","v":""},{"$f":"IF('4 - Species Breakdown'!N531=0,\"\",'4 - Species Breakdown'!N531)","v":""},{"$f":"IFERROR(('4 - Species Breakdown'!J531/'WCC Summary'!$D$14)*100,\"\")","v":""},{"$f":"IF('4 - Species Breakdown'!J531=0,\"\",'4 - Species Breakdown'!J531)","v":""}]
[null,{"$f":"IF('4 - Species Breakdown'!B532=0,\"\",'4 - Species Breakdown'!B532)","v":""},{"$f":"IF('4 - Species Breakdown'!D532=0,\"\",'4 - Species Breakdown'!D532)","v":""},{"$f":"IF('4 - Species Breakdown'!L532=0,\"\",'4 - Species Breakdown'!L532)","v":""},{"$f":"IF('4 - Species Breakdown'!M532=0,\"\",'4 - Species Breakdown'!M532)","v":""},{"$f":"IF('4 - Species Breakdown'!N532=0,\"\",'4 - Species Breakdown'!N532)","v":""},{"$f":"IFERROR(('4 - Species Breakdown'!J532/'WCC Summary'!$D$14)*100,\"\")","v":""},{"$f":"IF('4 - Species Breakdown'!J532=0,\"\",'4 - Species Breakdown'!J532)","v":""}]
[null,{"$f":"IF('4 - Species Breakdown'!B533=0,\"\",'4 - Species Breakdown'!B533)","v":""},{"$f":"IF('4 - Species Breakdown'!D533=0,\"\",'4 - Species Breakdown'!D533)","v":""},{"$f":"IF('4 - Species Breakdown'!L533=0,\"\",'4 - Species Breakdown'!L533)","v":""},{"$f":"IF('4 - Species Breakdown'!M533=0,\"\",'4 - Species Breakdown'!M533)","v":""},{"$f":"IF('4 - Species Breakdown'!N533=0,\"\",'4 - Species Breakdown'!N533)","v":""},{"$f":"IFERROR(('4 - Species Breakdown'!J533/'WCC Summary'!$D$14)*100,\"\")","v":""},{"$f":"IF('4 - Species Breakdown'!J533=0,\"\",'4 - Species Breakdown'!J533)","v":""}]
[null,{"$f":"IF('4 - Species Breakdown'!B534=0,\"\",'4 - Species Breakdown'!B534)","v":""},{"$f":"IF('4 - Species Breakdown'!D534=0,\"\",'4 - Species Breakdown'!D534)","v":""},{"$f":"IF('4 - Species Breakdown'!L534=0,\"\",'4 - Species Breakdown'!L534)","v":""},{"$f":"IF('4 - Species Breakdown'!M534=0,\"\",'4 - Species Breakdown'!M534)","v":""},{"$f":"IF('4 - Species Breakdown'!N534=0,\"\",'4 - Species Breakdown'!N534)","v":""},{"$f":"IFERROR(('4 - Species Breakdown'!J534/'WCC Summary'!$D$14)*100,\"\")","v":""},{"$f":"IF('4 - Species Breakdown'!J534=0,\"\",'4 - Species Breakdown'!J534)","v":""}]
[null,{"$f":"IF('4 - Species Breakdown'!B535=0,\"\",'4 - Species Breakdown'!B535)","v":""},{"$f":"IF('4 - Species Breakdown'!D535=0,\"\",'4 - Species Breakdown'!D535)","v":""},{"$f":"IF('4 - Species Breakdown'!L535=0,\"\",'4 - Species Breakdown'!L535)","v":""},{"$f":"IF('4 - Species Breakdown'!M535=0,\"\",'4 - Species Breakdown'!M535)","v":""},{"$f":"IF('4 - Species Breakdown'!N535=0,\"\",'4 - Species Breakdown'!N535)","v":""},{"$f":"IFERROR(('4 - Species Breakdown'!J535/'WCC Summary'!$D$14)*100,\"\")","v":""},{"$f":"IF('4 - Species Breakdown'!J535=0,\"\",'4 - Species Breakdown'!J535)","v":""}]
[null,{"$f":"IF('4 - Species Breakdown'!B536=0,\"\",'4 - Species Breakdown'!B536)","v":""},{"$f":"IF('4 - Species Breakdown'!D536=0,\"\",'4 - Species Breakdown'!D536)","v":""},{"$f":"IF('4 - Species Breakdown'!L536=0,\"\",'4 - Species Breakdown'!L536)","v":""},{"$f":"IF('4 - Species Breakdown'!M536=0,\"\",'4 - Species Breakdown'!M536)","v":""},{"$f":"IF('4 - Species Breakdown'!N536=0,\"\",'4 - Species Breakdown'!N536)","v":""},{"$f":"IFERROR(('4 - Species Breakdown'!J536/'WCC Summary'!$D$14)*100,\"\")","v":""},{"$f":"IF('4 - Species Breakdown'!J536=0,\"\",'4 - Species Breakdown'!J536)","v":""}]
[null,{"$f":"IF('4 - Species Breakdown'!B537=0,\"\",'4 - Species Breakdown'!B537)","v":""},{"$f":"IF('4 - Species Breakdown'!D537=0,\"\",'4 - Species Breakdown'!D537)","v":""},{"$f":"IF('4 - Species Breakdown'!L537=0,\"\",'4 - Species Breakdown'!L537)","v":""},{"$f":"IF('4 - Species Breakdown'!M537=0,\"\",'4 - Species Breakdown'!M537)","v":""},{"$f":"IF('4 - Species Breakdown'!N537=0,\"\",'4 - Species Breakdown'!N537)","v":""},{"$f":"IFERROR(('4 - Species Breakdown'!J537/'WCC Summary'!$D$14)*100,\"\")","v":""},{"$f":"IF('4 - Species Breakdown'!J537=0,\"\",'4 - Species Breakdown'!J537)","v":""}]
[null,{"$f":"IF('4 - Species Breakdown'!B538=0,\"\",'4 - Species Breakdown'!B538)","v":""},{"$f":"IF('4 - Species Breakdown'!D538=0,\"\",'4 - Species Breakdown'!D538)","v":""},{"$f":"IF('4 - Species Breakdown'!L538=0,\"\",'4 - Species Breakdown'!L538)","v":""},{"$f":"IF('4 - Species Breakdown'!M538=0,\"\",'4 - Species Breakdown'!M538)","v":""},{"$f":"IF('4 - Species Breakdown'!N538=0,\"\",'4 - Species Breakdown'!N538)","v":""},{"$f":"IFERROR(('4 - Species Breakdown'!J538/'WCC Summary'!$D$14)*100,\"\")","v":""},{"$f":"IF('4 - Species Breakdown'!J538=0,\"\",'4 - Species Breakdown'!J538)","v":""}]
[null,{"$f":"IF('4 - Species Breakdown'!B539=0,\"\",'4 - Species Breakdown'!B539)","v":""},{"$f":"IF('4 - Species Breakdown'!D539=0,\"\",'4 - Species Breakdown'!D539)","v":""},{"$f":"IF('4 - Species Breakdown'!L539=0,\"\",'4 - Species Breakdown'!L539)","v":""},{"$f":"IF('4 - Species Breakdown'!M539=0,\"\",'4 - Species Breakdown'!M539)","v":""},{"$f":"IF('4 - Species Breakdown'!N539=0,\"\",'4 - Species Breakdown'!N539)","v":""},{"$f":"IFERROR(('4 - Species Breakdown'!J539/'WCC Summary'!$D$14)*100,\"\")","v":""},{"$f":"IF('4 - Species Breakdown'!J539=0,\"\",'4 - Species Breakdown'!J539)","v":""}]
[null,{"$f":"IF('4 - Species Breakdown'!B540=0,\"\",'4 - Species Breakdown'!B540)","v":""},{"$f":"IF('4 - Species Breakdown'!D540=0,\"\",'4 - Species Breakdown'!D540)","v":""},{"$f":"IF('4 - Species Breakdown'!L540=0,\"\",'4 - Species Breakdown'!L540)","v":""},{"$f":"IF('4 - Species Breakdown'!M540=0,\"\",'4 - Species Breakdown'!M540)","v":""},{"$f":"IF('4 - Species Breakdown'!N540=0,\"\",'4 - Species Breakdown'!N540)","v":""},{"$f":"IFERROR(('4 - Species Breakdown'!J540/'WCC Summary'!$D$14)*100,\"\")","v":""},{"$f":"IF('4 - Species Breakdown'!J540=0,\"\",'4 - Species Breakdown'!J540)","v":""}]
[null,{"$f":"IF('4 - Species Breakdown'!B541=0,\"\",'4 - Species Breakdown'!B541)","v":""},{"$f":"IF('4 - Species Breakdown'!D541=0,\"\",'4 - Species Breakdown'!D541)","v":""},{"$f":"IF('4 - Species Breakdown'!L541=0,\"\",'4 - Species Breakdown'!L541)","v":""},{"$f":"IF('4 - Species Breakdown'!M541=0,\"\",'4 - Species Breakdown'!M541)","v":""},{"$f":"IF('4 - Species Breakdown'!N541=0,\"\",'4 - Species Breakdown'!N541)","v":""},{"$f":"IFERROR(('4 - Species Breakdown'!J541/'WCC Summary'!$D$14)*100,\"\")","v":""},{"$f":"IF('4 - Species Breakdown'!J541=0,\"\",'4 - Species Breakdown'!J541)","v":""}]
[null,{"$f":"IF('4 - Species Breakdown'!B542=0,\"\",'4 - Species Breakdown'!B542)","v":""},{"$f":"IF('4 - Species Breakdown'!D542=0,\"\",'4 - Species Breakdown'!D542)","v":""},{"$f":"IF('4 - Species Breakdown'!L542=0,\"\",'4 - Species Breakdown'!L542)","v":""},{"$f":"IF('4 - Species Breakdown'!M542=0,\"\",'4 - Species Breakdown'!M542)","v":""},{"$f":"IF('4 - Species Breakdown'!N542=0,\"\",'4 - Species Breakdown'!N542)","v":""},{"$f":"IFERROR(('4 - Species Breakdown'!J542/'WCC Summary'!$D$14)*100,\"\")","v":""},{"$f":"IF('4 - Species Breakdown'!J542=0,\"\",'4 - Species Breakdown'!J542)","v":""}]
[null,{"$f":"IF('4 - Species Breakdown'!B543=0,\"\",'4 - Species Breakdown'!B543)","v":""},{"$f":"IF('4 - Species Breakdown'!D543=0,\"\",'4 - Species Breakdown'!D543)","v":""},{"$f":"IF('4 - Species Breakdown'!L543=0,\"\",'4 - Species Breakdown'!L543)","v":""},{"$f":"IF('4 - Species Breakdown'!M543=0,\"\",'4 - Species Breakdown'!M543)","v":""},{"$f":"IF('4 - Species Breakdown'!N543=0,\"\",'4 - Species Breakdown'!N543)","v":""},{"$f":"IFERROR(('4 - Species Breakdown'!J543/'WCC Summary'!$D$14)*100,\"\")","v":""},{"$f":"IF('4 - Species Breakdown'!J543=0,\"\",'4 - Species Breakdown'!J543)","v":""}]
[null,{"$f":"IF('4 - Species Breakdown'!B544=0,\"\",'4 - Species Breakdown'!B544)","v":""},{"$f":"IF('4 - Species Breakdown'!D544=0,\"\",'4 - Species Breakdown'!D544)","v":""},{"$f":"IF('4 - Species Breakdown'!L544=0,\"\",'4 - Species Breakdown'!L544)","v":""},{"$f":"IF('4 - Species Breakdown'!M544=0,\"\",'4 - Species Breakdown'!M544)","v":""},{"$f":"IF('4 - Species Breakdown'!N544=0,\"\",'4 - Species Breakdown'!N544)","v":""},{"$f":"IFERROR(('4 - Species Breakdown'!J544/'WCC Summary'!$D$14)*100,\"\")","v":""},{"$f":"IF('4 - Species Breakdown'!J544=0,\"\",'4 - Species Breakdown'!J544)","v":""}]
[null,{"$f":"IF('4 - Species Breakdown'!B545=0,\"\",'4 - Species Breakdown'!B545)","v":""},{"$f":"IF('4 - Species Breakdown'!D545=0,\"\",'4 - Species Breakdown'!D545)","v":""},{"$f":"IF('4 - Species Breakdown'!L545=0,\"\",'4 - Species Breakdown'!L545)","v":""},{"$f":"IF('4 - Species Breakdown'!M545=0,\"\",'4 - Species Breakdown'!M545)","v":""},{"$f":"IF('4 - Species Breakdown'!N545=0,\"\",'4 - Species Breakdown'!N545)","v":""},{"$f":"IFERROR(('4 - Species Breakdown'!J545/'WCC Summary'!$D$14)*100,\"\")","v":""},{"$f":"IF('4 - Species Breakdown'!J545=0,\"\",'4 - Species Breakdown'!J545)","v":""}]
[null,{"$f":"IF('4 - Species Breakdown'!B546=0,\"\",'4 - Species Breakdown'!B546)","v":""},{"$f":"IF('4 - Species Breakdown'!D546=0,\"\",'4 - Species Breakdown'!D546)","v":""},{"$f":"IF('4 - Species Breakdown'!L546=0,\"\",'4 - Species Breakdown'!L546)","v":""},{"$f":"IF('4 - Species Breakdown'!M546=0,\"\",'4 - Species Breakdown'!M546)","v":""},{"$f":"IF('4 - Species Breakdown'!N546=0,\"\",'4 - Species Breakdown'!N546)","v":""},{"$f":"IFERROR(('4 - Species Breakdown'!J546/'WCC Summary'!$D$14)*100,\"\")","v":""},{"$f":"IF('4 - Species Breakdown'!J546=0,\"\",'4 - Species Breakdown'!J546)","v":""}]
[null,{"$f":"IF('4 - Species Breakdown'!B547=0,\"\",'4 - Species Breakdown'!B547)","v":""},{"$f":"IF('4 - Species Breakdown'!D547=0,\"\",'4 - Species Breakdown'!D547)","v":""},{"$f":"IF('4 - Species Breakdown'!L547=0,\"\",'4 - Species Breakdown'!L547)","v":""},{"$f":"IF('4 - Species Breakdown'!M547=0,\"\",'4 - Species Breakdown'!M547)","v":""},{"$f":"IF('4 - Species Breakdown'!N547=0,\"\",'4 - Species Breakdown'!N547)","v":""},{"$f":"IFERROR(('4 - Species Breakdown'!J547/'WCC Summary'!$D$14)*100,\"\")","v":""},{"$f":"IF('4 - Species Breakdown'!J547=0,\"\",'4 - Species Breakdown'!J547)","v":""}]
[null,{"$f":"IF('4 - Species Breakdown'!B548=0,\"\",'4 - Species Breakdown'!B548)","v":""},{"$f":"IF('4 - Species Breakdown'!D548=0,\"\",'4 - Species Breakdown'!D548)","v":""},{"$f":"IF('4 - Species Breakdown'!L548=0,\"\",'4 - Species Breakdown'!L548)","v":""},{"$f":"IF('4 - Species Breakdown'!M548=0,\"\",'4 - Species Breakdown'!M548)","v":""},{"$f":"IF('4 - Species Breakdown'!N548=0,\"\",'4 - Species Breakdown'!N548)","v":""},{"$f":"IFERROR(('4 - Species Breakdown'!J548/'WCC Summary'!$D$14)*100,\"\")","v":""},{"$f":"IF('4 - Species Breakdown'!J548=0,\"\",'4 - Species Breakdown'!J548)","v":""}]
[null,{"$f":"IF('4 - Species Breakdown'!B549=0,\"\",'4 - Species Breakdown'!B549)","v":""},{"$f":"IF('4 - Species Breakdown'!D549=0,\"\",'4 - Species Breakdown'!D549)","v":""},{"$f":"IF('4 - Species Breakdown'!L549=0,\"\",'4 - Species Breakdown'!L549)","v":""},{"$f":"IF('4 - Species Breakdown'!M549=0,\"\",'4 - Species Breakdown'!M549)","v":""},{"$f":"IF('4 - Species Breakdown'!N549=0,\"\",'4 - Species Breakdown'!N549)","v":""},{"$f":"IFERROR(('4 - Species Breakdown'!J549/'WCC Summary'!$D$14)*100,\"\")","v":""},{"$f":"IF('4 - Species Breakdown'!J549=0,\"\",'4 - Species Breakdown'!J549)","v":""}]
[null,{"$f":"IF('4 - Species Breakdown'!B550=0,\"\",'4 - Species Breakdown'!B550)","v":""},{"$f":"IF('4 - Species Breakdown'!D550=0,\"\",'4 - Species Breakdown'!D550)","v":""},{"$f":"IF('4 - Species Breakdown'!L550=0,\"\",'4 - Species Breakdown'!L550)","v":""},{"$f":"IF('4 - Species Breakdown'!M550=0,\"\",'4 - Species Breakdown'!M550)","v":""},{"$f":"IF('4 - Species Breakdown'!N550=0,\"\",'4 - Species Breakdown'!N550)","v":""},{"$f":"IFERROR(('4 - Species Breakdown'!J550/'WCC Summary'!$D$14)*100,\"\")","v":""},{"$f":"IF('4 - Species Breakdown'!J550=0,\"\",'4 - Species Breakdown'!J550)","v":""}]
[null,{"$f":"IF('4 - Species Breakdown'!B551=0,\"\",'4 - Species Breakdown'!B551)","v":""},{"$f":"IF('4 - Species Breakdown'!D551=0,\"\",'4 - Species Breakdown'!D551)","v":""},{"$f":"IF('4 - Species Breakdown'!L551=0,\"\",'4 - Species Breakdown'!L551)","v":""},{"$f":"IF('4 - Species Breakdown'!M551=0,\"\",'4 - Species Breakdown'!M551)","v":""},{"$f":"IF('4 - Species Breakdown'!N551=0,\"\",'4 - Species Breakdown'!N551)","v":""},{"$f":"IFERROR(('4 - Species Breakdown'!J551/'WCC Summary'!$D$14)*100,\"\")","v":""},{"$f":"IF('4 - Species Breakdown'!J551=0,\"\",'4 - Species Breakdown'!J551)","v":""}]
[null,{"$f":"IF('4 - Species Breakdown'!B552=0,\"\",'4 - Species Breakdown'!B552)","v":""},{"$f":"IF('4 - Species Breakdown'!D552=0,\"\",'4 - Species Breakdown'!D552)","v":""},{"$f":"IF('4 - Species Breakdown'!L552=0,\"\",'4 - Species Breakdown'!L552)","v":""},{"$f":"IF('4 - Species Breakdown'!M552=0,\"\",'4 - Species Breakdown'!M552)","v":""},{"$f":"IF('4 - Species Breakdown'!N552=0,\"\",'4 - Species Breakdown'!N552)","v":""},{"$f":"IFERROR(('4 - Species Breakdown'!J552/'WCC Summary'!$D$14)*100,\"\")","v":""},{"$f":"IF('4 - Species Breakdown'!J552=0,\"\",'4 - Species Breakdown'!J552)","v":""}]
[null,{"$f":"IF('4 - Species Breakdown'!B553=0,\"\",'4 - Species Breakdown'!B553)","v":""},{"$f":"IF('4 - Species Breakdown'!D553=0,\"\",'4 - Species Breakdown'!D553)","v":""},{"$f":"IF('4 - Species Breakdown'!L553=0,\"\",'4 - Species Breakdown'!L553)","v":""},{"$f":"IF('4 - Species Breakdown'!M553=0,\"\",'4 - Species Breakdown'!M553)","v":""},{"$f":"IF('4 - Species Breakdown'!N553=0,\"\",'4 - Species Breakdown'!N553)","v":""},{"$f":"IFERROR(('4 - Species Breakdown'!J553/'WCC Summary'!$D$14)*100,\"\")","v":""},{"$f":"IF('4 - Species Breakdown'!J553=0,\"\",'4 - Species Breakdown'!J553)","v":""}]
[null,{"$f":"IF('4 - Species Breakdown'!B554=0,\"\",'4 - Species Breakdown'!B554)","v":""},{"$f":"IF('4 - Species Breakdown'!D554=0,\"\",'4 - Species Breakdown'!D554)","v":""},{"$f":"IF('4 - Species Breakdown'!L554=0,\"\",'4 - Species Breakdown'!L554)","v":""},{"$f":"IF('4 - Species Breakdown'!M554=0,\"\",'4 - Species Breakdown'!M554)","v":""},{"$f":"IF('4 - Species Breakdown'!N554=0,\"\",'4 - Species Breakdown'!N554)","v":""},{"$f":"IFERROR(('4 - Species Breakdown'!J554/'WCC Summary'!$D$14)*100,\"\")","v":""},{"$f":"IF('4 - Species Breakdown'!J554=0,\"\",'4 - Species Breakdown'!J554)","v":""}]
[null,{"$f":"IF('4 - Species Breakdown'!B555=0,\"\",'4 - Species Breakdown'!B555)","v":""},{"$f":"IF('4 - Species Breakdown'!D555=0,\"\",'4 - Species Breakdown'!D555)","v":""},{"$f":"IF('4 - Species Breakdown'!L555=0,\"\",'4 - Species Breakdown'!L555)","v":""},{"$f":"IF('4 - Species Breakdown'!M555=0,\"\",'4 - Species Breakdown'!M555)","v":""},{"$f":"IF('4 - Species Breakdown'!N555=0,\"\",'4 - Species Breakdown'!N555)","v":""},{"$f":"IFERROR(('4 - Species Breakdown'!J555/'WCC Summary'!$D$14)*100,\"\")","v":""},{"$f":"IF('4 - Species Breakdown'!J555=0,\"\",'4 - Species Breakdown'!J555)","v":""}]
[null,{"$f":"IF('4 - Species Breakdown'!B556=0,\"\",'4 - Species Breakdown'!B556)","v":""},{"$f":"IF('4 - Species Breakdown'!D556=0,\"\",'4 - Species Breakdown'!D556)","v":""},{"$f":"IF('4 - Species Breakdown'!L556=0,\"\",'4 - Species Breakdown'!L556)","v":""},{"$f":"IF('4 - Species Breakdown'!M556=0,\"\",'4 - Species Breakdown'!M556)","v":""},{"$f":"IF('4 - Species Breakdown'!N556=0,\"\",'4 - Species Breakdown'!N556)","v":""},{"$f":"IFERROR(('4 - Species Breakdown'!J556/'WCC Summary'!$D$14)*100,\"\")","v":""},{"$f":"IF('4 - Species Breakdown'!J556=0,\"\",'4 - Species Breakdown'!J556)","v":""}]
[null,{"$f":"IF('4 - Species Breakdown'!B557=0,\"\",'4 - Species Breakdown'!B557)","v":""},{"$f":"IF('4 - Species Breakdown'!D557=0,\"\",'4 - Species Breakdown'!D557)","v":""},{"$f":"IF('4 - Species Breakdown'!L557=0,\"\",'4 - Species Breakdown'!L557)","v":""},{"$f":"IF('4 - Species Breakdown'!M557=0,\"\",'4 - Species Breakdown'!M557)","v":""},{"$f":"IF('4 - Species Breakdown'!N557=0,\"\",'4 - Species Breakdown'!N557)","v":""},{"$f":"IFERROR(('4 - Species Breakdown'!J557/'WCC Summary'!$D$14)*100,\"\")","v":""},{"$f":"IF('4 - Species Breakdown'!J557=0,\"\",'4 - Species Breakdown'!J557)","v":""}]
[null,{"$f":"IF('4 - Species Breakdown'!B558=0,\"\",'4 - Species Breakdown'!B558)","v":""},{"$f":"IF('4 - Species Breakdown'!D558=0,\"\",'4 - Species Breakdown'!D558)","v":""},{"$f":"IF('4 - Species Breakdown'!L558=0,\"\",'4 - Species Breakdown'!L558)","v":""},{"$f":"IF('4 - Species Breakdown'!M558=0,\"\",'4 - Species Breakdown'!M558)","v":""},{"$f":"IF('4 - Species Breakdown'!N558=0,\"\",'4 - Species Breakdown'!N558)","v":""},{"$f":"IFERROR(('4 - Species Breakdown'!J558/'WCC Summary'!$D$14)*100,\"\")","v":""},{"$f":"IF('4 - Species Breakdown'!J558=0,\"\",'4 - Species Breakdown'!J558)","v":""}]
[null,{"$f":"IF('4 - Species Breakdown'!B559=0,\"\",'4 - Species Breakdown'!B559)","v":""},{"$f":"IF('4 - Species Breakdown'!D559=0,\"\",'4 - Species Breakdown'!D559)","v":""},{"$f":"IF('4 - Species Breakdown'!L559=0,\"\",'4 - Species Breakdown'!L559)","v":""},{"$f":"IF('4 - Species Breakdown'!M559=0,\"\",'4 - Species Breakdown'!M559)","v":""},{"$f":"IF('4 - Species Breakdown'!N559=0,\"\",'4 - Species Breakdown'!N559)","v":""},{"$f":"IFERROR(('4 - Species Breakdown'!J559/'WCC Summary'!$D$14)*100,\"\")","v":""},{"$f":"IF('4 - Species Breakdown'!J559=0,\"\",'4 - Species Breakdown'!J559)","v":""}]
[null,{"$f":"IF('4 - Species Breakdown'!B560=0,\"\",'4 - Species Breakdown'!B560)","v":""},{"$f":"IF('4 - Species Breakdown'!D560=0,\"\",'4 - Species Breakdown'!D560)","v":""},{"$f":"IF('4 - Species Breakdown'!L560=0,\"\",'4 - Species Breakdown'!L560)","v":""},{"$f":"IF('4 - Species Breakdown'!M560=0,\"\",'4 - Species Breakdown'!M560)","v":""},{"$f":"IF('4 - Species Breakdown'!N560=0,\"\",'4 - Species Breakdown'!N560)","v":""},{"$f":"IFERROR(('4 - Species Breakdown'!J560/'WCC Summary'!$D$14)*100,\"\")","v":""},{"$f":"IF('4 - Species Breakdown'!J560=0,\"\",'4 - Species Breakdown'!J560)","v":""}]
[null,{"$f":"IF('4 - Species Breakdown'!B561=0,\"\",'4 - Species Breakdown'!B561)","v":""},{"$f":"IF('4 - Species Breakdown'!D561=0,\"\",'4 - Species Breakdown'!D561)","v":""},{"$f":"IF('4 - Species Breakdown'!L561=0,\"\",'4 - Species Breakdown'!L561)","v":""},{"$f":"IF('4 - Species Breakdown'!M561=0,\"\",'4 - Species Breakdown'!M561)","v":""},{"$f":"IF('4 - Species Breakdown'!N561=0,\"\",'4 - Species Breakdown'!N561)","v":""},{"$f":"IFERROR(('4 - Species Breakdown'!J561/'WCC Summary'!$D$14)*100,\"\")","v":""},{"$f":"IF('4 - Species Breakdown'!J561=0,\"\",'4 - Species Breakdown'!J561)","v":""}]
[null,{"$f":"IF('4 - Species Breakdown'!B562=0,\"\",'4 - Species Breakdown'!B562)","v":""},{"$f":"IF('4 - Species Breakdown'!D562=0,\"\",'4 - Species Breakdown'!D562)","v":""},{"$f":"IF('4 - Species Breakdown'!L562=0,\"\",'4 - Species Breakdown'!L562)","v":""},{"$f":"IF('4 - Species Breakdown'!M562=0,\"\",'4 - Species Breakdown'!M562)","v":""},{"$f":"IF('4 - Species Breakdown'!N562=0,\"\",'4 - Species Breakdown'!N562)","v":""},{"$f":"IFERROR(('4 - Species Breakdown'!J562/'WCC Summary'!$D$14)*100,\"\")","v":""},{"$f":"IF('4 - Species Breakdown'!J562=0,\"\",'4 - Species Breakdown'!J562)","v":""}]
[null,{"$f":"IF('4 - Species Breakdown'!B563=0,\"\",'4 - Species Breakdown'!B563)","v":""},{"$f":"IF('4 - Species Breakdown'!D563=0,\"\",'4 - Species Breakdown'!D563)","v":""},{"$f":"IF('4 - Species Breakdown'!L563=0,\"\",'4 - Species Breakdown'!L563)","v":""},{"$f":"IF('4 - Species Breakdown'!M563=0,\"\",'4 - Species Breakdown'!M563)","v":""},{"$f":"IF('4 - Species Breakdown'!N563=0,\"\",'4 - Species Breakdown'!N563)","v":""},{"$f":"IFERROR(('4 - Species Breakdown'!J563/'WCC Summary'!$D$14)*100,\"\")","v":""},{"$f":"IF('4 - Species Breakdown'!J563=0,\"\",'4 - Species Breakdown'!J563)","v":""}]
[null,{"$f":"IF('4 - Species Breakdown'!B564=0,\"\",'4 - Species Breakdown'!B564)","v":""},{"$f":"IF('4 - Species Breakdown'!D564=0,\"\",'4 - Species Breakdown'!D564)","v":""},{"$f":"IF('4 - Species Breakdown'!L564=0,\"\",'4 - Species Breakdown'!L564)","v":""},{"$f":"IF('4 - Species Breakdown'!M564=0,\"\",'4 - Species Breakdown'!M564)","v":""},{"$f":"IF('4 - Species Breakdown'!N564=0,\"\",'4 - Species Breakdown'!N564)","v":""},{"$f":"IFERROR(('4 - Species Breakdown'!J564/'WCC Summary'!$D$14)*100,\"\")","v":""},{"$f":"IF('4 - Species Breakdown'!J564=0,\"\",'4 - Species Breakdown'!J564)","v":""}]
[null,{"$f":"IF('4 - Species Breakdown'!B565=0,\"\",'4 - Species Breakdown'!B565)","v":""},{"$f":"IF('4 - Species Breakdown'!D565=0,\"\",'4 - Species Breakdown'!D565)","v":""},{"$f":"IF('4 - Species Breakdown'!L565=0,\"\",'4 - Species Breakdown'!L565)","v":""},{"$f":"IF('4 - Species Breakdown'!M565=0,\"\",'4 - Species Breakdown'!M565)","v":""},{"$f":"IF('4 - Species Breakdown'!N565=0,\"\",'4 - Species Breakdown'!N565)","v":""},{"$f":"IFERROR(('4 - Species Breakdown'!J565/'WCC Summary'!$D$14)*100,\"\")","v":""},{"$f":"IF('4 - Species Breakdown'!J565=0,\"\",'4 - Species Breakdown'!J565)","v":""}]
[null,{"$f":"IF('4 - Species Breakdown'!B566=0,\"\",'4 - Species Breakdown'!B566)","v":""},{"$f":"IF('4 - Species Breakdown'!D566=0,\"\",'4 - Species Breakdown'!D566)","v":""},{"$f":"IF('4 - Species Breakdown'!L566=0,\"\",'4 - Species Breakdown'!L566)","v":""},{"$f":"IF('4 - Species Breakdown'!M566=0,\"\",'4 - Species Breakdown'!M566)","v":""},{"$f":"IF('4 - Species Breakdown'!N566=0,\"\",'4 - Species Breakdown'!N566)","v":""},{"$f":"IFERROR(('4 - Species Breakdown'!J566/'WCC Summary'!$D$14)*100,\"\")","v":""},{"$f":"IF('4 - Species Breakdown'!J566=0,\"\",'4 - Species Breakdown'!J566)","v":""}]
[null,{"$f":"IF('4 - Species Breakdown'!B567=0,\"\",'4 - Species Breakdown'!B567)","v":""},{"$f":"IF('4 - Species Breakdown'!D567=0,\"\",'4 - Species Breakdown'!D567)","v":""},{"$f":"IF('4 - Species Breakdown'!L567=0,\"\",'4 - Species Breakdown'!L567)","v":""},{"$f":"IF('4 - Species Breakdown'!M567=0,\"\",'4 - Species Breakdown'!M567)","v":""},{"$f":"IF('4 - Species Breakdown'!N567=0,\"\",'4 - Species Breakdown'!N567)","v":""},{"$f":"IFERROR(('4 - Species Breakdown'!J567/'WCC Summary'!$D$14)*100,\"\")","v":""},{"$f":"IF('4 - Species Breakdown'!J567=0,\"\",'4 - Species Breakdown'!J567)","v":""}]
[null,{"$f":"IF('4 - Species Breakdown'!B568=0,\"\",'4 - Species Breakdown'!B568)","v":""},{"$f":"IF('4 - Species Breakdown'!D568=0,\"\",'4 - Species Breakdown'!D568)","v":""},{"$f":"IF('4 - Species Breakdown'!L568=0,\"\",'4 - Species Breakdown'!L568)","v":""},{"$f":"IF('4 - Species Breakdown'!M568=0,\"\",'4 - Species Breakdown'!M568)","v":""},{"$f":"IF('4 - Species Breakdown'!N568=0,\"\",'4 - Species Breakdown'!N568)","v":""},{"$f":"IFERROR(('4 - Species Breakdown'!J568/'WCC Summary'!$D$14)*100,\"\")","v":""},{"$f":"IF('4 - Species Breakdown'!J568=0,\"\",'4 - Species Breakdown'!J568)","v":""}]
[null,{"$f":"IF('4 - Species Breakdown'!B569=0,\"\",'4 - Species Breakdown'!B569)","v":""},{"$f":"IF('4 - Species Breakdown'!D569=0,\"\",'4 - Species Breakdown'!D569)","v":""},{"$f":"IF('4 - Species Breakdown'!L569=0,\"\",'4 - Species Breakdown'!L569)","v":""},{"$f":"IF('4 - Species Breakdown'!M569=0,\"\",'4 - Species Breakdown'!M569)","v":""},{"$f":"IF('4 - Species Breakdown'!N569=0,\"\",'4 - Species Breakdown'!N569)","v":""},{"$f":"IFERROR(('4 - Species Breakdown'!J569/'WCC Summary'!$D$14)*100,\"\")","v":""},{"$f":"IF('4 - Species Breakdown'!J569=0,\"\",'4 - Species Breakdown'!J569)","v":""}]
[null,{"$f":"IF('4 - Species Breakdown'!B570=0,\"\",'4 - Species Breakdown'!B570)","v":""},{"$f":"IF('4 - Species Breakdown'!D570=0,\"\",'4 - Species Breakdown'!D570)","v":""},{"$f":"IF('4 - Species Breakdown'!L570=0,\"\",'4 - Species Breakdown'!L570)","v":""},{"$f":"IF('4 - Species Breakdown'!M570=0,\"\",'4 - Species Breakdown'!M570)","v":""},{"$f":"IF('4 - Species Breakdown'!N570=0,\"\",'4 - Species Breakdown'!N570)","v":""},{"$f":"IFERROR(('4 - Species Breakdown'!J570/'WCC Summary'!$D$14)*100,\"\")","v":""},{"$f":"IF('4 - Species Breakdown'!J570=0,\"\",'4 - Species Breakdown'!J570)","v":""}]
[null,{"$f":"IF('4 - Species Breakdown'!B571=0,\"\",'4 - Species Breakdown'!B571)","v":""},{"$f":"IF('4 - Species Breakdown'!D571=0,\"\",'4 - Species Breakdown'!D571)","v":""},{"$f":"IF('4 - Species Breakdown'!L571=0,\"\",'4 - Species Breakdown'!L571)","v":""},{"$f":"IF('4 - Species Breakdown'!M571=0,\"\",'4 - Species Breakdown'!M571)","v":""},{"$f":"IF('4 - Species Breakdown'!N571=0,\"\",'4 - Species Breakdown'!N571)","v":""},{"$f":"IFERROR(('4 - Species Breakdown'!J571/'WCC Summary'!$D$14)*100,\"\")","v":""},{"$f":"IF('4 - Species Breakdown'!J571=0,\"\",'4 - Species Breakdown'!J571)","v":""}]
[null,{"$f":"IF('4 - Species Breakdown'!B572=0,\"\",'4 - Species Breakdown'!B572)","v":""},{"$f":"IF('4 - Species Breakdown'!D572=0,\"\",'4 - Species Breakdown'!D572)","v":""},{"$f":"IF('4 - Species Breakdown'!L572=0,\"\",'4 - Species Breakdown'!L572)","v":""},{"$f":"IF('4 - Species Breakdown'!M572=0,\"\",'4 - Species Breakdown'!M572)","v":""},{"$f":"IF('4 - Species Breakdown'!N572=0,\"\",'4 - Species Breakdown'!N572)","v":""},{"$f":"IFERROR(('4 - Species Breakdown'!J572/'WCC Summary'!$D$14)*100,\"\")","v":""},{"$f":"IF('4 - Species Breakdown'!J572=0,\"\",'4 - Species Breakdown'!J572)","v":""}]
[null,{"$f":"IF('4 - Species Breakdown'!B573=0,\"\",'4 - Species Breakdown'!B573)","v":""},{"$f":"IF('4 - Species Breakdown'!D573=0,\"\",'4 - Species Breakdown'!D573)","v":""},{"$f":"IF('4 - Species Breakdown'!L573=0,\"\",'4 - Species Breakdown'!L573)","v":""},{"$f":"IF('4 - Species Breakdown'!M573=0,\"\",'4 - Species Breakdown'!M573)","v":""},{"$f":"IF('4 - Species Breakdown'!N573=0,\"\",'4 - Species Breakdown'!N573)","v":""},{"$f":"IFERROR(('4 - Species Breakdown'!J573/'WCC Summary'!$D$14)*100,\"\")","v":""},{"$f":"IF('4 - Species Breakdown'!J573=0,\"\",'4 - Species Breakdown'!J573)","v":""}]
[null,{"$f":"IF('4 - Species Breakdown'!B574=0,\"\",'4 - Species Breakdown'!B574)","v":""},{"$f":"IF('4 - Species Breakdown'!D574=0,\"\",'4 - Species Breakdown'!D574)","v":""},{"$f":"IF('4 - Species Breakdown'!L574=0,\"\",'4 - Species Breakdown'!L574)","v":""},{"$f":"IF('4 - Species Breakdown'!M574=0,\"\",'4 - Species Breakdown'!M574)","v":""},{"$f":"IF('4 - Species Breakdown'!N574=0,\"\",'4 - Species Breakdown'!N574)","v":""},{"$f":"IFERROR(('4 - Species Breakdown'!J574/'WCC Summary'!$D$14)*100,\"\")","v":""},{"$f":"IF('4 - Species Breakdown'!J574=0,\"\",'4 - Species Breakdown'!J574)","v":""}]
[null,{"$f":"IF('4 - Species Breakdown'!B575=0,\"\",'4 - Species Breakdown'!B575)","v":""},{"$f":"IF('4 - Species Breakdown'!D575=0,\"\",'4 - Species Breakdown'!D575)","v":""},{"$f":"IF('4 - Species Breakdown'!L575=0,\"\",'4 - Species Breakdown'!L575)","v":""},{"$f":"IF('4 - Species Breakdown'!M575=0,\"\",'4 - Species Breakdown'!M575)","v":""},{"$f":"IF('4 - Species Breakdown'!N575=0,\"\",'4 - Species Breakdown'!N575)","v":""},{"$f":"IFERROR(('4 - Species Breakdown'!J575/'WCC Summary'!$D$14)*100,\"\")","v":""},{"$f":"IF('4 - Species Breakdown'!J575=0,\"\",'4 - Species Breakdown'!J575)","v":""}]
[null,{"$f":"IF('4 - Species Breakdown'!B576=0,\"\",'4 - Species Breakdown'!B576)","v":""},{"$f":"IF('4 - Species Breakdown'!D576=0,\"\",'4 - Species Breakdown'!D576)","v":""},{"$f":"IF('4 - Species Breakdown'!L576=0,\"\",'4 - Species Breakdown'!L576)","v":""},{"$f":"IF('4 - Species Breakdown'!M576=0,\"\",'4 - Species Breakdown'!M576)","v":""},{"$f":"IF('4 - Species Breakdown'!N576=0,\"\",'4 - Species Breakdown'!N576)","v":""},{"$f":"IFERROR(('4 - Species Breakdown'!J576/'WCC Summary'!$D$14)*100,\"\")","v":""},{"$f":"IF('4 - Species Breakdown'!J576=0,\"\",'4 - Species Breakdown'!J576)","v":""}]
[null,{"$f":"IF('4 - Species Breakdown'!B577=0,\"\",'4 - Species Breakdown'!B577)","v":""},{"$f":"IF('4 - Species Breakdown'!D577=0,\"\",'4 - Species Breakdown'!D577)","v":""},{"$f":"IF('4 - Species Breakdown'!L577=0,\"\",'4 - Species Breakdown'!L577)","v":""},{"$f":"IF('4 - Species Breakdown'!M577=0,\"\",'4 - Species Breakdown'!M577)","v":""},{"$f":"IF('4 - Species Breakdown'!N577=0,\"\",'4 - Species Breakdown'!N577)","v":""},{"$f":"IFERROR(('4 - Species Breakdown'!J577/'WCC Summary'!$D$14)*100,\"\")","v":""},{"$f":"IF('4 - Species Breakdown'!J577=0,\"\",'4 - Species Breakdown'!J577)","v":""}]
[null,{"$f":"IF('4 - Species Breakdown'!B578=0,\"\",'4 - Species Breakdown'!B578)","v":""},{"$f":"IF('4 - Species Breakdown'!D578=0,\"\",'4 - Species Breakdown'!D578)","v":""},{"$f":"IF('4 - Species Breakdown'!L578=0,\"\",'4 - Species Breakdown'!L578)","v":""},{"$f":"IF('4 - Species Breakdown'!M578=0,\"\",'4 - Species Breakdown'!M578)","v":""},{"$f":"IF('4 - Species Breakdown'!N578=0,\"\",'4 - Species Breakdown'!N578)","v":""},{"$f":"IFERROR(('4 - Species Breakdown'!J578/'WCC Summary'!$D$14)*100,\"\")","v":""},{"$f":"IF('4 - Species Breakdown'!J578=0,\"\",'4 - Species Breakdown'!J578)","v":""}]
[null,{"$f":"IF('4 - Species Breakdown'!B579=0,\"\",'4 - Species Breakdown'!B579)","v":""},{"$f":"IF('4 - Species Breakdown'!D579=0,\"\",'4 - Species Breakdown'!D579)","v":""},{"$f":"IF('4 - Species Breakdown'!L579=0,\"\",'4 - Species Breakdown'!L579)","v":""},{"$f":"IF('4 - Species Breakdown'!M579=0,\"\",'4 - Species Breakdown'!M579)","v":""},{"$f":"IF('4 - Species Breakdown'!N579=0,\"\",'4 - Species Breakdown'!N579)","v":""},{"$f":"IFERROR(('4 - Species Breakdown'!J579/'WCC Summary'!$D$14)*100,\"\")","v":""},{"$f":"IF('4 - Species Breakdown'!J579=0,\"\",'4 - Species Breakdown'!J579)","v":""}]
[null,{"$f":"IF('4 - Species Breakdown'!B580=0,\"\",'4 - Species Breakdown'!B580)","v":""},{"$f":"IF('4 - Species Breakdown'!D580=0,\"\",'4 - Species Breakdown'!D580)","v":""},{"$f":"IF('4 - Species Breakdown'!L580=0,\"\",'4 - Species Breakdown'!L580)","v":""},{"$f":"IF('4 - Species Breakdown'!M580=0,\"\",'4 - Species Breakdown'!M580)","v":""},{"$f":"IF('4 - Species Breakdown'!N580=0,\"\",'4 - Species Breakdown'!N580)","v":""},{"$f":"IFERROR(('4 - Species Breakdown'!J580/'WCC Summary'!$D$14)*100,\"\")","v":""},{"$f":"IF('4 - Species Breakdown'!J580=0,\"\",'4 - Species Breakdown'!J580)","v":""}]
[null,{"$f":"IF('4 - Species Breakdown'!B581=0,\"\",'4 - Species Breakdown'!B581)","v":""},{"$f":"IF('4 - Species Breakdown'!D581=0,\"\",'4 - Species Breakdown'!D581)","v":""},{"$f":"IF('4 - Species Breakdown'!L581=0,\"\",'4 - Species Breakdown'!L581)","v":""},{"$f":"IF('4 - Species Breakdown'!M581=0,\"\",'4 - Species Breakdown'!M581)","v":""},{"$f":"IF('4 - Species Breakdown'!N581=0,\"\",'4 - Species Breakdown'!N581)","v":""},{"$f":"IFERROR(('4 - Species Breakdown'!J581/'WCC Summary'!$D$14)*100,\"\")","v":""},{"$f":"IF('4 - Species Breakdown'!J581=0,\"\",'4 - Species Breakdown'!J581)","v":""}]
[null,{"$f":"IF('4 - Species Breakdown'!B582=0,\"\",'4 - Species Breakdown'!B582)","v":""},{"$f":"IF('4 - Species Breakdown'!D582=0,\"\",'4 - Species Breakdown'!D582)","v":""},{"$f":"IF('4 - Species Breakdown'!L582=0,\"\",'4 - Species Breakdown'!L582)","v":""},{"$f":"IF('4 - Species Breakdown'!M582=0,\"\",'4 - Species Breakdown'!M582)","v":""},{"$f":"IF('4 - Species Breakdown'!N582=0,\"\",'4 - Species Breakdown'!N582)","v":""},{"$f":"IFERROR(('4 - Species Breakdown'!J582/'WCC Summary'!$D$14)*100,\"\")","v":""},{"$f":"IF('4 - Species Breakdown'!J582=0,\"\",'4 - Species Breakdown'!J582)","v":""}]
[null,{"$f":"IF('4 - Species Breakdown'!B583=0,\"\",'4 - Species Breakdown'!B583)","v":""},{"$f":"IF('4 - Species Breakdown'!D583=0,\"\",'4 - Species Breakdown'!D583)","v":""},{"$f":"IF('4 - Species Breakdown'!L583=0,\"\",'4 - Species Breakdown'!L583)","v":""},{"$f":"IF('4 - Species Breakdown'!M583=0,\"\",'4 - Species Breakdown'!M583)","v":""},{"$f":"IF('4 - Species Breakdown'!N583=0,\"\",'4 - Species Breakdown'!N583)","v":""},{"$f":"IFERROR(('4 - Species Breakdown'!J583/'WCC Summary'!$D$14)*100,\"\")","v":""},{"$f":"IF('4 - Species Breakdown'!J583=0,\"\",'4 - Species Breakdown'!J583)","v":""}]
[null,{"$f":"IF('4 - Species Breakdown'!B584=0,\"\",'4 - Species Breakdown'!B584)","v":""},{"$f":"IF('4 - Species Breakdown'!D584=0,\"\",'4 - Species Breakdown'!D584)","v":""},{"$f":"IF('4 - Species Breakdown'!L584=0,\"\",'4 - Species Breakdown'!L584)","v":""},{"$f":"IF('4 - Species Breakdown'!M584=0,\"\",'4 - Species Breakdown'!M584)","v":""},{"$f":"IF('4 - Species Breakdown'!N584=0,\"\",'4 - Species Breakdown'!N584)","v":""},{"$f":"IFERROR(('4 - Species Breakdown'!J584/'WCC Summary'!$D$14)*100,\"\")","v":""},{"$f":"IF('4 - Species Breakdown'!J584=0,\"\",'4 - Species Breakdown'!J584)","v":""}]
[null,{"$f":"IF('4 - Species Breakdown'!B585=0,\"\",'4 - Species Breakdown'!B585)","v":""},{"$f":"IF('4 - Species Breakdown'!D585=0,\"\",'4 - Species Breakdown'!D585)","v":""},{"$f":"IF('4 - Species Breakdown'!L585=0,\"\",'4 - Species Breakdown'!L585)","v":""},{"$f":"IF('4 - Species Breakdown'!M585=0,\"\",'4 - Species Breakdown'!M585)","v":""},{"$f":"IF('4 - Species Breakdown'!N585=0,\"\",'4 - Species Breakdown'!N585)","v":""},{"$f":"IFERROR(('4 - Species Breakdown'!J585/'WCC Summary'!$D$14)*100,\"\")","v":""},{"$f":"IF('4 - Species Breakdown'!J585=0,\"\",'4 - Species Breakdown'!J585)","v":""}]
[null,{"$f":"IF('4 - Species Breakdown'!B586=0,\"\",'4 - Species Breakdown'!B586)","v":""},{"$f":"IF('4 - Species Breakdown'!D586=0,\"\",'4 - Species Breakdown'!D586)","v":""},{"$f":"IF('4 - Species Breakdown'!L586=0,\"\",'4 - Species Breakdown'!L586)","v":""},{"$f":"IF('4 - Species Breakdown'!M586=0,\"\",'4 - Species Breakdown'!M586)","v":""},{"$f":"IF('4 - Species Breakdown'!N586=0,\"\",'4 - Species Breakdown'!N586)","v":""},{"$f":"IFERROR(('4 - Species Breakdown'!J586/'WCC Summary'!$D$14)*100,\"\")","v":""},{"$f":"IF('4 - Species Breakdown'!J586=0,\"\",'4 - Species Breakdown'!J586)","v":""}]
[null,{"$f":"IF('4 - Species Breakdown'!B587=0,\"\",'4 - Species Breakdown'!B587)","v":""},{"$f":"IF('4 - Species Breakdown'!D587=0,\"\",'4 - Species Breakdown'!D587)","v":""},{"$f":"IF('4 - Species Breakdown'!L587=0,\"\",'4 - Species Breakdown'!L587)","v":""},{"$f":"IF('4 - Species Breakdown'!M587=0,\"\",'4 - Species Breakdown'!M587)","v":""},{"$f":"IF('4 - Species Breakdown'!N587=0,\"\",'4 - Species Breakdown'!N587)","v":""},{"$f":"IFERROR(('4 - Species Breakdown'!J587/'WCC Summary'!$D$14)*100,\"\")","v":""},{"$f":"IF('4 - Species Breakdown'!J587=0,\"\",'4 - Species Breakdown'!J587)","v":""}]
[null,{"$f":"IF('4 - Species Breakdown'!B588=0,\"\",'4 - Species Breakdown'!B588)","v":""},{"$f":"IF('4 - Species Breakdown'!D588=0,\"\",'4 - Species Breakdown'!D588)","v":""},{"$f":"IF('4 - Species Breakdown'!L588=0,\"\",'4 - Species Breakdown'!L588)","v":""},{"$f":"IF('4 - Species Breakdown'!M588=0,\"\",'4 - Species Breakdown'!M588)","v":""},{"$f":"IF('4 - Species Breakdown'!N588=0,\"\",'4 - Species Breakdown'!N588)","v":""},{"$f":"IFERROR(('4 - Species Breakdown'!J588/'WCC Summary'!$D$14)*100,\"\")","v":""},{"$f":"IF('4 - Species Breakdown'!J588=0,\"\",'4 - Species Breakdown'!J588)","v":""}]
[null,{"$f":"IF('4 - Species Breakdown'!B589=0,\"\",'4 - Species Breakdown'!B589)","v":""},{"$f":"IF('4 - Species Breakdown'!D589=0,\"\",'4 - Species Breakdown'!D589)","v":""},{"$f":"IF('4 - Species Breakdown'!L589=0,\"\",'4 - Species Breakdown'!L589)","v":""},{"$f":"IF('4 - Species Breakdown'!M589=0,\"\",'4 - Species Breakdown'!M589)","v":""},{"$f":"IF('4 - Species Breakdown'!N589=0,\"\",'4 - Species Breakdown'!N589)","v":""},{"$f":"IFERROR(('4 - Species Breakdown'!J589/'WCC Summary'!$D$14)*100,\"\")","v":""},{"$f":"IF('4 - Species Breakdown'!J589=0,\"\",'4 - Species Breakdown'!J589)","v":""}]
[null,{"$f":"IF('4 - Species Breakdown'!B590=0,\"\",'4 - Species Breakdown'!B590)","v":""},{"$f":"IF('4 - Species Breakdown'!D590=0,\"\",'4 - Species Breakdown'!D590)","v":""},{"$f":"IF('4 - Species Breakdown'!L590=0,\"\",'4 - Species Breakdown'!L590)","v":""},{"$f":"IF('4 - Species Breakdown'!M590=0,\"\",'4 - Species Breakdown'!M590)","v":""},{"$f":"IF('4 - Species Breakdown'!N590=0,\"\",'4 - Species Breakdown'!N590)","v":""},{"$f":"IFERROR(('4 - Species Breakdown'!J590/'WCC Summary'!$D$14)*100,\"\")","v":""},{"$f":"IF('4 - Species Breakdown'!J590=0,\"\",'4 - Species Breakdown'!J590)","v":""}]
[null,{"$f":"IF('4 - Species Breakdown'!B591=0,\"\",'4 - Species Breakdown'!B591)","v":""},{"$f":"IF('4 - Species Breakdown'!D591=0,\"\",'4 - Species Breakdown'!D591)","v":""},{"$f":"IF('4 - Species Breakdown'!L591=0,\"\",'4 - Species Breakdown'!L591)","v":""},{"$f":"IF('4 - Species Breakdown'!M591=0,\"\",'4 - Species Breakdown'!M591)","v":""},{"$f":"IF('4 - Species Breakdown'!N591=0,\"\",'4 - Species Breakdown'!N591)","v":""},{"$f":"IFERROR(('4 - Species Breakdown'!J591/'WCC Summary'!$D$14)*100,\"\")","v":""},{"$f":"IF('4 - Species Breakdown'!J591=0,\"\",'4 - Species Breakdown'!J591)","v":""}]
[null,{"$f":"IF('4 - Species Breakdown'!B592=0,\"\",'4 - Species Breakdown'!B592)","v":""},{"$f":"IF('4 - Species Breakdown'!D592=0,\"\",'4 - Species Breakdown'!D592)","v":""},{"$f":"IF('4 - Species Breakdown'!L592=0,\"\",'4 - Species Breakdown'!L592)","v":""},{"$f":"IF('4 - Species Breakdown'!M592=0,\"\",'4 - Species Breakdown'!M592)","v":""},{"$f":"IF('4 - Species Breakdown'!N592=0,\"\",'4 - Species Breakdown'!N592)","v":""},{"$f":"IFERROR(('4 - Species Breakdown'!J592/'WCC Summary'!$D$14)*100,\"\")","v":""},{"$f":"IF('4 - Species Breakdown'!J592=0,\"\",'4 - Species Breakdown'!J592)","v":""}]
[null,{"$f":"IF('4 - Species Breakdown'!B593=0,\"\",'4 - Species Breakdown'!B593)","v":""},{"$f":"IF('4 - Species Breakdown'!D593=0,\"\",'4 - Species Breakdown'!D593)","v":""},{"$f":"IF('4 - Species Breakdown'!L593=0,\"\",'4 - Species Breakdown'!L593)","v":""},{"$f":"IF('4 - Species Breakdown'!M593=0,\"\",'4 - Species Breakdown'!M593)","v":""},{"$f":"IF('4 - Species Breakdown'!N593=0,\"\",'4 - Species Breakdown'!N593)","v":""},{"$f":"IFERROR(('4 - Species Breakdown'!J593/'WCC Summary'!$D$14)*100,\"\")","v":""},{"$f":"IF('4 - Species Breakdown'!J593=0,\"\",'4 - Species Breakdown'!J593)","v":""}]
[null,{"$f":"IF('4 - Species Breakdown'!B594=0,\"\",'4 - Species Breakdown'!B594)","v":""},{"$f":"IF('4 - Species Breakdown'!D594=0,\"\",'4 - Species Breakdown'!D594)","v":""},{"$f":"IF('4 - Species Breakdown'!L594=0,\"\",'4 - Species Breakdown'!L594)","v":""},{"$f":"IF('4 - Species Breakdown'!M594=0,\"\",'4 - Species Breakdown'!M594)","v":""},{"$f":"IF('4 - Species Breakdown'!N594=0,\"\",'4 - Species Breakdown'!N594)","v":""},{"$f":"IFERROR(('4 - Species Breakdown'!J594/'WCC Summary'!$D$14)*100,\"\")","v":""},{"$f":"IF('4 - Species Breakdown'!J594=0,\"\",'4 - Species Breakdown'!J594)","v":""}]
[null,{"$f":"IF('4 - Species Breakdown'!B595=0,\"\",'4 - Species Breakdown'!B595)","v":""},{"$f":"IF('4 - Species Breakdown'!D595=0,\"\",'4 - Species Breakdown'!D595)","v":""},{"$f":"IF('4 - Species Breakdown'!L595=0,\"\",'4 - Species Breakdown'!L595)","v":""},{"$f":"IF('4 - Species Breakdown'!M595=0,\"\",'4 - Species Breakdown'!M595)","v":""},{"$f":"IF('4 - Species Breakdown'!N595=0,\"\",'4 - Species Breakdown'!N595)","v":""},{"$f":"IFERROR(('4 - Species Breakdown'!J595/'WCC Summary'!$D$14)*100,\"\")","v":""},{"$f":"IF('4 - Species Breakdown'!J595=0,\"\",'4 - Species Breakdown'!J595)","v":""}]
[null,{"$f":"IF('4 - Species Breakdown'!B596=0,\"\",'4 - Species Breakdown'!B596)","v":""},{"$f":"IF('4 - Species Breakdown'!D596=0,\"\",'4 - Species Breakdown'!D596)","v":""},{"$f":"IF('4 - Species Breakdown'!L596=0,\"\",'4 - Species Breakdown'!L596)","v":""},{"$f":"IF('4 - Species Breakdown'!M596=0,\"\",'4 - Species Breakdown'!M596)","v":""},{"$f":"IF('4 - Species Breakdown'!N596=0,\"\",'4 - Species Breakdown'!N596)","v":""},{"$f":"IFERROR(('4 - Species Breakdown'!J596/'WCC Summary'!$D$14)*100,\"\")","v":""},{"$f":"IF('4 - Species Breakdown'!J596=0,\"\",'4 - Species Breakdown'!J596)","v":""}]
[null,{"$f":"IF('4 - Species Breakdown'!B597=0,\"\",'4 - Species Breakdown'!B597)","v":""},{"$f":"IF('4 - Species Breakdown'!D597=0,\"\",'4 - Species Breakdown'!D597)","v":""},{"$f":"IF('4 - Species Breakdown'!L597=0,\"\",'4 - Species Breakdown'!L597)","v":""},{"$f":"IF('4 - Species Breakdown'!M597=0,\"\",'4 - Species Breakdown'!M597)","v":""},{"$f":"IF('4 - Species Breakdown'!N597=0,\"\",'4 - Species Breakdown'!N597)","v":""},{"$f":"IFERROR(('4 - Species Breakdown'!J597/'WCC Summary'!$D$14)*100,\"\")","v":""},{"$f":"IF('4 - Species Breakdown'!J597=0,\"\",'4 - Species Breakdown'!J597)","v":""}]
[null,{"$f":"IF('4 - Species Breakdown'!B598=0,\"\",'4 - Species Breakdown'!B598)","v":""},{"$f":"IF('4 - Species Breakdown'!D598=0,\"\",'4 - Species Breakdown'!D598)","v":""},{"$f":"IF('4 - Species Breakdown'!L598=0,\"\",'4 - Species Breakdown'!L598)","v":""},{"$f":"IF('4 - Species Breakdown'!M598=0,\"\",'4 - Species Breakdown'!M598)","v":""},{"$f":"IF('4 - Species Breakdown'!N598=0,\"\",'4 - Species Breakdown'!N598)","v":""},{"$f":"IFERROR(('4 - Species Breakdown'!J598/'WCC Summary'!$D$14)*100,\"\")","v":""},{"$f":"IF('4 - Species Breakdown'!J598=0,\"\",'4 - Species Breakdown'!J598)","v":""}]
[null,{"$f":"IF('4 - Species Breakdown'!B599=0,\"\",'4 - Species Breakdown'!B599)","v":""},{"$f":"IF('4 - Species Breakdown'!D599=0,\"\",'4 - Species Breakdown'!D599)","v":""},{"$f":"IF('4 - Species Breakdown'!L599=0,\"\",'4 - Species Breakdown'!L599)","v":""},{"$f":"IF('4 - Species Breakdown'!M599=0,\"\",'4 - Species Breakdown'!M599)","v":""},{"$f":"IF('4 - Species Breakdown'!N599=0,\"\",'4 - Species Breakdown'!N599)","v":""},{"$f":"IFERROR(('4 - Species Breakdown'!J599/'WCC Summary'!$D$14)*100,\"\")","v":""},{"$f":"IF('4 - Species Breakdown'!J599=0,\"\",'4 - Species Breakdown'!J599)","v":""}]
[null,{"$f":"IF('4 - Species Breakdown'!B600=0,\"\",'4 - Species Breakdown'!B600)","v":""},{"$f":"IF('4 - Species Breakdown'!D600=0,\"\",'4 - Species Breakdown'!D600)","v":""},{"$f":"IF('4 - Species Breakdown'!L600=0,\"\",'4 - Species Breakdown'!L600)","v":""},{"$f":"IF('4 - Species Breakdown'!M600=0,\"\",'4 - Species Breakdown'!M600)","v":""},{"$f":"IF('4 - Species Breakdown'!N600=0,\"\",'4 - Species Breakdown'!N600)","v":""},{"$f":"IFERROR(('4 - Species Breakdown'!J600/'WCC Summary'!$D$14)*100,\"\")","v":""},{"$f":"IF('4 - Species Breakdown'!J600=0,\"\",'4 - Species Breakdown'!J600)","v":""}]
[null,{"$f":"IF('4 - Species Breakdown'!B601=0,\"\",'4 - Species Breakdown'!B601)","v":""},{"$f":"IF('4 - Species Breakdown'!D601=0,\"\",'4 - Species Breakdown'!D601)","v":""},{"$f":"IF('4 - Species Breakdown'!L601=0,\"\",'4 - Species Breakdown'!L601)","v":""},{"$f":"IF('4 - Species Breakdown'!M601=0,\"\",'4 - Species Breakdown'!M601)","v":""},{"$f":"IF('4 - Species Breakdown'!N601=0,\"\",'4 - Species Breakdown'!N601)","v":""},{"$f":"IFERROR(('4 - Species Breakdown'!J601/'WCC Summary'!$D$14)*100,\"\")","v":""},{"$f":"IF('4 - Species Breakdown'!J601=0,\"\",'4 - Species Breakdown'!J601)","v":""}]
[null,{"$f":"IF('4 - Species Breakdown'!B602=0,\"\",'4 - Species Breakdown'!B602)","v":""},{"$f":"IF('4 - Species Breakdown'!D602=0,\"\",'4 - Species Breakdown'!D602)","v":""},{"$f":"IF('4 - Species Breakdown'!L602=0,\"\",'4 - Species Breakdown'!L602)","v":""},{"$f":"IF('4 - Species Breakdown'!M602=0,\"\",'4 - Species Breakdown'!M602)","v":""},{"$f":"IF('4 - Species Breakdown'!N602=0,\"\",'4 - Species Breakdown'!N602)","v":""},{"$f":"IFERROR(('4 - Species Breakdown'!J602/'WCC Summary'!$D$14)*100,\"\")","v":""},{"$f":"IF('4 - Species Breakdown'!J602=0,\"\",'4 - Species Breakdown'!J602)","v":""}]
[null,{"$f":"IF('4 - Species Breakdown'!B603=0,\"\",'4 - Species Breakdown'!B603)","v":""},{"$f":"IF('4 - Species Breakdown'!D603=0,\"\",'4 - Species Breakdown'!D603)","v":""},{"$f":"IF('4 - Species Breakdown'!L603=0,\"\",'4 - Species Breakdown'!L603)","v":""},{"$f":"IF('4 - Species Breakdown'!M603=0,\"\",'4 - Species Breakdown'!M603)","v":""},{"$f":"IF('4 - Species Breakdown'!N603=0,\"\",'4 - Species Breakdown'!N603)","v":""},{"$f":"IFERROR(('4 - Species Breakdown'!J603/'WCC Summary'!$D$14)*100,\"\")","v":""},{"$f":"IF('4 - Species Breakdown'!J603=0,\"\",'4 - Species Breakdown'!J603)","v":""}]
[null,{"$f":"IF('4 - Species Breakdown'!B604=0,\"\",'4 - Species Breakdown'!B604)","v":""},{"$f":"IF('4 - Species Breakdown'!D604=0,\"\",'4 - Species Breakdown'!D604)","v":""},{"$f":"IF('4 - Species Breakdown'!L604=0,\"\",'4 - Species Breakdown'!L604)","v":""},{"$f":"IF('4 - Species Breakdown'!M604=0,\"\",'4 - Species Breakdown'!M604)","v":""},{"$f":"IF('4 - Species Breakdown'!N604=0,\"\",'4 - Species Breakdown'!N604)","v":""},{"$f":"IFERROR(('4 - Species Breakdown'!J604/'WCC Summary'!$D$14)*100,\"\")","v":""},{"$f":"IF('4 - Species Breakdown'!J604=0,\"\",'4 - Species Breakdown'!J604)","v":""}]
[null,{"$f":"IF('4 - Species Breakdown'!B605=0,\"\",'4 - Species Breakdown'!B605)","v":""},{"$f":"IF('4 - Species Breakdown'!D605=0,\"\",'4 - Species Breakdown'!D605)","v":""},{"$f":"IF('4 - Species Breakdown'!L605=0,\"\",'4 - Species Breakdown'!L605)","v":""},{"$f":"IF('4 - Species Breakdown'!M605=0,\"\",'4 - Species Breakdown'!M605)","v":""},{"$f":"IF('4 - Species Breakdown'!N605=0,\"\",'4 - Species Breakdown'!N605)","v":""},{"$f":"IFERROR(('4 - Species Breakdown'!J605/'WCC Summary'!$D$14)*100,\"\")","v":""},{"$f":"IF('4 - Species Breakdown'!J605=0,\"\",'4 - Species Breakdown'!J605)","v":""}]
[null,{"$f":"IF('4 - Species Breakdown'!B606=0,\"\",'4 - Species Breakdown'!B606)","v":""},{"$f":"IF('4 - Species Breakdown'!D606=0,\"\",'4 - Species Breakdown'!D606)","v":""},{"$f":"IF('4 - Species Breakdown'!L606=0,\"\",'4 - Species Breakdown'!L606)","v":""},{"$f":"IF('4 - Species Breakdown'!M606=0,\"\",'4 - Species Breakdown'!M606)","v":""},{"$f":"IF('4 - Species Breakdown'!N606=0,\"\",'4 - Species Breakdown'!N606)","v":""},{"$f":"IFERROR(('4 - Species Breakdown'!J606/'WCC Summary'!$D$14)*100,\"\")","v":""},{"$f":"IF('4 - Species Breakdown'!J606=0,\"\",'4 - Species Breakdown'!J606)","v":""}]
[null,{"$f":"IF('4 - Species Breakdown'!B607=0,\"\",'4 - Species Breakdown'!B607)","v":""},{"$f":"IF('4 - Species Breakdown'!D607=0,\"\",'4 - Species Breakdown'!D607)","v":""},{"$f":"IF('4 - Species Breakdown'!L607=0,\"\",'4 - Species Breakdown'!L607)","v":""},{"$f":"IF('4 - Species Breakdown'!M607=0,\"\",'4 - Species Breakdown'!M607)","v":""},{"$f":"IF('4 - Species Breakdown'!N607=0,\"\",'4 - Species Breakdown'!N607)","v":""},{"$f":"IFERROR(('4 - Species Breakdown'!J607/'WCC Summary'!$D$14)*100,\"\")","v":""},{"$f":"IF('4 - Species Breakdown'!J607=0,\"\",'4 - Species Breakdown'!J607)","v":""}]
[null,{"$f":"IF('4 - Species Breakdown'!B608=0,\"\",'4 - Species Breakdown'!B608)","v":""},{"$f":"IF('4 - Species Breakdown'!D608=0,\"\",'4 - Species Breakdown'!D608)","v":""},{"$f":"IF('4 - Species Breakdown'!L608=0,\"\",'4 - Species Breakdown'!L608)","v":""},{"$f":"IF('4 - Species Breakdown'!M608=0,\"\",'4 - Species Breakdown'!M608)","v":""},{"$f":"IF('4 - Species Breakdown'!N608=0,\"\",'4 - Species Breakdown'!N608)","v":""},{"$f":"IFERROR(('4 - Species Breakdown'!J608/'WCC Summary'!$D$14)*100,\"\")","v":""},{"$f":"IF('4 - Species Breakdown'!J608=0,\"\",'4 - Species Breakdown'!J608)","v":""}]
[null,{"$f":"IF('4 - Species Breakdown'!B609=0,\"\",'4 - Species Breakdown'!B609)","v":""},{"$f":"IF('4 - Species Breakdown'!D609=0,\"\",'4 - Species Breakdown'!D609)","v":""},{"$f":"IF('4 - Species Breakdown'!L609=0,\"\",'4 - Species Breakdown'!L609)","v":""},{"$f":"IF('4 - Species Breakdown'!M609=0,\"\",'4 - Species Breakdown'!M609)","v":""},{"$f":"IF('4 - Species Breakdown'!N609=0,\"\",'4 - Species Breakdown'!N609)","v":""},{"$f":"IFERROR(('4 - Species Breakdown'!J609/'WCC Summary'!$D$14)*100,\"\")","v":""},{"$f":"IF('4 - Species Breakdown'!J609=0,\"\",'4 - Species Breakdown'!J609)","v":""}]
[null,{"$f":"IF('4 - Species Breakdown'!B610=0,\"\",'4 - Species Breakdown'!B610)","v":""},{"$f":"IF('4 - Species Breakdown'!D610=0,\"\",'4 - Species Breakdown'!D610)","v":""},{"$f":"IF('4 - Species Breakdown'!L610=0,\"\",'4 - Species Breakdown'!L610)","v":""},{"$f":"IF('4 - Species Breakdown'!M610=0,\"\",'4 - Species Breakdown'!M610)","v":""},{"$f":"IF('4 - Species Breakdown'!N610=0,\"\",'4 - Species Breakdown'!N610)","v":""},{"$f":"IFERROR(('4 - Species Breakdown'!J610/'WCC Summary'!$D$14)*100,\"\")","v":""},{"$f":"IF('4 - Species Breakdown'!J610=0,\"\",'4 - Species Breakdown'!J610)","v":""}]
[null,{"$f":"IF('4 - Species Breakdown'!B611=0,\"\",'4 - Species Breakdown'!B611)","v":""},{"$f":"IF('4 - Species Breakdown'!D611=0,\"\",'4 - Species Breakdown'!D611)","v":""},{"$f":"IF('4 - Species Breakdown'!L611=0,\"\",'4 - Species Breakdown'!L611)","v":""},{"$f":"IF('4 - Species Breakdown'!M611=0,\"\",'4 - Species Breakdown'!M611)","v":""},{"$f":"IF('4 - Species Breakdown'!N611=0,\"\",'4 - Species Breakdown'!N611)","v":""},{"$f":"IFERROR(('4 - Species Breakdown'!J611/'WCC Summary'!$D$14)*100,\"\")","v":""},{"$f":"IF('4 - Species Breakdown'!J611=0,\"\",'4 - Species Breakdown'!J611)","v":""}]
[null,{"$f":"IF('4 - Species Breakdown'!B612=0,\"\",'4 - Species Breakdown'!B612)","v":""},{"$f":"IF('4 - Species Breakdown'!D612=0,\"\",'4 - Species Breakdown'!D612)","v":""},{"$f":"IF('4 - Species Breakdown'!L612=0,\"\",'4 - Species Breakdown'!L612)","v":""},{"$f":"IF('4 - Species Breakdown'!M612=0,\"\",'4 - Species Breakdown'!M612)","v":""},{"$f":"IF('4 - Species Breakdown'!N612=0,\"\",'4 - Species Breakdown'!N612)","v":""},{"$f":"IFERROR(('4 - Species Breakdown'!J612/'WCC Summary'!$D$14)*100,\"\")","v":""},{"$f":"IF('4 - Species Breakdown'!J612=0,\"\",'4 - Species Breakdown'!J612)","v":""}]
[null,{"$f":"IF('4 - Species Breakdown'!B613=0,\"\",'4 - Species Breakdown'!B613)","v":""},{"$f":"IF('4 - Species Breakdown'!D613=0,\"\",'4 - Species Breakdown'!D613)","v":""},{"$f":"IF('4 - Species Breakdown'!L613=0,\"\",'4 - Species Breakdown'!L613)","v":""},{"$f":"IF('4 - Species Breakdown'!M613=0,\"\",'4 - Species Breakdown'!M613)","v":""},{"$f":"IF('4 - Species Breakdown'!N613=0,\"\",'4 - Species Breakdown'!N613)","v":""},{"$f":"IFERROR(('4 - Species Breakdown'!J613/'WCC Summary'!$D$14)*100,\"\")","v":""},{"$f":"IF('4 - Species Breakdown'!J613=0,\"\",'4 - Species Breakdown'!J613)","v":""}]
[null,{"$f":"IF('4 - Species Breakdown'!B614=0,\"\",'4 - Species Breakdown'!B614)","v":""},{"$f":"IF('4 - Species Breakdown'!D614=0,\"\",'4 - Species Breakdown'!D614)","v":""},{"$f":"IF('4 - Species Breakdown'!L614=0,\"\",'4 - Species Breakdown'!L614)","v":""},{"$f":"IF('4 - Species Breakdown'!M614=0,\"\",'4 - Species Breakdown'!M614)","v":""},{"$f":"IF('4 - Species Breakdown'!N614=0,\"\",'4 - Species Breakdown'!N614)","v":""},{"$f":"IFERROR(('4 - Species Breakdown'!J614/'WCC Summary'!$D$14)*100,\"\")","v":""},{"$f":"IF('4 - Species Breakdown'!J614=0,\"\",'4 - Species Breakdown'!J614)","v":""}]
[null,{"$f":"IF('4 - Species Breakdown'!B615=0,\"\",'4 - Species Breakdown'!B615)","v":""},{"$f":"IF('4 - Species Breakdown'!D615=0,\"\",'4 - Species Breakdown'!D615)","v":""},{"$f":"IF('4 - Species Breakdown'!L615=0,\"\",'4 - Species Breakdown'!L615)","v":""},{"$f":"IF('4 - Species Breakdown'!M615=0,\"\",'4 - Species Breakdown'!M615)","v":""},{"$f":"IF('4 - Species Breakdown'!N615=0,\"\",'4 - Species Breakdown'!N615)","v":""},{"$f":"IFERROR(('4 - Species Breakdown'!J615/'WCC Summary'!$D$14)*100,\"\")","v":""},{"$f":"IF('4 - Species Breakdown'!J615=0,\"\",'4 - Species Breakdown'!J615)","v":""}]
[null,{"$f":"IF('4 - Species Breakdown'!B616=0,\"\",'4 - Species Breakdown'!B616)","v":""},{"$f":"IF('4 - Species Breakdown'!D616=0,\"\",'4 - Species Breakdown'!D616)","v":""},{"$f":"IF('4 - Species Breakdown'!L616=0,\"\",'4 - Species Breakdown'!L616)","v":""},{"$f":"IF('4 - Species Breakdown'!M616=0,\"\",'4 - Species Breakdown'!M616)","v":""},{"$f":"IF('4 - Species Breakdown'!N616=0,\"\",'4 - Species Breakdown'!N616)","v":""},{"$f":"IFERROR(('4 - Species Breakdown'!J616/'WCC Summary'!$D$14)*100,\"\")","v":""},{"$f":"IF('4 - Species Breakdown'!J616=0,\"\",'4 - Species Breakdown'!J616)","v":""}]
[null,{"$f":"IF('4 - Species Breakdown'!B617=0,\"\",'4 - Species Breakdown'!B617)","v":""},{"$f":"IF('4 - Species Breakdown'!D617=0,\"\",'4 - Species Breakdown'!D617)","v":""},{"$f":"IF('4 - Species Breakdown'!L617=0,\"\",'4 - Species Breakdown'!L617)","v":""},{"$f":"IF('4 - Species Breakdown'!M617=0,\"\",'4 - Species Breakdown'!M617)","v":""},{"$f":"IF('4 - Species Breakdown'!N617=0,\"\",'4 - Species Breakdown'!N617)","v":""},{"$f":"IFERROR(('4 - Species Breakdown'!J617/'WCC Summary'!$D$14)*100,\"\")","v":""},{"$f":"IF('4 - Species Breakdown'!J617=0,\"\",'4 - Species Breakdown'!J617)","v":""}]
[null,{"$f":"IF('4 - Species Breakdown'!B618=0,\"\",'4 - Species Breakdown'!B618)","v":""},{"$f":"IF('4 - Species Breakdown'!D618=0,\"\",'4 - Species Breakdown'!D618)","v":""},{"$f":"IF('4 - Species Breakdown'!L618=0,\"\",'4 - Species Breakdown'!L618)","v":""},{"$f":"IF('4 - Species Breakdown'!M618=0,\"\",'4 - Species Breakdown'!M618)","v":""},{"$f":"IF('4 - Species Breakdown'!N618=0,\"\",'4 - Species Breakdown'!N618)","v":""},{"$f":"IFERROR(('4 - Species Breakdown'!J618/'WCC Summary'!$D$14)*100,\"\")","v":""},{"$f":"IF('4 - Species Breakdown'!J618=0,\"\",'4 - Species Breakdown'!J618)","v":""}]
[null,{"$f":"IF('4 - Species Breakdown'!B619=0,\"\",'4 - Species Breakdown'!B619)","v":""},{"$f":"IF('4 - Species Breakdown'!D619=0,\"\",'4 - Species Breakdown'!D619)","v":""},{"$f":"IF('4 - Species Breakdown'!L619=0,\"\",'4 - Species Breakdown'!L619)","v":""},{"$f":"IF('4 - Species Breakdown'!M619=0,\"\",'4 - Species Breakdown'!M619)","v":""},{"$f":"IF('4 - Species Breakdown'!N619=0,\"\",'4 - Species Breakdown'!N619)","v":""},{"$f":"IFERROR(('4 - Species Breakdown'!J619/'WCC Summary'!$D$14)*100,\"\")","v":""},{"$f":"IF('4 - Species Breakdown'!J619=0,\"\",'4 - Species Breakdown'!J619)","v":""}]
[null,{"$f":"IF('4 - Species Breakdown'!B620=0,\"\",'4 - Species Breakdown'!B620)","v":""},{"$f":"IF('4 - Species Breakdown'!D620=0,\"\",'4 - Species Breakdown'!D620)","v":""},{"$f":"IF('4 - Species Breakdown'!L620=0,\"\",'4 - Species Breakdown'!L620)","v":""},{"$f":"IF('4 - Species Breakdown'!M620=0,\"\",'4 - Species Breakdown'!M620)","v":""},{"$f":"IF('4 - Species Breakdown'!N620=0,\"\",'4 - Species Breakdown'!N620)","v":""},{"$f":"IFERROR(('4 - Species Breakdown'!J620/'WCC Summary'!$D$14)*100,\"\")","v":""},{"$f":"IF('4 - Species Breakdown'!J620=0,\"\",'4 - Species Breakdown'!J620)","v":""}]
[null,{"$f":"IF('4 - Species Breakdown'!B621=0,\"\",'4 - Species Breakdown'!B621)","v":""},{"$f":"IF('4 - Species Breakdown'!D621=0,\"\",'4 - Species Breakdown'!D621)","v":""},{"$f":"IF('4 - Species Breakdown'!L621=0,\"\",'4 - Species Breakdown'!L621)","v":""},{"$f":"IF('4 - Species Breakdown'!M621=0,\"\",'4 - Species Breakdown'!M621)","v":""},{"$f":"IF('4 - Species Breakdown'!N621=0,\"\",'4 - Species Breakdown'!N621)","v":""},{"$f":"IFERROR(('4 - Species Breakdown'!J621/'WCC Summary'!$D$14)*100,\"\")","v":""},{"$f":"IF('4 - Species Breakdown'!J621=0,\"\",'4 - Species Breakdown'!J621)","v":""}]
[null,{"$f":"IF('4 - Species Breakdown'!B622=0,\"\",'4 - Species Breakdown'!B622)","v":""},{"$f":"IF('4 - Species Breakdown'!D622=0,\"\",'4 - Species Breakdown'!D622)","v":""},{"$f":"IF('4 - Species Breakdown'!L622=0,\"\",'4 - Species Breakdown'!L622)","v":""},{"$f":"IF('4 - Species Breakdown'!M622=0,\"\",'4 - Species Breakdown'!M622)","v":""},{"$f":"IF('4 - Species Breakdown'!N622=0,\"\",'4 - Species Breakdown'!N622)","v":""},{"$f":"IFERROR(('4 - Species Breakdown'!J622/'WCC Summary'!$D$14)*100,\"\")","v":""},{"$f":"IF('4 - Species Breakdown'!J622=0,\"\",'4 - Species Breakdown'!J622)","v":""}]
[null,{"$f":"IF('4 - Species Breakdown'!B623=0,\"\",'4 - Species Breakdown'!B623)","v":""},{"$f":"IF('4 - Species Breakdown'!D623=0,\"\",'4 - Species Breakdown'!D623)","v":""},{"$f":"IF('4 - Species Breakdown'!L623=0,\"\",'4 - Species Breakdown'!L623)","v":""},{"$f":"IF('4 - Species Breakdown'!M623=0,\"\",'4 - Species Breakdown'!M623)","v":""},{"$f":"IF('4 - Species Breakdown'!N623=0,\"\",'4 - Species Breakdown'!N623)","v":""},{"$f":"IFERROR(('4 - Species Breakdown'!J623/'WCC Summary'!$D$14)*100,\"\")","v":""},{"$f":"IF('4 - Species Breakdown'!J623=0,\"\",'4 - Species Breakdown'!J623)","v":""}]
[null,{"$f":"IF('4 - Species Breakdown'!B624=0,\"\",'4 - Species Breakdown'!B624)","v":""},{"$f":"IF('4 - Species Breakdown'!D624=0,\"\",'4 - Species Breakdown'!D624)","v":""},{"$f":"IF('4 - Species Breakdown'!L624=0,\"\",'4 - Species Breakdown'!L624)","v":""},{"$f":"IF('4 - Species Breakdown'!M624=0,\"\",'4 - Species Breakdown'!M624)","v":""},{"$f":"IF('4 - Species Breakdown'!N624=0,\"\",'4 - Species Breakdown'!N624)","v":""},{"$f":"IFERROR(('4 - Species Breakdown'!J624/'WCC Summary'!$D$14)*100,\"\")","v":""},{"$f":"IF('4 - Species Breakdown'!J624=0,\"\",'4 - Species Breakdown'!J624)","v":""}]
[null,{"$f":"IF('4 - Species Breakdown'!B625=0,\"\",'4 - Species Breakdown'!B625)","v":""},{"$f":"IF('4 - Species Breakdown'!D625=0,\"\",'4 - Species Breakdown'!D625)","v":""},{"$f":"IF('4 - Species Breakdown'!L625=0,\"\",'4 - Species Breakdown'!L625)","v":""},{"$f":"IF('4 - Species Breakdown'!M625=0,\"\",'4 - Species Breakdown'!M625)","v":""},{"$f":"IF('4 - Species Breakdown'!N625=0,\"\",'4 - Species Breakdown'!N625)","v":""},{"$f":"IFERROR(('4 - Species Breakdown'!J625/'WCC Summary'!$D$14)*100,\"\")","v":""},{"$f":"IF('4 - Species Breakdown'!J625=0,\"\",'4 - Species Breakdown'!J625)","v":""}]
[null,{"$f":"IF('4 - Species Breakdown'!B626=0,\"\",'4 - Species Breakdown'!B626)","v":""},{"$f":"IF('4 - Species Breakdown'!D626=0,\"\",'4 - Species Breakdown'!D626)","v":""},{"$f":"IF('4 - Species Breakdown'!L626=0,\"\",'4 - Species Breakdown'!L626)","v":""},{"$f":"IF('4 - Species Breakdown'!M626=0,\"\",'4 - Species Breakdown'!M626)","v":""},{"$f":"IF('4 - Species Breakdown'!N626=0,\"\",'4 - Species Breakdown'!N626)","v":""},{"$f":"IFERROR(('4 - Species Breakdown'!J626/'WCC Summary'!$D$14)*100,\"\")","v":""},{"$f":"IF('4 - Species Breakdown'!J626=0,\"\",'4 - Species Breakdown'!J626)","v":""}]
[null,{"$f":"IF('4 - Species Breakdown'!B627=0,\"\",'4 - Species Breakdown'!B627)","v":""},{"$f":"IF('4 - Species Breakdown'!D627=0,\"\",'4 - Species Breakdown'!D627)","v":""},{"$f":"IF('4 - Species Breakdown'!L627=0,\"\",'4 - Species Breakdown'!L627)","v":""},{"$f":"IF('4 - Species Breakdown'!M627=0,\"\",'4 - Species Breakdown'!M627)","v":""},{"$f":"IF('4 - Species Breakdown'!N627=0,\"\",'4 - Species Breakdown'!N627)","v":""},{"$f":"IFERROR(('4 - Species Breakdown'!J627/'WCC Summary'!$D$14)*100,\"\")","v":""},{"$f":"IF('4 - Species Breakdown'!J627=0,\"\",'4 - Species Breakdown'!J627)","v":""}]
[null,{"$f":"IF('4 - Species Breakdown'!B628=0,\"\",'4 - Species Breakdown'!B628)","v":""},{"$f":"IF('4 - Species Breakdown'!D628=0,\"\",'4 - Species Breakdown'!D628)","v":""},{"$f":"IF('4 - Species Breakdown'!L628=0,\"\",'4 - Species Breakdown'!L628)","v":""},{"$f":"IF('4 - Species Breakdown'!M628=0,\"\",'4 - Species Breakdown'!M628)","v":""},{"$f":"IF('4 - Species Breakdown'!N628=0,\"\",'4 - Species Breakdown'!N628)","v":""},{"$f":"IFERROR(('4 - Species Breakdown'!J628/'WCC Summary'!$D$14)*100,\"\")","v":""},{"$f":"IF('4 - Species Breakdown'!J628=0,\"\",'4 - Species Breakdown'!J628)","v":""}]
[null,{"$f":"IF('4 - Species Breakdown'!B629=0,\"\",'4 - Species Breakdown'!B629)","v":""},{"$f":"IF('4 - Species Breakdown'!D629=0,\"\",'4 - Species Breakdown'!D629)","v":""},{"$f":"IF('4 - Species Breakdown'!L629=0,\"\",'4 - Species Breakdown'!L629)","v":""},{"$f":"IF('4 - Species Breakdown'!M629=0,\"\",'4 - Species Breakdown'!M629)","v":""},{"$f":"IF('4 - Species Breakdown'!N629=0,\"\",'4 - Species Breakdown'!N629)","v":""},{"$f":"IFERROR(('4 - Species Breakdown'!J629/'WCC Summary'!$D$14)*100,\"\")","v":""},{"$f":"IF('4 - Species Breakdown'!J629=0,\"\",'4 - Species Breakdown'!J629)","v":""}]
[null,{"$f":"IF('4 - Species Breakdown'!B630=0,\"\",'4 - Species Breakdown'!B630)","v":""},{"$f":"IF('4 - Species Breakdown'!D630=0,\"\",'4 - Species Breakdown'!D630)","v":""},{"$f":"IF('4 - Species Breakdown'!L630=0,\"\",'4 - Species Breakdown'!L630)","v":""},{"$f":"IF('4 - Species Breakdown'!M630=0,\"\",'4 - Species Breakdown'!M630)","v":""},{"$f":"IF('4 - Species Breakdown'!N630=0,\"\",'4 - Species Breakdown'!N630)","v":""},{"$f":"IFERROR(('4 - Species Breakdown'!J630/'WCC Summary'!$D$14)*100,\"\")","v":""},{"$f":"IF('4 - Species Breakdown'!J630=0,\"\",'4 - Species Breakdown'!J630)","v":""}]
[null,{"$f":"IF('4 - Species Breakdown'!B631=0,\"\",'4 - Species Breakdown'!B631)","v":""},{"$f":"IF('4 - Species Breakdown'!D631=0,\"\",'4 - Species Breakdown'!D631)","v":""},{"$f":"IF('4 - Species Breakdown'!L631=0,\"\",'4 - Species Breakdown'!L631)","v":""},{"$f":"IF('4 - Species Breakdown'!M631=0,\"\",'4 - Species Breakdown'!M631)","v":""},{"$f":"IF('4 - Species Breakdown'!N631=0,\"\",'4 - Species Breakdown'!N631)","v":""},{"$f":"IFERROR(('4 - Species Breakdown'!J631/'WCC Summary'!$D$14)*100,\"\")","v":""},{"$f":"IF('4 - Species Breakdown'!J631=0,\"\",'4 - Species Breakdown'!J631)","v":""}]
[null,{"$f":"IF('4 - Species Breakdown'!B632=0,\"\",'4 - Species Breakdown'!B632)","v":""},{"$f":"IF('4 - Species Breakdown'!D632=0,\"\",'4 - Species Breakdown'!D632)","v":""},{"$f":"IF('4 - Species Breakdown'!L632=0,\"\",'4 - Species Breakdown'!L632)","v":""},{"$f":"IF('4 - Species Breakdown'!M632=0,\"\",'4 - Species Breakdown'!M632)","v":""},{"$f":"IF('4 - Species Breakdown'!N632=0,\"\",'4 - Species Breakdown'!N632)","v":""},{"$f":"IFERROR(('4 - Species Breakdown'!J632/'WCC Summary'!$D$14)*100,\"\")","v":""},{"$f":"IF('4 - Species Breakdown'!J632=0,\"\",'4 - Species Breakdown'!J632)","v":""}]
[null,{"$f":"IF('4 - Species Breakdown'!B633=0,\"\",'4 - Species Breakdown'!B633)","v":""},{"$f":"IF('4 - Species Breakdown'!D633=0,\"\",'4 - Species Breakdown'!D633)","v":""},{"$f":"IF('4 - Species Breakdown'!L633=0,\"\",'4 - Species Breakdown'!L633)","v":""},{"$f":"IF('4 - Species Breakdown'!M633=0,\"\",'4 - Species Breakdown'!M633)","v":""},{"$f":"IF('4 - Species Breakdown'!N633=0,\"\",'4 - Species Breakdown'!N633)","v":""},{"$f":"IFERROR(('4 - Species Breakdown'!J633/'WCC Summary'!$D$14)*100,\"\")","v":""},{"$f":"IF('4 - Species Breakdown'!J633=0,\"\",'4 - Species Breakdown'!J633)","v":""}]
[null,{"$f":"IF('4 - Species Breakdown'!B634=0,\"\",'4 - Species Breakdown'!B634)","v":""},{"$f":"IF('4 - Species Breakdown'!D634=0,\"\",'4 - Species Breakdown'!D634)","v":""},{"$f":"IF('4 - Species Breakdown'!L634=0,\"\",'4 - Species Breakdown'!L634)","v":""},{"$f":"IF('4 - Species Breakdown'!M634=0,\"\",'4 - Species Breakdown'!M634)","v":""},{"$f":"IF('4 - Species Breakdown'!N634=0,\"\",'4 - Species Breakdown'!N634)","v":""},{"$f":"IFERROR(('4 - Species Breakdown'!J634/'WCC Summary'!$D$14)*100,\"\")","v":""},{"$f":"IF('4 - Species Breakdown'!J634=0,\"\",'4 - Species Breakdown'!J634)","v":""}]
[null,{"$f":"IF('4 - Species Breakdown'!B635=0,\"\",'4 - Species Breakdown'!B635)","v":""},{"$f":"IF('4 - Species Breakdown'!D635=0,\"\",'4 - Species Breakdown'!D635)","v":""},{"$f":"IF('4 - Species Breakdown'!L635=0,\"\",'4 - Species Breakdown'!L635)","v":""},{"$f":"IF('4 - Species Breakdown'!M635=0,\"\",'4 - Species Breakdown'!M635)","v":""},{"$f":"IF('4 - Species Breakdown'!N635=0,\"\",'4 - Species Breakdown'!N635)","v":""},{"$f":"IFERROR(('4 - Species Breakdown'!J635/'WCC Summary'!$D$14)*100,\"\")","v":""},{"$f":"IF('4 - Species Breakdown'!J635=0,\"\",'4 - Species Breakdown'!J635)","v":""}]
[null,{"$f":"IF('4 - Species Breakdown'!B636=0,\"\",'4 - Species Breakdown'!B636)","v":""},{"$f":"IF('4 - Species Breakdown'!D636=0,\"\",'4 - Species Breakdown'!D636)","v":""},{"$f":"IF('4 - Species Breakdown'!L636=0,\"\",'4 - Species Breakdown'!L636)","v":""},{"$f":"IF('4 - Species Breakdown'!M636=0,\"\",'4 - Species Breakdown'!M636)","v":""},{"$f":"IF('4 - Species Breakdown'!N636=0,\"\",'4 - Species Breakdown'!N636)","v":""},{"$f":"IFERROR(('4 - Species Breakdown'!J636/'WCC Summary'!$D$14)*100,\"\")","v":""},{"$f":"IF('4 - Species Breakdown'!J636=0,\"\",'4 - Species Breakdown'!J636)","v":""}]
[null,{"$f":"IF('4 - Species Breakdown'!B637=0,\"\",'4 - Species Breakdown'!B637)","v":""},{"$f":"IF('4 - Species Breakdown'!D637=0,\"\",'4 - Species Breakdown'!D637)","v":""},{"$f":"IF('4 - Species Breakdown'!L637=0,\"\",'4 - Species Breakdown'!L637)","v":""},{"$f":"IF('4 - Species Breakdown'!M637=0,\"\",'4 - Species Breakdown'!M637)","v":""},{"$f":"IF('4 - Species Breakdown'!N637=0,\"\",'4 - Species Breakdown'!N637)","v":""},{"$f":"IFERROR(('4 - Species Breakdown'!J637/'WCC Summary'!$D$14)*100,\"\")","v":""},{"$f":"IF('4 - Species Breakdown'!J637=0,\"\",'4 - Species Breakdown'!J637)","v":""}]
[null,{"$f":"IF('4 - Species Breakdown'!B638=0,\"\",'4 - Species Breakdown'!B638)","v":""},{"$f":"IF('4 - Species Breakdown'!D638=0,\"\",'4 - Species Breakdown'!D638)","v":""},{"$f":"IF('4 - Species Breakdown'!L638=0,\"\",'4 - Species Breakdown'!L638)","v":""},{"$f":"IF('4 - Species Breakdown'!M638=0,\"\",'4 - Species Breakdown'!M638)","v":""},{"$f":"IF('4 - Species Breakdown'!N638=0,\"\",'4 - Species Breakdown'!N638)","v":""},{"$f":"IFERROR(('4 - Species Breakdown'!J638/'WCC Summary'!$D$14)*100,\"\")","v":""},{"$f":"IF('4 - Species Breakdown'!J638=0,\"\",'4 - Species Breakdown'!J638)","v":""}]
[null,{"$f":"IF('4 - Species Breakdown'!B639=0,\"\",'4 - Species Breakdown'!B639)","v":""},{"$f":"IF('4 - Species Breakdown'!D639=0,\"\",'4 - Species Breakdown'!D639)","v":""},{"$f":"IF('4 - Species Breakdown'!L639=0,\"\",'4 - Species Breakdown'!L639)","v":""},{"$f":"IF('4 - Species Breakdown'!M639=0,\"\",'4 - Species Breakdown'!M639)","v":""},{"$f":"IF('4 - Species Breakdown'!N639=0,\"\",'4 - Species Breakdown'!N639)","v":""},{"$f":"IFERROR(('4 - Species Breakdown'!J639/'WCC Summary'!$D$14)*100,\"\")","v":""},{"$f":"IF('4 - Species Breakdown'!J639=0,\"\",'4 - Species Breakdown'!J639)","v":""}]
[null,{"$f":"IF('4 - Species Breakdown'!B640=0,\"\",'4 - Species Breakdown'!B640)","v":""},{"$f":"IF('4 - Species Breakdown'!D640=0,\"\",'4 - Species Breakdown'!D640)","v":""},{"$f":"IF('4 - Species Breakdown'!L640=0,\"\",'4 - Species Breakdown'!L640)","v":""},{"$f":"IF('4 - Species Breakdown'!M640=0,\"\",'4 - Species Breakdown'!M640)","v":""},{"$f":"IF('4 - Species Breakdown'!N640=0,\"\",'4 - Species Breakdown'!N640)","v":""},{"$f":"IFERROR(('4 - Species Breakdown'!J640/'WCC Summary'!$D$14)*100,\"\")","v":""},{"$f":"IF('4 - Species Breakdown'!J640=0,\"\",'4 - Species Breakdown'!J640)","v":""}]
[null,{"$f":"IF('4 - Species Breakdown'!B641=0,\"\",'4 - Species Breakdown'!B641)","v":""},{"$f":"IF('4 - Species Breakdown'!D641=0,\"\",'4 - Species Breakdown'!D641)","v":""},{"$f":"IF('4 - Species Breakdown'!L641=0,\"\",'4 - Species Breakdown'!L641)","v":""},{"$f":"IF('4 - Species Breakdown'!M641=0,\"\",'4 - Species Breakdown'!M641)","v":""},{"$f":"IF('4 - Species Breakdown'!N641=0,\"\",'4 - Species Breakdown'!N641)","v":""},{"$f":"IFERROR(('4 - Species Breakdown'!J641/'WCC Summary'!$D$14)*100,\"\")","v":""},{"$f":"IF('4 - Species Breakdown'!J641=0,\"\",'4 - Species Breakdown'!J641)","v":""}]
[null,{"$f":"IF('4 - Species Breakdown'!B642=0,\"\",'4 - Species Breakdown'!B642)","v":""},{"$f":"IF('4 - Species Breakdown'!D642=0,\"\",'4 - Species Breakdown'!D642)","v":""},{"$f":"IF('4 - Species Breakdown'!L642=0,\"\",'4 - Species Breakdown'!L642)","v":""},{"$f":"IF('4 - Species Breakdown'!M642=0,\"\",'4 - Species Breakdown'!M642)","v":""},{"$f":"IF('4 - Species Breakdown'!N642=0,\"\",'4 - Species Breakdown'!N642)","v":""},{"$f":"IFERROR(('4 - Species Breakdown'!J642/'WCC Summary'!$D$14)*100,\"\")","v":""},{"$f":"IF('4 - Species Breakdown'!J642=0,\"\",'4 - Species Breakdown'!J642)","v":""}]
[null,{"$f":"IF('4 - Species Breakdown'!B643=0,\"\",'4 - Species Breakdown'!B643)","v":""},{"$f":"IF('4 - Species Breakdown'!D643=0,\"\",'4 - Species Breakdown'!D643)","v":""},{"$f":"IF('4 - Species Breakdown'!L643=0,\"\",'4 - Species Breakdown'!L643)","v":""},{"$f":"IF('4 - Species Breakdown'!M643=0,\"\",'4 - Species Breakdown'!M643)","v":""},{"$f":"IF('4 - Species Breakdown'!N643=0,\"\",'4 - Species Breakdown'!N643)","v":""},{"$f":"IFERROR(('4 - Species Breakdown'!J643/'WCC Summary'!$D$14)*100,\"\")","v":""},{"$f":"IF('4 - Species Breakdown'!J643=0,\"\",'4 - Species Breakdown'!J643)","v":""}]
[null,{"$f":"IF('4 - Species Breakdown'!B644=0,\"\",'4 - Species Breakdown'!B644)","v":""},{"$f":"IF('4 - Species Breakdown'!D644=0,\"\",'4 - Species Breakdown'!D644)","v":""},{"$f":"IF('4 - Species Breakdown'!L644=0,\"\",'4 - Species Breakdown'!L644)","v":""},{"$f":"IF('4 - Species Breakdown'!M644=0,\"\",'4 - Species Breakdown'!M644)","v":""},{"$f":"IF('4 - Species Breakdown'!N644=0,\"\",'4 - Species Breakdown'!N644)","v":""},{"$f":"IFERROR(('4 - Species Breakdown'!J644/'WCC Summary'!$D$14)*100,\"\")","v":""},{"$f":"IF('4 - Species Breakdown'!J644=0,\"\",'4 - Species Breakdown'!J644)","v":""}]
[null,{"$f":"IF('4 - Species Breakdown'!B645=0,\"\",'4 - Species Breakdown'!B645)","v":""},{"$f":"IF('4 - Species Breakdown'!D645=0,\"\",'4 - Species Breakdown'!D645)","v":""},{"$f":"IF('4 - Species Breakdown'!L645=0,\"\",'4 - Species Breakdown'!L645)","v":""},{"$f":"IF('4 - Species Breakdown'!M645=0,\"\",'4 - Species Breakdown'!M645)","v":""},{"$f":"IF('4 - Species Breakdown'!N645=0,\"\",'4 - Species Breakdown'!N645)","v":""},{"$f":"IFERROR(('4 - Species Breakdown'!J645/'WCC Summary'!$D$14)*100,\"\")","v":""},{"$f":"IF('4 - Species Breakdown'!J645=0,\"\",'4 - Species Breakdown'!J645)","v":""}]
[null,{"$f":"IF('4 - Species Breakdown'!B646=0,\"\",'4 - Species Breakdown'!B646)","v":""},{"$f":"IF('4 - Species Breakdown'!D646=0,\"\",'4 - Species Breakdown'!D646)","v":""},{"$f":"IF('4 - Species Breakdown'!L646=0,\"\",'4 - Species Breakdown'!L646)","v":""},{"$f":"IF('4 - Species Breakdown'!M646=0,\"\",'4 - Species Breakdown'!M646)","v":""},{"$f":"IF('4 - Species Breakdown'!N646=0,\"\",'4 - Species Breakdown'!N646)","v":""},{"$f":"IFERROR(('4 - Species Breakdown'!J646/'WCC Summary'!$D$14)*100,\"\")","v":""},{"$f":"IF('4 - Species Breakdown'!J646=0,\"\",'4 - Species Breakdown'!J646)","v":""}]
[null,{"$f":"IF('4 - Species Breakdown'!B647=0,\"\",'4 - Species Breakdown'!B647)","v":""},{"$f":"IF('4 - Species Breakdown'!D647=0,\"\",'4 - Species Breakdown'!D647)","v":""},{"$f":"IF('4 - Species Breakdown'!L647=0,\"\",'4 - Species Breakdown'!L647)","v":""},{"$f":"IF('4 - Species Breakdown'!M647=0,\"\",'4 - Species Breakdown'!M647)","v":""},{"$f":"IF('4 - Species Breakdown'!N647=0,\"\",'4 - Species Breakdown'!N647)","v":""},{"$f":"IFERROR(('4 - Species Breakdown'!J647/'WCC Summary'!$D$14)*100,\"\")","v":""},{"$f":"IF('4 - Species Breakdown'!J647=0,\"\",'4 - Species Breakdown'!J647)","v":""}]
[null,{"$f":"IF('4 - Species Breakdown'!B648=0,\"\",'4 - Species Breakdown'!B648)","v":""},{"$f":"IF('4 - Species Breakdown'!D648=0,\"\",'4 - Species Breakdown'!D648)","v":""},{"$f":"IF('4 - Species Breakdown'!L648=0,\"\",'4 - Species Breakdown'!L648)","v":""},{"$f":"IF('4 - Species Breakdown'!M648=0,\"\",'4 - Species Breakdown'!M648)","v":""},{"$f":"IF('4 - Species Breakdown'!N648=0,\"\",'4 - Species Breakdown'!N648)","v":""},{"$f":"IFERROR(('4 - Species Breakdown'!J648/'WCC Summary'!$D$14)*100,\"\")","v":""},{"$f":"IF('4 - Species Breakdown'!J648=0,\"\",'4 - Species Breakdown'!J648)","v":""}]
[null,{"$f":"IF('4 - Species Breakdown'!B649=0,\"\",'4 - Species Breakdown'!B649)","v":""},{"$f":"IF('4 - Species Breakdown'!D649=0,\"\",'4 - Species Breakdown'!D649)","v":""},{"$f":"IF('4 - Species Breakdown'!L649=0,\"\",'4 - Species Breakdown'!L649)","v":""},{"$f":"IF('4 - Species Breakdown'!M649=0,\"\",'4 - Species Breakdown'!M649)","v":""},{"$f":"IF('4 - Species Breakdown'!N649=0,\"\",'4 - Species Breakdown'!N649)","v":""},{"$f":"IFERROR(('4 - Species Breakdown'!J649/'WCC Summary'!$D$14)*100,\"\")","v":""},{"$f":"IF('4 - Species Breakdown'!J649=0,\"\",'4 - Species Breakdown'!J649)","v":""}]
[null,{"$f":"IF('4 - Species Breakdown'!B650=0,\"\",'4 - Species Breakdown'!B650)","v":""},{"$f":"IF('4 - Species Breakdown'!D650=0,\"\",'4 - Species Breakdown'!D650)","v":""},{"$f":"IF('4 - Species Breakdown'!L650=0,\"\",'4 - Species Breakdown'!L650)","v":""},{"$f":"IF('4 - Species Breakdown'!M650=0,\"\",'4 - Species Breakdown'!M650)","v":""},{"$f":"IF('4 - Species Breakdown'!N650=0,\"\",'4 - Species Breakdown'!N650)","v":""},{"$f":"IFERROR(('4 - Species Breakdown'!J650/'WCC Summary'!$D$14)*100,\"\")","v":""},{"$f":"IF('4 - Species Breakdown'!J650=0,\"\",'4 - Species Breakdown'!J650)","v":""}]
[null,{"$f":"IF('4 - Species Breakdown'!B651=0,\"\",'4 - Species Breakdown'!B651)","v":""},{"$f":"IF('4 - Species Breakdown'!D651=0,\"\",'4 - Species Breakdown'!D651)","v":""},{"$f":"IF('4 - Species Breakdown'!L651=0,\"\",'4 - Species Breakdown'!L651)","v":""},{"$f":"IF('4 - Species Breakdown'!M651=0,\"\",'4 - Species Breakdown'!M651)","v":""},{"$f":"IF('4 - Species Breakdown'!N651=0,\"\",'4 - Species Breakdown'!N651)","v":""},{"$f":"IFERROR(('4 - Species Breakdown'!J651/'WCC Summary'!$D$14)*100,\"\")","v":""},{"$f":"IF('4 - Species Breakdown'!J651=0,\"\",'4 - Species Breakdown'!J651)","v":""}]
[null,{"$f":"IF('4 - Species Breakdown'!B652=0,\"\",'4 - Species Breakdown'!B652)","v":""},{"$f":"IF('4 - Species Breakdown'!D652=0,\"\",'4 - Species Breakdown'!D652)","v":""},{"$f":"IF('4 - Species Breakdown'!L652=0,\"\",'4 - Species Breakdown'!L652)","v":""},{"$f":"IF('4 - Species Breakdown'!M652=0,\"\",'4 - Species Breakdown'!M652)","v":""},{"$f":"IF('4 - Species Breakdown'!N652=0,\"\",'4 - Species Breakdown'!N652)","v":""},{"$f":"IFERROR(('4 - Species Breakdown'!J652/'WCC Summary'!$D$14)*100,\"\")","v":""},{"$f":"IF('4 - Species Breakdown'!J652=0,\"\",'4 - Species Breakdown'!J652)","v":""}]
[null,{"$f":"IF('4 - Species Breakdown'!B653=0,\"\",'4 - Species Breakdown'!B653)","v":""},{"$f":"IF('4 - Species Breakdown'!D653=0,\"\",'4 - Species Breakdown'!D653)","v":""},{"$f":"IF('4 - Species Breakdown'!L653=0,\"\",'4 - Species Breakdown'!L653)","v":""},{"$f":"IF('4 - Species Breakdown'!M653=0,\"\",'4 - Species Breakdown'!M653)","v":""},{"$f":"IF('4 - Species Breakdown'!N653=0,\"\",'4 - Species Breakdown'!N653)","v":""},{"$f":"IFERROR(('4 - Species Breakdown'!J653/'WCC Summary'!$D$14)*100,\"\")","v":""},{"$f":"IF('4 - Species Breakdown'!J653=0,\"\",'4 - Species Breakdown'!J653)","v":""}]
[null,{"$f":"IF('4 - Species Breakdown'!B654=0,\"\",'4 - Species Breakdown'!B654)","v":""},{"$f":"IF('4 - Species Breakdown'!D654=0,\"\",'4 - Species Breakdown'!D654)","v":""},{"$f":"IF('4 - Species Breakdown'!L654=0,\"\",'4 - Species Breakdown'!L654)","v":""},{"$f":"IF('4 - Species Breakdown'!M654=0,\"\",'4 - Species Breakdown'!M654)","v":""},{"$f":"IF('4 - Species Breakdown'!N654=0,\"\",'4 - Species Breakdown'!N654)","v":""},{"$f":"IFERROR(('4 - Species Breakdown'!J654/'WCC Summary'!$D$14)*100,\"\")","v":""},{"$f":"IF('4 - Species Breakdown'!J654=0,\"\",'4 - Species Breakdown'!J654)","v":""}]
[null,{"$f":"IF('4 - Species Breakdown'!B655=0,\"\",'4 - Species Breakdown'!B655)","v":""},{"$f":"IF('4 - Species Breakdown'!D655=0,\"\",'4 - Species Breakdown'!D655)","v":""},{"$f":"IF('4 - Species Breakdown'!L655=0,\"\",'4 - Species Breakdown'!L655)","v":""},{"$f":"IF('4 - Species Breakdown'!M655=0,\"\",'4 - Species Breakdown'!M655)","v":""},{"$f":"IF('4 - Species Breakdown'!N655=0,\"\",'4 - Species Breakdown'!N655)","v":""},{"$f":"IFERROR(('4 - Species Breakdown'!J655/'WCC Summary'!$D$14)*100,\"\")","v":""},{"$f":"IF('4 - Species Breakdown'!J655=0,\"\",'4 - Species Breakdown'!J655)","v":""}]
[null,{"$f":"IF('4 - Species Breakdown'!B656=0,\"\",'4 - Species Breakdown'!B656)","v":""},{"$f":"IF('4 - Species Breakdown'!D656=0,\"\",'4 - Species Breakdown'!D656)","v":""},{"$f":"IF('4 - Species Breakdown'!L656=0,\"\",'4 - Species Breakdown'!L656)","v":""},{"$f":"IF('4 - Species Breakdown'!M656=0,\"\",'4 - Species Breakdown'!M656)","v":""},{"$f":"IF('4 - Species Breakdown'!N656=0,\"\",'4 - Species Breakdown'!N656)","v":""},{"$f":"IFERROR(('4 - Species Breakdown'!J656/'WCC Summary'!$D$14)*100,\"\")","v":""},{"$f":"IF('4 - Species Breakdown'!J656=0,\"\",'4 - Species Breakdown'!J656)","v":""}]
[null,{"$f":"IF('4 - Species Breakdown'!B657=0,\"\",'4 - Species Breakdown'!B657)","v":""},{"$f":"IF('4 - Species Breakdown'!D657=0,\"\",'4 - Species Breakdown'!D657)","v":""},{"$f":"IF('4 - Species Breakdown'!L657=0,\"\",'4 - Species Breakdown'!L657)","v":""},{"$f":"IF('4 - Species Breakdown'!M657=0,\"\",'4 - Species Breakdown'!M657)","v":""},{"$f":"IF('4 - Species Breakdown'!N657=0,\"\",'4 - Species Breakdown'!N657)","v":""},{"$f":"IFERROR(('4 - Species Breakdown'!J657/'WCC Summary'!$D$14)*100,\"\")","v":""},{"$f":"IF('4 - Species Breakdown'!J657=0,\"\",'4 - Species Breakdown'!J657)","v":""}]
[null,{"$f":"IF('4 - Species Breakdown'!B658=0,\"\",'4 - Species Breakdown'!B658)","v":""},{"$f":"IF('4 - Species Breakdown'!D658=0,\"\",'4 - Species Breakdown'!D658)","v":""},{"$f":"IF('4 - Species Breakdown'!L658=0,\"\",'4 - Species Breakdown'!L658)","v":""},{"$f":"IF('4 - Species Breakdown'!M658=0,\"\",'4 - Species Breakdown'!M658)","v":""},{"$f":"IF('4 - Species Breakdown'!N658=0,\"\",'4 - Species Breakdown'!N658)","v":""},{"$f":"IFERROR(('4 - Species Breakdown'!J658/'WCC Summary'!$D$14)*100,\"\")","v":""},{"$f":"IF('4 - Species Breakdown'!J658=0,\"\",'4 - Species Breakdown'!J658)","v":""}]
[null,{"$f":"IF('4 - Species Breakdown'!B659=0,\"\",'4 - Species Breakdown'!B659)","v":""},{"$f":"IF('4 - Species Breakdown'!D659=0,\"\",'4 - Species Breakdown'!D659)","v":""},{"$f":"IF('4 - Species Breakdown'!L659=0,\"\",'4 - Species Breakdown'!L659)","v":""},{"$f":"IF('4 - Species Breakdown'!M659=0,\"\",'4 - Species Breakdown'!M659)","v":""},{"$f":"IF('4 - Species Breakdown'!N659=0,\"\",'4 - Species Breakdown'!N659)","v":""},{"$f":"IFERROR(('4 - Species Breakdown'!J659/'WCC Summary'!$D$14)*100,\"\")","v":""},{"$f":"IF('4 - Species Breakdown'!J659=0,\"\",'4 - Species Breakdown'!J659)","v":""}]
[null,{"$f":"IF('4 - Species Breakdown'!B660=0,\"\",'4 - Species Breakdown'!B660)","v":""},{"$f":"IF('4 - Species Breakdown'!D660=0,\"\",'4 - Species Breakdown'!D660)","v":""},{"$f":"IF('4 - Species Breakdown'!L660=0,\"\",'4 - Species Breakdown'!L660)","v":""},{"$f":"IF('4 - Species Breakdown'!M660=0,\"\",'4 - Species Breakdown'!M660)","v":""},{"$f":"IF('4 - Species Breakdown'!N660=0,\"\",'4 - Species Breakdown'!N660)","v":""},{"$f":"IFERROR(('4 - Species Breakdown'!J660/'WCC Summary'!$D$14)*100,\"\")","v":""},{"$f":"IF('4 - Species Breakdown'!J660=0,\"\",'4 - Species Breakdown'!J660)","v":""}]
[null,{"$f":"IF('4 - Species Breakdown'!B661=0,\"\",'4 - Species Breakdown'!B661)","v":""},{"$f":"IF('4 - Species Breakdown'!D661=0,\"\",'4 - Species Breakdown'!D661)","v":""},{"$f":"IF('4 - Species Breakdown'!L661=0,\"\",'4 - Species Breakdown'!L661)","v":""},{"$f":"IF('4 - Species Breakdown'!M661=0,\"\",'4 - Species Breakdown'!M661)","v":""},{"$f":"IF('4 - Species Breakdown'!N661=0,\"\",'4 - Species Breakdown'!N661)","v":""},{"$f":"IFERROR(('4 - Species Breakdown'!J661/'WCC Summary'!$D$14)*100,\"\")","v":""},{"$f":"IF('4 - Species Breakdown'!J661=0,\"\",'4 - Species Breakdown'!J661)","v":""}]
[null,{"$f":"IF('4 - Species Breakdown'!B662=0,\"\",'4 - Species Breakdown'!B662)","v":""},{"$f":"IF('4 - Species Breakdown'!D662=0,\"\",'4 - Species Breakdown'!D662)","v":""},{"$f":"IF('4 - Species Breakdown'!L662=0,\"\",'4 - Species Breakdown'!L662)","v":""},{"$f":"IF('4 - Species Breakdown'!M662=0,\"\",'4 - Species Breakdown'!M662)","v":""},{"$f":"IF('4 - Species Breakdown'!N662=0,\"\",'4 - Species Breakdown'!N662)","v":""},{"$f":"IFERROR(('4 - Species Breakdown'!J662/'WCC Summary'!$D$14)*100,\"\")","v":""},{"$f":"IF('4 - Species Breakdown'!J662=0,\"\",'4 - Species Breakdown'!J662)","v":""}]
[null,{"$f":"IF('4 - Species Breakdown'!B663=0,\"\",'4 - Species Breakdown'!B663)","v":""},{"$f":"IF('4 - Species Breakdown'!D663=0,\"\",'4 - Species Breakdown'!D663)","v":""},{"$f":"IF('4 - Species Breakdown'!L663=0,\"\",'4 - Species Breakdown'!L663)","v":""},{"$f":"IF('4 - Species Breakdown'!M663=0,\"\",'4 - Species Breakdown'!M663)","v":""},{"$f":"IF('4 - Species Breakdown'!N663=0,\"\",'4 - Species Breakdown'!N663)","v":""},{"$f":"IFERROR(('4 - Species Breakdown'!J663/'WCC Summary'!$D$14)*100,\"\")","v":""},{"$f":"IF('4 - Species Breakdown'!J663=0,\"\",'4 - Species Breakdown'!J663)","v":""}]
[null,{"$f":"IF('4 - Species Breakdown'!B664=0,\"\",'4 - Species Breakdown'!B664)","v":""},{"$f":"IF('4 - Species Breakdown'!D664=0,\"\",'4 - Species Breakdown'!D664)","v":""},{"$f":"IF('4 - Species Breakdown'!L664=0,\"\",'4 - Species Breakdown'!L664)","v":""},{"$f":"IF('4 - Species Breakdown'!M664=0,\"\",'4 - Species Breakdown'!M664)","v":""},{"$f":"IF('4 - Species Breakdown'!N664=0,\"\",'4 - Species Breakdown'!N664)","v":""},{"$f":"IFERROR(('4 - Species Breakdown'!J664/'WCC Summary'!$D$14)*100,\"\")","v":""},{"$f":"IF('4 - Species Breakdown'!J664=0,\"\",'4 - Species Breakdown'!J664)","v":""}]
[null,{"$f":"IF('4 - Species Breakdown'!B665=0,\"\",'4 - Species Breakdown'!B665)","v":""},{"$f":"IF('4 - Species Breakdown'!D665=0,\"\",'4 - Species Breakdown'!D665)","v":""},{"$f":"IF('4 - Species Breakdown'!L665=0,\"\",'4 - Species Breakdown'!L665)","v":""},{"$f":"IF('4 - Species Breakdown'!M665=0,\"\",'4 - Species Breakdown'!M665)","v":""},{"$f":"IF('4 - Species Breakdown'!N665=0,\"\",'4 - Species Breakdown'!N665)","v":""},{"$f":"IFERROR(('4 - Species Breakdown'!J665/'WCC Summary'!$D$14)*100,\"\")","v":""},{"$f":"IF('4 - Species Breakdown'!J665=0,\"\",'4 - Species Breakdown'!J665)","v":""}]
[null,{"$f":"IF('4 - Species Breakdown'!B666=0,\"\",'4 - Species Breakdown'!B666)","v":""},{"$f":"IF('4 - Species Breakdown'!D666=0,\"\",'4 - Species Breakdown'!D666)","v":""},{"$f":"IF('4 - Species Breakdown'!L666=0,\"\",'4 - Species Breakdown'!L666)","v":""},{"$f":"IF('4 - Species Breakdown'!M666=0,\"\",'4 - Species Breakdown'!M666)","v":""},{"$f":"IF('4 - Species Breakdown'!N666=0,\"\",'4 - Species Breakdown'!N666)","v":""},{"$f":"IFERROR(('4 - Species Breakdown'!J666/'WCC Summary'!$D$14)*100,\"\")","v":""},{"$f":"IF('4 - Species Breakdown'!J666=0,\"\",'4 - Species Breakdown'!J666)","v":""}]
[null,{"$f":"IF('4 - Species Breakdown'!B667=0,\"\",'4 - Species Breakdown'!B667)","v":""},{"$f":"IF('4 - Species Breakdown'!D667=0,\"\",'4 - Species Breakdown'!D667)","v":""},{"$f":"IF('4 - Species Breakdown'!L667=0,\"\",'4 - Species Breakdown'!L667)","v":""},{"$f":"IF('4 - Species Breakdown'!M667=0,\"\",'4 - Species Breakdown'!M667)","v":""},{"$f":"IF('4 - Species Breakdown'!N667=0,\"\",'4 - Species Breakdown'!N667)","v":""},{"$f":"IFERROR(('4 - Species Breakdown'!J667/'WCC Summary'!$D$14)*100,\"\")","v":""},{"$f":"IF('4 - Species Breakdown'!J667=0,\"\",'4 - Species Breakdown'!J667)","v":""}]
[null,{"$f":"IF('4 - Species Breakdown'!B668=0,\"\",'4 - Species Breakdown'!B668)","v":""},{"$f":"IF('4 - Species Breakdown'!D668=0,\"\",'4 - Species Breakdown'!D668)","v":""},{"$f":"IF('4 - Species Breakdown'!L668=0,\"\",'4 - Species Breakdown'!L668)","v":""},{"$f":"IF('4 - Species Breakdown'!M668=0,\"\",'4 - Species Breakdown'!M668)","v":""},{"$f":"IF('4 - Species Breakdown'!N668=0,\"\",'4 - Species Breakdown'!N668)","v":""},{"$f":"IFERROR(('4 - Species Breakdown'!J668/'WCC Summary'!$D$14)*100,\"\")","v":""},{"$f":"IF('4 - Species Breakdown'!J668=0,\"\",'4 - Species Breakdown'!J668)","v":""}]
[null,{"$f":"IF('4 - Species Breakdown'!B669=0,\"\",'4 - Species Breakdown'!B669)","v":""},{"$f":"IF('4 - Species Breakdown'!D669=0,\"\",'4 - Species Breakdown'!D669)","v":""},{"$f":"IF('4 - Species Breakdown'!L669=0,\"\",'4 - Species Breakdown'!L669)","v":""},{"$f":"IF('4 - Species Breakdown'!M669=0,\"\",'4 - Species Breakdown'!M669)","v":""},{"$f":"IF('4 - Species Breakdown'!N669=0,\"\",'4 - Species Breakdown'!N669)","v":""},{"$f":"IFERROR(('4 - Species Breakdown'!J669/'WCC Summary'!$D$14)*100,\"\")","v":""},{"$f":"IF('4 - Species Breakdown'!J669=0,\"\",'4 - Species Breakdown'!J669)","v":""}]
[null,{"$f":"IF('4 - Species Breakdown'!B670=0,\"\",'4 - Species Breakdown'!B670)","v":""},{"$f":"IF('4 - Species Breakdown'!D670=0,\"\",'4 - Species Breakdown'!D670)","v":""},{"$f":"IF('4 - Species Breakdown'!L670=0,\"\",'4 - Species Breakdown'!L670)","v":""},{"$f":"IF('4 - Species Breakdown'!M670=0,\"\",'4 - Species Breakdown'!M670)","v":""},{"$f":"IF('4 - Species Breakdown'!N670=0,\"\",'4 - Species Breakdown'!N670)","v":""},{"$f":"IFERROR(('4 - Species Breakdown'!J670/'WCC Summary'!$D$14)*100,\"\")","v":""},{"$f":"IF('4 - Species Breakdown'!J670=0,\"\",'4 - Species Breakdown'!J670)","v":""}]
[null,{"$f":"IF('4 - Species Breakdown'!B671=0,\"\",'4 - Species Breakdown'!B671)","v":""},{"$f":"IF('4 - Species Breakdown'!D671=0,\"\",'4 - Species Breakdown'!D671)","v":""},{"$f":"IF('4 - Species Breakdown'!L671=0,\"\",'4 - Species Breakdown'!L671)","v":""},{"$f":"IF('4 - Species Breakdown'!M671=0,\"\",'4 - Species Breakdown'!M671)","v":""},{"$f":"IF('4 - Species Breakdown'!N671=0,\"\",'4 - Species Breakdown'!N671)","v":""},{"$f":"IFERROR(('4 - Species Breakdown'!J671/'WCC Summary'!$D$14)*100,\"\")","v":""},{"$f":"IF('4 - Species Breakdown'!J671=0,\"\",'4 - Species Breakdown'!J671)","v":""}]
[null,{"$f":"IF('4 - Species Breakdown'!B672=0,\"\",'4 - Species Breakdown'!B672)","v":""},{"$f":"IF('4 - Species Breakdown'!D672=0,\"\",'4 - Species Breakdown'!D672)","v":""},{"$f":"IF('4 - Species Breakdown'!L672=0,\"\",'4 - Species Breakdown'!L672)","v":""},{"$f":"IF('4 - Species Breakdown'!M672=0,\"\",'4 - Species Breakdown'!M672)","v":""},{"$f":"IF('4 - Species Breakdown'!N672=0,\"\",'4 - Species Breakdown'!N672)","v":""},{"$f":"IFERROR(('4 - Species Breakdown'!J672/'WCC Summary'!$D$14)*100,\"\")","v":""},{"$f":"IF('4 - Species Breakdown'!J672=0,\"\",'4 - Species Breakdown'!J672)","v":""}]
[null,{"$f":"IF('4 - Species Breakdown'!B673=0,\"\",'4 - Species Breakdown'!B673)","v":""},{"$f":"IF('4 - Species Breakdown'!D673=0,\"\",'4 - Species Breakdown'!D673)","v":""},{"$f":"IF('4 - Species Breakdown'!L673=0,\"\",'4 - Species Breakdown'!L673)","v":""},{"$f":"IF('4 - Species Breakdown'!M673=0,\"\",'4 - Species Breakdown'!M673)","v":""},{"$f":"IF('4 - Species Breakdown'!N673=0,\"\",'4 - Species Breakdown'!N673)","v":""},{"$f":"IFERROR(('4 - Species Breakdown'!J673/'WCC Summary'!$D$14)*100,\"\")","v":""},{"$f":"IF('4 - Species Breakdown'!J673=0,\"\",'4 - Species Breakdown'!J673)","v":""}]
[null,{"$f":"IF('4 - Species Breakdown'!B674=0,\"\",'4 - Species Breakdown'!B674)","v":""},{"$f":"IF('4 - Species Breakdown'!D674=0,\"\",'4 - Species Breakdown'!D674)","v":""},{"$f":"IF('4 - Species Breakdown'!L674=0,\"\",'4 - Species Breakdown'!L674)","v":""},{"$f":"IF('4 - Species Breakdown'!M674=0,\"\",'4 - Species Breakdown'!M674)","v":""},{"$f":"IF('4 - Species Breakdown'!N674=0,\"\",'4 - Species Breakdown'!N674)","v":""},{"$f":"IFERROR(('4 - Species Breakdown'!J674/'WCC Summary'!$D$14)*100,\"\")","v":""},{"$f":"IF('4 - Species Breakdown'!J674=0,\"\",'4 - Species Breakdown'!J674)","v":""}]
[null,{"$f":"IF('4 - Species Breakdown'!B675=0,\"\",'4 - Species Breakdown'!B675)","v":""},{"$f":"IF('4 - Species Breakdown'!D675=0,\"\",'4 - Species Breakdown'!D675)","v":""},{"$f":"IF('4 - Species Breakdown'!L675=0,\"\",'4 - Species Breakdown'!L675)","v":""},{"$f":"IF('4 - Species Breakdown'!M675=0,\"\",'4 - Species Breakdown'!M675)","v":""},{"$f":"IF('4 - Species Breakdown'!N675=0,\"\",'4 - Species Breakdown'!N675)","v":""},{"$f":"IFERROR(('4 - Species Breakdown'!J675/'WCC Summary'!$D$14)*100,\"\")","v":""},{"$f":"IF('4 - Species Breakdown'!J675=0,\"\",'4 - Species Breakdown'!J675)","v":""}]
[null,{"$f":"IF('4 - Species Breakdown'!B676=0,\"\",'4 - Species Breakdown'!B676)","v":""},{"$f":"IF('4 - Species Breakdown'!D676=0,\"\",'4 - Species Breakdown'!D676)","v":""},{"$f":"IF('4 - Species Breakdown'!L676=0,\"\",'4 - Species Breakdown'!L676)","v":""},{"$f":"IF('4 - Species Breakdown'!M676=0,\"\",'4 - Species Breakdown'!M676)","v":""},{"$f":"IF('4 - Species Breakdown'!N676=0,\"\",'4 - Species Breakdown'!N676)","v":""},{"$f":"IFERROR(('4 - Species Breakdown'!J676/'WCC Summary'!$D$14)*100,\"\")","v":""},{"$f":"IF('4 - Species Breakdown'!J676=0,\"\",'4 - Species Breakdown'!J676)","v":""}]
[null,{"$f":"IF('4 - Species Breakdown'!B677=0,\"\",'4 - Species Breakdown'!B677)","v":""},{"$f":"IF('4 - Species Breakdown'!D677=0,\"\",'4 - Species Breakdown'!D677)","v":""},{"$f":"IF('4 - Species Breakdown'!L677=0,\"\",'4 - Species Breakdown'!L677)","v":""},{"$f":"IF('4 - Species Breakdown'!M677=0,\"\",'4 - Species Breakdown'!M677)","v":""},{"$f":"IF('4 - Species Breakdown'!N677=0,\"\",'4 - Species Breakdown'!N677)","v":""},{"$f":"IFERROR(('4 - Species Breakdown'!J677/'WCC Summary'!$D$14)*100,\"\")","v":""},{"$f":"IF('4 - Species Breakdown'!J677=0,\"\",'4 - Species Breakdown'!J677)","v":""}]
[null,{"$f":"IF('4 - Species Breakdown'!B678=0,\"\",'4 - Species Breakdown'!B678)","v":""},{"$f":"IF('4 - Species Breakdown'!D678=0,\"\",'4 - Species Breakdown'!D678)","v":""},{"$f":"IF('4 - Species Breakdown'!L678=0,\"\",'4 - Species Breakdown'!L678)","v":""},{"$f":"IF('4 - Species Breakdown'!M678=0,\"\",'4 - Species Breakdown'!M678)","v":""},{"$f":"IF('4 - Species Breakdown'!N678=0,\"\",'4 - Species Breakdown'!N678)","v":""},{"$f":"IFERROR(('4 - Species Breakdown'!J678/'WCC Summary'!$D$14)*100,\"\")","v":""},{"$f":"IF('4 - Species Breakdown'!J678=0,\"\",'4 - Species Breakdown'!J678)","v":""}]
[null,{"$f":"IF('4 - Species Breakdown'!B679=0,\"\",'4 - Species Breakdown'!B679)","v":""},{"$f":"IF('4 - Species Breakdown'!D679=0,\"\",'4 - Species Breakdown'!D679)","v":""},{"$f":"IF('4 - Species Breakdown'!L679=0,\"\",'4 - Species Breakdown'!L679)","v":""},{"$f":"IF('4 - Species Breakdown'!M679=0,\"\",'4 - Species Breakdown'!M679)","v":""},{"$f":"IF('4 - Species Breakdown'!N679=0,\"\",'4 - Species Breakdown'!N679)","v":""},{"$f":"IFERROR(('4 - Species Breakdown'!J679/'WCC Summary'!$D$14)*100,\"\")","v":""},{"$f":"IF('4 - Species Breakdown'!J679=0,\"\",'4 - Species Breakdown'!J679)","v":""}]
[null,{"$f":"IF('4 - Species Breakdown'!B680=0,\"\",'4 - Species Breakdown'!B680)","v":""},{"$f":"IF('4 - Species Breakdown'!D680=0,\"\",'4 - Species Breakdown'!D680)","v":""},{"$f":"IF('4 - Species Breakdown'!L680=0,\"\",'4 - Species Breakdown'!L680)","v":""},{"$f":"IF('4 - Species Breakdown'!M680=0,\"\",'4 - Species Breakdown'!M680)","v":""},{"$f":"IF('4 - Species Breakdown'!N680=0,\"\",'4 - Species Breakdown'!N680)","v":""},{"$f":"IFERROR(('4 - Species Breakdown'!J680/'WCC Summary'!$D$14)*100,\"\")","v":""},{"$f":"IF('4 - Species Breakdown'!J680=0,\"\",'4 - Species Breakdown'!J680)","v":""}]
[null,{"$f":"IF('4 - Species Breakdown'!B681=0,\"\",'4 - Species Breakdown'!B681)","v":""},{"$f":"IF('4 - Species Breakdown'!D681=0,\"\",'4 - Species Breakdown'!D681)","v":""},{"$f":"IF('4 - Species Breakdown'!L681=0,\"\",'4 - Species Breakdown'!L681)","v":""},{"$f":"IF('4 - Species Breakdown'!M681=0,\"\",'4 - Species Breakdown'!M681)","v":""},{"$f":"IF('4 - Species Breakdown'!N681=0,\"\",'4 - Species Breakdown'!N681)","v":""},{"$f":"IFERROR(('4 - Species Breakdown'!J681/'WCC Summary'!$D$14)*100,\"\")","v":""},{"$f":"IF('4 - Species Breakdown'!J681=0,\"\",'4 - Species Breakdown'!J681)","v":""}]
[null,{"$f":"IF('4 - Species Breakdown'!B682=0,\"\",'4 - Species Breakdown'!B682)","v":""},{"$f":"IF('4 - Species Breakdown'!D682=0,\"\",'4 - Species Breakdown'!D682)","v":""},{"$f":"IF('4 - Species Breakdown'!L682=0,\"\",'4 - Species Breakdown'!L682)","v":""},{"$f":"IF('4 - Species Breakdown'!M682=0,\"\",'4 - Species Breakdown'!M682)","v":""},{"$f":"IF('4 - Species Breakdown'!N682=0,\"\",'4 - Species Breakdown'!N682)","v":""},{"$f":"IFERROR(('4 - Species Breakdown'!J682/'WCC Summary'!$D$14)*100,\"\")","v":""},{"$f":"IF('4 - Species Breakdown'!J682=0,\"\",'4 - Species Breakdown'!J682)","v":""}]
[null,{"$f":"IF('4 - Species Breakdown'!B683=0,\"\",'4 - Species Breakdown'!B683)","v":""},{"$f":"IF('4 - Species Breakdown'!D683=0,\"\",'4 - Species Breakdown'!D683)","v":""},{"$f":"IF('4 - Species Breakdown'!L683=0,\"\",'4 - Species Breakdown'!L683)","v":""},{"$f":"IF('4 - Species Breakdown'!M683=0,\"\",'4 - Species Breakdown'!M683)","v":""},{"$f":"IF('4 - Species Breakdown'!N683=0,\"\",'4 - Species Breakdown'!N683)","v":""},{"$f":"IFERROR(('4 - Species Breakdown'!J683/'WCC Summary'!$D$14)*100,\"\")","v":""},{"$f":"IF('4 - Species Breakdown'!J683=0,\"\",'4 - Species Breakdown'!J683)","v":""}]
[null,{"$f":"IF('4 - Species Breakdown'!B684=0,\"\",'4 - Species Breakdown'!B684)","v":""},{"$f":"IF('4 - Species Breakdown'!D684=0,\"\",'4 - Species Breakdown'!D684)","v":""},{"$f":"IF('4 - Species Breakdown'!L684=0,\"\",'4 - Species Breakdown'!L684)","v":""},{"$f":"IF('4 - Species Breakdown'!M684=0,\"\",'4 - Species Breakdown'!M684)","v":""},{"$f":"IF('4 - Species Breakdown'!N684=0,\"\",'4 - Species Breakdown'!N684)","v":""},{"$f":"IFERROR(('4 - Species Breakdown'!J684/'WCC Summary'!$D$14)*100,\"\")","v":""},{"$f":"IF('4 - Species Breakdown'!J684=0,\"\",'4 - Species Breakdown'!J684)","v":""}]
[null,{"$f":"IF('4 - Species Breakdown'!B685=0,\"\",'4 - Species Breakdown'!B685)","v":""},{"$f":"IF('4 - Species Breakdown'!D685=0,\"\",'4 - Species Breakdown'!D685)","v":""},{"$f":"IF('4 - Species Breakdown'!L685=0,\"\",'4 - Species Breakdown'!L685)","v":""},{"$f":"IF('4 - Species Breakdown'!M685=0,\"\",'4 - Species Breakdown'!M685)","v":""},{"$f":"IF('4 - Species Breakdown'!N685=0,\"\",'4 - Species Breakdown'!N685)","v":""},{"$f":"IFERROR(('4 - Species Breakdown'!J685/'WCC Summary'!$D$14)*100,\"\")","v":""},{"$f":"IF('4 - Species Breakdown'!J685=0,\"\",'4 - Species Breakdown'!J685)","v":""}]
[null,{"$f":"IF('4 - Species Breakdown'!B686=0,\"\",'4 - Species Breakdown'!B686)","v":""},{"$f":"IF('4 - Species Breakdown'!D686=0,\"\",'4 - Species Breakdown'!D686)","v":""},{"$f":"IF('4 - Species Breakdown'!L686=0,\"\",'4 - Species Breakdown'!L686)","v":""},{"$f":"IF('4 - Species Breakdown'!M686=0,\"\",'4 - Species Breakdown'!M686)","v":""},{"$f":"IF('4 - Species Breakdown'!N686=0,\"\",'4 - Species Breakdown'!N686)","v":""},{"$f":"IFERROR(('4 - Species Breakdown'!J686/'WCC Summary'!$D$14)*100,\"\")","v":""},{"$f":"IF('4 - Species Breakdown'!J686=0,\"\",'4 - Species Breakdown'!J686)","v":""}]
[null,{"$f":"IF('4 - Species Breakdown'!B687=0,\"\",'4 - Species Breakdown'!B687)","v":""},{"$f":"IF('4 - Species Breakdown'!D687=0,\"\",'4 - Species Breakdown'!D687)","v":""},{"$f":"IF('4 - Species Breakdown'!L687=0,\"\",'4 - Species Breakdown'!L687)","v":""},{"$f":"IF('4 - Species Breakdown'!M687=0,\"\",'4 - Species Breakdown'!M687)","v":""},{"$f":"IF('4 - Species Breakdown'!N687=0,\"\",'4 - Species Breakdown'!N687)","v":""},{"$f":"IFERROR(('4 - Species Breakdown'!J687/'WCC Summary'!$D$14)*100,\"\")","v":""},{"$f":"IF('4 - Species Breakdown'!J687=0,\"\",'4 - Species Breakdown'!J687)","v":""}]
[null,{"$f":"IF('4 - Species Breakdown'!B688=0,\"\",'4 - Species Breakdown'!B688)","v":""},{"$f":"IF('4 - Species Breakdown'!D688=0,\"\",'4 - Species Breakdown'!D688)","v":""},{"$f":"IF('4 - Species Breakdown'!L688=0,\"\",'4 - Species Breakdown'!L688)","v":""},{"$f":"IF('4 - Species Breakdown'!M688=0,\"\",'4 - Species Breakdown'!M688)","v":""},{"$f":"IF('4 - Species Breakdown'!N688=0,\"\",'4 - Species Breakdown'!N688)","v":""},{"$f":"IFERROR(('4 - Species Breakdown'!J688/'WCC Summary'!$D$14)*100,\"\")","v":""},{"$f":"IF('4 - Species Breakdown'!J688=0,\"\",'4 - Species Breakdown'!J688)","v":""}]
[null,{"$f":"IF('4 - Species Breakdown'!B689=0,\"\",'4 - Species Breakdown'!B689)","v":""},{"$f":"IF('4 - Species Breakdown'!D689=0,\"\",'4 - Species Breakdown'!D689)","v":""},{"$f":"IF('4 - Species Breakdown'!L689=0,\"\",'4 - Species Breakdown'!L689)","v":""},{"$f":"IF('4 - Species Breakdown'!M689=0,\"\",'4 - Species Breakdown'!M689)","v":""},{"$f":"IF('4 - Species Breakdown'!N689=0,\"\",'4 - Species Breakdown'!N689)","v":""},{"$f":"IFERROR(('4 - Species Breakdown'!J689/'WCC Summary'!$D$14)*100,\"\")","v":""},{"$f":"IF('4 - Species Breakdown'!J689=0,\"\",'4 - Species Breakdown'!J689)","v":""}]
[null,{"$f":"IF('4 - Species Breakdown'!B690=0,\"\",'4 - Species Breakdown'!B690)","v":""},{"$f":"IF('4 - Species Breakdown'!D690=0,\"\",'4 - Species Breakdown'!D690)","v":""},{"$f":"IF('4 - Species Breakdown'!L690=0,\"\",'4 - Species Breakdown'!L690)","v":""},{"$f":"IF('4 - Species Breakdown'!M690=0,\"\",'4 - Species Breakdown'!M690)","v":""},{"$f":"IF('4 - Species Breakdown'!N690=0,\"\",'4 - Species Breakdown'!N690)","v":""},{"$f":"IFERROR(('4 - Species Breakdown'!J690/'WCC Summary'!$D$14)*100,\"\")","v":""},{"$f":"IF('4 - Species Breakdown'!J690=0,\"\",'4 - Species Breakdown'!J690)","v":""}]
[null,{"$f":"IF('4 - Species Breakdown'!B691=0,\"\",'4 - Species Breakdown'!B691)","v":""},{"$f":"IF('4 - Species Breakdown'!D691=0,\"\",'4 - Species Breakdown'!D691)","v":""},{"$f":"IF('4 - Species Breakdown'!L691=0,\"\",'4 - Species Breakdown'!L691)","v":""},{"$f":"IF('4 - Species Breakdown'!M691=0,\"\",'4 - Species Breakdown'!M691)","v":""},{"$f":"IF('4 - Species Breakdown'!N691=0,\"\",'4 - Species Breakdown'!N691)","v":""},{"$f":"IFERROR(('4 - Species Breakdown'!J691/'WCC Summary'!$D$14)*100,\"\")","v":""},{"$f":"IF('4 - Species Breakdown'!J691=0,\"\",'4 - Species Breakdown'!J691)","v":""}]
[null,{"$f":"IF('4 - Species Breakdown'!B692=0,\"\",'4 - Species Breakdown'!B692)","v":""},{"$f":"IF('4 - Species Breakdown'!D692=0,\"\",'4 - Species Breakdown'!D692)","v":""},{"$f":"IF('4 - Species Breakdown'!L692=0,\"\",'4 - Species Breakdown'!L692)","v":""},{"$f":"IF('4 - Species Breakdown'!M692=0,\"\",'4 - Species Breakdown'!M692)","v":""},{"$f":"IF('4 - Species Breakdown'!N692=0,\"\",'4 - Species Breakdown'!N692)","v":""},{"$f":"IFERROR(('4 - Species Breakdown'!J692/'WCC Summary'!$D$14)*100,\"\")","v":""},{"$f":"IF('4 - Species Breakdown'!J692=0,\"\",'4 - Species Breakdown'!J692)","v":""}]
[null,{"$f":"IF('4 - Species Breakdown'!B693=0,\"\",'4 - Species Breakdown'!B693)","v":""},{"$f":"IF('4 - Species Breakdown'!D693=0,\"\",'4 - Species Breakdown'!D693)","v":""},{"$f":"IF('4 - Species Breakdown'!L693=0,\"\",'4 - Species Breakdown'!L693)","v":""},{"$f":"IF('4 - Species Breakdown'!M693=0,\"\",'4 - Species Breakdown'!M693)","v":""},{"$f":"IF('4 - Species Breakdown'!N693=0,\"\",'4 - Species Breakdown'!N693)","v":""},{"$f":"IFERROR(('4 - Species Breakdown'!J693/'WCC Summary'!$D$14)*100,\"\")","v":""},{"$f":"IF('4 - Species Breakdown'!J693=0,\"\",'4 - Species Breakdown'!J693)","v":""}]
[null,{"$f":"IF('4 - Species Breakdown'!B694=0,\"\",'4 - Species Breakdown'!B694)","v":""},{"$f":"IF('4 - Species Breakdown'!D694=0,\"\",'4 - Species Breakdown'!D694)","v":""},{"$f":"IF('4 - Species Breakdown'!L694=0,\"\",'4 - Species Breakdown'!L694)","v":""},{"$f":"IF('4 - Species Breakdown'!M694=0,\"\",'4 - Species Breakdown'!M694)","v":""},{"$f":"IF('4 - Species Breakdown'!N694=0,\"\",'4 - Species Breakdown'!N694)","v":""},{"$f":"IFERROR(('4 - Species Breakdown'!J694/'WCC Summary'!$D$14)*100,\"\")","v":""},{"$f":"IF('4 - Species Breakdown'!J694=0,\"\",'4 - Species Breakdown'!J694)","v":""}]
[null,{"$f":"IF('4 - Species Breakdown'!B695=0,\"\",'4 - Species Breakdown'!B695)","v":""},{"$f":"IF('4 - Species Breakdown'!D695=0,\"\",'4 - Species Breakdown'!D695)","v":""},{"$f":"IF('4 - Species Breakdown'!L695=0,\"\",'4 - Species Breakdown'!L695)","v":""},{"$f":"IF('4 - Species Breakdown'!M695=0,\"\",'4 - Species Breakdown'!M695)","v":""},{"$f":"IF('4 - Species Breakdown'!N695=0,\"\",'4 - Species Breakdown'!N695)","v":""},{"$f":"IFERROR(('4 - Species Breakdown'!J695/'WCC Summary'!$D$14)*100,\"\")","v":""},{"$f":"IF('4 - Species Breakdown'!J695=0,\"\",'4 - Species Breakdown'!J695)","v":""}]
[null,{"$f":"IF('4 - Species Breakdown'!B696=0,\"\",'4 - Species Breakdown'!B696)","v":""},{"$f":"IF('4 - Species Breakdown'!D696=0,\"\",'4 - Species Breakdown'!D696)","v":""},{"$f":"IF('4 - Species Breakdown'!L696=0,\"\",'4 - Species Breakdown'!L696)","v":""},{"$f":"IF('4 - Species Breakdown'!M696=0,\"\",'4 - Species Breakdown'!M696)","v":""},{"$f":"IF('4 - Species Breakdown'!N696=0,\"\",'4 - Species Breakdown'!N696)","v":""},{"$f":"IFERROR(('4 - Species Breakdown'!J696/'WCC Summary'!$D$14)*100,\"\")","v":""},{"$f":"IF('4 - Species Breakdown'!J696=0,\"\",'4 - Species Breakdown'!J696)","v":""}]
[null,{"$f":"IF('4 - Species Breakdown'!B697=0,\"\",'4 - Species Breakdown'!B697)","v":""},{"$f":"IF('4 - Species Breakdown'!D697=0,\"\",'4 - Species Breakdown'!D697)","v":""},{"$f":"IF('4 - Species Breakdown'!L697=0,\"\",'4 - Species Breakdown'!L697)","v":""},{"$f":"IF('4 - Species Breakdown'!M697=0,\"\",'4 - Species Breakdown'!M697)","v":""},{"$f":"IF('4 - Species Breakdown'!N697=0,\"\",'4 - Species Breakdown'!N697)","v":""},{"$f":"IFERROR(('4 - Species Breakdown'!J697/'WCC Summary'!$D$14)*100,\"\")","v":""},{"$f":"IF('4 - Species Breakdown'!J697=0,\"\",'4 - Species Breakdown'!J697)","v":""}]
[null,{"$f":"IF('4 - Species Breakdown'!B698=0,\"\",'4 - Species Breakdown'!B698)","v":""},{"$f":"IF('4 - Species Breakdown'!D698=0,\"\",'4 - Species Breakdown'!D698)","v":""},{"$f":"IF('4 - Species Breakdown'!L698=0,\"\",'4 - Species Breakdown'!L698)","v":""},{"$f":"IF('4 - Species Breakdown'!M698=0,\"\",'4 - Species Breakdown'!M698)","v":""},{"$f":"IF('4 - Species Breakdown'!N698=0,\"\",'4 - Species Breakdown'!N698)","v":""},{"$f":"IFERROR(('4 - Species Breakdown'!J698/'WCC Summary'!$D$14)*100,\"\")","v":""},{"$f":"IF('4 - Species Breakdown'!J698=0,\"\",'4 - Species Breakdown'!J698)","v":""}]
[null,{"$f":"IF('4 - Species Breakdown'!B699=0,\"\",'4 - Species Breakdown'!B699)","v":""},{"$f":"IF('4 - Species Breakdown'!D699=0,\"\",'4 - Species Breakdown'!D699)","v":""},{"$f":"IF('4 - Species Breakdown'!L699=0,\"\",'4 - Species Breakdown'!L699)","v":""},{"$f":"IF('4 - Species Breakdown'!M699=0,\"\",'4 - Species Breakdown'!M699)","v":""},{"$f":"IF('4 - Species Breakdown'!N699=0,\"\",'4 - Species Breakdown'!N699)","v":""},{"$f":"IFERROR(('4 - Species Breakdown'!J699/'WCC Summary'!$D$14)*100,\"\")","v":""},{"$f":"IF('4 - Species Breakdown'!J699=0,\"\",'4 - Species Breakdown'!J699)","v":""}]
[null,{"$f":"IF('4 - Species Breakdown'!B700=0,\"\",'4 - Species Breakdown'!B700)","v":""},{"$f":"IF('4 - Species Breakdown'!D700=0,\"\",'4 - Species Breakdown'!D700)","v":""},{"$f":"IF('4 - Species Breakdown'!L700=0,\"\",'4 - Species Breakdown'!L700)","v":""},{"$f":"IF('4 - Species Breakdown'!M700=0,\"\",'4 - Species Breakdown'!M700)","v":""},{"$f":"IF('4 - Species Breakdown'!N700=0,\"\",'4 - Species Breakdown'!N700)","v":""},{"$f":"IFERROR(('4 - Species Breakdown'!J700/'WCC Summary'!$D$14)*100,\"\")","v":""},{"$f":"IF('4 - Species Breakdown'!J700=0,\"\",'4 - Species Breakdown'!J700)","v":""}]
[null,{"$f":"IF('4 - Species Breakdown'!B701=0,\"\",'4 - Species Breakdown'!B701)","v":""},{"$f":"IF('4 - Species Breakdown'!D701=0,\"\",'4 - Species Breakdown'!D701)","v":""},{"$f":"IF('4 - Species Breakdown'!L701=0,\"\",'4 - Species Breakdown'!L701)","v":""},{"$f":"IF('4 - Species Breakdown'!M701=0,\"\",'4 - Species Breakdown'!M701)","v":""},{"$f":"IF('4 - Species Breakdown'!N701=0,\"\",'4 - Species Breakdown'!N701)","v":""},{"$f":"IFERROR(('4 - Species Breakdown'!J701/'WCC Summary'!$D$14)*100,\"\")","v":""},{"$f":"IF('4 - Species Breakdown'!J701=0,\"\",'4 - Species Breakdown'!J701)","v":""}]
[null,{"$f":"IF('4 - Species Breakdown'!B702=0,\"\",'4 - Species Breakdown'!B702)","v":""},{"$f":"IF('4 - Species Breakdown'!D702=0,\"\",'4 - Species Breakdown'!D702)","v":""},{"$f":"IF('4 - Species Breakdown'!L702=0,\"\",'4 - Species Breakdown'!L702)","v":""},{"$f":"IF('4 - Species Breakdown'!M702=0,\"\",'4 - Species Breakdown'!M702)","v":""},{"$f":"IF('4 - Species Breakdown'!N702=0,\"\",'4 - Species Breakdown'!N702)","v":""},{"$f":"IFERROR(('4 - Species Breakdown'!J702/'WCC Summary'!$D$14)*100,\"\")","v":""},{"$f":"IF('4 - Species Breakdown'!J702=0,\"\",'4 - Species Breakdown'!J702)","v":""}]
[null,{"$f":"IF('4 - Species Breakdown'!B703=0,\"\",'4 - Species Breakdown'!B703)","v":""},{"$f":"IF('4 - Species Breakdown'!D703=0,\"\",'4 - Species Breakdown'!D703)","v":""},{"$f":"IF('4 - Species Breakdown'!L703=0,\"\",'4 - Species Breakdown'!L703)","v":""},{"$f":"IF('4 - Species Breakdown'!M703=0,\"\",'4 - Species Breakdown'!M703)","v":""},{"$f":"IF('4 - Species Breakdown'!N703=0,\"\",'4 - Species Breakdown'!N703)","v":""},{"$f":"IFERROR(('4 - Species Breakdown'!J703/'WCC Summary'!$D$14)*100,\"\")","v":""},{"$f":"IF('4 - Species Breakdown'!J703=0,\"\",'4 - Species Breakdown'!J703)","v":""}]
[null,{"$f":"IF('4 - Species Breakdown'!B704=0,\"\",'4 - Species Breakdown'!B704)","v":""},{"$f":"IF('4 - Species Breakdown'!D704=0,\"\",'4 - Species Breakdown'!D704)","v":""},{"$f":"IF('4 - Species Breakdown'!L704=0,\"\",'4 - Species Breakdown'!L704)","v":""},{"$f":"IF('4 - Species Breakdown'!M704=0,\"\",'4 - Species Breakdown'!M704)","v":""},{"$f":"IF('4 - Species Breakdown'!N704=0,\"\",'4 - Species Breakdown'!N704)","v":""},{"$f":"IFERROR(('4 - Species Breakdown'!J704/'WCC Summary'!$D$14)*100,\"\")","v":""},{"$f":"IF('4 - Species Breakdown'!J704=0,\"\",'4 - Species Breakdown'!J704)","v":""}]
[null,{"$f":"IF('4 - Species Breakdown'!B705=0,\"\",'4 - Species Breakdown'!B705)","v":""},{"$f":"IF('4 - Species Breakdown'!D705=0,\"\",'4 - Species Breakdown'!D705)","v":""},{"$f":"IF('4 - Species Breakdown'!L705=0,\"\",'4 - Species Breakdown'!L705)","v":""},{"$f":"IF('4 - Species Breakdown'!M705=0,\"\",'4 - Species Breakdown'!M705)","v":""},{"$f":"IF('4 - Species Breakdown'!N705=0,\"\",'4 - Species Breakdown'!N705)","v":""},{"$f":"IFERROR(('4 - Species Breakdown'!J705/'WCC Summary'!$D$14)*100,\"\")","v":""},{"$f":"IF('4 - Species Breakdown'!J705=0,\"\",'4 - Species Breakdown'!J705)","v":""}]
[null,{"$f":"IF('4 - Species Breakdown'!B706=0,\"\",'4 - Species Breakdown'!B706)","v":""},{"$f":"IF('4 - Species Breakdown'!D706=0,\"\",'4 - Species Breakdown'!D706)","v":""},{"$f":"IF('4 - Species Breakdown'!L706=0,\"\",'4 - Species Breakdown'!L706)","v":""},{"$f":"IF('4 - Species Breakdown'!M706=0,\"\",'4 - Species Breakdown'!M706)","v":""},{"$f":"IF('4 - Species Breakdown'!N706=0,\"\",'4 - Species Breakdown'!N706)","v":""},{"$f":"IFERROR(('4 - Species Breakdown'!J706/'WCC Summary'!$D$14)*100,\"\")","v":""},{"$f":"IF('4 - Species Breakdown'!J706=0,\"\",'4 - Species Breakdown'!J706)","v":""}]
[null,{"$f":"IF('4 - Species Breakdown'!B707=0,\"\",'4 - Species Breakdown'!B707)","v":""},{"$f":"IF('4 - Species Breakdown'!D707=0,\"\",'4 - Species Breakdown'!D707)","v":""},{"$f":"IF('4 - Species Breakdown'!L707=0,\"\",'4 - Species Breakdown'!L707)","v":""},{"$f":"IF('4 - Species Breakdown'!M707=0,\"\",'4 - Species Breakdown'!M707)","v":""},{"$f":"IF('4 - Species Breakdown'!N707=0,\"\",'4 - Species Breakdown'!N707)","v":""},{"$f":"IFERROR(('4 - Species Breakdown'!J707/'WCC Summary'!$D$14)*100,\"\")","v":""},{"$f":"IF('4 - Species Breakdown'!J707=0,\"\",'4 - Species Breakdown'!J707)","v":""}]
[null,{"$f":"IF('4 - Species Breakdown'!B708=0,\"\",'4 - Species Breakdown'!B708)","v":""},{"$f":"IF('4 - Species Breakdown'!D708=0,\"\",'4 - Species Breakdown'!D708)","v":""},{"$f":"IF('4 - Species Breakdown'!L708=0,\"\",'4 - Species Breakdown'!L708)","v":""},{"$f":"IF('4 - Species Breakdown'!M708=0,\"\",'4 - Species Breakdown'!M708)","v":""},{"$f":"IF('4 - Species Breakdown'!N708=0,\"\",'4 - Species Breakdown'!N708)","v":""},{"$f":"IFERROR(('4 - Species Breakdown'!J708/'WCC Summary'!$D$14)*100,\"\")","v":""},{"$f":"IF('4 - Species Breakdown'!J708=0,\"\",'4 - Species Breakdown'!J708)","v":""}]
[null,{"$f":"IF('4 - Species Breakdown'!B709=0,\"\",'4 - Species Breakdown'!B709)","v":""},{"$f":"IF('4 - Species Breakdown'!D709=0,\"\",'4 - Species Breakdown'!D709)","v":""},{"$f":"IF('4 - Species Breakdown'!L709=0,\"\",'4 - Species Breakdown'!L709)","v":""},{"$f":"IF('4 - Species Breakdown'!M709=0,\"\",'4 - Species Breakdown'!M709)","v":""},{"$f":"IF('4 - Species Breakdown'!N709=0,\"\",'4 - Species Breakdown'!N709)","v":""},{"$f":"IFERROR(('4 - Species Breakdown'!J709/'WCC Summary'!$D$14)*100,\"\")","v":""},{"$f":"IF('4 - Species Breakdown'!J709=0,\"\",'4 - Species Breakdown'!J709)","v":""}]
[null,{"$f":"IF('4 - Species Breakdown'!B710=0,\"\",'4 - Species Breakdown'!B710)","v":""},{"$f":"IF('4 - Species Breakdown'!D710=0,\"\",'4 - Species Breakdown'!D710)","v":""},{"$f":"IF('4 - Species Breakdown'!L710=0,\"\",'4 - Species Breakdown'!L710)","v":""},{"$f":"IF('4 - Species Breakdown'!M710=0,\"\",'4 - Species Breakdown'!M710)","v":""},{"$f":"IF('4 - Species Breakdown'!N710=0,\"\",'4 - Species Breakdown'!N710)","v":""},{"$f":"IFERROR(('4 - Species Breakdown'!J710/'WCC Summary'!$D$14)*100,\"\")","v":""},{"$f":"IF('4 - Species Breakdown'!J710=0,\"\",'4 - Species Breakdown'!J710)","v":""}]
[null,{"$f":"IF('4 - Species Breakdown'!B711=0,\"\",'4 - Species Breakdown'!B711)","v":""},{"$f":"IF('4 - Species Breakdown'!D711=0,\"\",'4 - Species Breakdown'!D711)","v":""},{"$f":"IF('4 - Species Breakdown'!L711=0,\"\",'4 - Species Breakdown'!L711)","v":""},{"$f":"IF('4 - Species Breakdown'!M711=0,\"\",'4 - Species Breakdown'!M711)","v":""},{"$f":"IF('4 - Species Breakdown'!N711=0,\"\",'4 - Species Breakdown'!N711)","v":""},{"$f":"IFERROR(('4 - Species Breakdown'!J711/'WCC Summary'!$D$14)*100,\"\")","v":""},{"$f":"IF('4 - Species Breakdown'!J711=0,\"\",'4 - Species Breakdown'!J711)","v":""}]
[null,{"$f":"IF('4 - Species Breakdown'!B712=0,\"\",'4 - Species Breakdown'!B712)","v":""},{"$f":"IF('4 - Species Breakdown'!D712=0,\"\",'4 - Species Breakdown'!D712)","v":""},{"$f":"IF('4 - Species Breakdown'!L712=0,\"\",'4 - Species Breakdown'!L712)","v":""},{"$f":"IF('4 - Species Breakdown'!M712=0,\"\",'4 - Species Breakdown'!M712)","v":""},{"$f":"IF('4 - Species Breakdown'!N712=0,\"\",'4 - Species Breakdown'!N712)","v":""},{"$f":"IFERROR(('4 - Species Breakdown'!J712/'WCC Summary'!$D$14)*100,\"\")","v":""},{"$f":"IF('4 - Species Breakdown'!J712=0,\"\",'4 - Species Breakdown'!J712)","v":""}]
[null,{"$f":"IF('4 - Species Breakdown'!B713=0,\"\",'4 - Species Breakdown'!B713)","v":""},{"$f":"IF('4 - Species Breakdown'!D713=0,\"\",'4 - Species Breakdown'!D713)","v":""},{"$f":"IF('4 - Species Breakdown'!L713=0,\"\",'4 - Species Breakdown'!L713)","v":""},{"$f":"IF('4 - Species Breakdown'!M713=0,\"\",'4 - Species Breakdown'!M713)","v":""},{"$f":"IF('4 - Species Breakdown'!N713=0,\"\",'4 - Species Breakdown'!N713)","v":""},{"$f":"IFERROR(('4 - Species Breakdown'!J713/'WCC Summary'!$D$14)*100,\"\")","v":""},{"$f":"IF('4 - Species Breakdown'!J713=0,\"\",'4 - Species Breakdown'!J713)","v":""}]
[null,{"$f":"IF('4 - Species Breakdown'!B714=0,\"\",'4 - Species Breakdown'!B714)","v":""},{"$f":"IF('4 - Species Breakdown'!D714=0,\"\",'4 - Species Breakdown'!D714)","v":""},{"$f":"IF('4 - Species Breakdown'!L714=0,\"\",'4 - Species Breakdown'!L714)","v":""},{"$f":"IF('4 - Species Breakdown'!M714=0,\"\",'4 - Species Breakdown'!M714)","v":""},{"$f":"IF('4 - Species Breakdown'!N714=0,\"\",'4 - Species Breakdown'!N714)","v":""},{"$f":"IFERROR(('4 - Species Breakdown'!J714/'WCC Summary'!$D$14)*100,\"\")","v":""},{"$f":"IF('4 - Species Breakdown'!J714=0,\"\",'4 - Species Breakdown'!J714)","v":""}]
[null,{"$f":"IF('4 - Species Breakdown'!B715=0,\"\",'4 - Species Breakdown'!B715)","v":""},{"$f":"IF('4 - Species Breakdown'!D715=0,\"\",'4 - Species Breakdown'!D715)","v":""},{"$f":"IF('4 - Species Breakdown'!L715=0,\"\",'4 - Species Breakdown'!L715)","v":""},{"$f":"IF('4 - Species Breakdown'!M715=0,\"\",'4 - Species Breakdown'!M715)","v":""},{"$f":"IF('4 - Species Breakdown'!N715=0,\"\",'4 - Species Breakdown'!N715)","v":""},{"$f":"IFERROR(('4 - Species Breakdown'!J715/'WCC Summary'!$D$14)*100,\"\")","v":""},{"$f":"IF('4 - Species Breakdown'!J715=0,\"\",'4 - Species Breakdown'!J715)","v":""}]
[null,{"$f":"IF('4 - Species Breakdown'!B716=0,\"\",'4 - Species Breakdown'!B716)","v":""},{"$f":"IF('4 - Species Breakdown'!D716=0,\"\",'4 - Species Breakdown'!D716)","v":""},{"$f":"IF('4 - Species Breakdown'!L716=0,\"\",'4 - Species Breakdown'!L716)","v":""},{"$f":"IF('4 - Species Breakdown'!M716=0,\"\",'4 - Species Breakdown'!M716)","v":""},{"$f":"IF('4 - Species Breakdown'!N716=0,\"\",'4 - Species Breakdown'!N716)","v":""},{"$f":"IFERROR(('4 - Species Breakdown'!J716/'WCC Summary'!$D$14)*100,\"\")","v":""},{"$f":"IF('4 - Species Breakdown'!J716=0,\"\",'4 - Species Breakdown'!J716)","v":""}]
[null,{"$f":"IF('4 - Species Breakdown'!B717=0,\"\",'4 - Species Breakdown'!B717)","v":""},{"$f":"IF('4 - Species Breakdown'!D717=0,\"\",'4 - Species Breakdown'!D717)","v":""},{"$f":"IF('4 - Species Breakdown'!L717=0,\"\",'4 - Species Breakdown'!L717)","v":""},{"$f":"IF('4 - Species Breakdown'!M717=0,\"\",'4 - Species Breakdown'!M717)","v":""},{"$f":"IF('4 - Species Breakdown'!N717=0,\"\",'4 - Species Breakdown'!N717)","v":""},{"$f":"IFERROR(('4 - Species Breakdown'!J717/'WCC Summary'!$D$14)*100,\"\")","v":""},{"$f":"IF('4 - Species Breakdown'!J717=0,\"\",'4 - Species Breakdown'!J717)","v":""}]
[null,{"$f":"IF('4 - Species Breakdown'!B718=0,\"\",'4 - Species Breakdown'!B718)","v":""},{"$f":"IF('4 - Species Breakdown'!D718=0,\"\",'4 - Species Breakdown'!D718)","v":""},{"$f":"IF('4 - Species Breakdown'!L718=0,\"\",'4 - Species Breakdown'!L718)","v":""},{"$f":"IF('4 - Species Breakdown'!M718=0,\"\",'4 - Species Breakdown'!M718)","v":""},{"$f":"IF('4 - Species Breakdown'!N718=0,\"\",'4 - Species Breakdown'!N718)","v":""},{"$f":"IFERROR(('4 - Species Breakdown'!J718/'WCC Summary'!$D$14)*100,\"\")","v":""},{"$f":"IF('4 - Species Breakdown'!J718=0,\"\",'4 - Species Breakdown'!J718)","v":""}]
[null,{"$f":"IF('4 - Species Breakdown'!B719=0,\"\",'4 - Species Breakdown'!B719)","v":""},{"$f":"IF('4 - Species Breakdown'!D719=0,\"\",'4 - Species Breakdown'!D719)","v":""},{"$f":"IF('4 - Species Breakdown'!L719=0,\"\",'4 - Species Breakdown'!L719)","v":""},{"$f":"IF('4 - Species Breakdown'!M719=0,\"\",'4 - Species Breakdown'!M719)","v":""},{"$f":"IF('4 - Species Breakdown'!N719=0,\"\",'4 - Species Breakdown'!N719)","v":""},{"$f":"IFERROR(('4 - Species Breakdown'!J719/'WCC Summary'!$D$14)*100,\"\")","v":""},{"$f":"IF('4 - Species Breakdown'!J719=0,\"\",'4 - Species Breakdown'!J719)","v":""}]
[null,{"$f":"IF('4 - Species Breakdown'!B720=0,\"\",'4 - Species Breakdown'!B720)","v":""},{"$f":"IF('4 - Species Breakdown'!D720=0,\"\",'4 - Species Breakdown'!D720)","v":""},{"$f":"IF('4 - Species Breakdown'!L720=0,\"\",'4 - Species Breakdown'!L720)","v":""},{"$f":"IF('4 - Species Breakdown'!M720=0,\"\",'4 - Species Breakdown'!M720)","v":""},{"$f":"IF('4 - Species Breakdown'!N720=0,\"\",'4 - Species Breakdown'!N720)","v":""},{"$f":"IFERROR(('4 - Species Breakdown'!J720/'WCC Summary'!$D$14)*100,\"\")","v":""},{"$f":"IF('4 - Species Breakdown'!J720=0,\"\",'4 - Species Breakdown'!J720)","v":""}]
[null,{"$f":"IF('4 - Species Breakdown'!B721=0,\"\",'4 - Species Breakdown'!B721)","v":""},{"$f":"IF('4 - Species Breakdown'!D721=0,\"\",'4 - Species Breakdown'!D721)","v":""},{"$f":"IF('4 - Species Breakdown'!L721=0,\"\",'4 - Species Breakdown'!L721)","v":""},{"$f":"IF('4 - Species Breakdown'!M721=0,\"\",'4 - Species Breakdown'!M721)","v":""},{"$f":"IF('4 - Species Breakdown'!N721=0,\"\",'4 - Species Breakdown'!N721)","v":""},{"$f":"IFERROR(('4 - Species Breakdown'!J721/'WCC Summary'!$D$14)*100,\"\")","v":""},{"$f":"IF('4 - Species Breakdown'!J721=0,\"\",'4 - Species Breakdown'!J721)","v":""}]
[null,{"$f":"IF('4 - Species Breakdown'!B722=0,\"\",'4 - Species Breakdown'!B722)","v":""},{"$f":"IF('4 - Species Breakdown'!D722=0,\"\",'4 - Species Breakdown'!D722)","v":""},{"$f":"IF('4 - Species Breakdown'!L722=0,\"\",'4 - Species Breakdown'!L722)","v":""},{"$f":"IF('4 - Species Breakdown'!M722=0,\"\",'4 - Species Breakdown'!M722)","v":""},{"$f":"IF('4 - Species Breakdown'!N722=0,\"\",'4 - Species Breakdown'!N722)","v":""},{"$f":"IFERROR(('4 - Species Breakdown'!J722/'WCC Summary'!$D$14)*100,\"\")","v":""},{"$f":"IF('4 - Species Breakdown'!J722=0,\"\",'4 - Species Breakdown'!J722)","v":""}]
[null,{"$f":"IF('4 - Species Breakdown'!B723=0,\"\",'4 - Species Breakdown'!B723)","v":""},{"$f":"IF('4 - Species Breakdown'!D723=0,\"\",'4 - Species Breakdown'!D723)","v":""},{"$f":"IF('4 - Species Breakdown'!L723=0,\"\",'4 - Species Breakdown'!L723)","v":""},{"$f":"IF('4 - Species Breakdown'!M723=0,\"\",'4 - Species Breakdown'!M723)","v":""},{"$f":"IF('4 - Species Breakdown'!N723=0,\"\",'4 - Species Breakdown'!N723)","v":""},{"$f":"IFERROR(('4 - Species Breakdown'!J723/'WCC Summary'!$D$14)*100,\"\")","v":""},{"$f":"IF('4 - Species Breakdown'!J723=0,\"\",'4 - Species Breakdown'!J723)","v":""}]
[null,{"$f":"IF('4 - Species Breakdown'!B724=0,\"\",'4 - Species Breakdown'!B724)","v":""},{"$f":"IF('4 - Species Breakdown'!D724=0,\"\",'4 - Species Breakdown'!D724)","v":""},{"$f":"IF('4 - Species Breakdown'!L724=0,\"\",'4 - Species Breakdown'!L724)","v":""},{"$f":"IF('4 - Species Breakdown'!M724=0,\"\",'4 - Species Breakdown'!M724)","v":""},{"$f":"IF('4 - Species Breakdown'!N724=0,\"\",'4 - Species Breakdown'!N724)","v":""},{"$f":"IFERROR(('4 - Species Breakdown'!J724/'WCC Summary'!$D$14)*100,\"\")","v":""},{"$f":"IF('4 - Species Breakdown'!J724=0,\"\",'4 - Species Breakdown'!J724)","v":""}]
[null,{"$f":"IF('4 - Species Breakdown'!B725=0,\"\",'4 - Species Breakdown'!B725)","v":""},{"$f":"IF('4 - Species Breakdown'!D725=0,\"\",'4 - Species Breakdown'!D725)","v":""},{"$f":"IF('4 - Species Breakdown'!L725=0,\"\",'4 - Species Breakdown'!L725)","v":""},{"$f":"IF('4 - Species Breakdown'!M725=0,\"\",'4 - Species Breakdown'!M725)","v":""},{"$f":"IF('4 - Species Breakdown'!N725=0,\"\",'4 - Species Breakdown'!N725)","v":""},{"$f":"IFERROR(('4 - Species Breakdown'!J725/'WCC Summary'!$D$14)*100,\"\")","v":""},{"$f":"IF('4 - Species Breakdown'!J725=0,\"\",'4 - Species Breakdown'!J725)","v":""}]
[null,{"$f":"IF('4 - Species Breakdown'!B726=0,\"\",'4 - Species Breakdown'!B726)","v":""},{"$f":"IF('4 - Species Breakdown'!D726=0,\"\",'4 - Species Breakdown'!D726)","v":""},{"$f":"IF('4 - Species Breakdown'!L726=0,\"\",'4 - Species Breakdown'!L726)","v":""},{"$f":"IF('4 - Species Breakdown'!M726=0,\"\",'4 - Species Breakdown'!M726)","v":""},{"$f":"IF('4 - Species Breakdown'!N726=0,\"\",'4 - Species Breakdown'!N726)","v":""},{"$f":"IFERROR(('4 - Species Breakdown'!J726/'WCC Summary'!$D$14)*100,\"\")","v":""},{"$f":"IF('4 - Species Breakdown'!J726=0,\"\",'4 - Species Breakdown'!J726)","v":""}]
[null,{"$f":"IF('4 - Species Breakdown'!B727=0,\"\",'4 - Species Breakdown'!B727)","v":""},{"$f":"IF('4 - Species Breakdown'!D727=0,\"\",'4 - Species Breakdown'!D727)","v":""},{"$f":"IF('4 - Species Breakdown'!L727=0,\"\",'4 - Species Breakdown'!L727)","v":""},{"$f":"IF('4 - Species Breakdown'!M727=0,\"\",'4 - Species Breakdown'!M727)","v":""},{"$f":"IF('4 - Species Breakdown'!N727=0,\"\",'4 - Species Breakdown'!N727)","v":""},{"$f":"IFERROR(('4 - Species Breakdown'!J727/'WCC Summary'!$D$14)*100,\"\")","v":""},{"$f":"IF('4 - Species Breakdown'!J727=0,\"\",'4 - Species Breakdown'!J727)","v":""}]
[null,{"$f":"IF('4 - Species Breakdown'!B728=0,\"\",'4 - Species Breakdown'!B728)","v":""},{"$f":"IF('4 - Species Breakdown'!D728=0,\"\",'4 - Species Breakdown'!D728)","v":""},{"$f":"IF('4 - Species Breakdown'!L728=0,\"\",'4 - Species Breakdown'!L728)","v":""},{"$f":"IF('4 - Species Breakdown'!M728=0,\"\",'4 - Species Breakdown'!M728)","v":""},{"$f":"IF('4 - Species Breakdown'!N728=0,\"\",'4 - Species Breakdown'!N728)","v":""},{"$f":"IFERROR(('4 - Species Breakdown'!J728/'WCC Summary'!$D$14)*100,\"\")","v":""},{"$f":"IF('4 - Species Breakdown'!J728=0,\"\",'4 - Species Breakdown'!J728)","v":""}]
[null,{"$f":"IF('4 - Species Breakdown'!B729=0,\"\",'4 - Species Breakdown'!B729)","v":""},{"$f":"IF('4 - Species Breakdown'!D729=0,\"\",'4 - Species Breakdown'!D729)","v":""},{"$f":"IF('4 - Species Breakdown'!L729=0,\"\",'4 - Species Breakdown'!L729)","v":""},{"$f":"IF('4 - Species Breakdown'!M729=0,\"\",'4 - Species Breakdown'!M729)","v":""},{"$f":"IF('4 - Species Breakdown'!N729=0,\"\",'4 - Species Breakdown'!N729)","v":""},{"$f":"IFERROR(('4 - Species Breakdown'!J729/'WCC Summary'!$D$14)*100,\"\")","v":""},{"$f":"IF('4 - Species Breakdown'!J729=0,\"\",'4 - Species Breakdown'!J729)","v":""}]
[null,{"$f":"IF('4 - Species Breakdown'!B730=0,\"\",'4 - Species Breakdown'!B730)","v":""},{"$f":"IF('4 - Species Breakdown'!D730=0,\"\",'4 - Species Breakdown'!D730)","v":""},{"$f":"IF('4 - Species Breakdown'!L730=0,\"\",'4 - Species Breakdown'!L730)","v":""},{"$f":"IF('4 - Species Breakdown'!M730=0,\"\",'4 - Species Breakdown'!M730)","v":""},{"$f":"IF('4 - Species Breakdown'!N730=0,\"\",'4 - Species Breakdown'!N730)","v":""},{"$f":"IFERROR(('4 - Species Breakdown'!J730/'WCC Summary'!$D$14)*100,\"\")","v":""},{"$f":"IF('4 - Species Breakdown'!J730=0,\"\",'4 - Species Breakdown'!J730)","v":""}]
[null,{"$f":"IF('4 - Species Breakdown'!B731=0,\"\",'4 - Species Breakdown'!B731)","v":""},{"$f":"IF('4 - Species Breakdown'!D731=0,\"\",'4 - Species Breakdown'!D731)","v":""},{"$f":"IF('4 - Species Breakdown'!L731=0,\"\",'4 - Species Breakdown'!L731)","v":""},{"$f":"IF('4 - Species Breakdown'!M731=0,\"\",'4 - Species Breakdown'!M731)","v":""},{"$f":"IF('4 - Species Breakdown'!N731=0,\"\",'4 - Species Breakdown'!N731)","v":""},{"$f":"IFERROR(('4 - Species Breakdown'!J731/'WCC Summary'!$D$14)*100,\"\")","v":""},{"$f":"IF('4 - Species Breakdown'!J731=0,\"\",'4 - Species Breakdown'!J731)","v":""}]
[null,{"$f":"IF('4 - Species Breakdown'!B732=0,\"\",'4 - Species Breakdown'!B732)","v":""},{"$f":"IF('4 - Species Breakdown'!D732=0,\"\",'4 - Species Breakdown'!D732)","v":""},{"$f":"IF('4 - Species Breakdown'!L732=0,\"\",'4 - Species Breakdown'!L732)","v":""},{"$f":"IF('4 - Species Breakdown'!M732=0,\"\",'4 - Species Breakdown'!M732)","v":""},{"$f":"IF('4 - Species Breakdown'!N732=0,\"\",'4 - Species Breakdown'!N732)","v":""},{"$f":"IFERROR(('4 - Species Breakdown'!J732/'WCC Summary'!$D$14)*100,\"\")","v":""},{"$f":"IF('4 - Species Breakdown'!J732=0,\"\",'4 - Species Breakdown'!J732)","v":""}]
[null,{"$f":"IF('4 - Species Breakdown'!B733=0,\"\",'4 - Species Breakdown'!B733)","v":""},{"$f":"IF('4 - Species Breakdown'!D733=0,\"\",'4 - Species Breakdown'!D733)","v":""},{"$f":"IF('4 - Species Breakdown'!L733=0,\"\",'4 - Species Breakdown'!L733)","v":""},{"$f":"IF('4 - Species Breakdown'!M733=0,\"\",'4 - Species Breakdown'!M733)","v":""},{"$f":"IF('4 - Species Breakdown'!N733=0,\"\",'4 - Species Breakdown'!N733)","v":""},{"$f":"IFERROR(('4 - Species Breakdown'!J733/'WCC Summary'!$D$14)*100,\"\")","v":""},{"$f":"IF('4 - Species Breakdown'!J733=0,\"\",'4 - Species Breakdown'!J733)","v":""}]
[null,{"$f":"IF('4 - Species Breakdown'!B734=0,\"\",'4 - Species Breakdown'!B734)","v":""},{"$f":"IF('4 - Species Breakdown'!D734=0,\"\",'4 - Species Breakdown'!D734)","v":""},{"$f":"IF('4 - Species Breakdown'!L734=0,\"\",'4 - Species Breakdown'!L734)","v":""},{"$f":"IF('4 - Species Breakdown'!M734=0,\"\",'4 - Species Breakdown'!M734)","v":""},{"$f":"IF('4 - Species Breakdown'!N734=0,\"\",'4 - Species Breakdown'!N734)","v":""},{"$f":"IFERROR(('4 - Species Breakdown'!J734/'WCC Summary'!$D$14)*100,\"\")","v":""},{"$f":"IF('4 - Species Breakdown'!J734=0,\"\",'4 - Species Breakdown'!J734)","v":""}]
[null,{"$f":"IF('4 - Species Breakdown'!B735=0,\"\",'4 - Species Breakdown'!B735)","v":""},{"$f":"IF('4 - Species Breakdown'!D735=0,\"\",'4 - Species Breakdown'!D735)","v":""},{"$f":"IF('4 - Species Breakdown'!L735=0,\"\",'4 - Species Breakdown'!L735)","v":""},{"$f":"IF('4 - Species Breakdown'!M735=0,\"\",'4 - Species Breakdown'!M735)","v":""},{"$f":"IF('4 - Species Breakdown'!N735=0,\"\",'4 - Species Breakdown'!N735)","v":""},{"$f":"IFERROR(('4 - Species Breakdown'!J735/'WCC Summary'!$D$14)*100,\"\")","v":""},{"$f":"IF('4 - Species Breakdown'!J735=0,\"\",'4 - Species Breakdown'!J735)","v":""}]
[null,{"$f":"IF('4 - Species Breakdown'!B736=0,\"\",'4 - Species Breakdown'!B736)","v":""},{"$f":"IF('4 - Species Breakdown'!D736=0,\"\",'4 - Species Breakdown'!D736)","v":""},{"$f":"IF('4 - Species Breakdown'!L736=0,\"\",'4 - Species Breakdown'!L736)","v":""},{"$f":"IF('4 - Species Breakdown'!M736=0,\"\",'4 - Species Breakdown'!M736)","v":""},{"$f":"IF('4 - Species Breakdown'!N736=0,\"\",'4 - Species Breakdown'!N736)","v":""},{"$f":"IFERROR(('4 - Species Breakdown'!J736/'WCC Summary'!$D$14)*100,\"\")","v":""},{"$f":"IF('4 - Species Breakdown'!J736=0,\"\",'4 - Species Breakdown'!J736)","v":""}]
[null,{"$f":"IF('4 - Species Breakdown'!B737=0,\"\",'4 - Species Breakdown'!B737)","v":""},{"$f":"IF('4 - Species Breakdown'!D737=0,\"\",'4 - Species Breakdown'!D737)","v":""},{"$f":"IF('4 - Species Breakdown'!L737=0,\"\",'4 - Species Breakdown'!L737)","v":""},{"$f":"IF('4 - Species Breakdown'!M737=0,\"\",'4 - Species Breakdown'!M737)","v":""},{"$f":"IF('4 - Species Breakdown'!N737=0,\"\",'4 - Species Breakdown'!N737)","v":""},{"$f":"IFERROR(('4 - Species Breakdown'!J737/'WCC Summary'!$D$14)*100,\"\")","v":""},{"$f":"IF('4 - Species Breakdown'!J737=0,\"\",'4 - Species Breakdown'!J737)","v":""}]
[null,{"$f":"IF('4 - Species Breakdown'!B738=0,\"\",'4 - Species Breakdown'!B738)","v":""},{"$f":"IF('4 - Species Breakdown'!D738=0,\"\",'4 - Species Breakdown'!D738)","v":""},{"$f":"IF('4 - Species Breakdown'!L738=0,\"\",'4 - Species Breakdown'!L738)","v":""},{"$f":"IF('4 - Species Breakdown'!M738=0,\"\",'4 - Species Breakdown'!M738)","v":""},{"$f":"IF('4 - Species Breakdown'!N738=0,\"\",'4 - Species Breakdown'!N738)","v":""},{"$f":"IFERROR(('4 - Species Breakdown'!J738/'WCC Summary'!$D$14)*100,\"\")","v":""},{"$f":"IF('4 - Species Breakdown'!J738=0,\"\",'4 - Species Breakdown'!J738)","v":""}]
[null,{"$f":"IF('4 - Species Breakdown'!B739=0,\"\",'4 - Species Breakdown'!B739)","v":""},{"$f":"IF('4 - Species Breakdown'!D739=0,\"\",'4 - Species Breakdown'!D739)","v":""},{"$f":"IF('4 - Species Breakdown'!L739=0,\"\",'4 - Species Breakdown'!L739)","v":""},{"$f":"IF('4 - Species Breakdown'!M739=0,\"\",'4 - Species Breakdown'!M739)","v":""},{"$f":"IF('4 - Species Breakdown'!N739=0,\"\",'4 - Species Breakdown'!N739)","v":""},{"$f":"IFERROR(('4 - Species Breakdown'!J739/'WCC Summary'!$D$14)*100,\"\")","v":""},{"$f":"IF('4 - Species Breakdown'!J739=0,\"\",'4 - Species Breakdown'!J739)","v":""}]
[null,{"$f":"IF('4 - Species Breakdown'!B740=0,\"\",'4 - Species Breakdown'!B740)","v":""},{"$f":"IF('4 - Species Breakdown'!D740=0,\"\",'4 - Species Breakdown'!D740)","v":""},{"$f":"IF('4 - Species Breakdown'!L740=0,\"\",'4 - Species Breakdown'!L740)","v":""},{"$f":"IF('4 - Species Breakdown'!M740=0,\"\",'4 - Species Breakdown'!M740)","v":""},{"$f":"IF('4 - Species Breakdown'!N740=0,\"\",'4 - Species Breakdown'!N740)","v":""},{"$f":"IFERROR(('4 - Species Breakdown'!J740/'WCC Summary'!$D$14)*100,\"\")","v":""},{"$f":"IF('4 - Species Breakdown'!J740=0,\"\",'4 - Species Breakdown'!J740)","v":""}]
[null,{"$f":"IF('4 - Species Breakdown'!B741=0,\"\",'4 - Species Breakdown'!B741)","v":""},{"$f":"IF('4 - Species Breakdown'!D741=0,\"\",'4 - Species Breakdown'!D741)","v":""},{"$f":"IF('4 - Species Breakdown'!L741=0,\"\",'4 - Species Breakdown'!L741)","v":""},{"$f":"IF('4 - Species Breakdown'!M741=0,\"\",'4 - Species Breakdown'!M741)","v":""},{"$f":"IF('4 - Species Breakdown'!N741=0,\"\",'4 - Species Breakdown'!N741)","v":""},{"$f":"IFERROR(('4 - Species Breakdown'!J741/'WCC Summary'!$D$14)*100,\"\")","v":""},{"$f":"IF('4 - Species Breakdown'!J741=0,\"\",'4 - Species Breakdown'!J741)","v":""}]
[null,{"$f":"IF('4 - Species Breakdown'!B742=0,\"\",'4 - Species Breakdown'!B742)","v":""},{"$f":"IF('4 - Species Breakdown'!D742=0,\"\",'4 - Species Breakdown'!D742)","v":""},{"$f":"IF('4 - Species Breakdown'!L742=0,\"\",'4 - Species Breakdown'!L742)","v":""},{"$f":"IF('4 - Species Breakdown'!M742=0,\"\",'4 - Species Breakdown'!M742)","v":""},{"$f":"IF('4 - Species Breakdown'!N742=0,\"\",'4 - Species Breakdown'!N742)","v":""},{"$f":"IFERROR(('4 - Species Breakdown'!J742/'WCC Summary'!$D$14)*100,\"\")","v":""},{"$f":"IF('4 - Species Breakdown'!J742=0,\"\",'4 - Species Breakdown'!J742)","v":""}]
[null,{"$f":"IF('4 - Species Breakdown'!B743=0,\"\",'4 - Species Breakdown'!B743)","v":""},{"$f":"IF('4 - Species Breakdown'!D743=0,\"\",'4 - Species Breakdown'!D743)","v":""},{"$f":"IF('4 - Species Breakdown'!L743=0,\"\",'4 - Species Breakdown'!L743)","v":""},{"$f":"IF('4 - Species Breakdown'!M743=0,\"\",'4 - Species Breakdown'!M743)","v":""},{"$f":"IF('4 - Species Breakdown'!N743=0,\"\",'4 - Species Breakdown'!N743)","v":""},{"$f":"IFERROR(('4 - Species Breakdown'!J743/'WCC Summary'!$D$14)*100,\"\")","v":""},{"$f":"IF('4 - Species Breakdown'!J743=0,\"\",'4 - Species Breakdown'!J743)","v":""}]
[null,{"$f":"IF('4 - Species Breakdown'!B744=0,\"\",'4 - Species Breakdown'!B744)","v":""},{"$f":"IF('4 - Species Breakdown'!D744=0,\"\",'4 - Species Breakdown'!D744)","v":""},{"$f":"IF('4 - Species Breakdown'!L744=0,\"\",'4 - Species Breakdown'!L744)","v":""},{"$f":"IF('4 - Species Breakdown'!M744=0,\"\",'4 - Species Breakdown'!M744)","v":""},{"$f":"IF('4 - Species Breakdown'!N744=0,\"\",'4 - Species Breakdown'!N744)","v":""},{"$f":"IFERROR(('4 - Species Breakdown'!J744/'WCC Summary'!$D$14)*100,\"\")","v":""},{"$f":"IF('4 - Species Breakdown'!J744=0,\"\",'4 - Species Breakdown'!J744)","v":""}]
[null,{"$f":"IF('4 - Species Breakdown'!B745=0,\"\",'4 - Species Breakdown'!B745)","v":""},{"$f":"IF('4 - Species Breakdown'!D745=0,\"\",'4 - Species Breakdown'!D745)","v":""},{"$f":"IF('4 - Species Breakdown'!L745=0,\"\",'4 - Species Breakdown'!L745)","v":""},{"$f":"IF('4 - Species Breakdown'!M745=0,\"\",'4 - Species Breakdown'!M745)","v":""},{"$f":"IF('4 - Species Breakdown'!N745=0,\"\",'4 - Species Breakdown'!N745)","v":""},{"$f":"IFERROR(('4 - Species Breakdown'!J745/'WCC Summary'!$D$14)*100,\"\")","v":""},{"$f":"IF('4 - Species Breakdown'!J745=0,\"\",'4 - Species Breakdown'!J745)","v":""}]
[null,{"$f":"IF('4 - Species Breakdown'!B746=0,\"\",'4 - Species Breakdown'!B746)","v":""},{"$f":"IF('4 - Species Breakdown'!D746=0,\"\",'4 - Species Breakdown'!D746)","v":""},{"$f":"IF('4 - Species Breakdown'!L746=0,\"\",'4 - Species Breakdown'!L746)","v":""},{"$f":"IF('4 - Species Breakdown'!M746=0,\"\",'4 - Species Breakdown'!M746)","v":""},{"$f":"IF('4 - Species Breakdown'!N746=0,\"\",'4 - Species Breakdown'!N746)","v":""},{"$f":"IFERROR(('4 - Species Breakdown'!J746/'WCC Summary'!$D$14)*100,\"\")","v":""},{"$f":"IF('4 - Species Breakdown'!J746=0,\"\",'4 - Species Breakdown'!J746)","v":""}]
[null,{"$f":"IF('4 - Species Breakdown'!B747=0,\"\",'4 - Species Breakdown'!B747)","v":""},{"$f":"IF('4 - Species Breakdown'!D747=0,\"\",'4 - Species Breakdown'!D747)","v":""},{"$f":"IF('4 - Species Breakdown'!L747=0,\"\",'4 - Species Breakdown'!L747)","v":""},{"$f":"IF('4 - Species Breakdown'!M747=0,\"\",'4 - Species Breakdown'!M747)","v":""},{"$f":"IF('4 - Species Breakdown'!N747=0,\"\",'4 - Species Breakdown'!N747)","v":""},{"$f":"IFERROR(('4 - Species Breakdown'!J747/'WCC Summary'!$D$14)*100,\"\")","v":""},{"$f":"IF('4 - Species Breakdown'!J747=0,\"\",'4 - Species Breakdown'!J747)","v":""}]
[null,{"$f":"IF('4 - Species Breakdown'!B748=0,\"\",'4 - Species Breakdown'!B748)","v":""},{"$f":"IF('4 - Species Breakdown'!D748=0,\"\",'4 - Species Breakdown'!D748)","v":""},{"$f":"IF('4 - Species Breakdown'!L748=0,\"\",'4 - Species Breakdown'!L748)","v":""},{"$f":"IF('4 - Species Breakdown'!M748=0,\"\",'4 - Species Breakdown'!M748)","v":""},{"$f":"IF('4 - Species Breakdown'!N748=0,\"\",'4 - Species Breakdown'!N748)","v":""},{"$f":"IFERROR(('4 - Species Breakdown'!J748/'WCC Summary'!$D$14)*100,\"\")","v":""},{"$f":"IF('4 - Species Breakdown'!J748=0,\"\",'4 - Species Breakdown'!J748)","v":""}]
[null,{"$f":"IF('4 - Species Breakdown'!B749=0,\"\",'4 - Species Breakdown'!B749)","v":""},{"$f":"IF('4 - Species Breakdown'!D749=0,\"\",'4 - Species Breakdown'!D749)","v":""},{"$f":"IF('4 - Species Breakdown'!L749=0,\"\",'4 - Species Breakdown'!L749)","v":""},{"$f":"IF('4 - Species Breakdown'!M749=0,\"\",'4 - Species Breakdown'!M749)","v":""},{"$f":"IF('4 - Species Breakdown'!N749=0,\"\",'4 - Species Breakdown'!N749)","v":""},{"$f":"IFERROR(('4 - Species Breakdown'!J749/'WCC Summary'!$D$14)*100,\"\")","v":""},{"$f":"IF('4 - Species Breakdown'!J749=0,\"\",'4 - Species Breakdown'!J749)","v":""}]
[null,{"$f":"IF('4 - Species Breakdown'!B750=0,\"\",'4 - Species Breakdown'!B750)","v":""},{"$f":"IF('4 - Species Breakdown'!D750=0,\"\",'4 - Species Breakdown'!D750)","v":""},{"$f":"IF('4 - Species Breakdown'!L750=0,\"\",'4 - Species Breakdown'!L750)","v":""},{"$f":"IF('4 - Species Breakdown'!M750=0,\"\",'4 - Species Breakdown'!M750)","v":""},{"$f":"IF('4 - Species Breakdown'!N750=0,\"\",'4 - Species Breakdown'!N750)","v":""},{"$f":"IFERROR(('4 - Species Breakdown'!J750/'WCC Summary'!$D$14)*100,\"\")","v":""},{"$f":"IF('4 - Species Breakdown'!J750=0,\"\",'4 - Species Breakdown'!J750)","v":""}]
[null,{"$f":"IF('4 - Species Breakdown'!B751=0,\"\",'4 - Species Breakdown'!B751)","v":""},{"$f":"IF('4 - Species Breakdown'!D751=0,\"\",'4 - Species Breakdown'!D751)","v":""},{"$f":"IF('4 - Species Breakdown'!L751=0,\"\",'4 - Species Breakdown'!L751)","v":""},{"$f":"IF('4 - Species Breakdown'!M751=0,\"\",'4 - Species Breakdown'!M751)","v":""},{"$f":"IF('4 - Species Breakdown'!N751=0,\"\",'4 - Species Breakdown'!N751)","v":""},{"$f":"IFERROR(('4 - Species Breakdown'!J751/'WCC Summary'!$D$14)*100,\"\")","v":""},{"$f":"IF('4 - Species Breakdown'!J751=0,\"\",'4 - Species Breakdown'!J751)","v":""}]
[null,{"$f":"IF('4 - Species Breakdown'!B752=0,\"\",'4 - Species Breakdown'!B752)","v":""},{"$f":"IF('4 - Species Breakdown'!D752=0,\"\",'4 - Species Breakdown'!D752)","v":""},{"$f":"IF('4 - Species Breakdown'!L752=0,\"\",'4 - Species Breakdown'!L752)","v":""},{"$f":"IF('4 - Species Breakdown'!M752=0,\"\",'4 - Species Breakdown'!M752)","v":""},{"$f":"IF('4 - Species Breakdown'!N752=0,\"\",'4 - Species Breakdown'!N752)","v":""},{"$f":"IFERROR(('4 - Species Breakdown'!J752/'WCC Summary'!$D$14)*100,\"\")","v":""},{"$f":"IF('4 - Species Breakdown'!J752=0,\"\",'4 - Species Breakdown'!J752)","v":""}]
[null,{"$f":"IF('4 - Species Breakdown'!B753=0,\"\",'4 - Species Breakdown'!B753)","v":""},{"$f":"IF('4 - Species Breakdown'!D753=0,\"\",'4 - Species Breakdown'!D753)","v":""},{"$f":"IF('4 - Species Breakdown'!L753=0,\"\",'4 - Species Breakdown'!L753)","v":""},{"$f":"IF('4 - Species Breakdown'!M753=0,\"\",'4 - Species Breakdown'!M753)","v":""},{"$f":"IF('4 - Species Breakdown'!N753=0,\"\",'4 - Species Breakdown'!N753)","v":""},{"$f":"IFERROR(('4 - Species Breakdown'!J753/'WCC Summary'!$D$14)*100,\"\")","v":""},{"$f":"IF('4 - Species Breakdown'!J753=0,\"\",'4 - Species Breakdown'!J753)","v":""}]
[null,{"$f":"IF('4 - Species Breakdown'!B754=0,\"\",'4 - Species Breakdown'!B754)","v":""},{"$f":"IF('4 - Species Breakdown'!D754=0,\"\",'4 - Species Breakdown'!D754)","v":""},{"$f":"IF('4 - Species Breakdown'!L754=0,\"\",'4 - Species Breakdown'!L754)","v":""},{"$f":"IF('4 - Species Breakdown'!M754=0,\"\",'4 - Species Breakdown'!M754)","v":""},{"$f":"IF('4 - Species Breakdown'!N754=0,\"\",'4 - Species Breakdown'!N754)","v":""},{"$f":"IFERROR(('4 - Species Breakdown'!J754/'WCC Summary'!$D$14)*100,\"\")","v":""},{"$f":"IF('4 - Species Breakdown'!J754=0,\"\",'4 - Species Breakdown'!J754)","v":""}]
[null,{"$f":"IF('4 - Species Breakdown'!B755=0,\"\",'4 - Species Breakdown'!B755)","v":""},{"$f":"IF('4 - Species Breakdown'!D755=0,\"\",'4 - Species Breakdown'!D755)","v":""},{"$f":"IF('4 - Species Breakdown'!L755=0,\"\",'4 - Species Breakdown'!L755)","v":""},{"$f":"IF('4 - Species Breakdown'!M755=0,\"\",'4 - Species Breakdown'!M755)","v":""},{"$f":"IF('4 - Species Breakdown'!N755=0,\"\",'4 - Species Breakdown'!N755)","v":""},{"$f":"IFERROR(('4 - Species Breakdown'!J755/'WCC Summary'!$D$14)*100,\"\")","v":""},{"$f":"IF('4 - Species Breakdown'!J755=0,\"\",'4 - Species Breakdown'!J755)","v":""}]
[null,{"$f":"IF('4 - Species Breakdown'!B756=0,\"\",'4 - Species Breakdown'!B756)","v":""},{"$f":"IF('4 - Species Breakdown'!D756=0,\"\",'4 - Species Breakdown'!D756)","v":""},{"$f":"IF('4 - Species Breakdown'!L756=0,\"\",'4 - Species Breakdown'!L756)","v":""},{"$f":"IF('4 - Species Breakdown'!M756=0,\"\",'4 - Species Breakdown'!M756)","v":""},{"$f":"IF('4 - Species Breakdown'!N756=0,\"\",'4 - Species Breakdown'!N756)","v":""},{"$f":"IFERROR(('4 - Species Breakdown'!J756/'WCC Summary'!$D$14)*100,\"\")","v":""},{"$f":"IF('4 - Species Breakdown'!J756=0,\"\",'4 - Species Breakdown'!J756)","v":""}]
[null,{"$f":"IF('4 - Species Breakdown'!B757=0,\"\",'4 - Species Breakdown'!B757)","v":""},{"$f":"IF('4 - Species Breakdown'!D757=0,\"\",'4 - Species Breakdown'!D757)","v":""},{"$f":"IF('4 - Species Breakdown'!L757=0,\"\",'4 - Species Breakdown'!L757)","v":""},{"$f":"IF('4 - Species Breakdown'!M757=0,\"\",'4 - Species Breakdown'!M757)","v":""},{"$f":"IF('4 - Species Breakdown'!N757=0,\"\",'4 - Species Breakdown'!N757)","v":""},{"$f":"IFERROR(('4 - Species Breakdown'!J757/'WCC Summary'!$D$14)*100,\"\")","v":""},{"$f":"IF('4 - Species Breakdown'!J757=0,\"\",'4 - Species Breakdown'!J757)","v":""}]
[null,{"$f":"IF('4 - Species Breakdown'!B758=0,\"\",'4 - Species Breakdown'!B758)","v":""},{"$f":"IF('4 - Species Breakdown'!D758=0,\"\",'4 - Species Breakdown'!D758)","v":""},{"$f":"IF('4 - Species Breakdown'!L758=0,\"\",'4 - Species Breakdown'!L758)","v":""},{"$f":"IF('4 - Species Breakdown'!M758=0,\"\",'4 - Species Breakdown'!M758)","v":""},{"$f":"IF('4 - Species Breakdown'!N758=0,\"\",'4 - Species Breakdown'!N758)","v":""},{"$f":"IFERROR(('4 - Species Breakdown'!J758/'WCC Summary'!$D$14)*100,\"\")","v":""},{"$f":"IF('4 - Species Breakdown'!J758=0,\"\",'4 - Species Breakdown'!J758)","v":""}]
[null,{"$f":"IF('4 - Species Breakdown'!B759=0,\"\",'4 - Species Breakdown'!B759)","v":""},{"$f":"IF('4 - Species Breakdown'!D759=0,\"\",'4 - Species Breakdown'!D759)","v":""},{"$f":"IF('4 - Species Breakdown'!L759=0,\"\",'4 - Species Breakdown'!L759)","v":""},{"$f":"IF('4 - Species Breakdown'!M759=0,\"\",'4 - Species Breakdown'!M759)","v":""},{"$f":"IF('4 - Species Breakdown'!N759=0,\"\",'4 - Species Breakdown'!N759)","v":""},{"$f":"IFERROR(('4 - Species Breakdown'!J759/'WCC Summary'!$D$14)*100,\"\")","v":""},{"$f":"IF('4 - Species Breakdown'!J759=0,\"\",'4 - Species Breakdown'!J759)","v":""}]
[null,{"$f":"IF('4 - Species Breakdown'!B760=0,\"\",'4 - Species Breakdown'!B760)","v":""},{"$f":"IF('4 - Species Breakdown'!D760=0,\"\",'4 - Species Breakdown'!D760)","v":""},{"$f":"IF('4 - Species Breakdown'!L760=0,\"\",'4 - Species Breakdown'!L760)","v":""},{"$f":"IF('4 - Species Breakdown'!M760=0,\"\",'4 - Species Breakdown'!M760)","v":""},{"$f":"IF('4 - Species Breakdown'!N760=0,\"\",'4 - Species Breakdown'!N760)","v":""},{"$f":"IFERROR(('4 - Species Breakdown'!J760/'WCC Summary'!$D$14)*100,\"\")","v":""},{"$f":"IF('4 - Species Breakdown'!J760=0,\"\",'4 - Species Breakdown'!J760)","v":""}]
[null,{"$f":"IF('4 - Species Breakdown'!B761=0,\"\",'4 - Species Breakdown'!B761)","v":""},{"$f":"IF('4 - Species Breakdown'!D761=0,\"\",'4 - Species Breakdown'!D761)","v":""},{"$f":"IF('4 - Species Breakdown'!L761=0,\"\",'4 - Species Breakdown'!L761)","v":""},{"$f":"IF('4 - Species Breakdown'!M761=0,\"\",'4 - Species Breakdown'!M761)","v":""},{"$f":"IF('4 - Species Breakdown'!N761=0,\"\",'4 - Species Breakdown'!N761)","v":""},{"$f":"IFERROR(('4 - Species Breakdown'!J761/'WCC Summary'!$D$14)*100,\"\")","v":""},{"$f":"IF('4 - Species Breakdown'!J761=0,\"\",'4 - Species Breakdown'!J761)","v":""}]
[null,{"$f":"IF('4 - Species Breakdown'!B762=0,\"\",'4 - Species Breakdown'!B762)","v":""},{"$f":"IF('4 - Species Breakdown'!D762=0,\"\",'4 - Species Breakdown'!D762)","v":""},{"$f":"IF('4 - Species Breakdown'!L762=0,\"\",'4 - Species Breakdown'!L762)","v":""},{"$f":"IF('4 - Species Breakdown'!M762=0,\"\",'4 - Species Breakdown'!M762)","v":""},{"$f":"IF('4 - Species Breakdown'!N762=0,\"\",'4 - Species Breakdown'!N762)","v":""},{"$f":"IFERROR(('4 - Species Breakdown'!J762/'WCC Summary'!$D$14)*100,\"\")","v":""},{"$f":"IF('4 - Species Breakdown'!J762=0,\"\",'4 - Species Breakdown'!J762)","v":""}]
[null,{"$f":"IF('4 - Species Breakdown'!B763=0,\"\",'4 - Species Breakdown'!B763)","v":""},{"$f":"IF('4 - Species Breakdown'!D763=0,\"\",'4 - Species Breakdown'!D763)","v":""},{"$f":"IF('4 - Species Breakdown'!L763=0,\"\",'4 - Species Breakdown'!L763)","v":""},{"$f":"IF('4 - Species Breakdown'!M763=0,\"\",'4 - Species Breakdown'!M763)","v":""},{"$f":"IF('4 - Species Breakdown'!N763=0,\"\",'4 - Species Breakdown'!N763)","v":""},{"$f":"IFERROR(('4 - Species Breakdown'!J763/'WCC Summary'!$D$14)*100,\"\")","v":""},{"$f":"IF('4 - Species Breakdown'!J763=0,\"\",'4 - Species Breakdown'!J763)","v":""}]
[null,{"$f":"IF('4 - Species Breakdown'!B764=0,\"\",'4 - Species Breakdown'!B764)","v":""},{"$f":"IF('4 - Species Breakdown'!D764=0,\"\",'4 - Species Breakdown'!D764)","v":""},{"$f":"IF('4 - Species Breakdown'!L764=0,\"\",'4 - Species Breakdown'!L764)","v":""},{"$f":"IF('4 - Species Breakdown'!M764=0,\"\",'4 - Species Breakdown'!M764)","v":""},{"$f":"IF('4 - Species Breakdown'!N764=0,\"\",'4 - Species Breakdown'!N764)","v":""},{"$f":"IFERROR(('4 - Species Breakdown'!J764/'WCC Summary'!$D$14)*100,\"\")","v":""},{"$f":"IF('4 - Species Breakdown'!J764=0,\"\",'4 - Species Breakdown'!J764)","v":""}]
[null,{"$f":"IF('4 - Species Breakdown'!B765=0,\"\",'4 - Species Breakdown'!B765)","v":""},{"$f":"IF('4 - Species Breakdown'!D765=0,\"\",'4 - Species Breakdown'!D765)","v":""},{"$f":"IF('4 - Species Breakdown'!L765=0,\"\",'4 - Species Breakdown'!L765)","v":""},{"$f":"IF('4 - Species Breakdown'!M765=0,\"\",'4 - Species Breakdown'!M765)","v":""},{"$f":"IF('4 - Species Breakdown'!N765=0,\"\",'4 - Species Breakdown'!N765)","v":""},{"$f":"IFERROR(('4 - Species Breakdown'!J765/'WCC Summary'!$D$14)*100,\"\")","v":""},{"$f":"IF('4 - Species Breakdown'!J765=0,\"\",'4 - Species Breakdown'!J765)","v":""}]
[null,{"$f":"IF('4 - Species Breakdown'!B766=0,\"\",'4 - Species Breakdown'!B766)","v":""},{"$f":"IF('4 - Species Breakdown'!D766=0,\"\",'4 - Species Breakdown'!D766)","v":""},{"$f":"IF('4 - Species Breakdown'!L766=0,\"\",'4 - Species Breakdown'!L766)","v":""},{"$f":"IF('4 - Species Breakdown'!M766=0,\"\",'4 - Species Breakdown'!M766)","v":""},{"$f":"IF('4 - Species Breakdown'!N766=0,\"\",'4 - Species Breakdown'!N766)","v":""},{"$f":"IFERROR(('4 - Species Breakdown'!J766/'WCC Summary'!$D$14)*100,\"\")","v":""},{"$f":"IF('4 - Species Breakdown'!J766=0,\"\",'4 - Species Breakdown'!J766)","v":""}]
[null,{"$f":"IF('4 - Species Breakdown'!B767=0,\"\",'4 - Species Breakdown'!B767)","v":""},{"$f":"IF('4 - Species Breakdown'!D767=0,\"\",'4 - Species Breakdown'!D767)","v":""},{"$f":"IF('4 - Species Breakdown'!L767=0,\"\",'4 - Species Breakdown'!L767)","v":""},{"$f":"IF('4 - Species Breakdown'!M767=0,\"\",'4 - Species Breakdown'!M767)","v":""},{"$f":"IF('4 - Species Breakdown'!N767=0,\"\",'4 - Species Breakdown'!N767)","v":""},{"$f":"IFERROR(('4 - Species Breakdown'!J767/'WCC Summary'!$D$14)*100,\"\")","v":""},{"$f":"IF('4 - Species Breakdown'!J767=0,\"\",'4 - Species Breakdown'!J767)","v":""}]
[null,{"$f":"IF('4 - Species Breakdown'!B768=0,\"\",'4 - Species Breakdown'!B768)","v":""},{"$f":"IF('4 - Species Breakdown'!D768=0,\"\",'4 - Species Breakdown'!D768)","v":""},{"$f":"IF('4 - Species Breakdown'!L768=0,\"\",'4 - Species Breakdown'!L768)","v":""},{"$f":"IF('4 - Species Breakdown'!M768=0,\"\",'4 - Species Breakdown'!M768)","v":""},{"$f":"IF('4 - Species Breakdown'!N768=0,\"\",'4 - Species Breakdown'!N768)","v":""},{"$f":"IFERROR(('4 - Species Breakdown'!J768/'WCC Summary'!$D$14)*100,\"\")","v":""},{"$f":"IF('4 - Species Breakdown'!J768=0,\"\",'4 - Species Breakdown'!J768)","v":""}]
[null,{"$f":"IF('4 - Species Breakdown'!B769=0,\"\",'4 - Species Breakdown'!B769)","v":""},{"$f":"IF('4 - Species Breakdown'!D769=0,\"\",'4 - Species Breakdown'!D769)","v":""},{"$f":"IF('4 - Species Breakdown'!L769=0,\"\",'4 - Species Breakdown'!L769)","v":""},{"$f":"IF('4 - Species Breakdown'!M769=0,\"\",'4 - Species Breakdown'!M769)","v":""},{"$f":"IF('4 - Species Breakdown'!N769=0,\"\",'4 - Species Breakdown'!N769)","v":""},{"$f":"IFERROR(('4 - Species Breakdown'!J769/'WCC Summary'!$D$14)*100,\"\")","v":""},{"$f":"IF('4 - Species Breakdown'!J769=0,\"\",'4 - Species Breakdown'!J769)","v":""}]
[null,{"$f":"IF('4 - Species Breakdown'!B770=0,\"\",'4 - Species Breakdown'!B770)","v":""},{"$f":"IF('4 - Species Breakdown'!D770=0,\"\",'4 - Species Breakdown'!D770)","v":""},{"$f":"IF('4 - Species Breakdown'!L770=0,\"\",'4 - Species Breakdown'!L770)","v":""},{"$f":"IF('4 - Species Breakdown'!M770=0,\"\",'4 - Species Breakdown'!M770)","v":""},{"$f":"IF('4 - Species Breakdown'!N770=0,\"\",'4 - Species Breakdown'!N770)","v":""},{"$f":"IFERROR(('4 - Species Breakdown'!J770/'WCC Summary'!$D$14)*100,\"\")","v":""},{"$f":"IF('4 - Species Breakdown'!J770=0,\"\",'4 - Species Breakdown'!J770)","v":""}]
[null,{"$f":"IF('4 - Species Breakdown'!B771=0,\"\",'4 - Species Breakdown'!B771)","v":""},{"$f":"IF('4 - Species Breakdown'!D771=0,\"\",'4 - Species Breakdown'!D771)","v":""},{"$f":"IF('4 - Species Breakdown'!L771=0,\"\",'4 - Species Breakdown'!L771)","v":""},{"$f":"IF('4 - Species Breakdown'!M771=0,\"\",'4 - Species Breakdown'!M771)","v":""},{"$f":"IF('4 - Species Breakdown'!N771=0,\"\",'4 - Species Breakdown'!N771)","v":""},{"$f":"IFERROR(('4 - Species Breakdown'!J771/'WCC Summary'!$D$14)*100,\"\")","v":""},{"$f":"IF('4 - Species Breakdown'!J771=0,\"\",'4 - Species Breakdown'!J771)","v":""}]
[null,{"$f":"IF('4 - Species Breakdown'!B772=0,\"\",'4 - Species Breakdown'!B772)","v":""},{"$f":"IF('4 - Species Breakdown'!D772=0,\"\",'4 - Species Breakdown'!D772)","v":""},{"$f":"IF('4 - Species Breakdown'!L772=0,\"\",'4 - Species Breakdown'!L772)","v":""},{"$f":"IF('4 - Species Breakdown'!M772=0,\"\",'4 - Species Breakdown'!M772)","v":""},{"$f":"IF('4 - Species Breakdown'!N772=0,\"\",'4 - Species Breakdown'!N772)","v":""},{"$f":"IFERROR(('4 - Species Breakdown'!J772/'WCC Summary'!$D$14)*100,\"\")","v":""},{"$f":"IF('4 - Species Breakdown'!J772=0,\"\",'4 - Species Breakdown'!J772)","v":""}]
[null,{"$f":"IF('4 - Species Breakdown'!B773=0,\"\",'4 - Species Breakdown'!B773)","v":""},{"$f":"IF('4 - Species Breakdown'!D773=0,\"\",'4 - Species Breakdown'!D773)","v":""},{"$f":"IF('4 - Species Breakdown'!L773=0,\"\",'4 - Species Breakdown'!L773)","v":""},{"$f":"IF('4 - Species Breakdown'!M773=0,\"\",'4 - Species Breakdown'!M773)","v":""},{"$f":"IF('4 - Species Breakdown'!N773=0,\"\",'4 - Species Breakdown'!N773)","v":""},{"$f":"IFERROR(('4 - Species Breakdown'!J773/'WCC Summary'!$D$14)*100,\"\")","v":""},{"$f":"IF('4 - Species Breakdown'!J773=0,\"\",'4 - Species Breakdown'!J773)","v":""}]
[null,{"$f":"IF('4 - Species Breakdown'!B774=0,\"\",'4 - Species Breakdown'!B774)","v":""},{"$f":"IF('4 - Species Breakdown'!D774=0,\"\",'4 - Species Breakdown'!D774)","v":""},{"$f":"IF('4 - Species Breakdown'!L774=0,\"\",'4 - Species Breakdown'!L774)","v":""},{"$f":"IF('4 - Species Breakdown'!M774=0,\"\",'4 - Species Breakdown'!M774)","v":""},{"$f":"IF('4 - Species Breakdown'!N774=0,\"\",'4 - Species Breakdown'!N774)","v":""},{"$f":"IFERROR(('4 - Species Breakdown'!J774/'WCC Summary'!$D$14)*100,\"\")","v":""},{"$f":"IF('4 - Species Breakdown'!J774=0,\"\",'4 - Species Breakdown'!J774)","v":""}]
[null,{"$f":"IF('4 - Species Breakdown'!B775=0,\"\",'4 - Species Breakdown'!B775)","v":""},{"$f":"IF('4 - Species Breakdown'!D775=0,\"\",'4 - Species Breakdown'!D775)","v":""},{"$f":"IF('4 - Species Breakdown'!L775=0,\"\",'4 - Species Breakdown'!L775)","v":""},{"$f":"IF('4 - Species Breakdown'!M775=0,\"\",'4 - Species Breakdown'!M775)","v":""},{"$f":"IF('4 - Species Breakdown'!N775=0,\"\",'4 - Species Breakdown'!N775)","v":""},{"$f":"IFERROR(('4 - Species Breakdown'!J775/'WCC Summary'!$D$14)*100,\"\")","v":""},{"$f":"IF('4 - Species Breakdown'!J775=0,\"\",'4 - Species Breakdown'!J775)","v":""}]
[null,{"$f":"IF('4 - Species Breakdown'!B776=0,\"\",'4 - Species Breakdown'!B776)","v":""},{"$f":"IF('4 - Species Breakdown'!D776=0,\"\",'4 - Species Breakdown'!D776)","v":""},{"$f":"IF('4 - Species Breakdown'!L776=0,\"\",'4 - Species Breakdown'!L776)","v":""},{"$f":"IF('4 - Species Breakdown'!M776=0,\"\",'4 - Species Breakdown'!M776)","v":""},{"$f":"IF('4 - Species Breakdown'!N776=0,\"\",'4 - Species Breakdown'!N776)","v":""},{"$f":"IFERROR(('4 - Species Breakdown'!J776/'WCC Summary'!$D$14)*100,\"\")","v":""},{"$f":"IF('4 - Species Breakdown'!J776=0,\"\",'4 - Species Breakdown'!J776)","v":""}]
[null,{"$f":"IF('4 - Species Breakdown'!B777=0,\"\",'4 - Species Breakdown'!B777)","v":""},{"$f":"IF('4 - Species Breakdown'!D777=0,\"\",'4 - Species Breakdown'!D777)","v":""},{"$f":"IF('4 - Species Breakdown'!L777=0,\"\",'4 - Species Breakdown'!L777)","v":""},{"$f":"IF('4 - Species Breakdown'!M777=0,\"\",'4 - Species Breakdown'!M777)","v":""},{"$f":"IF('4 - Species Breakdown'!N777=0,\"\",'4 - Species Breakdown'!N777)","v":""},{"$f":"IFERROR(('4 - Species Breakdown'!J777/'WCC Summary'!$D$14)*100,\"\")","v":""},{"$f":"IF('4 - Species Breakdown'!J777=0,\"\",'4 - Species Breakdown'!J777)","v":""}]
[null,{"$f":"IF('4 - Species Breakdown'!B778=0,\"\",'4 - Species Breakdown'!B778)","v":""},{"$f":"IF('4 - Species Breakdown'!D778=0,\"\",'4 - Species Breakdown'!D778)","v":""},{"$f":"IF('4 - Species Breakdown'!L778=0,\"\",'4 - Species Breakdown'!L778)","v":""},{"$f":"IF('4 - Species Breakdown'!M778=0,\"\",'4 - Species Breakdown'!M778)","v":""},{"$f":"IF('4 - Species Breakdown'!N778=0,\"\",'4 - Species Breakdown'!N778)","v":""},{"$f":"IFERROR(('4 - Species Breakdown'!J778/'WCC Summary'!$D$14)*100,\"\")","v":""},{"$f":"IF('4 - Species Breakdown'!J778=0,\"\",'4 - Species Breakdown'!J778)","v":""}]
[null,{"$f":"IF('4 - Species Breakdown'!B779=0,\"\",'4 - Species Breakdown'!B779)","v":""},{"$f":"IF('4 - Species Breakdown'!D779=0,\"\",'4 - Species Breakdown'!D779)","v":""},{"$f":"IF('4 - Species Breakdown'!L779=0,\"\",'4 - Species Breakdown'!L779)","v":""},{"$f":"IF('4 - Species Breakdown'!M779=0,\"\",'4 - Species Breakdown'!M779)","v":""},{"$f":"IF('4 - Species Breakdown'!N779=0,\"\",'4 - Species Breakdown'!N779)","v":""},{"$f":"IFERROR(('4 - Species Breakdown'!J779/'WCC Summary'!$D$14)*100,\"\")","v":""},{"$f":"IF('4 - Species Breakdown'!J779=0,\"\",'4 - Species Breakdown'!J779)","v":""}]
[null,{"$f":"IF('4 - Species Breakdown'!B780=0,\"\",'4 - Species Breakdown'!B780)","v":""},{"$f":"IF('4 - Species Breakdown'!D780=0,\"\",'4 - Species Breakdown'!D780)","v":""},{"$f":"IF('4 - Species Breakdown'!L780=0,\"\",'4 - Species Breakdown'!L780)","v":""},{"$f":"IF('4 - Species Breakdown'!M780=0,\"\",'4 - Species Breakdown'!M780)","v":""},{"$f":"IF('4 - Species Breakdown'!N780=0,\"\",'4 - Species Breakdown'!N780)","v":""},{"$f":"IFERROR(('4 - Species Breakdown'!J780/'WCC Summary'!$D$14)*100,\"\")","v":""},{"$f":"IF('4 - Species Breakdown'!J780=0,\"\",'4 - Species Breakdown'!J780)","v":""}]
[null,{"$f":"IF('4 - Species Breakdown'!B781=0,\"\",'4 - Species Breakdown'!B781)","v":""},{"$f":"IF('4 - Species Breakdown'!D781=0,\"\",'4 - Species Breakdown'!D781)","v":""},{"$f":"IF('4 - Species Breakdown'!L781=0,\"\",'4 - Species Breakdown'!L781)","v":""},{"$f":"IF('4 - Species Breakdown'!M781=0,\"\",'4 - Species Breakdown'!M781)","v":""},{"$f":"IF('4 - Species Breakdown'!N781=0,\"\",'4 - Species Breakdown'!N781)","v":""},{"$f":"IFERROR(('4 - Species Breakdown'!J781/'WCC Summary'!$D$14)*100,\"\")","v":""},{"$f":"IF('4 - Species Breakdown'!J781=0,\"\",'4 - Species Breakdown'!J781)","v":""}]
[null,{"$f":"IF('4 - Species Breakdown'!B782=0,\"\",'4 - Species Breakdown'!B782)","v":""},{"$f":"IF('4 - Species Breakdown'!D782=0,\"\",'4 - Species Breakdown'!D782)","v":""},{"$f":"IF('4 - Species Breakdown'!L782=0,\"\",'4 - Species Breakdown'!L782)","v":""},{"$f":"IF('4 - Species Breakdown'!M782=0,\"\",'4 - Species Breakdown'!M782)","v":""},{"$f":"IF('4 - Species Breakdown'!N782=0,\"\",'4 - Species Breakdown'!N782)","v":""},{"$f":"IFERROR(('4 - Species Breakdown'!J782/'WCC Summary'!$D$14)*100,\"\")","v":""},{"$f":"IF('4 - Species Breakdown'!J782=0,\"\",'4 - Species Breakdown'!J782)","v":""}]
[null,{"$f":"IF('4 - Species Breakdown'!B783=0,\"\",'4 - Species Breakdown'!B783)","v":""},{"$f":"IF('4 - Species Breakdown'!D783=0,\"\",'4 - Species Breakdown'!D783)","v":""},{"$f":"IF('4 - Species Breakdown'!L783=0,\"\",'4 - Species Breakdown'!L783)","v":""},{"$f":"IF('4 - Species Breakdown'!M783=0,\"\",'4 - Species Breakdown'!M783)","v":""},{"$f":"IF('4 - Species Breakdown'!N783=0,\"\",'4 - Species Breakdown'!N783)","v":""},{"$f":"IFERROR(('4 - Species Breakdown'!J783/'WCC Summary'!$D$14)*100,\"\")","v":""},{"$f":"IF('4 - Species Breakdown'!J783=0,\"\",'4 - Species Breakdown'!J783)","v":""}]
[null,{"$f":"IF('4 - Species Breakdown'!B784=0,\"\",'4 - Species Breakdown'!B784)","v":""},{"$f":"IF('4 - Species Breakdown'!D784=0,\"\",'4 - Species Breakdown'!D784)","v":""},{"$f":"IF('4 - Species Breakdown'!L784=0,\"\",'4 - Species Breakdown'!L784)","v":""},{"$f":"IF('4 - Species Breakdown'!M784=0,\"\",'4 - Species Breakdown'!M784)","v":""},{"$f":"IF('4 - Species Breakdown'!N784=0,\"\",'4 - Species Breakdown'!N784)","v":""},{"$f":"IFERROR(('4 - Species Breakdown'!J784/'WCC Summary'!$D$14)*100,\"\")","v":""},{"$f":"IF('4 - Species Breakdown'!J784=0,\"\",'4 - Species Breakdown'!J784)","v":""}]
[null,{"$f":"IF('4 - Species Breakdown'!B785=0,\"\",'4 - Species Breakdown'!B785)","v":""},{"$f":"IF('4 - Species Breakdown'!D785=0,\"\",'4 - Species Breakdown'!D785)","v":""},{"$f":"IF('4 - Species Breakdown'!L785=0,\"\",'4 - Species Breakdown'!L785)","v":""},{"$f":"IF('4 - Species Breakdown'!M785=0,\"\",'4 - Species Breakdown'!M785)","v":""},{"$f":"IF('4 - Species Breakdown'!N785=0,\"\",'4 - Species Breakdown'!N785)","v":""},{"$f":"IFERROR(('4 - Species Breakdown'!J785/'WCC Summary'!$D$14)*100,\"\")","v":""},{"$f":"IF('4 - Species Breakdown'!J785=0,\"\",'4 - Species Breakdown'!J785)","v":""}]
[null,{"$f":"IF('4 - Species Breakdown'!B786=0,\"\",'4 - Species Breakdown'!B786)","v":""},{"$f":"IF('4 - Species Breakdown'!D786=0,\"\",'4 - Species Breakdown'!D786)","v":""},{"$f":"IF('4 - Species Breakdown'!L786=0,\"\",'4 - Species Breakdown'!L786)","v":""},{"$f":"IF('4 - Species Breakdown'!M786=0,\"\",'4 - Species Breakdown'!M786)","v":""},{"$f":"IF('4 - Species Breakdown'!N786=0,\"\",'4 - Species Breakdown'!N786)","v":""},{"$f":"IFERROR(('4 - Species Breakdown'!J786/'WCC Summary'!$D$14)*100,\"\")","v":""},{"$f":"IF('4 - Species Breakdown'!J786=0,\"\",'4 - Species Breakdown'!J786)","v":""}]
[null,{"$f":"IF('4 - Species Breakdown'!B787=0,\"\",'4 - Species Breakdown'!B787)","v":""},{"$f":"IF('4 - Species Breakdown'!D787=0,\"\",'4 - Species Breakdown'!D787)","v":""},{"$f":"IF('4 - Species Breakdown'!L787=0,\"\",'4 - Species Breakdown'!L787)","v":""},{"$f":"IF('4 - Species Breakdown'!M787=0,\"\",'4 - Species Breakdown'!M787)","v":""},{"$f":"IF('4 - Species Breakdown'!N787=0,\"\",'4 - Species Breakdown'!N787)","v":""},{"$f":"IFERROR(('4 - Species Breakdown'!J787/'WCC Summary'!$D$14)*100,\"\")","v":""},{"$f":"IF('4 - Species Breakdown'!J787=0,\"\",'4 - Species Breakdown'!J787)","v":""}]
[null,{"$f":"IF('4 - Species Breakdown'!B788=0,\"\",'4 - Species Breakdown'!B788)","v":""},{"$f":"IF('4 - Species Breakdown'!D788=0,\"\",'4 - Species Breakdown'!D788)","v":""},{"$f":"IF('4 - Species Breakdown'!L788=0,\"\",'4 - Species Breakdown'!L788)","v":""},{"$f":"IF('4 - Species Breakdown'!M788=0,\"\",'4 - Species Breakdown'!M788)","v":""},{"$f":"IF('4 - Species Breakdown'!N788=0,\"\",'4 - Species Breakdown'!N788)","v":""},{"$f":"IFERROR(('4 - Species Breakdown'!J788/'WCC Summary'!$D$14)*100,\"\")","v":""},{"$f":"IF('4 - Species Breakdown'!J788=0,\"\",'4 - Species Breakdown'!J788)","v":""}]
[null,{"$f":"IF('4 - Species Breakdown'!B789=0,\"\",'4 - Species Breakdown'!B789)","v":""},{"$f":"IF('4 - Species Breakdown'!D789=0,\"\",'4 - Species Breakdown'!D789)","v":""},{"$f":"IF('4 - Species Breakdown'!L789=0,\"\",'4 - Species Breakdown'!L789)","v":""},{"$f":"IF('4 - Species Breakdown'!M789=0,\"\",'4 - Species Breakdown'!M789)","v":""},{"$f":"IF('4 - Species Breakdown'!N789=0,\"\",'4 - Species Breakdown'!N789)","v":""},{"$f":"IFERROR(('4 - Species Breakdown'!J789/'WCC Summary'!$D$14)*100,\"\")","v":""},{"$f":"IF('4 - Species Breakdown'!J789=0,\"\",'4 - Species Breakdown'!J789)","v":""}]
[null,{"$f":"IF('4 - Species Breakdown'!B790=0,\"\",'4 - Species Breakdown'!B790)","v":""},{"$f":"IF('4 - Species Breakdown'!D790=0,\"\",'4 - Species Breakdown'!D790)","v":""},{"$f":"IF('4 - Species Breakdown'!L790=0,\"\",'4 - Species Breakdown'!L790)","v":""},{"$f":"IF('4 - Species Breakdown'!M790=0,\"\",'4 - Species Breakdown'!M790)","v":""},{"$f":"IF('4 - Species Breakdown'!N790=0,\"\",'4 - Species Breakdown'!N790)","v":""},{"$f":"IFERROR(('4 - Species Breakdown'!J790/'WCC Summary'!$D$14)*100,\"\")","v":""},{"$f":"IF('4 - Species Breakdown'!J790=0,\"\",'4 - Species Breakdown'!J790)","v":""}]
[null,{"$f":"IF('4 - Species Breakdown'!B791=0,\"\",'4 - Species Breakdown'!B791)","v":""},{"$f":"IF('4 - Species Breakdown'!D791=0,\"\",'4 - Species Breakdown'!D791)","v":""},{"$f":"IF('4 - Species Breakdown'!L791=0,\"\",'4 - Species Breakdown'!L791)","v":""},{"$f":"IF('4 - Species Breakdown'!M791=0,\"\",'4 - Species Breakdown'!M791)","v":""},{"$f":"IF('4 - Species Breakdown'!N791=0,\"\",'4 - Species Breakdown'!N791)","v":""},{"$f":"IFERROR(('4 - Species Breakdown'!J791/'WCC Summary'!$D$14)*100,\"\")","v":""},{"$f":"IF('4 - Species Breakdown'!J791=0,\"\",'4 - Species Breakdown'!J791)","v":""}]
[null,{"$f":"IF('4 - Species Breakdown'!B792=0,\"\",'4 - Species Breakdown'!B792)","v":""},{"$f":"IF('4 - Species Breakdown'!D792=0,\"\",'4 - Species Breakdown'!D792)","v":""},{"$f":"IF('4 - Species Breakdown'!L792=0,\"\",'4 - Species Breakdown'!L792)","v":""},{"$f":"IF('4 - Species Breakdown'!M792=0,\"\",'4 - Species Breakdown'!M792)","v":""},{"$f":"IF('4 - Species Breakdown'!N792=0,\"\",'4 - Species Breakdown'!N792)","v":""},{"$f":"IFERROR(('4 - Species Breakdown'!J792/'WCC Summary'!$D$14)*100,\"\")","v":""},{"$f":"IF('4 - Species Breakdown'!J792=0,\"\",'4 - Species Breakdown'!J792)","v":""}]
[null,{"$f":"IF('4 - Species Breakdown'!B793=0,\"\",'4 - Species Breakdown'!B793)","v":""},{"$f":"IF('4 - Species Breakdown'!D793=0,\"\",'4 - Species Breakdown'!D793)","v":""},{"$f":"IF('4 - Species Breakdown'!L793=0,\"\",'4 - Species Breakdown'!L793)","v":""},{"$f":"IF('4 - Species Breakdown'!M793=0,\"\",'4 - Species Breakdown'!M793)","v":""},{"$f":"IF('4 - Species Breakdown'!N793=0,\"\",'4 - Species Breakdown'!N793)","v":""},{"$f":"IFERROR(('4 - Species Breakdown'!J793/'WCC Summary'!$D$14)*100,\"\")","v":""},{"$f":"IF('4 - Species Breakdown'!J793=0,\"\",'4 - Species Breakdown'!J793)","v":""}]
[null,{"$f":"IF('4 - Species Breakdown'!B794=0,\"\",'4 - Species Breakdown'!B794)","v":""},{"$f":"IF('4 - Species Breakdown'!D794=0,\"\",'4 - Species Breakdown'!D794)","v":""},{"$f":"IF('4 - Species Breakdown'!L794=0,\"\",'4 - Species Breakdown'!L794)","v":""},{"$f":"IF('4 - Species Breakdown'!M794=0,\"\",'4 - Species Breakdown'!M794)","v":""},{"$f":"IF('4 - Species Breakdown'!N794=0,\"\",'4 - Species Breakdown'!N794)","v":""},{"$f":"IFERROR(('4 - Species Breakdown'!J794/'WCC Summary'!$D$14)*100,\"\")","v":""},{"$f":"IF('4 - Species Breakdown'!J794=0,\"\",'4 - Species Breakdown'!J794)","v":""}]
[null,{"$f":"IF('4 - Species Breakdown'!B795=0,\"\",'4 - Species Breakdown'!B795)","v":""},{"$f":"IF('4 - Species Breakdown'!D795=0,\"\",'4 - Species Breakdown'!D795)","v":""},{"$f":"IF('4 - Species Breakdown'!L795=0,\"\",'4 - Species Breakdown'!L795)","v":""},{"$f":"IF('4 - Species Breakdown'!M795=0,\"\",'4 - Species Breakdown'!M795)","v":""},{"$f":"IF('4 - Species Breakdown'!N795=0,\"\",'4 - Species Breakdown'!N795)","v":""},{"$f":"IFERROR(('4 - Species Breakdown'!J795/'WCC Summary'!$D$14)*100,\"\")","v":""},{"$f":"IF('4 - Species Breakdown'!J795=0,\"\",'4 - Species Breakdown'!J795)","v":""}]
[null,{"$f":"IF('4 - Species Breakdown'!B796=0,\"\",'4 - Species Breakdown'!B796)","v":""},{"$f":"IF('4 - Species Breakdown'!D796=0,\"\",'4 - Species Breakdown'!D796)","v":""},{"$f":"IF('4 - Species Breakdown'!L796=0,\"\",'4 - Species Breakdown'!L796)","v":""},{"$f":"IF('4 - Species Breakdown'!M796=0,\"\",'4 - Species Breakdown'!M796)","v":""},{"$f":"IF('4 - Species Breakdown'!N796=0,\"\",'4 - Species Breakdown'!N796)","v":""},{"$f":"IFERROR(('4 - Species Breakdown'!J796/'WCC Summary'!$D$14)*100,\"\")","v":""},{"$f":"IF('4 - Species Breakdown'!J796=0,\"\",'4 - Species Breakdown'!J796)","v":""}]
[null,{"$f":"IF('4 - Species Breakdown'!B797=0,\"\",'4 - Species Breakdown'!B797)","v":""},{"$f":"IF('4 - Species Breakdown'!D797=0,\"\",'4 - Species Breakdown'!D797)","v":""},{"$f":"IF('4 - Species Breakdown'!L797=0,\"\",'4 - Species Breakdown'!L797)","v":""},{"$f":"IF('4 - Species Breakdown'!M797=0,\"\",'4 - Species Breakdown'!M797)","v":""},{"$f":"IF('4 - Species Breakdown'!N797=0,\"\",'4 - Species Breakdown'!N797)","v":""},{"$f":"IFERROR(('4 - Species Breakdown'!J797/'WCC Summary'!$D$14)*100,\"\")","v":""},{"$f":"IF('4 - Species Breakdown'!J797=0,\"\",'4 - Species Breakdown'!J797)","v":""}]
[null,{"$f":"IF('4 - Species Breakdown'!B798=0,\"\",'4 - Species Breakdown'!B798)","v":""},{"$f":"IF('4 - Species Breakdown'!D798=0,\"\",'4 - Species Breakdown'!D798)","v":""},{"$f":"IF('4 - Species Breakdown'!L798=0,\"\",'4 - Species Breakdown'!L798)","v":""},{"$f":"IF('4 - Species Breakdown'!M798=0,\"\",'4 - Species Breakdown'!M798)","v":""},{"$f":"IF('4 - Species Breakdown'!N798=0,\"\",'4 - Species Breakdown'!N798)","v":""},{"$f":"IFERROR(('4 - Species Breakdown'!J798/'WCC Summary'!$D$14)*100,\"\")","v":""},{"$f":"IF('4 - Species Breakdown'!J798=0,\"\",'4 - Species Breakdown'!J798)","v":""}]
[null,{"$f":"IF('4 - Species Breakdown'!B799=0,\"\",'4 - Species Breakdown'!B799)","v":""},{"$f":"IF('4 - Species Breakdown'!D799=0,\"\",'4 - Species Breakdown'!D799)","v":""},{"$f":"IF('4 - Species Breakdown'!L799=0,\"\",'4 - Species Breakdown'!L799)","v":""},{"$f":"IF('4 - Species Breakdown'!M799=0,\"\",'4 - Species Breakdown'!M799)","v":""},{"$f":"IF('4 - Species Breakdown'!N799=0,\"\",'4 - Species Breakdown'!N799)","v":""},{"$f":"IFERROR(('4 - Species Breakdown'!J799/'WCC Summary'!$D$14)*100,\"\")","v":""},{"$f":"IF('4 - Species Breakdown'!J799=0,\"\",'4 - Species Breakdown'!J799)","v":""}]
[null,{"$f":"IF('4 - Species Breakdown'!B800=0,\"\",'4 - Species Breakdown'!B800)","v":""},{"$f":"IF('4 - Species Breakdown'!D800=0,\"\",'4 - Species Breakdown'!D800)","v":""},{"$f":"IF('4 - Species Breakdown'!L800=0,\"\",'4 - Species Breakdown'!L800)","v":""},{"$f":"IF('4 - Species Breakdown'!M800=0,\"\",'4 - Species Breakdown'!M800)","v":""},{"$f":"IF('4 - Species Breakdown'!N800=0,\"\",'4 - Species Breakdown'!N800)","v":""},{"$f":"IFERROR(('4 - Species Breakdown'!J800/'WCC Summary'!$D$14)*100,\"\")","v":""},{"$f":"IF('4 - Species Breakdown'!J800=0,\"\",'4 - Species Breakdown'!J800)","v":""}]
[null,{"$f":"IF('4 - Species Breakdown'!B801=0,\"\",'4 - Species Breakdown'!B801)","v":""},{"$f":"IF('4 - Species Breakdown'!D801=0,\"\",'4 - Species Breakdown'!D801)","v":""},{"$f":"IF('4 - Species Breakdown'!L801=0,\"\",'4 - Species Breakdown'!L801)","v":""},{"$f":"IF('4 - Species Breakdown'!M801=0,\"\",'4 - Species Breakdown'!M801)","v":""},{"$f":"IF('4 - Species Breakdown'!N801=0,\"\",'4 - Species Breakdown'!N801)","v":""},{"$f":"IFERROR(('4 - Species Breakdown'!J801/'WCC Summary'!$D$14)*100,\"\")","v":""},{"$f":"IF('4 - Species Breakdown'!J801=0,\"\",'4 - Species Breakdown'!J801)","v":""}]
[null,{"$f":"IF('4 - Species Breakdown'!B802=0,\"\",'4 - Species Breakdown'!B802)","v":""},{"$f":"IF('4 - Species Breakdown'!D802=0,\"\",'4 - Species Breakdown'!D802)","v":""},{"$f":"IF('4 - Species Breakdown'!L802=0,\"\",'4 - Species Breakdown'!L802)","v":""},{"$f":"IF('4 - Species Breakdown'!M802=0,\"\",'4 - Species Breakdown'!M802)","v":""},{"$f":"IF('4 - Species Breakdown'!N802=0,\"\",'4 - Species Breakdown'!N802)","v":""},{"$f":"IFERROR(('4 - Species Breakdown'!J802/'WCC Summary'!$D$14)*100,\"\")","v":""},{"$f":"IF('4 - Species Breakdown'!J802=0,\"\",'4 - Species Breakdown'!J802)","v":""}]
[null,{"$f":"IF('4 - Species Breakdown'!B803=0,\"\",'4 - Species Breakdown'!B803)","v":""},{"$f":"IF('4 - Species Breakdown'!D803=0,\"\",'4 - Species Breakdown'!D803)","v":""},{"$f":"IF('4 - Species Breakdown'!L803=0,\"\",'4 - Species Breakdown'!L803)","v":""},{"$f":"IF('4 - Species Breakdown'!M803=0,\"\",'4 - Species Breakdown'!M803)","v":""},{"$f":"IF('4 - Species Breakdown'!N803=0,\"\",'4 - Species Breakdown'!N803)","v":""},{"$f":"IFERROR(('4 - Species Breakdown'!J803/'WCC Summary'!$D$14)*100,\"\")","v":""},{"$f":"IF('4 - Species Breakdown'!J803=0,\"\",'4 - Species Breakdown'!J803)","v":""}]
[null,{"$f":"IF('4 - Species Breakdown'!B804=0,\"\",'4 - Species Breakdown'!B804)","v":""},{"$f":"IF('4 - Species Breakdown'!D804=0,\"\",'4 - Species Breakdown'!D804)","v":""},{"$f":"IF('4 - Species Breakdown'!L804=0,\"\",'4 - Species Breakdown'!L804)","v":""},{"$f":"IF('4 - Species Breakdown'!M804=0,\"\",'4 - Species Breakdown'!M804)","v":""},{"$f":"IF('4 - Species Breakdown'!N804=0,\"\",'4 - Species Breakdown'!N804)","v":""},{"$f":"IFERROR(('4 - Species Breakdown'!J804/'WCC Summary'!$D$14)*100,\"\")","v":""},{"$f":"IF('4 - Species Breakdown'!J804=0,\"\",'4 - Species Breakdown'!J804)","v":""}]
[null,{"$f":"IF('4 - Species Breakdown'!B805=0,\"\",'4 - Species Breakdown'!B805)","v":""},{"$f":"IF('4 - Species Breakdown'!D805=0,\"\",'4 - Species Breakdown'!D805)","v":""},{"$f":"IF('4 - Species Breakdown'!L805=0,\"\",'4 - Species Breakdown'!L805)","v":""},{"$f":"IF('4 - Species Breakdown'!M805=0,\"\",'4 - Species Breakdown'!M805)","v":""},{"$f":"IF('4 - Species Breakdown'!N805=0,\"\",'4 - Species Breakdown'!N805)","v":""},{"$f":"IFERROR(('4 - Species Breakdown'!J805/'WCC Summary'!$D$14)*100,\"\")","v":""},{"$f":"IF('4 - Species Breakdown'!J805=0,\"\",'4 - Species Breakdown'!J805)","v":""}]
[null,{"$f":"IF('4 - Species Breakdown'!B806=0,\"\",'4 - Species Breakdown'!B806)","v":""},{"$f":"IF('4 - Species Breakdown'!D806=0,\"\",'4 - Species Breakdown'!D806)","v":""},{"$f":"IF('4 - Species Breakdown'!L806=0,\"\",'4 - Species Breakdown'!L806)","v":""},{"$f":"IF('4 - Species Breakdown'!M806=0,\"\",'4 - Species Breakdown'!M806)","v":""},{"$f":"IF('4 - Species Breakdown'!N806=0,\"\",'4 - Species Breakdown'!N806)","v":""},{"$f":"IFERROR(('4 - Species Breakdown'!J806/'WCC Summary'!$D$14)*100,\"\")","v":""},{"$f":"IF('4 - Species Breakdown'!J806=0,\"\",'4 - Species Breakdown'!J806)","v":""}]
[null,{"$f":"IF('4 - Species Breakdown'!B807=0,\"\",'4 - Species Breakdown'!B807)","v":""},{"$f":"IF('4 - Species Breakdown'!D807=0,\"\",'4 - Species Breakdown'!D807)","v":""},{"$f":"IF('4 - Species Breakdown'!L807=0,\"\",'4 - Species Breakdown'!L807)","v":""},{"$f":"IF('4 - Species Breakdown'!M807=0,\"\",'4 - Species Breakdown'!M807)","v":""},{"$f":"IF('4 - Species Breakdown'!N807=0,\"\",'4 - Species Breakdown'!N807)","v":""},{"$f":"IFERROR(('4 - Species Breakdown'!J807/'WCC Summary'!$D$14)*100,\"\")","v":""},{"$f":"IF('4 - Species Breakdown'!J807=0,\"\",'4 - Species Breakdown'!J807)","v":""}]
[null,{"$f":"IF('4 - Species Breakdown'!B808=0,\"\",'4 - Species Breakdown'!B808)","v":""},{"$f":"IF('4 - Species Breakdown'!D808=0,\"\",'4 - Species Breakdown'!D808)","v":""},{"$f":"IF('4 - Species Breakdown'!L808=0,\"\",'4 - Species Breakdown'!L808)","v":""},{"$f":"IF('4 - Species Breakdown'!M808=0,\"\",'4 - Species Breakdown'!M808)","v":""},{"$f":"IF('4 - Species Breakdown'!N808=0,\"\",'4 - Species Breakdown'!N808)","v":""},{"$f":"IFERROR(('4 - Species Breakdown'!J808/'WCC Summary'!$D$14)*100,\"\")","v":""},{"$f":"IF('4 - Species Breakdown'!J808=0,\"\",'4 - Species Breakdown'!J808)","v":""}]
[null,{"$f":"IF('4 - Species Breakdown'!B809=0,\"\",'4 - Species Breakdown'!B809)","v":""},{"$f":"IF('4 - Species Breakdown'!D809=0,\"\",'4 - Species Breakdown'!D809)","v":""},{"$f":"IF('4 - Species Breakdown'!L809=0,\"\",'4 - Species Breakdown'!L809)","v":""},{"$f":"IF('4 - Species Breakdown'!M809=0,\"\",'4 - Species Breakdown'!M809)","v":""},{"$f":"IF('4 - Species Breakdown'!N809=0,\"\",'4 - Species Breakdown'!N809)","v":""},{"$f":"IFERROR(('4 - Species Breakdown'!J809/'WCC Summary'!$D$14)*100,\"\")","v":""},{"$f":"IF('4 - Species Breakdown'!J809=0,\"\",'4 - Species Breakdown'!J809)","v":""}]
[null,{"$f":"IF('4 - Species Breakdown'!B810=0,\"\",'4 - Species Breakdown'!B810)","v":""},{"$f":"IF('4 - Species Breakdown'!D810=0,\"\",'4 - Species Breakdown'!D810)","v":""},{"$f":"IF('4 - Species Breakdown'!L810=0,\"\",'4 - Species Breakdown'!L810)","v":""},{"$f":"IF('4 - Species Breakdown'!M810=0,\"\",'4 - Species Breakdown'!M810)","v":""},{"$f":"IF('4 - Species Breakdown'!N810=0,\"\",'4 - Species Breakdown'!N810)","v":""},{"$f":"IFERROR(('4 - Species Breakdown'!J810/'WCC Summary'!$D$14)*100,\"\")","v":""},{"$f":"IF('4 - Species Breakdown'!J810=0,\"\",'4 - Species Breakdown'!J810)","v":""}]
[null,{"$f":"IF('4 - Species Breakdown'!B811=0,\"\",'4 - Species Breakdown'!B811)","v":""},{"$f":"IF('4 - Species Breakdown'!D811=0,\"\",'4 - Species Breakdown'!D811)","v":""},{"$f":"IF('4 - Species Breakdown'!L811=0,\"\",'4 - Species Breakdown'!L811)","v":""},{"$f":"IF('4 - Species Breakdown'!M811=0,\"\",'4 - Species Breakdown'!M811)","v":""},{"$f":"IF('4 - Species Breakdown'!N811=0,\"\",'4 - Species Breakdown'!N811)","v":""},{"$f":"IFERROR(('4 - Species Breakdown'!J811/'WCC Summary'!$D$14)*100,\"\")","v":""},{"$f":"IF('4 - Species Breakdown'!J811=0,\"\",'4 - Species Breakdown'!J811)","v":""}]
[null,{"$f":"IF('4 - Species Breakdown'!B812=0,\"\",'4 - Species Breakdown'!B812)","v":""},{"$f":"IF('4 - Species Breakdown'!D812=0,\"\",'4 - Species Breakdown'!D812)","v":""},{"$f":"IF('4 - Species Breakdown'!L812=0,\"\",'4 - Species Breakdown'!L812)","v":""},{"$f":"IF('4 - Species Breakdown'!M812=0,\"\",'4 - Species Breakdown'!M812)","v":""},{"$f":"IF('4 - Species Breakdown'!N812=0,\"\",'4 - Species Breakdown'!N812)","v":""},{"$f":"IFERROR(('4 - Species Breakdown'!J812/'WCC Summary'!$D$14)*100,\"\")","v":""},{"$f":"IF('4 - Species Breakdown'!J812=0,\"\",'4 - Species Breakdown'!J812)","v":""}]
[null,{"$f":"IF('4 - Species Breakdown'!B813=0,\"\",'4 - Species Breakdown'!B813)","v":""},{"$f":"IF('4 - Species Breakdown'!D813=0,\"\",'4 - Species Breakdown'!D813)","v":""},{"$f":"IF('4 - Species Breakdown'!L813=0,\"\",'4 - Species Breakdown'!L813)","v":""},{"$f":"IF('4 - Species Breakdown'!M813=0,\"\",'4 - Species Breakdown'!M813)","v":""},{"$f":"IF('4 - Species Breakdown'!N813=0,\"\",'4 - Species Breakdown'!N813)","v":""},{"$f":"IFERROR(('4 - Species Breakdown'!J813/'WCC Summary'!$D$14)*100,\"\")","v":""},{"$f":"IF('4 - Species Breakdown'!J813=0,\"\",'4 - Species Breakdown'!J813)","v":""}]
[null,{"$f":"IF('4 - Species Breakdown'!B814=0,\"\",'4 - Species Breakdown'!B814)","v":""},{"$f":"IF('4 - Species Breakdown'!D814=0,\"\",'4 - Species Breakdown'!D814)","v":""},{"$f":"IF('4 - Species Breakdown'!L814=0,\"\",'4 - Species Breakdown'!L814)","v":""},{"$f":"IF('4 - Species Breakdown'!M814=0,\"\",'4 - Species Breakdown'!M814)","v":""},{"$f":"IF('4 - Species Breakdown'!N814=0,\"\",'4 - Species Breakdown'!N814)","v":""},{"$f":"IFERROR(('4 - Species Breakdown'!J814/'WCC Summary'!$D$14)*100,\"\")","v":""},{"$f":"IF('4 - Species Breakdown'!J814=0,\"\",'4 - Species Breakdown'!J814)","v":""}]
[null,{"$f":"IF('4 - Species Breakdown'!B815=0,\"\",'4 - Species Breakdown'!B815)","v":""},{"$f":"IF('4 - Species Breakdown'!D815=0,\"\",'4 - Species Breakdown'!D815)","v":""},{"$f":"IF('4 - Species Breakdown'!L815=0,\"\",'4 - Species Breakdown'!L815)","v":""},{"$f":"IF('4 - Species Breakdown'!M815=0,\"\",'4 - Species Breakdown'!M815)","v":""},{"$f":"IF('4 - Species Breakdown'!N815=0,\"\",'4 - Species Breakdown'!N815)","v":""},{"$f":"IFERROR(('4 - Species Breakdown'!J815/'WCC Summary'!$D$14)*100,\"\")","v":""},{"$f":"IF('4 - Species Breakdown'!J815=0,\"\",'4 - Species Breakdown'!J815)","v":""}]
[null,{"$f":"IF('4 - Species Breakdown'!B816=0,\"\",'4 - Species Breakdown'!B816)","v":""},{"$f":"IF('4 - Species Breakdown'!D816=0,\"\",'4 - Species Breakdown'!D816)","v":""},{"$f":"IF('4 - Species Breakdown'!L816=0,\"\",'4 - Species Breakdown'!L816)","v":""},{"$f":"IF('4 - Species Breakdown'!M816=0,\"\",'4 - Species Breakdown'!M816)","v":""},{"$f":"IF('4 - Species Breakdown'!N816=0,\"\",'4 - Species Breakdown'!N816)","v":""},{"$f":"IFERROR(('4 - Species Breakdown'!J816/'WCC Summary'!$D$14)*100,\"\")","v":""},{"$f":"IF('4 - Species Breakdown'!J816=0,\"\",'4 - Species Breakdown'!J816)","v":""}]
[null,{"$f":"IF('4 - Species Breakdown'!B817=0,\"\",'4 - Species Breakdown'!B817)","v":""},{"$f":"IF('4 - Species Breakdown'!D817=0,\"\",'4 - Species Breakdown'!D817)","v":""},{"$f":"IF('4 - Species Breakdown'!L817=0,\"\",'4 - Species Breakdown'!L817)","v":""},{"$f":"IF('4 - Species Breakdown'!M817=0,\"\",'4 - Species Breakdown'!M817)","v":""},{"$f":"IF('4 - Species Breakdown'!N817=0,\"\",'4 - Species Breakdown'!N817)","v":""},{"$f":"IFERROR(('4 - Species Breakdown'!J817/'WCC Summary'!$D$14)*100,\"\")","v":""},{"$f":"IF('4 - Species Breakdown'!J817=0,\"\",'4 - Species Breakdown'!J817)","v":""}]
[null,{"$f":"IF('4 - Species Breakdown'!B818=0,\"\",'4 - Species Breakdown'!B818)","v":""},{"$f":"IF('4 - Species Breakdown'!D818=0,\"\",'4 - Species Breakdown'!D818)","v":""},{"$f":"IF('4 - Species Breakdown'!L818=0,\"\",'4 - Species Breakdown'!L818)","v":""},{"$f":"IF('4 - Species Breakdown'!M818=0,\"\",'4 - Species Breakdown'!M818)","v":""},{"$f":"IF('4 - Species Breakdown'!N818=0,\"\",'4 - Species Breakdown'!N818)","v":""},{"$f":"IFERROR(('4 - Species Breakdown'!J818/'WCC Summary'!$D$14)*100,\"\")","v":""},{"$f":"IF('4 - Species Breakdown'!J818=0,\"\",'4 - Species Breakdown'!J818)","v":""}]
[null,{"$f":"IF('4 - Species Breakdown'!B819=0,\"\",'4 - Species Breakdown'!B819)","v":""},{"$f":"IF('4 - Species Breakdown'!D819=0,\"\",'4 - Species Breakdown'!D819)","v":""},{"$f":"IF('4 - Species Breakdown'!L819=0,\"\",'4 - Species Breakdown'!L819)","v":""},{"$f":"IF('4 - Species Breakdown'!M819=0,\"\",'4 - Species Breakdown'!M819)","v":""},{"$f":"IF('4 - Species Breakdown'!N819=0,\"\",'4 - Species Breakdown'!N819)","v":""},{"$f":"IFERROR(('4 - Species Breakdown'!J819/'WCC Summary'!$D$14)*100,\"\")","v":""},{"$f":"IF('4 - Species Breakdown'!J819=0,\"\",'4 - Species Breakdown'!J819)","v":""}]
[null,{"$f":"IF('4 - Species Breakdown'!B820=0,\"\",'4 - Species Breakdown'!B820)","v":""},{"$f":"IF('4 - Species Breakdown'!D820=0,\"\",'4 - Species Breakdown'!D820)","v":""},{"$f":"IF('4 - Species Breakdown'!L820=0,\"\",'4 - Species Breakdown'!L820)","v":""},{"$f":"IF('4 - Species Breakdown'!M820=0,\"\",'4 - Species Breakdown'!M820)","v":""},{"$f":"IF('4 - Species Breakdown'!N820=0,\"\",'4 - Species Breakdown'!N820)","v":""},{"$f":"IFERROR(('4 - Species Breakdown'!J820/'WCC Summary'!$D$14)*100,\"\")","v":""},{"$f":"IF('4 - Species Breakdown'!J820=0,\"\",'4 - Species Breakdown'!J820)","v":""}]
[null,{"$f":"IF('4 - Species Breakdown'!B821=0,\"\",'4 - Species Breakdown'!B821)","v":""},{"$f":"IF('4 - Species Breakdown'!D821=0,\"\",'4 - Species Breakdown'!D821)","v":""},{"$f":"IF('4 - Species Breakdown'!L821=0,\"\",'4 - Species Breakdown'!L821)","v":""},{"$f":"IF('4 - Species Breakdown'!M821=0,\"\",'4 - Species Breakdown'!M821)","v":""},{"$f":"IF('4 - Species Breakdown'!N821=0,\"\",'4 - Species Breakdown'!N821)","v":""},{"$f":"IFERROR(('4 - Species Breakdown'!J821/'WCC Summary'!$D$14)*100,\"\")","v":""},{"$f":"IF('4 - Species Breakdown'!J821=0,\"\",'4 - Species Breakdown'!J821)","v":""}]
[null,{"$f":"IF('4 - Species Breakdown'!B822=0,\"\",'4 - Species Breakdown'!B822)","v":""},{"$f":"IF('4 - Species Breakdown'!D822=0,\"\",'4 - Species Breakdown'!D822)","v":""},{"$f":"IF('4 - Species Breakdown'!L822=0,\"\",'4 - Species Breakdown'!L822)","v":""},{"$f":"IF('4 - Species Breakdown'!M822=0,\"\",'4 - Species Breakdown'!M822)","v":""},{"$f":"IF('4 - Species Breakdown'!N822=0,\"\",'4 - Species Breakdown'!N822)","v":""},{"$f":"IFERROR(('4 - Species Breakdown'!J822/'WCC Summary'!$D$14)*100,\"\")","v":""},{"$f":"IF('4 - Species Breakdown'!J822=0,\"\",'4 - Species Breakdown'!J822)","v":""}]
[null,{"$f":"IF('4 - Species Breakdown'!B823=0,\"\",'4 - Species Breakdown'!B823)","v":""},{"$f":"IF('4 - Species Breakdown'!D823=0,\"\",'4 - Species Breakdown'!D823)","v":""},{"$f":"IF('4 - Species Breakdown'!L823=0,\"\",'4 - Species Breakdown'!L823)","v":""},{"$f":"IF('4 - Species Breakdown'!M823=0,\"\",'4 - Species Breakdown'!M823)","v":""},{"$f":"IF('4 - Species Breakdown'!N823=0,\"\",'4 - Species Breakdown'!N823)","v":""},{"$f":"IFERROR(('4 - Species Breakdown'!J823/'WCC Summary'!$D$14)*100,\"\")","v":""},{"$f":"IF('4 - Species Breakdown'!J823=0,\"\",'4 - Species Breakdown'!J823)","v":""}]
[null,{"$f":"IF('4 - Species Breakdown'!B824=0,\"\",'4 - Species Breakdown'!B824)","v":""},{"$f":"IF('4 - Species Breakdown'!D824=0,\"\",'4 - Species Breakdown'!D824)","v":""},{"$f":"IF('4 - Species Breakdown'!L824=0,\"\",'4 - Species Breakdown'!L824)","v":""},{"$f":"IF('4 - Species Breakdown'!M824=0,\"\",'4 - Species Breakdown'!M824)","v":""},{"$f":"IF('4 - Species Breakdown'!N824=0,\"\",'4 - Species Breakdown'!N824)","v":""},{"$f":"IFERROR(('4 - Species Breakdown'!J824/'WCC Summary'!$D$14)*100,\"\")","v":""},{"$f":"IF('4 - Species Breakdown'!J824=0,\"\",'4 - Species Breakdown'!J824)","v":""}]
[null,{"$f":"IF('4 - Species Breakdown'!B825=0,\"\",'4 - Species Breakdown'!B825)","v":""},{"$f":"IF('4 - Species Breakdown'!D825=0,\"\",'4 - Species Breakdown'!D825)","v":""},{"$f":"IF('4 - Species Breakdown'!L825=0,\"\",'4 - Species Breakdown'!L825)","v":""},{"$f":"IF('4 - Species Breakdown'!M825=0,\"\",'4 - Species Breakdown'!M825)","v":""},{"$f":"IF('4 - Species Breakdown'!N825=0,\"\",'4 - Species Breakdown'!N825)","v":""},{"$f":"IFERROR(('4 - Species Breakdown'!J825/'WCC Summary'!$D$14)*100,\"\")","v":""},{"$f":"IF('4 - Species Breakdown'!J825=0,\"\",'4 - Species Breakdown'!J825)","v":""}]
[null,{"$f":"IF('4 - Species Breakdown'!B826=0,\"\",'4 - Species Breakdown'!B826)","v":""},{"$f":"IF('4 - Species Breakdown'!D826=0,\"\",'4 - Species Breakdown'!D826)","v":""},{"$f":"IF('4 - Species Breakdown'!L826=0,\"\",'4 - Species Breakdown'!L826)","v":""},{"$f":"IF('4 - Species Breakdown'!M826=0,\"\",'4 - Species Breakdown'!M826)","v":""},{"$f":"IF('4 - Species Breakdown'!N826=0,\"\",'4 - Species Breakdown'!N826)","v":""},{"$f":"IFERROR(('4 - Species Breakdown'!J826/'WCC Summary'!$D$14)*100,\"\")","v":""},{"$f":"IF('4 - Species Breakdown'!J826=0,\"\",'4 - Species Breakdown'!J826)","v":""}]
[null,{"$f":"IF('4 - Species Breakdown'!B827=0,\"\",'4 - Species Breakdown'!B827)","v":""},{"$f":"IF('4 - Species Breakdown'!D827=0,\"\",'4 - Species Breakdown'!D827)","v":""},{"$f":"IF('4 - Species Breakdown'!L827=0,\"\",'4 - Species Breakdown'!L827)","v":""},{"$f":"IF('4 - Species Breakdown'!M827=0,\"\",'4 - Species Breakdown'!M827)","v":""},{"$f":"IF('4 - Species Breakdown'!N827=0,\"\",'4 - Species Breakdown'!N827)","v":""},{"$f":"IFERROR(('4 - Species Breakdown'!J827/'WCC Summary'!$D$14)*100,\"\")","v":""},{"$f":"IF('4 - Species Breakdown'!J827=0,\"\",'4 - Species Breakdown'!J827)","v":""}]
[null,{"$f":"IF('4 - Species Breakdown'!B828=0,\"\",'4 - Species Breakdown'!B828)","v":""},{"$f":"IF('4 - Species Breakdown'!D828=0,\"\",'4 - Species Breakdown'!D828)","v":""},{"$f":"IF('4 - Species Breakdown'!L828=0,\"\",'4 - Species Breakdown'!L828)","v":""},{"$f":"IF('4 - Species Breakdown'!M828=0,\"\",'4 - Species Breakdown'!M828)","v":""},{"$f":"IF('4 - Species Breakdown'!N828=0,\"\",'4 - Species Breakdown'!N828)","v":""},{"$f":"IFERROR(('4 - Species Breakdown'!J828/'WCC Summary'!$D$14)*100,\"\")","v":""},{"$f":"IF('4 - Species Breakdown'!J828=0,\"\",'4 - Species Breakdown'!J828)","v":""}]
[null,{"$f":"IF('4 - Species Breakdown'!B829=0,\"\",'4 - Species Breakdown'!B829)","v":""},{"$f":"IF('4 - Species Breakdown'!D829=0,\"\",'4 - Species Breakdown'!D829)","v":""},{"$f":"IF('4 - Species Breakdown'!L829=0,\"\",'4 - Species Breakdown'!L829)","v":""},{"$f":"IF('4 - Species Breakdown'!M829=0,\"\",'4 - Species Breakdown'!M829)","v":""},{"$f":"IF('4 - Species Breakdown'!N829=0,\"\",'4 - Species Breakdown'!N829)","v":""},{"$f":"IFERROR(('4 - Species Breakdown'!J829/'WCC Summary'!$D$14)*100,\"\")","v":""},{"$f":"IF('4 - Species Breakdown'!J829=0,\"\",'4 - Species Breakdown'!J829)","v":""}]
[null,{"$f":"IF('4 - Species Breakdown'!B830=0,\"\",'4 - Species Breakdown'!B830)","v":""},{"$f":"IF('4 - Species Breakdown'!D830=0,\"\",'4 - Species Breakdown'!D830)","v":""},{"$f":"IF('4 - Species Breakdown'!L830=0,\"\",'4 - Species Breakdown'!L830)","v":""},{"$f":"IF('4 - Species Breakdown'!M830=0,\"\",'4 - Species Breakdown'!M830)","v":""},{"$f":"IF('4 - Species Breakdown'!N830=0,\"\",'4 - Species Breakdown'!N830)","v":""},{"$f":"IFERROR(('4 - Species Breakdown'!J830/'WCC Summary'!$D$14)*100,\"\")","v":""},{"$f":"IF('4 - Species Breakdown'!J830=0,\"\",'4 - Species Breakdown'!J830)","v":""}]
[null,{"$f":"IF('4 - Species Breakdown'!B831=0,\"\",'4 - Species Breakdown'!B831)","v":""},{"$f":"IF('4 - Species Breakdown'!D831=0,\"\",'4 - Species Breakdown'!D831)","v":""},{"$f":"IF('4 - Species Breakdown'!L831=0,\"\",'4 - Species Breakdown'!L831)","v":""},{"$f":"IF('4 - Species Breakdown'!M831=0,\"\",'4 - Species Breakdown'!M831)","v":""},{"$f":"IF('4 - Species Breakdown'!N831=0,\"\",'4 - Species Breakdown'!N831)","v":""},{"$f":"IFERROR(('4 - Species Breakdown'!J831/'WCC Summary'!$D$14)*100,\"\")","v":""},{"$f":"IF('4 - Species Breakdown'!J831=0,\"\",'4 - Species Breakdown'!J831)","v":""}]
[null,{"$f":"IF('4 - Species Breakdown'!B832=0,\"\",'4 - Species Breakdown'!B832)","v":""},{"$f":"IF('4 - Species Breakdown'!D832=0,\"\",'4 - Species Breakdown'!D832)","v":""},{"$f":"IF('4 - Species Breakdown'!L832=0,\"\",'4 - Species Breakdown'!L832)","v":""},{"$f":"IF('4 - Species Breakdown'!M832=0,\"\",'4 - Species Breakdown'!M832)","v":""},{"$f":"IF('4 - Species Breakdown'!N832=0,\"\",'4 - Species Breakdown'!N832)","v":""},{"$f":"IFERROR(('4 - Species Breakdown'!J832/'WCC Summary'!$D$14)*100,\"\")","v":""},{"$f":"IF('4 - Species Breakdown'!J832=0,\"\",'4 - Species Breakdown'!J832)","v":""}]
[null,{"$f":"IF('4 - Species Breakdown'!B833=0,\"\",'4 - Species Breakdown'!B833)","v":""},{"$f":"IF('4 - Species Breakdown'!D833=0,\"\",'4 - Species Breakdown'!D833)","v":""},{"$f":"IF('4 - Species Breakdown'!L833=0,\"\",'4 - Species Breakdown'!L833)","v":""},{"$f":"IF('4 - Species Breakdown'!M833=0,\"\",'4 - Species Breakdown'!M833)","v":""},{"$f":"IF('4 - Species Breakdown'!N833=0,\"\",'4 - Species Breakdown'!N833)","v":""},{"$f":"IFERROR(('4 - Species Breakdown'!J833/'WCC Summary'!$D$14)*100,\"\")","v":""},{"$f":"IF('4 - Species Breakdown'!J833=0,\"\",'4 - Species Breakdown'!J833)","v":""}]
[null,{"$f":"IF('4 - Species Breakdown'!B834=0,\"\",'4 - Species Breakdown'!B834)","v":""},{"$f":"IF('4 - Species Breakdown'!D834=0,\"\",'4 - Species Breakdown'!D834)","v":""},{"$f":"IF('4 - Species Breakdown'!L834=0,\"\",'4 - Species Breakdown'!L834)","v":""},{"$f":"IF('4 - Species Breakdown'!M834=0,\"\",'4 - Species Breakdown'!M834)","v":""},{"$f":"IF('4 - Species Breakdown'!N834=0,\"\",'4 - Species Breakdown'!N834)","v":""},{"$f":"IFERROR(('4 - Species Breakdown'!J834/'WCC Summary'!$D$14)*100,\"\")","v":""},{"$f":"IF('4 - Species Breakdown'!J834=0,\"\",'4 - Species Breakdown'!J834)","v":""}]
[null,{"$f":"IF('4 - Species Breakdown'!B835=0,\"\",'4 - Species Breakdown'!B835)","v":""},{"$f":"IF('4 - Species Breakdown'!D835=0,\"\",'4 - Species Breakdown'!D835)","v":""},{"$f":"IF('4 - Species Breakdown'!L835=0,\"\",'4 - Species Breakdown'!L835)","v":""},{"$f":"IF('4 - Species Breakdown'!M835=0,\"\",'4 - Species Breakdown'!M835)","v":""},{"$f":"IF('4 - Species Breakdown'!N835=0,\"\",'4 - Species Breakdown'!N835)","v":""},{"$f":"IFERROR(('4 - Species Breakdown'!J835/'WCC Summary'!$D$14)*100,\"\")","v":""},{"$f":"IF('4 - Species Breakdown'!J835=0,\"\",'4 - Species Breakdown'!J835)","v":""}]
[null,{"$f":"IF('4 - Species Breakdown'!B836=0,\"\",'4 - Species Breakdown'!B836)","v":""},{"$f":"IF('4 - Species Breakdown'!D836=0,\"\",'4 - Species Breakdown'!D836)","v":""},{"$f":"IF('4 - Species Breakdown'!L836=0,\"\",'4 - Species Breakdown'!L836)","v":""},{"$f":"IF('4 - Species Breakdown'!M836=0,\"\",'4 - Species Breakdown'!M836)","v":""},{"$f":"IF('4 - Species Breakdown'!N836=0,\"\",'4 - Species Breakdown'!N836)","v":""},{"$f":"IFERROR(('4 - Species Breakdown'!J836/'WCC Summary'!$D$14)*100,\"\")","v":""},{"$f":"IF('4 - Species Breakdown'!J836=0,\"\",'4 - Species Breakdown'!J836)","v":""}]
[null,{"$f":"IF('4 - Species Breakdown'!B837=0,\"\",'4 - Species Breakdown'!B837)","v":""},{"$f":"IF('4 - Species Breakdown'!D837=0,\"\",'4 - Species Breakdown'!D837)","v":""},{"$f":"IF('4 - Species Breakdown'!L837=0,\"\",'4 - Species Breakdown'!L837)","v":""},{"$f":"IF('4 - Species Breakdown'!M837=0,\"\",'4 - Species Breakdown'!M837)","v":""},{"$f":"IF('4 - Species Breakdown'!N837=0,\"\",'4 - Species Breakdown'!N837)","v":""},{"$f":"IFERROR(('4 - Species Breakdown'!J837/'WCC Summary'!$D$14)*100,\"\")","v":""},{"$f":"IF('4 - Species Breakdown'!J837=0,\"\",'4 - Species Breakdown'!J837)","v":""}]
[null,{"$f":"IF('4 - Species Breakdown'!B838=0,\"\",'4 - Species Breakdown'!B838)","v":""},{"$f":"IF('4 - Species Breakdown'!D838=0,\"\",'4 - Species Breakdown'!D838)","v":""},{"$f":"IF('4 - Species Breakdown'!L838=0,\"\",'4 - Species Breakdown'!L838)","v":""},{"$f":"IF('4 - Species Breakdown'!M838=0,\"\",'4 - Species Breakdown'!M838)","v":""},{"$f":"IF('4 - Species Breakdown'!N838=0,\"\",'4 - Species Breakdown'!N838)","v":""},{"$f":"IFERROR(('4 - Species Breakdown'!J838/'WCC Summary'!$D$14)*100,\"\")","v":""},{"$f":"IF('4 - Species Breakdown'!J838=0,\"\",'4 - Species Breakdown'!J838)","v":""}]
[null,{"$f":"IF('4 - Species Breakdown'!B839=0,\"\",'4 - Species Breakdown'!B839)","v":""},{"$f":"IF('4 - Species Breakdown'!D839=0,\"\",'4 - Species Breakdown'!D839)","v":""},{"$f":"IF('4 - Species Breakdown'!L839=0,\"\",'4 - Species Breakdown'!L839)","v":""},{"$f":"IF('4 - Species Breakdown'!M839=0,\"\",'4 - Species Breakdown'!M839)","v":""},{"$f":"IF('4 - Species Breakdown'!N839=0,\"\",'4 - Species Breakdown'!N839)","v":""},{"$f":"IFERROR(('4 - Species Breakdown'!J839/'WCC Summary'!$D$14)*100,\"\")","v":""},{"$f":"IF('4 - Species Breakdown'!J839=0,\"\",'4 - Species Breakdown'!J839)","v":""}]
[null,{"$f":"IF('4 - Species Breakdown'!B840=0,\"\",'4 - Species Breakdown'!B840)","v":""},{"$f":"IF('4 - Species Breakdown'!D840=0,\"\",'4 - Species Breakdown'!D840)","v":""},{"$f":"IF('4 - Species Breakdown'!L840=0,\"\",'4 - Species Breakdown'!L840)","v":""},{"$f":"IF('4 - Species Breakdown'!M840=0,\"\",'4 - Species Breakdown'!M840)","v":""},{"$f":"IF('4 - Species Breakdown'!N840=0,\"\",'4 - Species Breakdown'!N840)","v":""},{"$f":"IFERROR(('4 - Species Breakdown'!J840/'WCC Summary'!$D$14)*100,\"\")","v":""},{"$f":"IF('4 - Species Breakdown'!J840=0,\"\",'4 - Species Breakdown'!J840)","v":""}]
[null,{"$f":"IF('4 - Species Breakdown'!B841=0,\"\",'4 - Species Breakdown'!B841)","v":""},{"$f":"IF('4 - Species Breakdown'!D841=0,\"\",'4 - Species Breakdown'!D841)","v":""},{"$f":"IF('4 - Species Breakdown'!L841=0,\"\",'4 - Species Breakdown'!L841)","v":""},{"$f":"IF('4 - Species Breakdown'!M841=0,\"\",'4 - Species Breakdown'!M841)","v":""},{"$f":"IF('4 - Species Breakdown'!N841=0,\"\",'4 - Species Breakdown'!N841)","v":""},{"$f":"IFERROR(('4 - Species Breakdown'!J841/'WCC Summary'!$D$14)*100,\"\")","v":""},{"$f":"IF('4 - Species Breakdown'!J841=0,\"\",'4 - Species Breakdown'!J841)","v":""}]
[null,{"$f":"IF('4 - Species Breakdown'!B842=0,\"\",'4 - Species Breakdown'!B842)","v":""},{"$f":"IF('4 - Species Breakdown'!D842=0,\"\",'4 - Species Breakdown'!D842)","v":""},{"$f":"IF('4 - Species Breakdown'!L842=0,\"\",'4 - Species Breakdown'!L842)","v":""},{"$f":"IF('4 - Species Breakdown'!M842=0,\"\",'4 - Species Breakdown'!M842)","v":""},{"$f":"IF('4 - Species Breakdown'!N842=0,\"\",'4 - Species Breakdown'!N842)","v":""},{"$f":"IFERROR(('4 - Species Breakdown'!J842/'WCC Summary'!$D$14)*100,\"\")","v":""},{"$f":"IF('4 - Species Breakdown'!J842=0,\"\",'4 - Species Breakdown'!J842)","v":""}]
[null,{"$f":"IF('4 - Species Breakdown'!B843=0,\"\",'4 - Species Breakdown'!B843)","v":""},{"$f":"IF('4 - Species Breakdown'!D843=0,\"\",'4 - Species Breakdown'!D843)","v":""},{"$f":"IF('4 - Species Breakdown'!L843=0,\"\",'4 - Species Breakdown'!L843)","v":""},{"$f":"IF('4 - Species Breakdown'!M843=0,\"\",'4 - Species Breakdown'!M843)","v":""},{"$f":"IF('4 - Species Breakdown'!N843=0,\"\",'4 - Species Breakdown'!N843)","v":""},{"$f":"IFERROR(('4 - Species Breakdown'!J843/'WCC Summary'!$D$14)*100,\"\")","v":""},{"$f":"IF('4 - Species Breakdown'!J843=0,\"\",'4 - Species Breakdown'!J843)","v":""}]
[null,{"$f":"IF('4 - Species Breakdown'!B844=0,\"\",'4 - Species Breakdown'!B844)","v":""},{"$f":"IF('4 - Species Breakdown'!D844=0,\"\",'4 - Species Breakdown'!D844)","v":""},{"$f":"IF('4 - Species Breakdown'!L844=0,\"\",'4 - Species Breakdown'!L844)","v":""},{"$f":"IF('4 - Species Breakdown'!M844=0,\"\",'4 - Species Breakdown'!M844)","v":""},{"$f":"IF('4 - Species Breakdown'!N844=0,\"\",'4 - Species Breakdown'!N844)","v":""},{"$f":"IFERROR(('4 - Species Breakdown'!J844/'WCC Summary'!$D$14)*100,\"\")","v":""},{"$f":"IF('4 - Species Breakdown'!J844=0,\"\",'4 - Species Breakdown'!J844)","v":""}]
[null,{"$f":"IF('4 - Species Breakdown'!B845=0,\"\",'4 - Species Breakdown'!B845)","v":""},{"$f":"IF('4 - Species Breakdown'!D845=0,\"\",'4 - Species Breakdown'!D845)","v":""},{"$f":"IF('4 - Species Breakdown'!L845=0,\"\",'4 - Species Breakdown'!L845)","v":""},{"$f":"IF('4 - Species Breakdown'!M845=0,\"\",'4 - Species Breakdown'!M845)","v":""},{"$f":"IF('4 - Species Breakdown'!N845=0,\"\",'4 - Species Breakdown'!N845)","v":""},{"$f":"IFERROR(('4 - Species Breakdown'!J845/'WCC Summary'!$D$14)*100,\"\")","v":""},{"$f":"IF('4 - Species Breakdown'!J845=0,\"\",'4 - Species Breakdown'!J845)","v":""}]
[null,{"$f":"IF('4 - Species Breakdown'!B846=0,\"\",'4 - Species Breakdown'!B846)","v":""},{"$f":"IF('4 - Species Breakdown'!D846=0,\"\",'4 - Species Breakdown'!D846)","v":""},{"$f":"IF('4 - Species Breakdown'!L846=0,\"\",'4 - Species Breakdown'!L846)","v":""},{"$f":"IF('4 - Species Breakdown'!M846=0,\"\",'4 - Species Breakdown'!M846)","v":""},{"$f":"IF('4 - Species Breakdown'!N846=0,\"\",'4 - Species Breakdown'!N846)","v":""},{"$f":"IFERROR(('4 - Species Breakdown'!J846/'WCC Summary'!$D$14)*100,\"\")","v":""},{"$f":"IF('4 - Species Breakdown'!J846=0,\"\",'4 - Species Breakdown'!J846)","v":""}]
[null,{"$f":"IF('4 - Species Breakdown'!B847=0,\"\",'4 - Species Breakdown'!B847)","v":""},{"$f":"IF('4 - Species Breakdown'!D847=0,\"\",'4 - Species Breakdown'!D847)","v":""},{"$f":"IF('4 - Species Breakdown'!L847=0,\"\",'4 - Species Breakdown'!L847)","v":""},{"$f":"IF('4 - Species Breakdown'!M847=0,\"\",'4 - Species Breakdown'!M847)","v":""},{"$f":"IF('4 - Species Breakdown'!N847=0,\"\",'4 - Species Breakdown'!N847)","v":""},{"$f":"IFERROR(('4 - Species Breakdown'!J847/'WCC Summary'!$D$14)*100,\"\")","v":""},{"$f":"IF('4 - Species Breakdown'!J847=0,\"\",'4 - Species Breakdown'!J847)","v":""}]
[null,{"$f":"IF('4 - Species Breakdown'!B848=0,\"\",'4 - Species Breakdown'!B848)","v":""},{"$f":"IF('4 - Species Breakdown'!D848=0,\"\",'4 - Species Breakdown'!D848)","v":""},{"$f":"IF('4 - Species Breakdown'!L848=0,\"\",'4 - Species Breakdown'!L848)","v":""},{"$f":"IF('4 - Species Breakdown'!M848=0,\"\",'4 - Species Breakdown'!M848)","v":""},{"$f":"IF('4 - Species Breakdown'!N848=0,\"\",'4 - Species Breakdown'!N848)","v":""},{"$f":"IFERROR(('4 - Species Breakdown'!J848/'WCC Summary'!$D$14)*100,\"\")","v":""},{"$f":"IF('4 - Species Breakdown'!J848=0,\"\",'4 - Species Breakdown'!J848)","v":""}]
[null,{"$f":"IF('4 - Species Breakdown'!B849=0,\"\",'4 - Species Breakdown'!B849)","v":""},{"$f":"IF('4 - Species Breakdown'!D849=0,\"\",'4 - Species Breakdown'!D849)","v":""},{"$f":"IF('4 - Species Breakdown'!L849=0,\"\",'4 - Species Breakdown'!L849)","v":""},{"$f":"IF('4 - Species Breakdown'!M849=0,\"\",'4 - Species Breakdown'!M849)","v":""},{"$f":"IF('4 - Species Breakdown'!N849=0,\"\",'4 - Species Breakdown'!N849)","v":""},{"$f":"IFERROR(('4 - Species Breakdown'!J849/'WCC Summary'!$D$14)*100,\"\")","v":""},{"$f":"IF('4 - Species Breakdown'!J849=0,\"\",'4 - Species Breakdown'!J849)","v":""}]
[null,{"$f":"IF('4 - Species Breakdown'!B850=0,\"\",'4 - Species Breakdown'!B850)","v":""},{"$f":"IF('4 - Species Breakdown'!D850=0,\"\",'4 - Species Breakdown'!D850)","v":""},{"$f":"IF('4 - Species Breakdown'!L850=0,\"\",'4 - Species Breakdown'!L850)","v":""},{"$f":"IF('4 - Species Breakdown'!M850=0,\"\",'4 - Species Breakdown'!M850)","v":""},{"$f":"IF('4 - Species Breakdown'!N850=0,\"\",'4 - Species Breakdown'!N850)","v":""},{"$f":"IFERROR(('4 - Species Breakdown'!J850/'WCC Summary'!$D$14)*100,\"\")","v":""},{"$f":"IF('4 - Species Breakdown'!J850=0,\"\",'4 - Species Breakdown'!J850)","v":""}]
[null,{"$f":"IF('4 - Species Breakdown'!B851=0,\"\",'4 - Species Breakdown'!B851)","v":""},{"$f":"IF('4 - Species Breakdown'!D851=0,\"\",'4 - Species Breakdown'!D851)","v":""},{"$f":"IF('4 - Species Breakdown'!L851=0,\"\",'4 - Species Breakdown'!L851)","v":""},{"$f":"IF('4 - Species Breakdown'!M851=0,\"\",'4 - Species Breakdown'!M851)","v":""},{"$f":"IF('4 - Species Breakdown'!N851=0,\"\",'4 - Species Breakdown'!N851)","v":""},{"$f":"IFERROR(('4 - Species Breakdown'!J851/'WCC Summary'!$D$14)*100,\"\")","v":""},{"$f":"IF('4 - Species Breakdown'!J851=0,\"\",'4 - Species Breakdown'!J851)","v":""}]
[null,{"$f":"IF('4 - Species Breakdown'!B852=0,\"\",'4 - Species Breakdown'!B852)","v":""},{"$f":"IF('4 - Species Breakdown'!D852=0,\"\",'4 - Species Breakdown'!D852)","v":""},{"$f":"IF('4 - Species Breakdown'!L852=0,\"\",'4 - Species Breakdown'!L852)","v":""},{"$f":"IF('4 - Species Breakdown'!M852=0,\"\",'4 - Species Breakdown'!M852)","v":""},{"$f":"IF('4 - Species Breakdown'!N852=0,\"\",'4 - Species Breakdown'!N852)","v":""},{"$f":"IFERROR(('4 - Species Breakdown'!J852/'WCC Summary'!$D$14)*100,\"\")","v":""},{"$f":"IF('4 - Species Breakdown'!J852=0,\"\",'4 - Species Breakdown'!J852)","v":""}]
[null,{"$f":"IF('4 - Species Breakdown'!B853=0,\"\",'4 - Species Breakdown'!B853)","v":""},{"$f":"IF('4 - Species Breakdown'!D853=0,\"\",'4 - Species Breakdown'!D853)","v":""},{"$f":"IF('4 - Species Breakdown'!L853=0,\"\",'4 - Species Breakdown'!L853)","v":""},{"$f":"IF('4 - Species Breakdown'!M853=0,\"\",'4 - Species Breakdown'!M853)","v":""},{"$f":"IF('4 - Species Breakdown'!N853=0,\"\",'4 - Species Breakdown'!N853)","v":""},{"$f":"IFERROR(('4 - Species Breakdown'!J853/'WCC Summary'!$D$14)*100,\"\")","v":""},{"$f":"IF('4 - Species Breakdown'!J853=0,\"\",'4 - Species Breakdown'!J853)","v":""}]
[null,{"$f":"IF('4 - Species Breakdown'!B854=0,\"\",'4 - Species Breakdown'!B854)","v":""},{"$f":"IF('4 - Species Breakdown'!D854=0,\"\",'4 - Species Breakdown'!D854)","v":""},{"$f":"IF('4 - Species Breakdown'!L854=0,\"\",'4 - Species Breakdown'!L854)","v":""},{"$f":"IF('4 - Species Breakdown'!M854=0,\"\",'4 - Species Breakdown'!M854)","v":""},{"$f":"IF('4 - Species Breakdown'!N854=0,\"\",'4 - Species Breakdown'!N854)","v":""},{"$f":"IFERROR(('4 - Species Breakdown'!J854/'WCC Summary'!$D$14)*100,\"\")","v":""},{"$f":"IF('4 - Species Breakdown'!J854=0,\"\",'4 - Species Breakdown'!J854)","v":""}]
[null,{"$f":"IF('4 - Species Breakdown'!B855=0,\"\",'4 - Species Breakdown'!B855)","v":""},{"$f":"IF('4 - Species Breakdown'!D855=0,\"\",'4 - Species Breakdown'!D855)","v":""},{"$f":"IF('4 - Species Breakdown'!L855=0,\"\",'4 - Species Breakdown'!L855)","v":""},{"$f":"IF('4 - Species Breakdown'!M855=0,\"\",'4 - Species Breakdown'!M855)","v":""},{"$f":"IF('4 - Species Breakdown'!N855=0,\"\",'4 - Species Breakdown'!N855)","v":""},{"$f":"IFERROR(('4 - Species Breakdown'!J855/'WCC Summary'!$D$14)*100,\"\")","v":""},{"$f":"IF('4 - Species Breakdown'!J855=0,\"\",'4 - Species Breakdown'!J855)","v":""}]
[null,{"$f":"IF('4 - Species Breakdown'!B856=0,\"\",'4 - Species Breakdown'!B856)","v":""},{"$f":"IF('4 - Species Breakdown'!D856=0,\"\",'4 - Species Breakdown'!D856)","v":""},{"$f":"IF('4 - Species Breakdown'!L856=0,\"\",'4 - Species Breakdown'!L856)","v":""},{"$f":"IF('4 - Species Breakdown'!M856=0,\"\",'4 - Species Breakdown'!M856)","v":""},{"$f":"IF('4 - Species Breakdown'!N856=0,\"\",'4 - Species Breakdown'!N856)","v":""},{"$f":"IFERROR(('4 - Species Breakdown'!J856/'WCC Summary'!$D$14)*100,\"\")","v":""},{"$f":"IF('4 - Species Breakdown'!J856=0,\"\",'4 - Species Breakdown'!J856)","v":""}]
[null,{"$f":"IF('4 - Species Breakdown'!B857=0,\"\",'4 - Species Breakdown'!B857)","v":""},{"$f":"IF('4 - Species Breakdown'!D857=0,\"\",'4 - Species Breakdown'!D857)","v":""},{"$f":"IF('4 - Species Breakdown'!L857=0,\"\",'4 - Species Breakdown'!L857)","v":""},{"$f":"IF('4 - Species Breakdown'!M857=0,\"\",'4 - Species Breakdown'!M857)","v":""},{"$f":"IF('4 - Species Breakdown'!N857=0,\"\",'4 - Species Breakdown'!N857)","v":""},{"$f":"IFERROR(('4 - Species Breakdown'!J857/'WCC Summary'!$D$14)*100,\"\")","v":""},{"$f":"IF('4 - Species Breakdown'!J857=0,\"\",'4 - Species Breakdown'!J857)","v":""}]
[null,{"$f":"IF('4 - Species Breakdown'!B858=0,\"\",'4 - Species Breakdown'!B858)","v":""},{"$f":"IF('4 - Species Breakdown'!D858=0,\"\",'4 - Species Breakdown'!D858)","v":""},{"$f":"IF('4 - Species Breakdown'!L858=0,\"\",'4 - Species Breakdown'!L858)","v":""},{"$f":"IF('4 - Species Breakdown'!M858=0,\"\",'4 - Species Breakdown'!M858)","v":""},{"$f":"IF('4 - Species Breakdown'!N858=0,\"\",'4 - Species Breakdown'!N858)","v":""},{"$f":"IFERROR(('4 - Species Breakdown'!J858/'WCC Summary'!$D$14)*100,\"\")","v":""},{"$f":"IF('4 - Species Breakdown'!J858=0,\"\",'4 - Species Breakdown'!J858)","v":""}]
[null,{"$f":"IF('4 - Species Breakdown'!B859=0,\"\",'4 - Species Breakdown'!B859)","v":""},{"$f":"IF('4 - Species Breakdown'!D859=0,\"\",'4 - Species Breakdown'!D859)","v":""},{"$f":"IF('4 - Species Breakdown'!L859=0,\"\",'4 - Species Breakdown'!L859)","v":""},{"$f":"IF('4 - Species Breakdown'!M859=0,\"\",'4 - Species Breakdown'!M859)","v":""},{"$f":"IF('4 - Species Breakdown'!N859=0,\"\",'4 - Species Breakdown'!N859)","v":""},{"$f":"IFERROR(('4 - Species Breakdown'!J859/'WCC Summary'!$D$14)*100,\"\")","v":""},{"$f":"IF('4 - Species Breakdown'!J859=0,\"\",'4 - Species Breakdown'!J859)","v":""}]
[null,{"$f":"IF('4 - Species Breakdown'!B860=0,\"\",'4 - Species Breakdown'!B860)","v":""},{"$f":"IF('4 - Species Breakdown'!D860=0,\"\",'4 - Species Breakdown'!D860)","v":""},{"$f":"IF('4 - Species Breakdown'!L860=0,\"\",'4 - Species Breakdown'!L860)","v":""},{"$f":"IF('4 - Species Breakdown'!M860=0,\"\",'4 - Species Breakdown'!M860)","v":""},{"$f":"IF('4 - Species Breakdown'!N860=0,\"\",'4 - Species Breakdown'!N860)","v":""},{"$f":"IFERROR(('4 - Species Breakdown'!J860/'WCC Summary'!$D$14)*100,\"\")","v":""},{"$f":"IF('4 - Species Breakdown'!J860=0,\"\",'4 - Species Breakdown'!J860)","v":""}]
[null,{"$f":"IF('4 - Species Breakdown'!B861=0,\"\",'4 - Species Breakdown'!B861)","v":""},{"$f":"IF('4 - Species Breakdown'!D861=0,\"\",'4 - Species Breakdown'!D861)","v":""},{"$f":"IF('4 - Species Breakdown'!L861=0,\"\",'4 - Species Breakdown'!L861)","v":""},{"$f":"IF('4 - Species Breakdown'!M861=0,\"\",'4 - Species Breakdown'!M861)","v":""},{"$f":"IF('4 - Species Breakdown'!N861=0,\"\",'4 - Species Breakdown'!N861)","v":""},{"$f":"IFERROR(('4 - Species Breakdown'!J861/'WCC Summary'!$D$14)*100,\"\")","v":""},{"$f":"IF('4 - Species Breakdown'!J861=0,\"\",'4 - Species Breakdown'!J861)","v":""}]
[null,{"$f":"IF('4 - Species Breakdown'!B862=0,\"\",'4 - Species Breakdown'!B862)","v":""},{"$f":"IF('4 - Species Breakdown'!D862=0,\"\",'4 - Species Breakdown'!D862)","v":""},{"$f":"IF('4 - Species Breakdown'!L862=0,\"\",'4 - Species Breakdown'!L862)","v":""},{"$f":"IF('4 - Species Breakdown'!M862=0,\"\",'4 - Species Breakdown'!M862)","v":""},{"$f":"IF('4 - Species Breakdown'!N862=0,\"\",'4 - Species Breakdown'!N862)","v":""},{"$f":"IFERROR(('4 - Species Breakdown'!J862/'WCC Summary'!$D$14)*100,\"\")","v":""},{"$f":"IF('4 - Species Breakdown'!J862=0,\"\",'4 - Species Breakdown'!J862)","v":""}]
[null,{"$f":"IF('4 - Species Breakdown'!B863=0,\"\",'4 - Species Breakdown'!B863)","v":""},{"$f":"IF('4 - Species Breakdown'!D863=0,\"\",'4 - Species Breakdown'!D863)","v":""},{"$f":"IF('4 - Species Breakdown'!L863=0,\"\",'4 - Species Breakdown'!L863)","v":""},{"$f":"IF('4 - Species Breakdown'!M863=0,\"\",'4 - Species Breakdown'!M863)","v":""},{"$f":"IF('4 - Species Breakdown'!N863=0,\"\",'4 - Species Breakdown'!N863)","v":""},{"$f":"IFERROR(('4 - Species Breakdown'!J863/'WCC Summary'!$D$14)*100,\"\")","v":""},{"$f":"IF('4 - Species Breakdown'!J863=0,\"\",'4 - Species Breakdown'!J863)","v":""}]
[null,{"$f":"IF('4 - Species Breakdown'!B864=0,\"\",'4 - Species Breakdown'!B864)","v":""},{"$f":"IF('4 - Species Breakdown'!D864=0,\"\",'4 - Species Breakdown'!D864)","v":""},{"$f":"IF('4 - Species Breakdown'!L864=0,\"\",'4 - Species Breakdown'!L864)","v":""},{"$f":"IF('4 - Species Breakdown'!M864=0,\"\",'4 - Species Breakdown'!M864)","v":""},{"$f":"IF('4 - Species Breakdown'!N864=0,\"\",'4 - Species Breakdown'!N864)","v":""},{"$f":"IFERROR(('4 - Species Breakdown'!J864/'WCC Summary'!$D$14)*100,\"\")","v":""},{"$f":"IF('4 - Species Breakdown'!J864=0,\"\",'4 - Species Breakdown'!J864)","v":""}]
[null,{"$f":"IF('4 - Species Breakdown'!B865=0,\"\",'4 - Species Breakdown'!B865)","v":""},{"$f":"IF('4 - Species Breakdown'!D865=0,\"\",'4 - Species Breakdown'!D865)","v":""},{"$f":"IF('4 - Species Breakdown'!L865=0,\"\",'4 - Species Breakdown'!L865)","v":""},{"$f":"IF('4 - Species Breakdown'!M865=0,\"\",'4 - Species Breakdown'!M865)","v":""},{"$f":"IF('4 - Species Breakdown'!N865=0,\"\",'4 - Species Breakdown'!N865)","v":""},{"$f":"IFERROR(('4 - Species Breakdown'!J865/'WCC Summary'!$D$14)*100,\"\")","v":""},{"$f":"IF('4 - Species Breakdown'!J865=0,\"\",'4 - Species Breakdown'!J865)","v":""}]
[null,{"$f":"IF('4 - Species Breakdown'!B866=0,\"\",'4 - Species Breakdown'!B866)","v":""},{"$f":"IF('4 - Species Breakdown'!D866=0,\"\",'4 - Species Breakdown'!D866)","v":""},{"$f":"IF('4 - Species Breakdown'!L866=0,\"\",'4 - Species Breakdown'!L866)","v":""},{"$f":"IF('4 - Species Breakdown'!M866=0,\"\",'4 - Species Breakdown'!M866)","v":""},{"$f":"IF('4 - Species Breakdown'!N866=0,\"\",'4 - Species Breakdown'!N866)","v":""},{"$f":"IFERROR(('4 - Species Breakdown'!J866/'WCC Summary'!$D$14)*100,\"\")","v":""},{"$f":"IF('4 - Species Breakdown'!J866=0,\"\",'4 - Species Breakdown'!J866)","v":""}]
[null,{"$f":"IF('4 - Species Breakdown'!B867=0,\"\",'4 - Species Breakdown'!B867)","v":""},{"$f":"IF('4 - Species Breakdown'!D867=0,\"\",'4 - Species Breakdown'!D867)","v":""},{"$f":"IF('4 - Species Breakdown'!L867=0,\"\",'4 - Species Breakdown'!L867)","v":""},{"$f":"IF('4 - Species Breakdown'!M867=0,\"\",'4 - Species Breakdown'!M867)","v":""},{"$f":"IF('4 - Species Breakdown'!N867=0,\"\",'4 - Species Breakdown'!N867)","v":""},{"$f":"IFERROR(('4 - Species Breakdown'!J867/'WCC Summary'!$D$14)*100,\"\")","v":""},{"$f":"IF('4 - Species Breakdown'!J867=0,\"\",'4 - Species Breakdown'!J867)","v":""}]
[null,{"$f":"IF('4 - Species Breakdown'!B868=0,\"\",'4 - Species Breakdown'!B868)","v":""},{"$f":"IF('4 - Species Breakdown'!D868=0,\"\",'4 - Species Breakdown'!D868)","v":""},{"$f":"IF('4 - Species Breakdown'!L868=0,\"\",'4 - Species Breakdown'!L868)","v":""},{"$f":"IF('4 - Species Breakdown'!M868=0,\"\",'4 - Species Breakdown'!M868)","v":""},{"$f":"IF('4 - Species Breakdown'!N868=0,\"\",'4 - Species Breakdown'!N868)","v":""},{"$f":"IFERROR(('4 - Species Breakdown'!J868/'WCC Summary'!$D$14)*100,\"\")","v":""},{"$f":"IF('4 - Species Breakdown'!J868=0,\"\",'4 - Species Breakdown'!J868)","v":""}]
[null,{"$f":"IF('4 - Species Breakdown'!B869=0,\"\",'4 - Species Breakdown'!B869)","v":""},{"$f":"IF('4 - Species Breakdown'!D869=0,\"\",'4 - Species Breakdown'!D869)","v":""},{"$f":"IF('4 - Species Breakdown'!L869=0,\"\",'4 - Species Breakdown'!L869)","v":""},{"$f":"IF('4 - Species Breakdown'!M869=0,\"\",'4 - Species Breakdown'!M869)","v":""},{"$f":"IF('4 - Species Breakdown'!N869=0,\"\",'4 - Species Breakdown'!N869)","v":""},{"$f":"IFERROR(('4 - Species Breakdown'!J869/'WCC Summary'!$D$14)*100,\"\")","v":""},{"$f":"IF('4 - Species Breakdown'!J869=0,\"\",'4 - Species Breakdown'!J869)","v":""}]
[null,{"$f":"IF('4 - Species Breakdown'!B870=0,\"\",'4 - Species Breakdown'!B870)","v":""},{"$f":"IF('4 - Species Breakdown'!D870=0,\"\",'4 - Species Breakdown'!D870)","v":""},{"$f":"IF('4 - Species Breakdown'!L870=0,\"\",'4 - Species Breakdown'!L870)","v":""},{"$f":"IF('4 - Species Breakdown'!M870=0,\"\",'4 - Species Breakdown'!M870)","v":""},{"$f":"IF('4 - Species Breakdown'!N870=0,\"\",'4 - Species Breakdown'!N870)","v":""},{"$f":"IFERROR(('4 - Species Breakdown'!J870/'WCC Summary'!$D$14)*100,\"\")","v":""},{"$f":"IF('4 - Species Breakdown'!J870=0,\"\",'4 - Species Breakdown'!J870)","v":""}]
[null,{"$f":"IF('4 - Species Breakdown'!B871=0,\"\",'4 - Species Breakdown'!B871)","v":""},{"$f":"IF('4 - Species Breakdown'!D871=0,\"\",'4 - Species Breakdown'!D871)","v":""},{"$f":"IF('4 - Species Breakdown'!L871=0,\"\",'4 - Species Breakdown'!L871)","v":""},{"$f":"IF('4 - Species Breakdown'!M871=0,\"\",'4 - Species Breakdown'!M871)","v":""},{"$f":"IF('4 - Species Breakdown'!N871=0,\"\",'4 - Species Breakdown'!N871)","v":""},{"$f":"IFERROR(('4 - Species Breakdown'!J871/'WCC Summary'!$D$14)*100,\"\")","v":""},{"$f":"IF('4 - Species Breakdown'!J871=0,\"\",'4 - Species Breakdown'!J871)","v":""}]
[null,{"$f":"IF('4 - Species Breakdown'!B872=0,\"\",'4 - Species Breakdown'!B872)","v":""},{"$f":"IF('4 - Species Breakdown'!D872=0,\"\",'4 - Species Breakdown'!D872)","v":""},{"$f":"IF('4 - Species Breakdown'!L872=0,\"\",'4 - Species Breakdown'!L872)","v":""},{"$f":"IF('4 - Species Breakdown'!M872=0,\"\",'4 - Species Breakdown'!M872)","v":""},{"$f":"IF('4 - Species Breakdown'!N872=0,\"\",'4 - Species Breakdown'!N872)","v":""},{"$f":"IFERROR(('4 - Species Breakdown'!J872/'WCC Summary'!$D$14)*100,\"\")","v":""},{"$f":"IF('4 - Species Breakdown'!J872=0,\"\",'4 - Species Breakdown'!J872)","v":""}]
[null,{"$f":"IF('4 - Species Breakdown'!B873=0,\"\",'4 - Species Breakdown'!B873)","v":""},{"$f":"IF('4 - Species Breakdown'!D873=0,\"\",'4 - Species Breakdown'!D873)","v":""},{"$f":"IF('4 - Species Breakdown'!L873=0,\"\",'4 - Species Breakdown'!L873)","v":""},{"$f":"IF('4 - Species Breakdown'!M873=0,\"\",'4 - Species Breakdown'!M873)","v":""},{"$f":"IF('4 - Species Breakdown'!N873=0,\"\",'4 - Species Breakdown'!N873)","v":""},{"$f":"IFERROR(('4 - Species Breakdown'!J873/'WCC Summary'!$D$14)*100,\"\")","v":""},{"$f":"IF('4 - Species Breakdown'!J873=0,\"\",'4 - Species Breakdown'!J873)","v":""}]
[null,{"$f":"IF('4 - Species Breakdown'!B874=0,\"\",'4 - Species Breakdown'!B874)","v":""},{"$f":"IF('4 - Species Breakdown'!D874=0,\"\",'4 - Species Breakdown'!D874)","v":""},{"$f":"IF('4 - Species Breakdown'!L874=0,\"\",'4 - Species Breakdown'!L874)","v":""},{"$f":"IF('4 - Species Breakdown'!M874=0,\"\",'4 - Species Breakdown'!M874)","v":""},{"$f":"IF('4 - Species Breakdown'!N874=0,\"\",'4 - Species Breakdown'!N874)","v":""},{"$f":"IFERROR(('4 - Species Breakdown'!J874/'WCC Summary'!$D$14)*100,\"\")","v":""},{"$f":"IF('4 - Species Breakdown'!J874=0,\"\",'4 - Species Breakdown'!J874)","v":""}]
[null,{"$f":"IF('4 - Species Breakdown'!B875=0,\"\",'4 - Species Breakdown'!B875)","v":""},{"$f":"IF('4 - Species Breakdown'!D875=0,\"\",'4 - Species Breakdown'!D875)","v":""},{"$f":"IF('4 - Species Breakdown'!L875=0,\"\",'4 - Species Breakdown'!L875)","v":""},{"$f":"IF('4 - Species Breakdown'!M875=0,\"\",'4 - Species Breakdown'!M875)","v":""},{"$f":"IF('4 - Species Breakdown'!N875=0,\"\",'4 - Species Breakdown'!N875)","v":""},{"$f":"IFERROR(('4 - Species Breakdown'!J875/'WCC Summary'!$D$14)*100,\"\")","v":""},{"$f":"IF('4 - Species Breakdown'!J875=0,\"\",'4 - Species Breakdown'!J875)","v":""}]
[null,{"$f":"IF('4 - Species Breakdown'!B876=0,\"\",'4 - Species Breakdown'!B876)","v":""},{"$f":"IF('4 - Species Breakdown'!D876=0,\"\",'4 - Species Breakdown'!D876)","v":""},{"$f":"IF('4 - Species Breakdown'!L876=0,\"\",'4 - Species Breakdown'!L876)","v":""},{"$f":"IF('4 - Species Breakdown'!M876=0,\"\",'4 - Species Breakdown'!M876)","v":""},{"$f":"IF('4 - Species Breakdown'!N876=0,\"\",'4 - Species Breakdown'!N876)","v":""},{"$f":"IFERROR(('4 - Species Breakdown'!J876/'WCC Summary'!$D$14)*100,\"\")","v":""},{"$f":"IF('4 - Species Breakdown'!J876=0,\"\",'4 - Species Breakdown'!J876)","v":""}]
[null,{"$f":"IF('4 - Species Breakdown'!B877=0,\"\",'4 - Species Breakdown'!B877)","v":""},{"$f":"IF('4 - Species Breakdown'!D877=0,\"\",'4 - Species Breakdown'!D877)","v":""},{"$f":"IF('4 - Species Breakdown'!L877=0,\"\",'4 - Species Breakdown'!L877)","v":""},{"$f":"IF('4 - Species Breakdown'!M877=0,\"\",'4 - Species Breakdown'!M877)","v":""},{"$f":"IF('4 - Species Breakdown'!N877=0,\"\",'4 - Species Breakdown'!N877)","v":""},{"$f":"IFERROR(('4 - Species Breakdown'!J877/'WCC Summary'!$D$14)*100,\"\")","v":""},{"$f":"IF('4 - Species Breakdown'!J877=0,\"\",'4 - Species Breakdown'!J877)","v":""}]
[null,{"$f":"IF('4 - Species Breakdown'!B878=0,\"\",'4 - Species Breakdown'!B878)","v":""},{"$f":"IF('4 - Species Breakdown'!D878=0,\"\",'4 - Species Breakdown'!D878)","v":""},{"$f":"IF('4 - Species Breakdown'!L878=0,\"\",'4 - Species Breakdown'!L878)","v":""},{"$f":"IF('4 - Species Breakdown'!M878=0,\"\",'4 - Species Breakdown'!M878)","v":""},{"$f":"IF('4 - Species Breakdown'!N878=0,\"\",'4 - Species Breakdown'!N878)","v":""},{"$f":"IFERROR(('4 - Species Breakdown'!J878/'WCC Summary'!$D$14)*100,\"\")","v":""},{"$f":"IF('4 - Species Breakdown'!J878=0,\"\",'4 - Species Breakdown'!J878)","v":""}]
[null,{"$f":"IF('4 - Species Breakdown'!B879=0,\"\",'4 - Species Breakdown'!B879)","v":""},{"$f":"IF('4 - Species Breakdown'!D879=0,\"\",'4 - Species Breakdown'!D879)","v":""},{"$f":"IF('4 - Species Breakdown'!L879=0,\"\",'4 - Species Breakdown'!L879)","v":""},{"$f":"IF('4 - Species Breakdown'!M879=0,\"\",'4 - Species Breakdown'!M879)","v":""},{"$f":"IF('4 - Species Breakdown'!N879=0,\"\",'4 - Species Breakdown'!N879)","v":""},{"$f":"IFERROR(('4 - Species Breakdown'!J879/'WCC Summary'!$D$14)*100,\"\")","v":""},{"$f":"IF('4 - Species Breakdown'!J879=0,\"\",'4 - Species Breakdown'!J879)","v":""}]
[null,{"$f":"IF('4 - Species Breakdown'!B880=0,\"\",'4 - Species Breakdown'!B880)","v":""},{"$f":"IF('4 - Species Breakdown'!D880=0,\"\",'4 - Species Breakdown'!D880)","v":""},{"$f":"IF('4 - Species Breakdown'!L880=0,\"\",'4 - Species Breakdown'!L880)","v":""},{"$f":"IF('4 - Species Breakdown'!M880=0,\"\",'4 - Species Breakdown'!M880)","v":""},{"$f":"IF('4 - Species Breakdown'!N880=0,\"\",'4 - Species Breakdown'!N880)","v":""},{"$f":"IFERROR(('4 - Species Breakdown'!J880/'WCC Summary'!$D$14)*100,\"\")","v":""},{"$f":"IF('4 - Species Breakdown'!J880=0,\"\",'4 - Species Breakdown'!J880)","v":""}]
[null,{"$f":"IF('4 - Species Breakdown'!B881=0,\"\",'4 - Species Breakdown'!B881)","v":""},{"$f":"IF('4 - Species Breakdown'!D881=0,\"\",'4 - Species Breakdown'!D881)","v":""},{"$f":"IF('4 - Species Breakdown'!L881=0,\"\",'4 - Species Breakdown'!L881)","v":""},{"$f":"IF('4 - Species Breakdown'!M881=0,\"\",'4 - Species Breakdown'!M881)","v":""},{"$f":"IF('4 - Species Breakdown'!N881=0,\"\",'4 - Species Breakdown'!N881)","v":""},{"$f":"IFERROR(('4 - Species Breakdown'!J881/'WCC Summary'!$D$14)*100,\"\")","v":""},{"$f":"IF('4 - Species Breakdown'!J881=0,\"\",'4 - Species Breakdown'!J881)","v":""}]
[null,{"$f":"IF('4 - Species Breakdown'!B882=0,\"\",'4 - Species Breakdown'!B882)","v":""},{"$f":"IF('4 - Species Breakdown'!D882=0,\"\",'4 - Species Breakdown'!D882)","v":""},{"$f":"IF('4 - Species Breakdown'!L882=0,\"\",'4 - Species Breakdown'!L882)","v":""},{"$f":"IF('4 - Species Breakdown'!M882=0,\"\",'4 - Species Breakdown'!M882)","v":""},{"$f":"IF('4 - Species Breakdown'!N882=0,\"\",'4 - Species Breakdown'!N882)","v":""},{"$f":"IFERROR(('4 - Species Breakdown'!J882/'WCC Summary'!$D$14)*100,\"\")","v":""},{"$f":"IF('4 - Species Breakdown'!J882=0,\"\",'4 - Species Breakdown'!J882)","v":""}]
[null,{"$f":"IF('4 - Species Breakdown'!B883=0,\"\",'4 - Species Breakdown'!B883)","v":""},{"$f":"IF('4 - Species Breakdown'!D883=0,\"\",'4 - Species Breakdown'!D883)","v":""},{"$f":"IF('4 - Species Breakdown'!L883=0,\"\",'4 - Species Breakdown'!L883)","v":""},{"$f":"IF('4 - Species Breakdown'!M883=0,\"\",'4 - Species Breakdown'!M883)","v":""},{"$f":"IF('4 - Species Breakdown'!N883=0,\"\",'4 - Species Breakdown'!N883)","v":""},{"$f":"IFERROR(('4 - Species Breakdown'!J883/'WCC Summary'!$D$14)*100,\"\")","v":""},{"$f":"IF('4 - Species Breakdown'!J883=0,\"\",'4 - Species Breakdown'!J883)","v":""}]
[null,{"$f":"IF('4 - Species Breakdown'!B884=0,\"\",'4 - Species Breakdown'!B884)","v":""},{"$f":"IF('4 - Species Breakdown'!D884=0,\"\",'4 - Species Breakdown'!D884)","v":""},{"$f":"IF('4 - Species Breakdown'!L884=0,\"\",'4 - Species Breakdown'!L884)","v":""},{"$f":"IF('4 - Species Breakdown'!M884=0,\"\",'4 - Species Breakdown'!M884)","v":""},{"$f":"IF('4 - Species Breakdown'!N884=0,\"\",'4 - Species Breakdown'!N884)","v":""},{"$f":"IFERROR(('4 - Species Breakdown'!J884/'WCC Summary'!$D$14)*100,\"\")","v":""},{"$f":"IF('4 - Species Breakdown'!J884=0,\"\",'4 - Species Breakdown'!J884)","v":""}]
[null,{"$f":"IF('4 - Species Breakdown'!B885=0,\"\",'4 - Species Breakdown'!B885)","v":""},{"$f":"IF('4 - Species Breakdown'!D885=0,\"\",'4 - Species Breakdown'!D885)","v":""},{"$f":"IF('4 - Species Breakdown'!L885=0,\"\",'4 - Species Breakdown'!L885)","v":""},{"$f":"IF('4 - Species Breakdown'!M885=0,\"\",'4 - Species Breakdown'!M885)","v":""},{"$f":"IF('4 - Species Breakdown'!N885=0,\"\",'4 - Species Breakdown'!N885)","v":""},{"$f":"IFERROR(('4 - Species Breakdown'!J885/'WCC Summary'!$D$14)*100,\"\")","v":""},{"$f":"IF('4 - Species Breakdown'!J885=0,\"\",'4 - Species Breakdown'!J885)","v":""}]
[null,{"$f":"IF('4 - Species Breakdown'!B886=0,\"\",'4 - Species Breakdown'!B886)","v":""},{"$f":"IF('4 - Species Breakdown'!D886=0,\"\",'4 - Species Breakdown'!D886)","v":""},{"$f":"IF('4 - Species Breakdown'!L886=0,\"\",'4 - Species Breakdown'!L886)","v":""},{"$f":"IF('4 - Species Breakdown'!M886=0,\"\",'4 - Species Breakdown'!M886)","v":""},{"$f":"IF('4 - Species Breakdown'!N886=0,\"\",'4 - Species Breakdown'!N886)","v":""},{"$f":"IFERROR(('4 - Species Breakdown'!J886/'WCC Summary'!$D$14)*100,\"\")","v":""},{"$f":"IF('4 - Species Breakdown'!J886=0,\"\",'4 - Species Breakdown'!J886)","v":""}]
[null,{"$f":"IF('4 - Species Breakdown'!B887=0,\"\",'4 - Species Breakdown'!B887)","v":""},{"$f":"IF('4 - Species Breakdown'!D887=0,\"\",'4 - Species Breakdown'!D887)","v":""},{"$f":"IF('4 - Species Breakdown'!L887=0,\"\",'4 - Species Breakdown'!L887)","v":""},{"$f":"IF('4 - Species Breakdown'!M887=0,\"\",'4 - Species Breakdown'!M887)","v":""},{"$f":"IF('4 - Species Breakdown'!N887=0,\"\",'4 - Species Breakdown'!N887)","v":""},{"$f":"IFERROR(('4 - Species Breakdown'!J887/'WCC Summary'!$D$14)*100,\"\")","v":""},{"$f":"IF('4 - Species Breakdown'!J887=0,\"\",'4 - Species Breakdown'!J887)","v":""}]
[null,{"$f":"IF('4 - Species Breakdown'!B888=0,\"\",'4 - Species Breakdown'!B888)","v":""},{"$f":"IF('4 - Species Breakdown'!D888=0,\"\",'4 - Species Breakdown'!D888)","v":""},{"$f":"IF('4 - Species Breakdown'!L888=0,\"\",'4 - Species Breakdown'!L888)","v":""},{"$f":"IF('4 - Species Breakdown'!M888=0,\"\",'4 - Species Breakdown'!M888)","v":""},{"$f":"IF('4 - Species Breakdown'!N888=0,\"\",'4 - Species Breakdown'!N888)","v":""},{"$f":"IFERROR(('4 - Species Breakdown'!J888/'WCC Summary'!$D$14)*100,\"\")","v":""},{"$f":"IF('4 - Species Breakdown'!J888=0,\"\",'4 - Species Breakdown'!J888)","v":""}]
[null,{"$f":"IF('4 - Species Breakdown'!B889=0,\"\",'4 - Species Breakdown'!B889)","v":""},{"$f":"IF('4 - Species Breakdown'!D889=0,\"\",'4 - Species Breakdown'!D889)","v":""},{"$f":"IF('4 - Species Breakdown'!L889=0,\"\",'4 - Species Breakdown'!L889)","v":""},{"$f":"IF('4 - Species Breakdown'!M889=0,\"\",'4 - Species Breakdown'!M889)","v":""},{"$f":"IF('4 - Species Breakdown'!N889=0,\"\",'4 - Species Breakdown'!N889)","v":""},{"$f":"IFERROR(('4 - Species Breakdown'!J889/'WCC Summary'!$D$14)*100,\"\")","v":""},{"$f":"IF('4 - Species Breakdown'!J889=0,\"\",'4 - Species Breakdown'!J889)","v":""}]
[null,{"$f":"IF('4 - Species Breakdown'!B890=0,\"\",'4 - Species Breakdown'!B890)","v":""},{"$f":"IF('4 - Species Breakdown'!D890=0,\"\",'4 - Species Breakdown'!D890)","v":""},{"$f":"IF('4 - Species Breakdown'!L890=0,\"\",'4 - Species Breakdown'!L890)","v":""},{"$f":"IF('4 - Species Breakdown'!M890=0,\"\",'4 - Species Breakdown'!M890)","v":""},{"$f":"IF('4 - Species Breakdown'!N890=0,\"\",'4 - Species Breakdown'!N890)","v":""},{"$f":"IFERROR(('4 - Species Breakdown'!J890/'WCC Summary'!$D$14)*100,\"\")","v":""},{"$f":"IF('4 - Species Breakdown'!J890=0,\"\",'4 - Species Breakdown'!J890)","v":""}]
[null,{"$f":"IF('4 - Species Breakdown'!B891=0,\"\",'4 - Species Breakdown'!B891)","v":""},{"$f":"IF('4 - Species Breakdown'!D891=0,\"\",'4 - Species Breakdown'!D891)","v":""},{"$f":"IF('4 - Species Breakdown'!L891=0,\"\",'4 - Species Breakdown'!L891)","v":""},{"$f":"IF('4 - Species Breakdown'!M891=0,\"\",'4 - Species Breakdown'!M891)","v":""},{"$f":"IF('4 - Species Breakdown'!N891=0,\"\",'4 - Species Breakdown'!N891)","v":""},{"$f":"IFERROR(('4 - Species Breakdown'!J891/'WCC Summary'!$D$14)*100,\"\")","v":""},{"$f":"IF('4 - Species Breakdown'!J891=0,\"\",'4 - Species Breakdown'!J891)","v":""}]
[null,{"$f":"IF('4 - Species Breakdown'!B892=0,\"\",'4 - Species Breakdown'!B892)","v":""},{"$f":"IF('4 - Species Breakdown'!D892=0,\"\",'4 - Species Breakdown'!D892)","v":""},{"$f":"IF('4 - Species Breakdown'!L892=0,\"\",'4 - Species Breakdown'!L892)","v":""},{"$f":"IF('4 - Species Breakdown'!M892=0,\"\",'4 - Species Breakdown'!M892)","v":""},{"$f":"IF('4 - Species Breakdown'!N892=0,\"\",'4 - Species Breakdown'!N892)","v":""},{"$f":"IFERROR(('4 - Species Breakdown'!J892/'WCC Summary'!$D$14)*100,\"\")","v":""},{"$f":"IF('4 - Species Breakdown'!J892=0,\"\",'4 - Species Breakdown'!J892)","v":""}]
[null,{"$f":"IF('4 - Species Breakdown'!B893=0,\"\",'4 - Species Breakdown'!B893)","v":""},{"$f":"IF('4 - Species Breakdown'!D893=0,\"\",'4 - Species Breakdown'!D893)","v":""},{"$f":"IF('4 - Species Breakdown'!L893=0,\"\",'4 - Species Breakdown'!L893)","v":""},{"$f":"IF('4 - Species Breakdown'!M893=0,\"\",'4 - Species Breakdown'!M893)","v":""},{"$f":"IF('4 - Species Breakdown'!N893=0,\"\",'4 - Species Breakdown'!N893)","v":""},{"$f":"IFERROR(('4 - Species Breakdown'!J893/'WCC Summary'!$D$14)*100,\"\")","v":""},{"$f":"IF('4 - Species Breakdown'!J893=0,\"\",'4 - Species Breakdown'!J893)","v":""}]
[null,{"$f":"IF('4 - Species Breakdown'!B894=0,\"\",'4 - Species Breakdown'!B894)","v":""},{"$f":"IF('4 - Species Breakdown'!D894=0,\"\",'4 - Species Breakdown'!D894)","v":""},{"$f":"IF('4 - Species Breakdown'!L894=0,\"\",'4 - Species Breakdown'!L894)","v":""},{"$f":"IF('4 - Species Breakdown'!M894=0,\"\",'4 - Species Breakdown'!M894)","v":""},{"$f":"IF('4 - Species Breakdown'!N894=0,\"\",'4 - Species Breakdown'!N894)","v":""},{"$f":"IFERROR(('4 - Species Breakdown'!J894/'WCC Summary'!$D$14)*100,\"\")","v":""},{"$f":"IF('4 - Species Breakdown'!J894=0,\"\",'4 - Species Breakdown'!J894)","v":""}]
[null,{"$f":"IF('4 - Species Breakdown'!B895=0,\"\",'4 - Species Breakdown'!B895)","v":""},{"$f":"IF('4 - Species Breakdown'!D895=0,\"\",'4 - Species Breakdown'!D895)","v":""},{"$f":"IF('4 - Species Breakdown'!L895=0,\"\",'4 - Species Breakdown'!L895)","v":""},{"$f":"IF('4 - Species Breakdown'!M895=0,\"\",'4 - Species Breakdown'!M895)","v":""},{"$f":"IF('4 - Species Breakdown'!N895=0,\"\",'4 - Species Breakdown'!N895)","v":""},{"$f":"IFERROR(('4 - Species Breakdown'!J895/'WCC Summary'!$D$14)*100,\"\")","v":""},{"$f":"IF('4 - Species Breakdown'!J895=0,\"\",'4 - Species Breakdown'!J895)","v":""}]
[null,{"$f":"IF('4 - Species Breakdown'!B896=0,\"\",'4 - Species Breakdown'!B896)","v":""},{"$f":"IF('4 - Species Breakdown'!D896=0,\"\",'4 - Species Breakdown'!D896)","v":""},{"$f":"IF('4 - Species Breakdown'!L896=0,\"\",'4 - Species Breakdown'!L896)","v":""},{"$f":"IF('4 - Species Breakdown'!M896=0,\"\",'4 - Species Breakdown'!M896)","v":""},{"$f":"IF('4 - Species Breakdown'!N896=0,\"\",'4 - Species Breakdown'!N896)","v":""},{"$f":"IFERROR(('4 - Species Breakdown'!J896/'WCC Summary'!$D$14)*100,\"\")","v":""},{"$f":"IF('4 - Species Breakdown'!J896=0,\"\",'4 - Species Breakdown'!J896)","v":""}]
[null,{"$f":"IF('4 - Species Breakdown'!B897=0,\"\",'4 - Species Breakdown'!B897)","v":""},{"$f":"IF('4 - Species Breakdown'!D897=0,\"\",'4 - Species Breakdown'!D897)","v":""},{"$f":"IF('4 - Species Breakdown'!L897=0,\"\",'4 - Species Breakdown'!L897)","v":""},{"$f":"IF('4 - Species Breakdown'!M897=0,\"\",'4 - Species Breakdown'!M897)","v":""},{"$f":"IF('4 - Species Breakdown'!N897=0,\"\",'4 - Species Breakdown'!N897)","v":""},{"$f":"IFERROR(('4 - Species Breakdown'!J897/'WCC Summary'!$D$14)*100,\"\")","v":""},{"$f":"IF('4 - Species Breakdown'!J897=0,\"\",'4 - Species Breakdown'!J897)","v":""}]
[null,{"$f":"IF('4 - Species Breakdown'!B898=0,\"\",'4 - Species Breakdown'!B898)","v":""},{"$f":"IF('4 - Species Breakdown'!D898=0,\"\",'4 - Species Breakdown'!D898)","v":""},{"$f":"IF('4 - Species Breakdown'!L898=0,\"\",'4 - Species Breakdown'!L898)","v":""},{"$f":"IF('4 - Species Breakdown'!M898=0,\"\",'4 - Species Breakdown'!M898)","v":""},{"$f":"IF('4 - Species Breakdown'!N898=0,\"\",'4 - Species Breakdown'!N898)","v":""},{"$f":"IFERROR(('4 - Species Breakdown'!J898/'WCC Summary'!$D$14)*100,\"\")","v":""},{"$f":"IF('4 - Species Breakdown'!J898=0,\"\",'4 - Species Breakdown'!J898)","v":""}]
[null,{"$f":"IF('4 - Species Breakdown'!B899=0,\"\",'4 - Species Breakdown'!B899)","v":""},{"$f":"IF('4 - Species Breakdown'!D899=0,\"\",'4 - Species Breakdown'!D899)","v":""},{"$f":"IF('4 - Species Breakdown'!L899=0,\"\",'4 - Species Breakdown'!L899)","v":""},{"$f":"IF('4 - Species Breakdown'!M899=0,\"\",'4 - Species Breakdown'!M899)","v":""},{"$f":"IF('4 - Species Breakdown'!N899=0,\"\",'4 - Species Breakdown'!N899)","v":""},{"$f":"IFERROR(('4 - Species Breakdown'!J899/'WCC Summary'!$D$14)*100,\"\")","v":""},{"$f":"IF('4 - Species Breakdown'!J899=0,\"\",'4 - Species Breakdown'!J899)","v":""}]
[null,{"$f":"IF('4 - Species Breakdown'!B900=0,\"\",'4 - Species Breakdown'!B900)","v":""},{"$f":"IF('4 - Species Breakdown'!D900=0,\"\",'4 - Species Breakdown'!D900)","v":""},{"$f":"IF('4 - Species Breakdown'!L900=0,\"\",'4 - Species Breakdown'!L900)","v":""},{"$f":"IF('4 - Species Breakdown'!M900=0,\"\",'4 - Species Breakdown'!M900)","v":""},{"$f":"IF('4 - Species Breakdown'!N900=0,\"\",'4 - Species Breakdown'!N900)","v":""},{"$f":"IFERROR(('4 - Species Breakdown'!J900/'WCC Summary'!$D$14)*100,\"\")","v":""},{"$f":"IF('4 - Species Breakdown'!J900=0,\"\",'4 - Species Breakdown'!J900)","v":""}]
[null,{"$f":"IF('4 - Species Breakdown'!B901=0,\"\",'4 - Species Breakdown'!B901)","v":""},{"$f":"IF('4 - Species Breakdown'!D901=0,\"\",'4 - Species Breakdown'!D901)","v":""},{"$f":"IF('4 - Species Breakdown'!L901=0,\"\",'4 - Species Breakdown'!L901)","v":""},{"$f":"IF('4 - Species Breakdown'!M901=0,\"\",'4 - Species Breakdown'!M901)","v":""},{"$f":"IF('4 - Species Breakdown'!N901=0,\"\",'4 - Species Breakdown'!N901)","v":""},{"$f":"IFERROR(('4 - Species Breakdown'!J901/'WCC Summary'!$D$14)*100,\"\")","v":""},{"$f":"IF('4 - Species Breakdown'!J901=0,\"\",'4 - Species Breakdown'!J901)","v":""}]
[null,{"$f":"IF('4 - Species Breakdown'!B902=0,\"\",'4 - Species Breakdown'!B902)","v":""},{"$f":"IF('4 - Species Breakdown'!D902=0,\"\",'4 - Species Breakdown'!D902)","v":""},{"$f":"IF('4 - Species Breakdown'!L902=0,\"\",'4 - Species Breakdown'!L902)","v":""},{"$f":"IF('4 - Species Breakdown'!M902=0,\"\",'4 - Species Breakdown'!M902)","v":""},{"$f":"IF('4 - Species Breakdown'!N902=0,\"\",'4 - Species Breakdown'!N902)","v":""},{"$f":"IFERROR(('4 - Species Breakdown'!J902/'WCC Summary'!$D$14)*100,\"\")","v":""},{"$f":"IF('4 - Species Breakdown'!J902=0,\"\",'4 - Species Breakdown'!J902)","v":""}]
[null,{"$f":"IF('4 - Species Breakdown'!B903=0,\"\",'4 - Species Breakdown'!B903)","v":""},{"$f":"IF('4 - Species Breakdown'!D903=0,\"\",'4 - Species Breakdown'!D903)","v":""},{"$f":"IF('4 - Species Breakdown'!L903=0,\"\",'4 - Species Breakdown'!L903)","v":""},{"$f":"IF('4 - Species Breakdown'!M903=0,\"\",'4 - Species Breakdown'!M903)","v":""},{"$f":"IF('4 - Species Breakdown'!N903=0,\"\",'4 - Species Breakdown'!N903)","v":""},{"$f":"IFERROR(('4 - Species Breakdown'!J903/'WCC Summary'!$D$14)*100,\"\")","v":""},{"$f":"IF('4 - Species Breakdown'!J903=0,\"\",'4 - Species Breakdown'!J903)","v":""}]
[null,{"$f":"IF('4 - Species Breakdown'!B904=0,\"\",'4 - Species Breakdown'!B904)","v":""},{"$f":"IF('4 - Species Breakdown'!D904=0,\"\",'4 - Species Breakdown'!D904)","v":""},{"$f":"IF('4 - Species Breakdown'!L904=0,\"\",'4 - Species Breakdown'!L904)","v":""},{"$f":"IF('4 - Species Breakdown'!M904=0,\"\",'4 - Species Breakdown'!M904)","v":""},{"$f":"IF('4 - Species Breakdown'!N904=0,\"\",'4 - Species Breakdown'!N904)","v":""},{"$f":"IFERROR(('4 - Species Breakdown'!J904/'WCC Summary'!$D$14)*100,\"\")","v":""},{"$f":"IF('4 - Species Breakdown'!J904=0,\"\",'4 - Species Breakdown'!J904)","v":""}]
[null,{"$f":"IF('4 - Species Breakdown'!B905=0,\"\",'4 - Species Breakdown'!B905)","v":""},{"$f":"IF('4 - Species Breakdown'!D905=0,\"\",'4 - Species Breakdown'!D905)","v":""},{"$f":"IF('4 - Species Breakdown'!L905=0,\"\",'4 - Species Breakdown'!L905)","v":""},{"$f":"IF('4 - Species Breakdown'!M905=0,\"\",'4 - Species Breakdown'!M905)","v":""},{"$f":"IF('4 - Species Breakdown'!N905=0,\"\",'4 - Species Breakdown'!N905)","v":""},{"$f":"IFERROR(('4 - Species Breakdown'!J905/'WCC Summary'!$D$14)*100,\"\")","v":""},{"$f":"IF('4 - Species Breakdown'!J905=0,\"\",'4 - Species Breakdown'!J905)","v":""}]
[null,{"$f":"IF('4 - Species Breakdown'!B906=0,\"\",'4 - Species Breakdown'!B906)","v":""},{"$f":"IF('4 - Species Breakdown'!D906=0,\"\",'4 - Species Breakdown'!D906)","v":""},{"$f":"IF('4 - Species Breakdown'!L906=0,\"\",'4 - Species Breakdown'!L906)","v":""},{"$f":"IF('4 - Species Breakdown'!M906=0,\"\",'4 - Species Breakdown'!M906)","v":""},{"$f":"IF('4 - Species Breakdown'!N906=0,\"\",'4 - Species Breakdown'!N906)","v":""},{"$f":"IFERROR(('4 - Species Breakdown'!J906/'WCC Summary'!$D$14)*100,\"\")","v":""},{"$f":"IF('4 - Species Breakdown'!J906=0,\"\",'4 - Species Breakdown'!J906)","v":""}]
[null,{"$f":"IF('4 - Species Breakdown'!B907=0,\"\",'4 - Species Breakdown'!B907)","v":""},{"$f":"IF('4 - Species Breakdown'!D907=0,\"\",'4 - Species Breakdown'!D907)","v":""},{"$f":"IF('4 - Species Breakdown'!L907=0,\"\",'4 - Species Breakdown'!L907)","v":""},{"$f":"IF('4 - Species Breakdown'!M907=0,\"\",'4 - Species Breakdown'!M907)","v":""},{"$f":"IF('4 - Species Breakdown'!N907=0,\"\",'4 - Species Breakdown'!N907)","v":""},{"$f":"IFERROR(('4 - Species Breakdown'!J907/'WCC Summary'!$D$14)*100,\"\")","v":""},{"$f":"IF('4 - Species Breakdown'!J907=0,\"\",'4 - Species Breakdown'!J907)","v":""}]
[null,{"$f":"IF('4 - Species Breakdown'!B908=0,\"\",'4 - Species Breakdown'!B908)","v":""},{"$f":"IF('4 - Species Breakdown'!D908=0,\"\",'4 - Species Breakdown'!D908)","v":""},{"$f":"IF('4 - Species Breakdown'!L908=0,\"\",'4 - Species Breakdown'!L908)","v":""},{"$f":"IF('4 - Species Breakdown'!M908=0,\"\",'4 - Species Breakdown'!M908)","v":""},{"$f":"IF('4 - Species Breakdown'!N908=0,\"\",'4 - Species Breakdown'!N908)","v":""},{"$f":"IFERROR(('4 - Species Breakdown'!J908/'WCC Summary'!$D$14)*100,\"\")","v":""},{"$f":"IF('4 - Species Breakdown'!J908=0,\"\",'4 - Species Breakdown'!J908)","v":""}]
[null,{"$f":"IF('4 - Species Breakdown'!B909=0,\"\",'4 - Species Breakdown'!B909)","v":""},{"$f":"IF('4 - Species Breakdown'!D909=0,\"\",'4 - Species Breakdown'!D909)","v":""},{"$f":"IF('4 - Species Breakdown'!L909=0,\"\",'4 - Species Breakdown'!L909)","v":""},{"$f":"IF('4 - Species Breakdown'!M909=0,\"\",'4 - Species Breakdown'!M909)","v":""},{"$f":"IF('4 - Species Breakdown'!N909=0,\"\",'4 - Species Breakdown'!N909)","v":""},{"$f":"IFERROR(('4 - Species Breakdown'!J909/'WCC Summary'!$D$14)*100,\"\")","v":""},{"$f":"IF('4 - Species Breakdown'!J909=0,\"\",'4 - Species Breakdown'!J909)","v":""}]
[null,{"$f":"IF('4 - Species Breakdown'!B910=0,\"\",'4 - Species Breakdown'!B910)","v":""},{"$f":"IF('4 - Species Breakdown'!D910=0,\"\",'4 - Species Breakdown'!D910)","v":""},{"$f":"IF('4 - Species Breakdown'!L910=0,\"\",'4 - Species Breakdown'!L910)","v":""},{"$f":"IF('4 - Species Breakdown'!M910=0,\"\",'4 - Species Breakdown'!M910)","v":""},{"$f":"IF('4 - Species Breakdown'!N910=0,\"\",'4 - Species Breakdown'!N910)","v":""},{"$f":"IFERROR(('4 - Species Breakdown'!J910/'WCC Summary'!$D$14)*100,\"\")","v":""},{"$f":"IF('4 - Species Breakdown'!J910=0,\"\",'4 - Species Breakdown'!J910)","v":""}]
[null,{"$f":"IF('4 - Species Breakdown'!B911=0,\"\",'4 - Species Breakdown'!B911)","v":""},{"$f":"IF('4 - Species Breakdown'!D911=0,\"\",'4 - Species Breakdown'!D911)","v":""},{"$f":"IF('4 - Species Breakdown'!L911=0,\"\",'4 - Species Breakdown'!L911)","v":""},{"$f":"IF('4 - Species Breakdown'!M911=0,\"\",'4 - Species Breakdown'!M911)","v":""},{"$f":"IF('4 - Species Breakdown'!N911=0,\"\",'4 - Species Breakdown'!N911)","v":""},{"$f":"IFERROR(('4 - Species Breakdown'!J911/'WCC Summary'!$D$14)*100,\"\")","v":""},{"$f":"IF('4 - Species Breakdown'!J911=0,\"\",'4 - Species Breakdown'!J911)","v":""}]
[null,{"$f":"IF('4 - Species Breakdown'!B912=0,\"\",'4 - Species Breakdown'!B912)","v":""},{"$f":"IF('4 - Species Breakdown'!D912=0,\"\",'4 - Species Breakdown'!D912)","v":""},{"$f":"IF('4 - Species Breakdown'!L912=0,\"\",'4 - Species Breakdown'!L912)","v":""},{"$f":"IF('4 - Species Breakdown'!M912=0,\"\",'4 - Species Breakdown'!M912)","v":""},{"$f":"IF('4 - Species Breakdown'!N912=0,\"\",'4 - Species Breakdown'!N912)","v":""},{"$f":"IFERROR(('4 - Species Breakdown'!J912/'WCC Summary'!$D$14)*100,\"\")","v":""},{"$f":"IF('4 - Species Breakdown'!J912=0,\"\",'4 - Species Breakdown'!J912)","v":""}]
[null,{"$f":"IF('4 - Species Breakdown'!B913=0,\"\",'4 - Species Breakdown'!B913)","v":""},{"$f":"IF('4 - Species Breakdown'!D913=0,\"\",'4 - Species Breakdown'!D913)","v":""},{"$f":"IF('4 - Species Breakdown'!L913=0,\"\",'4 - Species Breakdown'!L913)","v":""},{"$f":"IF('4 - Species Breakdown'!M913=0,\"\",'4 - Species Breakdown'!M913)","v":""},{"$f":"IF('4 - Species Breakdown'!N913=0,\"\",'4 - Species Breakdown'!N913)","v":""},{"$f":"IFERROR(('4 - Species Breakdown'!J913/'WCC Summary'!$D$14)*100,\"\")","v":""},{"$f":"IF('4 - Species Breakdown'!J913=0,\"\",'4 - Species Breakdown'!J913)","v":""}]
[null,{"$f":"IF('4 - Species Breakdown'!B914=0,\"\",'4 - Species Breakdown'!B914)","v":""},{"$f":"IF('4 - Species Breakdown'!D914=0,\"\",'4 - Species Breakdown'!D914)","v":""},{"$f":"IF('4 - Species Breakdown'!L914=0,\"\",'4 - Species Breakdown'!L914)","v":""},{"$f":"IF('4 - Species Breakdown'!M914=0,\"\",'4 - Species Breakdown'!M914)","v":""},{"$f":"IF('4 - Species Breakdown'!N914=0,\"\",'4 - Species Breakdown'!N914)","v":""},{"$f":"IFERROR(('4 - Species Breakdown'!J914/'WCC Summary'!$D$14)*100,\"\")","v":""},{"$f":"IF('4 - Species Breakdown'!J914=0,\"\",'4 - Species Breakdown'!J914)","v":""}]
[null,{"$f":"IF('4 - Species Breakdown'!B915=0,\"\",'4 - Species Breakdown'!B915)","v":""},{"$f":"IF('4 - Species Breakdown'!D915=0,\"\",'4 - Species Breakdown'!D915)","v":""},{"$f":"IF('4 - Species Breakdown'!L915=0,\"\",'4 - Species Breakdown'!L915)","v":""},{"$f":"IF('4 - Species Breakdown'!M915=0,\"\",'4 - Species Breakdown'!M915)","v":""},{"$f":"IF('4 - Species Breakdown'!N915=0,\"\",'4 - Species Breakdown'!N915)","v":""},{"$f":"IFERROR(('4 - Species Breakdown'!J915/'WCC Summary'!$D$14)*100,\"\")","v":""},{"$f":"IF('4 - Species Breakdown'!J915=0,\"\",'4 - Species Breakdown'!J915)","v":""}]
[null,{"$f":"IF('4 - Species Breakdown'!B916=0,\"\",'4 - Species Breakdown'!B916)","v":""},{"$f":"IF('4 - Species Breakdown'!D916=0,\"\",'4 - Species Breakdown'!D916)","v":""},{"$f":"IF('4 - Species Breakdown'!L916=0,\"\",'4 - Species Breakdown'!L916)","v":""},{"$f":"IF('4 - Species Breakdown'!M916=0,\"\",'4 - Species Breakdown'!M916)","v":""},{"$f":"IF('4 - Species Breakdown'!N916=0,\"\",'4 - Species Breakdown'!N916)","v":""},{"$f":"IFERROR(('4 - Species Breakdown'!J916/'WCC Summary'!$D$14)*100,\"\")","v":""},{"$f":"IF('4 - Species Breakdown'!J916=0,\"\",'4 - Species Breakdown'!J916)","v":""}]
[null,{"$f":"IF('4 - Species Breakdown'!B917=0,\"\",'4 - Species Breakdown'!B917)","v":""},{"$f":"IF('4 - Species Breakdown'!D917=0,\"\",'4 - Species Breakdown'!D917)","v":""},{"$f":"IF('4 - Species Breakdown'!L917=0,\"\",'4 - Species Breakdown'!L917)","v":""},{"$f":"IF('4 - Species Breakdown'!M917=0,\"\",'4 - Species Breakdown'!M917)","v":""},{"$f":"IF('4 - Species Breakdown'!N917=0,\"\",'4 - Species Breakdown'!N917)","v":""},{"$f":"IFERROR(('4 - Species Breakdown'!J917/'WCC Summary'!$D$14)*100,\"\")","v":""},{"$f":"IF('4 - Species Breakdown'!J917=0,\"\",'4 - Species Breakdown'!J917)","v":""}]
[null,{"$f":"IF('4 - Species Breakdown'!B918=0,\"\",'4 - Species Breakdown'!B918)","v":""},{"$f":"IF('4 - Species Breakdown'!D918=0,\"\",'4 - Species Breakdown'!D918)","v":""},{"$f":"IF('4 - Species Breakdown'!L918=0,\"\",'4 - Species Breakdown'!L918)","v":""},{"$f":"IF('4 - Species Breakdown'!M918=0,\"\",'4 - Species Breakdown'!M918)","v":""},{"$f":"IF('4 - Species Breakdown'!N918=0,\"\",'4 - Species Breakdown'!N918)","v":""},{"$f":"IFERROR(('4 - Species Breakdown'!J918/'WCC Summary'!$D$14)*100,\"\")","v":""},{"$f":"IF('4 - Species Breakdown'!J918=0,\"\",'4 - Species Breakdown'!J918)","v":""}]
[null,{"$f":"IF('4 - Species Breakdown'!B919=0,\"\",'4 - Species Breakdown'!B919)","v":""},{"$f":"IF('4 - Species Breakdown'!D919=0,\"\",'4 - Species Breakdown'!D919)","v":""},{"$f":"IF('4 - Species Breakdown'!L919=0,\"\",'4 - Species Breakdown'!L919)","v":""},{"$f":"IF('4 - Species Breakdown'!M919=0,\"\",'4 - Species Breakdown'!M919)","v":""},{"$f":"IF('4 - Species Breakdown'!N919=0,\"\",'4 - Species Breakdown'!N919)","v":""},{"$f":"IFERROR(('4 - Species Breakdown'!J919/'WCC Summary'!$D$14)*100,\"\")","v":""},{"$f":"IF('4 - Species Breakdown'!J919=0,\"\",'4 - Species Breakdown'!J919)","v":""}]
[null,{"$f":"IF('4 - Species Breakdown'!B920=0,\"\",'4 - Species Breakdown'!B920)","v":""},{"$f":"IF('4 - Species Breakdown'!D920=0,\"\",'4 - Species Breakdown'!D920)","v":""},{"$f":"IF('4 - Species Breakdown'!L920=0,\"\",'4 - Species Breakdown'!L920)","v":""},{"$f":"IF('4 - Species Breakdown'!M920=0,\"\",'4 - Species Breakdown'!M920)","v":""},{"$f":"IF('4 - Species Breakdown'!N920=0,\"\",'4 - Species Breakdown'!N920)","v":""},{"$f":"IFERROR(('4 - Species Breakdown'!J920/'WCC Summary'!$D$14)*100,\"\")","v":""},{"$f":"IF('4 - Species Breakdown'!J920=0,\"\",'4 - Species Breakdown'!J920)","v":""}]
[null,{"$f":"IF('4 - Species Breakdown'!B921=0,\"\",'4 - Species Breakdown'!B921)","v":""},{"$f":"IF('4 - Species Breakdown'!D921=0,\"\",'4 - Species Breakdown'!D921)","v":""},{"$f":"IF('4 - Species Breakdown'!L921=0,\"\",'4 - Species Breakdown'!L921)","v":""},{"$f":"IF('4 - Species Breakdown'!M921=0,\"\",'4 - Species Breakdown'!M921)","v":""},{"$f":"IF('4 - Species Breakdown'!N921=0,\"\",'4 - Species Breakdown'!N921)","v":""},{"$f":"IFERROR(('4 - Species Breakdown'!J921/'WCC Summary'!$D$14)*100,\"\")","v":""},{"$f":"IF('4 - Species Breakdown'!J921=0,\"\",'4 - Species Breakdown'!J921)","v":""}]
[null,{"$f":"IF('4 - Species Breakdown'!B922=0,\"\",'4 - Species Breakdown'!B922)","v":""},{"$f":"IF('4 - Species Breakdown'!D922=0,\"\",'4 - Species Breakdown'!D922)","v":""},{"$f":"IF('4 - Species Breakdown'!L922=0,\"\",'4 - Species Breakdown'!L922)","v":""},{"$f":"IF('4 - Species Breakdown'!M922=0,\"\",'4 - Species Breakdown'!M922)","v":""},{"$f":"IF('4 - Species Breakdown'!N922=0,\"\",'4 - Species Breakdown'!N922)","v":""},{"$f":"IFERROR(('4 - Species Breakdown'!J922/'WCC Summary'!$D$14)*100,\"\")","v":""},{"$f":"IF('4 - Species Breakdown'!J922=0,\"\",'4 - Species Breakdown'!J922)","v":""}]
[null,{"$f":"IF('4 - Species Breakdown'!B923=0,\"\",'4 - Species Breakdown'!B923)","v":""},{"$f":"IF('4 - Species Breakdown'!D923=0,\"\",'4 - Species Breakdown'!D923)","v":""},{"$f":"IF('4 - Species Breakdown'!L923=0,\"\",'4 - Species Breakdown'!L923)","v":""},{"$f":"IF('4 - Species Breakdown'!M923=0,\"\",'4 - Species Breakdown'!M923)","v":""},{"$f":"IF('4 - Species Breakdown'!N923=0,\"\",'4 - Species Breakdown'!N923)","v":""},{"$f":"IFERROR(('4 - Species Breakdown'!J923/'WCC Summary'!$D$14)*100,\"\")","v":""},{"$f":"IF('4 - Species Breakdown'!J923=0,\"\",'4 - Species Breakdown'!J923)","v":""}]
[null,{"$f":"IF('4 - Species Breakdown'!B924=0,\"\",'4 - Species Breakdown'!B924)","v":""},{"$f":"IF('4 - Species Breakdown'!D924=0,\"\",'4 - Species Breakdown'!D924)","v":""},{"$f":"IF('4 - Species Breakdown'!L924=0,\"\",'4 - Species Breakdown'!L924)","v":""},{"$f":"IF('4 - Species Breakdown'!M924=0,\"\",'4 - Species Breakdown'!M924)","v":""},{"$f":"IF('4 - Species Breakdown'!N924=0,\"\",'4 - Species Breakdown'!N924)","v":""},{"$f":"IFERROR(('4 - Species Breakdown'!J924/'WCC Summary'!$D$14)*100,\"\")","v":""},{"$f":"IF('4 - Species Breakdown'!J924=0,\"\",'4 - Species Breakdown'!J924)","v":""}]
[null,{"$f":"IF('4 - Species Breakdown'!B925=0,\"\",'4 - Species Breakdown'!B925)","v":""},{"$f":"IF('4 - Species Breakdown'!D925=0,\"\",'4 - Species Breakdown'!D925)","v":""},{"$f":"IF('4 - Species Breakdown'!L925=0,\"\",'4 - Species Breakdown'!L925)","v":""},{"$f":"IF('4 - Species Breakdown'!M925=0,\"\",'4 - Species Breakdown'!M925)","v":""},{"$f":"IF('4 - Species Breakdown'!N925=0,\"\",'4 - Species Breakdown'!N925)","v":""},{"$f":"IFERROR(('4 - Species Breakdown'!J925/'WCC Summary'!$D$14)*100,\"\")","v":""},{"$f":"IF('4 - Species Breakdown'!J925=0,\"\",'4 - Species Breakdown'!J925)","v":""}]
[null,{"$f":"IF('4 - Species Breakdown'!B926=0,\"\",'4 - Species Breakdown'!B926)","v":""},{"$f":"IF('4 - Species Breakdown'!D926=0,\"\",'4 - Species Breakdown'!D926)","v":""},{"$f":"IF('4 - Species Breakdown'!L926=0,\"\",'4 - Species Breakdown'!L926)","v":""},{"$f":"IF('4 - Species Breakdown'!M926=0,\"\",'4 - Species Breakdown'!M926)","v":""},{"$f":"IF('4 - Species Breakdown'!N926=0,\"\",'4 - Species Breakdown'!N926)","v":""},{"$f":"IFERROR(('4 - Species Breakdown'!J926/'WCC Summary'!$D$14)*100,\"\")","v":""},{"$f":"IF('4 - Species Breakdown'!J926=0,\"\",'4 - Species Breakdown'!J926)","v":""}]
[null,{"$f":"IF('4 - Species Breakdown'!B927=0,\"\",'4 - Species Breakdown'!B927)","v":""},{"$f":"IF('4 - Species Breakdown'!D927=0,\"\",'4 - Species Breakdown'!D927)","v":""},{"$f":"IF('4 - Species Breakdown'!L927=0,\"\",'4 - Species Breakdown'!L927)","v":""},{"$f":"IF('4 - Species Breakdown'!M927=0,\"\",'4 - Species Breakdown'!M927)","v":""},{"$f":"IF('4 - Species Breakdown'!N927=0,\"\",'4 - Species Breakdown'!N927)","v":""},{"$f":"IFERROR(('4 - Species Breakdown'!J927/'WCC Summary'!$D$14)*100,\"\")","v":""},{"$f":"IF('4 - Species Breakdown'!J927=0,\"\",'4 - Species Breakdown'!J927)","v":""}]
[null,{"$f":"IF('4 - Species Breakdown'!B928=0,\"\",'4 - Species Breakdown'!B928)","v":""},{"$f":"IF('4 - Species Breakdown'!D928=0,\"\",'4 - Species Breakdown'!D928)","v":""},{"$f":"IF('4 - Species Breakdown'!L928=0,\"\",'4 - Species Breakdown'!L928)","v":""},{"$f":"IF('4 - Species Breakdown'!M928=0,\"\",'4 - Species Breakdown'!M928)","v":""},{"$f":"IF('4 - Species Breakdown'!N928=0,\"\",'4 - Species Breakdown'!N928)","v":""},{"$f":"IFERROR(('4 - Species Breakdown'!J928/'WCC Summary'!$D$14)*100,\"\")","v":""},{"$f":"IF('4 - Species Breakdown'!J928=0,\"\",'4 - Species Breakdown'!J928)","v":""}]
[null,{"$f":"IF('4 - Species Breakdown'!B929=0,\"\",'4 - Species Breakdown'!B929)","v":""},{"$f":"IF('4 - Species Breakdown'!D929=0,\"\",'4 - Species Breakdown'!D929)","v":""},{"$f":"IF('4 - Species Breakdown'!L929=0,\"\",'4 - Species Breakdown'!L929)","v":""},{"$f":"IF('4 - Species Breakdown'!M929=0,\"\",'4 - Species Breakdown'!M929)","v":""},{"$f":"IF('4 - Species Breakdown'!N929=0,\"\",'4 - Species Breakdown'!N929)","v":""},{"$f":"IFERROR(('4 - Species Breakdown'!J929/'WCC Summary'!$D$14)*100,\"\")","v":""},{"$f":"IF('4 - Species Breakdown'!J929=0,\"\",'4 - Species Breakdown'!J929)","v":""}]
[null,{"$f":"IF('4 - Species Breakdown'!B930=0,\"\",'4 - Species Breakdown'!B930)","v":""},{"$f":"IF('4 - Species Breakdown'!D930=0,\"\",'4 - Species Breakdown'!D930)","v":""},{"$f":"IF('4 - Species Breakdown'!L930=0,\"\",'4 - Species Breakdown'!L930)","v":""},{"$f":"IF('4 - Species Breakdown'!M930=0,\"\",'4 - Species Breakdown'!M930)","v":""},{"$f":"IF('4 - Species Breakdown'!N930=0,\"\",'4 - Species Breakdown'!N930)","v":""},{"$f":"IFERROR(('4 - Species Breakdown'!J930/'WCC Summary'!$D$14)*100,\"\")","v":""},{"$f":"IF('4 - Species Breakdown'!J930=0,\"\",'4 - Species Breakdown'!J930)","v":""}]
[null,{"$f":"IF('4 - Species Breakdown'!B931=0,\"\",'4 - Species Breakdown'!B931)","v":""},{"$f":"IF('4 - Species Breakdown'!D931=0,\"\",'4 - Species Breakdown'!D931)","v":""},{"$f":"IF('4 - Species Breakdown'!L931=0,\"\",'4 - Species Breakdown'!L931)","v":""},{"$f":"IF('4 - Species Breakdown'!M931=0,\"\",'4 - Species Breakdown'!M931)","v":""},{"$f":"IF('4 - Species Breakdown'!N931=0,\"\",'4 - Species Breakdown'!N931)","v":""},{"$f":"IFERROR(('4 - Species Breakdown'!J931/'WCC Summary'!$D$14)*100,\"\")","v":""},{"$f":"IF('4 - Species Breakdown'!J931=0,\"\",'4 - Species Breakdown'!J931)","v":""}]
[null,{"$f":"IF('4 - Species Breakdown'!B932=0,\"\",'4 - Species Breakdown'!B932)","v":""},{"$f":"IF('4 - Species Breakdown'!D932=0,\"\",'4 - Species Breakdown'!D932)","v":""},{"$f":"IF('4 - Species Breakdown'!L932=0,\"\",'4 - Species Breakdown'!L932)","v":""},{"$f":"IF('4 - Species Breakdown'!M932=0,\"\",'4 - Species Breakdown'!M932)","v":""},{"$f":"IF('4 - Species Breakdown'!N932=0,\"\",'4 - Species Breakdown'!N932)","v":""},{"$f":"IFERROR(('4 - Species Breakdown'!J932/'WCC Summary'!$D$14)*100,\"\")","v":""},{"$f":"IF('4 - Species Breakdown'!J932=0,\"\",'4 - Species Breakdown'!J932)","v":""}]
[null,{"$f":"IF('4 - Species Breakdown'!B933=0,\"\",'4 - Species Breakdown'!B933)","v":""},{"$f":"IF('4 - Species Breakdown'!D933=0,\"\",'4 - Species Breakdown'!D933)","v":""},{"$f":"IF('4 - Species Breakdown'!L933=0,\"\",'4 - Species Breakdown'!L933)","v":""},{"$f":"IF('4 - Species Breakdown'!M933=0,\"\",'4 - Species Breakdown'!M933)","v":""},{"$f":"IF('4 - Species Breakdown'!N933=0,\"\",'4 - Species Breakdown'!N933)","v":""},{"$f":"IFERROR(('4 - Species Breakdown'!J933/'WCC Summary'!$D$14)*100,\"\")","v":""},{"$f":"IF('4 - Species Breakdown'!J933=0,\"\",'4 - Species Breakdown'!J933)","v":""}]
[null,{"$f":"IF('4 - Species Breakdown'!B934=0,\"\",'4 - Species Breakdown'!B934)","v":""},{"$f":"IF('4 - Species Breakdown'!D934=0,\"\",'4 - Species Breakdown'!D934)","v":""},{"$f":"IF('4 - Species Breakdown'!L934=0,\"\",'4 - Species Breakdown'!L934)","v":""},{"$f":"IF('4 - Species Breakdown'!M934=0,\"\",'4 - Species Breakdown'!M934)","v":""},{"$f":"IF('4 - Species Breakdown'!N934=0,\"\",'4 - Species Breakdown'!N934)","v":""},{"$f":"IFERROR(('4 - Species Breakdown'!J934/'WCC Summary'!$D$14)*100,\"\")","v":""},{"$f":"IF('4 - Species Breakdown'!J934=0,\"\",'4 - Species Breakdown'!J934)","v":""}]
[null,{"$f":"IF('4 - Species Breakdown'!B935=0,\"\",'4 - Species Breakdown'!B935)","v":""},{"$f":"IF('4 - Species Breakdown'!D935=0,\"\",'4 - Species Breakdown'!D935)","v":""},{"$f":"IF('4 - Species Breakdown'!L935=0,\"\",'4 - Species Breakdown'!L935)","v":""},{"$f":"IF('4 - Species Breakdown'!M935=0,\"\",'4 - Species Breakdown'!M935)","v":""},{"$f":"IF('4 - Species Breakdown'!N935=0,\"\",'4 - Species Breakdown'!N935)","v":""},{"$f":"IFERROR(('4 - Species Breakdown'!J935/'WCC Summary'!$D$14)*100,\"\")","v":""},{"$f":"IF('4 - Species Breakdown'!J935=0,\"\",'4 - Species Breakdown'!J935)","v":""}]
[null,{"$f":"IF('4 - Species Breakdown'!B936=0,\"\",'4 - Species Breakdown'!B936)","v":""},{"$f":"IF('4 - Species Breakdown'!D936=0,\"\",'4 - Species Breakdown'!D936)","v":""},{"$f":"IF('4 - Species Breakdown'!L936=0,\"\",'4 - Species Breakdown'!L936)","v":""},{"$f":"IF('4 - Species Breakdown'!M936=0,\"\",'4 - Species Breakdown'!M936)","v":""},{"$f":"IF('4 - Species Breakdown'!N936=0,\"\",'4 - Species Breakdown'!N936)","v":""},{"$f":"IFERROR(('4 - Species Breakdown'!J936/'WCC Summary'!$D$14)*100,\"\")","v":""},{"$f":"IF('4 - Species Breakdown'!J936=0,\"\",'4 - Species Breakdown'!J936)","v":""}]
[null,{"$f":"IF('4 - Species Breakdown'!B937=0,\"\",'4 - Species Breakdown'!B937)","v":""},{"$f":"IF('4 - Species Breakdown'!D937=0,\"\",'4 - Species Breakdown'!D937)","v":""},{"$f":"IF('4 - Species Breakdown'!L937=0,\"\",'4 - Species Breakdown'!L937)","v":""},{"$f":"IF('4 - Species Breakdown'!M937=0,\"\",'4 - Species Breakdown'!M937)","v":""},{"$f":"IF('4 - Species Breakdown'!N937=0,\"\",'4 - Species Breakdown'!N937)","v":""},{"$f":"IFERROR(('4 - Species Breakdown'!J937/'WCC Summary'!$D$14)*100,\"\")","v":""},{"$f":"IF('4 - Species Breakdown'!J937=0,\"\",'4 - Species Breakdown'!J937)","v":""}]
[null,{"$f":"IF('4 - Species Breakdown'!B938=0,\"\",'4 - Species Breakdown'!B938)","v":""},{"$f":"IF('4 - Species Breakdown'!D938=0,\"\",'4 - Species Breakdown'!D938)","v":""},{"$f":"IF('4 - Species Breakdown'!L938=0,\"\",'4 - Species Breakdown'!L938)","v":""},{"$f":"IF('4 - Species Breakdown'!M938=0,\"\",'4 - Species Breakdown'!M938)","v":""},{"$f":"IF('4 - Species Breakdown'!N938=0,\"\",'4 - Species Breakdown'!N938)","v":""},{"$f":"IFERROR(('4 - Species Breakdown'!J938/'WCC Summary'!$D$14)*100,\"\")","v":""},{"$f":"IF('4 - Species Breakdown'!J938=0,\"\",'4 - Species Breakdown'!J938)","v":""}]
[null,{"$f":"IF('4 - Species Breakdown'!B939=0,\"\",'4 - Species Breakdown'!B939)","v":""},{"$f":"IF('4 - Species Breakdown'!D939=0,\"\",'4 - Species Breakdown'!D939)","v":""},{"$f":"IF('4 - Species Breakdown'!L939=0,\"\",'4 - Species Breakdown'!L939)","v":""},{"$f":"IF('4 - Species Breakdown'!M939=0,\"\",'4 - Species Breakdown'!M939)","v":""},{"$f":"IF('4 - Species Breakdown'!N939=0,\"\",'4 - Species Breakdown'!N939)","v":""},{"$f":"IFERROR(('4 - Species Breakdown'!J939/'WCC Summary'!$D$14)*100,\"\")","v":""},{"$f":"IF('4 - Species Breakdown'!J939=0,\"\",'4 - Species Breakdown'!J939)","v":""}]
[null,{"$f":"IF('4 - Species Breakdown'!B940=0,\"\",'4 - Species Breakdown'!B940)","v":""},{"$f":"IF('4 - Species Breakdown'!D940=0,\"\",'4 - Species Breakdown'!D940)","v":""},{"$f":"IF('4 - Species Breakdown'!L940=0,\"\",'4 - Species Breakdown'!L940)","v":""},{"$f":"IF('4 - Species Breakdown'!M940=0,\"\",'4 - Species Breakdown'!M940)","v":""},{"$f":"IF('4 - Species Breakdown'!N940=0,\"\",'4 - Species Breakdown'!N940)","v":""},{"$f":"IFERROR(('4 - Species Breakdown'!J940/'WCC Summary'!$D$14)*100,\"\")","v":""},{"$f":"IF('4 - Species Breakdown'!J940=0,\"\",'4 - Species Breakdown'!J940)","v":""}]
[null,{"$f":"IF('4 - Species Breakdown'!B941=0,\"\",'4 - Species Breakdown'!B941)","v":""},{"$f":"IF('4 - Species Breakdown'!D941=0,\"\",'4 - Species Breakdown'!D941)","v":""},{"$f":"IF('4 - Species Breakdown'!L941=0,\"\",'4 - Species Breakdown'!L941)","v":""},{"$f":"IF('4 - Species Breakdown'!M941=0,\"\",'4 - Species Breakdown'!M941)","v":""},{"$f":"IF('4 - Species Breakdown'!N941=0,\"\",'4 - Species Breakdown'!N941)","v":""},{"$f":"IFERROR(('4 - Species Breakdown'!J941/'WCC Summary'!$D$14)*100,\"\")","v":""},{"$f":"IF('4 - Species Breakdown'!J941=0,\"\",'4 - Species Breakdown'!J941)","v":""}]
[null,{"$f":"IF('4 - Species Breakdown'!B942=0,\"\",'4 - Species Breakdown'!B942)","v":""},{"$f":"IF('4 - Species Breakdown'!D942=0,\"\",'4 - Species Breakdown'!D942)","v":""},{"$f":"IF('4 - Species Breakdown'!L942=0,\"\",'4 - Species Breakdown'!L942)","v":""},{"$f":"IF('4 - Species Breakdown'!M942=0,\"\",'4 - Species Breakdown'!M942)","v":""},{"$f":"IF('4 - Species Breakdown'!N942=0,\"\",'4 - Species Breakdown'!N942)","v":""},{"$f":"IFERROR(('4 - Species Breakdown'!J942/'WCC Summary'!$D$14)*100,\"\")","v":""},{"$f":"IF('4 - Species Breakdown'!J942=0,\"\",'4 - Species Breakdown'!J942)","v":""}]
[null,{"$f":"IF('4 - Species Breakdown'!B943=0,\"\",'4 - Species Breakdown'!B943)","v":""},{"$f":"IF('4 - Species Breakdown'!D943=0,\"\",'4 - Species Breakdown'!D943)","v":""},{"$f":"IF('4 - Species Breakdown'!L943=0,\"\",'4 - Species Breakdown'!L943)","v":""},{"$f":"IF('4 - Species Breakdown'!M943=0,\"\",'4 - Species Breakdown'!M943)","v":""},{"$f":"IF('4 - Species Breakdown'!N943=0,\"\",'4 - Species Breakdown'!N943)","v":""},{"$f":"IFERROR(('4 - Species Breakdown'!J943/'WCC Summary'!$D$14)*100,\"\")","v":""},{"$f":"IF('4 - Species Breakdown'!J943=0,\"\",'4 - Species Breakdown'!J943)","v":""}]
[null,{"$f":"IF('4 - Species Breakdown'!B944=0,\"\",'4 - Species Breakdown'!B944)","v":""},{"$f":"IF('4 - Species Breakdown'!D944=0,\"\",'4 - Species Breakdown'!D944)","v":""},{"$f":"IF('4 - Species Breakdown'!L944=0,\"\",'4 - Species Breakdown'!L944)","v":""},{"$f":"IF('4 - Species Breakdown'!M944=0,\"\",'4 - Species Breakdown'!M944)","v":""},{"$f":"IF('4 - Species Breakdown'!N944=0,\"\",'4 - Species Breakdown'!N944)","v":""},{"$f":"IFERROR(('4 - Species Breakdown'!J944/'WCC Summary'!$D$14)*100,\"\")","v":""},{"$f":"IF('4 - Species Breakdown'!J944=0,\"\",'4 - Species Breakdown'!J944)","v":""}]
[null,{"$f":"IF('4 - Species Breakdown'!B945=0,\"\",'4 - Species Breakdown'!B945)","v":""},{"$f":"IF('4 - Species Breakdown'!D945=0,\"\",'4 - Species Breakdown'!D945)","v":""},{"$f":"IF('4 - Species Breakdown'!L945=0,\"\",'4 - Species Breakdown'!L945)","v":""},{"$f":"IF('4 - Species Breakdown'!M945=0,\"\",'4 - Species Breakdown'!M945)","v":""},{"$f":"IF('4 - Species Breakdown'!N945=0,\"\",'4 - Species Breakdown'!N945)","v":""},{"$f":"IFERROR(('4 - Species Breakdown'!J945/'WCC Summary'!$D$14)*100,\"\")","v":""},{"$f":"IF('4 - Species Breakdown'!J945=0,\"\",'4 - Species Breakdown'!J945)","v":""}]
[null,{"$f":"IF('4 - Species Breakdown'!B946=0,\"\",'4 - Species Breakdown'!B946)","v":""},{"$f":"IF('4 - Species Breakdown'!D946=0,\"\",'4 - Species Breakdown'!D946)","v":""},{"$f":"IF('4 - Species Breakdown'!L946=0,\"\",'4 - Species Breakdown'!L946)","v":""},{"$f":"IF('4 - Species Breakdown'!M946=0,\"\",'4 - Species Breakdown'!M946)","v":""},{"$f":"IF('4 - Species Breakdown'!N946=0,\"\",'4 - Species Breakdown'!N946)","v":""},{"$f":"IFERROR(('4 - Species Breakdown'!J946/'WCC Summary'!$D$14)*100,\"\")","v":""},{"$f":"IF('4 - Species Breakdown'!J946=0,\"\",'4 - Species Breakdown'!J946)","v":""}]
[null,{"$f":"IF('4 - Species Breakdown'!B947=0,\"\",'4 - Species Breakdown'!B947)","v":""},{"$f":"IF('4 - Species Breakdown'!D947=0,\"\",'4 - Species Breakdown'!D947)","v":""},{"$f":"IF('4 - Species Breakdown'!L947=0,\"\",'4 - Species Breakdown'!L947)","v":""},{"$f":"IF('4 - Species Breakdown'!M947=0,\"\",'4 - Species Breakdown'!M947)","v":""},{"$f":"IF('4 - Species Breakdown'!N947=0,\"\",'4 - Species Breakdown'!N947)","v":""},{"$f":"IFERROR(('4 - Species Breakdown'!J947/'WCC Summary'!$D$14)*100,\"\")","v":""},{"$f":"IF('4 - Species Breakdown'!J947=0,\"\",'4 - Species Breakdown'!J947)","v":""}]
[null,{"$f":"IF('4 - Species Breakdown'!B948=0,\"\",'4 - Species Breakdown'!B948)","v":""},{"$f":"IF('4 - Species Breakdown'!D948=0,\"\",'4 - Species Breakdown'!D948)","v":""},{"$f":"IF('4 - Species Breakdown'!L948=0,\"\",'4 - Species Breakdown'!L948)","v":""},{"$f":"IF('4 - Species Breakdown'!M948=0,\"\",'4 - Species Breakdown'!M948)","v":""},{"$f":"IF('4 - Species Breakdown'!N948=0,\"\",'4 - Species Breakdown'!N948)","v":""},{"$f":"IFERROR(('4 - Species Breakdown'!J948/'WCC Summary'!$D$14)*100,\"\")","v":""},{"$f":"IF('4 - Species Breakdown'!J948=0,\"\",'4 - Species Breakdown'!J948)","v":""}]
[null,{"$f":"IF('4 - Species Breakdown'!B949=0,\"\",'4 - Species Breakdown'!B949)","v":""},{"$f":"IF('4 - Species Breakdown'!D949=0,\"\",'4 - Species Breakdown'!D949)","v":""},{"$f":"IF('4 - Species Breakdown'!L949=0,\"\",'4 - Species Breakdown'!L949)","v":""},{"$f":"IF('4 - Species Breakdown'!M949=0,\"\",'4 - Species Breakdown'!M949)","v":""},{"$f":"IF('4 - Species Breakdown'!N949=0,\"\",'4 - Species Breakdown'!N949)","v":""},{"$f":"IFERROR(('4 - Species Breakdown'!J949/'WCC Summary'!$D$14)*100,\"\")","v":""},{"$f":"IF('4 - Species Breakdown'!J949=0,\"\",'4 - Species Breakdown'!J949)","v":""}]
[null,{"$f":"IF('4 - Species Breakdown'!B950=0,\"\",'4 - Species Breakdown'!B950)","v":""},{"$f":"IF('4 - Species Breakdown'!D950=0,\"\",'4 - Species Breakdown'!D950)","v":""},{"$f":"IF('4 - Species Breakdown'!L950=0,\"\",'4 - Species Breakdown'!L950)","v":""},{"$f":"IF('4 - Species Breakdown'!M950=0,\"\",'4 - Species Breakdown'!M950)","v":""},{"$f":"IF('4 - Species Breakdown'!N950=0,\"\",'4 - Species Breakdown'!N950)","v":""},{"$f":"IFERROR(('4 - Species Breakdown'!J950/'WCC Summary'!$D$14)*100,\"\")","v":""},{"$f":"IF('4 - Species Breakdown'!J950=0,\"\",'4 - Species Breakdown'!J950)","v":""}]
[null,{"$f":"IF('4 - Species Breakdown'!B951=0,\"\",'4 - Species Breakdown'!B951)","v":""},{"$f":"IF('4 - Species Breakdown'!D951=0,\"\",'4 - Species Breakdown'!D951)","v":""},{"$f":"IF('4 - Species Breakdown'!L951=0,\"\",'4 - Species Breakdown'!L951)","v":""},{"$f":"IF('4 - Species Breakdown'!M951=0,\"\",'4 - Species Breakdown'!M951)","v":""},{"$f":"IF('4 - Species Breakdown'!N951=0,\"\",'4 - Species Breakdown'!N951)","v":""},{"$f":"IFERROR(('4 - Species Breakdown'!J951/'WCC Summary'!$D$14)*100,\"\")","v":""},{"$f":"IF('4 - Species Breakdown'!J951=0,\"\",'4 - Species Breakdown'!J951)","v":""}]
[null,{"$f":"IF('4 - Species Breakdown'!B952=0,\"\",'4 - Species Breakdown'!B952)","v":""},{"$f":"IF('4 - Species Breakdown'!D952=0,\"\",'4 - Species Breakdown'!D952)","v":""},{"$f":"IF('4 - Species Breakdown'!L952=0,\"\",'4 - Species Breakdown'!L952)","v":""},{"$f":"IF('4 - Species Breakdown'!M952=0,\"\",'4 - Species Breakdown'!M952)","v":""},{"$f":"IF('4 - Species Breakdown'!N952=0,\"\",'4 - Species Breakdown'!N952)","v":""},{"$f":"IFERROR(('4 - Species Breakdown'!J952/'WCC Summary'!$D$14)*100,\"\")","v":""},{"$f":"IF('4 - Species Breakdown'!J952=0,\"\",'4 - Species Breakdown'!J952)","v":""}]
[null,{"$f":"IF('4 - Species Breakdown'!B953=0,\"\",'4 - Species Breakdown'!B953)","v":""},{"$f":"IF('4 - Species Breakdown'!D953=0,\"\",'4 - Species Breakdown'!D953)","v":""},{"$f":"IF('4 - Species Breakdown'!L953=0,\"\",'4 - Species Breakdown'!L953)","v":""},{"$f":"IF('4 - Species Breakdown'!M953=0,\"\",'4 - Species Breakdown'!M953)","v":""},{"$f":"IF('4 - Species Breakdown'!N953=0,\"\",'4 - Species Breakdown'!N953)","v":""},{"$f":"IFERROR(('4 - Species Breakdown'!J953/'WCC Summary'!$D$14)*100,\"\")","v":""},{"$f":"IF('4 - Species Breakdown'!J953=0,\"\",'4 - Species Breakdown'!J953)","v":""}]
[null,{"$f":"IF('4 - Species Breakdown'!B954=0,\"\",'4 - Species Breakdown'!B954)","v":""},{"$f":"IF('4 - Species Breakdown'!D954=0,\"\",'4 - Species Breakdown'!D954)","v":""},{"$f":"IF('4 - Species Breakdown'!L954=0,\"\",'4 - Species Breakdown'!L954)","v":""},{"$f":"IF('4 - Species Breakdown'!M954=0,\"\",'4 - Species Breakdown'!M954)","v":""},{"$f":"IF('4 - Species Breakdown'!N954=0,\"\",'4 - Species Breakdown'!N954)","v":""},{"$f":"IFERROR(('4 - Species Breakdown'!J954/'WCC Summary'!$D$14)*100,\"\")","v":""},{"$f":"IF('4 - Species Breakdown'!J954=0,\"\",'4 - Species Breakdown'!J954)","v":""}]
[null,{"$f":"IF('4 - Species Breakdown'!B955=0,\"\",'4 - Species Breakdown'!B955)","v":""},{"$f":"IF('4 - Species Breakdown'!D955=0,\"\",'4 - Species Breakdown'!D955)","v":""},{"$f":"IF('4 - Species Breakdown'!L955=0,\"\",'4 - Species Breakdown'!L955)","v":""},{"$f":"IF('4 - Species Breakdown'!M955=0,\"\",'4 - Species Breakdown'!M955)","v":""},{"$f":"IF('4 - Species Breakdown'!N955=0,\"\",'4 - Species Breakdown'!N955)","v":""},{"$f":"IFERROR(('4 - Species Breakdown'!J955/'WCC Summary'!$D$14)*100,\"\")","v":""},{"$f":"IF('4 - Species Breakdown'!J955=0,\"\",'4 - Species Breakdown'!J955)","v":""}]
[null,{"$f":"IF('4 - Species Breakdown'!B956=0,\"\",'4 - Species Breakdown'!B956)","v":""},{"$f":"IF('4 - Species Breakdown'!D956=0,\"\",'4 - Species Breakdown'!D956)","v":""},{"$f":"IF('4 - Species Breakdown'!L956=0,\"\",'4 - Species Breakdown'!L956)","v":""},{"$f":"IF('4 - Species Breakdown'!M956=0,\"\",'4 - Species Breakdown'!M956)","v":""},{"$f":"IF('4 - Species Breakdown'!N956=0,\"\",'4 - Species Breakdown'!N956)","v":""},{"$f":"IFERROR(('4 - Species Breakdown'!J956/'WCC Summary'!$D$14)*100,\"\")","v":""},{"$f":"IF('4 - Species Breakdown'!J956=0,\"\",'4 - Species Breakdown'!J956)","v":""}]
[null,{"$f":"IF('4 - Species Breakdown'!B957=0,\"\",'4 - Species Breakdown'!B957)","v":""},{"$f":"IF('4 - Species Breakdown'!D957=0,\"\",'4 - Species Breakdown'!D957)","v":""},{"$f":"IF('4 - Species Breakdown'!L957=0,\"\",'4 - Species Breakdown'!L957)","v":""},{"$f":"IF('4 - Species Breakdown'!M957=0,\"\",'4 - Species Breakdown'!M957)","v":""},{"$f":"IF('4 - Species Breakdown'!N957=0,\"\",'4 - Species Breakdown'!N957)","v":""},{"$f":"IFERROR(('4 - Species Breakdown'!J957/'WCC Summary'!$D$14)*100,\"\")","v":""},{"$f":"IF('4 - Species Breakdown'!J957=0,\"\",'4 - Species Breakdown'!J957)","v":""}]
[null,{"$f":"IF('4 - Species Breakdown'!B958=0,\"\",'4 - Species Breakdown'!B958)","v":""},{"$f":"IF('4 - Species Breakdown'!D958=0,\"\",'4 - Species Breakdown'!D958)","v":""},{"$f":"IF('4 - Species Breakdown'!L958=0,\"\",'4 - Species Breakdown'!L958)","v":""},{"$f":"IF('4 - Species Breakdown'!M958=0,\"\",'4 - Species Breakdown'!M958)","v":""},{"$f":"IF('4 - Species Breakdown'!N958=0,\"\",'4 - Species Breakdown'!N958)","v":""},{"$f":"IFERROR(('4 - Species Breakdown'!J958/'WCC Summary'!$D$14)*100,\"\")","v":""},{"$f":"IF('4 - Species Breakdown'!J958=0,\"\",'4 - Species Breakdown'!J958)","v":""}]
[null,{"$f":"IF('4 - Species Breakdown'!B959=0,\"\",'4 - Species Breakdown'!B959)","v":""},{"$f":"IF('4 - Species Breakdown'!D959=0,\"\",'4 - Species Breakdown'!D959)","v":""},{"$f":"IF('4 - Species Breakdown'!L959=0,\"\",'4 - Species Breakdown'!L959)","v":""},{"$f":"IF('4 - Species Breakdown'!M959=0,\"\",'4 - Species Breakdown'!M959)","v":""},{"$f":"IF('4 - Species Breakdown'!N959=0,\"\",'4 - Species Breakdown'!N959)","v":""},{"$f":"IFERROR(('4 - Species Breakdown'!J959/'WCC Summary'!$D$14)*100,\"\")","v":""},{"$f":"IF('4 - Species Breakdown'!J959=0,\"\",'4 - Species Breakdown'!J959)","v":""}]
[null,{"$f":"IF('4 - Species Breakdown'!B960=0,\"\",'4 - Species Breakdown'!B960)","v":""},{"$f":"IF('4 - Species Breakdown'!D960=0,\"\",'4 - Species Breakdown'!D960)","v":""},{"$f":"IF('4 - Species Breakdown'!L960=0,\"\",'4 - Species Breakdown'!L960)","v":""},{"$f":"IF('4 - Species Breakdown'!M960=0,\"\",'4 - Species Breakdown'!M960)","v":""},{"$f":"IF('4 - Species Breakdown'!N960=0,\"\",'4 - Species Breakdown'!N960)","v":""},{"$f":"IFERROR(('4 - Species Breakdown'!J960/'WCC Summary'!$D$14)*100,\"\")","v":""},{"$f":"IF('4 - Species Breakdown'!J960=0,\"\",'4 - Species Breakdown'!J960)","v":""}]
[null,{"$f":"IF('4 - Species Breakdown'!B961=0,\"\",'4 - Species Breakdown'!B961)","v":""},{"$f":"IF('4 - Species Breakdown'!D961=0,\"\",'4 - Species Breakdown'!D961)","v":""},{"$f":"IF('4 - Species Breakdown'!L961=0,\"\",'4 - Species Breakdown'!L961)","v":""},{"$f":"IF('4 - Species Breakdown'!M961=0,\"\",'4 - Species Breakdown'!M961)","v":""},{"$f":"IF('4 - Species Breakdown'!N961=0,\"\",'4 - Species Breakdown'!N961)","v":""},{"$f":"IFERROR(('4 - Species Breakdown'!J961/'WCC Summary'!$D$14)*100,\"\")","v":""},{"$f":"IF('4 - Species Breakdown'!J961=0,\"\",'4 - Species Breakdown'!J961)","v":""}]
[null,{"$f":"IF('4 - Species Breakdown'!B962=0,\"\",'4 - Species Breakdown'!B962)","v":""},{"$f":"IF('4 - Species Breakdown'!D962=0,\"\",'4 - Species Breakdown'!D962)","v":""},{"$f":"IF('4 - Species Breakdown'!L962=0,\"\",'4 - Species Breakdown'!L962)","v":""},{"$f":"IF('4 - Species Breakdown'!M962=0,\"\",'4 - Species Breakdown'!M962)","v":""},{"$f":"IF('4 - Species Breakdown'!N962=0,\"\",'4 - Species Breakdown'!N962)","v":""},{"$f":"IFERROR(('4 - Species Breakdown'!J962/'WCC Summary'!$D$14)*100,\"\")","v":""},{"$f":"IF('4 - Species Breakdown'!J962=0,\"\",'4 - Species Breakdown'!J962)","v":""}]
[null,{"$f":"IF('4 - Species Breakdown'!B963=0,\"\",'4 - Species Breakdown'!B963)","v":""},{"$f":"IF('4 - Species Breakdown'!D963=0,\"\",'4 - Species Breakdown'!D963)","v":""},{"$f":"IF('4 - Species Breakdown'!L963=0,\"\",'4 - Species Breakdown'!L963)","v":""},{"$f":"IF('4 - Species Breakdown'!M963=0,\"\",'4 - Species Breakdown'!M963)","v":""},{"$f":"IF('4 - Species Breakdown'!N963=0,\"\",'4 - Species Breakdown'!N963)","v":""},{"$f":"IFERROR(('4 - Species Breakdown'!J963/'WCC Summary'!$D$14)*100,\"\")","v":""},{"$f":"IF('4 - Species Breakdown'!J963=0,\"\",'4 - Species Breakdown'!J963)","v":""}]
[null,{"$f":"IF('4 - Species Breakdown'!B964=0,\"\",'4 - Species Breakdown'!B964)","v":""},{"$f":"IF('4 - Species Breakdown'!D964=0,\"\",'4 - Species Breakdown'!D964)","v":""},{"$f":"IF('4 - Species Breakdown'!L964=0,\"\",'4 - Species Breakdown'!L964)","v":""},{"$f":"IF('4 - Species Breakdown'!M964=0,\"\",'4 - Species Breakdown'!M964)","v":""},{"$f":"IF('4 - Species Breakdown'!N964=0,\"\",'4 - Species Breakdown'!N964)","v":""},{"$f":"IFERROR(('4 - Species Breakdown'!J964/'WCC Summary'!$D$14)*100,\"\")","v":""},{"$f":"IF('4 - Species Breakdown'!J964=0,\"\",'4 - Species Breakdown'!J964)","v":""}]
[null,{"$f":"IF('4 - Species Breakdown'!B965=0,\"\",'4 - Species Breakdown'!B965)","v":""},{"$f":"IF('4 - Species Breakdown'!D965=0,\"\",'4 - Species Breakdown'!D965)","v":""},{"$f":"IF('4 - Species Breakdown'!L965=0,\"\",'4 - Species Breakdown'!L965)","v":""},{"$f":"IF('4 - Species Breakdown'!M965=0,\"\",'4 - Species Breakdown'!M965)","v":""},{"$f":"IF('4 - Species Breakdown'!N965=0,\"\",'4 - Species Breakdown'!N965)","v":""},{"$f":"IFERROR(('4 - Species Breakdown'!J965/'WCC Summary'!$D$14)*100,\"\")","v":""},{"$f":"IF('4 - Species Breakdown'!J965=0,\"\",'4 - Species Breakdown'!J965)","v":""}]
[null,{"$f":"IF('4 - Species Breakdown'!B966=0,\"\",'4 - Species Breakdown'!B966)","v":""},{"$f":"IF('4 - Species Breakdown'!D966=0,\"\",'4 - Species Breakdown'!D966)","v":""},{"$f":"IF('4 - Species Breakdown'!L966=0,\"\",'4 - Species Breakdown'!L966)","v":""},{"$f":"IF('4 - Species Breakdown'!M966=0,\"\",'4 - Species Breakdown'!M966)","v":""},{"$f":"IF('4 - Species Breakdown'!N966=0,\"\",'4 - Species Breakdown'!N966)","v":""},{"$f":"IFERROR(('4 - Species Breakdown'!J966/'WCC Summary'!$D$14)*100,\"\")","v":""},{"$f":"IF('4 - Species Breakdown'!J966=0,\"\",'4 - Species Breakdown'!J966)","v":""}]
[null,{"$f":"IF('4 - Species Breakdown'!B967=0,\"\",'4 - Species Breakdown'!B967)","v":""},{"$f":"IF('4 - Species Breakdown'!D967=0,\"\",'4 - Species Breakdown'!D967)","v":""},{"$f":"IF('4 - Species Breakdown'!L967=0,\"\",'4 - Species Breakdown'!L967)","v":""},{"$f":"IF('4 - Species Breakdown'!M967=0,\"\",'4 - Species Breakdown'!M967)","v":""},{"$f":"IF('4 - Species Breakdown'!N967=0,\"\",'4 - Species Breakdown'!N967)","v":""},{"$f":"IFERROR(('4 - Species Breakdown'!J967/'WCC Summary'!$D$14)*100,\"\")","v":""},{"$f":"IF('4 - Species Breakdown'!J967=0,\"\",'4 - Species Breakdown'!J967)","v":""}]
[null,{"$f":"IF('4 - Species Breakdown'!B968=0,\"\",'4 - Species Breakdown'!B968)","v":""},{"$f":"IF('4 - Species Breakdown'!D968=0,\"\",'4 - Species Breakdown'!D968)","v":""},{"$f":"IF('4 - Species Breakdown'!L968=0,\"\",'4 - Species Breakdown'!L968)","v":""},{"$f":"IF('4 - Species Breakdown'!M968=0,\"\",'4 - Species Breakdown'!M968)","v":""},{"$f":"IF('4 - Species Breakdown'!N968=0,\"\",'4 - Species Breakdown'!N968)","v":""},{"$f":"IFERROR(('4 - Species Breakdown'!J968/'WCC Summary'!$D$14)*100,\"\")","v":""},{"$f":"IF('4 - Species Breakdown'!J968=0,\"\",'4 - Species Breakdown'!J968)","v":""}]
[null,{"$f":"IF('4 - Species Breakdown'!B969=0,\"\",'4 - Species Breakdown'!B969)","v":""},{"$f":"IF('4 - Species Breakdown'!D969=0,\"\",'4 - Species Breakdown'!D969)","v":""},{"$f":"IF('4 - Species Breakdown'!L969=0,\"\",'4 - Species Breakdown'!L969)","v":""},{"$f":"IF('4 - Species Breakdown'!M969=0,\"\",'4 - Species Breakdown'!M969)","v":""},{"$f":"IF('4 - Species Breakdown'!N969=0,\"\",'4 - Species Breakdown'!N969)","v":""},{"$f":"IFERROR(('4 - Species Breakdown'!J969/'WCC Summary'!$D$14)*100,\"\")","v":""},{"$f":"IF('4 - Species Breakdown'!J969=0,\"\",'4 - Species Breakdown'!J969)","v":""}]
[null,{"$f":"IF('4 - Species Breakdown'!B970=0,\"\",'4 - Species Breakdown'!B970)","v":""},{"$f":"IF('4 - Species Breakdown'!D970=0,\"\",'4 - Species Breakdown'!D970)","v":""},{"$f":"IF('4 - Species Breakdown'!L970=0,\"\",'4 - Species Breakdown'!L970)","v":""},{"$f":"IF('4 - Species Breakdown'!M970=0,\"\",'4 - Species Breakdown'!M970)","v":""},{"$f":"IF('4 - Species Breakdown'!N970=0,\"\",'4 - Species Breakdown'!N970)","v":""},{"$f":"IFERROR(('4 - Species Breakdown'!J970/'WCC Summary'!$D$14)*100,\"\")","v":""},{"$f":"IF('4 - Species Breakdown'!J970=0,\"\",'4 - Species Breakdown'!J970)","v":""}]
[null,{"$f":"IF('4 - Species Breakdown'!B971=0,\"\",'4 - Species Breakdown'!B971)","v":""},{"$f":"IF('4 - Species Breakdown'!D971=0,\"\",'4 - Species Breakdown'!D971)","v":""},{"$f":"IF('4 - Species Breakdown'!L971=0,\"\",'4 - Species Breakdown'!L971)","v":""},{"$f":"IF('4 - Species Breakdown'!M971=0,\"\",'4 - Species Breakdown'!M971)","v":""},{"$f":"IF('4 - Species Breakdown'!N971=0,\"\",'4 - Species Breakdown'!N971)","v":""},{"$f":"IFERROR(('4 - Species Breakdown'!J971/'WCC Summary'!$D$14)*100,\"\")","v":""},{"$f":"IF('4 - Species Breakdown'!J971=0,\"\",'4 - Species Breakdown'!J971)","v":""}]
[null,{"$f":"IF('4 - Species Breakdown'!B972=0,\"\",'4 - Species Breakdown'!B972)","v":""},{"$f":"IF('4 - Species Breakdown'!D972=0,\"\",'4 - Species Breakdown'!D972)","v":""},{"$f":"IF('4 - Species Breakdown'!L972=0,\"\",'4 - Species Breakdown'!L972)","v":""},{"$f":"IF('4 - Species Breakdown'!M972=0,\"\",'4 - Species Breakdown'!M972)","v":""},{"$f":"IF('4 - Species Breakdown'!N972=0,\"\",'4 - Species Breakdown'!N972)","v":""},{"$f":"IFERROR(('4 - Species Breakdown'!J972/'WCC Summary'!$D$14)*100,\"\")","v":""},{"$f":"IF('4 - Species Breakdown'!J972=0,\"\",'4 - Species Breakdown'!J972)","v":""}]
[null,{"$f":"IF('4 - Species Breakdown'!B973=0,\"\",'4 - Species Breakdown'!B973)","v":""},{"$f":"IF('4 - Species Breakdown'!D973=0,\"\",'4 - Species Breakdown'!D973)","v":""},{"$f":"IF('4 - Species Breakdown'!L973=0,\"\",'4 - Species Breakdown'!L973)","v":""},{"$f":"IF('4 - Species Breakdown'!M973=0,\"\",'4 - Species Breakdown'!M973)","v":""},{"$f":"IF('4 - Species Breakdown'!N973=0,\"\",'4 - Species Breakdown'!N973)","v":""},{"$f":"IFERROR(('4 - Species Breakdown'!J973/'WCC Summary'!$D$14)*100,\"\")","v":""},{"$f":"IF('4 - Species Breakdown'!J973=0,\"\",'4 - Species Breakdown'!J973)","v":""}]
[null,{"$f":"IF('4 - Species Breakdown'!B974=0,\"\",'4 - Species Breakdown'!B974)","v":""},{"$f":"IF('4 - Species Breakdown'!D974=0,\"\",'4 - Species Breakdown'!D974)","v":""},{"$f":"IF('4 - Species Breakdown'!L974=0,\"\",'4 - Species Breakdown'!L974)","v":""},{"$f":"IF('4 - Species Breakdown'!M974=0,\"\",'4 - Species Breakdown'!M974)","v":""},{"$f":"IF('4 - Species Breakdown'!N974=0,\"\",'4 - Species Breakdown'!N974)","v":""},{"$f":"IFERROR(('4 - Species Breakdown'!J974/'WCC Summary'!$D$14)*100,\"\")","v":""},{"$f":"IF('4 - Species Breakdown'!J974=0,\"\",'4 - Species Breakdown'!J974)","v":""}]
[null,{"$f":"IF('4 - Species Breakdown'!B975=0,\"\",'4 - Species Breakdown'!B975)","v":""},{"$f":"IF('4 - Species Breakdown'!D975=0,\"\",'4 - Species Breakdown'!D975)","v":""},{"$f":"IF('4 - Species Breakdown'!L975=0,\"\",'4 - Species Breakdown'!L975)","v":""},{"$f":"IF('4 - Species Breakdown'!M975=0,\"\",'4 - Species Breakdown'!M975)","v":""},{"$f":"IF('4 - Species Breakdown'!N975=0,\"\",'4 - Species Breakdown'!N975)","v":""},{"$f":"IFERROR(('4 - Species Breakdown'!J975/'WCC Summary'!$D$14)*100,\"\")","v":""},{"$f":"IF('4 - Species Breakdown'!J975=0,\"\",'4 - Species Breakdown'!J975)","v":""}]
[null,{"$f":"IF('4 - Species Breakdown'!B976=0,\"\",'4 - Species Breakdown'!B976)","v":""},{"$f":"IF('4 - Species Breakdown'!D976=0,\"\",'4 - Species Breakdown'!D976)","v":""},{"$f":"IF('4 - Species Breakdown'!L976=0,\"\",'4 - Species Breakdown'!L976)","v":""},{"$f":"IF('4 - Species Breakdown'!M976=0,\"\",'4 - Species Breakdown'!M976)","v":""},{"$f":"IF('4 - Species Breakdown'!N976=0,\"\",'4 - Species Breakdown'!N976)","v":""},{"$f":"IFERROR(('4 - Species Breakdown'!J976/'WCC Summary'!$D$14)*100,\"\")","v":""},{"$f":"IF('4 - Species Breakdown'!J976=0,\"\",'4 - Species Breakdown'!J976)","v":""}]
[null,{"$f":"IF('4 - Species Breakdown'!B977=0,\"\",'4 - Species Breakdown'!B977)","v":""},{"$f":"IF('4 - Species Breakdown'!D977=0,\"\",'4 - Species Breakdown'!D977)","v":""},{"$f":"IF('4 - Species Breakdown'!L977=0,\"\",'4 - Species Breakdown'!L977)","v":""},{"$f":"IF('4 - Species Breakdown'!M977=0,\"\",'4 - Species Breakdown'!M977)","v":""},{"$f":"IF('4 - Species Breakdown'!N977=0,\"\",'4 - Species Breakdown'!N977)","v":""},{"$f":"IFERROR(('4 - Species Breakdown'!J977/'WCC Summary'!$D$14)*100,\"\")","v":""},{"$f":"IF('4 - Species Breakdown'!J977=0,\"\",'4 - Species Breakdown'!J977)","v":""}]
[null,{"$f":"IF('4 - Species Breakdown'!B978=0,\"\",'4 - Species Breakdown'!B978)","v":""},{"$f":"IF('4 - Species Breakdown'!D978=0,\"\",'4 - Species Breakdown'!D978)","v":""},{"$f":"IF('4 - Species Breakdown'!L978=0,\"\",'4 - Species Breakdown'!L978)","v":""},{"$f":"IF('4 - Species Breakdown'!M978=0,\"\",'4 - Species Breakdown'!M978)","v":""},{"$f":"IF('4 - Species Breakdown'!N978=0,\"\",'4 - Species Breakdown'!N978)","v":""},{"$f":"IFERROR(('4 - Species Breakdown'!J978/'WCC Summary'!$D$14)*100,\"\")","v":""},{"$f":"IF('4 - Species Breakdown'!J978=0,\"\",'4 - Species Breakdown'!J978)","v":""}]
[null,{"$f":"IF('4 - Species Breakdown'!B979=0,\"\",'4 - Species Breakdown'!B979)","v":""},{"$f":"IF('4 - Species Breakdown'!D979=0,\"\",'4 - Species Breakdown'!D979)","v":""},{"$f":"IF('4 - Species Breakdown'!L979=0,\"\",'4 - Species Breakdown'!L979)","v":""},{"$f":"IF('4 - Species Breakdown'!M979=0,\"\",'4 - Species Breakdown'!M979)","v":""},{"$f":"IF('4 - Species Breakdown'!N979=0,\"\",'4 - Species Breakdown'!N979)","v":""},{"$f":"IFERROR(('4 - Species Breakdown'!J979/'WCC Summary'!$D$14)*100,\"\")","v":""},{"$f":"IF('4 - Species Breakdown'!J979=0,\"\",'4 - Species Breakdown'!J979)","v":""}]
[null,{"$f":"IF('4 - Species Breakdown'!B980=0,\"\",'4 - Species Breakdown'!B980)","v":""},{"$f":"IF('4 - Species Breakdown'!D980=0,\"\",'4 - Species Breakdown'!D980)","v":""},{"$f":"IF('4 - Species Breakdown'!L980=0,\"\",'4 - Species Breakdown'!L980)","v":""},{"$f":"IF('4 - Species Breakdown'!M980=0,\"\",'4 - Species Breakdown'!M980)","v":""},{"$f":"IF('4 - Species Breakdown'!N980=0,\"\",'4 - Species Breakdown'!N980)","v":""},{"$f":"IFERROR(('4 - Species Breakdown'!J980/'WCC Summary'!$D$14)*100,\"\")","v":""},{"$f":"IF('4 - Species Breakdown'!J980=0,\"\",'4 - Species Breakdown'!J980)","v":""}]
[null,{"$f":"IF('4 - Species Breakdown'!B981=0,\"\",'4 - Species Breakdown'!B981)","v":""},{"$f":"IF('4 - Species Breakdown'!D981=0,\"\",'4 - Species Breakdown'!D981)","v":""},{"$f":"IF('4 - Species Breakdown'!L981=0,\"\",'4 - Species Breakdown'!L981)","v":""},{"$f":"IF('4 - Species Breakdown'!M981=0,\"\",'4 - Species Breakdown'!M981)","v":""},{"$f":"IF('4 - Species Breakdown'!N981=0,\"\",'4 - Species Breakdown'!N981)","v":""},{"$f":"IFERROR(('4 - Species Breakdown'!J981/'WCC Summary'!$D$14)*100,\"\")","v":""},{"$f":"IF('4 - Species Breakdown'!J981=0,\"\",'4 - Species Breakdown'!J981)","v":""}]
[null,{"$f":"IF('4 - Species Breakdown'!B982=0,\"\",'4 - Species Breakdown'!B982)","v":""},{"$f":"IF('4 - Species Breakdown'!D982=0,\"\",'4 - Species Breakdown'!D982)","v":""},{"$f":"IF('4 - Species Breakdown'!L982=0,\"\",'4 - Species Breakdown'!L982)","v":""},{"$f":"IF('4 - Species Breakdown'!M982=0,\"\",'4 - Species Breakdown'!M982)","v":""},{"$f":"IF('4 - Species Breakdown'!N982=0,\"\",'4 - Species Breakdown'!N982)","v":""},{"$f":"IFERROR(('4 - Species Breakdown'!J982/'WCC Summary'!$D$14)*100,\"\")","v":""},{"$f":"IF('4 - Species Breakdown'!J982=0,\"\",'4 - Species Breakdown'!J982)","v":""}]
[null,{"$f":"IF('4 - Species Breakdown'!B983=0,\"\",'4 - Species Breakdown'!B983)","v":""},{"$f":"IF('4 - Species Breakdown'!D983=0,\"\",'4 - Species Breakdown'!D983)","v":""},{"$f":"IF('4 - Species Breakdown'!L983=0,\"\",'4 - Species Breakdown'!L983)","v":""},{"$f":"IF('4 - Species Breakdown'!M983=0,\"\",'4 - Species Breakdown'!M983)","v":""},{"$f":"IF('4 - Species Breakdown'!N983=0,\"\",'4 - Species Breakdown'!N983)","v":""},{"$f":"IFERROR(('4 - Species Breakdown'!J983/'WCC Summary'!$D$14)*100,\"\")","v":""},{"$f":"IF('4 - Species Breakdown'!J983=0,\"\",'4 - Species Breakdown'!J983)","v":""}]
[null,{"$f":"IF('4 - Species Breakdown'!B984=0,\"\",'4 - Species Breakdown'!B984)","v":""},{"$f":"IF('4 - Species Breakdown'!D984=0,\"\",'4 - Species Breakdown'!D984)","v":""},{"$f":"IF('4 - Species Breakdown'!L984=0,\"\",'4 - Species Breakdown'!L984)","v":""},{"$f":"IF('4 - Species Breakdown'!M984=0,\"\",'4 - Species Breakdown'!M984)","v":""},{"$f":"IF('4 - Species Breakdown'!N984=0,\"\",'4 - Species Breakdown'!N984)","v":""},{"$f":"IFERROR(('4 - Species Breakdown'!J984/'WCC Summary'!$D$14)*100,\"\")","v":""},{"$f":"IF('4 - Species Breakdown'!J984=0,\"\",'4 - Species Breakdown'!J984)","v":""}]
[null,{"$f":"IF('4 - Species Breakdown'!B985=0,\"\",'4 - Species Breakdown'!B985)","v":""},{"$f":"IF('4 - Species Breakdown'!D985=0,\"\",'4 - Species Breakdown'!D985)","v":""},{"$f":"IF('4 - Species Breakdown'!L985=0,\"\",'4 - Species Breakdown'!L985)","v":""},{"$f":"IF('4 - Species Breakdown'!M985=0,\"\",'4 - Species Breakdown'!M985)","v":""},{"$f":"IF('4 - Species Breakdown'!N985=0,\"\",'4 - Species Breakdown'!N985)","v":""},{"$f":"IFERROR(('4 - Species Breakdown'!J985/'WCC Summary'!$D$14)*100,\"\")","v":""},{"$f":"IF('4 - Species Breakdown'!J985=0,\"\",'4 - Species Breakdown'!J985)","v":""}]
[null,{"$f":"IF('4 - Species Breakdown'!B986=0,\"\",'4 - Species Breakdown'!B986)","v":""},{"$f":"IF('4 - Species Breakdown'!D986=0,\"\",'4 - Species Breakdown'!D986)","v":""},{"$f":"IF('4 - Species Breakdown'!L986=0,\"\",'4 - Species Breakdown'!L986)","v":""},{"$f":"IF('4 - Species Breakdown'!M986=0,\"\",'4 - Species Breakdown'!M986)","v":""},{"$f":"IF('4 - Species Breakdown'!N986=0,\"\",'4 - Species Breakdown'!N986)","v":""},{"$f":"IFERROR(('4 - Species Breakdown'!J986/'WCC Summary'!$D$14)*100,\"\")","v":""},{"$f":"IF('4 - Species Breakdown'!J986=0,\"\",'4 - Species Breakdown'!J986)","v":""}]
[null,{"$f":"IF('4 - Species Breakdown'!B987=0,\"\",'4 - Species Breakdown'!B987)","v":""},{"$f":"IF('4 - Species Breakdown'!D987=0,\"\",'4 - Species Breakdown'!D987)","v":""},{"$f":"IF('4 - Species Breakdown'!L987=0,\"\",'4 - Species Breakdown'!L987)","v":""},{"$f":"IF('4 - Species Breakdown'!M987=0,\"\",'4 - Species Breakdown'!M987)","v":""},{"$f":"IF('4 - Species Breakdown'!N987=0,\"\",'4 - Species Breakdown'!N987)","v":""},{"$f":"IFERROR(('4 - Species Breakdown'!J987/'WCC Summary'!$D$14)*100,\"\")","v":""},{"$f":"IF('4 - Species Breakdown'!J987=0,\"\",'4 - Species Breakdown'!J987)","v":""}]
[null,{"$f":"IF('4 - Species Breakdown'!B988=0,\"\",'4 - Species Breakdown'!B988)","v":""},{"$f":"IF('4 - Species Breakdown'!D988=0,\"\",'4 - Species Breakdown'!D988)","v":""},{"$f":"IF('4 - Species Breakdown'!L988=0,\"\",'4 - Species Breakdown'!L988)","v":""},{"$f":"IF('4 - Species Breakdown'!M988=0,\"\",'4 - Species Breakdown'!M988)","v":""},{"$f":"IF('4 - Species Breakdown'!N988=0,\"\",'4 - Species Breakdown'!N988)","v":""},{"$f":"IFERROR(('4 - Species Breakdown'!J988/'WCC Summary'!$D$14)*100,\"\")","v":""},{"$f":"IF('4 - Species Breakdown'!J988=0,\"\",'4 - Species Breakdown'!J988)","v":""}]
[null,{"$f":"IF('4 - Species Breakdown'!B989=0,\"\",'4 - Species Breakdown'!B989)","v":""},{"$f":"IF('4 - Species Breakdown'!D989=0,\"\",'4 - Species Breakdown'!D989)","v":""},{"$f":"IF('4 - Species Breakdown'!L989=0,\"\",'4 - Species Breakdown'!L989)","v":""},{"$f":"IF('4 - Species Breakdown'!M989=0,\"\",'4 - Species Breakdown'!M989)","v":""},{"$f":"IF('4 - Species Breakdown'!N989=0,\"\",'4 - Species Breakdown'!N989)","v":""},{"$f":"IFERROR(('4 - Species Breakdown'!J989/'WCC Summary'!$D$14)*100,\"\")","v":""},{"$f":"IF('4 - Species Breakdown'!J989=0,\"\",'4 - Species Breakdown'!J989)","v":""}]
[null,{"$f":"IF('4 - Species Breakdown'!B990=0,\"\",'4 - Species Breakdown'!B990)","v":""},{"$f":"IF('4 - Species Breakdown'!D990=0,\"\",'4 - Species Breakdown'!D990)","v":""},{"$f":"IF('4 - Species Breakdown'!L990=0,\"\",'4 - Species Breakdown'!L990)","v":""},{"$f":"IF('4 - Species Breakdown'!M990=0,\"\",'4 - Species Breakdown'!M990)","v":""},{"$f":"IF('4 - Species Breakdown'!N990=0,\"\",'4 - Species Breakdown'!N990)","v":""},{"$f":"IFERROR(('4 - Species Breakdown'!J990/'WCC Summary'!$D$14)*100,\"\")","v":""},{"$f":"IF('4 - Species Breakdown'!J990=0,\"\",'4 - Species Breakdown'!J990)","v":""}]
[null,{"$f":"IF('4 - Species Breakdown'!B991=0,\"\",'4 - Species Breakdown'!B991)","v":""},{"$f":"IF('4 - Species Breakdown'!D991=0,\"\",'4 - Species Breakdown'!D991)","v":""},{"$f":"IF('4 - Species Breakdown'!L991=0,\"\",'4 - Species Breakdown'!L991)","v":""},{"$f":"IF('4 - Species Breakdown'!M991=0,\"\",'4 - Species Breakdown'!M991)","v":""},{"$f":"IF('4 - Species Breakdown'!N991=0,\"\",'4 - Species Breakdown'!N991)","v":""},{"$f":"IFERROR(('4 - Species Breakdown'!J991/'WCC Summary'!$D$14)*100,\"\")","v":""},{"$f":"IF('4 - Species Breakdown'!J991=0,\"\",'4 - Species Breakdown'!J991)","v":""}]
[null,{"$f":"IF('4 - Species Breakdown'!B992=0,\"\",'4 - Species Breakdown'!B992)","v":""},{"$f":"IF('4 - Species Breakdown'!D992=0,\"\",'4 - Species Breakdown'!D992)","v":""},{"$f":"IF('4 - Species Breakdown'!L992=0,\"\",'4 - Species Breakdown'!L992)","v":""},{"$f":"IF('4 - Species Breakdown'!M992=0,\"\",'4 - Species Breakdown'!M992)","v":""},{"$f":"IF('4 - Species Breakdown'!N992=0,\"\",'4 - Species Breakdown'!N992)","v":""},{"$f":"IFERROR(('4 - Species Breakdown'!J992/'WCC Summary'!$D$14)*100,\"\")","v":""},{"$f":"IF('4 - Species Breakdown'!J992=0,\"\",'4 - Species Breakdown'!J992)","v":""}]
[null,{"$f":"IF('4 - Species Breakdown'!B993=0,\"\",'4 - Species Breakdown'!B993)","v":""},{"$f":"IF('4 - Species Breakdown'!D993=0,\"\",'4 - Species Breakdown'!D993)","v":""},{"$f":"IF('4 - Species Breakdown'!L993=0,\"\",'4 - Species Breakdown'!L993)","v":""},{"$f":"IF('4 - Species Breakdown'!M993=0,\"\",'4 - Species Breakdown'!M993)","v":""},{"$f":"IF('4 - Species Breakdown'!N993=0,\"\",'4 - Species Breakdown'!N993)","v":""},{"$f":"IFERROR(('4 - Species Breakdown'!J993/'WCC Summary'!$D$14)*100,\"\")","v":""},{"$f":"IF('4 - Species Breakdown'!J993=0,\"\",'4 - Species Breakdown'!J993)","v":""}]
[null,{"$f":"IF('4 - Species Breakdown'!B994=0,\"\",'4 - Species Breakdown'!B994)","v":""},{"$f":"IF('4 - Species Breakdown'!D994=0,\"\",'4 - Species Breakdown'!D994)","v":""},{"$f":"IF('4 - Species Breakdown'!L994=0,\"\",'4 - Species Breakdown'!L994)","v":""},{"$f":"IF('4 - Species Breakdown'!M994=0,\"\",'4 - Species Breakdown'!M994)","v":""},{"$f":"IF('4 - Species Breakdown'!N994=0,\"\",'4 - Species Breakdown'!N994)","v":""},{"$f":"IFERROR(('4 - Species Breakdown'!J994/'WCC Summary'!$D$14)*100,\"\")","v":""},{"$f":"IF('4 - Species Breakdown'!J994=0,\"\",'4 - Species Breakdown'!J994)","v":""}]
[null,{"$f":"IF('4 - Species Breakdown'!B995=0,\"\",'4 - Species Breakdown'!B995)","v":""},{"$f":"IF('4 - Species Breakdown'!D995=0,\"\",'4 - Species Breakdown'!D995)","v":""},{"$f":"IF('4 - Species Breakdown'!L995=0,\"\",'4 - Species Breakdown'!L995)","v":""},{"$f":"IF('4 - Species Breakdown'!M995=0,\"\",'4 - Species Breakdown'!M995)","v":""},{"$f":"IF('4 - Species Breakdown'!N995=0,\"\",'4 - Species Breakdown'!N995)","v":""},{"$f":"IFERROR(('4 - Species Breakdown'!J995/'WCC Summary'!$D$14)*100,\"\")","v":""},{"$f":"IF('4 - Species Breakdown'!J995=0,\"\",'4 - Species Breakdown'!J995)","v":""}]
[null,{"$f":"IF('4 - Species Breakdown'!B996=0,\"\",'4 - Species Breakdown'!B996)","v":""},{"$f":"IF('4 - Species Breakdown'!D996=0,\"\",'4 - Species Breakdown'!D996)","v":""},{"$f":"IF('4 - Species Breakdown'!L996=0,\"\",'4 - Species Breakdown'!L996)","v":""},{"$f":"IF('4 - Species Breakdown'!M996=0,\"\",'4 - Species Breakdown'!M996)","v":""},{"$f":"IF('4 - Species Breakdown'!N996=0,\"\",'4 - Species Breakdown'!N996)","v":""},{"$f":"IFERROR(('4 - Species Breakdown'!J996/'WCC Summary'!$D$14)*100,\"\")","v":""},{"$f":"IF('4 - Species Breakdown'!J996=0,\"\",'4 - Species Breakdown'!J996)","v":""}]
[null,{"$f":"IF('4 - Species Breakdown'!B997=0,\"\",'4 - Species Breakdown'!B997)","v":""},{"$f":"IF('4 - Species Breakdown'!D997=0,\"\",'4 - Species Breakdown'!D997)","v":""},{"$f":"IF('4 - Species Breakdown'!L997=0,\"\",'4 - Species Breakdown'!L997)","v":""},{"$f":"IF('4 - Species Breakdown'!M997=0,\"\",'4 - Species Breakdown'!M997)","v":""},{"$f":"IF('4 - Species Breakdown'!N997=0,\"\",'4 - Species Breakdown'!N997)","v":""},{"$f":"IFERROR(('4 - Species Breakdown'!J997/'WCC Summary'!$D$14)*100,\"\")","v":""},{"$f":"IF('4 - Species Breakdown'!J997=0,\"\",'4 - Species Breakdown'!J997)","v":""}]
[null,{"$f":"IF('4 - Species Breakdown'!B998=0,\"\",'4 - Species Breakdown'!B998)","v":""},{"$f":"IF('4 - Species Breakdown'!D998=0,\"\",'4 - Species Breakdown'!D998)","v":""},{"$f":"IF('4 - Species Breakdown'!L998=0,\"\",'4 - Species Breakdown'!L998)","v":""},{"$f":"IF('4 - Species Breakdown'!M998=0,\"\",'4 - Species Breakdown'!M998)","v":""},{"$f":"IF('4 - Species Breakdown'!N998=0,\"\",'4 - Species Breakdown'!N998)","v":""},{"$f":"IFERROR(('4 - Species Breakdown'!J998/'WCC Summary'!$D$14)*100,\"\")","v":""},{"$f":"IF('4 - Species Breakdown'!J998=0,\"\",'4 - Species Breakdown'!J998)","v":""}]
[null,{"$f":"IF('4 - Species Breakdown'!B999=0,\"\",'4 - Species Breakdown'!B999)","v":""},{"$f":"IF('4 - Species Breakdown'!D999=0,\"\",'4 - Species Breakdown'!D999)","v":""},{"$f":"IF('4 - Species Breakdown'!L999=0,\"\",'4 - Species Breakdown'!L999)","v":""},{"$f":"IF('4 - Species Breakdown'!M999=0,\"\",'4 - Species Breakdown'!M999)","v":""},{"$f":"IF('4 - Species Breakdown'!N999=0,\"\",'4 - Species Breakdown'!N999)","v":""},{"$f":"IFERROR(('4 - Species Breakdown'!J999/'WCC Summary'!$D$14)*100,\"\")","v":""},{"$f":"IF('4 - Species Breakdown'!J999=0,\"\",'4 - Species Breakdown'!J999)","v":""}]
[null,{"$f":"IF('4 - Species Breakdown'!B1000=0,\"\",'4 - Species Breakdown'!B1000)","v":""},{"$f":"IF('4 - Species Breakdown'!D1000=0,\"\",'4 - Species Breakdown'!D1000)","v":""},{"$f":"IF('4 - Species Breakdown'!L1000=0,\"\",'4 - Species Breakdown'!L1000)","v":""},{"$f":"IF('4 - Species Breakdown'!M1000=0,\"\",'4 - Species Breakdown'!M1000)","v":""},{"$f":"IF('4 - Species Breakdown'!N1000=0,\"\",'4 - Species Breakdown'!N1000)","v":""},{"$f":"IFERROR(('4 - Species Breakdown'!J1000/'WCC Summary'!$D$14)*100,\"\")","v":""},{"$f":"IF('4 - Species Breakdown'!J1000=0,\"\",'4 - Species Breakdown'!J1000)","v":""}]
[null,{"$f":"IF('4 - Species Breakdown'!B1001=0,\"\",'4 - Species Breakdown'!B1001)","v":""},{"$f":"IF('4 - Species Breakdown'!D1001=0,\"\",'4 - Species Breakdown'!D1001)","v":""},{"$f":"IF('4 - Species Breakdown'!L1001=0,\"\",'4 - Species Breakdown'!L1001)","v":""},{"$f":"IF('4 - Species Breakdown'!M1001=0,\"\",'4 - Species Breakdown'!M1001)","v":""},{"$f":"IF('4 - Species Breakdown'!N1001=0,\"\",'4 - Species Breakdown'!N1001)","v":""},{"$f":"IFERROR(('4 - Species Breakdown'!J1001/'WCC Summary'!$D$14)*100,\"\")","v":""},{"$f":"IF('4 - Species Breakdown'!J1001=0,\"\",'4 - Species Breakdown'!J1001)","v":""}]
[null,{"$f":"IF('4 - Species Breakdown'!B1002=0,\"\",'4 - Species Breakdown'!B1002)","v":""},{"$f":"IF('4 - Species Breakdown'!D1002=0,\"\",'4 - Species Breakdown'!D1002)","v":""},{"$f":"IF('4 - Species Breakdown'!L1002=0,\"\",'4 - Species Breakdown'!L1002)","v":""},{"$f":"IF('4 - Species Breakdown'!M1002=0,\"\",'4 - Species Breakdown'!M1002)","v":""},{"$f":"IF('4 - Species Breakdown'!N1002=0,\"\",'4 - Species Breakdown'!N1002)","v":""},{"$f":"IFERROR(('4 - Species Breakdown'!J1002/'WCC Summary'!$D$14)*100,\"\")","v":""},{"$f":"IF('4 - Species Breakdown'!J1002=0,\"\",'4 - Species Breakdown'!J1002)","v":""}]
[null,{"$f":"IF('4 - Species Breakdown'!B1003=0,\"\",'4 - Species Breakdown'!B1003)","v":""},{"$f":"IF('4 - Species Breakdown'!D1003=0,\"\",'4 - Species Breakdown'!D1003)","v":""},{"$f":"IF('4 - Species Breakdown'!L1003=0,\"\",'4 - Species Breakdown'!L1003)","v":""},{"$f":"IF('4 - Species Breakdown'!M1003=0,\"\",'4 - Species Breakdown'!M1003)","v":""},{"$f":"IF('4 - Species Breakdown'!N1003=0,\"\",'4 - Species Breakdown'!N1003)","v":""},{"$f":"IFERROR(('4 - Species Breakdown'!J1003/'WCC Summary'!$D$14)*100,\"\")","v":""},{"$f":"IF('4 - Species Breakdown'!J1003=0,\"\",'4 - Species Breakdown'!J1003)","v":""}]
[null,{"$f":"IF('4 - Species Breakdown'!B1004=0,\"\",'4 - Species Breakdown'!B1004)","v":""},{"$f":"IF('4 - Species Breakdown'!D1004=0,\"\",'4 - Species Breakdown'!D1004)","v":""},{"$f":"IF('4 - Species Breakdown'!L1004=0,\"\",'4 - Species Breakdown'!L1004)","v":""},{"$f":"IF('4 - Species Breakdown'!M1004=0,\"\",'4 - Species Breakdown'!M1004)","v":""},{"$f":"IF('4 - Species Breakdown'!N1004=0,\"\",'4 - Species Breakdown'!N1004)","v":""},{"$f":"IFERROR(('4 - Species Breakdown'!J1004/'WCC Summary'!$D$14)*100,\"\")","v":""},{"$f":"IF('4 - Species Breakdown'!J1004=0,\"\",'4 - Species Breakdown'!J1004)","v":""}]
[null,{"$f":"IF('4 - Species Breakdown'!B1005=0,\"\",'4 - Species Breakdown'!B1005)","v":""},{"$f":"IF('4 - Species Breakdown'!D1005=0,\"\",'4 - Species Breakdown'!D1005)","v":""},{"$f":"IF('4 - Species Breakdown'!L1005=0,\"\",'4 - Species Breakdown'!L1005)","v":""},{"$f":"IF('4 - Species Breakdown'!M1005=0,\"\",'4 - Species Breakdown'!M1005)","v":""},{"$f":"IF('4 - Species Breakdown'!N1005=0,\"\",'4 - Species Breakdown'!N1005)","v":""},{"$f":"IFERROR(('4 - Species Breakdown'!J1005/'WCC Summary'!$D$14)*100,\"\")","v":""},{"$f":"IF('4 - Species Breakdown'!J1005=0,\"\",'4 - Species Breakdown'!J1005)","v":""}]
[null,{"$f":"IF('4 - Species Breakdown'!B1006=0,\"\",'4 - Species Breakdown'!B1006)","v":""},{"$f":"IF('4 - Species Breakdown'!D1006=0,\"\",'4 - Species Breakdown'!D1006)","v":""},{"$f":"IF('4 - Species Breakdown'!L1006=0,\"\",'4 - Species Breakdown'!L1006)","v":""},{"$f":"IF('4 - Species Breakdown'!M1006=0,\"\",'4 - Species Breakdown'!M1006)","v":""},{"$f":"IF('4 - Species Breakdown'!N1006=0,\"\",'4 - Species Breakdown'!N1006)","v":""},{"$f":"IFERROR(('4 - Species Breakdown'!J1006/'WCC Summary'!$D$14)*100,\"\")","v":""},{"$f":"IF('4 - Species Breakdown'!J1006=0,\"\",'4 - Species Breakdown'!J1006)","v":""}]
[null,{"$f":"IF('4 - Species Breakdown'!B1007=0,\"\",'4 - Species Breakdown'!B1007)","v":""},{"$f":"IF('4 - Species Breakdown'!D1007=0,\"\",'4 - Species Breakdown'!D1007)","v":""},{"$f":"IF('4 - Species Breakdown'!L1007=0,\"\",'4 - Species Breakdown'!L1007)","v":""},{"$f":"IF('4 - Species Breakdown'!M1007=0,\"\",'4 - Species Breakdown'!M1007)","v":""},{"$f":"IF('4 - Species Breakdown'!N1007=0,\"\",'4 - Species Breakdown'!N1007)","v":""},{"$f":"IFERROR(('4 - Species Breakdown'!J1007/'WCC Summary'!$D$14)*100,\"\")","v":""},{"$f":"IF('4 - Species Breakdown'!J1007=0,\"\",'4 - Species Breakdown'!J1007)","v":""}]
[null,{"$f":"IF('4 - Species Breakdown'!B1008=0,\"\",'4 - Species Breakdown'!B1008)","v":""},{"$f":"IF('4 - Species Breakdown'!D1008=0,\"\",'4 - Species Breakdown'!D1008)","v":""},{"$f":"IF('4 - Species Breakdown'!L1008=0,\"\",'4 - Species Breakdown'!L1008)","v":""},{"$f":"IF('4 - Species Breakdown'!M1008=0,\"\",'4 - Species Breakdown'!M1008)","v":""},{"$f":"IF('4 - Species Breakdown'!N1008=0,\"\",'4 - Species Breakdown'!N1008)","v":""},{"$f":"IFERROR(('4 - Species Breakdown'!J1008/'WCC Summary'!$D$14)*100,\"\")","v":""},{"$f":"IF('4 - Species Breakdown'!J1008=0,\"\",'4 - Species Breakdown'!J1008)","v":""}]
[null,{"$f":"IF('4 - Species Breakdown'!B1009=0,\"\",'4 - Species Breakdown'!B1009)","v":""},{"$f":"IF('4 - Species Breakdown'!D1009=0,\"\",'4 - Species Breakdown'!D1009)","v":""},{"$f":"IF('4 - Species Breakdown'!L1009=0,\"\",'4 - Species Breakdown'!L1009)","v":""},{"$f":"IF('4 - Species Breakdown'!M1009=0,\"\",'4 - Species Breakdown'!M1009)","v":""},{"$f":"IF('4 - Species Breakdown'!N1009=0,\"\",'4 - Species Breakdown'!N1009)","v":""},{"$f":"IFERROR(('4 - Species Breakdown'!J1009/'WCC Summary'!$D$14)*100,\"\")","v":""},{"$f":"IF('4 - Species Breakdown'!J1009=0,\"\",'4 - Species Breakdown'!J1009)","v":""}]
[null,{"$f":"IF('4 - Species Breakdown'!B1010=0,\"\",'4 - Species Breakdown'!B1010)","v":""},{"$f":"IF('4 - Species Breakdown'!D1010=0,\"\",'4 - Species Breakdown'!D1010)","v":""},{"$f":"IF('4 - Species Breakdown'!L1010=0,\"\",'4 - Species Breakdown'!L1010)","v":""},{"$f":"IF('4 - Species Breakdown'!M1010=0,\"\",'4 - Species Breakdown'!M1010)","v":""},{"$f":"IF('4 - Species Breakdown'!N1010=0,\"\",'4 - Species Breakdown'!N1010)","v":""},{"$f":"IFERROR(('4 - Species Breakdown'!J1010/'WCC Summary'!$D$14)*100,\"\")","v":""},{"$f":"IF('4 - Species Breakdown'!J1010=0,\"\",'4 - Species Breakdown'!J1010)","v":""}]
[null,{"$f":"IF('4 - Species Breakdown'!B1011=0,\"\",'4 - Species Breakdown'!B1011)","v":""},{"$f":"IF('4 - Species Breakdown'!D1011=0,\"\",'4 - Species Breakdown'!D1011)","v":""},{"$f":"IF('4 - Species Breakdown'!L1011=0,\"\",'4 - Species Breakdown'!L1011)","v":""},{"$f":"IF('4 - Species Breakdown'!M1011=0,\"\",'4 - Species Breakdown'!M1011)","v":""},{"$f":"IF('4 - Species Breakdown'!N1011=0,\"\",'4 - Species Breakdown'!N1011)","v":""},{"$f":"IFERROR(('4 - Species Breakdown'!J1011/'WCC Summary'!$D$14)*100,\"\")","v":""},{"$f":"IF('4 - Species Breakdown'!J1011=0,\"\",'4 - Species Breakdown'!J1011)","v":""}]
[null,{"$f":"IF('4 - Species Breakdown'!B1012=0,\"\",'4 - Species Breakdown'!B1012)","v":""},{"$f":"IF('4 - Species Breakdown'!D1012=0,\"\",'4 - Species Breakdown'!D1012)","v":""},{"$f":"IF('4 - Species Breakdown'!L1012=0,\"\",'4 - Species Breakdown'!L1012)","v":""},{"$f":"IF('4 - Species Breakdown'!M1012=0,\"\",'4 - Species Breakdown'!M1012)","v":""},{"$f":"IF('4 - Species Breakdown'!N1012=0,\"\",'4 - Species Breakdown'!N1012)","v":""},{"$f":"IFERROR(('4 - Species Breakdown'!J1012/'WCC Summary'!$D$14)*100,\"\")","v":""},{"$f":"IF('4 - Species Breakdown'!J1012=0,\"\",'4 - Species Breakdown'!J1012)","v":""}]
[null,{"$f":"IF('4 - Species Breakdown'!B1013=0,\"\",'4 - Species Breakdown'!B1013)","v":""},{"$f":"IF('4 - Species Breakdown'!D1013=0,\"\",'4 - Species Breakdown'!D1013)","v":""},{"$f":"IF('4 - Species Breakdown'!L1013=0,\"\",'4 - Species Breakdown'!L1013)","v":""},{"$f":"IF('4 - Species Breakdown'!M1013=0,\"\",'4 - Species Breakdown'!M1013)","v":""},{"$f":"IF('4 - Species Breakdown'!N1013=0,\"\",'4 - Species Breakdown'!N1013)","v":""},{"$f":"IFERROR(('4 - Species Breakdown'!J1013/'WCC Summary'!$D$14)*100,\"\")","v":""},{"$f":"IF('4 - Species Breakdown'!J1013=0,\"\",'4 - Species Breakdown'!J1013)","v":""}]
[null,{"$f":"IF('4 - Species Breakdown'!B1014=0,\"\",'4 - Species Breakdown'!B1014)","v":""},{"$f":"IF('4 - Species Breakdown'!D1014=0,\"\",'4 - Species Breakdown'!D1014)","v":""},{"$f":"IF('4 - Species Breakdown'!L1014=0,\"\",'4 - Species Breakdown'!L1014)","v":""},{"$f":"IF('4 - Species Breakdown'!M1014=0,\"\",'4 - Species Breakdown'!M1014)","v":""},{"$f":"IF('4 - Species Breakdown'!N1014=0,\"\",'4 - Species Breakdown'!N1014)","v":""},{"$f":"IFERROR(('4 - Species Breakdown'!J1014/'WCC Summary'!$D$14)*100,\"\")","v":""},{"$f":"IF('4 - Species Breakdown'!J1014=0,\"\",'4 - Species Breakdown'!J1014)","v":""}]
[null,{"$f":"IF('4 - Species Breakdown'!B1015=0,\"\",'4 - Species Breakdown'!B1015)","v":""},{"$f":"IF('4 - Species Breakdown'!D1015=0,\"\",'4 - Species Breakdown'!D1015)","v":""},{"$f":"IF('4 - Species Breakdown'!L1015=0,\"\",'4 - Species Breakdown'!L1015)","v":""},{"$f":"IF('4 - Species Breakdown'!M1015=0,\"\",'4 - Species Breakdown'!M1015)","v":""},{"$f":"IF('4 - Species Breakdown'!N1015=0,\"\",'4 - Species Breakdown'!N1015)","v":""},{"$f":"IFERROR(('4 - Species Breakdown'!J1015/'WCC Summary'!$D$14)*100,\"\")","v":""},{"$f":"IF('4 - Species Breakdown'!J1015=0,\"\",'4 - Species Breakdown'!J1015)","v":""}]
[null,{"$f":"IF('4 - Species Breakdown'!B1016=0,\"\",'4 - Species Breakdown'!B1016)","v":""},{"$f":"IF('4 - Species Breakdown'!D1016=0,\"\",'4 - Species Breakdown'!D1016)","v":""},{"$f":"IF('4 - Species Breakdown'!L1016=0,\"\",'4 - Species Breakdown'!L1016)","v":""},{"$f":"IF('4 - Species Breakdown'!M1016=0,\"\",'4 - Species Breakdown'!M1016)","v":""},{"$f":"IF('4 - Species Breakdown'!N1016=0,\"\",'4 - Species Breakdown'!N1016)","v":""},{"$f":"IFERROR(('4 - Species Breakdown'!J1016/'WCC Summary'!$D$14)*100,\"\")","v":""},{"$f":"IF('4 - Species Breakdown'!J1016=0,\"\",'4 - Species Breakdown'!J1016)","v":""}]
[null,{"$f":"IF('4 - Species Breakdown'!B1017=0,\"\",'4 - Species Breakdown'!B1017)","v":""},{"$f":"IF('4 - Species Breakdown'!D1017=0,\"\",'4 - Species Breakdown'!D1017)","v":""},{"$f":"IF('4 - Species Breakdown'!L1017=0,\"\",'4 - Species Breakdown'!L1017)","v":""},{"$f":"IF('4 - Species Breakdown'!M1017=0,\"\",'4 - Species Breakdown'!M1017)","v":""},{"$f":"IF('4 - Species Breakdown'!N1017=0,\"\",'4 - Species Breakdown'!N1017)","v":""},{"$f":"IFERROR(('4 - Species Breakdown'!J1017/'WCC Summary'!$D$14)*100,\"\")","v":""},{"$f":"IF('4 - Species Breakdown'!J1017=0,\"\",'4 - Species Breakdown'!J1017)","v":""}]
[null,{"$f":"IF('4 - Species Breakdown'!B1018=0,\"\",'4 - Species Breakdown'!B1018)","v":""},{"$f":"IF('4 - Species Breakdown'!D1018=0,\"\",'4 - Species Breakdown'!D1018)","v":""},{"$f":"IF('4 - Species Breakdown'!L1018=0,\"\",'4 - Species Breakdown'!L1018)","v":""},{"$f":"IF('4 - Species Breakdown'!M1018=0,\"\",'4 - Species Breakdown'!M1018)","v":""},{"$f":"IF('4 - Species Breakdown'!N1018=0,\"\",'4 - Species Breakdown'!N1018)","v":""},{"$f":"IFERROR(('4 - Species Breakdown'!J1018/'WCC Summary'!$D$14)*100,\"\")","v":""},{"$f":"IF('4 - Species Breakdown'!J1018=0,\"\",'4 - Species Breakdown'!J1018)","v":""}]
[null,{"$f":"IF('4 - Species Breakdown'!B1019=0,\"\",'4 - Species Breakdown'!B1019)","v":""},{"$f":"IF('4 - Species Breakdown'!D1019=0,\"\",'4 - Species Breakdown'!D1019)","v":""},{"$f":"IF('4 - Species Breakdown'!L1019=0,\"\",'4 - Species Breakdown'!L1019)","v":""},{"$f":"IF('4 - Species Breakdown'!M1019=0,\"\",'4 - Species Breakdown'!M1019)","v":""},{"$f":"IF('4 - Species Breakdown'!N1019=0,\"\",'4 - Species Breakdown'!N1019)","v":""},{"$f":"IFERROR(('4 - Species Breakdown'!J1019/'WCC Summary'!$D$14)*100,\"\")","v":""},{"$f":"IF('4 - Species Breakdown'!J1019=0,\"\",'4 - Species Breakdown'!J1019)","v":""}]
[null,{"$f":"IF('4 - Species Breakdown'!B1020=0,\"\",'4 - Species Breakdown'!B1020)","v":""},{"$f":"IF('4 - Species Breakdown'!D1020=0,\"\",'4 - Species Breakdown'!D1020)","v":""},{"$f":"IF('4 - Species Breakdown'!L1020=0,\"\",'4 - Species Breakdown'!L1020)","v":""},{"$f":"IF('4 - Species Breakdown'!M1020=0,\"\",'4 - Species Breakdown'!M1020)","v":""},{"$f":"IF('4 - Species Breakdown'!N1020=0,\"\",'4 - Species Breakdown'!N1020)","v":""},{"$f":"IFERROR(('4 - Species Breakdown'!J1020/'WCC Summary'!$D$14)*100,\"\")","v":""},{"$f":"IF('4 - Species Breakdown'!J1020=0,\"\",'4 - Species Breakdown'!J1020)","v":""}]
[null,{"$f":"IF('4 - Species Breakdown'!B1021=0,\"\",'4 - Species Breakdown'!B1021)","v":""},{"$f":"IF('4 - Species Breakdown'!D1021=0,\"\",'4 - Species Breakdown'!D1021)","v":""},{"$f":"IF('4 - Species Breakdown'!L1021=0,\"\",'4 - Species Breakdown'!L1021)","v":""},{"$f":"IF('4 - Species Breakdown'!M1021=0,\"\",'4 - Species Breakdown'!M1021)","v":""},{"$f":"IF('4 - Species Breakdown'!N1021=0,\"\",'4 - Species Breakdown'!N1021)","v":""},{"$f":"IFERROR(('4 - Species Breakdown'!J1021/'WCC Summary'!$D$14)*100,\"\")","v":""},{"$f":"IF('4 - Species Breakdown'!J1021=0,\"\",'4 - Species Breakdown'!J1021)","v":""}]
[null,{"$f":"IF('4 - Species Breakdown'!B1022=0,\"\",'4 - Species Breakdown'!B1022)","v":""},{"$f":"IF('4 - Species Breakdown'!D1022=0,\"\",'4 - Species Breakdown'!D1022)","v":""},{"$f":"IF('4 - Species Breakdown'!L1022=0,\"\",'4 - Species Breakdown'!L1022)","v":""},{"$f":"IF('4 - Species Breakdown'!M1022=0,\"\",'4 - Species Breakdown'!M1022)","v":""},{"$f":"IF('4 - Species Breakdown'!N1022=0,\"\",'4 - Species Breakdown'!N1022)","v":""},{"$f":"IFERROR(('4 - Species Breakdown'!J1022/'WCC Summary'!$D$14)*100,\"\")","v":""},{"$f":"IF('4 - Species Breakdown'!J1022=0,\"\",'4 - Species Breakdown'!J1022)","v":""}]
[null,{"$f":"IF('4 - Species Breakdown'!B1023=0,\"\",'4 - Species Breakdown'!B1023)","v":""},{"$f":"IF('4 - Species Breakdown'!D1023=0,\"\",'4 - Species Breakdown'!D1023)","v":""},{"$f":"IF('4 - Species Breakdown'!L1023=0,\"\",'4 - Species Breakdown'!L1023)","v":""},{"$f":"IF('4 - Species Breakdown'!M1023=0,\"\",'4 - Species Breakdown'!M1023)","v":""},{"$f":"IF('4 - Species Breakdown'!N1023=0,\"\",'4 - Species Breakdown'!N1023)","v":""},{"$f":"IFERROR(('4 - Species Breakdown'!J1023/'WCC Summary'!$D$14)*100,\"\")","v":""},{"$f":"IF('4 - Species Breakdown'!J1023=0,\"\",'4 - Species Breakdown'!J1023)","v":""}]
[null,{"$f":"IF('4 - Species Breakdown'!B1024=0,\"\",'4 - Species Breakdown'!B1024)","v":""},{"$f":"IF('4 - Species Breakdown'!D1024=0,\"\",'4 - Species Breakdown'!D1024)","v":""},{"$f":"IF('4 - Species Breakdown'!L1024=0,\"\",'4 - Species Breakdown'!L1024)","v":""},{"$f":"IF('4 - Species Breakdown'!M1024=0,\"\",'4 - Species Breakdown'!M1024)","v":""},{"$f":"IF('4 - Species Breakdown'!N1024=0,\"\",'4 - Species Breakdown'!N1024)","v":""},{"$f":"IFERROR(('4 - Species Breakdown'!J1024/'WCC Summary'!$D$14)*100,\"\")","v":""},{"$f":"IF('4 - Species Breakdown'!J1024=0,\"\",'4 - Species Breakdown'!J1024)","v":""}]
[null,{"$f":"IF('4 - Species Breakdown'!B1025=0,\"\",'4 - Species Breakdown'!B1025)","v":""},{"$f":"IF('4 - Species Breakdown'!D1025=0,\"\",'4 - Species Breakdown'!D1025)","v":""},{"$f":"IF('4 - Species Breakdown'!L1025=0,\"\",'4 - Species Breakdown'!L1025)","v":""},{"$f":"IF('4 - Species Breakdown'!M1025=0,\"\",'4 - Species Breakdown'!M1025)","v":""},{"$f":"IF('4 - Species Breakdown'!N1025=0,\"\",'4 - Species Breakdown'!N1025)","v":""},{"$f":"IFERROR(('4 - Species Breakdown'!J1025/'WCC Summary'!$D$14)*100,\"\")","v":""},{"$f":"IF('4 - Species Breakdown'!J1025=0,\"\",'4 - Species Breakdown'!J1025)","v":""}]
[null,{"$f":"IF('4 - Species Breakdown'!B1026=0,\"\",'4 - Species Breakdown'!B1026)","v":""},{"$f":"IF('4 - Species Breakdown'!D1026=0,\"\",'4 - Species Breakdown'!D1026)","v":""},{"$f":"IF('4 - Species Breakdown'!L1026=0,\"\",'4 - Species Breakdown'!L1026)","v":""},{"$f":"IF('4 - Species Breakdown'!M1026=0,\"\",'4 - Species Breakdown'!M1026)","v":""},{"$f":"IF('4 - Species Breakdown'!N1026=0,\"\",'4 - Species Breakdown'!N1026)","v":""},{"$f":"IFERROR(('4 - Species Breakdown'!J1026/'WCC Summary'!$D$14)*100,\"\")","v":""},{"$f":"IF('4 - Species Breakdown'!J1026=0,\"\",'4 - Species Breakdown'!J1026)","v":""}]
[null,{"$f":"IF('4 - Species Breakdown'!B1027=0,\"\",'4 - Species Breakdown'!B1027)","v":""},{"$f":"IF('4 - Species Breakdown'!D1027=0,\"\",'4 - Species Breakdown'!D1027)","v":""},{"$f":"IF('4 - Species Breakdown'!L1027=0,\"\",'4 - Species Breakdown'!L1027)","v":""},{"$f":"IF('4 - Species Breakdown'!M1027=0,\"\",'4 - Species Breakdown'!M1027)","v":""},{"$f":"IF('4 - Species Breakdown'!N1027=0,\"\",'4 - Species Breakdown'!N1027)","v":""},{"$f":"IFERROR(('4 - Species Breakdown'!J1027/'WCC Summary'!$D$14)*100,\"\")","v":""},{"$f":"IF('4 - Species Breakdown'!J1027=0,\"\",'4 - Species Breakdown'!J1027)","v":""}]
[null,{"$f":"IF('4 - Species Breakdown'!B1028=0,\"\",'4 - Species Breakdown'!B1028)","v":""},{"$f":"IF('4 - Species Breakdown'!D1028=0,\"\",'4 - Species Breakdown'!D1028)","v":""},{"$f":"IF('4 - Species Breakdown'!L1028=0,\"\",'4 - Species Breakdown'!L1028)","v":""},{"$f":"IF('4 - Species Breakdown'!M1028=0,\"\",'4 - Species Breakdown'!M1028)","v":""},{"$f":"IF('4 - Species Breakdown'!N1028=0,\"\",'4 - Species Breakdown'!N1028)","v":""},{"$f":"IFERROR(('4 - Species Breakdown'!J1028/'WCC Summary'!$D$14)*100,\"\")","v":""},{"$f":"IF('4 - Species Breakdown'!J1028=0,\"\",'4 - Species Breakdown'!J1028)","v":""}]

{"sheet":"Tree Procurement Summary ","index":18,"n_rows":104,"n_cols":10,"rows_kept":104,"cut":false,"hidden":false,"merged":[[72,6,72,9],[8,6,9,9],[5,2,5,3],[6,2,6,3],[51,1,51,4],[67,6,67,9],[1,1,1,3],[101,7,101,8],[102,7,102,8],[103,7,103,8],[71,5,71,6],[65,5,65,6],[70,5,70,6],[66,5,66,6],[94,1,94,4],[8,1,9,1],[8,2,9,2],[16,5,16,6],[15,5,15,6],[11,1,11,4],[11,6,11,9],[17,6,17,9]]}
[]
[null,"Tree Procurement Summary"]
[]
[]
[]
[null,"EWCO reference:",{"$f":"IF('1 - Site Details'!C7=\"\",\"\",'1 - Site Details'!C7)","v":""}]
[null,"Property/site name:",{"$f":"IF('1 - Site Details'!C8=\"\",\"\",'1 - Site Details'!C8)","v":""}]
[]
[null,"Total No. Trees Planted",{"$f":"'4 - Species Breakdown'!AE21","v":0},null,null,null,"Will be assessed for suitability during the application process."]
[]
[]
[null,"Native Broadleaf Species List",null,null,null,null,"Native Conifer Species List"]
[null,"Species Name","Scientific Name","Species Code","Quantity",null,"Species Name","Scientific Name","Species Code","Quantity"]
[null,"Mixed native broadleaves"," ","NBL",{"$f":"SUMIF('4 - Species Breakdown'!$D$31:$D$1028,D14,'4 - Species Breakdown'!$K$31:$K$1028)+SUMIF('4 - Species Breakdown'!$AE$31:$AE$1028,D14,'4 - Species Breakdown'!$AF$31:$AF$1028)","v":0},null,"Juniper","Juniperus communis","JUN",{"$f":"SUMIF('4 - Species Breakdown'!$D$31:$D$1028,I14,'4 - Species Breakdown'!$K$31:$K$1028)+SUMIF('4 - Species Breakdown'!$AE$31:$AE$1028,I14,'4 - Species Breakdown'!$AF$31:$AF$1028)","v":0}]
[null,"Field maple","Acer campestre","FDM",{"$f":"SUMIF('4 - Species Breakdown'!$D$31:$D$1028,D15,'4 - Species Breakdown'!$K$31:$K$1028)+SUMIF('4 - Species Breakdown'!$AE$31:$AE$1028,D15,'4 - Species Breakdown'!$AF$31:$AF$1028)","v":0},null,"Yew","Taxus baccata","YEW",{"$f":"SUMIF('4 - Species Breakdown'!$D$31:$D$1028,I15,'4 - Species Breakdown'!$K$31:$K$1028)+SUMIF('4 - Species Breakdown'!$AE$31:$AE$1028,I15,'4 - Species Breakdown'!$AF$31:$AF$1028)","v":0}]
[null,"Common alder","Alnus glutinosa","CAR",{"$f":"SUMIF('4 - Species Breakdown'!$D$31:$D$1028,D16,'4 - Species Breakdown'!$K$31:$K$1028)+SUMIF('4 - Species Breakdown'!$AE$31:$AE$1028,D16,'4 - Species Breakdown'!$AF$31:$AF$1028)","v":0}]
[null,"Silver birch","Betula pendula","SBI",{"$f":"SUMIF('4 - Species Breakdown'!$D$31:$D$1028,D17,'4 - Species Breakdown'!$K$31:$K$1028)+SUMIF('4 - Species Breakdown'!$AE$31:$AE$1028,D17,'4 - Species Breakdown'!$AF$31:$AF$1028)","v":0}]
[null,"Downy birch","Betula pubescens","DBI",{"$f":"SUMIF('4 - Species Breakdown'!$D$31:$D$1028,D18,'4 - Species Breakdown'!$K$31:$K$1028)+SUMIF('4 - Species Breakdown'!$AE$31:$AE$1028,D18,'4 - Species Breakdown'!$AF$31:$AF$1028)","v":0},null,"Non-Native Conifer Species List"]
[null,"Hornbeam","Carpinus betulus","HBM",{"$f":"SUMIF('4 - Species Breakdown'!$D$31:$D$1028,D19,'4 - Species Breakdown'!$K$31:$K$1028)+SUMIF('4 - Species Breakdown'!$AE$31:$AE$1028,D19,'4 - Species Breakdown'!$AF$31:$AF$1028)","v":0},null,"Species Name","Scientific Name","Species Code","Quantity"]
[null,"Hazel","Corylus avellana","HAZ",{"$f":"SUMIF('4 - Species Breakdown'!$D$31:$D$1028,D20,'4 - Species Breakdown'!$K$31:$K$1028)+SUMIF('4 - Species Breakdown'!$AE$31:$AE$1028,D20,'4 - Species Breakdown'!$AF$31:$AF$1028)","v":0},null,"Mixed conifers"," ","MC",{"$f":"SUMIF('4 - Species Breakdown'!$D$31:$D$1028,I20,'4 - Species Breakdown'!$K$31:$K$1028)+SUMIF('4 - Species Breakdown'!$AE$31:$AE$1028,I20,'4 - Species Breakdown'!$AF$31:$AF$1028)","v":0}]
[null,"Midland hawthorn","Crataegus laevigata","MDH",{"$f":"SUMIF('4 - Species Breakdown'!$D$31:$D$1028,D21,'4 - Species Breakdown'!$K$31:$K$1028)+SUMIF('4 - Species Breakdown'!$AE$31:$AE$1028,D21,'4 - Species Breakdown'!$AF$31:$AF$1028)","v":0},null,"Other conifers"," ","XC",{"$f":"SUMIF('4 - Species Breakdown'!$D$31:$D$1028,I21,'4 - Species Breakdown'!$K$31:$K$1028)+SUMIF('4 - Species Breakdown'!$AE$31:$AE$1028,I21,'4 - Species Breakdown'!$AF$31:$AF$1028)","v":0}]
[null,"Hawthorn ","Crataegus monogyna","HAW",{"$f":"SUMIF('4 - Species Breakdown'!$D$31:$D$1028,D22,'4 - Species Breakdown'!$K$31:$K$1028)+SUMIF('4 - Species Breakdown'!$AE$31:$AE$1028,D22,'4 - Species Breakdown'!$AF$31:$AF$1028)","v":0},null,"European Silver fir","Abies alba","ESF",{"$f":"SUMIF('4 - Species Breakdown'!$D$31:$D$1028,I22,'4 - Species Breakdown'!$K$31:$K$1028)+SUMIF('4 - Species Breakdown'!$AE$31:$AE$1028,I22,'4 - Species Breakdown'!$AF$31:$AF$1028)","v":0}]
[null,"Beech","Fagus sylvatica","BE",{"$f":"SUMIF('4 - Species Breakdown'!$D$31:$D$1028,D23,'4 - Species Breakdown'!$K$31:$K$1028)+SUMIF('4 - Species Breakdown'!$AE$31:$AE$1028,D23,'4 - Species Breakdown'!$AF$31:$AF$1028)","v":0},null,"Red (Pacific Silver) fir","Abies amabilis","PSF",{"$f":"SUMIF('4 - Species Breakdown'!$D$31:$D$1028,I23,'4 - Species Breakdown'!$K$31:$K$1028)+SUMIF('4 - Species Breakdown'!$AE$31:$AE$1028,I23,'4 - Species Breakdown'!$AF$31:$AF$1028)","v":0}]
[null,"Holly ","Ilex aquifolium","HOL",{"$f":"SUMIF('4 - Species Breakdown'!$D$31:$D$1028,D24,'4 - Species Breakdown'!$K$31:$K$1028)+SUMIF('4 - Species Breakdown'!$AE$31:$AE$1028,D24,'4 - Species Breakdown'!$AF$31:$AF$1028)","v":0},null,"Bornmullers fir","Abies bornmuelleriana","BMF",{"$f":"SUMIF('4 - Species Breakdown'!$D$31:$D$1028,I24,'4 - Species Breakdown'!$K$31:$K$1028)+SUMIF('4 - Species Breakdown'!$AE$31:$AE$1028,I24,'4 - Species Breakdown'!$AF$31:$AF$1028)","v":0}]
[null,"Crab apple","Malus sylvestris","CAP",{"$f":"SUMIF('4 - Species Breakdown'!$D$31:$D$1028,D25,'4 - Species Breakdown'!$K$31:$K$1028)+SUMIF('4 - Species Breakdown'!$AE$31:$AE$1028,D25,'4 - Species Breakdown'!$AF$31:$AF$1028)","v":0},null,"Grecian fir","Abies cephalonica","GKF",{"$f":"SUMIF('4 - Species Breakdown'!$D$31:$D$1028,I25,'4 - Species Breakdown'!$K$31:$K$1028)+SUMIF('4 - Species Breakdown'!$AE$31:$AE$1028,I25,'4 - Species Breakdown'!$AF$31:$AF$1028)","v":0}]
[null,"Native black poplar","Populus nigra subsp. betulifolia","NPO",{"$f":"SUMIF('4 - Species Breakdown'!$D$31:$D$1028,D26,'4 - Species Breakdown'!$K$31:$K$1028)+SUMIF('4 - Species Breakdown'!$AE$31:$AE$1028,D26,'4 - Species Breakdown'!$AF$31:$AF$1028)","v":0},null,"Grand fir","Abies grandis","GF",{"$f":"SUMIF('4 - Species Breakdown'!$D$31:$D$1028,I26,'4 - Species Breakdown'!$K$31:$K$1028)+SUMIF('4 - Species Breakdown'!$AE$31:$AE$1028,I26,'4 - Species Breakdown'!$AF$31:$AF$1028)","v":0}]
[null,"Grey poplar","Populus x canescens*","GPO",{"$f":"SUMIF('4 - Species Breakdown'!$D$31:$D$1028,D27,'4 - Species Breakdown'!$K$31:$K$1028)+SUMIF('4 - Species Breakdown'!$AE$31:$AE$1028,D27,'4 - Species Breakdown'!$AF$31:$AF$1028)","v":0},null,"Nordmann fir","Abies nordmanniana","NMF",{"$f":"SUMIF('4 - Species Breakdown'!$D$31:$D$1028,I27,'4 - Species Breakdown'!$K$31:$K$1028)+SUMIF('4 - Species Breakdown'!$AE$31:$AE$1028,I27,'4 - Species Breakdown'!$AF$31:$AF$1028)","v":0}]
[null,"Aspen","Populus tremula","ASP",{"$f":"SUMIF('4 - Species Breakdown'!$D$31:$D$1028,D28,'4 - Species Breakdown'!$K$31:$K$1028)+SUMIF('4 - Species Breakdown'!$AE$31:$AE$1028,D28,'4 - Species Breakdown'!$AF$31:$AF$1028)","v":0},null,"Noble fir","Abies procera","NF",{"$f":"SUMIF('4 - Species Breakdown'!$D$31:$D$1028,I28,'4 - Species Breakdown'!$K$31:$K$1028)+SUMIF('4 - Species Breakdown'!$AE$31:$AE$1028,I28,'4 - Species Breakdown'!$AF$31:$AF$1028)","v":0}]
[null,"Wild cherry/gean","Prunus avium","WCH",{"$f":"SUMIF('4 - Species Breakdown'!$D$31:$D$1028,D29,'4 - Species Breakdown'!$K$31:$K$1028)+SUMIF('4 - Species Breakdown'!$AE$31:$AE$1028,D29,'4 - Species Breakdown'!$AF$31:$AF$1028)","v":0},null,"Other firs (Abies)","Abies spp.","XF",{"$f":"SUMIF('4 - Species Breakdown'!$D$31:$D$1028,I29,'4 - Species Breakdown'!$K$31:$K$1028)+SUMIF('4 - Species Breakdown'!$AE$31:$AE$1028,I29,'4 - Species Breakdown'!$AF$31:$AF$1028)","v":0}]
[null,"Bird cherry","Prunus padus","BCH",{"$f":"SUMIF('4 - Species Breakdown'!$D$31:$D$1028,D30,'4 - Species Breakdown'!$K$31:$K$1028)+SUMIF('4 - Species Breakdown'!$AE$31:$AE$1028,D30,'4 - Species Breakdown'!$AF$31:$AF$1028)","v":0},null,"Atlas cedar","Cedrus atlantica","ACR",{"$f":"SUMIF('4 - Species Breakdown'!$D$31:$D$1028,I30,'4 - Species Breakdown'!$K$31:$K$1028)+SUMIF('4 - Species Breakdown'!$AE$31:$AE$1028,I30,'4 - Species Breakdown'!$AF$31:$AF$1028)","v":0}]
[null,"Blackthorn","Prunus spinosa","SLO",{"$f":"SUMIF('4 - Species Breakdown'!$D$31:$D$1028,D31,'4 - Species Breakdown'!$K$31:$K$1028)+SUMIF('4 - Species Breakdown'!$AE$31:$AE$1028,D31,'4 - Species Breakdown'!$AF$31:$AF$1028)","v":0},null,"Cedar of Lebanon","Cedrus libani","LCR",{"$f":"SUMIF('4 - Species Breakdown'!$D$31:$D$1028,I31,'4 - Species Breakdown'!$K$31:$K$1028)+SUMIF('4 - Species Breakdown'!$AE$31:$AE$1028,I31,'4 - Species Breakdown'!$AF$31:$AF$1028)","v":0}]
[null,"Pedunculate oak ","Quercus robur","POK",{"$f":"SUMIF('4 - Species Breakdown'!$D$31:$D$1028,D32,'4 - Species Breakdown'!$K$31:$K$1028)+SUMIF('4 - Species Breakdown'!$AE$31:$AE$1028,D32,'4 - Species Breakdown'!$AF$31:$AF$1028)","v":0},null,"Other cedar","Cedrus spp.","XCD",{"$f":"SUMIF('4 - Species Breakdown'!$D$31:$D$1028,I32,'4 - Species Breakdown'!$K$31:$K$1028)+SUMIF('4 - Species Breakdown'!$AE$31:$AE$1028,I32,'4 - Species Breakdown'!$AF$31:$AF$1028)","v":0}]
[null,"Sessile oak ","Quercus petrea","SOK",{"$f":"SUMIF('4 - Species Breakdown'!$D$31:$D$1028,D33,'4 - Species Breakdown'!$K$31:$K$1028)+SUMIF('4 - Species Breakdown'!$AE$31:$AE$1028,D33,'4 - Species Breakdown'!$AF$31:$AF$1028)","v":0},null,"Lawsons cypress","Chamaecyparis lawsoniana","LC",{"$f":"SUMIF('4 - Species Breakdown'!$D$31:$D$1028,I33,'4 - Species Breakdown'!$K$31:$K$1028)+SUMIF('4 - Species Breakdown'!$AE$31:$AE$1028,I33,'4 - Species Breakdown'!$AF$31:$AF$1028)","v":0}]
[null,"Purging buckthorn","Rhamnus cathartica","PGB",{"$f":"SUMIF('4 - Species Breakdown'!$D$31:$D$1028,D34,'4 - Species Breakdown'!$K$31:$K$1028)+SUMIF('4 - Species Breakdown'!$AE$31:$AE$1028,D34,'4 - Species Breakdown'!$AF$31:$AF$1028)","v":0},null,"Japanese cedar","Cryptomeria japonica","JCR",{"$f":"SUMIF('4 - Species Breakdown'!$D$31:$D$1028,I34,'4 - Species Breakdown'!$K$31:$K$1028)+SUMIF('4 - Species Breakdown'!$AE$31:$AE$1028,I34,'4 - Species Breakdown'!$AF$31:$AF$1028)","v":0}]
[null,"White willow","Salix alba","WWI",{"$f":"SUMIF('4 - Species Breakdown'!$D$31:$D$1028,D35,'4 - Species Breakdown'!$K$31:$K$1028)+SUMIF('4 - Species Breakdown'!$AE$31:$AE$1028,D35,'4 - Species Breakdown'!$AF$31:$AF$1028)","v":0},null,"Leyland cypress","Cupressocyparis leylandii","LEC",{"$f":"SUMIF('4 - Species Breakdown'!$D$31:$D$1028,I35,'4 - Species Breakdown'!$K$31:$K$1028)+SUMIF('4 - Species Breakdown'!$AE$31:$AE$1028,I35,'4 - Species Breakdown'!$AF$31:$AF$1028)","v":0}]
[null,"Goat willow","Salix caprea","GOW",{"$f":"SUMIF('4 - Species Breakdown'!$D$31:$D$1028,D36,'4 - Species Breakdown'!$K$31:$K$1028)+SUMIF('4 - Species Breakdown'!$AE$31:$AE$1028,D36,'4 - Species Breakdown'!$AF$31:$AF$1028)","v":0},null,"Norway spruce","Picea abies","NS",{"$f":"SUMIF('4 - Species Breakdown'!$D$31:$D$1028,I36,'4 - Species Breakdown'!$K$31:$K$1028)+SUMIF('4 - Species Breakdown'!$AE$31:$AE$1028,I36,'4 - Species Breakdown'!$AF$31:$AF$1028)","v":0}]
[null,"Grey willow","Salix cinerea","GRW",{"$f":"SUMIF('4 - Species Breakdown'!$D$31:$D$1028,D37,'4 - Species Breakdown'!$K$31:$K$1028)+SUMIF('4 - Species Breakdown'!$AE$31:$AE$1028,D37,'4 - Species Breakdown'!$AF$31:$AF$1028)","v":0},null,"Serbian spruce","Picea omorika","OMS",{"$f":"SUMIF('4 - Species Breakdown'!$D$31:$D$1028,I37,'4 - Species Breakdown'!$K$31:$K$1028)+SUMIF('4 - Species Breakdown'!$AE$31:$AE$1028,I37,'4 - Species Breakdown'!$AF$31:$AF$1028)","v":0}]
[null,"Crack willow","Salix fragilis","CWI",{"$f":"SUMIF('4 - Species Breakdown'!$D$31:$D$1028,D38,'4 - Species Breakdown'!$K$31:$K$1028)+SUMIF('4 - Species Breakdown'!$AE$31:$AE$1028,D38,'4 - Species Breakdown'!$AF$31:$AF$1028)","v":0},null,"Oriental spruce","Picea orientalis","ORS",{"$f":"SUMIF('4 - Species Breakdown'!$D$31:$D$1028,I38,'4 - Species Breakdown'!$K$31:$K$1028)+SUMIF('4 - Species Breakdown'!$AE$31:$AE$1028,I38,'4 - Species Breakdown'!$AF$31:$AF$1028)","v":0}]
[null,"Bay willow","Salix pentandra","BWI",{"$f":"SUMIF('4 - Species Breakdown'!$D$31:$D$1028,D39,'4 - Species Breakdown'!$K$31:$K$1028)+SUMIF('4 - Species Breakdown'!$AE$31:$AE$1028,D39,'4 - Species Breakdown'!$AF$31:$AF$1028)","v":0},null,"Sitka spruce","Picea sitchensis","SS",{"$f":"SUMIF('4 - Species Breakdown'!$D$31:$D$1028,I39,'4 - Species Breakdown'!$K$31:$K$1028)+SUMIF('4 - Species Breakdown'!$AE$31:$AE$1028,I39,'4 - Species Breakdown'!$AF$31:$AF$1028)","v":0}]
[null,"Elder","Sambucus nigra","ELD",{"$f":"SUMIF('4 - Species Breakdown'!$D$31:$D$1028,D40,'4 - Species Breakdown'!$K$31:$K$1028)+SUMIF('4 - Species Breakdown'!$AE$31:$AE$1028,D40,'4 - Species Breakdown'!$AF$31:$AF$1028)","v":0},null,"Other spruces","Picea spp.","XS",{"$f":"SUMIF('4 - Species Breakdown'!$D$31:$D$1028,I40,'4 - Species Breakdown'!$K$31:$K$1028)+SUMIF('4 - Species Breakdown'!$AE$31:$AE$1028,I40,'4 - Species Breakdown'!$AF$31:$AF$1028)","v":0}]
[null,"Rowan","Sorbus aucuparia","ROW",{"$f":"SUMIF('4 - Species Breakdown'!$D$31:$D$1028,D41,'4 - Species Breakdown'!$K$31:$K$1028)+SUMIF('4 - Species Breakdown'!$AE$31:$AE$1028,D41,'4 - Species Breakdown'!$AF$31:$AF$1028)","v":0},null,"Armand's pine","Pinus armandii","PAR",{"$f":"SUMIF('4 - Species Breakdown'!$D$31:$D$1028,I41,'4 - Species Breakdown'!$K$31:$K$1028)+SUMIF('4 - Species Breakdown'!$AE$31:$AE$1028,I41,'4 - Species Breakdown'!$AF$31:$AF$1028)","v":0}]
[null,"Whitebeam","Sorbus aria","WBM",{"$f":"SUMIF('4 - Species Breakdown'!$D$31:$D$1028,D42,'4 - Species Breakdown'!$K$31:$K$1028)+SUMIF('4 - Species Breakdown'!$AE$31:$AE$1028,D42,'4 - Species Breakdown'!$AF$31:$AF$1028)","v":0},null,"Mexican white pine","Pinus ayacahuite","PAY",{"$f":"SUMIF('4 - Species Breakdown'!$D$31:$D$1028,I42,'4 - Species Breakdown'!$K$31:$K$1028)+SUMIF('4 - Species Breakdown'!$AE$31:$AE$1028,I42,'4 - Species Breakdown'!$AF$31:$AF$1028)","v":0}]
[null,"Wild service tree","Sorbus torminalis","WST",{"$f":"SUMIF('4 - Species Breakdown'!$D$31:$D$1028,D43,'4 - Species Breakdown'!$K$31:$K$1028)+SUMIF('4 - Species Breakdown'!$AE$31:$AE$1028,D43,'4 - Species Breakdown'!$AF$31:$AF$1028)","v":0},null,"Calabrian pine","Pinus brutia","PBR",{"$f":"SUMIF('4 - Species Breakdown'!$D$31:$D$1028,I43,'4 - Species Breakdown'!$K$31:$K$1028)+SUMIF('4 - Species Breakdown'!$AE$31:$AE$1028,I43,'4 - Species Breakdown'!$AF$31:$AF$1028)","v":0}]
[null,"Small-leaved lime","Tilia cordata","SLI",{"$f":"SUMIF('4 - Species Breakdown'!$D$31:$D$1028,D44,'4 - Species Breakdown'!$K$31:$K$1028)+SUMIF('4 - Species Breakdown'!$AE$31:$AE$1028,D44,'4 - Species Breakdown'!$AF$31:$AF$1028)","v":0},null,"Lodgepole pine","Pinus contorta","LP",{"$f":"SUMIF('4 - Species Breakdown'!$D$31:$D$1028,I44,'4 - Species Breakdown'!$K$31:$K$1028)+SUMIF('4 - Species Breakdown'!$AE$31:$AE$1028,I44,'4 - Species Breakdown'!$AF$31:$AF$1028)","v":0}]
[null,"Common lime","Tilia europaea","CLI",{"$f":"SUMIF('4 - Species Breakdown'!$D$31:$D$1028,D45,'4 - Species Breakdown'!$K$31:$K$1028)+SUMIF('4 - Species Breakdown'!$AE$31:$AE$1028,D45,'4 - Species Breakdown'!$AF$31:$AF$1028)","v":0},null,"Slash pine","Pinus ellottii","PEL",{"$f":"SUMIF('4 - Species Breakdown'!$D$31:$D$1028,I45,'4 - Species Breakdown'!$K$31:$K$1028)+SUMIF('4 - Species Breakdown'!$AE$31:$AE$1028,I45,'4 - Species Breakdown'!$AF$31:$AF$1028)","v":0}]
[null,"Large-leaved lime","Tilia platyphyllos","LLI",{"$f":"SUMIF('4 - Species Breakdown'!$D$31:$D$1028,D46,'4 - Species Breakdown'!$K$31:$K$1028)+SUMIF('4 - Species Breakdown'!$AE$31:$AE$1028,D46,'4 - Species Breakdown'!$AF$31:$AF$1028)","v":0},null,"Korean pine","Pinus koreana","PKO",{"$f":"SUMIF('4 - Species Breakdown'!$D$31:$D$1028,I46,'4 - Species Breakdown'!$K$31:$K$1028)+SUMIF('4 - Species Breakdown'!$AE$31:$AE$1028,I46,'4 - Species Breakdown'!$AF$31:$AF$1028)","v":0}]
[null,"Wych elm","Ulmus glabra","WEM",{"$f":"SUMIF('4 - Species Breakdown'!$D$31:$D$1028,D47,'4 - Species Breakdown'!$K$31:$K$1028)+SUMIF('4 - Species Breakdown'!$AE$31:$AE$1028,D47,'4 - Species Breakdown'!$AF$31:$AF$1028)","v":0},null,"Western white pine","Pinus monticola","PMO",{"$f":"SUMIF('4 - Species Breakdown'!$D$31:$D$1028,I47,'4 - Species Breakdown'!$K$31:$K$1028)+SUMIF('4 - Species Breakdown'!$AE$31:$AE$1028,I47,'4 - Species Breakdown'!$AF$31:$AF$1028)","v":0}]
[null,"Small-leaved elm","Ulmus minor","PEM",{"$f":"SUMIF('4 - Species Breakdown'!$D$31:$D$1028,D48,'4 - Species Breakdown'!$K$31:$K$1028)+SUMIF('4 - Species Breakdown'!$AE$31:$AE$1028,D48,'4 - Species Breakdown'!$AF$31:$AF$1028)","v":0},null,"Bishop pine","Pinus muricata","BIP",{"$f":"SUMIF('4 - Species Breakdown'!$D$31:$D$1028,I48,'4 - Species Breakdown'!$K$31:$K$1028)+SUMIF('4 - Species Breakdown'!$AE$31:$AE$1028,I48,'4 - Species Breakdown'!$AF$31:$AF$1028)","v":0}]
[null,"English elm","Ulmus procera","EEM",{"$f":"SUMIF('4 - Species Breakdown'!$D$31:$D$1028,D49,'4 - Species Breakdown'!$K$31:$K$1028)+SUMIF('4 - Species Breakdown'!$AE$31:$AE$1028,D49,'4 - Species Breakdown'!$AF$31:$AF$1028)","v":0},null,"Corsican pine","Pinus nigra var maritima","CP",{"$f":"SUMIF('4 - Species Breakdown'!$D$31:$D$1028,I49,'4 - Species Breakdown'!$K$31:$K$1028)+SUMIF('4 - Species Breakdown'!$AE$31:$AE$1028,I49,'4 - Species Breakdown'!$AF$31:$AF$1028)","v":0}]
[null,null,null,null,null,null,"Austrian pine","Pinus nigra var nigra","AUP",{"$f":"SUMIF('4 - Species Breakdown'!$D$31:$D$1028,I50,'4 - Species Breakdown'!$K$31:$K$1028)+SUMIF('4 - Species Breakdown'!$AE$31:$AE$1028,I50,'4 - Species Breakdown'!$AF$31:$AF$1028)","v":0}]
[null,null,null,null,null,null,"Macedonian pine","Pinus peuce","MCP",{"$f":"SUMIF('4 - Species Breakdown'!$D$31:$D$1028,I51,'4 - Species Breakdown'!$K$31:$K$1028)+SUMIF('4 - Species Breakdown'!$AE$31:$AE$1028,I51,'4 - Species Breakdown'!$AF$31:$AF$1028)","v":0}]
[null,"Non-Native Broadleaf Species List",null,null,null,null,"Maritime pine","Pinus pinaster","MAP",{"$f":"SUMIF('4 - Species Breakdown'!$D$31:$D$1028,I52,'4 - Species Breakdown'!$K$31:$K$1028)+SUMIF('4 - Species Breakdown'!$AE$31:$AE$1028,I52,'4 - Species Breakdown'!$AF$31:$AF$1028)","v":0}]
[null,"Species Name","Scientific Name","Species Code","Quantity",null,"Ponderosa pine","Pinus ponderosa","PDP",{"$f":"SUMIF('4 - Species Breakdown'!$D$31:$D$1028,I53,'4 - Species Breakdown'!$K$31:$K$1028)+SUMIF('4 - Species Breakdown'!$AE$31:$AE$1028,I53,'4 - Species Breakdown'!$AF$31:$AF$1028)","v":0}]
[null,"Mixed non-native broadleaves"," ","MB",{"$f":"SUMIF('4 - Species Breakdown'!$D$31:$D$1028,D54,'4 - Species Breakdown'!$K$31:$K$1028)+SUMIF('4 - Species Breakdown'!$AE$31:$AE$1028,D54,'4 - Species Breakdown'!$AF$31:$AF$1028)","v":0},null,"Monterey pine","Pinus radiata","RAP",{"$f":"SUMIF('4 - Species Breakdown'!$D$31:$D$1028,I54,'4 - Species Breakdown'!$K$31:$K$1028)+SUMIF('4 - Species Breakdown'!$AE$31:$AE$1028,I54,'4 - Species Breakdown'!$AF$31:$AF$1028)","v":0}]
[null,"Other non-native broadleaves"," ","XB",{"$f":"SUMIF('4 - Species Breakdown'!$D$31:$D$1028,D55,'4 - Species Breakdown'!$K$31:$K$1028)+SUMIF('4 - Species Breakdown'!$AE$31:$AE$1028,D55,'4 - Species Breakdown'!$AF$31:$AF$1028)","v":0},null,"Other pines","Pinus spp.","XP",{"$f":"SUMIF('4 - Species Breakdown'!$D$31:$D$1028,I55,'4 - Species Breakdown'!$K$31:$K$1028)+SUMIF('4 - Species Breakdown'!$AE$31:$AE$1028,I55,'4 - Species Breakdown'!$AF$31:$AF$1028)","v":0}]
[null,"Big-leaf maple","Acer macrophyllum","BLM",{"$f":"SUMIF('4 - Species Breakdown'!$D$31:$D$1028,D56,'4 - Species Breakdown'!$K$31:$K$1028)+SUMIF('4 - Species Breakdown'!$AE$31:$AE$1028,D56,'4 - Species Breakdown'!$AF$31:$AF$1028)","v":0},null,"Weymouth pine","Pinus strobus","WEP",{"$f":"SUMIF('4 - Species Breakdown'!$D$31:$D$1028,I56,'4 - Species Breakdown'!$K$31:$K$1028)+SUMIF('4 - Species Breakdown'!$AE$31:$AE$1028,I56,'4 - Species Breakdown'!$AF$31:$AF$1028)","v":0}]
[null,"Norway maple","Acer platanoides","NOM",{"$f":"SUMIF('4 - Species Breakdown'!$D$31:$D$1028,D57,'4 - Species Breakdown'!$K$31:$K$1028)+SUMIF('4 - Species Breakdown'!$AE$31:$AE$1028,D57,'4 - Species Breakdown'!$AF$31:$AF$1028)","v":0},null,"Loblolly pine","Pinus taeda","LOP",{"$f":"SUMIF('4 - Species Breakdown'!$D$31:$D$1028,I57,'4 - Species Breakdown'!$K$31:$K$1028)+SUMIF('4 - Species Breakdown'!$AE$31:$AE$1028,I57,'4 - Species Breakdown'!$AF$31:$AF$1028)","v":0}]
[null,"Silver maple","Acer saccharinum","ASA",{"$f":"SUMIF('4 - Species Breakdown'!$D$31:$D$1028,D58,'4 - Species Breakdown'!$K$31:$K$1028)+SUMIF('4 - Species Breakdown'!$AE$31:$AE$1028,D58,'4 - Species Breakdown'!$AF$31:$AF$1028)","v":0},null,"Mountain pine","Pinus uncinata","MOP",{"$f":"SUMIF('4 - Species Breakdown'!$D$31:$D$1028,I58,'4 - Species Breakdown'!$K$31:$K$1028)+SUMIF('4 - Species Breakdown'!$AE$31:$AE$1028,I58,'4 - Species Breakdown'!$AF$31:$AF$1028)","v":0}]
[null,"Italian alder","Alnus cordata","IAR",{"$f":"SUMIF('4 - Species Breakdown'!$D$31:$D$1028,D59,'4 - Species Breakdown'!$K$31:$K$1028)+SUMIF('4 - Species Breakdown'!$AE$31:$AE$1028,D59,'4 - Species Breakdown'!$AF$31:$AF$1028)","v":0},null,"Bhutan pine","Pinus wallichiana","PWA",{"$f":"SUMIF('4 - Species Breakdown'!$D$31:$D$1028,I59,'4 - Species Breakdown'!$K$31:$K$1028)+SUMIF('4 - Species Breakdown'!$AE$31:$AE$1028,I59,'4 - Species Breakdown'!$AF$31:$AF$1028)","v":0}]
[null,"Grey alder","Alnus incana","GAR",{"$f":"SUMIF('4 - Species Breakdown'!$D$31:$D$1028,D60,'4 - Species Breakdown'!$K$31:$K$1028)+SUMIF('4 - Species Breakdown'!$AE$31:$AE$1028,D60,'4 - Species Breakdown'!$AF$31:$AF$1028)","v":0},null,"Yunnan pine","Pinus yunnanensis","PYU",{"$f":"SUMIF('4 - Species Breakdown'!$D$31:$D$1028,I60,'4 - Species Breakdown'!$K$31:$K$1028)+SUMIF('4 - Species Breakdown'!$AE$31:$AE$1028,I60,'4 - Species Breakdown'!$AF$31:$AF$1028)","v":0}]
[null,"Red alder","Alnus rubra","RAR",{"$f":"SUMIF('4 - Species Breakdown'!$D$31:$D$1028,D61,'4 - Species Breakdown'!$K$31:$K$1028)+SUMIF('4 - Species Breakdown'!$AE$31:$AE$1028,D61,'4 - Species Breakdown'!$AF$31:$AF$1028)","v":0},null,"Douglas fir","Pseudotsuga menziesii","DF",{"$f":"SUMIF('4 - Species Breakdown'!$D$31:$D$1028,I61,'4 - Species Breakdown'!$K$31:$K$1028)+SUMIF('4 - Species Breakdown'!$AE$31:$AE$1028,I61,'4 - Species Breakdown'!$AF$31:$AF$1028)","v":0}]
[null,"Green alder","Alnus viridis","VAR",{"$f":"SUMIF('4 - Species Breakdown'!$D$31:$D$1028,D62,'4 - Species Breakdown'!$K$31:$K$1028)+SUMIF('4 - Species Breakdown'!$AE$31:$AE$1028,D62,'4 - Species Breakdown'!$AF$31:$AF$1028)","v":0},null,"Coast redwood","Sequoia sempervirens","RSQ",{"$f":"SUMIF('4 - Species Breakdown'!$D$31:$D$1028,I62,'4 - Species Breakdown'!$K$31:$K$1028)+SUMIF('4 - Species Breakdown'!$AE$31:$AE$1028,I62,'4 - Species Breakdown'!$AF$31:$AF$1028)","v":0}]
[null,"Paper birch","Betula papyrifera","PBI",{"$f":"SUMIF('4 - Species Breakdown'!$D$31:$D$1028,D63,'4 - Species Breakdown'!$K$31:$K$1028)+SUMIF('4 - Species Breakdown'!$AE$31:$AE$1028,D63,'4 - Species Breakdown'!$AF$31:$AF$1028)","v":0},null,"Wellingtonia","Sequoiadendron giganteum","WSQ",{"$f":"SUMIF('4 - Species Breakdown'!$D$31:$D$1028,I63,'4 - Species Breakdown'!$K$31:$K$1028)+SUMIF('4 - Species Breakdown'!$AE$31:$AE$1028,I63,'4 - Species Breakdown'!$AF$31:$AF$1028)","v":0}]
[null,"Other birches","Betula spp.","XBI",{"$f":"SUMIF('4 - Species Breakdown'!$D$31:$D$1028,D64,'4 - Species Breakdown'!$K$31:$K$1028)+SUMIF('4 - Species Breakdown'!$AE$31:$AE$1028,D64,'4 - Species Breakdown'!$AF$31:$AF$1028)","v":0},null,"Western red cedar","Thuja plicata","WRC",{"$f":"SUMIF('4 - Species Breakdown'!$D$31:$D$1028,I64,'4 - Species Breakdown'!$K$31:$K$1028)+SUMIF('4 - Species Breakdown'!$AE$31:$AE$1028,I64,'4 - Species Breakdown'!$AF$31:$AF$1028)","v":0}]
[null,"Shagbark hickory","Carya ovata","COV",{"$f":"SUMIF('4 - Species Breakdown'!$D$31:$D$1028,D65,'4 - Species Breakdown'!$K$31:$K$1028)+SUMIF('4 - Species Breakdown'!$AE$31:$AE$1028,D65,'4 - Species Breakdown'!$AF$31:$AF$1028)","v":0},null,"Western hemlock","Tsuga heterophylla","WH",{"$f":"SUMIF('4 - Species Breakdown'!$D$31:$D$1028,I65,'4 - Species Breakdown'!$K$31:$K$1028)+SUMIF('4 - Species Breakdown'!$AE$31:$AE$1028,I65,'4 - Species Breakdown'!$AF$31:$AF$1028)","v":0}]
[null,"Cider gum","Eucalyptus gunnii","CDE",{"$f":"SUMIF('4 - Species Breakdown'!$D$31:$D$1028,D66,'4 - Species Breakdown'!$K$31:$K$1028)+SUMIF('4 - Species Breakdown'!$AE$31:$AE$1028,D66,'4 - Species Breakdown'!$AF$31:$AF$1028)","v":0}]
[null,"Shining gum","Eucalyptus nitens","SHE",{"$f":"SUMIF('4 - Species Breakdown'!$D$31:$D$1028,D67,'4 - Species Breakdown'!$K$31:$K$1028)+SUMIF('4 - Species Breakdown'!$AE$31:$AE$1028,D67,'4 - Species Breakdown'!$AF$31:$AF$1028)","v":0}]
[null,"Other Eucalyptus","Eucalyptus spp.","EUC",{"$f":"SUMIF('4 - Species Breakdown'!$D$31:$D$1028,D68,'4 - Species Breakdown'!$K$31:$K$1028)+SUMIF('4 - Species Breakdown'!$AE$31:$AE$1028,D68,'4 - Species Breakdown'!$AF$31:$AF$1028)","v":0},null,"Naturalised Conifer Species List"]
[null,"Oriental beech","Fagus orientalis","FOR",{"$f":"SUMIF('4 - Species Breakdown'!$D$31:$D$1028,D69,'4 - Species Breakdown'!$K$31:$K$1028)+SUMIF('4 - Species Breakdown'!$AE$31:$AE$1028,D69,'4 - Species Breakdown'!$AF$31:$AF$1028)","v":0},null,"Species Name","Scientific Name","Species Code","Quantity"]
[null,"White ash","Fraxinus americana","WAH",{"$f":"SUMIF('4 - Species Breakdown'!$D$31:$D$1028,D70,'4 - Species Breakdown'!$K$31:$K$1028)+SUMIF('4 - Species Breakdown'!$AE$31:$AE$1028,D70,'4 - Species Breakdown'!$AF$31:$AF$1028)","v":0},null,"Scots pine","Pinus sylvestris","SP",{"$f":"SUMIF('4 - Species Breakdown'!$D$31:$D$1028,I70,'4 - Species Breakdown'!$K$31:$K$1028)+SUMIF('4 - Species Breakdown'!$AE$31:$AE$1028,I70,'4 - Species Breakdown'!$AF$31:$AF$1028)","v":0}]
[null,"Narrow-leafed ash","Fraxinus angustifolia","NAH",{"$f":"SUMIF('4 - Species Breakdown'!$D$31:$D$1028,D71,'4 - Species Breakdown'!$K$31:$K$1028)+SUMIF('4 - Species Breakdown'!$AE$31:$AE$1028,D71,'4 - Species Breakdown'!$AF$31:$AF$1028)","v":0}]
[null,"Red ash","Fraxinus pennsylvanica","FPE",{"$f":"SUMIF('4 - Species Breakdown'!$D$31:$D$1028,D72,'4 - Species Breakdown'!$K$31:$K$1028)+SUMIF('4 - Species Breakdown'!$AE$31:$AE$1028,D72,'4 - Species Breakdown'!$AF$31:$AF$1028)","v":0}]
[null,"Black walnut","Juglans nigra","BWA",{"$f":"SUMIF('4 - Species Breakdown'!$D$31:$D$1028,D73,'4 - Species Breakdown'!$K$31:$K$1028)+SUMIF('4 - Species Breakdown'!$AE$31:$AE$1028,D73,'4 - Species Breakdown'!$AF$31:$AF$1028)","v":0},null,"Native Woody Shrubs List"]
[null,"Other walnut","Juglans spp.","XWA",{"$f":"SUMIF('4 - Species Breakdown'!$D$31:$D$1028,D74,'4 - Species Breakdown'!$K$31:$K$1028)+SUMIF('4 - Species Breakdown'!$AE$31:$AE$1028,D74,'4 - Species Breakdown'!$AF$31:$AF$1028)","v":0},null,"Species Name","Scientific Name","Species Code","Quantity"]
[null,"Tulip tree","Liriodendron tulipifera","TUL",{"$f":"SUMIF('4 - Species Breakdown'!$D$31:$D$1028,D75,'4 - Species Breakdown'!$K$31:$K$1028)+SUMIF('4 - Species Breakdown'!$AE$31:$AE$1028,D75,'4 - Species Breakdown'!$AF$31:$AF$1028)","v":0},null,"Other native woody shrubs",null,"WSH",{"$f":"SUMIF('4 - Species Breakdown'!$D$31:$D$1028,I75,'4 - Species Breakdown'!$K$31:$K$1028)+SUMIF('4 - Species Breakdown'!$AE$31:$AE$1028,I75,'4 - Species Breakdown'!$AF$31:$AF$1028)","v":0}]
[null,"Raoul/Rauli","Nothofagus alpina","RAN",{"$f":"SUMIF('4 - Species Breakdown'!$D$31:$D$1028,D76,'4 - Species Breakdown'!$K$31:$K$1028)+SUMIF('4 - Species Breakdown'!$AE$31:$AE$1028,D76,'4 - Species Breakdown'!$AF$31:$AF$1028)","v":0},null,"Box","Buxus spp.","BOX",{"$f":"SUMIF('4 - Species Breakdown'!$D$31:$D$1028,I76,'4 - Species Breakdown'!$K$31:$K$1028)+SUMIF('4 - Species Breakdown'!$AE$31:$AE$1028,I76,'4 - Species Breakdown'!$AF$31:$AF$1028)","v":0}]
[null,"Roble","Nothofagus obliqua","RON",{"$f":"SUMIF('4 - Species Breakdown'!$D$31:$D$1028,D77,'4 - Species Breakdown'!$K$31:$K$1028)+SUMIF('4 - Species Breakdown'!$AE$31:$AE$1028,D77,'4 - Species Breakdown'!$AF$31:$AF$1028)","v":0},null,"Dogwood","Cornus spp.","DOG",{"$f":"SUMIF('4 - Species Breakdown'!$D$31:$D$1028,I77,'4 - Species Breakdown'!$K$31:$K$1028)+SUMIF('4 - Species Breakdown'!$AE$31:$AE$1028,I77,'4 - Species Breakdown'!$AF$31:$AF$1028)","v":0}]
[null,"Lenga","Nothofagus pumilio","LEN",{"$f":"SUMIF('4 - Species Breakdown'!$D$31:$D$1028,D78,'4 - Species Breakdown'!$K$31:$K$1028)+SUMIF('4 - Species Breakdown'!$AE$31:$AE$1028,D78,'4 - Species Breakdown'!$AF$31:$AF$1028)","v":0},null,"Spurge laurel","Daphne laureola","SGL",{"$f":"SUMIF('4 - Species Breakdown'!$D$31:$D$1028,I78,'4 - Species Breakdown'!$K$31:$K$1028)+SUMIF('4 - Species Breakdown'!$AE$31:$AE$1028,I78,'4 - Species Breakdown'!$AF$31:$AF$1028)","v":0}]
[null,"Other Nothofagus","Nothofagus spp.","XNO",{"$f":"SUMIF('4 - Species Breakdown'!$D$31:$D$1028,D79,'4 - Species Breakdown'!$K$31:$K$1028)+SUMIF('4 - Species Breakdown'!$AE$31:$AE$1028,D79,'4 - Species Breakdown'!$AF$31:$AF$1028)","v":0},null,"Spindle","Euonymus europaeus","SPI",{"$f":"SUMIF('4 - Species Breakdown'!$D$31:$D$1028,I79,'4 - Species Breakdown'!$K$31:$K$1028)+SUMIF('4 - Species Breakdown'!$AE$31:$AE$1028,I79,'4 - Species Breakdown'!$AF$31:$AF$1028)","v":0}]
[null,"London plane","Platanus x acerifolia*","LPL",{"$f":"SUMIF('4 - Species Breakdown'!$D$31:$D$1028,D80,'4 - Species Breakdown'!$K$31:$K$1028)+SUMIF('4 - Species Breakdown'!$AE$31:$AE$1028,D80,'4 - Species Breakdown'!$AF$31:$AF$1028)","v":0},null,"Wild privet","Ligustrum vulgare","WPI",{"$f":"SUMIF('4 - Species Breakdown'!$D$31:$D$1028,I80,'4 - Species Breakdown'!$K$31:$K$1028)+SUMIF('4 - Species Breakdown'!$AE$31:$AE$1028,I80,'4 - Species Breakdown'!$AF$31:$AF$1028)","v":0}]
[null,"Plane spp","Platanus spp.","XPL",{"$f":"SUMIF('4 - Species Breakdown'!$D$31:$D$1028,D81,'4 - Species Breakdown'!$K$31:$K$1028)+SUMIF('4 - Species Breakdown'!$AE$31:$AE$1028,D81,'4 - Species Breakdown'!$AF$31:$AF$1028)","v":0},null,"Eared willow","Salix aurita","EAW",{"$f":"SUMIF('4 - Species Breakdown'!$D$31:$D$1028,I81,'4 - Species Breakdown'!$K$31:$K$1028)+SUMIF('4 - Species Breakdown'!$AE$31:$AE$1028,I81,'4 - Species Breakdown'!$AF$31:$AF$1028)","v":0}]
[null,"White poplar","Populus alba","APO",{"$f":"SUMIF('4 - Species Breakdown'!$D$31:$D$1028,D82,'4 - Species Breakdown'!$K$31:$K$1028)+SUMIF('4 - Species Breakdown'!$AE$31:$AE$1028,D82,'4 - Species Breakdown'!$AF$31:$AF$1028)","v":0},null,"Purple willow","Salix purpurea","PUW",{"$f":"SUMIF('4 - Species Breakdown'!$D$31:$D$1028,I82,'4 - Species Breakdown'!$K$31:$K$1028)+SUMIF('4 - Species Breakdown'!$AE$31:$AE$1028,I82,'4 - Species Breakdown'!$AF$31:$AF$1028)","v":0}]
[null,"Hybrid poplar","Populus serotina/trichocarpa","WPO",{"$f":"SUMIF('4 - Species Breakdown'!$D$31:$D$1028,D83,'4 - Species Breakdown'!$K$31:$K$1028)+SUMIF('4 - Species Breakdown'!$AE$31:$AE$1028,D83,'4 - Species Breakdown'!$AF$31:$AF$1028)","v":0},null,"Almond willow","Salix triandra","ALW",{"$f":"SUMIF('4 - Species Breakdown'!$D$31:$D$1028,I83,'4 - Species Breakdown'!$K$31:$K$1028)+SUMIF('4 - Species Breakdown'!$AE$31:$AE$1028,I83,'4 - Species Breakdown'!$AF$31:$AF$1028)","v":0}]
[null,"Other poplar spp","Populus spp.","XPO",{"$f":"SUMIF('4 - Species Breakdown'!$D$31:$D$1028,D84,'4 - Species Breakdown'!$K$31:$K$1028)+SUMIF('4 - Species Breakdown'!$AE$31:$AE$1028,D84,'4 - Species Breakdown'!$AF$31:$AF$1028)","v":0},null,"Osier","Salix viminalis","OS",{"$f":"SUMIF('4 - Species Breakdown'!$D$31:$D$1028,I84,'4 - Species Breakdown'!$K$31:$K$1028)+SUMIF('4 - Species Breakdown'!$AE$31:$AE$1028,I84,'4 - Species Breakdown'!$AF$31:$AF$1028)","v":0}]
[null,"White oak","Quercus alba","WOK",{"$f":"SUMIF('4 - Species Breakdown'!$D$31:$D$1028,D85,'4 - Species Breakdown'!$K$31:$K$1028)+SUMIF('4 - Species Breakdown'!$AE$31:$AE$1028,D85,'4 - Species Breakdown'!$AF$31:$AF$1028)","v":0},null,"Wayfaring tree","Viburnum lantana","WAY",{"$f":"SUMIF('4 - Species Breakdown'!$D$31:$D$1028,I85,'4 - Species Breakdown'!$K$31:$K$1028)+SUMIF('4 - Species Breakdown'!$AE$31:$AE$1028,I85,'4 - Species Breakdown'!$AF$31:$AF$1028)","v":0}]
[null,"Red oak","Quercus rubra","ROK",{"$f":"SUMIF('4 - Species Breakdown'!$D$31:$D$1028,D86,'4 - Species Breakdown'!$K$31:$K$1028)+SUMIF('4 - Species Breakdown'!$AE$31:$AE$1028,D86,'4 - Species Breakdown'!$AF$31:$AF$1028)","v":0},null,"Guelder rose ","Viburnum opulus","GDR",{"$f":"SUMIF('4 - Species Breakdown'!$D$31:$D$1028,I86,'4 - Species Breakdown'!$K$31:$K$1028)+SUMIF('4 - Species Breakdown'!$AE$31:$AE$1028,I86,'4 - Species Breakdown'!$AF$31:$AF$1028)","v":0}]
[null,"Hungarian oak","Quercus frainetto","QFR",{"$f":"SUMIF('4 - Species Breakdown'!$D$31:$D$1028,D87,'4 - Species Breakdown'!$K$31:$K$1028)+SUMIF('4 - Species Breakdown'!$AE$31:$AE$1028,D87,'4 - Species Breakdown'!$AF$31:$AF$1028)","v":0}]
[null,"Downy oak","Quercus pubescens","QPU",{"$f":"SUMIF('4 - Species Breakdown'!$D$31:$D$1028,D88,'4 - Species Breakdown'!$K$31:$K$1028)+SUMIF('4 - Species Breakdown'!$AE$31:$AE$1028,D88,'4 - Species Breakdown'!$AF$31:$AF$1028)","v":0}]
[null,"Pyrenean oak","Quercus pyrenaica","QPY",{"$f":"SUMIF('4 - Species Breakdown'!$D$31:$D$1028,D89,'4 - Species Breakdown'!$K$31:$K$1028)+SUMIF('4 - Species Breakdown'!$AE$31:$AE$1028,D89,'4 - Species Breakdown'!$AF$31:$AF$1028)","v":0}]
[null,"Other oak","Quercus spp.","XOK",{"$f":"SUMIF('4 - Species Breakdown'!$D$31:$D$1028,D90,'4 - Species Breakdown'!$K$31:$K$1028)+SUMIF('4 - Species Breakdown'!$AE$31:$AE$1028,D90,'4 - Species Breakdown'!$AF$31:$AF$1028)","v":0}]
[null,"Other willows","Salix spp.","XWL",{"$f":"SUMIF('4 - Species Breakdown'!$D$31:$D$1028,D91,'4 - Species Breakdown'!$K$31:$K$1028)+SUMIF('4 - Species Breakdown'!$AE$31:$AE$1028,D91,'4 - Species Breakdown'!$AF$31:$AF$1028)","v":0}]
[null,"Smooth-leaved elm","Ulmus carpinifolia","SEM",{"$f":"SUMIF('4 - Species Breakdown'!$D$31:$D$1028,D92,'4 - Species Breakdown'!$K$31:$K$1028)+SUMIF('4 - Species Breakdown'!$AE$31:$AE$1028,D92,'4 - Species Breakdown'!$AF$31:$AF$1028)","v":0}]
[]
[]
[null,"Naturalised Broadleaf Species List"]
[null,"Species Name","Scientific Name","Species Code","Quantity"]
[null,"Sycamore","Acer pseudoplatanus","SY",{"$f":"SUMIF('4 - Species Breakdown'!$D$31:$D$1028,D97,'4 - Species Breakdown'!$K$31:$K$1028)+SUMIF('4 - Species Breakdown'!$AE$31:$AE$1028,D97,'4 - Species Breakdown'!$AF$31:$AF$1028)","v":0}]
[null,"Horse chestnut","Aesculus hippocastanum","HCH",{"$f":"SUMIF('4 - Species Breakdown'!$D$31:$D$1028,D98,'4 - Species Breakdown'!$K$31:$K$1028)+SUMIF('4 - Species Breakdown'!$AE$31:$AE$1028,D98,'4 - Species Breakdown'!$AF$31:$AF$1028)","v":0}]
[null,"Sweet chestnut","Castanea sativa","SC",{"$f":"SUMIF('4 - Species Breakdown'!$D$31:$D$1028,D99,'4 - Species Breakdown'!$K$31:$K$1028)+SUMIF('4 - Species Breakdown'!$AE$31:$AE$1028,D99,'4 - Species Breakdown'!$AF$31:$AF$1028)","v":0}]
[null,"Common walnut","Juglans regia","CWA",{"$f":"SUMIF('4 - Species Breakdown'!$D$31:$D$1028,D100,'4 - Species Breakdown'!$K$31:$K$1028)+SUMIF('4 - Species Breakdown'!$AE$31:$AE$1028,D100,'4 - Species Breakdown'!$AF$31:$AF$1028)","v":0}]
[null,"Wild pear","Pyrus communis","WDP",{"$f":"SUMIF('4 - Species Breakdown'!$D$31:$D$1028,D101,'4 - Species Breakdown'!$K$31:$K$1028)+SUMIF('4 - Species Breakdown'!$AE$31:$AE$1028,D101,'4 - Species Breakdown'!$AF$31:$AF$1028)","v":0},null,null,null,null,"Quantity"]
[null,"Wild plum","Prunus domestica","WPE",{"$f":"SUMIF('4 - Species Breakdown'!$D$31:$D$1028,D102,'4 - Species Breakdown'!$K$31:$K$1028)+SUMIF('4 - Species Breakdown'!$AE$31:$AE$1028,D102,'4 - Species Breakdown'!$AF$31:$AF$1028)","v":0},null,null,"Total Broadleaf",null,{"$f":"SUM(E14:E49,E54:E92,E97:E104)","v":0}]
[null,"Turkey oak","Quercus cerris","TOK",{"$f":"SUMIF('4 - Species Breakdown'!$D$31:$D$1028,D103,'4 - Species Breakdown'!$K$31:$K$1028)+SUMIF('4 - Species Breakdown'!$AE$31:$AE$1028,D103,'4 - Species Breakdown'!$AF$31:$AF$1028)","v":0},null,null,"Total Conifer",null,{"$f":"SUM(J14:J15,J20:J65,J70)","v":0}]
[null,"Holm oak","Quercus ilex","HOK",{"$f":"SUMIF('4 - Species Breakdown'!$D$31:$D$1028,D104,'4 - Species Breakdown'!$K$31:$K$1028)+SUMIF('4 - Species Breakdown'!$AE$31:$AE$1028,D104,'4 - Species Breakdown'!$AF$31:$AF$1028)","v":0},null,null,"Total Native Woody Shrubs",null,{"$f":"SUM(J75:J86)","v":0}]

{"sheet":"Look Up Data","index":19,"n_rows":203,"n_cols":18,"rows_kept":203,"cut":false,"hidden":true,"merged":[[10,16,10,17],[3,16,3,17],[18,16,18,17],[0,9,0,10],[1,16,1,17],[0,16,0,17],[2,16,2,17]]}
["Tab:","Tab:","Tab:","Tab:","Tab:","Tab:","Tab:","Tab:","Tab:","Tab:",null,"Tab:","Tab:","Tab:","Tab:","Tab:","Tab:"]
["1 Site Details","2 Applicant Details","3 Land Summary","4 Species Breakdown","5 Composition & ACs","6 Standard Cost Items","7 Operational Plan","8 Infrastructure","9 Scoring","10 Grant Values (£)",null,"WCP 1 - Outline","WCP 2 - Objectives & Threats","WCP 3 - Constraints ","WCP 4 - Envt Checks","WCP 5 - Contacts","WCC Summary"]
["Your occupation of the land:","Preferred method of communication:","Current compartment land use","Species Code Data Validation","Would you like to claim Grant payments for this Additional Contribution?",null,"I have confirmed adequate stock will be available from a UK nursery:","Are you applying for woodland/recreational infrastructure?",null,"Would you like to apply a flexible Grant cap on Standard Costs?",null,"Do adjacent projects sit within or affect additional sensitive areas not covered by your proposal? ",null,null,null,"Evidence (select drop-down)","Table 3 Look Up"]
["Owner/occupier","Email","Scrub","NBL","Yes",null,"Yes","Yes \n(complete below)",null,"Yes",null,"Yes",null,null,null,"I have submitted evidence of the completed checks","Previous Land use"]
["Tenant","Post","Arable","FDM","No",null,"Is this a commercial nursery?","No",null,"No",null,"No",null,null,null,null,"Scrub","Seminatural"]
["Landlord","Phone","Cropped","CAR",null,null,"Yes","Are you VAT registered?",null,"Cap on Standard Cost Items per gross hectare (excluding leaky woody dams)",null,null,null,null,null,null,"Arable","Arable"]
["Licensor","Business type:","Improved Grassland","SBI",null,null,"No","Yes: I am registered for VAT and understand as a result VAT will be excluded from my EWCO Agreement. I will still indicate the VAT charged (if any) as part of my quotes below.",null,10200,null,null,null,null,null,null,"Cropped","Arable"]
["Other (please detail)","Charitable company","Semi Improved Grassland","DBI",null,null,"If yes, select which applies:","No: I am not registered for VAT and VAT is included in my application. I have or will provide confirmation of my VAT status, for example, an Accountant’s Certificate and understand this is required before a grant agreement can be offered.",null,"Low sensitivity land incentives",null,null,null,null,null,null,"Improved Grassland","Pasture"]
["Tenants","Charity","Unimproved Land","HBM",null,null,"The nursery is listed on the Directory of Plant Healthy Certified Business",null,null,"Low sensitivity land payment",1100,null,null,null,null,null,"Semi Improved Grassland","Pasture"]
["Yes - I confirm I am not seeking funding for these activities as part of this application","Consortium","Will natural colonisation be used as a proposed establishment method in this compartment?","HAZ",null,null,"The nursery will supply me with a Ready to Plant Assessment voucher",null,null,"Additional Contribution values (£)",null,null,null,null,null,null,"Unimproved Land ","Seminatural"]
["No","Education institution","Yes","MDH",null,null,"Anticipated planting season(s):",null,null,"Nature Recovery Premium",3300,null,null,null,null,null,"Soil type"]
["Your Management Control of the land:","Local authority","No","HAW",null,null,"2025-26",null,null,"Nature Recovery Higher",2800,null,null,null,null,null,"Brown earths","Organomineral"]
["I have full management control over the land","Partnership","If yes, what is the predominant expected colonisation species?","BE",null,null,"2026-27",null,null,"Nature Recovery Lower",1100,null,null,null,null,null,"Gleys","Organomineral"]
["I have signed consent from all parties with management control over the land - please submit a Declaration Form countersign sheet","Private individual","Native broadleaf","HOL",null,null,"2027-28",null,null,"Water Quality",500,null,null,null,null,null,"Podzols","Organomineral"]
["I am a tenant with signed consent from the landowner - please submit a Declaration Form countersign sheet","Private Limited Company","Non-native broadleaf","CAP",null,null,"Anticipated claim year(s):",null,null,"Flood Risk Management",1000,null,null,null,null,null,"Ironpans","Organomineral"]
["I do not yet have management control but this will be obtained before entering an agreement - please submit a Land Manager Authorisation form","Public body","Naturalised broadleaf","NPO",null,null,"2025-26",null,null,"Riparian Buffers",2500,null,null,null,null,null,"Rankers/Rendzinas","Organomineral"]
["Do you have an approved Forestry Commission WCPG?","Public Limited Company","Native conifer","GPO",null,null,"2026-27",null,null,"Close to settlements",600,null,null,null,null,null,"Littoral","Mineral "]
["Yes","Self employed","Non-native conifer","ASP",null,null,"2027-28",null,null,"Recreational Access",3700,null,null,null,null,null,"Man-made soils","Organomineral"]
["No (complete WCP 1-5)","Sole trader","Naturalised conifer","WCH",null,null,"Planning permission or GPDO required?",null,null,"Future AC placeholder",0,null,null,null,null,null,"Disturbance/ Site Preparation"]
["Is this EWCO application is based on the final approved WCPG? ","Trust","Soil Type","BCH",null,null,"Planning permission",null,null,"Future AC placeholder",0,null,null,null,null,null,"Hand screefing only","Negligible disturbance"]
["Yes (do not complete WCP 1-5)","University","Brown earths","SLO",null,null,"General Permitted Development Order",null,null,"Would you like to opt out of annual Maintenance payments?",null,null,null,null,null,null,"Hand turfing, inverted, hinge & trench mounding, patch scarification","Low disturbance"]
["No (complete WCP 1-5)","Business size:","Gleys","POK",null,null,"Both",null,null,"Yes, opt out",null,null,null,null,null,null,"Shallow/rotary (<30cm) plough, Disc/line scarification","Medium disturbance"]
["Is your proposal within a low sensitivity area for woodland creation?","0-9 Employees ","Podzols","SOK",null,null,"None",null,null,"No",null,null,null,null,null,null,"Deep (>30cm) plough, with or without line, ripping","High disturbance"]
["Yes","10-49 Employees","Ironpans","PGB",null,null,null,null,null,"Annual Maintenance (per ha per year)",null,null,null,null,null,null,"Agricultural ploughing","Very high disturbance"]
["No","50-249 Employees","Rankers/Rendzinas","WWI",null,null,null,null,null,400,null,null,null,null,null,null,"No Ground Preparation ","Negligible disturbance"]
["I'm not sure","250+ Employees","Littoral","GOW"]
["If eligible, would you like to claim the low sensitivity land incentive?","Authorised Agent:","Man-made soils","GRW"]
["Yes","Yes","Proposed cultivation technique","CWI"]
["No","No","Hand screefing only","BWI"]
["Will any element of this project be funded by a third-party (i.e. not the lead applicant)?","Agent Authority Form:","Hand turfing, inverted, hinge & trench mounding, patch scarification","ELD"]
["Yes","A Forestry Commission Agent Authority Form (v4.0 or later) is already in place between the named lead applicant and agent","Shallow/rotary (<30cm) plough, Disc/line scarification","ROW"]
["No","A Forestry Commission Agent Authority Form is enclosed with this application","Deep (>30cm) plough, with or without line, ripping","WBM"]
[null,"Engagement","Agricultural ploughing","WST"]
[null,"Defra communications","No Ground Preparation ","SLI"]
[null,"Forestry Commission communications/representative","Does this site have a statutory designation?","CLI"]
[null,"Woodland Creation Partnership or Community Forest communications/representative","Yes","LLI"]
[null,"Woodlands for Water communications/representative","No","WEM"]
[null,"Other","Is there one or more current grant agreement(s) in this cpt?","PEM"]
[null,"Agent comms preferences","Yes","EEM"]
[null,"CC applicant","No","MB"]
[null,"Do not CC applicant",null,"XB"]
[null,null,null,"BLM"]
[null,null,null,"NOM"]
[null,null,null,"ASA"]
[null,null,null,"IAR"]
[null,null,null,"GAR"]
[null,null,null,"RAR"]
[null,null,null,"VAR"]
[null,null,null,"PBI"]
[null,null,null,"XBI"]
[null,null,null,"COV"]
[null,null,null,"CDE"]
[null,null,null,"SHE"]
[null,null,null,"EUC"]
[null,null,null,"FOR"]
[null,null,null,"WAH"]
[null,null,null,"NAH"]
[null,null,null,"FPE"]
[null,null,null,"BWA"]
[null,null,null,"XWA"]
[null,null,null,"TUL"]
[null,null,null,"RAN"]
[null,null,null,"RON"]
[null,null,null,"LEN"]
[null,null,null,"XNO"]
[null,null,null,"LPL"]
[null,null,null,"XPL"]
[null,null,null,"APO"]
[null,null,null,"WPO"]
[null,null,null,"XPO"]
[null,null,null,"WOK"]
[null,null,null,"ROK"]
[null,null,null,"QFR"]
[null,null,null,"QPU"]
[null,null,null,"QPY"]
[null,null,null,"XOK"]
[null,null,null,"XWL"]
[null,null,null,"SEM"]
[null,null,null,"SY"]
[null,null,null,"HCH"]
[null,null,null,"SC"]
[null,null,null,"CWA"]
[null,null,null,"WDP"]
[null,null,null,"WPE"]
[null,null,null,"TOK"]
[null,null,null,"HOK"]
[null,null,null,"JUN"]
[null,null,null,"YEW"]
[null,null,null,"MC"]
[null,null,null,"XC"]
[null,null,null,"ESF"]
[null,null,null,"PSF"]
[null,null,null,"BMF"]
[null,null,null,"GKF"]
[null,null,null,"GF"]
[null,null,null,"NMF"]
[null,null,null,"NF"]
[null,null,null,"XF"]
[null,null,null,"ACR"]
[null,null,null,"LCR"]
[null,null,null,"XCD"]
[null,null,null,"LC"]
[null,null,null,"JCR"]
[null,null,null,"LEC"]
[null,null,null,"NS"]
[null,null,null,"OMS"]
[null,null,null,"ORS"]
[null,null,null,"SS"]
[null,null,null,"XS"]
[null,null,null,"PAR"]
[null,null,null,"PAY"]
[null,null,null,"PBR"]
[null,null,null,"LP"]
[null,null,null,"PEL"]
[null,null,null,"PKO"]
[null,null,null,"PMO"]
[null,null,null,"BIP"]
[null,null,null,"CP"]
[null,null,null,"AUP"]
[null,null,null,"MCP"]
[null,null,null,"MAP"]
[null,null,null,"PDP"]
[null,null,null,"RAP"]
[null,null,null,"XP"]
[null,null,null,"WEP"]
[null,null,null,"LOP"]
[null,null,null,"MOP"]
[null,null,null,"PWA"]
[null,null,null,"PYU"]
[null,null,null,"DF"]
[null,null,null,"RSQ"]
[null,null,null,"WSQ"]
[null,null,null,"WRC"]
[null,null,null,"WH"]
[null,null,null,"SP"]
[null,null,null,"WSH"]
[null,null,null,"BOX"]
[null,null,null,"DOG"]
[null,null,null,"SGL"]
[null,null,null,"SPI"]
[null,null,null,"WPI"]
[null,null,null,"EAW"]
[null,null,null,"PUW"]
[null,null,null,"ALW"]
[null,null,null,"OS"]
[null,null,null,"WAY"]
[null,null,null,"GDR"]
[null,null,null,"Lesser-known species flag"]
[null,null,null,"MB"]
[null,null,null,"XB"]
[null,null,null,"BLM"]
[null,null,null,"ASA"]
[null,null,null,"RAR"]
[null,null,null,"VAR"]
[null,null,null,"PBI"]
[null,null,null,"XBI"]
[null,null,null,"COV"]
[null,null,null,"EUC"]
[null,null,null,"FOR"]
[null,null,null,"WAH"]
[null,null,null,"NAH"]
[null,null,null,"FPE"]
[null,null,null,"TUL"]
[null,null,null,"LEN"]
[null,null,null,"XNO"]
[null,null,null,"LPL"]
[null,null,null,"XPL"]
[null,null,null,"WOK"]
[null,null,null,"QFR"]
[null,null,null,"QPU"]
[null,null,null,"QPY"]
[null,null,null,"XOK"]
[null,null,null,"XWL"]
[null,null,null,"SEM"]
[null,null,null,"TOK"]
[null,null,null,"HOK"]
[null,null,null,"MC"]
[null,null,null,"XC"]
[null,null,null,"BMF"]
[null,null,null,"GKF"]
[null,null,null,"NMF"]
[null,null,null,"XF"]
[null,null,null,"ACR"]
[null,null,null,"LCR"]
[null,null,null,"XCD"]
[null,null,null,"ORS"]
[null,null,null,"XS"]
[null,null,null,"PAR"]
[null,null,null,"PAY"]
[null,null,null,"PBR"]
[null,null,null,"PEL"]
[null,null,null,"PKO"]
[null,null,null,"PMO"]
[null,null,null,"BIP"]
[null,null,null,"AUP"]
[null,null,null,"MCP"]
[null,null,null,"PDP"]
[null,null,null,"XP"]
[null,null,null,"WEP"]
[null,null,null,"LOP"]
[null,null,null,"MOP"]
[null,null,null,"PWA"]
[null,null,null,"PYU"]